{"text_format":"1","workbook":"xlsx","n_sheets":45,"sheets":["Introduction","FAQ","Blank survey 2011","LINKED ALL countries2011filter ","ALL countries 2011","Afghanistan 2011","Albania 2011","Armenia 2011","Azerbaijan 2011","Bangladesh 2011","Bolivia 2011","Burkina Faso 2011","Democratic Republic Congo 2011","Dominican Republic 2011","El Salvador 2011","Ethiopia 2011","Gambia ~2011~","Georgia 2011","Ghana 2011","Guatemala 2011","Haiti 2011","Honduras 2011","India 2011","Kenya 2011","Liberia 2011","Madagascar 2011","Malawi 2011","Mali 2011","Mozambique 2011","Nepal 2011","Nicaragua 2011","Nigeria 2011","Pakistan 2011","Paraguay 2011","Philippines 2011","Russia 2011","Rwanda 2011","Senegal 2011","S. Sudan 2011","Tanzania 2011","Uganda 2011","Ukraine 2011","Yemen 2011","Zambia 2011","Zimbabwe 2011"],"not_rendered":{"charts":0,"images":6,"macros":1,"external_links":0,"defined_names":45,"comments":10,"pivot_tables":0},"unopened":[],"bounds":{"document_bytes":16777216,"sheet_cells":100000,"rows_first":2000,"rows_last":500,"rows_between":2000,"halvings":0,"cell_chars":16384,"cell_head_chars":4096},"cells_cut":0,"cells_raw":0,"read":"whole","date_system":"1900"}

{"sheet":"Introduction","index":0,"n_rows":38,"n_cols":17,"rows_kept":38,"cut":false,"hidden":false,"merged":[[17,0,17,16],[15,5,15,6],[16,0,16,1],[16,2,16,3],[16,4,16,5],[15,0,15,1],[15,2,15,3],[15,15,15,16],[13,8,13,9],[16,8,16,9],[15,11,15,12],[15,13,15,14],[13,11,13,12],[13,13,13,14],[15,8,15,9],[40,14,40,15],[41,0,41,1],[41,2,41,3],[41,4,41,5],[41,6,41,7],[41,8,41,9],[40,0,40,1],[40,2,40,3],[40,4,40,5],[40,6,40,7],[38,8,38,9],[40,8,40,9],[40,11,40,12],[39,4,39,5],[39,6,39,7],[39,8,39,9],[14,2,14,3],[39,13,39,14],[38,11,38,12],[38,0,38,1],[38,2,38,3],[38,4,38,5],[38,6,38,7],[39,0,39,1],[39,2,39,3],[14,13,14,14],[16,12,16,13],[21,0,21,5],[22,0,22,2],[16,6,16,7],[20,0,20,16],[19,0,19,2],[14,11,14,12],[18,0,18,5],[7,0,7,16],[9,0,9,16],[10,0,10,16],[11,0,11,8],[8,0,8,16],[12,0,12,3],[13,0,13,1],[14,0,14,1],[14,4,14,5],[14,6,14,7],[14,8,14,9],[13,4,13,5],[13,6,13,7],[13,2,13,3],[37,0,37,16],[24,0,24,5],[25,0,25,16],[35,0,35,16],[33,0,33,3],[27,0,27,16],[26,0,26,16],[28,0,28,16],[23,0,23,16],[36,0,36,16],[31,0,31,8],[29,0,29,11],[34,0,34,16],[33,4,33,10],[32,0,32,16],[30,0,30,16]]}
[]
[]
[]
[]
[]
[]
[]
["Contraceptive Security Indicators Data "]
["2011 Data Collection"]
["\nIntroduction and Purpose: \n\nThe Contraceptive Security (CS) Indicators activity highlights a comprehensive set of indicators that were developed to reflect key aspects of contraceptive security and can be used to monitor countries' CS statuses for programmatic and advocacy purposes. The indicators build upon the the Strategic Pathway to Reproductive Health Commodity Security (SPARHCS) framework. \n\nThis dataset presents CS indicators for 40 countries. The data was collected in 2011 through the third annual round of data collection."]
["Worksheets: \n\n"]
["Click below to jump to the following  information."]
["Individual countries' data:"]
["Afghanistan",null,"Albania",null,"Armenia",null,"Azerbaijan",null,"Bangladesh",null,"Bolivia","Burkina Faso",null,"DRC",null,"DR","El Salvador"]
["Ethiopia",null,"Gambia",null,"Georgia",null,"Ghana",null,"Guatemala",null,"Haiti","Honduras",null,"India",null,"Kenya","Liberia"]
["Madagascar",null,"Malawi",null,"Mali","Mozambique",null,"Nepal","Nicaragua",null,"Nigeria","Pakistan",null,"Paraguay",null,"Philippines"]
["Russia",null,"Rwanda",null,"Senegal",null,"South Sudan",null,"Tanzania",null,"Uganda","Ukraine","Yemen",null,"Zambia",null,"Zimbabwe"]
["The individual country worksheets may contain a small amount of additional information about the indicator responses in cells' inserted comments."]
["All countries' data:"]
["ALL countries"]
["         This worksheet provides all countries' responses. \n         It also provides the option to filter the data by various categories. \n         In addition, it contains grouping so that users can choose to see just a summary of key indicators if they so choose."]
["Additional resources:"]
["Blank survey"]
["         This worksheet contains a blank survey so that you can collect the indicators for your own monitoring, programmatic, and advocacy\n         purposes. "]
["Frequently asked questions handout "]
["        This handout was sent to respondents along with the survey and helps clarify some of the indicator questions."]
["Topics: \n\nIndicator questions include the following topics:\n\n-- Finance & Procurement (Capital)—dollar value of estimated need for contraceptives to be procured (value of quantification), existence of a government budget line item for contraceptives, amount that government had allocated for contraceptives, extent of expenditures for public sector contraceptives and in-kind donations, sources of funding/donations, information on whether there was a funding gap, and information about the government's procurement mechanism. \n \n- Commodities—range of contraceptive methods offered through public facilities, private facilities, NGO facilities, and through social marketing.\n\n- Policies (Commitment)—existence of a national contraceptive security strategy, existence of policies limiting or promoting access to family planning, inclusion of contraceptives on the National Essential Medicine List (NEML), and inclusion of contraceptive security and family planning indicators in the Poverty Reduction Strategy Paper (PRSP).\n\n- Coordination and Leadership—existence of a national committee that works on contraceptive security and types of organizations represented, frequency of committee meetings, legal status of the committee, and existence of a contraceptive security “champion”.\n\n- Supply Chain (Capacity)—stockout information at the central level, and whether stockouts are a serious problem at the service delivery point and central levels, respectively. "]
["\nData Sources: \n\nThe indicators were designed to capture relatively objective information routinely through a key informant survey and a review of existing local documents. Indicator questions were constructed so that a range of respondents could answer them easily with little background research. \n\nCountry respondents were mainly USAID missions and USAID | DELIVER PROJECT staff. Respondents often consulted with Ministry of Health representatives and other cooperating agencies as well. The data are contingent upon the knowledge of the respondents and the accuracy of the data sources consulted. Data was collected from the countries and then reviewed and supplemented by USAID | DELIVER PROJECT staff based in Arlington, Virginia. This process occurred between late February and late June 2011 (except for Gambia, which provided its information early - in September 2010)."]
["Additional Resources and Information: \n\n"]
["How Contraceptive Security Indicators Can Be Used to Improve Family Planning Programs"]
["         This brief can be found on the USAID | DELIVER PROJECT website at \n          http://deliver.jsi.com/dlvr_content/resources/allpubs/logisticsbriefs/HowCSIndImprFP_1.pdf       \n                  "]
["Measuring Contraceptive Security Indicators in 2010: Data Update"]
["         This paper analyzing the 2010 CS Indicators findings can be found on the USAID | DELIVER PROJECT website at            \n          http://deliver.jsi.com/dlvr_content/resources/allpubs/guidelines/CS_Indicators2010.pdf"]
["Maps of select indicators",null,null,null,"can be found on the USAID | DELIVER PROJECT website. "]
["         They are currently located at http://deliver.jsi.com/dhome/topics/monitoring \n         in the Project Maps box on the right side of the page."]
["CS Indicators data from 2009 and 2010 can also be found on the USAID | DELIVER PROJECT website, as can the paper analyzing the 2009 findings."]
["This spreadsheet can be cited as: USAID | DELIVER PROJECT, Task Order 4. 2011. Contraceptive Security Indicators Data 2011. Arlington, Va.: USAID | DELIVER PROJECT, Task Order 4. Available at http://deliver.jsi.com/dlvr_content/resources/allpubs/factsheets/CS_Indicators_Data_2011.xls."]
["\nStay tuned for a paper summarizing the 2011 CS Indicator findings. \n\nWe encourage anyone with questions, corrections, or more information about the countries concerned, or information about additional countries, to contact the USAID | DELIVER PROJECT by e-mailing Suzy Sacher (ssacher@jsi.com), Ellie Bahirai (ebahirai@jsi.com), or askdeliver@jsi.com. We also invite suggestions for improving the indicators and methodology.\n"]

{"sheet":"FAQ","index":1,"n_rows":4,"n_cols":1,"rows_kept":4,"cut":false,"hidden":false,"merged":[]}
[]
[]
["   Below is the \"Frequently Asked Questions\" handout that was sent along with"]
["   the 2011 CS Indicators survey to help clarify some of the indicator questions."]

{"sheet":"Blank survey 2011","index":2,"n_rows":149,"n_cols":25,"rows_kept":149,"cut":false,"hidden":false,"merged":[[146,0,146,2],[146,3,146,7],[147,0,147,7],[148,0,150,7],[141,1,141,4],[141,5,141,7],[142,1,142,4],[142,5,142,7],[143,0,143,7],[144,1,144,5],[144,6,144,7],[145,1,145,5],[145,6,145,7],[138,1,138,5],[138,6,138,7],[139,1,139,5],[139,6,139,7],[140,1,140,5],[140,6,140,7],[135,1,135,5],[135,6,135,7],[136,1,136,5],[130,0,130,5],[130,6,130,7],[136,6,136,7],[137,1,137,5],[137,6,137,7],[131,0,131,7],[132,1,132,5],[132,6,132,7],[133,1,133,5],[133,6,133,7],[134,1,134,5],[134,6,134,7],[125,1,125,5],[125,6,125,7],[126,1,126,5],[126,6,126,7],[127,1,127,5],[127,6,127,7],[128,1,128,2],[128,3,128,7],[129,0,129,6],[120,0,120,2],[120,3,120,7],[121,0,121,2],[121,3,121,7],[122,0,122,7],[123,1,123,4],[123,5,123,7],[124,1,124,5],[124,6,124,7],[115,1,115,5],[115,6,115,7],[116,1,116,5],[116,6,116,7],[117,1,117,5],[117,6,117,7],[118,2,118,4],[118,5,118,7],[119,0,119,4],[119,5,119,7],[110,1,110,5],[110,6,110,7],[111,1,111,5],[111,6,111,7],[112,1,112,5],[112,6,112,7],[113,1,113,5],[113,6,113,7],[114,1,114,5],[114,6,114,7],[104,1,104,5],[104,6,104,7],[105,1,105,5],[105,6,105,7],[106,3,106,7],[107,0,107,7],[108,1,108,5],[108,6,108,7],[109,1,109,5],[109,6,109,7],[98,1,98,2],[98,4,98,6],[99,1,99,2],[99,4,99,6],[100,1,100,2],[100,4,100,6],[101,0,101,7],[102,0,102,7],[103,1,103,5],[103,6,103,7],[94,2,94,3],[94,4,94,5],[94,6,94,7],[95,2,95,3],[95,4,95,5],[95,6,95,7],[96,0,96,7],[97,0,97,2],[97,4,97,6],[88,0,88,6],[89,1,89,2],[89,3,89,7],[90,0,90,6],[91,1,91,2],[92,1,92,3],[92,4,92,5],[92,6,92,7],[93,2,93,3],[93,4,93,5],[93,6,93,7],[83,0,83,4],[83,5,83,7],[84,1,84,3],[84,4,84,7],[85,1,85,3],[85,4,85,7],[86,0,86,6],[87,1,87,2],[87,3,87,7],[77,0,77,2],[77,3,77,7],[78,0,78,6],[79,0,79,6],[80,0,80,2],[81,0,82,0],[81,1,81,2],[81,3,81,4],[81,6,81,7],[82,3,82,4],[82,6,82,7],[72,1,72,2],[72,3,72,4],[73,1,73,2],[73,3,73,4],[74,1,74,2],[74,3,74,4],[75,1,75,2],[75,3,75,4],[76,1,76,2],[76,3,76,4],[67,1,67,2],[67,3,67,4],[68,1,68,2],[68,3,68,4],[69,1,69,2],[69,3,69,4],[70,1,70,2],[70,3,70,4],[71,1,71,2],[71,3,71,4],[61,0,61,2],[61,3,61,7],[62,0,62,6],[63,0,63,7],[64,0,64,2],[64,3,64,4],[65,1,65,2],[65,3,65,4],[66,1,66,2],[66,3,66,4],[55,0,55,4],[55,6,55,7],[56,0,56,4],[56,6,56,7],[58,0,58,4],[58,5,58,7],[59,1,59,4],[59,5,59,7],[60,2,60,4],[60,5,60,7],[45,0,45,7],[46,1,46,2],[47,1,47,2],[48,3,48,7],[49,1,49,2],[50,1,50,2],[51,1,51,2],[53,0,53,7],[54,0,54,4],[54,6,54,7],[35,0,35,7],[36,0,36,6],[37,0,37,7],[38,1,38,2],[39,1,39,2],[40,3,40,7],[41,1,41,2],[42,3,42,7],[43,1,43,2],[28,0,28,5],[28,6,28,7],[29,0,29,3],[29,6,29,7],[30,0,30,6],[31,0,31,6],[32,0,32,7],[33,1,33,3],[34,1,34,3],[21,1,21,2],[21,5,21,7],[22,1,22,2],[22,5,22,7],[23,0,23,6],[24,0,24,6],[25,0,25,2],[26,0,26,6],[27,0,27,2],[27,3,27,4],[16,1,16,2],[16,5,16,7],[17,1,17,2],[17,5,17,7],[18,1,18,2],[18,5,18,7],[19,1,19,2],[19,5,19,7],[20,1,20,2],[20,5,20,7],[11,0,11,6],[12,1,12,2],[12,3,12,7],[13,0,13,2],[13,3,13,7],[14,1,14,2],[14,5,14,7],[15,1,15,2],[15,5,15,7],[0,0,0,7],[4,0,4,2],[6,0,6,7],[1,0,1,2],[1,3,1,4],[2,0,2,7],[3,3,3,4],[3,5,3,7],[10,0,10,6],[9,0,9,7],[8,0,8,2],[8,6,8,7],[7,3,7,5],[7,0,7,2],[8,3,8,4],[7,6,7,7]]}
[null,null,null,null,null,null,null,null,"Columns I-Y are meant to be hidden. They exist because they allow for the dropdown list options. They also allow for merged cells to autofit properly in terms of row height. This should work if all columns remain at their correct widths.","g-h",null,"a-e merged","E-F merged","e-h","0 times",null,null,"The government (e.g., Central Medical Stores, MOH logistics unit, MOH procurement unit)",null,null,null,null,"Yes","a-h","January"]
[null,null,null,null,null,null,null,null,null,null,"A-c",null,null,"e-h","1-2 times","b-d merged",null,"Third-party agent (e.g., UNFPA, Crown Agents)","d-e merged","d-f merged","e-f merged","e-g merged","No",null,"February"]
[null,null,null,null,null,null,null,null,null,null,null,null,null,null,"3-5 times",null,null,"The government and a third-party agent",null,null,null,null,null,null,"March"]
[null,null,null,null,null,null,null,null,null,null,null,null,null,null,"6 or more times",null,null,"Other",null,null,null,null,"N/A",null,"April"]
["To jump to the Introduction sheet, click here.",null,null,null,null,null,null,null,null,null,null,null,null,null,null,null,null,null,null,null,null,null,"Don't know",null,"May"]
["Contraceptive Security Indicator Questions 2011",null,null,null,null,null,null,null,null,null,null,null,null,null,"N/A",null,null,"N/A",null,null,null,null,null,null,"June"]
["Note: This blank survey is protected so that respondents are encouraged to enter their answers in the white cells and not to change the questions. Respondents can only select unlocked cells and format rows and columns. (If you want to change this, click on the Review tab - Changes group - Unprotect Sheet in newer versions of Excel or Tools - Protection - Unprotect Sheet in older versions of Excel.)\n",null,null,null,null,null,null,null,null,null,null,null,null,null,"Don't know",null,null,"Don't know",null,null,null,null,null,{"$f":"A7","v":"Note: This blank survey is protected so that respondents are encouraged to enter their answers in the white cells and not to change the questions. Respondents can only select unlocked cells and format rows and columns. (If you want to change this, click on the Review tab - Changes group - Unprotect Sheet in newer versions of Excel or Tools - Protection - Unprotect Sheet in older versions of Excel.)\n"},"July"]
["Country:",null,null,"Respondent's name:\n\n",null,null,"Job title:",null,null,{"$f":"G8","v":"Job title:"},{"$f":"A8","v":"Country:"},null,null,null,null,"or c-d",null,null,null,{"$f":"D8","v":"Respondent's name:\n\n"},null,null,null,null,"August"]
["Organization:",null,null,"E-mail: \n",null,"Tel: ","Date (dd/mm/yy): ",null,null,{"$f":"G9","v":"Date (dd/mm/yy): "},{"$f":"A9","v":"Organization:"},null,null,null,"d-h",null,"f-h merged",null,{"$f":"D9","v":"E-mail: \n"},null,null,null,null,null,"September"]
["Instructions: \n  -  Please indicate your answers in the white spaces. Some questions contain dropdown lists for your selection. \n  -  If the question is not applicable, please choose \"N/A\". If you do not know the answer, please choose \"don't know\". \n  -  If the answer you've entered is longer than the space provided, you can manually adjust the row height or autofit the row    \n     height in order to see the whole response. \n      (To autofit the row height, select the answer(s) and go to Home tab - Cells group - Format - Autofit Row Height in newer versions of Excel or Format - Row - Autofit \n       in older versions of Excel.)\n\nThank you for completing this survey.",null,null,null,null,null,null,null,"a-g",null,null,null,null,null,null,null,null,"a-e merged",null,null,null,null,null,{"$f":"A10","v":"Instructions: \n  -  Please indicate your answers in the white spaces. Some questions contain dropdown lists for your selection. \n  -  If the question is not applicable, please choose \"N/A\". If you do not know the answer, please choose \"don't know\". \n  -  If the answer you've entered is longer than the space provided, you can manually adjust the row height or autofit the row    \n     height in order to see the whole response. \n      (To autofit the row height, select the answer(s) and go to Home tab - Cells group - Format - Autofit Row Height in newer versions of Excel or Format - Row - Autofit \n       in older versions of Excel.)\n\nThank you for completing this survey."},"October"]
["A. Leadership and Coordination",null,null,null,null,null,null,null,null,null,null,null,null,null,null,null,null,null,null,null,null,null,null,null,"November"]
["A1. Is there a national committee that works on contraceptive security? (Please select from the dropdown list.)\n(Committee should have some aspect of contraceptive security as part of its Terms of Reference, even if it is known by a different name, for example: Family Planning, Reproductive Health, Maternal Mortality, Essential Medicine Committee, etc.)  ",null,null,null,null,null,null,null,{"$f":"A12","v":"A1. Is there a national committee that works on contraceptive security? (Please select from the dropdown list.)\n(Committee should have some aspect of contraceptive security as part of its Terms of Reference, even if it is known by a different name, for example: Family Planning, Reproductive Health, Maternal Mortality, Essential Medicine Committee, etc.)  "},null,null,null,null,null,null,null,null,null,null,null,null,null,null,null,"December"]
[null,"a. What is the name of the committee?",null,null,null,null,null,null,null,null,{"$f":"B13","v":"a. What is the name of the committee?"},{"$f":"D13","v":0},null,null,{"$f":"D13","v":0}]
["A2. Are the following organizations represented on the committee?",null,null,"(Y/N \ndropdown)",null,null,null,null,null,null,{"$f":"A14","v":"A2. Are the following organizations represented on the committee?"},null,null,null,null,null,null,null,null,null,null,null,null,null,"Don't know"]
[null,"a. Social marketing",null,null,"If yes, specify name(s) of organizations",null,null,null,null,null,{"$f":"B15","v":"a. Social marketing"},null,null,null,null,null,{"$f":"F15","v":0}]
[null,"b. NGO (for example: service delivery, advocacy, Planned Parenthood affiliate, Marie Stopes affiliate, faith-based organizations, etc.)",null,null,"If yes, specify name(s) of organizations",null,null,null,null,null,"b. NGO (for example: service delivery, advocacy, Planned Parenthood affiliate, Marie Stopes affiliate, faith-based organizations, etc.)",null,null,null,null,null,0]
[null,"c. Commercial sector (for example: pharmacy associations, manufacturers, etc.)",null,null,"If yes, specify name(s) of organizations",null,null,null,null,null,"c. Commercial sector (for example: pharmacy associations, manufacturers, etc.)",null,null,null,null,null,0]
[null,"d. Donors",null,null,"If yes, specify name(s) of donors",null,null,null,null,null,"d. Donors",null,null,null,null,null,0]
[null,"e. UN agencies",null,null,"If yes, specify name(s) of agencies",null,null,null,null,null,"e. UN agencies",null,null,null,null,null,0]
[null,"f. Ministry of Health (for example: logistics, reproductive health, family planning, maternal and child health, HIV/AIDS, pharmacy units, etc.)",null,null,"If yes, specify name(s) of units",null,null,null,null,null,"f. Ministry of Health (for example: logistics, reproductive health, family planning, maternal and child health, HIV/AIDS, pharmacy units, etc.)",null,null,null,null,null,0]
[null,"g. Central Medical Store or Central Warehouse",null,null,"If yes, specify",null,null,null,null,null,"g. Central Medical Store or Central Warehouse",null,null,null,null,null,0]
[null,"h. Ministry of Finance or Ministry of Planning ",null,null,"If yes, specify",null,null,null,null,null,"h. Ministry of Finance or Ministry of Planning ",null,null,null,null,null,0]
[null,"i. Other (for example: partners)",null,null,"If yes, specify",null,null,null,null,null,"i. Other (for example: partners)",null,null,null,null,null,0]
["A3. How many times did the committee meet during the last year? (0, 1-2, 3-5, or 6+)  (Please select from the dropdown.)",null,null,null,null,null,null,null,{"$f":"A24","v":"A3. How many times did the committee meet during the last year? (0, 1-2, 3-5, or 6+)  (Please select from the dropdown.)"}]
["A4. Does the committee have legal status?  (Please select from the dropdown.)                                  ",null,null,null,null,null,null,null,{"$f":"A25","v":"A4. Does the committee have legal status?  (Please select from the dropdown.)                                  "}]
["A5. Is there a Contraceptive Security \"champion\"? (someone who consistently brings up and advocates for contraceptive supplies)",null,null,null,"If yes, specify person's organization",null,"Specify person's job title",null,null,null,{"$f":"A26","v":"A5. Is there a Contraceptive Security \"champion\"? (someone who consistently brings up and advocates for contraceptive supplies)"}]
["B. Finance and Procurement (Capital)"]
["B1. What is the timeline of the country's fiscal year?",null,null,"Beginning month",null,null,"Ending month",null,null,null,{"$f":"B28","v":0}]
["B2. What was the estimated dollar value of contraceptives needed to be procured for the public sector for the most recent complete fiscal year? (in USD currency)\n(for example, to cover the needs for the '09-'10 fiscal year)",null,null,null,null,null,null,null,null,{"$f":"G29","v":0},null,null,{"$f":"E29","v":0},null,null,null,null,null,null,null,null,null,null,null,{"$f":"A29","v":"B2. What was the estimated dollar value of contraceptives needed to be procured for the public sector for the most recent complete fiscal year? (in USD currency)\n(for example, to cover the needs for the '09-'10 fiscal year)"}]
["B3. When was the last forecast/quantification conducted? (mm/yy)",null,null,null,null,"Who conducted it? (Specify organization.)",null,null,null,{"$f":"G30","v":0},null,null,{"$f":"E30","v":0},null,null,null,null,null,null,null,null,null,null,null,{"$f":"A30","v":"B3. When was the last forecast/quantification conducted? (mm/yy)"}]
["B4. Is there a government budget line item for the procurement of contraceptives?  (Please select from the dropdown list.)",null,null,null,null,null,null,null,{"$f":"A31","v":"B4. Is there a government budget line item for the procurement of contraceptives?  (Please select from the dropdown list.)"}]
["B5. Were government funds allocated for contraceptive procurement for the public sector in the most recent complete fiscal year? (This question refers to funds planned to be spent on contraceptives, whether or not they ended up being spent.) \n\n(Government funds include internally generated funds, basket funds, World Bank credits or loans, and other funds donors gave to the government for their use.) \n",null,null,null,null,null,null,null,{"$f":"A32","v":"B5. Were government funds allocated for contraceptive procurement for the public sector in the most recent complete fiscal year? (This question refers to funds planned to be spent on contraceptives, whether or not they ended up being spent.) \n\n(Government funds include internally generated funds, basket funds, World Bank credits or loans, and other funds donors gave to the government for their use.) \n"}]
["B6. Please complete the table below regarding government allocations for contraceptive procurement.",null,null,null,null,null,null,null,null,null,null,null,null,null,null,null,null,null,null,null,null,null,null,{"$f":"A33","v":"B6. Please complete the table below regarding government allocations for contraceptive procurement."}]
[null,null,null,null,"Amount allocated \n(in USD)","Time period during which allocations were supposed to be spent \n(mm/yy-mm/yy)\n(should ideally be the most recent\ncomplete fiscal year ['09-'10])","Data source \n(for example: Ministry records)","Comments",null,null,{"$f":"A34","v":0}]
[null,"Government funds allocated for contraceptive procurement\n(funds originally designated for contraceptives, whether or not they ended up being spent on them)",null,null,null,null,null,null,null,null,{"$f":"#REF!","v":{"$error":"#REF!"}}]
[]
["B7. Were government funds spent on contraceptive procurement for the public sector in the most recent complete fiscal year? \n(Government funds include internally generated funds, basket funds, World Bank credits or loans, and other funds donors gave to the government for their use.)",null,null,null,null,null,null,null,{"$f":"A37","v":"B7. Were government funds spent on contraceptive procurement for the public sector in the most recent complete fiscal year? \n(Government funds include internally generated funds, basket funds, World Bank credits or loans, and other funds donors gave to the government for their use.)"}]
["B8. Please complete the table below to indicate government expenditures on contraceptive procurement, by source, in the most recent complete fiscal year. \n(This is how much was spent on contraceptive procurement (not what was allocated). How much of this spending was provided from each source?)",null,null,null,null,null,null,null,null,null,null,null,null,null,null,null,null,null,null,null,null,null,null,{"$f":"A38","v":"B8. Please complete the table below to indicate government expenditures on contraceptive procurement, by source, in the most recent complete fiscal year. \n(This is how much was spent on contraceptive procurement (not what was allocated). How much of this spending was provided from each source?)"}]
[null,"Source of government funds spent on contraceptive procurement for the public sector",null,"Was this source used?\n(Y/N)","Amount spent \n(in USD)","Time period (mm/yy-mm/yy)\n(should be the same for all sources of funds & ideally be the most recent\ncomplete fiscal year ['09-'10])","Data source \n(for example: Contraceptive Procurement Table, PipeLine, etc.)","Comments",null,null,{"$f":"A39","v":0}]
[null,"a. Internally generated funds spent on contraceptive procurement",null,null,null,null,null,null,null,null,{"$f":"B40","v":"a. Internally generated funds spent on contraceptive procurement"}]
[null,null,"i. Specify source(s) of internally generated funds spent (for example, from taxes or user fees)",null,null,null,null,null,null,null,{"$f":"C41","v":"i. Specify source(s) of internally generated funds spent (for example, from taxes or user fees)"},null,null,null,{"$f":"D41","v":0}]
[null,"b. Total of all other government funds spent on contraceptive procurement (basket funds, World Bank credits or loans, and other funds donors gave to the government [e.g., direct budget support])",null,null,null,null,null,null,null,null,{"$f":"B42","v":"b. Total of all other government funds spent on contraceptive procurement (basket funds, World Bank credits or loans, and other funds donors gave to the government [e.g., direct budget support])"}]
[null,null,"i. Specify source(s) of other government funds spent (for example: basket funding or specific donor)",null,null,null,null,null,null,null,{"$f":"C43","v":"i. Specify source(s) of other government funds spent (for example: basket funding or specific donor)"},null,null,null,{"$f":"D43","v":0}]
[null,"c. TOTAL government funds spent on contraceptive procurement\nThis will auto-calculate.  (It will sum a & b above.)",null,null,{"$f":"E40+E42","v":0},null,null,null,null,null,{"$f":"B44","v":"c. TOTAL government funds spent on contraceptive procurement\nThis will auto-calculate.  (It will sum a & b above.)"}]
[null,null,null,null,null,null,null,null,null,null,{"$f":"A45","v":0}]
["B9. Please complete the table below to indicate donor expenditures on contraceptive procurement in the most recent complete fiscal year.\n",null,null,null,null,null,null,null,null,null,null,null,null,null,null,null,null,null,null,null,null,null,null,{"$f":"A46","v":"B9. Please complete the table below to indicate donor expenditures on contraceptive procurement in the most recent complete fiscal year.\n"}]
["\n","Source of donations and donor funds spent on contraceptive procurement for the public sector",null,"Was this a source?\n(Y/N)","Amount of money spent on these procurements \n(in USD)","Time period (mm/yy-mm/yy)\n(should be the same for all sources of funds & ideally be the most recent\ncomplete fiscal year ['09-'10])","Data source \n(for example:  Donor records, Contraceptive Procurement Table, PipeLine, RHInterchange, etc.","Comments",null,null,{"$f":"A47","v":"\n"}]
[null,"a. In-kind donations of contraceptives",null,null,null,null,null,null,null,null,{"$f":"B48","v":"a. In-kind donations of contraceptives"}]
[null,null,"i. Specify source(s) of in-kind donations ",null,null,null,null,null,null,null,{"$f":"C49","v":"i. Specify source(s) of in-kind donations "},null,null,null,{"$f":"D49","v":0}]
[null,"b. Global Fund donations used to procure condoms",null,null,null,null,null,null,null,null,{"$f":"B50","v":"b. Global Fund donations used to procure condoms"}]
[null,"c. Global Fund donations used to procure contraceptives besides condoms",null,null,null,null,null,null,null,null,{"$f":"B51","v":"c. Global Fund donations used to procure contraceptives besides condoms"}]
[null,"d. TOTAL value of in-kind donations and Global Fund donations spent on contraceptive procurement\nThis will auto-calculate.  (It will sum a-c above.)",null,null,{"$f":"E48+E50+E51","v":0},null,null,null,null,null,{"$f":"B52","v":"d. TOTAL value of in-kind donations and Global Fund donations spent on contraceptive procurement\nThis will auto-calculate.  (It will sum a-c above.)"}]
[null,null,null,null,null,null,null,null,null,null,{"$f":"A53","v":0}]
["The answers to B10 and B11 should calculate automatically based on the information you provided. Please review the answers to ensure they make sense to you, and if you have additional information to add, please note it in the comments boxes.\n\nIf the answers do not calculate automatically, please provide any relevant information you may have in the comments boxes.\n",null,null,null,null,null,null,null,null,null,null,null,null,null,null,null,null,null,null,null,null,null,null,{"$f":"A54","v":"The answers to B10 and B11 should calculate automatically based on the information you provided. Please review the answers to ensure they make sense to you, and if you have additional information to add, please note it in the comments boxes.\n\nIf the answers do not calculate automatically, please provide any relevant information you may have in the comments boxes.\n"}]
["B10. Government share of funds spent on contraceptive procurement for the public sector - \nOf the total amount spent on contraceptives for the public sector in the most recent complete fiscal year (including government and donor funds), what percent was covered by government funds (including internally generated funds, basket funds, World Bank credits or loans, and other funds given to the government)? \n\nThis will auto-calculate. (It contains the following formula: Total government spending (Question B8c) / Grand total of all spending for public sector contraceptives from the government and donors (Questions B8c+B9d))",null,null,null,null,{"$f":"E44/(E44+E52)","v":{"$error":"#DIV/0!"}},"Comments:\n",null,null,{"$f":"G55","v":"Comments:\n"},null,null,null,null,null,null,null,{"$f":"A55","v":"B10. Government share of funds spent on contraceptive procurement for the public sector - \nOf the total amount spent on contraceptives for the public sector in the most recent complete fiscal year (including government and donor funds), what percent was covered by government funds (including internally generated funds, basket funds, World Bank credits or loans, and other funds given to the government)? \n\nThis will auto-calculate. (It contains the following formula: Total government spending (Question B8c) / Grand total of all spending for public sector contraceptives from the government and donors (Questions B8c+B9d))"}]
["B11. Total expenditures on public sector contraceptives as percent of amount that needed to be procured -\nOf the estimated value of the contraceptives needed to be procured for the public sector for the most recent complete fiscal year, what percent was provided by any source (whether government or donor)? \n\nThis will auto-calculate. (It contains the following formula: Grand total of all spending for public sector contraceptives from the government and donors (Questions B8c+B9d) / Value of estimated need for procurement (Question B2))",null,null,null,null,{"$f":"(E44+E52)/G29","v":{"$error":"#DIV/0!"}},"Comments: ",null,null,{"$f":"G56","v":"Comments: "},null,null,null,null,null,null,null,{"$f":"A56","v":"B11. Total expenditures on public sector contraceptives as percent of amount that needed to be procured -\nOf the estimated value of the contraceptives needed to be procured for the public sector for the most recent complete fiscal year, what percent was provided by any source (whether government or donor)? \n\nThis will auto-calculate. (It contains the following formula: Grand total of all spending for public sector contraceptives from the government and donors (Questions B8c+B9d) / Value of estimated need for procurement (Question B2))"}]
["B12. If B11 did not calculate automatically, please answer the following question:\nWas there a funding gap for the public sector in the last complete fiscal year (e.g., 09-'10 fiscal year)?\n(Please select from the dropdown list.)",null,null,null,null,null,"Comments:\n",null,null,{"$f":"G57","v":"Comments:\n"},null,null,null,null,null,null,null,{"$f":"A57","v":"B12. If B11 did not calculate automatically, please answer the following question:\nWas there a funding gap for the public sector in the last complete fiscal year (e.g., 09-'10 fiscal year)?\n(Please select from the dropdown list.)"}]
[null,null,null,null,null,null,null,null,null,null,{"$f":"A58","v":0}]
["B13. If the government financed any contraceptive procurement in the most recent complete fiscal year, which entity conducted the procurement(s)? (Please select from the dropdown.)",null,null,null,null,null,null,null,null,null,null,null,null,null,null,null,{"$f":"F59","v":0},{"$f":"A59","v":"B13. If the government financed any contraceptive procurement in the most recent complete fiscal year, which entity conducted the procurement(s)? (Please select from the dropdown.)"}]
[null,"a. Specify entity",null,null,null,null,null,null,null,null,null,null,{"$f":"E60","v":0},null,null,null,{"$f":"F60","v":0},{"$f":"B60","v":"a. Specify entity"}]
[null,null,"i. Is this a parastatal?",null,null,null,null,null,null,null,null,null,null,null,null,null,{"$f":"F61","v":0},{"$f":"C61","v":"i. Is this a parastatal?"}]
["B14. Please note any additional comments about finance and procurement.\n",null,null,null,null,null,null,null,null,null,{"$f":"A62","v":"B14. Please note any additional comments about finance and procurement.\n"},null,null,null,{"$f":"D62","v":0}]
["C. Commodities"]
["C1. Are the following contraceptive methods offered through the commercial sector, public sector, NGOs, or social marketing? (Please indicate which methods are intended to be offered. This question is not asking whether the method is in stock.) \n(Please select from the dropdown list.)",null,null,null,null,null,null,null,null,null,null,null,null,null,null,null,null,null,null,null,null,null,null,{"$f":"A64","v":"C1. Are the following contraceptive methods offered through the commercial sector, public sector, NGOs, or social marketing? (Please indicate which methods are intended to be offered. This question is not asking whether the method is in stock.) \n(Please select from the dropdown list.)"}]
["Contraceptive Method",null,null,"Commercial Sector",null,"Public Sector","NGO","Social Marketing",null,null,{"$f":"A65","v":"Contraceptive Method"}]
[null,"a. Combined oral contraceptives (estrogen + progestin - for  example, LoFemenol, Microgynon)",null,null,null,null,null,null,null,null,{"$f":"B66","v":"a. Combined oral contraceptives (estrogen + progestin - for  example, LoFemenol, Microgynon)"}]
[null,"b. Progestin-only pills (for example, Ovrette, Microlut)",null,null,null,null,null,null,null,null,{"$f":"B67","v":"b. Progestin-only pills (for example, Ovrette, Microlut)"}]
[null,"c. Hormonal injections (for example, DepoProvera, Noristerat)",null,null,null,null,null,null,null,null,"c. Hormonal injections (for example, DepoProvera, Noristerat)"]
[null,"d. Hormonal implants (for example, Jadelle, Implanon)",null,null,null,null,null,null,null,null,"d. Hormonal implants (for example, Jadelle, Implanon)"]
[null,"e. Intrauterine devices (IUDs) (for example, Optima Copper T)",null,null,null,null,null,null,null,null,"e. Intrauterine devices (IUDs) (for example, Optima Copper T)"]
[null,"f. Male condoms",null,null,null,null,null,null,null,null,"f. Male condoms"]
[null,"g. Female condoms",null,null,null,null,null,null,null,null,"g. Female condoms"]
[null,"h. Emergency contraceptive pills (for example, Postinor)",null,null,null,null,null,null,null,null,"h. Emergency contraceptive pills (for example, Postinor)"]
[null,"i. Long-acting permanent method for males (vasectomy)",null,null,null,null,null,null,null,null,"i. Long-acting permanent method for males (vasectomy)"]
[null,"j. Long-acting permanent method for females (tubal ligation)",null,null,null,null,null,null,null,null,"j. Long-acting permanent method for females (tubal ligation)"]
[null,"k. CycleBeads",null,null,null,null,null,null,null,null,"k. CycleBeads"]
[null,"l. Other contraceptive methods - specify \n(Please provide the name of the other contraceptive(s) offered, by sector.)",null,null,null,null,null,null,null,null,"l. Other contraceptive methods - specify \n(Please provide the name of the other contraceptive(s) offered, by sector.)"]
["C2. Please note any comments about the commodities offered.",null,null,null,null,null,null,null,null,null,{"$f":"A78","v":"C2. Please note any comments about the commodities offered."},null,null,null,{"$f":"D78","v":0}]
["D. Policy (Commitment)"]
["D1. Is there a contraceptive security or reproductive health commodity security strategy or is contraceptive security explicitly included in a country strategy? (Please select from the dropdown list.)",null,null,null,null,null,null,null,{"$f":"A80","v":"D1. Is there a contraceptive security or reproductive health commodity security strategy or is contraceptive security explicitly included in a country strategy? (Please select from the dropdown list.)"}]
["IF NO, SKIP TO QUESTION D2."]
[null,"Strategy name",null,"Years Covered (including strategy updates)",null,"Is the strategy formally approved by the Ministry?","Is the contraceptive security strategy being implemented?",null,null,{"$f":"G82","v":"Is the contraceptive security strategy being implemented?"},{"$f":"B82","v":"Strategy name"},null,{"$f":"E82","v":0},null,null,null,null,null,{"$f":"D82","v":"Years Covered (including strategy updates)"}]
[null,"a",null,null,null,null,null,null,null,{"$f":"G83","v":0},{"$f":"B83","v":"a"},null,{"$f":"E83","v":0},null,null,null,null,null,{"$f":"D83","v":0}]
["D2. Are any family planning commodities subject to duties, import taxes, or other fees?",null,null,null,null,null,null,null,null,null,null,null,null,null,null,null,{"$f":"F84","v":0},{"$f":"A84","v":"D2. Are any family planning commodities subject to duties, import taxes, or other fees?"}]
[null,"a. If yes, for which sectors (public, NGO, social marketing, commercial)?",null,null,null,null,null,null,null,null,null,null,{"$f":"E85","v":0},{"$f":"E85","v":0},null,null,null,{"$f":"B85","v":"a. If yes, for which sectors (public, NGO, social marketing, commercial)?"}]
[null,"b. If yes, how much are the duties, taxes, or fees?",null,null,null,null,null,null,null,null,null,null,{"$f":"E86","v":0},{"$f":"E86","v":0},null,null,null,{"$f":"B86","v":"b. If yes, how much are the duties, taxes, or fees?"}]
["D3. Are there policies that hinder the ability of the private sector (commercial sector, NGOs, or social marketing) to provide contraceptive methods (for example: price controls, distribution limitations, taxes/duties, advertising bans, etc.)?",null,null,null,null,null,null,null,{"$f":"A87","v":"D3. Are there policies that hinder the ability of the private sector (commercial sector, NGOs, or social marketing) to provide contraceptive methods (for example: price controls, distribution limitations, taxes/duties, advertising bans, etc.)?"}]
[null,"a. If yes, describe the policies.",null,null,null,null,null,null,null,null,{"$f":"B88","v":"a. If yes, describe the policies."},null,null,null,{"$f":"D88","v":0}]
["D4. Are there policies that enable the private sector (commercial sector, NGOs, or social marketing) to provide contraceptive methods?",null,null,null,null,null,null,null,{"$f":"A89","v":"D4. Are there policies that enable the private sector (commercial sector, NGOs, or social marketing) to provide contraceptive methods?"}]
[null,"a. If yes, describe the policies.",null,null,null,null,null,null,null,null,{"$f":"B90","v":"a. If yes, describe the policies."},null,null,null,{"$f":"D90","v":0}]
["D5. Do policies or regulations exist that restrict who can sell or dispense particular contraceptive methods?\n",null,null,null,null,null,null,null,{"$f":"A91","v":"D5. Do policies or regulations exist that restrict who can sell or dispense particular contraceptive methods?\n"}]
[null,"Please note any restrictions in the following table."]
[null,"Contraceptive Method(s)",null,null,"Describe any public sector restriction on who is allowed to sell or dispense the method",null,"Describe any private sector restriction on who is allowed to sell or dispense the method",null,null,{"$f":"G93","v":"Describe any private sector restriction on who is allowed to sell or dispense the method"},null,null,null,null,null,{"$f":"B93","v":"Contraceptive Method(s)"},null,null,null,null,{"$f":"E93","v":"Describe any public sector restriction on who is allowed to sell or dispense the method"}]
[null,"a",null,null,null,null,null,null,null,{"$f":"G94","v":0},null,null,{"$f":"E94","v":0},null,null,{"$f":"C94","v":0},null,null,null,null,{"$f":"E94","v":0}]
[null,"b",null,null,null,null,null,null,null,{"$f":"G95","v":0},null,null,{"$f":"E95","v":0},null,null,{"$f":"C95","v":0},null,null,null,null,{"$f":"E95","v":0}]
[null,"c",null,null,null,null,null,null,null,{"$f":"G96","v":0},null,null,{"$f":"E96","v":0},null,null,{"$f":"C96","v":0},null,null,null,null,{"$f":"E96","v":0}]
[null,null,null,null,null,null,null,null,null,null,{"$f":"C97","v":0}]
["D6. Does the country have laws, regulations, or policies that make it difficult for the following sub-populations to access effective family planning services?",null,null,"Y/N","If yes, describe laws/regulations/policies affecting access ",null,null,"Are the rules/policies implemented?",null,null,{"$f":"A98","v":"D6. Does the country have laws, regulations, or policies that make it difficult for the following sub-populations to access effective family planning services?"},null,null,null,null,null,null,null,null,null,null,{"$f":"E98","v":"If yes, describe laws/regulations/policies affecting access "}]
[null,"a. Unmarried people",null,null,null,null,null,null,null,null,{"$f":"B99","v":"a. Unmarried people"},null,{"$f":"E99","v":0},null,null,null,null,null,null,null,null,{"$f":"E99","v":0}]
[null,"b. Young people",null,null,null,null,null,null,null,null,{"$f":"B100","v":"b. Young people"},null,{"$f":"E100","v":0},null,null,null,null,null,null,null,null,{"$f":"E100","v":0}]
[null,"c. Other",null,null,null,null,null,null,null,null,{"$f":"B101","v":"c. Other"},null,{"$f":"E101","v":0},null,null,null,null,null,null,null,null,{"$f":"E101","v":0}]
[null,null,null,null,null,null,null,null,null,null,{"$f":"C102","v":0}]
["D7. Are there charges* to the client in the public sector for family planning:\n*(This question refers to charges by policy, not under-the-table charges.)\n",null,null,null,null,null,null,null,null,null,null,null,null,null,null,null,null,null,null,null,null,null,null,{"$f":"A103","v":"D7. Are there charges* to the client in the public sector for family planning:\n*(This question refers to charges by policy, not under-the-table charges.)\n"}]
[null,"a. Services?",null,null,null,null,null,null,null,{"$f":"G104","v":0},null,null,null,null,null,null,null,null,null,null,null,null,null,null,{"$f":"B104","v":"a. Services?"}]
[null,"b. Commodities?",null,null,null,null,null,null,null,{"$f":"G105","v":0},null,null,null,null,null,null,null,null,null,null,null,null,null,null,{"$f":"B105","v":"b. Commodities?"}]
[null,"c. If yes, are there exemptions for people who cannot afford to pay?",null,null,null,null,null,null,null,{"$f":"G106","v":0},null,null,null,null,null,null,null,null,null,null,null,null,null,null,{"$f":"B106","v":"c. If yes, are there exemptions for people who cannot afford to pay?"}]
[null,null,"i. If yes, describe the exemptions.",null,null,null,null,null,null,null,{"$f":"C107","v":"i. If yes, describe the exemptions."},null,null,null,{"$f":"D107","v":0}]
["D8. Are the following contraceptives included in the country's National Essential Medicine List (NEML) or other equivalent priority list?",null,null,null,null,null,null,null,null,null,null,null,null,null,null,null,null,null,null,null,null,null,null,{"$f":"A108","v":"D8. Are the following contraceptives included in the country's National Essential Medicine List (NEML) or other equivalent priority list?"}]
[null,"a. Combined oral contraceptives",null,null,null,null,null,null,null,{"$f":"G109","v":0},null,null,null,null,null,null,null,null,null,null,null,null,null,null,{"$f":"B109","v":"a. Combined oral contraceptives"}]
[null,"b. Progestin-only pills",null,null,null,null,null,null,null,0,null,null,null,null,null,null,null,null,null,null,null,null,null,null,"b. Progestin-only pills"]
[null,"c. Hormonal injections",null,null,null,null,null,null,null,0,null,null,null,null,null,null,null,null,null,null,null,null,null,null,"c. Hormonal injections"]
[null,"d. Hormonal implants",null,null,null,null,null,null,null,0,null,null,null,null,null,null,null,null,null,null,null,null,null,null,"d. Hormonal implants"]
[null,"e. Intrauterine devices (IUDs)",null,null,null,null,null,null,null,0,null,null,null,null,null,null,null,null,null,null,null,null,null,null,"e. Intrauterine devices (IUDs)"]
[null,"f. Male condoms",null,null,null,null,null,null,null,0,null,null,null,null,null,null,null,null,null,null,null,null,null,null,"f. Male condoms"]
[null,"g. Female condoms",null,null,null,null,null,null,null,0,null,null,null,null,null,null,null,null,null,null,null,null,null,null,"g. Female condoms"]
[null,"h. Emergency contraceptive pills",null,null,null,null,null,null,null,0,null,null,null,null,null,null,null,null,null,null,null,null,null,null,"h. Emergency contraceptive pills"]
[null,"i. CycleBeads",null,null,null,null,null,null,null,{"$f":"G117","v":0},null,null,null,null,null,null,null,null,null,null,null,null,null,null,{"$f":"B117","v":"i. CycleBeads"}]
[null,"j. Any other contraceptive(s)?",null,null,null,null,null,null,null,0,null,null,null,null,null,null,null,null,null,null,null,null,null,null,"j. Any other contraceptive(s)?"]
[null,null,"i. Name of other contraceptive(s) on the list(s)",null,null,null,null,null,null,0,null,null,null,null,null,null,null,{"$f":"B119","v":0}]
["D9. What year(s) is the list(s) from?",null,null,null,null,null,null,null,null,0,null,null,null,null,null,null,null,{"$f":"B120","v":0}]
["D10. Name of the list(s)\n\n\n",null,null,null,null,null,null,null,null,null,{"$f":"A121","v":"D10. Name of the list(s)\n\n\n"},null,null,null,{"$f":"D121","v":0}]
["D11. Notes about the list(s)\n\n\n",null,null,null,null,null,null,null,null,null,{"$f":"A122","v":"D11. Notes about the list(s)\n\n\n"},null,null,null,{"$f":"D122","v":0}]
["D12.  Information on country's Poverty Reduction Strategy Paper (PRSP)\n",null,null,null,null,null,null,null,null,null,null,null,null,null,null,null,null,null,null,null,null,null,null,{"$f":"A123","v":"D12.  Information on country's Poverty Reduction Strategy Paper (PRSP)\n"}]
[null,"a. What year is the Poverty Reduction Strategy Paper from? (most recent actual PRSP on IMF's site [not progress or summary report])",null,null,null,null,null,null,null,{"$f":"G124","v":0},null,null,null,null,null,null,null,{"$f":"B124","v":"a. What year is the Poverty Reduction Strategy Paper from? (most recent actual PRSP on IMF's site [not progress or summary report])"}]
[null,"b. Is family planning or reproductive health a priority in the PRSP?",null,null,null,null,null,null,null,{"$f":"G125","v":0},null,null,null,null,null,null,null,null,null,null,null,null,null,null,{"$f":"B125","v":"b. Is family planning or reproductive health a priority in the PRSP?"}]
[null,"c. Is contraceptive security included in the PRSP?",null,null,null,null,null,null,null,{"$f":"G126","v":0},null,null,null,null,null,null,null,null,null,null,null,null,null,null,{"$f":"B126","v":"c. Is contraceptive security included in the PRSP?"}]
[null,"d. Is contraceptive prevalence rate (CPR) included as an indicator in the PRSP?",null,null,null,null,null,null,null,{"$f":"G127","v":0},null,null,null,null,null,null,null,null,null,null,null,null,null,null,{"$f":"B127","v":"d. Is contraceptive prevalence rate (CPR) included as an indicator in the PRSP?"}]
[null,"e. Are contraceptive supply indicators included in the PRSP?",null,null,null,null,null,null,null,{"$f":"G128","v":0},null,null,null,null,null,null,null,null,null,null,null,null,null,null,{"$f":"B128","v":"e. Are contraceptive supply indicators included in the PRSP?"}]
["\n\n\n","f. Notes about the Poverty Reduction Strategy Paper",null,null,null,null,null,null,null,null,{"$f":"B129","v":"f. Notes about the Poverty Reduction Strategy Paper"},null,null,null,{"$f":"D129","v":0}]
["E. Supply Chain (Capacity)"]
["E1. Have stockouts occurred for any contraceptive at the central* level in the last 12 months?  \n*(The central level refers to the central level warehouse for the public sector.)",null,null,null,null,null,null,null,null,{"$f":"G131","v":0},null,null,null,null,null,null,null,null,null,null,null,null,null,null,{"$f":"A131","v":"E1. Have stockouts occurred for any contraceptive at the central* level in the last 12 months?  \n*(The central level refers to the central level warehouse for the public sector.)"}]
["E2. In the last 12 months, has there ever been a stockout at the central level of any of the contraceptives offered in public sector facilities? (If a method is not intended to be offered in public sector facilities, please indicate that stockouts are not applicable (choose \"N/A\" from the dropdown list).)",null,null,null,null,null,null,null,null,null,null,null,null,null,null,null,null,null,null,null,null,null,null,{"$f":"A132","v":"E2. In the last 12 months, has there ever been a stockout at the central level of any of the contraceptives offered in public sector facilities? (If a method is not intended to be offered in public sector facilities, please indicate that stockouts are not applicable (choose \"N/A\" from the dropdown list).)"}]
[null,"a. Combined oral contraceptives",null,null,null,null,null,null,null,{"$f":"G133","v":0},null,null,null,null,null,null,null,null,null,null,null,null,null,null,{"$f":"B133","v":"a. Combined oral contraceptives"}]
[null,"b. Progestin-only pills",null,null,null,null,null,null,null,0,null,null,null,null,null,null,null,null,null,null,null,null,null,null,"b. Progestin-only pills"]
[null,"c. Hormonal injections",null,null,null,null,null,null,null,0,null,null,null,null,null,null,null,null,null,null,null,null,null,null,"c. Hormonal injections"]
[null,"d. Hormonal implants",null,null,null,null,null,null,null,0,null,null,null,null,null,null,null,null,null,null,null,null,null,null,"d. Hormonal implants"]
[null,"e. Intrauterine devices (IUDs)",null,null,null,null,null,null,null,0,null,null,null,null,null,null,null,null,null,null,null,null,null,null,"e. Intrauterine devices (IUDs)"]
[null,"f. Male condoms",null,null,null,null,null,null,null,0,null,null,null,null,null,null,null,null,null,null,null,null,null,null,"f. Male condoms"]
[null,"g. Female condoms",null,null,null,null,null,null,null,0,null,null,null,null,null,null,null,null,null,null,null,null,null,null,"g. Female condoms"]
[null,"h. Emergency contraceptive pills",null,null,null,null,null,null,null,0,null,null,null,null,null,null,null,null,null,null,null,null,null,null,"h. Emergency contraceptive pills"]
[null,"i. CycleBeads",null,null,null,null,null,null,null,0,null,null,null,null,null,null,null,null,null,null,null,null,null,null,"i. CycleBeads"]
[null,"j. Time period of review\n(mm/yy - mm/yy) (for example, 1/10-12/10) ",null,null,null,null,null,null,null,null,null,null,null,null,null,null,{"$f":"F142","v":0},{"$f":"B142","v":"j. Time period of review\n(mm/yy - mm/yy) (for example, 1/10-12/10) "}]
[null,"k. Data source\n(for example: Procurement Planning and Monitoring Report, Logistics Management Information System, periodic physical inventory, warehouse reports)",null,null,null,null,null,null,null,null,null,null,null,null,null,null,{"$f":"F143","v":0},{"$f":"B143","v":"k. Data source\n(for example: Procurement Planning and Monitoring Report, Logistics Management Information System, periodic physical inventory, warehouse reports)"}]
["E3. Are stockouts a large problem in your country at the following levels? (i.e., Are they common or do they tend to last for a long time?)\n\n"]
[null,"a. service delivery point level (i.e., public sector health facilities)",null,null,null,null,null,null,null,{"$f":"G145","v":0},null,null,null,null,null,null,null,null,null,null,null,null,null,null,{"$f":"B145","v":"a. service delivery point level (i.e., public sector health facilities)"}]
[null,"b. central level (i.e., central level warehouse for the public sector)",null,null,null,null,null,null,null,{"$f":"G146","v":0},null,null,null,null,null,null,null,null,null,null,null,null,null,null,{"$f":"B146","v":"b. central level (i.e., central level warehouse for the public sector)"}]
["F. Please note any overall comments about challenges and/or successes with contraceptive security in your country.\n\n",null,null,null,null,null,null,null,null,null,{"$f":"A147","v":"F. Please note any overall comments about challenges and/or successes with contraceptive security in your country.\n\n"},null,null,null,{"$f":"D147","v":0}]
[]
[null,null,null,null,null,null,null,null,null,null,null,null,null,null,null,null,null,null,null,null,null,null,null,{"$f":"A149","v":0}]

{"sheet":"LINKED ALL countries2011filter ","index":3,"n_rows":126,"n_cols":217,"rows_kept":126,"cut":false,"hidden":true,"merged":[[0,16,0,17],[0,198,0,201],[0,207,0,208],[0,19,0,20],[0,28,0,32],[0,84,0,87],[0,89,0,90],[0,138,0,143],[0,151,0,161],[0,3,0,5],[0,6,0,7],[0,8,0,10],[0,11,0,13],[0,14,0,15]]}
[null,null,null,"Note: Click on \"1\" in the top lefthand corner to see just the main questions and \"2\" to see all of the questions. (This toggle is above and to the left of cell A1.)",null,null,"To jump to the Introduction sheet, click here.",null,"The CS Indicators are presented in the following sections:\n(To jump to a section, click on it here): ",null,null,"A. leadership & cooordination",null,null,"B. finance & procurement ",null,"C. commodities",null,"D. policies ","E. supply chain",null,null,null,null,null,null,null,null,"Note: Click on \"1\" in the top lefthand corner to see just the main questions and \"2\" to see all of the questions. (This toggle is above and to the left of cell A1.)",null,null,null,null,null,null,null,null,null,null,null,"To jump to the Introduction sheet, click here.",null,null,null,null,null,null,null,null,null,null,null,null,null,null,null,null,null,null,null,null,null,null,null,null,null,null,null,null,null,null,null,null,null,null,null,null,null,null,null,null,null,null,null,"Note: Click on \"1\" in the top lefthand corner to see just the main questions and \"2\" to see all of the questions. (This toggle is above and to the left of cell A1.)",null,null,null,null,"To jump to the Introduction sheet, click here.",null,null,null,null,null,null,null,null,null,null,null,null,null,null,null,null,null,null,null,null,null,null,null,null,null,null,null,null,null,null,null,null,null,null,null,null,null,null,null,null,null,null,null,null,null,null,null,null,"Note: Click on \"1\" in the top lefthand corner to see just the main questions and \"2\" to see all of the questions. (This toggle is above and to the left of cell A1.)",null,null,null,null,null,null,null,null,"To jump to the Introduction sheet, click here.",null,null,null,null,null,null,null,null,null,null,null,null,null,null,null,null,null,null,null,null,null,null,null,null,null,null,null,null,null,null,null,null,null,null,null,null,null,null,null,null,null,null,null,null,null,null,null,null,null,null,"Note: Click on \"1\" in the top lefthand corner to see just the main questions and \"2\" to see all of the questions. (This toggle is above and to the left of cell A1.)",null,null,null,null,null,null,null,null,"To jump to the Introduction sheet, click here."]
["Contraceptive Security Indicators Data 2011\n\nAll Surveyed Countries\n\nwith data filters and grouping\n\n\n\n\n","A. Leadership and Coordination","A1. Is there a national committee that works on contraceptive security?","A1a. What is the name of the committee?","A2. Are the following organizations represented on the committee?","A2a. Are social marketing organizations on the committee?","A2ai. Names of social marketing organizations on the committee","A2b. Are NGOs on the committee? (e.g. service delivery, advocacy, Planned Parenthood afiliate, Marie Stopes afiliate, faith-based organizations)","A2bi. Names of NGOs on the committee","A2c. Are commercial sector organizations on the committee? (e.g. pharmacy associations, manufacturers)","A2ci. Names of commercial sector organizations on the committee","A2d. Are donors on the committee?","A2di. Names of donors on the committee","A2e. Are UN agencies on the committee?","A2ei. Names of UN agencies on the committee","A2f. Are Ministry of Health units on the committee? (e.g. logistics, RH, FP, MCH, HIV/AIDS, pharmacy units)","A2fi. Names of Ministry of Health units on the committee","A2g. Is the Central Medical Store or Central Warehouse on the committee?","A2gi. Specify Central Medical Store or Central Warehouse on the committee","A2h. Is the Ministry of Finance or Ministry of Planning on the committee?","A2hi. Specify Ministry of Finance or Planning on the committee","A2i. Are there any other organizations on the committee? (e.g. partners)","A2ii. Specify other organizaitons on the committee","A3. How many times did the committee meet during the last year? (responses from dropdown list choices: 0, 1-2, 3-5, or 6+)","A4. Does committee have legal status?","A5. Is there a Contraceptive Security \"champion\"? (someone who consistently brings up and advocates for contraceptive supplies)","A5a. \"Champion's\" organization","A5b. \"Champion's\" job title","B. Finance and Procurement (Capital)","B1a. What is the beginning month of the country's fiscal year?","B1b. What is the ending month of the country's fiscal year?","B2. Estimated dollar value of contraceptives needed to be procured for public sector for the most recent complete fiscal year (in US$) (e.g., to cover the needs for the '09-'10 fiscal year)","B3a. When was the last forecast/quantification conducted? (mm/yy)","B3b. Which organization conducted the last quantification?","B4. Is there a government budget line item for the procurement of contraceptives?","B5. Were government funds allocated for contraceptive procurement  for the public sector in the most recent complete fiscal year? (This refers to funds planned to be spent on contraceptives, whether or not they ended up being spent.)","B6. What was the amount of government funds allocated for contraceptive procurement? (in US$) \n(i.e., funds originally designated for contraceptives, whether or not they ended up being spent on them)","B6i. Time period when government allocations were supposed to be spent (mm/yy-mm/yy)","B6ii. Data source for information on  government allocations","B6iii. Comments regarding government allocations","B7. Were government funds spent on contraceptive procurement for the public sector in the most recent complete fiscal year? (including internally generated funds, basket funds, World Bank credits or loans, and other donor funds given to the government)","B8a. Did the government spend internally generated funds for contraceptive procurement for the public sector ","B8ai. Specify source(s) of internally generated funds spent (e.g., from taxes or user fees)","B8aii. What was the amount of internally generated funds spent on contraceptive procurement for the public sector? (in US$)","B8aiii. Time period for internally generated funds  (mm/yy-mm/yy)","B8aiv. Data source for information on internally generated funds","B8av. Comments regarding internally generated funds","B8b. Did the government spend other government funds for contraceptive procurement for the public sector (e.g., basket funds, World Bank credits or loans, or other funds donors gave to the government [e.g., direct budget support])?","B8bi. Specify source(s) of other government funds spent (e.g., basket funding or specific donor)","B8bii. What was the amount of these other government funds spent on contraceptive procurement for the public sector? (in US$)","B8biii. Time period for these other government funds (mm/yy-mm/yy)","B8biv. Data source for information on these other government funds","B8bv. Comments regarding these other government funds","B8c. In total, how much did the government spend on contraceptive procurement for the public sector? (in US$)\n\nThis will auto-calculate. (It will sum internally generated funds and other government funds.)\n\n","B8ci. Comments on total government funds spent on contraceptive procurement for the public sector","B9. In-kind and Global Fund donations","B9a. Were in-kind donations of contraceptives provided for the public sector?","B9ai. Source(s) of in-kind donations","B9aii. What was the value of  in-kind donations of contraceptives for the public sector? (in US$)","B9aiii. Time period for in-kind donations (mm/yy-mm/yy)","B9aiv. Data source for information on in-kind donations","B9av. Comments regarding in-kind donations","B9b. Were Global Fund donations used to procure condoms?","B9bi. What was the amount spent on Global Fund donations used to procure condoms? (in US$)","B9bii. Time period for Global Fund condom procurements (mm/yy-mm/yy)","B9biii. Data source for information on Global Fund condom procurements","B9biv. Comments regarding Global Fund condom procurements","B9c. Were Global Fund donations used to procure contraceptives besides condoms?","B9ci. What was the amount spent on Global Fund donations used to procure contraceptives besides condoms? (in US$)","B9cii. Time period for Global Fund non-condom contraceptive procurements (mm/yy-mm/yy)","B9ciii. Data source for information on Global Fund non-condom contraceptive procurements","B9civ. Comments regarding Global Fund non-condom contraceptive procurements","B9d. Total value of in-kind donations and Global Fund donations spent on contraceptive procurement for the public sector\n\nThis will auto-calculate. (It will sum in-kind donations and all Global Fund procurements.)","B9di. Comments regarding total value of in-kind donations and Global Fund donations spent on contraceptive procurement for the public sector","B10. Government share of spending on contraceptive procurement for the public sector - \nOf the total amount spent on contraceptives for the public sector in the most recent complete fiscal year (including government and donor spending), what percent was covered by government funds (including internally generated funds, basket funds, World Bank credits or loans, and other funds given to the government)?\n\nThis will autocalculate -Total government spending (Question B8c) /\nGrand total of all spending for public sector contraceptives from the government and donors (Questions B8c+B9d)","B10a. Comments about government share of spending on contraceptive procurement for the public sector","B11. Total expenditures on public sector contraceptives as percent of amount that needed to be procured -\nOf the estimated value of the contraceptives needed to be procured for the public sector for the most recent complete fiscal year, what percent was provided by any source (whether government or donor)? \n\nThis will auto-calculate. (It contains the following formula: Grand total of all spending for public sector contraceptives from the government and donors (Questions B8c+B9d) / Value of estimated need for procurement (Question B2))","B11a. Comments about total expenditures on public sector contraceptives as percent of amount that needed to be procured","B12. If B11 did not calculate automatically, please answer the following question: \n\nWas there a funding gap for the public sector in the last complete fiscal year (e.g., 09-'10 fiscal year)?","B12a. Comments about B12 (whether there was a funding gap) ","B13. If the government financed any contraceptive procurement in the most recent complete fiscal year, which entity conducted the procurement(s)?\n\n(responses from dropdown list choices)","B13a. Specify entity that conducted procurement ","B13ai. Is this procurement entity a parastatal?","B14. Comments about finance and procurement","C. Commodities","C1. Are the following contraceptive methods offered in commercial sector facilities?\n\n(Please indicate which methods are intended to be offered. This question is not asking whether the method is in stock.)","C1a. Combined oral contraceptives offered in commercial sector facilities?","C1b. Progestin-only pills offered in commercial sector facilities?","C1c. Hormonal injections offered in commercial sector facilities?","C1d. Hormonal implants offered in commercial sector facilities?","C1e. Intrauterine devices (IUDs) offered in commercial sector facilities?","C1f. Male condoms offered in commercial sector facilities?","C1g. Female condoms offered in commercial sector facilities?","C1h. Emergency contraceptive pills offered in commercial sector facilities?","C1i. Long-acting permanent method for males (e.g., vasectomy) offered in commercial sector facilities?","C1j. Long-acting permanent method for females (e.g., tubal ligation) offered in commercial sector facilities?","C1k. CycleBeads offered in commercial sector facilities?","C1l. Specify other contraceptive(s) offered in commercial sector facilities","C2. Are the following contraceptive methods offered in public sector facilities?\n\n(Please indicate which methods are intended to be offered. This question is not asking whether the method is in stock.)","C2a. Combined oral contraceptives offered in public sector facilities?","C2b. Progestin-only pills offered in public sector facilities?","C2c. Hormonal injections offered in public sector facilities?","C2d. Hormonal implants offered in public sector facilities?","C2e. Intrauterine devices (IUDs) offered in public sector facilities?","C2f. Male condoms offered in public sector facilities?","C2g. Female condoms offered in public sector facilities?","C2h. Emergency contraceptive pills offered in public sector facilities?","C2i. Long-acting permanent method for males (e.g., vasectomy) offered in public sector facilities?","C2j. Long-acting permanent method for females (e.g., tubal ligation) offered in public sector facilities?","C2k. CycleBeads offered in public sector facilities?","C2l. Specify other contraceptive(s) offered in public sector facilities","C3. Are the following contraceptive methods offered in NGO facilities?\n\n(Please indicate which methods are intended to be offered. This question is not asking whether the method is in stock.)","C3a. Combined oral contraceptives offered in NGO facilities?","C3b. Progestin-only pills offered in NGO facilities?","C3c. Hormonal injections offered in NGO facilities?","C3d. Hormonal implants offered in NGO facilities?","C3e. Intrauterine devices (IUDs) offered in NGO facilities?","C3f. Male condoms offered in NGO facilities?","C3g. Female condoms offered in NGO facilities?","C3h. Emergency contraceptive pills offered in NGO facilities?","C3i. Long-acting permanent method for males (e.g., vasectomy) offered in NGO sector facilities?","C3j. Long-acting permanent method for females (e.g., tubal ligation) offered in NGO sector facilities?","C3k. CycleBeads offered in NGO sector facilities?","C3l. Specify other contraceptive(s) offered in NGO sector facilities","C4. Are the following contraceptive methods offered through social marketing?\n\n(Please indicate which methods are intended to be offered. This question is not asking whether the method is in stock.)","C4a. Combined oral contraceptives  offered through social marketing?","C4b. Progestin-only pills offered through social marketing?","C4c. Hormonal injections offered through social marketing?","C4d. Hormonal implants offered through social marketing?","C4e. Intrauterine devices (IUDs) offered through social marketing?","C4f. Male condoms offered through social marketing?","C4g. Female condoms offered through social marketing?","C4h. Emergency contraceptive pills offered through social marketing?","C4i. Long-acting permanent method for males (e.g., vasectomy) offered through social marketing?","C4j. Long-acting permanent method for females (e.g., tubal ligation) offered through social marketing?","C4k. CycleBeads offered through social marketing?","C4l. Specify other contraceptive(s) offered through social marketing","C5. Comments about methods offered","D. Policies (Commitment)","D1. Is there a contraceptive security or reproductive health commodity security strategy or is contraceptive security explicitly included in a country strategy?","D1a. Strategy name","D1b. Years strategy covers (including strategy updates)","D1c. Is the strategy formally approved by the Ministry?","D1d. Is the contraceptive security strategy being implemented?","D2. Are any family planning commodities subject to duties, import taxes, or other fees?","D2a. For which sector(s) (public, NGO, social marketing, commercial sector) are there duties, taxes, or fees?","D2b. How much are the duties, taxes, or fees?","D3. Are there policies that hinder the ability of the private sector (commercial sector, NGOs, or social marketing) to provide contraceptive methods? (e.g. price controls, distribution limitations, taxes/duties, advertising bans)","D3a. Description of policies hindering the private sector","D4. Are there policies that enable the private sector (commercial sector, NGOs, or social marketing) to provide contraceptive methods?","D4a. Description of policies enabling the private sector","D5. Do policies or regulations exist that restrict who can dispense or sell particular contraceptive methods?","D5a. Name of contraceptive method 1","D5ai. Description of public sector restriction regarding who is allowed to dispense or sell method 1","D5aii. Description of private sector restriction regarding who is allowed to dispense or sell method 1","D5b. Name of contraceptive method 2","D5bi. Description of public sector restriction regarding who is allowed to dispense or sell method 2","D5bii. Description of private sector restriction regarding who is allowed to dispense or sell method 2","D5c. Name of contraceptive method 3","D5ci. Description of public sector restriction regarding who is allowed to dispense or sell method 3","D5cii. Description of private sector restriction regarding who is allowed to dispense or sell method 3","D6. Does the country have laws, regulations, or policies that make it difficult for the following sub-populations to access effective family planning services?","D6a. Laws/regulations/policies limiting access to family planning services for unmarried people?","D6ai. Description of the rules/policies limiting access for unmarried people","D6aii. Are the rules/policies limiting access for unmarried people implemented?","D6b. Laws/regulations/policies limiting access to family planning for young people?","D6bi. Description of the rules or policies limiting access for young people","D6bii. Are the rules/policies limiting access for young people implemented?","D6c. Laws/regulations/policies limiting access to family planning services to other sub-populations?","D6ci. Description of the rules or policies limiting access for other sub-populations","D6cii. Are the rules/policies limiting access for other sub-populations implemented?","D7. Are there charges to the client in the public sector for family planning services or commodities? (This question refers to charges by policy, not under-the-table charges.)","D7a. Charges to client in public sector for family planning services?","D7b. Charges to client in public sector for family planning commodities?","D7c. If there are charges, are there exemptions for people who cannot afford to pay?","D7ci. Description of exemptions","D8. Inclusion of contraceptives in country's National Essential Medicine List (NEML) or other equivalent priority list","D8a. Are combined oral contraceptives included on the NEML?","D8b. Are progestin-only pills included on the NEML?","D8c. Are hormonal injections included on the NEML?","D8d. Are hormonal implants included on the NEML?","D8e. Are intrauterine devices (IUDs) included on the NEML?","D8f. Are male condoms included on the NEML?","D8g. Are female condoms included on the NEML?","D8h. Are emergency contraceptive pills included on the NEML?","D8i. Are CycleBeads included on the NEML?","D8j. Are any other contraceptives included on the NEML?","D8ji. Name of other contraceptive on NEML","D9. Year of National Essential Medicine List (NEML)","D10. Name of national essential medicine list ","D11. Notes about the NEML","D12. Information in country's Poverty Reduction Strategy Paper (PRSP)","D12a. Year of Poverty Reduction Strategy Paper (PRSP)\n(most recent actual PRSP on IMF's site (not progress or summary report)","D12b. Is family planning or reproductive health a priority in the PRSP?","D12c. Is contraceptive security included in the PRSP?","D12d. Is contraceptive prevalence rate (CPR) included as an indicator in the PRSP?","D12e. Are contraceptive supply indicators included in the PRSP?","D12f. Notes about the PRSP","E. Supply Chain (Capacity)","E1. Have stockouts occurred for any contraceptive at the central level in the last 12 months?\n\n(The central level refers to the central level warehouse for the public sector.)","E2. In the last 12 months, has there ever been a stockout at the central level of any of the following contraceptives offered in public sector facilities?\n\n(If a method is not intended to be offered in public sector facilities, in most cases stockouts will be not applicable (\"N/A\").)","E2a. Combined oral contraceptives stocked out at central level in last 12 months?","E2b. Progestin-only pills stocked out at central level in last 12 months?","E2c. Hormonal injections stocked out at central level in last 12 months?","E2d. Hormonal implants stocked out at central level in last 12 months?","E2e. Intrauterine devices (IUDs) stocked out at central level in last 12 months?","E2f. Male condoms stocked out at central level in last 12 months?","E2g. Female condoms stocked out at central level in last 12 months?","E2h. Emergency contraceptive pills stocked out at central level in last 12 months?","E2i. CycleBeads stocked out at central level in last 12 months?","E2j. Time period of stockout information","E2k. Data source for stockout information","E3. Are stockouts a large problem in your country at the following levels? \n(i.e., Are they common or do they tend to last for a long time?)","E3a. Are stockouts a large problem at the service delivery point level? \n(i.e., public sector health facilities)","E3b. Are stockouts a large problem at the central level? \n(i.e., central level warehouse for the public sector)","F. Overall comments about challenges or successes with contraceptive security in your country","Region"]
["Afghanistan ",null,{"$f":"IF(ISBLANK('Afghanistan 2011'!$H$12),\"\",'Afghanistan 2011'!$H$12)","v":"Yes"},{"$f":"IF(ISBLANK('Afghanistan 2011'!$D$13),\"\",'Afghanistan 2011'!$D$13)","v":"Contraceptive Security Sub-Committee of the Coordinated Procurement and Distribution Committee at the MoPH"},null,{"$f":"IF(ISBLANK('Afghanistan 2011'!$D$15),\"\",'Afghanistan 2011'!$D$15)","v":"Yes"},{"$f":"IF(ISBLANK('Afghanistan 2011'!$F$15),\"\",'Afghanistan 2011'!$F$15)","v":"Futures Group/COMPRI-A Project, Afghanistan Social Marketing Organization (ASMO)"},{"$f":"IF(ISBLANK('Afghanistan 2011'!$D$16),\"\",'Afghanistan 2011'!$D$16)","v":"Yes"},{"$f":"IF(ISBLANK('Afghanistan 2011'!$F$16),\"\",'Afghanistan 2011'!$F$16)","v":"Marie Stopes, ASMO"},{"$f":"IF(ISBLANK('Afghanistan 2011'!$D$17),\"\",'Afghanistan 2011'!$D$17)","v":"No"},{"$f":"IF(ISBLANK('Afghanistan 2011'!$F$17),\"\",'Afghanistan 2011'!$F$17)","v":""},{"$f":"IF(ISBLANK('Afghanistan 2011'!$D$18),\"\",'Afghanistan 2011'!$D$18)","v":"No"},{"$f":"IF(ISBLANK('Afghanistan 2011'!$F$18),\"\",'Afghanistan 2011'!$F$18)","v":""},{"$f":"IF(ISBLANK('Afghanistan 2011'!$D$19),\"\",'Afghanistan 2011'!$D$19)","v":"Yes"},{"$f":"IF(ISBLANK('Afghanistan 2011'!$F$19),\"\",'Afghanistan 2011'!$F$19)","v":"UNFPA"},{"$f":"IF(ISBLANK('Afghanistan 2011'!$D$20),\"\",'Afghanistan 2011'!$D$20)","v":"Yes"},{"$f":"IF(ISBLANK('Afghanistan 2011'!$F$20),\"\",'Afghanistan 2011'!$F$20)","v":"Reproductive Health Department"},{"$f":"IF(ISBLANK('Afghanistan 2011'!$D$21),\"\",'Afghanistan 2011'!$D$21)","v":"Yes"},{"$f":"IF(ISBLANK('Afghanistan 2011'!$F$21),\"\",'Afghanistan 2011'!$F$21)","v":"Central Medical Store"},{"$f":"IF(ISBLANK('Afghanistan 2011'!$D$22),\"\",'Afghanistan 2011'!$D$22)","v":"No"},{"$f":"IF(ISBLANK('Afghanistan 2011'!$F$22),\"\",'Afghanistan 2011'!$F$22)","v":""},{"$f":"IF(ISBLANK('Afghanistan 2011'!$D$23),\"\",'Afghanistan 2011'!$D$23)","v":""},{"$f":"IF(ISBLANK('Afghanistan 2011'!$F$23),\"\",'Afghanistan 2011'!$F$23)","v":""},{"$f":"IF(ISBLANK('Afghanistan 2011'!$H$24),\"\",'Afghanistan 2011'!$H$24)","v":"1-2 times"},{"$f":"IF(ISBLANK('Afghanistan 2011'!$H$25),\"\",'Afghanistan 2011'!$H$25)","v":"No"},{"$f":"IF(ISBLANK('Afghanistan 2011'!$D$26),\"\",'Afghanistan 2011'!$D$26)","v":"No"},{"$f":"IF(ISBLANK('Afghanistan 2011'!$F$26),\"\",'Afghanistan 2011'!$F$26)","v":""},{"$f":"IF(ISBLANK('Afghanistan 2011'!$H$26),\"\",'Afghanistan 2011'!$H$26)","v":""},null,{"$f":"IF(ISBLANK('Afghanistan 2011'!$F$28),\"\",'Afghanistan 2011'!$F$28)","v":"March"},{"$f":"IF(ISBLANK('Afghanistan 2011'!$H$28),\"\",'Afghanistan 2011'!$H$28)","v":"February"},{"$f":"IF(ISBLANK('Afghanistan 2011'!$G$29),\"\",'Afghanistan 2011'!$G$29)","v":"N/A"},{"$f":"IF(ISBLANK('Afghanistan 2011'!$E$30),\"\",'Afghanistan 2011'!$E$30)","v":"N/A"},{"$f":"IF(ISBLANK('Afghanistan 2011'!$G$30),\"\",'Afghanistan 2011'!$G$30)","v":"N/A"},{"$f":"IF(ISBLANK('Afghanistan 2011'!$H$31),\"\",'Afghanistan 2011'!$H$31)","v":"No"},{"$f":"IF(ISBLANK('Afghanistan 2011'!$H$32),\"\",'Afghanistan 2011'!$H$32)","v":"Don't know"},{"$f":"IF(ISBLANK('Afghanistan 2011'!$E$35),\"\",'Afghanistan 2011'!$E$35)","v":"Don't know"},{"$f":"IF(ISBLANK('Afghanistan 2011'!$F$35),\"\",'Afghanistan 2011'!$F$35)","v":"01/10-12/10"},{"$f":"IF(ISBLANK('Afghanistan 2011'!$G$35),\"\",'Afghanistan 2011'!$G$35)","v":""},{"$f":"IF(ISBLANK('Afghanistan 2011'!$H$35),\"\",'Afghanistan 2011'!$H$35)","v":"Afghanistan just completed its first National Health Account (NHA) and will be able to provide this data in the future."},{"$f":"IF(ISBLANK('Afghanistan 2011'!$H$37),\"\",'Afghanistan 2011'!$H$37)","v":"Don't know"},{"$f":"IF(ISBLANK('Afghanistan 2011'!$D$40),\"\",'Afghanistan 2011'!$D$40)","v":"Don't know"},{"$f":"IF(ISBLANK('Afghanistan 2011'!$D$41),\"\",'Afghanistan 2011'!$D$41)","v":"Don't know"},{"$f":"IF(ISBLANK('Afghanistan 2011'!$E$40),\"\",'Afghanistan 2011'!$E$40)","v":"Don't know"},{"$f":"IF(ISBLANK('Afghanistan 2011'!$F$40),\"\",'Afghanistan 2011'!$F$40)","v":"01/10-12/10"},{"$f":"IF(ISBLANK('Afghanistan 2011'!$G$40),\"\",'Afghanistan 2011'!$G$40)","v":""},{"$f":"IF(ISBLANK('Afghanistan 2011'!$H$40),\"\",'Afghanistan 2011'!$H$40)","v":"Most likely $0"},{"$f":"IF(ISBLANK('Afghanistan 2011'!$D$42),\"\",'Afghanistan 2011'!$D$42)","v":"No"},{"$f":"IF(ISBLANK('Afghanistan 2011'!$D$43),\"\",'Afghanistan 2011'!$D$43)","v":"N/A"},{"$f":"IF(ISBLANK('Afghanistan 2011'!$E$42),\"\",'Afghanistan 2011'!$E$42)","v":0},{"$f":"IF(ISBLANK('Afghanistan 2011'!$F$42),\"\",'Afghanistan 2011'!$F$42)","v":"01/10-12/10"},{"$f":"IF(ISBLANK('Afghanistan 2011'!$G$42),\"\",'Afghanistan 2011'!$G$42)","v":""},{"$f":"IF(ISBLANK('Afghanistan 2011'!$H$42),\"\",'Afghanistan 2011'!$H$42)","v":""},{"$f":"IF(ISBLANK('Afghanistan 2011'!$E$44),\"\",'Afghanistan 2011'!$E$44)","v":"Don't know"},{"$f":"IF(ISBLANK('Afghanistan 2011'!$H$44),\"\",'Afghanistan 2011'!$H$44)","v":""},null,{"$f":"IF(ISBLANK('Afghanistan 2011'!$D$48),\"\",'Afghanistan 2011'!$D$48)","v":"Yes"},{"$f":"IF(ISBLANK('Afghanistan 2011'!$D$49),\"\",'Afghanistan 2011'!$D$49)","v":"USAID"},{"$f":"IF(ISBLANK('Afghanistan 2011'!$E$48),\"\",'Afghanistan 2011'!$E$48)","v":"Don't know"},{"$f":"IF(ISBLANK('Afghanistan 2011'!$F$48),\"\",'Afghanistan 2011'!$F$48)","v":"01/10-12/10"},{"$f":"IF(ISBLANK('Afghanistan 2011'!$G$48),\"\",'Afghanistan 2011'!$G$48)","v":""},{"$f":"IF(ISBLANK('Afghanistan 2011'!$H$48),\"\",'Afghanistan 2011'!$H$48)","v":"In 2009 UNFPA procured $100,854 worth of contraceptives for the MoPH but did not receive a request in 2010."},{"$f":"IF(ISBLANK('Afghanistan 2011'!$D$50),\"\",'Afghanistan 2011'!$D$50)","v":"No"},{"$f":"IF(ISBLANK('Afghanistan 2011'!$E$50),\"\",'Afghanistan 2011'!$E$50)","v":0},{"$f":"IF(ISBLANK('Afghanistan 2011'!$F$50),\"\",'Afghanistan 2011'!$F$50)","v":"01/10-12/10"},{"$f":"IF(ISBLANK('Afghanistan 2011'!$G$50),\"\",'Afghanistan 2011'!$G$50)","v":""},{"$f":"IF(ISBLANK('Afghanistan 2011'!$H$50),\"\",'Afghanistan 2011'!$H$50)","v":""},{"$f":"IF(ISBLANK('Afghanistan 2011'!$D$51),\"\",'Afghanistan 2011'!$D$51)","v":"No"},{"$f":"IF(ISBLANK('Afghanistan 2011'!$E$51),\"\",'Afghanistan 2011'!$E$51)","v":0},{"$f":"IF(ISBLANK('Afghanistan 2011'!$F$51),\"\",'Afghanistan 2011'!$F$51)","v":"01/10-12/10"},{"$f":"IF(ISBLANK('Afghanistan 2011'!$G$51),\"\",'Afghanistan 2011'!$G$51)","v":""},{"$f":"IF(ISBLANK('Afghanistan 2011'!$H$51),\"\",'Afghanistan 2011'!$H$51)","v":""},{"$f":"IF(ISBLANK('Afghanistan 2011'!$E$52),\"\",'Afghanistan 2011'!$E$52)","v":"Don't know"},{"$f":"IF(ISBLANK('Afghanistan 2011'!$H$52),\"\",'Afghanistan 2011'!$H$52)","v":""},{"$f":"IF(ISBLANK('Afghanistan 2011'!$F$55),\"\",'Afghanistan 2011'!$F$55)","v":"Don't know"},{"$f":"IF(ISBLANK('Afghanistan 2011'!$G$55),\"\",'Afghanistan 2011'!$G$55)","v":""},{"$f":"IF(ISBLANK('Afghanistan 2011'!$F$56),\"\",'Afghanistan 2011'!$F$56)","v":"Don't know"},{"$f":"IF(ISBLANK('Afghanistan 2011'!$G$56),\"\",'Afghanistan 2011'!$G$56)","v":""},{"$f":"IF(ISBLANK('Afghanistan 2011'!$F$57),\"\",'Afghanistan 2011'!$F$57)","v":"Don't know"},{"$f":"IF(ISBLANK('Afghanistan 2011'!$G$57),\"\",'Afghanistan 2011'!$G$57)","v":""},{"$f":"IF(ISBLANK('Afghanistan 2011'!$F$59),\"\",'Afghanistan 2011'!$F$59)","v":"N/A"},{"$f":"IF(ISBLANK('Afghanistan 2011'!$F$60),\"\",'Afghanistan 2011'!$F$60)","v":"N/A"},{"$f":"IF(ISBLANK('Afghanistan 2011'!$F$61),\"\",'Afghanistan 2011'!$F$61)","v":"N/A"},{"$f":"IF(ISBLANK('Afghanistan 2011'!$D$62),\"\",'Afghanistan 2011'!$D$62)","v":"World Bank & EU include a pharmaceutical line item in their budgets to NGOs who provide health services. These NGOs purchase pharmaceuticals, including contraceptives, for the health facilities they operate. "},null,null,{"$f":"IF(ISBLANK('Afghanistan 2011'!$D$66),\"\",'Afghanistan 2011'!$D$66)","v":"Yes"},{"$f":"IF(ISBLANK('Afghanistan 2011'!$D$67),\"\",'Afghanistan 2011'!$D$67)","v":"Yes"},{"$f":"IF(ISBLANK('Afghanistan 2011'!$D$68),\"\",'Afghanistan 2011'!$D$68)","v":"Yes"},{"$f":"IF(ISBLANK('Afghanistan 2011'!$D$69),\"\",'Afghanistan 2011'!$D$69)","v":"No"},{"$f":"IF(ISBLANK('Afghanistan 2011'!$D$70),\"\",'Afghanistan 2011'!$D$70)","v":"Yes"},{"$f":"IF(ISBLANK('Afghanistan 2011'!$D$71),\"\",'Afghanistan 2011'!$D$71)","v":"Yes"},{"$f":"IF(ISBLANK('Afghanistan 2011'!$D$72),\"\",'Afghanistan 2011'!$D$72)","v":"No"},{"$f":"IF(ISBLANK('Afghanistan 2011'!$D$73),\"\",'Afghanistan 2011'!$D$73)","v":"No"},{"$f":"IF(ISBLANK('Afghanistan 2011'!$D$74),\"\",'Afghanistan 2011'!$D$74)","v":"No"},{"$f":"IF(ISBLANK('Afghanistan 2011'!$D$75),\"\",'Afghanistan 2011'!$D$75)","v":"Yes"},{"$f":"IF(ISBLANK('Afghanistan 2011'!$D$76),\"\",'Afghanistan 2011'!$D$76)","v":"No"},{"$f":"IF(ISBLANK('Afghanistan 2011'!$D$77),\"\",'Afghanistan 2011'!$D$77)","v":"No"},null,{"$f":"IF(ISBLANK('Afghanistan 2011'!$F$66),\"\",'Afghanistan 2011'!$F$66)","v":"Yes"},{"$f":"IF(ISBLANK('Afghanistan 2011'!$F$67),\"\",'Afghanistan 2011'!$F$67)","v":"Yes"},{"$f":"IF(ISBLANK('Afghanistan 2011'!$F$68),\"\",'Afghanistan 2011'!$F$68)","v":"Yes"},{"$f":"IF(ISBLANK('Afghanistan 2011'!$F$69),\"\",'Afghanistan 2011'!$F$69)","v":"No"},{"$f":"IF(ISBLANK('Afghanistan 2011'!$F$70),\"\",'Afghanistan 2011'!$F$70)","v":"Yes"},{"$f":"IF(ISBLANK('Afghanistan 2011'!$F$71),\"\",'Afghanistan 2011'!$F$71)","v":"Yes"},{"$f":"IF(ISBLANK('Afghanistan 2011'!$F$72),\"\",'Afghanistan 2011'!$F$72)","v":"No"},{"$f":"IF(ISBLANK('Afghanistan 2011'!$F$73),\"\",'Afghanistan 2011'!$F$73)","v":"Don't know"},{"$f":"IF(ISBLANK('Afghanistan 2011'!$F$74),\"\",'Afghanistan 2011'!$F$74)","v":"No"},{"$f":"IF(ISBLANK('Afghanistan 2011'!$F$75),\"\",'Afghanistan 2011'!$F$75)","v":"Yes"},{"$f":"IF(ISBLANK('Afghanistan 2011'!$F$76),\"\",'Afghanistan 2011'!$F$76)","v":"No"},{"$f":"IF(ISBLANK('Afghanistan 2011'!$F$77),\"\",'Afghanistan 2011'!$F$77)","v":"No"},null,{"$f":"IF(ISBLANK('Afghanistan 2011'!$G$66),\"\",'Afghanistan 2011'!$G$66)","v":"Yes"},{"$f":"IF(ISBLANK('Afghanistan 2011'!$G$67),\"\",'Afghanistan 2011'!$G$67)","v":"Yes"},{"$f":"IF(ISBLANK('Afghanistan 2011'!$G$68),\"\",'Afghanistan 2011'!$G$68)","v":"Yes"},{"$f":"IF(ISBLANK('Afghanistan 2011'!$G$69),\"\",'Afghanistan 2011'!$G$69)","v":"No"},{"$f":"IF(ISBLANK('Afghanistan 2011'!$G$70),\"\",'Afghanistan 2011'!$G$70)","v":"Yes"},{"$f":"IF(ISBLANK('Afghanistan 2011'!$G$71),\"\",'Afghanistan 2011'!$G$71)","v":"Yes"},{"$f":"IF(ISBLANK('Afghanistan 2011'!$G$72),\"\",'Afghanistan 2011'!$G$72)","v":"No"},{"$f":"IF(ISBLANK('Afghanistan 2011'!$G$73),\"\",'Afghanistan 2011'!$G$73)","v":"No"},{"$f":"IF(ISBLANK('Afghanistan 2011'!$G$74),\"\",'Afghanistan 2011'!$G$74)","v":"No"},{"$f":"IF(ISBLANK('Afghanistan 2011'!$G$75),\"\",'Afghanistan 2011'!$G$75)","v":"Yes"},{"$f":"IF(ISBLANK('Afghanistan 2011'!$G$76),\"\",'Afghanistan 2011'!$G$76)","v":"No"},{"$f":"IF(ISBLANK('Afghanistan 2011'!$G$77),\"\",'Afghanistan 2011'!$G$77)","v":"No"},null,{"$f":"IF(ISBLANK('Afghanistan 2011'!$H$66),\"\",'Afghanistan 2011'!$H$66)","v":"Yes"},{"$f":"IF(ISBLANK('Afghanistan 2011'!$H$67),\"\",'Afghanistan 2011'!$H$67)","v":"No"},{"$f":"IF(ISBLANK('Afghanistan 2011'!$H$68),\"\",'Afghanistan 2011'!$H$68)","v":"Yes"},{"$f":"IF(ISBLANK('Afghanistan 2011'!$H$69),\"\",'Afghanistan 2011'!$H$69)","v":"No"},{"$f":"IF(ISBLANK('Afghanistan 2011'!$H$70),\"\",'Afghanistan 2011'!$H$70)","v":"No"},{"$f":"IF(ISBLANK('Afghanistan 2011'!$H$71),\"\",'Afghanistan 2011'!$H$71)","v":"Yes"},{"$f":"IF(ISBLANK('Afghanistan 2011'!$H$72),\"\",'Afghanistan 2011'!$H$72)","v":"No"},{"$f":"IF(ISBLANK('Afghanistan 2011'!$H$73),\"\",'Afghanistan 2011'!$H$73)","v":"No"},{"$f":"IF(ISBLANK('Afghanistan 2011'!$H$74),\"\",'Afghanistan 2011'!$H$74)","v":"No"},{"$f":"IF(ISBLANK('Afghanistan 2011'!$H$75),\"\",'Afghanistan 2011'!$H$75)","v":"No"},{"$f":"IF(ISBLANK('Afghanistan 2011'!$H$76),\"\",'Afghanistan 2011'!$H$76)","v":"No"},{"$f":"IF(ISBLANK('Afghanistan 2011'!$H$77),\"\",'Afghanistan 2011'!$H$77)","v":"No"},{"$f":"IF(ISBLANK('Afghanistan 2011'!$D$78),\"\",'Afghanistan 2011'!$D$78)","v":""},null,{"$f":"IF(ISBLANK('Afghanistan 2011'!$H$80),\"\",'Afghanistan 2011'!$H$80)","v":"No"},{"$f":"IF(ISBLANK('Afghanistan 2011'!$C$83),\"\",'Afghanistan 2011'!$C$83)","v":""},{"$f":"IF(ISBLANK('Afghanistan 2011'!$D$83),\"\",'Afghanistan 2011'!$D$83)","v":""},{"$f":"IF(ISBLANK('Afghanistan 2011'!$F$83),\"\",'Afghanistan 2011'!$F$83)","v":""},{"$f":"IF(ISBLANK('Afghanistan 2011'!$G$83),\"\",'Afghanistan 2011'!$G$83)","v":""},{"$f":"IF(ISBLANK('Afghanistan 2011'!$F$84),\"\",'Afghanistan 2011'!$F$84)","v":"Yes"},{"$f":"IF(ISBLANK('Afghanistan 2011'!$E$85),\"\",'Afghanistan 2011'!$E$85)","v":"Commercial sector "},{"$f":"IF(ISBLANK('Afghanistan 2011'!$E$86),\"\",'Afghanistan 2011'!$E$86)","v":"Import duties are taken as a percentage of total in products for distribution (not cash)."},{"$f":"IF(ISBLANK('Afghanistan 2011'!$H$87),\"\",'Afghanistan 2011'!$H$87)","v":"No"},{"$f":"IF(ISBLANK('Afghanistan 2011'!$D$88),\"\",'Afghanistan 2011'!$D$88)","v":"N/A"},{"$f":"IF(ISBLANK('Afghanistan 2011'!$H$89),\"\",'Afghanistan 2011'!$H$89)","v":"Yes"},{"$f":"IF(ISBLANK('Afghanistan 2011'!$D$90),\"\",'Afghanistan 2011'!$D$90)","v":"National Essential Drug List includes contraceptives"},{"$f":"IF(ISBLANK('Afghanistan 2011'!$H$91),\"\",'Afghanistan 2011'!$H$91)","v":"No"},{"$f":"IF(ISBLANK('Afghanistan 2011'!$C$94),\"\",'Afghanistan 2011'!$C$94)","v":""},{"$f":"IF(ISBLANK('Afghanistan 2011'!$E$94),\"\",'Afghanistan 2011'!$E$94)","v":""},{"$f":"IF(ISBLANK('Afghanistan 2011'!$G$94),\"\",'Afghanistan 2011'!$G$94)","v":""},{"$f":"IF(ISBLANK('Afghanistan 2011'!$C$95),\"\",'Afghanistan 2011'!$C$95)","v":""},{"$f":"IF(ISBLANK('Afghanistan 2011'!$E$95),\"\",'Afghanistan 2011'!$E$95)","v":""},{"$f":"IF(ISBLANK('Afghanistan 2011'!$G$95),\"\",'Afghanistan 2011'!$G$95)","v":""},{"$f":"IF(ISBLANK('Afghanistan 2011'!$C$96),\"\",'Afghanistan 2011'!$C$96)","v":""},{"$f":"IF(ISBLANK('Afghanistan 2011'!$E$96),\"\",'Afghanistan 2011'!$E$96)","v":""},{"$f":"IF(ISBLANK('Afghanistan 2011'!$G$96),\"\",'Afghanistan 2011'!$G$96)","v":""},null,{"$f":"IF(ISBLANK('Afghanistan 2011'!$D$99),\"\",'Afghanistan 2011'!$D$99)","v":"No"},{"$f":"IF(ISBLANK('Afghanistan 2011'!$E$99),\"\",'Afghanistan 2011'!$E$99)","v":""},{"$f":"IF(ISBLANK('Afghanistan 2011'!$H$99),\"\",'Afghanistan 2011'!$H$99)","v":""},{"$f":"IF(ISBLANK('Afghanistan 2011'!$D$100),\"\",'Afghanistan 2011'!$D$100)","v":"No"},{"$f":"IF(ISBLANK('Afghanistan 2011'!$E$100),\"\",'Afghanistan 2011'!$E$100)","v":""},{"$f":"IF(ISBLANK('Afghanistan 2011'!$H$100),\"\",'Afghanistan 2011'!$H$100)","v":""},{"$f":"IF(ISBLANK('Afghanistan 2011'!$D$101),\"\",'Afghanistan 2011'!$D$101)","v":"No"},{"$f":"IF(ISBLANK('Afghanistan 2011'!$E$101),\"\",'Afghanistan 2011'!$E$101)","v":""},{"$f":"IF(ISBLANK('Afghanistan 2011'!$H$101),\"\",'Afghanistan 2011'!$H$101)","v":""},null,{"$f":"IF(ISBLANK('Afghanistan 2011'!$G$104),\"\",'Afghanistan 2011'!$G$104)","v":"No"},{"$f":"IF(ISBLANK('Afghanistan 2011'!$G$105),\"\",'Afghanistan 2011'!$G$105)","v":"No"},{"$f":"IF(ISBLANK('Afghanistan 2011'!$G$106),\"\",'Afghanistan 2011'!$G$106)","v":"N/A"},{"$f":"IF(ISBLANK('Afghanistan 2011'!$D$107),\"\",'Afghanistan 2011'!$D$107)","v":"N/A"},null,{"$f":"IF(ISBLANK('Afghanistan 2011'!$G$109),\"\",'Afghanistan 2011'!$G$109)","v":"Yes"},{"$f":"IF(ISBLANK('Afghanistan 2011'!$G$110),\"\",'Afghanistan 2011'!$G$110)","v":"Don't know"},{"$f":"IF(ISBLANK('Afghanistan 2011'!$G$111),\"\",'Afghanistan 2011'!$G$111)","v":"Yes"},{"$f":"IF(ISBLANK('Afghanistan 2011'!$G$112),\"\",'Afghanistan 2011'!$G$112)","v":"No"},{"$f":"IF(ISBLANK('Afghanistan 2011'!$G$113),\"\",'Afghanistan 2011'!$G$113)","v":"Yes"},{"$f":"IF(ISBLANK('Afghanistan 2011'!$G$114),\"\",'Afghanistan 2011'!$G$114)","v":"Yes"},{"$f":"IF(ISBLANK('Afghanistan 2011'!$G$115),\"\",'Afghanistan 2011'!$G$115)","v":"No"},{"$f":"IF(ISBLANK('Afghanistan 2011'!$G$116),\"\",'Afghanistan 2011'!$G$116)","v":"No"},{"$f":"IF(ISBLANK('Afghanistan 2011'!$G$117),\"\",'Afghanistan 2011'!$G$117)","v":"No"},{"$f":"IF(ISBLANK('Afghanistan 2011'!$G$118),\"\",'Afghanistan 2011'!$G$118)","v":"No"},{"$f":"IF(ISBLANK('Afghanistan 2011'!$F$119),\"\",'Afghanistan 2011'!$F$119)","v":"N/A"},{"$f":"IF(ISBLANK('Afghanistan 2011'!$F$120),\"\",'Afghanistan 2011'!$F$120)","v":"2007 (December)"},{"$f":"IF(ISBLANK('Afghanistan 2011'!$D$121),\"\",'Afghanistan 2011'!$D$121)","v":"National Licensed Drug List"},{"$f":"IF(ISBLANK('Afghanistan 2011'!$D$122),\"\",'Afghanistan 2011'!$D$122)","v":"Drugs may be added to the list with justification."},null,{"$f":"IF(ISBLANK('Afghanistan 2011'!$F$124),\"\",'Afghanistan 2011'!$F$124)","v":2008},{"$f":"IF(ISBLANK('Afghanistan 2011'!$G$125),\"\",'Afghanistan 2011'!$G$125)","v":"Yes"},{"$f":"IF(ISBLANK('Afghanistan 2011'!$G$126),\"\",'Afghanistan 2011'!$G$126)","v":"No"},{"$f":"IF(ISBLANK('Afghanistan 2011'!$G$127),\"\",'Afghanistan 2011'!$G$127)","v":"Yes"},{"$f":"IF(ISBLANK('Afghanistan 2011'!$G$128),\"\",'Afghanistan 2011'!$G$128)","v":"No"},{"$f":"IF(ISBLANK('Afghanistan 2011'!$D$129),\"\",'Afghanistan 2011'!$D$129)","v":""},null,{"$f":"IF(ISBLANK('Afghanistan 2011'!$G$131),\"\",'Afghanistan 2011'!$G$131)","v":"Yes"},null,{"$f":"IF(ISBLANK('Afghanistan 2011'!$G$133),\"\",'Afghanistan 2011'!$G$133)","v":"Yes"},{"$f":"IF(ISBLANK('Afghanistan 2011'!$G$134),\"\",'Afghanistan 2011'!$G$134)","v":"Yes"},{"$f":"IF(ISBLANK('Afghanistan 2011'!$G$135),\"\",'Afghanistan 2011'!$G$135)","v":"Yes"},{"$f":"IF(ISBLANK('Afghanistan 2011'!$G$136),\"\",'Afghanistan 2011'!$G$136)","v":"N/A"},{"$f":"IF(ISBLANK('Afghanistan 2011'!$G$137),\"\",'Afghanistan 2011'!$G$137)","v":"No"},{"$f":"IF(ISBLANK('Afghanistan 2011'!$G$138),\"\",'Afghanistan 2011'!$G$138)","v":"No"},{"$f":"IF(ISBLANK('Afghanistan 2011'!$G$139),\"\",'Afghanistan 2011'!$G$139)","v":"N/A"},{"$f":"IF(ISBLANK('Afghanistan 2011'!$G$140),\"\",'Afghanistan 2011'!$G$140)","v":"Yes"},{"$f":"IF(ISBLANK('Afghanistan 2011'!$G$141),\"\",'Afghanistan 2011'!$G$141)","v":"N/A"},{"$f":"IF(ISBLANK('Afghanistan 2011'!$F$142),\"\",'Afghanistan 2011'!$F$142)","v":""},{"$f":"IF(ISBLANK('Afghanistan 2011'!$F$143),\"\",'Afghanistan 2011'!$F$143)","v":"MOPH letter"},null,{"$f":"IF(ISBLANK('Afghanistan 2011'!$G$145),\"\",'Afghanistan 2011'!$G$145)","v":"No"},{"$f":"IF(ISBLANK('Afghanistan 2011'!$G$146),\"\",'Afghanistan 2011'!$G$146)","v":"No"},{"$f":"IF(ISBLANK('Afghanistan 2011'!$D$147),\"\",'Afghanistan 2011'!$D$147)","v":"There is currently an overstock of Depo-provera at a national level."},"Europe and Asia"]
["Albania ",null,{"$f":"IF(ISBLANK('Albania 2011'!$H$12),\"\",'Albania 2011'!$H$12)","v":"Yes"},{"$f":"IF(ISBLANK('Albania 2011'!$D$13),\"\",'Albania 2011'!$D$13)","v":"Reproductive Health Committee"},null,{"$f":"IF(ISBLANK('Albania 2011'!$D$15),\"\",'Albania 2011'!$D$15)","v":"Yes"},{"$f":"IF(ISBLANK('Albania 2011'!$F$15),\"\",'Albania 2011'!$F$15)","v":"NESMARK"},{"$f":"IF(ISBLANK('Albania 2011'!$D$16),\"\",'Albania 2011'!$D$16)","v":"Yes"},{"$f":"IF(ISBLANK('Albania 2011'!$F$16),\"\",'Albania 2011'!$F$16)","v":"Albanian Center for Population and Development (IPPF affiliate)"},{"$f":"IF(ISBLANK('Albania 2011'!$D$17),\"\",'Albania 2011'!$D$17)","v":"Yes"},{"$f":"IF(ISBLANK('Albania 2011'!$F$17),\"\",'Albania 2011'!$F$17)","v":"Bayer Schering, OES Distrimed, Marketing and Distribution"},{"$f":"IF(ISBLANK('Albania 2011'!$D$18),\"\",'Albania 2011'!$D$18)","v":"Yes"},{"$f":"IF(ISBLANK('Albania 2011'!$F$18),\"\",'Albania 2011'!$F$18)","v":"UNFPA, USAID, UNICEF"},{"$f":"IF(ISBLANK('Albania 2011'!$D$19),\"\",'Albania 2011'!$D$19)","v":"Yes"},{"$f":"IF(ISBLANK('Albania 2011'!$F$19),\"\",'Albania 2011'!$F$19)","v":"UNFPA, UNICEF"},{"$f":"IF(ISBLANK('Albania 2011'!$D$20),\"\",'Albania 2011'!$D$20)","v":"Yes"},{"$f":"IF(ISBLANK('Albania 2011'!$F$20),\"\",'Albania 2011'!$F$20)","v":"Reproductive Health Unit, Pharmacy Department "},{"$f":"IF(ISBLANK('Albania 2011'!$D$21),\"\",'Albania 2011'!$D$21)","v":"No"},{"$f":"IF(ISBLANK('Albania 2011'!$F$21),\"\",'Albania 2011'!$F$21)","v":""},{"$f":"IF(ISBLANK('Albania 2011'!$D$22),\"\",'Albania 2011'!$D$22)","v":"No"},{"$f":"IF(ISBLANK('Albania 2011'!$F$22),\"\",'Albania 2011'!$F$22)","v":""},{"$f":"IF(ISBLANK('Albania 2011'!$D$23),\"\",'Albania 2011'!$D$23)","v":"Yes"},{"$f":"IF(ISBLANK('Albania 2011'!$F$23),\"\",'Albania 2011'!$F$23)","v":"Ministry of Labour"},{"$f":"IF(ISBLANK('Albania 2011'!$H$24),\"\",'Albania 2011'!$H$24)","v":"Don't know"},{"$f":"IF(ISBLANK('Albania 2011'!$H$25),\"\",'Albania 2011'!$H$25)","v":"Don't know"},{"$f":"IF(ISBLANK('Albania 2011'!$D$26),\"\",'Albania 2011'!$D$26)","v":"Yes"},{"$f":"IF(ISBLANK('Albania 2011'!$F$26),\"\",'Albania 2011'!$F$26)","v":"MOH"},{"$f":"IF(ISBLANK('Albania 2011'!$H$26),\"\",'Albania 2011'!$H$26)","v":"Minister of Health"},null,{"$f":"IF(ISBLANK('Albania 2011'!$F$28),\"\",'Albania 2011'!$F$28)","v":"January"},{"$f":"IF(ISBLANK('Albania 2011'!$H$28),\"\",'Albania 2011'!$H$28)","v":"December"},{"$f":"IF(ISBLANK('Albania 2011'!$G$29),\"\",'Albania 2011'!$G$29)","v":67000},{"$f":"IF(ISBLANK('Albania 2011'!$E$30),\"\",'Albania 2011'!$E$30)","v":"Beginning of the year (every year)"},{"$f":"IF(ISBLANK('Albania 2011'!$G$30),\"\",'Albania 2011'!$G$30)","v":"LMIS Coordinator"},{"$f":"IF(ISBLANK('Albania 2011'!$H$31),\"\",'Albania 2011'!$H$31)","v":"Don't know"},{"$f":"IF(ISBLANK('Albania 2011'!$H$32),\"\",'Albania 2011'!$H$32)","v":"Yes"},{"$f":"IF(ISBLANK('Albania 2011'!$E$35),\"\",'Albania 2011'!$E$35)","v":"Don't know"},{"$f":"IF(ISBLANK('Albania 2011'!$F$35),\"\",'Albania 2011'!$F$35)","v":"01/10-12/10"},{"$f":"IF(ISBLANK('Albania 2011'!$G$35),\"\",'Albania 2011'!$G$35)","v":"Institute of Public Health Records "},{"$f":"IF(ISBLANK('Albania 2011'!$H$35),\"\",'Albania 2011'!$H$35)","v":"Ministry of Health covered 100% of the budget for contraceptive procurement for the public sector for 2010"},{"$f":"IF(ISBLANK('Albania 2011'!$H$37),\"\",'Albania 2011'!$H$37)","v":"Yes"},{"$f":"IF(ISBLANK('Albania 2011'!$D$40),\"\",'Albania 2011'!$D$40)","v":"Yes"},{"$f":"IF(ISBLANK('Albania 2011'!$D$41),\"\",'Albania 2011'!$D$41)","v":""},{"$f":"IF(ISBLANK('Albania 2011'!$E$40),\"\",'Albania 2011'!$E$40)","v":67000},{"$f":"IF(ISBLANK('Albania 2011'!$F$40),\"\",'Albania 2011'!$F$40)","v":"01/10-12/10"},{"$f":"IF(ISBLANK('Albania 2011'!$G$40),\"\",'Albania 2011'!$G$40)","v":""},{"$f":"IF(ISBLANK('Albania 2011'!$H$40),\"\",'Albania 2011'!$H$40)","v":""},{"$f":"IF(ISBLANK('Albania 2011'!$D$42),\"\",'Albania 2011'!$D$42)","v":"No"},{"$f":"IF(ISBLANK('Albania 2011'!$D$43),\"\",'Albania 2011'!$D$43)","v":"N/A"},{"$f":"IF(ISBLANK('Albania 2011'!$E$42),\"\",'Albania 2011'!$E$42)","v":0},{"$f":"IF(ISBLANK('Albania 2011'!$F$42),\"\",'Albania 2011'!$F$42)","v":"01/10-12/10"},{"$f":"IF(ISBLANK('Albania 2011'!$G$42),\"\",'Albania 2011'!$G$42)","v":""},{"$f":"IF(ISBLANK('Albania 2011'!$H$42),\"\",'Albania 2011'!$H$42)","v":""},{"$f":"IF(ISBLANK('Albania 2011'!$E$44),\"\",'Albania 2011'!$E$44)","v":67000},{"$f":"IF(ISBLANK('Albania 2011'!$H$44),\"\",'Albania 2011'!$H$44)","v":""},null,{"$f":"IF(ISBLANK('Albania 2011'!$D$48),\"\",'Albania 2011'!$D$48)","v":"No"},{"$f":"IF(ISBLANK('Albania 2011'!$D$49),\"\",'Albania 2011'!$D$49)","v":"N/A"},{"$f":"IF(ISBLANK('Albania 2011'!$E$48),\"\",'Albania 2011'!$E$48)","v":0},{"$f":"IF(ISBLANK('Albania 2011'!$F$48),\"\",'Albania 2011'!$F$48)","v":"01/10-12/10"},{"$f":"IF(ISBLANK('Albania 2011'!$G$48),\"\",'Albania 2011'!$G$48)","v":""},{"$f":"IF(ISBLANK('Albania 2011'!$H$48),\"\",'Albania 2011'!$H$48)","v":""},{"$f":"IF(ISBLANK('Albania 2011'!$D$50),\"\",'Albania 2011'!$D$50)","v":"No"},{"$f":"IF(ISBLANK('Albania 2011'!$E$50),\"\",'Albania 2011'!$E$50)","v":0},{"$f":"IF(ISBLANK('Albania 2011'!$F$50),\"\",'Albania 2011'!$F$50)","v":"01/10-12/10"},{"$f":"IF(ISBLANK('Albania 2011'!$G$50),\"\",'Albania 2011'!$G$50)","v":"RHInterchange"},{"$f":"IF(ISBLANK('Albania 2011'!$H$50),\"\",'Albania 2011'!$H$50)","v":""},{"$f":"IF(ISBLANK('Albania 2011'!$D$51),\"\",'Albania 2011'!$D$51)","v":"No"},{"$f":"IF(ISBLANK('Albania 2011'!$E$51),\"\",'Albania 2011'!$E$51)","v":0},{"$f":"IF(ISBLANK('Albania 2011'!$F$51),\"\",'Albania 2011'!$F$51)","v":"01/10-12/10"},{"$f":"IF(ISBLANK('Albania 2011'!$G$51),\"\",'Albania 2011'!$G$51)","v":""},{"$f":"IF(ISBLANK('Albania 2011'!$H$51),\"\",'Albania 2011'!$H$51)","v":""},{"$f":"IF(ISBLANK('Albania 2011'!$E$52),\"\",'Albania 2011'!$E$52)","v":0},{"$f":"IF(ISBLANK('Albania 2011'!$H$52),\"\",'Albania 2011'!$H$52)","v":""},{"$f":"IF(ISBLANK('Albania 2011'!$F$55),\"\",'Albania 2011'!$F$55)","v":1},{"$f":"IF(ISBLANK('Albania 2011'!$G$55),\"\",'Albania 2011'!$G$55)","v":"100% government share"},{"$f":"IF(ISBLANK('Albania 2011'!$F$56),\"\",'Albania 2011'!$F$56)","v":1},{"$f":"IF(ISBLANK('Albania 2011'!$G$56),\"\",'Albania 2011'!$G$56)","v":"100%\n"},{"$f":"IF(ISBLANK('Albania 2011'!$F$57),\"\",'Albania 2011'!$F$57)","v":"No"},{"$f":"IF(ISBLANK('Albania 2011'!$G$57),\"\",'Albania 2011'!$G$57)","v":""},{"$f":"IF(ISBLANK('Albania 2011'!$F$59),\"\",'Albania 2011'!$F$59)","v":"Third-party agent (e.g., UNFPA, Crown Agents)"},{"$f":"IF(ISBLANK('Albania 2011'!$F$60),\"\",'Albania 2011'!$F$60)","v":"UNFPA"},{"$f":"IF(ISBLANK('Albania 2011'!$F$61),\"\",'Albania 2011'!$F$61)","v":"No"},{"$f":"IF(ISBLANK('Albania 2011'!$D$62),\"\",'Albania 2011'!$D$62)","v":""},null,null,{"$f":"IF(ISBLANK('Albania 2011'!$D$66),\"\",'Albania 2011'!$D$66)","v":"Yes"},{"$f":"IF(ISBLANK('Albania 2011'!$D$67),\"\",'Albania 2011'!$D$67)","v":"Yes"},{"$f":"IF(ISBLANK('Albania 2011'!$D$68),\"\",'Albania 2011'!$D$68)","v":"Yes"},{"$f":"IF(ISBLANK('Albania 2011'!$D$69),\"\",'Albania 2011'!$D$69)","v":"No"},{"$f":"IF(ISBLANK('Albania 2011'!$D$70),\"\",'Albania 2011'!$D$70)","v":"Yes"},{"$f":"IF(ISBLANK('Albania 2011'!$D$71),\"\",'Albania 2011'!$D$71)","v":"Yes"},{"$f":"IF(ISBLANK('Albania 2011'!$D$72),\"\",'Albania 2011'!$D$72)","v":"No"},{"$f":"IF(ISBLANK('Albania 2011'!$D$73),\"\",'Albania 2011'!$D$73)","v":"Don't know"},{"$f":"IF(ISBLANK('Albania 2011'!$D$74),\"\",'Albania 2011'!$D$74)","v":"No"},{"$f":"IF(ISBLANK('Albania 2011'!$D$75),\"\",'Albania 2011'!$D$75)","v":"No"},{"$f":"IF(ISBLANK('Albania 2011'!$D$76),\"\",'Albania 2011'!$D$76)","v":"No"},{"$f":"IF(ISBLANK('Albania 2011'!$D$77),\"\",'Albania 2011'!$D$77)","v":""},null,{"$f":"IF(ISBLANK('Albania 2011'!$F$66),\"\",'Albania 2011'!$F$66)","v":"Yes"},{"$f":"IF(ISBLANK('Albania 2011'!$F$67),\"\",'Albania 2011'!$F$67)","v":"Yes"},{"$f":"IF(ISBLANK('Albania 2011'!$F$68),\"\",'Albania 2011'!$F$68)","v":"Yes"},{"$f":"IF(ISBLANK('Albania 2011'!$F$69),\"\",'Albania 2011'!$F$69)","v":"No"},{"$f":"IF(ISBLANK('Albania 2011'!$F$70),\"\",'Albania 2011'!$F$70)","v":"Yes"},{"$f":"IF(ISBLANK('Albania 2011'!$F$71),\"\",'Albania 2011'!$F$71)","v":"Yes"},{"$f":"IF(ISBLANK('Albania 2011'!$F$72),\"\",'Albania 2011'!$F$72)","v":"No"},{"$f":"IF(ISBLANK('Albania 2011'!$F$73),\"\",'Albania 2011'!$F$73)","v":"Don't know"},{"$f":"IF(ISBLANK('Albania 2011'!$F$74),\"\",'Albania 2011'!$F$74)","v":"Yes"},{"$f":"IF(ISBLANK('Albania 2011'!$F$75),\"\",'Albania 2011'!$F$75)","v":"Yes"},{"$f":"IF(ISBLANK('Albania 2011'!$F$76),\"\",'Albania 2011'!$F$76)","v":"No"},{"$f":"IF(ISBLANK('Albania 2011'!$F$77),\"\",'Albania 2011'!$F$77)","v":""},null,{"$f":"IF(ISBLANK('Albania 2011'!$G$66),\"\",'Albania 2011'!$G$66)","v":"No"},{"$f":"IF(ISBLANK('Albania 2011'!$G$67),\"\",'Albania 2011'!$G$67)","v":"No"},{"$f":"IF(ISBLANK('Albania 2011'!$G$68),\"\",'Albania 2011'!$G$68)","v":"No"},{"$f":"IF(ISBLANK('Albania 2011'!$G$69),\"\",'Albania 2011'!$G$69)","v":"No"},{"$f":"IF(ISBLANK('Albania 2011'!$G$70),\"\",'Albania 2011'!$G$70)","v":"No"},{"$f":"IF(ISBLANK('Albania 2011'!$G$71),\"\",'Albania 2011'!$G$71)","v":"Yes"},{"$f":"IF(ISBLANK('Albania 2011'!$G$72),\"\",'Albania 2011'!$G$72)","v":"No"},{"$f":"IF(ISBLANK('Albania 2011'!$G$73),\"\",'Albania 2011'!$G$73)","v":"Don't know"},{"$f":"IF(ISBLANK('Albania 2011'!$G$74),\"\",'Albania 2011'!$G$74)","v":"No"},{"$f":"IF(ISBLANK('Albania 2011'!$G$75),\"\",'Albania 2011'!$G$75)","v":"No"},{"$f":"IF(ISBLANK('Albania 2011'!$G$76),\"\",'Albania 2011'!$G$76)","v":"No"},{"$f":"IF(ISBLANK('Albania 2011'!$G$77),\"\",'Albania 2011'!$G$77)","v":""},null,{"$f":"IF(ISBLANK('Albania 2011'!$H$66),\"\",'Albania 2011'!$H$66)","v":"No"},{"$f":"IF(ISBLANK('Albania 2011'!$H$67),\"\",'Albania 2011'!$H$67)","v":"Yes"},{"$f":"IF(ISBLANK('Albania 2011'!$H$68),\"\",'Albania 2011'!$H$68)","v":"No"},{"$f":"IF(ISBLANK('Albania 2011'!$H$69),\"\",'Albania 2011'!$H$69)","v":"No"},{"$f":"IF(ISBLANK('Albania 2011'!$H$70),\"\",'Albania 2011'!$H$70)","v":"No"},{"$f":"IF(ISBLANK('Albania 2011'!$H$71),\"\",'Albania 2011'!$H$71)","v":"Yes"},{"$f":"IF(ISBLANK('Albania 2011'!$H$72),\"\",'Albania 2011'!$H$72)","v":"No"},{"$f":"IF(ISBLANK('Albania 2011'!$H$73),\"\",'Albania 2011'!$H$73)","v":"Don't know"},{"$f":"IF(ISBLANK('Albania 2011'!$H$74),\"\",'Albania 2011'!$H$74)","v":"No"},{"$f":"IF(ISBLANK('Albania 2011'!$H$75),\"\",'Albania 2011'!$H$75)","v":"No"},{"$f":"IF(ISBLANK('Albania 2011'!$H$76),\"\",'Albania 2011'!$H$76)","v":"No"},{"$f":"IF(ISBLANK('Albania 2011'!$H$77),\"\",'Albania 2011'!$H$77)","v":""},{"$f":"IF(ISBLANK('Albania 2011'!$D$78),\"\",'Albania 2011'!$D$78)","v":""},null,{"$f":"IF(ISBLANK('Albania 2011'!$H$80),\"\",'Albania 2011'!$H$80)","v":"Yes"},{"$f":"IF(ISBLANK('Albania 2011'!$C$83),\"\",'Albania 2011'!$C$83)","v":"Albania Contraceptive Strategy"},{"$f":"IF(ISBLANK('Albania 2011'!$D$83),\"\",'Albania 2011'!$D$83)","v":"2003-2010"},{"$f":"IF(ISBLANK('Albania 2011'!$F$83),\"\",'Albania 2011'!$F$83)","v":"Yes"},{"$f":"IF(ISBLANK('Albania 2011'!$G$83),\"\",'Albania 2011'!$G$83)","v":"Yes"},{"$f":"IF(ISBLANK('Albania 2011'!$F$84),\"\",'Albania 2011'!$F$84)","v":"Yes"},{"$f":"IF(ISBLANK('Albania 2011'!$E$85),\"\",'Albania 2011'!$E$85)","v":"Social marketing and commercial sector"},{"$f":"IF(ISBLANK('Albania 2011'!$E$86),\"\",'Albania 2011'!$E$86)","v":"VAT (for condoms, IUD are 20%), Custom tax is 2% for all methods)"},{"$f":"IF(ISBLANK('Albania 2011'!$H$87),\"\",'Albania 2011'!$H$87)","v":"Yes"},{"$f":"IF(ISBLANK('Albania 2011'!$D$88),\"\",'Albania 2011'!$D$88)","v":"Price control, VAT (for condoms and IUDs) and custom tax (for all methods) for commercial sector and NGOs"},{"$f":"IF(ISBLANK('Albania 2011'!$H$89),\"\",'Albania 2011'!$H$89)","v":"Yes"},{"$f":"IF(ISBLANK('Albania 2011'!$D$90),\"\",'Albania 2011'!$D$90)","v":""},{"$f":"IF(ISBLANK('Albania 2011'!$H$91),\"\",'Albania 2011'!$H$91)","v":"Yes"},{"$f":"IF(ISBLANK('Albania 2011'!$C$94),\"\",'Albania 2011'!$C$94)","v":"IUDs"},{"$f":"IF(ISBLANK('Albania 2011'!$E$94),\"\",'Albania 2011'!$E$94)","v":"Only Ob-Gyns "},{"$f":"IF(ISBLANK('Albania 2011'!$G$94),\"\",'Albania 2011'!$G$94)","v":"Drugstore"},{"$f":"IF(ISBLANK('Albania 2011'!$C$95),\"\",'Albania 2011'!$C$95)","v":"Orals and injections"},{"$f":"IF(ISBLANK('Albania 2011'!$E$95),\"\",'Albania 2011'!$E$95)","v":""},{"$f":"IF(ISBLANK('Albania 2011'!$G$95),\"\",'Albania 2011'!$G$95)","v":"Drugstore"},{"$f":"IF(ISBLANK('Albania 2011'!$C$96),\"\",'Albania 2011'!$C$96)","v":""},{"$f":"IF(ISBLANK('Albania 2011'!$E$96),\"\",'Albania 2011'!$E$96)","v":""},{"$f":"IF(ISBLANK('Albania 2011'!$G$96),\"\",'Albania 2011'!$G$96)","v":""},null,{"$f":"IF(ISBLANK('Albania 2011'!$D$99),\"\",'Albania 2011'!$D$99)","v":"No"},{"$f":"IF(ISBLANK('Albania 2011'!$E$99),\"\",'Albania 2011'!$E$99)","v":""},{"$f":"IF(ISBLANK('Albania 2011'!$H$99),\"\",'Albania 2011'!$H$99)","v":""},{"$f":"IF(ISBLANK('Albania 2011'!$D$100),\"\",'Albania 2011'!$D$100)","v":"No"},{"$f":"IF(ISBLANK('Albania 2011'!$E$100),\"\",'Albania 2011'!$E$100)","v":""},{"$f":"IF(ISBLANK('Albania 2011'!$H$100),\"\",'Albania 2011'!$H$100)","v":""},{"$f":"IF(ISBLANK('Albania 2011'!$D$101),\"\",'Albania 2011'!$D$101)","v":"No"},{"$f":"IF(ISBLANK('Albania 2011'!$E$101),\"\",'Albania 2011'!$E$101)","v":""},{"$f":"IF(ISBLANK('Albania 2011'!$H$101),\"\",'Albania 2011'!$H$101)","v":""},null,{"$f":"IF(ISBLANK('Albania 2011'!$G$104),\"\",'Albania 2011'!$G$104)","v":"No"},{"$f":"IF(ISBLANK('Albania 2011'!$G$105),\"\",'Albania 2011'!$G$105)","v":"No"},{"$f":"IF(ISBLANK('Albania 2011'!$G$106),\"\",'Albania 2011'!$G$106)","v":"N/A"},{"$f":"IF(ISBLANK('Albania 2011'!$D$107),\"\",'Albania 2011'!$D$107)","v":"N/A"},null,{"$f":"IF(ISBLANK('Albania 2011'!$G$109),\"\",'Albania 2011'!$G$109)","v":"Yes"},{"$f":"IF(ISBLANK('Albania 2011'!$G$110),\"\",'Albania 2011'!$G$110)","v":"Yes"},{"$f":"IF(ISBLANK('Albania 2011'!$G$111),\"\",'Albania 2011'!$G$111)","v":"Yes"},{"$f":"IF(ISBLANK('Albania 2011'!$G$112),\"\",'Albania 2011'!$G$112)","v":"No"},{"$f":"IF(ISBLANK('Albania 2011'!$G$113),\"\",'Albania 2011'!$G$113)","v":"Yes"},{"$f":"IF(ISBLANK('Albania 2011'!$G$114),\"\",'Albania 2011'!$G$114)","v":"Yes"},{"$f":"IF(ISBLANK('Albania 2011'!$G$115),\"\",'Albania 2011'!$G$115)","v":"No"},{"$f":"IF(ISBLANK('Albania 2011'!$G$116),\"\",'Albania 2011'!$G$116)","v":"Yes"},{"$f":"IF(ISBLANK('Albania 2011'!$G$117),\"\",'Albania 2011'!$G$117)","v":"No"},{"$f":"IF(ISBLANK('Albania 2011'!$G$118),\"\",'Albania 2011'!$G$118)","v":"Don't know"},{"$f":"IF(ISBLANK('Albania 2011'!$F$119),\"\",'Albania 2011'!$F$119)","v":"Don't know"},{"$f":"IF(ISBLANK('Albania 2011'!$F$120),\"\",'Albania 2011'!$F$120)","v":"2004-2011"},{"$f":"IF(ISBLANK('Albania 2011'!$D$121),\"\",'Albania 2011'!$D$121)","v":"Lista me cmimet e barnave te regjistruara per vitin "},{"$f":"IF(ISBLANK('Albania 2011'!$D$122),\"\",'Albania 2011'!$D$122)","v":"The list can be found at  http://www.moh.gov.al/"},null,{"$f":"IF(ISBLANK('Albania 2011'!$F$124),\"\",'Albania 2011'!$F$124)","v":2008},{"$f":"IF(ISBLANK('Albania 2011'!$G$125),\"\",'Albania 2011'!$G$125)","v":"No"},{"$f":"IF(ISBLANK('Albania 2011'!$G$126),\"\",'Albania 2011'!$G$126)","v":"No"},{"$f":"IF(ISBLANK('Albania 2011'!$G$127),\"\",'Albania 2011'!$G$127)","v":"No"},{"$f":"IF(ISBLANK('Albania 2011'!$G$128),\"\",'Albania 2011'!$G$128)","v":"No"},{"$f":"IF(ISBLANK('Albania 2011'!$D$129),\"\",'Albania 2011'!$D$129)","v":""},null,{"$f":"IF(ISBLANK('Albania 2011'!$G$131),\"\",'Albania 2011'!$G$131)","v":"Yes"},null,{"$f":"IF(ISBLANK('Albania 2011'!$G$133),\"\",'Albania 2011'!$G$133)","v":"No"},{"$f":"IF(ISBLANK('Albania 2011'!$G$134),\"\",'Albania 2011'!$G$134)","v":"No"},{"$f":"IF(ISBLANK('Albania 2011'!$G$135),\"\",'Albania 2011'!$G$135)","v":"No"},{"$f":"IF(ISBLANK('Albania 2011'!$G$136),\"\",'Albania 2011'!$G$136)","v":"N/A"},{"$f":"IF(ISBLANK('Albania 2011'!$G$137),\"\",'Albania 2011'!$G$137)","v":"Yes"},{"$f":"IF(ISBLANK('Albania 2011'!$G$138),\"\",'Albania 2011'!$G$138)","v":"Yes"},{"$f":"IF(ISBLANK('Albania 2011'!$G$139),\"\",'Albania 2011'!$G$139)","v":"N/A"},{"$f":"IF(ISBLANK('Albania 2011'!$G$140),\"\",'Albania 2011'!$G$140)","v":"N/A"},{"$f":"IF(ISBLANK('Albania 2011'!$G$141),\"\",'Albania 2011'!$G$141)","v":"N/A"},{"$f":"IF(ISBLANK('Albania 2011'!$F$142),\"\",'Albania 2011'!$F$142)","v":""},{"$f":"IF(ISBLANK('Albania 2011'!$F$143),\"\",'Albania 2011'!$F$143)","v":"LMIS"},null,{"$f":"IF(ISBLANK('Albania 2011'!$G$145),\"\",'Albania 2011'!$G$145)","v":"No"},{"$f":"IF(ISBLANK('Albania 2011'!$G$146),\"\",'Albania 2011'!$G$146)","v":"No"},{"$f":"IF(ISBLANK('Albania 2011'!$D$147),\"\",'Albania 2011'!$D$147)","v":"The Albania government is in the process of revising the CS Strategy with UNFPA support."},"Europe and Asia"]
["Armenia ",null,{"$f":"IF(ISBLANK('Armenia 2011'!$H$12),\"\",'Armenia 2011'!$H$12)","v":"No"},{"$f":"IF(ISBLANK('Armenia 2011'!$D$13),\"\",'Armenia 2011'!$D$13)","v":"N/A"},null,{"$f":"IF(ISBLANK('Armenia 2011'!$D$15),\"\",'Armenia 2011'!$D$15)","v":"N/A"},{"$f":"IF(ISBLANK('Armenia 2011'!$F$15),\"\",'Armenia 2011'!$F$15)","v":""},{"$f":"IF(ISBLANK('Armenia 2011'!$D$16),\"\",'Armenia 2011'!$D$16)","v":"N/A"},{"$f":"IF(ISBLANK('Armenia 2011'!$F$16),\"\",'Armenia 2011'!$F$16)","v":""},{"$f":"IF(ISBLANK('Armenia 2011'!$D$17),\"\",'Armenia 2011'!$D$17)","v":"N/A"},{"$f":"IF(ISBLANK('Armenia 2011'!$F$17),\"\",'Armenia 2011'!$F$17)","v":""},{"$f":"IF(ISBLANK('Armenia 2011'!$D$18),\"\",'Armenia 2011'!$D$18)","v":"N/A"},{"$f":"IF(ISBLANK('Armenia 2011'!$F$18),\"\",'Armenia 2011'!$F$18)","v":""},{"$f":"IF(ISBLANK('Armenia 2011'!$D$19),\"\",'Armenia 2011'!$D$19)","v":"N/A"},{"$f":"IF(ISBLANK('Armenia 2011'!$F$19),\"\",'Armenia 2011'!$F$19)","v":""},{"$f":"IF(ISBLANK('Armenia 2011'!$D$20),\"\",'Armenia 2011'!$D$20)","v":"N/A"},{"$f":"IF(ISBLANK('Armenia 2011'!$F$20),\"\",'Armenia 2011'!$F$20)","v":""},{"$f":"IF(ISBLANK('Armenia 2011'!$D$21),\"\",'Armenia 2011'!$D$21)","v":"N/A"},{"$f":"IF(ISBLANK('Armenia 2011'!$F$21),\"\",'Armenia 2011'!$F$21)","v":""},{"$f":"IF(ISBLANK('Armenia 2011'!$D$22),\"\",'Armenia 2011'!$D$22)","v":"N/A"},{"$f":"IF(ISBLANK('Armenia 2011'!$F$22),\"\",'Armenia 2011'!$F$22)","v":""},{"$f":"IF(ISBLANK('Armenia 2011'!$D$23),\"\",'Armenia 2011'!$D$23)","v":"N/A"},{"$f":"IF(ISBLANK('Armenia 2011'!$F$23),\"\",'Armenia 2011'!$F$23)","v":""},{"$f":"IF(ISBLANK('Armenia 2011'!$H$24),\"\",'Armenia 2011'!$H$24)","v":"N/A"},{"$f":"IF(ISBLANK('Armenia 2011'!$H$25),\"\",'Armenia 2011'!$H$25)","v":"N/A"},{"$f":"IF(ISBLANK('Armenia 2011'!$D$26),\"\",'Armenia 2011'!$D$26)","v":"No"},{"$f":"IF(ISBLANK('Armenia 2011'!$F$26),\"\",'Armenia 2011'!$F$26)","v":""},{"$f":"IF(ISBLANK('Armenia 2011'!$H$26),\"\",'Armenia 2011'!$H$26)","v":""},null,{"$f":"IF(ISBLANK('Armenia 2011'!$F$28),\"\",'Armenia 2011'!$F$28)","v":"January"},{"$f":"IF(ISBLANK('Armenia 2011'!$H$28),\"\",'Armenia 2011'!$H$28)","v":"December"},{"$f":"IF(ISBLANK('Armenia 2011'!$G$29),\"\",'Armenia 2011'!$G$29)","v":"N/A"},{"$f":"IF(ISBLANK('Armenia 2011'!$E$30),\"\",'Armenia 2011'!$E$30)","v":"N/A"},{"$f":"IF(ISBLANK('Armenia 2011'!$G$30),\"\",'Armenia 2011'!$G$30)","v":"N/A"},{"$f":"IF(ISBLANK('Armenia 2011'!$H$31),\"\",'Armenia 2011'!$H$31)","v":"No"},{"$f":"IF(ISBLANK('Armenia 2011'!$H$32),\"\",'Armenia 2011'!$H$32)","v":"No"},{"$f":"IF(ISBLANK('Armenia 2011'!$E$35),\"\",'Armenia 2011'!$E$35)","v":0},{"$f":"IF(ISBLANK('Armenia 2011'!$F$35),\"\",'Armenia 2011'!$F$35)","v":"01/10-12/10"},{"$f":"IF(ISBLANK('Armenia 2011'!$G$35),\"\",'Armenia 2011'!$G$35)","v":""},{"$f":"IF(ISBLANK('Armenia 2011'!$H$35),\"\",'Armenia 2011'!$H$35)","v":""},{"$f":"IF(ISBLANK('Armenia 2011'!$H$37),\"\",'Armenia 2011'!$H$37)","v":"No"},{"$f":"IF(ISBLANK('Armenia 2011'!$D$40),\"\",'Armenia 2011'!$D$40)","v":"No"},{"$f":"IF(ISBLANK('Armenia 2011'!$D$41),\"\",'Armenia 2011'!$D$41)","v":"N/A"},{"$f":"IF(ISBLANK('Armenia 2011'!$E$40),\"\",'Armenia 2011'!$E$40)","v":0},{"$f":"IF(ISBLANK('Armenia 2011'!$F$40),\"\",'Armenia 2011'!$F$40)","v":"01/10-12/10"},{"$f":"IF(ISBLANK('Armenia 2011'!$G$40),\"\",'Armenia 2011'!$G$40)","v":""},{"$f":"IF(ISBLANK('Armenia 2011'!$H$40),\"\",'Armenia 2011'!$H$40)","v":""},{"$f":"IF(ISBLANK('Armenia 2011'!$D$42),\"\",'Armenia 2011'!$D$42)","v":"No"},{"$f":"IF(ISBLANK('Armenia 2011'!$D$43),\"\",'Armenia 2011'!$D$43)","v":"N/A"},{"$f":"IF(ISBLANK('Armenia 2011'!$E$42),\"\",'Armenia 2011'!$E$42)","v":0},{"$f":"IF(ISBLANK('Armenia 2011'!$F$42),\"\",'Armenia 2011'!$F$42)","v":"01/10-12/10"},{"$f":"IF(ISBLANK('Armenia 2011'!$G$42),\"\",'Armenia 2011'!$G$42)","v":""},{"$f":"IF(ISBLANK('Armenia 2011'!$H$42),\"\",'Armenia 2011'!$H$42)","v":""},{"$f":"IF(ISBLANK('Armenia 2011'!$E$44),\"\",'Armenia 2011'!$E$44)","v":0},{"$f":"IF(ISBLANK('Armenia 2011'!$H$44),\"\",'Armenia 2011'!$H$44)","v":""},null,{"$f":"IF(ISBLANK('Armenia 2011'!$D$48),\"\",'Armenia 2011'!$D$48)","v":"Yes"},{"$f":"IF(ISBLANK('Armenia 2011'!$D$49),\"\",'Armenia 2011'!$D$49)","v":"UNFPA"},{"$f":"IF(ISBLANK('Armenia 2011'!$E$48),\"\",'Armenia 2011'!$E$48)","v":13105},{"$f":"IF(ISBLANK('Armenia 2011'!$F$48),\"\",'Armenia 2011'!$F$48)","v":"01/10-12/10"},{"$f":"IF(ISBLANK('Armenia 2011'!$G$48),\"\",'Armenia 2011'!$G$48)","v":"UNFPA"},{"$f":"IF(ISBLANK('Armenia 2011'!$H$48),\"\",'Armenia 2011'!$H$48)","v":"27 FP units have been supplied with contraceptives worth $13,105 USD. UNFPA provided condoms for distribution among the military (for HIV/AIDS prevention)."},{"$f":"IF(ISBLANK('Armenia 2011'!$D$50),\"\",'Armenia 2011'!$D$50)","v":"Yes"},{"$f":"IF(ISBLANK('Armenia 2011'!$E$50),\"\",'Armenia 2011'!$E$50)","v":39688},{"$f":"IF(ISBLANK('Armenia 2011'!$F$50),\"\",'Armenia 2011'!$F$50)","v":"01/10-12/10"},{"$f":"IF(ISBLANK('Armenia 2011'!$G$50),\"\",'Armenia 2011'!$G$50)","v":"Mission East"},{"$f":"IF(ISBLANK('Armenia 2011'!$H$50),\"\",'Armenia 2011'!$H$50)","v":"For HIV/AIDS prevention only"},{"$f":"IF(ISBLANK('Armenia 2011'!$D$51),\"\",'Armenia 2011'!$D$51)","v":"No"},{"$f":"IF(ISBLANK('Armenia 2011'!$E$51),\"\",'Armenia 2011'!$E$51)","v":0},{"$f":"IF(ISBLANK('Armenia 2011'!$F$51),\"\",'Armenia 2011'!$F$51)","v":"01/10-12/10"},{"$f":"IF(ISBLANK('Armenia 2011'!$G$51),\"\",'Armenia 2011'!$G$51)","v":""},{"$f":"IF(ISBLANK('Armenia 2011'!$H$51),\"\",'Armenia 2011'!$H$51)","v":""},{"$f":"IF(ISBLANK('Armenia 2011'!$E$52),\"\",'Armenia 2011'!$E$52)","v":52793},{"$f":"IF(ISBLANK('Armenia 2011'!$H$52),\"\",'Armenia 2011'!$H$52)","v":""},{"$f":"IF(ISBLANK('Armenia 2011'!$F$55),\"\",'Armenia 2011'!$F$55)","v":0},{"$f":"IF(ISBLANK('Armenia 2011'!$G$55),\"\",'Armenia 2011'!$G$55)","v":""},{"$f":"IF(ISBLANK('Armenia 2011'!$F$56),\"\",'Armenia 2011'!$F$56)","v":"Don't know"},{"$f":"IF(ISBLANK('Armenia 2011'!$G$56),\"\",'Armenia 2011'!$G$56)","v":""},{"$f":"IF(ISBLANK('Armenia 2011'!$F$57),\"\",'Armenia 2011'!$F$57)","v":""},{"$f":"IF(ISBLANK('Armenia 2011'!$G$57),\"\",'Armenia 2011'!$G$57)","v":""},{"$f":"IF(ISBLANK('Armenia 2011'!$F$59),\"\",'Armenia 2011'!$F$59)","v":"N/A"},{"$f":"IF(ISBLANK('Armenia 2011'!$F$60),\"\",'Armenia 2011'!$F$60)","v":"N/A"},{"$f":"IF(ISBLANK('Armenia 2011'!$F$61),\"\",'Armenia 2011'!$F$61)","v":"N/A"},{"$f":"IF(ISBLANK('Armenia 2011'!$D$62),\"\",'Armenia 2011'!$D$62)","v":""},null,null,{"$f":"IF(ISBLANK('Armenia 2011'!$D$66),\"\",'Armenia 2011'!$D$66)","v":"Yes"},{"$f":"IF(ISBLANK('Armenia 2011'!$D$67),\"\",'Armenia 2011'!$D$67)","v":"Yes"},{"$f":"IF(ISBLANK('Armenia 2011'!$D$68),\"\",'Armenia 2011'!$D$68)","v":"Yes"},{"$f":"IF(ISBLANK('Armenia 2011'!$D$69),\"\",'Armenia 2011'!$D$69)","v":"No"},{"$f":"IF(ISBLANK('Armenia 2011'!$D$70),\"\",'Armenia 2011'!$D$70)","v":"Yes"},{"$f":"IF(ISBLANK('Armenia 2011'!$D$71),\"\",'Armenia 2011'!$D$71)","v":"Yes"},{"$f":"IF(ISBLANK('Armenia 2011'!$D$72),\"\",'Armenia 2011'!$D$72)","v":"No"},{"$f":"IF(ISBLANK('Armenia 2011'!$D$73),\"\",'Armenia 2011'!$D$73)","v":"Yes"},{"$f":"IF(ISBLANK('Armenia 2011'!$D$74),\"\",'Armenia 2011'!$D$74)","v":"Don't know"},{"$f":"IF(ISBLANK('Armenia 2011'!$D$75),\"\",'Armenia 2011'!$D$75)","v":"Don't know"},{"$f":"IF(ISBLANK('Armenia 2011'!$D$76),\"\",'Armenia 2011'!$D$76)","v":"No"},{"$f":"IF(ISBLANK('Armenia 2011'!$D$77),\"\",'Armenia 2011'!$D$77)","v":"Spermicides"},null,{"$f":"IF(ISBLANK('Armenia 2011'!$F$66),\"\",'Armenia 2011'!$F$66)","v":"Yes"},{"$f":"IF(ISBLANK('Armenia 2011'!$F$67),\"\",'Armenia 2011'!$F$67)","v":"Yes"},{"$f":"IF(ISBLANK('Armenia 2011'!$F$68),\"\",'Armenia 2011'!$F$68)","v":"Yes"},{"$f":"IF(ISBLANK('Armenia 2011'!$F$69),\"\",'Armenia 2011'!$F$69)","v":"No"},{"$f":"IF(ISBLANK('Armenia 2011'!$F$70),\"\",'Armenia 2011'!$F$70)","v":"Yes"},{"$f":"IF(ISBLANK('Armenia 2011'!$F$71),\"\",'Armenia 2011'!$F$71)","v":"Yes"},{"$f":"IF(ISBLANK('Armenia 2011'!$F$72),\"\",'Armenia 2011'!$F$72)","v":"No"},{"$f":"IF(ISBLANK('Armenia 2011'!$F$73),\"\",'Armenia 2011'!$F$73)","v":"Yes"},{"$f":"IF(ISBLANK('Armenia 2011'!$F$74),\"\",'Armenia 2011'!$F$74)","v":"Don't know"},{"$f":"IF(ISBLANK('Armenia 2011'!$F$75),\"\",'Armenia 2011'!$F$75)","v":"Don't know"},{"$f":"IF(ISBLANK('Armenia 2011'!$F$76),\"\",'Armenia 2011'!$F$76)","v":"No"},{"$f":"IF(ISBLANK('Armenia 2011'!$F$77),\"\",'Armenia 2011'!$F$77)","v":"Don't know"},null,{"$f":"IF(ISBLANK('Armenia 2011'!$G$66),\"\",'Armenia 2011'!$G$66)","v":"No"},{"$f":"IF(ISBLANK('Armenia 2011'!$G$67),\"\",'Armenia 2011'!$G$67)","v":"No"},{"$f":"IF(ISBLANK('Armenia 2011'!$G$68),\"\",'Armenia 2011'!$G$68)","v":"No"},{"$f":"IF(ISBLANK('Armenia 2011'!$G$69),\"\",'Armenia 2011'!$G$69)","v":"No"},{"$f":"IF(ISBLANK('Armenia 2011'!$G$70),\"\",'Armenia 2011'!$G$70)","v":"No"},{"$f":"IF(ISBLANK('Armenia 2011'!$G$71),\"\",'Armenia 2011'!$G$71)","v":"No"},{"$f":"IF(ISBLANK('Armenia 2011'!$G$72),\"\",'Armenia 2011'!$G$72)","v":"No"},{"$f":"IF(ISBLANK('Armenia 2011'!$G$73),\"\",'Armenia 2011'!$G$73)","v":"No"},{"$f":"IF(ISBLANK('Armenia 2011'!$G$74),\"\",'Armenia 2011'!$G$74)","v":"No"},{"$f":"IF(ISBLANK('Armenia 2011'!$G$75),\"\",'Armenia 2011'!$G$75)","v":"No"},{"$f":"IF(ISBLANK('Armenia 2011'!$G$76),\"\",'Armenia 2011'!$G$76)","v":"No"},{"$f":"IF(ISBLANK('Armenia 2011'!$G$77),\"\",'Armenia 2011'!$G$77)","v":"No"},null,{"$f":"IF(ISBLANK('Armenia 2011'!$H$66),\"\",'Armenia 2011'!$H$66)","v":"Don't know"},{"$f":"IF(ISBLANK('Armenia 2011'!$H$67),\"\",'Armenia 2011'!$H$67)","v":"Don't know"},{"$f":"IF(ISBLANK('Armenia 2011'!$H$68),\"\",'Armenia 2011'!$H$68)","v":"Don't know"},{"$f":"IF(ISBLANK('Armenia 2011'!$H$69),\"\",'Armenia 2011'!$H$69)","v":"Don't know"},{"$f":"IF(ISBLANK('Armenia 2011'!$H$70),\"\",'Armenia 2011'!$H$70)","v":"Don't know"},{"$f":"IF(ISBLANK('Armenia 2011'!$H$71),\"\",'Armenia 2011'!$H$71)","v":"Don't know"},{"$f":"IF(ISBLANK('Armenia 2011'!$H$72),\"\",'Armenia 2011'!$H$72)","v":"Don't know"},{"$f":"IF(ISBLANK('Armenia 2011'!$H$73),\"\",'Armenia 2011'!$H$73)","v":"Don't know"},{"$f":"IF(ISBLANK('Armenia 2011'!$H$74),\"\",'Armenia 2011'!$H$74)","v":"Don't know"},{"$f":"IF(ISBLANK('Armenia 2011'!$H$75),\"\",'Armenia 2011'!$H$75)","v":"Don't know"},{"$f":"IF(ISBLANK('Armenia 2011'!$H$76),\"\",'Armenia 2011'!$H$76)","v":"Don't know"},{"$f":"IF(ISBLANK('Armenia 2011'!$H$77),\"\",'Armenia 2011'!$H$77)","v":"Don't know"},{"$f":"IF(ISBLANK('Armenia 2011'!$D$78),\"\",'Armenia 2011'!$D$78)","v":""},null,{"$f":"IF(ISBLANK('Armenia 2011'!$H$80),\"\",'Armenia 2011'!$H$80)","v":"Yes"},{"$f":"IF(ISBLANK('Armenia 2011'!$C$83),\"\",'Armenia 2011'!$C$83)","v":"National Strategy, Program and Actions Timeframe on Reproductive Health Improvement"},{"$f":"IF(ISBLANK('Armenia 2011'!$D$83),\"\",'Armenia 2011'!$D$83)","v":"2007 - 2015"},{"$f":"IF(ISBLANK('Armenia 2011'!$F$83),\"\",'Armenia 2011'!$F$83)","v":"Yes"},{"$f":"IF(ISBLANK('Armenia 2011'!$G$83),\"\",'Armenia 2011'!$G$83)","v":"Yes"},{"$f":"IF(ISBLANK('Armenia 2011'!$F$84),\"\",'Armenia 2011'!$F$84)","v":"Yes"},{"$f":"IF(ISBLANK('Armenia 2011'!$E$85),\"\",'Armenia 2011'!$E$85)","v":"Commercial sector"},{"$f":"IF(ISBLANK('Armenia 2011'!$E$86),\"\",'Armenia 2011'!$E$86)","v":"20% VAT"},{"$f":"IF(ISBLANK('Armenia 2011'!$H$87),\"\",'Armenia 2011'!$H$87)","v":"Yes"},{"$f":"IF(ISBLANK('Armenia 2011'!$D$88),\"\",'Armenia 2011'!$D$88)","v":"There are advertising ban policies. In particular, contraceptive pills and spermicides are not among the \"over the counter\" medicines and cannot be advertised. For the advertisement of other contraceptives, Ministry of Health permission is required."},{"$f":"IF(ISBLANK('Armenia 2011'!$H$89),\"\",'Armenia 2011'!$H$89)","v":"No"},{"$f":"IF(ISBLANK('Armenia 2011'!$D$90),\"\",'Armenia 2011'!$D$90)","v":"N/A"},{"$f":"IF(ISBLANK('Armenia 2011'!$H$91),\"\",'Armenia 2011'!$H$91)","v":"Yes"},{"$f":"IF(ISBLANK('Armenia 2011'!$C$94),\"\",'Armenia 2011'!$C$94)","v":"Pills, IUDs, spermicides "},{"$f":"IF(ISBLANK('Armenia 2011'!$E$94),\"\",'Armenia 2011'!$E$94)","v":"Only OB/GYNs can prescribe and dispense all methods, including IUD insertions. Family doctors (FDs) provide FP counselling and dispense all contraceptives, except for hormonal pills and IUD insertions. Nurses can only refer patients to FP counseling and dispense condoms."},{"$f":"IF(ISBLANK('Armenia 2011'!$G$94),\"\",'Armenia 2011'!$G$94)","v":""},{"$f":"IF(ISBLANK('Armenia 2011'!$C$95),\"\",'Armenia 2011'!$C$95)","v":""},{"$f":"IF(ISBLANK('Armenia 2011'!$E$95),\"\",'Armenia 2011'!$E$95)","v":""},{"$f":"IF(ISBLANK('Armenia 2011'!$G$95),\"\",'Armenia 2011'!$G$95)","v":""},{"$f":"IF(ISBLANK('Armenia 2011'!$C$96),\"\",'Armenia 2011'!$C$96)","v":""},{"$f":"IF(ISBLANK('Armenia 2011'!$E$96),\"\",'Armenia 2011'!$E$96)","v":""},{"$f":"IF(ISBLANK('Armenia 2011'!$G$96),\"\",'Armenia 2011'!$G$96)","v":""},null,{"$f":"IF(ISBLANK('Armenia 2011'!$D$99),\"\",'Armenia 2011'!$D$99)","v":"No"},{"$f":"IF(ISBLANK('Armenia 2011'!$E$99),\"\",'Armenia 2011'!$E$99)","v":""},{"$f":"IF(ISBLANK('Armenia 2011'!$H$99),\"\",'Armenia 2011'!$H$99)","v":""},{"$f":"IF(ISBLANK('Armenia 2011'!$D$100),\"\",'Armenia 2011'!$D$100)","v":"No"},{"$f":"IF(ISBLANK('Armenia 2011'!$E$100),\"\",'Armenia 2011'!$E$100)","v":""},{"$f":"IF(ISBLANK('Armenia 2011'!$H$100),\"\",'Armenia 2011'!$H$100)","v":""},{"$f":"IF(ISBLANK('Armenia 2011'!$D$101),\"\",'Armenia 2011'!$D$101)","v":"No"},{"$f":"IF(ISBLANK('Armenia 2011'!$E$101),\"\",'Armenia 2011'!$E$101)","v":""},{"$f":"IF(ISBLANK('Armenia 2011'!$H$101),\"\",'Armenia 2011'!$H$101)","v":""},null,{"$f":"IF(ISBLANK('Armenia 2011'!$G$104),\"\",'Armenia 2011'!$G$104)","v":"No"},{"$f":"IF(ISBLANK('Armenia 2011'!$G$105),\"\",'Armenia 2011'!$G$105)","v":"No"},{"$f":"IF(ISBLANK('Armenia 2011'!$G$106),\"\",'Armenia 2011'!$G$106)","v":"N/A"},{"$f":"IF(ISBLANK('Armenia 2011'!$D$107),\"\",'Armenia 2011'!$D$107)","v":"N/A"},null,{"$f":"IF(ISBLANK('Armenia 2011'!$G$109),\"\",'Armenia 2011'!$G$109)","v":"Yes"},{"$f":"IF(ISBLANK('Armenia 2011'!$G$110),\"\",'Armenia 2011'!$G$110)","v":"Yes"},{"$f":"IF(ISBLANK('Armenia 2011'!$G$111),\"\",'Armenia 2011'!$G$111)","v":"Yes"},{"$f":"IF(ISBLANK('Armenia 2011'!$G$112),\"\",'Armenia 2011'!$G$112)","v":"No"},{"$f":"IF(ISBLANK('Armenia 2011'!$G$113),\"\",'Armenia 2011'!$G$113)","v":"No"},{"$f":"IF(ISBLANK('Armenia 2011'!$G$114),\"\",'Armenia 2011'!$G$114)","v":"No"},{"$f":"IF(ISBLANK('Armenia 2011'!$G$115),\"\",'Armenia 2011'!$G$115)","v":"No"},{"$f":"IF(ISBLANK('Armenia 2011'!$G$116),\"\",'Armenia 2011'!$G$116)","v":"Yes"},{"$f":"IF(ISBLANK('Armenia 2011'!$G$117),\"\",'Armenia 2011'!$G$117)","v":"No"},{"$f":"IF(ISBLANK('Armenia 2011'!$G$118),\"\",'Armenia 2011'!$G$118)","v":"No"},{"$f":"IF(ISBLANK('Armenia 2011'!$F$119),\"\",'Armenia 2011'!$F$119)","v":"N/A"},{"$f":"IF(ISBLANK('Armenia 2011'!$F$120),\"\",'Armenia 2011'!$F$120)","v":2010},{"$f":"IF(ISBLANK('Armenia 2011'!$D$121),\"\",'Armenia 2011'!$D$121)","v":"Essential Medicine List of the Republic of Armenia"},{"$f":"IF(ISBLANK('Armenia 2011'!$D$122),\"\",'Armenia 2011'!$D$122)","v":"IUDs, condoms, and spermicides are not on the list because they are not drugs. Implants are not registered."},null,{"$f":"IF(ISBLANK('Armenia 2011'!$F$124),\"\",'Armenia 2011'!$F$124)","v":2008},{"$f":"IF(ISBLANK('Armenia 2011'!$G$125),\"\",'Armenia 2011'!$G$125)","v":"Yes"},{"$f":"IF(ISBLANK('Armenia 2011'!$G$126),\"\",'Armenia 2011'!$G$126)","v":"No"},{"$f":"IF(ISBLANK('Armenia 2011'!$G$127),\"\",'Armenia 2011'!$G$127)","v":"No"},{"$f":"IF(ISBLANK('Armenia 2011'!$G$128),\"\",'Armenia 2011'!$G$128)","v":"No"},{"$f":"IF(ISBLANK('Armenia 2011'!$D$129),\"\",'Armenia 2011'!$D$129)","v":""},null,{"$f":"IF(ISBLANK('Armenia 2011'!$G$131),\"\",'Armenia 2011'!$G$131)","v":"Yes"},null,{"$f":"IF(ISBLANK('Armenia 2011'!$G$133),\"\",'Armenia 2011'!$G$133)","v":"Yes"},{"$f":"IF(ISBLANK('Armenia 2011'!$G$134),\"\",'Armenia 2011'!$G$134)","v":"No"},{"$f":"IF(ISBLANK('Armenia 2011'!$G$135),\"\",'Armenia 2011'!$G$135)","v":"Don't know"},{"$f":"IF(ISBLANK('Armenia 2011'!$G$136),\"\",'Armenia 2011'!$G$136)","v":"N/A"},{"$f":"IF(ISBLANK('Armenia 2011'!$G$137),\"\",'Armenia 2011'!$G$137)","v":"No"},{"$f":"IF(ISBLANK('Armenia 2011'!$G$138),\"\",'Armenia 2011'!$G$138)","v":"No"},{"$f":"IF(ISBLANK('Armenia 2011'!$G$139),\"\",'Armenia 2011'!$G$139)","v":"N/A"},{"$f":"IF(ISBLANK('Armenia 2011'!$G$140),\"\",'Armenia 2011'!$G$140)","v":"Yes"},{"$f":"IF(ISBLANK('Armenia 2011'!$G$141),\"\",'Armenia 2011'!$G$141)","v":"N/A"},{"$f":"IF(ISBLANK('Armenia 2011'!$F$142),\"\",'Armenia 2011'!$F$142)","v":"01/10-12/10"},{"$f":"IF(ISBLANK('Armenia 2011'!$F$143),\"\",'Armenia 2011'!$F$143)","v":"UNFPA and Institute of Perinatology, Obstetrics and Gynecology, MOH"},null,{"$f":"IF(ISBLANK('Armenia 2011'!$G$145),\"\",'Armenia 2011'!$G$145)","v":"Yes"},{"$f":"IF(ISBLANK('Armenia 2011'!$G$146),\"\",'Armenia 2011'!$G$146)","v":"Yes"},{"$f":"IF(ISBLANK('Armenia 2011'!$D$147),\"\",'Armenia 2011'!$D$147)","v":""},"Europe and Asia"]
["Azerbaijan ",null,{"$f":"IF(ISBLANK('Azerbaijan 2011'!$H$12),\"\",'Azerbaijan 2011'!$H$12)","v":"No"},{"$f":"IF(ISBLANK('Azerbaijan 2011'!$D$13),\"\",'Azerbaijan 2011'!$D$13)","v":"N/A"},null,{"$f":"IF(ISBLANK('Azerbaijan 2011'!$D$15),\"\",'Azerbaijan 2011'!$D$15)","v":"N/A"},{"$f":"IF(ISBLANK('Azerbaijan 2011'!$F$15),\"\",'Azerbaijan 2011'!$F$15)","v":""},{"$f":"IF(ISBLANK('Azerbaijan 2011'!$D$16),\"\",'Azerbaijan 2011'!$D$16)","v":"N/A"},{"$f":"IF(ISBLANK('Azerbaijan 2011'!$F$16),\"\",'Azerbaijan 2011'!$F$16)","v":""},{"$f":"IF(ISBLANK('Azerbaijan 2011'!$D$17),\"\",'Azerbaijan 2011'!$D$17)","v":"N/A"},{"$f":"IF(ISBLANK('Azerbaijan 2011'!$F$17),\"\",'Azerbaijan 2011'!$F$17)","v":""},{"$f":"IF(ISBLANK('Azerbaijan 2011'!$D$18),\"\",'Azerbaijan 2011'!$D$18)","v":"N/A"},{"$f":"IF(ISBLANK('Azerbaijan 2011'!$F$18),\"\",'Azerbaijan 2011'!$F$18)","v":""},{"$f":"IF(ISBLANK('Azerbaijan 2011'!$D$19),\"\",'Azerbaijan 2011'!$D$19)","v":"N/A"},{"$f":"IF(ISBLANK('Azerbaijan 2011'!$F$19),\"\",'Azerbaijan 2011'!$F$19)","v":""},{"$f":"IF(ISBLANK('Azerbaijan 2011'!$D$20),\"\",'Azerbaijan 2011'!$D$20)","v":"N/A"},{"$f":"IF(ISBLANK('Azerbaijan 2011'!$F$20),\"\",'Azerbaijan 2011'!$F$20)","v":""},{"$f":"IF(ISBLANK('Azerbaijan 2011'!$D$21),\"\",'Azerbaijan 2011'!$D$21)","v":"N/A"},{"$f":"IF(ISBLANK('Azerbaijan 2011'!$F$21),\"\",'Azerbaijan 2011'!$F$21)","v":""},{"$f":"IF(ISBLANK('Azerbaijan 2011'!$D$22),\"\",'Azerbaijan 2011'!$D$22)","v":"N/A"},{"$f":"IF(ISBLANK('Azerbaijan 2011'!$F$22),\"\",'Azerbaijan 2011'!$F$22)","v":""},{"$f":"IF(ISBLANK('Azerbaijan 2011'!$D$23),\"\",'Azerbaijan 2011'!$D$23)","v":"N/A"},{"$f":"IF(ISBLANK('Azerbaijan 2011'!$F$23),\"\",'Azerbaijan 2011'!$F$23)","v":""},{"$f":"IF(ISBLANK('Azerbaijan 2011'!$H$24),\"\",'Azerbaijan 2011'!$H$24)","v":"N/A"},{"$f":"IF(ISBLANK('Azerbaijan 2011'!$H$25),\"\",'Azerbaijan 2011'!$H$25)","v":"N/A"},{"$f":"IF(ISBLANK('Azerbaijan 2011'!$D$26),\"\",'Azerbaijan 2011'!$D$26)","v":"Yes"},{"$f":"IF(ISBLANK('Azerbaijan 2011'!$F$26),\"\",'Azerbaijan 2011'!$F$26)","v":"Scientific Research Institute of Obstetrics and Gynecology"},{"$f":"IF(ISBLANK('Azerbaijan 2011'!$H$26),\"\",'Azerbaijan 2011'!$H$26)","v":"Director, National RH Coordinator"},null,{"$f":"IF(ISBLANK('Azerbaijan 2011'!$F$28),\"\",'Azerbaijan 2011'!$F$28)","v":"January"},{"$f":"IF(ISBLANK('Azerbaijan 2011'!$H$28),\"\",'Azerbaijan 2011'!$H$28)","v":"December"},{"$f":"IF(ISBLANK('Azerbaijan 2011'!$G$29),\"\",'Azerbaijan 2011'!$G$29)","v":106667},{"$f":"IF(ISBLANK('Azerbaijan 2011'!$E$30),\"\",'Azerbaijan 2011'!$E$30)","v":"2006"},{"$f":"IF(ISBLANK('Azerbaijan 2011'!$G$30),\"\",'Azerbaijan 2011'!$G$30)","v":"John Snow, Inc. (JSI)/DELIVER Project"},{"$f":"IF(ISBLANK('Azerbaijan 2011'!$H$31),\"\",'Azerbaijan 2011'!$H$31)","v":"No"},{"$f":"IF(ISBLANK('Azerbaijan 2011'!$H$32),\"\",'Azerbaijan 2011'!$H$32)","v":"No"},{"$f":"IF(ISBLANK('Azerbaijan 2011'!$E$35),\"\",'Azerbaijan 2011'!$E$35)","v":0},{"$f":"IF(ISBLANK('Azerbaijan 2011'!$F$35),\"\",'Azerbaijan 2011'!$F$35)","v":"01/10-12/10"},{"$f":"IF(ISBLANK('Azerbaijan 2011'!$G$35),\"\",'Azerbaijan 2011'!$G$35)","v":""},{"$f":"IF(ISBLANK('Azerbaijan 2011'!$H$35),\"\",'Azerbaijan 2011'!$H$35)","v":""},{"$f":"IF(ISBLANK('Azerbaijan 2011'!$H$37),\"\",'Azerbaijan 2011'!$H$37)","v":"No"},{"$f":"IF(ISBLANK('Azerbaijan 2011'!$D$40),\"\",'Azerbaijan 2011'!$D$40)","v":"No"},{"$f":"IF(ISBLANK('Azerbaijan 2011'!$D$41),\"\",'Azerbaijan 2011'!$D$41)","v":"N/A"},{"$f":"IF(ISBLANK('Azerbaijan 2011'!$E$40),\"\",'Azerbaijan 2011'!$E$40)","v":0},{"$f":"IF(ISBLANK('Azerbaijan 2011'!$F$40),\"\",'Azerbaijan 2011'!$F$40)","v":"01/10-12/10"},{"$f":"IF(ISBLANK('Azerbaijan 2011'!$G$40),\"\",'Azerbaijan 2011'!$G$40)","v":""},{"$f":"IF(ISBLANK('Azerbaijan 2011'!$H$40),\"\",'Azerbaijan 2011'!$H$40)","v":""},{"$f":"IF(ISBLANK('Azerbaijan 2011'!$D$42),\"\",'Azerbaijan 2011'!$D$42)","v":"No"},{"$f":"IF(ISBLANK('Azerbaijan 2011'!$D$43),\"\",'Azerbaijan 2011'!$D$43)","v":"N/A"},{"$f":"IF(ISBLANK('Azerbaijan 2011'!$E$42),\"\",'Azerbaijan 2011'!$E$42)","v":0},{"$f":"IF(ISBLANK('Azerbaijan 2011'!$F$42),\"\",'Azerbaijan 2011'!$F$42)","v":"01/10-12/10"},{"$f":"IF(ISBLANK('Azerbaijan 2011'!$G$42),\"\",'Azerbaijan 2011'!$G$42)","v":""},{"$f":"IF(ISBLANK('Azerbaijan 2011'!$H$42),\"\",'Azerbaijan 2011'!$H$42)","v":""},{"$f":"IF(ISBLANK('Azerbaijan 2011'!$E$44),\"\",'Azerbaijan 2011'!$E$44)","v":0},{"$f":"IF(ISBLANK('Azerbaijan 2011'!$H$44),\"\",'Azerbaijan 2011'!$H$44)","v":""},null,{"$f":"IF(ISBLANK('Azerbaijan 2011'!$D$48),\"\",'Azerbaijan 2011'!$D$48)","v":"No"},{"$f":"IF(ISBLANK('Azerbaijan 2011'!$D$49),\"\",'Azerbaijan 2011'!$D$49)","v":"N/A"},{"$f":"IF(ISBLANK('Azerbaijan 2011'!$E$48),\"\",'Azerbaijan 2011'!$E$48)","v":0},{"$f":"IF(ISBLANK('Azerbaijan 2011'!$F$48),\"\",'Azerbaijan 2011'!$F$48)","v":"01/10-12/10"},{"$f":"IF(ISBLANK('Azerbaijan 2011'!$G$48),\"\",'Azerbaijan 2011'!$G$48)","v":""},{"$f":"IF(ISBLANK('Azerbaijan 2011'!$H$48),\"\",'Azerbaijan 2011'!$H$48)","v":""},{"$f":"IF(ISBLANK('Azerbaijan 2011'!$D$50),\"\",'Azerbaijan 2011'!$D$50)","v":"Yes"},{"$f":"IF(ISBLANK('Azerbaijan 2011'!$E$50),\"\",'Azerbaijan 2011'!$E$50)","v":31355.83},{"$f":"IF(ISBLANK('Azerbaijan 2011'!$F$50),\"\",'Azerbaijan 2011'!$F$50)","v":"2/11/2010"},{"$f":"IF(ISBLANK('Azerbaijan 2011'!$G$50),\"\",'Azerbaijan 2011'!$G$50)","v":""},{"$f":"IF(ISBLANK('Azerbaijan 2011'!$H$50),\"\",'Azerbaijan 2011'!$H$50)","v":"Procured for Open Society Institute - Assistance Foundation (OSI-AF)"},{"$f":"IF(ISBLANK('Azerbaijan 2011'!$D$51),\"\",'Azerbaijan 2011'!$D$51)","v":"No"},{"$f":"IF(ISBLANK('Azerbaijan 2011'!$E$51),\"\",'Azerbaijan 2011'!$E$51)","v":0},{"$f":"IF(ISBLANK('Azerbaijan 2011'!$F$51),\"\",'Azerbaijan 2011'!$F$51)","v":"01/10-12/10"},{"$f":"IF(ISBLANK('Azerbaijan 2011'!$G$51),\"\",'Azerbaijan 2011'!$G$51)","v":"RHInterchange"},{"$f":"IF(ISBLANK('Azerbaijan 2011'!$H$51),\"\",'Azerbaijan 2011'!$H$51)","v":""},{"$f":"IF(ISBLANK('Azerbaijan 2011'!$E$52),\"\",'Azerbaijan 2011'!$E$52)","v":31355.83},{"$f":"IF(ISBLANK('Azerbaijan 2011'!$H$52),\"\",'Azerbaijan 2011'!$H$52)","v":""},{"$f":"IF(ISBLANK('Azerbaijan 2011'!$F$55),\"\",'Azerbaijan 2011'!$F$55)","v":0},{"$f":"IF(ISBLANK('Azerbaijan 2011'!$G$55),\"\",'Azerbaijan 2011'!$G$55)","v":""},{"$f":"IF(ISBLANK('Azerbaijan 2011'!$F$56),\"\",'Azerbaijan 2011'!$F$56)","v":0.29395998762503867},{"$f":"IF(ISBLANK('Azerbaijan 2011'!$G$56),\"\",'Azerbaijan 2011'!$G$56)","v":""},{"$f":"IF(ISBLANK('Azerbaijan 2011'!$F$57),\"\",'Azerbaijan 2011'!$F$57)","v":"Yes"},{"$f":"IF(ISBLANK('Azerbaijan 2011'!$G$57),\"\",'Azerbaijan 2011'!$G$57)","v":""},{"$f":"IF(ISBLANK('Azerbaijan 2011'!$F$59),\"\",'Azerbaijan 2011'!$F$59)","v":"N/A"},{"$f":"IF(ISBLANK('Azerbaijan 2011'!$F$60),\"\",'Azerbaijan 2011'!$F$60)","v":"N/A"},{"$f":"IF(ISBLANK('Azerbaijan 2011'!$F$61),\"\",'Azerbaijan 2011'!$F$61)","v":"N/A"},{"$f":"IF(ISBLANK('Azerbaijan 2011'!$D$62),\"\",'Azerbaijan 2011'!$D$62)","v":"The last funding for contraceptive procurement was provided by UNFPA in 2004; however, the actual shipment of goods did not happen until 2008. The following methods were delivered: 864,000 male condoms worth US$24,014; 22,700 IUDs worth US$6,745; and 49,200 cycles of combined orals worth US$32,356.                                                                                                                                                                                                                                                  \n\nThe estimated dollar value of contraceptives needed to be procured for the public sector was US $345,735 for 2007 and US $106,667 for 2008 (source: unpublished 2006 CS assessment by DELIVER/PSP-One)."},null,null,{"$f":"IF(ISBLANK('Azerbaijan 2011'!$D$66),\"\",'Azerbaijan 2011'!$D$66)","v":"Yes"},{"$f":"IF(ISBLANK('Azerbaijan 2011'!$D$67),\"\",'Azerbaijan 2011'!$D$67)","v":"No"},{"$f":"IF(ISBLANK('Azerbaijan 2011'!$D$68),\"\",'Azerbaijan 2011'!$D$68)","v":"No"},{"$f":"IF(ISBLANK('Azerbaijan 2011'!$D$69),\"\",'Azerbaijan 2011'!$D$69)","v":"No"},{"$f":"IF(ISBLANK('Azerbaijan 2011'!$D$70),\"\",'Azerbaijan 2011'!$D$70)","v":"Yes"},{"$f":"IF(ISBLANK('Azerbaijan 2011'!$D$71),\"\",'Azerbaijan 2011'!$D$71)","v":"Yes"},{"$f":"IF(ISBLANK('Azerbaijan 2011'!$D$72),\"\",'Azerbaijan 2011'!$D$72)","v":"No"},{"$f":"IF(ISBLANK('Azerbaijan 2011'!$D$73),\"\",'Azerbaijan 2011'!$D$73)","v":"Yes"},{"$f":"IF(ISBLANK('Azerbaijan 2011'!$D$74),\"\",'Azerbaijan 2011'!$D$74)","v":"No"},{"$f":"IF(ISBLANK('Azerbaijan 2011'!$D$75),\"\",'Azerbaijan 2011'!$D$75)","v":"Yes"},{"$f":"IF(ISBLANK('Azerbaijan 2011'!$D$76),\"\",'Azerbaijan 2011'!$D$76)","v":"No"},{"$f":"IF(ISBLANK('Azerbaijan 2011'!$D$77),\"\",'Azerbaijan 2011'!$D$77)","v":"Spermicides"},null,{"$f":"IF(ISBLANK('Azerbaijan 2011'!$F$66),\"\",'Azerbaijan 2011'!$F$66)","v":"No"},{"$f":"IF(ISBLANK('Azerbaijan 2011'!$F$67),\"\",'Azerbaijan 2011'!$F$67)","v":"No"},{"$f":"IF(ISBLANK('Azerbaijan 2011'!$F$68),\"\",'Azerbaijan 2011'!$F$68)","v":"No"},{"$f":"IF(ISBLANK('Azerbaijan 2011'!$F$69),\"\",'Azerbaijan 2011'!$F$69)","v":"No"},{"$f":"IF(ISBLANK('Azerbaijan 2011'!$F$70),\"\",'Azerbaijan 2011'!$F$70)","v":"No"},{"$f":"IF(ISBLANK('Azerbaijan 2011'!$F$71),\"\",'Azerbaijan 2011'!$F$71)","v":"No"},{"$f":"IF(ISBLANK('Azerbaijan 2011'!$F$72),\"\",'Azerbaijan 2011'!$F$72)","v":"No"},{"$f":"IF(ISBLANK('Azerbaijan 2011'!$F$73),\"\",'Azerbaijan 2011'!$F$73)","v":"No"},{"$f":"IF(ISBLANK('Azerbaijan 2011'!$F$74),\"\",'Azerbaijan 2011'!$F$74)","v":"No"},{"$f":"IF(ISBLANK('Azerbaijan 2011'!$F$75),\"\",'Azerbaijan 2011'!$F$75)","v":"Yes"},{"$f":"IF(ISBLANK('Azerbaijan 2011'!$F$76),\"\",'Azerbaijan 2011'!$F$76)","v":"No"},{"$f":"IF(ISBLANK('Azerbaijan 2011'!$F$77),\"\",'Azerbaijan 2011'!$F$77)","v":""},null,{"$f":"IF(ISBLANK('Azerbaijan 2011'!$G$66),\"\",'Azerbaijan 2011'!$G$66)","v":"No"},{"$f":"IF(ISBLANK('Azerbaijan 2011'!$G$67),\"\",'Azerbaijan 2011'!$G$67)","v":"No"},{"$f":"IF(ISBLANK('Azerbaijan 2011'!$G$68),\"\",'Azerbaijan 2011'!$G$68)","v":"No"},{"$f":"IF(ISBLANK('Azerbaijan 2011'!$G$69),\"\",'Azerbaijan 2011'!$G$69)","v":"No"},{"$f":"IF(ISBLANK('Azerbaijan 2011'!$G$70),\"\",'Azerbaijan 2011'!$G$70)","v":"No"},{"$f":"IF(ISBLANK('Azerbaijan 2011'!$G$71),\"\",'Azerbaijan 2011'!$G$71)","v":"No"},{"$f":"IF(ISBLANK('Azerbaijan 2011'!$G$72),\"\",'Azerbaijan 2011'!$G$72)","v":"No"},{"$f":"IF(ISBLANK('Azerbaijan 2011'!$G$73),\"\",'Azerbaijan 2011'!$G$73)","v":"No"},{"$f":"IF(ISBLANK('Azerbaijan 2011'!$G$74),\"\",'Azerbaijan 2011'!$G$74)","v":"No"},{"$f":"IF(ISBLANK('Azerbaijan 2011'!$G$75),\"\",'Azerbaijan 2011'!$G$75)","v":"No"},{"$f":"IF(ISBLANK('Azerbaijan 2011'!$G$76),\"\",'Azerbaijan 2011'!$G$76)","v":"No"},{"$f":"IF(ISBLANK('Azerbaijan 2011'!$G$77),\"\",'Azerbaijan 2011'!$G$77)","v":""},null,{"$f":"IF(ISBLANK('Azerbaijan 2011'!$H$66),\"\",'Azerbaijan 2011'!$H$66)","v":"No"},{"$f":"IF(ISBLANK('Azerbaijan 2011'!$H$67),\"\",'Azerbaijan 2011'!$H$67)","v":"No"},{"$f":"IF(ISBLANK('Azerbaijan 2011'!$H$68),\"\",'Azerbaijan 2011'!$H$68)","v":"No"},{"$f":"IF(ISBLANK('Azerbaijan 2011'!$H$69),\"\",'Azerbaijan 2011'!$H$69)","v":"No"},{"$f":"IF(ISBLANK('Azerbaijan 2011'!$H$70),\"\",'Azerbaijan 2011'!$H$70)","v":"No"},{"$f":"IF(ISBLANK('Azerbaijan 2011'!$H$71),\"\",'Azerbaijan 2011'!$H$71)","v":"Yes"},{"$f":"IF(ISBLANK('Azerbaijan 2011'!$H$72),\"\",'Azerbaijan 2011'!$H$72)","v":"No"},{"$f":"IF(ISBLANK('Azerbaijan 2011'!$H$73),\"\",'Azerbaijan 2011'!$H$73)","v":"No"},{"$f":"IF(ISBLANK('Azerbaijan 2011'!$H$74),\"\",'Azerbaijan 2011'!$H$74)","v":"No"},{"$f":"IF(ISBLANK('Azerbaijan 2011'!$H$75),\"\",'Azerbaijan 2011'!$H$75)","v":"No"},{"$f":"IF(ISBLANK('Azerbaijan 2011'!$H$76),\"\",'Azerbaijan 2011'!$H$76)","v":"No"},{"$f":"IF(ISBLANK('Azerbaijan 2011'!$H$77),\"\",'Azerbaijan 2011'!$H$77)","v":""},{"$f":"IF(ISBLANK('Azerbaijan 2011'!$D$78),\"\",'Azerbaijan 2011'!$D$78)","v":""},null,{"$f":"IF(ISBLANK('Azerbaijan 2011'!$H$80),\"\",'Azerbaijan 2011'!$H$80)","v":"No"},{"$f":"IF(ISBLANK('Azerbaijan 2011'!$C$83),\"\",'Azerbaijan 2011'!$C$83)","v":""},{"$f":"IF(ISBLANK('Azerbaijan 2011'!$D$83),\"\",'Azerbaijan 2011'!$D$83)","v":""},{"$f":"IF(ISBLANK('Azerbaijan 2011'!$F$83),\"\",'Azerbaijan 2011'!$F$83)","v":""},{"$f":"IF(ISBLANK('Azerbaijan 2011'!$G$83),\"\",'Azerbaijan 2011'!$G$83)","v":""},{"$f":"IF(ISBLANK('Azerbaijan 2011'!$F$84),\"\",'Azerbaijan 2011'!$F$84)","v":"Yes"},{"$f":"IF(ISBLANK('Azerbaijan 2011'!$E$85),\"\",'Azerbaijan 2011'!$E$85)","v":"Commercial sector (no information regarding other sectors)"},{"$f":"IF(ISBLANK('Azerbaijan 2011'!$E$86),\"\",'Azerbaijan 2011'!$E$86)","v":"oral pills - 18% VAT + 1% other fees; medical devices (condom, IUD) - up to 36% VAT"},{"$f":"IF(ISBLANK('Azerbaijan 2011'!$H$87),\"\",'Azerbaijan 2011'!$H$87)","v":"Yes"},{"$f":"IF(ISBLANK('Azerbaijan 2011'!$D$88),\"\",'Azerbaijan 2011'!$D$88)","v":"There is a policy that allows advertising of condoms only after midnight, which is seen as hindering promotional efforts."},{"$f":"IF(ISBLANK('Azerbaijan 2011'!$H$89),\"\",'Azerbaijan 2011'!$H$89)","v":"Don't know"},{"$f":"IF(ISBLANK('Azerbaijan 2011'!$D$90),\"\",'Azerbaijan 2011'!$D$90)","v":"There is no price control policy."},{"$f":"IF(ISBLANK('Azerbaijan 2011'!$H$91),\"\",'Azerbaijan 2011'!$H$91)","v":"No"},{"$f":"IF(ISBLANK('Azerbaijan 2011'!$C$94),\"\",'Azerbaijan 2011'!$C$94)","v":""},{"$f":"IF(ISBLANK('Azerbaijan 2011'!$E$94),\"\",'Azerbaijan 2011'!$E$94)","v":""},{"$f":"IF(ISBLANK('Azerbaijan 2011'!$G$94),\"\",'Azerbaijan 2011'!$G$94)","v":""},{"$f":"IF(ISBLANK('Azerbaijan 2011'!$C$95),\"\",'Azerbaijan 2011'!$C$95)","v":""},{"$f":"IF(ISBLANK('Azerbaijan 2011'!$E$95),\"\",'Azerbaijan 2011'!$E$95)","v":""},{"$f":"IF(ISBLANK('Azerbaijan 2011'!$G$95),\"\",'Azerbaijan 2011'!$G$95)","v":""},{"$f":"IF(ISBLANK('Azerbaijan 2011'!$C$96),\"\",'Azerbaijan 2011'!$C$96)","v":""},{"$f":"IF(ISBLANK('Azerbaijan 2011'!$E$96),\"\",'Azerbaijan 2011'!$E$96)","v":""},{"$f":"IF(ISBLANK('Azerbaijan 2011'!$G$96),\"\",'Azerbaijan 2011'!$G$96)","v":""},null,{"$f":"IF(ISBLANK('Azerbaijan 2011'!$D$99),\"\",'Azerbaijan 2011'!$D$99)","v":"No"},{"$f":"IF(ISBLANK('Azerbaijan 2011'!$E$99),\"\",'Azerbaijan 2011'!$E$99)","v":""},{"$f":"IF(ISBLANK('Azerbaijan 2011'!$H$99),\"\",'Azerbaijan 2011'!$H$99)","v":""},{"$f":"IF(ISBLANK('Azerbaijan 2011'!$D$100),\"\",'Azerbaijan 2011'!$D$100)","v":"No"},{"$f":"IF(ISBLANK('Azerbaijan 2011'!$E$100),\"\",'Azerbaijan 2011'!$E$100)","v":""},{"$f":"IF(ISBLANK('Azerbaijan 2011'!$H$100),\"\",'Azerbaijan 2011'!$H$100)","v":""},{"$f":"IF(ISBLANK('Azerbaijan 2011'!$D$101),\"\",'Azerbaijan 2011'!$D$101)","v":"Yes"},{"$f":"IF(ISBLANK('Azerbaijan 2011'!$E$101),\"\",'Azerbaijan 2011'!$E$101)","v":"Currently only ob/gyns can provide FP services; therefore, people from remote and rural areas need to travel to a central rayon hospital or FP clinic to get an IUD insertion, OC prescription, or sterilization.   "},{"$f":"IF(ISBLANK('Azerbaijan 2011'!$H$101),\"\",'Azerbaijan 2011'!$H$101)","v":"Yes"},null,{"$f":"IF(ISBLANK('Azerbaijan 2011'!$G$104),\"\",'Azerbaijan 2011'!$G$104)","v":"No"},{"$f":"IF(ISBLANK('Azerbaijan 2011'!$G$105),\"\",'Azerbaijan 2011'!$G$105)","v":"No"},{"$f":"IF(ISBLANK('Azerbaijan 2011'!$G$106),\"\",'Azerbaijan 2011'!$G$106)","v":"N/A"},{"$f":"IF(ISBLANK('Azerbaijan 2011'!$D$107),\"\",'Azerbaijan 2011'!$D$107)","v":"N/A"},null,{"$f":"IF(ISBLANK('Azerbaijan 2011'!$G$109),\"\",'Azerbaijan 2011'!$G$109)","v":"Yes"},{"$f":"IF(ISBLANK('Azerbaijan 2011'!$G$110),\"\",'Azerbaijan 2011'!$G$110)","v":"Yes"},{"$f":"IF(ISBLANK('Azerbaijan 2011'!$G$111),\"\",'Azerbaijan 2011'!$G$111)","v":"No"},{"$f":"IF(ISBLANK('Azerbaijan 2011'!$G$112),\"\",'Azerbaijan 2011'!$G$112)","v":"No"},{"$f":"IF(ISBLANK('Azerbaijan 2011'!$G$113),\"\",'Azerbaijan 2011'!$G$113)","v":"Yes"},{"$f":"IF(ISBLANK('Azerbaijan 2011'!$G$114),\"\",'Azerbaijan 2011'!$G$114)","v":"Yes"},{"$f":"IF(ISBLANK('Azerbaijan 2011'!$G$115),\"\",'Azerbaijan 2011'!$G$115)","v":"No"},{"$f":"IF(ISBLANK('Azerbaijan 2011'!$G$116),\"\",'Azerbaijan 2011'!$G$116)","v":"Yes"},{"$f":"IF(ISBLANK('Azerbaijan 2011'!$G$117),\"\",'Azerbaijan 2011'!$G$117)","v":"No"},{"$f":"IF(ISBLANK('Azerbaijan 2011'!$G$118),\"\",'Azerbaijan 2011'!$G$118)","v":"No"},{"$f":"IF(ISBLANK('Azerbaijan 2011'!$F$119),\"\",'Azerbaijan 2011'!$F$119)","v":"N/A"},{"$f":"IF(ISBLANK('Azerbaijan 2011'!$F$120),\"\",'Azerbaijan 2011'!$F$120)","v":"2008 but never published"},{"$f":"IF(ISBLANK('Azerbaijan 2011'!$D$121),\"\",'Azerbaijan 2011'!$D$121)","v":"Essential Drug List"},{"$f":"IF(ISBLANK('Azerbaijan 2011'!$D$122),\"\",'Azerbaijan 2011'!$D$122)","v":"The EDL was never approved by the Ministry of Health. There is hope that it will be published this year. "},null,{"$f":"IF(ISBLANK('Azerbaijan 2011'!$F$124),\"\",'Azerbaijan 2011'!$F$124)","v":2003},{"$f":"IF(ISBLANK('Azerbaijan 2011'!$G$125),\"\",'Azerbaijan 2011'!$G$125)","v":"Yes"},{"$f":"IF(ISBLANK('Azerbaijan 2011'!$G$126),\"\",'Azerbaijan 2011'!$G$126)","v":"Yes"},{"$f":"IF(ISBLANK('Azerbaijan 2011'!$G$127),\"\",'Azerbaijan 2011'!$G$127)","v":"No"},{"$f":"IF(ISBLANK('Azerbaijan 2011'!$G$128),\"\",'Azerbaijan 2011'!$G$128)","v":"No"},{"$f":"IF(ISBLANK('Azerbaijan 2011'!$D$129),\"\",'Azerbaijan 2011'!$D$129)","v":"Improving the system of delivering high quality contraceptives and medicines was a \"measure and action\" but not an indicator."},null,{"$f":"IF(ISBLANK('Azerbaijan 2011'!$G$131),\"\",'Azerbaijan 2011'!$G$131)","v":"N/A"},null,{"$f":"IF(ISBLANK('Azerbaijan 2011'!$G$133),\"\",'Azerbaijan 2011'!$G$133)","v":"N/A"},{"$f":"IF(ISBLANK('Azerbaijan 2011'!$G$134),\"\",'Azerbaijan 2011'!$G$134)","v":"N/A"},{"$f":"IF(ISBLANK('Azerbaijan 2011'!$G$135),\"\",'Azerbaijan 2011'!$G$135)","v":"N/A"},{"$f":"IF(ISBLANK('Azerbaijan 2011'!$G$136),\"\",'Azerbaijan 2011'!$G$136)","v":"N/A"},{"$f":"IF(ISBLANK('Azerbaijan 2011'!$G$137),\"\",'Azerbaijan 2011'!$G$137)","v":"N/A"},{"$f":"IF(ISBLANK('Azerbaijan 2011'!$G$138),\"\",'Azerbaijan 2011'!$G$138)","v":"N/A"},{"$f":"IF(ISBLANK('Azerbaijan 2011'!$G$139),\"\",'Azerbaijan 2011'!$G$139)","v":"N/A"},{"$f":"IF(ISBLANK('Azerbaijan 2011'!$G$140),\"\",'Azerbaijan 2011'!$G$140)","v":"N/A"},{"$f":"IF(ISBLANK('Azerbaijan 2011'!$G$141),\"\",'Azerbaijan 2011'!$G$141)","v":"N/A"},{"$f":"IF(ISBLANK('Azerbaijan 2011'!$F$142),\"\",'Azerbaijan 2011'!$F$142)","v":"N/A"},{"$f":"IF(ISBLANK('Azerbaijan 2011'!$F$143),\"\",'Azerbaijan 2011'!$F$143)","v":"N/A"},null,{"$f":"IF(ISBLANK('Azerbaijan 2011'!$G$145),\"\",'Azerbaijan 2011'!$G$145)","v":"N/A"},{"$f":"IF(ISBLANK('Azerbaijan 2011'!$G$146),\"\",'Azerbaijan 2011'!$G$146)","v":"N/A"},{"$f":"IF(ISBLANK('Azerbaijan 2011'!$D$147),\"\",'Azerbaijan 2011'!$D$147)","v":"Public warehouses do not carry contraceptives. "},"Europe and Asia"]
["Bangladesh ",null,{"$f":"IF(ISBLANK('Bangladesh 2011'!$H$12),\"\",'Bangladesh 2011'!$H$12)","v":"Yes"},{"$f":"IF(ISBLANK('Bangladesh 2011'!$D$13),\"\",'Bangladesh 2011'!$D$13)","v":"Logistics Coordination Forum (LCF)"},null,{"$f":"IF(ISBLANK('Bangladesh 2011'!$D$15),\"\",'Bangladesh 2011'!$D$15)","v":"Yes"},{"$f":"IF(ISBLANK('Bangladesh 2011'!$F$15),\"\",'Bangladesh 2011'!$F$15)","v":"Social Marketing Company (SMC)"},{"$f":"IF(ISBLANK('Bangladesh 2011'!$D$16),\"\",'Bangladesh 2011'!$D$16)","v":"Yes"},{"$f":"IF(ISBLANK('Bangladesh 2011'!$F$16),\"\",'Bangladesh 2011'!$F$16)","v":"Family Planning Association of Bangladesh, Marie Stopes"},{"$f":"IF(ISBLANK('Bangladesh 2011'!$D$17),\"\",'Bangladesh 2011'!$D$17)","v":"No"},{"$f":"IF(ISBLANK('Bangladesh 2011'!$F$17),\"\",'Bangladesh 2011'!$F$17)","v":""},{"$f":"IF(ISBLANK('Bangladesh 2011'!$D$18),\"\",'Bangladesh 2011'!$D$18)","v":"Yes"},{"$f":"IF(ISBLANK('Bangladesh 2011'!$F$18),\"\",'Bangladesh 2011'!$F$18)","v":"USAID, World Bank, JICA, GTZ, CIDA, KfW, DFID"},{"$f":"IF(ISBLANK('Bangladesh 2011'!$D$19),\"\",'Bangladesh 2011'!$D$19)","v":"Yes"},{"$f":"IF(ISBLANK('Bangladesh 2011'!$F$19),\"\",'Bangladesh 2011'!$F$19)","v":"UNFPA"},{"$f":"IF(ISBLANK('Bangladesh 2011'!$D$20),\"\",'Bangladesh 2011'!$D$20)","v":"Yes"},{"$f":"IF(ISBLANK('Bangladesh 2011'!$F$20),\"\",'Bangladesh 2011'!$F$20)","v":"Directorate General of Family Planning, MOHFW"},{"$f":"IF(ISBLANK('Bangladesh 2011'!$D$21),\"\",'Bangladesh 2011'!$D$21)","v":"Yes"},{"$f":"IF(ISBLANK('Bangladesh 2011'!$F$21),\"\",'Bangladesh 2011'!$F$21)","v":"Directorate General Family Planning (DGFP) central warehouse"},{"$f":"IF(ISBLANK('Bangladesh 2011'!$D$22),\"\",'Bangladesh 2011'!$D$22)","v":"No"},{"$f":"IF(ISBLANK('Bangladesh 2011'!$F$22),\"\",'Bangladesh 2011'!$F$22)","v":""},{"$f":"IF(ISBLANK('Bangladesh 2011'!$D$23),\"\",'Bangladesh 2011'!$D$23)","v":"Yes"},{"$f":"IF(ISBLANK('Bangladesh 2011'!$F$23),\"\",'Bangladesh 2011'!$F$23)","v":"Management Sciences for Health/Strengthening Pharmaceuticals Systems (MSH/SPS) Program"},{"$f":"IF(ISBLANK('Bangladesh 2011'!$H$24),\"\",'Bangladesh 2011'!$H$24)","v":"6 or more times"},{"$f":"IF(ISBLANK('Bangladesh 2011'!$H$25),\"\",'Bangladesh 2011'!$H$25)","v":"Yes"},{"$f":"IF(ISBLANK('Bangladesh 2011'!$D$26),\"\",'Bangladesh 2011'!$D$26)","v":"Yes"},{"$f":"IF(ISBLANK('Bangladesh 2011'!$F$26),\"\",'Bangladesh 2011'!$F$26)","v":"USAID"},{"$f":"IF(ISBLANK('Bangladesh 2011'!$H$26),\"\",'Bangladesh 2011'!$H$26)","v":"Sr. FP Advisor"},null,{"$f":"IF(ISBLANK('Bangladesh 2011'!$F$28),\"\",'Bangladesh 2011'!$F$28)","v":"July"},{"$f":"IF(ISBLANK('Bangladesh 2011'!$H$28),\"\",'Bangladesh 2011'!$H$28)","v":"June"},{"$f":"IF(ISBLANK('Bangladesh 2011'!$G$29),\"\",'Bangladesh 2011'!$G$29)","v":43571427},{"$f":"IF(ISBLANK('Bangladesh 2011'!$E$30),\"\",'Bangladesh 2011'!$E$30)","v":"07/10"},{"$f":"IF(ISBLANK('Bangladesh 2011'!$G$30),\"\",'Bangladesh 2011'!$G$30)","v":"DGFP"},{"$f":"IF(ISBLANK('Bangladesh 2011'!$H$31),\"\",'Bangladesh 2011'!$H$31)","v":"Yes"},{"$f":"IF(ISBLANK('Bangladesh 2011'!$H$32),\"\",'Bangladesh 2011'!$H$32)","v":"Yes"},{"$f":"IF(ISBLANK('Bangladesh 2011'!$E$35),\"\",'Bangladesh 2011'!$E$35)","v":714285},{"$f":"IF(ISBLANK('Bangladesh 2011'!$F$35),\"\",'Bangladesh 2011'!$F$35)","v":"07/09-06/10"},{"$f":"IF(ISBLANK('Bangladesh 2011'!$G$35),\"\",'Bangladesh 2011'!$G$35)","v":"DGFP procurement plan"},{"$f":"IF(ISBLANK('Bangladesh 2011'!$H$35),\"\",'Bangladesh 2011'!$H$35)","v":""},{"$f":"IF(ISBLANK('Bangladesh 2011'!$H$37),\"\",'Bangladesh 2011'!$H$37)","v":"Yes"},{"$f":"IF(ISBLANK('Bangladesh 2011'!$D$40),\"\",'Bangladesh 2011'!$D$40)","v":"Yes"},{"$f":"IF(ISBLANK('Bangladesh 2011'!$D$41),\"\",'Bangladesh 2011'!$D$41)","v":"General revenue funds"},{"$f":"IF(ISBLANK('Bangladesh 2011'!$E$40),\"\",'Bangladesh 2011'!$E$40)","v":714285},{"$f":"IF(ISBLANK('Bangladesh 2011'!$F$40),\"\",'Bangladesh 2011'!$F$40)","v":"07/09-06/10"},{"$f":"IF(ISBLANK('Bangladesh 2011'!$G$40),\"\",'Bangladesh 2011'!$G$40)","v":"DGFP"},{"$f":"IF(ISBLANK('Bangladesh 2011'!$H$40),\"\",'Bangladesh 2011'!$H$40)","v":""},{"$f":"IF(ISBLANK('Bangladesh 2011'!$D$42),\"\",'Bangladesh 2011'!$D$42)","v":"Yes"},{"$f":"IF(ISBLANK('Bangladesh 2011'!$D$43),\"\",'Bangladesh 2011'!$D$43)","v":"Basket funds"},{"$f":"IF(ISBLANK('Bangladesh 2011'!$E$42),\"\",'Bangladesh 2011'!$E$42)","v":35714285},{"$f":"IF(ISBLANK('Bangladesh 2011'!$F$42),\"\",'Bangladesh 2011'!$F$42)","v":"07/09-06/10"},{"$f":"IF(ISBLANK('Bangladesh 2011'!$G$42),\"\",'Bangladesh 2011'!$G$42)","v":"DGFP"},{"$f":"IF(ISBLANK('Bangladesh 2011'!$H$42),\"\",'Bangladesh 2011'!$H$42)","v":""},{"$f":"IF(ISBLANK('Bangladesh 2011'!$E$44),\"\",'Bangladesh 2011'!$E$44)","v":36428570},{"$f":"IF(ISBLANK('Bangladesh 2011'!$H$44),\"\",'Bangladesh 2011'!$H$44)","v":""},null,{"$f":"IF(ISBLANK('Bangladesh 2011'!$D$48),\"\",'Bangladesh 2011'!$D$48)","v":"Yes"},{"$f":"IF(ISBLANK('Bangladesh 2011'!$D$49),\"\",'Bangladesh 2011'!$D$49)","v":"USAID, KfW"},{"$f":"IF(ISBLANK('Bangladesh 2011'!$E$48),\"\",'Bangladesh 2011'!$E$48)","v":7142857},{"$f":"IF(ISBLANK('Bangladesh 2011'!$F$48),\"\",'Bangladesh 2011'!$F$48)","v":"07/09-06/10"},{"$f":"IF(ISBLANK('Bangladesh 2011'!$G$48),\"\",'Bangladesh 2011'!$G$48)","v":"USAID, DGFP"},{"$f":"IF(ISBLANK('Bangladesh 2011'!$H$48),\"\",'Bangladesh 2011'!$H$48)","v":""},{"$f":"IF(ISBLANK('Bangladesh 2011'!$D$50),\"\",'Bangladesh 2011'!$D$50)","v":"No"},{"$f":"IF(ISBLANK('Bangladesh 2011'!$E$50),\"\",'Bangladesh 2011'!$E$50)","v":0},{"$f":"IF(ISBLANK('Bangladesh 2011'!$F$50),\"\",'Bangladesh 2011'!$F$50)","v":"07/09-06/10"},{"$f":"IF(ISBLANK('Bangladesh 2011'!$G$50),\"\",'Bangladesh 2011'!$G$50)","v":""},{"$f":"IF(ISBLANK('Bangladesh 2011'!$H$50),\"\",'Bangladesh 2011'!$H$50)","v":""},{"$f":"IF(ISBLANK('Bangladesh 2011'!$D$51),\"\",'Bangladesh 2011'!$D$51)","v":"No"},{"$f":"IF(ISBLANK('Bangladesh 2011'!$E$51),\"\",'Bangladesh 2011'!$E$51)","v":0},{"$f":"IF(ISBLANK('Bangladesh 2011'!$F$51),\"\",'Bangladesh 2011'!$F$51)","v":"07/09-06/10"},{"$f":"IF(ISBLANK('Bangladesh 2011'!$G$51),\"\",'Bangladesh 2011'!$G$51)","v":""},{"$f":"IF(ISBLANK('Bangladesh 2011'!$H$51),\"\",'Bangladesh 2011'!$H$51)","v":""},{"$f":"IF(ISBLANK('Bangladesh 2011'!$E$52),\"\",'Bangladesh 2011'!$E$52)","v":7142857},{"$f":"IF(ISBLANK('Bangladesh 2011'!$H$52),\"\",'Bangladesh 2011'!$H$52)","v":""},{"$f":"IF(ISBLANK('Bangladesh 2011'!$F$55),\"\",'Bangladesh 2011'!$F$55)","v":0.83606557113679114},{"$f":"IF(ISBLANK('Bangladesh 2011'!$G$55),\"\",'Bangladesh 2011'!$G$55)","v":""},{"$f":"IF(ISBLANK('Bangladesh 2011'!$F$56),\"\",'Bangladesh 2011'!$F$56)","v":1},{"$f":"IF(ISBLANK('Bangladesh 2011'!$G$56),\"\",'Bangladesh 2011'!$G$56)","v":""},{"$f":"IF(ISBLANK('Bangladesh 2011'!$F$57),\"\",'Bangladesh 2011'!$F$57)","v":"No"},{"$f":"IF(ISBLANK('Bangladesh 2011'!$G$57),\"\",'Bangladesh 2011'!$G$57)","v":""},{"$f":"IF(ISBLANK('Bangladesh 2011'!$F$59),\"\",'Bangladesh 2011'!$F$59)","v":"The government (e.g., Central Medical Stores, MOH logistics unit, MOH procurement unit)"},{"$f":"IF(ISBLANK('Bangladesh 2011'!$F$60),\"\",'Bangladesh 2011'!$F$60)","v":"Directorate General of Family Planning"},{"$f":"IF(ISBLANK('Bangladesh 2011'!$F$61),\"\",'Bangladesh 2011'!$F$61)","v":"No"},{"$f":"IF(ISBLANK('Bangladesh 2011'!$D$62),\"\",'Bangladesh 2011'!$D$62)","v":""},null,null,{"$f":"IF(ISBLANK('Bangladesh 2011'!$D$66),\"\",'Bangladesh 2011'!$D$66)","v":"Yes"},{"$f":"IF(ISBLANK('Bangladesh 2011'!$D$67),\"\",'Bangladesh 2011'!$D$67)","v":"Yes"},{"$f":"IF(ISBLANK('Bangladesh 2011'!$D$68),\"\",'Bangladesh 2011'!$D$68)","v":"Yes"},{"$f":"IF(ISBLANK('Bangladesh 2011'!$D$69),\"\",'Bangladesh 2011'!$D$69)","v":"No"},{"$f":"IF(ISBLANK('Bangladesh 2011'!$D$70),\"\",'Bangladesh 2011'!$D$70)","v":"No"},{"$f":"IF(ISBLANK('Bangladesh 2011'!$D$71),\"\",'Bangladesh 2011'!$D$71)","v":"Yes"},{"$f":"IF(ISBLANK('Bangladesh 2011'!$D$72),\"\",'Bangladesh 2011'!$D$72)","v":"No"},{"$f":"IF(ISBLANK('Bangladesh 2011'!$D$73),\"\",'Bangladesh 2011'!$D$73)","v":"Yes"},{"$f":"IF(ISBLANK('Bangladesh 2011'!$D$74),\"\",'Bangladesh 2011'!$D$74)","v":"Yes"},{"$f":"IF(ISBLANK('Bangladesh 2011'!$D$75),\"\",'Bangladesh 2011'!$D$75)","v":"Yes"},{"$f":"IF(ISBLANK('Bangladesh 2011'!$D$76),\"\",'Bangladesh 2011'!$D$76)","v":"No"},{"$f":"IF(ISBLANK('Bangladesh 2011'!$D$77),\"\",'Bangladesh 2011'!$D$77)","v":""},null,{"$f":"IF(ISBLANK('Bangladesh 2011'!$F$66),\"\",'Bangladesh 2011'!$F$66)","v":"Yes"},{"$f":"IF(ISBLANK('Bangladesh 2011'!$F$67),\"\",'Bangladesh 2011'!$F$67)","v":"No"},{"$f":"IF(ISBLANK('Bangladesh 2011'!$F$68),\"\",'Bangladesh 2011'!$F$68)","v":"Yes"},{"$f":"IF(ISBLANK('Bangladesh 2011'!$F$69),\"\",'Bangladesh 2011'!$F$69)","v":"Yes"},{"$f":"IF(ISBLANK('Bangladesh 2011'!$F$70),\"\",'Bangladesh 2011'!$F$70)","v":"Yes"},{"$f":"IF(ISBLANK('Bangladesh 2011'!$F$71),\"\",'Bangladesh 2011'!$F$71)","v":"Yes"},{"$f":"IF(ISBLANK('Bangladesh 2011'!$F$72),\"\",'Bangladesh 2011'!$F$72)","v":"No"},{"$f":"IF(ISBLANK('Bangladesh 2011'!$F$73),\"\",'Bangladesh 2011'!$F$73)","v":"No"},{"$f":"IF(ISBLANK('Bangladesh 2011'!$F$74),\"\",'Bangladesh 2011'!$F$74)","v":"Yes"},{"$f":"IF(ISBLANK('Bangladesh 2011'!$F$75),\"\",'Bangladesh 2011'!$F$75)","v":"Yes"},{"$f":"IF(ISBLANK('Bangladesh 2011'!$F$76),\"\",'Bangladesh 2011'!$F$76)","v":"No"},{"$f":"IF(ISBLANK('Bangladesh 2011'!$F$77),\"\",'Bangladesh 2011'!$F$77)","v":""},null,{"$f":"IF(ISBLANK('Bangladesh 2011'!$G$66),\"\",'Bangladesh 2011'!$G$66)","v":"Yes"},{"$f":"IF(ISBLANK('Bangladesh 2011'!$G$67),\"\",'Bangladesh 2011'!$G$67)","v":"Yes"},{"$f":"IF(ISBLANK('Bangladesh 2011'!$G$68),\"\",'Bangladesh 2011'!$G$68)","v":"Yes"},{"$f":"IF(ISBLANK('Bangladesh 2011'!$G$69),\"\",'Bangladesh 2011'!$G$69)","v":"Yes"},{"$f":"IF(ISBLANK('Bangladesh 2011'!$G$70),\"\",'Bangladesh 2011'!$G$70)","v":"Yes"},{"$f":"IF(ISBLANK('Bangladesh 2011'!$G$71),\"\",'Bangladesh 2011'!$G$71)","v":"Yes"},{"$f":"IF(ISBLANK('Bangladesh 2011'!$G$72),\"\",'Bangladesh 2011'!$G$72)","v":"No"},{"$f":"IF(ISBLANK('Bangladesh 2011'!$G$73),\"\",'Bangladesh 2011'!$G$73)","v":"No"},{"$f":"IF(ISBLANK('Bangladesh 2011'!$G$74),\"\",'Bangladesh 2011'!$G$74)","v":"Yes"},{"$f":"IF(ISBLANK('Bangladesh 2011'!$G$75),\"\",'Bangladesh 2011'!$G$75)","v":"Yes"},{"$f":"IF(ISBLANK('Bangladesh 2011'!$G$76),\"\",'Bangladesh 2011'!$G$76)","v":"No"},{"$f":"IF(ISBLANK('Bangladesh 2011'!$G$77),\"\",'Bangladesh 2011'!$G$77)","v":""},null,{"$f":"IF(ISBLANK('Bangladesh 2011'!$H$66),\"\",'Bangladesh 2011'!$H$66)","v":"Yes"},{"$f":"IF(ISBLANK('Bangladesh 2011'!$H$67),\"\",'Bangladesh 2011'!$H$67)","v":"Yes"},{"$f":"IF(ISBLANK('Bangladesh 2011'!$H$68),\"\",'Bangladesh 2011'!$H$68)","v":"Yes"},{"$f":"IF(ISBLANK('Bangladesh 2011'!$H$69),\"\",'Bangladesh 2011'!$H$69)","v":"No"},{"$f":"IF(ISBLANK('Bangladesh 2011'!$H$70),\"\",'Bangladesh 2011'!$H$70)","v":"Yes"},{"$f":"IF(ISBLANK('Bangladesh 2011'!$H$71),\"\",'Bangladesh 2011'!$H$71)","v":"Yes"},{"$f":"IF(ISBLANK('Bangladesh 2011'!$H$72),\"\",'Bangladesh 2011'!$H$72)","v":"No"},{"$f":"IF(ISBLANK('Bangladesh 2011'!$H$73),\"\",'Bangladesh 2011'!$H$73)","v":"No"},{"$f":"IF(ISBLANK('Bangladesh 2011'!$H$74),\"\",'Bangladesh 2011'!$H$74)","v":"No"},{"$f":"IF(ISBLANK('Bangladesh 2011'!$H$75),\"\",'Bangladesh 2011'!$H$75)","v":"No"},{"$f":"IF(ISBLANK('Bangladesh 2011'!$H$76),\"\",'Bangladesh 2011'!$H$76)","v":"No"},{"$f":"IF(ISBLANK('Bangladesh 2011'!$H$77),\"\",'Bangladesh 2011'!$H$77)","v":""},{"$f":"IF(ISBLANK('Bangladesh 2011'!$D$78),\"\",'Bangladesh 2011'!$D$78)","v":"NGOs obtain their commodities from the government."},null,{"$f":"IF(ISBLANK('Bangladesh 2011'!$H$80),\"\",'Bangladesh 2011'!$H$80)","v":"Yes"},{"$f":"IF(ISBLANK('Bangladesh 2011'!$C$83),\"\",'Bangladesh 2011'!$C$83)","v":"Health, Nutrition and Population Sector Plan"},{"$f":"IF(ISBLANK('Bangladesh 2011'!$D$83),\"\",'Bangladesh 2011'!$D$83)","v":"2006-2011"},{"$f":"IF(ISBLANK('Bangladesh 2011'!$F$83),\"\",'Bangladesh 2011'!$F$83)","v":"Yes"},{"$f":"IF(ISBLANK('Bangladesh 2011'!$G$83),\"\",'Bangladesh 2011'!$G$83)","v":"Yes"},{"$f":"IF(ISBLANK('Bangladesh 2011'!$F$84),\"\",'Bangladesh 2011'!$F$84)","v":"Yes"},{"$f":"IF(ISBLANK('Bangladesh 2011'!$E$85),\"\",'Bangladesh 2011'!$E$85)","v":"Private sector"},{"$f":"IF(ISBLANK('Bangladesh 2011'!$E$86),\"\",'Bangladesh 2011'!$E$86)","v":"2.25% VAT, payable in advance"},{"$f":"IF(ISBLANK('Bangladesh 2011'!$H$87),\"\",'Bangladesh 2011'!$H$87)","v":"Yes"},{"$f":"IF(ISBLANK('Bangladesh 2011'!$D$88),\"\",'Bangladesh 2011'!$D$88)","v":"Private sector needs specific permission to import & distribute contraceptive commodities."},{"$f":"IF(ISBLANK('Bangladesh 2011'!$H$89),\"\",'Bangladesh 2011'!$H$89)","v":"Yes"},{"$f":"IF(ISBLANK('Bangladesh 2011'!$D$90),\"\",'Bangladesh 2011'!$D$90)","v":"There is a policy to use IUDs and implants for long-term methods, and they are subject to a regulation that they should be inserted by a trained doctor and/or paramedic in a clinical environment. NGO clinics can offer these methods upon receiving them from the government."},{"$f":"IF(ISBLANK('Bangladesh 2011'!$H$91),\"\",'Bangladesh 2011'!$H$91)","v":"Yes"},{"$f":"IF(ISBLANK('Bangladesh 2011'!$C$94),\"\",'Bangladesh 2011'!$C$94)","v":"Injectables"},{"$f":"IF(ISBLANK('Bangladesh 2011'!$E$94),\"\",'Bangladesh 2011'!$E$94)","v":"Community workers cannot initiate the first dose."},{"$f":"IF(ISBLANK('Bangladesh 2011'!$G$94),\"\",'Bangladesh 2011'!$G$94)","v":""},{"$f":"IF(ISBLANK('Bangladesh 2011'!$C$95),\"\",'Bangladesh 2011'!$C$95)","v":"All contraceptive methods"},{"$f":"IF(ISBLANK('Bangladesh 2011'!$E$95),\"\",'Bangladesh 2011'!$E$95)","v":""},{"$f":"IF(ISBLANK('Bangladesh 2011'!$G$95),\"\",'Bangladesh 2011'!$G$95)","v":"All personnel need government authorization."},{"$f":"IF(ISBLANK('Bangladesh 2011'!$C$96),\"\",'Bangladesh 2011'!$C$96)","v":""},{"$f":"IF(ISBLANK('Bangladesh 2011'!$E$96),\"\",'Bangladesh 2011'!$E$96)","v":""},{"$f":"IF(ISBLANK('Bangladesh 2011'!$G$96),\"\",'Bangladesh 2011'!$G$96)","v":""},null,{"$f":"IF(ISBLANK('Bangladesh 2011'!$D$99),\"\",'Bangladesh 2011'!$D$99)","v":"Yes"},{"$f":"IF(ISBLANK('Bangladesh 2011'!$E$99),\"\",'Bangladesh 2011'!$E$99)","v":"Unmarried women can't receive IUDs, injectables, implants, or tubal ligation."},{"$f":"IF(ISBLANK('Bangladesh 2011'!$H$99),\"\",'Bangladesh 2011'!$H$99)","v":"Yes"},{"$f":"IF(ISBLANK('Bangladesh 2011'!$D$100),\"\",'Bangladesh 2011'!$D$100)","v":"No"},{"$f":"IF(ISBLANK('Bangladesh 2011'!$E$100),\"\",'Bangladesh 2011'!$E$100)","v":""},{"$f":"IF(ISBLANK('Bangladesh 2011'!$H$100),\"\",'Bangladesh 2011'!$H$100)","v":""},{"$f":"IF(ISBLANK('Bangladesh 2011'!$D$101),\"\",'Bangladesh 2011'!$D$101)","v":"Yes"},{"$f":"IF(ISBLANK('Bangladesh 2011'!$E$101),\"\",'Bangladesh 2011'!$E$101)","v":"Low parity women and men can't receive IUDs, tubal ligation, or vasectomy. Non-parous women can't receive injectables or implants."},{"$f":"IF(ISBLANK('Bangladesh 2011'!$H$101),\"\",'Bangladesh 2011'!$H$101)","v":"Yes"},null,{"$f":"IF(ISBLANK('Bangladesh 2011'!$G$104),\"\",'Bangladesh 2011'!$G$104)","v":"No"},{"$f":"IF(ISBLANK('Bangladesh 2011'!$G$105),\"\",'Bangladesh 2011'!$G$105)","v":"No"},{"$f":"IF(ISBLANK('Bangladesh 2011'!$G$106),\"\",'Bangladesh 2011'!$G$106)","v":"N/A"},{"$f":"IF(ISBLANK('Bangladesh 2011'!$D$107),\"\",'Bangladesh 2011'!$D$107)","v":"N/A"},null,{"$f":"IF(ISBLANK('Bangladesh 2011'!$G$109),\"\",'Bangladesh 2011'!$G$109)","v":"Yes"},{"$f":"IF(ISBLANK('Bangladesh 2011'!$G$110),\"\",'Bangladesh 2011'!$G$110)","v":"Yes"},{"$f":"IF(ISBLANK('Bangladesh 2011'!$G$111),\"\",'Bangladesh 2011'!$G$111)","v":"Yes"},{"$f":"IF(ISBLANK('Bangladesh 2011'!$G$112),\"\",'Bangladesh 2011'!$G$112)","v":"Yes"},{"$f":"IF(ISBLANK('Bangladesh 2011'!$G$113),\"\",'Bangladesh 2011'!$G$113)","v":"Yes"},{"$f":"IF(ISBLANK('Bangladesh 2011'!$G$114),\"\",'Bangladesh 2011'!$G$114)","v":"Yes"},{"$f":"IF(ISBLANK('Bangladesh 2011'!$G$115),\"\",'Bangladesh 2011'!$G$115)","v":"No"},{"$f":"IF(ISBLANK('Bangladesh 2011'!$G$116),\"\",'Bangladesh 2011'!$G$116)","v":"Yes"},{"$f":"IF(ISBLANK('Bangladesh 2011'!$G$117),\"\",'Bangladesh 2011'!$G$117)","v":"No"},{"$f":"IF(ISBLANK('Bangladesh 2011'!$G$118),\"\",'Bangladesh 2011'!$G$118)","v":"No"},{"$f":"IF(ISBLANK('Bangladesh 2011'!$F$119),\"\",'Bangladesh 2011'!$F$119)","v":"N/A"},{"$f":"IF(ISBLANK('Bangladesh 2011'!$F$120),\"\",'Bangladesh 2011'!$F$120)","v":2010},{"$f":"IF(ISBLANK('Bangladesh 2011'!$D$121),\"\",'Bangladesh 2011'!$D$121)","v":"Approved contraceptive list"},{"$f":"IF(ISBLANK('Bangladesh 2011'!$D$122),\"\",'Bangladesh 2011'!$D$122)","v":""},null,{"$f":"IF(ISBLANK('Bangladesh 2011'!$F$124),\"\",'Bangladesh 2011'!$F$124)","v":2005},{"$f":"IF(ISBLANK('Bangladesh 2011'!$G$125),\"\",'Bangladesh 2011'!$G$125)","v":"Yes"},{"$f":"IF(ISBLANK('Bangladesh 2011'!$G$126),\"\",'Bangladesh 2011'!$G$126)","v":"No"},{"$f":"IF(ISBLANK('Bangladesh 2011'!$G$127),\"\",'Bangladesh 2011'!$G$127)","v":"Yes"},{"$f":"IF(ISBLANK('Bangladesh 2011'!$G$128),\"\",'Bangladesh 2011'!$G$128)","v":"No"},{"$f":"IF(ISBLANK('Bangladesh 2011'!$D$129),\"\",'Bangladesh 2011'!$D$129)","v":""},null,{"$f":"IF(ISBLANK('Bangladesh 2011'!$G$131),\"\",'Bangladesh 2011'!$G$131)","v":"Yes"},null,{"$f":"IF(ISBLANK('Bangladesh 2011'!$G$133),\"\",'Bangladesh 2011'!$G$133)","v":"No"},{"$f":"IF(ISBLANK('Bangladesh 2011'!$G$134),\"\",'Bangladesh 2011'!$G$134)","v":"N/A"},{"$f":"IF(ISBLANK('Bangladesh 2011'!$G$135),\"\",'Bangladesh 2011'!$G$135)","v":"No"},{"$f":"IF(ISBLANK('Bangladesh 2011'!$G$136),\"\",'Bangladesh 2011'!$G$136)","v":"Yes"},{"$f":"IF(ISBLANK('Bangladesh 2011'!$G$137),\"\",'Bangladesh 2011'!$G$137)","v":"Yes"},{"$f":"IF(ISBLANK('Bangladesh 2011'!$G$138),\"\",'Bangladesh 2011'!$G$138)","v":"No"},{"$f":"IF(ISBLANK('Bangladesh 2011'!$G$139),\"\",'Bangladesh 2011'!$G$139)","v":"N/A"},{"$f":"IF(ISBLANK('Bangladesh 2011'!$G$140),\"\",'Bangladesh 2011'!$G$140)","v":"N/A"},{"$f":"IF(ISBLANK('Bangladesh 2011'!$G$141),\"\",'Bangladesh 2011'!$G$141)","v":"N/A"},{"$f":"IF(ISBLANK('Bangladesh 2011'!$F$142),\"\",'Bangladesh 2011'!$F$142)","v":"01/10-12/10"},{"$f":"IF(ISBLANK('Bangladesh 2011'!$F$143),\"\",'Bangladesh 2011'!$F$143)","v":"DGFP Logistics Management Information System (LMIS)"},null,{"$f":"IF(ISBLANK('Bangladesh 2011'!$G$145),\"\",'Bangladesh 2011'!$G$145)","v":"No"},{"$f":"IF(ISBLANK('Bangladesh 2011'!$G$146),\"\",'Bangladesh 2011'!$G$146)","v":"No"},{"$f":"IF(ISBLANK('Bangladesh 2011'!$D$147),\"\",'Bangladesh 2011'!$D$147)","v":"The bottleneck in the procurement management has been addressed and now it is almost streamlined through the DGFP Online Procurement Tracker (www.dgfplmis.org)"},"Europe and Asia"]
["Bolivia ",null,{"$f":"IF(ISBLANK('Bolivia 2011'!$H$12),\"\",'Bolivia 2011'!$H$12)","v":"Yes"},{"$f":"IF(ISBLANK('Bolivia 2011'!$D$13),\"\",'Bolivia 2011'!$D$13)","v":"Comité Nacional de Disponibilidad Asegurada de Insumos Anticonceptivos (DAIA) (National Contraceptive Security Committee)"},null,{"$f":"IF(ISBLANK('Bolivia 2011'!$D$15),\"\",'Bolivia 2011'!$D$15)","v":"Yes"},{"$f":"IF(ISBLANK('Bolivia 2011'!$F$15),\"\",'Bolivia 2011'!$F$15)","v":"PROSALUD"},{"$f":"IF(ISBLANK('Bolivia 2011'!$D$16),\"\",'Bolivia 2011'!$D$16)","v":"Yes"},{"$f":"IF(ISBLANK('Bolivia 2011'!$F$16),\"\",'Bolivia 2011'!$F$16)","v":"Centro de orientacion sexual y reproductiva de Bolivia (CIES) (Bolivian center for sexual and reproductive orientation) "},{"$f":"IF(ISBLANK('Bolivia 2011'!$D$17),\"\",'Bolivia 2011'!$D$17)","v":"No"},{"$f":"IF(ISBLANK('Bolivia 2011'!$F$17),\"\",'Bolivia 2011'!$F$17)","v":""},{"$f":"IF(ISBLANK('Bolivia 2011'!$D$18),\"\",'Bolivia 2011'!$D$18)","v":"Yes"},{"$f":"IF(ISBLANK('Bolivia 2011'!$F$18),\"\",'Bolivia 2011'!$F$18)","v":"USAID"},{"$f":"IF(ISBLANK('Bolivia 2011'!$D$19),\"\",'Bolivia 2011'!$D$19)","v":"Yes"},{"$f":"IF(ISBLANK('Bolivia 2011'!$F$19),\"\",'Bolivia 2011'!$F$19)","v":"UNFPA"},{"$f":"IF(ISBLANK('Bolivia 2011'!$D$20),\"\",'Bolivia 2011'!$D$20)","v":"Yes"},{"$f":"IF(ISBLANK('Bolivia 2011'!$F$20),\"\",'Bolivia 2011'!$F$20)","v":"DINAMED (Dirección Nacional del Medicamento - National Essential Medicines Directorate); USSyC/SSR (Unidad de Servicios de Salud y Calidad/Salud Sexual y Reproductiva - Health Services and Quality and Sexual and Reproductive Health Units) "},{"$f":"IF(ISBLANK('Bolivia 2011'!$D$21),\"\",'Bolivia 2011'!$D$21)","v":"Yes"},{"$f":"IF(ISBLANK('Bolivia 2011'!$F$21),\"\",'Bolivia 2011'!$F$21)","v":"CEASS (Central de Abastecimiento de Suministros)"},{"$f":"IF(ISBLANK('Bolivia 2011'!$D$22),\"\",'Bolivia 2011'!$D$22)","v":"No"},{"$f":"IF(ISBLANK('Bolivia 2011'!$F$22),\"\",'Bolivia 2011'!$F$22)","v":""},{"$f":"IF(ISBLANK('Bolivia 2011'!$D$23),\"\",'Bolivia 2011'!$D$23)","v":"Yes"},{"$f":"IF(ISBLANK('Bolivia 2011'!$F$23),\"\",'Bolivia 2011'!$F$23)","v":"John Snow Inc.'s Proyecto Gestion y Calidad en Salud (GC&S)  (Health Management and Quality Project)"},{"$f":"IF(ISBLANK('Bolivia 2011'!$H$24),\"\",'Bolivia 2011'!$H$24)","v":"3-5 times"},{"$f":"IF(ISBLANK('Bolivia 2011'!$H$25),\"\",'Bolivia 2011'!$H$25)","v":"No"},{"$f":"IF(ISBLANK('Bolivia 2011'!$D$26),\"\",'Bolivia 2011'!$D$26)","v":"Yes"},{"$f":"IF(ISBLANK('Bolivia 2011'!$F$26),\"\",'Bolivia 2011'!$F$26)","v":"PROSALUD, CIES, G&CS/JSI, USAID, UNFPA"},{"$f":"IF(ISBLANK('Bolivia 2011'!$H$26),\"\",'Bolivia 2011'!$H$26)","v":"N/A"},null,{"$f":"IF(ISBLANK('Bolivia 2011'!$F$28),\"\",'Bolivia 2011'!$F$28)","v":"January"},{"$f":"IF(ISBLANK('Bolivia 2011'!$H$28),\"\",'Bolivia 2011'!$H$28)","v":"December"},{"$f":"IF(ISBLANK('Bolivia 2011'!$G$29),\"\",'Bolivia 2011'!$G$29)","v":"Don't know - forecast for public sector specifically not available "},{"$f":"IF(ISBLANK('Bolivia 2011'!$E$30),\"\",'Bolivia 2011'!$E$30)","v":"Don't know"},{"$f":"IF(ISBLANK('Bolivia 2011'!$G$30),\"\",'Bolivia 2011'!$G$30)","v":"Don't know"},{"$f":"IF(ISBLANK('Bolivia 2011'!$H$31),\"\",'Bolivia 2011'!$H$31)","v":"No"},{"$f":"IF(ISBLANK('Bolivia 2011'!$H$32),\"\",'Bolivia 2011'!$H$32)","v":"Don't know"},{"$f":"IF(ISBLANK('Bolivia 2011'!$E$35),\"\",'Bolivia 2011'!$E$35)","v":"Don't know"},{"$f":"IF(ISBLANK('Bolivia 2011'!$F$35),\"\",'Bolivia 2011'!$F$35)","v":"01/10-12/10"},{"$f":"IF(ISBLANK('Bolivia 2011'!$G$35),\"\",'Bolivia 2011'!$G$35)","v":""},{"$f":"IF(ISBLANK('Bolivia 2011'!$H$35),\"\",'Bolivia 2011'!$H$35)","v":""},{"$f":"IF(ISBLANK('Bolivia 2011'!$H$37),\"\",'Bolivia 2011'!$H$37)","v":"Don't know"},{"$f":"IF(ISBLANK('Bolivia 2011'!$D$40),\"\",'Bolivia 2011'!$D$40)","v":"Don't know"},{"$f":"IF(ISBLANK('Bolivia 2011'!$D$41),\"\",'Bolivia 2011'!$D$41)","v":"Don't know"},{"$f":"IF(ISBLANK('Bolivia 2011'!$E$40),\"\",'Bolivia 2011'!$E$40)","v":"Don't know"},{"$f":"IF(ISBLANK('Bolivia 2011'!$F$40),\"\",'Bolivia 2011'!$F$40)","v":"01/10-12/10"},{"$f":"IF(ISBLANK('Bolivia 2011'!$G$40),\"\",'Bolivia 2011'!$G$40)","v":""},{"$f":"IF(ISBLANK('Bolivia 2011'!$H$40),\"\",'Bolivia 2011'!$H$40)","v":""},{"$f":"IF(ISBLANK('Bolivia 2011'!$D$42),\"\",'Bolivia 2011'!$D$42)","v":"Don't know"},{"$f":"IF(ISBLANK('Bolivia 2011'!$D$43),\"\",'Bolivia 2011'!$D$43)","v":"Don't know"},{"$f":"IF(ISBLANK('Bolivia 2011'!$E$42),\"\",'Bolivia 2011'!$E$42)","v":"Don't know"},{"$f":"IF(ISBLANK('Bolivia 2011'!$F$42),\"\",'Bolivia 2011'!$F$42)","v":"01/10-12/10"},{"$f":"IF(ISBLANK('Bolivia 2011'!$G$42),\"\",'Bolivia 2011'!$G$42)","v":""},{"$f":"IF(ISBLANK('Bolivia 2011'!$H$42),\"\",'Bolivia 2011'!$H$42)","v":""},{"$f":"IF(ISBLANK('Bolivia 2011'!$E$44),\"\",'Bolivia 2011'!$E$44)","v":"Don't know"},{"$f":"IF(ISBLANK('Bolivia 2011'!$H$44),\"\",'Bolivia 2011'!$H$44)","v":""},null,{"$f":"IF(ISBLANK('Bolivia 2011'!$D$48),\"\",'Bolivia 2011'!$D$48)","v":"Yes"},{"$f":"IF(ISBLANK('Bolivia 2011'!$D$49),\"\",'Bolivia 2011'!$D$49)","v":"UNFPA"},{"$f":"IF(ISBLANK('Bolivia 2011'!$E$48),\"\",'Bolivia 2011'!$E$48)","v":540000},{"$f":"IF(ISBLANK('Bolivia 2011'!$F$48),\"\",'Bolivia 2011'!$F$48)","v":"01/10-12/10"},{"$f":"IF(ISBLANK('Bolivia 2011'!$G$48),\"\",'Bolivia 2011'!$G$48)","v":"RHInterchange"},{"$f":"IF(ISBLANK('Bolivia 2011'!$H$48),\"\",'Bolivia 2011'!$H$48)","v":""},{"$f":"IF(ISBLANK('Bolivia 2011'!$D$50),\"\",'Bolivia 2011'!$D$50)","v":"No"},{"$f":"IF(ISBLANK('Bolivia 2011'!$E$50),\"\",'Bolivia 2011'!$E$50)","v":0},{"$f":"IF(ISBLANK('Bolivia 2011'!$F$50),\"\",'Bolivia 2011'!$F$50)","v":"01/10-12/10"},{"$f":"IF(ISBLANK('Bolivia 2011'!$G$50),\"\",'Bolivia 2011'!$G$50)","v":"RHInterchange"},{"$f":"IF(ISBLANK('Bolivia 2011'!$H$50),\"\",'Bolivia 2011'!$H$50)","v":""},{"$f":"IF(ISBLANK('Bolivia 2011'!$D$51),\"\",'Bolivia 2011'!$D$51)","v":"No"},{"$f":"IF(ISBLANK('Bolivia 2011'!$E$51),\"\",'Bolivia 2011'!$E$51)","v":0},{"$f":"IF(ISBLANK('Bolivia 2011'!$F$51),\"\",'Bolivia 2011'!$F$51)","v":"01/10-12/10"},{"$f":"IF(ISBLANK('Bolivia 2011'!$G$51),\"\",'Bolivia 2011'!$G$51)","v":"RHInterchange"},{"$f":"IF(ISBLANK('Bolivia 2011'!$H$51),\"\",'Bolivia 2011'!$H$51)","v":""},{"$f":"IF(ISBLANK('Bolivia 2011'!$E$52),\"\",'Bolivia 2011'!$E$52)","v":540000},{"$f":"IF(ISBLANK('Bolivia 2011'!$H$52),\"\",'Bolivia 2011'!$H$52)","v":""},{"$f":"IF(ISBLANK('Bolivia 2011'!$F$55),\"\",'Bolivia 2011'!$F$55)","v":"Don't know"},{"$f":"IF(ISBLANK('Bolivia 2011'!$G$55),\"\",'Bolivia 2011'!$G$55)","v":"Government funds used for procurement are part of the public health insurance funds - at the municipal level - to locally procure commodities for the public sector. Municipalities often purchase their supplies from PROSALUD, the social marketing program, that also provides services and supplies through their own clinics and sales points. It is not posible to determine the amount spent locally by the public sector."},{"$f":"IF(ISBLANK('Bolivia 2011'!$F$56),\"\",'Bolivia 2011'!$F$56)","v":"Don't know"},{"$f":"IF(ISBLANK('Bolivia 2011'!$G$56),\"\",'Bolivia 2011'!$G$56)","v":""},{"$f":"IF(ISBLANK('Bolivia 2011'!$F$57),\"\",'Bolivia 2011'!$F$57)","v":"Yes"},{"$f":"IF(ISBLANK('Bolivia 2011'!$G$57),\"\",'Bolivia 2011'!$G$57)","v":"The products sold by the Social Marketing Program to the public sector are subsidized. The payments made by the public health insurance cover the subsidized price, except in the case of Depo-provera (40% of the price of each product is not covered) and female condoms (90% of the price of each product is not covered)."},{"$f":"IF(ISBLANK('Bolivia 2011'!$F$59),\"\",'Bolivia 2011'!$F$59)","v":"N/A"},{"$f":"IF(ISBLANK('Bolivia 2011'!$F$60),\"\",'Bolivia 2011'!$F$60)","v":"N/A"},{"$f":"IF(ISBLANK('Bolivia 2011'!$F$61),\"\",'Bolivia 2011'!$F$61)","v":"N/A"},{"$f":"IF(ISBLANK('Bolivia 2011'!$D$62),\"\",'Bolivia 2011'!$D$62)","v":"Currently, only in the case of donations are contraceptive commodities available at CEASS (the central warehouse), a parastatal entity."},null,null,{"$f":"IF(ISBLANK('Bolivia 2011'!$D$66),\"\",'Bolivia 2011'!$D$66)","v":"Yes"},{"$f":"IF(ISBLANK('Bolivia 2011'!$D$67),\"\",'Bolivia 2011'!$D$67)","v":"Yes"},{"$f":"IF(ISBLANK('Bolivia 2011'!$D$68),\"\",'Bolivia 2011'!$D$68)","v":"Yes"},{"$f":"IF(ISBLANK('Bolivia 2011'!$D$69),\"\",'Bolivia 2011'!$D$69)","v":"No"},{"$f":"IF(ISBLANK('Bolivia 2011'!$D$70),\"\",'Bolivia 2011'!$D$70)","v":"Yes"},{"$f":"IF(ISBLANK('Bolivia 2011'!$D$71),\"\",'Bolivia 2011'!$D$71)","v":"Yes"},{"$f":"IF(ISBLANK('Bolivia 2011'!$D$72),\"\",'Bolivia 2011'!$D$72)","v":"Yes"},{"$f":"IF(ISBLANK('Bolivia 2011'!$D$73),\"\",'Bolivia 2011'!$D$73)","v":"Yes"},{"$f":"IF(ISBLANK('Bolivia 2011'!$D$74),\"\",'Bolivia 2011'!$D$74)","v":"Yes"},{"$f":"IF(ISBLANK('Bolivia 2011'!$D$75),\"\",'Bolivia 2011'!$D$75)","v":"Yes"},{"$f":"IF(ISBLANK('Bolivia 2011'!$D$76),\"\",'Bolivia 2011'!$D$76)","v":"Yes"},{"$f":"IF(ISBLANK('Bolivia 2011'!$D$77),\"\",'Bolivia 2011'!$D$77)","v":""},null,{"$f":"IF(ISBLANK('Bolivia 2011'!$F$66),\"\",'Bolivia 2011'!$F$66)","v":"Yes"},{"$f":"IF(ISBLANK('Bolivia 2011'!$F$67),\"\",'Bolivia 2011'!$F$67)","v":"Don't know"},{"$f":"IF(ISBLANK('Bolivia 2011'!$F$68),\"\",'Bolivia 2011'!$F$68)","v":"Yes"},{"$f":"IF(ISBLANK('Bolivia 2011'!$F$69),\"\",'Bolivia 2011'!$F$69)","v":"No"},{"$f":"IF(ISBLANK('Bolivia 2011'!$F$70),\"\",'Bolivia 2011'!$F$70)","v":"Yes"},{"$f":"IF(ISBLANK('Bolivia 2011'!$F$71),\"\",'Bolivia 2011'!$F$71)","v":"Yes"},{"$f":"IF(ISBLANK('Bolivia 2011'!$F$72),\"\",'Bolivia 2011'!$F$72)","v":"Yes"},{"$f":"IF(ISBLANK('Bolivia 2011'!$F$73),\"\",'Bolivia 2011'!$F$73)","v":"No"},{"$f":"IF(ISBLANK('Bolivia 2011'!$F$74),\"\",'Bolivia 2011'!$F$74)","v":"Yes"},{"$f":"IF(ISBLANK('Bolivia 2011'!$F$75),\"\",'Bolivia 2011'!$F$75)","v":"Yes"},{"$f":"IF(ISBLANK('Bolivia 2011'!$F$76),\"\",'Bolivia 2011'!$F$76)","v":"Yes"},{"$f":"IF(ISBLANK('Bolivia 2011'!$F$77),\"\",'Bolivia 2011'!$F$77)","v":""},null,{"$f":"IF(ISBLANK('Bolivia 2011'!$G$66),\"\",'Bolivia 2011'!$G$66)","v":"Yes"},{"$f":"IF(ISBLANK('Bolivia 2011'!$G$67),\"\",'Bolivia 2011'!$G$67)","v":"Don't know"},{"$f":"IF(ISBLANK('Bolivia 2011'!$G$68),\"\",'Bolivia 2011'!$G$68)","v":"Yes"},{"$f":"IF(ISBLANK('Bolivia 2011'!$G$69),\"\",'Bolivia 2011'!$G$69)","v":"Yes"},{"$f":"IF(ISBLANK('Bolivia 2011'!$G$70),\"\",'Bolivia 2011'!$G$70)","v":"Yes"},{"$f":"IF(ISBLANK('Bolivia 2011'!$G$71),\"\",'Bolivia 2011'!$G$71)","v":"Yes"},{"$f":"IF(ISBLANK('Bolivia 2011'!$G$72),\"\",'Bolivia 2011'!$G$72)","v":"Yes"},{"$f":"IF(ISBLANK('Bolivia 2011'!$G$73),\"\",'Bolivia 2011'!$G$73)","v":"Yes"},{"$f":"IF(ISBLANK('Bolivia 2011'!$G$74),\"\",'Bolivia 2011'!$G$74)","v":"Yes"},{"$f":"IF(ISBLANK('Bolivia 2011'!$G$75),\"\",'Bolivia 2011'!$G$75)","v":"Yes"},{"$f":"IF(ISBLANK('Bolivia 2011'!$G$76),\"\",'Bolivia 2011'!$G$76)","v":"Yes"},{"$f":"IF(ISBLANK('Bolivia 2011'!$G$77),\"\",'Bolivia 2011'!$G$77)","v":""},null,{"$f":"IF(ISBLANK('Bolivia 2011'!$H$66),\"\",'Bolivia 2011'!$H$66)","v":"Yes"},{"$f":"IF(ISBLANK('Bolivia 2011'!$H$67),\"\",'Bolivia 2011'!$H$67)","v":"No"},{"$f":"IF(ISBLANK('Bolivia 2011'!$H$68),\"\",'Bolivia 2011'!$H$68)","v":"Yes"},{"$f":"IF(ISBLANK('Bolivia 2011'!$H$69),\"\",'Bolivia 2011'!$H$69)","v":"No"},{"$f":"IF(ISBLANK('Bolivia 2011'!$H$70),\"\",'Bolivia 2011'!$H$70)","v":"Yes"},{"$f":"IF(ISBLANK('Bolivia 2011'!$H$71),\"\",'Bolivia 2011'!$H$71)","v":"Yes"},{"$f":"IF(ISBLANK('Bolivia 2011'!$H$72),\"\",'Bolivia 2011'!$H$72)","v":"Yes"},{"$f":"IF(ISBLANK('Bolivia 2011'!$H$73),\"\",'Bolivia 2011'!$H$73)","v":"No"},{"$f":"IF(ISBLANK('Bolivia 2011'!$H$74),\"\",'Bolivia 2011'!$H$74)","v":"No"},{"$f":"IF(ISBLANK('Bolivia 2011'!$H$75),\"\",'Bolivia 2011'!$H$75)","v":"No"},{"$f":"IF(ISBLANK('Bolivia 2011'!$H$76),\"\",'Bolivia 2011'!$H$76)","v":"Yes"},{"$f":"IF(ISBLANK('Bolivia 2011'!$H$77),\"\",'Bolivia 2011'!$H$77)","v":""},{"$f":"IF(ISBLANK('Bolivia 2011'!$D$78),\"\",'Bolivia 2011'!$D$78)","v":""},null,{"$f":"IF(ISBLANK('Bolivia 2011'!$H$80),\"\",'Bolivia 2011'!$H$80)","v":"No"},{"$f":"IF(ISBLANK('Bolivia 2011'!$C$83),\"\",'Bolivia 2011'!$C$83)","v":""},{"$f":"IF(ISBLANK('Bolivia 2011'!$D$83),\"\",'Bolivia 2011'!$D$83)","v":""},{"$f":"IF(ISBLANK('Bolivia 2011'!$F$83),\"\",'Bolivia 2011'!$F$83)","v":""},{"$f":"IF(ISBLANK('Bolivia 2011'!$G$83),\"\",'Bolivia 2011'!$G$83)","v":""},{"$f":"IF(ISBLANK('Bolivia 2011'!$F$84),\"\",'Bolivia 2011'!$F$84)","v":"Yes"},{"$f":"IF(ISBLANK('Bolivia 2011'!$E$85),\"\",'Bolivia 2011'!$E$85)","v":"For any sector, but donated products are exempt from taxes by a specific decree; the exemption needs to be processed for donations to the MOH."},{"$f":"IF(ISBLANK('Bolivia 2011'!$E$86),\"\",'Bolivia 2011'!$E$86)","v":"For all other sectors there is a 40% import cost and 16% sales tax."},{"$f":"IF(ISBLANK('Bolivia 2011'!$H$87),\"\",'Bolivia 2011'!$H$87)","v":"Yes"},{"$f":"IF(ISBLANK('Bolivia 2011'!$D$88),\"\",'Bolivia 2011'!$D$88)","v":"Taxes increase sales costs"},{"$f":"IF(ISBLANK('Bolivia 2011'!$H$89),\"\",'Bolivia 2011'!$H$89)","v":"Yes"},{"$f":"IF(ISBLANK('Bolivia 2011'!$D$90),\"\",'Bolivia 2011'!$D$90)","v":"Essential pharmaceuticals and commodities policy"},{"$f":"IF(ISBLANK('Bolivia 2011'!$H$91),\"\",'Bolivia 2011'!$H$91)","v":"Yes"},{"$f":"IF(ISBLANK('Bolivia 2011'!$C$94),\"\",'Bolivia 2011'!$C$94)","v":"Hormonal methods"},{"$f":"IF(ISBLANK('Bolivia 2011'!$E$94),\"\",'Bolivia 2011'!$E$94)","v":""},{"$f":"IF(ISBLANK('Bolivia 2011'!$G$94),\"\",'Bolivia 2011'!$G$94)","v":"Only by a health profesional"},{"$f":"IF(ISBLANK('Bolivia 2011'!$C$95),\"\",'Bolivia 2011'!$C$95)","v":""},{"$f":"IF(ISBLANK('Bolivia 2011'!$E$95),\"\",'Bolivia 2011'!$E$95)","v":""},{"$f":"IF(ISBLANK('Bolivia 2011'!$G$95),\"\",'Bolivia 2011'!$G$95)","v":""},{"$f":"IF(ISBLANK('Bolivia 2011'!$C$96),\"\",'Bolivia 2011'!$C$96)","v":""},{"$f":"IF(ISBLANK('Bolivia 2011'!$E$96),\"\",'Bolivia 2011'!$E$96)","v":""},{"$f":"IF(ISBLANK('Bolivia 2011'!$G$96),\"\",'Bolivia 2011'!$G$96)","v":""},null,{"$f":"IF(ISBLANK('Bolivia 2011'!$D$99),\"\",'Bolivia 2011'!$D$99)","v":"No"},{"$f":"IF(ISBLANK('Bolivia 2011'!$E$99),\"\",'Bolivia 2011'!$E$99)","v":""},{"$f":"IF(ISBLANK('Bolivia 2011'!$H$99),\"\",'Bolivia 2011'!$H$99)","v":""},{"$f":"IF(ISBLANK('Bolivia 2011'!$D$100),\"\",'Bolivia 2011'!$D$100)","v":"No"},{"$f":"IF(ISBLANK('Bolivia 2011'!$E$100),\"\",'Bolivia 2011'!$E$100)","v":""},{"$f":"IF(ISBLANK('Bolivia 2011'!$H$100),\"\",'Bolivia 2011'!$H$100)","v":""},{"$f":"IF(ISBLANK('Bolivia 2011'!$D$101),\"\",'Bolivia 2011'!$D$101)","v":"No"},{"$f":"IF(ISBLANK('Bolivia 2011'!$E$101),\"\",'Bolivia 2011'!$E$101)","v":""},{"$f":"IF(ISBLANK('Bolivia 2011'!$H$101),\"\",'Bolivia 2011'!$H$101)","v":""},null,{"$f":"IF(ISBLANK('Bolivia 2011'!$G$104),\"\",'Bolivia 2011'!$G$104)","v":"No"},{"$f":"IF(ISBLANK('Bolivia 2011'!$G$105),\"\",'Bolivia 2011'!$G$105)","v":"No"},{"$f":"IF(ISBLANK('Bolivia 2011'!$G$106),\"\",'Bolivia 2011'!$G$106)","v":"N/A"},{"$f":"IF(ISBLANK('Bolivia 2011'!$D$107),\"\",'Bolivia 2011'!$D$107)","v":"N/A"},null,{"$f":"IF(ISBLANK('Bolivia 2011'!$G$109),\"\",'Bolivia 2011'!$G$109)","v":"Yes"},{"$f":"IF(ISBLANK('Bolivia 2011'!$G$110),\"\",'Bolivia 2011'!$G$110)","v":"No"},{"$f":"IF(ISBLANK('Bolivia 2011'!$G$111),\"\",'Bolivia 2011'!$G$111)","v":"Yes"},{"$f":"IF(ISBLANK('Bolivia 2011'!$G$112),\"\",'Bolivia 2011'!$G$112)","v":"No"},{"$f":"IF(ISBLANK('Bolivia 2011'!$G$113),\"\",'Bolivia 2011'!$G$113)","v":"Yes"},{"$f":"IF(ISBLANK('Bolivia 2011'!$G$114),\"\",'Bolivia 2011'!$G$114)","v":"Yes"},{"$f":"IF(ISBLANK('Bolivia 2011'!$G$115),\"\",'Bolivia 2011'!$G$115)","v":"Yes"},{"$f":"IF(ISBLANK('Bolivia 2011'!$G$116),\"\",'Bolivia 2011'!$G$116)","v":"No"},{"$f":"IF(ISBLANK('Bolivia 2011'!$G$117),\"\",'Bolivia 2011'!$G$117)","v":"No"},{"$f":"IF(ISBLANK('Bolivia 2011'!$G$118),\"\",'Bolivia 2011'!$G$118)","v":"No"},{"$f":"IF(ISBLANK('Bolivia 2011'!$F$119),\"\",'Bolivia 2011'!$F$119)","v":"N/A"},{"$f":"IF(ISBLANK('Bolivia 2011'!$F$120),\"\",'Bolivia 2011'!$F$120)","v":2008},{"$f":"IF(ISBLANK('Bolivia 2011'!$D$121),\"\",'Bolivia 2011'!$D$121)","v":"Lista Nacional de Medicamentos Esenciales (LINAME) (National Essential Medicines List)"},{"$f":"IF(ISBLANK('Bolivia 2011'!$D$122),\"\",'Bolivia 2011'!$D$122)","v":"It is the national pharmaceuticals and commodities list for the national health system."},null,{"$f":"IF(ISBLANK('Bolivia 2011'!$F$124),\"\",'Bolivia 2011'!$F$124)","v":2001},{"$f":"IF(ISBLANK('Bolivia 2011'!$G$125),\"\",'Bolivia 2011'!$G$125)","v":"No"},{"$f":"IF(ISBLANK('Bolivia 2011'!$G$126),\"\",'Bolivia 2011'!$G$126)","v":"No"},{"$f":"IF(ISBLANK('Bolivia 2011'!$G$127),\"\",'Bolivia 2011'!$G$127)","v":"No"},{"$f":"IF(ISBLANK('Bolivia 2011'!$G$128),\"\",'Bolivia 2011'!$G$128)","v":"No"},{"$f":"IF(ISBLANK('Bolivia 2011'!$D$129),\"\",'Bolivia 2011'!$D$129)","v":""},null,{"$f":"IF(ISBLANK('Bolivia 2011'!$G$131),\"\",'Bolivia 2011'!$G$131)","v":"Yes"},null,{"$f":"IF(ISBLANK('Bolivia 2011'!$G$133),\"\",'Bolivia 2011'!$G$133)","v":"Yes"},{"$f":"IF(ISBLANK('Bolivia 2011'!$G$134),\"\",'Bolivia 2011'!$G$134)","v":"N/A"},{"$f":"IF(ISBLANK('Bolivia 2011'!$G$135),\"\",'Bolivia 2011'!$G$135)","v":"Yes"},{"$f":"IF(ISBLANK('Bolivia 2011'!$G$136),\"\",'Bolivia 2011'!$G$136)","v":"N/A"},{"$f":"IF(ISBLANK('Bolivia 2011'!$G$137),\"\",'Bolivia 2011'!$G$137)","v":"Yes"},{"$f":"IF(ISBLANK('Bolivia 2011'!$G$138),\"\",'Bolivia 2011'!$G$138)","v":"Yes"},{"$f":"IF(ISBLANK('Bolivia 2011'!$G$139),\"\",'Bolivia 2011'!$G$139)","v":"Yes"},{"$f":"IF(ISBLANK('Bolivia 2011'!$G$140),\"\",'Bolivia 2011'!$G$140)","v":"N/A"},{"$f":"IF(ISBLANK('Bolivia 2011'!$G$141),\"\",'Bolivia 2011'!$G$141)","v":"N/A"},{"$f":"IF(ISBLANK('Bolivia 2011'!$F$142),\"\",'Bolivia 2011'!$F$142)","v":"11/09-03/11"},{"$f":"IF(ISBLANK('Bolivia 2011'!$F$143),\"\",'Bolivia 2011'!$F$143)","v":"Warehouse reports, and CEASS Evaluation developed by UNFPA in March 2011"},null,{"$f":"IF(ISBLANK('Bolivia 2011'!$G$145),\"\",'Bolivia 2011'!$G$145)","v":"No"},{"$f":"IF(ISBLANK('Bolivia 2011'!$G$146),\"\",'Bolivia 2011'!$G$146)","v":"Yes"},{"$f":"IF(ISBLANK('Bolivia 2011'!$D$147),\"\",'Bolivia 2011'!$D$147)","v":"Although a government strategy is not currently being implemented, the Social Marketing Program/PROSALUD provides contraceptive commodities to the public and private-NGO sectors, and has a plan ensuring provision until 2015. Our country challenges include the regulatory policies that restrict international procurement of low-priced products that would be more affordable for low-income populations. "},"LAC"]
["Burkina Faso ",null,{"$f":"IF(ISBLANK('Burkina Faso 2011'!$H$12),\"\",'Burkina Faso 2011'!$H$12)","v":"Yes"},{"$f":"IF(ISBLANK('Burkina Faso 2011'!$D$13),\"\",'Burkina Faso 2011'!$D$13)","v":"Comité de Suivi de la Sécurisation des Produits de SR (Reproductive Health Commodities Security Follow-up Committee)"},null,{"$f":"IF(ISBLANK('Burkina Faso 2011'!$D$15),\"\",'Burkina Faso 2011'!$D$15)","v":"Yes"},{"$f":"IF(ISBLANK('Burkina Faso 2011'!$F$15),\"\",'Burkina Faso 2011'!$F$15)","v":"PROMACO"},{"$f":"IF(ISBLANK('Burkina Faso 2011'!$D$16),\"\",'Burkina Faso 2011'!$D$16)","v":"Yes"},{"$f":"IF(ISBLANK('Burkina Faso 2011'!$F$16),\"\",'Burkina Faso 2011'!$F$16)","v":"ABBEF (Burkina IPPF affiliate), Marie Stopes International (MSI)"},{"$f":"IF(ISBLANK('Burkina Faso 2011'!$D$17),\"\",'Burkina Faso 2011'!$D$17)","v":"Yes"},{"$f":"IF(ISBLANK('Burkina Faso 2011'!$F$17),\"\",'Burkina Faso 2011'!$F$17)","v":"Association des pharmaciens du privé (association of private pharmacists)"},{"$f":"IF(ISBLANK('Burkina Faso 2011'!$D$18),\"\",'Burkina Faso 2011'!$D$18)","v":"Yes"},{"$f":"IF(ISBLANK('Burkina Faso 2011'!$F$18),\"\",'Burkina Faso 2011'!$F$18)","v":"UNFPA"},{"$f":"IF(ISBLANK('Burkina Faso 2011'!$D$19),\"\",'Burkina Faso 2011'!$D$19)","v":"Yes"},{"$f":"IF(ISBLANK('Burkina Faso 2011'!$F$19),\"\",'Burkina Faso 2011'!$F$19)","v":"UNFPA"},{"$f":"IF(ISBLANK('Burkina Faso 2011'!$D$20),\"\",'Burkina Faso 2011'!$D$20)","v":"Yes"},{"$f":"IF(ISBLANK('Burkina Faso 2011'!$F$20),\"\",'Burkina Faso 2011'!$F$20)","v":"Family Health Division (DSF), Pharmacy Division, Planning and Research Division (DEP)"},{"$f":"IF(ISBLANK('Burkina Faso 2011'!$D$21),\"\",'Burkina Faso 2011'!$D$21)","v":"Yes"},{"$f":"IF(ISBLANK('Burkina Faso 2011'!$F$21),\"\",'Burkina Faso 2011'!$F$21)","v":"CAMEG (Central Medical Stores)"},{"$f":"IF(ISBLANK('Burkina Faso 2011'!$D$22),\"\",'Burkina Faso 2011'!$D$22)","v":"Yes"},{"$f":"IF(ISBLANK('Burkina Faso 2011'!$F$22),\"\",'Burkina Faso 2011'!$F$22)","v":"DAF Ministère de la Santé (Finances Division of the MOH), National Population Council (CONAPO)"},{"$f":"IF(ISBLANK('Burkina Faso 2011'!$D$23),\"\",'Burkina Faso 2011'!$D$23)","v":"Yes"},{"$f":"IF(ISBLANK('Burkina Faso 2011'!$F$23),\"\",'Burkina Faso 2011'!$F$23)","v":"Burkina Faso midwives' association (ABSF), Secrétariat permanent du Conseil national de lutte contre le SIDA (SP/CNLS) - permanent secretary of the national council of the fight against AIDS"},{"$f":"IF(ISBLANK('Burkina Faso 2011'!$H$24),\"\",'Burkina Faso 2011'!$H$24)","v":"1-2 times"},{"$f":"IF(ISBLANK('Burkina Faso 2011'!$H$25),\"\",'Burkina Faso 2011'!$H$25)","v":"Yes"},{"$f":"IF(ISBLANK('Burkina Faso 2011'!$D$26),\"\",'Burkina Faso 2011'!$D$26)","v":"Yes"},{"$f":"IF(ISBLANK('Burkina Faso 2011'!$F$26),\"\",'Burkina Faso 2011'!$F$26)","v":"Family Health Division (DSF)"},{"$f":"IF(ISBLANK('Burkina Faso 2011'!$H$26),\"\",'Burkina Faso 2011'!$H$26)","v":"Director"},null,{"$f":"IF(ISBLANK('Burkina Faso 2011'!$F$28),\"\",'Burkina Faso 2011'!$F$28)","v":"January"},{"$f":"IF(ISBLANK('Burkina Faso 2011'!$H$28),\"\",'Burkina Faso 2011'!$H$28)","v":"December"},{"$f":"IF(ISBLANK('Burkina Faso 2011'!$G$29),\"\",'Burkina Faso 2011'!$G$29)","v":2700000},{"$f":"IF(ISBLANK('Burkina Faso 2011'!$E$30),\"\",'Burkina Faso 2011'!$E$30)","v":"11/10"},{"$f":"IF(ISBLANK('Burkina Faso 2011'!$G$30),\"\",'Burkina Faso 2011'!$G$30)","v":"Reproductive Health Commodities Security Follow-up Committee"},{"$f":"IF(ISBLANK('Burkina Faso 2011'!$H$31),\"\",'Burkina Faso 2011'!$H$31)","v":"Yes"},{"$f":"IF(ISBLANK('Burkina Faso 2011'!$H$32),\"\",'Burkina Faso 2011'!$H$32)","v":"Yes"},{"$f":"IF(ISBLANK('Burkina Faso 2011'!$E$35),\"\",'Burkina Faso 2011'!$E$35)","v":600000},{"$f":"IF(ISBLANK('Burkina Faso 2011'!$F$35),\"\",'Burkina Faso 2011'!$F$35)","v":"01/10-12/10"},{"$f":"IF(ISBLANK('Burkina Faso 2011'!$G$35),\"\",'Burkina Faso 2011'!$G$35)","v":"Finance Department, MOH"},{"$f":"IF(ISBLANK('Burkina Faso 2011'!$H$35),\"\",'Burkina Faso 2011'!$H$35)","v":"There was a reduction in government funding due to the flood in September 2009."},{"$f":"IF(ISBLANK('Burkina Faso 2011'!$H$37),\"\",'Burkina Faso 2011'!$H$37)","v":"Yes"},{"$f":"IF(ISBLANK('Burkina Faso 2011'!$D$40),\"\",'Burkina Faso 2011'!$D$40)","v":"Yes"},{"$f":"IF(ISBLANK('Burkina Faso 2011'!$D$41),\"\",'Burkina Faso 2011'!$D$41)","v":"Taxes"},{"$f":"IF(ISBLANK('Burkina Faso 2011'!$E$40),\"\",'Burkina Faso 2011'!$E$40)","v":365205},{"$f":"IF(ISBLANK('Burkina Faso 2011'!$F$40),\"\",'Burkina Faso 2011'!$F$40)","v":"01/10-12/10"},{"$f":"IF(ISBLANK('Burkina Faso 2011'!$G$40),\"\",'Burkina Faso 2011'!$G$40)","v":"Contraceptive Procurement Table (CPT)"},{"$f":"IF(ISBLANK('Burkina Faso 2011'!$H$40),\"\",'Burkina Faso 2011'!$H$40)","v":"The government budget line allocated for 2010 for contraceptives was US$600,000, but out of this budget only US$365,205 was spent (accessibility issue)."},{"$f":"IF(ISBLANK('Burkina Faso 2011'!$D$42),\"\",'Burkina Faso 2011'!$D$42)","v":"Yes"},{"$f":"IF(ISBLANK('Burkina Faso 2011'!$D$43),\"\",'Burkina Faso 2011'!$D$43)","v":"Basket Fund"},{"$f":"IF(ISBLANK('Burkina Faso 2011'!$E$42),\"\",'Burkina Faso 2011'!$E$42)","v":404000},{"$f":"IF(ISBLANK('Burkina Faso 2011'!$F$42),\"\",'Burkina Faso 2011'!$F$42)","v":"01/10-12/10"},{"$f":"IF(ISBLANK('Burkina Faso 2011'!$G$42),\"\",'Burkina Faso 2011'!$G$42)","v":"Contraceptive Procurement Table (CPT)"},{"$f":"IF(ISBLANK('Burkina Faso 2011'!$H$42),\"\",'Burkina Faso 2011'!$H$42)","v":"Basket Funds managed by Project d’Appui au developpement sanitaire (PADS) - support to health development"},{"$f":"IF(ISBLANK('Burkina Faso 2011'!$E$44),\"\",'Burkina Faso 2011'!$E$44)","v":769205},{"$f":"IF(ISBLANK('Burkina Faso 2011'!$H$44),\"\",'Burkina Faso 2011'!$H$44)","v":""},null,{"$f":"IF(ISBLANK('Burkina Faso 2011'!$D$48),\"\",'Burkina Faso 2011'!$D$48)","v":"Yes"},{"$f":"IF(ISBLANK('Burkina Faso 2011'!$D$49),\"\",'Burkina Faso 2011'!$D$49)","v":"UNFPA (US$795,491) & USAID (US$ 270,762) "},{"$f":"IF(ISBLANK('Burkina Faso 2011'!$E$48),\"\",'Burkina Faso 2011'!$E$48)","v":1066253},{"$f":"IF(ISBLANK('Burkina Faso 2011'!$F$48),\"\",'Burkina Faso 2011'!$F$48)","v":"01/10-12/10"},{"$f":"IF(ISBLANK('Burkina Faso 2011'!$G$48),\"\",'Burkina Faso 2011'!$G$48)","v":"CPTs, PipeLine database, My Commodities on USAID | DELIVER PROJECT website "},{"$f":"IF(ISBLANK('Burkina Faso 2011'!$H$48),\"\",'Burkina Faso 2011'!$H$48)","v":" "},{"$f":"IF(ISBLANK('Burkina Faso 2011'!$D$50),\"\",'Burkina Faso 2011'!$D$50)","v":"No"},{"$f":"IF(ISBLANK('Burkina Faso 2011'!$E$50),\"\",'Burkina Faso 2011'!$E$50)","v":0},{"$f":"IF(ISBLANK('Burkina Faso 2011'!$F$50),\"\",'Burkina Faso 2011'!$F$50)","v":"01/10-12/10"},{"$f":"IF(ISBLANK('Burkina Faso 2011'!$G$50),\"\",'Burkina Faso 2011'!$G$50)","v":""},{"$f":"IF(ISBLANK('Burkina Faso 2011'!$H$50),\"\",'Burkina Faso 2011'!$H$50)","v":""},{"$f":"IF(ISBLANK('Burkina Faso 2011'!$D$51),\"\",'Burkina Faso 2011'!$D$51)","v":"No"},{"$f":"IF(ISBLANK('Burkina Faso 2011'!$E$51),\"\",'Burkina Faso 2011'!$E$51)","v":0},{"$f":"IF(ISBLANK('Burkina Faso 2011'!$F$51),\"\",'Burkina Faso 2011'!$F$51)","v":"01/10-12/10"},{"$f":"IF(ISBLANK('Burkina Faso 2011'!$G$51),\"\",'Burkina Faso 2011'!$G$51)","v":""},{"$f":"IF(ISBLANK('Burkina Faso 2011'!$H$51),\"\",'Burkina Faso 2011'!$H$51)","v":""},{"$f":"IF(ISBLANK('Burkina Faso 2011'!$E$52),\"\",'Burkina Faso 2011'!$E$52)","v":1066253},{"$f":"IF(ISBLANK('Burkina Faso 2011'!$H$52),\"\",'Burkina Faso 2011'!$H$52)","v":""},{"$f":"IF(ISBLANK('Burkina Faso 2011'!$F$55),\"\",'Burkina Faso 2011'!$F$55)","v":0.41908068721812214},{"$f":"IF(ISBLANK('Burkina Faso 2011'!$G$55),\"\",'Burkina Faso 2011'!$G$55)","v":"Government funds spent on contraceptive procurement represent 42% of the total funds spent on contraceptives for 2010.\n"},{"$f":"IF(ISBLANK('Burkina Faso 2011'!$F$56),\"\",'Burkina Faso 2011'!$F$56)","v":0.67979925925925921},{"$f":"IF(ISBLANK('Burkina Faso 2011'!$G$56),\"\",'Burkina Faso 2011'!$G$56)","v":"68% of the 2010 needs were covered. The remaining gap particularly implacted implants and male condoms.\n"},{"$f":"IF(ISBLANK('Burkina Faso 2011'!$F$57),\"\",'Burkina Faso 2011'!$F$57)","v":"Yes"},{"$f":"IF(ISBLANK('Burkina Faso 2011'!$G$57),\"\",'Burkina Faso 2011'!$G$57)","v":"The funding gap impacted the supply of implants and male condoms.\n"},{"$f":"IF(ISBLANK('Burkina Faso 2011'!$F$59),\"\",'Burkina Faso 2011'!$F$59)","v":"The government (e.g., Central Medical Stores, MOH logistics unit, MOH procurement unit)"},{"$f":"IF(ISBLANK('Burkina Faso 2011'!$F$60),\"\",'Burkina Faso 2011'!$F$60)","v":"CAMEG (Central Medical Stores)"},{"$f":"IF(ISBLANK('Burkina Faso 2011'!$F$61),\"\",'Burkina Faso 2011'!$F$61)","v":"Yes"},{"$f":"IF(ISBLANK('Burkina Faso 2011'!$D$62),\"\",'Burkina Faso 2011'!$D$62)","v":""},null,null,{"$f":"IF(ISBLANK('Burkina Faso 2011'!$D$66),\"\",'Burkina Faso 2011'!$D$66)","v":"Yes"},{"$f":"IF(ISBLANK('Burkina Faso 2011'!$D$67),\"\",'Burkina Faso 2011'!$D$67)","v":"Yes"},{"$f":"IF(ISBLANK('Burkina Faso 2011'!$D$68),\"\",'Burkina Faso 2011'!$D$68)","v":"Yes"},{"$f":"IF(ISBLANK('Burkina Faso 2011'!$D$69),\"\",'Burkina Faso 2011'!$D$69)","v":"No"},{"$f":"IF(ISBLANK('Burkina Faso 2011'!$D$70),\"\",'Burkina Faso 2011'!$D$70)","v":"No"},{"$f":"IF(ISBLANK('Burkina Faso 2011'!$D$71),\"\",'Burkina Faso 2011'!$D$71)","v":"Yes"},{"$f":"IF(ISBLANK('Burkina Faso 2011'!$D$72),\"\",'Burkina Faso 2011'!$D$72)","v":"Yes"},{"$f":"IF(ISBLANK('Burkina Faso 2011'!$D$73),\"\",'Burkina Faso 2011'!$D$73)","v":"Yes"},{"$f":"IF(ISBLANK('Burkina Faso 2011'!$D$74),\"\",'Burkina Faso 2011'!$D$74)","v":"No"},{"$f":"IF(ISBLANK('Burkina Faso 2011'!$D$75),\"\",'Burkina Faso 2011'!$D$75)","v":"No"},{"$f":"IF(ISBLANK('Burkina Faso 2011'!$D$76),\"\",'Burkina Faso 2011'!$D$76)","v":"No"},{"$f":"IF(ISBLANK('Burkina Faso 2011'!$D$77),\"\",'Burkina Faso 2011'!$D$77)","v":""},null,{"$f":"IF(ISBLANK('Burkina Faso 2011'!$F$66),\"\",'Burkina Faso 2011'!$F$66)","v":"Yes"},{"$f":"IF(ISBLANK('Burkina Faso 2011'!$F$67),\"\",'Burkina Faso 2011'!$F$67)","v":"Yes"},{"$f":"IF(ISBLANK('Burkina Faso 2011'!$F$68),\"\",'Burkina Faso 2011'!$F$68)","v":"Yes"},{"$f":"IF(ISBLANK('Burkina Faso 2011'!$F$69),\"\",'Burkina Faso 2011'!$F$69)","v":"Yes"},{"$f":"IF(ISBLANK('Burkina Faso 2011'!$F$70),\"\",'Burkina Faso 2011'!$F$70)","v":"Yes"},{"$f":"IF(ISBLANK('Burkina Faso 2011'!$F$71),\"\",'Burkina Faso 2011'!$F$71)","v":"Yes"},{"$f":"IF(ISBLANK('Burkina Faso 2011'!$F$72),\"\",'Burkina Faso 2011'!$F$72)","v":"Yes"},{"$f":"IF(ISBLANK('Burkina Faso 2011'!$F$73),\"\",'Burkina Faso 2011'!$F$73)","v":"No"},{"$f":"IF(ISBLANK('Burkina Faso 2011'!$F$74),\"\",'Burkina Faso 2011'!$F$74)","v":"Yes"},{"$f":"IF(ISBLANK('Burkina Faso 2011'!$F$75),\"\",'Burkina Faso 2011'!$F$75)","v":"Yes"},{"$f":"IF(ISBLANK('Burkina Faso 2011'!$F$76),\"\",'Burkina Faso 2011'!$F$76)","v":"Yes"},{"$f":"IF(ISBLANK('Burkina Faso 2011'!$F$77),\"\",'Burkina Faso 2011'!$F$77)","v":""},null,{"$f":"IF(ISBLANK('Burkina Faso 2011'!$G$66),\"\",'Burkina Faso 2011'!$G$66)","v":"Yes"},{"$f":"IF(ISBLANK('Burkina Faso 2011'!$G$67),\"\",'Burkina Faso 2011'!$G$67)","v":"Yes"},{"$f":"IF(ISBLANK('Burkina Faso 2011'!$G$68),\"\",'Burkina Faso 2011'!$G$68)","v":"Yes"},{"$f":"IF(ISBLANK('Burkina Faso 2011'!$G$69),\"\",'Burkina Faso 2011'!$G$69)","v":"Yes"},{"$f":"IF(ISBLANK('Burkina Faso 2011'!$G$70),\"\",'Burkina Faso 2011'!$G$70)","v":"Yes"},{"$f":"IF(ISBLANK('Burkina Faso 2011'!$G$71),\"\",'Burkina Faso 2011'!$G$71)","v":"Yes"},{"$f":"IF(ISBLANK('Burkina Faso 2011'!$G$72),\"\",'Burkina Faso 2011'!$G$72)","v":"Yes"},{"$f":"IF(ISBLANK('Burkina Faso 2011'!$G$73),\"\",'Burkina Faso 2011'!$G$73)","v":"Yes"},{"$f":"IF(ISBLANK('Burkina Faso 2011'!$G$74),\"\",'Burkina Faso 2011'!$G$74)","v":"Yes"},{"$f":"IF(ISBLANK('Burkina Faso 2011'!$G$75),\"\",'Burkina Faso 2011'!$G$75)","v":"Yes"},{"$f":"IF(ISBLANK('Burkina Faso 2011'!$G$76),\"\",'Burkina Faso 2011'!$G$76)","v":"Yes"},{"$f":"IF(ISBLANK('Burkina Faso 2011'!$G$77),\"\",'Burkina Faso 2011'!$G$77)","v":""},null,{"$f":"IF(ISBLANK('Burkina Faso 2011'!$H$66),\"\",'Burkina Faso 2011'!$H$66)","v":"Yes"},{"$f":"IF(ISBLANK('Burkina Faso 2011'!$H$67),\"\",'Burkina Faso 2011'!$H$67)","v":"No"},{"$f":"IF(ISBLANK('Burkina Faso 2011'!$H$68),\"\",'Burkina Faso 2011'!$H$68)","v":"No"},{"$f":"IF(ISBLANK('Burkina Faso 2011'!$H$69),\"\",'Burkina Faso 2011'!$H$69)","v":"No"},{"$f":"IF(ISBLANK('Burkina Faso 2011'!$H$70),\"\",'Burkina Faso 2011'!$H$70)","v":"No"},{"$f":"IF(ISBLANK('Burkina Faso 2011'!$H$71),\"\",'Burkina Faso 2011'!$H$71)","v":"Yes"},{"$f":"IF(ISBLANK('Burkina Faso 2011'!$H$72),\"\",'Burkina Faso 2011'!$H$72)","v":"Yes"},{"$f":"IF(ISBLANK('Burkina Faso 2011'!$H$73),\"\",'Burkina Faso 2011'!$H$73)","v":"No"},{"$f":"IF(ISBLANK('Burkina Faso 2011'!$H$74),\"\",'Burkina Faso 2011'!$H$74)","v":"No"},{"$f":"IF(ISBLANK('Burkina Faso 2011'!$H$75),\"\",'Burkina Faso 2011'!$H$75)","v":"No"},{"$f":"IF(ISBLANK('Burkina Faso 2011'!$H$76),\"\",'Burkina Faso 2011'!$H$76)","v":"No"},{"$f":"IF(ISBLANK('Burkina Faso 2011'!$H$77),\"\",'Burkina Faso 2011'!$H$77)","v":""},{"$f":"IF(ISBLANK('Burkina Faso 2011'!$D$78),\"\",'Burkina Faso 2011'!$D$78)","v":"The consumption of implants is increasing, and the consumption of male condoms in the public sector doubled in 2010 because of the cost and the new brand is different from the social marketing brand and more expensive."},null,{"$f":"IF(ISBLANK('Burkina Faso 2011'!$H$80),\"\",'Burkina Faso 2011'!$H$80)","v":"Yes"},{"$f":"IF(ISBLANK('Burkina Faso 2011'!$C$83),\"\",'Burkina Faso 2011'!$C$83)","v":"Reproductive Health Commodity Security Strategic Plan 2009-2015 (revised to this from the previous Contraceptive Security Strategic plan 2006-2015) "},{"$f":"IF(ISBLANK('Burkina Faso 2011'!$D$83),\"\",'Burkina Faso 2011'!$D$83)","v":" 2009-2015"},{"$f":"IF(ISBLANK('Burkina Faso 2011'!$F$83),\"\",'Burkina Faso 2011'!$F$83)","v":"Yes"},{"$f":"IF(ISBLANK('Burkina Faso 2011'!$G$83),\"\",'Burkina Faso 2011'!$G$83)","v":"Yes"},{"$f":"IF(ISBLANK('Burkina Faso 2011'!$F$84),\"\",'Burkina Faso 2011'!$F$84)","v":"Yes"},{"$f":"IF(ISBLANK('Burkina Faso 2011'!$E$85),\"\",'Burkina Faso 2011'!$E$85)","v":"Commercial sector"},{"$f":"IF(ISBLANK('Burkina Faso 2011'!$E$86),\"\",'Burkina Faso 2011'!$E$86)","v":"2.4%"},{"$f":"IF(ISBLANK('Burkina Faso 2011'!$H$87),\"\",'Burkina Faso 2011'!$H$87)","v":"No"},{"$f":"IF(ISBLANK('Burkina Faso 2011'!$D$88),\"\",'Burkina Faso 2011'!$D$88)","v":"N/A"},{"$f":"IF(ISBLANK('Burkina Faso 2011'!$H$89),\"\",'Burkina Faso 2011'!$H$89)","v":"No"},{"$f":"IF(ISBLANK('Burkina Faso 2011'!$D$90),\"\",'Burkina Faso 2011'!$D$90)","v":"N/A"},{"$f":"IF(ISBLANK('Burkina Faso 2011'!$H$91),\"\",'Burkina Faso 2011'!$H$91)","v":"Yes"},{"$f":"IF(ISBLANK('Burkina Faso 2011'!$C$94),\"\",'Burkina Faso 2011'!$C$94)","v":"Long-term methods: implants & IUDs"},{"$f":"IF(ISBLANK('Burkina Faso 2011'!$E$94),\"\",'Burkina Faso 2011'!$E$94)","v":"Provided only by health professionals (medical doctors and nurses)"},{"$f":"IF(ISBLANK('Burkina Faso 2011'!$G$94),\"\",'Burkina Faso 2011'!$G$94)","v":"Provided only by health professionals (medical doctors and nurses)"},{"$f":"IF(ISBLANK('Burkina Faso 2011'!$C$95),\"\",'Burkina Faso 2011'!$C$95)","v":"Oral contraceptives"},{"$f":"IF(ISBLANK('Burkina Faso 2011'!$E$95),\"\",'Burkina Faso 2011'!$E$95)","v":"Community Health Workers (CHWs) cannot prescribe pills, but FP clients can replenish their stock of pills from the CHW."},{"$f":"IF(ISBLANK('Burkina Faso 2011'!$G$95),\"\",'Burkina Faso 2011'!$G$95)","v":""},{"$f":"IF(ISBLANK('Burkina Faso 2011'!$C$96),\"\",'Burkina Faso 2011'!$C$96)","v":""},{"$f":"IF(ISBLANK('Burkina Faso 2011'!$E$96),\"\",'Burkina Faso 2011'!$E$96)","v":""},{"$f":"IF(ISBLANK('Burkina Faso 2011'!$G$96),\"\",'Burkina Faso 2011'!$G$96)","v":""},null,{"$f":"IF(ISBLANK('Burkina Faso 2011'!$D$99),\"\",'Burkina Faso 2011'!$D$99)","v":"No"},{"$f":"IF(ISBLANK('Burkina Faso 2011'!$E$99),\"\",'Burkina Faso 2011'!$E$99)","v":""},{"$f":"IF(ISBLANK('Burkina Faso 2011'!$H$99),\"\",'Burkina Faso 2011'!$H$99)","v":""},{"$f":"IF(ISBLANK('Burkina Faso 2011'!$D$100),\"\",'Burkina Faso 2011'!$D$100)","v":"No"},{"$f":"IF(ISBLANK('Burkina Faso 2011'!$E$100),\"\",'Burkina Faso 2011'!$E$100)","v":""},{"$f":"IF(ISBLANK('Burkina Faso 2011'!$H$100),\"\",'Burkina Faso 2011'!$H$100)","v":""},{"$f":"IF(ISBLANK('Burkina Faso 2011'!$D$101),\"\",'Burkina Faso 2011'!$D$101)","v":"Don't know"},{"$f":"IF(ISBLANK('Burkina Faso 2011'!$E$101),\"\",'Burkina Faso 2011'!$E$101)","v":""},{"$f":"IF(ISBLANK('Burkina Faso 2011'!$H$101),\"\",'Burkina Faso 2011'!$H$101)","v":""},null,{"$f":"IF(ISBLANK('Burkina Faso 2011'!$G$104),\"\",'Burkina Faso 2011'!$G$104)","v":"Yes"},{"$f":"IF(ISBLANK('Burkina Faso 2011'!$G$105),\"\",'Burkina Faso 2011'!$G$105)","v":"Yes"},{"$f":"IF(ISBLANK('Burkina Faso 2011'!$G$106),\"\",'Burkina Faso 2011'!$G$106)","v":"Yes"},{"$f":"IF(ISBLANK('Burkina Faso 2011'!$D$107),\"\",'Burkina Faso 2011'!$D$107)","v":"For the indigent population, contraceprtives are free of charge."},null,{"$f":"IF(ISBLANK('Burkina Faso 2011'!$G$109),\"\",'Burkina Faso 2011'!$G$109)","v":"Yes"},{"$f":"IF(ISBLANK('Burkina Faso 2011'!$G$110),\"\",'Burkina Faso 2011'!$G$110)","v":"Yes"},{"$f":"IF(ISBLANK('Burkina Faso 2011'!$G$111),\"\",'Burkina Faso 2011'!$G$111)","v":"Yes"},{"$f":"IF(ISBLANK('Burkina Faso 2011'!$G$112),\"\",'Burkina Faso 2011'!$G$112)","v":"Yes"},{"$f":"IF(ISBLANK('Burkina Faso 2011'!$G$113),\"\",'Burkina Faso 2011'!$G$113)","v":"Yes"},{"$f":"IF(ISBLANK('Burkina Faso 2011'!$G$114),\"\",'Burkina Faso 2011'!$G$114)","v":"Yes"},{"$f":"IF(ISBLANK('Burkina Faso 2011'!$G$115),\"\",'Burkina Faso 2011'!$G$115)","v":"Yes"},{"$f":"IF(ISBLANK('Burkina Faso 2011'!$G$116),\"\",'Burkina Faso 2011'!$G$116)","v":"Yes"},{"$f":"IF(ISBLANK('Burkina Faso 2011'!$G$117),\"\",'Burkina Faso 2011'!$G$117)","v":"No"},{"$f":"IF(ISBLANK('Burkina Faso 2011'!$G$118),\"\",'Burkina Faso 2011'!$G$118)","v":"Don't know"},{"$f":"IF(ISBLANK('Burkina Faso 2011'!$F$119),\"\",'Burkina Faso 2011'!$F$119)","v":"Don't know"},{"$f":"IF(ISBLANK('Burkina Faso 2011'!$F$120),\"\",'Burkina Faso 2011'!$F$120)","v":2010},{"$f":"IF(ISBLANK('Burkina Faso 2011'!$D$121),\"\",'Burkina Faso 2011'!$D$121)","v":"National Essential Medicines List (LNME in French)"},{"$f":"IF(ISBLANK('Burkina Faso 2011'!$D$122),\"\",'Burkina Faso 2011'!$D$122)","v":""},null,{"$f":"IF(ISBLANK('Burkina Faso 2011'!$F$124),\"\",'Burkina Faso 2011'!$F$124)","v":2005},{"$f":"IF(ISBLANK('Burkina Faso 2011'!$G$125),\"\",'Burkina Faso 2011'!$G$125)","v":"Yes"},{"$f":"IF(ISBLANK('Burkina Faso 2011'!$G$126),\"\",'Burkina Faso 2011'!$G$126)","v":"No"},{"$f":"IF(ISBLANK('Burkina Faso 2011'!$G$127),\"\",'Burkina Faso 2011'!$G$127)","v":"No"},{"$f":"IF(ISBLANK('Burkina Faso 2011'!$G$128),\"\",'Burkina Faso 2011'!$G$128)","v":"No"},{"$f":"IF(ISBLANK('Burkina Faso 2011'!$D$129),\"\",'Burkina Faso 2011'!$D$129)","v":"A supply indicator is included for generic and essential drugs. It does not refer directly to RH or FP supplies though."},null,{"$f":"IF(ISBLANK('Burkina Faso 2011'!$G$131),\"\",'Burkina Faso 2011'!$G$131)","v":"Yes"},null,{"$f":"IF(ISBLANK('Burkina Faso 2011'!$G$133),\"\",'Burkina Faso 2011'!$G$133)","v":"No"},{"$f":"IF(ISBLANK('Burkina Faso 2011'!$G$134),\"\",'Burkina Faso 2011'!$G$134)","v":"No"},{"$f":"IF(ISBLANK('Burkina Faso 2011'!$G$135),\"\",'Burkina Faso 2011'!$G$135)","v":"No"},{"$f":"IF(ISBLANK('Burkina Faso 2011'!$G$136),\"\",'Burkina Faso 2011'!$G$136)","v":"Yes"},{"$f":"IF(ISBLANK('Burkina Faso 2011'!$G$137),\"\",'Burkina Faso 2011'!$G$137)","v":"No"},{"$f":"IF(ISBLANK('Burkina Faso 2011'!$G$138),\"\",'Burkina Faso 2011'!$G$138)","v":"Yes"},{"$f":"IF(ISBLANK('Burkina Faso 2011'!$G$139),\"\",'Burkina Faso 2011'!$G$139)","v":"No"},{"$f":"IF(ISBLANK('Burkina Faso 2011'!$G$140),\"\",'Burkina Faso 2011'!$G$140)","v":"N/A"},{"$f":"IF(ISBLANK('Burkina Faso 2011'!$G$141),\"\",'Burkina Faso 2011'!$G$141)","v":"No"},{"$f":"IF(ISBLANK('Burkina Faso 2011'!$F$142),\"\",'Burkina Faso 2011'!$F$142)","v":"01/10-12/10"},{"$f":"IF(ISBLANK('Burkina Faso 2011'!$F$143),\"\",'Burkina Faso 2011'!$F$143)","v":"Warehouse report (CAMEG report)"},null,{"$f":"IF(ISBLANK('Burkina Faso 2011'!$G$145),\"\",'Burkina Faso 2011'!$G$145)","v":"Yes"},{"$f":"IF(ISBLANK('Burkina Faso 2011'!$G$146),\"\",'Burkina Faso 2011'!$G$146)","v":"No"},{"$f":"IF(ISBLANK('Burkina Faso 2011'!$D$147),\"\",'Burkina Faso 2011'!$D$147)","v":"Challenges: lack of forecasting and quantification capacity. Successes: the contraceptive budget line was maintained despite the difficult period in 2009 dealing with the impact of the floods. Additionally, the government has increased its budget line (for internally generated funds) from US $600,000 in 2010 to US $1.0 million in 2011. Despite temporary stockouts of implants and male condoms at the central level in 2010, there were no stockouts noticed at the service delivery points.                      "},"Africa"]
["Democratic Republic of Congo ",null,{"$f":"IF(ISBLANK('Democratic Republic Congo 2011'!$H$12),\"\",'Democratic Republic Congo 2011'!$H$12)","v":"Yes"},{"$f":"IF(ISBLANK('Democratic Republic Congo 2011'!$D$13),\"\",'Democratic Republic Congo 2011'!$D$13)","v":"Groupe de Travail sur la Securisation des Produits de Santé de Reproduction (Working Group on Reproductive Health Commodity Security)"},null,{"$f":"IF(ISBLANK('Democratic Republic Congo 2011'!$D$15),\"\",'Democratic Republic Congo 2011'!$D$15)","v":"Yes"},{"$f":"IF(ISBLANK('Democratic Republic Congo 2011'!$F$15),\"\",'Democratic Republic Congo 2011'!$F$15)","v":"Population Services International/Association de Santé Familial (PSI/ASF)"},{"$f":"IF(ISBLANK('Democratic Republic Congo 2011'!$D$16),\"\",'Democratic Republic Congo 2011'!$D$16)","v":"Yes"},{"$f":"IF(ISBLANK('Democratic Republic Congo 2011'!$F$16),\"\",'Democratic Republic Congo 2011'!$F$16)","v":"Association pour le Bien Etre Familial (ABEF) (Association for Family Well-being)"},{"$f":"IF(ISBLANK('Democratic Republic Congo 2011'!$D$17),\"\",'Democratic Republic Congo 2011'!$D$17)","v":"No"},{"$f":"IF(ISBLANK('Democratic Republic Congo 2011'!$F$17),\"\",'Democratic Republic Congo 2011'!$F$17)","v":""},{"$f":"IF(ISBLANK('Democratic Republic Congo 2011'!$D$18),\"\",'Democratic Republic Congo 2011'!$D$18)","v":"Yes"},{"$f":"IF(ISBLANK('Democratic Republic Congo 2011'!$F$18),\"\",'Democratic Republic Congo 2011'!$F$18)","v":"USAID, World Bank"},{"$f":"IF(ISBLANK('Democratic Republic Congo 2011'!$D$19),\"\",'Democratic Republic Congo 2011'!$D$19)","v":"Yes"},{"$f":"IF(ISBLANK('Democratic Republic Congo 2011'!$F$19),\"\",'Democratic Republic Congo 2011'!$F$19)","v":"UNFPA"},{"$f":"IF(ISBLANK('Democratic Republic Congo 2011'!$D$20),\"\",'Democratic Republic Congo 2011'!$D$20)","v":"Yes"},{"$f":"IF(ISBLANK('Democratic Republic Congo 2011'!$F$20),\"\",'Democratic Republic Congo 2011'!$F$20)","v":"National Program for Essential Drugs, National Reproductive Health Program, Directorate of Planning, Directorate of Family and Specific Groups"},{"$f":"IF(ISBLANK('Democratic Republic Congo 2011'!$D$21),\"\",'Democratic Republic Congo 2011'!$D$21)","v":"No"},{"$f":"IF(ISBLANK('Democratic Republic Congo 2011'!$F$21),\"\",'Democratic Republic Congo 2011'!$F$21)","v":""},{"$f":"IF(ISBLANK('Democratic Republic Congo 2011'!$D$22),\"\",'Democratic Republic Congo 2011'!$D$22)","v":"No"},{"$f":"IF(ISBLANK('Democratic Republic Congo 2011'!$F$22),\"\",'Democratic Republic Congo 2011'!$F$22)","v":""},{"$f":"IF(ISBLANK('Democratic Republic Congo 2011'!$D$23),\"\",'Democratic Republic Congo 2011'!$D$23)","v":"No"},{"$f":"IF(ISBLANK('Democratic Republic Congo 2011'!$F$23),\"\",'Democratic Republic Congo 2011'!$F$23)","v":""},{"$f":"IF(ISBLANK('Democratic Republic Congo 2011'!$H$24),\"\",'Democratic Republic Congo 2011'!$H$24)","v":"Don't know"},{"$f":"IF(ISBLANK('Democratic Republic Congo 2011'!$H$25),\"\",'Democratic Republic Congo 2011'!$H$25)","v":"Don't know"},{"$f":"IF(ISBLANK('Democratic Republic Congo 2011'!$D$26),\"\",'Democratic Republic Congo 2011'!$D$26)","v":"Yes"},{"$f":"IF(ISBLANK('Democratic Republic Congo 2011'!$F$26),\"\",'Democratic Republic Congo 2011'!$F$26)","v":"Programme National de Santé de la Reproduction (National Program of Reproductive Health)"},{"$f":"IF(ISBLANK('Democratic Republic Congo 2011'!$H$26),\"\",'Democratic Republic Congo 2011'!$H$26)","v":"Chief of Commodities Division"},null,{"$f":"IF(ISBLANK('Democratic Republic Congo 2011'!$F$28),\"\",'Democratic Republic Congo 2011'!$F$28)","v":"January"},{"$f":"IF(ISBLANK('Democratic Republic Congo 2011'!$H$28),\"\",'Democratic Republic Congo 2011'!$H$28)","v":"December"},{"$f":"IF(ISBLANK('Democratic Republic Congo 2011'!$G$29),\"\",'Democratic Republic Congo 2011'!$G$29)","v":"Don’t know "},{"$f":"IF(ISBLANK('Democratic Republic Congo 2011'!$E$30),\"\",'Democratic Republic Congo 2011'!$E$30)","v":"12/10"},{"$f":"IF(ISBLANK('Democratic Republic Congo 2011'!$G$30),\"\",'Democratic Republic Congo 2011'!$G$30)","v":"USAID and UNFPA each conducted a separate forecast. "},{"$f":"IF(ISBLANK('Democratic Republic Congo 2011'!$H$31),\"\",'Democratic Republic Congo 2011'!$H$31)","v":"No"},{"$f":"IF(ISBLANK('Democratic Republic Congo 2011'!$H$32),\"\",'Democratic Republic Congo 2011'!$H$32)","v":"No"},{"$f":"IF(ISBLANK('Democratic Republic Congo 2011'!$E$35),\"\",'Democratic Republic Congo 2011'!$E$35)","v":0},{"$f":"IF(ISBLANK('Democratic Republic Congo 2011'!$F$35),\"\",'Democratic Republic Congo 2011'!$F$35)","v":"01/10-12/10"},{"$f":"IF(ISBLANK('Democratic Republic Congo 2011'!$G$35),\"\",'Democratic Republic Congo 2011'!$G$35)","v":""},{"$f":"IF(ISBLANK('Democratic Republic Congo 2011'!$H$35),\"\",'Democratic Republic Congo 2011'!$H$35)","v":""},{"$f":"IF(ISBLANK('Democratic Republic Congo 2011'!$H$37),\"\",'Democratic Republic Congo 2011'!$H$37)","v":"No"},{"$f":"IF(ISBLANK('Democratic Republic Congo 2011'!$D$40),\"\",'Democratic Republic Congo 2011'!$D$40)","v":"No"},{"$f":"IF(ISBLANK('Democratic Republic Congo 2011'!$D$41),\"\",'Democratic Republic Congo 2011'!$D$41)","v":"N/A"},{"$f":"IF(ISBLANK('Democratic Republic Congo 2011'!$E$40),\"\",'Democratic Republic Congo 2011'!$E$40)","v":0},{"$f":"IF(ISBLANK('Democratic Republic Congo 2011'!$F$40),\"\",'Democratic Republic Congo 2011'!$F$40)","v":"01/10-12/10"},{"$f":"IF(ISBLANK('Democratic Republic Congo 2011'!$G$40),\"\",'Democratic Republic Congo 2011'!$G$40)","v":""},{"$f":"IF(ISBLANK('Democratic Republic Congo 2011'!$H$40),\"\",'Democratic Republic Congo 2011'!$H$40)","v":"No funds spent "},{"$f":"IF(ISBLANK('Democratic Republic Congo 2011'!$D$42),\"\",'Democratic Republic Congo 2011'!$D$42)","v":"No"},{"$f":"IF(ISBLANK('Democratic Republic Congo 2011'!$D$43),\"\",'Democratic Republic Congo 2011'!$D$43)","v":"N/A"},{"$f":"IF(ISBLANK('Democratic Republic Congo 2011'!$E$42),\"\",'Democratic Republic Congo 2011'!$E$42)","v":0},{"$f":"IF(ISBLANK('Democratic Republic Congo 2011'!$F$42),\"\",'Democratic Republic Congo 2011'!$F$42)","v":"01/10-12/10"},{"$f":"IF(ISBLANK('Democratic Republic Congo 2011'!$G$42),\"\",'Democratic Republic Congo 2011'!$G$42)","v":""},{"$f":"IF(ISBLANK('Democratic Republic Congo 2011'!$H$42),\"\",'Democratic Republic Congo 2011'!$H$42)","v":"No funds spent "},{"$f":"IF(ISBLANK('Democratic Republic Congo 2011'!$E$44),\"\",'Democratic Republic Congo 2011'!$E$44)","v":0},{"$f":"IF(ISBLANK('Democratic Republic Congo 2011'!$H$44),\"\",'Democratic Republic Congo 2011'!$H$44)","v":""},null,{"$f":"IF(ISBLANK('Democratic Republic Congo 2011'!$D$48),\"\",'Democratic Republic Congo 2011'!$D$48)","v":"Yes"},{"$f":"IF(ISBLANK('Democratic Republic Congo 2011'!$D$49),\"\",'Democratic Republic Congo 2011'!$D$49)","v":"UNFPA ($1,626,071) & USAID ($4,233,542)"},{"$f":"IF(ISBLANK('Democratic Republic Congo 2011'!$E$48),\"\",'Democratic Republic Congo 2011'!$E$48)","v":5859613},{"$f":"IF(ISBLANK('Democratic Republic Congo 2011'!$F$48),\"\",'Democratic Republic Congo 2011'!$F$48)","v":"01/10-12/10"},{"$f":"IF(ISBLANK('Democratic Republic Congo 2011'!$G$48),\"\",'Democratic Republic Congo 2011'!$G$48)","v":"Donor records"},{"$f":"IF(ISBLANK('Democratic Republic Congo 2011'!$H$48),\"\",'Democratic Republic Congo 2011'!$H$48)","v":""},{"$f":"IF(ISBLANK('Democratic Republic Congo 2011'!$D$50),\"\",'Democratic Republic Congo 2011'!$D$50)","v":"No"},{"$f":"IF(ISBLANK('Democratic Republic Congo 2011'!$E$50),\"\",'Democratic Republic Congo 2011'!$E$50)","v":0},{"$f":"IF(ISBLANK('Democratic Republic Congo 2011'!$F$50),\"\",'Democratic Republic Congo 2011'!$F$50)","v":"01/10-12/10"},{"$f":"IF(ISBLANK('Democratic Republic Congo 2011'!$G$50),\"\",'Democratic Republic Congo 2011'!$G$50)","v":""},{"$f":"IF(ISBLANK('Democratic Republic Congo 2011'!$H$50),\"\",'Democratic Republic Congo 2011'!$H$50)","v":""},{"$f":"IF(ISBLANK('Democratic Republic Congo 2011'!$D$51),\"\",'Democratic Republic Congo 2011'!$D$51)","v":"No"},{"$f":"IF(ISBLANK('Democratic Republic Congo 2011'!$E$51),\"\",'Democratic Republic Congo 2011'!$E$51)","v":0},{"$f":"IF(ISBLANK('Democratic Republic Congo 2011'!$F$51),\"\",'Democratic Republic Congo 2011'!$F$51)","v":"01/10-12/10"},{"$f":"IF(ISBLANK('Democratic Republic Congo 2011'!$G$51),\"\",'Democratic Republic Congo 2011'!$G$51)","v":""},{"$f":"IF(ISBLANK('Democratic Republic Congo 2011'!$H$51),\"\",'Democratic Republic Congo 2011'!$H$51)","v":""},{"$f":"IF(ISBLANK('Democratic Republic Congo 2011'!$E$52),\"\",'Democratic Republic Congo 2011'!$E$52)","v":5859613},{"$f":"IF(ISBLANK('Democratic Republic Congo 2011'!$H$52),\"\",'Democratic Republic Congo 2011'!$H$52)","v":""},{"$f":"IF(ISBLANK('Democratic Republic Congo 2011'!$F$55),\"\",'Democratic Republic Congo 2011'!$F$55)","v":0},{"$f":"IF(ISBLANK('Democratic Republic Congo 2011'!$G$55),\"\",'Democratic Republic Congo 2011'!$G$55)","v":"Contraceptive procurement is 100% dependent on donors.\n"},{"$f":"IF(ISBLANK('Democratic Republic Congo 2011'!$F$56),\"\",'Democratic Republic Congo 2011'!$F$56)","v":"Don't know"},{"$f":"IF(ISBLANK('Democratic Republic Congo 2011'!$G$56),\"\",'Democratic Republic Congo 2011'!$G$56)","v":"The commodity security committee planned to quantify contraceptive needs for the country but this exercise still needs to be done.\n"},{"$f":"IF(ISBLANK('Democratic Republic Congo 2011'!$F$57),\"\",'Democratic Republic Congo 2011'!$F$57)","v":"Yes"},{"$f":"IF(ISBLANK('Democratic Republic Congo 2011'!$G$57),\"\",'Democratic Republic Congo 2011'!$G$57)","v":"There is definitely a funding gap, but the amount of this gap has not been determined.\n"},{"$f":"IF(ISBLANK('Democratic Republic Congo 2011'!$F$59),\"\",'Democratic Republic Congo 2011'!$F$59)","v":"N/A"},{"$f":"IF(ISBLANK('Democratic Republic Congo 2011'!$F$60),\"\",'Democratic Republic Congo 2011'!$F$60)","v":"N/A"},{"$f":"IF(ISBLANK('Democratic Republic Congo 2011'!$F$61),\"\",'Democratic Republic Congo 2011'!$F$61)","v":"N/A"},{"$f":"IF(ISBLANK('Democratic Republic Congo 2011'!$D$62),\"\",'Democratic Republic Congo 2011'!$D$62)","v":""},null,null,{"$f":"IF(ISBLANK('Democratic Republic Congo 2011'!$D$66),\"\",'Democratic Republic Congo 2011'!$D$66)","v":"Yes"},{"$f":"IF(ISBLANK('Democratic Republic Congo 2011'!$D$67),\"\",'Democratic Republic Congo 2011'!$D$67)","v":"Yes"},{"$f":"IF(ISBLANK('Democratic Republic Congo 2011'!$D$68),\"\",'Democratic Republic Congo 2011'!$D$68)","v":"Yes"},{"$f":"IF(ISBLANK('Democratic Republic Congo 2011'!$D$69),\"\",'Democratic Republic Congo 2011'!$D$69)","v":"No"},{"$f":"IF(ISBLANK('Democratic Republic Congo 2011'!$D$70),\"\",'Democratic Republic Congo 2011'!$D$70)","v":"No"},{"$f":"IF(ISBLANK('Democratic Republic Congo 2011'!$D$71),\"\",'Democratic Republic Congo 2011'!$D$71)","v":"Yes"},{"$f":"IF(ISBLANK('Democratic Republic Congo 2011'!$D$72),\"\",'Democratic Republic Congo 2011'!$D$72)","v":"No"},{"$f":"IF(ISBLANK('Democratic Republic Congo 2011'!$D$73),\"\",'Democratic Republic Congo 2011'!$D$73)","v":"Yes"},{"$f":"IF(ISBLANK('Democratic Republic Congo 2011'!$D$74),\"\",'Democratic Republic Congo 2011'!$D$74)","v":"No"},{"$f":"IF(ISBLANK('Democratic Republic Congo 2011'!$D$75),\"\",'Democratic Republic Congo 2011'!$D$75)","v":"No"},{"$f":"IF(ISBLANK('Democratic Republic Congo 2011'!$D$76),\"\",'Democratic Republic Congo 2011'!$D$76)","v":"No"},{"$f":"IF(ISBLANK('Democratic Republic Congo 2011'!$D$77),\"\",'Democratic Republic Congo 2011'!$D$77)","v":""},null,{"$f":"IF(ISBLANK('Democratic Republic Congo 2011'!$F$66),\"\",'Democratic Republic Congo 2011'!$F$66)","v":"Yes"},{"$f":"IF(ISBLANK('Democratic Republic Congo 2011'!$F$67),\"\",'Democratic Republic Congo 2011'!$F$67)","v":"Yes"},{"$f":"IF(ISBLANK('Democratic Republic Congo 2011'!$F$68),\"\",'Democratic Republic Congo 2011'!$F$68)","v":"Yes"},{"$f":"IF(ISBLANK('Democratic Republic Congo 2011'!$F$69),\"\",'Democratic Republic Congo 2011'!$F$69)","v":"Yes"},{"$f":"IF(ISBLANK('Democratic Republic Congo 2011'!$F$70),\"\",'Democratic Republic Congo 2011'!$F$70)","v":"Yes"},{"$f":"IF(ISBLANK('Democratic Republic Congo 2011'!$F$71),\"\",'Democratic Republic Congo 2011'!$F$71)","v":"Yes"},{"$f":"IF(ISBLANK('Democratic Republic Congo 2011'!$F$72),\"\",'Democratic Republic Congo 2011'!$F$72)","v":"Yes"},{"$f":"IF(ISBLANK('Democratic Republic Congo 2011'!$F$73),\"\",'Democratic Republic Congo 2011'!$F$73)","v":"Yes"},{"$f":"IF(ISBLANK('Democratic Republic Congo 2011'!$F$74),\"\",'Democratic Republic Congo 2011'!$F$74)","v":"Yes"},{"$f":"IF(ISBLANK('Democratic Republic Congo 2011'!$F$75),\"\",'Democratic Republic Congo 2011'!$F$75)","v":"Yes"},{"$f":"IF(ISBLANK('Democratic Republic Congo 2011'!$F$76),\"\",'Democratic Republic Congo 2011'!$F$76)","v":"Yes"},{"$f":"IF(ISBLANK('Democratic Republic Congo 2011'!$F$77),\"\",'Democratic Republic Congo 2011'!$F$77)","v":""},null,{"$f":"IF(ISBLANK('Democratic Republic Congo 2011'!$G$66),\"\",'Democratic Republic Congo 2011'!$G$66)","v":"Yes"},{"$f":"IF(ISBLANK('Democratic Republic Congo 2011'!$G$67),\"\",'Democratic Republic Congo 2011'!$G$67)","v":"Yes"},{"$f":"IF(ISBLANK('Democratic Republic Congo 2011'!$G$68),\"\",'Democratic Republic Congo 2011'!$G$68)","v":"Yes"},{"$f":"IF(ISBLANK('Democratic Republic Congo 2011'!$G$69),\"\",'Democratic Republic Congo 2011'!$G$69)","v":"Yes"},{"$f":"IF(ISBLANK('Democratic Republic Congo 2011'!$G$70),\"\",'Democratic Republic Congo 2011'!$G$70)","v":"Yes"},{"$f":"IF(ISBLANK('Democratic Republic Congo 2011'!$G$71),\"\",'Democratic Republic Congo 2011'!$G$71)","v":"Yes"},{"$f":"IF(ISBLANK('Democratic Republic Congo 2011'!$G$72),\"\",'Democratic Republic Congo 2011'!$G$72)","v":"Yes"},{"$f":"IF(ISBLANK('Democratic Republic Congo 2011'!$G$73),\"\",'Democratic Republic Congo 2011'!$G$73)","v":"Yes"},{"$f":"IF(ISBLANK('Democratic Republic Congo 2011'!$G$74),\"\",'Democratic Republic Congo 2011'!$G$74)","v":"No"},{"$f":"IF(ISBLANK('Democratic Republic Congo 2011'!$G$75),\"\",'Democratic Republic Congo 2011'!$G$75)","v":"No"},{"$f":"IF(ISBLANK('Democratic Republic Congo 2011'!$G$76),\"\",'Democratic Republic Congo 2011'!$G$76)","v":"Yes"},{"$f":"IF(ISBLANK('Democratic Republic Congo 2011'!$G$77),\"\",'Democratic Republic Congo 2011'!$G$77)","v":""},null,{"$f":"IF(ISBLANK('Democratic Republic Congo 2011'!$H$66),\"\",'Democratic Republic Congo 2011'!$H$66)","v":"Yes"},{"$f":"IF(ISBLANK('Democratic Republic Congo 2011'!$H$67),\"\",'Democratic Republic Congo 2011'!$H$67)","v":"Yes"},{"$f":"IF(ISBLANK('Democratic Republic Congo 2011'!$H$68),\"\",'Democratic Republic Congo 2011'!$H$68)","v":"Yes"},{"$f":"IF(ISBLANK('Democratic Republic Congo 2011'!$H$69),\"\",'Democratic Republic Congo 2011'!$H$69)","v":"Yes"},{"$f":"IF(ISBLANK('Democratic Republic Congo 2011'!$H$70),\"\",'Democratic Republic Congo 2011'!$H$70)","v":"Yes"},{"$f":"IF(ISBLANK('Democratic Republic Congo 2011'!$H$71),\"\",'Democratic Republic Congo 2011'!$H$71)","v":"Yes"},{"$f":"IF(ISBLANK('Democratic Republic Congo 2011'!$H$72),\"\",'Democratic Republic Congo 2011'!$H$72)","v":"Yes"},{"$f":"IF(ISBLANK('Democratic Republic Congo 2011'!$H$73),\"\",'Democratic Republic Congo 2011'!$H$73)","v":"No"},{"$f":"IF(ISBLANK('Democratic Republic Congo 2011'!$H$74),\"\",'Democratic Republic Congo 2011'!$H$74)","v":"No"},{"$f":"IF(ISBLANK('Democratic Republic Congo 2011'!$H$75),\"\",'Democratic Republic Congo 2011'!$H$75)","v":"No"},{"$f":"IF(ISBLANK('Democratic Republic Congo 2011'!$H$76),\"\",'Democratic Republic Congo 2011'!$H$76)","v":"Yes"},{"$f":"IF(ISBLANK('Democratic Republic Congo 2011'!$H$77),\"\",'Democratic Republic Congo 2011'!$H$77)","v":""},{"$f":"IF(ISBLANK('Democratic Republic Congo 2011'!$D$78),\"\",'Democratic Republic Congo 2011'!$D$78)","v":"UNFPA is piloting the use of national distribution but USAID still uses its own system."},null,{"$f":"IF(ISBLANK('Democratic Republic Congo 2011'!$H$80),\"\",'Democratic Republic Congo 2011'!$H$80)","v":"Yes"},{"$f":"IF(ISBLANK('Democratic Republic Congo 2011'!$C$83),\"\",'Democratic Republic Congo 2011'!$C$83)","v":"Strategie National pour la Securisation des Commodités de Santé de la Reproduction (National Strategy for Reproductive Health Commodity Security) "},{"$f":"IF(ISBLANK('Democratic Republic Congo 2011'!$D$83),\"\",'Democratic Republic Congo 2011'!$D$83)","v":"2008-2012"},{"$f":"IF(ISBLANK('Democratic Republic Congo 2011'!$F$83),\"\",'Democratic Republic Congo 2011'!$F$83)","v":"Yes"},{"$f":"IF(ISBLANK('Democratic Republic Congo 2011'!$G$83),\"\",'Democratic Republic Congo 2011'!$G$83)","v":"No"},{"$f":"IF(ISBLANK('Democratic Republic Congo 2011'!$F$84),\"\",'Democratic Republic Congo 2011'!$F$84)","v":"Yes"},{"$f":"IF(ISBLANK('Democratic Republic Congo 2011'!$E$85),\"\",'Democratic Republic Congo 2011'!$E$85)","v":"Commercial sector: duties & taxes. Other sectors: other small fees."},{"$f":"IF(ISBLANK('Democratic Republic Congo 2011'!$E$86),\"\",'Democratic Republic Congo 2011'!$E$86)","v":"5% fees"},{"$f":"IF(ISBLANK('Democratic Republic Congo 2011'!$H$87),\"\",'Democratic Republic Congo 2011'!$H$87)","v":"No"},{"$f":"IF(ISBLANK('Democratic Republic Congo 2011'!$D$88),\"\",'Democratic Republic Congo 2011'!$D$88)","v":"N/A"},{"$f":"IF(ISBLANK('Democratic Republic Congo 2011'!$H$89),\"\",'Democratic Republic Congo 2011'!$H$89)","v":"No"},{"$f":"IF(ISBLANK('Democratic Republic Congo 2011'!$D$90),\"\",'Democratic Republic Congo 2011'!$D$90)","v":"N/A"},{"$f":"IF(ISBLANK('Democratic Republic Congo 2011'!$H$91),\"\",'Democratic Republic Congo 2011'!$H$91)","v":"No"},{"$f":"IF(ISBLANK('Democratic Republic Congo 2011'!$C$94),\"\",'Democratic Republic Congo 2011'!$C$94)","v":""},{"$f":"IF(ISBLANK('Democratic Republic Congo 2011'!$E$94),\"\",'Democratic Republic Congo 2011'!$E$94)","v":""},{"$f":"IF(ISBLANK('Democratic Republic Congo 2011'!$G$94),\"\",'Democratic Republic Congo 2011'!$G$94)","v":""},{"$f":"IF(ISBLANK('Democratic Republic Congo 2011'!$C$95),\"\",'Democratic Republic Congo 2011'!$C$95)","v":""},{"$f":"IF(ISBLANK('Democratic Republic Congo 2011'!$E$95),\"\",'Democratic Republic Congo 2011'!$E$95)","v":""},{"$f":"IF(ISBLANK('Democratic Republic Congo 2011'!$G$95),\"\",'Democratic Republic Congo 2011'!$G$95)","v":""},{"$f":"IF(ISBLANK('Democratic Republic Congo 2011'!$C$96),\"\",'Democratic Republic Congo 2011'!$C$96)","v":""},{"$f":"IF(ISBLANK('Democratic Republic Congo 2011'!$E$96),\"\",'Democratic Republic Congo 2011'!$E$96)","v":""},{"$f":"IF(ISBLANK('Democratic Republic Congo 2011'!$G$96),\"\",'Democratic Republic Congo 2011'!$G$96)","v":""},null,{"$f":"IF(ISBLANK('Democratic Republic Congo 2011'!$D$99),\"\",'Democratic Republic Congo 2011'!$D$99)","v":"Yes"},{"$f":"IF(ISBLANK('Democratic Republic Congo 2011'!$E$99),\"\",'Democratic Republic Congo 2011'!$E$99)","v":"Article 178 of penal code from the colonial era"},{"$f":"IF(ISBLANK('Democratic Republic Congo 2011'!$H$99),\"\",'Democratic Republic Congo 2011'!$H$99)","v":"No"},{"$f":"IF(ISBLANK('Democratic Republic Congo 2011'!$D$100),\"\",'Democratic Republic Congo 2011'!$D$100)","v":"Don't know"},{"$f":"IF(ISBLANK('Democratic Republic Congo 2011'!$E$100),\"\",'Democratic Republic Congo 2011'!$E$100)","v":""},{"$f":"IF(ISBLANK('Democratic Republic Congo 2011'!$H$100),\"\",'Democratic Republic Congo 2011'!$H$100)","v":""},{"$f":"IF(ISBLANK('Democratic Republic Congo 2011'!$D$101),\"\",'Democratic Republic Congo 2011'!$D$101)","v":"Don't know"},{"$f":"IF(ISBLANK('Democratic Republic Congo 2011'!$E$101),\"\",'Democratic Republic Congo 2011'!$E$101)","v":""},{"$f":"IF(ISBLANK('Democratic Republic Congo 2011'!$H$101),\"\",'Democratic Republic Congo 2011'!$H$101)","v":""},null,{"$f":"IF(ISBLANK('Democratic Republic Congo 2011'!$G$104),\"\",'Democratic Republic Congo 2011'!$G$104)","v":"No"},{"$f":"IF(ISBLANK('Democratic Republic Congo 2011'!$G$105),\"\",'Democratic Republic Congo 2011'!$G$105)","v":"No"},{"$f":"IF(ISBLANK('Democratic Republic Congo 2011'!$G$106),\"\",'Democratic Republic Congo 2011'!$G$106)","v":"N/A"},{"$f":"IF(ISBLANK('Democratic Republic Congo 2011'!$D$107),\"\",'Democratic Republic Congo 2011'!$D$107)","v":"N/A"},null,{"$f":"IF(ISBLANK('Democratic Republic Congo 2011'!$G$109),\"\",'Democratic Republic Congo 2011'!$G$109)","v":"Yes"},{"$f":"IF(ISBLANK('Democratic Republic Congo 2011'!$G$110),\"\",'Democratic Republic Congo 2011'!$G$110)","v":"Yes"},{"$f":"IF(ISBLANK('Democratic Republic Congo 2011'!$G$111),\"\",'Democratic Republic Congo 2011'!$G$111)","v":"Yes"},{"$f":"IF(ISBLANK('Democratic Republic Congo 2011'!$G$112),\"\",'Democratic Republic Congo 2011'!$G$112)","v":"Yes"},{"$f":"IF(ISBLANK('Democratic Republic Congo 2011'!$G$113),\"\",'Democratic Republic Congo 2011'!$G$113)","v":"Yes"},{"$f":"IF(ISBLANK('Democratic Republic Congo 2011'!$G$114),\"\",'Democratic Republic Congo 2011'!$G$114)","v":"Yes"},{"$f":"IF(ISBLANK('Democratic Republic Congo 2011'!$G$115),\"\",'Democratic Republic Congo 2011'!$G$115)","v":"Yes"},{"$f":"IF(ISBLANK('Democratic Republic Congo 2011'!$G$116),\"\",'Democratic Republic Congo 2011'!$G$116)","v":"Yes"},{"$f":"IF(ISBLANK('Democratic Republic Congo 2011'!$G$117),\"\",'Democratic Republic Congo 2011'!$G$117)","v":"Yes"},{"$f":"IF(ISBLANK('Democratic Republic Congo 2011'!$G$118),\"\",'Democratic Republic Congo 2011'!$G$118)","v":"Don't know"},{"$f":"IF(ISBLANK('Democratic Republic Congo 2011'!$F$119),\"\",'Democratic Republic Congo 2011'!$F$119)","v":"Don't know"},{"$f":"IF(ISBLANK('Democratic Republic Congo 2011'!$F$120),\"\",'Democratic Republic Congo 2011'!$F$120)","v":2010},{"$f":"IF(ISBLANK('Democratic Republic Congo 2011'!$D$121),\"\",'Democratic Republic Congo 2011'!$D$121)","v":"National Essentials Drugs List"},{"$f":"IF(ISBLANK('Democratic Republic Congo 2011'!$D$122),\"\",'Democratic Republic Congo 2011'!$D$122)","v":""},null,{"$f":"IF(ISBLANK('Democratic Republic Congo 2011'!$F$124),\"\",'Democratic Republic Congo 2011'!$F$124)","v":"N/A"},{"$f":"IF(ISBLANK('Democratic Republic Congo 2011'!$G$125),\"\",'Democratic Republic Congo 2011'!$G$125)","v":"N/A"},{"$f":"IF(ISBLANK('Democratic Republic Congo 2011'!$G$126),\"\",'Democratic Republic Congo 2011'!$G$126)","v":"N/A"},{"$f":"IF(ISBLANK('Democratic Republic Congo 2011'!$G$127),\"\",'Democratic Republic Congo 2011'!$G$127)","v":"N/A"},{"$f":"IF(ISBLANK('Democratic Republic Congo 2011'!$G$128),\"\",'Democratic Republic Congo 2011'!$G$128)","v":"N/A"},{"$f":"IF(ISBLANK('Democratic Republic Congo 2011'!$D$129),\"\",'Democratic Republic Congo 2011'!$D$129)","v":"Document not available on IMF's website"},null,{"$f":"IF(ISBLANK('Democratic Republic Congo 2011'!$G$131),\"\",'Democratic Republic Congo 2011'!$G$131)","v":"Yes"},null,{"$f":"IF(ISBLANK('Democratic Republic Congo 2011'!$G$133),\"\",'Democratic Republic Congo 2011'!$G$133)","v":"Yes"},{"$f":"IF(ISBLANK('Democratic Republic Congo 2011'!$G$134),\"\",'Democratic Republic Congo 2011'!$G$134)","v":"Yes"},{"$f":"IF(ISBLANK('Democratic Republic Congo 2011'!$G$135),\"\",'Democratic Republic Congo 2011'!$G$135)","v":"Yes"},{"$f":"IF(ISBLANK('Democratic Republic Congo 2011'!$G$136),\"\",'Democratic Republic Congo 2011'!$G$136)","v":"N/A"},{"$f":"IF(ISBLANK('Democratic Republic Congo 2011'!$G$137),\"\",'Democratic Republic Congo 2011'!$G$137)","v":"No"},{"$f":"IF(ISBLANK('Democratic Republic Congo 2011'!$G$138),\"\",'Democratic Republic Congo 2011'!$G$138)","v":"No"},{"$f":"IF(ISBLANK('Democratic Republic Congo 2011'!$G$139),\"\",'Democratic Republic Congo 2011'!$G$139)","v":"Yes"},{"$f":"IF(ISBLANK('Democratic Republic Congo 2011'!$G$140),\"\",'Democratic Republic Congo 2011'!$G$140)","v":"No"},{"$f":"IF(ISBLANK('Democratic Republic Congo 2011'!$G$141),\"\",'Democratic Republic Congo 2011'!$G$141)","v":"No"},{"$f":"IF(ISBLANK('Democratic Republic Congo 2011'!$F$142),\"\",'Democratic Republic Congo 2011'!$F$142)","v":"Don't know"},{"$f":"IF(ISBLANK('Democratic Republic Congo 2011'!$F$143),\"\",'Democratic Republic Congo 2011'!$F$143)","v":"Warehouse report"},null,{"$f":"IF(ISBLANK('Democratic Republic Congo 2011'!$G$145),\"\",'Democratic Republic Congo 2011'!$G$145)","v":"Don't know"},{"$f":"IF(ISBLANK('Democratic Republic Congo 2011'!$G$146),\"\",'Democratic Republic Congo 2011'!$G$146)","v":"Don't know"},{"$f":"IF(ISBLANK('Democratic Republic Congo 2011'!$D$147),\"\",'Democratic Republic Congo 2011'!$D$147)","v":""},"Africa"]
["Dominican Republic ",null,{"$f":"IF(ISBLANK('Dominican Republic 2011'!$H$12),\"\",'Dominican Republic 2011'!$H$12)","v":"Yes"},{"$f":"IF(ISBLANK('Dominican Republic 2011'!$D$13),\"\",'Dominican Republic 2011'!$D$13)","v":"Comité Nacional de Disponibilidad Asegurada de Insumos Anticonceptivos (DAIA) (National Committee for Contraceptive Security)"},null,{"$f":"IF(ISBLANK('Dominican Republic 2011'!$D$15),\"\",'Dominican Republic 2011'!$D$15)","v":"Yes"},{"$f":"IF(ISBLANK('Dominican Republic 2011'!$F$15),\"\",'Dominican Republic 2011'!$F$15)","v":"PROFAMILIA, ADOPLAFAM, MUDE, PSI"},{"$f":"IF(ISBLANK('Dominican Republic 2011'!$D$16),\"\",'Dominican Republic 2011'!$D$16)","v":"Yes"},{"$f":"IF(ISBLANK('Dominican Republic 2011'!$F$16),\"\",'Dominican Republic 2011'!$F$16)","v":"PROFAMILIA, ADOPLAFAM, MUDE, and 30 more institutions"},{"$f":"IF(ISBLANK('Dominican Republic 2011'!$D$17),\"\",'Dominican Republic 2011'!$D$17)","v":"No"},{"$f":"IF(ISBLANK('Dominican Republic 2011'!$F$17),\"\",'Dominican Republic 2011'!$F$17)","v":""},{"$f":"IF(ISBLANK('Dominican Republic 2011'!$D$18),\"\",'Dominican Republic 2011'!$D$18)","v":"Yes"},{"$f":"IF(ISBLANK('Dominican Republic 2011'!$F$18),\"\",'Dominican Republic 2011'!$F$18)","v":"USAID"},{"$f":"IF(ISBLANK('Dominican Republic 2011'!$D$19),\"\",'Dominican Republic 2011'!$D$19)","v":"Yes"},{"$f":"IF(ISBLANK('Dominican Republic 2011'!$F$19),\"\",'Dominican Republic 2011'!$F$19)","v":"UNFPA, PAHO/WHO (Organización Panamericana de la Salud/Organización Mundial de la Salud [OPS/OMS])"},{"$f":"IF(ISBLANK('Dominican Republic 2011'!$D$20),\"\",'Dominican Republic 2011'!$D$20)","v":"Yes"},{"$f":"IF(ISBLANK('Dominican Republic 2011'!$F$20),\"\",'Dominican Republic 2011'!$F$20)","v":"Maternal-Child & Reproductive Health Department, Purchasing & Logistics Department, Sexually Transmitted Diseases Department, HIV Programs and Pharmacy Units"},{"$f":"IF(ISBLANK('Dominican Republic 2011'!$D$21),\"\",'Dominican Republic 2011'!$D$21)","v":"Yes"},{"$f":"IF(ISBLANK('Dominican Republic 2011'!$F$21),\"\",'Dominican Republic 2011'!$F$21)","v":"Central Warehouse/MOH"},{"$f":"IF(ISBLANK('Dominican Republic 2011'!$D$22),\"\",'Dominican Republic 2011'!$D$22)","v":"No"},{"$f":"IF(ISBLANK('Dominican Republic 2011'!$F$22),\"\",'Dominican Republic 2011'!$F$22)","v":""},{"$f":"IF(ISBLANK('Dominican Republic 2011'!$D$23),\"\",'Dominican Republic 2011'!$D$23)","v":"No"},{"$f":"IF(ISBLANK('Dominican Republic 2011'!$F$23),\"\",'Dominican Republic 2011'!$F$23)","v":""},{"$f":"IF(ISBLANK('Dominican Republic 2011'!$H$24),\"\",'Dominican Republic 2011'!$H$24)","v":"6 or more times"},{"$f":"IF(ISBLANK('Dominican Republic 2011'!$H$25),\"\",'Dominican Republic 2011'!$H$25)","v":"Yes"},{"$f":"IF(ISBLANK('Dominican Republic 2011'!$D$26),\"\",'Dominican Republic 2011'!$D$26)","v":"Yes"},{"$f":"IF(ISBLANK('Dominican Republic 2011'!$F$26),\"\",'Dominican Republic 2011'!$F$26)","v":"Maternal-Child & Reproductive Health Department"},{"$f":"IF(ISBLANK('Dominican Republic 2011'!$H$26),\"\",'Dominican Republic 2011'!$H$26)","v":"Maternal-Child & Reproductive Health Department Director"},null,{"$f":"IF(ISBLANK('Dominican Republic 2011'!$F$28),\"\",'Dominican Republic 2011'!$F$28)","v":"January"},{"$f":"IF(ISBLANK('Dominican Republic 2011'!$H$28),\"\",'Dominican Republic 2011'!$H$28)","v":"December"},{"$f":"IF(ISBLANK('Dominican Republic 2011'!$G$29),\"\",'Dominican Republic 2011'!$G$29)","v":"Don't know"},{"$f":"IF(ISBLANK('Dominican Republic 2011'!$E$30),\"\",'Dominican Republic 2011'!$E$30)","v":"Don't know"},{"$f":"IF(ISBLANK('Dominican Republic 2011'!$G$30),\"\",'Dominican Republic 2011'!$G$30)","v":"Don't know"},{"$f":"IF(ISBLANK('Dominican Republic 2011'!$H$31),\"\",'Dominican Republic 2011'!$H$31)","v":"No"},{"$f":"IF(ISBLANK('Dominican Republic 2011'!$H$32),\"\",'Dominican Republic 2011'!$H$32)","v":"No"},{"$f":"IF(ISBLANK('Dominican Republic 2011'!$E$35),\"\",'Dominican Republic 2011'!$E$35)","v":0},{"$f":"IF(ISBLANK('Dominican Republic 2011'!$F$35),\"\",'Dominican Republic 2011'!$F$35)","v":"01/10-12/10"},{"$f":"IF(ISBLANK('Dominican Republic 2011'!$G$35),\"\",'Dominican Republic 2011'!$G$35)","v":""},{"$f":"IF(ISBLANK('Dominican Republic 2011'!$H$35),\"\",'Dominican Republic 2011'!$H$35)","v":""},{"$f":"IF(ISBLANK('Dominican Republic 2011'!$H$37),\"\",'Dominican Republic 2011'!$H$37)","v":"Yes"},{"$f":"IF(ISBLANK('Dominican Republic 2011'!$D$40),\"\",'Dominican Republic 2011'!$D$40)","v":"Yes"},{"$f":"IF(ISBLANK('Dominican Republic 2011'!$D$41),\"\",'Dominican Republic 2011'!$D$41)","v":"Taxes primarily"},{"$f":"IF(ISBLANK('Dominican Republic 2011'!$E$40),\"\",'Dominican Republic 2011'!$E$40)","v":652174},{"$f":"IF(ISBLANK('Dominican Republic 2011'!$F$40),\"\",'Dominican Republic 2011'!$F$40)","v":"01/10-12/10"},{"$f":"IF(ISBLANK('Dominican Republic 2011'!$G$40),\"\",'Dominican Republic 2011'!$G$40)","v":"Contraceptive Procurement Table (CPT)"},{"$f":"IF(ISBLANK('Dominican Republic 2011'!$H$40),\"\",'Dominican Republic 2011'!$H$40)","v":""},{"$f":"IF(ISBLANK('Dominican Republic 2011'!$D$42),\"\",'Dominican Republic 2011'!$D$42)","v":"No"},{"$f":"IF(ISBLANK('Dominican Republic 2011'!$D$43),\"\",'Dominican Republic 2011'!$D$43)","v":"N/A"},{"$f":"IF(ISBLANK('Dominican Republic 2011'!$E$42),\"\",'Dominican Republic 2011'!$E$42)","v":0},{"$f":"IF(ISBLANK('Dominican Republic 2011'!$F$42),\"\",'Dominican Republic 2011'!$F$42)","v":"01/10-12/10"},{"$f":"IF(ISBLANK('Dominican Republic 2011'!$G$42),\"\",'Dominican Republic 2011'!$G$42)","v":""},{"$f":"IF(ISBLANK('Dominican Republic 2011'!$H$42),\"\",'Dominican Republic 2011'!$H$42)","v":""},{"$f":"IF(ISBLANK('Dominican Republic 2011'!$E$44),\"\",'Dominican Republic 2011'!$E$44)","v":652174},{"$f":"IF(ISBLANK('Dominican Republic 2011'!$H$44),\"\",'Dominican Republic 2011'!$H$44)","v":""},null,{"$f":"IF(ISBLANK('Dominican Republic 2011'!$D$48),\"\",'Dominican Republic 2011'!$D$48)","v":"Yes"},{"$f":"IF(ISBLANK('Dominican Republic 2011'!$D$49),\"\",'Dominican Republic 2011'!$D$49)","v":"UNFPA"},{"$f":"IF(ISBLANK('Dominican Republic 2011'!$E$48),\"\",'Dominican Republic 2011'!$E$48)","v":157500},{"$f":"IF(ISBLANK('Dominican Republic 2011'!$F$48),\"\",'Dominican Republic 2011'!$F$48)","v":"01/10-12/10"},{"$f":"IF(ISBLANK('Dominican Republic 2011'!$G$48),\"\",'Dominican Republic 2011'!$G$48)","v":"Donor records"},{"$f":"IF(ISBLANK('Dominican Republic 2011'!$H$48),\"\",'Dominican Republic 2011'!$H$48)","v":""},{"$f":"IF(ISBLANK('Dominican Republic 2011'!$D$50),\"\",'Dominican Republic 2011'!$D$50)","v":"No"},{"$f":"IF(ISBLANK('Dominican Republic 2011'!$E$50),\"\",'Dominican Republic 2011'!$E$50)","v":0},{"$f":"IF(ISBLANK('Dominican Republic 2011'!$F$50),\"\",'Dominican Republic 2011'!$F$50)","v":"01/10-12/10"},{"$f":"IF(ISBLANK('Dominican Republic 2011'!$G$50),\"\",'Dominican Republic 2011'!$G$50)","v":""},{"$f":"IF(ISBLANK('Dominican Republic 2011'!$H$50),\"\",'Dominican Republic 2011'!$H$50)","v":""},{"$f":"IF(ISBLANK('Dominican Republic 2011'!$D$51),\"\",'Dominican Republic 2011'!$D$51)","v":"No"},{"$f":"IF(ISBLANK('Dominican Republic 2011'!$E$51),\"\",'Dominican Republic 2011'!$E$51)","v":0},{"$f":"IF(ISBLANK('Dominican Republic 2011'!$F$51),\"\",'Dominican Republic 2011'!$F$51)","v":"01/10-12/10"},{"$f":"IF(ISBLANK('Dominican Republic 2011'!$G$51),\"\",'Dominican Republic 2011'!$G$51)","v":""},{"$f":"IF(ISBLANK('Dominican Republic 2011'!$H$51),\"\",'Dominican Republic 2011'!$H$51)","v":""},{"$f":"IF(ISBLANK('Dominican Republic 2011'!$E$52),\"\",'Dominican Republic 2011'!$E$52)","v":157500},{"$f":"IF(ISBLANK('Dominican Republic 2011'!$H$52),\"\",'Dominican Republic 2011'!$H$52)","v":""},{"$f":"IF(ISBLANK('Dominican Republic 2011'!$F$55),\"\",'Dominican Republic 2011'!$F$55)","v":0.80547726615897264},{"$f":"IF(ISBLANK('Dominican Republic 2011'!$G$55),\"\",'Dominican Republic 2011'!$G$55)","v":""},{"$f":"IF(ISBLANK('Dominican Republic 2011'!$F$56),\"\",'Dominican Republic 2011'!$F$56)","v":"Don't know"},{"$f":"IF(ISBLANK('Dominican Republic 2011'!$G$56),\"\",'Dominican Republic 2011'!$G$56)","v":""},{"$f":"IF(ISBLANK('Dominican Republic 2011'!$F$57),\"\",'Dominican Republic 2011'!$F$57)","v":"Yes"},{"$f":"IF(ISBLANK('Dominican Republic 2011'!$G$57),\"\",'Dominican Republic 2011'!$G$57)","v":""},{"$f":"IF(ISBLANK('Dominican Republic 2011'!$F$59),\"\",'Dominican Republic 2011'!$F$59)","v":"The government (e.g., Central Medical Stores, MOH logistics unit, MOH procurement unit)"},{"$f":"IF(ISBLANK('Dominican Republic 2011'!$F$60),\"\",'Dominican Republic 2011'!$F$60)","v":"Direccion Materno - Infantil y Adolescentes / Programa Planificacion Familiar (Maternal-Child and Adolescents Department / Family Planning Program)"},{"$f":"IF(ISBLANK('Dominican Republic 2011'!$F$61),\"\",'Dominican Republic 2011'!$F$61)","v":"No"},{"$f":"IF(ISBLANK('Dominican Republic 2011'!$D$62),\"\",'Dominican Republic 2011'!$D$62)","v":"Two purchases were made. (The first was intended to cover the needs for Jan-June and the second for July-Dec). Disbursement was executed from the MOH's central budget."},null,null,{"$f":"IF(ISBLANK('Dominican Republic 2011'!$D$66),\"\",'Dominican Republic 2011'!$D$66)","v":"Yes"},{"$f":"IF(ISBLANK('Dominican Republic 2011'!$D$67),\"\",'Dominican Republic 2011'!$D$67)","v":"Yes"},{"$f":"IF(ISBLANK('Dominican Republic 2011'!$D$68),\"\",'Dominican Republic 2011'!$D$68)","v":"Yes"},{"$f":"IF(ISBLANK('Dominican Republic 2011'!$D$69),\"\",'Dominican Republic 2011'!$D$69)","v":"Yes"},{"$f":"IF(ISBLANK('Dominican Republic 2011'!$D$70),\"\",'Dominican Republic 2011'!$D$70)","v":"Yes"},{"$f":"IF(ISBLANK('Dominican Republic 2011'!$D$71),\"\",'Dominican Republic 2011'!$D$71)","v":"Yes"},{"$f":"IF(ISBLANK('Dominican Republic 2011'!$D$72),\"\",'Dominican Republic 2011'!$D$72)","v":"No"},{"$f":"IF(ISBLANK('Dominican Republic 2011'!$D$73),\"\",'Dominican Republic 2011'!$D$73)","v":"Yes"},{"$f":"IF(ISBLANK('Dominican Republic 2011'!$D$74),\"\",'Dominican Republic 2011'!$D$74)","v":"Yes"},{"$f":"IF(ISBLANK('Dominican Republic 2011'!$D$75),\"\",'Dominican Republic 2011'!$D$75)","v":"Yes"},{"$f":"IF(ISBLANK('Dominican Republic 2011'!$D$76),\"\",'Dominican Republic 2011'!$D$76)","v":"Yes"},{"$f":"IF(ISBLANK('Dominican Republic 2011'!$D$77),\"\",'Dominican Republic 2011'!$D$77)","v":"Vaginal spermicides"},null,{"$f":"IF(ISBLANK('Dominican Republic 2011'!$F$66),\"\",'Dominican Republic 2011'!$F$66)","v":"Yes"},{"$f":"IF(ISBLANK('Dominican Republic 2011'!$F$67),\"\",'Dominican Republic 2011'!$F$67)","v":"Yes"},{"$f":"IF(ISBLANK('Dominican Republic 2011'!$F$68),\"\",'Dominican Republic 2011'!$F$68)","v":"Yes"},{"$f":"IF(ISBLANK('Dominican Republic 2011'!$F$69),\"\",'Dominican Republic 2011'!$F$69)","v":"Yes"},{"$f":"IF(ISBLANK('Dominican Republic 2011'!$F$70),\"\",'Dominican Republic 2011'!$F$70)","v":"Yes"},{"$f":"IF(ISBLANK('Dominican Republic 2011'!$F$71),\"\",'Dominican Republic 2011'!$F$71)","v":"Yes"},{"$f":"IF(ISBLANK('Dominican Republic 2011'!$F$72),\"\",'Dominican Republic 2011'!$F$72)","v":"No"},{"$f":"IF(ISBLANK('Dominican Republic 2011'!$F$73),\"\",'Dominican Republic 2011'!$F$73)","v":"Yes"},{"$f":"IF(ISBLANK('Dominican Republic 2011'!$F$74),\"\",'Dominican Republic 2011'!$F$74)","v":"Yes"},{"$f":"IF(ISBLANK('Dominican Republic 2011'!$F$75),\"\",'Dominican Republic 2011'!$F$75)","v":"Yes"},{"$f":"IF(ISBLANK('Dominican Republic 2011'!$F$76),\"\",'Dominican Republic 2011'!$F$76)","v":"No"},{"$f":"IF(ISBLANK('Dominican Republic 2011'!$F$77),\"\",'Dominican Republic 2011'!$F$77)","v":""},null,{"$f":"IF(ISBLANK('Dominican Republic 2011'!$G$66),\"\",'Dominican Republic 2011'!$G$66)","v":"Yes"},{"$f":"IF(ISBLANK('Dominican Republic 2011'!$G$67),\"\",'Dominican Republic 2011'!$G$67)","v":"Yes"},{"$f":"IF(ISBLANK('Dominican Republic 2011'!$G$68),\"\",'Dominican Republic 2011'!$G$68)","v":"Yes"},{"$f":"IF(ISBLANK('Dominican Republic 2011'!$G$69),\"\",'Dominican Republic 2011'!$G$69)","v":"Yes"},{"$f":"IF(ISBLANK('Dominican Republic 2011'!$G$70),\"\",'Dominican Republic 2011'!$G$70)","v":"Yes"},{"$f":"IF(ISBLANK('Dominican Republic 2011'!$G$71),\"\",'Dominican Republic 2011'!$G$71)","v":"Yes"},{"$f":"IF(ISBLANK('Dominican Republic 2011'!$G$72),\"\",'Dominican Republic 2011'!$G$72)","v":"Yes"},{"$f":"IF(ISBLANK('Dominican Republic 2011'!$G$73),\"\",'Dominican Republic 2011'!$G$73)","v":"Yes"},{"$f":"IF(ISBLANK('Dominican Republic 2011'!$G$74),\"\",'Dominican Republic 2011'!$G$74)","v":"Yes"},{"$f":"IF(ISBLANK('Dominican Republic 2011'!$G$75),\"\",'Dominican Republic 2011'!$G$75)","v":"Yes"},{"$f":"IF(ISBLANK('Dominican Republic 2011'!$G$76),\"\",'Dominican Republic 2011'!$G$76)","v":"Yes"},{"$f":"IF(ISBLANK('Dominican Republic 2011'!$G$77),\"\",'Dominican Republic 2011'!$G$77)","v":"Vaginal spermicides"},null,{"$f":"IF(ISBLANK('Dominican Republic 2011'!$H$66),\"\",'Dominican Republic 2011'!$H$66)","v":"Yes"},{"$f":"IF(ISBLANK('Dominican Republic 2011'!$H$67),\"\",'Dominican Republic 2011'!$H$67)","v":"Yes"},{"$f":"IF(ISBLANK('Dominican Republic 2011'!$H$68),\"\",'Dominican Republic 2011'!$H$68)","v":"Yes"},{"$f":"IF(ISBLANK('Dominican Republic 2011'!$H$69),\"\",'Dominican Republic 2011'!$H$69)","v":"Yes"},{"$f":"IF(ISBLANK('Dominican Republic 2011'!$H$70),\"\",'Dominican Republic 2011'!$H$70)","v":"Yes"},{"$f":"IF(ISBLANK('Dominican Republic 2011'!$H$71),\"\",'Dominican Republic 2011'!$H$71)","v":"Yes"},{"$f":"IF(ISBLANK('Dominican Republic 2011'!$H$72),\"\",'Dominican Republic 2011'!$H$72)","v":"Yes"},{"$f":"IF(ISBLANK('Dominican Republic 2011'!$H$73),\"\",'Dominican Republic 2011'!$H$73)","v":"Yes"},{"$f":"IF(ISBLANK('Dominican Republic 2011'!$H$74),\"\",'Dominican Republic 2011'!$H$74)","v":"Yes"},{"$f":"IF(ISBLANK('Dominican Republic 2011'!$H$75),\"\",'Dominican Republic 2011'!$H$75)","v":"Yes"},{"$f":"IF(ISBLANK('Dominican Republic 2011'!$H$76),\"\",'Dominican Republic 2011'!$H$76)","v":"Yes"},{"$f":"IF(ISBLANK('Dominican Republic 2011'!$H$77),\"\",'Dominican Republic 2011'!$H$77)","v":"Vaginal spermicides"},{"$f":"IF(ISBLANK('Dominican Republic 2011'!$D$78),\"\",'Dominican Republic 2011'!$D$78)","v":"Implants and emergency contraceptives are not purchased by the MOH. However, donations are often received by the MOH, and services can be provided in key hospitals and mainly in coordination with NGOs. "},null,{"$f":"IF(ISBLANK('Dominican Republic 2011'!$H$80),\"\",'Dominican Republic 2011'!$H$80)","v":"Yes"},{"$f":"IF(ISBLANK('Dominican Republic 2011'!$C$83),\"\",'Dominican Republic 2011'!$C$83)","v":"Sistema para el Aseguramiento Logistico de Insumos Anticonceptivos (system for the logistics security of contraceptives)"},{"$f":"IF(ISBLANK('Dominican Republic 2011'!$D$83),\"\",'Dominican Republic 2011'!$D$83)","v":"2009 on"},{"$f":"IF(ISBLANK('Dominican Republic 2011'!$F$83),\"\",'Dominican Republic 2011'!$F$83)","v":"Yes"},{"$f":"IF(ISBLANK('Dominican Republic 2011'!$G$83),\"\",'Dominican Republic 2011'!$G$83)","v":"Yes"},{"$f":"IF(ISBLANK('Dominican Republic 2011'!$F$84),\"\",'Dominican Republic 2011'!$F$84)","v":"Yes"},{"$f":"IF(ISBLANK('Dominican Republic 2011'!$E$85),\"\",'Dominican Republic 2011'!$E$85)","v":"Commercial sector, social marketing, and NGO´s"},{"$f":"IF(ISBLANK('Dominican Republic 2011'!$E$86),\"\",'Dominican Republic 2011'!$E$86)","v":"16% value added tax (VAT)"},{"$f":"IF(ISBLANK('Dominican Republic 2011'!$H$87),\"\",'Dominican Republic 2011'!$H$87)","v":"No"},{"$f":"IF(ISBLANK('Dominican Republic 2011'!$D$88),\"\",'Dominican Republic 2011'!$D$88)","v":"N/A"},{"$f":"IF(ISBLANK('Dominican Republic 2011'!$H$89),\"\",'Dominican Republic 2011'!$H$89)","v":"No"},{"$f":"IF(ISBLANK('Dominican Republic 2011'!$D$90),\"\",'Dominican Republic 2011'!$D$90)","v":"N/A"},{"$f":"IF(ISBLANK('Dominican Republic 2011'!$H$91),\"\",'Dominican Republic 2011'!$H$91)","v":"No"},{"$f":"IF(ISBLANK('Dominican Republic 2011'!$C$94),\"\",'Dominican Republic 2011'!$C$94)","v":""},{"$f":"IF(ISBLANK('Dominican Republic 2011'!$E$94),\"\",'Dominican Republic 2011'!$E$94)","v":""},{"$f":"IF(ISBLANK('Dominican Republic 2011'!$G$94),\"\",'Dominican Republic 2011'!$G$94)","v":""},{"$f":"IF(ISBLANK('Dominican Republic 2011'!$C$95),\"\",'Dominican Republic 2011'!$C$95)","v":""},{"$f":"IF(ISBLANK('Dominican Republic 2011'!$E$95),\"\",'Dominican Republic 2011'!$E$95)","v":""},{"$f":"IF(ISBLANK('Dominican Republic 2011'!$G$95),\"\",'Dominican Republic 2011'!$G$95)","v":""},{"$f":"IF(ISBLANK('Dominican Republic 2011'!$C$96),\"\",'Dominican Republic 2011'!$C$96)","v":""},{"$f":"IF(ISBLANK('Dominican Republic 2011'!$E$96),\"\",'Dominican Republic 2011'!$E$96)","v":""},{"$f":"IF(ISBLANK('Dominican Republic 2011'!$G$96),\"\",'Dominican Republic 2011'!$G$96)","v":""},null,{"$f":"IF(ISBLANK('Dominican Republic 2011'!$D$99),\"\",'Dominican Republic 2011'!$D$99)","v":"No"},{"$f":"IF(ISBLANK('Dominican Republic 2011'!$E$99),\"\",'Dominican Republic 2011'!$E$99)","v":""},{"$f":"IF(ISBLANK('Dominican Republic 2011'!$H$99),\"\",'Dominican Republic 2011'!$H$99)","v":""},{"$f":"IF(ISBLANK('Dominican Republic 2011'!$D$100),\"\",'Dominican Republic 2011'!$D$100)","v":"No"},{"$f":"IF(ISBLANK('Dominican Republic 2011'!$E$100),\"\",'Dominican Republic 2011'!$E$100)","v":""},{"$f":"IF(ISBLANK('Dominican Republic 2011'!$H$100),\"\",'Dominican Republic 2011'!$H$100)","v":""},{"$f":"IF(ISBLANK('Dominican Republic 2011'!$D$101),\"\",'Dominican Republic 2011'!$D$101)","v":"No"},{"$f":"IF(ISBLANK('Dominican Republic 2011'!$E$101),\"\",'Dominican Republic 2011'!$E$101)","v":""},{"$f":"IF(ISBLANK('Dominican Republic 2011'!$H$101),\"\",'Dominican Republic 2011'!$H$101)","v":""},null,{"$f":"IF(ISBLANK('Dominican Republic 2011'!$G$104),\"\",'Dominican Republic 2011'!$G$104)","v":"No"},{"$f":"IF(ISBLANK('Dominican Republic 2011'!$G$105),\"\",'Dominican Republic 2011'!$G$105)","v":"No"},{"$f":"IF(ISBLANK('Dominican Republic 2011'!$G$106),\"\",'Dominican Republic 2011'!$G$106)","v":"N/A"},{"$f":"IF(ISBLANK('Dominican Republic 2011'!$D$107),\"\",'Dominican Republic 2011'!$D$107)","v":"N/A"},null,{"$f":"IF(ISBLANK('Dominican Republic 2011'!$G$109),\"\",'Dominican Republic 2011'!$G$109)","v":"Yes"},{"$f":"IF(ISBLANK('Dominican Republic 2011'!$G$110),\"\",'Dominican Republic 2011'!$G$110)","v":"Yes"},{"$f":"IF(ISBLANK('Dominican Republic 2011'!$G$111),\"\",'Dominican Republic 2011'!$G$111)","v":"Yes"},{"$f":"IF(ISBLANK('Dominican Republic 2011'!$G$112),\"\",'Dominican Republic 2011'!$G$112)","v":"No"},{"$f":"IF(ISBLANK('Dominican Republic 2011'!$G$113),\"\",'Dominican Republic 2011'!$G$113)","v":"Yes"},{"$f":"IF(ISBLANK('Dominican Republic 2011'!$G$114),\"\",'Dominican Republic 2011'!$G$114)","v":"Yes"},{"$f":"IF(ISBLANK('Dominican Republic 2011'!$G$115),\"\",'Dominican Republic 2011'!$G$115)","v":"No"},{"$f":"IF(ISBLANK('Dominican Republic 2011'!$G$116),\"\",'Dominican Republic 2011'!$G$116)","v":"No"},{"$f":"IF(ISBLANK('Dominican Republic 2011'!$G$117),\"\",'Dominican Republic 2011'!$G$117)","v":"No"},{"$f":"IF(ISBLANK('Dominican Republic 2011'!$G$118),\"\",'Dominican Republic 2011'!$G$118)","v":"No"},{"$f":"IF(ISBLANK('Dominican Republic 2011'!$F$119),\"\",'Dominican Republic 2011'!$F$119)","v":"N/A"},{"$f":"IF(ISBLANK('Dominican Republic 2011'!$F$120),\"\",'Dominican Republic 2011'!$F$120)","v":2007},{"$f":"IF(ISBLANK('Dominican Republic 2011'!$D$121),\"\",'Dominican Republic 2011'!$D$121)","v":"Cuadro Basico de los Medicamentos Esenciales (CBME) (basic chart of essential medicines)"},{"$f":"IF(ISBLANK('Dominican Republic 2011'!$D$122),\"\",'Dominican Republic 2011'!$D$122)","v":"The list has not been revised since 2007."},null,{"$f":"IF(ISBLANK('Dominican Republic 2011'!$F$124),\"\",'Dominican Republic 2011'!$F$124)","v":"N/A"},{"$f":"IF(ISBLANK('Dominican Republic 2011'!$G$125),\"\",'Dominican Republic 2011'!$G$125)","v":"N/A"},{"$f":"IF(ISBLANK('Dominican Republic 2011'!$G$126),\"\",'Dominican Republic 2011'!$G$126)","v":"N/A"},{"$f":"IF(ISBLANK('Dominican Republic 2011'!$G$127),\"\",'Dominican Republic 2011'!$G$127)","v":"N/A"},{"$f":"IF(ISBLANK('Dominican Republic 2011'!$G$128),\"\",'Dominican Republic 2011'!$G$128)","v":"N/A"},{"$f":"IF(ISBLANK('Dominican Republic 2011'!$D$129),\"\",'Dominican Republic 2011'!$D$129)","v":"Document not available on IMF's website"},null,{"$f":"IF(ISBLANK('Dominican Republic 2011'!$G$131),\"\",'Dominican Republic 2011'!$G$131)","v":"No"},null,{"$f":"IF(ISBLANK('Dominican Republic 2011'!$G$133),\"\",'Dominican Republic 2011'!$G$133)","v":"No"},{"$f":"IF(ISBLANK('Dominican Republic 2011'!$G$134),\"\",'Dominican Republic 2011'!$G$134)","v":"No"},{"$f":"IF(ISBLANK('Dominican Republic 2011'!$G$135),\"\",'Dominican Republic 2011'!$G$135)","v":"No"},{"$f":"IF(ISBLANK('Dominican Republic 2011'!$G$136),\"\",'Dominican Republic 2011'!$G$136)","v":"N/A"},{"$f":"IF(ISBLANK('Dominican Republic 2011'!$G$137),\"\",'Dominican Republic 2011'!$G$137)","v":"No"},{"$f":"IF(ISBLANK('Dominican Republic 2011'!$G$138),\"\",'Dominican Republic 2011'!$G$138)","v":"No"},{"$f":"IF(ISBLANK('Dominican Republic 2011'!$G$139),\"\",'Dominican Republic 2011'!$G$139)","v":"N/A"},{"$f":"IF(ISBLANK('Dominican Republic 2011'!$G$140),\"\",'Dominican Republic 2011'!$G$140)","v":"N/A"},{"$f":"IF(ISBLANK('Dominican Republic 2011'!$G$141),\"\",'Dominican Republic 2011'!$G$141)","v":"N/A"},{"$f":"IF(ISBLANK('Dominican Republic 2011'!$F$142),\"\",'Dominican Republic 2011'!$F$142)","v":"01/10-12/10"},{"$f":"IF(ISBLANK('Dominican Republic 2011'!$F$143),\"\",'Dominican Republic 2011'!$F$143)","v":"Central Warehouse MOH reports"},null,{"$f":"IF(ISBLANK('Dominican Republic 2011'!$G$145),\"\",'Dominican Republic 2011'!$G$145)","v":"No"},{"$f":"IF(ISBLANK('Dominican Republic 2011'!$G$146),\"\",'Dominican Republic 2011'!$G$146)","v":"No"},{"$f":"IF(ISBLANK('Dominican Republic 2011'!$D$147),\"\",'Dominican Republic 2011'!$D$147)","v":"Government funds should be allocated to a specialized account for contraceptives and reproductive health commodities. PROMESE - CAL (Centro Apoyo Logistico) should be involved in purchasing and distribution processes in order to ensure lower costs and increase efficiency. Affiliation initiatives, framed into the 87-01 Law of Social Security of Dominican Republic, should be promoted among users. This law involves the National Health Insurance (Seguro Nacional de Salud - Senasa) being the unique service provider for the subsidized population. Currently about 10% of the poor population is affiliated with the system, and theoretically contraceptive commodities should be financed by resources generated by the Basic Health Insurance Plan (Plan Basico de Salud) already implemented. As the affiliation rate consistently grows, fewer internal resources from the MOH will be allocated to these supplies, and financing will be transferred to the National Health Insurance."},"LAC"]
["El Salvador ",null,{"$f":"IF(ISBLANK('El Salvador 2011'!$H$12),\"\",'El Salvador 2011'!$H$12)","v":"Yes"},{"$f":"IF(ISBLANK('El Salvador 2011'!$D$13),\"\",'El Salvador 2011'!$D$13)","v":"Contraceptive Security Committee"},null,{"$f":"IF(ISBLANK('El Salvador 2011'!$D$15),\"\",'El Salvador 2011'!$D$15)","v":"Yes"},{"$f":"IF(ISBLANK('El Salvador 2011'!$F$15),\"\",'El Salvador 2011'!$F$15)","v":"Salvadoran Demographic Association (ADS)"},{"$f":"IF(ISBLANK('El Salvador 2011'!$D$16),\"\",'El Salvador 2011'!$D$16)","v":"Yes"},{"$f":"IF(ISBLANK('El Salvador 2011'!$F$16),\"\",'El Salvador 2011'!$F$16)","v":"Salvadoran Demographic Association (ADS)"},{"$f":"IF(ISBLANK('El Salvador 2011'!$D$17),\"\",'El Salvador 2011'!$D$17)","v":"No"},{"$f":"IF(ISBLANK('El Salvador 2011'!$F$17),\"\",'El Salvador 2011'!$F$17)","v":""},{"$f":"IF(ISBLANK('El Salvador 2011'!$D$18),\"\",'El Salvador 2011'!$D$18)","v":"Yes"},{"$f":"IF(ISBLANK('El Salvador 2011'!$F$18),\"\",'El Salvador 2011'!$F$18)","v":"USAID"},{"$f":"IF(ISBLANK('El Salvador 2011'!$D$19),\"\",'El Salvador 2011'!$D$19)","v":"Yes"},{"$f":"IF(ISBLANK('El Salvador 2011'!$F$19),\"\",'El Salvador 2011'!$F$19)","v":"UNFPA"},{"$f":"IF(ISBLANK('El Salvador 2011'!$D$20),\"\",'El Salvador 2011'!$D$20)","v":"Yes"},{"$f":"IF(ISBLANK('El Salvador 2011'!$F$20),\"\",'El Salvador 2011'!$F$20)","v":"Reproductive Health Program, Financial Unit, Supplies & Medicines Unit, Planning Unit"},{"$f":"IF(ISBLANK('El Salvador 2011'!$D$21),\"\",'El Salvador 2011'!$D$21)","v":"No"},{"$f":"IF(ISBLANK('El Salvador 2011'!$F$21),\"\",'El Salvador 2011'!$F$21)","v":""},{"$f":"IF(ISBLANK('El Salvador 2011'!$D$22),\"\",'El Salvador 2011'!$D$22)","v":"No"},{"$f":"IF(ISBLANK('El Salvador 2011'!$F$22),\"\",'El Salvador 2011'!$F$22)","v":""},{"$f":"IF(ISBLANK('El Salvador 2011'!$D$23),\"\",'El Salvador 2011'!$D$23)","v":"No"},{"$f":"IF(ISBLANK('El Salvador 2011'!$F$23),\"\",'El Salvador 2011'!$F$23)","v":""},{"$f":"IF(ISBLANK('El Salvador 2011'!$H$24),\"\",'El Salvador 2011'!$H$24)","v":"1-2 times"},{"$f":"IF(ISBLANK('El Salvador 2011'!$H$25),\"\",'El Salvador 2011'!$H$25)","v":"Yes"},{"$f":"IF(ISBLANK('El Salvador 2011'!$D$26),\"\",'El Salvador 2011'!$D$26)","v":"Yes"},{"$f":"IF(ISBLANK('El Salvador 2011'!$F$26),\"\",'El Salvador 2011'!$F$26)","v":"MOH"},{"$f":"IF(ISBLANK('El Salvador 2011'!$H$26),\"\",'El Salvador 2011'!$H$26)","v":"Family Planning Coordinator"},null,{"$f":"IF(ISBLANK('El Salvador 2011'!$F$28),\"\",'El Salvador 2011'!$F$28)","v":"January"},{"$f":"IF(ISBLANK('El Salvador 2011'!$H$28),\"\",'El Salvador 2011'!$H$28)","v":"December"},{"$f":"IF(ISBLANK('El Salvador 2011'!$G$29),\"\",'El Salvador 2011'!$G$29)","v":1160000},{"$f":"IF(ISBLANK('El Salvador 2011'!$E$30),\"\",'El Salvador 2011'!$E$30)","v":"04/10"},{"$f":"IF(ISBLANK('El Salvador 2011'!$G$30),\"\",'El Salvador 2011'!$G$30)","v":"Ministry of Health"},{"$f":"IF(ISBLANK('El Salvador 2011'!$H$31),\"\",'El Salvador 2011'!$H$31)","v":"Yes"},{"$f":"IF(ISBLANK('El Salvador 2011'!$H$32),\"\",'El Salvador 2011'!$H$32)","v":"Yes"},{"$f":"IF(ISBLANK('El Salvador 2011'!$E$35),\"\",'El Salvador 2011'!$E$35)","v":655000},{"$f":"IF(ISBLANK('El Salvador 2011'!$F$35),\"\",'El Salvador 2011'!$F$35)","v":"01/10-12/10"},{"$f":"IF(ISBLANK('El Salvador 2011'!$G$35),\"\",'El Salvador 2011'!$G$35)","v":"Family Planning Coodinator"},{"$f":"IF(ISBLANK('El Salvador 2011'!$H$35),\"\",'El Salvador 2011'!$H$35)","v":"A budget increase of $109,000 was allocated. This amount is included in the total sum allocated.  "},{"$f":"IF(ISBLANK('El Salvador 2011'!$H$37),\"\",'El Salvador 2011'!$H$37)","v":"Yes"},{"$f":"IF(ISBLANK('El Salvador 2011'!$D$40),\"\",'El Salvador 2011'!$D$40)","v":"Yes"},{"$f":"IF(ISBLANK('El Salvador 2011'!$D$41),\"\",'El Salvador 2011'!$D$41)","v":"Government of El Salvador budget, only"},{"$f":"IF(ISBLANK('El Salvador 2011'!$E$40),\"\",'El Salvador 2011'!$E$40)","v":675674},{"$f":"IF(ISBLANK('El Salvador 2011'!$F$40),\"\",'El Salvador 2011'!$F$40)","v":"01/10-12/10"},{"$f":"IF(ISBLANK('El Salvador 2011'!$G$40),\"\",'El Salvador 2011'!$G$40)","v":"MOH, PipeLine Procurement Table"},{"$f":"IF(ISBLANK('El Salvador 2011'!$H$40),\"\",'El Salvador 2011'!$H$40)","v":" "},{"$f":"IF(ISBLANK('El Salvador 2011'!$D$42),\"\",'El Salvador 2011'!$D$42)","v":"No"},{"$f":"IF(ISBLANK('El Salvador 2011'!$D$43),\"\",'El Salvador 2011'!$D$43)","v":"N/A"},{"$f":"IF(ISBLANK('El Salvador 2011'!$E$42),\"\",'El Salvador 2011'!$E$42)","v":0},{"$f":"IF(ISBLANK('El Salvador 2011'!$F$42),\"\",'El Salvador 2011'!$F$42)","v":"01/10-12/10"},{"$f":"IF(ISBLANK('El Salvador 2011'!$G$42),\"\",'El Salvador 2011'!$G$42)","v":""},{"$f":"IF(ISBLANK('El Salvador 2011'!$H$42),\"\",'El Salvador 2011'!$H$42)","v":""},{"$f":"IF(ISBLANK('El Salvador 2011'!$E$44),\"\",'El Salvador 2011'!$E$44)","v":675674},{"$f":"IF(ISBLANK('El Salvador 2011'!$H$44),\"\",'El Salvador 2011'!$H$44)","v":"One single purchase per year. Purchase through UNFPA as per procurement table and allocated funds. "},null,{"$f":"IF(ISBLANK('El Salvador 2011'!$D$48),\"\",'El Salvador 2011'!$D$48)","v":"No"},{"$f":"IF(ISBLANK('El Salvador 2011'!$D$49),\"\",'El Salvador 2011'!$D$49)","v":"N/A"},{"$f":"IF(ISBLANK('El Salvador 2011'!$E$48),\"\",'El Salvador 2011'!$E$48)","v":0},{"$f":"IF(ISBLANK('El Salvador 2011'!$F$48),\"\",'El Salvador 2011'!$F$48)","v":"01/10-12/10"},{"$f":"IF(ISBLANK('El Salvador 2011'!$G$48),\"\",'El Salvador 2011'!$G$48)","v":""},{"$f":"IF(ISBLANK('El Salvador 2011'!$H$48),\"\",'El Salvador 2011'!$H$48)","v":""},{"$f":"IF(ISBLANK('El Salvador 2011'!$D$50),\"\",'El Salvador 2011'!$D$50)","v":"Yes"},{"$f":"IF(ISBLANK('El Salvador 2011'!$E$50),\"\",'El Salvador 2011'!$E$50)","v":24300},{"$f":"IF(ISBLANK('El Salvador 2011'!$F$50),\"\",'El Salvador 2011'!$F$50)","v":"08/10"},{"$f":"IF(ISBLANK('El Salvador 2011'!$G$50),\"\",'El Salvador 2011'!$G$50)","v":" MOH Table"},{"$f":"IF(ISBLANK('El Salvador 2011'!$H$50),\"\",'El Salvador 2011'!$H$50)","v":""},{"$f":"IF(ISBLANK('El Salvador 2011'!$D$51),\"\",'El Salvador 2011'!$D$51)","v":"No"},{"$f":"IF(ISBLANK('El Salvador 2011'!$E$51),\"\",'El Salvador 2011'!$E$51)","v":0},{"$f":"IF(ISBLANK('El Salvador 2011'!$F$51),\"\",'El Salvador 2011'!$F$51)","v":"01/10-12/10"},{"$f":"IF(ISBLANK('El Salvador 2011'!$G$51),\"\",'El Salvador 2011'!$G$51)","v":""},{"$f":"IF(ISBLANK('El Salvador 2011'!$H$51),\"\",'El Salvador 2011'!$H$51)","v":""},{"$f":"IF(ISBLANK('El Salvador 2011'!$E$52),\"\",'El Salvador 2011'!$E$52)","v":24300},{"$f":"IF(ISBLANK('El Salvador 2011'!$H$52),\"\",'El Salvador 2011'!$H$52)","v":""},{"$f":"IF(ISBLANK('El Salvador 2011'!$F$55),\"\",'El Salvador 2011'!$F$55)","v":0.96528442485006583},{"$f":"IF(ISBLANK('El Salvador 2011'!$G$55),\"\",'El Salvador 2011'!$G$55)","v":"Verified percentage and is correct."},{"$f":"IF(ISBLANK('El Salvador 2011'!$F$56),\"\",'El Salvador 2011'!$F$56)","v":0.60342586206896554},{"$f":"IF(ISBLANK('El Salvador 2011'!$G$56),\"\",'El Salvador 2011'!$G$56)","v":"Verified percentage and is correct. However, the amount expended is sufficient to cover historical consumption but not sufficient to cover the cost of adding new products (e.g., monthly injectables)."},{"$f":"IF(ISBLANK('El Salvador 2011'!$F$57),\"\",'El Salvador 2011'!$F$57)","v":"Yes"},{"$f":"IF(ISBLANK('El Salvador 2011'!$G$57),\"\",'El Salvador 2011'!$G$57)","v":"The amount expended is sufficient to cover historical consumption but not sufficient to cover the cost of adding new products (e.g., monthly injectables)."},{"$f":"IF(ISBLANK('El Salvador 2011'!$F$59),\"\",'El Salvador 2011'!$F$59)","v":"Third-party agent (e.g., UNFPA, Crown Agents)"},{"$f":"IF(ISBLANK('El Salvador 2011'!$F$60),\"\",'El Salvador 2011'!$F$60)","v":"UNFPA"},{"$f":"IF(ISBLANK('El Salvador 2011'!$F$61),\"\",'El Salvador 2011'!$F$61)","v":"No"},{"$f":"IF(ISBLANK('El Salvador 2011'!$D$62),\"\",'El Salvador 2011'!$D$62)","v":""},null,null,{"$f":"IF(ISBLANK('El Salvador 2011'!$D$66),\"\",'El Salvador 2011'!$D$66)","v":"Yes"},{"$f":"IF(ISBLANK('El Salvador 2011'!$D$67),\"\",'El Salvador 2011'!$D$67)","v":"Don't know"},{"$f":"IF(ISBLANK('El Salvador 2011'!$D$68),\"\",'El Salvador 2011'!$D$68)","v":"Yes"},{"$f":"IF(ISBLANK('El Salvador 2011'!$D$69),\"\",'El Salvador 2011'!$D$69)","v":"Yes"},{"$f":"IF(ISBLANK('El Salvador 2011'!$D$70),\"\",'El Salvador 2011'!$D$70)","v":"Yes"},{"$f":"IF(ISBLANK('El Salvador 2011'!$D$71),\"\",'El Salvador 2011'!$D$71)","v":"Yes"},{"$f":"IF(ISBLANK('El Salvador 2011'!$D$72),\"\",'El Salvador 2011'!$D$72)","v":"Yes"},{"$f":"IF(ISBLANK('El Salvador 2011'!$D$73),\"\",'El Salvador 2011'!$D$73)","v":"Yes"},{"$f":"IF(ISBLANK('El Salvador 2011'!$D$74),\"\",'El Salvador 2011'!$D$74)","v":"Yes"},{"$f":"IF(ISBLANK('El Salvador 2011'!$D$75),\"\",'El Salvador 2011'!$D$75)","v":"Yes"},{"$f":"IF(ISBLANK('El Salvador 2011'!$D$76),\"\",'El Salvador 2011'!$D$76)","v":"No"},{"$f":"IF(ISBLANK('El Salvador 2011'!$D$77),\"\",'El Salvador 2011'!$D$77)","v":""},null,{"$f":"IF(ISBLANK('El Salvador 2011'!$F$66),\"\",'El Salvador 2011'!$F$66)","v":"Yes"},{"$f":"IF(ISBLANK('El Salvador 2011'!$F$67),\"\",'El Salvador 2011'!$F$67)","v":"No"},{"$f":"IF(ISBLANK('El Salvador 2011'!$F$68),\"\",'El Salvador 2011'!$F$68)","v":"Yes"},{"$f":"IF(ISBLANK('El Salvador 2011'!$F$69),\"\",'El Salvador 2011'!$F$69)","v":"Yes"},{"$f":"IF(ISBLANK('El Salvador 2011'!$F$70),\"\",'El Salvador 2011'!$F$70)","v":"Yes"},{"$f":"IF(ISBLANK('El Salvador 2011'!$F$71),\"\",'El Salvador 2011'!$F$71)","v":"Yes"},{"$f":"IF(ISBLANK('El Salvador 2011'!$F$72),\"\",'El Salvador 2011'!$F$72)","v":"Yes"},{"$f":"IF(ISBLANK('El Salvador 2011'!$F$73),\"\",'El Salvador 2011'!$F$73)","v":"Yes"},{"$f":"IF(ISBLANK('El Salvador 2011'!$F$74),\"\",'El Salvador 2011'!$F$74)","v":"Yes"},{"$f":"IF(ISBLANK('El Salvador 2011'!$F$75),\"\",'El Salvador 2011'!$F$75)","v":"Yes"},{"$f":"IF(ISBLANK('El Salvador 2011'!$F$76),\"\",'El Salvador 2011'!$F$76)","v":"Yes"},{"$f":"IF(ISBLANK('El Salvador 2011'!$F$77),\"\",'El Salvador 2011'!$F$77)","v":""},null,{"$f":"IF(ISBLANK('El Salvador 2011'!$G$66),\"\",'El Salvador 2011'!$G$66)","v":"Yes"},{"$f":"IF(ISBLANK('El Salvador 2011'!$G$67),\"\",'El Salvador 2011'!$G$67)","v":"Don't know"},{"$f":"IF(ISBLANK('El Salvador 2011'!$G$68),\"\",'El Salvador 2011'!$G$68)","v":"Yes"},{"$f":"IF(ISBLANK('El Salvador 2011'!$G$69),\"\",'El Salvador 2011'!$G$69)","v":"Yes"},{"$f":"IF(ISBLANK('El Salvador 2011'!$G$70),\"\",'El Salvador 2011'!$G$70)","v":"Yes"},{"$f":"IF(ISBLANK('El Salvador 2011'!$G$71),\"\",'El Salvador 2011'!$G$71)","v":"Yes"},{"$f":"IF(ISBLANK('El Salvador 2011'!$G$72),\"\",'El Salvador 2011'!$G$72)","v":"Don't know"},{"$f":"IF(ISBLANK('El Salvador 2011'!$G$73),\"\",'El Salvador 2011'!$G$73)","v":"Yes"},{"$f":"IF(ISBLANK('El Salvador 2011'!$G$74),\"\",'El Salvador 2011'!$G$74)","v":"Yes"},{"$f":"IF(ISBLANK('El Salvador 2011'!$G$75),\"\",'El Salvador 2011'!$G$75)","v":"Yes"},{"$f":"IF(ISBLANK('El Salvador 2011'!$G$76),\"\",'El Salvador 2011'!$G$76)","v":"Yes"},{"$f":"IF(ISBLANK('El Salvador 2011'!$G$77),\"\",'El Salvador 2011'!$G$77)","v":""},null,{"$f":"IF(ISBLANK('El Salvador 2011'!$H$66),\"\",'El Salvador 2011'!$H$66)","v":"Yes"},{"$f":"IF(ISBLANK('El Salvador 2011'!$H$67),\"\",'El Salvador 2011'!$H$67)","v":"Don't know"},{"$f":"IF(ISBLANK('El Salvador 2011'!$H$68),\"\",'El Salvador 2011'!$H$68)","v":"Yes"},{"$f":"IF(ISBLANK('El Salvador 2011'!$H$69),\"\",'El Salvador 2011'!$H$69)","v":"Yes"},{"$f":"IF(ISBLANK('El Salvador 2011'!$H$70),\"\",'El Salvador 2011'!$H$70)","v":"Yes"},{"$f":"IF(ISBLANK('El Salvador 2011'!$H$71),\"\",'El Salvador 2011'!$H$71)","v":"Yes"},{"$f":"IF(ISBLANK('El Salvador 2011'!$H$72),\"\",'El Salvador 2011'!$H$72)","v":"Don't know"},{"$f":"IF(ISBLANK('El Salvador 2011'!$H$73),\"\",'El Salvador 2011'!$H$73)","v":"No"},{"$f":"IF(ISBLANK('El Salvador 2011'!$H$74),\"\",'El Salvador 2011'!$H$74)","v":"No"},{"$f":"IF(ISBLANK('El Salvador 2011'!$H$75),\"\",'El Salvador 2011'!$H$75)","v":"No"},{"$f":"IF(ISBLANK('El Salvador 2011'!$H$76),\"\",'El Salvador 2011'!$H$76)","v":"No"},{"$f":"IF(ISBLANK('El Salvador 2011'!$H$77),\"\",'El Salvador 2011'!$H$77)","v":""},{"$f":"IF(ISBLANK('El Salvador 2011'!$D$78),\"\",'El Salvador 2011'!$D$78)","v":""},null,{"$f":"IF(ISBLANK('El Salvador 2011'!$H$80),\"\",'El Salvador 2011'!$H$80)","v":"No"},{"$f":"IF(ISBLANK('El Salvador 2011'!$C$83),\"\",'El Salvador 2011'!$C$83)","v":""},{"$f":"IF(ISBLANK('El Salvador 2011'!$D$83),\"\",'El Salvador 2011'!$D$83)","v":""},{"$f":"IF(ISBLANK('El Salvador 2011'!$F$83),\"\",'El Salvador 2011'!$F$83)","v":""},{"$f":"IF(ISBLANK('El Salvador 2011'!$G$83),\"\",'El Salvador 2011'!$G$83)","v":""},{"$f":"IF(ISBLANK('El Salvador 2011'!$F$84),\"\",'El Salvador 2011'!$F$84)","v":"Yes"},{"$f":"IF(ISBLANK('El Salvador 2011'!$E$85),\"\",'El Salvador 2011'!$E$85)","v":"All sectors"},{"$f":"IF(ISBLANK('El Salvador 2011'!$E$86),\"\",'El Salvador 2011'!$E$86)","v":"VAT 13% on the purchase price, customs clearance fee of 3%, other -  5 % of overhead charged by the Purchasing Agent (UNFPA or other) on total amount of purchase"},{"$f":"IF(ISBLANK('El Salvador 2011'!$H$87),\"\",'El Salvador 2011'!$H$87)","v":"No"},{"$f":"IF(ISBLANK('El Salvador 2011'!$D$88),\"\",'El Salvador 2011'!$D$88)","v":"N/A"},{"$f":"IF(ISBLANK('El Salvador 2011'!$H$89),\"\",'El Salvador 2011'!$H$89)","v":"Don't know"},{"$f":"IF(ISBLANK('El Salvador 2011'!$D$90),\"\",'El Salvador 2011'!$D$90)","v":"Don't know"},{"$f":"IF(ISBLANK('El Salvador 2011'!$H$91),\"\",'El Salvador 2011'!$H$91)","v":"No"},{"$f":"IF(ISBLANK('El Salvador 2011'!$C$94),\"\",'El Salvador 2011'!$C$94)","v":""},{"$f":"IF(ISBLANK('El Salvador 2011'!$E$94),\"\",'El Salvador 2011'!$E$94)","v":""},{"$f":"IF(ISBLANK('El Salvador 2011'!$G$94),\"\",'El Salvador 2011'!$G$94)","v":""},{"$f":"IF(ISBLANK('El Salvador 2011'!$C$95),\"\",'El Salvador 2011'!$C$95)","v":""},{"$f":"IF(ISBLANK('El Salvador 2011'!$E$95),\"\",'El Salvador 2011'!$E$95)","v":""},{"$f":"IF(ISBLANK('El Salvador 2011'!$G$95),\"\",'El Salvador 2011'!$G$95)","v":""},{"$f":"IF(ISBLANK('El Salvador 2011'!$C$96),\"\",'El Salvador 2011'!$C$96)","v":""},{"$f":"IF(ISBLANK('El Salvador 2011'!$E$96),\"\",'El Salvador 2011'!$E$96)","v":""},{"$f":"IF(ISBLANK('El Salvador 2011'!$G$96),\"\",'El Salvador 2011'!$G$96)","v":""},null,{"$f":"IF(ISBLANK('El Salvador 2011'!$D$99),\"\",'El Salvador 2011'!$D$99)","v":"No"},{"$f":"IF(ISBLANK('El Salvador 2011'!$E$99),\"\",'El Salvador 2011'!$E$99)","v":""},{"$f":"IF(ISBLANK('El Salvador 2011'!$H$99),\"\",'El Salvador 2011'!$H$99)","v":""},{"$f":"IF(ISBLANK('El Salvador 2011'!$D$100),\"\",'El Salvador 2011'!$D$100)","v":"No"},{"$f":"IF(ISBLANK('El Salvador 2011'!$E$100),\"\",'El Salvador 2011'!$E$100)","v":""},{"$f":"IF(ISBLANK('El Salvador 2011'!$H$100),\"\",'El Salvador 2011'!$H$100)","v":""},{"$f":"IF(ISBLANK('El Salvador 2011'!$D$101),\"\",'El Salvador 2011'!$D$101)","v":"No"},{"$f":"IF(ISBLANK('El Salvador 2011'!$E$101),\"\",'El Salvador 2011'!$E$101)","v":""},{"$f":"IF(ISBLANK('El Salvador 2011'!$H$101),\"\",'El Salvador 2011'!$H$101)","v":""},null,{"$f":"IF(ISBLANK('El Salvador 2011'!$G$104),\"\",'El Salvador 2011'!$G$104)","v":"No"},{"$f":"IF(ISBLANK('El Salvador 2011'!$G$105),\"\",'El Salvador 2011'!$G$105)","v":"No"},{"$f":"IF(ISBLANK('El Salvador 2011'!$G$106),\"\",'El Salvador 2011'!$G$106)","v":"N/A"},{"$f":"IF(ISBLANK('El Salvador 2011'!$D$107),\"\",'El Salvador 2011'!$D$107)","v":"N/A"},null,{"$f":"IF(ISBLANK('El Salvador 2011'!$G$109),\"\",'El Salvador 2011'!$G$109)","v":"Yes"},{"$f":"IF(ISBLANK('El Salvador 2011'!$G$110),\"\",'El Salvador 2011'!$G$110)","v":"Yes"},{"$f":"IF(ISBLANK('El Salvador 2011'!$G$111),\"\",'El Salvador 2011'!$G$111)","v":"Yes"},{"$f":"IF(ISBLANK('El Salvador 2011'!$G$112),\"\",'El Salvador 2011'!$G$112)","v":"Yes"},{"$f":"IF(ISBLANK('El Salvador 2011'!$G$113),\"\",'El Salvador 2011'!$G$113)","v":"Yes"},{"$f":"IF(ISBLANK('El Salvador 2011'!$G$114),\"\",'El Salvador 2011'!$G$114)","v":"Yes"},{"$f":"IF(ISBLANK('El Salvador 2011'!$G$115),\"\",'El Salvador 2011'!$G$115)","v":"No"},{"$f":"IF(ISBLANK('El Salvador 2011'!$G$116),\"\",'El Salvador 2011'!$G$116)","v":"No"},{"$f":"IF(ISBLANK('El Salvador 2011'!$G$117),\"\",'El Salvador 2011'!$G$117)","v":"No"},{"$f":"IF(ISBLANK('El Salvador 2011'!$G$118),\"\",'El Salvador 2011'!$G$118)","v":"No"},{"$f":"IF(ISBLANK('El Salvador 2011'!$F$119),\"\",'El Salvador 2011'!$F$119)","v":"N/A"},{"$f":"IF(ISBLANK('El Salvador 2011'!$F$120),\"\",'El Salvador 2011'!$F$120)","v":2009},{"$f":"IF(ISBLANK('El Salvador 2011'!$D$121),\"\",'El Salvador 2011'!$D$121)","v":"Official List of Essential Medicines (10th Version) MOH"},{"$f":"IF(ISBLANK('El Salvador 2011'!$D$122),\"\",'El Salvador 2011'!$D$122)","v":""},null,{"$f":"IF(ISBLANK('El Salvador 2011'!$F$124),\"\",'El Salvador 2011'!$F$124)","v":"N/A"},{"$f":"IF(ISBLANK('El Salvador 2011'!$G$125),\"\",'El Salvador 2011'!$G$125)","v":"N/A"},{"$f":"IF(ISBLANK('El Salvador 2011'!$G$126),\"\",'El Salvador 2011'!$G$126)","v":"N/A"},{"$f":"IF(ISBLANK('El Salvador 2011'!$G$127),\"\",'El Salvador 2011'!$G$127)","v":"N/A"},{"$f":"IF(ISBLANK('El Salvador 2011'!$G$128),\"\",'El Salvador 2011'!$G$128)","v":"N/A"},{"$f":"IF(ISBLANK('El Salvador 2011'!$D$129),\"\",'El Salvador 2011'!$D$129)","v":"Document not available on IMF's website"},null,{"$f":"IF(ISBLANK('El Salvador 2011'!$G$131),\"\",'El Salvador 2011'!$G$131)","v":"Yes"},null,{"$f":"IF(ISBLANK('El Salvador 2011'!$G$133),\"\",'El Salvador 2011'!$G$133)","v":"No"},{"$f":"IF(ISBLANK('El Salvador 2011'!$G$134),\"\",'El Salvador 2011'!$G$134)","v":"No"},{"$f":"IF(ISBLANK('El Salvador 2011'!$G$135),\"\",'El Salvador 2011'!$G$135)","v":"Yes"},{"$f":"IF(ISBLANK('El Salvador 2011'!$G$136),\"\",'El Salvador 2011'!$G$136)","v":"No"},{"$f":"IF(ISBLANK('El Salvador 2011'!$G$137),\"\",'El Salvador 2011'!$G$137)","v":"No"},{"$f":"IF(ISBLANK('El Salvador 2011'!$G$138),\"\",'El Salvador 2011'!$G$138)","v":"No"},{"$f":"IF(ISBLANK('El Salvador 2011'!$G$139),\"\",'El Salvador 2011'!$G$139)","v":"Don't know"},{"$f":"IF(ISBLANK('El Salvador 2011'!$G$140),\"\",'El Salvador 2011'!$G$140)","v":"Don't know"},{"$f":"IF(ISBLANK('El Salvador 2011'!$G$141),\"\",'El Salvador 2011'!$G$141)","v":"Don't know"},{"$f":"IF(ISBLANK('El Salvador 2011'!$F$142),\"\",'El Salvador 2011'!$F$142)","v":"09/10-03/11"},{"$f":"IF(ISBLANK('El Salvador 2011'!$F$143),\"\",'El Salvador 2011'!$F$143)","v":"Family Planning Coordinator"},null,{"$f":"IF(ISBLANK('El Salvador 2011'!$G$145),\"\",'El Salvador 2011'!$G$145)","v":"Yes"},{"$f":"IF(ISBLANK('El Salvador 2011'!$G$146),\"\",'El Salvador 2011'!$G$146)","v":"Yes"},{"$f":"IF(ISBLANK('El Salvador 2011'!$D$147),\"\",'El Salvador 2011'!$D$147)","v":"Challenges:\nNeed to:\n* Re-activate the Contraceptive Security Committee\n* Develop and implement a Contraceptive Security Strategy\n* Ensure sustainable financing and logistics for the purchase and distribution of contraceptives\n* Ensure contraceptive security in light of the MOH reform process, including the newly formed Helth Community Teams (ECOS)"},"LAC"]
["Ethiopia ",null,{"$f":"IF(ISBLANK('Ethiopia 2011'!$H$12),\"\",'Ethiopia 2011'!$H$12)","v":"Yes"},{"$f":"IF(ISBLANK('Ethiopia 2011'!$D$13),\"\",'Ethiopia 2011'!$D$13)","v":"Family Planning and Logistics Technical Working Group"},null,{"$f":"IF(ISBLANK('Ethiopia 2011'!$D$15),\"\",'Ethiopia 2011'!$D$15)","v":"Yes"},{"$f":"IF(ISBLANK('Ethiopia 2011'!$F$15),\"\",'Ethiopia 2011'!$F$15)","v":"DKT"},{"$f":"IF(ISBLANK('Ethiopia 2011'!$D$16),\"\",'Ethiopia 2011'!$D$16)","v":"Yes"},{"$f":"IF(ISBLANK('Ethiopia 2011'!$F$16),\"\",'Ethiopia 2011'!$F$16)","v":"Family Guidance Association of Ethiopia, Marie Stopes International Ethiopia, Integrated Family Health Programs, Engender Health, Ipas, Population Council, Family Health International, Consortium of Reproductive Health Association Ethiopia (CORHA)"},{"$f":"IF(ISBLANK('Ethiopia 2011'!$D$17),\"\",'Ethiopia 2011'!$D$17)","v":"No"},{"$f":"IF(ISBLANK('Ethiopia 2011'!$F$17),\"\",'Ethiopia 2011'!$F$17)","v":""},{"$f":"IF(ISBLANK('Ethiopia 2011'!$D$18),\"\",'Ethiopia 2011'!$D$18)","v":"Yes"},{"$f":"IF(ISBLANK('Ethiopia 2011'!$F$18),\"\",'Ethiopia 2011'!$F$18)","v":"USAID, Packard Foundation"},{"$f":"IF(ISBLANK('Ethiopia 2011'!$D$19),\"\",'Ethiopia 2011'!$D$19)","v":"Yes"},{"$f":"IF(ISBLANK('Ethiopia 2011'!$F$19),\"\",'Ethiopia 2011'!$F$19)","v":"UNFPA, WHO"},{"$f":"IF(ISBLANK('Ethiopia 2011'!$D$20),\"\",'Ethiopia 2011'!$D$20)","v":"Yes"},{"$f":"IF(ISBLANK('Ethiopia 2011'!$F$20),\"\",'Ethiopia 2011'!$F$20)","v":"Urban Health Promotion and Disease Prevention Directorate & Maternal Newborn and Child Health [MNCH] Coordinator"},{"$f":"IF(ISBLANK('Ethiopia 2011'!$D$21),\"\",'Ethiopia 2011'!$D$21)","v":"No"},{"$f":"IF(ISBLANK('Ethiopia 2011'!$F$21),\"\",'Ethiopia 2011'!$F$21)","v":"(Currently none, but expecting Pharmaceutical Fund and Supply Agency [PFSA] in the future) "},{"$f":"IF(ISBLANK('Ethiopia 2011'!$D$22),\"\",'Ethiopia 2011'!$D$22)","v":"Yes"},{"$f":"IF(ISBLANK('Ethiopia 2011'!$F$22),\"\",'Ethiopia 2011'!$F$22)","v":"Population Department of Ministry of Finance and Economic Development (MOFED)"},{"$f":"IF(ISBLANK('Ethiopia 2011'!$D$23),\"\",'Ethiopia 2011'!$D$23)","v":"Yes"},{"$f":"IF(ISBLANK('Ethiopia 2011'!$F$23),\"\",'Ethiopia 2011'!$F$23)","v":"JHIPIEGO/ACCESS"},{"$f":"IF(ISBLANK('Ethiopia 2011'!$H$24),\"\",'Ethiopia 2011'!$H$24)","v":"6 or more times"},{"$f":"IF(ISBLANK('Ethiopia 2011'!$H$25),\"\",'Ethiopia 2011'!$H$25)","v":"No"},{"$f":"IF(ISBLANK('Ethiopia 2011'!$D$26),\"\",'Ethiopia 2011'!$D$26)","v":"Yes"},{"$f":"IF(ISBLANK('Ethiopia 2011'!$F$26),\"\",'Ethiopia 2011'!$F$26)","v":"FMOH"},{"$f":"IF(ISBLANK('Ethiopia 2011'!$H$26),\"\",'Ethiopia 2011'!$H$26)","v":"Urban Health Extension Directorate and MNCH Coordinator"},null,{"$f":"IF(ISBLANK('Ethiopia 2011'!$F$28),\"\",'Ethiopia 2011'!$F$28)","v":"July"},{"$f":"IF(ISBLANK('Ethiopia 2011'!$H$28),\"\",'Ethiopia 2011'!$H$28)","v":"June"},{"$f":"IF(ISBLANK('Ethiopia 2011'!$G$29),\"\",'Ethiopia 2011'!$G$29)","v":35884801},{"$f":"IF(ISBLANK('Ethiopia 2011'!$E$30),\"\",'Ethiopia 2011'!$E$30)","v":"04/10"},{"$f":"IF(ISBLANK('Ethiopia 2011'!$G$30),\"\",'Ethiopia 2011'!$G$30)","v":"Ministry of Health with technical assistance from the USAID | DELIVER PROJECT"},{"$f":"IF(ISBLANK('Ethiopia 2011'!$H$31),\"\",'Ethiopia 2011'!$H$31)","v":"Yes"},{"$f":"IF(ISBLANK('Ethiopia 2011'!$H$32),\"\",'Ethiopia 2011'!$H$32)","v":"Yes"},{"$f":"IF(ISBLANK('Ethiopia 2011'!$E$35),\"\",'Ethiopia 2011'!$E$35)","v":9000000},{"$f":"IF(ISBLANK('Ethiopia 2011'!$F$35),\"\",'Ethiopia 2011'!$F$35)","v":"07/09-06/10"},{"$f":"IF(ISBLANK('Ethiopia 2011'!$G$35),\"\",'Ethiopia 2011'!$G$35)","v":"Ministry Records"},{"$f":"IF(ISBLANK('Ethiopia 2011'!$H$35),\"\",'Ethiopia 2011'!$H$35)","v":""},{"$f":"IF(ISBLANK('Ethiopia 2011'!$H$37),\"\",'Ethiopia 2011'!$H$37)","v":"Yes"},{"$f":"IF(ISBLANK('Ethiopia 2011'!$D$40),\"\",'Ethiopia 2011'!$D$40)","v":"Yes"},{"$f":"IF(ISBLANK('Ethiopia 2011'!$D$41),\"\",'Ethiopia 2011'!$D$41)","v":""},{"$f":"IF(ISBLANK('Ethiopia 2011'!$E$40),\"\",'Ethiopia 2011'!$E$40)","v":481849},{"$f":"IF(ISBLANK('Ethiopia 2011'!$F$40),\"\",'Ethiopia 2011'!$F$40)","v":"07/09-06/10"},{"$f":"IF(ISBLANK('Ethiopia 2011'!$G$40),\"\",'Ethiopia 2011'!$G$40)","v":"Contraceptive Procurement Table (CPT)"},{"$f":"IF(ISBLANK('Ethiopia 2011'!$H$40),\"\",'Ethiopia 2011'!$H$40)","v":"Includes regional government funding"},{"$f":"IF(ISBLANK('Ethiopia 2011'!$D$42),\"\",'Ethiopia 2011'!$D$42)","v":"Yes"},{"$f":"IF(ISBLANK('Ethiopia 2011'!$D$43),\"\",'Ethiopia 2011'!$D$43)","v":"Protecting Basic Services (PBS) II"},{"$f":"IF(ISBLANK('Ethiopia 2011'!$E$42),\"\",'Ethiopia 2011'!$E$42)","v":9000000},{"$f":"IF(ISBLANK('Ethiopia 2011'!$F$42),\"\",'Ethiopia 2011'!$F$42)","v":"07/09-06/10"},{"$f":"IF(ISBLANK('Ethiopia 2011'!$G$42),\"\",'Ethiopia 2011'!$G$42)","v":"Contraceptive Procurement Table (CPT)"},{"$f":"IF(ISBLANK('Ethiopia 2011'!$H$42),\"\",'Ethiopia 2011'!$H$42)","v":""},{"$f":"IF(ISBLANK('Ethiopia 2011'!$E$44),\"\",'Ethiopia 2011'!$E$44)","v":9481849},{"$f":"IF(ISBLANK('Ethiopia 2011'!$H$44),\"\",'Ethiopia 2011'!$H$44)","v":""},null,{"$f":"IF(ISBLANK('Ethiopia 2011'!$D$48),\"\",'Ethiopia 2011'!$D$48)","v":"Yes"},{"$f":"IF(ISBLANK('Ethiopia 2011'!$D$49),\"\",'Ethiopia 2011'!$D$49)","v":"USAID ($2,828,703), UNFPA Global Program ($3,592,953)"},{"$f":"IF(ISBLANK('Ethiopia 2011'!$E$48),\"\",'Ethiopia 2011'!$E$48)","v":6421656},{"$f":"IF(ISBLANK('Ethiopia 2011'!$F$48),\"\",'Ethiopia 2011'!$F$48)","v":"07/09-06/10"},{"$f":"IF(ISBLANK('Ethiopia 2011'!$G$48),\"\",'Ethiopia 2011'!$G$48)","v":"Contraceptive Procurement Table (CPT)"},{"$f":"IF(ISBLANK('Ethiopia 2011'!$H$48),\"\",'Ethiopia 2011'!$H$48)","v":""},{"$f":"IF(ISBLANK('Ethiopia 2011'!$D$50),\"\",'Ethiopia 2011'!$D$50)","v":"No"},{"$f":"IF(ISBLANK('Ethiopia 2011'!$E$50),\"\",'Ethiopia 2011'!$E$50)","v":0},{"$f":"IF(ISBLANK('Ethiopia 2011'!$F$50),\"\",'Ethiopia 2011'!$F$50)","v":"07/09-06/10"},{"$f":"IF(ISBLANK('Ethiopia 2011'!$G$50),\"\",'Ethiopia 2011'!$G$50)","v":"RHInterchange"},{"$f":"IF(ISBLANK('Ethiopia 2011'!$H$50),\"\",'Ethiopia 2011'!$H$50)","v":" "},{"$f":"IF(ISBLANK('Ethiopia 2011'!$D$51),\"\",'Ethiopia 2011'!$D$51)","v":"No"},{"$f":"IF(ISBLANK('Ethiopia 2011'!$E$51),\"\",'Ethiopia 2011'!$E$51)","v":0},{"$f":"IF(ISBLANK('Ethiopia 2011'!$F$51),\"\",'Ethiopia 2011'!$F$51)","v":"07/09-06/10"},{"$f":"IF(ISBLANK('Ethiopia 2011'!$G$51),\"\",'Ethiopia 2011'!$G$51)","v":""},{"$f":"IF(ISBLANK('Ethiopia 2011'!$H$51),\"\",'Ethiopia 2011'!$H$51)","v":"Ethiopia has not started to use the GF money for contraceptive procurement. "},{"$f":"IF(ISBLANK('Ethiopia 2011'!$E$52),\"\",'Ethiopia 2011'!$E$52)","v":6421656},{"$f":"IF(ISBLANK('Ethiopia 2011'!$H$52),\"\",'Ethiopia 2011'!$H$52)","v":""},{"$f":"IF(ISBLANK('Ethiopia 2011'!$F$55),\"\",'Ethiopia 2011'!$F$55)","v":0.59621127543896768},{"$f":"IF(ISBLANK('Ethiopia 2011'!$G$55),\"\",'Ethiopia 2011'!$G$55)","v":""},{"$f":"IF(ISBLANK('Ethiopia 2011'!$F$56),\"\",'Ethiopia 2011'!$F$56)","v":0.44318219850236873},{"$f":"IF(ISBLANK('Ethiopia 2011'!$G$56),\"\",'Ethiopia 2011'!$G$56)","v":"The FMOH targets and plan for scale-up of long term contraceptives (Implanon® and IUCD) has a significant impact on the overall resource needs for contraceptives. "},{"$f":"IF(ISBLANK('Ethiopia 2011'!$F$57),\"\",'Ethiopia 2011'!$F$57)","v":""},{"$f":"IF(ISBLANK('Ethiopia 2011'!$G$57),\"\",'Ethiopia 2011'!$G$57)","v":""},{"$f":"IF(ISBLANK('Ethiopia 2011'!$F$59),\"\",'Ethiopia 2011'!$F$59)","v":"The government (e.g., Central Medical Stores, MOH logistics unit, MOH procurement unit)"},{"$f":"IF(ISBLANK('Ethiopia 2011'!$F$60),\"\",'Ethiopia 2011'!$F$60)","v":"Pharmacutical Fund and Supply Agency (PFSA) "},{"$f":"IF(ISBLANK('Ethiopia 2011'!$F$61),\"\",'Ethiopia 2011'!$F$61)","v":"Yes"},{"$f":"IF(ISBLANK('Ethiopia 2011'!$D$62),\"\",'Ethiopia 2011'!$D$62)","v":"Financing: even though the amounts are not all that significant, the central government and a number of the regional governments continue to finance contraceptive procurement from internally generated (budget) funds. The existence of basket funds, the emergence of the MDG Pool Fund, and the possibilities of future funding for commodities, as well as an overall increase in donor support for FP, have put the country in a generally better position. During this year, Pharmaceuticals Fund Supply Agency (PFSA) has started the procurement of contraceptives from Protection of Basic Services (PBS) II and internally generated funds. The USAID | DELIVER PROJECT continues to support the facilitation of the contraceptive procurement decisions through the sharing of information with the FMOH."},null,null,{"$f":"IF(ISBLANK('Ethiopia 2011'!$D$66),\"\",'Ethiopia 2011'!$D$66)","v":"Yes"},{"$f":"IF(ISBLANK('Ethiopia 2011'!$D$67),\"\",'Ethiopia 2011'!$D$67)","v":"Yes"},{"$f":"IF(ISBLANK('Ethiopia 2011'!$D$68),\"\",'Ethiopia 2011'!$D$68)","v":"Yes"},{"$f":"IF(ISBLANK('Ethiopia 2011'!$D$69),\"\",'Ethiopia 2011'!$D$69)","v":"Yes"},{"$f":"IF(ISBLANK('Ethiopia 2011'!$D$70),\"\",'Ethiopia 2011'!$D$70)","v":"Yes"},{"$f":"IF(ISBLANK('Ethiopia 2011'!$D$71),\"\",'Ethiopia 2011'!$D$71)","v":"Yes"},{"$f":"IF(ISBLANK('Ethiopia 2011'!$D$72),\"\",'Ethiopia 2011'!$D$72)","v":"No"},{"$f":"IF(ISBLANK('Ethiopia 2011'!$D$73),\"\",'Ethiopia 2011'!$D$73)","v":"Yes"},{"$f":"IF(ISBLANK('Ethiopia 2011'!$D$74),\"\",'Ethiopia 2011'!$D$74)","v":"Yes"},{"$f":"IF(ISBLANK('Ethiopia 2011'!$D$75),\"\",'Ethiopia 2011'!$D$75)","v":"Yes"},{"$f":"IF(ISBLANK('Ethiopia 2011'!$D$76),\"\",'Ethiopia 2011'!$D$76)","v":"No"},{"$f":"IF(ISBLANK('Ethiopia 2011'!$D$77),\"\",'Ethiopia 2011'!$D$77)","v":""},null,{"$f":"IF(ISBLANK('Ethiopia 2011'!$F$66),\"\",'Ethiopia 2011'!$F$66)","v":"Yes"},{"$f":"IF(ISBLANK('Ethiopia 2011'!$F$67),\"\",'Ethiopia 2011'!$F$67)","v":"Yes"},{"$f":"IF(ISBLANK('Ethiopia 2011'!$F$68),\"\",'Ethiopia 2011'!$F$68)","v":"Yes"},{"$f":"IF(ISBLANK('Ethiopia 2011'!$F$69),\"\",'Ethiopia 2011'!$F$69)","v":"Yes"},{"$f":"IF(ISBLANK('Ethiopia 2011'!$F$70),\"\",'Ethiopia 2011'!$F$70)","v":"Yes"},{"$f":"IF(ISBLANK('Ethiopia 2011'!$F$71),\"\",'Ethiopia 2011'!$F$71)","v":"Yes"},{"$f":"IF(ISBLANK('Ethiopia 2011'!$F$72),\"\",'Ethiopia 2011'!$F$72)","v":"No"},{"$f":"IF(ISBLANK('Ethiopia 2011'!$F$73),\"\",'Ethiopia 2011'!$F$73)","v":"Yes"},{"$f":"IF(ISBLANK('Ethiopia 2011'!$F$74),\"\",'Ethiopia 2011'!$F$74)","v":"Yes"},{"$f":"IF(ISBLANK('Ethiopia 2011'!$F$75),\"\",'Ethiopia 2011'!$F$75)","v":"Yes"},{"$f":"IF(ISBLANK('Ethiopia 2011'!$F$76),\"\",'Ethiopia 2011'!$F$76)","v":"No"},{"$f":"IF(ISBLANK('Ethiopia 2011'!$F$77),\"\",'Ethiopia 2011'!$F$77)","v":""},null,{"$f":"IF(ISBLANK('Ethiopia 2011'!$G$66),\"\",'Ethiopia 2011'!$G$66)","v":"Yes"},{"$f":"IF(ISBLANK('Ethiopia 2011'!$G$67),\"\",'Ethiopia 2011'!$G$67)","v":"Yes"},{"$f":"IF(ISBLANK('Ethiopia 2011'!$G$68),\"\",'Ethiopia 2011'!$G$68)","v":"Yes"},{"$f":"IF(ISBLANK('Ethiopia 2011'!$G$69),\"\",'Ethiopia 2011'!$G$69)","v":"Yes"},{"$f":"IF(ISBLANK('Ethiopia 2011'!$G$70),\"\",'Ethiopia 2011'!$G$70)","v":"Yes"},{"$f":"IF(ISBLANK('Ethiopia 2011'!$G$71),\"\",'Ethiopia 2011'!$G$71)","v":"Yes"},{"$f":"IF(ISBLANK('Ethiopia 2011'!$G$72),\"\",'Ethiopia 2011'!$G$72)","v":"No"},{"$f":"IF(ISBLANK('Ethiopia 2011'!$G$73),\"\",'Ethiopia 2011'!$G$73)","v":"Yes"},{"$f":"IF(ISBLANK('Ethiopia 2011'!$G$74),\"\",'Ethiopia 2011'!$G$74)","v":"Yes"},{"$f":"IF(ISBLANK('Ethiopia 2011'!$G$75),\"\",'Ethiopia 2011'!$G$75)","v":"Yes"},{"$f":"IF(ISBLANK('Ethiopia 2011'!$G$76),\"\",'Ethiopia 2011'!$G$76)","v":"No"},{"$f":"IF(ISBLANK('Ethiopia 2011'!$G$77),\"\",'Ethiopia 2011'!$G$77)","v":""},null,{"$f":"IF(ISBLANK('Ethiopia 2011'!$H$66),\"\",'Ethiopia 2011'!$H$66)","v":"Yes"},{"$f":"IF(ISBLANK('Ethiopia 2011'!$H$67),\"\",'Ethiopia 2011'!$H$67)","v":"Yes"},{"$f":"IF(ISBLANK('Ethiopia 2011'!$H$68),\"\",'Ethiopia 2011'!$H$68)","v":"Yes"},{"$f":"IF(ISBLANK('Ethiopia 2011'!$H$69),\"\",'Ethiopia 2011'!$H$69)","v":"Yes"},{"$f":"IF(ISBLANK('Ethiopia 2011'!$H$70),\"\",'Ethiopia 2011'!$H$70)","v":"Yes"},{"$f":"IF(ISBLANK('Ethiopia 2011'!$H$71),\"\",'Ethiopia 2011'!$H$71)","v":"Yes"},{"$f":"IF(ISBLANK('Ethiopia 2011'!$H$72),\"\",'Ethiopia 2011'!$H$72)","v":"Yes"},{"$f":"IF(ISBLANK('Ethiopia 2011'!$H$73),\"\",'Ethiopia 2011'!$H$73)","v":"Yes"},{"$f":"IF(ISBLANK('Ethiopia 2011'!$H$74),\"\",'Ethiopia 2011'!$H$74)","v":"No"},{"$f":"IF(ISBLANK('Ethiopia 2011'!$H$75),\"\",'Ethiopia 2011'!$H$75)","v":"No"},{"$f":"IF(ISBLANK('Ethiopia 2011'!$H$76),\"\",'Ethiopia 2011'!$H$76)","v":"No"},{"$f":"IF(ISBLANK('Ethiopia 2011'!$H$77),\"\",'Ethiopia 2011'!$H$77)","v":""},{"$f":"IF(ISBLANK('Ethiopia 2011'!$D$78),\"\",'Ethiopia 2011'!$D$78)","v":"Emergency contraceptives were first introduced in 2009, and it has taken time to expand program demand to the lower levels (SDPs). Female condom programming has not yet been introduced in Ethiopia."},null,{"$f":"IF(ISBLANK('Ethiopia 2011'!$H$80),\"\",'Ethiopia 2011'!$H$80)","v":"Yes"},{"$f":"IF(ISBLANK('Ethiopia 2011'!$C$83),\"\",'Ethiopia 2011'!$C$83)","v":"National Reproductive Health Strategy "},{"$f":"IF(ISBLANK('Ethiopia 2011'!$D$83),\"\",'Ethiopia 2011'!$D$83)","v":"2006-2015"},{"$f":"IF(ISBLANK('Ethiopia 2011'!$F$83),\"\",'Ethiopia 2011'!$F$83)","v":"Yes"},{"$f":"IF(ISBLANK('Ethiopia 2011'!$G$83),\"\",'Ethiopia 2011'!$G$83)","v":"Yes"},{"$f":"IF(ISBLANK('Ethiopia 2011'!$F$84),\"\",'Ethiopia 2011'!$F$84)","v":"No"},{"$f":"IF(ISBLANK('Ethiopia 2011'!$E$85),\"\",'Ethiopia 2011'!$E$85)","v":"N/A"},{"$f":"IF(ISBLANK('Ethiopia 2011'!$E$86),\"\",'Ethiopia 2011'!$E$86)","v":"N/A"},{"$f":"IF(ISBLANK('Ethiopia 2011'!$H$87),\"\",'Ethiopia 2011'!$H$87)","v":"No"},{"$f":"IF(ISBLANK('Ethiopia 2011'!$D$88),\"\",'Ethiopia 2011'!$D$88)","v":"N/A"},{"$f":"IF(ISBLANK('Ethiopia 2011'!$H$89),\"\",'Ethiopia 2011'!$H$89)","v":"Yes"},{"$f":"IF(ISBLANK('Ethiopia 2011'!$D$90),\"\",'Ethiopia 2011'!$D$90)","v":"National RH Strategy (mentions enhancing CS through the effective use of social marketing), Adolescent Reproductive Health Strategy, and Family Planning Guideline (recently under revision)"},{"$f":"IF(ISBLANK('Ethiopia 2011'!$H$91),\"\",'Ethiopia 2011'!$H$91)","v":"No"},{"$f":"IF(ISBLANK('Ethiopia 2011'!$C$94),\"\",'Ethiopia 2011'!$C$94)","v":""},{"$f":"IF(ISBLANK('Ethiopia 2011'!$E$94),\"\",'Ethiopia 2011'!$E$94)","v":""},{"$f":"IF(ISBLANK('Ethiopia 2011'!$G$94),\"\",'Ethiopia 2011'!$G$94)","v":""},{"$f":"IF(ISBLANK('Ethiopia 2011'!$C$95),\"\",'Ethiopia 2011'!$C$95)","v":""},{"$f":"IF(ISBLANK('Ethiopia 2011'!$E$95),\"\",'Ethiopia 2011'!$E$95)","v":""},{"$f":"IF(ISBLANK('Ethiopia 2011'!$G$95),\"\",'Ethiopia 2011'!$G$95)","v":""},{"$f":"IF(ISBLANK('Ethiopia 2011'!$C$96),\"\",'Ethiopia 2011'!$C$96)","v":""},{"$f":"IF(ISBLANK('Ethiopia 2011'!$E$96),\"\",'Ethiopia 2011'!$E$96)","v":""},{"$f":"IF(ISBLANK('Ethiopia 2011'!$G$96),\"\",'Ethiopia 2011'!$G$96)","v":""},null,{"$f":"IF(ISBLANK('Ethiopia 2011'!$D$99),\"\",'Ethiopia 2011'!$D$99)","v":"No"},{"$f":"IF(ISBLANK('Ethiopia 2011'!$E$99),\"\",'Ethiopia 2011'!$E$99)","v":""},{"$f":"IF(ISBLANK('Ethiopia 2011'!$H$99),\"\",'Ethiopia 2011'!$H$99)","v":""},{"$f":"IF(ISBLANK('Ethiopia 2011'!$D$100),\"\",'Ethiopia 2011'!$D$100)","v":"No"},{"$f":"IF(ISBLANK('Ethiopia 2011'!$E$100),\"\",'Ethiopia 2011'!$E$100)","v":""},{"$f":"IF(ISBLANK('Ethiopia 2011'!$H$100),\"\",'Ethiopia 2011'!$H$100)","v":""},{"$f":"IF(ISBLANK('Ethiopia 2011'!$D$101),\"\",'Ethiopia 2011'!$D$101)","v":"No"},{"$f":"IF(ISBLANK('Ethiopia 2011'!$E$101),\"\",'Ethiopia 2011'!$E$101)","v":""},{"$f":"IF(ISBLANK('Ethiopia 2011'!$H$101),\"\",'Ethiopia 2011'!$H$101)","v":""},null,{"$f":"IF(ISBLANK('Ethiopia 2011'!$G$104),\"\",'Ethiopia 2011'!$G$104)","v":"No"},{"$f":"IF(ISBLANK('Ethiopia 2011'!$G$105),\"\",'Ethiopia 2011'!$G$105)","v":"No"},{"$f":"IF(ISBLANK('Ethiopia 2011'!$G$106),\"\",'Ethiopia 2011'!$G$106)","v":"N/A"},{"$f":"IF(ISBLANK('Ethiopia 2011'!$D$107),\"\",'Ethiopia 2011'!$D$107)","v":"N/A"},null,{"$f":"IF(ISBLANK('Ethiopia 2011'!$G$109),\"\",'Ethiopia 2011'!$G$109)","v":"Yes"},{"$f":"IF(ISBLANK('Ethiopia 2011'!$G$110),\"\",'Ethiopia 2011'!$G$110)","v":"Yes"},{"$f":"IF(ISBLANK('Ethiopia 2011'!$G$111),\"\",'Ethiopia 2011'!$G$111)","v":"Yes"},{"$f":"IF(ISBLANK('Ethiopia 2011'!$G$112),\"\",'Ethiopia 2011'!$G$112)","v":"Yes"},{"$f":"IF(ISBLANK('Ethiopia 2011'!$G$113),\"\",'Ethiopia 2011'!$G$113)","v":"Yes"},{"$f":"IF(ISBLANK('Ethiopia 2011'!$G$114),\"\",'Ethiopia 2011'!$G$114)","v":"Yes"},{"$f":"IF(ISBLANK('Ethiopia 2011'!$G$115),\"\",'Ethiopia 2011'!$G$115)","v":"Yes"},{"$f":"IF(ISBLANK('Ethiopia 2011'!$G$116),\"\",'Ethiopia 2011'!$G$116)","v":"Yes"},{"$f":"IF(ISBLANK('Ethiopia 2011'!$G$117),\"\",'Ethiopia 2011'!$G$117)","v":"No"},{"$f":"IF(ISBLANK('Ethiopia 2011'!$G$118),\"\",'Ethiopia 2011'!$G$118)","v":"Yes"},{"$f":"IF(ISBLANK('Ethiopia 2011'!$F$119),\"\",'Ethiopia 2011'!$F$119)","v":"Diaphragm with spermicidal "},{"$f":"IF(ISBLANK('Ethiopia 2011'!$F$120),\"\",'Ethiopia 2011'!$F$120)","v":"2004, with updates in process"},{"$f":"IF(ISBLANK('Ethiopia 2011'!$D$121),\"\",'Ethiopia 2011'!$D$121)","v":" Essential Medicine List (EML)"},{"$f":"IF(ISBLANK('Ethiopia 2011'!$D$122),\"\",'Ethiopia 2011'!$D$122)","v":"Ethiopia has the Essential Medicines List published in 2004 and the List of Drugs for Ethiopia (LIDE) published in 2007. Updates are in processs for the EML."},null,{"$f":"IF(ISBLANK('Ethiopia 2011'!$F$124),\"\",'Ethiopia 2011'!$F$124)","v":2002},{"$f":"IF(ISBLANK('Ethiopia 2011'!$G$125),\"\",'Ethiopia 2011'!$G$125)","v":"Yes"},{"$f":"IF(ISBLANK('Ethiopia 2011'!$G$126),\"\",'Ethiopia 2011'!$G$126)","v":"No"},{"$f":"IF(ISBLANK('Ethiopia 2011'!$G$127),\"\",'Ethiopia 2011'!$G$127)","v":"Yes"},{"$f":"IF(ISBLANK('Ethiopia 2011'!$G$128),\"\",'Ethiopia 2011'!$G$128)","v":"No"},{"$f":"IF(ISBLANK('Ethiopia 2011'!$D$129),\"\",'Ethiopia 2011'!$D$129)","v":"While contraceptive security isn't included, access to health services in general is an indicator. Also, there is an objective to ensure a regular and adequate supply of effective, safe and affordable essential drugs. While there is no contraceptive supply indicator, there is an indicator about HIV/AIDS condom distribution by social marketing. "},null,{"$f":"IF(ISBLANK('Ethiopia 2011'!$G$131),\"\",'Ethiopia 2011'!$G$131)","v":"Yes"},null,{"$f":"IF(ISBLANK('Ethiopia 2011'!$G$133),\"\",'Ethiopia 2011'!$G$133)","v":"No"},{"$f":"IF(ISBLANK('Ethiopia 2011'!$G$134),\"\",'Ethiopia 2011'!$G$134)","v":"Yes"},{"$f":"IF(ISBLANK('Ethiopia 2011'!$G$135),\"\",'Ethiopia 2011'!$G$135)","v":"No"},{"$f":"IF(ISBLANK('Ethiopia 2011'!$G$136),\"\",'Ethiopia 2011'!$G$136)","v":"No"},{"$f":"IF(ISBLANK('Ethiopia 2011'!$G$137),\"\",'Ethiopia 2011'!$G$137)","v":"Yes"},{"$f":"IF(ISBLANK('Ethiopia 2011'!$G$138),\"\",'Ethiopia 2011'!$G$138)","v":"No"},{"$f":"IF(ISBLANK('Ethiopia 2011'!$G$139),\"\",'Ethiopia 2011'!$G$139)","v":"N/A"},{"$f":"IF(ISBLANK('Ethiopia 2011'!$G$140),\"\",'Ethiopia 2011'!$G$140)","v":"No"},{"$f":"IF(ISBLANK('Ethiopia 2011'!$G$141),\"\",'Ethiopia 2011'!$G$141)","v":"N/A"},{"$f":"IF(ISBLANK('Ethiopia 2011'!$F$142),\"\",'Ethiopia 2011'!$F$142)","v":"07/09-06/10"},{"$f":"IF(ISBLANK('Ethiopia 2011'!$F$143),\"\",'Ethiopia 2011'!$F$143)","v":"LMIS reports"},null,{"$f":"IF(ISBLANK('Ethiopia 2011'!$G$145),\"\",'Ethiopia 2011'!$G$145)","v":"No"},{"$f":"IF(ISBLANK('Ethiopia 2011'!$G$146),\"\",'Ethiopia 2011'!$G$146)","v":"No"},{"$f":"IF(ISBLANK('Ethiopia 2011'!$D$147),\"\",'Ethiopia 2011'!$D$147)","v":"Significant improvement has been observed in the stockout rates  at SDPs of the most widely used contraceptives (injectables, pills, and condoms). The stockout rate for injectables and pills was less than 7% throughout fiscal year 2010. The stockout rate for male condoms was less than 10% for the year and less than 8% in the 4th quarter of 2010. Stockout rates for implants also decreased, to less than 25% by the end of 2010. The stockout rate had been more than 58% for injectables, 30% for pills, 20% for male condoms, and 60% for implants in 2006 (according to the Logistics Indicators Assessment Tool [LIAT] asessment conducted in 2006)."},"Africa"]
["Gambia ",null,{"$f":"IF(ISBLANK('Gambia ~2011~'!$H$12),\"\",'Gambia ~2011~'!$H$12)","v":"Yes"},{"$f":"IF(ISBLANK('Gambia ~2011~'!$D$13),\"\",'Gambia ~2011~'!$D$13)","v":"Commodity Security Committee"},null,{"$f":"IF(ISBLANK('Gambia ~2011~'!$D$15),\"\",'Gambia ~2011~'!$D$15)","v":"Yes"},{"$f":"IF(ISBLANK('Gambia ~2011~'!$F$15),\"\",'Gambia ~2011~'!$F$15)","v":"Gambia Family Planning Association (GFPA)"},{"$f":"IF(ISBLANK('Gambia ~2011~'!$D$16),\"\",'Gambia ~2011~'!$D$16)","v":"Yes"},{"$f":"IF(ISBLANK('Gambia ~2011~'!$F$16),\"\",'Gambia ~2011~'!$F$16)","v":"Gambia Family Planning Association"},{"$f":"IF(ISBLANK('Gambia ~2011~'!$D$17),\"\",'Gambia ~2011~'!$D$17)","v":"Yes"},{"$f":"IF(ISBLANK('Gambia ~2011~'!$F$17),\"\",'Gambia ~2011~'!$F$17)","v":"Private pharmacy representative "},{"$f":"IF(ISBLANK('Gambia ~2011~'!$D$18),\"\",'Gambia ~2011~'!$D$18)","v":"Yes"},{"$f":"IF(ISBLANK('Gambia ~2011~'!$F$18),\"\",'Gambia ~2011~'!$F$18)","v":"UNFPA"},{"$f":"IF(ISBLANK('Gambia ~2011~'!$D$19),\"\",'Gambia ~2011~'!$D$19)","v":"Yes"},{"$f":"IF(ISBLANK('Gambia ~2011~'!$F$19),\"\",'Gambia ~2011~'!$F$19)","v":"WHO, UNICEF"},{"$f":"IF(ISBLANK('Gambia ~2011~'!$D$20),\"\",'Gambia ~2011~'!$D$20)","v":"Yes"},{"$f":"IF(ISBLANK('Gambia ~2011~'!$F$20),\"\",'Gambia ~2011~'!$F$20)","v":"Reproductive and Child Health (RCH) Department (chair of the committee)"},{"$f":"IF(ISBLANK('Gambia ~2011~'!$D$21),\"\",'Gambia ~2011~'!$D$21)","v":"Yes"},{"$f":"IF(ISBLANK('Gambia ~2011~'!$F$21),\"\",'Gambia ~2011~'!$F$21)","v":"National Pharmaceutical Services"},{"$f":"IF(ISBLANK('Gambia ~2011~'!$D$22),\"\",'Gambia ~2011~'!$D$22)","v":"Yes"},{"$f":"IF(ISBLANK('Gambia ~2011~'!$F$22),\"\",'Gambia ~2011~'!$F$22)","v":"A representative attends meetings"},{"$f":"IF(ISBLANK('Gambia ~2011~'!$D$23),\"\",'Gambia ~2011~'!$D$23)","v":""},{"$f":"IF(ISBLANK('Gambia ~2011~'!$F$23),\"\",'Gambia ~2011~'!$F$23)","v":""},{"$f":"IF(ISBLANK('Gambia ~2011~'!$H$24),\"\",'Gambia ~2011~'!$H$24)","v":"0 times"},{"$f":"IF(ISBLANK('Gambia ~2011~'!$H$25),\"\",'Gambia ~2011~'!$H$25)","v":"No"},{"$f":"IF(ISBLANK('Gambia ~2011~'!$D$26),\"\",'Gambia ~2011~'!$D$26)","v":"Yes"},{"$f":"IF(ISBLANK('Gambia ~2011~'!$F$26),\"\",'Gambia ~2011~'!$F$26)","v":"Ministry of Health and Social Welfare (MOH&SW)"},{"$f":"IF(ISBLANK('Gambia ~2011~'!$H$26),\"\",'Gambia ~2011~'!$H$26)","v":"Reproductive and Child Health (RCH) Program Manager"},null,{"$f":"IF(ISBLANK('Gambia ~2011~'!$F$28),\"\",'Gambia ~2011~'!$F$28)","v":"Don't know"},{"$f":"IF(ISBLANK('Gambia ~2011~'!$H$28),\"\",'Gambia ~2011~'!$H$28)","v":"Don't know"},{"$f":"IF(ISBLANK('Gambia ~2011~'!$G$29),\"\",'Gambia ~2011~'!$G$29)","v":104883},{"$f":"IF(ISBLANK('Gambia ~2011~'!$E$30),\"\",'Gambia ~2011~'!$E$30)","v":"Don't know"},{"$f":"IF(ISBLANK('Gambia ~2011~'!$G$30),\"\",'Gambia ~2011~'!$G$30)","v":"Don't know"},{"$f":"IF(ISBLANK('Gambia ~2011~'!$H$31),\"\",'Gambia ~2011~'!$H$31)","v":"No"},{"$f":"IF(ISBLANK('Gambia ~2011~'!$H$32),\"\",'Gambia ~2011~'!$H$32)","v":"Don't know"},{"$f":"IF(ISBLANK('Gambia ~2011~'!$E$35),\"\",'Gambia ~2011~'!$E$35)","v":"Don't know"},{"$f":"IF(ISBLANK('Gambia ~2011~'!$F$35),\"\",'Gambia ~2011~'!$F$35)","v":"01/09-12/09"},{"$f":"IF(ISBLANK('Gambia ~2011~'!$G$35),\"\",'Gambia ~2011~'!$G$35)","v":""},{"$f":"IF(ISBLANK('Gambia ~2011~'!$H$35),\"\",'Gambia ~2011~'!$H$35)","v":""},{"$f":"IF(ISBLANK('Gambia ~2011~'!$H$37),\"\",'Gambia ~2011~'!$H$37)","v":"Don't know"},{"$f":"IF(ISBLANK('Gambia ~2011~'!$D$40),\"\",'Gambia ~2011~'!$D$40)","v":"No"},{"$f":"IF(ISBLANK('Gambia ~2011~'!$D$41),\"\",'Gambia ~2011~'!$D$41)","v":"N/A"},{"$f":"IF(ISBLANK('Gambia ~2011~'!$E$40),\"\",'Gambia ~2011~'!$E$40)","v":0},{"$f":"IF(ISBLANK('Gambia ~2011~'!$F$40),\"\",'Gambia ~2011~'!$F$40)","v":"01/09-12/09"},{"$f":"IF(ISBLANK('Gambia ~2011~'!$G$40),\"\",'Gambia ~2011~'!$G$40)","v":""},{"$f":"IF(ISBLANK('Gambia ~2011~'!$H$40),\"\",'Gambia ~2011~'!$H$40)","v":""},{"$f":"IF(ISBLANK('Gambia ~2011~'!$D$42),\"\",'Gambia ~2011~'!$D$42)","v":"Don't know"},{"$f":"IF(ISBLANK('Gambia ~2011~'!$D$43),\"\",'Gambia ~2011~'!$D$43)","v":"UNFPA"},{"$f":"IF(ISBLANK('Gambia ~2011~'!$E$42),\"\",'Gambia ~2011~'!$E$42)","v":"Don't know"},{"$f":"IF(ISBLANK('Gambia ~2011~'!$F$42),\"\",'Gambia ~2011~'!$F$42)","v":"01/09-12/09"},{"$f":"IF(ISBLANK('Gambia ~2011~'!$G$42),\"\",'Gambia ~2011~'!$G$42)","v":"Interview with UNFPA NPO for Reproductive Health and HIV/AIDS"},{"$f":"IF(ISBLANK('Gambia ~2011~'!$H$42),\"\",'Gambia ~2011~'!$H$42)","v":"UNFPA allocates 35K USD annually for functioning of the RCH division and the division decides how much is used for contraceptive procurement. There was no data on actually how much of the 35K was spent on contraceptive procurement."},{"$f":"IF(ISBLANK('Gambia ~2011~'!$E$44),\"\",'Gambia ~2011~'!$E$44)","v":"Don't know"},{"$f":"IF(ISBLANK('Gambia ~2011~'!$H$44),\"\",'Gambia ~2011~'!$H$44)","v":""},null,{"$f":"IF(ISBLANK('Gambia ~2011~'!$D$48),\"\",'Gambia ~2011~'!$D$48)","v":"Yes"},{"$f":"IF(ISBLANK('Gambia ~2011~'!$D$49),\"\",'Gambia ~2011~'!$D$49)","v":"UNFPA"},{"$f":"IF(ISBLANK('Gambia ~2011~'!$E$48),\"\",'Gambia ~2011~'!$E$48)","v":60222},{"$f":"IF(ISBLANK('Gambia ~2011~'!$F$48),\"\",'Gambia ~2011~'!$F$48)","v":"01/09-12/09"},{"$f":"IF(ISBLANK('Gambia ~2011~'!$G$48),\"\",'Gambia ~2011~'!$G$48)","v":"RHInterchange"},{"$f":"IF(ISBLANK('Gambia ~2011~'!$H$48),\"\",'Gambia ~2011~'!$H$48)","v":""},{"$f":"IF(ISBLANK('Gambia ~2011~'!$D$50),\"\",'Gambia ~2011~'!$D$50)","v":"No"},{"$f":"IF(ISBLANK('Gambia ~2011~'!$E$50),\"\",'Gambia ~2011~'!$E$50)","v":0},{"$f":"IF(ISBLANK('Gambia ~2011~'!$F$50),\"\",'Gambia ~2011~'!$F$50)","v":"01/09-12/09"},{"$f":"IF(ISBLANK('Gambia ~2011~'!$G$50),\"\",'Gambia ~2011~'!$G$50)","v":"RHInterchange"},{"$f":"IF(ISBLANK('Gambia ~2011~'!$H$50),\"\",'Gambia ~2011~'!$H$50)","v":""},{"$f":"IF(ISBLANK('Gambia ~2011~'!$D$51),\"\",'Gambia ~2011~'!$D$51)","v":"No"},{"$f":"IF(ISBLANK('Gambia ~2011~'!$E$51),\"\",'Gambia ~2011~'!$E$51)","v":0},{"$f":"IF(ISBLANK('Gambia ~2011~'!$F$51),\"\",'Gambia ~2011~'!$F$51)","v":"01/09-12/09"},{"$f":"IF(ISBLANK('Gambia ~2011~'!$G$51),\"\",'Gambia ~2011~'!$G$51)","v":"RHInterchange"},{"$f":"IF(ISBLANK('Gambia ~2011~'!$H$51),\"\",'Gambia ~2011~'!$H$51)","v":""},{"$f":"IF(ISBLANK('Gambia ~2011~'!$E$52),\"\",'Gambia ~2011~'!$E$52)","v":60222},{"$f":"IF(ISBLANK('Gambia ~2011~'!$H$52),\"\",'Gambia ~2011~'!$H$52)","v":""},{"$f":"IF(ISBLANK('Gambia ~2011~'!$F$55),\"\",'Gambia ~2011~'!$F$55)","v":"Don't know"},{"$f":"IF(ISBLANK('Gambia ~2011~'!$G$55),\"\",'Gambia ~2011~'!$G$55)","v":""},{"$f":"IF(ISBLANK('Gambia ~2011~'!$F$56),\"\",'Gambia ~2011~'!$F$56)","v":"Don't know"},{"$f":"IF(ISBLANK('Gambia ~2011~'!$G$56),\"\",'Gambia ~2011~'!$G$56)","v":"Estimated 57% based on data from the RHI in terms of what was spent. (This estimate doesn't take into account any government funds from UNFPA that may have been used for contraceptive procurement though.)"},{"$f":"IF(ISBLANK('Gambia ~2011~'!$F$57),\"\",'Gambia ~2011~'!$F$57)","v":""},{"$f":"IF(ISBLANK('Gambia ~2011~'!$G$57),\"\",'Gambia ~2011~'!$G$57)","v":""},{"$f":"IF(ISBLANK('Gambia ~2011~'!$F$59),\"\",'Gambia ~2011~'!$F$59)","v":"Third-party agent (e.g., UNFPA, Crown Agents)"},{"$f":"IF(ISBLANK('Gambia ~2011~'!$F$60),\"\",'Gambia ~2011~'!$F$60)","v":"UNFPA"},{"$f":"IF(ISBLANK('Gambia ~2011~'!$F$61),\"\",'Gambia ~2011~'!$F$61)","v":"No"},{"$f":"IF(ISBLANK('Gambia ~2011~'!$D$62),\"\",'Gambia ~2011~'!$D$62)","v":"Currently there is inadequate funding for contraceptive procurement. With only one donor and no internally generated government funds for contraceptive procurement, stockouts occur frequently."},null,null,{"$f":"IF(ISBLANK('Gambia ~2011~'!$D$66),\"\",'Gambia ~2011~'!$D$66)","v":"Yes"},{"$f":"IF(ISBLANK('Gambia ~2011~'!$D$67),\"\",'Gambia ~2011~'!$D$67)","v":"Yes"},{"$f":"IF(ISBLANK('Gambia ~2011~'!$D$68),\"\",'Gambia ~2011~'!$D$68)","v":"Yes"},{"$f":"IF(ISBLANK('Gambia ~2011~'!$D$69),\"\",'Gambia ~2011~'!$D$69)","v":"No"},{"$f":"IF(ISBLANK('Gambia ~2011~'!$D$70),\"\",'Gambia ~2011~'!$D$70)","v":"Yes"},{"$f":"IF(ISBLANK('Gambia ~2011~'!$D$71),\"\",'Gambia ~2011~'!$D$71)","v":"Yes"},{"$f":"IF(ISBLANK('Gambia ~2011~'!$D$72),\"\",'Gambia ~2011~'!$D$72)","v":"No"},{"$f":"IF(ISBLANK('Gambia ~2011~'!$D$73),\"\",'Gambia ~2011~'!$D$73)","v":"No"},{"$f":"IF(ISBLANK('Gambia ~2011~'!$D$74),\"\",'Gambia ~2011~'!$D$74)","v":"No"},{"$f":"IF(ISBLANK('Gambia ~2011~'!$D$75),\"\",'Gambia ~2011~'!$D$75)","v":"No"},{"$f":"IF(ISBLANK('Gambia ~2011~'!$D$76),\"\",'Gambia ~2011~'!$D$76)","v":"No"},{"$f":"IF(ISBLANK('Gambia ~2011~'!$D$77),\"\",'Gambia ~2011~'!$D$77)","v":""},null,{"$f":"IF(ISBLANK('Gambia ~2011~'!$F$66),\"\",'Gambia ~2011~'!$F$66)","v":"Yes"},{"$f":"IF(ISBLANK('Gambia ~2011~'!$F$67),\"\",'Gambia ~2011~'!$F$67)","v":"Yes"},{"$f":"IF(ISBLANK('Gambia ~2011~'!$F$68),\"\",'Gambia ~2011~'!$F$68)","v":"Yes"},{"$f":"IF(ISBLANK('Gambia ~2011~'!$F$69),\"\",'Gambia ~2011~'!$F$69)","v":"No"},{"$f":"IF(ISBLANK('Gambia ~2011~'!$F$70),\"\",'Gambia ~2011~'!$F$70)","v":"Yes"},{"$f":"IF(ISBLANK('Gambia ~2011~'!$F$71),\"\",'Gambia ~2011~'!$F$71)","v":"Yes"},{"$f":"IF(ISBLANK('Gambia ~2011~'!$F$72),\"\",'Gambia ~2011~'!$F$72)","v":"Yes"},{"$f":"IF(ISBLANK('Gambia ~2011~'!$F$73),\"\",'Gambia ~2011~'!$F$73)","v":"No"},{"$f":"IF(ISBLANK('Gambia ~2011~'!$F$74),\"\",'Gambia ~2011~'!$F$74)","v":"Yes"},{"$f":"IF(ISBLANK('Gambia ~2011~'!$F$75),\"\",'Gambia ~2011~'!$F$75)","v":"Yes"},{"$f":"IF(ISBLANK('Gambia ~2011~'!$F$76),\"\",'Gambia ~2011~'!$F$76)","v":"No"},{"$f":"IF(ISBLANK('Gambia ~2011~'!$F$77),\"\",'Gambia ~2011~'!$F$77)","v":""},null,{"$f":"IF(ISBLANK('Gambia ~2011~'!$G$66),\"\",'Gambia ~2011~'!$G$66)","v":"Yes"},{"$f":"IF(ISBLANK('Gambia ~2011~'!$G$67),\"\",'Gambia ~2011~'!$G$67)","v":"Yes"},{"$f":"IF(ISBLANK('Gambia ~2011~'!$G$68),\"\",'Gambia ~2011~'!$G$68)","v":"Yes"},{"$f":"IF(ISBLANK('Gambia ~2011~'!$G$69),\"\",'Gambia ~2011~'!$G$69)","v":"Yes"},{"$f":"IF(ISBLANK('Gambia ~2011~'!$G$70),\"\",'Gambia ~2011~'!$G$70)","v":"Yes"},{"$f":"IF(ISBLANK('Gambia ~2011~'!$G$71),\"\",'Gambia ~2011~'!$G$71)","v":"Yes"},{"$f":"IF(ISBLANK('Gambia ~2011~'!$G$72),\"\",'Gambia ~2011~'!$G$72)","v":"Yes"},{"$f":"IF(ISBLANK('Gambia ~2011~'!$G$73),\"\",'Gambia ~2011~'!$G$73)","v":"Yes"},{"$f":"IF(ISBLANK('Gambia ~2011~'!$G$74),\"\",'Gambia ~2011~'!$G$74)","v":"Yes"},{"$f":"IF(ISBLANK('Gambia ~2011~'!$G$75),\"\",'Gambia ~2011~'!$G$75)","v":"Yes"},{"$f":"IF(ISBLANK('Gambia ~2011~'!$G$76),\"\",'Gambia ~2011~'!$G$76)","v":"No"},{"$f":"IF(ISBLANK('Gambia ~2011~'!$G$77),\"\",'Gambia ~2011~'!$G$77)","v":""},null,{"$f":"IF(ISBLANK('Gambia ~2011~'!$H$66),\"\",'Gambia ~2011~'!$H$66)","v":"Don't know"},{"$f":"IF(ISBLANK('Gambia ~2011~'!$H$67),\"\",'Gambia ~2011~'!$H$67)","v":"Don't know"},{"$f":"IF(ISBLANK('Gambia ~2011~'!$H$68),\"\",'Gambia ~2011~'!$H$68)","v":"Don't know"},{"$f":"IF(ISBLANK('Gambia ~2011~'!$H$69),\"\",'Gambia ~2011~'!$H$69)","v":"Don't know"},{"$f":"IF(ISBLANK('Gambia ~2011~'!$H$70),\"\",'Gambia ~2011~'!$H$70)","v":"Don't know"},{"$f":"IF(ISBLANK('Gambia ~2011~'!$H$71),\"\",'Gambia ~2011~'!$H$71)","v":"Don't know"},{"$f":"IF(ISBLANK('Gambia ~2011~'!$H$72),\"\",'Gambia ~2011~'!$H$72)","v":"Don't know"},{"$f":"IF(ISBLANK('Gambia ~2011~'!$H$73),\"\",'Gambia ~2011~'!$H$73)","v":"Don't know"},{"$f":"IF(ISBLANK('Gambia ~2011~'!$H$74),\"\",'Gambia ~2011~'!$H$74)","v":"Don't know"},{"$f":"IF(ISBLANK('Gambia ~2011~'!$H$75),\"\",'Gambia ~2011~'!$H$75)","v":"Don't know"},{"$f":"IF(ISBLANK('Gambia ~2011~'!$H$76),\"\",'Gambia ~2011~'!$H$76)","v":"Don't know"},{"$f":"IF(ISBLANK('Gambia ~2011~'!$H$77),\"\",'Gambia ~2011~'!$H$77)","v":""},{"$f":"IF(ISBLANK('Gambia ~2011~'!$D$78),\"\",'Gambia ~2011~'!$D$78)","v":"For female condoms, there was a plan to introduce them in the public sector and a pilot was conducted, but uptake was low."},null,{"$f":"IF(ISBLANK('Gambia ~2011~'!$H$80),\"\",'Gambia ~2011~'!$H$80)","v":"Yes"},{"$f":"IF(ISBLANK('Gambia ~2011~'!$C$83),\"\",'Gambia ~2011~'!$C$83)","v":"National Reproductive Health Commodity Security Strategy for the Gambia"},{"$f":"IF(ISBLANK('Gambia ~2011~'!$D$83),\"\",'Gambia ~2011~'!$D$83)","v":"2006-2010"},{"$f":"IF(ISBLANK('Gambia ~2011~'!$F$83),\"\",'Gambia ~2011~'!$F$83)","v":"Yes"},{"$f":"IF(ISBLANK('Gambia ~2011~'!$G$83),\"\",'Gambia ~2011~'!$G$83)","v":"Yes"},{"$f":"IF(ISBLANK('Gambia ~2011~'!$F$84),\"\",'Gambia ~2011~'!$F$84)","v":"Yes"},{"$f":"IF(ISBLANK('Gambia ~2011~'!$E$85),\"\",'Gambia ~2011~'!$E$85)","v":"NGO/private sector"},{"$f":"IF(ISBLANK('Gambia ~2011~'!$E$86),\"\",'Gambia ~2011~'!$E$86)","v":"1.5% of CIF for processing fee to customs"},{"$f":"IF(ISBLANK('Gambia ~2011~'!$H$87),\"\",'Gambia ~2011~'!$H$87)","v":"No"},{"$f":"IF(ISBLANK('Gambia ~2011~'!$D$88),\"\",'Gambia ~2011~'!$D$88)","v":"N/A"},{"$f":"IF(ISBLANK('Gambia ~2011~'!$H$89),\"\",'Gambia ~2011~'!$H$89)","v":"Don't know"},{"$f":"IF(ISBLANK('Gambia ~2011~'!$D$90),\"\",'Gambia ~2011~'!$D$90)","v":"Don't know"},{"$f":"IF(ISBLANK('Gambia ~2011~'!$H$91),\"\",'Gambia ~2011~'!$H$91)","v":"No"},{"$f":"IF(ISBLANK('Gambia ~2011~'!$C$94),\"\",'Gambia ~2011~'!$C$94)","v":""},{"$f":"IF(ISBLANK('Gambia ~2011~'!$E$94),\"\",'Gambia ~2011~'!$E$94)","v":""},{"$f":"IF(ISBLANK('Gambia ~2011~'!$G$94),\"\",'Gambia ~2011~'!$G$94)","v":""},{"$f":"IF(ISBLANK('Gambia ~2011~'!$C$95),\"\",'Gambia ~2011~'!$C$95)","v":""},{"$f":"IF(ISBLANK('Gambia ~2011~'!$E$95),\"\",'Gambia ~2011~'!$E$95)","v":""},{"$f":"IF(ISBLANK('Gambia ~2011~'!$G$95),\"\",'Gambia ~2011~'!$G$95)","v":""},{"$f":"IF(ISBLANK('Gambia ~2011~'!$C$96),\"\",'Gambia ~2011~'!$C$96)","v":""},{"$f":"IF(ISBLANK('Gambia ~2011~'!$E$96),\"\",'Gambia ~2011~'!$E$96)","v":""},{"$f":"IF(ISBLANK('Gambia ~2011~'!$G$96),\"\",'Gambia ~2011~'!$G$96)","v":""},null,{"$f":"IF(ISBLANK('Gambia ~2011~'!$D$99),\"\",'Gambia ~2011~'!$D$99)","v":"No"},{"$f":"IF(ISBLANK('Gambia ~2011~'!$E$99),\"\",'Gambia ~2011~'!$E$99)","v":""},{"$f":"IF(ISBLANK('Gambia ~2011~'!$H$99),\"\",'Gambia ~2011~'!$H$99)","v":""},{"$f":"IF(ISBLANK('Gambia ~2011~'!$D$100),\"\",'Gambia ~2011~'!$D$100)","v":"Yes"},{"$f":"IF(ISBLANK('Gambia ~2011~'!$E$100),\"\",'Gambia ~2011~'!$E$100)","v":"If someone is below 18 and not married, parental consent is required."},{"$f":"IF(ISBLANK('Gambia ~2011~'!$H$100),\"\",'Gambia ~2011~'!$H$100)","v":"Yes"},{"$f":"IF(ISBLANK('Gambia ~2011~'!$D$101),\"\",'Gambia ~2011~'!$D$101)","v":"Don't know"},{"$f":"IF(ISBLANK('Gambia ~2011~'!$E$101),\"\",'Gambia ~2011~'!$E$101)","v":""},{"$f":"IF(ISBLANK('Gambia ~2011~'!$H$101),\"\",'Gambia ~2011~'!$H$101)","v":""},null,{"$f":"IF(ISBLANK('Gambia ~2011~'!$G$104),\"\",'Gambia ~2011~'!$G$104)","v":"No"},{"$f":"IF(ISBLANK('Gambia ~2011~'!$G$105),\"\",'Gambia ~2011~'!$G$105)","v":"No"},{"$f":"IF(ISBLANK('Gambia ~2011~'!$G$106),\"\",'Gambia ~2011~'!$G$106)","v":"N/A"},{"$f":"IF(ISBLANK('Gambia ~2011~'!$D$107),\"\",'Gambia ~2011~'!$D$107)","v":"N/A"},null,{"$f":"IF(ISBLANK('Gambia ~2011~'!$G$109),\"\",'Gambia ~2011~'!$G$109)","v":"Yes"},{"$f":"IF(ISBLANK('Gambia ~2011~'!$G$110),\"\",'Gambia ~2011~'!$G$110)","v":"Yes"},{"$f":"IF(ISBLANK('Gambia ~2011~'!$G$111),\"\",'Gambia ~2011~'!$G$111)","v":"Yes"},{"$f":"IF(ISBLANK('Gambia ~2011~'!$G$112),\"\",'Gambia ~2011~'!$G$112)","v":"No"},{"$f":"IF(ISBLANK('Gambia ~2011~'!$G$113),\"\",'Gambia ~2011~'!$G$113)","v":"Yes"},{"$f":"IF(ISBLANK('Gambia ~2011~'!$G$114),\"\",'Gambia ~2011~'!$G$114)","v":"Yes"},{"$f":"IF(ISBLANK('Gambia ~2011~'!$G$115),\"\",'Gambia ~2011~'!$G$115)","v":"No"},{"$f":"IF(ISBLANK('Gambia ~2011~'!$G$116),\"\",'Gambia ~2011~'!$G$116)","v":"No"},{"$f":"IF(ISBLANK('Gambia ~2011~'!$G$117),\"\",'Gambia ~2011~'!$G$117)","v":"Don't know"},{"$f":"IF(ISBLANK('Gambia ~2011~'!$G$118),\"\",'Gambia ~2011~'!$G$118)","v":"Don't know"},{"$f":"IF(ISBLANK('Gambia ~2011~'!$F$119),\"\",'Gambia ~2011~'!$F$119)","v":"Don't know"},{"$f":"IF(ISBLANK('Gambia ~2011~'!$F$120),\"\",'Gambia ~2011~'!$F$120)","v":2007},{"$f":"IF(ISBLANK('Gambia ~2011~'!$D$121),\"\",'Gambia ~2011~'!$D$121)","v":""},{"$f":"IF(ISBLANK('Gambia ~2011~'!$D$122),\"\",'Gambia ~2011~'!$D$122)","v":""},null,{"$f":"IF(ISBLANK('Gambia ~2011~'!$F$124),\"\",'Gambia ~2011~'!$F$124)","v":2007},{"$f":"IF(ISBLANK('Gambia ~2011~'!$G$125),\"\",'Gambia ~2011~'!$G$125)","v":"Yes"},{"$f":"IF(ISBLANK('Gambia ~2011~'!$G$126),\"\",'Gambia ~2011~'!$G$126)","v":"No"},{"$f":"IF(ISBLANK('Gambia ~2011~'!$G$127),\"\",'Gambia ~2011~'!$G$127)","v":"No"},{"$f":"IF(ISBLANK('Gambia ~2011~'!$G$128),\"\",'Gambia ~2011~'!$G$128)","v":"No"},{"$f":"IF(ISBLANK('Gambia ~2011~'!$D$129),\"\",'Gambia ~2011~'!$D$129)","v":"Commodity security for contraceptives specifically was not included in the PRSP, but access to services and the establishment of an efficient supply and logistics system to ensure effective and efficient health services to all was mentioned (p90-91). It was also mentioned that \"the need to address the frequent and acute shortage of drugs topped considerations for the Health Sector\" (p. 37). While thre are no contraceptive supply indicators, the occurrence of contraceptive stockouts is mentioned (p. 114). "},null,{"$f":"IF(ISBLANK('Gambia ~2011~'!$G$131),\"\",'Gambia ~2011~'!$G$131)","v":"Yes"},null,{"$f":"IF(ISBLANK('Gambia ~2011~'!$G$133),\"\",'Gambia ~2011~'!$G$133)","v":"Yes"},{"$f":"IF(ISBLANK('Gambia ~2011~'!$G$134),\"\",'Gambia ~2011~'!$G$134)","v":"Yes"},{"$f":"IF(ISBLANK('Gambia ~2011~'!$G$135),\"\",'Gambia ~2011~'!$G$135)","v":"Yes"},{"$f":"IF(ISBLANK('Gambia ~2011~'!$G$136),\"\",'Gambia ~2011~'!$G$136)","v":"N/A"},{"$f":"IF(ISBLANK('Gambia ~2011~'!$G$137),\"\",'Gambia ~2011~'!$G$137)","v":"No"},{"$f":"IF(ISBLANK('Gambia ~2011~'!$G$138),\"\",'Gambia ~2011~'!$G$138)","v":"Yes"},{"$f":"IF(ISBLANK('Gambia ~2011~'!$G$139),\"\",'Gambia ~2011~'!$G$139)","v":"No"},{"$f":"IF(ISBLANK('Gambia ~2011~'!$G$140),\"\",'Gambia ~2011~'!$G$140)","v":"N/A"},{"$f":"IF(ISBLANK('Gambia ~2011~'!$G$141),\"\",'Gambia ~2011~'!$G$141)","v":"N/A"},{"$f":"IF(ISBLANK('Gambia ~2011~'!$F$142),\"\",'Gambia ~2011~'!$F$142)","v":"01/10-08/10"},{"$f":"IF(ISBLANK('Gambia ~2011~'!$F$143),\"\",'Gambia ~2011~'!$F$143)","v":"Anecdotal reports from the Reproductive and Child Health division, Gambia Family Planning Association, and interviews with stakeholders"},null,{"$f":"IF(ISBLANK('Gambia ~2011~'!$G$145),\"\",'Gambia ~2011~'!$G$145)","v":"Yes"},{"$f":"IF(ISBLANK('Gambia ~2011~'!$G$146),\"\",'Gambia ~2011~'!$G$146)","v":"Yes"},{"$f":"IF(ISBLANK('Gambia ~2011~'!$D$147),\"\",'Gambia ~2011~'!$D$147)","v":"Whereas Gambia has a CS strategy, it has not been fully implemented. Difficulties in coordination and financing greatly undermine contraceptive security in the Gambia."},"Africa"]
["Georgia ",null,{"$f":"IF(ISBLANK('Georgia 2011'!$H$12),\"\",'Georgia 2011'!$H$12)","v":"Yes"},{"$f":"IF(ISBLANK('Georgia 2011'!$D$13),\"\",'Georgia 2011'!$D$13)","v":"National Reproductive Health Council"},null,{"$f":"IF(ISBLANK('Georgia 2011'!$D$15),\"\",'Georgia 2011'!$D$15)","v":"No"},{"$f":"IF(ISBLANK('Georgia 2011'!$F$15),\"\",'Georgia 2011'!$F$15)","v":""},{"$f":"IF(ISBLANK('Georgia 2011'!$D$16),\"\",'Georgia 2011'!$D$16)","v":"Yes"},{"$f":"IF(ISBLANK('Georgia 2011'!$F$16),\"\",'Georgia 2011'!$F$16)","v":"John Snow, Inc. (JSI)"},{"$f":"IF(ISBLANK('Georgia 2011'!$D$17),\"\",'Georgia 2011'!$D$17)","v":"No"},{"$f":"IF(ISBLANK('Georgia 2011'!$F$17),\"\",'Georgia 2011'!$F$17)","v":""},{"$f":"IF(ISBLANK('Georgia 2011'!$D$18),\"\",'Georgia 2011'!$D$18)","v":"Yes"},{"$f":"IF(ISBLANK('Georgia 2011'!$F$18),\"\",'Georgia 2011'!$F$18)","v":"USAID"},{"$f":"IF(ISBLANK('Georgia 2011'!$D$19),\"\",'Georgia 2011'!$D$19)","v":"Yes"},{"$f":"IF(ISBLANK('Georgia 2011'!$F$19),\"\",'Georgia 2011'!$F$19)","v":"UNFPA, UNICEF, WHO"},{"$f":"IF(ISBLANK('Georgia 2011'!$D$20),\"\",'Georgia 2011'!$D$20)","v":"Yes"},{"$f":"IF(ISBLANK('Georgia 2011'!$F$20),\"\",'Georgia 2011'!$F$20)","v":"Policy Unit, Deputy Minister, Advisor to the Minister"},{"$f":"IF(ISBLANK('Georgia 2011'!$D$21),\"\",'Georgia 2011'!$D$21)","v":"N/A"},{"$f":"IF(ISBLANK('Georgia 2011'!$F$21),\"\",'Georgia 2011'!$F$21)","v":""},{"$f":"IF(ISBLANK('Georgia 2011'!$D$22),\"\",'Georgia 2011'!$D$22)","v":"No"},{"$f":"IF(ISBLANK('Georgia 2011'!$F$22),\"\",'Georgia 2011'!$F$22)","v":""},{"$f":"IF(ISBLANK('Georgia 2011'!$D$23),\"\",'Georgia 2011'!$D$23)","v":"Yes"},{"$f":"IF(ISBLANK('Georgia 2011'!$F$23),\"\",'Georgia 2011'!$F$23)","v":"National Perinatal Center"},{"$f":"IF(ISBLANK('Georgia 2011'!$H$24),\"\",'Georgia 2011'!$H$24)","v":"6 or more times"},{"$f":"IF(ISBLANK('Georgia 2011'!$H$25),\"\",'Georgia 2011'!$H$25)","v":"Yes"},{"$f":"IF(ISBLANK('Georgia 2011'!$D$26),\"\",'Georgia 2011'!$D$26)","v":"No"},{"$f":"IF(ISBLANK('Georgia 2011'!$F$26),\"\",'Georgia 2011'!$F$26)","v":""},{"$f":"IF(ISBLANK('Georgia 2011'!$H$26),\"\",'Georgia 2011'!$H$26)","v":""},null,{"$f":"IF(ISBLANK('Georgia 2011'!$F$28),\"\",'Georgia 2011'!$F$28)","v":"January"},{"$f":"IF(ISBLANK('Georgia 2011'!$H$28),\"\",'Georgia 2011'!$H$28)","v":"December"},{"$f":"IF(ISBLANK('Georgia 2011'!$G$29),\"\",'Georgia 2011'!$G$29)","v":"Don't know"},{"$f":"IF(ISBLANK('Georgia 2011'!$E$30),\"\",'Georgia 2011'!$E$30)","v":"12/10"},{"$f":"IF(ISBLANK('Georgia 2011'!$G$30),\"\",'Georgia 2011'!$G$30)","v":"JSI"},{"$f":"IF(ISBLANK('Georgia 2011'!$H$31),\"\",'Georgia 2011'!$H$31)","v":"No"},{"$f":"IF(ISBLANK('Georgia 2011'!$H$32),\"\",'Georgia 2011'!$H$32)","v":"No"},{"$f":"IF(ISBLANK('Georgia 2011'!$E$35),\"\",'Georgia 2011'!$E$35)","v":0},{"$f":"IF(ISBLANK('Georgia 2011'!$F$35),\"\",'Georgia 2011'!$F$35)","v":"01/10-12/10"},{"$f":"IF(ISBLANK('Georgia 2011'!$G$35),\"\",'Georgia 2011'!$G$35)","v":""},{"$f":"IF(ISBLANK('Georgia 2011'!$H$35),\"\",'Georgia 2011'!$H$35)","v":"Government funds have never been allocated for contraceptives."},{"$f":"IF(ISBLANK('Georgia 2011'!$H$37),\"\",'Georgia 2011'!$H$37)","v":"No"},{"$f":"IF(ISBLANK('Georgia 2011'!$D$40),\"\",'Georgia 2011'!$D$40)","v":"No"},{"$f":"IF(ISBLANK('Georgia 2011'!$D$41),\"\",'Georgia 2011'!$D$41)","v":"N/A"},{"$f":"IF(ISBLANK('Georgia 2011'!$E$40),\"\",'Georgia 2011'!$E$40)","v":0},{"$f":"IF(ISBLANK('Georgia 2011'!$F$40),\"\",'Georgia 2011'!$F$40)","v":"01/10-12/10"},{"$f":"IF(ISBLANK('Georgia 2011'!$G$40),\"\",'Georgia 2011'!$G$40)","v":""},{"$f":"IF(ISBLANK('Georgia 2011'!$H$40),\"\",'Georgia 2011'!$H$40)","v":""},{"$f":"IF(ISBLANK('Georgia 2011'!$D$42),\"\",'Georgia 2011'!$D$42)","v":"No"},{"$f":"IF(ISBLANK('Georgia 2011'!$D$43),\"\",'Georgia 2011'!$D$43)","v":"N/A"},{"$f":"IF(ISBLANK('Georgia 2011'!$E$42),\"\",'Georgia 2011'!$E$42)","v":0},{"$f":"IF(ISBLANK('Georgia 2011'!$F$42),\"\",'Georgia 2011'!$F$42)","v":"01/10-12/10"},{"$f":"IF(ISBLANK('Georgia 2011'!$G$42),\"\",'Georgia 2011'!$G$42)","v":""},{"$f":"IF(ISBLANK('Georgia 2011'!$H$42),\"\",'Georgia 2011'!$H$42)","v":""},{"$f":"IF(ISBLANK('Georgia 2011'!$E$44),\"\",'Georgia 2011'!$E$44)","v":0},{"$f":"IF(ISBLANK('Georgia 2011'!$H$44),\"\",'Georgia 2011'!$H$44)","v":""},null,{"$f":"IF(ISBLANK('Georgia 2011'!$D$48),\"\",'Georgia 2011'!$D$48)","v":"Yes"},{"$f":"IF(ISBLANK('Georgia 2011'!$D$49),\"\",'Georgia 2011'!$D$49)","v":"UNFPA"},{"$f":"IF(ISBLANK('Georgia 2011'!$E$48),\"\",'Georgia 2011'!$E$48)","v":18361},{"$f":"IF(ISBLANK('Georgia 2011'!$F$48),\"\",'Georgia 2011'!$F$48)","v":"01/10-12/10"},{"$f":"IF(ISBLANK('Georgia 2011'!$G$48),\"\",'Georgia 2011'!$G$48)","v":"RHInterchange"},{"$f":"IF(ISBLANK('Georgia 2011'!$H$48),\"\",'Georgia 2011'!$H$48)","v":""},{"$f":"IF(ISBLANK('Georgia 2011'!$D$50),\"\",'Georgia 2011'!$D$50)","v":"Yes"},{"$f":"IF(ISBLANK('Georgia 2011'!$E$50),\"\",'Georgia 2011'!$E$50)","v":23529},{"$f":"IF(ISBLANK('Georgia 2011'!$F$50),\"\",'Georgia 2011'!$F$50)","v":"2010-2011"},{"$f":"IF(ISBLANK('Georgia 2011'!$G$50),\"\",'Georgia 2011'!$G$50)","v":"Global Fund Procurement Table"},{"$f":"IF(ISBLANK('Georgia 2011'!$H$50),\"\",'Georgia 2011'!$H$50)","v":""},{"$f":"IF(ISBLANK('Georgia 2011'!$D$51),\"\",'Georgia 2011'!$D$51)","v":"No"},{"$f":"IF(ISBLANK('Georgia 2011'!$E$51),\"\",'Georgia 2011'!$E$51)","v":0},{"$f":"IF(ISBLANK('Georgia 2011'!$F$51),\"\",'Georgia 2011'!$F$51)","v":"01/10-12/10"},{"$f":"IF(ISBLANK('Georgia 2011'!$G$51),\"\",'Georgia 2011'!$G$51)","v":""},{"$f":"IF(ISBLANK('Georgia 2011'!$H$51),\"\",'Georgia 2011'!$H$51)","v":""},{"$f":"IF(ISBLANK('Georgia 2011'!$E$52),\"\",'Georgia 2011'!$E$52)","v":41890},{"$f":"IF(ISBLANK('Georgia 2011'!$H$52),\"\",'Georgia 2011'!$H$52)","v":""},{"$f":"IF(ISBLANK('Georgia 2011'!$F$55),\"\",'Georgia 2011'!$F$55)","v":0},{"$f":"IF(ISBLANK('Georgia 2011'!$G$55),\"\",'Georgia 2011'!$G$55)","v":""},{"$f":"IF(ISBLANK('Georgia 2011'!$F$56),\"\",'Georgia 2011'!$F$56)","v":"Don't know"},{"$f":"IF(ISBLANK('Georgia 2011'!$G$56),\"\",'Georgia 2011'!$G$56)","v":""},{"$f":"IF(ISBLANK('Georgia 2011'!$F$57),\"\",'Georgia 2011'!$F$57)","v":"Don't know"},{"$f":"IF(ISBLANK('Georgia 2011'!$G$57),\"\",'Georgia 2011'!$G$57)","v":"The USAID SUSTAIN Project did not have a gap in funding. We do not have information about UNFPA funding. \n\n"},{"$f":"IF(ISBLANK('Georgia 2011'!$F$59),\"\",'Georgia 2011'!$F$59)","v":"N/A"},{"$f":"IF(ISBLANK('Georgia 2011'!$F$60),\"\",'Georgia 2011'!$F$60)","v":"N/A"},{"$f":"IF(ISBLANK('Georgia 2011'!$F$61),\"\",'Georgia 2011'!$F$61)","v":"N/A"},{"$f":"IF(ISBLANK('Georgia 2011'!$D$62),\"\",'Georgia 2011'!$D$62)","v":""},null,null,{"$f":"IF(ISBLANK('Georgia 2011'!$D$66),\"\",'Georgia 2011'!$D$66)","v":"Yes"},{"$f":"IF(ISBLANK('Georgia 2011'!$D$67),\"\",'Georgia 2011'!$D$67)","v":"Yes"},{"$f":"IF(ISBLANK('Georgia 2011'!$D$68),\"\",'Georgia 2011'!$D$68)","v":"No"},{"$f":"IF(ISBLANK('Georgia 2011'!$D$69),\"\",'Georgia 2011'!$D$69)","v":"No"},{"$f":"IF(ISBLANK('Georgia 2011'!$D$70),\"\",'Georgia 2011'!$D$70)","v":"Yes"},{"$f":"IF(ISBLANK('Georgia 2011'!$D$71),\"\",'Georgia 2011'!$D$71)","v":"Yes"},{"$f":"IF(ISBLANK('Georgia 2011'!$D$72),\"\",'Georgia 2011'!$D$72)","v":"Yes"},{"$f":"IF(ISBLANK('Georgia 2011'!$D$73),\"\",'Georgia 2011'!$D$73)","v":"Yes"},{"$f":"IF(ISBLANK('Georgia 2011'!$D$74),\"\",'Georgia 2011'!$D$74)","v":"No"},{"$f":"IF(ISBLANK('Georgia 2011'!$D$75),\"\",'Georgia 2011'!$D$75)","v":"Yes"},{"$f":"IF(ISBLANK('Georgia 2011'!$D$76),\"\",'Georgia 2011'!$D$76)","v":"Yes"},{"$f":"IF(ISBLANK('Georgia 2011'!$D$77),\"\",'Georgia 2011'!$D$77)","v":""},null,{"$f":"IF(ISBLANK('Georgia 2011'!$F$66),\"\",'Georgia 2011'!$F$66)","v":"Yes"},{"$f":"IF(ISBLANK('Georgia 2011'!$F$67),\"\",'Georgia 2011'!$F$67)","v":"Yes"},{"$f":"IF(ISBLANK('Georgia 2011'!$F$68),\"\",'Georgia 2011'!$F$68)","v":"No"},{"$f":"IF(ISBLANK('Georgia 2011'!$F$69),\"\",'Georgia 2011'!$F$69)","v":"No"},{"$f":"IF(ISBLANK('Georgia 2011'!$F$70),\"\",'Georgia 2011'!$F$70)","v":"Yes"},{"$f":"IF(ISBLANK('Georgia 2011'!$F$71),\"\",'Georgia 2011'!$F$71)","v":"Yes"},{"$f":"IF(ISBLANK('Georgia 2011'!$F$72),\"\",'Georgia 2011'!$F$72)","v":"No"},{"$f":"IF(ISBLANK('Georgia 2011'!$F$73),\"\",'Georgia 2011'!$F$73)","v":"Yes"},{"$f":"IF(ISBLANK('Georgia 2011'!$F$74),\"\",'Georgia 2011'!$F$74)","v":"No"},{"$f":"IF(ISBLANK('Georgia 2011'!$F$75),\"\",'Georgia 2011'!$F$75)","v":"Yes"},{"$f":"IF(ISBLANK('Georgia 2011'!$F$76),\"\",'Georgia 2011'!$F$76)","v":"No"},{"$f":"IF(ISBLANK('Georgia 2011'!$F$77),\"\",'Georgia 2011'!$F$77)","v":""},null,{"$f":"IF(ISBLANK('Georgia 2011'!$G$66),\"\",'Georgia 2011'!$G$66)","v":"Yes"},{"$f":"IF(ISBLANK('Georgia 2011'!$G$67),\"\",'Georgia 2011'!$G$67)","v":"Yes"},{"$f":"IF(ISBLANK('Georgia 2011'!$G$68),\"\",'Georgia 2011'!$G$68)","v":"No"},{"$f":"IF(ISBLANK('Georgia 2011'!$G$69),\"\",'Georgia 2011'!$G$69)","v":"No"},{"$f":"IF(ISBLANK('Georgia 2011'!$G$70),\"\",'Georgia 2011'!$G$70)","v":"Yes"},{"$f":"IF(ISBLANK('Georgia 2011'!$G$71),\"\",'Georgia 2011'!$G$71)","v":"Yes"},{"$f":"IF(ISBLANK('Georgia 2011'!$G$72),\"\",'Georgia 2011'!$G$72)","v":"No"},{"$f":"IF(ISBLANK('Georgia 2011'!$G$73),\"\",'Georgia 2011'!$G$73)","v":"No"},{"$f":"IF(ISBLANK('Georgia 2011'!$G$74),\"\",'Georgia 2011'!$G$74)","v":"No"},{"$f":"IF(ISBLANK('Georgia 2011'!$G$75),\"\",'Georgia 2011'!$G$75)","v":"No"},{"$f":"IF(ISBLANK('Georgia 2011'!$G$76),\"\",'Georgia 2011'!$G$76)","v":"No"},{"$f":"IF(ISBLANK('Georgia 2011'!$G$77),\"\",'Georgia 2011'!$G$77)","v":""},null,{"$f":"IF(ISBLANK('Georgia 2011'!$H$66),\"\",'Georgia 2011'!$H$66)","v":"Yes"},{"$f":"IF(ISBLANK('Georgia 2011'!$H$67),\"\",'Georgia 2011'!$H$67)","v":"Yes"},{"$f":"IF(ISBLANK('Georgia 2011'!$H$68),\"\",'Georgia 2011'!$H$68)","v":"No"},{"$f":"IF(ISBLANK('Georgia 2011'!$H$69),\"\",'Georgia 2011'!$H$69)","v":"No"},{"$f":"IF(ISBLANK('Georgia 2011'!$H$70),\"\",'Georgia 2011'!$H$70)","v":"Yes"},{"$f":"IF(ISBLANK('Georgia 2011'!$H$71),\"\",'Georgia 2011'!$H$71)","v":"Yes"},{"$f":"IF(ISBLANK('Georgia 2011'!$H$72),\"\",'Georgia 2011'!$H$72)","v":"No"},{"$f":"IF(ISBLANK('Georgia 2011'!$H$73),\"\",'Georgia 2011'!$H$73)","v":"No"},{"$f":"IF(ISBLANK('Georgia 2011'!$H$74),\"\",'Georgia 2011'!$H$74)","v":"No"},{"$f":"IF(ISBLANK('Georgia 2011'!$H$75),\"\",'Georgia 2011'!$H$75)","v":"No"},{"$f":"IF(ISBLANK('Georgia 2011'!$H$76),\"\",'Georgia 2011'!$H$76)","v":"No"},{"$f":"IF(ISBLANK('Georgia 2011'!$H$77),\"\",'Georgia 2011'!$H$77)","v":""},{"$f":"IF(ISBLANK('Georgia 2011'!$D$78),\"\",'Georgia 2011'!$D$78)","v":"The NGO information about methods offered refers to HERA in Kutaisi."},null,{"$f":"IF(ISBLANK('Georgia 2011'!$H$80),\"\",'Georgia 2011'!$H$80)","v":"Yes"},{"$f":"IF(ISBLANK('Georgia 2011'!$C$83),\"\",'Georgia 2011'!$C$83)","v":"National Reproductive Health Strategy"},{"$f":"IF(ISBLANK('Georgia 2011'!$D$83),\"\",'Georgia 2011'!$D$83)","v":"2005-2015"},{"$f":"IF(ISBLANK('Georgia 2011'!$F$83),\"\",'Georgia 2011'!$F$83)","v":"Yes"},{"$f":"IF(ISBLANK('Georgia 2011'!$G$83),\"\",'Georgia 2011'!$G$83)","v":"Yes"},{"$f":"IF(ISBLANK('Georgia 2011'!$F$84),\"\",'Georgia 2011'!$F$84)","v":"Yes"},{"$f":"IF(ISBLANK('Georgia 2011'!$E$85),\"\",'Georgia 2011'!$E$85)","v":"1) If the commodity is humanitarian it is not subject to any taxation, and the documentation fee should not exceed 200 GEL. 2) If the commodity is commercial or social marketing (intended to be sold) it is subject to taxation. "},{"$f":"IF(ISBLANK('Georgia 2011'!$E$86),\"\",'Georgia 2011'!$E$86)","v":"Custom tax 18% of the total price, custom fee 60 EUR, and after sales revenue 10%."},{"$f":"IF(ISBLANK('Georgia 2011'!$H$87),\"\",'Georgia 2011'!$H$87)","v":"No"},{"$f":"IF(ISBLANK('Georgia 2011'!$D$88),\"\",'Georgia 2011'!$D$88)","v":"N/A"},{"$f":"IF(ISBLANK('Georgia 2011'!$H$89),\"\",'Georgia 2011'!$H$89)","v":"No"},{"$f":"IF(ISBLANK('Georgia 2011'!$D$90),\"\",'Georgia 2011'!$D$90)","v":"N/A"},{"$f":"IF(ISBLANK('Georgia 2011'!$H$91),\"\",'Georgia 2011'!$H$91)","v":"Yes"},{"$f":"IF(ISBLANK('Georgia 2011'!$C$94),\"\",'Georgia 2011'!$C$94)","v":"IUDs"},{"$f":"IF(ISBLANK('Georgia 2011'!$E$94),\"\",'Georgia 2011'!$E$94)","v":"Only Ob/Gyns and reproductologists can dispense."},{"$f":"IF(ISBLANK('Georgia 2011'!$G$94),\"\",'Georgia 2011'!$G$94)","v":"Only Ob/Gyns and reproductologists can dispense."},{"$f":"IF(ISBLANK('Georgia 2011'!$C$95),\"\",'Georgia 2011'!$C$95)","v":""},{"$f":"IF(ISBLANK('Georgia 2011'!$E$95),\"\",'Georgia 2011'!$E$95)","v":""},{"$f":"IF(ISBLANK('Georgia 2011'!$G$95),\"\",'Georgia 2011'!$G$95)","v":""},{"$f":"IF(ISBLANK('Georgia 2011'!$C$96),\"\",'Georgia 2011'!$C$96)","v":""},{"$f":"IF(ISBLANK('Georgia 2011'!$E$96),\"\",'Georgia 2011'!$E$96)","v":""},{"$f":"IF(ISBLANK('Georgia 2011'!$G$96),\"\",'Georgia 2011'!$G$96)","v":""},null,{"$f":"IF(ISBLANK('Georgia 2011'!$D$99),\"\",'Georgia 2011'!$D$99)","v":"No"},{"$f":"IF(ISBLANK('Georgia 2011'!$E$99),\"\",'Georgia 2011'!$E$99)","v":""},{"$f":"IF(ISBLANK('Georgia 2011'!$H$99),\"\",'Georgia 2011'!$H$99)","v":""},{"$f":"IF(ISBLANK('Georgia 2011'!$D$100),\"\",'Georgia 2011'!$D$100)","v":"No"},{"$f":"IF(ISBLANK('Georgia 2011'!$E$100),\"\",'Georgia 2011'!$E$100)","v":""},{"$f":"IF(ISBLANK('Georgia 2011'!$H$100),\"\",'Georgia 2011'!$H$100)","v":""},{"$f":"IF(ISBLANK('Georgia 2011'!$D$101),\"\",'Georgia 2011'!$D$101)","v":"No"},{"$f":"IF(ISBLANK('Georgia 2011'!$E$101),\"\",'Georgia 2011'!$E$101)","v":""},{"$f":"IF(ISBLANK('Georgia 2011'!$H$101),\"\",'Georgia 2011'!$H$101)","v":""},null,{"$f":"IF(ISBLANK('Georgia 2011'!$G$104),\"\",'Georgia 2011'!$G$104)","v":"Yes"},{"$f":"IF(ISBLANK('Georgia 2011'!$G$105),\"\",'Georgia 2011'!$G$105)","v":"Yes"},{"$f":"IF(ISBLANK('Georgia 2011'!$G$106),\"\",'Georgia 2011'!$G$106)","v":"Yes"},{"$f":"IF(ISBLANK('Georgia 2011'!$D$107),\"\",'Georgia 2011'!$D$107)","v":"There is a state insurance program for poor people. "},null,{"$f":"IF(ISBLANK('Georgia 2011'!$G$109),\"\",'Georgia 2011'!$G$109)","v":"No"},{"$f":"IF(ISBLANK('Georgia 2011'!$G$110),\"\",'Georgia 2011'!$G$110)","v":"No"},{"$f":"IF(ISBLANK('Georgia 2011'!$G$111),\"\",'Georgia 2011'!$G$111)","v":"No"},{"$f":"IF(ISBLANK('Georgia 2011'!$G$112),\"\",'Georgia 2011'!$G$112)","v":"No"},{"$f":"IF(ISBLANK('Georgia 2011'!$G$113),\"\",'Georgia 2011'!$G$113)","v":"No"},{"$f":"IF(ISBLANK('Georgia 2011'!$G$114),\"\",'Georgia 2011'!$G$114)","v":"No"},{"$f":"IF(ISBLANK('Georgia 2011'!$G$115),\"\",'Georgia 2011'!$G$115)","v":"No"},{"$f":"IF(ISBLANK('Georgia 2011'!$G$116),\"\",'Georgia 2011'!$G$116)","v":"No"},{"$f":"IF(ISBLANK('Georgia 2011'!$G$117),\"\",'Georgia 2011'!$G$117)","v":"No"},{"$f":"IF(ISBLANK('Georgia 2011'!$G$118),\"\",'Georgia 2011'!$G$118)","v":"No"},{"$f":"IF(ISBLANK('Georgia 2011'!$F$119),\"\",'Georgia 2011'!$F$119)","v":"N/A"},{"$f":"IF(ISBLANK('Georgia 2011'!$F$120),\"\",'Georgia 2011'!$F$120)","v":"N/A"},{"$f":"IF(ISBLANK('Georgia 2011'!$D$121),\"\",'Georgia 2011'!$D$121)","v":"N/A"},{"$f":"IF(ISBLANK('Georgia 2011'!$D$122),\"\",'Georgia 2011'!$D$122)","v":"No legally approved essential drug list exists at the national level, however most insurance companies have their own lists. These do not include contraceptives."},null,{"$f":"IF(ISBLANK('Georgia 2011'!$F$124),\"\",'Georgia 2011'!$F$124)","v":2003},{"$f":"IF(ISBLANK('Georgia 2011'!$G$125),\"\",'Georgia 2011'!$G$125)","v":"No"},{"$f":"IF(ISBLANK('Georgia 2011'!$G$126),\"\",'Georgia 2011'!$G$126)","v":"No"},{"$f":"IF(ISBLANK('Georgia 2011'!$G$127),\"\",'Georgia 2011'!$G$127)","v":"No"},{"$f":"IF(ISBLANK('Georgia 2011'!$G$128),\"\",'Georgia 2011'!$G$128)","v":"No"},{"$f":"IF(ISBLANK('Georgia 2011'!$D$129),\"\",'Georgia 2011'!$D$129)","v":""},null,{"$f":"IF(ISBLANK('Georgia 2011'!$G$131),\"\",'Georgia 2011'!$G$131)","v":"No"},null,{"$f":"IF(ISBLANK('Georgia 2011'!$G$133),\"\",'Georgia 2011'!$G$133)","v":"No"},{"$f":"IF(ISBLANK('Georgia 2011'!$G$134),\"\",'Georgia 2011'!$G$134)","v":"No"},{"$f":"IF(ISBLANK('Georgia 2011'!$G$135),\"\",'Georgia 2011'!$G$135)","v":"N/A"},{"$f":"IF(ISBLANK('Georgia 2011'!$G$136),\"\",'Georgia 2011'!$G$136)","v":"N/A"},{"$f":"IF(ISBLANK('Georgia 2011'!$G$137),\"\",'Georgia 2011'!$G$137)","v":"No"},{"$f":"IF(ISBLANK('Georgia 2011'!$G$138),\"\",'Georgia 2011'!$G$138)","v":"No"},{"$f":"IF(ISBLANK('Georgia 2011'!$G$139),\"\",'Georgia 2011'!$G$139)","v":"N/A"},{"$f":"IF(ISBLANK('Georgia 2011'!$G$140),\"\",'Georgia 2011'!$G$140)","v":"N/A"},{"$f":"IF(ISBLANK('Georgia 2011'!$G$141),\"\",'Georgia 2011'!$G$141)","v":"N/A"},{"$f":"IF(ISBLANK('Georgia 2011'!$F$142),\"\",'Georgia 2011'!$F$142)","v":"03/10-02/11"},{"$f":"IF(ISBLANK('Georgia 2011'!$F$143),\"\",'Georgia 2011'!$F$143)","v":"USAID SUSTAIN logistics management information system (LMIS) regarding the USAID SUSTAIN contraceptive store"},null,{"$f":"IF(ISBLANK('Georgia 2011'!$G$145),\"\",'Georgia 2011'!$G$145)","v":"No"},{"$f":"IF(ISBLANK('Georgia 2011'!$G$146),\"\",'Georgia 2011'!$G$146)","v":"No"},{"$f":"IF(ISBLANK('Georgia 2011'!$D$147),\"\",'Georgia 2011'!$D$147)","v":""},"Europe and Asia"]
["Ghana ",null,{"$f":"IF(ISBLANK('Ghana 2011'!$H$12),\"\",'Ghana 2011'!$H$12)","v":"Yes"},{"$f":"IF(ISBLANK('Ghana 2011'!$D$13),\"\",'Ghana 2011'!$D$13)","v":"Inter-Agency Coordinating Committee on Contraceptive Security (ICC/CS)"},null,{"$f":"IF(ISBLANK('Ghana 2011'!$D$15),\"\",'Ghana 2011'!$D$15)","v":"Yes"},{"$f":"IF(ISBLANK('Ghana 2011'!$F$15),\"\",'Ghana 2011'!$F$15)","v":"EXP Social Marketing (ESM), Ghana Social Marketing Foundation (GSMF) "},{"$f":"IF(ISBLANK('Ghana 2011'!$D$16),\"\",'Ghana 2011'!$D$16)","v":"Yes"},{"$f":"IF(ISBLANK('Ghana 2011'!$F$16),\"\",'Ghana 2011'!$F$16)","v":"Planned Parenthood Association of Ghana (PPAG), Marie Stopes International Ghana (MSIGh), Christian Health Association of Ghana (CHAG)"},{"$f":"IF(ISBLANK('Ghana 2011'!$D$17),\"\",'Ghana 2011'!$D$17)","v":"Yes"},{"$f":"IF(ISBLANK('Ghana 2011'!$F$17),\"\",'Ghana 2011'!$F$17)","v":"Ghana Registered Midwives Association, Ghana Registered Nurses Association, Society of Private Medical and Dental Practitioners, Pharmaceutical Society of Ghana"},{"$f":"IF(ISBLANK('Ghana 2011'!$D$18),\"\",'Ghana 2011'!$D$18)","v":"Yes"},{"$f":"IF(ISBLANK('Ghana 2011'!$F$18),\"\",'Ghana 2011'!$F$18)","v":"USAID, UNFPA, DANIDA, DFID"},{"$f":"IF(ISBLANK('Ghana 2011'!$D$19),\"\",'Ghana 2011'!$D$19)","v":"Yes"},{"$f":"IF(ISBLANK('Ghana 2011'!$F$19),\"\",'Ghana 2011'!$F$19)","v":"UNAIDS, UNFPA, WHO"},{"$f":"IF(ISBLANK('Ghana 2011'!$D$20),\"\",'Ghana 2011'!$D$20)","v":"Yes"},{"$f":"IF(ISBLANK('Ghana 2011'!$F$20),\"\",'Ghana 2011'!$F$20)","v":"Ministry of Health (Procurement and Supplies, Policy Planning, and Monitoring and Evaluation directorates, Food and Drugs Board agency), Ghana Health Services (GHS) (Stores, Supplies and Drug Management; Family Health Division [FHD]; Public Health Directorate; Pharmacy Unit)"},{"$f":"IF(ISBLANK('Ghana 2011'!$D$21),\"\",'Ghana 2011'!$D$21)","v":"Yes"},{"$f":"IF(ISBLANK('Ghana 2011'!$F$21),\"\",'Ghana 2011'!$F$21)","v":"Central Medical Store"},{"$f":"IF(ISBLANK('Ghana 2011'!$D$22),\"\",'Ghana 2011'!$D$22)","v":"Yes"},{"$f":"IF(ISBLANK('Ghana 2011'!$F$22),\"\",'Ghana 2011'!$F$22)","v":"Ministry of Finance and Economic Planning - health desk officer"},{"$f":"IF(ISBLANK('Ghana 2011'!$D$23),\"\",'Ghana 2011'!$D$23)","v":"Yes"},{"$f":"IF(ISBLANK('Ghana 2011'!$F$23),\"\",'Ghana 2011'!$F$23)","v":"Technical projects (USAID | DELIVER PROJECT, FOCUS REGION HEALTH PROJECT)"},{"$f":"IF(ISBLANK('Ghana 2011'!$H$24),\"\",'Ghana 2011'!$H$24)","v":"3-5 times"},{"$f":"IF(ISBLANK('Ghana 2011'!$H$25),\"\",'Ghana 2011'!$H$25)","v":"Yes"},{"$f":"IF(ISBLANK('Ghana 2011'!$D$26),\"\",'Ghana 2011'!$D$26)","v":"Yes"},{"$f":"IF(ISBLANK('Ghana 2011'!$F$26),\"\",'Ghana 2011'!$F$26)","v":"USAID, UNFPA, Family Health Division, USAID | DELIVER PROJECT"},{"$f":"IF(ISBLANK('Ghana 2011'!$H$26),\"\",'Ghana 2011'!$H$26)","v":"FP Advisors, Director of the FHD, FP Program manager at FHD and the Resident Logistics Advisor"},null,{"$f":"IF(ISBLANK('Ghana 2011'!$F$28),\"\",'Ghana 2011'!$F$28)","v":"January"},{"$f":"IF(ISBLANK('Ghana 2011'!$H$28),\"\",'Ghana 2011'!$H$28)","v":"December"},{"$f":"IF(ISBLANK('Ghana 2011'!$G$29),\"\",'Ghana 2011'!$G$29)","v":10357919},{"$f":"IF(ISBLANK('Ghana 2011'!$E$30),\"\",'Ghana 2011'!$E$30)","v":"03/11"},{"$f":"IF(ISBLANK('Ghana 2011'!$G$30),\"\",'Ghana 2011'!$G$30)","v":"USAID | DELIVER PROJECT with partners: GHS, MOH, PPAG, MSI, GSMF, ESM"},{"$f":"IF(ISBLANK('Ghana 2011'!$H$31),\"\",'Ghana 2011'!$H$31)","v":"Yes"},{"$f":"IF(ISBLANK('Ghana 2011'!$H$32),\"\",'Ghana 2011'!$H$32)","v":"Yes"},{"$f":"IF(ISBLANK('Ghana 2011'!$E$35),\"\",'Ghana 2011'!$E$35)","v":"$    1,000,000"},{"$f":"IF(ISBLANK('Ghana 2011'!$F$35),\"\",'Ghana 2011'!$F$35)","v":"01/10-12/10"},{"$f":"IF(ISBLANK('Ghana 2011'!$G$35),\"\",'Ghana 2011'!$G$35)","v":"Ministry of Health"},{"$f":"IF(ISBLANK('Ghana 2011'!$H$35),\"\",'Ghana 2011'!$H$35)","v":""},{"$f":"IF(ISBLANK('Ghana 2011'!$H$37),\"\",'Ghana 2011'!$H$37)","v":"Yes"},{"$f":"IF(ISBLANK('Ghana 2011'!$D$40),\"\",'Ghana 2011'!$D$40)","v":"Yes"},{"$f":"IF(ISBLANK('Ghana 2011'!$D$41),\"\",'Ghana 2011'!$D$41)","v":""},{"$f":"IF(ISBLANK('Ghana 2011'!$E$40),\"\",'Ghana 2011'!$E$40)","v":""},{"$f":"IF(ISBLANK('Ghana 2011'!$F$40),\"\",'Ghana 2011'!$F$40)","v":"01/10-12/10"},{"$f":"IF(ISBLANK('Ghana 2011'!$G$40),\"\",'Ghana 2011'!$G$40)","v":"Ministry of Health"},{"$f":"IF(ISBLANK('Ghana 2011'!$H$40),\"\",'Ghana 2011'!$H$40)","v":"The internally generated funds are part of the health sector support funds. We cannot disaggregate them."},{"$f":"IF(ISBLANK('Ghana 2011'!$D$42),\"\",'Ghana 2011'!$D$42)","v":"Yes"},{"$f":"IF(ISBLANK('Ghana 2011'!$D$43),\"\",'Ghana 2011'!$D$43)","v":"$800,000 from health sector support funds (including internally generated funds) and $437,550 from DANIDA. (The DANIDA funds were earmarked for condoms.)"},{"$f":"IF(ISBLANK('Ghana 2011'!$E$42),\"\",'Ghana 2011'!$E$42)","v":1237550},{"$f":"IF(ISBLANK('Ghana 2011'!$F$42),\"\",'Ghana 2011'!$F$42)","v":"01/10-12/10"},{"$f":"IF(ISBLANK('Ghana 2011'!$G$42),\"\",'Ghana 2011'!$G$42)","v":"Ministry of Health"},{"$f":"IF(ISBLANK('Ghana 2011'!$H$42),\"\",'Ghana 2011'!$H$42)","v":"This was originally planned for use in 2009, but release occurred in 2010. "},{"$f":"IF(ISBLANK('Ghana 2011'!$E$44),\"\",'Ghana 2011'!$E$44)","v":1237550},{"$f":"IF(ISBLANK('Ghana 2011'!$H$44),\"\",'Ghana 2011'!$H$44)","v":""},null,{"$f":"IF(ISBLANK('Ghana 2011'!$D$48),\"\",'Ghana 2011'!$D$48)","v":"Yes"},{"$f":"IF(ISBLANK('Ghana 2011'!$D$49),\"\",'Ghana 2011'!$D$49)","v":"USAID ($ 1,426,666), UNFPA ($901,224)"},{"$f":"IF(ISBLANK('Ghana 2011'!$E$48),\"\",'Ghana 2011'!$E$48)","v":2327890},{"$f":"IF(ISBLANK('Ghana 2011'!$F$48),\"\",'Ghana 2011'!$F$48)","v":"01/10-12/10"},{"$f":"IF(ISBLANK('Ghana 2011'!$G$48),\"\",'Ghana 2011'!$G$48)","v":"My Commodities, RHInterchange, GHS and CMS records"},{"$f":"IF(ISBLANK('Ghana 2011'!$H$48),\"\",'Ghana 2011'!$H$48)","v":""},{"$f":"IF(ISBLANK('Ghana 2011'!$D$50),\"\",'Ghana 2011'!$D$50)","v":"Yes"},{"$f":"IF(ISBLANK('Ghana 2011'!$E$50),\"\",'Ghana 2011'!$E$50)","v":1450000},{"$f":"IF(ISBLANK('Ghana 2011'!$F$50),\"\",'Ghana 2011'!$F$50)","v":"01/10-12/10"},{"$f":"IF(ISBLANK('Ghana 2011'!$G$50),\"\",'Ghana 2011'!$G$50)","v":"GHS records"},{"$f":"IF(ISBLANK('Ghana 2011'!$H$50),\"\",'Ghana 2011'!$H$50)","v":""},{"$f":"IF(ISBLANK('Ghana 2011'!$D$51),\"\",'Ghana 2011'!$D$51)","v":"No"},{"$f":"IF(ISBLANK('Ghana 2011'!$E$51),\"\",'Ghana 2011'!$E$51)","v":0},{"$f":"IF(ISBLANK('Ghana 2011'!$F$51),\"\",'Ghana 2011'!$F$51)","v":"01/10-12/10"},{"$f":"IF(ISBLANK('Ghana 2011'!$G$51),\"\",'Ghana 2011'!$G$51)","v":"GHS records"},{"$f":"IF(ISBLANK('Ghana 2011'!$H$51),\"\",'Ghana 2011'!$H$51)","v":""},{"$f":"IF(ISBLANK('Ghana 2011'!$E$52),\"\",'Ghana 2011'!$E$52)","v":3777890},{"$f":"IF(ISBLANK('Ghana 2011'!$H$52),\"\",'Ghana 2011'!$H$52)","v":""},{"$f":"IF(ISBLANK('Ghana 2011'!$F$55),\"\",'Ghana 2011'!$F$55)","v":0.24674804204616146},{"$f":"IF(ISBLANK('Ghana 2011'!$G$55),\"\",'Ghana 2011'!$G$55)","v":"GoG-allocated funds for 2010, although requested, were never received for contraceptive procurement due to other constraints facing the GoG. The funds that were released in 2010 had been planned to be used in 2009. \n"},{"$f":"IF(ISBLANK('Ghana 2011'!$F$56),\"\",'Ghana 2011'!$F$56)","v":0.48421309338294688},{"$f":"IF(ISBLANK('Ghana 2011'!$G$56),\"\",'Ghana 2011'!$G$56)","v":""},{"$f":"IF(ISBLANK('Ghana 2011'!$F$57),\"\",'Ghana 2011'!$F$57)","v":""},{"$f":"IF(ISBLANK('Ghana 2011'!$G$57),\"\",'Ghana 2011'!$G$57)","v":""},{"$f":"IF(ISBLANK('Ghana 2011'!$F$59),\"\",'Ghana 2011'!$F$59)","v":"The government and a third-party agent"},{"$f":"IF(ISBLANK('Ghana 2011'!$F$60),\"\",'Ghana 2011'!$F$60)","v":"UNFPA on behalf of the government (for the heath sector support funds), and MOH Procurement Unit, and Stores, Supplies, and Drug Management Directorate of GHS (for the DANIDA-funded procurement). (GHS is under MOH.)"},{"$f":"IF(ISBLANK('Ghana 2011'!$F$61),\"\",'Ghana 2011'!$F$61)","v":"No"},{"$f":"IF(ISBLANK('Ghana 2011'!$D$62),\"\",'Ghana 2011'!$D$62)","v":"Inadequate financing is a worrying issue and there is the need for more funding and greater commitment from the government."},null,null,{"$f":"IF(ISBLANK('Ghana 2011'!$D$66),\"\",'Ghana 2011'!$D$66)","v":"Yes"},{"$f":"IF(ISBLANK('Ghana 2011'!$D$67),\"\",'Ghana 2011'!$D$67)","v":"Yes"},{"$f":"IF(ISBLANK('Ghana 2011'!$D$68),\"\",'Ghana 2011'!$D$68)","v":"Yes"},{"$f":"IF(ISBLANK('Ghana 2011'!$D$69),\"\",'Ghana 2011'!$D$69)","v":"Yes"},{"$f":"IF(ISBLANK('Ghana 2011'!$D$70),\"\",'Ghana 2011'!$D$70)","v":"Yes"},{"$f":"IF(ISBLANK('Ghana 2011'!$D$71),\"\",'Ghana 2011'!$D$71)","v":"Yes"},{"$f":"IF(ISBLANK('Ghana 2011'!$D$72),\"\",'Ghana 2011'!$D$72)","v":"Yes"},{"$f":"IF(ISBLANK('Ghana 2011'!$D$73),\"\",'Ghana 2011'!$D$73)","v":"Yes"},{"$f":"IF(ISBLANK('Ghana 2011'!$D$74),\"\",'Ghana 2011'!$D$74)","v":"No"},{"$f":"IF(ISBLANK('Ghana 2011'!$D$75),\"\",'Ghana 2011'!$D$75)","v":"Yes"},{"$f":"IF(ISBLANK('Ghana 2011'!$D$76),\"\",'Ghana 2011'!$D$76)","v":"No"},{"$f":"IF(ISBLANK('Ghana 2011'!$D$77),\"\",'Ghana 2011'!$D$77)","v":""},null,{"$f":"IF(ISBLANK('Ghana 2011'!$F$66),\"\",'Ghana 2011'!$F$66)","v":"Yes"},{"$f":"IF(ISBLANK('Ghana 2011'!$F$67),\"\",'Ghana 2011'!$F$67)","v":"Yes"},{"$f":"IF(ISBLANK('Ghana 2011'!$F$68),\"\",'Ghana 2011'!$F$68)","v":"Yes"},{"$f":"IF(ISBLANK('Ghana 2011'!$F$69),\"\",'Ghana 2011'!$F$69)","v":"Yes"},{"$f":"IF(ISBLANK('Ghana 2011'!$F$70),\"\",'Ghana 2011'!$F$70)","v":"Yes"},{"$f":"IF(ISBLANK('Ghana 2011'!$F$71),\"\",'Ghana 2011'!$F$71)","v":"Yes"},{"$f":"IF(ISBLANK('Ghana 2011'!$F$72),\"\",'Ghana 2011'!$F$72)","v":"Yes"},{"$f":"IF(ISBLANK('Ghana 2011'!$F$73),\"\",'Ghana 2011'!$F$73)","v":"Yes"},{"$f":"IF(ISBLANK('Ghana 2011'!$F$74),\"\",'Ghana 2011'!$F$74)","v":"Yes"},{"$f":"IF(ISBLANK('Ghana 2011'!$F$75),\"\",'Ghana 2011'!$F$75)","v":"Yes"},{"$f":"IF(ISBLANK('Ghana 2011'!$F$76),\"\",'Ghana 2011'!$F$76)","v":"No"},{"$f":"IF(ISBLANK('Ghana 2011'!$F$77),\"\",'Ghana 2011'!$F$77)","v":""},null,{"$f":"IF(ISBLANK('Ghana 2011'!$G$66),\"\",'Ghana 2011'!$G$66)","v":"Yes"},{"$f":"IF(ISBLANK('Ghana 2011'!$G$67),\"\",'Ghana 2011'!$G$67)","v":"Yes"},{"$f":"IF(ISBLANK('Ghana 2011'!$G$68),\"\",'Ghana 2011'!$G$68)","v":"Yes"},{"$f":"IF(ISBLANK('Ghana 2011'!$G$69),\"\",'Ghana 2011'!$G$69)","v":"Yes"},{"$f":"IF(ISBLANK('Ghana 2011'!$G$70),\"\",'Ghana 2011'!$G$70)","v":"Yes"},{"$f":"IF(ISBLANK('Ghana 2011'!$G$71),\"\",'Ghana 2011'!$G$71)","v":"Yes"},{"$f":"IF(ISBLANK('Ghana 2011'!$G$72),\"\",'Ghana 2011'!$G$72)","v":"Yes"},{"$f":"IF(ISBLANK('Ghana 2011'!$G$73),\"\",'Ghana 2011'!$G$73)","v":"Yes"},{"$f":"IF(ISBLANK('Ghana 2011'!$G$74),\"\",'Ghana 2011'!$G$74)","v":"Yes"},{"$f":"IF(ISBLANK('Ghana 2011'!$G$75),\"\",'Ghana 2011'!$G$75)","v":"Yes"},{"$f":"IF(ISBLANK('Ghana 2011'!$G$76),\"\",'Ghana 2011'!$G$76)","v":"No"},{"$f":"IF(ISBLANK('Ghana 2011'!$G$77),\"\",'Ghana 2011'!$G$77)","v":""},null,{"$f":"IF(ISBLANK('Ghana 2011'!$H$66),\"\",'Ghana 2011'!$H$66)","v":"Yes"},{"$f":"IF(ISBLANK('Ghana 2011'!$H$67),\"\",'Ghana 2011'!$H$67)","v":"Yes"},{"$f":"IF(ISBLANK('Ghana 2011'!$H$68),\"\",'Ghana 2011'!$H$68)","v":"Yes"},{"$f":"IF(ISBLANK('Ghana 2011'!$H$69),\"\",'Ghana 2011'!$H$69)","v":"No"},{"$f":"IF(ISBLANK('Ghana 2011'!$H$70),\"\",'Ghana 2011'!$H$70)","v":"No"},{"$f":"IF(ISBLANK('Ghana 2011'!$H$71),\"\",'Ghana 2011'!$H$71)","v":"Yes"},{"$f":"IF(ISBLANK('Ghana 2011'!$H$72),\"\",'Ghana 2011'!$H$72)","v":"Yes"},{"$f":"IF(ISBLANK('Ghana 2011'!$H$73),\"\",'Ghana 2011'!$H$73)","v":"Yes"},{"$f":"IF(ISBLANK('Ghana 2011'!$H$74),\"\",'Ghana 2011'!$H$74)","v":"No"},{"$f":"IF(ISBLANK('Ghana 2011'!$H$75),\"\",'Ghana 2011'!$H$75)","v":"No"},{"$f":"IF(ISBLANK('Ghana 2011'!$H$76),\"\",'Ghana 2011'!$H$76)","v":"No"},{"$f":"IF(ISBLANK('Ghana 2011'!$H$77),\"\",'Ghana 2011'!$H$77)","v":""},{"$f":"IF(ISBLANK('Ghana 2011'!$D$78),\"\",'Ghana 2011'!$D$78)","v":""},null,{"$f":"IF(ISBLANK('Ghana 2011'!$H$80),\"\",'Ghana 2011'!$H$80)","v":"Yes"},{"$f":"IF(ISBLANK('Ghana 2011'!$C$83),\"\",'Ghana 2011'!$C$83)","v":"Ghana National Contraceptive Security Strategy"},{"$f":"IF(ISBLANK('Ghana 2011'!$D$83),\"\",'Ghana 2011'!$D$83)","v":"2011 - 2016 "},{"$f":"IF(ISBLANK('Ghana 2011'!$F$83),\"\",'Ghana 2011'!$F$83)","v":"Yes"},{"$f":"IF(ISBLANK('Ghana 2011'!$G$83),\"\",'Ghana 2011'!$G$83)","v":"Yes"},{"$f":"IF(ISBLANK('Ghana 2011'!$F$84),\"\",'Ghana 2011'!$F$84)","v":"Yes"},{"$f":"IF(ISBLANK('Ghana 2011'!$E$85),\"\",'Ghana 2011'!$E$85)","v":"All sectors"},{"$f":"IF(ISBLANK('Ghana 2011'!$E$86),\"\",'Ghana 2011'!$E$86)","v":"On average, 2% of the cost of commodities procured"},{"$f":"IF(ISBLANK('Ghana 2011'!$H$87),\"\",'Ghana 2011'!$H$87)","v":"Yes"},{"$f":"IF(ISBLANK('Ghana 2011'!$D$88),\"\",'Ghana 2011'!$D$88)","v":"Contraceptives, despite being subsidized, attract handling charges, reducing the overall budget available to the MOH for contraceptive procurement. "},{"$f":"IF(ISBLANK('Ghana 2011'!$H$89),\"\",'Ghana 2011'!$H$89)","v":"Yes"},{"$f":"IF(ISBLANK('Ghana 2011'!$D$90),\"\",'Ghana 2011'!$D$90)","v":"The inclusion of all contraceptives on the Essential Medicines List raises their profile, informs about their use and availability, and gives confidence to prescribers and providers in the private sector as well to use them. It can also assist with advocacy for resources and support from donors. The registration policies enacted by the Food and Drug Board permit contraceptive registration and sale by brand."},{"$f":"IF(ISBLANK('Ghana 2011'!$H$91),\"\",'Ghana 2011'!$H$91)","v":"Yes"},{"$f":"IF(ISBLANK('Ghana 2011'!$C$94),\"\",'Ghana 2011'!$C$94)","v":"Injectables"},{"$f":"IF(ISBLANK('Ghana 2011'!$E$94),\"\",'Ghana 2011'!$E$94)","v":"Community-based distributors restricted."},{"$f":"IF(ISBLANK('Ghana 2011'!$G$94),\"\",'Ghana 2011'!$G$94)","v":""},{"$f":"IF(ISBLANK('Ghana 2011'!$C$95),\"\",'Ghana 2011'!$C$95)","v":"Implants and IUDs"},{"$f":"IF(ISBLANK('Ghana 2011'!$E$95),\"\",'Ghana 2011'!$E$95)","v":"Service delivery restricted to health personnel with appropriate training"},{"$f":"IF(ISBLANK('Ghana 2011'!$G$95),\"\",'Ghana 2011'!$G$95)","v":"Service delivery restricted to health personnel with appropriate training."},{"$f":"IF(ISBLANK('Ghana 2011'!$C$96),\"\",'Ghana 2011'!$C$96)","v":""},{"$f":"IF(ISBLANK('Ghana 2011'!$E$96),\"\",'Ghana 2011'!$E$96)","v":""},{"$f":"IF(ISBLANK('Ghana 2011'!$G$96),\"\",'Ghana 2011'!$G$96)","v":""},null,{"$f":"IF(ISBLANK('Ghana 2011'!$D$99),\"\",'Ghana 2011'!$D$99)","v":"No"},{"$f":"IF(ISBLANK('Ghana 2011'!$E$99),\"\",'Ghana 2011'!$E$99)","v":""},{"$f":"IF(ISBLANK('Ghana 2011'!$H$99),\"\",'Ghana 2011'!$H$99)","v":""},{"$f":"IF(ISBLANK('Ghana 2011'!$D$100),\"\",'Ghana 2011'!$D$100)","v":"No"},{"$f":"IF(ISBLANK('Ghana 2011'!$E$100),\"\",'Ghana 2011'!$E$100)","v":""},{"$f":"IF(ISBLANK('Ghana 2011'!$H$100),\"\",'Ghana 2011'!$H$100)","v":""},{"$f":"IF(ISBLANK('Ghana 2011'!$D$101),\"\",'Ghana 2011'!$D$101)","v":"No"},{"$f":"IF(ISBLANK('Ghana 2011'!$E$101),\"\",'Ghana 2011'!$E$101)","v":""},{"$f":"IF(ISBLANK('Ghana 2011'!$H$101),\"\",'Ghana 2011'!$H$101)","v":""},null,{"$f":"IF(ISBLANK('Ghana 2011'!$G$104),\"\",'Ghana 2011'!$G$104)","v":"Yes"},{"$f":"IF(ISBLANK('Ghana 2011'!$G$105),\"\",'Ghana 2011'!$G$105)","v":"Yes"},{"$f":"IF(ISBLANK('Ghana 2011'!$G$106),\"\",'Ghana 2011'!$G$106)","v":"Yes"},{"$f":"IF(ISBLANK('Ghana 2011'!$D$107),\"\",'Ghana 2011'!$D$107)","v":"Exemptions may be applied on an individual, case-by-case basis and are available for those who need them.\n"},null,{"$f":"IF(ISBLANK('Ghana 2011'!$G$109),\"\",'Ghana 2011'!$G$109)","v":"Yes"},{"$f":"IF(ISBLANK('Ghana 2011'!$G$110),\"\",'Ghana 2011'!$G$110)","v":"Yes"},{"$f":"IF(ISBLANK('Ghana 2011'!$G$111),\"\",'Ghana 2011'!$G$111)","v":"Yes"},{"$f":"IF(ISBLANK('Ghana 2011'!$G$112),\"\",'Ghana 2011'!$G$112)","v":"Yes"},{"$f":"IF(ISBLANK('Ghana 2011'!$G$113),\"\",'Ghana 2011'!$G$113)","v":"Yes"},{"$f":"IF(ISBLANK('Ghana 2011'!$G$114),\"\",'Ghana 2011'!$G$114)","v":"Yes"},{"$f":"IF(ISBLANK('Ghana 2011'!$G$115),\"\",'Ghana 2011'!$G$115)","v":"Yes"},{"$f":"IF(ISBLANK('Ghana 2011'!$G$116),\"\",'Ghana 2011'!$G$116)","v":"Yes"},{"$f":"IF(ISBLANK('Ghana 2011'!$G$117),\"\",'Ghana 2011'!$G$117)","v":"No"},{"$f":"IF(ISBLANK('Ghana 2011'!$G$118),\"\",'Ghana 2011'!$G$118)","v":"No"},{"$f":"IF(ISBLANK('Ghana 2011'!$F$119),\"\",'Ghana 2011'!$F$119)","v":"N/A"},{"$f":"IF(ISBLANK('Ghana 2011'!$F$120),\"\",'Ghana 2011'!$F$120)","v":2010},{"$f":"IF(ISBLANK('Ghana 2011'!$D$121),\"\",'Ghana 2011'!$D$121)","v":"Ghana Essential Medicines List"},{"$f":"IF(ISBLANK('Ghana 2011'!$D$122),\"\",'Ghana 2011'!$D$122)","v":""},null,{"$f":"IF(ISBLANK('Ghana 2011'!$F$124),\"\",'Ghana 2011'!$F$124)","v":2005},{"$f":"IF(ISBLANK('Ghana 2011'!$G$125),\"\",'Ghana 2011'!$G$125)","v":"Yes"},{"$f":"IF(ISBLANK('Ghana 2011'!$G$126),\"\",'Ghana 2011'!$G$126)","v":"No"},{"$f":"IF(ISBLANK('Ghana 2011'!$G$127),\"\",'Ghana 2011'!$G$127)","v":"No"},{"$f":"IF(ISBLANK('Ghana 2011'!$G$128),\"\",'Ghana 2011'!$G$128)","v":"No"},{"$f":"IF(ISBLANK('Ghana 2011'!$D$129),\"\",'Ghana 2011'!$D$129)","v":""},null,{"$f":"IF(ISBLANK('Ghana 2011'!$G$131),\"\",'Ghana 2011'!$G$131)","v":"Yes"},null,{"$f":"IF(ISBLANK('Ghana 2011'!$G$133),\"\",'Ghana 2011'!$G$133)","v":"No"},{"$f":"IF(ISBLANK('Ghana 2011'!$G$134),\"\",'Ghana 2011'!$G$134)","v":"Yes"},{"$f":"IF(ISBLANK('Ghana 2011'!$G$135),\"\",'Ghana 2011'!$G$135)","v":"Yes"},{"$f":"IF(ISBLANK('Ghana 2011'!$G$136),\"\",'Ghana 2011'!$G$136)","v":"No"},{"$f":"IF(ISBLANK('Ghana 2011'!$G$137),\"\",'Ghana 2011'!$G$137)","v":"Yes"},{"$f":"IF(ISBLANK('Ghana 2011'!$G$138),\"\",'Ghana 2011'!$G$138)","v":"No"},{"$f":"IF(ISBLANK('Ghana 2011'!$G$139),\"\",'Ghana 2011'!$G$139)","v":"No"},{"$f":"IF(ISBLANK('Ghana 2011'!$G$140),\"\",'Ghana 2011'!$G$140)","v":"No"},{"$f":"IF(ISBLANK('Ghana 2011'!$G$141),\"\",'Ghana 2011'!$G$141)","v":"N/A"},{"$f":"IF(ISBLANK('Ghana 2011'!$F$142),\"\",'Ghana 2011'!$F$142)","v":"01/10-12/10"},{"$f":"IF(ISBLANK('Ghana 2011'!$F$143),\"\",'Ghana 2011'!$F$143)","v":"Procurement Planning and Monitoring Report (PPMR), Central Medical Store stock reports"},null,{"$f":"IF(ISBLANK('Ghana 2011'!$G$145),\"\",'Ghana 2011'!$G$145)","v":"Yes"},{"$f":"IF(ISBLANK('Ghana 2011'!$G$146),\"\",'Ghana 2011'!$G$146)","v":"Yes"},{"$f":"IF(ISBLANK('Ghana 2011'!$D$147),\"\",'Ghana 2011'!$D$147)","v":"Challenges include coordination issues (especially among programs for condom procurement and distribution), challenges due to inadequate financing, and challenges of poor logistics management across the country."},"Africa"]
["Guatemala ",null,{"$f":"IF(ISBLANK('Guatemala 2011'!$H$12),\"\",'Guatemala 2011'!$H$12)","v":"Yes"},{"$f":"IF(ISBLANK('Guatemala 2011'!$D$13),\"\",'Guatemala 2011'!$D$13)","v":"Comision Nacional para el Aseguramiento de Anticonceptivos (CNAA) (National Contraceptive Security Committee)"},null,{"$f":"IF(ISBLANK('Guatemala 2011'!$D$15),\"\",'Guatemala 2011'!$D$15)","v":"No"},{"$f":"IF(ISBLANK('Guatemala 2011'!$F$15),\"\",'Guatemala 2011'!$F$15)","v":""},{"$f":"IF(ISBLANK('Guatemala 2011'!$D$16),\"\",'Guatemala 2011'!$D$16)","v":"Yes"},{"$f":"IF(ISBLANK('Guatemala 2011'!$F$16),\"\",'Guatemala 2011'!$F$16)","v":"APROFAM (Asociación Pro Bienestar de La Familia - Association for the Well-Being of the Family)\n"},{"$f":"IF(ISBLANK('Guatemala 2011'!$D$17),\"\",'Guatemala 2011'!$D$17)","v":"No"},{"$f":"IF(ISBLANK('Guatemala 2011'!$F$17),\"\",'Guatemala 2011'!$F$17)","v":""},{"$f":"IF(ISBLANK('Guatemala 2011'!$D$18),\"\",'Guatemala 2011'!$D$18)","v":"Yes"},{"$f":"IF(ISBLANK('Guatemala 2011'!$F$18),\"\",'Guatemala 2011'!$F$18)","v":"USAID and UNFPA are invited to participate although they are not official members of the CNAA"},{"$f":"IF(ISBLANK('Guatemala 2011'!$D$19),\"\",'Guatemala 2011'!$D$19)","v":"Yes"},{"$f":"IF(ISBLANK('Guatemala 2011'!$F$19),\"\",'Guatemala 2011'!$F$19)","v":"UNFPA is invited to participate at the meetings, although it is not an official member of the CNAA. UNFPA handles procurement on behalf of the MOH"},{"$f":"IF(ISBLANK('Guatemala 2011'!$D$20),\"\",'Guatemala 2011'!$D$20)","v":"Yes"},{"$f":"IF(ISBLANK('Guatemala 2011'!$F$20),\"\",'Guatemala 2011'!$F$20)","v":"The MOH members of the CNAA include the director of the National Reproductive Health Program, the family planning advisor, and the logistics advisor"},{"$f":"IF(ISBLANK('Guatemala 2011'!$D$21),\"\",'Guatemala 2011'!$D$21)","v":"Yes"},{"$f":"IF(ISBLANK('Guatemala 2011'!$F$21),\"\",'Guatemala 2011'!$F$21)","v":"The logistics unit is an active member of the CNAA"},{"$f":"IF(ISBLANK('Guatemala 2011'!$D$22),\"\",'Guatemala 2011'!$D$22)","v":"Yes"},{"$f":"IF(ISBLANK('Guatemala 2011'!$F$22),\"\",'Guatemala 2011'!$F$22)","v":""},{"$f":"IF(ISBLANK('Guatemala 2011'!$D$23),\"\",'Guatemala 2011'!$D$23)","v":"Yes"},{"$f":"IF(ISBLANK('Guatemala 2011'!$F$23),\"\",'Guatemala 2011'!$F$23)","v":"As per the current CNAA Internal Dispositions (Aug 2010) the following organizations attend the CNAA meetings regularly (in the role of technical experts/advisors, they do not have a vote; they are not officially part of the CNAA): PASMO (social marketing), USAID-Health Care Initiative project (HCI), USAID International Reproductive Health/Georgetown University Fertility Awareness Methods Project (IRH/FAM), Health Policy Initiative (USAID/HPI), UNFPA "},{"$f":"IF(ISBLANK('Guatemala 2011'!$H$24),\"\",'Guatemala 2011'!$H$24)","v":"Don't know"},{"$f":"IF(ISBLANK('Guatemala 2011'!$H$25),\"\",'Guatemala 2011'!$H$25)","v":"Yes"},{"$f":"IF(ISBLANK('Guatemala 2011'!$D$26),\"\",'Guatemala 2011'!$D$26)","v":"Yes"},{"$f":"IF(ISBLANK('Guatemala 2011'!$F$26),\"\",'Guatemala 2011'!$F$26)","v":"Ministry of Health"},{"$f":"IF(ISBLANK('Guatemala 2011'!$H$26),\"\",'Guatemala 2011'!$H$26)","v":"Family Planning Advisor"},null,{"$f":"IF(ISBLANK('Guatemala 2011'!$F$28),\"\",'Guatemala 2011'!$F$28)","v":"January"},{"$f":"IF(ISBLANK('Guatemala 2011'!$H$28),\"\",'Guatemala 2011'!$H$28)","v":"December"},{"$f":"IF(ISBLANK('Guatemala 2011'!$G$29),\"\",'Guatemala 2011'!$G$29)","v":1500000},{"$f":"IF(ISBLANK('Guatemala 2011'!$E$30),\"\",'Guatemala 2011'!$E$30)","v":"11/10"},{"$f":"IF(ISBLANK('Guatemala 2011'!$G$30),\"\",'Guatemala 2011'!$G$30)","v":"Logistics Advisor from the National Reproductive Health Program"},{"$f":"IF(ISBLANK('Guatemala 2011'!$H$31),\"\",'Guatemala 2011'!$H$31)","v":"Yes"},{"$f":"IF(ISBLANK('Guatemala 2011'!$H$32),\"\",'Guatemala 2011'!$H$32)","v":"Yes"},{"$f":"IF(ISBLANK('Guatemala 2011'!$E$35),\"\",'Guatemala 2011'!$E$35)","v":1500000},{"$f":"IF(ISBLANK('Guatemala 2011'!$F$35),\"\",'Guatemala 2011'!$F$35)","v":"01/10-12/10"},{"$f":"IF(ISBLANK('Guatemala 2011'!$G$35),\"\",'Guatemala 2011'!$G$35)","v":"Ministry records"},{"$f":"IF(ISBLANK('Guatemala 2011'!$H$35),\"\",'Guatemala 2011'!$H$35)","v":"Procurement handled through UNFPA"},{"$f":"IF(ISBLANK('Guatemala 2011'!$H$37),\"\",'Guatemala 2011'!$H$37)","v":"Yes"},{"$f":"IF(ISBLANK('Guatemala 2011'!$D$40),\"\",'Guatemala 2011'!$D$40)","v":"Yes"},{"$f":"IF(ISBLANK('Guatemala 2011'!$D$41),\"\",'Guatemala 2011'!$D$41)","v":"Taxes on alcoholic beverages"},{"$f":"IF(ISBLANK('Guatemala 2011'!$E$40),\"\",'Guatemala 2011'!$E$40)","v":1500000},{"$f":"IF(ISBLANK('Guatemala 2011'!$F$40),\"\",'Guatemala 2011'!$F$40)","v":"01/10-12/10"},{"$f":"IF(ISBLANK('Guatemala 2011'!$G$40),\"\",'Guatemala 2011'!$G$40)","v":"PipeLine"},{"$f":"IF(ISBLANK('Guatemala 2011'!$H$40),\"\",'Guatemala 2011'!$H$40)","v":""},{"$f":"IF(ISBLANK('Guatemala 2011'!$D$42),\"\",'Guatemala 2011'!$D$42)","v":"No"},{"$f":"IF(ISBLANK('Guatemala 2011'!$D$43),\"\",'Guatemala 2011'!$D$43)","v":"N/A"},{"$f":"IF(ISBLANK('Guatemala 2011'!$E$42),\"\",'Guatemala 2011'!$E$42)","v":0},{"$f":"IF(ISBLANK('Guatemala 2011'!$F$42),\"\",'Guatemala 2011'!$F$42)","v":"01/10-12/10"},{"$f":"IF(ISBLANK('Guatemala 2011'!$G$42),\"\",'Guatemala 2011'!$G$42)","v":""},{"$f":"IF(ISBLANK('Guatemala 2011'!$H$42),\"\",'Guatemala 2011'!$H$42)","v":""},{"$f":"IF(ISBLANK('Guatemala 2011'!$E$44),\"\",'Guatemala 2011'!$E$44)","v":1500000},{"$f":"IF(ISBLANK('Guatemala 2011'!$H$44),\"\",'Guatemala 2011'!$H$44)","v":""},null,{"$f":"IF(ISBLANK('Guatemala 2011'!$D$48),\"\",'Guatemala 2011'!$D$48)","v":"No"},{"$f":"IF(ISBLANK('Guatemala 2011'!$D$49),\"\",'Guatemala 2011'!$D$49)","v":"N/A"},{"$f":"IF(ISBLANK('Guatemala 2011'!$E$48),\"\",'Guatemala 2011'!$E$48)","v":0},{"$f":"IF(ISBLANK('Guatemala 2011'!$F$48),\"\",'Guatemala 2011'!$F$48)","v":"01/10-12/10"},{"$f":"IF(ISBLANK('Guatemala 2011'!$G$48),\"\",'Guatemala 2011'!$G$48)","v":""},{"$f":"IF(ISBLANK('Guatemala 2011'!$H$48),\"\",'Guatemala 2011'!$H$48)","v":""},{"$f":"IF(ISBLANK('Guatemala 2011'!$D$50),\"\",'Guatemala 2011'!$D$50)","v":"No"},{"$f":"IF(ISBLANK('Guatemala 2011'!$E$50),\"\",'Guatemala 2011'!$E$50)","v":0},{"$f":"IF(ISBLANK('Guatemala 2011'!$F$50),\"\",'Guatemala 2011'!$F$50)","v":"01/10-12/10"},{"$f":"IF(ISBLANK('Guatemala 2011'!$G$50),\"\",'Guatemala 2011'!$G$50)","v":""},{"$f":"IF(ISBLANK('Guatemala 2011'!$H$50),\"\",'Guatemala 2011'!$H$50)","v":""},{"$f":"IF(ISBLANK('Guatemala 2011'!$D$51),\"\",'Guatemala 2011'!$D$51)","v":"No"},{"$f":"IF(ISBLANK('Guatemala 2011'!$E$51),\"\",'Guatemala 2011'!$E$51)","v":0},{"$f":"IF(ISBLANK('Guatemala 2011'!$F$51),\"\",'Guatemala 2011'!$F$51)","v":"01/10-12/10"},{"$f":"IF(ISBLANK('Guatemala 2011'!$G$51),\"\",'Guatemala 2011'!$G$51)","v":""},{"$f":"IF(ISBLANK('Guatemala 2011'!$H$51),\"\",'Guatemala 2011'!$H$51)","v":""},{"$f":"IF(ISBLANK('Guatemala 2011'!$E$52),\"\",'Guatemala 2011'!$E$52)","v":0},{"$f":"IF(ISBLANK('Guatemala 2011'!$H$52),\"\",'Guatemala 2011'!$H$52)","v":""},{"$f":"IF(ISBLANK('Guatemala 2011'!$F$55),\"\",'Guatemala 2011'!$F$55)","v":1},{"$f":"IF(ISBLANK('Guatemala 2011'!$G$55),\"\",'Guatemala 2011'!$G$55)","v":""},{"$f":"IF(ISBLANK('Guatemala 2011'!$F$56),\"\",'Guatemala 2011'!$F$56)","v":1},{"$f":"IF(ISBLANK('Guatemala 2011'!$G$56),\"\",'Guatemala 2011'!$G$56)","v":"100% ($1.5 million dollars)"},{"$f":"IF(ISBLANK('Guatemala 2011'!$F$57),\"\",'Guatemala 2011'!$F$57)","v":"No"},{"$f":"IF(ISBLANK('Guatemala 2011'!$G$57),\"\",'Guatemala 2011'!$G$57)","v":""},{"$f":"IF(ISBLANK('Guatemala 2011'!$F$59),\"\",'Guatemala 2011'!$F$59)","v":"Third-party agent (e.g., UNFPA, Crown Agents)"},{"$f":"IF(ISBLANK('Guatemala 2011'!$F$60),\"\",'Guatemala 2011'!$F$60)","v":"UNFPA"},{"$f":"IF(ISBLANK('Guatemala 2011'!$F$61),\"\",'Guatemala 2011'!$F$61)","v":"No"},{"$f":"IF(ISBLANK('Guatemala 2011'!$D$62),\"\",'Guatemala 2011'!$D$62)","v":"MOH procures contraceptives by using UNFPA as a procurement agent through a co-financing agreement. The MOH coordinates the procurement via the UNFPA office in Guatemala, who then procures through their global procurement system from UNFPA Copenhagen. "},null,null,{"$f":"IF(ISBLANK('Guatemala 2011'!$D$66),\"\",'Guatemala 2011'!$D$66)","v":"Yes"},{"$f":"IF(ISBLANK('Guatemala 2011'!$D$67),\"\",'Guatemala 2011'!$D$67)","v":"Yes"},{"$f":"IF(ISBLANK('Guatemala 2011'!$D$68),\"\",'Guatemala 2011'!$D$68)","v":"Yes"},{"$f":"IF(ISBLANK('Guatemala 2011'!$D$69),\"\",'Guatemala 2011'!$D$69)","v":"Yes"},{"$f":"IF(ISBLANK('Guatemala 2011'!$D$70),\"\",'Guatemala 2011'!$D$70)","v":"Yes"},{"$f":"IF(ISBLANK('Guatemala 2011'!$D$71),\"\",'Guatemala 2011'!$D$71)","v":"Yes"},{"$f":"IF(ISBLANK('Guatemala 2011'!$D$72),\"\",'Guatemala 2011'!$D$72)","v":"No"},{"$f":"IF(ISBLANK('Guatemala 2011'!$D$73),\"\",'Guatemala 2011'!$D$73)","v":"Yes"},{"$f":"IF(ISBLANK('Guatemala 2011'!$D$74),\"\",'Guatemala 2011'!$D$74)","v":"Yes"},{"$f":"IF(ISBLANK('Guatemala 2011'!$D$75),\"\",'Guatemala 2011'!$D$75)","v":"Yes"},{"$f":"IF(ISBLANK('Guatemala 2011'!$D$76),\"\",'Guatemala 2011'!$D$76)","v":"No"},{"$f":"IF(ISBLANK('Guatemala 2011'!$D$77),\"\",'Guatemala 2011'!$D$77)","v":""},null,{"$f":"IF(ISBLANK('Guatemala 2011'!$F$66),\"\",'Guatemala 2011'!$F$66)","v":"Yes"},{"$f":"IF(ISBLANK('Guatemala 2011'!$F$67),\"\",'Guatemala 2011'!$F$67)","v":"No"},{"$f":"IF(ISBLANK('Guatemala 2011'!$F$68),\"\",'Guatemala 2011'!$F$68)","v":"Yes"},{"$f":"IF(ISBLANK('Guatemala 2011'!$F$69),\"\",'Guatemala 2011'!$F$69)","v":"Yes"},{"$f":"IF(ISBLANK('Guatemala 2011'!$F$70),\"\",'Guatemala 2011'!$F$70)","v":"Yes"},{"$f":"IF(ISBLANK('Guatemala 2011'!$F$71),\"\",'Guatemala 2011'!$F$71)","v":"Yes"},{"$f":"IF(ISBLANK('Guatemala 2011'!$F$72),\"\",'Guatemala 2011'!$F$72)","v":"No"},{"$f":"IF(ISBLANK('Guatemala 2011'!$F$73),\"\",'Guatemala 2011'!$F$73)","v":"No"},{"$f":"IF(ISBLANK('Guatemala 2011'!$F$74),\"\",'Guatemala 2011'!$F$74)","v":"Yes"},{"$f":"IF(ISBLANK('Guatemala 2011'!$F$75),\"\",'Guatemala 2011'!$F$75)","v":"Yes"},{"$f":"IF(ISBLANK('Guatemala 2011'!$F$76),\"\",'Guatemala 2011'!$F$76)","v":"Yes"},{"$f":"IF(ISBLANK('Guatemala 2011'!$F$77),\"\",'Guatemala 2011'!$F$77)","v":""},null,{"$f":"IF(ISBLANK('Guatemala 2011'!$G$66),\"\",'Guatemala 2011'!$G$66)","v":"Yes"},{"$f":"IF(ISBLANK('Guatemala 2011'!$G$67),\"\",'Guatemala 2011'!$G$67)","v":"Yes"},{"$f":"IF(ISBLANK('Guatemala 2011'!$G$68),\"\",'Guatemala 2011'!$G$68)","v":"Yes"},{"$f":"IF(ISBLANK('Guatemala 2011'!$G$69),\"\",'Guatemala 2011'!$G$69)","v":"Yes"},{"$f":"IF(ISBLANK('Guatemala 2011'!$G$70),\"\",'Guatemala 2011'!$G$70)","v":"Yes"},{"$f":"IF(ISBLANK('Guatemala 2011'!$G$71),\"\",'Guatemala 2011'!$G$71)","v":"Yes"},{"$f":"IF(ISBLANK('Guatemala 2011'!$G$72),\"\",'Guatemala 2011'!$G$72)","v":"Yes"},{"$f":"IF(ISBLANK('Guatemala 2011'!$G$73),\"\",'Guatemala 2011'!$G$73)","v":"No"},{"$f":"IF(ISBLANK('Guatemala 2011'!$G$74),\"\",'Guatemala 2011'!$G$74)","v":"Yes"},{"$f":"IF(ISBLANK('Guatemala 2011'!$G$75),\"\",'Guatemala 2011'!$G$75)","v":"Yes"},{"$f":"IF(ISBLANK('Guatemala 2011'!$G$76),\"\",'Guatemala 2011'!$G$76)","v":"Yes"},{"$f":"IF(ISBLANK('Guatemala 2011'!$G$77),\"\",'Guatemala 2011'!$G$77)","v":""},null,{"$f":"IF(ISBLANK('Guatemala 2011'!$H$66),\"\",'Guatemala 2011'!$H$66)","v":"Yes"},{"$f":"IF(ISBLANK('Guatemala 2011'!$H$67),\"\",'Guatemala 2011'!$H$67)","v":"No"},{"$f":"IF(ISBLANK('Guatemala 2011'!$H$68),\"\",'Guatemala 2011'!$H$68)","v":"Yes"},{"$f":"IF(ISBLANK('Guatemala 2011'!$H$69),\"\",'Guatemala 2011'!$H$69)","v":"Yes"},{"$f":"IF(ISBLANK('Guatemala 2011'!$H$70),\"\",'Guatemala 2011'!$H$70)","v":"Yes"},{"$f":"IF(ISBLANK('Guatemala 2011'!$H$71),\"\",'Guatemala 2011'!$H$71)","v":"Yes"},{"$f":"IF(ISBLANK('Guatemala 2011'!$H$72),\"\",'Guatemala 2011'!$H$72)","v":"No"},{"$f":"IF(ISBLANK('Guatemala 2011'!$H$73),\"\",'Guatemala 2011'!$H$73)","v":"No"},{"$f":"IF(ISBLANK('Guatemala 2011'!$H$74),\"\",'Guatemala 2011'!$H$74)","v":"Yes"},{"$f":"IF(ISBLANK('Guatemala 2011'!$H$75),\"\",'Guatemala 2011'!$H$75)","v":"Yes"},{"$f":"IF(ISBLANK('Guatemala 2011'!$H$76),\"\",'Guatemala 2011'!$H$76)","v":"Yes"},{"$f":"IF(ISBLANK('Guatemala 2011'!$H$77),\"\",'Guatemala 2011'!$H$77)","v":""},{"$f":"IF(ISBLANK('Guatemala 2011'!$D$78),\"\",'Guatemala 2011'!$D$78)","v":"A nominal amount of emergency contraceptive pills are available in the public sector through a UNFPA donation (USD $751, Source: RHInterchange). The MOH has included CycleBeads in the list but so far they have not yet purchased them (the ones they have were a donation from USAID/IRH/FAM)."},null,{"$f":"IF(ISBLANK('Guatemala 2011'!$H$80),\"\",'Guatemala 2011'!$H$80)","v":"Yes"},{"$f":"IF(ISBLANK('Guatemala 2011'!$C$83),\"\",'Guatemala 2011'!$C$83)","v":"Contraceptive Security"},{"$f":"IF(ISBLANK('Guatemala 2011'!$D$83),\"\",'Guatemala 2011'!$D$83)","v":"2001 - 2011"},{"$f":"IF(ISBLANK('Guatemala 2011'!$F$83),\"\",'Guatemala 2011'!$F$83)","v":"Yes"},{"$f":"IF(ISBLANK('Guatemala 2011'!$G$83),\"\",'Guatemala 2011'!$G$83)","v":"Yes"},{"$f":"IF(ISBLANK('Guatemala 2011'!$F$84),\"\",'Guatemala 2011'!$F$84)","v":"Yes"},{"$f":"IF(ISBLANK('Guatemala 2011'!$E$85),\"\",'Guatemala 2011'!$E$85)","v":"The public sector is exempt from import taxes via the UNFPA franchise. The public sector has to pay: transport, insurance, and customs clearance fees. Others (NGOs, social marketing, and commercial) pay import taxes."},{"$f":"IF(ISBLANK('Guatemala 2011'!$E$86),\"\",'Guatemala 2011'!$E$86)","v":"Don't know"},{"$f":"IF(ISBLANK('Guatemala 2011'!$H$87),\"\",'Guatemala 2011'!$H$87)","v":"No"},{"$f":"IF(ISBLANK('Guatemala 2011'!$D$88),\"\",'Guatemala 2011'!$D$88)","v":"N/A"},{"$f":"IF(ISBLANK('Guatemala 2011'!$H$89),\"\",'Guatemala 2011'!$H$89)","v":"No"},{"$f":"IF(ISBLANK('Guatemala 2011'!$D$90),\"\",'Guatemala 2011'!$D$90)","v":"N/A"},{"$f":"IF(ISBLANK('Guatemala 2011'!$H$91),\"\",'Guatemala 2011'!$H$91)","v":"No"},{"$f":"IF(ISBLANK('Guatemala 2011'!$C$94),\"\",'Guatemala 2011'!$C$94)","v":""},{"$f":"IF(ISBLANK('Guatemala 2011'!$E$94),\"\",'Guatemala 2011'!$E$94)","v":""},{"$f":"IF(ISBLANK('Guatemala 2011'!$G$94),\"\",'Guatemala 2011'!$G$94)","v":""},{"$f":"IF(ISBLANK('Guatemala 2011'!$C$95),\"\",'Guatemala 2011'!$C$95)","v":""},{"$f":"IF(ISBLANK('Guatemala 2011'!$E$95),\"\",'Guatemala 2011'!$E$95)","v":""},{"$f":"IF(ISBLANK('Guatemala 2011'!$G$95),\"\",'Guatemala 2011'!$G$95)","v":""},{"$f":"IF(ISBLANK('Guatemala 2011'!$C$96),\"\",'Guatemala 2011'!$C$96)","v":""},{"$f":"IF(ISBLANK('Guatemala 2011'!$E$96),\"\",'Guatemala 2011'!$E$96)","v":""},{"$f":"IF(ISBLANK('Guatemala 2011'!$G$96),\"\",'Guatemala 2011'!$G$96)","v":""},null,{"$f":"IF(ISBLANK('Guatemala 2011'!$D$99),\"\",'Guatemala 2011'!$D$99)","v":"No"},{"$f":"IF(ISBLANK('Guatemala 2011'!$E$99),\"\",'Guatemala 2011'!$E$99)","v":""},{"$f":"IF(ISBLANK('Guatemala 2011'!$H$99),\"\",'Guatemala 2011'!$H$99)","v":""},{"$f":"IF(ISBLANK('Guatemala 2011'!$D$100),\"\",'Guatemala 2011'!$D$100)","v":"No"},{"$f":"IF(ISBLANK('Guatemala 2011'!$E$100),\"\",'Guatemala 2011'!$E$100)","v":""},{"$f":"IF(ISBLANK('Guatemala 2011'!$H$100),\"\",'Guatemala 2011'!$H$100)","v":""},{"$f":"IF(ISBLANK('Guatemala 2011'!$D$101),\"\",'Guatemala 2011'!$D$101)","v":"No"},{"$f":"IF(ISBLANK('Guatemala 2011'!$E$101),\"\",'Guatemala 2011'!$E$101)","v":""},{"$f":"IF(ISBLANK('Guatemala 2011'!$H$101),\"\",'Guatemala 2011'!$H$101)","v":""},null,{"$f":"IF(ISBLANK('Guatemala 2011'!$G$104),\"\",'Guatemala 2011'!$G$104)","v":"No"},{"$f":"IF(ISBLANK('Guatemala 2011'!$G$105),\"\",'Guatemala 2011'!$G$105)","v":"No"},{"$f":"IF(ISBLANK('Guatemala 2011'!$G$106),\"\",'Guatemala 2011'!$G$106)","v":"N/A"},{"$f":"IF(ISBLANK('Guatemala 2011'!$D$107),\"\",'Guatemala 2011'!$D$107)","v":"N/A"},null,{"$f":"IF(ISBLANK('Guatemala 2011'!$G$109),\"\",'Guatemala 2011'!$G$109)","v":"Yes"},{"$f":"IF(ISBLANK('Guatemala 2011'!$G$110),\"\",'Guatemala 2011'!$G$110)","v":"Yes"},{"$f":"IF(ISBLANK('Guatemala 2011'!$G$111),\"\",'Guatemala 2011'!$G$111)","v":"Yes"},{"$f":"IF(ISBLANK('Guatemala 2011'!$G$112),\"\",'Guatemala 2011'!$G$112)","v":"Yes"},{"$f":"IF(ISBLANK('Guatemala 2011'!$G$113),\"\",'Guatemala 2011'!$G$113)","v":"Yes"},{"$f":"IF(ISBLANK('Guatemala 2011'!$G$114),\"\",'Guatemala 2011'!$G$114)","v":"Yes"},{"$f":"IF(ISBLANK('Guatemala 2011'!$G$115),\"\",'Guatemala 2011'!$G$115)","v":"No"},{"$f":"IF(ISBLANK('Guatemala 2011'!$G$116),\"\",'Guatemala 2011'!$G$116)","v":"No"},{"$f":"IF(ISBLANK('Guatemala 2011'!$G$117),\"\",'Guatemala 2011'!$G$117)","v":"Yes"},{"$f":"IF(ISBLANK('Guatemala 2011'!$G$118),\"\",'Guatemala 2011'!$G$118)","v":"Don't know"},{"$f":"IF(ISBLANK('Guatemala 2011'!$F$119),\"\",'Guatemala 2011'!$F$119)","v":"Don't know"},{"$f":"IF(ISBLANK('Guatemala 2011'!$F$120),\"\",'Guatemala 2011'!$F$120)","v":2011},{"$f":"IF(ISBLANK('Guatemala 2011'!$D$121),\"\",'Guatemala 2011'!$D$121)","v":"Basic List of Medications of Health Areas and Hospitals and also Health Care Guidelines (1st and 2nd level)"},{"$f":"IF(ISBLANK('Guatemala 2011'!$D$122),\"\",'Guatemala 2011'!$D$122)","v":""},null,{"$f":"IF(ISBLANK('Guatemala 2011'!$F$124),\"\",'Guatemala 2011'!$F$124)","v":"N/A"},{"$f":"IF(ISBLANK('Guatemala 2011'!$G$125),\"\",'Guatemala 2011'!$G$125)","v":"N/A"},{"$f":"IF(ISBLANK('Guatemala 2011'!$G$126),\"\",'Guatemala 2011'!$G$126)","v":"N/A"},{"$f":"IF(ISBLANK('Guatemala 2011'!$G$127),\"\",'Guatemala 2011'!$G$127)","v":"N/A"},{"$f":"IF(ISBLANK('Guatemala 2011'!$G$128),\"\",'Guatemala 2011'!$G$128)","v":"N/A"},{"$f":"IF(ISBLANK('Guatemala 2011'!$D$129),\"\",'Guatemala 2011'!$D$129)","v":"Document not available on IMF's website"},null,{"$f":"IF(ISBLANK('Guatemala 2011'!$G$131),\"\",'Guatemala 2011'!$G$131)","v":"No"},null,{"$f":"IF(ISBLANK('Guatemala 2011'!$G$133),\"\",'Guatemala 2011'!$G$133)","v":"No"},{"$f":"IF(ISBLANK('Guatemala 2011'!$G$134),\"\",'Guatemala 2011'!$G$134)","v":"N/A"},{"$f":"IF(ISBLANK('Guatemala 2011'!$G$135),\"\",'Guatemala 2011'!$G$135)","v":"No"},{"$f":"IF(ISBLANK('Guatemala 2011'!$G$136),\"\",'Guatemala 2011'!$G$136)","v":"No"},{"$f":"IF(ISBLANK('Guatemala 2011'!$G$137),\"\",'Guatemala 2011'!$G$137)","v":"No"},{"$f":"IF(ISBLANK('Guatemala 2011'!$G$138),\"\",'Guatemala 2011'!$G$138)","v":"No"},{"$f":"IF(ISBLANK('Guatemala 2011'!$G$139),\"\",'Guatemala 2011'!$G$139)","v":"N/A"},{"$f":"IF(ISBLANK('Guatemala 2011'!$G$140),\"\",'Guatemala 2011'!$G$140)","v":"N/A"},{"$f":"IF(ISBLANK('Guatemala 2011'!$G$141),\"\",'Guatemala 2011'!$G$141)","v":"N/A"},{"$f":"IF(ISBLANK('Guatemala 2011'!$F$142),\"\",'Guatemala 2011'!$F$142)","v":"08/10-12/10"},{"$f":"IF(ISBLANK('Guatemala 2011'!$F$143),\"\",'Guatemala 2011'!$F$143)","v":"MOH National Reproductive Health Program (Central Warehouse Inventory)"},null,{"$f":"IF(ISBLANK('Guatemala 2011'!$G$145),\"\",'Guatemala 2011'!$G$145)","v":"No"},{"$f":"IF(ISBLANK('Guatemala 2011'!$G$146),\"\",'Guatemala 2011'!$G$146)","v":"No"},{"$f":"IF(ISBLANK('Guatemala 2011'!$D$147),\"\",'Guatemala 2011'!$D$147)","v":""},"LAC"]
["Haiti ",null,{"$f":"IF(ISBLANK('Haiti 2011'!$H$12),\"\",'Haiti 2011'!$H$12)","v":"Yes"},{"$f":"IF(ISBLANK('Haiti 2011'!$D$13),\"\",'Haiti 2011'!$D$13)","v":"Comité Technique en Santé de la Reproduction (Reproductive Health Technical Committee)"},null,{"$f":"IF(ISBLANK('Haiti 2011'!$D$15),\"\",'Haiti 2011'!$D$15)","v":"Yes"},{"$f":"IF(ISBLANK('Haiti 2011'!$F$15),\"\",'Haiti 2011'!$F$15)","v":"PSI"},{"$f":"IF(ISBLANK('Haiti 2011'!$D$16),\"\",'Haiti 2011'!$D$16)","v":"Yes"},{"$f":"IF(ISBLANK('Haiti 2011'!$F$16),\"\",'Haiti 2011'!$F$16)","v":"Management Sciences for Health (MSH), Jhpiego, PROFAMIL (IPPF affiliate), Foundation for Reproductive Health and Family Education (FOSREF)"},{"$f":"IF(ISBLANK('Haiti 2011'!$D$17),\"\",'Haiti 2011'!$D$17)","v":"No"},{"$f":"IF(ISBLANK('Haiti 2011'!$F$17),\"\",'Haiti 2011'!$F$17)","v":""},{"$f":"IF(ISBLANK('Haiti 2011'!$D$18),\"\",'Haiti 2011'!$D$18)","v":"Yes"},{"$f":"IF(ISBLANK('Haiti 2011'!$F$18),\"\",'Haiti 2011'!$F$18)","v":"USAID"},{"$f":"IF(ISBLANK('Haiti 2011'!$D$19),\"\",'Haiti 2011'!$D$19)","v":"Yes"},{"$f":"IF(ISBLANK('Haiti 2011'!$F$19),\"\",'Haiti 2011'!$F$19)","v":"UNFPA, UNICEF"},{"$f":"IF(ISBLANK('Haiti 2011'!$D$20),\"\",'Haiti 2011'!$D$20)","v":"Yes"},{"$f":"IF(ISBLANK('Haiti 2011'!$F$20),\"\",'Haiti 2011'!$F$20)","v":"Directorate of Family Health"},{"$f":"IF(ISBLANK('Haiti 2011'!$D$21),\"\",'Haiti 2011'!$D$21)","v":"No"},{"$f":"IF(ISBLANK('Haiti 2011'!$F$21),\"\",'Haiti 2011'!$F$21)","v":""},{"$f":"IF(ISBLANK('Haiti 2011'!$D$22),\"\",'Haiti 2011'!$D$22)","v":"No"},{"$f":"IF(ISBLANK('Haiti 2011'!$F$22),\"\",'Haiti 2011'!$F$22)","v":""},{"$f":"IF(ISBLANK('Haiti 2011'!$D$23),\"\",'Haiti 2011'!$D$23)","v":"No"},{"$f":"IF(ISBLANK('Haiti 2011'!$F$23),\"\",'Haiti 2011'!$F$23)","v":""},{"$f":"IF(ISBLANK('Haiti 2011'!$H$24),\"\",'Haiti 2011'!$H$24)","v":"3-5 times"},{"$f":"IF(ISBLANK('Haiti 2011'!$H$25),\"\",'Haiti 2011'!$H$25)","v":"Yes"},{"$f":"IF(ISBLANK('Haiti 2011'!$D$26),\"\",'Haiti 2011'!$D$26)","v":"Yes"},{"$f":"IF(ISBLANK('Haiti 2011'!$F$26),\"\",'Haiti 2011'!$F$26)","v":"Directorate of Family Health"},{"$f":"IF(ISBLANK('Haiti 2011'!$H$26),\"\",'Haiti 2011'!$H$26)","v":"Contraceptive & Commodities Point of Contact"},null,{"$f":"IF(ISBLANK('Haiti 2011'!$F$28),\"\",'Haiti 2011'!$F$28)","v":"October"},{"$f":"IF(ISBLANK('Haiti 2011'!$H$28),\"\",'Haiti 2011'!$H$28)","v":"September"},{"$f":"IF(ISBLANK('Haiti 2011'!$G$29),\"\",'Haiti 2011'!$G$29)","v":2198963},{"$f":"IF(ISBLANK('Haiti 2011'!$E$30),\"\",'Haiti 2011'!$E$30)","v":"12/10"},{"$f":"IF(ISBLANK('Haiti 2011'!$G$30),\"\",'Haiti 2011'!$G$30)","v":"Ministry of Public Health"},{"$f":"IF(ISBLANK('Haiti 2011'!$H$31),\"\",'Haiti 2011'!$H$31)","v":"No"},{"$f":"IF(ISBLANK('Haiti 2011'!$H$32),\"\",'Haiti 2011'!$H$32)","v":"No"},{"$f":"IF(ISBLANK('Haiti 2011'!$E$35),\"\",'Haiti 2011'!$E$35)","v":0},{"$f":"IF(ISBLANK('Haiti 2011'!$F$35),\"\",'Haiti 2011'!$F$35)","v":"01/10-12/10"},{"$f":"IF(ISBLANK('Haiti 2011'!$G$35),\"\",'Haiti 2011'!$G$35)","v":""},{"$f":"IF(ISBLANK('Haiti 2011'!$H$35),\"\",'Haiti 2011'!$H$35)","v":""},{"$f":"IF(ISBLANK('Haiti 2011'!$H$37),\"\",'Haiti 2011'!$H$37)","v":"No"},{"$f":"IF(ISBLANK('Haiti 2011'!$D$40),\"\",'Haiti 2011'!$D$40)","v":"No"},{"$f":"IF(ISBLANK('Haiti 2011'!$D$41),\"\",'Haiti 2011'!$D$41)","v":"N/A"},{"$f":"IF(ISBLANK('Haiti 2011'!$E$40),\"\",'Haiti 2011'!$E$40)","v":0},{"$f":"IF(ISBLANK('Haiti 2011'!$F$40),\"\",'Haiti 2011'!$F$40)","v":"01/10-12/10"},{"$f":"IF(ISBLANK('Haiti 2011'!$G$40),\"\",'Haiti 2011'!$G$40)","v":""},{"$f":"IF(ISBLANK('Haiti 2011'!$H$40),\"\",'Haiti 2011'!$H$40)","v":""},{"$f":"IF(ISBLANK('Haiti 2011'!$D$42),\"\",'Haiti 2011'!$D$42)","v":"No"},{"$f":"IF(ISBLANK('Haiti 2011'!$D$43),\"\",'Haiti 2011'!$D$43)","v":"N/A"},{"$f":"IF(ISBLANK('Haiti 2011'!$E$42),\"\",'Haiti 2011'!$E$42)","v":0},{"$f":"IF(ISBLANK('Haiti 2011'!$F$42),\"\",'Haiti 2011'!$F$42)","v":"01/10-12/10"},{"$f":"IF(ISBLANK('Haiti 2011'!$G$42),\"\",'Haiti 2011'!$G$42)","v":""},{"$f":"IF(ISBLANK('Haiti 2011'!$H$42),\"\",'Haiti 2011'!$H$42)","v":""},{"$f":"IF(ISBLANK('Haiti 2011'!$E$44),\"\",'Haiti 2011'!$E$44)","v":0},{"$f":"IF(ISBLANK('Haiti 2011'!$H$44),\"\",'Haiti 2011'!$H$44)","v":""},null,{"$f":"IF(ISBLANK('Haiti 2011'!$D$48),\"\",'Haiti 2011'!$D$48)","v":"Yes"},{"$f":"IF(ISBLANK('Haiti 2011'!$D$49),\"\",'Haiti 2011'!$D$49)","v":"USAID and UNFPA"},{"$f":"IF(ISBLANK('Haiti 2011'!$E$48),\"\",'Haiti 2011'!$E$48)","v":2198962.9},{"$f":"IF(ISBLANK('Haiti 2011'!$F$48),\"\",'Haiti 2011'!$F$48)","v":"01/10-12/10"},{"$f":"IF(ISBLANK('Haiti 2011'!$G$48),\"\",'Haiti 2011'!$G$48)","v":"UNFPA Logistics Coordinator and USAID Commodity Manager"},{"$f":"IF(ISBLANK('Haiti 2011'!$H$48),\"\",'Haiti 2011'!$H$48)","v":"These procurements are done on a calendar year basis, as opposed to the fiscal year."},{"$f":"IF(ISBLANK('Haiti 2011'!$D$50),\"\",'Haiti 2011'!$D$50)","v":"No"},{"$f":"IF(ISBLANK('Haiti 2011'!$E$50),\"\",'Haiti 2011'!$E$50)","v":0},{"$f":"IF(ISBLANK('Haiti 2011'!$F$50),\"\",'Haiti 2011'!$F$50)","v":"01/10-12/10"},{"$f":"IF(ISBLANK('Haiti 2011'!$G$50),\"\",'Haiti 2011'!$G$50)","v":""},{"$f":"IF(ISBLANK('Haiti 2011'!$H$50),\"\",'Haiti 2011'!$H$50)","v":""},{"$f":"IF(ISBLANK('Haiti 2011'!$D$51),\"\",'Haiti 2011'!$D$51)","v":"No"},{"$f":"IF(ISBLANK('Haiti 2011'!$E$51),\"\",'Haiti 2011'!$E$51)","v":0},{"$f":"IF(ISBLANK('Haiti 2011'!$F$51),\"\",'Haiti 2011'!$F$51)","v":"01/10-12/10"},{"$f":"IF(ISBLANK('Haiti 2011'!$G$51),\"\",'Haiti 2011'!$G$51)","v":""},{"$f":"IF(ISBLANK('Haiti 2011'!$H$51),\"\",'Haiti 2011'!$H$51)","v":""},{"$f":"IF(ISBLANK('Haiti 2011'!$E$52),\"\",'Haiti 2011'!$E$52)","v":2198962.9},{"$f":"IF(ISBLANK('Haiti 2011'!$H$52),\"\",'Haiti 2011'!$H$52)","v":""},{"$f":"IF(ISBLANK('Haiti 2011'!$F$55),\"\",'Haiti 2011'!$F$55)","v":0},{"$f":"IF(ISBLANK('Haiti 2011'!$G$55),\"\",'Haiti 2011'!$G$55)","v":""},{"$f":"IF(ISBLANK('Haiti 2011'!$F$56),\"\",'Haiti 2011'!$F$56)","v":0.9999999545240188},{"$f":"IF(ISBLANK('Haiti 2011'!$G$56),\"\",'Haiti 2011'!$G$56)","v":""},{"$f":"IF(ISBLANK('Haiti 2011'!$F$57),\"\",'Haiti 2011'!$F$57)","v":"No"},{"$f":"IF(ISBLANK('Haiti 2011'!$G$57),\"\",'Haiti 2011'!$G$57)","v":""},{"$f":"IF(ISBLANK('Haiti 2011'!$F$59),\"\",'Haiti 2011'!$F$59)","v":"N/A"},{"$f":"IF(ISBLANK('Haiti 2011'!$F$60),\"\",'Haiti 2011'!$F$60)","v":"N/A"},{"$f":"IF(ISBLANK('Haiti 2011'!$F$61),\"\",'Haiti 2011'!$F$61)","v":"N/A"},{"$f":"IF(ISBLANK('Haiti 2011'!$D$62),\"\",'Haiti 2011'!$D$62)","v":""},null,null,{"$f":"IF(ISBLANK('Haiti 2011'!$D$66),\"\",'Haiti 2011'!$D$66)","v":"Yes"},{"$f":"IF(ISBLANK('Haiti 2011'!$D$67),\"\",'Haiti 2011'!$D$67)","v":"Yes"},{"$f":"IF(ISBLANK('Haiti 2011'!$D$68),\"\",'Haiti 2011'!$D$68)","v":"Yes"},{"$f":"IF(ISBLANK('Haiti 2011'!$D$69),\"\",'Haiti 2011'!$D$69)","v":"Yes"},{"$f":"IF(ISBLANK('Haiti 2011'!$D$70),\"\",'Haiti 2011'!$D$70)","v":"Yes"},{"$f":"IF(ISBLANK('Haiti 2011'!$D$71),\"\",'Haiti 2011'!$D$71)","v":"Yes"},{"$f":"IF(ISBLANK('Haiti 2011'!$D$72),\"\",'Haiti 2011'!$D$72)","v":"Yes"},{"$f":"IF(ISBLANK('Haiti 2011'!$D$73),\"\",'Haiti 2011'!$D$73)","v":"No"},{"$f":"IF(ISBLANK('Haiti 2011'!$D$74),\"\",'Haiti 2011'!$D$74)","v":"Yes"},{"$f":"IF(ISBLANK('Haiti 2011'!$D$75),\"\",'Haiti 2011'!$D$75)","v":"Yes"},{"$f":"IF(ISBLANK('Haiti 2011'!$D$76),\"\",'Haiti 2011'!$D$76)","v":"No"},{"$f":"IF(ISBLANK('Haiti 2011'!$D$77),\"\",'Haiti 2011'!$D$77)","v":""},null,{"$f":"IF(ISBLANK('Haiti 2011'!$F$66),\"\",'Haiti 2011'!$F$66)","v":"Yes"},{"$f":"IF(ISBLANK('Haiti 2011'!$F$67),\"\",'Haiti 2011'!$F$67)","v":"Yes"},{"$f":"IF(ISBLANK('Haiti 2011'!$F$68),\"\",'Haiti 2011'!$F$68)","v":"Yes"},{"$f":"IF(ISBLANK('Haiti 2011'!$F$69),\"\",'Haiti 2011'!$F$69)","v":"Yes"},{"$f":"IF(ISBLANK('Haiti 2011'!$F$70),\"\",'Haiti 2011'!$F$70)","v":"Yes"},{"$f":"IF(ISBLANK('Haiti 2011'!$F$71),\"\",'Haiti 2011'!$F$71)","v":"Yes"},{"$f":"IF(ISBLANK('Haiti 2011'!$F$72),\"\",'Haiti 2011'!$F$72)","v":"Yes"},{"$f":"IF(ISBLANK('Haiti 2011'!$F$73),\"\",'Haiti 2011'!$F$73)","v":"No"},{"$f":"IF(ISBLANK('Haiti 2011'!$F$74),\"\",'Haiti 2011'!$F$74)","v":"Yes"},{"$f":"IF(ISBLANK('Haiti 2011'!$F$75),\"\",'Haiti 2011'!$F$75)","v":"Yes"},{"$f":"IF(ISBLANK('Haiti 2011'!$F$76),\"\",'Haiti 2011'!$F$76)","v":"Yes"},{"$f":"IF(ISBLANK('Haiti 2011'!$F$77),\"\",'Haiti 2011'!$F$77)","v":""},null,{"$f":"IF(ISBLANK('Haiti 2011'!$G$66),\"\",'Haiti 2011'!$G$66)","v":"Yes"},{"$f":"IF(ISBLANK('Haiti 2011'!$G$67),\"\",'Haiti 2011'!$G$67)","v":"Yes"},{"$f":"IF(ISBLANK('Haiti 2011'!$G$68),\"\",'Haiti 2011'!$G$68)","v":"Yes"},{"$f":"IF(ISBLANK('Haiti 2011'!$G$69),\"\",'Haiti 2011'!$G$69)","v":"Yes"},{"$f":"IF(ISBLANK('Haiti 2011'!$G$70),\"\",'Haiti 2011'!$G$70)","v":"Yes"},{"$f":"IF(ISBLANK('Haiti 2011'!$G$71),\"\",'Haiti 2011'!$G$71)","v":"Yes"},{"$f":"IF(ISBLANK('Haiti 2011'!$G$72),\"\",'Haiti 2011'!$G$72)","v":"Yes"},{"$f":"IF(ISBLANK('Haiti 2011'!$G$73),\"\",'Haiti 2011'!$G$73)","v":"Yes"},{"$f":"IF(ISBLANK('Haiti 2011'!$G$74),\"\",'Haiti 2011'!$G$74)","v":"Yes"},{"$f":"IF(ISBLANK('Haiti 2011'!$G$75),\"\",'Haiti 2011'!$G$75)","v":"Yes"},{"$f":"IF(ISBLANK('Haiti 2011'!$G$76),\"\",'Haiti 2011'!$G$76)","v":"Yes"},{"$f":"IF(ISBLANK('Haiti 2011'!$G$77),\"\",'Haiti 2011'!$G$77)","v":""},null,{"$f":"IF(ISBLANK('Haiti 2011'!$H$66),\"\",'Haiti 2011'!$H$66)","v":"Yes"},{"$f":"IF(ISBLANK('Haiti 2011'!$H$67),\"\",'Haiti 2011'!$H$67)","v":"No"},{"$f":"IF(ISBLANK('Haiti 2011'!$H$68),\"\",'Haiti 2011'!$H$68)","v":"Yes"},{"$f":"IF(ISBLANK('Haiti 2011'!$H$69),\"\",'Haiti 2011'!$H$69)","v":"No"},{"$f":"IF(ISBLANK('Haiti 2011'!$H$70),\"\",'Haiti 2011'!$H$70)","v":"No"},{"$f":"IF(ISBLANK('Haiti 2011'!$H$71),\"\",'Haiti 2011'!$H$71)","v":"Yes"},{"$f":"IF(ISBLANK('Haiti 2011'!$H$72),\"\",'Haiti 2011'!$H$72)","v":"Yes"},{"$f":"IF(ISBLANK('Haiti 2011'!$H$73),\"\",'Haiti 2011'!$H$73)","v":"No"},{"$f":"IF(ISBLANK('Haiti 2011'!$H$74),\"\",'Haiti 2011'!$H$74)","v":"No"},{"$f":"IF(ISBLANK('Haiti 2011'!$H$75),\"\",'Haiti 2011'!$H$75)","v":"No"},{"$f":"IF(ISBLANK('Haiti 2011'!$H$76),\"\",'Haiti 2011'!$H$76)","v":"No"},{"$f":"IF(ISBLANK('Haiti 2011'!$H$77),\"\",'Haiti 2011'!$H$77)","v":""},{"$f":"IF(ISBLANK('Haiti 2011'!$D$78),\"\",'Haiti 2011'!$D$78)","v":"Emergency contraceptives are part of the MoH norms and have been introduced by one NGO which is very active in FP. (They are pretty much the only NGO to offer the actual EC pill.) \n"},null,{"$f":"IF(ISBLANK('Haiti 2011'!$H$80),\"\",'Haiti 2011'!$H$80)","v":"Yes"},{"$f":"IF(ISBLANK('Haiti 2011'!$C$83),\"\",'Haiti 2011'!$C$83)","v":"Plan d'Action de la Direction de la Santé de la Famille (Action Plan for Family Health Management)"},{"$f":"IF(ISBLANK('Haiti 2011'!$D$83),\"\",'Haiti 2011'!$D$83)","v":1},{"$f":"IF(ISBLANK('Haiti 2011'!$F$83),\"\",'Haiti 2011'!$F$83)","v":"Yes"},{"$f":"IF(ISBLANK('Haiti 2011'!$G$83),\"\",'Haiti 2011'!$G$83)","v":"Yes"},{"$f":"IF(ISBLANK('Haiti 2011'!$F$84),\"\",'Haiti 2011'!$F$84)","v":"Yes"},{"$f":"IF(ISBLANK('Haiti 2011'!$E$85),\"\",'Haiti 2011'!$E$85)","v":"Commercial sector only"},{"$f":"IF(ISBLANK('Haiti 2011'!$E$86),\"\",'Haiti 2011'!$E$86)","v":"Don't know"},{"$f":"IF(ISBLANK('Haiti 2011'!$H$87),\"\",'Haiti 2011'!$H$87)","v":"No"},{"$f":"IF(ISBLANK('Haiti 2011'!$D$88),\"\",'Haiti 2011'!$D$88)","v":"N/A"},{"$f":"IF(ISBLANK('Haiti 2011'!$H$89),\"\",'Haiti 2011'!$H$89)","v":"Yes"},{"$f":"IF(ISBLANK('Haiti 2011'!$D$90),\"\",'Haiti 2011'!$D$90)","v":"National Norms"},{"$f":"IF(ISBLANK('Haiti 2011'!$H$91),\"\",'Haiti 2011'!$H$91)","v":"Yes"},{"$f":"IF(ISBLANK('Haiti 2011'!$C$94),\"\",'Haiti 2011'!$C$94)","v":"Injectables"},{"$f":"IF(ISBLANK('Haiti 2011'!$E$94),\"\",'Haiti 2011'!$E$94)","v":"This method can be administered only by medical staff (physicians, nurses, and nurse's aids). There is discussion about wanting to modify this policy though because having trained Community Health Workers administer injectables especially in rural communities has been a booster to the program. (Community Health Workers in the USAID network have been trained to administer injectables. They receive an extensive training (based on the MoH's curricula).) "},{"$f":"IF(ISBLANK('Haiti 2011'!$G$94),\"\",'Haiti 2011'!$G$94)","v":"This method can be administered only by medical staff. "},{"$f":"IF(ISBLANK('Haiti 2011'!$C$95),\"\",'Haiti 2011'!$C$95)","v":""},{"$f":"IF(ISBLANK('Haiti 2011'!$E$95),\"\",'Haiti 2011'!$E$95)","v":""},{"$f":"IF(ISBLANK('Haiti 2011'!$G$95),\"\",'Haiti 2011'!$G$95)","v":""},{"$f":"IF(ISBLANK('Haiti 2011'!$C$96),\"\",'Haiti 2011'!$C$96)","v":""},{"$f":"IF(ISBLANK('Haiti 2011'!$E$96),\"\",'Haiti 2011'!$E$96)","v":""},{"$f":"IF(ISBLANK('Haiti 2011'!$G$96),\"\",'Haiti 2011'!$G$96)","v":""},null,{"$f":"IF(ISBLANK('Haiti 2011'!$D$99),\"\",'Haiti 2011'!$D$99)","v":"No"},{"$f":"IF(ISBLANK('Haiti 2011'!$E$99),\"\",'Haiti 2011'!$E$99)","v":""},{"$f":"IF(ISBLANK('Haiti 2011'!$H$99),\"\",'Haiti 2011'!$H$99)","v":""},{"$f":"IF(ISBLANK('Haiti 2011'!$D$100),\"\",'Haiti 2011'!$D$100)","v":"No"},{"$f":"IF(ISBLANK('Haiti 2011'!$E$100),\"\",'Haiti 2011'!$E$100)","v":""},{"$f":"IF(ISBLANK('Haiti 2011'!$H$100),\"\",'Haiti 2011'!$H$100)","v":""},{"$f":"IF(ISBLANK('Haiti 2011'!$D$101),\"\",'Haiti 2011'!$D$101)","v":"No"},{"$f":"IF(ISBLANK('Haiti 2011'!$E$101),\"\",'Haiti 2011'!$E$101)","v":""},{"$f":"IF(ISBLANK('Haiti 2011'!$H$101),\"\",'Haiti 2011'!$H$101)","v":""},null,{"$f":"IF(ISBLANK('Haiti 2011'!$G$104),\"\",'Haiti 2011'!$G$104)","v":"Yes"},{"$f":"IF(ISBLANK('Haiti 2011'!$G$105),\"\",'Haiti 2011'!$G$105)","v":"No"},{"$f":"IF(ISBLANK('Haiti 2011'!$G$106),\"\",'Haiti 2011'!$G$106)","v":"Yes"},{"$f":"IF(ISBLANK('Haiti 2011'!$D$107),\"\",'Haiti 2011'!$D$107)","v":"Fees are waived for people who come to a public clinic and are unable to afford services."},null,{"$f":"IF(ISBLANK('Haiti 2011'!$G$109),\"\",'Haiti 2011'!$G$109)","v":"Yes"},{"$f":"IF(ISBLANK('Haiti 2011'!$G$110),\"\",'Haiti 2011'!$G$110)","v":"Yes"},{"$f":"IF(ISBLANK('Haiti 2011'!$G$111),\"\",'Haiti 2011'!$G$111)","v":"Yes"},{"$f":"IF(ISBLANK('Haiti 2011'!$G$112),\"\",'Haiti 2011'!$G$112)","v":"Yes"},{"$f":"IF(ISBLANK('Haiti 2011'!$G$113),\"\",'Haiti 2011'!$G$113)","v":"Yes"},{"$f":"IF(ISBLANK('Haiti 2011'!$G$114),\"\",'Haiti 2011'!$G$114)","v":"Yes"},{"$f":"IF(ISBLANK('Haiti 2011'!$G$115),\"\",'Haiti 2011'!$G$115)","v":"No"},{"$f":"IF(ISBLANK('Haiti 2011'!$G$116),\"\",'Haiti 2011'!$G$116)","v":"Yes"},{"$f":"IF(ISBLANK('Haiti 2011'!$G$117),\"\",'Haiti 2011'!$G$117)","v":"Yes"},{"$f":"IF(ISBLANK('Haiti 2011'!$G$118),\"\",'Haiti 2011'!$G$118)","v":"No"},{"$f":"IF(ISBLANK('Haiti 2011'!$F$119),\"\",'Haiti 2011'!$F$119)","v":"N/A"},{"$f":"IF(ISBLANK('Haiti 2011'!$F$120),\"\",'Haiti 2011'!$F$120)","v":"2011 (March)"},{"$f":"IF(ISBLANK('Haiti 2011'!$D$121),\"\",'Haiti 2011'!$D$121)","v":"(PAHO's list)"},{"$f":"IF(ISBLANK('Haiti 2011'!$D$122),\"\",'Haiti 2011'!$D$122)","v":"There is actually no National Essential Medicine List that has been approved by \nthe Ministry of Health. At the central level, a list based on essential services offered is used, set up by PAHO (who jointly manage the central warehouse with the MoH), but it is not a list that has been written and validated by the Ministry. However, the Department of Drugs and Medicine is working on one, which should be available shortly."},null,{"$f":"IF(ISBLANK('Haiti 2011'!$F$124),\"\",'Haiti 2011'!$F$124)","v":2008},{"$f":"IF(ISBLANK('Haiti 2011'!$G$125),\"\",'Haiti 2011'!$G$125)","v":"Yes"},{"$f":"IF(ISBLANK('Haiti 2011'!$G$126),\"\",'Haiti 2011'!$G$126)","v":"No"},{"$f":"IF(ISBLANK('Haiti 2011'!$G$127),\"\",'Haiti 2011'!$G$127)","v":"Yes"},{"$f":"IF(ISBLANK('Haiti 2011'!$G$128),\"\",'Haiti 2011'!$G$128)","v":"No"},{"$f":"IF(ISBLANK('Haiti 2011'!$D$129),\"\",'Haiti 2011'!$D$129)","v":"One of the objectives under health is to increase the rate of contraceptive use. Strengthening of health facilities' capacity to provide family planning services is also mentioned."},null,{"$f":"IF(ISBLANK('Haiti 2011'!$G$131),\"\",'Haiti 2011'!$G$131)","v":"Yes"},null,{"$f":"IF(ISBLANK('Haiti 2011'!$G$133),\"\",'Haiti 2011'!$G$133)","v":"No"},{"$f":"IF(ISBLANK('Haiti 2011'!$G$134),\"\",'Haiti 2011'!$G$134)","v":"No"},{"$f":"IF(ISBLANK('Haiti 2011'!$G$135),\"\",'Haiti 2011'!$G$135)","v":"No"},{"$f":"IF(ISBLANK('Haiti 2011'!$G$136),\"\",'Haiti 2011'!$G$136)","v":"No"},{"$f":"IF(ISBLANK('Haiti 2011'!$G$137),\"\",'Haiti 2011'!$G$137)","v":"No"},{"$f":"IF(ISBLANK('Haiti 2011'!$G$138),\"\",'Haiti 2011'!$G$138)","v":"No"},{"$f":"IF(ISBLANK('Haiti 2011'!$G$139),\"\",'Haiti 2011'!$G$139)","v":"Yes"},{"$f":"IF(ISBLANK('Haiti 2011'!$G$140),\"\",'Haiti 2011'!$G$140)","v":"No"},{"$f":"IF(ISBLANK('Haiti 2011'!$G$141),\"\",'Haiti 2011'!$G$141)","v":"No"},{"$f":"IF(ISBLANK('Haiti 2011'!$F$142),\"\",'Haiti 2011'!$F$142)","v":"likely 01/10-12/10"},{"$f":"IF(ISBLANK('Haiti 2011'!$F$143),\"\",'Haiti 2011'!$F$143)","v":"Central Warehouse Management"},null,{"$f":"IF(ISBLANK('Haiti 2011'!$G$145),\"\",'Haiti 2011'!$G$145)","v":"Don't know"},{"$f":"IF(ISBLANK('Haiti 2011'!$G$146),\"\",'Haiti 2011'!$G$146)","v":"Don't know"},{"$f":"IF(ISBLANK('Haiti 2011'!$D$147),\"\",'Haiti 2011'!$D$147)","v":""},"LAC"]
["Honduras ",null,{"$f":"IF(ISBLANK('Honduras 2011'!$H$12),\"\",'Honduras 2011'!$H$12)","v":"Yes"},{"$f":"IF(ISBLANK('Honduras 2011'!$D$13),\"\",'Honduras 2011'!$D$13)","v":"Comité Interinstitucional para la Disponibilidad Asegurada de Insumos Anticonceptivos (CIDAIA) (Inter-institutional Committee for Contraceptive Security)"},null,{"$f":"IF(ISBLANK('Honduras 2011'!$D$15),\"\",'Honduras 2011'!$D$15)","v":"Yes"},{"$f":"IF(ISBLANK('Honduras 2011'!$F$15),\"\",'Honduras 2011'!$F$15)","v":"PSI/PASMO (Pan American Social Marketing Organization)"},{"$f":"IF(ISBLANK('Honduras 2011'!$D$16),\"\",'Honduras 2011'!$D$16)","v":"Yes"},{"$f":"IF(ISBLANK('Honduras 2011'!$F$16),\"\",'Honduras 2011'!$F$16)","v":"ASHONPLAFA (IPPF affiliate)"},{"$f":"IF(ISBLANK('Honduras 2011'!$D$17),\"\",'Honduras 2011'!$D$17)","v":"Yes"},{"$f":"IF(ISBLANK('Honduras 2011'!$F$17),\"\",'Honduras 2011'!$F$17)","v":"Pfizer, Vijosa Laboratories, Arsal Laboratories, Bayer -Schering Pharma, CPL Honduras, Solis-Durex Distributor "},{"$f":"IF(ISBLANK('Honduras 2011'!$D$18),\"\",'Honduras 2011'!$D$18)","v":"Yes"},{"$f":"IF(ISBLANK('Honduras 2011'!$F$18),\"\",'Honduras 2011'!$F$18)","v":"USAID, UNFPA"},{"$f":"IF(ISBLANK('Honduras 2011'!$D$19),\"\",'Honduras 2011'!$D$19)","v":"Yes"},{"$f":"IF(ISBLANK('Honduras 2011'!$F$19),\"\",'Honduras 2011'!$F$19)","v":"PAHO, UNFPA"},{"$f":"IF(ISBLANK('Honduras 2011'!$D$20),\"\",'Honduras 2011'!$D$20)","v":"Yes"},{"$f":"IF(ISBLANK('Honduras 2011'!$F$20),\"\",'Honduras 2011'!$F$20)","v":"Service Networks, Logistics Unit, Women's Health Unit, Essential Drugs Unit, Regulations Unit, STD Unit"},{"$f":"IF(ISBLANK('Honduras 2011'!$D$21),\"\",'Honduras 2011'!$D$21)","v":"Yes"},{"$f":"IF(ISBLANK('Honduras 2011'!$F$21),\"\",'Honduras 2011'!$F$21)","v":"Central warehouse (manager)"},{"$f":"IF(ISBLANK('Honduras 2011'!$D$22),\"\",'Honduras 2011'!$D$22)","v":"No"},{"$f":"IF(ISBLANK('Honduras 2011'!$F$22),\"\",'Honduras 2011'!$F$22)","v":""},{"$f":"IF(ISBLANK('Honduras 2011'!$D$23),\"\",'Honduras 2011'!$D$23)","v":"Yes"},{"$f":"IF(ISBLANK('Honduras 2011'!$F$23),\"\",'Honduras 2011'!$F$23)","v":"Women's National Insitute (INAM in Spanish)"},{"$f":"IF(ISBLANK('Honduras 2011'!$H$24),\"\",'Honduras 2011'!$H$24)","v":"6 or more times"},{"$f":"IF(ISBLANK('Honduras 2011'!$H$25),\"\",'Honduras 2011'!$H$25)","v":"No"},{"$f":"IF(ISBLANK('Honduras 2011'!$D$26),\"\",'Honduras 2011'!$D$26)","v":"Yes"},{"$f":"IF(ISBLANK('Honduras 2011'!$F$26),\"\",'Honduras 2011'!$F$26)","v":"Ministry of Health"},{"$f":"IF(ISBLANK('Honduras 2011'!$H$26),\"\",'Honduras 2011'!$H$26)","v":"Advisor to the Vice-Minister "},null,{"$f":"IF(ISBLANK('Honduras 2011'!$F$28),\"\",'Honduras 2011'!$F$28)","v":"January"},{"$f":"IF(ISBLANK('Honduras 2011'!$H$28),\"\",'Honduras 2011'!$H$28)","v":"December"},{"$f":"IF(ISBLANK('Honduras 2011'!$G$29),\"\",'Honduras 2011'!$G$29)","v":1693560.7644309902},{"$f":"IF(ISBLANK('Honduras 2011'!$E$30),\"\",'Honduras 2011'!$E$30)","v":"11/10"},{"$f":"IF(ISBLANK('Honduras 2011'!$G$30),\"\",'Honduras 2011'!$G$30)","v":"Ministry of Health"},{"$f":"IF(ISBLANK('Honduras 2011'!$H$31),\"\",'Honduras 2011'!$H$31)","v":"Yes"},{"$f":"IF(ISBLANK('Honduras 2011'!$H$32),\"\",'Honduras 2011'!$H$32)","v":"Yes"},{"$f":"IF(ISBLANK('Honduras 2011'!$E$35),\"\",'Honduras 2011'!$E$35)","v":1270170.5733232426},{"$f":"IF(ISBLANK('Honduras 2011'!$F$35),\"\",'Honduras 2011'!$F$35)","v":"01/10-12/10"},{"$f":"IF(ISBLANK('Honduras 2011'!$G$35),\"\",'Honduras 2011'!$G$35)","v":"Ministry of Health"},{"$f":"IF(ISBLANK('Honduras 2011'!$H$35),\"\",'Honduras 2011'!$H$35)","v":""},{"$f":"IF(ISBLANK('Honduras 2011'!$H$37),\"\",'Honduras 2011'!$H$37)","v":"Yes"},{"$f":"IF(ISBLANK('Honduras 2011'!$D$40),\"\",'Honduras 2011'!$D$40)","v":"Yes"},{"$f":"IF(ISBLANK('Honduras 2011'!$D$41),\"\",'Honduras 2011'!$D$41)","v":"General government income"},{"$f":"IF(ISBLANK('Honduras 2011'!$E$40),\"\",'Honduras 2011'!$E$40)","v":2699112.4683118905},{"$f":"IF(ISBLANK('Honduras 2011'!$F$40),\"\",'Honduras 2011'!$F$40)","v":"01/10-12/10"},{"$f":"IF(ISBLANK('Honduras 2011'!$G$40),\"\",'Honduras 2011'!$G$40)","v":"PipeLine"},{"$f":"IF(ISBLANK('Honduras 2011'!$H$40),\"\",'Honduras 2011'!$H$40)","v":""},{"$f":"IF(ISBLANK('Honduras 2011'!$D$42),\"\",'Honduras 2011'!$D$42)","v":"No"},{"$f":"IF(ISBLANK('Honduras 2011'!$D$43),\"\",'Honduras 2011'!$D$43)","v":"N/A"},{"$f":"IF(ISBLANK('Honduras 2011'!$E$42),\"\",'Honduras 2011'!$E$42)","v":0},{"$f":"IF(ISBLANK('Honduras 2011'!$F$42),\"\",'Honduras 2011'!$F$42)","v":"01/10-12/10"},{"$f":"IF(ISBLANK('Honduras 2011'!$G$42),\"\",'Honduras 2011'!$G$42)","v":""},{"$f":"IF(ISBLANK('Honduras 2011'!$H$42),\"\",'Honduras 2011'!$H$42)","v":""},{"$f":"IF(ISBLANK('Honduras 2011'!$E$44),\"\",'Honduras 2011'!$E$44)","v":2699112.4683118905},{"$f":"IF(ISBLANK('Honduras 2011'!$H$44),\"\",'Honduras 2011'!$H$44)","v":""},null,{"$f":"IF(ISBLANK('Honduras 2011'!$D$48),\"\",'Honduras 2011'!$D$48)","v":"Yes"},{"$f":"IF(ISBLANK('Honduras 2011'!$D$49),\"\",'Honduras 2011'!$D$49)","v":"UNFPA"},{"$f":"IF(ISBLANK('Honduras 2011'!$E$48),\"\",'Honduras 2011'!$E$48)","v":890003},{"$f":"IF(ISBLANK('Honduras 2011'!$F$48),\"\",'Honduras 2011'!$F$48)","v":"01/10-12/10"},{"$f":"IF(ISBLANK('Honduras 2011'!$G$48),\"\",'Honduras 2011'!$G$48)","v":"PipeLine"},{"$f":"IF(ISBLANK('Honduras 2011'!$H$48),\"\",'Honduras 2011'!$H$48)","v":"This amount includes shipping and customs charges"},{"$f":"IF(ISBLANK('Honduras 2011'!$D$50),\"\",'Honduras 2011'!$D$50)","v":"No"},{"$f":"IF(ISBLANK('Honduras 2011'!$E$50),\"\",'Honduras 2011'!$E$50)","v":0},{"$f":"IF(ISBLANK('Honduras 2011'!$F$50),\"\",'Honduras 2011'!$F$50)","v":"01/10-12/10"},{"$f":"IF(ISBLANK('Honduras 2011'!$G$50),\"\",'Honduras 2011'!$G$50)","v":"RHInterchange"},{"$f":"IF(ISBLANK('Honduras 2011'!$H$50),\"\",'Honduras 2011'!$H$50)","v":""},{"$f":"IF(ISBLANK('Honduras 2011'!$D$51),\"\",'Honduras 2011'!$D$51)","v":"No"},{"$f":"IF(ISBLANK('Honduras 2011'!$E$51),\"\",'Honduras 2011'!$E$51)","v":0},{"$f":"IF(ISBLANK('Honduras 2011'!$F$51),\"\",'Honduras 2011'!$F$51)","v":"01/10-12/10"},{"$f":"IF(ISBLANK('Honduras 2011'!$G$51),\"\",'Honduras 2011'!$G$51)","v":""},{"$f":"IF(ISBLANK('Honduras 2011'!$H$51),\"\",'Honduras 2011'!$H$51)","v":""},{"$f":"IF(ISBLANK('Honduras 2011'!$E$52),\"\",'Honduras 2011'!$E$52)","v":890003},{"$f":"IF(ISBLANK('Honduras 2011'!$H$52),\"\",'Honduras 2011'!$H$52)","v":""},{"$f":"IF(ISBLANK('Honduras 2011'!$F$55),\"\",'Honduras 2011'!$F$55)","v":0.75202720339933637},{"$f":"IF(ISBLANK('Honduras 2011'!$G$55),\"\",'Honduras 2011'!$G$55)","v":""},{"$f":"IF(ISBLANK('Honduras 2011'!$F$56),\"\",'Honduras 2011'!$F$56)","v":2.1192717401656247},{"$f":"IF(ISBLANK('Honduras 2011'!$G$56),\"\",'Honduras 2011'!$G$56)","v":"\n"},{"$f":"IF(ISBLANK('Honduras 2011'!$F$57),\"\",'Honduras 2011'!$F$57)","v":"No"},{"$f":"IF(ISBLANK('Honduras 2011'!$G$57),\"\",'Honduras 2011'!$G$57)","v":"The UNFPA donation was the last that this agency will donate to the Honduras government. Of the total amount expended in 2010, shipments amounting  to aprox. US$731,000 of government funds plus US$890,000 of in-kind donations arrived in-country in 2010 (total US$1,621,000). The remaining shipments arrived in the country in March and April 2011. \n"},{"$f":"IF(ISBLANK('Honduras 2011'!$F$59),\"\",'Honduras 2011'!$F$59)","v":"The government (e.g., Central Medical Stores, MOH logistics unit, MOH procurement unit)"},{"$f":"IF(ISBLANK('Honduras 2011'!$F$60),\"\",'Honduras 2011'!$F$60)","v":"MOH administrative unit"},{"$f":"IF(ISBLANK('Honduras 2011'!$F$61),\"\",'Honduras 2011'!$F$61)","v":"No"},{"$f":"IF(ISBLANK('Honduras 2011'!$D$62),\"\",'Honduras 2011'!$D$62)","v":"Procurement is carried out at the national level. "},null,null,{"$f":"IF(ISBLANK('Honduras 2011'!$D$66),\"\",'Honduras 2011'!$D$66)","v":"Yes"},{"$f":"IF(ISBLANK('Honduras 2011'!$D$67),\"\",'Honduras 2011'!$D$67)","v":"No"},{"$f":"IF(ISBLANK('Honduras 2011'!$D$68),\"\",'Honduras 2011'!$D$68)","v":"Yes"},{"$f":"IF(ISBLANK('Honduras 2011'!$D$69),\"\",'Honduras 2011'!$D$69)","v":"No"},{"$f":"IF(ISBLANK('Honduras 2011'!$D$70),\"\",'Honduras 2011'!$D$70)","v":"Yes"},{"$f":"IF(ISBLANK('Honduras 2011'!$D$71),\"\",'Honduras 2011'!$D$71)","v":"Yes"},{"$f":"IF(ISBLANK('Honduras 2011'!$D$72),\"\",'Honduras 2011'!$D$72)","v":"No"},{"$f":"IF(ISBLANK('Honduras 2011'!$D$73),\"\",'Honduras 2011'!$D$73)","v":"No"},{"$f":"IF(ISBLANK('Honduras 2011'!$D$74),\"\",'Honduras 2011'!$D$74)","v":"Yes"},{"$f":"IF(ISBLANK('Honduras 2011'!$D$75),\"\",'Honduras 2011'!$D$75)","v":"Yes"},{"$f":"IF(ISBLANK('Honduras 2011'!$D$76),\"\",'Honduras 2011'!$D$76)","v":"No"},{"$f":"IF(ISBLANK('Honduras 2011'!$D$77),\"\",'Honduras 2011'!$D$77)","v":""},null,{"$f":"IF(ISBLANK('Honduras 2011'!$F$66),\"\",'Honduras 2011'!$F$66)","v":"Yes"},{"$f":"IF(ISBLANK('Honduras 2011'!$F$67),\"\",'Honduras 2011'!$F$67)","v":"No"},{"$f":"IF(ISBLANK('Honduras 2011'!$F$68),\"\",'Honduras 2011'!$F$68)","v":"Yes"},{"$f":"IF(ISBLANK('Honduras 2011'!$F$69),\"\",'Honduras 2011'!$F$69)","v":"No"},{"$f":"IF(ISBLANK('Honduras 2011'!$F$70),\"\",'Honduras 2011'!$F$70)","v":"Yes"},{"$f":"IF(ISBLANK('Honduras 2011'!$F$71),\"\",'Honduras 2011'!$F$71)","v":"Yes"},{"$f":"IF(ISBLANK('Honduras 2011'!$F$72),\"\",'Honduras 2011'!$F$72)","v":"No"},{"$f":"IF(ISBLANK('Honduras 2011'!$F$73),\"\",'Honduras 2011'!$F$73)","v":"No"},{"$f":"IF(ISBLANK('Honduras 2011'!$F$74),\"\",'Honduras 2011'!$F$74)","v":"Yes"},{"$f":"IF(ISBLANK('Honduras 2011'!$F$75),\"\",'Honduras 2011'!$F$75)","v":"Yes"},{"$f":"IF(ISBLANK('Honduras 2011'!$F$76),\"\",'Honduras 2011'!$F$76)","v":"No"},{"$f":"IF(ISBLANK('Honduras 2011'!$F$77),\"\",'Honduras 2011'!$F$77)","v":""},null,{"$f":"IF(ISBLANK('Honduras 2011'!$G$66),\"\",'Honduras 2011'!$G$66)","v":"Yes"},{"$f":"IF(ISBLANK('Honduras 2011'!$G$67),\"\",'Honduras 2011'!$G$67)","v":"No"},{"$f":"IF(ISBLANK('Honduras 2011'!$G$68),\"\",'Honduras 2011'!$G$68)","v":"Yes"},{"$f":"IF(ISBLANK('Honduras 2011'!$G$69),\"\",'Honduras 2011'!$G$69)","v":"No"},{"$f":"IF(ISBLANK('Honduras 2011'!$G$70),\"\",'Honduras 2011'!$G$70)","v":"Yes"},{"$f":"IF(ISBLANK('Honduras 2011'!$G$71),\"\",'Honduras 2011'!$G$71)","v":"Yes"},{"$f":"IF(ISBLANK('Honduras 2011'!$G$72),\"\",'Honduras 2011'!$G$72)","v":"No"},{"$f":"IF(ISBLANK('Honduras 2011'!$G$73),\"\",'Honduras 2011'!$G$73)","v":"No"},{"$f":"IF(ISBLANK('Honduras 2011'!$G$74),\"\",'Honduras 2011'!$G$74)","v":"Yes"},{"$f":"IF(ISBLANK('Honduras 2011'!$G$75),\"\",'Honduras 2011'!$G$75)","v":"Yes"},{"$f":"IF(ISBLANK('Honduras 2011'!$G$76),\"\",'Honduras 2011'!$G$76)","v":"No"},{"$f":"IF(ISBLANK('Honduras 2011'!$G$77),\"\",'Honduras 2011'!$G$77)","v":""},null,{"$f":"IF(ISBLANK('Honduras 2011'!$H$66),\"\",'Honduras 2011'!$H$66)","v":"Yes"},{"$f":"IF(ISBLANK('Honduras 2011'!$H$67),\"\",'Honduras 2011'!$H$67)","v":"No"},{"$f":"IF(ISBLANK('Honduras 2011'!$H$68),\"\",'Honduras 2011'!$H$68)","v":"Yes"},{"$f":"IF(ISBLANK('Honduras 2011'!$H$69),\"\",'Honduras 2011'!$H$69)","v":"No"},{"$f":"IF(ISBLANK('Honduras 2011'!$H$70),\"\",'Honduras 2011'!$H$70)","v":"No"},{"$f":"IF(ISBLANK('Honduras 2011'!$H$71),\"\",'Honduras 2011'!$H$71)","v":"Yes"},{"$f":"IF(ISBLANK('Honduras 2011'!$H$72),\"\",'Honduras 2011'!$H$72)","v":"No"},{"$f":"IF(ISBLANK('Honduras 2011'!$H$73),\"\",'Honduras 2011'!$H$73)","v":"No"},{"$f":"IF(ISBLANK('Honduras 2011'!$H$74),\"\",'Honduras 2011'!$H$74)","v":"No"},{"$f":"IF(ISBLANK('Honduras 2011'!$H$75),\"\",'Honduras 2011'!$H$75)","v":"No"},{"$f":"IF(ISBLANK('Honduras 2011'!$H$76),\"\",'Honduras 2011'!$H$76)","v":"No"},{"$f":"IF(ISBLANK('Honduras 2011'!$H$77),\"\",'Honduras 2011'!$H$77)","v":""},{"$f":"IF(ISBLANK('Honduras 2011'!$D$78),\"\",'Honduras 2011'!$D$78)","v":""},null,{"$f":"IF(ISBLANK('Honduras 2011'!$H$80),\"\",'Honduras 2011'!$H$80)","v":"Yes"},{"$f":"IF(ISBLANK('Honduras 2011'!$C$83),\"\",'Honduras 2011'!$C$83)","v":"Contraceptive Strategy"},{"$f":"IF(ISBLANK('Honduras 2011'!$D$83),\"\",'Honduras 2011'!$D$83)","v":"2005 - ongoing"},{"$f":"IF(ISBLANK('Honduras 2011'!$F$83),\"\",'Honduras 2011'!$F$83)","v":"Yes"},{"$f":"IF(ISBLANK('Honduras 2011'!$G$83),\"\",'Honduras 2011'!$G$83)","v":"Yes"},{"$f":"IF(ISBLANK('Honduras 2011'!$F$84),\"\",'Honduras 2011'!$F$84)","v":"No"},{"$f":"IF(ISBLANK('Honduras 2011'!$E$85),\"\",'Honduras 2011'!$E$85)","v":"N/A"},{"$f":"IF(ISBLANK('Honduras 2011'!$E$86),\"\",'Honduras 2011'!$E$86)","v":"N/A"},{"$f":"IF(ISBLANK('Honduras 2011'!$H$87),\"\",'Honduras 2011'!$H$87)","v":"Yes"},{"$f":"IF(ISBLANK('Honduras 2011'!$D$88),\"\",'Honduras 2011'!$D$88)","v":"In April 2009, the Parliament of Honduras approved a bill prohibiting the promotion, commercialization, free diistribution and use of EC pills. The bill also prohibits the dissemination of information about the use of contraceptive pills for EC."},{"$f":"IF(ISBLANK('Honduras 2011'!$H$89),\"\",'Honduras 2011'!$H$89)","v":"Yes"},{"$f":"IF(ISBLANK('Honduras 2011'!$D$90),\"\",'Honduras 2011'!$D$90)","v":"Free market strategy"},{"$f":"IF(ISBLANK('Honduras 2011'!$H$91),\"\",'Honduras 2011'!$H$91)","v":"Yes"},{"$f":"IF(ISBLANK('Honduras 2011'!$C$94),\"\",'Honduras 2011'!$C$94)","v":"Emergency contraception (EC)"},{"$f":"IF(ISBLANK('Honduras 2011'!$E$94),\"\",'Honduras 2011'!$E$94)","v":"In April 2009, the Parliament of Honduras approved a bill prohibiting the promotion, commercialization, free diistribution, and use of EC pills. The bill also prohibits the dissemination of information about the use of contraceptive pills for EC."},{"$f":"IF(ISBLANK('Honduras 2011'!$G$94),\"\",'Honduras 2011'!$G$94)","v":"In April 2009, the Parliament of Honduras approved a bill prohibiting the promotion, commercialization, free diistribution, and use of EC pills. The bill also prohibits the dissemination of information about the use of contraceptive pills for EC."},{"$f":"IF(ISBLANK('Honduras 2011'!$C$95),\"\",'Honduras 2011'!$C$95)","v":"All contraceptive methods"},{"$f":"IF(ISBLANK('Honduras 2011'!$E$95),\"\",'Honduras 2011'!$E$95)","v":"According to the Honduran Health Code, medications (including contraceptives) can only be sold in pharmacies or authorized sale points."},{"$f":"IF(ISBLANK('Honduras 2011'!$G$95),\"\",'Honduras 2011'!$G$95)","v":"According to the Honduran Health Code, medications (including contraceptives) can only be sold in pharmacies or authorized sale points."},{"$f":"IF(ISBLANK('Honduras 2011'!$C$96),\"\",'Honduras 2011'!$C$96)","v":""},{"$f":"IF(ISBLANK('Honduras 2011'!$E$96),\"\",'Honduras 2011'!$E$96)","v":""},{"$f":"IF(ISBLANK('Honduras 2011'!$G$96),\"\",'Honduras 2011'!$G$96)","v":""},null,{"$f":"IF(ISBLANK('Honduras 2011'!$D$99),\"\",'Honduras 2011'!$D$99)","v":"No"},{"$f":"IF(ISBLANK('Honduras 2011'!$E$99),\"\",'Honduras 2011'!$E$99)","v":""},{"$f":"IF(ISBLANK('Honduras 2011'!$H$99),\"\",'Honduras 2011'!$H$99)","v":""},{"$f":"IF(ISBLANK('Honduras 2011'!$D$100),\"\",'Honduras 2011'!$D$100)","v":"No"},{"$f":"IF(ISBLANK('Honduras 2011'!$E$100),\"\",'Honduras 2011'!$E$100)","v":""},{"$f":"IF(ISBLANK('Honduras 2011'!$H$100),\"\",'Honduras 2011'!$H$100)","v":""},{"$f":"IF(ISBLANK('Honduras 2011'!$D$101),\"\",'Honduras 2011'!$D$101)","v":"No"},{"$f":"IF(ISBLANK('Honduras 2011'!$E$101),\"\",'Honduras 2011'!$E$101)","v":""},{"$f":"IF(ISBLANK('Honduras 2011'!$H$101),\"\",'Honduras 2011'!$H$101)","v":""},null,{"$f":"IF(ISBLANK('Honduras 2011'!$G$104),\"\",'Honduras 2011'!$G$104)","v":"No"},{"$f":"IF(ISBLANK('Honduras 2011'!$G$105),\"\",'Honduras 2011'!$G$105)","v":"No"},{"$f":"IF(ISBLANK('Honduras 2011'!$G$106),\"\",'Honduras 2011'!$G$106)","v":"N/A"},{"$f":"IF(ISBLANK('Honduras 2011'!$D$107),\"\",'Honduras 2011'!$D$107)","v":"N/A"},null,{"$f":"IF(ISBLANK('Honduras 2011'!$G$109),\"\",'Honduras 2011'!$G$109)","v":"Yes"},{"$f":"IF(ISBLANK('Honduras 2011'!$G$110),\"\",'Honduras 2011'!$G$110)","v":"Yes"},{"$f":"IF(ISBLANK('Honduras 2011'!$G$111),\"\",'Honduras 2011'!$G$111)","v":"Yes"},{"$f":"IF(ISBLANK('Honduras 2011'!$G$112),\"\",'Honduras 2011'!$G$112)","v":"No"},{"$f":"IF(ISBLANK('Honduras 2011'!$G$113),\"\",'Honduras 2011'!$G$113)","v":"Yes"},{"$f":"IF(ISBLANK('Honduras 2011'!$G$114),\"\",'Honduras 2011'!$G$114)","v":"Yes"},{"$f":"IF(ISBLANK('Honduras 2011'!$G$115),\"\",'Honduras 2011'!$G$115)","v":"No"},{"$f":"IF(ISBLANK('Honduras 2011'!$G$116),\"\",'Honduras 2011'!$G$116)","v":"No"},{"$f":"IF(ISBLANK('Honduras 2011'!$G$117),\"\",'Honduras 2011'!$G$117)","v":"No"},{"$f":"IF(ISBLANK('Honduras 2011'!$G$118),\"\",'Honduras 2011'!$G$118)","v":"Don't know"},{"$f":"IF(ISBLANK('Honduras 2011'!$F$119),\"\",'Honduras 2011'!$F$119)","v":"Don't know"},{"$f":"IF(ISBLANK('Honduras 2011'!$F$120),\"\",'Honduras 2011'!$F$120)","v":2007},{"$f":"IF(ISBLANK('Honduras 2011'!$D$121),\"\",'Honduras 2011'!$D$121)","v":"National Essential Medicines List (NEML)"},{"$f":"IF(ISBLANK('Honduras 2011'!$D$122),\"\",'Honduras 2011'!$D$122)","v":""},null,{"$f":"IF(ISBLANK('Honduras 2011'!$F$124),\"\",'Honduras 2011'!$F$124)","v":2001},{"$f":"IF(ISBLANK('Honduras 2011'!$G$125),\"\",'Honduras 2011'!$G$125)","v":"Yes"},{"$f":"IF(ISBLANK('Honduras 2011'!$G$126),\"\",'Honduras 2011'!$G$126)","v":"No"},{"$f":"IF(ISBLANK('Honduras 2011'!$G$127),\"\",'Honduras 2011'!$G$127)","v":"No"},{"$f":"IF(ISBLANK('Honduras 2011'!$G$128),\"\",'Honduras 2011'!$G$128)","v":"No"},{"$f":"IF(ISBLANK('Honduras 2011'!$D$129),\"\",'Honduras 2011'!$D$129)","v":"While family planning and reproductive health are not explicitly mentioned as \"priorities,\" they seem to be. There is a goal to increase contraceptive prevalence, and both the maternal mortality rate and the number of women in reproductive health programs are included as indicators in order to \"provide greater attention to women's health conditions\".  "},null,{"$f":"IF(ISBLANK('Honduras 2011'!$G$131),\"\",'Honduras 2011'!$G$131)","v":"Yes"},null,{"$f":"IF(ISBLANK('Honduras 2011'!$G$133),\"\",'Honduras 2011'!$G$133)","v":"No"},{"$f":"IF(ISBLANK('Honduras 2011'!$G$134),\"\",'Honduras 2011'!$G$134)","v":"N/A"},{"$f":"IF(ISBLANK('Honduras 2011'!$G$135),\"\",'Honduras 2011'!$G$135)","v":"Yes"},{"$f":"IF(ISBLANK('Honduras 2011'!$G$136),\"\",'Honduras 2011'!$G$136)","v":"N/A"},{"$f":"IF(ISBLANK('Honduras 2011'!$G$137),\"\",'Honduras 2011'!$G$137)","v":"Yes"},{"$f":"IF(ISBLANK('Honduras 2011'!$G$138),\"\",'Honduras 2011'!$G$138)","v":"No"},{"$f":"IF(ISBLANK('Honduras 2011'!$G$139),\"\",'Honduras 2011'!$G$139)","v":"N/A"},{"$f":"IF(ISBLANK('Honduras 2011'!$G$140),\"\",'Honduras 2011'!$G$140)","v":"N/A"},{"$f":"IF(ISBLANK('Honduras 2011'!$G$141),\"\",'Honduras 2011'!$G$141)","v":"N/A"},{"$f":"IF(ISBLANK('Honduras 2011'!$F$142),\"\",'Honduras 2011'!$F$142)","v":"01/10-12/10"},{"$f":"IF(ISBLANK('Honduras 2011'!$F$143),\"\",'Honduras 2011'!$F$143)","v":"PipeLine report"},null,{"$f":"IF(ISBLANK('Honduras 2011'!$G$145),\"\",'Honduras 2011'!$G$145)","v":"Yes"},{"$f":"IF(ISBLANK('Honduras 2011'!$G$146),\"\",'Honduras 2011'!$G$146)","v":"No"},{"$f":"IF(ISBLANK('Honduras 2011'!$D$147),\"\",'Honduras 2011'!$D$147)","v":"A line item for contraceptive procurement was included in the 2010 national budget. The challenge is to achieve availability of all methods in all health units, thereby improving contraceptive forecasting and distribution processes in accordance with demand. As a separate note, there were periods during 2010 where contraceptive supplies were below minimum, including short periods of injectable and IUD stockouts."},"LAC"]
["India ",null,{"$f":"IF(ISBLANK('India 2011'!$H$12),\"\",'India 2011'!$H$12)","v":"Yes"},{"$f":"IF(ISBLANK('India 2011'!$D$13),\"\",'India 2011'!$D$13)","v":"Supply and Social Marketing Division of the Ministry of Health and Family Welfare"},null,{"$f":"IF(ISBLANK('India 2011'!$D$15),\"\",'India 2011'!$D$15)","v":"No"},{"$f":"IF(ISBLANK('India 2011'!$F$15),\"\",'India 2011'!$F$15)","v":""},{"$f":"IF(ISBLANK('India 2011'!$D$16),\"\",'India 2011'!$D$16)","v":"No"},{"$f":"IF(ISBLANK('India 2011'!$F$16),\"\",'India 2011'!$F$16)","v":""},{"$f":"IF(ISBLANK('India 2011'!$D$17),\"\",'India 2011'!$D$17)","v":"No"},{"$f":"IF(ISBLANK('India 2011'!$F$17),\"\",'India 2011'!$F$17)","v":""},{"$f":"IF(ISBLANK('India 2011'!$D$18),\"\",'India 2011'!$D$18)","v":"No"},{"$f":"IF(ISBLANK('India 2011'!$F$18),\"\",'India 2011'!$F$18)","v":""},{"$f":"IF(ISBLANK('India 2011'!$D$19),\"\",'India 2011'!$D$19)","v":"No"},{"$f":"IF(ISBLANK('India 2011'!$F$19),\"\",'India 2011'!$F$19)","v":""},{"$f":"IF(ISBLANK('India 2011'!$D$20),\"\",'India 2011'!$D$20)","v":"Yes"},{"$f":"IF(ISBLANK('India 2011'!$F$20),\"\",'India 2011'!$F$20)","v":"Supply and Social Maketing Division of the Ministry of Health and Family Welfare"},{"$f":"IF(ISBLANK('India 2011'!$D$21),\"\",'India 2011'!$D$21)","v":"No"},{"$f":"IF(ISBLANK('India 2011'!$F$21),\"\",'India 2011'!$F$21)","v":""},{"$f":"IF(ISBLANK('India 2011'!$D$22),\"\",'India 2011'!$D$22)","v":"No"},{"$f":"IF(ISBLANK('India 2011'!$F$22),\"\",'India 2011'!$F$22)","v":""},{"$f":"IF(ISBLANK('India 2011'!$D$23),\"\",'India 2011'!$D$23)","v":"No"},{"$f":"IF(ISBLANK('India 2011'!$F$23),\"\",'India 2011'!$F$23)","v":""},{"$f":"IF(ISBLANK('India 2011'!$H$24),\"\",'India 2011'!$H$24)","v":"3-5 times"},{"$f":"IF(ISBLANK('India 2011'!$H$25),\"\",'India 2011'!$H$25)","v":"Yes"},{"$f":"IF(ISBLANK('India 2011'!$D$26),\"\",'India 2011'!$D$26)","v":"Yes"},{"$f":"IF(ISBLANK('India 2011'!$F$26),\"\",'India 2011'!$F$26)","v":"Government of India"},{"$f":"IF(ISBLANK('India 2011'!$H$26),\"\",'India 2011'!$H$26)","v":"Director, Procurement Division"},null,{"$f":"IF(ISBLANK('India 2011'!$F$28),\"\",'India 2011'!$F$28)","v":"April"},{"$f":"IF(ISBLANK('India 2011'!$H$28),\"\",'India 2011'!$H$28)","v":"March"},{"$f":"IF(ISBLANK('India 2011'!$G$29),\"\",'India 2011'!$G$29)","v":"Don't know"},{"$f":"IF(ISBLANK('India 2011'!$E$30),\"\",'India 2011'!$E$30)","v":"02/10"},{"$f":"IF(ISBLANK('India 2011'!$G$30),\"\",'India 2011'!$G$30)","v":"Ministry of Health and Family Welfare"},{"$f":"IF(ISBLANK('India 2011'!$H$31),\"\",'India 2011'!$H$31)","v":"Yes"},{"$f":"IF(ISBLANK('India 2011'!$H$32),\"\",'India 2011'!$H$32)","v":"Yes"},{"$f":"IF(ISBLANK('India 2011'!$E$35),\"\",'India 2011'!$E$35)","v":"Don't know"},{"$f":"IF(ISBLANK('India 2011'!$F$35),\"\",'India 2011'!$F$35)","v":"04/10-03/11"},{"$f":"IF(ISBLANK('India 2011'!$G$35),\"\",'India 2011'!$G$35)","v":""},{"$f":"IF(ISBLANK('India 2011'!$H$35),\"\",'India 2011'!$H$35)","v":"Government of India procures contraceptives regularly "},{"$f":"IF(ISBLANK('India 2011'!$H$37),\"\",'India 2011'!$H$37)","v":"Yes"},{"$f":"IF(ISBLANK('India 2011'!$D$40),\"\",'India 2011'!$D$40)","v":"Yes"},{"$f":"IF(ISBLANK('India 2011'!$D$41),\"\",'India 2011'!$D$41)","v":"Government of India funds from taxes, etc."},{"$f":"IF(ISBLANK('India 2011'!$E$40),\"\",'India 2011'!$E$40)","v":"Don't know"},{"$f":"IF(ISBLANK('India 2011'!$F$40),\"\",'India 2011'!$F$40)","v":"04/10-03/11"},{"$f":"IF(ISBLANK('India 2011'!$G$40),\"\",'India 2011'!$G$40)","v":""},{"$f":"IF(ISBLANK('India 2011'!$H$40),\"\",'India 2011'!$H$40)","v":"Government of India is self-sufficient in providing contraceptives. These are supplied for free in the government program."},{"$f":"IF(ISBLANK('India 2011'!$D$42),\"\",'India 2011'!$D$42)","v":"No"},{"$f":"IF(ISBLANK('India 2011'!$D$43),\"\",'India 2011'!$D$43)","v":"N/A"},{"$f":"IF(ISBLANK('India 2011'!$E$42),\"\",'India 2011'!$E$42)","v":0},{"$f":"IF(ISBLANK('India 2011'!$F$42),\"\",'India 2011'!$F$42)","v":"04/10-03/11"},{"$f":"IF(ISBLANK('India 2011'!$G$42),\"\",'India 2011'!$G$42)","v":""},{"$f":"IF(ISBLANK('India 2011'!$H$42),\"\",'India 2011'!$H$42)","v":""},{"$f":"IF(ISBLANK('India 2011'!$E$44),\"\",'India 2011'!$E$44)","v":"Don't know"},{"$f":"IF(ISBLANK('India 2011'!$H$44),\"\",'India 2011'!$H$44)","v":""},null,{"$f":"IF(ISBLANK('India 2011'!$D$48),\"\",'India 2011'!$D$48)","v":"No"},{"$f":"IF(ISBLANK('India 2011'!$D$49),\"\",'India 2011'!$D$49)","v":"N/A"},{"$f":"IF(ISBLANK('India 2011'!$E$48),\"\",'India 2011'!$E$48)","v":0},{"$f":"IF(ISBLANK('India 2011'!$F$48),\"\",'India 2011'!$F$48)","v":"04/10-03/11"},{"$f":"IF(ISBLANK('India 2011'!$G$48),\"\",'India 2011'!$G$48)","v":""},{"$f":"IF(ISBLANK('India 2011'!$H$48),\"\",'India 2011'!$H$48)","v":"Government of India is self-sufficient in providing contraceptives. These are supplied for free in the government program."},{"$f":"IF(ISBLANK('India 2011'!$D$50),\"\",'India 2011'!$D$50)","v":"No"},{"$f":"IF(ISBLANK('India 2011'!$E$50),\"\",'India 2011'!$E$50)","v":0},{"$f":"IF(ISBLANK('India 2011'!$F$50),\"\",'India 2011'!$F$50)","v":"04/10-03/11"},{"$f":"IF(ISBLANK('India 2011'!$G$50),\"\",'India 2011'!$G$50)","v":""},{"$f":"IF(ISBLANK('India 2011'!$H$50),\"\",'India 2011'!$H$50)","v":""},{"$f":"IF(ISBLANK('India 2011'!$D$51),\"\",'India 2011'!$D$51)","v":"No"},{"$f":"IF(ISBLANK('India 2011'!$E$51),\"\",'India 2011'!$E$51)","v":0},{"$f":"IF(ISBLANK('India 2011'!$F$51),\"\",'India 2011'!$F$51)","v":"04/10-03/11"},{"$f":"IF(ISBLANK('India 2011'!$G$51),\"\",'India 2011'!$G$51)","v":""},{"$f":"IF(ISBLANK('India 2011'!$H$51),\"\",'India 2011'!$H$51)","v":""},{"$f":"IF(ISBLANK('India 2011'!$E$52),\"\",'India 2011'!$E$52)","v":0},{"$f":"IF(ISBLANK('India 2011'!$H$52),\"\",'India 2011'!$H$52)","v":""},{"$f":"IF(ISBLANK('India 2011'!$F$55),\"\",'India 2011'!$F$55)","v":1},{"$f":"IF(ISBLANK('India 2011'!$G$55),\"\",'India 2011'!$G$55)","v":""},{"$f":"IF(ISBLANK('India 2011'!$F$56),\"\",'India 2011'!$F$56)","v":"Don't know"},{"$f":"IF(ISBLANK('India 2011'!$G$56),\"\",'India 2011'!$G$56)","v":"Government of India is self-sufficient in providing contraceptives. These are supplied for free in the government program."},{"$f":"IF(ISBLANK('India 2011'!$F$57),\"\",'India 2011'!$F$57)","v":"No"},{"$f":"IF(ISBLANK('India 2011'!$G$57),\"\",'India 2011'!$G$57)","v":"There was no funding gap for procurement of contraceptives during the last fiscal year. "},{"$f":"IF(ISBLANK('India 2011'!$F$59),\"\",'India 2011'!$F$59)","v":"The government (e.g., Central Medical Stores, MOH logistics unit, MOH procurement unit)"},{"$f":"IF(ISBLANK('India 2011'!$F$60),\"\",'India 2011'!$F$60)","v":"Supply and Social Marketing Division of the Government of India"},{"$f":"IF(ISBLANK('India 2011'!$F$61),\"\",'India 2011'!$F$61)","v":"No"},{"$f":"IF(ISBLANK('India 2011'!$D$62),\"\",'India 2011'!$D$62)","v":"The National Family Planning Program is a top priority of the Government of India and contraceptives are procured regularly through a central government mechanism. They are available for free in the public sector."},null,null,{"$f":"IF(ISBLANK('India 2011'!$D$66),\"\",'India 2011'!$D$66)","v":"Yes"},{"$f":"IF(ISBLANK('India 2011'!$D$67),\"\",'India 2011'!$D$67)","v":"Yes"},{"$f":"IF(ISBLANK('India 2011'!$D$68),\"\",'India 2011'!$D$68)","v":"Yes"},{"$f":"IF(ISBLANK('India 2011'!$D$69),\"\",'India 2011'!$D$69)","v":"No"},{"$f":"IF(ISBLANK('India 2011'!$D$70),\"\",'India 2011'!$D$70)","v":"Yes"},{"$f":"IF(ISBLANK('India 2011'!$D$71),\"\",'India 2011'!$D$71)","v":"Yes"},{"$f":"IF(ISBLANK('India 2011'!$D$72),\"\",'India 2011'!$D$72)","v":"Yes"},{"$f":"IF(ISBLANK('India 2011'!$D$73),\"\",'India 2011'!$D$73)","v":"Yes"},{"$f":"IF(ISBLANK('India 2011'!$D$74),\"\",'India 2011'!$D$74)","v":"Yes"},{"$f":"IF(ISBLANK('India 2011'!$D$75),\"\",'India 2011'!$D$75)","v":"Yes"},{"$f":"IF(ISBLANK('India 2011'!$D$76),\"\",'India 2011'!$D$76)","v":"Yes"},{"$f":"IF(ISBLANK('India 2011'!$D$77),\"\",'India 2011'!$D$77)","v":""},null,{"$f":"IF(ISBLANK('India 2011'!$F$66),\"\",'India 2011'!$F$66)","v":"Yes"},{"$f":"IF(ISBLANK('India 2011'!$F$67),\"\",'India 2011'!$F$67)","v":"No"},{"$f":"IF(ISBLANK('India 2011'!$F$68),\"\",'India 2011'!$F$68)","v":"No"},{"$f":"IF(ISBLANK('India 2011'!$F$69),\"\",'India 2011'!$F$69)","v":"No"},{"$f":"IF(ISBLANK('India 2011'!$F$70),\"\",'India 2011'!$F$70)","v":"Yes"},{"$f":"IF(ISBLANK('India 2011'!$F$71),\"\",'India 2011'!$F$71)","v":"Yes"},{"$f":"IF(ISBLANK('India 2011'!$F$72),\"\",'India 2011'!$F$72)","v":"No"},{"$f":"IF(ISBLANK('India 2011'!$F$73),\"\",'India 2011'!$F$73)","v":"Yes"},{"$f":"IF(ISBLANK('India 2011'!$F$74),\"\",'India 2011'!$F$74)","v":"Yes"},{"$f":"IF(ISBLANK('India 2011'!$F$75),\"\",'India 2011'!$F$75)","v":"Yes"},{"$f":"IF(ISBLANK('India 2011'!$F$76),\"\",'India 2011'!$F$76)","v":"No"},{"$f":"IF(ISBLANK('India 2011'!$F$77),\"\",'India 2011'!$F$77)","v":""},null,{"$f":"IF(ISBLANK('India 2011'!$G$66),\"\",'India 2011'!$G$66)","v":"Yes"},{"$f":"IF(ISBLANK('India 2011'!$G$67),\"\",'India 2011'!$G$67)","v":"No"},{"$f":"IF(ISBLANK('India 2011'!$G$68),\"\",'India 2011'!$G$68)","v":"Yes"},{"$f":"IF(ISBLANK('India 2011'!$G$69),\"\",'India 2011'!$G$69)","v":"No"},{"$f":"IF(ISBLANK('India 2011'!$G$70),\"\",'India 2011'!$G$70)","v":"Yes"},{"$f":"IF(ISBLANK('India 2011'!$G$71),\"\",'India 2011'!$G$71)","v":"Yes"},{"$f":"IF(ISBLANK('India 2011'!$G$72),\"\",'India 2011'!$G$72)","v":"No"},{"$f":"IF(ISBLANK('India 2011'!$G$73),\"\",'India 2011'!$G$73)","v":"Yes"},{"$f":"IF(ISBLANK('India 2011'!$G$74),\"\",'India 2011'!$G$74)","v":"Yes"},{"$f":"IF(ISBLANK('India 2011'!$G$75),\"\",'India 2011'!$G$75)","v":"Yes"},{"$f":"IF(ISBLANK('India 2011'!$G$76),\"\",'India 2011'!$G$76)","v":"Yes"},{"$f":"IF(ISBLANK('India 2011'!$G$77),\"\",'India 2011'!$G$77)","v":""},null,{"$f":"IF(ISBLANK('India 2011'!$H$66),\"\",'India 2011'!$H$66)","v":"Yes"},{"$f":"IF(ISBLANK('India 2011'!$H$67),\"\",'India 2011'!$H$67)","v":"Yes"},{"$f":"IF(ISBLANK('India 2011'!$H$68),\"\",'India 2011'!$H$68)","v":"Yes"},{"$f":"IF(ISBLANK('India 2011'!$H$69),\"\",'India 2011'!$H$69)","v":"No"},{"$f":"IF(ISBLANK('India 2011'!$H$70),\"\",'India 2011'!$H$70)","v":"Yes"},{"$f":"IF(ISBLANK('India 2011'!$H$71),\"\",'India 2011'!$H$71)","v":"Yes"},{"$f":"IF(ISBLANK('India 2011'!$H$72),\"\",'India 2011'!$H$72)","v":"Yes"},{"$f":"IF(ISBLANK('India 2011'!$H$73),\"\",'India 2011'!$H$73)","v":"Yes"},{"$f":"IF(ISBLANK('India 2011'!$H$74),\"\",'India 2011'!$H$74)","v":"No"},{"$f":"IF(ISBLANK('India 2011'!$H$75),\"\",'India 2011'!$H$75)","v":"No"},{"$f":"IF(ISBLANK('India 2011'!$H$76),\"\",'India 2011'!$H$76)","v":"Yes"},{"$f":"IF(ISBLANK('India 2011'!$H$77),\"\",'India 2011'!$H$77)","v":""},{"$f":"IF(ISBLANK('India 2011'!$D$78),\"\",'India 2011'!$D$78)","v":"1) The decision to include injectable contraceptives in the national\nprogram is still pending. 2) CycleBeads are provided in NGO programs and social marketing in select project sites.3) For the past two years, female condoms have been supplied through the Government of India's social marketing program for female sex workers, through NGOs.  "},null,{"$f":"IF(ISBLANK('India 2011'!$H$80),\"\",'India 2011'!$H$80)","v":"Yes"},{"$f":"IF(ISBLANK('India 2011'!$C$83),\"\",'India 2011'!$C$83)","v":"National Population Policy "},{"$f":"IF(ISBLANK('India 2011'!$D$83),\"\",'India 2011'!$D$83)","v":"2000 - 2016"},{"$f":"IF(ISBLANK('India 2011'!$F$83),\"\",'India 2011'!$F$83)","v":"Yes"},{"$f":"IF(ISBLANK('India 2011'!$G$83),\"\",'India 2011'!$G$83)","v":"Yes"},{"$f":"IF(ISBLANK('India 2011'!$F$84),\"\",'India 2011'!$F$84)","v":"No"},{"$f":"IF(ISBLANK('India 2011'!$E$85),\"\",'India 2011'!$E$85)","v":"N/A"},{"$f":"IF(ISBLANK('India 2011'!$E$86),\"\",'India 2011'!$E$86)","v":"N/A"},{"$f":"IF(ISBLANK('India 2011'!$H$87),\"\",'India 2011'!$H$87)","v":"No"},{"$f":"IF(ISBLANK('India 2011'!$D$88),\"\",'India 2011'!$D$88)","v":"N/A"},{"$f":"IF(ISBLANK('India 2011'!$H$89),\"\",'India 2011'!$H$89)","v":"Yes"},{"$f":"IF(ISBLANK('India 2011'!$D$90),\"\",'India 2011'!$D$90)","v":"Social Marketing Strategy of the Government of India (GoI): GoI provides a product subsidy to select social marketing agencies for promoting socially marketed products and market segmentation, so that the free supplies are made available for the poor."},{"$f":"IF(ISBLANK('India 2011'!$H$91),\"\",'India 2011'!$H$91)","v":"Yes"},{"$f":"IF(ISBLANK('India 2011'!$C$94),\"\",'India 2011'!$C$94)","v":"Injectables"},{"$f":"IF(ISBLANK('India 2011'!$E$94),\"\",'India 2011'!$E$94)","v":"N/A - Injectables not available in the public sector. Injectables should ideally be included in the Government family planning program."},{"$f":"IF(ISBLANK('India 2011'!$G$94),\"\",'India 2011'!$G$94)","v":"Qualified allopathic private practitioners are allowed to provide the injectable contraceptive. "},{"$f":"IF(ISBLANK('India 2011'!$C$95),\"\",'India 2011'!$C$95)","v":""},{"$f":"IF(ISBLANK('India 2011'!$E$95),\"\",'India 2011'!$E$95)","v":""},{"$f":"IF(ISBLANK('India 2011'!$G$95),\"\",'India 2011'!$G$95)","v":""},{"$f":"IF(ISBLANK('India 2011'!$C$96),\"\",'India 2011'!$C$96)","v":""},{"$f":"IF(ISBLANK('India 2011'!$E$96),\"\",'India 2011'!$E$96)","v":""},{"$f":"IF(ISBLANK('India 2011'!$G$96),\"\",'India 2011'!$G$96)","v":""},null,{"$f":"IF(ISBLANK('India 2011'!$D$99),\"\",'India 2011'!$D$99)","v":"No"},{"$f":"IF(ISBLANK('India 2011'!$E$99),\"\",'India 2011'!$E$99)","v":""},{"$f":"IF(ISBLANK('India 2011'!$H$99),\"\",'India 2011'!$H$99)","v":""},{"$f":"IF(ISBLANK('India 2011'!$D$100),\"\",'India 2011'!$D$100)","v":"No"},{"$f":"IF(ISBLANK('India 2011'!$E$100),\"\",'India 2011'!$E$100)","v":""},{"$f":"IF(ISBLANK('India 2011'!$H$100),\"\",'India 2011'!$H$100)","v":""},{"$f":"IF(ISBLANK('India 2011'!$D$101),\"\",'India 2011'!$D$101)","v":"No"},{"$f":"IF(ISBLANK('India 2011'!$E$101),\"\",'India 2011'!$E$101)","v":""},{"$f":"IF(ISBLANK('India 2011'!$H$101),\"\",'India 2011'!$H$101)","v":""},null,{"$f":"IF(ISBLANK('India 2011'!$G$104),\"\",'India 2011'!$G$104)","v":"No"},{"$f":"IF(ISBLANK('India 2011'!$G$105),\"\",'India 2011'!$G$105)","v":"No"},{"$f":"IF(ISBLANK('India 2011'!$G$106),\"\",'India 2011'!$G$106)","v":"N/A"},{"$f":"IF(ISBLANK('India 2011'!$D$107),\"\",'India 2011'!$D$107)","v":"N/A"},null,{"$f":"IF(ISBLANK('India 2011'!$G$109),\"\",'India 2011'!$G$109)","v":"Yes"},{"$f":"IF(ISBLANK('India 2011'!$G$110),\"\",'India 2011'!$G$110)","v":"No"},{"$f":"IF(ISBLANK('India 2011'!$G$111),\"\",'India 2011'!$G$111)","v":"Yes"},{"$f":"IF(ISBLANK('India 2011'!$G$112),\"\",'India 2011'!$G$112)","v":"No"},{"$f":"IF(ISBLANK('India 2011'!$G$113),\"\",'India 2011'!$G$113)","v":"Yes"},{"$f":"IF(ISBLANK('India 2011'!$G$114),\"\",'India 2011'!$G$114)","v":"Yes"},{"$f":"IF(ISBLANK('India 2011'!$G$115),\"\",'India 2011'!$G$115)","v":"No"},{"$f":"IF(ISBLANK('India 2011'!$G$116),\"\",'India 2011'!$G$116)","v":"Yes"},{"$f":"IF(ISBLANK('India 2011'!$G$117),\"\",'India 2011'!$G$117)","v":"No"},{"$f":"IF(ISBLANK('India 2011'!$G$118),\"\",'India 2011'!$G$118)","v":"No"},{"$f":"IF(ISBLANK('India 2011'!$F$119),\"\",'India 2011'!$F$119)","v":"N/A"},{"$f":"IF(ISBLANK('India 2011'!$F$120),\"\",'India 2011'!$F$120)","v":"2007 (March)"},{"$f":"IF(ISBLANK('India 2011'!$D$121),\"\",'India 2011'!$D$121)","v":"National List of Essential Medicines - India"},{"$f":"IF(ISBLANK('India 2011'!$D$122),\"\",'India 2011'!$D$122)","v":""},null,{"$f":"IF(ISBLANK('India 2011'!$F$124),\"\",'India 2011'!$F$124)","v":"N/A"},{"$f":"IF(ISBLANK('India 2011'!$G$125),\"\",'India 2011'!$G$125)","v":"N/A"},{"$f":"IF(ISBLANK('India 2011'!$G$126),\"\",'India 2011'!$G$126)","v":"N/A"},{"$f":"IF(ISBLANK('India 2011'!$G$127),\"\",'India 2011'!$G$127)","v":"N/A"},{"$f":"IF(ISBLANK('India 2011'!$G$128),\"\",'India 2011'!$G$128)","v":"N/A"},{"$f":"IF(ISBLANK('India 2011'!$D$129),\"\",'India 2011'!$D$129)","v":"Document not available on IMF's website"},null,{"$f":"IF(ISBLANK('India 2011'!$G$131),\"\",'India 2011'!$G$131)","v":"No"},null,{"$f":"IF(ISBLANK('India 2011'!$G$133),\"\",'India 2011'!$G$133)","v":"No"},{"$f":"IF(ISBLANK('India 2011'!$G$134),\"\",'India 2011'!$G$134)","v":"N/A"},{"$f":"IF(ISBLANK('India 2011'!$G$135),\"\",'India 2011'!$G$135)","v":"N/A"},{"$f":"IF(ISBLANK('India 2011'!$G$136),\"\",'India 2011'!$G$136)","v":"N/A"},{"$f":"IF(ISBLANK('India 2011'!$G$137),\"\",'India 2011'!$G$137)","v":"No"},{"$f":"IF(ISBLANK('India 2011'!$G$138),\"\",'India 2011'!$G$138)","v":"No"},{"$f":"IF(ISBLANK('India 2011'!$G$139),\"\",'India 2011'!$G$139)","v":"N/A"},{"$f":"IF(ISBLANK('India 2011'!$G$140),\"\",'India 2011'!$G$140)","v":"No"},{"$f":"IF(ISBLANK('India 2011'!$G$141),\"\",'India 2011'!$G$141)","v":"N/A"},{"$f":"IF(ISBLANK('India 2011'!$F$142),\"\",'India 2011'!$F$142)","v":"01/10-12/10"},{"$f":"IF(ISBLANK('India 2011'!$F$143),\"\",'India 2011'!$F$143)","v":"Government of India"},null,{"$f":"IF(ISBLANK('India 2011'!$G$145),\"\",'India 2011'!$G$145)","v":"No"},{"$f":"IF(ISBLANK('India 2011'!$G$146),\"\",'India 2011'!$G$146)","v":"No"},{"$f":"IF(ISBLANK('India 2011'!$D$147),\"\",'India 2011'!$D$147)","v":"India has limited contraceptive choices. The contraceptives, however, are centrally procured. "},"Europe and Asia"]
["Kenya ",null,{"$f":"IF(ISBLANK('Kenya 2011'!$H$12),\"\",'Kenya 2011'!$H$12)","v":"Yes"},{"$f":"IF(ISBLANK('Kenya 2011'!$D$13),\"\",'Kenya 2011'!$D$13)","v":"Family Planning Logistics Working Group"},null,{"$f":"IF(ISBLANK('Kenya 2011'!$D$15),\"\",'Kenya 2011'!$D$15)","v":"Yes"},{"$f":"IF(ISBLANK('Kenya 2011'!$F$15),\"\",'Kenya 2011'!$F$15)","v":"Population Services International"},{"$f":"IF(ISBLANK('Kenya 2011'!$D$16),\"\",'Kenya 2011'!$D$16)","v":"Yes"},{"$f":"IF(ISBLANK('Kenya 2011'!$F$16),\"\",'Kenya 2011'!$F$16)","v":"Marie Stopes Kenya, Family Health Options Kenya (FHOK)"},{"$f":"IF(ISBLANK('Kenya 2011'!$D$17),\"\",'Kenya 2011'!$D$17)","v":"No"},{"$f":"IF(ISBLANK('Kenya 2011'!$F$17),\"\",'Kenya 2011'!$F$17)","v":""},{"$f":"IF(ISBLANK('Kenya 2011'!$D$18),\"\",'Kenya 2011'!$D$18)","v":"Yes"},{"$f":"IF(ISBLANK('Kenya 2011'!$F$18),\"\",'Kenya 2011'!$F$18)","v":"USAID, KfW, DFID, World Bank"},{"$f":"IF(ISBLANK('Kenya 2011'!$D$19),\"\",'Kenya 2011'!$D$19)","v":"Yes"},{"$f":"IF(ISBLANK('Kenya 2011'!$F$19),\"\",'Kenya 2011'!$F$19)","v":"UNFPA"},{"$f":"IF(ISBLANK('Kenya 2011'!$D$20),\"\",'Kenya 2011'!$D$20)","v":"Yes"},{"$f":"IF(ISBLANK('Kenya 2011'!$F$20),\"\",'Kenya 2011'!$F$20)","v":"Division of Reproductive Health (DRH), Family Planning Program"},{"$f":"IF(ISBLANK('Kenya 2011'!$D$21),\"\",'Kenya 2011'!$D$21)","v":"Yes"},{"$f":"IF(ISBLANK('Kenya 2011'!$F$21),\"\",'Kenya 2011'!$F$21)","v":"Kenya Medical Supplies Agency"},{"$f":"IF(ISBLANK('Kenya 2011'!$D$22),\"\",'Kenya 2011'!$D$22)","v":"No"},{"$f":"IF(ISBLANK('Kenya 2011'!$F$22),\"\",'Kenya 2011'!$F$22)","v":""},{"$f":"IF(ISBLANK('Kenya 2011'!$D$23),\"\",'Kenya 2011'!$D$23)","v":""},{"$f":"IF(ISBLANK('Kenya 2011'!$F$23),\"\",'Kenya 2011'!$F$23)","v":"Management Sciences for Health (MSH), John Snow Inc. (JSI)"},{"$f":"IF(ISBLANK('Kenya 2011'!$H$24),\"\",'Kenya 2011'!$H$24)","v":"1-2 times"},{"$f":"IF(ISBLANK('Kenya 2011'!$H$25),\"\",'Kenya 2011'!$H$25)","v":"No"},{"$f":"IF(ISBLANK('Kenya 2011'!$D$26),\"\",'Kenya 2011'!$D$26)","v":"Yes"},{"$f":"IF(ISBLANK('Kenya 2011'!$F$26),\"\",'Kenya 2011'!$F$26)","v":"Ministry of Public Health and Sanitation"},{"$f":"IF(ISBLANK('Kenya 2011'!$H$26),\"\",'Kenya 2011'!$H$26)","v":"Director of Public Health and Sanitation"},null,{"$f":"IF(ISBLANK('Kenya 2011'!$F$28),\"\",'Kenya 2011'!$F$28)","v":"July"},{"$f":"IF(ISBLANK('Kenya 2011'!$H$28),\"\",'Kenya 2011'!$H$28)","v":"June"},{"$f":"IF(ISBLANK('Kenya 2011'!$G$29),\"\",'Kenya 2011'!$G$29)","v":16279427.720000001},{"$f":"IF(ISBLANK('Kenya 2011'!$E$30),\"\",'Kenya 2011'!$E$30)","v":"06/10"},{"$f":"IF(ISBLANK('Kenya 2011'!$G$30),\"\",'Kenya 2011'!$G$30)","v":"Division of Reproductive Health with TA from Management Sciences for Health/Strengthening Pharmaceutical Systems"},{"$f":"IF(ISBLANK('Kenya 2011'!$H$31),\"\",'Kenya 2011'!$H$31)","v":"Yes"},{"$f":"IF(ISBLANK('Kenya 2011'!$H$32),\"\",'Kenya 2011'!$H$32)","v":"Yes"},{"$f":"IF(ISBLANK('Kenya 2011'!$E$35),\"\",'Kenya 2011'!$E$35)","v":6883117},{"$f":"IF(ISBLANK('Kenya 2011'!$F$35),\"\",'Kenya 2011'!$F$35)","v":"07/09-06/10"},{"$f":"IF(ISBLANK('Kenya 2011'!$G$35),\"\",'Kenya 2011'!$G$35)","v":"Ministry Records"},{"$f":"IF(ISBLANK('Kenya 2011'!$H$35),\"\",'Kenya 2011'!$H$35)","v":"The GoK allocation was Ksh. 530 million. We used the exchange rate as of July 2009 (1 USD = KES 77)"},{"$f":"IF(ISBLANK('Kenya 2011'!$H$37),\"\",'Kenya 2011'!$H$37)","v":"Yes"},{"$f":"IF(ISBLANK('Kenya 2011'!$D$40),\"\",'Kenya 2011'!$D$40)","v":"Yes"},{"$f":"IF(ISBLANK('Kenya 2011'!$D$41),\"\",'Kenya 2011'!$D$41)","v":"Taxes"},{"$f":"IF(ISBLANK('Kenya 2011'!$E$40),\"\",'Kenya 2011'!$E$40)","v":4478168},{"$f":"IF(ISBLANK('Kenya 2011'!$F$40),\"\",'Kenya 2011'!$F$40)","v":"07/09-06/10"},{"$f":"IF(ISBLANK('Kenya 2011'!$G$40),\"\",'Kenya 2011'!$G$40)","v":"estimate based on prices from the RHI and procurements from fiscal year funds"},{"$f":"IF(ISBLANK('Kenya 2011'!$H$40),\"\",'Kenya 2011'!$H$40)","v":""},{"$f":"IF(ISBLANK('Kenya 2011'!$D$42),\"\",'Kenya 2011'!$D$42)","v":"Yes"},{"$f":"IF(ISBLANK('Kenya 2011'!$D$43),\"\",'Kenya 2011'!$D$43)","v":"Total War Against HIV and AIDS (TOWA) funding from the World Bank"},{"$f":"IF(ISBLANK('Kenya 2011'!$E$42),\"\",'Kenya 2011'!$E$42)","v":629918},{"$f":"IF(ISBLANK('Kenya 2011'!$F$42),\"\",'Kenya 2011'!$F$42)","v":"07/09-06/10"},{"$f":"IF(ISBLANK('Kenya 2011'!$G$42),\"\",'Kenya 2011'!$G$42)","v":"RHInterchange"},{"$f":"IF(ISBLANK('Kenya 2011'!$H$42),\"\",'Kenya 2011'!$H$42)","v":""},{"$f":"IF(ISBLANK('Kenya 2011'!$E$44),\"\",'Kenya 2011'!$E$44)","v":5108086},{"$f":"IF(ISBLANK('Kenya 2011'!$H$44),\"\",'Kenya 2011'!$H$44)","v":""},null,{"$f":"IF(ISBLANK('Kenya 2011'!$D$48),\"\",'Kenya 2011'!$D$48)","v":"Yes"},{"$f":"IF(ISBLANK('Kenya 2011'!$D$49),\"\",'Kenya 2011'!$D$49)","v":"Donations from UNFPA and USAID"},{"$f":"IF(ISBLANK('Kenya 2011'!$E$48),\"\",'Kenya 2011'!$E$48)","v":7213274},{"$f":"IF(ISBLANK('Kenya 2011'!$F$48),\"\",'Kenya 2011'!$F$48)","v":"07/09-06/10"},{"$f":"IF(ISBLANK('Kenya 2011'!$G$48),\"\",'Kenya 2011'!$G$48)","v":"RHInterchange"},{"$f":"IF(ISBLANK('Kenya 2011'!$H$48),\"\",'Kenya 2011'!$H$48)","v":""},{"$f":"IF(ISBLANK('Kenya 2011'!$D$50),\"\",'Kenya 2011'!$D$50)","v":"Yes"},{"$f":"IF(ISBLANK('Kenya 2011'!$E$50),\"\",'Kenya 2011'!$E$50)","v":606300},{"$f":"IF(ISBLANK('Kenya 2011'!$F$50),\"\",'Kenya 2011'!$F$50)","v":"07/09-06/10"},{"$f":"IF(ISBLANK('Kenya 2011'!$G$50),\"\",'Kenya 2011'!$G$50)","v":"RHInterchange"},{"$f":"IF(ISBLANK('Kenya 2011'!$H$50),\"\",'Kenya 2011'!$H$50)","v":"recipient = National AIDS and STI Control Program"},{"$f":"IF(ISBLANK('Kenya 2011'!$D$51),\"\",'Kenya 2011'!$D$51)","v":"No"},{"$f":"IF(ISBLANK('Kenya 2011'!$E$51),\"\",'Kenya 2011'!$E$51)","v":0},{"$f":"IF(ISBLANK('Kenya 2011'!$F$51),\"\",'Kenya 2011'!$F$51)","v":"07/09-06/10"},{"$f":"IF(ISBLANK('Kenya 2011'!$G$51),\"\",'Kenya 2011'!$G$51)","v":""},{"$f":"IF(ISBLANK('Kenya 2011'!$H$51),\"\",'Kenya 2011'!$H$51)","v":""},{"$f":"IF(ISBLANK('Kenya 2011'!$E$52),\"\",'Kenya 2011'!$E$52)","v":7819574},{"$f":"IF(ISBLANK('Kenya 2011'!$H$52),\"\",'Kenya 2011'!$H$52)","v":""},{"$f":"IF(ISBLANK('Kenya 2011'!$F$55),\"\",'Kenya 2011'!$F$55)","v":0.39512843004843878},{"$f":"IF(ISBLANK('Kenya 2011'!$G$55),\"\",'Kenya 2011'!$G$55)","v":""},{"$f":"IF(ISBLANK('Kenya 2011'!$F$56),\"\",'Kenya 2011'!$F$56)","v":0.79411022441027179},{"$f":"IF(ISBLANK('Kenya 2011'!$G$56),\"\",'Kenya 2011'!$G$56)","v":"Commitments for procurement of contraceptives for FY 2009/10 by GoK and donors fully covered the quantified amount, but different lead times of different procuring agencies caused the delivery of commodities to spill over to FY 2010/11. In addition, KfW-funded commodities were procured after June 2010 (end of financial year). "},{"$f":"IF(ISBLANK('Kenya 2011'!$F$57),\"\",'Kenya 2011'!$F$57)","v":""},{"$f":"IF(ISBLANK('Kenya 2011'!$G$57),\"\",'Kenya 2011'!$G$57)","v":""},{"$f":"IF(ISBLANK('Kenya 2011'!$F$59),\"\",'Kenya 2011'!$F$59)","v":"The government (e.g., Central Medical Stores, MOH logistics unit, MOH procurement unit)"},{"$f":"IF(ISBLANK('Kenya 2011'!$F$60),\"\",'Kenya 2011'!$F$60)","v":"Kenya Medical Supplies Agency"},{"$f":"IF(ISBLANK('Kenya 2011'!$F$61),\"\",'Kenya 2011'!$F$61)","v":"Yes"},{"$f":"IF(ISBLANK('Kenya 2011'!$D$62),\"\",'Kenya 2011'!$D$62)","v":""},null,null,{"$f":"IF(ISBLANK('Kenya 2011'!$D$66),\"\",'Kenya 2011'!$D$66)","v":"Yes"},{"$f":"IF(ISBLANK('Kenya 2011'!$D$67),\"\",'Kenya 2011'!$D$67)","v":"Yes"},{"$f":"IF(ISBLANK('Kenya 2011'!$D$68),\"\",'Kenya 2011'!$D$68)","v":"Yes"},{"$f":"IF(ISBLANK('Kenya 2011'!$D$69),\"\",'Kenya 2011'!$D$69)","v":"Yes"},{"$f":"IF(ISBLANK('Kenya 2011'!$D$70),\"\",'Kenya 2011'!$D$70)","v":"Yes"},{"$f":"IF(ISBLANK('Kenya 2011'!$D$71),\"\",'Kenya 2011'!$D$71)","v":"Yes"},{"$f":"IF(ISBLANK('Kenya 2011'!$D$72),\"\",'Kenya 2011'!$D$72)","v":"Yes"},{"$f":"IF(ISBLANK('Kenya 2011'!$D$73),\"\",'Kenya 2011'!$D$73)","v":"Yes"},{"$f":"IF(ISBLANK('Kenya 2011'!$D$74),\"\",'Kenya 2011'!$D$74)","v":"Yes"},{"$f":"IF(ISBLANK('Kenya 2011'!$D$75),\"\",'Kenya 2011'!$D$75)","v":"Yes"},{"$f":"IF(ISBLANK('Kenya 2011'!$D$76),\"\",'Kenya 2011'!$D$76)","v":"No"},{"$f":"IF(ISBLANK('Kenya 2011'!$D$77),\"\",'Kenya 2011'!$D$77)","v":"Foaming Tablets"},null,{"$f":"IF(ISBLANK('Kenya 2011'!$F$66),\"\",'Kenya 2011'!$F$66)","v":"Yes"},{"$f":"IF(ISBLANK('Kenya 2011'!$F$67),\"\",'Kenya 2011'!$F$67)","v":"Yes"},{"$f":"IF(ISBLANK('Kenya 2011'!$F$68),\"\",'Kenya 2011'!$F$68)","v":"Yes"},{"$f":"IF(ISBLANK('Kenya 2011'!$F$69),\"\",'Kenya 2011'!$F$69)","v":"Yes"},{"$f":"IF(ISBLANK('Kenya 2011'!$F$70),\"\",'Kenya 2011'!$F$70)","v":"Yes"},{"$f":"IF(ISBLANK('Kenya 2011'!$F$71),\"\",'Kenya 2011'!$F$71)","v":"Yes"},{"$f":"IF(ISBLANK('Kenya 2011'!$F$72),\"\",'Kenya 2011'!$F$72)","v":"Yes"},{"$f":"IF(ISBLANK('Kenya 2011'!$F$73),\"\",'Kenya 2011'!$F$73)","v":"Yes"},{"$f":"IF(ISBLANK('Kenya 2011'!$F$74),\"\",'Kenya 2011'!$F$74)","v":"Yes"},{"$f":"IF(ISBLANK('Kenya 2011'!$F$75),\"\",'Kenya 2011'!$F$75)","v":"Yes"},{"$f":"IF(ISBLANK('Kenya 2011'!$F$76),\"\",'Kenya 2011'!$F$76)","v":"Yes"},{"$f":"IF(ISBLANK('Kenya 2011'!$F$77),\"\",'Kenya 2011'!$F$77)","v":""},null,{"$f":"IF(ISBLANK('Kenya 2011'!$G$66),\"\",'Kenya 2011'!$G$66)","v":"Yes"},{"$f":"IF(ISBLANK('Kenya 2011'!$G$67),\"\",'Kenya 2011'!$G$67)","v":"Yes"},{"$f":"IF(ISBLANK('Kenya 2011'!$G$68),\"\",'Kenya 2011'!$G$68)","v":"Yes"},{"$f":"IF(ISBLANK('Kenya 2011'!$G$69),\"\",'Kenya 2011'!$G$69)","v":"Yes"},{"$f":"IF(ISBLANK('Kenya 2011'!$G$70),\"\",'Kenya 2011'!$G$70)","v":"Yes"},{"$f":"IF(ISBLANK('Kenya 2011'!$G$71),\"\",'Kenya 2011'!$G$71)","v":"Yes"},{"$f":"IF(ISBLANK('Kenya 2011'!$G$72),\"\",'Kenya 2011'!$G$72)","v":"Yes"},{"$f":"IF(ISBLANK('Kenya 2011'!$G$73),\"\",'Kenya 2011'!$G$73)","v":"Yes"},{"$f":"IF(ISBLANK('Kenya 2011'!$G$74),\"\",'Kenya 2011'!$G$74)","v":"Yes"},{"$f":"IF(ISBLANK('Kenya 2011'!$G$75),\"\",'Kenya 2011'!$G$75)","v":"Yes"},{"$f":"IF(ISBLANK('Kenya 2011'!$G$76),\"\",'Kenya 2011'!$G$76)","v":"No"},{"$f":"IF(ISBLANK('Kenya 2011'!$G$77),\"\",'Kenya 2011'!$G$77)","v":"Foaming Tablets"},null,{"$f":"IF(ISBLANK('Kenya 2011'!$H$66),\"\",'Kenya 2011'!$H$66)","v":"Yes"},{"$f":"IF(ISBLANK('Kenya 2011'!$H$67),\"\",'Kenya 2011'!$H$67)","v":"No"},{"$f":"IF(ISBLANK('Kenya 2011'!$H$68),\"\",'Kenya 2011'!$H$68)","v":"Yes"},{"$f":"IF(ISBLANK('Kenya 2011'!$H$69),\"\",'Kenya 2011'!$H$69)","v":"Yes"},{"$f":"IF(ISBLANK('Kenya 2011'!$H$70),\"\",'Kenya 2011'!$H$70)","v":"Yes"},{"$f":"IF(ISBLANK('Kenya 2011'!$H$71),\"\",'Kenya 2011'!$H$71)","v":"Yes"},{"$f":"IF(ISBLANK('Kenya 2011'!$H$72),\"\",'Kenya 2011'!$H$72)","v":"Yes"},{"$f":"IF(ISBLANK('Kenya 2011'!$H$73),\"\",'Kenya 2011'!$H$73)","v":"Yes"},{"$f":"IF(ISBLANK('Kenya 2011'!$H$74),\"\",'Kenya 2011'!$H$74)","v":"Yes"},{"$f":"IF(ISBLANK('Kenya 2011'!$H$75),\"\",'Kenya 2011'!$H$75)","v":"Yes"},{"$f":"IF(ISBLANK('Kenya 2011'!$H$76),\"\",'Kenya 2011'!$H$76)","v":"No"},{"$f":"IF(ISBLANK('Kenya 2011'!$H$77),\"\",'Kenya 2011'!$H$77)","v":""},{"$f":"IF(ISBLANK('Kenya 2011'!$D$78),\"\",'Kenya 2011'!$D$78)","v":""},null,{"$f":"IF(ISBLANK('Kenya 2011'!$H$80),\"\",'Kenya 2011'!$H$80)","v":"Yes"},{"$f":"IF(ISBLANK('Kenya 2011'!$C$83),\"\",'Kenya 2011'!$C$83)","v":"National Contraceptives Commodity Security Strategy"},{"$f":"IF(ISBLANK('Kenya 2011'!$D$83),\"\",'Kenya 2011'!$D$83)","v":"2007 - 2012"},{"$f":"IF(ISBLANK('Kenya 2011'!$F$83),\"\",'Kenya 2011'!$F$83)","v":"Yes"},{"$f":"IF(ISBLANK('Kenya 2011'!$G$83),\"\",'Kenya 2011'!$G$83)","v":"Yes"},{"$f":"IF(ISBLANK('Kenya 2011'!$F$84),\"\",'Kenya 2011'!$F$84)","v":"Yes"},{"$f":"IF(ISBLANK('Kenya 2011'!$E$85),\"\",'Kenya 2011'!$E$85)","v":"Public sector"},{"$f":"IF(ISBLANK('Kenya 2011'!$E$86),\"\",'Kenya 2011'!$E$86)","v":"UNFPA pays 5% of the commodity cost to KEMSA for handling, warehousing and distribution. Apart from the 5% all contraceptives are zero rated and no import tax or duty is charged for them."},{"$f":"IF(ISBLANK('Kenya 2011'!$H$87),\"\",'Kenya 2011'!$H$87)","v":"No"},{"$f":"IF(ISBLANK('Kenya 2011'!$D$88),\"\",'Kenya 2011'!$D$88)","v":"N/A"},{"$f":"IF(ISBLANK('Kenya 2011'!$H$89),\"\",'Kenya 2011'!$H$89)","v":"Yes"},{"$f":"IF(ISBLANK('Kenya 2011'!$D$90),\"\",'Kenya 2011'!$D$90)","v":"Private sector and NGOs can access contraceptive methods available for the public sector as long as they can get a Service Delivery Point (SDP) number from the Division of Reproductive Health. (In order to get this they need an application letter to the Division of Reproductive Health, an inspection report from the Provincial Medical Officer, a professional certificate of the service provider, and a private practice license.)"},{"$f":"IF(ISBLANK('Kenya 2011'!$H$91),\"\",'Kenya 2011'!$H$91)","v":"Yes"},{"$f":"IF(ISBLANK('Kenya 2011'!$C$94),\"\",'Kenya 2011'!$C$94)","v":"Progestin-only pills, combined oral contraceptives, DMPA injections, emergency contraceptive pills, implants, and IUCDs"},{"$f":"IF(ISBLANK('Kenya 2011'!$E$94),\"\",'Kenya 2011'!$E$94)","v":"All facility levels are allowed to dispense these methods as long as there are skilled health workers"},{"$f":"IF(ISBLANK('Kenya 2011'!$G$94),\"\",'Kenya 2011'!$G$94)","v":"Only registered pharmacies, clinics, nursing homes and hospitals are allowed to sell or dispense these methods"},{"$f":"IF(ISBLANK('Kenya 2011'!$C$95),\"\",'Kenya 2011'!$C$95)","v":""},{"$f":"IF(ISBLANK('Kenya 2011'!$E$95),\"\",'Kenya 2011'!$E$95)","v":""},{"$f":"IF(ISBLANK('Kenya 2011'!$G$95),\"\",'Kenya 2011'!$G$95)","v":""},{"$f":"IF(ISBLANK('Kenya 2011'!$C$96),\"\",'Kenya 2011'!$C$96)","v":""},{"$f":"IF(ISBLANK('Kenya 2011'!$E$96),\"\",'Kenya 2011'!$E$96)","v":""},{"$f":"IF(ISBLANK('Kenya 2011'!$G$96),\"\",'Kenya 2011'!$G$96)","v":""},null,{"$f":"IF(ISBLANK('Kenya 2011'!$D$99),\"\",'Kenya 2011'!$D$99)","v":"No"},{"$f":"IF(ISBLANK('Kenya 2011'!$E$99),\"\",'Kenya 2011'!$E$99)","v":""},{"$f":"IF(ISBLANK('Kenya 2011'!$H$99),\"\",'Kenya 2011'!$H$99)","v":""},{"$f":"IF(ISBLANK('Kenya 2011'!$D$100),\"\",'Kenya 2011'!$D$100)","v":"No"},{"$f":"IF(ISBLANK('Kenya 2011'!$E$100),\"\",'Kenya 2011'!$E$100)","v":""},{"$f":"IF(ISBLANK('Kenya 2011'!$H$100),\"\",'Kenya 2011'!$H$100)","v":""},{"$f":"IF(ISBLANK('Kenya 2011'!$D$101),\"\",'Kenya 2011'!$D$101)","v":"No"},{"$f":"IF(ISBLANK('Kenya 2011'!$E$101),\"\",'Kenya 2011'!$E$101)","v":""},{"$f":"IF(ISBLANK('Kenya 2011'!$H$101),\"\",'Kenya 2011'!$H$101)","v":""},null,{"$f":"IF(ISBLANK('Kenya 2011'!$G$104),\"\",'Kenya 2011'!$G$104)","v":"No"},{"$f":"IF(ISBLANK('Kenya 2011'!$G$105),\"\",'Kenya 2011'!$G$105)","v":"No"},{"$f":"IF(ISBLANK('Kenya 2011'!$G$106),\"\",'Kenya 2011'!$G$106)","v":"N/A"},{"$f":"IF(ISBLANK('Kenya 2011'!$D$107),\"\",'Kenya 2011'!$D$107)","v":"N/A"},null,{"$f":"IF(ISBLANK('Kenya 2011'!$G$109),\"\",'Kenya 2011'!$G$109)","v":"Yes"},{"$f":"IF(ISBLANK('Kenya 2011'!$G$110),\"\",'Kenya 2011'!$G$110)","v":"No"},{"$f":"IF(ISBLANK('Kenya 2011'!$G$111),\"\",'Kenya 2011'!$G$111)","v":"Yes"},{"$f":"IF(ISBLANK('Kenya 2011'!$G$112),\"\",'Kenya 2011'!$G$112)","v":"Yes"},{"$f":"IF(ISBLANK('Kenya 2011'!$G$113),\"\",'Kenya 2011'!$G$113)","v":"Yes"},{"$f":"IF(ISBLANK('Kenya 2011'!$G$114),\"\",'Kenya 2011'!$G$114)","v":"Yes"},{"$f":"IF(ISBLANK('Kenya 2011'!$G$115),\"\",'Kenya 2011'!$G$115)","v":"Yes"},{"$f":"IF(ISBLANK('Kenya 2011'!$G$116),\"\",'Kenya 2011'!$G$116)","v":"Yes"},{"$f":"IF(ISBLANK('Kenya 2011'!$G$117),\"\",'Kenya 2011'!$G$117)","v":"No"},{"$f":"IF(ISBLANK('Kenya 2011'!$G$118),\"\",'Kenya 2011'!$G$118)","v":"No"},{"$f":"IF(ISBLANK('Kenya 2011'!$F$119),\"\",'Kenya 2011'!$F$119)","v":"N/A"},{"$f":"IF(ISBLANK('Kenya 2011'!$F$120),\"\",'Kenya 2011'!$F$120)","v":2010},{"$f":"IF(ISBLANK('Kenya 2011'!$D$121),\"\",'Kenya 2011'!$D$121)","v":"Kenya Essential Medicines List 2010"},{"$f":"IF(ISBLANK('Kenya 2011'!$D$122),\"\",'Kenya 2011'!$D$122)","v":""},null,{"$f":"IF(ISBLANK('Kenya 2011'!$F$124),\"\",'Kenya 2011'!$F$124)","v":2005},{"$f":"IF(ISBLANK('Kenya 2011'!$G$125),\"\",'Kenya 2011'!$G$125)","v":"No"},{"$f":"IF(ISBLANK('Kenya 2011'!$G$126),\"\",'Kenya 2011'!$G$126)","v":"No"},{"$f":"IF(ISBLANK('Kenya 2011'!$G$127),\"\",'Kenya 2011'!$G$127)","v":"Yes"},{"$f":"IF(ISBLANK('Kenya 2011'!$G$128),\"\",'Kenya 2011'!$G$128)","v":"No"},{"$f":"IF(ISBLANK('Kenya 2011'!$D$129),\"\",'Kenya 2011'!$D$129)","v":" Document noted: \"Contraceptive prevalence rate increases from 38% to 45% in 2008.\""},null,{"$f":"IF(ISBLANK('Kenya 2011'!$G$131),\"\",'Kenya 2011'!$G$131)","v":"Yes"},null,{"$f":"IF(ISBLANK('Kenya 2011'!$G$133),\"\",'Kenya 2011'!$G$133)","v":"No"},{"$f":"IF(ISBLANK('Kenya 2011'!$G$134),\"\",'Kenya 2011'!$G$134)","v":"No"},{"$f":"IF(ISBLANK('Kenya 2011'!$G$135),\"\",'Kenya 2011'!$G$135)","v":"No"},{"$f":"IF(ISBLANK('Kenya 2011'!$G$136),\"\",'Kenya 2011'!$G$136)","v":"Yes"},{"$f":"IF(ISBLANK('Kenya 2011'!$G$137),\"\",'Kenya 2011'!$G$137)","v":"Yes"},{"$f":"IF(ISBLANK('Kenya 2011'!$G$138),\"\",'Kenya 2011'!$G$138)","v":"Yes"},{"$f":"IF(ISBLANK('Kenya 2011'!$G$139),\"\",'Kenya 2011'!$G$139)","v":"Yes"},{"$f":"IF(ISBLANK('Kenya 2011'!$G$140),\"\",'Kenya 2011'!$G$140)","v":"No"},{"$f":"IF(ISBLANK('Kenya 2011'!$G$141),\"\",'Kenya 2011'!$G$141)","v":"Yes"},{"$f":"IF(ISBLANK('Kenya 2011'!$F$142),\"\",'Kenya 2011'!$F$142)","v":"02/10-01/11"},{"$f":"IF(ISBLANK('Kenya 2011'!$F$143),\"\",'Kenya 2011'!$F$143)","v":"KEMSA Monthly Stock Report"},null,{"$f":"IF(ISBLANK('Kenya 2011'!$G$145),\"\",'Kenya 2011'!$G$145)","v":"Yes"},{"$f":"IF(ISBLANK('Kenya 2011'!$G$146),\"\",'Kenya 2011'!$G$146)","v":"No"},{"$f":"IF(ISBLANK('Kenya 2011'!$D$147),\"\",'Kenya 2011'!$D$147)","v":"At the SDP level the main challenge is the distribution system. This issue is being addressed by: shifting all distribution to KEMSA, monthly FP commodity supply chain meetings, and district-specific kit lists for \"push\" regions. At the central level, only female condoms and IUCDs have been stocked out for more than 6 months. Male condoms and implants have been stocked out for a maximum of 2 months."},"Africa"]
["Liberia ",null,{"$f":"IF(ISBLANK('Liberia 2011'!$H$12),\"\",'Liberia 2011'!$H$12)","v":"Yes"},{"$f":"IF(ISBLANK('Liberia 2011'!$D$13),\"\",'Liberia 2011'!$D$13)","v":"National Reproductive Health Security Committee"},null,{"$f":"IF(ISBLANK('Liberia 2011'!$D$15),\"\",'Liberia 2011'!$D$15)","v":"No"},{"$f":"IF(ISBLANK('Liberia 2011'!$F$15),\"\",'Liberia 2011'!$F$15)","v":""},{"$f":"IF(ISBLANK('Liberia 2011'!$D$16),\"\",'Liberia 2011'!$D$16)","v":"Yes"},{"$f":"IF(ISBLANK('Liberia 2011'!$F$16),\"\",'Liberia 2011'!$F$16)","v":"Merline, Africare, IRC"},{"$f":"IF(ISBLANK('Liberia 2011'!$D$17),\"\",'Liberia 2011'!$D$17)","v":"No"},{"$f":"IF(ISBLANK('Liberia 2011'!$F$17),\"\",'Liberia 2011'!$F$17)","v":""},{"$f":"IF(ISBLANK('Liberia 2011'!$D$18),\"\",'Liberia 2011'!$D$18)","v":"Yes"},{"$f":"IF(ISBLANK('Liberia 2011'!$F$18),\"\",'Liberia 2011'!$F$18)","v":"USAID"},{"$f":"IF(ISBLANK('Liberia 2011'!$D$19),\"\",'Liberia 2011'!$D$19)","v":"Yes"},{"$f":"IF(ISBLANK('Liberia 2011'!$F$19),\"\",'Liberia 2011'!$F$19)","v":"UNFPA"},{"$f":"IF(ISBLANK('Liberia 2011'!$D$20),\"\",'Liberia 2011'!$D$20)","v":"Yes"},{"$f":"IF(ISBLANK('Liberia 2011'!$F$20),\"\",'Liberia 2011'!$F$20)","v":"Supply Chain Management Unit, Family Health Division (FHD)"},{"$f":"IF(ISBLANK('Liberia 2011'!$D$21),\"\",'Liberia 2011'!$D$21)","v":"No"},{"$f":"IF(ISBLANK('Liberia 2011'!$F$21),\"\",'Liberia 2011'!$F$21)","v":""},{"$f":"IF(ISBLANK('Liberia 2011'!$D$22),\"\",'Liberia 2011'!$D$22)","v":"No"},{"$f":"IF(ISBLANK('Liberia 2011'!$F$22),\"\",'Liberia 2011'!$F$22)","v":""},{"$f":"IF(ISBLANK('Liberia 2011'!$D$23),\"\",'Liberia 2011'!$D$23)","v":"No"},{"$f":"IF(ISBLANK('Liberia 2011'!$F$23),\"\",'Liberia 2011'!$F$23)","v":""},{"$f":"IF(ISBLANK('Liberia 2011'!$H$24),\"\",'Liberia 2011'!$H$24)","v":"1-2 times"},{"$f":"IF(ISBLANK('Liberia 2011'!$H$25),\"\",'Liberia 2011'!$H$25)","v":"No"},{"$f":"IF(ISBLANK('Liberia 2011'!$D$26),\"\",'Liberia 2011'!$D$26)","v":"Yes"},{"$f":"IF(ISBLANK('Liberia 2011'!$F$26),\"\",'Liberia 2011'!$F$26)","v":"UNFPA"},{"$f":"IF(ISBLANK('Liberia 2011'!$H$26),\"\",'Liberia 2011'!$H$26)","v":"CS Focus Person seconded to the FHD/MOH"},null,{"$f":"IF(ISBLANK('Liberia 2011'!$F$28),\"\",'Liberia 2011'!$F$28)","v":"July"},{"$f":"IF(ISBLANK('Liberia 2011'!$H$28),\"\",'Liberia 2011'!$H$28)","v":"June"},{"$f":"IF(ISBLANK('Liberia 2011'!$G$29),\"\",'Liberia 2011'!$G$29)","v":494137},{"$f":"IF(ISBLANK('Liberia 2011'!$E$30),\"\",'Liberia 2011'!$E$30)","v":"10/10"},{"$f":"IF(ISBLANK('Liberia 2011'!$G$30),\"\",'Liberia 2011'!$G$30)","v":"USAID | DELIVER PROJECT"},{"$f":"IF(ISBLANK('Liberia 2011'!$H$31),\"\",'Liberia 2011'!$H$31)","v":"No"},{"$f":"IF(ISBLANK('Liberia 2011'!$H$32),\"\",'Liberia 2011'!$H$32)","v":"Don't know"},{"$f":"IF(ISBLANK('Liberia 2011'!$E$35),\"\",'Liberia 2011'!$E$35)","v":"Don't know"},{"$f":"IF(ISBLANK('Liberia 2011'!$F$35),\"\",'Liberia 2011'!$F$35)","v":"07/09-06/10"},{"$f":"IF(ISBLANK('Liberia 2011'!$G$35),\"\",'Liberia 2011'!$G$35)","v":""},{"$f":"IF(ISBLANK('Liberia 2011'!$H$35),\"\",'Liberia 2011'!$H$35)","v":""},{"$f":"IF(ISBLANK('Liberia 2011'!$H$37),\"\",'Liberia 2011'!$H$37)","v":"No"},{"$f":"IF(ISBLANK('Liberia 2011'!$D$40),\"\",'Liberia 2011'!$D$40)","v":"No"},{"$f":"IF(ISBLANK('Liberia 2011'!$D$41),\"\",'Liberia 2011'!$D$41)","v":"N/A"},{"$f":"IF(ISBLANK('Liberia 2011'!$E$40),\"\",'Liberia 2011'!$E$40)","v":0},{"$f":"IF(ISBLANK('Liberia 2011'!$F$40),\"\",'Liberia 2011'!$F$40)","v":"07/09-06/10"},{"$f":"IF(ISBLANK('Liberia 2011'!$G$40),\"\",'Liberia 2011'!$G$40)","v":""},{"$f":"IF(ISBLANK('Liberia 2011'!$H$40),\"\",'Liberia 2011'!$H$40)","v":""},{"$f":"IF(ISBLANK('Liberia 2011'!$D$42),\"\",'Liberia 2011'!$D$42)","v":"No"},{"$f":"IF(ISBLANK('Liberia 2011'!$D$43),\"\",'Liberia 2011'!$D$43)","v":"N/A"},{"$f":"IF(ISBLANK('Liberia 2011'!$E$42),\"\",'Liberia 2011'!$E$42)","v":0},{"$f":"IF(ISBLANK('Liberia 2011'!$F$42),\"\",'Liberia 2011'!$F$42)","v":"07/09-06/10"},{"$f":"IF(ISBLANK('Liberia 2011'!$G$42),\"\",'Liberia 2011'!$G$42)","v":""},{"$f":"IF(ISBLANK('Liberia 2011'!$H$42),\"\",'Liberia 2011'!$H$42)","v":""},{"$f":"IF(ISBLANK('Liberia 2011'!$E$44),\"\",'Liberia 2011'!$E$44)","v":0},{"$f":"IF(ISBLANK('Liberia 2011'!$H$44),\"\",'Liberia 2011'!$H$44)","v":""},null,{"$f":"IF(ISBLANK('Liberia 2011'!$D$48),\"\",'Liberia 2011'!$D$48)","v":"Yes"},{"$f":"IF(ISBLANK('Liberia 2011'!$D$49),\"\",'Liberia 2011'!$D$49)","v":"USAID ($383,864) & UNFPA ($414, 323)"},{"$f":"IF(ISBLANK('Liberia 2011'!$E$48),\"\",'Liberia 2011'!$E$48)","v":798187},{"$f":"IF(ISBLANK('Liberia 2011'!$F$48),\"\",'Liberia 2011'!$F$48)","v":"07/09-06/10"},{"$f":"IF(ISBLANK('Liberia 2011'!$G$48),\"\",'Liberia 2011'!$G$48)","v":"RHInterchange"},{"$f":"IF(ISBLANK('Liberia 2011'!$H$48),\"\",'Liberia 2011'!$H$48)","v":""},{"$f":"IF(ISBLANK('Liberia 2011'!$D$50),\"\",'Liberia 2011'!$D$50)","v":"No"},{"$f":"IF(ISBLANK('Liberia 2011'!$E$50),\"\",'Liberia 2011'!$E$50)","v":0},{"$f":"IF(ISBLANK('Liberia 2011'!$F$50),\"\",'Liberia 2011'!$F$50)","v":"07/09-06/10"},{"$f":"IF(ISBLANK('Liberia 2011'!$G$50),\"\",'Liberia 2011'!$G$50)","v":"RHInterchange"},{"$f":"IF(ISBLANK('Liberia 2011'!$H$50),\"\",'Liberia 2011'!$H$50)","v":""},{"$f":"IF(ISBLANK('Liberia 2011'!$D$51),\"\",'Liberia 2011'!$D$51)","v":"No"},{"$f":"IF(ISBLANK('Liberia 2011'!$E$51),\"\",'Liberia 2011'!$E$51)","v":0},{"$f":"IF(ISBLANK('Liberia 2011'!$F$51),\"\",'Liberia 2011'!$F$51)","v":"07/09-06/10"},{"$f":"IF(ISBLANK('Liberia 2011'!$G$51),\"\",'Liberia 2011'!$G$51)","v":"RHInterchange"},{"$f":"IF(ISBLANK('Liberia 2011'!$H$51),\"\",'Liberia 2011'!$H$51)","v":""},{"$f":"IF(ISBLANK('Liberia 2011'!$E$52),\"\",'Liberia 2011'!$E$52)","v":798187},{"$f":"IF(ISBLANK('Liberia 2011'!$H$52),\"\",'Liberia 2011'!$H$52)","v":""},{"$f":"IF(ISBLANK('Liberia 2011'!$F$55),\"\",'Liberia 2011'!$F$55)","v":0},{"$f":"IF(ISBLANK('Liberia 2011'!$G$55),\"\",'Liberia 2011'!$G$55)","v":""},{"$f":"IF(ISBLANK('Liberia 2011'!$F$56),\"\",'Liberia 2011'!$F$56)","v":1.6153151858695058},{"$f":"IF(ISBLANK('Liberia 2011'!$G$56),\"\",'Liberia 2011'!$G$56)","v":"Consumption increased for Depo-provera and implants after the quantification."},{"$f":"IF(ISBLANK('Liberia 2011'!$F$57),\"\",'Liberia 2011'!$F$57)","v":""},{"$f":"IF(ISBLANK('Liberia 2011'!$G$57),\"\",'Liberia 2011'!$G$57)","v":""},{"$f":"IF(ISBLANK('Liberia 2011'!$F$59),\"\",'Liberia 2011'!$F$59)","v":"N/A"},{"$f":"IF(ISBLANK('Liberia 2011'!$F$60),\"\",'Liberia 2011'!$F$60)","v":"N/A"},{"$f":"IF(ISBLANK('Liberia 2011'!$F$61),\"\",'Liberia 2011'!$F$61)","v":"N/A"},{"$f":"IF(ISBLANK('Liberia 2011'!$D$62),\"\",'Liberia 2011'!$D$62)","v":""},null,null,{"$f":"IF(ISBLANK('Liberia 2011'!$D$66),\"\",'Liberia 2011'!$D$66)","v":"Yes"},{"$f":"IF(ISBLANK('Liberia 2011'!$D$67),\"\",'Liberia 2011'!$D$67)","v":"Yes"},{"$f":"IF(ISBLANK('Liberia 2011'!$D$68),\"\",'Liberia 2011'!$D$68)","v":"Yes"},{"$f":"IF(ISBLANK('Liberia 2011'!$D$69),\"\",'Liberia 2011'!$D$69)","v":"Yes"},{"$f":"IF(ISBLANK('Liberia 2011'!$D$70),\"\",'Liberia 2011'!$D$70)","v":"Yes"},{"$f":"IF(ISBLANK('Liberia 2011'!$D$71),\"\",'Liberia 2011'!$D$71)","v":"Yes"},{"$f":"IF(ISBLANK('Liberia 2011'!$D$72),\"\",'Liberia 2011'!$D$72)","v":"Yes"},{"$f":"IF(ISBLANK('Liberia 2011'!$D$73),\"\",'Liberia 2011'!$D$73)","v":"Yes"},{"$f":"IF(ISBLANK('Liberia 2011'!$D$74),\"\",'Liberia 2011'!$D$74)","v":"Yes"},{"$f":"IF(ISBLANK('Liberia 2011'!$D$75),\"\",'Liberia 2011'!$D$75)","v":"Yes"},{"$f":"IF(ISBLANK('Liberia 2011'!$D$76),\"\",'Liberia 2011'!$D$76)","v":"No"},{"$f":"IF(ISBLANK('Liberia 2011'!$D$77),\"\",'Liberia 2011'!$D$77)","v":""},null,{"$f":"IF(ISBLANK('Liberia 2011'!$F$66),\"\",'Liberia 2011'!$F$66)","v":"Yes"},{"$f":"IF(ISBLANK('Liberia 2011'!$F$67),\"\",'Liberia 2011'!$F$67)","v":"Yes"},{"$f":"IF(ISBLANK('Liberia 2011'!$F$68),\"\",'Liberia 2011'!$F$68)","v":"Yes"},{"$f":"IF(ISBLANK('Liberia 2011'!$F$69),\"\",'Liberia 2011'!$F$69)","v":"Yes"},{"$f":"IF(ISBLANK('Liberia 2011'!$F$70),\"\",'Liberia 2011'!$F$70)","v":"Yes"},{"$f":"IF(ISBLANK('Liberia 2011'!$F$71),\"\",'Liberia 2011'!$F$71)","v":"Yes"},{"$f":"IF(ISBLANK('Liberia 2011'!$F$72),\"\",'Liberia 2011'!$F$72)","v":"Yes"},{"$f":"IF(ISBLANK('Liberia 2011'!$F$73),\"\",'Liberia 2011'!$F$73)","v":"Yes"},{"$f":"IF(ISBLANK('Liberia 2011'!$F$74),\"\",'Liberia 2011'!$F$74)","v":"Yes"},{"$f":"IF(ISBLANK('Liberia 2011'!$F$75),\"\",'Liberia 2011'!$F$75)","v":"Yes"},{"$f":"IF(ISBLANK('Liberia 2011'!$F$76),\"\",'Liberia 2011'!$F$76)","v":"Yes"},{"$f":"IF(ISBLANK('Liberia 2011'!$F$77),\"\",'Liberia 2011'!$F$77)","v":""},null,{"$f":"IF(ISBLANK('Liberia 2011'!$G$66),\"\",'Liberia 2011'!$G$66)","v":"Yes"},{"$f":"IF(ISBLANK('Liberia 2011'!$G$67),\"\",'Liberia 2011'!$G$67)","v":"Yes"},{"$f":"IF(ISBLANK('Liberia 2011'!$G$68),\"\",'Liberia 2011'!$G$68)","v":"Yes"},{"$f":"IF(ISBLANK('Liberia 2011'!$G$69),\"\",'Liberia 2011'!$G$69)","v":"Yes"},{"$f":"IF(ISBLANK('Liberia 2011'!$G$70),\"\",'Liberia 2011'!$G$70)","v":"Yes"},{"$f":"IF(ISBLANK('Liberia 2011'!$G$71),\"\",'Liberia 2011'!$G$71)","v":"Yes"},{"$f":"IF(ISBLANK('Liberia 2011'!$G$72),\"\",'Liberia 2011'!$G$72)","v":"Yes"},{"$f":"IF(ISBLANK('Liberia 2011'!$G$73),\"\",'Liberia 2011'!$G$73)","v":"Yes"},{"$f":"IF(ISBLANK('Liberia 2011'!$G$74),\"\",'Liberia 2011'!$G$74)","v":"Yes"},{"$f":"IF(ISBLANK('Liberia 2011'!$G$75),\"\",'Liberia 2011'!$G$75)","v":"Yes"},{"$f":"IF(ISBLANK('Liberia 2011'!$G$76),\"\",'Liberia 2011'!$G$76)","v":"No"},{"$f":"IF(ISBLANK('Liberia 2011'!$G$77),\"\",'Liberia 2011'!$G$77)","v":""},null,{"$f":"IF(ISBLANK('Liberia 2011'!$H$66),\"\",'Liberia 2011'!$H$66)","v":"Don't know"},{"$f":"IF(ISBLANK('Liberia 2011'!$H$67),\"\",'Liberia 2011'!$H$67)","v":"Don't know"},{"$f":"IF(ISBLANK('Liberia 2011'!$H$68),\"\",'Liberia 2011'!$H$68)","v":"Don't know"},{"$f":"IF(ISBLANK('Liberia 2011'!$H$69),\"\",'Liberia 2011'!$H$69)","v":"Don't know"},{"$f":"IF(ISBLANK('Liberia 2011'!$H$70),\"\",'Liberia 2011'!$H$70)","v":"Don't know"},{"$f":"IF(ISBLANK('Liberia 2011'!$H$71),\"\",'Liberia 2011'!$H$71)","v":"Yes"},{"$f":"IF(ISBLANK('Liberia 2011'!$H$72),\"\",'Liberia 2011'!$H$72)","v":"Don't know"},{"$f":"IF(ISBLANK('Liberia 2011'!$H$73),\"\",'Liberia 2011'!$H$73)","v":"Don't know"},{"$f":"IF(ISBLANK('Liberia 2011'!$H$74),\"\",'Liberia 2011'!$H$74)","v":"Don't know"},{"$f":"IF(ISBLANK('Liberia 2011'!$H$75),\"\",'Liberia 2011'!$H$75)","v":"Don't know"},{"$f":"IF(ISBLANK('Liberia 2011'!$H$76),\"\",'Liberia 2011'!$H$76)","v":"Don't know"},{"$f":"IF(ISBLANK('Liberia 2011'!$H$77),\"\",'Liberia 2011'!$H$77)","v":""},{"$f":"IF(ISBLANK('Liberia 2011'!$D$78),\"\",'Liberia 2011'!$D$78)","v":""},null,{"$f":"IF(ISBLANK('Liberia 2011'!$H$80),\"\",'Liberia 2011'!$H$80)","v":"Yes"},{"$f":"IF(ISBLANK('Liberia 2011'!$C$83),\"\",'Liberia 2011'!$C$83)","v":"National Reproductive Health Commodity Security Strategy and Operational Plan"},{"$f":"IF(ISBLANK('Liberia 2011'!$D$83),\"\",'Liberia 2011'!$D$83)","v":"2008-2012"},{"$f":"IF(ISBLANK('Liberia 2011'!$F$83),\"\",'Liberia 2011'!$F$83)","v":"Yes"},{"$f":"IF(ISBLANK('Liberia 2011'!$G$83),\"\",'Liberia 2011'!$G$83)","v":"Yes"},{"$f":"IF(ISBLANK('Liberia 2011'!$F$84),\"\",'Liberia 2011'!$F$84)","v":"No"},{"$f":"IF(ISBLANK('Liberia 2011'!$E$85),\"\",'Liberia 2011'!$E$85)","v":"N/A"},{"$f":"IF(ISBLANK('Liberia 2011'!$E$86),\"\",'Liberia 2011'!$E$86)","v":"N/A"},{"$f":"IF(ISBLANK('Liberia 2011'!$H$87),\"\",'Liberia 2011'!$H$87)","v":"Don't know"},{"$f":"IF(ISBLANK('Liberia 2011'!$D$88),\"\",'Liberia 2011'!$D$88)","v":"Don't know"},{"$f":"IF(ISBLANK('Liberia 2011'!$H$89),\"\",'Liberia 2011'!$H$89)","v":"No"},{"$f":"IF(ISBLANK('Liberia 2011'!$D$90),\"\",'Liberia 2011'!$D$90)","v":"N/A"},{"$f":"IF(ISBLANK('Liberia 2011'!$H$91),\"\",'Liberia 2011'!$H$91)","v":"Yes"},{"$f":"IF(ISBLANK('Liberia 2011'!$C$94),\"\",'Liberia 2011'!$C$94)","v":"DMPA injections"},{"$f":"IF(ISBLANK('Liberia 2011'!$E$94),\"\",'Liberia 2011'!$E$94)","v":"Only qualified health workers (including CHWs) can dispense"},{"$f":"IF(ISBLANK('Liberia 2011'!$G$94),\"\",'Liberia 2011'!$G$94)","v":"Only registered outlets can sell"},{"$f":"IF(ISBLANK('Liberia 2011'!$C$95),\"\",'Liberia 2011'!$C$95)","v":"Implants"},{"$f":"IF(ISBLANK('Liberia 2011'!$E$95),\"\",'Liberia 2011'!$E$95)","v":"Only qualified health workers (including CHWs) can dispense"},{"$f":"IF(ISBLANK('Liberia 2011'!$G$95),\"\",'Liberia 2011'!$G$95)","v":"Only registered outlets can sell"},{"$f":"IF(ISBLANK('Liberia 2011'!$C$96),\"\",'Liberia 2011'!$C$96)","v":""},{"$f":"IF(ISBLANK('Liberia 2011'!$E$96),\"\",'Liberia 2011'!$E$96)","v":""},{"$f":"IF(ISBLANK('Liberia 2011'!$G$96),\"\",'Liberia 2011'!$G$96)","v":""},null,{"$f":"IF(ISBLANK('Liberia 2011'!$D$99),\"\",'Liberia 2011'!$D$99)","v":"No"},{"$f":"IF(ISBLANK('Liberia 2011'!$E$99),\"\",'Liberia 2011'!$E$99)","v":""},{"$f":"IF(ISBLANK('Liberia 2011'!$H$99),\"\",'Liberia 2011'!$H$99)","v":""},{"$f":"IF(ISBLANK('Liberia 2011'!$D$100),\"\",'Liberia 2011'!$D$100)","v":"No"},{"$f":"IF(ISBLANK('Liberia 2011'!$E$100),\"\",'Liberia 2011'!$E$100)","v":""},{"$f":"IF(ISBLANK('Liberia 2011'!$H$100),\"\",'Liberia 2011'!$H$100)","v":""},{"$f":"IF(ISBLANK('Liberia 2011'!$D$101),\"\",'Liberia 2011'!$D$101)","v":"Don't know"},{"$f":"IF(ISBLANK('Liberia 2011'!$E$101),\"\",'Liberia 2011'!$E$101)","v":""},{"$f":"IF(ISBLANK('Liberia 2011'!$H$101),\"\",'Liberia 2011'!$H$101)","v":""},null,{"$f":"IF(ISBLANK('Liberia 2011'!$G$104),\"\",'Liberia 2011'!$G$104)","v":"No"},{"$f":"IF(ISBLANK('Liberia 2011'!$G$105),\"\",'Liberia 2011'!$G$105)","v":"No"},{"$f":"IF(ISBLANK('Liberia 2011'!$G$106),\"\",'Liberia 2011'!$G$106)","v":"N/A"},{"$f":"IF(ISBLANK('Liberia 2011'!$D$107),\"\",'Liberia 2011'!$D$107)","v":"N/A"},null,{"$f":"IF(ISBLANK('Liberia 2011'!$G$109),\"\",'Liberia 2011'!$G$109)","v":"Yes"},{"$f":"IF(ISBLANK('Liberia 2011'!$G$110),\"\",'Liberia 2011'!$G$110)","v":"Yes"},{"$f":"IF(ISBLANK('Liberia 2011'!$G$111),\"\",'Liberia 2011'!$G$111)","v":"Yes"},{"$f":"IF(ISBLANK('Liberia 2011'!$G$112),\"\",'Liberia 2011'!$G$112)","v":"Yes"},{"$f":"IF(ISBLANK('Liberia 2011'!$G$113),\"\",'Liberia 2011'!$G$113)","v":"Yes"},{"$f":"IF(ISBLANK('Liberia 2011'!$G$114),\"\",'Liberia 2011'!$G$114)","v":"Yes"},{"$f":"IF(ISBLANK('Liberia 2011'!$G$115),\"\",'Liberia 2011'!$G$115)","v":"Yes"},{"$f":"IF(ISBLANK('Liberia 2011'!$G$116),\"\",'Liberia 2011'!$G$116)","v":"Yes"},{"$f":"IF(ISBLANK('Liberia 2011'!$G$117),\"\",'Liberia 2011'!$G$117)","v":"Yes"},{"$f":"IF(ISBLANK('Liberia 2011'!$G$118),\"\",'Liberia 2011'!$G$118)","v":"Yes"},{"$f":"IF(ISBLANK('Liberia 2011'!$F$119),\"\",'Liberia 2011'!$F$119)","v":"Foaming tablets"},{"$f":"IF(ISBLANK('Liberia 2011'!$F$120),\"\",'Liberia 2011'!$F$120)","v":"Don't know"},{"$f":"IF(ISBLANK('Liberia 2011'!$D$121),\"\",'Liberia 2011'!$D$121)","v":"National Essential Medicine List of Liberia"},{"$f":"IF(ISBLANK('Liberia 2011'!$D$122),\"\",'Liberia 2011'!$D$122)","v":"It has just been updated."},null,{"$f":"IF(ISBLANK('Liberia 2011'!$F$124),\"\",'Liberia 2011'!$F$124)","v":2008},{"$f":"IF(ISBLANK('Liberia 2011'!$G$125),\"\",'Liberia 2011'!$G$125)","v":"No"},{"$f":"IF(ISBLANK('Liberia 2011'!$G$126),\"\",'Liberia 2011'!$G$126)","v":"No"},{"$f":"IF(ISBLANK('Liberia 2011'!$G$127),\"\",'Liberia 2011'!$G$127)","v":"Yes"},{"$f":"IF(ISBLANK('Liberia 2011'!$G$128),\"\",'Liberia 2011'!$G$128)","v":"No"},{"$f":"IF(ISBLANK('Liberia 2011'!$D$129),\"\",'Liberia 2011'!$D$129)","v":""},null,{"$f":"IF(ISBLANK('Liberia 2011'!$G$131),\"\",'Liberia 2011'!$G$131)","v":"Yes"},null,{"$f":"IF(ISBLANK('Liberia 2011'!$G$133),\"\",'Liberia 2011'!$G$133)","v":"No"},{"$f":"IF(ISBLANK('Liberia 2011'!$G$134),\"\",'Liberia 2011'!$G$134)","v":"No"},{"$f":"IF(ISBLANK('Liberia 2011'!$G$135),\"\",'Liberia 2011'!$G$135)","v":"No"},{"$f":"IF(ISBLANK('Liberia 2011'!$G$136),\"\",'Liberia 2011'!$G$136)","v":"No"},{"$f":"IF(ISBLANK('Liberia 2011'!$G$137),\"\",'Liberia 2011'!$G$137)","v":"No"},{"$f":"IF(ISBLANK('Liberia 2011'!$G$138),\"\",'Liberia 2011'!$G$138)","v":"Yes"},{"$f":"IF(ISBLANK('Liberia 2011'!$G$139),\"\",'Liberia 2011'!$G$139)","v":"No"},{"$f":"IF(ISBLANK('Liberia 2011'!$G$140),\"\",'Liberia 2011'!$G$140)","v":"No"},{"$f":"IF(ISBLANK('Liberia 2011'!$G$141),\"\",'Liberia 2011'!$G$141)","v":"No"},{"$f":"IF(ISBLANK('Liberia 2011'!$F$142),\"\",'Liberia 2011'!$F$142)","v":"01/10-12/10"},{"$f":"IF(ISBLANK('Liberia 2011'!$F$143),\"\",'Liberia 2011'!$F$143)","v":"Procurement Planning and Monitoring Report (PPMR)"},null,{"$f":"IF(ISBLANK('Liberia 2011'!$G$145),\"\",'Liberia 2011'!$G$145)","v":"Yes"},{"$f":"IF(ISBLANK('Liberia 2011'!$G$146),\"\",'Liberia 2011'!$G$146)","v":"Yes"},{"$f":"IF(ISBLANK('Liberia 2011'!$D$147),\"\",'Liberia 2011'!$D$147)","v":"Challenge: data collection and reporting from the peripheral levels and storage at the central level. Successes: The availability of all the methods and client choice."},"Africa"]
["Madagascar ",null,{"$f":"IF(ISBLANK('Madagascar 2011'!$H$12),\"\",'Madagascar 2011'!$H$12)","v":"Yes"},{"$f":"IF(ISBLANK('Madagascar 2011'!$D$13),\"\",'Madagascar 2011'!$D$13)","v":"Reproductive Health/Family Planning Partners Committee  "},null,{"$f":"IF(ISBLANK('Madagascar 2011'!$D$15),\"\",'Madagascar 2011'!$D$15)","v":"Yes"},{"$f":"IF(ISBLANK('Madagascar 2011'!$F$15),\"\",'Madagascar 2011'!$F$15)","v":"Population Services International (PSI)"},{"$f":"IF(ISBLANK('Madagascar 2011'!$D$16),\"\",'Madagascar 2011'!$D$16)","v":"Yes"},{"$f":"IF(ISBLANK('Madagascar 2011'!$F$16),\"\",'Madagascar 2011'!$F$16)","v":"Fianakaviana Sambatra (FISA) (an IPPF affiliate), Marie Stopes Madagascar, Religious Platform represented by (1) SAF-FJKM (Health Department of Protestant Church) (2) SALFA (Health Department of Lutheran Church) and (3) VOAHARY SALAMA (NGOs' Platform) "},{"$f":"IF(ISBLANK('Madagascar 2011'!$D$17),\"\",'Madagascar 2011'!$D$17)","v":"Yes"},{"$f":"IF(ISBLANK('Madagascar 2011'!$F$17),\"\",'Madagascar 2011'!$F$17)","v":"Organon"},{"$f":"IF(ISBLANK('Madagascar 2011'!$D$18),\"\",'Madagascar 2011'!$D$18)","v":"Yes"},{"$f":"IF(ISBLANK('Madagascar 2011'!$F$18),\"\",'Madagascar 2011'!$F$18)","v":"USAID, UNFPA"},{"$f":"IF(ISBLANK('Madagascar 2011'!$D$19),\"\",'Madagascar 2011'!$D$19)","v":"Yes"},{"$f":"IF(ISBLANK('Madagascar 2011'!$F$19),\"\",'Madagascar 2011'!$F$19)","v":"UNFPA, UNICEF, UNAIDS, World Bank, WHO"},{"$f":"IF(ISBLANK('Madagascar 2011'!$D$20),\"\",'Madagascar 2011'!$D$20)","v":"Yes"},{"$f":"IF(ISBLANK('Madagascar 2011'!$F$20),\"\",'Madagascar 2011'!$F$20)","v":"Directorate of Maternal Health"},{"$f":"IF(ISBLANK('Madagascar 2011'!$D$21),\"\",'Madagascar 2011'!$D$21)","v":"Yes"},{"$f":"IF(ISBLANK('Madagascar 2011'!$F$21),\"\",'Madagascar 2011'!$F$21)","v":"SALAMA (national essential drug purchasing agency)"},{"$f":"IF(ISBLANK('Madagascar 2011'!$D$22),\"\",'Madagascar 2011'!$D$22)","v":"Yes"},{"$f":"IF(ISBLANK('Madagascar 2011'!$F$22),\"\",'Madagascar 2011'!$F$22)","v":"Ministry of Population"},{"$f":"IF(ISBLANK('Madagascar 2011'!$D$23),\"\",'Madagascar 2011'!$D$23)","v":""},{"$f":"IF(ISBLANK('Madagascar 2011'!$F$23),\"\",'Madagascar 2011'!$F$23)","v":""},{"$f":"IF(ISBLANK('Madagascar 2011'!$H$24),\"\",'Madagascar 2011'!$H$24)","v":"1-2 times"},{"$f":"IF(ISBLANK('Madagascar 2011'!$H$25),\"\",'Madagascar 2011'!$H$25)","v":"Yes"},{"$f":"IF(ISBLANK('Madagascar 2011'!$D$26),\"\",'Madagascar 2011'!$D$26)","v":"Yes"},{"$f":"IF(ISBLANK('Madagascar 2011'!$F$26),\"\",'Madagascar 2011'!$F$26)","v":"The Directorate of Maternal Health"},{"$f":"IF(ISBLANK('Madagascar 2011'!$H$26),\"\",'Madagascar 2011'!$H$26)","v":"Director"},null,{"$f":"IF(ISBLANK('Madagascar 2011'!$F$28),\"\",'Madagascar 2011'!$F$28)","v":"October"},{"$f":"IF(ISBLANK('Madagascar 2011'!$H$28),\"\",'Madagascar 2011'!$H$28)","v":"September"},{"$f":"IF(ISBLANK('Madagascar 2011'!$G$29),\"\",'Madagascar 2011'!$G$29)","v":6871000},{"$f":"IF(ISBLANK('Madagascar 2011'!$E$30),\"\",'Madagascar 2011'!$E$30)","v":"12/10"},{"$f":"IF(ISBLANK('Madagascar 2011'!$G$30),\"\",'Madagascar 2011'!$G$30)","v":"MOH, UNFPA, SALAMA, PSI"},{"$f":"IF(ISBLANK('Madagascar 2011'!$H$31),\"\",'Madagascar 2011'!$H$31)","v":"Yes"},{"$f":"IF(ISBLANK('Madagascar 2011'!$H$32),\"\",'Madagascar 2011'!$H$32)","v":"Yes"},{"$f":"IF(ISBLANK('Madagascar 2011'!$E$35),\"\",'Madagascar 2011'!$E$35)","v":58625},{"$f":"IF(ISBLANK('Madagascar 2011'!$F$35),\"\",'Madagascar 2011'!$F$35)","v":"09/10-10/10"},{"$f":"IF(ISBLANK('Madagascar 2011'!$G$35),\"\",'Madagascar 2011'!$G$35)","v":"Directorate of Maternal Health"},{"$f":"IF(ISBLANK('Madagascar 2011'!$H$35),\"\",'Madagascar 2011'!$H$35)","v":""},{"$f":"IF(ISBLANK('Madagascar 2011'!$H$37),\"\",'Madagascar 2011'!$H$37)","v":"Yes"},{"$f":"IF(ISBLANK('Madagascar 2011'!$D$40),\"\",'Madagascar 2011'!$D$40)","v":"Yes"},{"$f":"IF(ISBLANK('Madagascar 2011'!$D$41),\"\",'Madagascar 2011'!$D$41)","v":"Taxes"},{"$f":"IF(ISBLANK('Madagascar 2011'!$E$40),\"\",'Madagascar 2011'!$E$40)","v":58625},{"$f":"IF(ISBLANK('Madagascar 2011'!$F$40),\"\",'Madagascar 2011'!$F$40)","v":"01/10-12/10"},{"$f":"IF(ISBLANK('Madagascar 2011'!$G$40),\"\",'Madagascar 2011'!$G$40)","v":"Directorate of Maternal Health"},{"$f":"IF(ISBLANK('Madagascar 2011'!$H$40),\"\",'Madagascar 2011'!$H$40)","v":"This is from the government budget line item."},{"$f":"IF(ISBLANK('Madagascar 2011'!$D$42),\"\",'Madagascar 2011'!$D$42)","v":"No"},{"$f":"IF(ISBLANK('Madagascar 2011'!$D$43),\"\",'Madagascar 2011'!$D$43)","v":"N/A"},{"$f":"IF(ISBLANK('Madagascar 2011'!$E$42),\"\",'Madagascar 2011'!$E$42)","v":0},{"$f":"IF(ISBLANK('Madagascar 2011'!$F$42),\"\",'Madagascar 2011'!$F$42)","v":"01/10-12/10"},{"$f":"IF(ISBLANK('Madagascar 2011'!$G$42),\"\",'Madagascar 2011'!$G$42)","v":""},{"$f":"IF(ISBLANK('Madagascar 2011'!$H$42),\"\",'Madagascar 2011'!$H$42)","v":""},{"$f":"IF(ISBLANK('Madagascar 2011'!$E$44),\"\",'Madagascar 2011'!$E$44)","v":58625},{"$f":"IF(ISBLANK('Madagascar 2011'!$H$44),\"\",'Madagascar 2011'!$H$44)","v":""},null,{"$f":"IF(ISBLANK('Madagascar 2011'!$D$48),\"\",'Madagascar 2011'!$D$48)","v":"Yes"},{"$f":"IF(ISBLANK('Madagascar 2011'!$D$49),\"\",'Madagascar 2011'!$D$49)","v":"UNFPA"},{"$f":"IF(ISBLANK('Madagascar 2011'!$E$48),\"\",'Madagascar 2011'!$E$48)","v":5639717},{"$f":"IF(ISBLANK('Madagascar 2011'!$F$48),\"\",'Madagascar 2011'!$F$48)","v":"01/10-12/10"},{"$f":"IF(ISBLANK('Madagascar 2011'!$G$48),\"\",'Madagascar 2011'!$G$48)","v":"RHInterchange "},{"$f":"IF(ISBLANK('Madagascar 2011'!$H$48),\"\",'Madagascar 2011'!$H$48)","v":""},{"$f":"IF(ISBLANK('Madagascar 2011'!$D$50),\"\",'Madagascar 2011'!$D$50)","v":"No"},{"$f":"IF(ISBLANK('Madagascar 2011'!$E$50),\"\",'Madagascar 2011'!$E$50)","v":0},{"$f":"IF(ISBLANK('Madagascar 2011'!$F$50),\"\",'Madagascar 2011'!$F$50)","v":"01/10-12/10"},{"$f":"IF(ISBLANK('Madagascar 2011'!$G$50),\"\",'Madagascar 2011'!$G$50)","v":""},{"$f":"IF(ISBLANK('Madagascar 2011'!$H$50),\"\",'Madagascar 2011'!$H$50)","v":""},{"$f":"IF(ISBLANK('Madagascar 2011'!$D$51),\"\",'Madagascar 2011'!$D$51)","v":"No"},{"$f":"IF(ISBLANK('Madagascar 2011'!$E$51),\"\",'Madagascar 2011'!$E$51)","v":0},{"$f":"IF(ISBLANK('Madagascar 2011'!$F$51),\"\",'Madagascar 2011'!$F$51)","v":"01/10-12/10"},{"$f":"IF(ISBLANK('Madagascar 2011'!$G$51),\"\",'Madagascar 2011'!$G$51)","v":""},{"$f":"IF(ISBLANK('Madagascar 2011'!$H$51),\"\",'Madagascar 2011'!$H$51)","v":""},{"$f":"IF(ISBLANK('Madagascar 2011'!$E$52),\"\",'Madagascar 2011'!$E$52)","v":5639717},{"$f":"IF(ISBLANK('Madagascar 2011'!$H$52),\"\",'Madagascar 2011'!$H$52)","v":""},{"$f":"IF(ISBLANK('Madagascar 2011'!$F$55),\"\",'Madagascar 2011'!$F$55)","v":1.0288080287213369E-2},{"$f":"IF(ISBLANK('Madagascar 2011'!$G$55),\"\",'Madagascar 2011'!$G$55)","v":"Only 1% of the procurement was covered by government funds.\n"},{"$f":"IF(ISBLANK('Madagascar 2011'!$F$56),\"\",'Madagascar 2011'!$F$56)","v":0.82933226604569932},{"$f":"IF(ISBLANK('Madagascar 2011'!$G$56),\"\",'Madagascar 2011'!$G$56)","v":"In 2010, $6,871,000 worth of contraceptives was estimated to be needed to be purchased for the public sector.\n"},{"$f":"IF(ISBLANK('Madagascar 2011'!$F$57),\"\",'Madagascar 2011'!$F$57)","v":"Yes"},{"$f":"IF(ISBLANK('Madagascar 2011'!$G$57),\"\",'Madagascar 2011'!$G$57)","v":"$1,173,000 was the gap estimated for the public sector in 2010.\n"},{"$f":"IF(ISBLANK('Madagascar 2011'!$F$59),\"\",'Madagascar 2011'!$F$59)","v":"The government (e.g., Central Medical Stores, MOH logistics unit, MOH procurement unit)"},{"$f":"IF(ISBLANK('Madagascar 2011'!$F$60),\"\",'Madagascar 2011'!$F$60)","v":"SALAMA (central medical store)"},{"$f":"IF(ISBLANK('Madagascar 2011'!$F$61),\"\",'Madagascar 2011'!$F$61)","v":"Yes"},{"$f":"IF(ISBLANK('Madagascar 2011'!$D$62),\"\",'Madagascar 2011'!$D$62)","v":"SALAMA manages all the procurement and orders for MOH as well as the distribution to the districts."},null,null,{"$f":"IF(ISBLANK('Madagascar 2011'!$D$66),\"\",'Madagascar 2011'!$D$66)","v":"Yes"},{"$f":"IF(ISBLANK('Madagascar 2011'!$D$67),\"\",'Madagascar 2011'!$D$67)","v":"No"},{"$f":"IF(ISBLANK('Madagascar 2011'!$D$68),\"\",'Madagascar 2011'!$D$68)","v":"Yes"},{"$f":"IF(ISBLANK('Madagascar 2011'!$D$69),\"\",'Madagascar 2011'!$D$69)","v":"Yes"},{"$f":"IF(ISBLANK('Madagascar 2011'!$D$70),\"\",'Madagascar 2011'!$D$70)","v":"Yes"},{"$f":"IF(ISBLANK('Madagascar 2011'!$D$71),\"\",'Madagascar 2011'!$D$71)","v":"Yes"},{"$f":"IF(ISBLANK('Madagascar 2011'!$D$72),\"\",'Madagascar 2011'!$D$72)","v":"Yes"},{"$f":"IF(ISBLANK('Madagascar 2011'!$D$73),\"\",'Madagascar 2011'!$D$73)","v":"Yes"},{"$f":"IF(ISBLANK('Madagascar 2011'!$D$74),\"\",'Madagascar 2011'!$D$74)","v":"Don't know"},{"$f":"IF(ISBLANK('Madagascar 2011'!$D$75),\"\",'Madagascar 2011'!$D$75)","v":"Don't know"},{"$f":"IF(ISBLANK('Madagascar 2011'!$D$76),\"\",'Madagascar 2011'!$D$76)","v":"No"},{"$f":"IF(ISBLANK('Madagascar 2011'!$D$77),\"\",'Madagascar 2011'!$D$77)","v":""},null,{"$f":"IF(ISBLANK('Madagascar 2011'!$F$66),\"\",'Madagascar 2011'!$F$66)","v":"Yes"},{"$f":"IF(ISBLANK('Madagascar 2011'!$F$67),\"\",'Madagascar 2011'!$F$67)","v":"Yes"},{"$f":"IF(ISBLANK('Madagascar 2011'!$F$68),\"\",'Madagascar 2011'!$F$68)","v":"Yes"},{"$f":"IF(ISBLANK('Madagascar 2011'!$F$69),\"\",'Madagascar 2011'!$F$69)","v":"Yes"},{"$f":"IF(ISBLANK('Madagascar 2011'!$F$70),\"\",'Madagascar 2011'!$F$70)","v":"Yes"},{"$f":"IF(ISBLANK('Madagascar 2011'!$F$71),\"\",'Madagascar 2011'!$F$71)","v":"Yes"},{"$f":"IF(ISBLANK('Madagascar 2011'!$F$72),\"\",'Madagascar 2011'!$F$72)","v":"No"},{"$f":"IF(ISBLANK('Madagascar 2011'!$F$73),\"\",'Madagascar 2011'!$F$73)","v":"No"},{"$f":"IF(ISBLANK('Madagascar 2011'!$F$74),\"\",'Madagascar 2011'!$F$74)","v":"Don't know"},{"$f":"IF(ISBLANK('Madagascar 2011'!$F$75),\"\",'Madagascar 2011'!$F$75)","v":"Don't know"},{"$f":"IF(ISBLANK('Madagascar 2011'!$F$76),\"\",'Madagascar 2011'!$F$76)","v":"Yes"},{"$f":"IF(ISBLANK('Madagascar 2011'!$F$77),\"\",'Madagascar 2011'!$F$77)","v":""},null,{"$f":"IF(ISBLANK('Madagascar 2011'!$G$66),\"\",'Madagascar 2011'!$G$66)","v":"Yes"},{"$f":"IF(ISBLANK('Madagascar 2011'!$G$67),\"\",'Madagascar 2011'!$G$67)","v":"No"},{"$f":"IF(ISBLANK('Madagascar 2011'!$G$68),\"\",'Madagascar 2011'!$G$68)","v":"Yes"},{"$f":"IF(ISBLANK('Madagascar 2011'!$G$69),\"\",'Madagascar 2011'!$G$69)","v":"Yes"},{"$f":"IF(ISBLANK('Madagascar 2011'!$G$70),\"\",'Madagascar 2011'!$G$70)","v":"Yes"},{"$f":"IF(ISBLANK('Madagascar 2011'!$G$71),\"\",'Madagascar 2011'!$G$71)","v":"Yes"},{"$f":"IF(ISBLANK('Madagascar 2011'!$G$72),\"\",'Madagascar 2011'!$G$72)","v":"Yes"},{"$f":"IF(ISBLANK('Madagascar 2011'!$G$73),\"\",'Madagascar 2011'!$G$73)","v":"Don't know"},{"$f":"IF(ISBLANK('Madagascar 2011'!$G$74),\"\",'Madagascar 2011'!$G$74)","v":"Yes"},{"$f":"IF(ISBLANK('Madagascar 2011'!$G$75),\"\",'Madagascar 2011'!$G$75)","v":"Yes"},{"$f":"IF(ISBLANK('Madagascar 2011'!$G$76),\"\",'Madagascar 2011'!$G$76)","v":"Don't know"},{"$f":"IF(ISBLANK('Madagascar 2011'!$G$77),\"\",'Madagascar 2011'!$G$77)","v":""},null,{"$f":"IF(ISBLANK('Madagascar 2011'!$H$66),\"\",'Madagascar 2011'!$H$66)","v":"Yes"},{"$f":"IF(ISBLANK('Madagascar 2011'!$H$67),\"\",'Madagascar 2011'!$H$67)","v":"Yes"},{"$f":"IF(ISBLANK('Madagascar 2011'!$H$68),\"\",'Madagascar 2011'!$H$68)","v":"Yes"},{"$f":"IF(ISBLANK('Madagascar 2011'!$H$69),\"\",'Madagascar 2011'!$H$69)","v":"Yes"},{"$f":"IF(ISBLANK('Madagascar 2011'!$H$70),\"\",'Madagascar 2011'!$H$70)","v":"Yes"},{"$f":"IF(ISBLANK('Madagascar 2011'!$H$71),\"\",'Madagascar 2011'!$H$71)","v":"Yes"},{"$f":"IF(ISBLANK('Madagascar 2011'!$H$72),\"\",'Madagascar 2011'!$H$72)","v":"Yes"},{"$f":"IF(ISBLANK('Madagascar 2011'!$H$73),\"\",'Madagascar 2011'!$H$73)","v":"No"},{"$f":"IF(ISBLANK('Madagascar 2011'!$H$74),\"\",'Madagascar 2011'!$H$74)","v":"Don't know"},{"$f":"IF(ISBLANK('Madagascar 2011'!$H$75),\"\",'Madagascar 2011'!$H$75)","v":"Don't know"},{"$f":"IF(ISBLANK('Madagascar 2011'!$H$76),\"\",'Madagascar 2011'!$H$76)","v":"Yes"},{"$f":"IF(ISBLANK('Madagascar 2011'!$H$77),\"\",'Madagascar 2011'!$H$77)","v":""},{"$f":"IF(ISBLANK('Madagascar 2011'!$D$78),\"\",'Madagascar 2011'!$D$78)","v":""},null,{"$f":"IF(ISBLANK('Madagascar 2011'!$H$80),\"\",'Madagascar 2011'!$H$80)","v":"Yes"},{"$f":"IF(ISBLANK('Madagascar 2011'!$C$83),\"\",'Madagascar 2011'!$C$83)","v":"Contraceptive Security Strategy"},{"$f":"IF(ISBLANK('Madagascar 2011'!$D$83),\"\",'Madagascar 2011'!$D$83)","v":"2007-2012"},{"$f":"IF(ISBLANK('Madagascar 2011'!$F$83),\"\",'Madagascar 2011'!$F$83)","v":"Yes"},{"$f":"IF(ISBLANK('Madagascar 2011'!$G$83),\"\",'Madagascar 2011'!$G$83)","v":"Yes"},{"$f":"IF(ISBLANK('Madagascar 2011'!$F$84),\"\",'Madagascar 2011'!$F$84)","v":"Yes"},{"$f":"IF(ISBLANK('Madagascar 2011'!$E$85),\"\",'Madagascar 2011'!$E$85)","v":"NGO, social marketing, and commercial sectors"},{"$f":"IF(ISBLANK('Madagascar 2011'!$E$86),\"\",'Madagascar 2011'!$E$86)","v":"Tax: 20% and VAT: 20%"},{"$f":"IF(ISBLANK('Madagascar 2011'!$H$87),\"\",'Madagascar 2011'!$H$87)","v":"Yes"},{"$f":"IF(ISBLANK('Madagascar 2011'!$D$88),\"\",'Madagascar 2011'!$D$88)","v":"Import tax, product registration"},{"$f":"IF(ISBLANK('Madagascar 2011'!$H$89),\"\",'Madagascar 2011'!$H$89)","v":"No"},{"$f":"IF(ISBLANK('Madagascar 2011'!$D$90),\"\",'Madagascar 2011'!$D$90)","v":"N/A"},{"$f":"IF(ISBLANK('Madagascar 2011'!$H$91),\"\",'Madagascar 2011'!$H$91)","v":"No"},{"$f":"IF(ISBLANK('Madagascar 2011'!$C$94),\"\",'Madagascar 2011'!$C$94)","v":""},{"$f":"IF(ISBLANK('Madagascar 2011'!$E$94),\"\",'Madagascar 2011'!$E$94)","v":""},{"$f":"IF(ISBLANK('Madagascar 2011'!$G$94),\"\",'Madagascar 2011'!$G$94)","v":""},{"$f":"IF(ISBLANK('Madagascar 2011'!$C$95),\"\",'Madagascar 2011'!$C$95)","v":""},{"$f":"IF(ISBLANK('Madagascar 2011'!$E$95),\"\",'Madagascar 2011'!$E$95)","v":""},{"$f":"IF(ISBLANK('Madagascar 2011'!$G$95),\"\",'Madagascar 2011'!$G$95)","v":""},{"$f":"IF(ISBLANK('Madagascar 2011'!$C$96),\"\",'Madagascar 2011'!$C$96)","v":""},{"$f":"IF(ISBLANK('Madagascar 2011'!$E$96),\"\",'Madagascar 2011'!$E$96)","v":""},{"$f":"IF(ISBLANK('Madagascar 2011'!$G$96),\"\",'Madagascar 2011'!$G$96)","v":""},null,{"$f":"IF(ISBLANK('Madagascar 2011'!$D$99),\"\",'Madagascar 2011'!$D$99)","v":"No"},{"$f":"IF(ISBLANK('Madagascar 2011'!$E$99),\"\",'Madagascar 2011'!$E$99)","v":""},{"$f":"IF(ISBLANK('Madagascar 2011'!$H$99),\"\",'Madagascar 2011'!$H$99)","v":""},{"$f":"IF(ISBLANK('Madagascar 2011'!$D$100),\"\",'Madagascar 2011'!$D$100)","v":"No"},{"$f":"IF(ISBLANK('Madagascar 2011'!$E$100),\"\",'Madagascar 2011'!$E$100)","v":""},{"$f":"IF(ISBLANK('Madagascar 2011'!$H$100),\"\",'Madagascar 2011'!$H$100)","v":""},{"$f":"IF(ISBLANK('Madagascar 2011'!$D$101),\"\",'Madagascar 2011'!$D$101)","v":"No"},{"$f":"IF(ISBLANK('Madagascar 2011'!$E$101),\"\",'Madagascar 2011'!$E$101)","v":""},{"$f":"IF(ISBLANK('Madagascar 2011'!$H$101),\"\",'Madagascar 2011'!$H$101)","v":""},null,{"$f":"IF(ISBLANK('Madagascar 2011'!$G$104),\"\",'Madagascar 2011'!$G$104)","v":"No"},{"$f":"IF(ISBLANK('Madagascar 2011'!$G$105),\"\",'Madagascar 2011'!$G$105)","v":"No"},{"$f":"IF(ISBLANK('Madagascar 2011'!$G$106),\"\",'Madagascar 2011'!$G$106)","v":"N/A"},{"$f":"IF(ISBLANK('Madagascar 2011'!$D$107),\"\",'Madagascar 2011'!$D$107)","v":"N/A"},null,{"$f":"IF(ISBLANK('Madagascar 2011'!$G$109),\"\",'Madagascar 2011'!$G$109)","v":"Yes"},{"$f":"IF(ISBLANK('Madagascar 2011'!$G$110),\"\",'Madagascar 2011'!$G$110)","v":"Yes"},{"$f":"IF(ISBLANK('Madagascar 2011'!$G$111),\"\",'Madagascar 2011'!$G$111)","v":"Yes"},{"$f":"IF(ISBLANK('Madagascar 2011'!$G$112),\"\",'Madagascar 2011'!$G$112)","v":"Yes"},{"$f":"IF(ISBLANK('Madagascar 2011'!$G$113),\"\",'Madagascar 2011'!$G$113)","v":"Yes"},{"$f":"IF(ISBLANK('Madagascar 2011'!$G$114),\"\",'Madagascar 2011'!$G$114)","v":"Yes"},{"$f":"IF(ISBLANK('Madagascar 2011'!$G$115),\"\",'Madagascar 2011'!$G$115)","v":"Yes"},{"$f":"IF(ISBLANK('Madagascar 2011'!$G$116),\"\",'Madagascar 2011'!$G$116)","v":"Yes"},{"$f":"IF(ISBLANK('Madagascar 2011'!$G$117),\"\",'Madagascar 2011'!$G$117)","v":"Yes"},{"$f":"IF(ISBLANK('Madagascar 2011'!$G$118),\"\",'Madagascar 2011'!$G$118)","v":"Don't know"},{"$f":"IF(ISBLANK('Madagascar 2011'!$F$119),\"\",'Madagascar 2011'!$F$119)","v":"Don't know"},{"$f":"IF(ISBLANK('Madagascar 2011'!$F$120),\"\",'Madagascar 2011'!$F$120)","v":2010},{"$f":"IF(ISBLANK('Madagascar 2011'!$D$121),\"\",'Madagascar 2011'!$D$121)","v":"Liste des Medicaments Essentiels (Essential Medicines List)"},{"$f":"IF(ISBLANK('Madagascar 2011'!$D$122),\"\",'Madagascar 2011'!$D$122)","v":"The list is updated once a year."},null,{"$f":"IF(ISBLANK('Madagascar 2011'!$F$124),\"\",'Madagascar 2011'!$F$124)","v":2007},{"$f":"IF(ISBLANK('Madagascar 2011'!$G$125),\"\",'Madagascar 2011'!$G$125)","v":"Yes"},{"$f":"IF(ISBLANK('Madagascar 2011'!$G$126),\"\",'Madagascar 2011'!$G$126)","v":"Yes"},{"$f":"IF(ISBLANK('Madagascar 2011'!$G$127),\"\",'Madagascar 2011'!$G$127)","v":"Yes"},{"$f":"IF(ISBLANK('Madagascar 2011'!$G$128),\"\",'Madagascar 2011'!$G$128)","v":"No"},{"$f":"IF(ISBLANK('Madagascar 2011'!$D$129),\"\",'Madagascar 2011'!$D$129)","v":""},null,{"$f":"IF(ISBLANK('Madagascar 2011'!$G$131),\"\",'Madagascar 2011'!$G$131)","v":"Yes"},null,{"$f":"IF(ISBLANK('Madagascar 2011'!$G$133),\"\",'Madagascar 2011'!$G$133)","v":"Yes"},{"$f":"IF(ISBLANK('Madagascar 2011'!$G$134),\"\",'Madagascar 2011'!$G$134)","v":"Yes"},{"$f":"IF(ISBLANK('Madagascar 2011'!$G$135),\"\",'Madagascar 2011'!$G$135)","v":"Yes"},{"$f":"IF(ISBLANK('Madagascar 2011'!$G$136),\"\",'Madagascar 2011'!$G$136)","v":"Yes"},{"$f":"IF(ISBLANK('Madagascar 2011'!$G$137),\"\",'Madagascar 2011'!$G$137)","v":"No"},{"$f":"IF(ISBLANK('Madagascar 2011'!$G$138),\"\",'Madagascar 2011'!$G$138)","v":"Don't know"},{"$f":"IF(ISBLANK('Madagascar 2011'!$G$139),\"\",'Madagascar 2011'!$G$139)","v":"N/A"},{"$f":"IF(ISBLANK('Madagascar 2011'!$G$140),\"\",'Madagascar 2011'!$G$140)","v":"N/A"},{"$f":"IF(ISBLANK('Madagascar 2011'!$G$141),\"\",'Madagascar 2011'!$G$141)","v":"Yes"},{"$f":"IF(ISBLANK('Madagascar 2011'!$F$142),\"\",'Madagascar 2011'!$F$142)","v":"01/10-12/10"},{"$f":"IF(ISBLANK('Madagascar 2011'!$F$143),\"\",'Madagascar 2011'!$F$143)","v":"MOH and warehouse reports"},null,{"$f":"IF(ISBLANK('Madagascar 2011'!$G$145),\"\",'Madagascar 2011'!$G$145)","v":"Yes"},{"$f":"IF(ISBLANK('Madagascar 2011'!$G$146),\"\",'Madagascar 2011'!$G$146)","v":"Yes"},{"$f":"IF(ISBLANK('Madagascar 2011'!$D$147),\"\",'Madagascar 2011'!$D$147)","v":"The March 2009 coup declaration suspended USAID support to the Government of Madagascar and impacted contraceptive security during the period from March 2009 to March 2011."},"Africa"]
["Malawi ",null,{"$f":"IF(ISBLANK('Malawi 2011'!$H$12),\"\",'Malawi 2011'!$H$12)","v":"Yes"},{"$f":"IF(ISBLANK('Malawi 2011'!$D$13),\"\",'Malawi 2011'!$D$13)","v":"Reproductive Health Commodity Security (RHCS) Sub-Committee"},null,{"$f":"IF(ISBLANK('Malawi 2011'!$D$15),\"\",'Malawi 2011'!$D$15)","v":"Yes"},{"$f":"IF(ISBLANK('Malawi 2011'!$F$15),\"\",'Malawi 2011'!$F$15)","v":"Population Services International (PSI), Banja La Mtsogolo (BLM)"},{"$f":"IF(ISBLANK('Malawi 2011'!$D$16),\"\",'Malawi 2011'!$D$16)","v":"Yes"},{"$f":"IF(ISBLANK('Malawi 2011'!$F$16),\"\",'Malawi 2011'!$F$16)","v":"Banja La Mtsogolo (BLM), Christian Health Assosiation of Malawi (CHAM), Family Planning Association of Malawi (FPAM)"},{"$f":"IF(ISBLANK('Malawi 2011'!$D$17),\"\",'Malawi 2011'!$D$17)","v":"No"},{"$f":"IF(ISBLANK('Malawi 2011'!$F$17),\"\",'Malawi 2011'!$F$17)","v":""},{"$f":"IF(ISBLANK('Malawi 2011'!$D$18),\"\",'Malawi 2011'!$D$18)","v":"Yes"},{"$f":"IF(ISBLANK('Malawi 2011'!$F$18),\"\",'Malawi 2011'!$F$18)","v":"USAID, Global Fund"},{"$f":"IF(ISBLANK('Malawi 2011'!$D$19),\"\",'Malawi 2011'!$D$19)","v":"Yes"},{"$f":"IF(ISBLANK('Malawi 2011'!$F$19),\"\",'Malawi 2011'!$F$19)","v":"UNFPA"},{"$f":"IF(ISBLANK('Malawi 2011'!$D$20),\"\",'Malawi 2011'!$D$20)","v":"Yes"},{"$f":"IF(ISBLANK('Malawi 2011'!$F$20),\"\",'Malawi 2011'!$F$20)","v":"Reproductive Health Unit, Health Technical Support Services (HTSS) - Pharmaceutical, HIV Unit, National AIDS Commission"},{"$f":"IF(ISBLANK('Malawi 2011'!$D$21),\"\",'Malawi 2011'!$D$21)","v":"No"},{"$f":"IF(ISBLANK('Malawi 2011'!$F$21),\"\",'Malawi 2011'!$F$21)","v":""},{"$f":"IF(ISBLANK('Malawi 2011'!$D$22),\"\",'Malawi 2011'!$D$22)","v":"No"},{"$f":"IF(ISBLANK('Malawi 2011'!$F$22),\"\",'Malawi 2011'!$F$22)","v":""},{"$f":"IF(ISBLANK('Malawi 2011'!$D$23),\"\",'Malawi 2011'!$D$23)","v":"No"},{"$f":"IF(ISBLANK('Malawi 2011'!$F$23),\"\",'Malawi 2011'!$F$23)","v":""},{"$f":"IF(ISBLANK('Malawi 2011'!$H$24),\"\",'Malawi 2011'!$H$24)","v":"3-5 times"},{"$f":"IF(ISBLANK('Malawi 2011'!$H$25),\"\",'Malawi 2011'!$H$25)","v":"No"},{"$f":"IF(ISBLANK('Malawi 2011'!$D$26),\"\",'Malawi 2011'!$D$26)","v":"Yes"},{"$f":"IF(ISBLANK('Malawi 2011'!$F$26),\"\",'Malawi 2011'!$F$26)","v":"Reproductive Health Unit"},{"$f":"IF(ISBLANK('Malawi 2011'!$H$26),\"\",'Malawi 2011'!$H$26)","v":"Deputy Director, Clinical Health Services - RH"},null,{"$f":"IF(ISBLANK('Malawi 2011'!$F$28),\"\",'Malawi 2011'!$F$28)","v":"July"},{"$f":"IF(ISBLANK('Malawi 2011'!$H$28),\"\",'Malawi 2011'!$H$28)","v":"June"},{"$f":"IF(ISBLANK('Malawi 2011'!$G$29),\"\",'Malawi 2011'!$G$29)","v":18442577},{"$f":"IF(ISBLANK('Malawi 2011'!$E$30),\"\",'Malawi 2011'!$E$30)","v":"02/09"},{"$f":"IF(ISBLANK('Malawi 2011'!$G$30),\"\",'Malawi 2011'!$G$30)","v":"HTSS with support from USAID | DELIVER PROJECT and various MOH partners"},{"$f":"IF(ISBLANK('Malawi 2011'!$H$31),\"\",'Malawi 2011'!$H$31)","v":"No"},{"$f":"IF(ISBLANK('Malawi 2011'!$H$32),\"\",'Malawi 2011'!$H$32)","v":"Don't know"},{"$f":"IF(ISBLANK('Malawi 2011'!$E$35),\"\",'Malawi 2011'!$E$35)","v":"Don’t know"},{"$f":"IF(ISBLANK('Malawi 2011'!$F$35),\"\",'Malawi 2011'!$F$35)","v":"07/09-06/10"},{"$f":"IF(ISBLANK('Malawi 2011'!$G$35),\"\",'Malawi 2011'!$G$35)","v":""},{"$f":"IF(ISBLANK('Malawi 2011'!$H$35),\"\",'Malawi 2011'!$H$35)","v":""},{"$f":"IF(ISBLANK('Malawi 2011'!$H$37),\"\",'Malawi 2011'!$H$37)","v":"Yes"},{"$f":"IF(ISBLANK('Malawi 2011'!$D$40),\"\",'Malawi 2011'!$D$40)","v":"Don't know"},{"$f":"IF(ISBLANK('Malawi 2011'!$D$41),\"\",'Malawi 2011'!$D$41)","v":""},{"$f":"IF(ISBLANK('Malawi 2011'!$E$40),\"\",'Malawi 2011'!$E$40)","v":""},{"$f":"IF(ISBLANK('Malawi 2011'!$F$40),\"\",'Malawi 2011'!$F$40)","v":"07/09-06/10"},{"$f":"IF(ISBLANK('Malawi 2011'!$G$40),\"\",'Malawi 2011'!$G$40)","v":""},{"$f":"IF(ISBLANK('Malawi 2011'!$H$40),\"\",'Malawi 2011'!$H$40)","v":"Because there is a SWAp, it is not possible to disaggregate internally generated revenue funding from total government funding."},{"$f":"IF(ISBLANK('Malawi 2011'!$D$42),\"\",'Malawi 2011'!$D$42)","v":"Yes"},{"$f":"IF(ISBLANK('Malawi 2011'!$D$43),\"\",'Malawi 2011'!$D$43)","v":"Basket funds"},{"$f":"IF(ISBLANK('Malawi 2011'!$E$42),\"\",'Malawi 2011'!$E$42)","v":1223717},{"$f":"IF(ISBLANK('Malawi 2011'!$F$42),\"\",'Malawi 2011'!$F$42)","v":"07/09-06/10"},{"$f":"IF(ISBLANK('Malawi 2011'!$G$42),\"\",'Malawi 2011'!$G$42)","v":"PipeLine"},{"$f":"IF(ISBLANK('Malawi 2011'!$H$42),\"\",'Malawi 2011'!$H$42)","v":"This refers to commodities received during the time period."},{"$f":"IF(ISBLANK('Malawi 2011'!$E$44),\"\",'Malawi 2011'!$E$44)","v":1223717},{"$f":"IF(ISBLANK('Malawi 2011'!$H$44),\"\",'Malawi 2011'!$H$44)","v":""},null,{"$f":"IF(ISBLANK('Malawi 2011'!$D$48),\"\",'Malawi 2011'!$D$48)","v":"Yes"},{"$f":"IF(ISBLANK('Malawi 2011'!$D$49),\"\",'Malawi 2011'!$D$49)","v":"UNFPA ($2,490,255) and USAID ($4,202,784)"},{"$f":"IF(ISBLANK('Malawi 2011'!$E$48),\"\",'Malawi 2011'!$E$48)","v":6693039},{"$f":"IF(ISBLANK('Malawi 2011'!$F$48),\"\",'Malawi 2011'!$F$48)","v":"07/09-06/10"},{"$f":"IF(ISBLANK('Malawi 2011'!$G$48),\"\",'Malawi 2011'!$G$48)","v":"PipeLine"},{"$f":"IF(ISBLANK('Malawi 2011'!$H$48),\"\",'Malawi 2011'!$H$48)","v":"This refers to commodities received during the time period."},{"$f":"IF(ISBLANK('Malawi 2011'!$D$50),\"\",'Malawi 2011'!$D$50)","v":"Yes"},{"$f":"IF(ISBLANK('Malawi 2011'!$E$50),\"\",'Malawi 2011'!$E$50)","v":186698},{"$f":"IF(ISBLANK('Malawi 2011'!$F$50),\"\",'Malawi 2011'!$F$50)","v":"07/09-06/10"},{"$f":"IF(ISBLANK('Malawi 2011'!$G$50),\"\",'Malawi 2011'!$G$50)","v":"PipeLine"},{"$f":"IF(ISBLANK('Malawi 2011'!$H$50),\"\",'Malawi 2011'!$H$50)","v":"This refers to commodities received during the time period."},{"$f":"IF(ISBLANK('Malawi 2011'!$D$51),\"\",'Malawi 2011'!$D$51)","v":"No"},{"$f":"IF(ISBLANK('Malawi 2011'!$E$51),\"\",'Malawi 2011'!$E$51)","v":0},{"$f":"IF(ISBLANK('Malawi 2011'!$F$51),\"\",'Malawi 2011'!$F$51)","v":"07/09-06/10"},{"$f":"IF(ISBLANK('Malawi 2011'!$G$51),\"\",'Malawi 2011'!$G$51)","v":""},{"$f":"IF(ISBLANK('Malawi 2011'!$H$51),\"\",'Malawi 2011'!$H$51)","v":""},{"$f":"IF(ISBLANK('Malawi 2011'!$E$52),\"\",'Malawi 2011'!$E$52)","v":6879737},{"$f":"IF(ISBLANK('Malawi 2011'!$H$52),\"\",'Malawi 2011'!$H$52)","v":""},{"$f":"IF(ISBLANK('Malawi 2011'!$F$55),\"\",'Malawi 2011'!$F$55)","v":0.15101177843423311},{"$f":"IF(ISBLANK('Malawi 2011'!$G$55),\"\",'Malawi 2011'!$G$55)","v":""},{"$f":"IF(ISBLANK('Malawi 2011'!$F$56),\"\",'Malawi 2011'!$F$56)","v":0.43938837831611061},{"$f":"IF(ISBLANK('Malawi 2011'!$G$56),\"\",'Malawi 2011'!$G$56)","v":"The expenditure data used as inputs for this calculation were based on PipeLine, so they represent shipments received (rather than funds spent) during the time period. Because of this there is an issue of timing.\n"},{"$f":"IF(ISBLANK('Malawi 2011'!$F$57),\"\",'Malawi 2011'!$F$57)","v":""},{"$f":"IF(ISBLANK('Malawi 2011'!$G$57),\"\",'Malawi 2011'!$G$57)","v":""},{"$f":"IF(ISBLANK('Malawi 2011'!$F$59),\"\",'Malawi 2011'!$F$59)","v":"The government (e.g., Central Medical Stores, MOH logistics unit, MOH procurement unit)"},{"$f":"IF(ISBLANK('Malawi 2011'!$F$60),\"\",'Malawi 2011'!$F$60)","v":"Central Medical Stores"},{"$f":"IF(ISBLANK('Malawi 2011'!$F$61),\"\",'Malawi 2011'!$F$61)","v":"No"},{"$f":"IF(ISBLANK('Malawi 2011'!$D$62),\"\",'Malawi 2011'!$D$62)","v":""},null,null,{"$f":"IF(ISBLANK('Malawi 2011'!$D$66),\"\",'Malawi 2011'!$D$66)","v":"Yes"},{"$f":"IF(ISBLANK('Malawi 2011'!$D$67),\"\",'Malawi 2011'!$D$67)","v":"Yes"},{"$f":"IF(ISBLANK('Malawi 2011'!$D$68),\"\",'Malawi 2011'!$D$68)","v":"Yes"},{"$f":"IF(ISBLANK('Malawi 2011'!$D$69),\"\",'Malawi 2011'!$D$69)","v":"Yes"},{"$f":"IF(ISBLANK('Malawi 2011'!$D$70),\"\",'Malawi 2011'!$D$70)","v":"Yes"},{"$f":"IF(ISBLANK('Malawi 2011'!$D$71),\"\",'Malawi 2011'!$D$71)","v":"Yes"},{"$f":"IF(ISBLANK('Malawi 2011'!$D$72),\"\",'Malawi 2011'!$D$72)","v":"Yes"},{"$f":"IF(ISBLANK('Malawi 2011'!$D$73),\"\",'Malawi 2011'!$D$73)","v":"Yes"},{"$f":"IF(ISBLANK('Malawi 2011'!$D$74),\"\",'Malawi 2011'!$D$74)","v":"Yes"},{"$f":"IF(ISBLANK('Malawi 2011'!$D$75),\"\",'Malawi 2011'!$D$75)","v":"Yes"},{"$f":"IF(ISBLANK('Malawi 2011'!$D$76),\"\",'Malawi 2011'!$D$76)","v":"No"},{"$f":"IF(ISBLANK('Malawi 2011'!$D$77),\"\",'Malawi 2011'!$D$77)","v":""},null,{"$f":"IF(ISBLANK('Malawi 2011'!$F$66),\"\",'Malawi 2011'!$F$66)","v":"Yes"},{"$f":"IF(ISBLANK('Malawi 2011'!$F$67),\"\",'Malawi 2011'!$F$67)","v":"Yes"},{"$f":"IF(ISBLANK('Malawi 2011'!$F$68),\"\",'Malawi 2011'!$F$68)","v":"Yes"},{"$f":"IF(ISBLANK('Malawi 2011'!$F$69),\"\",'Malawi 2011'!$F$69)","v":"Yes"},{"$f":"IF(ISBLANK('Malawi 2011'!$F$70),\"\",'Malawi 2011'!$F$70)","v":"Yes"},{"$f":"IF(ISBLANK('Malawi 2011'!$F$71),\"\",'Malawi 2011'!$F$71)","v":"Yes"},{"$f":"IF(ISBLANK('Malawi 2011'!$F$72),\"\",'Malawi 2011'!$F$72)","v":"Yes"},{"$f":"IF(ISBLANK('Malawi 2011'!$F$73),\"\",'Malawi 2011'!$F$73)","v":"Yes"},{"$f":"IF(ISBLANK('Malawi 2011'!$F$74),\"\",'Malawi 2011'!$F$74)","v":"Yes"},{"$f":"IF(ISBLANK('Malawi 2011'!$F$75),\"\",'Malawi 2011'!$F$75)","v":"Yes"},{"$f":"IF(ISBLANK('Malawi 2011'!$F$76),\"\",'Malawi 2011'!$F$76)","v":"No"},{"$f":"IF(ISBLANK('Malawi 2011'!$F$77),\"\",'Malawi 2011'!$F$77)","v":""},null,{"$f":"IF(ISBLANK('Malawi 2011'!$G$66),\"\",'Malawi 2011'!$G$66)","v":"Yes"},{"$f":"IF(ISBLANK('Malawi 2011'!$G$67),\"\",'Malawi 2011'!$G$67)","v":"Yes"},{"$f":"IF(ISBLANK('Malawi 2011'!$G$68),\"\",'Malawi 2011'!$G$68)","v":"Yes"},{"$f":"IF(ISBLANK('Malawi 2011'!$G$69),\"\",'Malawi 2011'!$G$69)","v":"Yes"},{"$f":"IF(ISBLANK('Malawi 2011'!$G$70),\"\",'Malawi 2011'!$G$70)","v":"Yes"},{"$f":"IF(ISBLANK('Malawi 2011'!$G$71),\"\",'Malawi 2011'!$G$71)","v":"Yes"},{"$f":"IF(ISBLANK('Malawi 2011'!$G$72),\"\",'Malawi 2011'!$G$72)","v":"Yes"},{"$f":"IF(ISBLANK('Malawi 2011'!$G$73),\"\",'Malawi 2011'!$G$73)","v":"Yes"},{"$f":"IF(ISBLANK('Malawi 2011'!$G$74),\"\",'Malawi 2011'!$G$74)","v":"Yes"},{"$f":"IF(ISBLANK('Malawi 2011'!$G$75),\"\",'Malawi 2011'!$G$75)","v":"Yes"},{"$f":"IF(ISBLANK('Malawi 2011'!$G$76),\"\",'Malawi 2011'!$G$76)","v":"Yes"},{"$f":"IF(ISBLANK('Malawi 2011'!$G$77),\"\",'Malawi 2011'!$G$77)","v":""},null,{"$f":"IF(ISBLANK('Malawi 2011'!$H$66),\"\",'Malawi 2011'!$H$66)","v":"Yes"},{"$f":"IF(ISBLANK('Malawi 2011'!$H$67),\"\",'Malawi 2011'!$H$67)","v":"Yes"},{"$f":"IF(ISBLANK('Malawi 2011'!$H$68),\"\",'Malawi 2011'!$H$68)","v":"Yes"},{"$f":"IF(ISBLANK('Malawi 2011'!$H$69),\"\",'Malawi 2011'!$H$69)","v":"Yes"},{"$f":"IF(ISBLANK('Malawi 2011'!$H$70),\"\",'Malawi 2011'!$H$70)","v":"Don't know"},{"$f":"IF(ISBLANK('Malawi 2011'!$H$71),\"\",'Malawi 2011'!$H$71)","v":"Yes"},{"$f":"IF(ISBLANK('Malawi 2011'!$H$72),\"\",'Malawi 2011'!$H$72)","v":"Yes"},{"$f":"IF(ISBLANK('Malawi 2011'!$H$73),\"\",'Malawi 2011'!$H$73)","v":"Yes"},{"$f":"IF(ISBLANK('Malawi 2011'!$H$74),\"\",'Malawi 2011'!$H$74)","v":"Yes"},{"$f":"IF(ISBLANK('Malawi 2011'!$H$75),\"\",'Malawi 2011'!$H$75)","v":"Yes"},{"$f":"IF(ISBLANK('Malawi 2011'!$H$76),\"\",'Malawi 2011'!$H$76)","v":"Yes"},{"$f":"IF(ISBLANK('Malawi 2011'!$H$77),\"\",'Malawi 2011'!$H$77)","v":""},{"$f":"IF(ISBLANK('Malawi 2011'!$D$78),\"\",'Malawi 2011'!$D$78)","v":"For emergency contraceptives, long-acting permanent methods, and CycleBeads, the NGOs that provide these have an element of social marketing as well, so it was noted here that the methods are offered through NGOs and social marketing."},null,{"$f":"IF(ISBLANK('Malawi 2011'!$H$80),\"\",'Malawi 2011'!$H$80)","v":"Yes"},{"$f":"IF(ISBLANK('Malawi 2011'!$C$83),\"\",'Malawi 2011'!$C$83)","v":"DRAFT Reproductive Health Commodity Security Strategy"},{"$f":"IF(ISBLANK('Malawi 2011'!$D$83),\"\",'Malawi 2011'!$D$83)","v":"2011-2015"},{"$f":"IF(ISBLANK('Malawi 2011'!$F$83),\"\",'Malawi 2011'!$F$83)","v":"No"},{"$f":"IF(ISBLANK('Malawi 2011'!$G$83),\"\",'Malawi 2011'!$G$83)","v":"Yes"},{"$f":"IF(ISBLANK('Malawi 2011'!$F$84),\"\",'Malawi 2011'!$F$84)","v":"Yes"},{"$f":"IF(ISBLANK('Malawi 2011'!$E$85),\"\",'Malawi 2011'!$E$85)","v":"The public sector charges handling fees for the distribution of contraceptives to public sites and to NGOs that are supplied directly from the central medical store (CMS). These charges have proved to limit access to commodities, especially those that are highly priced and/or high volume."},{"$f":"IF(ISBLANK('Malawi 2011'!$E$86),\"\",'Malawi 2011'!$E$86)","v":"Handling fees are 12.5% for government-procured commodities, and this is charged over and above the cost of the commodity, while for donated items it is 5% of the cost of the commodity."},{"$f":"IF(ISBLANK('Malawi 2011'!$H$87),\"\",'Malawi 2011'!$H$87)","v":"No"},{"$f":"IF(ISBLANK('Malawi 2011'!$D$88),\"\",'Malawi 2011'!$D$88)","v":"N/A"},{"$f":"IF(ISBLANK('Malawi 2011'!$H$89),\"\",'Malawi 2011'!$H$89)","v":"Don't know"},{"$f":"IF(ISBLANK('Malawi 2011'!$D$90),\"\",'Malawi 2011'!$D$90)","v":"Don't know"},{"$f":"IF(ISBLANK('Malawi 2011'!$H$91),\"\",'Malawi 2011'!$H$91)","v":"Yes"},{"$f":"IF(ISBLANK('Malawi 2011'!$C$94),\"\",'Malawi 2011'!$C$94)","v":"IUDs, implants, and injectables"},{"$f":"IF(ISBLANK('Malawi 2011'!$E$94),\"\",'Malawi 2011'!$E$94)","v":"Can only administer in facilities with trained personnel. The non-medically trained cadre Health Surveillance Assistants are now allowed to administer DMPA injectables in communities after training."},{"$f":"IF(ISBLANK('Malawi 2011'!$G$94),\"\",'Malawi 2011'!$G$94)","v":"Can only administer in accredited premises and by registered personnel"},{"$f":"IF(ISBLANK('Malawi 2011'!$C$95),\"\",'Malawi 2011'!$C$95)","v":"Oral contraceptives"},{"$f":"IF(ISBLANK('Malawi 2011'!$E$95),\"\",'Malawi 2011'!$E$95)","v":"Only trained personnel can provide. Community Health Workers can provide oral contraceptives (and condoms)."},{"$f":"IF(ISBLANK('Malawi 2011'!$G$95),\"\",'Malawi 2011'!$G$95)","v":"Can only provide in accredited premises and by registered personnel"},{"$f":"IF(ISBLANK('Malawi 2011'!$C$96),\"\",'Malawi 2011'!$C$96)","v":""},{"$f":"IF(ISBLANK('Malawi 2011'!$E$96),\"\",'Malawi 2011'!$E$96)","v":""},{"$f":"IF(ISBLANK('Malawi 2011'!$G$96),\"\",'Malawi 2011'!$G$96)","v":""},null,{"$f":"IF(ISBLANK('Malawi 2011'!$D$99),\"\",'Malawi 2011'!$D$99)","v":"No"},{"$f":"IF(ISBLANK('Malawi 2011'!$E$99),\"\",'Malawi 2011'!$E$99)","v":""},{"$f":"IF(ISBLANK('Malawi 2011'!$H$99),\"\",'Malawi 2011'!$H$99)","v":""},{"$f":"IF(ISBLANK('Malawi 2011'!$D$100),\"\",'Malawi 2011'!$D$100)","v":"No"},{"$f":"IF(ISBLANK('Malawi 2011'!$E$100),\"\",'Malawi 2011'!$E$100)","v":""},{"$f":"IF(ISBLANK('Malawi 2011'!$H$100),\"\",'Malawi 2011'!$H$100)","v":""},{"$f":"IF(ISBLANK('Malawi 2011'!$D$101),\"\",'Malawi 2011'!$D$101)","v":"No"},{"$f":"IF(ISBLANK('Malawi 2011'!$E$101),\"\",'Malawi 2011'!$E$101)","v":""},{"$f":"IF(ISBLANK('Malawi 2011'!$H$101),\"\",'Malawi 2011'!$H$101)","v":""},null,{"$f":"IF(ISBLANK('Malawi 2011'!$G$104),\"\",'Malawi 2011'!$G$104)","v":"No"},{"$f":"IF(ISBLANK('Malawi 2011'!$G$105),\"\",'Malawi 2011'!$G$105)","v":"No"},{"$f":"IF(ISBLANK('Malawi 2011'!$G$106),\"\",'Malawi 2011'!$G$106)","v":"N/A"},{"$f":"IF(ISBLANK('Malawi 2011'!$D$107),\"\",'Malawi 2011'!$D$107)","v":"N/A"},null,{"$f":"IF(ISBLANK('Malawi 2011'!$G$109),\"\",'Malawi 2011'!$G$109)","v":"Yes"},{"$f":"IF(ISBLANK('Malawi 2011'!$G$110),\"\",'Malawi 2011'!$G$110)","v":"Yes"},{"$f":"IF(ISBLANK('Malawi 2011'!$G$111),\"\",'Malawi 2011'!$G$111)","v":"Yes"},{"$f":"IF(ISBLANK('Malawi 2011'!$G$112),\"\",'Malawi 2011'!$G$112)","v":"Yes"},{"$f":"IF(ISBLANK('Malawi 2011'!$G$113),\"\",'Malawi 2011'!$G$113)","v":"Yes"},{"$f":"IF(ISBLANK('Malawi 2011'!$G$114),\"\",'Malawi 2011'!$G$114)","v":"Yes"},{"$f":"IF(ISBLANK('Malawi 2011'!$G$115),\"\",'Malawi 2011'!$G$115)","v":"No"},{"$f":"IF(ISBLANK('Malawi 2011'!$G$116),\"\",'Malawi 2011'!$G$116)","v":"Yes"},{"$f":"IF(ISBLANK('Malawi 2011'!$G$117),\"\",'Malawi 2011'!$G$117)","v":"No"},{"$f":"IF(ISBLANK('Malawi 2011'!$G$118),\"\",'Malawi 2011'!$G$118)","v":"No"},{"$f":"IF(ISBLANK('Malawi 2011'!$F$119),\"\",'Malawi 2011'!$F$119)","v":"N/A"},{"$f":"IF(ISBLANK('Malawi 2011'!$F$120),\"\",'Malawi 2011'!$F$120)","v":2009},{"$f":"IF(ISBLANK('Malawi 2011'!$D$121),\"\",'Malawi 2011'!$D$121)","v":"Malawi Essential Medicines List (MEML)"},{"$f":"IF(ISBLANK('Malawi 2011'!$D$122),\"\",'Malawi 2011'!$D$122)","v":""},null,{"$f":"IF(ISBLANK('Malawi 2011'!$F$124),\"\",'Malawi 2011'!$F$124)","v":2007},{"$f":"IF(ISBLANK('Malawi 2011'!$G$125),\"\",'Malawi 2011'!$G$125)","v":"No"},{"$f":"IF(ISBLANK('Malawi 2011'!$G$126),\"\",'Malawi 2011'!$G$126)","v":"No"},{"$f":"IF(ISBLANK('Malawi 2011'!$G$127),\"\",'Malawi 2011'!$G$127)","v":"Yes"},{"$f":"IF(ISBLANK('Malawi 2011'!$G$128),\"\",'Malawi 2011'!$G$128)","v":"No"},{"$f":"IF(ISBLANK('Malawi 2011'!$D$129),\"\",'Malawi 2011'!$D$129)","v":""},null,{"$f":"IF(ISBLANK('Malawi 2011'!$G$131),\"\",'Malawi 2011'!$G$131)","v":"No"},null,{"$f":"IF(ISBLANK('Malawi 2011'!$G$133),\"\",'Malawi 2011'!$G$133)","v":"No"},{"$f":"IF(ISBLANK('Malawi 2011'!$G$134),\"\",'Malawi 2011'!$G$134)","v":"No"},{"$f":"IF(ISBLANK('Malawi 2011'!$G$135),\"\",'Malawi 2011'!$G$135)","v":"No"},{"$f":"IF(ISBLANK('Malawi 2011'!$G$136),\"\",'Malawi 2011'!$G$136)","v":"No"},{"$f":"IF(ISBLANK('Malawi 2011'!$G$137),\"\",'Malawi 2011'!$G$137)","v":"No"},{"$f":"IF(ISBLANK('Malawi 2011'!$G$138),\"\",'Malawi 2011'!$G$138)","v":"No"},{"$f":"IF(ISBLANK('Malawi 2011'!$G$139),\"\",'Malawi 2011'!$G$139)","v":"No"},{"$f":"IF(ISBLANK('Malawi 2011'!$G$140),\"\",'Malawi 2011'!$G$140)","v":"N/A"},{"$f":"IF(ISBLANK('Malawi 2011'!$G$141),\"\",'Malawi 2011'!$G$141)","v":"N/A"},{"$f":"IF(ISBLANK('Malawi 2011'!$F$142),\"\",'Malawi 2011'!$F$142)","v":"07/09-06/10"},{"$f":"IF(ISBLANK('Malawi 2011'!$F$143),\"\",'Malawi 2011'!$F$143)","v":"LMIS"},null,{"$f":"IF(ISBLANK('Malawi 2011'!$G$145),\"\",'Malawi 2011'!$G$145)","v":"Yes"},{"$f":"IF(ISBLANK('Malawi 2011'!$G$146),\"\",'Malawi 2011'!$G$146)","v":"No"},{"$f":"IF(ISBLANK('Malawi 2011'!$D$147),\"\",'Malawi 2011'!$D$147)","v":" A parallel system to distribute USAID-donated commodities has been introduced. However, there is need for coordination (especially where the commodity is available in both systems). For example, USAID-donated contraceptives will be stored and distributed through the parallel system while contraceptives procured by others (including UNFPA)  will be channelled through the CMS system. The parallel system will deliver commodities to facilities at zero cost while those channeled through the CMS system will still attract a 5% handling charge for donated products and a 12.5% handling charge (plus the cost of the product) for government-financed products. \n\nThe Reproductive Health Commodity Security Sub-Committee is a new group focused specifically on RHCS. Previously, RHCS issues were part of the RH Technical Working Group. "},"Africa"]
["Mali ",null,{"$f":"IF(ISBLANK('Mali 2011'!$H$12),\"\",'Mali 2011'!$H$12)","v":"Yes"},{"$f":"IF(ISBLANK('Mali 2011'!$D$13),\"\",'Mali 2011'!$D$13)","v":"National Committee for Monitoring the Reproductive Health Commodity Security Plan (Comission Nationale de Suivi du Plan de Sécurisation des Produits de la Santé de la Reproduction) (replaced the Comission Nationale de Suivi de la Contraception Sécurisée)"},null,{"$f":"IF(ISBLANK('Mali 2011'!$D$15),\"\",'Mali 2011'!$D$15)","v":"Yes"},{"$f":"IF(ISBLANK('Mali 2011'!$F$15),\"\",'Mali 2011'!$F$15)","v":"Population Service International (PSI)"},{"$f":"IF(ISBLANK('Mali 2011'!$D$16),\"\",'Mali 2011'!$D$16)","v":"Yes"},{"$f":"IF(ISBLANK('Mali 2011'!$F$16),\"\",'Mali 2011'!$F$16)","v":"Marie Stopes International (MSI), Association of Support in the Development of Activities of Population (ASDAP), Group Pivot/Santé Population (GP/SP)"},{"$f":"IF(ISBLANK('Mali 2011'!$D$17),\"\",'Mali 2011'!$D$17)","v":"Yes"},{"$f":"IF(ISBLANK('Mali 2011'!$F$17),\"\",'Mali 2011'!$F$17)","v":"Conseils Nationnal de l'ordre des Pharmaciens Médecins et Sage-femmes (national council of pharmacists, physicians, and midwives)\n"},{"$f":"IF(ISBLANK('Mali 2011'!$D$18),\"\",'Mali 2011'!$D$18)","v":"Yes"},{"$f":"IF(ISBLANK('Mali 2011'!$F$18),\"\",'Mali 2011'!$F$18)","v":" USAID, UNFPA, GRM, KFW"},{"$f":"IF(ISBLANK('Mali 2011'!$D$19),\"\",'Mali 2011'!$D$19)","v":"Yes"},{"$f":"IF(ISBLANK('Mali 2011'!$F$19),\"\",'Mali 2011'!$F$19)","v":"UNFPA"},{"$f":"IF(ISBLANK('Mali 2011'!$D$20),\"\",'Mali 2011'!$D$20)","v":"Yes"},{"$f":"IF(ISBLANK('Mali 2011'!$F$20),\"\",'Mali 2011'!$F$20)","v":"Directorate of Pharmacy and Medicine (DPM), Direction Nationale de la Sant du Mali (DNS), CSLS"},{"$f":"IF(ISBLANK('Mali 2011'!$D$21),\"\",'Mali 2011'!$D$21)","v":"Yes"},{"$f":"IF(ISBLANK('Mali 2011'!$F$21),\"\",'Mali 2011'!$F$21)","v":"Pharmacie Populaire du Mali (PPM)"},{"$f":"IF(ISBLANK('Mali 2011'!$D$22),\"\",'Mali 2011'!$D$22)","v":"No"},{"$f":"IF(ISBLANK('Mali 2011'!$F$22),\"\",'Mali 2011'!$F$22)","v":""},{"$f":"IF(ISBLANK('Mali 2011'!$D$23),\"\",'Mali 2011'!$D$23)","v":"Yes"},{"$f":"IF(ISBLANK('Mali 2011'!$F$23),\"\",'Mali 2011'!$F$23)","v":"Association de Soutien au Développement des Activités de Population (ASDAP), Projet jeune, Association Malienne pour la Protection et la Promotion de la Famille (AMPPF), USAID projects/cooperating agencies (Strengthening Pharmaceutical Systems [SPS] project, Project Keneya Ciwara II [PKCII], Assistance Technique Nationale Plus [ATN+], Institute for Reproductive Health [IRH]/Georgetown University)"},{"$f":"IF(ISBLANK('Mali 2011'!$H$24),\"\",'Mali 2011'!$H$24)","v":"Don't know"},{"$f":"IF(ISBLANK('Mali 2011'!$H$25),\"\",'Mali 2011'!$H$25)","v":"Yes"},{"$f":"IF(ISBLANK('Mali 2011'!$D$26),\"\",'Mali 2011'!$D$26)","v":"No"},{"$f":"IF(ISBLANK('Mali 2011'!$F$26),\"\",'Mali 2011'!$F$26)","v":""},{"$f":"IF(ISBLANK('Mali 2011'!$H$26),\"\",'Mali 2011'!$H$26)","v":""},null,{"$f":"IF(ISBLANK('Mali 2011'!$F$28),\"\",'Mali 2011'!$F$28)","v":"January"},{"$f":"IF(ISBLANK('Mali 2011'!$H$28),\"\",'Mali 2011'!$H$28)","v":"December"},{"$f":"IF(ISBLANK('Mali 2011'!$G$29),\"\",'Mali 2011'!$G$29)","v":2733719},{"$f":"IF(ISBLANK('Mali 2011'!$E$30),\"\",'Mali 2011'!$E$30)","v":"03/11"},{"$f":"IF(ISBLANK('Mali 2011'!$G$30),\"\",'Mali 2011'!$G$30)","v":"DPM (with the participation of all partners involved in FP)"},{"$f":"IF(ISBLANK('Mali 2011'!$H$31),\"\",'Mali 2011'!$H$31)","v":"Yes"},{"$f":"IF(ISBLANK('Mali 2011'!$H$32),\"\",'Mali 2011'!$H$32)","v":"Don't know"},{"$f":"IF(ISBLANK('Mali 2011'!$E$35),\"\",'Mali 2011'!$E$35)","v":"Don't know"},{"$f":"IF(ISBLANK('Mali 2011'!$F$35),\"\",'Mali 2011'!$F$35)","v":"01/10-12/10"},{"$f":"IF(ISBLANK('Mali 2011'!$G$35),\"\",'Mali 2011'!$G$35)","v":"Ministry records"},{"$f":"IF(ISBLANK('Mali 2011'!$H$35),\"\",'Mali 2011'!$H$35)","v":"During the FY2010 contraceptive procurement table exercise (CPTs), contraceptives were planned for MOH procurement in FY 2010 for a total of $676,454."},{"$f":"IF(ISBLANK('Mali 2011'!$H$37),\"\",'Mali 2011'!$H$37)","v":"No"},{"$f":"IF(ISBLANK('Mali 2011'!$D$40),\"\",'Mali 2011'!$D$40)","v":"No"},{"$f":"IF(ISBLANK('Mali 2011'!$D$41),\"\",'Mali 2011'!$D$41)","v":"N/A"},{"$f":"IF(ISBLANK('Mali 2011'!$E$40),\"\",'Mali 2011'!$E$40)","v":0},{"$f":"IF(ISBLANK('Mali 2011'!$F$40),\"\",'Mali 2011'!$F$40)","v":"01/10-12/10"},{"$f":"IF(ISBLANK('Mali 2011'!$G$40),\"\",'Mali 2011'!$G$40)","v":""},{"$f":"IF(ISBLANK('Mali 2011'!$H$40),\"\",'Mali 2011'!$H$40)","v":"No funds have been spent yet."},{"$f":"IF(ISBLANK('Mali 2011'!$D$42),\"\",'Mali 2011'!$D$42)","v":"No"},{"$f":"IF(ISBLANK('Mali 2011'!$D$43),\"\",'Mali 2011'!$D$43)","v":"N/A"},{"$f":"IF(ISBLANK('Mali 2011'!$E$42),\"\",'Mali 2011'!$E$42)","v":0},{"$f":"IF(ISBLANK('Mali 2011'!$F$42),\"\",'Mali 2011'!$F$42)","v":"01/10-12/10"},{"$f":"IF(ISBLANK('Mali 2011'!$G$42),\"\",'Mali 2011'!$G$42)","v":""},{"$f":"IF(ISBLANK('Mali 2011'!$H$42),\"\",'Mali 2011'!$H$42)","v":"No funds have been spent yet."},{"$f":"IF(ISBLANK('Mali 2011'!$E$44),\"\",'Mali 2011'!$E$44)","v":0},{"$f":"IF(ISBLANK('Mali 2011'!$H$44),\"\",'Mali 2011'!$H$44)","v":""},null,{"$f":"IF(ISBLANK('Mali 2011'!$D$48),\"\",'Mali 2011'!$D$48)","v":"Yes"},{"$f":"IF(ISBLANK('Mali 2011'!$D$49),\"\",'Mali 2011'!$D$49)","v":"UNFPA (US $1,767,608) & USAID (US $966,111)"},{"$f":"IF(ISBLANK('Mali 2011'!$E$48),\"\",'Mali 2011'!$E$48)","v":2733719},{"$f":"IF(ISBLANK('Mali 2011'!$F$48),\"\",'Mali 2011'!$F$48)","v":"01/10-12/10"},{"$f":"IF(ISBLANK('Mali 2011'!$G$48),\"\",'Mali 2011'!$G$48)","v":"Ministry records - Directorate of Pharmacy and Medicine"},{"$f":"IF(ISBLANK('Mali 2011'!$H$48),\"\",'Mali 2011'!$H$48)","v":"Some of the UNFPA shipments which were planned in 2009 were received in 2010 and considerably filled the pipeline."},{"$f":"IF(ISBLANK('Mali 2011'!$D$50),\"\",'Mali 2011'!$D$50)","v":"No"},{"$f":"IF(ISBLANK('Mali 2011'!$E$50),\"\",'Mali 2011'!$E$50)","v":0},{"$f":"IF(ISBLANK('Mali 2011'!$F$50),\"\",'Mali 2011'!$F$50)","v":"01/10-12/10"},{"$f":"IF(ISBLANK('Mali 2011'!$G$50),\"\",'Mali 2011'!$G$50)","v":"RHInterchange"},{"$f":"IF(ISBLANK('Mali 2011'!$H$50),\"\",'Mali 2011'!$H$50)","v":""},{"$f":"IF(ISBLANK('Mali 2011'!$D$51),\"\",'Mali 2011'!$D$51)","v":"No"},{"$f":"IF(ISBLANK('Mali 2011'!$E$51),\"\",'Mali 2011'!$E$51)","v":0},{"$f":"IF(ISBLANK('Mali 2011'!$F$51),\"\",'Mali 2011'!$F$51)","v":"01/10-12/10"},{"$f":"IF(ISBLANK('Mali 2011'!$G$51),\"\",'Mali 2011'!$G$51)","v":"RHInterchange"},{"$f":"IF(ISBLANK('Mali 2011'!$H$51),\"\",'Mali 2011'!$H$51)","v":""},{"$f":"IF(ISBLANK('Mali 2011'!$E$52),\"\",'Mali 2011'!$E$52)","v":2733719},{"$f":"IF(ISBLANK('Mali 2011'!$H$52),\"\",'Mali 2011'!$H$52)","v":""},{"$f":"IF(ISBLANK('Mali 2011'!$F$55),\"\",'Mali 2011'!$F$55)","v":0},{"$f":"IF(ISBLANK('Mali 2011'!$G$55),\"\",'Mali 2011'!$G$55)","v":"To date, contraceptive procurement has been supported by donors.\n"},{"$f":"IF(ISBLANK('Mali 2011'!$F$56),\"\",'Mali 2011'!$F$56)","v":1},{"$f":"IF(ISBLANK('Mali 2011'!$G$56),\"\",'Mali 2011'!$G$56)","v":"UNFPA: approx. 65% and USAID: approx. 35%\n"},{"$f":"IF(ISBLANK('Mali 2011'!$F$57),\"\",'Mali 2011'!$F$57)","v":"No"},{"$f":"IF(ISBLANK('Mali 2011'!$G$57),\"\",'Mali 2011'!$G$57)","v":""},{"$f":"IF(ISBLANK('Mali 2011'!$F$59),\"\",'Mali 2011'!$F$59)","v":"N/A"},{"$f":"IF(ISBLANK('Mali 2011'!$F$60),\"\",'Mali 2011'!$F$60)","v":"N/A"},{"$f":"IF(ISBLANK('Mali 2011'!$F$61),\"\",'Mali 2011'!$F$61)","v":"N/A"},{"$f":"IF(ISBLANK('Mali 2011'!$D$62),\"\",'Mali 2011'!$D$62)","v":""},null,null,{"$f":"IF(ISBLANK('Mali 2011'!$D$66),\"\",'Mali 2011'!$D$66)","v":"Yes"},{"$f":"IF(ISBLANK('Mali 2011'!$D$67),\"\",'Mali 2011'!$D$67)","v":"Yes"},{"$f":"IF(ISBLANK('Mali 2011'!$D$68),\"\",'Mali 2011'!$D$68)","v":"Yes"},{"$f":"IF(ISBLANK('Mali 2011'!$D$69),\"\",'Mali 2011'!$D$69)","v":"Yes"},{"$f":"IF(ISBLANK('Mali 2011'!$D$70),\"\",'Mali 2011'!$D$70)","v":"No"},{"$f":"IF(ISBLANK('Mali 2011'!$D$71),\"\",'Mali 2011'!$D$71)","v":"Yes"},{"$f":"IF(ISBLANK('Mali 2011'!$D$72),\"\",'Mali 2011'!$D$72)","v":"No"},{"$f":"IF(ISBLANK('Mali 2011'!$D$73),\"\",'Mali 2011'!$D$73)","v":"Yes"},{"$f":"IF(ISBLANK('Mali 2011'!$D$74),\"\",'Mali 2011'!$D$74)","v":"No"},{"$f":"IF(ISBLANK('Mali 2011'!$D$75),\"\",'Mali 2011'!$D$75)","v":"No"},{"$f":"IF(ISBLANK('Mali 2011'!$D$76),\"\",'Mali 2011'!$D$76)","v":"No"},{"$f":"IF(ISBLANK('Mali 2011'!$D$77),\"\",'Mali 2011'!$D$77)","v":""},null,{"$f":"IF(ISBLANK('Mali 2011'!$F$66),\"\",'Mali 2011'!$F$66)","v":"Yes"},{"$f":"IF(ISBLANK('Mali 2011'!$F$67),\"\",'Mali 2011'!$F$67)","v":"Yes"},{"$f":"IF(ISBLANK('Mali 2011'!$F$68),\"\",'Mali 2011'!$F$68)","v":"Yes"},{"$f":"IF(ISBLANK('Mali 2011'!$F$69),\"\",'Mali 2011'!$F$69)","v":"Yes"},{"$f":"IF(ISBLANK('Mali 2011'!$F$70),\"\",'Mali 2011'!$F$70)","v":"Yes"},{"$f":"IF(ISBLANK('Mali 2011'!$F$71),\"\",'Mali 2011'!$F$71)","v":"Yes"},{"$f":"IF(ISBLANK('Mali 2011'!$F$72),\"\",'Mali 2011'!$F$72)","v":"Yes"},{"$f":"IF(ISBLANK('Mali 2011'!$F$73),\"\",'Mali 2011'!$F$73)","v":"No"},{"$f":"IF(ISBLANK('Mali 2011'!$F$74),\"\",'Mali 2011'!$F$74)","v":"Yes"},{"$f":"IF(ISBLANK('Mali 2011'!$F$75),\"\",'Mali 2011'!$F$75)","v":"Yes"},{"$f":"IF(ISBLANK('Mali 2011'!$F$76),\"\",'Mali 2011'!$F$76)","v":"Yes"},{"$f":"IF(ISBLANK('Mali 2011'!$F$77),\"\",'Mali 2011'!$F$77)","v":""},null,{"$f":"IF(ISBLANK('Mali 2011'!$G$66),\"\",'Mali 2011'!$G$66)","v":"Yes"},{"$f":"IF(ISBLANK('Mali 2011'!$G$67),\"\",'Mali 2011'!$G$67)","v":"Yes"},{"$f":"IF(ISBLANK('Mali 2011'!$G$68),\"\",'Mali 2011'!$G$68)","v":"Yes"},{"$f":"IF(ISBLANK('Mali 2011'!$G$69),\"\",'Mali 2011'!$G$69)","v":"Yes"},{"$f":"IF(ISBLANK('Mali 2011'!$G$70),\"\",'Mali 2011'!$G$70)","v":"Yes"},{"$f":"IF(ISBLANK('Mali 2011'!$G$71),\"\",'Mali 2011'!$G$71)","v":"Yes"},{"$f":"IF(ISBLANK('Mali 2011'!$G$72),\"\",'Mali 2011'!$G$72)","v":"Yes"},{"$f":"IF(ISBLANK('Mali 2011'!$G$73),\"\",'Mali 2011'!$G$73)","v":"Yes"},{"$f":"IF(ISBLANK('Mali 2011'!$G$74),\"\",'Mali 2011'!$G$74)","v":"No"},{"$f":"IF(ISBLANK('Mali 2011'!$G$75),\"\",'Mali 2011'!$G$75)","v":"No"},{"$f":"IF(ISBLANK('Mali 2011'!$G$76),\"\",'Mali 2011'!$G$76)","v":"Yes"},{"$f":"IF(ISBLANK('Mali 2011'!$G$77),\"\",'Mali 2011'!$G$77)","v":""},null,{"$f":"IF(ISBLANK('Mali 2011'!$H$66),\"\",'Mali 2011'!$H$66)","v":"Yes"},{"$f":"IF(ISBLANK('Mali 2011'!$H$67),\"\",'Mali 2011'!$H$67)","v":"Don't know"},{"$f":"IF(ISBLANK('Mali 2011'!$H$68),\"\",'Mali 2011'!$H$68)","v":"Yes"},{"$f":"IF(ISBLANK('Mali 2011'!$H$69),\"\",'Mali 2011'!$H$69)","v":"Yes"},{"$f":"IF(ISBLANK('Mali 2011'!$H$70),\"\",'Mali 2011'!$H$70)","v":"Yes"},{"$f":"IF(ISBLANK('Mali 2011'!$H$71),\"\",'Mali 2011'!$H$71)","v":"Yes"},{"$f":"IF(ISBLANK('Mali 2011'!$H$72),\"\",'Mali 2011'!$H$72)","v":"Yes"},{"$f":"IF(ISBLANK('Mali 2011'!$H$73),\"\",'Mali 2011'!$H$73)","v":"No"},{"$f":"IF(ISBLANK('Mali 2011'!$H$74),\"\",'Mali 2011'!$H$74)","v":"No"},{"$f":"IF(ISBLANK('Mali 2011'!$H$75),\"\",'Mali 2011'!$H$75)","v":"No"},{"$f":"IF(ISBLANK('Mali 2011'!$H$76),\"\",'Mali 2011'!$H$76)","v":"Yes"},{"$f":"IF(ISBLANK('Mali 2011'!$H$77),\"\",'Mali 2011'!$H$77)","v":""},{"$f":"IF(ISBLANK('Mali 2011'!$D$78),\"\",'Mali 2011'!$D$78)","v":""},null,{"$f":"IF(ISBLANK('Mali 2011'!$H$80),\"\",'Mali 2011'!$H$80)","v":"Yes"},{"$f":"IF(ISBLANK('Mali 2011'!$C$83),\"\",'Mali 2011'!$C$83)","v":"Plan Stratégique pour la Sécurisation des Produits de la Santé de la Reproduction (Strategic Plan for Reproductive Health Commodity Security)"},{"$f":"IF(ISBLANK('Mali 2011'!$D$83),\"\",'Mali 2011'!$D$83)","v":"2011 - 2015"},{"$f":"IF(ISBLANK('Mali 2011'!$F$83),\"\",'Mali 2011'!$F$83)","v":"No"},{"$f":"IF(ISBLANK('Mali 2011'!$G$83),\"\",'Mali 2011'!$G$83)","v":"No"},{"$f":"IF(ISBLANK('Mali 2011'!$F$84),\"\",'Mali 2011'!$F$84)","v":"Yes"},{"$f":"IF(ISBLANK('Mali 2011'!$E$85),\"\",'Mali 2011'!$E$85)","v":"All sectors"},{"$f":"IF(ISBLANK('Mali 2011'!$E$86),\"\",'Mali 2011'!$E$86)","v":"Don't know"},{"$f":"IF(ISBLANK('Mali 2011'!$H$87),\"\",'Mali 2011'!$H$87)","v":"No"},{"$f":"IF(ISBLANK('Mali 2011'!$D$88),\"\",'Mali 2011'!$D$88)","v":"N/A"},{"$f":"IF(ISBLANK('Mali 2011'!$H$89),\"\",'Mali 2011'!$H$89)","v":"No"},{"$f":"IF(ISBLANK('Mali 2011'!$D$90),\"\",'Mali 2011'!$D$90)","v":"N/A"},{"$f":"IF(ISBLANK('Mali 2011'!$H$91),\"\",'Mali 2011'!$H$91)","v":"Yes"},{"$f":"IF(ISBLANK('Mali 2011'!$C$94),\"\",'Mali 2011'!$C$94)","v":""},{"$f":"IF(ISBLANK('Mali 2011'!$E$94),\"\",'Mali 2011'!$E$94)","v":""},{"$f":"IF(ISBLANK('Mali 2011'!$G$94),\"\",'Mali 2011'!$G$94)","v":""},{"$f":"IF(ISBLANK('Mali 2011'!$C$95),\"\",'Mali 2011'!$C$95)","v":""},{"$f":"IF(ISBLANK('Mali 2011'!$E$95),\"\",'Mali 2011'!$E$95)","v":""},{"$f":"IF(ISBLANK('Mali 2011'!$G$95),\"\",'Mali 2011'!$G$95)","v":""},{"$f":"IF(ISBLANK('Mali 2011'!$C$96),\"\",'Mali 2011'!$C$96)","v":""},{"$f":"IF(ISBLANK('Mali 2011'!$E$96),\"\",'Mali 2011'!$E$96)","v":""},{"$f":"IF(ISBLANK('Mali 2011'!$G$96),\"\",'Mali 2011'!$G$96)","v":""},null,{"$f":"IF(ISBLANK('Mali 2011'!$D$99),\"\",'Mali 2011'!$D$99)","v":"No"},{"$f":"IF(ISBLANK('Mali 2011'!$E$99),\"\",'Mali 2011'!$E$99)","v":""},{"$f":"IF(ISBLANK('Mali 2011'!$H$99),\"\",'Mali 2011'!$H$99)","v":""},{"$f":"IF(ISBLANK('Mali 2011'!$D$100),\"\",'Mali 2011'!$D$100)","v":"No"},{"$f":"IF(ISBLANK('Mali 2011'!$E$100),\"\",'Mali 2011'!$E$100)","v":""},{"$f":"IF(ISBLANK('Mali 2011'!$H$100),\"\",'Mali 2011'!$H$100)","v":""},{"$f":"IF(ISBLANK('Mali 2011'!$D$101),\"\",'Mali 2011'!$D$101)","v":"No"},{"$f":"IF(ISBLANK('Mali 2011'!$E$101),\"\",'Mali 2011'!$E$101)","v":""},{"$f":"IF(ISBLANK('Mali 2011'!$H$101),\"\",'Mali 2011'!$H$101)","v":""},null,{"$f":"IF(ISBLANK('Mali 2011'!$G$104),\"\",'Mali 2011'!$G$104)","v":"No"},{"$f":"IF(ISBLANK('Mali 2011'!$G$105),\"\",'Mali 2011'!$G$105)","v":"No"},{"$f":"IF(ISBLANK('Mali 2011'!$G$106),\"\",'Mali 2011'!$G$106)","v":"N/A"},{"$f":"IF(ISBLANK('Mali 2011'!$D$107),\"\",'Mali 2011'!$D$107)","v":"N/A"},null,{"$f":"IF(ISBLANK('Mali 2011'!$G$109),\"\",'Mali 2011'!$G$109)","v":"Yes"},{"$f":"IF(ISBLANK('Mali 2011'!$G$110),\"\",'Mali 2011'!$G$110)","v":"Yes"},{"$f":"IF(ISBLANK('Mali 2011'!$G$111),\"\",'Mali 2011'!$G$111)","v":"Yes"},{"$f":"IF(ISBLANK('Mali 2011'!$G$112),\"\",'Mali 2011'!$G$112)","v":"Yes"},{"$f":"IF(ISBLANK('Mali 2011'!$G$113),\"\",'Mali 2011'!$G$113)","v":"Yes"},{"$f":"IF(ISBLANK('Mali 2011'!$G$114),\"\",'Mali 2011'!$G$114)","v":"Yes"},{"$f":"IF(ISBLANK('Mali 2011'!$G$115),\"\",'Mali 2011'!$G$115)","v":"Yes"},{"$f":"IF(ISBLANK('Mali 2011'!$G$116),\"\",'Mali 2011'!$G$116)","v":"Yes"},{"$f":"IF(ISBLANK('Mali 2011'!$G$117),\"\",'Mali 2011'!$G$117)","v":"Yes"},{"$f":"IF(ISBLANK('Mali 2011'!$G$118),\"\",'Mali 2011'!$G$118)","v":"Don't know"},{"$f":"IF(ISBLANK('Mali 2011'!$F$119),\"\",'Mali 2011'!$F$119)","v":"Don't know"},{"$f":"IF(ISBLANK('Mali 2011'!$F$120),\"\",'Mali 2011'!$F$120)","v":2010},{"$f":"IF(ISBLANK('Mali 2011'!$D$121),\"\",'Mali 2011'!$D$121)","v":"Mali National Essential Medicine List by Level (Liste Nationale des Médicaments Essentiels par Niveau Mali 2010)"},{"$f":"IF(ISBLANK('Mali 2011'!$D$122),\"\",'Mali 2011'!$D$122)","v":"The list includes 322 DCI molecules which correspond to 562 different forms and dosages of drugs."},null,{"$f":"IF(ISBLANK('Mali 2011'!$F$124),\"\",'Mali 2011'!$F$124)","v":2008},{"$f":"IF(ISBLANK('Mali 2011'!$G$125),\"\",'Mali 2011'!$G$125)","v":"No"},{"$f":"IF(ISBLANK('Mali 2011'!$G$126),\"\",'Mali 2011'!$G$126)","v":"No"},{"$f":"IF(ISBLANK('Mali 2011'!$G$127),\"\",'Mali 2011'!$G$127)","v":"No"},{"$f":"IF(ISBLANK('Mali 2011'!$G$128),\"\",'Mali 2011'!$G$128)","v":"No"},{"$f":"IF(ISBLANK('Mali 2011'!$D$129),\"\",'Mali 2011'!$D$129)","v":""},null,{"$f":"IF(ISBLANK('Mali 2011'!$G$131),\"\",'Mali 2011'!$G$131)","v":"Yes"},null,{"$f":"IF(ISBLANK('Mali 2011'!$G$133),\"\",'Mali 2011'!$G$133)","v":"No"},{"$f":"IF(ISBLANK('Mali 2011'!$G$134),\"\",'Mali 2011'!$G$134)","v":"No"},{"$f":"IF(ISBLANK('Mali 2011'!$G$135),\"\",'Mali 2011'!$G$135)","v":"Yes"},{"$f":"IF(ISBLANK('Mali 2011'!$G$136),\"\",'Mali 2011'!$G$136)","v":"No"},{"$f":"IF(ISBLANK('Mali 2011'!$G$137),\"\",'Mali 2011'!$G$137)","v":"No"},{"$f":"IF(ISBLANK('Mali 2011'!$G$138),\"\",'Mali 2011'!$G$138)","v":"Yes"},{"$f":"IF(ISBLANK('Mali 2011'!$G$139),\"\",'Mali 2011'!$G$139)","v":"No"},{"$f":"IF(ISBLANK('Mali 2011'!$G$140),\"\",'Mali 2011'!$G$140)","v":"N/A"},{"$f":"IF(ISBLANK('Mali 2011'!$G$141),\"\",'Mali 2011'!$G$141)","v":"No"},{"$f":"IF(ISBLANK('Mali 2011'!$F$142),\"\",'Mali 2011'!$F$142)","v":"01/10-12/10"},{"$f":"IF(ISBLANK('Mali 2011'!$F$143),\"\",'Mali 2011'!$F$143)","v":"Warehouse report"},null,{"$f":"IF(ISBLANK('Mali 2011'!$G$145),\"\",'Mali 2011'!$G$145)","v":"Yes"},{"$f":"IF(ISBLANK('Mali 2011'!$G$146),\"\",'Mali 2011'!$G$146)","v":"No"},{"$f":"IF(ISBLANK('Mali 2011'!$D$147),\"\",'Mali 2011'!$D$147)","v":"In Mali, contraceptives are essential drugs. As such, they are managed by the \"schema directeur\" plan which defines how all essential drugs are managed in the national public health supply chain. The existence of the technical committee of monitoring contraceptive security developing the procurement and planning table for contraceptives is a major asset for the family planning program in Mali. However, the major challenge remains the availability of consumption data and of private sector data."},"Africa"]
["Mozambique ",null,{"$f":"IF(ISBLANK('Mozambique 2011'!$H$12),\"\",'Mozambique 2011'!$H$12)","v":"Yes"},{"$f":"IF(ISBLANK('Mozambique 2011'!$D$13),\"\",'Mozambique 2011'!$D$13)","v":"Reproductive Health Commodity Security Committee"},null,{"$f":"IF(ISBLANK('Mozambique 2011'!$D$15),\"\",'Mozambique 2011'!$D$15)","v":"No"},{"$f":"IF(ISBLANK('Mozambique 2011'!$F$15),\"\",'Mozambique 2011'!$F$15)","v":""},{"$f":"IF(ISBLANK('Mozambique 2011'!$D$16),\"\",'Mozambique 2011'!$D$16)","v":"No"},{"$f":"IF(ISBLANK('Mozambique 2011'!$F$16),\"\",'Mozambique 2011'!$F$16)","v":""},{"$f":"IF(ISBLANK('Mozambique 2011'!$D$17),\"\",'Mozambique 2011'!$D$17)","v":"No"},{"$f":"IF(ISBLANK('Mozambique 2011'!$F$17),\"\",'Mozambique 2011'!$F$17)","v":""},{"$f":"IF(ISBLANK('Mozambique 2011'!$D$18),\"\",'Mozambique 2011'!$D$18)","v":"Yes"},{"$f":"IF(ISBLANK('Mozambique 2011'!$F$18),\"\",'Mozambique 2011'!$F$18)","v":"USAID, USAID | DELIVER PROJECT"},{"$f":"IF(ISBLANK('Mozambique 2011'!$D$19),\"\",'Mozambique 2011'!$D$19)","v":"Yes"},{"$f":"IF(ISBLANK('Mozambique 2011'!$F$19),\"\",'Mozambique 2011'!$F$19)","v":"UNFPA"},{"$f":"IF(ISBLANK('Mozambique 2011'!$D$20),\"\",'Mozambique 2011'!$D$20)","v":"Yes"},{"$f":"IF(ISBLANK('Mozambique 2011'!$F$20),\"\",'Mozambique 2011'!$F$20)","v":"Reproductive Health (RH) Unit"},{"$f":"IF(ISBLANK('Mozambique 2011'!$D$21),\"\",'Mozambique 2011'!$D$21)","v":"Yes"},{"$f":"IF(ISBLANK('Mozambique 2011'!$F$21),\"\",'Mozambique 2011'!$F$21)","v":"Central de Medicamentos e Artigos Medicos (CMAM) (central medical store)"},{"$f":"IF(ISBLANK('Mozambique 2011'!$D$22),\"\",'Mozambique 2011'!$D$22)","v":"No"},{"$f":"IF(ISBLANK('Mozambique 2011'!$F$22),\"\",'Mozambique 2011'!$F$22)","v":""},{"$f":"IF(ISBLANK('Mozambique 2011'!$D$23),\"\",'Mozambique 2011'!$D$23)","v":"No"},{"$f":"IF(ISBLANK('Mozambique 2011'!$F$23),\"\",'Mozambique 2011'!$F$23)","v":""},{"$f":"IF(ISBLANK('Mozambique 2011'!$H$24),\"\",'Mozambique 2011'!$H$24)","v":"6 or more times"},{"$f":"IF(ISBLANK('Mozambique 2011'!$H$25),\"\",'Mozambique 2011'!$H$25)","v":"No"},{"$f":"IF(ISBLANK('Mozambique 2011'!$D$26),\"\",'Mozambique 2011'!$D$26)","v":"Yes"},{"$f":"IF(ISBLANK('Mozambique 2011'!$F$26),\"\",'Mozambique 2011'!$F$26)","v":"Government"},{"$f":"IF(ISBLANK('Mozambique 2011'!$H$26),\"\",'Mozambique 2011'!$H$26)","v":"First Lady"},null,{"$f":"IF(ISBLANK('Mozambique 2011'!$F$28),\"\",'Mozambique 2011'!$F$28)","v":"January"},{"$f":"IF(ISBLANK('Mozambique 2011'!$H$28),\"\",'Mozambique 2011'!$H$28)","v":"December"},{"$f":"IF(ISBLANK('Mozambique 2011'!$G$29),\"\",'Mozambique 2011'!$G$29)","v":7148583},{"$f":"IF(ISBLANK('Mozambique 2011'!$E$30),\"\",'Mozambique 2011'!$E$30)","v":"06/10"},{"$f":"IF(ISBLANK('Mozambique 2011'!$G$30),\"\",'Mozambique 2011'!$G$30)","v":"Representatives from the MOH RH Program, CMAM, USAID, UNFPA, with technical assistance from the USAID | DELIVER PROJECT"},{"$f":"IF(ISBLANK('Mozambique 2011'!$H$31),\"\",'Mozambique 2011'!$H$31)","v":"Yes"},{"$f":"IF(ISBLANK('Mozambique 2011'!$H$32),\"\",'Mozambique 2011'!$H$32)","v":"No"},{"$f":"IF(ISBLANK('Mozambique 2011'!$E$35),\"\",'Mozambique 2011'!$E$35)","v":0},{"$f":"IF(ISBLANK('Mozambique 2011'!$F$35),\"\",'Mozambique 2011'!$F$35)","v":"01/10-12/10"},{"$f":"IF(ISBLANK('Mozambique 2011'!$G$35),\"\",'Mozambique 2011'!$G$35)","v":"Ministry records"},{"$f":"IF(ISBLANK('Mozambique 2011'!$H$35),\"\",'Mozambique 2011'!$H$35)","v":""},{"$f":"IF(ISBLANK('Mozambique 2011'!$H$37),\"\",'Mozambique 2011'!$H$37)","v":"No"},{"$f":"IF(ISBLANK('Mozambique 2011'!$D$40),\"\",'Mozambique 2011'!$D$40)","v":"No"},{"$f":"IF(ISBLANK('Mozambique 2011'!$D$41),\"\",'Mozambique 2011'!$D$41)","v":"N/A"},{"$f":"IF(ISBLANK('Mozambique 2011'!$E$40),\"\",'Mozambique 2011'!$E$40)","v":0},{"$f":"IF(ISBLANK('Mozambique 2011'!$F$40),\"\",'Mozambique 2011'!$F$40)","v":"01/10-12/10"},{"$f":"IF(ISBLANK('Mozambique 2011'!$G$40),\"\",'Mozambique 2011'!$G$40)","v":""},{"$f":"IF(ISBLANK('Mozambique 2011'!$H$40),\"\",'Mozambique 2011'!$H$40)","v":""},{"$f":"IF(ISBLANK('Mozambique 2011'!$D$42),\"\",'Mozambique 2011'!$D$42)","v":"No"},{"$f":"IF(ISBLANK('Mozambique 2011'!$D$43),\"\",'Mozambique 2011'!$D$43)","v":"N/A"},{"$f":"IF(ISBLANK('Mozambique 2011'!$E$42),\"\",'Mozambique 2011'!$E$42)","v":0},{"$f":"IF(ISBLANK('Mozambique 2011'!$F$42),\"\",'Mozambique 2011'!$F$42)","v":"01/10-12/10"},{"$f":"IF(ISBLANK('Mozambique 2011'!$G$42),\"\",'Mozambique 2011'!$G$42)","v":""},{"$f":"IF(ISBLANK('Mozambique 2011'!$H$42),\"\",'Mozambique 2011'!$H$42)","v":""},{"$f":"IF(ISBLANK('Mozambique 2011'!$E$44),\"\",'Mozambique 2011'!$E$44)","v":0},{"$f":"IF(ISBLANK('Mozambique 2011'!$H$44),\"\",'Mozambique 2011'!$H$44)","v":""},null,{"$f":"IF(ISBLANK('Mozambique 2011'!$D$48),\"\",'Mozambique 2011'!$D$48)","v":"Yes"},{"$f":"IF(ISBLANK('Mozambique 2011'!$D$49),\"\",'Mozambique 2011'!$D$49)","v":"UNFPA, USAID, World Bank"},{"$f":"IF(ISBLANK('Mozambique 2011'!$E$48),\"\",'Mozambique 2011'!$E$48)","v":6209890},{"$f":"IF(ISBLANK('Mozambique 2011'!$F$48),\"\",'Mozambique 2011'!$F$48)","v":"01/10-12/10"},{"$f":"IF(ISBLANK('Mozambique 2011'!$G$48),\"\",'Mozambique 2011'!$G$48)","v":"RHInterchange"},{"$f":"IF(ISBLANK('Mozambique 2011'!$H$48),\"\",'Mozambique 2011'!$H$48)","v":""},{"$f":"IF(ISBLANK('Mozambique 2011'!$D$50),\"\",'Mozambique 2011'!$D$50)","v":"No"},{"$f":"IF(ISBLANK('Mozambique 2011'!$E$50),\"\",'Mozambique 2011'!$E$50)","v":0},{"$f":"IF(ISBLANK('Mozambique 2011'!$F$50),\"\",'Mozambique 2011'!$F$50)","v":"01/10-12/10"},{"$f":"IF(ISBLANK('Mozambique 2011'!$G$50),\"\",'Mozambique 2011'!$G$50)","v":""},{"$f":"IF(ISBLANK('Mozambique 2011'!$H$50),\"\",'Mozambique 2011'!$H$50)","v":""},{"$f":"IF(ISBLANK('Mozambique 2011'!$D$51),\"\",'Mozambique 2011'!$D$51)","v":"No"},{"$f":"IF(ISBLANK('Mozambique 2011'!$E$51),\"\",'Mozambique 2011'!$E$51)","v":0},{"$f":"IF(ISBLANK('Mozambique 2011'!$F$51),\"\",'Mozambique 2011'!$F$51)","v":"01/10-12/10"},{"$f":"IF(ISBLANK('Mozambique 2011'!$G$51),\"\",'Mozambique 2011'!$G$51)","v":""},{"$f":"IF(ISBLANK('Mozambique 2011'!$H$51),\"\",'Mozambique 2011'!$H$51)","v":""},{"$f":"IF(ISBLANK('Mozambique 2011'!$E$52),\"\",'Mozambique 2011'!$E$52)","v":6209890},{"$f":"IF(ISBLANK('Mozambique 2011'!$H$52),\"\",'Mozambique 2011'!$H$52)","v":""},{"$f":"IF(ISBLANK('Mozambique 2011'!$F$55),\"\",'Mozambique 2011'!$F$55)","v":0},{"$f":"IF(ISBLANK('Mozambique 2011'!$G$55),\"\",'Mozambique 2011'!$G$55)","v":"Although the government considers RH a priority, the allocation of funds  has been used for other priority health commodities."},{"$f":"IF(ISBLANK('Mozambique 2011'!$F$56),\"\",'Mozambique 2011'!$F$56)","v":0.86868824213134266},{"$f":"IF(ISBLANK('Mozambique 2011'!$G$56),\"\",'Mozambique 2011'!$G$56)","v":"Donors have provided 100% of needs. There has not been a shortage of available funding for contraceptives and condoms."},{"$f":"IF(ISBLANK('Mozambique 2011'!$F$57),\"\",'Mozambique 2011'!$F$57)","v":""},{"$f":"IF(ISBLANK('Mozambique 2011'!$G$57),\"\",'Mozambique 2011'!$G$57)","v":""},{"$f":"IF(ISBLANK('Mozambique 2011'!$F$59),\"\",'Mozambique 2011'!$F$59)","v":"N/A"},{"$f":"IF(ISBLANK('Mozambique 2011'!$F$60),\"\",'Mozambique 2011'!$F$60)","v":"N/A"},{"$f":"IF(ISBLANK('Mozambique 2011'!$F$61),\"\",'Mozambique 2011'!$F$61)","v":"N/A"},{"$f":"IF(ISBLANK('Mozambique 2011'!$D$62),\"\",'Mozambique 2011'!$D$62)","v":"Donors have provided 100% of needs. There has not been a shortage of available funding for contraceptives and condoms. While CMAM received significant technical assistance to conduct procurement and theoretically could procure contraceptives and condoms, funds the MOH manages have been used for other priority health commodities."},null,null,{"$f":"IF(ISBLANK('Mozambique 2011'!$D$66),\"\",'Mozambique 2011'!$D$66)","v":"Yes"},{"$f":"IF(ISBLANK('Mozambique 2011'!$D$67),\"\",'Mozambique 2011'!$D$67)","v":"Yes"},{"$f":"IF(ISBLANK('Mozambique 2011'!$D$68),\"\",'Mozambique 2011'!$D$68)","v":"Yes"},{"$f":"IF(ISBLANK('Mozambique 2011'!$D$69),\"\",'Mozambique 2011'!$D$69)","v":"No"},{"$f":"IF(ISBLANK('Mozambique 2011'!$D$70),\"\",'Mozambique 2011'!$D$70)","v":"No"},{"$f":"IF(ISBLANK('Mozambique 2011'!$D$71),\"\",'Mozambique 2011'!$D$71)","v":"Yes"},{"$f":"IF(ISBLANK('Mozambique 2011'!$D$72),\"\",'Mozambique 2011'!$D$72)","v":"Yes"},{"$f":"IF(ISBLANK('Mozambique 2011'!$D$73),\"\",'Mozambique 2011'!$D$73)","v":"No"},{"$f":"IF(ISBLANK('Mozambique 2011'!$D$74),\"\",'Mozambique 2011'!$D$74)","v":"No"},{"$f":"IF(ISBLANK('Mozambique 2011'!$D$75),\"\",'Mozambique 2011'!$D$75)","v":"No"},{"$f":"IF(ISBLANK('Mozambique 2011'!$D$76),\"\",'Mozambique 2011'!$D$76)","v":"No"},{"$f":"IF(ISBLANK('Mozambique 2011'!$D$77),\"\",'Mozambique 2011'!$D$77)","v":""},null,{"$f":"IF(ISBLANK('Mozambique 2011'!$F$66),\"\",'Mozambique 2011'!$F$66)","v":"Yes"},{"$f":"IF(ISBLANK('Mozambique 2011'!$F$67),\"\",'Mozambique 2011'!$F$67)","v":"Yes"},{"$f":"IF(ISBLANK('Mozambique 2011'!$F$68),\"\",'Mozambique 2011'!$F$68)","v":"Yes"},{"$f":"IF(ISBLANK('Mozambique 2011'!$F$69),\"\",'Mozambique 2011'!$F$69)","v":"No"},{"$f":"IF(ISBLANK('Mozambique 2011'!$F$70),\"\",'Mozambique 2011'!$F$70)","v":"Yes"},{"$f":"IF(ISBLANK('Mozambique 2011'!$F$71),\"\",'Mozambique 2011'!$F$71)","v":"Yes"},{"$f":"IF(ISBLANK('Mozambique 2011'!$F$72),\"\",'Mozambique 2011'!$F$72)","v":"Yes"},{"$f":"IF(ISBLANK('Mozambique 2011'!$F$73),\"\",'Mozambique 2011'!$F$73)","v":"No"},{"$f":"IF(ISBLANK('Mozambique 2011'!$F$74),\"\",'Mozambique 2011'!$F$74)","v":"Yes"},{"$f":"IF(ISBLANK('Mozambique 2011'!$F$75),\"\",'Mozambique 2011'!$F$75)","v":"Yes"},{"$f":"IF(ISBLANK('Mozambique 2011'!$F$76),\"\",'Mozambique 2011'!$F$76)","v":"No"},{"$f":"IF(ISBLANK('Mozambique 2011'!$F$77),\"\",'Mozambique 2011'!$F$77)","v":""},null,{"$f":"IF(ISBLANK('Mozambique 2011'!$G$66),\"\",'Mozambique 2011'!$G$66)","v":"Yes"},{"$f":"IF(ISBLANK('Mozambique 2011'!$G$67),\"\",'Mozambique 2011'!$G$67)","v":"Yes"},{"$f":"IF(ISBLANK('Mozambique 2011'!$G$68),\"\",'Mozambique 2011'!$G$68)","v":"No"},{"$f":"IF(ISBLANK('Mozambique 2011'!$G$69),\"\",'Mozambique 2011'!$G$69)","v":"No"},{"$f":"IF(ISBLANK('Mozambique 2011'!$G$70),\"\",'Mozambique 2011'!$G$70)","v":"No"},{"$f":"IF(ISBLANK('Mozambique 2011'!$G$71),\"\",'Mozambique 2011'!$G$71)","v":"Yes"},{"$f":"IF(ISBLANK('Mozambique 2011'!$G$72),\"\",'Mozambique 2011'!$G$72)","v":"Yes"},{"$f":"IF(ISBLANK('Mozambique 2011'!$G$73),\"\",'Mozambique 2011'!$G$73)","v":"No"},{"$f":"IF(ISBLANK('Mozambique 2011'!$G$74),\"\",'Mozambique 2011'!$G$74)","v":"No"},{"$f":"IF(ISBLANK('Mozambique 2011'!$G$75),\"\",'Mozambique 2011'!$G$75)","v":"No"},{"$f":"IF(ISBLANK('Mozambique 2011'!$G$76),\"\",'Mozambique 2011'!$G$76)","v":"No"},{"$f":"IF(ISBLANK('Mozambique 2011'!$G$77),\"\",'Mozambique 2011'!$G$77)","v":""},null,{"$f":"IF(ISBLANK('Mozambique 2011'!$H$66),\"\",'Mozambique 2011'!$H$66)","v":"Yes"},{"$f":"IF(ISBLANK('Mozambique 2011'!$H$67),\"\",'Mozambique 2011'!$H$67)","v":"Yes"},{"$f":"IF(ISBLANK('Mozambique 2011'!$H$68),\"\",'Mozambique 2011'!$H$68)","v":"No"},{"$f":"IF(ISBLANK('Mozambique 2011'!$H$69),\"\",'Mozambique 2011'!$H$69)","v":"No"},{"$f":"IF(ISBLANK('Mozambique 2011'!$H$70),\"\",'Mozambique 2011'!$H$70)","v":"No"},{"$f":"IF(ISBLANK('Mozambique 2011'!$H$71),\"\",'Mozambique 2011'!$H$71)","v":"Yes"},{"$f":"IF(ISBLANK('Mozambique 2011'!$H$72),\"\",'Mozambique 2011'!$H$72)","v":"Yes"},{"$f":"IF(ISBLANK('Mozambique 2011'!$H$73),\"\",'Mozambique 2011'!$H$73)","v":"No"},{"$f":"IF(ISBLANK('Mozambique 2011'!$H$74),\"\",'Mozambique 2011'!$H$74)","v":"No"},{"$f":"IF(ISBLANK('Mozambique 2011'!$H$75),\"\",'Mozambique 2011'!$H$75)","v":"No"},{"$f":"IF(ISBLANK('Mozambique 2011'!$H$76),\"\",'Mozambique 2011'!$H$76)","v":"No"},{"$f":"IF(ISBLANK('Mozambique 2011'!$H$77),\"\",'Mozambique 2011'!$H$77)","v":""},{"$f":"IF(ISBLANK('Mozambique 2011'!$D$78),\"\",'Mozambique 2011'!$D$78)","v":"Currently, the provision of female condoms in public sector facilities is done through PSI through the dispensing facilities installed in the public institutions. Clients in the public sector access them for free. In the future, this will be managed by Conselho Nacional de Combate ao HIV/SIDA (CNCS), who will be responsible for requisition and repositioning."},null,{"$f":"IF(ISBLANK('Mozambique 2011'!$H$80),\"\",'Mozambique 2011'!$H$80)","v":"Yes"},{"$f":"IF(ISBLANK('Mozambique 2011'!$C$83),\"\",'Mozambique 2011'!$C$83)","v":"Family Planning and Contraception Strategy  "},{"$f":"IF(ISBLANK('Mozambique 2011'!$D$83),\"\",'Mozambique 2011'!$D$83)","v":"2009-2013"},{"$f":"IF(ISBLANK('Mozambique 2011'!$F$83),\"\",'Mozambique 2011'!$F$83)","v":"Yes"},{"$f":"IF(ISBLANK('Mozambique 2011'!$G$83),\"\",'Mozambique 2011'!$G$83)","v":"Yes"},{"$f":"IF(ISBLANK('Mozambique 2011'!$F$84),\"\",'Mozambique 2011'!$F$84)","v":"No"},{"$f":"IF(ISBLANK('Mozambique 2011'!$E$85),\"\",'Mozambique 2011'!$E$85)","v":"N/A"},{"$f":"IF(ISBLANK('Mozambique 2011'!$E$86),\"\",'Mozambique 2011'!$E$86)","v":"N/A"},{"$f":"IF(ISBLANK('Mozambique 2011'!$H$87),\"\",'Mozambique 2011'!$H$87)","v":"Yes"},{"$f":"IF(ISBLANK('Mozambique 2011'!$D$88),\"\",'Mozambique 2011'!$D$88)","v":"Reportedly lengthy process for registration and MOH approval to launch socially marketed FP products"},{"$f":"IF(ISBLANK('Mozambique 2011'!$H$89),\"\",'Mozambique 2011'!$H$89)","v":"Yes"},{"$f":"IF(ISBLANK('Mozambique 2011'!$D$90),\"\",'Mozambique 2011'!$D$90)","v":"The Law for Private Medicine allows the private sector to import and prescribe all contraceptive methods. \n"},{"$f":"IF(ISBLANK('Mozambique 2011'!$H$91),\"\",'Mozambique 2011'!$H$91)","v":"Yes"},{"$f":"IF(ISBLANK('Mozambique 2011'!$C$94),\"\",'Mozambique 2011'!$C$94)","v":"IUDs"},{"$f":"IF(ISBLANK('Mozambique 2011'!$E$94),\"\",'Mozambique 2011'!$E$94)","v":"Only trained maternal/child health (MCH) nurses can insert (basic nurses cannot)."},{"$f":"IF(ISBLANK('Mozambique 2011'!$G$94),\"\",'Mozambique 2011'!$G$94)","v":""},{"$f":"IF(ISBLANK('Mozambique 2011'!$C$95),\"\",'Mozambique 2011'!$C$95)","v":"Injectables"},{"$f":"IF(ISBLANK('Mozambique 2011'!$E$95),\"\",'Mozambique 2011'!$E$95)","v":"Only MCH nurses can provide injections."},{"$f":"IF(ISBLANK('Mozambique 2011'!$G$95),\"\",'Mozambique 2011'!$G$95)","v":""},{"$f":"IF(ISBLANK('Mozambique 2011'!$C$96),\"\",'Mozambique 2011'!$C$96)","v":"Orals"},{"$f":"IF(ISBLANK('Mozambique 2011'!$E$96),\"\",'Mozambique 2011'!$E$96)","v":"MCH Activists (community-based agents) can provide orals after the first consultation with an MCH nurse. (They also provide condoms.)"},{"$f":"IF(ISBLANK('Mozambique 2011'!$G$96),\"\",'Mozambique 2011'!$G$96)","v":""},null,{"$f":"IF(ISBLANK('Mozambique 2011'!$D$99),\"\",'Mozambique 2011'!$D$99)","v":"No"},{"$f":"IF(ISBLANK('Mozambique 2011'!$E$99),\"\",'Mozambique 2011'!$E$99)","v":""},{"$f":"IF(ISBLANK('Mozambique 2011'!$H$99),\"\",'Mozambique 2011'!$H$99)","v":""},{"$f":"IF(ISBLANK('Mozambique 2011'!$D$100),\"\",'Mozambique 2011'!$D$100)","v":"No"},{"$f":"IF(ISBLANK('Mozambique 2011'!$E$100),\"\",'Mozambique 2011'!$E$100)","v":""},{"$f":"IF(ISBLANK('Mozambique 2011'!$H$100),\"\",'Mozambique 2011'!$H$100)","v":""},{"$f":"IF(ISBLANK('Mozambique 2011'!$D$101),\"\",'Mozambique 2011'!$D$101)","v":"No"},{"$f":"IF(ISBLANK('Mozambique 2011'!$E$101),\"\",'Mozambique 2011'!$E$101)","v":""},{"$f":"IF(ISBLANK('Mozambique 2011'!$H$101),\"\",'Mozambique 2011'!$H$101)","v":""},null,{"$f":"IF(ISBLANK('Mozambique 2011'!$G$104),\"\",'Mozambique 2011'!$G$104)","v":"No"},{"$f":"IF(ISBLANK('Mozambique 2011'!$G$105),\"\",'Mozambique 2011'!$G$105)","v":"No"},{"$f":"IF(ISBLANK('Mozambique 2011'!$G$106),\"\",'Mozambique 2011'!$G$106)","v":"N/A"},{"$f":"IF(ISBLANK('Mozambique 2011'!$D$107),\"\",'Mozambique 2011'!$D$107)","v":"N/A"},null,{"$f":"IF(ISBLANK('Mozambique 2011'!$G$109),\"\",'Mozambique 2011'!$G$109)","v":"Yes"},{"$f":"IF(ISBLANK('Mozambique 2011'!$G$110),\"\",'Mozambique 2011'!$G$110)","v":"Yes"},{"$f":"IF(ISBLANK('Mozambique 2011'!$G$111),\"\",'Mozambique 2011'!$G$111)","v":"Yes"},{"$f":"IF(ISBLANK('Mozambique 2011'!$G$112),\"\",'Mozambique 2011'!$G$112)","v":"No"},{"$f":"IF(ISBLANK('Mozambique 2011'!$G$113),\"\",'Mozambique 2011'!$G$113)","v":"Yes"},{"$f":"IF(ISBLANK('Mozambique 2011'!$G$114),\"\",'Mozambique 2011'!$G$114)","v":"No"},{"$f":"IF(ISBLANK('Mozambique 2011'!$G$115),\"\",'Mozambique 2011'!$G$115)","v":"No"},{"$f":"IF(ISBLANK('Mozambique 2011'!$G$116),\"\",'Mozambique 2011'!$G$116)","v":"Yes"},{"$f":"IF(ISBLANK('Mozambique 2011'!$G$117),\"\",'Mozambique 2011'!$G$117)","v":"No"},{"$f":"IF(ISBLANK('Mozambique 2011'!$G$118),\"\",'Mozambique 2011'!$G$118)","v":"Yes"},{"$f":"IF(ISBLANK('Mozambique 2011'!$F$119),\"\",'Mozambique 2011'!$F$119)","v":"Spermicide"},{"$f":"IF(ISBLANK('Mozambique 2011'!$F$120),\"\",'Mozambique 2011'!$F$120)","v":2007},{"$f":"IF(ISBLANK('Mozambique 2011'!$D$121),\"\",'Mozambique 2011'!$D$121)","v":"Formulario Nacional de Medicamentos"},{"$f":"IF(ISBLANK('Mozambique 2011'!$D$122),\"\",'Mozambique 2011'!$D$122)","v":"Condoms are not listed alone on the Formulario Nacional de Medicamentos but are mentioned. "},null,{"$f":"IF(ISBLANK('Mozambique 2011'!$F$124),\"\",'Mozambique 2011'!$F$124)","v":2007},{"$f":"IF(ISBLANK('Mozambique 2011'!$G$125),\"\",'Mozambique 2011'!$G$125)","v":"Yes"},{"$f":"IF(ISBLANK('Mozambique 2011'!$G$126),\"\",'Mozambique 2011'!$G$126)","v":"No"},{"$f":"IF(ISBLANK('Mozambique 2011'!$G$127),\"\",'Mozambique 2011'!$G$127)","v":"No"},{"$f":"IF(ISBLANK('Mozambique 2011'!$G$128),\"\",'Mozambique 2011'!$G$128)","v":"No"},{"$f":"IF(ISBLANK('Mozambique 2011'!$D$129),\"\",'Mozambique 2011'!$D$129)","v":"FP/RH is considered one of the priority programs within the health sector."},null,{"$f":"IF(ISBLANK('Mozambique 2011'!$G$131),\"\",'Mozambique 2011'!$G$131)","v":"Yes"},null,{"$f":"IF(ISBLANK('Mozambique 2011'!$G$133),\"\",'Mozambique 2011'!$G$133)","v":"Yes"},{"$f":"IF(ISBLANK('Mozambique 2011'!$G$134),\"\",'Mozambique 2011'!$G$134)","v":"Yes"},{"$f":"IF(ISBLANK('Mozambique 2011'!$G$135),\"\",'Mozambique 2011'!$G$135)","v":"No"},{"$f":"IF(ISBLANK('Mozambique 2011'!$G$136),\"\",'Mozambique 2011'!$G$136)","v":"N/A"},{"$f":"IF(ISBLANK('Mozambique 2011'!$G$137),\"\",'Mozambique 2011'!$G$137)","v":"No"},{"$f":"IF(ISBLANK('Mozambique 2011'!$G$138),\"\",'Mozambique 2011'!$G$138)","v":"No"},{"$f":"IF(ISBLANK('Mozambique 2011'!$G$139),\"\",'Mozambique 2011'!$G$139)","v":"No"},{"$f":"IF(ISBLANK('Mozambique 2011'!$G$140),\"\",'Mozambique 2011'!$G$140)","v":"N/A"},{"$f":"IF(ISBLANK('Mozambique 2011'!$G$141),\"\",'Mozambique 2011'!$G$141)","v":"N/A"},{"$f":"IF(ISBLANK('Mozambique 2011'!$F$142),\"\",'Mozambique 2011'!$F$142)","v":"03/10-02/11"},{"$f":"IF(ISBLANK('Mozambique 2011'!$F$143),\"\",'Mozambique 2011'!$F$143)","v":"Procurement Planning and Monitoring Report (PPMR) and Logistics Management Information System"},null,{"$f":"IF(ISBLANK('Mozambique 2011'!$G$145),\"\",'Mozambique 2011'!$G$145)","v":"Yes"},{"$f":"IF(ISBLANK('Mozambique 2011'!$G$146),\"\",'Mozambique 2011'!$G$146)","v":"No"},{"$f":"IF(ISBLANK('Mozambique 2011'!$D$147),\"\",'Mozambique 2011'!$D$147)","v":""},"Africa"]
["Nepal ",null,{"$f":"IF(ISBLANK('Nepal 2011'!$H$12),\"\",'Nepal 2011'!$H$12)","v":"Yes"},{"$f":"IF(ISBLANK('Nepal 2011'!$D$13),\"\",'Nepal 2011'!$D$13)","v":"Contraceptive Security Working Group"},null,{"$f":"IF(ISBLANK('Nepal 2011'!$D$15),\"\",'Nepal 2011'!$D$15)","v":"Yes"},{"$f":"IF(ISBLANK('Nepal 2011'!$F$15),\"\",'Nepal 2011'!$F$15)","v":"Contraceptives Retail Sales (CRS)"},{"$f":"IF(ISBLANK('Nepal 2011'!$D$16),\"\",'Nepal 2011'!$D$16)","v":"Yes"},{"$f":"IF(ISBLANK('Nepal 2011'!$F$16),\"\",'Nepal 2011'!$F$16)","v":"Family Planning Association of Nepal (FPAN)"},{"$f":"IF(ISBLANK('Nepal 2011'!$D$17),\"\",'Nepal 2011'!$D$17)","v":"No"},{"$f":"IF(ISBLANK('Nepal 2011'!$F$17),\"\",'Nepal 2011'!$F$17)","v":""},{"$f":"IF(ISBLANK('Nepal 2011'!$D$18),\"\",'Nepal 2011'!$D$18)","v":"Yes"},{"$f":"IF(ISBLANK('Nepal 2011'!$F$18),\"\",'Nepal 2011'!$F$18)","v":"DFID, KfW, USAID, World Bank, AusAID"},{"$f":"IF(ISBLANK('Nepal 2011'!$D$19),\"\",'Nepal 2011'!$D$19)","v":"Yes"},{"$f":"IF(ISBLANK('Nepal 2011'!$F$19),\"\",'Nepal 2011'!$F$19)","v":"UNFPA, UNICEF"},{"$f":"IF(ISBLANK('Nepal 2011'!$D$20),\"\",'Nepal 2011'!$D$20)","v":"Yes"},{"$f":"IF(ISBLANK('Nepal 2011'!$F$20),\"\",'Nepal 2011'!$F$20)","v":"Department of Health Services (DoHS) and Family Health Division (FHD), Logistics Management Division (LMD), National Center for AIDS and STD Control (NCASC)"},{"$f":"IF(ISBLANK('Nepal 2011'!$D$21),\"\",'Nepal 2011'!$D$21)","v":"Yes"},{"$f":"IF(ISBLANK('Nepal 2011'!$F$21),\"\",'Nepal 2011'!$F$21)","v":"Central Warehouse Teku and Pathalaiya/Logistics Management Division"},{"$f":"IF(ISBLANK('Nepal 2011'!$D$22),\"\",'Nepal 2011'!$D$22)","v":"Yes"},{"$f":"IF(ISBLANK('Nepal 2011'!$F$22),\"\",'Nepal 2011'!$F$22)","v":"National Planning Commission (NPC), Ministry of Finance (MoF)"},{"$f":"IF(ISBLANK('Nepal 2011'!$D$23),\"\",'Nepal 2011'!$D$23)","v":""},{"$f":"IF(ISBLANK('Nepal 2011'!$F$23),\"\",'Nepal 2011'!$F$23)","v":""},{"$f":"IF(ISBLANK('Nepal 2011'!$H$24),\"\",'Nepal 2011'!$H$24)","v":"3-5 times"},{"$f":"IF(ISBLANK('Nepal 2011'!$H$25),\"\",'Nepal 2011'!$H$25)","v":"Yes"},{"$f":"IF(ISBLANK('Nepal 2011'!$D$26),\"\",'Nepal 2011'!$D$26)","v":"Yes"},{"$f":"IF(ISBLANK('Nepal 2011'!$F$26),\"\",'Nepal 2011'!$F$26)","v":"Logistics Management Division/MOH"},{"$f":"IF(ISBLANK('Nepal 2011'!$H$26),\"\",'Nepal 2011'!$H$26)","v":"Director"},null,{"$f":"IF(ISBLANK('Nepal 2011'!$F$28),\"\",'Nepal 2011'!$F$28)","v":"July"},{"$f":"IF(ISBLANK('Nepal 2011'!$H$28),\"\",'Nepal 2011'!$H$28)","v":"June"},{"$f":"IF(ISBLANK('Nepal 2011'!$G$29),\"\",'Nepal 2011'!$G$29)","v":3676347},{"$f":"IF(ISBLANK('Nepal 2011'!$E$30),\"\",'Nepal 2011'!$E$30)","v":"08/10"},{"$f":"IF(ISBLANK('Nepal 2011'!$G$30),\"\",'Nepal 2011'!$G$30)","v":"Logistics Management Division"},{"$f":"IF(ISBLANK('Nepal 2011'!$H$31),\"\",'Nepal 2011'!$H$31)","v":"Yes"},{"$f":"IF(ISBLANK('Nepal 2011'!$H$32),\"\",'Nepal 2011'!$H$32)","v":"Yes"},{"$f":"IF(ISBLANK('Nepal 2011'!$E$35),\"\",'Nepal 2011'!$E$35)","v":2840000},{"$f":"IF(ISBLANK('Nepal 2011'!$F$35),\"\",'Nepal 2011'!$F$35)","v":"2009-2010"},{"$f":"IF(ISBLANK('Nepal 2011'!$G$35),\"\",'Nepal 2011'!$G$35)","v":"LMD records, PipeLine reports"},{"$f":"IF(ISBLANK('Nepal 2011'!$H$35),\"\",'Nepal 2011'!$H$35)","v":""},{"$f":"IF(ISBLANK('Nepal 2011'!$H$37),\"\",'Nepal 2011'!$H$37)","v":"Yes"},{"$f":"IF(ISBLANK('Nepal 2011'!$D$40),\"\",'Nepal 2011'!$D$40)","v":"Yes"},{"$f":"IF(ISBLANK('Nepal 2011'!$D$41),\"\",'Nepal 2011'!$D$41)","v":"MOH funds"},{"$f":"IF(ISBLANK('Nepal 2011'!$E$40),\"\",'Nepal 2011'!$E$40)","v":2242941},{"$f":"IF(ISBLANK('Nepal 2011'!$F$40),\"\",'Nepal 2011'!$F$40)","v":"2009-2010"},{"$f":"IF(ISBLANK('Nepal 2011'!$G$40),\"\",'Nepal 2011'!$G$40)","v":"PipeLine reports"},{"$f":"IF(ISBLANK('Nepal 2011'!$H$40),\"\",'Nepal 2011'!$H$40)","v":""},{"$f":"IF(ISBLANK('Nepal 2011'!$D$42),\"\",'Nepal 2011'!$D$42)","v":"Yes"},{"$f":"IF(ISBLANK('Nepal 2011'!$D$43),\"\",'Nepal 2011'!$D$43)","v":"Pool funds from World Bank, DFID, and AusAID"},{"$f":"IF(ISBLANK('Nepal 2011'!$E$42),\"\",'Nepal 2011'!$E$42)","v":347701},{"$f":"IF(ISBLANK('Nepal 2011'!$F$42),\"\",'Nepal 2011'!$F$42)","v":"2009-2010"},{"$f":"IF(ISBLANK('Nepal 2011'!$G$42),\"\",'Nepal 2011'!$G$42)","v":"PipeLine reports"},{"$f":"IF(ISBLANK('Nepal 2011'!$H$42),\"\",'Nepal 2011'!$H$42)","v":""},{"$f":"IF(ISBLANK('Nepal 2011'!$E$44),\"\",'Nepal 2011'!$E$44)","v":2590642},{"$f":"IF(ISBLANK('Nepal 2011'!$H$44),\"\",'Nepal 2011'!$H$44)","v":""},null,{"$f":"IF(ISBLANK('Nepal 2011'!$D$48),\"\",'Nepal 2011'!$D$48)","v":"Yes"},{"$f":"IF(ISBLANK('Nepal 2011'!$D$49),\"\",'Nepal 2011'!$D$49)","v":"KfW (USD $852,138 for condoms and injectables) & USAID (USD $233,568 for condoms)"},{"$f":"IF(ISBLANK('Nepal 2011'!$E$48),\"\",'Nepal 2011'!$E$48)","v":1085706},{"$f":"IF(ISBLANK('Nepal 2011'!$F$48),\"\",'Nepal 2011'!$F$48)","v":"2009-2010"},{"$f":"IF(ISBLANK('Nepal 2011'!$G$48),\"\",'Nepal 2011'!$G$48)","v":"PipeLine report"},{"$f":"IF(ISBLANK('Nepal 2011'!$H$48),\"\",'Nepal 2011'!$H$48)","v":""},{"$f":"IF(ISBLANK('Nepal 2011'!$D$50),\"\",'Nepal 2011'!$D$50)","v":"Yes"},{"$f":"IF(ISBLANK('Nepal 2011'!$E$50),\"\",'Nepal 2011'!$E$50)","v":""},{"$f":"IF(ISBLANK('Nepal 2011'!$F$50),\"\",'Nepal 2011'!$F$50)","v":"2009-2010"},{"$f":"IF(ISBLANK('Nepal 2011'!$G$50),\"\",'Nepal 2011'!$G$50)","v":""},{"$f":"IF(ISBLANK('Nepal 2011'!$H$50),\"\",'Nepal 2011'!$H$50)","v":"Insignificant quantity"},{"$f":"IF(ISBLANK('Nepal 2011'!$D$51),\"\",'Nepal 2011'!$D$51)","v":"No"},{"$f":"IF(ISBLANK('Nepal 2011'!$E$51),\"\",'Nepal 2011'!$E$51)","v":0},{"$f":"IF(ISBLANK('Nepal 2011'!$F$51),\"\",'Nepal 2011'!$F$51)","v":"2009-2010"},{"$f":"IF(ISBLANK('Nepal 2011'!$G$51),\"\",'Nepal 2011'!$G$51)","v":""},{"$f":"IF(ISBLANK('Nepal 2011'!$H$51),\"\",'Nepal 2011'!$H$51)","v":""},{"$f":"IF(ISBLANK('Nepal 2011'!$E$52),\"\",'Nepal 2011'!$E$52)","v":1085706},{"$f":"IF(ISBLANK('Nepal 2011'!$H$52),\"\",'Nepal 2011'!$H$52)","v":""},{"$f":"IF(ISBLANK('Nepal 2011'!$F$55),\"\",'Nepal 2011'!$F$55)","v":0.70467812078725955},{"$f":"IF(ISBLANK('Nepal 2011'!$G$55),\"\",'Nepal 2011'!$G$55)","v":""},{"$f":"IF(ISBLANK('Nepal 2011'!$F$56),\"\",'Nepal 2011'!$F$56)","v":1.0000002720091439},{"$f":"IF(ISBLANK('Nepal 2011'!$G$56),\"\",'Nepal 2011'!$G$56)","v":""},{"$f":"IF(ISBLANK('Nepal 2011'!$F$57),\"\",'Nepal 2011'!$F$57)","v":""},{"$f":"IF(ISBLANK('Nepal 2011'!$G$57),\"\",'Nepal 2011'!$G$57)","v":""},{"$f":"IF(ISBLANK('Nepal 2011'!$F$59),\"\",'Nepal 2011'!$F$59)","v":"The government (e.g., Central Medical Stores, MOH logistics unit, MOH procurement unit)"},{"$f":"IF(ISBLANK('Nepal 2011'!$F$60),\"\",'Nepal 2011'!$F$60)","v":"Logistics Management Division/MOH"},{"$f":"IF(ISBLANK('Nepal 2011'!$F$61),\"\",'Nepal 2011'!$F$61)","v":"Yes"},{"$f":"IF(ISBLANK('Nepal 2011'!$D$62),\"\",'Nepal 2011'!$D$62)","v":"Due to various reasons, sometimes procurement gets delayed; in such circumstances USAID is providing contraceptives to MOH upon the request from MOH."},null,null,{"$f":"IF(ISBLANK('Nepal 2011'!$D$66),\"\",'Nepal 2011'!$D$66)","v":"Yes"},{"$f":"IF(ISBLANK('Nepal 2011'!$D$67),\"\",'Nepal 2011'!$D$67)","v":"Yes"},{"$f":"IF(ISBLANK('Nepal 2011'!$D$68),\"\",'Nepal 2011'!$D$68)","v":"Yes"},{"$f":"IF(ISBLANK('Nepal 2011'!$D$69),\"\",'Nepal 2011'!$D$69)","v":"Yes"},{"$f":"IF(ISBLANK('Nepal 2011'!$D$70),\"\",'Nepal 2011'!$D$70)","v":"Yes"},{"$f":"IF(ISBLANK('Nepal 2011'!$D$71),\"\",'Nepal 2011'!$D$71)","v":"Yes"},{"$f":"IF(ISBLANK('Nepal 2011'!$D$72),\"\",'Nepal 2011'!$D$72)","v":"Yes"},{"$f":"IF(ISBLANK('Nepal 2011'!$D$73),\"\",'Nepal 2011'!$D$73)","v":"Yes"},{"$f":"IF(ISBLANK('Nepal 2011'!$D$74),\"\",'Nepal 2011'!$D$74)","v":"Yes"},{"$f":"IF(ISBLANK('Nepal 2011'!$D$75),\"\",'Nepal 2011'!$D$75)","v":"Yes"},{"$f":"IF(ISBLANK('Nepal 2011'!$D$76),\"\",'Nepal 2011'!$D$76)","v":"No"},{"$f":"IF(ISBLANK('Nepal 2011'!$D$77),\"\",'Nepal 2011'!$D$77)","v":""},null,{"$f":"IF(ISBLANK('Nepal 2011'!$F$66),\"\",'Nepal 2011'!$F$66)","v":"Yes"},{"$f":"IF(ISBLANK('Nepal 2011'!$F$67),\"\",'Nepal 2011'!$F$67)","v":"No"},{"$f":"IF(ISBLANK('Nepal 2011'!$F$68),\"\",'Nepal 2011'!$F$68)","v":"Yes"},{"$f":"IF(ISBLANK('Nepal 2011'!$F$69),\"\",'Nepal 2011'!$F$69)","v":"Yes"},{"$f":"IF(ISBLANK('Nepal 2011'!$F$70),\"\",'Nepal 2011'!$F$70)","v":"Yes"},{"$f":"IF(ISBLANK('Nepal 2011'!$F$71),\"\",'Nepal 2011'!$F$71)","v":"Yes"},{"$f":"IF(ISBLANK('Nepal 2011'!$F$72),\"\",'Nepal 2011'!$F$72)","v":"No"},{"$f":"IF(ISBLANK('Nepal 2011'!$F$73),\"\",'Nepal 2011'!$F$73)","v":"No"},{"$f":"IF(ISBLANK('Nepal 2011'!$F$74),\"\",'Nepal 2011'!$F$74)","v":"Yes"},{"$f":"IF(ISBLANK('Nepal 2011'!$F$75),\"\",'Nepal 2011'!$F$75)","v":"Yes"},{"$f":"IF(ISBLANK('Nepal 2011'!$F$76),\"\",'Nepal 2011'!$F$76)","v":"No"},{"$f":"IF(ISBLANK('Nepal 2011'!$F$77),\"\",'Nepal 2011'!$F$77)","v":""},null,{"$f":"IF(ISBLANK('Nepal 2011'!$G$66),\"\",'Nepal 2011'!$G$66)","v":"Yes"},{"$f":"IF(ISBLANK('Nepal 2011'!$G$67),\"\",'Nepal 2011'!$G$67)","v":"No"},{"$f":"IF(ISBLANK('Nepal 2011'!$G$68),\"\",'Nepal 2011'!$G$68)","v":"Yes"},{"$f":"IF(ISBLANK('Nepal 2011'!$G$69),\"\",'Nepal 2011'!$G$69)","v":"Yes"},{"$f":"IF(ISBLANK('Nepal 2011'!$G$70),\"\",'Nepal 2011'!$G$70)","v":"Yes"},{"$f":"IF(ISBLANK('Nepal 2011'!$G$71),\"\",'Nepal 2011'!$G$71)","v":"Yes"},{"$f":"IF(ISBLANK('Nepal 2011'!$G$72),\"\",'Nepal 2011'!$G$72)","v":"No"},{"$f":"IF(ISBLANK('Nepal 2011'!$G$73),\"\",'Nepal 2011'!$G$73)","v":"Yes"},{"$f":"IF(ISBLANK('Nepal 2011'!$G$74),\"\",'Nepal 2011'!$G$74)","v":"Yes"},{"$f":"IF(ISBLANK('Nepal 2011'!$G$75),\"\",'Nepal 2011'!$G$75)","v":"Yes"},{"$f":"IF(ISBLANK('Nepal 2011'!$G$76),\"\",'Nepal 2011'!$G$76)","v":"No"},{"$f":"IF(ISBLANK('Nepal 2011'!$G$77),\"\",'Nepal 2011'!$G$77)","v":""},null,{"$f":"IF(ISBLANK('Nepal 2011'!$H$66),\"\",'Nepal 2011'!$H$66)","v":"Yes"},{"$f":"IF(ISBLANK('Nepal 2011'!$H$67),\"\",'Nepal 2011'!$H$67)","v":"No"},{"$f":"IF(ISBLANK('Nepal 2011'!$H$68),\"\",'Nepal 2011'!$H$68)","v":"Yes"},{"$f":"IF(ISBLANK('Nepal 2011'!$H$69),\"\",'Nepal 2011'!$H$69)","v":"Yes"},{"$f":"IF(ISBLANK('Nepal 2011'!$H$70),\"\",'Nepal 2011'!$H$70)","v":"Yes"},{"$f":"IF(ISBLANK('Nepal 2011'!$H$71),\"\",'Nepal 2011'!$H$71)","v":"Yes"},{"$f":"IF(ISBLANK('Nepal 2011'!$H$72),\"\",'Nepal 2011'!$H$72)","v":"No"},{"$f":"IF(ISBLANK('Nepal 2011'!$H$73),\"\",'Nepal 2011'!$H$73)","v":"Yes"},{"$f":"IF(ISBLANK('Nepal 2011'!$H$74),\"\",'Nepal 2011'!$H$74)","v":"Yes"},{"$f":"IF(ISBLANK('Nepal 2011'!$H$75),\"\",'Nepal 2011'!$H$75)","v":"Yes"},{"$f":"IF(ISBLANK('Nepal 2011'!$H$76),\"\",'Nepal 2011'!$H$76)","v":"No"},{"$f":"IF(ISBLANK('Nepal 2011'!$H$77),\"\",'Nepal 2011'!$H$77)","v":""},{"$f":"IF(ISBLANK('Nepal 2011'!$D$78),\"\",'Nepal 2011'!$D$78)","v":""},null,{"$f":"IF(ISBLANK('Nepal 2011'!$H$80),\"\",'Nepal 2011'!$H$80)","v":"Yes"},{"$f":"IF(ISBLANK('Nepal 2011'!$C$83),\"\",'Nepal 2011'!$C$83)","v":"National Reproductive Health Commodity Security (RHCS) Strategy"},{"$f":"IF(ISBLANK('Nepal 2011'!$D$83),\"\",'Nepal 2011'!$D$83)","v":"2007-2011"},{"$f":"IF(ISBLANK('Nepal 2011'!$F$83),\"\",'Nepal 2011'!$F$83)","v":"Yes"},{"$f":"IF(ISBLANK('Nepal 2011'!$G$83),\"\",'Nepal 2011'!$G$83)","v":"Yes"},{"$f":"IF(ISBLANK('Nepal 2011'!$F$84),\"\",'Nepal 2011'!$F$84)","v":"Yes"},{"$f":"IF(ISBLANK('Nepal 2011'!$E$85),\"\",'Nepal 2011'!$E$85)","v":"Commercial sector (No tax is levied for contraceptives for the public or social marketing sectors.)  "},{"$f":"IF(ISBLANK('Nepal 2011'!$E$86),\"\",'Nepal 2011'!$E$86)","v":"It varies - it is very minimal for condom (less than 1%) and about 5% for pills. "},{"$f":"IF(ISBLANK('Nepal 2011'!$H$87),\"\",'Nepal 2011'!$H$87)","v":"No"},{"$f":"IF(ISBLANK('Nepal 2011'!$D$88),\"\",'Nepal 2011'!$D$88)","v":"N/A"},{"$f":"IF(ISBLANK('Nepal 2011'!$H$89),\"\",'Nepal 2011'!$H$89)","v":"Yes"},{"$f":"IF(ISBLANK('Nepal 2011'!$D$90),\"\",'Nepal 2011'!$D$90)","v":"MOH promotes social marketing and NGOs to provide contraceptive services."},{"$f":"IF(ISBLANK('Nepal 2011'!$H$91),\"\",'Nepal 2011'!$H$91)","v":"No"},{"$f":"IF(ISBLANK('Nepal 2011'!$C$94),\"\",'Nepal 2011'!$C$94)","v":""},{"$f":"IF(ISBLANK('Nepal 2011'!$E$94),\"\",'Nepal 2011'!$E$94)","v":""},{"$f":"IF(ISBLANK('Nepal 2011'!$G$94),\"\",'Nepal 2011'!$G$94)","v":""},{"$f":"IF(ISBLANK('Nepal 2011'!$C$95),\"\",'Nepal 2011'!$C$95)","v":""},{"$f":"IF(ISBLANK('Nepal 2011'!$E$95),\"\",'Nepal 2011'!$E$95)","v":""},{"$f":"IF(ISBLANK('Nepal 2011'!$G$95),\"\",'Nepal 2011'!$G$95)","v":""},{"$f":"IF(ISBLANK('Nepal 2011'!$C$96),\"\",'Nepal 2011'!$C$96)","v":""},{"$f":"IF(ISBLANK('Nepal 2011'!$E$96),\"\",'Nepal 2011'!$E$96)","v":""},{"$f":"IF(ISBLANK('Nepal 2011'!$G$96),\"\",'Nepal 2011'!$G$96)","v":""},null,{"$f":"IF(ISBLANK('Nepal 2011'!$D$99),\"\",'Nepal 2011'!$D$99)","v":"No"},{"$f":"IF(ISBLANK('Nepal 2011'!$E$99),\"\",'Nepal 2011'!$E$99)","v":""},{"$f":"IF(ISBLANK('Nepal 2011'!$H$99),\"\",'Nepal 2011'!$H$99)","v":""},{"$f":"IF(ISBLANK('Nepal 2011'!$D$100),\"\",'Nepal 2011'!$D$100)","v":"No"},{"$f":"IF(ISBLANK('Nepal 2011'!$E$100),\"\",'Nepal 2011'!$E$100)","v":""},{"$f":"IF(ISBLANK('Nepal 2011'!$H$100),\"\",'Nepal 2011'!$H$100)","v":""},{"$f":"IF(ISBLANK('Nepal 2011'!$D$101),\"\",'Nepal 2011'!$D$101)","v":"No"},{"$f":"IF(ISBLANK('Nepal 2011'!$E$101),\"\",'Nepal 2011'!$E$101)","v":""},{"$f":"IF(ISBLANK('Nepal 2011'!$H$101),\"\",'Nepal 2011'!$H$101)","v":""},null,{"$f":"IF(ISBLANK('Nepal 2011'!$G$104),\"\",'Nepal 2011'!$G$104)","v":"No"},{"$f":"IF(ISBLANK('Nepal 2011'!$G$105),\"\",'Nepal 2011'!$G$105)","v":"No"},{"$f":"IF(ISBLANK('Nepal 2011'!$G$106),\"\",'Nepal 2011'!$G$106)","v":"N/A"},{"$f":"IF(ISBLANK('Nepal 2011'!$D$107),\"\",'Nepal 2011'!$D$107)","v":"N/A"},null,{"$f":"IF(ISBLANK('Nepal 2011'!$G$109),\"\",'Nepal 2011'!$G$109)","v":"Yes"},{"$f":"IF(ISBLANK('Nepal 2011'!$G$110),\"\",'Nepal 2011'!$G$110)","v":"Yes"},{"$f":"IF(ISBLANK('Nepal 2011'!$G$111),\"\",'Nepal 2011'!$G$111)","v":"Yes"},{"$f":"IF(ISBLANK('Nepal 2011'!$G$112),\"\",'Nepal 2011'!$G$112)","v":"Yes"},{"$f":"IF(ISBLANK('Nepal 2011'!$G$113),\"\",'Nepal 2011'!$G$113)","v":"Yes"},{"$f":"IF(ISBLANK('Nepal 2011'!$G$114),\"\",'Nepal 2011'!$G$114)","v":"Yes"},{"$f":"IF(ISBLANK('Nepal 2011'!$G$115),\"\",'Nepal 2011'!$G$115)","v":"Yes"},{"$f":"IF(ISBLANK('Nepal 2011'!$G$116),\"\",'Nepal 2011'!$G$116)","v":"Yes"},{"$f":"IF(ISBLANK('Nepal 2011'!$G$117),\"\",'Nepal 2011'!$G$117)","v":"No"},{"$f":"IF(ISBLANK('Nepal 2011'!$G$118),\"\",'Nepal 2011'!$G$118)","v":"No"},{"$f":"IF(ISBLANK('Nepal 2011'!$F$119),\"\",'Nepal 2011'!$F$119)","v":"N/A"},{"$f":"IF(ISBLANK('Nepal 2011'!$F$120),\"\",'Nepal 2011'!$F$120)","v":2009},{"$f":"IF(ISBLANK('Nepal 2011'!$D$121),\"\",'Nepal 2011'!$D$121)","v":"National List of Essential Medicines Nepal "},{"$f":"IF(ISBLANK('Nepal 2011'!$D$122),\"\",'Nepal 2011'!$D$122)","v":"Final Draft, 2009"},null,{"$f":"IF(ISBLANK('Nepal 2011'!$F$124),\"\",'Nepal 2011'!$F$124)","v":2003},{"$f":"IF(ISBLANK('Nepal 2011'!$G$125),\"\",'Nepal 2011'!$G$125)","v":"Yes"},{"$f":"IF(ISBLANK('Nepal 2011'!$G$126),\"\",'Nepal 2011'!$G$126)","v":"No"},{"$f":"IF(ISBLANK('Nepal 2011'!$G$127),\"\",'Nepal 2011'!$G$127)","v":"Yes"},{"$f":"IF(ISBLANK('Nepal 2011'!$G$128),\"\",'Nepal 2011'!$G$128)","v":"No"},{"$f":"IF(ISBLANK('Nepal 2011'!$D$129),\"\",'Nepal 2011'!$D$129)","v":""},null,{"$f":"IF(ISBLANK('Nepal 2011'!$G$131),\"\",'Nepal 2011'!$G$131)","v":"No"},null,{"$f":"IF(ISBLANK('Nepal 2011'!$G$133),\"\",'Nepal 2011'!$G$133)","v":"No"},{"$f":"IF(ISBLANK('Nepal 2011'!$G$134),\"\",'Nepal 2011'!$G$134)","v":"N/A"},{"$f":"IF(ISBLANK('Nepal 2011'!$G$135),\"\",'Nepal 2011'!$G$135)","v":"No"},{"$f":"IF(ISBLANK('Nepal 2011'!$G$136),\"\",'Nepal 2011'!$G$136)","v":"No"},{"$f":"IF(ISBLANK('Nepal 2011'!$G$137),\"\",'Nepal 2011'!$G$137)","v":"No"},{"$f":"IF(ISBLANK('Nepal 2011'!$G$138),\"\",'Nepal 2011'!$G$138)","v":"No"},{"$f":"IF(ISBLANK('Nepal 2011'!$G$139),\"\",'Nepal 2011'!$G$139)","v":"N/A"},{"$f":"IF(ISBLANK('Nepal 2011'!$G$140),\"\",'Nepal 2011'!$G$140)","v":"N/A"},{"$f":"IF(ISBLANK('Nepal 2011'!$G$141),\"\",'Nepal 2011'!$G$141)","v":"N/A"},{"$f":"IF(ISBLANK('Nepal 2011'!$F$142),\"\",'Nepal 2011'!$F$142)","v":"01/10-12/10"},{"$f":"IF(ISBLANK('Nepal 2011'!$F$143),\"\",'Nepal 2011'!$F$143)","v":"LMIS"},null,{"$f":"IF(ISBLANK('Nepal 2011'!$G$145),\"\",'Nepal 2011'!$G$145)","v":"No"},{"$f":"IF(ISBLANK('Nepal 2011'!$G$146),\"\",'Nepal 2011'!$G$146)","v":"No"},{"$f":"IF(ISBLANK('Nepal 2011'!$D$147),\"\",'Nepal 2011'!$D$147)","v":"MOH is increasing its fund to procure contraceptives. LMD/MOH has already started multi-year procurement of contraceptives to assure supply for longer periods and to save time in the bidding process."},"Europe and Asia"]
["Nicaragua ",null,{"$f":"IF(ISBLANK('Nicaragua 2011'!$H$12),\"\",'Nicaragua 2011'!$H$12)","v":"Yes"},{"$f":"IF(ISBLANK('Nicaragua 2011'!$D$13),\"\",'Nicaragua 2011'!$D$13)","v":"Comité Nacional para la Disponibilidad Asegurada de Insumos Anticonceptivos (DAIA) Nicaragua  (National Contraceptive Security Committee)"},null,{"$f":"IF(ISBLANK('Nicaragua 2011'!$D$15),\"\",'Nicaragua 2011'!$D$15)","v":"Yes"},{"$f":"IF(ISBLANK('Nicaragua 2011'!$F$15),\"\",'Nicaragua 2011'!$F$15)","v":"PSI/PASMO (Pan American Social Marketing Organization)"},{"$f":"IF(ISBLANK('Nicaragua 2011'!$D$16),\"\",'Nicaragua 2011'!$D$16)","v":"Yes"},{"$f":"IF(ISBLANK('Nicaragua 2011'!$F$16),\"\",'Nicaragua 2011'!$F$16)","v":"PROFAMILIA (Asociación Pro-Bienestar de la Familia Nicaragüense - Nicaraguan Pro Family Wellbeing Association), Women's Center IXCHEN (IXCHEN), Luisa Amanda Espinoza Association of Nicaraguan Women (AMNLAE) "},{"$f":"IF(ISBLANK('Nicaragua 2011'!$D$17),\"\",'Nicaragua 2011'!$D$17)","v":"No"},{"$f":"IF(ISBLANK('Nicaragua 2011'!$F$17),\"\",'Nicaragua 2011'!$F$17)","v":""},{"$f":"IF(ISBLANK('Nicaragua 2011'!$D$18),\"\",'Nicaragua 2011'!$D$18)","v":"Yes"},{"$f":"IF(ISBLANK('Nicaragua 2011'!$F$18),\"\",'Nicaragua 2011'!$F$18)","v":"UNFPA, USAID "},{"$f":"IF(ISBLANK('Nicaragua 2011'!$D$19),\"\",'Nicaragua 2011'!$D$19)","v":"Yes"},{"$f":"IF(ISBLANK('Nicaragua 2011'!$F$19),\"\",'Nicaragua 2011'!$F$19)","v":"UNFPA"},{"$f":"IF(ISBLANK('Nicaragua 2011'!$D$20),\"\",'Nicaragua 2011'!$D$20)","v":"Yes"},{"$f":"IF(ISBLANK('Nicaragua 2011'!$F$20),\"\",'Nicaragua 2011'!$F$20)","v":"DCAIS (Central Directorate for Contraceptives and Health Supplies), DGECA (Division of Health Services, FP), DGPD (Division of Planning and Development and External Cooperation) "},{"$f":"IF(ISBLANK('Nicaragua 2011'!$D$21),\"\",'Nicaragua 2011'!$D$21)","v":"No"},{"$f":"IF(ISBLANK('Nicaragua 2011'!$F$21),\"\",'Nicaragua 2011'!$F$21)","v":""},{"$f":"IF(ISBLANK('Nicaragua 2011'!$D$22),\"\",'Nicaragua 2011'!$D$22)","v":"No"},{"$f":"IF(ISBLANK('Nicaragua 2011'!$F$22),\"\",'Nicaragua 2011'!$F$22)","v":""},{"$f":"IF(ISBLANK('Nicaragua 2011'!$D$23),\"\",'Nicaragua 2011'!$D$23)","v":"Yes"},{"$f":"IF(ISBLANK('Nicaragua 2011'!$F$23),\"\",'Nicaragua 2011'!$F$23)","v":"PATH, other USAID projects"},{"$f":"IF(ISBLANK('Nicaragua 2011'!$H$24),\"\",'Nicaragua 2011'!$H$24)","v":"6 or more times"},{"$f":"IF(ISBLANK('Nicaragua 2011'!$H$25),\"\",'Nicaragua 2011'!$H$25)","v":"Yes"},{"$f":"IF(ISBLANK('Nicaragua 2011'!$D$26),\"\",'Nicaragua 2011'!$D$26)","v":"Yes"},{"$f":"IF(ISBLANK('Nicaragua 2011'!$F$26),\"\",'Nicaragua 2011'!$F$26)","v":"Ministry of Health (DGECA and DCAIS) "},{"$f":"IF(ISBLANK('Nicaragua 2011'!$H$26),\"\",'Nicaragua 2011'!$H$26)","v":"General Director "},null,{"$f":"IF(ISBLANK('Nicaragua 2011'!$F$28),\"\",'Nicaragua 2011'!$F$28)","v":"January"},{"$f":"IF(ISBLANK('Nicaragua 2011'!$H$28),\"\",'Nicaragua 2011'!$H$28)","v":"December"},{"$f":"IF(ISBLANK('Nicaragua 2011'!$G$29),\"\",'Nicaragua 2011'!$G$29)","v":1043694},{"$f":"IF(ISBLANK('Nicaragua 2011'!$E$30),\"\",'Nicaragua 2011'!$E$30)","v":"06/10"},{"$f":"IF(ISBLANK('Nicaragua 2011'!$G$30),\"\",'Nicaragua 2011'!$G$30)","v":"Ministry of Health"},{"$f":"IF(ISBLANK('Nicaragua 2011'!$H$31),\"\",'Nicaragua 2011'!$H$31)","v":"Yes"},{"$f":"IF(ISBLANK('Nicaragua 2011'!$H$32),\"\",'Nicaragua 2011'!$H$32)","v":"Yes"},{"$f":"IF(ISBLANK('Nicaragua 2011'!$E$35),\"\",'Nicaragua 2011'!$E$35)","v":321935},{"$f":"IF(ISBLANK('Nicaragua 2011'!$F$35),\"\",'Nicaragua 2011'!$F$35)","v":"01/10-12/10"},{"$f":"IF(ISBLANK('Nicaragua 2011'!$G$35),\"\",'Nicaragua 2011'!$G$35)","v":"Ministry of Health"},{"$f":"IF(ISBLANK('Nicaragua 2011'!$H$35),\"\",'Nicaragua 2011'!$H$35)","v":""},{"$f":"IF(ISBLANK('Nicaragua 2011'!$H$37),\"\",'Nicaragua 2011'!$H$37)","v":"Yes"},{"$f":"IF(ISBLANK('Nicaragua 2011'!$D$40),\"\",'Nicaragua 2011'!$D$40)","v":"Yes"},{"$f":"IF(ISBLANK('Nicaragua 2011'!$D$41),\"\",'Nicaragua 2011'!$D$41)","v":"Taxes"},{"$f":"IF(ISBLANK('Nicaragua 2011'!$E$40),\"\",'Nicaragua 2011'!$E$40)","v":321935},{"$f":"IF(ISBLANK('Nicaragua 2011'!$F$40),\"\",'Nicaragua 2011'!$F$40)","v":"01/10-12/10"},{"$f":"IF(ISBLANK('Nicaragua 2011'!$G$40),\"\",'Nicaragua 2011'!$G$40)","v":"Ministry of Health"},{"$f":"IF(ISBLANK('Nicaragua 2011'!$H$40),\"\",'Nicaragua 2011'!$H$40)","v":""},{"$f":"IF(ISBLANK('Nicaragua 2011'!$D$42),\"\",'Nicaragua 2011'!$D$42)","v":"Yes"},{"$f":"IF(ISBLANK('Nicaragua 2011'!$D$43),\"\",'Nicaragua 2011'!$D$43)","v":"Basket fund. (The funders in the basket are UNFPA, the World Bank, Finland, Holland, and Spain.)\n"},{"$f":"IF(ISBLANK('Nicaragua 2011'!$E$42),\"\",'Nicaragua 2011'!$E$42)","v":721759},{"$f":"IF(ISBLANK('Nicaragua 2011'!$F$42),\"\",'Nicaragua 2011'!$F$42)","v":"01/10-12/10"},{"$f":"IF(ISBLANK('Nicaragua 2011'!$G$42),\"\",'Nicaragua 2011'!$G$42)","v":"Ministry of Health"},{"$f":"IF(ISBLANK('Nicaragua 2011'!$H$42),\"\",'Nicaragua 2011'!$H$42)","v":""},{"$f":"IF(ISBLANK('Nicaragua 2011'!$E$44),\"\",'Nicaragua 2011'!$E$44)","v":1043694},{"$f":"IF(ISBLANK('Nicaragua 2011'!$H$44),\"\",'Nicaragua 2011'!$H$44)","v":""},null,{"$f":"IF(ISBLANK('Nicaragua 2011'!$D$48),\"\",'Nicaragua 2011'!$D$48)","v":"No"},{"$f":"IF(ISBLANK('Nicaragua 2011'!$D$49),\"\",'Nicaragua 2011'!$D$49)","v":"N/A"},{"$f":"IF(ISBLANK('Nicaragua 2011'!$E$48),\"\",'Nicaragua 2011'!$E$48)","v":0},{"$f":"IF(ISBLANK('Nicaragua 2011'!$F$48),\"\",'Nicaragua 2011'!$F$48)","v":"01/10-12/10"},{"$f":"IF(ISBLANK('Nicaragua 2011'!$G$48),\"\",'Nicaragua 2011'!$G$48)","v":"Ministry of Health"},{"$f":"IF(ISBLANK('Nicaragua 2011'!$H$48),\"\",'Nicaragua 2011'!$H$48)","v":""},{"$f":"IF(ISBLANK('Nicaragua 2011'!$D$50),\"\",'Nicaragua 2011'!$D$50)","v":"No"},{"$f":"IF(ISBLANK('Nicaragua 2011'!$E$50),\"\",'Nicaragua 2011'!$E$50)","v":0},{"$f":"IF(ISBLANK('Nicaragua 2011'!$F$50),\"\",'Nicaragua 2011'!$F$50)","v":"01/10-12/10"},{"$f":"IF(ISBLANK('Nicaragua 2011'!$G$50),\"\",'Nicaragua 2011'!$G$50)","v":"RHInterchange"},{"$f":"IF(ISBLANK('Nicaragua 2011'!$H$50),\"\",'Nicaragua 2011'!$H$50)","v":""},{"$f":"IF(ISBLANK('Nicaragua 2011'!$D$51),\"\",'Nicaragua 2011'!$D$51)","v":"No"},{"$f":"IF(ISBLANK('Nicaragua 2011'!$E$51),\"\",'Nicaragua 2011'!$E$51)","v":0},{"$f":"IF(ISBLANK('Nicaragua 2011'!$F$51),\"\",'Nicaragua 2011'!$F$51)","v":"01/10-12/10"},{"$f":"IF(ISBLANK('Nicaragua 2011'!$G$51),\"\",'Nicaragua 2011'!$G$51)","v":"RHInterchange"},{"$f":"IF(ISBLANK('Nicaragua 2011'!$H$51),\"\",'Nicaragua 2011'!$H$51)","v":""},{"$f":"IF(ISBLANK('Nicaragua 2011'!$E$52),\"\",'Nicaragua 2011'!$E$52)","v":0},{"$f":"IF(ISBLANK('Nicaragua 2011'!$H$52),\"\",'Nicaragua 2011'!$H$52)","v":""},{"$f":"IF(ISBLANK('Nicaragua 2011'!$F$55),\"\",'Nicaragua 2011'!$F$55)","v":1},{"$f":"IF(ISBLANK('Nicaragua 2011'!$G$55),\"\",'Nicaragua 2011'!$G$55)","v":""},{"$f":"IF(ISBLANK('Nicaragua 2011'!$F$56),\"\",'Nicaragua 2011'!$F$56)","v":1},{"$f":"IF(ISBLANK('Nicaragua 2011'!$G$56),\"\",'Nicaragua 2011'!$G$56)","v":""},{"$f":"IF(ISBLANK('Nicaragua 2011'!$F$57),\"\",'Nicaragua 2011'!$F$57)","v":""},{"$f":"IF(ISBLANK('Nicaragua 2011'!$G$57),\"\",'Nicaragua 2011'!$G$57)","v":""},{"$f":"IF(ISBLANK('Nicaragua 2011'!$F$59),\"\",'Nicaragua 2011'!$F$59)","v":"The government (e.g., Central Medical Stores, MOH logistics unit, MOH procurement unit)"},{"$f":"IF(ISBLANK('Nicaragua 2011'!$F$60),\"\",'Nicaragua 2011'!$F$60)","v":"DCAIS (Central Directorate for Contraceptives and Health Supplies)"},{"$f":"IF(ISBLANK('Nicaragua 2011'!$F$61),\"\",'Nicaragua 2011'!$F$61)","v":"No"},{"$f":"IF(ISBLANK('Nicaragua 2011'!$D$62),\"\",'Nicaragua 2011'!$D$62)","v":"Contraceptives are procured via a third-party agreement with UNFPA."},null,null,{"$f":"IF(ISBLANK('Nicaragua 2011'!$D$66),\"\",'Nicaragua 2011'!$D$66)","v":"Yes"},{"$f":"IF(ISBLANK('Nicaragua 2011'!$D$67),\"\",'Nicaragua 2011'!$D$67)","v":"Yes"},{"$f":"IF(ISBLANK('Nicaragua 2011'!$D$68),\"\",'Nicaragua 2011'!$D$68)","v":"Yes"},{"$f":"IF(ISBLANK('Nicaragua 2011'!$D$69),\"\",'Nicaragua 2011'!$D$69)","v":"Yes"},{"$f":"IF(ISBLANK('Nicaragua 2011'!$D$70),\"\",'Nicaragua 2011'!$D$70)","v":"Yes"},{"$f":"IF(ISBLANK('Nicaragua 2011'!$D$71),\"\",'Nicaragua 2011'!$D$71)","v":"Yes"},{"$f":"IF(ISBLANK('Nicaragua 2011'!$D$72),\"\",'Nicaragua 2011'!$D$72)","v":"Don't know"},{"$f":"IF(ISBLANK('Nicaragua 2011'!$D$73),\"\",'Nicaragua 2011'!$D$73)","v":"Yes"},{"$f":"IF(ISBLANK('Nicaragua 2011'!$D$74),\"\",'Nicaragua 2011'!$D$74)","v":"Yes"},{"$f":"IF(ISBLANK('Nicaragua 2011'!$D$75),\"\",'Nicaragua 2011'!$D$75)","v":"Yes"},{"$f":"IF(ISBLANK('Nicaragua 2011'!$D$76),\"\",'Nicaragua 2011'!$D$76)","v":"No"},{"$f":"IF(ISBLANK('Nicaragua 2011'!$D$77),\"\",'Nicaragua 2011'!$D$77)","v":""},null,{"$f":"IF(ISBLANK('Nicaragua 2011'!$F$66),\"\",'Nicaragua 2011'!$F$66)","v":"Yes"},{"$f":"IF(ISBLANK('Nicaragua 2011'!$F$67),\"\",'Nicaragua 2011'!$F$67)","v":"No"},{"$f":"IF(ISBLANK('Nicaragua 2011'!$F$68),\"\",'Nicaragua 2011'!$F$68)","v":"Yes"},{"$f":"IF(ISBLANK('Nicaragua 2011'!$F$69),\"\",'Nicaragua 2011'!$F$69)","v":"No"},{"$f":"IF(ISBLANK('Nicaragua 2011'!$F$70),\"\",'Nicaragua 2011'!$F$70)","v":"Yes"},{"$f":"IF(ISBLANK('Nicaragua 2011'!$F$71),\"\",'Nicaragua 2011'!$F$71)","v":"Yes"},{"$f":"IF(ISBLANK('Nicaragua 2011'!$F$72),\"\",'Nicaragua 2011'!$F$72)","v":"No"},{"$f":"IF(ISBLANK('Nicaragua 2011'!$F$73),\"\",'Nicaragua 2011'!$F$73)","v":"No"},{"$f":"IF(ISBLANK('Nicaragua 2011'!$F$74),\"\",'Nicaragua 2011'!$F$74)","v":"Yes"},{"$f":"IF(ISBLANK('Nicaragua 2011'!$F$75),\"\",'Nicaragua 2011'!$F$75)","v":"Yes"},{"$f":"IF(ISBLANK('Nicaragua 2011'!$F$76),\"\",'Nicaragua 2011'!$F$76)","v":"Yes"},{"$f":"IF(ISBLANK('Nicaragua 2011'!$F$77),\"\",'Nicaragua 2011'!$F$77)","v":""},null,{"$f":"IF(ISBLANK('Nicaragua 2011'!$G$66),\"\",'Nicaragua 2011'!$G$66)","v":"Yes"},{"$f":"IF(ISBLANK('Nicaragua 2011'!$G$67),\"\",'Nicaragua 2011'!$G$67)","v":"No"},{"$f":"IF(ISBLANK('Nicaragua 2011'!$G$68),\"\",'Nicaragua 2011'!$G$68)","v":"Yes"},{"$f":"IF(ISBLANK('Nicaragua 2011'!$G$69),\"\",'Nicaragua 2011'!$G$69)","v":"Yes"},{"$f":"IF(ISBLANK('Nicaragua 2011'!$G$70),\"\",'Nicaragua 2011'!$G$70)","v":"Yes"},{"$f":"IF(ISBLANK('Nicaragua 2011'!$G$71),\"\",'Nicaragua 2011'!$G$71)","v":"Yes"},{"$f":"IF(ISBLANK('Nicaragua 2011'!$G$72),\"\",'Nicaragua 2011'!$G$72)","v":"No"},{"$f":"IF(ISBLANK('Nicaragua 2011'!$G$73),\"\",'Nicaragua 2011'!$G$73)","v":"Yes"},{"$f":"IF(ISBLANK('Nicaragua 2011'!$G$74),\"\",'Nicaragua 2011'!$G$74)","v":"Yes"},{"$f":"IF(ISBLANK('Nicaragua 2011'!$G$75),\"\",'Nicaragua 2011'!$G$75)","v":"Yes"},{"$f":"IF(ISBLANK('Nicaragua 2011'!$G$76),\"\",'Nicaragua 2011'!$G$76)","v":"No"},{"$f":"IF(ISBLANK('Nicaragua 2011'!$G$77),\"\",'Nicaragua 2011'!$G$77)","v":""},null,{"$f":"IF(ISBLANK('Nicaragua 2011'!$H$66),\"\",'Nicaragua 2011'!$H$66)","v":"Yes"},{"$f":"IF(ISBLANK('Nicaragua 2011'!$H$67),\"\",'Nicaragua 2011'!$H$67)","v":"Yes"},{"$f":"IF(ISBLANK('Nicaragua 2011'!$H$68),\"\",'Nicaragua 2011'!$H$68)","v":"Yes"},{"$f":"IF(ISBLANK('Nicaragua 2011'!$H$69),\"\",'Nicaragua 2011'!$H$69)","v":"Yes"},{"$f":"IF(ISBLANK('Nicaragua 2011'!$H$70),\"\",'Nicaragua 2011'!$H$70)","v":"Yes"},{"$f":"IF(ISBLANK('Nicaragua 2011'!$H$71),\"\",'Nicaragua 2011'!$H$71)","v":"Yes"},{"$f":"IF(ISBLANK('Nicaragua 2011'!$H$72),\"\",'Nicaragua 2011'!$H$72)","v":"No"},{"$f":"IF(ISBLANK('Nicaragua 2011'!$H$73),\"\",'Nicaragua 2011'!$H$73)","v":"Yes"},{"$f":"IF(ISBLANK('Nicaragua 2011'!$H$74),\"\",'Nicaragua 2011'!$H$74)","v":"Yes"},{"$f":"IF(ISBLANK('Nicaragua 2011'!$H$75),\"\",'Nicaragua 2011'!$H$75)","v":"Yes"},{"$f":"IF(ISBLANK('Nicaragua 2011'!$H$76),\"\",'Nicaragua 2011'!$H$76)","v":"No"},{"$f":"IF(ISBLANK('Nicaragua 2011'!$H$77),\"\",'Nicaragua 2011'!$H$77)","v":""},{"$f":"IF(ISBLANK('Nicaragua 2011'!$D$78),\"\",'Nicaragua 2011'!$D$78)","v":"The MOH prescribes emergency contraception but does not provide the packaged product itself. "},null,{"$f":"IF(ISBLANK('Nicaragua 2011'!$H$80),\"\",'Nicaragua 2011'!$H$80)","v":"Yes"},{"$f":"IF(ISBLANK('Nicaragua 2011'!$C$83),\"\",'Nicaragua 2011'!$C$83)","v":"Plan DAIA 2009-2011 (Contraceptive Security Plan)"},{"$f":"IF(ISBLANK('Nicaragua 2011'!$D$83),\"\",'Nicaragua 2011'!$D$83)","v":"2009-2011"},{"$f":"IF(ISBLANK('Nicaragua 2011'!$F$83),\"\",'Nicaragua 2011'!$F$83)","v":"Yes"},{"$f":"IF(ISBLANK('Nicaragua 2011'!$G$83),\"\",'Nicaragua 2011'!$G$83)","v":"Yes"},{"$f":"IF(ISBLANK('Nicaragua 2011'!$F$84),\"\",'Nicaragua 2011'!$F$84)","v":"No"},{"$f":"IF(ISBLANK('Nicaragua 2011'!$E$85),\"\",'Nicaragua 2011'!$E$85)","v":"N/A"},{"$f":"IF(ISBLANK('Nicaragua 2011'!$E$86),\"\",'Nicaragua 2011'!$E$86)","v":"N/A"},{"$f":"IF(ISBLANK('Nicaragua 2011'!$H$87),\"\",'Nicaragua 2011'!$H$87)","v":"No"},{"$f":"IF(ISBLANK('Nicaragua 2011'!$D$88),\"\",'Nicaragua 2011'!$D$88)","v":"N/A"},{"$f":"IF(ISBLANK('Nicaragua 2011'!$H$89),\"\",'Nicaragua 2011'!$H$89)","v":"Yes"},{"$f":"IF(ISBLANK('Nicaragua 2011'!$D$90),\"\",'Nicaragua 2011'!$D$90)","v":"Health Policy, Family Planning Norms "},{"$f":"IF(ISBLANK('Nicaragua 2011'!$H$91),\"\",'Nicaragua 2011'!$H$91)","v":"No"},{"$f":"IF(ISBLANK('Nicaragua 2011'!$C$94),\"\",'Nicaragua 2011'!$C$94)","v":""},{"$f":"IF(ISBLANK('Nicaragua 2011'!$E$94),\"\",'Nicaragua 2011'!$E$94)","v":""},{"$f":"IF(ISBLANK('Nicaragua 2011'!$G$94),\"\",'Nicaragua 2011'!$G$94)","v":""},{"$f":"IF(ISBLANK('Nicaragua 2011'!$C$95),\"\",'Nicaragua 2011'!$C$95)","v":""},{"$f":"IF(ISBLANK('Nicaragua 2011'!$E$95),\"\",'Nicaragua 2011'!$E$95)","v":""},{"$f":"IF(ISBLANK('Nicaragua 2011'!$G$95),\"\",'Nicaragua 2011'!$G$95)","v":""},{"$f":"IF(ISBLANK('Nicaragua 2011'!$C$96),\"\",'Nicaragua 2011'!$C$96)","v":""},{"$f":"IF(ISBLANK('Nicaragua 2011'!$E$96),\"\",'Nicaragua 2011'!$E$96)","v":""},{"$f":"IF(ISBLANK('Nicaragua 2011'!$G$96),\"\",'Nicaragua 2011'!$G$96)","v":""},null,{"$f":"IF(ISBLANK('Nicaragua 2011'!$D$99),\"\",'Nicaragua 2011'!$D$99)","v":"No"},{"$f":"IF(ISBLANK('Nicaragua 2011'!$E$99),\"\",'Nicaragua 2011'!$E$99)","v":""},{"$f":"IF(ISBLANK('Nicaragua 2011'!$H$99),\"\",'Nicaragua 2011'!$H$99)","v":""},{"$f":"IF(ISBLANK('Nicaragua 2011'!$D$100),\"\",'Nicaragua 2011'!$D$100)","v":"No"},{"$f":"IF(ISBLANK('Nicaragua 2011'!$E$100),\"\",'Nicaragua 2011'!$E$100)","v":""},{"$f":"IF(ISBLANK('Nicaragua 2011'!$H$100),\"\",'Nicaragua 2011'!$H$100)","v":""},{"$f":"IF(ISBLANK('Nicaragua 2011'!$D$101),\"\",'Nicaragua 2011'!$D$101)","v":"No"},{"$f":"IF(ISBLANK('Nicaragua 2011'!$E$101),\"\",'Nicaragua 2011'!$E$101)","v":""},{"$f":"IF(ISBLANK('Nicaragua 2011'!$H$101),\"\",'Nicaragua 2011'!$H$101)","v":""},null,{"$f":"IF(ISBLANK('Nicaragua 2011'!$G$104),\"\",'Nicaragua 2011'!$G$104)","v":"No"},{"$f":"IF(ISBLANK('Nicaragua 2011'!$G$105),\"\",'Nicaragua 2011'!$G$105)","v":"No"},{"$f":"IF(ISBLANK('Nicaragua 2011'!$G$106),\"\",'Nicaragua 2011'!$G$106)","v":"N/A"},{"$f":"IF(ISBLANK('Nicaragua 2011'!$D$107),\"\",'Nicaragua 2011'!$D$107)","v":"N/A"},null,{"$f":"IF(ISBLANK('Nicaragua 2011'!$G$109),\"\",'Nicaragua 2011'!$G$109)","v":"Yes"},{"$f":"IF(ISBLANK('Nicaragua 2011'!$G$110),\"\",'Nicaragua 2011'!$G$110)","v":"No"},{"$f":"IF(ISBLANK('Nicaragua 2011'!$G$111),\"\",'Nicaragua 2011'!$G$111)","v":"Yes"},{"$f":"IF(ISBLANK('Nicaragua 2011'!$G$112),\"\",'Nicaragua 2011'!$G$112)","v":"No"},{"$f":"IF(ISBLANK('Nicaragua 2011'!$G$113),\"\",'Nicaragua 2011'!$G$113)","v":"Yes"},{"$f":"IF(ISBLANK('Nicaragua 2011'!$G$114),\"\",'Nicaragua 2011'!$G$114)","v":"Yes"},{"$f":"IF(ISBLANK('Nicaragua 2011'!$G$115),\"\",'Nicaragua 2011'!$G$115)","v":"No"},{"$f":"IF(ISBLANK('Nicaragua 2011'!$G$116),\"\",'Nicaragua 2011'!$G$116)","v":"No"},{"$f":"IF(ISBLANK('Nicaragua 2011'!$G$117),\"\",'Nicaragua 2011'!$G$117)","v":"No"},{"$f":"IF(ISBLANK('Nicaragua 2011'!$G$118),\"\",'Nicaragua 2011'!$G$118)","v":"No"},{"$f":"IF(ISBLANK('Nicaragua 2011'!$F$119),\"\",'Nicaragua 2011'!$F$119)","v":"N/A"},{"$f":"IF(ISBLANK('Nicaragua 2011'!$F$120),\"\",'Nicaragua 2011'!$F$120)","v":2008},{"$f":"IF(ISBLANK('Nicaragua 2011'!$D$121),\"\",'Nicaragua 2011'!$D$121)","v":"Lista básica de medicamentos esenciales (basic list of essential medicines) and essential supplies list"},{"$f":"IF(ISBLANK('Nicaragua 2011'!$D$122),\"\",'Nicaragua 2011'!$D$122)","v":"Condoms and IUDs are included in the essential supplies list, rather than the essential medicines list.  "},null,{"$f":"IF(ISBLANK('Nicaragua 2011'!$F$124),\"\",'Nicaragua 2011'!$F$124)","v":2009},{"$f":"IF(ISBLANK('Nicaragua 2011'!$G$125),\"\",'Nicaragua 2011'!$G$125)","v":"No"},{"$f":"IF(ISBLANK('Nicaragua 2011'!$G$126),\"\",'Nicaragua 2011'!$G$126)","v":"No"},{"$f":"IF(ISBLANK('Nicaragua 2011'!$G$127),\"\",'Nicaragua 2011'!$G$127)","v":"No"},{"$f":"IF(ISBLANK('Nicaragua 2011'!$G$128),\"\",'Nicaragua 2011'!$G$128)","v":"No"},{"$f":"IF(ISBLANK('Nicaragua 2011'!$D$129),\"\",'Nicaragua 2011'!$D$129)","v":""},null,{"$f":"IF(ISBLANK('Nicaragua 2011'!$G$131),\"\",'Nicaragua 2011'!$G$131)","v":"Yes"},null,{"$f":"IF(ISBLANK('Nicaragua 2011'!$G$133),\"\",'Nicaragua 2011'!$G$133)","v":"No"},{"$f":"IF(ISBLANK('Nicaragua 2011'!$G$134),\"\",'Nicaragua 2011'!$G$134)","v":"N/A"},{"$f":"IF(ISBLANK('Nicaragua 2011'!$G$135),\"\",'Nicaragua 2011'!$G$135)","v":"Yes"},{"$f":"IF(ISBLANK('Nicaragua 2011'!$G$136),\"\",'Nicaragua 2011'!$G$136)","v":"N/A"},{"$f":"IF(ISBLANK('Nicaragua 2011'!$G$137),\"\",'Nicaragua 2011'!$G$137)","v":"Yes"},{"$f":"IF(ISBLANK('Nicaragua 2011'!$G$138),\"\",'Nicaragua 2011'!$G$138)","v":"No"},{"$f":"IF(ISBLANK('Nicaragua 2011'!$G$139),\"\",'Nicaragua 2011'!$G$139)","v":"N/A"},{"$f":"IF(ISBLANK('Nicaragua 2011'!$G$140),\"\",'Nicaragua 2011'!$G$140)","v":"N/A"},{"$f":"IF(ISBLANK('Nicaragua 2011'!$G$141),\"\",'Nicaragua 2011'!$G$141)","v":"No"},{"$f":"IF(ISBLANK('Nicaragua 2011'!$F$142),\"\",'Nicaragua 2011'!$F$142)","v":"01/10-12/10"},{"$f":"IF(ISBLANK('Nicaragua 2011'!$F$143),\"\",'Nicaragua 2011'!$F$143)","v":"Report to central level MOH "},null,{"$f":"IF(ISBLANK('Nicaragua 2011'!$G$145),\"\",'Nicaragua 2011'!$G$145)","v":"No"},{"$f":"IF(ISBLANK('Nicaragua 2011'!$G$146),\"\",'Nicaragua 2011'!$G$146)","v":"No"},{"$f":"IF(ISBLANK('Nicaragua 2011'!$D$147),\"\",'Nicaragua 2011'!$D$147)","v":""},"LAC"]
["Nigeria ",null,{"$f":"IF(ISBLANK('Nigeria 2011'!$H$12),\"\",'Nigeria 2011'!$H$12)","v":"Yes"},{"$f":"IF(ISBLANK('Nigeria 2011'!$D$13),\"\",'Nigeria 2011'!$D$13)","v":"Reproductive Health Commodity Security Stakeholders' Committee"},null,{"$f":"IF(ISBLANK('Nigeria 2011'!$D$15),\"\",'Nigeria 2011'!$D$15)","v":"Yes"},{"$f":"IF(ISBLANK('Nigeria 2011'!$F$15),\"\",'Nigeria 2011'!$F$15)","v":"Society for Family Health"},{"$f":"IF(ISBLANK('Nigeria 2011'!$D$16),\"\",'Nigeria 2011'!$D$16)","v":"Yes"},{"$f":"IF(ISBLANK('Nigeria 2011'!$F$16),\"\",'Nigeria 2011'!$F$16)","v":"Planned Parenthood Federation, Nigeria Urban Reproductive Health Initiative, Association for Reproductive and Family Health"},{"$f":"IF(ISBLANK('Nigeria 2011'!$D$17),\"\",'Nigeria 2011'!$D$17)","v":"Yes"},{"$f":"IF(ISBLANK('Nigeria 2011'!$F$17),\"\",'Nigeria 2011'!$F$17)","v":"Pharmaceutical Society of Nigeria (PSN), Society of Gynaecologists and Obstretricians of Nigeria (SOGON), Nigeria Medical Association"},{"$f":"IF(ISBLANK('Nigeria 2011'!$D$18),\"\",'Nigeria 2011'!$D$18)","v":"Yes"},{"$f":"IF(ISBLANK('Nigeria 2011'!$F$18),\"\",'Nigeria 2011'!$F$18)","v":"USAID, DfID, CIDA"},{"$f":"IF(ISBLANK('Nigeria 2011'!$D$19),\"\",'Nigeria 2011'!$D$19)","v":"Yes"},{"$f":"IF(ISBLANK('Nigeria 2011'!$F$19),\"\",'Nigeria 2011'!$F$19)","v":"UNFPA"},{"$f":"IF(ISBLANK('Nigeria 2011'!$D$20),\"\",'Nigeria 2011'!$D$20)","v":"Yes"},{"$f":"IF(ISBLANK('Nigeria 2011'!$F$20),\"\",'Nigeria 2011'!$F$20)","v":"Family Planning Division, National Agency for Food and Drug Administration and Control (NAFDAC), National Health Insurance Services"},{"$f":"IF(ISBLANK('Nigeria 2011'!$D$21),\"\",'Nigeria 2011'!$D$21)","v":"Yes"},{"$f":"IF(ISBLANK('Nigeria 2011'!$F$21),\"\",'Nigeria 2011'!$F$21)","v":"Central Contraceptives Warehouse (CCW)"},{"$f":"IF(ISBLANK('Nigeria 2011'!$D$22),\"\",'Nigeria 2011'!$D$22)","v":"Yes"},{"$f":"IF(ISBLANK('Nigeria 2011'!$F$22),\"\",'Nigeria 2011'!$F$22)","v":"Federal Ministry of Finance and Department of Planning, Research and Statistics"},{"$f":"IF(ISBLANK('Nigeria 2011'!$D$23),\"\",'Nigeria 2011'!$D$23)","v":"Yes"},{"$f":"IF(ISBLANK('Nigeria 2011'!$F$23),\"\",'Nigeria 2011'!$F$23)","v":"USAID I DELIVER PROJECT, USAID Targeted States High  Impact Project (TSHIP), FHI"},{"$f":"IF(ISBLANK('Nigeria 2011'!$H$24),\"\",'Nigeria 2011'!$H$24)","v":"0 times"},{"$f":"IF(ISBLANK('Nigeria 2011'!$H$25),\"\",'Nigeria 2011'!$H$25)","v":"No"},{"$f":"IF(ISBLANK('Nigeria 2011'!$D$26),\"\",'Nigeria 2011'!$D$26)","v":"Yes"},{"$f":"IF(ISBLANK('Nigeria 2011'!$F$26),\"\",'Nigeria 2011'!$F$26)","v":"Association for Reproductive and Family Health"},{"$f":"IF(ISBLANK('Nigeria 2011'!$H$26),\"\",'Nigeria 2011'!$H$26)","v":"CEO"},null,{"$f":"IF(ISBLANK('Nigeria 2011'!$F$28),\"\",'Nigeria 2011'!$F$28)","v":"January"},{"$f":"IF(ISBLANK('Nigeria 2011'!$H$28),\"\",'Nigeria 2011'!$H$28)","v":"December"},{"$f":"IF(ISBLANK('Nigeria 2011'!$G$29),\"\",'Nigeria 2011'!$G$29)","v":9400000},{"$f":"IF(ISBLANK('Nigeria 2011'!$E$30),\"\",'Nigeria 2011'!$E$30)","v":"11/09"},{"$f":"IF(ISBLANK('Nigeria 2011'!$G$30),\"\",'Nigeria 2011'!$G$30)","v":"USAID I DELIVER PROJECT"},{"$f":"IF(ISBLANK('Nigeria 2011'!$H$31),\"\",'Nigeria 2011'!$H$31)","v":"No"},{"$f":"IF(ISBLANK('Nigeria 2011'!$H$32),\"\",'Nigeria 2011'!$H$32)","v":"No"},{"$f":"IF(ISBLANK('Nigeria 2011'!$E$35),\"\",'Nigeria 2011'!$E$35)","v":0},{"$f":"IF(ISBLANK('Nigeria 2011'!$F$35),\"\",'Nigeria 2011'!$F$35)","v":"01/10-12/10"},{"$f":"IF(ISBLANK('Nigeria 2011'!$G$35),\"\",'Nigeria 2011'!$G$35)","v":""},{"$f":"IF(ISBLANK('Nigeria 2011'!$H$35),\"\",'Nigeria 2011'!$H$35)","v":""},{"$f":"IF(ISBLANK('Nigeria 2011'!$H$37),\"\",'Nigeria 2011'!$H$37)","v":"No"},{"$f":"IF(ISBLANK('Nigeria 2011'!$D$40),\"\",'Nigeria 2011'!$D$40)","v":"No"},{"$f":"IF(ISBLANK('Nigeria 2011'!$D$41),\"\",'Nigeria 2011'!$D$41)","v":"N/A"},{"$f":"IF(ISBLANK('Nigeria 2011'!$E$40),\"\",'Nigeria 2011'!$E$40)","v":0},{"$f":"IF(ISBLANK('Nigeria 2011'!$F$40),\"\",'Nigeria 2011'!$F$40)","v":"01/10-12/10"},{"$f":"IF(ISBLANK('Nigeria 2011'!$G$40),\"\",'Nigeria 2011'!$G$40)","v":""},{"$f":"IF(ISBLANK('Nigeria 2011'!$H$40),\"\",'Nigeria 2011'!$H$40)","v":""},{"$f":"IF(ISBLANK('Nigeria 2011'!$D$42),\"\",'Nigeria 2011'!$D$42)","v":"No"},{"$f":"IF(ISBLANK('Nigeria 2011'!$D$43),\"\",'Nigeria 2011'!$D$43)","v":"N/A"},{"$f":"IF(ISBLANK('Nigeria 2011'!$E$42),\"\",'Nigeria 2011'!$E$42)","v":0},{"$f":"IF(ISBLANK('Nigeria 2011'!$F$42),\"\",'Nigeria 2011'!$F$42)","v":"01/10-12/10"},{"$f":"IF(ISBLANK('Nigeria 2011'!$G$42),\"\",'Nigeria 2011'!$G$42)","v":""},{"$f":"IF(ISBLANK('Nigeria 2011'!$H$42),\"\",'Nigeria 2011'!$H$42)","v":""},{"$f":"IF(ISBLANK('Nigeria 2011'!$E$44),\"\",'Nigeria 2011'!$E$44)","v":0},{"$f":"IF(ISBLANK('Nigeria 2011'!$H$44),\"\",'Nigeria 2011'!$H$44)","v":""},null,{"$f":"IF(ISBLANK('Nigeria 2011'!$D$48),\"\",'Nigeria 2011'!$D$48)","v":"Yes"},{"$f":"IF(ISBLANK('Nigeria 2011'!$D$49),\"\",'Nigeria 2011'!$D$49)","v":"UNFPA and DfID"},{"$f":"IF(ISBLANK('Nigeria 2011'!$E$48),\"\",'Nigeria 2011'!$E$48)","v":5000000},{"$f":"IF(ISBLANK('Nigeria 2011'!$F$48),\"\",'Nigeria 2011'!$F$48)","v":"01/10-12/10"},{"$f":"IF(ISBLANK('Nigeria 2011'!$G$48),\"\",'Nigeria 2011'!$G$48)","v":"PipeLine"},{"$f":"IF(ISBLANK('Nigeria 2011'!$H$48),\"\",'Nigeria 2011'!$H$48)","v":""},{"$f":"IF(ISBLANK('Nigeria 2011'!$D$50),\"\",'Nigeria 2011'!$D$50)","v":"No"},{"$f":"IF(ISBLANK('Nigeria 2011'!$E$50),\"\",'Nigeria 2011'!$E$50)","v":0},{"$f":"IF(ISBLANK('Nigeria 2011'!$F$50),\"\",'Nigeria 2011'!$F$50)","v":"01/10-12/10"},{"$f":"IF(ISBLANK('Nigeria 2011'!$G$50),\"\",'Nigeria 2011'!$G$50)","v":""},{"$f":"IF(ISBLANK('Nigeria 2011'!$H$50),\"\",'Nigeria 2011'!$H$50)","v":""},{"$f":"IF(ISBLANK('Nigeria 2011'!$D$51),\"\",'Nigeria 2011'!$D$51)","v":"No"},{"$f":"IF(ISBLANK('Nigeria 2011'!$E$51),\"\",'Nigeria 2011'!$E$51)","v":0},{"$f":"IF(ISBLANK('Nigeria 2011'!$F$51),\"\",'Nigeria 2011'!$F$51)","v":"01/10-12/10"},{"$f":"IF(ISBLANK('Nigeria 2011'!$G$51),\"\",'Nigeria 2011'!$G$51)","v":""},{"$f":"IF(ISBLANK('Nigeria 2011'!$H$51),\"\",'Nigeria 2011'!$H$51)","v":""},{"$f":"IF(ISBLANK('Nigeria 2011'!$E$52),\"\",'Nigeria 2011'!$E$52)","v":5000000},{"$f":"IF(ISBLANK('Nigeria 2011'!$H$52),\"\",'Nigeria 2011'!$H$52)","v":""},{"$f":"IF(ISBLANK('Nigeria 2011'!$F$55),\"\",'Nigeria 2011'!$F$55)","v":0},{"$f":"IF(ISBLANK('Nigeria 2011'!$G$55),\"\",'Nigeria 2011'!$G$55)","v":""},{"$f":"IF(ISBLANK('Nigeria 2011'!$F$56),\"\",'Nigeria 2011'!$F$56)","v":0.53191489361702127},{"$f":"IF(ISBLANK('Nigeria 2011'!$G$56),\"\",'Nigeria 2011'!$G$56)","v":""},{"$f":"IF(ISBLANK('Nigeria 2011'!$F$57),\"\",'Nigeria 2011'!$F$57)","v":"Yes"},{"$f":"IF(ISBLANK('Nigeria 2011'!$G$57),\"\",'Nigeria 2011'!$G$57)","v":""},{"$f":"IF(ISBLANK('Nigeria 2011'!$F$59),\"\",'Nigeria 2011'!$F$59)","v":"N/A"},{"$f":"IF(ISBLANK('Nigeria 2011'!$F$60),\"\",'Nigeria 2011'!$F$60)","v":"N/A"},{"$f":"IF(ISBLANK('Nigeria 2011'!$F$61),\"\",'Nigeria 2011'!$F$61)","v":"N/A"},{"$f":"IF(ISBLANK('Nigeria 2011'!$D$62),\"\",'Nigeria 2011'!$D$62)","v":""},null,null,{"$f":"IF(ISBLANK('Nigeria 2011'!$D$66),\"\",'Nigeria 2011'!$D$66)","v":"Yes"},{"$f":"IF(ISBLANK('Nigeria 2011'!$D$67),\"\",'Nigeria 2011'!$D$67)","v":"Yes"},{"$f":"IF(ISBLANK('Nigeria 2011'!$D$68),\"\",'Nigeria 2011'!$D$68)","v":"Yes"},{"$f":"IF(ISBLANK('Nigeria 2011'!$D$69),\"\",'Nigeria 2011'!$D$69)","v":"Yes"},{"$f":"IF(ISBLANK('Nigeria 2011'!$D$70),\"\",'Nigeria 2011'!$D$70)","v":"Yes"},{"$f":"IF(ISBLANK('Nigeria 2011'!$D$71),\"\",'Nigeria 2011'!$D$71)","v":"Yes"},{"$f":"IF(ISBLANK('Nigeria 2011'!$D$72),\"\",'Nigeria 2011'!$D$72)","v":"Yes"},{"$f":"IF(ISBLANK('Nigeria 2011'!$D$73),\"\",'Nigeria 2011'!$D$73)","v":"Yes"},{"$f":"IF(ISBLANK('Nigeria 2011'!$D$74),\"\",'Nigeria 2011'!$D$74)","v":"Yes"},{"$f":"IF(ISBLANK('Nigeria 2011'!$D$75),\"\",'Nigeria 2011'!$D$75)","v":"Yes"},{"$f":"IF(ISBLANK('Nigeria 2011'!$D$76),\"\",'Nigeria 2011'!$D$76)","v":"Yes"},{"$f":"IF(ISBLANK('Nigeria 2011'!$D$77),\"\",'Nigeria 2011'!$D$77)","v":"Neo Sampoon vaginal contraceptive tablets"},null,{"$f":"IF(ISBLANK('Nigeria 2011'!$F$66),\"\",'Nigeria 2011'!$F$66)","v":"Yes"},{"$f":"IF(ISBLANK('Nigeria 2011'!$F$67),\"\",'Nigeria 2011'!$F$67)","v":"Yes"},{"$f":"IF(ISBLANK('Nigeria 2011'!$F$68),\"\",'Nigeria 2011'!$F$68)","v":"Yes"},{"$f":"IF(ISBLANK('Nigeria 2011'!$F$69),\"\",'Nigeria 2011'!$F$69)","v":"Yes"},{"$f":"IF(ISBLANK('Nigeria 2011'!$F$70),\"\",'Nigeria 2011'!$F$70)","v":"Yes"},{"$f":"IF(ISBLANK('Nigeria 2011'!$F$71),\"\",'Nigeria 2011'!$F$71)","v":"Yes"},{"$f":"IF(ISBLANK('Nigeria 2011'!$F$72),\"\",'Nigeria 2011'!$F$72)","v":"Yes"},{"$f":"IF(ISBLANK('Nigeria 2011'!$F$73),\"\",'Nigeria 2011'!$F$73)","v":"No"},{"$f":"IF(ISBLANK('Nigeria 2011'!$F$74),\"\",'Nigeria 2011'!$F$74)","v":"Yes"},{"$f":"IF(ISBLANK('Nigeria 2011'!$F$75),\"\",'Nigeria 2011'!$F$75)","v":"Yes"},{"$f":"IF(ISBLANK('Nigeria 2011'!$F$76),\"\",'Nigeria 2011'!$F$76)","v":"No"},{"$f":"IF(ISBLANK('Nigeria 2011'!$F$77),\"\",'Nigeria 2011'!$F$77)","v":"No"},null,{"$f":"IF(ISBLANK('Nigeria 2011'!$G$66),\"\",'Nigeria 2011'!$G$66)","v":"Yes"},{"$f":"IF(ISBLANK('Nigeria 2011'!$G$67),\"\",'Nigeria 2011'!$G$67)","v":"Yes"},{"$f":"IF(ISBLANK('Nigeria 2011'!$G$68),\"\",'Nigeria 2011'!$G$68)","v":"Yes"},{"$f":"IF(ISBLANK('Nigeria 2011'!$G$69),\"\",'Nigeria 2011'!$G$69)","v":"Yes"},{"$f":"IF(ISBLANK('Nigeria 2011'!$G$70),\"\",'Nigeria 2011'!$G$70)","v":"Yes"},{"$f":"IF(ISBLANK('Nigeria 2011'!$G$71),\"\",'Nigeria 2011'!$G$71)","v":"Yes"},{"$f":"IF(ISBLANK('Nigeria 2011'!$G$72),\"\",'Nigeria 2011'!$G$72)","v":"Yes"},{"$f":"IF(ISBLANK('Nigeria 2011'!$G$73),\"\",'Nigeria 2011'!$G$73)","v":"Yes"},{"$f":"IF(ISBLANK('Nigeria 2011'!$G$74),\"\",'Nigeria 2011'!$G$74)","v":"Yes"},{"$f":"IF(ISBLANK('Nigeria 2011'!$G$75),\"\",'Nigeria 2011'!$G$75)","v":"Yes"},{"$f":"IF(ISBLANK('Nigeria 2011'!$G$76),\"\",'Nigeria 2011'!$G$76)","v":"Yes"},{"$f":"IF(ISBLANK('Nigeria 2011'!$G$77),\"\",'Nigeria 2011'!$G$77)","v":""},null,{"$f":"IF(ISBLANK('Nigeria 2011'!$H$66),\"\",'Nigeria 2011'!$H$66)","v":"Yes"},{"$f":"IF(ISBLANK('Nigeria 2011'!$H$67),\"\",'Nigeria 2011'!$H$67)","v":"Yes"},{"$f":"IF(ISBLANK('Nigeria 2011'!$H$68),\"\",'Nigeria 2011'!$H$68)","v":"Yes"},{"$f":"IF(ISBLANK('Nigeria 2011'!$H$69),\"\",'Nigeria 2011'!$H$69)","v":"Yes"},{"$f":"IF(ISBLANK('Nigeria 2011'!$H$70),\"\",'Nigeria 2011'!$H$70)","v":"Yes"},{"$f":"IF(ISBLANK('Nigeria 2011'!$H$71),\"\",'Nigeria 2011'!$H$71)","v":"Yes"},{"$f":"IF(ISBLANK('Nigeria 2011'!$H$72),\"\",'Nigeria 2011'!$H$72)","v":"Yes"},{"$f":"IF(ISBLANK('Nigeria 2011'!$H$73),\"\",'Nigeria 2011'!$H$73)","v":"Yes"},{"$f":"IF(ISBLANK('Nigeria 2011'!$H$74),\"\",'Nigeria 2011'!$H$74)","v":"No"},{"$f":"IF(ISBLANK('Nigeria 2011'!$H$75),\"\",'Nigeria 2011'!$H$75)","v":"No"},{"$f":"IF(ISBLANK('Nigeria 2011'!$H$76),\"\",'Nigeria 2011'!$H$76)","v":"Yes"},{"$f":"IF(ISBLANK('Nigeria 2011'!$H$77),\"\",'Nigeria 2011'!$H$77)","v":"Neo Sampoon vaginal contraceptive tablets"},{"$f":"IF(ISBLANK('Nigeria 2011'!$D$78),\"\",'Nigeria 2011'!$D$78)","v":""},null,{"$f":"IF(ISBLANK('Nigeria 2011'!$H$80),\"\",'Nigeria 2011'!$H$80)","v":"Yes"},{"$f":"IF(ISBLANK('Nigeria 2011'!$C$83),\"\",'Nigeria 2011'!$C$83)","v":"National Strategic Plan for Reproductive Health Commodity Security"},{"$f":"IF(ISBLANK('Nigeria 2011'!$D$83),\"\",'Nigeria 2011'!$D$83)","v":"2002-2007. 2011-2015 in draft stage"},{"$f":"IF(ISBLANK('Nigeria 2011'!$F$83),\"\",'Nigeria 2011'!$F$83)","v":"Yes"},{"$f":"IF(ISBLANK('Nigeria 2011'!$G$83),\"\",'Nigeria 2011'!$G$83)","v":"Yes"},{"$f":"IF(ISBLANK('Nigeria 2011'!$F$84),\"\",'Nigeria 2011'!$F$84)","v":"No"},{"$f":"IF(ISBLANK('Nigeria 2011'!$E$85),\"\",'Nigeria 2011'!$E$85)","v":"N/A"},{"$f":"IF(ISBLANK('Nigeria 2011'!$E$86),\"\",'Nigeria 2011'!$E$86)","v":"N/A"},{"$f":"IF(ISBLANK('Nigeria 2011'!$H$87),\"\",'Nigeria 2011'!$H$87)","v":"No"},{"$f":"IF(ISBLANK('Nigeria 2011'!$D$88),\"\",'Nigeria 2011'!$D$88)","v":"N/A"},{"$f":"IF(ISBLANK('Nigeria 2011'!$H$89),\"\",'Nigeria 2011'!$H$89)","v":"Don't know"},{"$f":"IF(ISBLANK('Nigeria 2011'!$D$90),\"\",'Nigeria 2011'!$D$90)","v":"Don't know"},{"$f":"IF(ISBLANK('Nigeria 2011'!$H$91),\"\",'Nigeria 2011'!$H$91)","v":"Yes"},{"$f":"IF(ISBLANK('Nigeria 2011'!$C$94),\"\",'Nigeria 2011'!$C$94)","v":"Injectables"},{"$f":"IF(ISBLANK('Nigeria 2011'!$E$94),\"\",'Nigeria 2011'!$E$94)","v":"Only trained personnel such as nurses and community health extension workers are allowed to administer injections."},{"$f":"IF(ISBLANK('Nigeria 2011'!$G$94),\"\",'Nigeria 2011'!$G$94)","v":"Only trained personnel are allowed to administer injections."},{"$f":"IF(ISBLANK('Nigeria 2011'!$C$95),\"\",'Nigeria 2011'!$C$95)","v":"Implants"},{"$f":"IF(ISBLANK('Nigeria 2011'!$E$95),\"\",'Nigeria 2011'!$E$95)","v":"Only trained nurses and doctors are allowed to administer implants."},{"$f":"IF(ISBLANK('Nigeria 2011'!$G$95),\"\",'Nigeria 2011'!$G$95)","v":"Only trained personnel are allowed to administer implants."},{"$f":"IF(ISBLANK('Nigeria 2011'!$C$96),\"\",'Nigeria 2011'!$C$96)","v":"IUDs"},{"$f":"IF(ISBLANK('Nigeria 2011'!$E$96),\"\",'Nigeria 2011'!$E$96)","v":"Only trained midwives and doctors are permitted to insert IUDs."},{"$f":"IF(ISBLANK('Nigeria 2011'!$G$96),\"\",'Nigeria 2011'!$G$96)","v":"Only trained personnel are allowed to administer IUDs."},null,{"$f":"IF(ISBLANK('Nigeria 2011'!$D$99),\"\",'Nigeria 2011'!$D$99)","v":"No"},{"$f":"IF(ISBLANK('Nigeria 2011'!$E$99),\"\",'Nigeria 2011'!$E$99)","v":""},{"$f":"IF(ISBLANK('Nigeria 2011'!$H$99),\"\",'Nigeria 2011'!$H$99)","v":""},{"$f":"IF(ISBLANK('Nigeria 2011'!$D$100),\"\",'Nigeria 2011'!$D$100)","v":"No"},{"$f":"IF(ISBLANK('Nigeria 2011'!$E$100),\"\",'Nigeria 2011'!$E$100)","v":""},{"$f":"IF(ISBLANK('Nigeria 2011'!$H$100),\"\",'Nigeria 2011'!$H$100)","v":""},{"$f":"IF(ISBLANK('Nigeria 2011'!$D$101),\"\",'Nigeria 2011'!$D$101)","v":"No"},{"$f":"IF(ISBLANK('Nigeria 2011'!$E$101),\"\",'Nigeria 2011'!$E$101)","v":""},{"$f":"IF(ISBLANK('Nigeria 2011'!$H$101),\"\",'Nigeria 2011'!$H$101)","v":""},null,{"$f":"IF(ISBLANK('Nigeria 2011'!$G$104),\"\",'Nigeria 2011'!$G$104)","v":"No"},{"$f":"IF(ISBLANK('Nigeria 2011'!$G$105),\"\",'Nigeria 2011'!$G$105)","v":"Yes"},{"$f":"IF(ISBLANK('Nigeria 2011'!$G$106),\"\",'Nigeria 2011'!$G$106)","v":"No"},{"$f":"IF(ISBLANK('Nigeria 2011'!$D$107),\"\",'Nigeria 2011'!$D$107)","v":"N/A"},null,{"$f":"IF(ISBLANK('Nigeria 2011'!$G$109),\"\",'Nigeria 2011'!$G$109)","v":"Yes"},{"$f":"IF(ISBLANK('Nigeria 2011'!$G$110),\"\",'Nigeria 2011'!$G$110)","v":"Yes"},{"$f":"IF(ISBLANK('Nigeria 2011'!$G$111),\"\",'Nigeria 2011'!$G$111)","v":"Yes"},{"$f":"IF(ISBLANK('Nigeria 2011'!$G$112),\"\",'Nigeria 2011'!$G$112)","v":"Yes"},{"$f":"IF(ISBLANK('Nigeria 2011'!$G$113),\"\",'Nigeria 2011'!$G$113)","v":"Yes"},{"$f":"IF(ISBLANK('Nigeria 2011'!$G$114),\"\",'Nigeria 2011'!$G$114)","v":"Yes"},{"$f":"IF(ISBLANK('Nigeria 2011'!$G$115),\"\",'Nigeria 2011'!$G$115)","v":"Yes"},{"$f":"IF(ISBLANK('Nigeria 2011'!$G$116),\"\",'Nigeria 2011'!$G$116)","v":"No"},{"$f":"IF(ISBLANK('Nigeria 2011'!$G$117),\"\",'Nigeria 2011'!$G$117)","v":"No"},{"$f":"IF(ISBLANK('Nigeria 2011'!$G$118),\"\",'Nigeria 2011'!$G$118)","v":"Don't know"},{"$f":"IF(ISBLANK('Nigeria 2011'!$F$119),\"\",'Nigeria 2011'!$F$119)","v":"Don't know"},{"$f":"IF(ISBLANK('Nigeria 2011'!$F$120),\"\",'Nigeria 2011'!$F$120)","v":2003},{"$f":"IF(ISBLANK('Nigeria 2011'!$D$121),\"\",'Nigeria 2011'!$D$121)","v":"National Essential Medicine List"},{"$f":"IF(ISBLANK('Nigeria 2011'!$D$122),\"\",'Nigeria 2011'!$D$122)","v":"The list is currently under review."},null,{"$f":"IF(ISBLANK('Nigeria 2011'!$F$124),\"\",'Nigeria 2011'!$F$124)","v":2004},{"$f":"IF(ISBLANK('Nigeria 2011'!$G$125),\"\",'Nigeria 2011'!$G$125)","v":"No"},{"$f":"IF(ISBLANK('Nigeria 2011'!$G$126),\"\",'Nigeria 2011'!$G$126)","v":"No"},{"$f":"IF(ISBLANK('Nigeria 2011'!$G$127),\"\",'Nigeria 2011'!$G$127)","v":"No"},{"$f":"IF(ISBLANK('Nigeria 2011'!$G$128),\"\",'Nigeria 2011'!$G$128)","v":"No"},{"$f":"IF(ISBLANK('Nigeria 2011'!$D$129),\"\",'Nigeria 2011'!$D$129)","v":""},null,{"$f":"IF(ISBLANK('Nigeria 2011'!$G$131),\"\",'Nigeria 2011'!$G$131)","v":"Yes"},null,{"$f":"IF(ISBLANK('Nigeria 2011'!$G$133),\"\",'Nigeria 2011'!$G$133)","v":"No"},{"$f":"IF(ISBLANK('Nigeria 2011'!$G$134),\"\",'Nigeria 2011'!$G$134)","v":"No"},{"$f":"IF(ISBLANK('Nigeria 2011'!$G$135),\"\",'Nigeria 2011'!$G$135)","v":"Yes"},{"$f":"IF(ISBLANK('Nigeria 2011'!$G$136),\"\",'Nigeria 2011'!$G$136)","v":"No"},{"$f":"IF(ISBLANK('Nigeria 2011'!$G$137),\"\",'Nigeria 2011'!$G$137)","v":"Yes"},{"$f":"IF(ISBLANK('Nigeria 2011'!$G$138),\"\",'Nigeria 2011'!$G$138)","v":"Yes"},{"$f":"IF(ISBLANK('Nigeria 2011'!$G$139),\"\",'Nigeria 2011'!$G$139)","v":"Yes"},{"$f":"IF(ISBLANK('Nigeria 2011'!$G$140),\"\",'Nigeria 2011'!$G$140)","v":"N/A"},{"$f":"IF(ISBLANK('Nigeria 2011'!$G$141),\"\",'Nigeria 2011'!$G$141)","v":"N/A"},{"$f":"IF(ISBLANK('Nigeria 2011'!$F$142),\"\",'Nigeria 2011'!$F$142)","v":"01/10-12/10"},{"$f":"IF(ISBLANK('Nigeria 2011'!$F$143),\"\",'Nigeria 2011'!$F$143)","v":"Periodic warehouse physical inventories"},null,{"$f":"IF(ISBLANK('Nigeria 2011'!$G$145),\"\",'Nigeria 2011'!$G$145)","v":"Don't know"},{"$f":"IF(ISBLANK('Nigeria 2011'!$G$146),\"\",'Nigeria 2011'!$G$146)","v":"Yes"},{"$f":"IF(ISBLANK('Nigeria 2011'!$D$147),\"\",'Nigeria 2011'!$D$147)","v":"The USAID | DELIVER PROJECT and UNFPA are in the process of collaborating with FMOH to draft an updated RHCS strategic plan for 2011-2015. UNFPA placed orders for 2 miliion USD worth of contraceptives in the first week of March 2011 (half of this was from its own funds). UNFPA will spend a total of 2 million USD of its own funds to procure public sector contraceptives in 2011. The FMOH has yet to confirm funding for its planned procurement of 3 million USD worth of contraceptives. DfID is considering matching FMOH funding for 2011. "},"Africa"]
["Pakistan ",null,{"$f":"IF(ISBLANK('Pakistan 2011'!$H$12),\"\",'Pakistan 2011'!$H$12)","v":"Yes"},{"$f":"IF(ISBLANK('Pakistan 2011'!$D$13),\"\",'Pakistan 2011'!$D$13)","v":"Reproductive Health Commodity Security Committee (RHCS) - Currently the committee is inactive and the USAID | DELIVER PROJECT plans to revitalize it through CS inputs. There is a new initiatve called National Birth Spacing Initiative in which a sub-committee on \"Logistics and Supply Chain\" has been delegated to USAID | DELIVER Pakistan for convening. However, this arrangement has not yet been finalized with provinces under devolution. "},null,{"$f":"IF(ISBLANK('Pakistan 2011'!$D$15),\"\",'Pakistan 2011'!$D$15)","v":"Yes"},{"$f":"IF(ISBLANK('Pakistan 2011'!$F$15),\"\",'Pakistan 2011'!$F$15)","v":"Greenstar Social Marketing, Pakistan"},{"$f":"IF(ISBLANK('Pakistan 2011'!$D$16),\"\",'Pakistan 2011'!$D$16)","v":"Yes"},{"$f":"IF(ISBLANK('Pakistan 2011'!$F$16),\"\",'Pakistan 2011'!$F$16)","v":"Family Planning Association of Pakistan"},{"$f":"IF(ISBLANK('Pakistan 2011'!$D$17),\"\",'Pakistan 2011'!$D$17)","v":"No"},{"$f":"IF(ISBLANK('Pakistan 2011'!$F$17),\"\",'Pakistan 2011'!$F$17)","v":""},{"$f":"IF(ISBLANK('Pakistan 2011'!$D$18),\"\",'Pakistan 2011'!$D$18)","v":"Yes"},{"$f":"IF(ISBLANK('Pakistan 2011'!$F$18),\"\",'Pakistan 2011'!$F$18)","v":"USAID, DFID"},{"$f":"IF(ISBLANK('Pakistan 2011'!$D$19),\"\",'Pakistan 2011'!$D$19)","v":"Yes"},{"$f":"IF(ISBLANK('Pakistan 2011'!$F$19),\"\",'Pakistan 2011'!$F$19)","v":"UNFPA"},{"$f":"IF(ISBLANK('Pakistan 2011'!$D$20),\"\",'Pakistan 2011'!$D$20)","v":"Yes"},{"$f":"IF(ISBLANK('Pakistan 2011'!$F$20),\"\",'Pakistan 2011'!$F$20)","v":"Representatives of Ministry of Health and Population Program Wing along with provincial secretaries as members"},{"$f":"IF(ISBLANK('Pakistan 2011'!$D$21),\"\",'Pakistan 2011'!$D$21)","v":"No"},{"$f":"IF(ISBLANK('Pakistan 2011'!$F$21),\"\",'Pakistan 2011'!$F$21)","v":""},{"$f":"IF(ISBLANK('Pakistan 2011'!$D$22),\"\",'Pakistan 2011'!$D$22)","v":"No"},{"$f":"IF(ISBLANK('Pakistan 2011'!$F$22),\"\",'Pakistan 2011'!$F$22)","v":""},{"$f":"IF(ISBLANK('Pakistan 2011'!$D$23),\"\",'Pakistan 2011'!$D$23)","v":""},{"$f":"IF(ISBLANK('Pakistan 2011'!$F$23),\"\",'Pakistan 2011'!$F$23)","v":""},{"$f":"IF(ISBLANK('Pakistan 2011'!$H$24),\"\",'Pakistan 2011'!$H$24)","v":"0 times"},{"$f":"IF(ISBLANK('Pakistan 2011'!$H$25),\"\",'Pakistan 2011'!$H$25)","v":"Yes"},{"$f":"IF(ISBLANK('Pakistan 2011'!$D$26),\"\",'Pakistan 2011'!$D$26)","v":"Yes"},{"$f":"IF(ISBLANK('Pakistan 2011'!$F$26),\"\",'Pakistan 2011'!$F$26)","v":"USAID"},{"$f":"IF(ISBLANK('Pakistan 2011'!$H$26),\"\",'Pakistan 2011'!$H$26)","v":"Activity Manager, USAID Pakistan"},null,{"$f":"IF(ISBLANK('Pakistan 2011'!$F$28),\"\",'Pakistan 2011'!$F$28)","v":"July"},{"$f":"IF(ISBLANK('Pakistan 2011'!$H$28),\"\",'Pakistan 2011'!$H$28)","v":"June"},{"$f":"IF(ISBLANK('Pakistan 2011'!$G$29),\"\",'Pakistan 2011'!$G$29)","v":27500000},{"$f":"IF(ISBLANK('Pakistan 2011'!$E$30),\"\",'Pakistan 2011'!$E$30)","v":"01/11"},{"$f":"IF(ISBLANK('Pakistan 2011'!$G$30),\"\",'Pakistan 2011'!$G$30)","v":"USAID | DELIVER PROJECT"},{"$f":"IF(ISBLANK('Pakistan 2011'!$H$31),\"\",'Pakistan 2011'!$H$31)","v":"Yes"},{"$f":"IF(ISBLANK('Pakistan 2011'!$H$32),\"\",'Pakistan 2011'!$H$32)","v":"Yes"},{"$f":"IF(ISBLANK('Pakistan 2011'!$E$35),\"\",'Pakistan 2011'!$E$35)","v":5400000},{"$f":"IF(ISBLANK('Pakistan 2011'!$F$35),\"\",'Pakistan 2011'!$F$35)","v":"07/09-06/10"},{"$f":"IF(ISBLANK('Pakistan 2011'!$G$35),\"\",'Pakistan 2011'!$G$35)","v":"Population Program Wing"},{"$f":"IF(ISBLANK('Pakistan 2011'!$H$35),\"\",'Pakistan 2011'!$H$35)","v":""},{"$f":"IF(ISBLANK('Pakistan 2011'!$H$37),\"\",'Pakistan 2011'!$H$37)","v":"Yes"},{"$f":"IF(ISBLANK('Pakistan 2011'!$D$40),\"\",'Pakistan 2011'!$D$40)","v":"Yes"},{"$f":"IF(ISBLANK('Pakistan 2011'!$D$41),\"\",'Pakistan 2011'!$D$41)","v":"Public Sector Development Program"},{"$f":"IF(ISBLANK('Pakistan 2011'!$E$40),\"\",'Pakistan 2011'!$E$40)","v":1600000},{"$f":"IF(ISBLANK('Pakistan 2011'!$F$40),\"\",'Pakistan 2011'!$F$40)","v":"07/09-06/10"},{"$f":"IF(ISBLANK('Pakistan 2011'!$G$40),\"\",'Pakistan 2011'!$G$40)","v":"Population Program Wing"},{"$f":"IF(ISBLANK('Pakistan 2011'!$H$40),\"\",'Pakistan 2011'!$H$40)","v":""},{"$f":"IF(ISBLANK('Pakistan 2011'!$D$42),\"\",'Pakistan 2011'!$D$42)","v":"Yes"},{"$f":"IF(ISBLANK('Pakistan 2011'!$D$43),\"\",'Pakistan 2011'!$D$43)","v":"Public Sector Development Program"},{"$f":"IF(ISBLANK('Pakistan 2011'!$E$42),\"\",'Pakistan 2011'!$E$42)","v":3150000},{"$f":"IF(ISBLANK('Pakistan 2011'!$F$42),\"\",'Pakistan 2011'!$F$42)","v":"01/10-12/10"},{"$f":"IF(ISBLANK('Pakistan 2011'!$G$42),\"\",'Pakistan 2011'!$G$42)","v":"UNFPA (as procurement agent)"},{"$f":"IF(ISBLANK('Pakistan 2011'!$H$42),\"\",'Pakistan 2011'!$H$42)","v":""},{"$f":"IF(ISBLANK('Pakistan 2011'!$E$44),\"\",'Pakistan 2011'!$E$44)","v":4750000},{"$f":"IF(ISBLANK('Pakistan 2011'!$H$44),\"\",'Pakistan 2011'!$H$44)","v":""},null,{"$f":"IF(ISBLANK('Pakistan 2011'!$D$48),\"\",'Pakistan 2011'!$D$48)","v":"Yes"},{"$f":"IF(ISBLANK('Pakistan 2011'!$D$49),\"\",'Pakistan 2011'!$D$49)","v":"USAID Pakistan"},{"$f":"IF(ISBLANK('Pakistan 2011'!$E$48),\"\",'Pakistan 2011'!$E$48)","v":12000000},{"$f":"IF(ISBLANK('Pakistan 2011'!$F$48),\"\",'Pakistan 2011'!$F$48)","v":"01/10-12/10"},{"$f":"IF(ISBLANK('Pakistan 2011'!$G$48),\"\",'Pakistan 2011'!$G$48)","v":"USAID | DELIVER PROJECT"},{"$f":"IF(ISBLANK('Pakistan 2011'!$H$48),\"\",'Pakistan 2011'!$H$48)","v":""},{"$f":"IF(ISBLANK('Pakistan 2011'!$D$50),\"\",'Pakistan 2011'!$D$50)","v":"No"},{"$f":"IF(ISBLANK('Pakistan 2011'!$E$50),\"\",'Pakistan 2011'!$E$50)","v":0},{"$f":"IF(ISBLANK('Pakistan 2011'!$F$50),\"\",'Pakistan 2011'!$F$50)","v":"01/10-12/10"},{"$f":"IF(ISBLANK('Pakistan 2011'!$G$50),\"\",'Pakistan 2011'!$G$50)","v":""},{"$f":"IF(ISBLANK('Pakistan 2011'!$H$50),\"\",'Pakistan 2011'!$H$50)","v":""},{"$f":"IF(ISBLANK('Pakistan 2011'!$D$51),\"\",'Pakistan 2011'!$D$51)","v":"No"},{"$f":"IF(ISBLANK('Pakistan 2011'!$E$51),\"\",'Pakistan 2011'!$E$51)","v":0},{"$f":"IF(ISBLANK('Pakistan 2011'!$F$51),\"\",'Pakistan 2011'!$F$51)","v":"01/10-12/10"},{"$f":"IF(ISBLANK('Pakistan 2011'!$G$51),\"\",'Pakistan 2011'!$G$51)","v":""},{"$f":"IF(ISBLANK('Pakistan 2011'!$H$51),\"\",'Pakistan 2011'!$H$51)","v":""},{"$f":"IF(ISBLANK('Pakistan 2011'!$E$52),\"\",'Pakistan 2011'!$E$52)","v":12000000},{"$f":"IF(ISBLANK('Pakistan 2011'!$H$52),\"\",'Pakistan 2011'!$H$52)","v":""},{"$f":"IF(ISBLANK('Pakistan 2011'!$F$55),\"\",'Pakistan 2011'!$F$55)","v":0.28358208955223879},{"$f":"IF(ISBLANK('Pakistan 2011'!$G$55),\"\",'Pakistan 2011'!$G$55)","v":"Public sector money was redirected to support internally displaced populations due to floods\n"},{"$f":"IF(ISBLANK('Pakistan 2011'!$F$56),\"\",'Pakistan 2011'!$F$56)","v":0.60909090909090913},{"$f":"IF(ISBLANK('Pakistan 2011'!$G$56),\"\",'Pakistan 2011'!$G$56)","v":""},{"$f":"IF(ISBLANK('Pakistan 2011'!$F$57),\"\",'Pakistan 2011'!$F$57)","v":""},{"$f":"IF(ISBLANK('Pakistan 2011'!$G$57),\"\",'Pakistan 2011'!$G$57)","v":""},{"$f":"IF(ISBLANK('Pakistan 2011'!$F$59),\"\",'Pakistan 2011'!$F$59)","v":"The government and a third-party agent"},{"$f":"IF(ISBLANK('Pakistan 2011'!$F$60),\"\",'Pakistan 2011'!$F$60)","v":"UNFPA and direct procurement from local producers (from ZAFA Pharmaceuticals Laboratories)"},{"$f":"IF(ISBLANK('Pakistan 2011'!$F$61),\"\",'Pakistan 2011'!$F$61)","v":"No"},{"$f":"IF(ISBLANK('Pakistan 2011'!$D$62),\"\",'Pakistan 2011'!$D$62)","v":""},null,null,{"$f":"IF(ISBLANK('Pakistan 2011'!$D$66),\"\",'Pakistan 2011'!$D$66)","v":"Yes"},{"$f":"IF(ISBLANK('Pakistan 2011'!$D$67),\"\",'Pakistan 2011'!$D$67)","v":"Yes"},{"$f":"IF(ISBLANK('Pakistan 2011'!$D$68),\"\",'Pakistan 2011'!$D$68)","v":"Yes"},{"$f":"IF(ISBLANK('Pakistan 2011'!$D$69),\"\",'Pakistan 2011'!$D$69)","v":"Yes"},{"$f":"IF(ISBLANK('Pakistan 2011'!$D$70),\"\",'Pakistan 2011'!$D$70)","v":"Yes"},{"$f":"IF(ISBLANK('Pakistan 2011'!$D$71),\"\",'Pakistan 2011'!$D$71)","v":"Yes"},{"$f":"IF(ISBLANK('Pakistan 2011'!$D$72),\"\",'Pakistan 2011'!$D$72)","v":"No"},{"$f":"IF(ISBLANK('Pakistan 2011'!$D$73),\"\",'Pakistan 2011'!$D$73)","v":"Yes"},{"$f":"IF(ISBLANK('Pakistan 2011'!$D$74),\"\",'Pakistan 2011'!$D$74)","v":"Yes"},{"$f":"IF(ISBLANK('Pakistan 2011'!$D$75),\"\",'Pakistan 2011'!$D$75)","v":"Yes"},{"$f":"IF(ISBLANK('Pakistan 2011'!$D$76),\"\",'Pakistan 2011'!$D$76)","v":"No"},{"$f":"IF(ISBLANK('Pakistan 2011'!$D$77),\"\",'Pakistan 2011'!$D$77)","v":""},null,{"$f":"IF(ISBLANK('Pakistan 2011'!$F$66),\"\",'Pakistan 2011'!$F$66)","v":"Yes"},{"$f":"IF(ISBLANK('Pakistan 2011'!$F$67),\"\",'Pakistan 2011'!$F$67)","v":"Yes"},{"$f":"IF(ISBLANK('Pakistan 2011'!$F$68),\"\",'Pakistan 2011'!$F$68)","v":"Yes"},{"$f":"IF(ISBLANK('Pakistan 2011'!$F$69),\"\",'Pakistan 2011'!$F$69)","v":"Yes"},{"$f":"IF(ISBLANK('Pakistan 2011'!$F$70),\"\",'Pakistan 2011'!$F$70)","v":"Yes"},{"$f":"IF(ISBLANK('Pakistan 2011'!$F$71),\"\",'Pakistan 2011'!$F$71)","v":"Yes"},{"$f":"IF(ISBLANK('Pakistan 2011'!$F$72),\"\",'Pakistan 2011'!$F$72)","v":"No"},{"$f":"IF(ISBLANK('Pakistan 2011'!$F$73),\"\",'Pakistan 2011'!$F$73)","v":"Yes"},{"$f":"IF(ISBLANK('Pakistan 2011'!$F$74),\"\",'Pakistan 2011'!$F$74)","v":"Yes"},{"$f":"IF(ISBLANK('Pakistan 2011'!$F$75),\"\",'Pakistan 2011'!$F$75)","v":"Yes"},{"$f":"IF(ISBLANK('Pakistan 2011'!$F$76),\"\",'Pakistan 2011'!$F$76)","v":"No"},{"$f":"IF(ISBLANK('Pakistan 2011'!$F$77),\"\",'Pakistan 2011'!$F$77)","v":""},null,{"$f":"IF(ISBLANK('Pakistan 2011'!$G$66),\"\",'Pakistan 2011'!$G$66)","v":"Yes"},{"$f":"IF(ISBLANK('Pakistan 2011'!$G$67),\"\",'Pakistan 2011'!$G$67)","v":"No"},{"$f":"IF(ISBLANK('Pakistan 2011'!$G$68),\"\",'Pakistan 2011'!$G$68)","v":"Yes"},{"$f":"IF(ISBLANK('Pakistan 2011'!$G$69),\"\",'Pakistan 2011'!$G$69)","v":"Yes"},{"$f":"IF(ISBLANK('Pakistan 2011'!$G$70),\"\",'Pakistan 2011'!$G$70)","v":"Yes"},{"$f":"IF(ISBLANK('Pakistan 2011'!$G$71),\"\",'Pakistan 2011'!$G$71)","v":"Yes"},{"$f":"IF(ISBLANK('Pakistan 2011'!$G$72),\"\",'Pakistan 2011'!$G$72)","v":"Yes"},{"$f":"IF(ISBLANK('Pakistan 2011'!$G$73),\"\",'Pakistan 2011'!$G$73)","v":"Yes"},{"$f":"IF(ISBLANK('Pakistan 2011'!$G$74),\"\",'Pakistan 2011'!$G$74)","v":"Yes"},{"$f":"IF(ISBLANK('Pakistan 2011'!$G$75),\"\",'Pakistan 2011'!$G$75)","v":"Yes"},{"$f":"IF(ISBLANK('Pakistan 2011'!$G$76),\"\",'Pakistan 2011'!$G$76)","v":"Yes"},{"$f":"IF(ISBLANK('Pakistan 2011'!$G$77),\"\",'Pakistan 2011'!$G$77)","v":""},null,{"$f":"IF(ISBLANK('Pakistan 2011'!$H$66),\"\",'Pakistan 2011'!$H$66)","v":"Yes"},{"$f":"IF(ISBLANK('Pakistan 2011'!$H$67),\"\",'Pakistan 2011'!$H$67)","v":"No"},{"$f":"IF(ISBLANK('Pakistan 2011'!$H$68),\"\",'Pakistan 2011'!$H$68)","v":"Yes"},{"$f":"IF(ISBLANK('Pakistan 2011'!$H$69),\"\",'Pakistan 2011'!$H$69)","v":"No"},{"$f":"IF(ISBLANK('Pakistan 2011'!$H$70),\"\",'Pakistan 2011'!$H$70)","v":"Yes"},{"$f":"IF(ISBLANK('Pakistan 2011'!$H$71),\"\",'Pakistan 2011'!$H$71)","v":"Yes"},{"$f":"IF(ISBLANK('Pakistan 2011'!$H$72),\"\",'Pakistan 2011'!$H$72)","v":"No"},{"$f":"IF(ISBLANK('Pakistan 2011'!$H$73),\"\",'Pakistan 2011'!$H$73)","v":"Yes"},{"$f":"IF(ISBLANK('Pakistan 2011'!$H$74),\"\",'Pakistan 2011'!$H$74)","v":"No"},{"$f":"IF(ISBLANK('Pakistan 2011'!$H$75),\"\",'Pakistan 2011'!$H$75)","v":"Yes"},{"$f":"IF(ISBLANK('Pakistan 2011'!$H$76),\"\",'Pakistan 2011'!$H$76)","v":"Yes"},{"$f":"IF(ISBLANK('Pakistan 2011'!$H$77),\"\",'Pakistan 2011'!$H$77)","v":""},{"$f":"IF(ISBLANK('Pakistan 2011'!$D$78),\"\",'Pakistan 2011'!$D$78)","v":""},null,{"$f":"IF(ISBLANK('Pakistan 2011'!$H$80),\"\",'Pakistan 2011'!$H$80)","v":"Yes"},{"$f":"IF(ISBLANK('Pakistan 2011'!$C$83),\"\",'Pakistan 2011'!$C$83)","v":"National Population Policy"},{"$f":"IF(ISBLANK('Pakistan 2011'!$D$83),\"\",'Pakistan 2011'!$D$83)","v":"2010 - 2014"},{"$f":"IF(ISBLANK('Pakistan 2011'!$F$83),\"\",'Pakistan 2011'!$F$83)","v":"Yes"},{"$f":"IF(ISBLANK('Pakistan 2011'!$G$83),\"\",'Pakistan 2011'!$G$83)","v":"Don't know"},{"$f":"IF(ISBLANK('Pakistan 2011'!$F$84),\"\",'Pakistan 2011'!$F$84)","v":"Yes"},{"$f":"IF(ISBLANK('Pakistan 2011'!$E$85),\"\",'Pakistan 2011'!$E$85)","v":"NGOs, social marketing, and commercial"},{"$f":"IF(ISBLANK('Pakistan 2011'!$E$86),\"\",'Pakistan 2011'!$E$86)","v":"Aluminium foil, PVC, syringes and vials (used for packaging contraceptive products) have a regulatory duty and income tax @ 1% and 4% for all of the aforementioned products; and a customs duty of 5%, 10%, 14.79% and 5%; and a sales tax of 16%, 21%, 16% and 16% for the respective products."},{"$f":"IF(ISBLANK('Pakistan 2011'!$H$87),\"\",'Pakistan 2011'!$H$87)","v":"No"},{"$f":"IF(ISBLANK('Pakistan 2011'!$D$88),\"\",'Pakistan 2011'!$D$88)","v":"N/A"},{"$f":"IF(ISBLANK('Pakistan 2011'!$H$89),\"\",'Pakistan 2011'!$H$89)","v":"Yes"},{"$f":"IF(ISBLANK('Pakistan 2011'!$D$90),\"\",'Pakistan 2011'!$D$90)","v":"1. High political will 2. Exemption from all duties creates a conducive environment for producers like ZAFA and Schering 3. Over-the-counter availability"},{"$f":"IF(ISBLANK('Pakistan 2011'!$H$91),\"\",'Pakistan 2011'!$H$91)","v":"Yes"},{"$f":"IF(ISBLANK('Pakistan 2011'!$C$94),\"\",'Pakistan 2011'!$C$94)","v":"IUD, surgical/permanent contraception, Implanon implant"},{"$f":"IF(ISBLANK('Pakistan 2011'!$E$94),\"\",'Pakistan 2011'!$E$94)","v":"Trained healthcare provider"},{"$f":"IF(ISBLANK('Pakistan 2011'!$G$94),\"\",'Pakistan 2011'!$G$94)","v":"Trained healthcare provider"},{"$f":"IF(ISBLANK('Pakistan 2011'!$C$95),\"\",'Pakistan 2011'!$C$95)","v":""},{"$f":"IF(ISBLANK('Pakistan 2011'!$E$95),\"\",'Pakistan 2011'!$E$95)","v":""},{"$f":"IF(ISBLANK('Pakistan 2011'!$G$95),\"\",'Pakistan 2011'!$G$95)","v":""},{"$f":"IF(ISBLANK('Pakistan 2011'!$C$96),\"\",'Pakistan 2011'!$C$96)","v":""},{"$f":"IF(ISBLANK('Pakistan 2011'!$E$96),\"\",'Pakistan 2011'!$E$96)","v":""},{"$f":"IF(ISBLANK('Pakistan 2011'!$G$96),\"\",'Pakistan 2011'!$G$96)","v":""},null,{"$f":"IF(ISBLANK('Pakistan 2011'!$D$99),\"\",'Pakistan 2011'!$D$99)","v":"Yes"},{"$f":"IF(ISBLANK('Pakistan 2011'!$E$99),\"\",'Pakistan 2011'!$E$99)","v":"The Pakistani law allows distribution of contraceptives to only married women of reproductive age "},{"$f":"IF(ISBLANK('Pakistan 2011'!$H$99),\"\",'Pakistan 2011'!$H$99)","v":"Don't know"},{"$f":"IF(ISBLANK('Pakistan 2011'!$D$100),\"\",'Pakistan 2011'!$D$100)","v":"No"},{"$f":"IF(ISBLANK('Pakistan 2011'!$E$100),\"\",'Pakistan 2011'!$E$100)","v":""},{"$f":"IF(ISBLANK('Pakistan 2011'!$H$100),\"\",'Pakistan 2011'!$H$100)","v":""},{"$f":"IF(ISBLANK('Pakistan 2011'!$D$101),\"\",'Pakistan 2011'!$D$101)","v":"Don't know"},{"$f":"IF(ISBLANK('Pakistan 2011'!$E$101),\"\",'Pakistan 2011'!$E$101)","v":""},{"$f":"IF(ISBLANK('Pakistan 2011'!$H$101),\"\",'Pakistan 2011'!$H$101)","v":""},null,{"$f":"IF(ISBLANK('Pakistan 2011'!$G$104),\"\",'Pakistan 2011'!$G$104)","v":"No"},{"$f":"IF(ISBLANK('Pakistan 2011'!$G$105),\"\",'Pakistan 2011'!$G$105)","v":"Yes"},{"$f":"IF(ISBLANK('Pakistan 2011'!$G$106),\"\",'Pakistan 2011'!$G$106)","v":"Yes"},{"$f":"IF(ISBLANK('Pakistan 2011'!$D$107),\"\",'Pakistan 2011'!$D$107)","v":"Ministy of Health provides contraceptives free of charge for both services and commodties. However, a similar approach is under review by GOP for Population Program Wing (PPW) too."},null,{"$f":"IF(ISBLANK('Pakistan 2011'!$G$109),\"\",'Pakistan 2011'!$G$109)","v":"Yes"},{"$f":"IF(ISBLANK('Pakistan 2011'!$G$110),\"\",'Pakistan 2011'!$G$110)","v":"Yes"},{"$f":"IF(ISBLANK('Pakistan 2011'!$G$111),\"\",'Pakistan 2011'!$G$111)","v":"Yes"},{"$f":"IF(ISBLANK('Pakistan 2011'!$G$112),\"\",'Pakistan 2011'!$G$112)","v":"Yes"},{"$f":"IF(ISBLANK('Pakistan 2011'!$G$113),\"\",'Pakistan 2011'!$G$113)","v":"Yes"},{"$f":"IF(ISBLANK('Pakistan 2011'!$G$114),\"\",'Pakistan 2011'!$G$114)","v":"Yes"},{"$f":"IF(ISBLANK('Pakistan 2011'!$G$115),\"\",'Pakistan 2011'!$G$115)","v":"No"},{"$f":"IF(ISBLANK('Pakistan 2011'!$G$116),\"\",'Pakistan 2011'!$G$116)","v":"Yes"},{"$f":"IF(ISBLANK('Pakistan 2011'!$G$117),\"\",'Pakistan 2011'!$G$117)","v":"No"},{"$f":"IF(ISBLANK('Pakistan 2011'!$G$118),\"\",'Pakistan 2011'!$G$118)","v":"Don't know"},{"$f":"IF(ISBLANK('Pakistan 2011'!$F$119),\"\",'Pakistan 2011'!$F$119)","v":"Don't know"},{"$f":"IF(ISBLANK('Pakistan 2011'!$F$120),\"\",'Pakistan 2011'!$F$120)","v":2007},{"$f":"IF(ISBLANK('Pakistan 2011'!$D$121),\"\",'Pakistan 2011'!$D$121)","v":"National Essential Drug List"},{"$f":"IF(ISBLANK('Pakistan 2011'!$D$122),\"\",'Pakistan 2011'!$D$122)","v":""},null,{"$f":"IF(ISBLANK('Pakistan 2011'!$F$124),\"\",'Pakistan 2011'!$F$124)","v":2004},{"$f":"IF(ISBLANK('Pakistan 2011'!$G$125),\"\",'Pakistan 2011'!$G$125)","v":"Yes"},{"$f":"IF(ISBLANK('Pakistan 2011'!$G$126),\"\",'Pakistan 2011'!$G$126)","v":"Yes"},{"$f":"IF(ISBLANK('Pakistan 2011'!$G$127),\"\",'Pakistan 2011'!$G$127)","v":"Yes"},{"$f":"IF(ISBLANK('Pakistan 2011'!$G$128),\"\",'Pakistan 2011'!$G$128)","v":"No"},{"$f":"IF(ISBLANK('Pakistan 2011'!$D$129),\"\",'Pakistan 2011'!$D$129)","v":""},null,{"$f":"IF(ISBLANK('Pakistan 2011'!$G$131),\"\",'Pakistan 2011'!$G$131)","v":"No"},null,{"$f":"IF(ISBLANK('Pakistan 2011'!$G$133),\"\",'Pakistan 2011'!$G$133)","v":"No"},{"$f":"IF(ISBLANK('Pakistan 2011'!$G$134),\"\",'Pakistan 2011'!$G$134)","v":"No"},{"$f":"IF(ISBLANK('Pakistan 2011'!$G$135),\"\",'Pakistan 2011'!$G$135)","v":"No"},{"$f":"IF(ISBLANK('Pakistan 2011'!$G$136),\"\",'Pakistan 2011'!$G$136)","v":"No"},{"$f":"IF(ISBLANK('Pakistan 2011'!$G$137),\"\",'Pakistan 2011'!$G$137)","v":"No"},{"$f":"IF(ISBLANK('Pakistan 2011'!$G$138),\"\",'Pakistan 2011'!$G$138)","v":"No"},{"$f":"IF(ISBLANK('Pakistan 2011'!$G$139),\"\",'Pakistan 2011'!$G$139)","v":"N/A"},{"$f":"IF(ISBLANK('Pakistan 2011'!$G$140),\"\",'Pakistan 2011'!$G$140)","v":"No"},{"$f":"IF(ISBLANK('Pakistan 2011'!$G$141),\"\",'Pakistan 2011'!$G$141)","v":"N/A"},{"$f":"IF(ISBLANK('Pakistan 2011'!$F$142),\"\",'Pakistan 2011'!$F$142)","v":"01/10-12/10"},{"$f":"IF(ISBLANK('Pakistan 2011'!$F$143),\"\",'Pakistan 2011'!$F$143)","v":"logistics management information system (LMIS)"},null,{"$f":"IF(ISBLANK('Pakistan 2011'!$G$145),\"\",'Pakistan 2011'!$G$145)","v":"Yes"},{"$f":"IF(ISBLANK('Pakistan 2011'!$G$146),\"\",'Pakistan 2011'!$G$146)","v":"No"},{"$f":"IF(ISBLANK('Pakistan 2011'!$D$147),\"\",'Pakistan 2011'!$D$147)","v":"As per implementation of the 18th amendment, the Health and Population Policy has constitutionally become a provincial subject. With devolution, contraceptive procurement is also now the function of the provincial governments. The USAID | DELIVER PROJECT has provided inputs on CS via a quantification exercise to provinces and regions. However, a formal document may take 6-8 months. Based on recent technical assistance, USAID | DELIVER developed a CS brief for policymakers. "},"Europe and Asia"]
["Paraguay ",null,{"$f":"IF(ISBLANK('Paraguay 2011'!$H$12),\"\",'Paraguay 2011'!$H$12)","v":"Yes"},{"$f":"IF(ISBLANK('Paraguay 2011'!$D$13),\"\",'Paraguay 2011'!$D$13)","v":"Comité para la Disponibilidad Asegurada de Insumos Anticonceptivos (DAIA) (Contraceptive Security Committee)"},null,{"$f":"IF(ISBLANK('Paraguay 2011'!$D$15),\"\",'Paraguay 2011'!$D$15)","v":"Yes"},{"$f":"IF(ISBLANK('Paraguay 2011'!$F$15),\"\",'Paraguay 2011'!$F$15)","v":"PSI (Population Services International)"},{"$f":"IF(ISBLANK('Paraguay 2011'!$D$16),\"\",'Paraguay 2011'!$D$16)","v":"Yes"},{"$f":"IF(ISBLANK('Paraguay 2011'!$F$16),\"\",'Paraguay 2011'!$F$16)","v":"CEPEP (El Centro Paraguayo de Estudios de Población, IPPF affiliate)"},{"$f":"IF(ISBLANK('Paraguay 2011'!$D$17),\"\",'Paraguay 2011'!$D$17)","v":"No"},{"$f":"IF(ISBLANK('Paraguay 2011'!$F$17),\"\",'Paraguay 2011'!$F$17)","v":""},{"$f":"IF(ISBLANK('Paraguay 2011'!$D$18),\"\",'Paraguay 2011'!$D$18)","v":"Yes"},{"$f":"IF(ISBLANK('Paraguay 2011'!$F$18),\"\",'Paraguay 2011'!$F$18)","v":"USAID"},{"$f":"IF(ISBLANK('Paraguay 2011'!$D$19),\"\",'Paraguay 2011'!$D$19)","v":"Yes"},{"$f":"IF(ISBLANK('Paraguay 2011'!$F$19),\"\",'Paraguay 2011'!$F$19)","v":"UNFPA, WHO"},{"$f":"IF(ISBLANK('Paraguay 2011'!$D$20),\"\",'Paraguay 2011'!$D$20)","v":"Yes"},{"$f":"IF(ISBLANK('Paraguay 2011'!$F$20),\"\",'Paraguay 2011'!$F$20)","v":"DGGIES (General Directorate for Management of Strategic Supplies in Health), Reproductive Health Unit"},{"$f":"IF(ISBLANK('Paraguay 2011'!$D$21),\"\",'Paraguay 2011'!$D$21)","v":"Yes"},{"$f":"IF(ISBLANK('Paraguay 2011'!$F$21),\"\",'Paraguay 2011'!$F$21)","v":"Central Warehouse"},{"$f":"IF(ISBLANK('Paraguay 2011'!$D$22),\"\",'Paraguay 2011'!$D$22)","v":"No"},{"$f":"IF(ISBLANK('Paraguay 2011'!$F$22),\"\",'Paraguay 2011'!$F$22)","v":""},{"$f":"IF(ISBLANK('Paraguay 2011'!$D$23),\"\",'Paraguay 2011'!$D$23)","v":"Yes"},{"$f":"IF(ISBLANK('Paraguay 2011'!$F$23),\"\",'Paraguay 2011'!$F$23)","v":"Instituto de Provision Social (IPS) - Paraguayan Social Security Institute)"},{"$f":"IF(ISBLANK('Paraguay 2011'!$H$24),\"\",'Paraguay 2011'!$H$24)","v":"6 or more times"},{"$f":"IF(ISBLANK('Paraguay 2011'!$H$25),\"\",'Paraguay 2011'!$H$25)","v":"No"},{"$f":"IF(ISBLANK('Paraguay 2011'!$D$26),\"\",'Paraguay 2011'!$D$26)","v":"Yes"},{"$f":"IF(ISBLANK('Paraguay 2011'!$F$26),\"\",'Paraguay 2011'!$F$26)","v":"Yes "},{"$f":"IF(ISBLANK('Paraguay 2011'!$H$26),\"\",'Paraguay 2011'!$H$26)","v":"Director of Logistics DGPS (Logistics Management Unit)"},null,{"$f":"IF(ISBLANK('Paraguay 2011'!$F$28),\"\",'Paraguay 2011'!$F$28)","v":"October"},{"$f":"IF(ISBLANK('Paraguay 2011'!$H$28),\"\",'Paraguay 2011'!$H$28)","v":"September"},{"$f":"IF(ISBLANK('Paraguay 2011'!$G$29),\"\",'Paraguay 2011'!$G$29)","v":566000},{"$f":"IF(ISBLANK('Paraguay 2011'!$E$30),\"\",'Paraguay 2011'!$E$30)","v":"01/11"},{"$f":"IF(ISBLANK('Paraguay 2011'!$G$30),\"\",'Paraguay 2011'!$G$30)","v":"USAID | DELIVER PROJECT Paraguay resident advisor updated forecast with the DGPS director"},{"$f":"IF(ISBLANK('Paraguay 2011'!$H$31),\"\",'Paraguay 2011'!$H$31)","v":"Yes"},{"$f":"IF(ISBLANK('Paraguay 2011'!$H$32),\"\",'Paraguay 2011'!$H$32)","v":"Yes"},{"$f":"IF(ISBLANK('Paraguay 2011'!$E$35),\"\",'Paraguay 2011'!$E$35)","v":566000},{"$f":"IF(ISBLANK('Paraguay 2011'!$F$35),\"\",'Paraguay 2011'!$F$35)","v":"01/10-12/10"},{"$f":"IF(ISBLANK('Paraguay 2011'!$G$35),\"\",'Paraguay 2011'!$G$35)","v":"Ministry of Health"},{"$f":"IF(ISBLANK('Paraguay 2011'!$H$35),\"\",'Paraguay 2011'!$H$35)","v":"Funds were allocated in Dec 2010"},{"$f":"IF(ISBLANK('Paraguay 2011'!$H$37),\"\",'Paraguay 2011'!$H$37)","v":"Yes"},{"$f":"IF(ISBLANK('Paraguay 2011'!$D$40),\"\",'Paraguay 2011'!$D$40)","v":"Yes"},{"$f":"IF(ISBLANK('Paraguay 2011'!$D$41),\"\",'Paraguay 2011'!$D$41)","v":"National Treasury"},{"$f":"IF(ISBLANK('Paraguay 2011'!$E$40),\"\",'Paraguay 2011'!$E$40)","v":566000},{"$f":"IF(ISBLANK('Paraguay 2011'!$F$40),\"\",'Paraguay 2011'!$F$40)","v":"01/10-12/10"},{"$f":"IF(ISBLANK('Paraguay 2011'!$G$40),\"\",'Paraguay 2011'!$G$40)","v":"PipeLine"},{"$f":"IF(ISBLANK('Paraguay 2011'!$H$40),\"\",'Paraguay 2011'!$H$40)","v":""},{"$f":"IF(ISBLANK('Paraguay 2011'!$D$42),\"\",'Paraguay 2011'!$D$42)","v":"No"},{"$f":"IF(ISBLANK('Paraguay 2011'!$D$43),\"\",'Paraguay 2011'!$D$43)","v":"N/A"},{"$f":"IF(ISBLANK('Paraguay 2011'!$E$42),\"\",'Paraguay 2011'!$E$42)","v":0},{"$f":"IF(ISBLANK('Paraguay 2011'!$F$42),\"\",'Paraguay 2011'!$F$42)","v":"01/10-12/10"},{"$f":"IF(ISBLANK('Paraguay 2011'!$G$42),\"\",'Paraguay 2011'!$G$42)","v":""},{"$f":"IF(ISBLANK('Paraguay 2011'!$H$42),\"\",'Paraguay 2011'!$H$42)","v":""},{"$f":"IF(ISBLANK('Paraguay 2011'!$E$44),\"\",'Paraguay 2011'!$E$44)","v":566000},{"$f":"IF(ISBLANK('Paraguay 2011'!$H$44),\"\",'Paraguay 2011'!$H$44)","v":""},null,{"$f":"IF(ISBLANK('Paraguay 2011'!$D$48),\"\",'Paraguay 2011'!$D$48)","v":"No"},{"$f":"IF(ISBLANK('Paraguay 2011'!$D$49),\"\",'Paraguay 2011'!$D$49)","v":""},{"$f":"IF(ISBLANK('Paraguay 2011'!$E$48),\"\",'Paraguay 2011'!$E$48)","v":0},{"$f":"IF(ISBLANK('Paraguay 2011'!$F$48),\"\",'Paraguay 2011'!$F$48)","v":"01/10-12/10"},{"$f":"IF(ISBLANK('Paraguay 2011'!$G$48),\"\",'Paraguay 2011'!$G$48)","v":""},{"$f":"IF(ISBLANK('Paraguay 2011'!$H$48),\"\",'Paraguay 2011'!$H$48)","v":""},{"$f":"IF(ISBLANK('Paraguay 2011'!$D$50),\"\",'Paraguay 2011'!$D$50)","v":"No"},{"$f":"IF(ISBLANK('Paraguay 2011'!$E$50),\"\",'Paraguay 2011'!$E$50)","v":0},{"$f":"IF(ISBLANK('Paraguay 2011'!$F$50),\"\",'Paraguay 2011'!$F$50)","v":"01/10-12/10"},{"$f":"IF(ISBLANK('Paraguay 2011'!$G$50),\"\",'Paraguay 2011'!$G$50)","v":""},{"$f":"IF(ISBLANK('Paraguay 2011'!$H$50),\"\",'Paraguay 2011'!$H$50)","v":""},{"$f":"IF(ISBLANK('Paraguay 2011'!$D$51),\"\",'Paraguay 2011'!$D$51)","v":"No"},{"$f":"IF(ISBLANK('Paraguay 2011'!$E$51),\"\",'Paraguay 2011'!$E$51)","v":0},{"$f":"IF(ISBLANK('Paraguay 2011'!$F$51),\"\",'Paraguay 2011'!$F$51)","v":"01/10-12/10"},{"$f":"IF(ISBLANK('Paraguay 2011'!$G$51),\"\",'Paraguay 2011'!$G$51)","v":""},{"$f":"IF(ISBLANK('Paraguay 2011'!$H$51),\"\",'Paraguay 2011'!$H$51)","v":""},{"$f":"IF(ISBLANK('Paraguay 2011'!$E$52),\"\",'Paraguay 2011'!$E$52)","v":0},{"$f":"IF(ISBLANK('Paraguay 2011'!$H$52),\"\",'Paraguay 2011'!$H$52)","v":""},{"$f":"IF(ISBLANK('Paraguay 2011'!$F$55),\"\",'Paraguay 2011'!$F$55)","v":1},{"$f":"IF(ISBLANK('Paraguay 2011'!$G$55),\"\",'Paraguay 2011'!$G$55)","v":""},{"$f":"IF(ISBLANK('Paraguay 2011'!$F$56),\"\",'Paraguay 2011'!$F$56)","v":1},{"$f":"IF(ISBLANK('Paraguay 2011'!$G$56),\"\",'Paraguay 2011'!$G$56)","v":""},{"$f":"IF(ISBLANK('Paraguay 2011'!$F$57),\"\",'Paraguay 2011'!$F$57)","v":"No"},{"$f":"IF(ISBLANK('Paraguay 2011'!$G$57),\"\",'Paraguay 2011'!$G$57)","v":""},{"$f":"IF(ISBLANK('Paraguay 2011'!$F$59),\"\",'Paraguay 2011'!$F$59)","v":"Third-party agent (e.g., UNFPA, Crown Agents)"},{"$f":"IF(ISBLANK('Paraguay 2011'!$F$60),\"\",'Paraguay 2011'!$F$60)","v":"UNFPA"},{"$f":"IF(ISBLANK('Paraguay 2011'!$F$61),\"\",'Paraguay 2011'!$F$61)","v":"No"},{"$f":"IF(ISBLANK('Paraguay 2011'!$D$62),\"\",'Paraguay 2011'!$D$62)","v":""},null,null,{"$f":"IF(ISBLANK('Paraguay 2011'!$D$66),\"\",'Paraguay 2011'!$D$66)","v":"Yes"},{"$f":"IF(ISBLANK('Paraguay 2011'!$D$67),\"\",'Paraguay 2011'!$D$67)","v":"Yes"},{"$f":"IF(ISBLANK('Paraguay 2011'!$D$68),\"\",'Paraguay 2011'!$D$68)","v":"Yes"},{"$f":"IF(ISBLANK('Paraguay 2011'!$D$69),\"\",'Paraguay 2011'!$D$69)","v":"No"},{"$f":"IF(ISBLANK('Paraguay 2011'!$D$70),\"\",'Paraguay 2011'!$D$70)","v":"Yes"},{"$f":"IF(ISBLANK('Paraguay 2011'!$D$71),\"\",'Paraguay 2011'!$D$71)","v":"Yes"},{"$f":"IF(ISBLANK('Paraguay 2011'!$D$72),\"\",'Paraguay 2011'!$D$72)","v":"No"},{"$f":"IF(ISBLANK('Paraguay 2011'!$D$73),\"\",'Paraguay 2011'!$D$73)","v":"Yes"},{"$f":"IF(ISBLANK('Paraguay 2011'!$D$74),\"\",'Paraguay 2011'!$D$74)","v":"Yes"},{"$f":"IF(ISBLANK('Paraguay 2011'!$D$75),\"\",'Paraguay 2011'!$D$75)","v":"Yes"},{"$f":"IF(ISBLANK('Paraguay 2011'!$D$76),\"\",'Paraguay 2011'!$D$76)","v":"No"},{"$f":"IF(ISBLANK('Paraguay 2011'!$D$77),\"\",'Paraguay 2011'!$D$77)","v":"IUD with Levonorgestrel (Mirena), hormonal patch, only monthly injectables"},null,{"$f":"IF(ISBLANK('Paraguay 2011'!$F$66),\"\",'Paraguay 2011'!$F$66)","v":"Yes"},{"$f":"IF(ISBLANK('Paraguay 2011'!$F$67),\"\",'Paraguay 2011'!$F$67)","v":"No"},{"$f":"IF(ISBLANK('Paraguay 2011'!$F$68),\"\",'Paraguay 2011'!$F$68)","v":"Yes"},{"$f":"IF(ISBLANK('Paraguay 2011'!$F$69),\"\",'Paraguay 2011'!$F$69)","v":"No"},{"$f":"IF(ISBLANK('Paraguay 2011'!$F$70),\"\",'Paraguay 2011'!$F$70)","v":"Yes"},{"$f":"IF(ISBLANK('Paraguay 2011'!$F$71),\"\",'Paraguay 2011'!$F$71)","v":"Yes"},{"$f":"IF(ISBLANK('Paraguay 2011'!$F$72),\"\",'Paraguay 2011'!$F$72)","v":"No"},{"$f":"IF(ISBLANK('Paraguay 2011'!$F$73),\"\",'Paraguay 2011'!$F$73)","v":"Yes"},{"$f":"IF(ISBLANK('Paraguay 2011'!$F$74),\"\",'Paraguay 2011'!$F$74)","v":"No"},{"$f":"IF(ISBLANK('Paraguay 2011'!$F$75),\"\",'Paraguay 2011'!$F$75)","v":"Yes"},{"$f":"IF(ISBLANK('Paraguay 2011'!$F$76),\"\",'Paraguay 2011'!$F$76)","v":"No"},{"$f":"IF(ISBLANK('Paraguay 2011'!$F$77),\"\",'Paraguay 2011'!$F$77)","v":""},null,{"$f":"IF(ISBLANK('Paraguay 2011'!$G$66),\"\",'Paraguay 2011'!$G$66)","v":"Yes"},{"$f":"IF(ISBLANK('Paraguay 2011'!$G$67),\"\",'Paraguay 2011'!$G$67)","v":"Yes"},{"$f":"IF(ISBLANK('Paraguay 2011'!$G$68),\"\",'Paraguay 2011'!$G$68)","v":"Yes"},{"$f":"IF(ISBLANK('Paraguay 2011'!$G$69),\"\",'Paraguay 2011'!$G$69)","v":"No"},{"$f":"IF(ISBLANK('Paraguay 2011'!$G$70),\"\",'Paraguay 2011'!$G$70)","v":"Yes"},{"$f":"IF(ISBLANK('Paraguay 2011'!$G$71),\"\",'Paraguay 2011'!$G$71)","v":"Yes"},{"$f":"IF(ISBLANK('Paraguay 2011'!$G$72),\"\",'Paraguay 2011'!$G$72)","v":"No"},{"$f":"IF(ISBLANK('Paraguay 2011'!$G$73),\"\",'Paraguay 2011'!$G$73)","v":"No"},{"$f":"IF(ISBLANK('Paraguay 2011'!$G$74),\"\",'Paraguay 2011'!$G$74)","v":"Yes"},{"$f":"IF(ISBLANK('Paraguay 2011'!$G$75),\"\",'Paraguay 2011'!$G$75)","v":"Yes"},{"$f":"IF(ISBLANK('Paraguay 2011'!$G$76),\"\",'Paraguay 2011'!$G$76)","v":"No"},{"$f":"IF(ISBLANK('Paraguay 2011'!$G$77),\"\",'Paraguay 2011'!$G$77)","v":"IUD with Levonorgestrel"},null,{"$f":"IF(ISBLANK('Paraguay 2011'!$H$66),\"\",'Paraguay 2011'!$H$66)","v":"Yes"},{"$f":"IF(ISBLANK('Paraguay 2011'!$H$67),\"\",'Paraguay 2011'!$H$67)","v":"No"},{"$f":"IF(ISBLANK('Paraguay 2011'!$H$68),\"\",'Paraguay 2011'!$H$68)","v":"No"},{"$f":"IF(ISBLANK('Paraguay 2011'!$H$69),\"\",'Paraguay 2011'!$H$69)","v":"No"},{"$f":"IF(ISBLANK('Paraguay 2011'!$H$70),\"\",'Paraguay 2011'!$H$70)","v":"No"},{"$f":"IF(ISBLANK('Paraguay 2011'!$H$71),\"\",'Paraguay 2011'!$H$71)","v":"Yes"},{"$f":"IF(ISBLANK('Paraguay 2011'!$H$72),\"\",'Paraguay 2011'!$H$72)","v":"No"},{"$f":"IF(ISBLANK('Paraguay 2011'!$H$73),\"\",'Paraguay 2011'!$H$73)","v":"Yes"},{"$f":"IF(ISBLANK('Paraguay 2011'!$H$74),\"\",'Paraguay 2011'!$H$74)","v":"No"},{"$f":"IF(ISBLANK('Paraguay 2011'!$H$75),\"\",'Paraguay 2011'!$H$75)","v":"No"},{"$f":"IF(ISBLANK('Paraguay 2011'!$H$76),\"\",'Paraguay 2011'!$H$76)","v":"No"},{"$f":"IF(ISBLANK('Paraguay 2011'!$H$77),\"\",'Paraguay 2011'!$H$77)","v":""},{"$f":"IF(ISBLANK('Paraguay 2011'!$D$78),\"\",'Paraguay 2011'!$D$78)","v":""},null,{"$f":"IF(ISBLANK('Paraguay 2011'!$H$80),\"\",'Paraguay 2011'!$H$80)","v":"Yes"},{"$f":"IF(ISBLANK('Paraguay 2011'!$C$83),\"\",'Paraguay 2011'!$C$83)","v":"Plan Estrategico DAIA (Contraceptive Security Strategic Plan)"},{"$f":"IF(ISBLANK('Paraguay 2011'!$D$83),\"\",'Paraguay 2011'!$D$83)","v":"2011-2015"},{"$f":"IF(ISBLANK('Paraguay 2011'!$F$83),\"\",'Paraguay 2011'!$F$83)","v":"No"},{"$f":"IF(ISBLANK('Paraguay 2011'!$G$83),\"\",'Paraguay 2011'!$G$83)","v":"Yes"},{"$f":"IF(ISBLANK('Paraguay 2011'!$F$84),\"\",'Paraguay 2011'!$F$84)","v":"Yes"},{"$f":"IF(ISBLANK('Paraguay 2011'!$E$85),\"\",'Paraguay 2011'!$E$85)","v":"All sectors"},{"$f":"IF(ISBLANK('Paraguay 2011'!$E$86),\"\",'Paraguay 2011'!$E$86)","v":"10% value added tax, plus 0.50 on the value of the merchandise and a percentage for the customs clearance agent, which varies between 2% and 3% depending on the value of the shipment. (The value of a shipment includes freight and insurance in addition to the value of the merchandise.)"},{"$f":"IF(ISBLANK('Paraguay 2011'!$H$87),\"\",'Paraguay 2011'!$H$87)","v":"No"},{"$f":"IF(ISBLANK('Paraguay 2011'!$D$88),\"\",'Paraguay 2011'!$D$88)","v":"N/A"},{"$f":"IF(ISBLANK('Paraguay 2011'!$H$89),\"\",'Paraguay 2011'!$H$89)","v":"Don't know"},{"$f":"IF(ISBLANK('Paraguay 2011'!$D$90),\"\",'Paraguay 2011'!$D$90)","v":"Don't know"},{"$f":"IF(ISBLANK('Paraguay 2011'!$H$91),\"\",'Paraguay 2011'!$H$91)","v":"No"},{"$f":"IF(ISBLANK('Paraguay 2011'!$C$94),\"\",'Paraguay 2011'!$C$94)","v":""},{"$f":"IF(ISBLANK('Paraguay 2011'!$E$94),\"\",'Paraguay 2011'!$E$94)","v":""},{"$f":"IF(ISBLANK('Paraguay 2011'!$G$94),\"\",'Paraguay 2011'!$G$94)","v":""},{"$f":"IF(ISBLANK('Paraguay 2011'!$C$95),\"\",'Paraguay 2011'!$C$95)","v":""},{"$f":"IF(ISBLANK('Paraguay 2011'!$E$95),\"\",'Paraguay 2011'!$E$95)","v":""},{"$f":"IF(ISBLANK('Paraguay 2011'!$G$95),\"\",'Paraguay 2011'!$G$95)","v":""},{"$f":"IF(ISBLANK('Paraguay 2011'!$C$96),\"\",'Paraguay 2011'!$C$96)","v":""},{"$f":"IF(ISBLANK('Paraguay 2011'!$E$96),\"\",'Paraguay 2011'!$E$96)","v":""},{"$f":"IF(ISBLANK('Paraguay 2011'!$G$96),\"\",'Paraguay 2011'!$G$96)","v":""},null,{"$f":"IF(ISBLANK('Paraguay 2011'!$D$99),\"\",'Paraguay 2011'!$D$99)","v":"No"},{"$f":"IF(ISBLANK('Paraguay 2011'!$E$99),\"\",'Paraguay 2011'!$E$99)","v":""},{"$f":"IF(ISBLANK('Paraguay 2011'!$H$99),\"\",'Paraguay 2011'!$H$99)","v":""},{"$f":"IF(ISBLANK('Paraguay 2011'!$D$100),\"\",'Paraguay 2011'!$D$100)","v":"No"},{"$f":"IF(ISBLANK('Paraguay 2011'!$E$100),\"\",'Paraguay 2011'!$E$100)","v":""},{"$f":"IF(ISBLANK('Paraguay 2011'!$H$100),\"\",'Paraguay 2011'!$H$100)","v":""},{"$f":"IF(ISBLANK('Paraguay 2011'!$D$101),\"\",'Paraguay 2011'!$D$101)","v":"No"},{"$f":"IF(ISBLANK('Paraguay 2011'!$E$101),\"\",'Paraguay 2011'!$E$101)","v":""},{"$f":"IF(ISBLANK('Paraguay 2011'!$H$101),\"\",'Paraguay 2011'!$H$101)","v":""},null,{"$f":"IF(ISBLANK('Paraguay 2011'!$G$104),\"\",'Paraguay 2011'!$G$104)","v":"No"},{"$f":"IF(ISBLANK('Paraguay 2011'!$G$105),\"\",'Paraguay 2011'!$G$105)","v":"No"},{"$f":"IF(ISBLANK('Paraguay 2011'!$G$106),\"\",'Paraguay 2011'!$G$106)","v":"N/A"},{"$f":"IF(ISBLANK('Paraguay 2011'!$D$107),\"\",'Paraguay 2011'!$D$107)","v":"N/A"},null,{"$f":"IF(ISBLANK('Paraguay 2011'!$G$109),\"\",'Paraguay 2011'!$G$109)","v":"Yes"},{"$f":"IF(ISBLANK('Paraguay 2011'!$G$110),\"\",'Paraguay 2011'!$G$110)","v":"No"},{"$f":"IF(ISBLANK('Paraguay 2011'!$G$111),\"\",'Paraguay 2011'!$G$111)","v":"Yes"},{"$f":"IF(ISBLANK('Paraguay 2011'!$G$112),\"\",'Paraguay 2011'!$G$112)","v":"No"},{"$f":"IF(ISBLANK('Paraguay 2011'!$G$113),\"\",'Paraguay 2011'!$G$113)","v":"No"},{"$f":"IF(ISBLANK('Paraguay 2011'!$G$114),\"\",'Paraguay 2011'!$G$114)","v":"No"},{"$f":"IF(ISBLANK('Paraguay 2011'!$G$115),\"\",'Paraguay 2011'!$G$115)","v":"No"},{"$f":"IF(ISBLANK('Paraguay 2011'!$G$116),\"\",'Paraguay 2011'!$G$116)","v":"Yes"},{"$f":"IF(ISBLANK('Paraguay 2011'!$G$117),\"\",'Paraguay 2011'!$G$117)","v":"No"},{"$f":"IF(ISBLANK('Paraguay 2011'!$G$118),\"\",'Paraguay 2011'!$G$118)","v":"No"},{"$f":"IF(ISBLANK('Paraguay 2011'!$F$119),\"\",'Paraguay 2011'!$F$119)","v":"N/A"},{"$f":"IF(ISBLANK('Paraguay 2011'!$F$120),\"\",'Paraguay 2011'!$F$120)","v":2009},{"$f":"IF(ISBLANK('Paraguay 2011'!$D$121),\"\",'Paraguay 2011'!$D$121)","v":"Lista de Medicamentos Esenciales (Essential Medicines List)"},{"$f":"IF(ISBLANK('Paraguay 2011'!$D$122),\"\",'Paraguay 2011'!$D$122)","v":""},null,{"$f":"IF(ISBLANK('Paraguay 2011'!$F$124),\"\",'Paraguay 2011'!$F$124)","v":"N/A"},{"$f":"IF(ISBLANK('Paraguay 2011'!$G$125),\"\",'Paraguay 2011'!$G$125)","v":"N/A"},{"$f":"IF(ISBLANK('Paraguay 2011'!$G$126),\"\",'Paraguay 2011'!$G$126)","v":"N/A"},{"$f":"IF(ISBLANK('Paraguay 2011'!$G$127),\"\",'Paraguay 2011'!$G$127)","v":"N/A"},{"$f":"IF(ISBLANK('Paraguay 2011'!$G$128),\"\",'Paraguay 2011'!$G$128)","v":"N/A"},{"$f":"IF(ISBLANK('Paraguay 2011'!$D$129),\"\",'Paraguay 2011'!$D$129)","v":"Document not available on IMF's website"},null,{"$f":"IF(ISBLANK('Paraguay 2011'!$G$131),\"\",'Paraguay 2011'!$G$131)","v":"No"},null,{"$f":"IF(ISBLANK('Paraguay 2011'!$G$133),\"\",'Paraguay 2011'!$G$133)","v":"No"},{"$f":"IF(ISBLANK('Paraguay 2011'!$G$134),\"\",'Paraguay 2011'!$G$134)","v":"N/A"},{"$f":"IF(ISBLANK('Paraguay 2011'!$G$135),\"\",'Paraguay 2011'!$G$135)","v":"No"},{"$f":"IF(ISBLANK('Paraguay 2011'!$G$136),\"\",'Paraguay 2011'!$G$136)","v":"N/A"},{"$f":"IF(ISBLANK('Paraguay 2011'!$G$137),\"\",'Paraguay 2011'!$G$137)","v":"No"},{"$f":"IF(ISBLANK('Paraguay 2011'!$G$138),\"\",'Paraguay 2011'!$G$138)","v":"No"},{"$f":"IF(ISBLANK('Paraguay 2011'!$G$139),\"\",'Paraguay 2011'!$G$139)","v":"N/A"},{"$f":"IF(ISBLANK('Paraguay 2011'!$G$140),\"\",'Paraguay 2011'!$G$140)","v":"No"},{"$f":"IF(ISBLANK('Paraguay 2011'!$G$141),\"\",'Paraguay 2011'!$G$141)","v":"N/A"},{"$f":"IF(ISBLANK('Paraguay 2011'!$F$142),\"\",'Paraguay 2011'!$F$142)","v":"01/10-12/10"},{"$f":"IF(ISBLANK('Paraguay 2011'!$F$143),\"\",'Paraguay 2011'!$F$143)","v":"stockcards at central warehouse"},null,{"$f":"IF(ISBLANK('Paraguay 2011'!$G$145),\"\",'Paraguay 2011'!$G$145)","v":"No"},{"$f":"IF(ISBLANK('Paraguay 2011'!$G$146),\"\",'Paraguay 2011'!$G$146)","v":"No"},{"$f":"IF(ISBLANK('Paraguay 2011'!$D$147),\"\",'Paraguay 2011'!$D$147)","v":"We have a law that ensures the allocation of funds for contraceptive procurement."},"LAC"]
["Philippines ",null,{"$f":"IF(ISBLANK('Philippines 2011'!$H$12),\"\",'Philippines 2011'!$H$12)","v":"Yes"},{"$f":"IF(ISBLANK('Philippines 2011'!$D$13),\"\",'Philippines 2011'!$D$13)","v":"Contraceptive Self-Reliance (CSR) Technical Working Group"},null,{"$f":"IF(ISBLANK('Philippines 2011'!$D$15),\"\",'Philippines 2011'!$D$15)","v":"Yes"},{"$f":"IF(ISBLANK('Philippines 2011'!$F$15),\"\",'Philippines 2011'!$F$15)","v":"Family Planning Organization of the Philippines, League of Municipalities, DKT Philippines"},{"$f":"IF(ISBLANK('Philippines 2011'!$D$16),\"\",'Philippines 2011'!$D$16)","v":"Yes"},{"$f":"IF(ISBLANK('Philippines 2011'!$F$16),\"\",'Philippines 2011'!$F$16)","v":"Philippine NGO Council, Family Planning Organization of the Philippines, League of Municipalities, Union of Local Authorities of the Philippines, League of Cities, Likhaan, FriendlyCare"},{"$f":"IF(ISBLANK('Philippines 2011'!$D$17),\"\",'Philippines 2011'!$D$17)","v":"Yes"},{"$f":"IF(ISBLANK('Philippines 2011'!$F$17),\"\",'Philippines 2011'!$F$17)","v":"Philippine Chamber of Commerce and Industry, Drugstores Association of the Philippines, DKT Philippines, Alphamed"},{"$f":"IF(ISBLANK('Philippines 2011'!$D$18),\"\",'Philippines 2011'!$D$18)","v":"Yes"},{"$f":"IF(ISBLANK('Philippines 2011'!$F$18),\"\",'Philippines 2011'!$F$18)","v":"USAID, WHO"},{"$f":"IF(ISBLANK('Philippines 2011'!$D$19),\"\",'Philippines 2011'!$D$19)","v":"Yes"},{"$f":"IF(ISBLANK('Philippines 2011'!$F$19),\"\",'Philippines 2011'!$F$19)","v":"UNFPA"},{"$f":"IF(ISBLANK('Philippines 2011'!$D$20),\"\",'Philippines 2011'!$D$20)","v":"Yes"},{"$f":"IF(ISBLANK('Philippines 2011'!$F$20),\"\",'Philippines 2011'!$F$20)","v":"National Center for Disease Prevention and Control, Material Management Division, Bureau of Local Health Development, Bureau of International Health Coordination, Health Policy Development and Planning Bureau, National Drug Program, Department of Health (DOH) attached agencies: Food and Drugs Administration, Population Commission, Philippine Health Insurance Corp (PhilHealth), DOH-ARMM, Center for Health and Development Region IV-A, Local Government Units (LGUs) - Pangasinan Provincial Population Office"},{"$f":"IF(ISBLANK('Philippines 2011'!$D$21),\"\",'Philippines 2011'!$D$21)","v":"Yes"},{"$f":"IF(ISBLANK('Philippines 2011'!$F$21),\"\",'Philippines 2011'!$F$21)","v":"DOH Materials Management Division"},{"$f":"IF(ISBLANK('Philippines 2011'!$D$22),\"\",'Philippines 2011'!$D$22)","v":"No"},{"$f":"IF(ISBLANK('Philippines 2011'!$F$22),\"\",'Philippines 2011'!$F$22)","v":""},{"$f":"IF(ISBLANK('Philippines 2011'!$D$23),\"\",'Philippines 2011'!$D$23)","v":""},{"$f":"IF(ISBLANK('Philippines 2011'!$F$23),\"\",'Philippines 2011'!$F$23)","v":""},{"$f":"IF(ISBLANK('Philippines 2011'!$H$24),\"\",'Philippines 2011'!$H$24)","v":"3-5 times"},{"$f":"IF(ISBLANK('Philippines 2011'!$H$25),\"\",'Philippines 2011'!$H$25)","v":"Yes"},{"$f":"IF(ISBLANK('Philippines 2011'!$D$26),\"\",'Philippines 2011'!$D$26)","v":"Yes"},{"$f":"IF(ISBLANK('Philippines 2011'!$F$26),\"\",'Philippines 2011'!$F$26)","v":"Philippine Legislative Committee on Population & Development (PLCPD - an NGO of legislators), Forum, & Reproductive Health Advocacy Network"},{"$f":"IF(ISBLANK('Philippines 2011'!$H$26),\"\",'Philippines 2011'!$H$26)","v":"Executive Directors and the Chairman of the organizations"},null,{"$f":"IF(ISBLANK('Philippines 2011'!$F$28),\"\",'Philippines 2011'!$F$28)","v":"January"},{"$f":"IF(ISBLANK('Philippines 2011'!$H$28),\"\",'Philippines 2011'!$H$28)","v":"December"},{"$f":"IF(ISBLANK('Philippines 2011'!$G$29),\"\",'Philippines 2011'!$G$29)","v":"Don't know"},{"$f":"IF(ISBLANK('Philippines 2011'!$E$30),\"\",'Philippines 2011'!$E$30)","v":"12/10 and 04/11"},{"$f":"IF(ISBLANK('Philippines 2011'!$G$30),\"\",'Philippines 2011'!$G$30)","v":"Don't know"},{"$f":"IF(ISBLANK('Philippines 2011'!$H$31),\"\",'Philippines 2011'!$H$31)","v":"No"},{"$f":"IF(ISBLANK('Philippines 2011'!$H$32),\"\",'Philippines 2011'!$H$32)","v":"Yes"},{"$f":"IF(ISBLANK('Philippines 2011'!$E$35),\"\",'Philippines 2011'!$E$35)","v":"Don't know"},{"$f":"IF(ISBLANK('Philippines 2011'!$F$35),\"\",'Philippines 2011'!$F$35)","v":"01/10-12/10"},{"$f":"IF(ISBLANK('Philippines 2011'!$G$35),\"\",'Philippines 2011'!$G$35)","v":""},{"$f":"IF(ISBLANK('Philippines 2011'!$H$35),\"\",'Philippines 2011'!$H$35)","v":"There were funds from the Maternal and Child Health and Nutrition grants from the Department of Health. Data for amounts allocated or used for contraceptive procurement are not available because funds were coursed directly to LGUs."},{"$f":"IF(ISBLANK('Philippines 2011'!$H$37),\"\",'Philippines 2011'!$H$37)","v":"Yes"},{"$f":"IF(ISBLANK('Philippines 2011'!$D$40),\"\",'Philippines 2011'!$D$40)","v":"Yes"},{"$f":"IF(ISBLANK('Philippines 2011'!$D$41),\"\",'Philippines 2011'!$D$41)","v":"Don't know"},{"$f":"IF(ISBLANK('Philippines 2011'!$E$40),\"\",'Philippines 2011'!$E$40)","v":"Don't know"},{"$f":"IF(ISBLANK('Philippines 2011'!$F$40),\"\",'Philippines 2011'!$F$40)","v":"01/10-12/10"},{"$f":"IF(ISBLANK('Philippines 2011'!$G$40),\"\",'Philippines 2011'!$G$40)","v":""},{"$f":"IF(ISBLANK('Philippines 2011'!$H$40),\"\",'Philippines 2011'!$H$40)","v":"Internally generated funds came from the Maternal Neonatal Child Health and Nutrition grant from the National Department of Health. This fund was drawn down to or received by specific local government units not at the same time, and not all of the amount is for contraceptives. As a result, specific data as to how much was spent is not available."},{"$f":"IF(ISBLANK('Philippines 2011'!$D$42),\"\",'Philippines 2011'!$D$42)","v":"Don't know"},{"$f":"IF(ISBLANK('Philippines 2011'!$D$43),\"\",'Philippines 2011'!$D$43)","v":"Don't know"},{"$f":"IF(ISBLANK('Philippines 2011'!$E$42),\"\",'Philippines 2011'!$E$42)","v":"Don't know"},{"$f":"IF(ISBLANK('Philippines 2011'!$F$42),\"\",'Philippines 2011'!$F$42)","v":"01/10-12/10"},{"$f":"IF(ISBLANK('Philippines 2011'!$G$42),\"\",'Philippines 2011'!$G$42)","v":""},{"$f":"IF(ISBLANK('Philippines 2011'!$H$42),\"\",'Philippines 2011'!$H$42)","v":""},{"$f":"IF(ISBLANK('Philippines 2011'!$E$44),\"\",'Philippines 2011'!$E$44)","v":"Don't know"},{"$f":"IF(ISBLANK('Philippines 2011'!$H$44),\"\",'Philippines 2011'!$H$44)","v":""},null,{"$f":"IF(ISBLANK('Philippines 2011'!$D$48),\"\",'Philippines 2011'!$D$48)","v":"Yes"},{"$f":"IF(ISBLANK('Philippines 2011'!$D$49),\"\",'Philippines 2011'!$D$49)","v":"UNFPA ($728,769) & USAID ($191,988)"},{"$f":"IF(ISBLANK('Philippines 2011'!$E$48),\"\",'Philippines 2011'!$E$48)","v":920757},{"$f":"IF(ISBLANK('Philippines 2011'!$F$48),\"\",'Philippines 2011'!$F$48)","v":"01/10-12/10"},{"$f":"IF(ISBLANK('Philippines 2011'!$G$48),\"\",'Philippines 2011'!$G$48)","v":"RHInterchange"},{"$f":"IF(ISBLANK('Philippines 2011'!$H$48),\"\",'Philippines 2011'!$H$48)","v":"Other donations were coursed directly to LGUs.\n\nThe USAID donation included here was shipped in December 2009 and received by the DOH in January 2010. "},{"$f":"IF(ISBLANK('Philippines 2011'!$D$50),\"\",'Philippines 2011'!$D$50)","v":"No"},{"$f":"IF(ISBLANK('Philippines 2011'!$E$50),\"\",'Philippines 2011'!$E$50)","v":0},{"$f":"IF(ISBLANK('Philippines 2011'!$F$50),\"\",'Philippines 2011'!$F$50)","v":"01/10-12/10"},{"$f":"IF(ISBLANK('Philippines 2011'!$G$50),\"\",'Philippines 2011'!$G$50)","v":"RHInterchange"},{"$f":"IF(ISBLANK('Philippines 2011'!$H$50),\"\",'Philippines 2011'!$H$50)","v":""},{"$f":"IF(ISBLANK('Philippines 2011'!$D$51),\"\",'Philippines 2011'!$D$51)","v":"No"},{"$f":"IF(ISBLANK('Philippines 2011'!$E$51),\"\",'Philippines 2011'!$E$51)","v":0},{"$f":"IF(ISBLANK('Philippines 2011'!$F$51),\"\",'Philippines 2011'!$F$51)","v":"01/10-12/10"},{"$f":"IF(ISBLANK('Philippines 2011'!$G$51),\"\",'Philippines 2011'!$G$51)","v":"RHInterchange"},{"$f":"IF(ISBLANK('Philippines 2011'!$H$51),\"\",'Philippines 2011'!$H$51)","v":""},{"$f":"IF(ISBLANK('Philippines 2011'!$E$52),\"\",'Philippines 2011'!$E$52)","v":920757},{"$f":"IF(ISBLANK('Philippines 2011'!$H$52),\"\",'Philippines 2011'!$H$52)","v":""},{"$f":"IF(ISBLANK('Philippines 2011'!$F$55),\"\",'Philippines 2011'!$F$55)","v":"Don't know"},{"$f":"IF(ISBLANK('Philippines 2011'!$G$55),\"\",'Philippines 2011'!$G$55)","v":""},{"$f":"IF(ISBLANK('Philippines 2011'!$F$56),\"\",'Philippines 2011'!$F$56)","v":"Don't know"},{"$f":"IF(ISBLANK('Philippines 2011'!$G$56),\"\",'Philippines 2011'!$G$56)","v":""},{"$f":"IF(ISBLANK('Philippines 2011'!$F$57),\"\",'Philippines 2011'!$F$57)","v":"Don't know"},{"$f":"IF(ISBLANK('Philippines 2011'!$G$57),\"\",'Philippines 2011'!$G$57)","v":""},{"$f":"IF(ISBLANK('Philippines 2011'!$F$59),\"\",'Philippines 2011'!$F$59)","v":"The government (e.g., Central Medical Stores, MOH logistics unit, MOH procurement unit)"},{"$f":"IF(ISBLANK('Philippines 2011'!$F$60),\"\",'Philippines 2011'!$F$60)","v":"Local Government Unit’s General Property and Supplies Office"},{"$f":"IF(ISBLANK('Philippines 2011'!$F$61),\"\",'Philippines 2011'!$F$61)","v":"No"},{"$f":"IF(ISBLANK('Philippines 2011'!$D$62),\"\",'Philippines 2011'!$D$62)","v":"The line item for the procurement of contraceptives is at the local government unit (LGU) level. LGUs fund and procure their contraceptive requirements. Prices of contraceptives, even for the same contraceptive method and brand, are not uniform across LGUs. Currently, there is no systematic data that provides a report on LGU procurements.  \n\nPhilHealth enrollment is another mechanism for LGU financing of contraceptives. When an LGU enrolls its constituents (indigent constituents) with PhilHealth, it is indirectly financing their contraceptive requirements since a) the enrolled constituent can use the PhilHealth benefit packages that cover the costs of some contraceptive methods; and/or (b) the LGU can use part of the capitation fund received from PhilHealth (for enrollments made) to procure contraceptives.     \n\nUSAID/Philippines, through the Health Policy Development Project, assisted the DOH to conduct a rapid assessment survey in 2007 on LGU procurements covering all provinces and cities (N: 122). The results of the survey showed that 55% of the LGUs (N: 67) procured contraceptives at or above the level of donated contraceptives they used to receive before the phase-out of USAID's donation. The remaining 45% (N: 55) did not procure.  \n\nIn 2004, the DOH issued the guidelines on the management of the donated commodities under the Contraceptive Self-Reliance Strategy which includes the guidelines and schedule for phasing of contraceptive donations at the national and local level. The LGUs were divided into three batches - the first being the richest LGUs and the last being the poorest LGUs. While the last shipment of USAID-donated contraceptives (excluding IUDs) occurred in September 2007, the last DOH shipment to the third batch of LGUs to be phased out was in the October-December 2008 quarter."},null,null,{"$f":"IF(ISBLANK('Philippines 2011'!$D$66),\"\",'Philippines 2011'!$D$66)","v":"Yes"},{"$f":"IF(ISBLANK('Philippines 2011'!$D$67),\"\",'Philippines 2011'!$D$67)","v":"Yes"},{"$f":"IF(ISBLANK('Philippines 2011'!$D$68),\"\",'Philippines 2011'!$D$68)","v":"Yes"},{"$f":"IF(ISBLANK('Philippines 2011'!$D$69),\"\",'Philippines 2011'!$D$69)","v":"No"},{"$f":"IF(ISBLANK('Philippines 2011'!$D$70),\"\",'Philippines 2011'!$D$70)","v":"Yes"},{"$f":"IF(ISBLANK('Philippines 2011'!$D$71),\"\",'Philippines 2011'!$D$71)","v":"Yes"},{"$f":"IF(ISBLANK('Philippines 2011'!$D$72),\"\",'Philippines 2011'!$D$72)","v":"No"},{"$f":"IF(ISBLANK('Philippines 2011'!$D$73),\"\",'Philippines 2011'!$D$73)","v":"No"},{"$f":"IF(ISBLANK('Philippines 2011'!$D$74),\"\",'Philippines 2011'!$D$74)","v":"Yes"},{"$f":"IF(ISBLANK('Philippines 2011'!$D$75),\"\",'Philippines 2011'!$D$75)","v":"Yes"},{"$f":"IF(ISBLANK('Philippines 2011'!$D$76),\"\",'Philippines 2011'!$D$76)","v":"Yes"},{"$f":"IF(ISBLANK('Philippines 2011'!$D$77),\"\",'Philippines 2011'!$D$77)","v":"Patch, spermicide"},null,{"$f":"IF(ISBLANK('Philippines 2011'!$F$66),\"\",'Philippines 2011'!$F$66)","v":"Yes"},{"$f":"IF(ISBLANK('Philippines 2011'!$F$67),\"\",'Philippines 2011'!$F$67)","v":"Yes"},{"$f":"IF(ISBLANK('Philippines 2011'!$F$68),\"\",'Philippines 2011'!$F$68)","v":"Yes"},{"$f":"IF(ISBLANK('Philippines 2011'!$F$69),\"\",'Philippines 2011'!$F$69)","v":"No"},{"$f":"IF(ISBLANK('Philippines 2011'!$F$70),\"\",'Philippines 2011'!$F$70)","v":"Yes"},{"$f":"IF(ISBLANK('Philippines 2011'!$F$71),\"\",'Philippines 2011'!$F$71)","v":"Yes"},{"$f":"IF(ISBLANK('Philippines 2011'!$F$72),\"\",'Philippines 2011'!$F$72)","v":"No"},{"$f":"IF(ISBLANK('Philippines 2011'!$F$73),\"\",'Philippines 2011'!$F$73)","v":"No"},{"$f":"IF(ISBLANK('Philippines 2011'!$F$74),\"\",'Philippines 2011'!$F$74)","v":"Yes"},{"$f":"IF(ISBLANK('Philippines 2011'!$F$75),\"\",'Philippines 2011'!$F$75)","v":"Yes"},{"$f":"IF(ISBLANK('Philippines 2011'!$F$76),\"\",'Philippines 2011'!$F$76)","v":"Yes"},{"$f":"IF(ISBLANK('Philippines 2011'!$F$77),\"\",'Philippines 2011'!$F$77)","v":"Modern natural family planning"},null,{"$f":"IF(ISBLANK('Philippines 2011'!$G$66),\"\",'Philippines 2011'!$G$66)","v":"Yes"},{"$f":"IF(ISBLANK('Philippines 2011'!$G$67),\"\",'Philippines 2011'!$G$67)","v":"Yes"},{"$f":"IF(ISBLANK('Philippines 2011'!$G$68),\"\",'Philippines 2011'!$G$68)","v":"Yes"},{"$f":"IF(ISBLANK('Philippines 2011'!$G$69),\"\",'Philippines 2011'!$G$69)","v":"No"},{"$f":"IF(ISBLANK('Philippines 2011'!$G$70),\"\",'Philippines 2011'!$G$70)","v":"Yes"},{"$f":"IF(ISBLANK('Philippines 2011'!$G$71),\"\",'Philippines 2011'!$G$71)","v":"Yes"},{"$f":"IF(ISBLANK('Philippines 2011'!$G$72),\"\",'Philippines 2011'!$G$72)","v":"No"},{"$f":"IF(ISBLANK('Philippines 2011'!$G$73),\"\",'Philippines 2011'!$G$73)","v":"No"},{"$f":"IF(ISBLANK('Philippines 2011'!$G$74),\"\",'Philippines 2011'!$G$74)","v":"Yes"},{"$f":"IF(ISBLANK('Philippines 2011'!$G$75),\"\",'Philippines 2011'!$G$75)","v":"Yes"},{"$f":"IF(ISBLANK('Philippines 2011'!$G$76),\"\",'Philippines 2011'!$G$76)","v":"Yes"},{"$f":"IF(ISBLANK('Philippines 2011'!$G$77),\"\",'Philippines 2011'!$G$77)","v":"Modern natural family planning"},null,{"$f":"IF(ISBLANK('Philippines 2011'!$H$66),\"\",'Philippines 2011'!$H$66)","v":"Yes"},{"$f":"IF(ISBLANK('Philippines 2011'!$H$67),\"\",'Philippines 2011'!$H$67)","v":"Yes"},{"$f":"IF(ISBLANK('Philippines 2011'!$H$68),\"\",'Philippines 2011'!$H$68)","v":"Yes"},{"$f":"IF(ISBLANK('Philippines 2011'!$H$69),\"\",'Philippines 2011'!$H$69)","v":"No"},{"$f":"IF(ISBLANK('Philippines 2011'!$H$70),\"\",'Philippines 2011'!$H$70)","v":"No"},{"$f":"IF(ISBLANK('Philippines 2011'!$H$71),\"\",'Philippines 2011'!$H$71)","v":"Yes"},{"$f":"IF(ISBLANK('Philippines 2011'!$H$72),\"\",'Philippines 2011'!$H$72)","v":"No"},{"$f":"IF(ISBLANK('Philippines 2011'!$H$73),\"\",'Philippines 2011'!$H$73)","v":"No"},{"$f":"IF(ISBLANK('Philippines 2011'!$H$74),\"\",'Philippines 2011'!$H$74)","v":"No"},{"$f":"IF(ISBLANK('Philippines 2011'!$H$75),\"\",'Philippines 2011'!$H$75)","v":"No"},{"$f":"IF(ISBLANK('Philippines 2011'!$H$76),\"\",'Philippines 2011'!$H$76)","v":"No"},{"$f":"IF(ISBLANK('Philippines 2011'!$H$77),\"\",'Philippines 2011'!$H$77)","v":"No"},{"$f":"IF(ISBLANK('Philippines 2011'!$D$78),\"\",'Philippines 2011'!$D$78)","v":""},null,{"$f":"IF(ISBLANK('Philippines 2011'!$H$80),\"\",'Philippines 2011'!$H$80)","v":"Yes"},{"$f":"IF(ISBLANK('Philippines 2011'!$C$83),\"\",'Philippines 2011'!$C$83)","v":"National Family Planning Policy and others \n(National Family Planning Policy (DOH Administrative Order No. 50-A s. 2001,  dated September 17, 2001),\nGuidelines on the Management of Donated Commodities under the Contraceptive Self-Reliance Strategy (DOH Administrative Order No. 158 s. 2004, dated July 9, 2004),\nGuidelines on Public-Private Collaboration in Delivery of Health Services Including Family Planning for Women of Reproductive Age (DOH Administrative Order No. 2006-0008, dated May 20, 2006),\nImplementing Health Reforms for Rapid Reduction of Maternal and Neonatal Mortality (Administrative Order No. 2008-0029, dated September 9, 2008)"},{"$f":"IF(ISBLANK('Philippines 2011'!$D$83),\"\",'Philippines 2011'!$D$83)","v":"2004 to present"},{"$f":"IF(ISBLANK('Philippines 2011'!$F$83),\"\",'Philippines 2011'!$F$83)","v":"Yes"},{"$f":"IF(ISBLANK('Philippines 2011'!$G$83),\"\",'Philippines 2011'!$G$83)","v":"Yes"},{"$f":"IF(ISBLANK('Philippines 2011'!$F$84),\"\",'Philippines 2011'!$F$84)","v":"Yes"},{"$f":"IF(ISBLANK('Philippines 2011'!$E$85),\"\",'Philippines 2011'!$E$85)","v":"All sectors - however, if an NGO has obtained a tax exemption, the payment of taxes and duties may be waived. The Department of Health (DOH) pays for taxes & duties for donations and social marketing. (For more information see D3a. response.)"},{"$f":"IF(ISBLANK('Philippines 2011'!$E$86),\"\",'Philippines 2011'!$E$86)","v":"The customs duty on condoms and hormonal contraceptives is 3% of the total value. The customs duty on Copper T IUDs is 15% of the total value. All contraceptives are subject to a 12% value added tax (VAT).  "},{"$f":"IF(ISBLANK('Philippines 2011'!$H$87),\"\",'Philippines 2011'!$H$87)","v":"Yes"},{"$f":"IF(ISBLANK('Philippines 2011'!$D$88),\"\",'Philippines 2011'!$D$88)","v":"Taxes/duties - donated commodities, socially marketed commodities, and commercially marketed contraceptives are subject to taxes and duties. Taxes/duties on donated contraceptives consigned to the Department of Health (such as those donated by USAID) are shouldered by the Government of the Philippines through automatic appropriations of the Department of Budget Management. Taxes/duties of socially marketed contraceptives consigned to the Department of Health are paid by the Department of Health. Taxes/duties on socially marketed contraceptives that are not consigned to the Department of Health are paid by the NGOs marketing those contraceptives. Taxes/duties on commercially marketed contraceptives are paid by the manufacturer, importer, or trader.\n\nPharmacy law - this law bans brand advertising of ethical/regulated drugs. Hormonal contraceptives (oral pills, injectables and hormonal IUDs) are classified as ethical/regulated drugs, therefore, brand advertising is banned.  Copper T IUDs are classified as medical device and registered as unregulated product and not subject to the same restrictions. There is no prohibition on brand advertising of Copper T IUDs.  The pharmacy law also prohibits dispensing of ethical/regulated drugs without prescription. "},{"$f":"IF(ISBLANK('Philippines 2011'!$H$89),\"\",'Philippines 2011'!$H$89)","v":"Don't know"},{"$f":"IF(ISBLANK('Philippines 2011'!$D$90),\"\",'Philippines 2011'!$D$90)","v":"Don't know"},{"$f":"IF(ISBLANK('Philippines 2011'!$H$91),\"\",'Philippines 2011'!$H$91)","v":"Yes"},{"$f":"IF(ISBLANK('Philippines 2011'!$C$94),\"\",'Philippines 2011'!$C$94)","v":"Oral contraceptive pills & injectables"},{"$f":"IF(ISBLANK('Philippines 2011'!$E$94),\"\",'Philippines 2011'!$E$94)","v":"Only trained health workers are allowed to dispense. Dispensing without a prescription is not allowed. However, since public facilities are headed by doctors who supervise all health workers in the facilities, prescriptions are easy to obtain. However, in practice, pills can be obtained without prescription from pharmacies/drugstores."},{"$f":"IF(ISBLANK('Philippines 2011'!$G$94),\"\",'Philippines 2011'!$G$94)","v":"Only trained health service providers are allowed to dispense. Service providers other than physicians, such as midwives, cannot dispense without a prescription. However, most midwives, and all PhilHealth accredited midwives have back-up physicians who write the prescriptions.   "},{"$f":"IF(ISBLANK('Philippines 2011'!$C$95),\"\",'Philippines 2011'!$C$95)","v":"IUDs"},{"$f":"IF(ISBLANK('Philippines 2011'!$E$95),\"\",'Philippines 2011'!$E$95)","v":"Only trained health workers are allowed to dispense. Dispensing of a hormonal IUD without a prescription is not allowed. However, since public facilities are headed by doctors who supervise all health workers in the facilities, prescriptions are easy to obtain. Barangay Health Station (the lowest level of public health facility) health service providers do not dispense IUDs.  "},{"$f":"IF(ISBLANK('Philippines 2011'!$G$95),\"\",'Philippines 2011'!$G$95)","v":"Only trained health service providers are allowed to dispense. Service providers other than physicians, such as midwives, cannot dispense without a prescription. However, most midwives, and all PhilHealth accredited midwives have back-up physicians who write the prescriptions."},{"$f":"IF(ISBLANK('Philippines 2011'!$C$96),\"\",'Philippines 2011'!$C$96)","v":""},{"$f":"IF(ISBLANK('Philippines 2011'!$E$96),\"\",'Philippines 2011'!$E$96)","v":""},{"$f":"IF(ISBLANK('Philippines 2011'!$G$96),\"\",'Philippines 2011'!$G$96)","v":""},null,{"$f":"IF(ISBLANK('Philippines 2011'!$D$99),\"\",'Philippines 2011'!$D$99)","v":"No"},{"$f":"IF(ISBLANK('Philippines 2011'!$E$99),\"\",'Philippines 2011'!$E$99)","v":""},{"$f":"IF(ISBLANK('Philippines 2011'!$H$99),\"\",'Philippines 2011'!$H$99)","v":""},{"$f":"IF(ISBLANK('Philippines 2011'!$D$100),\"\",'Philippines 2011'!$D$100)","v":"No"},{"$f":"IF(ISBLANK('Philippines 2011'!$E$100),\"\",'Philippines 2011'!$E$100)","v":""},{"$f":"IF(ISBLANK('Philippines 2011'!$H$100),\"\",'Philippines 2011'!$H$100)","v":""},{"$f":"IF(ISBLANK('Philippines 2011'!$D$101),\"\",'Philippines 2011'!$D$101)","v":"No"},{"$f":"IF(ISBLANK('Philippines 2011'!$E$101),\"\",'Philippines 2011'!$E$101)","v":""},{"$f":"IF(ISBLANK('Philippines 2011'!$H$101),\"\",'Philippines 2011'!$H$101)","v":""},null,{"$f":"IF(ISBLANK('Philippines 2011'!$G$104),\"\",'Philippines 2011'!$G$104)","v":"No"},{"$f":"IF(ISBLANK('Philippines 2011'!$G$105),\"\",'Philippines 2011'!$G$105)","v":"No"},{"$f":"IF(ISBLANK('Philippines 2011'!$G$106),\"\",'Philippines 2011'!$G$106)","v":"N/A"},{"$f":"IF(ISBLANK('Philippines 2011'!$D$107),\"\",'Philippines 2011'!$D$107)","v":"Because of devolution, LGUs craft their own policies. Policies are not uniform across LGUs. In general, services in public sector facilities are provided for free but there are some LGUs that have fee for service policies in some of their facilities. In general, commodities in public sector facilities are provided for free but there are some who charge at full or subsidized prices. Only a few LGUs have policies on client segmentation.\n\nWhile this is the case, other funding mechanisms for paying for contraceptives are available to public sector clients. If the client is a PhilHealth member, the client can avail of three PhilHealth benefit packages: (1) Maternity Care Package for normal deliveries that includes the first cycle of oral contraceptives and the first dose of injectable postpartum (2) IUD Package and (3) Voluntary Surgical Sterilization Package for bilateral tubal ligation and vasectomy. A significant number of LGUs have enrolled their poor constituents with PhilHealth.   "},null,{"$f":"IF(ISBLANK('Philippines 2011'!$G$109),\"\",'Philippines 2011'!$G$109)","v":"Yes"},{"$f":"IF(ISBLANK('Philippines 2011'!$G$110),\"\",'Philippines 2011'!$G$110)","v":"Yes"},{"$f":"IF(ISBLANK('Philippines 2011'!$G$111),\"\",'Philippines 2011'!$G$111)","v":"Yes"},{"$f":"IF(ISBLANK('Philippines 2011'!$G$112),\"\",'Philippines 2011'!$G$112)","v":"No"},{"$f":"IF(ISBLANK('Philippines 2011'!$G$113),\"\",'Philippines 2011'!$G$113)","v":"Yes"},{"$f":"IF(ISBLANK('Philippines 2011'!$G$114),\"\",'Philippines 2011'!$G$114)","v":"No"},{"$f":"IF(ISBLANK('Philippines 2011'!$G$115),\"\",'Philippines 2011'!$G$115)","v":"No"},{"$f":"IF(ISBLANK('Philippines 2011'!$G$116),\"\",'Philippines 2011'!$G$116)","v":"No"},{"$f":"IF(ISBLANK('Philippines 2011'!$G$117),\"\",'Philippines 2011'!$G$117)","v":"No"},{"$f":"IF(ISBLANK('Philippines 2011'!$G$118),\"\",'Philippines 2011'!$G$118)","v":"No"},{"$f":"IF(ISBLANK('Philippines 2011'!$F$119),\"\",'Philippines 2011'!$F$119)","v":"N/A"},{"$f":"IF(ISBLANK('Philippines 2011'!$F$120),\"\",'Philippines 2011'!$F$120)","v":2008},{"$f":"IF(ISBLANK('Philippines 2011'!$D$121),\"\",'Philippines 2011'!$D$121)","v":""},{"$f":"IF(ISBLANK('Philippines 2011'!$D$122),\"\",'Philippines 2011'!$D$122)","v":"IUDs are included on the DOH's medical device list."},null,{"$f":"IF(ISBLANK('Philippines 2011'!$F$124),\"\",'Philippines 2011'!$F$124)","v":"N/A"},{"$f":"IF(ISBLANK('Philippines 2011'!$G$125),\"\",'Philippines 2011'!$G$125)","v":"N/A"},{"$f":"IF(ISBLANK('Philippines 2011'!$G$126),\"\",'Philippines 2011'!$G$126)","v":"N/A"},{"$f":"IF(ISBLANK('Philippines 2011'!$G$127),\"\",'Philippines 2011'!$G$127)","v":"N/A"},{"$f":"IF(ISBLANK('Philippines 2011'!$G$128),\"\",'Philippines 2011'!$G$128)","v":"N/A"},{"$f":"IF(ISBLANK('Philippines 2011'!$D$129),\"\",'Philippines 2011'!$D$129)","v":"Document not available on IMF website"},null,{"$f":"IF(ISBLANK('Philippines 2011'!$G$131),\"\",'Philippines 2011'!$G$131)","v":"N/A"},null,{"$f":"IF(ISBLANK('Philippines 2011'!$G$133),\"\",'Philippines 2011'!$G$133)","v":"N/A"},{"$f":"IF(ISBLANK('Philippines 2011'!$G$134),\"\",'Philippines 2011'!$G$134)","v":"N/A"},{"$f":"IF(ISBLANK('Philippines 2011'!$G$135),\"\",'Philippines 2011'!$G$135)","v":"N/A"},{"$f":"IF(ISBLANK('Philippines 2011'!$G$136),\"\",'Philippines 2011'!$G$136)","v":"N/A"},{"$f":"IF(ISBLANK('Philippines 2011'!$G$137),\"\",'Philippines 2011'!$G$137)","v":"N/A"},{"$f":"IF(ISBLANK('Philippines 2011'!$G$138),\"\",'Philippines 2011'!$G$138)","v":"N/A"},{"$f":"IF(ISBLANK('Philippines 2011'!$G$139),\"\",'Philippines 2011'!$G$139)","v":"N/A"},{"$f":"IF(ISBLANK('Philippines 2011'!$G$140),\"\",'Philippines 2011'!$G$140)","v":"N/A"},{"$f":"IF(ISBLANK('Philippines 2011'!$G$141),\"\",'Philippines 2011'!$G$141)","v":"N/A"},{"$f":"IF(ISBLANK('Philippines 2011'!$F$142),\"\",'Philippines 2011'!$F$142)","v":"N/A"},{"$f":"IF(ISBLANK('Philippines 2011'!$F$143),\"\",'Philippines 2011'!$F$143)","v":"N/A"},null,{"$f":"IF(ISBLANK('Philippines 2011'!$G$145),\"\",'Philippines 2011'!$G$145)","v":"No"},{"$f":"IF(ISBLANK('Philippines 2011'!$G$146),\"\",'Philippines 2011'!$G$146)","v":"N/A"},{"$f":"IF(ISBLANK('Philippines 2011'!$D$147),\"\",'Philippines 2011'!$D$147)","v":"1) Contraceptive security vs. contraceptive self-reliance - The Philippines addresses contraceptive security in the context of eliminating unmet need for family planning given the phase out of USAID contraceptive donations. This requires broadening the definition to include the support systems for the implementation of the family planning program and addressing issues of sustainability. Hence, the DOH has embarked on Contraceptive Self-Reliance, rather than Contraceptive Security. This strategy includes, in addition to government financing and procurement of commodity-based contraceptive methods (pills, injectables, IUDs, condoms, and others), promotion and financing of other methods (bilateral tubal ligation, vasectomy, lactational amenorrhea, natural family planning, and others), expanding distribution coverage, and mobilizing private sector resources in the provision of family planning services and commodities. This approach to contraceptive security may have contributed to maintaining a steady CPR despite USAID's phase out of contraceptive donations. And since the government's objective is to ensure the country's self-sufficiency in the provision of family planning services and commodities, the prospect for sustainability is high even without external contraceptive donations. 2) Protecting the poor - The poor should be protected in the process of achieving contraceptive self-reliance. The issue of targeting financing and provision for the poor also involves many operational issues such as determining who are poor and entitled to free services, how the non-poor should be served, and how these issues will be handled by local health systems that are supposed to be for everyone in the community. 3) Even the poor go to the private sector for contraceptives. The private sector is becoming more interested in participating. DKT provides a large quantity of contraceptives. Before there were few choices in the country - there were free contraceptives in the public sector and expensive contraceptives in the private sector but little in between. Now with the USAID phase out and a pharmaceutical project to help the pharmaceutical industry get in the market there are more subsized, affordable choices. 4) The FP issue is more prominent now. There's an RH bill saying that the government is to be responsible for RH (including FP); this bill hasn't been passed yet, but discussion has increased and the issue is prominent. There is more openness politically now to discuss providing FP choices."},"Europe and Asia"]
["Russia ",null,{"$f":"IF(ISBLANK('Russia 2011'!$H$12),\"\",'Russia 2011'!$H$12)","v":"No"},{"$f":"IF(ISBLANK('Russia 2011'!$D$13),\"\",'Russia 2011'!$D$13)","v":"N/A"},null,{"$f":"IF(ISBLANK('Russia 2011'!$D$15),\"\",'Russia 2011'!$D$15)","v":"N/A"},{"$f":"IF(ISBLANK('Russia 2011'!$F$15),\"\",'Russia 2011'!$F$15)","v":""},{"$f":"IF(ISBLANK('Russia 2011'!$D$16),\"\",'Russia 2011'!$D$16)","v":"N/A"},{"$f":"IF(ISBLANK('Russia 2011'!$F$16),\"\",'Russia 2011'!$F$16)","v":""},{"$f":"IF(ISBLANK('Russia 2011'!$D$17),\"\",'Russia 2011'!$D$17)","v":"N/A"},{"$f":"IF(ISBLANK('Russia 2011'!$F$17),\"\",'Russia 2011'!$F$17)","v":""},{"$f":"IF(ISBLANK('Russia 2011'!$D$18),\"\",'Russia 2011'!$D$18)","v":"N/A"},{"$f":"IF(ISBLANK('Russia 2011'!$F$18),\"\",'Russia 2011'!$F$18)","v":""},{"$f":"IF(ISBLANK('Russia 2011'!$D$19),\"\",'Russia 2011'!$D$19)","v":"N/A"},{"$f":"IF(ISBLANK('Russia 2011'!$F$19),\"\",'Russia 2011'!$F$19)","v":""},{"$f":"IF(ISBLANK('Russia 2011'!$D$20),\"\",'Russia 2011'!$D$20)","v":"N/A"},{"$f":"IF(ISBLANK('Russia 2011'!$F$20),\"\",'Russia 2011'!$F$20)","v":""},{"$f":"IF(ISBLANK('Russia 2011'!$D$21),\"\",'Russia 2011'!$D$21)","v":"N/A"},{"$f":"IF(ISBLANK('Russia 2011'!$F$21),\"\",'Russia 2011'!$F$21)","v":""},{"$f":"IF(ISBLANK('Russia 2011'!$D$22),\"\",'Russia 2011'!$D$22)","v":"N/A"},{"$f":"IF(ISBLANK('Russia 2011'!$F$22),\"\",'Russia 2011'!$F$22)","v":""},{"$f":"IF(ISBLANK('Russia 2011'!$D$23),\"\",'Russia 2011'!$D$23)","v":"N/A"},{"$f":"IF(ISBLANK('Russia 2011'!$F$23),\"\",'Russia 2011'!$F$23)","v":""},{"$f":"IF(ISBLANK('Russia 2011'!$H$24),\"\",'Russia 2011'!$H$24)","v":"N/A"},{"$f":"IF(ISBLANK('Russia 2011'!$H$25),\"\",'Russia 2011'!$H$25)","v":"N/A"},{"$f":"IF(ISBLANK('Russia 2011'!$D$26),\"\",'Russia 2011'!$D$26)","v":"No"},{"$f":"IF(ISBLANK('Russia 2011'!$F$26),\"\",'Russia 2011'!$F$26)","v":""},{"$f":"IF(ISBLANK('Russia 2011'!$H$26),\"\",'Russia 2011'!$H$26)","v":""},null,{"$f":"IF(ISBLANK('Russia 2011'!$F$28),\"\",'Russia 2011'!$F$28)","v":"Don't know"},{"$f":"IF(ISBLANK('Russia 2011'!$H$28),\"\",'Russia 2011'!$H$28)","v":"Don't know"},{"$f":"IF(ISBLANK('Russia 2011'!$G$29),\"\",'Russia 2011'!$G$29)","v":"N/A"},{"$f":"IF(ISBLANK('Russia 2011'!$E$30),\"\",'Russia 2011'!$E$30)","v":"Don't know"},{"$f":"IF(ISBLANK('Russia 2011'!$G$30),\"\",'Russia 2011'!$G$30)","v":"Don't know"},{"$f":"IF(ISBLANK('Russia 2011'!$H$31),\"\",'Russia 2011'!$H$31)","v":"No"},{"$f":"IF(ISBLANK('Russia 2011'!$H$32),\"\",'Russia 2011'!$H$32)","v":"No"},{"$f":"IF(ISBLANK('Russia 2011'!$E$35),\"\",'Russia 2011'!$E$35)","v":0},{"$f":"IF(ISBLANK('Russia 2011'!$F$35),\"\",'Russia 2011'!$F$35)","v":"01/10-12/10"},{"$f":"IF(ISBLANK('Russia 2011'!$G$35),\"\",'Russia 2011'!$G$35)","v":""},{"$f":"IF(ISBLANK('Russia 2011'!$H$35),\"\",'Russia 2011'!$H$35)","v":""},{"$f":"IF(ISBLANK('Russia 2011'!$H$37),\"\",'Russia 2011'!$H$37)","v":"Yes"},{"$f":"IF(ISBLANK('Russia 2011'!$D$40),\"\",'Russia 2011'!$D$40)","v":"Yes"},{"$f":"IF(ISBLANK('Russia 2011'!$D$41),\"\",'Russia 2011'!$D$41)","v":"Regional and municipal budgets. In some cases (but not as often) contraceptives are covered by mandatory health insurance (which is provided free of charge to all Russian citizens by state). "},{"$f":"IF(ISBLANK('Russia 2011'!$E$40),\"\",'Russia 2011'!$E$40)","v":"Don't know"},{"$f":"IF(ISBLANK('Russia 2011'!$F$40),\"\",'Russia 2011'!$F$40)","v":"01/10-12/10"},{"$f":"IF(ISBLANK('Russia 2011'!$G$40),\"\",'Russia 2011'!$G$40)","v":""},{"$f":"IF(ISBLANK('Russia 2011'!$H$40),\"\",'Russia 2011'!$H$40)","v":""},{"$f":"IF(ISBLANK('Russia 2011'!$D$42),\"\",'Russia 2011'!$D$42)","v":"No"},{"$f":"IF(ISBLANK('Russia 2011'!$D$43),\"\",'Russia 2011'!$D$43)","v":"N/A"},{"$f":"IF(ISBLANK('Russia 2011'!$E$42),\"\",'Russia 2011'!$E$42)","v":0},{"$f":"IF(ISBLANK('Russia 2011'!$F$42),\"\",'Russia 2011'!$F$42)","v":"01/10-12/10"},{"$f":"IF(ISBLANK('Russia 2011'!$G$42),\"\",'Russia 2011'!$G$42)","v":""},{"$f":"IF(ISBLANK('Russia 2011'!$H$42),\"\",'Russia 2011'!$H$42)","v":""},{"$f":"IF(ISBLANK('Russia 2011'!$E$44),\"\",'Russia 2011'!$E$44)","v":"Don't know"},{"$f":"IF(ISBLANK('Russia 2011'!$H$44),\"\",'Russia 2011'!$H$44)","v":""},null,{"$f":"IF(ISBLANK('Russia 2011'!$D$48),\"\",'Russia 2011'!$D$48)","v":"No"},{"$f":"IF(ISBLANK('Russia 2011'!$D$49),\"\",'Russia 2011'!$D$49)","v":"N/A"},{"$f":"IF(ISBLANK('Russia 2011'!$E$48),\"\",'Russia 2011'!$E$48)","v":0},{"$f":"IF(ISBLANK('Russia 2011'!$F$48),\"\",'Russia 2011'!$F$48)","v":"01/10-12/10"},{"$f":"IF(ISBLANK('Russia 2011'!$G$48),\"\",'Russia 2011'!$G$48)","v":""},{"$f":"IF(ISBLANK('Russia 2011'!$H$48),\"\",'Russia 2011'!$H$48)","v":""},{"$f":"IF(ISBLANK('Russia 2011'!$D$50),\"\",'Russia 2011'!$D$50)","v":"No"},{"$f":"IF(ISBLANK('Russia 2011'!$E$50),\"\",'Russia 2011'!$E$50)","v":0},{"$f":"IF(ISBLANK('Russia 2011'!$F$50),\"\",'Russia 2011'!$F$50)","v":"01/10-12/10"},{"$f":"IF(ISBLANK('Russia 2011'!$G$50),\"\",'Russia 2011'!$G$50)","v":""},{"$f":"IF(ISBLANK('Russia 2011'!$H$50),\"\",'Russia 2011'!$H$50)","v":""},{"$f":"IF(ISBLANK('Russia 2011'!$D$51),\"\",'Russia 2011'!$D$51)","v":"No"},{"$f":"IF(ISBLANK('Russia 2011'!$E$51),\"\",'Russia 2011'!$E$51)","v":0},{"$f":"IF(ISBLANK('Russia 2011'!$F$51),\"\",'Russia 2011'!$F$51)","v":"01/10-12/10"},{"$f":"IF(ISBLANK('Russia 2011'!$G$51),\"\",'Russia 2011'!$G$51)","v":""},{"$f":"IF(ISBLANK('Russia 2011'!$H$51),\"\",'Russia 2011'!$H$51)","v":""},{"$f":"IF(ISBLANK('Russia 2011'!$E$52),\"\",'Russia 2011'!$E$52)","v":0},{"$f":"IF(ISBLANK('Russia 2011'!$H$52),\"\",'Russia 2011'!$H$52)","v":""},{"$f":"IF(ISBLANK('Russia 2011'!$F$55),\"\",'Russia 2011'!$F$55)","v":"Don't know"},{"$f":"IF(ISBLANK('Russia 2011'!$G$55),\"\",'Russia 2011'!$G$55)","v":""},{"$f":"IF(ISBLANK('Russia 2011'!$F$56),\"\",'Russia 2011'!$F$56)","v":"Don't know"},{"$f":"IF(ISBLANK('Russia 2011'!$G$56),\"\",'Russia 2011'!$G$56)","v":""},{"$f":"IF(ISBLANK('Russia 2011'!$F$57),\"\",'Russia 2011'!$F$57)","v":"N/A"},{"$f":"IF(ISBLANK('Russia 2011'!$G$57),\"\",'Russia 2011'!$G$57)","v":""},{"$f":"IF(ISBLANK('Russia 2011'!$F$59),\"\",'Russia 2011'!$F$59)","v":"N/A"},{"$f":"IF(ISBLANK('Russia 2011'!$F$60),\"\",'Russia 2011'!$F$60)","v":"N/A"},{"$f":"IF(ISBLANK('Russia 2011'!$F$61),\"\",'Russia 2011'!$F$61)","v":"N/A"},{"$f":"IF(ISBLANK('Russia 2011'!$D$62),\"\",'Russia 2011'!$D$62)","v":"In 1998, the Russian federal government stopped its federal family planning program, including the procurement of contraceptives. However, some regions and municipalities provide limited contraceptives (both in range and number) to vulnerable groups of the population. Sources include regional and municipal budgets, mandatory health insurance (less often), and small donations from pharmaceutical firms. \n\nHowever, a range of modern contraceptive methods are widely available through pharmacies, including in the public health care facilities for a fee/purchase. Even though FP is not included in the provision of health services, a few USAID target regions cover/reimburse FP counseling under the regional mandatory health insurance plans. USAID-assisted sites which participate in integrated reproductive and maternal and child health projects provide FP counseling."},null,null,{"$f":"IF(ISBLANK('Russia 2011'!$D$66),\"\",'Russia 2011'!$D$66)","v":"Yes"},{"$f":"IF(ISBLANK('Russia 2011'!$D$67),\"\",'Russia 2011'!$D$67)","v":"Yes"},{"$f":"IF(ISBLANK('Russia 2011'!$D$68),\"\",'Russia 2011'!$D$68)","v":"Yes"},{"$f":"IF(ISBLANK('Russia 2011'!$D$69),\"\",'Russia 2011'!$D$69)","v":"Yes"},{"$f":"IF(ISBLANK('Russia 2011'!$D$70),\"\",'Russia 2011'!$D$70)","v":"Yes"},{"$f":"IF(ISBLANK('Russia 2011'!$D$71),\"\",'Russia 2011'!$D$71)","v":"Yes"},{"$f":"IF(ISBLANK('Russia 2011'!$D$72),\"\",'Russia 2011'!$D$72)","v":"No"},{"$f":"IF(ISBLANK('Russia 2011'!$D$73),\"\",'Russia 2011'!$D$73)","v":"Yes"},{"$f":"IF(ISBLANK('Russia 2011'!$D$74),\"\",'Russia 2011'!$D$74)","v":"No"},{"$f":"IF(ISBLANK('Russia 2011'!$D$75),\"\",'Russia 2011'!$D$75)","v":"Yes"},{"$f":"IF(ISBLANK('Russia 2011'!$D$76),\"\",'Russia 2011'!$D$76)","v":"No"},{"$f":"IF(ISBLANK('Russia 2011'!$D$77),\"\",'Russia 2011'!$D$77)","v":"Contraceptive patch Evra and vaginal ring Novaring"},null,{"$f":"IF(ISBLANK('Russia 2011'!$F$66),\"\",'Russia 2011'!$F$66)","v":"Yes"},{"$f":"IF(ISBLANK('Russia 2011'!$F$67),\"\",'Russia 2011'!$F$67)","v":"Yes"},{"$f":"IF(ISBLANK('Russia 2011'!$F$68),\"\",'Russia 2011'!$F$68)","v":"Yes"},{"$f":"IF(ISBLANK('Russia 2011'!$F$69),\"\",'Russia 2011'!$F$69)","v":"Yes"},{"$f":"IF(ISBLANK('Russia 2011'!$F$70),\"\",'Russia 2011'!$F$70)","v":"Yes"},{"$f":"IF(ISBLANK('Russia 2011'!$F$71),\"\",'Russia 2011'!$F$71)","v":"Yes"},{"$f":"IF(ISBLANK('Russia 2011'!$F$72),\"\",'Russia 2011'!$F$72)","v":"No"},{"$f":"IF(ISBLANK('Russia 2011'!$F$73),\"\",'Russia 2011'!$F$73)","v":"Yes"},{"$f":"IF(ISBLANK('Russia 2011'!$F$74),\"\",'Russia 2011'!$F$74)","v":"No"},{"$f":"IF(ISBLANK('Russia 2011'!$F$75),\"\",'Russia 2011'!$F$75)","v":"Yes"},{"$f":"IF(ISBLANK('Russia 2011'!$F$76),\"\",'Russia 2011'!$F$76)","v":"No"},{"$f":"IF(ISBLANK('Russia 2011'!$F$77),\"\",'Russia 2011'!$F$77)","v":"Contraceptive patch Evra and vaginal ring Novaring"},null,{"$f":"IF(ISBLANK('Russia 2011'!$G$66),\"\",'Russia 2011'!$G$66)","v":"N/A"},{"$f":"IF(ISBLANK('Russia 2011'!$G$67),\"\",'Russia 2011'!$G$67)","v":"N/A"},{"$f":"IF(ISBLANK('Russia 2011'!$G$68),\"\",'Russia 2011'!$G$68)","v":"N/A"},{"$f":"IF(ISBLANK('Russia 2011'!$G$69),\"\",'Russia 2011'!$G$69)","v":"N/A"},{"$f":"IF(ISBLANK('Russia 2011'!$G$70),\"\",'Russia 2011'!$G$70)","v":"N/A"},{"$f":"IF(ISBLANK('Russia 2011'!$G$71),\"\",'Russia 2011'!$G$71)","v":"N/A"},{"$f":"IF(ISBLANK('Russia 2011'!$G$72),\"\",'Russia 2011'!$G$72)","v":"N/A"},{"$f":"IF(ISBLANK('Russia 2011'!$G$73),\"\",'Russia 2011'!$G$73)","v":"N/A"},{"$f":"IF(ISBLANK('Russia 2011'!$G$74),\"\",'Russia 2011'!$G$74)","v":"N/A"},{"$f":"IF(ISBLANK('Russia 2011'!$G$75),\"\",'Russia 2011'!$G$75)","v":"N/A"},{"$f":"IF(ISBLANK('Russia 2011'!$G$76),\"\",'Russia 2011'!$G$76)","v":"N/A"},{"$f":"IF(ISBLANK('Russia 2011'!$G$77),\"\",'Russia 2011'!$G$77)","v":"N/A"},null,{"$f":"IF(ISBLANK('Russia 2011'!$H$66),\"\",'Russia 2011'!$H$66)","v":"N/A"},{"$f":"IF(ISBLANK('Russia 2011'!$H$67),\"\",'Russia 2011'!$H$67)","v":"N/A"},{"$f":"IF(ISBLANK('Russia 2011'!$H$68),\"\",'Russia 2011'!$H$68)","v":"N/A"},{"$f":"IF(ISBLANK('Russia 2011'!$H$69),\"\",'Russia 2011'!$H$69)","v":"N/A"},{"$f":"IF(ISBLANK('Russia 2011'!$H$70),\"\",'Russia 2011'!$H$70)","v":"N/A"},{"$f":"IF(ISBLANK('Russia 2011'!$H$71),\"\",'Russia 2011'!$H$71)","v":"N/A"},{"$f":"IF(ISBLANK('Russia 2011'!$H$72),\"\",'Russia 2011'!$H$72)","v":"N/A"},{"$f":"IF(ISBLANK('Russia 2011'!$H$73),\"\",'Russia 2011'!$H$73)","v":"N/A"},{"$f":"IF(ISBLANK('Russia 2011'!$H$74),\"\",'Russia 2011'!$H$74)","v":"N/A"},{"$f":"IF(ISBLANK('Russia 2011'!$H$75),\"\",'Russia 2011'!$H$75)","v":"N/A"},{"$f":"IF(ISBLANK('Russia 2011'!$H$76),\"\",'Russia 2011'!$H$76)","v":"N/A"},{"$f":"IF(ISBLANK('Russia 2011'!$H$77),\"\",'Russia 2011'!$H$77)","v":"N/A"},{"$f":"IF(ISBLANK('Russia 2011'!$D$78),\"\",'Russia 2011'!$D$78)","v":""},null,{"$f":"IF(ISBLANK('Russia 2011'!$H$80),\"\",'Russia 2011'!$H$80)","v":"No"},{"$f":"IF(ISBLANK('Russia 2011'!$C$83),\"\",'Russia 2011'!$C$83)","v":""},{"$f":"IF(ISBLANK('Russia 2011'!$D$83),\"\",'Russia 2011'!$D$83)","v":""},{"$f":"IF(ISBLANK('Russia 2011'!$F$83),\"\",'Russia 2011'!$F$83)","v":""},{"$f":"IF(ISBLANK('Russia 2011'!$G$83),\"\",'Russia 2011'!$G$83)","v":""},{"$f":"IF(ISBLANK('Russia 2011'!$F$84),\"\",'Russia 2011'!$F$84)","v":"Yes"},{"$f":"IF(ISBLANK('Russia 2011'!$E$85),\"\",'Russia 2011'!$E$85)","v":"All sectors"},{"$f":"IF(ISBLANK('Russia 2011'!$E$86),\"\",'Russia 2011'!$E$86)","v":"10% custom/import duties, 10% VAT"},{"$f":"IF(ISBLANK('Russia 2011'!$H$87),\"\",'Russia 2011'!$H$87)","v":"Yes"},{"$f":"IF(ISBLANK('Russia 2011'!$D$88),\"\",'Russia 2011'!$D$88)","v":"It's illegal to advertise a specific contraceptive brand as well as any other prescription drug. However, they can be promoted and advertised in professional health care literature and facilities. Public campaigns about contraception in general are allowed."},{"$f":"IF(ISBLANK('Russia 2011'!$H$89),\"\",'Russia 2011'!$H$89)","v":"Yes"},{"$f":"IF(ISBLANK('Russia 2011'!$D$90),\"\",'Russia 2011'!$D$90)","v":"Only those entities that have a license for specific medical services can provide contraception. They are mainly private medical clinics. In general only health care workers can provide methods, mostly OB/GYNS."},{"$f":"IF(ISBLANK('Russia 2011'!$H$91),\"\",'Russia 2011'!$H$91)","v":"Yes"},{"$f":"IF(ISBLANK('Russia 2011'!$C$94),\"\",'Russia 2011'!$C$94)","v":"All except condoms"},{"$f":"IF(ISBLANK('Russia 2011'!$E$94),\"\",'Russia 2011'!$E$94)","v":"Only pharmacies are allowed to sell contraceptives and only OB/GYNs can prescribe them."},{"$f":"IF(ISBLANK('Russia 2011'!$G$94),\"\",'Russia 2011'!$G$94)","v":"Only pharmacies are allowed to sell contraceptives and only OB/GYNs can prescribe them."},{"$f":"IF(ISBLANK('Russia 2011'!$C$95),\"\",'Russia 2011'!$C$95)","v":""},{"$f":"IF(ISBLANK('Russia 2011'!$E$95),\"\",'Russia 2011'!$E$95)","v":""},{"$f":"IF(ISBLANK('Russia 2011'!$G$95),\"\",'Russia 2011'!$G$95)","v":""},{"$f":"IF(ISBLANK('Russia 2011'!$C$96),\"\",'Russia 2011'!$C$96)","v":""},{"$f":"IF(ISBLANK('Russia 2011'!$E$96),\"\",'Russia 2011'!$E$96)","v":""},{"$f":"IF(ISBLANK('Russia 2011'!$G$96),\"\",'Russia 2011'!$G$96)","v":""},null,{"$f":"IF(ISBLANK('Russia 2011'!$D$99),\"\",'Russia 2011'!$D$99)","v":"No"},{"$f":"IF(ISBLANK('Russia 2011'!$E$99),\"\",'Russia 2011'!$E$99)","v":""},{"$f":"IF(ISBLANK('Russia 2011'!$H$99),\"\",'Russia 2011'!$H$99)","v":""},{"$f":"IF(ISBLANK('Russia 2011'!$D$100),\"\",'Russia 2011'!$D$100)","v":"No"},{"$f":"IF(ISBLANK('Russia 2011'!$E$100),\"\",'Russia 2011'!$E$100)","v":""},{"$f":"IF(ISBLANK('Russia 2011'!$H$100),\"\",'Russia 2011'!$H$100)","v":""},{"$f":"IF(ISBLANK('Russia 2011'!$D$101),\"\",'Russia 2011'!$D$101)","v":"No"},{"$f":"IF(ISBLANK('Russia 2011'!$E$101),\"\",'Russia 2011'!$E$101)","v":""},{"$f":"IF(ISBLANK('Russia 2011'!$H$101),\"\",'Russia 2011'!$H$101)","v":""},null,{"$f":"IF(ISBLANK('Russia 2011'!$G$104),\"\",'Russia 2011'!$G$104)","v":"No"},{"$f":"IF(ISBLANK('Russia 2011'!$G$105),\"\",'Russia 2011'!$G$105)","v":"Yes"},{"$f":"IF(ISBLANK('Russia 2011'!$G$106),\"\",'Russia 2011'!$G$106)","v":"Yes"},{"$f":"IF(ISBLANK('Russia 2011'!$D$107),\"\",'Russia 2011'!$D$107)","v":"Some regions provide free contraception for vulnerable groups."},null,{"$f":"IF(ISBLANK('Russia 2011'!$G$109),\"\",'Russia 2011'!$G$109)","v":"No"},{"$f":"IF(ISBLANK('Russia 2011'!$G$110),\"\",'Russia 2011'!$G$110)","v":"Yes"},{"$f":"IF(ISBLANK('Russia 2011'!$G$111),\"\",'Russia 2011'!$G$111)","v":"No"},{"$f":"IF(ISBLANK('Russia 2011'!$G$112),\"\",'Russia 2011'!$G$112)","v":"No"},{"$f":"IF(ISBLANK('Russia 2011'!$G$113),\"\",'Russia 2011'!$G$113)","v":"No"},{"$f":"IF(ISBLANK('Russia 2011'!$G$114),\"\",'Russia 2011'!$G$114)","v":"No"},{"$f":"IF(ISBLANK('Russia 2011'!$G$115),\"\",'Russia 2011'!$G$115)","v":"No"},{"$f":"IF(ISBLANK('Russia 2011'!$G$116),\"\",'Russia 2011'!$G$116)","v":"No"},{"$f":"IF(ISBLANK('Russia 2011'!$G$117),\"\",'Russia 2011'!$G$117)","v":"No"},{"$f":"IF(ISBLANK('Russia 2011'!$G$118),\"\",'Russia 2011'!$G$118)","v":"No"},{"$f":"IF(ISBLANK('Russia 2011'!$F$119),\"\",'Russia 2011'!$F$119)","v":"N/A"},{"$f":"IF(ISBLANK('Russia 2011'!$F$120),\"\",'Russia 2011'!$F$120)","v":2010},{"$f":"IF(ISBLANK('Russia 2011'!$D$121),\"\",'Russia 2011'!$D$121)","v":"National Essential Medicine List"},{"$f":"IF(ISBLANK('Russia 2011'!$D$122),\"\",'Russia 2011'!$D$122)","v":""},null,{"$f":"IF(ISBLANK('Russia 2011'!$F$124),\"\",'Russia 2011'!$F$124)","v":"N/A"},{"$f":"IF(ISBLANK('Russia 2011'!$G$125),\"\",'Russia 2011'!$G$125)","v":"N/A"},{"$f":"IF(ISBLANK('Russia 2011'!$G$126),\"\",'Russia 2011'!$G$126)","v":"N/A"},{"$f":"IF(ISBLANK('Russia 2011'!$G$127),\"\",'Russia 2011'!$G$127)","v":"N/A"},{"$f":"IF(ISBLANK('Russia 2011'!$G$128),\"\",'Russia 2011'!$G$128)","v":"N/A"},{"$f":"IF(ISBLANK('Russia 2011'!$D$129),\"\",'Russia 2011'!$D$129)","v":"Document not available on IMF website"},null,{"$f":"IF(ISBLANK('Russia 2011'!$G$131),\"\",'Russia 2011'!$G$131)","v":"N/A"},null,{"$f":"IF(ISBLANK('Russia 2011'!$G$133),\"\",'Russia 2011'!$G$133)","v":"N/A"},{"$f":"IF(ISBLANK('Russia 2011'!$G$134),\"\",'Russia 2011'!$G$134)","v":"N/A"},{"$f":"IF(ISBLANK('Russia 2011'!$G$135),\"\",'Russia 2011'!$G$135)","v":"N/A"},{"$f":"IF(ISBLANK('Russia 2011'!$G$136),\"\",'Russia 2011'!$G$136)","v":"N/A"},{"$f":"IF(ISBLANK('Russia 2011'!$G$137),\"\",'Russia 2011'!$G$137)","v":"N/A"},{"$f":"IF(ISBLANK('Russia 2011'!$G$138),\"\",'Russia 2011'!$G$138)","v":"N/A"},{"$f":"IF(ISBLANK('Russia 2011'!$G$139),\"\",'Russia 2011'!$G$139)","v":"N/A"},{"$f":"IF(ISBLANK('Russia 2011'!$G$140),\"\",'Russia 2011'!$G$140)","v":"N/A"},{"$f":"IF(ISBLANK('Russia 2011'!$G$141),\"\",'Russia 2011'!$G$141)","v":"N/A"},{"$f":"IF(ISBLANK('Russia 2011'!$F$142),\"\",'Russia 2011'!$F$142)","v":"N/A"},{"$f":"IF(ISBLANK('Russia 2011'!$F$143),\"\",'Russia 2011'!$F$143)","v":"N/A"},null,{"$f":"IF(ISBLANK('Russia 2011'!$G$145),\"\",'Russia 2011'!$G$145)","v":"N/A"},{"$f":"IF(ISBLANK('Russia 2011'!$G$146),\"\",'Russia 2011'!$G$146)","v":"N/A"},{"$f":"IF(ISBLANK('Russia 2011'!$D$147),\"\",'Russia 2011'!$D$147)","v":"Contraception in Russia continues to be a sensitive topic due to the demographic crisis and other reasons such as the traditionally negative perception of hormonal contraception among policy makers, professionals, and the general population. The government is focusing more on preserving any pregnancy, even an unintended one, so contraception is not viewed positively by the state.\n\n\n\n"},"Europe and Asia"]
["Rwanda ",null,{"$f":"IF(ISBLANK('Rwanda 2011'!$H$12),\"\",'Rwanda 2011'!$H$12)","v":"Yes"},{"$f":"IF(ISBLANK('Rwanda 2011'!$D$13),\"\",'Rwanda 2011'!$D$13)","v":"Family Planning Logistics Committee"},null,{"$f":"IF(ISBLANK('Rwanda 2011'!$D$15),\"\",'Rwanda 2011'!$D$15)","v":"Yes"},{"$f":"IF(ISBLANK('Rwanda 2011'!$F$15),\"\",'Rwanda 2011'!$F$15)","v":"PSI"},{"$f":"IF(ISBLANK('Rwanda 2011'!$D$16),\"\",'Rwanda 2011'!$D$16)","v":"Yes"},{"$f":"IF(ISBLANK('Rwanda 2011'!$F$16),\"\",'Rwanda 2011'!$F$16)","v":"Association Rwandaise pour le Bien Etre Familiale (ARBEF) (Rwandan association for family well-being)"},{"$f":"IF(ISBLANK('Rwanda 2011'!$D$17),\"\",'Rwanda 2011'!$D$17)","v":"Yes"},{"$f":"IF(ISBLANK('Rwanda 2011'!$F$17),\"\",'Rwanda 2011'!$F$17)","v":"Association Rwandaise des Pharmacies (ARPHA) (Rwandan association of pharmacists), Association Rwansaise des Medecins Prives (Rwandan association of private doctors)"},{"$f":"IF(ISBLANK('Rwanda 2011'!$D$18),\"\",'Rwanda 2011'!$D$18)","v":"Yes"},{"$f":"IF(ISBLANK('Rwanda 2011'!$F$18),\"\",'Rwanda 2011'!$F$18)","v":"UNFPA, USAID, GFATM"},{"$f":"IF(ISBLANK('Rwanda 2011'!$D$19),\"\",'Rwanda 2011'!$D$19)","v":"Yes"},{"$f":"IF(ISBLANK('Rwanda 2011'!$F$19),\"\",'Rwanda 2011'!$F$19)","v":"UNFPA"},{"$f":"IF(ISBLANK('Rwanda 2011'!$D$20),\"\",'Rwanda 2011'!$D$20)","v":"Yes"},{"$f":"IF(ISBLANK('Rwanda 2011'!$F$20),\"\",'Rwanda 2011'!$F$20)","v":"Maternal and Child Health (MCH), HIV/AIDS and FP Integration, Pharmacy Task Force, Family Planning Officer, Commission National de Lutte Contre le SIDA (CNLS) (national commission for the fight against AIDS)"},{"$f":"IF(ISBLANK('Rwanda 2011'!$D$21),\"\",'Rwanda 2011'!$D$21)","v":"Yes"},{"$f":"IF(ISBLANK('Rwanda 2011'!$F$21),\"\",'Rwanda 2011'!$F$21)","v":"Central d'Achat des Medicamants Essentiel et Consommables (CAMERWA)"},{"$f":"IF(ISBLANK('Rwanda 2011'!$D$22),\"\",'Rwanda 2011'!$D$22)","v":"No"},{"$f":"IF(ISBLANK('Rwanda 2011'!$F$22),\"\",'Rwanda 2011'!$F$22)","v":""},{"$f":"IF(ISBLANK('Rwanda 2011'!$D$23),\"\",'Rwanda 2011'!$D$23)","v":"No"},{"$f":"IF(ISBLANK('Rwanda 2011'!$F$23),\"\",'Rwanda 2011'!$F$23)","v":""},{"$f":"IF(ISBLANK('Rwanda 2011'!$H$24),\"\",'Rwanda 2011'!$H$24)","v":"3-5 times"},{"$f":"IF(ISBLANK('Rwanda 2011'!$H$25),\"\",'Rwanda 2011'!$H$25)","v":"Yes"},{"$f":"IF(ISBLANK('Rwanda 2011'!$D$26),\"\",'Rwanda 2011'!$D$26)","v":"Yes"},{"$f":"IF(ISBLANK('Rwanda 2011'!$F$26),\"\",'Rwanda 2011'!$F$26)","v":"MOH"},{"$f":"IF(ISBLANK('Rwanda 2011'!$H$26),\"\",'Rwanda 2011'!$H$26)","v":"MCH Coordinator"},null,{"$f":"IF(ISBLANK('Rwanda 2011'!$F$28),\"\",'Rwanda 2011'!$F$28)","v":"July"},{"$f":"IF(ISBLANK('Rwanda 2011'!$H$28),\"\",'Rwanda 2011'!$H$28)","v":"June"},{"$f":"IF(ISBLANK('Rwanda 2011'!$G$29),\"\",'Rwanda 2011'!$G$29)","v":6012129},{"$f":"IF(ISBLANK('Rwanda 2011'!$E$30),\"\",'Rwanda 2011'!$E$30)","v":"02/10"},{"$f":"IF(ISBLANK('Rwanda 2011'!$G$30),\"\",'Rwanda 2011'!$G$30)","v":"USAID | DELIVER PROJECT & MOH"},{"$f":"IF(ISBLANK('Rwanda 2011'!$H$31),\"\",'Rwanda 2011'!$H$31)","v":"Yes"},{"$f":"IF(ISBLANK('Rwanda 2011'!$H$32),\"\",'Rwanda 2011'!$H$32)","v":"Yes"},{"$f":"IF(ISBLANK('Rwanda 2011'!$E$35),\"\",'Rwanda 2011'!$E$35)","v":600000},{"$f":"IF(ISBLANK('Rwanda 2011'!$F$35),\"\",'Rwanda 2011'!$F$35)","v":"01/10-12/10"},{"$f":"IF(ISBLANK('Rwanda 2011'!$G$35),\"\",'Rwanda 2011'!$G$35)","v":"PipeLine"},{"$f":"IF(ISBLANK('Rwanda 2011'!$H$35),\"\",'Rwanda 2011'!$H$35)","v":""},{"$f":"IF(ISBLANK('Rwanda 2011'!$H$37),\"\",'Rwanda 2011'!$H$37)","v":"Yes"},{"$f":"IF(ISBLANK('Rwanda 2011'!$D$40),\"\",'Rwanda 2011'!$D$40)","v":"Yes"},{"$f":"IF(ISBLANK('Rwanda 2011'!$D$41),\"\",'Rwanda 2011'!$D$41)","v":"Government internally generated funds plus basket funds (from DFID). There is no way to know how much is from which source since budget support is the mechanism used by DFID."},{"$f":"IF(ISBLANK('Rwanda 2011'!$E$40),\"\",'Rwanda 2011'!$E$40)","v":""},{"$f":"IF(ISBLANK('Rwanda 2011'!$F$40),\"\",'Rwanda 2011'!$F$40)","v":"01/10-12/10"},{"$f":"IF(ISBLANK('Rwanda 2011'!$G$40),\"\",'Rwanda 2011'!$G$40)","v":""},{"$f":"IF(ISBLANK('Rwanda 2011'!$H$40),\"\",'Rwanda 2011'!$H$40)","v":""},{"$f":"IF(ISBLANK('Rwanda 2011'!$D$42),\"\",'Rwanda 2011'!$D$42)","v":"Yes"},{"$f":"IF(ISBLANK('Rwanda 2011'!$D$43),\"\",'Rwanda 2011'!$D$43)","v":"Government internally generated funds plus basket funds (from DFID). There is no way to know how much is from which source since budget support is the mechanism used by DFID."},{"$f":"IF(ISBLANK('Rwanda 2011'!$E$42),\"\",'Rwanda 2011'!$E$42)","v":1454420},{"$f":"IF(ISBLANK('Rwanda 2011'!$F$42),\"\",'Rwanda 2011'!$F$42)","v":"01/10-12/10"},{"$f":"IF(ISBLANK('Rwanda 2011'!$G$42),\"\",'Rwanda 2011'!$G$42)","v":"PipeLine"},{"$f":"IF(ISBLANK('Rwanda 2011'!$H$42),\"\",'Rwanda 2011'!$H$42)","v":"Only $664,619 worth of these products were shipped and received in country in 2010."},{"$f":"IF(ISBLANK('Rwanda 2011'!$E$44),\"\",'Rwanda 2011'!$E$44)","v":1454420},{"$f":"IF(ISBLANK('Rwanda 2011'!$H$44),\"\",'Rwanda 2011'!$H$44)","v":""},null,{"$f":"IF(ISBLANK('Rwanda 2011'!$D$48),\"\",'Rwanda 2011'!$D$48)","v":"Yes"},{"$f":"IF(ISBLANK('Rwanda 2011'!$D$49),\"\",'Rwanda 2011'!$D$49)","v":"USAID ($2,851,168) & UNFPA ($1,724,234)"},{"$f":"IF(ISBLANK('Rwanda 2011'!$E$48),\"\",'Rwanda 2011'!$E$48)","v":4575402},{"$f":"IF(ISBLANK('Rwanda 2011'!$F$48),\"\",'Rwanda 2011'!$F$48)","v":"01/10-12/10"},{"$f":"IF(ISBLANK('Rwanda 2011'!$G$48),\"\",'Rwanda 2011'!$G$48)","v":"PipeLine"},{"$f":"IF(ISBLANK('Rwanda 2011'!$H$48),\"\",'Rwanda 2011'!$H$48)","v":""},{"$f":"IF(ISBLANK('Rwanda 2011'!$D$50),\"\",'Rwanda 2011'!$D$50)","v":"No"},{"$f":"IF(ISBLANK('Rwanda 2011'!$E$50),\"\",'Rwanda 2011'!$E$50)","v":0},{"$f":"IF(ISBLANK('Rwanda 2011'!$F$50),\"\",'Rwanda 2011'!$F$50)","v":"01/10-12/10"},{"$f":"IF(ISBLANK('Rwanda 2011'!$G$50),\"\",'Rwanda 2011'!$G$50)","v":""},{"$f":"IF(ISBLANK('Rwanda 2011'!$H$50),\"\",'Rwanda 2011'!$H$50)","v":""},{"$f":"IF(ISBLANK('Rwanda 2011'!$D$51),\"\",'Rwanda 2011'!$D$51)","v":"Yes"},{"$f":"IF(ISBLANK('Rwanda 2011'!$E$51),\"\",'Rwanda 2011'!$E$51)","v":772108},{"$f":"IF(ISBLANK('Rwanda 2011'!$F$51),\"\",'Rwanda 2011'!$F$51)","v":"01/10-12/10"},{"$f":"IF(ISBLANK('Rwanda 2011'!$G$51),\"\",'Rwanda 2011'!$G$51)","v":"PipeLine"},{"$f":"IF(ISBLANK('Rwanda 2011'!$H$51),\"\",'Rwanda 2011'!$H$51)","v":""},{"$f":"IF(ISBLANK('Rwanda 2011'!$E$52),\"\",'Rwanda 2011'!$E$52)","v":5347510},{"$f":"IF(ISBLANK('Rwanda 2011'!$H$52),\"\",'Rwanda 2011'!$H$52)","v":""},{"$f":"IF(ISBLANK('Rwanda 2011'!$F$55),\"\",'Rwanda 2011'!$F$55)","v":0.21382460566339259},{"$f":"IF(ISBLANK('Rwanda 2011'!$G$55),\"\",'Rwanda 2011'!$G$55)","v":""},{"$f":"IF(ISBLANK('Rwanda 2011'!$F$56),\"\",'Rwanda 2011'!$F$56)","v":1.1313679397098766},{"$f":"IF(ISBLANK('Rwanda 2011'!$G$56),\"\",'Rwanda 2011'!$G$56)","v":""},{"$f":"IF(ISBLANK('Rwanda 2011'!$F$57),\"\",'Rwanda 2011'!$F$57)","v":"No"},{"$f":"IF(ISBLANK('Rwanda 2011'!$G$57),\"\",'Rwanda 2011'!$G$57)","v":""},{"$f":"IF(ISBLANK('Rwanda 2011'!$F$59),\"\",'Rwanda 2011'!$F$59)","v":"The government (e.g., Central Medical Stores, MOH logistics unit, MOH procurement unit)"},{"$f":"IF(ISBLANK('Rwanda 2011'!$F$60),\"\",'Rwanda 2011'!$F$60)","v":"CAMERWA"},{"$f":"IF(ISBLANK('Rwanda 2011'!$F$61),\"\",'Rwanda 2011'!$F$61)","v":"Yes"},{"$f":"IF(ISBLANK('Rwanda 2011'!$D$62),\"\",'Rwanda 2011'!$D$62)","v":""},null,null,{"$f":"IF(ISBLANK('Rwanda 2011'!$D$66),\"\",'Rwanda 2011'!$D$66)","v":"Yes"},{"$f":"IF(ISBLANK('Rwanda 2011'!$D$67),\"\",'Rwanda 2011'!$D$67)","v":"Yes"},{"$f":"IF(ISBLANK('Rwanda 2011'!$D$68),\"\",'Rwanda 2011'!$D$68)","v":"Yes"},{"$f":"IF(ISBLANK('Rwanda 2011'!$D$69),\"\",'Rwanda 2011'!$D$69)","v":"Yes"},{"$f":"IF(ISBLANK('Rwanda 2011'!$D$70),\"\",'Rwanda 2011'!$D$70)","v":"Yes"},{"$f":"IF(ISBLANK('Rwanda 2011'!$D$71),\"\",'Rwanda 2011'!$D$71)","v":"Yes"},{"$f":"IF(ISBLANK('Rwanda 2011'!$D$72),\"\",'Rwanda 2011'!$D$72)","v":"No"},{"$f":"IF(ISBLANK('Rwanda 2011'!$D$73),\"\",'Rwanda 2011'!$D$73)","v":"Yes"},{"$f":"IF(ISBLANK('Rwanda 2011'!$D$74),\"\",'Rwanda 2011'!$D$74)","v":"No"},{"$f":"IF(ISBLANK('Rwanda 2011'!$D$75),\"\",'Rwanda 2011'!$D$75)","v":"Yes"},{"$f":"IF(ISBLANK('Rwanda 2011'!$D$76),\"\",'Rwanda 2011'!$D$76)","v":"No"},{"$f":"IF(ISBLANK('Rwanda 2011'!$D$77),\"\",'Rwanda 2011'!$D$77)","v":""},null,{"$f":"IF(ISBLANK('Rwanda 2011'!$F$66),\"\",'Rwanda 2011'!$F$66)","v":"Yes"},{"$f":"IF(ISBLANK('Rwanda 2011'!$F$67),\"\",'Rwanda 2011'!$F$67)","v":"Yes"},{"$f":"IF(ISBLANK('Rwanda 2011'!$F$68),\"\",'Rwanda 2011'!$F$68)","v":"Yes"},{"$f":"IF(ISBLANK('Rwanda 2011'!$F$69),\"\",'Rwanda 2011'!$F$69)","v":"Yes"},{"$f":"IF(ISBLANK('Rwanda 2011'!$F$70),\"\",'Rwanda 2011'!$F$70)","v":"Yes"},{"$f":"IF(ISBLANK('Rwanda 2011'!$F$71),\"\",'Rwanda 2011'!$F$71)","v":"Yes"},{"$f":"IF(ISBLANK('Rwanda 2011'!$F$72),\"\",'Rwanda 2011'!$F$72)","v":"Yes"},{"$f":"IF(ISBLANK('Rwanda 2011'!$F$73),\"\",'Rwanda 2011'!$F$73)","v":"Yes"},{"$f":"IF(ISBLANK('Rwanda 2011'!$F$74),\"\",'Rwanda 2011'!$F$74)","v":"Yes"},{"$f":"IF(ISBLANK('Rwanda 2011'!$F$75),\"\",'Rwanda 2011'!$F$75)","v":"Yes"},{"$f":"IF(ISBLANK('Rwanda 2011'!$F$76),\"\",'Rwanda 2011'!$F$76)","v":"Yes"},{"$f":"IF(ISBLANK('Rwanda 2011'!$F$77),\"\",'Rwanda 2011'!$F$77)","v":""},null,{"$f":"IF(ISBLANK('Rwanda 2011'!$G$66),\"\",'Rwanda 2011'!$G$66)","v":"Yes"},{"$f":"IF(ISBLANK('Rwanda 2011'!$G$67),\"\",'Rwanda 2011'!$G$67)","v":"Yes"},{"$f":"IF(ISBLANK('Rwanda 2011'!$G$68),\"\",'Rwanda 2011'!$G$68)","v":"Yes"},{"$f":"IF(ISBLANK('Rwanda 2011'!$G$69),\"\",'Rwanda 2011'!$G$69)","v":"No"},{"$f":"IF(ISBLANK('Rwanda 2011'!$G$70),\"\",'Rwanda 2011'!$G$70)","v":"Yes"},{"$f":"IF(ISBLANK('Rwanda 2011'!$G$71),\"\",'Rwanda 2011'!$G$71)","v":"Yes"},{"$f":"IF(ISBLANK('Rwanda 2011'!$G$72),\"\",'Rwanda 2011'!$G$72)","v":"No"},{"$f":"IF(ISBLANK('Rwanda 2011'!$G$73),\"\",'Rwanda 2011'!$G$73)","v":"Yes"},{"$f":"IF(ISBLANK('Rwanda 2011'!$G$74),\"\",'Rwanda 2011'!$G$74)","v":"No"},{"$f":"IF(ISBLANK('Rwanda 2011'!$G$75),\"\",'Rwanda 2011'!$G$75)","v":"No"},{"$f":"IF(ISBLANK('Rwanda 2011'!$G$76),\"\",'Rwanda 2011'!$G$76)","v":"No"},{"$f":"IF(ISBLANK('Rwanda 2011'!$G$77),\"\",'Rwanda 2011'!$G$77)","v":""},null,{"$f":"IF(ISBLANK('Rwanda 2011'!$H$66),\"\",'Rwanda 2011'!$H$66)","v":"Yes"},{"$f":"IF(ISBLANK('Rwanda 2011'!$H$67),\"\",'Rwanda 2011'!$H$67)","v":"No"},{"$f":"IF(ISBLANK('Rwanda 2011'!$H$68),\"\",'Rwanda 2011'!$H$68)","v":"Yes"},{"$f":"IF(ISBLANK('Rwanda 2011'!$H$69),\"\",'Rwanda 2011'!$H$69)","v":"No"},{"$f":"IF(ISBLANK('Rwanda 2011'!$H$70),\"\",'Rwanda 2011'!$H$70)","v":"No"},{"$f":"IF(ISBLANK('Rwanda 2011'!$H$71),\"\",'Rwanda 2011'!$H$71)","v":"Yes"},{"$f":"IF(ISBLANK('Rwanda 2011'!$H$72),\"\",'Rwanda 2011'!$H$72)","v":"No"},{"$f":"IF(ISBLANK('Rwanda 2011'!$H$73),\"\",'Rwanda 2011'!$H$73)","v":"No"},{"$f":"IF(ISBLANK('Rwanda 2011'!$H$74),\"\",'Rwanda 2011'!$H$74)","v":"No"},{"$f":"IF(ISBLANK('Rwanda 2011'!$H$75),\"\",'Rwanda 2011'!$H$75)","v":"No"},{"$f":"IF(ISBLANK('Rwanda 2011'!$H$76),\"\",'Rwanda 2011'!$H$76)","v":"Yes"},{"$f":"IF(ISBLANK('Rwanda 2011'!$H$77),\"\",'Rwanda 2011'!$H$77)","v":""},{"$f":"IF(ISBLANK('Rwanda 2011'!$D$78),\"\",'Rwanda 2011'!$D$78)","v":""},null,{"$f":"IF(ISBLANK('Rwanda 2011'!$H$80),\"\",'Rwanda 2011'!$H$80)","v":"Yes"},{"$f":"IF(ISBLANK('Rwanda 2011'!$C$83),\"\",'Rwanda 2011'!$C$83)","v":"Reproductive Health Commodity Security"},{"$f":"IF(ISBLANK('Rwanda 2011'!$D$83),\"\",'Rwanda 2011'!$D$83)","v":"November 2008-Decmber 2012"},{"$f":"IF(ISBLANK('Rwanda 2011'!$F$83),\"\",'Rwanda 2011'!$F$83)","v":"No"},{"$f":"IF(ISBLANK('Rwanda 2011'!$G$83),\"\",'Rwanda 2011'!$G$83)","v":"Yes"},{"$f":"IF(ISBLANK('Rwanda 2011'!$F$84),\"\",'Rwanda 2011'!$F$84)","v":"Yes"},{"$f":"IF(ISBLANK('Rwanda 2011'!$E$85),\"\",'Rwanda 2011'!$E$85)","v":"For all methods in the public sector, MOH pays storage for the central warehouse"},{"$f":"IF(ISBLANK('Rwanda 2011'!$E$86),\"\",'Rwanda 2011'!$E$86)","v":"9% of the value of the product"},{"$f":"IF(ISBLANK('Rwanda 2011'!$H$87),\"\",'Rwanda 2011'!$H$87)","v":"No"},{"$f":"IF(ISBLANK('Rwanda 2011'!$D$88),\"\",'Rwanda 2011'!$D$88)","v":"N/A"},{"$f":"IF(ISBLANK('Rwanda 2011'!$H$89),\"\",'Rwanda 2011'!$H$89)","v":"No"},{"$f":"IF(ISBLANK('Rwanda 2011'!$D$90),\"\",'Rwanda 2011'!$D$90)","v":"N/A"},{"$f":"IF(ISBLANK('Rwanda 2011'!$H$91),\"\",'Rwanda 2011'!$H$91)","v":"No"},{"$f":"IF(ISBLANK('Rwanda 2011'!$C$94),\"\",'Rwanda 2011'!$C$94)","v":""},{"$f":"IF(ISBLANK('Rwanda 2011'!$E$94),\"\",'Rwanda 2011'!$E$94)","v":""},{"$f":"IF(ISBLANK('Rwanda 2011'!$G$94),\"\",'Rwanda 2011'!$G$94)","v":""},{"$f":"IF(ISBLANK('Rwanda 2011'!$C$95),\"\",'Rwanda 2011'!$C$95)","v":""},{"$f":"IF(ISBLANK('Rwanda 2011'!$E$95),\"\",'Rwanda 2011'!$E$95)","v":""},{"$f":"IF(ISBLANK('Rwanda 2011'!$G$95),\"\",'Rwanda 2011'!$G$95)","v":""},{"$f":"IF(ISBLANK('Rwanda 2011'!$C$96),\"\",'Rwanda 2011'!$C$96)","v":""},{"$f":"IF(ISBLANK('Rwanda 2011'!$E$96),\"\",'Rwanda 2011'!$E$96)","v":""},{"$f":"IF(ISBLANK('Rwanda 2011'!$G$96),\"\",'Rwanda 2011'!$G$96)","v":""},null,{"$f":"IF(ISBLANK('Rwanda 2011'!$D$99),\"\",'Rwanda 2011'!$D$99)","v":"No"},{"$f":"IF(ISBLANK('Rwanda 2011'!$E$99),\"\",'Rwanda 2011'!$E$99)","v":""},{"$f":"IF(ISBLANK('Rwanda 2011'!$H$99),\"\",'Rwanda 2011'!$H$99)","v":""},{"$f":"IF(ISBLANK('Rwanda 2011'!$D$100),\"\",'Rwanda 2011'!$D$100)","v":"No"},{"$f":"IF(ISBLANK('Rwanda 2011'!$E$100),\"\",'Rwanda 2011'!$E$100)","v":""},{"$f":"IF(ISBLANK('Rwanda 2011'!$H$100),\"\",'Rwanda 2011'!$H$100)","v":""},{"$f":"IF(ISBLANK('Rwanda 2011'!$D$101),\"\",'Rwanda 2011'!$D$101)","v":"No"},{"$f":"IF(ISBLANK('Rwanda 2011'!$E$101),\"\",'Rwanda 2011'!$E$101)","v":""},{"$f":"IF(ISBLANK('Rwanda 2011'!$H$101),\"\",'Rwanda 2011'!$H$101)","v":""},null,{"$f":"IF(ISBLANK('Rwanda 2011'!$G$104),\"\",'Rwanda 2011'!$G$104)","v":"No"},{"$f":"IF(ISBLANK('Rwanda 2011'!$G$105),\"\",'Rwanda 2011'!$G$105)","v":"No"},{"$f":"IF(ISBLANK('Rwanda 2011'!$G$106),\"\",'Rwanda 2011'!$G$106)","v":"N/A"},{"$f":"IF(ISBLANK('Rwanda 2011'!$D$107),\"\",'Rwanda 2011'!$D$107)","v":"N/A"},null,{"$f":"IF(ISBLANK('Rwanda 2011'!$G$109),\"\",'Rwanda 2011'!$G$109)","v":"Yes"},{"$f":"IF(ISBLANK('Rwanda 2011'!$G$110),\"\",'Rwanda 2011'!$G$110)","v":"Yes"},{"$f":"IF(ISBLANK('Rwanda 2011'!$G$111),\"\",'Rwanda 2011'!$G$111)","v":"Yes"},{"$f":"IF(ISBLANK('Rwanda 2011'!$G$112),\"\",'Rwanda 2011'!$G$112)","v":"Yes"},{"$f":"IF(ISBLANK('Rwanda 2011'!$G$113),\"\",'Rwanda 2011'!$G$113)","v":"Yes"},{"$f":"IF(ISBLANK('Rwanda 2011'!$G$114),\"\",'Rwanda 2011'!$G$114)","v":"Yes"},{"$f":"IF(ISBLANK('Rwanda 2011'!$G$115),\"\",'Rwanda 2011'!$G$115)","v":"Yes"},{"$f":"IF(ISBLANK('Rwanda 2011'!$G$116),\"\",'Rwanda 2011'!$G$116)","v":"Yes"},{"$f":"IF(ISBLANK('Rwanda 2011'!$G$117),\"\",'Rwanda 2011'!$G$117)","v":"Yes"},{"$f":"IF(ISBLANK('Rwanda 2011'!$G$118),\"\",'Rwanda 2011'!$G$118)","v":"No"},{"$f":"IF(ISBLANK('Rwanda 2011'!$F$119),\"\",'Rwanda 2011'!$F$119)","v":"N/A"},{"$f":"IF(ISBLANK('Rwanda 2011'!$F$120),\"\",'Rwanda 2011'!$F$120)","v":2009},{"$f":"IF(ISBLANK('Rwanda 2011'!$D$121),\"\",'Rwanda 2011'!$D$121)","v":"Liste National des Medicaments Essentiel (National Essential Medicines List)"},{"$f":"IF(ISBLANK('Rwanda 2011'!$D$122),\"\",'Rwanda 2011'!$D$122)","v":"It was published in 2010 and is reviewed every 2 years."},null,{"$f":"IF(ISBLANK('Rwanda 2011'!$F$124),\"\",'Rwanda 2011'!$F$124)","v":2008},{"$f":"IF(ISBLANK('Rwanda 2011'!$G$125),\"\",'Rwanda 2011'!$G$125)","v":"Yes"},{"$f":"IF(ISBLANK('Rwanda 2011'!$G$126),\"\",'Rwanda 2011'!$G$126)","v":"Yes"},{"$f":"IF(ISBLANK('Rwanda 2011'!$G$127),\"\",'Rwanda 2011'!$G$127)","v":"Yes"},{"$f":"IF(ISBLANK('Rwanda 2011'!$G$128),\"\",'Rwanda 2011'!$G$128)","v":"No"},{"$f":"IF(ISBLANK('Rwanda 2011'!$D$129),\"\",'Rwanda 2011'!$D$129)","v":"While the term \"contraceptive security\" is not explicitly mentioned, there is language that reflects the concepts. 4.208 The fifth objective is to increase the availablity and affordability of drugs, contraceptive products . . . As the utilisation of health care facitlites increases, evidence shows that the binding contraint becomes drug availability. Providing safe and effective medication, diagnostics and other commodities to patients is vital for improving the quality of health care. Such a policy has cost-saving effects which is the rationale for attempting to reduce the number of out-of-stock days for all essential drugs at public health facilities. (p.100) There is emphasis on the availability of contraceptives, but there are no indicators to reflect this priority."},null,{"$f":"IF(ISBLANK('Rwanda 2011'!$G$131),\"\",'Rwanda 2011'!$G$131)","v":"Yes"},null,{"$f":"IF(ISBLANK('Rwanda 2011'!$G$133),\"\",'Rwanda 2011'!$G$133)","v":"No"},{"$f":"IF(ISBLANK('Rwanda 2011'!$G$134),\"\",'Rwanda 2011'!$G$134)","v":"No"},{"$f":"IF(ISBLANK('Rwanda 2011'!$G$135),\"\",'Rwanda 2011'!$G$135)","v":"No"},{"$f":"IF(ISBLANK('Rwanda 2011'!$G$136),\"\",'Rwanda 2011'!$G$136)","v":"No"},{"$f":"IF(ISBLANK('Rwanda 2011'!$G$137),\"\",'Rwanda 2011'!$G$137)","v":"No"},{"$f":"IF(ISBLANK('Rwanda 2011'!$G$138),\"\",'Rwanda 2011'!$G$138)","v":"No"},{"$f":"IF(ISBLANK('Rwanda 2011'!$G$139),\"\",'Rwanda 2011'!$G$139)","v":"Yes"},{"$f":"IF(ISBLANK('Rwanda 2011'!$G$140),\"\",'Rwanda 2011'!$G$140)","v":"No"},{"$f":"IF(ISBLANK('Rwanda 2011'!$G$141),\"\",'Rwanda 2011'!$G$141)","v":"No"},{"$f":"IF(ISBLANK('Rwanda 2011'!$F$142),\"\",'Rwanda 2011'!$F$142)","v":"01/10-12/10"},{"$f":"IF(ISBLANK('Rwanda 2011'!$F$143),\"\",'Rwanda 2011'!$F$143)","v":"Warehouse report"},null,{"$f":"IF(ISBLANK('Rwanda 2011'!$G$145),\"\",'Rwanda 2011'!$G$145)","v":"No"},{"$f":"IF(ISBLANK('Rwanda 2011'!$G$146),\"\",'Rwanda 2011'!$G$146)","v":"No"},{"$f":"IF(ISBLANK('Rwanda 2011'!$D$147),\"\",'Rwanda 2011'!$D$147)","v":"At the service delivery point (SDP) level, contraceptive stockouts are estimated at less than 4% and also rarely occur at the district and central levels. The reporting rate is more than 90% at the SDP level and 100% at the district level."},"Africa"]
["Senegal ",null,{"$f":"IF(ISBLANK('Senegal 2011'!$H$12),\"\",'Senegal 2011'!$H$12)","v":"Yes"},{"$f":"IF(ISBLANK('Senegal 2011'!$D$13),\"\",'Senegal 2011'!$D$13)","v":"Comite National de Securisation de Produits Contraceptifs (National Contraceptive Security Committee)"},null,{"$f":"IF(ISBLANK('Senegal 2011'!$D$15),\"\",'Senegal 2011'!$D$15)","v":"Yes"},{"$f":"IF(ISBLANK('Senegal 2011'!$F$15),\"\",'Senegal 2011'!$F$15)","v":"Agence pour le Developpement du Marketing Social (ADEMAS) (USAID Implementing Partner (IP))"},{"$f":"IF(ISBLANK('Senegal 2011'!$D$16),\"\",'Senegal 2011'!$D$16)","v":"Yes"},{"$f":"IF(ISBLANK('Senegal 2011'!$F$16),\"\",'Senegal 2011'!$F$16)","v":"Association Senegalaise pour le Bien Etre Familial (ASBEF), IPPF affiliate, Intrahealth (USAID IP), Childfund & Consortium (USAID IP)"},{"$f":"IF(ISBLANK('Senegal 2011'!$D$17),\"\",'Senegal 2011'!$D$17)","v":"No"},{"$f":"IF(ISBLANK('Senegal 2011'!$F$17),\"\",'Senegal 2011'!$F$17)","v":""},{"$f":"IF(ISBLANK('Senegal 2011'!$D$18),\"\",'Senegal 2011'!$D$18)","v":"Yes"},{"$f":"IF(ISBLANK('Senegal 2011'!$F$18),\"\",'Senegal 2011'!$F$18)","v":"USAID, UNFPA , JICA, KFW"},{"$f":"IF(ISBLANK('Senegal 2011'!$D$19),\"\",'Senegal 2011'!$D$19)","v":"Yes"},{"$f":"IF(ISBLANK('Senegal 2011'!$F$19),\"\",'Senegal 2011'!$F$19)","v":"WHO, UNFPA"},{"$f":"IF(ISBLANK('Senegal 2011'!$D$20),\"\",'Senegal 2011'!$D$20)","v":"Yes"},{"$f":"IF(ISBLANK('Senegal 2011'!$F$20),\"\",'Senegal 2011'!$F$20)","v":"Division de la Sante de la Reproduction (FP/RH/MCH Division), Direction de la Pharmacie et du Medicament, Laboratoire Nationale de Controle des Medicaments"},{"$f":"IF(ISBLANK('Senegal 2011'!$D$21),\"\",'Senegal 2011'!$D$21)","v":"Yes"},{"$f":"IF(ISBLANK('Senegal 2011'!$F$21),\"\",'Senegal 2011'!$F$21)","v":"Pharmacie Nationale d'Aprovisionnement (PNA)"},{"$f":"IF(ISBLANK('Senegal 2011'!$D$22),\"\",'Senegal 2011'!$D$22)","v":"No"},{"$f":"IF(ISBLANK('Senegal 2011'!$F$22),\"\",'Senegal 2011'!$F$22)","v":""},{"$f":"IF(ISBLANK('Senegal 2011'!$D$23),\"\",'Senegal 2011'!$D$23)","v":"No"},{"$f":"IF(ISBLANK('Senegal 2011'!$F$23),\"\",'Senegal 2011'!$F$23)","v":""},{"$f":"IF(ISBLANK('Senegal 2011'!$H$24),\"\",'Senegal 2011'!$H$24)","v":"1-2 times"},{"$f":"IF(ISBLANK('Senegal 2011'!$H$25),\"\",'Senegal 2011'!$H$25)","v":"No"},{"$f":"IF(ISBLANK('Senegal 2011'!$D$26),\"\",'Senegal 2011'!$D$26)","v":"Yes"},{"$f":"IF(ISBLANK('Senegal 2011'!$F$26),\"\",'Senegal 2011'!$F$26)","v":"USAID & Implementing Partners"},{"$f":"IF(ISBLANK('Senegal 2011'!$H$26),\"\",'Senegal 2011'!$H$26)","v":"USAID MD & Health Team"},null,{"$f":"IF(ISBLANK('Senegal 2011'!$F$28),\"\",'Senegal 2011'!$F$28)","v":"January"},{"$f":"IF(ISBLANK('Senegal 2011'!$H$28),\"\",'Senegal 2011'!$H$28)","v":"December"},{"$f":"IF(ISBLANK('Senegal 2011'!$G$29),\"\",'Senegal 2011'!$G$29)","v":1800000},{"$f":"IF(ISBLANK('Senegal 2011'!$E$30),\"\",'Senegal 2011'!$E$30)","v":"09/10"},{"$f":"IF(ISBLANK('Senegal 2011'!$G$30),\"\",'Senegal 2011'!$G$30)","v":"MOH/FP-RH-MCH Division, supported By IntraHealth (USAID IP)"},{"$f":"IF(ISBLANK('Senegal 2011'!$H$31),\"\",'Senegal 2011'!$H$31)","v":"Yes"},{"$f":"IF(ISBLANK('Senegal 2011'!$H$32),\"\",'Senegal 2011'!$H$32)","v":"Yes"},{"$f":"IF(ISBLANK('Senegal 2011'!$E$35),\"\",'Senegal 2011'!$E$35)","v":150000},{"$f":"IF(ISBLANK('Senegal 2011'!$F$35),\"\",'Senegal 2011'!$F$35)","v":"01/10-12/10"},{"$f":"IF(ISBLANK('Senegal 2011'!$G$35),\"\",'Senegal 2011'!$G$35)","v":"MHO/DSR (Division of Reproductive Health) line budget"},{"$f":"IF(ISBLANK('Senegal 2011'!$H$35),\"\",'Senegal 2011'!$H$35)","v":"During the 2009/10 crisis, it was cut (from 250k to 150k) but for 2011, it is  reallocated with an increase."},{"$f":"IF(ISBLANK('Senegal 2011'!$H$37),\"\",'Senegal 2011'!$H$37)","v":"No"},{"$f":"IF(ISBLANK('Senegal 2011'!$D$40),\"\",'Senegal 2011'!$D$40)","v":"No"},{"$f":"IF(ISBLANK('Senegal 2011'!$D$41),\"\",'Senegal 2011'!$D$41)","v":""},{"$f":"IF(ISBLANK('Senegal 2011'!$E$40),\"\",'Senegal 2011'!$E$40)","v":0},{"$f":"IF(ISBLANK('Senegal 2011'!$F$40),\"\",'Senegal 2011'!$F$40)","v":"10/09-09/10"},{"$f":"IF(ISBLANK('Senegal 2011'!$G$40),\"\",'Senegal 2011'!$G$40)","v":"MHO/FP-RH-MCH report, CPT"},{"$f":"IF(ISBLANK('Senegal 2011'!$H$40),\"\",'Senegal 2011'!$H$40)","v":"Funding was transferred from the MOF to the central medical store (PNA) but was returned to the treasury unspent because of difficulty in the procedure (code des marches)."},{"$f":"IF(ISBLANK('Senegal 2011'!$D$42),\"\",'Senegal 2011'!$D$42)","v":"No"},{"$f":"IF(ISBLANK('Senegal 2011'!$D$43),\"\",'Senegal 2011'!$D$43)","v":"N/A"},{"$f":"IF(ISBLANK('Senegal 2011'!$E$42),\"\",'Senegal 2011'!$E$42)","v":0},{"$f":"IF(ISBLANK('Senegal 2011'!$F$42),\"\",'Senegal 2011'!$F$42)","v":"10/09-09/10"},{"$f":"IF(ISBLANK('Senegal 2011'!$G$42),\"\",'Senegal 2011'!$G$42)","v":"Contraceptive Procurement Table (CPT)"},{"$f":"IF(ISBLANK('Senegal 2011'!$H$42),\"\",'Senegal 2011'!$H$42)","v":""},{"$f":"IF(ISBLANK('Senegal 2011'!$E$44),\"\",'Senegal 2011'!$E$44)","v":0},{"$f":"IF(ISBLANK('Senegal 2011'!$H$44),\"\",'Senegal 2011'!$H$44)","v":""},null,{"$f":"IF(ISBLANK('Senegal 2011'!$D$48),\"\",'Senegal 2011'!$D$48)","v":"Yes"},{"$f":"IF(ISBLANK('Senegal 2011'!$D$49),\"\",'Senegal 2011'!$D$49)","v":"USAID ($1,396,142), UNFPA ($586,419)"},{"$f":"IF(ISBLANK('Senegal 2011'!$E$48),\"\",'Senegal 2011'!$E$48)","v":1982561},{"$f":"IF(ISBLANK('Senegal 2011'!$F$48),\"\",'Senegal 2011'!$F$48)","v":"10/09-09/10"},{"$f":"IF(ISBLANK('Senegal 2011'!$G$48),\"\",'Senegal 2011'!$G$48)","v":"RHInterchange"},{"$f":"IF(ISBLANK('Senegal 2011'!$H$48),\"\",'Senegal 2011'!$H$48)","v":"Includes contraceptives for the MOH/Division of Reproductive Health, MOH/Social Marketing, & MOH/PNLS/AIDS"},{"$f":"IF(ISBLANK('Senegal 2011'!$D$50),\"\",'Senegal 2011'!$D$50)","v":"No"},{"$f":"IF(ISBLANK('Senegal 2011'!$E$50),\"\",'Senegal 2011'!$E$50)","v":0},{"$f":"IF(ISBLANK('Senegal 2011'!$F$50),\"\",'Senegal 2011'!$F$50)","v":"10/09-09/10"},{"$f":"IF(ISBLANK('Senegal 2011'!$G$50),\"\",'Senegal 2011'!$G$50)","v":""},{"$f":"IF(ISBLANK('Senegal 2011'!$H$50),\"\",'Senegal 2011'!$H$50)","v":""},{"$f":"IF(ISBLANK('Senegal 2011'!$D$51),\"\",'Senegal 2011'!$D$51)","v":"No"},{"$f":"IF(ISBLANK('Senegal 2011'!$E$51),\"\",'Senegal 2011'!$E$51)","v":0},{"$f":"IF(ISBLANK('Senegal 2011'!$F$51),\"\",'Senegal 2011'!$F$51)","v":"10/09-09/10"},{"$f":"IF(ISBLANK('Senegal 2011'!$G$51),\"\",'Senegal 2011'!$G$51)","v":""},{"$f":"IF(ISBLANK('Senegal 2011'!$H$51),\"\",'Senegal 2011'!$H$51)","v":""},{"$f":"IF(ISBLANK('Senegal 2011'!$E$52),\"\",'Senegal 2011'!$E$52)","v":1982561},{"$f":"IF(ISBLANK('Senegal 2011'!$H$52),\"\",'Senegal 2011'!$H$52)","v":""},{"$f":"IF(ISBLANK('Senegal 2011'!$F$55),\"\",'Senegal 2011'!$F$55)","v":0},{"$f":"IF(ISBLANK('Senegal 2011'!$G$55),\"\",'Senegal 2011'!$G$55)","v":""},{"$f":"IF(ISBLANK('Senegal 2011'!$F$56),\"\",'Senegal 2011'!$F$56)","v":1.1014227777777779},{"$f":"IF(ISBLANK('Senegal 2011'!$G$56),\"\",'Senegal 2011'!$G$56)","v":"The exceeded performance could be explained by an under-estimation of needs, which during the CPT workshop are based on the history of consumption only. Also, the dollar rate used during the estimation vs the real rate used in the RhInterchange could account for differences as well.\n"},{"$f":"IF(ISBLANK('Senegal 2011'!$F$57),\"\",'Senegal 2011'!$F$57)","v":""},{"$f":"IF(ISBLANK('Senegal 2011'!$G$57),\"\",'Senegal 2011'!$G$57)","v":""},{"$f":"IF(ISBLANK('Senegal 2011'!$F$59),\"\",'Senegal 2011'!$F$59)","v":"N/A"},{"$f":"IF(ISBLANK('Senegal 2011'!$F$60),\"\",'Senegal 2011'!$F$60)","v":"N/A"},{"$f":"IF(ISBLANK('Senegal 2011'!$F$61),\"\",'Senegal 2011'!$F$61)","v":"N/A"},{"$f":"IF(ISBLANK('Senegal 2011'!$D$62),\"\",'Senegal 2011'!$D$62)","v":"During the last four years, funding was allocated for contraceptives but wasn't spent. Many reasons have been given: central store mismanagement, non-response to solicitation, and funding taken back by Treasury due to the financial crisis. Now funding has been reallocated for 2011.  "},null,null,{"$f":"IF(ISBLANK('Senegal 2011'!$D$66),\"\",'Senegal 2011'!$D$66)","v":"Yes"},{"$f":"IF(ISBLANK('Senegal 2011'!$D$67),\"\",'Senegal 2011'!$D$67)","v":"Yes"},{"$f":"IF(ISBLANK('Senegal 2011'!$D$68),\"\",'Senegal 2011'!$D$68)","v":"Yes"},{"$f":"IF(ISBLANK('Senegal 2011'!$D$69),\"\",'Senegal 2011'!$D$69)","v":"Yes"},{"$f":"IF(ISBLANK('Senegal 2011'!$D$70),\"\",'Senegal 2011'!$D$70)","v":"Yes"},{"$f":"IF(ISBLANK('Senegal 2011'!$D$71),\"\",'Senegal 2011'!$D$71)","v":"Yes"},{"$f":"IF(ISBLANK('Senegal 2011'!$D$72),\"\",'Senegal 2011'!$D$72)","v":"Yes"},{"$f":"IF(ISBLANK('Senegal 2011'!$D$73),\"\",'Senegal 2011'!$D$73)","v":"Yes"},{"$f":"IF(ISBLANK('Senegal 2011'!$D$74),\"\",'Senegal 2011'!$D$74)","v":"Yes"},{"$f":"IF(ISBLANK('Senegal 2011'!$D$75),\"\",'Senegal 2011'!$D$75)","v":"Yes"},{"$f":"IF(ISBLANK('Senegal 2011'!$D$76),\"\",'Senegal 2011'!$D$76)","v":"No"},{"$f":"IF(ISBLANK('Senegal 2011'!$D$77),\"\",'Senegal 2011'!$D$77)","v":""},null,{"$f":"IF(ISBLANK('Senegal 2011'!$F$66),\"\",'Senegal 2011'!$F$66)","v":"Yes"},{"$f":"IF(ISBLANK('Senegal 2011'!$F$67),\"\",'Senegal 2011'!$F$67)","v":"Yes"},{"$f":"IF(ISBLANK('Senegal 2011'!$F$68),\"\",'Senegal 2011'!$F$68)","v":"Yes"},{"$f":"IF(ISBLANK('Senegal 2011'!$F$69),\"\",'Senegal 2011'!$F$69)","v":"Yes"},{"$f":"IF(ISBLANK('Senegal 2011'!$F$70),\"\",'Senegal 2011'!$F$70)","v":"Yes"},{"$f":"IF(ISBLANK('Senegal 2011'!$F$71),\"\",'Senegal 2011'!$F$71)","v":"Yes"},{"$f":"IF(ISBLANK('Senegal 2011'!$F$72),\"\",'Senegal 2011'!$F$72)","v":"Yes"},{"$f":"IF(ISBLANK('Senegal 2011'!$F$73),\"\",'Senegal 2011'!$F$73)","v":"Yes"},{"$f":"IF(ISBLANK('Senegal 2011'!$F$74),\"\",'Senegal 2011'!$F$74)","v":"Yes"},{"$f":"IF(ISBLANK('Senegal 2011'!$F$75),\"\",'Senegal 2011'!$F$75)","v":"Yes"},{"$f":"IF(ISBLANK('Senegal 2011'!$F$76),\"\",'Senegal 2011'!$F$76)","v":"Yes"},{"$f":"IF(ISBLANK('Senegal 2011'!$F$77),\"\",'Senegal 2011'!$F$77)","v":""},null,{"$f":"IF(ISBLANK('Senegal 2011'!$G$66),\"\",'Senegal 2011'!$G$66)","v":"Yes"},{"$f":"IF(ISBLANK('Senegal 2011'!$G$67),\"\",'Senegal 2011'!$G$67)","v":"Yes"},{"$f":"IF(ISBLANK('Senegal 2011'!$G$68),\"\",'Senegal 2011'!$G$68)","v":"Yes"},{"$f":"IF(ISBLANK('Senegal 2011'!$G$69),\"\",'Senegal 2011'!$G$69)","v":"Yes"},{"$f":"IF(ISBLANK('Senegal 2011'!$G$70),\"\",'Senegal 2011'!$G$70)","v":"Yes"},{"$f":"IF(ISBLANK('Senegal 2011'!$G$71),\"\",'Senegal 2011'!$G$71)","v":"Yes"},{"$f":"IF(ISBLANK('Senegal 2011'!$G$72),\"\",'Senegal 2011'!$G$72)","v":"Yes"},{"$f":"IF(ISBLANK('Senegal 2011'!$G$73),\"\",'Senegal 2011'!$G$73)","v":"Yes"},{"$f":"IF(ISBLANK('Senegal 2011'!$G$74),\"\",'Senegal 2011'!$G$74)","v":"No"},{"$f":"IF(ISBLANK('Senegal 2011'!$G$75),\"\",'Senegal 2011'!$G$75)","v":"No"},{"$f":"IF(ISBLANK('Senegal 2011'!$G$76),\"\",'Senegal 2011'!$G$76)","v":"Yes"},{"$f":"IF(ISBLANK('Senegal 2011'!$G$77),\"\",'Senegal 2011'!$G$77)","v":""},null,{"$f":"IF(ISBLANK('Senegal 2011'!$H$66),\"\",'Senegal 2011'!$H$66)","v":"Yes"},{"$f":"IF(ISBLANK('Senegal 2011'!$H$67),\"\",'Senegal 2011'!$H$67)","v":"Yes"},{"$f":"IF(ISBLANK('Senegal 2011'!$H$68),\"\",'Senegal 2011'!$H$68)","v":"Yes"},{"$f":"IF(ISBLANK('Senegal 2011'!$H$69),\"\",'Senegal 2011'!$H$69)","v":"Yes"},{"$f":"IF(ISBLANK('Senegal 2011'!$H$70),\"\",'Senegal 2011'!$H$70)","v":"Yes"},{"$f":"IF(ISBLANK('Senegal 2011'!$H$71),\"\",'Senegal 2011'!$H$71)","v":"Yes"},{"$f":"IF(ISBLANK('Senegal 2011'!$H$72),\"\",'Senegal 2011'!$H$72)","v":"Yes"},{"$f":"IF(ISBLANK('Senegal 2011'!$H$73),\"\",'Senegal 2011'!$H$73)","v":"Yes"},{"$f":"IF(ISBLANK('Senegal 2011'!$H$74),\"\",'Senegal 2011'!$H$74)","v":"No"},{"$f":"IF(ISBLANK('Senegal 2011'!$H$75),\"\",'Senegal 2011'!$H$75)","v":"No"},{"$f":"IF(ISBLANK('Senegal 2011'!$H$76),\"\",'Senegal 2011'!$H$76)","v":"No"},{"$f":"IF(ISBLANK('Senegal 2011'!$H$77),\"\",'Senegal 2011'!$H$77)","v":""},{"$f":"IF(ISBLANK('Senegal 2011'!$D$78),\"\",'Senegal 2011'!$D$78)","v":"CycleBeads are offered in non-profit private sector facilities and at the community level (health hut with CHW) supported by NGOs."},null,{"$f":"IF(ISBLANK('Senegal 2011'!$H$80),\"\",'Senegal 2011'!$H$80)","v":"Yes"},{"$f":"IF(ISBLANK('Senegal 2011'!$C$83),\"\",'Senegal 2011'!$C$83)","v":"Programme National de Developpement Sanitaire &                   Strategie Nationale de Securisation des Produits Contraceptifs"},{"$f":"IF(ISBLANK('Senegal 2011'!$D$83),\"\",'Senegal 2011'!$D$83)","v":"2009 - 2014                     2007 -2011"},{"$f":"IF(ISBLANK('Senegal 2011'!$F$83),\"\",'Senegal 2011'!$F$83)","v":"Yes"},{"$f":"IF(ISBLANK('Senegal 2011'!$G$83),\"\",'Senegal 2011'!$G$83)","v":"Yes"},{"$f":"IF(ISBLANK('Senegal 2011'!$F$84),\"\",'Senegal 2011'!$F$84)","v":"Yes"},{"$f":"IF(ISBLANK('Senegal 2011'!$E$85),\"\",'Senegal 2011'!$E$85)","v":"All sectors"},{"$f":"IF(ISBLANK('Senegal 2011'!$E$86),\"\",'Senegal 2011'!$E$86)","v":"For private sector - 20% duties for all methods. 18% VAT for IUD only. 2.7% for all goods entering in UEMOA area (Taxe commun à l'Importation), but the government can do a tax exemption for public sector. $0.16 to $1.10 fees in public sector."},{"$f":"IF(ISBLANK('Senegal 2011'!$H$87),\"\",'Senegal 2011'!$H$87)","v":"Yes"},{"$f":"IF(ISBLANK('Senegal 2011'!$D$88),\"\",'Senegal 2011'!$D$88)","v":"Advertising for specific brands of products is forbidden. Private doctors cannot prescribe and distribute drugs in the same premises. Pharmacists connot dispense most methods without a doctor's prescription. "},{"$f":"IF(ISBLANK('Senegal 2011'!$H$89),\"\",'Senegal 2011'!$H$89)","v":"Yes"},{"$f":"IF(ISBLANK('Senegal 2011'!$D$90),\"\",'Senegal 2011'!$D$90)","v":"1) Drug registration authorizing commercial distribution for private sector. 2) MOH/RH norms and protocols for public sector, NGOs, and social marketing. (The norms and protocols of RH services allow public sector, non-profit NGOs, and social marketing to prescribe and distribute at the same premises. [Private doctors and pharmacists aren't allowed to do both at the same premises; private doctors can prescribe and administer but cannot distribute. Pharmacists can distribute based on a prescription written by a doctor, nurse, or midwife but cannot administer.]) "},{"$f":"IF(ISBLANK('Senegal 2011'!$H$91),\"\",'Senegal 2011'!$H$91)","v":"Yes"},{"$f":"IF(ISBLANK('Senegal 2011'!$C$94),\"\",'Senegal 2011'!$C$94)","v":"Oral contraceptives"},{"$f":"IF(ISBLANK('Senegal 2011'!$E$94),\"\",'Senegal 2011'!$E$94)","v":"Doctors, nurses, and midwives, and now community health workers (CHWs) are allowed (as per the RH Norms and Protocols revised in August 2010)."},{"$f":"IF(ISBLANK('Senegal 2011'!$G$94),\"\",'Senegal 2011'!$G$94)","v":"Pharmacists cannot dispense without prescription. (Emergency contraception is available without a prescription in private pharmacies though.)"},{"$f":"IF(ISBLANK('Senegal 2011'!$C$95),\"\",'Senegal 2011'!$C$95)","v":"Implants and IUDs"},{"$f":"IF(ISBLANK('Senegal 2011'!$E$95),\"\",'Senegal 2011'!$E$95)","v":"Doctors, midwives and nurses are allowed."},{"$f":"IF(ISBLANK('Senegal 2011'!$G$95),\"\",'Senegal 2011'!$G$95)","v":"Private doctors can insert, but they cannot keep stock in their offices. Patients must procure from pharmacies. Pharmacists cannot dispense and cannot distribute without prescription. "},{"$f":"IF(ISBLANK('Senegal 2011'!$C$96),\"\",'Senegal 2011'!$C$96)","v":"Injectables"},{"$f":"IF(ISBLANK('Senegal 2011'!$E$96),\"\",'Senegal 2011'!$E$96)","v":"Doctors, nurses, and midwives, and now (as per the RH Norms and Protocols revised in August 2010), CHWs can provide FP injectables."},{"$f":"IF(ISBLANK('Senegal 2011'!$G$96),\"\",'Senegal 2011'!$G$96)","v":"Private doctors can administer injectables, but they cannot keep stock in their offices. Patients must procure from pharmacies. Pharmacists cannot dispense and cannot distribute without a prescription. "},null,{"$f":"IF(ISBLANK('Senegal 2011'!$D$99),\"\",'Senegal 2011'!$D$99)","v":"No"},{"$f":"IF(ISBLANK('Senegal 2011'!$E$99),\"\",'Senegal 2011'!$E$99)","v":""},{"$f":"IF(ISBLANK('Senegal 2011'!$H$99),\"\",'Senegal 2011'!$H$99)","v":""},{"$f":"IF(ISBLANK('Senegal 2011'!$D$100),\"\",'Senegal 2011'!$D$100)","v":"No"},{"$f":"IF(ISBLANK('Senegal 2011'!$E$100),\"\",'Senegal 2011'!$E$100)","v":""},{"$f":"IF(ISBLANK('Senegal 2011'!$H$100),\"\",'Senegal 2011'!$H$100)","v":""},{"$f":"IF(ISBLANK('Senegal 2011'!$D$101),\"\",'Senegal 2011'!$D$101)","v":"No"},{"$f":"IF(ISBLANK('Senegal 2011'!$E$101),\"\",'Senegal 2011'!$E$101)","v":""},{"$f":"IF(ISBLANK('Senegal 2011'!$H$101),\"\",'Senegal 2011'!$H$101)","v":""},null,{"$f":"IF(ISBLANK('Senegal 2011'!$G$104),\"\",'Senegal 2011'!$G$104)","v":"Yes"},{"$f":"IF(ISBLANK('Senegal 2011'!$G$105),\"\",'Senegal 2011'!$G$105)","v":"Yes"},{"$f":"IF(ISBLANK('Senegal 2011'!$G$106),\"\",'Senegal 2011'!$G$106)","v":"Yes"},{"$f":"IF(ISBLANK('Senegal 2011'!$D$107),\"\",'Senegal 2011'!$D$107)","v":"The local health committee determines who cannot afford to pay. There are no specific group exemptions."},null,{"$f":"IF(ISBLANK('Senegal 2011'!$G$109),\"\",'Senegal 2011'!$G$109)","v":"Yes"},{"$f":"IF(ISBLANK('Senegal 2011'!$G$110),\"\",'Senegal 2011'!$G$110)","v":"Yes"},{"$f":"IF(ISBLANK('Senegal 2011'!$G$111),\"\",'Senegal 2011'!$G$111)","v":"Yes"},{"$f":"IF(ISBLANK('Senegal 2011'!$G$112),\"\",'Senegal 2011'!$G$112)","v":"Yes"},{"$f":"IF(ISBLANK('Senegal 2011'!$G$113),\"\",'Senegal 2011'!$G$113)","v":"Yes"},{"$f":"IF(ISBLANK('Senegal 2011'!$G$114),\"\",'Senegal 2011'!$G$114)","v":"Yes"},{"$f":"IF(ISBLANK('Senegal 2011'!$G$115),\"\",'Senegal 2011'!$G$115)","v":"Yes"},{"$f":"IF(ISBLANK('Senegal 2011'!$G$116),\"\",'Senegal 2011'!$G$116)","v":"Yes"},{"$f":"IF(ISBLANK('Senegal 2011'!$G$117),\"\",'Senegal 2011'!$G$117)","v":"Yes"},{"$f":"IF(ISBLANK('Senegal 2011'!$G$118),\"\",'Senegal 2011'!$G$118)","v":"Yes"},{"$f":"IF(ISBLANK('Senegal 2011'!$F$119),\"\",'Senegal 2011'!$F$119)","v":"Spermicide"},{"$f":"IF(ISBLANK('Senegal 2011'!$F$120),\"\",'Senegal 2011'!$F$120)","v":"Updated in 2008"},{"$f":"IF(ISBLANK('Senegal 2011'!$D$121),\"\",'Senegal 2011'!$D$121)","v":"Liste Nationale des Medicaments Essentiels"},{"$f":"IF(ISBLANK('Senegal 2011'!$D$122),\"\",'Senegal 2011'!$D$122)","v":""},null,{"$f":"IF(ISBLANK('Senegal 2011'!$F$124),\"\",'Senegal 2011'!$F$124)","v":2007},{"$f":"IF(ISBLANK('Senegal 2011'!$G$125),\"\",'Senegal 2011'!$G$125)","v":"Yes"},{"$f":"IF(ISBLANK('Senegal 2011'!$G$126),\"\",'Senegal 2011'!$G$126)","v":"No"},{"$f":"IF(ISBLANK('Senegal 2011'!$G$127),\"\",'Senegal 2011'!$G$127)","v":"No"},{"$f":"IF(ISBLANK('Senegal 2011'!$G$128),\"\",'Senegal 2011'!$G$128)","v":"No"},{"$f":"IF(ISBLANK('Senegal 2011'!$D$129),\"\",'Senegal 2011'!$D$129)","v":"USAID & partners have been trying to incorporate CPR and FP as key areas for inclusion in the PRSP."},null,{"$f":"IF(ISBLANK('Senegal 2011'!$G$131),\"\",'Senegal 2011'!$G$131)","v":"No"},null,{"$f":"IF(ISBLANK('Senegal 2011'!$G$133),\"\",'Senegal 2011'!$G$133)","v":"No"},{"$f":"IF(ISBLANK('Senegal 2011'!$G$134),\"\",'Senegal 2011'!$G$134)","v":"No"},{"$f":"IF(ISBLANK('Senegal 2011'!$G$135),\"\",'Senegal 2011'!$G$135)","v":"No"},{"$f":"IF(ISBLANK('Senegal 2011'!$G$136),\"\",'Senegal 2011'!$G$136)","v":"No"},{"$f":"IF(ISBLANK('Senegal 2011'!$G$137),\"\",'Senegal 2011'!$G$137)","v":"No"},{"$f":"IF(ISBLANK('Senegal 2011'!$G$138),\"\",'Senegal 2011'!$G$138)","v":"No"},{"$f":"IF(ISBLANK('Senegal 2011'!$G$139),\"\",'Senegal 2011'!$G$139)","v":"No"},{"$f":"IF(ISBLANK('Senegal 2011'!$G$140),\"\",'Senegal 2011'!$G$140)","v":"No"},{"$f":"IF(ISBLANK('Senegal 2011'!$G$141),\"\",'Senegal 2011'!$G$141)","v":"No"},{"$f":"IF(ISBLANK('Senegal 2011'!$F$142),\"\",'Senegal 2011'!$F$142)","v":"01/10-12/10"},{"$f":"IF(ISBLANK('Senegal 2011'!$F$143),\"\",'Senegal 2011'!$F$143)","v":"CPTs, Logistics management information system and reports"},null,{"$f":"IF(ISBLANK('Senegal 2011'!$G$145),\"\",'Senegal 2011'!$G$145)","v":"Yes"},{"$f":"IF(ISBLANK('Senegal 2011'!$G$146),\"\",'Senegal 2011'!$G$146)","v":"No"},{"$f":"IF(ISBLANK('Senegal 2011'!$D$147),\"\",'Senegal 2011'!$D$147)","v":"Government funding is not yet sufficient and thus contraceptive security is unsustainable. For many years, contraceptive procurement has been supported by USAID and UNFPA. Intense advocacy continues with the MOH for public resources to be mobilized for contraceptive procurement. Unfortunately this has not yet happened despite an effective increase of the RH budget (by more than 50%). While there are no stockouts at the central level, smaller health posts and health centers continue to be plagued with stockouts. Also, the MOH has room to improve in contraceptive supply chain management at the central level. "},"Africa"]
["South Sudan ",null,{"$f":"IF(ISBLANK('S. Sudan 2011'!$H$12),\"\",'S. Sudan 2011'!$H$12)","v":"No"},{"$f":"IF(ISBLANK('S. Sudan 2011'!$D$13),\"\",'S. Sudan 2011'!$D$13)","v":"N/A"},null,{"$f":"IF(ISBLANK('S. Sudan 2011'!$D$15),\"\",'S. Sudan 2011'!$D$15)","v":"N/A"},{"$f":"IF(ISBLANK('S. Sudan 2011'!$F$15),\"\",'S. Sudan 2011'!$F$15)","v":""},{"$f":"IF(ISBLANK('S. Sudan 2011'!$D$16),\"\",'S. Sudan 2011'!$D$16)","v":"N/A"},{"$f":"IF(ISBLANK('S. Sudan 2011'!$F$16),\"\",'S. Sudan 2011'!$F$16)","v":""},{"$f":"IF(ISBLANK('S. Sudan 2011'!$D$17),\"\",'S. Sudan 2011'!$D$17)","v":"N/A"},{"$f":"IF(ISBLANK('S. Sudan 2011'!$F$17),\"\",'S. Sudan 2011'!$F$17)","v":""},{"$f":"IF(ISBLANK('S. Sudan 2011'!$D$18),\"\",'S. Sudan 2011'!$D$18)","v":"N/A"},{"$f":"IF(ISBLANK('S. Sudan 2011'!$F$18),\"\",'S. Sudan 2011'!$F$18)","v":""},{"$f":"IF(ISBLANK('S. Sudan 2011'!$D$19),\"\",'S. Sudan 2011'!$D$19)","v":"N/A"},{"$f":"IF(ISBLANK('S. Sudan 2011'!$F$19),\"\",'S. Sudan 2011'!$F$19)","v":""},{"$f":"IF(ISBLANK('S. Sudan 2011'!$D$20),\"\",'S. Sudan 2011'!$D$20)","v":"N/A"},{"$f":"IF(ISBLANK('S. Sudan 2011'!$F$20),\"\",'S. Sudan 2011'!$F$20)","v":""},{"$f":"IF(ISBLANK('S. Sudan 2011'!$D$21),\"\",'S. Sudan 2011'!$D$21)","v":"N/A"},{"$f":"IF(ISBLANK('S. Sudan 2011'!$F$21),\"\",'S. Sudan 2011'!$F$21)","v":""},{"$f":"IF(ISBLANK('S. Sudan 2011'!$D$22),\"\",'S. Sudan 2011'!$D$22)","v":"N/A"},{"$f":"IF(ISBLANK('S. Sudan 2011'!$F$22),\"\",'S. Sudan 2011'!$F$22)","v":""},{"$f":"IF(ISBLANK('S. Sudan 2011'!$D$23),\"\",'S. Sudan 2011'!$D$23)","v":"N/A"},{"$f":"IF(ISBLANK('S. Sudan 2011'!$F$23),\"\",'S. Sudan 2011'!$F$23)","v":""},{"$f":"IF(ISBLANK('S. Sudan 2011'!$H$24),\"\",'S. Sudan 2011'!$H$24)","v":"N/A"},{"$f":"IF(ISBLANK('S. Sudan 2011'!$H$25),\"\",'S. Sudan 2011'!$H$25)","v":"N/A"},{"$f":"IF(ISBLANK('S. Sudan 2011'!$D$26),\"\",'S. Sudan 2011'!$D$26)","v":"No"},{"$f":"IF(ISBLANK('S. Sudan 2011'!$F$26),\"\",'S. Sudan 2011'!$F$26)","v":""},{"$f":"IF(ISBLANK('S. Sudan 2011'!$H$26),\"\",'S. Sudan 2011'!$H$26)","v":""},null,{"$f":"IF(ISBLANK('S. Sudan 2011'!$F$28),\"\",'S. Sudan 2011'!$F$28)","v":"January"},{"$f":"IF(ISBLANK('S. Sudan 2011'!$H$28),\"\",'S. Sudan 2011'!$H$28)","v":"December"},{"$f":"IF(ISBLANK('S. Sudan 2011'!$G$29),\"\",'S. Sudan 2011'!$G$29)","v":"N/A"},{"$f":"IF(ISBLANK('S. Sudan 2011'!$E$30),\"\",'S. Sudan 2011'!$E$30)","v":"N/A - none have been conducted "},{"$f":"IF(ISBLANK('S. Sudan 2011'!$G$30),\"\",'S. Sudan 2011'!$G$30)","v":"N/A"},{"$f":"IF(ISBLANK('S. Sudan 2011'!$H$31),\"\",'S. Sudan 2011'!$H$31)","v":"No"},{"$f":"IF(ISBLANK('S. Sudan 2011'!$H$32),\"\",'S. Sudan 2011'!$H$32)","v":"No"},{"$f":"IF(ISBLANK('S. Sudan 2011'!$E$35),\"\",'S. Sudan 2011'!$E$35)","v":0},{"$f":"IF(ISBLANK('S. Sudan 2011'!$F$35),\"\",'S. Sudan 2011'!$F$35)","v":"01/10-12/10"},{"$f":"IF(ISBLANK('S. Sudan 2011'!$G$35),\"\",'S. Sudan 2011'!$G$35)","v":""},{"$f":"IF(ISBLANK('S. Sudan 2011'!$H$35),\"\",'S. Sudan 2011'!$H$35)","v":""},{"$f":"IF(ISBLANK('S. Sudan 2011'!$H$37),\"\",'S. Sudan 2011'!$H$37)","v":"No"},{"$f":"IF(ISBLANK('S. Sudan 2011'!$D$40),\"\",'S. Sudan 2011'!$D$40)","v":"No"},{"$f":"IF(ISBLANK('S. Sudan 2011'!$D$41),\"\",'S. Sudan 2011'!$D$41)","v":"N/A"},{"$f":"IF(ISBLANK('S. Sudan 2011'!$E$40),\"\",'S. Sudan 2011'!$E$40)","v":0},{"$f":"IF(ISBLANK('S. Sudan 2011'!$F$40),\"\",'S. Sudan 2011'!$F$40)","v":"01/10-12/10"},{"$f":"IF(ISBLANK('S. Sudan 2011'!$G$40),\"\",'S. Sudan 2011'!$G$40)","v":""},{"$f":"IF(ISBLANK('S. Sudan 2011'!$H$40),\"\",'S. Sudan 2011'!$H$40)","v":""},{"$f":"IF(ISBLANK('S. Sudan 2011'!$D$42),\"\",'S. Sudan 2011'!$D$42)","v":"No"},{"$f":"IF(ISBLANK('S. Sudan 2011'!$D$43),\"\",'S. Sudan 2011'!$D$43)","v":"N/A"},{"$f":"IF(ISBLANK('S. Sudan 2011'!$E$42),\"\",'S. Sudan 2011'!$E$42)","v":0},{"$f":"IF(ISBLANK('S. Sudan 2011'!$F$42),\"\",'S. Sudan 2011'!$F$42)","v":"01/10-12/10"},{"$f":"IF(ISBLANK('S. Sudan 2011'!$G$42),\"\",'S. Sudan 2011'!$G$42)","v":""},{"$f":"IF(ISBLANK('S. Sudan 2011'!$H$42),\"\",'S. Sudan 2011'!$H$42)","v":""},{"$f":"IF(ISBLANK('S. Sudan 2011'!$E$44),\"\",'S. Sudan 2011'!$E$44)","v":0},{"$f":"IF(ISBLANK('S. Sudan 2011'!$H$44),\"\",'S. Sudan 2011'!$H$44)","v":"The government of South Sudan (GOSS) has not procured contraceptives at all in the past."},null,{"$f":"IF(ISBLANK('S. Sudan 2011'!$D$48),\"\",'S. Sudan 2011'!$D$48)","v":"Don't know"},{"$f":"IF(ISBLANK('S. Sudan 2011'!$D$49),\"\",'S. Sudan 2011'!$D$49)","v":"Don't know"},{"$f":"IF(ISBLANK('S. Sudan 2011'!$E$48),\"\",'S. Sudan 2011'!$E$48)","v":"Don't know"},{"$f":"IF(ISBLANK('S. Sudan 2011'!$F$48),\"\",'S. Sudan 2011'!$F$48)","v":"01/10-12/10"},{"$f":"IF(ISBLANK('S. Sudan 2011'!$G$48),\"\",'S. Sudan 2011'!$G$48)","v":""},{"$f":"IF(ISBLANK('S. Sudan 2011'!$H$48),\"\",'S. Sudan 2011'!$H$48)","v":""},{"$f":"IF(ISBLANK('S. Sudan 2011'!$D$50),\"\",'S. Sudan 2011'!$D$50)","v":"Don't know"},{"$f":"IF(ISBLANK('S. Sudan 2011'!$E$50),\"\",'S. Sudan 2011'!$E$50)","v":"Don't know"},{"$f":"IF(ISBLANK('S. Sudan 2011'!$F$50),\"\",'S. Sudan 2011'!$F$50)","v":"01/10-12/10"},{"$f":"IF(ISBLANK('S. Sudan 2011'!$G$50),\"\",'S. Sudan 2011'!$G$50)","v":""},{"$f":"IF(ISBLANK('S. Sudan 2011'!$H$50),\"\",'S. Sudan 2011'!$H$50)","v":""},{"$f":"IF(ISBLANK('S. Sudan 2011'!$D$51),\"\",'S. Sudan 2011'!$D$51)","v":"No"},{"$f":"IF(ISBLANK('S. Sudan 2011'!$E$51),\"\",'S. Sudan 2011'!$E$51)","v":0},{"$f":"IF(ISBLANK('S. Sudan 2011'!$F$51),\"\",'S. Sudan 2011'!$F$51)","v":"01/10-12/10"},{"$f":"IF(ISBLANK('S. Sudan 2011'!$G$51),\"\",'S. Sudan 2011'!$G$51)","v":""},{"$f":"IF(ISBLANK('S. Sudan 2011'!$H$51),\"\",'S. Sudan 2011'!$H$51)","v":""},{"$f":"IF(ISBLANK('S. Sudan 2011'!$E$52),\"\",'S. Sudan 2011'!$E$52)","v":"Don't know"},{"$f":"IF(ISBLANK('S. Sudan 2011'!$H$52),\"\",'S. Sudan 2011'!$H$52)","v":""},{"$f":"IF(ISBLANK('S. Sudan 2011'!$F$55),\"\",'S. Sudan 2011'!$F$55)","v":"Don't know"},{"$f":"IF(ISBLANK('S. Sudan 2011'!$G$55),\"\",'S. Sudan 2011'!$G$55)","v":""},{"$f":"IF(ISBLANK('S. Sudan 2011'!$F$56),\"\",'S. Sudan 2011'!$F$56)","v":"Don't know"},{"$f":"IF(ISBLANK('S. Sudan 2011'!$G$56),\"\",'S. Sudan 2011'!$G$56)","v":""},{"$f":"IF(ISBLANK('S. Sudan 2011'!$F$57),\"\",'S. Sudan 2011'!$F$57)","v":"Don't know"},{"$f":"IF(ISBLANK('S. Sudan 2011'!$G$57),\"\",'S. Sudan 2011'!$G$57)","v":""},{"$f":"IF(ISBLANK('S. Sudan 2011'!$F$59),\"\",'S. Sudan 2011'!$F$59)","v":"N/A"},{"$f":"IF(ISBLANK('S. Sudan 2011'!$F$60),\"\",'S. Sudan 2011'!$F$60)","v":"N/A"},{"$f":"IF(ISBLANK('S. Sudan 2011'!$F$61),\"\",'S. Sudan 2011'!$F$61)","v":"N/A"},{"$f":"IF(ISBLANK('S. Sudan 2011'!$D$62),\"\",'S. Sudan 2011'!$D$62)","v":""},null,null,{"$f":"IF(ISBLANK('S. Sudan 2011'!$D$66),\"\",'S. Sudan 2011'!$D$66)","v":"Don't know"},{"$f":"IF(ISBLANK('S. Sudan 2011'!$D$67),\"\",'S. Sudan 2011'!$D$67)","v":"Don't know"},{"$f":"IF(ISBLANK('S. Sudan 2011'!$D$68),\"\",'S. Sudan 2011'!$D$68)","v":"Don't know"},{"$f":"IF(ISBLANK('S. Sudan 2011'!$D$69),\"\",'S. Sudan 2011'!$D$69)","v":"Don't know"},{"$f":"IF(ISBLANK('S. Sudan 2011'!$D$70),\"\",'S. Sudan 2011'!$D$70)","v":"Don't know"},{"$f":"IF(ISBLANK('S. Sudan 2011'!$D$71),\"\",'S. Sudan 2011'!$D$71)","v":"Yes"},{"$f":"IF(ISBLANK('S. Sudan 2011'!$D$72),\"\",'S. Sudan 2011'!$D$72)","v":"Don't know"},{"$f":"IF(ISBLANK('S. Sudan 2011'!$D$73),\"\",'S. Sudan 2011'!$D$73)","v":"Don't know"},{"$f":"IF(ISBLANK('S. Sudan 2011'!$D$74),\"\",'S. Sudan 2011'!$D$74)","v":"No"},{"$f":"IF(ISBLANK('S. Sudan 2011'!$D$75),\"\",'S. Sudan 2011'!$D$75)","v":"No"},{"$f":"IF(ISBLANK('S. Sudan 2011'!$D$76),\"\",'S. Sudan 2011'!$D$76)","v":"Don't know"},{"$f":"IF(ISBLANK('S. Sudan 2011'!$D$77),\"\",'S. Sudan 2011'!$D$77)","v":""},null,{"$f":"IF(ISBLANK('S. Sudan 2011'!$F$66),\"\",'S. Sudan 2011'!$F$66)","v":"Don't know"},{"$f":"IF(ISBLANK('S. Sudan 2011'!$F$67),\"\",'S. Sudan 2011'!$F$67)","v":"Don't know"},{"$f":"IF(ISBLANK('S. Sudan 2011'!$F$68),\"\",'S. Sudan 2011'!$F$68)","v":"Don't know"},{"$f":"IF(ISBLANK('S. Sudan 2011'!$F$69),\"\",'S. Sudan 2011'!$F$69)","v":"Don't know"},{"$f":"IF(ISBLANK('S. Sudan 2011'!$F$70),\"\",'S. Sudan 2011'!$F$70)","v":"Don't know"},{"$f":"IF(ISBLANK('S. Sudan 2011'!$F$71),\"\",'S. Sudan 2011'!$F$71)","v":"Yes"},{"$f":"IF(ISBLANK('S. Sudan 2011'!$F$72),\"\",'S. Sudan 2011'!$F$72)","v":"Don't know"},{"$f":"IF(ISBLANK('S. Sudan 2011'!$F$73),\"\",'S. Sudan 2011'!$F$73)","v":"Don't know"},{"$f":"IF(ISBLANK('S. Sudan 2011'!$F$74),\"\",'S. Sudan 2011'!$F$74)","v":"No"},{"$f":"IF(ISBLANK('S. Sudan 2011'!$F$75),\"\",'S. Sudan 2011'!$F$75)","v":"No"},{"$f":"IF(ISBLANK('S. Sudan 2011'!$F$76),\"\",'S. Sudan 2011'!$F$76)","v":"Don't know"},{"$f":"IF(ISBLANK('S. Sudan 2011'!$F$77),\"\",'S. Sudan 2011'!$F$77)","v":""},null,{"$f":"IF(ISBLANK('S. Sudan 2011'!$G$66),\"\",'S. Sudan 2011'!$G$66)","v":"Yes"},{"$f":"IF(ISBLANK('S. Sudan 2011'!$G$67),\"\",'S. Sudan 2011'!$G$67)","v":"Yes"},{"$f":"IF(ISBLANK('S. Sudan 2011'!$G$68),\"\",'S. Sudan 2011'!$G$68)","v":"Yes"},{"$f":"IF(ISBLANK('S. Sudan 2011'!$G$69),\"\",'S. Sudan 2011'!$G$69)","v":"No"},{"$f":"IF(ISBLANK('S. Sudan 2011'!$G$70),\"\",'S. Sudan 2011'!$G$70)","v":"No"},{"$f":"IF(ISBLANK('S. Sudan 2011'!$G$71),\"\",'S. Sudan 2011'!$G$71)","v":"Yes"},{"$f":"IF(ISBLANK('S. Sudan 2011'!$G$72),\"\",'S. Sudan 2011'!$G$72)","v":"Yes"},{"$f":"IF(ISBLANK('S. Sudan 2011'!$G$73),\"\",'S. Sudan 2011'!$G$73)","v":"No"},{"$f":"IF(ISBLANK('S. Sudan 2011'!$G$74),\"\",'S. Sudan 2011'!$G$74)","v":"No"},{"$f":"IF(ISBLANK('S. Sudan 2011'!$G$75),\"\",'S. Sudan 2011'!$G$75)","v":"No"},{"$f":"IF(ISBLANK('S. Sudan 2011'!$G$76),\"\",'S. Sudan 2011'!$G$76)","v":"Yes"},{"$f":"IF(ISBLANK('S. Sudan 2011'!$G$77),\"\",'S. Sudan 2011'!$G$77)","v":""},null,{"$f":"IF(ISBLANK('S. Sudan 2011'!$H$66),\"\",'S. Sudan 2011'!$H$66)","v":"No"},{"$f":"IF(ISBLANK('S. Sudan 2011'!$H$67),\"\",'S. Sudan 2011'!$H$67)","v":"No"},{"$f":"IF(ISBLANK('S. Sudan 2011'!$H$68),\"\",'S. Sudan 2011'!$H$68)","v":"No"},{"$f":"IF(ISBLANK('S. Sudan 2011'!$H$69),\"\",'S. Sudan 2011'!$H$69)","v":"No"},{"$f":"IF(ISBLANK('S. Sudan 2011'!$H$70),\"\",'S. Sudan 2011'!$H$70)","v":"No"},{"$f":"IF(ISBLANK('S. Sudan 2011'!$H$71),\"\",'S. Sudan 2011'!$H$71)","v":"Yes"},{"$f":"IF(ISBLANK('S. Sudan 2011'!$H$72),\"\",'S. Sudan 2011'!$H$72)","v":"No"},{"$f":"IF(ISBLANK('S. Sudan 2011'!$H$73),\"\",'S. Sudan 2011'!$H$73)","v":"No"},{"$f":"IF(ISBLANK('S. Sudan 2011'!$H$74),\"\",'S. Sudan 2011'!$H$74)","v":"No"},{"$f":"IF(ISBLANK('S. Sudan 2011'!$H$75),\"\",'S. Sudan 2011'!$H$75)","v":"No"},{"$f":"IF(ISBLANK('S. Sudan 2011'!$H$76),\"\",'S. Sudan 2011'!$H$76)","v":"No"},{"$f":"IF(ISBLANK('S. Sudan 2011'!$H$77),\"\",'S. Sudan 2011'!$H$77)","v":""},{"$f":"IF(ISBLANK('S. Sudan 2011'!$D$78),\"\",'S. Sudan 2011'!$D$78)","v":"There is no clear Government of South Sudan policy on long-lasting permanent methods. "},null,{"$f":"IF(ISBLANK('S. Sudan 2011'!$H$80),\"\",'S. Sudan 2011'!$H$80)","v":"No"},{"$f":"IF(ISBLANK('S. Sudan 2011'!$C$83),\"\",'S. Sudan 2011'!$C$83)","v":""},{"$f":"IF(ISBLANK('S. Sudan 2011'!$D$83),\"\",'S. Sudan 2011'!$D$83)","v":""},{"$f":"IF(ISBLANK('S. Sudan 2011'!$F$83),\"\",'S. Sudan 2011'!$F$83)","v":""},{"$f":"IF(ISBLANK('S. Sudan 2011'!$G$83),\"\",'S. Sudan 2011'!$G$83)","v":""},{"$f":"IF(ISBLANK('S. Sudan 2011'!$F$84),\"\",'S. Sudan 2011'!$F$84)","v":"No"},{"$f":"IF(ISBLANK('S. Sudan 2011'!$E$85),\"\",'S. Sudan 2011'!$E$85)","v":"N/A"},{"$f":"IF(ISBLANK('S. Sudan 2011'!$E$86),\"\",'S. Sudan 2011'!$E$86)","v":"N/A"},{"$f":"IF(ISBLANK('S. Sudan 2011'!$H$87),\"\",'S. Sudan 2011'!$H$87)","v":"No"},{"$f":"IF(ISBLANK('S. Sudan 2011'!$D$88),\"\",'S. Sudan 2011'!$D$88)","v":"N/A"},{"$f":"IF(ISBLANK('S. Sudan 2011'!$H$89),\"\",'S. Sudan 2011'!$H$89)","v":"Yes"},{"$f":"IF(ISBLANK('S. Sudan 2011'!$D$90),\"\",'S. Sudan 2011'!$D$90)","v":"The family planning policy and the FP guidelines for service providers present Government of South Sudan support for family planning service delivery."},{"$f":"IF(ISBLANK('S. Sudan 2011'!$H$91),\"\",'S. Sudan 2011'!$H$91)","v":"No"},{"$f":"IF(ISBLANK('S. Sudan 2011'!$C$94),\"\",'S. Sudan 2011'!$C$94)","v":""},{"$f":"IF(ISBLANK('S. Sudan 2011'!$E$94),\"\",'S. Sudan 2011'!$E$94)","v":""},{"$f":"IF(ISBLANK('S. Sudan 2011'!$G$94),\"\",'S. Sudan 2011'!$G$94)","v":""},{"$f":"IF(ISBLANK('S. Sudan 2011'!$C$95),\"\",'S. Sudan 2011'!$C$95)","v":""},{"$f":"IF(ISBLANK('S. Sudan 2011'!$E$95),\"\",'S. Sudan 2011'!$E$95)","v":""},{"$f":"IF(ISBLANK('S. Sudan 2011'!$G$95),\"\",'S. Sudan 2011'!$G$95)","v":""},{"$f":"IF(ISBLANK('S. Sudan 2011'!$C$96),\"\",'S. Sudan 2011'!$C$96)","v":""},{"$f":"IF(ISBLANK('S. Sudan 2011'!$E$96),\"\",'S. Sudan 2011'!$E$96)","v":""},{"$f":"IF(ISBLANK('S. Sudan 2011'!$G$96),\"\",'S. Sudan 2011'!$G$96)","v":""},null,{"$f":"IF(ISBLANK('S. Sudan 2011'!$D$99),\"\",'S. Sudan 2011'!$D$99)","v":"No"},{"$f":"IF(ISBLANK('S. Sudan 2011'!$E$99),\"\",'S. Sudan 2011'!$E$99)","v":""},{"$f":"IF(ISBLANK('S. Sudan 2011'!$H$99),\"\",'S. Sudan 2011'!$H$99)","v":""},{"$f":"IF(ISBLANK('S. Sudan 2011'!$D$100),\"\",'S. Sudan 2011'!$D$100)","v":"No"},{"$f":"IF(ISBLANK('S. Sudan 2011'!$E$100),\"\",'S. Sudan 2011'!$E$100)","v":""},{"$f":"IF(ISBLANK('S. Sudan 2011'!$H$100),\"\",'S. Sudan 2011'!$H$100)","v":""},{"$f":"IF(ISBLANK('S. Sudan 2011'!$D$101),\"\",'S. Sudan 2011'!$D$101)","v":"No"},{"$f":"IF(ISBLANK('S. Sudan 2011'!$E$101),\"\",'S. Sudan 2011'!$E$101)","v":""},{"$f":"IF(ISBLANK('S. Sudan 2011'!$H$101),\"\",'S. Sudan 2011'!$H$101)","v":""},null,{"$f":"IF(ISBLANK('S. Sudan 2011'!$G$104),\"\",'S. Sudan 2011'!$G$104)","v":"No"},{"$f":"IF(ISBLANK('S. Sudan 2011'!$G$105),\"\",'S. Sudan 2011'!$G$105)","v":"No"},{"$f":"IF(ISBLANK('S. Sudan 2011'!$G$106),\"\",'S. Sudan 2011'!$G$106)","v":"N/A"},{"$f":"IF(ISBLANK('S. Sudan 2011'!$D$107),\"\",'S. Sudan 2011'!$D$107)","v":"N/A"},null,{"$f":"IF(ISBLANK('S. Sudan 2011'!$G$109),\"\",'S. Sudan 2011'!$G$109)","v":"Yes"},{"$f":"IF(ISBLANK('S. Sudan 2011'!$G$110),\"\",'S. Sudan 2011'!$G$110)","v":"Yes"},{"$f":"IF(ISBLANK('S. Sudan 2011'!$G$111),\"\",'S. Sudan 2011'!$G$111)","v":"Yes"},{"$f":"IF(ISBLANK('S. Sudan 2011'!$G$112),\"\",'S. Sudan 2011'!$G$112)","v":"Yes"},{"$f":"IF(ISBLANK('S. Sudan 2011'!$G$113),\"\",'S. Sudan 2011'!$G$113)","v":"Yes"},{"$f":"IF(ISBLANK('S. Sudan 2011'!$G$114),\"\",'S. Sudan 2011'!$G$114)","v":"Yes"},{"$f":"IF(ISBLANK('S. Sudan 2011'!$G$115),\"\",'S. Sudan 2011'!$G$115)","v":"Yes"},{"$f":"IF(ISBLANK('S. Sudan 2011'!$G$116),\"\",'S. Sudan 2011'!$G$116)","v":"Yes"},{"$f":"IF(ISBLANK('S. Sudan 2011'!$G$117),\"\",'S. Sudan 2011'!$G$117)","v":"No"},{"$f":"IF(ISBLANK('S. Sudan 2011'!$G$118),\"\",'S. Sudan 2011'!$G$118)","v":"No"},{"$f":"IF(ISBLANK('S. Sudan 2011'!$F$119),\"\",'S. Sudan 2011'!$F$119)","v":"N/A"},{"$f":"IF(ISBLANK('S. Sudan 2011'!$F$120),\"\",'S. Sudan 2011'!$F$120)","v":2006},{"$f":"IF(ISBLANK('S. Sudan 2011'!$D$121),\"\",'S. Sudan 2011'!$D$121)","v":"Essential medicines list for South Sudan"},{"$f":"IF(ISBLANK('S. Sudan 2011'!$D$122),\"\",'S. Sudan 2011'!$D$122)","v":""},null,{"$f":"IF(ISBLANK('S. Sudan 2011'!$F$124),\"\",'S. Sudan 2011'!$F$124)","v":"N/A"},{"$f":"IF(ISBLANK('S. Sudan 2011'!$G$125),\"\",'S. Sudan 2011'!$G$125)","v":"N/A"},{"$f":"IF(ISBLANK('S. Sudan 2011'!$G$126),\"\",'S. Sudan 2011'!$G$126)","v":"N/A"},{"$f":"IF(ISBLANK('S. Sudan 2011'!$G$127),\"\",'S. Sudan 2011'!$G$127)","v":"N/A"},{"$f":"IF(ISBLANK('S. Sudan 2011'!$G$128),\"\",'S. Sudan 2011'!$G$128)","v":"N/A"},{"$f":"IF(ISBLANK('S. Sudan 2011'!$D$129),\"\",'S. Sudan 2011'!$D$129)","v":"Document not available on IMF's website"},null,{"$f":"IF(ISBLANK('S. Sudan 2011'!$G$131),\"\",'S. Sudan 2011'!$G$131)","v":"N/A"},null,{"$f":"IF(ISBLANK('S. Sudan 2011'!$G$133),\"\",'S. Sudan 2011'!$G$133)","v":"N/A"},{"$f":"IF(ISBLANK('S. Sudan 2011'!$G$134),\"\",'S. Sudan 2011'!$G$134)","v":"N/A"},{"$f":"IF(ISBLANK('S. Sudan 2011'!$G$135),\"\",'S. Sudan 2011'!$G$135)","v":"N/A"},{"$f":"IF(ISBLANK('S. Sudan 2011'!$G$136),\"\",'S. Sudan 2011'!$G$136)","v":"N/A"},{"$f":"IF(ISBLANK('S. Sudan 2011'!$G$137),\"\",'S. Sudan 2011'!$G$137)","v":"N/A"},{"$f":"IF(ISBLANK('S. Sudan 2011'!$G$138),\"\",'S. Sudan 2011'!$G$138)","v":"N/A"},{"$f":"IF(ISBLANK('S. Sudan 2011'!$G$139),\"\",'S. Sudan 2011'!$G$139)","v":"N/A"},{"$f":"IF(ISBLANK('S. Sudan 2011'!$G$140),\"\",'S. Sudan 2011'!$G$140)","v":"N/A"},{"$f":"IF(ISBLANK('S. Sudan 2011'!$G$141),\"\",'S. Sudan 2011'!$G$141)","v":"N/A"},{"$f":"IF(ISBLANK('S. Sudan 2011'!$F$142),\"\",'S. Sudan 2011'!$F$142)","v":"N/A"},{"$f":"IF(ISBLANK('S. Sudan 2011'!$F$143),\"\",'S. Sudan 2011'!$F$143)","v":"N/A"},null,{"$f":"IF(ISBLANK('S. Sudan 2011'!$G$145),\"\",'S. Sudan 2011'!$G$145)","v":"Don't know"},{"$f":"IF(ISBLANK('S. Sudan 2011'!$G$146),\"\",'S. Sudan 2011'!$G$146)","v":"N/A"},{"$f":"IF(ISBLANK('S. Sudan 2011'!$D$147),\"\",'S. Sudan 2011'!$D$147)","v":"There is no line item in the government health budget for contraceptives, thus the government does not procure contraceptives. "},"Africa"]
["Tanzania ",null,{"$f":"IF(ISBLANK('Tanzania 2011'!$H$12),\"\",'Tanzania 2011'!$H$12)","v":"Yes"},{"$f":"IF(ISBLANK('Tanzania 2011'!$D$13),\"\",'Tanzania 2011'!$D$13)","v":"National Contraceptive Committee"},null,{"$f":"IF(ISBLANK('Tanzania 2011'!$D$15),\"\",'Tanzania 2011'!$D$15)","v":"Yes"},{"$f":"IF(ISBLANK('Tanzania 2011'!$F$15),\"\",'Tanzania 2011'!$F$15)","v":"Tanzania Marketing and Communications for AIDS, Reproductive Health and Child Survival (T-MARC) project, Population Services International (PSI)"},{"$f":"IF(ISBLANK('Tanzania 2011'!$D$16),\"\",'Tanzania 2011'!$D$16)","v":"Yes"},{"$f":"IF(ISBLANK('Tanzania 2011'!$F$16),\"\",'Tanzania 2011'!$F$16)","v":"John Snow, Inc. (JSI), EngenderHealth, ChamaCha Uzazi na Malezi Bora Tanzania (UMATI) - IPPF affiliate, Marie Stopes, Pathfinder"},{"$f":"IF(ISBLANK('Tanzania 2011'!$D$17),\"\",'Tanzania 2011'!$D$17)","v":"Yes"},{"$f":"IF(ISBLANK('Tanzania 2011'!$F$17),\"\",'Tanzania 2011'!$F$17)","v":"World Wide Movers (Agility's local rep)"},{"$f":"IF(ISBLANK('Tanzania 2011'!$D$18),\"\",'Tanzania 2011'!$D$18)","v":"Yes"},{"$f":"IF(ISBLANK('Tanzania 2011'!$F$18),\"\",'Tanzania 2011'!$F$18)","v":"USAID, DFID"},{"$f":"IF(ISBLANK('Tanzania 2011'!$D$19),\"\",'Tanzania 2011'!$D$19)","v":"Yes"},{"$f":"IF(ISBLANK('Tanzania 2011'!$F$19),\"\",'Tanzania 2011'!$F$19)","v":"UNFPA"},{"$f":"IF(ISBLANK('Tanzania 2011'!$D$20),\"\",'Tanzania 2011'!$D$20)","v":"Yes"},{"$f":"IF(ISBLANK('Tanzania 2011'!$F$20),\"\",'Tanzania 2011'!$F$20)","v":"Reproductive and Child Health Service (RCHS), National AIDS Control Programme (NACP)"},{"$f":"IF(ISBLANK('Tanzania 2011'!$D$21),\"\",'Tanzania 2011'!$D$21)","v":"Yes"},{"$f":"IF(ISBLANK('Tanzania 2011'!$F$21),\"\",'Tanzania 2011'!$F$21)","v":"Medical Stores Department (MSD)"},{"$f":"IF(ISBLANK('Tanzania 2011'!$D$22),\"\",'Tanzania 2011'!$D$22)","v":"No"},{"$f":"IF(ISBLANK('Tanzania 2011'!$F$22),\"\",'Tanzania 2011'!$F$22)","v":""},{"$f":"IF(ISBLANK('Tanzania 2011'!$D$23),\"\",'Tanzania 2011'!$D$23)","v":""},{"$f":"IF(ISBLANK('Tanzania 2011'!$F$23),\"\",'Tanzania 2011'!$F$23)","v":""},{"$f":"IF(ISBLANK('Tanzania 2011'!$H$24),\"\",'Tanzania 2011'!$H$24)","v":"1-2 times"},{"$f":"IF(ISBLANK('Tanzania 2011'!$H$25),\"\",'Tanzania 2011'!$H$25)","v":"No"},{"$f":"IF(ISBLANK('Tanzania 2011'!$D$26),\"\",'Tanzania 2011'!$D$26)","v":"Yes"},{"$f":"IF(ISBLANK('Tanzania 2011'!$F$26),\"\",'Tanzania 2011'!$F$26)","v":"Don't know"},{"$f":"IF(ISBLANK('Tanzania 2011'!$H$26),\"\",'Tanzania 2011'!$H$26)","v":"Don't know"},null,{"$f":"IF(ISBLANK('Tanzania 2011'!$F$28),\"\",'Tanzania 2011'!$F$28)","v":"July"},{"$f":"IF(ISBLANK('Tanzania 2011'!$H$28),\"\",'Tanzania 2011'!$H$28)","v":"June"},{"$f":"IF(ISBLANK('Tanzania 2011'!$G$29),\"\",'Tanzania 2011'!$G$29)","v":18748591},{"$f":"IF(ISBLANK('Tanzania 2011'!$E$30),\"\",'Tanzania 2011'!$E$30)","v":"03/11"},{"$f":"IF(ISBLANK('Tanzania 2011'!$G$30),\"\",'Tanzania 2011'!$G$30)","v":"JSI and Reproductive and Child Health Service"},{"$f":"IF(ISBLANK('Tanzania 2011'!$H$31),\"\",'Tanzania 2011'!$H$31)","v":"Yes"},{"$f":"IF(ISBLANK('Tanzania 2011'!$H$32),\"\",'Tanzania 2011'!$H$32)","v":"Yes"},{"$f":"IF(ISBLANK('Tanzania 2011'!$E$35),\"\",'Tanzania 2011'!$E$35)","v":2333333},{"$f":"IF(ISBLANK('Tanzania 2011'!$F$35),\"\",'Tanzania 2011'!$F$35)","v":"07/09-06/10"},{"$f":"IF(ISBLANK('Tanzania 2011'!$G$35),\"\",'Tanzania 2011'!$G$35)","v":"Ministry of Health (RCHS)"},{"$f":"IF(ISBLANK('Tanzania 2011'!$H$35),\"\",'Tanzania 2011'!$H$35)","v":""},{"$f":"IF(ISBLANK('Tanzania 2011'!$H$37),\"\",'Tanzania 2011'!$H$37)","v":"Yes"},{"$f":"IF(ISBLANK('Tanzania 2011'!$D$40),\"\",'Tanzania 2011'!$D$40)","v":"Yes"},{"$f":"IF(ISBLANK('Tanzania 2011'!$D$41),\"\",'Tanzania 2011'!$D$41)","v":"National treasury"},{"$f":"IF(ISBLANK('Tanzania 2011'!$E$40),\"\",'Tanzania 2011'!$E$40)","v":1800000},{"$f":"IF(ISBLANK('Tanzania 2011'!$F$40),\"\",'Tanzania 2011'!$F$40)","v":"07/09-06/10"},{"$f":"IF(ISBLANK('Tanzania 2011'!$G$40),\"\",'Tanzania 2011'!$G$40)","v":"RCHS"},{"$f":"IF(ISBLANK('Tanzania 2011'!$H$40),\"\",'Tanzania 2011'!$H$40)","v":""},{"$f":"IF(ISBLANK('Tanzania 2011'!$D$42),\"\",'Tanzania 2011'!$D$42)","v":"Yes"},{"$f":"IF(ISBLANK('Tanzania 2011'!$D$43),\"\",'Tanzania 2011'!$D$43)","v":"Basket"},{"$f":"IF(ISBLANK('Tanzania 2011'!$E$42),\"\",'Tanzania 2011'!$E$42)","v":5000000},{"$f":"IF(ISBLANK('Tanzania 2011'!$F$42),\"\",'Tanzania 2011'!$F$42)","v":"07/09-06/10"},{"$f":"IF(ISBLANK('Tanzania 2011'!$G$42),\"\",'Tanzania 2011'!$G$42)","v":"RCHS"},{"$f":"IF(ISBLANK('Tanzania 2011'!$H$42),\"\",'Tanzania 2011'!$H$42)","v":"None of the products bought from this have arrived yet (as of March 2011)."},{"$f":"IF(ISBLANK('Tanzania 2011'!$E$44),\"\",'Tanzania 2011'!$E$44)","v":6800000},{"$f":"IF(ISBLANK('Tanzania 2011'!$H$44),\"\",'Tanzania 2011'!$H$44)","v":""},null,{"$f":"IF(ISBLANK('Tanzania 2011'!$D$48),\"\",'Tanzania 2011'!$D$48)","v":"Yes"},{"$f":"IF(ISBLANK('Tanzania 2011'!$D$49),\"\",'Tanzania 2011'!$D$49)","v":"USAID, UNFPA"},{"$f":"IF(ISBLANK('Tanzania 2011'!$E$48),\"\",'Tanzania 2011'!$E$48)","v":4355176},{"$f":"IF(ISBLANK('Tanzania 2011'!$F$48),\"\",'Tanzania 2011'!$F$48)","v":"07/09-06/10"},{"$f":"IF(ISBLANK('Tanzania 2011'!$G$48),\"\",'Tanzania 2011'!$G$48)","v":"PipeLine"},{"$f":"IF(ISBLANK('Tanzania 2011'!$H$48),\"\",'Tanzania 2011'!$H$48)","v":""},{"$f":"IF(ISBLANK('Tanzania 2011'!$D$50),\"\",'Tanzania 2011'!$D$50)","v":"Yes"},{"$f":"IF(ISBLANK('Tanzania 2011'!$E$50),\"\",'Tanzania 2011'!$E$50)","v":1211960},{"$f":"IF(ISBLANK('Tanzania 2011'!$F$50),\"\",'Tanzania 2011'!$F$50)","v":"07/09-06/10"},{"$f":"IF(ISBLANK('Tanzania 2011'!$G$50),\"\",'Tanzania 2011'!$G$50)","v":"PipeLine"},{"$f":"IF(ISBLANK('Tanzania 2011'!$H$50),\"\",'Tanzania 2011'!$H$50)","v":""},{"$f":"IF(ISBLANK('Tanzania 2011'!$D$51),\"\",'Tanzania 2011'!$D$51)","v":"No"},{"$f":"IF(ISBLANK('Tanzania 2011'!$E$51),\"\",'Tanzania 2011'!$E$51)","v":0},{"$f":"IF(ISBLANK('Tanzania 2011'!$F$51),\"\",'Tanzania 2011'!$F$51)","v":"07/09-06/10"},{"$f":"IF(ISBLANK('Tanzania 2011'!$G$51),\"\",'Tanzania 2011'!$G$51)","v":""},{"$f":"IF(ISBLANK('Tanzania 2011'!$H$51),\"\",'Tanzania 2011'!$H$51)","v":""},{"$f":"IF(ISBLANK('Tanzania 2011'!$E$52),\"\",'Tanzania 2011'!$E$52)","v":5567136},{"$f":"IF(ISBLANK('Tanzania 2011'!$H$52),\"\",'Tanzania 2011'!$H$52)","v":""},{"$f":"IF(ISBLANK('Tanzania 2011'!$F$55),\"\",'Tanzania 2011'!$F$55)","v":0.54984436170185236},{"$f":"IF(ISBLANK('Tanzania 2011'!$G$55),\"\",'Tanzania 2011'!$G$55)","v":""},{"$f":"IF(ISBLANK('Tanzania 2011'!$F$56),\"\",'Tanzania 2011'!$F$56)","v":0.65963015567409844},{"$f":"IF(ISBLANK('Tanzania 2011'!$G$56),\"\",'Tanzania 2011'!$G$56)","v":""},{"$f":"IF(ISBLANK('Tanzania 2011'!$F$57),\"\",'Tanzania 2011'!$F$57)","v":""},{"$f":"IF(ISBLANK('Tanzania 2011'!$G$57),\"\",'Tanzania 2011'!$G$57)","v":""},{"$f":"IF(ISBLANK('Tanzania 2011'!$F$59),\"\",'Tanzania 2011'!$F$59)","v":"The government (e.g., Central Medical Stores, MOH logistics unit, MOH procurement unit)"},{"$f":"IF(ISBLANK('Tanzania 2011'!$F$60),\"\",'Tanzania 2011'!$F$60)","v":"MSD"},{"$f":"IF(ISBLANK('Tanzania 2011'!$F$61),\"\",'Tanzania 2011'!$F$61)","v":"Yes"},{"$f":"IF(ISBLANK('Tanzania 2011'!$D$62),\"\",'Tanzania 2011'!$D$62)","v":""},null,null,{"$f":"IF(ISBLANK('Tanzania 2011'!$D$66),\"\",'Tanzania 2011'!$D$66)","v":"Yes"},{"$f":"IF(ISBLANK('Tanzania 2011'!$D$67),\"\",'Tanzania 2011'!$D$67)","v":"Yes"},{"$f":"IF(ISBLANK('Tanzania 2011'!$D$68),\"\",'Tanzania 2011'!$D$68)","v":"Yes"},{"$f":"IF(ISBLANK('Tanzania 2011'!$D$69),\"\",'Tanzania 2011'!$D$69)","v":"Yes"},{"$f":"IF(ISBLANK('Tanzania 2011'!$D$70),\"\",'Tanzania 2011'!$D$70)","v":"Yes"},{"$f":"IF(ISBLANK('Tanzania 2011'!$D$71),\"\",'Tanzania 2011'!$D$71)","v":"Yes"},{"$f":"IF(ISBLANK('Tanzania 2011'!$D$72),\"\",'Tanzania 2011'!$D$72)","v":"Don't know"},{"$f":"IF(ISBLANK('Tanzania 2011'!$D$73),\"\",'Tanzania 2011'!$D$73)","v":"Yes"},{"$f":"IF(ISBLANK('Tanzania 2011'!$D$74),\"\",'Tanzania 2011'!$D$74)","v":"Yes"},{"$f":"IF(ISBLANK('Tanzania 2011'!$D$75),\"\",'Tanzania 2011'!$D$75)","v":"Yes"},{"$f":"IF(ISBLANK('Tanzania 2011'!$D$76),\"\",'Tanzania 2011'!$D$76)","v":"No"},{"$f":"IF(ISBLANK('Tanzania 2011'!$D$77),\"\",'Tanzania 2011'!$D$77)","v":""},null,{"$f":"IF(ISBLANK('Tanzania 2011'!$F$66),\"\",'Tanzania 2011'!$F$66)","v":"Yes"},{"$f":"IF(ISBLANK('Tanzania 2011'!$F$67),\"\",'Tanzania 2011'!$F$67)","v":"Yes"},{"$f":"IF(ISBLANK('Tanzania 2011'!$F$68),\"\",'Tanzania 2011'!$F$68)","v":"Yes"},{"$f":"IF(ISBLANK('Tanzania 2011'!$F$69),\"\",'Tanzania 2011'!$F$69)","v":"Yes"},{"$f":"IF(ISBLANK('Tanzania 2011'!$F$70),\"\",'Tanzania 2011'!$F$70)","v":"Yes"},{"$f":"IF(ISBLANK('Tanzania 2011'!$F$71),\"\",'Tanzania 2011'!$F$71)","v":"Yes"},{"$f":"IF(ISBLANK('Tanzania 2011'!$F$72),\"\",'Tanzania 2011'!$F$72)","v":"Yes"},{"$f":"IF(ISBLANK('Tanzania 2011'!$F$73),\"\",'Tanzania 2011'!$F$73)","v":"No"},{"$f":"IF(ISBLANK('Tanzania 2011'!$F$74),\"\",'Tanzania 2011'!$F$74)","v":"Yes"},{"$f":"IF(ISBLANK('Tanzania 2011'!$F$75),\"\",'Tanzania 2011'!$F$75)","v":"Yes"},{"$f":"IF(ISBLANK('Tanzania 2011'!$F$76),\"\",'Tanzania 2011'!$F$76)","v":"No"},{"$f":"IF(ISBLANK('Tanzania 2011'!$F$77),\"\",'Tanzania 2011'!$F$77)","v":""},null,{"$f":"IF(ISBLANK('Tanzania 2011'!$G$66),\"\",'Tanzania 2011'!$G$66)","v":"Yes"},{"$f":"IF(ISBLANK('Tanzania 2011'!$G$67),\"\",'Tanzania 2011'!$G$67)","v":"Yes"},{"$f":"IF(ISBLANK('Tanzania 2011'!$G$68),\"\",'Tanzania 2011'!$G$68)","v":"Yes"},{"$f":"IF(ISBLANK('Tanzania 2011'!$G$69),\"\",'Tanzania 2011'!$G$69)","v":"Yes"},{"$f":"IF(ISBLANK('Tanzania 2011'!$G$70),\"\",'Tanzania 2011'!$G$70)","v":"Yes"},{"$f":"IF(ISBLANK('Tanzania 2011'!$G$71),\"\",'Tanzania 2011'!$G$71)","v":"Yes"},{"$f":"IF(ISBLANK('Tanzania 2011'!$G$72),\"\",'Tanzania 2011'!$G$72)","v":"Yes"},{"$f":"IF(ISBLANK('Tanzania 2011'!$G$73),\"\",'Tanzania 2011'!$G$73)","v":"No"},{"$f":"IF(ISBLANK('Tanzania 2011'!$G$74),\"\",'Tanzania 2011'!$G$74)","v":"Yes"},{"$f":"IF(ISBLANK('Tanzania 2011'!$G$75),\"\",'Tanzania 2011'!$G$75)","v":"Yes"},{"$f":"IF(ISBLANK('Tanzania 2011'!$G$76),\"\",'Tanzania 2011'!$G$76)","v":"No"},{"$f":"IF(ISBLANK('Tanzania 2011'!$G$77),\"\",'Tanzania 2011'!$G$77)","v":""},null,{"$f":"IF(ISBLANK('Tanzania 2011'!$H$66),\"\",'Tanzania 2011'!$H$66)","v":"Yes"},{"$f":"IF(ISBLANK('Tanzania 2011'!$H$67),\"\",'Tanzania 2011'!$H$67)","v":"Don't know"},{"$f":"IF(ISBLANK('Tanzania 2011'!$H$68),\"\",'Tanzania 2011'!$H$68)","v":"Yes"},{"$f":"IF(ISBLANK('Tanzania 2011'!$H$69),\"\",'Tanzania 2011'!$H$69)","v":"Yes"},{"$f":"IF(ISBLANK('Tanzania 2011'!$H$70),\"\",'Tanzania 2011'!$H$70)","v":"No"},{"$f":"IF(ISBLANK('Tanzania 2011'!$H$71),\"\",'Tanzania 2011'!$H$71)","v":"Yes"},{"$f":"IF(ISBLANK('Tanzania 2011'!$H$72),\"\",'Tanzania 2011'!$H$72)","v":"Yes"},{"$f":"IF(ISBLANK('Tanzania 2011'!$H$73),\"\",'Tanzania 2011'!$H$73)","v":"No"},{"$f":"IF(ISBLANK('Tanzania 2011'!$H$74),\"\",'Tanzania 2011'!$H$74)","v":"No"},{"$f":"IF(ISBLANK('Tanzania 2011'!$H$75),\"\",'Tanzania 2011'!$H$75)","v":"No"},{"$f":"IF(ISBLANK('Tanzania 2011'!$H$76),\"\",'Tanzania 2011'!$H$76)","v":"No"},{"$f":"IF(ISBLANK('Tanzania 2011'!$H$77),\"\",'Tanzania 2011'!$H$77)","v":""},{"$f":"IF(ISBLANK('Tanzania 2011'!$D$78),\"\",'Tanzania 2011'!$D$78)","v":""},null,{"$f":"IF(ISBLANK('Tanzania 2011'!$H$80),\"\",'Tanzania 2011'!$H$80)","v":"No"},{"$f":"IF(ISBLANK('Tanzania 2011'!$C$83),\"\",'Tanzania 2011'!$C$83)","v":""},{"$f":"IF(ISBLANK('Tanzania 2011'!$D$83),\"\",'Tanzania 2011'!$D$83)","v":""},{"$f":"IF(ISBLANK('Tanzania 2011'!$F$83),\"\",'Tanzania 2011'!$F$83)","v":""},{"$f":"IF(ISBLANK('Tanzania 2011'!$G$83),\"\",'Tanzania 2011'!$G$83)","v":""},{"$f":"IF(ISBLANK('Tanzania 2011'!$F$84),\"\",'Tanzania 2011'!$F$84)","v":"No"},{"$f":"IF(ISBLANK('Tanzania 2011'!$E$85),\"\",'Tanzania 2011'!$E$85)","v":"N/A"},{"$f":"IF(ISBLANK('Tanzania 2011'!$E$86),\"\",'Tanzania 2011'!$E$86)","v":"N/A"},{"$f":"IF(ISBLANK('Tanzania 2011'!$H$87),\"\",'Tanzania 2011'!$H$87)","v":"Yes"},{"$f":"IF(ISBLANK('Tanzania 2011'!$D$88),\"\",'Tanzania 2011'!$D$88)","v":"Brand-specific advertising for oral contraceptives is not allowed since oral contraceptives are considered a prescription-only product."},{"$f":"IF(ISBLANK('Tanzania 2011'!$H$89),\"\",'Tanzania 2011'!$H$89)","v":"No"},{"$f":"IF(ISBLANK('Tanzania 2011'!$D$90),\"\",'Tanzania 2011'!$D$90)","v":"N/A"},{"$f":"IF(ISBLANK('Tanzania 2011'!$H$91),\"\",'Tanzania 2011'!$H$91)","v":"Yes"},{"$f":"IF(ISBLANK('Tanzania 2011'!$C$94),\"\",'Tanzania 2011'!$C$94)","v":"Oral contraceptives "},{"$f":"IF(ISBLANK('Tanzania 2011'!$E$94),\"\",'Tanzania 2011'!$E$94)","v":""},{"$f":"IF(ISBLANK('Tanzania 2011'!$G$94),\"\",'Tanzania 2011'!$G$94)","v":"Pharmacies and accredited drug dispensing outlets (Addos)"},{"$f":"IF(ISBLANK('Tanzania 2011'!$C$95),\"\",'Tanzania 2011'!$C$95)","v":"Implants and IUDs"},{"$f":"IF(ISBLANK('Tanzania 2011'!$E$95),\"\",'Tanzania 2011'!$E$95)","v":"Restricted to public health nurse of higher grade MOH staff"},{"$f":"IF(ISBLANK('Tanzania 2011'!$G$95),\"\",'Tanzania 2011'!$G$95)","v":""},{"$f":"IF(ISBLANK('Tanzania 2011'!$C$96),\"\",'Tanzania 2011'!$C$96)","v":""},{"$f":"IF(ISBLANK('Tanzania 2011'!$E$96),\"\",'Tanzania 2011'!$E$96)","v":""},{"$f":"IF(ISBLANK('Tanzania 2011'!$G$96),\"\",'Tanzania 2011'!$G$96)","v":""},null,{"$f":"IF(ISBLANK('Tanzania 2011'!$D$99),\"\",'Tanzania 2011'!$D$99)","v":"No"},{"$f":"IF(ISBLANK('Tanzania 2011'!$E$99),\"\",'Tanzania 2011'!$E$99)","v":""},{"$f":"IF(ISBLANK('Tanzania 2011'!$H$99),\"\",'Tanzania 2011'!$H$99)","v":""},{"$f":"IF(ISBLANK('Tanzania 2011'!$D$100),\"\",'Tanzania 2011'!$D$100)","v":"No"},{"$f":"IF(ISBLANK('Tanzania 2011'!$E$100),\"\",'Tanzania 2011'!$E$100)","v":""},{"$f":"IF(ISBLANK('Tanzania 2011'!$H$100),\"\",'Tanzania 2011'!$H$100)","v":""},{"$f":"IF(ISBLANK('Tanzania 2011'!$D$101),\"\",'Tanzania 2011'!$D$101)","v":"No"},{"$f":"IF(ISBLANK('Tanzania 2011'!$E$101),\"\",'Tanzania 2011'!$E$101)","v":""},{"$f":"IF(ISBLANK('Tanzania 2011'!$H$101),\"\",'Tanzania 2011'!$H$101)","v":""},null,{"$f":"IF(ISBLANK('Tanzania 2011'!$G$104),\"\",'Tanzania 2011'!$G$104)","v":"No"},{"$f":"IF(ISBLANK('Tanzania 2011'!$G$105),\"\",'Tanzania 2011'!$G$105)","v":"No"},{"$f":"IF(ISBLANK('Tanzania 2011'!$G$106),\"\",'Tanzania 2011'!$G$106)","v":"N/A"},{"$f":"IF(ISBLANK('Tanzania 2011'!$D$107),\"\",'Tanzania 2011'!$D$107)","v":"N/A"},null,{"$f":"IF(ISBLANK('Tanzania 2011'!$G$109),\"\",'Tanzania 2011'!$G$109)","v":"Yes"},{"$f":"IF(ISBLANK('Tanzania 2011'!$G$110),\"\",'Tanzania 2011'!$G$110)","v":"Yes"},{"$f":"IF(ISBLANK('Tanzania 2011'!$G$111),\"\",'Tanzania 2011'!$G$111)","v":"Yes"},{"$f":"IF(ISBLANK('Tanzania 2011'!$G$112),\"\",'Tanzania 2011'!$G$112)","v":"Yes"},{"$f":"IF(ISBLANK('Tanzania 2011'!$G$113),\"\",'Tanzania 2011'!$G$113)","v":"Yes"},{"$f":"IF(ISBLANK('Tanzania 2011'!$G$114),\"\",'Tanzania 2011'!$G$114)","v":"Yes"},{"$f":"IF(ISBLANK('Tanzania 2011'!$G$115),\"\",'Tanzania 2011'!$G$115)","v":"Yes"},{"$f":"IF(ISBLANK('Tanzania 2011'!$G$116),\"\",'Tanzania 2011'!$G$116)","v":"No"},{"$f":"IF(ISBLANK('Tanzania 2011'!$G$117),\"\",'Tanzania 2011'!$G$117)","v":"No"},{"$f":"IF(ISBLANK('Tanzania 2011'!$G$118),\"\",'Tanzania 2011'!$G$118)","v":"Don't know"},{"$f":"IF(ISBLANK('Tanzania 2011'!$F$119),\"\",'Tanzania 2011'!$F$119)","v":"Don't know"},{"$f":"IF(ISBLANK('Tanzania 2011'!$F$120),\"\",'Tanzania 2011'!$F$120)","v":2007},{"$f":"IF(ISBLANK('Tanzania 2011'!$D$121),\"\",'Tanzania 2011'!$D$121)","v":"National Essential Medicine List"},{"$f":"IF(ISBLANK('Tanzania 2011'!$D$122),\"\",'Tanzania 2011'!$D$122)","v":""},null,{"$f":"IF(ISBLANK('Tanzania 2011'!$F$124),\"\",'Tanzania 2011'!$F$124)","v":2010},{"$f":"IF(ISBLANK('Tanzania 2011'!$G$125),\"\",'Tanzania 2011'!$G$125)","v":"No"},{"$f":"IF(ISBLANK('Tanzania 2011'!$G$126),\"\",'Tanzania 2011'!$G$126)","v":"Yes"},{"$f":"IF(ISBLANK('Tanzania 2011'!$G$127),\"\",'Tanzania 2011'!$G$127)","v":"No"},{"$f":"IF(ISBLANK('Tanzania 2011'!$G$128),\"\",'Tanzania 2011'!$G$128)","v":"No"},{"$f":"IF(ISBLANK('Tanzania 2011'!$D$129),\"\",'Tanzania 2011'!$D$129)","v":"The availability and choice of safe, effective, acceptable, and affordable contraceptive methods is an intervention package (p. 154). There are interventions related to increasing the capacity of providers and delivery systems to provide high quality, affordable and sustainable family planning methods and services. There are indicators for TFR and reducing population growth but not for CPR."},null,{"$f":"IF(ISBLANK('Tanzania 2011'!$G$131),\"\",'Tanzania 2011'!$G$131)","v":"Yes"},null,{"$f":"IF(ISBLANK('Tanzania 2011'!$G$133),\"\",'Tanzania 2011'!$G$133)","v":"No"},{"$f":"IF(ISBLANK('Tanzania 2011'!$G$134),\"\",'Tanzania 2011'!$G$134)","v":"No"},{"$f":"IF(ISBLANK('Tanzania 2011'!$G$135),\"\",'Tanzania 2011'!$G$135)","v":"Yes"},{"$f":"IF(ISBLANK('Tanzania 2011'!$G$136),\"\",'Tanzania 2011'!$G$136)","v":"Yes"},{"$f":"IF(ISBLANK('Tanzania 2011'!$G$137),\"\",'Tanzania 2011'!$G$137)","v":"No"},{"$f":"IF(ISBLANK('Tanzania 2011'!$G$138),\"\",'Tanzania 2011'!$G$138)","v":"No"},{"$f":"IF(ISBLANK('Tanzania 2011'!$G$139),\"\",'Tanzania 2011'!$G$139)","v":"N/A"},{"$f":"IF(ISBLANK('Tanzania 2011'!$G$140),\"\",'Tanzania 2011'!$G$140)","v":"N/A"},{"$f":"IF(ISBLANK('Tanzania 2011'!$G$141),\"\",'Tanzania 2011'!$G$141)","v":"N/A"},{"$f":"IF(ISBLANK('Tanzania 2011'!$F$142),\"\",'Tanzania 2011'!$F$142)","v":"08/09-06/10"},{"$f":"IF(ISBLANK('Tanzania 2011'!$F$143),\"\",'Tanzania 2011'!$F$143)","v":"MSD, quarterly reports"},null,{"$f":"IF(ISBLANK('Tanzania 2011'!$G$145),\"\",'Tanzania 2011'!$G$145)","v":"Yes"},{"$f":"IF(ISBLANK('Tanzania 2011'!$G$146),\"\",'Tanzania 2011'!$G$146)","v":"Yes"},{"$f":"IF(ISBLANK('Tanzania 2011'!$D$147),\"\",'Tanzania 2011'!$D$147)","v":"Long lead time for basket procurement processes."},"Africa"]
["Uganda ",null,{"$f":"IF(ISBLANK('Uganda 2011'!$H$12),\"\",'Uganda 2011'!$H$12)","v":"Yes"},{"$f":"IF(ISBLANK('Uganda 2011'!$D$13),\"\",'Uganda 2011'!$D$13)","v":"Reproductive Health Commodity Security (RHCS) Committee "},null,{"$f":"IF(ISBLANK('Uganda 2011'!$D$15),\"\",'Uganda 2011'!$D$15)","v":"Yes"},{"$f":"IF(ISBLANK('Uganda 2011'!$F$15),\"\",'Uganda 2011'!$F$15)","v":"Uganda Health Marketing Group (UHMG), PACE, Marie Stopes Uganda (MSU)"},{"$f":"IF(ISBLANK('Uganda 2011'!$D$16),\"\",'Uganda 2011'!$D$16)","v":"Yes"},{"$f":"IF(ISBLANK('Uganda 2011'!$F$16),\"\",'Uganda 2011'!$F$16)","v":"Reproductive Health Uganda (RHU)"},{"$f":"IF(ISBLANK('Uganda 2011'!$D$17),\"\",'Uganda 2011'!$D$17)","v":"No"},{"$f":"IF(ISBLANK('Uganda 2011'!$F$17),\"\",'Uganda 2011'!$F$17)","v":""},{"$f":"IF(ISBLANK('Uganda 2011'!$D$18),\"\",'Uganda 2011'!$D$18)","v":"Yes"},{"$f":"IF(ISBLANK('Uganda 2011'!$F$18),\"\",'Uganda 2011'!$F$18)","v":"USAID, DFID"},{"$f":"IF(ISBLANK('Uganda 2011'!$D$19),\"\",'Uganda 2011'!$D$19)","v":"Yes"},{"$f":"IF(ISBLANK('Uganda 2011'!$F$19),\"\",'Uganda 2011'!$F$19)","v":"UNFPA"},{"$f":"IF(ISBLANK('Uganda 2011'!$D$20),\"\",'Uganda 2011'!$D$20)","v":"Yes"},{"$f":"IF(ISBLANK('Uganda 2011'!$F$20),\"\",'Uganda 2011'!$F$20)","v":"MoH Reproductive Health division, MoH AIDS Control Program (ACP), MoH Pharmacy Division"},{"$f":"IF(ISBLANK('Uganda 2011'!$D$21),\"\",'Uganda 2011'!$D$21)","v":"Yes"},{"$f":"IF(ISBLANK('Uganda 2011'!$F$21),\"\",'Uganda 2011'!$F$21)","v":"National Medical Stores (NMS)"},{"$f":"IF(ISBLANK('Uganda 2011'!$D$22),\"\",'Uganda 2011'!$D$22)","v":"No"},{"$f":"IF(ISBLANK('Uganda 2011'!$F$22),\"\",'Uganda 2011'!$F$22)","v":""},{"$f":"IF(ISBLANK('Uganda 2011'!$D$23),\"\",'Uganda 2011'!$D$23)","v":"No"},{"$f":"IF(ISBLANK('Uganda 2011'!$F$23),\"\",'Uganda 2011'!$F$23)","v":""},{"$f":"IF(ISBLANK('Uganda 2011'!$H$24),\"\",'Uganda 2011'!$H$24)","v":"3-5 times"},{"$f":"IF(ISBLANK('Uganda 2011'!$H$25),\"\",'Uganda 2011'!$H$25)","v":"No"},{"$f":"IF(ISBLANK('Uganda 2011'!$D$26),\"\",'Uganda 2011'!$D$26)","v":"No"},{"$f":"IF(ISBLANK('Uganda 2011'!$F$26),\"\",'Uganda 2011'!$F$26)","v":""},{"$f":"IF(ISBLANK('Uganda 2011'!$H$26),\"\",'Uganda 2011'!$H$26)","v":""},null,{"$f":"IF(ISBLANK('Uganda 2011'!$F$28),\"\",'Uganda 2011'!$F$28)","v":"July"},{"$f":"IF(ISBLANK('Uganda 2011'!$H$28),\"\",'Uganda 2011'!$H$28)","v":"June"},{"$f":"IF(ISBLANK('Uganda 2011'!$G$29),\"\",'Uganda 2011'!$G$29)","v":10166650},{"$f":"IF(ISBLANK('Uganda 2011'!$E$30),\"\",'Uganda 2011'!$E$30)","v":"10/10"},{"$f":"IF(ISBLANK('Uganda 2011'!$G$30),\"\",'Uganda 2011'!$G$30)","v":"MOH Reproductive Heath division with technical assistance from the SURE/MSH program"},{"$f":"IF(ISBLANK('Uganda 2011'!$H$31),\"\",'Uganda 2011'!$H$31)","v":"Yes"},{"$f":"IF(ISBLANK('Uganda 2011'!$H$32),\"\",'Uganda 2011'!$H$32)","v":"Yes"},{"$f":"IF(ISBLANK('Uganda 2011'!$E$35),\"\",'Uganda 2011'!$E$35)","v":326000},{"$f":"IF(ISBLANK('Uganda 2011'!$F$35),\"\",'Uganda 2011'!$F$35)","v":"07/09-06/10"},{"$f":"IF(ISBLANK('Uganda 2011'!$G$35),\"\",'Uganda 2011'!$G$35)","v":"Budget Document FY 09/10"},{"$f":"IF(ISBLANK('Uganda 2011'!$H$35),\"\",'Uganda 2011'!$H$35)","v":"Approximately 50% of FP commodities of UGX 1.5 billion  (approx USD 652,000) allocated per year. (The funding is allocated for FP commodities in general; we were unable to extract the exact allocation to contraceptives alone.)"},{"$f":"IF(ISBLANK('Uganda 2011'!$H$37),\"\",'Uganda 2011'!$H$37)","v":"No"},{"$f":"IF(ISBLANK('Uganda 2011'!$D$40),\"\",'Uganda 2011'!$D$40)","v":"No"},{"$f":"IF(ISBLANK('Uganda 2011'!$D$41),\"\",'Uganda 2011'!$D$41)","v":"N/A"},{"$f":"IF(ISBLANK('Uganda 2011'!$E$40),\"\",'Uganda 2011'!$E$40)","v":0},{"$f":"IF(ISBLANK('Uganda 2011'!$F$40),\"\",'Uganda 2011'!$F$40)","v":"07/09-06/10"},{"$f":"IF(ISBLANK('Uganda 2011'!$G$40),\"\",'Uganda 2011'!$G$40)","v":""},{"$f":"IF(ISBLANK('Uganda 2011'!$H$40),\"\",'Uganda 2011'!$H$40)","v":""},{"$f":"IF(ISBLANK('Uganda 2011'!$D$42),\"\",'Uganda 2011'!$D$42)","v":"No"},{"$f":"IF(ISBLANK('Uganda 2011'!$D$43),\"\",'Uganda 2011'!$D$43)","v":"N/A"},{"$f":"IF(ISBLANK('Uganda 2011'!$E$42),\"\",'Uganda 2011'!$E$42)","v":0},{"$f":"IF(ISBLANK('Uganda 2011'!$F$42),\"\",'Uganda 2011'!$F$42)","v":"07/09-06/10"},{"$f":"IF(ISBLANK('Uganda 2011'!$G$42),\"\",'Uganda 2011'!$G$42)","v":""},{"$f":"IF(ISBLANK('Uganda 2011'!$H$42),\"\",'Uganda 2011'!$H$42)","v":""},{"$f":"IF(ISBLANK('Uganda 2011'!$E$44),\"\",'Uganda 2011'!$E$44)","v":0},{"$f":"IF(ISBLANK('Uganda 2011'!$H$44),\"\",'Uganda 2011'!$H$44)","v":""},null,{"$f":"IF(ISBLANK('Uganda 2011'!$D$48),\"\",'Uganda 2011'!$D$48)","v":"Yes"},{"$f":"IF(ISBLANK('Uganda 2011'!$D$49),\"\",'Uganda 2011'!$D$49)","v":"USAID, UNFPA, DFID"},{"$f":"IF(ISBLANK('Uganda 2011'!$E$48),\"\",'Uganda 2011'!$E$48)","v":6588411},{"$f":"IF(ISBLANK('Uganda 2011'!$F$48),\"\",'Uganda 2011'!$F$48)","v":"01/10-12/10"},{"$f":"IF(ISBLANK('Uganda 2011'!$G$48),\"\",'Uganda 2011'!$G$48)","v":"RHInterchange"},{"$f":"IF(ISBLANK('Uganda 2011'!$H$48),\"\",'Uganda 2011'!$H$48)","v":"Does not include PSM costs "},{"$f":"IF(ISBLANK('Uganda 2011'!$D$50),\"\",'Uganda 2011'!$D$50)","v":"No"},{"$f":"IF(ISBLANK('Uganda 2011'!$E$50),\"\",'Uganda 2011'!$E$50)","v":0},{"$f":"IF(ISBLANK('Uganda 2011'!$F$50),\"\",'Uganda 2011'!$F$50)","v":"07/09-06/10"},{"$f":"IF(ISBLANK('Uganda 2011'!$G$50),\"\",'Uganda 2011'!$G$50)","v":""},{"$f":"IF(ISBLANK('Uganda 2011'!$H$50),\"\",'Uganda 2011'!$H$50)","v":"Procurement initiated but not awarded"},{"$f":"IF(ISBLANK('Uganda 2011'!$D$51),\"\",'Uganda 2011'!$D$51)","v":"No"},{"$f":"IF(ISBLANK('Uganda 2011'!$E$51),\"\",'Uganda 2011'!$E$51)","v":0},{"$f":"IF(ISBLANK('Uganda 2011'!$F$51),\"\",'Uganda 2011'!$F$51)","v":"07/09-06/10"},{"$f":"IF(ISBLANK('Uganda 2011'!$G$51),\"\",'Uganda 2011'!$G$51)","v":""},{"$f":"IF(ISBLANK('Uganda 2011'!$H$51),\"\",'Uganda 2011'!$H$51)","v":""},{"$f":"IF(ISBLANK('Uganda 2011'!$E$52),\"\",'Uganda 2011'!$E$52)","v":6588411},{"$f":"IF(ISBLANK('Uganda 2011'!$H$52),\"\",'Uganda 2011'!$H$52)","v":""},{"$f":"IF(ISBLANK('Uganda 2011'!$F$55),\"\",'Uganda 2011'!$F$55)","v":0},{"$f":"IF(ISBLANK('Uganda 2011'!$G$55),\"\",'Uganda 2011'!$G$55)","v":"UGX 1.5 billion was allocated per year for FP commodities but not spent and this has happened for the last 2 financial years. In FY 2010/2011 expenditures will include funds carried forward from previous financial years.\n"},{"$f":"IF(ISBLANK('Uganda 2011'!$F$56),\"\",'Uganda 2011'!$F$56)","v":0.64804148859260424},{"$f":"IF(ISBLANK('Uganda 2011'!$G$56),\"\",'Uganda 2011'!$G$56)","v":""},{"$f":"IF(ISBLANK('Uganda 2011'!$F$57),\"\",'Uganda 2011'!$F$57)","v":"No"},{"$f":"IF(ISBLANK('Uganda 2011'!$G$57),\"\",'Uganda 2011'!$G$57)","v":""},{"$f":"IF(ISBLANK('Uganda 2011'!$F$59),\"\",'Uganda 2011'!$F$59)","v":"N/A"},{"$f":"IF(ISBLANK('Uganda 2011'!$F$60),\"\",'Uganda 2011'!$F$60)","v":"N/A"},{"$f":"IF(ISBLANK('Uganda 2011'!$F$61),\"\",'Uganda 2011'!$F$61)","v":"N/A"},{"$f":"IF(ISBLANK('Uganda 2011'!$D$62),\"\",'Uganda 2011'!$D$62)","v":"National Medical Stores did not procure contraceptives in 2009/2010. "},null,null,{"$f":"IF(ISBLANK('Uganda 2011'!$D$66),\"\",'Uganda 2011'!$D$66)","v":"Don't know"},{"$f":"IF(ISBLANK('Uganda 2011'!$D$67),\"\",'Uganda 2011'!$D$67)","v":"Don't know"},{"$f":"IF(ISBLANK('Uganda 2011'!$D$68),\"\",'Uganda 2011'!$D$68)","v":"Don't know"},{"$f":"IF(ISBLANK('Uganda 2011'!$D$69),\"\",'Uganda 2011'!$D$69)","v":"Don't know"},{"$f":"IF(ISBLANK('Uganda 2011'!$D$70),\"\",'Uganda 2011'!$D$70)","v":"Don't know"},{"$f":"IF(ISBLANK('Uganda 2011'!$D$71),\"\",'Uganda 2011'!$D$71)","v":"Don't know"},{"$f":"IF(ISBLANK('Uganda 2011'!$D$72),\"\",'Uganda 2011'!$D$72)","v":"Don't know"},{"$f":"IF(ISBLANK('Uganda 2011'!$D$73),\"\",'Uganda 2011'!$D$73)","v":"Don't know"},{"$f":"IF(ISBLANK('Uganda 2011'!$D$74),\"\",'Uganda 2011'!$D$74)","v":"Don't know"},{"$f":"IF(ISBLANK('Uganda 2011'!$D$75),\"\",'Uganda 2011'!$D$75)","v":"Don't know"},{"$f":"IF(ISBLANK('Uganda 2011'!$D$76),\"\",'Uganda 2011'!$D$76)","v":"Don't know"},{"$f":"IF(ISBLANK('Uganda 2011'!$D$77),\"\",'Uganda 2011'!$D$77)","v":""},null,{"$f":"IF(ISBLANK('Uganda 2011'!$F$66),\"\",'Uganda 2011'!$F$66)","v":"Yes"},{"$f":"IF(ISBLANK('Uganda 2011'!$F$67),\"\",'Uganda 2011'!$F$67)","v":"Yes"},{"$f":"IF(ISBLANK('Uganda 2011'!$F$68),\"\",'Uganda 2011'!$F$68)","v":"Yes"},{"$f":"IF(ISBLANK('Uganda 2011'!$F$69),\"\",'Uganda 2011'!$F$69)","v":"Yes"},{"$f":"IF(ISBLANK('Uganda 2011'!$F$70),\"\",'Uganda 2011'!$F$70)","v":"Yes"},{"$f":"IF(ISBLANK('Uganda 2011'!$F$71),\"\",'Uganda 2011'!$F$71)","v":"Yes"},{"$f":"IF(ISBLANK('Uganda 2011'!$F$72),\"\",'Uganda 2011'!$F$72)","v":"No"},{"$f":"IF(ISBLANK('Uganda 2011'!$F$73),\"\",'Uganda 2011'!$F$73)","v":"Yes"},{"$f":"IF(ISBLANK('Uganda 2011'!$F$74),\"\",'Uganda 2011'!$F$74)","v":"Yes"},{"$f":"IF(ISBLANK('Uganda 2011'!$F$75),\"\",'Uganda 2011'!$F$75)","v":"Yes"},{"$f":"IF(ISBLANK('Uganda 2011'!$F$76),\"\",'Uganda 2011'!$F$76)","v":"No"},{"$f":"IF(ISBLANK('Uganda 2011'!$F$77),\"\",'Uganda 2011'!$F$77)","v":""},null,{"$f":"IF(ISBLANK('Uganda 2011'!$G$66),\"\",'Uganda 2011'!$G$66)","v":"Yes"},{"$f":"IF(ISBLANK('Uganda 2011'!$G$67),\"\",'Uganda 2011'!$G$67)","v":"Don't know"},{"$f":"IF(ISBLANK('Uganda 2011'!$G$68),\"\",'Uganda 2011'!$G$68)","v":"Yes"},{"$f":"IF(ISBLANK('Uganda 2011'!$G$69),\"\",'Uganda 2011'!$G$69)","v":"Yes"},{"$f":"IF(ISBLANK('Uganda 2011'!$G$70),\"\",'Uganda 2011'!$G$70)","v":"Yes"},{"$f":"IF(ISBLANK('Uganda 2011'!$G$71),\"\",'Uganda 2011'!$G$71)","v":"Yes"},{"$f":"IF(ISBLANK('Uganda 2011'!$G$72),\"\",'Uganda 2011'!$G$72)","v":"Yes"},{"$f":"IF(ISBLANK('Uganda 2011'!$G$73),\"\",'Uganda 2011'!$G$73)","v":"No"},{"$f":"IF(ISBLANK('Uganda 2011'!$G$74),\"\",'Uganda 2011'!$G$74)","v":"Yes"},{"$f":"IF(ISBLANK('Uganda 2011'!$G$75),\"\",'Uganda 2011'!$G$75)","v":"Yes"},{"$f":"IF(ISBLANK('Uganda 2011'!$G$76),\"\",'Uganda 2011'!$G$76)","v":"No"},{"$f":"IF(ISBLANK('Uganda 2011'!$G$77),\"\",'Uganda 2011'!$G$77)","v":""},null,{"$f":"IF(ISBLANK('Uganda 2011'!$H$66),\"\",'Uganda 2011'!$H$66)","v":"Yes"},{"$f":"IF(ISBLANK('Uganda 2011'!$H$67),\"\",'Uganda 2011'!$H$67)","v":"Yes"},{"$f":"IF(ISBLANK('Uganda 2011'!$H$68),\"\",'Uganda 2011'!$H$68)","v":"Yes"},{"$f":"IF(ISBLANK('Uganda 2011'!$H$69),\"\",'Uganda 2011'!$H$69)","v":"No"},{"$f":"IF(ISBLANK('Uganda 2011'!$H$70),\"\",'Uganda 2011'!$H$70)","v":"No"},{"$f":"IF(ISBLANK('Uganda 2011'!$H$71),\"\",'Uganda 2011'!$H$71)","v":"Yes"},{"$f":"IF(ISBLANK('Uganda 2011'!$H$72),\"\",'Uganda 2011'!$H$72)","v":"No"},{"$f":"IF(ISBLANK('Uganda 2011'!$H$73),\"\",'Uganda 2011'!$H$73)","v":"No"},{"$f":"IF(ISBLANK('Uganda 2011'!$H$74),\"\",'Uganda 2011'!$H$74)","v":"No"},{"$f":"IF(ISBLANK('Uganda 2011'!$H$75),\"\",'Uganda 2011'!$H$75)","v":"No"},{"$f":"IF(ISBLANK('Uganda 2011'!$H$76),\"\",'Uganda 2011'!$H$76)","v":"Yes"},{"$f":"IF(ISBLANK('Uganda 2011'!$H$77),\"\",'Uganda 2011'!$H$77)","v":""},{"$f":"IF(ISBLANK('Uganda 2011'!$D$78),\"\",'Uganda 2011'!$D$78)","v":"There is no available data for the commercial sector although it is known that they sell contraceptives in their outlets.  "},null,{"$f":"IF(ISBLANK('Uganda 2011'!$H$80),\"\",'Uganda 2011'!$H$80)","v":"Yes"},{"$f":"IF(ISBLANK('Uganda 2011'!$C$83),\"\",'Uganda 2011'!$C$83)","v":"Reproductive Health Commodity Security Strategic Plan"},{"$f":"IF(ISBLANK('Uganda 2011'!$D$83),\"\",'Uganda 2011'!$D$83)","v":"2010-2015"},{"$f":"IF(ISBLANK('Uganda 2011'!$F$83),\"\",'Uganda 2011'!$F$83)","v":"Yes"},{"$f":"IF(ISBLANK('Uganda 2011'!$G$83),\"\",'Uganda 2011'!$G$83)","v":"Yes"},{"$f":"IF(ISBLANK('Uganda 2011'!$F$84),\"\",'Uganda 2011'!$F$84)","v":"Yes"},{"$f":"IF(ISBLANK('Uganda 2011'!$E$85),\"\",'Uganda 2011'!$E$85)","v":"All sectors are charged verification fees by NDA"},{"$f":"IF(ISBLANK('Uganda 2011'!$E$86),\"\",'Uganda 2011'!$E$86)","v":"2% of FOB value is charged as verification fees by NDA on all pharmaceuticals including contraceptives."},{"$f":"IF(ISBLANK('Uganda 2011'!$H$87),\"\",'Uganda 2011'!$H$87)","v":"No"},{"$f":"IF(ISBLANK('Uganda 2011'!$D$88),\"\",'Uganda 2011'!$D$88)","v":"N/A"},{"$f":"IF(ISBLANK('Uganda 2011'!$H$89),\"\",'Uganda 2011'!$H$89)","v":"No"},{"$f":"IF(ISBLANK('Uganda 2011'!$D$90),\"\",'Uganda 2011'!$D$90)","v":"N/A"},{"$f":"IF(ISBLANK('Uganda 2011'!$H$91),\"\",'Uganda 2011'!$H$91)","v":"Yes"},{"$f":"IF(ISBLANK('Uganda 2011'!$C$94),\"\",'Uganda 2011'!$C$94)","v":"Depo-Provera"},{"$f":"IF(ISBLANK('Uganda 2011'!$E$94),\"\",'Uganda 2011'!$E$94)","v":""},{"$f":"IF(ISBLANK('Uganda 2011'!$G$94),\"\",'Uganda 2011'!$G$94)","v":"Not dispensed in drug shops"},{"$f":"IF(ISBLANK('Uganda 2011'!$C$95),\"\",'Uganda 2011'!$C$95)","v":""},{"$f":"IF(ISBLANK('Uganda 2011'!$E$95),\"\",'Uganda 2011'!$E$95)","v":""},{"$f":"IF(ISBLANK('Uganda 2011'!$G$95),\"\",'Uganda 2011'!$G$95)","v":""},{"$f":"IF(ISBLANK('Uganda 2011'!$C$96),\"\",'Uganda 2011'!$C$96)","v":""},{"$f":"IF(ISBLANK('Uganda 2011'!$E$96),\"\",'Uganda 2011'!$E$96)","v":""},{"$f":"IF(ISBLANK('Uganda 2011'!$G$96),\"\",'Uganda 2011'!$G$96)","v":""},null,{"$f":"IF(ISBLANK('Uganda 2011'!$D$99),\"\",'Uganda 2011'!$D$99)","v":"No"},{"$f":"IF(ISBLANK('Uganda 2011'!$E$99),\"\",'Uganda 2011'!$E$99)","v":""},{"$f":"IF(ISBLANK('Uganda 2011'!$H$99),\"\",'Uganda 2011'!$H$99)","v":""},{"$f":"IF(ISBLANK('Uganda 2011'!$D$100),\"\",'Uganda 2011'!$D$100)","v":"No"},{"$f":"IF(ISBLANK('Uganda 2011'!$E$100),\"\",'Uganda 2011'!$E$100)","v":""},{"$f":"IF(ISBLANK('Uganda 2011'!$H$100),\"\",'Uganda 2011'!$H$100)","v":""},{"$f":"IF(ISBLANK('Uganda 2011'!$D$101),\"\",'Uganda 2011'!$D$101)","v":"No"},{"$f":"IF(ISBLANK('Uganda 2011'!$E$101),\"\",'Uganda 2011'!$E$101)","v":""},{"$f":"IF(ISBLANK('Uganda 2011'!$H$101),\"\",'Uganda 2011'!$H$101)","v":""},null,{"$f":"IF(ISBLANK('Uganda 2011'!$G$104),\"\",'Uganda 2011'!$G$104)","v":"No"},{"$f":"IF(ISBLANK('Uganda 2011'!$G$105),\"\",'Uganda 2011'!$G$105)","v":"No"},{"$f":"IF(ISBLANK('Uganda 2011'!$G$106),\"\",'Uganda 2011'!$G$106)","v":"N/A"},{"$f":"IF(ISBLANK('Uganda 2011'!$D$107),\"\",'Uganda 2011'!$D$107)","v":"N/A"},null,{"$f":"IF(ISBLANK('Uganda 2011'!$G$109),\"\",'Uganda 2011'!$G$109)","v":"Yes"},{"$f":"IF(ISBLANK('Uganda 2011'!$G$110),\"\",'Uganda 2011'!$G$110)","v":"Yes"},{"$f":"IF(ISBLANK('Uganda 2011'!$G$111),\"\",'Uganda 2011'!$G$111)","v":"Yes"},{"$f":"IF(ISBLANK('Uganda 2011'!$G$112),\"\",'Uganda 2011'!$G$112)","v":"Yes"},{"$f":"IF(ISBLANK('Uganda 2011'!$G$113),\"\",'Uganda 2011'!$G$113)","v":"Yes"},{"$f":"IF(ISBLANK('Uganda 2011'!$G$114),\"\",'Uganda 2011'!$G$114)","v":"No"},{"$f":"IF(ISBLANK('Uganda 2011'!$G$115),\"\",'Uganda 2011'!$G$115)","v":"No"},{"$f":"IF(ISBLANK('Uganda 2011'!$G$116),\"\",'Uganda 2011'!$G$116)","v":"Yes"},{"$f":"IF(ISBLANK('Uganda 2011'!$G$117),\"\",'Uganda 2011'!$G$117)","v":"No"},{"$f":"IF(ISBLANK('Uganda 2011'!$G$118),\"\",'Uganda 2011'!$G$118)","v":"Don't know"},{"$f":"IF(ISBLANK('Uganda 2011'!$F$119),\"\",'Uganda 2011'!$F$119)","v":"Don't know"},{"$f":"IF(ISBLANK('Uganda 2011'!$F$120),\"\",'Uganda 2011'!$F$120)","v":2010},{"$f":"IF(ISBLANK('Uganda 2011'!$D$121),\"\",'Uganda 2011'!$D$121)","v":"Essential medicines list for Uganda (EMLU)"},{"$f":"IF(ISBLANK('Uganda 2011'!$D$122),\"\",'Uganda 2011'!$D$122)","v":"The list is currently being revised and is expected to be released in mid-2012."},null,{"$f":"IF(ISBLANK('Uganda 2011'!$F$124),\"\",'Uganda 2011'!$F$124)","v":2010},{"$f":"IF(ISBLANK('Uganda 2011'!$G$125),\"\",'Uganda 2011'!$G$125)","v":"Yes"},{"$f":"IF(ISBLANK('Uganda 2011'!$G$126),\"\",'Uganda 2011'!$G$126)","v":"Yes"},{"$f":"IF(ISBLANK('Uganda 2011'!$G$127),\"\",'Uganda 2011'!$G$127)","v":"Yes"},{"$f":"IF(ISBLANK('Uganda 2011'!$G$128),\"\",'Uganda 2011'!$G$128)","v":"No"},{"$f":"IF(ISBLANK('Uganda 2011'!$D$129),\"\",'Uganda 2011'!$D$129)","v":"Family planning and unmet need is mentioned repeatedly throughout the social sector section (from p. 215 onward). Advocating for reproductive health commodity security, including strengthening logistics, HMIS and LMIS is mentioned (p. 215). CPR is mentioned as a goal to reach the MDGs (p. 23)."},null,{"$f":"IF(ISBLANK('Uganda 2011'!$G$131),\"\",'Uganda 2011'!$G$131)","v":"Yes"},null,{"$f":"IF(ISBLANK('Uganda 2011'!$G$133),\"\",'Uganda 2011'!$G$133)","v":"No"},{"$f":"IF(ISBLANK('Uganda 2011'!$G$134),\"\",'Uganda 2011'!$G$134)","v":"No"},{"$f":"IF(ISBLANK('Uganda 2011'!$G$135),\"\",'Uganda 2011'!$G$135)","v":"No"},{"$f":"IF(ISBLANK('Uganda 2011'!$G$136),\"\",'Uganda 2011'!$G$136)","v":"Yes"},{"$f":"IF(ISBLANK('Uganda 2011'!$G$137),\"\",'Uganda 2011'!$G$137)","v":"No"},{"$f":"IF(ISBLANK('Uganda 2011'!$G$138),\"\",'Uganda 2011'!$G$138)","v":"No"},{"$f":"IF(ISBLANK('Uganda 2011'!$G$139),\"\",'Uganda 2011'!$G$139)","v":"N/A"},{"$f":"IF(ISBLANK('Uganda 2011'!$G$140),\"\",'Uganda 2011'!$G$140)","v":"No"},{"$f":"IF(ISBLANK('Uganda 2011'!$G$141),\"\",'Uganda 2011'!$G$141)","v":"N/A"},{"$f":"IF(ISBLANK('Uganda 2011'!$F$142),\"\",'Uganda 2011'!$F$142)","v":"07/09-06/10"},{"$f":"IF(ISBLANK('Uganda 2011'!$F$143),\"\",'Uganda 2011'!$F$143)","v":"NMS stock status reports, RHI website, USAID | DELIVER PROJECT website"},null,{"$f":"IF(ISBLANK('Uganda 2011'!$G$145),\"\",'Uganda 2011'!$G$145)","v":"No"},{"$f":"IF(ISBLANK('Uganda 2011'!$G$146),\"\",'Uganda 2011'!$G$146)","v":"No"},{"$f":"IF(ISBLANK('Uganda 2011'!$D$147),\"\",'Uganda 2011'!$D$147)","v":"The government is now actively committed to spending the funding allocated for contraceptives, and last year the president directed that $3 milllion be made available for contraceptive procurement.  "},"Africa"]
["Ukraine ",null,{"$f":"IF(ISBLANK('Ukraine 2011'!$H$12),\"\",'Ukraine 2011'!$H$12)","v":"Yes"},{"$f":"IF(ISBLANK('Ukraine 2011'!$D$13),\"\",'Ukraine 2011'!$D$13)","v":"National Committee for Implementation of the State Program \"Reproductive Health of the Nation up to 2015\" (SPRHN)"},null,{"$f":"IF(ISBLANK('Ukraine 2011'!$D$15),\"\",'Ukraine 2011'!$D$15)","v":"No"},{"$f":"IF(ISBLANK('Ukraine 2011'!$F$15),\"\",'Ukraine 2011'!$F$15)","v":""},{"$f":"IF(ISBLANK('Ukraine 2011'!$D$16),\"\",'Ukraine 2011'!$D$16)","v":"Yes"},{"$f":"IF(ISBLANK('Ukraine 2011'!$F$16),\"\",'Ukraine 2011'!$F$16)","v":"All-Ukrainian Federation of Young Doctors, All-Ukrainian Women's Society"},{"$f":"IF(ISBLANK('Ukraine 2011'!$D$17),\"\",'Ukraine 2011'!$D$17)","v":"No"},{"$f":"IF(ISBLANK('Ukraine 2011'!$F$17),\"\",'Ukraine 2011'!$F$17)","v":""},{"$f":"IF(ISBLANK('Ukraine 2011'!$D$18),\"\",'Ukraine 2011'!$D$18)","v":"Yes"},{"$f":"IF(ISBLANK('Ukraine 2011'!$F$18),\"\",'Ukraine 2011'!$F$18)","v":"USAID (represented by the staff of the USAID-supported projects, i.e.,Together for Health and Maternal & Infant Health Project)."},{"$f":"IF(ISBLANK('Ukraine 2011'!$D$19),\"\",'Ukraine 2011'!$D$19)","v":"Yes"},{"$f":"IF(ISBLANK('Ukraine 2011'!$F$19),\"\",'Ukraine 2011'!$F$19)","v":"UNFPA"},{"$f":"IF(ISBLANK('Ukraine 2011'!$D$20),\"\",'Ukraine 2011'!$D$20)","v":"Yes"},{"$f":"IF(ISBLANK('Ukraine 2011'!$F$20),\"\",'Ukraine 2011'!$F$20)","v":"MCH Department/RH Division, Finance and Economic Department"},{"$f":"IF(ISBLANK('Ukraine 2011'!$D$21),\"\",'Ukraine 2011'!$D$21)","v":"No"},{"$f":"IF(ISBLANK('Ukraine 2011'!$F$21),\"\",'Ukraine 2011'!$F$21)","v":""},{"$f":"IF(ISBLANK('Ukraine 2011'!$D$22),\"\",'Ukraine 2011'!$D$22)","v":"No"},{"$f":"IF(ISBLANK('Ukraine 2011'!$F$22),\"\",'Ukraine 2011'!$F$22)","v":""},{"$f":"IF(ISBLANK('Ukraine 2011'!$D$23),\"\",'Ukraine 2011'!$D$23)","v":"Yes"},{"$f":"IF(ISBLANK('Ukraine 2011'!$F$23),\"\",'Ukraine 2011'!$F$23)","v":"Academy of Science, National Academy of Post-Graduate Education"},{"$f":"IF(ISBLANK('Ukraine 2011'!$H$24),\"\",'Ukraine 2011'!$H$24)","v":"1-2 times"},{"$f":"IF(ISBLANK('Ukraine 2011'!$H$25),\"\",'Ukraine 2011'!$H$25)","v":"Yes"},{"$f":"IF(ISBLANK('Ukraine 2011'!$D$26),\"\",'Ukraine 2011'!$D$26)","v":"No"},{"$f":"IF(ISBLANK('Ukraine 2011'!$F$26),\"\",'Ukraine 2011'!$F$26)","v":""},{"$f":"IF(ISBLANK('Ukraine 2011'!$H$26),\"\",'Ukraine 2011'!$H$26)","v":""},null,{"$f":"IF(ISBLANK('Ukraine 2011'!$F$28),\"\",'Ukraine 2011'!$F$28)","v":"January"},{"$f":"IF(ISBLANK('Ukraine 2011'!$H$28),\"\",'Ukraine 2011'!$H$28)","v":"December"},{"$f":"IF(ISBLANK('Ukraine 2011'!$G$29),\"\",'Ukraine 2011'!$G$29)","v":3600000},{"$f":"IF(ISBLANK('Ukraine 2011'!$E$30),\"\",'Ukraine 2011'!$E$30)","v":"06/10"},{"$f":"IF(ISBLANK('Ukraine 2011'!$G$30),\"\",'Ukraine 2011'!$G$30)","v":"USAID/JSI - Together for Health Project"},{"$f":"IF(ISBLANK('Ukraine 2011'!$H$31),\"\",'Ukraine 2011'!$H$31)","v":"Yes"},{"$f":"IF(ISBLANK('Ukraine 2011'!$H$32),\"\",'Ukraine 2011'!$H$32)","v":"Yes"},{"$f":"IF(ISBLANK('Ukraine 2011'!$E$35),\"\",'Ukraine 2011'!$E$35)","v":165000},{"$f":"IF(ISBLANK('Ukraine 2011'!$F$35),\"\",'Ukraine 2011'!$F$35)","v":"01/10-12/10"},{"$f":"IF(ISBLANK('Ukraine 2011'!$G$35),\"\",'Ukraine 2011'!$G$35)","v":"Ministry of Finance of Ukraine"},{"$f":"IF(ISBLANK('Ukraine 2011'!$H$35),\"\",'Ukraine 2011'!$H$35)","v":"This amount does not include regional allocations."},{"$f":"IF(ISBLANK('Ukraine 2011'!$H$37),\"\",'Ukraine 2011'!$H$37)","v":"Yes"},{"$f":"IF(ISBLANK('Ukraine 2011'!$D$40),\"\",'Ukraine 2011'!$D$40)","v":"Yes"},{"$f":"IF(ISBLANK('Ukraine 2011'!$D$41),\"\",'Ukraine 2011'!$D$41)","v":"State Budget of Ukraine for 2010 ($165,000) and regional budgets ($110,000)"},{"$f":"IF(ISBLANK('Ukraine 2011'!$E$40),\"\",'Ukraine 2011'!$E$40)","v":275000},{"$f":"IF(ISBLANK('Ukraine 2011'!$F$40),\"\",'Ukraine 2011'!$F$40)","v":"01/10-12/10"},{"$f":"IF(ISBLANK('Ukraine 2011'!$G$40),\"\",'Ukraine 2011'!$G$40)","v":"MOH report on implementation of the SPRHN"},{"$f":"IF(ISBLANK('Ukraine 2011'!$H$40),\"\",'Ukraine 2011'!$H$40)","v":"This amount includes the cumulative national and regional budget expenditures."},{"$f":"IF(ISBLANK('Ukraine 2011'!$D$42),\"\",'Ukraine 2011'!$D$42)","v":"No"},{"$f":"IF(ISBLANK('Ukraine 2011'!$D$43),\"\",'Ukraine 2011'!$D$43)","v":"N/A"},{"$f":"IF(ISBLANK('Ukraine 2011'!$E$42),\"\",'Ukraine 2011'!$E$42)","v":0},{"$f":"IF(ISBLANK('Ukraine 2011'!$F$42),\"\",'Ukraine 2011'!$F$42)","v":"01/10-12/10"},{"$f":"IF(ISBLANK('Ukraine 2011'!$G$42),\"\",'Ukraine 2011'!$G$42)","v":""},{"$f":"IF(ISBLANK('Ukraine 2011'!$H$42),\"\",'Ukraine 2011'!$H$42)","v":""},{"$f":"IF(ISBLANK('Ukraine 2011'!$E$44),\"\",'Ukraine 2011'!$E$44)","v":275000},{"$f":"IF(ISBLANK('Ukraine 2011'!$H$44),\"\",'Ukraine 2011'!$H$44)","v":""},null,{"$f":"IF(ISBLANK('Ukraine 2011'!$D$48),\"\",'Ukraine 2011'!$D$48)","v":"Yes"},{"$f":"IF(ISBLANK('Ukraine 2011'!$D$49),\"\",'Ukraine 2011'!$D$49)","v":"USAID/Washington"},{"$f":"IF(ISBLANK('Ukraine 2011'!$E$48),\"\",'Ukraine 2011'!$E$48)","v":382500},{"$f":"IF(ISBLANK('Ukraine 2011'!$F$48),\"\",'Ukraine 2011'!$F$48)","v":"01/10-12/10"},{"$f":"IF(ISBLANK('Ukraine 2011'!$G$48),\"\",'Ukraine 2011'!$G$48)","v":"USAID Together for Health Project (consumption estimate)"},{"$f":"IF(ISBLANK('Ukraine 2011'!$H$48),\"\",'Ukraine 2011'!$H$48)","v":"The total value of the USAID donated contraceptives is $765,000; it's expected to last until 2012. $191,250 was provided as an estimate of six months' consumption; this was doubled to reach an estimate of a year's consumption. \n"},{"$f":"IF(ISBLANK('Ukraine 2011'!$D$50),\"\",'Ukraine 2011'!$D$50)","v":"Yes"},{"$f":"IF(ISBLANK('Ukraine 2011'!$E$50),\"\",'Ukraine 2011'!$E$50)","v":764000},{"$f":"IF(ISBLANK('Ukraine 2011'!$F$50),\"\",'Ukraine 2011'!$F$50)","v":"01/10-12/10"},{"$f":"IF(ISBLANK('Ukraine 2011'!$G$50),\"\",'Ukraine 2011'!$G$50)","v":"International HIV/AIDS Alliance in Ukraine"},{"$f":"IF(ISBLANK('Ukraine 2011'!$H$50),\"\",'Ukraine 2011'!$H$50)","v":"International HIV/AIDS Alliance reports that $764,000 was provided by Global Fund to procure condoms for HIV/AIDS and STI prevention. This money was not used to procure condoms for FP purposes."},{"$f":"IF(ISBLANK('Ukraine 2011'!$D$51),\"\",'Ukraine 2011'!$D$51)","v":"No"},{"$f":"IF(ISBLANK('Ukraine 2011'!$E$51),\"\",'Ukraine 2011'!$E$51)","v":0},{"$f":"IF(ISBLANK('Ukraine 2011'!$F$51),\"\",'Ukraine 2011'!$F$51)","v":"01/10-12/10"},{"$f":"IF(ISBLANK('Ukraine 2011'!$G$51),\"\",'Ukraine 2011'!$G$51)","v":""},{"$f":"IF(ISBLANK('Ukraine 2011'!$H$51),\"\",'Ukraine 2011'!$H$51)","v":""},{"$f":"IF(ISBLANK('Ukraine 2011'!$E$52),\"\",'Ukraine 2011'!$E$52)","v":1146500},{"$f":"IF(ISBLANK('Ukraine 2011'!$H$52),\"\",'Ukraine 2011'!$H$52)","v":""},{"$f":"IF(ISBLANK('Ukraine 2011'!$F$55),\"\",'Ukraine 2011'!$F$55)","v":0.19345761519521631},{"$f":"IF(ISBLANK('Ukraine 2011'!$G$55),\"\",'Ukraine 2011'!$G$55)","v":"Global Fund money to procure condoms for HIV/AIDS and STI prevention is included in this calculation as non-government funds. "},{"$f":"IF(ISBLANK('Ukraine 2011'!$F$56),\"\",'Ukraine 2011'!$F$56)","v":0.39486111111111111},{"$f":"IF(ISBLANK('Ukraine 2011'!$G$56),\"\",'Ukraine 2011'!$G$56)","v":""},{"$f":"IF(ISBLANK('Ukraine 2011'!$F$57),\"\",'Ukraine 2011'!$F$57)","v":"Yes"},{"$f":"IF(ISBLANK('Ukraine 2011'!$G$57),\"\",'Ukraine 2011'!$G$57)","v":""},{"$f":"IF(ISBLANK('Ukraine 2011'!$F$59),\"\",'Ukraine 2011'!$F$59)","v":"The government (e.g., Central Medical Stores, MOH logistics unit, MOH procurement unit)"},{"$f":"IF(ISBLANK('Ukraine 2011'!$F$60),\"\",'Ukraine 2011'!$F$60)","v":"Ministry of Health, MCH Department in particular, and Oblast Health Administrations in collaboration with Oblast FP Centers"},{"$f":"IF(ISBLANK('Ukraine 2011'!$F$61),\"\",'Ukraine 2011'!$F$61)","v":"No"},{"$f":"IF(ISBLANK('Ukraine 2011'!$D$62),\"\",'Ukraine 2011'!$D$62)","v":"The USAID Together for Health project has been working with the Government of Ukraine (GOU) and oblast governments to mobilize budgeted resources for the procurement of contraceptives during the period January-December 2010.  (Note: The GOU commitment to finance the SPRHN remains at the same level in terms of local currency amount during the last 3 years. However, the amounts spent during the last 3 years are different.) The USAID TfH project has limited ability to influence the GOU contraceptive procurement process. The situation is aggravated by the fact that there has not been a permanent Head of the MCH Department at the MOH of Ukraine for the last 8 months because of the recent government rotations. Regional councils that make decisions on funding of regional RH programs are reporting decreases in social and health budgets as they have other competing health priorities like HIV/AIDS and TB. The economic crisis is still ongoing and led to the February-March increase of prices for utilities, gas, and food products. It continues to have a negative impact on the population's ability to purchase contraceptives, especially in the rural areas. FP providers reported in November 2010 that the maximum amount of money a Ukrainian woman of reproductive age living in a rural area can afford to spend for the purchase of contraceptives is $4-$5 per month."},null,null,{"$f":"IF(ISBLANK('Ukraine 2011'!$D$66),\"\",'Ukraine 2011'!$D$66)","v":"Yes"},{"$f":"IF(ISBLANK('Ukraine 2011'!$D$67),\"\",'Ukraine 2011'!$D$67)","v":"Yes"},{"$f":"IF(ISBLANK('Ukraine 2011'!$D$68),\"\",'Ukraine 2011'!$D$68)","v":"Yes"},{"$f":"IF(ISBLANK('Ukraine 2011'!$D$69),\"\",'Ukraine 2011'!$D$69)","v":"No"},{"$f":"IF(ISBLANK('Ukraine 2011'!$D$70),\"\",'Ukraine 2011'!$D$70)","v":"Yes"},{"$f":"IF(ISBLANK('Ukraine 2011'!$D$71),\"\",'Ukraine 2011'!$D$71)","v":"Yes"},{"$f":"IF(ISBLANK('Ukraine 2011'!$D$72),\"\",'Ukraine 2011'!$D$72)","v":"No"},{"$f":"IF(ISBLANK('Ukraine 2011'!$D$73),\"\",'Ukraine 2011'!$D$73)","v":"Yes"},{"$f":"IF(ISBLANK('Ukraine 2011'!$D$74),\"\",'Ukraine 2011'!$D$74)","v":"Yes"},{"$f":"IF(ISBLANK('Ukraine 2011'!$D$75),\"\",'Ukraine 2011'!$D$75)","v":"Yes"},{"$f":"IF(ISBLANK('Ukraine 2011'!$D$76),\"\",'Ukraine 2011'!$D$76)","v":"No"},{"$f":"IF(ISBLANK('Ukraine 2011'!$D$77),\"\",'Ukraine 2011'!$D$77)","v":"Vaginal ring, spermicides, patch"},null,{"$f":"IF(ISBLANK('Ukraine 2011'!$F$66),\"\",'Ukraine 2011'!$F$66)","v":"Yes"},{"$f":"IF(ISBLANK('Ukraine 2011'!$F$67),\"\",'Ukraine 2011'!$F$67)","v":"Yes"},{"$f":"IF(ISBLANK('Ukraine 2011'!$F$68),\"\",'Ukraine 2011'!$F$68)","v":"Yes"},{"$f":"IF(ISBLANK('Ukraine 2011'!$F$69),\"\",'Ukraine 2011'!$F$69)","v":"No"},{"$f":"IF(ISBLANK('Ukraine 2011'!$F$70),\"\",'Ukraine 2011'!$F$70)","v":"Yes"},{"$f":"IF(ISBLANK('Ukraine 2011'!$F$71),\"\",'Ukraine 2011'!$F$71)","v":"Yes"},{"$f":"IF(ISBLANK('Ukraine 2011'!$F$72),\"\",'Ukraine 2011'!$F$72)","v":"No"},{"$f":"IF(ISBLANK('Ukraine 2011'!$F$73),\"\",'Ukraine 2011'!$F$73)","v":"Yes"},{"$f":"IF(ISBLANK('Ukraine 2011'!$F$74),\"\",'Ukraine 2011'!$F$74)","v":"Yes"},{"$f":"IF(ISBLANK('Ukraine 2011'!$F$75),\"\",'Ukraine 2011'!$F$75)","v":"Yes"},{"$f":"IF(ISBLANK('Ukraine 2011'!$F$76),\"\",'Ukraine 2011'!$F$76)","v":"No"},{"$f":"IF(ISBLANK('Ukraine 2011'!$F$77),\"\",'Ukraine 2011'!$F$77)","v":"Vaginal ring, spermicides, patch"},null,{"$f":"IF(ISBLANK('Ukraine 2011'!$G$66),\"\",'Ukraine 2011'!$G$66)","v":"No"},{"$f":"IF(ISBLANK('Ukraine 2011'!$G$67),\"\",'Ukraine 2011'!$G$67)","v":"No"},{"$f":"IF(ISBLANK('Ukraine 2011'!$G$68),\"\",'Ukraine 2011'!$G$68)","v":"No"},{"$f":"IF(ISBLANK('Ukraine 2011'!$G$69),\"\",'Ukraine 2011'!$G$69)","v":"No"},{"$f":"IF(ISBLANK('Ukraine 2011'!$G$70),\"\",'Ukraine 2011'!$G$70)","v":"No"},{"$f":"IF(ISBLANK('Ukraine 2011'!$G$71),\"\",'Ukraine 2011'!$G$71)","v":"No"},{"$f":"IF(ISBLANK('Ukraine 2011'!$G$72),\"\",'Ukraine 2011'!$G$72)","v":"No"},{"$f":"IF(ISBLANK('Ukraine 2011'!$G$73),\"\",'Ukraine 2011'!$G$73)","v":"No"},{"$f":"IF(ISBLANK('Ukraine 2011'!$G$74),\"\",'Ukraine 2011'!$G$74)","v":"No"},{"$f":"IF(ISBLANK('Ukraine 2011'!$G$75),\"\",'Ukraine 2011'!$G$75)","v":"No"},{"$f":"IF(ISBLANK('Ukraine 2011'!$G$76),\"\",'Ukraine 2011'!$G$76)","v":"No"},{"$f":"IF(ISBLANK('Ukraine 2011'!$G$77),\"\",'Ukraine 2011'!$G$77)","v":"No"},null,{"$f":"IF(ISBLANK('Ukraine 2011'!$H$66),\"\",'Ukraine 2011'!$H$66)","v":"No"},{"$f":"IF(ISBLANK('Ukraine 2011'!$H$67),\"\",'Ukraine 2011'!$H$67)","v":"No"},{"$f":"IF(ISBLANK('Ukraine 2011'!$H$68),\"\",'Ukraine 2011'!$H$68)","v":"No"},{"$f":"IF(ISBLANK('Ukraine 2011'!$H$69),\"\",'Ukraine 2011'!$H$69)","v":"No"},{"$f":"IF(ISBLANK('Ukraine 2011'!$H$70),\"\",'Ukraine 2011'!$H$70)","v":"No"},{"$f":"IF(ISBLANK('Ukraine 2011'!$H$71),\"\",'Ukraine 2011'!$H$71)","v":"No"},{"$f":"IF(ISBLANK('Ukraine 2011'!$H$72),\"\",'Ukraine 2011'!$H$72)","v":"No"},{"$f":"IF(ISBLANK('Ukraine 2011'!$H$73),\"\",'Ukraine 2011'!$H$73)","v":"No"},{"$f":"IF(ISBLANK('Ukraine 2011'!$H$74),\"\",'Ukraine 2011'!$H$74)","v":"No"},{"$f":"IF(ISBLANK('Ukraine 2011'!$H$75),\"\",'Ukraine 2011'!$H$75)","v":"No"},{"$f":"IF(ISBLANK('Ukraine 2011'!$H$76),\"\",'Ukraine 2011'!$H$76)","v":"No"},{"$f":"IF(ISBLANK('Ukraine 2011'!$H$77),\"\",'Ukraine 2011'!$H$77)","v":"No"},{"$f":"IF(ISBLANK('Ukraine 2011'!$D$78),\"\",'Ukraine 2011'!$D$78)","v":"The public sector CAN offer POPs and ECs, but at this point the methods are not available in stock. Implants are not yet registered in Ukraine; the producer plans to begin registration this year. NGOs are not allowed by law to support the provision of FP services and commodities. There are no FP-related social marketing programs in Ukraine. \n"},null,{"$f":"IF(ISBLANK('Ukraine 2011'!$H$80),\"\",'Ukraine 2011'!$H$80)","v":"No"},{"$f":"IF(ISBLANK('Ukraine 2011'!$C$83),\"\",'Ukraine 2011'!$C$83)","v":""},{"$f":"IF(ISBLANK('Ukraine 2011'!$D$83),\"\",'Ukraine 2011'!$D$83)","v":""},{"$f":"IF(ISBLANK('Ukraine 2011'!$F$83),\"\",'Ukraine 2011'!$F$83)","v":""},{"$f":"IF(ISBLANK('Ukraine 2011'!$G$83),\"\",'Ukraine 2011'!$G$83)","v":""},{"$f":"IF(ISBLANK('Ukraine 2011'!$F$84),\"\",'Ukraine 2011'!$F$84)","v":"Yes"},{"$f":"IF(ISBLANK('Ukraine 2011'!$E$85),\"\",'Ukraine 2011'!$E$85)","v":"Commercial sector"},{"$f":"IF(ISBLANK('Ukraine 2011'!$E$86),\"\",'Ukraine 2011'!$E$86)","v":"VAT (20% of the total cost), custom tax"},{"$f":"IF(ISBLANK('Ukraine 2011'!$H$87),\"\",'Ukraine 2011'!$H$87)","v":"Yes"},{"$f":"IF(ISBLANK('Ukraine 2011'!$D$88),\"\",'Ukraine 2011'!$D$88)","v":"The law of Ukraine \"On Advertising\", article 21 does not allow advertising of prescription-based medicines, which includes contraceptives. "},{"$f":"IF(ISBLANK('Ukraine 2011'!$H$89),\"\",'Ukraine 2011'!$H$89)","v":"Yes"},{"$f":"IF(ISBLANK('Ukraine 2011'!$D$90),\"\",'Ukraine 2011'!$D$90)","v":"Drugs (including contraceptives) are exempted from the payment of VAT in Ukraine. Also, private companies have to be registered and licensed. This is protection against counterfeit drugs. "},{"$f":"IF(ISBLANK('Ukraine 2011'!$H$91),\"\",'Ukraine 2011'!$H$91)","v":"Yes"},{"$f":"IF(ISBLANK('Ukraine 2011'!$C$94),\"\",'Ukraine 2011'!$C$94)","v":"All hormonal methods "},{"$f":"IF(ISBLANK('Ukraine 2011'!$E$94),\"\",'Ukraine 2011'!$E$94)","v":"Clinics can either dispense or prescribe these methods for purchase in state pharmacies. The prescriptions are written by doctors; midwives and nurses are not allowed to write prescriptions. "},{"$f":"IF(ISBLANK('Ukraine 2011'!$G$94),\"\",'Ukraine 2011'!$G$94)","v":"Licensed pharmacies sell hormonals based on a doctor prescription."},{"$f":"IF(ISBLANK('Ukraine 2011'!$C$95),\"\",'Ukraine 2011'!$C$95)","v":"IUDs"},{"$f":"IF(ISBLANK('Ukraine 2011'!$E$95),\"\",'Ukraine 2011'!$E$95)","v":"Only specially trained ob-gyns can insert IUDs. Family doctors can only prescribe IUDs. Midwives and nurses cannot prescribe them."},{"$f":"IF(ISBLANK('Ukraine 2011'!$G$95),\"\",'Ukraine 2011'!$G$95)","v":"Only specially trained ob-gyns can insert IUDs. Family doctors can only prescribe IUDs."},{"$f":"IF(ISBLANK('Ukraine 2011'!$C$96),\"\",'Ukraine 2011'!$C$96)","v":"Injectables"},{"$f":"IF(ISBLANK('Ukraine 2011'!$E$96),\"\",'Ukraine 2011'!$E$96)","v":"Nurses and midwives can provide the Depo injections, in a health facility, upon the recommendation from a doctor."},{"$f":"IF(ISBLANK('Ukraine 2011'!$G$96),\"\",'Ukraine 2011'!$G$96)","v":""},null,{"$f":"IF(ISBLANK('Ukraine 2011'!$D$99),\"\",'Ukraine 2011'!$D$99)","v":"No"},{"$f":"IF(ISBLANK('Ukraine 2011'!$E$99),\"\",'Ukraine 2011'!$E$99)","v":""},{"$f":"IF(ISBLANK('Ukraine 2011'!$H$99),\"\",'Ukraine 2011'!$H$99)","v":""},{"$f":"IF(ISBLANK('Ukraine 2011'!$D$100),\"\",'Ukraine 2011'!$D$100)","v":"No"},{"$f":"IF(ISBLANK('Ukraine 2011'!$E$100),\"\",'Ukraine 2011'!$E$100)","v":""},{"$f":"IF(ISBLANK('Ukraine 2011'!$H$100),\"\",'Ukraine 2011'!$H$100)","v":""},{"$f":"IF(ISBLANK('Ukraine 2011'!$D$101),\"\",'Ukraine 2011'!$D$101)","v":"No"},{"$f":"IF(ISBLANK('Ukraine 2011'!$E$101),\"\",'Ukraine 2011'!$E$101)","v":""},{"$f":"IF(ISBLANK('Ukraine 2011'!$H$101),\"\",'Ukraine 2011'!$H$101)","v":""},null,{"$f":"IF(ISBLANK('Ukraine 2011'!$G$104),\"\",'Ukraine 2011'!$G$104)","v":"No"},{"$f":"IF(ISBLANK('Ukraine 2011'!$G$105),\"\",'Ukraine 2011'!$G$105)","v":"No"},{"$f":"IF(ISBLANK('Ukraine 2011'!$G$106),\"\",'Ukraine 2011'!$G$106)","v":"N/A"},{"$f":"IF(ISBLANK('Ukraine 2011'!$D$107),\"\",'Ukraine 2011'!$D$107)","v":"N/A"},null,{"$f":"IF(ISBLANK('Ukraine 2011'!$G$109),\"\",'Ukraine 2011'!$G$109)","v":"Yes"},{"$f":"IF(ISBLANK('Ukraine 2011'!$G$110),\"\",'Ukraine 2011'!$G$110)","v":"Yes"},{"$f":"IF(ISBLANK('Ukraine 2011'!$G$111),\"\",'Ukraine 2011'!$G$111)","v":"Yes"},{"$f":"IF(ISBLANK('Ukraine 2011'!$G$112),\"\",'Ukraine 2011'!$G$112)","v":"Yes"},{"$f":"IF(ISBLANK('Ukraine 2011'!$G$113),\"\",'Ukraine 2011'!$G$113)","v":"No"},{"$f":"IF(ISBLANK('Ukraine 2011'!$G$114),\"\",'Ukraine 2011'!$G$114)","v":"No"},{"$f":"IF(ISBLANK('Ukraine 2011'!$G$115),\"\",'Ukraine 2011'!$G$115)","v":"No"},{"$f":"IF(ISBLANK('Ukraine 2011'!$G$116),\"\",'Ukraine 2011'!$G$116)","v":"Yes"},{"$f":"IF(ISBLANK('Ukraine 2011'!$G$117),\"\",'Ukraine 2011'!$G$117)","v":"No"},{"$f":"IF(ISBLANK('Ukraine 2011'!$G$118),\"\",'Ukraine 2011'!$G$118)","v":"No"},{"$f":"IF(ISBLANK('Ukraine 2011'!$F$119),\"\",'Ukraine 2011'!$F$119)","v":"N/A"},{"$f":"IF(ISBLANK('Ukraine 2011'!$F$120),\"\",'Ukraine 2011'!$F$120)","v":2009},{"$f":"IF(ISBLANK('Ukraine 2011'!$D$121),\"\",'Ukraine 2011'!$D$121)","v":"National Essential Medicine List"},{"$f":"IF(ISBLANK('Ukraine 2011'!$D$122),\"\",'Ukraine 2011'!$D$122)","v":"Condoms and IUDs are not part of this list as Ukrainian legislation considers them medical devices. A list of medical devices does not exist."},null,{"$f":"IF(ISBLANK('Ukraine 2011'!$F$124),\"\",'Ukraine 2011'!$F$124)","v":2005},{"$f":"IF(ISBLANK('Ukraine 2011'!$G$125),\"\",'Ukraine 2011'!$G$125)","v":"Yes"},{"$f":"IF(ISBLANK('Ukraine 2011'!$G$126),\"\",'Ukraine 2011'!$G$126)","v":"No"},{"$f":"IF(ISBLANK('Ukraine 2011'!$G$127),\"\",'Ukraine 2011'!$G$127)","v":"No"},{"$f":"IF(ISBLANK('Ukraine 2011'!$G$128),\"\",'Ukraine 2011'!$G$128)","v":"No"},{"$f":"IF(ISBLANK('Ukraine 2011'!$D$129),\"\",'Ukraine 2011'!$D$129)","v":"Improving peoples' abilities to plan the size of their families is one of the priorities under Pillar 5: Human development (p.34) \nThe following are priorities for the health sector, but not indicators:\n- Procure additional reproductive health commodities\n- Family planning supplies for 3 million couples per year\n(p.195, Table 7.5)"},null,{"$f":"IF(ISBLANK('Ukraine 2011'!$G$131),\"\",'Ukraine 2011'!$G$131)","v":"Don't know"},null,{"$f":"IF(ISBLANK('Ukraine 2011'!$G$133),\"\",'Ukraine 2011'!$G$133)","v":"Don't know"},{"$f":"IF(ISBLANK('Ukraine 2011'!$G$134),\"\",'Ukraine 2011'!$G$134)","v":"N/A"},{"$f":"IF(ISBLANK('Ukraine 2011'!$G$135),\"\",'Ukraine 2011'!$G$135)","v":"N/A"},{"$f":"IF(ISBLANK('Ukraine 2011'!$G$136),\"\",'Ukraine 2011'!$G$136)","v":"N/A"},{"$f":"IF(ISBLANK('Ukraine 2011'!$G$137),\"\",'Ukraine 2011'!$G$137)","v":"Don't know"},{"$f":"IF(ISBLANK('Ukraine 2011'!$G$138),\"\",'Ukraine 2011'!$G$138)","v":"Don't know"},{"$f":"IF(ISBLANK('Ukraine 2011'!$G$139),\"\",'Ukraine 2011'!$G$139)","v":"N/A"},{"$f":"IF(ISBLANK('Ukraine 2011'!$G$140),\"\",'Ukraine 2011'!$G$140)","v":"N/A"},{"$f":"IF(ISBLANK('Ukraine 2011'!$G$141),\"\",'Ukraine 2011'!$G$141)","v":"N/A"},{"$f":"IF(ISBLANK('Ukraine 2011'!$F$142),\"\",'Ukraine 2011'!$F$142)","v":"N/A"},{"$f":"IF(ISBLANK('Ukraine 2011'!$F$143),\"\",'Ukraine 2011'!$F$143)","v":"The answer \"don’t know\" means there is no data available at the MOH on how they handle the procured contraceptives. The answer \"N/A\" means that some of the contraceptives are not registered (e.g., implants and CycleBeads) or are not procured by the GOU (e.g., progestin-only pills, injections, emergency contraceptives)."},null,{"$f":"IF(ISBLANK('Ukraine 2011'!$G$145),\"\",'Ukraine 2011'!$G$145)","v":"Yes"},{"$f":"IF(ISBLANK('Ukraine 2011'!$G$146),\"\",'Ukraine 2011'!$G$146)","v":"Don't know"},{"$f":"IF(ISBLANK('Ukraine 2011'!$D$147),\"\",'Ukraine 2011'!$D$147)","v":"There are four vulnerable population groups in Ukraine that have access to free contraceptives through the public sector: poor people, HIV+ women, youth aged 18-20, and women with extragenital pathologies. The Ministry of Health (MOH) does not estimate the need for contraceptives for these groups, as they never receive state funding for procurement of contraceptives based on the need. The funding is always limited and represents \"what is given by the Ministry of Finance\". In addition, there are no clear criteria in the country regarding \"who is the poor\", and thus, there are no official records on the number of poor people. State Statistics Committee (SSC) of Ukraine says that 48.6% of the population live on a monthly income of $100-$200.  The MOH reports that they procure contraceptives in sufficient quantities to ensure that 90%-100% of women with extragenital pathologies have access to them (the fourth vulnerable group). However, this satisfies only one of the four vulnerable groups. The USAID Together for Health (TfH) project made the forecast of the contraceptive needs for the eligible population in Ukraine in 2010. They used the World Bank estimate that 8% of the population in Ukraine is poor, UNAIDS data on HIV+ people, SSC data on youth, and 2007 DHS for details on contraceptive use.  Also, since October 2010, the USAID TfH project has been distributing the USAID-donated contraceptives (DepoProvera, Microgynon, and Copper IUD) that reach the primary health care level in 15 regions of Ukraine (out of a total of 27). The regions are collecting data on distribution and reporting to the project. However, since the distribution has been active for only one quarter, it is too early to make conclusions about the contraceptive needs in these 15 regions."},"Europe and Asia"]
["Yemen ",null,{"$f":"IF(ISBLANK('Yemen 2011'!$H$12),\"\",'Yemen 2011'!$H$12)","v":"Yes"},{"$f":"IF(ISBLANK('Yemen 2011'!$D$13),\"\",'Yemen 2011'!$D$13)","v":"Reproductive Health Commodity Security"},null,{"$f":"IF(ISBLANK('Yemen 2011'!$D$15),\"\",'Yemen 2011'!$D$15)","v":"Yes"},{"$f":"IF(ISBLANK('Yemen 2011'!$F$15),\"\",'Yemen 2011'!$F$15)","v":"Yamman (Marie Stopes International)"},{"$f":"IF(ISBLANK('Yemen 2011'!$D$16),\"\",'Yemen 2011'!$D$16)","v":"Yes"},{"$f":"IF(ISBLANK('Yemen 2011'!$F$16),\"\",'Yemen 2011'!$F$16)","v":"Yemen Family Care Association, GSSC, Yamaan"},{"$f":"IF(ISBLANK('Yemen 2011'!$D$17),\"\",'Yemen 2011'!$D$17)","v":"No"},{"$f":"IF(ISBLANK('Yemen 2011'!$F$17),\"\",'Yemen 2011'!$F$17)","v":""},{"$f":"IF(ISBLANK('Yemen 2011'!$D$18),\"\",'Yemen 2011'!$D$18)","v":"Yes"},{"$f":"IF(ISBLANK('Yemen 2011'!$F$18),\"\",'Yemen 2011'!$F$18)","v":"EKN, GIZ"},{"$f":"IF(ISBLANK('Yemen 2011'!$D$19),\"\",'Yemen 2011'!$D$19)","v":"Yes"},{"$f":"IF(ISBLANK('Yemen 2011'!$F$19),\"\",'Yemen 2011'!$F$19)","v":"UNFPA"},{"$f":"IF(ISBLANK('Yemen 2011'!$D$20),\"\",'Yemen 2011'!$D$20)","v":"Yes"},{"$f":"IF(ISBLANK('Yemen 2011'!$F$20),\"\",'Yemen 2011'!$F$20)","v":"Supply Directorate, RH General Directorate, National Drug Program, Curative Sector"},{"$f":"IF(ISBLANK('Yemen 2011'!$D$21),\"\",'Yemen 2011'!$D$21)","v":"Yes"},{"$f":"IF(ISBLANK('Yemen 2011'!$F$21),\"\",'Yemen 2011'!$F$21)","v":"Central Warehouse"},{"$f":"IF(ISBLANK('Yemen 2011'!$D$22),\"\",'Yemen 2011'!$D$22)","v":"No"},{"$f":"IF(ISBLANK('Yemen 2011'!$F$22),\"\",'Yemen 2011'!$F$22)","v":""},{"$f":"IF(ISBLANK('Yemen 2011'!$D$23),\"\",'Yemen 2011'!$D$23)","v":"No"},{"$f":"IF(ISBLANK('Yemen 2011'!$F$23),\"\",'Yemen 2011'!$F$23)","v":""},{"$f":"IF(ISBLANK('Yemen 2011'!$H$24),\"\",'Yemen 2011'!$H$24)","v":"6 or more times"},{"$f":"IF(ISBLANK('Yemen 2011'!$H$25),\"\",'Yemen 2011'!$H$25)","v":"N/A"},{"$f":"IF(ISBLANK('Yemen 2011'!$D$26),\"\",'Yemen 2011'!$D$26)","v":"No"},{"$f":"IF(ISBLANK('Yemen 2011'!$F$26),\"\",'Yemen 2011'!$F$26)","v":""},{"$f":"IF(ISBLANK('Yemen 2011'!$H$26),\"\",'Yemen 2011'!$H$26)","v":""},null,{"$f":"IF(ISBLANK('Yemen 2011'!$F$28),\"\",'Yemen 2011'!$F$28)","v":"January"},{"$f":"IF(ISBLANK('Yemen 2011'!$H$28),\"\",'Yemen 2011'!$H$28)","v":"December"},{"$f":"IF(ISBLANK('Yemen 2011'!$G$29),\"\",'Yemen 2011'!$G$29)","v":"Don't know"},{"$f":"IF(ISBLANK('Yemen 2011'!$E$30),\"\",'Yemen 2011'!$E$30)","v":"01/11"},{"$f":"IF(ISBLANK('Yemen 2011'!$G$30),\"\",'Yemen 2011'!$G$30)","v":"MOPHP and UNFPA"},{"$f":"IF(ISBLANK('Yemen 2011'!$H$31),\"\",'Yemen 2011'!$H$31)","v":"No"},{"$f":"IF(ISBLANK('Yemen 2011'!$H$32),\"\",'Yemen 2011'!$H$32)","v":"Yes"},{"$f":"IF(ISBLANK('Yemen 2011'!$E$35),\"\",'Yemen 2011'!$E$35)","v":95000},{"$f":"IF(ISBLANK('Yemen 2011'!$F$35),\"\",'Yemen 2011'!$F$35)","v":"01/10-12/10"},{"$f":"IF(ISBLANK('Yemen 2011'!$G$35),\"\",'Yemen 2011'!$G$35)","v":"MoPHP annual plan"},{"$f":"IF(ISBLANK('Yemen 2011'!$H$35),\"\",'Yemen 2011'!$H$35)","v":""},{"$f":"IF(ISBLANK('Yemen 2011'!$H$37),\"\",'Yemen 2011'!$H$37)","v":"No"},{"$f":"IF(ISBLANK('Yemen 2011'!$D$40),\"\",'Yemen 2011'!$D$40)","v":"No"},{"$f":"IF(ISBLANK('Yemen 2011'!$D$41),\"\",'Yemen 2011'!$D$41)","v":"N/A"},{"$f":"IF(ISBLANK('Yemen 2011'!$E$40),\"\",'Yemen 2011'!$E$40)","v":0},{"$f":"IF(ISBLANK('Yemen 2011'!$F$40),\"\",'Yemen 2011'!$F$40)","v":"01/10-12/10"},{"$f":"IF(ISBLANK('Yemen 2011'!$G$40),\"\",'Yemen 2011'!$G$40)","v":""},{"$f":"IF(ISBLANK('Yemen 2011'!$H$40),\"\",'Yemen 2011'!$H$40)","v":""},{"$f":"IF(ISBLANK('Yemen 2011'!$D$42),\"\",'Yemen 2011'!$D$42)","v":"No"},{"$f":"IF(ISBLANK('Yemen 2011'!$D$43),\"\",'Yemen 2011'!$D$43)","v":"N/A"},{"$f":"IF(ISBLANK('Yemen 2011'!$E$42),\"\",'Yemen 2011'!$E$42)","v":0},{"$f":"IF(ISBLANK('Yemen 2011'!$F$42),\"\",'Yemen 2011'!$F$42)","v":"01/10-12/10"},{"$f":"IF(ISBLANK('Yemen 2011'!$G$42),\"\",'Yemen 2011'!$G$42)","v":""},{"$f":"IF(ISBLANK('Yemen 2011'!$H$42),\"\",'Yemen 2011'!$H$42)","v":""},{"$f":"IF(ISBLANK('Yemen 2011'!$E$44),\"\",'Yemen 2011'!$E$44)","v":0},{"$f":"IF(ISBLANK('Yemen 2011'!$H$44),\"\",'Yemen 2011'!$H$44)","v":""},null,{"$f":"IF(ISBLANK('Yemen 2011'!$D$48),\"\",'Yemen 2011'!$D$48)","v":"No"},{"$f":"IF(ISBLANK('Yemen 2011'!$D$49),\"\",'Yemen 2011'!$D$49)","v":"N/A"},{"$f":"IF(ISBLANK('Yemen 2011'!$E$48),\"\",'Yemen 2011'!$E$48)","v":0},{"$f":"IF(ISBLANK('Yemen 2011'!$F$48),\"\",'Yemen 2011'!$F$48)","v":"01/10-12/10"},{"$f":"IF(ISBLANK('Yemen 2011'!$G$48),\"\",'Yemen 2011'!$G$48)","v":""},{"$f":"IF(ISBLANK('Yemen 2011'!$H$48),\"\",'Yemen 2011'!$H$48)","v":"There were no new funds for 2010.  MOPHP spent the residual amount that was provided from UNFPA in 2008-2009"},{"$f":"IF(ISBLANK('Yemen 2011'!$D$50),\"\",'Yemen 2011'!$D$50)","v":"No"},{"$f":"IF(ISBLANK('Yemen 2011'!$E$50),\"\",'Yemen 2011'!$E$50)","v":0},{"$f":"IF(ISBLANK('Yemen 2011'!$F$50),\"\",'Yemen 2011'!$F$50)","v":"01/10-12/10"},{"$f":"IF(ISBLANK('Yemen 2011'!$G$50),\"\",'Yemen 2011'!$G$50)","v":""},{"$f":"IF(ISBLANK('Yemen 2011'!$H$50),\"\",'Yemen 2011'!$H$50)","v":""},{"$f":"IF(ISBLANK('Yemen 2011'!$D$51),\"\",'Yemen 2011'!$D$51)","v":"No"},{"$f":"IF(ISBLANK('Yemen 2011'!$E$51),\"\",'Yemen 2011'!$E$51)","v":0},{"$f":"IF(ISBLANK('Yemen 2011'!$F$51),\"\",'Yemen 2011'!$F$51)","v":"01/10-12/10"},{"$f":"IF(ISBLANK('Yemen 2011'!$G$51),\"\",'Yemen 2011'!$G$51)","v":""},{"$f":"IF(ISBLANK('Yemen 2011'!$H$51),\"\",'Yemen 2011'!$H$51)","v":""},{"$f":"IF(ISBLANK('Yemen 2011'!$E$52),\"\",'Yemen 2011'!$E$52)","v":0},{"$f":"IF(ISBLANK('Yemen 2011'!$H$52),\"\",'Yemen 2011'!$H$52)","v":""},{"$f":"IF(ISBLANK('Yemen 2011'!$F$55),\"\",'Yemen 2011'!$F$55)","v":"N/A"},{"$f":"IF(ISBLANK('Yemen 2011'!$G$55),\"\",'Yemen 2011'!$G$55)","v":""},{"$f":"IF(ISBLANK('Yemen 2011'!$F$56),\"\",'Yemen 2011'!$F$56)","v":"Don't know"},{"$f":"IF(ISBLANK('Yemen 2011'!$G$56),\"\",'Yemen 2011'!$G$56)","v":""},{"$f":"IF(ISBLANK('Yemen 2011'!$F$57),\"\",'Yemen 2011'!$F$57)","v":""},{"$f":"IF(ISBLANK('Yemen 2011'!$G$57),\"\",'Yemen 2011'!$G$57)","v":""},{"$f":"IF(ISBLANK('Yemen 2011'!$F$59),\"\",'Yemen 2011'!$F$59)","v":"N/A"},{"$f":"IF(ISBLANK('Yemen 2011'!$F$60),\"\",'Yemen 2011'!$F$60)","v":"N/A"},{"$f":"IF(ISBLANK('Yemen 2011'!$F$61),\"\",'Yemen 2011'!$F$61)","v":"N/A"},{"$f":"IF(ISBLANK('Yemen 2011'!$D$62),\"\",'Yemen 2011'!$D$62)","v":""},null,null,{"$f":"IF(ISBLANK('Yemen 2011'!$D$66),\"\",'Yemen 2011'!$D$66)","v":"Yes"},{"$f":"IF(ISBLANK('Yemen 2011'!$D$67),\"\",'Yemen 2011'!$D$67)","v":"Yes"},{"$f":"IF(ISBLANK('Yemen 2011'!$D$68),\"\",'Yemen 2011'!$D$68)","v":"Yes"},{"$f":"IF(ISBLANK('Yemen 2011'!$D$69),\"\",'Yemen 2011'!$D$69)","v":"Yes"},{"$f":"IF(ISBLANK('Yemen 2011'!$D$70),\"\",'Yemen 2011'!$D$70)","v":"Yes"},{"$f":"IF(ISBLANK('Yemen 2011'!$D$71),\"\",'Yemen 2011'!$D$71)","v":"Yes"},{"$f":"IF(ISBLANK('Yemen 2011'!$D$72),\"\",'Yemen 2011'!$D$72)","v":"No"},{"$f":"IF(ISBLANK('Yemen 2011'!$D$73),\"\",'Yemen 2011'!$D$73)","v":"No"},{"$f":"IF(ISBLANK('Yemen 2011'!$D$74),\"\",'Yemen 2011'!$D$74)","v":"Yes"},{"$f":"IF(ISBLANK('Yemen 2011'!$D$75),\"\",'Yemen 2011'!$D$75)","v":"Yes"},{"$f":"IF(ISBLANK('Yemen 2011'!$D$76),\"\",'Yemen 2011'!$D$76)","v":"No"},{"$f":"IF(ISBLANK('Yemen 2011'!$D$77),\"\",'Yemen 2011'!$D$77)","v":""},null,{"$f":"IF(ISBLANK('Yemen 2011'!$F$66),\"\",'Yemen 2011'!$F$66)","v":"Yes"},{"$f":"IF(ISBLANK('Yemen 2011'!$F$67),\"\",'Yemen 2011'!$F$67)","v":"Yes"},{"$f":"IF(ISBLANK('Yemen 2011'!$F$68),\"\",'Yemen 2011'!$F$68)","v":"Yes"},{"$f":"IF(ISBLANK('Yemen 2011'!$F$69),\"\",'Yemen 2011'!$F$69)","v":"Yes"},{"$f":"IF(ISBLANK('Yemen 2011'!$F$70),\"\",'Yemen 2011'!$F$70)","v":"Yes"},{"$f":"IF(ISBLANK('Yemen 2011'!$F$71),\"\",'Yemen 2011'!$F$71)","v":"Yes"},{"$f":"IF(ISBLANK('Yemen 2011'!$F$72),\"\",'Yemen 2011'!$F$72)","v":"No"},{"$f":"IF(ISBLANK('Yemen 2011'!$F$73),\"\",'Yemen 2011'!$F$73)","v":"No"},{"$f":"IF(ISBLANK('Yemen 2011'!$F$74),\"\",'Yemen 2011'!$F$74)","v":"Yes"},{"$f":"IF(ISBLANK('Yemen 2011'!$F$75),\"\",'Yemen 2011'!$F$75)","v":"Yes"},{"$f":"IF(ISBLANK('Yemen 2011'!$F$76),\"\",'Yemen 2011'!$F$76)","v":"No"},{"$f":"IF(ISBLANK('Yemen 2011'!$F$77),\"\",'Yemen 2011'!$F$77)","v":""},null,{"$f":"IF(ISBLANK('Yemen 2011'!$G$66),\"\",'Yemen 2011'!$G$66)","v":"Yes"},{"$f":"IF(ISBLANK('Yemen 2011'!$G$67),\"\",'Yemen 2011'!$G$67)","v":"Yes"},{"$f":"IF(ISBLANK('Yemen 2011'!$G$68),\"\",'Yemen 2011'!$G$68)","v":"Yes"},{"$f":"IF(ISBLANK('Yemen 2011'!$G$69),\"\",'Yemen 2011'!$G$69)","v":"Yes"},{"$f":"IF(ISBLANK('Yemen 2011'!$G$70),\"\",'Yemen 2011'!$G$70)","v":"Yes"},{"$f":"IF(ISBLANK('Yemen 2011'!$G$71),\"\",'Yemen 2011'!$G$71)","v":"Yes"},{"$f":"IF(ISBLANK('Yemen 2011'!$G$72),\"\",'Yemen 2011'!$G$72)","v":"No"},{"$f":"IF(ISBLANK('Yemen 2011'!$G$73),\"\",'Yemen 2011'!$G$73)","v":"No"},{"$f":"IF(ISBLANK('Yemen 2011'!$G$74),\"\",'Yemen 2011'!$G$74)","v":"No"},{"$f":"IF(ISBLANK('Yemen 2011'!$G$75),\"\",'Yemen 2011'!$G$75)","v":"No"},{"$f":"IF(ISBLANK('Yemen 2011'!$G$76),\"\",'Yemen 2011'!$G$76)","v":"No"},{"$f":"IF(ISBLANK('Yemen 2011'!$G$77),\"\",'Yemen 2011'!$G$77)","v":""},null,{"$f":"IF(ISBLANK('Yemen 2011'!$H$66),\"\",'Yemen 2011'!$H$66)","v":"Yes"},{"$f":"IF(ISBLANK('Yemen 2011'!$H$67),\"\",'Yemen 2011'!$H$67)","v":"Yes"},{"$f":"IF(ISBLANK('Yemen 2011'!$H$68),\"\",'Yemen 2011'!$H$68)","v":"Yes"},{"$f":"IF(ISBLANK('Yemen 2011'!$H$69),\"\",'Yemen 2011'!$H$69)","v":"Yes"},{"$f":"IF(ISBLANK('Yemen 2011'!$H$70),\"\",'Yemen 2011'!$H$70)","v":"Yes"},{"$f":"IF(ISBLANK('Yemen 2011'!$H$71),\"\",'Yemen 2011'!$H$71)","v":"Yes"},{"$f":"IF(ISBLANK('Yemen 2011'!$H$72),\"\",'Yemen 2011'!$H$72)","v":"No"},{"$f":"IF(ISBLANK('Yemen 2011'!$H$73),\"\",'Yemen 2011'!$H$73)","v":"No"},{"$f":"IF(ISBLANK('Yemen 2011'!$H$74),\"\",'Yemen 2011'!$H$74)","v":"No"},{"$f":"IF(ISBLANK('Yemen 2011'!$H$75),\"\",'Yemen 2011'!$H$75)","v":"No"},{"$f":"IF(ISBLANK('Yemen 2011'!$H$76),\"\",'Yemen 2011'!$H$76)","v":"No"},{"$f":"IF(ISBLANK('Yemen 2011'!$H$77),\"\",'Yemen 2011'!$H$77)","v":""},{"$f":"IF(ISBLANK('Yemen 2011'!$D$78),\"\",'Yemen 2011'!$D$78)","v":"Hormonal injections and implants are requested by people but coverage is low."},null,{"$f":"IF(ISBLANK('Yemen 2011'!$H$80),\"\",'Yemen 2011'!$H$80)","v":"Yes"},{"$f":"IF(ISBLANK('Yemen 2011'!$C$83),\"\",'Yemen 2011'!$C$83)","v":"Reproductive Health Strategy"},{"$f":"IF(ISBLANK('Yemen 2011'!$D$83),\"\",'Yemen 2011'!$D$83)","v":"2011- 2015"},{"$f":"IF(ISBLANK('Yemen 2011'!$F$83),\"\",'Yemen 2011'!$F$83)","v":"Yes"},{"$f":"IF(ISBLANK('Yemen 2011'!$G$83),\"\",'Yemen 2011'!$G$83)","v":"No"},{"$f":"IF(ISBLANK('Yemen 2011'!$F$84),\"\",'Yemen 2011'!$F$84)","v":"No"},{"$f":"IF(ISBLANK('Yemen 2011'!$E$85),\"\",'Yemen 2011'!$E$85)","v":"N/A"},{"$f":"IF(ISBLANK('Yemen 2011'!$E$86),\"\",'Yemen 2011'!$E$86)","v":"N/A"},{"$f":"IF(ISBLANK('Yemen 2011'!$H$87),\"\",'Yemen 2011'!$H$87)","v":"No"},{"$f":"IF(ISBLANK('Yemen 2011'!$D$88),\"\",'Yemen 2011'!$D$88)","v":"N/A"},{"$f":"IF(ISBLANK('Yemen 2011'!$H$89),\"\",'Yemen 2011'!$H$89)","v":"No"},{"$f":"IF(ISBLANK('Yemen 2011'!$D$90),\"\",'Yemen 2011'!$D$90)","v":"N/A"},{"$f":"IF(ISBLANK('Yemen 2011'!$H$91),\"\",'Yemen 2011'!$H$91)","v":"No"},{"$f":"IF(ISBLANK('Yemen 2011'!$C$94),\"\",'Yemen 2011'!$C$94)","v":""},{"$f":"IF(ISBLANK('Yemen 2011'!$E$94),\"\",'Yemen 2011'!$E$94)","v":""},{"$f":"IF(ISBLANK('Yemen 2011'!$G$94),\"\",'Yemen 2011'!$G$94)","v":""},{"$f":"IF(ISBLANK('Yemen 2011'!$C$95),\"\",'Yemen 2011'!$C$95)","v":""},{"$f":"IF(ISBLANK('Yemen 2011'!$E$95),\"\",'Yemen 2011'!$E$95)","v":""},{"$f":"IF(ISBLANK('Yemen 2011'!$G$95),\"\",'Yemen 2011'!$G$95)","v":""},{"$f":"IF(ISBLANK('Yemen 2011'!$C$96),\"\",'Yemen 2011'!$C$96)","v":""},{"$f":"IF(ISBLANK('Yemen 2011'!$E$96),\"\",'Yemen 2011'!$E$96)","v":""},{"$f":"IF(ISBLANK('Yemen 2011'!$G$96),\"\",'Yemen 2011'!$G$96)","v":""},null,{"$f":"IF(ISBLANK('Yemen 2011'!$D$99),\"\",'Yemen 2011'!$D$99)","v":"No"},{"$f":"IF(ISBLANK('Yemen 2011'!$E$99),\"\",'Yemen 2011'!$E$99)","v":""},{"$f":"IF(ISBLANK('Yemen 2011'!$H$99),\"\",'Yemen 2011'!$H$99)","v":""},{"$f":"IF(ISBLANK('Yemen 2011'!$D$100),\"\",'Yemen 2011'!$D$100)","v":"No"},{"$f":"IF(ISBLANK('Yemen 2011'!$E$100),\"\",'Yemen 2011'!$E$100)","v":""},{"$f":"IF(ISBLANK('Yemen 2011'!$H$100),\"\",'Yemen 2011'!$H$100)","v":""},{"$f":"IF(ISBLANK('Yemen 2011'!$D$101),\"\",'Yemen 2011'!$D$101)","v":"No"},{"$f":"IF(ISBLANK('Yemen 2011'!$E$101),\"\",'Yemen 2011'!$E$101)","v":""},{"$f":"IF(ISBLANK('Yemen 2011'!$H$101),\"\",'Yemen 2011'!$H$101)","v":""},null,{"$f":"IF(ISBLANK('Yemen 2011'!$G$104),\"\",'Yemen 2011'!$G$104)","v":"No"},{"$f":"IF(ISBLANK('Yemen 2011'!$G$105),\"\",'Yemen 2011'!$G$105)","v":"No"},{"$f":"IF(ISBLANK('Yemen 2011'!$G$106),\"\",'Yemen 2011'!$G$106)","v":"N/A"},{"$f":"IF(ISBLANK('Yemen 2011'!$D$107),\"\",'Yemen 2011'!$D$107)","v":"N/A"},null,{"$f":"IF(ISBLANK('Yemen 2011'!$G$109),\"\",'Yemen 2011'!$G$109)","v":"Yes"},{"$f":"IF(ISBLANK('Yemen 2011'!$G$110),\"\",'Yemen 2011'!$G$110)","v":"Yes"},{"$f":"IF(ISBLANK('Yemen 2011'!$G$111),\"\",'Yemen 2011'!$G$111)","v":"No"},{"$f":"IF(ISBLANK('Yemen 2011'!$G$112),\"\",'Yemen 2011'!$G$112)","v":"No"},{"$f":"IF(ISBLANK('Yemen 2011'!$G$113),\"\",'Yemen 2011'!$G$113)","v":"No"},{"$f":"IF(ISBLANK('Yemen 2011'!$G$114),\"\",'Yemen 2011'!$G$114)","v":"No"},{"$f":"IF(ISBLANK('Yemen 2011'!$G$115),\"\",'Yemen 2011'!$G$115)","v":"No"},{"$f":"IF(ISBLANK('Yemen 2011'!$G$116),\"\",'Yemen 2011'!$G$116)","v":"No"},{"$f":"IF(ISBLANK('Yemen 2011'!$G$117),\"\",'Yemen 2011'!$G$117)","v":"No"},{"$f":"IF(ISBLANK('Yemen 2011'!$G$118),\"\",'Yemen 2011'!$G$118)","v":"No"},{"$f":"IF(ISBLANK('Yemen 2011'!$F$119),\"\",'Yemen 2011'!$F$119)","v":"N/A"},{"$f":"IF(ISBLANK('Yemen 2011'!$F$120),\"\",'Yemen 2011'!$F$120)","v":2009},{"$f":"IF(ISBLANK('Yemen 2011'!$D$121),\"\",'Yemen 2011'!$D$121)","v":"National Essential Drug List"},{"$f":"IF(ISBLANK('Yemen 2011'!$D$122),\"\",'Yemen 2011'!$D$122)","v":""},null,{"$f":"IF(ISBLANK('Yemen 2011'!$F$124),\"\",'Yemen 2011'!$F$124)","v":2002},{"$f":"IF(ISBLANK('Yemen 2011'!$G$125),\"\",'Yemen 2011'!$G$125)","v":"Yes"},{"$f":"IF(ISBLANK('Yemen 2011'!$G$126),\"\",'Yemen 2011'!$G$126)","v":"No"},{"$f":"IF(ISBLANK('Yemen 2011'!$G$127),\"\",'Yemen 2011'!$G$127)","v":"No"},{"$f":"IF(ISBLANK('Yemen 2011'!$G$128),\"\",'Yemen 2011'!$G$128)","v":"No"},{"$f":"IF(ISBLANK('Yemen 2011'!$D$129),\"\",'Yemen 2011'!$D$129)","v":"Population status is one of the objectives under human resources development. (p.118)."},null,{"$f":"IF(ISBLANK('Yemen 2011'!$G$131),\"\",'Yemen 2011'!$G$131)","v":"Yes"},null,{"$f":"IF(ISBLANK('Yemen 2011'!$G$133),\"\",'Yemen 2011'!$G$133)","v":"No"},{"$f":"IF(ISBLANK('Yemen 2011'!$G$134),\"\",'Yemen 2011'!$G$134)","v":"Yes"},{"$f":"IF(ISBLANK('Yemen 2011'!$G$135),\"\",'Yemen 2011'!$G$135)","v":"Yes"},{"$f":"IF(ISBLANK('Yemen 2011'!$G$136),\"\",'Yemen 2011'!$G$136)","v":"Yes"},{"$f":"IF(ISBLANK('Yemen 2011'!$G$137),\"\",'Yemen 2011'!$G$137)","v":"No"},{"$f":"IF(ISBLANK('Yemen 2011'!$G$138),\"\",'Yemen 2011'!$G$138)","v":"No"},{"$f":"IF(ISBLANK('Yemen 2011'!$G$139),\"\",'Yemen 2011'!$G$139)","v":"Yes"},{"$f":"IF(ISBLANK('Yemen 2011'!$G$140),\"\",'Yemen 2011'!$G$140)","v":"N/A"},{"$f":"IF(ISBLANK('Yemen 2011'!$G$141),\"\",'Yemen 2011'!$G$141)","v":"N/A"},{"$f":"IF(ISBLANK('Yemen 2011'!$F$142),\"\",'Yemen 2011'!$F$142)","v":""},{"$f":"IF(ISBLANK('Yemen 2011'!$F$143),\"\",'Yemen 2011'!$F$143)","v":"Logistic reports of MOPHP"},null,{"$f":"IF(ISBLANK('Yemen 2011'!$G$145),\"\",'Yemen 2011'!$G$145)","v":"Yes"},{"$f":"IF(ISBLANK('Yemen 2011'!$G$146),\"\",'Yemen 2011'!$G$146)","v":"Yes"},{"$f":"IF(ISBLANK('Yemen 2011'!$D$147),\"\",'Yemen 2011'!$D$147)","v":""},"Europe and Asia"]
["Zambia ",null,{"$f":"IF(ISBLANK('Zambia 2011'!$H$12),\"\",'Zambia 2011'!$H$12)","v":"Yes"},{"$f":"IF(ISBLANK('Zambia 2011'!$D$13),\"\",'Zambia 2011'!$D$13)","v":"Reproductive Health Commodity Security Committee"},null,{"$f":"IF(ISBLANK('Zambia 2011'!$D$15),\"\",'Zambia 2011'!$D$15)","v":"Yes"},{"$f":"IF(ISBLANK('Zambia 2011'!$F$15),\"\",'Zambia 2011'!$F$15)","v":"Society for Family Health"},{"$f":"IF(ISBLANK('Zambia 2011'!$D$16),\"\",'Zambia 2011'!$D$16)","v":"Yes"},{"$f":"IF(ISBLANK('Zambia 2011'!$F$16),\"\",'Zambia 2011'!$F$16)","v":"Planned Parenthood Association (PPAZ), Marie Stopes International, Family Health International"},{"$f":"IF(ISBLANK('Zambia 2011'!$D$17),\"\",'Zambia 2011'!$D$17)","v":"No"},{"$f":"IF(ISBLANK('Zambia 2011'!$F$17),\"\",'Zambia 2011'!$F$17)","v":""},{"$f":"IF(ISBLANK('Zambia 2011'!$D$18),\"\",'Zambia 2011'!$D$18)","v":"Yes"},{"$f":"IF(ISBLANK('Zambia 2011'!$F$18),\"\",'Zambia 2011'!$F$18)","v":"Global Fund, DFID, USAID"},{"$f":"IF(ISBLANK('Zambia 2011'!$D$19),\"\",'Zambia 2011'!$D$19)","v":"Yes"},{"$f":"IF(ISBLANK('Zambia 2011'!$F$19),\"\",'Zambia 2011'!$F$19)","v":"UNFPA, UNICEF, WHO"},{"$f":"IF(ISBLANK('Zambia 2011'!$D$20),\"\",'Zambia 2011'!$D$20)","v":"Yes"},{"$f":"IF(ISBLANK('Zambia 2011'!$F$20),\"\",'Zambia 2011'!$F$20)","v":"Reproductive and Child Health, Pharmacy"},{"$f":"IF(ISBLANK('Zambia 2011'!$D$21),\"\",'Zambia 2011'!$D$21)","v":"Yes"},{"$f":"IF(ISBLANK('Zambia 2011'!$F$21),\"\",'Zambia 2011'!$F$21)","v":"Medical Stores Limited (MSL) - Central Warehouse"},{"$f":"IF(ISBLANK('Zambia 2011'!$D$22),\"\",'Zambia 2011'!$D$22)","v":"Yes"},{"$f":"IF(ISBLANK('Zambia 2011'!$F$22),\"\",'Zambia 2011'!$F$22)","v":"Ministry of Finance and National Planning"},{"$f":"IF(ISBLANK('Zambia 2011'!$D$23),\"\",'Zambia 2011'!$D$23)","v":"Yes"},{"$f":"IF(ISBLANK('Zambia 2011'!$F$23),\"\",'Zambia 2011'!$F$23)","v":"USAID | DELIVER PROJECT, Zambia Integrated Strengthened System Partnership (ZISSP), Zambia Prevention Care and Treatment II (ZPCT II), Center for Infectious Diseases Research in Zambia (CIDRZ)"},{"$f":"IF(ISBLANK('Zambia 2011'!$H$24),\"\",'Zambia 2011'!$H$24)","v":"3-5 times"},{"$f":"IF(ISBLANK('Zambia 2011'!$H$25),\"\",'Zambia 2011'!$H$25)","v":"No"},{"$f":"IF(ISBLANK('Zambia 2011'!$D$26),\"\",'Zambia 2011'!$D$26)","v":"Yes"},{"$f":"IF(ISBLANK('Zambia 2011'!$F$26),\"\",'Zambia 2011'!$F$26)","v":"MOH"},{"$f":"IF(ISBLANK('Zambia 2011'!$H$26),\"\",'Zambia 2011'!$H$26)","v":"Deputy Director, Reproductive and Child Health"},null,{"$f":"IF(ISBLANK('Zambia 2011'!$F$28),\"\",'Zambia 2011'!$F$28)","v":"January"},{"$f":"IF(ISBLANK('Zambia 2011'!$H$28),\"\",'Zambia 2011'!$H$28)","v":"December"},{"$f":"IF(ISBLANK('Zambia 2011'!$G$29),\"\",'Zambia 2011'!$G$29)","v":6407002},{"$f":"IF(ISBLANK('Zambia 2011'!$E$30),\"\",'Zambia 2011'!$E$30)","v":"11/10"},{"$f":"IF(ISBLANK('Zambia 2011'!$G$30),\"\",'Zambia 2011'!$G$30)","v":"Planned Parenthood Association, Marie Stopes International, USAID | DELIVER PROJECT, Zambia Prevention Care and Treatment II, Center for Infectious Diseases Research in Zambia, UNFPA, Society for Family Health, MOH "},{"$f":"IF(ISBLANK('Zambia 2011'!$H$31),\"\",'Zambia 2011'!$H$31)","v":"Yes"},{"$f":"IF(ISBLANK('Zambia 2011'!$H$32),\"\",'Zambia 2011'!$H$32)","v":"Yes"},{"$f":"IF(ISBLANK('Zambia 2011'!$E$35),\"\",'Zambia 2011'!$E$35)","v":619099},{"$f":"IF(ISBLANK('Zambia 2011'!$F$35),\"\",'Zambia 2011'!$F$35)","v":"01/10-12/10"},{"$f":"IF(ISBLANK('Zambia 2011'!$G$35),\"\",'Zambia 2011'!$G$35)","v":"GRZ Yellow Book (Government Activity Based Budget: Estimate of Revenue and Expenditure), PipeLine"},{"$f":"IF(ISBLANK('Zambia 2011'!$H$35),\"\",'Zambia 2011'!$H$35)","v":"Committed by MOH for the procurement of RH commodities (it's not specified whether funds were meant for contraceptives)"},{"$f":"IF(ISBLANK('Zambia 2011'!$H$37),\"\",'Zambia 2011'!$H$37)","v":"No"},{"$f":"IF(ISBLANK('Zambia 2011'!$D$40),\"\",'Zambia 2011'!$D$40)","v":"No"},{"$f":"IF(ISBLANK('Zambia 2011'!$D$41),\"\",'Zambia 2011'!$D$41)","v":""},{"$f":"IF(ISBLANK('Zambia 2011'!$E$40),\"\",'Zambia 2011'!$E$40)","v":0},{"$f":"IF(ISBLANK('Zambia 2011'!$F$40),\"\",'Zambia 2011'!$F$40)","v":"01/10-12/10"},{"$f":"IF(ISBLANK('Zambia 2011'!$G$40),\"\",'Zambia 2011'!$G$40)","v":""},{"$f":"IF(ISBLANK('Zambia 2011'!$H$40),\"\",'Zambia 2011'!$H$40)","v":""},{"$f":"IF(ISBLANK('Zambia 2011'!$D$42),\"\",'Zambia 2011'!$D$42)","v":"No"},{"$f":"IF(ISBLANK('Zambia 2011'!$D$43),\"\",'Zambia 2011'!$D$43)","v":"N/A"},{"$f":"IF(ISBLANK('Zambia 2011'!$E$42),\"\",'Zambia 2011'!$E$42)","v":0},{"$f":"IF(ISBLANK('Zambia 2011'!$F$42),\"\",'Zambia 2011'!$F$42)","v":"01/10-12/10"},{"$f":"IF(ISBLANK('Zambia 2011'!$G$42),\"\",'Zambia 2011'!$G$42)","v":""},{"$f":"IF(ISBLANK('Zambia 2011'!$H$42),\"\",'Zambia 2011'!$H$42)","v":"($1,602,872 worth of products arrived in 2010 [from funds originally from DFID], but the products were procured in 2009)"},{"$f":"IF(ISBLANK('Zambia 2011'!$E$44),\"\",'Zambia 2011'!$E$44)","v":0},{"$f":"IF(ISBLANK('Zambia 2011'!$H$44),\"\",'Zambia 2011'!$H$44)","v":""},null,{"$f":"IF(ISBLANK('Zambia 2011'!$D$48),\"\",'Zambia 2011'!$D$48)","v":"Yes"},{"$f":"IF(ISBLANK('Zambia 2011'!$D$49),\"\",'Zambia 2011'!$D$49)","v":"USAID $2,467,644; UNFPA $2,032,857"},{"$f":"IF(ISBLANK('Zambia 2011'!$E$48),\"\",'Zambia 2011'!$E$48)","v":4500501},{"$f":"IF(ISBLANK('Zambia 2011'!$F$48),\"\",'Zambia 2011'!$F$48)","v":"01/10-12/10"},{"$f":"IF(ISBLANK('Zambia 2011'!$G$48),\"\",'Zambia 2011'!$G$48)","v":"PipeLine"},{"$f":"IF(ISBLANK('Zambia 2011'!$H$48),\"\",'Zambia 2011'!$H$48)","v":""},{"$f":"IF(ISBLANK('Zambia 2011'!$D$50),\"\",'Zambia 2011'!$D$50)","v":"No"},{"$f":"IF(ISBLANK('Zambia 2011'!$E$50),\"\",'Zambia 2011'!$E$50)","v":0},{"$f":"IF(ISBLANK('Zambia 2011'!$F$50),\"\",'Zambia 2011'!$F$50)","v":"01/10-12/10"},{"$f":"IF(ISBLANK('Zambia 2011'!$G$50),\"\",'Zambia 2011'!$G$50)","v":""},{"$f":"IF(ISBLANK('Zambia 2011'!$H$50),\"\",'Zambia 2011'!$H$50)","v":""},{"$f":"IF(ISBLANK('Zambia 2011'!$D$51),\"\",'Zambia 2011'!$D$51)","v":"No"},{"$f":"IF(ISBLANK('Zambia 2011'!$E$51),\"\",'Zambia 2011'!$E$51)","v":0},{"$f":"IF(ISBLANK('Zambia 2011'!$F$51),\"\",'Zambia 2011'!$F$51)","v":"01/10-12/10"},{"$f":"IF(ISBLANK('Zambia 2011'!$G$51),\"\",'Zambia 2011'!$G$51)","v":""},{"$f":"IF(ISBLANK('Zambia 2011'!$H$51),\"\",'Zambia 2011'!$H$51)","v":""},{"$f":"IF(ISBLANK('Zambia 2011'!$E$52),\"\",'Zambia 2011'!$E$52)","v":4500501},{"$f":"IF(ISBLANK('Zambia 2011'!$H$52),\"\",'Zambia 2011'!$H$52)","v":""},{"$f":"IF(ISBLANK('Zambia 2011'!$F$55),\"\",'Zambia 2011'!$F$55)","v":0},{"$f":"IF(ISBLANK('Zambia 2011'!$G$55),\"\",'Zambia 2011'!$G$55)","v":""},{"$f":"IF(ISBLANK('Zambia 2011'!$F$56),\"\",'Zambia 2011'!$F$56)","v":0.70243477370539298},{"$f":"IF(ISBLANK('Zambia 2011'!$G$56),\"\",'Zambia 2011'!$G$56)","v":"There was no gap in 2010."},{"$f":"IF(ISBLANK('Zambia 2011'!$F$57),\"\",'Zambia 2011'!$F$57)","v":""},{"$f":"IF(ISBLANK('Zambia 2011'!$G$57),\"\",'Zambia 2011'!$G$57)","v":""},{"$f":"IF(ISBLANK('Zambia 2011'!$F$59),\"\",'Zambia 2011'!$F$59)","v":"The government (e.g., Central Medical Stores, MOH logistics unit, MOH procurement unit)"},{"$f":"IF(ISBLANK('Zambia 2011'!$F$60),\"\",'Zambia 2011'!$F$60)","v":"MOH Procurement Unit"},{"$f":"IF(ISBLANK('Zambia 2011'!$F$61),\"\",'Zambia 2011'!$F$61)","v":"No"},{"$f":"IF(ISBLANK('Zambia 2011'!$D$62),\"\",'Zambia 2011'!$D$62)","v":"The budget line is not only for the procurement of contraceptives, but for all RH commodities. "},null,null,{"$f":"IF(ISBLANK('Zambia 2011'!$D$66),\"\",'Zambia 2011'!$D$66)","v":"Yes"},{"$f":"IF(ISBLANK('Zambia 2011'!$D$67),\"\",'Zambia 2011'!$D$67)","v":"Yes"},{"$f":"IF(ISBLANK('Zambia 2011'!$D$68),\"\",'Zambia 2011'!$D$68)","v":"Yes"},{"$f":"IF(ISBLANK('Zambia 2011'!$D$69),\"\",'Zambia 2011'!$D$69)","v":"Yes"},{"$f":"IF(ISBLANK('Zambia 2011'!$D$70),\"\",'Zambia 2011'!$D$70)","v":"Yes"},{"$f":"IF(ISBLANK('Zambia 2011'!$D$71),\"\",'Zambia 2011'!$D$71)","v":"Yes"},{"$f":"IF(ISBLANK('Zambia 2011'!$D$72),\"\",'Zambia 2011'!$D$72)","v":"Yes"},{"$f":"IF(ISBLANK('Zambia 2011'!$D$73),\"\",'Zambia 2011'!$D$73)","v":"Yes"},{"$f":"IF(ISBLANK('Zambia 2011'!$D$74),\"\",'Zambia 2011'!$D$74)","v":"Don't know"},{"$f":"IF(ISBLANK('Zambia 2011'!$D$75),\"\",'Zambia 2011'!$D$75)","v":"Don't know"},{"$f":"IF(ISBLANK('Zambia 2011'!$D$76),\"\",'Zambia 2011'!$D$76)","v":"Don't know"},{"$f":"IF(ISBLANK('Zambia 2011'!$D$77),\"\",'Zambia 2011'!$D$77)","v":"No"},null,{"$f":"IF(ISBLANK('Zambia 2011'!$F$66),\"\",'Zambia 2011'!$F$66)","v":"Yes"},{"$f":"IF(ISBLANK('Zambia 2011'!$F$67),\"\",'Zambia 2011'!$F$67)","v":"Yes"},{"$f":"IF(ISBLANK('Zambia 2011'!$F$68),\"\",'Zambia 2011'!$F$68)","v":"Yes"},{"$f":"IF(ISBLANK('Zambia 2011'!$F$69),\"\",'Zambia 2011'!$F$69)","v":"Yes"},{"$f":"IF(ISBLANK('Zambia 2011'!$F$70),\"\",'Zambia 2011'!$F$70)","v":"Yes"},{"$f":"IF(ISBLANK('Zambia 2011'!$F$71),\"\",'Zambia 2011'!$F$71)","v":"Yes"},{"$f":"IF(ISBLANK('Zambia 2011'!$F$72),\"\",'Zambia 2011'!$F$72)","v":"Yes"},{"$f":"IF(ISBLANK('Zambia 2011'!$F$73),\"\",'Zambia 2011'!$F$73)","v":"Yes"},{"$f":"IF(ISBLANK('Zambia 2011'!$F$74),\"\",'Zambia 2011'!$F$74)","v":"Yes"},{"$f":"IF(ISBLANK('Zambia 2011'!$F$75),\"\",'Zambia 2011'!$F$75)","v":"Yes"},{"$f":"IF(ISBLANK('Zambia 2011'!$F$76),\"\",'Zambia 2011'!$F$76)","v":"No"},{"$f":"IF(ISBLANK('Zambia 2011'!$F$77),\"\",'Zambia 2011'!$F$77)","v":""},null,{"$f":"IF(ISBLANK('Zambia 2011'!$G$66),\"\",'Zambia 2011'!$G$66)","v":"Yes"},{"$f":"IF(ISBLANK('Zambia 2011'!$G$67),\"\",'Zambia 2011'!$G$67)","v":"Yes"},{"$f":"IF(ISBLANK('Zambia 2011'!$G$68),\"\",'Zambia 2011'!$G$68)","v":"Yes"},{"$f":"IF(ISBLANK('Zambia 2011'!$G$69),\"\",'Zambia 2011'!$G$69)","v":"Yes"},{"$f":"IF(ISBLANK('Zambia 2011'!$G$70),\"\",'Zambia 2011'!$G$70)","v":"Yes"},{"$f":"IF(ISBLANK('Zambia 2011'!$G$71),\"\",'Zambia 2011'!$G$71)","v":"Yes"},{"$f":"IF(ISBLANK('Zambia 2011'!$G$72),\"\",'Zambia 2011'!$G$72)","v":"Yes"},{"$f":"IF(ISBLANK('Zambia 2011'!$G$73),\"\",'Zambia 2011'!$G$73)","v":"Don't know"},{"$f":"IF(ISBLANK('Zambia 2011'!$G$74),\"\",'Zambia 2011'!$G$74)","v":"Don't know"},{"$f":"IF(ISBLANK('Zambia 2011'!$G$75),\"\",'Zambia 2011'!$G$75)","v":"Don't know"},{"$f":"IF(ISBLANK('Zambia 2011'!$G$76),\"\",'Zambia 2011'!$G$76)","v":"No"},{"$f":"IF(ISBLANK('Zambia 2011'!$G$77),\"\",'Zambia 2011'!$G$77)","v":""},null,{"$f":"IF(ISBLANK('Zambia 2011'!$H$66),\"\",'Zambia 2011'!$H$66)","v":"Yes"},{"$f":"IF(ISBLANK('Zambia 2011'!$H$67),\"\",'Zambia 2011'!$H$67)","v":"Yes"},{"$f":"IF(ISBLANK('Zambia 2011'!$H$68),\"\",'Zambia 2011'!$H$68)","v":"Yes"},{"$f":"IF(ISBLANK('Zambia 2011'!$H$69),\"\",'Zambia 2011'!$H$69)","v":"Yes"},{"$f":"IF(ISBLANK('Zambia 2011'!$H$70),\"\",'Zambia 2011'!$H$70)","v":"Yes"},{"$f":"IF(ISBLANK('Zambia 2011'!$H$71),\"\",'Zambia 2011'!$H$71)","v":"Yes"},{"$f":"IF(ISBLANK('Zambia 2011'!$H$72),\"\",'Zambia 2011'!$H$72)","v":"Yes"},{"$f":"IF(ISBLANK('Zambia 2011'!$H$73),\"\",'Zambia 2011'!$H$73)","v":"No"},{"$f":"IF(ISBLANK('Zambia 2011'!$H$74),\"\",'Zambia 2011'!$H$74)","v":"No"},{"$f":"IF(ISBLANK('Zambia 2011'!$H$75),\"\",'Zambia 2011'!$H$75)","v":"No"},{"$f":"IF(ISBLANK('Zambia 2011'!$H$76),\"\",'Zambia 2011'!$H$76)","v":"No"},{"$f":"IF(ISBLANK('Zambia 2011'!$H$77),\"\",'Zambia 2011'!$H$77)","v":""},{"$f":"IF(ISBLANK('Zambia 2011'!$D$78),\"\",'Zambia 2011'!$D$78)","v":""},null,{"$f":"IF(ISBLANK('Zambia 2011'!$H$80),\"\",'Zambia 2011'!$H$80)","v":"Yes"},{"$f":"IF(ISBLANK('Zambia 2011'!$C$83),\"\",'Zambia 2011'!$C$83)","v":"Reproductive Health Commodity Security Strategy"},{"$f":"IF(ISBLANK('Zambia 2011'!$D$83),\"\",'Zambia 2011'!$D$83)","v":"2011 - 2015"},{"$f":"IF(ISBLANK('Zambia 2011'!$F$83),\"\",'Zambia 2011'!$F$83)","v":"No"},{"$f":"IF(ISBLANK('Zambia 2011'!$G$83),\"\",'Zambia 2011'!$G$83)","v":"No"},{"$f":"IF(ISBLANK('Zambia 2011'!$F$84),\"\",'Zambia 2011'!$F$84)","v":"No"},{"$f":"IF(ISBLANK('Zambia 2011'!$E$85),\"\",'Zambia 2011'!$E$85)","v":"N/A"},{"$f":"IF(ISBLANK('Zambia 2011'!$E$86),\"\",'Zambia 2011'!$E$86)","v":"N/A"},{"$f":"IF(ISBLANK('Zambia 2011'!$H$87),\"\",'Zambia 2011'!$H$87)","v":"Yes"},{"$f":"IF(ISBLANK('Zambia 2011'!$D$88),\"\",'Zambia 2011'!$D$88)","v":"1. Sale/distribution of contraceptives restricted to retail pharmacies and private clinics. Only condoms are sold in supermarkets and drugstores. 2. Advertising ban"},{"$f":"IF(ISBLANK('Zambia 2011'!$H$89),\"\",'Zambia 2011'!$H$89)","v":"Don't know"},{"$f":"IF(ISBLANK('Zambia 2011'!$D$90),\"\",'Zambia 2011'!$D$90)","v":"Don't know"},{"$f":"IF(ISBLANK('Zambia 2011'!$H$91),\"\",'Zambia 2011'!$H$91)","v":"Don't know"},{"$f":"IF(ISBLANK('Zambia 2011'!$C$94),\"\",'Zambia 2011'!$C$94)","v":""},{"$f":"IF(ISBLANK('Zambia 2011'!$E$94),\"\",'Zambia 2011'!$E$94)","v":""},{"$f":"IF(ISBLANK('Zambia 2011'!$G$94),\"\",'Zambia 2011'!$G$94)","v":""},{"$f":"IF(ISBLANK('Zambia 2011'!$C$95),\"\",'Zambia 2011'!$C$95)","v":""},{"$f":"IF(ISBLANK('Zambia 2011'!$E$95),\"\",'Zambia 2011'!$E$95)","v":""},{"$f":"IF(ISBLANK('Zambia 2011'!$G$95),\"\",'Zambia 2011'!$G$95)","v":""},{"$f":"IF(ISBLANK('Zambia 2011'!$C$96),\"\",'Zambia 2011'!$C$96)","v":""},{"$f":"IF(ISBLANK('Zambia 2011'!$E$96),\"\",'Zambia 2011'!$E$96)","v":""},{"$f":"IF(ISBLANK('Zambia 2011'!$G$96),\"\",'Zambia 2011'!$G$96)","v":""},null,{"$f":"IF(ISBLANK('Zambia 2011'!$D$99),\"\",'Zambia 2011'!$D$99)","v":"No"},{"$f":"IF(ISBLANK('Zambia 2011'!$E$99),\"\",'Zambia 2011'!$E$99)","v":""},{"$f":"IF(ISBLANK('Zambia 2011'!$H$99),\"\",'Zambia 2011'!$H$99)","v":""},{"$f":"IF(ISBLANK('Zambia 2011'!$D$100),\"\",'Zambia 2011'!$D$100)","v":"No"},{"$f":"IF(ISBLANK('Zambia 2011'!$E$100),\"\",'Zambia 2011'!$E$100)","v":""},{"$f":"IF(ISBLANK('Zambia 2011'!$H$100),\"\",'Zambia 2011'!$H$100)","v":""},{"$f":"IF(ISBLANK('Zambia 2011'!$D$101),\"\",'Zambia 2011'!$D$101)","v":"No"},{"$f":"IF(ISBLANK('Zambia 2011'!$E$101),\"\",'Zambia 2011'!$E$101)","v":""},{"$f":"IF(ISBLANK('Zambia 2011'!$H$101),\"\",'Zambia 2011'!$H$101)","v":""},null,{"$f":"IF(ISBLANK('Zambia 2011'!$G$104),\"\",'Zambia 2011'!$G$104)","v":"No"},{"$f":"IF(ISBLANK('Zambia 2011'!$G$105),\"\",'Zambia 2011'!$G$105)","v":"No"},{"$f":"IF(ISBLANK('Zambia 2011'!$G$106),\"\",'Zambia 2011'!$G$106)","v":"N/A"},{"$f":"IF(ISBLANK('Zambia 2011'!$D$107),\"\",'Zambia 2011'!$D$107)","v":"N/A"},null,{"$f":"IF(ISBLANK('Zambia 2011'!$G$109),\"\",'Zambia 2011'!$G$109)","v":"Yes"},{"$f":"IF(ISBLANK('Zambia 2011'!$G$110),\"\",'Zambia 2011'!$G$110)","v":"Yes"},{"$f":"IF(ISBLANK('Zambia 2011'!$G$111),\"\",'Zambia 2011'!$G$111)","v":"Yes"},{"$f":"IF(ISBLANK('Zambia 2011'!$G$112),\"\",'Zambia 2011'!$G$112)","v":"Yes"},{"$f":"IF(ISBLANK('Zambia 2011'!$G$113),\"\",'Zambia 2011'!$G$113)","v":"Yes"},{"$f":"IF(ISBLANK('Zambia 2011'!$G$114),\"\",'Zambia 2011'!$G$114)","v":"Yes"},{"$f":"IF(ISBLANK('Zambia 2011'!$G$115),\"\",'Zambia 2011'!$G$115)","v":"Yes"},{"$f":"IF(ISBLANK('Zambia 2011'!$G$116),\"\",'Zambia 2011'!$G$116)","v":"Yes"},{"$f":"IF(ISBLANK('Zambia 2011'!$G$117),\"\",'Zambia 2011'!$G$117)","v":"No"},{"$f":"IF(ISBLANK('Zambia 2011'!$G$118),\"\",'Zambia 2011'!$G$118)","v":"No"},{"$f":"IF(ISBLANK('Zambia 2011'!$F$119),\"\",'Zambia 2011'!$F$119)","v":"N/A"},{"$f":"IF(ISBLANK('Zambia 2011'!$F$120),\"\",'Zambia 2011'!$F$120)","v":2009},{"$f":"IF(ISBLANK('Zambia 2011'!$D$121),\"\",'Zambia 2011'!$D$121)","v":"Essential Medicines List"},{"$f":"IF(ISBLANK('Zambia 2011'!$D$122),\"\",'Zambia 2011'!$D$122)","v":""},null,{"$f":"IF(ISBLANK('Zambia 2011'!$F$124),\"\",'Zambia 2011'!$F$124)","v":2007},{"$f":"IF(ISBLANK('Zambia 2011'!$G$125),\"\",'Zambia 2011'!$G$125)","v":"No"},{"$f":"IF(ISBLANK('Zambia 2011'!$G$126),\"\",'Zambia 2011'!$G$126)","v":"No"},{"$f":"IF(ISBLANK('Zambia 2011'!$G$127),\"\",'Zambia 2011'!$G$127)","v":"No"},{"$f":"IF(ISBLANK('Zambia 2011'!$G$128),\"\",'Zambia 2011'!$G$128)","v":"No"},{"$f":"IF(ISBLANK('Zambia 2011'!$D$129),\"\",'Zambia 2011'!$D$129)","v":"Reproductive health is integrated within the health component (p.179)."},null,{"$f":"IF(ISBLANK('Zambia 2011'!$G$131),\"\",'Zambia 2011'!$G$131)","v":"Yes"},null,{"$f":"IF(ISBLANK('Zambia 2011'!$G$133),\"\",'Zambia 2011'!$G$133)","v":"No"},{"$f":"IF(ISBLANK('Zambia 2011'!$G$134),\"\",'Zambia 2011'!$G$134)","v":"No"},{"$f":"IF(ISBLANK('Zambia 2011'!$G$135),\"\",'Zambia 2011'!$G$135)","v":"No"},{"$f":"IF(ISBLANK('Zambia 2011'!$G$136),\"\",'Zambia 2011'!$G$136)","v":"No"},{"$f":"IF(ISBLANK('Zambia 2011'!$G$137),\"\",'Zambia 2011'!$G$137)","v":"No"},{"$f":"IF(ISBLANK('Zambia 2011'!$G$138),\"\",'Zambia 2011'!$G$138)","v":"No"},{"$f":"IF(ISBLANK('Zambia 2011'!$G$139),\"\",'Zambia 2011'!$G$139)","v":"Yes"},{"$f":"IF(ISBLANK('Zambia 2011'!$G$140),\"\",'Zambia 2011'!$G$140)","v":"No"},{"$f":"IF(ISBLANK('Zambia 2011'!$G$141),\"\",'Zambia 2011'!$G$141)","v":"N/A"},{"$f":"IF(ISBLANK('Zambia 2011'!$F$142),\"\",'Zambia 2011'!$F$142)","v":"01/10-12/10"},{"$f":"IF(ISBLANK('Zambia 2011'!$F$143),\"\",'Zambia 2011'!$F$143)","v":"PipeLine (based on central warehouse reports)"},null,{"$f":"IF(ISBLANK('Zambia 2011'!$G$145),\"\",'Zambia 2011'!$G$145)","v":"Yes"},{"$f":"IF(ISBLANK('Zambia 2011'!$G$146),\"\",'Zambia 2011'!$G$146)","v":"No"},{"$f":"IF(ISBLANK('Zambia 2011'!$D$147),\"\",'Zambia 2011'!$D$147)","v":"Partners have been forthcoming in supporting the government in filling the gap. Government needs to increase its funding for contraceptive procurement to reduce dependency on donor funding."},"Africa"]
["Zimbabwe ",null,{"$f":"IF(ISBLANK('Zimbabwe 2011'!$H$12),\"\",'Zimbabwe 2011'!$H$12)","v":"Yes"},{"$f":"IF(ISBLANK('Zimbabwe 2011'!$D$13),\"\",'Zimbabwe 2011'!$D$13)","v":"Reproductive Health Commodity Security Committee"},null,{"$f":"IF(ISBLANK('Zimbabwe 2011'!$D$15),\"\",'Zimbabwe 2011'!$D$15)","v":"Yes"},{"$f":"IF(ISBLANK('Zimbabwe 2011'!$F$15),\"\",'Zimbabwe 2011'!$F$15)","v":"Population Services International"},{"$f":"IF(ISBLANK('Zimbabwe 2011'!$D$16),\"\",'Zimbabwe 2011'!$D$16)","v":"Yes"},{"$f":"IF(ISBLANK('Zimbabwe 2011'!$F$16),\"\",'Zimbabwe 2011'!$F$16)","v":"Population Services Zimbabwe (PSZ) (Marie Stopes affiliate), Elizabeth Glaser Pediatric AIDS Foundation"},{"$f":"IF(ISBLANK('Zimbabwe 2011'!$D$17),\"\",'Zimbabwe 2011'!$D$17)","v":"Yes"},{"$f":"IF(ISBLANK('Zimbabwe 2011'!$F$17),\"\",'Zimbabwe 2011'!$F$17)","v":"CIMAS Healthcare (medical insurance and health services provider)"},{"$f":"IF(ISBLANK('Zimbabwe 2011'!$D$18),\"\",'Zimbabwe 2011'!$D$18)","v":"Yes"},{"$f":"IF(ISBLANK('Zimbabwe 2011'!$F$18),\"\",'Zimbabwe 2011'!$F$18)","v":"USAID and DfID"},{"$f":"IF(ISBLANK('Zimbabwe 2011'!$D$19),\"\",'Zimbabwe 2011'!$D$19)","v":"Yes"},{"$f":"IF(ISBLANK('Zimbabwe 2011'!$F$19),\"\",'Zimbabwe 2011'!$F$19)","v":"UNFPA"},{"$f":"IF(ISBLANK('Zimbabwe 2011'!$D$20),\"\",'Zimbabwe 2011'!$D$20)","v":"Yes"},{"$f":"IF(ISBLANK('Zimbabwe 2011'!$F$20),\"\",'Zimbabwe 2011'!$F$20)","v":"Reproductive Health Unit of Ministry of Health and Child Welfare (MOHCW), Zimbabwe National Family Planning Council (ZNFPC), and Medicines Control Authority of Zimbabwe (MCAZ) "},{"$f":"IF(ISBLANK('Zimbabwe 2011'!$D$21),\"\",'Zimbabwe 2011'!$D$21)","v":"Yes"},{"$f":"IF(ISBLANK('Zimbabwe 2011'!$F$21),\"\",'Zimbabwe 2011'!$F$21)","v":"NatPharm"},{"$f":"IF(ISBLANK('Zimbabwe 2011'!$D$22),\"\",'Zimbabwe 2011'!$D$22)","v":"No"},{"$f":"IF(ISBLANK('Zimbabwe 2011'!$F$22),\"\",'Zimbabwe 2011'!$F$22)","v":""},{"$f":"IF(ISBLANK('Zimbabwe 2011'!$D$23),\"\",'Zimbabwe 2011'!$D$23)","v":"Yes"},{"$f":"IF(ISBLANK('Zimbabwe 2011'!$F$23),\"\",'Zimbabwe 2011'!$F$23)","v":"Crown Agents Zimbabwe, John Snow Inc. (JSI)"},{"$f":"IF(ISBLANK('Zimbabwe 2011'!$H$24),\"\",'Zimbabwe 2011'!$H$24)","v":"3-5 times"},{"$f":"IF(ISBLANK('Zimbabwe 2011'!$H$25),\"\",'Zimbabwe 2011'!$H$25)","v":"Yes"},{"$f":"IF(ISBLANK('Zimbabwe 2011'!$D$26),\"\",'Zimbabwe 2011'!$D$26)","v":"Yes"},{"$f":"IF(ISBLANK('Zimbabwe 2011'!$F$26),\"\",'Zimbabwe 2011'!$F$26)","v":"ZNFPC"},{"$f":"IF(ISBLANK('Zimbabwe 2011'!$H$26),\"\",'Zimbabwe 2011'!$H$26)","v":"Executive Director"},null,{"$f":"IF(ISBLANK('Zimbabwe 2011'!$F$28),\"\",'Zimbabwe 2011'!$F$28)","v":"January"},{"$f":"IF(ISBLANK('Zimbabwe 2011'!$H$28),\"\",'Zimbabwe 2011'!$H$28)","v":"December"},{"$f":"IF(ISBLANK('Zimbabwe 2011'!$G$29),\"\",'Zimbabwe 2011'!$G$29)","v":"Don't know"},{"$f":"IF(ISBLANK('Zimbabwe 2011'!$E$30),\"\",'Zimbabwe 2011'!$E$30)","v":"10/10"},{"$f":"IF(ISBLANK('Zimbabwe 2011'!$G$30),\"\",'Zimbabwe 2011'!$G$30)","v":"ZNFPC, JSI, Crown Agents, and PSZ"},{"$f":"IF(ISBLANK('Zimbabwe 2011'!$H$31),\"\",'Zimbabwe 2011'!$H$31)","v":"Yes"},{"$f":"IF(ISBLANK('Zimbabwe 2011'!$H$32),\"\",'Zimbabwe 2011'!$H$32)","v":"Yes"},{"$f":"IF(ISBLANK('Zimbabwe 2011'!$E$35),\"\",'Zimbabwe 2011'!$E$35)","v":"Don't know"},{"$f":"IF(ISBLANK('Zimbabwe 2011'!$F$35),\"\",'Zimbabwe 2011'!$F$35)","v":"01/10-12/10"},{"$f":"IF(ISBLANK('Zimbabwe 2011'!$G$35),\"\",'Zimbabwe 2011'!$G$35)","v":""},{"$f":"IF(ISBLANK('Zimbabwe 2011'!$H$35),\"\",'Zimbabwe 2011'!$H$35)","v":"Budget allocation is for the entire MOH and is in principle supposed to cover all recurrent expenditures for the entire MOH including commodities procurement "},{"$f":"IF(ISBLANK('Zimbabwe 2011'!$H$37),\"\",'Zimbabwe 2011'!$H$37)","v":"Don't know"},{"$f":"IF(ISBLANK('Zimbabwe 2011'!$D$40),\"\",'Zimbabwe 2011'!$D$40)","v":"Don't know"},{"$f":"IF(ISBLANK('Zimbabwe 2011'!$D$41),\"\",'Zimbabwe 2011'!$D$41)","v":""},{"$f":"IF(ISBLANK('Zimbabwe 2011'!$E$40),\"\",'Zimbabwe 2011'!$E$40)","v":"Don't know"},{"$f":"IF(ISBLANK('Zimbabwe 2011'!$F$40),\"\",'Zimbabwe 2011'!$F$40)","v":"01/10-12/10"},{"$f":"IF(ISBLANK('Zimbabwe 2011'!$G$40),\"\",'Zimbabwe 2011'!$G$40)","v":""},{"$f":"IF(ISBLANK('Zimbabwe 2011'!$H$40),\"\",'Zimbabwe 2011'!$H$40)","v":"It is not clear if and how much the government spent on procurement of contraceptives outside of the delivery team topping up [DTTU] distribution system. The government did not spend funds on procurement of contraceptives for the DTTU distribution system. "},{"$f":"IF(ISBLANK('Zimbabwe 2011'!$D$42),\"\",'Zimbabwe 2011'!$D$42)","v":"Don't know"},{"$f":"IF(ISBLANK('Zimbabwe 2011'!$D$43),\"\",'Zimbabwe 2011'!$D$43)","v":"Don't know"},{"$f":"IF(ISBLANK('Zimbabwe 2011'!$E$42),\"\",'Zimbabwe 2011'!$E$42)","v":"Don't know"},{"$f":"IF(ISBLANK('Zimbabwe 2011'!$F$42),\"\",'Zimbabwe 2011'!$F$42)","v":"01/10-12/10"},{"$f":"IF(ISBLANK('Zimbabwe 2011'!$G$42),\"\",'Zimbabwe 2011'!$G$42)","v":""},{"$f":"IF(ISBLANK('Zimbabwe 2011'!$H$42),\"\",'Zimbabwe 2011'!$H$42)","v":""},{"$f":"IF(ISBLANK('Zimbabwe 2011'!$E$44),\"\",'Zimbabwe 2011'!$E$44)","v":"Don't know"},{"$f":"IF(ISBLANK('Zimbabwe 2011'!$H$44),\"\",'Zimbabwe 2011'!$H$44)","v":""},null,{"$f":"IF(ISBLANK('Zimbabwe 2011'!$D$48),\"\",'Zimbabwe 2011'!$D$48)","v":"Yes"},{"$f":"IF(ISBLANK('Zimbabwe 2011'!$D$49),\"\",'Zimbabwe 2011'!$D$49)","v":"Male and female condoms (USAID), other contraceptives (DfID)"},{"$f":"IF(ISBLANK('Zimbabwe 2011'!$E$48),\"\",'Zimbabwe 2011'!$E$48)","v":7282419.6600000001},{"$f":"IF(ISBLANK('Zimbabwe 2011'!$F$48),\"\",'Zimbabwe 2011'!$F$48)","v":"01/10-12/10"},{"$f":"IF(ISBLANK('Zimbabwe 2011'!$G$48),\"\",'Zimbabwe 2011'!$G$48)","v":"Delivery Team Topping Up (DTTU) TOP UP database"},{"$f":"IF(ISBLANK('Zimbabwe 2011'!$H$48),\"\",'Zimbabwe 2011'!$H$48)","v":"1) Data includes products distributed on DTTU only (male and female condoms, the injectable Petogen, the combined oral Control, and the progestin-only pill Secure). 2) Data includes products distributed to clients only, not products in storage facilities. 2) Value based on actual per unit consumption of each product multiplied by unit cost (freight and insurance included). "},{"$f":"IF(ISBLANK('Zimbabwe 2011'!$D$50),\"\",'Zimbabwe 2011'!$D$50)","v":"No"},{"$f":"IF(ISBLANK('Zimbabwe 2011'!$E$50),\"\",'Zimbabwe 2011'!$E$50)","v":0},{"$f":"IF(ISBLANK('Zimbabwe 2011'!$F$50),\"\",'Zimbabwe 2011'!$F$50)","v":"01/10-12/10"},{"$f":"IF(ISBLANK('Zimbabwe 2011'!$G$50),\"\",'Zimbabwe 2011'!$G$50)","v":""},{"$f":"IF(ISBLANK('Zimbabwe 2011'!$H$50),\"\",'Zimbabwe 2011'!$H$50)","v":""},{"$f":"IF(ISBLANK('Zimbabwe 2011'!$D$51),\"\",'Zimbabwe 2011'!$D$51)","v":"No"},{"$f":"IF(ISBLANK('Zimbabwe 2011'!$E$51),\"\",'Zimbabwe 2011'!$E$51)","v":0},{"$f":"IF(ISBLANK('Zimbabwe 2011'!$F$51),\"\",'Zimbabwe 2011'!$F$51)","v":"01/10-12/10"},{"$f":"IF(ISBLANK('Zimbabwe 2011'!$G$51),\"\",'Zimbabwe 2011'!$G$51)","v":""},{"$f":"IF(ISBLANK('Zimbabwe 2011'!$H$51),\"\",'Zimbabwe 2011'!$H$51)","v":""},{"$f":"IF(ISBLANK('Zimbabwe 2011'!$E$52),\"\",'Zimbabwe 2011'!$E$52)","v":7282419.6600000001},{"$f":"IF(ISBLANK('Zimbabwe 2011'!$H$52),\"\",'Zimbabwe 2011'!$H$52)","v":""},{"$f":"IF(ISBLANK('Zimbabwe 2011'!$F$55),\"\",'Zimbabwe 2011'!$F$55)","v":"Don't know"},{"$f":"IF(ISBLANK('Zimbabwe 2011'!$G$55),\"\",'Zimbabwe 2011'!$G$55)","v":""},{"$f":"IF(ISBLANK('Zimbabwe 2011'!$F$56),\"\",'Zimbabwe 2011'!$F$56)","v":"Don't know"},{"$f":"IF(ISBLANK('Zimbabwe 2011'!$G$56),\"\",'Zimbabwe 2011'!$G$56)","v":""},{"$f":"IF(ISBLANK('Zimbabwe 2011'!$F$57),\"\",'Zimbabwe 2011'!$F$57)","v":"No"},{"$f":"IF(ISBLANK('Zimbabwe 2011'!$G$57),\"\",'Zimbabwe 2011'!$G$57)","v":"All public sector needs for the methods distributed by the DTTU system (male and female condoms, injectables, combined orals, and progestin-only pills) are adequately met by USAID and DfID year after year. "},{"$f":"IF(ISBLANK('Zimbabwe 2011'!$F$59),\"\",'Zimbabwe 2011'!$F$59)","v":"N/A"},{"$f":"IF(ISBLANK('Zimbabwe 2011'!$F$60),\"\",'Zimbabwe 2011'!$F$60)","v":"N/A"},{"$f":"IF(ISBLANK('Zimbabwe 2011'!$F$61),\"\",'Zimbabwe 2011'!$F$61)","v":"N/A"},{"$f":"IF(ISBLANK('Zimbabwe 2011'!$D$62),\"\",'Zimbabwe 2011'!$D$62)","v":"The USAID | DELIVER PROJECT (implemented by JSI) procures on behalf of USAID while Crown Agents procures on behalf of DfID. Finance data provided here represents the monetary value of the products distributed through the DTTU system only. Procurement data is not available for other contraceptives distributed on a target strategy outside of DTTU, which are bought by ZNFPC and sold direct from the ZNFPC warehouse to private, public, and local authority institutions and doctors upon request. They are not routinely distributed to all SDPs through DTTU because they are used by a minority of the population and are expensive.  "},null,null,{"$f":"IF(ISBLANK('Zimbabwe 2011'!$D$66),\"\",'Zimbabwe 2011'!$D$66)","v":"Yes"},{"$f":"IF(ISBLANK('Zimbabwe 2011'!$D$67),\"\",'Zimbabwe 2011'!$D$67)","v":"Yes"},{"$f":"IF(ISBLANK('Zimbabwe 2011'!$D$68),\"\",'Zimbabwe 2011'!$D$68)","v":"Yes"},{"$f":"IF(ISBLANK('Zimbabwe 2011'!$D$69),\"\",'Zimbabwe 2011'!$D$69)","v":"Yes"},{"$f":"IF(ISBLANK('Zimbabwe 2011'!$D$70),\"\",'Zimbabwe 2011'!$D$70)","v":"Yes"},{"$f":"IF(ISBLANK('Zimbabwe 2011'!$D$71),\"\",'Zimbabwe 2011'!$D$71)","v":"Yes"},{"$f":"IF(ISBLANK('Zimbabwe 2011'!$D$72),\"\",'Zimbabwe 2011'!$D$72)","v":"Yes"},{"$f":"IF(ISBLANK('Zimbabwe 2011'!$D$73),\"\",'Zimbabwe 2011'!$D$73)","v":"Yes"},{"$f":"IF(ISBLANK('Zimbabwe 2011'!$D$74),\"\",'Zimbabwe 2011'!$D$74)","v":"Yes"},{"$f":"IF(ISBLANK('Zimbabwe 2011'!$D$75),\"\",'Zimbabwe 2011'!$D$75)","v":"Yes"},{"$f":"IF(ISBLANK('Zimbabwe 2011'!$D$76),\"\",'Zimbabwe 2011'!$D$76)","v":"Yes"},{"$f":"IF(ISBLANK('Zimbabwe 2011'!$D$77),\"\",'Zimbabwe 2011'!$D$77)","v":"No"},null,{"$f":"IF(ISBLANK('Zimbabwe 2011'!$F$66),\"\",'Zimbabwe 2011'!$F$66)","v":"Yes"},{"$f":"IF(ISBLANK('Zimbabwe 2011'!$F$67),\"\",'Zimbabwe 2011'!$F$67)","v":"Yes"},{"$f":"IF(ISBLANK('Zimbabwe 2011'!$F$68),\"\",'Zimbabwe 2011'!$F$68)","v":"Yes"},{"$f":"IF(ISBLANK('Zimbabwe 2011'!$F$69),\"\",'Zimbabwe 2011'!$F$69)","v":"Yes"},{"$f":"IF(ISBLANK('Zimbabwe 2011'!$F$70),\"\",'Zimbabwe 2011'!$F$70)","v":"Yes"},{"$f":"IF(ISBLANK('Zimbabwe 2011'!$F$71),\"\",'Zimbabwe 2011'!$F$71)","v":"Yes"},{"$f":"IF(ISBLANK('Zimbabwe 2011'!$F$72),\"\",'Zimbabwe 2011'!$F$72)","v":"Yes"},{"$f":"IF(ISBLANK('Zimbabwe 2011'!$F$73),\"\",'Zimbabwe 2011'!$F$73)","v":"Yes"},{"$f":"IF(ISBLANK('Zimbabwe 2011'!$F$74),\"\",'Zimbabwe 2011'!$F$74)","v":"Yes"},{"$f":"IF(ISBLANK('Zimbabwe 2011'!$F$75),\"\",'Zimbabwe 2011'!$F$75)","v":"Yes"},{"$f":"IF(ISBLANK('Zimbabwe 2011'!$F$76),\"\",'Zimbabwe 2011'!$F$76)","v":"Yes"},{"$f":"IF(ISBLANK('Zimbabwe 2011'!$F$77),\"\",'Zimbabwe 2011'!$F$77)","v":"No"},null,{"$f":"IF(ISBLANK('Zimbabwe 2011'!$G$66),\"\",'Zimbabwe 2011'!$G$66)","v":"Yes"},{"$f":"IF(ISBLANK('Zimbabwe 2011'!$G$67),\"\",'Zimbabwe 2011'!$G$67)","v":"Yes"},{"$f":"IF(ISBLANK('Zimbabwe 2011'!$G$68),\"\",'Zimbabwe 2011'!$G$68)","v":"Yes"},{"$f":"IF(ISBLANK('Zimbabwe 2011'!$G$69),\"\",'Zimbabwe 2011'!$G$69)","v":"Yes"},{"$f":"IF(ISBLANK('Zimbabwe 2011'!$G$70),\"\",'Zimbabwe 2011'!$G$70)","v":"Yes"},{"$f":"IF(ISBLANK('Zimbabwe 2011'!$G$71),\"\",'Zimbabwe 2011'!$G$71)","v":"Yes"},{"$f":"IF(ISBLANK('Zimbabwe 2011'!$G$72),\"\",'Zimbabwe 2011'!$G$72)","v":"Yes"},{"$f":"IF(ISBLANK('Zimbabwe 2011'!$G$73),\"\",'Zimbabwe 2011'!$G$73)","v":"Yes"},{"$f":"IF(ISBLANK('Zimbabwe 2011'!$G$74),\"\",'Zimbabwe 2011'!$G$74)","v":"Yes"},{"$f":"IF(ISBLANK('Zimbabwe 2011'!$G$75),\"\",'Zimbabwe 2011'!$G$75)","v":"Yes"},{"$f":"IF(ISBLANK('Zimbabwe 2011'!$G$76),\"\",'Zimbabwe 2011'!$G$76)","v":"No"},{"$f":"IF(ISBLANK('Zimbabwe 2011'!$G$77),\"\",'Zimbabwe 2011'!$G$77)","v":"No"},null,{"$f":"IF(ISBLANK('Zimbabwe 2011'!$H$66),\"\",'Zimbabwe 2011'!$H$66)","v":"No"},{"$f":"IF(ISBLANK('Zimbabwe 2011'!$H$67),\"\",'Zimbabwe 2011'!$H$67)","v":"No"},{"$f":"IF(ISBLANK('Zimbabwe 2011'!$H$68),\"\",'Zimbabwe 2011'!$H$68)","v":"Yes"},{"$f":"IF(ISBLANK('Zimbabwe 2011'!$H$69),\"\",'Zimbabwe 2011'!$H$69)","v":"No"},{"$f":"IF(ISBLANK('Zimbabwe 2011'!$H$70),\"\",'Zimbabwe 2011'!$H$70)","v":"No"},{"$f":"IF(ISBLANK('Zimbabwe 2011'!$H$71),\"\",'Zimbabwe 2011'!$H$71)","v":"Yes"},{"$f":"IF(ISBLANK('Zimbabwe 2011'!$H$72),\"\",'Zimbabwe 2011'!$H$72)","v":"Yes"},{"$f":"IF(ISBLANK('Zimbabwe 2011'!$H$73),\"\",'Zimbabwe 2011'!$H$73)","v":"Yes"},{"$f":"IF(ISBLANK('Zimbabwe 2011'!$H$74),\"\",'Zimbabwe 2011'!$H$74)","v":"Don't know"},{"$f":"IF(ISBLANK('Zimbabwe 2011'!$H$75),\"\",'Zimbabwe 2011'!$H$75)","v":"Don't know"},{"$f":"IF(ISBLANK('Zimbabwe 2011'!$H$76),\"\",'Zimbabwe 2011'!$H$76)","v":"No"},{"$f":"IF(ISBLANK('Zimbabwe 2011'!$H$77),\"\",'Zimbabwe 2011'!$H$77)","v":"No"},{"$f":"IF(ISBLANK('Zimbabwe 2011'!$D$78),\"\",'Zimbabwe 2011'!$D$78)","v":"1) IUDs, emergency contraceptives, and CycleBeads are in principle supposed to be managed in the public sector but their supply is erratic. They are distributed on a target basis. ZNFPC started piloting the distribution of Jadelle implants on DTTU in the last quarter of 2010. 2) The contraceptive methods listed under NGO refer to Population Services Zimbabwe (a local NGO and Marie Stopes affiliate). \n"},null,{"$f":"IF(ISBLANK('Zimbabwe 2011'!$H$80),\"\",'Zimbabwe 2011'!$H$80)","v":"Yes"},{"$f":"IF(ISBLANK('Zimbabwe 2011'!$C$83),\"\",'Zimbabwe 2011'!$C$83)","v":"ZNFPC Strategic Plan "},{"$f":"IF(ISBLANK('Zimbabwe 2011'!$D$83),\"\",'Zimbabwe 2011'!$D$83)","v":"2009 - 2013"},{"$f":"IF(ISBLANK('Zimbabwe 2011'!$F$83),\"\",'Zimbabwe 2011'!$F$83)","v":"Yes"},{"$f":"IF(ISBLANK('Zimbabwe 2011'!$G$83),\"\",'Zimbabwe 2011'!$G$83)","v":"Yes"},{"$f":"IF(ISBLANK('Zimbabwe 2011'!$F$84),\"\",'Zimbabwe 2011'!$F$84)","v":"No"},{"$f":"IF(ISBLANK('Zimbabwe 2011'!$E$85),\"\",'Zimbabwe 2011'!$E$85)","v":"N/A"},{"$f":"IF(ISBLANK('Zimbabwe 2011'!$E$86),\"\",'Zimbabwe 2011'!$E$86)","v":"N/A"},{"$f":"IF(ISBLANK('Zimbabwe 2011'!$H$87),\"\",'Zimbabwe 2011'!$H$87)","v":"No"},{"$f":"IF(ISBLANK('Zimbabwe 2011'!$D$88),\"\",'Zimbabwe 2011'!$D$88)","v":"N/A"},{"$f":"IF(ISBLANK('Zimbabwe 2011'!$H$89),\"\",'Zimbabwe 2011'!$H$89)","v":"No"},{"$f":"IF(ISBLANK('Zimbabwe 2011'!$D$90),\"\",'Zimbabwe 2011'!$D$90)","v":"N/A"},{"$f":"IF(ISBLANK('Zimbabwe 2011'!$H$91),\"\",'Zimbabwe 2011'!$H$91)","v":"Yes"},{"$f":"IF(ISBLANK('Zimbabwe 2011'!$C$94),\"\",'Zimbabwe 2011'!$C$94)","v":"Injectables"},{"$f":"IF(ISBLANK('Zimbabwe 2011'!$E$94),\"\",'Zimbabwe 2011'!$E$94)","v":"Community-based distributors cannot dispense/administer long-term methods."},{"$f":"IF(ISBLANK('Zimbabwe 2011'!$G$94),\"\",'Zimbabwe 2011'!$G$94)","v":"Long-term methods can only be dispensed/administered by qualified medical personnel specifically trained to administer the methods. For injectables, this is trained and registered nurses and doctors."},{"$f":"IF(ISBLANK('Zimbabwe 2011'!$C$95),\"\",'Zimbabwe 2011'!$C$95)","v":"Implants"},{"$f":"IF(ISBLANK('Zimbabwe 2011'!$E$95),\"\",'Zimbabwe 2011'!$E$95)","v":"Only doctors and clinical officers can administer."},{"$f":"IF(ISBLANK('Zimbabwe 2011'!$G$95),\"\",'Zimbabwe 2011'!$G$95)","v":"Only trained doctors who are approved by ZNFPC to insert implants can do so.  "},{"$f":"IF(ISBLANK('Zimbabwe 2011'!$C$96),\"\",'Zimbabwe 2011'!$C$96)","v":"IUDs"},{"$f":"IF(ISBLANK('Zimbabwe 2011'!$E$96),\"\",'Zimbabwe 2011'!$E$96)","v":"Only doctors can administer."},{"$f":"IF(ISBLANK('Zimbabwe 2011'!$G$96),\"\",'Zimbabwe 2011'!$G$96)","v":"Only trained doctors who are approved by ZNFPC to insert IUDs can do so.  "},null,{"$f":"IF(ISBLANK('Zimbabwe 2011'!$D$99),\"\",'Zimbabwe 2011'!$D$99)","v":"No"},{"$f":"IF(ISBLANK('Zimbabwe 2011'!$E$99),\"\",'Zimbabwe 2011'!$E$99)","v":""},{"$f":"IF(ISBLANK('Zimbabwe 2011'!$H$99),\"\",'Zimbabwe 2011'!$H$99)","v":""},{"$f":"IF(ISBLANK('Zimbabwe 2011'!$D$100),\"\",'Zimbabwe 2011'!$D$100)","v":"No"},{"$f":"IF(ISBLANK('Zimbabwe 2011'!$E$100),\"\",'Zimbabwe 2011'!$E$100)","v":""},{"$f":"IF(ISBLANK('Zimbabwe 2011'!$H$100),\"\",'Zimbabwe 2011'!$H$100)","v":""},{"$f":"IF(ISBLANK('Zimbabwe 2011'!$D$101),\"\",'Zimbabwe 2011'!$D$101)","v":"No"},{"$f":"IF(ISBLANK('Zimbabwe 2011'!$E$101),\"\",'Zimbabwe 2011'!$E$101)","v":""},{"$f":"IF(ISBLANK('Zimbabwe 2011'!$H$101),\"\",'Zimbabwe 2011'!$H$101)","v":""},null,{"$f":"IF(ISBLANK('Zimbabwe 2011'!$G$104),\"\",'Zimbabwe 2011'!$G$104)","v":"Yes"},{"$f":"IF(ISBLANK('Zimbabwe 2011'!$G$105),\"\",'Zimbabwe 2011'!$G$105)","v":"Yes"},{"$f":"IF(ISBLANK('Zimbabwe 2011'!$G$106),\"\",'Zimbabwe 2011'!$G$106)","v":"Yes"},{"$f":"IF(ISBLANK('Zimbabwe 2011'!$D$107),\"\",'Zimbabwe 2011'!$D$107)","v":"Some local authority clinics charge for commodities. People over 65 years are exempted from such charges in general at public institutions."},null,{"$f":"IF(ISBLANK('Zimbabwe 2011'!$G$109),\"\",'Zimbabwe 2011'!$G$109)","v":"Yes"},{"$f":"IF(ISBLANK('Zimbabwe 2011'!$G$110),\"\",'Zimbabwe 2011'!$G$110)","v":"Yes"},{"$f":"IF(ISBLANK('Zimbabwe 2011'!$G$111),\"\",'Zimbabwe 2011'!$G$111)","v":"Yes"},{"$f":"IF(ISBLANK('Zimbabwe 2011'!$G$112),\"\",'Zimbabwe 2011'!$G$112)","v":"Yes"},{"$f":"IF(ISBLANK('Zimbabwe 2011'!$G$113),\"\",'Zimbabwe 2011'!$G$113)","v":"Yes"},{"$f":"IF(ISBLANK('Zimbabwe 2011'!$G$114),\"\",'Zimbabwe 2011'!$G$114)","v":"Yes"},{"$f":"IF(ISBLANK('Zimbabwe 2011'!$G$115),\"\",'Zimbabwe 2011'!$G$115)","v":"Yes"},{"$f":"IF(ISBLANK('Zimbabwe 2011'!$G$116),\"\",'Zimbabwe 2011'!$G$116)","v":"Yes"},{"$f":"IF(ISBLANK('Zimbabwe 2011'!$G$117),\"\",'Zimbabwe 2011'!$G$117)","v":"Yes"},{"$f":"IF(ISBLANK('Zimbabwe 2011'!$G$118),\"\",'Zimbabwe 2011'!$G$118)","v":"No"},{"$f":"IF(ISBLANK('Zimbabwe 2011'!$F$119),\"\",'Zimbabwe 2011'!$F$119)","v":"N/A"},{"$f":"IF(ISBLANK('Zimbabwe 2011'!$F$120),\"\",'Zimbabwe 2011'!$F$120)","v":2006},{"$f":"IF(ISBLANK('Zimbabwe 2011'!$D$121),\"\",'Zimbabwe 2011'!$D$121)","v":"Essential Drugs List for Zimbabwe (EDLIZ) and the ZNFPC List of Contraceptive Methods and Devices"},{"$f":"IF(ISBLANK('Zimbabwe 2011'!$D$122),\"\",'Zimbabwe 2011'!$D$122)","v":"EDLIZ currently under revision"},null,{"$f":"IF(ISBLANK('Zimbabwe 2011'!$F$124),\"\",'Zimbabwe 2011'!$F$124)","v":"N/A"},{"$f":"IF(ISBLANK('Zimbabwe 2011'!$G$125),\"\",'Zimbabwe 2011'!$G$125)","v":"N/A"},{"$f":"IF(ISBLANK('Zimbabwe 2011'!$G$126),\"\",'Zimbabwe 2011'!$G$126)","v":"N/A"},{"$f":"IF(ISBLANK('Zimbabwe 2011'!$G$127),\"\",'Zimbabwe 2011'!$G$127)","v":"N/A"},{"$f":"IF(ISBLANK('Zimbabwe 2011'!$G$128),\"\",'Zimbabwe 2011'!$G$128)","v":"N/A"},{"$f":"IF(ISBLANK('Zimbabwe 2011'!$D$129),\"\",'Zimbabwe 2011'!$D$129)","v":"Document not available on IMF's website"},null,{"$f":"IF(ISBLANK('Zimbabwe 2011'!$G$131),\"\",'Zimbabwe 2011'!$G$131)","v":"No"},null,{"$f":"IF(ISBLANK('Zimbabwe 2011'!$G$133),\"\",'Zimbabwe 2011'!$G$133)","v":"No"},{"$f":"IF(ISBLANK('Zimbabwe 2011'!$G$134),\"\",'Zimbabwe 2011'!$G$134)","v":"No"},{"$f":"IF(ISBLANK('Zimbabwe 2011'!$G$135),\"\",'Zimbabwe 2011'!$G$135)","v":"No"},{"$f":"IF(ISBLANK('Zimbabwe 2011'!$G$136),\"\",'Zimbabwe 2011'!$G$136)","v":"Don't know"},{"$f":"IF(ISBLANK('Zimbabwe 2011'!$G$137),\"\",'Zimbabwe 2011'!$G$137)","v":"Don't know"},{"$f":"IF(ISBLANK('Zimbabwe 2011'!$G$138),\"\",'Zimbabwe 2011'!$G$138)","v":"No"},{"$f":"IF(ISBLANK('Zimbabwe 2011'!$G$139),\"\",'Zimbabwe 2011'!$G$139)","v":"No"},{"$f":"IF(ISBLANK('Zimbabwe 2011'!$G$140),\"\",'Zimbabwe 2011'!$G$140)","v":"Don't know"},{"$f":"IF(ISBLANK('Zimbabwe 2011'!$G$141),\"\",'Zimbabwe 2011'!$G$141)","v":"Don't know"},{"$f":"IF(ISBLANK('Zimbabwe 2011'!$F$142),\"\",'Zimbabwe 2011'!$F$142)","v":"01/10-12/10"},{"$f":"IF(ISBLANK('Zimbabwe 2011'!$F$143),\"\",'Zimbabwe 2011'!$F$143)","v":"Warehouse reports & periodic physical inventory"},null,{"$f":"IF(ISBLANK('Zimbabwe 2011'!$G$145),\"\",'Zimbabwe 2011'!$G$145)","v":"No"},{"$f":"IF(ISBLANK('Zimbabwe 2011'!$G$146),\"\",'Zimbabwe 2011'!$G$146)","v":"No"},{"$f":"IF(ISBLANK('Zimbabwe 2011'!$D$147),\"\",'Zimbabwe 2011'!$D$147)","v":"Contraceptives are generally in full supply. No significant issues with commodity security."},"Africa"]
["Notes: N/A = not applicable"]
["Commonly used acronyms include: CPT - contraceptive procurement table,  LMIS - logistics management information system, MOH - Ministry of Health, RHInterchange (RHI) - Reproductive Health Interchange (online database of contraceptive orders and shipments at http://rhi.rhsupplies.org)"]
[]
[]
[]
[]
[]
[]
[]
[]
[]
[]
[]
[]
[]
[]
[]
[]
[]
[]
[]
[]
[]
[]
[]
[]
[]
[]
[]
[]
[]
[]
[]
[]
[]
[]
[]
[]
[]
[]
[]
[]
[]
[]
[]
[]
[]
[]
[]
[]
[]
[]
[]
[]
[]
[]
[]
[]
[]
[]
[]
[]
[]
[]
[]
[]
[]
[]
[]
[]
[]
[]
[]
[]
[]
[]
[]
[]
[]
[]
[]
["Notes: N/A = not applicable, No data = data not available"]
["Commonly used acronyms include: "]
["CPT - contraceptive procurement table,  LMIS - logistics management information system, MOH - Ministry of Health, RHI - RHealth Interchange (http://rhi.rhsupplies.org)"]

{"sheet":"ALL countries 2011","index":4,"n_rows":127,"n_cols":217,"rows_kept":127,"cut":false,"hidden":false,"merged":[[0,207,0,208],[0,138,0,143],[0,198,0,201],[0,84,0,87],[0,14,0,15],[0,16,0,17],[0,19,0,20],[0,89,0,90],[0,28,0,32],[0,3,0,5],[0,6,0,7],[0,151,0,161],[0,8,0,10],[0,11,0,13]]}
[null,null,null,"Note: Click on \"1\" in the top lefthand corner to see just the main questions and \"2\" to see all of the questions. (This toggle is above and to the left of cell A1.)",null,null,"To jump to the Introduction sheet, click here.",null,"The CS Indicators are presented in the following sections:\n(To jump to a section, click on it here): ",null,null,"A. leadership & cooordination",null,null,"B. finance & procurement ",null,"C. commodities",null,"D. policies ","E. supply chain",null,null,null,null,null,null,null,null,"Note: Click on \"1\" in the top lefthand corner to see just the main questions and \"2\" to see all of the questions. (This toggle is above and to the left of cell A1.)",null,null,null,null,null,null,null,null,null,null,null,"To jump to the Introduction sheet, click here.",null,null,null,null,null,null,null,null,null,null,null,null,null,null,null,null,null,null,null,null,null,null,null,null,null,null,null,null,null,null,null,null,null,null,null,null,null,null,null,null,null,null,null,"Note: Click on \"1\" in the top lefthand corner to see just the main questions and \"2\" to see all of the questions. (This toggle is above and to the left of cell A1.)",null,null,null,null,"To jump to the Introduction sheet, click here.",null,null,null,null,null,null,null,null,null,null,null,null,null,null,null,null,null,null,null,null,null,null,null,null,null,null,null,null,null,null,null,null,null,null,null,null,null,null,null,null,null,null,null,null,null,null,null,null,"Note: Click on \"1\" in the top lefthand corner to see just the main questions and \"2\" to see all of the questions. (This toggle is above and to the left of cell A1.)",null,null,null,null,null,null,null,null,"To jump to the Introduction sheet, click here.",null,null,null,null,null,null,null,null,null,null,null,null,null,null,null,null,null,null,null,null,null,null,null,null,null,null,null,null,null,null,null,null,null,null,null,null,null,null,null,null,null,null,null,null,null,null,null,null,null,null,"Note: Click on \"1\" in the top lefthand corner to see just the main questions and \"2\" to see all of the questions. (This toggle is above and to the left of cell A1.)",null,null,null,null,null,null,null,null,"To jump to the Introduction sheet, click here."]
["Contraceptive Security Indicators Data 2011\n\nAll Surveyed Countries\n\nwith data filters and grouping\n\n\n\n\n","A. Leadership and Coordination","A1. Is there a national committee that works on contraceptive security?","A1a. What is the name of the committee?","A2. Are the following organizations represented on the committee?","A2a. Are social marketing organizations on the committee?","A2ai. Names of social marketing organizations on the committee","A2b. Are NGOs on the committee? (e.g. service delivery, advocacy, Planned Parenthood afiliate, Marie Stopes afiliate, faith-based organizations)","A2bi. Names of NGOs on the committee","A2c. Are commercial sector organizations on the committee? (e.g. pharmacy associations, manufacturers)","A2ci. Names of commercial sector organizations on the committee","A2d. Are donors on the committee?","A2di. Names of donors on the committee","A2e. Are UN agencies on the committee?","A2ei. Names of UN agencies on the committee","A2f. Are Ministry of Health units on the committee? (e.g. logistics, RH, FP, MCH, HIV/AIDS, pharmacy units)","A2fi. Names of Ministry of Health units on the committee","A2g. Is the Central Medical Store or Central Warehouse on the committee?","A2gi. Specify Central Medical Store or Central Warehouse on the committee","A2h. Is the Ministry of Finance or Ministry of Planning on the committee?","A2hi. Specify Ministry of Finance or Planning on the committee","A2i. Are there any other organizations on the committee? (e.g. partners)","A2ii. Specify other organizaitons on the committee","A3. How many times did the committee meet during the last year? (responses from dropdown list choices: 0, 1-2, 3-5, or 6+)","A4. Does committee have legal status?","A5. Is there a Contraceptive Security \"champion\"? (someone who consistently brings up and advocates for contraceptive supplies)","A5a. \"Champion's\" organization","A5b. \"Champion's\" job title","B. Finance and Procurement (Capital)","B1a. What is the beginning month of the country's fiscal year?","B1b. What is the ending month of the country's fiscal year?","B2. Estimated dollar value of contraceptives needed to be procured for public sector for the most recent complete fiscal year (in US$) (e.g., to cover the needs for the '09-'10 fiscal year)","B3a. When was the last forecast/quantification conducted? (mm/yy)","B3b. Which organization conducted the last quantification?","B4. Is there a government budget line item for the procurement of contraceptives?","B5. Were government funds allocated for contraceptive procurement  for the public sector in the most recent complete fiscal year? (This refers to funds planned to be spent on contraceptives, whether or not they ended up being spent.)","B6. What was the amount of government funds allocated for contraceptive procurement? (in US$) \n(i.e., funds originally designated for contraceptives, whether or not they ended up being spent on them)","B6i. Time period when government allocations were supposed to be spent (mm/yy-mm/yy)","B6ii. Data source for information on  government allocations","B6iii. Comments regarding government allocations","B7. Were government funds spent on contraceptive procurement for the public sector in the most recent complete fiscal year? (including internally generated funds, basket funds, World Bank credits or loans, and other donor funds given to the government)","B8a. Did the government spend internally generated funds for contraceptive procurement for the public sector ","B8ai. Specify source(s) of internally generated funds spent (e.g., from taxes or user fees)","B8aii. What was the amount of internally generated funds spent on contraceptive procurement for the public sector? (in US$)","B8aiii. Time period for internally generated funds  (mm/yy-mm/yy)","B8aiv. Data source for information on internally generated funds","B8av. Comments regarding internally generated funds","B8b. Did the government spend other government funds for contraceptive procurement for the public sector (e.g., basket funds, World Bank credits or loans, or other funds donors gave to the government [e.g., direct budget support])?","B8bi. Specify source(s) of other government funds spent (e.g., basket funding or specific donor)","B8bii. What was the amount of these other government funds spent on contraceptive procurement for the public sector? (in US$)","B8biii. Time period for these other government funds (mm/yy-mm/yy)","B8biv. Data source for information on these other government funds","B8bv. Comments regarding these other government funds","B8c. In total, how much did the government spend on contraceptive procurement for the public sector? (in US$)\n\nThis will auto-calculate. (It will sum internally generated funds and other government funds.)\n\n","B8ci. Comments on total government funds spent on contraceptive procurement for the public sector","B9. In-kind and Global Fund donations","B9a. Were in-kind donations of contraceptives provided for the public sector?","B9ai. Source(s) of in-kind donations","B9aii. What was the value of  in-kind donations of contraceptives for the public sector? (in US$)","B9aiii. Time period for in-kind donations (mm/yy-mm/yy)","B9aiv. Data source for information on in-kind donations","B9av. Comments regarding in-kind donations","B9b. Were Global Fund donations used to procure condoms?","B9bi. What was the amount spent on Global Fund donations used to procure condoms? (in US$)","B9bii. Time period for Global Fund condom procurements (mm/yy-mm/yy)","B9biii. Data source for information on Global Fund condom procurements","B9biv. Comments regarding Global Fund condom procurements","B9c. Were Global Fund donations used to procure contraceptives besides condoms?","B9ci. What was the amount spent on Global Fund donations used to procure contraceptives besides condoms? (in US$)","B9cii. Time period for Global Fund non-condom contraceptive procurements (mm/yy-mm/yy)","B9ciii. Data source for information on Global Fund non-condom contraceptive procurements","B9civ. Comments regarding Global Fund non-condom contraceptive procurements","B9d. Total value of in-kind donations and Global Fund donations spent on contraceptive procurement for the public sector\n\nThis will auto-calculate. (It will sum in-kind donations and all Global Fund procurements.)","B9di. Comments regarding total value of in-kind donations and Global Fund donations spent on contraceptive procurement for the public sector","B10. Government share of spending on contraceptive procurement for the public sector - \nOf the total amount spent on contraceptives for the public sector in the most recent complete fiscal year (including government and donor spending), what percent was covered by government funds (including internally generated funds, basket funds, World Bank credits or loans, and other funds given to the government)?\n\nThis will autocalculate -Total government spending (Question B8c) /\nGrand total of all spending for public sector contraceptives from the government and donors (Questions B8c+B9d)","B10a. Comments about government share of spending on contraceptive procurement for the public sector","B11. Total expenditures on public sector contraceptives as percent of amount that needed to be procured -\nOf the estimated value of the contraceptives needed to be procured for the public sector for the most recent complete fiscal year, what percent was provided by any source (whether government or donor)? \n\nThis will auto-calculate. (It contains the following formula: Grand total of all spending for public sector contraceptives from the government and donors (Questions B8c+B9d) / Value of estimated need for procurement (Question B2))","B11a. Comments about total expenditures on public sector contraceptives as percent of amount that needed to be procured","B12. If B11 did not calculate automatically, please answer the following question: \n\nWas there a funding gap for the public sector in the last complete fiscal year (e.g., 09-'10 fiscal year)?","B12a. Comments about B12 (whether there was a funding gap) ","B13. If the government financed any contraceptive procurement in the most recent complete fiscal year, which entity conducted the procurement(s)?\n\n(responses from dropdown list choices)","B13a. Specify entity that conducted procurement ","B13ai. Is this procurement entity a parastatal?","B14. Comments about finance and procurement","C. Commodities","C1. Are the following contraceptive methods offered in commercial sector facilities?\n\n(Please indicate which methods are intended to be offered. This question is not asking whether the method is in stock.)","C1a. Combined oral contraceptives offered in commercial sector facilities?","C1b. Progestin-only pills offered in commercial sector facilities?","C1c. Hormonal injections offered in commercial sector facilities?","C1d. Hormonal implants offered in commercial sector facilities?","C1e. Intrauterine devices (IUDs) offered in commercial sector facilities?","C1f. Male condoms offered in commercial sector facilities?","C1g. Female condoms offered in commercial sector facilities?","C1h. Emergency contraceptive pills offered in commercial sector facilities?","C1i. Long-acting permanent method for males (e.g., vasectomy) offered in commercial sector facilities?","C1j. Long-acting permanent method for females (e.g., tubal ligation) offered in commercial sector facilities?","C1k. CycleBeads offered in commercial sector facilities?","C1l. Specify other contraceptive(s) offered in commercial sector facilities","C2. Are the following contraceptive methods offered in public sector facilities?\n\n(Please indicate which methods are intended to be offered. This question is not asking whether the method is in stock.)","C2a. Combined oral contraceptives offered in public sector facilities?","C2b. Progestin-only pills offered in public sector facilities?","C2c. Hormonal injections offered in public sector facilities?","C2d. Hormonal implants offered in public sector facilities?","C2e. Intrauterine devices (IUDs) offered in public sector facilities?","C2f. Male condoms offered in public sector facilities?","C2g. Female condoms offered in public sector facilities?","C2h. Emergency contraceptive pills offered in public sector facilities?","C2i. Long-acting permanent method for males (e.g., vasectomy) offered in public sector facilities?","C2j. Long-acting permanent method for females (e.g., tubal ligation) offered in public sector facilities?","C2k. CycleBeads offered in public sector facilities?","C2l. Specify other contraceptive(s) offered in public sector facilities","C3. Are the following contraceptive methods offered in NGO facilities?\n\n(Please indicate which methods are intended to be offered. This question is not asking whether the method is in stock.)","C3a. Combined oral contraceptives offered in NGO facilities?","C3b. Progestin-only pills offered in NGO facilities?","C3c. Hormonal injections offered in NGO facilities?","C3d. Hormonal implants offered in NGO facilities?","C3e. Intrauterine devices (IUDs) offered in NGO facilities?","C3f. Male condoms offered in NGO facilities?","C3g. Female condoms offered in NGO facilities?","C3h. Emergency contraceptive pills offered in NGO facilities?","C3i. Long-acting permanent method for males (e.g., vasectomy) offered in NGO sector facilities?","C3j. Long-acting permanent method for females (e.g., tubal ligation) offered in NGO sector facilities?","C3k. CycleBeads offered in NGO sector facilities?","C3l. Specify other contraceptive(s) offered in NGO sector facilities","C4. Are the following contraceptive methods offered through social marketing?\n\n(Please indicate which methods are intended to be offered. This question is not asking whether the method is in stock.)","C4a. Combined oral contraceptives  offered through social marketing?","C4b. Progestin-only pills offered through social marketing?","C4c. Hormonal injections offered through social marketing?","C4d. Hormonal implants offered through social marketing?","C4e. Intrauterine devices (IUDs) offered through social marketing?","C4f. Male condoms offered through social marketing?","C4g. Female condoms offered through social marketing?","C4h. Emergency contraceptive pills offered through social marketing?","C4i. Long-acting permanent method for males (e.g., vasectomy) offered through social marketing?","C4j. Long-acting permanent method for females (e.g., tubal ligation) offered through social marketing?","C4k. CycleBeads offered through social marketing?","C4l. Specify other contraceptive(s) offered through social marketing","C5. Comments about methods offered","D. Policies (Commitment)","D1. Is there a contraceptive security or reproductive health commodity security strategy or is contraceptive security explicitly included in a country strategy?","D1a. Strategy name","D1b. Years strategy covers (including strategy updates)","D1c. Is the strategy formally approved by the Ministry?","D1d. Is the contraceptive security strategy being implemented?","D2. Are any family planning commodities subject to duties, import taxes, or other fees?","D2a. For which sector(s) (public, NGO, social marketing, commercial sector) are there duties, taxes, or fees?","D2b. How much are the duties, taxes, or fees?","D3. Are there policies that hinder the ability of the private sector (commercial sector, NGOs, or social marketing) to provide contraceptive methods? (e.g. price controls, distribution limitations, taxes/duties, advertising bans)","D3a. Description of policies hindering the private sector","D4. Are there policies that enable the private sector (commercial sector, NGOs, or social marketing) to provide contraceptive methods?","D4a. Description of policies enabling the private sector","D5. Do policies or regulations exist that restrict who can dispense or sell particular contraceptive methods?","D5a. Name of contraceptive method 1","D5ai. Description of public sector restriction regarding who is allowed to dispense or sell method 1","D5aii. Description of private sector restriction regarding who is allowed to dispense or sell method 1","D5b. Name of contraceptive method 2","D5bi. Description of public sector restriction regarding who is allowed to dispense or sell method 2","D5bii. Description of private sector restriction regarding who is allowed to dispense or sell method 2","D5c. Name of contraceptive method 3","D5ci. Description of public sector restriction regarding who is allowed to dispense or sell method 3","D5cii. Description of private sector restriction regarding who is allowed to dispense or sell method 3","D6. Does the country have laws, regulations, or policies that make it difficult for the following sub-populations to access effective family planning services?","D6a. Laws/regulations/policies limiting access to family planning services for unmarried people?","D6ai. Description of the rules/policies limiting access for unmarried people","D6aii. Are the rules/policies limiting access for unmarried people implemented?","D6b. Laws/regulations/policies limiting access to family planning for young people?","D6bi. Description of the rules or policies limiting access for young people","D6bii. Are the rules/policies limiting access for young people implemented?","D6c. Laws/regulations/policies limiting access to family planning services to other sub-populations?","D6ci. Description of the rules or policies limiting access for other sub-populations","D6cii. Are the rules/policies limiting access for other sub-populations implemented?","D7. Are there charges to the client in the public sector for family planning services or commodities? (This question refers to charges by policy, not under-the-table charges.)","D7a. Charges to client in public sector for family planning services?","D7b. Charges to client in public sector for family planning commodities?","D7c. If there are charges, are there exemptions for people who cannot afford to pay?","D7ci. Description of exemptions","D8. Inclusion of contraceptives in country's National Essential Medicine List (NEML) or other equivalent priority list","D8a. Are combined oral contraceptives included on the NEML?","D8b. Are progestin-only pills included on the NEML?","D8c. Are hormonal injections included on the NEML?","D8d. Are hormonal implants included on the NEML?","D8e. Are intrauterine devices (IUDs) included on the NEML?","D8f. Are male condoms included on the NEML?","D8g. Are female condoms included on the NEML?","D8h. Are emergency contraceptive pills included on the NEML?","D8i. Are CycleBeads included on the NEML?","D8j. Are any other contraceptives included on the NEML?","D8ji. Name of other contraceptive on NEML","D9. Year of National Essential Medicine List (NEML)","D10. Name of national essential medicine list ","D11. Notes about the NEML","D12. Information in country's Poverty Reduction Strategy Paper (PRSP)","D12a. Year of Poverty Reduction Strategy Paper (PRSP)\n(most recent actual PRSP on IMF's site (not progress or summary report)","D12b. Is family planning or reproductive health a priority in the PRSP?","D12c. Is contraceptive security included in the PRSP?","D12d. Is contraceptive prevalence rate (CPR) included as an indicator in the PRSP?","D12e. Are contraceptive supply indicators included in the PRSP?","D12f. Notes about the PRSP","E. Supply Chain (Capacity)","E1. Have stockouts occurred for any contraceptive at the central level in the last 12 months?\n\n(The central level refers to the central level warehouse for the public sector.)","E2. In the last 12 months, has there ever been a stockout at the central level of any of the following contraceptives offered in public sector facilities?\n\n(If a method is not intended to be offered in public sector facilities, in most cases stockouts will be not applicable (\"N/A\").)","E2a. Combined oral contraceptives stocked out at central level in last 12 months?","E2b. Progestin-only pills stocked out at central level in last 12 months?","E2c. Hormonal injections stocked out at central level in last 12 months?","E2d. Hormonal implants stocked out at central level in last 12 months?","E2e. Intrauterine devices (IUDs) stocked out at central level in last 12 months?","E2f. Male condoms stocked out at central level in last 12 months?","E2g. Female condoms stocked out at central level in last 12 months?","E2h. Emergency contraceptive pills stocked out at central level in last 12 months?","E2i. CycleBeads stocked out at central level in last 12 months?","E2j. Time period of stockout information","E2k. Data source for stockout information","E3. Are stockouts a large problem in your country at the following levels? \n(i.e., Are they common or do they tend to last for a long time?)","E3a. Are stockouts a large problem at the service delivery point level? \n(i.e., public sector health facilities)","E3b. Are stockouts a large problem at the central level? \n(i.e., central level warehouse for the public sector)","F. Overall comments about challenges or successes with contraceptive security in your country","Region"]
["Afghanistan ",null,"Yes","Contraceptive Security Sub-Committee of the Coordinated Procurement and Distribution Committee at the MoPH",null,"Yes","Futures Group/COMPRI-A Project, Afghanistan Social Marketing Organization (ASMO)","Yes","Marie Stopes, ASMO","No","","No","","Yes","UNFPA","Yes","Reproductive Health Department","Yes","Central Medical Store","No","","","","1-2 times","No","No","","",null,"March","February","N/A","N/A","N/A","No","Don't know","Don't know","01/10-12/10","","Afghanistan just completed its first National Health Account (NHA) and will be able to provide this data in the future.","Don't know","Don't know","Don't know","Don't know","01/10-12/10","","Most likely $0","No","N/A",0,"01/10-12/10","","","Don't know","",null,"Yes","USAID","Don't know","01/10-12/10","","In 2009 UNFPA procured $100,854 worth of contraceptives for the MoPH but did not receive a request in 2010.","No",0,"01/10-12/10","","","No",0,"01/10-12/10","","","Don't know","","Don't know","","Don't know","","Don't know","","N/A","N/A","N/A","World Bank & EU include a pharmaceutical line item in their budgets to NGOs who provide health services. These NGOs purchase pharmaceuticals, including contraceptives, for the health facilities they operate. ",null,"","Yes","Yes","Yes","No","Yes","Yes","No","No","No","Yes","No","No",null,"Yes","Yes","Yes","No","Yes","Yes","No","Don't know","No","Yes","No","No",null,"Yes","Yes","Yes","No","Yes","Yes","No","No","No","Yes","No","No",null,"Yes","No","Yes","No","No","Yes","No","No","No","No","No","No","",null,"No","","","","","Yes","Commercial sector ","Import duties are taken as a percentage of total in products for distribution (not cash).","No","N/A","Yes","National Essential Drug List includes contraceptives","No","","","","","","","","","",null,"No","","","No","","","No","","",null,"No","No","N/A","N/A",null,"Yes","Don't know","Yes","No","Yes","Yes","No","No","No","No","N/A","2007 (December)","National Licensed Drug List","Drugs may be added to the list with justification.",null,2008,"Yes","No","Yes","No","",null,"Yes",null,"Yes","Yes","Yes","N/A","No","No","N/A","Yes","N/A","","MOPH letter",null,"No","No","There is currently an overstock of Depo-provera at a national level.","Europe and Asia"]
["Albania ",null,"Yes","Reproductive Health Committee",null,"Yes","NESMARK","Yes","Albanian Center for Population and Development (IPPF affiliate)","Yes","Bayer Schering, OES Distrimed, Marketing and Distribution","Yes","UNFPA, USAID, UNICEF","Yes","UNFPA, UNICEF","Yes","Reproductive Health Unit, Pharmacy Department ","No","","No","","Yes","Ministry of Labour","Don't know","Don't know","Yes","MOH","Minister of Health",null,"January","December",67000,"Beginning of the year (every year)","LMIS Coordinator","Don't know","Yes","Don't know","01/10-12/10","Institute of Public Health Records ","Ministry of Health covered 100% of the budget for contraceptive procurement for the public sector for 2010","Yes","Yes","",67000,"01/10-12/10","","","No","N/A",0,"01/10-12/10","","",67000,"",null,"No","N/A",0,"01/10-12/10","","","No",0,"01/10-12/10","RHInterchange","","No",0,"01/10-12/10","","",0,"",1,"100% government share",1,"100%\n","No","","Third-party agent (e.g., UNFPA, Crown Agents)","UNFPA","No","",null,"","Yes","Yes","Yes","No","Yes","Yes","No","Don't know","No","No","No","",null,"Yes","Yes","Yes","No","Yes","Yes","No","Don't know","Yes","Yes","No","",null,"No","No","No","No","No","Yes","No","Don't know","No","No","No","",null,"No","Yes","No","No","No","Yes","No","Don't know","No","No","No","","",null,"Yes","Albania Contraceptive Strategy","2003-2010","Yes","Yes","Yes","Social marketing and commercial sector","VAT (for condoms, IUD are 20%), Custom tax is 2% for all methods)","Yes","Price control, VAT (for condoms and IUDs) and custom tax (for all methods) for commercial sector and NGOs","Yes","","Yes","IUDs","Only Ob-Gyns ","Drugstore","Orals and injections","","Drugstore","","","",null,"No","","","No","","","No","","",null,"No","No","N/A","N/A",null,"Yes","Yes","Yes","No","Yes","Yes","No","Yes","No","Don't know","Don't know","2004-2011","Lista me cmimet e barnave te regjistruara per vitin ","The list can be found at  http://www.moh.gov.al/",null,2008,"No","No","No","No","",null,"Yes",null,"No","No","No","N/A","Yes","Yes","N/A","N/A","N/A","","LMIS",null,"No","No","The Albania government is in the process of revising the CS Strategy with UNFPA support.","Europe and Asia"]
["Armenia ",null,"No","N/A",null,"N/A","","N/A","","N/A","","N/A","","N/A","","N/A","","N/A","","N/A","","N/A","","N/A","N/A","No","","",null,"January","December","N/A","N/A","N/A","No","No",0,"01/10-12/10","","","No","No","N/A",0,"01/10-12/10","","","No","N/A",0,"01/10-12/10","","",0,"",null,"Yes","UNFPA",13105,"01/10-12/10","UNFPA","27 FP units have been supplied with contraceptives worth $13,105 USD. UNFPA provided condoms for distribution among the military (for HIV/AIDS prevention).","Yes",39688,"01/10-12/10","Mission East","For HIV/AIDS prevention only","No",0,"01/10-12/10","","",52793,"",0,"","Don't know","","","","N/A","N/A","N/A","",null,"","Yes","Yes","Yes","No","Yes","Yes","No","Yes","Don't know","Don't know","No","Spermicides",null,"Yes","Yes","Yes","No","Yes","Yes","No","Yes","Don't know","Don't know","No","Don't know",null,"No","No","No","No","No","No","No","No","No","No","No","No",null,"Don't know","Don't know","Don't know","Don't know","Don't know","Don't know","Don't know","Don't know","Don't know","Don't know","Don't know","Don't know","",null,"Yes","National Strategy, Program and Actions Timeframe on Reproductive Health Improvement","2007 - 2015","Yes","Yes","Yes","Commercial sector","20% VAT","Yes","There are advertising ban policies. In particular, contraceptive pills and spermicides are not among the \"over the counter\" medicines and cannot be advertised. For the advertisement of other contraceptives, Ministry of Health permission is required.","No","N/A","Yes","Pills, IUDs, spermicides ","Only OB/GYNs can prescribe and dispense all methods, including IUD insertions. Family doctors (FDs) provide FP counselling and dispense all contraceptives, except for hormonal pills and IUD insertions. Nurses can only refer patients to FP counseling and dispense condoms.","","","","","","","",null,"No","","","No","","","No","","",null,"No","No","N/A","N/A",null,"Yes","Yes","Yes","No","No","No","No","Yes","No","No","N/A",2010,"Essential Medicine List of the Republic of Armenia","IUDs, condoms, and spermicides are not on the list because they are not drugs. Implants are not registered.",null,2008,"Yes","No","No","No","",null,"Yes",null,"Yes","No","Don't know","N/A","No","No","N/A","Yes","N/A","01/10-12/10","UNFPA and Institute of Perinatology, Obstetrics and Gynecology, MOH",null,"Yes","Yes","","Europe and Asia"]
["Azerbaijan ",null,"No","N/A",null,"N/A","","N/A","","N/A","","N/A","","N/A","","N/A","","N/A","","N/A","","N/A","","N/A","N/A","Yes","Scientific Research Institute of Obstetrics and Gynecology","Director, National RH Coordinator",null,"January","December",106667,"2006","John Snow, Inc. (JSI)/DELIVER Project","No","No",0,"01/10-12/10","","","No","No","N/A",0,"01/10-12/10","","","No","N/A",0,"01/10-12/10","","",0,"",null,"No","N/A",0,"01/10-12/10","","","Yes",31355.83,"2/11/2010","","Procured for Open Society Institute - Assistance Foundation (OSI-AF)","No",0,"01/10-12/10","RHInterchange","",31355.83,"",0,"",0.29395998762503867,"","Yes","","N/A","N/A","N/A","The last funding for contraceptive procurement was provided by UNFPA in 2004; however, the actual shipment of goods did not happen until 2008. The following methods were delivered: 864,000 male condoms worth US$24,014; 22,700 IUDs worth US$6,745; and 49,200 cycles of combined orals worth US$32,356.                                                                                                                                                                                                                                                  \n\nThe estimated dollar value of contraceptives needed to be procured for the public sector was US $345,735 for 2007 and US $106,667 for 2008 (source: unpublished 2006 CS assessment by DELIVER/PSP-One).",null,"","Yes","No","No","No","Yes","Yes","No","Yes","No","Yes","No","Spermicides",null,"No","No","No","No","No","No","No","No","No","Yes","No","",null,"No","No","No","No","No","No","No","No","No","No","No","",null,"No","No","No","No","No","Yes","No","No","No","No","No","","",null,"No","","","","","Yes","Commercial sector (no information regarding other sectors)","oral pills - 18% VAT + 1% other fees; medical devices (condom, IUD) - up to 36% VAT","Yes","There is a policy that allows advertising of condoms only after midnight, which is seen as hindering promotional efforts.","Don't know","There is no price control policy.","No","","","","","","","","","",null,"No","","","No","","","Yes","Currently only ob/gyns can provide FP services; therefore, people from remote and rural areas need to travel to a central rayon hospital or FP clinic to get an IUD insertion, OC prescription, or sterilization.   ","Yes",null,"No","No","N/A","N/A",null,"Yes","Yes","No","No","Yes","Yes","No","Yes","No","No","N/A","2008 but never published","Essential Drug List","The EDL was never approved by the Ministry of Health. There is hope that it will be published this year. ",null,2003,"Yes","Yes","No","No","Improving the system of delivering high quality contraceptives and medicines was a \"measure and action\" but not an indicator.",null,"N/A",null,"N/A","N/A","N/A","N/A","N/A","N/A","N/A","N/A","N/A","N/A","N/A",null,"N/A","N/A","Public warehouses do not carry contraceptives. ","Europe and Asia"]
["Bangladesh ",null,"Yes","Logistics Coordination Forum (LCF)",null,"Yes","Social Marketing Company (SMC)","Yes","Family Planning Association of Bangladesh, Marie Stopes","No","","Yes","USAID, World Bank, JICA, GTZ, CIDA, KfW, DFID","Yes","UNFPA","Yes","Directorate General of Family Planning, MOHFW","Yes","Directorate General Family Planning (DGFP) central warehouse","No","","Yes","Management Sciences for Health/Strengthening Pharmaceuticals Systems (MSH/SPS) Program","6 or more times","Yes","Yes","USAID","Sr. FP Advisor",null,"July","June",43571427,"07/10","DGFP","Yes","Yes",714285,"07/09-06/10","DGFP procurement plan","","Yes","Yes","General revenue funds",714285,"07/09-06/10","DGFP","","Yes","Basket funds",35714285,"07/09-06/10","DGFP","",36428570,"",null,"Yes","USAID, KfW",7142857,"07/09-06/10","USAID, DGFP","","No",0,"07/09-06/10","","","No",0,"07/09-06/10","","",7142857,"",0.83606557113679114,"",1,"","No","","The government (e.g., Central Medical Stores, MOH logistics unit, MOH procurement unit)","Directorate General of Family Planning","No","",null,"","Yes","Yes","Yes","No","No","Yes","No","Yes","Yes","Yes","No","",null,"Yes","No","Yes","Yes","Yes","Yes","No","No","Yes","Yes","No","",null,"Yes","Yes","Yes","Yes","Yes","Yes","No","No","Yes","Yes","No","",null,"Yes","Yes","Yes","No","Yes","Yes","No","No","No","No","No","","NGOs obtain their commodities from the government.",null,"Yes","Health, Nutrition and Population Sector Plan","2006-2011","Yes","Yes","Yes","Private sector","2.25% VAT, payable in advance","Yes","Private sector needs specific permission to import & distribute contraceptive commodities.","Yes","There is a policy to use IUDs and implants for long-term methods, and they are subject to a regulation that they should be inserted by a trained doctor and/or paramedic in a clinical environment. NGO clinics can offer these methods upon receiving them from the government.","Yes","Injectables","Community workers cannot initiate the first dose.","","All contraceptive methods","","All personnel need government authorization.","","","",null,"Yes","Unmarried women can't receive IUDs, injectables, implants, or tubal ligation.","Yes","No","","","Yes","Low parity women and men can't receive IUDs, tubal ligation, or vasectomy. Non-parous women can't receive injectables or implants.","Yes",null,"No","No","N/A","N/A",null,"Yes","Yes","Yes","Yes","Yes","Yes","No","Yes","No","No","N/A",2010,"Approved contraceptive list","",null,2005,"Yes","No","Yes","No","",null,"Yes",null,"No","N/A","No","Yes","Yes","No","N/A","N/A","N/A","01/10-12/10","DGFP Logistics Management Information System (LMIS)",null,"No","No","The bottleneck in the procurement management has been addressed and now it is almost streamlined through the DGFP Online Procurement Tracker (www.dgfplmis.org)","Europe and Asia"]
["Bolivia ",null,"Yes","Comité Nacional de Disponibilidad Asegurada de Insumos Anticonceptivos (DAIA) (National Contraceptive Security Committee)",null,"Yes","PROSALUD","Yes","Centro de orientacion sexual y reproductiva de Bolivia (CIES) (Bolivian center for sexual and reproductive orientation) ","No","","Yes","USAID","Yes","UNFPA","Yes","DINAMED (Dirección Nacional del Medicamento - National Essential Medicines Directorate); USSyC/SSR (Unidad de Servicios de Salud y Calidad/Salud Sexual y Reproductiva - Health Services and Quality and Sexual and Reproductive Health Units) ","Yes","CEASS (Central de Abastecimiento de Suministros)","No","","Yes","John Snow Inc.'s Proyecto Gestion y Calidad en Salud (GC&S)  (Health Management and Quality Project)","3-5 times","No","Yes","PROSALUD, CIES, G&CS/JSI, USAID, UNFPA","N/A",null,"January","December","Don't know - forecast for public sector specifically not available ","Don't know","Don't know","No","Don't know","Don't know","01/10-12/10","","","Don't know","Don't know","Don't know","Don't know","01/10-12/10","","","Don't know","Don't know","Don't know","01/10-12/10","","","Don't know","",null,"Yes","UNFPA",540000,"01/10-12/10","RHInterchange","","No",0,"01/10-12/10","RHInterchange","","No",0,"01/10-12/10","RHInterchange","",540000,"","Don't know","Government funds used for procurement are part of the public health insurance funds - at the municipal level - to locally procure commodities for the public sector. Municipalities often purchase their supplies from PROSALUD, the social marketing program, that also provides services and supplies through their own clinics and sales points. It is not posible to determine the amount spent locally by the public sector.","Don't know","","Yes","The products sold by the Social Marketing Program to the public sector are subsidized. The payments made by the public health insurance cover the subsidized price, except in the case of Depo-provera (40% of the price of each product is not covered) and female condoms (90% of the price of each product is not covered).","N/A","N/A","N/A","Currently, only in the case of donations are contraceptive commodities available at CEASS (the central warehouse), a parastatal entity.",null,"","Yes","Yes","Yes","No","Yes","Yes","Yes","Yes","Yes","Yes","Yes","",null,"Yes","Don't know","Yes","No","Yes","Yes","Yes","No","Yes","Yes","Yes","",null,"Yes","Don't know","Yes","Yes","Yes","Yes","Yes","Yes","Yes","Yes","Yes","",null,"Yes","No","Yes","No","Yes","Yes","Yes","No","No","No","Yes","","",null,"No","","","","","Yes","For any sector, but donated products are exempt from taxes by a specific decree; the exemption needs to be processed for donations to the MOH.","For all other sectors there is a 40% import cost and 16% sales tax.","Yes","Taxes increase sales costs","Yes","Essential pharmaceuticals and commodities policy","Yes","Hormonal methods","","Only by a health profesional","","","","","","",null,"No","","","No","","","No","","",null,"No","No","N/A","N/A",null,"Yes","No","Yes","No","Yes","Yes","Yes","No","No","No","N/A",2008,"Lista Nacional de Medicamentos Esenciales (LINAME) (National Essential Medicines List)","It is the national pharmaceuticals and commodities list for the national health system.",null,2001,"No","No","No","No","",null,"Yes",null,"Yes","N/A","Yes","N/A","Yes","Yes","Yes","N/A","N/A","11/09-03/11","Warehouse reports, and CEASS Evaluation developed by UNFPA in March 2011",null,"No","Yes","Although a government strategy is not currently being implemented, the Social Marketing Program/PROSALUD provides contraceptive commodities to the public and private-NGO sectors, and has a plan ensuring provision until 2015. Our country challenges include the regulatory policies that restrict international procurement of low-priced products that would be more affordable for low-income populations. ","LAC"]
["Burkina Faso ",null,"Yes","Comité de Suivi de la Sécurisation des Produits de SR (Reproductive Health Commodities Security Follow-up Committee)",null,"Yes","PROMACO","Yes","ABBEF (Burkina IPPF affiliate), Marie Stopes International (MSI)","Yes","Association des pharmaciens du privé (association of private pharmacists)","Yes","UNFPA","Yes","UNFPA","Yes","Family Health Division (DSF), Pharmacy Division, Planning and Research Division (DEP)","Yes","CAMEG (Central Medical Stores)","Yes","DAF Ministère de la Santé (Finances Division of the MOH), National Population Council (CONAPO)","Yes","Burkina Faso midwives' association (ABSF), Secrétariat permanent du Conseil national de lutte contre le SIDA (SP/CNLS) - permanent secretary of the national council of the fight against AIDS","1-2 times","Yes","Yes","Family Health Division (DSF)","Director",null,"January","December",2700000,"11/10","Reproductive Health Commodities Security Follow-up Committee","Yes","Yes",600000,"01/10-12/10","Finance Department, MOH","There was a reduction in government funding due to the flood in September 2009.","Yes","Yes","Taxes",365205,"01/10-12/10","Contraceptive Procurement Table (CPT)","The government budget line allocated for 2010 for contraceptives was US$600,000, but out of this budget only US$365,205 was spent (accessibility issue).","Yes","Basket Fund",404000,"01/10-12/10","Contraceptive Procurement Table (CPT)","Basket Funds managed by Project d’Appui au developpement sanitaire (PADS) - support to health development",769205,"",null,"Yes","UNFPA (US$795,491) & USAID (US$ 270,762) ",1066253,"01/10-12/10","CPTs, PipeLine database, My Commodities on USAID | DELIVER PROJECT website "," ","No",0,"01/10-12/10","","","No",0,"01/10-12/10","","",1066253,"",0.41908068721812214,"Government funds spent on contraceptive procurement represent 42% of the total funds spent on contraceptives for 2010.\n",0.67979925925925921,"68% of the 2010 needs were covered. The remaining gap particularly implacted implants and male condoms.\n","Yes","The funding gap impacted the supply of implants and male condoms.\n","The government (e.g., Central Medical Stores, MOH logistics unit, MOH procurement unit)","CAMEG (Central Medical Stores)","Yes","",null,"","Yes","Yes","Yes","No","No","Yes","Yes","Yes","No","No","No","",null,"Yes","Yes","Yes","Yes","Yes","Yes","Yes","No","Yes","Yes","Yes","",null,"Yes","Yes","Yes","Yes","Yes","Yes","Yes","Yes","Yes","Yes","Yes","",null,"Yes","No","No","No","No","Yes","Yes","No","No","No","No","","The consumption of implants is increasing, and the consumption of male condoms in the public sector doubled in 2010 because of the cost and the new brand is different from the social marketing brand and more expensive.",null,"Yes","Reproductive Health Commodity Security Strategic Plan 2009-2015 (revised to this from the previous Contraceptive Security Strategic plan 2006-2015) "," 2009-2015","Yes","Yes","Yes","Commercial sector","2.4%","No","N/A","No","N/A","Yes","Long-term methods: implants & IUDs","Provided only by health professionals (medical doctors and nurses)","Provided only by health professionals (medical doctors and nurses)","Oral contraceptives","Community Health Workers (CHWs) cannot prescribe pills, but FP clients can replenish their stock of pills from the CHW.","","","","",null,"No","","","No","","","Don't know","","",null,"Yes","Yes","Yes","For the indigent population, contraceprtives are free of charge.",null,"Yes","Yes","Yes","Yes","Yes","Yes","Yes","Yes","No","Don't know","Don't know",2010,"National Essential Medicines List (LNME in French)","",null,2005,"Yes","No","No","No","A supply indicator is included for generic and essential drugs. It does not refer directly to RH or FP supplies though.",null,"Yes",null,"No","No","No","Yes","No","Yes","No","N/A","No","01/10-12/10","Warehouse report (CAMEG report)",null,"Yes","No","Challenges: lack of forecasting and quantification capacity. Successes: the contraceptive budget line was maintained despite the difficult period in 2009 dealing with the impact of the floods. Additionally, the government has increased its budget line (for internally generated funds) from US $600,000 in 2010 to US $1.0 million in 2011. Despite temporary stockouts of implants and male condoms at the central level in 2010, there were no stockouts noticed at the service delivery points.                      ","Africa"]
["Democratic Republic of Congo ",null,"Yes","Groupe de Travail sur la Securisation des Produits de Santé de Reproduction (Working Group on Reproductive Health Commodity Security)",null,"Yes","Population Services International/Association de Santé Familial (PSI/ASF)","Yes","Association pour le Bien Etre Familial (ABEF) (Association for Family Well-being)","No","","Yes","USAID, World Bank","Yes","UNFPA","Yes","National Program for Essential Drugs, National Reproductive Health Program, Directorate of Planning, Directorate of Family and Specific Groups","No","","No","","No","","Don't know","Don't know","Yes","Programme National de Santé de la Reproduction (National Program of Reproductive Health)","Chief of Commodities Division",null,"January","December","Don’t know ","12/10","USAID and UNFPA each conducted a separate forecast. ","No","No",0,"01/10-12/10","","","No","No","N/A",0,"01/10-12/10","","No funds spent ","No","N/A",0,"01/10-12/10","","No funds spent ",0,"",null,"Yes","UNFPA ($1,626,071) & USAID ($4,233,542)",5859613,"01/10-12/10","Donor records","","No",0,"01/10-12/10","","","No",0,"01/10-12/10","","",5859613,"",0,"Contraceptive procurement is 100% dependent on donors.\n","Don't know","The commodity security committee planned to quantify contraceptive needs for the country but this exercise still needs to be done.\n","Yes","There is definitely a funding gap, but the amount of this gap has not been determined.\n","N/A","N/A","N/A","",null,"","Yes","Yes","Yes","No","No","Yes","No","Yes","No","No","No","",null,"Yes","Yes","Yes","Yes","Yes","Yes","Yes","Yes","Yes","Yes","Yes","",null,"Yes","Yes","Yes","Yes","Yes","Yes","Yes","Yes","No","No","Yes","",null,"Yes","Yes","Yes","Yes","Yes","Yes","Yes","No","No","No","Yes","","UNFPA is piloting the use of national distribution but USAID still uses its own system.",null,"Yes","Strategie National pour la Securisation des Commodités de Santé de la Reproduction (National Strategy for Reproductive Health Commodity Security) ","2008-2012","Yes","No","Yes","Commercial sector: duties & taxes. Other sectors: other small fees.","5% fees","No","N/A","No","N/A","No","","","","","","","","","",null,"Yes","Article 178 of penal code from the colonial era","No","Don't know","","","Don't know","","",null,"No","No","N/A","N/A",null,"Yes","Yes","Yes","Yes","Yes","Yes","Yes","Yes","Yes","Don't know","Don't know",2010,"National Essentials Drugs List","",null,"N/A","N/A","N/A","N/A","N/A","Document not available on IMF's website",null,"Yes",null,"Yes","Yes","Yes","N/A","No","No","Yes","No","No","Don't know","Warehouse report",null,"Don't know","Don't know","","Africa"]
["Dominican Republic ",null,"Yes","Comité Nacional de Disponibilidad Asegurada de Insumos Anticonceptivos (DAIA) (National Committee for Contraceptive Security)",null,"Yes","PROFAMILIA, ADOPLAFAM, MUDE, PSI","Yes","PROFAMILIA, ADOPLAFAM, MUDE, and 30 more institutions","No","","Yes","USAID","Yes","UNFPA, PAHO/WHO (Organización Panamericana de la Salud/Organización Mundial de la Salud [OPS/OMS])","Yes","Maternal-Child & Reproductive Health Department, Purchasing & Logistics Department, Sexually Transmitted Diseases Department, HIV Programs and Pharmacy Units","Yes","Central Warehouse/MOH","No","","No","","6 or more times","Yes","Yes","Maternal-Child & Reproductive Health Department","Maternal-Child & Reproductive Health Department Director",null,"January","December","Don't know","Don't know","Don't know","No","No",0,"01/10-12/10","","","Yes","Yes","Taxes primarily",652174,"01/10-12/10","Contraceptive Procurement Table (CPT)","","No","N/A",0,"01/10-12/10","","",652174,"",null,"Yes","UNFPA",157500,"01/10-12/10","Donor records","","No",0,"01/10-12/10","","","No",0,"01/10-12/10","","",157500,"",0.80547726615897264,"","Don't know","","Yes","","The government (e.g., Central Medical Stores, MOH logistics unit, MOH procurement unit)","Direccion Materno - Infantil y Adolescentes / Programa Planificacion Familiar (Maternal-Child and Adolescents Department / Family Planning Program)","No","Two purchases were made. (The first was intended to cover the needs for Jan-June and the second for July-Dec). Disbursement was executed from the MOH's central budget.",null,"","Yes","Yes","Yes","Yes","Yes","Yes","No","Yes","Yes","Yes","Yes","Vaginal spermicides",null,"Yes","Yes","Yes","Yes","Yes","Yes","No","Yes","Yes","Yes","No","",null,"Yes","Yes","Yes","Yes","Yes","Yes","Yes","Yes","Yes","Yes","Yes","Vaginal spermicides",null,"Yes","Yes","Yes","Yes","Yes","Yes","Yes","Yes","Yes","Yes","Yes","Vaginal spermicides","Implants and emergency contraceptives are not purchased by the MOH. However, donations are often received by the MOH, and services can be provided in key hospitals and mainly in coordination with NGOs. ",null,"Yes","Sistema para el Aseguramiento Logistico de Insumos Anticonceptivos (system for the logistics security of contraceptives)","2009 on","Yes","Yes","Yes","Commercial sector, social marketing, and NGO´s","16% value added tax (VAT)","No","N/A","No","N/A","No","","","","","","","","","",null,"No","","","No","","","No","","",null,"No","No","N/A","N/A",null,"Yes","Yes","Yes","No","Yes","Yes","No","No","No","No","N/A",2007,"Cuadro Basico de los Medicamentos Esenciales (CBME) (basic chart of essential medicines)","The list has not been revised since 2007.",null,"N/A","N/A","N/A","N/A","N/A","Document not available on IMF's website",null,"No",null,"No","No","No","N/A","No","No","N/A","N/A","N/A","01/10-12/10","Central Warehouse MOH reports",null,"No","No","Government funds should be allocated to a specialized account for contraceptives and reproductive health commodities. PROMESE - CAL (Centro Apoyo Logistico) should be involved in purchasing and distribution processes in order to ensure lower costs and increase efficiency. Affiliation initiatives, framed into the 87-01 Law of Social Security of Dominican Republic, should be promoted among users. This law involves the National Health Insurance (Seguro Nacional de Salud - Senasa) being the unique service provider for the subsidized population. Currently about 10% of the poor population is affiliated with the system, and theoretically contraceptive commodities should be financed by resources generated by the Basic Health Insurance Plan (Plan Basico de Salud) already implemented. As the affiliation rate consistently grows, fewer internal resources from the MOH will be allocated to these supplies, and financing will be transferred to the National Health Insurance.","LAC"]
["El Salvador ",null,"Yes","Contraceptive Security Committee",null,"Yes","Salvadoran Demographic Association (ADS)","Yes","Salvadoran Demographic Association (ADS)","No","","Yes","USAID","Yes","UNFPA","Yes","Reproductive Health Program, Financial Unit, Supplies & Medicines Unit, Planning Unit","No","","No","","No","","1-2 times","Yes","Yes","MOH","Family Planning Coordinator",null,"January","December",1160000,"04/10","Ministry of Health","Yes","Yes",655000,"01/10-12/10","Family Planning Coodinator","A budget increase of $109,000 was allocated. This amount is included in the total sum allocated.  ","Yes","Yes","Government of El Salvador budget, only",675674,"01/10-12/10","MOH, PipeLine Procurement Table"," ","No","N/A",0,"01/10-12/10","","",675674,"One single purchase per year. Purchase through UNFPA as per procurement table and allocated funds. ",null,"No","N/A",0,"01/10-12/10","","","Yes",24300,"08/10"," MOH Table","","No",0,"01/10-12/10","","",24300,"",0.96528442485006583,"Verified percentage and is correct.",0.60342586206896554,"Verified percentage and is correct. However, the amount expended is sufficient to cover historical consumption but not sufficient to cover the cost of adding new products (e.g., monthly injectables).","Yes","The amount expended is sufficient to cover historical consumption but not sufficient to cover the cost of adding new products (e.g., monthly injectables).","Third-party agent (e.g., UNFPA, Crown Agents)","UNFPA","No","",null,"","Yes","Don't know","Yes","Yes","Yes","Yes","Yes","Yes","Yes","Yes","No","",null,"Yes","No","Yes","Yes","Yes","Yes","Yes","Yes","Yes","Yes","Yes","",null,"Yes","Don't know","Yes","Yes","Yes","Yes","Don't know","Yes","Yes","Yes","Yes","",null,"Yes","Don't know","Yes","Yes","Yes","Yes","Don't know","No","No","No","No","","",null,"No","","","","","Yes","All sectors","VAT 13% on the purchase price, customs clearance fee of 3%, other -  5 % of overhead charged by the Purchasing Agent (UNFPA or other) on total amount of purchase","No","N/A","Don't know","Don't know","No","","","","","","","","","",null,"No","","","No","","","No","","",null,"No","No","N/A","N/A",null,"Yes","Yes","Yes","Yes","Yes","Yes","No","No","No","No","N/A",2009,"Official List of Essential Medicines (10th Version) MOH","",null,"N/A","N/A","N/A","N/A","N/A","Document not available on IMF's website",null,"Yes",null,"No","No","Yes","No","No","No","Don't know","Don't know","Don't know","09/10-03/11","Family Planning Coordinator",null,"Yes","Yes","Challenges:\nNeed to:\n* Re-activate the Contraceptive Security Committee\n* Develop and implement a Contraceptive Security Strategy\n* Ensure sustainable financing and logistics for the purchase and distribution of contraceptives\n* Ensure contraceptive security in light of the MOH reform process, including the newly formed Helth Community Teams (ECOS)","LAC"]
["Ethiopia ",null,"Yes","Family Planning and Logistics Technical Working Group",null,"Yes","DKT","Yes","Family Guidance Association of Ethiopia, Marie Stopes International Ethiopia, Integrated Family Health Programs, Engender Health, Ipas, Population Council, Family Health International, Consortium of Reproductive Health Association Ethiopia (CORHA)","No","","Yes","USAID, Packard Foundation","Yes","UNFPA, WHO","Yes","Urban Health Promotion and Disease Prevention Directorate & Maternal Newborn and Child Health [MNCH] Coordinator","No","(Currently none, but expecting Pharmaceutical Fund and Supply Agency [PFSA] in the future) ","Yes","Population Department of Ministry of Finance and Economic Development (MOFED)","Yes","JHIPIEGO/ACCESS","6 or more times","No","Yes","FMOH","Urban Health Extension Directorate and MNCH Coordinator",null,"July","June",35884801,"04/10","Ministry of Health with technical assistance from the USAID | DELIVER PROJECT","Yes","Yes",9000000,"07/09-06/10","Ministry Records","","Yes","Yes","",481849,"07/09-06/10","Contraceptive Procurement Table (CPT)","Includes regional government funding","Yes","Protecting Basic Services (PBS) II",9000000,"07/09-06/10","Contraceptive Procurement Table (CPT)","",9481849,"",null,"Yes","USAID ($2,828,703), UNFPA Global Program ($3,592,953)",6421656,"07/09-06/10","Contraceptive Procurement Table (CPT)","","No",0,"07/09-06/10","RHInterchange"," ","No",0,"07/09-06/10","","Ethiopia has not started to use the GF money for contraceptive procurement. ",6421656,"",0.59621127543896768,"",0.44318219850236873,"The FMOH targets and plan for scale-up of long term contraceptives (Implanon® and IUCD) has a significant impact on the overall resource needs for contraceptives. ","","","The government (e.g., Central Medical Stores, MOH logistics unit, MOH procurement unit)","Pharmacutical Fund and Supply Agency (PFSA) ","Yes","Financing: even though the amounts are not all that significant, the central government and a number of the regional governments continue to finance contraceptive procurement from internally generated (budget) funds. The existence of basket funds, the emergence of the MDG Pool Fund, and the possibilities of future funding for commodities, as well as an overall increase in donor support for FP, have put the country in a generally better position. During this year, Pharmaceuticals Fund Supply Agency (PFSA) has started the procurement of contraceptives from Protection of Basic Services (PBS) II and internally generated funds. The USAID | DELIVER PROJECT continues to support the facilitation of the contraceptive procurement decisions through the sharing of information with the FMOH.",null,"","Yes","Yes","Yes","Yes","Yes","Yes","No","Yes","Yes","Yes","No","",null,"Yes","Yes","Yes","Yes","Yes","Yes","No","Yes","Yes","Yes","No","",null,"Yes","Yes","Yes","Yes","Yes","Yes","No","Yes","Yes","Yes","No","",null,"Yes","Yes","Yes","Yes","Yes","Yes","Yes","Yes","No","No","No","","Emergency contraceptives were first introduced in 2009, and it has taken time to expand program demand to the lower levels (SDPs). Female condom programming has not yet been introduced in Ethiopia.",null,"Yes","National Reproductive Health Strategy ","2006-2015","Yes","Yes","No","N/A","N/A","No","N/A","Yes","National RH Strategy (mentions enhancing CS through the effective use of social marketing), Adolescent Reproductive Health Strategy, and Family Planning Guideline (recently under revision)","No","","","","","","","","","",null,"No","","","No","","","No","","",null,"No","No","N/A","N/A",null,"Yes","Yes","Yes","Yes","Yes","Yes","Yes","Yes","No","Yes","Diaphragm with spermicidal ","2004, with updates in process"," Essential Medicine List (EML)","Ethiopia has the Essential Medicines List published in 2004 and the List of Drugs for Ethiopia (LIDE) published in 2007. Updates are in processs for the EML.",null,2002,"Yes","No","Yes","No","While contraceptive security isn't included, access to health services in general is an indicator. Also, there is an objective to ensure a regular and adequate supply of effective, safe and affordable essential drugs. While there is no contraceptive supply indicator, there is an indicator about HIV/AIDS condom distribution by social marketing. ",null,"Yes",null,"No","Yes","No","No","Yes","No","N/A","No","N/A","07/09-06/10","LMIS reports",null,"No","No","Significant improvement has been observed in the stockout rates  at SDPs of the most widely used contraceptives (injectables, pills, and condoms). The stockout rate for injectables and pills was less than 7% throughout fiscal year 2010. The stockout rate for male condoms was less than 10% for the year and less than 8% in the 4th quarter of 2010. Stockout rates for implants also decreased, to less than 25% by the end of 2010. The stockout rate had been more than 58% for injectables, 30% for pills, 20% for male condoms, and 60% for implants in 2006 (according to the Logistics Indicators Assessment Tool [LIAT] asessment conducted in 2006).","Africa"]
["Gambia ",null,"Yes","Commodity Security Committee",null,"Yes","Gambia Family Planning Association (GFPA)","Yes","Gambia Family Planning Association","Yes","Private pharmacy representative ","Yes","UNFPA","Yes","WHO, UNICEF","Yes","Reproductive and Child Health (RCH) Department (chair of the committee)","Yes","National Pharmaceutical Services","Yes","A representative attends meetings","","","0 times","No","Yes","Ministry of Health and Social Welfare (MOH&SW)","Reproductive and Child Health (RCH) Program Manager",null,"Don't know","Don't know",104883,"Don't know","Don't know","No","Don't know","Don't know","01/09-12/09","","","Don't know","No","N/A",0,"01/09-12/09","","","Don't know","UNFPA","Don't know","01/09-12/09","Interview with UNFPA NPO for Reproductive Health and HIV/AIDS","UNFPA allocates 35K USD annually for functioning of the RCH division and the division decides how much is used for contraceptive procurement. There was no data on actually how much of the 35K was spent on contraceptive procurement.","Don't know","",null,"Yes","UNFPA",60222,"01/09-12/09","RHInterchange","","No",0,"01/09-12/09","RHInterchange","","No",0,"01/09-12/09","RHInterchange","",60222,"","Don't know","","Don't know","Estimated 57% based on data from the RHI in terms of what was spent. (This estimate doesn't take into account any government funds from UNFPA that may have been used for contraceptive procurement though.)","","","Third-party agent (e.g., UNFPA, Crown Agents)","UNFPA","No","Currently there is inadequate funding for contraceptive procurement. With only one donor and no internally generated government funds for contraceptive procurement, stockouts occur frequently.",null,"","Yes","Yes","Yes","No","Yes","Yes","No","No","No","No","No","",null,"Yes","Yes","Yes","No","Yes","Yes","Yes","No","Yes","Yes","No","",null,"Yes","Yes","Yes","Yes","Yes","Yes","Yes","Yes","Yes","Yes","No","",null,"Don't know","Don't know","Don't know","Don't know","Don't know","Don't know","Don't know","Don't know","Don't know","Don't know","Don't know","","For female condoms, there was a plan to introduce them in the public sector and a pilot was conducted, but uptake was low.",null,"Yes","National Reproductive Health Commodity Security Strategy for the Gambia","2006-2010","Yes","Yes","Yes","NGO/private sector","1.5% of CIF for processing fee to customs","No","N/A","Don't know","Don't know","No","","","","","","","","","",null,"No","","","Yes","If someone is below 18 and not married, parental consent is required.","Yes","Don't know","","",null,"No","No","N/A","N/A",null,"Yes","Yes","Yes","No","Yes","Yes","No","No","Don't know","Don't know","Don't know",2007,"","",null,2007,"Yes","No","No","No","Commodity security for contraceptives specifically was not included in the PRSP, but access to services and the establishment of an efficient supply and logistics system to ensure effective and efficient health services to all was mentioned (p90-91). It was also mentioned that \"the need to address the frequent and acute shortage of drugs topped considerations for the Health Sector\" (p. 37). While thre are no contraceptive supply indicators, the occurrence of contraceptive stockouts is mentioned (p. 114). ",null,"Yes",null,"Yes","Yes","Yes","N/A","No","Yes","No","N/A","N/A","01/10-08/10","Anecdotal reports from the Reproductive and Child Health division, Gambia Family Planning Association, and interviews with stakeholders",null,"Yes","Yes","Whereas Gambia has a CS strategy, it has not been fully implemented. Difficulties in coordination and financing greatly undermine contraceptive security in the Gambia.","Africa"]
["Georgia ",null,"Yes","National Reproductive Health Council",null,"No","","Yes","John Snow, Inc. (JSI)","No","","Yes","USAID","Yes","UNFPA, UNICEF, WHO","Yes","Policy Unit, Deputy Minister, Advisor to the Minister","N/A","","No","","Yes","National Perinatal Center","6 or more times","Yes","No","","",null,"January","December","Don't know","12/10","JSI","No","No",0,"01/10-12/10","","Government funds have never been allocated for contraceptives.","No","No","N/A",0,"01/10-12/10","","","No","N/A",0,"01/10-12/10","","",0,"",null,"Yes","UNFPA",18361,"01/10-12/10","RHInterchange","","Yes",23529,"2010-2011","Global Fund Procurement Table","","No",0,"01/10-12/10","","",41890,"",0,"","Don't know","","Don't know","The USAID SUSTAIN Project did not have a gap in funding. We do not have information about UNFPA funding. \n\n","N/A","N/A","N/A","",null,"","Yes","Yes","No","No","Yes","Yes","Yes","Yes","No","Yes","Yes","",null,"Yes","Yes","No","No","Yes","Yes","No","Yes","No","Yes","No","",null,"Yes","Yes","No","No","Yes","Yes","No","No","No","No","No","",null,"Yes","Yes","No","No","Yes","Yes","No","No","No","No","No","","The NGO information about methods offered refers to HERA in Kutaisi.",null,"Yes","National Reproductive Health Strategy","2005-2015","Yes","Yes","Yes","1) If the commodity is humanitarian it is not subject to any taxation, and the documentation fee should not exceed 200 GEL. 2) If the commodity is commercial or social marketing (intended to be sold) it is subject to taxation. ","Custom tax 18% of the total price, custom fee 60 EUR, and after sales revenue 10%.","No","N/A","No","N/A","Yes","IUDs","Only Ob/Gyns and reproductologists can dispense.","Only Ob/Gyns and reproductologists can dispense.","","","","","","",null,"No","","","No","","","No","","",null,"Yes","Yes","Yes","There is a state insurance program for poor people. ",null,"No","No","No","No","No","No","No","No","No","No","N/A","N/A","N/A","No legally approved essential drug list exists at the national level, however most insurance companies have their own lists. These do not include contraceptives.",null,2003,"No","No","No","No","",null,"No",null,"No","No","N/A","N/A","No","No","N/A","N/A","N/A","03/10-02/11","USAID SUSTAIN logistics management information system (LMIS) regarding the USAID SUSTAIN contraceptive store",null,"No","No","","Europe and Asia"]
["Ghana ",null,"Yes","Inter-Agency Coordinating Committee on Contraceptive Security (ICC/CS)",null,"Yes","EXP Social Marketing (ESM), Ghana Social Marketing Foundation (GSMF) ","Yes","Planned Parenthood Association of Ghana (PPAG), Marie Stopes International Ghana (MSIGh), Christian Health Association of Ghana (CHAG)","Yes","Ghana Registered Midwives Association, Ghana Registered Nurses Association, Society of Private Medical and Dental Practitioners, Pharmaceutical Society of Ghana","Yes","USAID, UNFPA, DANIDA, DFID","Yes","UNAIDS, UNFPA, WHO","Yes","Ministry of Health (Procurement and Supplies, Policy Planning, and Monitoring and Evaluation directorates, Food and Drugs Board agency), Ghana Health Services (GHS) (Stores, Supplies and Drug Management; Family Health Division [FHD]; Public Health Directorate; Pharmacy Unit)","Yes","Central Medical Store","Yes","Ministry of Finance and Economic Planning - health desk officer","Yes","Technical projects (USAID | DELIVER PROJECT, FOCUS REGION HEALTH PROJECT)","3-5 times","Yes","Yes","USAID, UNFPA, Family Health Division, USAID | DELIVER PROJECT","FP Advisors, Director of the FHD, FP Program manager at FHD and the Resident Logistics Advisor",null,"January","December",10357919,"03/11","USAID | DELIVER PROJECT with partners: GHS, MOH, PPAG, MSI, GSMF, ESM","Yes","Yes","$    1,000,000","01/10-12/10","Ministry of Health","","Yes","Yes","","","01/10-12/10","Ministry of Health","The internally generated funds are part of the health sector support funds. We cannot disaggregate them.","Yes","$800,000 from health sector support funds (including internally generated funds) and $437,550 from DANIDA. (The DANIDA funds were earmarked for condoms.)",1237550,"01/10-12/10","Ministry of Health","This was originally planned for use in 2009, but release occurred in 2010. ",1237550,"",null,"Yes","USAID ($ 1,426,666), UNFPA ($901,224)",2327890,"01/10-12/10","My Commodities, RHInterchange, GHS and CMS records","","Yes",1450000,"01/10-12/10","GHS records","","No",0,"01/10-12/10","GHS records","",3777890,"",0.24674804204616146,"GoG-allocated funds for 2010, although requested, were never received for contraceptive procurement due to other constraints facing the GoG. The funds that were released in 2010 had been planned to be used in 2009. \n",0.48421309338294688,"","","","The government and a third-party agent","UNFPA on behalf of the government (for the heath sector support funds), and MOH Procurement Unit, and Stores, Supplies, and Drug Management Directorate of GHS (for the DANIDA-funded procurement). (GHS is under MOH.)","No","Inadequate financing is a worrying issue and there is the need for more funding and greater commitment from the government.",null,"","Yes","Yes","Yes","Yes","Yes","Yes","Yes","Yes","No","Yes","No","",null,"Yes","Yes","Yes","Yes","Yes","Yes","Yes","Yes","Yes","Yes","No","",null,"Yes","Yes","Yes","Yes","Yes","Yes","Yes","Yes","Yes","Yes","No","",null,"Yes","Yes","Yes","No","No","Yes","Yes","Yes","No","No","No","","",null,"Yes","Ghana National Contraceptive Security Strategy","2011 - 2016 ","Yes","Yes","Yes","All sectors","On average, 2% of the cost of commodities procured","Yes","Contraceptives, despite being subsidized, attract handling charges, reducing the overall budget available to the MOH for contraceptive procurement. ","Yes","The inclusion of all contraceptives on the Essential Medicines List raises their profile, informs about their use and availability, and gives confidence to prescribers and providers in the private sector as well to use them. It can also assist with advocacy for resources and support from donors. The registration policies enacted by the Food and Drug Board permit contraceptive registration and sale by brand.","Yes","Injectables","Community-based distributors restricted.","","Implants and IUDs","Service delivery restricted to health personnel with appropriate training","Service delivery restricted to health personnel with appropriate training.","","","",null,"No","","","No","","","No","","",null,"Yes","Yes","Yes","Exemptions may be applied on an individual, case-by-case basis and are available for those who need them.\n",null,"Yes","Yes","Yes","Yes","Yes","Yes","Yes","Yes","No","No","N/A",2010,"Ghana Essential Medicines List","",null,2005,"Yes","No","No","No","",null,"Yes",null,"No","Yes","Yes","No","Yes","No","No","No","N/A","01/10-12/10","Procurement Planning and Monitoring Report (PPMR), Central Medical Store stock reports",null,"Yes","Yes","Challenges include coordination issues (especially among programs for condom procurement and distribution), challenges due to inadequate financing, and challenges of poor logistics management across the country.","Africa"]
["Guatemala ",null,"Yes","Comision Nacional para el Aseguramiento de Anticonceptivos (CNAA) (National Contraceptive Security Committee)",null,"No","","Yes","APROFAM (Asociación Pro Bienestar de La Familia - Association for the Well-Being of the Family)\n","No","","Yes","USAID and UNFPA are invited to participate although they are not official members of the CNAA","Yes","UNFPA is invited to participate at the meetings, although it is not an official member of the CNAA. UNFPA handles procurement on behalf of the MOH","Yes","The MOH members of the CNAA include the director of the National Reproductive Health Program, the family planning advisor, and the logistics advisor","Yes","The logistics unit is an active member of the CNAA","Yes","","Yes","As per the current CNAA Internal Dispositions (Aug2010) the following organizations attend the CNAA meetings regularly (in the role of technical experts/advisors, they do not have a vote; they are not officially part of the CNAA): PASMO (social marketing); USAID-Health Care Initiative project (HCI); USAID International Reproductive Health/Georgetown University Fertility Awareness Methods Project (IRH/FAM); Health Policy Initiative (USAID/HPI); UNFPA ","Don't know","Yes","Yes","Ministry of Health","Family Planning Advisor",null,"January","December",1500000,"11/10","Logistics Advisor from the National Reproductive Health Program","Yes","Yes",1500000,"01/10-12/10","Ministry records","Procurement handled through UNFPA","Yes","Yes","Taxes on alcoholic beverages",1500000,"01/10-12/10","PipeLine","","No","N/A",0,"01/10-12/10","","",1500000,"",null,"No","N/A",0,"01/10-12/10","","","No",0,"01/10-12/10","","","No",0,"01/10-12/10","","",0,"",1,"",1,"100% ($1.5 million dollars)","No","\n","Third-party agent (e.g., UNFPA, Crown Agents)","UNFPA","No","MOH procures contraceptives by using UNFPA as a procurement agent through a co-financing agreement. The MOH coordinates the procurement via the UNFPA office in Guatemala, who then procures through their global procurement system from UNFPA Copenhagen. ",null,"","Yes","Yes","Yes","Yes","Yes","Yes","No","Yes","Yes","Yes","No","",null,"Yes","No","Yes","Yes","Yes","Yes","No","No","Yes","Yes","Yes","",null,"Yes","Yes","Yes","Yes","Yes","Yes","Yes","No","Yes","Yes","Yes","",null,"Yes","No","Yes","Yes","Yes","Yes","No","No","Yes","Yes","Yes","","A nominal amount of emergency contraceptive pills are available in the public sector through a UNFPA donation (USD $751, Source: RHInterchange). The MOH has included CycleBeads in the list but so far they have not yet purchased them (the ones they have were a donation from USAID/IRH/FAM).",null,"Yes","Contraceptive Security","2001 - 2011","Yes","Yes","Yes","The public sector is exempt from import taxes via the UNFPA franchise. The public sector has to pay: transport, insurance, and customs clearance fees. Others (NGOs, social marketing, and commercial) pay import taxes.","Don't know","No","N/A","No","N/A","No","","","","","","","","","",null,"No","","","No","","","No","","",null,"No","No","N/A","N/A",null,"Yes","Yes","Yes","Yes","Yes","Yes","No","No","Yes","Don't know","Don't know",2011,"Basic List of Medications of Health Areas and Hospitals and also Health Care Guidelines (1st and 2nd level)","",null,"N/A","N/A","N/A","N/A","N/A","Document not available on IMF's website",null,"No",null,"No","N/A","No","No","No","No","N/A","N/A","N/A","08/10-12/10","MOH National Reproductive Health Program (Central Warehouse Inventory)",null,"No","No","","LAC"]
["Haiti ",null,"Yes","Comité Technique en Santé de la Reproduction (Reproductive Health Technical Committee)",null,"Yes","PSI","Yes","Management Sciences for Health (MSH), Jhpiego, PROFAMIL (IPPF affiliate), Foundation for Reproductive Health and Family Education (FOSREF)","No","","Yes","USAID","Yes","UNFPA, UNICEF","Yes","Directorate of Family Health","No","","No","","No","","3-5 times","Yes","Yes","Directorate of Family Health","Contraceptive & Commodities Point of Contact",null,"October","September",2198963,"12/10","Ministry of Public Health","No","No",0,"01/10-12/10","","","No","No","N/A",0,"01/10-12/10","","","No","N/A",0,"01/10-12/10","","",0,"",null,"Yes","USAID and UNFPA",2198962.9,"01/10-12/10","UNFPA Logistics Coordinator and USAID Commodity Manager","These procurements are done on a calendar year basis, as opposed to the fiscal year.","No",0,"01/10-12/10","","","No",0,"01/10-12/10","","",2198962.9,"",0,"",0.9999999545240188,"","No","","N/A","N/A","N/A","",null,"","Yes","Yes","Yes","Yes","Yes","Yes","Yes","No","Yes","Yes","No","",null,"Yes","Yes","Yes","Yes","Yes","Yes","Yes","No","Yes","Yes","Yes","",null,"Yes","Yes","Yes","Yes","Yes","Yes","Yes","Yes","Yes","Yes","Yes","",null,"Yes","No","Yes","No","No","Yes","Yes","No","No","No","No","","Emergency contraceptives are part of the MoH norms and have been introduced by one NGO which is very active in FP. (They are pretty much the only NGO to offer the actual EC pill.) \n",null,"Yes","Plan d'Action de la Direction de la Santé de la Famille (Action Plan for Family Health Management)",1,"Yes","Yes","Yes","Commercial sector only","Don't know","No","N/A","Yes","National Norms","Yes","Injectables","This method can be administered only by medical staff (physicians, nurses, and nurse's aids). There is discussion about wanting to modify this policy though because having trained Community Health Workers administer injectables especially in rural communities has been a booster to the program. (Community Health Workers in the USAID network have been trained to administer injectables. They receive an extensive training (based on the MoH's curricula).) ","This method can be administered only by medical staff. ","","","","","","",null,"No","","","No","","","No","","",null,"Yes","No","Yes","Fees are waived for people who come to a public clinic and are unable to afford services.",null,"Yes","Yes","Yes","Yes","Yes","Yes","No","Yes","Yes","No","N/A","2011 (March)","(PAHO's list)","There is actually no National Essential Medicine List that has been approved by \nthe Ministry of Health. At the central level, a list based on essential services offered is used, set up by PAHO (who jointly manage the central warehouse with the MoH), but it is not a list that has been written and validated by the Ministry. However, the Department of Drugs and Medicine is working on one, which should be available shortly.",null,2008,"Yes","No","Yes","No","One of the objectives under health is to increase the rate of contraceptive use. Strengthening of health facilities' capacity to provide family planning services is also mentioned.",null,"Yes",null,"No","No","No","No","No","No","Yes","No","No","likely 01/10-12/10","Central Warehouse Management",null,"Don't know","Don't know","","LAC"]
["Honduras ",null,"Yes","Comité Interinstitucional para la Disponibilidad Asegurada de Insumos Anticonceptivos (CIDAIA) (Inter-institutional Committee for Contraceptive Security)",null,"Yes","PSI/PASMO (Pan American Social Marketing Organization)","Yes","ASHONPLAFA (IPPF affiliate)","Yes","Pfizer, Vijosa Laboratories, Arsal Laboratories, Bayer -Schering Pharma, CPL Honduras, Solis-Durex Distributor ","Yes","USAID, UNFPA","Yes","PAHO, UNFPA","Yes","Service Networks, Logistics Unit, Women's Health Unit, Essential Drugs Unit, Regulations Unit, STD Unit","Yes","Central warehouse (manager)","No","","Yes","Women's National Insitute (INAM in Spanish)","6 or more times","No","Yes","Ministry of Health","Advisor to the Vice-Minister ",null,"January","December",1693560.7644309902,"11/10","Ministry of Health","Yes","Yes",1270170.5733232426,"01/10-12/10","Ministry of Health","","Yes","Yes","General government income",2699112.4683118905,"01/10-12/10","PipeLine","","No","N/A",0,"01/10-12/10","","",2699112.4683118905,"",null,"Yes","UNFPA",890003,"01/10-12/10","PipeLine","This amount includes shipping and customs charges","No",0,"01/10-12/10","RHInterchange","","No",0,"01/10-12/10","","",890003,"",0.75202720339933637,"",2.1192717401656247,"\n","No","The UNFPA donation was the last that this agency will donate to the Honduras government. Of the total amount expended in 2010, shipments amounting  to aprox. US$731,000 of government funds plus US$890,000 of in-kind donations arrived in-country in 2010 (total US$1,621,000). The remaining shipments arrived in the country in March and April 2011. \n","The government (e.g., Central Medical Stores, MOH logistics unit, MOH procurement unit)","MOH administrative unit","No","Procurement is carried out at the national level. ",null,"","Yes","No","Yes","No","Yes","Yes","No","No","Yes","Yes","No","",null,"Yes","No","Yes","No","Yes","Yes","No","No","Yes","Yes","No","",null,"Yes","No","Yes","No","Yes","Yes","No","No","Yes","Yes","No","",null,"Yes","No","Yes","No","No","Yes","No","No","No","No","No","","",null,"Yes","Contraceptive Strategy","2005 - ongoing","Yes","Yes","No","N/A","N/A","Yes","In April 2009, the Parliament of Honduras approved a bill prohibiting the promotion, commercialization, free diistribution and use of EC pills. The bill also prohibits the dissemination of information about the use of contraceptive pills for EC.","Yes","Free market strategy","Yes","Emergency contraception (EC)","In April 2009, the Parliament of Honduras approved a bill prohibiting the promotion, commercialization, free diistribution, and use of EC pills. The bill also prohibits the dissemination of information about the use of contraceptive pills for EC.","In April 2009, the Parliament of Honduras approved a bill prohibiting the promotion, commercialization, free diistribution, and use of EC pills. The bill also prohibits the dissemination of information about the use of contraceptive pills for EC.","All contraceptive methods","According to the Honduran Health Code, medications (including contraceptives) can only be sold in pharmacies or authorized sale points.","According to the Honduran Health Code, medications (including contraceptives) can only be sold in pharmacies or authorized sale points.","","","",null,"No","","","No","","","No","","",null,"No","No","N/A","N/A",null,"Yes","Yes","Yes","No","Yes","Yes","No","No","No","Don't know","Don't know",2007,"National Essential Medicines List (NEML)","",null,2001,"Yes","No","No","No","While family planning and reproductive health are not explicitly mentioned as \"priorities,\" they seem to be. There is a goal to increase contraceptive prevalence, and both the maternal mortality rate and the number of women in reproductive health programs are included as indicators in order to \"provide greater attention to women's health conditions\".  ",null,"Yes",null,"No","N/A","Yes","N/A","Yes","No","N/A","N/A","N/A","01/10-12/10","PipeLine report",null,"Yes","No","A line item for contraceptive procurement was included in the 2010 national budget. The challenge is to achieve availability of all methods in all health units, thereby improving contraceptive forecasting and distribution processes in accordance with demand. As a separate note, there were periods during 2010 where contraceptive supplies were below minimum, including short periods of injectable and IUD stockouts.","LAC"]
["India ",null,"Yes","Supply and Social Marketing Division of the Ministry of Health and Family Welfare",null,"No","","No","","No","","No","","No","","Yes","Supply and Social Maketing Division of the Ministry of Health and Family Welfare","No","","No","","No","","3-5 times","Yes","Yes","Government of India","Director, Procurement Division",null,"April","March","Don't know","02/10","Ministry of Health and Family Welfare","Yes","Yes","Don't know","04/10-03/11","","Government of India procures contraceptives regularly ","Yes","Yes","Government of India funds from taxes, etc.","Don't know","04/10-03/11","","Government of India is self-sufficient in providing contraceptives. These are supplied for free in the government program.","No","N/A",0,"04/10-03/11","","","Don't know","",null,"No","N/A",0,"04/10-03/11","","Government of India is self-sufficient in providing contraceptives. These are supplied for free in the government program.","No",0,"04/10-03/11","","","No",0,"04/10-03/11","","",0,"",1,"","Don't know","Government of India is self-sufficient in providing contraceptives. These are supplied for free in the government program.","No","There was no funding gap for procurement of contraceptives during the last fiscal year. ","The government (e.g., Central Medical Stores, MOH logistics unit, MOH procurement unit)","Supply and Social Marketing Division of the Government of India","No","The National Family Planning Program is a top priority of the Government of India and contraceptives are procured regularly through a central government mechanism. They are available for free in the public sector.",null,"","Yes","Yes","Yes","No","Yes","Yes","Yes","Yes","Yes","Yes","Yes","",null,"Yes","No","No","No","Yes","Yes","No","Yes","Yes","Yes","No","",null,"Yes","No","Yes","No","Yes","Yes","No","Yes","Yes","Yes","Yes","",null,"Yes","Yes","Yes","No","Yes","Yes","Yes","Yes","No","No","Yes","","1) The decision to include injectable contraceptives in the national\nprogram is still pending. 2) CycleBeads are provided in NGO programs and social marketing in select project sites.3) For the past two years, female condoms have been supplied through the Government of India's social marketing program for female sex workers, through NGOs.  ",null,"Yes","National Population Policy ","2000 - 2016","Yes","Yes","No","N/A","N/A","No","N/A","Yes","Social Marketing Strategy of the Government of India (GoI): GoI provides a product subsidy to select social marketing agencies for promoting socially marketed products and market segmentation, so that the free supplies are made available for the poor.","Yes","Injectables","N/A - Injectables not available in the public sector. Injectables should ideally be included in the Government family planning program.","Qualified allopathic private practitioners are allowed to provide the injectable contraceptive. ","","","","","","",null,"No","","","No","","","No","","",null,"No","No","N/A","N/A",null,"Yes","No","Yes","No","Yes","Yes","No","Yes","No","No","N/A","2007 (March)","National List of Essential Medicines - India","",null,"N/A","N/A","N/A","N/A","N/A","Document not available on IMF's website",null,"No",null,"No","N/A","N/A","N/A","No","No","N/A","No","N/A","01/10-12/10","Government of India",null,"No","No","India has limited contraceptive choices. The contraceptives, however, are centrally procured. ","Europe and Asia"]
["Kenya ",null,"Yes","Family Planning Logistics Working Group",null,"Yes","Population Services International","Yes","Marie Stopes Kenya, Family Health Options Kenya (FHOK)","No","","Yes","USAID, KfW, DFID, World Bank","Yes","UNFPA","Yes","Division of Reproductive Health (DRH), Family Planning Program","Yes","Kenya Medical Supplies Agency","No","","","Management Sciences for Health (MSH), John Snow Inc. (JSI)","1-2 times","No","Yes","Ministry of Public Health and Sanitation","Director of Public Health and Sanitation",null,"July","June",16279427.720000001,"06/10","Division of Reproductive Health with TA from Management Sciences for Health/Strengthening Pharmaceutical Systems","Yes","Yes",6883117,"07/09-06/10","Ministry Records","The GoK allocation was Ksh. 530 million. We used the exchange rate as of July 2009 (1 USD = KES 77)","Yes","Yes","Taxes",4478168,"07/09-06/10","estimate based on prices from the RHI and procurements from fiscal year funds","","Yes","Total War Against HIV and AIDS (TOWA) funding from the World Bank",629918,"07/09-06/10","RHInterchange","",5108086,"",null,"Yes","Donations from UNFPA and USAID",7213274,"07/09-06/10","RHInterchange","","Yes",606300,"07/09-06/10","RHInterchange","recipient = National AIDS and STI Control Program","No",0,"07/09-06/10","","",7819574,"",0.39512843004843878,"",0.79411022441027179,"Commitments for procurement of contraceptives for FY 2009/10 by GoK and donors fully covered the quantified amount, but different lead times of different procuring agencies caused the delivery of commodities to spill over to FY 2010/11. In addition, KfW-funded commodities were procured after June 2010 (end of financial year). ","","","The government (e.g., Central Medical Stores, MOH logistics unit, MOH procurement unit)","Kenya Medical Supplies Agency","Yes","",null,"","Yes","Yes","Yes","Yes","Yes","Yes","Yes","Yes","Yes","Yes","No","Foaming Tablets",null,"Yes","Yes","Yes","Yes","Yes","Yes","Yes","Yes","Yes","Yes","Yes","",null,"Yes","Yes","Yes","Yes","Yes","Yes","Yes","Yes","Yes","Yes","No","Foaming Tablets",null,"Yes","No","Yes","Yes","Yes","Yes","Yes","Yes","Yes","Yes","No","","",null,"Yes","National Contraceptives Commodity Security Strategy","2007 - 2012","Yes","Yes","Yes","Public sector","UNFPA pays 5% of the commodity cost to KEMSA for handling, warehousing and distribution. Apart from the 5% all contraceptives are zero rated and no import tax or duty is charged for them.","No","N/A","Yes","Private sector and NGOs can access contraceptive methods available for the public sector as long as they can get a Service Delivery Point (SDP) number from the Division of Reproductive Health. (In order to get this they need an application letter to the Division of Reproductive Health, an inspection report from the Provincial Medical Officer, a professional certificate of the service provider, and a private practice license.)","Yes","Progestin-only pills, combined oral contraceptives, DMPA injections, emergency contraceptive pills, implants, and IUCDs","All facility levels are allowed to dispense these methods as long as there are skilled health workers","Only registered pharmacies, clinics, nursing homes and hospitals are allowed to sell or dispense these methods","","","","","","",null,"No","","","No","","","No","","",null,"No","No","N/A","N/A",null,"Yes","No","Yes","Yes","Yes","Yes","Yes","Yes","No","No","N/A",2010,"Kenya Essential Medicines List 2010","",null,2005,"No","No","Yes","No"," Document noted: \"Contraceptive prevalence rate increases from 38% to 45% in 2008.\"",null,"Yes",null,"No","No","No","Yes","Yes","Yes","Yes","No","Yes","02/10-01/11","KEMSA Monthly Stock Report",null,"Yes","No","At the SDP level the main challenge is the distribution system. This issue is being addressed by: shifting all distribution to KEMSA, monthly FP commodity supply chain meetings, and district-specific kit lists for \"push\" regions. At the central level, only female condoms and IUCDs have been stocked out for more than 6 months. Male condoms and implants have been stocked out for a maximum of 2 months.","Africa"]
["Liberia ",null,"Yes","National Reproductive Health Security Committee",null,"No","","Yes","Merline, Africare, IRC","No","","Yes","USAID","Yes","UNFPA","Yes","Supply Chain Management Unit, Family Health Division (FHD)","No","","No","","No","","1-2 times","No","Yes","UNFPA","CS Focus Person seconded to the FHD/MOH",null,"July","June",494137,"10/10","USAID | DELIVER PROJECT","No","Don't know","Don't know","07/09-06/10","","","No","No","N/A",0,"07/09-06/10","","","No","N/A",0,"07/09-06/10","","",0,"",null,"Yes","USAID ($383,864) & UNFPA ($414, 323)",798187,"07/09-06/10","RHInterchange","","No",0,"07/09-06/10","RHInterchange","","No",0,"07/09-06/10","RHInterchange","",798187,"",0,"",1.6153151858695058,"Consumption increased for Depo-provera and implants after the quantification.","","","N/A","N/A","N/A","",null,"","Yes","Yes","Yes","Yes","Yes","Yes","Yes","Yes","Yes","Yes","No","",null,"Yes","Yes","Yes","Yes","Yes","Yes","Yes","Yes","Yes","Yes","Yes","",null,"Yes","Yes","Yes","Yes","Yes","Yes","Yes","Yes","Yes","Yes","No","",null,"Don't know","Don't know","Don't know","Don't know","Don't know","Yes","Don't know","Don't know","Don't know","Don't know","Don't know","","",null,"Yes","National Reproductive Health Commodity Security Strategy and Operational Plan","2008-2012","Yes","Yes","No","N/A","N/A","Don't know","Don't know","No","N/A","Yes","DMPA injections","Only qualified health workers (including CHWs) can dispense","Only registered outlets can sell","Implants","Only qualified health workers (including CHWs) can dispense","Only registered outlets can sell","","","",null,"No","","","No","","","Don't know","","",null,"No","No","N/A","N/A",null,"Yes","Yes","Yes","Yes","Yes","Yes","Yes","Yes","Yes","Yes","Foaming tablets","Don't know","National Essential Medicine List of Liberia","It has just been updated.",null,2008,"No","No","Yes","No","",null,"Yes",null,"No","No","No","No","No","Yes","No","No","No","01/10-12/10","Procurement Planning and Monitoring Report (PPMR)",null,"Yes","Yes","Challenge: data collection and reporting from the peripheral levels and storage at the central level. Successes: The availability of all the methods and client choice.","Africa"]
["Madagascar ",null,"Yes","Reproductive Health/Family Planning Partners Committee  ",null,"Yes","Population Services International (PSI)","Yes","Fianakaviana Sambatra (FISA) (an IPPF affiliate), Marie Stopes Madagascar, Religious Platform represented by (1) SAF-FJKM (Health Department of Protestant Church) (2) SALFA (Health Department of Lutheran Church) and (3) VOAHARY SALAMA (NGOs' Platform) ","Yes","Organon","Yes","USAID, UNFPA","Yes","UNFPA, UNICEF, UNAIDS, World Bank, WHO","Yes","Directorate of Maternal Health","Yes","SALAMA (national essential drug purchasing agency)","Yes","Ministry of Population","","","1-2 times","Yes","Yes","The Directorate of Maternal Health","Director",null,"October","September",6871000,"12/10","MOH, UNFPA, SALAMA, PSI","Yes","Yes",58625,"09/10-10/10","Directorate of Maternal Health","","Yes","Yes","Taxes",58625,"01/10-12/10","Directorate of Maternal Health","This is from the government budget line item.","No","N/A",0,"01/10-12/10","","",58625,"",null,"Yes","UNFPA",5639717,"01/10-12/10","RHInterchange ","","No",0,"01/10-12/10","","","No",0,"01/10-12/10","","",5639717,"",1.0288080287213369E-2,"Only 1% of the procurement was covered by government funds.\n",0.82933226604569932,"In 2010, $6,871,000 worth of contraceptives was estimated to be needed to be purchased for the public sector.\n","Yes","$1,173,000 was the gap estimated for the public sector in 2010.\n","The government (e.g., Central Medical Stores, MOH logistics unit, MOH procurement unit)","SALAMA (central medical store)","Yes","SALAMA manages all the procurement and orders for MOH as well as the distribution to the districts.",null,"","Yes","No","Yes","Yes","Yes","Yes","Yes","Yes","Don't know","Don't know","No","",null,"Yes","Yes","Yes","Yes","Yes","Yes","No","No","Don't know","Don't know","Yes","",null,"Yes","No","Yes","Yes","Yes","Yes","Yes","Don't know","Yes","Yes","Don't know","",null,"Yes","Yes","Yes","Yes","Yes","Yes","Yes","No","Don't know","Don't know","Yes","","",null,"Yes","Contraceptive Security Strategy","2007-2012","Yes","Yes","Yes","NGO, social marketing, and commercial sectors","Tax: 20% and VAT: 20%","Yes","Import tax, product registration","No","N/A","No","","","","","","","","","",null,"No","","","No","","","No","","",null,"No","No","N/A","N/A",null,"Yes","Yes","Yes","Yes","Yes","Yes","Yes","Yes","Yes","Don't know","Don't know",2010,"Liste des Medicaments Essentiels (Essential Medicines List)","The list is updated once a year.",null,2007,"Yes","Yes","Yes","No","",null,"Yes",null,"Yes","Yes","Yes","Yes","No","Don't know","N/A","N/A","Yes","01/10-12/10","MOH and warehouse reports",null,"Yes","Yes","The March 2009 coup declaration suspended USAID support to the Government of Madagascar and impacted contraceptive security during the period from March 2009 to March 2011.","Africa"]
["Malawi ",null,"Yes","Reproductive Health Commodity Security (RHCS) Sub-Committee",null,"Yes","Population Services International (PSI), Banja La Mtsogolo (BLM)","Yes","Banja La Mtsogolo (BLM), Christian Health Assosiation of Malawi (CHAM), Family Planning Association of Malawi (FPAM)","No","","Yes","USAID, Global Fund","Yes","UNFPA","Yes","Reproductive Health Unit, Health Technical Support Services (HTSS) - Pharmaceutical, HIV Unit, National AIDS Commission","No","","No","","No","","3-5 times","No","Yes","Reproductive Health Unit","Deputy Director, Clinical Health Services - RH",null,"July","June",18442577,"02/09","HTSS with support from USAID | DELIVER PROJECT and various MOH partners","No","Don't know","Don’t know","07/09-06/10","","","Yes","Don't know","","","07/09-06/10","","Because there is a SWAp, it is not possible to disaggregate internally generated revenue funding from total government funding.","Yes","Basket funds",1223717,"07/09-06/10","PipeLine","This refers to commodities received during the time period.",1223717,"",null,"Yes","UNFPA ($2,490,255) and USAID ($4,202,784)",6693039,"07/09-06/10","PipeLine","This refers to commodities received during the time period.","Yes",186698,"07/09-06/10","PipeLine","This refers to commodities received during the time period.","No",0,"07/09-06/10","","",6879737,"",0.15101177843423311,"",0.43938837831611061,"The expenditure data used as inputs for this calculation were based on PipeLine, so they represent shipments received (rather than funds spent) during the time period. Because of this there is an issue of timing.\n","","","The government (e.g., Central Medical Stores, MOH logistics unit, MOH procurement unit)","Central Medical Stores","No","",null,"","Yes","Yes","Yes","Yes","Yes","Yes","Yes","Yes","Yes","Yes","No","",null,"Yes","Yes","Yes","Yes","Yes","Yes","Yes","Yes","Yes","Yes","No","",null,"Yes","Yes","Yes","Yes","Yes","Yes","Yes","Yes","Yes","Yes","Yes","",null,"Yes","Yes","Yes","Yes","Don't know","Yes","Yes","Yes","Yes","Yes","Yes","","For emergency contraceptives, long-acting permanent methods, and CycleBeads, the NGOs that provide these have an element of social marketing as well, so it was noted here that the methods are offered through NGOs and social marketing.",null,"Yes","DRAFT Reproductive Health Commodity Security Strategy","2011-2015","No","Yes","Yes","The public sector charges handling fees for the distribution of contraceptives to public sites and to NGOs that are supplied directly from the central medical store (CMS). These charges have proved to limit access to commodities, especially those that are highly priced and/or high volume.","Handling fees are 12.5% for government-procured commodities, and this is charged over and above the cost of the commodity, while for donated items it is 5% of the cost of the commodity.","No","N/A","Don't know","Don't know","Yes","IUDs, implants, and injectables","Can only administer in facilities with trained personnel. The non-medically trained cadre Health Surveillance Assistants are now allowed to administer DMPA injectables in communities after training.","Can only administer in accredited premises and by registered personnel","Oral contraceptives","Only trained personnel can provide. Community Health Workers can provide oral contraceptives (and condoms).","Can only provide in accredited premises and by registered personnel","","","",null,"No","","","No","","","No","","",null,"No","No","N/A","N/A",null,"Yes","Yes","Yes","Yes","Yes","Yes","No","Yes","No","No","N/A",2009,"Malawi Essential Medicines List (MEML)","",null,2007,"No","No","Yes","No","",null,"No",null,"No","No","No","No","No","No","No","N/A","N/A","07/09-06/10","LMIS",null,"Yes","No"," A parallel system to distribute USAID-donated commodities has been introduced. However, there is need for coordination (especially where the commodity is available in both systems). For example, USAID-donated contraceptives will be stored and distributed through the parallel system while contraceptives procured by others (including UNFPA)  will be channelled through the CMS system. The parallel system will deliver commodities to facilities at zero cost while those channeled through the CMS system will still attract a 5% handling charge for donated products and a 12.5% handling charge (plus the cost of the product) for government-financed products. \n\nThe Reproductive Health Commodity Security Sub-Committee is a new group focused specifically on RHCS. Previously, RHCS issues were part of the RH Technical Working Group. ","Africa"]
["Mali ",null,"Yes","National Committee for Monitoring the Reproductive Health Commodity Security Plan (Comission Nationale de Suivi du Plan de Sécurisation des Produits de la Santé de la Reproduction) (replaced the Comission Nationale de Suivi de la Contraception Sécurisée)",null,"Yes","Population Service International (PSI)","Yes","Marie Stopes International (MSI), Association of Support in the Development of Activities of Population (ASDAP), Group Pivot/Santé Population (GP/SP)","Yes","Conseils Nationnal de l'ordre des Pharmaciens Médecins et Sage-femmes (national council of pharmacists, physicians, and midwives)\n","Yes"," USAID, UNFPA, GRM, KFW","Yes","UNFPA","Yes","Directorate of Pharmacy and Medicine (DPM), Direction Nationale de la Sant du Mali (DNS), CSLS","Yes","Pharmacie Populaire du Mali (PPM)","No","","Yes","Association de Soutien au Développement des Activités de Population (ASDAP), Projet jeune, Association Malienne pour la Protection et la Promotion de la Famille (AMPPF), USAID projects/cooperating agencies (Strengthening Pharmaceutical Systems [SPS] project, Project Keneya Ciwara II [PKCII], Assistance Technique Nationale Plus [ATN+], Institute for Reproductive Health [IRH]/Georgetown University)","Don't know","Yes","No","","",null,"January","December",2733719,"03/11","DPM (with the participation of all partners involved in FP)","Yes","Don't know","Don't know","01/10-12/10","Ministry records","During the FY2010 contraceptive procurement table exercise (CPTs), contraceptives were planned for MOH procurement in FY 2010 for a total of $676,454.","No","No","N/A",0,"01/10-12/10","","No funds have been spent yet.","No","N/A",0,"01/10-12/10","","No funds have been spent yet.",0,"",null,"Yes","UNFPA (US $1,767,608) & USAID (US $966,111)",2733719,"01/10-12/10","Ministry records - Directorate of Pharmacy and Medicine","Some of the UNFPA shipments which were planned in 2009 were received in 2010 and considerably filled the pipeline.","No",0,"01/10-12/10","RHInterchange","","No",0,"01/10-12/10","RHInterchange","",2733719,"",0,"To date, contraceptive procurement has been supported by donors.\n",1,"UNFPA: approx. 65% and USAID: approx. 35%\n","No","","N/A","N/A","N/A","",null,"","Yes","Yes","Yes","Yes","No","Yes","No","Yes","No","No","No","",null,"Yes","Yes","Yes","Yes","Yes","Yes","Yes","No","Yes","Yes","Yes","",null,"Yes","Yes","Yes","Yes","Yes","Yes","Yes","Yes","No","No","Yes","",null,"Yes","Don't know","Yes","Yes","Yes","Yes","Yes","No","No","No","Yes","","",null,"Yes","Plan Stratégique pour la Sécurisation des Produits de la Santé de la Reproduction (Strategic Plan for Reproductive Health Commodity Security)","2011 - 2015","No","No","Yes","All sectors","Don't know","No","N/A","No","N/A","Yes","","","","","","","","","",null,"No","","","No","","","No","","",null,"No","No","N/A","N/A",null,"Yes","Yes","Yes","Yes","Yes","Yes","Yes","Yes","Yes","Don't know","Don't know",2010,"Mali National Essential Medicine List by Level (Liste Nationale des Médicaments Essentiels par Niveau Mali 2010)","The list includes 322 DCI molecules which correspond to 562 different forms and dosages of drugs.",null,2008,"No","No","No","No","",null,"Yes",null,"No","No","Yes","No","No","Yes","No","N/A","No","01/10-12/10","Warehouse report",null,"Yes","No","In Mali, contraceptives are essential drugs. As such, they are managed by the \"schema directeur\" plan which defines how all essential drugs are managed in the national public health supply chain. The existence of the technical committee of monitoring contraceptive security developing the procurement and planning table for contraceptives is a major asset for the family planning program in Mali. However, the major challenge remains the availability of consumption data and of private sector data.","Africa"]
["Mozambique ",null,"Yes","Reproductive Health Commodity Security Committee",null,"No","","No","","No","","Yes","USAID, USAID | DELIVER PROJECT","Yes","UNFPA","Yes","Reproductive Health (RH) Unit","Yes","Central de Medicamentos e Artigos Medicos (CMAM) (central medical store)","No","","No","","6 or more times","No","Yes","Government","First Lady",null,"January","December",7148583,"06/10","Representatives from the MOH RH Program, CMAM, USAID, UNFPA, with technical assistance from the USAID | DELIVER PROJECT","Yes","No",0,"01/10-12/10","Ministry records","","No","No","N/A",0,"01/10-12/10","","","No","N/A",0,"01/10-12/10","","",0,"",null,"Yes","UNFPA, USAID, World Bank",6209890,"01/10-12/10","RHInterchange","","No",0,"01/10-12/10","","","No",0,"01/10-12/10","","",6209890,"",0,"Although the government considers RH a priority, the allocation of funds  has been used for other priority health commodities.",0.86868824213134266,"Donors have provided 100% of needs. There has not been a shortage of available funding for contraceptives and condoms.","","","N/A","N/A","N/A","Donors have provided 100% of needs. There has not been a shortage of available funding for contraceptives and condoms. While CMAM received significant technical assistance to conduct procurement and theoretically could procure contraceptives and condoms, funds the MOH manages have been used for other priority health commodities.",null,"","Yes","Yes","Yes","No","No","Yes","Yes","No","No","No","No","",null,"Yes","Yes","Yes","No","Yes","Yes","Yes","No","Yes","Yes","No","",null,"Yes","Yes","No","No","No","Yes","Yes","No","No","No","No","",null,"Yes","Yes","No","No","No","Yes","Yes","No","No","No","No","","Currently, the provision of female condoms in public sector facilities is done through PSI through the dispensing facilities installed in the public institutions. Clients in the public sector access them for free. In the future, this will be managed by Conselho Nacional de Combate ao HIV/SIDA (CNCS), who will be responsible for requisition and repositioning.",null,"Yes","Family Planning and Contraception Strategy  ","2009-2013","Yes","Yes","No","N/A","N/A","Yes","Reportedly lengthy process for registration and MOH approval to launch socially marketed FP products","Yes","The Law for Private Medicine allows the private sector to import and prescribe all contraceptive methods. \n","Yes","IUDs","Only trained maternal/child health (MCH) nurses can insert (basic nurses cannot).","","Injectables","Only MCH nurses can provide injections.","","Orals","MCH Activists (community-based agents) can provide orals after the first consultation with an MCH nurse. (They also provide condoms.)","",null,"No","","","No","","","No","","",null,"No","No","N/A","N/A",null,"Yes","Yes","Yes","No","Yes","No","No","Yes","No","Yes","Spermicide",2007,"Formulario Nacional de Medicamentos","Condoms are not listed alone on the Formulario Nacional de Medicamentos but are mentioned. ",null,2007,"Yes","No","No","No","FP/RH is considered one of the priority programs within the health sector.",null,"Yes",null,"Yes","Yes","No","N/A","No","No","No","N/A","N/A","03/10-02/11","Procurement Planning and Monitoring Report (PPMR) and Logistics Management Information System",null,"Yes","No","","Africa"]
["Nepal ",null,"Yes","Contraceptive Security Working Group",null,"Yes","Contraceptives Retail Sales (CRS)","Yes","Family Planning Association of Nepal (FPAN)","No","","Yes","DFID, KfW, USAID, World Bank, AusAID","Yes","UNFPA, UNICEF","Yes","Department of Health Services (DoHS) and Family Health Division (FHD), Logistics Management Division (LMD), National Center for AIDS and STD Control (NCASC)","Yes","Central Warehouse Teku and Pathalaiya/Logistics Management Division","Yes","National Planning Commission (NPC), Ministry of Finance (MoF)","","","3-5 times","Yes","Yes","Logistics Management Division/MOH","Director",null,"July","June",3676347,"08/10","Logistics Management Division","Yes","Yes",2840000,"2009-2010","LMD records, PipeLine reports","","Yes","Yes","MOH funds",2242941,"2009-2010","PipeLine reports","","Yes","Pool funds from World Bank, DFID, and AusAID",347701,"2009-2010","PipeLine reports","",2590642,"",null,"Yes","KfW (USD $852,138 for condoms and injectables) & USAID (USD $233,568 for condoms)",1085706,"2009-2010","PipeLine report","","Yes","","2009-2010","","Insignificant quantity","No",0,"2009-2010","","",1085706,"",0.70467812078725955,"",1.0000002720091439,"","","","The government (e.g., Central Medical Stores, MOH logistics unit, MOH procurement unit)","Logistics Management Division/MOH","Yes","Due to various reasons, sometimes procurement gets delayed; in such circumstances USAID is providing contraceptives to MOH upon the request from MOH.",null,"","Yes","Yes","Yes","Yes","Yes","Yes","Yes","Yes","Yes","Yes","No","",null,"Yes","No","Yes","Yes","Yes","Yes","No","No","Yes","Yes","No","",null,"Yes","No","Yes","Yes","Yes","Yes","No","Yes","Yes","Yes","No","",null,"Yes","No","Yes","Yes","Yes","Yes","No","Yes","Yes","Yes","No","","",null,"Yes","National Reproductive Health Commodity Security (RHCS) Strategy","2007-2011","Yes","Yes","Yes","Commercial sector (No tax is levied for contraceptives for the public or social marketing sectors.)  ","It varies - it is very minimal for condom (less than 1%) and about 5% for pills. ","No","N/A","Yes","MOH promotes social marketing and NGOs to provide contraceptive services.","No","","","","","","","","","",null,"No","","","No","","","No","","",null,"No","No","N/A","N/A",null,"Yes","Yes","Yes","Yes","Yes","Yes","Yes","Yes","No","No","N/A",2009,"National List of Essential Medicines Nepal ","Final Draft, 2009",null,2003,"Yes","No","Yes","No","",null,"No",null,"No","N/A","No","No","No","No","N/A","N/A","N/A","01/10-12/10","LMIS",null,"No","No","MOH is increasing its fund to procure contraceptives. LMD/MOH has already started multi-year procurement of contraceptives to assure supply for longer periods and to save time in the bidding process.","Europe and Asia"]
["Nicaragua ",null,"Yes","Comité Nacional para la Disponibilidad Asegurada de Insumos Anticonceptivos (DAIA) Nicaragua  (National Contraceptive Security Committee)",null,"Yes","PSI/PASMO (Pan American Social Marketing Organization)","Yes","PROFAMILIA (Asociación Pro-Bienestar de la Familia Nicaragüense - Nicaraguan Pro Family Wellbeing Association), Women's Center IXCHEN (IXCHEN), Luisa Amanda Espinoza Association of Nicaraguan Women (AMNLAE) ","No","","Yes","UNFPA, USAID ","Yes","UNFPA","Yes","DCAIS (Central Directorate for Contraceptives and Health Supplies), DGECA (Division of Health Services, FP), DGPD (Division of Planning and Development and External Cooperation) ","No","","No","","Yes","PATH, other USAID projects","6 or more times","Yes","Yes","Ministry of Health (DGECA and DCAIS) ","General Director ",null,"January","December",1043694,"06/10","Ministry of Health","Yes","Yes",321935,"01/10-12/10","Ministry of Health","","Yes","Yes","Taxes",321935,"01/10-12/10","Ministry of Health","","Yes","Basket fund. (The funders in the basket are UNFPA, the World Bank, Finland, Holland, and Spain.)\n",721759,"01/10-12/10","Ministry of Health","",1043694,"",null,"No","N/A",0,"01/10-12/10","Ministry of Health","","No",0,"01/10-12/10","RHInterchange","","No",0,"01/10-12/10","RHInterchange","",0,"",1,"",1,"","","","The government (e.g., Central Medical Stores, MOH logistics unit, MOH procurement unit)","DCAIS (Central Directorate for Contraceptives and Health Supplies)","No","Contraceptives are procured via a third-party agreement with UNFPA.",null,"","Yes","Yes","Yes","Yes","Yes","Yes","Don't know","Yes","Yes","Yes","No","",null,"Yes","No","Yes","No","Yes","Yes","No","No","Yes","Yes","Yes","",null,"Yes","No","Yes","Yes","Yes","Yes","No","Yes","Yes","Yes","No","",null,"Yes","Yes","Yes","Yes","Yes","Yes","No","Yes","Yes","Yes","No","","The MOH prescribes emergency contraception but does not provide the packaged product itself. ",null,"Yes","Plan DAIA 2009-2011 (Contraceptive Security Plan)","2009-2011","Yes","Yes","No","N/A","N/A","No","N/A","Yes","Health Policy, Family Planning Norms ","No","","","","","","","","","",null,"No","","","No","","","No","","",null,"No","No","N/A","N/A",null,"Yes","No","Yes","No","Yes","Yes","No","No","No","No","N/A",2008,"Lista básica de medicamentos esenciales (basic list of essential medicines) and essential supplies list","Condoms and IUDs are included in the essential supplies list, rather than the essential medicines list.  ",null,2009,"No","No","No","No","",null,"Yes",null,"No","N/A","Yes","N/A","Yes","No","N/A","N/A","No","01/10-12/10","Report to central level MOH ",null,"No","No","","LAC"]
["Nigeria ",null,"Yes","Reproductive Health Commodity Security Stakeholders' Committee",null,"Yes","Society for Family Health","Yes","Planned Parenthood Federation, Nigeria Urban Reproductive Health Initiative, Association for Reproductive and Family Health","Yes","Pharmaceutical Society of Nigeria (PSN), Society of Gynaecologists and Obstretricians of Nigeria (SOGON), Nigeria Medical Association","Yes","USAID, DfID, CIDA","Yes","UNFPA","Yes","Family Planning Division, National Agency for Food and Drug Administration and Control (NAFDAC), National Health Insurance Services","Yes","Central Contraceptives Warehouse (CCW)","Yes","Federal Ministry of Finance and Department of Planning, Research and Statistics","Yes","USAID I DELIVER PROJECT, USAID Targeted States High  Impact Project (TSHIP), FHI","0 times","No","Yes","Association for Reproductive and Family Health","CEO",null,"January","December",9400000,"11/09","USAID I DELIVER PROJECT","No","No",0,"01/10-12/10","","","No","No","N/A",0,"01/10-12/10","","","No","N/A",0,"01/10-12/10","","",0,"",null,"Yes","UNFPA and DfID",5000000,"01/10-12/10","PipeLine","","No",0,"01/10-12/10","","","No",0,"01/10-12/10","","",5000000,"",0,"",0.53191489361702127,"","Yes","","N/A","N/A","N/A","",null,"","Yes","Yes","Yes","Yes","Yes","Yes","Yes","Yes","Yes","Yes","Yes","Neo Sampoon vaginal contraceptive tablets",null,"Yes","Yes","Yes","Yes","Yes","Yes","Yes","No","Yes","Yes","No","No",null,"Yes","Yes","Yes","Yes","Yes","Yes","Yes","Yes","Yes","Yes","Yes","",null,"Yes","Yes","Yes","Yes","Yes","Yes","Yes","Yes","No","No","Yes","Neo Sampoon vaginal contraceptive tablets","",null,"Yes","National Strategic Plan for Reproductive Health Commodity Security","2002-2007. 2011-2015 in draft stage","Yes","Yes","No","N/A","N/A","No","N/A","Don't know","Don't know","Yes","Injectables","Only trained personnel such as nurses and community health extension workers are allowed to administer injections.","Only trained personnel are allowed to administer injections.","Implants","Only trained nurses and doctors are allowed to administer implants.","Only trained personnel are allowed to administer implants.","IUDs","Only trained midwives and doctors are permitted to insert IUDs.","Only trained personnel are allowed to administer IUDs.",null,"No","","","No","","","No","","",null,"No","Yes","No","N/A",null,"Yes","Yes","Yes","Yes","Yes","Yes","Yes","No","No","Don't know","Don't know",2003,"National Essential Medicine List","The list is currently under review.",null,2004,"No","No","No","No","",null,"Yes",null,"No","No","Yes","No","Yes","Yes","Yes","N/A","N/A","01/10-12/10","Periodic warehouse physical inventories",null,"Don't know","Yes","The USAID | DELIVER PROJECT and UNFPA are in the process of collaborating with FMOH to draft an updated RHCS strategic plan for 2011-2015. UNFPA placed orders for 2 miliion USD worth of contraceptives in the first week of March 2011 (half of this was from its own funds). UNFPA will spend a total of 2 million USD of its own funds to procure public sector contraceptives in 2011. The FMOH has yet to confirm funding for its planned procurement of 3 million USD worth of contraceptives. DfID is considering matching FMOH funding for 2011. ","Africa"]
["Pakistan ",null,"Yes","Reproductive Health Commodity Security Committee (RHCS) - Currently the committee is inactive and the USAID | DELIVER PROJECT plans to revitalize it through CS inputs. There is a new initiatve called National Birth Spacing Initiative in which a sub-committee on \"Logistics and Supply Chain\" has been delegated to USAID | DELIVER Pakistan for convening. However, this arrangement has not yet been finalized with provinces under devolution. ",null,"Yes","Greenstar Social Marketing, Pakistan","Yes","Family Planning Association of Pakistan","No","","Yes","USAID, DFID","Yes","UNFPA","Yes","Representatives of Ministry of Health and Population Program Wing along with provincial secretaries as members","No","","No","","","","0 times","Yes","Yes","USAID","Activity Manager, USAID Pakistan",null,"July","June",27500000,"01/11","USAID | DELIVER PROJECT","Yes","Yes",5400000,"07/09-06/10","Population Program Wing","","Yes","Yes","Public Sector Development Program",1600000,"07/09-06/10","Population Program Wing","","Yes","Public Sector Development Program",3150000,"01/10-12/10","UNFPA (as procurement agent)","",4750000,"",null,"Yes","USAID Pakistan",12000000,"01/10-12/10","USAID | DELIVER PROJECT","","No",0,"01/10-12/10","","","No",0,"01/10-12/10","","",12000000,"",0.28358208955223879,"Public sector money was redirected to support internally displaced populations due to floods\n",0.60909090909090913,"","","","The government and a third-party agent","UNFPA and direct procurement from local producers (from ZAFA Pharmaceuticals Laboratories)","No","",null,"","Yes","Yes","Yes","Yes","Yes","Yes","No","Yes","Yes","Yes","No","",null,"Yes","Yes","Yes","Yes","Yes","Yes","No","Yes","Yes","Yes","No","",null,"Yes","No","Yes","Yes","Yes","Yes","Yes","Yes","Yes","Yes","Yes","",null,"Yes","No","Yes","No","Yes","Yes","No","Yes","No","Yes","Yes","","",null,"Yes","National Population Policy","2010 - 2014","Yes","Don't know","Yes","NGOs, social marketing, and commercial","Aluminium foil, PVC, syringes and vials (used for packaging contraceptive products) have a regulatory duty and income tax @ 1% and 4% for all of the aforementioned products; and a customs duty of 5%, 10%, 14.79% and 5%; and a sales tax of 16%, 21%, 16% and 16% for the respective products.","No","N/A","Yes","1. High political will 2. Exemption from all duties creates a conducive environment for producers like ZAFA and Schering 3. Over-the-counter availability","Yes","IUD, surgical/permanent contraception, Implanon implant","Trained healthcare provider","Trained healthcare provider","","","","","","",null,"Yes","The Pakistani law allows distribution of contraceptives to only married women of reproductive age ","Don't know","No","","","Don't know","","",null,"No","Yes","Yes","Ministy of Health provides contraceptives free of charge for both services and commodties. However, a similar approach is under review by GOP for Population Program Wing (PPW) too.",null,"Yes","Yes","Yes","Yes","Yes","Yes","No","Yes","No","Don't know","Don't know",2007,"National Essential Drug List","",null,2004,"Yes","Yes","Yes","No","",null,"No",null,"No","No","No","No","No","No","N/A","No","N/A","01/10-12/10","logistics management information system (LMIS)",null,"Yes","No","As per implementation of the 18th amendment, the Health and Population Policy has constitutionally become a provincial subject. The USAID | DELIVER PROJECT has provided inputs on CS via a quantification exercise to provinces and regions. However, a formal document may take 6-8 months. Based on recent technical assistance, USAID | DELIVER developed a CS brief for policymakers. ","Europe and Asia"]
["Paraguay ",null,"Yes","Comité para la Disponibilidad Asegurada de Insumos Anticonceptivos (DAIA) (Contraceptive Security Committee)",null,"Yes","PSI (Population Services International)","Yes","CEPEP (El Centro Paraguayo de Estudios de Población, IPPF affiliate)","No","","Yes","USAID","Yes","UNFPA, WHO","Yes","DGGIES (General Directorate for Management of Strategic Supplies in Health), Reproductive Health Unit","Yes","Central Warehouse","No","","Yes","Instituto de Provision Social (IPS) - Paraguayan Social Security Institute)","6 or more times","No","Yes","Yes ","Director of Logistics DGPS (Logistics Management Unit)",null,"October","September",566000,"01/11","USAID | DELIVER PROJECT Paraguay resident advisor updated forecast with the DGPS director","Yes","Yes",566000,"01/10-12/10","Ministry of Health","Funds were allocated in Dec 2010","Yes","Yes","National Treasury",566000,"01/10-12/10","PipeLine","","No","N/A",0,"01/10-12/10","","",566000,"",null,"No","",0,"01/10-12/10","","","No",0,"01/10-12/10","","","No",0,"01/10-12/10","","",0,"",1,"",1,"","No","","Third-party agent (e.g., UNFPA, Crown Agents)","UNFPA","No","",null,"","Yes","Yes","Yes","No","Yes","Yes","No","Yes","Yes","Yes","No","IUD with Levonorgestrel (Mirena), hormonal patch, only monthly injectables",null,"Yes","No","Yes","No","Yes","Yes","No","Yes","No","Yes","No","",null,"Yes","Yes","Yes","No","Yes","Yes","No","No","Yes","Yes","No","IUD with Levonorgestrel",null,"Yes","No","No","No","No","Yes","No","Yes","No","No","No","","",null,"Yes","Plan Estrategico DAIA (Contraceptive Security Strategic Plan)","2011-2015","No","Yes","Yes","All sectors","10% value added tax, plus 0.50 on the value of the merchandise and a percentage for the customs clearance agent, which varies between 2% and 3% depending on the value of the shipment. (The value of a shipment includes freight and insurance in addition to the value of the merchandise.)","No","N/A","Don't know","Don't know","No","","","","","","","","","",null,"No","","","No","","","No","","",null,"No","No","N/A","N/A",null,"Yes","No","Yes","No","No","No","No","Yes","No","No","N/A",2009,"Lista de Medicamentos Esenciales (Essential Medicines List)","",null,"N/A","N/A","N/A","N/A","N/A","Document not available on IMF's website",null,"No",null,"No","N/A","No","N/A","No","No","N/A","No","N/A","01/10-12/10","stockcards at central warehouse",null,"No","No","We have a law that ensures the allocation of funds for contraceptive procurement.","LAC"]
["Philippines ",null,"Yes","Contraceptive Self-Reliance (CSR) Technical Working Group",null,"Yes","Family Planning Organization of the Philippines, League of Municipalities, DKT Philippines","Yes","Philippine NGO Council, Family Planning Organization of the Philippines, League of Municipalities, Union of Local Authorities of the Philippines, League of Cities, Likhaan, FriendlyCare","Yes","Philippine Chamber of Commerce and Industry, Drugstores Association of the Philippines, DKT Philippines, Alphamed","Yes","USAID, WHO","Yes","UNFPA","Yes","National Center for Disease Prevention and Control, Material Management Division, Bureau of Local Health Development, Bureau of International Health Coordination, Health Policy Development and Planning Bureau, National Drug Program, Department of Health (DOH) attached agencies: Food and Drugs Administration, Population Commission, Philippine Health Insurance Corp (PhilHealth), DOH-ARMM, Center for Health and Development Region IV-A, Local Government Units (LGUs) - Pangasinan Provincial Population Office","Yes","DOH Materials Management Division","No","","","","3-5 times","Yes","Yes","Philippine Legislative Committee on Population & Development (PLCPD - an NGO of legislators), Forum, & Reproductive Health Advocacy Network","Executive Directors and the Chairman of the organizations",null,"January","December","Don't know","12/10 and 04/11","Don't know","No","Don't know","Don't know","01/10-12/10","","","Yes","Yes","Don't know","Don't know","01/10-12/10","","Internally generated funds came from the Maternal Neonatal Child Health and Nutrition grant from the National Department of Health. This fund was drawn down to or received by specific local government units not at the same time, and not all of the amount is for contraceptives. As a result, specific data as to how much was spent is not available.","Don't know","Don't know","Don't know","01/10-12/10","","","Don't know","",null,"Yes","UNFPA",728769,"01/10-12/10","RHInterchange","Donations come from different sources and others were coursed directly to LGUs.","No",0,"01/10-12/10","RHInterchange","","No",0,"01/10-12/10","RHInterchange","",728769,"","Don't know","","Don't know","","Don't know","","The government (e.g., Central Medical Stores, MOH logistics unit, MOH procurement unit)","Local Government Unit’s General Property and Supplies Office","No","The line item for the procurement of contraceptives is at the local government unit (LGU) level. LGUs fund and procure their contraceptive requirements. Prices of contraceptives, even for the same contraceptive method and brand, are not uniform across LGUs. Currently, there is no systematic data that provides a report on LGU procurements.  \n\nPhilHealth enrollment is another mechanism for LGU financing of contraceptives. When an LGU enrolls its constituents (indigent constituents) with PhilHealth, it is indirectly financing their contraceptive requirements since a) the enrolled constituent can use the PhilHealth benefit packages that cover the costs of some contraceptive methods; and/or (b) the LGU can use part of the capitation fund received from PhilHealth (for enrollments made) to procure contraceptives.     \n\nUSAID/Philippines, through the Health Policy Development Project, assisted the DOH to conduct a rapid assessment survey in 2007 on LGU procurements covering all provinces and cities (N: 122). The results of the survey showed that 55% of the LGUs (N: 67) procured contraceptives at or above the level of donated contraceptives they used to receive before the phase-out of USAID's donation. The remaining 45% (N: 55) did not procure.  \n\nIn 2004, the DOH issued the guidelines on the management of the donated commodities under the Contraceptive Self-Reliance Strategy which includes the guidelines and schedule for phasing of contraceptive donations at the national and local level. The LGUs were divided into three batches - the first being the richest LGUs and the last being the poorest LGUs. While the last shipment of USAID-donated contraceptives (excluding IUDs) occurred in September 2007, the last DOH shipment to the third batch of LGUs to be phased out was in the October-December 2008 quarter.",null,"","Yes","Yes","Yes","No","Yes","Yes","No","No","Yes","Yes","Yes","Patch, spermicide",null,"Yes","Yes","Yes","No","Yes","Yes","No","No","Yes","Yes","Yes","Modern natural family planning",null,"Yes","Yes","Yes","No","Yes","Yes","No","No","Yes","Yes","Yes","Modern natural family planning",null,"Don't know","Don't know","Don't know","Don't know","Don't know","Don't know","Don't know","Don't know","Don't know","Don't know","Don't know","","",null,"Yes","National Family Planning Policy and others \n(National Family Planning Policy (DOH Administrative Order No. 50-A s. 2001,  dated September 17, 2001),\nGuidelines on the Management of Donated Commodities under the Contraceptive Self-Reliance Strategy (DOH Administrative Order No. 158 s. 2004, dated July 9, 2004),\nGuidelines on Public-Private Collaboration in Delivery of Health Services Including Family Planning for Women of Reproductive Age (DOH Administrative Order No. 2006-0008, dated May 20, 2006),\nImplementing Health Reforms for Rapid Reduction of Maternal and Neonatal Mortality (Administrative Order No. 2008-0029, dated September 9, 2008)","2004 to present","Yes","Yes","Yes","All sectors - however, if an NGO has obtained a tax exemption, the payment of taxes and duties may be waived. The Department of Health (DOH) pays for taxes & duties for donations and social marketing. (For more information see D3a. response.)","The customs duty on condoms and hormonal contraceptives is 3% of the total value. The customs duty on Copper T IUDs is 15% of the total value. All contraceptives are subject to a 12% value added tax (VAT).  ","Yes","Taxes/duties - donated commodities, socially marketed commodities, and commercially marketed contraceptives are subject to taxes and duties. Taxes/duties on donated contraceptives consigned to the Department of Health (such as those donated by USAID) are shouldered by the Government of the Philippines through automatic appropriations of the Department of Budget Management. Taxes/duties of socially marketed contraceptives consigned to the Department of Health are paid by the Department of Health. Taxes/duties on socially marketed contraceptives that are not consigned to the Department of Health are paid by the NGOs marketing those contraceptives. Taxes/duties on commercially marketed contraceptives are paid by the manufacturer, importer, or trader.\n\nPharmacy law - this law bans brand advertising of ethical/regulated drugs. Hormonal contraceptives (oral pills, injectables and hormonal IUDs) are classified as ethical/regulated drugs, therefore, brand advertising is banned.  Copper T IUDs are classified as medical device and registered as unregulated product and not subject to the same restrictions. There is no prohibition on brand advertising of Copper T IUDs.  The pharmacy law also prohibits dispensing of ethical/regulated drugs without prescription. ","Don't know","Don't know","Yes","Oral contraceptive pills & injectables","Only trained health workers are allowed to dispense. Dispensing without a prescription is not allowed. However, since public facilities are headed by doctors who supervise all health workers in the facilities, prescriptions are easy to obtain. However, in practice, pills can be obtained without prescription from pharmacies/drugstores.","Only trained health service providers are allowed to dispense. Service providers other than physicians, such as midwives, cannot dispense without a prescription. However, most midwives, and all PhilHealth accredited midwives have back-up physicians who write the prescriptions.   ","IUDs","Only trained health workers are allowed to dispense. Dispensing of a hormonal IUD without a prescription is not allowed. However, since public facilities are headed by doctors who supervise all health workers in the facilities, prescriptions are easy to obtain. Barangay Health Station (the lowest level of public health facility) health service providers do not dispense IUDs.  ","Only trained health service providers are allowed to dispense. Service providers other than physicians, such as midwives, cannot dispense without a prescription. However, most midwives, and all PhilHealth accredited midwives have back-up physicians who write the prescriptions.","","","",null,"No","","","No","","","No","","",null,"No","No","N/A","Because of devolution, LGUs craft their own policies. Policies are not uniform across LGUs. In general, services in public sector facilities are provided for free but there are some LGUs that have fee for service policies in some of their facilities. In general, commodities in public sector facilities are provided for free but there are some who charge at full or subsidized prices. Only a few LGUs have policies on client segmentation.\n\nWhile this is the case, other funding mechanisms for paying for contraceptives are available to public sector clients. If the client is a PhilHealth member, the client can avail of three PhilHealth benefit packages: (1) Maternity Care Package for normal deliveries that includes the first cycle of oral contraceptives and the first dose of injectable postpartum (2) IUD Package and (3) Voluntary Surgical Sterilization Package for bilateral tubal ligation and vasectomy. A significant number of LGUs have enrolled their poor constituents with PhilHealth.   ",null,"Yes","Yes","Yes","No","No","No","No","No","No","No","N/A",2008,"","",null,"N/A","N/A","N/A","N/A","N/A","Document not available on IMF website",null,"N/A",null,"N/A","N/A","N/A","N/A","N/A","N/A","N/A","N/A","N/A","N/A","N/A",null,"No","N/A","1) Contraceptive security vs. contraceptive self-reliance - The Philippines addresses contraceptive security in the context of eliminating unmet need for family planning given the phase out of USAID contraceptive donations. This requires broadening the definition to include the support systems for the implementation of the family planning program and addressing issues of sustainability. Hence, the DOH has embarked on Contraceptive Self-Reliance, rather than Contraceptive Security. This strategy includes, in addition to government financing and procurement of commodity-based contraceptive methods (pills, injectables, IUDs, condoms, and others), promotion and financing of other methods (bilateral tubal ligation, vasectomy, lactational amenorrhea, natural family planning, and others), expanding distribution coverage, and mobilizing private sector resources in the provision of family planning services and commodities. This approach to contraceptive security may have contributed to maintaining a steady CPR despite USAID's phase out of contraceptive donations. And since the government's objective is to ensure the country's self-sufficiency in the provision of family planning services and commodities, the prospect for sustainability is high even without external contraceptive donations. 2) Protecting the poor - The poor should be protected in the process of achieving contraceptive self-reliance. The issue of targeting financing and provision for the poor also involves many operational issues such as determining who are poor and entitled to free services, how the non-poor should be served, and how these issues will be handled by local health systems that are supposed to be for everyone in the community. 3) Even the poor go to the private sector for contraceptives. The private sector is becoming more interested in participating. DKT provides a large quantity of contraceptives. Before there were few choices in the country - there were free contraceptives in the public sector and expensive contraceptives in the private sector but little in between. Now with the USAID phase out and a pharmaceutical project to help the pharmaceutical industry get in the market there are more subsized, affordable choices. 4) The FP issue is more prominent now. There's an RH bill saying that the government is to be responsible for RH (including FP); this bill hasn't been passed yet, but discussion has increased and the issue is prominent. There is more openness politically now to discuss providing FP choices.","Europe and Asia"]
["Russia ",null,"No","N/A",null,"N/A","","N/A","","N/A","","N/A","","N/A","","N/A","","N/A","","N/A","","N/A","","N/A","N/A","No","","",null,"Don't know","Don't know","N/A","Don't know","Don't know","No","No",0,"01/10-12/10","","","Yes","Yes","Regional and municipal budgets. In some cases (but not as often) contraceptives are covered by mandatory health insurance (which is provided free of charge to all Russian citizens by state). ","Don't know","01/10-12/10","","","No","N/A",0,"01/10-12/10","","","Don't know","",null,"No","N/A",0,"01/10-12/10","","","No",0,"01/10-12/10","","","No",0,"01/10-12/10","","",0,"","Don't know","","Don't know","","N/A","","N/A","N/A","N/A","In 1998, the Russian federal government stopped its federal family planning program, including the procurement of contraceptives. However, some regions and municipalities provide limited contraceptives (both in range and number) to vulnerable groups of the population. Sources include regional and municipal budgets, mandatory health insurance (less often), and small donations from pharmaceutical firms. \n\nHowever, a range of modern contraceptive methods are widely available through pharmacies, including in the public health care facilities for a fee/purchase. Even though FP is not included in the provision of health services, a few USAID target regions cover/reimburse FP counseling under the regional mandatory health insurance plans. USAID-assisted sites which participate in integrated reproductive and maternal and child health projects provide FP counseling.",null,"","Yes","Yes","Yes","Yes","Yes","Yes","No","Yes","No","Yes","No","Contraceptive patch Evra and vaginal ring Novaring",null,"Yes","Yes","Yes","Yes","Yes","Yes","No","Yes","No","Yes","No","Contraceptive patch Evra and vaginal ring Novaring",null,"N/A","N/A","N/A","N/A","N/A","N/A","N/A","N/A","N/A","N/A","N/A","N/A",null,"N/A","N/A","N/A","N/A","N/A","N/A","N/A","N/A","N/A","N/A","N/A","N/A","",null,"No","","","","","Yes","All sectors","10% custom/import duties, 10% VAT","Yes","It's illegal to advertise a specific contraceptive brand as well as any other prescription drug. However, they can be promoted and advertised in professional health care literature and facilities. Public campaigns about contraception in general are allowed.","Yes","Only those entities that have a license for specific medical services can provide contraception. They are mainly private medical clinics. In general only health care workers can provide methods, mostly OB/GYNS.","Yes","All except condoms","Only pharmacies are allowed to sell contraceptives and only OB/GYNs can prescribe them.","Only pharmacies are allowed to sell contraceptives and only OB/GYNs can prescribe them.","","","","","","",null,"No","","","No","","","No","","",null,"No","Yes","Yes","Some regions provide free contraception for vulnerable groups.",null,"No","Yes","No","No","No","No","No","No","No","No","N/A",2010,"National Essential Medicine List","",null,"N/A","N/A","N/A","N/A","N/A","Document not available on IMF website",null,"N/A",null,"N/A","N/A","N/A","N/A","N/A","N/A","N/A","N/A","N/A","N/A","N/A",null,"N/A","N/A","Contraception in Russia continues to be a sensitive topic due to the demographic crisis and other reasons such as the traditionally negative perception of hormonal contraception among policy makers, professionals, and the general population. The government is focusing more on preserving any pregnancy, even an unintended one, so contraception is not viewed positively by the state.\n\n\n\n","Europe and Asia"]
["Rwanda ",null,"Yes","Family Planning Logistics Committee",null,"Yes","PSI","Yes","Association Rwandaise pour le Bien Etre Familiale (ARBEF) (Rwandan association for family well-being)","Yes","Association Rwandaise des Pharmacies (ARPHA) (Rwandan association of pharmacists), Association Rwansaise des Medecins Prives (Rwandan association of private doctors)","Yes","UNFPA, USAID, GFATM","Yes","UNFPA","Yes","Maternal and Child Health (MCH), HIV/AIDS and FP Integration, Pharmacy Task Force, Family Planning Officer, Commission National de Lutte Contre le SIDA (CNLS) (national commission for the fight against AIDS)","Yes","Central d'Achat des Medicamants Essentiel et Consommables (CAMERWA)","No","","No","","3-5 times","Yes","Yes","MOH","MCH Coordinator",null,"July","June",6012129,"02/10","USAID | DELIVER PROJECT & MOH","Yes","Yes",600000,"01/10-12/10","PipeLine","","Yes","Yes","Government internally generated funds plus basket funds (from DFID). There is no way to know how much is from which source since budget support is the mechanism used by DFID.","","01/10-12/10","","","Yes","Government internally generated funds plus basket funds (from DFID). There is no way to know how much is from which source since budget support is the mechanism used by DFID.",1454420,"01/10-12/10","PipeLine","Only $664,619 worth of these products were shipped and received in country in 2010.",1454420,"",null,"Yes","USAID ($2,851,168) & UNFPA ($1,724,234)",4575402,"01/10-12/10","PipeLine","","No",0,"01/10-12/10","","","Yes",772108,"01/10-12/10","PipeLine","",5347510,"",0.21382460566339259,"",1.1313679397098766,"","No","","The government (e.g., Central Medical Stores, MOH logistics unit, MOH procurement unit)","CAMERWA","Yes","",null,"","Yes","Yes","Yes","Yes","Yes","Yes","No","Yes","No","Yes","No","",null,"Yes","Yes","Yes","Yes","Yes","Yes","Yes","Yes","Yes","Yes","Yes","",null,"Yes","Yes","Yes","No","Yes","Yes","No","Yes","No","No","No","",null,"Yes","No","Yes","No","No","Yes","No","No","No","No","Yes","","",null,"Yes","Reproductive Health Commodity Security","November 2008-Decmber 2012","No","Yes","Yes","For all methods in the public sector, MOH pays storage for the central warehouse","9% of the value of the product","No","N/A","No","N/A","No","","","","","","","","","",null,"No","","","No","","","No","","",null,"No","No","N/A","N/A",null,"Yes","Yes","Yes","Yes","Yes","Yes","Yes","Yes","Yes","No","N/A",2009,"Liste National des Medicaments Essentiel (National Essential Medicines List)","It was published in 2010 and is reviewed every 2 years.",null,2008,"Yes","Yes","Yes","No","While the term \"contraceptive security\" is not explicitly mentioned, there is language that reflects the concepts. 4.208 The fifth objective is to increase the availablity and affordability of drugs, contraceptive products . . . As the utilisation of health care facitlites increases, evidence shows that the binding contraint becomes drug availability. Providing safe and effective medication, diagnostics and other commodities to patients is vital for improving the quality of health care. Such a policy has cost-saving effects which is the rationale for attempting to reduce the number of out-of-stock days for all essential drugs at public health facilities. (p.100) There is emphasis on the availability of contraceptives, but there are no indicators to reflect this priority.",null,"Yes",null,"No","No","No","No","No","No","Yes","No","No","01/10-12/10","Warehouse report",null,"No","No","At the service delivery point (SDP) level, contraceptive stockouts are estimated at less than 4% and also rarely occur at the district and central levels. The reporting rate is more than 90% at the SDP level and 100% at the district level.","Africa"]
["Senegal ",null,"Yes","Comite National de Securisation de Produits Contraceptifs (National Contraceptive Security Committee)",null,"Yes","Agence pour le Developpement du Marketing Social (ADEMAS) (USAID Implementing Partner (IP))","Yes","Association Senegalaise pour le Bien Etre Familial (ASBEF), IPPF affiliate, Intrahealth (USAID IP), Childfund & Consortium (USAID IP)","No","","Yes","USAID, UNFPA , JICA, KFW","Yes","WHO, UNFPA","Yes","Division de la Sante de la Reproduction (FP/RH/MCH Division), Direction de la Pharmacie et du Medicament, Laboratoire Nationale de Controle des Medicaments","Yes","Pharmacie Nationale d'Aprovisionnement (PNA)","No","","No","","1-2 times","No","Yes","USAID & Implementing Partners","USAID MD & Health Team",null,"January","December",1800000,"09/10","MOH/FP-RH-MCH Division, supported By IntraHealth (USAID IP)","Yes","Yes",150000,"01/10-12/10","MHO/DSR (Division of Reproductive Health) line budget","During the 2009/10 crisis, it was cut (from 250k to 150k) but for 2011, it is  reallocated with an increase.","No","No","",0,"10/09-09/10","MHO/FP-RH-MCH report, CPT","Funding was transferred from the MOF to the central medical store (PNA) but was returned to the treasury unspent because of difficulty in the procedure (code des marches).","No","N/A",0,"10/09-09/10","Contraceptive Procurement Table (CPT)","",0,"",null,"Yes","USAID ($1,396,142), UNFPA ($586,419)",1982561,"10/09-09/10","RHInterchange","Includes contraceptives for the MOH/Division of Reproductive Health, MOH/Social Marketing, & MOH/PNLS/AIDS","No",0,"10/09-09/10","","","No",0,"10/09-09/10","","",1982561,"",0,"",1.1014227777777779,"The exceeded performance could be explained by an under-estimation of needs, which during the CPT workshop are based on the history of consumption only. Also, the dollar rate used during the estimation vs the real rate used in the RhInterchange could account for differences as well.\n","","","N/A","N/A","N/A","During the last four years, funding was allocated for contraceptives but wasn't spent. Many reasons have been given: central store mismanagement, non-response to solicitation, and funding taken back by Treasury due to the financial crisis. Now funding has been reallocated for 2011.  ",null,"","Yes","Yes","Yes","Yes","Yes","Yes","Yes","Yes","Yes","Yes","No","",null,"Yes","Yes","Yes","Yes","Yes","Yes","Yes","Yes","Yes","Yes","Yes","",null,"Yes","Yes","Yes","Yes","Yes","Yes","Yes","Yes","No","No","Yes","",null,"Yes","Yes","Yes","Yes","Yes","Yes","Yes","Yes","No","No","No","","CycleBeads are offered in non-profit private sector facilities and at the community level (health hut with CHW) supported by NGOs.",null,"Yes","Programme National de Developpement Sanitaire &                   Strategie Nationale de Securisation des Produits Contraceptifs","2009 - 2014                     2007 -2011","Yes","Yes","Yes","All sectors","For private sector - 20% duties for all methods. 18% VAT for IUD only. 2.7% for all goods entering in UEMOA area (Taxe commun à l'Importation), but the government can do a tax exemption for public sector. $0.16 to $1.10 fees in public sector.","Yes","Advertising for specific brands of products is forbidden. Private doctors cannot prescribe and distribute drugs in the same premises. Pharmacists connot dispense most methods without a doctor's prescription. ","Yes","1) Drug registration authorizing commercial distribution for private sector. 2) MOH/RH norms and protocols for public sector, NGOs, and social marketing. (The norms and protocols of RH services allow public sector, non-profit NGOs, and social marketing to prescribe and distribute at the same premises. [Private doctors and pharmacists aren't allowed to do both at the same premises; private doctors can prescribe and administer but cannot distribute. Pharmacists can distribute based on a prescription written by a doctor, nurse, or midwife but cannot administer.]) ","Yes","Oral contraceptives","Doctors, nurses, and midwives, and now community health workers (CHWs) are allowed (as per the RH Norms and Protocols revised in August 2010).","Pharmacists cannot dispense without prescription. (Emergency contraception is available without a prescription in private pharmacies though.)","Implants and IUDs","Doctors, midwives and nurses are allowed.","Private doctors can insert, but they cannot keep stock in their offices. Patients must procure from pharmacies. Pharmacists cannot dispense and cannot distribute without prescription. ","Injectables","Doctors, nurses, and midwives, and now (as per the RH Norms and Protocols revised in August 2010), CHWs can provide FP injectables.","Private doctors can administer injectables, but they cannot keep stock in their offices. Patients must procure from pharmacies. Pharmacists cannot dispense and cannot distribute without a prescription. ",null,"No","","","No","","","No","","",null,"Yes","Yes","Yes","The local health committee determines who cannot afford to pay. There are no specific group exemptions.",null,"Yes","Yes","Yes","Yes","Yes","Yes","Yes","Yes","Yes","Yes","Spermicide","Updated in 2008","Liste Nationale des Medicaments Essentiels","",null,2007,"Yes","No","No","No","USAID & partners have been trying to incorporate CPR and FP as key areas for inclusion in the PRSP.",null,"No",null,"No","No","No","No","No","No","No","No","No","01/10-12/10","CPTs, Logistics management information system and reports",null,"Yes","No","Government funding is not yet sufficient and thus contraceptive security is unsustainable. For many years, contraceptive procurement has been supported by USAID and UNFPA. Intense advocacy continues with the MOH for public resources to be mobilized for contraceptive procurement. Unfortunately this has not yet happened despite an effective increase of the RH budget (by more than 50%). While there are no stockouts at the central level, smaller health posts and health centers continue to be plagued with stockouts. Also, the MOH has room to improve in contraceptive supply chain management at the central level. ","Africa"]
["South Sudan ",null,"No","N/A",null,"N/A","","N/A","","N/A","","N/A","","N/A","","N/A","","N/A","","N/A","","N/A","","N/A","N/A","No","","",null,"January","December","N/A","N/A - none have been conducted ","N/A","No","No",0,"01/10-12/10","","","No","No","N/A",0,"01/10-12/10","","","No","N/A",0,"01/10-12/10","","",0,"The government of South Sudan (GOSS) has not procured contraceptives at all in the past.",null,"Don't know","Don't know","Don't know","01/10-12/10","","","Don't know","Don't know","01/10-12/10","","","No",0,"01/10-12/10","","","Don't know","","Don't know","","Don't know","","Don't know","","N/A","N/A","N/A","",null,"","Don't know","Don't know","Don't know","Don't know","Don't know","Yes","Don't know","Don't know","No","No","Don't know","",null,"Don't know","Don't know","Don't know","Don't know","Don't know","Yes","Don't know","Don't know","No","No","Don't know","",null,"Yes","Yes","Yes","No","No","Yes","Yes","No","No","No","Yes","",null,"No","No","No","No","No","Yes","No","No","No","No","No","","There is no clear Government of South Sudan policy on long-lasting permanent methods. ",null,"No","","","","","No","N/A","N/A","No","N/A","Yes","The family planning policy and the FP guidelines for service providers present Government of South Sudan support for family planning service delivery.","No","","","","","","","","","",null,"No","","","No","","","No","","",null,"No","No","N/A","N/A",null,"Yes","Yes","Yes","Yes","Yes","Yes","Yes","Yes","No","No","N/A",2006,"Essential medicines list for South Sudan","",null,"N/A","N/A","N/A","N/A","N/A","Document not available on IMF's website",null,"N/A",null,"N/A","N/A","N/A","N/A","N/A","N/A","N/A","N/A","N/A","N/A","N/A",null,"Don't know","N/A","There is no line item in the government health budget for contraceptives, thus the government does not procure contraceptives. ","Africa"]
["Tanzania ",null,"Yes","National Contraceptive Committee",null,"Yes","Tanzania Marketing and Communications for AIDS, Reproductive Health and Child Survival (T-MARC) project, Population Services International (PSI)","Yes","John Snow, Inc. (JSI), EngenderHealth, ChamaCha Uzazi na Malezi Bora Tanzania (UMATI) - IPPF affiliate, Marie Stopes, Pathfinder","Yes","World Wide Movers (Agility's local rep)","Yes","USAID, DFID","Yes","UNFPA","Yes","Reproductive and Child Health Service (RCHS), National AIDS Control Programme (NACP)","Yes","Medical Stores Department (MSD)","No","","","","1-2 times","No","Yes","Don't know","Don't know",null,"July","June",18748591,"03/11","JSI and Reproductive and Child Health Service","Yes","Yes",2333333,"07/09-06/10","Ministry of Health (RCHS)","","Yes","Yes","National treasury",1800000,"07/09-06/10","RCHS","","Yes","Basket",5000000,"07/09-06/10","RCHS","None of the products bought from this have arrived yet (as of March 2011).",6800000,"",null,"Yes","USAID, UNFPA",4355176,"07/09-06/10","PipeLine","","Yes",1211960,"07/09-06/10","PipeLine","","No",0,"07/09-06/10","","",5567136,"",0.54984436170185236,"",0.65963015567409844,"","","","The government (e.g., Central Medical Stores, MOH logistics unit, MOH procurement unit)","MSD","Yes","",null,"","Yes","Yes","Yes","Yes","Yes","Yes","Don't know","Yes","Yes","Yes","No","",null,"Yes","Yes","Yes","Yes","Yes","Yes","Yes","No","Yes","Yes","No","",null,"Yes","Yes","Yes","Yes","Yes","Yes","Yes","No","Yes","Yes","No","",null,"Yes","Don't know","Yes","Yes","No","Yes","Yes","No","No","No","No","","",null,"No","","","","","No","N/A","N/A","Yes","Brand-specific advertising for oral contraceptives is not allowed since oral contraceptives are considered a prescription-only product.","No","N/A","Yes","Oral contraceptives ","","Pharmacies and accredited drug dispensing outlets (Addos)","Implants and IUDs","Restricted to public health nurse of higher grade MOH staff","","","","",null,"No","","","No","","","No","","",null,"No","No","N/A","N/A",null,"Yes","Yes","Yes","Yes","Yes","Yes","Yes","No","No","Don't know","Don't know",2007,"National Essential Medicine List","",null,2010,"No","Yes","No","No","The availability and choice of safe, effective, acceptable, and affordable contraceptive methods is an intervention package (p. 154). There are interventions related to increasing the capacity of providers and delivery systems to provide high quality, affordable and sustainable family planning methods and services. There are indicators for TFR and reducing population growth but not for CPR.",null,"Yes",null,"No","No","Yes","Yes","No","No","N/A","N/A","N/A","08/09-06/10","MSD, quarterly reports",null,"Yes","Yes","Long lead time for basket procurement processes.","Africa"]
["Uganda ",null,"Yes","Reproductive Health Commodity Security (RHCS) Committee ",null,"Yes","Uganda Health Marketing Group (UHMG), PACE, Marie Stopes Uganda (MSU)","Yes","Reproductive Health Uganda (RHU)","No","","Yes","USAID, DFID","Yes","UNFPA","Yes","MoH Reproductive Health division, MoH AIDS Control Program (ACP), MoH Pharmacy Division","Yes","National Medical Stores (NMS)","No","","No","","3-5 times","No","No","","",null,"July","June",10166650,"10/10","MOH Reproductive Heath division with technical assistance from the SURE/MSH program","Yes","Yes",326000,"07/09-06/10","Budget Document FY 09/10","Approximately 50% of FP commodities of UGX 1.5 billion  (approx USD 652,000) allocated per year. (The funding is allocated for FP commodities in general; we were unable to extract the exact allocation to contraceptives alone.)","No","No","N/A",0,"07/09-06/10","","","No","N/A",0,"07/09-06/10","","",0,"",null,"Yes","USAID, UNFPA, DFID",6588411,"01/10-12/10","RHInterchange","Does not include PSM costs ","No",0,"07/09-06/10","","Procurement initiated but not awarded","No",0,"07/09-06/10","","",6588411,"",0,"UGX 1.5 billion was allocated per year for FP commodities but not spent and this has happened for the last 2 financial years. In FY 2010/2011 expenditures will include funds carried forward from previous financial years.\n",0.64804148859260424,"","No","","N/A","N/A","N/A","National Medical Stores did not procure contraceptives in 2009/2010. ",null,"","Don't know","Don't know","Don't know","Don't know","Don't know","Don't know","Don't know","Don't know","Don't know","Don't know","Don't know","",null,"Yes","Yes","Yes","Yes","Yes","Yes","No","Yes","Yes","Yes","No","",null,"Yes","Don't know","Yes","Yes","Yes","Yes","Yes","No","Yes","Yes","No","",null,"Yes","Yes","Yes","No","No","Yes","No","No","No","No","Yes","","There is no available data for the commercial sector although it is known that they sell contraceptives in their outlets.  ",null,"Yes","Reproductive Health Commodity Security Strategic Plan","2010-2015","Yes","Yes","Yes","All sectors are charged verification fees by NDA","2% of FOB value is charged as verification fees by NDA on all pharmaceuticals including contraceptives.","No","N/A","No","N/A","Yes","Depo-Provera","","Not dispensed in drug shops","","","","","","",null,"No","","","No","","","No","","",null,"No","No","N/A","N/A",null,"Yes","Yes","Yes","Yes","Yes","No","No","Yes","No","Don't know","Don't know",2010,"Essential medicines list for Uganda (EMLU)","The list is currently being revised and is expected to be released in mid-2012.",null,2010,"Yes","Yes","Yes","No","Family planning and unmet need is mentioned repeatedly throughout the social sector section (from p. 215 onward). Advocating for reproductive health commodity security, including strengthening logistics, HMIS and LMIS is mentioned (p. 215). CPR is mentioned as a goal to reach the MDGs (p. 23).",null,"Yes",null,"No","No","No","Yes","No","No","N/A","No","N/A","07/09-06/10","NMS stock status reports, RHI website, USAID | DELIVER PROJECT website",null,"No","No","The government is now actively committed to spending the funding allocated for contraceptives, and last year the president directed that $3 milllion be made available for contraceptive procurement.  ","Africa"]
["Ukraine ",null,"Yes","National Committee for Implementation of the State Program \"Reproductive Health of the Nation up to 2015\" (SPRHN)",null,"No","","Yes","All-Ukrainian Federation of Young Doctors, All-Ukrainian Women's Society","No","","Yes","USAID (represented by the staff of the USAID-supported projects, i.e.,Together for Health and Maternal & Infant Health Project).","Yes","UNFPA","Yes","MCH Department/RH Division, Finance and Economic Department","No","","No","","Yes","Academy of Science, National Academy of Post-Graduate Education","1-2 times","Yes","No","","",null,"January","December",3600000,"06/10","USAID/JSI - Together for Health Project","Yes","Yes",165000,"01/10-12/10","Ministry of Finance of Ukraine","This amount does not include regional allocations.","Yes","Yes","State Budget of Ukraine for 2010 ($165,000) and regional budgets ($110,000)",275000,"01/10-12/10","MOH report on implementation of the SPRHN","This amount includes the cumulative national and regional budget expenditures.","No","N/A",0,"01/10-12/10","","",275000,"",null,"Yes","USAID/Washington",382500,"01/10-12/10","USAID Together for Health Project (consumption estimate)","The total value of the USAID donated contraceptives is $765,000; it's expected to last until 2012. $191,250 was provided as an estimate of six months' consumption; this was doubled to reach an estimate of a year's consumption. \n","Yes",764000,"01/10-12/10","International HIV/AIDS Alliance in Ukraine","International HIV/AIDS Alliance reports that $764,000 was provided by Global Fund to procure condoms for HIV/AIDS and STI prevention. This money was not used to procure condoms for FP purposes.","No",0,"01/10-12/10","","",1146500,"",0.19345761519521631,"Global Fund money to procure condoms for HIV/AIDS and STI prevention is included in this calculation as non-government funds. ",0.39486111111111111,"","Yes","","The government (e.g., Central Medical Stores, MOH logistics unit, MOH procurement unit)","Ministry of Health, MCH Department in particular, and Oblast Health Administrations in collaboration with Oblast FP Centers","No","The USAID Together for Health project has been working with the Government of Ukraine (GOU) and oblast governments to mobilize budgeted resources for the procurement of contraceptives during the period January-December 2010.  (Note: The GOU commitment to finance the SPRHN remains at the same level in terms of local currency amount during the last 3 years. However, the amounts spent during the last 3 years are different.) The USAID TfH project has limited ability to influence the GOU contraceptive procurement process. The situation is aggravated by the fact that there has not been a permanent Head of the MCH Department at the MOH of Ukraine for the last 8 months because of the recent government rotations. Regional councils that make decisions on funding of regional RH programs are reporting decreases in social and health budgets as they have other competing health priorities like HIV/AIDS and TB. The economic crisis is still ongoing and led to the February-March increase of prices for utilities, gas, and food products. It continues to have a negative impact on the population's ability to purchase contraceptives, especially in the rural areas. FP providers reported in November 2010 that the maximum amount of money a Ukrainian woman of reproductive age living in a rural area can afford to spend for the purchase of contraceptives is $4-$5 per month.",null,"","Yes","Yes","Yes","No","Yes","Yes","No","Yes","Yes","Yes","No","Vaginal ring, spermicides, patch",null,"Yes","Yes","Yes","No","Yes","Yes","No","Yes","Yes","Yes","No","Vaginal ring, spermicides, patch",null,"No","No","No","No","No","No","No","No","No","No","No","No",null,"No","No","No","No","No","No","No","No","No","No","No","No","The public sector CAN offer POPs and ECs, but at this point the methods are not available in stock. Implants are not yet registered in Ukraine; the producer plans to begin registration this year. NGOs are not allowed by law to support the provision of FP services and commodities. There are no FP-related social marketing programs in Ukraine. \n",null,"No","","","","","Yes","Commercial sector","VAT (20% of the total cost), custom tax","Yes","The law of Ukraine \"On Advertising\", article 21 does not allow advertising of prescription-based medicines, which includes contraceptives. ","Yes","Drugs (including contraceptives) are exempted from the payment of VAT in Ukraine. Also, private companies have to be registered and licensed. This is protection against counterfeit drugs. ","Yes","All hormonal methods ","Clinics can either dispense or prescribe these methods for purchase in state pharmacies. The prescriptions are written by doctors; midwives and nurses are not allowed to write prescriptions. ","Licensed pharmacies sell hormonals based on a doctor prescription.","IUDs","Only specially trained ob-gyns can insert IUDs. Family doctors can only prescribe IUDs. Midwives and nurses cannot prescribe them.","Only specially trained ob-gyns can insert IUDs. Family doctors can only prescribe IUDs.","Injectables","Nurses and midwives can provide the Depo injections, in a health facility, upon the recommendation from a doctor.","",null,"No","","","No","","","No","","",null,"No","No","N/A","N/A",null,"Yes","Yes","Yes","Yes","No","No","No","Yes","No","No","N/A",2009,"National Essential Medicine List","Condoms and IUDs are not part of this list as Ukrainian legislation considers them medical devices. A list of medical devices does not exist.",null,2005,"Yes","No","No","No","Improving peoples' abilities to plan the size of their families is one of the priorities under Pillar 5: Human development (p.34) \nThe following are priorities for the health sector, but not indicators:\n- Procure additional reproductive health commodities\n- Family planning supplies for 3 million couples per year\n(p.195, Table 7.5)",null,"Don't know",null,"Don't know","N/A","N/A","N/A","Don't know","Don't know","N/A","N/A","N/A","N/A","The answer \"don’t know\" means there is no data available at the MOH on how they handle the procured contraceptives. The answer \"N/A\" means that some of the contraceptives are not registered (e.g., implants and CycleBeads) or are not procured by the GOU (e.g., progestin-only pills, injections, emergency contraceptives).",null,"Yes","Don't know","There are four vulnerable population groups in Ukraine that have access to free contraceptives through the public sector: poor people, HIV+ women, youth aged 18-20, and women with extragenital pathologies. The Ministry of Health (MOH) does not estimate the need for contraceptives for these groups, as they never receive state funding for procurement of contraceptives based on the need. The funding is always limited and represents \"what is given by the Ministry of Finance\". In addition, there are no clear criteria in the country regarding \"who is the poor\", and thus, there are no official records on the number of poor people. State Statistics Committee (SSC) of Ukraine says that 48.6% of the population live on a monthly income of $100-$200.  The MOH reports that they procure contraceptives in sufficient quantities to ensure that 90%-100% of women with extragenital pathologies have access to them (the fourth vulnerable group). However, this satisfies only one of the four vulnerable groups. The USAID Together for Health (TfH) project made the forecast of the contraceptive needs for the eligible population in Ukraine in 2010. They used the World Bank estimate that 8% of the population in Ukraine is poor, UNAIDS data on HIV+ people, SSC data on youth, and 2007 DHS for details on contraceptive use.  Also, since October 2010, the USAID TfH project has been distributing the USAID-donated contraceptives (DepoProvera, Microgynon, and Copper IUD) that reach the primary health care level in 15 regions of Ukraine (out of a total of 27). The regions are collecting data on distribution and reporting to the project. However, since the distribution has been active for only one quarter, it is too early to make conclusions about the contraceptive needs in these 15 regions.","Europe and Asia"]
["Yemen ",null,"Yes","Reproductive Health Commodity Security",null,"Yes","Yamman (Marie Stopes International)","Yes","Yemen Family Care Association, GSSC, Yamaan","No","","Yes","EKN, GIZ","Yes","UNFPA","Yes","Supply Directorate, RH General Directorate, National Drug Program, Curative Sector","Yes","Central Warehouse","No","","No","","6 or more times","N/A","No","","",null,"January","December","Don't know","01/11","MOPHP and UNFPA","No","Yes",95000,"01/10-12/10","MoPHP annual plan","","No","No","N/A",0,"01/10-12/10","","","No","N/A",0,"01/10-12/10","","",0,"",null,"No","N/A",0,"01/10-12/10","","There were no new funds for 2010.  MOPHP spent the residual amount that was provided from UNFPA in 2008-2009","No",0,"01/10-12/10","","","No",0,"01/10-12/10","","",0,"","N/A","","Don't know","","","","N/A","N/A","N/A","",null,"","Yes","Yes","Yes","Yes","Yes","Yes","No","No","Yes","Yes","No","",null,"Yes","Yes","Yes","Yes","Yes","Yes","No","No","Yes","Yes","No","",null,"Yes","Yes","Yes","Yes","Yes","Yes","No","No","No","No","No","",null,"Yes","Yes","Yes","Yes","Yes","Yes","No","No","No","No","No","","Hormonal injections and implants are requested by people but coverage is low.",null,"Yes","Reproductive Health Strategy","2011- 2015","Yes","No","No","N/A","N/A","No","N/A","No","N/A","No","","","","","","","","","",null,"No","","","No","","","No","","",null,"No","No","N/A","N/A",null,"Yes","Yes","No","No","No","No","No","No","No","No","N/A",2009,"National Essential Drug List","",null,2002,"Yes","No","No","No","Population status is one of the objectives under human resources development. (p.118).",null,"Yes",null,"No","Yes","Yes","Yes","No","No","Yes","N/A","N/A","","Logistic reports of MOPHP",null,"Yes","Yes","","Europe and Asia"]
["Zambia ",null,"Yes","Reproductive Health Commodity Security Committee",null,"Yes","Society for Family Health","Yes","Planned Parenthood Association (PPAZ), Marie Stopes International, Family Health International","No","","Yes","Global Fund, DFID, USAID","Yes","UNFPA, UNICEF, WHO","Yes","Reproductive and Child Health, Pharmacy","Yes","Medical Stores Limited (MSL) - Central Warehouse","Yes","Ministry of Finance and National Planning","Yes","USAID | DELIVER PROJECT, Zambia Integrated Strengthened System Partnership (ZISSP), Zambia Prevention Care and Treatment II (ZPCT II), Center for Infectious Diseases Research in Zambia (CIDRZ)","3-5 times","No","Yes","MOH","Deputy Director, Reproductive and Child Health",null,"January","December",6407002,"11/10","Planned Parenthood Association, Marie Stopes International, USAID | DELIVER PROJECT, Zambia Prevention Care and Treatment II, Center for Infectious Diseases Research in Zambia, UNFPA, Society for Family Health, MOH ","Yes","Yes",619099,"01/10-12/10","GRZ Yellow Book (Government Activity Based Budget: Estimate of Revenue and Expenditure), PipeLine","Committed by MOH for the procurement of RH commodities (it's not specified whether funds were meant for contraceptives)","No","No","",0,"01/10-12/10","","","No","N/A",0,"01/10-12/10","","($1,602,872 worth of products arrived in 2010 [from funds originally from DFID], but the products were procured in 2009)",0,"",null,"Yes","USAID $2,467,644; UNFPA $2,032,857",4500501,"01/10-12/10","PipeLine","","No",0,"01/10-12/10","","","No",0,"01/10-12/10","","",4500501,"",0,"",0.70243477370539298,"There was no gap in 2010.","","","The government (e.g., Central Medical Stores, MOH logistics unit, MOH procurement unit)","MOH Procurement Unit","No","The budget line is not only for the procurement of contraceptives, but for all RH commodities. ",null,"","Yes","Yes","Yes","Yes","Yes","Yes","Yes","Yes","Don't know","Don't know","Don't know","No",null,"Yes","Yes","Yes","Yes","Yes","Yes","Yes","Yes","Yes","Yes","No","",null,"Yes","Yes","Yes","Yes","Yes","Yes","Yes","Don't know","Don't know","Don't know","No","",null,"Yes","Yes","Yes","Yes","Yes","Yes","Yes","No","No","No","No","","",null,"Yes","Reproductive Health Commodity Security Strategy","2011 - 2015","No","No","No","N/A","N/A","Yes","1. Sale/distribution of contraceptives restricted to retail pharmacies and private clinics. Only condoms are sold in supermarkets and drugstores. 2. Advertising ban","Don't know","Don't know","Don't know","","","","","","","","","",null,"No","","","No","","","No","","",null,"No","No","N/A","N/A",null,"Yes","Yes","Yes","Yes","Yes","Yes","Yes","Yes","No","No","N/A",2009,"Essential Medicines List","",null,2007,"No","No","No","No","Reproductive health is integrated within the health component (p.179).",null,"Yes",null,"No","No","No","No","No","No","Yes","No","N/A","01/10-12/10","PipeLine (based on central warehouse reports)",null,"Yes","No","Partners have been forthcoming in supporting the government in filling the gap. Government needs to increase its funding for contraceptive procurement to reduce dependency on donor funding.","Africa"]
["Zimbabwe ",null,"Yes","Reproductive Health Commodity Security Committee",null,"Yes","Population Services International","Yes","Population Services Zimbabwe (PSZ) (Marie Stopes affiliate), Elizabeth Glaser Pediatric AIDS Foundation","Yes","CIMAS Healthcare (medical insurance and health services provider)","Yes","USAID and DfID","Yes","UNFPA","Yes","Reproductive Health Unit of Ministry of Health and Child Welfare (MOHCW), Zimbabwe National Family Planning Council (ZNFPC), and Medicines Control Authority of Zimbabwe (MCAZ) ","Yes","NatPharm","No","","Yes","Crown Agents Zimbabwe, John Snow Inc. (JSI)","3-5 times","Yes","Yes","ZNFPC","Executive Director",null,"January","December","Don't know","10/10","ZNFPC, JSI, Crown Agents, and PSZ","Yes","Yes","Don't know","01/10-12/10","","Budget allocation is for the entire MOH and is in principle supposed to cover all recurrent expenditures for the entire MOH including commodities procurement ","Don't know","Don't know","","Don't know","01/10-12/10","","It is not clear if and how much the government spent on procurement of contraceptives outside of the delivery team topping up [DTTU] distribution system. The government did not spend funds on procurement of contraceptives for the DTTU distribution system. ","Don't know","Don't know","Don't know","01/10-12/10","","","Don't know","",null,"Yes","Male and female condoms (USAID), other contraceptives (DfID)",7282419.6600000001,"01/10-12/10","Delivery Team Topping Up (DTTU) TOP UP database","1) Data includes products distributed on DTTU only (male and female condoms, the injectable Petogen, the combined oral Control, and the progestin-only pill Secure). 2) Data includes products distributed to clients only, not products in storage facilities. 2) Value based on actual per unit consumption of each product multiplied by unit cost (freight and insurance included). ","No",0,"01/10-12/10","","","No",0,"01/10-12/10","","",7282419.6600000001,"","Don't know","","Don't know","","No","All public sector needs for the methods distributed by the DTTU system (male and female condoms, injectables, combined orals, and progestin-only pills) are adequately met by USAID and DfID year after year. ","N/A","N/A","N/A","The USAID | DELIVER PROJECT (implemented by JSI) procures on behalf of USAID while Crown Agents procures on behalf of DfID. Finance data provided here represents the monetary value of the products distributed through the DTTU system only. Procurement data is not available for other contraceptives distributed on a target strategy outside of DTTU, which are bought by ZNFPC and sold direct from the ZNFPC warehouse to private, public, and local authority institutions and doctors upon request. They are not routinely distributed to all SDPs through DTTU because they are used by a minority of the population and are expensive.  ",null,"","Yes","Yes","Yes","Yes","Yes","Yes","Yes","Yes","Yes","Yes","Yes","No",null,"Yes","Yes","Yes","Yes","Yes","Yes","Yes","Yes","Yes","Yes","Yes","No",null,"Yes","Yes","Yes","Yes","Yes","Yes","Yes","Yes","Yes","Yes","No","No",null,"No","No","Yes","No","No","Yes","Yes","Yes","Don't know","Don't know","No","No","1) IUDs, emergency contraceptives, and CycleBeads are in principle supposed to be managed in the public sector but their supply is erratic. They are distributed on a target basis. ZNFPC started piloting the distribution of Jadelle implants on DTTU in the last quarter of 2010. 2) The contraceptive methods listed under NGO refer to Population Services Zimbabwe (a local NGO and Marie Stopes affiliate). \n",null,"Yes","ZNFPC Strategic Plan ","2009 - 2013","Yes","Yes","No","N/A","N/A","No","N/A","No","N/A","Yes","Injectables","Community-based distributors cannot dispense/administer long-term methods.","Long-term methods can only be dispensed/administered by qualified medical personnel specifically trained to administer the methods. For injectables, this is trained and registered nurses and doctors.","Implants","Only doctors and clinical officers can administer.","Only trained doctors who are approved by ZNFPC to insert implants can do so.  ","IUDs","Only doctors can administer.","Only trained doctors who are approved by ZNFPC to insert IUDs can do so.  ",null,"No","","","No","","","No","","",null,"Yes","Yes","Yes","Some local authority clinics charge for commodities. People over 65 years are exempted from such charges in general at public institutions.",null,"Yes","Yes","Yes","Yes","Yes","Yes","Yes","Yes","Yes","No","N/A",2006,"Essential Drugs List for Zimbabwe (EDLIZ) and the ZNFPC List of Contraceptive Methods and Devices","EDLIZ currently under revision",null,"N/A","N/A","N/A","N/A","N/A","Document not available on IMF's website",null,"No",null,"No","No","No","Don't know","Don't know","No","No","Don't know","Don't know","01/10-12/10","Warehouse reports & periodic physical inventory",null,"No","No","Contraceptives are generally in full supply. No significant issues with commodity security.","Africa"]
["Notes: N/A = not applicable"]
["Commonly used acronyms include: CPT - contraceptive procurement table,  LMIS - logistics management information system, MOH - Ministry of Health, RHInterchange (RHI) - Reproductive Health Interchange (online database of contraceptive orders and shipments at http://rhi.rhsupplies.org)"]
[]
[]
[]
[]
[]
[]
[]
[]
[]
[]
[]
[]
[]
[]
[]
[]
[]
[]
[]
[]
[]
[]
[]
[]
[]
[]
[]
[]
[]
[]
[]
[]
[]
[]
[]
[]
[]
[]
[]
[]
[]
[]
[]
[]
[]
[]
[]
[]
[]
[]
[]
[]
[]
[]
[]
[]
[]
[]
[]
[]
[]
[]
[]
[]
[]
[]
[]
[]
[]
[]
[]
[]
[]
[]
[]
[]
[]
[]
[]
[]
["Notes: N/A = not applicable, No data = data not available"]
["Commonly used acronyms include: "]
["CPT - contraceptive procurement table,  LMIS - logistics management information system, MOH - Ministry of Health, RHI - RHealth Interchange (http://rhi.rhsupplies.org)"]

{"sheet":"Afghanistan 2011","index":5,"n_rows":147,"n_cols":25,"rows_kept":147,"cut":false,"hidden":false,"merged":[[141,1,141,4],[141,5,141,7],[142,1,142,4],[142,5,142,7],[143,0,143,7],[144,1,144,5],[144,6,144,7],[147,0,147,7],[148,0,150,7],[145,1,145,5],[145,6,145,7],[146,0,146,2],[146,3,146,7],[136,1,136,5],[136,6,136,7],[137,1,137,5],[137,6,137,7],[138,1,138,5],[138,6,138,7],[139,1,139,5],[139,6,139,7],[140,1,140,5],[140,6,140,7],[131,0,131,7],[132,1,132,5],[132,6,132,7],[133,1,133,5],[133,6,133,7],[134,1,134,5],[134,6,134,7],[135,1,135,5],[135,6,135,7],[120,0,120,2],[120,3,120,7],[121,0,121,2],[121,3,121,7],[129,0,129,6],[130,0,130,5],[130,6,130,7],[123,1,123,4],[123,5,123,7],[124,1,124,5],[115,1,115,5],[115,6,115,7],[116,1,116,5],[116,6,116,7],[117,1,117,5],[117,6,117,7],[118,2,118,4],[118,5,118,7],[119,0,119,4],[119,5,119,7],[110,1,110,5],[110,6,110,7],[111,1,111,5],[111,6,111,7],[112,1,112,5],[112,6,112,7],[113,1,113,5],[113,6,113,7],[114,1,114,5],[114,6,114,7],[104,1,104,5],[104,6,104,7],[105,1,105,5],[105,6,105,7],[106,3,106,7],[107,0,107,7],[108,1,108,5],[108,6,108,7],[109,1,109,5],[109,6,109,7],[98,1,98,2],[98,4,98,6],[99,1,99,2],[99,4,99,6],[100,1,100,2],[100,4,100,6],[101,0,101,7],[102,0,102,7],[103,1,103,5],[103,6,103,7],[94,2,94,3],[94,4,94,5],[94,6,94,7],[95,2,95,3],[95,4,95,5],[95,6,95,7],[96,0,96,7],[97,0,97,2],[97,4,97,6],[88,0,88,6],[89,1,89,2],[89,3,89,7],[90,0,90,6],[91,1,91,2],[92,1,92,3],[92,4,92,5],[92,6,92,7],[93,2,93,3],[93,4,93,5],[93,6,93,7],[83,0,83,4],[83,5,83,7],[84,1,84,3],[84,4,84,7],[85,1,85,3],[85,4,85,7],[86,0,86,6],[87,1,87,2],[87,3,87,7],[78,0,78,6],[79,0,79,6],[80,0,80,2],[81,0,82,0],[81,1,81,2],[81,3,81,4],[81,6,81,7],[82,3,82,4],[82,6,82,7],[73,1,73,2],[73,3,73,4],[74,1,74,2],[74,3,74,4],[75,1,75,2],[75,3,75,4],[76,1,76,2],[76,3,76,4],[77,0,77,2],[77,3,77,7],[68,1,68,2],[68,3,68,4],[69,1,69,2],[69,3,69,4],[70,1,70,2],[70,3,70,4],[71,1,71,2],[71,3,71,4],[72,1,72,2],[72,3,72,4],[63,0,63,7],[64,0,64,2],[64,3,64,4],[65,1,65,2],[65,3,65,4],[66,1,66,2],[66,3,66,4],[67,1,67,2],[67,3,67,4],[58,0,58,4],[58,5,58,7],[59,1,59,4],[59,5,59,7],[60,2,60,4],[60,5,60,7],[61,0,61,2],[61,3,61,7],[62,0,62,6],[55,0,55,4],[55,6,55,7],[47,1,47,2],[48,3,48,7],[49,1,49,2],[50,1,50,2],[51,1,51,2],[53,0,53,7],[56,0,56,4],[56,6,56,7],[39,1,39,2],[40,3,40,7],[41,1,41,2],[42,3,42,7],[43,1,43,2],[45,0,45,7],[46,1,46,2],[54,0,54,4],[54,6,54,7],[30,0,30,6],[31,0,31,6],[32,0,32,7],[33,1,33,3],[34,1,34,3],[35,0,35,7],[36,0,36,6],[37,0,37,7],[38,1,38,2],[125,1,125,5],[128,1,128,2],[128,3,128,7],[125,6,125,7],[126,1,126,5],[126,6,126,7],[127,1,127,5],[127,6,127,7],[13,0,13,2],[13,3,13,7],[14,1,14,2],[14,5,14,7],[15,1,15,2],[15,5,15,7],[16,1,16,2],[16,5,16,7],[17,1,17,2],[17,5,17,7],[18,1,18,2],[18,5,18,7],[19,1,19,2],[19,5,19,7],[23,0,23,6],[24,0,24,6],[124,6,124,7],[122,0,122,7],[7,0,7,2],[7,3,7,5],[7,6,7,7],[9,0,9,7],[10,0,10,6],[11,0,11,6],[12,1,12,2],[12,3,12,7],[25,0,25,2],[26,0,26,6],[20,1,20,2],[20,5,20,7],[21,1,21,2],[21,5,21,7],[22,1,22,2],[22,5,22,7],[27,0,27,2],[27,3,27,4],[28,0,28,5],[28,6,28,7],[29,0,29,3],[29,6,29,7],[8,0,8,7],[4,0,4,2],[5,0,5,2],[0,0,0,7],[1,0,1,2],[1,3,1,4],[2,0,2,7],[3,3,3,4],[3,5,3,7]]}
[null,null,null,null,null,null,null,null,"Columns I-Y are meant to be hidden. They exist because they allow for the dropdown list options. They also allow for merged cells to autofit properly in terms of row height. This should work if all columns remain at their correct widths.","g-h",null,"a-e merged","E-F merged","e-h","0 times",null,null,"The government (e.g., Central Medical Stores, MOH logistics unit, MOH procurement unit)",null,null,null,null,"Yes","a-h","January"]
[null,null,null,null,null,null,null,null,null,null,"A-c",null,null,null,"1-2 times","b-d merged",null,"Third-party agent (e.g., UNFPA, Crown Agents)","d-e merged","d-f merged","e-f merged","e-g merged","No",null,"February"]
[null,null,null,null,null,null,null,null,null,null,null,null,null,null,"3-5 times",null,null,"The government and a third-party agent",null,null,null,null,null,null,"March"]
[null,null,null,null,null,null,null,null,null,null,null,null,null,null,"6 or more times",null,null,"Other",null,null,null,null,"N/A",null,"April"]
["To jump to the Introduction sheet, click here.",null,null,null,null,null,null,null,null,null,null,null,null,null,null,null,null,null,null,null,null,null,"Don't know",null,"May"]
[null,null,null,null,null,null,null,null,null,null,null,null,null,null,"N/A",null,null,"N/A",null,null,null,null,null,null,"June"]
["Contraceptive Security (CS) Indicators 2011 Data ",null,null,null,null,null,null,null,null,null,null,null,null,null,"Don't know",null,null,"Don't know",null,null,null,null,null,null,"July"]
["Country: Afghanistan",null,null,null,null,null,null,null,null,{"$f":"G8","v":0},{"$f":"A8","v":"Country: Afghanistan"},null,null,null,null,"or c-d",null,null,null,{"$f":"D8","v":0},null,null,null,null,"August"]
["The CS Indicators are presented in the following sections:\n\n               A. leadership & cooordination               B. finance & procurement               C. commodities               D. policies               E. supply chain",null,null,null,null,null,null,null,null,null,null,null,null,null,null,null,null,null,null,null,null,null,null,{"$f":"A9","v":"The CS Indicators are presented in the following sections:\n\n               A. leadership & cooordination               B. finance & procurement               C. commodities               D. policies               E. supply chain"},"September"]
["\nNotes:\n  -  Respondents' answers are indicated in the white spaces. \n  -  N/A = not applicable. Don't know = the respondent either indicated they did not know or left the answer blank.\n  -  Some questions required respondents to choose from a dropdown list of options; in these cases the dropdown arrow will \n     appear when you click on the cell. \n  -  There may be a few inserted comments. (If you cannot already see them, click on Review tab - Comments group - Show All Comments in newer \n       versions of Excel or View - Comments in older versions of Excel.)\n  -  If the answer is cut off, you can either manually adjust the row height or autofit the row height in order to see the whole \n     response. (To autofit the row height, select the answer(s) and go to Home tab - Cells group - Format - Autofit Row Height in newer versions of Excel or \n      Format - Row - Autofit in older versions of Excel.)\n",null,null,null,null,null,null,null,"a-g",null,null,null,null,null,null,null,null,"a-e merged",null,null,null,null,null,{"$f":"A10","v":"\nNotes:\n  -  Respondents' answers are indicated in the white spaces. \n  -  N/A = not applicable. Don't know = the respondent either indicated they did not know or left the answer blank.\n  -  Some questions required respondents to choose from a dropdown list of options; in these cases the dropdown arrow will \n     appear when you click on the cell. \n  -  There may be a few inserted comments. (If you cannot already see them, click on Review tab - Comments group - Show All Comments in newer \n       versions of Excel or View - Comments in older versions of Excel.)\n  -  If the answer is cut off, you can either manually adjust the row height or autofit the row height in order to see the whole \n     response. (To autofit the row height, select the answer(s) and go to Home tab - Cells group - Format - Autofit Row Height in newer versions of Excel or \n      Format - Row - Autofit in older versions of Excel.)\n"},"October"]
["A. Leadership and Coordination",null,null,null,null,null,null,null,null,null,null,null,null,null,null,null,null,null,null,null,null,null,null,null,"November"]
["A1. Is there a national committee that works on contraceptive security? (Please select from the dropdown list.)\n(Committee should have some aspect of contraceptive security as part of its Terms of Reference, even if it is known by a different name, for example: Family Planning, Reproductive Health, Maternal Mortality, Essential Medicine Committee, etc.)  ",null,null,null,null,null,null,"Yes",{"$f":"A12","v":"A1. Is there a national committee that works on contraceptive security? (Please select from the dropdown list.)\n(Committee should have some aspect of contraceptive security as part of its Terms of Reference, even if it is known by a different name, for example: Family Planning, Reproductive Health, Maternal Mortality, Essential Medicine Committee, etc.)  "},null,null,null,null,null,null,null,null,null,null,null,null,null,null,null,"December"]
[null,"a. What is the name of the committee?",null,"Contraceptive Security Sub-Committee of the Coordinated Procurement and Distribution Committee at the MoPH",null,null,null,null,null,null,{"$f":"B13","v":"a. What is the name of the committee?"},{"$f":"D13","v":"Contraceptive Security Sub-Committee of the Coordinated Procurement and Distribution Committee at the MoPH"},null,null,{"$f":"D13","v":"Contraceptive Security Sub-Committee of the Coordinated Procurement and Distribution Committee at the MoPH"}]
["A2. Are the following organizations represented on the committee?",null,null,"(Y/N \ndropdown)",null,null,null,null,null,null,{"$f":"A14","v":"A2. Are the following organizations represented on the committee?"},null,null,null,null,null,null,null,null,null,null,null,null,null,"Don't know"]
[null,"a. Social marketing",null,"Yes","If yes, specify name(s) of organizations","Futures Group/COMPRI-A Project, Afghanistan Social Marketing Organization (ASMO)",null,null,null,null,{"$f":"B15","v":"a. Social marketing"},null,null,null,null,null,{"$f":"F15","v":"Futures Group/COMPRI-A Project, Afghanistan Social Marketing Organization (ASMO)"}]
[null,"b. NGO (for example: service delivery, advocacy, Planned Parenthood affiliate, Marie Stopes affiliate, faith-based organizations, etc.)",null,"Yes","If yes, specify name(s) of organizations","Marie Stopes, ASMO",null,null,null,null,"b. NGO (for example: service delivery, advocacy, Planned Parenthood affiliate, Marie Stopes affiliate, faith-based organizations, etc.)",null,null,null,null,null,"Marie Stopes, ASMO"]
[null,"c. Commercial sector (for example: pharmacy associations, manufacturers, etc.)",null,"No","If yes, specify name(s) of organizations",null,null,null,null,null,"c. Commercial sector (for example: pharmacy associations, manufacturers, etc.)",null,null,null,null,null,0]
[null,"d. Donors",null,"No","If yes, specify name(s) of donors",null,null,null,null,null,"d. Donors",null,null,null,null,null,0]
[null,"e. UN agencies",null,"Yes","If yes, specify name(s) of agencies","UNFPA",null,null,null,null,"e. UN agencies",null,null,null,null,null,"UNFPA"]
[null,"f. Ministry of Health (for example: logistics, reproductive health, family planning, maternal and child health, HIV/AIDS, pharmacy units, etc.)",null,"Yes","If yes, specify name(s) of units","Reproductive Health Department",null,null,null,null,"f. Ministry of Health (for example: logistics, reproductive health, family planning, maternal and child health, HIV/AIDS, pharmacy units, etc.)",null,null,null,null,null,"Reproductive Health Department"]
[null,"g. Central Medical Store or Central Warehouse",null,"Yes","If yes, specify","Central Medical Store",null,null,null,null,"g. Central Medical Store or Central Warehouse",null,null,null,null,null,"Central Medical Store"]
[null,"h. Ministry of Finance or Ministry of Planning ",null,"No","If yes, specify",null,null,null,null,null,"h. Ministry of Finance or Ministry of Planning ",null,null,null,null,null,0]
[null,"i. Other (for example: partners)",null,null,"If yes, specify",null,null,null,null,null,"i. Other (for example: partners)",null,null,null,null,null,0]
["A3. How many times did the committee meet during the last year? (0, 1-2, 3-5, or 6+)  (Please select from the dropdown.)",null,null,null,null,null,null,"1-2 times",{"$f":"A24","v":"A3. How many times did the committee meet during the last year? (0, 1-2, 3-5, or 6+)  (Please select from the dropdown.)"}]
["A4. Does the committee have legal status?  (Please select from the dropdown.)                                  ",null,null,null,null,null,null,"No",{"$f":"A25","v":"A4. Does the committee have legal status?  (Please select from the dropdown.)                                  "}]
["A5. Is there a Contraceptive Security \"champion\"? (someone who consistently brings up and advocates for contraceptive supplies)",null,null,"No","If yes, specify person's organization",null,"Specify person's job title",null,null,null,{"$f":"A26","v":"A5. Is there a Contraceptive Security \"champion\"? (someone who consistently brings up and advocates for contraceptive supplies)"}]
["B. Finance and Procurement (Capital)"]
["B1. What is the timeline of the country's fiscal year?",null,null,"Beginning month",null,"March","Ending month","February",null,null,{"$f":"B28","v":0}]
["B2. What was the estimated dollar value of contraceptives needed to be procured for the public sector for the most recent complete fiscal year? (in USD currency)\n(for example, to cover the needs for the '09-'10 fiscal year)",null,null,null,null,null,"N/A",null,null,{"$f":"G29","v":"N/A"},null,null,{"$f":"E29","v":0},null,null,null,null,null,null,null,null,null,null,null,{"$f":"A29","v":"B2. What was the estimated dollar value of contraceptives needed to be procured for the public sector for the most recent complete fiscal year? (in USD currency)\n(for example, to cover the needs for the '09-'10 fiscal year)"}]
["B3. When was the last forecast/quantification conducted? (mm/yy)",null,null,null,"N/A","Who conducted it? (Specify organization.)","N/A",null,null,{"$f":"G30","v":"N/A"},null,null,{"$f":"E30","v":"N/A"},null,null,null,null,null,null,null,null,null,null,null,{"$f":"A30","v":"B3. When was the last forecast/quantification conducted? (mm/yy)"}]
["B4. Is there a government budget line item for the procurement of contraceptives?  (Please select from the dropdown list.)",null,null,null,null,null,null,"No",{"$f":"A31","v":"B4. Is there a government budget line item for the procurement of contraceptives?  (Please select from the dropdown list.)"}]
["B5. Were government funds allocated for contraceptive procurement for the public sector in the most recent complete fiscal year? (This question refers to funds planned to be spent on contraceptives, whether or not they ended up being spent.) \n\n(Government funds include internally generated funds, basket funds, World Bank credits or loans, and other funds donors gave to the government for their use.) \n",null,null,null,null,null,null,"Don't know",{"$f":"A32","v":"B5. Were government funds allocated for contraceptive procurement for the public sector in the most recent complete fiscal year? (This question refers to funds planned to be spent on contraceptives, whether or not they ended up being spent.) \n\n(Government funds include internally generated funds, basket funds, World Bank credits or loans, and other funds donors gave to the government for their use.) \n"}]
["B6. Please complete the table below regarding government allocations for contraceptive procurement.",null,null,null,null,null,null,null,null,null,null,null,null,null,null,null,null,null,null,null,null,null,null,{"$f":"A33","v":"B6. Please complete the table below regarding government allocations for contraceptive procurement."}]
[null,null,null,null,"Amount allocated \n(in USD)","Time period during which allocations were supposed to be spent \n(mm/yy-mm/yy)\n(should ideally be the most recent\ncomplete fiscal year ['09-'10])","Data source \n(for example: Ministry records)","Comments",null,null,{"$f":"A34","v":0}]
[null,"Government funds allocated for contraceptive procurement\n(funds originally designated for contraceptives, whether or not they ended up being spent on them)",null,null,"Don't know","01/10-12/10",null,"Afghanistan just completed its first National Health Account (NHA) and will be able to provide this data in the future.",null,null,{"$f":"#REF!","v":{"$error":"#REF!"}}]
[]
["B7. Were government funds spent on contraceptive procurement for the public sector in the most recent complete fiscal year? \n(Government funds include internally generated funds, basket funds, World Bank credits or loans, and other funds donors gave to the government for their use.)",null,null,null,null,null,null,"Don't know",{"$f":"A37","v":"B7. Were government funds spent on contraceptive procurement for the public sector in the most recent complete fiscal year? \n(Government funds include internally generated funds, basket funds, World Bank credits or loans, and other funds donors gave to the government for their use.)"}]
["B8. Please complete the table below to indicate government expenditures on contraceptive procurement, by source, in the most recent complete fiscal year. \n(This is how much was spent on contraceptive procurement (not what was allocated). How much of this spending was provided from each source?)",null,null,null,null,null,null,null,null,null,null,null,null,null,null,null,null,null,null,null,null,null,null,{"$f":"A38","v":"B8. Please complete the table below to indicate government expenditures on contraceptive procurement, by source, in the most recent complete fiscal year. \n(This is how much was spent on contraceptive procurement (not what was allocated). How much of this spending was provided from each source?)"}]
[null,"Source of government funds spent on contraceptive procurement for the public sector",null,"Was this source used?\n(Y/N)","Amount spent \n(in USD)","Time period (mm/yy-mm/yy)\n(should be the same for all sources of funds & ideally be the most recent\ncomplete fiscal year ['09-'10])","Data source \n(for example: Contraceptive Procurement Table, PipeLine, etc.)","Comments",null,null,{"$f":"A39","v":0}]
[null,"a. Internally generated funds spent on contraceptive procurement",null,"Don't know","Don't know","01/10-12/10",null,"Most likely $0",null,null,{"$f":"B40","v":"a. Internally generated funds spent on contraceptive procurement"}]
[null,null,"i. Specify source(s) of internally generated funds spent (for example, from taxes or user fees)","Don't know",null,null,null,null,null,null,{"$f":"C41","v":"i. Specify source(s) of internally generated funds spent (for example, from taxes or user fees)"},null,null,null,{"$f":"D41","v":"Don't know"}]
[null,"b. Total of all other government funds spent on contraceptive procurement (basket funds, World Bank credits or loans, and other funds donors gave to the government [e.g., direct budget support])",null,"No",0,"01/10-12/10",null,null,null,null,{"$f":"B42","v":"b. Total of all other government funds spent on contraceptive procurement (basket funds, World Bank credits or loans, and other funds donors gave to the government [e.g., direct budget support])"}]
[null,null,"i. Specify source(s) of other government funds spent (for example: basket funding or specific donor)","N/A",null,null,null,null,null,null,{"$f":"C43","v":"i. Specify source(s) of other government funds spent (for example: basket funding or specific donor)"},null,null,null,{"$f":"D43","v":"N/A"}]
[null,"c. TOTAL government funds spent on contraceptive procurement\nThis will auto-calculate.  (It will sum a & b above.)",null,null,"Don't know",null,null,null,null,null,{"$f":"B44","v":"c. TOTAL government funds spent on contraceptive procurement\nThis will auto-calculate.  (It will sum a & b above.)"}]
[null,null,null,null,null,null,null,null,null,null,{"$f":"A45","v":0}]
["B9. Please complete the table below to indicate donor expenditures on contraceptive procurement in the most recent complete fiscal year.\n",null,null,null,null,null,null,null,null,null,null,null,null,null,null,null,null,null,null,null,null,null,null,{"$f":"A46","v":"B9. Please complete the table below to indicate donor expenditures on contraceptive procurement in the most recent complete fiscal year.\n"}]
["\n","Source of donations and donor funds spent on contraceptive procurement for the public sector",null,"Was this a source?\n(Y/N)","Amount of money spent on these procurements \n(in USD)","Time period (mm/yy-mm/yy)\n(should be the same for all sources of funds & ideally be the most recent\ncomplete fiscal year ['09-'10])","Data source \n(for example:  Donor records, Contraceptive Procurement Table, PipeLine, RHInterchange, etc.","Comments",null,null,{"$f":"A47","v":"\n"}]
[null,"a. In-kind donations of contraceptives",null,"Yes","Don't know","01/10-12/10",null,"In 2009 UNFPA procured $100,854 worth of contraceptives for the MoPH but did not receive a request in 2010.",null,null,{"$f":"B48","v":"a. In-kind donations of contraceptives"}]
[null,null,"i. Specify source(s) of in-kind donations ","USAID",null,null,null,null,null,null,{"$f":"C49","v":"i. Specify source(s) of in-kind donations "},null,null,null,{"$f":"D49","v":"USAID"}]
[null,"b. Global Fund donations used to procure condoms",null,"No",0,"01/10-12/10",null,null,null,null,{"$f":"B50","v":"b. Global Fund donations used to procure condoms"}]
[null,"c. Global Fund donations used to procure contraceptives besides condoms",null,"No",0,"01/10-12/10",null,null,null,null,{"$f":"B51","v":"c. Global Fund donations used to procure contraceptives besides condoms"}]
[null,"d. TOTAL value of in-kind donations and Global Fund donations spent on contraceptive procurement\nThis will auto-calculate.  (It will sum a-c above.)",null,null,"Don't know",null,null,null,null,null,{"$f":"B52","v":"d. TOTAL value of in-kind donations and Global Fund donations spent on contraceptive procurement\nThis will auto-calculate.  (It will sum a-c above.)"}]
[null,null,null,null,null,null,null,null,null,null,{"$f":"A53","v":0}]
["The answers to B10 and B11 should calculate automatically based on the information you provided. Please review the answers to ensure they make sense to you, and if you have additional information to add, please note it in the comments boxes.\n\nIf the answers do not calculate automatically, please provide any relevant information you may have in the comments boxes.\n",null,null,null,null,null,null,null,null,null,null,null,null,null,null,null,null,null,null,null,null,null,null,{"$f":"A54","v":"The answers to B10 and B11 should calculate automatically based on the information you provided. Please review the answers to ensure they make sense to you, and if you have additional information to add, please note it in the comments boxes.\n\nIf the answers do not calculate automatically, please provide any relevant information you may have in the comments boxes.\n"}]
["B10. Government share of funds spent on contraceptive procurement for the public sector - \nOf the total amount spent on contraceptives for the public sector in the most recent complete fiscal year (including government and donor funds), what percent was covered by government funds (including internally generated funds, basket funds, World Bank credits or loans, and other funds given to the government)? \n\nThis will auto-calculate. (It contains the following formula: Total government spending (Question B8c) / Grand total of all spending for public sector contraceptives from the government and donors (Questions B8c+B9d))",null,null,null,null,"Don't know",null,null,null,{"$f":"G55","v":0},null,null,null,null,null,null,null,{"$f":"A55","v":"B10. Government share of funds spent on contraceptive procurement for the public sector - \nOf the total amount spent on contraceptives for the public sector in the most recent complete fiscal year (including government and donor funds), what percent was covered by government funds (including internally generated funds, basket funds, World Bank credits or loans, and other funds given to the government)? \n\nThis will auto-calculate. (It contains the following formula: Total government spending (Question B8c) / Grand total of all spending for public sector contraceptives from the government and donors (Questions B8c+B9d))"}]
["B11. Total expenditures on public sector contraceptives as percent of amount that needed to be procured -\nOf the estimated value of the contraceptives needed to be procured for the public sector for the most recent complete fiscal year, what percent was provided by any source (whether government or donor)? \n\nThis will auto-calculate. (It contains the following formula: Grand total of all spending for public sector contraceptives from the government and donors (Questions B8c+B9d) / Value of estimated need for procurement (Question B2))",null,null,null,null,"Don't know",null,null,null,{"$f":"G56","v":0},null,null,null,null,null,null,null,{"$f":"A56","v":"B11. Total expenditures on public sector contraceptives as percent of amount that needed to be procured -\nOf the estimated value of the contraceptives needed to be procured for the public sector for the most recent complete fiscal year, what percent was provided by any source (whether government or donor)? \n\nThis will auto-calculate. (It contains the following formula: Grand total of all spending for public sector contraceptives from the government and donors (Questions B8c+B9d) / Value of estimated need for procurement (Question B2))"}]
["B12. If B11 did not calculate automatically, please answer the following question:\nWas there a funding gap for the public sector in the last complete fiscal year (e.g., 09-'10 fiscal year)?\n(Please select from the dropdown list.)",null,null,null,null,"Don't know",null,null,null,{"$f":"G57","v":0},null,null,null,null,null,null,null,{"$f":"A57","v":"B12. If B11 did not calculate automatically, please answer the following question:\nWas there a funding gap for the public sector in the last complete fiscal year (e.g., 09-'10 fiscal year)?\n(Please select from the dropdown list.)"}]
[null,null,null,null,null,null,null,null,null,null,{"$f":"A58","v":0}]
["B13. If the government financed any contraceptive procurement in the most recent complete fiscal year, which entity conducted the procurement(s)? (Please select from the dropdown.)",null,null,null,null,"N/A",null,null,null,null,null,null,null,null,null,null,{"$f":"F59","v":"N/A"},{"$f":"A59","v":"B13. If the government financed any contraceptive procurement in the most recent complete fiscal year, which entity conducted the procurement(s)? (Please select from the dropdown.)"}]
[null,"a. Specify entity",null,null,null,"N/A",null,null,null,null,null,null,{"$f":"E60","v":0},null,null,null,{"$f":"F60","v":"N/A"},{"$f":"B60","v":"a. Specify entity"}]
[null,null,"i. Is this a parastatal?",null,null,"N/A",null,null,null,null,null,null,null,null,null,null,{"$f":"F61","v":"N/A"},{"$f":"C61","v":"i. Is this a parastatal?"}]
["B14. Please note any additional comments about finance and procurement.\n",null,null,"World Bank & EU include a pharmaceutical line item in their budgets to NGOs who provide health services. These NGOs purchase pharmaceuticals, including contraceptives, for the health facilities they operate. ",null,null,null,null,null,null,{"$f":"A62","v":"B14. Please note any additional comments about finance and procurement.\n"},null,null,null,{"$f":"D62","v":"World Bank & EU include a pharmaceutical line item in their budgets to NGOs who provide health services. These NGOs purchase pharmaceuticals, including contraceptives, for the health facilities they operate. "}]
["C. Commodities"]
["C1. Are the following contraceptive methods offered through the commercial sector, public sector, NGOs, or social marketing? (Please indicate which methods are intended to be offered. This question is not asking whether the method is in stock.) \n(Please select from the dropdown list.)",null,null,null,null,null,null,null,null,null,null,null,null,null,null,null,null,null,null,null,null,null,null,{"$f":"A64","v":"C1. Are the following contraceptive methods offered through the commercial sector, public sector, NGOs, or social marketing? (Please indicate which methods are intended to be offered. This question is not asking whether the method is in stock.) \n(Please select from the dropdown list.)"}]
["Contraceptive Method",null,null,"Commercial Sector",null,"Public Sector","NGO","Social Marketing",null,null,{"$f":"A65","v":"Contraceptive Method"}]
[null,"a. Combined oral contraceptives (estrogen + progestin - for  example, LoFemenol, Microgynon)",null,"Yes",null,"Yes","Yes","Yes",null,null,{"$f":"B66","v":"a. Combined oral contraceptives (estrogen + progestin - for  example, LoFemenol, Microgynon)"}]
[null,"b. Progestin-only pills (for example, Ovrette, Microlut)",null,"Yes",null,"Yes","Yes","No",null,null,{"$f":"B67","v":"b. Progestin-only pills (for example, Ovrette, Microlut)"}]
[null,"c. Hormonal injections (for example, DepoProvera, Noristerat)",null,"Yes",null,"Yes","Yes","Yes",null,null,"c. Hormonal injections (for example, DepoProvera, Noristerat)"]
[null,"d. Hormonal implants (for example, Jadelle, Implanon)",null,"No",null,"No","No","No",null,null,"d. Hormonal implants (for example, Jadelle, Implanon)"]
[null,"e. Intrauterine devices (IUDs) (for example, Optima Copper T)",null,"Yes",null,"Yes","Yes","No",null,null,"e. Intrauterine devices (IUDs) (for example, Optima Copper T)"]
[null,"f. Male condoms",null,"Yes",null,"Yes","Yes","Yes",null,null,"f. Male condoms"]
[null,"g. Female condoms",null,"No",null,"No","No","No",null,null,"g. Female condoms"]
[null,"h. Emergency contraceptive pills (for example, Postinor)",null,"No",null,"Don't know","No","No",null,null,"h. Emergency contraceptive pills (for example, Postinor)"]
[null,"i. Long-acting permanent method for males (vasectomy)",null,"No",null,"No","No","No",null,null,"i. Long-acting permanent method for males (vasectomy)"]
[null,"j. Long-acting permanent method for females (tubal ligation)",null,"Yes",null,"Yes","Yes","No",null,null,"j. Long-acting permanent method for females (tubal ligation)"]
[null,"k. CycleBeads",null,"No",null,"No","No","No",null,null,"k. CycleBeads"]
[null,"l. Other contraceptive methods - specify \n(Please provide the name of the other contraceptive(s) offered, by sector.)",null,"No",null,"No","No","No",null,null,"l. Other contraceptive methods - specify \n(Please provide the name of the other contraceptive(s) offered, by sector.)"]
["C2. Please note any comments about the commodities offered.",null,null,null,null,null,null,null,null,null,{"$f":"A78","v":"C2. Please note any comments about the commodities offered."},null,null,null,{"$f":"D78","v":0}]
["D. Policies (Commitment)"]
["D1. Is there a contraceptive security or reproductive health commodity security strategy or is contraceptive security explicitly included in a country strategy? (Please select from the dropdown list.)",null,null,null,null,null,null,"No",{"$f":"A80","v":"D1. Is there a contraceptive security or reproductive health commodity security strategy or is contraceptive security explicitly included in a country strategy? (Please select from the dropdown list.)"}]
["IF NO, SKIP TO QUESTION D2."]
[null,"Strategy name",null,"Years Covered (including strategy updates)",null,"Is the strategy formally approved by the Ministry?","Is the contraceptive security strategy being implemented?",null,null,{"$f":"G82","v":"Is the contraceptive security strategy being implemented?"},{"$f":"B82","v":"Strategy name"},null,{"$f":"E82","v":0},null,null,null,null,null,{"$f":"D82","v":"Years Covered (including strategy updates)"}]
[null,"a",null,null,null,null,null,null,null,{"$f":"G83","v":0},{"$f":"B83","v":"a"},null,{"$f":"E83","v":0},null,null,null,null,null,{"$f":"D83","v":0}]
["D2. Are any family planning commodities subject to duties, import taxes, or other fees?",null,null,null,null,"Yes",null,null,null,null,null,null,null,null,null,null,{"$f":"F84","v":"Yes"},{"$f":"A84","v":"D2. Are any family planning commodities subject to duties, import taxes, or other fees?"}]
[null,"a. If yes, for which sectors (public, NGO, social marketing, commercial)?",null,null,"Commercial sector ",null,null,null,null,null,null,null,{"$f":"E85","v":"Commercial sector "},{"$f":"E85","v":"Commercial sector "},null,null,null,{"$f":"B85","v":"a. If yes, for which sectors (public, NGO, social marketing, commercial)?"}]
[null,"b. If yes, how much are the duties, taxes, or fees?",null,null,"Import duties are taken as a percentage of total in products for distribution (not cash).",null,null,null,null,null,null,null,null,{"$f":"E86","v":"Import duties are taken as a percentage of total in products for distribution (not cash)."},null,null,null,{"$f":"B86","v":"b. If yes, how much are the duties, taxes, or fees?"}]
["D3. Are there policies that hinder the ability of the private sector (commercial sector, NGOs, or social marketing) to provide contraceptive methods (for example: price controls, distribution limitations, taxes/duties, advertising bans, etc.)?",null,null,null,null,null,null,"No",{"$f":"A87","v":"D3. Are there policies that hinder the ability of the private sector (commercial sector, NGOs, or social marketing) to provide contraceptive methods (for example: price controls, distribution limitations, taxes/duties, advertising bans, etc.)?"}]
[null,"a. If yes, describe the policies.",null,"N/A",null,null,null,null,null,null,{"$f":"B88","v":"a. If yes, describe the policies."},null,null,null,{"$f":"D88","v":"N/A"}]
["D4. Are there policies that enable the private sector (commercial sector, NGOs, or social marketing) to provide contraceptive methods?",null,null,null,null,null,null,"Yes",{"$f":"A89","v":"D4. Are there policies that enable the private sector (commercial sector, NGOs, or social marketing) to provide contraceptive methods?"}]
[null,"a. If yes, describe the policies.",null,"National Essential Drug List includes contraceptives",null,null,null,null,null,null,{"$f":"B90","v":"a. If yes, describe the policies."},null,null,null,{"$f":"D90","v":"National Essential Drug List includes contraceptives"}]
["D5. Do policies or regulations exist that restrict who can sell or dispense particular contraceptive methods?\n",null,null,null,null,null,null,"No",{"$f":"A91","v":"D5. Do policies or regulations exist that restrict who can sell or dispense particular contraceptive methods?\n"}]
[null,"Please note any restrictions in the following table."]
[null,"Contraceptive Method(s)",null,null,"Describe any public sector restriction on who is allowed to sell or dispense the method",null,"Describe any private sector restriction on who is allowed to sell or dispense the method",null,null,{"$f":"G93","v":"Describe any private sector restriction on who is allowed to sell or dispense the method"},null,null,null,null,null,{"$f":"B93","v":"Contraceptive Method(s)"},null,null,null,null,{"$f":"E93","v":"Describe any public sector restriction on who is allowed to sell or dispense the method"}]
[null,"a",null,null,null,null,null,null,null,{"$f":"G94","v":0},null,null,{"$f":"E94","v":0},null,null,{"$f":"C94","v":0},null,null,null,null,{"$f":"E94","v":0}]
[null,"b",null,null,null,null,null,null,null,{"$f":"G95","v":0},null,null,{"$f":"E95","v":0},null,null,{"$f":"C95","v":0},null,null,null,null,{"$f":"E95","v":0}]
[null,"c",null,null,null,null,null,null,null,{"$f":"G96","v":0},null,null,{"$f":"E96","v":0},null,null,{"$f":"C96","v":0},null,null,null,null,{"$f":"E96","v":0}]
[null,null,null,null,null,null,null,null,null,null,{"$f":"C97","v":0}]
["D6. Does the country have laws, regulations, or policies that make it difficult for the following sub-populations to access effective family planning services?",null,null,"Y/N","If yes, describe laws/regulations/policies affecting access ",null,null,"Are the rules/policies implemented?",null,null,{"$f":"A98","v":"D6. Does the country have laws, regulations, or policies that make it difficult for the following sub-populations to access effective family planning services?"},null,null,null,null,null,null,null,null,null,null,{"$f":"E98","v":"If yes, describe laws/regulations/policies affecting access "}]
[null,"a. Unmarried people",null,"No",null,null,null,null,null,null,{"$f":"B99","v":"a. Unmarried people"},null,{"$f":"E99","v":0},null,null,null,null,null,null,null,null,{"$f":"E99","v":0}]
[null,"b. Young people",null,"No",null,null,null,null,null,null,{"$f":"B100","v":"b. Young people"},null,{"$f":"E100","v":0},null,null,null,null,null,null,null,null,{"$f":"E100","v":0}]
[null,"c. Other",null,"No",null,null,null,null,null,null,{"$f":"B101","v":"c. Other"},null,{"$f":"E101","v":0},null,null,null,null,null,null,null,null,{"$f":"E101","v":0}]
[null,null,null,null,null,null,null,null,null,null,{"$f":"C102","v":0}]
["D7. Are there charges* to the client in the public sector for family planning:\n*(This question refers to charges by policy, not under-the-table charges.)\n",null,null,null,null,null,null,null,null,null,null,null,null,null,null,null,null,null,null,null,null,null,null,{"$f":"A103","v":"D7. Are there charges* to the client in the public sector for family planning:\n*(This question refers to charges by policy, not under-the-table charges.)\n"}]
[null,"a. Services?",null,null,null,null,"No",null,null,{"$f":"G104","v":"No"},null,null,null,null,null,null,null,null,null,null,null,null,null,null,{"$f":"B104","v":"a. Services?"}]
[null,"b. Commodities?",null,null,null,null,"No",null,null,{"$f":"G105","v":"No"},null,null,null,null,null,null,null,null,null,null,null,null,null,null,{"$f":"B105","v":"b. Commodities?"}]
[null,"c. If yes, are there exemptions for people who cannot afford to pay?",null,null,null,null,"N/A",null,null,{"$f":"G106","v":"N/A"},null,null,null,null,null,null,null,null,null,null,null,null,null,null,{"$f":"B106","v":"c. If yes, are there exemptions for people who cannot afford to pay?"}]
[null,null,"i. If yes, describe the exemptions.","N/A",null,null,null,null,null,null,{"$f":"C107","v":"i. If yes, describe the exemptions."},null,null,null,{"$f":"D107","v":"N/A"}]
["D8. Are the following contraceptives included in the country's National Essential Medicine List (NEML) or other equivalent priority list?",null,null,null,null,null,null,null,null,null,null,null,null,null,null,null,null,null,null,null,null,null,null,{"$f":"A108","v":"D8. Are the following contraceptives included in the country's National Essential Medicine List (NEML) or other equivalent priority list?"}]
[null,"a. Combined oral contraceptives",null,null,null,null,"Yes",null,null,{"$f":"G109","v":"Yes"},null,null,null,null,null,null,null,null,null,null,null,null,null,null,{"$f":"B109","v":"a. Combined oral contraceptives"}]
[null,"b. Progestin-only pills",null,null,null,null,"Don't know",null,null,"Don't know",null,null,null,null,null,null,null,null,null,null,null,null,null,null,"b. Progestin-only pills"]
[null,"c. Hormonal injections",null,null,null,null,"Yes",null,null,"Yes",null,null,null,null,null,null,null,null,null,null,null,null,null,null,"c. Hormonal injections"]
[null,"d. Hormonal implants",null,null,null,null,"No",null,null,"No",null,null,null,null,null,null,null,null,null,null,null,null,null,null,"d. Hormonal implants"]
[null,"e. Intrauterine devices (IUDs)",null,null,null,null,"Yes",null,null,"Yes",null,null,null,null,null,null,null,null,null,null,null,null,null,null,"e. Intrauterine devices (IUDs)"]
[null,"f. Male condoms",null,null,null,null,"Yes",null,null,"Yes",null,null,null,null,null,null,null,null,null,null,null,null,null,null,"f. Male condoms"]
[null,"g. Female condoms",null,null,null,null,"No",null,null,"No",null,null,null,null,null,null,null,null,null,null,null,null,null,null,"g. Female condoms"]
[null,"h. Emergency contraceptive pills",null,null,null,null,"No",null,null,"No",null,null,null,null,null,null,null,null,null,null,null,null,null,null,"h. Emergency contraceptive pills"]
[null,"i. CycleBeads",null,null,null,null,"No",null,null,{"$f":"G117","v":"No"},null,null,null,null,null,null,null,null,null,null,null,null,null,null,{"$f":"B117","v":"i. CycleBeads"}]
[null,"j. Any other contraceptive(s)?",null,null,null,null,"No",null,null,"No",null,null,null,null,null,null,null,null,null,null,null,null,null,null,"j. Any other contraceptive(s)?"]
[null,null,"i. Name of other contraceptive(s) on the list(s)",null,null,"N/A",null,null,null,0,null,null,null,null,null,null,null,{"$f":"B119","v":0}]
["D9. What year(s) is the list(s) from?",null,null,null,null,"2007 (December)",null,null,null,0,null,null,null,null,null,null,null,{"$f":"B120","v":0}]
["D10. Name of the list(s)\n\n\n",null,null,"National Licensed Drug List",null,null,null,null,null,null,{"$f":"A121","v":"D10. Name of the list(s)\n\n\n"},null,null,null,{"$f":"D121","v":"National Licensed Drug List"}]
["D11. Notes about the list(s)\n\n\n",null,null,"Drugs may be added to the list with justification.",null,null,null,null,null,null,{"$f":"A122","v":"D11. Notes about the list(s)\n\n\n"},null,null,null,{"$f":"D122","v":"Drugs may be added to the list with justification."}]
["D12.  Information on country's Poverty Reduction Strategy Paper (PRSP)\n",null,null,null,null,null,null,null,null,null,null,null,null,null,null,null,null,null,null,null,null,null,null,{"$f":"A123","v":"D12.  Information on country's Poverty Reduction Strategy Paper (PRSP)\n"}]
[null,"a. What year is the Poverty Reduction Strategy Paper from? (most recent actual PRSP on IMF's site [not progress or summary report])",null,null,null,2008,null,null,null,{"$f":"G124","v":0},null,null,null,null,null,null,null,{"$f":"B124","v":"a. What year is the Poverty Reduction Strategy Paper from? (most recent actual PRSP on IMF's site [not progress or summary report])"}]
[null,"b. Is family planning or reproductive health a priority in the PRSP?",null,null,null,null,"Yes",null,null,{"$f":"G125","v":"Yes"},null,null,null,null,null,null,null,null,null,null,null,null,null,null,{"$f":"B125","v":"b. Is family planning or reproductive health a priority in the PRSP?"}]
[null,"c. Is contraceptive security included in the PRSP?",null,null,null,null,"No",null,null,{"$f":"G126","v":"No"},null,null,null,null,null,null,null,null,null,null,null,null,null,null,{"$f":"B126","v":"c. Is contraceptive security included in the PRSP?"}]
[null,"d. Is contraceptive prevalence rate (CPR) included as an indicator in the PRSP?",null,null,null,null,"Yes",null,null,{"$f":"G127","v":"Yes"},null,null,null,null,null,null,null,null,null,null,null,null,null,null,{"$f":"B127","v":"d. Is contraceptive prevalence rate (CPR) included as an indicator in the PRSP?"}]
[null,"e. Are contraceptive supply indicators included in the PRSP?",null,null,null,null,"No",null,null,{"$f":"G128","v":"No"},null,null,null,null,null,null,null,null,null,null,null,null,null,null,{"$f":"B128","v":"e. Are contraceptive supply indicators included in the PRSP?"}]
["\n\n\n","f. Notes about the Poverty Reduction Strategy Paper",null,null,null,null,null,null,null,null,{"$f":"B129","v":"f. Notes about the Poverty Reduction Strategy Paper"},null,null,null,{"$f":"D129","v":0}]
["E. Supply Chain (Capacity)"]
["E1. Have stockouts occurred for any contraceptive at the central* level in the last 12 months?  \n*(The central level refers to the central level warehouse for the public sector.)",null,null,null,null,null,"Yes",null,null,{"$f":"G131","v":"Yes"},null,null,null,null,null,null,null,null,null,null,null,null,null,null,{"$f":"A131","v":"E1. Have stockouts occurred for any contraceptive at the central* level in the last 12 months?  \n*(The central level refers to the central level warehouse for the public sector.)"}]
["E2. In the last 12 months, has there ever been a stockout at the central level of any of the contraceptives offered in public sector facilities? (If a method is not intended to be offered in public sector facilities, please indicate that stockouts are not applicable (choose \"N/A\" from the dropdown list).)",null,null,null,null,null,null,null,null,null,null,null,null,null,null,null,null,null,null,null,null,null,null,{"$f":"A132","v":"E2. In the last 12 months, has there ever been a stockout at the central level of any of the contraceptives offered in public sector facilities? (If a method is not intended to be offered in public sector facilities, please indicate that stockouts are not applicable (choose \"N/A\" from the dropdown list).)"}]
[null,"a. Combined oral contraceptives",null,null,null,null,"Yes",null,null,{"$f":"G133","v":"Yes"},null,null,null,null,null,null,null,null,null,null,null,null,null,null,{"$f":"B133","v":"a. Combined oral contraceptives"}]
[null,"b. Progestin-only pills",null,null,null,null,"Yes",null,null,"Yes",null,null,null,null,null,null,null,null,null,null,null,null,null,null,"b. Progestin-only pills"]
[null,"c. Hormonal injections",null,null,null,null,"Yes",null,null,"Yes",null,null,null,null,null,null,null,null,null,null,null,null,null,null,"c. Hormonal injections"]
[null,"d. Hormonal implants",null,null,null,null,"N/A",null,null,"N/A",null,null,null,null,null,null,null,null,null,null,null,null,null,null,"d. Hormonal implants"]
[null,"e. Intrauterine devices (IUDs)",null,null,null,null,"No",null,null,"No",null,null,null,null,null,null,null,null,null,null,null,null,null,null,"e. Intrauterine devices (IUDs)"]
[null,"f. Male condoms",null,null,null,null,"No",null,null,"No",null,null,null,null,null,null,null,null,null,null,null,null,null,null,"f. Male condoms"]
[null,"g. Female condoms",null,null,null,null,"N/A",null,null,"N/A",null,null,null,null,null,null,null,null,null,null,null,null,null,null,"g. Female condoms"]
[null,"h. Emergency contraceptive pills",null,null,null,null,"Yes",null,null,"Yes",null,null,null,null,null,null,null,null,null,null,null,null,null,null,"h. Emergency contraceptive pills"]
[null,"i. CycleBeads",null,null,null,null,"N/A",null,null,"N/A",null,null,null,null,null,null,null,null,null,null,null,null,null,null,"i. CycleBeads"]
[null,"j. Time period\n(mm/yy - mm/yy) (for example, 1/10-12/10) ",null,null,null,null,null,null,null,null,null,null,null,null,null,null,{"$f":"F142","v":0},{"$f":"B142","v":"j. Time period\n(mm/yy - mm/yy) (for example, 1/10-12/10) "}]
[null,"k. Data source\n(for example: Procurement Planning and Monitoring Report, Logistics Management Information System, periodic physical inventory, warehouse reports)",null,null,null,"MOPH letter",null,null,null,null,null,null,null,null,null,null,{"$f":"F143","v":"MOPH letter"},{"$f":"B143","v":"k. Data source\n(for example: Procurement Planning and Monitoring Report, Logistics Management Information System, periodic physical inventory, warehouse reports)"}]
["E3. Are stockouts a large problem in your country at the following levels? (i.e., Are they common or do they tend to last for a long time?)\n\n"]
[null,"a. service delivery point level (i.e., public sector health facilities)",null,null,null,null,"No",null,null,{"$f":"G145","v":"No"},null,null,null,null,null,null,null,null,null,null,null,null,null,null,{"$f":"B145","v":"a. service delivery point level (i.e., public sector health facilities)"}]
[null,"b. central level (i.e., central level warehouse for the public sector)",null,null,null,null,"No",null,null,{"$f":"G146","v":"No"},null,null,null,null,null,null,null,null,null,null,null,null,null,null,{"$f":"B146","v":"b. central level (i.e., central level warehouse for the public sector)"}]
["F. Please note any overall comments about challenges and/or successes with contraceptive security in your country.\n\n",null,null,"There is currently an overstock of Depo-provera at a national level.",null,null,null,null,null,null,{"$f":"A147","v":"F. Please note any overall comments about challenges and/or successes with contraceptive security in your country.\n\n"},null,null,null,{"$f":"D147","v":"There is currently an overstock of Depo-provera at a national level."}]

{"sheet":"Albania 2011","index":6,"n_rows":147,"n_cols":25,"rows_kept":147,"cut":false,"hidden":false,"merged":[[147,0,147,7],[148,0,150,7],[145,1,145,5],[145,6,145,7],[146,0,146,2],[146,3,146,7],[141,1,141,4],[141,5,141,7],[142,1,142,4],[142,5,142,7],[143,0,143,7],[144,1,144,5],[144,6,144,7],[138,1,138,5],[138,6,138,7],[139,1,139,5],[139,6,139,7],[140,1,140,5],[131,0,131,7],[132,1,132,5],[132,6,132,7],[133,1,133,5],[133,6,133,7],[134,1,134,5],[134,6,134,7],[140,6,140,7],[135,1,135,5],[135,6,135,7],[136,1,136,5],[136,6,136,7],[137,1,137,5],[137,6,137,7],[120,0,120,2],[120,3,120,7],[121,0,121,2],[121,3,121,7],[129,0,129,6],[130,0,130,5],[130,6,130,7],[122,0,122,7],[123,1,123,4],[123,5,123,7],[115,1,115,5],[115,6,115,7],[116,1,116,5],[116,6,116,7],[117,1,117,5],[117,6,117,7],[118,2,118,4],[118,5,118,7],[119,0,119,4],[119,5,119,7],[110,1,110,5],[110,6,110,7],[111,1,111,5],[111,6,111,7],[112,1,112,5],[112,6,112,7],[113,1,113,5],[113,6,113,7],[114,1,114,5],[114,6,114,7],[104,1,104,5],[104,6,104,7],[105,1,105,5],[105,6,105,7],[106,3,106,7],[107,0,107,7],[108,1,108,5],[108,6,108,7],[109,1,109,5],[109,6,109,7],[98,1,98,2],[98,4,98,6],[99,1,99,2],[99,4,99,6],[100,1,100,2],[100,4,100,6],[101,0,101,7],[102,0,102,7],[103,1,103,5],[103,6,103,7],[94,2,94,3],[94,4,94,5],[94,6,94,7],[95,2,95,3],[95,4,95,5],[95,6,95,7],[96,0,96,7],[97,0,97,2],[97,4,97,6],[88,0,88,6],[89,1,89,2],[89,3,89,7],[90,0,90,6],[91,1,91,2],[92,1,92,3],[92,4,92,5],[92,6,92,7],[93,2,93,3],[93,4,93,5],[93,6,93,7],[83,0,83,4],[83,5,83,7],[84,1,84,3],[84,4,84,7],[85,1,85,3],[85,4,85,7],[86,0,86,6],[87,1,87,2],[87,3,87,7],[77,0,77,2],[77,3,77,7],[78,0,78,6],[79,0,79,6],[80,0,80,2],[81,0,82,0],[81,1,81,2],[81,3,81,4],[81,6,81,7],[82,3,82,4],[82,6,82,7],[72,1,72,2],[72,3,72,4],[73,1,73,2],[73,3,73,4],[74,1,74,2],[74,3,74,4],[75,1,75,2],[75,3,75,4],[76,1,76,2],[76,3,76,4],[67,1,67,2],[67,3,67,4],[68,1,68,2],[68,3,68,4],[69,1,69,2],[69,3,69,4],[70,1,70,2],[70,3,70,4],[71,1,71,2],[71,3,71,4],[61,0,61,2],[61,3,61,7],[62,0,62,6],[63,0,63,7],[64,0,64,2],[64,3,64,4],[65,1,65,2],[65,3,65,4],[66,1,66,2],[66,3,66,4],[55,0,55,4],[55,6,55,7],[56,0,56,4],[56,6,56,7],[58,0,58,4],[58,5,58,7],[59,1,59,4],[59,5,59,7],[60,2,60,4],[60,5,60,7],[51,1,51,2],[53,0,53,7],[54,0,54,4],[54,6,54,7],[45,0,45,7],[46,1,46,2],[47,1,47,2],[48,3,48,7],[49,1,49,2],[50,1,50,2],[35,0,35,7],[36,0,36,6],[37,0,37,7],[38,1,38,2],[39,1,39,2],[40,3,40,7],[41,1,41,2],[42,3,42,7],[43,1,43,2],[28,0,28,5],[28,6,28,7],[29,0,29,3],[29,6,29,7],[30,0,30,6],[31,0,31,6],[32,0,32,7],[33,1,33,3],[34,1,34,3],[23,0,23,6],[24,0,24,6],[25,0,25,2],[26,0,26,6],[4,0,4,2],[27,0,27,2],[27,3,27,4],[20,1,20,2],[20,5,20,7],[21,1,21,2],[5,0,5,2],[8,0,8,7],[16,1,16,2],[16,5,16,7],[21,5,21,7],[22,1,22,2],[22,5,22,7],[17,1,17,2],[17,5,17,7],[18,1,18,2],[18,5,18,7],[19,1,19,2],[19,5,19,7],[10,0,10,6],[11,0,11,6],[12,1,12,2],[12,3,12,7],[13,0,13,2],[13,3,13,7],[14,1,14,2],[14,5,14,7],[15,1,15,2],[15,5,15,7],[7,0,7,2],[7,3,7,5],[7,6,7,7],[9,0,9,7],[0,0,0,7],[1,0,1,2],[1,3,1,4],[2,0,2,7],[3,3,3,4],[3,5,3,7],[127,1,127,5],[127,6,127,7],[128,1,128,2],[128,3,128,7],[124,1,124,5],[124,6,124,7],[125,1,125,5],[125,6,125,7],[126,1,126,5],[126,6,126,7]]}
[null,null,null,null,null,null,null,null,"Columns I-Y are meant to be hidden. They exist because they allow for the dropdown list options. They also allow for merged cells to autofit properly in terms of row height. This should work if all columns remain at their correct widths.","g-h",null,"a-e merged","E-F merged","e-h","0 times",null,null,"The government (e.g., Central Medical Stores, MOH logistics unit, MOH procurement unit)",null,null,null,null,"Yes","a-h","January"]
[null,null,null,null,null,null,null,null,null,null,"A-c",null,null,null,"1-2 times","b-d merged",null,"Third-party agent (e.g., UNFPA, Crown Agents)","d-e merged","d-f merged","e-f merged","e-g merged","No",null,"February"]
[null,null,null,null,null,null,null,null,null,null,null,null,null,null,"3-5 times",null,null,"The government and a third-party agent",null,null,null,null,null,null,"March"]
[null,null,null,null,null,null,null,null,null,null,null,null,null,null,"6 or more times",null,null,"Other",null,null,null,null,"N/A",null,"April"]
["To jump to the Introduction sheet, click here.",null,null,null,null,null,null,null,null,null,null,null,null,null,null,null,null,null,null,null,null,null,"Don't know",null,"May"]
[null,null,null,null,null,null,null,null,null,null,null,null,null,null,"N/A",null,null,"N/A",null,null,null,null,null,null,"June"]
["Contraceptive Security (CS) Indicators 2011 Data ",null,null,null,null,null,null,null,null,null,null,null,null,null,"Don't know",null,null,"Don't know",null,null,null,null,null,null,"July"]
["Country: Albania",null,null,null,null,null,null,null,null,{"$f":"G8","v":0},{"$f":"A8","v":"Country: Albania"},null,null,null,null,"or c-d",null,null,null,{"$f":"D8","v":0},null,null,null,null,"August"]
["The CS Indicators are presented in the following sections:\n\n               A. leadership & cooordination               B. finance & procurement               C. commodities               D. policies               E. supply chain",null,null,null,null,null,null,null,null,null,null,null,null,null,null,null,null,null,null,null,null,null,null,{"$f":"A9","v":"The CS Indicators are presented in the following sections:\n\n               A. leadership & cooordination               B. finance & procurement               C. commodities               D. policies               E. supply chain"},"September"]
["\nNotes:\n  -  Respondents' answers are indicated in the white spaces. \n  -  N/A = not applicable. Don't know = the respondent either indicated they did not know or left the answer blank.\n  -  Some questions required respondents to choose from a dropdown list of options; in these cases the dropdown arrow will \n     appear when you click on the cell. \n  -  There may be a few inserted comments. (If you cannot already see them, click on Review tab - Comments group - Show All Comments in newer \n       versions of Excel or View - Comments in older versions of Excel.)\n  -  If the answer is cut off, you can either manually adjust the row height or autofit the row height in order to see the whole \n     response. (To autofit the row height, select the answer(s) and go to Home tab - Cells group - Format - Autofit Row Height in newer versions of Excel or \n      Format - Row - Autofit in older versions of Excel.)\n",null,null,null,null,null,null,null,"a-g",null,null,null,null,null,null,null,null,"a-e merged",null,null,null,null,null,{"$f":"A10","v":"\nNotes:\n  -  Respondents' answers are indicated in the white spaces. \n  -  N/A = not applicable. Don't know = the respondent either indicated they did not know or left the answer blank.\n  -  Some questions required respondents to choose from a dropdown list of options; in these cases the dropdown arrow will \n     appear when you click on the cell. \n  -  There may be a few inserted comments. (If you cannot already see them, click on Review tab - Comments group - Show All Comments in newer \n       versions of Excel or View - Comments in older versions of Excel.)\n  -  If the answer is cut off, you can either manually adjust the row height or autofit the row height in order to see the whole \n     response. (To autofit the row height, select the answer(s) and go to Home tab - Cells group - Format - Autofit Row Height in newer versions of Excel or \n      Format - Row - Autofit in older versions of Excel.)\n"},"October"]
["A. Leadership and Coordination",null,null,null,null,null,null,null,null,null,null,null,null,null,null,null,null,null,null,null,null,null,null,null,"November"]
["A1. Is there a national committee that works on contraceptive security? (Please select from the dropdown list.)\n(Committee should have some aspect of contraceptive security as part of its Terms of Reference, even if it is known by a different name, for example: Family Planning, Reproductive Health, Maternal Mortality, Essential Medicine Committee, etc.)  ",null,null,null,null,null,null,"Yes",{"$f":"A12","v":"A1. Is there a national committee that works on contraceptive security? (Please select from the dropdown list.)\n(Committee should have some aspect of contraceptive security as part of its Terms of Reference, even if it is known by a different name, for example: Family Planning, Reproductive Health, Maternal Mortality, Essential Medicine Committee, etc.)  "},null,null,null,null,null,null,null,null,null,null,null,null,null,null,null,"December"]
[null,"a. What is the name of the committee?",null,"Reproductive Health Committee",null,null,null,null,null,null,{"$f":"B13","v":"a. What is the name of the committee?"},{"$f":"D13","v":"Reproductive Health Committee"},null,null,{"$f":"D13","v":"Reproductive Health Committee"}]
["A2. Are the following organizations represented on the committee?",null,null,"(Y/N \ndropdown)",null,null,null,null,null,null,{"$f":"A14","v":"A2. Are the following organizations represented on the committee?"},null,null,null,null,null,null,null,null,null,null,null,null,null,"Don't know"]
[null,"a. Social marketing",null,"Yes","If yes, specify name(s) of organizations","NESMARK",null,null,null,null,{"$f":"B15","v":"a. Social marketing"},null,null,null,null,null,{"$f":"F15","v":"NESMARK"}]
[null,"b. NGO (for example: service delivery, advocacy, Planned Parenthood affiliate, Marie Stopes affiliate, faith-based organizations, etc.)",null,"Yes","If yes, specify name(s) of organizations","Albanian Center for Population and Development (IPPF affiliate)",null,null,null,null,"b. NGO (for example: service delivery, advocacy, Planned Parenthood affiliate, Marie Stopes affiliate, faith-based organizations, etc.)",null,null,null,null,null,"Albanian Center for Population and Development (IPPF affiliate)"]
[null,"c. Commercial sector (for example: pharmacy associations, manufacturers, etc.)",null,"Yes","If yes, specify name(s) of organizations","Bayer Schering, OES Distrimed, Marketing and Distribution",null,null,null,null,"c. Commercial sector (for example: pharmacy associations, manufacturers, etc.)",null,null,null,null,null,"Bayer Schering, OES Distrimed, Marketing and Distribution"]
[null,"d. Donors",null,"Yes","If yes, specify name(s) of donors","UNFPA, USAID, UNICEF",null,null,null,null,"d. Donors",null,null,null,null,null,"UNFPA, USAID, UNICEF"]
[null,"e. UN agencies",null,"Yes","If yes, specify name(s) of agencies","UNFPA, UNICEF",null,null,null,null,"e. UN agencies",null,null,null,null,null,"UNFPA, UNICEF"]
[null,"f. Ministry of Health (for example: logistics, reproductive health, family planning, maternal and child health, HIV/AIDS, pharmacy units, etc.)",null,"Yes","If yes, specify name(s) of units","Reproductive Health Unit, Pharmacy Department ",null,null,null,null,"f. Ministry of Health (for example: logistics, reproductive health, family planning, maternal and child health, HIV/AIDS, pharmacy units, etc.)",null,null,null,null,null,"Reproductive Health Unit, Pharmacy Department "]
[null,"g. Central Medical Store or Central Warehouse",null,"No","If yes, specify",null,null,null,null,null,"g. Central Medical Store or Central Warehouse",null,null,null,null,null,0]
[null,"h. Ministry of Finance or Ministry of Planning ",null,"No","If yes, specify",null,null,null,null,null,"h. Ministry of Finance or Ministry of Planning ",null,null,null,null,null,0]
[null,"i. Other (for example: partners)",null,"Yes","If yes, specify","Ministry of Labour",null,null,null,null,"i. Other (for example: partners)",null,null,null,null,null,"Ministry of Labour"]
["A3. How many times did the committee meet during the last year? (0, 1-2, 3-5, or 6+)  (Please select from the dropdown.)",null,null,null,null,null,null,"Don't know",{"$f":"A24","v":"A3. How many times did the committee meet during the last year? (0, 1-2, 3-5, or 6+)  (Please select from the dropdown.)"}]
["A4. Does the committee have legal status?  (Please select from the dropdown.)                                  ",null,null,null,null,null,null,"Don't know",{"$f":"A25","v":"A4. Does the committee have legal status?  (Please select from the dropdown.)                                  "}]
["A5. Is there a Contraceptive Security \"champion\"? (someone who consistently brings up and advocates for contraceptive supplies)",null,null,"Yes","If yes, specify person's organization","MOH","Specify person's job title","Minister of Health",null,null,{"$f":"A26","v":"A5. Is there a Contraceptive Security \"champion\"? (someone who consistently brings up and advocates for contraceptive supplies)"}]
["B. Finance and Procurement (Capital)"]
["B1. What is the timeline of the country's fiscal year?",null,null,"Beginning month",null,"January","Ending month","December",null,null,{"$f":"B28","v":0}]
["B2. What was the estimated dollar value of contraceptives needed to be procured for the public sector for the most recent complete fiscal year? (in USD currency)\n(for example, to cover the needs for the '09-'10 fiscal year)",null,null,null,null,null,67000,null,null,{"$f":"G29","v":67000},null,null,{"$f":"E29","v":0},null,null,null,null,null,null,null,null,null,null,null,{"$f":"A29","v":"B2. What was the estimated dollar value of contraceptives needed to be procured for the public sector for the most recent complete fiscal year? (in USD currency)\n(for example, to cover the needs for the '09-'10 fiscal year)"}]
["B3. When was the last forecast/quantification conducted? (mm/yy)",null,null,null,"Beginning of the year (every year)","Who conducted it? (Specify organization.)","LMIS Coordinator",null,null,{"$f":"G30","v":"LMIS Coordinator"},null,null,{"$f":"E30","v":"Beginning of the year (every year)"},null,null,null,null,null,null,null,null,null,null,null,{"$f":"A30","v":"B3. When was the last forecast/quantification conducted? (mm/yy)"}]
["B4. Is there a government budget line item for the procurement of contraceptives?  (Please select from the dropdown list.)",null,null,null,null,null,null,"Don't know",{"$f":"A31","v":"B4. Is there a government budget line item for the procurement of contraceptives?  (Please select from the dropdown list.)"}]
["B5. Were government funds allocated for contraceptive procurement for the public sector in the most recent complete fiscal year? (This question refers to funds planned to be spent on contraceptives, whether or not they ended up being spent.) \n\n(Government funds include internally generated funds, basket funds, World Bank credits or loans, and other funds donors gave to the government for their use.) \n",null,null,null,null,null,null,"Yes",{"$f":"A32","v":"B5. Were government funds allocated for contraceptive procurement for the public sector in the most recent complete fiscal year? (This question refers to funds planned to be spent on contraceptives, whether or not they ended up being spent.) \n\n(Government funds include internally generated funds, basket funds, World Bank credits or loans, and other funds donors gave to the government for their use.) \n"}]
["B6. Please complete the table below regarding government allocations for contraceptive procurement.",null,null,null,null,null,null,null,null,null,null,null,null,null,null,null,null,null,null,null,null,null,null,{"$f":"A33","v":"B6. Please complete the table below regarding government allocations for contraceptive procurement."}]
[null,null,null,null,"Amount allocated \n(in USD)","Time period during which allocations were supposed to be spent \n(mm/yy-mm/yy)\n(should ideally be the most recent\ncomplete fiscal year ['09-'10])","Data source \n(for example: Ministry records)","Comments",null,null,{"$f":"A34","v":0}]
[null,"Government funds allocated for contraceptive procurement\n(funds originally designated for contraceptives, whether or not they ended up being spent on them)",null,null,"Don't know","01/10-12/10","Institute of Public Health Records ","Ministry of Health covered 100% of the budget for contraceptive procurement for the public sector for 2010",null,null,{"$f":"#REF!","v":{"$error":"#REF!"}}]
[]
["B7. Were government funds spent on contraceptive procurement for the public sector in the most recent complete fiscal year? \n(Government funds include internally generated funds, basket funds, World Bank credits or loans, and other funds donors gave to the government for their use.)",null,null,null,null,null,null,"Yes",{"$f":"A37","v":"B7. Were government funds spent on contraceptive procurement for the public sector in the most recent complete fiscal year? \n(Government funds include internally generated funds, basket funds, World Bank credits or loans, and other funds donors gave to the government for their use.)"}]
["B8. Please complete the table below to indicate government expenditures on contraceptive procurement, by source, in the most recent complete fiscal year. \n(This is how much was spent on contraceptive procurement (not what was allocated). How much of this spending was provided from each source?)",null,null,null,null,null,null,null,null,null,null,null,null,null,null,null,null,null,null,null,null,null,null,{"$f":"A38","v":"B8. Please complete the table below to indicate government expenditures on contraceptive procurement, by source, in the most recent complete fiscal year. \n(This is how much was spent on contraceptive procurement (not what was allocated). How much of this spending was provided from each source?)"}]
[null,"Source of government funds spent on contraceptive procurement for the public sector",null,"Was this source used?\n(Y/N)","Amount spent \n(in USD)","Time period (mm/yy-mm/yy)\n(should be the same for all sources of funds & ideally be the most recent\ncomplete fiscal year ['09-'10])","Data source \n(for example: Contraceptive Procurement Table, PipeLine, etc.)","Comments",null,null,{"$f":"A39","v":0}]
[null,"a. Internally generated funds spent on contraceptive procurement",null,"Yes",67000,"01/10-12/10",null,null,null,null,{"$f":"B40","v":"a. Internally generated funds spent on contraceptive procurement"}]
[null,null,"i. Specify source(s) of internally generated funds spent (for example, from taxes or user fees)",null,null,null,null,null,null,null,{"$f":"C41","v":"i. Specify source(s) of internally generated funds spent (for example, from taxes or user fees)"},null,null,null,{"$f":"D41","v":0}]
[null,"b. Total of all other government funds spent on contraceptive procurement (basket funds, World Bank credits or loans, and other funds donors gave to the government [e.g., direct budget support])",null,"No",0,"01/10-12/10",null,null,null,null,{"$f":"B42","v":"b. Total of all other government funds spent on contraceptive procurement (basket funds, World Bank credits or loans, and other funds donors gave to the government [e.g., direct budget support])"}]
[null,null,"i. Specify source(s) of other government funds spent (for example: basket funding or specific donor)","N/A",null,null,null,null,null,null,{"$f":"C43","v":"i. Specify source(s) of other government funds spent (for example: basket funding or specific donor)"},null,null,null,{"$f":"D43","v":"N/A"}]
[null,"c. TOTAL government funds spent on contraceptive procurement\nThis will auto-calculate.  (It will sum a & b above.)",null,null,{"$f":"E40+E42","v":67000},null,null,null,null,null,{"$f":"B44","v":"c. TOTAL government funds spent on contraceptive procurement\nThis will auto-calculate.  (It will sum a & b above.)"}]
[null,null,null,null,null,null,null,null,null,null,{"$f":"A45","v":0}]
["B9. Please complete the table below to indicate donor expenditures on contraceptive procurement in the most recent complete fiscal year.\n",null,null,null,null,null,null,null,null,null,null,null,null,null,null,null,null,null,null,null,null,null,null,{"$f":"A46","v":"B9. Please complete the table below to indicate donor expenditures on contraceptive procurement in the most recent complete fiscal year.\n"}]
["\n","Source of donations and donor funds spent on contraceptive procurement for the public sector",null,"Was this a source?\n(Y/N)","Amount of money spent on these procurements \n(in USD)","Time period (mm/yy-mm/yy)\n(should be the same for all sources of funds & ideally be the most recent\ncomplete fiscal year ['09-'10])","Data source \n(for example:  Donor records, Contraceptive Procurement Table, PipeLine, RHInterchange, etc.","Comments",null,null,{"$f":"A47","v":"\n"}]
[null,"a. In-kind donations of contraceptives",null,"No",0,"01/10-12/10",null,null,null,null,{"$f":"B48","v":"a. In-kind donations of contraceptives"}]
[null,null,"i. Specify source(s) of in-kind donations ","N/A",null,null,null,null,null,null,{"$f":"C49","v":"i. Specify source(s) of in-kind donations "},null,null,null,{"$f":"D49","v":"N/A"}]
[null,"b. Global Fund donations used to procure condoms",null,"No",0,"01/10-12/10","RHInterchange",null,null,null,{"$f":"B50","v":"b. Global Fund donations used to procure condoms"}]
[null,"c. Global Fund donations used to procure contraceptives besides condoms",null,"No",0,"01/10-12/10",null,null,null,null,{"$f":"B51","v":"c. Global Fund donations used to procure contraceptives besides condoms"}]
[null,"d. TOTAL value of in-kind donations and Global Fund donations spent on contraceptive procurement\nThis will auto-calculate.  (It will sum a-c above.)",null,null,{"$f":"E48+E50+E51","v":0},null,null,null,null,null,{"$f":"B52","v":"d. TOTAL value of in-kind donations and Global Fund donations spent on contraceptive procurement\nThis will auto-calculate.  (It will sum a-c above.)"}]
[null,null,null,null,null,null,null,null,null,null,{"$f":"A53","v":0}]
["The answers to B10 and B11 should calculate automatically based on the information you provided. Please review the answers to ensure they make sense to you, and if you have additional information to add, please note it in the comments boxes.\n\nIf the answers do not calculate automatically, please provide any relevant information you may have in the comments boxes.\n",null,null,null,null,null,null,null,null,null,null,null,null,null,null,null,null,null,null,null,null,null,null,{"$f":"A54","v":"The answers to B10 and B11 should calculate automatically based on the information you provided. Please review the answers to ensure they make sense to you, and if you have additional information to add, please note it in the comments boxes.\n\nIf the answers do not calculate automatically, please provide any relevant information you may have in the comments boxes.\n"}]
["B10. Government share of funds spent on contraceptive procurement for the public sector - \nOf the total amount spent on contraceptives for the public sector in the most recent complete fiscal year (including government and donor funds), what percent was covered by government funds (including internally generated funds, basket funds, World Bank credits or loans, and other funds given to the government)? \n\nThis will auto-calculate. (It contains the following formula: Total government spending (Question B8c) / Grand total of all spending for public sector contraceptives from the government and donors (Questions B8c+B9d))",null,null,null,null,{"$f":"E44/(E44+E52)","v":1},"100% government share",null,null,{"$f":"G55","v":"100% government share"},null,null,null,null,null,null,null,{"$f":"A55","v":"B10. Government share of funds spent on contraceptive procurement for the public sector - \nOf the total amount spent on contraceptives for the public sector in the most recent complete fiscal year (including government and donor funds), what percent was covered by government funds (including internally generated funds, basket funds, World Bank credits or loans, and other funds given to the government)? \n\nThis will auto-calculate. (It contains the following formula: Total government spending (Question B8c) / Grand total of all spending for public sector contraceptives from the government and donors (Questions B8c+B9d))"}]
["B11. Total expenditures on public sector contraceptives as percent of amount that needed to be procured -\nOf the estimated value of the contraceptives needed to be procured for the public sector for the most recent complete fiscal year, what percent was provided by any source (whether government or donor)? \n\nThis will auto-calculate. (It contains the following formula: Grand total of all spending for public sector contraceptives from the government and donors (Questions B8c+B9d) / Value of estimated need for procurement (Question B2))",null,null,null,null,{"$f":"(E44+E52)/G29","v":1},"100%\n",null,null,{"$f":"G56","v":"100%\n"},null,null,null,null,null,null,null,{"$f":"A56","v":"B11. Total expenditures on public sector contraceptives as percent of amount that needed to be procured -\nOf the estimated value of the contraceptives needed to be procured for the public sector for the most recent complete fiscal year, what percent was provided by any source (whether government or donor)? \n\nThis will auto-calculate. (It contains the following formula: Grand total of all spending for public sector contraceptives from the government and donors (Questions B8c+B9d) / Value of estimated need for procurement (Question B2))"}]
["B12. If B11 did not calculate automatically, please answer the following question:\nWas there a funding gap for the public sector in the last complete fiscal year (e.g., 09-'10 fiscal year)?\n(Please select from the dropdown list.)",null,null,null,null,"No",null,null,null,{"$f":"G57","v":0},null,null,null,null,null,null,null,{"$f":"A57","v":"B12. If B11 did not calculate automatically, please answer the following question:\nWas there a funding gap for the public sector in the last complete fiscal year (e.g., 09-'10 fiscal year)?\n(Please select from the dropdown list.)"}]
[null,null,null,null,null,null,null,null,null,null,{"$f":"A58","v":0}]
["B13. If the government financed any contraceptive procurement in the most recent complete fiscal year, which entity conducted the procurement(s)? (Please select from the dropdown.)",null,null,null,null,"Third-party agent (e.g., UNFPA, Crown Agents)",null,null,null,null,null,null,null,null,null,null,{"$f":"F59","v":"Third-party agent (e.g., UNFPA, Crown Agents)"},{"$f":"A59","v":"B13. If the government financed any contraceptive procurement in the most recent complete fiscal year, which entity conducted the procurement(s)? (Please select from the dropdown.)"}]
[null,"a. Specify entity",null,null,null,"UNFPA",null,null,null,null,null,null,{"$f":"E60","v":0},null,null,null,{"$f":"F60","v":"UNFPA"},{"$f":"B60","v":"a. Specify entity"}]
[null,null,"i. Is this a parastatal?",null,null,"No",null,null,null,null,null,null,null,null,null,null,{"$f":"F61","v":"No"},{"$f":"C61","v":"i. Is this a parastatal?"}]
["B14. Please note any additional comments about finance and procurement.\n",null,null,null,null,null,null,null,null,null,{"$f":"A62","v":"B14. Please note any additional comments about finance and procurement.\n"},null,null,null,{"$f":"D62","v":0}]
["C. Commodities"]
["C1. Are the following contraceptive methods offered through the commercial sector, public sector, NGOs, or social marketing? (Please indicate which methods are intended to be offered. This question is not asking whether the method is in stock.) \n(Please select from the dropdown list.)",null,null,null,null,null,null,null,null,null,null,null,null,null,null,null,null,null,null,null,null,null,null,{"$f":"A64","v":"C1. Are the following contraceptive methods offered through the commercial sector, public sector, NGOs, or social marketing? (Please indicate which methods are intended to be offered. This question is not asking whether the method is in stock.) \n(Please select from the dropdown list.)"}]
["Contraceptive Method",null,null,"Commercial Sector",null,"Public Sector","NGO","Social Marketing",null,null,{"$f":"A65","v":"Contraceptive Method"}]
[null,"a. Combined oral contraceptives (estrogen + progestin - for  example, LoFemenol, Microgynon)",null,"Yes",null,"Yes","No","No",null,null,{"$f":"B66","v":"a. Combined oral contraceptives (estrogen + progestin - for  example, LoFemenol, Microgynon)"}]
[null,"b. Progestin-only pills (for example, Ovrette, Microlut)",null,"Yes",null,"Yes","No","Yes",null,null,{"$f":"B67","v":"b. Progestin-only pills (for example, Ovrette, Microlut)"}]
[null,"c. Hormonal injections (for example, DepoProvera, Noristerat)",null,"Yes",null,"Yes","No","No",null,null,"c. Hormonal injections (for example, DepoProvera, Noristerat)"]
[null,"d. Hormonal implants (for example, Jadelle, Implanon)",null,"No",null,"No","No","No",null,null,"d. Hormonal implants (for example, Jadelle, Implanon)"]
[null,"e. Intrauterine devices (IUDs) (for example, Optima Copper T)",null,"Yes",null,"Yes","No","No",null,null,"e. Intrauterine devices (IUDs) (for example, Optima Copper T)"]
[null,"f. Male condoms",null,"Yes",null,"Yes","Yes","Yes",null,null,"f. Male condoms"]
[null,"g. Female condoms",null,"No",null,"No","No","No",null,null,"g. Female condoms"]
[null,"h. Emergency contraceptive pills (for example, Postinor)",null,"Don't know",null,"Don't know","Don't know","Don't know",null,null,"h. Emergency contraceptive pills (for example, Postinor)"]
[null,"i. Long-acting permanent method for males (vasectomy)",null,"No",null,"Yes","No","No",null,null,"i. Long-acting permanent method for males (vasectomy)"]
[null,"j. Long-acting permanent method for females (tubal ligation)",null,"No",null,"Yes","No","No",null,null,"j. Long-acting permanent method for females (tubal ligation)"]
[null,"k. CycleBeads",null,"No",null,"No","No","No",null,null,"k. CycleBeads"]
[null,"l. Other contraceptive methods - specify \n(Please provide the name of the other contraceptive(s) offered, by sector.)",null,null,null,null,null,null,null,null,"l. Other contraceptive methods - specify \n(Please provide the name of the other contraceptive(s) offered, by sector.)"]
["C2. Please note any comments about the commodities offered.",null,null,null,null,null,null,null,null,null,{"$f":"A78","v":"C2. Please note any comments about the commodities offered."},null,null,null,{"$f":"D78","v":0}]
["D. Policies (Commitment)"]
["D1. Is there a contraceptive security or reproductive health commodity security strategy or is contraceptive security explicitly included in a country strategy? (Please select from the dropdown list.)",null,null,null,null,null,null,"Yes",{"$f":"A80","v":"D1. Is there a contraceptive security or reproductive health commodity security strategy or is contraceptive security explicitly included in a country strategy? (Please select from the dropdown list.)"}]
["IF NO, SKIP TO QUESTION D2."]
[null,"Strategy name",null,"Years Covered (including strategy updates)",null,"Is the strategy formally approved by the Ministry?","Is the contraceptive security strategy being implemented?",null,null,{"$f":"G82","v":"Is the contraceptive security strategy being implemented?"},{"$f":"B82","v":"Strategy name"},null,{"$f":"E82","v":0},null,null,null,null,null,{"$f":"D82","v":"Years Covered (including strategy updates)"}]
[null,"a","Albania Contraceptive Strategy","2003-2010",null,"Yes","Yes",null,null,{"$f":"G83","v":"Yes"},{"$f":"B83","v":"a"},null,{"$f":"E83","v":0},null,null,null,null,null,{"$f":"D83","v":"2003-2010"}]
["D2. Are any family planning commodities subject to duties, import taxes, or other fees?",null,null,null,null,"Yes",null,null,null,null,null,null,null,null,null,null,{"$f":"F84","v":"Yes"},{"$f":"A84","v":"D2. Are any family planning commodities subject to duties, import taxes, or other fees?"}]
[null,"a. If yes, for which sectors (public, NGO, social marketing, commercial)?",null,null,"Social marketing and commercial sector",null,null,null,null,null,null,null,{"$f":"E85","v":"Social marketing and commercial sector"},{"$f":"E85","v":"Social marketing and commercial sector"},null,null,null,{"$f":"B85","v":"a. If yes, for which sectors (public, NGO, social marketing, commercial)?"}]
[null,"b. If yes, how much are the duties, taxes, or fees?",null,null,"VAT (for condoms, IUD are 20%), Custom tax is 2% for all methods)",null,null,null,null,null,null,null,null,{"$f":"E86","v":"VAT (for condoms, IUD are 20%), Custom tax is 2% for all methods)"},null,null,null,{"$f":"B86","v":"b. If yes, how much are the duties, taxes, or fees?"}]
["D3. Are there policies that hinder the ability of the private sector (commercial sector, NGOs, or social marketing) to provide contraceptive methods (for example: price controls, distribution limitations, taxes/duties, advertising bans, etc.)?",null,null,null,null,null,null,"Yes",{"$f":"A87","v":"D3. Are there policies that hinder the ability of the private sector (commercial sector, NGOs, or social marketing) to provide contraceptive methods (for example: price controls, distribution limitations, taxes/duties, advertising bans, etc.)?"}]
[null,"a. If yes, describe the policies.",null,"Price control, VAT (for condoms and IUDs) and custom tax (for all methods) for commercial sector and NGOs",null,null,null,null,null,null,{"$f":"B88","v":"a. If yes, describe the policies."},null,null,null,{"$f":"D88","v":"Price control, VAT (for condoms and IUDs) and custom tax (for all methods) for commercial sector and NGOs"}]
["D4. Are there policies that enable the private sector (commercial sector, NGOs, or social marketing) to provide contraceptive methods?",null,null,null,null,null,null,"Yes",{"$f":"A89","v":"D4. Are there policies that enable the private sector (commercial sector, NGOs, or social marketing) to provide contraceptive methods?"}]
[null,"a. If yes, describe the policies.",null,null,null,null,null,null,null,null,{"$f":"B90","v":"a. If yes, describe the policies."},null,null,null,{"$f":"D90","v":0}]
["D5. Do policies or regulations exist that restrict who can sell or dispense particular contraceptive methods?\n",null,null,null,null,null,null,"Yes",{"$f":"A91","v":"D5. Do policies or regulations exist that restrict who can sell or dispense particular contraceptive methods?\n"}]
[null,"Please note any restrictions in the following table."]
[null,"Contraceptive Method(s)",null,null,"Describe any public sector restriction on who is allowed to sell or dispense the method",null,"Describe any private sector restriction on who is allowed to sell or dispense the method",null,null,{"$f":"G93","v":"Describe any private sector restriction on who is allowed to sell or dispense the method"},null,null,null,null,null,{"$f":"B93","v":"Contraceptive Method(s)"},null,null,null,null,{"$f":"E93","v":"Describe any public sector restriction on who is allowed to sell or dispense the method"}]
[null,"a","IUDs",null,"Only Ob-Gyns ",null,"Drugstore",null,null,{"$f":"G94","v":"Drugstore"},null,null,{"$f":"E94","v":"Only Ob-Gyns "},null,null,{"$f":"C94","v":"IUDs"},null,null,null,null,{"$f":"E94","v":"Only Ob-Gyns "}]
[null,"b","Orals and injections",null,null,null,"Drugstore",null,null,{"$f":"G95","v":"Drugstore"},null,null,{"$f":"E95","v":0},null,null,{"$f":"C95","v":"Orals and injections"},null,null,null,null,{"$f":"E95","v":0}]
[null,"c",null,null,null,null,null,null,null,{"$f":"G96","v":0},null,null,{"$f":"E96","v":0},null,null,{"$f":"C96","v":0},null,null,null,null,{"$f":"E96","v":0}]
[null,null,null,null,null,null,null,null,null,null,{"$f":"C97","v":0}]
["D6. Does the country have laws, regulations, or policies that make it difficult for the following sub-populations to access effective family planning services?",null,null,"Y/N","If yes, describe laws/regulations/policies affecting access ",null,null,"Are the rules/policies implemented?",null,null,{"$f":"A98","v":"D6. Does the country have laws, regulations, or policies that make it difficult for the following sub-populations to access effective family planning services?"},null,null,null,null,null,null,null,null,null,null,{"$f":"E98","v":"If yes, describe laws/regulations/policies affecting access "}]
[null,"a. Unmarried people",null,"No",null,null,null,null,null,null,{"$f":"B99","v":"a. Unmarried people"},null,{"$f":"E99","v":0},null,null,null,null,null,null,null,null,{"$f":"E99","v":0}]
[null,"b. Young people",null,"No",null,null,null,null,null,null,{"$f":"B100","v":"b. Young people"},null,{"$f":"E100","v":0},null,null,null,null,null,null,null,null,{"$f":"E100","v":0}]
[null,"c. Other",null,"No",null,null,null,null,null,null,{"$f":"B101","v":"c. Other"},null,{"$f":"E101","v":0},null,null,null,null,null,null,null,null,{"$f":"E101","v":0}]
[null,null,null,null,null,null,null,null,null,null,{"$f":"C102","v":0}]
["D7. Are there charges* to the client in the public sector for family planning:\n*(This question refers to charges by policy, not under-the-table charges.)\n",null,null,null,null,null,null,null,null,null,null,null,null,null,null,null,null,null,null,null,null,null,null,{"$f":"A103","v":"D7. Are there charges* to the client in the public sector for family planning:\n*(This question refers to charges by policy, not under-the-table charges.)\n"}]
[null,"a. Services?",null,null,null,null,"No",null,null,{"$f":"G104","v":"No"},null,null,null,null,null,null,null,null,null,null,null,null,null,null,{"$f":"B104","v":"a. Services?"}]
[null,"b. Commodities?",null,null,null,null,"No",null,null,{"$f":"G105","v":"No"},null,null,null,null,null,null,null,null,null,null,null,null,null,null,{"$f":"B105","v":"b. Commodities?"}]
[null,"c. If yes, are there exemptions for people who cannot afford to pay?",null,null,null,null,"N/A",null,null,{"$f":"G106","v":"N/A"},null,null,null,null,null,null,null,null,null,null,null,null,null,null,{"$f":"B106","v":"c. If yes, are there exemptions for people who cannot afford to pay?"}]
[null,null,"i. If yes, describe the exemptions.","N/A",null,null,null,null,null,null,{"$f":"C107","v":"i. If yes, describe the exemptions."},null,null,null,{"$f":"D107","v":"N/A"}]
["D8. Are the following contraceptives included in the country's National Essential Medicine List (NEML) or other equivalent priority list?",null,null,null,null,null,null,null,null,null,null,null,null,null,null,null,null,null,null,null,null,null,null,{"$f":"A108","v":"D8. Are the following contraceptives included in the country's National Essential Medicine List (NEML) or other equivalent priority list?"}]
[null,"a. Combined oral contraceptives",null,null,null,null,"Yes",null,null,{"$f":"G109","v":"Yes"},null,null,null,null,null,null,null,null,null,null,null,null,null,null,{"$f":"B109","v":"a. Combined oral contraceptives"}]
[null,"b. Progestin-only pills",null,null,null,null,"Yes",null,null,"Yes",null,null,null,null,null,null,null,null,null,null,null,null,null,null,"b. Progestin-only pills"]
[null,"c. Hormonal injections",null,null,null,null,"Yes",null,null,"Yes",null,null,null,null,null,null,null,null,null,null,null,null,null,null,"c. Hormonal injections"]
[null,"d. Hormonal implants",null,null,null,null,"No",null,null,"No",null,null,null,null,null,null,null,null,null,null,null,null,null,null,"d. Hormonal implants"]
[null,"e. Intrauterine devices (IUDs)",null,null,null,null,"Yes",null,null,"Yes",null,null,null,null,null,null,null,null,null,null,null,null,null,null,"e. Intrauterine devices (IUDs)"]
[null,"f. Male condoms",null,null,null,null,"Yes",null,null,"Yes",null,null,null,null,null,null,null,null,null,null,null,null,null,null,"f. Male condoms"]
[null,"g. Female condoms",null,null,null,null,"No",null,null,"No",null,null,null,null,null,null,null,null,null,null,null,null,null,null,"g. Female condoms"]
[null,"h. Emergency contraceptive pills",null,null,null,null,"Yes",null,null,"Yes",null,null,null,null,null,null,null,null,null,null,null,null,null,null,"h. Emergency contraceptive pills"]
[null,"i. CycleBeads",null,null,null,null,"No",null,null,{"$f":"G117","v":"No"},null,null,null,null,null,null,null,null,null,null,null,null,null,null,{"$f":"B117","v":"i. CycleBeads"}]
[null,"j. Any other contraceptive(s)?",null,null,null,null,"Don't know",null,null,"Don't know",null,null,null,null,null,null,null,null,null,null,null,null,null,null,"j. Any other contraceptive(s)?"]
[null,null,"i. Name of other contraceptive(s) on the list(s)",null,null,"Don't know",null,null,null,0,null,null,null,null,null,null,null,{"$f":"B119","v":0}]
["D9. What year(s) is the list(s) from?",null,null,null,null,"2004-2011",null,null,null,0,null,null,null,null,null,null,null,{"$f":"B120","v":0}]
["D10. Name of the list(s)\n\n\n",null,null,"Lista me cmimet e barnave te regjistruara per vitin ",null,null,null,null,null,null,{"$f":"A121","v":"D10. Name of the list(s)\n\n\n"},null,null,null,{"$f":"D121","v":"Lista me cmimet e barnave te regjistruara per vitin "}]
["D11. Notes about the list(s)\n\n\n",null,null,"The list can be found at  http://www.moh.gov.al/",null,null,null,null,null,null,{"$f":"A122","v":"D11. Notes about the list(s)\n\n\n"},null,null,null,{"$f":"D122","v":"The list can be found at  http://www.moh.gov.al/"}]
["D12.  Information on country's Poverty Reduction Strategy Paper (PRSP)\n",null,null,null,null,null,null,null,null,null,null,null,null,null,null,null,null,null,null,null,null,null,null,{"$f":"A123","v":"D12.  Information on country's Poverty Reduction Strategy Paper (PRSP)\n"}]
[null,"a. What year is the Poverty Reduction Strategy Paper from? (most recent actual PRSP on IMF's site [not progress or summary report])",null,null,null,2008,null,null,null,{"$f":"G124","v":0},null,null,null,null,null,null,null,{"$f":"B124","v":"a. What year is the Poverty Reduction Strategy Paper from? (most recent actual PRSP on IMF's site [not progress or summary report])"}]
[null,"b. Is family planning or reproductive health a priority in the PRSP?",null,null,null,null,"No",null,null,{"$f":"G125","v":"No"},null,null,null,null,null,null,null,null,null,null,null,null,null,null,{"$f":"B125","v":"b. Is family planning or reproductive health a priority in the PRSP?"}]
[null,"c. Is contraceptive security included in the PRSP?",null,null,null,null,"No",null,null,{"$f":"G126","v":"No"},null,null,null,null,null,null,null,null,null,null,null,null,null,null,{"$f":"B126","v":"c. Is contraceptive security included in the PRSP?"}]
[null,"d. Is contraceptive prevalence rate (CPR) included as an indicator in the PRSP?",null,null,null,null,"No",null,null,{"$f":"G127","v":"No"},null,null,null,null,null,null,null,null,null,null,null,null,null,null,{"$f":"B127","v":"d. Is contraceptive prevalence rate (CPR) included as an indicator in the PRSP?"}]
[null,"e. Are contraceptive supply indicators included in the PRSP?",null,null,null,null,"No",null,null,{"$f":"G128","v":"No"},null,null,null,null,null,null,null,null,null,null,null,null,null,null,{"$f":"B128","v":"e. Are contraceptive supply indicators included in the PRSP?"}]
["\n\n\n","f. Notes about the Poverty Reduction Strategy Paper",null,null,null,null,null,null,null,null,{"$f":"B129","v":"f. Notes about the Poverty Reduction Strategy Paper"},null,null,null,{"$f":"D129","v":0}]
["E. Supply Chain (Capacity)"]
["E1. Have stockouts occurred for any contraceptive at the central* level in the last 12 months?  \n*(The central level refers to the central level warehouse for the public sector.)",null,null,null,null,null,"Yes",null,null,{"$f":"G131","v":"Yes"},null,null,null,null,null,null,null,null,null,null,null,null,null,null,{"$f":"A131","v":"E1. Have stockouts occurred for any contraceptive at the central* level in the last 12 months?  \n*(The central level refers to the central level warehouse for the public sector.)"}]
["E2. In the last 12 months, has there ever been a stockout at the central level of any of the contraceptives offered in public sector facilities? (If a method is not intended to be offered in public sector facilities, please indicate that stockouts are not applicable (choose \"N/A\" from the dropdown list).)",null,null,null,null,null,null,null,null,null,null,null,null,null,null,null,null,null,null,null,null,null,null,{"$f":"A132","v":"E2. In the last 12 months, has there ever been a stockout at the central level of any of the contraceptives offered in public sector facilities? (If a method is not intended to be offered in public sector facilities, please indicate that stockouts are not applicable (choose \"N/A\" from the dropdown list).)"}]
[null,"a. Combined oral contraceptives",null,null,null,null,"No",null,null,{"$f":"G133","v":"No"},null,null,null,null,null,null,null,null,null,null,null,null,null,null,{"$f":"B133","v":"a. Combined oral contraceptives"}]
[null,"b. Progestin-only pills",null,null,null,null,"No",null,null,"No",null,null,null,null,null,null,null,null,null,null,null,null,null,null,"b. Progestin-only pills"]
[null,"c. Hormonal injections",null,null,null,null,"No",null,null,"No",null,null,null,null,null,null,null,null,null,null,null,null,null,null,"c. Hormonal injections"]
[null,"d. Hormonal implants",null,null,null,null,"N/A",null,null,"N/A",null,null,null,null,null,null,null,null,null,null,null,null,null,null,"d. Hormonal implants"]
[null,"e. Intrauterine devices (IUDs)",null,null,null,null,"Yes",null,null,"Yes",null,null,null,null,null,null,null,null,null,null,null,null,null,null,"e. Intrauterine devices (IUDs)"]
[null,"f. Male condoms",null,null,null,null,"Yes",null,null,"Yes",null,null,null,null,null,null,null,null,null,null,null,null,null,null,"f. Male condoms"]
[null,"g. Female condoms",null,null,null,null,"N/A",null,null,"N/A",null,null,null,null,null,null,null,null,null,null,null,null,null,null,"g. Female condoms"]
[null,"h. Emergency contraceptive pills",null,null,null,null,"N/A",null,null,"N/A",null,null,null,null,null,null,null,null,null,null,null,null,null,null,"h. Emergency contraceptive pills"]
[null,"i. CycleBeads",null,null,null,null,"N/A",null,null,"N/A",null,null,null,null,null,null,null,null,null,null,null,null,null,null,"i. CycleBeads"]
[null,"j. Time period\n(mm/yy - mm/yy) (for example, 1/10-12/10) ",null,null,null,null,null,null,null,null,null,null,null,null,null,null,{"$f":"F142","v":0},{"$f":"B142","v":"j. Time period\n(mm/yy - mm/yy) (for example, 1/10-12/10) "}]
[null,"k. Data source\n(for example: Procurement Planning and Monitoring Report, Logistics Management Information System, periodic physical inventory, warehouse reports)",null,null,null,"LMIS",null,null,null,null,null,null,null,null,null,null,{"$f":"F143","v":"LMIS"},{"$f":"B143","v":"k. Data source\n(for example: Procurement Planning and Monitoring Report, Logistics Management Information System, periodic physical inventory, warehouse reports)"}]
["E3. Are stockouts a large problem in your country at the following levels? (i.e., Are they common or do they tend to last for a long time?)\n\n"]
[null,"a. service delivery point level (i.e., public sector health facilities)",null,null,null,null,"No",null,null,{"$f":"G145","v":"No"},null,null,null,null,null,null,null,null,null,null,null,null,null,null,{"$f":"B145","v":"a. service delivery point level (i.e., public sector health facilities)"}]
[null,"b. central level (i.e., central level warehouse for the public sector)",null,null,null,null,"No",null,null,{"$f":"G146","v":"No"},null,null,null,null,null,null,null,null,null,null,null,null,null,null,{"$f":"B146","v":"b. central level (i.e., central level warehouse for the public sector)"}]
["F. Please note any overall comments about challenges and/or successes with contraceptive security in your country.\n\n",null,null,"The Albania government is in the process of revising the CS Strategy with UNFPA support.",null,null,null,null,null,null,{"$f":"A147","v":"F. Please note any overall comments about challenges and/or successes with contraceptive security in your country.\n\n"},null,null,null,{"$f":"D147","v":"The Albania government is in the process of revising the CS Strategy with UNFPA support."}]

{"sheet":"Armenia 2011","index":7,"n_rows":147,"n_cols":25,"rows_kept":147,"cut":false,"hidden":false,"merged":[[147,0,147,7],[148,0,150,7],[145,1,145,5],[145,6,145,7],[146,0,146,2],[146,3,146,7],[141,1,141,4],[141,5,141,7],[142,1,142,4],[142,5,142,7],[143,0,143,7],[144,1,144,5],[144,6,144,7],[138,1,138,5],[138,6,138,7],[139,1,139,5],[139,6,139,7],[140,1,140,5],[131,0,131,7],[132,1,132,5],[132,6,132,7],[133,1,133,5],[133,6,133,7],[134,1,134,5],[134,6,134,7],[140,6,140,7],[135,1,135,5],[135,6,135,7],[136,1,136,5],[136,6,136,7],[137,1,137,5],[137,6,137,7],[120,0,120,2],[120,3,120,7],[121,0,121,2],[121,3,121,7],[129,0,129,6],[130,0,130,5],[130,6,130,7],[122,0,122,7],[123,1,123,4],[123,5,123,7],[115,1,115,5],[115,6,115,7],[116,1,116,5],[116,6,116,7],[117,1,117,5],[117,6,117,7],[118,2,118,4],[118,5,118,7],[119,0,119,4],[119,5,119,7],[110,1,110,5],[110,6,110,7],[111,1,111,5],[111,6,111,7],[112,1,112,5],[112,6,112,7],[113,1,113,5],[113,6,113,7],[114,1,114,5],[114,6,114,7],[104,1,104,5],[104,6,104,7],[105,1,105,5],[105,6,105,7],[106,3,106,7],[107,0,107,7],[108,1,108,5],[108,6,108,7],[109,1,109,5],[109,6,109,7],[98,1,98,2],[98,4,98,6],[99,1,99,2],[99,4,99,6],[100,1,100,2],[100,4,100,6],[101,0,101,7],[102,0,102,7],[103,1,103,5],[103,6,103,7],[94,2,94,3],[94,4,94,5],[94,6,94,7],[95,2,95,3],[95,4,95,5],[95,6,95,7],[96,0,96,7],[97,0,97,2],[97,4,97,6],[88,0,88,6],[89,1,89,2],[89,3,89,7],[90,0,90,6],[91,1,91,2],[92,1,92,3],[92,4,92,5],[92,6,92,7],[93,2,93,3],[93,4,93,5],[93,6,93,7],[83,0,83,4],[83,5,83,7],[84,1,84,3],[84,4,84,7],[85,1,85,3],[85,4,85,7],[86,0,86,6],[87,1,87,2],[87,3,87,7],[77,0,77,2],[77,3,77,7],[78,0,78,6],[79,0,79,6],[80,0,80,2],[81,0,82,0],[81,1,81,2],[81,3,81,4],[81,6,81,7],[82,3,82,4],[82,6,82,7],[72,1,72,2],[72,3,72,4],[73,1,73,2],[73,3,73,4],[74,1,74,2],[74,3,74,4],[75,1,75,2],[75,3,75,4],[76,1,76,2],[76,3,76,4],[67,1,67,2],[67,3,67,4],[68,1,68,2],[68,3,68,4],[69,1,69,2],[69,3,69,4],[70,1,70,2],[70,3,70,4],[71,1,71,2],[71,3,71,4],[61,0,61,2],[61,3,61,7],[62,0,62,6],[63,0,63,7],[64,0,64,2],[64,3,64,4],[65,1,65,2],[65,3,65,4],[66,1,66,2],[66,3,66,4],[55,0,55,4],[55,6,55,7],[56,0,56,4],[56,6,56,7],[58,0,58,4],[58,5,58,7],[59,1,59,4],[59,5,59,7],[60,2,60,4],[60,5,60,7],[51,1,51,2],[53,0,53,7],[54,0,54,4],[54,6,54,7],[45,0,45,7],[46,1,46,2],[47,1,47,2],[48,3,48,7],[49,1,49,2],[50,1,50,2],[35,0,35,7],[36,0,36,6],[37,0,37,7],[38,1,38,2],[39,1,39,2],[40,3,40,7],[41,1,41,2],[42,3,42,7],[43,1,43,2],[28,0,28,5],[28,6,28,7],[29,0,29,3],[29,6,29,7],[30,0,30,6],[31,0,31,6],[32,0,32,7],[33,1,33,3],[34,1,34,3],[23,0,23,6],[24,0,24,6],[25,0,25,2],[26,0,26,6],[4,0,4,2],[27,0,27,2],[27,3,27,4],[20,1,20,2],[20,5,20,7],[21,1,21,2],[5,0,5,2],[8,0,8,7],[16,1,16,2],[16,5,16,7],[21,5,21,7],[22,1,22,2],[22,5,22,7],[17,1,17,2],[17,5,17,7],[18,1,18,2],[18,5,18,7],[19,1,19,2],[19,5,19,7],[10,0,10,6],[11,0,11,6],[12,1,12,2],[12,3,12,7],[13,0,13,2],[13,3,13,7],[14,1,14,2],[14,5,14,7],[15,1,15,2],[15,5,15,7],[7,0,7,2],[7,3,7,5],[7,6,7,7],[9,0,9,7],[0,0,0,7],[1,0,1,2],[1,3,1,4],[2,0,2,7],[3,3,3,4],[3,5,3,7],[127,1,127,5],[127,6,127,7],[128,1,128,2],[128,3,128,7],[124,1,124,5],[124,6,124,7],[125,1,125,5],[125,6,125,7],[126,1,126,5],[126,6,126,7]]}
[null,null,null,null,null,null,null,null,"Columns I-Y are meant to be hidden. They exist because they allow for the dropdown list options. They also allow for merged cells to autofit properly in terms of row height. This should work if all columns remain at their correct widths.","g-h",null,"a-e merged","E-F merged","e-h","0 times",null,null,"The government (e.g., Central Medical Stores, MOH logistics unit, MOH procurement unit)",null,null,null,null,"Yes","a-h","January"]
[null,null,null,null,null,null,null,null,null,null,"A-c",null,null,null,"1-2 times","b-d merged",null,"Third-party agent (e.g., UNFPA, Crown Agents)","d-e merged","d-f merged","e-f merged","e-g merged","No",null,"February"]
[null,null,null,null,null,null,null,null,null,null,null,null,null,null,"3-5 times",null,null,"The government and a third-party agent",null,null,null,null,null,null,"March"]
[null,null,null,null,null,null,null,null,null,null,null,null,null,null,"6 or more times",null,null,"Other",null,null,null,null,"N/A",null,"April"]
["To jump to the Introduction sheet, click here.",null,null,null,null,null,null,null,null,null,null,null,null,null,null,null,null,null,null,null,null,null,"Don't know",null,"May"]
[null,null,null,null,null,null,null,null,null,null,null,null,null,null,"N/A",null,null,"N/A",null,null,null,null,null,null,"June"]
["Contraceptive Security (CS) Indicators 2011 Data ",null,null,null,null,null,null,null,null,null,null,null,null,null,"Don't know",null,null,"Don't know",null,null,null,null,null,null,"July"]
["Country: Armenia",null,null,null,null,null,null,null,null,{"$f":"G8","v":0},{"$f":"A8","v":"Country: Armenia"},null,null,null,null,"or c-d",null,null,null,{"$f":"D8","v":0},null,null,null,null,"August"]
["The CS Indicators are presented in the following sections:\n\n               A. leadership & cooordination               B. finance & procurement               C. commodities               D. policies               E. supply chain",null,null,null,null,null,null,null,null,{"$f":"G9","v":0},{"$f":"A9","v":"The CS Indicators are presented in the following sections:\n\n               A. leadership & cooordination               B. finance & procurement               C. commodities               D. policies               E. supply chain"},null,null,null,"d-h",null,"f-h merged",null,{"$f":"D9","v":0},null,null,null,null,null,"September"]
["\nNotes:\n  -  Respondents' answers are indicated in the white spaces. \n  -  N/A = not applicable. Don't know = the respondent either indicated they did not know or left the answer blank.\n  -  Some questions required respondents to choose from a dropdown list of options; in these cases the dropdown arrow will \n     appear when you click on the cell. \n  -  There may be a few inserted comments. (If you cannot already see them, click on Review tab - Comments group - Show All Comments in newer \n       versions of Excel or View - Comments in older versions of Excel.)\n  -  If the answer is cut off, you can either manually adjust the row height or autofit the row height in order to see the whole \n     response. (To autofit the row height, select the answer(s) and go to Home tab - Cells group - Format - Autofit Row Height in newer versions of Excel or \n      Format - Row - Autofit in older versions of Excel.)\n",null,null,null,null,null,null,null,"a-g",null,null,null,null,null,null,null,null,"a-e merged",null,null,null,null,null,{"$f":"A10","v":"\nNotes:\n  -  Respondents' answers are indicated in the white spaces. \n  -  N/A = not applicable. Don't know = the respondent either indicated they did not know or left the answer blank.\n  -  Some questions required respondents to choose from a dropdown list of options; in these cases the dropdown arrow will \n     appear when you click on the cell. \n  -  There may be a few inserted comments. (If you cannot already see them, click on Review tab - Comments group - Show All Comments in newer \n       versions of Excel or View - Comments in older versions of Excel.)\n  -  If the answer is cut off, you can either manually adjust the row height or autofit the row height in order to see the whole \n     response. (To autofit the row height, select the answer(s) and go to Home tab - Cells group - Format - Autofit Row Height in newer versions of Excel or \n      Format - Row - Autofit in older versions of Excel.)\n"},"October"]
["A. Leadership and Coordination",null,null,null,null,null,null,null,null,null,null,null,null,null,null,null,null,null,null,null,null,null,null,null,"November"]
["A1. Is there a national committee that works on contraceptive security? (Please select from the dropdown list.)\n(Committee should have some aspect of contraceptive security as part of its Terms of Reference, even if it is known by a different name, for example: Family Planning, Reproductive Health, Maternal Mortality, Essential Medicine Committee, etc.)  ",null,null,null,null,null,null,"No",{"$f":"A12","v":"A1. Is there a national committee that works on contraceptive security? (Please select from the dropdown list.)\n(Committee should have some aspect of contraceptive security as part of its Terms of Reference, even if it is known by a different name, for example: Family Planning, Reproductive Health, Maternal Mortality, Essential Medicine Committee, etc.)  "},null,null,null,null,null,null,null,null,null,null,null,null,null,null,null,"December"]
[null,"a. What is the name of the committee?",null,"N/A",null,null,null,null,null,null,{"$f":"B13","v":"a. What is the name of the committee?"},{"$f":"D13","v":"N/A"},null,null,{"$f":"D13","v":"N/A"}]
["A2. Are the following organizations represented on the committee?",null,null,"(Y/N \ndropdown)",null,null,null,null,null,null,{"$f":"A14","v":"A2. Are the following organizations represented on the committee?"},null,null,null,null,null,null,null,null,null,null,null,null,null,"Don't know"]
[null,"a. Social marketing",null,"N/A","If yes, specify name(s) of organizations",null,null,null,null,null,{"$f":"B15","v":"a. Social marketing"},null,null,null,null,null,{"$f":"F15","v":0}]
[null,"b. NGO (for example: service delivery, advocacy, Planned Parenthood affiliate, Marie Stopes affiliate, faith-based organizations, etc.)",null,"N/A","If yes, specify name(s) of organizations",null,null,null,null,null,"b. NGO (for example: service delivery, advocacy, Planned Parenthood affiliate, Marie Stopes affiliate, faith-based organizations, etc.)",null,null,null,null,null,0]
[null,"c. Commercial sector (for example: pharmacy associations, manufacturers, etc.)",null,"N/A","If yes, specify name(s) of organizations",null,null,null,null,null,"c. Commercial sector (for example: pharmacy associations, manufacturers, etc.)",null,null,null,null,null,0]
[null,"d. Donors",null,"N/A","If yes, specify name(s) of donors",null,null,null,null,null,"d. Donors",null,null,null,null,null,0]
[null,"e. UN agencies",null,"N/A","If yes, specify name(s) of agencies",null,null,null,null,null,"e. UN agencies",null,null,null,null,null,0]
[null,"f. Ministry of Health (for example: logistics, reproductive health, family planning, maternal and child health, HIV/AIDS, pharmacy units, etc.)",null,"N/A","If yes, specify name(s) of units",null,null,null,null,null,"f. Ministry of Health (for example: logistics, reproductive health, family planning, maternal and child health, HIV/AIDS, pharmacy units, etc.)",null,null,null,null,null,0]
[null,"g. Central Medical Store or Central Warehouse",null,"N/A","If yes, specify",null,null,null,null,null,"g. Central Medical Store or Central Warehouse",null,null,null,null,null,0]
[null,"h. Ministry of Finance or Ministry of Planning ",null,"N/A","If yes, specify",null,null,null,null,null,"h. Ministry of Finance or Ministry of Planning ",null,null,null,null,null,0]
[null,"i. Other (for example: partners)",null,"N/A","If yes, specify",null,null,null,null,null,"i. Other (for example: partners)",null,null,null,null,null,0]
["A3. How many times did the committee meet during the last year? (0, 1-2, 3-5, or 6+)  (Please select from the dropdown.)",null,null,null,null,null,null,"N/A",{"$f":"A24","v":"A3. How many times did the committee meet during the last year? (0, 1-2, 3-5, or 6+)  (Please select from the dropdown.)"}]
["A4. Does the committee have legal status?  (Please select from the dropdown.)                                  ",null,null,null,null,null,null,"N/A",{"$f":"A25","v":"A4. Does the committee have legal status?  (Please select from the dropdown.)                                  "}]
["A5. Is there a Contraceptive Security \"champion\"? (someone who consistently brings up and advocates for contraceptive supplies)",null,null,"No","If yes, specify person's organization",null,"Specify person's job title",null,null,null,{"$f":"A26","v":"A5. Is there a Contraceptive Security \"champion\"? (someone who consistently brings up and advocates for contraceptive supplies)"}]
["B. Finance and Procurement (Capital)"]
["B1. What is the timeline of the country's fiscal year?",null,null,"Beginning month",null,"January","Ending month","December",null,null,{"$f":"B28","v":0}]
["B2. What was the estimated dollar value of contraceptives needed to be procured for the public sector for the most recent complete fiscal year? (in USD currency)\n(for example, to cover the needs for the '09-'10 fiscal year)",null,null,null,null,null,"N/A",null,null,{"$f":"G29","v":"N/A"},null,null,{"$f":"E29","v":0},null,null,null,null,null,null,null,null,null,null,null,{"$f":"A29","v":"B2. What was the estimated dollar value of contraceptives needed to be procured for the public sector for the most recent complete fiscal year? (in USD currency)\n(for example, to cover the needs for the '09-'10 fiscal year)"}]
["B3. When was the last forecast/quantification conducted? (mm/yy)",null,null,null,"N/A","Who conducted it? (Specify organization.)","N/A",null,null,{"$f":"G30","v":"N/A"},null,null,{"$f":"E30","v":"N/A"},null,null,null,null,null,null,null,null,null,null,null,{"$f":"A30","v":"B3. When was the last forecast/quantification conducted? (mm/yy)"}]
["B4. Is there a government budget line item for the procurement of contraceptives?  (Please select from the dropdown list.)",null,null,null,null,null,null,"No",{"$f":"A31","v":"B4. Is there a government budget line item for the procurement of contraceptives?  (Please select from the dropdown list.)"}]
["B5. Were government funds allocated for contraceptive procurement for the public sector in the most recent complete fiscal year? (This question refers to funds planned to be spent on contraceptives, whether or not they ended up being spent.) \n\n(Government funds include internally generated funds, basket funds, World Bank credits or loans, and other funds donors gave to the government for their use.) \n",null,null,null,null,null,null,"No",{"$f":"A32","v":"B5. Were government funds allocated for contraceptive procurement for the public sector in the most recent complete fiscal year? (This question refers to funds planned to be spent on contraceptives, whether or not they ended up being spent.) \n\n(Government funds include internally generated funds, basket funds, World Bank credits or loans, and other funds donors gave to the government for their use.) \n"}]
["B6. Please complete the table below regarding government allocations for contraceptive procurement.",null,null,null,null,null,null,null,null,null,null,null,null,null,null,null,null,null,null,null,null,null,null,{"$f":"A33","v":"B6. Please complete the table below regarding government allocations for contraceptive procurement."}]
[null,null,null,null,"Amount allocated \n(in USD)","Time period during which allocations were supposed to be spent \n(mm/yy-mm/yy)\n(should ideally be the most recent\ncomplete fiscal year ['09-'10])","Data source \n(for example: Ministry records)","Comments",null,null,{"$f":"A34","v":0}]
[null,"Government funds allocated for contraceptive procurement\n(funds originally designated for contraceptives, whether or not they ended up being spent on them)",null,null,0,"01/10-12/10",null,null,null,null,{"$f":"#REF!","v":{"$error":"#REF!"}}]
[]
["B7. Were government funds spent on contraceptive procurement for the public sector in the most recent complete fiscal year? \n(Government funds include internally generated funds, basket funds, World Bank credits or loans, and other funds donors gave to the government for their use.)",null,null,null,null,null,null,"No",{"$f":"A37","v":"B7. Were government funds spent on contraceptive procurement for the public sector in the most recent complete fiscal year? \n(Government funds include internally generated funds, basket funds, World Bank credits or loans, and other funds donors gave to the government for their use.)"}]
["B8. Please complete the table below to indicate government expenditures on contraceptive procurement, by source, in the most recent complete fiscal year. \n(This is how much was spent on contraceptive procurement (not what was allocated). How much of this spending was provided from each source?)",null,null,null,null,null,null,null,null,null,null,null,null,null,null,null,null,null,null,null,null,null,null,{"$f":"A38","v":"B8. Please complete the table below to indicate government expenditures on contraceptive procurement, by source, in the most recent complete fiscal year. \n(This is how much was spent on contraceptive procurement (not what was allocated). How much of this spending was provided from each source?)"}]
[null,"Source of government funds spent on contraceptive procurement for the public sector",null,"Was this source used?\n(Y/N)","Amount spent \n(in USD)","Time period (mm/yy-mm/yy)\n(should be the same for all sources of funds & ideally be the most recent\ncomplete fiscal year ['09-'10])","Data source \n(for example: Contraceptive Procurement Table, PipeLine, etc.)","Comments",null,null,{"$f":"A39","v":0}]
[null,"a. Internally generated funds spent on contraceptive procurement",null,"No",0,"01/10-12/10",null,null,null,null,{"$f":"B40","v":"a. Internally generated funds spent on contraceptive procurement"}]
[null,null,"i. Specify source(s) of internally generated funds spent (for example, from taxes or user fees)","N/A",null,null,null,null,null,null,{"$f":"C41","v":"i. Specify source(s) of internally generated funds spent (for example, from taxes or user fees)"},null,null,null,{"$f":"D41","v":"N/A"}]
[null,"b. Total of all other government funds spent on contraceptive procurement (basket funds, World Bank credits or loans, and other funds donors gave to the government [e.g., direct budget support])",null,"No",0,"01/10-12/10",null,null,null,null,{"$f":"B42","v":"b. Total of all other government funds spent on contraceptive procurement (basket funds, World Bank credits or loans, and other funds donors gave to the government [e.g., direct budget support])"}]
[null,null,"i. Specify source(s) of other government funds spent (for example: basket funding or specific donor)","N/A",null,null,null,null,null,null,{"$f":"C43","v":"i. Specify source(s) of other government funds spent (for example: basket funding or specific donor)"},null,null,null,{"$f":"D43","v":"N/A"}]
[null,"c. TOTAL government funds spent on contraceptive procurement\nThis will auto-calculate.  (It will sum a & b above.)",null,null,{"$f":"E40+E42","v":0},null,null,null,null,null,{"$f":"B44","v":"c. TOTAL government funds spent on contraceptive procurement\nThis will auto-calculate.  (It will sum a & b above.)"}]
[null,null,null,null,null,null,null,null,null,null,{"$f":"A45","v":0}]
["B9. Please complete the table below to indicate donor expenditures on contraceptive procurement in the most recent complete fiscal year.\n",null,null,null,null,null,null,null,null,null,null,null,null,null,null,null,null,null,null,null,null,null,null,{"$f":"A46","v":"B9. Please complete the table below to indicate donor expenditures on contraceptive procurement in the most recent complete fiscal year.\n"}]
["\n","Source of donations and donor funds spent on contraceptive procurement for the public sector",null,"Was this a source?\n(Y/N)","Amount of money spent on these procurements \n(in USD)","Time period (mm/yy-mm/yy)\n(should be the same for all sources of funds & ideally be the most recent\ncomplete fiscal year ['09-'10])","Data source \n(for example:  Donor records, Contraceptive Procurement Table, PipeLine, RHInterchange, etc.","Comments",null,null,{"$f":"A47","v":"\n"}]
[null,"a. In-kind donations of contraceptives",null,"Yes",13105,"01/10-12/10","UNFPA","27 FP units have been supplied with contraceptives worth $13,105 USD. UNFPA provided condoms for distribution among the military (for HIV/AIDS prevention).",null,null,{"$f":"B48","v":"a. In-kind donations of contraceptives"}]
[null,null,"i. Specify source(s) of in-kind donations ","UNFPA",null,null,null,null,null,null,{"$f":"C49","v":"i. Specify source(s) of in-kind donations "},null,null,null,{"$f":"D49","v":"UNFPA"}]
[null,"b. Global Fund donations used to procure condoms",null,"Yes",39688,"01/10-12/10","Mission East","For HIV/AIDS prevention only",null,null,{"$f":"B50","v":"b. Global Fund donations used to procure condoms"}]
[null,"c. Global Fund donations used to procure contraceptives besides condoms",null,"No",0,"01/10-12/10",null,null,null,null,{"$f":"B51","v":"c. Global Fund donations used to procure contraceptives besides condoms"}]
[null,"d. TOTAL value of in-kind donations and Global Fund donations spent on contraceptive procurement\nThis will auto-calculate.  (It will sum a-c above.)",null,null,{"$f":"E48+E50+E51","v":52793},null,null,null,null,null,{"$f":"B52","v":"d. TOTAL value of in-kind donations and Global Fund donations spent on contraceptive procurement\nThis will auto-calculate.  (It will sum a-c above.)"}]
[null,null,null,null,null,null,null,null,null,null,{"$f":"A53","v":0}]
["The answers to B10 and B11 should calculate automatically based on the information you provided. Please review the answers to ensure they make sense to you, and if you have additional information to add, please note it in the comments boxes.\n\nIf the answers do not calculate automatically, please provide any relevant information you may have in the comments boxes.\n",null,null,null,null,null,null,null,null,null,null,null,null,null,null,null,null,null,null,null,null,null,null,{"$f":"A54","v":"The answers to B10 and B11 should calculate automatically based on the information you provided. Please review the answers to ensure they make sense to you, and if you have additional information to add, please note it in the comments boxes.\n\nIf the answers do not calculate automatically, please provide any relevant information you may have in the comments boxes.\n"}]
["B10. Government share of funds spent on contraceptive procurement for the public sector - \nOf the total amount spent on contraceptives for the public sector in the most recent complete fiscal year (including government and donor funds), what percent was covered by government funds (including internally generated funds, basket funds, World Bank credits or loans, and other funds given to the government)? \n\nThis will auto-calculate. (It contains the following formula: Total government spending (Question B8c) / Grand total of all spending for public sector contraceptives from the government and donors (Questions B8c+B9d))",null,null,null,null,{"$f":"E44/(E44+E52)","v":0},null,null,null,{"$f":"G55","v":0},null,null,null,null,null,null,null,{"$f":"A55","v":"B10. Government share of funds spent on contraceptive procurement for the public sector - \nOf the total amount spent on contraceptives for the public sector in the most recent complete fiscal year (including government and donor funds), what percent was covered by government funds (including internally generated funds, basket funds, World Bank credits or loans, and other funds given to the government)? \n\nThis will auto-calculate. (It contains the following formula: Total government spending (Question B8c) / Grand total of all spending for public sector contraceptives from the government and donors (Questions B8c+B9d))"}]
["B11. Total expenditures on public sector contraceptives as percent of amount that needed to be procured -\nOf the estimated value of the contraceptives needed to be procured for the public sector for the most recent complete fiscal year, what percent was provided by any source (whether government or donor)? \n\nThis will auto-calculate. (It contains the following formula: Grand total of all spending for public sector contraceptives from the government and donors (Questions B8c+B9d) / Value of estimated need for procurement (Question B2))",null,null,null,null,"Don't know",null,null,null,{"$f":"G56","v":0},null,null,null,null,null,null,null,{"$f":"A56","v":"B11. Total expenditures on public sector contraceptives as percent of amount that needed to be procured -\nOf the estimated value of the contraceptives needed to be procured for the public sector for the most recent complete fiscal year, what percent was provided by any source (whether government or donor)? \n\nThis will auto-calculate. (It contains the following formula: Grand total of all spending for public sector contraceptives from the government and donors (Questions B8c+B9d) / Value of estimated need for procurement (Question B2))"}]
["B12. If B11 did not calculate automatically, please answer the following question:\nWas there a funding gap for the public sector in the last complete fiscal year (e.g., 09-'10 fiscal year)?\n(Please select from the dropdown list.)",null,null,null,null,null,null,null,null,{"$f":"G57","v":0},null,null,null,null,null,null,null,{"$f":"A57","v":"B12. If B11 did not calculate automatically, please answer the following question:\nWas there a funding gap for the public sector in the last complete fiscal year (e.g., 09-'10 fiscal year)?\n(Please select from the dropdown list.)"}]
[null,null,null,null,null,null,null,null,null,null,{"$f":"A58","v":0}]
["B13. If the government financed any contraceptive procurement in the most recent complete fiscal year, which entity conducted the procurement(s)? (Please select from the dropdown.)",null,null,null,null,"N/A",null,null,null,null,null,null,null,null,null,null,{"$f":"F59","v":"N/A"},{"$f":"A59","v":"B13. If the government financed any contraceptive procurement in the most recent complete fiscal year, which entity conducted the procurement(s)? (Please select from the dropdown.)"}]
[null,"a. Specify entity",null,null,null,"N/A",null,null,null,null,null,null,{"$f":"E60","v":0},null,null,null,{"$f":"F60","v":"N/A"},{"$f":"B60","v":"a. Specify entity"}]
[null,null,"i. Is this a parastatal?",null,null,"N/A",null,null,null,null,null,null,null,null,null,null,{"$f":"F61","v":"N/A"},{"$f":"C61","v":"i. Is this a parastatal?"}]
["B14. Please note any additional comments about finance and procurement.\n",null,null,null,null,null,null,null,null,null,{"$f":"A62","v":"B14. Please note any additional comments about finance and procurement.\n"},null,null,null,{"$f":"D62","v":0}]
["C. Commodities"]
["C1. Are the following contraceptive methods offered through the commercial sector, public sector, NGOs, or social marketing? (Please indicate which methods are intended to be offered. This question is not asking whether the method is in stock.) \n(Please select from the dropdown list.)",null,null,null,null,null,null,null,null,null,null,null,null,null,null,null,null,null,null,null,null,null,null,{"$f":"A64","v":"C1. Are the following contraceptive methods offered through the commercial sector, public sector, NGOs, or social marketing? (Please indicate which methods are intended to be offered. This question is not asking whether the method is in stock.) \n(Please select from the dropdown list.)"}]
["Contraceptive Method",null,null,"Commercial Sector",null,"Public Sector","NGO","Social Marketing",null,null,{"$f":"A65","v":"Contraceptive Method"}]
[null,"a. Combined oral contraceptives (estrogen + progestin - for  example, LoFemenol, Microgynon)",null,"Yes",null,"Yes","No","Don't know",null,null,{"$f":"B66","v":"a. Combined oral contraceptives (estrogen + progestin - for  example, LoFemenol, Microgynon)"}]
[null,"b. Progestin-only pills (for example, Ovrette, Microlut)",null,"Yes",null,"Yes","No","Don't know",null,null,{"$f":"B67","v":"b. Progestin-only pills (for example, Ovrette, Microlut)"}]
[null,"c. Hormonal injections (for example, DepoProvera, Noristerat)",null,"Yes",null,"Yes","No","Don't know",null,null,"c. Hormonal injections (for example, DepoProvera, Noristerat)"]
[null,"d. Hormonal implants (for example, Jadelle, Implanon)",null,"No",null,"No","No","Don't know",null,null,"d. Hormonal implants (for example, Jadelle, Implanon)"]
[null,"e. Intrauterine devices (IUDs) (for example, Optima Copper T)",null,"Yes",null,"Yes","No","Don't know",null,null,"e. Intrauterine devices (IUDs) (for example, Optima Copper T)"]
[null,"f. Male condoms",null,"Yes",null,"Yes","No","Don't know",null,null,"f. Male condoms"]
[null,"g. Female condoms",null,"No",null,"No","No","Don't know",null,null,"g. Female condoms"]
[null,"h. Emergency contraceptive pills (for example, Postinor)",null,"Yes",null,"Yes","No","Don't know",null,null,"h. Emergency contraceptive pills (for example, Postinor)"]
[null,"i. Long-acting permanent method for males (vasectomy)",null,"Don't know",null,"Don't know","No","Don't know",null,null,"i. Long-acting permanent method for males (vasectomy)"]
[null,"j. Long-acting permanent method for females (tubal ligation)",null,"Don't know",null,"Don't know","No","Don't know",null,null,"j. Long-acting permanent method for females (tubal ligation)"]
[null,"k. CycleBeads",null,"No",null,"No","No","Don't know",null,null,"k. CycleBeads"]
[null,"l. Other contraceptive methods - specify \n(Please provide the name of the other contraceptive(s) offered, by sector.)",null,"Spermicides",null,"Don't know","No","Don't know",null,null,"l. Other contraceptive methods - specify \n(Please provide the name of the other contraceptive(s) offered, by sector.)"]
["C2. Please note any comments about the commodities offered.",null,null,null,null,null,null,null,null,null,{"$f":"A78","v":"C2. Please note any comments about the commodities offered."},null,null,null,{"$f":"D78","v":0}]
["D. Policies (Commitment)"]
["D1. Is there a contraceptive security or reproductive health commodity security strategy or is contraceptive security explicitly included in a country strategy? (Please select from the dropdown list.)",null,null,null,null,null,null,"Yes",{"$f":"A80","v":"D1. Is there a contraceptive security or reproductive health commodity security strategy or is contraceptive security explicitly included in a country strategy? (Please select from the dropdown list.)"}]
["IF NO, SKIP TO QUESTION D2."]
[null,"Strategy name",null,"Years Covered (including strategy updates)",null,"Is the strategy formally approved by the Ministry?","Is the contraceptive security strategy being implemented?",null,null,{"$f":"G82","v":"Is the contraceptive security strategy being implemented?"},{"$f":"B82","v":"Strategy name"},null,{"$f":"E82","v":0},null,null,null,null,null,{"$f":"D82","v":"Years Covered (including strategy updates)"}]
[null,"a","National Strategy, Program and Actions Timeframe on Reproductive Health Improvement","2007 - 2015",null,"Yes","Yes",null,null,{"$f":"G83","v":"Yes"},{"$f":"B83","v":"a"},null,{"$f":"E83","v":0},null,null,null,null,null,{"$f":"D83","v":"2007 - 2015"}]
["D2. Are any family planning commodities subject to duties, import taxes, or other fees?",null,null,null,null,"Yes",null,null,null,null,null,null,null,null,null,null,{"$f":"F84","v":"Yes"},{"$f":"A84","v":"D2. Are any family planning commodities subject to duties, import taxes, or other fees?"}]
[null,"a. If yes, for which sectors (public, NGO, social marketing, commercial)?",null,null,"Commercial sector",null,null,null,null,null,null,null,{"$f":"E85","v":"Commercial sector"},{"$f":"E85","v":"Commercial sector"},null,null,null,{"$f":"B85","v":"a. If yes, for which sectors (public, NGO, social marketing, commercial)?"}]
[null,"b. If yes, how much are the duties, taxes, or fees?",null,null,"20% VAT",null,null,null,null,null,null,null,null,{"$f":"E86","v":"20% VAT"},null,null,null,{"$f":"B86","v":"b. If yes, how much are the duties, taxes, or fees?"}]
["D3. Are there policies that hinder the ability of the private sector (commercial sector, NGOs, or social marketing) to provide contraceptive methods (for example: price controls, distribution limitations, taxes/duties, advertising bans, etc.)?",null,null,null,null,null,null,"Yes",{"$f":"A87","v":"D3. Are there policies that hinder the ability of the private sector (commercial sector, NGOs, or social marketing) to provide contraceptive methods (for example: price controls, distribution limitations, taxes/duties, advertising bans, etc.)?"}]
[null,"a. If yes, describe the policies.",null,"There are advertising ban policies. In particular, contraceptive pills and spermicides are not among the \"over the counter\" medicines and cannot be advertised. For the advertisement of other contraceptives, Ministry of Health permission is required.",null,null,null,null,null,null,{"$f":"B88","v":"a. If yes, describe the policies."},null,null,null,{"$f":"D88","v":"There are advertising ban policies. In particular, contraceptive pills and spermicides are not among the \"over the counter\" medicines and cannot be advertised. For the advertisement of other contraceptives, Ministry of Health permission is required."}]
["D4. Are there policies that enable the private sector (commercial sector, NGOs, or social marketing) to provide contraceptive methods?",null,null,null,null,null,null,"No",{"$f":"A89","v":"D4. Are there policies that enable the private sector (commercial sector, NGOs, or social marketing) to provide contraceptive methods?"}]
[null,"a. If yes, describe the policies.",null,"N/A",null,null,null,null,null,null,{"$f":"B90","v":"a. If yes, describe the policies."},null,null,null,{"$f":"D90","v":"N/A"}]
["D5. Do policies or regulations exist that restrict who can sell or dispense particular contraceptive methods?\n",null,null,null,null,null,null,"Yes",{"$f":"A91","v":"D5. Do policies or regulations exist that restrict who can sell or dispense particular contraceptive methods?\n"}]
[null,"Please note any restrictions in the following table."]
[null,"Contraceptive Method(s)",null,null,"Describe any public sector restriction on who is allowed to sell or dispense the method",null,"Describe any private sector restriction on who is allowed to sell or dispense the method",null,null,{"$f":"G93","v":"Describe any private sector restriction on who is allowed to sell or dispense the method"},null,null,null,null,null,{"$f":"B93","v":"Contraceptive Method(s)"},null,null,null,null,{"$f":"E93","v":"Describe any public sector restriction on who is allowed to sell or dispense the method"}]
[null,"a","Pills, IUDs, spermicides ",null,"Only OB/GYNs can prescribe and dispense all methods, including IUD insertions. Family doctors (FDs) provide FP counselling and dispense all contraceptives, except for hormonal pills and IUD insertions. Nurses can only refer patients to FP counseling and dispense condoms.",null,null,null,null,{"$f":"G94","v":0},null,null,{"$f":"E94","v":"Only OB/GYNs can prescribe and dispense all methods, including IUD insertions. Family doctors (FDs) provide FP counselling and dispense all contraceptives, except for hormonal pills and IUD insertions. Nurses can only refer patients to FP counseling and dispense condoms."},null,null,{"$f":"C94","v":"Pills, IUDs, spermicides "},null,null,null,null,{"$f":"E94","v":"Only OB/GYNs can prescribe and dispense all methods, including IUD insertions. Family doctors (FDs) provide FP counselling and dispense all contraceptives, except for hormonal pills and IUD insertions. Nurses can only refer patients to FP counseling and dispense condoms."}]
[null,"b",null,null,null,null,null,null,null,{"$f":"G95","v":0},null,null,{"$f":"E95","v":0},null,null,{"$f":"C95","v":0},null,null,null,null,{"$f":"E95","v":0}]
[null,"c",null,null,null,null,null,null,null,{"$f":"G96","v":0},null,null,{"$f":"E96","v":0},null,null,{"$f":"C96","v":0},null,null,null,null,{"$f":"E96","v":0}]
[null,null,null,null,null,null,null,null,null,null,{"$f":"C97","v":0}]
["D6. Does the country have laws, regulations, or policies that make it difficult for the following sub-populations to access effective family planning services?",null,null,"Y/N","If yes, describe laws/regulations/policies affecting access ",null,null,"Are the rules/policies implemented?",null,null,{"$f":"A98","v":"D6. Does the country have laws, regulations, or policies that make it difficult for the following sub-populations to access effective family planning services?"},null,null,null,null,null,null,null,null,null,null,{"$f":"E98","v":"If yes, describe laws/regulations/policies affecting access "}]
[null,"a. Unmarried people",null,"No",null,null,null,null,null,null,{"$f":"B99","v":"a. Unmarried people"},null,{"$f":"E99","v":0},null,null,null,null,null,null,null,null,{"$f":"E99","v":0}]
[null,"b. Young people",null,"No",null,null,null,null,null,null,{"$f":"B100","v":"b. Young people"},null,{"$f":"E100","v":0},null,null,null,null,null,null,null,null,{"$f":"E100","v":0}]
[null,"c. Other",null,"No",null,null,null,null,null,null,{"$f":"B101","v":"c. Other"},null,{"$f":"E101","v":0},null,null,null,null,null,null,null,null,{"$f":"E101","v":0}]
[null,null,null,null,null,null,null,null,null,null,{"$f":"C102","v":0}]
["D7. Are there charges* to the client in the public sector for family planning:\n*(This question refers to charges by policy, not under-the-table charges.)\n",null,null,null,null,null,null,null,null,null,null,null,null,null,null,null,null,null,null,null,null,null,null,{"$f":"A103","v":"D7. Are there charges* to the client in the public sector for family planning:\n*(This question refers to charges by policy, not under-the-table charges.)\n"}]
[null,"a. Services?",null,null,null,null,"No",null,null,{"$f":"G104","v":"No"},null,null,null,null,null,null,null,null,null,null,null,null,null,null,{"$f":"B104","v":"a. Services?"}]
[null,"b. Commodities?",null,null,null,null,"No",null,null,{"$f":"G105","v":"No"},null,null,null,null,null,null,null,null,null,null,null,null,null,null,{"$f":"B105","v":"b. Commodities?"}]
[null,"c. If yes, are there exemptions for people who cannot afford to pay?",null,null,null,null,"N/A",null,null,{"$f":"G106","v":"N/A"},null,null,null,null,null,null,null,null,null,null,null,null,null,null,{"$f":"B106","v":"c. If yes, are there exemptions for people who cannot afford to pay?"}]
[null,null,"i. If yes, describe the exemptions.","N/A",null,null,null,null,null,null,{"$f":"C107","v":"i. If yes, describe the exemptions."},null,null,null,{"$f":"D107","v":"N/A"}]
["D8. Are the following contraceptives included in the country's National Essential Medicine List (NEML) or other equivalent priority list?",null,null,null,null,null,null,null,null,null,null,null,null,null,null,null,null,null,null,null,null,null,null,{"$f":"A108","v":"D8. Are the following contraceptives included in the country's National Essential Medicine List (NEML) or other equivalent priority list?"}]
[null,"a. Combined oral contraceptives",null,null,null,null,"Yes",null,null,{"$f":"G109","v":"Yes"},null,null,null,null,null,null,null,null,null,null,null,null,null,null,{"$f":"B109","v":"a. Combined oral contraceptives"}]
[null,"b. Progestin-only pills",null,null,null,null,"Yes",null,null,"Yes",null,null,null,null,null,null,null,null,null,null,null,null,null,null,"b. Progestin-only pills"]
[null,"c. Hormonal injections",null,null,null,null,"Yes",null,null,"Yes",null,null,null,null,null,null,null,null,null,null,null,null,null,null,"c. Hormonal injections"]
[null,"d. Hormonal implants",null,null,null,null,"No",null,null,"No",null,null,null,null,null,null,null,null,null,null,null,null,null,null,"d. Hormonal implants"]
[null,"e. Intrauterine devices (IUDs)",null,null,null,null,"No",null,null,"No",null,null,null,null,null,null,null,null,null,null,null,null,null,null,"e. Intrauterine devices (IUDs)"]
[null,"f. Male condoms",null,null,null,null,"No",null,null,"No",null,null,null,null,null,null,null,null,null,null,null,null,null,null,"f. Male condoms"]
[null,"g. Female condoms",null,null,null,null,"No",null,null,"No",null,null,null,null,null,null,null,null,null,null,null,null,null,null,"g. Female condoms"]
[null,"h. Emergency contraceptive pills",null,null,null,null,"Yes",null,null,"Yes",null,null,null,null,null,null,null,null,null,null,null,null,null,null,"h. Emergency contraceptive pills"]
[null,"i. CycleBeads",null,null,null,null,"No",null,null,{"$f":"G117","v":"No"},null,null,null,null,null,null,null,null,null,null,null,null,null,null,{"$f":"B117","v":"i. CycleBeads"}]
[null,"j. Any other contraceptive(s)?",null,null,null,null,"No",null,null,"No",null,null,null,null,null,null,null,null,null,null,null,null,null,null,"j. Any other contraceptive(s)?"]
[null,null,"i. Name of other contraceptive(s) on the list(s)",null,null,"N/A",null,null,null,0,null,null,null,null,null,null,null,{"$f":"B119","v":0}]
["D9. What year(s) is the list(s) from?",null,null,null,null,2010,null,null,null,0,null,null,null,null,null,null,null,{"$f":"B120","v":0}]
["D10. Name of the list(s)\n\n\n",null,null,"Essential Medicine List of the Republic of Armenia",null,null,null,null,null,null,{"$f":"A121","v":"D10. Name of the list(s)\n\n\n"},null,null,null,{"$f":"D121","v":"Essential Medicine List of the Republic of Armenia"}]
["D11. Notes about the list(s)\n\n\n",null,null,"IUDs, condoms, and spermicides are not on the list because they are not drugs. Implants are not registered.",null,null,null,null,null,null,{"$f":"A122","v":"D11. Notes about the list(s)\n\n\n"},null,null,null,{"$f":"D122","v":"IUDs, condoms, and spermicides are not on the list because they are not drugs. Implants are not registered."}]
["D12.  Information on country's Poverty Reduction Strategy Paper (PRSP)\n",null,null,null,null,null,null,null,null,null,null,null,null,null,null,null,null,null,null,null,null,null,null,{"$f":"A123","v":"D12.  Information on country's Poverty Reduction Strategy Paper (PRSP)\n"}]
[null,"a. What year is the Poverty Reduction Strategy Paper from? (most recent actual PRSP on IMF's site [not progress or summary report])",null,null,null,2008,null,null,null,{"$f":"G124","v":0},null,null,null,null,null,null,null,{"$f":"B124","v":"a. What year is the Poverty Reduction Strategy Paper from? (most recent actual PRSP on IMF's site [not progress or summary report])"}]
[null,"b. Is family planning or reproductive health a priority in the PRSP?",null,null,null,null,"Yes",null,null,{"$f":"G125","v":"Yes"},null,null,null,null,null,null,null,null,null,null,null,null,null,null,{"$f":"B125","v":"b. Is family planning or reproductive health a priority in the PRSP?"}]
[null,"c. Is contraceptive security included in the PRSP?",null,null,null,null,"No",null,null,{"$f":"G126","v":"No"},null,null,null,null,null,null,null,null,null,null,null,null,null,null,{"$f":"B126","v":"c. Is contraceptive security included in the PRSP?"}]
[null,"d. Is contraceptive prevalence rate (CPR) included as an indicator in the PRSP?",null,null,null,null,"No",null,null,{"$f":"G127","v":"No"},null,null,null,null,null,null,null,null,null,null,null,null,null,null,{"$f":"B127","v":"d. Is contraceptive prevalence rate (CPR) included as an indicator in the PRSP?"}]
[null,"e. Are contraceptive supply indicators included in the PRSP?",null,null,null,null,"No",null,null,{"$f":"G128","v":"No"},null,null,null,null,null,null,null,null,null,null,null,null,null,null,{"$f":"B128","v":"e. Are contraceptive supply indicators included in the PRSP?"}]
["\n\n\n","f. Notes about the Poverty Reduction Strategy Paper",null,null,null,null,null,null,null,null,{"$f":"B129","v":"f. Notes about the Poverty Reduction Strategy Paper"},null,null,null,{"$f":"D129","v":0}]
["E. Supply Chain (Capacity)"]
["E1. Have stockouts occurred for any contraceptive at the central* level in the last 12 months?  \n*(The central level refers to the central level warehouse for the public sector.)",null,null,null,null,null,"Yes",null,null,{"$f":"G131","v":"Yes"},null,null,null,null,null,null,null,null,null,null,null,null,null,null,{"$f":"A131","v":"E1. Have stockouts occurred for any contraceptive at the central* level in the last 12 months?  \n*(The central level refers to the central level warehouse for the public sector.)"}]
["E2. In the last 12 months, has there ever been a stockout at the central level of any of the contraceptives offered in public sector facilities? (If a method is not intended to be offered in public sector facilities, please indicate that stockouts are not applicable (choose \"N/A\" from the dropdown list).)",null,null,null,null,null,null,null,null,null,null,null,null,null,null,null,null,null,null,null,null,null,null,{"$f":"A132","v":"E2. In the last 12 months, has there ever been a stockout at the central level of any of the contraceptives offered in public sector facilities? (If a method is not intended to be offered in public sector facilities, please indicate that stockouts are not applicable (choose \"N/A\" from the dropdown list).)"}]
[null,"a. Combined oral contraceptives",null,null,null,null,"Yes",null,null,{"$f":"G133","v":"Yes"},null,null,null,null,null,null,null,null,null,null,null,null,null,null,{"$f":"B133","v":"a. Combined oral contraceptives"}]
[null,"b. Progestin-only pills",null,null,null,null,"No",null,null,"No",null,null,null,null,null,null,null,null,null,null,null,null,null,null,"b. Progestin-only pills"]
[null,"c. Hormonal injections",null,null,null,null,"Don't know",null,null,"Don't know",null,null,null,null,null,null,null,null,null,null,null,null,null,null,"c. Hormonal injections"]
[null,"d. Hormonal implants",null,null,null,null,"N/A",null,null,"N/A",null,null,null,null,null,null,null,null,null,null,null,null,null,null,"d. Hormonal implants"]
[null,"e. Intrauterine devices (IUDs)",null,null,null,null,"No",null,null,"No",null,null,null,null,null,null,null,null,null,null,null,null,null,null,"e. Intrauterine devices (IUDs)"]
[null,"f. Male condoms",null,null,null,null,"No",null,null,"No",null,null,null,null,null,null,null,null,null,null,null,null,null,null,"f. Male condoms"]
[null,"g. Female condoms",null,null,null,null,"N/A",null,null,"N/A",null,null,null,null,null,null,null,null,null,null,null,null,null,null,"g. Female condoms"]
[null,"h. Emergency contraceptive pills",null,null,null,null,"Yes",null,null,"Yes",null,null,null,null,null,null,null,null,null,null,null,null,null,null,"h. Emergency contraceptive pills"]
[null,"i. CycleBeads",null,null,null,null,"N/A",null,null,"N/A",null,null,null,null,null,null,null,null,null,null,null,null,null,null,"i. CycleBeads"]
[null,"j. Time period\n(mm/yy - mm/yy) (for example, 1/10-12/10) ",null,null,null,"01/10-12/10",null,null,null,null,null,null,null,null,null,null,{"$f":"F142","v":"01/10-12/10"},{"$f":"B142","v":"j. Time period\n(mm/yy - mm/yy) (for example, 1/10-12/10) "}]
[null,"k. Data source\n(for example: Procurement Planning and Monitoring Report, Logistics Management Information System, periodic physical inventory, warehouse reports)",null,null,null,"UNFPA and Institute of Perinatology, Obstetrics and Gynecology, MOH",null,null,null,null,null,null,null,null,null,null,{"$f":"F143","v":"UNFPA and Institute of Perinatology, Obstetrics and Gynecology, MOH"},{"$f":"B143","v":"k. Data source\n(for example: Procurement Planning and Monitoring Report, Logistics Management Information System, periodic physical inventory, warehouse reports)"}]
["E3. Are stockouts a large problem in your country at the following levels? (i.e., Are they common or do they tend to last for a long time?)\n\n"]
[null,"a. service delivery point level (i.e., public sector health facilities)",null,null,null,null,"Yes",null,null,{"$f":"G145","v":"Yes"},null,null,null,null,null,null,null,null,null,null,null,null,null,null,{"$f":"B145","v":"a. service delivery point level (i.e., public sector health facilities)"}]
[null,"b. central level (i.e., central level warehouse for the public sector)",null,null,null,null,"Yes",null,null,{"$f":"G146","v":"Yes"},null,null,null,null,null,null,null,null,null,null,null,null,null,null,{"$f":"B146","v":"b. central level (i.e., central level warehouse for the public sector)"}]
["F. Please note any overall comments about challenges and/or successes with contraceptive security in your country.\n\n",null,null,null,null,null,null,null,null,null,{"$f":"A147","v":"F. Please note any overall comments about challenges and/or successes with contraceptive security in your country.\n\n"},null,null,null,{"$f":"D147","v":0}]

{"sheet":"Azerbaijan 2011","index":8,"n_rows":147,"n_cols":25,"rows_kept":147,"cut":false,"hidden":false,"merged":[[142,5,142,7],[141,1,141,4],[141,5,141,7],[142,1,142,4],[138,1,138,5],[143,0,143,7],[147,0,147,7],[148,0,150,7],[145,1,145,5],[145,6,145,7],[146,0,146,2],[146,3,146,7],[144,1,144,5],[144,6,144,7],[136,1,136,5],[136,6,136,7],[137,1,137,5],[137,6,137,7],[138,6,138,7],[139,1,139,5],[139,6,139,7],[140,1,140,5],[140,6,140,7],[131,0,131,7],[132,1,132,5],[132,6,132,7],[133,1,133,5],[133,6,133,7],[134,1,134,5],[134,6,134,7],[135,1,135,5],[135,6,135,7],[120,0,120,2],[120,3,120,7],[121,0,121,2],[121,3,121,7],[129,0,129,6],[130,0,130,5],[130,6,130,7],[122,0,122,7],[123,1,123,4],[123,5,123,7],[115,1,115,5],[115,6,115,7],[116,1,116,5],[116,6,116,7],[117,1,117,5],[117,6,117,7],[118,2,118,4],[118,5,118,7],[119,0,119,4],[119,5,119,7],[110,1,110,5],[110,6,110,7],[111,1,111,5],[111,6,111,7],[112,1,112,5],[112,6,112,7],[113,1,113,5],[113,6,113,7],[114,1,114,5],[114,6,114,7],[104,1,104,5],[104,6,104,7],[105,1,105,5],[105,6,105,7],[106,3,106,7],[107,0,107,7],[108,1,108,5],[108,6,108,7],[109,1,109,5],[109,6,109,7],[98,1,98,2],[98,4,98,6],[99,1,99,2],[99,4,99,6],[100,1,100,2],[100,4,100,6],[101,0,101,7],[102,0,102,7],[103,1,103,5],[103,6,103,7],[94,2,94,3],[94,4,94,5],[94,6,94,7],[95,2,95,3],[95,4,95,5],[95,6,95,7],[96,0,96,7],[97,0,97,2],[97,4,97,6],[88,0,88,6],[89,1,89,2],[89,3,89,7],[90,0,90,6],[91,1,91,2],[92,1,92,3],[92,4,92,5],[92,6,92,7],[93,2,93,3],[93,4,93,5],[93,6,93,7],[83,0,83,4],[83,5,83,7],[84,1,84,3],[84,4,84,7],[85,1,85,3],[85,4,85,7],[86,0,86,6],[87,1,87,2],[87,3,87,7],[77,0,77,2],[77,3,77,7],[78,0,78,6],[79,0,79,6],[80,0,80,2],[81,0,82,0],[81,1,81,2],[81,3,81,4],[81,6,81,7],[82,3,82,4],[82,6,82,7],[72,1,72,2],[72,3,72,4],[73,1,73,2],[73,3,73,4],[74,1,74,2],[74,3,74,4],[75,1,75,2],[75,3,75,4],[76,1,76,2],[76,3,76,4],[67,1,67,2],[67,3,67,4],[68,1,68,2],[68,3,68,4],[69,1,69,2],[69,3,69,4],[70,1,70,2],[70,3,70,4],[71,1,71,2],[71,3,71,4],[61,0,61,2],[61,3,61,7],[62,0,62,6],[63,0,63,7],[64,0,64,2],[64,3,64,4],[65,1,65,2],[65,3,65,4],[66,1,66,2],[66,3,66,4],[55,0,55,4],[55,6,55,7],[56,0,56,4],[56,6,56,7],[58,0,58,4],[58,5,58,7],[59,1,59,4],[59,5,59,7],[60,2,60,4],[60,5,60,7],[51,1,51,2],[53,0,53,7],[54,0,54,4],[54,6,54,7],[45,0,45,7],[46,1,46,2],[47,1,47,2],[48,3,48,7],[49,1,49,2],[50,1,50,2],[35,0,35,7],[36,0,36,6],[37,0,37,7],[38,1,38,2],[39,1,39,2],[40,3,40,7],[41,1,41,2],[42,3,42,7],[43,1,43,2],[28,0,28,5],[28,6,28,7],[29,0,29,3],[29,6,29,7],[30,0,30,6],[31,0,31,6],[32,0,32,7],[33,1,33,3],[34,1,34,3],[21,1,21,2],[21,5,21,7],[22,1,22,2],[22,5,22,7],[23,0,23,6],[24,0,24,6],[25,0,25,2],[26,0,26,6],[27,0,27,2],[27,3,27,4],[16,1,16,2],[16,5,16,7],[17,1,17,2],[17,5,17,7],[18,1,18,2],[18,5,18,7],[19,1,19,2],[19,5,19,7],[20,1,20,2],[20,5,20,7],[0,0,0,7],[1,0,1,2],[1,3,1,4],[2,0,2,7],[3,3,3,4],[10,0,10,6],[5,0,5,2],[8,0,8,7],[13,3,13,7],[126,6,126,7],[3,5,3,7],[127,1,127,5],[127,6,127,7],[128,1,128,2],[128,3,128,7],[124,1,124,5],[124,6,124,7],[125,1,125,5],[125,6,125,7],[126,1,126,5],[7,0,7,2],[7,3,7,5],[7,6,7,7],[9,0,9,7],[4,0,4,2],[11,0,11,6],[12,1,12,2],[12,3,12,7],[13,0,13,2],[14,1,14,2],[14,5,14,7],[15,1,15,2],[15,5,15,7]]}
[null,null,null,null,null,null,null,null,"Columns I-Y are meant to be hidden. They exist because they allow for the dropdown list options. They also allow for merged cells to autofit properly in terms of row height. This should work if all columns remain at their correct widths.","g-h",null,"a-e merged","E-F merged","e-h","0 times",null,null,"The government (e.g., Central Medical Stores, MOH logistics unit, MOH procurement unit)",null,null,null,null,"Yes","a-h","January"]
[null,null,null,null,null,null,null,null,null,null,"A-c",null,null,null,"1-2 times","b-d merged",null,"Third-party agent (e.g., UNFPA, Crown Agents)","d-e merged","d-f merged","e-f merged","e-g merged","No",null,"February"]
[null,null,null,null,null,null,null,null,null,null,null,null,null,null,"3-5 times",null,null,"The government and a third-party agent",null,null,null,null,null,null,"March"]
[null,null,null,null,null,null,null,null,null,null,null,null,null,null,"6 or more times",null,null,"Other",null,null,null,null,"N/A",null,"April"]
["To jump to the Introduction sheet, click here.",null,null,null,null,null,null,null,null,null,null,null,null,null,null,null,null,null,null,null,null,null,"Don't know",null,"May"]
[null,null,null,null,null,null,null,null,null,null,null,null,null,null,"N/A",null,null,"N/A",null,null,null,null,null,null,"June"]
["Contraceptive Security (CS) Indicators 2011 Data ",null,null,null,null,null,null,null,null,null,null,null,null,null,"Don't know",null,null,"Don't know",null,null,null,null,null,null,"July"]
["Country: Azerbaijan",null,null,null,null,null,null,null,null,{"$f":"G8","v":0},{"$f":"A8","v":"Country: Azerbaijan"},null,null,null,null,"or c-d",null,null,null,{"$f":"D8","v":0},null,null,null,null,"August"]
["The CS Indicators are presented in the following sections:\n\n               A. leadership & cooordination               B. finance & procurement               C. commodities               D. policies               E. supply chain",null,null,null,null,null,null,null,null,{"$f":"G9","v":0},{"$f":"A9","v":"The CS Indicators are presented in the following sections:\n\n               A. leadership & cooordination               B. finance & procurement               C. commodities               D. policies               E. supply chain"},null,null,null,"d-h",null,"f-h merged",null,{"$f":"D9","v":0},null,null,null,null,null,"September"]
["\nNotes:\n  -  Respondents' answers are indicated in the white spaces. \n  -  N/A = not applicable. Don't know = the respondent either indicated they did not know or left the answer blank.\n  -  Some questions required respondents to choose from a dropdown list of options; in these cases the dropdown arrow will \n     appear when you click on the cell. \n  -  There may be a few inserted comments. (If you cannot already see them, click on Review tab - Comments group - Show All Comments in newer \n       versions of Excel or View - Comments in older versions of Excel.)\n  -  If the answer is cut off, you can either manually adjust the row height or autofit the row height in order to see the whole \n     response. (To autofit the row height, select the answer(s) and go to Home tab - Cells group - Format - Autofit Row Height in newer versions of Excel or \n      Format - Row - Autofit in older versions of Excel.)\n",null,null,null,null,null,null,null,"a-g",null,null,null,null,null,null,null,null,"a-e merged",null,null,null,null,null,{"$f":"A10","v":"\nNotes:\n  -  Respondents' answers are indicated in the white spaces. \n  -  N/A = not applicable. Don't know = the respondent either indicated they did not know or left the answer blank.\n  -  Some questions required respondents to choose from a dropdown list of options; in these cases the dropdown arrow will \n     appear when you click on the cell. \n  -  There may be a few inserted comments. (If you cannot already see them, click on Review tab - Comments group - Show All Comments in newer \n       versions of Excel or View - Comments in older versions of Excel.)\n  -  If the answer is cut off, you can either manually adjust the row height or autofit the row height in order to see the whole \n     response. (To autofit the row height, select the answer(s) and go to Home tab - Cells group - Format - Autofit Row Height in newer versions of Excel or \n      Format - Row - Autofit in older versions of Excel.)\n"},"October"]
["A. Leadership and Coordination",null,null,null,null,null,null,null,null,null,null,null,null,null,null,null,null,null,null,null,null,null,null,null,"November"]
["A1. Is there a national committee that works on contraceptive security? (Please select from the dropdown list.)\n(Committee should have some aspect of contraceptive security as part of its Terms of Reference, even if it is known by a different name, for example: Family Planning, Reproductive Health, Maternal Mortality, Essential Medicine Committee, etc.)  ",null,null,null,null,null,null,"No",{"$f":"A12","v":"A1. Is there a national committee that works on contraceptive security? (Please select from the dropdown list.)\n(Committee should have some aspect of contraceptive security as part of its Terms of Reference, even if it is known by a different name, for example: Family Planning, Reproductive Health, Maternal Mortality, Essential Medicine Committee, etc.)  "},null,null,null,null,null,null,null,null,null,null,null,null,null,null,null,"December"]
[null,"a. What is the name of the committee?",null,"N/A",null,null,null,null,null,null,{"$f":"B13","v":"a. What is the name of the committee?"},{"$f":"D13","v":"N/A"},null,null,{"$f":"D13","v":"N/A"}]
["A2. Are the following organizations represented on the committee?",null,null,"(Y/N \ndropdown)",null,null,null,null,null,null,{"$f":"A14","v":"A2. Are the following organizations represented on the committee?"},null,null,null,null,null,null,null,null,null,null,null,null,null,"Don't know"]
[null,"a. Social marketing",null,"N/A","If yes, specify name(s) of organizations",null,null,null,null,null,{"$f":"B15","v":"a. Social marketing"},null,null,null,null,null,{"$f":"F15","v":0}]
[null,"b. NGO (for example: service delivery, advocacy, Planned Parenthood affiliate, Marie Stopes affiliate, faith-based organizations, etc.)",null,"N/A","If yes, specify name(s) of organizations",null,null,null,null,null,"b. NGO (for example: service delivery, advocacy, Planned Parenthood affiliate, Marie Stopes affiliate, faith-based organizations, etc.)",null,null,null,null,null,0]
[null,"c. Commercial sector (for example: pharmacy associations, manufacturers, etc.)",null,"N/A","If yes, specify name(s) of organizations",null,null,null,null,null,"c. Commercial sector (for example: pharmacy associations, manufacturers, etc.)",null,null,null,null,null,0]
[null,"d. Donors",null,"N/A","If yes, specify name(s) of donors",null,null,null,null,null,"d. Donors",null,null,null,null,null,0]
[null,"e. UN agencies",null,"N/A","If yes, specify name(s) of agencies",null,null,null,null,null,"e. UN agencies",null,null,null,null,null,0]
[null,"f. Ministry of Health (for example: logistics, reproductive health, family planning, maternal and child health, HIV/AIDS, pharmacy units, etc.)",null,"N/A","If yes, specify name(s) of units",null,null,null,null,null,"f. Ministry of Health (for example: logistics, reproductive health, family planning, maternal and child health, HIV/AIDS, pharmacy units, etc.)",null,null,null,null,null,0]
[null,"g. Central Medical Store or Central Warehouse",null,"N/A","If yes, specify",null,null,null,null,null,"g. Central Medical Store or Central Warehouse",null,null,null,null,null,0]
[null,"h. Ministry of Finance or Ministry of Planning ",null,"N/A","If yes, specify",null,null,null,null,null,"h. Ministry of Finance or Ministry of Planning ",null,null,null,null,null,0]
[null,"i. Other (for example: partners)",null,"N/A","If yes, specify",null,null,null,null,null,"i. Other (for example: partners)",null,null,null,null,null,0]
["A3. How many times did the committee meet during the last year? (0, 1-2, 3-5, or 6+)  (Please select from the dropdown.)",null,null,null,null,null,null,"N/A",{"$f":"A24","v":"A3. How many times did the committee meet during the last year? (0, 1-2, 3-5, or 6+)  (Please select from the dropdown.)"}]
["A4. Does the committee have legal status?  (Please select from the dropdown.)                                  ",null,null,null,null,null,null,"N/A",{"$f":"A25","v":"A4. Does the committee have legal status?  (Please select from the dropdown.)                                  "}]
["A5. Is there a Contraceptive Security \"champion\"? (someone who consistently brings up and advocates for contraceptive supplies)",null,null,"Yes","If yes, specify person's organization","Scientific Research Institute of Obstetrics and Gynecology","Specify person's job title","Director, National RH Coordinator",null,null,{"$f":"A26","v":"A5. Is there a Contraceptive Security \"champion\"? (someone who consistently brings up and advocates for contraceptive supplies)"}]
["B. Finance and Procurement (Capital)"]
["B1. What is the timeline of the country's fiscal year?",null,null,"Beginning month",null,"January","Ending month","December",null,null,{"$f":"B28","v":0}]
["B2. What was the estimated dollar value of contraceptives needed to be procured for the public sector for the most recent complete fiscal year? (in USD currency)\n(for example, to cover the needs for the '09-'10 fiscal year)",null,null,null,null,null,106667,null,null,{"$f":"G29","v":106667},null,null,{"$f":"E29","v":0},null,null,null,null,null,null,null,null,null,null,null,{"$f":"A29","v":"B2. What was the estimated dollar value of contraceptives needed to be procured for the public sector for the most recent complete fiscal year? (in USD currency)\n(for example, to cover the needs for the '09-'10 fiscal year)"}]
["B3. When was the last forecast/quantification conducted? (mm/yy)",null,null,null,"2006","Who conducted it? (Specify organization.)","John Snow, Inc. (JSI)/DELIVER Project",null,null,{"$f":"G30","v":"John Snow, Inc. (JSI)/DELIVER Project"},null,null,{"$f":"E30","v":"2006"},null,null,null,null,null,null,null,null,null,null,null,{"$f":"A30","v":"B3. When was the last forecast/quantification conducted? (mm/yy)"}]
["B4. Is there a government budget line item for the procurement of contraceptives?  (Please select from the dropdown list.)",null,null,null,null,null,null,"No",{"$f":"A31","v":"B4. Is there a government budget line item for the procurement of contraceptives?  (Please select from the dropdown list.)"}]
["B5. Were government funds allocated for contraceptive procurement for the public sector in the most recent complete fiscal year? (This question refers to funds planned to be spent on contraceptives, whether or not they ended up being spent.) \n\n(Government funds include internally generated funds, basket funds, World Bank credits or loans, and other funds donors gave to the government for their use.) \n",null,null,null,null,null,null,"No",{"$f":"A32","v":"B5. Were government funds allocated for contraceptive procurement for the public sector in the most recent complete fiscal year? (This question refers to funds planned to be spent on contraceptives, whether or not they ended up being spent.) \n\n(Government funds include internally generated funds, basket funds, World Bank credits or loans, and other funds donors gave to the government for their use.) \n"}]
["B6. Please complete the table below regarding government allocations for contraceptive procurement.",null,null,null,null,null,null,null,null,null,null,null,null,null,null,null,null,null,null,null,null,null,null,{"$f":"A33","v":"B6. Please complete the table below regarding government allocations for contraceptive procurement."}]
[null,null,null,null,"Amount allocated \n(in USD)","Time period during which allocations were supposed to be spent \n(mm/yy-mm/yy)\n(should ideally be the most recent\ncomplete fiscal year ['09-'10])","Data source \n(for example: Ministry records)","Comments",null,null,{"$f":"A34","v":0}]
[null,"Government funds allocated for contraceptive procurement\n(funds originally designated for contraceptives, whether or not they ended up being spent on them)",null,null,0,"01/10-12/10",null,null,null,null,{"$f":"#REF!","v":{"$error":"#REF!"}}]
[]
["B7. Were government funds spent on contraceptive procurement for the public sector in the most recent complete fiscal year? \n(Government funds include internally generated funds, basket funds, World Bank credits or loans, and other funds donors gave to the government for their use.)",null,null,null,null,null,null,"No",{"$f":"A37","v":"B7. Were government funds spent on contraceptive procurement for the public sector in the most recent complete fiscal year? \n(Government funds include internally generated funds, basket funds, World Bank credits or loans, and other funds donors gave to the government for their use.)"}]
["B8. Please complete the table below to indicate government expenditures on contraceptive procurement, by source, in the most recent complete fiscal year. \n(This is how much was spent on contraceptive procurement (not what was allocated). How much of this spending was provided from each source?)",null,null,null,null,null,null,null,null,null,null,null,null,null,null,null,null,null,null,null,null,null,null,{"$f":"A38","v":"B8. Please complete the table below to indicate government expenditures on contraceptive procurement, by source, in the most recent complete fiscal year. \n(This is how much was spent on contraceptive procurement (not what was allocated). How much of this spending was provided from each source?)"}]
[null,"Source of government funds spent on contraceptive procurement for the public sector",null,"Was this source used?\n(Y/N)","Amount spent \n(in USD)","Time period (mm/yy-mm/yy)\n(should be the same for all sources of funds & ideally be the most recent\ncomplete fiscal year ['09-'10])","Data source \n(for example: Contraceptive Procurement Table, PipeLine, etc.)","Comments",null,null,{"$f":"A39","v":0}]
[null,"a. Internally generated funds spent on contraceptive procurement",null,"No",0,"01/10-12/10",null,null,null,null,{"$f":"B40","v":"a. Internally generated funds spent on contraceptive procurement"}]
[null,null,"i. Specify source(s) of internally generated funds spent (for example, from taxes or user fees)","N/A",null,null,null,null,null,null,{"$f":"C41","v":"i. Specify source(s) of internally generated funds spent (for example, from taxes or user fees)"},null,null,null,{"$f":"D41","v":"N/A"}]
[null,"b. Total of all other government funds spent on contraceptive procurement (basket funds, World Bank credits or loans, and other funds donors gave to the government [e.g., direct budget support])",null,"No",0,"01/10-12/10",null,null,null,null,{"$f":"B42","v":"b. Total of all other government funds spent on contraceptive procurement (basket funds, World Bank credits or loans, and other funds donors gave to the government [e.g., direct budget support])"}]
[null,null,"i. Specify source(s) of other government funds spent (for example: basket funding or specific donor)","N/A",null,null,null,null,null,null,{"$f":"C43","v":"i. Specify source(s) of other government funds spent (for example: basket funding or specific donor)"},null,null,null,{"$f":"D43","v":"N/A"}]
[null,"c. TOTAL government funds spent on contraceptive procurement\nThis will auto-calculate.  (It will sum a & b above.)",null,null,{"$f":"E40+E42","v":0},null,null,null,null,null,{"$f":"B44","v":"c. TOTAL government funds spent on contraceptive procurement\nThis will auto-calculate.  (It will sum a & b above.)"}]
[null,null,null,null,null,null,null,null,null,null,{"$f":"A45","v":0}]
["B9. Please complete the table below to indicate donor expenditures on contraceptive procurement in the most recent complete fiscal year.\n",null,null,null,null,null,null,null,null,null,null,null,null,null,null,null,null,null,null,null,null,null,null,{"$f":"A46","v":"B9. Please complete the table below to indicate donor expenditures on contraceptive procurement in the most recent complete fiscal year.\n"}]
["\n","Source of donations and donor funds spent on contraceptive procurement for the public sector",null,"Was this a source?\n(Y/N)","Amount of money spent on these procurements \n(in USD)","Time period (mm/yy-mm/yy)\n(should be the same for all sources of funds & ideally be the most recent\ncomplete fiscal year ['09-'10])","Data source \n(for example:  Donor records, Contraceptive Procurement Table, PipeLine, RHInterchange, etc.","Comments",null,null,{"$f":"A47","v":"\n"}]
[null,"a. In-kind donations of contraceptives",null,"No",0,"01/10-12/10",null,null,null,null,{"$f":"B48","v":"a. In-kind donations of contraceptives"}]
[null,null,"i. Specify source(s) of in-kind donations ","N/A",null,null,null,null,null,null,{"$f":"C49","v":"i. Specify source(s) of in-kind donations "},null,null,null,{"$f":"D49","v":"N/A"}]
[null,"b. Global Fund donations used to procure condoms",null,"Yes",31355.83,"2/11/2010",null,"Procured for Open Society Institute - Assistance Foundation (OSI-AF)",null,null,{"$f":"B50","v":"b. Global Fund donations used to procure condoms"}]
[null,"c. Global Fund donations used to procure contraceptives besides condoms",null,"No",0,"01/10-12/10","RHInterchange",null,null,null,{"$f":"B51","v":"c. Global Fund donations used to procure contraceptives besides condoms"}]
[null,"d. TOTAL value of in-kind donations and Global Fund donations spent on contraceptive procurement\nThis will auto-calculate.  (It will sum a-c above.)",null,null,{"$f":"E48+E50+E51","v":31355.83},null,null,null,null,null,{"$f":"B52","v":"d. TOTAL value of in-kind donations and Global Fund donations spent on contraceptive procurement\nThis will auto-calculate.  (It will sum a-c above.)"}]
[null,null,null,null,null,null,null,null,null,null,{"$f":"A53","v":0}]
["The answers to B10 and B11 should calculate automatically based on the information you provided. Please review the answers to ensure they make sense to you, and if you have additional information to add, please note it in the comments boxes.\n\nIf the answers do not calculate automatically, please provide any relevant information you may have in the comments boxes.\n",null,null,null,null,null,null,null,null,null,null,null,null,null,null,null,null,null,null,null,null,null,null,{"$f":"A54","v":"The answers to B10 and B11 should calculate automatically based on the information you provided. Please review the answers to ensure they make sense to you, and if you have additional information to add, please note it in the comments boxes.\n\nIf the answers do not calculate automatically, please provide any relevant information you may have in the comments boxes.\n"}]
["B10. Government share of funds spent on contraceptive procurement for the public sector - \nOf the total amount spent on contraceptives for the public sector in the most recent complete fiscal year (including government and donor funds), what percent was covered by government funds (including internally generated funds, basket funds, World Bank credits or loans, and other funds given to the government)? \n\nThis will auto-calculate. (It contains the following formula: Total government spending (Question B8c) / Grand total of all spending for public sector contraceptives from the government and donors (Questions B8c+B9d))",null,null,null,null,{"$f":"E44/(E44+E52)","v":0},null,null,null,{"$f":"G55","v":0},null,null,null,null,null,null,null,{"$f":"A55","v":"B10. Government share of funds spent on contraceptive procurement for the public sector - \nOf the total amount spent on contraceptives for the public sector in the most recent complete fiscal year (including government and donor funds), what percent was covered by government funds (including internally generated funds, basket funds, World Bank credits or loans, and other funds given to the government)? \n\nThis will auto-calculate. (It contains the following formula: Total government spending (Question B8c) / Grand total of all spending for public sector contraceptives from the government and donors (Questions B8c+B9d))"}]
["B11. Total expenditures on public sector contraceptives as percent of amount that needed to be procured -\nOf the estimated value of the contraceptives needed to be procured for the public sector for the most recent complete fiscal year, what percent was provided by any source (whether government or donor)? \n\nThis will auto-calculate. (It contains the following formula: Grand total of all spending for public sector contraceptives from the government and donors (Questions B8c+B9d) / Value of estimated need for procurement (Question B2))",null,null,null,null,{"$f":"(E44+E52)/G29","v":0.29395998762503867},null,null,null,{"$f":"G56","v":0},null,null,null,null,null,null,null,{"$f":"A56","v":"B11. Total expenditures on public sector contraceptives as percent of amount that needed to be procured -\nOf the estimated value of the contraceptives needed to be procured for the public sector for the most recent complete fiscal year, what percent was provided by any source (whether government or donor)? \n\nThis will auto-calculate. (It contains the following formula: Grand total of all spending for public sector contraceptives from the government and donors (Questions B8c+B9d) / Value of estimated need for procurement (Question B2))"}]
["B12. If B11 did not calculate automatically, please answer the following question:\nWas there a funding gap for the public sector in the last complete fiscal year (e.g., 09-'10 fiscal year)?\n(Please select from the dropdown list.)",null,null,null,null,"Yes",null,null,null,{"$f":"G57","v":0},null,null,null,null,null,null,null,{"$f":"A57","v":"B12. If B11 did not calculate automatically, please answer the following question:\nWas there a funding gap for the public sector in the last complete fiscal year (e.g., 09-'10 fiscal year)?\n(Please select from the dropdown list.)"}]
[null,null,null,null,null,null,null,null,null,null,{"$f":"A58","v":0}]
["B13. If the government financed any contraceptive procurement in the most recent complete fiscal year, which entity conducted the procurement(s)? (Please select from the dropdown.)",null,null,null,null,"N/A",null,null,null,null,null,null,null,null,null,null,{"$f":"F59","v":"N/A"},{"$f":"A59","v":"B13. If the government financed any contraceptive procurement in the most recent complete fiscal year, which entity conducted the procurement(s)? (Please select from the dropdown.)"}]
[null,"a. Specify entity",null,null,null,"N/A",null,null,null,null,null,null,{"$f":"E60","v":0},null,null,null,{"$f":"F60","v":"N/A"},{"$f":"B60","v":"a. Specify entity"}]
[null,null,"i. Is this a parastatal?",null,null,"N/A",null,null,null,null,null,null,null,null,null,null,{"$f":"F61","v":"N/A"},{"$f":"C61","v":"i. Is this a parastatal?"}]
["B14. Please note any additional comments about finance and procurement.\n",null,null,"The last funding for contraceptive procurement was provided by UNFPA in 2004; however, the actual shipment of goods did not happen until 2008. The following methods were delivered: 864,000 male condoms worth US$24,014; 22,700 IUDs worth US$6,745; and 49,200 cycles of combined orals worth US$32,356.                                                                                                                                                                                                                                                  \n\nThe estimated dollar value of contraceptives needed to be procured for the public sector was US $345,735 for 2007 and US $106,667 for 2008 (source: unpublished 2006 CS assessment by DELIVER/PSP-One).",null,null,null,null,null,null,{"$f":"A62","v":"B14. Please note any additional comments about finance and procurement.\n"},null,null,null,{"$f":"D62","v":"The last funding for contraceptive procurement was provided by UNFPA in 2004; however, the actual shipment of goods did not happen until 2008. The following methods were delivered: 864,000 male condoms worth US$24,014; 22,700 IUDs worth US$6,745; and 49,200 cycles of combined orals worth US$32,356.                                                                                                                                                                                                                                                  \n\nThe estimated dollar value of contraceptives needed to be procured for the public sector was US $345,735 for 2007 and US $106,667 for 2008 (source: unpublished 2006 CS assessment by DELIVER/PSP-One)."}]
["C. Commodities"]
["C1. Are the following contraceptive methods offered through the commercial sector, public sector, NGOs, or social marketing? (Please indicate which methods are intended to be offered. This question is not asking whether the method is in stock.) \n(Please select from the dropdown list.)",null,null,null,null,null,null,null,null,null,null,null,null,null,null,null,null,null,null,null,null,null,null,{"$f":"A64","v":"C1. Are the following contraceptive methods offered through the commercial sector, public sector, NGOs, or social marketing? (Please indicate which methods are intended to be offered. This question is not asking whether the method is in stock.) \n(Please select from the dropdown list.)"}]
["Contraceptive Method",null,null,"Commercial Sector",null,"Public Sector","NGO","Social Marketing",null,null,{"$f":"A65","v":"Contraceptive Method"}]
[null,"a. Combined oral contraceptives (estrogen + progestin - for  example, LoFemenol, Microgynon)",null,"Yes",null,"No","No","No",null,null,{"$f":"B66","v":"a. Combined oral contraceptives (estrogen + progestin - for  example, LoFemenol, Microgynon)"}]
[null,"b. Progestin-only pills (for example, Ovrette, Microlut)",null,"No",null,"No","No","No",null,null,{"$f":"B67","v":"b. Progestin-only pills (for example, Ovrette, Microlut)"}]
[null,"c. Hormonal injections (for example, DepoProvera, Noristerat)",null,"No",null,"No","No","No",null,null,"c. Hormonal injections (for example, DepoProvera, Noristerat)"]
[null,"d. Hormonal implants (for example, Jadelle, Implanon)",null,"No",null,"No","No","No",null,null,"d. Hormonal implants (for example, Jadelle, Implanon)"]
[null,"e. Intrauterine devices (IUDs) (for example, Optima Copper T)",null,"Yes",null,"No","No","No",null,null,"e. Intrauterine devices (IUDs) (for example, Optima Copper T)"]
[null,"f. Male condoms",null,"Yes",null,"No","No","Yes",null,null,"f. Male condoms"]
[null,"g. Female condoms",null,"No",null,"No","No","No",null,null,"g. Female condoms"]
[null,"h. Emergency contraceptive pills (for example, Postinor)",null,"Yes",null,"No","No","No",null,null,"h. Emergency contraceptive pills (for example, Postinor)"]
[null,"i. Long-acting permanent method for males (vasectomy)",null,"No",null,"No","No","No",null,null,"i. Long-acting permanent method for males (vasectomy)"]
[null,"j. Long-acting permanent method for females (tubal ligation)",null,"Yes",null,"Yes","No","No",null,null,"j. Long-acting permanent method for females (tubal ligation)"]
[null,"k. CycleBeads",null,"No",null,"No","No","No",null,null,"k. CycleBeads"]
[null,"l. Other contraceptive methods - specify \n(Please provide the name of the other contraceptive(s) offered, by sector.)",null,"Spermicides",null,null,null,null,null,null,"l. Other contraceptive methods - specify \n(Please provide the name of the other contraceptive(s) offered, by sector.)"]
["C2. Please note any comments about the commodities offered.",null,null,null,null,null,null,null,null,null,{"$f":"A78","v":"C2. Please note any comments about the commodities offered."},null,null,null,{"$f":"D78","v":0}]
["D. Policies (Commitment)"]
["D1. Is there a contraceptive security or reproductive health commodity security strategy or is contraceptive security explicitly included in a country strategy? (Please select from the dropdown list.)",null,null,null,null,null,null,"No",{"$f":"A80","v":"D1. Is there a contraceptive security or reproductive health commodity security strategy or is contraceptive security explicitly included in a country strategy? (Please select from the dropdown list.)"}]
["IF NO, SKIP TO QUESTION D2."]
[null,"Strategy name",null,"Years Covered (including strategy updates)",null,"Is the strategy formally approved by the Ministry?","Is the contraceptive security strategy being implemented?",null,null,{"$f":"G82","v":"Is the contraceptive security strategy being implemented?"},{"$f":"B82","v":"Strategy name"},null,{"$f":"E82","v":0},null,null,null,null,null,{"$f":"D82","v":"Years Covered (including strategy updates)"}]
[null,"a",null,null,null,null,null,null,null,{"$f":"G83","v":0},{"$f":"B83","v":"a"},null,{"$f":"E83","v":0},null,null,null,null,null,{"$f":"D83","v":0}]
["D2. Are any family planning commodities subject to duties, import taxes, or other fees?",null,null,null,null,"Yes",null,null,null,null,null,null,null,null,null,null,{"$f":"F84","v":"Yes"},{"$f":"A84","v":"D2. Are any family planning commodities subject to duties, import taxes, or other fees?"}]
[null,"a. If yes, for which sectors (public, NGO, social marketing, commercial)?",null,null,"Commercial sector (no information regarding other sectors)",null,null,null,null,null,null,null,{"$f":"E85","v":"Commercial sector (no information regarding other sectors)"},{"$f":"E85","v":"Commercial sector (no information regarding other sectors)"},null,null,null,{"$f":"B85","v":"a. If yes, for which sectors (public, NGO, social marketing, commercial)?"}]
[null,"b. If yes, how much are the duties, taxes, or fees?",null,null,"oral pills - 18% VAT + 1% other fees; medical devices (condom, IUD) - up to 36% VAT",null,null,null,null,null,null,null,null,{"$f":"E86","v":"oral pills - 18% VAT + 1% other fees; medical devices (condom, IUD) - up to 36% VAT"},null,null,null,{"$f":"B86","v":"b. If yes, how much are the duties, taxes, or fees?"}]
["D3. Are there policies that hinder the ability of the private sector (commercial sector, NGOs, or social marketing) to provide contraceptive methods (for example: price controls, distribution limitations, taxes/duties, advertising bans, etc.)?",null,null,null,null,null,null,"Yes",{"$f":"A87","v":"D3. Are there policies that hinder the ability of the private sector (commercial sector, NGOs, or social marketing) to provide contraceptive methods (for example: price controls, distribution limitations, taxes/duties, advertising bans, etc.)?"}]
[null,"a. If yes, describe the policies.",null,"There is a policy that allows advertising of condoms only after midnight, which is seen as hindering promotional efforts.",null,null,null,null,null,null,{"$f":"B88","v":"a. If yes, describe the policies."},null,null,null,{"$f":"D88","v":"There is a policy that allows advertising of condoms only after midnight, which is seen as hindering promotional efforts."}]
["D4. Are there policies that enable the private sector (commercial sector, NGOs, or social marketing) to provide contraceptive methods?",null,null,null,null,null,null,"Don't know",{"$f":"A89","v":"D4. Are there policies that enable the private sector (commercial sector, NGOs, or social marketing) to provide contraceptive methods?"}]
[null,"a. If yes, describe the policies.",null,"There is no price control policy.",null,null,null,null,null,null,{"$f":"B90","v":"a. If yes, describe the policies."},null,null,null,{"$f":"D90","v":"There is no price control policy."}]
["D5. Do policies or regulations exist that restrict who can sell or dispense particular contraceptive methods?\n",null,null,null,null,null,null,"No",{"$f":"A91","v":"D5. Do policies or regulations exist that restrict who can sell or dispense particular contraceptive methods?\n"}]
[null,"Please note any restrictions in the following table."]
[null,"Contraceptive Method(s)",null,null,"Describe any public sector restriction on who is allowed to sell or dispense the method",null,"Describe any private sector restriction on who is allowed to sell or dispense the method",null,null,{"$f":"G93","v":"Describe any private sector restriction on who is allowed to sell or dispense the method"},null,null,null,null,null,{"$f":"B93","v":"Contraceptive Method(s)"},null,null,null,null,{"$f":"E93","v":"Describe any public sector restriction on who is allowed to sell or dispense the method"}]
[null,"a",null,null,null,null,null,null,null,{"$f":"G94","v":0},null,null,{"$f":"E94","v":0},null,null,{"$f":"C94","v":0},null,null,null,null,{"$f":"E94","v":0}]
[null,"b",null,null,null,null,null,null,null,{"$f":"G95","v":0},null,null,{"$f":"E95","v":0},null,null,{"$f":"C95","v":0},null,null,null,null,{"$f":"E95","v":0}]
[null,"c",null,null,null,null,null,null,null,{"$f":"G96","v":0},null,null,{"$f":"E96","v":0},null,null,{"$f":"C96","v":0},null,null,null,null,{"$f":"E96","v":0}]
[null,null,null,null,null,null,null,null,null,null,{"$f":"C97","v":0}]
["D6. Does the country have laws, regulations, or policies that make it difficult for the following sub-populations to access effective family planning services?",null,null,"Y/N","If yes, describe laws/regulations/policies affecting access ",null,null,"Are the rules/policies implemented?",null,null,{"$f":"A98","v":"D6. Does the country have laws, regulations, or policies that make it difficult for the following sub-populations to access effective family planning services?"},null,null,null,null,null,null,null,null,null,null,{"$f":"E98","v":"If yes, describe laws/regulations/policies affecting access "}]
[null,"a. Unmarried people",null,"No",null,null,null,null,null,null,{"$f":"B99","v":"a. Unmarried people"},null,{"$f":"E99","v":0},null,null,null,null,null,null,null,null,{"$f":"E99","v":0}]
[null,"b. Young people",null,"No",null,null,null,null,null,null,{"$f":"B100","v":"b. Young people"},null,{"$f":"E100","v":0},null,null,null,null,null,null,null,null,{"$f":"E100","v":0}]
[null,"c. Other",null,"Yes","Currently only ob/gyns can provide FP services; therefore, people from remote and rural areas need to travel to a central rayon hospital or FP clinic to get an IUD insertion, OC prescription, or sterilization.   ",null,null,"Yes",null,null,{"$f":"B101","v":"c. Other"},null,{"$f":"E101","v":"Currently only ob/gyns can provide FP services; therefore, people from remote and rural areas need to travel to a central rayon hospital or FP clinic to get an IUD insertion, OC prescription, or sterilization.   "},null,null,null,null,null,null,null,null,{"$f":"E101","v":"Currently only ob/gyns can provide FP services; therefore, people from remote and rural areas need to travel to a central rayon hospital or FP clinic to get an IUD insertion, OC prescription, or sterilization.   "}]
[null,null,null,null,null,null,null,null,null,null,{"$f":"C102","v":0}]
["D7. Are there charges* to the client in the public sector for family planning:\n*(This question refers to charges by policy, not under-the-table charges.)\n",null,null,null,null,null,null,null,null,null,null,null,null,null,null,null,null,null,null,null,null,null,null,{"$f":"A103","v":"D7. Are there charges* to the client in the public sector for family planning:\n*(This question refers to charges by policy, not under-the-table charges.)\n"}]
[null,"a. Services?",null,null,null,null,"No",null,null,{"$f":"G104","v":"No"},null,null,null,null,null,null,null,null,null,null,null,null,null,null,{"$f":"B104","v":"a. Services?"}]
[null,"b. Commodities?",null,null,null,null,"No",null,null,{"$f":"G105","v":"No"},null,null,null,null,null,null,null,null,null,null,null,null,null,null,{"$f":"B105","v":"b. Commodities?"}]
[null,"c. If yes, are there exemptions for people who cannot afford to pay?",null,null,null,null,"N/A",null,null,{"$f":"G106","v":"N/A"},null,null,null,null,null,null,null,null,null,null,null,null,null,null,{"$f":"B106","v":"c. If yes, are there exemptions for people who cannot afford to pay?"}]
[null,null,"i. If yes, describe the exemptions.","N/A",null,null,null,null,null,null,{"$f":"C107","v":"i. If yes, describe the exemptions."},null,null,null,{"$f":"D107","v":"N/A"}]
["D8. Are the following contraceptives included in the country's National Essential Medicine List (NEML) or other equivalent priority list?",null,null,null,null,null,null,null,null,null,null,null,null,null,null,null,null,null,null,null,null,null,null,{"$f":"A108","v":"D8. Are the following contraceptives included in the country's National Essential Medicine List (NEML) or other equivalent priority list?"}]
[null,"a. Combined oral contraceptives",null,null,null,null,"Yes",null,null,{"$f":"G109","v":"Yes"},null,null,null,null,null,null,null,null,null,null,null,null,null,null,{"$f":"B109","v":"a. Combined oral contraceptives"}]
[null,"b. Progestin-only pills",null,null,null,null,"Yes",null,null,"Yes",null,null,null,null,null,null,null,null,null,null,null,null,null,null,"b. Progestin-only pills"]
[null,"c. Hormonal injections",null,null,null,null,"No",null,null,"No",null,null,null,null,null,null,null,null,null,null,null,null,null,null,"c. Hormonal injections"]
[null,"d. Hormonal implants",null,null,null,null,"No",null,null,"No",null,null,null,null,null,null,null,null,null,null,null,null,null,null,"d. Hormonal implants"]
[null,"e. Intrauterine devices (IUDs)",null,null,null,null,"Yes",null,null,"Yes",null,null,null,null,null,null,null,null,null,null,null,null,null,null,"e. Intrauterine devices (IUDs)"]
[null,"f. Male condoms",null,null,null,null,"Yes",null,null,"Yes",null,null,null,null,null,null,null,null,null,null,null,null,null,null,"f. Male condoms"]
[null,"g. Female condoms",null,null,null,null,"No",null,null,"No",null,null,null,null,null,null,null,null,null,null,null,null,null,null,"g. Female condoms"]
[null,"h. Emergency contraceptive pills",null,null,null,null,"Yes",null,null,"Yes",null,null,null,null,null,null,null,null,null,null,null,null,null,null,"h. Emergency contraceptive pills"]
[null,"i. CycleBeads",null,null,null,null,"No",null,null,{"$f":"G117","v":"No"},null,null,null,null,null,null,null,null,null,null,null,null,null,null,{"$f":"B117","v":"i. CycleBeads"}]
[null,"j. Any other contraceptive(s)?",null,null,null,null,"No",null,null,"No",null,null,null,null,null,null,null,null,null,null,null,null,null,null,"j. Any other contraceptive(s)?"]
[null,null,"i. Name of other contraceptive(s) on the list(s)",null,null,"N/A",null,null,null,0,null,null,null,null,null,null,null,{"$f":"B119","v":0}]
["D9. What year(s) is the list(s) from?",null,null,null,null,"2008 but never published",null,null,null,0,null,null,null,null,null,null,null,{"$f":"B120","v":0}]
["D10. Name of the list(s)\n\n\n",null,null,"Essential Drug List",null,null,null,null,null,null,{"$f":"A121","v":"D10. Name of the list(s)\n\n\n"},null,null,null,{"$f":"D121","v":"Essential Drug List"}]
["D11. Notes about the list(s)\n\n\n",null,null,"The EDL was never approved by the Ministry of Health. There is hope that it will be published this year. ",null,null,null,null,null,null,{"$f":"A122","v":"D11. Notes about the list(s)\n\n\n"},null,null,null,{"$f":"D122","v":"The EDL was never approved by the Ministry of Health. There is hope that it will be published this year. "}]
["D12.  Information on country's Poverty Reduction Strategy Paper (PRSP)\n",null,null,null,null,null,null,null,null,null,null,null,null,null,null,null,null,null,null,null,null,null,null,{"$f":"A123","v":"D12.  Information on country's Poverty Reduction Strategy Paper (PRSP)\n"}]
[null,"a. What year is the Poverty Reduction Strategy Paper from? (most recent actual PRSP on IMF's site [not progress or summary report])",null,null,null,2003,null,null,null,{"$f":"G124","v":0},null,null,null,null,null,null,null,{"$f":"B124","v":"a. What year is the Poverty Reduction Strategy Paper from? (most recent actual PRSP on IMF's site [not progress or summary report])"}]
[null,"b. Is family planning or reproductive health a priority in the PRSP?",null,null,null,null,"Yes",null,null,{"$f":"G125","v":"Yes"},null,null,null,null,null,null,null,null,null,null,null,null,null,null,{"$f":"B125","v":"b. Is family planning or reproductive health a priority in the PRSP?"}]
[null,"c. Is contraceptive security included in the PRSP?",null,null,null,null,"Yes",null,null,{"$f":"G126","v":"Yes"},null,null,null,null,null,null,null,null,null,null,null,null,null,null,{"$f":"B126","v":"c. Is contraceptive security included in the PRSP?"}]
[null,"d. Is contraceptive prevalence rate (CPR) included as an indicator in the PRSP?",null,null,null,null,"No",null,null,{"$f":"G127","v":"No"},null,null,null,null,null,null,null,null,null,null,null,null,null,null,{"$f":"B127","v":"d. Is contraceptive prevalence rate (CPR) included as an indicator in the PRSP?"}]
[null,"e. Are contraceptive supply indicators included in the PRSP?",null,null,null,null,"No",null,null,{"$f":"G128","v":"No"},null,null,null,null,null,null,null,null,null,null,null,null,null,null,{"$f":"B128","v":"e. Are contraceptive supply indicators included in the PRSP?"}]
["\n\n\n","f. Notes about the Poverty Reduction Strategy Paper",null,"Improving the system of delivering high quality contraceptives and medicines was a \"measure and action\" but not an indicator.",null,null,null,null,null,null,{"$f":"B129","v":"f. Notes about the Poverty Reduction Strategy Paper"},null,null,null,{"$f":"D129","v":"Improving the system of delivering high quality contraceptives and medicines was a \"measure and action\" but not an indicator."}]
["E. Supply Chain (Capacity)"]
["E1. Have stockouts occurred for any contraceptive at the central* level in the last 12 months?  \n*(The central level refers to the central level warehouse for the public sector.)",null,null,null,null,null,"N/A",null,null,{"$f":"G131","v":"N/A"},null,null,null,null,null,null,null,null,null,null,null,null,null,null,{"$f":"A131","v":"E1. Have stockouts occurred for any contraceptive at the central* level in the last 12 months?  \n*(The central level refers to the central level warehouse for the public sector.)"}]
["E2. In the last 12 months, has there ever been a stockout at the central level of any of the contraceptives offered in public sector facilities? (If a method is not intended to be offered in public sector facilities, please indicate that stockouts are not applicable (choose \"N/A\" from the dropdown list).)",null,null,null,null,null,null,null,null,null,null,null,null,null,null,null,null,null,null,null,null,null,null,{"$f":"A132","v":"E2. In the last 12 months, has there ever been a stockout at the central level of any of the contraceptives offered in public sector facilities? (If a method is not intended to be offered in public sector facilities, please indicate that stockouts are not applicable (choose \"N/A\" from the dropdown list).)"}]
[null,"a. Combined oral contraceptives",null,null,null,null,"N/A",null,null,{"$f":"G133","v":"N/A"},null,null,null,null,null,null,null,null,null,null,null,null,null,null,{"$f":"B133","v":"a. Combined oral contraceptives"}]
[null,"b. Progestin-only pills",null,null,null,null,"N/A",null,null,"N/A",null,null,null,null,null,null,null,null,null,null,null,null,null,null,"b. Progestin-only pills"]
[null,"c. Hormonal injections",null,null,null,null,"N/A",null,null,"N/A",null,null,null,null,null,null,null,null,null,null,null,null,null,null,"c. Hormonal injections"]
[null,"d. Hormonal implants",null,null,null,null,"N/A",null,null,"N/A",null,null,null,null,null,null,null,null,null,null,null,null,null,null,"d. Hormonal implants"]
[null,"e. Intrauterine devices (IUDs)",null,null,null,null,"N/A",null,null,"N/A",null,null,null,null,null,null,null,null,null,null,null,null,null,null,"e. Intrauterine devices (IUDs)"]
[null,"f. Male condoms",null,null,null,null,"N/A",null,null,"N/A",null,null,null,null,null,null,null,null,null,null,null,null,null,null,"f. Male condoms"]
[null,"g. Female condoms",null,null,null,null,"N/A",null,null,"N/A",null,null,null,null,null,null,null,null,null,null,null,null,null,null,"g. Female condoms"]
[null,"h. Emergency contraceptive pills",null,null,null,null,"N/A",null,null,"N/A",null,null,null,null,null,null,null,null,null,null,null,null,null,null,"h. Emergency contraceptive pills"]
[null,"i. CycleBeads",null,null,null,null,"N/A",null,null,"N/A",null,null,null,null,null,null,null,null,null,null,null,null,null,null,"i. CycleBeads"]
[null,"j. Time period\n(mm/yy - mm/yy) (for example, 1/10-12/10) ",null,null,null,"N/A",null,null,null,null,null,null,null,null,null,null,{"$f":"F142","v":"N/A"},{"$f":"B142","v":"j. Time period\n(mm/yy - mm/yy) (for example, 1/10-12/10) "}]
[null,"k. Data source\n(for example: Procurement Planning and Monitoring Report, Logistics Management Information System, periodic physical inventory, warehouse reports)",null,null,null,"N/A",null,null,null,null,null,null,null,null,null,null,{"$f":"F143","v":"N/A"},{"$f":"B143","v":"k. Data source\n(for example: Procurement Planning and Monitoring Report, Logistics Management Information System, periodic physical inventory, warehouse reports)"}]
["E3. Are stockouts a large problem in your country at the following levels? (i.e., Are they common or do they tend to last for a long time?)\n\n"]
[null,"a. service delivery point level (i.e., public sector health facilities)",null,null,null,null,"N/A",null,null,{"$f":"G145","v":"N/A"},null,null,null,null,null,null,null,null,null,null,null,null,null,null,{"$f":"B145","v":"a. service delivery point level (i.e., public sector health facilities)"}]
[null,"b. central level (i.e., central level warehouse for the public sector)",null,null,null,null,"N/A",null,null,{"$f":"G146","v":"N/A"},null,null,null,null,null,null,null,null,null,null,null,null,null,null,{"$f":"B146","v":"b. central level (i.e., central level warehouse for the public sector)"}]
["F. Please note any overall comments about challenges and/or successes with contraceptive security in your country.\n\n",null,null,"Public warehouses do not carry contraceptives. ",null,null,null,null,null,null,{"$f":"A147","v":"F. Please note any overall comments about challenges and/or successes with contraceptive security in your country.\n\n"},null,null,null,{"$f":"D147","v":"Public warehouses do not carry contraceptives. "}]

{"sheet":"Bangladesh 2011","index":9,"n_rows":147,"n_cols":25,"rows_kept":147,"cut":false,"hidden":false,"merged":[[142,5,142,7],[141,1,141,4],[141,5,141,7],[142,1,142,4],[138,1,138,5],[143,0,143,7],[147,0,147,7],[148,0,150,7],[145,1,145,5],[145,6,145,7],[146,0,146,2],[146,3,146,7],[144,1,144,5],[144,6,144,7],[136,1,136,5],[136,6,136,7],[137,1,137,5],[137,6,137,7],[138,6,138,7],[139,1,139,5],[139,6,139,7],[140,1,140,5],[140,6,140,7],[131,0,131,7],[132,1,132,5],[132,6,132,7],[133,1,133,5],[133,6,133,7],[134,1,134,5],[134,6,134,7],[135,1,135,5],[135,6,135,7],[120,0,120,2],[120,3,120,7],[121,0,121,2],[121,3,121,7],[129,0,129,6],[130,0,130,5],[130,6,130,7],[122,0,122,7],[123,1,123,4],[123,5,123,7],[115,1,115,5],[115,6,115,7],[116,1,116,5],[116,6,116,7],[117,1,117,5],[117,6,117,7],[118,2,118,4],[118,5,118,7],[119,0,119,4],[119,5,119,7],[110,1,110,5],[110,6,110,7],[111,1,111,5],[111,6,111,7],[112,1,112,5],[112,6,112,7],[113,1,113,5],[113,6,113,7],[114,1,114,5],[114,6,114,7],[104,1,104,5],[104,6,104,7],[105,1,105,5],[105,6,105,7],[106,3,106,7],[107,0,107,7],[108,1,108,5],[108,6,108,7],[109,1,109,5],[109,6,109,7],[98,1,98,2],[98,4,98,6],[99,1,99,2],[99,4,99,6],[100,1,100,2],[100,4,100,6],[101,0,101,7],[102,0,102,7],[103,1,103,5],[103,6,103,7],[94,2,94,3],[94,4,94,5],[94,6,94,7],[95,2,95,3],[95,4,95,5],[95,6,95,7],[96,0,96,7],[97,0,97,2],[97,4,97,6],[88,0,88,6],[89,1,89,2],[89,3,89,7],[90,0,90,6],[91,1,91,2],[92,1,92,3],[92,4,92,5],[92,6,92,7],[93,2,93,3],[93,4,93,5],[93,6,93,7],[83,0,83,4],[83,5,83,7],[84,1,84,3],[84,4,84,7],[85,1,85,3],[85,4,85,7],[86,0,86,6],[87,1,87,2],[87,3,87,7],[77,0,77,2],[77,3,77,7],[78,0,78,6],[79,0,79,6],[80,0,80,2],[81,0,82,0],[81,1,81,2],[81,3,81,4],[81,6,81,7],[82,3,82,4],[82,6,82,7],[72,1,72,2],[72,3,72,4],[73,1,73,2],[73,3,73,4],[74,1,74,2],[74,3,74,4],[75,1,75,2],[75,3,75,4],[76,1,76,2],[76,3,76,4],[67,1,67,2],[67,3,67,4],[68,1,68,2],[68,3,68,4],[69,1,69,2],[69,3,69,4],[70,1,70,2],[70,3,70,4],[71,1,71,2],[71,3,71,4],[61,0,61,2],[61,3,61,7],[62,0,62,6],[63,0,63,7],[64,0,64,2],[64,3,64,4],[65,1,65,2],[65,3,65,4],[66,1,66,2],[66,3,66,4],[55,0,55,4],[55,6,55,7],[56,0,56,4],[56,6,56,7],[58,0,58,4],[58,5,58,7],[59,1,59,4],[59,5,59,7],[60,2,60,4],[60,5,60,7],[51,1,51,2],[53,0,53,7],[54,0,54,4],[54,6,54,7],[45,0,45,7],[46,1,46,2],[47,1,47,2],[48,3,48,7],[49,1,49,2],[50,1,50,2],[35,0,35,7],[36,0,36,6],[37,0,37,7],[38,1,38,2],[39,1,39,2],[40,3,40,7],[41,1,41,2],[42,3,42,7],[43,1,43,2],[28,0,28,5],[28,6,28,7],[29,0,29,3],[29,6,29,7],[30,0,30,6],[31,0,31,6],[32,0,32,7],[33,1,33,3],[34,1,34,3],[21,1,21,2],[21,5,21,7],[22,1,22,2],[22,5,22,7],[23,0,23,6],[24,0,24,6],[25,0,25,2],[26,0,26,6],[27,0,27,2],[27,3,27,4],[16,1,16,2],[16,5,16,7],[17,1,17,2],[17,5,17,7],[18,1,18,2],[18,5,18,7],[19,1,19,2],[19,5,19,7],[20,1,20,2],[20,5,20,7],[0,0,0,7],[1,0,1,2],[1,3,1,4],[2,0,2,7],[3,3,3,4],[10,0,10,6],[5,0,5,2],[8,0,8,7],[13,3,13,7],[126,6,126,7],[3,5,3,7],[127,1,127,5],[127,6,127,7],[128,1,128,2],[128,3,128,7],[124,1,124,5],[124,6,124,7],[125,1,125,5],[125,6,125,7],[126,1,126,5],[7,0,7,2],[7,3,7,5],[7,6,7,7],[9,0,9,7],[4,0,4,2],[11,0,11,6],[12,1,12,2],[12,3,12,7],[13,0,13,2],[14,1,14,2],[14,5,14,7],[15,1,15,2],[15,5,15,7]]}
[null,null,null,null,null,null,null,null,"Columns I-Y are meant to be hidden. They exist because they allow for the dropdown list options. They also allow for merged cells to autofit properly in terms of row height. This should work if all columns remain at their correct widths.","g-h",null,"a-e merged","E-F merged","e-h","0 times",null,null,"The government (e.g., Central Medical Stores, MOH logistics unit, MOH procurement unit)",null,null,null,null,"Yes","a-h","January"]
[null,null,null,null,null,null,null,null,null,null,"A-c",null,null,null,"1-2 times","b-d merged",null,"Third-party agent (e.g., UNFPA, Crown Agents)","d-e merged","d-f merged","e-f merged","e-g merged","No",null,"February"]
[null,null,null,null,null,null,null,null,null,null,null,null,null,null,"3-5 times",null,null,"The government and a third-party agent",null,null,null,null,null,null,"March"]
[null,null,null,null,null,null,null,null,null,null,null,null,null,null,"6 or more times",null,null,"Other",null,null,null,null,"N/A",null,"April"]
["To jump to the Introduction sheet, click here.",null,null,null,null,null,null,null,null,null,null,null,null,null,null,null,null,null,null,null,null,null,"Don't know",null,"May"]
[null,null,null,null,null,null,null,null,null,null,null,null,null,null,"N/A",null,null,"N/A",null,null,null,null,null,null,"June"]
["Contraceptive Security (CS) Indicators 2011 Data ",null,null,null,null,null,null,null,null,null,null,null,null,null,"Don't know",null,null,"Don't know",null,null,null,null,null,null,"July"]
["Country: Bangladesh",null,null,null,null,null,null,null,null,{"$f":"G8","v":0},{"$f":"A8","v":"Country: Bangladesh"},null,null,null,null,"or c-d",null,null,null,{"$f":"D8","v":0},null,null,null,null,"August"]
["The CS Indicators are presented in the following sections:\n\n               A. leadership & cooordination               B. finance & procurement               C. commodities               D. policies               E. supply chain",null,null,null,null,null,null,null,null,{"$f":"G9","v":0},{"$f":"A9","v":"The CS Indicators are presented in the following sections:\n\n               A. leadership & cooordination               B. finance & procurement               C. commodities               D. policies               E. supply chain"},null,null,null,"d-h",null,"f-h merged",null,{"$f":"D9","v":0},null,null,null,null,null,"September"]
["\nNotes:\n  -  Respondents' answers are indicated in the white spaces. \n  -  N/A = not applicable. Don't know = the respondent either indicated they did not know or left the answer blank.\n  -  Some questions required respondents to choose from a dropdown list of options; in these cases the dropdown arrow will \n     appear when you click on the cell. \n  -  There may be a few inserted comments. (If you cannot already see them, click on Review tab - Comments group - Show All Comments in newer \n       versions of Excel or View - Comments in older versions of Excel.)\n  -  If the answer is cut off, you can either manually adjust the row height or autofit the row height in order to see the whole \n     response. (To autofit the row height, select the answer(s) and go to Home tab - Cells group - Format - Autofit Row Height in newer versions of Excel or \n      Format - Row - Autofit in older versions of Excel.)\n",null,null,null,null,null,null,null,"a-g",null,null,null,null,null,null,null,null,"a-e merged",null,null,null,null,null,{"$f":"A10","v":"\nNotes:\n  -  Respondents' answers are indicated in the white spaces. \n  -  N/A = not applicable. Don't know = the respondent either indicated they did not know or left the answer blank.\n  -  Some questions required respondents to choose from a dropdown list of options; in these cases the dropdown arrow will \n     appear when you click on the cell. \n  -  There may be a few inserted comments. (If you cannot already see them, click on Review tab - Comments group - Show All Comments in newer \n       versions of Excel or View - Comments in older versions of Excel.)\n  -  If the answer is cut off, you can either manually adjust the row height or autofit the row height in order to see the whole \n     response. (To autofit the row height, select the answer(s) and go to Home tab - Cells group - Format - Autofit Row Height in newer versions of Excel or \n      Format - Row - Autofit in older versions of Excel.)\n"},"October"]
["A. Leadership and Coordination",null,null,null,null,null,null,null,null,null,null,null,null,null,null,null,null,null,null,null,null,null,null,null,"November"]
["A1. Is there a national committee that works on contraceptive security? (Please select from the dropdown list.)\n(Committee should have some aspect of contraceptive security as part of its Terms of Reference, even if it is known by a different name, for example: Family Planning, Reproductive Health, Maternal Mortality, Essential Medicine Committee, etc.)  ",null,null,null,null,null,null,"Yes",{"$f":"A12","v":"A1. Is there a national committee that works on contraceptive security? (Please select from the dropdown list.)\n(Committee should have some aspect of contraceptive security as part of its Terms of Reference, even if it is known by a different name, for example: Family Planning, Reproductive Health, Maternal Mortality, Essential Medicine Committee, etc.)  "},null,null,null,null,null,null,null,null,null,null,null,null,null,null,null,"December"]
[null,"a. What is the name of the committee?",null,"Logistics Coordination Forum (LCF)",null,null,null,null,null,null,{"$f":"B13","v":"a. What is the name of the committee?"},{"$f":"D13","v":"Logistics Coordination Forum (LCF)"},null,null,{"$f":"D13","v":"Logistics Coordination Forum (LCF)"}]
["A2. Are the following organizations represented on the committee?",null,null,"(Y/N \ndropdown)",null,null,null,null,null,null,{"$f":"A14","v":"A2. Are the following organizations represented on the committee?"},null,null,null,null,null,null,null,null,null,null,null,null,null,"Don't know"]
[null,"a. Social marketing",null,"Yes","If yes, specify name(s) of organizations","Social Marketing Company (SMC)",null,null,null,null,{"$f":"B15","v":"a. Social marketing"},null,null,null,null,null,{"$f":"F15","v":"Social Marketing Company (SMC)"}]
[null,"b. NGO (for example: service delivery, advocacy, Planned Parenthood affiliate, Marie Stopes affiliate, faith-based organizations, etc.)",null,"Yes","If yes, specify name(s) of organizations","Family Planning Association of Bangladesh, Marie Stopes",null,null,null,null,"b. NGO (for example: service delivery, advocacy, Planned Parenthood affiliate, Marie Stopes affiliate, faith-based organizations, etc.)",null,null,null,null,null,"Family Planning Association of Bangladesh, Marie Stopes"]
[null,"c. Commercial sector (for example: pharmacy associations, manufacturers, etc.)",null,"No","If yes, specify name(s) of organizations",null,null,null,null,null,"c. Commercial sector (for example: pharmacy associations, manufacturers, etc.)",null,null,null,null,null,0]
[null,"d. Donors",null,"Yes","If yes, specify name(s) of donors","USAID, World Bank, JICA, GTZ, CIDA, KfW, DFID",null,null,null,null,"d. Donors",null,null,null,null,null,"USAID, World Bank, JICA, GTZ, CIDA, KfW, DFID"]
[null,"e. UN agencies",null,"Yes","If yes, specify name(s) of agencies","UNFPA",null,null,null,null,"e. UN agencies",null,null,null,null,null,"UNFPA"]
[null,"f. Ministry of Health (for example: logistics, reproductive health, family planning, maternal and child health, HIV/AIDS, pharmacy units, etc.)",null,"Yes","If yes, specify name(s) of units","Directorate General of Family Planning, MOHFW",null,null,null,null,"f. Ministry of Health (for example: logistics, reproductive health, family planning, maternal and child health, HIV/AIDS, pharmacy units, etc.)",null,null,null,null,null,"Directorate General of Family Planning, MOHFW"]
[null,"g. Central Medical Store or Central Warehouse",null,"Yes","If yes, specify","Directorate General Family Planning (DGFP) central warehouse",null,null,null,null,"g. Central Medical Store or Central Warehouse",null,null,null,null,null,"Directorate General Family Planning (DGFP) central warehouse"]
[null,"h. Ministry of Finance or Ministry of Planning ",null,"No","If yes, specify",null,null,null,null,null,"h. Ministry of Finance or Ministry of Planning ",null,null,null,null,null,0]
[null,"i. Other (for example: partners)",null,"Yes","If yes, specify","Management Sciences for Health/Strengthening Pharmaceuticals Systems (MSH/SPS) Program",null,null,null,null,"i. Other (for example: partners)",null,null,null,null,null,"Management Sciences for Health/Strengthening Pharmaceuticals Systems (MSH/SPS) Program"]
["A3. How many times did the committee meet during the last year? (0, 1-2, 3-5, or 6+)  (Please select from the dropdown.)",null,null,null,null,null,null,"6 or more times",{"$f":"A24","v":"A3. How many times did the committee meet during the last year? (0, 1-2, 3-5, or 6+)  (Please select from the dropdown.)"}]
["A4. Does the committee have legal status?  (Please select from the dropdown.)                                  ",null,null,null,null,null,null,"Yes",{"$f":"A25","v":"A4. Does the committee have legal status?  (Please select from the dropdown.)                                  "}]
["A5. Is there a Contraceptive Security \"champion\"? (someone who consistently brings up and advocates for contraceptive supplies)",null,null,"Yes","If yes, specify person's organization","USAID","Specify person's job title","Sr. FP Advisor",null,null,{"$f":"A26","v":"A5. Is there a Contraceptive Security \"champion\"? (someone who consistently brings up and advocates for contraceptive supplies)"}]
["B. Finance and Procurement (Capital)"]
["B1. What is the timeline of the country's fiscal year?",null,null,"Beginning month",null,"July","Ending month","June",null,null,{"$f":"B28","v":0}]
["B2. What was the estimated dollar value of contraceptives needed to be procured for the public sector for the most recent complete fiscal year? (in USD currency)\n(for example, to cover the needs for the '09-'10 fiscal year)",null,null,null,null,null,43571427,null,null,{"$f":"G29","v":43571427},null,null,{"$f":"E29","v":0},null,null,null,null,null,null,null,null,null,null,null,{"$f":"A29","v":"B2. What was the estimated dollar value of contraceptives needed to be procured for the public sector for the most recent complete fiscal year? (in USD currency)\n(for example, to cover the needs for the '09-'10 fiscal year)"}]
["B3. When was the last forecast/quantification conducted? (mm/yy)",null,null,null,"07/10","Who conducted it? (Specify organization.)","DGFP",null,null,{"$f":"G30","v":"DGFP"},null,null,{"$f":"E30","v":"07/10"},null,null,null,null,null,null,null,null,null,null,null,{"$f":"A30","v":"B3. When was the last forecast/quantification conducted? (mm/yy)"}]
["B4. Is there a government budget line item for the procurement of contraceptives?  (Please select from the dropdown list.)",null,null,null,null,null,null,"Yes",{"$f":"A31","v":"B4. Is there a government budget line item for the procurement of contraceptives?  (Please select from the dropdown list.)"}]
["B5. Were government funds allocated for contraceptive procurement for the public sector in the most recent complete fiscal year? (This question refers to funds planned to be spent on contraceptives, whether or not they ended up being spent.) \n\n(Government funds include internally generated funds, basket funds, World Bank credits or loans, and other funds donors gave to the government for their use.) \n",null,null,null,null,null,null,"Yes",{"$f":"A32","v":"B5. Were government funds allocated for contraceptive procurement for the public sector in the most recent complete fiscal year? (This question refers to funds planned to be spent on contraceptives, whether or not they ended up being spent.) \n\n(Government funds include internally generated funds, basket funds, World Bank credits or loans, and other funds donors gave to the government for their use.) \n"}]
["B6. Please complete the table below regarding government allocations for contraceptive procurement.",null,null,null,null,null,null,null,null,null,null,null,null,null,null,null,null,null,null,null,null,null,null,{"$f":"A33","v":"B6. Please complete the table below regarding government allocations for contraceptive procurement."}]
[null,null,null,null,"Amount allocated \n(in USD)","Time period during which allocations were supposed to be spent \n(mm/yy-mm/yy)\n(should ideally be the most recent\ncomplete fiscal year ['09-'10])","Data source \n(for example: Ministry records)","Comments",null,null,{"$f":"A34","v":0}]
[null,"Government funds allocated for contraceptive procurement\n(funds originally designated for contraceptives, whether or not they ended up being spent on them)",null,null,714285,"07/09-06/10","DGFP procurement plan",null,null,null,{"$f":"#REF!","v":{"$error":"#REF!"}}]
[]
["B7. Were government funds spent on contraceptive procurement for the public sector in the most recent complete fiscal year? \n(Government funds include internally generated funds, basket funds, World Bank credits or loans, and other funds donors gave to the government for their use.)",null,null,null,null,null,null,"Yes",{"$f":"A37","v":"B7. Were government funds spent on contraceptive procurement for the public sector in the most recent complete fiscal year? \n(Government funds include internally generated funds, basket funds, World Bank credits or loans, and other funds donors gave to the government for their use.)"}]
["B8. Please complete the table below to indicate government expenditures on contraceptive procurement, by source, in the most recent complete fiscal year. \n(This is how much was spent on contraceptive procurement (not what was allocated). How much of this spending was provided from each source?)",null,null,null,null,null,null,null,null,null,null,null,null,null,null,null,null,null,null,null,null,null,null,{"$f":"A38","v":"B8. Please complete the table below to indicate government expenditures on contraceptive procurement, by source, in the most recent complete fiscal year. \n(This is how much was spent on contraceptive procurement (not what was allocated). How much of this spending was provided from each source?)"}]
[null,"Source of government funds spent on contraceptive procurement for the public sector",null,"Was this source used?\n(Y/N)","Amount spent \n(in USD)","Time period (mm/yy-mm/yy)\n(should be the same for all sources of funds & ideally be the most recent\ncomplete fiscal year ['09-'10])","Data source \n(for example: Contraceptive Procurement Table, PipeLine, etc.)","Comments",null,null,{"$f":"A39","v":0}]
[null,"a. Internally generated funds spent on contraceptive procurement",null,"Yes",714285,"07/09-06/10","DGFP",null,null,null,{"$f":"B40","v":"a. Internally generated funds spent on contraceptive procurement"}]
[null,null,"i. Specify source(s) of internally generated funds spent (for example, from taxes or user fees)","General revenue funds",null,null,null,null,null,null,{"$f":"C41","v":"i. Specify source(s) of internally generated funds spent (for example, from taxes or user fees)"},null,null,null,{"$f":"D41","v":"General revenue funds"}]
[null,"b. Total of all other government funds spent on contraceptive procurement (basket funds, World Bank credits or loans, and other funds donors gave to the government [e.g., direct budget support])",null,"Yes",35714285,"07/09-06/10","DGFP",null,null,null,{"$f":"B42","v":"b. Total of all other government funds spent on contraceptive procurement (basket funds, World Bank credits or loans, and other funds donors gave to the government [e.g., direct budget support])"}]
[null,null,"i. Specify source(s) of other government funds spent (for example: basket funding or specific donor)","Basket funds",null,null,null,null,null,null,{"$f":"C43","v":"i. Specify source(s) of other government funds spent (for example: basket funding or specific donor)"},null,null,null,{"$f":"D43","v":"Basket funds"}]
[null,"c. TOTAL government funds spent on contraceptive procurement\nThis will auto-calculate.  (It will sum a & b above.)",null,null,{"$f":"E40+E42","v":36428570},null,null,null,null,null,{"$f":"B44","v":"c. TOTAL government funds spent on contraceptive procurement\nThis will auto-calculate.  (It will sum a & b above.)"}]
[null,null,null,null,null,null,null,null,null,null,{"$f":"A45","v":0}]
["B9. Please complete the table below to indicate donor expenditures on contraceptive procurement in the most recent complete fiscal year.\n",null,null,null,null,null,null,null,null,null,null,null,null,null,null,null,null,null,null,null,null,null,null,{"$f":"A46","v":"B9. Please complete the table below to indicate donor expenditures on contraceptive procurement in the most recent complete fiscal year.\n"}]
["\n","Source of donations and donor funds spent on contraceptive procurement for the public sector",null,"Was this a source?\n(Y/N)","Amount of money spent on these procurements \n(in USD)","Time period (mm/yy-mm/yy)\n(should be the same for all sources of funds & ideally be the most recent\ncomplete fiscal year ['09-'10])","Data source \n(for example:  Donor records, Contraceptive Procurement Table, PipeLine, RHInterchange, etc.","Comments",null,null,{"$f":"A47","v":"\n"}]
[null,"a. In-kind donations of contraceptives",null,"Yes",7142857,"07/09-06/10","USAID, DGFP",null,null,null,{"$f":"B48","v":"a. In-kind donations of contraceptives"}]
[null,null,"i. Specify source(s) of in-kind donations ","USAID, KfW",null,null,null,null,null,null,{"$f":"C49","v":"i. Specify source(s) of in-kind donations "},null,null,null,{"$f":"D49","v":"USAID, KfW"}]
[null,"b. Global Fund donations used to procure condoms",null,"No",0,"07/09-06/10",null,null,null,null,{"$f":"B50","v":"b. Global Fund donations used to procure condoms"}]
[null,"c. Global Fund donations used to procure contraceptives besides condoms",null,"No",0,"07/09-06/10",null,null,null,null,{"$f":"B51","v":"c. Global Fund donations used to procure contraceptives besides condoms"}]
[null,"d. TOTAL value of in-kind donations and Global Fund donations spent on contraceptive procurement\nThis will auto-calculate.  (It will sum a-c above.)",null,null,{"$f":"E48+E50+E51","v":7142857},null,null,null,null,null,{"$f":"B52","v":"d. TOTAL value of in-kind donations and Global Fund donations spent on contraceptive procurement\nThis will auto-calculate.  (It will sum a-c above.)"}]
[null,null,null,null,null,null,null,null,null,null,{"$f":"A53","v":0}]
["The answers to B10 and B11 should calculate automatically based on the information you provided. Please review the answers to ensure they make sense to you, and if you have additional information to add, please note it in the comments boxes.\n\nIf the answers do not calculate automatically, please provide any relevant information you may have in the comments boxes.\n",null,null,null,null,null,null,null,null,null,null,null,null,null,null,null,null,null,null,null,null,null,null,{"$f":"A54","v":"The answers to B10 and B11 should calculate automatically based on the information you provided. Please review the answers to ensure they make sense to you, and if you have additional information to add, please note it in the comments boxes.\n\nIf the answers do not calculate automatically, please provide any relevant information you may have in the comments boxes.\n"}]
["B10. Government share of funds spent on contraceptive procurement for the public sector - \nOf the total amount spent on contraceptives for the public sector in the most recent complete fiscal year (including government and donor funds), what percent was covered by government funds (including internally generated funds, basket funds, World Bank credits or loans, and other funds given to the government)? \n\nThis will auto-calculate. (It contains the following formula: Total government spending (Question B8c) / Grand total of all spending for public sector contraceptives from the government and donors (Questions B8c+B9d))",null,null,null,null,{"$f":"E44/(E44+E52)","v":0.83606557113679114},null,null,null,{"$f":"G55","v":0},null,null,null,null,null,null,null,{"$f":"A55","v":"B10. Government share of funds spent on contraceptive procurement for the public sector - \nOf the total amount spent on contraceptives for the public sector in the most recent complete fiscal year (including government and donor funds), what percent was covered by government funds (including internally generated funds, basket funds, World Bank credits or loans, and other funds given to the government)? \n\nThis will auto-calculate. (It contains the following formula: Total government spending (Question B8c) / Grand total of all spending for public sector contraceptives from the government and donors (Questions B8c+B9d))"}]
["B11. Total expenditures on public sector contraceptives as percent of amount that needed to be procured -\nOf the estimated value of the contraceptives needed to be procured for the public sector for the most recent complete fiscal year, what percent was provided by any source (whether government or donor)? \n\nThis will auto-calculate. (It contains the following formula: Grand total of all spending for public sector contraceptives from the government and donors (Questions B8c+B9d) / Value of estimated need for procurement (Question B2))",null,null,null,null,{"$f":"(E44+E52)/G29","v":1},null,null,null,{"$f":"G56","v":0},null,null,null,null,null,null,null,{"$f":"A56","v":"B11. Total expenditures on public sector contraceptives as percent of amount that needed to be procured -\nOf the estimated value of the contraceptives needed to be procured for the public sector for the most recent complete fiscal year, what percent was provided by any source (whether government or donor)? \n\nThis will auto-calculate. (It contains the following formula: Grand total of all spending for public sector contraceptives from the government and donors (Questions B8c+B9d) / Value of estimated need for procurement (Question B2))"}]
["B12. If B11 did not calculate automatically, please answer the following question:\nWas there a funding gap for the public sector in the last complete fiscal year (e.g., 09-'10 fiscal year)?\n(Please select from the dropdown list.)",null,null,null,null,"No",null,null,null,{"$f":"G57","v":0},null,null,null,null,null,null,null,{"$f":"A57","v":"B12. If B11 did not calculate automatically, please answer the following question:\nWas there a funding gap for the public sector in the last complete fiscal year (e.g., 09-'10 fiscal year)?\n(Please select from the dropdown list.)"}]
[null,null,null,null,null,null,null,null,null,null,{"$f":"A58","v":0}]
["B13. If the government financed any contraceptive procurement in the most recent complete fiscal year, which entity conducted the procurement(s)? (Please select from the dropdown.)",null,null,null,null,"The government (e.g., Central Medical Stores, MOH logistics unit, MOH procurement unit)",null,null,null,null,null,null,null,null,null,null,{"$f":"F59","v":"The government (e.g., Central Medical Stores, MOH logistics unit, MOH procurement unit)"},{"$f":"A59","v":"B13. If the government financed any contraceptive procurement in the most recent complete fiscal year, which entity conducted the procurement(s)? (Please select from the dropdown.)"}]
[null,"a. Specify entity",null,null,null,"Directorate General of Family Planning",null,null,null,null,null,null,{"$f":"E60","v":0},null,null,null,{"$f":"F60","v":"Directorate General of Family Planning"},{"$f":"B60","v":"a. Specify entity"}]
[null,null,"i. Is this a parastatal?",null,null,"No",null,null,null,null,null,null,null,null,null,null,{"$f":"F61","v":"No"},{"$f":"C61","v":"i. Is this a parastatal?"}]
["B14. Please note any additional comments about finance and procurement.\n",null,null,null,null,null,null,null,null,null,{"$f":"A62","v":"B14. Please note any additional comments about finance and procurement.\n"},null,null,null,{"$f":"D62","v":0}]
["C. Commodities"]
["C1. Are the following contraceptive methods offered through the commercial sector, public sector, NGOs, or social marketing? (Please indicate which methods are intended to be offered. This question is not asking whether the method is in stock.) \n(Please select from the dropdown list.)",null,null,null,null,null,null,null,null,null,null,null,null,null,null,null,null,null,null,null,null,null,null,{"$f":"A64","v":"C1. Are the following contraceptive methods offered through the commercial sector, public sector, NGOs, or social marketing? (Please indicate which methods are intended to be offered. This question is not asking whether the method is in stock.) \n(Please select from the dropdown list.)"}]
["Contraceptive Method",null,null,"Commercial Sector",null,"Public Sector","NGO","Social Marketing",null,null,{"$f":"A65","v":"Contraceptive Method"}]
[null,"a. Combined oral contraceptives (estrogen + progestin - for  example, LoFemenol, Microgynon)",null,"Yes",null,"Yes","Yes","Yes",null,null,{"$f":"B66","v":"a. Combined oral contraceptives (estrogen + progestin - for  example, LoFemenol, Microgynon)"}]
[null,"b. Progestin-only pills (for example, Ovrette, Microlut)",null,"Yes",null,"No","Yes","Yes",null,null,{"$f":"B67","v":"b. Progestin-only pills (for example, Ovrette, Microlut)"}]
[null,"c. Hormonal injections (for example, DepoProvera, Noristerat)",null,"Yes",null,"Yes","Yes","Yes",null,null,"c. Hormonal injections (for example, DepoProvera, Noristerat)"]
[null,"d. Hormonal implants (for example, Jadelle, Implanon)",null,"No",null,"Yes","Yes","No",null,null,"d. Hormonal implants (for example, Jadelle, Implanon)"]
[null,"e. Intrauterine devices (IUDs) (for example, Optima Copper T)",null,"No",null,"Yes","Yes","Yes",null,null,"e. Intrauterine devices (IUDs) (for example, Optima Copper T)"]
[null,"f. Male condoms",null,"Yes",null,"Yes","Yes","Yes",null,null,"f. Male condoms"]
[null,"g. Female condoms",null,"No",null,"No","No","No",null,null,"g. Female condoms"]
[null,"h. Emergency contraceptive pills (for example, Postinor)",null,"Yes",null,"No","No","No",null,null,"h. Emergency contraceptive pills (for example, Postinor)"]
[null,"i. Long-acting permanent method for males (vasectomy)",null,"Yes",null,"Yes","Yes","No",null,null,"i. Long-acting permanent method for males (vasectomy)"]
[null,"j. Long-acting permanent method for females (tubal ligation)",null,"Yes",null,"Yes","Yes","No",null,null,"j. Long-acting permanent method for females (tubal ligation)"]
[null,"k. CycleBeads",null,"No",null,"No","No","No",null,null,"k. CycleBeads"]
[null,"l. Other contraceptive methods - specify \n(Please provide the name of the other contraceptive(s) offered, by sector.)",null,null,null,null,null,null,null,null,"l. Other contraceptive methods - specify \n(Please provide the name of the other contraceptive(s) offered, by sector.)"]
["C2. Please note any comments about the commodities offered.",null,null,"NGOs obtain their commodities from the government.",null,null,null,null,null,null,{"$f":"A78","v":"C2. Please note any comments about the commodities offered."},null,null,null,{"$f":"D78","v":"NGOs obtain their commodities from the government."}]
["D. Policies (Commitment)"]
["D1. Is there a contraceptive security or reproductive health commodity security strategy or is contraceptive security explicitly included in a country strategy? (Please select from the dropdown list.)",null,null,null,null,null,null,"Yes",{"$f":"A80","v":"D1. Is there a contraceptive security or reproductive health commodity security strategy or is contraceptive security explicitly included in a country strategy? (Please select from the dropdown list.)"}]
["IF NO, SKIP TO QUESTION D2."]
[null,"Strategy name",null,"Years Covered (including strategy updates)",null,"Is the strategy formally approved by the Ministry?","Is the contraceptive security strategy being implemented?",null,null,{"$f":"G82","v":"Is the contraceptive security strategy being implemented?"},{"$f":"B82","v":"Strategy name"},null,{"$f":"E82","v":0},null,null,null,null,null,{"$f":"D82","v":"Years Covered (including strategy updates)"}]
[null,"a","Health, Nutrition and Population Sector Plan","2006-2011",null,"Yes","Yes",null,null,{"$f":"G83","v":"Yes"},{"$f":"B83","v":"a"},null,{"$f":"E83","v":0},null,null,null,null,null,{"$f":"D83","v":"2006-2011"}]
["D2. Are any family planning commodities subject to duties, import taxes, or other fees?",null,null,null,null,"Yes",null,null,null,null,null,null,null,null,null,null,{"$f":"F84","v":"Yes"},{"$f":"A84","v":"D2. Are any family planning commodities subject to duties, import taxes, or other fees?"}]
[null,"a. If yes, for which sectors (public, NGO, social marketing, commercial)?",null,null,"Private sector",null,null,null,null,null,null,null,{"$f":"E85","v":"Private sector"},{"$f":"E85","v":"Private sector"},null,null,null,{"$f":"B85","v":"a. If yes, for which sectors (public, NGO, social marketing, commercial)?"}]
[null,"b. If yes, how much are the duties, taxes, or fees?",null,null,"2.25% VAT, payable in advance",null,null,null,null,null,null,null,null,{"$f":"E86","v":"2.25% VAT, payable in advance"},null,null,null,{"$f":"B86","v":"b. If yes, how much are the duties, taxes, or fees?"}]
["D3. Are there policies that hinder the ability of the private sector (commercial sector, NGOs, or social marketing) to provide contraceptive methods (for example: price controls, distribution limitations, taxes/duties, advertising bans, etc.)?",null,null,null,null,null,null,"Yes",{"$f":"A87","v":"D3. Are there policies that hinder the ability of the private sector (commercial sector, NGOs, or social marketing) to provide contraceptive methods (for example: price controls, distribution limitations, taxes/duties, advertising bans, etc.)?"}]
[null,"a. If yes, describe the policies.",null,"Private sector needs specific permission to import & distribute contraceptive commodities.",null,null,null,null,null,null,{"$f":"B88","v":"a. If yes, describe the policies."},null,null,null,{"$f":"D88","v":"Private sector needs specific permission to import & distribute contraceptive commodities."}]
["D4. Are there policies that enable the private sector (commercial sector, NGOs, or social marketing) to provide contraceptive methods?",null,null,null,null,null,null,"Yes",{"$f":"A89","v":"D4. Are there policies that enable the private sector (commercial sector, NGOs, or social marketing) to provide contraceptive methods?"}]
[null,"a. If yes, describe the policies.",null,"There is a policy to use IUDs and implants for long-term methods, and they are subject to a regulation that they should be inserted by a trained doctor and/or paramedic in a clinical environment. NGO clinics can offer these methods upon receiving them from the government.",null,null,null,null,null,null,{"$f":"B90","v":"a. If yes, describe the policies."},null,null,null,{"$f":"D90","v":"There is a policy to use IUDs and implants for long-term methods, and they are subject to a regulation that they should be inserted by a trained doctor and/or paramedic in a clinical environment. NGO clinics can offer these methods upon receiving them from the government."}]
["D5. Do policies or regulations exist that restrict who can sell or dispense particular contraceptive methods?\n",null,null,null,null,null,null,"Yes",{"$f":"A91","v":"D5. Do policies or regulations exist that restrict who can sell or dispense particular contraceptive methods?\n"}]
[null,"Please note any restrictions in the following table."]
[null,"Contraceptive Method(s)",null,null,"Describe any public sector restriction on who is allowed to sell or dispense the method",null,"Describe any private sector restriction on who is allowed to sell or dispense the method",null,null,{"$f":"G93","v":"Describe any private sector restriction on who is allowed to sell or dispense the method"},null,null,null,null,null,{"$f":"B93","v":"Contraceptive Method(s)"},null,null,null,null,{"$f":"E93","v":"Describe any public sector restriction on who is allowed to sell or dispense the method"}]
[null,"a","Injectables",null,"Community workers cannot initiate the first dose.",null,null,null,null,{"$f":"G94","v":0},null,null,{"$f":"E94","v":"Community workers cannot initiate the first dose."},null,null,{"$f":"C94","v":"Injectables"},null,null,null,null,{"$f":"E94","v":"Community workers cannot initiate the first dose."}]
[null,"b","All contraceptive methods",null,null,null,"All personnel need government authorization.",null,null,{"$f":"G95","v":"All personnel need government authorization."},null,null,{"$f":"E95","v":0},null,null,{"$f":"C95","v":"All contraceptive methods"},null,null,null,null,{"$f":"E95","v":0}]
[null,"c",null,null,null,null,null,null,null,{"$f":"G96","v":0},null,null,{"$f":"E96","v":0},null,null,{"$f":"C96","v":0},null,null,null,null,{"$f":"E96","v":0}]
[null,null,null,null,null,null,null,null,null,null,{"$f":"C97","v":0}]
["D6. Does the country have laws, regulations, or policies that make it difficult for the following sub-populations to access effective family planning services?",null,null,"Y/N","If yes, describe laws/regulations/policies affecting access ",null,null,"Are the rules/policies implemented?",null,null,{"$f":"A98","v":"D6. Does the country have laws, regulations, or policies that make it difficult for the following sub-populations to access effective family planning services?"},null,null,null,null,null,null,null,null,null,null,{"$f":"E98","v":"If yes, describe laws/regulations/policies affecting access "}]
[null,"a. Unmarried people",null,"Yes","Unmarried women can't receive IUDs, injectables, implants, or tubal ligation.",null,null,"Yes",null,null,{"$f":"B99","v":"a. Unmarried people"},null,{"$f":"E99","v":"Unmarried women can't receive IUDs, injectables, implants, or tubal ligation."},null,null,null,null,null,null,null,null,{"$f":"E99","v":"Unmarried women can't receive IUDs, injectables, implants, or tubal ligation."}]
[null,"b. Young people",null,"No",null,null,null,null,null,null,{"$f":"B100","v":"b. Young people"},null,{"$f":"E100","v":0},null,null,null,null,null,null,null,null,{"$f":"E100","v":0}]
[null,"c. Other",null,"Yes","Low parity women and men can't receive IUDs, tubal ligation, or vasectomy. Non-parous women can't receive injectables or implants.",null,null,"Yes",null,null,{"$f":"B101","v":"c. Other"},null,{"$f":"E101","v":"Low parity women and men can't receive IUDs, tubal ligation, or vasectomy. Non-parous women can't receive injectables or implants."},null,null,null,null,null,null,null,null,{"$f":"E101","v":"Low parity women and men can't receive IUDs, tubal ligation, or vasectomy. Non-parous women can't receive injectables or implants."}]
[null,null,null,null,null,null,null,null,null,null,{"$f":"C102","v":0}]
["D7. Are there charges* to the client in the public sector for family planning:\n*(This question refers to charges by policy, not under-the-table charges.)\n",null,null,null,null,null,null,null,null,null,null,null,null,null,null,null,null,null,null,null,null,null,null,{"$f":"A103","v":"D7. Are there charges* to the client in the public sector for family planning:\n*(This question refers to charges by policy, not under-the-table charges.)\n"}]
[null,"a. Services?",null,null,null,null,"No",null,null,{"$f":"G104","v":"No"},null,null,null,null,null,null,null,null,null,null,null,null,null,null,{"$f":"B104","v":"a. Services?"}]
[null,"b. Commodities?",null,null,null,null,"No",null,null,{"$f":"G105","v":"No"},null,null,null,null,null,null,null,null,null,null,null,null,null,null,{"$f":"B105","v":"b. Commodities?"}]
[null,"c. If yes, are there exemptions for people who cannot afford to pay?",null,null,null,null,"N/A",null,null,{"$f":"G106","v":"N/A"},null,null,null,null,null,null,null,null,null,null,null,null,null,null,{"$f":"B106","v":"c. If yes, are there exemptions for people who cannot afford to pay?"}]
[null,null,"i. If yes, describe the exemptions.","N/A",null,null,null,null,null,null,{"$f":"C107","v":"i. If yes, describe the exemptions."},null,null,null,{"$f":"D107","v":"N/A"}]
["D8. Are the following contraceptives included in the country's National Essential Medicine List (NEML) or other equivalent priority list?",null,null,null,null,null,null,null,null,null,null,null,null,null,null,null,null,null,null,null,null,null,null,{"$f":"A108","v":"D8. Are the following contraceptives included in the country's National Essential Medicine List (NEML) or other equivalent priority list?"}]
[null,"a. Combined oral contraceptives",null,null,null,null,"Yes",null,null,{"$f":"G109","v":"Yes"},null,null,null,null,null,null,null,null,null,null,null,null,null,null,{"$f":"B109","v":"a. Combined oral contraceptives"}]
[null,"b. Progestin-only pills",null,null,null,null,"Yes",null,null,"Yes",null,null,null,null,null,null,null,null,null,null,null,null,null,null,"b. Progestin-only pills"]
[null,"c. Hormonal injections",null,null,null,null,"Yes",null,null,"Yes",null,null,null,null,null,null,null,null,null,null,null,null,null,null,"c. Hormonal injections"]
[null,"d. Hormonal implants",null,null,null,null,"Yes",null,null,"Yes",null,null,null,null,null,null,null,null,null,null,null,null,null,null,"d. Hormonal implants"]
[null,"e. Intrauterine devices (IUDs)",null,null,null,null,"Yes",null,null,"Yes",null,null,null,null,null,null,null,null,null,null,null,null,null,null,"e. Intrauterine devices (IUDs)"]
[null,"f. Male condoms",null,null,null,null,"Yes",null,null,"Yes",null,null,null,null,null,null,null,null,null,null,null,null,null,null,"f. Male condoms"]
[null,"g. Female condoms",null,null,null,null,"No",null,null,"No",null,null,null,null,null,null,null,null,null,null,null,null,null,null,"g. Female condoms"]
[null,"h. Emergency contraceptive pills",null,null,null,null,"Yes",null,null,"Yes",null,null,null,null,null,null,null,null,null,null,null,null,null,null,"h. Emergency contraceptive pills"]
[null,"i. CycleBeads",null,null,null,null,"No",null,null,{"$f":"G117","v":"No"},null,null,null,null,null,null,null,null,null,null,null,null,null,null,{"$f":"B117","v":"i. CycleBeads"}]
[null,"j. Any other contraceptive(s)?",null,null,null,null,"No",null,null,"No",null,null,null,null,null,null,null,null,null,null,null,null,null,null,"j. Any other contraceptive(s)?"]
[null,null,"i. Name of other contraceptive(s) on the list(s)",null,null,"N/A",null,null,null,0,null,null,null,null,null,null,null,{"$f":"B119","v":0}]
["D9. What year(s) is the list(s) from?",null,null,null,null,2010,null,null,null,0,null,null,null,null,null,null,null,{"$f":"B120","v":0}]
["D10. Name of the list(s)\n\n\n",null,null,"Approved contraceptive list",null,null,null,null,null,null,{"$f":"A121","v":"D10. Name of the list(s)\n\n\n"},null,null,null,{"$f":"D121","v":"Approved contraceptive list"}]
["D11. Notes about the list(s)\n\n\n",null,null,null,null,null,null,null,null,null,{"$f":"A122","v":"D11. Notes about the list(s)\n\n\n"},null,null,null,{"$f":"D122","v":0}]
["D12.  Information on country's Poverty Reduction Strategy Paper (PRSP)\n",null,null,null,null,null,null,null,null,null,null,null,null,null,null,null,null,null,null,null,null,null,null,{"$f":"A123","v":"D12.  Information on country's Poverty Reduction Strategy Paper (PRSP)\n"}]
[null,"a. What year is the Poverty Reduction Strategy Paper from? (most recent actual PRSP on IMF's site [not progress or summary report])",null,null,null,2005,null,null,null,{"$f":"G124","v":0},null,null,null,null,null,null,null,{"$f":"B124","v":"a. What year is the Poverty Reduction Strategy Paper from? (most recent actual PRSP on IMF's site [not progress or summary report])"}]
[null,"b. Is family planning or reproductive health a priority in the PRSP?",null,null,null,null,"Yes",null,null,{"$f":"G125","v":"Yes"},null,null,null,null,null,null,null,null,null,null,null,null,null,null,{"$f":"B125","v":"b. Is family planning or reproductive health a priority in the PRSP?"}]
[null,"c. Is contraceptive security included in the PRSP?",null,null,null,null,"No",null,null,{"$f":"G126","v":"No"},null,null,null,null,null,null,null,null,null,null,null,null,null,null,{"$f":"B126","v":"c. Is contraceptive security included in the PRSP?"}]
[null,"d. Is contraceptive prevalence rate (CPR) included as an indicator in the PRSP?",null,null,null,null,"Yes",null,null,{"$f":"G127","v":"Yes"},null,null,null,null,null,null,null,null,null,null,null,null,null,null,{"$f":"B127","v":"d. Is contraceptive prevalence rate (CPR) included as an indicator in the PRSP?"}]
[null,"e. Are contraceptive supply indicators included in the PRSP?",null,null,null,null,"No",null,null,{"$f":"G128","v":"No"},null,null,null,null,null,null,null,null,null,null,null,null,null,null,{"$f":"B128","v":"e. Are contraceptive supply indicators included in the PRSP?"}]
["\n\n\n","f. Notes about the Poverty Reduction Strategy Paper",null,null,null,null,null,null,null,null,{"$f":"B129","v":"f. Notes about the Poverty Reduction Strategy Paper"},null,null,null,{"$f":"D129","v":0}]
["E. Supply Chain (Capacity)"]
["E1. Have stockouts occurred for any contraceptive at the central* level in the last 12 months?  \n*(The central level refers to the central level warehouse for the public sector.)",null,null,null,null,null,"Yes",null,null,{"$f":"G131","v":"Yes"},null,null,null,null,null,null,null,null,null,null,null,null,null,null,{"$f":"A131","v":"E1. Have stockouts occurred for any contraceptive at the central* level in the last 12 months?  \n*(The central level refers to the central level warehouse for the public sector.)"}]
["E2. In the last 12 months, has there ever been a stockout at the central level of any of the contraceptives offered in public sector facilities? (If a method is not intended to be offered in public sector facilities, please indicate that stockouts are not applicable (choose \"N/A\" from the dropdown list).)",null,null,null,null,null,null,null,null,null,null,null,null,null,null,null,null,null,null,null,null,null,null,{"$f":"A132","v":"E2. In the last 12 months, has there ever been a stockout at the central level of any of the contraceptives offered in public sector facilities? (If a method is not intended to be offered in public sector facilities, please indicate that stockouts are not applicable (choose \"N/A\" from the dropdown list).)"}]
[null,"a. Combined oral contraceptives",null,null,null,null,"No",null,null,{"$f":"G133","v":"No"},null,null,null,null,null,null,null,null,null,null,null,null,null,null,{"$f":"B133","v":"a. Combined oral contraceptives"}]
[null,"b. Progestin-only pills",null,null,null,null,"N/A",null,null,"N/A",null,null,null,null,null,null,null,null,null,null,null,null,null,null,"b. Progestin-only pills"]
[null,"c. Hormonal injections",null,null,null,null,"No",null,null,"No",null,null,null,null,null,null,null,null,null,null,null,null,null,null,"c. Hormonal injections"]
[null,"d. Hormonal implants",null,null,null,null,"Yes",null,null,"Yes",null,null,null,null,null,null,null,null,null,null,null,null,null,null,"d. Hormonal implants"]
[null,"e. Intrauterine devices (IUDs)",null,null,null,null,"Yes",null,null,"Yes",null,null,null,null,null,null,null,null,null,null,null,null,null,null,"e. Intrauterine devices (IUDs)"]
[null,"f. Male condoms",null,null,null,null,"No",null,null,"No",null,null,null,null,null,null,null,null,null,null,null,null,null,null,"f. Male condoms"]
[null,"g. Female condoms",null,null,null,null,"N/A",null,null,"N/A",null,null,null,null,null,null,null,null,null,null,null,null,null,null,"g. Female condoms"]
[null,"h. Emergency contraceptive pills",null,null,null,null,"N/A",null,null,"N/A",null,null,null,null,null,null,null,null,null,null,null,null,null,null,"h. Emergency contraceptive pills"]
[null,"i. CycleBeads",null,null,null,null,"N/A",null,null,"N/A",null,null,null,null,null,null,null,null,null,null,null,null,null,null,"i. CycleBeads"]
[null,"j. Time period\n(mm/yy - mm/yy) (for example, 1/10-12/10) ",null,null,null,"01/10-12/10",null,null,null,null,null,null,null,null,null,null,{"$f":"F142","v":"01/10-12/10"},{"$f":"B142","v":"j. Time period\n(mm/yy - mm/yy) (for example, 1/10-12/10) "}]
[null,"k. Data source\n(for example: Procurement Planning and Monitoring Report, Logistics Management Information System, periodic physical inventory, warehouse reports)",null,null,null,"DGFP Logistics Management Information System (LMIS)",null,null,null,null,null,null,null,null,null,null,{"$f":"F143","v":"DGFP Logistics Management Information System (LMIS)"},{"$f":"B143","v":"k. Data source\n(for example: Procurement Planning and Monitoring Report, Logistics Management Information System, periodic physical inventory, warehouse reports)"}]
["E3. Are stockouts a large problem in your country at the following levels? (i.e., Are they common or do they tend to last for a long time?)\n\n"]
[null,"a. service delivery point level (i.e., public sector health facilities)",null,null,null,null,"No",null,null,{"$f":"G145","v":"No"},null,null,null,null,null,null,null,null,null,null,null,null,null,null,{"$f":"B145","v":"a. service delivery point level (i.e., public sector health facilities)"}]
[null,"b. central level (i.e., central level warehouse for the public sector)",null,null,null,null,"No",null,null,{"$f":"G146","v":"No"},null,null,null,null,null,null,null,null,null,null,null,null,null,null,{"$f":"B146","v":"b. central level (i.e., central level warehouse for the public sector)"}]
["F. Please note any overall comments about challenges and/or successes with contraceptive security in your country.\n\n",null,null,"The bottleneck in the procurement management has been addressed and now it is almost streamlined through the DGFP Online Procurement Tracker (www.dgfplmis.org)",null,null,null,null,null,null,{"$f":"A147","v":"F. Please note any overall comments about challenges and/or successes with contraceptive security in your country.\n\n"},null,null,null,{"$f":"D147","v":"The bottleneck in the procurement management has been addressed and now it is almost streamlined through the DGFP Online Procurement Tracker (www.dgfplmis.org)"}]

{"sheet":"Bolivia 2011","index":10,"n_rows":147,"n_cols":25,"rows_kept":147,"cut":false,"hidden":false,"merged":[[142,5,142,7],[141,1,141,4],[141,5,141,7],[142,1,142,4],[138,1,138,5],[143,0,143,7],[147,0,147,7],[148,0,150,7],[145,1,145,5],[145,6,145,7],[146,0,146,2],[146,3,146,7],[144,1,144,5],[144,6,144,7],[136,1,136,5],[136,6,136,7],[137,1,137,5],[137,6,137,7],[138,6,138,7],[139,1,139,5],[139,6,139,7],[140,1,140,5],[140,6,140,7],[131,0,131,7],[132,1,132,5],[132,6,132,7],[133,1,133,5],[133,6,133,7],[134,1,134,5],[134,6,134,7],[135,1,135,5],[135,6,135,7],[120,0,120,2],[120,3,120,7],[121,0,121,2],[121,3,121,7],[129,0,129,6],[130,0,130,5],[130,6,130,7],[122,0,122,7],[123,1,123,4],[123,5,123,7],[115,1,115,5],[115,6,115,7],[116,1,116,5],[116,6,116,7],[117,1,117,5],[117,6,117,7],[118,2,118,4],[118,5,118,7],[119,0,119,4],[119,5,119,7],[110,1,110,5],[110,6,110,7],[111,1,111,5],[111,6,111,7],[112,1,112,5],[112,6,112,7],[113,1,113,5],[113,6,113,7],[114,1,114,5],[114,6,114,7],[104,1,104,5],[104,6,104,7],[105,1,105,5],[105,6,105,7],[106,3,106,7],[107,0,107,7],[108,1,108,5],[108,6,108,7],[109,1,109,5],[109,6,109,7],[98,1,98,2],[98,4,98,6],[99,1,99,2],[99,4,99,6],[100,1,100,2],[100,4,100,6],[101,0,101,7],[102,0,102,7],[103,1,103,5],[103,6,103,7],[94,2,94,3],[94,4,94,5],[94,6,94,7],[95,2,95,3],[95,4,95,5],[95,6,95,7],[96,0,96,7],[97,0,97,2],[97,4,97,6],[88,0,88,6],[89,1,89,2],[89,3,89,7],[90,0,90,6],[91,1,91,2],[92,1,92,3],[92,4,92,5],[92,6,92,7],[93,2,93,3],[93,4,93,5],[93,6,93,7],[83,0,83,4],[83,5,83,7],[84,1,84,3],[84,4,84,7],[85,1,85,3],[85,4,85,7],[86,0,86,6],[87,1,87,2],[87,3,87,7],[77,0,77,2],[77,3,77,7],[78,0,78,6],[79,0,79,6],[80,0,80,2],[81,0,82,0],[81,1,81,2],[81,3,81,4],[81,6,81,7],[82,3,82,4],[82,6,82,7],[72,1,72,2],[72,3,72,4],[73,1,73,2],[73,3,73,4],[74,1,74,2],[74,3,74,4],[75,1,75,2],[75,3,75,4],[76,1,76,2],[76,3,76,4],[67,1,67,2],[67,3,67,4],[68,1,68,2],[68,3,68,4],[69,1,69,2],[69,3,69,4],[70,1,70,2],[70,3,70,4],[71,1,71,2],[71,3,71,4],[61,0,61,2],[61,3,61,7],[62,0,62,6],[63,0,63,7],[64,0,64,2],[64,3,64,4],[65,1,65,2],[65,3,65,4],[66,1,66,2],[66,3,66,4],[55,0,55,4],[55,6,55,7],[56,0,56,4],[56,6,56,7],[58,0,58,4],[58,5,58,7],[59,1,59,4],[59,5,59,7],[60,2,60,4],[60,5,60,7],[51,1,51,2],[53,0,53,7],[54,0,54,4],[54,6,54,7],[45,0,45,7],[46,1,46,2],[47,1,47,2],[48,3,48,7],[49,1,49,2],[50,1,50,2],[35,0,35,7],[36,0,36,6],[37,0,37,7],[38,1,38,2],[39,1,39,2],[40,3,40,7],[41,1,41,2],[42,3,42,7],[43,1,43,2],[28,0,28,5],[28,6,28,7],[29,0,29,3],[29,6,29,7],[30,0,30,6],[31,0,31,6],[32,0,32,7],[33,1,33,3],[34,1,34,3],[21,1,21,2],[21,5,21,7],[22,1,22,2],[22,5,22,7],[23,0,23,6],[24,0,24,6],[25,0,25,2],[26,0,26,6],[27,0,27,2],[27,3,27,4],[16,1,16,2],[16,5,16,7],[17,1,17,2],[17,5,17,7],[18,1,18,2],[18,5,18,7],[19,1,19,2],[19,5,19,7],[20,1,20,2],[20,5,20,7],[0,0,0,7],[1,0,1,2],[1,3,1,4],[2,0,2,7],[3,3,3,4],[10,0,10,6],[5,0,5,2],[8,0,8,7],[13,3,13,7],[126,6,126,7],[3,5,3,7],[127,1,127,5],[127,6,127,7],[128,1,128,2],[128,3,128,7],[124,1,124,5],[124,6,124,7],[125,1,125,5],[125,6,125,7],[126,1,126,5],[7,0,7,2],[7,3,7,5],[7,6,7,7],[9,0,9,7],[4,0,4,2],[11,0,11,6],[12,1,12,2],[12,3,12,7],[13,0,13,2],[14,1,14,2],[14,5,14,7],[15,1,15,2],[15,5,15,7]]}
[null,null,null,null,null,null,null,null,"Columns I-Y are meant to be hidden. They exist because they allow for the dropdown list options. They also allow for merged cells to autofit properly in terms of row height. This should work if all columns remain at their correct widths.","g-h",null,"a-e merged","E-F merged","e-h","0 times",null,null,"The government (e.g., Central Medical Stores, MOH logistics unit, MOH procurement unit)",null,null,null,null,"Yes","a-h","January"]
[null,null,null,null,null,null,null,null,null,null,"A-c",null,null,null,"1-2 times","b-d merged",null,"Third-party agent (e.g., UNFPA, Crown Agents)","d-e merged","d-f merged","e-f merged","e-g merged","No",null,"February"]
[null,null,null,null,null,null,null,null,null,null,null,null,null,null,"3-5 times",null,null,"The government and a third-party agent",null,null,null,null,null,null,"March"]
[null,null,null,null,null,null,null,null,null,null,null,null,null,null,"6 or more times",null,null,"Other",null,null,null,null,"N/A",null,"April"]
["To jump to the Introduction sheet, click here.",null,null,null,null,null,null,null,null,null,null,null,null,null,null,null,null,null,null,null,null,null,"Don't know",null,"May"]
[null,null,null,null,null,null,null,null,null,null,null,null,null,null,"N/A",null,null,"N/A",null,null,null,null,null,null,"June"]
["Contraceptive Security (CS) Indicators 2011 Data ",null,null,null,null,null,null,null,null,null,null,null,null,null,"Don't know",null,null,"Don't know",null,null,null,null,null,null,"July"]
["Country: Bolivia",null,null,null,null,null,null,null,null,{"$f":"G8","v":0},{"$f":"A8","v":"Country: Bolivia"},null,null,null,null,"or c-d",null,null,null,{"$f":"D8","v":0},null,null,null,null,"August"]
["The CS Indicators are presented in the following sections:\n\n               A. leadership & cooordination               B. finance & procurement               C. commodities               D. policies               E. supply chain",null,null,null,null,null,null,null,null,{"$f":"G9","v":0},{"$f":"A9","v":"The CS Indicators are presented in the following sections:\n\n               A. leadership & cooordination               B. finance & procurement               C. commodities               D. policies               E. supply chain"},null,null,null,"d-h",null,"f-h merged",null,{"$f":"D9","v":0},null,null,null,null,null,"September"]
["\nNotes:\n  -  Respondents' answers are indicated in the white spaces. \n  -  N/A = not applicable. Don't know = the respondent either indicated they did not know or left the answer blank.\n  -  Some questions required respondents to choose from a dropdown list of options; in these cases the dropdown arrow will \n     appear when you click on the cell. \n  -  There may be a few inserted comments. (If you cannot already see them, click on Review tab - Comments group - Show All Comments in newer \n       versions of Excel or View - Comments in older versions of Excel.)\n  -  If the answer is cut off, you can either manually adjust the row height or autofit the row height in order to see the whole \n     response. (To autofit the row height, select the answer(s) and go to Home tab - Cells group - Format - Autofit Row Height in newer versions of Excel or \n      Format - Row - Autofit in older versions of Excel.)\n",null,null,null,null,null,null,null,"a-g",null,null,null,null,null,null,null,null,"a-e merged",null,null,null,null,null,{"$f":"A10","v":"\nNotes:\n  -  Respondents' answers are indicated in the white spaces. \n  -  N/A = not applicable. Don't know = the respondent either indicated they did not know or left the answer blank.\n  -  Some questions required respondents to choose from a dropdown list of options; in these cases the dropdown arrow will \n     appear when you click on the cell. \n  -  There may be a few inserted comments. (If you cannot already see them, click on Review tab - Comments group - Show All Comments in newer \n       versions of Excel or View - Comments in older versions of Excel.)\n  -  If the answer is cut off, you can either manually adjust the row height or autofit the row height in order to see the whole \n     response. (To autofit the row height, select the answer(s) and go to Home tab - Cells group - Format - Autofit Row Height in newer versions of Excel or \n      Format - Row - Autofit in older versions of Excel.)\n"},"October"]
["A. Leadership and Coordination",null,null,null,null,null,null,null,null,null,null,null,null,null,null,null,null,null,null,null,null,null,null,null,"November"]
["A1. Is there a national committee that works on contraceptive security? (Please select from the dropdown list.)\n(Committee should have some aspect of contraceptive security as part of its Terms of Reference, even if it is known by a different name, for example: Family Planning, Reproductive Health, Maternal Mortality, Essential Medicine Committee, etc.)  ",null,null,null,null,null,null,"Yes",{"$f":"A12","v":"A1. Is there a national committee that works on contraceptive security? (Please select from the dropdown list.)\n(Committee should have some aspect of contraceptive security as part of its Terms of Reference, even if it is known by a different name, for example: Family Planning, Reproductive Health, Maternal Mortality, Essential Medicine Committee, etc.)  "},null,null,null,null,null,null,null,null,null,null,null,null,null,null,null,"December"]
[null,"a. What is the name of the committee?",null,"Comité Nacional de Disponibilidad Asegurada de Insumos Anticonceptivos (DAIA) (National Contraceptive Security Committee)",null,null,null,null,null,null,{"$f":"B13","v":"a. What is the name of the committee?"},{"$f":"D13","v":"Comité Nacional de Disponibilidad Asegurada de Insumos Anticonceptivos (DAIA) (National Contraceptive Security Committee)"},null,null,{"$f":"D13","v":"Comité Nacional de Disponibilidad Asegurada de Insumos Anticonceptivos (DAIA) (National Contraceptive Security Committee)"}]
["A2. Are the following organizations represented on the committee?",null,null,"(Y/N \ndropdown)",null,null,null,null,null,null,{"$f":"A14","v":"A2. Are the following organizations represented on the committee?"},null,null,null,null,null,null,null,null,null,null,null,null,null,"Don't know"]
[null,"a. Social marketing",null,"Yes","If yes, specify name(s) of organizations","PROSALUD",null,null,null,null,{"$f":"B15","v":"a. Social marketing"},null,null,null,null,null,{"$f":"F15","v":"PROSALUD"}]
[null,"b. NGO (for example: service delivery, advocacy, Planned Parenthood affiliate, Marie Stopes affiliate, faith-based organizations, etc.)",null,"Yes","If yes, specify name(s) of organizations","Centro de orientacion sexual y reproductiva de Bolivia (CIES) (Bolivian center for sexual and reproductive orientation) ",null,null,null,null,"b. NGO (for example: service delivery, advocacy, Planned Parenthood affiliate, Marie Stopes affiliate, faith-based organizations, etc.)",null,null,null,null,null,"Centro de orientacion sexual y reproductiva de Bolivia (CIES) (Bolivian center for sexual and reproductive orientation) "]
[null,"c. Commercial sector (for example: pharmacy associations, manufacturers, etc.)",null,"No","If yes, specify name(s) of organizations",null,null,null,null,null,"c. Commercial sector (for example: pharmacy associations, manufacturers, etc.)",null,null,null,null,null,0]
[null,"d. Donors",null,"Yes","If yes, specify name(s) of donors","USAID",null,null,null,null,"d. Donors",null,null,null,null,null,"USAID"]
[null,"e. UN agencies",null,"Yes","If yes, specify name(s) of agencies","UNFPA",null,null,null,null,"e. UN agencies",null,null,null,null,null,"UNFPA"]
[null,"f. Ministry of Health (for example: logistics, reproductive health, family planning, maternal and child health, HIV/AIDS, pharmacy units, etc.)",null,"Yes","If yes, specify name(s) of units","DINAMED (Dirección Nacional del Medicamento - National Essential Medicines Directorate); USSyC/SSR (Unidad de Servicios de Salud y Calidad/Salud Sexual y Reproductiva - Health Services and Quality and Sexual and Reproductive Health Units) ",null,null,null,null,"f. Ministry of Health (for example: logistics, reproductive health, family planning, maternal and child health, HIV/AIDS, pharmacy units, etc.)",null,null,null,null,null,"DINAMED (Dirección Nacional del Medicamento - National Essential Medicines Directorate); USSyC/SSR (Unidad de Servicios de Salud y Calidad/Salud Sexual y Reproductiva - Health Services and Quality and Sexual and Reproductive Health Units) "]
[null,"g. Central Medical Store or Central Warehouse",null,"Yes","If yes, specify","CEASS (Central de Abastecimiento de Suministros)",null,null,null,null,"g. Central Medical Store or Central Warehouse",null,null,null,null,null,"CEASS (Central de Abastecimiento de Suministros)"]
[null,"h. Ministry of Finance or Ministry of Planning ",null,"No","If yes, specify",null,null,null,null,null,"h. Ministry of Finance or Ministry of Planning ",null,null,null,null,null,0]
[null,"i. Other (for example: partners)",null,"Yes","If yes, specify","John Snow Inc.'s Proyecto Gestion y Calidad en Salud (GC&S)  (Health Management and Quality Project)",null,null,null,null,"i. Other (for example: partners)",null,null,null,null,null,"John Snow Inc.'s Proyecto Gestion y Calidad en Salud (GC&S)  (Health Management and Quality Project)"]
["A3. How many times did the committee meet during the last year? (0, 1-2, 3-5, or 6+)  (Please select from the dropdown.)",null,null,null,null,null,null,"3-5 times",{"$f":"A24","v":"A3. How many times did the committee meet during the last year? (0, 1-2, 3-5, or 6+)  (Please select from the dropdown.)"}]
["A4. Does the committee have legal status?  (Please select from the dropdown.)                                  ",null,null,null,null,null,null,"No",{"$f":"A25","v":"A4. Does the committee have legal status?  (Please select from the dropdown.)                                  "}]
["A5. Is there a Contraceptive Security \"champion\"? (someone who consistently brings up and advocates for contraceptive supplies)",null,null,"Yes","If yes, specify person's organization","PROSALUD, CIES, G&CS/JSI, USAID, UNFPA","Specify person's job title","N/A",null,null,{"$f":"A26","v":"A5. Is there a Contraceptive Security \"champion\"? (someone who consistently brings up and advocates for contraceptive supplies)"}]
["B. Finance and Procurement (Capital)"]
["B1. What is the timeline of the country's fiscal year?",null,null,"Beginning month",null,"January","Ending month","December",null,null,{"$f":"B28","v":0}]
["B2. What was the estimated dollar value of contraceptives needed to be procured for the public sector for the most recent complete fiscal year? (in USD currency)\n(for example, to cover the needs for the '09-'10 fiscal year)",null,null,null,null,null,"Don't know - forecast for public sector specifically not available ",null,null,{"$f":"G29","v":"Don't know - forecast for public sector specifically not available "},null,null,{"$f":"E29","v":0},null,null,null,null,null,null,null,null,null,null,null,{"$f":"A29","v":"B2. What was the estimated dollar value of contraceptives needed to be procured for the public sector for the most recent complete fiscal year? (in USD currency)\n(for example, to cover the needs for the '09-'10 fiscal year)"}]
["B3. When was the last forecast/quantification conducted? (mm/yy)",null,null,null,"Don't know","Who conducted it? (Specify organization.)","Don't know",null,null,{"$f":"G30","v":"Don't know"},null,null,{"$f":"E30","v":"Don't know"},null,null,null,null,null,null,null,null,null,null,null,{"$f":"A30","v":"B3. When was the last forecast/quantification conducted? (mm/yy)"}]
["B4. Is there a government budget line item for the procurement of contraceptives?  (Please select from the dropdown list.)",null,null,null,null,null,null,"No",{"$f":"A31","v":"B4. Is there a government budget line item for the procurement of contraceptives?  (Please select from the dropdown list.)"}]
["B5. Were government funds allocated for contraceptive procurement for the public sector in the most recent complete fiscal year? (This question refers to funds planned to be spent on contraceptives, whether or not they ended up being spent.) \n\n(Government funds include internally generated funds, basket funds, World Bank credits or loans, and other funds donors gave to the government for their use.) \n",null,null,null,null,null,null,"Don't know",{"$f":"A32","v":"B5. Were government funds allocated for contraceptive procurement for the public sector in the most recent complete fiscal year? (This question refers to funds planned to be spent on contraceptives, whether or not they ended up being spent.) \n\n(Government funds include internally generated funds, basket funds, World Bank credits or loans, and other funds donors gave to the government for their use.) \n"}]
["B6. Please complete the table below regarding government allocations for contraceptive procurement.",null,null,null,null,null,null,null,null,null,null,null,null,null,null,null,null,null,null,null,null,null,null,{"$f":"A33","v":"B6. Please complete the table below regarding government allocations for contraceptive procurement."}]
[null,null,null,null,"Amount allocated \n(in USD)","Time period during which allocations were supposed to be spent \n(mm/yy-mm/yy)\n(should ideally be the most recent\ncomplete fiscal year ['09-'10])","Data source \n(for example: Ministry records)","Comments",null,null,{"$f":"A34","v":0}]
[null,"Government funds allocated for contraceptive procurement\n(funds originally designated for contraceptives, whether or not they ended up being spent on them)",null,null,"Don't know","01/10-12/10",null,null,null,null,{"$f":"#REF!","v":{"$error":"#REF!"}}]
[]
["B7. Were government funds spent on contraceptive procurement for the public sector in the most recent complete fiscal year? \n(Government funds include internally generated funds, basket funds, World Bank credits or loans, and other funds donors gave to the government for their use.)",null,null,null,null,null,null,"Don't know",{"$f":"A37","v":"B7. Were government funds spent on contraceptive procurement for the public sector in the most recent complete fiscal year? \n(Government funds include internally generated funds, basket funds, World Bank credits or loans, and other funds donors gave to the government for their use.)"}]
["B8. Please complete the table below to indicate government expenditures on contraceptive procurement, by source, in the most recent complete fiscal year. \n(This is how much was spent on contraceptive procurement (not what was allocated). How much of this spending was provided from each source?)",null,null,null,null,null,null,null,null,null,null,null,null,null,null,null,null,null,null,null,null,null,null,{"$f":"A38","v":"B8. Please complete the table below to indicate government expenditures on contraceptive procurement, by source, in the most recent complete fiscal year. \n(This is how much was spent on contraceptive procurement (not what was allocated). How much of this spending was provided from each source?)"}]
[null,"Source of government funds spent on contraceptive procurement for the public sector",null,"Was this source used?\n(Y/N)","Amount spent \n(in USD)","Time period (mm/yy-mm/yy)\n(should be the same for all sources of funds & ideally be the most recent\ncomplete fiscal year ['09-'10])","Data source \n(for example: Contraceptive Procurement Table, PipeLine, etc.)","Comments",null,null,{"$f":"A39","v":0}]
[null,"a. Internally generated funds spent on contraceptive procurement",null,"Don't know","Don't know","01/10-12/10",null,null,null,null,{"$f":"B40","v":"a. Internally generated funds spent on contraceptive procurement"}]
[null,null,"i. Specify source(s) of internally generated funds spent (for example, from taxes or user fees)","Don't know",null,null,null,null,null,null,{"$f":"C41","v":"i. Specify source(s) of internally generated funds spent (for example, from taxes or user fees)"},null,null,null,{"$f":"D41","v":"Don't know"}]
[null,"b. Total of all other government funds spent on contraceptive procurement (basket funds, World Bank credits or loans, and other funds donors gave to the government [e.g., direct budget support])",null,"Don't know","Don't know","01/10-12/10",null,null,null,null,{"$f":"B42","v":"b. Total of all other government funds spent on contraceptive procurement (basket funds, World Bank credits or loans, and other funds donors gave to the government [e.g., direct budget support])"}]
[null,null,"i. Specify source(s) of other government funds spent (for example: basket funding or specific donor)","Don't know",null,null,null,null,null,null,{"$f":"C43","v":"i. Specify source(s) of other government funds spent (for example: basket funding or specific donor)"},null,null,null,{"$f":"D43","v":"Don't know"}]
[null,"c. TOTAL government funds spent on contraceptive procurement\nThis will auto-calculate.  (It will sum a & b above.)",null,null,"Don't know",null,null,null,null,null,{"$f":"B44","v":"c. TOTAL government funds spent on contraceptive procurement\nThis will auto-calculate.  (It will sum a & b above.)"}]
[null,null,null,null,null,null,null,null,null,null,{"$f":"A45","v":0}]
["B9. Please complete the table below to indicate donor expenditures on contraceptive procurement in the most recent complete fiscal year.\n",null,null,null,null,null,null,null,null,null,null,null,null,null,null,null,null,null,null,null,null,null,null,{"$f":"A46","v":"B9. Please complete the table below to indicate donor expenditures on contraceptive procurement in the most recent complete fiscal year.\n"}]
["\n","Source of donations and donor funds spent on contraceptive procurement for the public sector",null,"Was this a source?\n(Y/N)","Amount of money spent on these procurements \n(in USD)","Time period (mm/yy-mm/yy)\n(should be the same for all sources of funds & ideally be the most recent\ncomplete fiscal year ['09-'10])","Data source \n(for example:  Donor records, Contraceptive Procurement Table, PipeLine, RHInterchange, etc.","Comments",null,null,{"$f":"A47","v":"\n"}]
[null,"a. In-kind donations of contraceptives",null,"Yes",540000,"01/10-12/10","RHInterchange",null,null,null,{"$f":"B48","v":"a. In-kind donations of contraceptives"}]
[null,null,"i. Specify source(s) of in-kind donations ","UNFPA",null,null,null,null,null,null,{"$f":"C49","v":"i. Specify source(s) of in-kind donations "},null,null,null,{"$f":"D49","v":"UNFPA"}]
[null,"b. Global Fund donations used to procure condoms",null,"No",0,"01/10-12/10","RHInterchange",null,null,null,{"$f":"B50","v":"b. Global Fund donations used to procure condoms"}]
[null,"c. Global Fund donations used to procure contraceptives besides condoms",null,"No",0,"01/10-12/10","RHInterchange",null,null,null,{"$f":"B51","v":"c. Global Fund donations used to procure contraceptives besides condoms"}]
[null,"d. TOTAL value of in-kind donations and Global Fund donations spent on contraceptive procurement\nThis will auto-calculate.  (It will sum a-c above.)",null,null,{"$f":"E48+E50+E51","v":540000},null,null,null,null,null,{"$f":"B52","v":"d. TOTAL value of in-kind donations and Global Fund donations spent on contraceptive procurement\nThis will auto-calculate.  (It will sum a-c above.)"}]
[null,null,null,null,null,null,null,null,null,null,{"$f":"A53","v":0}]
["The answers to B10 and B11 should calculate automatically based on the information you provided. Please review the answers to ensure they make sense to you, and if you have additional information to add, please note it in the comments boxes.\n\nIf the answers do not calculate automatically, please provide any relevant information you may have in the comments boxes.\n",null,null,null,null,null,null,null,null,null,null,null,null,null,null,null,null,null,null,null,null,null,null,{"$f":"A54","v":"The answers to B10 and B11 should calculate automatically based on the information you provided. Please review the answers to ensure they make sense to you, and if you have additional information to add, please note it in the comments boxes.\n\nIf the answers do not calculate automatically, please provide any relevant information you may have in the comments boxes.\n"}]
["B10. Government share of funds spent on contraceptive procurement for the public sector - \nOf the total amount spent on contraceptives for the public sector in the most recent complete fiscal year (including government and donor funds), what percent was covered by government funds (including internally generated funds, basket funds, World Bank credits or loans, and other funds given to the government)? \n\nThis will auto-calculate. (It contains the following formula: Total government spending (Question B8c) / Grand total of all spending for public sector contraceptives from the government and donors (Questions B8c+B9d))",null,null,null,null,"Don't know","Government funds used for procurement are part of the public health insurance funds - at the municipal level - to locally procure commodities for the public sector. Municipalities often purchase their supplies from PROSALUD, the social marketing program, that also provides services and supplies through their own clinics and sales points. It is not posible to determine the amount spent locally by the public sector.",null,null,{"$f":"G55","v":"Government funds used for procurement are part of the public health insurance funds - at the municipal level - to locally procure commodities for the public sector. Municipalities often purchase their supplies from PROSALUD, the social marketing program, that also provides services and supplies through their own clinics and sales points. It is not posible to determine the amount spent locally by the public sector."},null,null,null,null,null,null,null,{"$f":"A55","v":"B10. Government share of funds spent on contraceptive procurement for the public sector - \nOf the total amount spent on contraceptives for the public sector in the most recent complete fiscal year (including government and donor funds), what percent was covered by government funds (including internally generated funds, basket funds, World Bank credits or loans, and other funds given to the government)? \n\nThis will auto-calculate. (It contains the following formula: Total government spending (Question B8c) / Grand total of all spending for public sector contraceptives from the government and donors (Questions B8c+B9d))"}]
["B11. Total expenditures on public sector contraceptives as percent of amount that needed to be procured -\nOf the estimated value of the contraceptives needed to be procured for the public sector for the most recent complete fiscal year, what percent was provided by any source (whether government or donor)? \n\nThis will auto-calculate. (It contains the following formula: Grand total of all spending for public sector contraceptives from the government and donors (Questions B8c+B9d) / Value of estimated need for procurement (Question B2))",null,null,null,null,"Don't know",null,null,null,{"$f":"G56","v":0},null,null,null,null,null,null,null,{"$f":"A56","v":"B11. Total expenditures on public sector contraceptives as percent of amount that needed to be procured -\nOf the estimated value of the contraceptives needed to be procured for the public sector for the most recent complete fiscal year, what percent was provided by any source (whether government or donor)? \n\nThis will auto-calculate. (It contains the following formula: Grand total of all spending for public sector contraceptives from the government and donors (Questions B8c+B9d) / Value of estimated need for procurement (Question B2))"}]
["B12. If B11 did not calculate automatically, please answer the following question:\nWas there a funding gap for the public sector in the last complete fiscal year (e.g., 09-'10 fiscal year)?\n(Please select from the dropdown list.)",null,null,null,null,"Yes","The products sold by the Social Marketing Program to the public sector are subsidized. The payments made by the public health insurance cover the subsidized price, except in the case of Depo-provera (40% of the price of each product is not covered) and female condoms (90% of the price of each product is not covered).",null,null,{"$f":"G57","v":"The products sold by the Social Marketing Program to the public sector are subsidized. The payments made by the public health insurance cover the subsidized price, except in the case of Depo-provera (40% of the price of each product is not covered) and female condoms (90% of the price of each product is not covered)."},null,null,null,null,null,null,null,{"$f":"A57","v":"B12. If B11 did not calculate automatically, please answer the following question:\nWas there a funding gap for the public sector in the last complete fiscal year (e.g., 09-'10 fiscal year)?\n(Please select from the dropdown list.)"}]
[null,null,null,null,null,null,null,null,null,null,{"$f":"A58","v":0}]
["B13. If the government financed any contraceptive procurement in the most recent complete fiscal year, which entity conducted the procurement(s)? (Please select from the dropdown.)",null,null,null,null,"N/A",null,null,null,null,null,null,null,null,null,null,{"$f":"F59","v":"N/A"},{"$f":"A59","v":"B13. If the government financed any contraceptive procurement in the most recent complete fiscal year, which entity conducted the procurement(s)? (Please select from the dropdown.)"}]
[null,"a. Specify entity",null,null,null,"N/A",null,null,null,null,null,null,{"$f":"E60","v":0},null,null,null,{"$f":"F60","v":"N/A"},{"$f":"B60","v":"a. Specify entity"}]
[null,null,"i. Is this a parastatal?",null,null,"N/A",null,null,null,null,null,null,null,null,null,null,{"$f":"F61","v":"N/A"},{"$f":"C61","v":"i. Is this a parastatal?"}]
["B14. Please note any additional comments about finance and procurement.\n",null,null,"Currently, only in the case of donations are contraceptive commodities available at CEASS (the central warehouse), a parastatal entity.",null,null,null,null,null,null,{"$f":"A62","v":"B14. Please note any additional comments about finance and procurement.\n"},null,null,null,{"$f":"D62","v":"Currently, only in the case of donations are contraceptive commodities available at CEASS (the central warehouse), a parastatal entity."}]
["C. Commodities"]
["C1. Are the following contraceptive methods offered through the commercial sector, public sector, NGOs, or social marketing? (Please indicate which methods are intended to be offered. This question is not asking whether the method is in stock.) \n(Please select from the dropdown list.)",null,null,null,null,null,null,null,null,null,null,null,null,null,null,null,null,null,null,null,null,null,null,{"$f":"A64","v":"C1. Are the following contraceptive methods offered through the commercial sector, public sector, NGOs, or social marketing? (Please indicate which methods are intended to be offered. This question is not asking whether the method is in stock.) \n(Please select from the dropdown list.)"}]
["Contraceptive Method",null,null,"Commercial Sector",null,"Public Sector","NGO","Social Marketing",null,null,{"$f":"A65","v":"Contraceptive Method"}]
[null,"a. Combined oral contraceptives (estrogen + progestin - for  example, LoFemenol, Microgynon)",null,"Yes",null,"Yes","Yes","Yes",null,null,{"$f":"B66","v":"a. Combined oral contraceptives (estrogen + progestin - for  example, LoFemenol, Microgynon)"}]
[null,"b. Progestin-only pills (for example, Ovrette, Microlut)",null,"Yes",null,"Don't know","Don't know","No",null,null,{"$f":"B67","v":"b. Progestin-only pills (for example, Ovrette, Microlut)"}]
[null,"c. Hormonal injections (for example, DepoProvera, Noristerat)",null,"Yes",null,"Yes","Yes","Yes",null,null,"c. Hormonal injections (for example, DepoProvera, Noristerat)"]
[null,"d. Hormonal implants (for example, Jadelle, Implanon)",null,"No",null,"No","Yes","No",null,null,"d. Hormonal implants (for example, Jadelle, Implanon)"]
[null,"e. Intrauterine devices (IUDs) (for example, Optima Copper T)",null,"Yes",null,"Yes","Yes","Yes",null,null,"e. Intrauterine devices (IUDs) (for example, Optima Copper T)"]
[null,"f. Male condoms",null,"Yes",null,"Yes","Yes","Yes",null,null,"f. Male condoms"]
[null,"g. Female condoms",null,"Yes",null,"Yes","Yes","Yes",null,null,"g. Female condoms"]
[null,"h. Emergency contraceptive pills (for example, Postinor)",null,"Yes",null,"No","Yes","No",null,null,"h. Emergency contraceptive pills (for example, Postinor)"]
[null,"i. Long-acting permanent method for males (vasectomy)",null,"Yes",null,"Yes","Yes","No",null,null,"i. Long-acting permanent method for males (vasectomy)"]
[null,"j. Long-acting permanent method for females (tubal ligation)",null,"Yes",null,"Yes","Yes","No",null,null,"j. Long-acting permanent method for females (tubal ligation)"]
[null,"k. CycleBeads",null,"Yes",null,"Yes","Yes","Yes",null,null,"k. CycleBeads"]
[null,"l. Other contraceptive methods - specify \n(Please provide the name of the other contraceptive(s) offered, by sector.)",null,null,null,null,null,null,null,null,"l. Other contraceptive methods - specify \n(Please provide the name of the other contraceptive(s) offered, by sector.)"]
["C2. Please note any comments about the commodities offered.",null,null,null,null,null,null,null,null,null,{"$f":"A78","v":"C2. Please note any comments about the commodities offered."},null,null,null,{"$f":"D78","v":0}]
["D. Policies (Commitment)"]
["D1. Is there a contraceptive security or reproductive health commodity security strategy or is contraceptive security explicitly included in a country strategy? (Please select from the dropdown list.)",null,null,null,null,null,null,"No",{"$f":"A80","v":"D1. Is there a contraceptive security or reproductive health commodity security strategy or is contraceptive security explicitly included in a country strategy? (Please select from the dropdown list.)"}]
["IF NO, SKIP TO QUESTION D2."]
[null,"Strategy name",null,"Years Covered (including strategy updates)",null,"Is the strategy formally approved by the Ministry?","Is the contraceptive security strategy being implemented?",null,null,{"$f":"G82","v":"Is the contraceptive security strategy being implemented?"},{"$f":"B82","v":"Strategy name"},null,{"$f":"E82","v":0},null,null,null,null,null,{"$f":"D82","v":"Years Covered (including strategy updates)"}]
[null,"a",null,null,null,null,null,null,null,{"$f":"G83","v":0},{"$f":"B83","v":"a"},null,{"$f":"E83","v":0},null,null,null,null,null,{"$f":"D83","v":0}]
["D2. Are any family planning commodities subject to duties, import taxes, or other fees?",null,null,null,null,"Yes",null,null,null,null,null,null,null,null,null,null,{"$f":"F84","v":"Yes"},{"$f":"A84","v":"D2. Are any family planning commodities subject to duties, import taxes, or other fees?"}]
[null,"a. If yes, for which sectors (public, NGO, social marketing, commercial)?",null,null,"For any sector, but donated products are exempt from taxes by a specific decree; the exemption needs to be processed for donations to the MOH.",null,null,null,null,null,null,null,{"$f":"E85","v":"For any sector, but donated products are exempt from taxes by a specific decree; the exemption needs to be processed for donations to the MOH."},{"$f":"E85","v":"For any sector, but donated products are exempt from taxes by a specific decree; the exemption needs to be processed for donations to the MOH."},null,null,null,{"$f":"B85","v":"a. If yes, for which sectors (public, NGO, social marketing, commercial)?"}]
[null,"b. If yes, how much are the duties, taxes, or fees?",null,null,"For all other sectors there is a 40% import cost and 16% sales tax.",null,null,null,null,null,null,null,null,{"$f":"E86","v":"For all other sectors there is a 40% import cost and 16% sales tax."},null,null,null,{"$f":"B86","v":"b. If yes, how much are the duties, taxes, or fees?"}]
["D3. Are there policies that hinder the ability of the private sector (commercial sector, NGOs, or social marketing) to provide contraceptive methods (for example: price controls, distribution limitations, taxes/duties, advertising bans, etc.)?",null,null,null,null,null,null,"Yes",{"$f":"A87","v":"D3. Are there policies that hinder the ability of the private sector (commercial sector, NGOs, or social marketing) to provide contraceptive methods (for example: price controls, distribution limitations, taxes/duties, advertising bans, etc.)?"}]
[null,"a. If yes, describe the policies.",null,"Taxes increase sales costs",null,null,null,null,null,null,{"$f":"B88","v":"a. If yes, describe the policies."},null,null,null,{"$f":"D88","v":"Taxes increase sales costs"}]
["D4. Are there policies that enable the private sector (commercial sector, NGOs, or social marketing) to provide contraceptive methods?",null,null,null,null,null,null,"Yes",{"$f":"A89","v":"D4. Are there policies that enable the private sector (commercial sector, NGOs, or social marketing) to provide contraceptive methods?"}]
[null,"a. If yes, describe the policies.",null,"Essential pharmaceuticals and commodities policy",null,null,null,null,null,null,{"$f":"B90","v":"a. If yes, describe the policies."},null,null,null,{"$f":"D90","v":"Essential pharmaceuticals and commodities policy"}]
["D5. Do policies or regulations exist that restrict who can sell or dispense particular contraceptive methods?\n",null,null,null,null,null,null,"Yes",{"$f":"A91","v":"D5. Do policies or regulations exist that restrict who can sell or dispense particular contraceptive methods?\n"}]
[null,"Please note any restrictions in the following table."]
[null,"Contraceptive Method(s)",null,null,"Describe any public sector restriction on who is allowed to sell or dispense the method",null,"Describe any private sector restriction on who is allowed to sell or dispense the method",null,null,{"$f":"G93","v":"Describe any private sector restriction on who is allowed to sell or dispense the method"},null,null,null,null,null,{"$f":"B93","v":"Contraceptive Method(s)"},null,null,null,null,{"$f":"E93","v":"Describe any public sector restriction on who is allowed to sell or dispense the method"}]
[null,"a","Hormonal methods",null,null,null,"Only by a health profesional",null,null,{"$f":"G94","v":"Only by a health profesional"},null,null,{"$f":"E94","v":0},null,null,{"$f":"C94","v":"Hormonal methods"},null,null,null,null,{"$f":"E94","v":0}]
[null,"b",null,null,null,null,null,null,null,{"$f":"G95","v":0},null,null,{"$f":"E95","v":0},null,null,{"$f":"C95","v":0},null,null,null,null,{"$f":"E95","v":0}]
[null,"c",null,null,null,null,null,null,null,{"$f":"G96","v":0},null,null,{"$f":"E96","v":0},null,null,{"$f":"C96","v":0},null,null,null,null,{"$f":"E96","v":0}]
[null,null,null,null,null,null,null,null,null,null,{"$f":"C97","v":0}]
["D6. Does the country have laws, regulations, or policies that make it difficult for the following sub-populations to access effective family planning services?",null,null,"Y/N","If yes, describe laws/regulations/policies affecting access ",null,null,"Are the rules/policies implemented?",null,null,{"$f":"A98","v":"D6. Does the country have laws, regulations, or policies that make it difficult for the following sub-populations to access effective family planning services?"},null,null,null,null,null,null,null,null,null,null,{"$f":"E98","v":"If yes, describe laws/regulations/policies affecting access "}]
[null,"a. Unmarried people",null,"No",null,null,null,null,null,null,{"$f":"B99","v":"a. Unmarried people"},null,{"$f":"E99","v":0},null,null,null,null,null,null,null,null,{"$f":"E99","v":0}]
[null,"b. Young people",null,"No",null,null,null,null,null,null,{"$f":"B100","v":"b. Young people"},null,{"$f":"E100","v":0},null,null,null,null,null,null,null,null,{"$f":"E100","v":0}]
[null,"c. Other",null,"No",null,null,null,null,null,null,{"$f":"B101","v":"c. Other"},null,{"$f":"E101","v":0},null,null,null,null,null,null,null,null,{"$f":"E101","v":0}]
[null,null,null,null,null,null,null,null,null,null,{"$f":"C102","v":0}]
["D7. Are there charges* to the client in the public sector for family planning:\n*(This question refers to charges by policy, not under-the-table charges.)\n",null,null,null,null,null,null,null,null,null,null,null,null,null,null,null,null,null,null,null,null,null,null,{"$f":"A103","v":"D7. Are there charges* to the client in the public sector for family planning:\n*(This question refers to charges by policy, not under-the-table charges.)\n"}]
[null,"a. Services?",null,null,null,null,"No",null,null,{"$f":"G104","v":"No"},null,null,null,null,null,null,null,null,null,null,null,null,null,null,{"$f":"B104","v":"a. Services?"}]
[null,"b. Commodities?",null,null,null,null,"No",null,null,{"$f":"G105","v":"No"},null,null,null,null,null,null,null,null,null,null,null,null,null,null,{"$f":"B105","v":"b. Commodities?"}]
[null,"c. If yes, are there exemptions for people who cannot afford to pay?",null,null,null,null,"N/A",null,null,{"$f":"G106","v":"N/A"},null,null,null,null,null,null,null,null,null,null,null,null,null,null,{"$f":"B106","v":"c. If yes, are there exemptions for people who cannot afford to pay?"}]
[null,null,"i. If yes, describe the exemptions.","N/A",null,null,null,null,null,null,{"$f":"C107","v":"i. If yes, describe the exemptions."},null,null,null,{"$f":"D107","v":"N/A"}]
["D8. Are the following contraceptives included in the country's National Essential Medicine List (NEML) or other equivalent priority list?",null,null,null,null,null,null,null,null,null,null,null,null,null,null,null,null,null,null,null,null,null,null,{"$f":"A108","v":"D8. Are the following contraceptives included in the country's National Essential Medicine List (NEML) or other equivalent priority list?"}]
[null,"a. Combined oral contraceptives",null,null,null,null,"Yes",null,null,{"$f":"G109","v":"Yes"},null,null,null,null,null,null,null,null,null,null,null,null,null,null,{"$f":"B109","v":"a. Combined oral contraceptives"}]
[null,"b. Progestin-only pills",null,null,null,null,"No",null,null,"No",null,null,null,null,null,null,null,null,null,null,null,null,null,null,"b. Progestin-only pills"]
[null,"c. Hormonal injections",null,null,null,null,"Yes",null,null,"Yes",null,null,null,null,null,null,null,null,null,null,null,null,null,null,"c. Hormonal injections"]
[null,"d. Hormonal implants",null,null,null,null,"No",null,null,"No",null,null,null,null,null,null,null,null,null,null,null,null,null,null,"d. Hormonal implants"]
[null,"e. Intrauterine devices (IUDs)",null,null,null,null,"Yes",null,null,"Yes",null,null,null,null,null,null,null,null,null,null,null,null,null,null,"e. Intrauterine devices (IUDs)"]
[null,"f. Male condoms",null,null,null,null,"Yes",null,null,"Yes",null,null,null,null,null,null,null,null,null,null,null,null,null,null,"f. Male condoms"]
[null,"g. Female condoms",null,null,null,null,"Yes",null,null,"Yes",null,null,null,null,null,null,null,null,null,null,null,null,null,null,"g. Female condoms"]
[null,"h. Emergency contraceptive pills",null,null,null,null,"No",null,null,"No",null,null,null,null,null,null,null,null,null,null,null,null,null,null,"h. Emergency contraceptive pills"]
[null,"i. CycleBeads",null,null,null,null,"No",null,null,{"$f":"G117","v":"No"},null,null,null,null,null,null,null,null,null,null,null,null,null,null,{"$f":"B117","v":"i. CycleBeads"}]
[null,"j. Any other contraceptive(s)?",null,null,null,null,"No",null,null,"No",null,null,null,null,null,null,null,null,null,null,null,null,null,null,"j. Any other contraceptive(s)?"]
[null,null,"i. Name of other contraceptive(s) on the list(s)",null,null,"N/A",null,null,null,0,null,null,null,null,null,null,null,{"$f":"B119","v":0}]
["D9. What year(s) is the list(s) from?",null,null,null,null,2008,null,null,null,0,null,null,null,null,null,null,null,{"$f":"B120","v":0}]
["D10. Name of the list(s)\n\n\n",null,null,"Lista Nacional de Medicamentos Esenciales (LINAME) (National Essential Medicines List)",null,null,null,null,null,null,{"$f":"A121","v":"D10. Name of the list(s)\n\n\n"},null,null,null,{"$f":"D121","v":"Lista Nacional de Medicamentos Esenciales (LINAME) (National Essential Medicines List)"}]
["D11. Notes about the list(s)\n\n\n",null,null,"It is the national pharmaceuticals and commodities list for the national health system.",null,null,null,null,null,null,{"$f":"A122","v":"D11. Notes about the list(s)\n\n\n"},null,null,null,{"$f":"D122","v":"It is the national pharmaceuticals and commodities list for the national health system."}]
["D12.  Information on country's Poverty Reduction Strategy Paper (PRSP)\n",null,null,null,null,null,null,null,null,null,null,null,null,null,null,null,null,null,null,null,null,null,null,{"$f":"A123","v":"D12.  Information on country's Poverty Reduction Strategy Paper (PRSP)\n"}]
[null,"a. What year is the Poverty Reduction Strategy Paper from? (most recent actual PRSP on IMF's site [not progress or summary report])",null,null,null,2001,null,null,null,{"$f":"G124","v":0},null,null,null,null,null,null,null,{"$f":"B124","v":"a. What year is the Poverty Reduction Strategy Paper from? (most recent actual PRSP on IMF's site [not progress or summary report])"}]
[null,"b. Is family planning or reproductive health a priority in the PRSP?",null,null,null,null,"No",null,null,{"$f":"G125","v":"No"},null,null,null,null,null,null,null,null,null,null,null,null,null,null,{"$f":"B125","v":"b. Is family planning or reproductive health a priority in the PRSP?"}]
[null,"c. Is contraceptive security included in the PRSP?",null,null,null,null,"No",null,null,{"$f":"G126","v":"No"},null,null,null,null,null,null,null,null,null,null,null,null,null,null,{"$f":"B126","v":"c. Is contraceptive security included in the PRSP?"}]
[null,"d. Is contraceptive prevalence rate (CPR) included as an indicator in the PRSP?",null,null,null,null,"No",null,null,{"$f":"G127","v":"No"},null,null,null,null,null,null,null,null,null,null,null,null,null,null,{"$f":"B127","v":"d. Is contraceptive prevalence rate (CPR) included as an indicator in the PRSP?"}]
[null,"e. Are contraceptive supply indicators included in the PRSP?",null,null,null,null,"No",null,null,{"$f":"G128","v":"No"},null,null,null,null,null,null,null,null,null,null,null,null,null,null,{"$f":"B128","v":"e. Are contraceptive supply indicators included in the PRSP?"}]
["\n\n\n","f. Notes about the Poverty Reduction Strategy Paper",null,null,null,null,null,null,null,null,{"$f":"B129","v":"f. Notes about the Poverty Reduction Strategy Paper"},null,null,null,{"$f":"D129","v":0}]
["E. Supply Chain (Capacity)"]
["E1. Have stockouts occurred for any contraceptive at the central* level in the last 12 months?  \n*(The central level refers to the central level warehouse for the public sector.)",null,null,null,null,null,"Yes",null,null,{"$f":"G131","v":"Yes"},null,null,null,null,null,null,null,null,null,null,null,null,null,null,{"$f":"A131","v":"E1. Have stockouts occurred for any contraceptive at the central* level in the last 12 months?  \n*(The central level refers to the central level warehouse for the public sector.)"}]
["E2. In the last 12 months, has there ever been a stockout at the central level of any of the contraceptives offered in public sector facilities? (If a method is not intended to be offered in public sector facilities, please indicate that stockouts are not applicable (choose \"N/A\" from the dropdown list).)",null,null,null,null,null,null,null,null,null,null,null,null,null,null,null,null,null,null,null,null,null,null,{"$f":"A132","v":"E2. In the last 12 months, has there ever been a stockout at the central level of any of the contraceptives offered in public sector facilities? (If a method is not intended to be offered in public sector facilities, please indicate that stockouts are not applicable (choose \"N/A\" from the dropdown list).)"}]
[null,"a. Combined oral contraceptives",null,null,null,null,"Yes",null,null,{"$f":"G133","v":"Yes"},null,null,null,null,null,null,null,null,null,null,null,null,null,null,{"$f":"B133","v":"a. Combined oral contraceptives"}]
[null,"b. Progestin-only pills",null,null,null,null,"N/A",null,null,"N/A",null,null,null,null,null,null,null,null,null,null,null,null,null,null,"b. Progestin-only pills"]
[null,"c. Hormonal injections",null,null,null,null,"Yes",null,null,"Yes",null,null,null,null,null,null,null,null,null,null,null,null,null,null,"c. Hormonal injections"]
[null,"d. Hormonal implants",null,null,null,null,"N/A",null,null,"N/A",null,null,null,null,null,null,null,null,null,null,null,null,null,null,"d. Hormonal implants"]
[null,"e. Intrauterine devices (IUDs)",null,null,null,null,"Yes",null,null,"Yes",null,null,null,null,null,null,null,null,null,null,null,null,null,null,"e. Intrauterine devices (IUDs)"]
[null,"f. Male condoms",null,null,null,null,"Yes",null,null,"Yes",null,null,null,null,null,null,null,null,null,null,null,null,null,null,"f. Male condoms"]
[null,"g. Female condoms",null,null,null,null,"Yes",null,null,"Yes",null,null,null,null,null,null,null,null,null,null,null,null,null,null,"g. Female condoms"]
[null,"h. Emergency contraceptive pills",null,null,null,null,"N/A",null,null,"N/A",null,null,null,null,null,null,null,null,null,null,null,null,null,null,"h. Emergency contraceptive pills"]
[null,"i. CycleBeads",null,null,null,null,"N/A",null,null,"N/A",null,null,null,null,null,null,null,null,null,null,null,null,null,null,"i. CycleBeads"]
[null,"j. Time period\n(mm/yy - mm/yy) (for example, 1/10-12/10) ",null,null,null,"11/09-03/11",null,null,null,null,null,null,null,null,null,null,{"$f":"F142","v":"11/09-03/11"},{"$f":"B142","v":"j. Time period\n(mm/yy - mm/yy) (for example, 1/10-12/10) "}]
[null,"k. Data source\n(for example: Procurement Planning and Monitoring Report, Logistics Management Information System, periodic physical inventory, warehouse reports)",null,null,null,"Warehouse reports, and CEASS Evaluation developed by UNFPA in March 2011",null,null,null,null,null,null,null,null,null,null,{"$f":"F143","v":"Warehouse reports, and CEASS Evaluation developed by UNFPA in March 2011"},{"$f":"B143","v":"k. Data source\n(for example: Procurement Planning and Monitoring Report, Logistics Management Information System, periodic physical inventory, warehouse reports)"}]
["E3. Are stockouts a large problem in your country at the following levels? (i.e., Are they common or do they tend to last for a long time?)\n\n"]
[null,"a. service delivery point level (i.e., public sector health facilities)",null,null,null,null,"No",null,null,{"$f":"G145","v":"No"},null,null,null,null,null,null,null,null,null,null,null,null,null,null,{"$f":"B145","v":"a. service delivery point level (i.e., public sector health facilities)"}]
[null,"b. central level (i.e., central level warehouse for the public sector)",null,null,null,null,"Yes",null,null,{"$f":"G146","v":"Yes"},null,null,null,null,null,null,null,null,null,null,null,null,null,null,{"$f":"B146","v":"b. central level (i.e., central level warehouse for the public sector)"}]
["F. Please note any overall comments about challenges and/or successes with contraceptive security in your country.\n\n",null,null,"Although a government strategy is not currently being implemented, the Social Marketing Program/PROSALUD provides contraceptive commodities to the public and private-NGO sectors, and has a plan ensuring provision until 2015. Our country challenges include the regulatory policies that restrict international procurement of low-priced products that would be more affordable for low-income populations. ",null,null,null,null,null,null,{"$f":"A147","v":"F. Please note any overall comments about challenges and/or successes with contraceptive security in your country.\n\n"},null,null,null,{"$f":"D147","v":"Although a government strategy is not currently being implemented, the Social Marketing Program/PROSALUD provides contraceptive commodities to the public and private-NGO sectors, and has a plan ensuring provision until 2015. Our country challenges include the regulatory policies that restrict international procurement of low-priced products that would be more affordable for low-income populations. "}]

{"sheet":"Burkina Faso 2011","index":11,"n_rows":147,"n_cols":25,"rows_kept":147,"cut":false,"hidden":false,"merged":[[142,5,142,7],[141,1,141,4],[141,5,141,7],[142,1,142,4],[138,1,138,5],[143,0,143,7],[147,0,147,7],[148,0,150,7],[145,1,145,5],[145,6,145,7],[146,0,146,2],[146,3,146,7],[144,1,144,5],[144,6,144,7],[136,1,136,5],[136,6,136,7],[137,1,137,5],[137,6,137,7],[138,6,138,7],[139,1,139,5],[139,6,139,7],[140,1,140,5],[140,6,140,7],[131,0,131,7],[132,1,132,5],[132,6,132,7],[133,1,133,5],[133,6,133,7],[134,1,134,5],[134,6,134,7],[135,1,135,5],[135,6,135,7],[120,0,120,2],[120,3,120,7],[121,0,121,2],[121,3,121,7],[129,0,129,6],[130,0,130,5],[130,6,130,7],[122,0,122,7],[123,1,123,4],[123,5,123,7],[115,1,115,5],[115,6,115,7],[116,1,116,5],[116,6,116,7],[117,1,117,5],[117,6,117,7],[118,2,118,4],[118,5,118,7],[119,0,119,4],[119,5,119,7],[110,1,110,5],[110,6,110,7],[111,1,111,5],[111,6,111,7],[112,1,112,5],[112,6,112,7],[113,1,113,5],[113,6,113,7],[114,1,114,5],[114,6,114,7],[104,1,104,5],[104,6,104,7],[105,1,105,5],[105,6,105,7],[106,3,106,7],[107,0,107,7],[108,1,108,5],[108,6,108,7],[109,1,109,5],[109,6,109,7],[98,1,98,2],[98,4,98,6],[99,1,99,2],[99,4,99,6],[100,1,100,2],[100,4,100,6],[101,0,101,7],[102,0,102,7],[103,1,103,5],[103,6,103,7],[94,2,94,3],[94,4,94,5],[94,6,94,7],[95,2,95,3],[95,4,95,5],[95,6,95,7],[96,0,96,7],[97,0,97,2],[97,4,97,6],[88,0,88,6],[89,1,89,2],[89,3,89,7],[90,0,90,6],[91,1,91,2],[92,1,92,3],[92,4,92,5],[92,6,92,7],[93,2,93,3],[93,4,93,5],[93,6,93,7],[83,0,83,4],[83,5,83,7],[84,1,84,3],[84,4,84,7],[85,1,85,3],[85,4,85,7],[86,0,86,6],[87,1,87,2],[87,3,87,7],[77,0,77,2],[77,3,77,7],[78,0,78,6],[79,0,79,6],[80,0,80,2],[81,0,82,0],[81,1,81,2],[81,3,81,4],[81,6,81,7],[82,3,82,4],[82,6,82,7],[72,1,72,2],[72,3,72,4],[73,1,73,2],[73,3,73,4],[74,1,74,2],[74,3,74,4],[75,1,75,2],[75,3,75,4],[76,1,76,2],[76,3,76,4],[67,1,67,2],[67,3,67,4],[68,1,68,2],[68,3,68,4],[69,1,69,2],[69,3,69,4],[70,1,70,2],[70,3,70,4],[71,1,71,2],[71,3,71,4],[61,0,61,2],[61,3,61,7],[62,0,62,6],[63,0,63,7],[64,0,64,2],[64,3,64,4],[65,1,65,2],[65,3,65,4],[66,1,66,2],[66,3,66,4],[55,0,55,4],[55,6,55,7],[56,0,56,4],[56,6,56,7],[58,0,58,4],[58,5,58,7],[59,1,59,4],[59,5,59,7],[60,2,60,4],[60,5,60,7],[51,1,51,2],[53,0,53,7],[54,0,54,4],[54,6,54,7],[45,0,45,7],[46,1,46,2],[47,1,47,2],[48,3,48,7],[49,1,49,2],[50,1,50,2],[35,0,35,7],[36,0,36,6],[37,0,37,7],[38,1,38,2],[39,1,39,2],[40,3,40,7],[41,1,41,2],[42,3,42,7],[43,1,43,2],[28,0,28,5],[28,6,28,7],[29,0,29,3],[29,6,29,7],[30,0,30,6],[31,0,31,6],[32,0,32,7],[33,1,33,3],[34,1,34,3],[21,1,21,2],[21,5,21,7],[22,1,22,2],[22,5,22,7],[23,0,23,6],[24,0,24,6],[25,0,25,2],[26,0,26,6],[27,0,27,2],[27,3,27,4],[16,1,16,2],[16,5,16,7],[17,1,17,2],[17,5,17,7],[18,1,18,2],[18,5,18,7],[19,1,19,2],[19,5,19,7],[20,1,20,2],[20,5,20,7],[0,0,0,7],[1,0,1,2],[1,3,1,4],[2,0,2,7],[3,3,3,4],[10,0,10,6],[5,0,5,2],[8,0,8,7],[13,3,13,7],[126,6,126,7],[3,5,3,7],[127,1,127,5],[127,6,127,7],[128,1,128,2],[128,3,128,7],[124,1,124,5],[124,6,124,7],[125,1,125,5],[125,6,125,7],[126,1,126,5],[7,0,7,2],[7,3,7,5],[7,6,7,7],[9,0,9,7],[4,0,4,2],[11,0,11,6],[12,1,12,2],[12,3,12,7],[13,0,13,2],[14,1,14,2],[14,5,14,7],[15,1,15,2],[15,5,15,7]]}
[null,null,null,null,null,null,null,null,"Columns I-Y are meant to be hidden. They exist because they allow for the dropdown list options. They also allow for merged cells to autofit properly in terms of row height. This should work if all columns remain at their correct widths.","g-h",null,"a-e merged","E-F merged","e-h","0 times",null,null,"The government (e.g., Central Medical Stores, MOH logistics unit, MOH procurement unit)",null,null,null,null,"Yes","a-h","January"]
[null,null,null,null,null,null,null,null,null,null,"A-c",null,null,null,"1-2 times","b-d merged",null,"Third-party agent (e.g., UNFPA, Crown Agents)","d-e merged","d-f merged","e-f merged","e-g merged","No",null,"February"]
[null,null,null,null,null,null,null,null,null,null,null,null,null,null,"3-5 times",null,null,"The government and a third-party agent",null,null,null,null,null,null,"March"]
[null,null,null,null,null,null,null,null,null,null,null,null,null,null,"6 or more times",null,null,"Other",null,null,null,null,"N/A",null,"April"]
["To jump to the Introduction sheet, click here.",null,null,null,null,null,null,null,null,null,null,null,null,null,null,null,null,null,null,null,null,null,"Don't know",null,"May"]
[null,null,null,null,null,null,null,null,null,null,null,null,null,null,"N/A",null,null,"N/A",null,null,null,null,null,null,"June"]
["Contraceptive Security (CS) Indicators 2011 Data ",null,null,null,null,null,null,null,null,null,null,null,null,null,"Don't know",null,null,"Don't know",null,null,null,null,null,null,"July"]
["Country: Burkina Faso",null,null,null,null,null,null,null,null,{"$f":"G8","v":0},{"$f":"A8","v":"Country: Burkina Faso"},null,null,null,null,"or c-d",null,null,null,{"$f":"D8","v":0},null,null,null,null,"August"]
["The CS Indicators are presented in the following sections:\n\n               A. leadership & cooordination               B. finance & procurement               C. commodities               D. policies               E. supply chain",null,null,null,null,null,null,null,null,{"$f":"G9","v":0},{"$f":"A9","v":"The CS Indicators are presented in the following sections:\n\n               A. leadership & cooordination               B. finance & procurement               C. commodities               D. policies               E. supply chain"},null,null,null,"d-h",null,"f-h merged",null,{"$f":"D9","v":0},null,null,null,null,null,"September"]
["\nNotes:\n  -  Respondents' answers are indicated in the white spaces. \n  -  N/A = not applicable. Don't know = the respondent either indicated they did not know or left the answer blank.\n  -  Some questions required respondents to choose from a dropdown list of options; in these cases the dropdown arrow will \n     appear when you click on the cell. \n  -  There may be a few inserted comments. (If you cannot already see them, click on Review tab - Comments group - Show All Comments in newer \n       versions of Excel or View - Comments in older versions of Excel.)\n  -  If the answer is cut off, you can either manually adjust the row height or autofit the row height in order to see the whole \n     response. (To autofit the row height, select the answer(s) and go to Home tab - Cells group - Format - Autofit Row Height in newer versions of Excel or \n      Format - Row - Autofit in older versions of Excel.)\n",null,null,null,null,null,null,null,"a-g",null,null,null,null,null,null,null,null,"a-e merged",null,null,null,null,null,{"$f":"A10","v":"\nNotes:\n  -  Respondents' answers are indicated in the white spaces. \n  -  N/A = not applicable. Don't know = the respondent either indicated they did not know or left the answer blank.\n  -  Some questions required respondents to choose from a dropdown list of options; in these cases the dropdown arrow will \n     appear when you click on the cell. \n  -  There may be a few inserted comments. (If you cannot already see them, click on Review tab - Comments group - Show All Comments in newer \n       versions of Excel or View - Comments in older versions of Excel.)\n  -  If the answer is cut off, you can either manually adjust the row height or autofit the row height in order to see the whole \n     response. (To autofit the row height, select the answer(s) and go to Home tab - Cells group - Format - Autofit Row Height in newer versions of Excel or \n      Format - Row - Autofit in older versions of Excel.)\n"},"October"]
["A. Leadership and Coordination",null,null,null,null,null,null,null,null,null,null,null,null,null,null,null,null,null,null,null,null,null,null,null,"November"]
["A1. Is there a national committee that works on contraceptive security? (Please select from the dropdown list.)\n(Committee should have some aspect of contraceptive security as part of its Terms of Reference, even if it is known by a different name, for example: Family Planning, Reproductive Health, Maternal Mortality, Essential Medicine Committee, etc.)  ",null,null,null,null,null,null,"Yes",{"$f":"A12","v":"A1. Is there a national committee that works on contraceptive security? (Please select from the dropdown list.)\n(Committee should have some aspect of contraceptive security as part of its Terms of Reference, even if it is known by a different name, for example: Family Planning, Reproductive Health, Maternal Mortality, Essential Medicine Committee, etc.)  "},null,null,null,null,null,null,null,null,null,null,null,null,null,null,null,"December"]
[null,"a. What is the name of the committee?",null,"Comité de Suivi de la Sécurisation des Produits de SR (Reproductive Health Commodities Security Follow-up Committee)",null,null,null,null,null,null,{"$f":"B13","v":"a. What is the name of the committee?"},{"$f":"D13","v":"Comité de Suivi de la Sécurisation des Produits de SR (Reproductive Health Commodities Security Follow-up Committee)"},null,null,{"$f":"D13","v":"Comité de Suivi de la Sécurisation des Produits de SR (Reproductive Health Commodities Security Follow-up Committee)"}]
["A2. Are the following organizations represented on the committee?",null,null,"(Y/N \ndropdown)",null,null,null,null,null,null,{"$f":"A14","v":"A2. Are the following organizations represented on the committee?"},null,null,null,null,null,null,null,null,null,null,null,null,null,"Don't know"]
[null,"a. Social marketing",null,"Yes","If yes, specify name(s) of organizations","PROMACO",null,null,null,null,{"$f":"B15","v":"a. Social marketing"},null,null,null,null,null,{"$f":"F15","v":"PROMACO"}]
[null,"b. NGO (for example: service delivery, advocacy, Planned Parenthood affiliate, Marie Stopes affiliate, faith-based organizations, etc.)",null,"Yes","If yes, specify name(s) of organizations","ABBEF (Burkina IPPF affiliate), Marie Stopes International (MSI)",null,null,null,null,"b. NGO (for example: service delivery, advocacy, Planned Parenthood affiliate, Marie Stopes affiliate, faith-based organizations, etc.)",null,null,null,null,null,"ABBEF (Burkina IPPF affiliate), Marie Stopes International (MSI)"]
[null,"c. Commercial sector (for example: pharmacy associations, manufacturers, etc.)",null,"Yes","If yes, specify name(s) of organizations","Association des pharmaciens du privé (association of private pharmacists)",null,null,null,null,"c. Commercial sector (for example: pharmacy associations, manufacturers, etc.)",null,null,null,null,null,"Association des pharmaciens du privé (association of private pharmacists)"]
[null,"d. Donors",null,"Yes","If yes, specify name(s) of donors","UNFPA",null,null,null,null,"d. Donors",null,null,null,null,null,"UNFPA"]
[null,"e. UN agencies",null,"Yes","If yes, specify name(s) of agencies","UNFPA",null,null,null,null,"e. UN agencies",null,null,null,null,null,"UNFPA"]
[null,"f. Ministry of Health (for example: logistics, reproductive health, family planning, maternal and child health, HIV/AIDS, pharmacy units, etc.)",null,"Yes","If yes, specify name(s) of units","Family Health Division (DSF), Pharmacy Division, Planning and Research Division (DEP)",null,null,null,null,"f. Ministry of Health (for example: logistics, reproductive health, family planning, maternal and child health, HIV/AIDS, pharmacy units, etc.)",null,null,null,null,null,"Family Health Division (DSF), Pharmacy Division, Planning and Research Division (DEP)"]
[null,"g. Central Medical Store or Central Warehouse",null,"Yes","If yes, specify","CAMEG (Central Medical Stores)",null,null,null,null,"g. Central Medical Store or Central Warehouse",null,null,null,null,null,"CAMEG (Central Medical Stores)"]
[null,"h. Ministry of Finance or Ministry of Planning ",null,"Yes","If yes, specify","DAF Ministère de la Santé (Finances Division of the MOH), National Population Council (CONAPO)",null,null,null,null,"h. Ministry of Finance or Ministry of Planning ",null,null,null,null,null,"DAF Ministère de la Santé (Finances Division of the MOH), National Population Council (CONAPO)"]
[null,"i. Other (for example: partners)",null,"Yes","If yes, specify","Burkina Faso midwives' association (ABSF), Secrétariat permanent du Conseil national de lutte contre le SIDA (SP/CNLS) - permanent secretary of the national council of the fight against AIDS",null,null,null,null,"i. Other (for example: partners)",null,null,null,null,null,"Burkina Faso midwives' association (ABSF), Secrétariat permanent du Conseil national de lutte contre le SIDA (SP/CNLS) - permanent secretary of the national council of the fight against AIDS"]
["A3. How many times did the committee meet during the last year? (0, 1-2, 3-5, or 6+)  (Please select from the dropdown.)",null,null,null,null,null,null,"1-2 times",{"$f":"A24","v":"A3. How many times did the committee meet during the last year? (0, 1-2, 3-5, or 6+)  (Please select from the dropdown.)"}]
["A4. Does the committee have legal status?  (Please select from the dropdown.)                                  ",null,null,null,null,null,null,"Yes",{"$f":"A25","v":"A4. Does the committee have legal status?  (Please select from the dropdown.)                                  "}]
["A5. Is there a Contraceptive Security \"champion\"? (someone who consistently brings up and advocates for contraceptive supplies)",null,null,"Yes","If yes, specify person's organization","Family Health Division (DSF)","Specify person's job title","Director",null,null,{"$f":"A26","v":"A5. Is there a Contraceptive Security \"champion\"? (someone who consistently brings up and advocates for contraceptive supplies)"}]
["B. Finance and Procurement (Capital)"]
["B1. What is the timeline of the country's fiscal year?",null,null,"Beginning month",null,"January","Ending month","December",null,null,{"$f":"B28","v":0}]
["B2. What was the estimated dollar value of contraceptives needed to be procured for the public sector for the most recent complete fiscal year? (in USD currency)\n(for example, to cover the needs for the '09-'10 fiscal year)",null,null,null,null,null,2700000,null,null,{"$f":"G29","v":2700000},null,null,{"$f":"E29","v":0},null,null,null,null,null,null,null,null,null,null,null,{"$f":"A29","v":"B2. What was the estimated dollar value of contraceptives needed to be procured for the public sector for the most recent complete fiscal year? (in USD currency)\n(for example, to cover the needs for the '09-'10 fiscal year)"}]
["B3. When was the last forecast/quantification conducted? (mm/yy)",null,null,null,"11/10","Who conducted it? (Specify organization.)","Reproductive Health Commodities Security Follow-up Committee",null,null,{"$f":"G30","v":"Reproductive Health Commodities Security Follow-up Committee"},null,null,{"$f":"E30","v":"11/10"},null,null,null,null,null,null,null,null,null,null,null,{"$f":"A30","v":"B3. When was the last forecast/quantification conducted? (mm/yy)"}]
["B4. Is there a government budget line item for the procurement of contraceptives?  (Please select from the dropdown list.)",null,null,null,null,null,null,"Yes",{"$f":"A31","v":"B4. Is there a government budget line item for the procurement of contraceptives?  (Please select from the dropdown list.)"}]
["B5. Were government funds allocated for contraceptive procurement for the public sector in the most recent complete fiscal year? (This question refers to funds planned to be spent on contraceptives, whether or not they ended up being spent.) \n\n(Government funds include internally generated funds, basket funds, World Bank credits or loans, and other funds donors gave to the government for their use.) \n",null,null,null,null,null,null,"Yes",{"$f":"A32","v":"B5. Were government funds allocated for contraceptive procurement for the public sector in the most recent complete fiscal year? (This question refers to funds planned to be spent on contraceptives, whether or not they ended up being spent.) \n\n(Government funds include internally generated funds, basket funds, World Bank credits or loans, and other funds donors gave to the government for their use.) \n"}]
["B6. Please complete the table below regarding government allocations for contraceptive procurement.",null,null,null,null,null,null,null,null,null,null,null,null,null,null,null,null,null,null,null,null,null,null,{"$f":"A33","v":"B6. Please complete the table below regarding government allocations for contraceptive procurement."}]
[null,null,null,null,"Amount allocated \n(in USD)","Time period during which allocations were supposed to be spent \n(mm/yy-mm/yy)\n(should ideally be the most recent\ncomplete fiscal year ['09-'10])","Data source \n(for example: Ministry records)","Comments",null,null,{"$f":"A34","v":0}]
[null,"Government funds allocated for contraceptive procurement\n(funds originally designated for contraceptives, whether or not they ended up being spent on them)",null,null,600000,"01/10-12/10","Finance Department, MOH","There was a reduction in government funding due to the flood in September 2009.",null,null,{"$f":"#REF!","v":{"$error":"#REF!"}}]
[]
["B7. Were government funds spent on contraceptive procurement for the public sector in the most recent complete fiscal year? \n(Government funds include internally generated funds, basket funds, World Bank credits or loans, and other funds donors gave to the government for their use.)",null,null,null,null,null,null,"Yes",{"$f":"A37","v":"B7. Were government funds spent on contraceptive procurement for the public sector in the most recent complete fiscal year? \n(Government funds include internally generated funds, basket funds, World Bank credits or loans, and other funds donors gave to the government for their use.)"}]
["B8. Please complete the table below to indicate government expenditures on contraceptive procurement, by source, in the most recent complete fiscal year. \n(This is how much was spent on contraceptive procurement (not what was allocated). How much of this spending was provided from each source?)",null,null,null,null,null,null,null,null,null,null,null,null,null,null,null,null,null,null,null,null,null,null,{"$f":"A38","v":"B8. Please complete the table below to indicate government expenditures on contraceptive procurement, by source, in the most recent complete fiscal year. \n(This is how much was spent on contraceptive procurement (not what was allocated). How much of this spending was provided from each source?)"}]
[null,"Source of government funds spent on contraceptive procurement for the public sector",null,"Was this source used?\n(Y/N)","Amount spent \n(in USD)","Time period (mm/yy-mm/yy)\n(should be the same for all sources of funds & ideally be the most recent\ncomplete fiscal year ['09-'10])","Data source \n(for example: Contraceptive Procurement Table, PipeLine, etc.)","Comments",null,null,{"$f":"A39","v":0}]
[null,"a. Internally generated funds spent on contraceptive procurement",null,"Yes",365205,"01/10-12/10","Contraceptive Procurement Table (CPT)","The government budget line allocated for 2010 for contraceptives was US$600,000, but out of this budget only US$365,205 was spent (accessibility issue).",null,null,{"$f":"B40","v":"a. Internally generated funds spent on contraceptive procurement"}]
[null,null,"i. Specify source(s) of internally generated funds spent (for example, from taxes or user fees)","Taxes",null,null,null,null,null,null,{"$f":"C41","v":"i. Specify source(s) of internally generated funds spent (for example, from taxes or user fees)"},null,null,null,{"$f":"D41","v":"Taxes"}]
[null,"b. Total of all other government funds spent on contraceptive procurement (basket funds, World Bank credits or loans, and other funds donors gave to the government [e.g., direct budget support])",null,"Yes",404000,"01/10-12/10","Contraceptive Procurement Table (CPT)","Basket Funds managed by Project d’Appui au developpement sanitaire (PADS) - support to health development",null,null,{"$f":"B42","v":"b. Total of all other government funds spent on contraceptive procurement (basket funds, World Bank credits or loans, and other funds donors gave to the government [e.g., direct budget support])"}]
[null,null,"i. Specify source(s) of other government funds spent (for example: basket funding or specific donor)","Basket Fund",null,null,null,null,null,null,{"$f":"C43","v":"i. Specify source(s) of other government funds spent (for example: basket funding or specific donor)"},null,null,null,{"$f":"D43","v":"Basket Fund"}]
[null,"c. TOTAL government funds spent on contraceptive procurement\nThis will auto-calculate.  (It will sum a & b above.)",null,null,{"$f":"E40+E42","v":769205},null,null,null,null,null,{"$f":"B44","v":"c. TOTAL government funds spent on contraceptive procurement\nThis will auto-calculate.  (It will sum a & b above.)"}]
[null,null,null,null,null,null,null,null,null,null,{"$f":"A45","v":0}]
["B9. Please complete the table below to indicate donor expenditures on contraceptive procurement in the most recent complete fiscal year.\n",null,null,null,null,null,null,null,null,null,null,null,null,null,null,null,null,null,null,null,null,null,null,{"$f":"A46","v":"B9. Please complete the table below to indicate donor expenditures on contraceptive procurement in the most recent complete fiscal year.\n"}]
["\n","Source of donations and donor funds spent on contraceptive procurement for the public sector",null,"Was this a source?\n(Y/N)","Amount of money spent on these procurements \n(in USD)","Time period (mm/yy-mm/yy)\n(should be the same for all sources of funds & ideally be the most recent\ncomplete fiscal year ['09-'10])","Data source \n(for example:  Donor records, Contraceptive Procurement Table, PipeLine, RHInterchange, etc.","Comments",null,null,{"$f":"A47","v":"\n"}]
[null,"a. In-kind donations of contraceptives",null,"Yes",1066253,"01/10-12/10","CPTs, PipeLine database, My Commodities on USAID | DELIVER PROJECT website "," ",null,null,{"$f":"B48","v":"a. In-kind donations of contraceptives"}]
[null,null,"i. Specify source(s) of in-kind donations ","UNFPA (US$795,491) & USAID (US$ 270,762) ",null,null,null,null,null,null,{"$f":"C49","v":"i. Specify source(s) of in-kind donations "},null,null,null,{"$f":"D49","v":"UNFPA (US$795,491) & USAID (US$ 270,762) "}]
[null,"b. Global Fund donations used to procure condoms",null,"No",0,"01/10-12/10",null,null,null,null,{"$f":"B50","v":"b. Global Fund donations used to procure condoms"}]
[null,"c. Global Fund donations used to procure contraceptives besides condoms",null,"No",0,"01/10-12/10",null,null,null,null,{"$f":"B51","v":"c. Global Fund donations used to procure contraceptives besides condoms"}]
[null,"d. TOTAL value of in-kind donations and Global Fund donations spent on contraceptive procurement\nThis will auto-calculate.  (It will sum a-c above.)",null,null,{"$f":"E48+E50+E51","v":1066253},null,null,null,null,null,{"$f":"B52","v":"d. TOTAL value of in-kind donations and Global Fund donations spent on contraceptive procurement\nThis will auto-calculate.  (It will sum a-c above.)"}]
[null,null,null,null,null,null,null,null,null,null,{"$f":"A53","v":0}]
["The answers to B10 and B11 should calculate automatically based on the information you provided. Please review the answers to ensure they make sense to you, and if you have additional information to add, please note it in the comments boxes.\n\nIf the answers do not calculate automatically, please provide any relevant information you may have in the comments boxes.\n",null,null,null,null,null,null,null,null,null,null,null,null,null,null,null,null,null,null,null,null,null,null,{"$f":"A54","v":"The answers to B10 and B11 should calculate automatically based on the information you provided. Please review the answers to ensure they make sense to you, and if you have additional information to add, please note it in the comments boxes.\n\nIf the answers do not calculate automatically, please provide any relevant information you may have in the comments boxes.\n"}]
["B10. Government share of funds spent on contraceptive procurement for the public sector - \nOf the total amount spent on contraceptives for the public sector in the most recent complete fiscal year (including government and donor funds), what percent was covered by government funds (including internally generated funds, basket funds, World Bank credits or loans, and other funds given to the government)? \n\nThis will auto-calculate. (It contains the following formula: Total government spending (Question B8c) / Grand total of all spending for public sector contraceptives from the government and donors (Questions B8c+B9d))",null,null,null,null,{"$f":"E44/(E44+E52)","v":0.41908068721812214},"Government funds spent on contraceptive procurement represent 42% of the total funds spent on contraceptives for 2010.\n",null,null,{"$f":"G55","v":"Government funds spent on contraceptive procurement represent 42% of the total funds spent on contraceptives for 2010.\n"},null,null,null,null,null,null,null,{"$f":"A55","v":"B10. Government share of funds spent on contraceptive procurement for the public sector - \nOf the total amount spent on contraceptives for the public sector in the most recent complete fiscal year (including government and donor funds), what percent was covered by government funds (including internally generated funds, basket funds, World Bank credits or loans, and other funds given to the government)? \n\nThis will auto-calculate. (It contains the following formula: Total government spending (Question B8c) / Grand total of all spending for public sector contraceptives from the government and donors (Questions B8c+B9d))"}]
["B11. Total expenditures on public sector contraceptives as percent of amount that needed to be procured -\nOf the estimated value of the contraceptives needed to be procured for the public sector for the most recent complete fiscal year, what percent was provided by any source (whether government or donor)? \n\nThis will auto-calculate. (It contains the following formula: Grand total of all spending for public sector contraceptives from the government and donors (Questions B8c+B9d) / Value of estimated need for procurement (Question B2))",null,null,null,null,{"$f":"(E44+E52)/G29","v":0.67979925925925921},"68% of the 2010 needs were covered. The remaining gap particularly implacted implants and male condoms.\n",null,null,{"$f":"G56","v":"68% of the 2010 needs were covered. The remaining gap particularly implacted implants and male condoms.\n"},null,null,null,null,null,null,null,{"$f":"A56","v":"B11. Total expenditures on public sector contraceptives as percent of amount that needed to be procured -\nOf the estimated value of the contraceptives needed to be procured for the public sector for the most recent complete fiscal year, what percent was provided by any source (whether government or donor)? \n\nThis will auto-calculate. (It contains the following formula: Grand total of all spending for public sector contraceptives from the government and donors (Questions B8c+B9d) / Value of estimated need for procurement (Question B2))"}]
["B12. If B11 did not calculate automatically, please answer the following question:\nWas there a funding gap for the public sector in the last complete fiscal year (e.g., 09-'10 fiscal year)?\n(Please select from the dropdown list.)",null,null,null,null,"Yes","The funding gap impacted the supply of implants and male condoms.\n",null,null,{"$f":"G57","v":"The funding gap impacted the supply of implants and male condoms.\n"},null,null,null,null,null,null,null,{"$f":"A57","v":"B12. If B11 did not calculate automatically, please answer the following question:\nWas there a funding gap for the public sector in the last complete fiscal year (e.g., 09-'10 fiscal year)?\n(Please select from the dropdown list.)"}]
[null,null,null,null,null,null,null,null,null,null,{"$f":"A58","v":0}]
["B13. If the government financed any contraceptive procurement in the most recent complete fiscal year, which entity conducted the procurement(s)? (Please select from the dropdown.)",null,null,null,null,"The government (e.g., Central Medical Stores, MOH logistics unit, MOH procurement unit)",null,null,null,null,null,null,null,null,null,null,{"$f":"F59","v":"The government (e.g., Central Medical Stores, MOH logistics unit, MOH procurement unit)"},{"$f":"A59","v":"B13. If the government financed any contraceptive procurement in the most recent complete fiscal year, which entity conducted the procurement(s)? (Please select from the dropdown.)"}]
[null,"a. Specify entity",null,null,null,"CAMEG (Central Medical Stores)",null,null,null,null,null,null,{"$f":"E60","v":0},null,null,null,{"$f":"F60","v":"CAMEG (Central Medical Stores)"},{"$f":"B60","v":"a. Specify entity"}]
[null,null,"i. Is this a parastatal?",null,null,"Yes",null,null,null,null,null,null,null,null,null,null,{"$f":"F61","v":"Yes"},{"$f":"C61","v":"i. Is this a parastatal?"}]
["B14. Please note any additional comments about finance and procurement.\n",null,null,null,null,null,null,null,null,null,{"$f":"A62","v":"B14. Please note any additional comments about finance and procurement.\n"},null,null,null,{"$f":"D62","v":0}]
["C. Commodities"]
["C1. Are the following contraceptive methods offered through the commercial sector, public sector, NGOs, or social marketing? (Please indicate which methods are intended to be offered. This question is not asking whether the method is in stock.) \n(Please select from the dropdown list.)",null,null,null,null,null,null,null,null,null,null,null,null,null,null,null,null,null,null,null,null,null,null,{"$f":"A64","v":"C1. Are the following contraceptive methods offered through the commercial sector, public sector, NGOs, or social marketing? (Please indicate which methods are intended to be offered. This question is not asking whether the method is in stock.) \n(Please select from the dropdown list.)"}]
["Contraceptive Method",null,null,"Commercial Sector",null,"Public Sector","NGO","Social Marketing",null,null,{"$f":"A65","v":"Contraceptive Method"}]
[null,"a. Combined oral contraceptives (estrogen + progestin - for  example, LoFemenol, Microgynon)",null,"Yes",null,"Yes","Yes","Yes",null,null,{"$f":"B66","v":"a. Combined oral contraceptives (estrogen + progestin - for  example, LoFemenol, Microgynon)"}]
[null,"b. Progestin-only pills (for example, Ovrette, Microlut)",null,"Yes",null,"Yes","Yes","No",null,null,{"$f":"B67","v":"b. Progestin-only pills (for example, Ovrette, Microlut)"}]
[null,"c. Hormonal injections (for example, DepoProvera, Noristerat)",null,"Yes",null,"Yes","Yes","No",null,null,"c. Hormonal injections (for example, DepoProvera, Noristerat)"]
[null,"d. Hormonal implants (for example, Jadelle, Implanon)",null,"No",null,"Yes","Yes","No",null,null,"d. Hormonal implants (for example, Jadelle, Implanon)"]
[null,"e. Intrauterine devices (IUDs) (for example, Optima Copper T)",null,"No",null,"Yes","Yes","No",null,null,"e. Intrauterine devices (IUDs) (for example, Optima Copper T)"]
[null,"f. Male condoms",null,"Yes",null,"Yes","Yes","Yes",null,null,"f. Male condoms"]
[null,"g. Female condoms",null,"Yes",null,"Yes","Yes","Yes",null,null,"g. Female condoms"]
[null,"h. Emergency contraceptive pills (for example, Postinor)",null,"Yes",null,"No","Yes","No",null,null,"h. Emergency contraceptive pills (for example, Postinor)"]
[null,"i. Long-acting permanent method for males (vasectomy)",null,"No",null,"Yes","Yes","No",null,null,"i. Long-acting permanent method for males (vasectomy)"]
[null,"j. Long-acting permanent method for females (tubal ligation)",null,"No",null,"Yes","Yes","No",null,null,"j. Long-acting permanent method for females (tubal ligation)"]
[null,"k. CycleBeads",null,"No",null,"Yes","Yes","No",null,null,"k. CycleBeads"]
[null,"l. Other contraceptive methods - specify \n(Please provide the name of the other contraceptive(s) offered, by sector.)",null,null,null,null,null,null,null,null,"l. Other contraceptive methods - specify \n(Please provide the name of the other contraceptive(s) offered, by sector.)"]
["C2. Please note any comments about the commodities offered.",null,null,"The consumption of implants is increasing, and the consumption of male condoms in the public sector doubled in 2010 because of the cost and the new brand is different from the social marketing brand and more expensive.",null,null,null,null,null,null,{"$f":"A78","v":"C2. Please note any comments about the commodities offered."},null,null,null,{"$f":"D78","v":"The consumption of implants is increasing, and the consumption of male condoms in the public sector doubled in 2010 because of the cost and the new brand is different from the social marketing brand and more expensive."}]
["D. Policies (Commitment)"]
["D1. Is there a contraceptive security or reproductive health commodity security strategy or is contraceptive security explicitly included in a country strategy? (Please select from the dropdown list.)",null,null,null,null,null,null,"Yes",{"$f":"A80","v":"D1. Is there a contraceptive security or reproductive health commodity security strategy or is contraceptive security explicitly included in a country strategy? (Please select from the dropdown list.)"}]
["IF NO, SKIP TO QUESTION D2."]
[null,"Strategy name",null,"Years Covered (including strategy updates)",null,"Is the strategy formally approved by the Ministry?","Is the contraceptive security strategy being implemented?",null,null,{"$f":"G82","v":"Is the contraceptive security strategy being implemented?"},{"$f":"B82","v":"Strategy name"},null,{"$f":"E82","v":0},null,null,null,null,null,{"$f":"D82","v":"Years Covered (including strategy updates)"}]
[null,"a","Reproductive Health Commodity Security Strategic Plan 2009-2015 (revised to this from the previous Contraceptive Security Strategic plan 2006-2015) "," 2009-2015",null,"Yes","Yes",null,null,{"$f":"G83","v":"Yes"},{"$f":"B83","v":"a"},null,{"$f":"E83","v":0},null,null,null,null,null,{"$f":"D83","v":" 2009-2015"}]
["D2. Are any family planning commodities subject to duties, import taxes, or other fees?",null,null,null,null,"Yes",null,null,null,null,null,null,null,null,null,null,{"$f":"F84","v":"Yes"},{"$f":"A84","v":"D2. Are any family planning commodities subject to duties, import taxes, or other fees?"}]
[null,"a. If yes, for which sectors (public, NGO, social marketing, commercial)?",null,null,"Commercial sector",null,null,null,null,null,null,null,{"$f":"E85","v":"Commercial sector"},{"$f":"E85","v":"Commercial sector"},null,null,null,{"$f":"B85","v":"a. If yes, for which sectors (public, NGO, social marketing, commercial)?"}]
[null,"b. If yes, how much are the duties, taxes, or fees?",null,null,"2.4%",null,null,null,null,null,null,null,null,{"$f":"E86","v":"2.4%"},null,null,null,{"$f":"B86","v":"b. If yes, how much are the duties, taxes, or fees?"}]
["D3. Are there policies that hinder the ability of the private sector (commercial sector, NGOs, or social marketing) to provide contraceptive methods (for example: price controls, distribution limitations, taxes/duties, advertising bans, etc.)?",null,null,null,null,null,null,"No",{"$f":"A87","v":"D3. Are there policies that hinder the ability of the private sector (commercial sector, NGOs, or social marketing) to provide contraceptive methods (for example: price controls, distribution limitations, taxes/duties, advertising bans, etc.)?"}]
[null,"a. If yes, describe the policies.",null,"N/A",null,null,null,null,null,null,{"$f":"B88","v":"a. If yes, describe the policies."},null,null,null,{"$f":"D88","v":"N/A"}]
["D4. Are there policies that enable the private sector (commercial sector, NGOs, or social marketing) to provide contraceptive methods?",null,null,null,null,null,null,"No",{"$f":"A89","v":"D4. Are there policies that enable the private sector (commercial sector, NGOs, or social marketing) to provide contraceptive methods?"}]
[null,"a. If yes, describe the policies.",null,"N/A",null,null,null,null,null,null,{"$f":"B90","v":"a. If yes, describe the policies."},null,null,null,{"$f":"D90","v":"N/A"}]
["D5. Do policies or regulations exist that restrict who can sell or dispense particular contraceptive methods?\n",null,null,null,null,null,null,"Yes",{"$f":"A91","v":"D5. Do policies or regulations exist that restrict who can sell or dispense particular contraceptive methods?\n"}]
[null,"Please note any restrictions in the following table."]
[null,"Contraceptive Method(s)",null,null,"Describe any public sector restriction on who is allowed to sell or dispense the method",null,"Describe any private sector restriction on who is allowed to sell or dispense the method",null,null,{"$f":"G93","v":"Describe any private sector restriction on who is allowed to sell or dispense the method"},null,null,null,null,null,{"$f":"B93","v":"Contraceptive Method(s)"},null,null,null,null,{"$f":"E93","v":"Describe any public sector restriction on who is allowed to sell or dispense the method"}]
[null,"a","Long-term methods: implants & IUDs",null,"Provided only by health professionals (medical doctors and nurses)",null,"Provided only by health professionals (medical doctors and nurses)",null,null,{"$f":"G94","v":"Provided only by health professionals (medical doctors and nurses)"},null,null,{"$f":"E94","v":"Provided only by health professionals (medical doctors and nurses)"},null,null,{"$f":"C94","v":"Long-term methods: implants & IUDs"},null,null,null,null,{"$f":"E94","v":"Provided only by health professionals (medical doctors and nurses)"}]
[null,"b","Oral contraceptives",null,"Community Health Workers (CHWs) cannot prescribe pills, but FP clients can replenish their stock of pills from the CHW.",null,null,null,null,{"$f":"G95","v":0},null,null,{"$f":"E95","v":"Community Health Workers (CHWs) cannot prescribe pills, but FP clients can replenish their stock of pills from the CHW."},null,null,{"$f":"C95","v":"Oral contraceptives"},null,null,null,null,{"$f":"E95","v":"Community Health Workers (CHWs) cannot prescribe pills, but FP clients can replenish their stock of pills from the CHW."}]
[null,"c",null,null,null,null,null,null,null,{"$f":"G96","v":0},null,null,{"$f":"E96","v":0},null,null,{"$f":"C96","v":0},null,null,null,null,{"$f":"E96","v":0}]
[null,null,null,null,null,null,null,null,null,null,{"$f":"C97","v":0}]
["D6. Does the country have laws, regulations, or policies that make it difficult for the following sub-populations to access effective family planning services?",null,null,"Y/N","If yes, describe laws/regulations/policies affecting access ",null,null,"Are the rules/policies implemented?",null,null,{"$f":"A98","v":"D6. Does the country have laws, regulations, or policies that make it difficult for the following sub-populations to access effective family planning services?"},null,null,null,null,null,null,null,null,null,null,{"$f":"E98","v":"If yes, describe laws/regulations/policies affecting access "}]
[null,"a. Unmarried people",null,"No",null,null,null,null,null,null,{"$f":"B99","v":"a. Unmarried people"},null,{"$f":"E99","v":0},null,null,null,null,null,null,null,null,{"$f":"E99","v":0}]
[null,"b. Young people",null,"No",null,null,null,null,null,null,{"$f":"B100","v":"b. Young people"},null,{"$f":"E100","v":0},null,null,null,null,null,null,null,null,{"$f":"E100","v":0}]
[null,"c. Other",null,"Don't know",null,null,null,null,null,null,{"$f":"B101","v":"c. Other"},null,{"$f":"E101","v":0},null,null,null,null,null,null,null,null,{"$f":"E101","v":0}]
[null,null,null,null,null,null,null,null,null,null,{"$f":"C102","v":0}]
["D7. Are there charges* to the client in the public sector for family planning:\n*(This question refers to charges by policy, not under-the-table charges.)\n",null,null,null,null,null,null,null,null,null,null,null,null,null,null,null,null,null,null,null,null,null,null,{"$f":"A103","v":"D7. Are there charges* to the client in the public sector for family planning:\n*(This question refers to charges by policy, not under-the-table charges.)\n"}]
[null,"a. Services?",null,null,null,null,"Yes",null,null,{"$f":"G104","v":"Yes"},null,null,null,null,null,null,null,null,null,null,null,null,null,null,{"$f":"B104","v":"a. Services?"}]
[null,"b. Commodities?",null,null,null,null,"Yes",null,null,{"$f":"G105","v":"Yes"},null,null,null,null,null,null,null,null,null,null,null,null,null,null,{"$f":"B105","v":"b. Commodities?"}]
[null,"c. If yes, are there exemptions for people who cannot afford to pay?",null,null,null,null,"Yes",null,null,{"$f":"G106","v":"Yes"},null,null,null,null,null,null,null,null,null,null,null,null,null,null,{"$f":"B106","v":"c. If yes, are there exemptions for people who cannot afford to pay?"}]
[null,null,"i. If yes, describe the exemptions.","For the indigent population, contraceprtives are free of charge.",null,null,null,null,null,null,{"$f":"C107","v":"i. If yes, describe the exemptions."},null,null,null,{"$f":"D107","v":"For the indigent population, contraceprtives are free of charge."}]
["D8. Are the following contraceptives included in the country's National Essential Medicine List (NEML) or other equivalent priority list?",null,null,null,null,null,null,null,null,null,null,null,null,null,null,null,null,null,null,null,null,null,null,{"$f":"A108","v":"D8. Are the following contraceptives included in the country's National Essential Medicine List (NEML) or other equivalent priority list?"}]
[null,"a. Combined oral contraceptives",null,null,null,null,"Yes",null,null,{"$f":"G109","v":"Yes"},null,null,null,null,null,null,null,null,null,null,null,null,null,null,{"$f":"B109","v":"a. Combined oral contraceptives"}]
[null,"b. Progestin-only pills",null,null,null,null,"Yes",null,null,"Yes",null,null,null,null,null,null,null,null,null,null,null,null,null,null,"b. Progestin-only pills"]
[null,"c. Hormonal injections",null,null,null,null,"Yes",null,null,"Yes",null,null,null,null,null,null,null,null,null,null,null,null,null,null,"c. Hormonal injections"]
[null,"d. Hormonal implants",null,null,null,null,"Yes",null,null,"Yes",null,null,null,null,null,null,null,null,null,null,null,null,null,null,"d. Hormonal implants"]
[null,"e. Intrauterine devices (IUDs)",null,null,null,null,"Yes",null,null,"Yes",null,null,null,null,null,null,null,null,null,null,null,null,null,null,"e. Intrauterine devices (IUDs)"]
[null,"f. Male condoms",null,null,null,null,"Yes",null,null,"Yes",null,null,null,null,null,null,null,null,null,null,null,null,null,null,"f. Male condoms"]
[null,"g. Female condoms",null,null,null,null,"Yes",null,null,"Yes",null,null,null,null,null,null,null,null,null,null,null,null,null,null,"g. Female condoms"]
[null,"h. Emergency contraceptive pills",null,null,null,null,"Yes",null,null,"Yes",null,null,null,null,null,null,null,null,null,null,null,null,null,null,"h. Emergency contraceptive pills"]
[null,"i. CycleBeads",null,null,null,null,"No",null,null,{"$f":"G117","v":"No"},null,null,null,null,null,null,null,null,null,null,null,null,null,null,{"$f":"B117","v":"i. CycleBeads"}]
[null,"j. Any other contraceptive(s)?",null,null,null,null,"Don't know",null,null,"Don't know",null,null,null,null,null,null,null,null,null,null,null,null,null,null,"j. Any other contraceptive(s)?"]
[null,null,"i. Name of other contraceptive(s) on the list(s)",null,null,"Don't know",null,null,null,0,null,null,null,null,null,null,null,{"$f":"B119","v":0}]
["D9. What year(s) is the list(s) from?",null,null,null,null,2010,null,null,null,0,null,null,null,null,null,null,null,{"$f":"B120","v":0}]
["D10. Name of the list(s)\n\n\n",null,null,"National Essential Medicines List (LNME in French)",null,null,null,null,null,null,{"$f":"A121","v":"D10. Name of the list(s)\n\n\n"},null,null,null,{"$f":"D121","v":"National Essential Medicines List (LNME in French)"}]
["D11. Notes about the list(s)\n\n\n",null,null,null,null,null,null,null,null,null,{"$f":"A122","v":"D11. Notes about the list(s)\n\n\n"},null,null,null,{"$f":"D122","v":0}]
["D12.  Information on country's Poverty Reduction Strategy Paper (PRSP)\n",null,null,null,null,null,null,null,null,null,null,null,null,null,null,null,null,null,null,null,null,null,null,{"$f":"A123","v":"D12.  Information on country's Poverty Reduction Strategy Paper (PRSP)\n"}]
[null,"a. What year is the Poverty Reduction Strategy Paper from? (most recent actual PRSP on IMF's site [not progress or summary report])",null,null,null,2005,null,null,null,{"$f":"G124","v":0},null,null,null,null,null,null,null,{"$f":"B124","v":"a. What year is the Poverty Reduction Strategy Paper from? (most recent actual PRSP on IMF's site [not progress or summary report])"}]
[null,"b. Is family planning or reproductive health a priority in the PRSP?",null,null,null,null,"Yes",null,null,{"$f":"G125","v":"Yes"},null,null,null,null,null,null,null,null,null,null,null,null,null,null,{"$f":"B125","v":"b. Is family planning or reproductive health a priority in the PRSP?"}]
[null,"c. Is contraceptive security included in the PRSP?",null,null,null,null,"No",null,null,{"$f":"G126","v":"No"},null,null,null,null,null,null,null,null,null,null,null,null,null,null,{"$f":"B126","v":"c. Is contraceptive security included in the PRSP?"}]
[null,"d. Is contraceptive prevalence rate (CPR) included as an indicator in the PRSP?",null,null,null,null,"No",null,null,{"$f":"G127","v":"No"},null,null,null,null,null,null,null,null,null,null,null,null,null,null,{"$f":"B127","v":"d. Is contraceptive prevalence rate (CPR) included as an indicator in the PRSP?"}]
[null,"e. Are contraceptive supply indicators included in the PRSP?",null,null,null,null,"No",null,null,{"$f":"G128","v":"No"},null,null,null,null,null,null,null,null,null,null,null,null,null,null,{"$f":"B128","v":"e. Are contraceptive supply indicators included in the PRSP?"}]
["\n\n\n","f. Notes about the Poverty Reduction Strategy Paper",null,"A supply indicator is included for generic and essential drugs. It does not refer directly to RH or FP supplies though.",null,null,null,null,null,null,{"$f":"B129","v":"f. Notes about the Poverty Reduction Strategy Paper"},null,null,null,{"$f":"D129","v":"A supply indicator is included for generic and essential drugs. It does not refer directly to RH or FP supplies though."}]
["E. Supply Chain (Capacity)"]
["E1. Have stockouts occurred for any contraceptive at the central* level in the last 12 months?  \n*(The central level refers to the central level warehouse for the public sector.)",null,null,null,null,null,"Yes",null,null,{"$f":"G131","v":"Yes"},null,null,null,null,null,null,null,null,null,null,null,null,null,null,{"$f":"A131","v":"E1. Have stockouts occurred for any contraceptive at the central* level in the last 12 months?  \n*(The central level refers to the central level warehouse for the public sector.)"}]
["E2. In the last 12 months, has there ever been a stockout at the central level of any of the contraceptives offered in public sector facilities? (If a method is not intended to be offered in public sector facilities, please indicate that stockouts are not applicable (choose \"N/A\" from the dropdown list).)",null,null,null,null,null,null,null,null,null,null,null,null,null,null,null,null,null,null,null,null,null,null,{"$f":"A132","v":"E2. In the last 12 months, has there ever been a stockout at the central level of any of the contraceptives offered in public sector facilities? (If a method is not intended to be offered in public sector facilities, please indicate that stockouts are not applicable (choose \"N/A\" from the dropdown list).)"}]
[null,"a. Combined oral contraceptives",null,null,null,null,"No",null,null,{"$f":"G133","v":"No"},null,null,null,null,null,null,null,null,null,null,null,null,null,null,{"$f":"B133","v":"a. Combined oral contraceptives"}]
[null,"b. Progestin-only pills",null,null,null,null,"No",null,null,"No",null,null,null,null,null,null,null,null,null,null,null,null,null,null,"b. Progestin-only pills"]
[null,"c. Hormonal injections",null,null,null,null,"No",null,null,"No",null,null,null,null,null,null,null,null,null,null,null,null,null,null,"c. Hormonal injections"]
[null,"d. Hormonal implants",null,null,null,null,"Yes",null,null,"Yes",null,null,null,null,null,null,null,null,null,null,null,null,null,null,"d. Hormonal implants"]
[null,"e. Intrauterine devices (IUDs)",null,null,null,null,"No",null,null,"No",null,null,null,null,null,null,null,null,null,null,null,null,null,null,"e. Intrauterine devices (IUDs)"]
[null,"f. Male condoms",null,null,null,null,"Yes",null,null,"Yes",null,null,null,null,null,null,null,null,null,null,null,null,null,null,"f. Male condoms"]
[null,"g. Female condoms",null,null,null,null,"No",null,null,"No",null,null,null,null,null,null,null,null,null,null,null,null,null,null,"g. Female condoms"]
[null,"h. Emergency contraceptive pills",null,null,null,null,"N/A",null,null,"N/A",null,null,null,null,null,null,null,null,null,null,null,null,null,null,"h. Emergency contraceptive pills"]
[null,"i. CycleBeads",null,null,null,null,"No",null,null,"No",null,null,null,null,null,null,null,null,null,null,null,null,null,null,"i. CycleBeads"]
[null,"j. Time period\n(mm/yy - mm/yy) (for example, 1/10-12/10) ",null,null,null,"01/10-12/10",null,null,null,null,null,null,null,null,null,null,{"$f":"F142","v":"01/10-12/10"},{"$f":"B142","v":"j. Time period\n(mm/yy - mm/yy) (for example, 1/10-12/10) "}]
[null,"k. Data source\n(for example: Procurement Planning and Monitoring Report, Logistics Management Information System, periodic physical inventory, warehouse reports)",null,null,null,"Warehouse report (CAMEG report)",null,null,null,null,null,null,null,null,null,null,{"$f":"F143","v":"Warehouse report (CAMEG report)"},{"$f":"B143","v":"k. Data source\n(for example: Procurement Planning and Monitoring Report, Logistics Management Information System, periodic physical inventory, warehouse reports)"}]
["E3. Are stockouts a large problem in your country at the following levels? (i.e., Are they common or do they tend to last for a long time?)\n\n"]
[null,"a. service delivery point level (i.e., public sector health facilities)",null,null,null,null,"Yes",null,null,{"$f":"G145","v":"Yes"},null,null,null,null,null,null,null,null,null,null,null,null,null,null,{"$f":"B145","v":"a. service delivery point level (i.e., public sector health facilities)"}]
[null,"b. central level (i.e., central level warehouse for the public sector)",null,null,null,null,"No",null,null,{"$f":"G146","v":"No"},null,null,null,null,null,null,null,null,null,null,null,null,null,null,{"$f":"B146","v":"b. central level (i.e., central level warehouse for the public sector)"}]
["F. Please note any overall comments about challenges and/or successes with contraceptive security in your country.\n\n",null,null,"Challenges: lack of forecasting and quantification capacity. Successes: the contraceptive budget line was maintained despite the difficult period in 2009 dealing with the impact of the floods. Additionally, the government has increased its budget line (for internally generated funds) from US $600,000 in 2010 to US $1.0 million in 2011. Despite temporary stockouts of implants and male condoms at the central level in 2010, there were no stockouts noticed at the service delivery points.                      ",null,null,null,null,null,null,{"$f":"A147","v":"F. Please note any overall comments about challenges and/or successes with contraceptive security in your country.\n\n"},null,null,null,{"$f":"D147","v":"Challenges: lack of forecasting and quantification capacity. Successes: the contraceptive budget line was maintained despite the difficult period in 2009 dealing with the impact of the floods. Additionally, the government has increased its budget line (for internally generated funds) from US $600,000 in 2010 to US $1.0 million in 2011. Despite temporary stockouts of implants and male condoms at the central level in 2010, there were no stockouts noticed at the service delivery points.                      "}]

{"sheet":"Democratic Republic Congo 2011","index":12,"n_rows":147,"n_cols":25,"rows_kept":147,"cut":false,"hidden":false,"merged":[[0,0,0,7],[1,0,1,2],[1,3,1,4],[2,0,2,7],[3,3,3,4],[3,5,3,7],[7,0,7,2],[7,3,7,5],[7,6,7,7],[9,0,9,7],[10,0,10,6],[11,0,11,6],[12,1,12,2],[12,3,12,7],[4,0,4,2],[5,0,5,2],[8,0,8,7],[16,1,16,2],[16,5,16,7],[17,1,17,2],[17,5,17,7],[18,1,18,2],[18,5,18,7],[13,0,13,2],[13,3,13,7],[14,1,14,2],[14,5,14,7],[15,1,15,2],[15,5,15,7],[22,1,22,2],[22,5,22,7],[23,0,23,6],[24,0,24,6],[25,0,25,2],[26,0,26,6],[19,1,19,2],[19,5,19,7],[20,1,20,2],[20,5,20,7],[21,1,21,2],[21,5,21,7],[30,0,30,6],[31,0,31,6],[32,0,32,7],[33,1,33,3],[34,1,34,3],[35,0,35,7],[27,0,27,2],[27,3,27,4],[28,0,28,5],[28,6,28,7],[29,0,29,3],[29,6,29,7],[42,3,42,7],[43,1,43,2],[45,0,45,7],[46,1,46,2],[47,1,47,2],[48,3,48,7],[36,0,36,6],[37,0,37,7],[38,1,38,2],[39,1,39,2],[40,3,40,7],[41,1,41,2],[55,0,55,4],[55,6,55,7],[56,0,56,4],[56,6,56,7],[58,0,58,4],[58,5,58,7],[49,1,49,2],[50,1,50,2],[51,1,51,2],[53,0,53,7],[54,0,54,4],[54,6,54,7],[62,0,62,6],[63,0,63,7],[64,0,64,2],[64,3,64,4],[65,1,65,2],[65,3,65,4],[59,1,59,4],[59,5,59,7],[60,2,60,4],[60,5,60,7],[61,0,61,2],[61,3,61,7],[69,1,69,2],[69,3,69,4],[70,1,70,2],[70,3,70,4],[71,1,71,2],[71,3,71,4],[66,1,66,2],[66,3,66,4],[67,1,67,2],[67,3,67,4],[68,1,68,2],[68,3,68,4],[75,1,75,2],[75,3,75,4],[76,1,76,2],[76,3,76,4],[77,0,77,2],[77,3,77,7],[72,1,72,2],[72,3,72,4],[73,1,73,2],[73,3,73,4],[74,1,74,2],[74,3,74,4],[83,0,83,4],[83,5,83,7],[84,1,84,3],[84,4,84,7],[85,1,85,3],[85,4,85,7],[78,0,78,6],[79,0,79,6],[80,0,80,2],[81,0,82,0],[81,1,81,2],[81,3,81,4],[81,6,81,7],[82,3,82,4],[82,6,82,7],[90,0,90,6],[91,1,91,2],[92,1,92,3],[92,4,92,5],[92,6,92,7],[93,2,93,3],[93,4,93,5],[93,6,93,7],[86,0,86,6],[87,1,87,2],[87,3,87,7],[88,0,88,6],[89,1,89,2],[89,3,89,7],[96,0,96,7],[97,0,97,2],[97,4,97,6],[98,1,98,2],[98,4,98,6],[99,1,99,2],[99,4,99,6],[94,2,94,3],[94,4,94,5],[94,6,94,7],[95,2,95,3],[95,4,95,5],[95,6,95,7],[104,1,104,5],[104,6,104,7],[105,1,105,5],[105,6,105,7],[106,3,106,7],[107,0,107,7],[100,1,100,2],[100,4,100,6],[101,0,101,7],[102,0,102,7],[103,1,103,5],[103,6,103,7],[111,1,111,5],[111,6,111,7],[112,1,112,5],[112,6,112,7],[113,1,113,5],[113,6,113,7],[108,1,108,5],[108,6,108,7],[109,1,109,5],[109,6,109,7],[110,1,110,5],[110,6,110,7],[117,1,117,5],[117,6,117,7],[118,2,118,4],[118,5,118,7],[119,0,119,4],[119,5,119,7],[114,1,114,5],[114,6,114,7],[115,1,115,5],[115,6,115,7],[116,1,116,5],[116,6,116,7],[131,0,131,7],[132,1,132,5],[132,6,132,7],[133,1,133,5],[133,6,133,7],[134,1,134,5],[134,6,134,7],[120,0,120,2],[120,3,120,7],[121,0,121,2],[121,3,121,7],[129,0,129,6],[130,0,130,5],[130,6,130,7],[122,0,122,7],[123,1,123,4],[123,5,123,7],[138,1,138,5],[138,6,138,7],[139,1,139,5],[139,6,139,7],[140,1,140,5],[140,6,140,7],[135,1,135,5],[135,6,135,7],[136,1,136,5],[136,6,136,7],[137,1,137,5],[137,6,137,7],[147,0,147,7],[148,0,150,7],[145,1,145,5],[145,6,145,7],[146,0,146,2],[146,3,146,7],[141,1,141,4],[141,5,141,7],[142,1,142,4],[142,5,142,7],[143,0,143,7],[144,1,144,5],[144,6,144,7],[127,1,127,5],[127,6,127,7],[128,1,128,2],[128,3,128,7],[124,1,124,5],[124,6,124,7],[125,1,125,5],[125,6,125,7],[126,1,126,5],[126,6,126,7]]}
[null,null,null,null,null,null,null,null,"Columns I-Y are meant to be hidden. They exist because they allow for the dropdown list options. They also allow for merged cells to autofit properly in terms of row height. This should work if all columns remain at their correct widths.","g-h",null,"a-e merged","E-F merged","e-h","0 times",null,null,"The government (e.g., Central Medical Stores, MOH logistics unit, MOH procurement unit)",null,null,null,null,"Yes","a-h","January"]
[null,null,null,null,null,null,null,null,null,null,"A-c",null,null,null,"1-2 times","b-d merged",null,"Third-party agent (e.g., UNFPA, Crown Agents)","d-e merged","d-f merged","e-f merged","e-g merged","No",null,"February"]
[null,null,null,null,null,null,null,null,null,null,null,null,null,null,"3-5 times",null,null,"The government and a third-party agent",null,null,null,null,null,null,"March"]
[null,null,null,null,null,null,null,null,null,null,null,null,null,null,"6 or more times",null,null,"Other",null,null,null,null,"N/A",null,"April"]
["To jump to the Introduction sheet, click here.",null,null,null,null,null,null,null,null,null,null,null,null,null,null,null,null,null,null,null,null,null,"Don't know",null,"May"]
[null,null,null,null,null,null,null,null,null,null,null,null,null,null,"N/A",null,null,"N/A",null,null,null,null,null,null,"June"]
["Contraceptive Security (CS) Indicators 2011 Data ",null,null,null,null,null,null,null,null,null,null,null,null,null,"Don't know",null,null,"Don't know",null,null,null,null,null,null,"July"]
["Country: Democratic Republic of Congo",null,null,null,null,null,null,null,null,{"$f":"G8","v":0},{"$f":"A8","v":"Country: Democratic Republic of Congo"},null,null,null,null,"or c-d",null,null,null,{"$f":"D8","v":0},null,null,null,null,"August"]
["The CS Indicators are presented in the following sections:\n\n               A. leadership & cooordination               B. finance & procurement               C. commodities               D. policies               E. supply chain",null,null,null,null,null,null,null,null,{"$f":"G9","v":0},{"$f":"A9","v":"The CS Indicators are presented in the following sections:\n\n               A. leadership & cooordination               B. finance & procurement               C. commodities               D. policies               E. supply chain"},null,null,null,"d-h",null,"f-h merged",null,{"$f":"D9","v":0},null,null,null,null,null,"September"]
["\nNotes:\n  -  Respondents' answers are indicated in the white spaces. \n  -  N/A = not applicable. Don't know = the respondent either indicated they did not know or left the answer blank.\n  -  Some questions required respondents to choose from a dropdown list of options; in these cases the dropdown arrow will \n     appear when you click on the cell. \n  -  There may be a few inserted comments. (If you cannot already see them, click on Review tab - Comments group - Show All Comments in newer \n       versions of Excel or View - Comments in older versions of Excel.)\n  -  If the answer is cut off, you can either manually adjust the row height or autofit the row height in order to see the whole \n     response. (To autofit the row height, select the answer(s) and go to Home tab - Cells group - Format - Autofit Row Height in newer versions of Excel or \n      Format - Row - Autofit in older versions of Excel.)\n",null,null,null,null,null,null,null,"a-g",null,null,null,null,null,null,null,null,"a-e merged",null,null,null,null,null,{"$f":"A10","v":"\nNotes:\n  -  Respondents' answers are indicated in the white spaces. \n  -  N/A = not applicable. Don't know = the respondent either indicated they did not know or left the answer blank.\n  -  Some questions required respondents to choose from a dropdown list of options; in these cases the dropdown arrow will \n     appear when you click on the cell. \n  -  There may be a few inserted comments. (If you cannot already see them, click on Review tab - Comments group - Show All Comments in newer \n       versions of Excel or View - Comments in older versions of Excel.)\n  -  If the answer is cut off, you can either manually adjust the row height or autofit the row height in order to see the whole \n     response. (To autofit the row height, select the answer(s) and go to Home tab - Cells group - Format - Autofit Row Height in newer versions of Excel or \n      Format - Row - Autofit in older versions of Excel.)\n"},"October"]
["A. Leadership and Coordination",null,null,null,null,null,null,null,null,null,null,null,null,null,null,null,null,null,null,null,null,null,null,null,"November"]
["A1. Is there a national committee that works on contraceptive security? (Please select from the dropdown list.)\n(Committee should have some aspect of contraceptive security as part of its Terms of Reference, even if it is known by a different name, for example: Family Planning, Reproductive Health, Maternal Mortality, Essential Medicine Committee, etc.)  ",null,null,null,null,null,null,"Yes",{"$f":"A12","v":"A1. Is there a national committee that works on contraceptive security? (Please select from the dropdown list.)\n(Committee should have some aspect of contraceptive security as part of its Terms of Reference, even if it is known by a different name, for example: Family Planning, Reproductive Health, Maternal Mortality, Essential Medicine Committee, etc.)  "},null,null,null,null,null,null,null,null,null,null,null,null,null,null,null,"December"]
[null,"a. What is the name of the committee?",null,"Groupe de Travail sur la Securisation des Produits de Santé de Reproduction (Working Group on Reproductive Health Commodity Security)",null,null,null,null,null,null,{"$f":"B13","v":"a. What is the name of the committee?"},{"$f":"D13","v":"Groupe de Travail sur la Securisation des Produits de Santé de Reproduction (Working Group on Reproductive Health Commodity Security)"},null,null,{"$f":"D13","v":"Groupe de Travail sur la Securisation des Produits de Santé de Reproduction (Working Group on Reproductive Health Commodity Security)"}]
["A2. Are the following organizations represented on the committee?",null,null,"(Y/N \ndropdown)",null,null,null,null,null,null,{"$f":"A14","v":"A2. Are the following organizations represented on the committee?"},null,null,null,null,null,null,null,null,null,null,null,null,null,"Don't know"]
[null,"a. Social marketing",null,"Yes","If yes, specify name(s) of organizations","Population Services International/Association de Santé Familial (PSI/ASF)",null,null,null,null,{"$f":"B15","v":"a. Social marketing"},null,null,null,null,null,{"$f":"F15","v":"Population Services International/Association de Santé Familial (PSI/ASF)"}]
[null,"b. NGO (for example: service delivery, advocacy, Planned Parenthood affiliate, Marie Stopes affiliate, faith-based organizations, etc.)",null,"Yes","If yes, specify name(s) of organizations","Association pour le Bien Etre Familial (ABEF) (Association for Family Well-being)",null,null,null,null,"b. NGO (for example: service delivery, advocacy, Planned Parenthood affiliate, Marie Stopes affiliate, faith-based organizations, etc.)",null,null,null,null,null,"Association pour le Bien Etre Familial (ABEF) (Association for Family Well-being)"]
[null,"c. Commercial sector (for example: pharmacy associations, manufacturers, etc.)",null,"No","If yes, specify name(s) of organizations",null,null,null,null,null,"c. Commercial sector (for example: pharmacy associations, manufacturers, etc.)",null,null,null,null,null,0]
[null,"d. Donors",null,"Yes","If yes, specify name(s) of donors","USAID, World Bank",null,null,null,null,"d. Donors",null,null,null,null,null,"USAID, World Bank"]
[null,"e. UN agencies",null,"Yes","If yes, specify name(s) of agencies","UNFPA",null,null,null,null,"e. UN agencies",null,null,null,null,null,"UNFPA"]
[null,"f. Ministry of Health (for example: logistics, reproductive health, family planning, maternal and child health, HIV/AIDS, pharmacy units, etc.)",null,"Yes","If yes, specify name(s) of units","National Program for Essential Drugs, National Reproductive Health Program, Directorate of Planning, Directorate of Family and Specific Groups",null,null,null,null,"f. Ministry of Health (for example: logistics, reproductive health, family planning, maternal and child health, HIV/AIDS, pharmacy units, etc.)",null,null,null,null,null,"National Program for Essential Drugs, National Reproductive Health Program, Directorate of Planning, Directorate of Family and Specific Groups"]
[null,"g. Central Medical Store or Central Warehouse",null,"No","If yes, specify",null,null,null,null,null,"g. Central Medical Store or Central Warehouse",null,null,null,null,null,0]
[null,"h. Ministry of Finance or Ministry of Planning ",null,"No","If yes, specify",null,null,null,null,null,"h. Ministry of Finance or Ministry of Planning ",null,null,null,null,null,0]
[null,"i. Other (for example: partners)",null,"No","If yes, specify",null,null,null,null,null,"i. Other (for example: partners)",null,null,null,null,null,0]
["A3. How many times did the committee meet during the last year? (0, 1-2, 3-5, or 6+)  (Please select from the dropdown.)",null,null,null,null,null,null,"Don't know",{"$f":"A24","v":"A3. How many times did the committee meet during the last year? (0, 1-2, 3-5, or 6+)  (Please select from the dropdown.)"}]
["A4. Does the committee have legal status?  (Please select from the dropdown.)                                  ",null,null,null,null,null,null,"Don't know",{"$f":"A25","v":"A4. Does the committee have legal status?  (Please select from the dropdown.)                                  "}]
["A5. Is there a Contraceptive Security \"champion\"? (someone who consistently brings up and advocates for contraceptive supplies)",null,null,"Yes","If yes, specify person's organization","Programme National de Santé de la Reproduction (National Program of Reproductive Health)","Specify person's job title","Chief of Commodities Division",null,null,{"$f":"A26","v":"A5. Is there a Contraceptive Security \"champion\"? (someone who consistently brings up and advocates for contraceptive supplies)"}]
["B. Finance and Procurement (Capital)"]
["B1. What is the timeline of the country's fiscal year?",null,null,"Beginning month",null,"January","Ending month","December",null,null,{"$f":"B28","v":0}]
["B2. What was the estimated dollar value of contraceptives needed to be procured for the public sector for the most recent complete fiscal year? (in USD currency)\n(for example, to cover the needs for the '09-'10 fiscal year)",null,null,null,null,null,"Don’t know ",null,null,{"$f":"G29","v":"Don’t know "},null,null,{"$f":"E29","v":0},null,null,null,null,null,null,null,null,null,null,null,{"$f":"A29","v":"B2. What was the estimated dollar value of contraceptives needed to be procured for the public sector for the most recent complete fiscal year? (in USD currency)\n(for example, to cover the needs for the '09-'10 fiscal year)"}]
["B3. When was the last forecast/quantification conducted? (mm/yy)",null,null,null,"12/10","Who conducted it? (Specify organization.)","USAID and UNFPA each conducted a separate forecast. ",null,null,{"$f":"G30","v":"USAID and UNFPA each conducted a separate forecast. "},null,null,{"$f":"E30","v":"12/10"},null,null,null,null,null,null,null,null,null,null,null,{"$f":"A30","v":"B3. When was the last forecast/quantification conducted? (mm/yy)"}]
["B4. Is there a government budget line item for the procurement of contraceptives?  (Please select from the dropdown list.)",null,null,null,null,null,null,"No",{"$f":"A31","v":"B4. Is there a government budget line item for the procurement of contraceptives?  (Please select from the dropdown list.)"}]
["B5. Were government funds allocated for contraceptive procurement for the public sector in the most recent complete fiscal year? (This question refers to funds planned to be spent on contraceptives, whether or not they ended up being spent.) \n\n(Government funds include internally generated funds, basket funds, World Bank credits or loans, and other funds donors gave to the government for their use.) \n",null,null,null,null,null,null,"No",{"$f":"A32","v":"B5. Were government funds allocated for contraceptive procurement for the public sector in the most recent complete fiscal year? (This question refers to funds planned to be spent on contraceptives, whether or not they ended up being spent.) \n\n(Government funds include internally generated funds, basket funds, World Bank credits or loans, and other funds donors gave to the government for their use.) \n"}]
["B6. Please complete the table below regarding government allocations for contraceptive procurement.",null,null,null,null,null,null,null,null,null,null,null,null,null,null,null,null,null,null,null,null,null,null,{"$f":"A33","v":"B6. Please complete the table below regarding government allocations for contraceptive procurement."}]
[null,null,null,null,"Amount allocated \n(in USD)","Time period during which allocations were supposed to be spent \n(mm/yy-mm/yy)\n(should ideally be the most recent\ncomplete fiscal year ['09-'10])","Data source \n(for example: Ministry records)","Comments",null,null,{"$f":"A34","v":0}]
[null,"Government funds allocated for contraceptive procurement\n(funds originally designated for contraceptives, whether or not they ended up being spent on them)",null,null,0,"01/10-12/10",null,null,null,null,{"$f":"#REF!","v":{"$error":"#REF!"}}]
[]
["B7. Were government funds spent on contraceptive procurement for the public sector in the most recent complete fiscal year? \n(Government funds include internally generated funds, basket funds, World Bank credits or loans, and other funds donors gave to the government for their use.)",null,null,null,null,null,null,"No",{"$f":"A37","v":"B7. Were government funds spent on contraceptive procurement for the public sector in the most recent complete fiscal year? \n(Government funds include internally generated funds, basket funds, World Bank credits or loans, and other funds donors gave to the government for their use.)"}]
["B8. Please complete the table below to indicate government expenditures on contraceptive procurement, by source, in the most recent complete fiscal year. \n(This is how much was spent on contraceptive procurement (not what was allocated). How much of this spending was provided from each source?)",null,null,null,null,null,null,null,null,null,null,null,null,null,null,null,null,null,null,null,null,null,null,{"$f":"A38","v":"B8. Please complete the table below to indicate government expenditures on contraceptive procurement, by source, in the most recent complete fiscal year. \n(This is how much was spent on contraceptive procurement (not what was allocated). How much of this spending was provided from each source?)"}]
[null,"Source of government funds spent on contraceptive procurement for the public sector",null,"Was this source used?\n(Y/N)","Amount spent \n(in USD)","Time period (mm/yy-mm/yy)\n(should be the same for all sources of funds & ideally be the most recent\ncomplete fiscal year ['09-'10])","Data source \n(for example: Contraceptive Procurement Table, PipeLine, etc.)","Comments",null,null,{"$f":"A39","v":0}]
[null,"a. Internally generated funds spent on contraceptive procurement",null,"No",0,"01/10-12/10",null,"No funds spent ",null,null,{"$f":"B40","v":"a. Internally generated funds spent on contraceptive procurement"}]
[null,null,"i. Specify source(s) of internally generated funds spent (for example, from taxes or user fees)","N/A",null,null,null,null,null,null,{"$f":"C41","v":"i. Specify source(s) of internally generated funds spent (for example, from taxes or user fees)"},null,null,null,{"$f":"D41","v":"N/A"}]
[null,"b. Total of all other government funds spent on contraceptive procurement (basket funds, World Bank credits or loans, and other funds donors gave to the government [e.g., direct budget support])",null,"No",0,"01/10-12/10",null,"No funds spent ",null,null,{"$f":"B42","v":"b. Total of all other government funds spent on contraceptive procurement (basket funds, World Bank credits or loans, and other funds donors gave to the government [e.g., direct budget support])"}]
[null,null,"i. Specify source(s) of other government funds spent (for example: basket funding or specific donor)","N/A",null,null,null,null,null,null,{"$f":"C43","v":"i. Specify source(s) of other government funds spent (for example: basket funding or specific donor)"},null,null,null,{"$f":"D43","v":"N/A"}]
[null,"c. TOTAL government funds spent on contraceptive procurement\nThis will auto-calculate.  (It will sum a & b above.)",null,null,{"$f":"E40+E42","v":0},null,null,null,null,null,{"$f":"B44","v":"c. TOTAL government funds spent on contraceptive procurement\nThis will auto-calculate.  (It will sum a & b above.)"}]
[null,null,null,null,null,null,null,null,null,null,{"$f":"A45","v":0}]
["B9. Please complete the table below to indicate donor expenditures on contraceptive procurement in the most recent complete fiscal year.\n",null,null,null,null,null,null,null,null,null,null,null,null,null,null,null,null,null,null,null,null,null,null,{"$f":"A46","v":"B9. Please complete the table below to indicate donor expenditures on contraceptive procurement in the most recent complete fiscal year.\n"}]
["\n","Source of donations and donor funds spent on contraceptive procurement for the public sector",null,"Was this a source?\n(Y/N)","Amount of money spent on these procurements \n(in USD)","Time period (mm/yy-mm/yy)\n(should be the same for all sources of funds & ideally be the most recent\ncomplete fiscal year ['09-'10])","Data source \n(for example:  Donor records, Contraceptive Procurement Table, PipeLine, RHInterchange, etc.","Comments",null,null,{"$f":"A47","v":"\n"}]
[null,"a. In-kind donations of contraceptives",null,"Yes",5859613,"01/10-12/10","Donor records",null,null,null,{"$f":"B48","v":"a. In-kind donations of contraceptives"}]
[null,null,"i. Specify source(s) of in-kind donations ","UNFPA ($1,626,071) & USAID ($4,233,542)",null,null,null,null,null,null,{"$f":"C49","v":"i. Specify source(s) of in-kind donations "},null,null,null,{"$f":"D49","v":"UNFPA ($1,626,071) & USAID ($4,233,542)"}]
[null,"b. Global Fund donations used to procure condoms",null,"No",0,"01/10-12/10",null,null,null,null,{"$f":"B50","v":"b. Global Fund donations used to procure condoms"}]
[null,"c. Global Fund donations used to procure contraceptives besides condoms",null,"No",0,"01/10-12/10",null,null,null,null,{"$f":"B51","v":"c. Global Fund donations used to procure contraceptives besides condoms"}]
[null,"d. TOTAL value of in-kind donations and Global Fund donations spent on contraceptive procurement\nThis will auto-calculate.  (It will sum a-c above.)",null,null,{"$f":"E48+E50+E51","v":5859613},null,null,null,null,null,{"$f":"B52","v":"d. TOTAL value of in-kind donations and Global Fund donations spent on contraceptive procurement\nThis will auto-calculate.  (It will sum a-c above.)"}]
[null,null,null,null,null,null,null,null,null,null,{"$f":"A53","v":0}]
["The answers to B10 and B11 should calculate automatically based on the information you provided. Please review the answers to ensure they make sense to you, and if you have additional information to add, please note it in the comments boxes.\n\nIf the answers do not calculate automatically, please provide any relevant information you may have in the comments boxes.\n",null,null,null,null,null,null,null,null,null,null,null,null,null,null,null,null,null,null,null,null,null,null,{"$f":"A54","v":"The answers to B10 and B11 should calculate automatically based on the information you provided. Please review the answers to ensure they make sense to you, and if you have additional information to add, please note it in the comments boxes.\n\nIf the answers do not calculate automatically, please provide any relevant information you may have in the comments boxes.\n"}]
["B10. Government share of funds spent on contraceptive procurement for the public sector - \nOf the total amount spent on contraceptives for the public sector in the most recent complete fiscal year (including government and donor funds), what percent was covered by government funds (including internally generated funds, basket funds, World Bank credits or loans, and other funds given to the government)? \n\nThis will auto-calculate. (It contains the following formula: Total government spending (Question B8c) / Grand total of all spending for public sector contraceptives from the government and donors (Questions B8c+B9d))",null,null,null,null,{"$f":"E44/(E44+E52)","v":0},"Contraceptive procurement is 100% dependent on donors.\n",null,null,{"$f":"G55","v":"Contraceptive procurement is 100% dependent on donors.\n"},null,null,null,null,null,null,null,{"$f":"A55","v":"B10. Government share of funds spent on contraceptive procurement for the public sector - \nOf the total amount spent on contraceptives for the public sector in the most recent complete fiscal year (including government and donor funds), what percent was covered by government funds (including internally generated funds, basket funds, World Bank credits or loans, and other funds given to the government)? \n\nThis will auto-calculate. (It contains the following formula: Total government spending (Question B8c) / Grand total of all spending for public sector contraceptives from the government and donors (Questions B8c+B9d))"}]
["B11. Total expenditures on public sector contraceptives as percent of amount that needed to be procured -\nOf the estimated value of the contraceptives needed to be procured for the public sector for the most recent complete fiscal year, what percent was provided by any source (whether government or donor)? \n\nThis will auto-calculate. (It contains the following formula: Grand total of all spending for public sector contraceptives from the government and donors (Questions B8c+B9d) / Value of estimated need for procurement (Question B2))",null,null,null,null,"Don't know","The commodity security committee planned to quantify contraceptive needs for the country but this exercise still needs to be done.\n",null,null,{"$f":"G56","v":"The commodity security committee planned to quantify contraceptive needs for the country but this exercise still needs to be done.\n"},null,null,null,null,null,null,null,{"$f":"A56","v":"B11. Total expenditures on public sector contraceptives as percent of amount that needed to be procured -\nOf the estimated value of the contraceptives needed to be procured for the public sector for the most recent complete fiscal year, what percent was provided by any source (whether government or donor)? \n\nThis will auto-calculate. (It contains the following formula: Grand total of all spending for public sector contraceptives from the government and donors (Questions B8c+B9d) / Value of estimated need for procurement (Question B2))"}]
["B12. If B11 did not calculate automatically, please answer the following question:\nWas there a funding gap for the public sector in the last complete fiscal year (e.g., 09-'10 fiscal year)?\n(Please select from the dropdown list.)",null,null,null,null,"Yes","There is definitely a funding gap, but the amount of this gap has not been determined.\n",null,null,{"$f":"G57","v":"There is definitely a funding gap, but the amount of this gap has not been determined.\n"},null,null,null,null,null,null,null,{"$f":"A57","v":"B12. If B11 did not calculate automatically, please answer the following question:\nWas there a funding gap for the public sector in the last complete fiscal year (e.g., 09-'10 fiscal year)?\n(Please select from the dropdown list.)"}]
[null,null,null,null,null,null,null,null,null,null,{"$f":"A58","v":0}]
["B13. If the government financed any contraceptive procurement in the most recent complete fiscal year, which entity conducted the procurement(s)? (Please select from the dropdown.)",null,null,null,null,"N/A",null,null,null,null,null,null,null,null,null,null,{"$f":"F59","v":"N/A"},{"$f":"A59","v":"B13. If the government financed any contraceptive procurement in the most recent complete fiscal year, which entity conducted the procurement(s)? (Please select from the dropdown.)"}]
[null,"a. Specify entity",null,null,null,"N/A",null,null,null,null,null,null,{"$f":"E60","v":0},null,null,null,{"$f":"F60","v":"N/A"},{"$f":"B60","v":"a. Specify entity"}]
[null,null,"i. Is this a parastatal?",null,null,"N/A",null,null,null,null,null,null,null,null,null,null,{"$f":"F61","v":"N/A"},{"$f":"C61","v":"i. Is this a parastatal?"}]
["B14. Please note any additional comments about finance and procurement.\n",null,null,null,null,null,null,null,null,null,{"$f":"A62","v":"B14. Please note any additional comments about finance and procurement.\n"},null,null,null,{"$f":"D62","v":0}]
["C. Commodities"]
["C1. Are the following contraceptive methods offered through the commercial sector, public sector, NGOs, or social marketing? (Please indicate which methods are intended to be offered. This question is not asking whether the method is in stock.) \n(Please select from the dropdown list.)",null,null,null,null,null,null,null,null,null,null,null,null,null,null,null,null,null,null,null,null,null,null,{"$f":"A64","v":"C1. Are the following contraceptive methods offered through the commercial sector, public sector, NGOs, or social marketing? (Please indicate which methods are intended to be offered. This question is not asking whether the method is in stock.) \n(Please select from the dropdown list.)"}]
["Contraceptive Method",null,null,"Commercial Sector",null,"Public Sector","NGO","Social Marketing",null,null,{"$f":"A65","v":"Contraceptive Method"}]
[null,"a. Combined oral contraceptives (estrogen + progestin - for  example, LoFemenol, Microgynon)",null,"Yes",null,"Yes","Yes","Yes",null,null,{"$f":"B66","v":"a. Combined oral contraceptives (estrogen + progestin - for  example, LoFemenol, Microgynon)"}]
[null,"b. Progestin-only pills (for example, Ovrette, Microlut)",null,"Yes",null,"Yes","Yes","Yes",null,null,{"$f":"B67","v":"b. Progestin-only pills (for example, Ovrette, Microlut)"}]
[null,"c. Hormonal injections (for example, DepoProvera, Noristerat)",null,"Yes",null,"Yes","Yes","Yes",null,null,"c. Hormonal injections (for example, DepoProvera, Noristerat)"]
[null,"d. Hormonal implants (for example, Jadelle, Implanon)",null,"No",null,"Yes","Yes","Yes",null,null,"d. Hormonal implants (for example, Jadelle, Implanon)"]
[null,"e. Intrauterine devices (IUDs) (for example, Optima Copper T)",null,"No",null,"Yes","Yes","Yes",null,null,"e. Intrauterine devices (IUDs) (for example, Optima Copper T)"]
[null,"f. Male condoms",null,"Yes",null,"Yes","Yes","Yes",null,null,"f. Male condoms"]
[null,"g. Female condoms",null,"No",null,"Yes","Yes","Yes",null,null,"g. Female condoms"]
[null,"h. Emergency contraceptive pills (for example, Postinor)",null,"Yes",null,"Yes","Yes","No",null,null,"h. Emergency contraceptive pills (for example, Postinor)"]
[null,"i. Long-acting permanent method for males (vasectomy)",null,"No",null,"Yes","No","No",null,null,"i. Long-acting permanent method for males (vasectomy)"]
[null,"j. Long-acting permanent method for females (tubal ligation)",null,"No",null,"Yes","No","No",null,null,"j. Long-acting permanent method for females (tubal ligation)"]
[null,"k. CycleBeads",null,"No",null,"Yes","Yes","Yes",null,null,"k. CycleBeads"]
[null,"l. Other contraceptive methods - specify \n(Please provide the name of the other contraceptive(s) offered, by sector.)",null,null,null,null,null,null,null,null,"l. Other contraceptive methods - specify \n(Please provide the name of the other contraceptive(s) offered, by sector.)"]
["C2. Please note any comments about the commodities offered.",null,null,"UNFPA is piloting the use of national distribution but USAID still uses its own system.",null,null,null,null,null,null,{"$f":"A78","v":"C2. Please note any comments about the commodities offered."},null,null,null,{"$f":"D78","v":"UNFPA is piloting the use of national distribution but USAID still uses its own system."}]
["D. Policies (Commitment)"]
["D1. Is there a contraceptive security or reproductive health commodity security strategy or is contraceptive security explicitly included in a country strategy? (Please select from the dropdown list.)",null,null,null,null,null,null,"Yes",{"$f":"A80","v":"D1. Is there a contraceptive security or reproductive health commodity security strategy or is contraceptive security explicitly included in a country strategy? (Please select from the dropdown list.)"}]
["IF NO, SKIP TO QUESTION D2."]
[null,"Strategy name",null,"Years Covered (including strategy updates)",null,"Is the strategy formally approved by the Ministry?","Is the contraceptive security strategy being implemented?",null,null,{"$f":"G82","v":"Is the contraceptive security strategy being implemented?"},{"$f":"B82","v":"Strategy name"},null,{"$f":"E82","v":0},null,null,null,null,null,{"$f":"D82","v":"Years Covered (including strategy updates)"}]
[null,"a","Strategie National pour la Securisation des Commodités de Santé de la Reproduction (National Strategy for Reproductive Health Commodity Security) ","2008-2012",null,"Yes","No",null,null,{"$f":"G83","v":"No"},{"$f":"B83","v":"a"},null,{"$f":"E83","v":0},null,null,null,null,null,{"$f":"D83","v":"2008-2012"}]
["D2. Are any family planning commodities subject to duties, import taxes, or other fees?",null,null,null,null,"Yes",null,null,null,null,null,null,null,null,null,null,{"$f":"F84","v":"Yes"},{"$f":"A84","v":"D2. Are any family planning commodities subject to duties, import taxes, or other fees?"}]
[null,"a. If yes, for which sectors (public, NGO, social marketing, commercial)?",null,null,"Commercial sector: duties & taxes. Other sectors: other small fees.",null,null,null,null,null,null,null,{"$f":"E85","v":"Commercial sector: duties & taxes. Other sectors: other small fees."},{"$f":"E85","v":"Commercial sector: duties & taxes. Other sectors: other small fees."},null,null,null,{"$f":"B85","v":"a. If yes, for which sectors (public, NGO, social marketing, commercial)?"}]
[null,"b. If yes, how much are the duties, taxes, or fees?",null,null,"5% fees",null,null,null,null,null,null,null,null,{"$f":"E86","v":"5% fees"},null,null,null,{"$f":"B86","v":"b. If yes, how much are the duties, taxes, or fees?"}]
["D3. Are there policies that hinder the ability of the private sector (commercial sector, NGOs, or social marketing) to provide contraceptive methods (for example: price controls, distribution limitations, taxes/duties, advertising bans, etc.)?",null,null,null,null,null,null,"No",{"$f":"A87","v":"D3. Are there policies that hinder the ability of the private sector (commercial sector, NGOs, or social marketing) to provide contraceptive methods (for example: price controls, distribution limitations, taxes/duties, advertising bans, etc.)?"}]
[null,"a. If yes, describe the policies.",null,"N/A",null,null,null,null,null,null,{"$f":"B88","v":"a. If yes, describe the policies."},null,null,null,{"$f":"D88","v":"N/A"}]
["D4. Are there policies that enable the private sector (commercial sector, NGOs, or social marketing) to provide contraceptive methods?",null,null,null,null,null,null,"No",{"$f":"A89","v":"D4. Are there policies that enable the private sector (commercial sector, NGOs, or social marketing) to provide contraceptive methods?"}]
[null,"a. If yes, describe the policies.",null,"N/A",null,null,null,null,null,null,{"$f":"B90","v":"a. If yes, describe the policies."},null,null,null,{"$f":"D90","v":"N/A"}]
["D5. Do policies or regulations exist that restrict who can sell or dispense particular contraceptive methods?\n",null,null,null,null,null,null,"No",{"$f":"A91","v":"D5. Do policies or regulations exist that restrict who can sell or dispense particular contraceptive methods?\n"}]
[null,"Please note any restrictions in the following table."]
[null,"Contraceptive Method(s)",null,null,"Describe any public sector restriction on who is allowed to sell or dispense the method",null,"Describe any private sector restriction on who is allowed to sell or dispense the method",null,null,{"$f":"G93","v":"Describe any private sector restriction on who is allowed to sell or dispense the method"},null,null,null,null,null,{"$f":"B93","v":"Contraceptive Method(s)"},null,null,null,null,{"$f":"E93","v":"Describe any public sector restriction on who is allowed to sell or dispense the method"}]
[null,"a",null,null,null,null,null,null,null,{"$f":"G94","v":0},null,null,{"$f":"E94","v":0},null,null,{"$f":"C94","v":0},null,null,null,null,{"$f":"E94","v":0}]
[null,"b",null,null,null,null,null,null,null,{"$f":"G95","v":0},null,null,{"$f":"E95","v":0},null,null,{"$f":"C95","v":0},null,null,null,null,{"$f":"E95","v":0}]
[null,"c",null,null,null,null,null,null,null,{"$f":"G96","v":0},null,null,{"$f":"E96","v":0},null,null,{"$f":"C96","v":0},null,null,null,null,{"$f":"E96","v":0}]
[null,null,null,null,null,null,null,null,null,null,{"$f":"C97","v":0}]
["D6. Does the country have laws, regulations, or policies that make it difficult for the following sub-populations to access effective family planning services?",null,null,"Y/N","If yes, describe laws/regulations/policies affecting access ",null,null,"Are the rules/policies implemented?",null,null,{"$f":"A98","v":"D6. Does the country have laws, regulations, or policies that make it difficult for the following sub-populations to access effective family planning services?"},null,null,null,null,null,null,null,null,null,null,{"$f":"E98","v":"If yes, describe laws/regulations/policies affecting access "}]
[null,"a. Unmarried people",null,"Yes","Article 178 of penal code from the colonial era",null,null,"No",null,null,{"$f":"B99","v":"a. Unmarried people"},null,{"$f":"E99","v":"Article 178 of penal code from the colonial era"},null,null,null,null,null,null,null,null,{"$f":"E99","v":"Article 178 of penal code from the colonial era"}]
[null,"b. Young people",null,"Don't know",null,null,null,null,null,null,{"$f":"B100","v":"b. Young people"},null,{"$f":"E100","v":0},null,null,null,null,null,null,null,null,{"$f":"E100","v":0}]
[null,"c. Other",null,"Don't know",null,null,null,null,null,null,{"$f":"B101","v":"c. Other"},null,{"$f":"E101","v":0},null,null,null,null,null,null,null,null,{"$f":"E101","v":0}]
[null,null,null,null,null,null,null,null,null,null,{"$f":"C102","v":0}]
["D7. Are there charges* to the client in the public sector for family planning:\n*(This question refers to charges by policy, not under-the-table charges.)\n",null,null,null,null,null,null,null,null,null,null,null,null,null,null,null,null,null,null,null,null,null,null,{"$f":"A103","v":"D7. Are there charges* to the client in the public sector for family planning:\n*(This question refers to charges by policy, not under-the-table charges.)\n"}]
[null,"a. Services?",null,null,null,null,"No",null,null,{"$f":"G104","v":"No"},null,null,null,null,null,null,null,null,null,null,null,null,null,null,{"$f":"B104","v":"a. Services?"}]
[null,"b. Commodities?",null,null,null,null,"No",null,null,{"$f":"G105","v":"No"},null,null,null,null,null,null,null,null,null,null,null,null,null,null,{"$f":"B105","v":"b. Commodities?"}]
[null,"c. If yes, are there exemptions for people who cannot afford to pay?",null,null,null,null,"N/A",null,null,{"$f":"G106","v":"N/A"},null,null,null,null,null,null,null,null,null,null,null,null,null,null,{"$f":"B106","v":"c. If yes, are there exemptions for people who cannot afford to pay?"}]
[null,null,"i. If yes, describe the exemptions.","N/A",null,null,null,null,null,null,{"$f":"C107","v":"i. If yes, describe the exemptions."},null,null,null,{"$f":"D107","v":"N/A"}]
["D8. Are the following contraceptives included in the country's National Essential Medicine List (NEML) or other equivalent priority list?",null,null,null,null,null,null,null,null,null,null,null,null,null,null,null,null,null,null,null,null,null,null,{"$f":"A108","v":"D8. Are the following contraceptives included in the country's National Essential Medicine List (NEML) or other equivalent priority list?"}]
[null,"a. Combined oral contraceptives",null,null,null,null,"Yes",null,null,{"$f":"G109","v":"Yes"},null,null,null,null,null,null,null,null,null,null,null,null,null,null,{"$f":"B109","v":"a. Combined oral contraceptives"}]
[null,"b. Progestin-only pills",null,null,null,null,"Yes",null,null,"Yes",null,null,null,null,null,null,null,null,null,null,null,null,null,null,"b. Progestin-only pills"]
[null,"c. Hormonal injections",null,null,null,null,"Yes",null,null,"Yes",null,null,null,null,null,null,null,null,null,null,null,null,null,null,"c. Hormonal injections"]
[null,"d. Hormonal implants",null,null,null,null,"Yes",null,null,"Yes",null,null,null,null,null,null,null,null,null,null,null,null,null,null,"d. Hormonal implants"]
[null,"e. Intrauterine devices (IUDs)",null,null,null,null,"Yes",null,null,"Yes",null,null,null,null,null,null,null,null,null,null,null,null,null,null,"e. Intrauterine devices (IUDs)"]
[null,"f. Male condoms",null,null,null,null,"Yes",null,null,"Yes",null,null,null,null,null,null,null,null,null,null,null,null,null,null,"f. Male condoms"]
[null,"g. Female condoms",null,null,null,null,"Yes",null,null,"Yes",null,null,null,null,null,null,null,null,null,null,null,null,null,null,"g. Female condoms"]
[null,"h. Emergency contraceptive pills",null,null,null,null,"Yes",null,null,"Yes",null,null,null,null,null,null,null,null,null,null,null,null,null,null,"h. Emergency contraceptive pills"]
[null,"i. CycleBeads",null,null,null,null,"Yes",null,null,{"$f":"G117","v":"Yes"},null,null,null,null,null,null,null,null,null,null,null,null,null,null,{"$f":"B117","v":"i. CycleBeads"}]
[null,"j. Any other contraceptive(s)?",null,null,null,null,"Don't know",null,null,"Don't know",null,null,null,null,null,null,null,null,null,null,null,null,null,null,"j. Any other contraceptive(s)?"]
[null,null,"i. Name of other contraceptive(s) on the list(s)",null,null,"Don't know",null,null,null,0,null,null,null,null,null,null,null,{"$f":"B119","v":0}]
["D9. What year(s) is the list(s) from?",null,null,null,null,2010,null,null,null,0,null,null,null,null,null,null,null,{"$f":"B120","v":0}]
["D10. Name of the list(s)\n\n\n",null,null,"National Essentials Drugs List",null,null,null,null,null,null,{"$f":"A121","v":"D10. Name of the list(s)\n\n\n"},null,null,null,{"$f":"D121","v":"National Essentials Drugs List"}]
["D11. Notes about the list(s)\n\n\n",null,null,null,null,null,null,null,null,null,{"$f":"A122","v":"D11. Notes about the list(s)\n\n\n"},null,null,null,{"$f":"D122","v":0}]
["D12.  Information on country's Poverty Reduction Strategy Paper (PRSP)\n",null,null,null,null,null,null,null,null,null,null,null,null,null,null,null,null,null,null,null,null,null,null,{"$f":"A123","v":"D12.  Information on country's Poverty Reduction Strategy Paper (PRSP)\n"}]
[null,"a. What year is the Poverty Reduction Strategy Paper from? (most recent actual PRSP on IMF's site [not progress or summary report])",null,null,null,"N/A",null,null,null,{"$f":"G124","v":0},null,null,null,null,null,null,null,{"$f":"B124","v":"a. What year is the Poverty Reduction Strategy Paper from? (most recent actual PRSP on IMF's site [not progress or summary report])"}]
[null,"b. Is family planning or reproductive health a priority in the PRSP?",null,null,null,null,"N/A",null,null,{"$f":"G125","v":"N/A"},null,null,null,null,null,null,null,null,null,null,null,null,null,null,{"$f":"B125","v":"b. Is family planning or reproductive health a priority in the PRSP?"}]
[null,"c. Is contraceptive security included in the PRSP?",null,null,null,null,"N/A",null,null,{"$f":"G126","v":"N/A"},null,null,null,null,null,null,null,null,null,null,null,null,null,null,{"$f":"B126","v":"c. Is contraceptive security included in the PRSP?"}]
[null,"d. Is contraceptive prevalence rate (CPR) included as an indicator in the PRSP?",null,null,null,null,"N/A",null,null,{"$f":"G127","v":"N/A"},null,null,null,null,null,null,null,null,null,null,null,null,null,null,{"$f":"B127","v":"d. Is contraceptive prevalence rate (CPR) included as an indicator in the PRSP?"}]
[null,"e. Are contraceptive supply indicators included in the PRSP?",null,null,null,null,"N/A",null,null,{"$f":"G128","v":"N/A"},null,null,null,null,null,null,null,null,null,null,null,null,null,null,{"$f":"B128","v":"e. Are contraceptive supply indicators included in the PRSP?"}]
["\n\n\n","f. Notes about the Poverty Reduction Strategy Paper",null,"Document not available on IMF's website",null,null,null,null,null,null,{"$f":"B129","v":"f. Notes about the Poverty Reduction Strategy Paper"},null,null,null,{"$f":"D129","v":"Document not available on IMF's website"}]
["E. Supply Chain (Capacity)"]
["E1. Have stockouts occurred for any contraceptive at the central* level in the last 12 months?  \n*(The central level refers to the central level warehouse for the public sector.)",null,null,null,null,null,"Yes",null,null,{"$f":"G131","v":"Yes"},null,null,null,null,null,null,null,null,null,null,null,null,null,null,{"$f":"A131","v":"E1. Have stockouts occurred for any contraceptive at the central* level in the last 12 months?  \n*(The central level refers to the central level warehouse for the public sector.)"}]
["E2. In the last 12 months, has there ever been a stockout at the central level of any of the contraceptives offered in public sector facilities? (If a method is not intended to be offered in public sector facilities, please indicate that stockouts are not applicable (choose \"N/A\" from the dropdown list).)",null,null,null,null,null,null,null,null,null,null,null,null,null,null,null,null,null,null,null,null,null,null,{"$f":"A132","v":"E2. In the last 12 months, has there ever been a stockout at the central level of any of the contraceptives offered in public sector facilities? (If a method is not intended to be offered in public sector facilities, please indicate that stockouts are not applicable (choose \"N/A\" from the dropdown list).)"}]
[null,"a. Combined oral contraceptives",null,null,null,null,"Yes",null,null,{"$f":"G133","v":"Yes"},null,null,null,null,null,null,null,null,null,null,null,null,null,null,{"$f":"B133","v":"a. Combined oral contraceptives"}]
[null,"b. Progestin-only pills",null,null,null,null,"Yes",null,null,"Yes",null,null,null,null,null,null,null,null,null,null,null,null,null,null,"b. Progestin-only pills"]
[null,"c. Hormonal injections",null,null,null,null,"Yes",null,null,"Yes",null,null,null,null,null,null,null,null,null,null,null,null,null,null,"c. Hormonal injections"]
[null,"d. Hormonal implants",null,null,null,null,"N/A",null,null,"N/A",null,null,null,null,null,null,null,null,null,null,null,null,null,null,"d. Hormonal implants"]
[null,"e. Intrauterine devices (IUDs)",null,null,null,null,"No",null,null,"No",null,null,null,null,null,null,null,null,null,null,null,null,null,null,"e. Intrauterine devices (IUDs)"]
[null,"f. Male condoms",null,null,null,null,"No",null,null,"No",null,null,null,null,null,null,null,null,null,null,null,null,null,null,"f. Male condoms"]
[null,"g. Female condoms",null,null,null,null,"Yes",null,null,"Yes",null,null,null,null,null,null,null,null,null,null,null,null,null,null,"g. Female condoms"]
[null,"h. Emergency contraceptive pills",null,null,null,null,"No",null,null,"No",null,null,null,null,null,null,null,null,null,null,null,null,null,null,"h. Emergency contraceptive pills"]
[null,"i. CycleBeads",null,null,null,null,"No",null,null,"No",null,null,null,null,null,null,null,null,null,null,null,null,null,null,"i. CycleBeads"]
[null,"j. Time period\n(mm/yy - mm/yy) (for example, 1/10-12/10) ",null,null,null,"Don't know",null,null,null,null,null,null,null,null,null,null,{"$f":"F142","v":"Don't know"},{"$f":"B142","v":"j. Time period\n(mm/yy - mm/yy) (for example, 1/10-12/10) "}]
[null,"k. Data source\n(for example: Procurement Planning and Monitoring Report, Logistics Management Information System, periodic physical inventory, warehouse reports)",null,null,null,"Warehouse report",null,null,null,null,null,null,null,null,null,null,{"$f":"F143","v":"Warehouse report"},{"$f":"B143","v":"k. Data source\n(for example: Procurement Planning and Monitoring Report, Logistics Management Information System, periodic physical inventory, warehouse reports)"}]
["E3. Are stockouts a large problem in your country at the following levels? (i.e., Are they common or do they tend to last for a long time?)\n\n"]
[null,"a. service delivery point level (i.e., public sector health facilities)",null,null,null,null,"Don't know",null,null,{"$f":"G145","v":"Don't know"},null,null,null,null,null,null,null,null,null,null,null,null,null,null,{"$f":"B145","v":"a. service delivery point level (i.e., public sector health facilities)"}]
[null,"b. central level (i.e., central level warehouse for the public sector)",null,null,null,null,"Don't know",null,null,{"$f":"G146","v":"Don't know"},null,null,null,null,null,null,null,null,null,null,null,null,null,null,{"$f":"B146","v":"b. central level (i.e., central level warehouse for the public sector)"}]
["F. Please note any overall comments about challenges and/or successes with contraceptive security in your country.\n\n",null,null,null,null,null,null,null,null,null,{"$f":"A147","v":"F. Please note any overall comments about challenges and/or successes with contraceptive security in your country.\n\n"},null,null,null,{"$f":"D147","v":0}]

{"sheet":"Dominican Republic 2011","index":13,"n_rows":147,"n_cols":25,"rows_kept":147,"cut":false,"hidden":false,"merged":[[142,5,142,7],[141,1,141,4],[141,5,141,7],[142,1,142,4],[138,1,138,5],[143,0,143,7],[147,0,147,7],[148,0,150,7],[145,1,145,5],[145,6,145,7],[146,0,146,2],[146,3,146,7],[144,1,144,5],[144,6,144,7],[136,1,136,5],[136,6,136,7],[137,1,137,5],[137,6,137,7],[138,6,138,7],[139,1,139,5],[139,6,139,7],[140,1,140,5],[140,6,140,7],[131,0,131,7],[132,1,132,5],[132,6,132,7],[133,1,133,5],[133,6,133,7],[134,1,134,5],[134,6,134,7],[135,1,135,5],[135,6,135,7],[120,0,120,2],[120,3,120,7],[121,0,121,2],[121,3,121,7],[129,0,129,6],[130,0,130,5],[130,6,130,7],[122,0,122,7],[123,1,123,4],[123,5,123,7],[115,1,115,5],[115,6,115,7],[116,1,116,5],[116,6,116,7],[117,1,117,5],[117,6,117,7],[118,2,118,4],[118,5,118,7],[119,0,119,4],[119,5,119,7],[110,1,110,5],[110,6,110,7],[111,1,111,5],[111,6,111,7],[112,1,112,5],[112,6,112,7],[113,1,113,5],[113,6,113,7],[114,1,114,5],[114,6,114,7],[104,1,104,5],[104,6,104,7],[105,1,105,5],[105,6,105,7],[106,3,106,7],[107,0,107,7],[108,1,108,5],[108,6,108,7],[109,1,109,5],[109,6,109,7],[98,1,98,2],[98,4,98,6],[99,1,99,2],[99,4,99,6],[100,1,100,2],[100,4,100,6],[101,0,101,7],[102,0,102,7],[103,1,103,5],[103,6,103,7],[94,2,94,3],[94,4,94,5],[94,6,94,7],[95,2,95,3],[95,4,95,5],[95,6,95,7],[96,0,96,7],[97,0,97,2],[97,4,97,6],[88,0,88,6],[89,1,89,2],[89,3,89,7],[90,0,90,6],[91,1,91,2],[92,1,92,3],[92,4,92,5],[92,6,92,7],[93,2,93,3],[93,4,93,5],[93,6,93,7],[83,0,83,4],[83,5,83,7],[84,1,84,3],[84,4,84,7],[85,1,85,3],[85,4,85,7],[86,0,86,6],[87,1,87,2],[87,3,87,7],[77,0,77,2],[77,3,77,7],[78,0,78,6],[79,0,79,6],[80,0,80,2],[81,0,82,0],[81,1,81,2],[81,3,81,4],[81,6,81,7],[82,3,82,4],[82,6,82,7],[72,1,72,2],[72,3,72,4],[73,1,73,2],[73,3,73,4],[74,1,74,2],[74,3,74,4],[75,1,75,2],[75,3,75,4],[76,1,76,2],[76,3,76,4],[67,1,67,2],[67,3,67,4],[68,1,68,2],[68,3,68,4],[69,1,69,2],[69,3,69,4],[70,1,70,2],[70,3,70,4],[71,1,71,2],[71,3,71,4],[61,0,61,2],[61,3,61,7],[62,0,62,6],[63,0,63,7],[64,0,64,2],[64,3,64,4],[65,1,65,2],[65,3,65,4],[66,1,66,2],[66,3,66,4],[55,0,55,4],[55,6,55,7],[56,0,56,4],[56,6,56,7],[58,0,58,4],[58,5,58,7],[59,1,59,4],[59,5,59,7],[60,2,60,4],[60,5,60,7],[51,1,51,2],[53,0,53,7],[54,0,54,4],[54,6,54,7],[45,0,45,7],[46,1,46,2],[47,1,47,2],[48,3,48,7],[49,1,49,2],[50,1,50,2],[35,0,35,7],[36,0,36,6],[37,0,37,7],[38,1,38,2],[39,1,39,2],[40,3,40,7],[41,1,41,2],[42,3,42,7],[43,1,43,2],[28,0,28,5],[28,6,28,7],[29,0,29,3],[29,6,29,7],[30,0,30,6],[31,0,31,6],[32,0,32,7],[33,1,33,3],[34,1,34,3],[21,1,21,2],[21,5,21,7],[22,1,22,2],[22,5,22,7],[23,0,23,6],[24,0,24,6],[25,0,25,2],[26,0,26,6],[27,0,27,2],[27,3,27,4],[16,1,16,2],[16,5,16,7],[17,1,17,2],[17,5,17,7],[18,1,18,2],[18,5,18,7],[19,1,19,2],[19,5,19,7],[20,1,20,2],[20,5,20,7],[0,0,0,7],[1,0,1,2],[1,3,1,4],[2,0,2,7],[3,3,3,4],[10,0,10,6],[5,0,5,2],[8,0,8,7],[13,3,13,7],[126,6,126,7],[3,5,3,7],[127,1,127,5],[127,6,127,7],[128,1,128,2],[128,3,128,7],[124,1,124,5],[124,6,124,7],[125,1,125,5],[125,6,125,7],[126,1,126,5],[7,0,7,2],[7,3,7,5],[7,6,7,7],[9,0,9,7],[4,0,4,2],[11,0,11,6],[12,1,12,2],[12,3,12,7],[13,0,13,2],[14,1,14,2],[14,5,14,7],[15,1,15,2],[15,5,15,7]]}
[null,null,null,null,null,null,null,null,"Columns I-Y are meant to be hidden. They exist because they allow for the dropdown list options. They also allow for merged cells to autofit properly in terms of row height. This should work if all columns remain at their correct widths.","g-h",null,"a-e merged","E-F merged","e-h","0 times",null,null,"The government (e.g., Central Medical Stores, MOH logistics unit, MOH procurement unit)",null,null,null,null,"Yes","a-h","January"]
[null,null,null,null,null,null,null,null,null,null,"A-c",null,null,null,"1-2 times","b-d merged",null,"Third-party agent (e.g., UNFPA, Crown Agents)","d-e merged","d-f merged","e-f merged","e-g merged","No",null,"February"]
[null,null,null,null,null,null,null,null,null,null,null,null,null,null,"3-5 times",null,null,"The government and a third-party agent",null,null,null,null,null,null,"March"]
[null,null,null,null,null,null,null,null,null,null,null,null,null,null,"6 or more times",null,null,"Other",null,null,null,null,"N/A",null,"April"]
["To jump to the Introduction sheet, click here.",null,null,null,null,null,null,null,null,null,null,null,null,null,null,null,null,null,null,null,null,null,"Don't know",null,"May"]
[null,null,null,null,null,null,null,null,null,null,null,null,null,null,"N/A",null,null,"N/A",null,null,null,null,null,null,"June"]
["Contraceptive Security (CS) Indicators 2011 Data ",null,null,null,null,null,null,null,null,null,null,null,null,null,"Don't know",null,null,"Don't know",null,null,null,null,null,null,"July"]
["Country: Dominican Republic",null,null,null,null,null,null,null,null,{"$f":"G8","v":0},{"$f":"A8","v":"Country: Dominican Republic"},null,null,null,null,"or c-d",null,null,null,{"$f":"D8","v":0},null,null,null,null,"August"]
["The CS Indicators are presented in the following sections:\n\n               A. leadership & cooordination               B. finance & procurement               C. commodities               D. policies               E. supply chain",null,null,null,null,null,null,null,null,{"$f":"G9","v":0},{"$f":"A9","v":"The CS Indicators are presented in the following sections:\n\n               A. leadership & cooordination               B. finance & procurement               C. commodities               D. policies               E. supply chain"},null,null,null,"d-h",null,"f-h merged",null,{"$f":"D9","v":0},null,null,null,null,null,"September"]
["\nNotes:\n  -  Respondents' answers are indicated in the white spaces. \n  -  N/A = not applicable. Don't know = the respondent either indicated they did not know or left the answer blank.\n  -  Some questions required respondents to choose from a dropdown list of options; in these cases the dropdown arrow will \n     appear when you click on the cell. \n  -  There may be a few inserted comments. (If you cannot already see them, click on Review tab - Comments group - Show All Comments in newer \n       versions of Excel or View - Comments in older versions of Excel.)\n  -  If the answer is cut off, you can either manually adjust the row height or autofit the row height in order to see the whole \n     response. (To autofit the row height, select the answer(s) and go to Home tab - Cells group - Format - Autofit Row Height in newer versions of Excel or \n      Format - Row - Autofit in older versions of Excel.)\n",null,null,null,null,null,null,null,"a-g",null,null,null,null,null,null,null,null,"a-e merged",null,null,null,null,null,{"$f":"A10","v":"\nNotes:\n  -  Respondents' answers are indicated in the white spaces. \n  -  N/A = not applicable. Don't know = the respondent either indicated they did not know or left the answer blank.\n  -  Some questions required respondents to choose from a dropdown list of options; in these cases the dropdown arrow will \n     appear when you click on the cell. \n  -  There may be a few inserted comments. (If you cannot already see them, click on Review tab - Comments group - Show All Comments in newer \n       versions of Excel or View - Comments in older versions of Excel.)\n  -  If the answer is cut off, you can either manually adjust the row height or autofit the row height in order to see the whole \n     response. (To autofit the row height, select the answer(s) and go to Home tab - Cells group - Format - Autofit Row Height in newer versions of Excel or \n      Format - Row - Autofit in older versions of Excel.)\n"},"October"]
["A. Leadership and Coordination",null,null,null,null,null,null,null,null,null,null,null,null,null,null,null,null,null,null,null,null,null,null,null,"November"]
["A1. Is there a national committee that works on contraceptive security? (Please select from the dropdown list.)\n(Committee should have some aspect of contraceptive security as part of its Terms of Reference, even if it is known by a different name, for example: Family Planning, Reproductive Health, Maternal Mortality, Essential Medicine Committee, etc.)  ",null,null,null,null,null,null,"Yes",{"$f":"A12","v":"A1. Is there a national committee that works on contraceptive security? (Please select from the dropdown list.)\n(Committee should have some aspect of contraceptive security as part of its Terms of Reference, even if it is known by a different name, for example: Family Planning, Reproductive Health, Maternal Mortality, Essential Medicine Committee, etc.)  "},null,null,null,null,null,null,null,null,null,null,null,null,null,null,null,"December"]
[null,"a. What is the name of the committee?",null,"Comité Nacional de Disponibilidad Asegurada de Insumos Anticonceptivos (DAIA) (National Committee for Contraceptive Security)",null,null,null,null,null,null,{"$f":"B13","v":"a. What is the name of the committee?"},{"$f":"D13","v":"Comité Nacional de Disponibilidad Asegurada de Insumos Anticonceptivos (DAIA) (National Committee for Contraceptive Security)"},null,null,{"$f":"D13","v":"Comité Nacional de Disponibilidad Asegurada de Insumos Anticonceptivos (DAIA) (National Committee for Contraceptive Security)"}]
["A2. Are the following organizations represented on the committee?",null,null,"(Y/N \ndropdown)",null,null,null,null,null,null,{"$f":"A14","v":"A2. Are the following organizations represented on the committee?"},null,null,null,null,null,null,null,null,null,null,null,null,null,"Don't know"]
[null,"a. Social marketing",null,"Yes","If yes, specify name(s) of organizations","PROFAMILIA, ADOPLAFAM, MUDE, PSI",null,null,null,null,{"$f":"B15","v":"a. Social marketing"},null,null,null,null,null,{"$f":"F15","v":"PROFAMILIA, ADOPLAFAM, MUDE, PSI"}]
[null,"b. NGO (for example: service delivery, advocacy, Planned Parenthood affiliate, Marie Stopes affiliate, faith-based organizations, etc.)",null,"Yes","If yes, specify name(s) of organizations","PROFAMILIA, ADOPLAFAM, MUDE, and 30 more institutions",null,null,null,null,"b. NGO (for example: service delivery, advocacy, Planned Parenthood affiliate, Marie Stopes affiliate, faith-based organizations, etc.)",null,null,null,null,null,"PROFAMILIA, ADOPLAFAM, MUDE, and 30 more institutions"]
[null,"c. Commercial sector (for example: pharmacy associations, manufacturers, etc.)",null,"No","If yes, specify name(s) of organizations",null,null,null,null,null,"c. Commercial sector (for example: pharmacy associations, manufacturers, etc.)",null,null,null,null,null,0]
[null,"d. Donors",null,"Yes","If yes, specify name(s) of donors","USAID",null,null,null,null,"d. Donors",null,null,null,null,null,"USAID"]
[null,"e. UN agencies",null,"Yes","If yes, specify name(s) of agencies","UNFPA, PAHO/WHO (Organización Panamericana de la Salud/Organización Mundial de la Salud [OPS/OMS])",null,null,null,null,"e. UN agencies",null,null,null,null,null,"UNFPA, PAHO/WHO (Organización Panamericana de la Salud/Organización Mundial de la Salud [OPS/OMS])"]
[null,"f. Ministry of Health (for example: logistics, reproductive health, family planning, maternal and child health, HIV/AIDS, pharmacy units, etc.)",null,"Yes","If yes, specify name(s) of units","Maternal-Child & Reproductive Health Department, Purchasing & Logistics Department, Sexually Transmitted Diseases Department, HIV Programs and Pharmacy Units",null,null,null,null,"f. Ministry of Health (for example: logistics, reproductive health, family planning, maternal and child health, HIV/AIDS, pharmacy units, etc.)",null,null,null,null,null,"Maternal-Child & Reproductive Health Department, Purchasing & Logistics Department, Sexually Transmitted Diseases Department, HIV Programs and Pharmacy Units"]
[null,"g. Central Medical Store or Central Warehouse",null,"Yes","If yes, specify","Central Warehouse/MOH",null,null,null,null,"g. Central Medical Store or Central Warehouse",null,null,null,null,null,"Central Warehouse/MOH"]
[null,"h. Ministry of Finance or Ministry of Planning ",null,"No","If yes, specify",null,null,null,null,null,"h. Ministry of Finance or Ministry of Planning ",null,null,null,null,null,0]
[null,"i. Other (for example: partners)",null,"No","If yes, specify",null,null,null,null,null,"i. Other (for example: partners)",null,null,null,null,null,0]
["A3. How many times did the committee meet during the last year? (0, 1-2, 3-5, or 6+)  (Please select from the dropdown.)",null,null,null,null,null,null,"6 or more times",{"$f":"A24","v":"A3. How many times did the committee meet during the last year? (0, 1-2, 3-5, or 6+)  (Please select from the dropdown.)"}]
["A4. Does the committee have legal status?  (Please select from the dropdown.)                                  ",null,null,null,null,null,null,"Yes",{"$f":"A25","v":"A4. Does the committee have legal status?  (Please select from the dropdown.)                                  "}]
["A5. Is there a Contraceptive Security \"champion\"? (someone who consistently brings up and advocates for contraceptive supplies)",null,null,"Yes","If yes, specify person's organization","Maternal-Child & Reproductive Health Department","Specify person's job title","Maternal-Child & Reproductive Health Department Director",null,null,{"$f":"A26","v":"A5. Is there a Contraceptive Security \"champion\"? (someone who consistently brings up and advocates for contraceptive supplies)"}]
["B. Finance and Procurement (Capital)"]
["B1. What is the timeline of the country's fiscal year?",null,null,"Beginning month",null,"January","Ending month","December",null,null,{"$f":"B28","v":0}]
["B2. What was the estimated dollar value of contraceptives needed to be procured for the public sector for the most recent complete fiscal year? (in USD currency)\n(for example, to cover the needs for the '09-'10 fiscal year)",null,null,null,null,null,"Don't know",null,null,{"$f":"G29","v":"Don't know"},null,null,{"$f":"E29","v":0},null,null,null,null,null,null,null,null,null,null,null,{"$f":"A29","v":"B2. What was the estimated dollar value of contraceptives needed to be procured for the public sector for the most recent complete fiscal year? (in USD currency)\n(for example, to cover the needs for the '09-'10 fiscal year)"}]
["B3. When was the last forecast/quantification conducted? (mm/yy)",null,null,null,"Don't know","Who conducted it? (Specify organization.)","Don't know",null,null,{"$f":"G30","v":"Don't know"},null,null,{"$f":"E30","v":"Don't know"},null,null,null,null,null,null,null,null,null,null,null,{"$f":"A30","v":"B3. When was the last forecast/quantification conducted? (mm/yy)"}]
["B4. Is there a government budget line item for the procurement of contraceptives?  (Please select from the dropdown list.)",null,null,null,null,null,null,"No",{"$f":"A31","v":"B4. Is there a government budget line item for the procurement of contraceptives?  (Please select from the dropdown list.)"}]
["B5. Were government funds allocated for contraceptive procurement for the public sector in the most recent complete fiscal year? (This question refers to funds planned to be spent on contraceptives, whether or not they ended up being spent.) \n\n(Government funds include internally generated funds, basket funds, World Bank credits or loans, and other funds donors gave to the government for their use.) \n",null,null,null,null,null,null,"No",{"$f":"A32","v":"B5. Were government funds allocated for contraceptive procurement for the public sector in the most recent complete fiscal year? (This question refers to funds planned to be spent on contraceptives, whether or not they ended up being spent.) \n\n(Government funds include internally generated funds, basket funds, World Bank credits or loans, and other funds donors gave to the government for their use.) \n"}]
["B6. Please complete the table below regarding government allocations for contraceptive procurement.",null,null,null,null,null,null,null,null,null,null,null,null,null,null,null,null,null,null,null,null,null,null,{"$f":"A33","v":"B6. Please complete the table below regarding government allocations for contraceptive procurement."}]
[null,null,null,null,"Amount allocated \n(in USD)","Time period during which allocations were supposed to be spent \n(mm/yy-mm/yy)\n(should ideally be the most recent\ncomplete fiscal year ['09-'10])","Data source \n(for example: Ministry records)","Comments",null,null,{"$f":"A34","v":0}]
[null,"Government funds allocated for contraceptive procurement\n(funds originally designated for contraceptives, whether or not they ended up being spent on them)",null,null,0,"01/10-12/10",null,null,null,null,{"$f":"#REF!","v":{"$error":"#REF!"}}]
[]
["B7. Were government funds spent on contraceptive procurement for the public sector in the most recent complete fiscal year? \n(Government funds include internally generated funds, basket funds, World Bank credits or loans, and other funds donors gave to the government for their use.)",null,null,null,null,null,null,"Yes",{"$f":"A37","v":"B7. Were government funds spent on contraceptive procurement for the public sector in the most recent complete fiscal year? \n(Government funds include internally generated funds, basket funds, World Bank credits or loans, and other funds donors gave to the government for their use.)"}]
["B8. Please complete the table below to indicate government expenditures on contraceptive procurement, by source, in the most recent complete fiscal year. \n(This is how much was spent on contraceptive procurement (not what was allocated). How much of this spending was provided from each source?)",null,null,null,null,null,null,null,null,null,null,null,null,null,null,null,null,null,null,null,null,null,null,{"$f":"A38","v":"B8. Please complete the table below to indicate government expenditures on contraceptive procurement, by source, in the most recent complete fiscal year. \n(This is how much was spent on contraceptive procurement (not what was allocated). How much of this spending was provided from each source?)"}]
[null,"Source of government funds spent on contraceptive procurement for the public sector",null,"Was this source used?\n(Y/N)","Amount spent \n(in USD)","Time period (mm/yy-mm/yy)\n(should be the same for all sources of funds & ideally be the most recent\ncomplete fiscal year ['09-'10])","Data source \n(for example: Contraceptive Procurement Table, PipeLine, etc.)","Comments",null,null,{"$f":"A39","v":0}]
[null,"a. Internally generated funds spent on contraceptive procurement",null,"Yes",652174,"01/10-12/10","Contraceptive Procurement Table (CPT)",null,null,null,{"$f":"B40","v":"a. Internally generated funds spent on contraceptive procurement"}]
[null,null,"i. Specify source(s) of internally generated funds spent (for example, from taxes or user fees)","Taxes primarily",null,null,null,null,null,null,{"$f":"C41","v":"i. Specify source(s) of internally generated funds spent (for example, from taxes or user fees)"},null,null,null,{"$f":"D41","v":"Taxes primarily"}]
[null,"b. Total of all other government funds spent on contraceptive procurement (basket funds, World Bank credits or loans, and other funds donors gave to the government [e.g., direct budget support])",null,"No",0,"01/10-12/10",null,null,null,null,{"$f":"B42","v":"b. Total of all other government funds spent on contraceptive procurement (basket funds, World Bank credits or loans, and other funds donors gave to the government [e.g., direct budget support])"}]
[null,null,"i. Specify source(s) of other government funds spent (for example: basket funding or specific donor)","N/A",null,null,null,null,null,null,{"$f":"C43","v":"i. Specify source(s) of other government funds spent (for example: basket funding or specific donor)"},null,null,null,{"$f":"D43","v":"N/A"}]
[null,"c. TOTAL government funds spent on contraceptive procurement\nThis will auto-calculate.  (It will sum a & b above.)",null,null,{"$f":"E40+E42","v":652174},null,null,null,null,null,{"$f":"B44","v":"c. TOTAL government funds spent on contraceptive procurement\nThis will auto-calculate.  (It will sum a & b above.)"}]
[null,null,null,null,null,null,null,null,null,null,{"$f":"A45","v":0}]
["B9. Please complete the table below to indicate donor expenditures on contraceptive procurement in the most recent complete fiscal year.\n",null,null,null,null,null,null,null,null,null,null,null,null,null,null,null,null,null,null,null,null,null,null,{"$f":"A46","v":"B9. Please complete the table below to indicate donor expenditures on contraceptive procurement in the most recent complete fiscal year.\n"}]
["\n","Source of donations and donor funds spent on contraceptive procurement for the public sector",null,"Was this a source?\n(Y/N)","Amount of money spent on these procurements \n(in USD)","Time period (mm/yy-mm/yy)\n(should be the same for all sources of funds & ideally be the most recent\ncomplete fiscal year ['09-'10])","Data source \n(for example:  Donor records, Contraceptive Procurement Table, PipeLine, RHInterchange, etc.","Comments",null,null,{"$f":"A47","v":"\n"}]
[null,"a. In-kind donations of contraceptives",null,"Yes",157500,"01/10-12/10","Donor records",null,null,null,{"$f":"B48","v":"a. In-kind donations of contraceptives"}]
[null,null,"i. Specify source(s) of in-kind donations ","UNFPA",null,null,null,null,null,null,{"$f":"C49","v":"i. Specify source(s) of in-kind donations "},null,null,null,{"$f":"D49","v":"UNFPA"}]
[null,"b. Global Fund donations used to procure condoms",null,"No",0,"01/10-12/10",null,null,null,null,{"$f":"B50","v":"b. Global Fund donations used to procure condoms"}]
[null,"c. Global Fund donations used to procure contraceptives besides condoms",null,"No",0,"01/10-12/10",null,null,null,null,{"$f":"B51","v":"c. Global Fund donations used to procure contraceptives besides condoms"}]
[null,"d. TOTAL value of in-kind donations and Global Fund donations spent on contraceptive procurement\nThis will auto-calculate.  (It will sum a-c above.)",null,null,{"$f":"E48+E50+E51","v":157500},null,null,null,null,null,{"$f":"B52","v":"d. TOTAL value of in-kind donations and Global Fund donations spent on contraceptive procurement\nThis will auto-calculate.  (It will sum a-c above.)"}]
[null,null,null,null,null,null,null,null,null,null,{"$f":"A53","v":0}]
["The answers to B10 and B11 should calculate automatically based on the information you provided. Please review the answers to ensure they make sense to you, and if you have additional information to add, please note it in the comments boxes.\n\nIf the answers do not calculate automatically, please provide any relevant information you may have in the comments boxes.\n",null,null,null,null,null,null,null,null,null,null,null,null,null,null,null,null,null,null,null,null,null,null,{"$f":"A54","v":"The answers to B10 and B11 should calculate automatically based on the information you provided. Please review the answers to ensure they make sense to you, and if you have additional information to add, please note it in the comments boxes.\n\nIf the answers do not calculate automatically, please provide any relevant information you may have in the comments boxes.\n"}]
["B10. Government share of funds spent on contraceptive procurement for the public sector - \nOf the total amount spent on contraceptives for the public sector in the most recent complete fiscal year (including government and donor funds), what percent was covered by government funds (including internally generated funds, basket funds, World Bank credits or loans, and other funds given to the government)? \n\nThis will auto-calculate. (It contains the following formula: Total government spending (Question B8c) / Grand total of all spending for public sector contraceptives from the government and donors (Questions B8c+B9d))",null,null,null,null,{"$f":"E44/(E44+E52)","v":0.80547726615897264},null,null,null,{"$f":"G55","v":0},null,null,null,null,null,null,null,{"$f":"A55","v":"B10. Government share of funds spent on contraceptive procurement for the public sector - \nOf the total amount spent on contraceptives for the public sector in the most recent complete fiscal year (including government and donor funds), what percent was covered by government funds (including internally generated funds, basket funds, World Bank credits or loans, and other funds given to the government)? \n\nThis will auto-calculate. (It contains the following formula: Total government spending (Question B8c) / Grand total of all spending for public sector contraceptives from the government and donors (Questions B8c+B9d))"}]
["B11. Total expenditures on public sector contraceptives as percent of amount that needed to be procured -\nOf the estimated value of the contraceptives needed to be procured for the public sector for the most recent complete fiscal year, what percent was provided by any source (whether government or donor)? \n\nThis will auto-calculate. (It contains the following formula: Grand total of all spending for public sector contraceptives from the government and donors (Questions B8c+B9d) / Value of estimated need for procurement (Question B2))",null,null,null,null,"Don't know",null,null,null,{"$f":"G56","v":0},null,null,null,null,null,null,null,{"$f":"A56","v":"B11. Total expenditures on public sector contraceptives as percent of amount that needed to be procured -\nOf the estimated value of the contraceptives needed to be procured for the public sector for the most recent complete fiscal year, what percent was provided by any source (whether government or donor)? \n\nThis will auto-calculate. (It contains the following formula: Grand total of all spending for public sector contraceptives from the government and donors (Questions B8c+B9d) / Value of estimated need for procurement (Question B2))"}]
["B12. If B11 did not calculate automatically, please answer the following question:\nWas there a funding gap for the public sector in the last complete fiscal year (e.g., 09-'10 fiscal year)?\n(Please select from the dropdown list.)",null,null,null,null,"Yes",null,null,null,{"$f":"G57","v":0},null,null,null,null,null,null,null,{"$f":"A57","v":"B12. If B11 did not calculate automatically, please answer the following question:\nWas there a funding gap for the public sector in the last complete fiscal year (e.g., 09-'10 fiscal year)?\n(Please select from the dropdown list.)"}]
[null,null,null,null,null,null,null,null,null,null,{"$f":"A58","v":0}]
["B13. If the government financed any contraceptive procurement in the most recent complete fiscal year, which entity conducted the procurement(s)? (Please select from the dropdown.)",null,null,null,null,"The government (e.g., Central Medical Stores, MOH logistics unit, MOH procurement unit)",null,null,null,null,null,null,null,null,null,null,{"$f":"F59","v":"The government (e.g., Central Medical Stores, MOH logistics unit, MOH procurement unit)"},{"$f":"A59","v":"B13. If the government financed any contraceptive procurement in the most recent complete fiscal year, which entity conducted the procurement(s)? (Please select from the dropdown.)"}]
[null,"a. Specify entity",null,null,null,"Direccion Materno - Infantil y Adolescentes / Programa Planificacion Familiar (Maternal-Child and Adolescents Department / Family Planning Program)",null,null,null,null,null,null,{"$f":"E60","v":0},null,null,null,{"$f":"F60","v":"Direccion Materno - Infantil y Adolescentes / Programa Planificacion Familiar (Maternal-Child and Adolescents Department / Family Planning Program)"},{"$f":"B60","v":"a. Specify entity"}]
[null,null,"i. Is this a parastatal?",null,null,"No",null,null,null,null,null,null,null,null,null,null,{"$f":"F61","v":"No"},{"$f":"C61","v":"i. Is this a parastatal?"}]
["B14. Please note any additional comments about finance and procurement.\n",null,null,"Two purchases were made. (The first was intended to cover the needs for Jan-June and the second for July-Dec). Disbursement was executed from the MOH's central budget.",null,null,null,null,null,null,{"$f":"A62","v":"B14. Please note any additional comments about finance and procurement.\n"},null,null,null,{"$f":"D62","v":"Two purchases were made. (The first was intended to cover the needs for Jan-June and the second for July-Dec). Disbursement was executed from the MOH's central budget."}]
["C. Commodities"]
["C1. Are the following contraceptive methods offered through the commercial sector, public sector, NGOs, or social marketing? (Please indicate which methods are intended to be offered. This question is not asking whether the method is in stock.) \n(Please select from the dropdown list.)",null,null,null,null,null,null,null,null,null,null,null,null,null,null,null,null,null,null,null,null,null,null,{"$f":"A64","v":"C1. Are the following contraceptive methods offered through the commercial sector, public sector, NGOs, or social marketing? (Please indicate which methods are intended to be offered. This question is not asking whether the method is in stock.) \n(Please select from the dropdown list.)"}]
["Contraceptive Method",null,null,"Commercial Sector",null,"Public Sector","NGO","Social Marketing",null,null,{"$f":"A65","v":"Contraceptive Method"}]
[null,"a. Combined oral contraceptives (estrogen + progestin - for  example, LoFemenol, Microgynon)",null,"Yes",null,"Yes","Yes","Yes",null,null,{"$f":"B66","v":"a. Combined oral contraceptives (estrogen + progestin - for  example, LoFemenol, Microgynon)"}]
[null,"b. Progestin-only pills (for example, Ovrette, Microlut)",null,"Yes",null,"Yes","Yes","Yes",null,null,{"$f":"B67","v":"b. Progestin-only pills (for example, Ovrette, Microlut)"}]
[null,"c. Hormonal injections (for example, DepoProvera, Noristerat)",null,"Yes",null,"Yes","Yes","Yes",null,null,"c. Hormonal injections (for example, DepoProvera, Noristerat)"]
[null,"d. Hormonal implants (for example, Jadelle, Implanon)",null,"Yes",null,"Yes","Yes","Yes",null,null,"d. Hormonal implants (for example, Jadelle, Implanon)"]
[null,"e. Intrauterine devices (IUDs) (for example, Optima Copper T)",null,"Yes",null,"Yes","Yes","Yes",null,null,"e. Intrauterine devices (IUDs) (for example, Optima Copper T)"]
[null,"f. Male condoms",null,"Yes",null,"Yes","Yes","Yes",null,null,"f. Male condoms"]
[null,"g. Female condoms",null,"No",null,"No","Yes","Yes",null,null,"g. Female condoms"]
[null,"h. Emergency contraceptive pills (for example, Postinor)",null,"Yes",null,"Yes","Yes","Yes",null,null,"h. Emergency contraceptive pills (for example, Postinor)"]
[null,"i. Long-acting permanent method for males (vasectomy)",null,"Yes",null,"Yes","Yes","Yes",null,null,"i. Long-acting permanent method for males (vasectomy)"]
[null,"j. Long-acting permanent method for females (tubal ligation)",null,"Yes",null,"Yes","Yes","Yes",null,null,"j. Long-acting permanent method for females (tubal ligation)"]
[null,"k. CycleBeads",null,"Yes",null,"No","Yes","Yes",null,null,"k. CycleBeads"]
[null,"l. Other contraceptive methods - specify \n(Please provide the name of the other contraceptive(s) offered, by sector.)",null,"Vaginal spermicides",null,null,"Vaginal spermicides","Vaginal spermicides",null,null,"l. Other contraceptive methods - specify \n(Please provide the name of the other contraceptive(s) offered, by sector.)"]
["C2. Please note any comments about the commodities offered.",null,null,"Implants and emergency contraceptives are not purchased by the MOH. However, donations are often received by the MOH, and services can be provided in key hospitals and mainly in coordination with NGOs. ",null,null,null,null,null,null,{"$f":"A78","v":"C2. Please note any comments about the commodities offered."},null,null,null,{"$f":"D78","v":"Implants and emergency contraceptives are not purchased by the MOH. However, donations are often received by the MOH, and services can be provided in key hospitals and mainly in coordination with NGOs. "}]
["D. Policies (Commitment)"]
["D1. Is there a contraceptive security or reproductive health commodity security strategy or is contraceptive security explicitly included in a country strategy? (Please select from the dropdown list.)",null,null,null,null,null,null,"Yes",{"$f":"A80","v":"D1. Is there a contraceptive security or reproductive health commodity security strategy or is contraceptive security explicitly included in a country strategy? (Please select from the dropdown list.)"}]
["IF NO, SKIP TO QUESTION D2."]
[null,"Strategy name",null,"Years Covered (including strategy updates)",null,"Is the strategy formally approved by the Ministry?","Is the contraceptive security strategy being implemented?",null,null,{"$f":"G82","v":"Is the contraceptive security strategy being implemented?"},{"$f":"B82","v":"Strategy name"},null,{"$f":"E82","v":0},null,null,null,null,null,{"$f":"D82","v":"Years Covered (including strategy updates)"}]
[null,"a","Sistema para el Aseguramiento Logistico de Insumos Anticonceptivos (system for the logistics security of contraceptives)","2009 on",null,"Yes","Yes",null,null,{"$f":"G83","v":"Yes"},{"$f":"B83","v":"a"},null,{"$f":"E83","v":0},null,null,null,null,null,{"$f":"D83","v":"2009 on"}]
["D2. Are any family planning commodities subject to duties, import taxes, or other fees?",null,null,null,null,"Yes",null,null,null,null,null,null,null,null,null,null,{"$f":"F84","v":"Yes"},{"$f":"A84","v":"D2. Are any family planning commodities subject to duties, import taxes, or other fees?"}]
[null,"a. If yes, for which sectors (public, NGO, social marketing, commercial)?",null,null,"Commercial sector, social marketing, and NGO´s",null,null,null,null,null,null,null,{"$f":"E85","v":"Commercial sector, social marketing, and NGO´s"},{"$f":"E85","v":"Commercial sector, social marketing, and NGO´s"},null,null,null,{"$f":"B85","v":"a. If yes, for which sectors (public, NGO, social marketing, commercial)?"}]
[null,"b. If yes, how much are the duties, taxes, or fees?",null,null,"16% value added tax (VAT)",null,null,null,null,null,null,null,null,{"$f":"E86","v":"16% value added tax (VAT)"},null,null,null,{"$f":"B86","v":"b. If yes, how much are the duties, taxes, or fees?"}]
["D3. Are there policies that hinder the ability of the private sector (commercial sector, NGOs, or social marketing) to provide contraceptive methods (for example: price controls, distribution limitations, taxes/duties, advertising bans, etc.)?",null,null,null,null,null,null,"No",{"$f":"A87","v":"D3. Are there policies that hinder the ability of the private sector (commercial sector, NGOs, or social marketing) to provide contraceptive methods (for example: price controls, distribution limitations, taxes/duties, advertising bans, etc.)?"}]
[null,"a. If yes, describe the policies.",null,"N/A",null,null,null,null,null,null,{"$f":"B88","v":"a. If yes, describe the policies."},null,null,null,{"$f":"D88","v":"N/A"}]
["D4. Are there policies that enable the private sector (commercial sector, NGOs, or social marketing) to provide contraceptive methods?",null,null,null,null,null,null,"No",{"$f":"A89","v":"D4. Are there policies that enable the private sector (commercial sector, NGOs, or social marketing) to provide contraceptive methods?"}]
[null,"a. If yes, describe the policies.",null,"N/A",null,null,null,null,null,null,{"$f":"B90","v":"a. If yes, describe the policies."},null,null,null,{"$f":"D90","v":"N/A"}]
["D5. Do policies or regulations exist that restrict who can sell or dispense particular contraceptive methods?\n",null,null,null,null,null,null,"No",{"$f":"A91","v":"D5. Do policies or regulations exist that restrict who can sell or dispense particular contraceptive methods?\n"}]
[null,"Please note any restrictions in the following table."]
[null,"Contraceptive Method(s)",null,null,"Describe any public sector restriction on who is allowed to sell or dispense the method",null,"Describe any private sector restriction on who is allowed to sell or dispense the method",null,null,{"$f":"G93","v":"Describe any private sector restriction on who is allowed to sell or dispense the method"},null,null,null,null,null,{"$f":"B93","v":"Contraceptive Method(s)"},null,null,null,null,{"$f":"E93","v":"Describe any public sector restriction on who is allowed to sell or dispense the method"}]
[null,"a",null,null,null,null,null,null,null,{"$f":"G94","v":0},null,null,{"$f":"E94","v":0},null,null,{"$f":"C94","v":0},null,null,null,null,{"$f":"E94","v":0}]
[null,"b",null,null,null,null,null,null,null,{"$f":"G95","v":0},null,null,{"$f":"E95","v":0},null,null,{"$f":"C95","v":0},null,null,null,null,{"$f":"E95","v":0}]
[null,"c",null,null,null,null,null,null,null,{"$f":"G96","v":0},null,null,{"$f":"E96","v":0},null,null,{"$f":"C96","v":0},null,null,null,null,{"$f":"E96","v":0}]
[null,null,null,null,null,null,null,null,null,null,{"$f":"C97","v":0}]
["D6. Does the country have laws, regulations, or policies that make it difficult for the following sub-populations to access effective family planning services?",null,null,"Y/N","If yes, describe laws/regulations/policies affecting access ",null,null,"Are the rules/policies implemented?",null,null,{"$f":"A98","v":"D6. Does the country have laws, regulations, or policies that make it difficult for the following sub-populations to access effective family planning services?"},null,null,null,null,null,null,null,null,null,null,{"$f":"E98","v":"If yes, describe laws/regulations/policies affecting access "}]
[null,"a. Unmarried people",null,"No",null,null,null,null,null,null,{"$f":"B99","v":"a. Unmarried people"},null,{"$f":"E99","v":0},null,null,null,null,null,null,null,null,{"$f":"E99","v":0}]
[null,"b. Young people",null,"No",null,null,null,null,null,null,{"$f":"B100","v":"b. Young people"},null,{"$f":"E100","v":0},null,null,null,null,null,null,null,null,{"$f":"E100","v":0}]
[null,"c. Other",null,"No",null,null,null,null,null,null,{"$f":"B101","v":"c. Other"},null,{"$f":"E101","v":0},null,null,null,null,null,null,null,null,{"$f":"E101","v":0}]
[null,null,null,null,null,null,null,null,null,null,{"$f":"C102","v":0}]
["D7. Are there charges* to the client in the public sector for family planning:\n*(This question refers to charges by policy, not under-the-table charges.)\n",null,null,null,null,null,null,null,null,null,null,null,null,null,null,null,null,null,null,null,null,null,null,{"$f":"A103","v":"D7. Are there charges* to the client in the public sector for family planning:\n*(This question refers to charges by policy, not under-the-table charges.)\n"}]
[null,"a. Services?",null,null,null,null,"No",null,null,{"$f":"G104","v":"No"},null,null,null,null,null,null,null,null,null,null,null,null,null,null,{"$f":"B104","v":"a. Services?"}]
[null,"b. Commodities?",null,null,null,null,"No",null,null,{"$f":"G105","v":"No"},null,null,null,null,null,null,null,null,null,null,null,null,null,null,{"$f":"B105","v":"b. Commodities?"}]
[null,"c. If yes, are there exemptions for people who cannot afford to pay?",null,null,null,null,"N/A",null,null,{"$f":"G106","v":"N/A"},null,null,null,null,null,null,null,null,null,null,null,null,null,null,{"$f":"B106","v":"c. If yes, are there exemptions for people who cannot afford to pay?"}]
[null,null,"i. If yes, describe the exemptions.","N/A",null,null,null,null,null,null,{"$f":"C107","v":"i. If yes, describe the exemptions."},null,null,null,{"$f":"D107","v":"N/A"}]
["D8. Are the following contraceptives included in the country's National Essential Medicine List (NEML) or other equivalent priority list?",null,null,null,null,null,null,null,null,null,null,null,null,null,null,null,null,null,null,null,null,null,null,{"$f":"A108","v":"D8. Are the following contraceptives included in the country's National Essential Medicine List (NEML) or other equivalent priority list?"}]
[null,"a. Combined oral contraceptives",null,null,null,null,"Yes",null,null,{"$f":"G109","v":"Yes"},null,null,null,null,null,null,null,null,null,null,null,null,null,null,{"$f":"B109","v":"a. Combined oral contraceptives"}]
[null,"b. Progestin-only pills",null,null,null,null,"Yes",null,null,"Yes",null,null,null,null,null,null,null,null,null,null,null,null,null,null,"b. Progestin-only pills"]
[null,"c. Hormonal injections",null,null,null,null,"Yes",null,null,"Yes",null,null,null,null,null,null,null,null,null,null,null,null,null,null,"c. Hormonal injections"]
[null,"d. Hormonal implants",null,null,null,null,"No",null,null,"No",null,null,null,null,null,null,null,null,null,null,null,null,null,null,"d. Hormonal implants"]
[null,"e. Intrauterine devices (IUDs)",null,null,null,null,"Yes",null,null,"Yes",null,null,null,null,null,null,null,null,null,null,null,null,null,null,"e. Intrauterine devices (IUDs)"]
[null,"f. Male condoms",null,null,null,null,"Yes",null,null,"Yes",null,null,null,null,null,null,null,null,null,null,null,null,null,null,"f. Male condoms"]
[null,"g. Female condoms",null,null,null,null,"No",null,null,"No",null,null,null,null,null,null,null,null,null,null,null,null,null,null,"g. Female condoms"]
[null,"h. Emergency contraceptive pills",null,null,null,null,"No",null,null,"No",null,null,null,null,null,null,null,null,null,null,null,null,null,null,"h. Emergency contraceptive pills"]
[null,"i. CycleBeads",null,null,null,null,"No",null,null,{"$f":"G117","v":"No"},null,null,null,null,null,null,null,null,null,null,null,null,null,null,{"$f":"B117","v":"i. CycleBeads"}]
[null,"j. Any other contraceptive(s)?",null,null,null,null,"No",null,null,"No",null,null,null,null,null,null,null,null,null,null,null,null,null,null,"j. Any other contraceptive(s)?"]
[null,null,"i. Name of other contraceptive(s) on the list(s)",null,null,"N/A",null,null,null,0,null,null,null,null,null,null,null,{"$f":"B119","v":0}]
["D9. What year(s) is the list(s) from?",null,null,null,null,2007,null,null,null,0,null,null,null,null,null,null,null,{"$f":"B120","v":0}]
["D10. Name of the list(s)\n\n",null,null,"Cuadro Basico de los Medicamentos Esenciales (CBME) (basic chart of essential medicines)",null,null,null,null,null,null,{"$f":"A121","v":"D10. Name of the list(s)\n\n"},null,null,null,{"$f":"D121","v":"Cuadro Basico de los Medicamentos Esenciales (CBME) (basic chart of essential medicines)"}]
["D11. Notes about the list(s)",null,null,"The list has not been revised since 2007.",null,null,null,null,null,null,{"$f":"A122","v":"D11. Notes about the list(s)"},null,null,null,{"$f":"D122","v":"The list has not been revised since 2007."}]
["D12.  Information on country's Poverty Reduction Strategy Paper (PRSP)\n",null,null,null,null,null,null,null,null,null,null,null,null,null,null,null,null,null,null,null,null,null,null,{"$f":"A123","v":"D12.  Information on country's Poverty Reduction Strategy Paper (PRSP)\n"}]
[null,"a. What year is the Poverty Reduction Strategy Paper from? (most recent actual PRSP on IMF's site [not progress or summary report])",null,null,null,"N/A",null,null,null,{"$f":"G124","v":0},null,null,null,null,null,null,null,{"$f":"B124","v":"a. What year is the Poverty Reduction Strategy Paper from? (most recent actual PRSP on IMF's site [not progress or summary report])"}]
[null,"b. Is family planning or reproductive health a priority in the PRSP?",null,null,null,null,"N/A",null,null,{"$f":"G125","v":"N/A"},null,null,null,null,null,null,null,null,null,null,null,null,null,null,{"$f":"B125","v":"b. Is family planning or reproductive health a priority in the PRSP?"}]
[null,"c. Is contraceptive security included in the PRSP?",null,null,null,null,"N/A",null,null,{"$f":"G126","v":"N/A"},null,null,null,null,null,null,null,null,null,null,null,null,null,null,{"$f":"B126","v":"c. Is contraceptive security included in the PRSP?"}]
[null,"d. Is contraceptive prevalence rate (CPR) included as an indicator in the PRSP?",null,null,null,null,"N/A",null,null,{"$f":"G127","v":"N/A"},null,null,null,null,null,null,null,null,null,null,null,null,null,null,{"$f":"B127","v":"d. Is contraceptive prevalence rate (CPR) included as an indicator in the PRSP?"}]
[null,"e. Are contraceptive supply indicators included in the PRSP?",null,null,null,null,"N/A",null,null,{"$f":"G128","v":"N/A"},null,null,null,null,null,null,null,null,null,null,null,null,null,null,{"$f":"B128","v":"e. Are contraceptive supply indicators included in the PRSP?"}]
["\n\n\n","f. Notes about the Poverty Reduction Strategy Paper",null,"Document not available on IMF's website",null,null,null,null,null,null,{"$f":"B129","v":"f. Notes about the Poverty Reduction Strategy Paper"},null,null,null,{"$f":"D129","v":"Document not available on IMF's website"}]
["E. Supply Chain (Capacity)"]
["E1. Have stockouts occurred for any contraceptive at the central* level in the last 12 months?  \n*(The central level refers to the central level warehouse for the public sector.)",null,null,null,null,null,"No",null,null,{"$f":"G131","v":"No"},null,null,null,null,null,null,null,null,null,null,null,null,null,null,{"$f":"A131","v":"E1. Have stockouts occurred for any contraceptive at the central* level in the last 12 months?  \n*(The central level refers to the central level warehouse for the public sector.)"}]
["E2. In the last 12 months, has there ever been a stockout at the central level of any of the contraceptives offered in public sector facilities? (If a method is not intended to be offered in public sector facilities, please indicate that stockouts are not applicable (choose \"N/A\" from the dropdown list).)",null,null,null,null,null,null,null,null,null,null,null,null,null,null,null,null,null,null,null,null,null,null,{"$f":"A132","v":"E2. In the last 12 months, has there ever been a stockout at the central level of any of the contraceptives offered in public sector facilities? (If a method is not intended to be offered in public sector facilities, please indicate that stockouts are not applicable (choose \"N/A\" from the dropdown list).)"}]
[null,"a. Combined oral contraceptives",null,null,null,null,"No",null,null,{"$f":"G133","v":"No"},null,null,null,null,null,null,null,null,null,null,null,null,null,null,{"$f":"B133","v":"a. Combined oral contraceptives"}]
[null,"b. Progestin-only pills",null,null,null,null,"No",null,null,"No",null,null,null,null,null,null,null,null,null,null,null,null,null,null,"b. Progestin-only pills"]
[null,"c. Hormonal injections",null,null,null,null,"No",null,null,"No",null,null,null,null,null,null,null,null,null,null,null,null,null,null,"c. Hormonal injections"]
[null,"d. Hormonal implants",null,null,null,null,"N/A",null,null,"N/A",null,null,null,null,null,null,null,null,null,null,null,null,null,null,"d. Hormonal implants"]
[null,"e. Intrauterine devices (IUDs)",null,null,null,null,"No",null,null,"No",null,null,null,null,null,null,null,null,null,null,null,null,null,null,"e. Intrauterine devices (IUDs)"]
[null,"f. Male condoms",null,null,null,null,"No",null,null,"No",null,null,null,null,null,null,null,null,null,null,null,null,null,null,"f. Male condoms"]
[null,"g. Female condoms",null,null,null,null,"N/A",null,null,"N/A",null,null,null,null,null,null,null,null,null,null,null,null,null,null,"g. Female condoms"]
[null,"h. Emergency contraceptive pills",null,null,null,null,"N/A",null,null,"N/A",null,null,null,null,null,null,null,null,null,null,null,null,null,null,"h. Emergency contraceptive pills"]
[null,"i. CycleBeads",null,null,null,null,"N/A",null,null,"N/A",null,null,null,null,null,null,null,null,null,null,null,null,null,null,"i. CycleBeads"]
[null,"j. Time period\n(mm/yy - mm/yy) (for example, 1/10-12/10) ",null,null,null,"01/10-12/10",null,null,null,null,null,null,null,null,null,null,{"$f":"F142","v":"01/10-12/10"},{"$f":"B142","v":"j. Time period\n(mm/yy - mm/yy) (for example, 1/10-12/10) "}]
[null,"k. Data source\n(for example: Procurement Planning and Monitoring Report, Logistics Management Information System, periodic physical inventory, warehouse reports)",null,null,null,"Central Warehouse MOH reports",null,null,null,null,null,null,null,null,null,null,{"$f":"F143","v":"Central Warehouse MOH reports"},{"$f":"B143","v":"k. Data source\n(for example: Procurement Planning and Monitoring Report, Logistics Management Information System, periodic physical inventory, warehouse reports)"}]
["E3. Are stockouts a large problem in your country at the following levels? (i.e., Are they common or do they tend to last for a long time?)\n\n"]
[null,"a. service delivery point level (i.e., public sector health facilities)",null,null,null,null,"No",null,null,{"$f":"G145","v":"No"},null,null,null,null,null,null,null,null,null,null,null,null,null,null,{"$f":"B145","v":"a. service delivery point level (i.e., public sector health facilities)"}]
[null,"b. central level (i.e., central level warehouse for the public sector)",null,null,null,null,"No",null,null,{"$f":"G146","v":"No"},null,null,null,null,null,null,null,null,null,null,null,null,null,null,{"$f":"B146","v":"b. central level (i.e., central level warehouse for the public sector)"}]
["F. Please note any overall comments about challenges and/or successes with contraceptive security in your country.",null,null,"Government funds should be allocated to a specialized account for contraceptives and reproductive health commodities. PROMESE - CAL (Centro Apoyo Logistico) should be involved in purchasing and distribution processes in order to ensure lower costs and increase efficiency. Affiliation initiatives, framed into the 87-01 Law of Social Security of Dominican Republic, should be promoted among users. This law involves the National Health Insurance (Seguro Nacional de Salud - Senasa) being the unique service provider for the subsidized population. Currently about 10% of the poor population is affiliated with the system, and theoretically contraceptive commodities should be financed by resources generated by the Basic Health Insurance Plan (Plan Basico de Salud) already implemented. As the affiliation rate consistently grows, fewer internal resources from the MOH will be allocated to these supplies, and financing will be transferred to the National Health Insurance.",null,null,null,null,null,null,{"$f":"A147","v":"F. Please note any overall comments about challenges and/or successes with contraceptive security in your country."},null,null,null,{"$f":"D147","v":"Government funds should be allocated to a specialized account for contraceptives and reproductive health commodities. PROMESE - CAL (Centro Apoyo Logistico) should be involved in purchasing and distribution processes in order to ensure lower costs and increase efficiency. Affiliation initiatives, framed into the 87-01 Law of Social Security of Dominican Republic, should be promoted among users. This law involves the National Health Insurance (Seguro Nacional de Salud - Senasa) being the unique service provider for the subsidized population. Currently about 10% of the poor population is affiliated with the system, and theoretically contraceptive commodities should be financed by resources generated by the Basic Health Insurance Plan (Plan Basico de Salud) already implemented. As the affiliation rate consistently grows, fewer internal resources from the MOH will be allocated to these supplies, and financing will be transferred to the National Health Insurance."}]

{"sheet":"El Salvador 2011","index":14,"n_rows":147,"n_cols":25,"rows_kept":147,"cut":false,"hidden":false,"merged":[[141,1,141,4],[141,5,141,7],[142,1,142,4],[142,5,142,7],[143,0,143,7],[144,1,144,5],[144,6,144,7],[147,0,147,7],[148,0,150,7],[145,1,145,5],[145,6,145,7],[146,0,146,2],[146,3,146,7],[136,1,136,5],[136,6,136,7],[137,1,137,5],[137,6,137,7],[138,1,138,5],[138,6,138,7],[139,1,139,5],[139,6,139,7],[140,1,140,5],[140,6,140,7],[131,0,131,7],[132,1,132,5],[132,6,132,7],[133,1,133,5],[133,6,133,7],[134,1,134,5],[134,6,134,7],[135,1,135,5],[135,6,135,7],[120,0,120,2],[120,3,120,7],[121,0,121,2],[121,3,121,7],[129,0,129,6],[130,0,130,5],[130,6,130,7],[122,0,122,7],[123,1,123,4],[123,5,123,7],[115,1,115,5],[115,6,115,7],[116,1,116,5],[116,6,116,7],[117,1,117,5],[117,6,117,7],[118,2,118,4],[118,5,118,7],[119,0,119,4],[119,5,119,7],[110,1,110,5],[110,6,110,7],[111,1,111,5],[111,6,111,7],[112,1,112,5],[112,6,112,7],[113,1,113,5],[113,6,113,7],[114,1,114,5],[114,6,114,7],[104,1,104,5],[104,6,104,7],[105,1,105,5],[105,6,105,7],[106,3,106,7],[107,0,107,7],[108,1,108,5],[108,6,108,7],[109,1,109,5],[109,6,109,7],[98,1,98,2],[98,4,98,6],[99,1,99,2],[99,4,99,6],[100,1,100,2],[100,4,100,6],[101,0,101,7],[102,0,102,7],[103,1,103,5],[103,6,103,7],[94,2,94,3],[94,4,94,5],[94,6,94,7],[95,2,95,3],[95,4,95,5],[95,6,95,7],[96,0,96,7],[97,0,97,2],[97,4,97,6],[88,0,88,6],[89,1,89,2],[89,3,89,7],[90,0,90,6],[91,1,91,2],[92,1,92,3],[92,4,92,5],[92,6,92,7],[93,2,93,3],[93,4,93,5],[93,6,93,7],[83,0,83,4],[83,5,83,7],[84,1,84,3],[84,4,84,7],[85,1,85,3],[85,4,85,7],[86,0,86,6],[87,1,87,2],[87,3,87,7],[76,1,76,2],[76,3,76,4],[77,0,77,2],[77,3,77,7],[78,0,78,6],[79,0,79,6],[80,0,80,2],[81,0,82,0],[81,1,81,2],[81,3,81,4],[81,6,81,7],[82,3,82,4],[82,6,82,7],[71,1,71,2],[71,3,71,4],[72,1,72,2],[72,3,72,4],[73,1,73,2],[73,3,73,4],[74,1,74,2],[74,3,74,4],[75,1,75,2],[75,3,75,4],[66,1,66,2],[66,3,66,4],[67,1,67,2],[67,3,67,4],[68,1,68,2],[68,3,68,4],[69,1,69,2],[69,3,69,4],[70,1,70,2],[70,3,70,4],[60,2,60,4],[60,5,60,7],[61,0,61,2],[61,3,61,7],[62,0,62,6],[63,0,63,7],[64,0,64,2],[64,3,64,4],[65,1,65,2],[65,3,65,4],[54,0,54,4],[54,6,54,7],[55,0,55,4],[55,6,55,7],[56,0,56,4],[56,6,56,7],[58,0,58,4],[58,5,58,7],[59,1,59,4],[59,5,59,7],[39,1,39,2],[40,3,40,7],[41,1,41,2],[49,1,49,2],[50,1,50,2],[51,1,51,2],[53,0,53,7],[42,3,42,7],[43,1,43,2],[45,0,45,7],[46,1,46,2],[47,1,47,2],[48,3,48,7],[30,0,30,6],[31,0,31,6],[32,0,32,7],[33,1,33,3],[34,1,34,3],[35,0,35,7],[36,0,36,6],[37,0,37,7],[38,1,38,2],[24,0,24,6],[25,0,25,2],[26,0,26,6],[27,0,27,2],[27,3,27,4],[28,0,28,5],[28,6,28,7],[29,0,29,3],[29,6,29,7],[19,1,19,2],[19,5,19,7],[20,1,20,2],[20,5,20,7],[21,1,21,2],[21,5,21,7],[22,1,22,2],[22,5,22,7],[23,0,23,6],[14,1,14,2],[14,5,14,7],[15,1,15,2],[15,5,15,7],[16,1,16,2],[16,5,16,7],[17,1,17,2],[17,5,17,7],[18,1,18,2],[18,5,18,7],[9,0,9,7],[10,0,10,6],[11,0,11,6],[12,1,12,2],[12,3,12,7],[8,0,8,7],[7,0,7,2],[13,0,13,2],[13,3,13,7],[4,0,4,2],[5,0,5,2],[0,0,0,7],[1,0,1,2],[1,3,1,4],[2,0,2,7],[3,3,3,4],[3,5,3,7],[7,3,7,5],[7,6,7,7],[127,1,127,5],[127,6,127,7],[128,1,128,2],[128,3,128,7],[124,1,124,5],[124,6,124,7],[125,1,125,5],[125,6,125,7],[126,1,126,5],[126,6,126,7]]}
[null,null,null,null,null,null,null,null,"Columns I-Y are meant to be hidden. They exist because they allow for the dropdown list options. They also allow for merged cells to autofit properly in terms of row height. This should work if all columns remain at their correct widths.","g-h",null,"a-e merged","E-F merged","e-h","0 times",null,null,"The government (e.g., Central Medical Stores, MOH logistics unit, MOH procurement unit)",null,null,null,null,"Yes","a-h","January"]
[null,null,null,null,null,null,null,null,null,null,"A-c",null,null,null,"1-2 times","b-d merged",null,"Third-party agent (e.g., UNFPA, Crown Agents)","d-e merged","d-f merged","e-f merged","e-g merged","No",null,"February"]
[null,null,null,null,null,null,null,null,null,null,null,null,null,null,"3-5 times",null,null,"The government and a third-party agent",null,null,null,null,null,null,"March"]
[null,null,null,null,null,null,null,null,null,null,null,null,null,null,"6 or more times",null,null,"Other",null,null,null,null,"N/A",null,"April"]
["To jump to the Introduction sheet, click here.",null,null,null,null,null,null,null,null,null,null,null,null,null,null,null,null,null,null,null,null,null,"Don't know",null,"May"]
[null,null,null,null,null,null,null,null,null,null,null,null,null,null,"N/A",null,null,"N/A",null,null,null,null,null,null,"June"]
["Contraceptive Security (CS) Indicators 2011 Data ",null,null,null,null,null,null,null,null,null,null,null,null,null,"Don't know",null,null,"Don't know",null,null,null,null,null,null,"July"]
["Country: El Salvador",null,null,null,null,null,null,null,null,{"$f":"G8","v":0},{"$f":"A8","v":"Country: El Salvador"},null,null,null,null,"or c-d",null,null,null,{"$f":"D8","v":0},null,null,null,null,"August"]
["The CS Indicators are presented in the following sections:\n\n               A. leadership & cooordination               B. finance & procurement               C. commodities               D. policies               E. supply chain",null,null,null,null,null,null,null,null,{"$f":"G9","v":0},{"$f":"A9","v":"The CS Indicators are presented in the following sections:\n\n               A. leadership & cooordination               B. finance & procurement               C. commodities               D. policies               E. supply chain"},null,null,null,"d-h",null,"f-h merged",null,{"$f":"D9","v":0},null,null,null,null,null,"September"]
["\nNotes:\n  -  Respondents' answers are indicated in the white spaces. \n  -  N/A = not applicable. Don't know = the respondent either indicated they did not know or left the answer blank.\n  -  Some questions required respondents to choose from a dropdown list of options; in these cases the dropdown arrow will \n     appear when you click on the cell. \n  -  There may be a few inserted comments. (If you cannot already see them, click on Review tab - Comments group - Show All Comments in newer \n       versions of Excel or View - Comments in older versions of Excel.)\n  -  If the answer is cut off, you can either manually adjust the row height or autofit the row height in order to see the whole \n     response. (To autofit the row height, select the answer(s) and go to Home tab - Cells group - Format - Autofit Row Height in newer versions of Excel or \n      Format - Row - Autofit in older versions of Excel.)\n",null,null,null,null,null,null,null,"a-g",null,null,null,null,null,null,null,null,"a-e merged",null,null,null,null,null,{"$f":"A10","v":"\nNotes:\n  -  Respondents' answers are indicated in the white spaces. \n  -  N/A = not applicable. Don't know = the respondent either indicated they did not know or left the answer blank.\n  -  Some questions required respondents to choose from a dropdown list of options; in these cases the dropdown arrow will \n     appear when you click on the cell. \n  -  There may be a few inserted comments. (If you cannot already see them, click on Review tab - Comments group - Show All Comments in newer \n       versions of Excel or View - Comments in older versions of Excel.)\n  -  If the answer is cut off, you can either manually adjust the row height or autofit the row height in order to see the whole \n     response. (To autofit the row height, select the answer(s) and go to Home tab - Cells group - Format - Autofit Row Height in newer versions of Excel or \n      Format - Row - Autofit in older versions of Excel.)\n"},"October"]
["A. Leadership and Coordination",null,null,null,null,null,null,null,null,null,null,null,null,null,null,null,null,null,null,null,null,null,null,null,"November"]
["A1. Is there a national committee that works on contraceptive security? (Please select from the dropdown list.)\n(Committee should have some aspect of contraceptive security as part of its Terms of Reference, even if it is known by a different name, for example: Family Planning, Reproductive Health, Maternal Mortality, Essential Medicine Committee, etc.)  ",null,null,null,null,null,null,"Yes",{"$f":"A12","v":"A1. Is there a national committee that works on contraceptive security? (Please select from the dropdown list.)\n(Committee should have some aspect of contraceptive security as part of its Terms of Reference, even if it is known by a different name, for example: Family Planning, Reproductive Health, Maternal Mortality, Essential Medicine Committee, etc.)  "},null,null,null,null,null,null,null,null,null,null,null,null,null,null,null,"December"]
[null,"a. What is the name of the committee?",null,"Contraceptive Security Committee",null,null,null,null,null,null,{"$f":"B13","v":"a. What is the name of the committee?"},{"$f":"D13","v":"Contraceptive Security Committee"},null,null,{"$f":"D13","v":"Contraceptive Security Committee"}]
["A2. Are the following organizations represented on the committee?",null,null,"(Y/N \ndropdown)",null,null,null,null,null,null,{"$f":"A14","v":"A2. Are the following organizations represented on the committee?"},null,null,null,null,null,null,null,null,null,null,null,null,null,"Don't know"]
[null,"a. Social marketing",null,"Yes","If yes, specify name(s) of organizations","Salvadoran Demographic Association (ADS)",null,null,null,null,{"$f":"B15","v":"a. Social marketing"},null,null,null,null,null,{"$f":"F15","v":"Salvadoran Demographic Association (ADS)"}]
[null,"b. NGO (for example: service delivery, advocacy, Planned Parenthood affiliate, Marie Stopes affiliate, faith-based organizations, etc.)",null,"Yes","If yes, specify name(s) of organizations","Salvadoran Demographic Association (ADS)",null,null,null,null,"b. NGO (for example: service delivery, advocacy, Planned Parenthood affiliate, Marie Stopes affiliate, faith-based organizations, etc.)",null,null,null,null,null,"Salvadoran Demographic Association (ADS)"]
[null,"c. Commercial sector (for example: pharmacy associations, manufacturers, etc.)",null,"No","If yes, specify name(s) of organizations",null,null,null,null,null,"c. Commercial sector (for example: pharmacy associations, manufacturers, etc.)",null,null,null,null,null,0]
[null,"d. Donors",null,"Yes","If yes, specify name(s) of donors","USAID",null,null,null,null,"d. Donors",null,null,null,null,null,"USAID"]
[null,"e. UN agencies",null,"Yes","If yes, specify name(s) of agencies","UNFPA",null,null,null,null,"e. UN agencies",null,null,null,null,null,"UNFPA"]
[null,"f. Ministry of Health (for example: logistics, reproductive health, family planning, maternal and child health, HIV/AIDS, pharmacy units, etc.)",null,"Yes","If yes, specify name(s) of units","Reproductive Health Program, Financial Unit, Supplies & Medicines Unit, Planning Unit",null,null,null,null,"f. Ministry of Health (for example: logistics, reproductive health, family planning, maternal and child health, HIV/AIDS, pharmacy units, etc.)",null,null,null,null,null,"Reproductive Health Program, Financial Unit, Supplies & Medicines Unit, Planning Unit"]
[null,"g. Central Medical Store or Central Warehouse",null,"No","If yes, specify",null,null,null,null,null,"g. Central Medical Store or Central Warehouse",null,null,null,null,null,0]
[null,"h. Ministry of Finance or Ministry of Planning ",null,"No","If yes, specify",null,null,null,null,null,"h. Ministry of Finance or Ministry of Planning ",null,null,null,null,null,0]
[null,"i. Other (for example: partners)",null,"No","If yes, specify",null,null,null,null,null,"i. Other (for example: partners)",null,null,null,null,null,0]
["A3. How many times did the committee meet during the last year? (0, 1-2, 3-5, or 6+)  (Please select from the dropdown.)",null,null,null,null,null,null,"1-2 times",{"$f":"A24","v":"A3. How many times did the committee meet during the last year? (0, 1-2, 3-5, or 6+)  (Please select from the dropdown.)"}]
["A4. Does the committee have legal status?  (Please select from the dropdown.)                                  ",null,null,null,null,null,null,"Yes",{"$f":"A25","v":"A4. Does the committee have legal status?  (Please select from the dropdown.)                                  "}]
["A5. Is there a Contraceptive Security \"champion\"? (someone who consistently brings up and advocates for contraceptive supplies)",null,null,"Yes","If yes, specify person's organization","MOH","Specify person's job title","Family Planning Coordinator",null,null,{"$f":"A26","v":"A5. Is there a Contraceptive Security \"champion\"? (someone who consistently brings up and advocates for contraceptive supplies)"}]
["B. Finance and Procurement (Capital)"]
["B1. What is the timeline of the country's fiscal year?",null,null,"Beginning month",null,"January","Ending month","December",null,null,{"$f":"B28","v":0}]
["B2. What was the estimated dollar value of contraceptives needed to be procured for the public sector for the most recent complete fiscal year? (in USD currency)\n(for example, to cover the needs for the '09-'10 fiscal year)",null,null,null,null,null,1160000,null,null,{"$f":"G29","v":1160000},null,null,{"$f":"E29","v":0},null,null,null,null,null,null,null,null,null,null,null,{"$f":"A29","v":"B2. What was the estimated dollar value of contraceptives needed to be procured for the public sector for the most recent complete fiscal year? (in USD currency)\n(for example, to cover the needs for the '09-'10 fiscal year)"}]
["B3. When was the last forecast/quantification conducted? (mm/yy)",null,null,null,"04/10","Who conducted it? (Specify organization.)","Ministry of Health",null,null,{"$f":"G30","v":"Ministry of Health"},null,null,{"$f":"E30","v":"04/10"},null,null,null,null,null,null,null,null,null,null,null,{"$f":"A30","v":"B3. When was the last forecast/quantification conducted? (mm/yy)"}]
["B4. Is there a government budget line item for the procurement of contraceptives?  (Please select from the dropdown list.)",null,null,null,null,null,null,"Yes",{"$f":"A31","v":"B4. Is there a government budget line item for the procurement of contraceptives?  (Please select from the dropdown list.)"}]
["B5. Were government funds allocated for contraceptive procurement for the public sector in the most recent complete fiscal year? (This question refers to funds planned to be spent on contraceptives, whether or not they ended up being spent.) \n\n(Government funds include internally generated funds, basket funds, World Bank credits or loans, and other funds donors gave to the government for their use.) \n",null,null,null,null,null,null,"Yes",{"$f":"A32","v":"B5. Were government funds allocated for contraceptive procurement for the public sector in the most recent complete fiscal year? (This question refers to funds planned to be spent on contraceptives, whether or not they ended up being spent.) \n\n(Government funds include internally generated funds, basket funds, World Bank credits or loans, and other funds donors gave to the government for their use.) \n"}]
["B6. Please complete the table below regarding government allocations for contraceptive procurement.",null,null,null,null,null,null,null,null,null,null,null,null,null,null,null,null,null,null,null,null,null,null,{"$f":"A33","v":"B6. Please complete the table below regarding government allocations for contraceptive procurement."}]
[null,null,null,null,"Amount allocated \n(in USD)","Time period during which allocations were supposed to be spent \n(mm/yy-mm/yy)\n(should ideally be the most recent\ncomplete fiscal year ['09-'10])","Data source \n(for example: Ministry records)","Comments",null,null,{"$f":"A34","v":0}]
[null,"Government funds allocated for contraceptive procurement\n(funds originally designated for contraceptives, whether or not they ended up being spent on them)",null,null,655000,"01/10-12/10","Family Planning Coodinator","A budget increase of $109,000 was allocated. This amount is included in the total sum allocated.  ",null,null,{"$f":"#REF!","v":{"$error":"#REF!"}}]
[]
["B7. Were government funds spent on contraceptive procurement for the public sector in the most recent complete fiscal year? \n(Government funds include internally generated funds, basket funds, World Bank credits or loans, and other funds donors gave to the government for their use.)",null,null,null,null,null,null,"Yes",{"$f":"A37","v":"B7. Were government funds spent on contraceptive procurement for the public sector in the most recent complete fiscal year? \n(Government funds include internally generated funds, basket funds, World Bank credits or loans, and other funds donors gave to the government for their use.)"}]
["B8. Please complete the table below to indicate government expenditures on contraceptive procurement, by source, in the most recent complete fiscal year. \n(This is how much was spent on contraceptive procurement (not what was allocated). How much of this spending was provided from each source?)",null,null,null,null,null,null,null,null,null,null,null,null,null,null,null,null,null,null,null,null,null,null,{"$f":"A38","v":"B8. Please complete the table below to indicate government expenditures on contraceptive procurement, by source, in the most recent complete fiscal year. \n(This is how much was spent on contraceptive procurement (not what was allocated). How much of this spending was provided from each source?)"}]
[null,"Source of government funds spent on contraceptive procurement for the public sector",null,"Was this source used?\n(Y/N)","Amount spent \n(in USD)","Time period (mm/yy-mm/yy)\n(should be the same for all sources of funds & ideally be the most recent\ncomplete fiscal year ['09-'10])","Data source \n(for example: Contraceptive Procurement Table, PipeLine, etc.)","Comments",null,null,{"$f":"A39","v":0}]
[null,"a. Internally generated funds spent on contraceptive procurement",null,"Yes",675674,"01/10-12/10","MOH, PipeLine Procurement Table"," ",null,null,{"$f":"B40","v":"a. Internally generated funds spent on contraceptive procurement"}]
[null,null,"i. Specify source(s) of internally generated funds spent (for example, from taxes or user fees)","Government of El Salvador budget, only",null,null,null,null,null,null,{"$f":"C41","v":"i. Specify source(s) of internally generated funds spent (for example, from taxes or user fees)"},null,null,null,{"$f":"D41","v":"Government of El Salvador budget, only"}]
[null,"b. Total of all other government funds spent on contraceptive procurement (basket funds, World Bank credits or loans, and other funds donors gave to the government [e.g., direct budget support])",null,"No",0,"01/10-12/10",null,null,null,null,{"$f":"B42","v":"b. Total of all other government funds spent on contraceptive procurement (basket funds, World Bank credits or loans, and other funds donors gave to the government [e.g., direct budget support])"}]
[null,null,"i. Specify source(s) of other government funds spent (for example: basket funding or specific donor)","N/A",null,null,null,null,null,null,{"$f":"C43","v":"i. Specify source(s) of other government funds spent (for example: basket funding or specific donor)"},null,null,null,{"$f":"D43","v":"N/A"}]
[null,"c. TOTAL government funds spent on contraceptive procurement\nThis will auto-calculate.  (It will sum a & b above.)",null,null,{"$f":"E40+E42","v":675674},null,null,"One single purchase per year. Purchase through UNFPA as per procurement table and allocated funds. ",null,null,{"$f":"B44","v":"c. TOTAL government funds spent on contraceptive procurement\nThis will auto-calculate.  (It will sum a & b above.)"}]
[null,null,null,null,null,null,null,null,null,null,{"$f":"A45","v":0}]
["B9. Please complete the table below to indicate donor expenditures on contraceptive procurement in the most recent complete fiscal year.\n",null,null,null,null,null,null,null,null,null,null,null,null,null,null,null,null,null,null,null,null,null,null,{"$f":"A46","v":"B9. Please complete the table below to indicate donor expenditures on contraceptive procurement in the most recent complete fiscal year.\n"}]
["\n","Source of donations and donor funds spent on contraceptive procurement for the public sector",null,"Was this a source?\n(Y/N)","Amount of money spent on these procurements \n(in USD)","Time period (mm/yy-mm/yy)\n(should be the same for all sources of funds & ideally be the most recent\ncomplete fiscal year ['09-'10])","Data source \n(for example:  Donor records, Contraceptive Procurement Table, PipeLine, RHInterchange, etc.","Comments",null,null,{"$f":"A47","v":"\n"}]
[null,"a. In-kind donations of contraceptives",null,"No",0,"01/10-12/10",null,null,null,null,{"$f":"B48","v":"a. In-kind donations of contraceptives"}]
[null,null,"i. Specify source(s) of in-kind donations ","N/A",null,null,null,null,null,null,{"$f":"C49","v":"i. Specify source(s) of in-kind donations "},null,null,null,{"$f":"D49","v":"N/A"}]
[null,"b. Global Fund donations used to procure condoms",null,"Yes",24300,"08/10"," MOH Table",null,null,null,{"$f":"B50","v":"b. Global Fund donations used to procure condoms"}]
[null,"c. Global Fund donations used to procure contraceptives besides condoms",null,"No",0,"01/10-12/10",null,null,null,null,{"$f":"B51","v":"c. Global Fund donations used to procure contraceptives besides condoms"}]
[null,"d. TOTAL value of in-kind donations and Global Fund donations spent on contraceptive procurement\nThis will auto-calculate.  (It will sum a-c above.)",null,null,{"$f":"E48+E50+E51","v":24300},null,null,null,null,null,{"$f":"B52","v":"d. TOTAL value of in-kind donations and Global Fund donations spent on contraceptive procurement\nThis will auto-calculate.  (It will sum a-c above.)"}]
[null,null,null,null,null,null,null,null,null,null,{"$f":"A53","v":0}]
["The answers to B10 and B11 should calculate automatically based on the information you provided. Please review the answers to ensure they make sense to you, and if you have additional information to add, please note it in the comments boxes.\n\nIf the answers do not calculate automatically, please provide any relevant information you may have in the comments boxes.\n",null,null,null,null,null,null,null,null,null,null,null,null,null,null,null,null,null,null,null,null,null,null,{"$f":"A54","v":"The answers to B10 and B11 should calculate automatically based on the information you provided. Please review the answers to ensure they make sense to you, and if you have additional information to add, please note it in the comments boxes.\n\nIf the answers do not calculate automatically, please provide any relevant information you may have in the comments boxes.\n"}]
["B10. Government share of funds spent on contraceptive procurement for the public sector - \nOf the total amount spent on contraceptives for the public sector in the most recent complete fiscal year (including government and donor funds), what percent was covered by government funds (including internally generated funds, basket funds, World Bank credits or loans, and other funds given to the government)? \n\nThis will auto-calculate. (It contains the following formula: Total government spending (Question B8c) / Grand total of all spending for public sector contraceptives from the government and donors (Questions B8c+B9d))",null,null,null,null,{"$f":"E44/(E44+E52)","v":0.96528442485006583},"Verified percentage and is correct.",null,null,{"$f":"G55","v":"Verified percentage and is correct."},null,null,null,null,null,null,null,{"$f":"A55","v":"B10. Government share of funds spent on contraceptive procurement for the public sector - \nOf the total amount spent on contraceptives for the public sector in the most recent complete fiscal year (including government and donor funds), what percent was covered by government funds (including internally generated funds, basket funds, World Bank credits or loans, and other funds given to the government)? \n\nThis will auto-calculate. (It contains the following formula: Total government spending (Question B8c) / Grand total of all spending for public sector contraceptives from the government and donors (Questions B8c+B9d))"}]
["B11. Total expenditures on public sector contraceptives as percent of amount that needed to be procured -\nOf the estimated value of the contraceptives needed to be procured for the public sector for the most recent complete fiscal year, what percent was provided by any source (whether government or donor)? \n\nThis will auto-calculate. (It contains the following formula: Grand total of all spending for public sector contraceptives from the government and donors (Questions B8c+B9d) / Value of estimated need for procurement (Question B2))",null,null,null,null,{"$f":"(E44+E52)/G29","v":0.60342586206896554},"Verified percentage and is correct. However, the amount expended is sufficient to cover historical consumption but not sufficient to cover the cost of adding new products (e.g., monthly injectables).",null,null,{"$f":"G56","v":"Verified percentage and is correct. However, the amount expended is sufficient to cover historical consumption but not sufficient to cover the cost of adding new products (e.g., monthly injectables)."},null,null,null,null,null,null,null,{"$f":"A56","v":"B11. Total expenditures on public sector contraceptives as percent of amount that needed to be procured -\nOf the estimated value of the contraceptives needed to be procured for the public sector for the most recent complete fiscal year, what percent was provided by any source (whether government or donor)? \n\nThis will auto-calculate. (It contains the following formula: Grand total of all spending for public sector contraceptives from the government and donors (Questions B8c+B9d) / Value of estimated need for procurement (Question B2))"}]
["B12. If B11 did not calculate automatically, please answer the following question:\nWas there a funding gap for the public sector in the last complete fiscal year (e.g., 09-'10 fiscal year)?\n(Please select from the dropdown list.)",null,null,null,null,"Yes","The amount expended is sufficient to cover historical consumption but not sufficient to cover the cost of adding new products (e.g., monthly injectables).",null,null,{"$f":"G57","v":"The amount expended is sufficient to cover historical consumption but not sufficient to cover the cost of adding new products (e.g., monthly injectables)."},null,null,null,null,null,null,null,{"$f":"A57","v":"B12. If B11 did not calculate automatically, please answer the following question:\nWas there a funding gap for the public sector in the last complete fiscal year (e.g., 09-'10 fiscal year)?\n(Please select from the dropdown list.)"}]
[null,null,null,null,null,null,null,null,null,null,{"$f":"A58","v":0}]
["B13. If the government financed any contraceptive procurement in the most recent complete fiscal year, which entity conducted the procurement(s)? (Please select from the dropdown.)",null,null,null,null,"Third-party agent (e.g., UNFPA, Crown Agents)",null,null,null,null,null,null,null,null,null,null,{"$f":"F59","v":"Third-party agent (e.g., UNFPA, Crown Agents)"},{"$f":"A59","v":"B13. If the government financed any contraceptive procurement in the most recent complete fiscal year, which entity conducted the procurement(s)? (Please select from the dropdown.)"}]
[null,"a. Specify entity",null,null,null,"UNFPA",null,null,null,null,null,null,{"$f":"E60","v":0},null,null,null,{"$f":"F60","v":"UNFPA"},{"$f":"B60","v":"a. Specify entity"}]
[null,null,"i. Is this a parastatal?",null,null,"No",null,null,null,null,null,null,null,null,null,null,{"$f":"F61","v":"No"},{"$f":"C61","v":"i. Is this a parastatal?"}]
["B14. Please note any additional comments about finance and procurement.\n",null,null,null,null,null,null,null,null,null,{"$f":"A62","v":"B14. Please note any additional comments about finance and procurement.\n"},null,null,null,{"$f":"D62","v":0}]
["C. Commodities"]
["C1. Are the following contraceptive methods offered through the commercial sector, public sector, NGOs, or social marketing? (Please indicate which methods are intended to be offered. This question is not asking whether the method is in stock.) \n(Please select from the dropdown list.)",null,null,null,null,null,null,null,null,null,null,null,null,null,null,null,null,null,null,null,null,null,null,{"$f":"A64","v":"C1. Are the following contraceptive methods offered through the commercial sector, public sector, NGOs, or social marketing? (Please indicate which methods are intended to be offered. This question is not asking whether the method is in stock.) \n(Please select from the dropdown list.)"}]
["Contraceptive Method",null,null,"Commercial Sector",null,"Public Sector","NGO","Social Marketing",null,null,{"$f":"A65","v":"Contraceptive Method"}]
[null,"a. Combined oral contraceptives (estrogen + progestin - for  example, LoFemenol, Microgynon)",null,"Yes",null,"Yes","Yes","Yes",null,null,{"$f":"B66","v":"a. Combined oral contraceptives (estrogen + progestin - for  example, LoFemenol, Microgynon)"}]
[null,"b. Progestin-only pills (for example, Ovrette, Microlut)",null,"Don't know",null,"No","Don't know","Don't know",null,null,{"$f":"B67","v":"b. Progestin-only pills (for example, Ovrette, Microlut)"}]
[null,"c. Hormonal injections (for example, DepoProvera, Noristerat)",null,"Yes",null,"Yes","Yes","Yes",null,null,"c. Hormonal injections (for example, DepoProvera, Noristerat)"]
[null,"d. Hormonal implants (for example, Jadelle, Implanon)",null,"Yes",null,"Yes","Yes","Yes",null,null,"d. Hormonal implants (for example, Jadelle, Implanon)"]
[null,"e. Intrauterine devices (IUDs) (for example, Optima Copper T)",null,"Yes",null,"Yes","Yes","Yes",null,null,"e. Intrauterine devices (IUDs) (for example, Optima Copper T)"]
[null,"f. Male condoms",null,"Yes",null,"Yes","Yes","Yes",null,null,"f. Male condoms"]
[null,"g. Female condoms",null,"Yes",null,"Yes","Don't know","Don't know",null,null,"g. Female condoms"]
[null,"h. Emergency contraceptive pills (for example, Postinor)",null,"Yes",null,"Yes","Yes","No",null,null,"h. Emergency contraceptive pills (for example, Postinor)"]
[null,"i. Long-acting permanent method for males (vasectomy)",null,"Yes",null,"Yes","Yes","No",null,null,"i. Long-acting permanent method for males (vasectomy)"]
[null,"j. Long-acting permanent method for females (tubal ligation)",null,"Yes",null,"Yes","Yes","No",null,null,"j. Long-acting permanent method for females (tubal ligation)"]
[null,"k. CycleBeads",null,"No",null,"Yes","Yes","No",null,null,"k. CycleBeads"]
[null,"l. Other contraceptive methods - specify \n(Please provide the name of the other contraceptive(s) offered, by sector.)",null,null,null,null,null,null,null,null,"l. Other contraceptive methods - specify \n(Please provide the name of the other contraceptive(s) offered, by sector.)"]
["C2. Please note any comments about the commodities offered.",null,null,null,null,null,null,null,null,null,{"$f":"A78","v":"C2. Please note any comments about the commodities offered."},null,null,null,{"$f":"D78","v":0}]
["D. Policies (Commitment)"]
["D1. Is there a contraceptive security or reproductive health commodity security strategy or is contraceptive security explicitly included in a country strategy? (Please select from the dropdown list.)",null,null,null,null,null,null,"No",{"$f":"A80","v":"D1. Is there a contraceptive security or reproductive health commodity security strategy or is contraceptive security explicitly included in a country strategy? (Please select from the dropdown list.)"}]
["IF NO, SKIP TO QUESTION D2."]
[null,"Strategy name",null,"Years Covered (including strategy updates)",null,"Is the strategy formally approved by the Ministry?","Is the contraceptive security strategy being implemented?",null,null,{"$f":"G82","v":"Is the contraceptive security strategy being implemented?"},{"$f":"B82","v":"Strategy name"},null,{"$f":"E82","v":0},null,null,null,null,null,{"$f":"D82","v":"Years Covered (including strategy updates)"}]
[null,"a",null,null,null,null,null,null,null,{"$f":"G83","v":0},{"$f":"B83","v":"a"},null,{"$f":"E83","v":0},null,null,null,null,null,{"$f":"D83","v":0}]
["D2. Are any family planning commodities subject to duties, import taxes, or other fees?",null,null,null,null,"Yes",null,null,null,null,null,null,null,null,null,null,{"$f":"F84","v":"Yes"},{"$f":"A84","v":"D2. Are any family planning commodities subject to duties, import taxes, or other fees?"}]
[null,"a. If yes, for which sectors (public, NGO, social marketing, commercial)?",null,null,"All sectors",null,null,null,null,null,null,null,{"$f":"E85","v":"All sectors"},{"$f":"E85","v":"All sectors"},null,null,null,{"$f":"B85","v":"a. If yes, for which sectors (public, NGO, social marketing, commercial)?"}]
[null,"b. If yes, how much are the duties, taxes, or fees?",null,null,"VAT 13% on the purchase price, customs clearance fee of 3%, other -  5 % of overhead charged by the Purchasing Agent (UNFPA or other) on total amount of purchase",null,null,null,null,null,null,null,null,{"$f":"E86","v":"VAT 13% on the purchase price, customs clearance fee of 3%, other -  5 % of overhead charged by the Purchasing Agent (UNFPA or other) on total amount of purchase"},null,null,null,{"$f":"B86","v":"b. If yes, how much are the duties, taxes, or fees?"}]
["D3. Are there policies that hinder the ability of the private sector (commercial sector, NGOs, or social marketing) to provide contraceptive methods (for example: price controls, distribution limitations, taxes/duties, advertising bans, etc.)?",null,null,null,null,null,null,"No",{"$f":"A87","v":"D3. Are there policies that hinder the ability of the private sector (commercial sector, NGOs, or social marketing) to provide contraceptive methods (for example: price controls, distribution limitations, taxes/duties, advertising bans, etc.)?"}]
[null,"a. If yes, describe the policies.",null,"N/A",null,null,null,null,null,null,{"$f":"B88","v":"a. If yes, describe the policies."},null,null,null,{"$f":"D88","v":"N/A"}]
["D4. Are there policies that enable the private sector (commercial sector, NGOs, or social marketing) to provide contraceptive methods?",null,null,null,null,null,null,"Don't know",{"$f":"A89","v":"D4. Are there policies that enable the private sector (commercial sector, NGOs, or social marketing) to provide contraceptive methods?"}]
[null,"a. If yes, describe the policies.",null,"Don't know",null,null,null,null,null,null,{"$f":"B90","v":"a. If yes, describe the policies."},null,null,null,{"$f":"D90","v":"Don't know"}]
["D5. Do policies or regulations exist that restrict who can sell or dispense particular contraceptive methods?\n",null,null,null,null,null,null,"No",{"$f":"A91","v":"D5. Do policies or regulations exist that restrict who can sell or dispense particular contraceptive methods?\n"}]
[null,"Please note any restrictions in the following table."]
[null,"Contraceptive Method(s)",null,null,"Describe any public sector restriction on who is allowed to sell or dispense the method",null,"Describe any private sector restriction on who is allowed to sell or dispense the method",null,null,{"$f":"G93","v":"Describe any private sector restriction on who is allowed to sell or dispense the method"},null,null,null,null,null,{"$f":"B93","v":"Contraceptive Method(s)"},null,null,null,null,{"$f":"E93","v":"Describe any public sector restriction on who is allowed to sell or dispense the method"}]
[null,"a",null,null,null,null,null,null,null,{"$f":"G94","v":0},null,null,{"$f":"E94","v":0},null,null,{"$f":"C94","v":0},null,null,null,null,{"$f":"E94","v":0}]
[null,"b",null,null,null,null,null,null,null,{"$f":"G95","v":0},null,null,{"$f":"E95","v":0},null,null,{"$f":"C95","v":0},null,null,null,null,{"$f":"E95","v":0}]
[null,"c",null,null,null,null,null,null,null,{"$f":"G96","v":0},null,null,{"$f":"E96","v":0},null,null,{"$f":"C96","v":0},null,null,null,null,{"$f":"E96","v":0}]
[null,null,null,null,null,null,null,null,null,null,{"$f":"C97","v":0}]
["D6. Does the country have laws, regulations, or policies that make it difficult for the following sub-populations to access effective family planning services?",null,null,"Y/N","If yes, describe laws/regulations/policies affecting access ",null,null,"Are the rules/policies implemented?",null,null,{"$f":"A98","v":"D6. Does the country have laws, regulations, or policies that make it difficult for the following sub-populations to access effective family planning services?"},null,null,null,null,null,null,null,null,null,null,{"$f":"E98","v":"If yes, describe laws/regulations/policies affecting access "}]
[null,"a. Unmarried people",null,"No",null,null,null,null,null,null,{"$f":"B99","v":"a. Unmarried people"},null,{"$f":"E99","v":0},null,null,null,null,null,null,null,null,{"$f":"E99","v":0}]
[null,"b. Young people",null,"No",null,null,null,null,null,null,{"$f":"B100","v":"b. Young people"},null,{"$f":"E100","v":0},null,null,null,null,null,null,null,null,{"$f":"E100","v":0}]
[null,"c. Other",null,"No",null,null,null,null,null,null,{"$f":"B101","v":"c. Other"},null,{"$f":"E101","v":0},null,null,null,null,null,null,null,null,{"$f":"E101","v":0}]
[null,null,null,null,null,null,null,null,null,null,{"$f":"C102","v":0}]
["D7. Are there charges* to the client in the public sector for family planning:\n*(This question refers to charges by policy, not under-the-table charges.)\n",null,null,null,null,null,null,null,null,null,null,null,null,null,null,null,null,null,null,null,null,null,null,{"$f":"A103","v":"D7. Are there charges* to the client in the public sector for family planning:\n*(This question refers to charges by policy, not under-the-table charges.)\n"}]
[null,"a. Services?",null,null,null,null,"No",null,null,{"$f":"G104","v":"No"},null,null,null,null,null,null,null,null,null,null,null,null,null,null,{"$f":"B104","v":"a. Services?"}]
[null,"b. Commodities?",null,null,null,null,"No",null,null,{"$f":"G105","v":"No"},null,null,null,null,null,null,null,null,null,null,null,null,null,null,{"$f":"B105","v":"b. Commodities?"}]
[null,"c. If yes, are there exemptions for people who cannot afford to pay?",null,null,null,null,"N/A",null,null,{"$f":"G106","v":"N/A"},null,null,null,null,null,null,null,null,null,null,null,null,null,null,{"$f":"B106","v":"c. If yes, are there exemptions for people who cannot afford to pay?"}]
[null,null,"i. If yes, describe the exemptions.","N/A",null,null,null,null,null,null,{"$f":"C107","v":"i. If yes, describe the exemptions."},null,null,null,{"$f":"D107","v":"N/A"}]
["D8. Are the following contraceptives included in the country's National Essential Medicine List (NEML) or other equivalent priority list?",null,null,null,null,null,null,null,null,null,null,null,null,null,null,null,null,null,null,null,null,null,null,{"$f":"A108","v":"D8. Are the following contraceptives included in the country's National Essential Medicine List (NEML) or other equivalent priority list?"}]
[null,"a. Combined oral contraceptives",null,null,null,null,"Yes",null,null,{"$f":"G109","v":"Yes"},null,null,null,null,null,null,null,null,null,null,null,null,null,null,{"$f":"B109","v":"a. Combined oral contraceptives"}]
[null,"b. Progestin-only pills",null,null,null,null,"Yes",null,null,"Yes",null,null,null,null,null,null,null,null,null,null,null,null,null,null,"b. Progestin-only pills"]
[null,"c. Hormonal injections",null,null,null,null,"Yes",null,null,"Yes",null,null,null,null,null,null,null,null,null,null,null,null,null,null,"c. Hormonal injections"]
[null,"d. Hormonal implants",null,null,null,null,"Yes",null,null,"Yes",null,null,null,null,null,null,null,null,null,null,null,null,null,null,"d. Hormonal implants"]
[null,"e. Intrauterine devices (IUDs)",null,null,null,null,"Yes",null,null,"Yes",null,null,null,null,null,null,null,null,null,null,null,null,null,null,"e. Intrauterine devices (IUDs)"]
[null,"f. Male condoms",null,null,null,null,"Yes",null,null,"Yes",null,null,null,null,null,null,null,null,null,null,null,null,null,null,"f. Male condoms"]
[null,"g. Female condoms",null,null,null,null,"No",null,null,"No",null,null,null,null,null,null,null,null,null,null,null,null,null,null,"g. Female condoms"]
[null,"h. Emergency contraceptive pills",null,null,null,null,"No",null,null,"No",null,null,null,null,null,null,null,null,null,null,null,null,null,null,"h. Emergency contraceptive pills"]
[null,"i. CycleBeads",null,null,null,null,"No",null,null,{"$f":"G117","v":"No"},null,null,null,null,null,null,null,null,null,null,null,null,null,null,{"$f":"B117","v":"i. CycleBeads"}]
[null,"j. Any other contraceptive(s)?",null,null,null,null,"No",null,null,"No",null,null,null,null,null,null,null,null,null,null,null,null,null,null,"j. Any other contraceptive(s)?"]
[null,null,"i. Name of other contraceptive(s) on the list(s)",null,null,"N/A",null,null,null,0,null,null,null,null,null,null,null,{"$f":"B119","v":0}]
["D9. What year(s) is the list(s) from?",null,null,null,null,2009,null,null,null,0,null,null,null,null,null,null,null,{"$f":"B120","v":0}]
["D10. Name of the list(s)\n\n\n",null,null,"Official List of Essential Medicines (10th Version) MOH",null,null,null,null,null,null,{"$f":"A121","v":"D10. Name of the list(s)\n\n\n"},null,null,null,{"$f":"D121","v":"Official List of Essential Medicines (10th Version) MOH"}]
["D11. Notes about the list(s)\n\n\n",null,null,null,null,null,null,null,null,null,{"$f":"A122","v":"D11. Notes about the list(s)\n\n\n"},null,null,null,{"$f":"D122","v":0}]
["D12.  Information on country's Poverty Reduction Strategy Paper (PRSP)\n",null,null,null,null,null,null,null,null,null,null,null,null,null,null,null,null,null,null,null,null,null,null,{"$f":"A123","v":"D12.  Information on country's Poverty Reduction Strategy Paper (PRSP)\n"}]
[null,"a. What year is the Poverty Reduction Strategy Paper from? (most recent actual PRSP on IMF's site [not progress or summary report])",null,null,null,"N/A",null,null,null,{"$f":"G124","v":0},null,null,null,null,null,null,null,{"$f":"B124","v":"a. What year is the Poverty Reduction Strategy Paper from? (most recent actual PRSP on IMF's site [not progress or summary report])"}]
[null,"b. Is family planning or reproductive health a priority in the PRSP?",null,null,null,null,"N/A",null,null,{"$f":"G125","v":"N/A"},null,null,null,null,null,null,null,null,null,null,null,null,null,null,{"$f":"B125","v":"b. Is family planning or reproductive health a priority in the PRSP?"}]
[null,"c. Is contraceptive security included in the PRSP?",null,null,null,null,"N/A",null,null,{"$f":"G126","v":"N/A"},null,null,null,null,null,null,null,null,null,null,null,null,null,null,{"$f":"B126","v":"c. Is contraceptive security included in the PRSP?"}]
[null,"d. Is contraceptive prevalence rate (CPR) included as an indicator in the PRSP?",null,null,null,null,"N/A",null,null,{"$f":"G127","v":"N/A"},null,null,null,null,null,null,null,null,null,null,null,null,null,null,{"$f":"B127","v":"d. Is contraceptive prevalence rate (CPR) included as an indicator in the PRSP?"}]
[null,"e. Are contraceptive supply indicators included in the PRSP?",null,null,null,null,"N/A",null,null,{"$f":"G128","v":"N/A"},null,null,null,null,null,null,null,null,null,null,null,null,null,null,{"$f":"B128","v":"e. Are contraceptive supply indicators included in the PRSP?"}]
["\n\n\n","f. Notes about the Poverty Reduction Strategy Paper",null,"Document not available on IMF's website",null,null,null,null,null,null,{"$f":"B129","v":"f. Notes about the Poverty Reduction Strategy Paper"},null,null,null,{"$f":"D129","v":"Document not available on IMF's website"}]
["E. Supply Chain (Capacity)"]
["E1. Have stockouts occurred for any contraceptive at the central* level in the last 12 months?  \n*(The central level refers to the central level warehouse for the public sector.)",null,null,null,null,null,"Yes",null,null,{"$f":"G131","v":"Yes"},null,null,null,null,null,null,null,null,null,null,null,null,null,null,{"$f":"A131","v":"E1. Have stockouts occurred for any contraceptive at the central* level in the last 12 months?  \n*(The central level refers to the central level warehouse for the public sector.)"}]
["E2. In the last 12 months, has there ever been a stockout at the central level of any of the contraceptives offered in public sector facilities? (If a method is not intended to be offered in public sector facilities, please indicate that stockouts are not applicable (choose \"N/A\" from the dropdown list).)",null,null,null,null,null,null,null,null,null,null,null,null,null,null,null,null,null,null,null,null,null,null,{"$f":"A132","v":"E2. In the last 12 months, has there ever been a stockout at the central level of any of the contraceptives offered in public sector facilities? (If a method is not intended to be offered in public sector facilities, please indicate that stockouts are not applicable (choose \"N/A\" from the dropdown list).)"}]
[null,"a. Combined oral contraceptives",null,null,null,null,"No",null,null,{"$f":"G133","v":"No"},null,null,null,null,null,null,null,null,null,null,null,null,null,null,{"$f":"B133","v":"a. Combined oral contraceptives"}]
[null,"b. Progestin-only pills",null,null,null,null,"No",null,null,"No",null,null,null,null,null,null,null,null,null,null,null,null,null,null,"b. Progestin-only pills"]
[null,"c. Hormonal injections",null,null,null,null,"Yes",null,null,"Yes",null,null,null,null,null,null,null,null,null,null,null,null,null,null,"c. Hormonal injections"]
[null,"d. Hormonal implants",null,null,null,null,"No",null,null,"No",null,null,null,null,null,null,null,null,null,null,null,null,null,null,"d. Hormonal implants"]
[null,"e. Intrauterine devices (IUDs)",null,null,null,null,"No",null,null,"No",null,null,null,null,null,null,null,null,null,null,null,null,null,null,"e. Intrauterine devices (IUDs)"]
[null,"f. Male condoms",null,null,null,null,"No",null,null,"No",null,null,null,null,null,null,null,null,null,null,null,null,null,null,"f. Male condoms"]
[null,"g. Female condoms",null,null,null,null,"Don't know",null,null,"Don't know",null,null,null,null,null,null,null,null,null,null,null,null,null,null,"g. Female condoms"]
[null,"h. Emergency contraceptive pills",null,null,null,null,"Don't know",null,null,"Don't know",null,null,null,null,null,null,null,null,null,null,null,null,null,null,"h. Emergency contraceptive pills"]
[null,"i. CycleBeads",null,null,null,null,"Don't know",null,null,"Don't know",null,null,null,null,null,null,null,null,null,null,null,null,null,null,"i. CycleBeads"]
[null,"j. Time period\n(mm/yy - mm/yy) (for example, 1/10-12/10) ",null,null,null,"09/10-03/11",null,null,null,null,null,null,null,null,null,null,{"$f":"F142","v":"09/10-03/11"},{"$f":"B142","v":"j. Time period\n(mm/yy - mm/yy) (for example, 1/10-12/10) "}]
[null,"k. Data source\n(for example: Procurement Planning and Monitoring Report, Logistics Management Information System, periodic physical inventory, warehouse reports)",null,null,null,"Family Planning Coordinator",null,null,null,null,null,null,null,null,null,null,{"$f":"F143","v":"Family Planning Coordinator"},{"$f":"B143","v":"k. Data source\n(for example: Procurement Planning and Monitoring Report, Logistics Management Information System, periodic physical inventory, warehouse reports)"}]
["E3. Are stockouts a large problem in your country at the following levels? (i.e., Are they common or do they tend to last for a long time?)\n\n"]
[null,"a. service delivery point level (i.e., public sector health facilities)",null,null,null,null,"Yes",null,null,{"$f":"G145","v":"Yes"},null,null,null,null,null,null,null,null,null,null,null,null,null,null,{"$f":"B145","v":"a. service delivery point level (i.e., public sector health facilities)"}]
[null,"b. central level (i.e., central level warehouse for the public sector)",null,null,null,null,"Yes",null,null,{"$f":"G146","v":"Yes"},null,null,null,null,null,null,null,null,null,null,null,null,null,null,{"$f":"B146","v":"b. central level (i.e., central level warehouse for the public sector)"}]
["F. Please note any overall comments about challenges and/or successes with contraceptive security in your country.\n\n",null,null,"Challenges:\nNeed to:\n* Re-activate the Contraceptive Security Committee\n* Develop and implement a Contraceptive Security Strategy\n* Ensure sustainable financing and logistics for the purchase and distribution of contraceptives\n* Ensure contraceptive security in light of the MOH reform process, including the newly formed Helth Community Teams (ECOS)",null,null,null,null,null,null,{"$f":"A147","v":"F. Please note any overall comments about challenges and/or successes with contraceptive security in your country.\n\n"},null,null,null,{"$f":"D147","v":"Challenges:\nNeed to:\n* Re-activate the Contraceptive Security Committee\n* Develop and implement a Contraceptive Security Strategy\n* Ensure sustainable financing and logistics for the purchase and distribution of contraceptives\n* Ensure contraceptive security in light of the MOH reform process, including the newly formed Helth Community Teams (ECOS)"}]

{"sheet":"Ethiopia 2011","index":15,"n_rows":147,"n_cols":25,"rows_kept":147,"cut":false,"hidden":false,"merged":[[141,1,141,4],[141,5,141,7],[142,1,142,4],[142,5,142,7],[143,0,143,7],[144,1,144,5],[144,6,144,7],[147,0,147,7],[148,0,150,7],[145,1,145,5],[145,6,145,7],[146,0,146,2],[146,3,146,7],[136,1,136,5],[136,6,136,7],[137,1,137,5],[137,6,137,7],[138,1,138,5],[138,6,138,7],[139,1,139,5],[139,6,139,7],[140,1,140,5],[140,6,140,7],[131,0,131,7],[132,1,132,5],[132,6,132,7],[133,1,133,5],[133,6,133,7],[134,1,134,5],[134,6,134,7],[135,1,135,5],[135,6,135,7],[120,0,120,2],[120,3,120,7],[121,0,121,2],[121,3,121,7],[129,0,129,6],[130,0,130,5],[130,6,130,7],[122,0,122,7],[123,1,123,4],[123,5,123,7],[115,1,115,5],[115,6,115,7],[116,1,116,5],[116,6,116,7],[117,1,117,5],[117,6,117,7],[118,2,118,4],[118,5,118,7],[119,0,119,4],[119,5,119,7],[110,1,110,5],[110,6,110,7],[111,1,111,5],[111,6,111,7],[112,1,112,5],[112,6,112,7],[113,1,113,5],[113,6,113,7],[114,1,114,5],[114,6,114,7],[104,1,104,5],[104,6,104,7],[105,1,105,5],[105,6,105,7],[106,3,106,7],[107,0,107,7],[108,1,108,5],[108,6,108,7],[109,1,109,5],[109,6,109,7],[98,1,98,2],[98,4,98,6],[99,1,99,2],[99,4,99,6],[100,1,100,2],[100,4,100,6],[101,0,101,7],[102,0,102,7],[103,1,103,5],[103,6,103,7],[94,2,94,3],[94,4,94,5],[94,6,94,7],[95,2,95,3],[95,4,95,5],[95,6,95,7],[96,0,96,7],[97,0,97,2],[97,4,97,6],[88,0,88,6],[89,1,89,2],[89,3,89,7],[90,0,90,6],[91,1,91,2],[92,1,92,3],[92,4,92,5],[92,6,92,7],[93,2,93,3],[93,4,93,5],[93,6,93,7],[83,0,83,4],[83,5,83,7],[84,1,84,3],[84,4,84,7],[85,1,85,3],[85,4,85,7],[86,0,86,6],[87,1,87,2],[87,3,87,7],[78,0,78,6],[79,0,79,6],[80,0,80,2],[81,0,82,0],[81,1,81,2],[81,3,81,4],[81,6,81,7],[82,3,82,4],[82,6,82,7],[73,1,73,2],[73,3,73,4],[74,1,74,2],[74,3,74,4],[75,1,75,2],[75,3,75,4],[76,1,76,2],[76,3,76,4],[77,0,77,2],[77,3,77,7],[68,1,68,2],[68,3,68,4],[69,1,69,2],[69,3,69,4],[70,1,70,2],[70,3,70,4],[71,1,71,2],[71,3,71,4],[72,1,72,2],[72,3,72,4],[62,0,62,6],[63,0,63,7],[64,0,64,2],[64,3,64,4],[65,1,65,2],[65,3,65,4],[66,1,66,2],[66,3,66,4],[67,1,67,2],[67,3,67,4],[56,0,56,4],[56,6,56,7],[58,0,58,4],[58,5,58,7],[59,1,59,4],[59,5,59,7],[60,2,60,4],[60,5,60,7],[61,0,61,2],[61,3,61,7],[41,1,41,2],[42,3,42,7],[43,1,43,2],[45,0,45,7],[46,1,46,2],[54,0,54,4],[54,6,54,7],[55,0,55,4],[55,6,55,7],[47,1,47,2],[48,3,48,7],[49,1,49,2],[50,1,50,2],[51,1,51,2],[53,0,53,7],[32,0,32,7],[33,1,33,3],[34,1,34,3],[35,0,35,7],[36,0,36,6],[37,0,37,7],[38,1,38,2],[39,1,39,2],[40,3,40,7],[26,0,26,6],[27,0,27,2],[27,3,27,4],[28,0,28,5],[28,6,28,7],[29,0,29,3],[29,6,29,7],[30,0,30,6],[31,0,31,6],[20,1,20,2],[20,5,20,7],[21,1,21,2],[21,5,21,7],[22,1,22,2],[22,5,22,7],[23,0,23,6],[24,0,24,6],[25,0,25,2],[15,1,15,2],[15,5,15,7],[16,1,16,2],[16,5,16,7],[17,1,17,2],[17,5,17,7],[18,1,18,2],[18,5,18,7],[19,1,19,2],[19,5,19,7],[9,0,9,7],[10,0,10,6],[8,0,8,7],[11,0,11,6],[12,1,12,2],[12,3,12,7],[13,0,13,2],[13,3,13,7],[14,1,14,2],[14,5,14,7],[4,0,4,2],[5,0,5,2],[0,0,0,7],[1,0,1,2],[1,3,1,4],[2,0,2,7],[3,3,3,4],[3,5,3,7],[7,0,7,2],[7,3,7,5],[7,6,7,7],[127,1,127,5],[127,6,127,7],[128,1,128,2],[128,3,128,7],[124,1,124,5],[124,6,124,7],[125,1,125,5],[125,6,125,7],[126,1,126,5],[126,6,126,7]]}
[null,null,null,null,null,null,null,null,"Columns I-Y are meant to be hidden. They exist because they allow for the dropdown list options. They also allow for merged cells to autofit properly in terms of row height. This should work if all columns remain at their correct widths.","g-h",null,"a-e merged","E-F merged","e-h","0 times",null,null,"The government (e.g., Central Medical Stores, MOH logistics unit, MOH procurement unit)",null,null,null,null,"Yes","a-h","January"]
[null,null,null,null,null,null,null,null,null,null,"A-c",null,null,null,"1-2 times","b-d merged",null,"Third-party agent (e.g., UNFPA, Crown Agents)","d-e merged","d-f merged","e-f merged","e-g merged","No",null,"February"]
[null,null,null,null,null,null,null,null,null,null,null,null,null,null,"3-5 times",null,null,"The government and a third-party agent",null,null,null,null,null,null,"March"]
[null,null,null,null,null,null,null,null,null,null,null,null,null,null,"6 or more times",null,null,"Other",null,null,null,null,"N/A",null,"April"]
["To jump to the Introduction sheet, click here.",null,null,null,null,null,null,null,null,null,null,null,null,null,null,null,null,null,null,null,null,null,"Don't know",null,"May"]
[null,null,null,null,null,null,null,null,null,null,null,null,null,null,"N/A",null,null,"N/A",null,null,null,null,null,null,"June"]
["Contraceptive Security (CS) Indicators 2011 Data ",null,null,null,null,null,null,null,null,null,null,null,null,null,"Don't know",null,null,"Don't know",null,null,null,null,null,null,"July"]
["Country: Ethiopia",null,null,null,null,null,null,null,null,{"$f":"G8","v":0},{"$f":"A8","v":"Country: Ethiopia"},null,null,null,null,"or c-d",null,null,null,{"$f":"D8","v":0},null,null,null,null,"August"]
["The CS Indicators are presented in the following sections:\n\n               A. leadership & cooordination               B. finance & procurement               C. commodities               D. policies               E. supply chain",null,null,null,null,null,null,null,null,{"$f":"G9","v":0},{"$f":"A9","v":"The CS Indicators are presented in the following sections:\n\n               A. leadership & cooordination               B. finance & procurement               C. commodities               D. policies               E. supply chain"},null,null,null,"d-h",null,"f-h merged",null,{"$f":"D9","v":0},null,null,null,null,null,"September"]
["\nNotes:\n  -  Respondents' answers are indicated in the white spaces. \n  -  N/A = not applicable. Don't know = the respondent either indicated they did not know or left the answer blank.\n  -  Some questions required respondents to choose from a dropdown list of options; in these cases the dropdown arrow will \n     appear when you click on the cell. \n  -  There may be a few inserted comments. (If you cannot already see them, click on Review tab - Comments group - Show All Comments in newer \n       versions of Excel or View - Comments in older versions of Excel.)\n  -  If the answer is cut off, you can either manually adjust the row height or autofit the row height in order to see the whole \n     response. (To autofit the row height, select the answer(s) and go to Home tab - Cells group - Format - Autofit Row Height in newer versions of Excel or \n      Format - Row - Autofit in older versions of Excel.)\n",null,null,null,null,null,null,null,"a-g",null,null,null,null,null,null,null,null,"a-e merged",null,null,null,null,null,{"$f":"A10","v":"\nNotes:\n  -  Respondents' answers are indicated in the white spaces. \n  -  N/A = not applicable. Don't know = the respondent either indicated they did not know or left the answer blank.\n  -  Some questions required respondents to choose from a dropdown list of options; in these cases the dropdown arrow will \n     appear when you click on the cell. \n  -  There may be a few inserted comments. (If you cannot already see them, click on Review tab - Comments group - Show All Comments in newer \n       versions of Excel or View - Comments in older versions of Excel.)\n  -  If the answer is cut off, you can either manually adjust the row height or autofit the row height in order to see the whole \n     response. (To autofit the row height, select the answer(s) and go to Home tab - Cells group - Format - Autofit Row Height in newer versions of Excel or \n      Format - Row - Autofit in older versions of Excel.)\n"},"October"]
["A. Leadership and Coordination",null,null,null,null,null,null,null,null,null,null,null,null,null,null,null,null,null,null,null,null,null,null,null,"November"]
["A1. Is there a national committee that works on contraceptive security? (Please select from the dropdown list.)\n(Committee should have some aspect of contraceptive security as part of its Terms of Reference, even if it is known by a different name, for example: Family Planning, Reproductive Health, Maternal Mortality, Essential Medicine Committee, etc.)  ",null,null,null,null,null,null,"Yes",{"$f":"A12","v":"A1. Is there a national committee that works on contraceptive security? (Please select from the dropdown list.)\n(Committee should have some aspect of contraceptive security as part of its Terms of Reference, even if it is known by a different name, for example: Family Planning, Reproductive Health, Maternal Mortality, Essential Medicine Committee, etc.)  "},null,null,null,null,null,null,null,null,null,null,null,null,null,null,null,"December"]
[null,"a. What is the name of the committee?",null,"Family Planning and Logistics Technical Working Group",null,null,null,null,null,null,{"$f":"B13","v":"a. What is the name of the committee?"},{"$f":"D13","v":"Family Planning and Logistics Technical Working Group"},null,null,{"$f":"D13","v":"Family Planning and Logistics Technical Working Group"}]
["A2. Are the following organizations represented on the committee?",null,null,"(Y/N \ndropdown)",null,null,null,null,null,null,{"$f":"A14","v":"A2. Are the following organizations represented on the committee?"},null,null,null,null,null,null,null,null,null,null,null,null,null,"Don't know"]
[null,"a. Social marketing",null,"Yes","If yes, specify name(s) of organizations","DKT",null,null,null,null,{"$f":"B15","v":"a. Social marketing"},null,null,null,null,null,{"$f":"F15","v":"DKT"}]
[null,"b. NGO (for example: service delivery, advocacy, Planned Parenthood affiliate, Marie Stopes affiliate, faith-based organizations, etc.)",null,"Yes","If yes, specify name(s) of organizations","Family Guidance Association of Ethiopia, Marie Stopes International Ethiopia, Integrated Family Health Programs, Engender Health, Ipas, Population Council, Family Health International, Consortium of Reproductive Health Association Ethiopia (CORHA)",null,null,null,null,"b. NGO (for example: service delivery, advocacy, Planned Parenthood affiliate, Marie Stopes affiliate, faith-based organizations, etc.)",null,null,null,null,null,"Family Guidance Association of Ethiopia, Marie Stopes International Ethiopia, Integrated Family Health Programs, Engender Health, Ipas, Population Council, Family Health International, Consortium of Reproductive Health Association Ethiopia (CORHA)"]
[null,"c. Commercial sector (for example: pharmacy associations, manufacturers, etc.)",null,"No","If yes, specify name(s) of organizations",null,null,null,null,null,"c. Commercial sector (for example: pharmacy associations, manufacturers, etc.)",null,null,null,null,null,0]
[null,"d. Donors",null,"Yes","If yes, specify name(s) of donors","USAID, Packard Foundation",null,null,null,null,"d. Donors",null,null,null,null,null,"USAID, Packard Foundation"]
[null,"e. UN agencies",null,"Yes","If yes, specify name(s) of agencies","UNFPA, WHO",null,null,null,null,"e. UN agencies",null,null,null,null,null,"UNFPA, WHO"]
[null,"f. Ministry of Health (for example: logistics, reproductive health, family planning, maternal and child health, HIV/AIDS, pharmacy units, etc.)",null,"Yes","If yes, specify name(s) of units","Urban Health Promotion and Disease Prevention Directorate & Maternal Newborn and Child Health [MNCH] Coordinator",null,null,null,null,"f. Ministry of Health (for example: logistics, reproductive health, family planning, maternal and child health, HIV/AIDS, pharmacy units, etc.)",null,null,null,null,null,"Urban Health Promotion and Disease Prevention Directorate & Maternal Newborn and Child Health [MNCH] Coordinator"]
[null,"g. Central Medical Store or Central Warehouse",null,"No","If yes, specify","(Currently none, but expecting Pharmaceutical Fund and Supply Agency [PFSA] in the future) ",null,null,null,null,"g. Central Medical Store or Central Warehouse",null,null,null,null,null,"(Currently none, but expecting Pharmaceutical Fund and Supply Agency [PFSA] in the future) "]
[null,"h. Ministry of Finance or Ministry of Planning ",null,"Yes","If yes, specify","Population Department of Ministry of Finance and Economic Development (MOFED)",null,null,null,null,"h. Ministry of Finance or Ministry of Planning ",null,null,null,null,null,"Population Department of Ministry of Finance and Economic Development (MOFED)"]
[null,"i. Other (for example: partners)",null,"Yes","If yes, specify","JHIPIEGO/ACCESS",null,null,null,null,"i. Other (for example: partners)",null,null,null,null,null,"JHIPIEGO/ACCESS"]
["A3. How many times did the committee meet during the last year? (0, 1-2, 3-5, or 6+)  (Please select from the dropdown.)",null,null,null,null,null,null,"6 or more times",{"$f":"A24","v":"A3. How many times did the committee meet during the last year? (0, 1-2, 3-5, or 6+)  (Please select from the dropdown.)"}]
["A4. Does the committee have legal status?  (Please select from the dropdown.)                                  ",null,null,null,null,null,null,"No",{"$f":"A25","v":"A4. Does the committee have legal status?  (Please select from the dropdown.)                                  "}]
["A5. Is there a Contraceptive Security \"champion\"? (someone who consistently brings up and advocates for contraceptive supplies)",null,null,"Yes","If yes, specify person's organization","FMOH","Specify person's job title","Urban Health Extension Directorate and MNCH Coordinator",null,null,{"$f":"A26","v":"A5. Is there a Contraceptive Security \"champion\"? (someone who consistently brings up and advocates for contraceptive supplies)"}]
["B. Finance and Procurement (Capital)"]
["B1. What is the timeline of the country's fiscal year?",null,null,"Beginning month",null,"July","Ending month","June",null,null,{"$f":"B28","v":0}]
["B2. What was the estimated dollar value of contraceptives needed to be procured for the public sector for the most recent complete fiscal year? (in USD currency)\n(for example, to cover the needs for the '09-'10 fiscal year)",null,null,null,null,null,35884801,null,null,{"$f":"G29","v":35884801},null,null,{"$f":"E29","v":0},null,null,null,null,null,null,null,null,null,null,null,{"$f":"A29","v":"B2. What was the estimated dollar value of contraceptives needed to be procured for the public sector for the most recent complete fiscal year? (in USD currency)\n(for example, to cover the needs for the '09-'10 fiscal year)"}]
["B3. When was the last forecast/quantification conducted? (mm/yy)",null,null,null,"04/10","Who conducted it? (Specify organization.)","Ministry of Health with technical assistance from the USAID | DELIVER PROJECT",null,null,{"$f":"G30","v":"Ministry of Health with technical assistance from the USAID | DELIVER PROJECT"},null,null,{"$f":"E30","v":"04/10"},null,null,null,null,null,null,null,null,null,null,null,{"$f":"A30","v":"B3. When was the last forecast/quantification conducted? (mm/yy)"}]
["B4. Is there a government budget line item for the procurement of contraceptives?  (Please select from the dropdown list.)",null,null,null,null,null,null,"Yes",{"$f":"A31","v":"B4. Is there a government budget line item for the procurement of contraceptives?  (Please select from the dropdown list.)"}]
["B5. Were government funds allocated for contraceptive procurement for the public sector in the most recent complete fiscal year? (This question refers to funds planned to be spent on contraceptives, whether or not they ended up being spent.) \n\n(Government funds include internally generated funds, basket funds, World Bank credits or loans, and other funds donors gave to the government for their use.) \n",null,null,null,null,null,null,"Yes",{"$f":"A32","v":"B5. Were government funds allocated for contraceptive procurement for the public sector in the most recent complete fiscal year? (This question refers to funds planned to be spent on contraceptives, whether or not they ended up being spent.) \n\n(Government funds include internally generated funds, basket funds, World Bank credits or loans, and other funds donors gave to the government for their use.) \n"}]
["B6. Please complete the table below regarding government allocations for contraceptive procurement.",null,null,null,null,null,null,null,null,null,null,null,null,null,null,null,null,null,null,null,null,null,null,{"$f":"A33","v":"B6. Please complete the table below regarding government allocations for contraceptive procurement."}]
[null,null,null,null,"Amount allocated \n(in USD)","Time period during which allocations were supposed to be spent \n(mm/yy-mm/yy)\n(should ideally be the most recent\ncomplete fiscal year ['09-'10])","Data source \n(for example: Ministry records)","Comments",null,null,{"$f":"A34","v":0}]
[null,"Government funds allocated for contraceptive procurement\n(funds originally designated for contraceptives, whether or not they ended up being spent on them)",null,null,9000000,"07/09-06/10","Ministry Records",null,null,null,{"$f":"#REF!","v":{"$error":"#REF!"}}]
[]
["B7. Were government funds spent on contraceptive procurement for the public sector in the most recent complete fiscal year? \n(Government funds include internally generated funds, basket funds, World Bank credits or loans, and other funds donors gave to the government for their use.)",null,null,null,null,null,null,"Yes",{"$f":"A37","v":"B7. Were government funds spent on contraceptive procurement for the public sector in the most recent complete fiscal year? \n(Government funds include internally generated funds, basket funds, World Bank credits or loans, and other funds donors gave to the government for their use.)"}]
["B8. Please complete the table below to indicate government expenditures on contraceptive procurement, by source, in the most recent complete fiscal year. \n(This is how much was spent on contraceptive procurement (not what was allocated). How much of this spending was provided from each source?)",null,null,null,null,null,null,null,null,null,null,null,null,null,null,null,null,null,null,null,null,null,null,{"$f":"A38","v":"B8. Please complete the table below to indicate government expenditures on contraceptive procurement, by source, in the most recent complete fiscal year. \n(This is how much was spent on contraceptive procurement (not what was allocated). How much of this spending was provided from each source?)"}]
[null,"Source of government funds spent on contraceptive procurement for the public sector",null,"Was this source used?\n(Y/N)","Amount spent \n(in USD)","Time period (mm/yy-mm/yy)\n(should be the same for all sources of funds & ideally be the most recent\ncomplete fiscal year ['09-'10])","Data source \n(for example: Contraceptive Procurement Table, PipeLine, etc.)","Comments",null,null,{"$f":"A39","v":0}]
[null,"a. Internally generated funds spent on contraceptive procurement",null,"Yes",481849,"07/09-06/10","Contraceptive Procurement Table (CPT)","Includes regional government funding",null,null,{"$f":"B40","v":"a. Internally generated funds spent on contraceptive procurement"}]
[null,null,"i. Specify source(s) of internally generated funds spent (for example, from taxes or user fees)",null,null,null,null,null,null,null,{"$f":"C41","v":"i. Specify source(s) of internally generated funds spent (for example, from taxes or user fees)"},null,null,null,{"$f":"D41","v":0}]
[null,"b. Total of all other government funds spent on contraceptive procurement (basket funds, World Bank credits or loans, and other funds donors gave to the government [e.g., direct budget support])",null,"Yes",9000000,"07/09-06/10","Contraceptive Procurement Table (CPT)",null,null,null,{"$f":"B42","v":"b. Total of all other government funds spent on contraceptive procurement (basket funds, World Bank credits or loans, and other funds donors gave to the government [e.g., direct budget support])"}]
[null,null,"i. Specify source(s) of other government funds spent (for example: basket funding or specific donor)","Protecting Basic Services (PBS) II",null,null,null,null,null,null,{"$f":"C43","v":"i. Specify source(s) of other government funds spent (for example: basket funding or specific donor)"},null,null,null,{"$f":"D43","v":"Protecting Basic Services (PBS) II"}]
[null,"c. TOTAL government funds spent on contraceptive procurement\nThis will auto-calculate.  (It will sum a & b above.)",null,null,{"$f":"E40+E42","v":9481849},null,null,null,null,null,{"$f":"B44","v":"c. TOTAL government funds spent on contraceptive procurement\nThis will auto-calculate.  (It will sum a & b above.)"}]
[null,null,null,null,null,null,null,null,null,null,{"$f":"A45","v":0}]
["B9. Please complete the table below to indicate donor expenditures on contraceptive procurement in the most recent complete fiscal year.\n",null,null,null,null,null,null,null,null,null,null,null,null,null,null,null,null,null,null,null,null,null,null,{"$f":"A46","v":"B9. Please complete the table below to indicate donor expenditures on contraceptive procurement in the most recent complete fiscal year.\n"}]
["\n","Source of donations and donor funds spent on contraceptive procurement for the public sector",null,"Was this a source?\n(Y/N)","Amount of money spent on these procurements \n(in USD)","Time period (mm/yy-mm/yy)\n(should be the same for all sources of funds & ideally be the most recent\ncomplete fiscal year ['09-'10])","Data source \n(for example:  Donor records, Contraceptive Procurement Table, PipeLine, RHInterchange, etc.","Comments",null,null,{"$f":"A47","v":"\n"}]
[null,"a. In-kind donations of contraceptives",null,"Yes",6421656,"07/09-06/10","Contraceptive Procurement Table (CPT)",null,null,null,{"$f":"B48","v":"a. In-kind donations of contraceptives"}]
[null,null,"i. Specify source(s) of in-kind donations ","USAID ($2,828,703), UNFPA Global Program ($3,592,953)",null,null,null,null,null,null,{"$f":"C49","v":"i. Specify source(s) of in-kind donations "},null,null,null,{"$f":"D49","v":"USAID ($2,828,703), UNFPA Global Program ($3,592,953)"}]
[null,"b. Global Fund donations used to procure condoms",null,"No",0,"07/09-06/10","RHInterchange"," ",null,null,{"$f":"B50","v":"b. Global Fund donations used to procure condoms"}]
[null,"c. Global Fund donations used to procure contraceptives besides condoms",null,"No",0,"07/09-06/10",null,"Ethiopia has not started to use the GF money for contraceptive procurement. ",null,null,{"$f":"B51","v":"c. Global Fund donations used to procure contraceptives besides condoms"}]
[null,"d. TOTAL value of in-kind donations and Global Fund donations spent on contraceptive procurement\nThis will auto-calculate.  (It will sum a-c above.)",null,null,{"$f":"E48+E50+E51","v":6421656},null,null,null,null,null,{"$f":"B52","v":"d. TOTAL value of in-kind donations and Global Fund donations spent on contraceptive procurement\nThis will auto-calculate.  (It will sum a-c above.)"}]
[null,null,null,null,null,null,null,null,null,null,{"$f":"A53","v":0}]
["The answers to B10 and B11 should calculate automatically based on the information you provided. Please review the answers to ensure they make sense to you, and if you have additional information to add, please note it in the comments boxes.\n\nIf the answers do not calculate automatically, please provide any relevant information you may have in the comments boxes.\n",null,null,null,null,null,null,null,null,null,null,null,null,null,null,null,null,null,null,null,null,null,null,{"$f":"A54","v":"The answers to B10 and B11 should calculate automatically based on the information you provided. Please review the answers to ensure they make sense to you, and if you have additional information to add, please note it in the comments boxes.\n\nIf the answers do not calculate automatically, please provide any relevant information you may have in the comments boxes.\n"}]
["B10. Government share of funds spent on contraceptive procurement for the public sector - \nOf the total amount spent on contraceptives for the public sector in the most recent complete fiscal year (including government and donor funds), what percent was covered by government funds (including internally generated funds, basket funds, World Bank credits or loans, and other funds given to the government)? \n\nThis will auto-calculate. (It contains the following formula: Total government spending (Question B8c) / Grand total of all spending for public sector contraceptives from the government and donors (Questions B8c+B9d))",null,null,null,null,{"$f":"E44/(E44+E52)","v":0.59621127543896768},null,null,null,{"$f":"G55","v":0},null,null,null,null,null,null,null,{"$f":"A55","v":"B10. Government share of funds spent on contraceptive procurement for the public sector - \nOf the total amount spent on contraceptives for the public sector in the most recent complete fiscal year (including government and donor funds), what percent was covered by government funds (including internally generated funds, basket funds, World Bank credits or loans, and other funds given to the government)? \n\nThis will auto-calculate. (It contains the following formula: Total government spending (Question B8c) / Grand total of all spending for public sector contraceptives from the government and donors (Questions B8c+B9d))"}]
["B11. Total expenditures on public sector contraceptives as percent of amount that needed to be procured -\nOf the estimated value of the contraceptives needed to be procured for the public sector for the most recent complete fiscal year, what percent was provided by any source (whether government or donor)? \n\nThis will auto-calculate. (It contains the following formula: Grand total of all spending for public sector contraceptives from the government and donors (Questions B8c+B9d) / Value of estimated need for procurement (Question B2))",null,null,null,null,{"$f":"(E44+E52)/G29","v":0.44318219850236873},"The FMOH targets and plan for scale-up of long term contraceptives (Implanon® and IUCD) has a significant impact on the overall resource needs for contraceptives. ",null,null,{"$f":"G56","v":"The FMOH targets and plan for scale-up of long term contraceptives (Implanon® and IUCD) has a significant impact on the overall resource needs for contraceptives. "},null,null,null,null,null,null,null,{"$f":"A56","v":"B11. Total expenditures on public sector contraceptives as percent of amount that needed to be procured -\nOf the estimated value of the contraceptives needed to be procured for the public sector for the most recent complete fiscal year, what percent was provided by any source (whether government or donor)? \n\nThis will auto-calculate. (It contains the following formula: Grand total of all spending for public sector contraceptives from the government and donors (Questions B8c+B9d) / Value of estimated need for procurement (Question B2))"}]
["B12. If B11 did not calculate automatically, please answer the following question:\nWas there a funding gap for the public sector in the last complete fiscal year (e.g., 09-'10 fiscal year)?\n(Please select from the dropdown list.)",null,null,null,null,null,null,null,null,{"$f":"G57","v":0},null,null,null,null,null,null,null,{"$f":"A57","v":"B12. If B11 did not calculate automatically, please answer the following question:\nWas there a funding gap for the public sector in the last complete fiscal year (e.g., 09-'10 fiscal year)?\n(Please select from the dropdown list.)"}]
[null,null,null,null,null,null,null,null,null,null,{"$f":"A58","v":0}]
["B13. If the government financed any contraceptive procurement in the most recent complete fiscal year, which entity conducted the procurement(s)? (Please select from the dropdown.)",null,null,null,null,"The government (e.g., Central Medical Stores, MOH logistics unit, MOH procurement unit)",null,null,null,null,null,null,null,null,null,null,{"$f":"F59","v":"The government (e.g., Central Medical Stores, MOH logistics unit, MOH procurement unit)"},{"$f":"A59","v":"B13. If the government financed any contraceptive procurement in the most recent complete fiscal year, which entity conducted the procurement(s)? (Please select from the dropdown.)"}]
[null,"a. Specify entity",null,null,null,"Pharmacutical Fund and Supply Agency (PFSA) ",null,null,null,null,null,null,{"$f":"E60","v":0},null,null,null,{"$f":"F60","v":"Pharmacutical Fund and Supply Agency (PFSA) "},{"$f":"B60","v":"a. Specify entity"}]
[null,null,"i. Is this a parastatal?",null,null,"Yes",null,null,null,null,null,null,null,null,null,null,{"$f":"F61","v":"Yes"},{"$f":"C61","v":"i. Is this a parastatal?"}]
["B14. Please note any additional comments about finance and procurement.",null,null,"Financing: even though the amounts are not all that significant, the central government and a number of the regional governments continue to finance contraceptive procurement from internally generated (budget) funds. The existence of basket funds, the emergence of the MDG Pool Fund, and the possibilities of future funding for commodities, as well as an overall increase in donor support for FP, have put the country in a generally better position. During this year, Pharmaceuticals Fund Supply Agency (PFSA) has started the procurement of contraceptives from Protection of Basic Services (PBS) II and internally generated funds. The USAID | DELIVER PROJECT continues to support the facilitation of the contraceptive procurement decisions through the sharing of information with the FMOH.",null,null,null,null,null,null,{"$f":"A62","v":"B14. Please note any additional comments about finance and procurement."},null,null,null,{"$f":"D62","v":"Financing: even though the amounts are not all that significant, the central government and a number of the regional governments continue to finance contraceptive procurement from internally generated (budget) funds. The existence of basket funds, the emergence of the MDG Pool Fund, and the possibilities of future funding for commodities, as well as an overall increase in donor support for FP, have put the country in a generally better position. During this year, Pharmaceuticals Fund Supply Agency (PFSA) has started the procurement of contraceptives from Protection of Basic Services (PBS) II and internally generated funds. The USAID | DELIVER PROJECT continues to support the facilitation of the contraceptive procurement decisions through the sharing of information with the FMOH."}]
["C. Commodities"]
["C1. Are the following contraceptive methods offered through the commercial sector, public sector, NGOs, or social marketing? (Please indicate which methods are intended to be offered. This question is not asking whether the method is in stock.) \n(Please select from the dropdown list.)",null,null,null,null,null,null,null,null,null,null,null,null,null,null,null,null,null,null,null,null,null,null,{"$f":"A64","v":"C1. Are the following contraceptive methods offered through the commercial sector, public sector, NGOs, or social marketing? (Please indicate which methods are intended to be offered. This question is not asking whether the method is in stock.) \n(Please select from the dropdown list.)"}]
["Contraceptive Method",null,null,"Commercial Sector",null,"Public Sector","NGO","Social Marketing",null,null,{"$f":"A65","v":"Contraceptive Method"}]
[null,"a. Combined oral contraceptives (estrogen + progestin - for  example, LoFemenol, Microgynon)",null,"Yes",null,"Yes","Yes","Yes",null,null,{"$f":"B66","v":"a. Combined oral contraceptives (estrogen + progestin - for  example, LoFemenol, Microgynon)"}]
[null,"b. Progestin-only pills (for example, Ovrette, Microlut)",null,"Yes",null,"Yes","Yes","Yes",null,null,{"$f":"B67","v":"b. Progestin-only pills (for example, Ovrette, Microlut)"}]
[null,"c. Hormonal injections (for example, DepoProvera, Noristerat)",null,"Yes",null,"Yes","Yes","Yes",null,null,"c. Hormonal injections (for example, DepoProvera, Noristerat)"]
[null,"d. Hormonal implants (for example, Jadelle, Implanon)",null,"Yes",null,"Yes","Yes","Yes",null,null,"d. Hormonal implants (for example, Jadelle, Implanon)"]
[null,"e. Intrauterine devices (IUDs) (for example, Optima Copper T)",null,"Yes",null,"Yes","Yes","Yes",null,null,"e. Intrauterine devices (IUDs) (for example, Optima Copper T)"]
[null,"f. Male condoms",null,"Yes",null,"Yes","Yes","Yes",null,null,"f. Male condoms"]
[null,"g. Female condoms",null,"No",null,"No","No","Yes",null,null,"g. Female condoms"]
[null,"h. Emergency contraceptive pills (for example, Postinor)",null,"Yes",null,"Yes","Yes","Yes",null,null,"h. Emergency contraceptive pills (for example, Postinor)"]
[null,"i. Long-acting permanent method for males (vasectomy)",null,"Yes",null,"Yes","Yes","No",null,null,"i. Long-acting permanent method for males (vasectomy)"]
[null,"j. Long-acting permanent method for females (tubal ligation)",null,"Yes",null,"Yes","Yes","No",null,null,"j. Long-acting permanent method for females (tubal ligation)"]
[null,"k. CycleBeads",null,"No",null,"No","No","No",null,null,"k. CycleBeads"]
[null,"l. Other contraceptive methods - specify \n(Please provide the name of the other contraceptive(s) offered, by sector.)",null,null,null,null,null,null,null,null,"l. Other contraceptive methods - specify \n(Please provide the name of the other contraceptive(s) offered, by sector.)"]
["C2. Please note any comments about the commodities offered.",null,null,"Emergency contraceptives were first introduced in 2009, and it has taken time to expand program demand to the lower levels (SDPs). Female condom programming has not yet been introduced in Ethiopia.",null,null,null,null,null,null,{"$f":"A78","v":"C2. Please note any comments about the commodities offered."},null,null,null,{"$f":"D78","v":"Emergency contraceptives were first introduced in 2009, and it has taken time to expand program demand to the lower levels (SDPs). Female condom programming has not yet been introduced in Ethiopia."}]
["D. Policies (Commitment)"]
["D1. Is there a contraceptive security or reproductive health commodity security strategy or is contraceptive security explicitly included in a country strategy? (Please select from the dropdown list.)",null,null,null,null,null,null,"Yes",{"$f":"A80","v":"D1. Is there a contraceptive security or reproductive health commodity security strategy or is contraceptive security explicitly included in a country strategy? (Please select from the dropdown list.)"}]
["IF NO, SKIP TO QUESTION D2."]
[null,"Strategy name",null,"Years Covered (including strategy updates)",null,"Is the strategy formally approved by the Ministry?","Is the contraceptive security strategy being implemented?",null,null,{"$f":"G82","v":"Is the contraceptive security strategy being implemented?"},{"$f":"B82","v":"Strategy name"},null,{"$f":"E82","v":0},null,null,null,null,null,{"$f":"D82","v":"Years Covered (including strategy updates)"}]
[null,"a","National Reproductive Health Strategy ","2006-2015",null,"Yes","Yes",null,null,{"$f":"G83","v":"Yes"},{"$f":"B83","v":"a"},null,{"$f":"E83","v":0},null,null,null,null,null,{"$f":"D83","v":"2006-2015"}]
["D2. Are any family planning commodities subject to duties, import taxes, or other fees?",null,null,null,null,"No",null,null,null,null,null,null,null,null,null,null,{"$f":"F84","v":"No"},{"$f":"A84","v":"D2. Are any family planning commodities subject to duties, import taxes, or other fees?"}]
[null,"a. If yes, for which sectors (public, NGO, social marketing, commercial)?",null,null,"N/A",null,null,null,null,null,null,null,{"$f":"E85","v":"N/A"},{"$f":"E85","v":"N/A"},null,null,null,{"$f":"B85","v":"a. If yes, for which sectors (public, NGO, social marketing, commercial)?"}]
[null,"b. If yes, how much are the duties, taxes, or fees?",null,null,"N/A",null,null,null,null,null,null,null,null,{"$f":"E86","v":"N/A"},null,null,null,{"$f":"B86","v":"b. If yes, how much are the duties, taxes, or fees?"}]
["D3. Are there policies that hinder the ability of the private sector (commercial sector, NGOs, or social marketing) to provide contraceptive methods (for example: price controls, distribution limitations, taxes/duties, advertising bans, etc.)?",null,null,null,null,null,null,"No",{"$f":"A87","v":"D3. Are there policies that hinder the ability of the private sector (commercial sector, NGOs, or social marketing) to provide contraceptive methods (for example: price controls, distribution limitations, taxes/duties, advertising bans, etc.)?"}]
[null,"a. If yes, describe the policies.",null,"N/A",null,null,null,null,null,null,{"$f":"B88","v":"a. If yes, describe the policies."},null,null,null,{"$f":"D88","v":"N/A"}]
["D4. Are there policies that enable the private sector (commercial sector, NGOs, or social marketing) to provide contraceptive methods?",null,null,null,null,null,null,"Yes",{"$f":"A89","v":"D4. Are there policies that enable the private sector (commercial sector, NGOs, or social marketing) to provide contraceptive methods?"}]
[null,"a. If yes, describe the policies.",null,"National RH Strategy (mentions enhancing CS through the effective use of social marketing), Adolescent Reproductive Health Strategy, and Family Planning Guideline (recently under revision)",null,null,null,null,null,null,{"$f":"B90","v":"a. If yes, describe the policies."},null,null,null,{"$f":"D90","v":"National RH Strategy (mentions enhancing CS through the effective use of social marketing), Adolescent Reproductive Health Strategy, and Family Planning Guideline (recently under revision)"}]
["D5. Do policies or regulations exist that restrict who can sell or dispense particular contraceptive methods?\n",null,null,null,null,null,null,"No",{"$f":"A91","v":"D5. Do policies or regulations exist that restrict who can sell or dispense particular contraceptive methods?\n"}]
[null,"Please note any restrictions in the following table."]
[null,"Contraceptive Method(s)",null,null,"Describe any public sector restriction on who is allowed to sell or dispense the method",null,"Describe any private sector restriction on who is allowed to sell or dispense the method",null,null,{"$f":"G93","v":"Describe any private sector restriction on who is allowed to sell or dispense the method"},null,null,null,null,null,{"$f":"B93","v":"Contraceptive Method(s)"},null,null,null,null,{"$f":"E93","v":"Describe any public sector restriction on who is allowed to sell or dispense the method"}]
[null,"a",null,null,null,null,null,null,null,{"$f":"G94","v":0},null,null,{"$f":"E94","v":0},null,null,{"$f":"C94","v":0},null,null,null,null,{"$f":"E94","v":0}]
[null,"b",null,null,null,null,null,null,null,{"$f":"G95","v":0},null,null,{"$f":"E95","v":0},null,null,{"$f":"C95","v":0},null,null,null,null,{"$f":"E95","v":0}]
[null,"c",null,null,null,null,null,null,null,{"$f":"G96","v":0},null,null,{"$f":"E96","v":0},null,null,{"$f":"C96","v":0},null,null,null,null,{"$f":"E96","v":0}]
[null,null,null,null,null,null,null,null,null,null,{"$f":"C97","v":0}]
["D6. Does the country have laws, regulations, or policies that make it difficult for the following sub-populations to access effective family planning services?",null,null,"Y/N","If yes, describe laws/regulations/policies affecting access ",null,null,"Are the rules/policies implemented?",null,null,{"$f":"A98","v":"D6. Does the country have laws, regulations, or policies that make it difficult for the following sub-populations to access effective family planning services?"},null,null,null,null,null,null,null,null,null,null,{"$f":"E98","v":"If yes, describe laws/regulations/policies affecting access "}]
[null,"a. Unmarried people",null,"No",null,null,null,null,null,null,{"$f":"B99","v":"a. Unmarried people"},null,{"$f":"E99","v":0},null,null,null,null,null,null,null,null,{"$f":"E99","v":0}]
[null,"b. Young people",null,"No",null,null,null,null,null,null,{"$f":"B100","v":"b. Young people"},null,{"$f":"E100","v":0},null,null,null,null,null,null,null,null,{"$f":"E100","v":0}]
[null,"c. Other",null,"No",null,null,null,null,null,null,{"$f":"B101","v":"c. Other"},null,{"$f":"E101","v":0},null,null,null,null,null,null,null,null,{"$f":"E101","v":0}]
[null,null,null,null,null,null,null,null,null,null,{"$f":"C102","v":0}]
["D7. Are there charges* to the client in the public sector for family planning:\n*(This question refers to charges by policy, not under-the-table charges.)\n",null,null,null,null,null,null,null,null,null,null,null,null,null,null,null,null,null,null,null,null,null,null,{"$f":"A103","v":"D7. Are there charges* to the client in the public sector for family planning:\n*(This question refers to charges by policy, not under-the-table charges.)\n"}]
[null,"a. Services?",null,null,null,null,"No",null,null,{"$f":"G104","v":"No"},null,null,null,null,null,null,null,null,null,null,null,null,null,null,{"$f":"B104","v":"a. Services?"}]
[null,"b. Commodities?",null,null,null,null,"No",null,null,{"$f":"G105","v":"No"},null,null,null,null,null,null,null,null,null,null,null,null,null,null,{"$f":"B105","v":"b. Commodities?"}]
[null,"c. If yes, are there exemptions for people who cannot afford to pay?",null,null,null,null,"N/A",null,null,{"$f":"G106","v":"N/A"},null,null,null,null,null,null,null,null,null,null,null,null,null,null,{"$f":"B106","v":"c. If yes, are there exemptions for people who cannot afford to pay?"}]
[null,null,"i. If yes, describe the exemptions.","N/A",null,null,null,null,null,null,{"$f":"C107","v":"i. If yes, describe the exemptions."},null,null,null,{"$f":"D107","v":"N/A"}]
["D8. Are the following contraceptives included in the country's National Essential Medicine List (NEML) or other equivalent priority list?",null,null,null,null,null,null,null,null,null,null,null,null,null,null,null,null,null,null,null,null,null,null,{"$f":"A108","v":"D8. Are the following contraceptives included in the country's National Essential Medicine List (NEML) or other equivalent priority list?"}]
[null,"a. Combined oral contraceptives",null,null,null,null,"Yes",null,null,{"$f":"G109","v":"Yes"},null,null,null,null,null,null,null,null,null,null,null,null,null,null,{"$f":"B109","v":"a. Combined oral contraceptives"}]
[null,"b. Progestin-only pills",null,null,null,null,"Yes",null,null,"Yes",null,null,null,null,null,null,null,null,null,null,null,null,null,null,"b. Progestin-only pills"]
[null,"c. Hormonal injections",null,null,null,null,"Yes",null,null,"Yes",null,null,null,null,null,null,null,null,null,null,null,null,null,null,"c. Hormonal injections"]
[null,"d. Hormonal implants",null,null,null,null,"Yes",null,null,"Yes",null,null,null,null,null,null,null,null,null,null,null,null,null,null,"d. Hormonal implants"]
[null,"e. Intrauterine devices (IUDs)",null,null,null,null,"Yes",null,null,"Yes",null,null,null,null,null,null,null,null,null,null,null,null,null,null,"e. Intrauterine devices (IUDs)"]
[null,"f. Male condoms",null,null,null,null,"Yes",null,null,"Yes",null,null,null,null,null,null,null,null,null,null,null,null,null,null,"f. Male condoms"]
[null,"g. Female condoms",null,null,null,null,"Yes",null,null,"Yes",null,null,null,null,null,null,null,null,null,null,null,null,null,null,"g. Female condoms"]
[null,"h. Emergency contraceptive pills",null,null,null,null,"Yes",null,null,"Yes",null,null,null,null,null,null,null,null,null,null,null,null,null,null,"h. Emergency contraceptive pills"]
[null,"i. CycleBeads",null,null,null,null,"No",null,null,{"$f":"G117","v":"No"},null,null,null,null,null,null,null,null,null,null,null,null,null,null,{"$f":"B117","v":"i. CycleBeads"}]
[null,"j. Any other contraceptive(s)?",null,null,null,null,"Yes",null,null,"Yes",null,null,null,null,null,null,null,null,null,null,null,null,null,null,"j. Any other contraceptive(s)?"]
[null,null,"i. Name of other contraceptive(s) on the list(s)",null,null,"Diaphragm with spermicidal ",null,null,null,0,null,null,null,null,null,null,null,{"$f":"B119","v":0}]
["D9. What year(s) is the list(s) from?",null,null,null,null,"2004, with updates in process",null,null,null,0,null,null,null,null,null,null,null,{"$f":"B120","v":0}]
["D10. Name of the list(s)\n\n\n",null,null," Essential Medicine List (EML)",null,null,null,null,null,null,{"$f":"A121","v":"D10. Name of the list(s)\n\n\n"},null,null,null,{"$f":"D121","v":" Essential Medicine List (EML)"}]
["D11. Notes about the list(s)\n\n",null,null,"Ethiopia has the Essential Medicines List published in 2004 and the List of Drugs for Ethiopia (LIDE) published in 2007. Updates are in processs for the EML.",null,null,null,null,null,null,{"$f":"A122","v":"D11. Notes about the list(s)\n\n"},null,null,null,{"$f":"D122","v":"Ethiopia has the Essential Medicines List published in 2004 and the List of Drugs for Ethiopia (LIDE) published in 2007. Updates are in processs for the EML."}]
["D12.  Information on country's Poverty Reduction Strategy Paper (PRSP)\n",null,null,null,null,null,null,null,null,null,null,null,null,null,null,null,null,null,null,null,null,null,null,{"$f":"A123","v":"D12.  Information on country's Poverty Reduction Strategy Paper (PRSP)\n"}]
[null,"a. What year is the Poverty Reduction Strategy Paper from? (most recent actual PRSP on IMF's site [not progress or summary report])",null,null,null,2002,null,null,null,{"$f":"G124","v":0},null,null,null,null,null,null,null,{"$f":"B124","v":"a. What year is the Poverty Reduction Strategy Paper from? (most recent actual PRSP on IMF's site [not progress or summary report])"}]
[null,"b. Is family planning or reproductive health a priority in the PRSP?",null,null,null,null,"Yes",null,null,{"$f":"G125","v":"Yes"},null,null,null,null,null,null,null,null,null,null,null,null,null,null,{"$f":"B125","v":"b. Is family planning or reproductive health a priority in the PRSP?"}]
[null,"c. Is contraceptive security included in the PRSP?",null,null,null,null,"No",null,null,{"$f":"G126","v":"No"},null,null,null,null,null,null,null,null,null,null,null,null,null,null,{"$f":"B126","v":"c. Is contraceptive security included in the PRSP?"}]
[null,"d. Is contraceptive prevalence rate (CPR) included as an indicator in the PRSP?",null,null,null,null,"Yes",null,null,{"$f":"G127","v":"Yes"},null,null,null,null,null,null,null,null,null,null,null,null,null,null,{"$f":"B127","v":"d. Is contraceptive prevalence rate (CPR) included as an indicator in the PRSP?"}]
[null,"e. Are contraceptive supply indicators included in the PRSP?",null,null,null,null,"No",null,null,{"$f":"G128","v":"No"},null,null,null,null,null,null,null,null,null,null,null,null,null,null,{"$f":"B128","v":"e. Are contraceptive supply indicators included in the PRSP?"}]
["\n\n\n","f. Notes about the Poverty Reduction Strategy Paper",null,"While contraceptive security isn't included, access to health services in general is an indicator. Also, there is an objective to ensure a regular and adequate supply of effective, safe and affordable essential drugs. While there is no contraceptive supply indicator, there is an indicator about HIV/AIDS condom distribution by social marketing. ",null,null,null,null,null,null,{"$f":"B129","v":"f. Notes about the Poverty Reduction Strategy Paper"},null,null,null,{"$f":"D129","v":"While contraceptive security isn't included, access to health services in general is an indicator. Also, there is an objective to ensure a regular and adequate supply of effective, safe and affordable essential drugs. While there is no contraceptive supply indicator, there is an indicator about HIV/AIDS condom distribution by social marketing. "}]
["E. Supply Chain (Capacity)"]
["E1. Have stockouts occurred for any contraceptive at the central* level in the last 12 months?  \n*(The central level refers to the central level warehouse for the public sector.)",null,null,null,null,null,"Yes",null,null,{"$f":"G131","v":"Yes"},null,null,null,null,null,null,null,null,null,null,null,null,null,null,{"$f":"A131","v":"E1. Have stockouts occurred for any contraceptive at the central* level in the last 12 months?  \n*(The central level refers to the central level warehouse for the public sector.)"}]
["E2. In the last 12 months, has there ever been a stockout at the central level of any of the contraceptives offered in public sector facilities? (If a method is not intended to be offered in public sector facilities, please indicate that stockouts are not applicable (choose \"N/A\" from the dropdown list).)",null,null,null,null,null,null,null,null,null,null,null,null,null,null,null,null,null,null,null,null,null,null,{"$f":"A132","v":"E2. In the last 12 months, has there ever been a stockout at the central level of any of the contraceptives offered in public sector facilities? (If a method is not intended to be offered in public sector facilities, please indicate that stockouts are not applicable (choose \"N/A\" from the dropdown list).)"}]
[null,"a. Combined oral contraceptives",null,null,null,null,"No",null,null,{"$f":"G133","v":"No"},null,null,null,null,null,null,null,null,null,null,null,null,null,null,{"$f":"B133","v":"a. Combined oral contraceptives"}]
[null,"b. Progestin-only pills",null,null,null,null,"Yes",null,null,"Yes",null,null,null,null,null,null,null,null,null,null,null,null,null,null,"b. Progestin-only pills"]
[null,"c. Hormonal injections",null,null,null,null,"No",null,null,"No",null,null,null,null,null,null,null,null,null,null,null,null,null,null,"c. Hormonal injections"]
[null,"d. Hormonal implants",null,null,null,null,"No",null,null,"No",null,null,null,null,null,null,null,null,null,null,null,null,null,null,"d. Hormonal implants"]
[null,"e. Intrauterine devices (IUDs)",null,null,null,null,"Yes",null,null,"Yes",null,null,null,null,null,null,null,null,null,null,null,null,null,null,"e. Intrauterine devices (IUDs)"]
[null,"f. Male condoms",null,null,null,null,"No",null,null,"No",null,null,null,null,null,null,null,null,null,null,null,null,null,null,"f. Male condoms"]
[null,"g. Female condoms",null,null,null,null,"N/A",null,null,"N/A",null,null,null,null,null,null,null,null,null,null,null,null,null,null,"g. Female condoms"]
[null,"h. Emergency contraceptive pills",null,null,null,null,"No",null,null,"No",null,null,null,null,null,null,null,null,null,null,null,null,null,null,"h. Emergency contraceptive pills"]
[null,"i. CycleBeads",null,null,null,null,"N/A",null,null,"N/A",null,null,null,null,null,null,null,null,null,null,null,null,null,null,"i. CycleBeads"]
[null,"j. Time period\n(mm/yy - mm/yy) (for example, 1/10-12/10) ",null,null,null,"07/09-06/10",null,null,null,null,null,null,null,null,null,null,{"$f":"F142","v":"07/09-06/10"},{"$f":"B142","v":"j. Time period\n(mm/yy - mm/yy) (for example, 1/10-12/10) "}]
[null,"k. Data source\n(for example: Procurement Planning and Monitoring Report, Logistics Management Information System, periodic physical inventory, warehouse reports)",null,null,null,"LMIS reports",null,null,null,null,null,null,null,null,null,null,{"$f":"F143","v":"LMIS reports"},{"$f":"B143","v":"k. Data source\n(for example: Procurement Planning and Monitoring Report, Logistics Management Information System, periodic physical inventory, warehouse reports)"}]
["E3. Are stockouts a large problem in your country at the following levels? (i.e., Are they common or do they tend to last for a long time?)\n\n"]
[null,"a. service delivery point level (i.e., public sector health facilities)",null,null,null,null,"No",null,null,{"$f":"G145","v":"No"},null,null,null,null,null,null,null,null,null,null,null,null,null,null,{"$f":"B145","v":"a. service delivery point level (i.e., public sector health facilities)"}]
[null,"b. central level (i.e., central level warehouse for the public sector)",null,null,null,null,"No",null,null,{"$f":"G146","v":"No"},null,null,null,null,null,null,null,null,null,null,null,null,null,null,{"$f":"B146","v":"b. central level (i.e., central level warehouse for the public sector)"}]
["F. Please note any overall comments about challenges and/or successes with contraceptive security in your country.\n\n",null,null,"Significant improvement has been observed in the stockout rates  at SDPs of the most widely used contraceptives (injectables, pills, and condoms). The stockout rate for injectables and pills was less than 7% throughout fiscal year 2010. The stockout rate for male condoms was less than 10% for the year and less than 8% in the 4th quarter of 2010. Stockout rates for implants also decreased, to less than 25% by the end of 2010. The stockout rate had been more than 58% for injectables, 30% for pills, 20% for male condoms, and 60% for implants in 2006 (according to the Logistics Indicators Assessment Tool [LIAT] asessment conducted in 2006).",null,null,null,null,null,null,{"$f":"A147","v":"F. Please note any overall comments about challenges and/or successes with contraceptive security in your country.\n\n"},null,null,null,{"$f":"D147","v":"Significant improvement has been observed in the stockout rates  at SDPs of the most widely used contraceptives (injectables, pills, and condoms). The stockout rate for injectables and pills was less than 7% throughout fiscal year 2010. The stockout rate for male condoms was less than 10% for the year and less than 8% in the 4th quarter of 2010. Stockout rates for implants also decreased, to less than 25% by the end of 2010. The stockout rate had been more than 58% for injectables, 30% for pills, 20% for male condoms, and 60% for implants in 2006 (according to the Logistics Indicators Assessment Tool [LIAT] asessment conducted in 2006)."}]

{"sheet":"Gambia ~2011~","index":16,"n_rows":147,"n_cols":25,"rows_kept":147,"cut":false,"hidden":false,"merged":[[73,3,73,4],[62,0,62,6],[68,3,68,4],[69,3,69,4],[72,1,72,2],[69,1,69,2],[68,1,68,2],[65,3,65,4],[71,3,71,4],[70,1,70,2],[72,3,72,4],[66,1,66,2],[63,0,63,7],[66,3,66,4],[70,3,70,4],[76,1,76,2],[81,0,82,0],[77,3,77,7],[76,3,76,4],[74,3,74,4],[77,0,77,2],[75,3,75,4],[75,1,75,2],[81,6,81,7],[78,0,78,6],[0,0,0,7],[54,0,54,4],[7,6,7,7],[1,0,1,2],[1,3,1,4],[20,5,20,7],[140,6,140,7],[136,6,136,7],[137,6,137,7],[139,6,139,7],[138,6,138,7],[114,6,114,7],[115,6,115,7],[130,6,130,7],[119,5,119,7],[134,6,134,7],[105,6,105,7],[95,6,95,7],[81,3,81,4],[97,4,97,6],[94,6,94,7],[103,1,103,5],[82,3,82,4],[100,1,100,2],[2,0,2,7],[36,0,36,6],[25,0,25,2],[50,1,50,2],[55,0,55,4],[60,5,60,7],[14,1,14,2],[31,0,31,6],[28,6,28,7],[28,0,28,5],[58,5,58,7],[58,0,58,4],[56,6,56,7],[53,0,53,7],[42,3,42,7],[47,1,47,2],[23,0,23,6],[59,5,59,7],[60,2,60,4],[39,1,39,2],[67,3,67,4],[21,5,21,7],[67,1,67,2],[56,0,56,4],[59,1,59,4],[27,0,27,2],[61,0,61,2],[61,3,61,7],[48,3,48,7],[51,1,51,2],[49,1,49,2],[32,0,32,7],[46,1,46,2],[40,3,40,7],[3,3,3,4],[3,5,3,7],[20,1,20,2],[45,0,45,7],[37,0,37,7],[15,1,15,2],[15,5,15,7],[16,5,16,7],[17,5,17,7],[18,5,18,7],[19,5,19,7],[16,1,16,2],[55,6,55,7],[30,0,30,6],[34,1,34,3],[33,1,33,3],[35,0,35,7],[27,3,27,4],[29,6,29,7],[21,1,21,2],[24,0,24,6],[22,1,22,2],[22,5,22,7],[43,1,43,2],[19,1,19,2],[29,0,29,3],[38,1,38,2],[41,1,41,2],[26,0,26,6],[7,3,7,5],[7,0,7,2],[13,3,13,7],[12,1,12,2],[9,0,9,7],[10,0,10,6],[11,0,11,6],[8,0,8,7],[136,1,136,5],[130,0,130,5],[87,3,87,7],[94,4,94,5],[102,0,102,7],[83,5,83,7],[105,1,105,5],[85,4,85,7],[99,4,99,6],[104,6,104,7],[54,6,54,7],[12,3,12,7],[13,0,13,2],[17,1,17,2],[14,5,14,7],[18,1,18,2],[79,0,79,6],[95,2,95,3],[64,0,64,2],[138,1,138,5],[132,1,132,5],[133,1,133,5],[134,1,134,5],[135,1,135,5],[90,0,90,6],[84,4,84,7],[85,1,85,3],[83,0,83,4],[81,1,81,2],[84,1,84,3],[92,4,92,5],[82,6,82,7],[92,1,92,3],[64,3,64,4],[65,1,65,2],[71,1,71,2],[73,1,73,2],[80,0,80,2],[74,1,74,2],[93,4,93,5],[96,0,96,7],[97,0,97,2],[129,0,129,6],[98,4,98,6],[104,1,104,5],[93,6,93,7],[86,0,86,6],[89,3,89,7],[87,1,87,2],[88,0,88,6],[89,1,89,2],[93,2,93,3],[92,6,92,7],[91,1,91,2],[99,1,99,2],[116,1,116,5],[116,6,116,7],[120,0,120,2],[120,3,120,7],[118,2,118,4],[118,5,118,7],[119,0,119,4],[148,0,150,7],[145,6,145,7],[146,0,146,2],[147,0,147,7],[145,1,145,5],[98,1,98,2],[108,1,108,5],[135,6,135,7],[146,3,146,7],[103,6,103,7],[137,1,137,5],[101,0,101,7],[141,1,141,4],[114,1,114,5],[126,6,126,7],[144,1,144,5],[4,0,4,2],[5,0,5,2],[132,6,132,7],[144,6,144,7],[143,0,143,7],[142,1,142,4],[139,1,139,5],[100,4,100,6],[108,6,108,7],[142,5,142,7],[141,5,141,7],[140,1,140,5],[111,1,111,5],[117,6,117,7],[111,6,111,7],[113,6,113,7],[115,1,115,5],[117,1,117,5],[125,1,125,5],[94,2,94,3],[95,4,95,5],[127,1,127,5],[127,6,127,7],[128,1,128,2],[128,3,128,7],[133,6,133,7],[131,0,131,7],[106,3,106,7],[122,0,122,7],[123,1,123,4],[123,5,123,7],[124,1,124,5],[124,6,124,7],[113,1,113,5],[112,1,112,5],[121,0,121,2],[121,3,121,7],[125,6,125,7],[126,1,126,5],[112,6,112,7],[109,1,109,5],[107,0,107,7],[109,6,109,7],[110,6,110,7],[110,1,110,5]]}
[null,null,null,null,null,null,null,null,"Columns I-Y are meant to be hidden. They exist because they allow for the dropdown list options. They also allow for merged cells to autofit properly in terms of row height. This should work if all columns remain at their correct widths.","g-h",null,"a-e merged","E-F merged","e-h","0 times",null,null,"The government (e.g., Central Medical Stores, MOH logistics unit, MOH procurement unit)",null,null,null,null,"Yes","a-h","January"]
[null,null,null,null,null,null,null,null,null,null,"A-c",null,null,null,"1-2 times","b-d merged",null,"Third-party agent (e.g., UNFPA, Crown Agents)","d-e merged","d-f merged","e-f merged","e-g merged","No",null,"February"]
[null,null,null,null,null,null,null,null,null,null,null,null,null,null,"3-5 times",null,null,"The government and a third-party agent",null,null,null,null,null,null,"March"]
[null,null,null,null,null,null,null,null,null,null,null,null,null,null,"6 or more times",null,null,"Other",null,null,null,null,"N/A",null,"April"]
["To jump to the Introduction sheet, click here.",null,null,null,null,null,null,null,null,null,null,null,null,null,null,null,null,null,null,null,null,null,"Don't know",null,"May"]
[null,null,null,null,null,null,null,null,null,null,null,null,null,null,"N/A",null,null,"N/A",null,null,null,null,null,null,"June"]
["Contraceptive Security (CS) Indicators Data (~collected in late 2010 so displayed with other countries' 2011 data~)",null,null,null,null,null,null,null,null,null,null,null,null,null,"Don't know",null,null,"Don't know",null,null,null,null,null,null,"July"]
["Country: Gambia",null,null,null,null,null,null,null,null,{"$f":"G8","v":0},{"$f":"A8","v":"Country: Gambia"},null,null,null,null,"or c-d",null,null,null,{"$f":"D8","v":0},null,null,null,null,"August"]
["The CS Indicators are presented in the following sections:\n\n               A. leadership & cooordination               B. finance & procurement               C. commodities               D. policies               E. supply chain",null,null,null,null,null,null,null,null,{"$f":"G9","v":0},{"$f":"A9","v":"The CS Indicators are presented in the following sections:\n\n               A. leadership & cooordination               B. finance & procurement               C. commodities               D. policies               E. supply chain"},null,null,null,"d-h",null,"f-h merged",null,{"$f":"D9","v":0},null,null,null,null,null,"September"]
["\nNotes:\n  -  Respondents' answers are indicated in the white spaces. \n  -  N/A = not applicable. Don't know = the respondent either indicated they did not know or left the answer blank.\n  -  Some questions required respondents to choose from a dropdown list of options; in these cases the dropdown arrow will \n     appear when you click on the cell. \n  -  There may be a few inserted comments. (If you cannot already see them, click on Review tab - Comments group - Show All Comments in newer \n       versions of Excel or View - Comments in older versions of Excel.)\n  -  If the answer is cut off, you can either manually adjust the row height or autofit the row height in order to see the whole \n     response. (To autofit the row height, select the answer(s) and go to Home tab - Cells group - Format - Autofit Row Height in newer versions of Excel or \n      Format - Row - Autofit in older versions of Excel.)\n\n*The questions that Gambia was not asked (since they completed an earlier version of the survey) are shaded in a darker gray than the other questions.\n",null,null,null,null,null,null,null,"a-g",null,null,null,null,null,null,null,null,"a-e merged",null,null,null,null,null,{"$f":"A10","v":"\nNotes:\n  -  Respondents' answers are indicated in the white spaces. \n  -  N/A = not applicable. Don't know = the respondent either indicated they did not know or left the answer blank.\n  -  Some questions required respondents to choose from a dropdown list of options; in these cases the dropdown arrow will \n     appear when you click on the cell. \n  -  There may be a few inserted comments. (If you cannot already see them, click on Review tab - Comments group - Show All Comments in newer \n       versions of Excel or View - Comments in older versions of Excel.)\n  -  If the answer is cut off, you can either manually adjust the row height or autofit the row height in order to see the whole \n     response. (To autofit the row height, select the answer(s) and go to Home tab - Cells group - Format - Autofit Row Height in newer versions of Excel or \n      Format - Row - Autofit in older versions of Excel.)\n\n*The questions that Gambia was not asked (since they completed an earlier version of the survey) are shaded in a darker gray than the other questions.\n"},"October"]
["A. Leadership and Coordination",null,null,null,null,null,null,null,null,null,null,null,null,null,null,null,null,null,null,null,null,null,null,null,"November"]
["A1. Is there a national committee that works on contraceptive security? (Please select from the dropdown list.)\n(Committee should have some aspect of contraceptive security as part of its Terms of Reference, even if it is known by a different name, for example: Family Planning, Reproductive Health, Maternal Mortality, Essential Medicine Committee, etc.)  ",null,null,null,null,null,null,"Yes",{"$f":"A12","v":"A1. Is there a national committee that works on contraceptive security? (Please select from the dropdown list.)\n(Committee should have some aspect of contraceptive security as part of its Terms of Reference, even if it is known by a different name, for example: Family Planning, Reproductive Health, Maternal Mortality, Essential Medicine Committee, etc.)  "},null,null,null,null,null,null,null,null,null,null,null,null,null,null,null,"December"]
[null,"a. What is the name of the committee?",null,"Commodity Security Committee",null,null,null,null,null,null,{"$f":"B13","v":"a. What is the name of the committee?"},{"$f":"D13","v":"Commodity Security Committee"},null,null,{"$f":"D13","v":"Commodity Security Committee"}]
["A2. Are the following organizations represented on the committee?",null,null,"(Y/N \ndropdown)",null,null,null,null,null,null,{"$f":"A14","v":"A2. Are the following organizations represented on the committee?"},null,null,null,null,null,null,null,null,null,null,null,null,null,"Don't know"]
[null,"a. Social marketing",null,"Yes","If yes, specify name(s) of organizations","Gambia Family Planning Association (GFPA)",null,null,null,null,{"$f":"B15","v":"a. Social marketing"},null,null,null,null,null,{"$f":"F15","v":"Gambia Family Planning Association (GFPA)"}]
[null,"b. NGO (for example: service delivery, advocacy, Planned Parenthood affiliate, Marie Stopes affiliate, faith-based organizations, etc.)",null,"Yes","If yes, specify name(s) of organizations","Gambia Family Planning Association",null,null,null,null,"b. NGO (for example: service delivery, advocacy, Planned Parenthood affiliate, Marie Stopes affiliate, faith-based organizations, etc.)",null,null,null,null,null,"Gambia Family Planning Association"]
[null,"c. Commercial sector (for example: pharmacy associations, manufacturers, etc.)",null,"Yes","If yes, specify name(s) of organizations","Private pharmacy representative ",null,null,null,null,"c. Commercial sector (for example: pharmacy associations, manufacturers, etc.)",null,null,null,null,null,"Private pharmacy representative "]
[null,"d. Donors",null,"Yes","If yes, specify name(s) of donors","UNFPA",null,null,null,null,"d. Donors",null,null,null,null,null,"UNFPA"]
[null,"e. UN agencies",null,"Yes","If yes, specify name(s) of agencies","WHO, UNICEF",null,null,null,null,"e. UN agencies",null,null,null,null,null,"WHO, UNICEF"]
[null,"f. Ministry of Health (for example: logistics, reproductive health, family planning, maternal and child health, HIV/AIDS, pharmacy units, etc.)",null,"Yes","If yes, specify name(s) of units","Reproductive and Child Health (RCH) Department (chair of the committee)",null,null,null,null,"f. Ministry of Health (for example: logistics, reproductive health, family planning, maternal and child health, HIV/AIDS, pharmacy units, etc.)",null,null,null,null,null,"Reproductive and Child Health (RCH) Department (chair of the committee)"]
[null,"g. Central Medical Store or Central Warehouse",null,"Yes","If yes, specify","National Pharmaceutical Services",null,null,null,null,"g. Central Medical Store or Central Warehouse",null,null,null,null,null,"National Pharmaceutical Services"]
[null,"h. Ministry of Finance or Ministry of Planning ",null,"Yes","If yes, specify","A representative attends meetings",null,null,null,null,"h. Ministry of Finance or Ministry of Planning ",null,null,null,null,null,"A representative attends meetings"]
[null,"i. Other (for example: partners)",null,null,"If yes, specify",null,null,null,null,null,"i. Other (for example: partners)",null,null,null,null,null,0]
["A3. How many times did the committee meet during the last year? (0, 1-2, 3-5, or 6+)  (Please select from the dropdown.)",null,null,null,null,null,null,"0 times",{"$f":"A24","v":"A3. How many times did the committee meet during the last year? (0, 1-2, 3-5, or 6+)  (Please select from the dropdown.)"}]
["A4. Does the committee have legal status?  (Please select from the dropdown.)                                  ",null,null,null,null,null,null,"No",{"$f":"A25","v":"A4. Does the committee have legal status?  (Please select from the dropdown.)                                  "}]
["A5. Is there a Contraceptive Security \"champion\"? (someone who consistently brings up and advocates for contraceptive supplies)",null,null,"Yes","If yes, specify person's organization","Ministry of Health and Social Welfare (MOH&SW)","Specify person's job title","Reproductive and Child Health (RCH) Program Manager",null,null,{"$f":"A26","v":"A5. Is there a Contraceptive Security \"champion\"? (someone who consistently brings up and advocates for contraceptive supplies)"}]
["B. Finance and Procurement (Capital)"]
["B1. What is the timeline of the country's fiscal year?",null,null,"Beginning month",null,"Don't know","Ending month","Don't know",null,null,{"$f":"B28","v":0}]
["B2. What was the estimated dollar value of contraceptives needed to be procured for the public sector for the most recent complete fiscal year? (in USD currency)\n(for example, to cover the needs for the '09-'10 fiscal year)",null,null,null,null,null,104883,null,null,{"$f":"G29","v":104883},null,null,{"$f":"E29","v":0},null,null,null,null,null,null,null,null,null,null,null,{"$f":"A29","v":"B2. What was the estimated dollar value of contraceptives needed to be procured for the public sector for the most recent complete fiscal year? (in USD currency)\n(for example, to cover the needs for the '09-'10 fiscal year)"}]
["B3. When was the last forecast/quantification conducted? (mm/yy)",null,null,null,"Don't know","Who conducted it? (Specify organization.)","Don't know",null,null,{"$f":"G30","v":"Don't know"},null,null,{"$f":"E30","v":"Don't know"},null,null,null,null,null,null,null,null,null,null,null,{"$f":"A30","v":"B3. When was the last forecast/quantification conducted? (mm/yy)"}]
["B4. Is there a government budget line item for the procurement of contraceptives?  (Please select from the dropdown list.)",null,null,null,null,null,null,"No",{"$f":"A31","v":"B4. Is there a government budget line item for the procurement of contraceptives?  (Please select from the dropdown list.)"}]
["B5. Were government funds allocated for contraceptive procurement for the public sector in the most recent complete fiscal year? (This question refers to funds planned to be spent on contraceptives, whether or not they ended up being spent.) \n\n(Government funds include internally generated funds, basket funds, World Bank credits or loans, and other funds donors gave to the government for their use.) \n",null,null,null,null,null,null,"Don't know",{"$f":"A32","v":"B5. Were government funds allocated for contraceptive procurement for the public sector in the most recent complete fiscal year? (This question refers to funds planned to be spent on contraceptives, whether or not they ended up being spent.) \n\n(Government funds include internally generated funds, basket funds, World Bank credits or loans, and other funds donors gave to the government for their use.) \n"}]
["B6. Please complete the table below regarding government allocations for contraceptive procurement.",null,null,null,null,null,null,null,null,null,null,null,null,null,null,null,null,null,null,null,null,null,null,{"$f":"A33","v":"B6. Please complete the table below regarding government allocations for contraceptive procurement."}]
[null,null,null,null,"Amount allocated \n(in USD)","Time period during which allocations were supposed to be spent \n(mm/yy-mm/yy)\n(should ideally be the most recent\ncomplete fiscal year ['09-'10])","Data source \n(for example: Ministry records)","Comments",null,null,{"$f":"A34","v":0}]
[null,"Government funds allocated for contraceptive procurement\n(funds originally designated for contraceptives, whether or not they ended up being spent on them)",null,null,"Don't know","01/09-12/09",null,null,null,null,{"$f":"#REF!","v":{"$error":"#REF!"}}]
[]
["B7. Were government funds spent on contraceptive procurement for the public sector in the most recent complete fiscal year? \n(Government funds include internally generated funds, basket funds, World Bank credits or loans, and other funds donors gave to the government for their use.)",null,null,null,null,null,null,"Don't know",{"$f":"A37","v":"B7. Were government funds spent on contraceptive procurement for the public sector in the most recent complete fiscal year? \n(Government funds include internally generated funds, basket funds, World Bank credits or loans, and other funds donors gave to the government for their use.)"}]
["B8. Please complete the table below to indicate government expenditures on contraceptive procurement, by source, in the most recent complete fiscal year. \n(This is how much was spent on contraceptive procurement (not what was allocated). How much of this spending was provided from each source?)",null,null,null,null,null,null,null,null,null,null,null,null,null,null,null,null,null,null,null,null,null,null,{"$f":"A38","v":"B8. Please complete the table below to indicate government expenditures on contraceptive procurement, by source, in the most recent complete fiscal year. \n(This is how much was spent on contraceptive procurement (not what was allocated). How much of this spending was provided from each source?)"}]
[null,"Source of government funds spent on contraceptive procurement for the public sector",null,"Was this source used?\n(Y/N)","Amount spent \n(in USD)","Time period (mm/yy-mm/yy)\n(should be the same for all sources of funds & ideally be the most recent\ncomplete fiscal year ['09-'10])","Data source \n(for example: Contraceptive Procurement Table, PipeLine, etc.)","Comments",null,null,{"$f":"A39","v":0}]
[null,"a. Internally generated funds spent on contraceptive procurement",null,"No",0,"01/09-12/09",null,null,null,null,{"$f":"B40","v":"a. Internally generated funds spent on contraceptive procurement"}]
[null,null,"i. Specify source(s) of internally generated funds spent (for example, from taxes or user fees)","N/A",null,null,null,null,null,null,{"$f":"C41","v":"i. Specify source(s) of internally generated funds spent (for example, from taxes or user fees)"},null,null,null,{"$f":"D41","v":"N/A"}]
[null,"b. Total of all other government funds spent on contraceptive procurement (basket funds, World Bank credits or loans, and other funds donors gave to the government [e.g., direct budget support])",null,"Don't know","Don't know","01/09-12/09","Interview with UNFPA NPO for Reproductive Health and HIV/AIDS","UNFPA allocates 35K USD annually for functioning of the RCH division and the division decides how much is used for contraceptive procurement. There was no data on actually how much of the 35K was spent on contraceptive procurement.",null,null,{"$f":"B42","v":"b. Total of all other government funds spent on contraceptive procurement (basket funds, World Bank credits or loans, and other funds donors gave to the government [e.g., direct budget support])"}]
[null,null,"i. Specify source(s) of other government funds spent (for example: basket funding or specific donor)","UNFPA",null,null,null,null,null,null,{"$f":"C43","v":"i. Specify source(s) of other government funds spent (for example: basket funding or specific donor)"},null,null,null,{"$f":"D43","v":"UNFPA"}]
[null,"c. TOTAL government funds spent on contraceptive procurement\nThis will auto-calculate.  (It will sum a & b above.)",null,null,"Don't know",null,null,null,null,null,{"$f":"B44","v":"c. TOTAL government funds spent on contraceptive procurement\nThis will auto-calculate.  (It will sum a & b above.)"}]
[null,null,null,null,null,null,null,null,null,null,{"$f":"A45","v":0}]
["B9. Please complete the table below to indicate donor expenditures on contraceptive procurement in the most recent complete fiscal year.\n",null,null,null,null,null,null,null,null,null,null,null,null,null,null,null,null,null,null,null,null,null,null,{"$f":"A46","v":"B9. Please complete the table below to indicate donor expenditures on contraceptive procurement in the most recent complete fiscal year.\n"}]
["\n","Source of donations and donor funds spent on contraceptive procurement for the public sector",null,"Was this a source?\n(Y/N)","Amount of money spent on these procurements \n(in USD)","Time period (mm/yy-mm/yy)\n(should be the same for all sources of funds & ideally be the most recent\ncomplete fiscal year ['09-'10])","Data source \n(for example:  Donor records, Contraceptive Procurement Table, PipeLine, RHInterchange, etc.","Comments",null,null,{"$f":"A47","v":"\n"}]
[null,"a. In-kind donations of contraceptives",null,"Yes",60222,"01/09-12/09","RHInterchange",null,null,null,{"$f":"B48","v":"a. In-kind donations of contraceptives"}]
[null,null,"i. Specify source(s) of in-kind donations ","UNFPA",null,null,null,null,null,null,{"$f":"C49","v":"i. Specify source(s) of in-kind donations "},null,null,null,{"$f":"D49","v":"UNFPA"}]
[null,"b. Global Fund donations used to procure condoms",null,"No",0,"01/09-12/09","RHInterchange",null,null,null,{"$f":"B50","v":"b. Global Fund donations used to procure condoms"}]
[null,"c. Global Fund donations used to procure contraceptives besides condoms",null,"No",0,"01/09-12/09","RHInterchange",null,null,null,{"$f":"B51","v":"c. Global Fund donations used to procure contraceptives besides condoms"}]
[null,"d. TOTAL value of in-kind donations and Global Fund donations spent on contraceptive procurement\nThis will auto-calculate.  (It will sum a-c above.)",null,null,{"$f":"E48+E50+E51","v":60222},null,null,null,null,null,{"$f":"B52","v":"d. TOTAL value of in-kind donations and Global Fund donations spent on contraceptive procurement\nThis will auto-calculate.  (It will sum a-c above.)"}]
[null,null,null,null,null,null,null,null,null,null,{"$f":"A53","v":0}]
["The answers to B10 and B11 should calculate automatically based on the information you provided. Please review the answers to ensure they make sense to you, and if you have additional information to add, please note it in the comments boxes.\n\nIf the answers do not calculate automatically, please provide any relevant information you may have in the comments boxes.\n",null,null,null,null,null,null,null,null,null,null,null,null,null,null,null,null,null,null,null,null,null,null,{"$f":"A54","v":"The answers to B10 and B11 should calculate automatically based on the information you provided. Please review the answers to ensure they make sense to you, and if you have additional information to add, please note it in the comments boxes.\n\nIf the answers do not calculate automatically, please provide any relevant information you may have in the comments boxes.\n"}]
["B10. Government share of funds spent on contraceptive procurement for the public sector - \nOf the total amount spent on contraceptives for the public sector in the most recent complete fiscal year (including government and donor funds), what percent was covered by government funds (including internally generated funds, basket funds, World Bank credits or loans, and other funds given to the government)? \n\nThis will auto-calculate. (It contains the following formula: Total government spending (Question B8c) / Grand total of all spending for public sector contraceptives from the government and donors (Questions B8c+B9d))",null,null,null,null,"Don't know",null,null,null,{"$f":"G55","v":0},null,null,null,null,null,null,null,{"$f":"A55","v":"B10. Government share of funds spent on contraceptive procurement for the public sector - \nOf the total amount spent on contraceptives for the public sector in the most recent complete fiscal year (including government and donor funds), what percent was covered by government funds (including internally generated funds, basket funds, World Bank credits or loans, and other funds given to the government)? \n\nThis will auto-calculate. (It contains the following formula: Total government spending (Question B8c) / Grand total of all spending for public sector contraceptives from the government and donors (Questions B8c+B9d))"}]
["B11. Total expenditures on public sector contraceptives as percent of amount that needed to be procured -\nOf the estimated value of the contraceptives needed to be procured for the public sector for the most recent complete fiscal year, what percent was provided by any source (whether government or donor)? \n\nThis will auto-calculate. (It contains the following formula: Grand total of all spending for public sector contraceptives from the government and donors (Questions B8c+B9d) / Value of estimated need for procurement (Question B2))",null,null,null,null,"Don't know","Estimated 57% based on data from the RHI in terms of what was spent. (This estimate doesn't take into account any government funds from UNFPA that may have been used for contraceptive procurement though.)",null,null,{"$f":"G56","v":"Estimated 57% based on data from the RHI in terms of what was spent. (This estimate doesn't take into account any government funds from UNFPA that may have been used for contraceptive procurement though.)"},null,null,null,null,null,null,null,{"$f":"A56","v":"B11. Total expenditures on public sector contraceptives as percent of amount that needed to be procured -\nOf the estimated value of the contraceptives needed to be procured for the public sector for the most recent complete fiscal year, what percent was provided by any source (whether government or donor)? \n\nThis will auto-calculate. (It contains the following formula: Grand total of all spending for public sector contraceptives from the government and donors (Questions B8c+B9d) / Value of estimated need for procurement (Question B2))"}]
["B12. If B11 did not calculate automatically, please answer the following question:\nWas there a funding gap for the public sector in the last complete fiscal year (e.g., 09-'10 fiscal year)?\n(Please select from the dropdown list.)",null,null,null,null,null,null,null,null,{"$f":"G57","v":0},null,null,null,null,null,null,null,{"$f":"A57","v":"B12. If B11 did not calculate automatically, please answer the following question:\nWas there a funding gap for the public sector in the last complete fiscal year (e.g., 09-'10 fiscal year)?\n(Please select from the dropdown list.)"}]
[null,null,null,null,null,null,null,null,null,null,{"$f":"A58","v":0}]
["B13. If the government financed any contraceptive procurement in the most recent complete fiscal year, which entity conducted the procurement(s)? (Please select from the dropdown.)",null,null,null,null,"Third-party agent (e.g., UNFPA, Crown Agents)",null,null,null,null,null,null,null,null,null,null,{"$f":"F59","v":"Third-party agent (e.g., UNFPA, Crown Agents)"},{"$f":"A59","v":"B13. If the government financed any contraceptive procurement in the most recent complete fiscal year, which entity conducted the procurement(s)? (Please select from the dropdown.)"}]
[null,"a. Specify entity",null,null,null,"UNFPA",null,null,null,null,null,null,{"$f":"E60","v":0},null,null,null,{"$f":"F60","v":"UNFPA"},{"$f":"B60","v":"a. Specify entity"}]
[null,null,"i. Is this a parastatal?",null,null,"No",null,null,null,null,null,null,null,null,null,null,{"$f":"F61","v":"No"},{"$f":"C61","v":"i. Is this a parastatal?"}]
["B14. Please note any additional comments about finance and procurement.\n",null,null,"Currently there is inadequate funding for contraceptive procurement. With only one donor and no internally generated government funds for contraceptive procurement, stockouts occur frequently.",null,null,null,null,null,null,{"$f":"A62","v":"B14. Please note any additional comments about finance and procurement.\n"},null,null,null,{"$f":"D62","v":"Currently there is inadequate funding for contraceptive procurement. With only one donor and no internally generated government funds for contraceptive procurement, stockouts occur frequently."}]
["C. Commodities"]
["C1. Are the following contraceptive methods offered through the commercial sector, public sector, NGOs, or social marketing? (Please indicate which methods are intended to be offered. This question is not asking whether the method is in stock.) \n(Please select from the dropdown list.)",null,null,null,null,null,null,null,null,null,null,null,null,null,null,null,null,null,null,null,null,null,null,{"$f":"A64","v":"C1. Are the following contraceptive methods offered through the commercial sector, public sector, NGOs, or social marketing? (Please indicate which methods are intended to be offered. This question is not asking whether the method is in stock.) \n(Please select from the dropdown list.)"}]
["Contraceptive Method",null,null,"Commercial Sector",null,"Public Sector","NGO","Social Marketing",null,null,{"$f":"A65","v":"Contraceptive Method"}]
[null,"a. Combined oral contraceptives (estrogen + progestin - for  example, LoFemenol, Microgynon)",null,"Yes",null,"Yes","Yes","Don't know",null,null,{"$f":"B66","v":"a. Combined oral contraceptives (estrogen + progestin - for  example, LoFemenol, Microgynon)"}]
[null,"b. Progestin-only pills (for example, Ovrette, Microlut)",null,"Yes",null,"Yes","Yes","Don't know",null,null,{"$f":"B67","v":"b. Progestin-only pills (for example, Ovrette, Microlut)"}]
[null,"c. Hormonal injections (for example, DepoProvera, Noristerat)",null,"Yes",null,"Yes","Yes","Don't know",null,null,"c. Hormonal injections (for example, DepoProvera, Noristerat)"]
[null,"d. Hormonal implants (for example, Jadelle, Implanon)",null,"No",null,"No","Yes","Don't know",null,null,"d. Hormonal implants (for example, Jadelle, Implanon)"]
[null,"e. Intrauterine devices (IUDs) (for example, Optima Copper T)",null,"Yes",null,"Yes","Yes","Don't know",null,null,"e. Intrauterine devices (IUDs) (for example, Optima Copper T)"]
[null,"f. Male condoms",null,"Yes",null,"Yes","Yes","Don't know",null,null,"f. Male condoms"]
[null,"g. Female condoms",null,"No",null,"Yes","Yes","Don't know",null,null,"g. Female condoms"]
[null,"h. Emergency contraceptive pills (for example, Postinor)",null,"No",null,"No","Yes","Don't know",null,null,"h. Emergency contraceptive pills (for example, Postinor)"]
[null,"i. Long-acting permanent method for males (vasectomy)",null,"No",null,"Yes","Yes","Don't know",null,null,"i. Long-acting permanent method for males (vasectomy)"]
[null,"j. Long-acting permanent method for females (tubal ligation)",null,"No",null,"Yes","Yes","Don't know",null,null,"j. Long-acting permanent method for females (tubal ligation)"]
[null,"k. CycleBeads",null,"No",null,"No","No","Don't know",null,null,"k. CycleBeads"]
[null,"l. Other contraceptive methods - specify \n(Please provide the name of the other contraceptive(s) offered, by sector.)",null,null,null,null,null,null,null,null,"l. Other contraceptive methods - specify \n(Please provide the name of the other contraceptive(s) offered, by sector.)"]
["C2. Please note any comments about the commodities offered.",null,null,"For female condoms, there was a plan to introduce them in the public sector and a pilot was conducted, but uptake was low.",null,null,null,null,null,null,{"$f":"A78","v":"C2. Please note any comments about the commodities offered."},null,null,null,{"$f":"D78","v":"For female condoms, there was a plan to introduce them in the public sector and a pilot was conducted, but uptake was low."}]
["D. Policies (Commitment)"]
["D1. Is there a contraceptive security or reproductive health commodity security strategy or is contraceptive security explicitly included in a country strategy? (Please select from the dropdown list.)",null,null,null,null,null,null,"Yes",{"$f":"A80","v":"D1. Is there a contraceptive security or reproductive health commodity security strategy or is contraceptive security explicitly included in a country strategy? (Please select from the dropdown list.)"}]
["IF NO, SKIP TO QUESTION D2."]
[null,"Strategy name",null,"Years Covered (including strategy updates)",null,"Is the strategy formally approved by the Ministry?","Is the contraceptive security strategy being implemented?",null,null,{"$f":"G82","v":"Is the contraceptive security strategy being implemented?"},{"$f":"B82","v":"Strategy name"},null,{"$f":"E82","v":0},null,null,null,null,null,{"$f":"D82","v":"Years Covered (including strategy updates)"}]
[null,"a","National Reproductive Health Commodity Security Strategy for the Gambia","2006-2010",null,"Yes","Yes",null,null,{"$f":"G83","v":"Yes"},{"$f":"B83","v":"a"},null,{"$f":"E83","v":0},null,null,null,null,null,{"$f":"D83","v":"2006-2010"}]
["D2. Are any family planning commodities subject to duties, import taxes, or other fees?",null,null,null,null,"Yes",null,null,null,null,null,null,null,null,null,null,{"$f":"F84","v":"Yes"},{"$f":"A84","v":"D2. Are any family planning commodities subject to duties, import taxes, or other fees?"}]
[null,"a. If yes, for which sectors (public, NGO, social marketing, commercial)?",null,null,"NGO/private sector",null,null,null,null,null,null,null,{"$f":"E85","v":"NGO/private sector"},{"$f":"E85","v":"NGO/private sector"},null,null,null,{"$f":"B85","v":"a. If yes, for which sectors (public, NGO, social marketing, commercial)?"}]
[null,"b. If yes, how much are the duties, taxes, or fees?",null,null,"1.5% of CIF for processing fee to customs",null,null,null,null,null,null,null,null,{"$f":"E86","v":"1.5% of CIF for processing fee to customs"},null,null,null,{"$f":"B86","v":"b. If yes, how much are the duties, taxes, or fees?"}]
["D3. Are there policies that hinder the ability of the private sector (commercial sector, NGOs, or social marketing) to provide contraceptive methods (for example: price controls, distribution limitations, taxes/duties, advertising bans, etc.)?",null,null,null,null,null,null,"No",{"$f":"A87","v":"D3. Are there policies that hinder the ability of the private sector (commercial sector, NGOs, or social marketing) to provide contraceptive methods (for example: price controls, distribution limitations, taxes/duties, advertising bans, etc.)?"}]
[null,"a. If yes, describe the policies.",null,"N/A",null,null,null,null,null,null,{"$f":"B88","v":"a. If yes, describe the policies."},null,null,null,{"$f":"D88","v":"N/A"}]
["D4. Are there policies that enable the private sector (commercial sector, NGOs, or social marketing) to provide contraceptive methods?",null,null,null,null,null,null,"Don't know",{"$f":"A89","v":"D4. Are there policies that enable the private sector (commercial sector, NGOs, or social marketing) to provide contraceptive methods?"}]
[null,"a. If yes, describe the policies.",null,"Don't know",null,null,null,null,null,null,{"$f":"B90","v":"a. If yes, describe the policies."},null,null,null,{"$f":"D90","v":"Don't know"}]
["D5. Do policies or regulations exist that restrict who can sell or dispense particular contraceptive methods?\n",null,null,null,null,null,null,"No",{"$f":"A91","v":"D5. Do policies or regulations exist that restrict who can sell or dispense particular contraceptive methods?\n"}]
[null,"Please note any restrictions in the following table."]
[null,"Contraceptive Method(s)",null,null,"Describe any public sector restriction on who is allowed to sell or dispense the method",null,"Describe any private sector restriction on who is allowed to sell or dispense the method",null,null,{"$f":"G93","v":"Describe any private sector restriction on who is allowed to sell or dispense the method"},null,null,null,null,null,{"$f":"B93","v":"Contraceptive Method(s)"},null,null,null,null,{"$f":"E93","v":"Describe any public sector restriction on who is allowed to sell or dispense the method"}]
[null,"a",null,null,null,null,null,null,null,{"$f":"G94","v":0},null,null,{"$f":"E94","v":0},null,null,{"$f":"C94","v":0},null,null,null,null,{"$f":"E94","v":0}]
[null,"b",null,null,null,null,null,null,null,{"$f":"G95","v":0},null,null,{"$f":"E95","v":0},null,null,{"$f":"C95","v":0},null,null,null,null,{"$f":"E95","v":0}]
[null,"c",null,null,null,null,null,null,null,{"$f":"G96","v":0},null,null,{"$f":"E96","v":0},null,null,{"$f":"C96","v":0},null,null,null,null,{"$f":"E96","v":0}]
[null,null,null,null,null,null,null,null,null,null,{"$f":"C97","v":0}]
["D6. Does the country have laws, regulations, or policies that make it difficult for the following sub-populations to access effective family planning services?",null,null,"Y/N","If yes, describe laws/regulations/policies affecting access ",null,null,"Are the rules/policies implemented?",null,null,{"$f":"A98","v":"D6. Does the country have laws, regulations, or policies that make it difficult for the following sub-populations to access effective family planning services?"},null,null,null,null,null,null,null,null,null,null,{"$f":"E98","v":"If yes, describe laws/regulations/policies affecting access "}]
[null,"a. Unmarried people",null,"No",null,null,null,null,null,null,{"$f":"B99","v":"a. Unmarried people"},null,{"$f":"E99","v":0},null,null,null,null,null,null,null,null,{"$f":"E99","v":0}]
[null,"b. Young people",null,"Yes","If someone is below 18 and not married, parental consent is required.",null,null,"Yes",null,null,{"$f":"B100","v":"b. Young people"},null,{"$f":"E100","v":"If someone is below 18 and not married, parental consent is required."},null,null,null,null,null,null,null,null,{"$f":"E100","v":"If someone is below 18 and not married, parental consent is required."}]
[null,"c. Other",null,"Don't know",null,null,null,null,null,null,{"$f":"B101","v":"c. Other"},null,{"$f":"E101","v":0},null,null,null,null,null,null,null,null,{"$f":"E101","v":0}]
[null,null,null,null,null,null,null,null,null,null,{"$f":"C102","v":0}]
["D7. Are there charges* to the client in the public sector for family planning:\n*(This question refers to charges by policy, not under-the-table charges.)\n",null,null,null,null,null,null,null,null,null,null,null,null,null,null,null,null,null,null,null,null,null,null,{"$f":"A103","v":"D7. Are there charges* to the client in the public sector for family planning:\n*(This question refers to charges by policy, not under-the-table charges.)\n"}]
[null,"a. Services?",null,null,null,null,"No",null,null,{"$f":"G104","v":"No"},null,null,null,null,null,null,null,null,null,null,null,null,null,null,{"$f":"B104","v":"a. Services?"}]
[null,"b. Commodities?",null,null,null,null,"No",null,null,{"$f":"G105","v":"No"},null,null,null,null,null,null,null,null,null,null,null,null,null,null,{"$f":"B105","v":"b. Commodities?"}]
[null,"c. If yes, are there exemptions for people who cannot afford to pay?",null,null,null,null,"N/A",null,null,{"$f":"G106","v":"N/A"},null,null,null,null,null,null,null,null,null,null,null,null,null,null,{"$f":"B106","v":"c. If yes, are there exemptions for people who cannot afford to pay?"}]
[null,null,"i. If yes, describe the exemptions.","N/A",null,null,null,null,null,null,{"$f":"C107","v":"i. If yes, describe the exemptions."},null,null,null,{"$f":"D107","v":"N/A"}]
["D8. Are the following contraceptives included in the country's National Essential Medicine List (NEML) or other equivalent priority list?",null,null,null,null,null,null,null,null,null,null,null,null,null,null,null,null,null,null,null,null,null,null,{"$f":"A108","v":"D8. Are the following contraceptives included in the country's National Essential Medicine List (NEML) or other equivalent priority list?"}]
[null,"a. Combined oral contraceptives",null,null,null,null,"Yes",null,null,{"$f":"G109","v":"Yes"},null,null,null,null,null,null,null,null,null,null,null,null,null,null,{"$f":"B109","v":"a. Combined oral contraceptives"}]
[null,"b. Progestin-only pills",null,null,null,null,"Yes",null,null,"Yes",null,null,null,null,null,null,null,null,null,null,null,null,null,null,"b. Progestin-only pills"]
[null,"c. Hormonal injections",null,null,null,null,"Yes",null,null,"Yes",null,null,null,null,null,null,null,null,null,null,null,null,null,null,"c. Hormonal injections"]
[null,"d. Hormonal implants",null,null,null,null,"No",null,null,"No",null,null,null,null,null,null,null,null,null,null,null,null,null,null,"d. Hormonal implants"]
[null,"e. Intrauterine devices (IUDs)",null,null,null,null,"Yes",null,null,"Yes",null,null,null,null,null,null,null,null,null,null,null,null,null,null,"e. Intrauterine devices (IUDs)"]
[null,"f. Male condoms",null,null,null,null,"Yes",null,null,"Yes",null,null,null,null,null,null,null,null,null,null,null,null,null,null,"f. Male condoms"]
[null,"g. Female condoms",null,null,null,null,"No",null,null,"No",null,null,null,null,null,null,null,null,null,null,null,null,null,null,"g. Female condoms"]
[null,"h. Emergency contraceptive pills",null,null,null,null,"No",null,null,"No",null,null,null,null,null,null,null,null,null,null,null,null,null,null,"h. Emergency contraceptive pills"]
[null,"i. CycleBeads",null,null,null,null,"Don't know",null,null,{"$f":"G117","v":"Don't know"},null,null,null,null,null,null,null,null,null,null,null,null,null,null,{"$f":"B117","v":"i. CycleBeads"}]
[null,"j. Any other contraceptive(s)?",null,null,null,null,"Don't know",null,null,"Don't know",null,null,null,null,null,null,null,null,null,null,null,null,null,null,"j. Any other contraceptive(s)?"]
[null,null,"i. Name of other contraceptive(s) on the list(s)",null,null,"Don't know",null,null,null,0,null,null,null,null,null,null,null,{"$f":"B119","v":0}]
["D9. What year(s) is the list(s) from?",null,null,null,null,2007,null,null,null,0,null,null,null,null,null,null,null,{"$f":"B120","v":0}]
["D10. Name of the list(s)\n\n\n",null,null,null,null,null,null,null,null,null,{"$f":"A121","v":"D10. Name of the list(s)\n\n\n"},null,null,null,{"$f":"D121","v":0}]
["D11. Notes about the list(s)\n\n\n",null,null,null,null,null,null,null,null,null,{"$f":"A122","v":"D11. Notes about the list(s)\n\n\n"},null,null,null,{"$f":"D122","v":0}]
["D12.  Information on country's Poverty Reduction Strategy Paper (PRSP)\n",null,null,null,null,null,null,null,null,null,null,null,null,null,null,null,null,null,null,null,null,null,null,{"$f":"A123","v":"D12.  Information on country's Poverty Reduction Strategy Paper (PRSP)\n"}]
[null,"a. What year is the Poverty Reduction Strategy Paper from? (most recent actual PRSP on IMF's site [not progress or summary report])",null,null,null,2007,null,null,null,{"$f":"G124","v":0},null,null,null,null,null,null,null,{"$f":"B124","v":"a. What year is the Poverty Reduction Strategy Paper from? (most recent actual PRSP on IMF's site [not progress or summary report])"}]
[null,"b. Is family planning or reproductive health a priority in the PRSP?",null,null,null,null,"Yes",null,null,{"$f":"G125","v":"Yes"},null,null,null,null,null,null,null,null,null,null,null,null,null,null,{"$f":"B125","v":"b. Is family planning or reproductive health a priority in the PRSP?"}]
[null,"c. Is contraceptive security included in the PRSP?",null,null,null,null,"No",null,null,{"$f":"G126","v":"No"},null,null,null,null,null,null,null,null,null,null,null,null,null,null,{"$f":"B126","v":"c. Is contraceptive security included in the PRSP?"}]
[null,"d. Is contraceptive prevalence rate (CPR) included as an indicator in the PRSP?",null,null,null,null,"No",null,null,{"$f":"G127","v":"No"},null,null,null,null,null,null,null,null,null,null,null,null,null,null,{"$f":"B127","v":"d. Is contraceptive prevalence rate (CPR) included as an indicator in the PRSP?"}]
[null,"e. Are contraceptive supply indicators included in the PRSP?",null,null,null,null,"No",null,null,{"$f":"G128","v":"No"},null,null,null,null,null,null,null,null,null,null,null,null,null,null,{"$f":"B128","v":"e. Are contraceptive supply indicators included in the PRSP?"}]
["\n\n\n","f. Notes about the Poverty Reduction Strategy Paper",null,"Commodity security for contraceptives specifically was not included in the PRSP, but access to services and the establishment of an efficient supply and logistics system to ensure effective and efficient health services to all was mentioned (p90-91). It was also mentioned that \"the need to address the frequent and acute shortage of drugs topped considerations for the Health Sector\" (p. 37). While thre are no contraceptive supply indicators, the occurrence of contraceptive stockouts is mentioned (p. 114). ",null,null,null,null,null,null,{"$f":"B129","v":"f. Notes about the Poverty Reduction Strategy Paper"},null,null,null,{"$f":"D129","v":"Commodity security for contraceptives specifically was not included in the PRSP, but access to services and the establishment of an efficient supply and logistics system to ensure effective and efficient health services to all was mentioned (p90-91). It was also mentioned that \"the need to address the frequent and acute shortage of drugs topped considerations for the Health Sector\" (p. 37). While thre are no contraceptive supply indicators, the occurrence of contraceptive stockouts is mentioned (p. 114). "}]
["E. Supply Chain (Capacity)"]
["E1. Have stockouts occurred for any contraceptive at the central* level in the last 12 months?  \n*(The central level refers to the central level warehouse for the public sector.)",null,null,null,null,null,"Yes",null,null,{"$f":"G131","v":"Yes"},null,null,null,null,null,null,null,null,null,null,null,null,null,null,{"$f":"A131","v":"E1. Have stockouts occurred for any contraceptive at the central* level in the last 12 months?  \n*(The central level refers to the central level warehouse for the public sector.)"}]
["E2. In the last 12 months, has there ever been a stockout at the central level of any of the contraceptives offered in public sector facilities? (If a method is not intended to be offered in public sector facilities, please indicate that stockouts are not applicable (choose \"N/A\" from the dropdown list).)",null,null,null,null,null,null,null,null,null,null,null,null,null,null,null,null,null,null,null,null,null,null,{"$f":"A132","v":"E2. In the last 12 months, has there ever been a stockout at the central level of any of the contraceptives offered in public sector facilities? (If a method is not intended to be offered in public sector facilities, please indicate that stockouts are not applicable (choose \"N/A\" from the dropdown list).)"}]
[null,"a. Combined oral contraceptives",null,null,null,null,"Yes",null,null,{"$f":"G133","v":"Yes"},null,null,null,null,null,null,null,null,null,null,null,null,null,null,{"$f":"B133","v":"a. Combined oral contraceptives"}]
[null,"b. Progestin-only pills",null,null,null,null,"Yes",null,null,"Yes",null,null,null,null,null,null,null,null,null,null,null,null,null,null,"b. Progestin-only pills"]
[null,"c. Hormonal injections",null,null,null,null,"Yes",null,null,"Yes",null,null,null,null,null,null,null,null,null,null,null,null,null,null,"c. Hormonal injections"]
[null,"d. Hormonal implants",null,null,null,null,"N/A",null,null,"N/A",null,null,null,null,null,null,null,null,null,null,null,null,null,null,"d. Hormonal implants"]
[null,"e. Intrauterine devices (IUDs)",null,null,null,null,"No",null,null,"No",null,null,null,null,null,null,null,null,null,null,null,null,null,null,"e. Intrauterine devices (IUDs)"]
[null,"f. Male condoms",null,null,null,null,"Yes",null,null,"Yes",null,null,null,null,null,null,null,null,null,null,null,null,null,null,"f. Male condoms"]
[null,"g. Female condoms",null,null,null,null,"No",null,null,"No",null,null,null,null,null,null,null,null,null,null,null,null,null,null,"g. Female condoms"]
[null,"h. Emergency contraceptive pills",null,null,null,null,"N/A",null,null,"N/A",null,null,null,null,null,null,null,null,null,null,null,null,null,null,"h. Emergency contraceptive pills"]
[null,"i. CycleBeads",null,null,null,null,"N/A",null,null,"N/A",null,null,null,null,null,null,null,null,null,null,null,null,null,null,"i. CycleBeads"]
[null,"j. Time period\n(mm/yy - mm/yy) (for example, 1/10-12/10) ",null,null,null,"01/10-08/10",null,null,null,null,null,null,null,null,null,null,{"$f":"F142","v":"01/10-08/10"},{"$f":"B142","v":"j. Time period\n(mm/yy - mm/yy) (for example, 1/10-12/10) "}]
[null,"k. Data source\n(for example: Procurement Planning and Monitoring Report, Logistics Management Information System, periodic physical inventory, warehouse reports)",null,null,null,"Anecdotal reports from the Reproductive and Child Health division, Gambia Family Planning Association, and interviews with stakeholders",null,null,null,null,null,null,null,null,null,null,{"$f":"F143","v":"Anecdotal reports from the Reproductive and Child Health division, Gambia Family Planning Association, and interviews with stakeholders"},{"$f":"B143","v":"k. Data source\n(for example: Procurement Planning and Monitoring Report, Logistics Management Information System, periodic physical inventory, warehouse reports)"}]
["E3. Are stockouts a large problem in your country at the following levels? (i.e., Are they common or do they tend to last for a long time?)\n\n"]
[null,"a. service delivery point level (i.e., public sector health facilities)",null,null,null,null,"Yes",null,null,{"$f":"G145","v":"Yes"},null,null,null,null,null,null,null,null,null,null,null,null,null,null,{"$f":"B145","v":"a. service delivery point level (i.e., public sector health facilities)"}]
[null,"b. central level (i.e., central level warehouse for the public sector)",null,null,null,null,"Yes",null,null,{"$f":"G146","v":"Yes"},null,null,null,null,null,null,null,null,null,null,null,null,null,null,{"$f":"B146","v":"b. central level (i.e., central level warehouse for the public sector)"}]
["F. Please note any overall comments about challenges and/or successes with contraceptive security in your country.\n\n",null,null,"Whereas Gambia has a CS strategy, it has not been fully implemented. Difficulties in coordination and financing greatly undermine contraceptive security in the Gambia.",null,null,null,null,null,null,{"$f":"A147","v":"F. Please note any overall comments about challenges and/or successes with contraceptive security in your country.\n\n"},null,null,null,{"$f":"D147","v":"Whereas Gambia has a CS strategy, it has not been fully implemented. Difficulties in coordination and financing greatly undermine contraceptive security in the Gambia."}]

{"sheet":"Georgia 2011","index":17,"n_rows":147,"n_cols":25,"rows_kept":147,"cut":false,"hidden":false,"merged":[[141,1,141,4],[141,5,141,7],[142,1,142,4],[142,5,142,7],[143,0,143,7],[144,1,144,5],[144,6,144,7],[147,0,147,7],[148,0,150,7],[145,1,145,5],[145,6,145,7],[146,0,146,2],[146,3,146,7],[136,1,136,5],[136,6,136,7],[137,1,137,5],[137,6,137,7],[138,1,138,5],[138,6,138,7],[139,1,139,5],[139,6,139,7],[140,1,140,5],[140,6,140,7],[131,0,131,7],[132,1,132,5],[132,6,132,7],[133,1,133,5],[133,6,133,7],[134,1,134,5],[134,6,134,7],[135,1,135,5],[135,6,135,7],[120,0,120,2],[120,3,120,7],[121,0,121,2],[121,3,121,7],[129,0,129,6],[130,0,130,5],[130,6,130,7],[122,0,122,7],[123,1,123,4],[123,5,123,7],[115,1,115,5],[115,6,115,7],[116,1,116,5],[116,6,116,7],[117,1,117,5],[117,6,117,7],[118,2,118,4],[118,5,118,7],[119,0,119,4],[119,5,119,7],[110,1,110,5],[110,6,110,7],[111,1,111,5],[111,6,111,7],[112,1,112,5],[112,6,112,7],[113,1,113,5],[113,6,113,7],[114,1,114,5],[114,6,114,7],[104,1,104,5],[104,6,104,7],[105,1,105,5],[105,6,105,7],[106,3,106,7],[107,0,107,7],[108,1,108,5],[108,6,108,7],[109,1,109,5],[109,6,109,7],[98,1,98,2],[98,4,98,6],[99,1,99,2],[99,4,99,6],[100,1,100,2],[100,4,100,6],[101,0,101,7],[102,0,102,7],[103,1,103,5],[103,6,103,7],[94,2,94,3],[94,4,94,5],[94,6,94,7],[95,2,95,3],[95,4,95,5],[95,6,95,7],[96,0,96,7],[97,0,97,2],[97,4,97,6],[88,0,88,6],[89,1,89,2],[89,3,89,7],[90,0,90,6],[91,1,91,2],[92,1,92,3],[92,4,92,5],[92,6,92,7],[93,2,93,3],[93,4,93,5],[93,6,93,7],[83,0,83,4],[83,5,83,7],[84,1,84,3],[84,4,84,7],[85,1,85,3],[85,4,85,7],[86,0,86,6],[87,1,87,2],[87,3,87,7],[78,0,78,6],[79,0,79,6],[80,0,80,2],[81,0,82,0],[81,1,81,2],[81,3,81,4],[81,6,81,7],[82,3,82,4],[82,6,82,7],[73,1,73,2],[73,3,73,4],[74,1,74,2],[74,3,74,4],[75,1,75,2],[75,3,75,4],[76,1,76,2],[76,3,76,4],[77,0,77,2],[77,3,77,7],[68,1,68,2],[68,3,68,4],[69,1,69,2],[69,3,69,4],[70,1,70,2],[70,3,70,4],[71,1,71,2],[71,3,71,4],[72,1,72,2],[72,3,72,4],[62,0,62,6],[63,0,63,7],[64,0,64,2],[64,3,64,4],[65,1,65,2],[65,3,65,4],[66,1,66,2],[66,3,66,4],[67,1,67,2],[67,3,67,4],[56,0,56,4],[56,6,56,7],[58,0,58,4],[58,5,58,7],[59,1,59,4],[59,5,59,7],[60,2,60,4],[60,5,60,7],[61,0,61,2],[61,3,61,7],[41,1,41,2],[42,3,42,7],[43,1,43,2],[45,0,45,7],[46,1,46,2],[54,0,54,4],[54,6,54,7],[55,0,55,4],[55,6,55,7],[47,1,47,2],[48,3,48,7],[49,1,49,2],[50,1,50,2],[51,1,51,2],[53,0,53,7],[32,0,32,7],[33,1,33,3],[34,1,34,3],[35,0,35,7],[36,0,36,6],[37,0,37,7],[38,1,38,2],[39,1,39,2],[40,3,40,7],[26,0,26,6],[27,0,27,2],[27,3,27,4],[28,0,28,5],[28,6,28,7],[29,0,29,3],[29,6,29,7],[30,0,30,6],[31,0,31,6],[20,1,20,2],[20,5,20,7],[21,1,21,2],[21,5,21,7],[22,1,22,2],[22,5,22,7],[23,0,23,6],[24,0,24,6],[25,0,25,2],[15,1,15,2],[15,5,15,7],[16,1,16,2],[16,5,16,7],[17,1,17,2],[17,5,17,7],[18,1,18,2],[18,5,18,7],[19,1,19,2],[19,5,19,7],[9,0,9,7],[10,0,10,6],[8,0,8,7],[11,0,11,6],[12,1,12,2],[12,3,12,7],[13,0,13,2],[13,3,13,7],[14,1,14,2],[14,5,14,7],[4,0,4,2],[5,0,5,2],[0,0,0,7],[1,0,1,2],[1,3,1,4],[2,0,2,7],[3,3,3,4],[3,5,3,7],[7,0,7,2],[7,3,7,5],[7,6,7,7],[127,1,127,5],[127,6,127,7],[128,1,128,2],[128,3,128,7],[124,1,124,5],[124,6,124,7],[125,1,125,5],[125,6,125,7],[126,1,126,5],[126,6,126,7]]}
[null,null,null,null,null,null,null,null,"Columns I-Y are meant to be hidden. They exist because they allow for the dropdown list options. They also allow for merged cells to autofit properly in terms of row height. This should work if all columns remain at their correct widths.","g-h",null,"a-e merged","E-F merged","e-h","0 times",null,null,"The government (e.g., Central Medical Stores, MOH logistics unit, MOH procurement unit)",null,null,null,null,"Yes","a-h","January"]
[null,null,null,null,null,null,null,null,null,null,"A-c",null,null,null,"1-2 times","b-d merged",null,"Third-party agent (e.g., UNFPA, Crown Agents)","d-e merged","d-f merged","e-f merged","e-g merged","No",null,"February"]
[null,null,null,null,null,null,null,null,null,null,null,null,null,null,"3-5 times",null,null,"The government and a third-party agent",null,null,null,null,null,null,"March"]
[null,null,null,null,null,null,null,null,null,null,null,null,null,null,"6 or more times",null,null,"Other",null,null,null,null,"N/A",null,"April"]
["To jump to the Introduction sheet, click here.",null,null,null,null,null,null,null,null,null,null,null,null,null,null,null,null,null,null,null,null,null,"Don't know",null,"May"]
[null,null,null,null,null,null,null,null,null,null,null,null,null,null,"N/A",null,null,"N/A",null,null,null,null,null,null,"June"]
["Contraceptive Security (CS) Indicators 2011 Data ",null,null,null,null,null,null,null,null,null,null,null,null,null,"Don't know",null,null,"Don't know",null,null,null,null,null,null,"July"]
["Country: Georgia",null,null,null,null,null,null,null,null,{"$f":"G8","v":0},{"$f":"A8","v":"Country: Georgia"},null,null,null,null,"or c-d",null,null,null,{"$f":"D8","v":0},null,null,null,null,"August"]
["The CS Indicators are presented in the following sections:\n\n               A. leadership & cooordination               B. finance & procurement               C. commodities               D. policies               E. supply chain",null,null,null,null,null,null,null,null,{"$f":"G9","v":0},{"$f":"A9","v":"The CS Indicators are presented in the following sections:\n\n               A. leadership & cooordination               B. finance & procurement               C. commodities               D. policies               E. supply chain"},null,null,null,"d-h",null,"f-h merged",null,{"$f":"D9","v":0},null,null,null,null,null,"September"]
["\nNotes:\n  -  Respondents' answers are indicated in the white spaces. \n  -  N/A = not applicable. Don't know = the respondent either indicated they did not know or left the answer blank.\n  -  Some questions required respondents to choose from a dropdown list of options; in these cases the dropdown arrow will \n     appear when you click on the cell. \n  -  There may be a few inserted comments. (If you cannot already see them, click on Review tab - Comments group - Show All Comments in newer \n       versions of Excel or View - Comments in older versions of Excel.)\n  -  If the answer is cut off, you can either manually adjust the row height or autofit the row height in order to see the whole \n     response. (To autofit the row height, select the answer(s) and go to Home tab - Cells group - Format - Autofit Row Height in newer versions of Excel or \n      Format - Row - Autofit in older versions of Excel.)\n",null,null,null,null,null,null,null,"a-g",null,null,null,null,null,null,null,null,"a-e merged",null,null,null,null,null,{"$f":"A10","v":"\nNotes:\n  -  Respondents' answers are indicated in the white spaces. \n  -  N/A = not applicable. Don't know = the respondent either indicated they did not know or left the answer blank.\n  -  Some questions required respondents to choose from a dropdown list of options; in these cases the dropdown arrow will \n     appear when you click on the cell. \n  -  There may be a few inserted comments. (If you cannot already see them, click on Review tab - Comments group - Show All Comments in newer \n       versions of Excel or View - Comments in older versions of Excel.)\n  -  If the answer is cut off, you can either manually adjust the row height or autofit the row height in order to see the whole \n     response. (To autofit the row height, select the answer(s) and go to Home tab - Cells group - Format - Autofit Row Height in newer versions of Excel or \n      Format - Row - Autofit in older versions of Excel.)\n"},"October"]
["A. Leadership and Coordination",null,null,null,null,null,null,null,null,null,null,null,null,null,null,null,null,null,null,null,null,null,null,null,"November"]
["A1. Is there a national committee that works on contraceptive security? (Please select from the dropdown list.)\n(Committee should have some aspect of contraceptive security as part of its Terms of Reference, even if it is known by a different name, for example: Family Planning, Reproductive Health, Maternal Mortality, Essential Medicine Committee, etc.)  ",null,null,null,null,null,null,"Yes",{"$f":"A12","v":"A1. Is there a national committee that works on contraceptive security? (Please select from the dropdown list.)\n(Committee should have some aspect of contraceptive security as part of its Terms of Reference, even if it is known by a different name, for example: Family Planning, Reproductive Health, Maternal Mortality, Essential Medicine Committee, etc.)  "},null,null,null,null,null,null,null,null,null,null,null,null,null,null,null,"December"]
[null,"a. What is the name of the committee?",null,"National Reproductive Health Council",null,null,null,null,null,null,{"$f":"B13","v":"a. What is the name of the committee?"},{"$f":"D13","v":"National Reproductive Health Council"},null,null,{"$f":"D13","v":"National Reproductive Health Council"}]
["A2. Are the following organizations represented on the committee?",null,null,"(Y/N \ndropdown)",null,null,null,null,null,null,{"$f":"A14","v":"A2. Are the following organizations represented on the committee?"},null,null,null,null,null,null,null,null,null,null,null,null,null,"Don't know"]
[null,"a. Social marketing",null,"No","If yes, specify name(s) of organizations",null,null,null,null,null,{"$f":"B15","v":"a. Social marketing"},null,null,null,null,null,{"$f":"F15","v":0}]
[null,"b. NGO (for example: service delivery, advocacy, Planned Parenthood affiliate, Marie Stopes affiliate, faith-based organizations, etc.)",null,"Yes","If yes, specify name(s) of organizations","John Snow, Inc. (JSI)",null,null,null,null,"b. NGO (for example: service delivery, advocacy, Planned Parenthood affiliate, Marie Stopes affiliate, faith-based organizations, etc.)",null,null,null,null,null,"John Snow, Inc. (JSI)"]
[null,"c. Commercial sector (for example: pharmacy associations, manufacturers, etc.)",null,"No","If yes, specify name(s) of organizations",null,null,null,null,null,"c. Commercial sector (for example: pharmacy associations, manufacturers, etc.)",null,null,null,null,null,0]
[null,"d. Donors",null,"Yes","If yes, specify name(s) of donors","USAID",null,null,null,null,"d. Donors",null,null,null,null,null,"USAID"]
[null,"e. UN agencies",null,"Yes","If yes, specify name(s) of agencies","UNFPA, UNICEF, WHO",null,null,null,null,"e. UN agencies",null,null,null,null,null,"UNFPA, UNICEF, WHO"]
[null,"f. Ministry of Health (for example: logistics, reproductive health, family planning, maternal and child health, HIV/AIDS, pharmacy units, etc.)",null,"Yes","If yes, specify name(s) of units","Policy Unit, Deputy Minister, Advisor to the Minister",null,null,null,null,"f. Ministry of Health (for example: logistics, reproductive health, family planning, maternal and child health, HIV/AIDS, pharmacy units, etc.)",null,null,null,null,null,"Policy Unit, Deputy Minister, Advisor to the Minister"]
[null,"g. Central Medical Store or Central Warehouse",null,"N/A","If yes, specify",null,null,null,null,null,"g. Central Medical Store or Central Warehouse",null,null,null,null,null,0]
[null,"h. Ministry of Finance or Ministry of Planning ",null,"No","If yes, specify",null,null,null,null,null,"h. Ministry of Finance or Ministry of Planning ",null,null,null,null,null,0]
[null,"i. Other (for example: partners)",null,"Yes","If yes, specify","National Perinatal Center",null,null,null,null,"i. Other (for example: partners)",null,null,null,null,null,"National Perinatal Center"]
["A3. How many times did the committee meet during the last year? (0, 1-2, 3-5, or 6+)  (Please select from the dropdown.)",null,null,null,null,null,null,"6 or more times",{"$f":"A24","v":"A3. How many times did the committee meet during the last year? (0, 1-2, 3-5, or 6+)  (Please select from the dropdown.)"}]
["A4. Does the committee have legal status?  (Please select from the dropdown.)                                  ",null,null,null,null,null,null,"Yes",{"$f":"A25","v":"A4. Does the committee have legal status?  (Please select from the dropdown.)                                  "}]
["A5. Is there a Contraceptive Security \"champion\"? (someone who consistently brings up and advocates for contraceptive supplies)",null,null,"No","If yes, specify person's organization",null,"Specify person's job title",null,null,null,{"$f":"A26","v":"A5. Is there a Contraceptive Security \"champion\"? (someone who consistently brings up and advocates for contraceptive supplies)"}]
["B. Finance and Procurement (Capital)"]
["B1. What is the timeline of the country's fiscal year?",null,null,"Beginning month",null,"January","Ending month","December",null,null,{"$f":"B28","v":0}]
["B2. What was the estimated dollar value of contraceptives needed to be procured for the public sector for the most recent complete fiscal year? (in USD currency)\n(for example, to cover the needs for the '09-'10 fiscal year)",null,null,null,null,null,"Don't know",null,null,{"$f":"G29","v":"Don't know"},null,null,{"$f":"E29","v":0},null,null,null,null,null,null,null,null,null,null,null,{"$f":"A29","v":"B2. What was the estimated dollar value of contraceptives needed to be procured for the public sector for the most recent complete fiscal year? (in USD currency)\n(for example, to cover the needs for the '09-'10 fiscal year)"}]
["B3. When was the last forecast/quantification conducted? (mm/yy)",null,null,null,"12/10","Who conducted it? (Specify organization.)","JSI",null,null,{"$f":"G30","v":"JSI"},null,null,{"$f":"E30","v":"12/10"},null,null,null,null,null,null,null,null,null,null,null,{"$f":"A30","v":"B3. When was the last forecast/quantification conducted? (mm/yy)"}]
["B4. Is there a government budget line item for the procurement of contraceptives?  (Please select from the dropdown list.)",null,null,null,null,null,null,"No",{"$f":"A31","v":"B4. Is there a government budget line item for the procurement of contraceptives?  (Please select from the dropdown list.)"}]
["B5. Were government funds allocated for contraceptive procurement for the public sector in the most recent complete fiscal year? (This question refers to funds planned to be spent on contraceptives, whether or not they ended up being spent.) \n\n(Government funds include internally generated funds, basket funds, World Bank credits or loans, and other funds donors gave to the government for their use.) \n",null,null,null,null,null,null,"No",{"$f":"A32","v":"B5. Were government funds allocated for contraceptive procurement for the public sector in the most recent complete fiscal year? (This question refers to funds planned to be spent on contraceptives, whether or not they ended up being spent.) \n\n(Government funds include internally generated funds, basket funds, World Bank credits or loans, and other funds donors gave to the government for their use.) \n"}]
["B6. Please complete the table below regarding government allocations for contraceptive procurement.",null,null,null,null,null,null,null,null,null,null,null,null,null,null,null,null,null,null,null,null,null,null,{"$f":"A33","v":"B6. Please complete the table below regarding government allocations for contraceptive procurement."}]
[null,null,null,null,"Amount allocated \n(in USD)","Time period during which allocations were supposed to be spent \n(mm/yy-mm/yy)\n(should ideally be the most recent\ncomplete fiscal year ['09-'10])","Data source \n(for example: Ministry records)","Comments",null,null,{"$f":"A34","v":0}]
[null,"Government funds allocated for contraceptive procurement\n(funds originally designated for contraceptives, whether or not they ended up being spent on them)",null,null,0,"01/10-12/10",null,"Government funds have never been allocated for contraceptives.",null,null,{"$f":"#REF!","v":{"$error":"#REF!"}}]
[]
["B7. Were government funds spent on contraceptive procurement for the public sector in the most recent complete fiscal year? \n(Government funds include internally generated funds, basket funds, World Bank credits or loans, and other funds donors gave to the government for their use.)",null,null,null,null,null,null,"No",{"$f":"A37","v":"B7. Were government funds spent on contraceptive procurement for the public sector in the most recent complete fiscal year? \n(Government funds include internally generated funds, basket funds, World Bank credits or loans, and other funds donors gave to the government for their use.)"}]
["B8. Please complete the table below to indicate government expenditures on contraceptive procurement, by source, in the most recent complete fiscal year. \n(This is how much was spent on contraceptive procurement (not what was allocated). How much of this spending was provided from each source?)",null,null,null,null,null,null,null,null,null,null,null,null,null,null,null,null,null,null,null,null,null,null,{"$f":"A38","v":"B8. Please complete the table below to indicate government expenditures on contraceptive procurement, by source, in the most recent complete fiscal year. \n(This is how much was spent on contraceptive procurement (not what was allocated). How much of this spending was provided from each source?)"}]
[null,"Source of government funds spent on contraceptive procurement for the public sector",null,"Was this source used?\n(Y/N)","Amount spent \n(in USD)","Time period (mm/yy-mm/yy)\n(should be the same for all sources of funds & ideally be the most recent\ncomplete fiscal year ['09-'10])","Data source \n(for example: Contraceptive Procurement Table, PipeLine, etc.)","Comments",null,null,{"$f":"A39","v":0}]
[null,"a. Internally generated funds spent on contraceptive procurement",null,"No",0,"01/10-12/10",null,null,null,null,{"$f":"B40","v":"a. Internally generated funds spent on contraceptive procurement"}]
[null,null,"i. Specify source(s) of internally generated funds spent (for example, from taxes or user fees)","N/A",null,null,null,null,null,null,{"$f":"C41","v":"i. Specify source(s) of internally generated funds spent (for example, from taxes or user fees)"},null,null,null,{"$f":"D41","v":"N/A"}]
[null,"b. Total of all other government funds spent on contraceptive procurement (basket funds, World Bank credits or loans, and other funds donors gave to the government [e.g., direct budget support])",null,"No",0,"01/10-12/10",null,null,null,null,{"$f":"B42","v":"b. Total of all other government funds spent on contraceptive procurement (basket funds, World Bank credits or loans, and other funds donors gave to the government [e.g., direct budget support])"}]
[null,null,"i. Specify source(s) of other government funds spent (for example: basket funding or specific donor)","N/A",null,null,null,null,null,null,{"$f":"C43","v":"i. Specify source(s) of other government funds spent (for example: basket funding or specific donor)"},null,null,null,{"$f":"D43","v":"N/A"}]
[null,"c. TOTAL government funds spent on contraceptive procurement\nThis will auto-calculate.  (It will sum a & b above.)",null,null,{"$f":"E40+E42","v":0},null,null,null,null,null,{"$f":"B44","v":"c. TOTAL government funds spent on contraceptive procurement\nThis will auto-calculate.  (It will sum a & b above.)"}]
[null,null,null,null,null,null,null,null,null,null,{"$f":"A45","v":0}]
["B9. Please complete the table below to indicate donor expenditures on contraceptive procurement in the most recent complete fiscal year.\n",null,null,null,null,null,null,null,null,null,null,null,null,null,null,null,null,null,null,null,null,null,null,{"$f":"A46","v":"B9. Please complete the table below to indicate donor expenditures on contraceptive procurement in the most recent complete fiscal year.\n"}]
["\n","Source of donations and donor funds spent on contraceptive procurement for the public sector",null,"Was this a source?\n(Y/N)","Amount of money spent on these procurements \n(in USD)","Time period (mm/yy-mm/yy)\n(should be the same for all sources of funds & ideally be the most recent\ncomplete fiscal year ['09-'10])","Data source \n(for example:  Donor records, Contraceptive Procurement Table, PipeLine, RHInterchange, etc.","Comments",null,null,{"$f":"A47","v":"\n"}]
[null,"a. In-kind donations of contraceptives",null,"Yes",18361,"01/10-12/10","RHInterchange",null,null,null,{"$f":"B48","v":"a. In-kind donations of contraceptives"}]
[null,null,"i. Specify source(s) of in-kind donations ","UNFPA",null,null,null,null,null,null,{"$f":"C49","v":"i. Specify source(s) of in-kind donations "},null,null,null,{"$f":"D49","v":"UNFPA"}]
[null,"b. Global Fund donations used to procure condoms",null,"Yes",23529,"2010-2011","Global Fund Procurement Table",null,null,null,{"$f":"B50","v":"b. Global Fund donations used to procure condoms"}]
[null,"c. Global Fund donations used to procure contraceptives besides condoms",null,"No",0,"01/10-12/10",null,null,null,null,{"$f":"B51","v":"c. Global Fund donations used to procure contraceptives besides condoms"}]
[null,"d. TOTAL value of in-kind donations and Global Fund donations spent on contraceptive procurement\nThis will auto-calculate.  (It will sum a-c above.)",null,null,{"$f":"E48+E50+E51","v":41890},null,null,null,null,null,{"$f":"B52","v":"d. TOTAL value of in-kind donations and Global Fund donations spent on contraceptive procurement\nThis will auto-calculate.  (It will sum a-c above.)"}]
[null,null,null,null,null,null,null,null,null,null,{"$f":"A53","v":0}]
["The answers to B10 and B11 should calculate automatically based on the information you provided. Please review the answers to ensure they make sense to you, and if you have additional information to add, please note it in the comments boxes.\n\nIf the answers do not calculate automatically, please provide any relevant information you may have in the comments boxes.\n",null,null,null,null,null,null,null,null,null,null,null,null,null,null,null,null,null,null,null,null,null,null,{"$f":"A54","v":"The answers to B10 and B11 should calculate automatically based on the information you provided. Please review the answers to ensure they make sense to you, and if you have additional information to add, please note it in the comments boxes.\n\nIf the answers do not calculate automatically, please provide any relevant information you may have in the comments boxes.\n"}]
["B10. Government share of funds spent on contraceptive procurement for the public sector - \nOf the total amount spent on contraceptives for the public sector in the most recent complete fiscal year (including government and donor funds), what percent was covered by government funds (including internally generated funds, basket funds, World Bank credits or loans, and other funds given to the government)? \n\nThis will auto-calculate. (It contains the following formula: Total government spending (Question B8c) / Grand total of all spending for public sector contraceptives from the government and donors (Questions B8c+B9d))",null,null,null,null,{"$f":"E44/(E44+E52)","v":0},null,null,null,{"$f":"G55","v":0},null,null,null,null,null,null,null,{"$f":"A55","v":"B10. Government share of funds spent on contraceptive procurement for the public sector - \nOf the total amount spent on contraceptives for the public sector in the most recent complete fiscal year (including government and donor funds), what percent was covered by government funds (including internally generated funds, basket funds, World Bank credits or loans, and other funds given to the government)? \n\nThis will auto-calculate. (It contains the following formula: Total government spending (Question B8c) / Grand total of all spending for public sector contraceptives from the government and donors (Questions B8c+B9d))"}]
["B11. Total expenditures on public sector contraceptives as percent of amount that needed to be procured -\nOf the estimated value of the contraceptives needed to be procured for the public sector for the most recent complete fiscal year, what percent was provided by any source (whether government or donor)? \n\nThis will auto-calculate. (It contains the following formula: Grand total of all spending for public sector contraceptives from the government and donors (Questions B8c+B9d) / Value of estimated need for procurement (Question B2))",null,null,null,null,"Don't know",null,null,null,{"$f":"G56","v":0},null,null,null,null,null,null,null,{"$f":"A56","v":"B11. Total expenditures on public sector contraceptives as percent of amount that needed to be procured -\nOf the estimated value of the contraceptives needed to be procured for the public sector for the most recent complete fiscal year, what percent was provided by any source (whether government or donor)? \n\nThis will auto-calculate. (It contains the following formula: Grand total of all spending for public sector contraceptives from the government and donors (Questions B8c+B9d) / Value of estimated need for procurement (Question B2))"}]
["B12. If B11 did not calculate automatically, please answer the following question:\nWas there a funding gap for the public sector in the last complete fiscal year (e.g., 09-'10 fiscal year)?\n(Please select from the dropdown list.)",null,null,null,null,"Don't know","The USAID SUSTAIN Project did not have a gap in funding. We do not have information about UNFPA funding. \n\n",null,null,{"$f":"G57","v":"The USAID SUSTAIN Project did not have a gap in funding. We do not have information about UNFPA funding. \n\n"},null,null,null,null,null,null,null,{"$f":"A57","v":"B12. If B11 did not calculate automatically, please answer the following question:\nWas there a funding gap for the public sector in the last complete fiscal year (e.g., 09-'10 fiscal year)?\n(Please select from the dropdown list.)"}]
[null,null,null,null,null,null,null,null,null,null,{"$f":"A58","v":0}]
["B13. If the government financed any contraceptive procurement in the most recent complete fiscal year, which entity conducted the procurement(s)? (Please select from the dropdown.)",null,null,null,null,"N/A",null,null,null,null,null,null,null,null,null,null,{"$f":"F59","v":"N/A"},{"$f":"A59","v":"B13. If the government financed any contraceptive procurement in the most recent complete fiscal year, which entity conducted the procurement(s)? (Please select from the dropdown.)"}]
[null,"a. Specify entity",null,null,null,"N/A",null,null,null,null,null,null,{"$f":"E60","v":0},null,null,null,{"$f":"F60","v":"N/A"},{"$f":"B60","v":"a. Specify entity"}]
[null,null,"i. Is this a parastatal?",null,null,"N/A",null,null,null,null,null,null,null,null,null,null,{"$f":"F61","v":"N/A"},{"$f":"C61","v":"i. Is this a parastatal?"}]
["B14. Please note any additional comments about finance and procurement.\n",null,null,null,null,null,null,null,null,null,{"$f":"A62","v":"B14. Please note any additional comments about finance and procurement.\n"},null,null,null,{"$f":"D62","v":0}]
["C. Commodities"]
["C1. Are the following contraceptive methods offered through the commercial sector, public sector, NGOs, or social marketing? (Please indicate which methods are intended to be offered. This question is not asking whether the method is in stock.) \n(Please select from the dropdown list.)",null,null,null,null,null,null,null,null,null,null,null,null,null,null,null,null,null,null,null,null,null,null,{"$f":"A64","v":"C1. Are the following contraceptive methods offered through the commercial sector, public sector, NGOs, or social marketing? (Please indicate which methods are intended to be offered. This question is not asking whether the method is in stock.) \n(Please select from the dropdown list.)"}]
["Contraceptive Method",null,null,"Commercial Sector",null,"Public Sector","NGO","Social Marketing",null,null,{"$f":"A65","v":"Contraceptive Method"}]
[null,"a. Combined oral contraceptives (estrogen + progestin - for  example, LoFemenol, Microgynon)",null,"Yes",null,"Yes","Yes","Yes",null,null,{"$f":"B66","v":"a. Combined oral contraceptives (estrogen + progestin - for  example, LoFemenol, Microgynon)"}]
[null,"b. Progestin-only pills (for example, Ovrette, Microlut)",null,"Yes",null,"Yes","Yes","Yes",null,null,{"$f":"B67","v":"b. Progestin-only pills (for example, Ovrette, Microlut)"}]
[null,"c. Hormonal injections (for example, DepoProvera, Noristerat)",null,"No",null,"No","No","No",null,null,"c. Hormonal injections (for example, DepoProvera, Noristerat)"]
[null,"d. Hormonal implants (for example, Jadelle, Implanon)",null,"No",null,"No","No","No",null,null,"d. Hormonal implants (for example, Jadelle, Implanon)"]
[null,"e. Intrauterine devices (IUDs) (for example, Optima Copper T)",null,"Yes",null,"Yes","Yes","Yes",null,null,"e. Intrauterine devices (IUDs) (for example, Optima Copper T)"]
[null,"f. Male condoms",null,"Yes",null,"Yes","Yes","Yes",null,null,"f. Male condoms"]
[null,"g. Female condoms",null,"Yes",null,"No","No","No",null,null,"g. Female condoms"]
[null,"h. Emergency contraceptive pills (for example, Postinor)",null,"Yes",null,"Yes","No","No",null,null,"h. Emergency contraceptive pills (for example, Postinor)"]
[null,"i. Long-acting permanent method for males (vasectomy)",null,"No",null,"No","No","No",null,null,"i. Long-acting permanent method for males (vasectomy)"]
[null,"j. Long-acting permanent method for females (tubal ligation)",null,"Yes",null,"Yes","No","No",null,null,"j. Long-acting permanent method for females (tubal ligation)"]
[null,"k. CycleBeads",null,"Yes",null,"No","No","No",null,null,"k. CycleBeads"]
[null,"l. Other contraceptive methods - specify \n(Please provide the name of the other contraceptive(s) offered, by sector.)",null,null,null,null,null,null,null,null,"l. Other contraceptive methods - specify \n(Please provide the name of the other contraceptive(s) offered, by sector.)"]
["C2. Please note any comments about the commodities offered.",null,null,"The NGO information about methods offered refers to HERA in Kutaisi.",null,null,null,null,null,null,{"$f":"A78","v":"C2. Please note any comments about the commodities offered."},null,null,null,{"$f":"D78","v":"The NGO information about methods offered refers to HERA in Kutaisi."}]
["D. Policies (Commitment)"]
["D1. Is there a contraceptive security or reproductive health commodity security strategy or is contraceptive security explicitly included in a country strategy? (Please select from the dropdown list.)",null,null,null,null,null,null,"Yes",{"$f":"A80","v":"D1. Is there a contraceptive security or reproductive health commodity security strategy or is contraceptive security explicitly included in a country strategy? (Please select from the dropdown list.)"}]
["IF NO, SKIP TO QUESTION D2."]
[null,"Strategy name",null,"Years Covered (including strategy updates)",null,"Is the strategy formally approved by the Ministry?","Is the contraceptive security strategy being implemented?",null,null,{"$f":"G82","v":"Is the contraceptive security strategy being implemented?"},{"$f":"B82","v":"Strategy name"},null,{"$f":"E82","v":0},null,null,null,null,null,{"$f":"D82","v":"Years Covered (including strategy updates)"}]
[null,"a","National Reproductive Health Strategy","2005-2015",null,"Yes","Yes",null,null,{"$f":"G83","v":"Yes"},{"$f":"B83","v":"a"},null,{"$f":"E83","v":0},null,null,null,null,null,{"$f":"D83","v":"2005-2015"}]
["D2. Are any family planning commodities subject to duties, import taxes, or other fees?",null,null,null,null,"Yes",null,null,null,null,null,null,null,null,null,null,{"$f":"F84","v":"Yes"},{"$f":"A84","v":"D2. Are any family planning commodities subject to duties, import taxes, or other fees?"}]
[null,"a. If yes, for which sectors (public, NGO, social marketing, commercial)?",null,null,"1) If the commodity is humanitarian it is not subject to any taxation, and the documentation fee should not exceed 200 GEL. 2) If the commodity is commercial or social marketing (intended to be sold) it is subject to taxation. ",null,null,null,null,null,null,null,{"$f":"E85","v":"1) If the commodity is humanitarian it is not subject to any taxation, and the documentation fee should not exceed 200 GEL. 2) If the commodity is commercial or social marketing (intended to be sold) it is subject to taxation. "},{"$f":"E85","v":"1) If the commodity is humanitarian it is not subject to any taxation, and the documentation fee should not exceed 200 GEL. 2) If the commodity is commercial or social marketing (intended to be sold) it is subject to taxation. "},null,null,null,{"$f":"B85","v":"a. If yes, for which sectors (public, NGO, social marketing, commercial)?"}]
[null,"b. If yes, how much are the duties, taxes, or fees?",null,null,"Custom tax 18% of the total price, custom fee 60 EUR, and after sales revenue 10%.",null,null,null,null,null,null,null,null,{"$f":"E86","v":"Custom tax 18% of the total price, custom fee 60 EUR, and after sales revenue 10%."},null,null,null,{"$f":"B86","v":"b. If yes, how much are the duties, taxes, or fees?"}]
["D3. Are there policies that hinder the ability of the private sector (commercial sector, NGOs, or social marketing) to provide contraceptive methods (for example: price controls, distribution limitations, taxes/duties, advertising bans, etc.)?",null,null,null,null,null,null,"No",{"$f":"A87","v":"D3. Are there policies that hinder the ability of the private sector (commercial sector, NGOs, or social marketing) to provide contraceptive methods (for example: price controls, distribution limitations, taxes/duties, advertising bans, etc.)?"}]
[null,"a. If yes, describe the policies.",null,"N/A",null,null,null,null,null,null,{"$f":"B88","v":"a. If yes, describe the policies."},null,null,null,{"$f":"D88","v":"N/A"}]
["D4. Are there policies that enable the private sector (commercial sector, NGOs, or social marketing) to provide contraceptive methods?",null,null,null,null,null,null,"No",{"$f":"A89","v":"D4. Are there policies that enable the private sector (commercial sector, NGOs, or social marketing) to provide contraceptive methods?"}]
[null,"a. If yes, describe the policies.",null,"N/A",null,null,null,null,null,null,{"$f":"B90","v":"a. If yes, describe the policies."},null,null,null,{"$f":"D90","v":"N/A"}]
["D5. Do policies or regulations exist that restrict who can sell or dispense particular contraceptive methods?\n",null,null,null,null,null,null,"Yes",{"$f":"A91","v":"D5. Do policies or regulations exist that restrict who can sell or dispense particular contraceptive methods?\n"}]
[null,"Please note any restrictions in the following table."]
[null,"Contraceptive Method(s)",null,null,"Describe any public sector restriction on who is allowed to sell or dispense the method",null,"Describe any private sector restriction on who is allowed to sell or dispense the method",null,null,{"$f":"G93","v":"Describe any private sector restriction on who is allowed to sell or dispense the method"},null,null,null,null,null,{"$f":"B93","v":"Contraceptive Method(s)"},null,null,null,null,{"$f":"E93","v":"Describe any public sector restriction on who is allowed to sell or dispense the method"}]
[null,"a","IUDs",null,"Only Ob/Gyns and reproductologists can dispense.",null,"Only Ob/Gyns and reproductologists can dispense.",null,null,{"$f":"G94","v":"Only Ob/Gyns and reproductologists can dispense."},null,null,{"$f":"E94","v":"Only Ob/Gyns and reproductologists can dispense."},null,null,{"$f":"C94","v":"IUDs"},null,null,null,null,{"$f":"E94","v":"Only Ob/Gyns and reproductologists can dispense."}]
[null,"b",null,null,null,null,null,null,null,{"$f":"G95","v":0},null,null,{"$f":"E95","v":0},null,null,{"$f":"C95","v":0},null,null,null,null,{"$f":"E95","v":0}]
[null,"c",null,null,null,null,null,null,null,{"$f":"G96","v":0},null,null,{"$f":"E96","v":0},null,null,{"$f":"C96","v":0},null,null,null,null,{"$f":"E96","v":0}]
[null,null,null,null,null,null,null,null,null,null,{"$f":"C97","v":0}]
["D6. Does the country have laws, regulations, or policies that make it difficult for the following sub-populations to access effective family planning services?",null,null,"Y/N","If yes, describe laws/regulations/policies affecting access ",null,null,"Are the rules/policies implemented?",null,null,{"$f":"A98","v":"D6. Does the country have laws, regulations, or policies that make it difficult for the following sub-populations to access effective family planning services?"},null,null,null,null,null,null,null,null,null,null,{"$f":"E98","v":"If yes, describe laws/regulations/policies affecting access "}]
[null,"a. Unmarried people",null,"No",null,null,null,null,null,null,{"$f":"B99","v":"a. Unmarried people"},null,{"$f":"E99","v":0},null,null,null,null,null,null,null,null,{"$f":"E99","v":0}]
[null,"b. Young people",null,"No",null,null,null,null,null,null,{"$f":"B100","v":"b. Young people"},null,{"$f":"E100","v":0},null,null,null,null,null,null,null,null,{"$f":"E100","v":0}]
[null,"c. Other",null,"No",null,null,null,null,null,null,{"$f":"B101","v":"c. Other"},null,{"$f":"E101","v":0},null,null,null,null,null,null,null,null,{"$f":"E101","v":0}]
[null,null,null,null,null,null,null,null,null,null,{"$f":"C102","v":0}]
["D7. Are there charges* to the client in the public sector for family planning:\n*(This question refers to charges by policy, not under-the-table charges.)\n",null,null,null,null,null,null,null,null,null,null,null,null,null,null,null,null,null,null,null,null,null,null,{"$f":"A103","v":"D7. Are there charges* to the client in the public sector for family planning:\n*(This question refers to charges by policy, not under-the-table charges.)\n"}]
[null,"a. Services?",null,null,null,null,"Yes",null,null,{"$f":"G104","v":"Yes"},null,null,null,null,null,null,null,null,null,null,null,null,null,null,{"$f":"B104","v":"a. Services?"}]
[null,"b. Commodities?",null,null,null,null,"Yes",null,null,{"$f":"G105","v":"Yes"},null,null,null,null,null,null,null,null,null,null,null,null,null,null,{"$f":"B105","v":"b. Commodities?"}]
[null,"c. If yes, are there exemptions for people who cannot afford to pay?",null,null,null,null,"Yes",null,null,{"$f":"G106","v":"Yes"},null,null,null,null,null,null,null,null,null,null,null,null,null,null,{"$f":"B106","v":"c. If yes, are there exemptions for people who cannot afford to pay?"}]
[null,null,"i. If yes, describe the exemptions.","There is a state insurance program for poor people. ",null,null,null,null,null,null,{"$f":"C107","v":"i. If yes, describe the exemptions."},null,null,null,{"$f":"D107","v":"There is a state insurance program for poor people. "}]
["D8. Are the following contraceptives included in the country's National Essential Medicine List (NEML) or other equivalent priority list?",null,null,null,null,null,null,null,null,null,null,null,null,null,null,null,null,null,null,null,null,null,null,{"$f":"A108","v":"D8. Are the following contraceptives included in the country's National Essential Medicine List (NEML) or other equivalent priority list?"}]
[null,"a. Combined oral contraceptives",null,null,null,null,"No",null,null,{"$f":"G109","v":"No"},null,null,null,null,null,null,null,null,null,null,null,null,null,null,{"$f":"B109","v":"a. Combined oral contraceptives"}]
[null,"b. Progestin-only pills",null,null,null,null,"No",null,null,"No",null,null,null,null,null,null,null,null,null,null,null,null,null,null,"b. Progestin-only pills"]
[null,"c. Hormonal injections",null,null,null,null,"No",null,null,"No",null,null,null,null,null,null,null,null,null,null,null,null,null,null,"c. Hormonal injections"]
[null,"d. Hormonal implants",null,null,null,null,"No",null,null,"No",null,null,null,null,null,null,null,null,null,null,null,null,null,null,"d. Hormonal implants"]
[null,"e. Intrauterine devices (IUDs)",null,null,null,null,"No",null,null,"No",null,null,null,null,null,null,null,null,null,null,null,null,null,null,"e. Intrauterine devices (IUDs)"]
[null,"f. Male condoms",null,null,null,null,"No",null,null,"No",null,null,null,null,null,null,null,null,null,null,null,null,null,null,"f. Male condoms"]
[null,"g. Female condoms",null,null,null,null,"No",null,null,"No",null,null,null,null,null,null,null,null,null,null,null,null,null,null,"g. Female condoms"]
[null,"h. Emergency contraceptive pills",null,null,null,null,"No",null,null,"No",null,null,null,null,null,null,null,null,null,null,null,null,null,null,"h. Emergency contraceptive pills"]
[null,"i. CycleBeads",null,null,null,null,"No",null,null,{"$f":"G117","v":"No"},null,null,null,null,null,null,null,null,null,null,null,null,null,null,{"$f":"B117","v":"i. CycleBeads"}]
[null,"j. Any other contraceptive(s)?",null,null,null,null,"No",null,null,"No",null,null,null,null,null,null,null,null,null,null,null,null,null,null,"j. Any other contraceptive(s)?"]
[null,null,"i. Name of other contraceptive(s) on the list(s)",null,null,"N/A",null,null,null,0,null,null,null,null,null,null,null,{"$f":"B119","v":0}]
["D9. What year(s) is the list(s) from?",null,null,null,null,"N/A",null,null,null,0,null,null,null,null,null,null,null,{"$f":"B120","v":0}]
["D10. Name of the list(s)\n\n\n",null,null,"N/A",null,null,null,null,null,null,{"$f":"A121","v":"D10. Name of the list(s)\n\n\n"},null,null,null,{"$f":"D121","v":"N/A"}]
["D11. Notes about the list(s)\n",null,null,"No legally approved essential drug list exists at the national level, however most insurance companies have their own lists. These do not include contraceptives.",null,null,null,null,null,null,{"$f":"A122","v":"D11. Notes about the list(s)\n"},null,null,null,{"$f":"D122","v":"No legally approved essential drug list exists at the national level, however most insurance companies have their own lists. These do not include contraceptives."}]
["D12.  Information on country's Poverty Reduction Strategy Paper (PRSP)\n",null,null,null,null,null,null,null,null,null,null,null,null,null,null,null,null,null,null,null,null,null,null,{"$f":"A123","v":"D12.  Information on country's Poverty Reduction Strategy Paper (PRSP)\n"}]
[null,"a. What year is the Poverty Reduction Strategy Paper from? (most recent actual PRSP on IMF's site [not progress or summary report])",null,null,null,2003,null,null,null,{"$f":"G124","v":0},null,null,null,null,null,null,null,{"$f":"B124","v":"a. What year is the Poverty Reduction Strategy Paper from? (most recent actual PRSP on IMF's site [not progress or summary report])"}]
[null,"b. Is family planning or reproductive health a priority in the PRSP?",null,null,null,null,"No",null,null,{"$f":"G125","v":"No"},null,null,null,null,null,null,null,null,null,null,null,null,null,null,{"$f":"B125","v":"b. Is family planning or reproductive health a priority in the PRSP?"}]
[null,"c. Is contraceptive security included in the PRSP?",null,null,null,null,"No",null,null,{"$f":"G126","v":"No"},null,null,null,null,null,null,null,null,null,null,null,null,null,null,{"$f":"B126","v":"c. Is contraceptive security included in the PRSP?"}]
[null,"d. Is contraceptive prevalence rate (CPR) included as an indicator in the PRSP?",null,null,null,null,"No",null,null,{"$f":"G127","v":"No"},null,null,null,null,null,null,null,null,null,null,null,null,null,null,{"$f":"B127","v":"d. Is contraceptive prevalence rate (CPR) included as an indicator in the PRSP?"}]
[null,"e. Are contraceptive supply indicators included in the PRSP?",null,null,null,null,"No",null,null,{"$f":"G128","v":"No"},null,null,null,null,null,null,null,null,null,null,null,null,null,null,{"$f":"B128","v":"e. Are contraceptive supply indicators included in the PRSP?"}]
["\n\n\n","f. Notes about the Poverty Reduction Strategy Paper",null,null,null,null,null,null,null,null,{"$f":"B129","v":"f. Notes about the Poverty Reduction Strategy Paper"},null,null,null,{"$f":"D129","v":0}]
["E. Supply Chain (Capacity)"]
["E1. Have stockouts occurred for any contraceptive at the central* level in the last 12 months?  \n*(The central level refers to the central level warehouse for the public sector.)",null,null,null,null,null,"No",null,null,{"$f":"G131","v":"No"},null,null,null,null,null,null,null,null,null,null,null,null,null,null,{"$f":"A131","v":"E1. Have stockouts occurred for any contraceptive at the central* level in the last 12 months?  \n*(The central level refers to the central level warehouse for the public sector.)"}]
["E2. In the last 12 months, has there ever been a stockout at the central level of any of the contraceptives offered in public sector facilities? (If a method is not intended to be offered in public sector facilities, please indicate that stockouts are not applicable (choose \"N/A\" from the dropdown list).)",null,null,null,null,null,null,null,null,null,null,null,null,null,null,null,null,null,null,null,null,null,null,{"$f":"A132","v":"E2. In the last 12 months, has there ever been a stockout at the central level of any of the contraceptives offered in public sector facilities? (If a method is not intended to be offered in public sector facilities, please indicate that stockouts are not applicable (choose \"N/A\" from the dropdown list).)"}]
[null,"a. Combined oral contraceptives",null,null,null,null,"No",null,null,{"$f":"G133","v":"No"},null,null,null,null,null,null,null,null,null,null,null,null,null,null,{"$f":"B133","v":"a. Combined oral contraceptives"}]
[null,"b. Progestin-only pills",null,null,null,null,"No",null,null,"No",null,null,null,null,null,null,null,null,null,null,null,null,null,null,"b. Progestin-only pills"]
[null,"c. Hormonal injections",null,null,null,null,"N/A",null,null,"N/A",null,null,null,null,null,null,null,null,null,null,null,null,null,null,"c. Hormonal injections"]
[null,"d. Hormonal implants",null,null,null,null,"N/A",null,null,"N/A",null,null,null,null,null,null,null,null,null,null,null,null,null,null,"d. Hormonal implants"]
[null,"e. Intrauterine devices (IUDs)",null,null,null,null,"No",null,null,"No",null,null,null,null,null,null,null,null,null,null,null,null,null,null,"e. Intrauterine devices (IUDs)"]
[null,"f. Male condoms",null,null,null,null,"No",null,null,"No",null,null,null,null,null,null,null,null,null,null,null,null,null,null,"f. Male condoms"]
[null,"g. Female condoms",null,null,null,null,"N/A",null,null,"N/A",null,null,null,null,null,null,null,null,null,null,null,null,null,null,"g. Female condoms"]
[null,"h. Emergency contraceptive pills",null,null,null,null,"N/A",null,null,"N/A",null,null,null,null,null,null,null,null,null,null,null,null,null,null,"h. Emergency contraceptive pills"]
[null,"i. CycleBeads",null,null,null,null,"N/A",null,null,"N/A",null,null,null,null,null,null,null,null,null,null,null,null,null,null,"i. CycleBeads"]
[null,"j. Time period\n(mm/yy - mm/yy) (for example, 1/10-12/10) ",null,null,null,"03/10-02/11",null,null,null,null,null,null,null,null,null,null,{"$f":"F142","v":"03/10-02/11"},{"$f":"B142","v":"j. Time period\n(mm/yy - mm/yy) (for example, 1/10-12/10) "}]
[null,"k. Data source\n(for example: Procurement Planning and Monitoring Report, Logistics Management Information System, periodic physical inventory, warehouse reports)",null,null,null,"USAID SUSTAIN logistics management information system (LMIS) regarding the USAID SUSTAIN contraceptive store",null,null,null,null,null,null,null,null,null,null,{"$f":"F143","v":"USAID SUSTAIN logistics management information system (LMIS) regarding the USAID SUSTAIN contraceptive store"},{"$f":"B143","v":"k. Data source\n(for example: Procurement Planning and Monitoring Report, Logistics Management Information System, periodic physical inventory, warehouse reports)"}]
["E3. Are stockouts a large problem in your country at the following levels? (i.e., Are they common or do they tend to last for a long time?)\n\n"]
[null,"a. service delivery point level (i.e., public sector health facilities)",null,null,null,null,"No",null,null,{"$f":"G145","v":"No"},null,null,null,null,null,null,null,null,null,null,null,null,null,null,{"$f":"B145","v":"a. service delivery point level (i.e., public sector health facilities)"}]
[null,"b. central level (i.e., central level warehouse for the public sector)",null,null,null,null,"No",null,null,{"$f":"G146","v":"No"},null,null,null,null,null,null,null,null,null,null,null,null,null,null,{"$f":"B146","v":"b. central level (i.e., central level warehouse for the public sector)"}]
["F. Please note any overall comments about challenges and/or successes with contraceptive security in your country.\n\n",null,null,null,null,null,null,null,null,null,{"$f":"A147","v":"F. Please note any overall comments about challenges and/or successes with contraceptive security in your country.\n\n"},null,null,null,{"$f":"D147","v":0}]

{"sheet":"Ghana 2011","index":18,"n_rows":147,"n_cols":25,"rows_kept":147,"cut":false,"hidden":false,"merged":[[8,0,8,7],[147,0,147,7],[148,0,150,7],[145,1,145,5],[145,6,145,7],[146,0,146,2],[146,3,146,7],[141,1,141,4],[141,5,141,7],[142,1,142,4],[142,5,142,7],[143,0,143,7],[144,1,144,5],[144,6,144,7],[138,1,138,5],[138,6,138,7],[139,1,139,5],[139,6,139,7],[140,1,140,5],[131,0,131,7],[132,1,132,5],[132,6,132,7],[133,1,133,5],[133,6,133,7],[134,1,134,5],[134,6,134,7],[140,6,140,7],[135,1,135,5],[135,6,135,7],[136,1,136,5],[136,6,136,7],[137,1,137,5],[137,6,137,7],[120,0,120,2],[120,3,120,7],[121,0,121,2],[121,3,121,7],[129,0,129,6],[130,0,130,5],[130,6,130,7],[122,0,122,7],[123,1,123,4],[123,5,123,7],[115,1,115,5],[115,6,115,7],[116,1,116,5],[116,6,116,7],[117,1,117,5],[117,6,117,7],[118,2,118,4],[118,5,118,7],[119,0,119,4],[119,5,119,7],[110,1,110,5],[110,6,110,7],[111,1,111,5],[111,6,111,7],[112,1,112,5],[112,6,112,7],[113,1,113,5],[113,6,113,7],[114,1,114,5],[114,6,114,7],[104,1,104,5],[104,6,104,7],[105,1,105,5],[105,6,105,7],[106,3,106,7],[107,0,107,7],[108,1,108,5],[108,6,108,7],[109,1,109,5],[109,6,109,7],[98,1,98,2],[98,4,98,6],[99,1,99,2],[99,4,99,6],[100,1,100,2],[100,4,100,6],[101,0,101,7],[102,0,102,7],[103,1,103,5],[103,6,103,7],[94,2,94,3],[94,4,94,5],[94,6,94,7],[95,2,95,3],[95,4,95,5],[95,6,95,7],[96,0,96,7],[97,0,97,2],[97,4,97,6],[88,0,88,6],[89,1,89,2],[89,3,89,7],[90,0,90,6],[91,1,91,2],[92,1,92,3],[92,4,92,5],[92,6,92,7],[93,2,93,3],[93,4,93,5],[93,6,93,7],[83,0,83,4],[83,5,83,7],[84,1,84,3],[84,4,84,7],[85,1,85,3],[85,4,85,7],[86,0,86,6],[87,1,87,2],[87,3,87,7],[77,0,77,2],[77,3,77,7],[78,0,78,6],[79,0,79,6],[80,0,80,2],[81,0,82,0],[81,1,81,2],[81,3,81,4],[81,6,81,7],[82,3,82,4],[82,6,82,7],[72,1,72,2],[72,3,72,4],[73,1,73,2],[73,3,73,4],[74,1,74,2],[74,3,74,4],[75,1,75,2],[75,3,75,4],[76,1,76,2],[76,3,76,4],[67,1,67,2],[67,3,67,4],[68,1,68,2],[68,3,68,4],[69,1,69,2],[69,3,69,4],[70,1,70,2],[70,3,70,4],[71,1,71,2],[71,3,71,4],[61,0,61,2],[61,3,61,7],[62,0,62,6],[63,0,63,7],[64,0,64,2],[64,3,64,4],[65,1,65,2],[65,3,65,4],[66,1,66,2],[66,3,66,4],[55,0,55,4],[55,6,55,7],[56,0,56,4],[56,6,56,7],[58,0,58,4],[58,5,58,7],[59,1,59,4],[59,5,59,7],[60,2,60,4],[60,5,60,7],[41,1,41,2],[42,3,42,7],[43,1,43,2],[51,1,51,2],[53,0,53,7],[54,0,54,4],[54,6,54,7],[45,0,45,7],[46,1,46,2],[47,1,47,2],[48,3,48,7],[49,1,49,2],[50,1,50,2],[32,0,32,7],[33,1,33,3],[34,1,34,3],[35,0,35,7],[36,0,36,6],[37,0,37,7],[38,1,38,2],[39,1,39,2],[40,3,40,7],[26,0,26,6],[27,0,27,2],[27,3,27,4],[28,0,28,5],[28,6,28,7],[29,0,29,3],[29,6,29,7],[30,0,30,6],[31,0,31,6],[20,1,20,2],[20,5,20,7],[21,1,21,2],[21,5,21,7],[22,1,22,2],[22,5,22,7],[23,0,23,6],[24,0,24,6],[25,0,25,2],[15,1,15,2],[15,5,15,7],[16,1,16,2],[16,5,16,7],[17,1,17,2],[17,5,17,7],[18,1,18,2],[18,5,18,7],[19,1,19,2],[19,5,19,7],[9,0,9,7],[10,0,10,6],[11,0,11,6],[12,1,12,2],[12,3,12,7],[13,0,13,2],[13,3,13,7],[14,1,14,2],[14,5,14,7],[7,0,7,2],[7,3,7,5],[7,6,7,7],[0,0,0,7],[1,0,1,2],[1,3,1,4],[2,0,2,7],[3,3,3,4],[3,5,3,7],[4,0,4,2],[5,0,5,2],[127,1,127,5],[127,6,127,7],[128,1,128,2],[128,3,128,7],[124,1,124,5],[124,6,124,7],[125,1,125,5],[125,6,125,7],[126,1,126,5],[126,6,126,7]]}
[null,null,null,null,null,null,null,null,"Columns I-Y are meant to be hidden. They exist because they allow for the dropdown list options. They also allow for merged cells to autofit properly in terms of row height. This should work if all columns remain at their correct widths.","g-h",null,"a-e merged","E-F merged","e-h","0 times",null,null,"The government (e.g., Central Medical Stores, MOH logistics unit, MOH procurement unit)",null,null,null,null,"Yes","a-h","January"]
[null,null,null,null,null,null,null,null,null,null,"A-c",null,null,null,"1-2 times","b-d merged",null,"Third-party agent (e.g., UNFPA, Crown Agents)","d-e merged","d-f merged","e-f merged","e-g merged","No",null,"February"]
[null,null,null,null,null,null,null,null,null,null,null,null,null,null,"3-5 times",null,null,"The government and a third-party agent",null,null,null,null,null,null,"March"]
[null,null,null,null,null,null,null,null,null,null,null,null,null,null,"6 or more times",null,null,"Other",null,null,null,null,"N/A",null,"April"]
["To jump to the Introduction sheet, click here.",null,null,null,null,null,null,null,null,null,null,null,null,null,null,null,null,null,null,null,null,null,"Don't know",null,"May"]
[null,null,null,null,null,null,null,null,null,null,null,null,null,null,"N/A",null,null,"N/A",null,null,null,null,null,null,"June"]
["Contraceptive Security (CS) Indicators 2011 Data ",null,null,null,null,null,null,null,null,null,null,null,null,null,"Don't know",null,null,"Don't know",null,null,null,null,null,null,"July"]
["Country: Ghana",null,null,null,null,null,null,null,null,{"$f":"G8","v":0},{"$f":"A8","v":"Country: Ghana"},null,null,null,null,"or c-d",null,null,null,{"$f":"D8","v":0},null,null,null,null,"August"]
["The CS Indicators are presented in the following sections:\n\n               A. leadership & cooordination               B. finance & procurement               C. commodities               D. policies               E. supply chain",null,null,null,null,null,null,null,null,{"$f":"G9","v":0},{"$f":"A9","v":"The CS Indicators are presented in the following sections:\n\n               A. leadership & cooordination               B. finance & procurement               C. commodities               D. policies               E. supply chain"},null,null,null,"d-h",null,"f-h merged",null,{"$f":"D9","v":0},null,null,null,null,null,"September"]
["\nNotes:\n  -  Respondents' answers are indicated in the white spaces. \n  -  N/A = not applicable. Don't know = the respondent either indicated they did not know or left the answer blank.\n  -  Some questions required respondents to choose from a dropdown list of options; in these cases the dropdown arrow will \n     appear when you click on the cell. \n  -  There may be a few inserted comments. (If you cannot already see them, click on Review tab - Comments group - Show All Comments in newer \n       versions of Excel or View - Comments in older versions of Excel.)\n  -  If the answer is cut off, you can either manually adjust the row height or autofit the row height in order to see the whole \n     response. (To autofit the row height, select the answer(s) and go to Home tab - Cells group - Format - Autofit Row Height in newer versions of Excel or \n      Format - Row - Autofit in older versions of Excel.)\n",null,null,null,null,null,null,null,"a-g",null,null,null,null,null,null,null,null,"a-e merged",null,null,null,null,null,{"$f":"A10","v":"\nNotes:\n  -  Respondents' answers are indicated in the white spaces. \n  -  N/A = not applicable. Don't know = the respondent either indicated they did not know or left the answer blank.\n  -  Some questions required respondents to choose from a dropdown list of options; in these cases the dropdown arrow will \n     appear when you click on the cell. \n  -  There may be a few inserted comments. (If you cannot already see them, click on Review tab - Comments group - Show All Comments in newer \n       versions of Excel or View - Comments in older versions of Excel.)\n  -  If the answer is cut off, you can either manually adjust the row height or autofit the row height in order to see the whole \n     response. (To autofit the row height, select the answer(s) and go to Home tab - Cells group - Format - Autofit Row Height in newer versions of Excel or \n      Format - Row - Autofit in older versions of Excel.)\n"},"October"]
["A. Leadership and Coordination",null,null,null,null,null,null,null,null,null,null,null,null,null,null,null,null,null,null,null,null,null,null,null,"November"]
["A1. Is there a national committee that works on contraceptive security? (Please select from the dropdown list.)\n(Committee should have some aspect of contraceptive security as part of its Terms of Reference, even if it is known by a different name, for example: Family Planning, Reproductive Health, Maternal Mortality, Essential Medicine Committee, etc.)  ",null,null,null,null,null,null,"Yes",{"$f":"A12","v":"A1. Is there a national committee that works on contraceptive security? (Please select from the dropdown list.)\n(Committee should have some aspect of contraceptive security as part of its Terms of Reference, even if it is known by a different name, for example: Family Planning, Reproductive Health, Maternal Mortality, Essential Medicine Committee, etc.)  "},null,null,null,null,null,null,null,null,null,null,null,null,null,null,null,"December"]
[null,"a. What is the name of the committee?",null,"Inter-Agency Coordinating Committee on Contraceptive Security (ICC/CS)",null,null,null,null,null,null,{"$f":"B13","v":"a. What is the name of the committee?"},{"$f":"D13","v":"Inter-Agency Coordinating Committee on Contraceptive Security (ICC/CS)"},null,null,{"$f":"D13","v":"Inter-Agency Coordinating Committee on Contraceptive Security (ICC/CS)"}]
["A2. Are the following organizations represented on the committee?",null,null,"(Y/N \ndropdown)",null,null,null,null,null,null,{"$f":"A14","v":"A2. Are the following organizations represented on the committee?"},null,null,null,null,null,null,null,null,null,null,null,null,null,"Don't know"]
[null,"a. Social marketing",null,"Yes","If yes, specify name(s) of organizations","EXP Social Marketing (ESM), Ghana Social Marketing Foundation (GSMF) ",null,null,null,null,{"$f":"B15","v":"a. Social marketing"},null,null,null,null,null,{"$f":"F15","v":"EXP Social Marketing (ESM), Ghana Social Marketing Foundation (GSMF) "}]
[null,"b. NGO (for example: service delivery, advocacy, Planned Parenthood affiliate, Marie Stopes affiliate, faith-based organizations, etc.)",null,"Yes","If yes, specify name(s) of organizations","Planned Parenthood Association of Ghana (PPAG), Marie Stopes International Ghana (MSIGh), Christian Health Association of Ghana (CHAG)",null,null,null,null,"b. NGO (for example: service delivery, advocacy, Planned Parenthood affiliate, Marie Stopes affiliate, faith-based organizations, etc.)",null,null,null,null,null,"Planned Parenthood Association of Ghana (PPAG), Marie Stopes International Ghana (MSIGh), Christian Health Association of Ghana (CHAG)"]
[null,"c. Commercial sector (for example: pharmacy associations, manufacturers, etc.)",null,"Yes","If yes, specify name(s) of organizations","Ghana Registered Midwives Association, Ghana Registered Nurses Association, Society of Private Medical and Dental Practitioners, Pharmaceutical Society of Ghana",null,null,null,null,"c. Commercial sector (for example: pharmacy associations, manufacturers, etc.)",null,null,null,null,null,"Ghana Registered Midwives Association, Ghana Registered Nurses Association, Society of Private Medical and Dental Practitioners, Pharmaceutical Society of Ghana"]
[null,"d. Donors",null,"Yes","If yes, specify name(s) of donors","USAID, UNFPA, DANIDA, DFID",null,null,null,null,"d. Donors",null,null,null,null,null,"USAID, UNFPA, DANIDA, DFID"]
[null,"e. UN agencies",null,"Yes","If yes, specify name(s) of agencies","UNAIDS, UNFPA, WHO",null,null,null,null,"e. UN agencies",null,null,null,null,null,"UNAIDS, UNFPA, WHO"]
[null,"f. Ministry of Health (for example: logistics, reproductive health, family planning, maternal and child health, HIV/AIDS, pharmacy units, etc.)",null,"Yes","If yes, specify name(s) of units","Ministry of Health (Procurement and Supplies, Policy Planning, and Monitoring and Evaluation directorates, Food and Drugs Board agency), Ghana Health Services (GHS) (Stores, Supplies and Drug Management; Family Health Division [FHD]; Public Health Directorate; Pharmacy Unit)",null,null,null,null,"f. Ministry of Health (for example: logistics, reproductive health, family planning, maternal and child health, HIV/AIDS, pharmacy units, etc.)",null,null,null,null,null,"Ministry of Health (Procurement and Supplies, Policy Planning, and Monitoring and Evaluation directorates, Food and Drugs Board agency), Ghana Health Services (GHS) (Stores, Supplies and Drug Management; Family Health Division [FHD]; Public Health Directorate; Pharmacy Unit)"]
[null,"g. Central Medical Store or Central Warehouse",null,"Yes","If yes, specify","Central Medical Store",null,null,null,null,"g. Central Medical Store or Central Warehouse",null,null,null,null,null,"Central Medical Store"]
[null,"h. Ministry of Finance or Ministry of Planning ",null,"Yes","If yes, specify","Ministry of Finance and Economic Planning - health desk officer",null,null,null,null,"h. Ministry of Finance or Ministry of Planning ",null,null,null,null,null,"Ministry of Finance and Economic Planning - health desk officer"]
[null,"i. Other (for example: partners)",null,"Yes","If yes, specify","Technical projects (USAID | DELIVER PROJECT, FOCUS REGION HEALTH PROJECT)",null,null,null,null,"i. Other (for example: partners)",null,null,null,null,null,"Technical projects (USAID | DELIVER PROJECT, FOCUS REGION HEALTH PROJECT)"]
["A3. How many times did the committee meet during the last year? (0, 1-2, 3-5, or 6+)  (Please select from the dropdown.)",null,null,null,null,null,null,"3-5 times",{"$f":"A24","v":"A3. How many times did the committee meet during the last year? (0, 1-2, 3-5, or 6+)  (Please select from the dropdown.)"}]
["A4. Does the committee have legal status?  (Please select from the dropdown.)                                  ",null,null,null,null,null,null,"Yes",{"$f":"A25","v":"A4. Does the committee have legal status?  (Please select from the dropdown.)                                  "}]
["A5. Is there a Contraceptive Security \"champion\"? (someone who consistently brings up and advocates for contraceptive supplies)",null,null,"Yes","If yes, specify person's organization","USAID, UNFPA, Family Health Division, USAID | DELIVER PROJECT","Specify person's job title","FP Advisors, Director of the FHD, FP Program manager at FHD and the Resident Logistics Advisor",null,null,{"$f":"A26","v":"A5. Is there a Contraceptive Security \"champion\"? (someone who consistently brings up and advocates for contraceptive supplies)"}]
["B. Finance and Procurement (Capital)"]
["B1. What is the timeline of the country's fiscal year?",null,null,"Beginning month",null,"January","Ending month","December",null,null,{"$f":"B28","v":0}]
["B2. What was the estimated dollar value of contraceptives needed to be procured for the public sector for the most recent complete fiscal year? (in USD currency)\n(for example, to cover the needs for the '09-'10 fiscal year)",null,null,null,null,null,10357919,null,null,{"$f":"G29","v":10357919},null,null,{"$f":"E29","v":0},null,null,null,null,null,null,null,null,null,null,null,{"$f":"A29","v":"B2. What was the estimated dollar value of contraceptives needed to be procured for the public sector for the most recent complete fiscal year? (in USD currency)\n(for example, to cover the needs for the '09-'10 fiscal year)"}]
["B3. When was the last forecast/quantification conducted? (mm/yy)",null,null,null,"03/11","Who conducted it? (Specify organization.)","USAID | DELIVER PROJECT with partners: GHS, MOH, PPAG, MSI, GSMF, ESM",null,null,{"$f":"G30","v":"USAID | DELIVER PROJECT with partners: GHS, MOH, PPAG, MSI, GSMF, ESM"},null,null,{"$f":"E30","v":"03/11"},null,null,null,null,null,null,null,null,null,null,null,{"$f":"A30","v":"B3. When was the last forecast/quantification conducted? (mm/yy)"}]
["B4. Is there a government budget line item for the procurement of contraceptives?  (Please select from the dropdown list.)",null,null,null,null,null,null,"Yes",{"$f":"A31","v":"B4. Is there a government budget line item for the procurement of contraceptives?  (Please select from the dropdown list.)"}]
["B5. Were government funds allocated for contraceptive procurement for the public sector in the most recent complete fiscal year? (This question refers to funds planned to be spent on contraceptives, whether or not they ended up being spent.) \n\n(Government funds include internally generated funds, basket funds, World Bank credits or loans, and other funds donors gave to the government for their use.) \n",null,null,null,null,null,null,"Yes",{"$f":"A32","v":"B5. Were government funds allocated for contraceptive procurement for the public sector in the most recent complete fiscal year? (This question refers to funds planned to be spent on contraceptives, whether or not they ended up being spent.) \n\n(Government funds include internally generated funds, basket funds, World Bank credits or loans, and other funds donors gave to the government for their use.) \n"}]
["B6. Please complete the table below regarding government allocations for contraceptive procurement.",null,null,null,null,null,null,null,null,null,null,null,null,null,null,null,null,null,null,null,null,null,null,{"$f":"A33","v":"B6. Please complete the table below regarding government allocations for contraceptive procurement."}]
[null,null,null,null,"Amount allocated \n(in USD)","Time period during which allocations were supposed to be spent \n(mm/yy-mm/yy)\n(should ideally be the most recent\ncomplete fiscal year ['09-'10])","Data source \n(for example: Ministry records)","Comments",null,null,{"$f":"A34","v":0}]
[null,"Government funds allocated for contraceptive procurement\n(funds originally designated for contraceptives, whether or not they ended up being spent on them)",null,null,"$    1,000,000","01/10-12/10","Ministry of Health",null,null,null,{"$f":"#REF!","v":{"$error":"#REF!"}}]
[]
["B7. Were government funds spent on contraceptive procurement for the public sector in the most recent complete fiscal year? \n(Government funds include internally generated funds, basket funds, World Bank credits or loans, and other funds donors gave to the government for their use.)",null,null,null,null,null,null,"Yes",{"$f":"A37","v":"B7. Were government funds spent on contraceptive procurement for the public sector in the most recent complete fiscal year? \n(Government funds include internally generated funds, basket funds, World Bank credits or loans, and other funds donors gave to the government for their use.)"}]
["B8. Please complete the table below to indicate government expenditures on contraceptive procurement, by source, in the most recent complete fiscal year. \n(This is how much was spent on contraceptive procurement (not what was allocated). How much of this spending was provided from each source?)",null,null,null,null,null,null,null,null,null,null,null,null,null,null,null,null,null,null,null,null,null,null,{"$f":"A38","v":"B8. Please complete the table below to indicate government expenditures on contraceptive procurement, by source, in the most recent complete fiscal year. \n(This is how much was spent on contraceptive procurement (not what was allocated). How much of this spending was provided from each source?)"}]
[null,"Source of government funds spent on contraceptive procurement for the public sector",null,"Was this source used?\n(Y/N)","Amount spent \n(in USD)","Time period (mm/yy-mm/yy)\n(should be the same for all sources of funds & ideally be the most recent\ncomplete fiscal year ['09-'10])","Data source \n(for example: Contraceptive Procurement Table, PipeLine, etc.)","Comments",null,null,{"$f":"A39","v":0}]
[null,"a. Internally generated funds spent on contraceptive procurement",null,"Yes",null,"01/10-12/10","Ministry of Health","The internally generated funds are part of the health sector support funds. We cannot disaggregate them.",null,null,{"$f":"B40","v":"a. Internally generated funds spent on contraceptive procurement"}]
[null,null,"i. Specify source(s) of internally generated funds spent (for example, from taxes or user fees)",null,null,null,null,null,null,null,{"$f":"C41","v":"i. Specify source(s) of internally generated funds spent (for example, from taxes or user fees)"},null,null,null,{"$f":"D41","v":0}]
[null,"b. Total of all other government funds spent on contraceptive procurement (basket funds, World Bank credits or loans, and other funds donors gave to the government [e.g., direct budget support])",null,"Yes",1237550,"01/10-12/10","Ministry of Health","This was originally planned for use in 2009, but release occurred in 2010. ",null,null,{"$f":"B42","v":"b. Total of all other government funds spent on contraceptive procurement (basket funds, World Bank credits or loans, and other funds donors gave to the government [e.g., direct budget support])"}]
[null,null,"i. Specify source(s) of other government funds spent (for example: basket funding or specific donor)","$800,000 from health sector support funds (including internally generated funds) and $437,550 from DANIDA. (The DANIDA funds were earmarked for condoms.)",null,null,null,null,null,null,{"$f":"C43","v":"i. Specify source(s) of other government funds spent (for example: basket funding or specific donor)"},null,null,null,{"$f":"D43","v":"$800,000 from health sector support funds (including internally generated funds) and $437,550 from DANIDA. (The DANIDA funds were earmarked for condoms.)"}]
[null,"c. TOTAL government funds spent on contraceptive procurement\nThis will auto-calculate.  (It will sum a & b above.)",null,null,{"$f":"E42+E40","v":1237550},null,null,null,null,null,{"$f":"B44","v":"c. TOTAL government funds spent on contraceptive procurement\nThis will auto-calculate.  (It will sum a & b above.)"}]
[null,null,null,null,null,null,null,null,null,null,{"$f":"A45","v":0}]
["B9. Please complete the table below to indicate donor expenditures on contraceptive procurement in the most recent complete fiscal year.\n",null,null,null,null,null,null,null,null,null,null,null,null,null,null,null,null,null,null,null,null,null,null,{"$f":"A46","v":"B9. Please complete the table below to indicate donor expenditures on contraceptive procurement in the most recent complete fiscal year.\n"}]
["\n","Source of donations and donor funds spent on contraceptive procurement for the public sector",null,"Was this a source?\n(Y/N)","Amount of money spent on these procurements \n(in USD)","Time period (mm/yy-mm/yy)\n(should be the same for all sources of funds & ideally be the most recent\ncomplete fiscal year ['09-'10])","Data source \n(for example:  Donor records, Contraceptive Procurement Table, PipeLine, RHInterchange, etc.","Comments",null,null,{"$f":"A47","v":"\n"}]
[null,"a. In-kind donations of contraceptives",null,"Yes",2327890,"01/10-12/10","My Commodities, RHInterchange, GHS and CMS records",null,null,null,{"$f":"B48","v":"a. In-kind donations of contraceptives"}]
[null,null,"i. Specify source(s) of in-kind donations ","USAID ($ 1,426,666), UNFPA ($901,224)",null,null,null,null,null,null,{"$f":"C49","v":"i. Specify source(s) of in-kind donations "},null,null,null,{"$f":"D49","v":"USAID ($ 1,426,666), UNFPA ($901,224)"}]
[null,"b. Global Fund donations used to procure condoms",null,"Yes",1450000,"01/10-12/10","GHS records",null,null,null,{"$f":"B50","v":"b. Global Fund donations used to procure condoms"}]
[null,"c. Global Fund donations used to procure contraceptives besides condoms",null,"No",0,"01/10-12/10","GHS records",null,null,null,{"$f":"B51","v":"c. Global Fund donations used to procure contraceptives besides condoms"}]
[null,"d. TOTAL value of in-kind donations and Global Fund donations spent on contraceptive procurement\nThis will auto-calculate.  (It will sum a-c above.)",null,null,{"$f":"E48+E50+E51","v":3777890},null,null,null,null,null,{"$f":"B52","v":"d. TOTAL value of in-kind donations and Global Fund donations spent on contraceptive procurement\nThis will auto-calculate.  (It will sum a-c above.)"}]
[null,null,null,null,null,null,null,null,null,null,{"$f":"A53","v":0}]
["The answers to B10 and B11 should calculate automatically based on the information you provided. Please review the answers to ensure they make sense to you, and if you have additional information to add, please note it in the comments boxes.\n\nIf the answers do not calculate automatically, please provide any relevant information you may have in the comments boxes.\n",null,null,null,null,null,null,null,null,null,null,null,null,null,null,null,null,null,null,null,null,null,null,{"$f":"A54","v":"The answers to B10 and B11 should calculate automatically based on the information you provided. Please review the answers to ensure they make sense to you, and if you have additional information to add, please note it in the comments boxes.\n\nIf the answers do not calculate automatically, please provide any relevant information you may have in the comments boxes.\n"}]
["B10. Government share of funds spent on contraceptive procurement for the public sector - \nOf the total amount spent on contraceptives for the public sector in the most recent complete fiscal year (including government and donor funds), what percent was covered by government funds (including internally generated funds, basket funds, World Bank credits or loans, and other funds given to the government)? \n\nThis will auto-calculate. (It contains the following formula: Total government spending (Question B8c) / Grand total of all spending for public sector contraceptives from the government and donors (Questions B8c+B9d))",null,null,null,null,{"$f":"E44/(E44+E52)","v":0.24674804204616146},"GoG-allocated funds for 2010, although requested, were never received for contraceptive procurement due to other constraints facing the GoG. The funds that were released in 2010 had been planned to be used in 2009. \n",null,null,{"$f":"G55","v":"GoG-allocated funds for 2010, although requested, were never received for contraceptive procurement due to other constraints facing the GoG. The funds that were released in 2010 had been planned to be used in 2009. \n"},null,null,null,null,null,null,null,{"$f":"A55","v":"B10. Government share of funds spent on contraceptive procurement for the public sector - \nOf the total amount spent on contraceptives for the public sector in the most recent complete fiscal year (including government and donor funds), what percent was covered by government funds (including internally generated funds, basket funds, World Bank credits or loans, and other funds given to the government)? \n\nThis will auto-calculate. (It contains the following formula: Total government spending (Question B8c) / Grand total of all spending for public sector contraceptives from the government and donors (Questions B8c+B9d))"}]
["B11. Total expenditures on public sector contraceptives as percent of amount that needed to be procured -\nOf the estimated value of the contraceptives needed to be procured for the public sector for the most recent complete fiscal year, what percent was provided by any source (whether government or donor)? \n\nThis will auto-calculate. (It contains the following formula: Grand total of all spending for public sector contraceptives from the government and donors (Questions B8c+B9d) / Value of estimated need for procurement (Question B2))",null,null,null,null,{"$f":"(E44+E52)/G29","v":0.48421309338294688},null,null,null,{"$f":"G56","v":0},null,null,null,null,null,null,null,{"$f":"A56","v":"B11. Total expenditures on public sector contraceptives as percent of amount that needed to be procured -\nOf the estimated value of the contraceptives needed to be procured for the public sector for the most recent complete fiscal year, what percent was provided by any source (whether government or donor)? \n\nThis will auto-calculate. (It contains the following formula: Grand total of all spending for public sector contraceptives from the government and donors (Questions B8c+B9d) / Value of estimated need for procurement (Question B2))"}]
["B12. If B11 did not calculate automatically, please answer the following question:\nWas there a funding gap for the public sector in the last complete fiscal year (e.g., 09-'10 fiscal year)?\n(Please select from the dropdown list.)",null,null,null,null,null,null,null,null,{"$f":"G57","v":0},null,null,null,null,null,null,null,{"$f":"A57","v":"B12. If B11 did not calculate automatically, please answer the following question:\nWas there a funding gap for the public sector in the last complete fiscal year (e.g., 09-'10 fiscal year)?\n(Please select from the dropdown list.)"}]
[null,null,null,null,null,null,null,null,null,null,{"$f":"A58","v":0}]
["B13. If the government financed any contraceptive procurement in the most recent complete fiscal year, which entity conducted the procurement(s)? (Please select from the dropdown.)",null,null,null,null,"The government and a third-party agent",null,null,null,null,null,null,null,null,null,null,{"$f":"F59","v":"The government and a third-party agent"},{"$f":"A59","v":"B13. If the government financed any contraceptive procurement in the most recent complete fiscal year, which entity conducted the procurement(s)? (Please select from the dropdown.)"}]
[null,"a. Specify entity",null,null,null,"UNFPA on behalf of the government (for the heath sector support funds), and MOH Procurement Unit, and Stores, Supplies, and Drug Management Directorate of GHS (for the DANIDA-funded procurement). (GHS is under MOH.)",null,null,null,null,null,null,{"$f":"E60","v":0},null,null,null,{"$f":"F60","v":"UNFPA on behalf of the government (for the heath sector support funds), and MOH Procurement Unit, and Stores, Supplies, and Drug Management Directorate of GHS (for the DANIDA-funded procurement). (GHS is under MOH.)"},{"$f":"B60","v":"a. Specify entity"}]
[null,null,"i. Is this a parastatal?",null,null,"No",null,null,null,null,null,null,null,null,null,null,{"$f":"F61","v":"No"},{"$f":"C61","v":"i. Is this a parastatal?"}]
["B14. Please note any additional comments about finance and procurement.",null,null,"Inadequate financing is a worrying issue and there is the need for more funding and greater commitment from the government.",null,null,null,null,null,null,{"$f":"A62","v":"B14. Please note any additional comments about finance and procurement."},null,null,null,{"$f":"D62","v":"Inadequate financing is a worrying issue and there is the need for more funding and greater commitment from the government."}]
["C. Commodities"]
["C1. Are the following contraceptive methods offered through the commercial sector, public sector, NGOs, or social marketing? (Please indicate which methods are intended to be offered. This question is not asking whether the method is in stock.) \n(Please select from the dropdown list.)",null,null,null,null,null,null,null,null,null,null,null,null,null,null,null,null,null,null,null,null,null,null,{"$f":"A64","v":"C1. Are the following contraceptive methods offered through the commercial sector, public sector, NGOs, or social marketing? (Please indicate which methods are intended to be offered. This question is not asking whether the method is in stock.) \n(Please select from the dropdown list.)"}]
["Contraceptive Method",null,null,"Commercial Sector",null,"Public Sector","NGO","Social Marketing",null,null,{"$f":"A65","v":"Contraceptive Method"}]
[null,"a. Combined oral contraceptives (estrogen + progestin - for  example, LoFemenol, Microgynon)",null,"Yes",null,"Yes","Yes","Yes",null,null,{"$f":"B66","v":"a. Combined oral contraceptives (estrogen + progestin - for  example, LoFemenol, Microgynon)"}]
[null,"b. Progestin-only pills (for example, Ovrette, Microlut)",null,"Yes",null,"Yes","Yes","Yes",null,null,{"$f":"B67","v":"b. Progestin-only pills (for example, Ovrette, Microlut)"}]
[null,"c. Hormonal injections (for example, DepoProvera, Noristerat)",null,"Yes",null,"Yes","Yes","Yes",null,null,"c. Hormonal injections (for example, DepoProvera, Noristerat)"]
[null,"d. Hormonal implants (for example, Jadelle, Implanon)",null,"Yes",null,"Yes","Yes","No",null,null,"d. Hormonal implants (for example, Jadelle, Implanon)"]
[null,"e. Intrauterine devices (IUDs) (for example, Optima Copper T)",null,"Yes",null,"Yes","Yes","No",null,null,"e. Intrauterine devices (IUDs) (for example, Optima Copper T)"]
[null,"f. Male condoms",null,"Yes",null,"Yes","Yes","Yes",null,null,"f. Male condoms"]
[null,"g. Female condoms",null,"Yes",null,"Yes","Yes","Yes",null,null,"g. Female condoms"]
[null,"h. Emergency contraceptive pills (for example, Postinor)",null,"Yes",null,"Yes","Yes","Yes",null,null,"h. Emergency contraceptive pills (for example, Postinor)"]
[null,"i. Long-acting permanent method for males (vasectomy)",null,"No",null,"Yes","Yes","No",null,null,"i. Long-acting permanent method for males (vasectomy)"]
[null,"j. Long-acting permanent method for females (tubal ligation)",null,"Yes",null,"Yes","Yes","No",null,null,"j. Long-acting permanent method for females (tubal ligation)"]
[null,"k. CycleBeads",null,"No",null,"No","No","No",null,null,"k. CycleBeads"]
[null,"l. Other contraceptive methods - specify \n(Please provide the name of the other contraceptive(s) offered, by sector.)",null,null,null,null,null,null,null,null,"l. Other contraceptive methods - specify \n(Please provide the name of the other contraceptive(s) offered, by sector.)"]
["C2. Please note any comments about the commodities offered.",null,null,null,null,null,null,null,null,null,{"$f":"A78","v":"C2. Please note any comments about the commodities offered."},null,null,null,{"$f":"D78","v":0}]
["D. Policies (Commitment)"]
["D1. Is there a contraceptive security or reproductive health commodity security strategy or is contraceptive security explicitly included in a country strategy? (Please select from the dropdown list.)",null,null,null,null,null,null,"Yes",{"$f":"A80","v":"D1. Is there a contraceptive security or reproductive health commodity security strategy or is contraceptive security explicitly included in a country strategy? (Please select from the dropdown list.)"}]
["IF NO, SKIP TO QUESTION D2."]
[null,"Strategy name",null,"Years Covered (including strategy updates)",null,"Is the strategy formally approved by the Ministry?","Is the contraceptive security strategy being implemented?",null,null,{"$f":"G82","v":"Is the contraceptive security strategy being implemented?"},{"$f":"B82","v":"Strategy name"},null,{"$f":"E82","v":0},null,null,null,null,null,{"$f":"D82","v":"Years Covered (including strategy updates)"}]
[null,"a","Ghana National Contraceptive Security Strategy","2011 - 2016 ",null,"Yes","Yes",null,null,{"$f":"G83","v":"Yes"},{"$f":"B83","v":"a"},null,{"$f":"E83","v":0},null,null,null,null,null,{"$f":"D83","v":"2011 - 2016 "}]
["D2. Are any family planning commodities subject to duties, import taxes, or other fees?",null,null,null,null,"Yes",null,null,null,null,null,null,null,null,null,null,{"$f":"F84","v":"Yes"},{"$f":"A84","v":"D2. Are any family planning commodities subject to duties, import taxes, or other fees?"}]
[null,"a. If yes, for which sectors (public, NGO, social marketing, commercial)?",null,null,"All sectors",null,null,null,null,null,null,null,{"$f":"E85","v":"All sectors"},{"$f":"E85","v":"All sectors"},null,null,null,{"$f":"B85","v":"a. If yes, for which sectors (public, NGO, social marketing, commercial)?"}]
[null,"b. If yes, how much are the duties, taxes, or fees?",null,null,"On average, 2% of the cost of commodities procured",null,null,null,null,null,null,null,null,{"$f":"E86","v":"On average, 2% of the cost of commodities procured"},null,null,null,{"$f":"B86","v":"b. If yes, how much are the duties, taxes, or fees?"}]
["D3. Are there policies that hinder the ability of the private sector (commercial sector, NGOs, or social marketing) to provide contraceptive methods (for example: price controls, distribution limitations, taxes/duties, advertising bans, etc.)?",null,null,null,null,null,null,"Yes",{"$f":"A87","v":"D3. Are there policies that hinder the ability of the private sector (commercial sector, NGOs, or social marketing) to provide contraceptive methods (for example: price controls, distribution limitations, taxes/duties, advertising bans, etc.)?"}]
[null,"a. If yes, describe the policies.",null,"Contraceptives, despite being subsidized, attract handling charges, reducing the overall budget available to the MOH for contraceptive procurement. ",null,null,null,null,null,null,{"$f":"B88","v":"a. If yes, describe the policies."},null,null,null,{"$f":"D88","v":"Contraceptives, despite being subsidized, attract handling charges, reducing the overall budget available to the MOH for contraceptive procurement. "}]
["D4. Are there policies that enable the private sector (commercial sector, NGOs, or social marketing) to provide contraceptive methods?",null,null,null,null,null,null,"Yes",{"$f":"A89","v":"D4. Are there policies that enable the private sector (commercial sector, NGOs, or social marketing) to provide contraceptive methods?"}]
[null,"a. If yes, describe the policies.",null,"The inclusion of all contraceptives on the Essential Medicines List raises their profile, informs about their use and availability, and gives confidence to prescribers and providers in the private sector as well to use them. It can also assist with advocacy for resources and support from donors. The registration policies enacted by the Food and Drug Board permit contraceptive registration and sale by brand.",null,null,null,null,null,null,{"$f":"B90","v":"a. If yes, describe the policies."},null,null,null,{"$f":"D90","v":"The inclusion of all contraceptives on the Essential Medicines List raises their profile, informs about their use and availability, and gives confidence to prescribers and providers in the private sector as well to use them. It can also assist with advocacy for resources and support from donors. The registration policies enacted by the Food and Drug Board permit contraceptive registration and sale by brand."}]
["D5. Do policies or regulations exist that restrict who can sell or dispense particular contraceptive methods?\n",null,null,null,null,null,null,"Yes",{"$f":"A91","v":"D5. Do policies or regulations exist that restrict who can sell or dispense particular contraceptive methods?\n"}]
[null,"Please note any restrictions in the following table."]
[null,"Contraceptive Method(s)",null,null,"Describe any public sector restriction on who is allowed to sell or dispense the method",null,"Describe any private sector restriction on who is allowed to sell or dispense the method",null,null,{"$f":"G93","v":"Describe any private sector restriction on who is allowed to sell or dispense the method"},null,null,null,null,null,{"$f":"B93","v":"Contraceptive Method(s)"},null,null,null,null,{"$f":"E93","v":"Describe any public sector restriction on who is allowed to sell or dispense the method"}]
[null,"a","Injectables",null,"Community-based distributors restricted.",null,null,null,null,{"$f":"G94","v":0},null,null,{"$f":"E94","v":"Community-based distributors restricted."},null,null,{"$f":"C94","v":"Injectables"},null,null,null,null,{"$f":"E94","v":"Community-based distributors restricted."}]
[null,"b","Implants and IUDs",null,"Service delivery restricted to health personnel with appropriate training",null,"Service delivery restricted to health personnel with appropriate training.",null,null,{"$f":"G95","v":"Service delivery restricted to health personnel with appropriate training."},null,null,{"$f":"E95","v":"Service delivery restricted to health personnel with appropriate training"},null,null,{"$f":"C95","v":"Implants and IUDs"},null,null,null,null,{"$f":"E95","v":"Service delivery restricted to health personnel with appropriate training"}]
[null,"c",null,null,null,null,null,null,null,{"$f":"G96","v":0},null,null,{"$f":"E96","v":0},null,null,{"$f":"C96","v":0},null,null,null,null,{"$f":"E96","v":0}]
[null,null,null,null,null,null,null,null,null,null,{"$f":"C97","v":0}]
["D6. Does the country have laws, regulations, or policies that make it difficult for the following sub-populations to access effective family planning services?",null,null,"Y/N","If yes, describe laws/regulations/policies affecting access ",null,null,"Are the rules/policies implemented?",null,null,{"$f":"A98","v":"D6. Does the country have laws, regulations, or policies that make it difficult for the following sub-populations to access effective family planning services?"},null,null,null,null,null,null,null,null,null,null,{"$f":"E98","v":"If yes, describe laws/regulations/policies affecting access "}]
[null,"a. Unmarried people",null,"No",null,null,null,null,null,null,{"$f":"B99","v":"a. Unmarried people"},null,{"$f":"E99","v":0},null,null,null,null,null,null,null,null,{"$f":"E99","v":0}]
[null,"b. Young people",null,"No",null,null,null,null,null,null,{"$f":"B100","v":"b. Young people"},null,{"$f":"E100","v":0},null,null,null,null,null,null,null,null,{"$f":"E100","v":0}]
[null,"c. Other",null,"No",null,null,null,null,null,null,{"$f":"B101","v":"c. Other"},null,{"$f":"E101","v":0},null,null,null,null,null,null,null,null,{"$f":"E101","v":0}]
[null,null,null,null,null,null,null,null,null,null,{"$f":"C102","v":0}]
["D7. Are there charges* to the client in the public sector for family planning:\n*(This question refers to charges by policy, not under-the-table charges.)\n",null,null,null,null,null,null,null,null,null,null,null,null,null,null,null,null,null,null,null,null,null,null,{"$f":"A103","v":"D7. Are there charges* to the client in the public sector for family planning:\n*(This question refers to charges by policy, not under-the-table charges.)\n"}]
[null,"a. Services?",null,null,null,null,"Yes",null,null,{"$f":"G104","v":"Yes"},null,null,null,null,null,null,null,null,null,null,null,null,null,null,{"$f":"B104","v":"a. Services?"}]
[null,"b. Commodities?",null,null,null,null,"Yes",null,null,{"$f":"G105","v":"Yes"},null,null,null,null,null,null,null,null,null,null,null,null,null,null,{"$f":"B105","v":"b. Commodities?"}]
[null,"c. If yes, are there exemptions for people who cannot afford to pay?",null,null,null,null,"Yes",null,null,{"$f":"G106","v":"Yes"},null,null,null,null,null,null,null,null,null,null,null,null,null,null,{"$f":"B106","v":"c. If yes, are there exemptions for people who cannot afford to pay?"}]
[null,null,"i. If yes, describe the exemptions.","Exemptions may be applied on an individual, case-by-case basis and are available for those who need them.\n",null,null,null,null,null,null,{"$f":"C107","v":"i. If yes, describe the exemptions."},null,null,null,{"$f":"D107","v":"Exemptions may be applied on an individual, case-by-case basis and are available for those who need them.\n"}]
["D8. Are the following contraceptives included in the country's National Essential Medicine List (NEML) or other equivalent priority list?",null,null,null,null,null,null,null,null,null,null,null,null,null,null,null,null,null,null,null,null,null,null,{"$f":"A108","v":"D8. Are the following contraceptives included in the country's National Essential Medicine List (NEML) or other equivalent priority list?"}]
[null,"a. Combined oral contraceptives",null,null,null,null,"Yes",null,null,{"$f":"G109","v":"Yes"},null,null,null,null,null,null,null,null,null,null,null,null,null,null,{"$f":"B109","v":"a. Combined oral contraceptives"}]
[null,"b. Progestin-only pills",null,null,null,null,"Yes",null,null,"Yes",null,null,null,null,null,null,null,null,null,null,null,null,null,null,"b. Progestin-only pills"]
[null,"c. Hormonal injections",null,null,null,null,"Yes",null,null,"Yes",null,null,null,null,null,null,null,null,null,null,null,null,null,null,"c. Hormonal injections"]
[null,"d. Hormonal implants",null,null,null,null,"Yes",null,null,"Yes",null,null,null,null,null,null,null,null,null,null,null,null,null,null,"d. Hormonal implants"]
[null,"e. Intrauterine devices (IUDs)",null,null,null,null,"Yes",null,null,"Yes",null,null,null,null,null,null,null,null,null,null,null,null,null,null,"e. Intrauterine devices (IUDs)"]
[null,"f. Male condoms",null,null,null,null,"Yes",null,null,"Yes",null,null,null,null,null,null,null,null,null,null,null,null,null,null,"f. Male condoms"]
[null,"g. Female condoms",null,null,null,null,"Yes",null,null,"Yes",null,null,null,null,null,null,null,null,null,null,null,null,null,null,"g. Female condoms"]
[null,"h. Emergency contraceptive pills",null,null,null,null,"Yes",null,null,"Yes",null,null,null,null,null,null,null,null,null,null,null,null,null,null,"h. Emergency contraceptive pills"]
[null,"i. CycleBeads",null,null,null,null,"No",null,null,{"$f":"G117","v":"No"},null,null,null,null,null,null,null,null,null,null,null,null,null,null,{"$f":"B117","v":"i. CycleBeads"}]
[null,"j. Any other contraceptive(s)?",null,null,null,null,"No",null,null,"No",null,null,null,null,null,null,null,null,null,null,null,null,null,null,"j. Any other contraceptive(s)?"]
[null,null,"i. Name of other contraceptive(s) on the list(s)",null,null,"N/A",null,null,null,0,null,null,null,null,null,null,null,{"$f":"B119","v":0}]
["D9. What year(s) is the list(s) from?",null,null,null,null,2010,null,null,null,0,null,null,null,null,null,null,null,{"$f":"B120","v":0}]
["D10. Name of the list(s)\n",null,null,"Ghana Essential Medicines List",null,null,null,null,null,null,{"$f":"A121","v":"D10. Name of the list(s)\n"},null,null,null,{"$f":"D121","v":"Ghana Essential Medicines List"}]
["D11. Notes about the list(s)\n\n",null,null,null,null,null,null,null,null,null,{"$f":"A122","v":"D11. Notes about the list(s)\n\n"},null,null,null,{"$f":"D122","v":0}]
["D12.  Information on country's Poverty Reduction Strategy Paper (PRSP)\n",null,null,null,null,null,null,null,null,null,null,null,null,null,null,null,null,null,null,null,null,null,null,{"$f":"A123","v":"D12.  Information on country's Poverty Reduction Strategy Paper (PRSP)\n"}]
[null,"a. What year is the Poverty Reduction Strategy Paper from? (most recent actual PRSP on IMF's site [not progress or summary report])",null,null,null,2005,null,null,null,{"$f":"G124","v":0},null,null,null,null,null,null,null,{"$f":"B124","v":"a. What year is the Poverty Reduction Strategy Paper from? (most recent actual PRSP on IMF's site [not progress or summary report])"}]
[null,"b. Is family planning or reproductive health a priority in the PRSP?",null,null,null,null,"Yes",null,null,{"$f":"G125","v":"Yes"},null,null,null,null,null,null,null,null,null,null,null,null,null,null,{"$f":"B125","v":"b. Is family planning or reproductive health a priority in the PRSP?"}]
[null,"c. Is contraceptive security included in the PRSP?",null,null,null,null,"No",null,null,{"$f":"G126","v":"No"},null,null,null,null,null,null,null,null,null,null,null,null,null,null,{"$f":"B126","v":"c. Is contraceptive security included in the PRSP?"}]
[null,"d. Is contraceptive prevalence rate (CPR) included as an indicator in the PRSP?",null,null,null,null,"No",null,null,{"$f":"G127","v":"No"},null,null,null,null,null,null,null,null,null,null,null,null,null,null,{"$f":"B127","v":"d. Is contraceptive prevalence rate (CPR) included as an indicator in the PRSP?"}]
[null,"e. Are contraceptive supply indicators included in the PRSP?",null,null,null,null,"No",null,null,{"$f":"G128","v":"No"},null,null,null,null,null,null,null,null,null,null,null,null,null,null,{"$f":"B128","v":"e. Are contraceptive supply indicators included in the PRSP?"}]
["\n\n\n","f. Notes about the Poverty Reduction Strategy Paper",null,null,null,null,null,null,null,null,{"$f":"B129","v":"f. Notes about the Poverty Reduction Strategy Paper"},null,null,null,{"$f":"D129","v":0}]
["E. Supply Chain (Capacity)"]
["E1. Have stockouts occurred for any contraceptive at the central* level in the last 12 months?  \n*(The central level refers to the central level warehouse for the public sector.)",null,null,null,null,null,"Yes",null,null,{"$f":"G131","v":"Yes"},null,null,null,null,null,null,null,null,null,null,null,null,null,null,{"$f":"A131","v":"E1. Have stockouts occurred for any contraceptive at the central* level in the last 12 months?  \n*(The central level refers to the central level warehouse for the public sector.)"}]
["E2. In the last 12 months, has there ever been a stockout at the central level of any of the contraceptives offered in public sector facilities? (If a method is not intended to be offered in public sector facilities, please indicate that stockouts are not applicable (choose \"N/A\" from the dropdown list).)",null,null,null,null,null,null,null,null,null,null,null,null,null,null,null,null,null,null,null,null,null,null,{"$f":"A132","v":"E2. In the last 12 months, has there ever been a stockout at the central level of any of the contraceptives offered in public sector facilities? (If a method is not intended to be offered in public sector facilities, please indicate that stockouts are not applicable (choose \"N/A\" from the dropdown list).)"}]
[null,"a. Combined oral contraceptives",null,null,null,null,"No",null,null,{"$f":"G133","v":"No"},null,null,null,null,null,null,null,null,null,null,null,null,null,null,{"$f":"B133","v":"a. Combined oral contraceptives"}]
[null,"b. Progestin-only pills",null,null,null,null,"Yes",null,null,"Yes",null,null,null,null,null,null,null,null,null,null,null,null,null,null,"b. Progestin-only pills"]
[null,"c. Hormonal injections",null,null,null,null,"Yes",null,null,"Yes",null,null,null,null,null,null,null,null,null,null,null,null,null,null,"c. Hormonal injections"]
[null,"d. Hormonal implants",null,null,null,null,"No",null,null,"No",null,null,null,null,null,null,null,null,null,null,null,null,null,null,"d. Hormonal implants"]
[null,"e. Intrauterine devices (IUDs)",null,null,null,null,"Yes",null,null,"Yes",null,null,null,null,null,null,null,null,null,null,null,null,null,null,"e. Intrauterine devices (IUDs)"]
[null,"f. Male condoms",null,null,null,null,"No",null,null,"No",null,null,null,null,null,null,null,null,null,null,null,null,null,null,"f. Male condoms"]
[null,"g. Female condoms",null,null,null,null,"No",null,null,"No",null,null,null,null,null,null,null,null,null,null,null,null,null,null,"g. Female condoms"]
[null,"h. Emergency contraceptive pills",null,null,null,null,"No",null,null,"No",null,null,null,null,null,null,null,null,null,null,null,null,null,null,"h. Emergency contraceptive pills"]
[null,"i. CycleBeads",null,null,null,null,"N/A",null,null,"N/A",null,null,null,null,null,null,null,null,null,null,null,null,null,null,"i. CycleBeads"]
[null,"j. Time period\n(mm/yy - mm/yy) (for example, 1/10-12/10) ",null,null,null,"01/10-12/10",null,null,null,null,null,null,null,null,null,null,{"$f":"F142","v":"01/10-12/10"},{"$f":"B142","v":"j. Time period\n(mm/yy - mm/yy) (for example, 1/10-12/10) "}]
[null,"k. Data source\n(for example: Procurement Planning and Monitoring Report, Logistics Management Information System, periodic physical inventory, warehouse reports)",null,null,null,"Procurement Planning and Monitoring Report (PPMR), Central Medical Store stock reports",null,null,null,null,null,null,null,null,null,null,{"$f":"F143","v":"Procurement Planning and Monitoring Report (PPMR), Central Medical Store stock reports"},{"$f":"B143","v":"k. Data source\n(for example: Procurement Planning and Monitoring Report, Logistics Management Information System, periodic physical inventory, warehouse reports)"}]
["E3. Are stockouts a large problem in your country at the following levels? (i.e., Are they common or do they tend to last for a long time?)\n\n"]
[null,"a. service delivery point level (i.e., public sector health facilities)",null,null,null,null,"Yes",null,null,{"$f":"G145","v":"Yes"},null,null,null,null,null,null,null,null,null,null,null,null,null,null,{"$f":"B145","v":"a. service delivery point level (i.e., public sector health facilities)"}]
[null,"b. central level (i.e., central level warehouse for the public sector)",null,null,null,null,"Yes",null,null,{"$f":"G146","v":"Yes"},null,null,null,null,null,null,null,null,null,null,null,null,null,null,{"$f":"B146","v":"b. central level (i.e., central level warehouse for the public sector)"}]
["F. Please note any overall comments about challenges and/or successes with contraceptive security in your country.\n",null,null,"Challenges include coordination issues (especially among programs for condom procurement and distribution), challenges due to inadequate financing, and challenges of poor logistics management across the country.",null,null,null,null,null,null,{"$f":"A147","v":"F. Please note any overall comments about challenges and/or successes with contraceptive security in your country.\n"},null,null,null,{"$f":"D147","v":"Challenges include coordination issues (especially among programs for condom procurement and distribution), challenges due to inadequate financing, and challenges of poor logistics management across the country."}]

{"sheet":"Guatemala 2011","index":19,"n_rows":147,"n_cols":25,"rows_kept":147,"cut":false,"hidden":false,"merged":[[4,0,4,2],[5,0,5,2],[7,0,7,2],[7,3,7,5],[7,6,7,7],[8,0,8,7],[0,0,0,7],[1,0,1,2],[1,3,1,4],[2,0,2,7],[3,3,3,4],[3,5,3,7],[17,1,17,2],[18,1,18,2],[19,1,19,2],[14,1,14,2],[15,1,15,2],[16,1,16,2],[9,0,9,7],[10,0,10,6],[11,0,11,6],[12,1,12,2],[13,0,13,2],[13,3,13,7],[12,3,12,7],[23,0,23,6],[24,0,24,6],[25,0,25,2],[26,0,26,6],[27,0,27,2],[27,3,27,4],[20,1,20,2],[21,1,21,2],[22,1,22,2],[38,1,38,2],[39,1,39,2],[41,1,41,2],[42,3,42,7],[43,1,43,2],[36,0,36,6],[37,0,37,7],[28,0,28,5],[28,6,28,7],[29,0,29,3],[30,0,30,6],[31,0,31,6],[35,0,35,7],[51,1,51,2],[53,0,53,7],[54,0,54,4],[54,6,54,7],[55,0,55,4],[45,0,45,7],[46,1,46,2],[47,1,47,2],[48,3,48,7],[49,1,49,2],[50,1,50,2],[60,2,60,4],[60,5,60,7],[61,0,61,2],[61,3,61,7],[62,0,62,6],[63,0,63,7],[56,0,56,4],[56,6,56,7],[58,0,58,4],[58,5,58,7],[59,1,59,4],[59,5,59,7],[67,1,67,2],[67,3,67,4],[68,1,68,2],[68,3,68,4],[69,1,69,2],[69,3,69,4],[64,0,64,2],[64,3,64,4],[65,1,65,2],[65,3,65,4],[66,1,66,2],[66,3,66,4],[73,1,73,2],[73,3,73,4],[74,1,74,2],[74,3,74,4],[75,1,75,2],[75,3,75,4],[70,1,70,2],[70,3,70,4],[71,1,71,2],[71,3,71,4],[72,1,72,2],[72,3,72,4],[80,0,80,2],[81,0,82,0],[81,1,81,2],[81,3,81,4],[81,6,81,7],[82,6,82,7],[76,1,76,2],[76,3,76,4],[77,0,77,2],[77,3,77,7],[78,0,78,6],[79,0,79,6],[86,0,86,6],[87,1,87,2],[87,3,87,7],[88,0,88,6],[89,1,89,2],[89,3,89,7],[83,0,83,4],[83,5,83,7],[84,1,84,3],[85,1,85,3],[85,4,85,7],[94,2,94,3],[94,4,94,5],[94,6,94,7],[95,2,95,3],[95,4,95,5],[95,6,95,7],[90,0,90,6],[91,1,91,2],[92,1,92,3],[92,4,92,5],[92,6,92,7],[93,2,93,3],[93,4,93,5],[93,6,93,7],[100,1,100,2],[100,4,100,6],[101,0,101,7],[102,0,102,7],[103,1,103,5],[103,6,103,7],[96,0,96,7],[97,0,97,2],[97,4,97,6],[98,1,98,2],[98,4,98,6],[99,1,99,2],[99,4,99,6],[108,1,108,5],[108,6,108,7],[109,1,109,5],[109,6,109,7],[110,1,110,5],[110,6,110,7],[104,1,104,5],[104,6,104,7],[105,1,105,5],[105,6,105,7],[106,3,106,7],[107,0,107,7],[114,1,114,5],[114,6,114,7],[115,1,115,5],[115,6,115,7],[116,1,116,5],[116,6,116,7],[111,1,111,5],[111,6,111,7],[112,1,112,5],[112,6,112,7],[113,1,113,5],[113,6,113,7],[126,6,126,7],[121,3,121,7],[122,0,122,7],[123,1,123,4],[123,5,123,7],[117,1,117,5],[117,6,117,7],[118,2,118,4],[118,5,118,7],[119,0,119,4],[119,5,119,7],[143,0,143,7],[135,6,135,7],[136,1,136,5],[136,6,136,7],[137,1,137,5],[137,6,137,7],[144,1,144,5],[144,6,144,7],[138,1,138,5],[138,6,138,7],[139,1,139,5],[139,6,139,7],[140,1,140,5],[140,6,140,7],[142,5,142,7],[141,1,141,4],[128,3,128,7],[127,1,127,5],[127,6,127,7],[128,1,128,2],[120,0,120,2],[121,0,121,2],[141,5,141,7],[142,1,142,4],[135,1,135,5],[131,0,131,7],[132,1,132,5],[132,6,132,7],[133,1,133,5],[133,6,133,7],[134,1,134,5],[134,6,134,7],[129,0,129,6],[130,0,130,5],[130,6,130,7],[124,1,124,5],[124,6,124,7],[125,1,125,5],[125,6,125,7],[126,1,126,5],[146,0,146,2],[146,3,146,7],[147,0,147,7],[148,0,150,7],[14,5,14,7],[15,5,15,7],[16,5,16,7],[17,5,17,7],[18,5,18,7],[145,1,145,5],[145,6,145,7],[19,5,19,7],[20,5,20,7],[21,5,21,7],[22,5,22,7],[29,6,29,7],[40,3,40,7],[32,0,32,7],[33,1,33,3],[34,1,34,3],[55,6,55,7],[82,3,82,4],[84,4,84,7],[120,3,120,7]]}
[null,null,null,null,null,null,null,null,"Columns I-Y are meant to be hidden. They exist because they allow for the dropdown list options. They also allow for merged cells to autofit properly in terms of row height. This should work if all columns remain at their correct widths.","g-h",null,"a-e merged","E-F merged","e-h","0 times",null,null,"The government (e.g., Central Medical Stores, MOH logistics unit, MOH procurement unit)",null,null,null,null,"Yes","a-h","January"]
[null,null,null,null,null,null,null,null,null,null,"A-c",null,null,null,"1-2 times","b-d merged",null,"Third-party agent (e.g., UNFPA, Crown Agents)","d-e merged","d-f merged","e-f merged","e-g merged","No",null,"February"]
[null,null,null,null,null,null,null,null,null,null,null,null,null,null,"3-5 times",null,null,"The government and a third-party agent",null,null,null,null,null,null,"March"]
[null,null,null,null,null,null,null,null,null,null,null,null,null,null,"6 or more times",null,null,"Other",null,null,null,null,"N/A",null,"April"]
["To jump to the Introduction sheet, click here.",null,null,null,null,null,null,null,null,null,null,null,null,null,null,null,null,null,null,null,null,null,"Don't know",null,"May"]
[null,null,null,null,null,null,null,null,null,null,null,null,null,null,"N/A",null,null,"N/A",null,null,null,null,null,null,"June"]
["Contraceptive Security (CS) Indicators 2011 Data ",null,null,null,null,null,null,null,null,null,null,null,null,null,"Don't know",null,null,"Don't know",null,null,null,null,null,null,"July"]
["Country: Guatemala",null,null,null,null,null,null,null,null,{"$f":"G8","v":0},{"$f":"A8","v":"Country: Guatemala"},null,null,null,null,"or c-d",null,null,null,{"$f":"D8","v":0},null,null,null,null,"August"]
["The CS Indicators are presented in the following sections:\n\n               A. leadership & cooordination               B. finance & procurement               C. commodities               D. policies               E. supply chain",null,null,null,null,null,null,null,null,{"$f":"G9","v":0},{"$f":"A9","v":"The CS Indicators are presented in the following sections:\n\n               A. leadership & cooordination               B. finance & procurement               C. commodities               D. policies               E. supply chain"},null,null,null,"d-h",null,"f-h merged",null,{"$f":"D9","v":0},null,null,null,null,null,"September"]
["\nNotes:\n  -  Respondents' answers are indicated in the white spaces. \n  -  N/A = not applicable. Don't know = the respondent either indicated they did not know or left the answer blank.\n  -  Some questions required respondents to choose from a dropdown list of options; in these cases the dropdown arrow will \n     appear when you click on the cell. \n  -  There may be a few inserted comments. (If you cannot already see them, click on Review tab - Comments group - Show All Comments in newer \n       versions of Excel or View - Comments in older versions of Excel.)\n  -  If the answer is cut off, you can either manually adjust the row height or autofit the row height in order to see the whole \n     response. (To autofit the row height, select the answer(s) and go to Home tab - Cells group - Format - Autofit Row Height in newer versions of Excel or \n      Format - Row - Autofit in older versions of Excel.)\n",null,null,null,null,null,null,null,"a-g",null,null,null,null,null,null,null,null,"a-e merged",null,null,null,null,null,{"$f":"A10","v":"\nNotes:\n  -  Respondents' answers are indicated in the white spaces. \n  -  N/A = not applicable. Don't know = the respondent either indicated they did not know or left the answer blank.\n  -  Some questions required respondents to choose from a dropdown list of options; in these cases the dropdown arrow will \n     appear when you click on the cell. \n  -  There may be a few inserted comments. (If you cannot already see them, click on Review tab - Comments group - Show All Comments in newer \n       versions of Excel or View - Comments in older versions of Excel.)\n  -  If the answer is cut off, you can either manually adjust the row height or autofit the row height in order to see the whole \n     response. (To autofit the row height, select the answer(s) and go to Home tab - Cells group - Format - Autofit Row Height in newer versions of Excel or \n      Format - Row - Autofit in older versions of Excel.)\n"},"October"]
["A. Leadership and Coordination",null,null,null,null,null,null,null,null,null,null,null,null,null,null,null,null,null,null,null,null,null,null,null,"November"]
["A1. Is there a national committee that works on contraceptive security? (Please select from the dropdown list.)\n(Committee should have some aspect of contraceptive security as part of its Terms of Reference, even if it is known by a different name, for example: Family Planning, Reproductive Health, Maternal Mortality, Essential Medicine Committee, etc.)  ",null,null,null,null,null,null,"Yes",{"$f":"A12","v":"A1. Is there a national committee that works on contraceptive security? (Please select from the dropdown list.)\n(Committee should have some aspect of contraceptive security as part of its Terms of Reference, even if it is known by a different name, for example: Family Planning, Reproductive Health, Maternal Mortality, Essential Medicine Committee, etc.)  "},null,null,null,null,null,null,null,null,null,null,null,null,null,null,null,"December"]
[null,"a. What is the name of the committee?",null,"Comision Nacional para el Aseguramiento de Anticonceptivos (CNAA) (National Contraceptive Security Committee)",null,null,null,null,null,null,{"$f":"B13","v":"a. What is the name of the committee?"},{"$f":"D13","v":"Comision Nacional para el Aseguramiento de Anticonceptivos (CNAA) (National Contraceptive Security Committee)"},null,null,{"$f":"D13","v":"Comision Nacional para el Aseguramiento de Anticonceptivos (CNAA) (National Contraceptive Security Committee)"}]
["A2. Are the following organizations represented on the committee?",null,null,"(Y/N \ndropdown)",null,null,null,null,null,null,{"$f":"A14","v":"A2. Are the following organizations represented on the committee?"},null,null,null,null,null,null,null,null,null,null,null,null,null,"Don't know"]
[null,"a. Social marketing",null,"No","If yes, specify name(s) of organizations",null,null,null,null,null,{"$f":"B15","v":"a. Social marketing"},null,null,null,null,null,{"$f":"F15","v":0}]
[null,"b. NGO (for example: service delivery, advocacy, Planned Parenthood affiliate, Marie Stopes affiliate, faith-based organizations, etc.)",null,"Yes","If yes, specify name(s) of organizations","APROFAM (Asociación Pro Bienestar de La Familia - Association for the Well-Being of the Family)\n",null,null,null,null,"b. NGO (for example: service delivery, advocacy, Planned Parenthood affiliate, Marie Stopes affiliate, faith-based organizations, etc.)",null,null,null,null,null,"APROFAM (Asociación Pro Bienestar de La Familia - Association for the Well-Being of the Family)\n"]
[null,"c. Commercial sector (for example: pharmacy associations, manufacturers, etc.)",null,"No","If yes, specify name(s) of organizations",null,null,null,null,null,"c. Commercial sector (for example: pharmacy associations, manufacturers, etc.)",null,null,null,null,null,0]
[null,"d. Donors",null,"Yes","If yes, specify name(s) of donors","USAID and UNFPA are invited to participate although they are not official members of the CNAA",null,null,null,null,"d. Donors",null,null,null,null,null,"USAID and UNFPA are invited to participate although they are not official members of the CNAA"]
[null,"e. UN agencies",null,"Yes","If yes, specify name(s) of agencies","UNFPA is invited to participate at the meetings, although it is not an official member of the CNAA. UNFPA handles procurement on behalf of the MOH",null,null,null,null,"e. UN agencies",null,null,null,null,null,"UNFPA is invited to participate at the meetings, although it is not an official member of the CNAA. UNFPA handles procurement on behalf of the MOH"]
[null,"f. Ministry of Health (for example: logistics, reproductive health, family planning, maternal and child health, HIV/AIDS, pharmacy units, etc.)",null,"Yes","If yes, specify name(s) of units","The MOH members of the CNAA include the director of the National Reproductive Health Program, the family planning advisor, and the logistics advisor",null,null,null,null,"f. Ministry of Health (for example: logistics, reproductive health, family planning, maternal and child health, HIV/AIDS, pharmacy units, etc.)",null,null,null,null,null,"The MOH members of the CNAA include the director of the National Reproductive Health Program, the family planning advisor, and the logistics advisor"]
[null,"g. Central Medical Store or Central Warehouse",null,"Yes","If yes, specify","The logistics unit is an active member of the CNAA",null,null,null,null,"g. Central Medical Store or Central Warehouse",null,null,null,null,null,"The logistics unit is an active member of the CNAA"]
[null,"h. Ministry of Finance or Ministry of Planning ",null,"Yes","If yes, specify",null,null,null,null,null,"h. Ministry of Finance or Ministry of Planning ",null,null,null,null,null,0]
[null,"i. Other (for example: partners)",null,"Yes","If yes, specify","As per the current CNAA Internal Dispositions (Aug 2010) the following organizations attend the CNAA meetings regularly (in the role of technical experts/advisors, they do not have a vote; they are not officially part of the CNAA): PASMO (social marketing), USAID-Health Care Initiative project (HCI), USAID International Reproductive Health/Georgetown University Fertility Awareness Methods Project (IRH/FAM), Health Policy Initiative (USAID/HPI), UNFPA ",null,null,null,null,"i. Other (for example: partners)",null,null,null,null,null,"As per the current CNAA Internal Dispositions (Aug 2010) the following organizations attend the CNAA meetings regularly (in the role of technical experts/advisors, they do not have a vote; they are not officially part of the CNAA): PASMO (social marketing), USAID-Health Care Initiative project (HCI), USAID International Reproductive Health/Georgetown University Fertility Awareness Methods Project (IRH/FAM), Health Policy Initiative (USAID/HPI), UNFPA "]
["A3. How many times did the committee meet during the last year? (0, 1-2, 3-5, or 6+)  (Please select from the dropdown.)",null,null,null,null,null,null,"Don't know",{"$f":"A24","v":"A3. How many times did the committee meet during the last year? (0, 1-2, 3-5, or 6+)  (Please select from the dropdown.)"}]
["A4. Does the committee have legal status?  (Please select from the dropdown.)                                  ",null,null,null,null,null,null,"Yes",{"$f":"A25","v":"A4. Does the committee have legal status?  (Please select from the dropdown.)                                  "}]
["A5. Is there a Contraceptive Security \"champion\"? (someone who consistently brings up and advocates for contraceptive supplies)",null,null,"Yes","If yes, specify person's organization","Ministry of Health","Specify person's job title","Family Planning Advisor",null,null,{"$f":"A26","v":"A5. Is there a Contraceptive Security \"champion\"? (someone who consistently brings up and advocates for contraceptive supplies)"}]
["B. Finance and Procurement (Capital)"]
["B1. What is the timeline of the country's fiscal year?",null,null,"Beginning month",null,"January","Ending month","December",null,null,{"$f":"B28","v":0}]
["B2. What was the estimated dollar value of contraceptives needed to be procured for the public sector for the most recent complete fiscal year? (in USD currency)\n(for example, to cover the needs for the '09-'10 fiscal year)",null,null,null,null,null,1500000,null,null,{"$f":"G29","v":1500000},null,null,{"$f":"E29","v":0},null,null,null,null,null,null,null,null,null,null,null,{"$f":"A29","v":"B2. What was the estimated dollar value of contraceptives needed to be procured for the public sector for the most recent complete fiscal year? (in USD currency)\n(for example, to cover the needs for the '09-'10 fiscal year)"}]
["B3. When was the last forecast/quantification conducted? (mm/yy)",null,null,null,"11/10","Who conducted it? (Specify organization.)","Logistics Advisor from the National Reproductive Health Program",null,null,{"$f":"G30","v":"Logistics Advisor from the National Reproductive Health Program"},null,null,{"$f":"E30","v":"11/10"},null,null,null,null,null,null,null,null,null,null,null,{"$f":"A30","v":"B3. When was the last forecast/quantification conducted? (mm/yy)"}]
["B4. Is there a government budget line item for the procurement of contraceptives?  (Please select from the dropdown list.)",null,null,null,null,null,null,"Yes",{"$f":"A31","v":"B4. Is there a government budget line item for the procurement of contraceptives?  (Please select from the dropdown list.)"}]
["B5. Were government funds allocated for contraceptive procurement for the public sector in the most recent complete fiscal year? (This question refers to funds planned to be spent on contraceptives, whether or not they ended up being spent.) \n\n(Government funds include internally generated funds, basket funds, World Bank credits or loans, and other funds donors gave to the government for their use.) \n",null,null,null,null,null,null,"Yes",{"$f":"A32","v":"B5. Were government funds allocated for contraceptive procurement for the public sector in the most recent complete fiscal year? (This question refers to funds planned to be spent on contraceptives, whether or not they ended up being spent.) \n\n(Government funds include internally generated funds, basket funds, World Bank credits or loans, and other funds donors gave to the government for their use.) \n"}]
["B6. Please complete the table below regarding government allocations for contraceptive procurement.",null,null,null,null,null,null,null,null,null,null,null,null,null,null,null,null,null,null,null,null,null,null,{"$f":"A33","v":"B6. Please complete the table below regarding government allocations for contraceptive procurement."}]
[null,null,null,null,"Amount allocated \n(in USD)","Time period during which allocations were supposed to be spent \n(mm/yy-mm/yy)\n(should ideally be the most recent\ncomplete fiscal year ['09-'10])","Data source \n(for example: Ministry records)","Comments",null,null,{"$f":"A34","v":0}]
[null,"Government funds allocated for contraceptive procurement\n(funds originally designated for contraceptives, whether or not they ended up being spent on them)",null,null,1500000,"01/10-12/10","Ministry records","Procurement handled through UNFPA",null,null,{"$f":"#REF!","v":{"$error":"#REF!"}}]
[]
["B7. Were government funds spent on contraceptive procurement for the public sector in the most recent complete fiscal year? \n(Government funds include internally generated funds, basket funds, World Bank credits or loans, and other funds donors gave to the government for their use.)",null,null,null,null,null,null,"Yes",{"$f":"A37","v":"B7. Were government funds spent on contraceptive procurement for the public sector in the most recent complete fiscal year? \n(Government funds include internally generated funds, basket funds, World Bank credits or loans, and other funds donors gave to the government for their use.)"}]
["B8. Please complete the table below to indicate government expenditures on contraceptive procurement, by source, in the most recent complete fiscal year. \n(This is how much was spent on contraceptive procurement (not what was allocated). How much of this spending was provided from each source?)",null,null,null,null,null,null,null,null,null,null,null,null,null,null,null,null,null,null,null,null,null,null,{"$f":"A38","v":"B8. Please complete the table below to indicate government expenditures on contraceptive procurement, by source, in the most recent complete fiscal year. \n(This is how much was spent on contraceptive procurement (not what was allocated). How much of this spending was provided from each source?)"}]
[null,"Source of government funds spent on contraceptive procurement for the public sector",null,"Was this source used?\n(Y/N)","Amount spent \n(in USD)","Time period (mm/yy-mm/yy)\n(should be the same for all sources of funds & ideally be the most recent\ncomplete fiscal year ['09-'10])","Data source \n(for example: Contraceptive Procurement Table, PipeLine, etc.)","Comments",null,null,{"$f":"A39","v":0}]
[null,"a. Internally generated funds spent on contraceptive procurement",null,"Yes",1500000,"01/10-12/10","PipeLine",null,null,null,{"$f":"B40","v":"a. Internally generated funds spent on contraceptive procurement"}]
[null,null,"i. Specify source(s) of internally generated funds spent (for example, from taxes or user fees)","Taxes on alcoholic beverages",null,null,null,null,null,null,{"$f":"C41","v":"i. Specify source(s) of internally generated funds spent (for example, from taxes or user fees)"},null,null,null,{"$f":"D41","v":"Taxes on alcoholic beverages"}]
[null,"b. Total of all other government funds spent on contraceptive procurement (basket funds, World Bank credits or loans, and other funds donors gave to the government [e.g., direct budget support])",null,"No",0,"01/10-12/10",null,null,null,null,{"$f":"B42","v":"b. Total of all other government funds spent on contraceptive procurement (basket funds, World Bank credits or loans, and other funds donors gave to the government [e.g., direct budget support])"}]
[null,null,"i. Specify source(s) of other government funds spent (for example: basket funding or specific donor)","N/A",null,null,null,null,null,null,{"$f":"C43","v":"i. Specify source(s) of other government funds spent (for example: basket funding or specific donor)"},null,null,null,{"$f":"D43","v":"N/A"}]
[null,"c. TOTAL government funds spent on contraceptive procurement\nThis will auto-calculate.  (It will sum a & b above.)",null,null,{"$f":"E42+E40","v":1500000},null,null,null,null,null,{"$f":"B44","v":"c. TOTAL government funds spent on contraceptive procurement\nThis will auto-calculate.  (It will sum a & b above.)"}]
[null,null,null,null,null,null,null,null,null,null,{"$f":"A45","v":0}]
["B9. Please complete the table below to indicate donor expenditures on contraceptive procurement in the most recent complete fiscal year.\n",null,null,null,null,null,null,null,null,null,null,null,null,null,null,null,null,null,null,null,null,null,null,{"$f":"A46","v":"B9. Please complete the table below to indicate donor expenditures on contraceptive procurement in the most recent complete fiscal year.\n"}]
["\n","Source of donations and donor funds spent on contraceptive procurement for the public sector",null,"Was this a source?\n(Y/N)","Amount of money spent on these procurements \n(in USD)","Time period (mm/yy-mm/yy)\n(should be the same for all sources of funds & ideally be the most recent\ncomplete fiscal year ['09-'10])","Data source \n(for example:  Donor records, Contraceptive Procurement Table, PipeLine, RHInterchange, etc.","Comments",null,null,{"$f":"A47","v":"\n"}]
[null,"a. In-kind donations of contraceptives",null,"No",0,"01/10-12/10",null,null,null,null,{"$f":"B48","v":"a. In-kind donations of contraceptives"}]
[null,null,"i. Specify source(s) of in-kind donations ","N/A",null,null,null,null,null,null,{"$f":"C49","v":"i. Specify source(s) of in-kind donations "},null,null,null,{"$f":"D49","v":"N/A"}]
[null,"b. Global Fund donations used to procure condoms",null,"No",0,"01/10-12/10",null,null,null,null,{"$f":"B50","v":"b. Global Fund donations used to procure condoms"}]
[null,"c. Global Fund donations used to procure contraceptives besides condoms",null,"No",0,"01/10-12/10",null,null,null,null,{"$f":"B51","v":"c. Global Fund donations used to procure contraceptives besides condoms"}]
[null,"d. TOTAL value of in-kind donations and Global Fund donations spent on contraceptive procurement\nThis will auto-calculate.  (It will sum a-c above.)",null,null,{"$f":"E48+E50+E51","v":0},null,null,null,null,null,{"$f":"B52","v":"d. TOTAL value of in-kind donations and Global Fund donations spent on contraceptive procurement\nThis will auto-calculate.  (It will sum a-c above.)"}]
[null,null,null,null,null,null,null,null,null,null,{"$f":"A53","v":0}]
["The answers to B10 and B11 should calculate automatically based on the information you provided. Please review the answers to ensure they make sense to you, and if you have additional information to add, please note it in the comments boxes.\n\nIf the answers do not calculate automatically, please provide any relevant information you may have in the comments boxes.\n",null,null,null,null,null,null,null,null,null,null,null,null,null,null,null,null,null,null,null,null,null,null,{"$f":"A54","v":"The answers to B10 and B11 should calculate automatically based on the information you provided. Please review the answers to ensure they make sense to you, and if you have additional information to add, please note it in the comments boxes.\n\nIf the answers do not calculate automatically, please provide any relevant information you may have in the comments boxes.\n"}]
["B10. Government share of funds spent on contraceptive procurement for the public sector - \nOf the total amount spent on contraceptives for the public sector in the most recent complete fiscal year (including government and donor funds), what percent was covered by government funds (including internally generated funds, basket funds, World Bank credits or loans, and other funds given to the government)? \n\nThis will auto-calculate. (It contains the following formula: Total government spending (Question B8c) / Grand total of all spending for public sector contraceptives from the government and donors (Questions B8c+B9d))",null,null,null,null,{"$f":"E44/(E44+E52)","v":1},null,null,null,{"$f":"G55","v":0},null,null,null,null,null,null,null,{"$f":"A55","v":"B10. Government share of funds spent on contraceptive procurement for the public sector - \nOf the total amount spent on contraceptives for the public sector in the most recent complete fiscal year (including government and donor funds), what percent was covered by government funds (including internally generated funds, basket funds, World Bank credits or loans, and other funds given to the government)? \n\nThis will auto-calculate. (It contains the following formula: Total government spending (Question B8c) / Grand total of all spending for public sector contraceptives from the government and donors (Questions B8c+B9d))"}]
["B11. Total expenditures on public sector contraceptives as percent of amount that needed to be procured -\nOf the estimated value of the contraceptives needed to be procured for the public sector for the most recent complete fiscal year, what percent was provided by any source (whether government or donor)? \n\nThis will auto-calculate. (It contains the following formula: Grand total of all spending for public sector contraceptives from the government and donors (Questions B8c+B9d) / Value of estimated need for procurement (Question B2))",null,null,null,null,{"$f":"(E44+E52)/G29","v":1},"100% ($1.5 million dollars)",null,null,{"$f":"G56","v":"100% ($1.5 million dollars)"},null,null,null,null,null,null,null,{"$f":"A56","v":"B11. Total expenditures on public sector contraceptives as percent of amount that needed to be procured -\nOf the estimated value of the contraceptives needed to be procured for the public sector for the most recent complete fiscal year, what percent was provided by any source (whether government or donor)? \n\nThis will auto-calculate. (It contains the following formula: Grand total of all spending for public sector contraceptives from the government and donors (Questions B8c+B9d) / Value of estimated need for procurement (Question B2))"}]
["B12. If B11 did not calculate automatically, please answer the following question:\nWas there a funding gap for the public sector in the last complete fiscal year (e.g., 09-'10 fiscal year)?\n(Please select from the dropdown list.)",null,null,null,null,"No",null,null,null,{"$f":"G57","v":0},null,null,null,null,null,null,null,{"$f":"A57","v":"B12. If B11 did not calculate automatically, please answer the following question:\nWas there a funding gap for the public sector in the last complete fiscal year (e.g., 09-'10 fiscal year)?\n(Please select from the dropdown list.)"}]
[null,null,null,null,null,null,null,null,null,null,{"$f":"A58","v":0}]
["B13. If the government financed any contraceptive procurement in the most recent complete fiscal year, which entity conducted the procurement(s)? (Please select from the dropdown.)",null,null,null,null,"Third-party agent (e.g., UNFPA, Crown Agents)",null,null,null,null,null,null,null,null,null,null,{"$f":"F59","v":"Third-party agent (e.g., UNFPA, Crown Agents)"},{"$f":"A59","v":"B13. If the government financed any contraceptive procurement in the most recent complete fiscal year, which entity conducted the procurement(s)? (Please select from the dropdown.)"}]
[null,"a. Specify entity",null,null,null,"UNFPA",null,null,null,null,null,null,{"$f":"E60","v":0},null,null,null,{"$f":"F60","v":"UNFPA"},{"$f":"B60","v":"a. Specify entity"}]
[null,null,"i. Is this a parastatal?",null,null,"No",null,null,null,null,null,null,null,null,null,null,{"$f":"F61","v":"No"},{"$f":"C61","v":"i. Is this a parastatal?"}]
["B14. Please note any additional comments about finance and procurement.",null,null,"MOH procures contraceptives by using UNFPA as a procurement agent through a co-financing agreement. The MOH coordinates the procurement via the UNFPA office in Guatemala, who then procures through their global procurement system from UNFPA Copenhagen. ",null,null,null,null,null,null,{"$f":"A62","v":"B14. Please note any additional comments about finance and procurement."},null,null,null,{"$f":"D62","v":"MOH procures contraceptives by using UNFPA as a procurement agent through a co-financing agreement. The MOH coordinates the procurement via the UNFPA office in Guatemala, who then procures through their global procurement system from UNFPA Copenhagen. "}]
["C. Commodities"]
["C1. Are the following contraceptive methods offered through the commercial sector, public sector, NGOs, or social marketing? (Please indicate which methods are intended to be offered. This question is not asking whether the method is in stock.) \n(Please select from the dropdown list.)",null,null,null,null,null,null,null,null,null,null,null,null,null,null,null,null,null,null,null,null,null,null,{"$f":"A64","v":"C1. Are the following contraceptive methods offered through the commercial sector, public sector, NGOs, or social marketing? (Please indicate which methods are intended to be offered. This question is not asking whether the method is in stock.) \n(Please select from the dropdown list.)"}]
["Contraceptive Method",null,null,"Commercial Sector",null,"Public Sector","NGO","Social Marketing",null,null,{"$f":"A65","v":"Contraceptive Method"}]
[null,"a. Combined oral contraceptives (estrogen + progestin - for  example, LoFemenol, Microgynon)",null,"Yes",null,"Yes","Yes","Yes",null,null,{"$f":"B66","v":"a. Combined oral contraceptives (estrogen + progestin - for  example, LoFemenol, Microgynon)"}]
[null,"b. Progestin-only pills (for example, Ovrette, Microlut)",null,"Yes",null,"No","Yes","No",null,null,{"$f":"B67","v":"b. Progestin-only pills (for example, Ovrette, Microlut)"}]
[null,"c. Hormonal injections (for example, DepoProvera, Noristerat)",null,"Yes",null,"Yes","Yes","Yes",null,null,"c. Hormonal injections (for example, DepoProvera, Noristerat)"]
[null,"d. Hormonal implants (for example, Jadelle, Implanon)",null,"Yes",null,"Yes","Yes","Yes",null,null,"d. Hormonal implants (for example, Jadelle, Implanon)"]
[null,"e. Intrauterine devices (IUDs) (for example, Optima Copper T)",null,"Yes",null,"Yes","Yes","Yes",null,null,"e. Intrauterine devices (IUDs) (for example, Optima Copper T)"]
[null,"f. Male condoms",null,"Yes",null,"Yes","Yes","Yes",null,null,"f. Male condoms"]
[null,"g. Female condoms",null,"No",null,"No","Yes","No",null,null,"g. Female condoms"]
[null,"h. Emergency contraceptive pills (for example, Postinor)",null,"Yes",null,"No","No","No",null,null,"h. Emergency contraceptive pills (for example, Postinor)"]
[null,"i. Long-acting permanent method for males (vasectomy)",null,"Yes",null,"Yes","Yes","Yes",null,null,"i. Long-acting permanent method for males (vasectomy)"]
[null,"j. Long-acting permanent method for females (tubal ligation)",null,"Yes",null,"Yes","Yes","Yes",null,null,"j. Long-acting permanent method for females (tubal ligation)"]
[null,"k. CycleBeads",null,"No",null,"Yes","Yes","Yes",null,null,"k. CycleBeads"]
[null,"l. Other contraceptive methods - specify \n(Please provide the name of the other contraceptive(s) offered, by sector.)",null,null,null,null,null,null,null,null,"l. Other contraceptive methods - specify \n(Please provide the name of the other contraceptive(s) offered, by sector.)"]
["C2. Please note any comments about the commodities offered.",null,null,"A nominal amount of emergency contraceptive pills are available in the public sector through a UNFPA donation (USD $751, Source: RHInterchange). The MOH has included CycleBeads in the list but so far they have not yet purchased them (the ones they have were a donation from USAID/IRH/FAM).",null,null,null,null,null,null,{"$f":"A78","v":"C2. Please note any comments about the commodities offered."},null,null,null,{"$f":"D78","v":"A nominal amount of emergency contraceptive pills are available in the public sector through a UNFPA donation (USD $751, Source: RHInterchange). The MOH has included CycleBeads in the list but so far they have not yet purchased them (the ones they have were a donation from USAID/IRH/FAM)."}]
["D. Policies (Commitment)"]
["D1. Is there a contraceptive security or reproductive health commodity security strategy or is contraceptive security explicitly included in a country strategy? (Please select from the dropdown list.)",null,null,null,null,null,null,"Yes",{"$f":"A80","v":"D1. Is there a contraceptive security or reproductive health commodity security strategy or is contraceptive security explicitly included in a country strategy? (Please select from the dropdown list.)"}]
["IF NO, SKIP TO QUESTION D2."]
[null,"Strategy name",null,"Years Covered (including strategy updates)",null,"Is the strategy formally approved by the Ministry?","Is the contraceptive security strategy being implemented?",null,null,{"$f":"G82","v":"Is the contraceptive security strategy being implemented?"},{"$f":"B82","v":"Strategy name"},null,{"$f":"E82","v":0},null,null,null,null,null,{"$f":"D82","v":"Years Covered (including strategy updates)"}]
[null,"a","Contraceptive Security","2001 - 2011",null,"Yes","Yes",null,null,{"$f":"G83","v":"Yes"},{"$f":"B83","v":"a"},null,{"$f":"E83","v":0},null,null,null,null,null,{"$f":"D83","v":"2001 - 2011"}]
["D2. Are any family planning commodities subject to duties, import taxes, or other fees?",null,null,null,null,"Yes",null,null,null,null,null,null,null,null,null,null,{"$f":"F84","v":"Yes"},{"$f":"A84","v":"D2. Are any family planning commodities subject to duties, import taxes, or other fees?"}]
[null,"a. If yes, for which sectors (public, NGO, social marketing, commercial)?",null,null,"The public sector is exempt from import taxes via the UNFPA franchise. The public sector has to pay: transport, insurance, and customs clearance fees. Others (NGOs, social marketing, and commercial) pay import taxes.",null,null,null,null,null,null,null,{"$f":"E85","v":"The public sector is exempt from import taxes via the UNFPA franchise. The public sector has to pay: transport, insurance, and customs clearance fees. Others (NGOs, social marketing, and commercial) pay import taxes."},{"$f":"E85","v":"The public sector is exempt from import taxes via the UNFPA franchise. The public sector has to pay: transport, insurance, and customs clearance fees. Others (NGOs, social marketing, and commercial) pay import taxes."},null,null,null,{"$f":"B85","v":"a. If yes, for which sectors (public, NGO, social marketing, commercial)?"}]
[null,"b. If yes, how much are the duties, taxes, or fees?",null,null,"Don't know",null,null,null,null,null,null,null,null,{"$f":"E86","v":"Don't know"},null,null,null,{"$f":"B86","v":"b. If yes, how much are the duties, taxes, or fees?"}]
["D3. Are there policies that hinder the ability of the private sector (commercial sector, NGOs, or social marketing) to provide contraceptive methods (for example: price controls, distribution limitations, taxes/duties, advertising bans, etc.)?",null,null,null,null,null,null,"No",{"$f":"A87","v":"D3. Are there policies that hinder the ability of the private sector (commercial sector, NGOs, or social marketing) to provide contraceptive methods (for example: price controls, distribution limitations, taxes/duties, advertising bans, etc.)?"}]
[null,"a. If yes, describe the policies.",null,"N/A",null,null,null,null,null,null,{"$f":"B88","v":"a. If yes, describe the policies."},null,null,null,{"$f":"D88","v":"N/A"}]
["D4. Are there policies that enable the private sector (commercial sector, NGOs, or social marketing) to provide contraceptive methods?",null,null,null,null,null,null,"No",{"$f":"A89","v":"D4. Are there policies that enable the private sector (commercial sector, NGOs, or social marketing) to provide contraceptive methods?"}]
[null,"a. If yes, describe the policies.",null,"N/A",null,null,null,null,null,null,{"$f":"B90","v":"a. If yes, describe the policies."},null,null,null,{"$f":"D90","v":"N/A"}]
["D5. Do policies or regulations exist that restrict who can sell or dispense particular contraceptive methods?\n",null,null,null,null,null,null,"No",{"$f":"A91","v":"D5. Do policies or regulations exist that restrict who can sell or dispense particular contraceptive methods?\n"}]
[null,"Please note any restrictions in the following table."]
[null,"Contraceptive Method(s)",null,null,"Describe any public sector restriction on who is allowed to sell or dispense the method",null,"Describe any private sector restriction on who is allowed to sell or dispense the method",null,null,{"$f":"G93","v":"Describe any private sector restriction on who is allowed to sell or dispense the method"},null,null,null,null,null,{"$f":"B93","v":"Contraceptive Method(s)"},null,null,null,null,{"$f":"E93","v":"Describe any public sector restriction on who is allowed to sell or dispense the method"}]
[null,"a",null,null,null,null,null,null,null,{"$f":"G94","v":0},null,null,{"$f":"E94","v":0},null,null,{"$f":"C94","v":0},null,null,null,null,{"$f":"E94","v":0}]
[null,"b",null,null,null,null,null,null,null,{"$f":"G95","v":0},null,null,{"$f":"E95","v":0},null,null,{"$f":"C95","v":0},null,null,null,null,{"$f":"E95","v":0}]
[null,"c",null,null,null,null,null,null,null,{"$f":"G96","v":0},null,null,{"$f":"E96","v":0},null,null,{"$f":"C96","v":0},null,null,null,null,{"$f":"E96","v":0}]
[null,null,null,null,null,null,null,null,null,null,{"$f":"C97","v":0}]
["D6. Does the country have laws, regulations, or policies that make it difficult for the following sub-populations to access effective family planning services?",null,null,"Y/N","If yes, describe laws/regulations/policies affecting access ",null,null,"Are the rules/policies implemented?",null,null,{"$f":"A98","v":"D6. Does the country have laws, regulations, or policies that make it difficult for the following sub-populations to access effective family planning services?"},null,null,null,null,null,null,null,null,null,null,{"$f":"E98","v":"If yes, describe laws/regulations/policies affecting access "}]
[null,"a. Unmarried people",null,"No",null,null,null,null,null,null,{"$f":"B99","v":"a. Unmarried people"},null,{"$f":"E99","v":0},null,null,null,null,null,null,null,null,{"$f":"E99","v":0}]
[null,"b. Young people",null,"No",null,null,null,null,null,null,{"$f":"B100","v":"b. Young people"},null,{"$f":"E100","v":0},null,null,null,null,null,null,null,null,{"$f":"E100","v":0}]
[null,"c. Other",null,"No",null,null,null,null,null,null,{"$f":"B101","v":"c. Other"},null,{"$f":"E101","v":0},null,null,null,null,null,null,null,null,{"$f":"E101","v":0}]
[null,null,null,null,null,null,null,null,null,null,{"$f":"C102","v":0}]
["D7. Are there charges* to the client in the public sector for family planning:\n*(This question refers to charges by policy, not under-the-table charges.)\n",null,null,null,null,null,null,null,null,null,null,null,null,null,null,null,null,null,null,null,null,null,null,{"$f":"A103","v":"D7. Are there charges* to the client in the public sector for family planning:\n*(This question refers to charges by policy, not under-the-table charges.)\n"}]
[null,"a. Services?",null,null,null,null,"No",null,null,{"$f":"G104","v":"No"},null,null,null,null,null,null,null,null,null,null,null,null,null,null,{"$f":"B104","v":"a. Services?"}]
[null,"b. Commodities?",null,null,null,null,"No",null,null,{"$f":"G105","v":"No"},null,null,null,null,null,null,null,null,null,null,null,null,null,null,{"$f":"B105","v":"b. Commodities?"}]
[null,"c. If yes, are there exemptions for people who cannot afford to pay?",null,null,null,null,"N/A",null,null,{"$f":"G106","v":"N/A"},null,null,null,null,null,null,null,null,null,null,null,null,null,null,{"$f":"B106","v":"c. If yes, are there exemptions for people who cannot afford to pay?"}]
[null,null,"i. If yes, describe the exemptions.","N/A",null,null,null,null,null,null,{"$f":"C107","v":"i. If yes, describe the exemptions."},null,null,null,{"$f":"D107","v":"N/A"}]
["D8. Are the following contraceptives included in the country's National Essential Medicine List (NEML) or other equivalent priority list?",null,null,null,null,null,null,null,null,null,null,null,null,null,null,null,null,null,null,null,null,null,null,{"$f":"A108","v":"D8. Are the following contraceptives included in the country's National Essential Medicine List (NEML) or other equivalent priority list?"}]
[null,"a. Combined oral contraceptives",null,null,null,null,"Yes",null,null,{"$f":"G109","v":"Yes"},null,null,null,null,null,null,null,null,null,null,null,null,null,null,{"$f":"B109","v":"a. Combined oral contraceptives"}]
[null,"b. Progestin-only pills",null,null,null,null,"Yes",null,null,"Yes",null,null,null,null,null,null,null,null,null,null,null,null,null,null,"b. Progestin-only pills"]
[null,"c. Hormonal injections",null,null,null,null,"Yes",null,null,"Yes",null,null,null,null,null,null,null,null,null,null,null,null,null,null,"c. Hormonal injections"]
[null,"d. Hormonal implants",null,null,null,null,"Yes",null,null,"Yes",null,null,null,null,null,null,null,null,null,null,null,null,null,null,"d. Hormonal implants"]
[null,"e. Intrauterine devices (IUDs)",null,null,null,null,"Yes",null,null,"Yes",null,null,null,null,null,null,null,null,null,null,null,null,null,null,"e. Intrauterine devices (IUDs)"]
[null,"f. Male condoms",null,null,null,null,"Yes",null,null,"Yes",null,null,null,null,null,null,null,null,null,null,null,null,null,null,"f. Male condoms"]
[null,"g. Female condoms",null,null,null,null,"No",null,null,"No",null,null,null,null,null,null,null,null,null,null,null,null,null,null,"g. Female condoms"]
[null,"h. Emergency contraceptive pills",null,null,null,null,"No",null,null,"No",null,null,null,null,null,null,null,null,null,null,null,null,null,null,"h. Emergency contraceptive pills"]
[null,"i. CycleBeads",null,null,null,null,"Yes",null,null,{"$f":"G117","v":"Yes"},null,null,null,null,null,null,null,null,null,null,null,null,null,null,{"$f":"B117","v":"i. CycleBeads"}]
[null,"j. Any other contraceptive(s)?",null,null,null,null,"Don't know",null,null,"Don't know",null,null,null,null,null,null,null,null,null,null,null,null,null,null,"j. Any other contraceptive(s)?"]
[null,null,"i. Name of other contraceptive(s) on the list(s)",null,null,"Don't know",null,null,null,0,null,null,null,null,null,null,null,{"$f":"B119","v":0}]
["D9. What year(s) is the list(s) from?",null,null,null,null,2011,null,null,null,0,null,null,null,null,null,null,null,{"$f":"B120","v":0}]
["D10. Name of the list(s)\n",null,null,"Basic List of Medications of Health Areas and Hospitals and also Health Care Guidelines (1st and 2nd level)",null,null,null,null,null,null,{"$f":"A121","v":"D10. Name of the list(s)\n"},null,null,null,{"$f":"D121","v":"Basic List of Medications of Health Areas and Hospitals and also Health Care Guidelines (1st and 2nd level)"}]
["D11. Notes about the list(s)\n\n",null,null,null,null,null,null,null,null,null,{"$f":"A122","v":"D11. Notes about the list(s)\n\n"},null,null,null,{"$f":"D122","v":0}]
["D12.  Information on country's Poverty Reduction Strategy Paper (PRSP)\n",null,null,null,null,null,null,null,null,null,null,null,null,null,null,null,null,null,null,null,null,null,null,{"$f":"A123","v":"D12.  Information on country's Poverty Reduction Strategy Paper (PRSP)\n"}]
[null,"a. What year is the Poverty Reduction Strategy Paper from? (most recent actual PRSP on IMF's site [not progress or summary report])",null,null,null,"N/A",null,null,null,{"$f":"G124","v":0},null,null,null,null,null,null,null,{"$f":"B124","v":"a. What year is the Poverty Reduction Strategy Paper from? (most recent actual PRSP on IMF's site [not progress or summary report])"}]
[null,"b. Is family planning or reproductive health a priority in the PRSP?",null,null,null,null,"N/A",null,null,{"$f":"G125","v":"N/A"},null,null,null,null,null,null,null,null,null,null,null,null,null,null,{"$f":"B125","v":"b. Is family planning or reproductive health a priority in the PRSP?"}]
[null,"c. Is contraceptive security included in the PRSP?",null,null,null,null,"N/A",null,null,{"$f":"G126","v":"N/A"},null,null,null,null,null,null,null,null,null,null,null,null,null,null,{"$f":"B126","v":"c. Is contraceptive security included in the PRSP?"}]
[null,"d. Is contraceptive prevalence rate (CPR) included as an indicator in the PRSP?",null,null,null,null,"N/A",null,null,{"$f":"G127","v":"N/A"},null,null,null,null,null,null,null,null,null,null,null,null,null,null,{"$f":"B127","v":"d. Is contraceptive prevalence rate (CPR) included as an indicator in the PRSP?"}]
[null,"e. Are contraceptive supply indicators included in the PRSP?",null,null,null,null,"N/A",null,null,{"$f":"G128","v":"N/A"},null,null,null,null,null,null,null,null,null,null,null,null,null,null,{"$f":"B128","v":"e. Are contraceptive supply indicators included in the PRSP?"}]
["\n\n\n","f. Notes about the Poverty Reduction Strategy Paper",null,"Document not available on IMF's website",null,null,null,null,null,null,{"$f":"B129","v":"f. Notes about the Poverty Reduction Strategy Paper"},null,null,null,{"$f":"D129","v":"Document not available on IMF's website"}]
["E. Supply Chain (Capacity)"]
["E1. Have stockouts occurred for any contraceptive at the central* level in the last 12 months?  \n*(The central level refers to the central level warehouse for the public sector.)",null,null,null,null,null,"No",null,null,{"$f":"G131","v":"No"},null,null,null,null,null,null,null,null,null,null,null,null,null,null,{"$f":"A131","v":"E1. Have stockouts occurred for any contraceptive at the central* level in the last 12 months?  \n*(The central level refers to the central level warehouse for the public sector.)"}]
["E2. In the last 12 months, has there ever been a stockout at the central level of any of the contraceptives offered in public sector facilities? (If a method is not intended to be offered in public sector facilities, please indicate that stockouts are not applicable (choose \"N/A\" from the dropdown list).)",null,null,null,null,null,null,null,null,null,null,null,null,null,null,null,null,null,null,null,null,null,null,{"$f":"A132","v":"E2. In the last 12 months, has there ever been a stockout at the central level of any of the contraceptives offered in public sector facilities? (If a method is not intended to be offered in public sector facilities, please indicate that stockouts are not applicable (choose \"N/A\" from the dropdown list).)"}]
[null,"a. Combined oral contraceptives",null,null,null,null,"No",null,null,{"$f":"G133","v":"No"},null,null,null,null,null,null,null,null,null,null,null,null,null,null,{"$f":"B133","v":"a. Combined oral contraceptives"}]
[null,"b. Progestin-only pills",null,null,null,null,"N/A",null,null,"N/A",null,null,null,null,null,null,null,null,null,null,null,null,null,null,"b. Progestin-only pills"]
[null,"c. Hormonal injections",null,null,null,null,"No",null,null,"No",null,null,null,null,null,null,null,null,null,null,null,null,null,null,"c. Hormonal injections"]
[null,"d. Hormonal implants",null,null,null,null,"No",null,null,"No",null,null,null,null,null,null,null,null,null,null,null,null,null,null,"d. Hormonal implants"]
[null,"e. Intrauterine devices (IUDs)",null,null,null,null,"No",null,null,"No",null,null,null,null,null,null,null,null,null,null,null,null,null,null,"e. Intrauterine devices (IUDs)"]
[null,"f. Male condoms",null,null,null,null,"No",null,null,"No",null,null,null,null,null,null,null,null,null,null,null,null,null,null,"f. Male condoms"]
[null,"g. Female condoms",null,null,null,null,"N/A",null,null,"N/A",null,null,null,null,null,null,null,null,null,null,null,null,null,null,"g. Female condoms"]
[null,"h. Emergency contraceptive pills",null,null,null,null,"N/A",null,null,"N/A",null,null,null,null,null,null,null,null,null,null,null,null,null,null,"h. Emergency contraceptive pills"]
[null,"i. CycleBeads",null,null,null,null,"N/A",null,null,"N/A",null,null,null,null,null,null,null,null,null,null,null,null,null,null,"i. CycleBeads"]
[null,"j. Time period\n(mm/yy - mm/yy) (for example, 1/10-12/10) ",null,null,null,"08/10-12/10",null,null,null,null,null,null,null,null,null,null,{"$f":"F142","v":"08/10-12/10"},{"$f":"B142","v":"j. Time period\n(mm/yy - mm/yy) (for example, 1/10-12/10) "}]
[null,"k. Data source\n(for example: Procurement Planning and Monitoring Report, Logistics Management Information System, periodic physical inventory, warehouse reports)",null,null,null,"MOH National Reproductive Health Program (Central Warehouse Inventory)",null,null,null,null,null,null,null,null,null,null,{"$f":"F143","v":"MOH National Reproductive Health Program (Central Warehouse Inventory)"},{"$f":"B143","v":"k. Data source\n(for example: Procurement Planning and Monitoring Report, Logistics Management Information System, periodic physical inventory, warehouse reports)"}]
["E3. Are stockouts a large problem in your country at the following levels? (i.e., Are they common or do they tend to last for a long time?)\n\n"]
[null,"a. service delivery point level (i.e., public sector health facilities)",null,null,null,null,"No",null,null,{"$f":"G145","v":"No"},null,null,null,null,null,null,null,null,null,null,null,null,null,null,{"$f":"B145","v":"a. service delivery point level (i.e., public sector health facilities)"}]
[null,"b. central level (i.e., central level warehouse for the public sector)",null,null,null,null,"No",null,null,{"$f":"G146","v":"No"},null,null,null,null,null,null,null,null,null,null,null,null,null,null,{"$f":"B146","v":"b. central level (i.e., central level warehouse for the public sector)"}]
["F. Please note any overall comments about challenges and/or successes with contraceptive security in your country.\n",null,null,null,null,null,null,null,null,null,{"$f":"A147","v":"F. Please note any overall comments about challenges and/or successes with contraceptive security in your country.\n"},null,null,null,{"$f":"D147","v":0}]

{"sheet":"Haiti 2011","index":20,"n_rows":147,"n_cols":25,"rows_kept":147,"cut":false,"hidden":false,"merged":[[8,0,8,7],[147,0,147,7],[148,0,150,7],[145,1,145,5],[145,6,145,7],[146,0,146,2],[146,3,146,7],[141,1,141,4],[141,5,141,7],[142,1,142,4],[142,5,142,7],[143,0,143,7],[144,1,144,5],[144,6,144,7],[138,1,138,5],[138,6,138,7],[139,1,139,5],[139,6,139,7],[140,1,140,5],[131,0,131,7],[132,1,132,5],[132,6,132,7],[133,1,133,5],[133,6,133,7],[134,1,134,5],[134,6,134,7],[140,6,140,7],[135,1,135,5],[135,6,135,7],[136,1,136,5],[136,6,136,7],[137,1,137,5],[137,6,137,7],[120,0,120,2],[120,3,120,7],[121,0,121,2],[121,3,121,7],[129,0,129,6],[130,0,130,5],[130,6,130,7],[122,0,122,7],[123,1,123,4],[123,5,123,7],[115,1,115,5],[115,6,115,7],[116,1,116,5],[116,6,116,7],[117,1,117,5],[117,6,117,7],[118,2,118,4],[118,5,118,7],[119,0,119,4],[119,5,119,7],[110,1,110,5],[110,6,110,7],[111,1,111,5],[111,6,111,7],[112,1,112,5],[112,6,112,7],[113,1,113,5],[113,6,113,7],[114,1,114,5],[114,6,114,7],[104,1,104,5],[104,6,104,7],[105,1,105,5],[105,6,105,7],[106,3,106,7],[107,0,107,7],[108,1,108,5],[108,6,108,7],[109,1,109,5],[109,6,109,7],[98,1,98,2],[98,4,98,6],[99,1,99,2],[99,4,99,6],[100,1,100,2],[100,4,100,6],[101,0,101,7],[102,0,102,7],[103,1,103,5],[103,6,103,7],[94,2,94,3],[94,4,94,5],[94,6,94,7],[95,2,95,3],[95,4,95,5],[95,6,95,7],[96,0,96,7],[97,0,97,2],[97,4,97,6],[88,0,88,6],[89,1,89,2],[89,3,89,7],[90,0,90,6],[91,1,91,2],[92,1,92,3],[92,4,92,5],[92,6,92,7],[93,2,93,3],[93,4,93,5],[93,6,93,7],[83,0,83,4],[83,5,83,7],[84,1,84,3],[84,4,84,7],[85,1,85,3],[85,4,85,7],[86,0,86,6],[87,1,87,2],[87,3,87,7],[77,0,77,2],[77,3,77,7],[78,0,78,6],[79,0,79,6],[80,0,80,2],[81,0,82,0],[81,1,81,2],[81,3,81,4],[81,6,81,7],[82,3,82,4],[82,6,82,7],[72,1,72,2],[72,3,72,4],[73,1,73,2],[73,3,73,4],[74,1,74,2],[74,3,74,4],[75,1,75,2],[75,3,75,4],[76,1,76,2],[76,3,76,4],[67,1,67,2],[67,3,67,4],[68,1,68,2],[68,3,68,4],[69,1,69,2],[69,3,69,4],[70,1,70,2],[70,3,70,4],[71,1,71,2],[71,3,71,4],[61,0,61,2],[61,3,61,7],[62,0,62,6],[63,0,63,7],[64,0,64,2],[64,3,64,4],[65,1,65,2],[65,3,65,4],[66,1,66,2],[66,3,66,4],[55,0,55,4],[55,6,55,7],[56,0,56,4],[56,6,56,7],[58,0,58,4],[58,5,58,7],[59,1,59,4],[59,5,59,7],[60,2,60,4],[60,5,60,7],[41,1,41,2],[42,3,42,7],[43,1,43,2],[51,1,51,2],[53,0,53,7],[54,0,54,4],[54,6,54,7],[45,0,45,7],[46,1,46,2],[47,1,47,2],[48,3,48,7],[49,1,49,2],[50,1,50,2],[32,0,32,7],[33,1,33,3],[34,1,34,3],[35,0,35,7],[36,0,36,6],[37,0,37,7],[38,1,38,2],[39,1,39,2],[40,3,40,7],[26,0,26,6],[27,0,27,2],[27,3,27,4],[28,0,28,5],[28,6,28,7],[29,0,29,3],[29,6,29,7],[30,0,30,6],[31,0,31,6],[20,1,20,2],[20,5,20,7],[21,1,21,2],[21,5,21,7],[22,1,22,2],[22,5,22,7],[23,0,23,6],[24,0,24,6],[25,0,25,2],[15,1,15,2],[15,5,15,7],[16,1,16,2],[16,5,16,7],[17,1,17,2],[17,5,17,7],[18,1,18,2],[18,5,18,7],[19,1,19,2],[19,5,19,7],[9,0,9,7],[10,0,10,6],[11,0,11,6],[12,1,12,2],[12,3,12,7],[13,0,13,2],[13,3,13,7],[14,1,14,2],[14,5,14,7],[7,0,7,2],[7,3,7,5],[7,6,7,7],[0,0,0,7],[1,0,1,2],[1,3,1,4],[2,0,2,7],[3,3,3,4],[3,5,3,7],[4,0,4,2],[5,0,5,2],[127,1,127,5],[127,6,127,7],[128,1,128,2],[128,3,128,7],[124,1,124,5],[124,6,124,7],[125,1,125,5],[125,6,125,7],[126,1,126,5],[126,6,126,7]]}
[null,null,null,null,null,null,null,null,"Columns I-Y are meant to be hidden. They exist because they allow for the dropdown list options. They also allow for merged cells to autofit properly in terms of row height. This should work if all columns remain at their correct widths.","g-h",null,"a-e merged","E-F merged","e-h","0 times",null,null,"The government (e.g., Central Medical Stores, MOH logistics unit, MOH procurement unit)",null,null,null,null,"Yes","a-h","January"]
[null,null,null,null,null,null,null,null,null,null,"A-c",null,null,null,"1-2 times","b-d merged",null,"Third-party agent (e.g., UNFPA, Crown Agents)","d-e merged","d-f merged","e-f merged","e-g merged","No",null,"February"]
[null,null,null,null,null,null,null,null,null,null,null,null,null,null,"3-5 times",null,null,"The government and a third-party agent",null,null,null,null,null,null,"March"]
[null,null,null,null,null,null,null,null,null,null,null,null,null,null,"6 or more times",null,null,"Other",null,null,null,null,"N/A",null,"April"]
["To jump to the Introduction sheet, click here.",null,null,null,null,null,null,null,null,null,null,null,null,null,null,null,null,null,null,null,null,null,"Don't know",null,"May"]
[null,null,null,null,null,null,null,null,null,null,null,null,null,null,"N/A",null,null,"N/A",null,null,null,null,null,null,"June"]
["Contraceptive Security (CS) Indicators 2011 Data ",null,null,null,null,null,null,null,null,null,null,null,null,null,"Don't know",null,null,"Don't know",null,null,null,null,null,null,"July"]
["Country: Haiti",null,null,null,null,null,null,null,null,{"$f":"G8","v":0},{"$f":"A8","v":"Country: Haiti"},null,null,null,null,"or c-d",null,null,null,{"$f":"D8","v":0},null,null,null,null,"August"]
["The CS Indicators are presented in the following sections:\n\n               A. leadership & cooordination               B. finance & procurement               C. commodities               D. policies               E. supply chain",null,null,null,null,null,null,null,null,{"$f":"G9","v":0},{"$f":"A9","v":"The CS Indicators are presented in the following sections:\n\n               A. leadership & cooordination               B. finance & procurement               C. commodities               D. policies               E. supply chain"},null,null,null,"d-h",null,"f-h merged",null,{"$f":"D9","v":0},null,null,null,null,null,"September"]
["\nNotes:\n  -  Respondents' answers are indicated in the white spaces. \n  -  N/A = not applicable. Don't know = the respondent either indicated they did not know or left the answer blank.\n  -  Some questions required respondents to choose from a dropdown list of options; in these cases the dropdown arrow will \n     appear when you click on the cell. \n  -  There may be a few inserted comments. (If you cannot already see them, click on Review tab - Comments group - Show All Comments in newer \n       versions of Excel or View - Comments in older versions of Excel.)\n  -  If the answer is cut off, you can either manually adjust the row height or autofit the row height in order to see the whole \n     response. (To autofit the row height, select the answer(s) and go to Home tab - Cells group - Format - Autofit Row Height in newer versions of Excel or \n      Format - Row - Autofit in older versions of Excel.)\n",null,null,null,null,null,null,null,"a-g",null,null,null,null,null,null,null,null,"a-e merged",null,null,null,null,null,{"$f":"A10","v":"\nNotes:\n  -  Respondents' answers are indicated in the white spaces. \n  -  N/A = not applicable. Don't know = the respondent either indicated they did not know or left the answer blank.\n  -  Some questions required respondents to choose from a dropdown list of options; in these cases the dropdown arrow will \n     appear when you click on the cell. \n  -  There may be a few inserted comments. (If you cannot already see them, click on Review tab - Comments group - Show All Comments in newer \n       versions of Excel or View - Comments in older versions of Excel.)\n  -  If the answer is cut off, you can either manually adjust the row height or autofit the row height in order to see the whole \n     response. (To autofit the row height, select the answer(s) and go to Home tab - Cells group - Format - Autofit Row Height in newer versions of Excel or \n      Format - Row - Autofit in older versions of Excel.)\n"},"October"]
["A. Leadership and Coordination",null,null,null,null,null,null,null,null,null,null,null,null,null,null,null,null,null,null,null,null,null,null,null,"November"]
["A1. Is there a national committee that works on contraceptive security? (Please select from the dropdown list.)\n(Committee should have some aspect of contraceptive security as part of its Terms of Reference, even if it is known by a different name, for example: Family Planning, Reproductive Health, Maternal Mortality, Essential Medicine Committee, etc.)  ",null,null,null,null,null,null,"Yes",{"$f":"A12","v":"A1. Is there a national committee that works on contraceptive security? (Please select from the dropdown list.)\n(Committee should have some aspect of contraceptive security as part of its Terms of Reference, even if it is known by a different name, for example: Family Planning, Reproductive Health, Maternal Mortality, Essential Medicine Committee, etc.)  "},null,null,null,null,null,null,null,null,null,null,null,null,null,null,null,"December"]
[null,"a. What is the name of the committee?",null,"Comité Technique en Santé de la Reproduction (Reproductive Health Technical Committee)",null,null,null,null,null,null,{"$f":"B13","v":"a. What is the name of the committee?"},{"$f":"D13","v":"Comité Technique en Santé de la Reproduction (Reproductive Health Technical Committee)"},null,null,{"$f":"D13","v":"Comité Technique en Santé de la Reproduction (Reproductive Health Technical Committee)"}]
["A2. Are the following organizations represented on the committee?",null,null,"(Y/N \ndropdown)",null,null,null,null,null,null,{"$f":"A14","v":"A2. Are the following organizations represented on the committee?"},null,null,null,null,null,null,null,null,null,null,null,null,null,"Don't know"]
[null,"a. Social marketing",null,"Yes","If yes, specify name(s) of organizations","PSI",null,null,null,null,{"$f":"B15","v":"a. Social marketing"},null,null,null,null,null,{"$f":"F15","v":"PSI"}]
[null,"b. NGO (for example: service delivery, advocacy, Planned Parenthood affiliate, Marie Stopes affiliate, faith-based organizations, etc.)",null,"Yes","If yes, specify name(s) of organizations","Management Sciences for Health (MSH), Jhpiego, PROFAMIL (IPPF affiliate), Foundation for Reproductive Health and Family Education (FOSREF)",null,null,null,null,"b. NGO (for example: service delivery, advocacy, Planned Parenthood affiliate, Marie Stopes affiliate, faith-based organizations, etc.)",null,null,null,null,null,"Management Sciences for Health (MSH), Jhpiego, PROFAMIL (IPPF affiliate), Foundation for Reproductive Health and Family Education (FOSREF)"]
[null,"c. Commercial sector (for example: pharmacy associations, manufacturers, etc.)",null,"No","If yes, specify name(s) of organizations",null,null,null,null,null,"c. Commercial sector (for example: pharmacy associations, manufacturers, etc.)",null,null,null,null,null,0]
[null,"d. Donors",null,"Yes","If yes, specify name(s) of donors","USAID",null,null,null,null,"d. Donors",null,null,null,null,null,"USAID"]
[null,"e. UN agencies",null,"Yes","If yes, specify name(s) of agencies","UNFPA, UNICEF",null,null,null,null,"e. UN agencies",null,null,null,null,null,"UNFPA, UNICEF"]
[null,"f. Ministry of Health (for example: logistics, reproductive health, family planning, maternal and child health, HIV/AIDS, pharmacy units, etc.)",null,"Yes","If yes, specify name(s) of units","Directorate of Family Health",null,null,null,null,"f. Ministry of Health (for example: logistics, reproductive health, family planning, maternal and child health, HIV/AIDS, pharmacy units, etc.)",null,null,null,null,null,"Directorate of Family Health"]
[null,"g. Central Medical Store or Central Warehouse",null,"No","If yes, specify",null,null,null,null,null,"g. Central Medical Store or Central Warehouse",null,null,null,null,null,0]
[null,"h. Ministry of Finance or Ministry of Planning ",null,"No","If yes, specify",null,null,null,null,null,"h. Ministry of Finance or Ministry of Planning ",null,null,null,null,null,0]
[null,"i. Other (for example: partners)",null,"No","If yes, specify",null,null,null,null,null,"i. Other (for example: partners)",null,null,null,null,null,0]
["A3. How many times did the committee meet during the last year? (0, 1-2, 3-5, or 6+)  (Please select from the dropdown.)",null,null,null,null,null,null,"3-5 times",{"$f":"A24","v":"A3. How many times did the committee meet during the last year? (0, 1-2, 3-5, or 6+)  (Please select from the dropdown.)"}]
["A4. Does the committee have legal status?  (Please select from the dropdown.)                                  ",null,null,null,null,null,null,"Yes",{"$f":"A25","v":"A4. Does the committee have legal status?  (Please select from the dropdown.)                                  "}]
["A5. Is there a Contraceptive Security \"champion\"? (someone who consistently brings up and advocates for contraceptive supplies)",null,null,"Yes","If yes, specify person's organization","Directorate of Family Health","Specify person's job title","Contraceptive & Commodities Point of Contact",null,null,{"$f":"A26","v":"A5. Is there a Contraceptive Security \"champion\"? (someone who consistently brings up and advocates for contraceptive supplies)"}]
["B. Finance and Procurement (Capital)"]
["B1. What is the timeline of the country's fiscal year?",null,null,"Beginning month",null,"October","Ending month","September",null,null,{"$f":"B28","v":0}]
["B2. What was the estimated dollar value of contraceptives needed to be procured for the public sector for the most recent complete fiscal year? (in USD currency)\n(for example, to cover the needs for the '09-'10 fiscal year)",null,null,null,null,null,2198963,null,null,{"$f":"G29","v":2198963},null,null,{"$f":"E29","v":0},null,null,null,null,null,null,null,null,null,null,null,{"$f":"A29","v":"B2. What was the estimated dollar value of contraceptives needed to be procured for the public sector for the most recent complete fiscal year? (in USD currency)\n(for example, to cover the needs for the '09-'10 fiscal year)"}]
["B3. When was the last forecast/quantification conducted? (mm/yy)",null,null,null,"12/10","Who conducted it? (Specify organization.)","Ministry of Public Health",null,null,{"$f":"G30","v":"Ministry of Public Health"},null,null,{"$f":"E30","v":"12/10"},null,null,null,null,null,null,null,null,null,null,null,{"$f":"A30","v":"B3. When was the last forecast/quantification conducted? (mm/yy)"}]
["B4. Is there a government budget line item for the procurement of contraceptives?  (Please select from the dropdown list.)",null,null,null,null,null,null,"No",{"$f":"A31","v":"B4. Is there a government budget line item for the procurement of contraceptives?  (Please select from the dropdown list.)"}]
["B5. Were government funds allocated for contraceptive procurement for the public sector in the most recent complete fiscal year? (This question refers to funds planned to be spent on contraceptives, whether or not they ended up being spent.) \n\n(Government funds include internally generated funds, basket funds, World Bank credits or loans, and other funds donors gave to the government for their use.) \n",null,null,null,null,null,null,"No",{"$f":"A32","v":"B5. Were government funds allocated for contraceptive procurement for the public sector in the most recent complete fiscal year? (This question refers to funds planned to be spent on contraceptives, whether or not they ended up being spent.) \n\n(Government funds include internally generated funds, basket funds, World Bank credits or loans, and other funds donors gave to the government for their use.) \n"}]
["B6. Please complete the table below regarding government allocations for contraceptive procurement.",null,null,null,null,null,null,null,null,null,null,null,null,null,null,null,null,null,null,null,null,null,null,{"$f":"A33","v":"B6. Please complete the table below regarding government allocations for contraceptive procurement."}]
[null,null,null,null,"Amount allocated \n(in USD)","Time period during which allocations were supposed to be spent \n(mm/yy-mm/yy)\n(should ideally be the most recent\ncomplete fiscal year ['09-'10])","Data source \n(for example: Ministry records)","Comments",null,null,{"$f":"A34","v":0}]
[null,"Government funds allocated for contraceptive procurement\n(funds originally designated for contraceptives, whether or not they ended up being spent on them)",null,null,0,"01/10-12/10",null,null,null,null,{"$f":"#REF!","v":{"$error":"#REF!"}}]
[]
["B7. Were government funds spent on contraceptive procurement for the public sector in the most recent complete fiscal year? \n(Government funds include internally generated funds, basket funds, World Bank credits or loans, and other funds donors gave to the government for their use.)",null,null,null,null,null,null,"No",{"$f":"A37","v":"B7. Were government funds spent on contraceptive procurement for the public sector in the most recent complete fiscal year? \n(Government funds include internally generated funds, basket funds, World Bank credits or loans, and other funds donors gave to the government for their use.)"}]
["B8. Please complete the table below to indicate government expenditures on contraceptive procurement, by source, in the most recent complete fiscal year. \n(This is how much was spent on contraceptive procurement (not what was allocated). How much of this spending was provided from each source?)",null,null,null,null,null,null,null,null,null,null,null,null,null,null,null,null,null,null,null,null,null,null,{"$f":"A38","v":"B8. Please complete the table below to indicate government expenditures on contraceptive procurement, by source, in the most recent complete fiscal year. \n(This is how much was spent on contraceptive procurement (not what was allocated). How much of this spending was provided from each source?)"}]
[null,"Source of government funds spent on contraceptive procurement for the public sector",null,"Was this source used?\n(Y/N)","Amount spent \n(in USD)","Time period (mm/yy-mm/yy)\n(should be the same for all sources of funds & ideally be the most recent\ncomplete fiscal year ['09-'10])","Data source \n(for example: Contraceptive Procurement Table, PipeLine, etc.)","Comments",null,null,{"$f":"A39","v":0}]
[null,"a. Internally generated funds spent on contraceptive procurement",null,"No",0,"01/10-12/10",null,null,null,null,{"$f":"B40","v":"a. Internally generated funds spent on contraceptive procurement"}]
[null,null,"i. Specify source(s) of internally generated funds spent (for example, from taxes or user fees)","N/A",null,null,null,null,null,null,{"$f":"C41","v":"i. Specify source(s) of internally generated funds spent (for example, from taxes or user fees)"},null,null,null,{"$f":"D41","v":"N/A"}]
[null,"b. Total of all other government funds spent on contraceptive procurement (basket funds, World Bank credits or loans, and other funds donors gave to the government [e.g., direct budget support])",null,"No",0,"01/10-12/10",null,null,null,null,{"$f":"B42","v":"b. Total of all other government funds spent on contraceptive procurement (basket funds, World Bank credits or loans, and other funds donors gave to the government [e.g., direct budget support])"}]
[null,null,"i. Specify source(s) of other government funds spent (for example: basket funding or specific donor)","N/A",null,null,null,null,null,null,{"$f":"C43","v":"i. Specify source(s) of other government funds spent (for example: basket funding or specific donor)"},null,null,null,{"$f":"D43","v":"N/A"}]
[null,"c. TOTAL government funds spent on contraceptive procurement\nThis will auto-calculate.  (It will sum a & b above.)",null,null,{"$f":"E40+E42","v":0},null,null,null,null,null,{"$f":"B44","v":"c. TOTAL government funds spent on contraceptive procurement\nThis will auto-calculate.  (It will sum a & b above.)"}]
[null,null,null,null,null,null,null,null,null,null,{"$f":"A45","v":0}]
["B9. Please complete the table below to indicate donor expenditures on contraceptive procurement in the most recent complete fiscal year.\n",null,null,null,null,null,null,null,null,null,null,null,null,null,null,null,null,null,null,null,null,null,null,{"$f":"A46","v":"B9. Please complete the table below to indicate donor expenditures on contraceptive procurement in the most recent complete fiscal year.\n"}]
["\n","Source of donations and donor funds spent on contraceptive procurement for the public sector",null,"Was this a source?\n(Y/N)","Amount of money spent on these procurements \n(in USD)","Time period (mm/yy-mm/yy)\n(should be the same for all sources of funds & ideally be the most recent\ncomplete fiscal year ['09-'10])","Data source \n(for example:  Donor records, Contraceptive Procurement Table, PipeLine, RHInterchange, etc.","Comments",null,null,{"$f":"A47","v":"\n"}]
[null,"a. In-kind donations of contraceptives",null,"Yes",2198962.9,"01/10-12/10","UNFPA Logistics Coordinator and USAID Commodity Manager","These procurements are done on a calendar year basis, as opposed to the fiscal year.",null,null,{"$f":"B48","v":"a. In-kind donations of contraceptives"}]
[null,null,"i. Specify source(s) of in-kind donations ","USAID and UNFPA",null,null,null,null,null,null,{"$f":"C49","v":"i. Specify source(s) of in-kind donations "},null,null,null,{"$f":"D49","v":"USAID and UNFPA"}]
[null,"b. Global Fund donations used to procure condoms",null,"No",0,"01/10-12/10",null,null,null,null,{"$f":"B50","v":"b. Global Fund donations used to procure condoms"}]
[null,"c. Global Fund donations used to procure contraceptives besides condoms",null,"No",0,"01/10-12/10",null,null,null,null,{"$f":"B51","v":"c. Global Fund donations used to procure contraceptives besides condoms"}]
[null,"d. TOTAL value of in-kind donations and Global Fund donations spent on contraceptive procurement\nThis will auto-calculate.  (It will sum a-c above.)",null,null,{"$f":"E48+E50+E51","v":2198962.9},null,null,null,null,null,{"$f":"B52","v":"d. TOTAL value of in-kind donations and Global Fund donations spent on contraceptive procurement\nThis will auto-calculate.  (It will sum a-c above.)"}]
[null,null,null,null,null,null,null,null,null,null,{"$f":"A53","v":0}]
["The answers to B10 and B11 should calculate automatically based on the information you provided. Please review the answers to ensure they make sense to you, and if you have additional information to add, please note it in the comments boxes.\n\nIf the answers do not calculate automatically, please provide any relevant information you may have in the comments boxes.\n",null,null,null,null,null,null,null,null,null,null,null,null,null,null,null,null,null,null,null,null,null,null,{"$f":"A54","v":"The answers to B10 and B11 should calculate automatically based on the information you provided. Please review the answers to ensure they make sense to you, and if you have additional information to add, please note it in the comments boxes.\n\nIf the answers do not calculate automatically, please provide any relevant information you may have in the comments boxes.\n"}]
["B10. Government share of funds spent on contraceptive procurement for the public sector - \nOf the total amount spent on contraceptives for the public sector in the most recent complete fiscal year (including government and donor funds), what percent was covered by government funds (including internally generated funds, basket funds, World Bank credits or loans, and other funds given to the government)? \n\nThis will auto-calculate. (It contains the following formula: Total government spending (Question B8c) / Grand total of all spending for public sector contraceptives from the government and donors (Questions B8c+B9d))",null,null,null,null,{"$f":"E44/(E44+E52)","v":0},null,null,null,{"$f":"G55","v":0},null,null,null,null,null,null,null,{"$f":"A55","v":"B10. Government share of funds spent on contraceptive procurement for the public sector - \nOf the total amount spent on contraceptives for the public sector in the most recent complete fiscal year (including government and donor funds), what percent was covered by government funds (including internally generated funds, basket funds, World Bank credits or loans, and other funds given to the government)? \n\nThis will auto-calculate. (It contains the following formula: Total government spending (Question B8c) / Grand total of all spending for public sector contraceptives from the government and donors (Questions B8c+B9d))"}]
["B11. Total expenditures on public sector contraceptives as percent of amount that needed to be procured -\nOf the estimated value of the contraceptives needed to be procured for the public sector for the most recent complete fiscal year, what percent was provided by any source (whether government or donor)? \n\nThis will auto-calculate. (It contains the following formula: Grand total of all spending for public sector contraceptives from the government and donors (Questions B8c+B9d) / Value of estimated need for procurement (Question B2))",null,null,null,null,{"$f":"(E44+E52)/G29","v":0.9999999545240188},null,null,null,{"$f":"G56","v":0},null,null,null,null,null,null,null,{"$f":"A56","v":"B11. Total expenditures on public sector contraceptives as percent of amount that needed to be procured -\nOf the estimated value of the contraceptives needed to be procured for the public sector for the most recent complete fiscal year, what percent was provided by any source (whether government or donor)? \n\nThis will auto-calculate. (It contains the following formula: Grand total of all spending for public sector contraceptives from the government and donors (Questions B8c+B9d) / Value of estimated need for procurement (Question B2))"}]
["B12. If B11 did not calculate automatically, please answer the following question:\nWas there a funding gap for the public sector in the last complete fiscal year (e.g., 09-'10 fiscal year)?\n(Please select from the dropdown list.)",null,null,null,null,"No",null,null,null,{"$f":"G57","v":0},null,null,null,null,null,null,null,{"$f":"A57","v":"B12. If B11 did not calculate automatically, please answer the following question:\nWas there a funding gap for the public sector in the last complete fiscal year (e.g., 09-'10 fiscal year)?\n(Please select from the dropdown list.)"}]
[null,null,null,null,null,null,null,null,null,null,{"$f":"A58","v":0}]
["B13. If the government financed any contraceptive procurement in the most recent complete fiscal year, which entity conducted the procurement(s)? (Please select from the dropdown.)",null,null,null,null,"N/A",null,null,null,null,null,null,null,null,null,null,{"$f":"F59","v":"N/A"},{"$f":"A59","v":"B13. If the government financed any contraceptive procurement in the most recent complete fiscal year, which entity conducted the procurement(s)? (Please select from the dropdown.)"}]
[null,"a. Specify entity",null,null,null,"N/A",null,null,null,null,null,null,{"$f":"E60","v":0},null,null,null,{"$f":"F60","v":"N/A"},{"$f":"B60","v":"a. Specify entity"}]
[null,null,"i. Is this a parastatal?",null,null,"N/A",null,null,null,null,null,null,null,null,null,null,{"$f":"F61","v":"N/A"},{"$f":"C61","v":"i. Is this a parastatal?"}]
["B14. Please note any additional comments about finance and procurement.\n",null,null,null,null,null,null,null,null,null,{"$f":"A62","v":"B14. Please note any additional comments about finance and procurement.\n"},null,null,null,{"$f":"D62","v":0}]
["C. Commodities"]
["C1. Are the following contraceptive methods offered through the commercial sector, public sector, NGOs, or social marketing? (Please indicate which methods are intended to be offered. This question is not asking whether the method is in stock.) \n(Please select from the dropdown list.)",null,null,null,null,null,null,null,null,null,null,null,null,null,null,null,null,null,null,null,null,null,null,{"$f":"A64","v":"C1. Are the following contraceptive methods offered through the commercial sector, public sector, NGOs, or social marketing? (Please indicate which methods are intended to be offered. This question is not asking whether the method is in stock.) \n(Please select from the dropdown list.)"}]
["Contraceptive Method",null,null,"Commercial Sector",null,"Public Sector","NGO","Social Marketing",null,null,{"$f":"A65","v":"Contraceptive Method"}]
[null,"a. Combined oral contraceptives (estrogen + progestin - for  example, LoFemenol, Microgynon)",null,"Yes",null,"Yes","Yes","Yes",null,null,{"$f":"B66","v":"a. Combined oral contraceptives (estrogen + progestin - for  example, LoFemenol, Microgynon)"}]
[null,"b. Progestin-only pills (for example, Ovrette, Microlut)",null,"Yes",null,"Yes","Yes","No",null,null,{"$f":"B67","v":"b. Progestin-only pills (for example, Ovrette, Microlut)"}]
[null,"c. Hormonal injections (for example, DepoProvera, Noristerat)",null,"Yes",null,"Yes","Yes","Yes",null,null,"c. Hormonal injections (for example, DepoProvera, Noristerat)"]
[null,"d. Hormonal implants (for example, Jadelle, Implanon)",null,"Yes",null,"Yes","Yes","No",null,null,"d. Hormonal implants (for example, Jadelle, Implanon)"]
[null,"e. Intrauterine devices (IUDs) (for example, Optima Copper T)",null,"Yes",null,"Yes","Yes","No",null,null,"e. Intrauterine devices (IUDs) (for example, Optima Copper T)"]
[null,"f. Male condoms",null,"Yes",null,"Yes","Yes","Yes",null,null,"f. Male condoms"]
[null,"g. Female condoms",null,"Yes",null,"Yes","Yes","Yes",null,null,"g. Female condoms"]
[null,"h. Emergency contraceptive pills (for example, Postinor)",null,"No",null,"No","Yes","No",null,null,"h. Emergency contraceptive pills (for example, Postinor)"]
[null,"i. Long-acting permanent method for males (vasectomy)",null,"Yes",null,"Yes","Yes","No",null,null,"i. Long-acting permanent method for males (vasectomy)"]
[null,"j. Long-acting permanent method for females (tubal ligation)",null,"Yes",null,"Yes","Yes","No",null,null,"j. Long-acting permanent method for females (tubal ligation)"]
[null,"k. CycleBeads",null,"No",null,"Yes","Yes","No",null,null,"k. CycleBeads"]
[null,"l. Other contraceptive methods - specify \n(Please provide the name of the other contraceptive(s) offered, by sector.)",null,null,null,null,null,null,null,null,"l. Other contraceptive methods - specify \n(Please provide the name of the other contraceptive(s) offered, by sector.)"]
["C2. Please note any comments about the commodities offered.",null,null,"Emergency contraceptives are part of the MoH norms and have been introduced by one NGO which is very active in FP. (They are pretty much the only NGO to offer the actual EC pill.) \n",null,null,null,null,null,null,{"$f":"A78","v":"C2. Please note any comments about the commodities offered."},null,null,null,{"$f":"D78","v":"Emergency contraceptives are part of the MoH norms and have been introduced by one NGO which is very active in FP. (They are pretty much the only NGO to offer the actual EC pill.) \n"}]
["D. Policies (Commitment)"]
["D1. Is there a contraceptive security or reproductive health commodity security strategy or is contraceptive security explicitly included in a country strategy? (Please select from the dropdown list.)",null,null,null,null,null,null,"Yes",{"$f":"A80","v":"D1. Is there a contraceptive security or reproductive health commodity security strategy or is contraceptive security explicitly included in a country strategy? (Please select from the dropdown list.)"}]
["IF NO, SKIP TO QUESTION D2."]
[null,"Strategy name",null,"Years Covered (including strategy updates)",null,"Is the strategy formally approved by the Ministry?","Is the contraceptive security strategy being implemented?",null,null,{"$f":"G82","v":"Is the contraceptive security strategy being implemented?"},{"$f":"B82","v":"Strategy name"},null,{"$f":"E82","v":0},null,null,null,null,null,{"$f":"D82","v":"Years Covered (including strategy updates)"}]
[null,"a","Plan d'Action de la Direction de la Santé de la Famille (Action Plan for Family Health Management)",1,null,"Yes","Yes",null,null,{"$f":"G83","v":"Yes"},{"$f":"B83","v":"a"},null,{"$f":"E83","v":0},null,null,null,null,null,{"$f":"D83","v":1}]
["D2. Are any family planning commodities subject to duties, import taxes, or other fees?",null,null,null,null,"Yes",null,null,null,null,null,null,null,null,null,null,{"$f":"F84","v":"Yes"},{"$f":"A84","v":"D2. Are any family planning commodities subject to duties, import taxes, or other fees?"}]
[null,"a. If yes, for which sectors (public, NGO, social marketing, commercial)?",null,null,"Commercial sector only",null,null,null,null,null,null,null,{"$f":"E85","v":"Commercial sector only"},{"$f":"E85","v":"Commercial sector only"},null,null,null,{"$f":"B85","v":"a. If yes, for which sectors (public, NGO, social marketing, commercial)?"}]
[null,"b. If yes, how much are the duties, taxes, or fees?",null,null,"Don't know",null,null,null,null,null,null,null,null,{"$f":"E86","v":"Don't know"},null,null,null,{"$f":"B86","v":"b. If yes, how much are the duties, taxes, or fees?"}]
["D3. Are there policies that hinder the ability of the private sector (commercial sector, NGOs, or social marketing) to provide contraceptive methods (for example: price controls, distribution limitations, taxes/duties, advertising bans, etc.)?",null,null,null,null,null,null,"No",{"$f":"A87","v":"D3. Are there policies that hinder the ability of the private sector (commercial sector, NGOs, or social marketing) to provide contraceptive methods (for example: price controls, distribution limitations, taxes/duties, advertising bans, etc.)?"}]
[null,"a. If yes, describe the policies.",null,"N/A",null,null,null,null,null,null,{"$f":"B88","v":"a. If yes, describe the policies."},null,null,null,{"$f":"D88","v":"N/A"}]
["D4. Are there policies that enable the private sector (commercial sector, NGOs, or social marketing) to provide contraceptive methods?",null,null,null,null,null,null,"Yes",{"$f":"A89","v":"D4. Are there policies that enable the private sector (commercial sector, NGOs, or social marketing) to provide contraceptive methods?"}]
[null,"a. If yes, describe the policies.",null,"National Norms",null,null,null,null,null,null,{"$f":"B90","v":"a. If yes, describe the policies."},null,null,null,{"$f":"D90","v":"National Norms"}]
["D5. Do policies or regulations exist that restrict who can sell or dispense particular contraceptive methods?\n",null,null,null,null,null,null,"Yes",{"$f":"A91","v":"D5. Do policies or regulations exist that restrict who can sell or dispense particular contraceptive methods?\n"}]
[null,"Please note any restrictions in the following table."]
[null,"Contraceptive Method(s)",null,null,"Describe any public sector restriction on who is allowed to sell or dispense the method",null,"Describe any private sector restriction on who is allowed to sell or dispense the method",null,null,{"$f":"G93","v":"Describe any private sector restriction on who is allowed to sell or dispense the method"},null,null,null,null,null,{"$f":"B93","v":"Contraceptive Method(s)"},null,null,null,null,{"$f":"E93","v":"Describe any public sector restriction on who is allowed to sell or dispense the method"}]
[null,"a","Injectables",null,"This method can be administered only by medical staff (physicians, nurses, and nurse's aids). There is discussion about wanting to modify this policy though because having trained Community Health Workers administer injectables especially in rural communities has been a booster to the program. (Community Health Workers in the USAID network have been trained to administer injectables. They receive an extensive training (based on the MoH's curricula).) ",null,"This method can be administered only by medical staff. ",null,null,{"$f":"G94","v":"This method can be administered only by medical staff. "},null,null,{"$f":"E94","v":"This method can be administered only by medical staff (physicians, nurses, and nurse's aids). There is discussion about wanting to modify this policy though because having trained Community Health Workers administer injectables especially in rural communities has been a booster to the program. (Community Health Workers in the USAID network have been trained to administer injectables. They receive an extensive training (based on the MoH's curricula).) "},null,null,{"$f":"C94","v":"Injectables"},null,null,null,null,{"$f":"E94","v":"This method can be administered only by medical staff (physicians, nurses, and nurse's aids). There is discussion about wanting to modify this policy though because having trained Community Health Workers administer injectables especially in rural communities has been a booster to the program. (Community Health Workers in the USAID network have been trained to administer injectables. They receive an extensive training (based on the MoH's curricula).) "}]
[null,"b",null,null,null,null,null,null,null,{"$f":"G95","v":0},null,null,{"$f":"E95","v":0},null,null,{"$f":"C95","v":0},null,null,null,null,{"$f":"E95","v":0}]
[null,"c",null,null,null,null,null,null,null,{"$f":"G96","v":0},null,null,{"$f":"E96","v":0},null,null,{"$f":"C96","v":0},null,null,null,null,{"$f":"E96","v":0}]
[null,null,null,null,null,null,null,null,null,null,{"$f":"C97","v":0}]
["D6. Does the country have laws, regulations, or policies that make it difficult for the following sub-populations to access effective family planning services?",null,null,"Y/N","If yes, describe laws/regulations/policies affecting access ",null,null,"Are the rules/policies implemented?",null,null,{"$f":"A98","v":"D6. Does the country have laws, regulations, or policies that make it difficult for the following sub-populations to access effective family planning services?"},null,null,null,null,null,null,null,null,null,null,{"$f":"E98","v":"If yes, describe laws/regulations/policies affecting access "}]
[null,"a. Unmarried people",null,"No",null,null,null,null,null,null,{"$f":"B99","v":"a. Unmarried people"},null,{"$f":"E99","v":0},null,null,null,null,null,null,null,null,{"$f":"E99","v":0}]
[null,"b. Young people",null,"No",null,null,null,null,null,null,{"$f":"B100","v":"b. Young people"},null,{"$f":"E100","v":0},null,null,null,null,null,null,null,null,{"$f":"E100","v":0}]
[null,"c. Other",null,"No",null,null,null,null,null,null,{"$f":"B101","v":"c. Other"},null,{"$f":"E101","v":0},null,null,null,null,null,null,null,null,{"$f":"E101","v":0}]
[null,null,null,null,null,null,null,null,null,null,{"$f":"C102","v":0}]
["D7. Are there charges* to the client in the public sector for family planning:\n*(This question refers to charges by policy, not under-the-table charges.)\n",null,null,null,null,null,null,null,null,null,null,null,null,null,null,null,null,null,null,null,null,null,null,{"$f":"A103","v":"D7. Are there charges* to the client in the public sector for family planning:\n*(This question refers to charges by policy, not under-the-table charges.)\n"}]
[null,"a. Services?",null,null,null,null,"Yes",null,null,{"$f":"G104","v":"Yes"},null,null,null,null,null,null,null,null,null,null,null,null,null,null,{"$f":"B104","v":"a. Services?"}]
[null,"b. Commodities?",null,null,null,null,"No",null,null,{"$f":"G105","v":"No"},null,null,null,null,null,null,null,null,null,null,null,null,null,null,{"$f":"B105","v":"b. Commodities?"}]
[null,"c. If yes, are there exemptions for people who cannot afford to pay?",null,null,null,null,"Yes",null,null,{"$f":"G106","v":"Yes"},null,null,null,null,null,null,null,null,null,null,null,null,null,null,{"$f":"B106","v":"c. If yes, are there exemptions for people who cannot afford to pay?"}]
[null,null,"i. If yes, describe the exemptions.","Fees are waived for people who come to a public clinic and are unable to afford services.",null,null,null,null,null,null,{"$f":"C107","v":"i. If yes, describe the exemptions."},null,null,null,{"$f":"D107","v":"Fees are waived for people who come to a public clinic and are unable to afford services."}]
["D8. Are the following contraceptives included in the country's National Essential Medicine List (NEML) or other equivalent priority list?",null,null,null,null,null,null,null,null,null,null,null,null,null,null,null,null,null,null,null,null,null,null,{"$f":"A108","v":"D8. Are the following contraceptives included in the country's National Essential Medicine List (NEML) or other equivalent priority list?"}]
[null,"a. Combined oral contraceptives",null,null,null,null,"Yes",null,null,{"$f":"G109","v":"Yes"},null,null,null,null,null,null,null,null,null,null,null,null,null,null,{"$f":"B109","v":"a. Combined oral contraceptives"}]
[null,"b. Progestin-only pills",null,null,null,null,"Yes",null,null,"Yes",null,null,null,null,null,null,null,null,null,null,null,null,null,null,"b. Progestin-only pills"]
[null,"c. Hormonal injections",null,null,null,null,"Yes",null,null,"Yes",null,null,null,null,null,null,null,null,null,null,null,null,null,null,"c. Hormonal injections"]
[null,"d. Hormonal implants",null,null,null,null,"Yes",null,null,"Yes",null,null,null,null,null,null,null,null,null,null,null,null,null,null,"d. Hormonal implants"]
[null,"e. Intrauterine devices (IUDs)",null,null,null,null,"Yes",null,null,"Yes",null,null,null,null,null,null,null,null,null,null,null,null,null,null,"e. Intrauterine devices (IUDs)"]
[null,"f. Male condoms",null,null,null,null,"Yes",null,null,"Yes",null,null,null,null,null,null,null,null,null,null,null,null,null,null,"f. Male condoms"]
[null,"g. Female condoms",null,null,null,null,"No",null,null,"No",null,null,null,null,null,null,null,null,null,null,null,null,null,null,"g. Female condoms"]
[null,"h. Emergency contraceptive pills",null,null,null,null,"Yes",null,null,"Yes",null,null,null,null,null,null,null,null,null,null,null,null,null,null,"h. Emergency contraceptive pills"]
[null,"i. CycleBeads",null,null,null,null,"Yes",null,null,{"$f":"G117","v":"Yes"},null,null,null,null,null,null,null,null,null,null,null,null,null,null,{"$f":"B117","v":"i. CycleBeads"}]
[null,"j. Any other contraceptive(s)?",null,null,null,null,"No",null,null,"No",null,null,null,null,null,null,null,null,null,null,null,null,null,null,"j. Any other contraceptive(s)?"]
[null,null,"i. Name of other contraceptive(s) on the list(s)",null,null,"N/A",null,null,null,0,null,null,null,null,null,null,null,{"$f":"B119","v":0}]
["D9. What year(s) is the list(s) from?",null,null,null,null,"2011 (March)",null,null,null,0,null,null,null,null,null,null,null,{"$f":"B120","v":0}]
["D10. Name of the list(s)\n\n\n",null,null,"(PAHO's list)",null,null,null,null,null,null,{"$f":"A121","v":"D10. Name of the list(s)\n\n\n"},null,null,null,{"$f":"D121","v":"(PAHO's list)"}]
["D11. Notes about the list(s)",null,null,"There is actually no National Essential Medicine List that has been approved by \nthe Ministry of Health. At the central level, a list based on essential services offered is used, set up by PAHO (who jointly manage the central warehouse with the MoH), but it is not a list that has been written and validated by the Ministry. However, the Department of Drugs and Medicine is working on one, which should be available shortly.",null,null,null,null,null,null,{"$f":"A122","v":"D11. Notes about the list(s)"},null,null,null,{"$f":"D122","v":"There is actually no National Essential Medicine List that has been approved by \nthe Ministry of Health. At the central level, a list based on essential services offered is used, set up by PAHO (who jointly manage the central warehouse with the MoH), but it is not a list that has been written and validated by the Ministry. However, the Department of Drugs and Medicine is working on one, which should be available shortly."}]
["D12.  Information on country's Poverty Reduction Strategy Paper (PRSP)\n",null,null,null,null,null,null,null,null,null,null,null,null,null,null,null,null,null,null,null,null,null,null,{"$f":"A123","v":"D12.  Information on country's Poverty Reduction Strategy Paper (PRSP)\n"}]
[null,"a. What year is the Poverty Reduction Strategy Paper from? (most recent actual PRSP on IMF's site [not progress or summary report])",null,null,null,2008,null,null,null,{"$f":"G124","v":0},null,null,null,null,null,null,null,{"$f":"B124","v":"a. What year is the Poverty Reduction Strategy Paper from? (most recent actual PRSP on IMF's site [not progress or summary report])"}]
[null,"b. Is family planning or reproductive health a priority in the PRSP?",null,null,null,null,"Yes",null,null,{"$f":"G125","v":"Yes"},null,null,null,null,null,null,null,null,null,null,null,null,null,null,{"$f":"B125","v":"b. Is family planning or reproductive health a priority in the PRSP?"}]
[null,"c. Is contraceptive security included in the PRSP?",null,null,null,null,"No",null,null,{"$f":"G126","v":"No"},null,null,null,null,null,null,null,null,null,null,null,null,null,null,{"$f":"B126","v":"c. Is contraceptive security included in the PRSP?"}]
[null,"d. Is contraceptive prevalence rate (CPR) included as an indicator in the PRSP?",null,null,null,null,"Yes",null,null,{"$f":"G127","v":"Yes"},null,null,null,null,null,null,null,null,null,null,null,null,null,null,{"$f":"B127","v":"d. Is contraceptive prevalence rate (CPR) included as an indicator in the PRSP?"}]
[null,"e. Are contraceptive supply indicators included in the PRSP?",null,null,null,null,"No",null,null,{"$f":"G128","v":"No"},null,null,null,null,null,null,null,null,null,null,null,null,null,null,{"$f":"B128","v":"e. Are contraceptive supply indicators included in the PRSP?"}]
["\n\n\n","f. Notes about the Poverty Reduction Strategy Paper",null,"One of the objectives under health is to increase the rate of contraceptive use. Strengthening of health facilities' capacity to provide family planning services is also mentioned.",null,null,null,null,null,null,{"$f":"B129","v":"f. Notes about the Poverty Reduction Strategy Paper"},null,null,null,{"$f":"D129","v":"One of the objectives under health is to increase the rate of contraceptive use. Strengthening of health facilities' capacity to provide family planning services is also mentioned."}]
["E. Supply Chain (Capacity)"]
["E1. Have stockouts occurred for any contraceptive at the central* level in the last 12 months?  \n*(The central level refers to the central level warehouse for the public sector.)",null,null,null,null,null,"Yes",null,null,{"$f":"G131","v":"Yes"},null,null,null,null,null,null,null,null,null,null,null,null,null,null,{"$f":"A131","v":"E1. Have stockouts occurred for any contraceptive at the central* level in the last 12 months?  \n*(The central level refers to the central level warehouse for the public sector.)"}]
["E2. In the last 12 months, has there ever been a stockout at the central level of any of the contraceptives offered in public sector facilities? (If a method is not intended to be offered in public sector facilities, please indicate that stockouts are not applicable (choose \"N/A\" from the dropdown list).)",null,null,null,null,null,null,null,null,null,null,null,null,null,null,null,null,null,null,null,null,null,null,{"$f":"A132","v":"E2. In the last 12 months, has there ever been a stockout at the central level of any of the contraceptives offered in public sector facilities? (If a method is not intended to be offered in public sector facilities, please indicate that stockouts are not applicable (choose \"N/A\" from the dropdown list).)"}]
[null,"a. Combined oral contraceptives",null,null,null,null,"No",null,null,{"$f":"G133","v":"No"},null,null,null,null,null,null,null,null,null,null,null,null,null,null,{"$f":"B133","v":"a. Combined oral contraceptives"}]
[null,"b. Progestin-only pills",null,null,null,null,"No",null,null,"No",null,null,null,null,null,null,null,null,null,null,null,null,null,null,"b. Progestin-only pills"]
[null,"c. Hormonal injections",null,null,null,null,"No",null,null,"No",null,null,null,null,null,null,null,null,null,null,null,null,null,null,"c. Hormonal injections"]
[null,"d. Hormonal implants",null,null,null,null,"No",null,null,"No",null,null,null,null,null,null,null,null,null,null,null,null,null,null,"d. Hormonal implants"]
[null,"e. Intrauterine devices (IUDs)",null,null,null,null,"No",null,null,"No",null,null,null,null,null,null,null,null,null,null,null,null,null,null,"e. Intrauterine devices (IUDs)"]
[null,"f. Male condoms",null,null,null,null,"No",null,null,"No",null,null,null,null,null,null,null,null,null,null,null,null,null,null,"f. Male condoms"]
[null,"g. Female condoms",null,null,null,null,"Yes",null,null,"Yes",null,null,null,null,null,null,null,null,null,null,null,null,null,null,"g. Female condoms"]
[null,"h. Emergency contraceptive pills",null,null,null,null,"No",null,null,"No",null,null,null,null,null,null,null,null,null,null,null,null,null,null,"h. Emergency contraceptive pills"]
[null,"i. CycleBeads",null,null,null,null,"No",null,null,"No",null,null,null,null,null,null,null,null,null,null,null,null,null,null,"i. CycleBeads"]
[null,"j. Time period\n(mm/yy - mm/yy) (for example, 1/10-12/10) ",null,null,null,"likely 01/10-12/10",null,null,null,null,null,null,null,null,null,null,{"$f":"F142","v":"likely 01/10-12/10"},{"$f":"B142","v":"j. Time period\n(mm/yy - mm/yy) (for example, 1/10-12/10) "}]
[null,"k. Data source\n(for example: Procurement Planning and Monitoring Report, Logistics Management Information System, periodic physical inventory, warehouse reports)",null,null,null,"Central Warehouse Management",null,null,null,null,null,null,null,null,null,null,{"$f":"F143","v":"Central Warehouse Management"},{"$f":"B143","v":"k. Data source\n(for example: Procurement Planning and Monitoring Report, Logistics Management Information System, periodic physical inventory, warehouse reports)"}]
["E3. Are stockouts a large problem in your country at the following levels? (i.e., Are they common or do they tend to last for a long time?)\n\n"]
[null,"a. service delivery point level (i.e., public sector health facilities)",null,null,null,null,"Don't know",null,null,{"$f":"G145","v":"Don't know"},null,null,null,null,null,null,null,null,null,null,null,null,null,null,{"$f":"B145","v":"a. service delivery point level (i.e., public sector health facilities)"}]
[null,"b. central level (i.e., central level warehouse for the public sector)",null,null,null,null,"Don't know",null,null,{"$f":"G146","v":"Don't know"},null,null,null,null,null,null,null,null,null,null,null,null,null,null,{"$f":"B146","v":"b. central level (i.e., central level warehouse for the public sector)"}]
["F. Please note any overall comments about challenges and/or successes with contraceptive security in your country.\n\n",null,null,null,null,null,null,null,null,null,{"$f":"A147","v":"F. Please note any overall comments about challenges and/or successes with contraceptive security in your country.\n\n"},null,null,null,{"$f":"D147","v":0}]

{"sheet":"Honduras 2011","index":21,"n_rows":147,"n_cols":25,"rows_kept":147,"cut":false,"hidden":false,"merged":[[8,0,8,7],[5,0,5,2],[147,0,147,7],[148,0,150,7],[145,1,145,5],[145,6,145,7],[146,0,146,2],[146,3,146,7],[141,1,141,4],[141,5,141,7],[142,1,142,4],[142,5,142,7],[143,0,143,7],[144,1,144,5],[144,6,144,7],[138,1,138,5],[138,6,138,7],[139,1,139,5],[139,6,139,7],[140,1,140,5],[131,0,131,7],[132,1,132,5],[132,6,132,7],[133,1,133,5],[133,6,133,7],[134,1,134,5],[134,6,134,7],[140,6,140,7],[135,1,135,5],[135,6,135,7],[136,1,136,5],[136,6,136,7],[137,1,137,5],[137,6,137,7],[120,0,120,2],[120,3,120,7],[121,0,121,2],[121,3,121,7],[129,0,129,6],[130,0,130,5],[130,6,130,7],[122,0,122,7],[123,1,123,4],[123,5,123,7],[115,1,115,5],[115,6,115,7],[116,1,116,5],[116,6,116,7],[117,1,117,5],[117,6,117,7],[118,2,118,4],[118,5,118,7],[119,0,119,4],[119,5,119,7],[110,1,110,5],[110,6,110,7],[111,1,111,5],[111,6,111,7],[112,1,112,5],[112,6,112,7],[113,1,113,5],[113,6,113,7],[114,1,114,5],[114,6,114,7],[104,1,104,5],[104,6,104,7],[105,1,105,5],[105,6,105,7],[106,3,106,7],[107,0,107,7],[108,1,108,5],[108,6,108,7],[109,1,109,5],[109,6,109,7],[98,1,98,2],[98,4,98,6],[99,1,99,2],[99,4,99,6],[100,1,100,2],[100,4,100,6],[101,0,101,7],[102,0,102,7],[103,1,103,5],[103,6,103,7],[94,2,94,3],[94,4,94,5],[94,6,94,7],[95,2,95,3],[95,4,95,5],[95,6,95,7],[96,0,96,7],[97,0,97,2],[97,4,97,6],[88,0,88,6],[89,1,89,2],[89,3,89,7],[90,0,90,6],[91,1,91,2],[92,1,92,3],[92,4,92,5],[92,6,92,7],[93,2,93,3],[93,4,93,5],[93,6,93,7],[83,0,83,4],[83,5,83,7],[84,1,84,3],[84,4,84,7],[85,1,85,3],[85,4,85,7],[86,0,86,6],[87,1,87,2],[87,3,87,7],[77,0,77,2],[77,3,77,7],[78,0,78,6],[79,0,79,6],[80,0,80,2],[81,0,82,0],[81,1,81,2],[81,3,81,4],[81,6,81,7],[82,3,82,4],[82,6,82,7],[72,1,72,2],[72,3,72,4],[73,1,73,2],[73,3,73,4],[74,1,74,2],[74,3,74,4],[75,1,75,2],[75,3,75,4],[76,1,76,2],[76,3,76,4],[67,1,67,2],[67,3,67,4],[68,1,68,2],[68,3,68,4],[69,1,69,2],[69,3,69,4],[70,1,70,2],[70,3,70,4],[71,1,71,2],[71,3,71,4],[61,0,61,2],[61,3,61,7],[62,0,62,6],[63,0,63,7],[64,0,64,2],[64,3,64,4],[65,1,65,2],[65,3,65,4],[66,1,66,2],[66,3,66,4],[55,0,55,4],[55,6,55,7],[56,0,56,4],[56,6,56,7],[58,0,58,4],[58,5,58,7],[59,1,59,4],[59,5,59,7],[60,2,60,4],[60,5,60,7],[41,1,41,2],[42,3,42,7],[43,1,43,2],[51,1,51,2],[53,0,53,7],[54,0,54,4],[54,6,54,7],[45,0,45,7],[46,1,46,2],[47,1,47,2],[48,3,48,7],[49,1,49,2],[50,1,50,2],[32,0,32,7],[33,1,33,3],[34,1,34,3],[35,0,35,7],[36,0,36,6],[37,0,37,7],[38,1,38,2],[39,1,39,2],[40,3,40,7],[26,0,26,6],[27,0,27,2],[27,3,27,4],[28,0,28,5],[28,6,28,7],[29,0,29,3],[29,6,29,7],[30,0,30,6],[31,0,31,6],[20,1,20,2],[20,5,20,7],[21,1,21,2],[21,5,21,7],[22,1,22,2],[22,5,22,7],[23,0,23,6],[24,0,24,6],[25,0,25,2],[15,1,15,2],[15,5,15,7],[16,1,16,2],[16,5,16,7],[17,1,17,2],[17,5,17,7],[18,1,18,2],[18,5,18,7],[19,1,19,2],[19,5,19,7],[9,0,9,7],[10,0,10,6],[11,0,11,6],[12,1,12,2],[12,3,12,7],[13,0,13,2],[13,3,13,7],[14,1,14,2],[14,5,14,7],[7,0,7,2],[7,3,7,5],[7,6,7,7],[0,0,0,7],[1,0,1,2],[1,3,1,4],[2,0,2,7],[3,3,3,4],[3,5,3,7],[4,0,4,2],[127,1,127,5],[127,6,127,7],[128,1,128,2],[128,3,128,7],[124,1,124,5],[124,6,124,7],[125,1,125,5],[125,6,125,7],[126,1,126,5],[126,6,126,7]]}
[null,null,null,null,null,null,null,null,"Columns I-Y are meant to be hidden. They exist because they allow for the dropdown list options. They also allow for merged cells to autofit properly in terms of row height. This should work if all columns remain at their correct widths.","g-h",null,"a-e merged","E-F merged","e-h","0 times",null,null,"The government (e.g., Central Medical Stores, MOH logistics unit, MOH procurement unit)",null,null,null,null,"Yes","a-h","January"]
[null,null,null,null,null,null,null,null,null,null,"A-c",null,null,null,"1-2 times","b-d merged",null,"Third-party agent (e.g., UNFPA, Crown Agents)","d-e merged","d-f merged","e-f merged","e-g merged","No",null,"February"]
[null,null,null,null,null,null,null,null,null,null,null,null,null,null,"3-5 times",null,null,"The government and a third-party agent",null,null,null,null,null,null,"March"]
[null,null,null,null,null,null,null,null,null,null,null,null,null,null,"6 or more times",null,null,"Other",null,null,null,null,"N/A",null,"April"]
["To jump to the Introduction sheet, click here.",null,null,null,null,null,null,null,null,null,null,null,null,null,null,null,null,null,null,null,null,null,"Don't know",null,"May"]
[null,null,null,null,null,null,null,null,null,null,null,null,null,null,"N/A",null,null,"N/A",null,null,null,null,null,null,"June"]
["Contraceptive Security (CS) Indicators 2011 Data ",null,null,null,null,null,null,null,null,null,null,null,null,null,"Don't know",null,null,"Don't know",null,null,null,null,null,null,"July"]
["Country: Honduras",null,null,null,null,null,null,null,null,{"$f":"G8","v":0},{"$f":"A8","v":"Country: Honduras"},null,null,null,null,"or c-d",null,null,null,{"$f":"D8","v":0},null,null,null,null,"August"]
["The CS Indicators are presented in the following sections:\n\n               A. leadership & cooordination               B. finance & procurement               C. commodities               D. policies               E. supply chain",null,null,null,null,null,null,null,null,{"$f":"G9","v":0},{"$f":"A9","v":"The CS Indicators are presented in the following sections:\n\n               A. leadership & cooordination               B. finance & procurement               C. commodities               D. policies               E. supply chain"},null,null,null,"d-h",null,"f-h merged",null,{"$f":"D9","v":0},null,null,null,null,null,"September"]
["\nNotes:\n  -  Respondents' answers are indicated in the white spaces. \n  -  N/A = not applicable. Don't know = the respondent either indicated they did not know or left the answer blank.\n  -  Some questions required respondents to choose from a dropdown list of options; in these cases the dropdown arrow will \n     appear when you click on the cell. \n  -  There may be a few inserted comments. (If you cannot already see them, click on Review tab - Comments group - Show All Comments in newer \n       versions of Excel or View - Comments in older versions of Excel.)\n  -  If the answer is cut off, you can either manually adjust the row height or autofit the row height in order to see the whole \n     response. (To autofit the row height, select the answer(s) and go to Home tab - Cells group - Format - Autofit Row Height in newer versions of Excel or \n      Format - Row - Autofit in older versions of Excel.)\n",null,null,null,null,null,null,null,"a-g",null,null,null,null,null,null,null,null,"a-e merged",null,null,null,null,null,{"$f":"A10","v":"\nNotes:\n  -  Respondents' answers are indicated in the white spaces. \n  -  N/A = not applicable. Don't know = the respondent either indicated they did not know or left the answer blank.\n  -  Some questions required respondents to choose from a dropdown list of options; in these cases the dropdown arrow will \n     appear when you click on the cell. \n  -  There may be a few inserted comments. (If you cannot already see them, click on Review tab - Comments group - Show All Comments in newer \n       versions of Excel or View - Comments in older versions of Excel.)\n  -  If the answer is cut off, you can either manually adjust the row height or autofit the row height in order to see the whole \n     response. (To autofit the row height, select the answer(s) and go to Home tab - Cells group - Format - Autofit Row Height in newer versions of Excel or \n      Format - Row - Autofit in older versions of Excel.)\n"},"October"]
["A. Leadership and Coordination",null,null,null,null,null,null,null,null,null,null,null,null,null,null,null,null,null,null,null,null,null,null,null,"November"]
["A1. Is there a national committee that works on contraceptive security? (Please select from the dropdown list.)\n(Committee should have some aspect of contraceptive security as part of its Terms of Reference, even if it is known by a different name, for example: Family Planning, Reproductive Health, Maternal Mortality, Essential Medicine Committee, etc.)  ",null,null,null,null,null,null,"Yes",{"$f":"A12","v":"A1. Is there a national committee that works on contraceptive security? (Please select from the dropdown list.)\n(Committee should have some aspect of contraceptive security as part of its Terms of Reference, even if it is known by a different name, for example: Family Planning, Reproductive Health, Maternal Mortality, Essential Medicine Committee, etc.)  "},null,null,null,null,null,null,null,null,null,null,null,null,null,null,null,"December"]
[null,"a. What is the name of the committee?",null,"Comité Interinstitucional para la Disponibilidad Asegurada de Insumos Anticonceptivos (CIDAIA) (Inter-institutional Committee for Contraceptive Security)",null,null,null,null,null,null,{"$f":"B13","v":"a. What is the name of the committee?"},{"$f":"D13","v":"Comité Interinstitucional para la Disponibilidad Asegurada de Insumos Anticonceptivos (CIDAIA) (Inter-institutional Committee for Contraceptive Security)"},null,null,{"$f":"D13","v":"Comité Interinstitucional para la Disponibilidad Asegurada de Insumos Anticonceptivos (CIDAIA) (Inter-institutional Committee for Contraceptive Security)"}]
["A2. Are the following organizations represented on the committee?",null,null,"(Y/N \ndropdown)",null,null,null,null,null,null,{"$f":"A14","v":"A2. Are the following organizations represented on the committee?"},null,null,null,null,null,null,null,null,null,null,null,null,null,"Don't know"]
[null,"a. Social marketing",null,"Yes","If yes, specify name(s) of organizations","PSI/PASMO (Pan American Social Marketing Organization)",null,null,null,null,{"$f":"B15","v":"a. Social marketing"},null,null,null,null,null,{"$f":"F15","v":"PSI/PASMO (Pan American Social Marketing Organization)"}]
[null,"b. NGO (for example: service delivery, advocacy, Planned Parenthood affiliate, Marie Stopes affiliate, faith-based organizations, etc.)",null,"Yes","If yes, specify name(s) of organizations","ASHONPLAFA (IPPF affiliate)",null,null,null,null,"b. NGO (for example: service delivery, advocacy, Planned Parenthood affiliate, Marie Stopes affiliate, faith-based organizations, etc.)",null,null,null,null,null,"ASHONPLAFA (IPPF affiliate)"]
[null,"c. Commercial sector (for example: pharmacy associations, manufacturers, etc.)",null,"Yes","If yes, specify name(s) of organizations","Pfizer, Vijosa Laboratories, Arsal Laboratories, Bayer -Schering Pharma, CPL Honduras, Solis-Durex Distributor ",null,null,null,null,"c. Commercial sector (for example: pharmacy associations, manufacturers, etc.)",null,null,null,null,null,"Pfizer, Vijosa Laboratories, Arsal Laboratories, Bayer -Schering Pharma, CPL Honduras, Solis-Durex Distributor "]
[null,"d. Donors",null,"Yes","If yes, specify name(s) of donors","USAID, UNFPA",null,null,null,null,"d. Donors",null,null,null,null,null,"USAID, UNFPA"]
[null,"e. UN agencies",null,"Yes","If yes, specify name(s) of agencies","PAHO, UNFPA",null,null,null,null,"e. UN agencies",null,null,null,null,null,"PAHO, UNFPA"]
[null,"f. Ministry of Health (for example: logistics, reproductive health, family planning, maternal and child health, HIV/AIDS, pharmacy units, etc.)",null,"Yes","If yes, specify name(s) of units","Service Networks, Logistics Unit, Women's Health Unit, Essential Drugs Unit, Regulations Unit, STD Unit",null,null,null,null,"f. Ministry of Health (for example: logistics, reproductive health, family planning, maternal and child health, HIV/AIDS, pharmacy units, etc.)",null,null,null,null,null,"Service Networks, Logistics Unit, Women's Health Unit, Essential Drugs Unit, Regulations Unit, STD Unit"]
[null,"g. Central Medical Store or Central Warehouse",null,"Yes","If yes, specify","Central warehouse (manager)",null,null,null,null,"g. Central Medical Store or Central Warehouse",null,null,null,null,null,"Central warehouse (manager)"]
[null,"h. Ministry of Finance or Ministry of Planning ",null,"No","If yes, specify",null,null,null,null,null,"h. Ministry of Finance or Ministry of Planning ",null,null,null,null,null,0]
[null,"i. Other (for example: partners)",null,"Yes","If yes, specify","Women's National Insitute (INAM in Spanish)",null,null,null,null,"i. Other (for example: partners)",null,null,null,null,null,"Women's National Insitute (INAM in Spanish)"]
["A3. How many times did the committee meet during the last year? (0, 1-2, 3-5, or 6+)  (Please select from the dropdown.)",null,null,null,null,null,null,"6 or more times",{"$f":"A24","v":"A3. How many times did the committee meet during the last year? (0, 1-2, 3-5, or 6+)  (Please select from the dropdown.)"}]
["A4. Does the committee have legal status?  (Please select from the dropdown.)                                  ",null,null,null,null,null,null,"No",{"$f":"A25","v":"A4. Does the committee have legal status?  (Please select from the dropdown.)                                  "}]
["A5. Is there a Contraceptive Security \"champion\"? (someone who consistently brings up and advocates for contraceptive supplies)",null,null,"Yes","If yes, specify person's organization","Ministry of Health","Specify person's job title","Advisor to the Vice-Minister ",null,null,{"$f":"A26","v":"A5. Is there a Contraceptive Security \"champion\"? (someone who consistently brings up and advocates for contraceptive supplies)"}]
["B. Finance and Procurement (Capital)"]
["B1. What is the timeline of the country's fiscal year?",null,null,"Beginning month",null,"January","Ending month","December",null,null,{"$f":"B28","v":0}]
["B2. What was the estimated dollar value of contraceptives needed to be procured for the public sector for the most recent complete fiscal year? (in USD currency)\n(for example, to cover the needs for the '09-'10 fiscal year)",null,null,null,null,null,{"$f":"32000000/18.8951","v":1693560.7644309902},null,null,{"$f":"G29","v":1693560.7644309902},null,null,{"$f":"E29","v":0},null,null,null,null,null,null,null,null,null,null,null,{"$f":"A29","v":"B2. What was the estimated dollar value of contraceptives needed to be procured for the public sector for the most recent complete fiscal year? (in USD currency)\n(for example, to cover the needs for the '09-'10 fiscal year)"}]
["B3. When was the last forecast/quantification conducted? (mm/yy)",null,null,null,"11/10","Who conducted it? (Specify organization.)","Ministry of Health",null,null,{"$f":"G30","v":"Ministry of Health"},null,null,{"$f":"E30","v":"11/10"},null,null,null,null,null,null,null,null,null,null,null,{"$f":"A30","v":"B3. When was the last forecast/quantification conducted? (mm/yy)"}]
["B4. Is there a government budget line item for the procurement of contraceptives?  (Please select from the dropdown list.)",null,null,null,null,null,null,"Yes",{"$f":"A31","v":"B4. Is there a government budget line item for the procurement of contraceptives?  (Please select from the dropdown list.)"}]
["B5. Were government funds allocated for contraceptive procurement for the public sector in the most recent complete fiscal year? (This question refers to funds planned to be spent on contraceptives, whether or not they ended up being spent.) \n\n(Government funds include internally generated funds, basket funds, World Bank credits or loans, and other funds donors gave to the government for their use.) \n",null,null,null,null,null,null,"Yes",{"$f":"A32","v":"B5. Were government funds allocated for contraceptive procurement for the public sector in the most recent complete fiscal year? (This question refers to funds planned to be spent on contraceptives, whether or not they ended up being spent.) \n\n(Government funds include internally generated funds, basket funds, World Bank credits or loans, and other funds donors gave to the government for their use.) \n"}]
["B6. Please complete the table below regarding government allocations for contraceptive procurement.",null,null,null,null,null,null,null,null,null,null,null,null,null,null,null,null,null,null,null,null,null,null,{"$f":"A33","v":"B6. Please complete the table below regarding government allocations for contraceptive procurement."}]
[null,null,null,null,"Amount allocated \n(in USD)","Time period during which allocations were supposed to be spent \n(mm/yy-mm/yy)\n(should ideally be the most recent\ncomplete fiscal year ['09-'10])","Data source \n(for example: Ministry records)","Comments",null,null,{"$f":"A34","v":0}]
[null,"Government funds allocated for contraceptive procurement\n(funds originally designated for contraceptives, whether or not they ended up being spent on them)",null,null,{"$f":"24000000/18.8951","v":1270170.5733232426},"01/10-12/10","Ministry of Health",null,null,null,{"$f":"#REF!","v":{"$error":"#REF!"}}]
[]
["B7. Were government funds spent on contraceptive procurement for the public sector in the most recent complete fiscal year? \n(Government funds include internally generated funds, basket funds, World Bank credits or loans, and other funds donors gave to the government for their use.)",null,null,null,null,null,null,"Yes",{"$f":"A37","v":"B7. Were government funds spent on contraceptive procurement for the public sector in the most recent complete fiscal year? \n(Government funds include internally generated funds, basket funds, World Bank credits or loans, and other funds donors gave to the government for their use.)"}]
["B8. Please complete the table below to indicate government expenditures on contraceptive procurement, by source, in the most recent complete fiscal year. \n(This is how much was spent on contraceptive procurement (not what was allocated). How much of this spending was provided from each source?)",null,null,null,null,null,null,null,null,null,null,null,null,null,null,null,null,null,null,null,null,null,null,{"$f":"A38","v":"B8. Please complete the table below to indicate government expenditures on contraceptive procurement, by source, in the most recent complete fiscal year. \n(This is how much was spent on contraceptive procurement (not what was allocated). How much of this spending was provided from each source?)"}]
[null,"Source of government funds spent on contraceptive procurement for the public sector",null,"Was this source used?\n(Y/N)","Amount spent \n(in USD)","Time period (mm/yy-mm/yy)\n(should be the same for all sources of funds & ideally be the most recent\ncomplete fiscal year ['09-'10])","Data source \n(for example: Contraceptive Procurement Table, PipeLine, etc.)","Comments",null,null,{"$f":"A39","v":0}]
[null,"a. Internally generated funds spent on contraceptive procurement",null,"Yes",{"$f":"51000000/18.8951","v":2699112.4683118905},"01/10-12/10","PipeLine",null,null,null,{"$f":"B40","v":"a. Internally generated funds spent on contraceptive procurement"}]
[null,null,"i. Specify source(s) of internally generated funds spent (for example, from taxes or user fees)","General government income",null,null,null,null,null,null,{"$f":"C41","v":"i. Specify source(s) of internally generated funds spent (for example, from taxes or user fees)"},null,null,null,{"$f":"D41","v":"General government income"}]
[null,"b. Total of all other government funds spent on contraceptive procurement (basket funds, World Bank credits or loans, and other funds donors gave to the government [e.g., direct budget support])",null,"No",0,"01/10-12/10",null,null,null,null,{"$f":"B42","v":"b. Total of all other government funds spent on contraceptive procurement (basket funds, World Bank credits or loans, and other funds donors gave to the government [e.g., direct budget support])"}]
[null,null,"i. Specify source(s) of other government funds spent (for example: basket funding or specific donor)","N/A",null,null,null,null,null,null,{"$f":"C43","v":"i. Specify source(s) of other government funds spent (for example: basket funding or specific donor)"},null,null,null,{"$f":"D43","v":"N/A"}]
[null,"c. TOTAL government funds spent on contraceptive procurement\nThis will auto-calculate.  (It will sum a & b above.)",null,null,{"$f":"E40+E42","v":2699112.4683118905},null,null,null,null,null,{"$f":"B44","v":"c. TOTAL government funds spent on contraceptive procurement\nThis will auto-calculate.  (It will sum a & b above.)"}]
[null,null,null,null,null,null,null,null,null,null,{"$f":"A45","v":0}]
["B9. Please complete the table below to indicate donor expenditures on contraceptive procurement in the most recent complete fiscal year.\n",null,null,null,null,null,null,null,null,null,null,null,null,null,null,null,null,null,null,null,null,null,null,{"$f":"A46","v":"B9. Please complete the table below to indicate donor expenditures on contraceptive procurement in the most recent complete fiscal year.\n"}]
["\n","Source of donations and donor funds spent on contraceptive procurement for the public sector",null,"Was this a source?\n(Y/N)","Amount of money spent on these procurements \n(in USD)","Time period (mm/yy-mm/yy)\n(should be the same for all sources of funds & ideally be the most recent\ncomplete fiscal year ['09-'10])","Data source \n(for example:  Donor records, Contraceptive Procurement Table, PipeLine, RHInterchange, etc.","Comments",null,null,{"$f":"A47","v":"\n"}]
[null,"a. In-kind donations of contraceptives",null,"Yes",890003,"01/10-12/10","PipeLine","This amount includes shipping and customs charges",null,null,{"$f":"B48","v":"a. In-kind donations of contraceptives"}]
[null,null,"i. Specify source(s) of in-kind donations ","UNFPA",null,null,null,null,null,null,{"$f":"C49","v":"i. Specify source(s) of in-kind donations "},null,null,null,{"$f":"D49","v":"UNFPA"}]
[null,"b. Global Fund donations used to procure condoms",null,"No",0,"01/10-12/10","RHInterchange",null,null,null,{"$f":"B50","v":"b. Global Fund donations used to procure condoms"}]
[null,"c. Global Fund donations used to procure contraceptives besides condoms",null,"No",0,"01/10-12/10",null,null,null,null,{"$f":"B51","v":"c. Global Fund donations used to procure contraceptives besides condoms"}]
[null,"d. TOTAL value of in-kind donations and Global Fund donations spent on contraceptive procurement\nThis will auto-calculate.  (It will sum a-c above.)",null,null,{"$f":"E48+E50+E51","v":890003},null,null,null,null,null,{"$f":"B52","v":"d. TOTAL value of in-kind donations and Global Fund donations spent on contraceptive procurement\nThis will auto-calculate.  (It will sum a-c above.)"}]
[null,null,null,null,null,null,null,null,null,null,{"$f":"A53","v":0}]
["The answers to B10 and B11 should calculate automatically based on the information you provided. Please review the answers to ensure they make sense to you, and if you have additional information to add, please note it in the comments boxes.\n\nIf the answers do not calculate automatically, please provide any relevant information you may have in the comments boxes.\n",null,null,null,null,null,null,null,null,null,null,null,null,null,null,null,null,null,null,null,null,null,null,{"$f":"A54","v":"The answers to B10 and B11 should calculate automatically based on the information you provided. Please review the answers to ensure they make sense to you, and if you have additional information to add, please note it in the comments boxes.\n\nIf the answers do not calculate automatically, please provide any relevant information you may have in the comments boxes.\n"}]
["B10. Government share of funds spent on contraceptive procurement for the public sector - \nOf the total amount spent on contraceptives for the public sector in the most recent complete fiscal year (including government and donor funds), what percent was covered by government funds (including internally generated funds, basket funds, World Bank credits or loans, and other funds given to the government)? \n\nThis will auto-calculate. (It contains the following formula: Total government spending (Question B8c) / Grand total of all spending for public sector contraceptives from the government and donors (Questions B8c+B9d))",null,null,null,null,{"$f":"E44/(E44+E52)","v":0.75202720339933637},null,null,null,{"$f":"G55","v":0},null,null,null,null,null,null,null,{"$f":"A55","v":"B10. Government share of funds spent on contraceptive procurement for the public sector - \nOf the total amount spent on contraceptives for the public sector in the most recent complete fiscal year (including government and donor funds), what percent was covered by government funds (including internally generated funds, basket funds, World Bank credits or loans, and other funds given to the government)? \n\nThis will auto-calculate. (It contains the following formula: Total government spending (Question B8c) / Grand total of all spending for public sector contraceptives from the government and donors (Questions B8c+B9d))"}]
["B11. Total expenditures on public sector contraceptives as percent of amount that needed to be procured -\nOf the estimated value of the contraceptives needed to be procured for the public sector for the most recent complete fiscal year, what percent was provided by any source (whether government or donor)? \n\nThis will auto-calculate. (It contains the following formula: Grand total of all spending for public sector contraceptives from the government and donors (Questions B8c+B9d) / Value of estimated need for procurement (Question B2))",null,null,null,null,{"$f":"(E44+E52)/G29","v":2.1192717401656247},"\n",null,null,{"$f":"G56","v":"\n"},null,null,null,null,null,null,null,{"$f":"A56","v":"B11. Total expenditures on public sector contraceptives as percent of amount that needed to be procured -\nOf the estimated value of the contraceptives needed to be procured for the public sector for the most recent complete fiscal year, what percent was provided by any source (whether government or donor)? \n\nThis will auto-calculate. (It contains the following formula: Grand total of all spending for public sector contraceptives from the government and donors (Questions B8c+B9d) / Value of estimated need for procurement (Question B2))"}]
["B12. If B11 did not calculate automatically, please answer the following question:\nWas there a funding gap for the public sector in the last complete fiscal year (e.g., 09-'10 fiscal year)?\n(Please select from the dropdown list.)",null,null,null,null,"No","The UNFPA donation was the last that this agency will donate to the Honduras government. Of the total amount expended in 2010, shipments amounting  to aprox. US$731,000 of government funds plus US$890,000 of in-kind donations arrived in-country in 2010 (total US$1,621,000). The remaining shipments arrived in the country in March and April 2011. \n",null,null,{"$f":"G57","v":"The UNFPA donation was the last that this agency will donate to the Honduras government. Of the total amount expended in 2010, shipments amounting  to aprox. US$731,000 of government funds plus US$890,000 of in-kind donations arrived in-country in 2010 (total US$1,621,000). The remaining shipments arrived in the country in March and April 2011. \n"},null,null,null,null,null,null,null,{"$f":"A57","v":"B12. If B11 did not calculate automatically, please answer the following question:\nWas there a funding gap for the public sector in the last complete fiscal year (e.g., 09-'10 fiscal year)?\n(Please select from the dropdown list.)"}]
[null,null,null,null,null,null,null,null,null,null,{"$f":"A58","v":0}]
["B13. If the government financed any contraceptive procurement in the most recent complete fiscal year, which entity conducted the procurement(s)? (Please select from the dropdown.)",null,null,null,null,"The government (e.g., Central Medical Stores, MOH logistics unit, MOH procurement unit)",null,null,null,null,null,null,null,null,null,null,{"$f":"F59","v":"The government (e.g., Central Medical Stores, MOH logistics unit, MOH procurement unit)"},{"$f":"A59","v":"B13. If the government financed any contraceptive procurement in the most recent complete fiscal year, which entity conducted the procurement(s)? (Please select from the dropdown.)"}]
[null,"a. Specify entity",null,null,null,"MOH administrative unit",null,null,null,null,null,null,{"$f":"E60","v":0},null,null,null,{"$f":"F60","v":"MOH administrative unit"},{"$f":"B60","v":"a. Specify entity"}]
[null,null,"i. Is this a parastatal?",null,null,"No",null,null,null,null,null,null,null,null,null,null,{"$f":"F61","v":"No"},{"$f":"C61","v":"i. Is this a parastatal?"}]
["B14. Please note any additional comments about finance and procurement.\n",null,null,"Procurement is carried out at the national level. ",null,null,null,null,null,null,{"$f":"A62","v":"B14. Please note any additional comments about finance and procurement.\n"},null,null,null,{"$f":"D62","v":"Procurement is carried out at the national level. "}]
["C. Commodities"]
["C1. Are the following contraceptive methods offered through the commercial sector, public sector, NGOs, or social marketing? (Please indicate which methods are intended to be offered. This question is not asking whether the method is in stock.) \n(Please select from the dropdown list.)",null,null,null,null,null,null,null,null,null,null,null,null,null,null,null,null,null,null,null,null,null,null,{"$f":"A64","v":"C1. Are the following contraceptive methods offered through the commercial sector, public sector, NGOs, or social marketing? (Please indicate which methods are intended to be offered. This question is not asking whether the method is in stock.) \n(Please select from the dropdown list.)"}]
["Contraceptive Method",null,null,"Commercial Sector",null,"Public Sector","NGO","Social Marketing",null,null,{"$f":"A65","v":"Contraceptive Method"}]
[null,"a. Combined oral contraceptives (estrogen + progestin - for  example, LoFemenol, Microgynon)",null,"Yes",null,"Yes","Yes","Yes",null,null,{"$f":"B66","v":"a. Combined oral contraceptives (estrogen + progestin - for  example, LoFemenol, Microgynon)"}]
[null,"b. Progestin-only pills (for example, Ovrette, Microlut)",null,"No",null,"No","No","No",null,null,{"$f":"B67","v":"b. Progestin-only pills (for example, Ovrette, Microlut)"}]
[null,"c. Hormonal injections (for example, DepoProvera, Noristerat)",null,"Yes",null,"Yes","Yes","Yes",null,null,"c. Hormonal injections (for example, DepoProvera, Noristerat)"]
[null,"d. Hormonal implants (for example, Jadelle, Implanon)",null,"No",null,"No","No","No",null,null,"d. Hormonal implants (for example, Jadelle, Implanon)"]
[null,"e. Intrauterine devices (IUDs) (for example, Optima Copper T)",null,"Yes",null,"Yes","Yes","No",null,null,"e. Intrauterine devices (IUDs) (for example, Optima Copper T)"]
[null,"f. Male condoms",null,"Yes",null,"Yes","Yes","Yes",null,null,"f. Male condoms"]
[null,"g. Female condoms",null,"No",null,"No","No","No",null,null,"g. Female condoms"]
[null,"h. Emergency contraceptive pills (for example, Postinor)",null,"No",null,"No","No","No",null,null,"h. Emergency contraceptive pills (for example, Postinor)"]
[null,"i. Long-acting permanent method for males (vasectomy)",null,"Yes",null,"Yes","Yes","No",null,null,"i. Long-acting permanent method for males (vasectomy)"]
[null,"j. Long-acting permanent method for females (tubal ligation)",null,"Yes",null,"Yes","Yes","No",null,null,"j. Long-acting permanent method for females (tubal ligation)"]
[null,"k. CycleBeads",null,"No",null,"No","No","No",null,null,"k. CycleBeads"]
[null,"l. Other contraceptive methods - specify \n(Please provide the name of the other contraceptive(s) offered, by sector.)",null,null,null,null,null,null,null,null,"l. Other contraceptive methods - specify \n(Please provide the name of the other contraceptive(s) offered, by sector.)"]
["C2. Please note any comments about the commodities offered.",null,null,null,null,null,null,null,null,null,{"$f":"A78","v":"C2. Please note any comments about the commodities offered."},null,null,null,{"$f":"D78","v":0}]
["D. Policies (Commitment)"]
["D1. Is there a contraceptive security or reproductive health commodity security strategy or is contraceptive security explicitly included in a country strategy? (Please select from the dropdown list.)",null,null,null,null,null,null,"Yes",{"$f":"A80","v":"D1. Is there a contraceptive security or reproductive health commodity security strategy or is contraceptive security explicitly included in a country strategy? (Please select from the dropdown list.)"}]
["IF NO, SKIP TO QUESTION D2."]
[null,"Strategy name",null,"Years Covered (including strategy updates)",null,"Is the strategy formally approved by the Ministry?","Is the contraceptive security strategy being implemented?",null,null,{"$f":"G82","v":"Is the contraceptive security strategy being implemented?"},{"$f":"B82","v":"Strategy name"},null,{"$f":"E82","v":0},null,null,null,null,null,{"$f":"D82","v":"Years Covered (including strategy updates)"}]
[null,"a","Contraceptive Strategy","2005 - ongoing",null,"Yes","Yes",null,null,{"$f":"G83","v":"Yes"},{"$f":"B83","v":"a"},null,{"$f":"E83","v":0},null,null,null,null,null,{"$f":"D83","v":"2005 - ongoing"}]
["D2. Are any family planning commodities subject to duties, import taxes, or other fees?",null,null,null,null,"No",null,null,null,null,null,null,null,null,null,null,{"$f":"F84","v":"No"},{"$f":"A84","v":"D2. Are any family planning commodities subject to duties, import taxes, or other fees?"}]
[null,"a. If yes, for which sectors (public, NGO, social marketing, commercial)?",null,null,"N/A",null,null,null,null,null,null,null,{"$f":"E85","v":"N/A"},{"$f":"E85","v":"N/A"},null,null,null,{"$f":"B85","v":"a. If yes, for which sectors (public, NGO, social marketing, commercial)?"}]
[null,"b. If yes, how much are the duties, taxes, or fees?",null,null,"N/A",null,null,null,null,null,null,null,null,{"$f":"E86","v":"N/A"},null,null,null,{"$f":"B86","v":"b. If yes, how much are the duties, taxes, or fees?"}]
["D3. Are there policies that hinder the ability of the private sector (commercial sector, NGOs, or social marketing) to provide contraceptive methods (for example: price controls, distribution limitations, taxes/duties, advertising bans, etc.)?",null,null,null,null,null,null,"Yes",{"$f":"A87","v":"D3. Are there policies that hinder the ability of the private sector (commercial sector, NGOs, or social marketing) to provide contraceptive methods (for example: price controls, distribution limitations, taxes/duties, advertising bans, etc.)?"}]
[null,"a. If yes, describe the policies.",null,"In April 2009, the Parliament of Honduras approved a bill prohibiting the promotion, commercialization, free diistribution and use of EC pills. The bill also prohibits the dissemination of information about the use of contraceptive pills for EC.",null,null,null,null,null,null,{"$f":"B88","v":"a. If yes, describe the policies."},null,null,null,{"$f":"D88","v":"In April 2009, the Parliament of Honduras approved a bill prohibiting the promotion, commercialization, free diistribution and use of EC pills. The bill also prohibits the dissemination of information about the use of contraceptive pills for EC."}]
["D4. Are there policies that enable the private sector (commercial sector, NGOs, or social marketing) to provide contraceptive methods?",null,null,null,null,null,null,"Yes",{"$f":"A89","v":"D4. Are there policies that enable the private sector (commercial sector, NGOs, or social marketing) to provide contraceptive methods?"}]
[null,"a. If yes, describe the policies.",null,"Free market strategy",null,null,null,null,null,null,{"$f":"B90","v":"a. If yes, describe the policies."},null,null,null,{"$f":"D90","v":"Free market strategy"}]
["D5. Do policies or regulations exist that restrict who can sell or dispense particular contraceptive methods?\n",null,null,null,null,null,null,"Yes",{"$f":"A91","v":"D5. Do policies or regulations exist that restrict who can sell or dispense particular contraceptive methods?\n"}]
[null,"Please note any restrictions in the following table."]
[null,"Contraceptive Method(s)",null,null,"Describe any public sector restriction on who is allowed to sell or dispense the method",null,"Describe any private sector restriction on who is allowed to sell or dispense the method",null,null,{"$f":"G93","v":"Describe any private sector restriction on who is allowed to sell or dispense the method"},null,null,null,null,null,{"$f":"B93","v":"Contraceptive Method(s)"},null,null,null,null,{"$f":"E93","v":"Describe any public sector restriction on who is allowed to sell or dispense the method"}]
[null,"a","Emergency contraception (EC)",null,"In April 2009, the Parliament of Honduras approved a bill prohibiting the promotion, commercialization, free diistribution, and use of EC pills. The bill also prohibits the dissemination of information about the use of contraceptive pills for EC.",null,"In April 2009, the Parliament of Honduras approved a bill prohibiting the promotion, commercialization, free diistribution, and use of EC pills. The bill also prohibits the dissemination of information about the use of contraceptive pills for EC.",null,null,{"$f":"G94","v":"In April 2009, the Parliament of Honduras approved a bill prohibiting the promotion, commercialization, free diistribution, and use of EC pills. The bill also prohibits the dissemination of information about the use of contraceptive pills for EC."},null,null,{"$f":"E94","v":"In April 2009, the Parliament of Honduras approved a bill prohibiting the promotion, commercialization, free diistribution, and use of EC pills. The bill also prohibits the dissemination of information about the use of contraceptive pills for EC."},null,null,{"$f":"C94","v":"Emergency contraception (EC)"},null,null,null,null,{"$f":"E94","v":"In April 2009, the Parliament of Honduras approved a bill prohibiting the promotion, commercialization, free diistribution, and use of EC pills. The bill also prohibits the dissemination of information about the use of contraceptive pills for EC."}]
[null,"b","All contraceptive methods",null,"According to the Honduran Health Code, medications (including contraceptives) can only be sold in pharmacies or authorized sale points.",null,"According to the Honduran Health Code, medications (including contraceptives) can only be sold in pharmacies or authorized sale points.",null,null,{"$f":"G95","v":"According to the Honduran Health Code, medications (including contraceptives) can only be sold in pharmacies or authorized sale points."},null,null,{"$f":"E95","v":"According to the Honduran Health Code, medications (including contraceptives) can only be sold in pharmacies or authorized sale points."},null,null,{"$f":"C95","v":"All contraceptive methods"},null,null,null,null,{"$f":"E95","v":"According to the Honduran Health Code, medications (including contraceptives) can only be sold in pharmacies or authorized sale points."}]
[null,"c",null,null,null,null,null,null,null,{"$f":"G96","v":0},null,null,{"$f":"E96","v":0},null,null,{"$f":"C96","v":0},null,null,null,null,{"$f":"E96","v":0}]
[null,null,null,null,null,null,null,null,null,null,{"$f":"C97","v":0}]
["D6. Does the country have laws, regulations, or policies that make it difficult for the following sub-populations to access effective family planning services?",null,null,"Y/N","If yes, describe laws/regulations/policies affecting access ",null,null,"Are the rules/policies implemented?",null,null,{"$f":"A98","v":"D6. Does the country have laws, regulations, or policies that make it difficult for the following sub-populations to access effective family planning services?"},null,null,null,null,null,null,null,null,null,null,{"$f":"E98","v":"If yes, describe laws/regulations/policies affecting access "}]
[null,"a. Unmarried people",null,"No",null,null,null,null,null,null,{"$f":"B99","v":"a. Unmarried people"},null,{"$f":"E99","v":0},null,null,null,null,null,null,null,null,{"$f":"E99","v":0}]
[null,"b. Young people",null,"No",null,null,null,null,null,null,{"$f":"B100","v":"b. Young people"},null,{"$f":"E100","v":0},null,null,null,null,null,null,null,null,{"$f":"E100","v":0}]
[null,"c. Other",null,"No",null,null,null,null,null,null,{"$f":"B101","v":"c. Other"},null,{"$f":"E101","v":0},null,null,null,null,null,null,null,null,{"$f":"E101","v":0}]
[null,null,null,null,null,null,null,null,null,null,{"$f":"C102","v":0}]
["D7. Are there charges* to the client in the public sector for family planning:\n*(This question refers to charges by policy, not under-the-table charges.)\n",null,null,null,null,null,null,null,null,null,null,null,null,null,null,null,null,null,null,null,null,null,null,{"$f":"A103","v":"D7. Are there charges* to the client in the public sector for family planning:\n*(This question refers to charges by policy, not under-the-table charges.)\n"}]
[null,"a. Services?",null,null,null,null,"No",null,null,{"$f":"G104","v":"No"},null,null,null,null,null,null,null,null,null,null,null,null,null,null,{"$f":"B104","v":"a. Services?"}]
[null,"b. Commodities?",null,null,null,null,"No",null,null,{"$f":"G105","v":"No"},null,null,null,null,null,null,null,null,null,null,null,null,null,null,{"$f":"B105","v":"b. Commodities?"}]
[null,"c. If yes, are there exemptions for people who cannot afford to pay?",null,null,null,null,"N/A",null,null,{"$f":"G106","v":"N/A"},null,null,null,null,null,null,null,null,null,null,null,null,null,null,{"$f":"B106","v":"c. If yes, are there exemptions for people who cannot afford to pay?"}]
[null,null,"i. If yes, describe the exemptions.","N/A",null,null,null,null,null,null,{"$f":"C107","v":"i. If yes, describe the exemptions."},null,null,null,{"$f":"D107","v":"N/A"}]
["D8. Are the following contraceptives included in the country's National Essential Medicine List (NEML) or other equivalent priority list?",null,null,null,null,null,null,null,null,null,null,null,null,null,null,null,null,null,null,null,null,null,null,{"$f":"A108","v":"D8. Are the following contraceptives included in the country's National Essential Medicine List (NEML) or other equivalent priority list?"}]
[null,"a. Combined oral contraceptives",null,null,null,null,"Yes",null,null,{"$f":"G109","v":"Yes"},null,null,null,null,null,null,null,null,null,null,null,null,null,null,{"$f":"B109","v":"a. Combined oral contraceptives"}]
[null,"b. Progestin-only pills",null,null,null,null,"Yes",null,null,"Yes",null,null,null,null,null,null,null,null,null,null,null,null,null,null,"b. Progestin-only pills"]
[null,"c. Hormonal injections",null,null,null,null,"Yes",null,null,"Yes",null,null,null,null,null,null,null,null,null,null,null,null,null,null,"c. Hormonal injections"]
[null,"d. Hormonal implants",null,null,null,null,"No",null,null,"No",null,null,null,null,null,null,null,null,null,null,null,null,null,null,"d. Hormonal implants"]
[null,"e. Intrauterine devices (IUDs)",null,null,null,null,"Yes",null,null,"Yes",null,null,null,null,null,null,null,null,null,null,null,null,null,null,"e. Intrauterine devices (IUDs)"]
[null,"f. Male condoms",null,null,null,null,"Yes",null,null,"Yes",null,null,null,null,null,null,null,null,null,null,null,null,null,null,"f. Male condoms"]
[null,"g. Female condoms",null,null,null,null,"No",null,null,"No",null,null,null,null,null,null,null,null,null,null,null,null,null,null,"g. Female condoms"]
[null,"h. Emergency contraceptive pills",null,null,null,null,"No",null,null,"No",null,null,null,null,null,null,null,null,null,null,null,null,null,null,"h. Emergency contraceptive pills"]
[null,"i. CycleBeads",null,null,null,null,"No",null,null,{"$f":"G117","v":"No"},null,null,null,null,null,null,null,null,null,null,null,null,null,null,{"$f":"B117","v":"i. CycleBeads"}]
[null,"j. Any other contraceptive(s)?",null,null,null,null,"Don't know",null,null,"Don't know",null,null,null,null,null,null,null,null,null,null,null,null,null,null,"j. Any other contraceptive(s)?"]
[null,null,"i. Name of other contraceptive(s) on the list(s)",null,null,"Don't know",null,null,null,0,null,null,null,null,null,null,null,{"$f":"B119","v":0}]
["D9. What year(s) is the list(s) from?",null,null,null,null,2007,null,null,null,0,null,null,null,null,null,null,null,{"$f":"B120","v":0}]
["D10. Name of the list(s)\n\n\n",null,null,"National Essential Medicines List (NEML)",null,null,null,null,null,null,{"$f":"A121","v":"D10. Name of the list(s)\n\n\n"},null,null,null,{"$f":"D121","v":"National Essential Medicines List (NEML)"}]
["D11. Notes about the list(s)\n\n\n",null,null,null,null,null,null,null,null,null,{"$f":"A122","v":"D11. Notes about the list(s)\n\n\n"},null,null,null,{"$f":"D122","v":0}]
["D12.  Information on country's Poverty Reduction Strategy Paper (PRSP)\n",null,null,null,null,null,null,null,null,null,null,null,null,null,null,null,null,null,null,null,null,null,null,{"$f":"A123","v":"D12.  Information on country's Poverty Reduction Strategy Paper (PRSP)\n"}]
[null,"a. What year is the Poverty Reduction Strategy Paper from? (most recent actual PRSP on IMF's site [not progress or summary report])",null,null,null,2001,null,null,null,{"$f":"G124","v":0},null,null,null,null,null,null,null,{"$f":"B124","v":"a. What year is the Poverty Reduction Strategy Paper from? (most recent actual PRSP on IMF's site [not progress or summary report])"}]
[null,"b. Is family planning or reproductive health a priority in the PRSP?",null,null,null,null,"Yes",null,null,{"$f":"G125","v":"Yes"},null,null,null,null,null,null,null,null,null,null,null,null,null,null,{"$f":"B125","v":"b. Is family planning or reproductive health a priority in the PRSP?"}]
[null,"c. Is contraceptive security included in the PRSP?",null,null,null,null,"No",null,null,{"$f":"G126","v":"No"},null,null,null,null,null,null,null,null,null,null,null,null,null,null,{"$f":"B126","v":"c. Is contraceptive security included in the PRSP?"}]
[null,"d. Is contraceptive prevalence rate (CPR) included as an indicator in the PRSP?",null,null,null,null,"No",null,null,{"$f":"G127","v":"No"},null,null,null,null,null,null,null,null,null,null,null,null,null,null,{"$f":"B127","v":"d. Is contraceptive prevalence rate (CPR) included as an indicator in the PRSP?"}]
[null,"e. Are contraceptive supply indicators included in the PRSP?",null,null,null,null,"No",null,null,{"$f":"G128","v":"No"},null,null,null,null,null,null,null,null,null,null,null,null,null,null,{"$f":"B128","v":"e. Are contraceptive supply indicators included in the PRSP?"}]
["\n\n\n","f. Notes about the Poverty Reduction Strategy Paper",null,"While family planning and reproductive health are not explicitly mentioned as \"priorities,\" they seem to be. There is a goal to increase contraceptive prevalence, and both the maternal mortality rate and the number of women in reproductive health programs are included as indicators in order to \"provide greater attention to women's health conditions\".  ",null,null,null,null,null,null,{"$f":"B129","v":"f. Notes about the Poverty Reduction Strategy Paper"},null,null,null,{"$f":"D129","v":"While family planning and reproductive health are not explicitly mentioned as \"priorities,\" they seem to be. There is a goal to increase contraceptive prevalence, and both the maternal mortality rate and the number of women in reproductive health programs are included as indicators in order to \"provide greater attention to women's health conditions\".  "}]
["E. Supply Chain (Capacity)"]
["E1. Have stockouts occurred for any contraceptive at the central* level in the last 12 months?  \n*(The central level refers to the central level warehouse for the public sector.)",null,null,null,null,null,"Yes",null,null,{"$f":"G131","v":"Yes"},null,null,null,null,null,null,null,null,null,null,null,null,null,null,{"$f":"A131","v":"E1. Have stockouts occurred for any contraceptive at the central* level in the last 12 months?  \n*(The central level refers to the central level warehouse for the public sector.)"}]
["E2. In the last 12 months, has there ever been a stockout at the central level of any of the contraceptives offered in public sector facilities? (If a method is not intended to be offered in public sector facilities, please indicate that stockouts are not applicable (choose \"N/A\" from the dropdown list).)",null,null,null,null,null,null,null,null,null,null,null,null,null,null,null,null,null,null,null,null,null,null,{"$f":"A132","v":"E2. In the last 12 months, has there ever been a stockout at the central level of any of the contraceptives offered in public sector facilities? (If a method is not intended to be offered in public sector facilities, please indicate that stockouts are not applicable (choose \"N/A\" from the dropdown list).)"}]
[null,"a. Combined oral contraceptives",null,null,null,null,"No",null,null,{"$f":"G133","v":"No"},null,null,null,null,null,null,null,null,null,null,null,null,null,null,{"$f":"B133","v":"a. Combined oral contraceptives"}]
[null,"b. Progestin-only pills",null,null,null,null,"N/A",null,null,"N/A",null,null,null,null,null,null,null,null,null,null,null,null,null,null,"b. Progestin-only pills"]
[null,"c. Hormonal injections",null,null,null,null,"Yes",null,null,"Yes",null,null,null,null,null,null,null,null,null,null,null,null,null,null,"c. Hormonal injections"]
[null,"d. Hormonal implants",null,null,null,null,"N/A",null,null,"N/A",null,null,null,null,null,null,null,null,null,null,null,null,null,null,"d. Hormonal implants"]
[null,"e. Intrauterine devices (IUDs)",null,null,null,null,"Yes",null,null,"Yes",null,null,null,null,null,null,null,null,null,null,null,null,null,null,"e. Intrauterine devices (IUDs)"]
[null,"f. Male condoms",null,null,null,null,"No",null,null,"No",null,null,null,null,null,null,null,null,null,null,null,null,null,null,"f. Male condoms"]
[null,"g. Female condoms",null,null,null,null,"N/A",null,null,"N/A",null,null,null,null,null,null,null,null,null,null,null,null,null,null,"g. Female condoms"]
[null,"h. Emergency contraceptive pills",null,null,null,null,"N/A",null,null,"N/A",null,null,null,null,null,null,null,null,null,null,null,null,null,null,"h. Emergency contraceptive pills"]
[null,"i. CycleBeads",null,null,null,null,"N/A",null,null,"N/A",null,null,null,null,null,null,null,null,null,null,null,null,null,null,"i. CycleBeads"]
[null,"j. Time period\n(mm/yy - mm/yy) (for example, 1/10-12/10) ",null,null,null,"01/10-12/10",null,null,null,null,null,null,null,null,null,null,{"$f":"F142","v":"01/10-12/10"},{"$f":"B142","v":"j. Time period\n(mm/yy - mm/yy) (for example, 1/10-12/10) "}]
[null,"k. Data source\n(for example: Procurement Planning and Monitoring Report, Logistics Management Information System, periodic physical inventory, warehouse reports)",null,null,null,"PipeLine report",null,null,null,null,null,null,null,null,null,null,{"$f":"F143","v":"PipeLine report"},{"$f":"B143","v":"k. Data source\n(for example: Procurement Planning and Monitoring Report, Logistics Management Information System, periodic physical inventory, warehouse reports)"}]
["E3. Are stockouts a large problem in your country at the following levels? (i.e., Are they common or do they tend to last for a long time?)\n\n"]
[null,"a. service delivery point level (i.e., public sector health facilities)",null,null,null,null,"Yes",null,null,{"$f":"G145","v":"Yes"},null,null,null,null,null,null,null,null,null,null,null,null,null,null,{"$f":"B145","v":"a. service delivery point level (i.e., public sector health facilities)"}]
[null,"b. central level (i.e., central level warehouse for the public sector)",null,null,null,null,"No",null,null,{"$f":"G146","v":"No"},null,null,null,null,null,null,null,null,null,null,null,null,null,null,{"$f":"B146","v":"b. central level (i.e., central level warehouse for the public sector)"}]
["F. Please note any overall comments about challenges and/or successes with contraceptive security in your country.\n\n",null,null,"A line item for contraceptive procurement was included in the 2010 national budget. The challenge is to achieve availability of all methods in all health units, thereby improving contraceptive forecasting and distribution processes in accordance with demand. As a separate note, there were periods during 2010 where contraceptive supplies were below minimum, including short periods of injectable and IUD stockouts.",null,null,null,null,null,null,{"$f":"A147","v":"F. Please note any overall comments about challenges and/or successes with contraceptive security in your country.\n\n"},null,null,null,{"$f":"D147","v":"A line item for contraceptive procurement was included in the 2010 national budget. The challenge is to achieve availability of all methods in all health units, thereby improving contraceptive forecasting and distribution processes in accordance with demand. As a separate note, there were periods during 2010 where contraceptive supplies were below minimum, including short periods of injectable and IUD stockouts."}]

{"sheet":"India 2011","index":22,"n_rows":147,"n_cols":25,"rows_kept":147,"cut":false,"hidden":false,"merged":[[8,0,8,7],[147,0,147,7],[148,0,150,7],[145,1,145,5],[145,6,145,7],[146,0,146,2],[146,3,146,7],[141,1,141,4],[141,5,141,7],[142,1,142,4],[142,5,142,7],[143,0,143,7],[144,1,144,5],[144,6,144,7],[138,1,138,5],[138,6,138,7],[139,1,139,5],[139,6,139,7],[140,1,140,5],[131,0,131,7],[132,1,132,5],[132,6,132,7],[133,1,133,5],[133,6,133,7],[134,1,134,5],[134,6,134,7],[140,6,140,7],[135,1,135,5],[135,6,135,7],[136,1,136,5],[136,6,136,7],[137,1,137,5],[137,6,137,7],[120,0,120,2],[120,3,120,7],[121,0,121,2],[121,3,121,7],[129,0,129,6],[130,0,130,5],[130,6,130,7],[122,0,122,7],[123,1,123,4],[123,5,123,7],[115,1,115,5],[115,6,115,7],[116,1,116,5],[116,6,116,7],[117,1,117,5],[117,6,117,7],[118,2,118,4],[118,5,118,7],[119,0,119,4],[119,5,119,7],[110,1,110,5],[110,6,110,7],[111,1,111,5],[111,6,111,7],[112,1,112,5],[112,6,112,7],[113,1,113,5],[113,6,113,7],[114,1,114,5],[114,6,114,7],[104,1,104,5],[104,6,104,7],[105,1,105,5],[105,6,105,7],[106,3,106,7],[107,0,107,7],[108,1,108,5],[108,6,108,7],[109,1,109,5],[109,6,109,7],[98,1,98,2],[98,4,98,6],[99,1,99,2],[99,4,99,6],[100,1,100,2],[100,4,100,6],[101,0,101,7],[102,0,102,7],[103,1,103,5],[103,6,103,7],[94,2,94,3],[94,4,94,5],[94,6,94,7],[95,2,95,3],[95,4,95,5],[95,6,95,7],[96,0,96,7],[97,0,97,2],[97,4,97,6],[88,0,88,6],[89,1,89,2],[89,3,89,7],[90,0,90,6],[91,1,91,2],[92,1,92,3],[92,4,92,5],[92,6,92,7],[93,2,93,3],[93,4,93,5],[93,6,93,7],[83,0,83,4],[83,5,83,7],[84,1,84,3],[84,4,84,7],[85,1,85,3],[85,4,85,7],[86,0,86,6],[87,1,87,2],[87,3,87,7],[77,0,77,2],[77,3,77,7],[78,0,78,6],[79,0,79,6],[80,0,80,2],[81,0,82,0],[81,1,81,2],[81,3,81,4],[81,6,81,7],[82,3,82,4],[82,6,82,7],[72,1,72,2],[72,3,72,4],[73,1,73,2],[73,3,73,4],[74,1,74,2],[74,3,74,4],[75,1,75,2],[75,3,75,4],[76,1,76,2],[76,3,76,4],[67,1,67,2],[67,3,67,4],[68,1,68,2],[68,3,68,4],[69,1,69,2],[69,3,69,4],[70,1,70,2],[70,3,70,4],[71,1,71,2],[71,3,71,4],[61,0,61,2],[61,3,61,7],[62,0,62,6],[63,0,63,7],[64,0,64,2],[64,3,64,4],[65,1,65,2],[65,3,65,4],[66,1,66,2],[66,3,66,4],[55,0,55,4],[55,6,55,7],[56,0,56,4],[56,6,56,7],[58,0,58,4],[58,5,58,7],[59,1,59,4],[59,5,59,7],[60,2,60,4],[60,5,60,7],[41,1,41,2],[42,3,42,7],[43,1,43,2],[51,1,51,2],[53,0,53,7],[54,0,54,4],[54,6,54,7],[45,0,45,7],[46,1,46,2],[47,1,47,2],[48,3,48,7],[49,1,49,2],[50,1,50,2],[32,0,32,7],[33,1,33,3],[34,1,34,3],[35,0,35,7],[36,0,36,6],[37,0,37,7],[38,1,38,2],[39,1,39,2],[40,3,40,7],[26,0,26,6],[27,0,27,2],[27,3,27,4],[28,0,28,5],[28,6,28,7],[29,0,29,3],[29,6,29,7],[30,0,30,6],[31,0,31,6],[20,1,20,2],[20,5,20,7],[21,1,21,2],[21,5,21,7],[22,1,22,2],[22,5,22,7],[23,0,23,6],[24,0,24,6],[25,0,25,2],[15,1,15,2],[15,5,15,7],[16,1,16,2],[16,5,16,7],[17,1,17,2],[17,5,17,7],[18,1,18,2],[18,5,18,7],[19,1,19,2],[19,5,19,7],[9,0,9,7],[10,0,10,6],[11,0,11,6],[12,1,12,2],[12,3,12,7],[13,0,13,2],[13,3,13,7],[14,1,14,2],[14,5,14,7],[7,0,7,2],[7,3,7,5],[7,6,7,7],[0,0,0,7],[1,0,1,2],[1,3,1,4],[2,0,2,7],[3,3,3,4],[3,5,3,7],[4,0,4,2],[5,0,5,2],[127,1,127,5],[127,6,127,7],[128,1,128,2],[128,3,128,7],[124,1,124,5],[124,6,124,7],[125,1,125,5],[125,6,125,7],[126,1,126,5],[126,6,126,7]]}
[null,null,null,null,null,null,null,null,"Columns I-Y are meant to be hidden. They exist because they allow for the dropdown list options. They also allow for merged cells to autofit properly in terms of row height. This should work if all columns remain at their correct widths.","g-h",null,"a-e merged","E-F merged","e-h","0 times",null,null,"The government (e.g., Central Medical Stores, MOH logistics unit, MOH procurement unit)",null,null,null,null,"Yes","a-h","January"]
[null,null,null,null,null,null,null,null,null,null,"A-c",null,null,null,"1-2 times","b-d merged",null,"Third-party agent (e.g., UNFPA, Crown Agents)","d-e merged","d-f merged","e-f merged","e-g merged","No",null,"February"]
[null,null,null,null,null,null,null,null,null,null,null,null,null,null,"3-5 times",null,null,"The government and a third-party agent",null,null,null,null,null,null,"March"]
[null,null,null,null,null,null,null,null,null,null,null,null,null,null,"6 or more times",null,null,"Other",null,null,null,null,"N/A",null,"April"]
["To jump to the Introduction sheet, click here.",null,null,null,null,null,null,null,null,null,null,null,null,null,null,null,null,null,null,null,null,null,"Don't know",null,"May"]
[null,null,null,null,null,null,null,null,null,null,null,null,null,null,"N/A",null,null,"N/A",null,null,null,null,null,null,"June"]
["Contraceptive Security (CS) Indicators 2011 Data ",null,null,null,null,null,null,null,null,null,null,null,null,null,"Don't know",null,null,"Don't know",null,null,null,null,null,null,"July"]
["Country: India",null,null,null,null,null,null,null,null,{"$f":"G8","v":0},{"$f":"A8","v":"Country: India"},null,null,null,null,"or c-d",null,null,null,{"$f":"D8","v":0},null,null,null,null,"August"]
["The CS Indicators are presented in the following sections:\n\n               A. leadership & cooordination               B. finance & procurement               C. commodities               D. policies               E. supply chain",null,null,null,null,null,null,null,null,{"$f":"G9","v":0},{"$f":"A9","v":"The CS Indicators are presented in the following sections:\n\n               A. leadership & cooordination               B. finance & procurement               C. commodities               D. policies               E. supply chain"},null,null,null,"d-h",null,"f-h merged",null,{"$f":"D9","v":0},null,null,null,null,null,"September"]
["\nNotes:\n  -  Respondents' answers are indicated in the white spaces. \n  -  N/A = not applicable. Don't know = the respondent either indicated they did not know or left the answer blank.\n  -  Some questions required respondents to choose from a dropdown list of options; in these cases the dropdown arrow will \n     appear when you click on the cell. \n  -  There may be a few inserted comments. (If you cannot already see them, click on Review tab - Comments group - Show All Comments in newer \n       versions of Excel or View - Comments in older versions of Excel.)\n  -  If the answer is cut off, you can either manually adjust the row height or autofit the row height in order to see the whole \n     response. (To autofit the row height, select the answer(s) and go to Home tab - Cells group - Format - Autofit Row Height in newer versions of Excel or \n      Format - Row - Autofit in older versions of Excel.)\n",null,null,null,null,null,null,null,"a-g",null,null,null,null,null,null,null,null,"a-e merged",null,null,null,null,null,{"$f":"A10","v":"\nNotes:\n  -  Respondents' answers are indicated in the white spaces. \n  -  N/A = not applicable. Don't know = the respondent either indicated they did not know or left the answer blank.\n  -  Some questions required respondents to choose from a dropdown list of options; in these cases the dropdown arrow will \n     appear when you click on the cell. \n  -  There may be a few inserted comments. (If you cannot already see them, click on Review tab - Comments group - Show All Comments in newer \n       versions of Excel or View - Comments in older versions of Excel.)\n  -  If the answer is cut off, you can either manually adjust the row height or autofit the row height in order to see the whole \n     response. (To autofit the row height, select the answer(s) and go to Home tab - Cells group - Format - Autofit Row Height in newer versions of Excel or \n      Format - Row - Autofit in older versions of Excel.)\n"},"October"]
["A. Leadership and Coordination",null,null,null,null,null,null,null,null,null,null,null,null,null,null,null,null,null,null,null,null,null,null,null,"November"]
["A1. Is there a national committee that works on contraceptive security? (Please select from the dropdown list.)\n(Committee should have some aspect of contraceptive security as part of its Terms of Reference, even if it is known by a different name, for example: Family Planning, Reproductive Health, Maternal Mortality, Essential Medicine Committee, etc.)  ",null,null,null,null,null,null,"Yes",{"$f":"A12","v":"A1. Is there a national committee that works on contraceptive security? (Please select from the dropdown list.)\n(Committee should have some aspect of contraceptive security as part of its Terms of Reference, even if it is known by a different name, for example: Family Planning, Reproductive Health, Maternal Mortality, Essential Medicine Committee, etc.)  "},null,null,null,null,null,null,null,null,null,null,null,null,null,null,null,"December"]
[null,"a. What is the name of the committee?",null,"Supply and Social Marketing Division of the Ministry of Health and Family Welfare",null,null,null,null,null,null,{"$f":"B13","v":"a. What is the name of the committee?"},{"$f":"D13","v":"Supply and Social Marketing Division of the Ministry of Health and Family Welfare"},null,null,{"$f":"D13","v":"Supply and Social Marketing Division of the Ministry of Health and Family Welfare"}]
["A2. Are the following organizations represented on the committee?",null,null,"(Y/N \ndropdown)",null,null,null,null,null,null,{"$f":"A14","v":"A2. Are the following organizations represented on the committee?"},null,null,null,null,null,null,null,null,null,null,null,null,null,"Don't know"]
[null,"a. Social marketing",null,"No","If yes, specify name(s) of organizations",null,null,null,null,null,{"$f":"B15","v":"a. Social marketing"},null,null,null,null,null,{"$f":"F15","v":0}]
[null,"b. NGO (for example: service delivery, advocacy, Planned Parenthood affiliate, Marie Stopes affiliate, faith-based organizations, etc.)",null,"No","If yes, specify name(s) of organizations",null,null,null,null,null,"b. NGO (for example: service delivery, advocacy, Planned Parenthood affiliate, Marie Stopes affiliate, faith-based organizations, etc.)",null,null,null,null,null,0]
[null,"c. Commercial sector (for example: pharmacy associations, manufacturers, etc.)",null,"No","If yes, specify name(s) of organizations",null,null,null,null,null,"c. Commercial sector (for example: pharmacy associations, manufacturers, etc.)",null,null,null,null,null,0]
[null,"d. Donors",null,"No","If yes, specify name(s) of donors",null,null,null,null,null,"d. Donors",null,null,null,null,null,0]
[null,"e. UN agencies",null,"No","If yes, specify name(s) of agencies",null,null,null,null,null,"e. UN agencies",null,null,null,null,null,0]
[null,"f. Ministry of Health (for example: logistics, reproductive health, family planning, maternal and child health, HIV/AIDS, pharmacy units, etc.)",null,"Yes","If yes, specify name(s) of units","Supply and Social Maketing Division of the Ministry of Health and Family Welfare",null,null,null,null,"f. Ministry of Health (for example: logistics, reproductive health, family planning, maternal and child health, HIV/AIDS, pharmacy units, etc.)",null,null,null,null,null,"Supply and Social Maketing Division of the Ministry of Health and Family Welfare"]
[null,"g. Central Medical Store or Central Warehouse",null,"No","If yes, specify",null,null,null,null,null,"g. Central Medical Store or Central Warehouse",null,null,null,null,null,0]
[null,"h. Ministry of Finance or Ministry of Planning ",null,"No","If yes, specify",null,null,null,null,null,"h. Ministry of Finance or Ministry of Planning ",null,null,null,null,null,0]
[null,"i. Other (for example: partners)",null,"No","If yes, specify",null,null,null,null,null,"i. Other (for example: partners)",null,null,null,null,null,0]
["A3. How many times did the committee meet during the last year? (0, 1-2, 3-5, or 6+)  (Please select from the dropdown.)",null,null,null,null,null,null,"3-5 times",{"$f":"A24","v":"A3. How many times did the committee meet during the last year? (0, 1-2, 3-5, or 6+)  (Please select from the dropdown.)"}]
["A4. Does the committee have legal status?  (Please select from the dropdown.)                                  ",null,null,null,null,null,null,"Yes",{"$f":"A25","v":"A4. Does the committee have legal status?  (Please select from the dropdown.)                                  "}]
["A5. Is there a Contraceptive Security \"champion\"? (someone who consistently brings up and advocates for contraceptive supplies)",null,null,"Yes","If yes, specify person's organization","Government of India","Specify person's job title","Director, Procurement Division",null,null,{"$f":"A26","v":"A5. Is there a Contraceptive Security \"champion\"? (someone who consistently brings up and advocates for contraceptive supplies)"}]
["B. Finance and Procurement (Capital)"]
["B1. What is the timeline of the country's fiscal year?",null,null,"Beginning month",null,"April","Ending month","March",null,null,{"$f":"B28","v":0}]
["B2. What was the estimated dollar value of contraceptives needed to be procured for the public sector for the most recent complete fiscal year? (in USD currency)\n(for example, to cover the needs for the '09-'10 fiscal year)",null,null,null,null,null,"Don't know",null,null,{"$f":"G29","v":"Don't know"},null,null,{"$f":"E29","v":0},null,null,null,null,null,null,null,null,null,null,null,{"$f":"A29","v":"B2. What was the estimated dollar value of contraceptives needed to be procured for the public sector for the most recent complete fiscal year? (in USD currency)\n(for example, to cover the needs for the '09-'10 fiscal year)"}]
["B3. When was the last forecast/quantification conducted? (mm/yy)",null,null,null,"02/10","Who conducted it? (Specify organization.)","Ministry of Health and Family Welfare",null,null,{"$f":"G30","v":"Ministry of Health and Family Welfare"},null,null,{"$f":"E30","v":"02/10"},null,null,null,null,null,null,null,null,null,null,null,{"$f":"A30","v":"B3. When was the last forecast/quantification conducted? (mm/yy)"}]
["B4. Is there a government budget line item for the procurement of contraceptives?  (Please select from the dropdown list.)",null,null,null,null,null,null,"Yes",{"$f":"A31","v":"B4. Is there a government budget line item for the procurement of contraceptives?  (Please select from the dropdown list.)"}]
["B5. Were government funds allocated for contraceptive procurement for the public sector in the most recent complete fiscal year? (This question refers to funds planned to be spent on contraceptives, whether or not they ended up being spent.) \n\n(Government funds include internally generated funds, basket funds, World Bank credits or loans, and other funds donors gave to the government for their use.) \n",null,null,null,null,null,null,"Yes",{"$f":"A32","v":"B5. Were government funds allocated for contraceptive procurement for the public sector in the most recent complete fiscal year? (This question refers to funds planned to be spent on contraceptives, whether or not they ended up being spent.) \n\n(Government funds include internally generated funds, basket funds, World Bank credits or loans, and other funds donors gave to the government for their use.) \n"}]
["B6. Please complete the table below regarding government allocations for contraceptive procurement.",null,null,null,null,null,null,null,null,null,null,null,null,null,null,null,null,null,null,null,null,null,null,{"$f":"A33","v":"B6. Please complete the table below regarding government allocations for contraceptive procurement."}]
[null,null,null,null,"Amount allocated \n(in USD)","Time period during which allocations were supposed to be spent \n(mm/yy-mm/yy)\n(should ideally be the most recent\ncomplete fiscal year ['09-'10])","Data source \n(for example: Ministry records)","Comments",null,null,{"$f":"A34","v":0}]
[null,"Government funds allocated for contraceptive procurement\n(funds originally designated for contraceptives, whether or not they ended up being spent on them)",null,null,"Don't know","04/10-03/11",null,"Government of India procures contraceptives regularly ",null,null,{"$f":"#REF!","v":{"$error":"#REF!"}}]
[]
["B7. Were government funds spent on contraceptive procurement for the public sector in the most recent complete fiscal year? \n(Government funds include internally generated funds, basket funds, World Bank credits or loans, and other funds donors gave to the government for their use.)",null,null,null,null,null,null,"Yes",{"$f":"A37","v":"B7. Were government funds spent on contraceptive procurement for the public sector in the most recent complete fiscal year? \n(Government funds include internally generated funds, basket funds, World Bank credits or loans, and other funds donors gave to the government for their use.)"}]
["B8. Please complete the table below to indicate government expenditures on contraceptive procurement, by source, in the most recent complete fiscal year. \n(This is how much was spent on contraceptive procurement (not what was allocated). How much of this spending was provided from each source?)",null,null,null,null,null,null,null,null,null,null,null,null,null,null,null,null,null,null,null,null,null,null,{"$f":"A38","v":"B8. Please complete the table below to indicate government expenditures on contraceptive procurement, by source, in the most recent complete fiscal year. \n(This is how much was spent on contraceptive procurement (not what was allocated). How much of this spending was provided from each source?)"}]
[null,"Source of government funds spent on contraceptive procurement for the public sector",null,"Was this source used?\n(Y/N)","Amount spent \n(in USD)","Time period (mm/yy-mm/yy)\n(should be the same for all sources of funds & ideally be the most recent\ncomplete fiscal year ['09-'10])","Data source \n(for example: Contraceptive Procurement Table, PipeLine, etc.)","Comments",null,null,{"$f":"A39","v":0}]
[null,"a. Internally generated funds spent on contraceptive procurement",null,"Yes","Don't know","04/10-03/11",null,"Government of India is self-sufficient in providing contraceptives. These are supplied for free in the government program.",null,null,{"$f":"B40","v":"a. Internally generated funds spent on contraceptive procurement"}]
[null,null,"i. Specify source(s) of internally generated funds spent (for example, from taxes or user fees)","Government of India funds from taxes, etc.",null,null,null,null,null,null,{"$f":"C41","v":"i. Specify source(s) of internally generated funds spent (for example, from taxes or user fees)"},null,null,null,{"$f":"D41","v":"Government of India funds from taxes, etc."}]
[null,"b. Total of all other government funds spent on contraceptive procurement (basket funds, World Bank credits or loans, and other funds donors gave to the government [e.g., direct budget support])",null,"No",0,"04/10-03/11",null,null,null,null,{"$f":"B42","v":"b. Total of all other government funds spent on contraceptive procurement (basket funds, World Bank credits or loans, and other funds donors gave to the government [e.g., direct budget support])"}]
[null,null,"i. Specify source(s) of other government funds spent (for example: basket funding or specific donor)","N/A",null,null,null,null,null,null,{"$f":"C43","v":"i. Specify source(s) of other government funds spent (for example: basket funding or specific donor)"},null,null,null,{"$f":"D43","v":"N/A"}]
[null,"c. TOTAL government funds spent on contraceptive procurement\nThis will auto-calculate.  (It will sum a & b above.)",null,null,"Don't know",null,null,null,null,null,{"$f":"B44","v":"c. TOTAL government funds spent on contraceptive procurement\nThis will auto-calculate.  (It will sum a & b above.)"}]
[null,null,null,null,null,null,null,null,null,null,{"$f":"A45","v":0}]
["B9. Please complete the table below to indicate donor expenditures on contraceptive procurement in the most recent complete fiscal year.\n",null,null,null,null,null,null,null,null,null,null,null,null,null,null,null,null,null,null,null,null,null,null,{"$f":"A46","v":"B9. Please complete the table below to indicate donor expenditures on contraceptive procurement in the most recent complete fiscal year.\n"}]
["\n","Source of donations and donor funds spent on contraceptive procurement for the public sector",null,"Was this a source?\n(Y/N)","Amount of money spent on these procurements \n(in USD)","Time period (mm/yy-mm/yy)\n(should be the same for all sources of funds & ideally be the most recent\ncomplete fiscal year ['09-'10])","Data source \n(for example:  Donor records, Contraceptive Procurement Table, PipeLine, RHInterchange, etc.","Comments",null,null,{"$f":"A47","v":"\n"}]
[null,"a. In-kind donations of contraceptives",null,"No",0,"04/10-03/11",null,"Government of India is self-sufficient in providing contraceptives. These are supplied for free in the government program.",null,null,{"$f":"B48","v":"a. In-kind donations of contraceptives"}]
[null,null,"i. Specify source(s) of in-kind donations ","N/A",null,null,null,null,null,null,{"$f":"C49","v":"i. Specify source(s) of in-kind donations "},null,null,null,{"$f":"D49","v":"N/A"}]
[null,"b. Global Fund donations used to procure condoms",null,"No",0,"04/10-03/11",null,null,null,null,{"$f":"B50","v":"b. Global Fund donations used to procure condoms"}]
[null,"c. Global Fund donations used to procure contraceptives besides condoms",null,"No",0,"04/10-03/11",null,null,null,null,{"$f":"B51","v":"c. Global Fund donations used to procure contraceptives besides condoms"}]
[null,"d. TOTAL value of in-kind donations and Global Fund donations spent on contraceptive procurement\nThis will auto-calculate.  (It will sum a-c above.)",null,null,{"$f":"E48+E50+E51","v":0},null,null,null,null,null,{"$f":"B52","v":"d. TOTAL value of in-kind donations and Global Fund donations spent on contraceptive procurement\nThis will auto-calculate.  (It will sum a-c above.)"}]
[null,null,null,null,null,null,null,null,null,null,{"$f":"A53","v":0}]
["The answers to B10 and B11 should calculate automatically based on the information you provided. Please review the answers to ensure they make sense to you, and if you have additional information to add, please note it in the comments boxes.\n\nIf the answers do not calculate automatically, please provide any relevant information you may have in the comments boxes.\n",null,null,null,null,null,null,null,null,null,null,null,null,null,null,null,null,null,null,null,null,null,null,{"$f":"A54","v":"The answers to B10 and B11 should calculate automatically based on the information you provided. Please review the answers to ensure they make sense to you, and if you have additional information to add, please note it in the comments boxes.\n\nIf the answers do not calculate automatically, please provide any relevant information you may have in the comments boxes.\n"}]
["B10. Government share of funds spent on contraceptive procurement for the public sector - \nOf the total amount spent on contraceptives for the public sector in the most recent complete fiscal year (including government and donor funds), what percent was covered by government funds (including internally generated funds, basket funds, World Bank credits or loans, and other funds given to the government)? \n\nThis will auto-calculate. (It contains the following formula: Total government spending (Question B8c) / Grand total of all spending for public sector contraceptives from the government and donors (Questions B8c+B9d))",null,null,null,null,1,null,null,null,{"$f":"G55","v":0},null,null,null,null,null,null,null,{"$f":"A55","v":"B10. Government share of funds spent on contraceptive procurement for the public sector - \nOf the total amount spent on contraceptives for the public sector in the most recent complete fiscal year (including government and donor funds), what percent was covered by government funds (including internally generated funds, basket funds, World Bank credits or loans, and other funds given to the government)? \n\nThis will auto-calculate. (It contains the following formula: Total government spending (Question B8c) / Grand total of all spending for public sector contraceptives from the government and donors (Questions B8c+B9d))"}]
["B11. Total expenditures on public sector contraceptives as percent of amount that needed to be procured -\nOf the estimated value of the contraceptives needed to be procured for the public sector for the most recent complete fiscal year, what percent was provided by any source (whether government or donor)? \n\nThis will auto-calculate. (It contains the following formula: Grand total of all spending for public sector contraceptives from the government and donors (Questions B8c+B9d) / Value of estimated need for procurement (Question B2))",null,null,null,null,"Don't know","Government of India is self-sufficient in providing contraceptives. These are supplied for free in the government program.",null,null,{"$f":"G56","v":"Government of India is self-sufficient in providing contraceptives. These are supplied for free in the government program."},null,null,null,null,null,null,null,{"$f":"A56","v":"B11. Total expenditures on public sector contraceptives as percent of amount that needed to be procured -\nOf the estimated value of the contraceptives needed to be procured for the public sector for the most recent complete fiscal year, what percent was provided by any source (whether government or donor)? \n\nThis will auto-calculate. (It contains the following formula: Grand total of all spending for public sector contraceptives from the government and donors (Questions B8c+B9d) / Value of estimated need for procurement (Question B2))"}]
["B12. If B11 did not calculate automatically, please answer the following question:\nWas there a funding gap for the public sector in the last complete fiscal year (e.g., 09-'10 fiscal year)?\n(Please select from the dropdown list.)",null,null,null,null,"No","There was no funding gap for procurement of contraceptives during the last fiscal year. ",null,null,{"$f":"G57","v":"There was no funding gap for procurement of contraceptives during the last fiscal year. "},null,null,null,null,null,null,null,{"$f":"A57","v":"B12. If B11 did not calculate automatically, please answer the following question:\nWas there a funding gap for the public sector in the last complete fiscal year (e.g., 09-'10 fiscal year)?\n(Please select from the dropdown list.)"}]
[null,null,null,null,null,null,null,null,null,null,{"$f":"A58","v":0}]
["B13. If the government financed any contraceptive procurement in the most recent complete fiscal year, which entity conducted the procurement(s)? (Please select from the dropdown.)",null,null,null,null,"The government (e.g., Central Medical Stores, MOH logistics unit, MOH procurement unit)",null,null,null,null,null,null,null,null,null,null,{"$f":"F59","v":"The government (e.g., Central Medical Stores, MOH logistics unit, MOH procurement unit)"},{"$f":"A59","v":"B13. If the government financed any contraceptive procurement in the most recent complete fiscal year, which entity conducted the procurement(s)? (Please select from the dropdown.)"}]
[null,"a. Specify entity",null,null,null,"Supply and Social Marketing Division of the Government of India",null,null,null,null,null,null,{"$f":"E60","v":0},null,null,null,{"$f":"F60","v":"Supply and Social Marketing Division of the Government of India"},{"$f":"B60","v":"a. Specify entity"}]
[null,null,"i. Is this a parastatal?",null,null,"No",null,null,null,null,null,null,null,null,null,null,{"$f":"F61","v":"No"},{"$f":"C61","v":"i. Is this a parastatal?"}]
["B14. Please note any additional comments about finance and procurement.\n",null,null,"The National Family Planning Program is a top priority of the Government of India and contraceptives are procured regularly through a central government mechanism. They are available for free in the public sector.",null,null,null,null,null,null,{"$f":"A62","v":"B14. Please note any additional comments about finance and procurement.\n"},null,null,null,{"$f":"D62","v":"The National Family Planning Program is a top priority of the Government of India and contraceptives are procured regularly through a central government mechanism. They are available for free in the public sector."}]
["C. Commodities"]
["C1. Are the following contraceptive methods offered through the commercial sector, public sector, NGOs, or social marketing? (Please indicate which methods are intended to be offered. This question is not asking whether the method is in stock.) \n(Please select from the dropdown list.)",null,null,null,null,null,null,null,null,null,null,null,null,null,null,null,null,null,null,null,null,null,null,{"$f":"A64","v":"C1. Are the following contraceptive methods offered through the commercial sector, public sector, NGOs, or social marketing? (Please indicate which methods are intended to be offered. This question is not asking whether the method is in stock.) \n(Please select from the dropdown list.)"}]
["Contraceptive Method",null,null,"Commercial Sector",null,"Public Sector","NGO","Social Marketing",null,null,{"$f":"A65","v":"Contraceptive Method"}]
[null,"a. Combined oral contraceptives (estrogen + progestin - for  example, LoFemenol, Microgynon)",null,"Yes",null,"Yes","Yes","Yes",null,null,{"$f":"B66","v":"a. Combined oral contraceptives (estrogen + progestin - for  example, LoFemenol, Microgynon)"}]
[null,"b. Progestin-only pills (for example, Ovrette, Microlut)",null,"Yes",null,"No","No","Yes",null,null,{"$f":"B67","v":"b. Progestin-only pills (for example, Ovrette, Microlut)"}]
[null,"c. Hormonal injections (for example, DepoProvera, Noristerat)",null,"Yes",null,"No","Yes","Yes",null,null,"c. Hormonal injections (for example, DepoProvera, Noristerat)"]
[null,"d. Hormonal implants (for example, Jadelle, Implanon)",null,"No",null,"No","No","No",null,null,"d. Hormonal implants (for example, Jadelle, Implanon)"]
[null,"e. Intrauterine devices (IUDs) (for example, Optima Copper T)",null,"Yes",null,"Yes","Yes","Yes",null,null,"e. Intrauterine devices (IUDs) (for example, Optima Copper T)"]
[null,"f. Male condoms",null,"Yes",null,"Yes","Yes","Yes",null,null,"f. Male condoms"]
[null,"g. Female condoms",null,"Yes",null,"No","No","Yes",null,null,"g. Female condoms"]
[null,"h. Emergency contraceptive pills (for example, Postinor)",null,"Yes",null,"Yes","Yes","Yes",null,null,"h. Emergency contraceptive pills (for example, Postinor)"]
[null,"i. Long-acting permanent method for males (vasectomy)",null,"Yes",null,"Yes","Yes","No",null,null,"i. Long-acting permanent method for males (vasectomy)"]
[null,"j. Long-acting permanent method for females (tubal ligation)",null,"Yes",null,"Yes","Yes","No",null,null,"j. Long-acting permanent method for females (tubal ligation)"]
[null,"k. CycleBeads",null,"Yes",null,"No","Yes","Yes",null,null,"k. CycleBeads"]
[null,"l. Other contraceptive methods - specify \n(Please provide the name of the other contraceptive(s) offered, by sector.)",null,null,null,null,null,null,null,null,"l. Other contraceptive methods - specify \n(Please provide the name of the other contraceptive(s) offered, by sector.)"]
["C2. Please note any comments about the commodities offered.",null,null,"1) The decision to include injectable contraceptives in the national\nprogram is still pending. 2) CycleBeads are provided in NGO programs and social marketing in select project sites.3) For the past two years, female condoms have been supplied through the Government of India's social marketing program for female sex workers, through NGOs.  ",null,null,null,null,null,null,{"$f":"A78","v":"C2. Please note any comments about the commodities offered."},null,null,null,{"$f":"D78","v":"1) The decision to include injectable contraceptives in the national\nprogram is still pending. 2) CycleBeads are provided in NGO programs and social marketing in select project sites.3) For the past two years, female condoms have been supplied through the Government of India's social marketing program for female sex workers, through NGOs.  "}]
["D. Policies (Commitment)"]
["D1. Is there a contraceptive security or reproductive health commodity security strategy or is contraceptive security explicitly included in a country strategy? (Please select from the dropdown list.)",null,null,null,null,null,null,"Yes",{"$f":"A80","v":"D1. Is there a contraceptive security or reproductive health commodity security strategy or is contraceptive security explicitly included in a country strategy? (Please select from the dropdown list.)"}]
["IF NO, SKIP TO QUESTION D2."]
[null,"Strategy name",null,"Years Covered (including strategy updates)",null,"Is the strategy formally approved by the Ministry?","Is the contraceptive security strategy being implemented?",null,null,{"$f":"G82","v":"Is the contraceptive security strategy being implemented?"},{"$f":"B82","v":"Strategy name"},null,{"$f":"E82","v":0},null,null,null,null,null,{"$f":"D82","v":"Years Covered (including strategy updates)"}]
[null,"a","National Population Policy ","2000 - 2016",null,"Yes","Yes",null,null,{"$f":"G83","v":"Yes"},{"$f":"B83","v":"a"},null,{"$f":"E83","v":0},null,null,null,null,null,{"$f":"D83","v":"2000 - 2016"}]
["D2. Are any family planning commodities subject to duties, import taxes, or other fees?",null,null,null,null,"No",null,null,null,null,null,null,null,null,null,null,{"$f":"F84","v":"No"},{"$f":"A84","v":"D2. Are any family planning commodities subject to duties, import taxes, or other fees?"}]
[null,"a. If yes, for which sectors (public, NGO, social marketing, commercial)?",null,null,"N/A",null,null,null,null,null,null,null,{"$f":"E85","v":"N/A"},{"$f":"E85","v":"N/A"},null,null,null,{"$f":"B85","v":"a. If yes, for which sectors (public, NGO, social marketing, commercial)?"}]
[null,"b. If yes, how much are the duties, taxes, or fees?",null,null,"N/A",null,null,null,null,null,null,null,null,{"$f":"E86","v":"N/A"},null,null,null,{"$f":"B86","v":"b. If yes, how much are the duties, taxes, or fees?"}]
["D3. Are there policies that hinder the ability of the private sector (commercial sector, NGOs, or social marketing) to provide contraceptive methods (for example: price controls, distribution limitations, taxes/duties, advertising bans, etc.)?",null,null,null,null,null,null,"No",{"$f":"A87","v":"D3. Are there policies that hinder the ability of the private sector (commercial sector, NGOs, or social marketing) to provide contraceptive methods (for example: price controls, distribution limitations, taxes/duties, advertising bans, etc.)?"}]
[null,"a. If yes, describe the policies.",null,"N/A",null,null,null,null,null,null,{"$f":"B88","v":"a. If yes, describe the policies."},null,null,null,{"$f":"D88","v":"N/A"}]
["D4. Are there policies that enable the private sector (commercial sector, NGOs, or social marketing) to provide contraceptive methods?",null,null,null,null,null,null,"Yes",{"$f":"A89","v":"D4. Are there policies that enable the private sector (commercial sector, NGOs, or social marketing) to provide contraceptive methods?"}]
[null,"a. If yes, describe the policies.",null,"Social Marketing Strategy of the Government of India (GoI): GoI provides a product subsidy to select social marketing agencies for promoting socially marketed products and market segmentation, so that the free supplies are made available for the poor.",null,null,null,null,null,null,{"$f":"B90","v":"a. If yes, describe the policies."},null,null,null,{"$f":"D90","v":"Social Marketing Strategy of the Government of India (GoI): GoI provides a product subsidy to select social marketing agencies for promoting socially marketed products and market segmentation, so that the free supplies are made available for the poor."}]
["D5. Do policies or regulations exist that restrict who can sell or dispense particular contraceptive methods?\n",null,null,null,null,null,null,"Yes",{"$f":"A91","v":"D5. Do policies or regulations exist that restrict who can sell or dispense particular contraceptive methods?\n"}]
[null,"Please note any restrictions in the following table."]
[null,"Contraceptive Method(s)",null,null,"Describe any public sector restriction on who is allowed to sell or dispense the method",null,"Describe any private sector restriction on who is allowed to sell or dispense the method",null,null,{"$f":"G93","v":"Describe any private sector restriction on who is allowed to sell or dispense the method"},null,null,null,null,null,{"$f":"B93","v":"Contraceptive Method(s)"},null,null,null,null,{"$f":"E93","v":"Describe any public sector restriction on who is allowed to sell or dispense the method"}]
[null,"a","Injectables",null,"N/A - Injectables not available in the public sector. Injectables should ideally be included in the Government family planning program.",null,"Qualified allopathic private practitioners are allowed to provide the injectable contraceptive. ",null,null,{"$f":"G94","v":"Qualified allopathic private practitioners are allowed to provide the injectable contraceptive. "},null,null,{"$f":"E94","v":"N/A - Injectables not available in the public sector. Injectables should ideally be included in the Government family planning program."},null,null,{"$f":"C94","v":"Injectables"},null,null,null,null,{"$f":"E94","v":"N/A - Injectables not available in the public sector. Injectables should ideally be included in the Government family planning program."}]
[null,"b",null,null,null,null,null,null,null,{"$f":"G95","v":0},null,null,{"$f":"E95","v":0},null,null,{"$f":"C95","v":0},null,null,null,null,{"$f":"E95","v":0}]
[null,"c",null,null,null,null,null,null,null,{"$f":"G96","v":0},null,null,{"$f":"E96","v":0},null,null,{"$f":"C96","v":0},null,null,null,null,{"$f":"E96","v":0}]
[null,null,null,null,null,null,null,null,null,null,{"$f":"C97","v":0}]
["D6. Does the country have laws, regulations, or policies that make it difficult for the following sub-populations to access effective family planning services?",null,null,"Y/N","If yes, describe laws/regulations/policies affecting access ",null,null,"Are the rules/policies implemented?",null,null,{"$f":"A98","v":"D6. Does the country have laws, regulations, or policies that make it difficult for the following sub-populations to access effective family planning services?"},null,null,null,null,null,null,null,null,null,null,{"$f":"E98","v":"If yes, describe laws/regulations/policies affecting access "}]
[null,"a. Unmarried people",null,"No",null,null,null,null,null,null,{"$f":"B99","v":"a. Unmarried people"},null,{"$f":"E99","v":0},null,null,null,null,null,null,null,null,{"$f":"E99","v":0}]
[null,"b. Young people",null,"No",null,null,null,null,null,null,{"$f":"B100","v":"b. Young people"},null,{"$f":"E100","v":0},null,null,null,null,null,null,null,null,{"$f":"E100","v":0}]
[null,"c. Other",null,"No",null,null,null,null,null,null,{"$f":"B101","v":"c. Other"},null,{"$f":"E101","v":0},null,null,null,null,null,null,null,null,{"$f":"E101","v":0}]
[null,null,null,null,null,null,null,null,null,null,{"$f":"C102","v":0}]
["D7. Are there charges* to the client in the public sector for family planning:\n*(This question refers to charges by policy, not under-the-table charges.)\n",null,null,null,null,null,null,null,null,null,null,null,null,null,null,null,null,null,null,null,null,null,null,{"$f":"A103","v":"D7. Are there charges* to the client in the public sector for family planning:\n*(This question refers to charges by policy, not under-the-table charges.)\n"}]
[null,"a. Services?",null,null,null,null,"No",null,null,{"$f":"G104","v":"No"},null,null,null,null,null,null,null,null,null,null,null,null,null,null,{"$f":"B104","v":"a. Services?"}]
[null,"b. Commodities?",null,null,null,null,"No",null,null,{"$f":"G105","v":"No"},null,null,null,null,null,null,null,null,null,null,null,null,null,null,{"$f":"B105","v":"b. Commodities?"}]
[null,"c. If yes, are there exemptions for people who cannot afford to pay?",null,null,null,null,"N/A",null,null,{"$f":"G106","v":"N/A"},null,null,null,null,null,null,null,null,null,null,null,null,null,null,{"$f":"B106","v":"c. If yes, are there exemptions for people who cannot afford to pay?"}]
[null,null,"i. If yes, describe the exemptions.","N/A",null,null,null,null,null,null,{"$f":"C107","v":"i. If yes, describe the exemptions."},null,null,null,{"$f":"D107","v":"N/A"}]
["D8. Are the following contraceptives included in the country's National Essential Medicine List (NEML) or other equivalent priority list?",null,null,null,null,null,null,null,null,null,null,null,null,null,null,null,null,null,null,null,null,null,null,{"$f":"A108","v":"D8. Are the following contraceptives included in the country's National Essential Medicine List (NEML) or other equivalent priority list?"}]
[null,"a. Combined oral contraceptives",null,null,null,null,"Yes",null,null,{"$f":"G109","v":"Yes"},null,null,null,null,null,null,null,null,null,null,null,null,null,null,{"$f":"B109","v":"a. Combined oral contraceptives"}]
[null,"b. Progestin-only pills",null,null,null,null,"No",null,null,"No",null,null,null,null,null,null,null,null,null,null,null,null,null,null,"b. Progestin-only pills"]
[null,"c. Hormonal injections",null,null,null,null,"Yes",null,null,"Yes",null,null,null,null,null,null,null,null,null,null,null,null,null,null,"c. Hormonal injections"]
[null,"d. Hormonal implants",null,null,null,null,"No",null,null,"No",null,null,null,null,null,null,null,null,null,null,null,null,null,null,"d. Hormonal implants"]
[null,"e. Intrauterine devices (IUDs)",null,null,null,null,"Yes",null,null,"Yes",null,null,null,null,null,null,null,null,null,null,null,null,null,null,"e. Intrauterine devices (IUDs)"]
[null,"f. Male condoms",null,null,null,null,"Yes",null,null,"Yes",null,null,null,null,null,null,null,null,null,null,null,null,null,null,"f. Male condoms"]
[null,"g. Female condoms",null,null,null,null,"No",null,null,"No",null,null,null,null,null,null,null,null,null,null,null,null,null,null,"g. Female condoms"]
[null,"h. Emergency contraceptive pills",null,null,null,null,"Yes",null,null,"Yes",null,null,null,null,null,null,null,null,null,null,null,null,null,null,"h. Emergency contraceptive pills"]
[null,"i. CycleBeads",null,null,null,null,"No",null,null,{"$f":"G117","v":"No"},null,null,null,null,null,null,null,null,null,null,null,null,null,null,{"$f":"B117","v":"i. CycleBeads"}]
[null,"j. Any other contraceptive(s)?",null,null,null,null,"No",null,null,"No",null,null,null,null,null,null,null,null,null,null,null,null,null,null,"j. Any other contraceptive(s)?"]
[null,null,"i. Name of other contraceptive(s) on the list(s)",null,null,"N/A",null,null,null,0,null,null,null,null,null,null,null,{"$f":"B119","v":0}]
["D9. What year(s) is the list(s) from?",null,null,null,null,"2007 (March)",null,null,null,0,null,null,null,null,null,null,null,{"$f":"B120","v":0}]
["D10. Name of the list(s)\n\n\n",null,null,"National List of Essential Medicines - India",null,null,null,null,null,null,{"$f":"A121","v":"D10. Name of the list(s)\n\n\n"},null,null,null,{"$f":"D121","v":"National List of Essential Medicines - India"}]
["D11. Notes about the list(s)\n",null,null,null,null,null,null,null,null,null,{"$f":"A122","v":"D11. Notes about the list(s)\n"},null,null,null,{"$f":"D122","v":0}]
["D12.  Information on country's Poverty Reduction Strategy Paper (PRSP)\n",null,null,null,null,null,null,null,null,null,null,null,null,null,null,null,null,null,null,null,null,null,null,{"$f":"A123","v":"D12.  Information on country's Poverty Reduction Strategy Paper (PRSP)\n"}]
[null,"a. What year is the Poverty Reduction Strategy Paper from? (most recent actual PRSP on IMF's site [not progress or summary report])",null,null,null,"N/A",null,null,null,{"$f":"G124","v":0},null,null,null,null,null,null,null,{"$f":"B124","v":"a. What year is the Poverty Reduction Strategy Paper from? (most recent actual PRSP on IMF's site [not progress or summary report])"}]
[null,"b. Is family planning or reproductive health a priority in the PRSP?",null,null,null,null,"N/A",null,null,{"$f":"G125","v":"N/A"},null,null,null,null,null,null,null,null,null,null,null,null,null,null,{"$f":"B125","v":"b. Is family planning or reproductive health a priority in the PRSP?"}]
[null,"c. Is contraceptive security included in the PRSP?",null,null,null,null,"N/A",null,null,{"$f":"G126","v":"N/A"},null,null,null,null,null,null,null,null,null,null,null,null,null,null,{"$f":"B126","v":"c. Is contraceptive security included in the PRSP?"}]
[null,"d. Is contraceptive prevalence rate (CPR) included as an indicator in the PRSP?",null,null,null,null,"N/A",null,null,{"$f":"G127","v":"N/A"},null,null,null,null,null,null,null,null,null,null,null,null,null,null,{"$f":"B127","v":"d. Is contraceptive prevalence rate (CPR) included as an indicator in the PRSP?"}]
[null,"e. Are contraceptive supply indicators included in the PRSP?",null,null,null,null,"N/A",null,null,{"$f":"G128","v":"N/A"},null,null,null,null,null,null,null,null,null,null,null,null,null,null,{"$f":"B128","v":"e. Are contraceptive supply indicators included in the PRSP?"}]
["\n\n\n","f. Notes about the Poverty Reduction Strategy Paper",null,"Document not available on IMF's website",null,null,null,null,null,null,{"$f":"B129","v":"f. Notes about the Poverty Reduction Strategy Paper"},null,null,null,{"$f":"D129","v":"Document not available on IMF's website"}]
["E. Supply Chain (Capacity)"]
["E1. Have stockouts occurred for any contraceptive at the central* level in the last 12 months?  \n*(The central level refers to the central level warehouse for the public sector.)",null,null,null,null,null,"No",null,null,{"$f":"G131","v":"No"},null,null,null,null,null,null,null,null,null,null,null,null,null,null,{"$f":"A131","v":"E1. Have stockouts occurred for any contraceptive at the central* level in the last 12 months?  \n*(The central level refers to the central level warehouse for the public sector.)"}]
["E2. In the last 12 months, has there ever been a stockout at the central level of any of the contraceptives offered in public sector facilities? (If a method is not intended to be offered in public sector facilities, please indicate that stockouts are not applicable (choose \"N/A\" from the dropdown list).)",null,null,null,null,null,null,null,null,null,null,null,null,null,null,null,null,null,null,null,null,null,null,{"$f":"A132","v":"E2. In the last 12 months, has there ever been a stockout at the central level of any of the contraceptives offered in public sector facilities? (If a method is not intended to be offered in public sector facilities, please indicate that stockouts are not applicable (choose \"N/A\" from the dropdown list).)"}]
[null,"a. Combined oral contraceptives",null,null,null,null,"No",null,null,{"$f":"G133","v":"No"},null,null,null,null,null,null,null,null,null,null,null,null,null,null,{"$f":"B133","v":"a. Combined oral contraceptives"}]
[null,"b. Progestin-only pills",null,null,null,null,"N/A",null,null,"N/A",null,null,null,null,null,null,null,null,null,null,null,null,null,null,"b. Progestin-only pills"]
[null,"c. Hormonal injections",null,null,null,null,"N/A",null,null,"N/A",null,null,null,null,null,null,null,null,null,null,null,null,null,null,"c. Hormonal injections"]
[null,"d. Hormonal implants",null,null,null,null,"N/A",null,null,"N/A",null,null,null,null,null,null,null,null,null,null,null,null,null,null,"d. Hormonal implants"]
[null,"e. Intrauterine devices (IUDs)",null,null,null,null,"No",null,null,"No",null,null,null,null,null,null,null,null,null,null,null,null,null,null,"e. Intrauterine devices (IUDs)"]
[null,"f. Male condoms",null,null,null,null,"No",null,null,"No",null,null,null,null,null,null,null,null,null,null,null,null,null,null,"f. Male condoms"]
[null,"g. Female condoms",null,null,null,null,"N/A",null,null,"N/A",null,null,null,null,null,null,null,null,null,null,null,null,null,null,"g. Female condoms"]
[null,"h. Emergency contraceptive pills",null,null,null,null,"No",null,null,"No",null,null,null,null,null,null,null,null,null,null,null,null,null,null,"h. Emergency contraceptive pills"]
[null,"i. CycleBeads",null,null,null,null,"N/A",null,null,"N/A",null,null,null,null,null,null,null,null,null,null,null,null,null,null,"i. CycleBeads"]
[null,"j. Time period\n(mm/yy - mm/yy) (for example, 1/10-12/10) ",null,null,null,"01/10-12/10",null,null,null,null,null,null,null,null,null,null,{"$f":"F142","v":"01/10-12/10"},{"$f":"B142","v":"j. Time period\n(mm/yy - mm/yy) (for example, 1/10-12/10) "}]
[null,"k. Data source\n(for example: Procurement Planning and Monitoring Report, Logistics Management Information System, periodic physical inventory, warehouse reports)",null,null,null,"Government of India",null,null,null,null,null,null,null,null,null,null,{"$f":"F143","v":"Government of India"},{"$f":"B143","v":"k. Data source\n(for example: Procurement Planning and Monitoring Report, Logistics Management Information System, periodic physical inventory, warehouse reports)"}]
["E3. Are stockouts a large problem in your country at the following levels? (i.e., Are they common or do they tend to last for a long time?)\n\n"]
[null,"a. service delivery point level (i.e., public sector health facilities)",null,null,null,null,"No",null,null,{"$f":"G145","v":"No"},null,null,null,null,null,null,null,null,null,null,null,null,null,null,{"$f":"B145","v":"a. service delivery point level (i.e., public sector health facilities)"}]
[null,"b. central level (i.e., central level warehouse for the public sector)",null,null,null,null,"No",null,null,{"$f":"G146","v":"No"},null,null,null,null,null,null,null,null,null,null,null,null,null,null,{"$f":"B146","v":"b. central level (i.e., central level warehouse for the public sector)"}]
["F. Please note any overall comments about challenges and/or successes with contraceptive security in your country.\n\n",null,null,"India has limited contraceptive choices. The contraceptives, however, are centrally procured. ",null,null,null,null,null,null,{"$f":"A147","v":"F. Please note any overall comments about challenges and/or successes with contraceptive security in your country.\n\n"},null,null,null,{"$f":"D147","v":"India has limited contraceptive choices. The contraceptives, however, are centrally procured. "}]

{"sheet":"Kenya 2011","index":23,"n_rows":149,"n_cols":25,"rows_kept":149,"cut":false,"hidden":false,"merged":[[147,0,147,7],[148,0,150,7],[145,1,145,5],[145,6,145,7],[146,0,146,2],[146,3,146,7],[141,1,141,4],[128,3,128,7],[117,1,117,5],[117,6,117,7],[118,2,118,4],[122,0,122,7],[123,1,123,4],[123,5,123,7],[124,1,124,5],[124,6,124,7],[120,0,120,2],[141,5,141,7],[142,1,142,4],[142,5,142,7],[143,0,143,7],[144,1,144,5],[144,6,144,7],[120,3,120,7],[121,0,121,2],[121,3,121,7],[136,1,136,5],[136,6,136,7],[137,1,137,5],[137,6,137,7],[138,1,138,5],[138,6,138,7],[139,1,139,5],[139,6,139,7],[140,1,140,5],[140,6,140,7],[131,0,131,7],[132,1,132,5],[132,6,132,7],[133,1,133,5],[133,6,133,7],[134,1,134,5],[134,6,134,7],[135,1,135,5],[135,6,135,7],[130,0,130,5],[130,6,130,7],[125,1,125,5],[125,6,125,7],[126,1,126,5],[126,6,126,7],[127,1,127,5],[127,6,127,7],[128,1,128,2],[119,0,119,4],[119,5,119,7],[114,1,114,5],[114,6,114,7],[115,1,115,5],[115,6,115,7],[116,1,116,5],[116,6,116,7],[129,0,129,6],[110,1,110,5],[110,6,110,7],[111,1,111,5],[111,6,111,7],[112,1,112,5],[112,6,112,7],[113,1,113,5],[113,6,113,7],[118,5,118,7],[104,1,104,5],[104,6,104,7],[105,1,105,5],[105,6,105,7],[106,3,106,7],[107,0,107,7],[108,1,108,5],[108,6,108,7],[109,1,109,5],[109,6,109,7],[98,1,98,2],[98,4,98,6],[99,1,99,2],[99,4,99,6],[100,1,100,2],[100,4,100,6],[101,0,101,7],[102,0,102,7],[103,1,103,5],[103,6,103,7],[94,2,94,3],[94,4,94,5],[94,6,94,7],[95,2,95,3],[95,4,95,5],[95,6,95,7],[96,0,96,7],[97,0,97,2],[97,4,97,6],[88,0,88,6],[89,1,89,2],[89,3,89,7],[90,0,90,6],[91,1,91,2],[92,1,92,3],[92,4,92,5],[92,6,92,7],[93,2,93,3],[93,4,93,5],[93,6,93,7],[83,0,83,4],[83,5,83,7],[84,1,84,3],[84,4,84,7],[85,1,85,3],[85,4,85,7],[86,0,86,6],[87,1,87,2],[87,3,87,7],[76,1,76,2],[76,3,76,4],[77,0,77,2],[77,3,77,7],[78,0,78,6],[79,0,79,6],[80,0,80,2],[81,0,82,0],[81,1,81,2],[81,3,81,4],[81,6,81,7],[82,3,82,4],[82,6,82,7],[71,1,71,2],[71,3,71,4],[72,1,72,2],[72,3,72,4],[73,1,73,2],[73,3,73,4],[74,1,74,2],[74,3,74,4],[75,1,75,2],[75,3,75,4],[66,1,66,2],[66,3,66,4],[67,1,67,2],[67,3,67,4],[68,1,68,2],[68,3,68,4],[69,1,69,2],[69,3,69,4],[70,1,70,2],[70,3,70,4],[60,2,60,4],[60,5,60,7],[61,0,61,2],[61,3,61,7],[62,0,62,6],[63,0,63,7],[64,0,64,2],[64,3,64,4],[65,1,65,2],[65,3,65,4],[54,0,54,4],[54,6,54,7],[55,0,55,4],[55,6,55,7],[56,0,56,4],[56,6,56,7],[58,0,58,4],[58,5,58,7],[59,1,59,4],[59,5,59,7],[39,1,39,2],[40,3,40,7],[41,1,41,2],[49,1,49,2],[50,1,50,2],[51,1,51,2],[53,0,53,7],[42,3,42,7],[43,1,43,2],[45,0,45,7],[46,1,46,2],[47,1,47,2],[48,3,48,7],[30,0,30,6],[31,0,31,6],[32,0,32,7],[33,1,33,3],[34,1,34,3],[35,0,35,7],[36,0,36,6],[37,0,37,7],[38,1,38,2],[24,0,24,6],[25,0,25,2],[26,0,26,6],[27,0,27,2],[27,3,27,4],[28,0,28,5],[28,6,28,7],[29,0,29,3],[29,6,29,7],[19,1,19,2],[19,5,19,7],[20,1,20,2],[20,5,20,7],[21,1,21,2],[21,5,21,7],[22,1,22,2],[22,5,22,7],[23,0,23,6],[14,1,14,2],[14,5,14,7],[15,1,15,2],[15,5,15,7],[16,1,16,2],[16,5,16,7],[17,1,17,2],[17,5,17,7],[18,1,18,2],[18,5,18,7],[0,0,0,7],[1,0,1,2],[1,3,1,4],[2,0,2,7],[3,3,3,4],[9,0,9,7],[4,0,4,2],[5,0,5,2],[13,0,13,2],[13,3,13,7],[3,5,3,7],[7,0,7,2],[7,3,7,5],[7,6,7,7],[10,0,10,6],[11,0,11,6],[8,0,8,7],[12,1,12,2],[12,3,12,7]]}
[null,null,null,null,null,null,null,null,"Columns I-Y are meant to be hidden. They exist because they allow for the dropdown list options. They also allow for merged cells to autofit properly in terms of row height. This should work if all columns remain at their correct widths.","g-h",null,"a-e merged","E-F merged","e-h","0 times",null,null,"The government (e.g., Central Medical Stores, MOH logistics unit, MOH procurement unit)",null,null,null,null,"Yes","a-h","January"]
[null,null,null,null,null,null,null,null,null,null,"A-c",null,null,null,"1-2 times","b-d merged",null,"Third-party agent (e.g., UNFPA, Crown Agents)","d-e merged","d-f merged","e-f merged","e-g merged","No",null,"February"]
[null,null,null,null,null,null,null,null,null,null,null,null,null,null,"3-5 times",null,null,"The government and a third-party agent",null,null,null,null,null,null,"March"]
[null,null,null,null,null,null,null,null,null,null,null,null,null,null,"6 or more times",null,null,"Other",null,null,null,null,"N/A",null,"April"]
["To jump to the Introduction sheet, click here.",null,null,null,null,null,null,null,null,null,null,null,null,null,null,null,null,null,null,null,null,null,"Don't know",null,"May"]
[null,null,null,null,null,null,null,null,null,null,null,null,null,null,"N/A",null,null,"N/A",null,null,null,null,null,null,"June"]
["Contraceptive Security (CS) Indicators 2011 Data ",null,null,null,null,null,null,null,null,null,null,null,null,null,"Don't know",null,null,"Don't know",null,null,null,null,null,null,"July"]
["Country: Kenya",null,null,null,null,null,null,null,null,{"$f":"G8","v":0},{"$f":"A8","v":"Country: Kenya"},null,null,null,null,"or c-d",null,null,null,{"$f":"D8","v":0},null,null,null,null,"August"]
["The CS Indicators are presented in the following sections:\n\n               A. leadership & cooordination               B. finance & procurement               C. commodities               D. policies               E. supply chain",null,null,null,null,null,null,null,null,{"$f":"G9","v":0},{"$f":"A9","v":"The CS Indicators are presented in the following sections:\n\n               A. leadership & cooordination               B. finance & procurement               C. commodities               D. policies               E. supply chain"},null,null,null,"d-h",null,"f-h merged",null,{"$f":"D9","v":0},null,null,null,null,null,"September"]
["\nNotes:\n  -  Respondents' answers are indicated in the white spaces. \n  -  N/A = not applicable. Don't know = the respondent either indicated they did not know or left the answer blank.\n  -  Some questions required respondents to choose from a dropdown list of options; in these cases the dropdown arrow will \n     appear when you click on the cell. \n  -  There may be a few inserted comments. (If you cannot already see them, click on Review tab - Comments group - Show All Comments in newer \n       versions of Excel or View - Comments in older versions of Excel.)\n  -  If the answer is cut off, you can either manually adjust the row height or autofit the row height in order to see the whole \n     response. (To autofit the row height, select the answer(s) and go to Home tab - Cells group - Format - Autofit Row Height in newer versions of Excel or \n      Format - Row - Autofit in older versions of Excel.)\n",null,null,null,null,null,null,null,"a-g",null,null,null,null,null,null,null,null,"a-e merged",null,null,null,null,null,{"$f":"A10","v":"\nNotes:\n  -  Respondents' answers are indicated in the white spaces. \n  -  N/A = not applicable. Don't know = the respondent either indicated they did not know or left the answer blank.\n  -  Some questions required respondents to choose from a dropdown list of options; in these cases the dropdown arrow will \n     appear when you click on the cell. \n  -  There may be a few inserted comments. (If you cannot already see them, click on Review tab - Comments group - Show All Comments in newer \n       versions of Excel or View - Comments in older versions of Excel.)\n  -  If the answer is cut off, you can either manually adjust the row height or autofit the row height in order to see the whole \n     response. (To autofit the row height, select the answer(s) and go to Home tab - Cells group - Format - Autofit Row Height in newer versions of Excel or \n      Format - Row - Autofit in older versions of Excel.)\n"},"October"]
["A. Leadership and Coordination",null,null,null,null,null,null,null,null,null,null,null,null,null,null,null,null,null,null,null,null,null,null,null,"November"]
["A1. Is there a national committee that works on contraceptive security? (Please select from the dropdown list.)\n(Committee should have some aspect of contraceptive security as part of its Terms of Reference, even if it is known by a different name, for example: Family Planning, Reproductive Health, Maternal Mortality, Essential Medicine Committee, etc.)  ",null,null,null,null,null,null,"Yes",{"$f":"A12","v":"A1. Is there a national committee that works on contraceptive security? (Please select from the dropdown list.)\n(Committee should have some aspect of contraceptive security as part of its Terms of Reference, even if it is known by a different name, for example: Family Planning, Reproductive Health, Maternal Mortality, Essential Medicine Committee, etc.)  "},null,null,null,null,null,null,null,null,null,null,null,null,null,null,null,"December"]
[null,"a. What is the name of the committee?",null,"Family Planning Logistics Working Group",null,null,null,null,null,null,{"$f":"B13","v":"a. What is the name of the committee?"},{"$f":"D13","v":"Family Planning Logistics Working Group"},null,null,{"$f":"D13","v":"Family Planning Logistics Working Group"}]
["A2. Are the following organizations represented on the committee?",null,null,"(Y/N \ndropdown)",null,null,null,null,null,null,{"$f":"A14","v":"A2. Are the following organizations represented on the committee?"},null,null,null,null,null,null,null,null,null,null,null,null,null,"Don't know"]
[null,"a. Social marketing",null,"Yes","If yes, specify name(s) of organizations","Population Services International",null,null,null,null,{"$f":"B15","v":"a. Social marketing"},null,null,null,null,null,{"$f":"F15","v":"Population Services International"}]
[null,"b. NGO (for example: service delivery, advocacy, Planned Parenthood affiliate, Marie Stopes affiliate, faith-based organizations, etc.)",null,"Yes","If yes, specify name(s) of organizations","Marie Stopes Kenya, Family Health Options Kenya (FHOK)",null,null,null,null,"b. NGO (for example: service delivery, advocacy, Planned Parenthood affiliate, Marie Stopes affiliate, faith-based organizations, etc.)",null,null,null,null,null,"Marie Stopes Kenya, Family Health Options Kenya (FHOK)"]
[null,"c. Commercial sector (for example: pharmacy associations, manufacturers, etc.)",null,"No","If yes, specify name(s) of organizations",null,null,null,null,null,"c. Commercial sector (for example: pharmacy associations, manufacturers, etc.)",null,null,null,null,null,0]
[null,"d. Donors",null,"Yes","If yes, specify name(s) of donors","USAID, KfW, DFID, World Bank",null,null,null,null,"d. Donors",null,null,null,null,null,"USAID, KfW, DFID, World Bank"]
[null,"e. UN agencies",null,"Yes","If yes, specify name(s) of agencies","UNFPA",null,null,null,null,"e. UN agencies",null,null,null,null,null,"UNFPA"]
[null,"f. Ministry of Health (for example: logistics, reproductive health, family planning, maternal and child health, HIV/AIDS, pharmacy units, etc.)",null,"Yes","If yes, specify name(s) of units","Division of Reproductive Health (DRH), Family Planning Program",null,null,null,null,"f. Ministry of Health (for example: logistics, reproductive health, family planning, maternal and child health, HIV/AIDS, pharmacy units, etc.)",null,null,null,null,null,"Division of Reproductive Health (DRH), Family Planning Program"]
[null,"g. Central Medical Store or Central Warehouse",null,"Yes","If yes, specify","Kenya Medical Supplies Agency",null,null,null,null,"g. Central Medical Store or Central Warehouse",null,null,null,null,null,"Kenya Medical Supplies Agency"]
[null,"h. Ministry of Finance or Ministry of Planning ",null,"No","If yes, specify",null,null,null,null,null,"h. Ministry of Finance or Ministry of Planning ",null,null,null,null,null,0]
[null,"i. Other (for example: partners)",null,null,"If yes, specify","Management Sciences for Health (MSH), John Snow Inc. (JSI)",null,null,null,null,"i. Other (for example: partners)",null,null,null,null,null,"Management Sciences for Health (MSH), John Snow Inc. (JSI)"]
["A3. How many times did the committee meet during the last year? (0, 1-2, 3-5, or 6+)  (Please select from the dropdown.)",null,null,null,null,null,null,"1-2 times",{"$f":"A24","v":"A3. How many times did the committee meet during the last year? (0, 1-2, 3-5, or 6+)  (Please select from the dropdown.)"}]
["A4. Does the committee have legal status?  (Please select from the dropdown.)                                  ",null,null,null,null,null,null,"No",{"$f":"A25","v":"A4. Does the committee have legal status?  (Please select from the dropdown.)                                  "}]
["A5. Is there a Contraceptive Security \"champion\"? (someone who consistently brings up and advocates for contraceptive supplies)",null,null,"Yes","If yes, specify person's organization","Ministry of Public Health and Sanitation","Specify person's job title","Director of Public Health and Sanitation",null,null,{"$f":"A26","v":"A5. Is there a Contraceptive Security \"champion\"? (someone who consistently brings up and advocates for contraceptive supplies)"}]
["B. Finance and Procurement (Capital)"]
["B1. What is the timeline of the country's fiscal year?",null,null,"Beginning month",null,"July","Ending month","June",null,null,{"$f":"B28","v":0}]
["B2. What was the estimated dollar value of contraceptives needed to be procured for the public sector for the most recent complete fiscal year? (in USD currency)\n(for example, to cover the needs for the '09-'10 fiscal year)",null,null,null,null,null,16279427.720000001,null,null,{"$f":"G29","v":16279427.720000001},null,null,{"$f":"E29","v":0},null,null,null,null,null,null,null,null,null,null,null,{"$f":"A29","v":"B2. What was the estimated dollar value of contraceptives needed to be procured for the public sector for the most recent complete fiscal year? (in USD currency)\n(for example, to cover the needs for the '09-'10 fiscal year)"}]
["B3. When was the last forecast/quantification conducted? (mm/yy)",null,null,null,"06/10","Who conducted it? (Specify organization.)","Division of Reproductive Health with TA from Management Sciences for Health/Strengthening Pharmaceutical Systems",null,null,{"$f":"G30","v":"Division of Reproductive Health with TA from Management Sciences for Health/Strengthening Pharmaceutical Systems"},null,null,{"$f":"E30","v":"06/10"},null,null,null,null,null,null,null,null,null,null,null,{"$f":"A30","v":"B3. When was the last forecast/quantification conducted? (mm/yy)"}]
["B4. Is there a government budget line item for the procurement of contraceptives?  (Please select from the dropdown list.)",null,null,null,null,null,null,"Yes",{"$f":"A31","v":"B4. Is there a government budget line item for the procurement of contraceptives?  (Please select from the dropdown list.)"}]
["B5. Were government funds allocated for contraceptive procurement for the public sector in the most recent complete fiscal year? (This question refers to funds planned to be spent on contraceptives, whether or not they ended up being spent.) \n\n(Government funds include internally generated funds, basket funds, World Bank credits or loans, and other funds donors gave to the government for their use.) \n",null,null,null,null,null,null,"Yes",{"$f":"A32","v":"B5. Were government funds allocated for contraceptive procurement for the public sector in the most recent complete fiscal year? (This question refers to funds planned to be spent on contraceptives, whether or not they ended up being spent.) \n\n(Government funds include internally generated funds, basket funds, World Bank credits or loans, and other funds donors gave to the government for their use.) \n"}]
["B6. Please complete the table below regarding government allocations for contraceptive procurement.",null,null,null,null,null,null,null,null,null,null,null,null,null,null,null,null,null,null,null,null,null,null,{"$f":"A33","v":"B6. Please complete the table below regarding government allocations for contraceptive procurement."}]
[null,null,null,null,"Amount allocated \n(in USD)","Time period during which allocations were supposed to be spent \n(mm/yy-mm/yy)\n(should ideally be the most recent\ncomplete fiscal year ['09-'10])","Data source \n(for example: Ministry records)","Comments",null,null,{"$f":"A34","v":0}]
[null,"Government funds allocated for contraceptive procurement\n(funds originally designated for contraceptives, whether or not they ended up being spent on them)",null,null,6883117,"07/09-06/10","Ministry Records","The GoK allocation was Ksh. 530 million. We used the exchange rate as of July 2009 (1 USD = KES 77)",null,null,{"$f":"#REF!","v":{"$error":"#REF!"}}]
[]
["B7. Were government funds spent on contraceptive procurement for the public sector in the most recent complete fiscal year? \n(Government funds include internally generated funds, basket funds, World Bank credits or loans, and other funds donors gave to the government for their use.)",null,null,null,null,null,null,"Yes",{"$f":"A37","v":"B7. Were government funds spent on contraceptive procurement for the public sector in the most recent complete fiscal year? \n(Government funds include internally generated funds, basket funds, World Bank credits or loans, and other funds donors gave to the government for their use.)"}]
["B8. Please complete the table below to indicate government expenditures on contraceptive procurement, by source, in the most recent complete fiscal year. \n(This is how much was spent on contraceptive procurement (not what was allocated). How much of this spending was provided from each source?)",null,null,null,null,null,null,null,null,null,null,null,null,null,null,null,null,null,null,null,null,null,null,{"$f":"A38","v":"B8. Please complete the table below to indicate government expenditures on contraceptive procurement, by source, in the most recent complete fiscal year. \n(This is how much was spent on contraceptive procurement (not what was allocated). How much of this spending was provided from each source?)"}]
[null,"Source of government funds spent on contraceptive procurement for the public sector",null,"Was this source used?\n(Y/N)","Amount spent \n(in USD)","Time period (mm/yy-mm/yy)\n(should be the same for all sources of funds & ideally be the most recent\ncomplete fiscal year ['09-'10])","Data source \n(for example: Contraceptive Procurement Table, PipeLine, etc.)","Comments",null,null,{"$f":"A39","v":0}]
[null,"a. Internally generated funds spent on contraceptive procurement",null,"Yes",4478168,"07/09-06/10","estimate based on prices from the RHI and procurements from fiscal year funds",null,null,null,{"$f":"B40","v":"a. Internally generated funds spent on contraceptive procurement"}]
[null,null,"i. Specify source(s) of internally generated funds spent (for example, from taxes or user fees)","Taxes",null,null,null,null,null,null,{"$f":"C41","v":"i. Specify source(s) of internally generated funds spent (for example, from taxes or user fees)"},null,null,null,{"$f":"D41","v":"Taxes"}]
[null,"b. Total of all other government funds spent on contraceptive procurement (basket funds, World Bank credits or loans, and other funds donors gave to the government [e.g., direct budget support])",null,"Yes",629918,"07/09-06/10","RHInterchange",null,null,null,{"$f":"B42","v":"b. Total of all other government funds spent on contraceptive procurement (basket funds, World Bank credits or loans, and other funds donors gave to the government [e.g., direct budget support])"}]
[null,null,"i. Specify source(s) of other government funds spent (for example: basket funding or specific donor)","Total War Against HIV and AIDS (TOWA) funding from the World Bank",null,null,null,null,null,null,{"$f":"C43","v":"i. Specify source(s) of other government funds spent (for example: basket funding or specific donor)"},null,null,null,{"$f":"D43","v":"Total War Against HIV and AIDS (TOWA) funding from the World Bank"}]
[null,"c. TOTAL government funds spent on contraceptive procurement\nThis will auto-calculate.  (It will sum a & b above.)",null,null,{"$f":"E40+E42","v":5108086},null,null,null,null,null,{"$f":"B44","v":"c. TOTAL government funds spent on contraceptive procurement\nThis will auto-calculate.  (It will sum a & b above.)"}]
[null,null,null,null,null,null,null,null,null,null,{"$f":"A45","v":0}]
["B9. Please complete the table below to indicate donor expenditures on contraceptive procurement in the most recent complete fiscal year.\n",null,null,null,null,null,null,null,null,null,null,null,null,null,null,null,null,null,null,null,null,null,null,{"$f":"A46","v":"B9. Please complete the table below to indicate donor expenditures on contraceptive procurement in the most recent complete fiscal year.\n"}]
["\n","Source of donations and donor funds spent on contraceptive procurement for the public sector",null,"Was this a source?\n(Y/N)","Amount of money spent on these procurements \n(in USD)","Time period (mm/yy-mm/yy)\n(should be the same for all sources of funds & ideally be the most recent\ncomplete fiscal year ['09-'10])","Data source \n(for example:  Donor records, Contraceptive Procurement Table, PipeLine, RHInterchange, etc.","Comments",null,null,{"$f":"A47","v":"\n"}]
[null,"a. In-kind donations of contraceptives",null,"Yes",7213274,"07/09-06/10","RHInterchange",null,null,null,{"$f":"B48","v":"a. In-kind donations of contraceptives"}]
[null,null,"i. Specify source(s) of in-kind donations ","Donations from UNFPA and USAID",null,null,null,null,null,null,{"$f":"C49","v":"i. Specify source(s) of in-kind donations "},null,null,null,{"$f":"D49","v":"Donations from UNFPA and USAID"}]
[null,"b. Global Fund donations used to procure condoms",null,"Yes",606300,"07/09-06/10","RHInterchange","recipient = National AIDS and STI Control Program",null,null,{"$f":"B50","v":"b. Global Fund donations used to procure condoms"}]
[null,"c. Global Fund donations used to procure contraceptives besides condoms",null,"No",0,"07/09-06/10",null,null,null,null,{"$f":"B51","v":"c. Global Fund donations used to procure contraceptives besides condoms"}]
[null,"d. TOTAL value of in-kind donations and Global Fund donations spent on contraceptive procurement\nThis will auto-calculate.  (It will sum a-c above.)",null,null,{"$f":"E48+E50+E51","v":7819574},null,null,null,null,null,{"$f":"B52","v":"d. TOTAL value of in-kind donations and Global Fund donations spent on contraceptive procurement\nThis will auto-calculate.  (It will sum a-c above.)"}]
[null,null,null,null,null,null,null,null,null,null,{"$f":"A53","v":0}]
["The answers to B10 and B11 should calculate automatically based on the information you provided. Please review the answers to ensure they make sense to you, and if you have additional information to add, please note it in the comments boxes.\n\nIf the answers do not calculate automatically, please provide any relevant information you may have in the comments boxes.\n",null,null,null,null,null,null,null,null,null,null,null,null,null,null,null,null,null,null,null,null,null,null,{"$f":"A54","v":"The answers to B10 and B11 should calculate automatically based on the information you provided. Please review the answers to ensure they make sense to you, and if you have additional information to add, please note it in the comments boxes.\n\nIf the answers do not calculate automatically, please provide any relevant information you may have in the comments boxes.\n"}]
["B10. Government share of funds spent on contraceptive procurement for the public sector - \nOf the total amount spent on contraceptives for the public sector in the most recent complete fiscal year (including government and donor funds), what percent was covered by government funds (including internally generated funds, basket funds, World Bank credits or loans, and other funds given to the government)? \n\nThis will auto-calculate. (It contains the following formula: Total government spending (Question B8c) / Grand total of all spending for public sector contraceptives from the government and donors (Questions B8c+B9d))",null,null,null,null,{"$f":"E44/(E44+E52)","v":0.39512843004843878},null,null,null,{"$f":"G55","v":0},null,null,null,null,null,null,null,{"$f":"A55","v":"B10. Government share of funds spent on contraceptive procurement for the public sector - \nOf the total amount spent on contraceptives for the public sector in the most recent complete fiscal year (including government and donor funds), what percent was covered by government funds (including internally generated funds, basket funds, World Bank credits or loans, and other funds given to the government)? \n\nThis will auto-calculate. (It contains the following formula: Total government spending (Question B8c) / Grand total of all spending for public sector contraceptives from the government and donors (Questions B8c+B9d))"}]
["B11. Total expenditures on public sector contraceptives as percent of amount that needed to be procured -\nOf the estimated value of the contraceptives needed to be procured for the public sector for the most recent complete fiscal year, what percent was provided by any source (whether government or donor)? \n\nThis will auto-calculate. (It contains the following formula: Grand total of all spending for public sector contraceptives from the government and donors (Questions B8c+B9d) / Value of estimated need for procurement (Question B2))",null,null,null,null,{"$f":"(E44+E52)/G29","v":0.79411022441027179},"Commitments for procurement of contraceptives for FY 2009/10 by GoK and donors fully covered the quantified amount, but different lead times of different procuring agencies caused the delivery of commodities to spill over to FY 2010/11. In addition, KfW-funded commodities were procured after June 2010 (end of financial year). ",null,null,{"$f":"G56","v":"Commitments for procurement of contraceptives for FY 2009/10 by GoK and donors fully covered the quantified amount, but different lead times of different procuring agencies caused the delivery of commodities to spill over to FY 2010/11. In addition, KfW-funded commodities were procured after June 2010 (end of financial year). "},null,null,null,null,null,null,null,{"$f":"A56","v":"B11. Total expenditures on public sector contraceptives as percent of amount that needed to be procured -\nOf the estimated value of the contraceptives needed to be procured for the public sector for the most recent complete fiscal year, what percent was provided by any source (whether government or donor)? \n\nThis will auto-calculate. (It contains the following formula: Grand total of all spending for public sector contraceptives from the government and donors (Questions B8c+B9d) / Value of estimated need for procurement (Question B2))"}]
["B12. If B11 did not calculate automatically, please answer the following question:\nWas there a funding gap for the public sector in the last complete fiscal year (e.g., 09-'10 fiscal year)?\n(Please select from the dropdown list.)",null,null,null,null,null,null,null,null,{"$f":"G57","v":0},null,null,null,null,null,null,null,{"$f":"A57","v":"B12. If B11 did not calculate automatically, please answer the following question:\nWas there a funding gap for the public sector in the last complete fiscal year (e.g., 09-'10 fiscal year)?\n(Please select from the dropdown list.)"}]
[null,null,null,null,null,null,null,null,null,null,{"$f":"A58","v":0}]
["B13. If the government financed any contraceptive procurement in the most recent complete fiscal year, which entity conducted the procurement(s)? (Please select from the dropdown.)",null,null,null,null,"The government (e.g., Central Medical Stores, MOH logistics unit, MOH procurement unit)",null,null,null,null,null,null,null,null,null,null,{"$f":"F59","v":"The government (e.g., Central Medical Stores, MOH logistics unit, MOH procurement unit)"},{"$f":"A59","v":"B13. If the government financed any contraceptive procurement in the most recent complete fiscal year, which entity conducted the procurement(s)? (Please select from the dropdown.)"}]
[null,"a. Specify entity",null,null,null,"Kenya Medical Supplies Agency",null,null,null,null,null,null,{"$f":"E60","v":0},null,null,null,{"$f":"F60","v":"Kenya Medical Supplies Agency"},{"$f":"B60","v":"a. Specify entity"}]
[null,null,"i. Is this a parastatal?",null,null,"Yes",null,null,null,null,null,null,null,null,null,null,{"$f":"F61","v":"Yes"},{"$f":"C61","v":"i. Is this a parastatal?"}]
["B14. Please note any additional comments about finance and procurement.\n",null,null,null,null,null,null,null,null,null,{"$f":"A62","v":"B14. Please note any additional comments about finance and procurement.\n"},null,null,null,{"$f":"D62","v":0}]
["C. Commodities"]
["C1. Are the following contraceptive methods offered through the commercial sector, public sector, NGOs, or social marketing? (Please indicate which methods are intended to be offered. This question is not asking whether the method is in stock.) \n(Please select from the dropdown list.)",null,null,null,null,null,null,null,null,null,null,null,null,null,null,null,null,null,null,null,null,null,null,{"$f":"A64","v":"C1. Are the following contraceptive methods offered through the commercial sector, public sector, NGOs, or social marketing? (Please indicate which methods are intended to be offered. This question is not asking whether the method is in stock.) \n(Please select from the dropdown list.)"}]
["Contraceptive Method",null,null,"Commercial Sector",null,"Public Sector","NGO","Social Marketing",null,null,{"$f":"A65","v":"Contraceptive Method"}]
[null,"a. Combined oral contraceptives (estrogen + progestin - for  example, LoFemenol, Microgynon)",null,"Yes",null,"Yes","Yes","Yes",null,null,{"$f":"B66","v":"a. Combined oral contraceptives (estrogen + progestin - for  example, LoFemenol, Microgynon)"}]
[null,"b. Progestin-only pills (for example, Ovrette, Microlut)",null,"Yes",null,"Yes","Yes","No",null,null,{"$f":"B67","v":"b. Progestin-only pills (for example, Ovrette, Microlut)"}]
[null,"c. Hormonal injections (for example, DepoProvera, Noristerat)",null,"Yes",null,"Yes","Yes","Yes",null,null,"c. Hormonal injections (for example, DepoProvera, Noristerat)"]
[null,"d. Hormonal implants (for example, Jadelle, Implanon)",null,"Yes",null,"Yes","Yes","Yes",null,null,"d. Hormonal implants (for example, Jadelle, Implanon)"]
[null,"e. Intrauterine devices (IUDs) (for example, Optima Copper T)",null,"Yes",null,"Yes","Yes","Yes",null,null,"e. Intrauterine devices (IUDs) (for example, Optima Copper T)"]
[null,"f. Male condoms",null,"Yes",null,"Yes","Yes","Yes",null,null,"f. Male condoms"]
[null,"g. Female condoms",null,"Yes",null,"Yes","Yes","Yes",null,null,"g. Female condoms"]
[null,"h. Emergency contraceptive pills (for example, Postinor)",null,"Yes",null,"Yes","Yes","Yes",null,null,"h. Emergency contraceptive pills (for example, Postinor)"]
[null,"i. Long-acting permanent method for males (vasectomy)",null,"Yes",null,"Yes","Yes","Yes",null,null,"i. Long-acting permanent method for males (vasectomy)"]
[null,"j. Long-acting permanent method for females (tubal ligation)",null,"Yes",null,"Yes","Yes","Yes",null,null,"j. Long-acting permanent method for females (tubal ligation)"]
[null,"k. CycleBeads",null,"No",null,"Yes","No","No",null,null,"k. CycleBeads"]
[null,"l. Other contraceptive methods - specify \n(Please provide the name of the other contraceptive(s) offered, by sector.)",null,"Foaming Tablets",null,null,"Foaming Tablets",null,null,null,"l. Other contraceptive methods - specify \n(Please provide the name of the other contraceptive(s) offered, by sector.)"]
["C2. Please note any comments about the commodities offered.",null,null,null,null,null,null,null,null,null,{"$f":"A78","v":"C2. Please note any comments about the commodities offered."},null,null,null,{"$f":"D78","v":0}]
["D. Policies (Commitment)"]
["D1. Is there a contraceptive security or reproductive health commodity security strategy or is contraceptive security explicitly included in a country strategy? (Please select from the dropdown list.)",null,null,null,null,null,null,"Yes",{"$f":"A80","v":"D1. Is there a contraceptive security or reproductive health commodity security strategy or is contraceptive security explicitly included in a country strategy? (Please select from the dropdown list.)"}]
["IF NO, SKIP TO QUESTION D2."]
[null,"Strategy name",null,"Years Covered (including strategy updates)",null,"Is the strategy formally approved by the Ministry?","Is the contraceptive security strategy being implemented?",null,null,{"$f":"G82","v":"Is the contraceptive security strategy being implemented?"},{"$f":"B82","v":"Strategy name"},null,{"$f":"E82","v":0},null,null,null,null,null,{"$f":"D82","v":"Years Covered (including strategy updates)"}]
[null,"a","National Contraceptives Commodity Security Strategy","2007 - 2012",null,"Yes","Yes",null,null,{"$f":"G83","v":"Yes"},{"$f":"B83","v":"a"},null,{"$f":"E83","v":0},null,null,null,null,null,{"$f":"D83","v":"2007 - 2012"}]
["D2. Are any family planning commodities subject to duties, import taxes, or other fees?",null,null,null,null,"Yes",null,null,null,null,null,null,null,null,null,null,{"$f":"F84","v":"Yes"},{"$f":"A84","v":"D2. Are any family planning commodities subject to duties, import taxes, or other fees?"}]
[null,"a. If yes, for which sectors (public, NGO, social marketing, commercial)?",null,null,"Public sector",null,null,null,null,null,null,null,{"$f":"E85","v":"Public sector"},{"$f":"E85","v":"Public sector"},null,null,null,{"$f":"B85","v":"a. If yes, for which sectors (public, NGO, social marketing, commercial)?"}]
[null,"b. If yes, how much are the duties, taxes, or fees?",null,null,"UNFPA pays 5% of the commodity cost to KEMSA for handling, warehousing and distribution. Apart from the 5% all contraceptives are zero rated and no import tax or duty is charged for them.",null,null,null,null,null,null,null,null,{"$f":"E86","v":"UNFPA pays 5% of the commodity cost to KEMSA for handling, warehousing and distribution. Apart from the 5% all contraceptives are zero rated and no import tax or duty is charged for them."},null,null,null,{"$f":"B86","v":"b. If yes, how much are the duties, taxes, or fees?"}]
["D3. Are there policies that hinder the ability of the private sector (commercial sector, NGOs, or social marketing) to provide contraceptive methods (for example: price controls, distribution limitations, taxes/duties, advertising bans, etc.)?",null,null,null,null,null,null,"No",{"$f":"A87","v":"D3. Are there policies that hinder the ability of the private sector (commercial sector, NGOs, or social marketing) to provide contraceptive methods (for example: price controls, distribution limitations, taxes/duties, advertising bans, etc.)?"}]
[null,"a. If yes, describe the policies.",null,"N/A",null,null,null,null,null,null,{"$f":"B88","v":"a. If yes, describe the policies."},null,null,null,{"$f":"D88","v":"N/A"}]
["D4. Are there policies that enable the private sector (commercial sector, NGOs, or social marketing) to provide contraceptive methods?",null,null,null,null,null,null,"Yes",{"$f":"A89","v":"D4. Are there policies that enable the private sector (commercial sector, NGOs, or social marketing) to provide contraceptive methods?"}]
[null,"a. If yes, describe the policies.",null,"Private sector and NGOs can access contraceptive methods available for the public sector as long as they can get a Service Delivery Point (SDP) number from the Division of Reproductive Health. (In order to get this they need an application letter to the Division of Reproductive Health, an inspection report from the Provincial Medical Officer, a professional certificate of the service provider, and a private practice license.)",null,null,null,null,null,null,{"$f":"B90","v":"a. If yes, describe the policies."},null,null,null,{"$f":"D90","v":"Private sector and NGOs can access contraceptive methods available for the public sector as long as they can get a Service Delivery Point (SDP) number from the Division of Reproductive Health. (In order to get this they need an application letter to the Division of Reproductive Health, an inspection report from the Provincial Medical Officer, a professional certificate of the service provider, and a private practice license.)"}]
["D5. Do policies or regulations exist that restrict who can sell or dispense particular contraceptive methods?\n",null,null,null,null,null,null,"Yes",{"$f":"A91","v":"D5. Do policies or regulations exist that restrict who can sell or dispense particular contraceptive methods?\n"}]
[null,"Please note any restrictions in the following table."]
[null,"Contraceptive Method(s)",null,null,"Describe any public sector restriction on who is allowed to sell or dispense the method",null,"Describe any private sector restriction on who is allowed to sell or dispense the method",null,null,{"$f":"G93","v":"Describe any private sector restriction on who is allowed to sell or dispense the method"},null,null,null,null,null,{"$f":"B93","v":"Contraceptive Method(s)"},null,null,null,null,{"$f":"E93","v":"Describe any public sector restriction on who is allowed to sell or dispense the method"}]
[null,"a","Progestin-only pills, combined oral contraceptives, DMPA injections, emergency contraceptive pills, implants, and IUCDs",null,"All facility levels are allowed to dispense these methods as long as there are skilled health workers",null,"Only registered pharmacies, clinics, nursing homes and hospitals are allowed to sell or dispense these methods",null,null,{"$f":"G94","v":"Only registered pharmacies, clinics, nursing homes and hospitals are allowed to sell or dispense these methods"},null,null,{"$f":"E94","v":"All facility levels are allowed to dispense these methods as long as there are skilled health workers"},null,null,{"$f":"C94","v":"Progestin-only pills, combined oral contraceptives, DMPA injections, emergency contraceptive pills, implants, and IUCDs"},null,null,null,null,{"$f":"E94","v":"All facility levels are allowed to dispense these methods as long as there are skilled health workers"}]
[null,"b",null,null,null,null,null,null,null,{"$f":"G95","v":0},null,null,{"$f":"E95","v":0},null,null,{"$f":"C95","v":0},null,null,null,null,{"$f":"E95","v":0}]
[null,"c",null,null,null,null,null,null,null,{"$f":"G96","v":0},null,null,{"$f":"E96","v":0},null,null,{"$f":"C96","v":0},null,null,null,null,{"$f":"E96","v":0}]
[null,null,null,null,null,null,null,null,null,null,{"$f":"C97","v":0}]
["D6. Does the country have laws, regulations, or policies that make it difficult for the following sub-populations to access effective family planning services?",null,null,"Y/N","If yes, describe laws/regulations/policies affecting access ",null,null,"Are the rules/policies implemented?",null,null,{"$f":"A98","v":"D6. Does the country have laws, regulations, or policies that make it difficult for the following sub-populations to access effective family planning services?"},null,null,null,null,null,null,null,null,null,null,{"$f":"E98","v":"If yes, describe laws/regulations/policies affecting access "}]
[null,"a. Unmarried people",null,"No",null,null,null,null,null,null,{"$f":"B99","v":"a. Unmarried people"},null,{"$f":"E99","v":0},null,null,null,null,null,null,null,null,{"$f":"E99","v":0}]
[null,"b. Young people",null,"No",null,null,null,null,null,null,{"$f":"B100","v":"b. Young people"},null,{"$f":"E100","v":0},null,null,null,null,null,null,null,null,{"$f":"E100","v":0}]
[null,"c. Other",null,"No",null,null,null,null,null,null,{"$f":"B101","v":"c. Other"},null,{"$f":"E101","v":0},null,null,null,null,null,null,null,null,{"$f":"E101","v":0}]
[null,null,null,null,null,null,null,null,null,null,{"$f":"C102","v":0}]
["D7. Are there charges* to the client in the public sector for family planning:\n*(This question refers to charges by policy, not under-the-table charges.)\n",null,null,null,null,null,null,null,null,null,null,null,null,null,null,null,null,null,null,null,null,null,null,{"$f":"A103","v":"D7. Are there charges* to the client in the public sector for family planning:\n*(This question refers to charges by policy, not under-the-table charges.)\n"}]
[null,"a. Services?",null,null,null,null,"No",null,null,{"$f":"G104","v":"No"},null,null,null,null,null,null,null,null,null,null,null,null,null,null,{"$f":"B104","v":"a. Services?"}]
[null,"b. Commodities?",null,null,null,null,"No",null,null,{"$f":"G105","v":"No"},null,null,null,null,null,null,null,null,null,null,null,null,null,null,{"$f":"B105","v":"b. Commodities?"}]
[null,"c. If yes, are there exemptions for people who cannot afford to pay?",null,null,null,null,"N/A",null,null,{"$f":"G106","v":"N/A"},null,null,null,null,null,null,null,null,null,null,null,null,null,null,{"$f":"B106","v":"c. If yes, are there exemptions for people who cannot afford to pay?"}]
[null,null,"i. If yes, describe the exemptions.","N/A",null,null,null,null,null,null,{"$f":"C107","v":"i. If yes, describe the exemptions."},null,null,null,{"$f":"D107","v":"N/A"}]
["D8. Are the following contraceptives included in the country's National Essential Medicine List (NEML) or other equivalent priority list?",null,null,null,null,null,null,null,null,null,null,null,null,null,null,null,null,null,null,null,null,null,null,{"$f":"A108","v":"D8. Are the following contraceptives included in the country's National Essential Medicine List (NEML) or other equivalent priority list?"}]
[null,"a. Combined oral contraceptives",null,null,null,null,"Yes",null,null,{"$f":"G109","v":"Yes"},null,null,null,null,null,null,null,null,null,null,null,null,null,null,{"$f":"B109","v":"a. Combined oral contraceptives"}]
[null,"b. Progestin-only pills",null,null,null,null,"No",null,null,"No",null,null,null,null,null,null,null,null,null,null,null,null,null,null,"b. Progestin-only pills"]
[null,"c. Hormonal injections",null,null,null,null,"Yes",null,null,"Yes",null,null,null,null,null,null,null,null,null,null,null,null,null,null,"c. Hormonal injections"]
[null,"d. Hormonal implants",null,null,null,null,"Yes",null,null,"Yes",null,null,null,null,null,null,null,null,null,null,null,null,null,null,"d. Hormonal implants"]
[null,"e. Intrauterine devices (IUDs)",null,null,null,null,"Yes",null,null,"Yes",null,null,null,null,null,null,null,null,null,null,null,null,null,null,"e. Intrauterine devices (IUDs)"]
[null,"f. Male condoms",null,null,null,null,"Yes",null,null,"Yes",null,null,null,null,null,null,null,null,null,null,null,null,null,null,"f. Male condoms"]
[null,"g. Female condoms",null,null,null,null,"Yes",null,null,"Yes",null,null,null,null,null,null,null,null,null,null,null,null,null,null,"g. Female condoms"]
[null,"h. Emergency contraceptive pills",null,null,null,null,"Yes",null,null,"Yes",null,null,null,null,null,null,null,null,null,null,null,null,null,null,"h. Emergency contraceptive pills"]
[null,"i. CycleBeads",null,null,null,null,"No",null,null,{"$f":"G117","v":"No"},null,null,null,null,null,null,null,null,null,null,null,null,null,null,{"$f":"B117","v":"i. CycleBeads"}]
[null,"j. Any other contraceptive(s)?",null,null,null,null,"No",null,null,"No",null,null,null,null,null,null,null,null,null,null,null,null,null,null,"j. Any other contraceptive(s)?"]
[null,null,"i. Name of other contraceptive(s) on the list(s)",null,null,"N/A",null,null,null,0,null,null,null,null,null,null,null,{"$f":"B119","v":0}]
["D9. What year(s) is the list(s) from?",null,null,null,null,2010,null,null,null,0,null,null,null,null,null,null,null,{"$f":"B120","v":0}]
["D10. Name of the list(s)",null,null,"Kenya Essential Medicines List 2010",null,null,null,null,null,null,{"$f":"A121","v":"D10. Name of the list(s)"},null,null,null,{"$f":"D121","v":"Kenya Essential Medicines List 2010"}]
["D11. Notes about the list(s)",null,null,null,null,null,null,null,null,null,{"$f":"A122","v":"D11. Notes about the list(s)"},null,null,null,{"$f":"D122","v":0}]
["D12.  Information on country's Poverty Reduction Strategy Paper (PRSP)\n",null,null,null,null,null,null,null,null,null,null,null,null,null,null,null,null,null,null,null,null,null,null,{"$f":"A123","v":"D12.  Information on country's Poverty Reduction Strategy Paper (PRSP)\n"}]
[null,"a. What year is the Poverty Reduction Strategy Paper from? (most recent actual PRSP on IMF's site [not progress or summary report])",null,null,null,2005,null,null,null,{"$f":"G124","v":0},null,null,null,null,null,null,null,{"$f":"B124","v":"a. What year is the Poverty Reduction Strategy Paper from? (most recent actual PRSP on IMF's site [not progress or summary report])"}]
[null,"b. Is family planning or reproductive health a priority in the PRSP?",null,null,null,null,"No",null,null,{"$f":"G125","v":"No"},null,null,null,null,null,null,null,null,null,null,null,null,null,null,{"$f":"B125","v":"b. Is family planning or reproductive health a priority in the PRSP?"}]
[null,"c. Is contraceptive security included in the PRSP?",null,null,null,null,"No",null,null,{"$f":"G126","v":"No"},null,null,null,null,null,null,null,null,null,null,null,null,null,null,{"$f":"B126","v":"c. Is contraceptive security included in the PRSP?"}]
[null,"d. Is contraceptive prevalence rate (CPR) included as an indicator in the PRSP?",null,null,null,null,"Yes",null,null,{"$f":"G127","v":"Yes"},null,null,null,null,null,null,null,null,null,null,null,null,null,null,{"$f":"B127","v":"d. Is contraceptive prevalence rate (CPR) included as an indicator in the PRSP?"}]
[null,"e. Are contraceptive supply indicators included in the PRSP?",null,null,null,null,"No",null,null,{"$f":"G128","v":"No"},null,null,null,null,null,null,null,null,null,null,null,null,null,null,{"$f":"B128","v":"e. Are contraceptive supply indicators included in the PRSP?"}]
["\n\n\n","f. Notes about the Poverty Reduction Strategy Paper",null," Document noted: \"Contraceptive prevalence rate increases from 38% to 45% in 2008.\"",null,null,null,null,null,null,{"$f":"B129","v":"f. Notes about the Poverty Reduction Strategy Paper"},null,null,null,{"$f":"D129","v":" Document noted: \"Contraceptive prevalence rate increases from 38% to 45% in 2008.\""}]
["E. Supply Chain (Capacity)"]
["E1. Have stockouts occurred for any contraceptive at the central* level in the last 12 months?  \n*(The central level refers to the central level warehouse for the public sector.)",null,null,null,null,null,"Yes",null,null,{"$f":"G131","v":"Yes"},null,null,null,null,null,null,null,null,null,null,null,null,null,null,{"$f":"A131","v":"E1. Have stockouts occurred for any contraceptive at the central* level in the last 12 months?  \n*(The central level refers to the central level warehouse for the public sector.)"}]
["E2. In the last 12 months, has there ever been a stockout at the central level of any of the contraceptives offered in public sector facilities? (If a method is not intended to be offered in public sector facilities, please indicate that stockouts are not applicable (choose \"N/A\" from the dropdown list).)",null,null,null,null,null,null,null,null,null,null,null,null,null,null,null,null,null,null,null,null,null,null,{"$f":"A132","v":"E2. In the last 12 months, has there ever been a stockout at the central level of any of the contraceptives offered in public sector facilities? (If a method is not intended to be offered in public sector facilities, please indicate that stockouts are not applicable (choose \"N/A\" from the dropdown list).)"}]
[null,"a. Combined oral contraceptives",null,null,null,null,"No",null,null,{"$f":"G133","v":"No"},null,null,null,null,null,null,null,null,null,null,null,null,null,null,{"$f":"B133","v":"a. Combined oral contraceptives"}]
[null,"b. Progestin-only pills",null,null,null,null,"No",null,null,"No",null,null,null,null,null,null,null,null,null,null,null,null,null,null,"b. Progestin-only pills"]
[null,"c. Hormonal injections",null,null,null,null,"No",null,null,"No",null,null,null,null,null,null,null,null,null,null,null,null,null,null,"c. Hormonal injections"]
[null,"d. Hormonal implants",null,null,null,null,"Yes",null,null,"Yes",null,null,null,null,null,null,null,null,null,null,null,null,null,null,"d. Hormonal implants"]
[null,"e. Intrauterine devices (IUDs)",null,null,null,null,"Yes",null,null,"Yes",null,null,null,null,null,null,null,null,null,null,null,null,null,null,"e. Intrauterine devices (IUDs)"]
[null,"f. Male condoms",null,null,null,null,"Yes",null,null,"Yes",null,null,null,null,null,null,null,null,null,null,null,null,null,null,"f. Male condoms"]
[null,"g. Female condoms",null,null,null,null,"Yes",null,null,"Yes",null,null,null,null,null,null,null,null,null,null,null,null,null,null,"g. Female condoms"]
[null,"h. Emergency contraceptive pills",null,null,null,null,"No",null,null,"No",null,null,null,null,null,null,null,null,null,null,null,null,null,null,"h. Emergency contraceptive pills"]
[null,"i. CycleBeads",null,null,null,null,"Yes",null,null,"Yes",null,null,null,null,null,null,null,null,null,null,null,null,null,null,"i. CycleBeads"]
[null,"j. Time period\n(mm/yy - mm/yy) (for example, 1/10-12/10) ",null,null,null,"02/10-01/11",null,null,null,null,null,null,null,null,null,null,{"$f":"F142","v":"02/10-01/11"},{"$f":"B142","v":"j. Time period\n(mm/yy - mm/yy) (for example, 1/10-12/10) "}]
[null,"k. Data source\n(for example: Procurement Planning and Monitoring Report, Logistics Management Information System, periodic physical inventory, warehouse reports)",null,null,null,"KEMSA Monthly Stock Report",null,null,null,null,null,null,null,null,null,null,{"$f":"F143","v":"KEMSA Monthly Stock Report"},{"$f":"B143","v":"k. Data source\n(for example: Procurement Planning and Monitoring Report, Logistics Management Information System, periodic physical inventory, warehouse reports)"}]
["E3. Are stockouts a large problem in your country at the following levels? (i.e., Are they common or do they tend to last for a long time?)\n\n"]
[null,"a. service delivery point level (i.e., public sector health facilities)",null,null,null,null,"Yes",null,null,{"$f":"G145","v":"Yes"},null,null,null,null,null,null,null,null,null,null,null,null,null,null,{"$f":"B145","v":"a. service delivery point level (i.e., public sector health facilities)"}]
[null,"b. central level (i.e., central level warehouse for the public sector)",null,null,null,null,"No",null,null,{"$f":"G146","v":"No"},null,null,null,null,null,null,null,null,null,null,null,null,null,null,{"$f":"B146","v":"b. central level (i.e., central level warehouse for the public sector)"}]
["F. Please note any overall comments about challenges and/or successes with contraceptive security in your country.\n\n",null,null,"At the SDP level the main challenge is the distribution system. This issue is being addressed by: shifting all distribution to KEMSA, monthly FP commodity supply chain meetings, and district-specific kit lists for \"push\" regions. At the central level, only female condoms and IUCDs have been stocked out for more than 6 months. Male condoms and implants have been stocked out for a maximum of 2 months.",null,null,null,null,null,null,{"$f":"A147","v":"F. Please note any overall comments about challenges and/or successes with contraceptive security in your country.\n\n"},null,null,null,{"$f":"D147","v":"At the SDP level the main challenge is the distribution system. This issue is being addressed by: shifting all distribution to KEMSA, monthly FP commodity supply chain meetings, and district-specific kit lists for \"push\" regions. At the central level, only female condoms and IUCDs have been stocked out for more than 6 months. Male condoms and implants have been stocked out for a maximum of 2 months."}]
[]
[null,null,null,null,null,null,null,null,null,null,null,null,null,null,null,null,null,null,null,null,null,null,null,{"$f":"A149","v":0}]

{"sheet":"Liberia 2011","index":24,"n_rows":147,"n_cols":25,"rows_kept":147,"cut":false,"hidden":false,"merged":[[8,0,8,7],[5,0,5,2],[147,0,147,7],[148,0,150,7],[145,1,145,5],[145,6,145,7],[146,0,146,2],[146,3,146,7],[141,1,141,4],[141,5,141,7],[142,1,142,4],[142,5,142,7],[143,0,143,7],[144,1,144,5],[144,6,144,7],[138,1,138,5],[138,6,138,7],[139,1,139,5],[139,6,139,7],[140,1,140,5],[131,0,131,7],[132,1,132,5],[132,6,132,7],[133,1,133,5],[133,6,133,7],[134,1,134,5],[134,6,134,7],[140,6,140,7],[135,1,135,5],[135,6,135,7],[136,1,136,5],[136,6,136,7],[137,1,137,5],[137,6,137,7],[120,0,120,2],[120,3,120,7],[121,0,121,2],[121,3,121,7],[129,0,129,6],[130,0,130,5],[130,6,130,7],[122,0,122,7],[123,1,123,4],[123,5,123,7],[115,1,115,5],[115,6,115,7],[116,1,116,5],[116,6,116,7],[117,1,117,5],[117,6,117,7],[118,2,118,4],[118,5,118,7],[119,0,119,4],[119,5,119,7],[110,1,110,5],[110,6,110,7],[111,1,111,5],[111,6,111,7],[112,1,112,5],[112,6,112,7],[113,1,113,5],[113,6,113,7],[114,1,114,5],[114,6,114,7],[104,1,104,5],[104,6,104,7],[105,1,105,5],[105,6,105,7],[106,3,106,7],[107,0,107,7],[108,1,108,5],[108,6,108,7],[109,1,109,5],[109,6,109,7],[98,1,98,2],[98,4,98,6],[99,1,99,2],[99,4,99,6],[100,1,100,2],[100,4,100,6],[101,0,101,7],[102,0,102,7],[103,1,103,5],[103,6,103,7],[94,2,94,3],[94,4,94,5],[94,6,94,7],[95,2,95,3],[95,4,95,5],[95,6,95,7],[96,0,96,7],[97,0,97,2],[97,4,97,6],[88,0,88,6],[89,1,89,2],[89,3,89,7],[90,0,90,6],[91,1,91,2],[92,1,92,3],[92,4,92,5],[92,6,92,7],[93,2,93,3],[93,4,93,5],[93,6,93,7],[83,0,83,4],[83,5,83,7],[84,1,84,3],[84,4,84,7],[85,1,85,3],[85,4,85,7],[86,0,86,6],[87,1,87,2],[87,3,87,7],[77,0,77,2],[77,3,77,7],[78,0,78,6],[79,0,79,6],[80,0,80,2],[81,0,82,0],[81,1,81,2],[81,3,81,4],[81,6,81,7],[82,3,82,4],[82,6,82,7],[72,1,72,2],[72,3,72,4],[73,1,73,2],[73,3,73,4],[74,1,74,2],[74,3,74,4],[75,1,75,2],[75,3,75,4],[76,1,76,2],[76,3,76,4],[67,1,67,2],[67,3,67,4],[68,1,68,2],[68,3,68,4],[69,1,69,2],[69,3,69,4],[70,1,70,2],[70,3,70,4],[71,1,71,2],[71,3,71,4],[61,0,61,2],[61,3,61,7],[62,0,62,6],[63,0,63,7],[64,0,64,2],[64,3,64,4],[65,1,65,2],[65,3,65,4],[66,1,66,2],[66,3,66,4],[55,0,55,4],[55,6,55,7],[56,0,56,4],[56,6,56,7],[58,0,58,4],[58,5,58,7],[59,1,59,4],[59,5,59,7],[60,2,60,4],[60,5,60,7],[41,1,41,2],[42,3,42,7],[43,1,43,2],[51,1,51,2],[53,0,53,7],[54,0,54,4],[54,6,54,7],[45,0,45,7],[46,1,46,2],[47,1,47,2],[48,3,48,7],[49,1,49,2],[50,1,50,2],[32,0,32,7],[33,1,33,3],[34,1,34,3],[35,0,35,7],[36,0,36,6],[37,0,37,7],[38,1,38,2],[39,1,39,2],[40,3,40,7],[26,0,26,6],[27,0,27,2],[27,3,27,4],[28,0,28,5],[28,6,28,7],[29,0,29,3],[29,6,29,7],[30,0,30,6],[31,0,31,6],[20,1,20,2],[20,5,20,7],[21,1,21,2],[21,5,21,7],[22,1,22,2],[22,5,22,7],[23,0,23,6],[24,0,24,6],[25,0,25,2],[15,1,15,2],[15,5,15,7],[16,1,16,2],[16,5,16,7],[17,1,17,2],[17,5,17,7],[18,1,18,2],[18,5,18,7],[19,1,19,2],[19,5,19,7],[9,0,9,7],[10,0,10,6],[11,0,11,6],[12,1,12,2],[12,3,12,7],[13,0,13,2],[13,3,13,7],[14,1,14,2],[14,5,14,7],[7,0,7,2],[7,3,7,5],[7,6,7,7],[0,0,0,7],[1,0,1,2],[1,3,1,4],[2,0,2,7],[3,3,3,4],[3,5,3,7],[4,0,4,2],[127,1,127,5],[127,6,127,7],[128,1,128,2],[128,3,128,7],[124,1,124,5],[124,6,124,7],[125,1,125,5],[125,6,125,7],[126,1,126,5],[126,6,126,7]]}
[null,null,null,null,null,null,null,null,"Columns I-Y are meant to be hidden. They exist because they allow for the dropdown list options. They also allow for merged cells to autofit properly in terms of row height. This should work if all columns remain at their correct widths.","g-h",null,"a-e merged","E-F merged","e-h","0 times",null,null,"The government (e.g., Central Medical Stores, MOH logistics unit, MOH procurement unit)",null,null,null,null,"Yes","a-h","January"]
[null,null,null,null,null,null,null,null,null,null,"A-c",null,null,null,"1-2 times","b-d merged",null,"Third-party agent (e.g., UNFPA, Crown Agents)","d-e merged","d-f merged","e-f merged","e-g merged","No",null,"February"]
[null,null,null,null,null,null,null,null,null,null,null,null,null,null,"3-5 times",null,null,"The government and a third-party agent",null,null,null,null,null,null,"March"]
[null,null,null,null,null,null,null,null,null,null,null,null,null,null,"6 or more times",null,null,"Other",null,null,null,null,"N/A",null,"April"]
["To jump to the Introduction sheet, click here.",null,null,null,null,null,null,null,null,null,null,null,null,null,null,null,null,null,null,null,null,null,"Don't know",null,"May"]
[null,null,null,null,null,null,null,null,null,null,null,null,null,null,"N/A",null,null,"N/A",null,null,null,null,null,null,"June"]
["Contraceptive Security (CS) Indicators 2011 Data ",null,null,null,null,null,null,null,null,null,null,null,null,null,"Don't know",null,null,"Don't know",null,null,null,null,null,null,"July"]
["Country: Liberia",null,null,null,null,null,null,null,null,{"$f":"G8","v":0},{"$f":"A8","v":"Country: Liberia"},null,null,null,null,"or c-d",null,null,null,{"$f":"D8","v":0},null,null,null,null,"August"]
["The CS Indicators are presented in the following sections:\n\n               A. leadership & cooordination               B. finance & procurement               C. commodities               D. policies               E. supply chain",null,null,null,null,null,null,null,null,{"$f":"G9","v":0},{"$f":"A9","v":"The CS Indicators are presented in the following sections:\n\n               A. leadership & cooordination               B. finance & procurement               C. commodities               D. policies               E. supply chain"},null,null,null,"d-h",null,"f-h merged",null,{"$f":"D9","v":0},null,null,null,null,null,"September"]
["\nNotes:\n  -  Respondents' answers are indicated in the white spaces. \n  -  N/A = not applicable. Don't know = the respondent either indicated they did not know or left the answer blank.\n  -  Some questions required respondents to choose from a dropdown list of options; in these cases the dropdown arrow will \n     appear when you click on the cell. \n  -  There may be a few inserted comments. (If you cannot already see them, click on Review tab - Comments group - Show All Comments in newer \n       versions of Excel or View - Comments in older versions of Excel.)\n  -  If the answer is cut off, you can either manually adjust the row height or autofit the row height in order to see the whole \n     response. (To autofit the row height, select the answer(s) and go to Home tab - Cells group - Format - Autofit Row Height in newer versions of Excel or \n      Format - Row - Autofit in older versions of Excel.)\n",null,null,null,null,null,null,null,"a-g",null,null,null,null,null,null,null,null,"a-e merged",null,null,null,null,null,{"$f":"A10","v":"\nNotes:\n  -  Respondents' answers are indicated in the white spaces. \n  -  N/A = not applicable. Don't know = the respondent either indicated they did not know or left the answer blank.\n  -  Some questions required respondents to choose from a dropdown list of options; in these cases the dropdown arrow will \n     appear when you click on the cell. \n  -  There may be a few inserted comments. (If you cannot already see them, click on Review tab - Comments group - Show All Comments in newer \n       versions of Excel or View - Comments in older versions of Excel.)\n  -  If the answer is cut off, you can either manually adjust the row height or autofit the row height in order to see the whole \n     response. (To autofit the row height, select the answer(s) and go to Home tab - Cells group - Format - Autofit Row Height in newer versions of Excel or \n      Format - Row - Autofit in older versions of Excel.)\n"},"October"]
["A. Leadership and Coordination",null,null,null,null,null,null,null,null,null,null,null,null,null,null,null,null,null,null,null,null,null,null,null,"November"]
["A1. Is there a national committee that works on contraceptive security? (Please select from the dropdown list.)\n(Committee should have some aspect of contraceptive security as part of its Terms of Reference, even if it is known by a different name, for example: Family Planning, Reproductive Health, Maternal Mortality, Essential Medicine Committee, etc.)  ",null,null,null,null,null,null,"Yes",{"$f":"A12","v":"A1. Is there a national committee that works on contraceptive security? (Please select from the dropdown list.)\n(Committee should have some aspect of contraceptive security as part of its Terms of Reference, even if it is known by a different name, for example: Family Planning, Reproductive Health, Maternal Mortality, Essential Medicine Committee, etc.)  "},null,null,null,null,null,null,null,null,null,null,null,null,null,null,null,"December"]
[null,"a. What is the name of the committee?",null,"National Reproductive Health Security Committee",null,null,null,null,null,null,{"$f":"B13","v":"a. What is the name of the committee?"},{"$f":"D13","v":"National Reproductive Health Security Committee"},null,null,{"$f":"D13","v":"National Reproductive Health Security Committee"}]
["A2. Are the following organizations represented on the committee?",null,null,"(Y/N \ndropdown)",null,null,null,null,null,null,{"$f":"A14","v":"A2. Are the following organizations represented on the committee?"},null,null,null,null,null,null,null,null,null,null,null,null,null,"Don't know"]
[null,"a. Social marketing",null,"No","If yes, specify name(s) of organizations",null,null,null,null,null,{"$f":"B15","v":"a. Social marketing"},null,null,null,null,null,{"$f":"F15","v":0}]
[null,"b. NGO (for example: service delivery, advocacy, Planned Parenthood affiliate, Marie Stopes affiliate, faith-based organizations, etc.)",null,"Yes","If yes, specify name(s) of organizations","Merline, Africare, IRC",null,null,null,null,"b. NGO (for example: service delivery, advocacy, Planned Parenthood affiliate, Marie Stopes affiliate, faith-based organizations, etc.)",null,null,null,null,null,"Merline, Africare, IRC"]
[null,"c. Commercial sector (for example: pharmacy associations, manufacturers, etc.)",null,"No","If yes, specify name(s) of organizations",null,null,null,null,null,"c. Commercial sector (for example: pharmacy associations, manufacturers, etc.)",null,null,null,null,null,0]
[null,"d. Donors",null,"Yes","If yes, specify name(s) of donors","USAID",null,null,null,null,"d. Donors",null,null,null,null,null,"USAID"]
[null,"e. UN agencies",null,"Yes","If yes, specify name(s) of agencies","UNFPA",null,null,null,null,"e. UN agencies",null,null,null,null,null,"UNFPA"]
[null,"f. Ministry of Health (for example: logistics, reproductive health, family planning, maternal and child health, HIV/AIDS, pharmacy units, etc.)",null,"Yes","If yes, specify name(s) of units","Supply Chain Management Unit, Family Health Division (FHD)",null,null,null,null,"f. Ministry of Health (for example: logistics, reproductive health, family planning, maternal and child health, HIV/AIDS, pharmacy units, etc.)",null,null,null,null,null,"Supply Chain Management Unit, Family Health Division (FHD)"]
[null,"g. Central Medical Store or Central Warehouse",null,"No","If yes, specify",null,null,null,null,null,"g. Central Medical Store or Central Warehouse",null,null,null,null,null,0]
[null,"h. Ministry of Finance or Ministry of Planning ",null,"No","If yes, specify",null,null,null,null,null,"h. Ministry of Finance or Ministry of Planning ",null,null,null,null,null,0]
[null,"i. Other (for example: partners)",null,"No","If yes, specify",null,null,null,null,null,"i. Other (for example: partners)",null,null,null,null,null,0]
["A3. How many times did the committee meet during the last year? (0, 1-2, 3-5, or 6+)  (Please select from the dropdown.)",null,null,null,null,null,null,"1-2 times",{"$f":"A24","v":"A3. How many times did the committee meet during the last year? (0, 1-2, 3-5, or 6+)  (Please select from the dropdown.)"}]
["A4. Does the committee have legal status?  (Please select from the dropdown.)                                  ",null,null,null,null,null,null,"No",{"$f":"A25","v":"A4. Does the committee have legal status?  (Please select from the dropdown.)                                  "}]
["A5. Is there a Contraceptive Security \"champion\"? (someone who consistently brings up and advocates for contraceptive supplies)",null,null,"Yes","If yes, specify person's organization","UNFPA","Specify person's job title","CS Focus Person seconded to the FHD/MOH",null,null,{"$f":"A26","v":"A5. Is there a Contraceptive Security \"champion\"? (someone who consistently brings up and advocates for contraceptive supplies)"}]
["B. Finance and Procurement (Capital)"]
["B1. What is the timeline of the country's fiscal year?",null,null,"Beginning month",null,"July","Ending month","June",null,null,{"$f":"B28","v":0}]
["B2. What was the estimated dollar value of contraceptives needed to be procured for the public sector for the most recent complete fiscal year? (in USD currency)\n(for example, to cover the needs for the '09-'10 fiscal year)",null,null,null,null,null,494137,null,null,{"$f":"G29","v":494137},null,null,{"$f":"E29","v":0},null,null,null,null,null,null,null,null,null,null,null,{"$f":"A29","v":"B2. What was the estimated dollar value of contraceptives needed to be procured for the public sector for the most recent complete fiscal year? (in USD currency)\n(for example, to cover the needs for the '09-'10 fiscal year)"}]
["B3. When was the last forecast/quantification conducted? (mm/yy)",null,null,null,"10/10","Who conducted it? (Specify organization.)","USAID | DELIVER PROJECT",null,null,{"$f":"G30","v":"USAID | DELIVER PROJECT"},null,null,{"$f":"E30","v":"10/10"},null,null,null,null,null,null,null,null,null,null,null,{"$f":"A30","v":"B3. When was the last forecast/quantification conducted? (mm/yy)"}]
["B4. Is there a government budget line item for the procurement of contraceptives?  (Please select from the dropdown list.)",null,null,null,null,null,null,"No",{"$f":"A31","v":"B4. Is there a government budget line item for the procurement of contraceptives?  (Please select from the dropdown list.)"}]
["B5. Were government funds allocated for contraceptive procurement for the public sector in the most recent complete fiscal year? (This question refers to funds planned to be spent on contraceptives, whether or not they ended up being spent.) \n\n(Government funds include internally generated funds, basket funds, World Bank credits or loans, and other funds donors gave to the government for their use.) \n",null,null,null,null,null,null,"Don't know",{"$f":"A32","v":"B5. Were government funds allocated for contraceptive procurement for the public sector in the most recent complete fiscal year? (This question refers to funds planned to be spent on contraceptives, whether or not they ended up being spent.) \n\n(Government funds include internally generated funds, basket funds, World Bank credits or loans, and other funds donors gave to the government for their use.) \n"}]
["B6. Please complete the table below regarding government allocations for contraceptive procurement.",null,null,null,null,null,null,null,null,null,null,null,null,null,null,null,null,null,null,null,null,null,null,{"$f":"A33","v":"B6. Please complete the table below regarding government allocations for contraceptive procurement."}]
[null,null,null,null,"Amount allocated \n(in USD)","Time period during which allocations were supposed to be spent \n(mm/yy-mm/yy)\n(should ideally be the most recent\ncomplete fiscal year ['09-'10])","Data source \n(for example: Ministry records)","Comments",null,null,{"$f":"A34","v":0}]
[null,"Government funds allocated for contraceptive procurement\n(funds originally designated for contraceptives, whether or not they ended up being spent on them)",null,null,"Don't know","07/09-06/10",null,null,null,null,{"$f":"#REF!","v":{"$error":"#REF!"}}]
[]
["B7. Were government funds spent on contraceptive procurement for the public sector in the most recent complete fiscal year? \n(Government funds include internally generated funds, basket funds, World Bank credits or loans, and other funds donors gave to the government for their use.)",null,null,null,null,null,null,"No",{"$f":"A37","v":"B7. Were government funds spent on contraceptive procurement for the public sector in the most recent complete fiscal year? \n(Government funds include internally generated funds, basket funds, World Bank credits or loans, and other funds donors gave to the government for their use.)"}]
["B8. Please complete the table below to indicate government expenditures on contraceptive procurement, by source, in the most recent complete fiscal year. \n(This is how much was spent on contraceptive procurement (not what was allocated). How much of this spending was provided from each source?)",null,null,null,null,null,null,null,null,null,null,null,null,null,null,null,null,null,null,null,null,null,null,{"$f":"A38","v":"B8. Please complete the table below to indicate government expenditures on contraceptive procurement, by source, in the most recent complete fiscal year. \n(This is how much was spent on contraceptive procurement (not what was allocated). How much of this spending was provided from each source?)"}]
[null,"Source of government funds spent on contraceptive procurement for the public sector",null,"Was this source used?\n(Y/N)","Amount spent \n(in USD)","Time period (mm/yy-mm/yy)\n(should be the same for all sources of funds & ideally be the most recent\ncomplete fiscal year ['09-'10])","Data source \n(for example: Contraceptive Procurement Table, PipeLine, etc.)","Comments",null,null,{"$f":"A39","v":0}]
[null,"a. Internally generated funds spent on contraceptive procurement",null,"No",0,"07/09-06/10",null,null,null,null,{"$f":"B40","v":"a. Internally generated funds spent on contraceptive procurement"}]
[null,null,"i. Specify source(s) of internally generated funds spent (for example, from taxes or user fees)","N/A",null,null,null,null,null,null,{"$f":"C41","v":"i. Specify source(s) of internally generated funds spent (for example, from taxes or user fees)"},null,null,null,{"$f":"D41","v":"N/A"}]
[null,"b. Total of all other government funds spent on contraceptive procurement (basket funds, World Bank credits or loans, and other funds donors gave to the government [e.g., direct budget support])",null,"No",0,"07/09-06/10",null,null,null,null,{"$f":"B42","v":"b. Total of all other government funds spent on contraceptive procurement (basket funds, World Bank credits or loans, and other funds donors gave to the government [e.g., direct budget support])"}]
[null,null,"i. Specify source(s) of other government funds spent (for example: basket funding or specific donor)","N/A",null,null,null,null,null,null,{"$f":"C43","v":"i. Specify source(s) of other government funds spent (for example: basket funding or specific donor)"},null,null,null,{"$f":"D43","v":"N/A"}]
[null,"c. TOTAL government funds spent on contraceptive procurement\nThis will auto-calculate.  (It will sum a & b above.)",null,null,{"$f":"E40+E42","v":0},null,null,null,null,null,{"$f":"B44","v":"c. TOTAL government funds spent on contraceptive procurement\nThis will auto-calculate.  (It will sum a & b above.)"}]
[null,null,null,null,null,null,null,null,null,null,{"$f":"A45","v":0}]
["B9. Please complete the table below to indicate donor expenditures on contraceptive procurement in the most recent complete fiscal year.\n",null,null,null,null,null,null,null,null,null,null,null,null,null,null,null,null,null,null,null,null,null,null,{"$f":"A46","v":"B9. Please complete the table below to indicate donor expenditures on contraceptive procurement in the most recent complete fiscal year.\n"}]
["\n","Source of donations and donor funds spent on contraceptive procurement for the public sector",null,"Was this a source?\n(Y/N)","Amount of money spent on these procurements \n(in USD)","Time period (mm/yy-mm/yy)\n(should be the same for all sources of funds & ideally be the most recent\ncomplete fiscal year ['09-'10])","Data source \n(for example:  Donor records, Contraceptive Procurement Table, PipeLine, RHInterchange, etc.","Comments",null,null,{"$f":"A47","v":"\n"}]
[null,"a. In-kind donations of contraceptives",null,"Yes",798187,"07/09-06/10","RHInterchange",null,null,null,{"$f":"B48","v":"a. In-kind donations of contraceptives"}]
[null,null,"i. Specify source(s) of in-kind donations ","USAID ($383,864) & UNFPA ($414, 323)",null,null,null,null,null,null,{"$f":"C49","v":"i. Specify source(s) of in-kind donations "},null,null,null,{"$f":"D49","v":"USAID ($383,864) & UNFPA ($414, 323)"}]
[null,"b. Global Fund donations used to procure condoms",null,"No",0,"07/09-06/10","RHInterchange",null,null,null,{"$f":"B50","v":"b. Global Fund donations used to procure condoms"}]
[null,"c. Global Fund donations used to procure contraceptives besides condoms",null,"No",0,"07/09-06/10","RHInterchange",null,null,null,{"$f":"B51","v":"c. Global Fund donations used to procure contraceptives besides condoms"}]
[null,"d. TOTAL value of in-kind donations and Global Fund donations spent on contraceptive procurement\nThis will auto-calculate.  (It will sum a-c above.)",null,null,{"$f":"E48+E50+E51","v":798187},null,null,null,null,null,{"$f":"B52","v":"d. TOTAL value of in-kind donations and Global Fund donations spent on contraceptive procurement\nThis will auto-calculate.  (It will sum a-c above.)"}]
[null,null,null,null,null,null,null,null,null,null,{"$f":"A53","v":0}]
["The answers to B10 and B11 should calculate automatically based on the information you provided. Please review the answers to ensure they make sense to you, and if you have additional information to add, please note it in the comments boxes.\n\nIf the answers do not calculate automatically, please provide any relevant information you may have in the comments boxes.\n",null,null,null,null,null,null,null,null,null,null,null,null,null,null,null,null,null,null,null,null,null,null,{"$f":"A54","v":"The answers to B10 and B11 should calculate automatically based on the information you provided. Please review the answers to ensure they make sense to you, and if you have additional information to add, please note it in the comments boxes.\n\nIf the answers do not calculate automatically, please provide any relevant information you may have in the comments boxes.\n"}]
["B10. Government share of funds spent on contraceptive procurement for the public sector - \nOf the total amount spent on contraceptives for the public sector in the most recent complete fiscal year (including government and donor funds), what percent was covered by government funds (including internally generated funds, basket funds, World Bank credits or loans, and other funds given to the government)? \n\nThis will auto-calculate. (It contains the following formula: Total government spending (Question B8c) / Grand total of all spending for public sector contraceptives from the government and donors (Questions B8c+B9d))",null,null,null,null,{"$f":"E44/(E44+E52)","v":0},null,null,null,{"$f":"G55","v":0},null,null,null,null,null,null,null,{"$f":"A55","v":"B10. Government share of funds spent on contraceptive procurement for the public sector - \nOf the total amount spent on contraceptives for the public sector in the most recent complete fiscal year (including government and donor funds), what percent was covered by government funds (including internally generated funds, basket funds, World Bank credits or loans, and other funds given to the government)? \n\nThis will auto-calculate. (It contains the following formula: Total government spending (Question B8c) / Grand total of all spending for public sector contraceptives from the government and donors (Questions B8c+B9d))"}]
["B11. Total expenditures on public sector contraceptives as percent of amount that needed to be procured -\nOf the estimated value of the contraceptives needed to be procured for the public sector for the most recent complete fiscal year, what percent was provided by any source (whether government or donor)? \n\nThis will auto-calculate. (It contains the following formula: Grand total of all spending for public sector contraceptives from the government and donors (Questions B8c+B9d) / Value of estimated need for procurement (Question B2))",null,null,null,null,{"$f":"(E44+E52)/G29","v":1.6153151858695058},"Consumption increased for Depo-provera and implants after the quantification.",null,null,{"$f":"G56","v":"Consumption increased for Depo-provera and implants after the quantification."},null,null,null,null,null,null,null,{"$f":"A56","v":"B11. Total expenditures on public sector contraceptives as percent of amount that needed to be procured -\nOf the estimated value of the contraceptives needed to be procured for the public sector for the most recent complete fiscal year, what percent was provided by any source (whether government or donor)? \n\nThis will auto-calculate. (It contains the following formula: Grand total of all spending for public sector contraceptives from the government and donors (Questions B8c+B9d) / Value of estimated need for procurement (Question B2))"}]
["B12. If B11 did not calculate automatically, please answer the following question:\nWas there a funding gap for the public sector in the last complete fiscal year (e.g., 09-'10 fiscal year)?\n(Please select from the dropdown list.)",null,null,null,null,null,null,null,null,{"$f":"G57","v":0},null,null,null,null,null,null,null,{"$f":"A57","v":"B12. If B11 did not calculate automatically, please answer the following question:\nWas there a funding gap for the public sector in the last complete fiscal year (e.g., 09-'10 fiscal year)?\n(Please select from the dropdown list.)"}]
[null,null,null,null,null,null,null,null,null,null,{"$f":"A58","v":0}]
["B13. If the government financed any contraceptive procurement in the most recent complete fiscal year, which entity conducted the procurement(s)? (Please select from the dropdown.)",null,null,null,null,"N/A",null,null,null,null,null,null,null,null,null,null,{"$f":"F59","v":"N/A"},{"$f":"A59","v":"B13. If the government financed any contraceptive procurement in the most recent complete fiscal year, which entity conducted the procurement(s)? (Please select from the dropdown.)"}]
[null,"a. Specify entity",null,null,null,"N/A",null,null,null,null,null,null,{"$f":"E60","v":0},null,null,null,{"$f":"F60","v":"N/A"},{"$f":"B60","v":"a. Specify entity"}]
[null,null,"i. Is this a parastatal?",null,null,"N/A",null,null,null,null,null,null,null,null,null,null,{"$f":"F61","v":"N/A"},{"$f":"C61","v":"i. Is this a parastatal?"}]
["B14. Please note any additional comments about finance and procurement.\n",null,null,null,null,null,null,null,null,null,{"$f":"A62","v":"B14. Please note any additional comments about finance and procurement.\n"},null,null,null,{"$f":"D62","v":0}]
["C. Commodities"]
["C1. Are the following contraceptive methods offered through the commercial sector, public sector, NGOs, or social marketing? (Please indicate which methods are intended to be offered. This question is not asking whether the method is in stock.) \n(Please select from the dropdown list.)",null,null,null,null,null,null,null,null,null,null,null,null,null,null,null,null,null,null,null,null,null,null,{"$f":"A64","v":"C1. Are the following contraceptive methods offered through the commercial sector, public sector, NGOs, or social marketing? (Please indicate which methods are intended to be offered. This question is not asking whether the method is in stock.) \n(Please select from the dropdown list.)"}]
["Contraceptive Method",null,null,"Commercial Sector",null,"Public Sector","NGO","Social Marketing",null,null,{"$f":"A65","v":"Contraceptive Method"}]
[null,"a. Combined oral contraceptives (estrogen + progestin - for  example, LoFemenol, Microgynon)",null,"Yes",null,"Yes","Yes","Don't know",null,null,{"$f":"B66","v":"a. Combined oral contraceptives (estrogen + progestin - for  example, LoFemenol, Microgynon)"}]
[null,"b. Progestin-only pills (for example, Ovrette, Microlut)",null,"Yes",null,"Yes","Yes","Don't know",null,null,{"$f":"B67","v":"b. Progestin-only pills (for example, Ovrette, Microlut)"}]
[null,"c. Hormonal injections (for example, DepoProvera, Noristerat)",null,"Yes",null,"Yes","Yes","Don't know",null,null,"c. Hormonal injections (for example, DepoProvera, Noristerat)"]
[null,"d. Hormonal implants (for example, Jadelle, Implanon)",null,"Yes",null,"Yes","Yes","Don't know",null,null,"d. Hormonal implants (for example, Jadelle, Implanon)"]
[null,"e. Intrauterine devices (IUDs) (for example, Optima Copper T)",null,"Yes",null,"Yes","Yes","Don't know",null,null,"e. Intrauterine devices (IUDs) (for example, Optima Copper T)"]
[null,"f. Male condoms",null,"Yes",null,"Yes","Yes","Yes",null,null,"f. Male condoms"]
[null,"g. Female condoms",null,"Yes",null,"Yes","Yes","Don't know",null,null,"g. Female condoms"]
[null,"h. Emergency contraceptive pills (for example, Postinor)",null,"Yes",null,"Yes","Yes","Don't know",null,null,"h. Emergency contraceptive pills (for example, Postinor)"]
[null,"i. Long-acting permanent method for males (vasectomy)",null,"Yes",null,"Yes","Yes","Don't know",null,null,"i. Long-acting permanent method for males (vasectomy)"]
[null,"j. Long-acting permanent method for females (tubal ligation)",null,"Yes",null,"Yes","Yes","Don't know",null,null,"j. Long-acting permanent method for females (tubal ligation)"]
[null,"k. CycleBeads",null,"No",null,"Yes","No","Don't know",null,null,"k. CycleBeads"]
[null,"l. Other contraceptive methods - specify \n(Please provide the name of the other contraceptive(s) offered, by sector.)",null,null,null,null,null,null,null,null,"l. Other contraceptive methods - specify \n(Please provide the name of the other contraceptive(s) offered, by sector.)"]
["C2. Please note any comments about the commodities offered.",null,null,null,null,null,null,null,null,null,{"$f":"A78","v":"C2. Please note any comments about the commodities offered."},null,null,null,{"$f":"D78","v":0}]
["D. Policies (Commitment)"]
["D1. Is there a contraceptive security or reproductive health commodity security strategy or is contraceptive security explicitly included in a country strategy? (Please select from the dropdown list.)",null,null,null,null,null,null,"Yes",{"$f":"A80","v":"D1. Is there a contraceptive security or reproductive health commodity security strategy or is contraceptive security explicitly included in a country strategy? (Please select from the dropdown list.)"}]
["IF NO, SKIP TO QUESTION D2."]
[null,"Strategy name",null,"Years Covered (including strategy updates)",null,"Is the strategy formally approved by the Ministry?","Is the contraceptive security strategy being implemented?",null,null,{"$f":"G82","v":"Is the contraceptive security strategy being implemented?"},{"$f":"B82","v":"Strategy name"},null,{"$f":"E82","v":0},null,null,null,null,null,{"$f":"D82","v":"Years Covered (including strategy updates)"}]
[null,"a","National Reproductive Health Commodity Security Strategy and Operational Plan","2008-2012",null,"Yes","Yes",null,null,{"$f":"G83","v":"Yes"},{"$f":"B83","v":"a"},null,{"$f":"E83","v":0},null,null,null,null,null,{"$f":"D83","v":"2008-2012"}]
["D2. Are any family planning commodities subject to duties, import taxes, or other fees?",null,null,null,null,"No",null,null,null,null,null,null,null,null,null,null,{"$f":"F84","v":"No"},{"$f":"A84","v":"D2. Are any family planning commodities subject to duties, import taxes, or other fees?"}]
[null,"a. If yes, for which sectors (public, NGO, social marketing, commercial)?",null,null,"N/A",null,null,null,null,null,null,null,{"$f":"E85","v":"N/A"},{"$f":"E85","v":"N/A"},null,null,null,{"$f":"B85","v":"a. If yes, for which sectors (public, NGO, social marketing, commercial)?"}]
[null,"b. If yes, how much are the duties, taxes, or fees?",null,null,"N/A",null,null,null,null,null,null,null,null,{"$f":"E86","v":"N/A"},null,null,null,{"$f":"B86","v":"b. If yes, how much are the duties, taxes, or fees?"}]
["D3. Are there policies that hinder the ability of the private sector (commercial sector, NGOs, or social marketing) to provide contraceptive methods (for example: price controls, distribution limitations, taxes/duties, advertising bans, etc.)?",null,null,null,null,null,null,"Don't know",{"$f":"A87","v":"D3. Are there policies that hinder the ability of the private sector (commercial sector, NGOs, or social marketing) to provide contraceptive methods (for example: price controls, distribution limitations, taxes/duties, advertising bans, etc.)?"}]
[null,"a. If yes, describe the policies.",null,"Don't know",null,null,null,null,null,null,{"$f":"B88","v":"a. If yes, describe the policies."},null,null,null,{"$f":"D88","v":"Don't know"}]
["D4. Are there policies that enable the private sector (commercial sector, NGOs, or social marketing) to provide contraceptive methods?",null,null,null,null,null,null,"No",{"$f":"A89","v":"D4. Are there policies that enable the private sector (commercial sector, NGOs, or social marketing) to provide contraceptive methods?"}]
[null,"a. If yes, describe the policies.",null,"N/A",null,null,null,null,null,null,{"$f":"B90","v":"a. If yes, describe the policies."},null,null,null,{"$f":"D90","v":"N/A"}]
["D5. Do policies or regulations exist that restrict who can sell or dispense particular contraceptive methods?\n",null,null,null,null,null,null,"Yes",{"$f":"A91","v":"D5. Do policies or regulations exist that restrict who can sell or dispense particular contraceptive methods?\n"}]
[null,"Please note any restrictions in the following table."]
[null,"Contraceptive Method(s)",null,null,"Describe any public sector restriction on who is allowed to sell or dispense the method",null,"Describe any private sector restriction on who is allowed to sell or dispense the method",null,null,{"$f":"G93","v":"Describe any private sector restriction on who is allowed to sell or dispense the method"},null,null,null,null,null,{"$f":"B93","v":"Contraceptive Method(s)"},null,null,null,null,{"$f":"E93","v":"Describe any public sector restriction on who is allowed to sell or dispense the method"}]
[null,"a","DMPA injections",null,"Only qualified health workers (including CHWs) can dispense",null,"Only registered outlets can sell",null,null,{"$f":"G94","v":"Only registered outlets can sell"},null,null,{"$f":"E94","v":"Only qualified health workers (including CHWs) can dispense"},null,null,{"$f":"C94","v":"DMPA injections"},null,null,null,null,{"$f":"E94","v":"Only qualified health workers (including CHWs) can dispense"}]
[null,"b","Implants",null,"Only qualified health workers (including CHWs) can dispense",null,"Only registered outlets can sell",null,null,{"$f":"G95","v":"Only registered outlets can sell"},null,null,{"$f":"E95","v":"Only qualified health workers (including CHWs) can dispense"},null,null,{"$f":"C95","v":"Implants"},null,null,null,null,{"$f":"E95","v":"Only qualified health workers (including CHWs) can dispense"}]
[null,"c",null,null,null,null,null,null,null,{"$f":"G96","v":0},null,null,{"$f":"E96","v":0},null,null,{"$f":"C96","v":0},null,null,null,null,{"$f":"E96","v":0}]
[null,null,null,null,null,null,null,null,null,null,{"$f":"C97","v":0}]
["D6. Does the country have laws, regulations, or policies that make it difficult for the following sub-populations to access effective family planning services?",null,null,"Y/N","If yes, describe laws/regulations/policies affecting access ",null,null,"Are the rules/policies implemented?",null,null,{"$f":"A98","v":"D6. Does the country have laws, regulations, or policies that make it difficult for the following sub-populations to access effective family planning services?"},null,null,null,null,null,null,null,null,null,null,{"$f":"E98","v":"If yes, describe laws/regulations/policies affecting access "}]
[null,"a. Unmarried people",null,"No",null,null,null,null,null,null,{"$f":"B99","v":"a. Unmarried people"},null,{"$f":"E99","v":0},null,null,null,null,null,null,null,null,{"$f":"E99","v":0}]
[null,"b. Young people",null,"No",null,null,null,null,null,null,{"$f":"B100","v":"b. Young people"},null,{"$f":"E100","v":0},null,null,null,null,null,null,null,null,{"$f":"E100","v":0}]
[null,"c. Other",null,"Don't know",null,null,null,null,null,null,{"$f":"B101","v":"c. Other"},null,{"$f":"E101","v":0},null,null,null,null,null,null,null,null,{"$f":"E101","v":0}]
[null,null,null,null,null,null,null,null,null,null,{"$f":"C102","v":0}]
["D7. Are there charges* to the client in the public sector for family planning:\n*(This question refers to charges by policy, not under-the-table charges.)\n",null,null,null,null,null,null,null,null,null,null,null,null,null,null,null,null,null,null,null,null,null,null,{"$f":"A103","v":"D7. Are there charges* to the client in the public sector for family planning:\n*(This question refers to charges by policy, not under-the-table charges.)\n"}]
[null,"a. Services?",null,null,null,null,"No",null,null,{"$f":"G104","v":"No"},null,null,null,null,null,null,null,null,null,null,null,null,null,null,{"$f":"B104","v":"a. Services?"}]
[null,"b. Commodities?",null,null,null,null,"No",null,null,{"$f":"G105","v":"No"},null,null,null,null,null,null,null,null,null,null,null,null,null,null,{"$f":"B105","v":"b. Commodities?"}]
[null,"c. If yes, are there exemptions for people who cannot afford to pay?",null,null,null,null,"N/A",null,null,{"$f":"G106","v":"N/A"},null,null,null,null,null,null,null,null,null,null,null,null,null,null,{"$f":"B106","v":"c. If yes, are there exemptions for people who cannot afford to pay?"}]
[null,null,"i. If yes, describe the exemptions.","N/A",null,null,null,null,null,null,{"$f":"C107","v":"i. If yes, describe the exemptions."},null,null,null,{"$f":"D107","v":"N/A"}]
["D8. Are the following contraceptives included in the country's National Essential Medicine List (NEML) or other equivalent priority list?",null,null,null,null,null,null,null,null,null,null,null,null,null,null,null,null,null,null,null,null,null,null,{"$f":"A108","v":"D8. Are the following contraceptives included in the country's National Essential Medicine List (NEML) or other equivalent priority list?"}]
[null,"a. Combined oral contraceptives",null,null,null,null,"Yes",null,null,{"$f":"G109","v":"Yes"},null,null,null,null,null,null,null,null,null,null,null,null,null,null,{"$f":"B109","v":"a. Combined oral contraceptives"}]
[null,"b. Progestin-only pills",null,null,null,null,"Yes",null,null,"Yes",null,null,null,null,null,null,null,null,null,null,null,null,null,null,"b. Progestin-only pills"]
[null,"c. Hormonal injections",null,null,null,null,"Yes",null,null,"Yes",null,null,null,null,null,null,null,null,null,null,null,null,null,null,"c. Hormonal injections"]
[null,"d. Hormonal implants",null,null,null,null,"Yes",null,null,"Yes",null,null,null,null,null,null,null,null,null,null,null,null,null,null,"d. Hormonal implants"]
[null,"e. Intrauterine devices (IUDs)",null,null,null,null,"Yes",null,null,"Yes",null,null,null,null,null,null,null,null,null,null,null,null,null,null,"e. Intrauterine devices (IUDs)"]
[null,"f. Male condoms",null,null,null,null,"Yes",null,null,"Yes",null,null,null,null,null,null,null,null,null,null,null,null,null,null,"f. Male condoms"]
[null,"g. Female condoms",null,null,null,null,"Yes",null,null,"Yes",null,null,null,null,null,null,null,null,null,null,null,null,null,null,"g. Female condoms"]
[null,"h. Emergency contraceptive pills",null,null,null,null,"Yes",null,null,"Yes",null,null,null,null,null,null,null,null,null,null,null,null,null,null,"h. Emergency contraceptive pills"]
[null,"i. CycleBeads",null,null,null,null,"Yes",null,null,{"$f":"G117","v":"Yes"},null,null,null,null,null,null,null,null,null,null,null,null,null,null,{"$f":"B117","v":"i. CycleBeads"}]
[null,"j. Any other contraceptive(s)?",null,null,null,null,"Yes",null,null,"Yes",null,null,null,null,null,null,null,null,null,null,null,null,null,null,"j. Any other contraceptive(s)?"]
[null,null,"i. Name of other contraceptive(s) on the list(s)",null,null,"Foaming tablets",null,null,null,0,null,null,null,null,null,null,null,{"$f":"B119","v":0}]
["D9. What year(s) is the list(s) from?",null,null,null,null,"Don't know",null,null,null,0,null,null,null,null,null,null,null,{"$f":"B120","v":0}]
["D10. Name of the list(s)\n\n\n",null,null,"National Essential Medicine List of Liberia",null,null,null,null,null,null,{"$f":"A121","v":"D10. Name of the list(s)\n\n\n"},null,null,null,{"$f":"D121","v":"National Essential Medicine List of Liberia"}]
["D11. Notes about the list(s)\n\n\n",null,null,"It has just been updated.",null,null,null,null,null,null,{"$f":"A122","v":"D11. Notes about the list(s)\n\n\n"},null,null,null,{"$f":"D122","v":"It has just been updated."}]
["D12.  Information on country's Poverty Reduction Strategy Paper (PRSP)\n",null,null,null,null,null,null,null,null,null,null,null,null,null,null,null,null,null,null,null,null,null,null,{"$f":"A123","v":"D12.  Information on country's Poverty Reduction Strategy Paper (PRSP)\n"}]
[null,"a. What year is the Poverty Reduction Strategy Paper from? (most recent actual PRSP on IMF's site [not progress or summary report])",null,null,null,2008,null,null,null,{"$f":"G124","v":0},null,null,null,null,null,null,null,{"$f":"B124","v":"a. What year is the Poverty Reduction Strategy Paper from? (most recent actual PRSP on IMF's site [not progress or summary report])"}]
[null,"b. Is family planning or reproductive health a priority in the PRSP?",null,null,null,null,"No",null,null,{"$f":"G125","v":"No"},null,null,null,null,null,null,null,null,null,null,null,null,null,null,{"$f":"B125","v":"b. Is family planning or reproductive health a priority in the PRSP?"}]
[null,"c. Is contraceptive security included in the PRSP?",null,null,null,null,"No",null,null,{"$f":"G126","v":"No"},null,null,null,null,null,null,null,null,null,null,null,null,null,null,{"$f":"B126","v":"c. Is contraceptive security included in the PRSP?"}]
[null,"d. Is contraceptive prevalence rate (CPR) included as an indicator in the PRSP?",null,null,null,null,"Yes",null,null,{"$f":"G127","v":"Yes"},null,null,null,null,null,null,null,null,null,null,null,null,null,null,{"$f":"B127","v":"d. Is contraceptive prevalence rate (CPR) included as an indicator in the PRSP?"}]
[null,"e. Are contraceptive supply indicators included in the PRSP?",null,null,null,null,"No",null,null,{"$f":"G128","v":"No"},null,null,null,null,null,null,null,null,null,null,null,null,null,null,{"$f":"B128","v":"e. Are contraceptive supply indicators included in the PRSP?"}]
["\n\n\n","f. Notes about the Poverty Reduction Strategy Paper",null,null,null,null,null,null,null,null,{"$f":"B129","v":"f. Notes about the Poverty Reduction Strategy Paper"},null,null,null,{"$f":"D129","v":0}]
["E. Supply Chain (Capacity)"]
["E1. Have stockouts occurred for any contraceptive at the central* level in the last 12 months?  \n*(The central level refers to the central level warehouse for the public sector.)",null,null,null,null,null,"Yes",null,null,{"$f":"G131","v":"Yes"},null,null,null,null,null,null,null,null,null,null,null,null,null,null,{"$f":"A131","v":"E1. Have stockouts occurred for any contraceptive at the central* level in the last 12 months?  \n*(The central level refers to the central level warehouse for the public sector.)"}]
["E2. In the last 12 months, has there ever been a stockout at the central level of any of the contraceptives offered in public sector facilities? (If a method is not intended to be offered in public sector facilities, please indicate that stockouts are not applicable (choose \"N/A\" from the dropdown list).)",null,null,null,null,null,null,null,null,null,null,null,null,null,null,null,null,null,null,null,null,null,null,{"$f":"A132","v":"E2. In the last 12 months, has there ever been a stockout at the central level of any of the contraceptives offered in public sector facilities? (If a method is not intended to be offered in public sector facilities, please indicate that stockouts are not applicable (choose \"N/A\" from the dropdown list).)"}]
[null,"a. Combined oral contraceptives",null,null,null,null,"No",null,null,{"$f":"G133","v":"No"},null,null,null,null,null,null,null,null,null,null,null,null,null,null,{"$f":"B133","v":"a. Combined oral contraceptives"}]
[null,"b. Progestin-only pills",null,null,null,null,"No",null,null,"No",null,null,null,null,null,null,null,null,null,null,null,null,null,null,"b. Progestin-only pills"]
[null,"c. Hormonal injections",null,null,null,null,"No",null,null,"No",null,null,null,null,null,null,null,null,null,null,null,null,null,null,"c. Hormonal injections"]
[null,"d. Hormonal implants",null,null,null,null,"No",null,null,"No",null,null,null,null,null,null,null,null,null,null,null,null,null,null,"d. Hormonal implants"]
[null,"e. Intrauterine devices (IUDs)",null,null,null,null,"No",null,null,"No",null,null,null,null,null,null,null,null,null,null,null,null,null,null,"e. Intrauterine devices (IUDs)"]
[null,"f. Male condoms",null,null,null,null,"Yes",null,null,"Yes",null,null,null,null,null,null,null,null,null,null,null,null,null,null,"f. Male condoms"]
[null,"g. Female condoms",null,null,null,null,"No",null,null,"No",null,null,null,null,null,null,null,null,null,null,null,null,null,null,"g. Female condoms"]
[null,"h. Emergency contraceptive pills",null,null,null,null,"No",null,null,"No",null,null,null,null,null,null,null,null,null,null,null,null,null,null,"h. Emergency contraceptive pills"]
[null,"i. CycleBeads",null,null,null,null,"No",null,null,"No",null,null,null,null,null,null,null,null,null,null,null,null,null,null,"i. CycleBeads"]
[null,"j. Time period\n(mm/yy - mm/yy) (for example, 1/10-12/10) ",null,null,null,"01/10-12/10",null,null,null,null,null,null,null,null,null,null,{"$f":"F142","v":"01/10-12/10"},{"$f":"B142","v":"j. Time period\n(mm/yy - mm/yy) (for example, 1/10-12/10) "}]
[null,"k. Data source\n(for example: Procurement Planning and Monitoring Report, Logistics Management Information System, periodic physical inventory, warehouse reports)",null,null,null,"Procurement Planning and Monitoring Report (PPMR)",null,null,null,null,null,null,null,null,null,null,{"$f":"F143","v":"Procurement Planning and Monitoring Report (PPMR)"},{"$f":"B143","v":"k. Data source\n(for example: Procurement Planning and Monitoring Report, Logistics Management Information System, periodic physical inventory, warehouse reports)"}]
["E3. Are stockouts a large problem in your country at the following levels? (i.e., Are they common or do they tend to last for a long time?)\n\n"]
[null,"a. service delivery point level (i.e., public sector health facilities)",null,null,null,null,"Yes",null,null,{"$f":"G145","v":"Yes"},null,null,null,null,null,null,null,null,null,null,null,null,null,null,{"$f":"B145","v":"a. service delivery point level (i.e., public sector health facilities)"}]
[null,"b. central level (i.e., central level warehouse for the public sector)",null,null,null,null,"Yes",null,null,{"$f":"G146","v":"Yes"},null,null,null,null,null,null,null,null,null,null,null,null,null,null,{"$f":"B146","v":"b. central level (i.e., central level warehouse for the public sector)"}]
["F. Please note any overall comments about challenges and/or successes with contraceptive security in your country.\n\n",null,null,"Challenge: data collection and reporting from the peripheral levels and storage at the central level. Successes: The availability of all the methods and client choice.",null,null,null,null,null,null,{"$f":"A147","v":"F. Please note any overall comments about challenges and/or successes with contraceptive security in your country.\n\n"},null,null,null,{"$f":"D147","v":"Challenge: data collection and reporting from the peripheral levels and storage at the central level. Successes: The availability of all the methods and client choice."}]

{"sheet":"Madagascar 2011","index":25,"n_rows":147,"n_cols":25,"rows_kept":147,"cut":false,"hidden":false,"merged":[[8,0,8,7],[147,0,147,7],[148,0,150,7],[145,1,145,5],[145,6,145,7],[146,0,146,2],[146,3,146,7],[141,1,141,4],[141,5,141,7],[142,1,142,4],[142,5,142,7],[143,0,143,7],[144,1,144,5],[144,6,144,7],[138,1,138,5],[138,6,138,7],[139,1,139,5],[139,6,139,7],[140,1,140,5],[131,0,131,7],[132,1,132,5],[132,6,132,7],[133,1,133,5],[133,6,133,7],[134,1,134,5],[134,6,134,7],[140,6,140,7],[135,1,135,5],[135,6,135,7],[136,1,136,5],[136,6,136,7],[137,1,137,5],[137,6,137,7],[120,0,120,2],[120,3,120,7],[121,0,121,2],[121,3,121,7],[129,0,129,6],[130,0,130,5],[130,6,130,7],[122,0,122,7],[123,1,123,4],[123,5,123,7],[115,1,115,5],[115,6,115,7],[116,1,116,5],[116,6,116,7],[117,1,117,5],[117,6,117,7],[118,2,118,4],[118,5,118,7],[119,0,119,4],[119,5,119,7],[110,1,110,5],[110,6,110,7],[111,1,111,5],[111,6,111,7],[112,1,112,5],[112,6,112,7],[113,1,113,5],[113,6,113,7],[114,1,114,5],[114,6,114,7],[104,1,104,5],[104,6,104,7],[105,1,105,5],[105,6,105,7],[106,3,106,7],[107,0,107,7],[108,1,108,5],[108,6,108,7],[109,1,109,5],[109,6,109,7],[98,1,98,2],[98,4,98,6],[99,1,99,2],[99,4,99,6],[100,1,100,2],[100,4,100,6],[101,0,101,7],[102,0,102,7],[103,1,103,5],[103,6,103,7],[94,2,94,3],[94,4,94,5],[94,6,94,7],[95,2,95,3],[95,4,95,5],[95,6,95,7],[96,0,96,7],[97,0,97,2],[97,4,97,6],[88,0,88,6],[89,1,89,2],[89,3,89,7],[90,0,90,6],[91,1,91,2],[92,1,92,3],[92,4,92,5],[92,6,92,7],[93,2,93,3],[93,4,93,5],[93,6,93,7],[83,0,83,4],[83,5,83,7],[84,1,84,3],[84,4,84,7],[85,1,85,3],[85,4,85,7],[86,0,86,6],[87,1,87,2],[87,3,87,7],[77,0,77,2],[77,3,77,7],[78,0,78,6],[79,0,79,6],[80,0,80,2],[81,0,82,0],[81,1,81,2],[81,3,81,4],[81,6,81,7],[82,3,82,4],[82,6,82,7],[72,1,72,2],[72,3,72,4],[73,1,73,2],[73,3,73,4],[74,1,74,2],[74,3,74,4],[75,1,75,2],[75,3,75,4],[76,1,76,2],[76,3,76,4],[67,1,67,2],[67,3,67,4],[68,1,68,2],[68,3,68,4],[69,1,69,2],[69,3,69,4],[70,1,70,2],[70,3,70,4],[71,1,71,2],[71,3,71,4],[61,0,61,2],[61,3,61,7],[62,0,62,6],[63,0,63,7],[64,0,64,2],[64,3,64,4],[65,1,65,2],[65,3,65,4],[66,1,66,2],[66,3,66,4],[55,0,55,4],[55,6,55,7],[56,0,56,4],[56,6,56,7],[58,0,58,4],[58,5,58,7],[59,1,59,4],[59,5,59,7],[60,2,60,4],[60,5,60,7],[41,1,41,2],[42,3,42,7],[43,1,43,2],[51,1,51,2],[53,0,53,7],[54,0,54,4],[54,6,54,7],[45,0,45,7],[46,1,46,2],[47,1,47,2],[48,3,48,7],[49,1,49,2],[50,1,50,2],[32,0,32,7],[33,1,33,3],[34,1,34,3],[35,0,35,7],[36,0,36,6],[37,0,37,7],[38,1,38,2],[39,1,39,2],[40,3,40,7],[26,0,26,6],[27,0,27,2],[27,3,27,4],[28,0,28,5],[28,6,28,7],[29,0,29,3],[29,6,29,7],[30,0,30,6],[31,0,31,6],[20,1,20,2],[20,5,20,7],[21,1,21,2],[21,5,21,7],[22,1,22,2],[22,5,22,7],[23,0,23,6],[24,0,24,6],[25,0,25,2],[15,1,15,2],[15,5,15,7],[16,1,16,2],[16,5,16,7],[17,1,17,2],[17,5,17,7],[18,1,18,2],[18,5,18,7],[19,1,19,2],[19,5,19,7],[9,0,9,7],[10,0,10,6],[11,0,11,6],[12,1,12,2],[12,3,12,7],[13,0,13,2],[13,3,13,7],[14,1,14,2],[14,5,14,7],[7,0,7,2],[7,3,7,5],[7,6,7,7],[0,0,0,7],[1,0,1,2],[1,3,1,4],[2,0,2,7],[3,3,3,4],[3,5,3,7],[4,0,4,2],[5,0,5,2],[127,1,127,5],[127,6,127,7],[128,1,128,2],[128,3,128,7],[124,1,124,5],[124,6,124,7],[125,1,125,5],[125,6,125,7],[126,1,126,5],[126,6,126,7]]}
[null,null,null,null,null,null,null,null,"Columns I-Y are meant to be hidden. They exist because they allow for the dropdown list options. They also allow for merged cells to autofit properly in terms of row height. This should work if all columns remain at their correct widths.","g-h",null,"a-e merged","E-F merged","e-h","0 times",null,null,"The government (e.g., Central Medical Stores, MOH logistics unit, MOH procurement unit)",null,null,null,null,"Yes","a-h","January"]
[null,null,null,null,null,null,null,null,null,null,"A-c",null,null,null,"1-2 times","b-d merged",null,"Third-party agent (e.g., UNFPA, Crown Agents)","d-e merged","d-f merged","e-f merged","e-g merged","No",null,"February"]
[null,null,null,null,null,null,null,null,null,null,null,null,null,null,"3-5 times",null,null,"The government and a third-party agent",null,null,null,null,null,null,"March"]
[null,null,null,null,null,null,null,null,null,null,null,null,null,null,"6 or more times",null,null,"Other",null,null,null,null,"N/A",null,"April"]
["To jump to the Introduction sheet, click here.",null,null,null,null,null,null,null,null,null,null,null,null,null,null,null,null,null,null,null,null,null,"Don't know",null,"May"]
[null,null,null,null,null,null,null,null,null,null,null,null,null,null,"N/A",null,null,"N/A",null,null,null,null,null,null,"June"]
["Contraceptive Security (CS) Indicators 2011 Data ",null,null,null,null,null,null,null,null,null,null,null,null,null,"Don't know",null,null,"Don't know",null,null,null,null,null,null,"July"]
["Country: Madagascar",null,null,null,null,null,null,null,null,{"$f":"G8","v":0},{"$f":"A8","v":"Country: Madagascar"},null,null,null,null,"or c-d",null,null,null,{"$f":"D8","v":0},null,null,null,null,"August"]
["The CS Indicators are presented in the following sections:\n\n               A. leadership & cooordination               B. finance & procurement               C. commodities               D. policies               E. supply chain",null,null,null,null,null,null,null,null,{"$f":"G9","v":0},{"$f":"A9","v":"The CS Indicators are presented in the following sections:\n\n               A. leadership & cooordination               B. finance & procurement               C. commodities               D. policies               E. supply chain"},null,null,null,"d-h",null,"f-h merged",null,{"$f":"D9","v":0},null,null,null,null,null,"September"]
["\nNotes:\n  -  Respondents' answers are indicated in the white spaces. \n  -  N/A = not applicable. Don't know = the respondent either indicated they did not know or left the answer blank.\n  -  Some questions required respondents to choose from a dropdown list of options; in these cases the dropdown arrow will \n     appear when you click on the cell. \n  -  There may be a few inserted comments. (If you cannot already see them, click on Review tab - Comments group - Show All Comments in newer \n       versions of Excel or View - Comments in older versions of Excel.)\n  -  If the answer is cut off, you can either manually adjust the row height or autofit the row height in order to see the whole \n     response. (To autofit the row height, select the answer(s) and go to Home tab - Cells group - Format - Autofit Row Height in newer versions of Excel or \n      Format - Row - Autofit in older versions of Excel.)\n",null,null,null,null,null,null,null,"a-g",null,null,null,null,null,null,null,null,"a-e merged",null,null,null,null,null,{"$f":"A10","v":"\nNotes:\n  -  Respondents' answers are indicated in the white spaces. \n  -  N/A = not applicable. Don't know = the respondent either indicated they did not know or left the answer blank.\n  -  Some questions required respondents to choose from a dropdown list of options; in these cases the dropdown arrow will \n     appear when you click on the cell. \n  -  There may be a few inserted comments. (If you cannot already see them, click on Review tab - Comments group - Show All Comments in newer \n       versions of Excel or View - Comments in older versions of Excel.)\n  -  If the answer is cut off, you can either manually adjust the row height or autofit the row height in order to see the whole \n     response. (To autofit the row height, select the answer(s) and go to Home tab - Cells group - Format - Autofit Row Height in newer versions of Excel or \n      Format - Row - Autofit in older versions of Excel.)\n"},"October"]
["A. Leadership and Coordination",null,null,null,null,null,null,null,null,null,null,null,null,null,null,null,null,null,null,null,null,null,null,null,"November"]
["A1. Is there a national committee that works on contraceptive security? (Please select from the dropdown list.)\n(Committee should have some aspect of contraceptive security as part of its Terms of Reference, even if it is known by a different name, for example: Family Planning, Reproductive Health, Maternal Mortality, Essential Medicine Committee, etc.)  ",null,null,null,null,null,null,"Yes",{"$f":"A12","v":"A1. Is there a national committee that works on contraceptive security? (Please select from the dropdown list.)\n(Committee should have some aspect of contraceptive security as part of its Terms of Reference, even if it is known by a different name, for example: Family Planning, Reproductive Health, Maternal Mortality, Essential Medicine Committee, etc.)  "},null,null,null,null,null,null,null,null,null,null,null,null,null,null,null,"December"]
[null,"a. What is the name of the committee?",null,"Reproductive Health/Family Planning Partners Committee  ",null,null,null,null,null,null,{"$f":"B13","v":"a. What is the name of the committee?"},{"$f":"D13","v":"Reproductive Health/Family Planning Partners Committee  "},null,null,{"$f":"D13","v":"Reproductive Health/Family Planning Partners Committee  "}]
["A2. Are the following organizations represented on the committee?",null,null,"(Y/N \ndropdown)",null,null,null,null,null,null,{"$f":"A14","v":"A2. Are the following organizations represented on the committee?"},null,null,null,null,null,null,null,null,null,null,null,null,null,"Don't know"]
[null,"a. Social marketing",null,"Yes","If yes, specify name(s) of organizations","Population Services International (PSI)",null,null,null,null,{"$f":"B15","v":"a. Social marketing"},null,null,null,null,null,{"$f":"F15","v":"Population Services International (PSI)"}]
[null,"b. NGO (for example: service delivery, advocacy, Planned Parenthood affiliate, Marie Stopes affiliate, faith-based organizations, etc.)",null,"Yes","If yes, specify name(s) of organizations","Fianakaviana Sambatra (FISA) (an IPPF affiliate), Marie Stopes Madagascar, Religious Platform represented by (1) SAF-FJKM (Health Department of Protestant Church) (2) SALFA (Health Department of Lutheran Church) and (3) VOAHARY SALAMA (NGOs' Platform) ",null,null,null,null,"b. NGO (for example: service delivery, advocacy, Planned Parenthood affiliate, Marie Stopes affiliate, faith-based organizations, etc.)",null,null,null,null,null,"Fianakaviana Sambatra (FISA) (an IPPF affiliate), Marie Stopes Madagascar, Religious Platform represented by (1) SAF-FJKM (Health Department of Protestant Church) (2) SALFA (Health Department of Lutheran Church) and (3) VOAHARY SALAMA (NGOs' Platform) "]
[null,"c. Commercial sector (for example: pharmacy associations, manufacturers, etc.)",null,"Yes","If yes, specify name(s) of organizations","Organon",null,null,null,null,"c. Commercial sector (for example: pharmacy associations, manufacturers, etc.)",null,null,null,null,null,"Organon"]
[null,"d. Donors",null,"Yes","If yes, specify name(s) of donors","USAID, UNFPA",null,null,null,null,"d. Donors",null,null,null,null,null,"USAID, UNFPA"]
[null,"e. UN agencies",null,"Yes","If yes, specify name(s) of agencies","UNFPA, UNICEF, UNAIDS, World Bank, WHO",null,null,null,null,"e. UN agencies",null,null,null,null,null,"UNFPA, UNICEF, UNAIDS, World Bank, WHO"]
[null,"f. Ministry of Health (for example: logistics, reproductive health, family planning, maternal and child health, HIV/AIDS, pharmacy units, etc.)",null,"Yes","If yes, specify name(s) of units","Directorate of Maternal Health",null,null,null,null,"f. Ministry of Health (for example: logistics, reproductive health, family planning, maternal and child health, HIV/AIDS, pharmacy units, etc.)",null,null,null,null,null,"Directorate of Maternal Health"]
[null,"g. Central Medical Store or Central Warehouse",null,"Yes","If yes, specify","SALAMA (national essential drug purchasing agency)",null,null,null,null,"g. Central Medical Store or Central Warehouse",null,null,null,null,null,"SALAMA (national essential drug purchasing agency)"]
[null,"h. Ministry of Finance or Ministry of Planning ",null,"Yes","If yes, specify","Ministry of Population",null,null,null,null,"h. Ministry of Finance or Ministry of Planning ",null,null,null,null,null,"Ministry of Population"]
[null,"i. Other (for example: partners)",null,null,"If yes, specify",null,null,null,null,null,"i. Other (for example: partners)",null,null,null,null,null,0]
["A3. How many times did the committee meet during the last year? (0, 1-2, 3-5, or 6+)  (Please select from the dropdown.)",null,null,null,null,null,null,"1-2 times",{"$f":"A24","v":"A3. How many times did the committee meet during the last year? (0, 1-2, 3-5, or 6+)  (Please select from the dropdown.)"}]
["A4. Does the committee have legal status?  (Please select from the dropdown.)                                  ",null,null,null,null,null,null,"Yes",{"$f":"A25","v":"A4. Does the committee have legal status?  (Please select from the dropdown.)                                  "}]
["A5. Is there a Contraceptive Security \"champion\"? (someone who consistently brings up and advocates for contraceptive supplies)",null,null,"Yes","If yes, specify person's organization","The Directorate of Maternal Health","Specify person's job title","Director",null,null,{"$f":"A26","v":"A5. Is there a Contraceptive Security \"champion\"? (someone who consistently brings up and advocates for contraceptive supplies)"}]
["B. Finance and Procurement (Capital)"]
["B1. What is the timeline of the country's fiscal year?",null,null,"Beginning month",null,"October","Ending month","September",null,null,{"$f":"B28","v":0}]
["B2. What was the estimated dollar value of contraceptives needed to be procured for the public sector for the most recent complete fiscal year? (in USD currency)\n(for example, to cover the needs for the '09-'10 fiscal year)",null,null,null,null,null,6871000,null,null,{"$f":"G29","v":6871000},null,null,{"$f":"E29","v":0},null,null,null,null,null,null,null,null,null,null,null,{"$f":"A29","v":"B2. What was the estimated dollar value of contraceptives needed to be procured for the public sector for the most recent complete fiscal year? (in USD currency)\n(for example, to cover the needs for the '09-'10 fiscal year)"}]
["B3. When was the last forecast/quantification conducted? (mm/yy)",null,null,null,"12/10","Who conducted it? (Specify organization.)","MOH, UNFPA, SALAMA, PSI",null,null,{"$f":"G30","v":"MOH, UNFPA, SALAMA, PSI"},null,null,{"$f":"E30","v":"12/10"},null,null,null,null,null,null,null,null,null,null,null,{"$f":"A30","v":"B3. When was the last forecast/quantification conducted? (mm/yy)"}]
["B4. Is there a government budget line item for the procurement of contraceptives?  (Please select from the dropdown list.)",null,null,null,null,null,null,"Yes",{"$f":"A31","v":"B4. Is there a government budget line item for the procurement of contraceptives?  (Please select from the dropdown list.)"}]
["B5. Were government funds allocated for contraceptive procurement for the public sector in the most recent complete fiscal year? (This question refers to funds planned to be spent on contraceptives, whether or not they ended up being spent.) \n\n(Government funds include internally generated funds, basket funds, World Bank credits or loans, and other funds donors gave to the government for their use.) \n",null,null,null,null,null,null,"Yes",{"$f":"A32","v":"B5. Were government funds allocated for contraceptive procurement for the public sector in the most recent complete fiscal year? (This question refers to funds planned to be spent on contraceptives, whether or not they ended up being spent.) \n\n(Government funds include internally generated funds, basket funds, World Bank credits or loans, and other funds donors gave to the government for their use.) \n"}]
["B6. Please complete the table below regarding government allocations for contraceptive procurement.",null,null,null,null,null,null,null,null,null,null,null,null,null,null,null,null,null,null,null,null,null,null,{"$f":"A33","v":"B6. Please complete the table below regarding government allocations for contraceptive procurement."}]
[null,null,null,null,"Amount allocated \n(in USD)","Time period during which allocations were supposed to be spent \n(mm/yy-mm/yy)\n(should ideally be the most recent\ncomplete fiscal year ['09-'10])","Data source \n(for example: Ministry records)","Comments",null,null,{"$f":"A34","v":0}]
[null,"Government funds allocated for contraceptive procurement\n(funds originally designated for contraceptives, whether or not they ended up being spent on them)",null,null,58625,"09/10-10/10","Directorate of Maternal Health",null,null,null,{"$f":"#REF!","v":{"$error":"#REF!"}}]
[]
["B7. Were government funds spent on contraceptive procurement for the public sector in the most recent complete fiscal year? \n(Government funds include internally generated funds, basket funds, World Bank credits or loans, and other funds donors gave to the government for their use.)",null,null,null,null,null,null,"Yes",{"$f":"A37","v":"B7. Were government funds spent on contraceptive procurement for the public sector in the most recent complete fiscal year? \n(Government funds include internally generated funds, basket funds, World Bank credits or loans, and other funds donors gave to the government for their use.)"}]
["B8. Please complete the table below to indicate government expenditures on contraceptive procurement, by source, in the most recent complete fiscal year. \n(This is how much was spent on contraceptive procurement (not what was allocated). How much of this spending was provided from each source?)",null,null,null,null,null,null,null,null,null,null,null,null,null,null,null,null,null,null,null,null,null,null,{"$f":"A38","v":"B8. Please complete the table below to indicate government expenditures on contraceptive procurement, by source, in the most recent complete fiscal year. \n(This is how much was spent on contraceptive procurement (not what was allocated). How much of this spending was provided from each source?)"}]
[null,"Source of government funds spent on contraceptive procurement for the public sector",null,"Was this source used?\n(Y/N)","Amount spent \n(in USD)","Time period (mm/yy-mm/yy)\n(should be the same for all sources of funds & ideally be the most recent\ncomplete fiscal year ['09-'10])","Data source \n(for example: Contraceptive Procurement Table, PipeLine, etc.)","Comments",null,null,{"$f":"A39","v":0}]
[null,"a. Internally generated funds spent on contraceptive procurement",null,"Yes",{"$f":"58625","v":58625},"01/10-12/10","Directorate of Maternal Health","This is from the government budget line item.",null,null,{"$f":"B40","v":"a. Internally generated funds spent on contraceptive procurement"}]
[null,null,"i. Specify source(s) of internally generated funds spent (for example, from taxes or user fees)","Taxes",null,null,null,null,null,null,{"$f":"C41","v":"i. Specify source(s) of internally generated funds spent (for example, from taxes or user fees)"},null,null,null,{"$f":"D41","v":"Taxes"}]
[null,"b. Total of all other government funds spent on contraceptive procurement (basket funds, World Bank credits or loans, and other funds donors gave to the government [e.g., direct budget support])",null,"No",0,"01/10-12/10",null,null,null,null,{"$f":"B42","v":"b. Total of all other government funds spent on contraceptive procurement (basket funds, World Bank credits or loans, and other funds donors gave to the government [e.g., direct budget support])"}]
[null,null,"i. Specify source(s) of other government funds spent (for example: basket funding or specific donor)","N/A",null,null,null,null,null,null,{"$f":"C43","v":"i. Specify source(s) of other government funds spent (for example: basket funding or specific donor)"},null,null,null,{"$f":"D43","v":"N/A"}]
[null,"c. TOTAL government funds spent on contraceptive procurement\nThis will auto-calculate.  (It will sum a & b above.)",null,null,{"$f":"E40+E42","v":58625},null,null,null,null,null,{"$f":"B44","v":"c. TOTAL government funds spent on contraceptive procurement\nThis will auto-calculate.  (It will sum a & b above.)"}]
[null,null,null,null,null,null,null,null,null,null,{"$f":"A45","v":0}]
["B9. Please complete the table below to indicate donor expenditures on contraceptive procurement in the most recent complete fiscal year.\n",null,null,null,null,null,null,null,null,null,null,null,null,null,null,null,null,null,null,null,null,null,null,{"$f":"A46","v":"B9. Please complete the table below to indicate donor expenditures on contraceptive procurement in the most recent complete fiscal year.\n"}]
["\n","Source of donations and donor funds spent on contraceptive procurement for the public sector",null,"Was this a source?\n(Y/N)","Amount of money spent on these procurements \n(in USD)","Time period (mm/yy-mm/yy)\n(should be the same for all sources of funds & ideally be the most recent\ncomplete fiscal year ['09-'10])","Data source \n(for example:  Donor records, Contraceptive Procurement Table, PipeLine, RHInterchange, etc.","Comments",null,null,{"$f":"A47","v":"\n"}]
[null,"a. In-kind donations of contraceptives",null,"Yes",{"$f":"5639717","v":5639717},"01/10-12/10","RHInterchange ",null,null,null,{"$f":"B48","v":"a. In-kind donations of contraceptives"}]
[null,null,"i. Specify source(s) of in-kind donations ","UNFPA",null,null,null,null,null,null,{"$f":"C49","v":"i. Specify source(s) of in-kind donations "},null,null,null,{"$f":"D49","v":"UNFPA"}]
[null,"b. Global Fund donations used to procure condoms",null,"No",0,"01/10-12/10",null,null,null,null,{"$f":"B50","v":"b. Global Fund donations used to procure condoms"}]
[null,"c. Global Fund donations used to procure contraceptives besides condoms",null,"No",0,"01/10-12/10",null,null,null,null,{"$f":"B51","v":"c. Global Fund donations used to procure contraceptives besides condoms"}]
[null,"d. TOTAL value of in-kind donations and Global Fund donations spent on contraceptive procurement\nThis will auto-calculate.  (It will sum a-c above.)",null,null,{"$f":"E48+E50+E51","v":5639717},null,null,null,null,null,{"$f":"B52","v":"d. TOTAL value of in-kind donations and Global Fund donations spent on contraceptive procurement\nThis will auto-calculate.  (It will sum a-c above.)"}]
[null,null,null,null,null,null,null,null,null,null,{"$f":"A53","v":0}]
["The answers to B10 and B11 should calculate automatically based on the information you provided. Please review the answers to ensure they make sense to you, and if you have additional information to add, please note it in the comments boxes.\n\nIf the answers do not calculate automatically, please provide any relevant information you may have in the comments boxes.\n",null,null,null,null,null,null,null,null,null,null,null,null,null,null,null,null,null,null,null,null,null,null,{"$f":"A54","v":"The answers to B10 and B11 should calculate automatically based on the information you provided. Please review the answers to ensure they make sense to you, and if you have additional information to add, please note it in the comments boxes.\n\nIf the answers do not calculate automatically, please provide any relevant information you may have in the comments boxes.\n"}]
["B10. Government share of funds spent on contraceptive procurement for the public sector - \nOf the total amount spent on contraceptives for the public sector in the most recent complete fiscal year (including government and donor funds), what percent was covered by government funds (including internally generated funds, basket funds, World Bank credits or loans, and other funds given to the government)? \n\nThis will auto-calculate. (It contains the following formula: Total government spending (Question B8c) / Grand total of all spending for public sector contraceptives from the government and donors (Questions B8c+B9d))",null,null,null,null,{"$f":"E44/(E44+E52)","v":1.0288080287213369E-2},"Only 1% of the procurement was covered by government funds.\n",null,null,{"$f":"G55","v":"Only 1% of the procurement was covered by government funds.\n"},null,null,null,null,null,null,null,{"$f":"A55","v":"B10. Government share of funds spent on contraceptive procurement for the public sector - \nOf the total amount spent on contraceptives for the public sector in the most recent complete fiscal year (including government and donor funds), what percent was covered by government funds (including internally generated funds, basket funds, World Bank credits or loans, and other funds given to the government)? \n\nThis will auto-calculate. (It contains the following formula: Total government spending (Question B8c) / Grand total of all spending for public sector contraceptives from the government and donors (Questions B8c+B9d))"}]
["B11. Total expenditures on public sector contraceptives as percent of amount that needed to be procured -\nOf the estimated value of the contraceptives needed to be procured for the public sector for the most recent complete fiscal year, what percent was provided by any source (whether government or donor)? \n\nThis will auto-calculate. (It contains the following formula: Grand total of all spending for public sector contraceptives from the government and donors (Questions B8c+B9d) / Value of estimated need for procurement (Question B2))",null,null,null,null,{"$f":"(E44+E52)/G29","v":0.82933226604569932},"In 2010, $6,871,000 worth of contraceptives was estimated to be needed to be purchased for the public sector.\n",null,null,{"$f":"G56","v":"In 2010, $6,871,000 worth of contraceptives was estimated to be needed to be purchased for the public sector.\n"},null,null,null,null,null,null,null,{"$f":"A56","v":"B11. Total expenditures on public sector contraceptives as percent of amount that needed to be procured -\nOf the estimated value of the contraceptives needed to be procured for the public sector for the most recent complete fiscal year, what percent was provided by any source (whether government or donor)? \n\nThis will auto-calculate. (It contains the following formula: Grand total of all spending for public sector contraceptives from the government and donors (Questions B8c+B9d) / Value of estimated need for procurement (Question B2))"}]
["B12. If B11 did not calculate automatically, please answer the following question:\nWas there a funding gap for the public sector in the last complete fiscal year (e.g., 09-'10 fiscal year)?\n(Please select from the dropdown list.)",null,null,null,null,"Yes","$1,173,000 was the gap estimated for the public sector in 2010.\n",null,null,{"$f":"G57","v":"$1,173,000 was the gap estimated for the public sector in 2010.\n"},null,null,null,null,null,null,null,{"$f":"A57","v":"B12. If B11 did not calculate automatically, please answer the following question:\nWas there a funding gap for the public sector in the last complete fiscal year (e.g., 09-'10 fiscal year)?\n(Please select from the dropdown list.)"}]
[null,null,null,null,null,null,null,null,null,null,{"$f":"A58","v":0}]
["B13. If the government financed any contraceptive procurement in the most recent complete fiscal year, which entity conducted the procurement(s)? (Please select from the dropdown.)",null,null,null,null,"The government (e.g., Central Medical Stores, MOH logistics unit, MOH procurement unit)",null,null,null,null,null,null,null,null,null,null,{"$f":"F59","v":"The government (e.g., Central Medical Stores, MOH logistics unit, MOH procurement unit)"},{"$f":"A59","v":"B13. If the government financed any contraceptive procurement in the most recent complete fiscal year, which entity conducted the procurement(s)? (Please select from the dropdown.)"}]
[null,"a. Specify entity",null,null,null,"SALAMA (central medical store)",null,null,null,null,null,null,{"$f":"E60","v":0},null,null,null,{"$f":"F60","v":"SALAMA (central medical store)"},{"$f":"B60","v":"a. Specify entity"}]
[null,null,"i. Is this a parastatal?",null,null,"Yes",null,null,null,null,null,null,null,null,null,null,{"$f":"F61","v":"Yes"},{"$f":"C61","v":"i. Is this a parastatal?"}]
["B14. Please note any additional comments about finance and procurement.\n",null,null,"SALAMA manages all the procurement and orders for MOH as well as the distribution to the districts.",null,null,null,null,null,null,{"$f":"A62","v":"B14. Please note any additional comments about finance and procurement.\n"},null,null,null,{"$f":"D62","v":"SALAMA manages all the procurement and orders for MOH as well as the distribution to the districts."}]
["C. Commodities"]
["C1. Are the following contraceptive methods offered through the commercial sector, public sector, NGOs, or social marketing? (Please indicate which methods are intended to be offered. This question is not asking whether the method is in stock.) \n(Please select from the dropdown list.)",null,null,null,null,null,null,null,null,null,null,null,null,null,null,null,null,null,null,null,null,null,null,{"$f":"A64","v":"C1. Are the following contraceptive methods offered through the commercial sector, public sector, NGOs, or social marketing? (Please indicate which methods are intended to be offered. This question is not asking whether the method is in stock.) \n(Please select from the dropdown list.)"}]
["Contraceptive Method",null,null,"Commercial Sector",null,"Public Sector","NGO","Social Marketing",null,null,{"$f":"A65","v":"Contraceptive Method"}]
[null,"a. Combined oral contraceptives (estrogen + progestin - for  example, LoFemenol, Microgynon)",null,"Yes",null,"Yes","Yes","Yes",null,null,{"$f":"B66","v":"a. Combined oral contraceptives (estrogen + progestin - for  example, LoFemenol, Microgynon)"}]
[null,"b. Progestin-only pills (for example, Ovrette, Microlut)",null,"No",null,"Yes","No","Yes",null,null,{"$f":"B67","v":"b. Progestin-only pills (for example, Ovrette, Microlut)"}]
[null,"c. Hormonal injections (for example, DepoProvera, Noristerat)",null,"Yes",null,"Yes","Yes","Yes",null,null,"c. Hormonal injections (for example, DepoProvera, Noristerat)"]
[null,"d. Hormonal implants (for example, Jadelle, Implanon)",null,"Yes",null,"Yes","Yes","Yes",null,null,"d. Hormonal implants (for example, Jadelle, Implanon)"]
[null,"e. Intrauterine devices (IUDs) (for example, Optima Copper T)",null,"Yes",null,"Yes","Yes","Yes",null,null,"e. Intrauterine devices (IUDs) (for example, Optima Copper T)"]
[null,"f. Male condoms",null,"Yes",null,"Yes","Yes","Yes",null,null,"f. Male condoms"]
[null,"g. Female condoms",null,"Yes",null,"No","Yes","Yes",null,null,"g. Female condoms"]
[null,"h. Emergency contraceptive pills (for example, Postinor)",null,"Yes",null,"No","Don't know","No",null,null,"h. Emergency contraceptive pills (for example, Postinor)"]
[null,"i. Long-acting permanent method for males (vasectomy)",null,"Don't know",null,"Don't know","Yes","Don't know",null,null,"i. Long-acting permanent method for males (vasectomy)"]
[null,"j. Long-acting permanent method for females (tubal ligation)",null,"Don't know",null,"Don't know","Yes","Don't know",null,null,"j. Long-acting permanent method for females (tubal ligation)"]
[null,"k. CycleBeads",null,"No",null,"Yes","Don't know","Yes",null,null,"k. CycleBeads"]
[null,"l. Other contraceptive methods - specify \n(Please provide the name of the other contraceptive(s) offered, by sector.)",null,null,null,null,null,null,null,null,"l. Other contraceptive methods - specify \n(Please provide the name of the other contraceptive(s) offered, by sector.)"]
["C2. Please note any comments about the commodities offered.",null,null,null,null,null,null,null,null,null,{"$f":"A78","v":"C2. Please note any comments about the commodities offered."},null,null,null,{"$f":"D78","v":0}]
["D. Policies (Commitment)"]
["D1. Is there a contraceptive security or reproductive health commodity security strategy or is contraceptive security explicitly included in a country strategy? (Please select from the dropdown list.)",null,null,null,null,null,null,"Yes",{"$f":"A80","v":"D1. Is there a contraceptive security or reproductive health commodity security strategy or is contraceptive security explicitly included in a country strategy? (Please select from the dropdown list.)"}]
["IF NO, SKIP TO QUESTION D2."]
[null,"Strategy name",null,"Years Covered (including strategy updates)",null,"Is the strategy formally approved by the Ministry?","Is the contraceptive security strategy being implemented?",null,null,{"$f":"G82","v":"Is the contraceptive security strategy being implemented?"},{"$f":"B82","v":"Strategy name"},null,{"$f":"E82","v":0},null,null,null,null,null,{"$f":"D82","v":"Years Covered (including strategy updates)"}]
[null,"a","Contraceptive Security Strategy","2007-2012",null,"Yes","Yes",null,null,{"$f":"G83","v":"Yes"},{"$f":"B83","v":"a"},null,{"$f":"E83","v":0},null,null,null,null,null,{"$f":"D83","v":"2007-2012"}]
["D2. Are any family planning commodities subject to duties, import taxes, or other fees?",null,null,null,null,"Yes",null,null,null,null,null,null,null,null,null,null,{"$f":"F84","v":"Yes"},{"$f":"A84","v":"D2. Are any family planning commodities subject to duties, import taxes, or other fees?"}]
[null,"a. If yes, for which sectors (public, NGO, social marketing, commercial)?",null,null,"NGO, social marketing, and commercial sectors",null,null,null,null,null,null,null,{"$f":"E85","v":"NGO, social marketing, and commercial sectors"},{"$f":"E85","v":"NGO, social marketing, and commercial sectors"},null,null,null,{"$f":"B85","v":"a. If yes, for which sectors (public, NGO, social marketing, commercial)?"}]
[null,"b. If yes, how much are the duties, taxes, or fees?",null,null,"Tax: 20% and VAT: 20%",null,null,null,null,null,null,null,null,{"$f":"E86","v":"Tax: 20% and VAT: 20%"},null,null,null,{"$f":"B86","v":"b. If yes, how much are the duties, taxes, or fees?"}]
["D3. Are there policies that hinder the ability of the private sector (commercial sector, NGOs, or social marketing) to provide contraceptive methods (for example: price controls, distribution limitations, taxes/duties, advertising bans, etc.)?",null,null,null,null,null,null,"Yes",{"$f":"A87","v":"D3. Are there policies that hinder the ability of the private sector (commercial sector, NGOs, or social marketing) to provide contraceptive methods (for example: price controls, distribution limitations, taxes/duties, advertising bans, etc.)?"}]
[null,"a. If yes, describe the policies.",null,"Import tax, product registration",null,null,null,null,null,null,{"$f":"B88","v":"a. If yes, describe the policies."},null,null,null,{"$f":"D88","v":"Import tax, product registration"}]
["D4. Are there policies that enable the private sector (commercial sector, NGOs, or social marketing) to provide contraceptive methods?",null,null,null,null,null,null,"No",{"$f":"A89","v":"D4. Are there policies that enable the private sector (commercial sector, NGOs, or social marketing) to provide contraceptive methods?"}]
[null,"a. If yes, describe the policies.",null,"N/A",null,null,null,null,null,null,{"$f":"B90","v":"a. If yes, describe the policies."},null,null,null,{"$f":"D90","v":"N/A"}]
["D5. Do policies or regulations exist that restrict who can sell or dispense particular contraceptive methods?\n",null,null,null,null,null,null,"No",{"$f":"A91","v":"D5. Do policies or regulations exist that restrict who can sell or dispense particular contraceptive methods?\n"}]
[null,"Please note any restrictions in the following table."]
[null,"Contraceptive Method(s)",null,null,"Describe any public sector restriction on who is allowed to sell or dispense the method",null,"Describe any private sector restriction on who is allowed to sell or dispense the method",null,null,{"$f":"G93","v":"Describe any private sector restriction on who is allowed to sell or dispense the method"},null,null,null,null,null,{"$f":"B93","v":"Contraceptive Method(s)"},null,null,null,null,{"$f":"E93","v":"Describe any public sector restriction on who is allowed to sell or dispense the method"}]
[null,"a",null,null,null,null,null,null,null,{"$f":"G94","v":0},null,null,{"$f":"E94","v":0},null,null,{"$f":"C94","v":0},null,null,null,null,{"$f":"E94","v":0}]
[null,"b",null,null,null,null,null,null,null,{"$f":"G95","v":0},null,null,{"$f":"E95","v":0},null,null,{"$f":"C95","v":0},null,null,null,null,{"$f":"E95","v":0}]
[null,"c",null,null,null,null,null,null,null,{"$f":"G96","v":0},null,null,{"$f":"E96","v":0},null,null,{"$f":"C96","v":0},null,null,null,null,{"$f":"E96","v":0}]
[null,null,null,null,null,null,null,null,null,null,{"$f":"C97","v":0}]
["D6. Does the country have laws, regulations, or policies that make it difficult for the following sub-populations to access effective family planning services?",null,null,"Y/N","If yes, describe laws/regulations/policies affecting access ",null,null,"Are the rules/policies implemented?",null,null,{"$f":"A98","v":"D6. Does the country have laws, regulations, or policies that make it difficult for the following sub-populations to access effective family planning services?"},null,null,null,null,null,null,null,null,null,null,{"$f":"E98","v":"If yes, describe laws/regulations/policies affecting access "}]
[null,"a. Unmarried people",null,"No",null,null,null,null,null,null,{"$f":"B99","v":"a. Unmarried people"},null,{"$f":"E99","v":0},null,null,null,null,null,null,null,null,{"$f":"E99","v":0}]
[null,"b. Young people",null,"No",null,null,null,null,null,null,{"$f":"B100","v":"b. Young people"},null,{"$f":"E100","v":0},null,null,null,null,null,null,null,null,{"$f":"E100","v":0}]
[null,"c. Other",null,"No",null,null,null,null,null,null,{"$f":"B101","v":"c. Other"},null,{"$f":"E101","v":0},null,null,null,null,null,null,null,null,{"$f":"E101","v":0}]
[null,null,null,null,null,null,null,null,null,null,{"$f":"C102","v":0}]
["D7. Are there charges* to the client in the public sector for family planning:\n*(This question refers to charges by policy, not under-the-table charges.)\n",null,null,null,null,null,null,null,null,null,null,null,null,null,null,null,null,null,null,null,null,null,null,{"$f":"A103","v":"D7. Are there charges* to the client in the public sector for family planning:\n*(This question refers to charges by policy, not under-the-table charges.)\n"}]
[null,"a. Services?",null,null,null,null,"No",null,null,{"$f":"G104","v":"No"},null,null,null,null,null,null,null,null,null,null,null,null,null,null,{"$f":"B104","v":"a. Services?"}]
[null,"b. Commodities?",null,null,null,null,"No",null,null,{"$f":"G105","v":"No"},null,null,null,null,null,null,null,null,null,null,null,null,null,null,{"$f":"B105","v":"b. Commodities?"}]
[null,"c. If yes, are there exemptions for people who cannot afford to pay?",null,null,null,null,"N/A",null,null,{"$f":"G106","v":"N/A"},null,null,null,null,null,null,null,null,null,null,null,null,null,null,{"$f":"B106","v":"c. If yes, are there exemptions for people who cannot afford to pay?"}]
[null,null,"i. If yes, describe the exemptions.","N/A",null,null,null,null,null,null,{"$f":"C107","v":"i. If yes, describe the exemptions."},null,null,null,{"$f":"D107","v":"N/A"}]
["D8. Are the following contraceptives included in the country's National Essential Medicine List (NEML) or other equivalent priority list?",null,null,null,null,null,null,null,null,null,null,null,null,null,null,null,null,null,null,null,null,null,null,{"$f":"A108","v":"D8. Are the following contraceptives included in the country's National Essential Medicine List (NEML) or other equivalent priority list?"}]
[null,"a. Combined oral contraceptives",null,null,null,null,"Yes",null,null,{"$f":"G109","v":"Yes"},null,null,null,null,null,null,null,null,null,null,null,null,null,null,{"$f":"B109","v":"a. Combined oral contraceptives"}]
[null,"b. Progestin-only pills",null,null,null,null,"Yes",null,null,"Yes",null,null,null,null,null,null,null,null,null,null,null,null,null,null,"b. Progestin-only pills"]
[null,"c. Hormonal injections",null,null,null,null,"Yes",null,null,"Yes",null,null,null,null,null,null,null,null,null,null,null,null,null,null,"c. Hormonal injections"]
[null,"d. Hormonal implants",null,null,null,null,"Yes",null,null,"Yes",null,null,null,null,null,null,null,null,null,null,null,null,null,null,"d. Hormonal implants"]
[null,"e. Intrauterine devices (IUDs)",null,null,null,null,"Yes",null,null,"Yes",null,null,null,null,null,null,null,null,null,null,null,null,null,null,"e. Intrauterine devices (IUDs)"]
[null,"f. Male condoms",null,null,null,null,"Yes",null,null,"Yes",null,null,null,null,null,null,null,null,null,null,null,null,null,null,"f. Male condoms"]
[null,"g. Female condoms",null,null,null,null,"Yes",null,null,"Yes",null,null,null,null,null,null,null,null,null,null,null,null,null,null,"g. Female condoms"]
[null,"h. Emergency contraceptive pills",null,null,null,null,"Yes",null,null,"Yes",null,null,null,null,null,null,null,null,null,null,null,null,null,null,"h. Emergency contraceptive pills"]
[null,"i. CycleBeads",null,null,null,null,"Yes",null,null,{"$f":"G117","v":"Yes"},null,null,null,null,null,null,null,null,null,null,null,null,null,null,{"$f":"B117","v":"i. CycleBeads"}]
[null,"j. Any other contraceptive(s)?",null,null,null,null,"Don't know",null,null,"Don't know",null,null,null,null,null,null,null,null,null,null,null,null,null,null,"j. Any other contraceptive(s)?"]
[null,null,"i. Name of other contraceptive(s) on the list(s)",null,null,"Don't know",null,null,null,0,null,null,null,null,null,null,null,{"$f":"B119","v":0}]
["D9. What year(s) is the list(s) from?",null,null,null,null,2010,null,null,null,0,null,null,null,null,null,null,null,{"$f":"B120","v":0}]
["D10. Name of the list(s)\n\n\n",null,null,"Liste des Medicaments Essentiels (Essential Medicines List)",null,null,null,null,null,null,{"$f":"A121","v":"D10. Name of the list(s)\n\n\n"},null,null,null,{"$f":"D121","v":"Liste des Medicaments Essentiels (Essential Medicines List)"}]
["D11. Notes about the list(s)\n\n\n",null,null,"The list is updated once a year.",null,null,null,null,null,null,{"$f":"A122","v":"D11. Notes about the list(s)\n\n\n"},null,null,null,{"$f":"D122","v":"The list is updated once a year."}]
["D12.  Information on country's Poverty Reduction Strategy Paper (PRSP)\n",null,null,null,null,null,null,null,null,null,null,null,null,null,null,null,null,null,null,null,null,null,null,{"$f":"A123","v":"D12.  Information on country's Poverty Reduction Strategy Paper (PRSP)\n"}]
[null,"a. What year is the Poverty Reduction Strategy Paper from? (most recent actual PRSP on IMF's site [not progress or summary report])",null,null,null,2007,null,null,null,{"$f":"G124","v":0},null,null,null,null,null,null,null,{"$f":"B124","v":"a. What year is the Poverty Reduction Strategy Paper from? (most recent actual PRSP on IMF's site [not progress or summary report])"}]
[null,"b. Is family planning or reproductive health a priority in the PRSP?",null,null,null,null,"Yes",null,null,{"$f":"G125","v":"Yes"},null,null,null,null,null,null,null,null,null,null,null,null,null,null,{"$f":"B125","v":"b. Is family planning or reproductive health a priority in the PRSP?"}]
[null,"c. Is contraceptive security included in the PRSP?",null,null,null,null,"Yes",null,null,{"$f":"G126","v":"Yes"},null,null,null,null,null,null,null,null,null,null,null,null,null,null,{"$f":"B126","v":"c. Is contraceptive security included in the PRSP?"}]
[null,"d. Is contraceptive prevalence rate (CPR) included as an indicator in the PRSP?",null,null,null,null,"Yes",null,null,{"$f":"G127","v":"Yes"},null,null,null,null,null,null,null,null,null,null,null,null,null,null,{"$f":"B127","v":"d. Is contraceptive prevalence rate (CPR) included as an indicator in the PRSP?"}]
[null,"e. Are contraceptive supply indicators included in the PRSP?",null,null,null,null,"No",null,null,{"$f":"G128","v":"No"},null,null,null,null,null,null,null,null,null,null,null,null,null,null,{"$f":"B128","v":"e. Are contraceptive supply indicators included in the PRSP?"}]
["\n\n\n","f. Notes about the Poverty Reduction Strategy Paper",null,null,null,null,null,null,null,null,{"$f":"B129","v":"f. Notes about the Poverty Reduction Strategy Paper"},null,null,null,{"$f":"D129","v":0}]
["E. Supply Chain (Capacity)"]
["E1. Have stockouts occurred for any contraceptive at the central* level in the last 12 months?  \n*(The central level refers to the central level warehouse for the public sector.)",null,null,null,null,null,"Yes",null,null,{"$f":"G131","v":"Yes"},null,null,null,null,null,null,null,null,null,null,null,null,null,null,{"$f":"A131","v":"E1. Have stockouts occurred for any contraceptive at the central* level in the last 12 months?  \n*(The central level refers to the central level warehouse for the public sector.)"}]
["E2. In the last 12 months, has there ever been a stockout at the central level of any of the contraceptives offered in public sector facilities? (If a method is not intended to be offered in public sector facilities, please indicate that stockouts are not applicable (choose \"N/A\" from the dropdown list).)",null,null,null,null,null,null,null,null,null,null,null,null,null,null,null,null,null,null,null,null,null,null,{"$f":"A132","v":"E2. In the last 12 months, has there ever been a stockout at the central level of any of the contraceptives offered in public sector facilities? (If a method is not intended to be offered in public sector facilities, please indicate that stockouts are not applicable (choose \"N/A\" from the dropdown list).)"}]
[null,"a. Combined oral contraceptives",null,null,null,null,"Yes",null,null,{"$f":"G133","v":"Yes"},null,null,null,null,null,null,null,null,null,null,null,null,null,null,{"$f":"B133","v":"a. Combined oral contraceptives"}]
[null,"b. Progestin-only pills",null,null,null,null,"Yes",null,null,"Yes",null,null,null,null,null,null,null,null,null,null,null,null,null,null,"b. Progestin-only pills"]
[null,"c. Hormonal injections",null,null,null,null,"Yes",null,null,"Yes",null,null,null,null,null,null,null,null,null,null,null,null,null,null,"c. Hormonal injections"]
[null,"d. Hormonal implants",null,null,null,null,"Yes",null,null,"Yes",null,null,null,null,null,null,null,null,null,null,null,null,null,null,"d. Hormonal implants"]
[null,"e. Intrauterine devices (IUDs)",null,null,null,null,"No",null,null,"No",null,null,null,null,null,null,null,null,null,null,null,null,null,null,"e. Intrauterine devices (IUDs)"]
[null,"f. Male condoms",null,null,null,null,"Don't know",null,null,"Don't know",null,null,null,null,null,null,null,null,null,null,null,null,null,null,"f. Male condoms"]
[null,"g. Female condoms",null,null,null,null,"N/A",null,null,"N/A",null,null,null,null,null,null,null,null,null,null,null,null,null,null,"g. Female condoms"]
[null,"h. Emergency contraceptive pills",null,null,null,null,"N/A",null,null,"N/A",null,null,null,null,null,null,null,null,null,null,null,null,null,null,"h. Emergency contraceptive pills"]
[null,"i. CycleBeads",null,null,null,null,"Yes",null,null,"Yes",null,null,null,null,null,null,null,null,null,null,null,null,null,null,"i. CycleBeads"]
[null,"j. Time period\n(mm/yy - mm/yy) (for example, 1/10-12/10) ",null,null,null,"01/10-12/10",null,null,null,null,null,null,null,null,null,null,{"$f":"F142","v":"01/10-12/10"},{"$f":"B142","v":"j. Time period\n(mm/yy - mm/yy) (for example, 1/10-12/10) "}]
[null,"k. Data source\n(for example: Procurement Planning and Monitoring Report, Logistics Management Information System, periodic physical inventory, warehouse reports)",null,null,null,"MOH and warehouse reports",null,null,null,null,null,null,null,null,null,null,{"$f":"F143","v":"MOH and warehouse reports"},{"$f":"B143","v":"k. Data source\n(for example: Procurement Planning and Monitoring Report, Logistics Management Information System, periodic physical inventory, warehouse reports)"}]
["E3. Are stockouts a large problem in your country at the following levels? (i.e., Are they common or do they tend to last for a long time?)\n\n"]
[null,"a. service delivery point level (i.e., public sector health facilities)",null,null,null,null,"Yes",null,null,{"$f":"G145","v":"Yes"},null,null,null,null,null,null,null,null,null,null,null,null,null,null,{"$f":"B145","v":"a. service delivery point level (i.e., public sector health facilities)"}]
[null,"b. central level (i.e., central level warehouse for the public sector)",null,null,null,null,"Yes",null,null,{"$f":"G146","v":"Yes"},null,null,null,null,null,null,null,null,null,null,null,null,null,null,{"$f":"B146","v":"b. central level (i.e., central level warehouse for the public sector)"}]
["F. Please note any overall comments about challenges and/or successes with contraceptive security in your country.\n\n",null,null,"The March 2009 coup declaration suspended USAID support to the Government of Madagascar and impacted contraceptive security during the period from March 2009 to March 2011.",null,null,null,null,null,null,{"$f":"A147","v":"F. Please note any overall comments about challenges and/or successes with contraceptive security in your country.\n\n"},null,null,null,{"$f":"D147","v":"The March 2009 coup declaration suspended USAID support to the Government of Madagascar and impacted contraceptive security during the period from March 2009 to March 2011."}]

{"sheet":"Malawi 2011","index":26,"n_rows":147,"n_cols":25,"rows_kept":147,"cut":false,"hidden":false,"merged":[[8,0,8,7],[147,0,147,7],[148,0,150,7],[145,1,145,5],[145,6,145,7],[146,0,146,2],[146,3,146,7],[141,1,141,4],[141,5,141,7],[142,1,142,4],[142,5,142,7],[143,0,143,7],[144,1,144,5],[144,6,144,7],[138,1,138,5],[138,6,138,7],[139,1,139,5],[139,6,139,7],[140,1,140,5],[131,0,131,7],[132,1,132,5],[132,6,132,7],[133,1,133,5],[133,6,133,7],[134,1,134,5],[134,6,134,7],[140,6,140,7],[135,1,135,5],[135,6,135,7],[136,1,136,5],[136,6,136,7],[137,1,137,5],[137,6,137,7],[120,0,120,2],[120,3,120,7],[121,0,121,2],[121,3,121,7],[129,0,129,6],[130,0,130,5],[130,6,130,7],[122,0,122,7],[123,1,123,4],[123,5,123,7],[115,1,115,5],[115,6,115,7],[116,1,116,5],[116,6,116,7],[117,1,117,5],[117,6,117,7],[118,2,118,4],[118,5,118,7],[119,0,119,4],[119,5,119,7],[110,1,110,5],[110,6,110,7],[111,1,111,5],[111,6,111,7],[112,1,112,5],[112,6,112,7],[113,1,113,5],[113,6,113,7],[114,1,114,5],[114,6,114,7],[104,1,104,5],[104,6,104,7],[105,1,105,5],[105,6,105,7],[106,3,106,7],[107,0,107,7],[108,1,108,5],[108,6,108,7],[109,1,109,5],[109,6,109,7],[98,1,98,2],[98,4,98,6],[99,1,99,2],[99,4,99,6],[100,1,100,2],[100,4,100,6],[101,0,101,7],[102,0,102,7],[103,1,103,5],[103,6,103,7],[94,2,94,3],[94,4,94,5],[94,6,94,7],[95,2,95,3],[95,4,95,5],[95,6,95,7],[96,0,96,7],[97,0,97,2],[97,4,97,6],[88,0,88,6],[89,1,89,2],[89,3,89,7],[90,0,90,6],[91,1,91,2],[92,1,92,3],[92,4,92,5],[92,6,92,7],[93,2,93,3],[93,4,93,5],[93,6,93,7],[83,0,83,4],[83,5,83,7],[84,1,84,3],[84,4,84,7],[85,1,85,3],[85,4,85,7],[86,0,86,6],[87,1,87,2],[87,3,87,7],[77,0,77,2],[77,3,77,7],[78,0,78,6],[79,0,79,6],[80,0,80,2],[81,0,82,0],[81,1,81,2],[81,3,81,4],[81,6,81,7],[82,3,82,4],[82,6,82,7],[72,1,72,2],[72,3,72,4],[73,1,73,2],[73,3,73,4],[74,1,74,2],[74,3,74,4],[75,1,75,2],[75,3,75,4],[76,1,76,2],[76,3,76,4],[67,1,67,2],[67,3,67,4],[68,1,68,2],[68,3,68,4],[69,1,69,2],[69,3,69,4],[70,1,70,2],[70,3,70,4],[71,1,71,2],[71,3,71,4],[61,0,61,2],[61,3,61,7],[62,0,62,6],[63,0,63,7],[64,0,64,2],[64,3,64,4],[65,1,65,2],[65,3,65,4],[66,1,66,2],[66,3,66,4],[55,0,55,4],[55,6,55,7],[56,0,56,4],[56,6,56,7],[58,0,58,4],[58,5,58,7],[59,1,59,4],[59,5,59,7],[60,2,60,4],[60,5,60,7],[41,1,41,2],[42,3,42,7],[43,1,43,2],[51,1,51,2],[53,0,53,7],[54,0,54,4],[54,6,54,7],[45,0,45,7],[46,1,46,2],[47,1,47,2],[48,3,48,7],[49,1,49,2],[50,1,50,2],[32,0,32,7],[33,1,33,3],[34,1,34,3],[35,0,35,7],[36,0,36,6],[37,0,37,7],[38,1,38,2],[39,1,39,2],[40,3,40,7],[26,0,26,6],[27,0,27,2],[27,3,27,4],[28,0,28,5],[28,6,28,7],[29,0,29,3],[29,6,29,7],[30,0,30,6],[31,0,31,6],[20,1,20,2],[20,5,20,7],[21,1,21,2],[21,5,21,7],[22,1,22,2],[22,5,22,7],[23,0,23,6],[24,0,24,6],[25,0,25,2],[15,1,15,2],[15,5,15,7],[16,1,16,2],[16,5,16,7],[17,1,17,2],[17,5,17,7],[18,1,18,2],[18,5,18,7],[19,1,19,2],[19,5,19,7],[9,0,9,7],[10,0,10,6],[11,0,11,6],[12,1,12,2],[12,3,12,7],[13,0,13,2],[13,3,13,7],[14,1,14,2],[14,5,14,7],[7,0,7,2],[7,3,7,5],[7,6,7,7],[0,0,0,7],[1,0,1,2],[1,3,1,4],[2,0,2,7],[3,3,3,4],[3,5,3,7],[4,0,4,2],[5,0,5,2],[127,1,127,5],[127,6,127,7],[128,1,128,2],[128,3,128,7],[124,1,124,5],[124,6,124,7],[125,1,125,5],[125,6,125,7],[126,1,126,5],[126,6,126,7]]}
[null,null,null,null,null,null,null,null,"Columns I-Y are meant to be hidden. They exist because they allow for the dropdown list options. They also allow for merged cells to autofit properly in terms of row height. This should work if all columns remain at their correct widths.","g-h",null,"a-e merged","E-F merged","e-h","0 times",null,null,"The government (e.g., Central Medical Stores, MOH logistics unit, MOH procurement unit)",null,null,null,null,"Yes","a-h","January"]
[null,null,null,null,null,null,null,null,null,null,"A-c",null,null,null,"1-2 times","b-d merged",null,"Third-party agent (e.g., UNFPA, Crown Agents)","d-e merged","d-f merged","e-f merged","e-g merged","No",null,"February"]
[null,null,null,null,null,null,null,null,null,null,null,null,null,null,"3-5 times",null,null,"The government and a third-party agent",null,null,null,null,null,null,"March"]
[null,null,null,null,null,null,null,null,null,null,null,null,null,null,"6 or more times",null,null,"Other",null,null,null,null,"N/A",null,"April"]
["To jump to the Introduction sheet, click here.",null,null,null,null,null,null,null,null,null,null,null,null,null,null,null,null,null,null,null,null,null,"Don't know",null,"May"]
[null,null,null,null,null,null,null,null,null,null,null,null,null,null,"N/A",null,null,"N/A",null,null,null,null,null,null,"June"]
["Contraceptive Security (CS) Indicators 2011 Data ",null,null,null,null,null,null,null,null,null,null,null,null,null,"Don't know",null,null,"Don't know",null,null,null,null,null,null,"July"]
["Country: Malawi",null,null,null,null,null,null,null,null,{"$f":"G8","v":0},{"$f":"A8","v":"Country: Malawi"},null,null,null,null,"or c-d",null,null,null,{"$f":"D8","v":0},null,null,null,null,"August"]
["The CS Indicators are presented in the following sections:\n\n               A. leadership & cooordination               B. finance & procurement               C. commodities               D. policies               E. supply chain",null,null,null,null,null,null,null,null,{"$f":"G9","v":0},{"$f":"A9","v":"The CS Indicators are presented in the following sections:\n\n               A. leadership & cooordination               B. finance & procurement               C. commodities               D. policies               E. supply chain"},null,null,null,"d-h",null,"f-h merged",null,{"$f":"D9","v":0},null,null,null,null,null,"September"]
["\nNotes:\n  -  Respondents' answers are indicated in the white spaces. \n  -  N/A = not applicable. Don't know = the respondent either indicated they did not know or left the answer blank.\n  -  Some questions required respondents to choose from a dropdown list of options; in these cases the dropdown arrow will \n     appear when you click on the cell. \n  -  There may be a few inserted comments. (If you cannot already see them, click on Review tab - Comments group - Show All Comments in newer \n       versions of Excel or View - Comments in older versions of Excel.)\n  -  If the answer is cut off, you can either manually adjust the row height or autofit the row height in order to see the whole \n     response. (To autofit the row height, select the answer(s) and go to Home tab - Cells group - Format - Autofit Row Height in newer versions of Excel or \n      Format - Row - Autofit in older versions of Excel.)\n",null,null,null,null,null,null,null,"a-g",null,null,null,null,null,null,null,null,"a-e merged",null,null,null,null,null,{"$f":"A10","v":"\nNotes:\n  -  Respondents' answers are indicated in the white spaces. \n  -  N/A = not applicable. Don't know = the respondent either indicated they did not know or left the answer blank.\n  -  Some questions required respondents to choose from a dropdown list of options; in these cases the dropdown arrow will \n     appear when you click on the cell. \n  -  There may be a few inserted comments. (If you cannot already see them, click on Review tab - Comments group - Show All Comments in newer \n       versions of Excel or View - Comments in older versions of Excel.)\n  -  If the answer is cut off, you can either manually adjust the row height or autofit the row height in order to see the whole \n     response. (To autofit the row height, select the answer(s) and go to Home tab - Cells group - Format - Autofit Row Height in newer versions of Excel or \n      Format - Row - Autofit in older versions of Excel.)\n"},"October"]
["A. Leadership and Coordination",null,null,null,null,null,null,null,null,null,null,null,null,null,null,null,null,null,null,null,null,null,null,null,"November"]
["A1. Is there a national committee that works on contraceptive security? (Please select from the dropdown list.)\n(Committee should have some aspect of contraceptive security as part of its Terms of Reference, even if it is known by a different name, for example: Family Planning, Reproductive Health, Maternal Mortality, Essential Medicine Committee, etc.)  ",null,null,null,null,null,null,"Yes",{"$f":"A12","v":"A1. Is there a national committee that works on contraceptive security? (Please select from the dropdown list.)\n(Committee should have some aspect of contraceptive security as part of its Terms of Reference, even if it is known by a different name, for example: Family Planning, Reproductive Health, Maternal Mortality, Essential Medicine Committee, etc.)  "},null,null,null,null,null,null,null,null,null,null,null,null,null,null,null,"December"]
[null,"a. What is the name of the committee?",null,"Reproductive Health Commodity Security (RHCS) Sub-Committee",null,null,null,null,null,null,{"$f":"B13","v":"a. What is the name of the committee?"},{"$f":"D13","v":"Reproductive Health Commodity Security (RHCS) Sub-Committee"},null,null,{"$f":"D13","v":"Reproductive Health Commodity Security (RHCS) Sub-Committee"}]
["A2. Are the following organizations represented on the committee?",null,null,"(Y/N \ndropdown)",null,null,null,null,null,null,{"$f":"A14","v":"A2. Are the following organizations represented on the committee?"},null,null,null,null,null,null,null,null,null,null,null,null,null,"Don't know"]
[null,"a. Social marketing",null,"Yes","If yes, specify name(s) of organizations","Population Services International (PSI), Banja La Mtsogolo (BLM)",null,null,null,null,{"$f":"B15","v":"a. Social marketing"},null,null,null,null,null,{"$f":"F15","v":"Population Services International (PSI), Banja La Mtsogolo (BLM)"}]
[null,"b. NGO (for example: service delivery, advocacy, Planned Parenthood affiliate, Marie Stopes affiliate, faith-based organizations, etc.)",null,"Yes","If yes, specify name(s) of organizations","Banja La Mtsogolo (BLM), Christian Health Assosiation of Malawi (CHAM), Family Planning Association of Malawi (FPAM)",null,null,null,null,"b. NGO (for example: service delivery, advocacy, Planned Parenthood affiliate, Marie Stopes affiliate, faith-based organizations, etc.)",null,null,null,null,null,"Banja La Mtsogolo (BLM), Christian Health Assosiation of Malawi (CHAM), Family Planning Association of Malawi (FPAM)"]
[null,"c. Commercial sector (for example: pharmacy associations, manufacturers, etc.)",null,"No","If yes, specify name(s) of organizations",null,null,null,null,null,"c. Commercial sector (for example: pharmacy associations, manufacturers, etc.)",null,null,null,null,null,0]
[null,"d. Donors",null,"Yes","If yes, specify name(s) of donors","USAID, Global Fund",null,null,null,null,"d. Donors",null,null,null,null,null,"USAID, Global Fund"]
[null,"e. UN agencies",null,"Yes","If yes, specify name(s) of agencies","UNFPA",null,null,null,null,"e. UN agencies",null,null,null,null,null,"UNFPA"]
[null,"f. Ministry of Health (for example: logistics, reproductive health, family planning, maternal and child health, HIV/AIDS, pharmacy units, etc.)",null,"Yes","If yes, specify name(s) of units","Reproductive Health Unit, Health Technical Support Services (HTSS) - Pharmaceutical, HIV Unit, National AIDS Commission",null,null,null,null,"f. Ministry of Health (for example: logistics, reproductive health, family planning, maternal and child health, HIV/AIDS, pharmacy units, etc.)",null,null,null,null,null,"Reproductive Health Unit, Health Technical Support Services (HTSS) - Pharmaceutical, HIV Unit, National AIDS Commission"]
[null,"g. Central Medical Store or Central Warehouse",null,"No","If yes, specify",null,null,null,null,null,"g. Central Medical Store or Central Warehouse",null,null,null,null,null,0]
[null,"h. Ministry of Finance or Ministry of Planning ",null,"No","If yes, specify",null,null,null,null,null,"h. Ministry of Finance or Ministry of Planning ",null,null,null,null,null,0]
[null,"i. Other (for example: partners)",null,"No","If yes, specify",null,null,null,null,null,"i. Other (for example: partners)",null,null,null,null,null,0]
["A3. How many times did the committee meet during the last year? (0, 1-2, 3-5, or 6+)  (Please select from the dropdown.)",null,null,null,null,null,null,"3-5 times",{"$f":"A24","v":"A3. How many times did the committee meet during the last year? (0, 1-2, 3-5, or 6+)  (Please select from the dropdown.)"}]
["A4. Does the committee have legal status?  (Please select from the dropdown.)                                  ",null,null,null,null,null,null,"No",{"$f":"A25","v":"A4. Does the committee have legal status?  (Please select from the dropdown.)                                  "}]
["A5. Is there a Contraceptive Security \"champion\"? (someone who consistently brings up and advocates for contraceptive supplies)",null,null,"Yes","If yes, specify person's organization","Reproductive Health Unit","Specify person's job title","Deputy Director, Clinical Health Services - RH",null,null,{"$f":"A26","v":"A5. Is there a Contraceptive Security \"champion\"? (someone who consistently brings up and advocates for contraceptive supplies)"}]
["B. Finance and Procurement (Capital)"]
["B1. What is the timeline of the country's fiscal year?",null,null,"Beginning month",null,"July","Ending month","June",null,null,{"$f":"B28","v":0}]
["B2. What was the estimated dollar value of contraceptives needed to be procured for the public sector for the most recent complete fiscal year? (in USD currency)\n(for example, to cover the needs for the '09-'10 fiscal year)",null,null,null,null,null,18442577,null,null,{"$f":"G29","v":18442577},null,null,{"$f":"E29","v":0},null,null,null,null,null,null,null,null,null,null,null,{"$f":"A29","v":"B2. What was the estimated dollar value of contraceptives needed to be procured for the public sector for the most recent complete fiscal year? (in USD currency)\n(for example, to cover the needs for the '09-'10 fiscal year)"}]
["B3. When was the last forecast/quantification conducted? (mm/yy)",null,null,null,"02/09","Who conducted it? (Specify organization.)","HTSS with support from USAID | DELIVER PROJECT and various MOH partners",null,null,{"$f":"G30","v":"HTSS with support from USAID | DELIVER PROJECT and various MOH partners"},null,null,{"$f":"E30","v":"02/09"},null,null,null,null,null,null,null,null,null,null,null,{"$f":"A30","v":"B3. When was the last forecast/quantification conducted? (mm/yy)"}]
["B4. Is there a government budget line item for the procurement of contraceptives?  (Please select from the dropdown list.)",null,null,null,null,null,null,"No",{"$f":"A31","v":"B4. Is there a government budget line item for the procurement of contraceptives?  (Please select from the dropdown list.)"}]
["B5. Were government funds allocated for contraceptive procurement for the public sector in the most recent complete fiscal year? (This question refers to funds planned to be spent on contraceptives, whether or not they ended up being spent.) \n\n(Government funds include internally generated funds, basket funds, World Bank credits or loans, and other funds donors gave to the government for their use.) \n",null,null,null,null,null,null,"Don't know",{"$f":"A32","v":"B5. Were government funds allocated for contraceptive procurement for the public sector in the most recent complete fiscal year? (This question refers to funds planned to be spent on contraceptives, whether or not they ended up being spent.) \n\n(Government funds include internally generated funds, basket funds, World Bank credits or loans, and other funds donors gave to the government for their use.) \n"}]
["B6. Please complete the table below regarding government allocations for contraceptive procurement.",null,null,null,null,null,null,null,null,null,null,null,null,null,null,null,null,null,null,null,null,null,null,{"$f":"A33","v":"B6. Please complete the table below regarding government allocations for contraceptive procurement."}]
[null,null,null,null,"Amount allocated \n(in USD)","Time period during which allocations were supposed to be spent \n(mm/yy-mm/yy)\n(should ideally be the most recent\ncomplete fiscal year ['09-'10])","Data source \n(for example: Ministry records)","Comments",null,null,{"$f":"A34","v":0}]
[null,"Government funds allocated for contraceptive procurement\n(funds originally designated for contraceptives, whether or not they ended up being spent on them)",null,null,"Don’t know","07/09-06/10",null,null,null,null,{"$f":"#REF!","v":{"$error":"#REF!"}}]
[]
["B7. Were government funds spent on contraceptive procurement for the public sector in the most recent complete fiscal year? \n(Government funds include internally generated funds, basket funds, World Bank credits or loans, and other funds donors gave to the government for their use.)",null,null,null,null,null,null,"Yes",{"$f":"A37","v":"B7. Were government funds spent on contraceptive procurement for the public sector in the most recent complete fiscal year? \n(Government funds include internally generated funds, basket funds, World Bank credits or loans, and other funds donors gave to the government for their use.)"}]
["B8. Please complete the table below to indicate government expenditures on contraceptive procurement, by source, in the most recent complete fiscal year. \n(This is how much was spent on contraceptive procurement (not what was allocated). How much of this spending was provided from each source?)",null,null,null,null,null,null,null,null,null,null,null,null,null,null,null,null,null,null,null,null,null,null,{"$f":"A38","v":"B8. Please complete the table below to indicate government expenditures on contraceptive procurement, by source, in the most recent complete fiscal year. \n(This is how much was spent on contraceptive procurement (not what was allocated). How much of this spending was provided from each source?)"}]
[null,"Source of government funds spent on contraceptive procurement for the public sector",null,"Was this source used?\n(Y/N)","Amount spent \n(in USD)","Time period (mm/yy-mm/yy)\n(should be the same for all sources of funds & ideally be the most recent\ncomplete fiscal year ['09-'10])","Data source \n(for example: Contraceptive Procurement Table, PipeLine, etc.)","Comments",null,null,{"$f":"A39","v":0}]
[null,"a. Internally generated funds spent on contraceptive procurement",null,"Don't know",null,"07/09-06/10",null,"Because there is a SWAp, it is not possible to disaggregate internally generated revenue funding from total government funding.",null,null,{"$f":"B40","v":"a. Internally generated funds spent on contraceptive procurement"}]
[null,null,"i. Specify source(s) of internally generated funds spent (for example, from taxes or user fees)",null,null,null,null,null,null,null,{"$f":"C41","v":"i. Specify source(s) of internally generated funds spent (for example, from taxes or user fees)"},null,null,null,{"$f":"D41","v":0}]
[null,"b. Total of all other government funds spent on contraceptive procurement (basket funds, World Bank credits or loans, and other funds donors gave to the government [e.g., direct budget support])",null,"Yes",1223717,"07/09-06/10","PipeLine","This refers to commodities received during the time period.",null,null,{"$f":"B42","v":"b. Total of all other government funds spent on contraceptive procurement (basket funds, World Bank credits or loans, and other funds donors gave to the government [e.g., direct budget support])"}]
[null,null,"i. Specify source(s) of other government funds spent (for example: basket funding or specific donor)","Basket funds",null,null,null,null,null,null,{"$f":"C43","v":"i. Specify source(s) of other government funds spent (for example: basket funding or specific donor)"},null,null,null,{"$f":"D43","v":"Basket funds"}]
[null,"c. TOTAL government funds spent on contraceptive procurement\nThis will auto-calculate.  (It will sum a & b above.)",null,null,{"$f":"E40+E42","v":1223717},null,null,null,null,null,{"$f":"B44","v":"c. TOTAL government funds spent on contraceptive procurement\nThis will auto-calculate.  (It will sum a & b above.)"}]
[null,null,null,null,null,null,null,null,null,null,{"$f":"A45","v":0}]
["B9. Please complete the table below to indicate donor expenditures on contraceptive procurement in the most recent complete fiscal year.\n",null,null,null,null,null,null,null,null,null,null,null,null,null,null,null,null,null,null,null,null,null,null,{"$f":"A46","v":"B9. Please complete the table below to indicate donor expenditures on contraceptive procurement in the most recent complete fiscal year.\n"}]
["\n","Source of donations and donor funds spent on contraceptive procurement for the public sector",null,"Was this a source?\n(Y/N)","Amount of money spent on these procurements \n(in USD)","Time period (mm/yy-mm/yy)\n(should be the same for all sources of funds & ideally be the most recent\ncomplete fiscal year ['09-'10])","Data source \n(for example:  Donor records, Contraceptive Procurement Table, PipeLine, RHInterchange, etc.","Comments",null,null,{"$f":"A47","v":"\n"}]
[null,"a. In-kind donations of contraceptives",null,"Yes",6693039,"07/09-06/10","PipeLine","This refers to commodities received during the time period.",null,null,{"$f":"B48","v":"a. In-kind donations of contraceptives"}]
[null,null,"i. Specify source(s) of in-kind donations ","UNFPA ($2,490,255) and USAID ($4,202,784)",null,null,null,null,null,null,{"$f":"C49","v":"i. Specify source(s) of in-kind donations "},null,null,null,{"$f":"D49","v":"UNFPA ($2,490,255) and USAID ($4,202,784)"}]
[null,"b. Global Fund donations used to procure condoms",null,"Yes",186698,"07/09-06/10","PipeLine","This refers to commodities received during the time period.",null,null,{"$f":"B50","v":"b. Global Fund donations used to procure condoms"}]
[null,"c. Global Fund donations used to procure contraceptives besides condoms",null,"No",0,"07/09-06/10",null,null,null,null,{"$f":"B51","v":"c. Global Fund donations used to procure contraceptives besides condoms"}]
[null,"d. TOTAL value of in-kind donations and Global Fund donations spent on contraceptive procurement\nThis will auto-calculate.  (It will sum a-c above.)",null,null,{"$f":"E48+E50+E51","v":6879737},null,null,null,null,null,{"$f":"B52","v":"d. TOTAL value of in-kind donations and Global Fund donations spent on contraceptive procurement\nThis will auto-calculate.  (It will sum a-c above.)"}]
[null,null,null,null,null,null,null,null,null,null,{"$f":"A53","v":0}]
["The answers to B10 and B11 should calculate automatically based on the information you provided. Please review the answers to ensure they make sense to you, and if you have additional information to add, please note it in the comments boxes.\n\nIf the answers do not calculate automatically, please provide any relevant information you may have in the comments boxes.\n",null,null,null,null,null,null,null,null,null,null,null,null,null,null,null,null,null,null,null,null,null,null,{"$f":"A54","v":"The answers to B10 and B11 should calculate automatically based on the information you provided. Please review the answers to ensure they make sense to you, and if you have additional information to add, please note it in the comments boxes.\n\nIf the answers do not calculate automatically, please provide any relevant information you may have in the comments boxes.\n"}]
["B10. Government share of funds spent on contraceptive procurement for the public sector - \nOf the total amount spent on contraceptives for the public sector in the most recent complete fiscal year (including government and donor funds), what percent was covered by government funds (including internally generated funds, basket funds, World Bank credits or loans, and other funds given to the government)? \n\nThis will auto-calculate. (It contains the following formula: Total government spending (Question B8c) / Grand total of all spending for public sector contraceptives from the government and donors (Questions B8c+B9d))",null,null,null,null,{"$f":"E44/(E44+E52)","v":0.15101177843423311},null,null,null,{"$f":"G55","v":0},null,null,null,null,null,null,null,{"$f":"A55","v":"B10. Government share of funds spent on contraceptive procurement for the public sector - \nOf the total amount spent on contraceptives for the public sector in the most recent complete fiscal year (including government and donor funds), what percent was covered by government funds (including internally generated funds, basket funds, World Bank credits or loans, and other funds given to the government)? \n\nThis will auto-calculate. (It contains the following formula: Total government spending (Question B8c) / Grand total of all spending for public sector contraceptives from the government and donors (Questions B8c+B9d))"}]
["B11. Total expenditures on public sector contraceptives as percent of amount that needed to be procured -\nOf the estimated value of the contraceptives needed to be procured for the public sector for the most recent complete fiscal year, what percent was provided by any source (whether government or donor)? \n\nThis will auto-calculate. (It contains the following formula: Grand total of all spending for public sector contraceptives from the government and donors (Questions B8c+B9d) / Value of estimated need for procurement (Question B2))",null,null,null,null,{"$f":"(E44+E52)/G29","v":0.43938837831611061},"The expenditure data used as inputs for this calculation were based on PipeLine, so they represent shipments received (rather than funds spent) during the time period. Because of this there is an issue of timing.\n",null,null,{"$f":"G56","v":"The expenditure data used as inputs for this calculation were based on PipeLine, so they represent shipments received (rather than funds spent) during the time period. Because of this there is an issue of timing.\n"},null,null,null,null,null,null,null,{"$f":"A56","v":"B11. Total expenditures on public sector contraceptives as percent of amount that needed to be procured -\nOf the estimated value of the contraceptives needed to be procured for the public sector for the most recent complete fiscal year, what percent was provided by any source (whether government or donor)? \n\nThis will auto-calculate. (It contains the following formula: Grand total of all spending for public sector contraceptives from the government and donors (Questions B8c+B9d) / Value of estimated need for procurement (Question B2))"}]
["B12. If B11 did not calculate automatically, please answer the following question:\nWas there a funding gap for the public sector in the last complete fiscal year (e.g., 09-'10 fiscal year)?\n(Please select from the dropdown list.)",null,null,null,null,null,null,null,null,{"$f":"G57","v":0},null,null,null,null,null,null,null,{"$f":"A57","v":"B12. If B11 did not calculate automatically, please answer the following question:\nWas there a funding gap for the public sector in the last complete fiscal year (e.g., 09-'10 fiscal year)?\n(Please select from the dropdown list.)"}]
[null,null,null,null,null,null,null,null,null,null,{"$f":"A58","v":0}]
["B13. If the government financed any contraceptive procurement in the most recent complete fiscal year, which entity conducted the procurement(s)? (Please select from the dropdown.)",null,null,null,null,"The government (e.g., Central Medical Stores, MOH logistics unit, MOH procurement unit)",null,null,null,null,null,null,null,null,null,null,{"$f":"F59","v":"The government (e.g., Central Medical Stores, MOH logistics unit, MOH procurement unit)"},{"$f":"A59","v":"B13. If the government financed any contraceptive procurement in the most recent complete fiscal year, which entity conducted the procurement(s)? (Please select from the dropdown.)"}]
[null,"a. Specify entity",null,null,null,"Central Medical Stores",null,null,null,null,null,null,{"$f":"E60","v":0},null,null,null,{"$f":"F60","v":"Central Medical Stores"},{"$f":"B60","v":"a. Specify entity"}]
[null,null,"i. Is this a parastatal?",null,null,"No",null,null,null,null,null,null,null,null,null,null,{"$f":"F61","v":"No"},{"$f":"C61","v":"i. Is this a parastatal?"}]
["B14. Please note any additional comments about finance and procurement.\n",null,null,null,null,null,null,null,null,null,{"$f":"A62","v":"B14. Please note any additional comments about finance and procurement.\n"},null,null,null,{"$f":"D62","v":0}]
["C. Commodities"]
["C1. Are the following contraceptive methods offered through the commercial sector, public sector, NGOs, or social marketing? (Please indicate which methods are intended to be offered. This question is not asking whether the method is in stock.) \n(Please select from the dropdown list.)",null,null,null,null,null,null,null,null,null,null,null,null,null,null,null,null,null,null,null,null,null,null,{"$f":"A64","v":"C1. Are the following contraceptive methods offered through the commercial sector, public sector, NGOs, or social marketing? (Please indicate which methods are intended to be offered. This question is not asking whether the method is in stock.) \n(Please select from the dropdown list.)"}]
["Contraceptive Method",null,null,"Commercial Sector",null,"Public Sector","NGO","Social Marketing",null,null,{"$f":"A65","v":"Contraceptive Method"}]
[null,"a. Combined oral contraceptives (estrogen + progestin - for  example, LoFemenol, Microgynon)",null,"Yes",null,"Yes","Yes","Yes",null,null,{"$f":"B66","v":"a. Combined oral contraceptives (estrogen + progestin - for  example, LoFemenol, Microgynon)"}]
[null,"b. Progestin-only pills (for example, Ovrette, Microlut)",null,"Yes",null,"Yes","Yes","Yes",null,null,{"$f":"B67","v":"b. Progestin-only pills (for example, Ovrette, Microlut)"}]
[null,"c. Hormonal injections (for example, DepoProvera, Noristerat)",null,"Yes",null,"Yes","Yes","Yes",null,null,"c. Hormonal injections (for example, DepoProvera, Noristerat)"]
[null,"d. Hormonal implants (for example, Jadelle, Implanon)",null,"Yes",null,"Yes","Yes","Yes",null,null,"d. Hormonal implants (for example, Jadelle, Implanon)"]
[null,"e. Intrauterine devices (IUDs) (for example, Optima Copper T)",null,"Yes",null,"Yes","Yes","Don't know",null,null,"e. Intrauterine devices (IUDs) (for example, Optima Copper T)"]
[null,"f. Male condoms",null,"Yes",null,"Yes","Yes","Yes",null,null,"f. Male condoms"]
[null,"g. Female condoms",null,"Yes",null,"Yes","Yes","Yes",null,null,"g. Female condoms"]
[null,"h. Emergency contraceptive pills (for example, Postinor)",null,"Yes",null,"Yes","Yes","Yes",null,null,"h. Emergency contraceptive pills (for example, Postinor)"]
[null,"i. Long-acting permanent method for males (vasectomy)",null,"Yes",null,"Yes","Yes","Yes",null,null,"i. Long-acting permanent method for males (vasectomy)"]
[null,"j. Long-acting permanent method for females (tubal ligation)",null,"Yes",null,"Yes","Yes","Yes",null,null,"j. Long-acting permanent method for females (tubal ligation)"]
[null,"k. CycleBeads",null,"No",null,"No","Yes","Yes",null,null,"k. CycleBeads"]
[null,"l. Other contraceptive methods - specify \n(Please provide the name of the other contraceptive(s) offered, by sector.)",null,null,null,null,null,null,null,null,"l. Other contraceptive methods - specify \n(Please provide the name of the other contraceptive(s) offered, by sector.)"]
["C2. Please note any comments about the commodities offered.",null,null,"For emergency contraceptives, long-acting permanent methods, and CycleBeads, the NGOs that provide these have an element of social marketing as well, so it was noted here that the methods are offered through NGOs and social marketing.",null,null,null,null,null,null,{"$f":"A78","v":"C2. Please note any comments about the commodities offered."},null,null,null,{"$f":"D78","v":"For emergency contraceptives, long-acting permanent methods, and CycleBeads, the NGOs that provide these have an element of social marketing as well, so it was noted here that the methods are offered through NGOs and social marketing."}]
["D. Policies (Commitment)"]
["D1. Is there a contraceptive security or reproductive health commodity security strategy or is contraceptive security explicitly included in a country strategy? (Please select from the dropdown list.)",null,null,null,null,null,null,"Yes",{"$f":"A80","v":"D1. Is there a contraceptive security or reproductive health commodity security strategy or is contraceptive security explicitly included in a country strategy? (Please select from the dropdown list.)"}]
["IF NO, SKIP TO QUESTION D2."]
[null,"Strategy name",null,"Years Covered (including strategy updates)",null,"Is the strategy formally approved by the Ministry?","Is the contraceptive security strategy being implemented?",null,null,{"$f":"G82","v":"Is the contraceptive security strategy being implemented?"},{"$f":"B82","v":"Strategy name"},null,{"$f":"E82","v":0},null,null,null,null,null,{"$f":"D82","v":"Years Covered (including strategy updates)"}]
[null,"a","DRAFT Reproductive Health Commodity Security Strategy","2011-2015",null,"No","Yes",null,null,{"$f":"G83","v":"Yes"},{"$f":"B83","v":"a"},null,{"$f":"E83","v":0},null,null,null,null,null,{"$f":"D83","v":"2011-2015"}]
["D2. Are any family planning commodities subject to duties, import taxes, or other fees?",null,null,null,null,"Yes",null,null,null,null,null,null,null,null,null,null,{"$f":"F84","v":"Yes"},{"$f":"A84","v":"D2. Are any family planning commodities subject to duties, import taxes, or other fees?"}]
[null,"a. If yes, for which sectors (public, NGO, social marketing, commercial)?",null,null,"The public sector charges handling fees for the distribution of contraceptives to public sites and to NGOs that are supplied directly from the central medical store (CMS). These charges have proved to limit access to commodities, especially those that are highly priced and/or high volume.",null,null,null,null,null,null,null,{"$f":"E85","v":"The public sector charges handling fees for the distribution of contraceptives to public sites and to NGOs that are supplied directly from the central medical store (CMS). These charges have proved to limit access to commodities, especially those that are highly priced and/or high volume."},{"$f":"E85","v":"The public sector charges handling fees for the distribution of contraceptives to public sites and to NGOs that are supplied directly from the central medical store (CMS). These charges have proved to limit access to commodities, especially those that are highly priced and/or high volume."},null,null,null,{"$f":"B85","v":"a. If yes, for which sectors (public, NGO, social marketing, commercial)?"}]
[null,"b. If yes, how much are the duties, taxes, or fees?",null,null,"Handling fees are 12.5% for government-procured commodities, and this is charged over and above the cost of the commodity, while for donated items it is 5% of the cost of the commodity.",null,null,null,null,null,null,null,null,{"$f":"E86","v":"Handling fees are 12.5% for government-procured commodities, and this is charged over and above the cost of the commodity, while for donated items it is 5% of the cost of the commodity."},null,null,null,{"$f":"B86","v":"b. If yes, how much are the duties, taxes, or fees?"}]
["D3. Are there policies that hinder the ability of the private sector (commercial sector, NGOs, or social marketing) to provide contraceptive methods (for example: price controls, distribution limitations, taxes/duties, advertising bans, etc.)?",null,null,null,null,null,null,"No",{"$f":"A87","v":"D3. Are there policies that hinder the ability of the private sector (commercial sector, NGOs, or social marketing) to provide contraceptive methods (for example: price controls, distribution limitations, taxes/duties, advertising bans, etc.)?"}]
[null,"a. If yes, describe the policies.",null,"N/A",null,null,null,null,null,null,{"$f":"B88","v":"a. If yes, describe the policies."},null,null,null,{"$f":"D88","v":"N/A"}]
["D4. Are there policies that enable the private sector (commercial sector, NGOs, or social marketing) to provide contraceptive methods?",null,null,null,null,null,null,"Don't know",{"$f":"A89","v":"D4. Are there policies that enable the private sector (commercial sector, NGOs, or social marketing) to provide contraceptive methods?"}]
[null,"a. If yes, describe the policies.",null,"Don't know",null,null,null,null,null,null,{"$f":"B90","v":"a. If yes, describe the policies."},null,null,null,{"$f":"D90","v":"Don't know"}]
["D5. Do policies or regulations exist that restrict who can sell or dispense particular contraceptive methods?\n",null,null,null,null,null,null,"Yes",{"$f":"A91","v":"D5. Do policies or regulations exist that restrict who can sell or dispense particular contraceptive methods?\n"}]
[null,"Please note any restrictions in the following table."]
[null,"Contraceptive Method(s)",null,null,"Describe any public sector restriction on who is allowed to sell or dispense the method",null,"Describe any private sector restriction on who is allowed to sell or dispense the method",null,null,{"$f":"G93","v":"Describe any private sector restriction on who is allowed to sell or dispense the method"},null,null,null,null,null,{"$f":"B93","v":"Contraceptive Method(s)"},null,null,null,null,{"$f":"E93","v":"Describe any public sector restriction on who is allowed to sell or dispense the method"}]
[null,"a","IUDs, implants, and injectables",null,"Can only administer in facilities with trained personnel. The non-medically trained cadre Health Surveillance Assistants are now allowed to administer DMPA injectables in communities after training.",null,"Can only administer in accredited premises and by registered personnel",null,null,{"$f":"G94","v":"Can only administer in accredited premises and by registered personnel"},null,null,{"$f":"E94","v":"Can only administer in facilities with trained personnel. The non-medically trained cadre Health Surveillance Assistants are now allowed to administer DMPA injectables in communities after training."},null,null,{"$f":"C94","v":"IUDs, implants, and injectables"},null,null,null,null,{"$f":"E94","v":"Can only administer in facilities with trained personnel. The non-medically trained cadre Health Surveillance Assistants are now allowed to administer DMPA injectables in communities after training."}]
[null,"b","Oral contraceptives",null,"Only trained personnel can provide. Community Health Workers can provide oral contraceptives (and condoms).",null,"Can only provide in accredited premises and by registered personnel",null,null,{"$f":"G95","v":"Can only provide in accredited premises and by registered personnel"},null,null,{"$f":"E95","v":"Only trained personnel can provide. Community Health Workers can provide oral contraceptives (and condoms)."},null,null,{"$f":"C95","v":"Oral contraceptives"},null,null,null,null,{"$f":"E95","v":"Only trained personnel can provide. Community Health Workers can provide oral contraceptives (and condoms)."}]
[null,"c",null,null,null,null,null,null,null,{"$f":"G96","v":0},null,null,{"$f":"E96","v":0},null,null,{"$f":"C96","v":0},null,null,null,null,{"$f":"E96","v":0}]
[null,null,null,null,null,null,null,null,null,null,{"$f":"C97","v":0}]
["D6. Does the country have laws, regulations, or policies that make it difficult for the following sub-populations to access effective family planning services?",null,null,"Y/N","If yes, describe laws/regulations/policies affecting access ",null,null,"Are the rules/policies implemented?",null,null,{"$f":"A98","v":"D6. Does the country have laws, regulations, or policies that make it difficult for the following sub-populations to access effective family planning services?"},null,null,null,null,null,null,null,null,null,null,{"$f":"E98","v":"If yes, describe laws/regulations/policies affecting access "}]
[null,"a. Unmarried people",null,"No",null,null,null,null,null,null,{"$f":"B99","v":"a. Unmarried people"},null,{"$f":"E99","v":0},null,null,null,null,null,null,null,null,{"$f":"E99","v":0}]
[null,"b. Young people",null,"No",null,null,null,null,null,null,{"$f":"B100","v":"b. Young people"},null,{"$f":"E100","v":0},null,null,null,null,null,null,null,null,{"$f":"E100","v":0}]
[null,"c. Other",null,"No",null,null,null,null,null,null,{"$f":"B101","v":"c. Other"},null,{"$f":"E101","v":0},null,null,null,null,null,null,null,null,{"$f":"E101","v":0}]
[null,null,null,null,null,null,null,null,null,null,{"$f":"C102","v":0}]
["D7. Are there charges* to the client in the public sector for family planning:\n*(This question refers to charges by policy, not under-the-table charges.)\n",null,null,null,null,null,null,null,null,null,null,null,null,null,null,null,null,null,null,null,null,null,null,{"$f":"A103","v":"D7. Are there charges* to the client in the public sector for family planning:\n*(This question refers to charges by policy, not under-the-table charges.)\n"}]
[null,"a. Services?",null,null,null,null,"No",null,null,{"$f":"G104","v":"No"},null,null,null,null,null,null,null,null,null,null,null,null,null,null,{"$f":"B104","v":"a. Services?"}]
[null,"b. Commodities?",null,null,null,null,"No",null,null,{"$f":"G105","v":"No"},null,null,null,null,null,null,null,null,null,null,null,null,null,null,{"$f":"B105","v":"b. Commodities?"}]
[null,"c. If yes, are there exemptions for people who cannot afford to pay?",null,null,null,null,"N/A",null,null,{"$f":"G106","v":"N/A"},null,null,null,null,null,null,null,null,null,null,null,null,null,null,{"$f":"B106","v":"c. If yes, are there exemptions for people who cannot afford to pay?"}]
[null,null,"i. If yes, describe the exemptions.","N/A",null,null,null,null,null,null,{"$f":"C107","v":"i. If yes, describe the exemptions."},null,null,null,{"$f":"D107","v":"N/A"}]
["D8. Are the following contraceptives included in the country's National Essential Medicine List (NEML) or other equivalent priority list?",null,null,null,null,null,null,null,null,null,null,null,null,null,null,null,null,null,null,null,null,null,null,{"$f":"A108","v":"D8. Are the following contraceptives included in the country's National Essential Medicine List (NEML) or other equivalent priority list?"}]
[null,"a. Combined oral contraceptives",null,null,null,null,"Yes",null,null,{"$f":"G109","v":"Yes"},null,null,null,null,null,null,null,null,null,null,null,null,null,null,{"$f":"B109","v":"a. Combined oral contraceptives"}]
[null,"b. Progestin-only pills",null,null,null,null,"Yes",null,null,"Yes",null,null,null,null,null,null,null,null,null,null,null,null,null,null,"b. Progestin-only pills"]
[null,"c. Hormonal injections",null,null,null,null,"Yes",null,null,"Yes",null,null,null,null,null,null,null,null,null,null,null,null,null,null,"c. Hormonal injections"]
[null,"d. Hormonal implants",null,null,null,null,"Yes",null,null,"Yes",null,null,null,null,null,null,null,null,null,null,null,null,null,null,"d. Hormonal implants"]
[null,"e. Intrauterine devices (IUDs)",null,null,null,null,"Yes",null,null,"Yes",null,null,null,null,null,null,null,null,null,null,null,null,null,null,"e. Intrauterine devices (IUDs)"]
[null,"f. Male condoms",null,null,null,null,"Yes",null,null,"Yes",null,null,null,null,null,null,null,null,null,null,null,null,null,null,"f. Male condoms"]
[null,"g. Female condoms",null,null,null,null,"No",null,null,"No",null,null,null,null,null,null,null,null,null,null,null,null,null,null,"g. Female condoms"]
[null,"h. Emergency contraceptive pills",null,null,null,null,"Yes",null,null,"Yes",null,null,null,null,null,null,null,null,null,null,null,null,null,null,"h. Emergency contraceptive pills"]
[null,"i. CycleBeads",null,null,null,null,"No",null,null,{"$f":"G117","v":"No"},null,null,null,null,null,null,null,null,null,null,null,null,null,null,{"$f":"B117","v":"i. CycleBeads"}]
[null,"j. Any other contraceptive(s)?",null,null,null,null,"No",null,null,"No",null,null,null,null,null,null,null,null,null,null,null,null,null,null,"j. Any other contraceptive(s)?"]
[null,null,"i. Name of other contraceptive(s) on the list(s)",null,null,"N/A",null,null,null,0,null,null,null,null,null,null,null,{"$f":"B119","v":0}]
["D9. What year(s) is the list(s) from?",null,null,null,null,2009,null,null,null,0,null,null,null,null,null,null,null,{"$f":"B120","v":0}]
["D10. Name of the list(s)\n\n\n",null,null,"Malawi Essential Medicines List (MEML)",null,null,null,null,null,null,{"$f":"A121","v":"D10. Name of the list(s)\n\n\n"},null,null,null,{"$f":"D121","v":"Malawi Essential Medicines List (MEML)"}]
["D11. Notes about the list(s)\n\n\n",null,null,null,null,null,null,null,null,null,{"$f":"A122","v":"D11. Notes about the list(s)\n\n\n"},null,null,null,{"$f":"D122","v":0}]
["D12.  Information on country's Poverty Reduction Strategy Paper (PRSP)\n",null,null,null,null,null,null,null,null,null,null,null,null,null,null,null,null,null,null,null,null,null,null,{"$f":"A123","v":"D12.  Information on country's Poverty Reduction Strategy Paper (PRSP)\n"}]
[null,"a. What year is the Poverty Reduction Strategy Paper from? (most recent actual PRSP on IMF's site [not progress or summary report])",null,null,null,2007,null,null,null,{"$f":"G124","v":0},null,null,null,null,null,null,null,{"$f":"B124","v":"a. What year is the Poverty Reduction Strategy Paper from? (most recent actual PRSP on IMF's site [not progress or summary report])"}]
[null,"b. Is family planning or reproductive health a priority in the PRSP?",null,null,null,null,"No",null,null,{"$f":"G125","v":"No"},null,null,null,null,null,null,null,null,null,null,null,null,null,null,{"$f":"B125","v":"b. Is family planning or reproductive health a priority in the PRSP?"}]
[null,"c. Is contraceptive security included in the PRSP?",null,null,null,null,"No",null,null,{"$f":"G126","v":"No"},null,null,null,null,null,null,null,null,null,null,null,null,null,null,{"$f":"B126","v":"c. Is contraceptive security included in the PRSP?"}]
[null,"d. Is contraceptive prevalence rate (CPR) included as an indicator in the PRSP?",null,null,null,null,"Yes",null,null,{"$f":"G127","v":"Yes"},null,null,null,null,null,null,null,null,null,null,null,null,null,null,{"$f":"B127","v":"d. Is contraceptive prevalence rate (CPR) included as an indicator in the PRSP?"}]
[null,"e. Are contraceptive supply indicators included in the PRSP?",null,null,null,null,"No",null,null,{"$f":"G128","v":"No"},null,null,null,null,null,null,null,null,null,null,null,null,null,null,{"$f":"B128","v":"e. Are contraceptive supply indicators included in the PRSP?"}]
["\n\n\n","f. Notes about the Poverty Reduction Strategy Paper",null,null,null,null,null,null,null,null,{"$f":"B129","v":"f. Notes about the Poverty Reduction Strategy Paper"},null,null,null,{"$f":"D129","v":0}]
["E. Supply Chain (Capacity)"]
["E1. Have stockouts occurred for any contraceptive at the central* level in the last 12 months?  \n*(The central level refers to the central level warehouse for the public sector.)",null,null,null,null,null,"No",null,null,{"$f":"G131","v":"No"},null,null,null,null,null,null,null,null,null,null,null,null,null,null,{"$f":"A131","v":"E1. Have stockouts occurred for any contraceptive at the central* level in the last 12 months?  \n*(The central level refers to the central level warehouse for the public sector.)"}]
["E2. In the last 12 months, has there ever been a stockout at the central level of any of the contraceptives offered in public sector facilities? (If a method is not intended to be offered in public sector facilities, please indicate that stockouts are not applicable (choose \"N/A\" from the dropdown list).)",null,null,null,null,null,null,null,null,null,null,null,null,null,null,null,null,null,null,null,null,null,null,{"$f":"A132","v":"E2. In the last 12 months, has there ever been a stockout at the central level of any of the contraceptives offered in public sector facilities? (If a method is not intended to be offered in public sector facilities, please indicate that stockouts are not applicable (choose \"N/A\" from the dropdown list).)"}]
[null,"a. Combined oral contraceptives",null,null,null,null,"No",null,null,{"$f":"G133","v":"No"},null,null,null,null,null,null,null,null,null,null,null,null,null,null,{"$f":"B133","v":"a. Combined oral contraceptives"}]
[null,"b. Progestin-only pills",null,null,null,null,"No",null,null,"No",null,null,null,null,null,null,null,null,null,null,null,null,null,null,"b. Progestin-only pills"]
[null,"c. Hormonal injections",null,null,null,null,"No",null,null,"No",null,null,null,null,null,null,null,null,null,null,null,null,null,null,"c. Hormonal injections"]
[null,"d. Hormonal implants",null,null,null,null,"No",null,null,"No",null,null,null,null,null,null,null,null,null,null,null,null,null,null,"d. Hormonal implants"]
[null,"e. Intrauterine devices (IUDs)",null,null,null,null,"No",null,null,"No",null,null,null,null,null,null,null,null,null,null,null,null,null,null,"e. Intrauterine devices (IUDs)"]
[null,"f. Male condoms",null,null,null,null,"No",null,null,"No",null,null,null,null,null,null,null,null,null,null,null,null,null,null,"f. Male condoms"]
[null,"g. Female condoms",null,null,null,null,"No",null,null,"No",null,null,null,null,null,null,null,null,null,null,null,null,null,null,"g. Female condoms"]
[null,"h. Emergency contraceptive pills",null,null,null,null,"N/A",null,null,"N/A",null,null,null,null,null,null,null,null,null,null,null,null,null,null,"h. Emergency contraceptive pills"]
[null,"i. CycleBeads",null,null,null,null,"N/A",null,null,"N/A",null,null,null,null,null,null,null,null,null,null,null,null,null,null,"i. CycleBeads"]
[null,"j. Time period\n(mm/yy - mm/yy) (for example, 1/10-12/10) ",null,null,null,"07/09-06/10",null,null,null,null,null,null,null,null,null,null,{"$f":"F142","v":"07/09-06/10"},{"$f":"B142","v":"j. Time period\n(mm/yy - mm/yy) (for example, 1/10-12/10) "}]
[null,"k. Data source\n(for example: Procurement Planning and Monitoring Report, Logistics Management Information System, periodic physical inventory, warehouse reports)",null,null,null,"LMIS",null,null,null,null,null,null,null,null,null,null,{"$f":"F143","v":"LMIS"},{"$f":"B143","v":"k. Data source\n(for example: Procurement Planning and Monitoring Report, Logistics Management Information System, periodic physical inventory, warehouse reports)"}]
["E3. Are stockouts a large problem in your country at the following levels? (i.e., Are they common or do they tend to last for a long time?)\n\n"]
[null,"a. service delivery point level (i.e., public sector health facilities)",null,null,null,null,"Yes",null,null,{"$f":"G145","v":"Yes"},null,null,null,null,null,null,null,null,null,null,null,null,null,null,{"$f":"B145","v":"a. service delivery point level (i.e., public sector health facilities)"}]
[null,"b. central level (i.e., central level warehouse for the public sector)",null,null,null,null,"No",null,null,{"$f":"G146","v":"No"},null,null,null,null,null,null,null,null,null,null,null,null,null,null,{"$f":"B146","v":"b. central level (i.e., central level warehouse for the public sector)"}]
["F. Please note any overall comments about challenges and/or successes with contraceptive security in your country.",null,null," A parallel system to distribute USAID-donated commodities has been introduced. However, there is need for coordination (especially where the commodity is available in both systems). For example, USAID-donated contraceptives will be stored and distributed through the parallel system while contraceptives procured by others (including UNFPA)  will be channelled through the CMS system. The parallel system will deliver commodities to facilities at zero cost while those channeled through the CMS system will still attract a 5% handling charge for donated products and a 12.5% handling charge (plus the cost of the product) for government-financed products. \n\nThe Reproductive Health Commodity Security Sub-Committee is a new group focused specifically on RHCS. Previously, RHCS issues were part of the RH Technical Working Group. ",null,null,null,null,null,null,{"$f":"A147","v":"F. Please note any overall comments about challenges and/or successes with contraceptive security in your country."},null,null,null,{"$f":"D147","v":" A parallel system to distribute USAID-donated commodities has been introduced. However, there is need for coordination (especially where the commodity is available in both systems). For example, USAID-donated contraceptives will be stored and distributed through the parallel system while contraceptives procured by others (including UNFPA)  will be channelled through the CMS system. The parallel system will deliver commodities to facilities at zero cost while those channeled through the CMS system will still attract a 5% handling charge for donated products and a 12.5% handling charge (plus the cost of the product) for government-financed products. \n\nThe Reproductive Health Commodity Security Sub-Committee is a new group focused specifically on RHCS. Previously, RHCS issues were part of the RH Technical Working Group. "}]

{"sheet":"Mali 2011","index":27,"n_rows":147,"n_cols":25,"rows_kept":147,"cut":false,"hidden":false,"merged":[[141,1,141,4],[141,5,141,7],[142,1,142,4],[142,5,142,7],[143,0,143,7],[144,1,144,5],[144,6,144,7],[147,0,147,7],[148,0,150,7],[145,1,145,5],[145,6,145,7],[146,0,146,2],[146,3,146,7],[136,1,136,5],[136,6,136,7],[137,1,137,5],[137,6,137,7],[138,1,138,5],[138,6,138,7],[139,1,139,5],[139,6,139,7],[140,1,140,5],[140,6,140,7],[131,0,131,7],[132,1,132,5],[132,6,132,7],[133,1,133,5],[133,6,133,7],[134,1,134,5],[134,6,134,7],[135,1,135,5],[135,6,135,7],[120,0,120,2],[120,3,120,7],[121,0,121,2],[121,3,121,7],[129,0,129,6],[130,0,130,5],[130,6,130,7],[122,0,122,7],[123,1,123,4],[123,5,123,7],[115,1,115,5],[115,6,115,7],[116,1,116,5],[116,6,116,7],[117,1,117,5],[117,6,117,7],[118,2,118,4],[118,5,118,7],[119,0,119,4],[119,5,119,7],[110,1,110,5],[110,6,110,7],[111,1,111,5],[111,6,111,7],[112,1,112,5],[112,6,112,7],[113,1,113,5],[113,6,113,7],[114,1,114,5],[114,6,114,7],[104,1,104,5],[104,6,104,7],[105,1,105,5],[105,6,105,7],[106,3,106,7],[107,0,107,7],[108,1,108,5],[108,6,108,7],[109,1,109,5],[109,6,109,7],[98,1,98,2],[98,4,98,6],[99,1,99,2],[99,4,99,6],[100,1,100,2],[100,4,100,6],[101,0,101,7],[102,0,102,7],[103,1,103,5],[103,6,103,7],[94,2,94,3],[94,4,94,5],[94,6,94,7],[95,2,95,3],[95,4,95,5],[95,6,95,7],[96,0,96,7],[97,0,97,2],[97,4,97,6],[88,0,88,6],[89,1,89,2],[89,3,89,7],[90,0,90,6],[91,1,91,2],[92,1,92,3],[92,4,92,5],[92,6,92,7],[93,2,93,3],[93,4,93,5],[93,6,93,7],[83,0,83,4],[83,5,83,7],[84,1,84,3],[84,4,84,7],[85,1,85,3],[85,4,85,7],[86,0,86,6],[87,1,87,2],[87,3,87,7],[77,0,77,2],[77,3,77,7],[78,0,78,6],[79,0,79,6],[80,0,80,2],[81,0,82,0],[81,1,81,2],[81,3,81,4],[81,6,81,7],[82,3,82,4],[82,6,82,7],[72,1,72,2],[72,3,72,4],[73,1,73,2],[73,3,73,4],[74,1,74,2],[74,3,74,4],[75,1,75,2],[75,3,75,4],[76,1,76,2],[76,3,76,4],[67,1,67,2],[67,3,67,4],[68,1,68,2],[68,3,68,4],[69,1,69,2],[69,3,69,4],[70,1,70,2],[70,3,70,4],[71,1,71,2],[71,3,71,4],[61,0,61,2],[61,3,61,7],[62,0,62,6],[63,0,63,7],[64,0,64,2],[64,3,64,4],[65,1,65,2],[65,3,65,4],[66,1,66,2],[66,3,66,4],[55,0,55,4],[55,6,55,7],[56,0,56,4],[56,6,56,7],[58,0,58,4],[58,5,58,7],[59,1,59,4],[59,5,59,7],[60,2,60,4],[60,5,60,7],[51,1,51,2],[53,0,53,7],[42,3,42,7],[43,1,43,2],[45,0,45,7],[46,1,46,2],[47,1,47,2],[48,3,48,7],[54,0,54,4],[54,6,54,7],[35,0,35,7],[36,0,36,6],[37,0,37,7],[38,1,38,2],[39,1,39,2],[40,3,40,7],[41,1,41,2],[49,1,49,2],[50,1,50,2],[28,0,28,5],[28,6,28,7],[29,0,29,3],[29,6,29,7],[30,0,30,6],[31,0,31,6],[32,0,32,7],[33,1,33,3],[34,1,34,3],[21,1,21,2],[21,5,21,7],[22,1,22,2],[22,5,22,7],[23,0,23,6],[24,0,24,6],[25,0,25,2],[26,0,26,6],[27,0,27,2],[27,3,27,4],[16,1,16,2],[16,5,16,7],[17,1,17,2],[17,5,17,7],[18,1,18,2],[18,5,18,7],[19,1,19,2],[19,5,19,7],[20,1,20,2],[20,5,20,7],[0,0,0,7],[1,0,1,2],[1,3,1,4],[2,0,2,7],[3,3,3,4],[3,5,3,7],[7,0,7,2],[7,3,7,5],[7,6,7,7],[4,0,4,2],[5,0,5,2],[127,1,127,5],[127,6,127,7],[128,1,128,2],[128,3,128,7],[124,1,124,5],[124,6,124,7],[125,1,125,5],[125,6,125,7],[126,1,126,5],[126,6,126,7],[9,0,9,7],[10,0,10,6],[11,0,11,6],[12,1,12,2],[12,3,12,7],[8,0,8,7],[13,0,13,2],[13,3,13,7],[14,1,14,2],[14,5,14,7],[15,1,15,2],[15,5,15,7]]}
[null,null,null,null,null,null,null,null,"Columns I-Y are meant to be hidden. They exist because they allow for the dropdown list options. They also allow for merged cells to autofit properly in terms of row height. This should work if all columns remain at their correct widths.","g-h",null,"a-e merged","E-F merged","e-h","0 times",null,null,"The government (e.g., Central Medical Stores, MOH logistics unit, MOH procurement unit)",null,null,null,null,"Yes","a-h","January"]
[null,null,null,null,null,null,null,null,null,null,"A-c",null,null,null,"1-2 times","b-d merged",null,"Third-party agent (e.g., UNFPA, Crown Agents)","d-e merged","d-f merged","e-f merged","e-g merged","No",null,"February"]
[null,null,null,null,null,null,null,null,null,null,null,null,null,null,"3-5 times",null,null,"The government and a third-party agent",null,null,null,null,null,null,"March"]
[null,null,null,null,null,null,null,null,null,null,null,null,null,null,"6 or more times",null,null,"Other",null,null,null,null,"N/A",null,"April"]
["To jump to the Introduction sheet, click here.",null,null,null,null,null,null,null,null,null,null,null,null,null,null,null,null,null,null,null,null,null,"Don't know",null,"May"]
[null,null,null,null,null,null,null,null,null,null,null,null,null,null,"N/A",null,null,"N/A",null,null,null,null,null,null,"June"]
["Contraceptive Security (CS) Indicators 2011 Data ",null,null,null,null,null,null,null,null,null,null,null,null,null,"Don't know",null,null,"Don't know",null,null,null,null,null,null,"July"]
["Country: Mali",null,null,null,null,null,null,null,null,{"$f":"G8","v":0},{"$f":"A8","v":"Country: Mali"},null,null,null,null,"or c-d",null,null,null,{"$f":"D8","v":0},null,null,null,null,"August"]
["The CS Indicators are presented in the following sections:\n\n               A. leadership & cooordination               B. finance & procurement               C. commodities               D. policies               E. supply chain",null,null,null,null,null,null,null,null,{"$f":"G9","v":0},{"$f":"A9","v":"The CS Indicators are presented in the following sections:\n\n               A. leadership & cooordination               B. finance & procurement               C. commodities               D. policies               E. supply chain"},null,null,null,"d-h",null,"f-h merged",null,{"$f":"D9","v":0},null,null,null,null,null,"September"]
["\nNotes:\n  -  Respondents' answers are indicated in the white spaces. \n  -  N/A = not applicable. Don't know = the respondent either indicated they did not know or left the answer blank.\n  -  Some questions required respondents to choose from a dropdown list of options; in these cases the dropdown arrow will \n     appear when you click on the cell. \n  -  There may be a few inserted comments. (If you cannot already see them, click on Review tab - Comments group - Show All Comments in newer \n       versions of Excel or View - Comments in older versions of Excel.)\n  -  If the answer is cut off, you can either manually adjust the row height or autofit the row height in order to see the whole \n     response. (To autofit the row height, select the answer(s) and go to Home tab - Cells group - Format - Autofit Row Height in newer versions of Excel or \n      Format - Row - Autofit in older versions of Excel.)\n",null,null,null,null,null,null,null,"a-g",null,null,null,null,null,null,null,null,"a-e merged",null,null,null,null,null,{"$f":"A10","v":"\nNotes:\n  -  Respondents' answers are indicated in the white spaces. \n  -  N/A = not applicable. Don't know = the respondent either indicated they did not know or left the answer blank.\n  -  Some questions required respondents to choose from a dropdown list of options; in these cases the dropdown arrow will \n     appear when you click on the cell. \n  -  There may be a few inserted comments. (If you cannot already see them, click on Review tab - Comments group - Show All Comments in newer \n       versions of Excel or View - Comments in older versions of Excel.)\n  -  If the answer is cut off, you can either manually adjust the row height or autofit the row height in order to see the whole \n     response. (To autofit the row height, select the answer(s) and go to Home tab - Cells group - Format - Autofit Row Height in newer versions of Excel or \n      Format - Row - Autofit in older versions of Excel.)\n"},"October"]
["A. Leadership and Coordination",null,null,null,null,null,null,null,null,null,null,null,null,null,null,null,null,null,null,null,null,null,null,null,"November"]
["A1. Is there a national committee that works on contraceptive security? (Please select from the dropdown list.)\n(Committee should have some aspect of contraceptive security as part of its Terms of Reference, even if it is known by a different name, for example: Family Planning, Reproductive Health, Maternal Mortality, Essential Medicine Committee, etc.)  ",null,null,null,null,null,null,"Yes",{"$f":"A12","v":"A1. Is there a national committee that works on contraceptive security? (Please select from the dropdown list.)\n(Committee should have some aspect of contraceptive security as part of its Terms of Reference, even if it is known by a different name, for example: Family Planning, Reproductive Health, Maternal Mortality, Essential Medicine Committee, etc.)  "},null,null,null,null,null,null,null,null,null,null,null,null,null,null,null,"December"]
[null,"a. What is the name of the committee?",null,"National Committee for Monitoring the Reproductive Health Commodity Security Plan (Comission Nationale de Suivi du Plan de Sécurisation des Produits de la Santé de la Reproduction) (replaced the Comission Nationale de Suivi de la Contraception Sécurisée)",null,null,null,null,null,null,{"$f":"B13","v":"a. What is the name of the committee?"},{"$f":"D13","v":"National Committee for Monitoring the Reproductive Health Commodity Security Plan (Comission Nationale de Suivi du Plan de Sécurisation des Produits de la Santé de la Reproduction) (replaced the Comission Nationale de Suivi de la Contraception Sécurisée)"},null,null,{"$f":"D13","v":"National Committee for Monitoring the Reproductive Health Commodity Security Plan (Comission Nationale de Suivi du Plan de Sécurisation des Produits de la Santé de la Reproduction) (replaced the Comission Nationale de Suivi de la Contraception Sécurisée)"}]
["A2. Are the following organizations represented on the committee?",null,null,"(Y/N \ndropdown)",null,null,null,null,null,null,{"$f":"A14","v":"A2. Are the following organizations represented on the committee?"},null,null,null,null,null,null,null,null,null,null,null,null,null,"Don't know"]
[null,"a. Social marketing",null,"Yes","If yes, specify name(s) of organizations","Population Service International (PSI)",null,null,null,null,{"$f":"B15","v":"a. Social marketing"},null,null,null,null,null,{"$f":"F15","v":"Population Service International (PSI)"}]
[null,"b. NGO (for example: service delivery, advocacy, Planned Parenthood affiliate, Marie Stopes affiliate, faith-based organizations, etc.)",null,"Yes","If yes, specify name(s) of organizations","Marie Stopes International (MSI), Association of Support in the Development of Activities of Population (ASDAP), Group Pivot/Santé Population (GP/SP)",null,null,null,null,"b. NGO (for example: service delivery, advocacy, Planned Parenthood affiliate, Marie Stopes affiliate, faith-based organizations, etc.)",null,null,null,null,null,"Marie Stopes International (MSI), Association of Support in the Development of Activities of Population (ASDAP), Group Pivot/Santé Population (GP/SP)"]
[null,"c. Commercial sector (for example: pharmacy associations, manufacturers, etc.)",null,"Yes","If yes, specify name(s) of organizations","Conseils Nationnal de l'ordre des Pharmaciens Médecins et Sage-femmes (national council of pharmacists, physicians, and midwives)\n",null,null,null,null,"c. Commercial sector (for example: pharmacy associations, manufacturers, etc.)",null,null,null,null,null,"Conseils Nationnal de l'ordre des Pharmaciens Médecins et Sage-femmes (national council of pharmacists, physicians, and midwives)\n"]
[null,"d. Donors",null,"Yes","If yes, specify name(s) of donors"," USAID, UNFPA, GRM, KFW",null,null,null,null,"d. Donors",null,null,null,null,null," USAID, UNFPA, GRM, KFW"]
[null,"e. UN agencies",null,"Yes","If yes, specify name(s) of agencies","UNFPA",null,null,null,null,"e. UN agencies",null,null,null,null,null,"UNFPA"]
[null,"f. Ministry of Health (for example: logistics, reproductive health, family planning, maternal and child health, HIV/AIDS, pharmacy units, etc.)",null,"Yes","If yes, specify name(s) of units","Directorate of Pharmacy and Medicine (DPM), Direction Nationale de la Sant du Mali (DNS), CSLS",null,null,null,null,"f. Ministry of Health (for example: logistics, reproductive health, family planning, maternal and child health, HIV/AIDS, pharmacy units, etc.)",null,null,null,null,null,"Directorate of Pharmacy and Medicine (DPM), Direction Nationale de la Sant du Mali (DNS), CSLS"]
[null,"g. Central Medical Store or Central Warehouse",null,"Yes","If yes, specify","Pharmacie Populaire du Mali (PPM)",null,null,null,null,"g. Central Medical Store or Central Warehouse",null,null,null,null,null,"Pharmacie Populaire du Mali (PPM)"]
[null,"h. Ministry of Finance or Ministry of Planning ",null,"No","If yes, specify",null,null,null,null,null,"h. Ministry of Finance or Ministry of Planning ",null,null,null,null,null,0]
[null,"i. Other (for example: partners)",null,"Yes","If yes, specify","Association de Soutien au Développement des Activités de Population (ASDAP), Projet jeune, Association Malienne pour la Protection et la Promotion de la Famille (AMPPF), USAID projects/cooperating agencies (Strengthening Pharmaceutical Systems [SPS] project, Project Keneya Ciwara II [PKCII], Assistance Technique Nationale Plus [ATN+], Institute for Reproductive Health [IRH]/Georgetown University)",null,null,null,null,"i. Other (for example: partners)",null,null,null,null,null,"Association de Soutien au Développement des Activités de Population (ASDAP), Projet jeune, Association Malienne pour la Protection et la Promotion de la Famille (AMPPF), USAID projects/cooperating agencies (Strengthening Pharmaceutical Systems [SPS] project, Project Keneya Ciwara II [PKCII], Assistance Technique Nationale Plus [ATN+], Institute for Reproductive Health [IRH]/Georgetown University)"]
["A3. How many times did the committee meet during the last year? (0, 1-2, 3-5, or 6+)  (Please select from the dropdown.)",null,null,null,null,null,null,"Don't know",{"$f":"A24","v":"A3. How many times did the committee meet during the last year? (0, 1-2, 3-5, or 6+)  (Please select from the dropdown.)"}]
["A4. Does the committee have legal status?  (Please select from the dropdown.)                                  ",null,null,null,null,null,null,"Yes",{"$f":"A25","v":"A4. Does the committee have legal status?  (Please select from the dropdown.)                                  "}]
["A5. Is there a Contraceptive Security \"champion\"? (someone who consistently brings up and advocates for contraceptive supplies)",null,null,"No","If yes, specify person's organization",null,"Specify person's job title",null,null,null,{"$f":"A26","v":"A5. Is there a Contraceptive Security \"champion\"? (someone who consistently brings up and advocates for contraceptive supplies)"}]
["B. Finance and Procurement (Capital)"]
["B1. What is the timeline of the country's fiscal year?",null,null,"Beginning month",null,"January","Ending month","December",null,null,{"$f":"B28","v":0}]
["B2. What was the estimated dollar value of contraceptives needed to be procured for the public sector for the most recent complete fiscal year? (in USD currency)\n(for example, to cover the needs for the '09-'10 fiscal year)",null,null,null,null,null,2733719,null,null,{"$f":"G29","v":2733719},null,null,{"$f":"E29","v":0},null,null,null,null,null,null,null,null,null,null,null,{"$f":"A29","v":"B2. What was the estimated dollar value of contraceptives needed to be procured for the public sector for the most recent complete fiscal year? (in USD currency)\n(for example, to cover the needs for the '09-'10 fiscal year)"}]
["B3. When was the last forecast/quantification conducted? (mm/yy)",null,null,null,"03/11","Who conducted it? (Specify organization.)","DPM (with the participation of all partners involved in FP)",null,null,{"$f":"G30","v":"DPM (with the participation of all partners involved in FP)"},null,null,{"$f":"E30","v":"03/11"},null,null,null,null,null,null,null,null,null,null,null,{"$f":"A30","v":"B3. When was the last forecast/quantification conducted? (mm/yy)"}]
["B4. Is there a government budget line item for the procurement of contraceptives?  (Please select from the dropdown list.)",null,null,null,null,null,null,"Yes",{"$f":"A31","v":"B4. Is there a government budget line item for the procurement of contraceptives?  (Please select from the dropdown list.)"}]
["B5. Were government funds allocated for contraceptive procurement for the public sector in the most recent complete fiscal year? (This question refers to funds planned to be spent on contraceptives, whether or not they ended up being spent.) \n\n(Government funds include internally generated funds, basket funds, World Bank credits or loans, and other funds donors gave to the government for their use.) \n",null,null,null,null,null,null,"Don't know",{"$f":"A32","v":"B5. Were government funds allocated for contraceptive procurement for the public sector in the most recent complete fiscal year? (This question refers to funds planned to be spent on contraceptives, whether or not they ended up being spent.) \n\n(Government funds include internally generated funds, basket funds, World Bank credits or loans, and other funds donors gave to the government for their use.) \n"}]
["B6. Please complete the table below regarding government allocations for contraceptive procurement.",null,null,null,null,null,null,null,null,null,null,null,null,null,null,null,null,null,null,null,null,null,null,{"$f":"A33","v":"B6. Please complete the table below regarding government allocations for contraceptive procurement."}]
[null,null,null,null,"Amount allocated \n(in USD)","Time period during which allocations were supposed to be spent \n(mm/yy-mm/yy)\n(should ideally be the most recent\ncomplete fiscal year ['09-'10])","Data source \n(for example: Ministry records)","Comments",null,null,{"$f":"A34","v":0}]
[null,"Government funds allocated for contraceptive procurement\n(funds originally designated for contraceptives, whether or not they ended up being spent on them)",null,null,"Don't know","01/10-12/10","Ministry records","During the FY2010 contraceptive procurement table exercise (CPTs), contraceptives were planned for MOH procurement in FY 2010 for a total of $676,454.",null,null,{"$f":"#REF!","v":{"$error":"#REF!"}}]
[]
["B7. Were government funds spent on contraceptive procurement for the public sector in the most recent complete fiscal year? \n(Government funds include internally generated funds, basket funds, World Bank credits or loans, and other funds donors gave to the government for their use.)",null,null,null,null,null,null,"No",{"$f":"A37","v":"B7. Were government funds spent on contraceptive procurement for the public sector in the most recent complete fiscal year? \n(Government funds include internally generated funds, basket funds, World Bank credits or loans, and other funds donors gave to the government for their use.)"}]
["B8. Please complete the table below to indicate government expenditures on contraceptive procurement, by source, in the most recent complete fiscal year. \n(This is how much was spent on contraceptive procurement (not what was allocated). How much of this spending was provided from each source?)",null,null,null,null,null,null,null,null,null,null,null,null,null,null,null,null,null,null,null,null,null,null,{"$f":"A38","v":"B8. Please complete the table below to indicate government expenditures on contraceptive procurement, by source, in the most recent complete fiscal year. \n(This is how much was spent on contraceptive procurement (not what was allocated). How much of this spending was provided from each source?)"}]
[null,"Source of government funds spent on contraceptive procurement for the public sector",null,"Was this source used?\n(Y/N)","Amount spent \n(in USD)","Time period (mm/yy-mm/yy)\n(should be the same for all sources of funds & ideally be the most recent\ncomplete fiscal year ['09-'10])","Data source \n(for example: Contraceptive Procurement Table, PipeLine, etc.)","Comments",null,null,{"$f":"A39","v":0}]
[null,"a. Internally generated funds spent on contraceptive procurement",null,"No",0,"01/10-12/10",null,"No funds have been spent yet.",null,null,{"$f":"B40","v":"a. Internally generated funds spent on contraceptive procurement"}]
[null,null,"i. Specify source(s) of internally generated funds spent (for example, from taxes or user fees)","N/A",null,null,null,null,null,null,{"$f":"C41","v":"i. Specify source(s) of internally generated funds spent (for example, from taxes or user fees)"},null,null,null,{"$f":"D41","v":"N/A"}]
[null,"b. Total of all other government funds spent on contraceptive procurement (basket funds, World Bank credits or loans, and other funds donors gave to the government [e.g., direct budget support])",null,"No",0,"01/10-12/10",null,"No funds have been spent yet.",null,null,{"$f":"B42","v":"b. Total of all other government funds spent on contraceptive procurement (basket funds, World Bank credits or loans, and other funds donors gave to the government [e.g., direct budget support])"}]
[null,null,"i. Specify source(s) of other government funds spent (for example: basket funding or specific donor)","N/A",null,null,null,null,null,null,{"$f":"C43","v":"i. Specify source(s) of other government funds spent (for example: basket funding or specific donor)"},null,null,null,{"$f":"D43","v":"N/A"}]
[null,"c. TOTAL government funds spent on contraceptive procurement\nThis will auto-calculate.  (It will sum a & b above.)",null,null,{"$f":"E40+E42","v":0},null,null,null,null,null,{"$f":"B44","v":"c. TOTAL government funds spent on contraceptive procurement\nThis will auto-calculate.  (It will sum a & b above.)"}]
[null,null,null,null,null,null,null,null,null,null,{"$f":"A45","v":0}]
["B9. Please complete the table below to indicate donor expenditures on contraceptive procurement in the most recent complete fiscal year.\n",null,null,null,null,null,null,null,null,null,null,null,null,null,null,null,null,null,null,null,null,null,null,{"$f":"A46","v":"B9. Please complete the table below to indicate donor expenditures on contraceptive procurement in the most recent complete fiscal year.\n"}]
["\n","Source of donations and donor funds spent on contraceptive procurement for the public sector",null,"Was this a source?\n(Y/N)","Amount of money spent on these procurements \n(in USD)","Time period (mm/yy-mm/yy)\n(should be the same for all sources of funds & ideally be the most recent\ncomplete fiscal year ['09-'10])","Data source \n(for example:  Donor records, Contraceptive Procurement Table, PipeLine, RHInterchange, etc.","Comments",null,null,{"$f":"A47","v":"\n"}]
[null,"a. In-kind donations of contraceptives",null,"Yes",2733719,"01/10-12/10","Ministry records - Directorate of Pharmacy and Medicine","Some of the UNFPA shipments which were planned in 2009 were received in 2010 and considerably filled the pipeline.",null,null,{"$f":"B48","v":"a. In-kind donations of contraceptives"}]
[null,null,"i. Specify source(s) of in-kind donations ","UNFPA (US $1,767,608) & USAID (US $966,111)",null,null,null,null,null,null,{"$f":"C49","v":"i. Specify source(s) of in-kind donations "},null,null,null,{"$f":"D49","v":"UNFPA (US $1,767,608) & USAID (US $966,111)"}]
[null,"b. Global Fund donations used to procure condoms",null,"No",0,"01/10-12/10","RHInterchange",null,null,null,{"$f":"B50","v":"b. Global Fund donations used to procure condoms"}]
[null,"c. Global Fund donations used to procure contraceptives besides condoms",null,"No",0,"01/10-12/10","RHInterchange",null,null,null,{"$f":"B51","v":"c. Global Fund donations used to procure contraceptives besides condoms"}]
[null,"d. TOTAL value of in-kind donations and Global Fund donations spent on contraceptive procurement\nThis will auto-calculate.  (It will sum a-c above.)",null,null,{"$f":"E48+E50+E51","v":2733719},null,null,null,null,null,{"$f":"B52","v":"d. TOTAL value of in-kind donations and Global Fund donations spent on contraceptive procurement\nThis will auto-calculate.  (It will sum a-c above.)"}]
[null,null,null,null,null,null,null,null,null,null,{"$f":"A53","v":0}]
["The answers to B10 and B11 should calculate automatically based on the information you provided. Please review the answers to ensure they make sense to you, and if you have additional information to add, please note it in the comments boxes.\n\nIf the answers do not calculate automatically, please provide any relevant information you may have in the comments boxes.\n",null,null,null,null,null,null,null,null,null,null,null,null,null,null,null,null,null,null,null,null,null,null,{"$f":"A54","v":"The answers to B10 and B11 should calculate automatically based on the information you provided. Please review the answers to ensure they make sense to you, and if you have additional information to add, please note it in the comments boxes.\n\nIf the answers do not calculate automatically, please provide any relevant information you may have in the comments boxes.\n"}]
["B10. Government share of funds spent on contraceptive procurement for the public sector - \nOf the total amount spent on contraceptives for the public sector in the most recent complete fiscal year (including government and donor funds), what percent was covered by government funds (including internally generated funds, basket funds, World Bank credits or loans, and other funds given to the government)? \n\nThis will auto-calculate. (It contains the following formula: Total government spending (Question B8c) / Grand total of all spending for public sector contraceptives from the government and donors (Questions B8c+B9d))",null,null,null,null,{"$f":"E44/(E44+E52)","v":0},"To date, contraceptive procurement has been supported by donors.\n",null,null,{"$f":"G55","v":"To date, contraceptive procurement has been supported by donors.\n"},null,null,null,null,null,null,null,{"$f":"A55","v":"B10. Government share of funds spent on contraceptive procurement for the public sector - \nOf the total amount spent on contraceptives for the public sector in the most recent complete fiscal year (including government and donor funds), what percent was covered by government funds (including internally generated funds, basket funds, World Bank credits or loans, and other funds given to the government)? \n\nThis will auto-calculate. (It contains the following formula: Total government spending (Question B8c) / Grand total of all spending for public sector contraceptives from the government and donors (Questions B8c+B9d))"}]
["B11. Total expenditures on public sector contraceptives as percent of amount that needed to be procured -\nOf the estimated value of the contraceptives needed to be procured for the public sector for the most recent complete fiscal year, what percent was provided by any source (whether government or donor)? \n\nThis will auto-calculate. (It contains the following formula: Grand total of all spending for public sector contraceptives from the government and donors (Questions B8c+B9d) / Value of estimated need for procurement (Question B2))",null,null,null,null,{"$f":"(E44+E52)/G29","v":1},"UNFPA: approx. 65% and USAID: approx. 35%\n",null,null,{"$f":"G56","v":"UNFPA: approx. 65% and USAID: approx. 35%\n"},null,null,null,null,null,null,null,{"$f":"A56","v":"B11. Total expenditures on public sector contraceptives as percent of amount that needed to be procured -\nOf the estimated value of the contraceptives needed to be procured for the public sector for the most recent complete fiscal year, what percent was provided by any source (whether government or donor)? \n\nThis will auto-calculate. (It contains the following formula: Grand total of all spending for public sector contraceptives from the government and donors (Questions B8c+B9d) / Value of estimated need for procurement (Question B2))"}]
["B12. If B11 did not calculate automatically, please answer the following question:\nWas there a funding gap for the public sector in the last complete fiscal year (e.g., 09-'10 fiscal year)?\n(Please select from the dropdown list.)",null,null,null,null,"No",null,null,null,{"$f":"G57","v":0},null,null,null,null,null,null,null,{"$f":"A57","v":"B12. If B11 did not calculate automatically, please answer the following question:\nWas there a funding gap for the public sector in the last complete fiscal year (e.g., 09-'10 fiscal year)?\n(Please select from the dropdown list.)"}]
[null,null,null,null,null,null,null,null,null,null,{"$f":"A58","v":0}]
["B13. If the government financed any contraceptive procurement in the most recent complete fiscal year, which entity conducted the procurement(s)? (Please select from the dropdown.)",null,null,null,null,"N/A",null,null,null,null,null,null,null,null,null,null,{"$f":"F59","v":"N/A"},{"$f":"A59","v":"B13. If the government financed any contraceptive procurement in the most recent complete fiscal year, which entity conducted the procurement(s)? (Please select from the dropdown.)"}]
[null,"a. Specify entity",null,null,null,"N/A",null,null,null,null,null,null,{"$f":"E60","v":0},null,null,null,{"$f":"F60","v":"N/A"},{"$f":"B60","v":"a. Specify entity"}]
[null,null,"i. Is this a parastatal?",null,null,"N/A",null,null,null,null,null,null,null,null,null,null,{"$f":"F61","v":"N/A"},{"$f":"C61","v":"i. Is this a parastatal?"}]
["B14. Please note any additional comments about finance and procurement.\n",null,null,null,null,null,null,null,null,null,{"$f":"A62","v":"B14. Please note any additional comments about finance and procurement.\n"},null,null,null,{"$f":"D62","v":0}]
["C. Commodities"]
["C1. Are the following contraceptive methods offered through the commercial sector, public sector, NGOs, or social marketing? (Please indicate which methods are intended to be offered. This question is not asking whether the method is in stock.) \n(Please select from the dropdown list.)",null,null,null,null,null,null,null,null,null,null,null,null,null,null,null,null,null,null,null,null,null,null,{"$f":"A64","v":"C1. Are the following contraceptive methods offered through the commercial sector, public sector, NGOs, or social marketing? (Please indicate which methods are intended to be offered. This question is not asking whether the method is in stock.) \n(Please select from the dropdown list.)"}]
["Contraceptive Method",null,null,"Commercial Sector",null,"Public Sector","NGO","Social Marketing",null,null,{"$f":"A65","v":"Contraceptive Method"}]
[null,"a. Combined oral contraceptives (estrogen + progestin - for  example, LoFemenol, Microgynon)",null,"Yes",null,"Yes","Yes","Yes",null,null,{"$f":"B66","v":"a. Combined oral contraceptives (estrogen + progestin - for  example, LoFemenol, Microgynon)"}]
[null,"b. Progestin-only pills (for example, Ovrette, Microlut)",null,"Yes",null,"Yes","Yes","Don't know",null,null,{"$f":"B67","v":"b. Progestin-only pills (for example, Ovrette, Microlut)"}]
[null,"c. Hormonal injections (for example, DepoProvera, Noristerat)",null,"Yes",null,"Yes","Yes","Yes",null,null,"c. Hormonal injections (for example, DepoProvera, Noristerat)"]
[null,"d. Hormonal implants (for example, Jadelle, Implanon)",null,"Yes",null,"Yes","Yes","Yes",null,null,"d. Hormonal implants (for example, Jadelle, Implanon)"]
[null,"e. Intrauterine devices (IUDs) (for example, Optima Copper T)",null,"No",null,"Yes","Yes","Yes",null,null,"e. Intrauterine devices (IUDs) (for example, Optima Copper T)"]
[null,"f. Male condoms",null,"Yes",null,"Yes","Yes","Yes",null,null,"f. Male condoms"]
[null,"g. Female condoms",null,"No",null,"Yes","Yes","Yes",null,null,"g. Female condoms"]
[null,"h. Emergency contraceptive pills (for example, Postinor)",null,"Yes",null,"No","Yes","No",null,null,"h. Emergency contraceptive pills (for example, Postinor)"]
[null,"i. Long-acting permanent method for males (vasectomy)",null,"No",null,"Yes","No","No",null,null,"i. Long-acting permanent method for males (vasectomy)"]
[null,"j. Long-acting permanent method for females (tubal ligation)",null,"No",null,"Yes","No","No",null,null,"j. Long-acting permanent method for females (tubal ligation)"]
[null,"k. CycleBeads",null,"No",null,"Yes","Yes","Yes",null,null,"k. CycleBeads"]
[null,"l. Other contraceptive methods - specify \n(Please provide the name of the other contraceptive(s) offered, by sector.)",null,null,null,null,null,null,null,null,"l. Other contraceptive methods - specify \n(Please provide the name of the other contraceptive(s) offered, by sector.)"]
["C2. Please note any comments about the commodities offered.",null,null,null,null,null,null,null,null,null,{"$f":"A78","v":"C2. Please note any comments about the commodities offered."},null,null,null,{"$f":"D78","v":0}]
["D. Policies (Commitment)"]
["D1. Is there a contraceptive security or reproductive health commodity security strategy or is contraceptive security explicitly included in a country strategy? (Please select from the dropdown list.)",null,null,null,null,null,null,"Yes",{"$f":"A80","v":"D1. Is there a contraceptive security or reproductive health commodity security strategy or is contraceptive security explicitly included in a country strategy? (Please select from the dropdown list.)"}]
["IF NO, SKIP TO QUESTION D2."]
[null,"Strategy name",null,"Years Covered (including strategy updates)",null,"Is the strategy formally approved by the Ministry?","Is the contraceptive security strategy being implemented?",null,null,{"$f":"G82","v":"Is the contraceptive security strategy being implemented?"},{"$f":"B82","v":"Strategy name"},null,{"$f":"E82","v":0},null,null,null,null,null,{"$f":"D82","v":"Years Covered (including strategy updates)"}]
[null,"a","Plan Stratégique pour la Sécurisation des Produits de la Santé de la Reproduction (Strategic Plan for Reproductive Health Commodity Security)","2011 - 2015",null,"No","No",null,null,{"$f":"G83","v":"No"},{"$f":"B83","v":"a"},null,{"$f":"E83","v":0},null,null,null,null,null,{"$f":"D83","v":"2011 - 2015"}]
["D2. Are any family planning commodities subject to duties, import taxes, or other fees?",null,null,null,null,"Yes",null,null,null,null,null,null,null,null,null,null,{"$f":"F84","v":"Yes"},{"$f":"A84","v":"D2. Are any family planning commodities subject to duties, import taxes, or other fees?"}]
[null,"a. If yes, for which sectors (public, NGO, social marketing, commercial)?",null,null,"All sectors",null,null,null,null,null,null,null,{"$f":"E85","v":"All sectors"},{"$f":"E85","v":"All sectors"},null,null,null,{"$f":"B85","v":"a. If yes, for which sectors (public, NGO, social marketing, commercial)?"}]
[null,"b. If yes, how much are the duties, taxes, or fees?",null,null,"Don't know",null,null,null,null,null,null,null,null,{"$f":"E86","v":"Don't know"},null,null,null,{"$f":"B86","v":"b. If yes, how much are the duties, taxes, or fees?"}]
["D3. Are there policies that hinder the ability of the private sector (commercial sector, NGOs, or social marketing) to provide contraceptive methods (for example: price controls, distribution limitations, taxes/duties, advertising bans, etc.)?",null,null,null,null,null,null,"No",{"$f":"A87","v":"D3. Are there policies that hinder the ability of the private sector (commercial sector, NGOs, or social marketing) to provide contraceptive methods (for example: price controls, distribution limitations, taxes/duties, advertising bans, etc.)?"}]
[null,"a. If yes, describe the policies.",null,"N/A",null,null,null,null,null,null,{"$f":"B88","v":"a. If yes, describe the policies."},null,null,null,{"$f":"D88","v":"N/A"}]
["D4. Are there policies that enable the private sector (commercial sector, NGOs, or social marketing) to provide contraceptive methods?",null,null,null,null,null,null,"No",{"$f":"A89","v":"D4. Are there policies that enable the private sector (commercial sector, NGOs, or social marketing) to provide contraceptive methods?"}]
[null,"a. If yes, describe the policies.",null,"N/A",null,null,null,null,null,null,{"$f":"B90","v":"a. If yes, describe the policies."},null,null,null,{"$f":"D90","v":"N/A"}]
["D5. Do policies or regulations exist that restrict who can sell or dispense particular contraceptive methods?\n",null,null,null,null,null,null,"Yes",{"$f":"A91","v":"D5. Do policies or regulations exist that restrict who can sell or dispense particular contraceptive methods?\n"}]
[null,"Please note any restrictions in the following table."]
[null,"Contraceptive Method(s)",null,null,"Describe any public sector restriction on who is allowed to sell or dispense the method",null,"Describe any private sector restriction on who is allowed to sell or dispense the method",null,null,{"$f":"G93","v":"Describe any private sector restriction on who is allowed to sell or dispense the method"},null,null,null,null,null,{"$f":"B93","v":"Contraceptive Method(s)"},null,null,null,null,{"$f":"E93","v":"Describe any public sector restriction on who is allowed to sell or dispense the method"}]
[null,"a",null,null,null,null,null,null,null,{"$f":"G94","v":0},null,null,{"$f":"E94","v":0},null,null,{"$f":"C94","v":0},null,null,null,null,{"$f":"E94","v":0}]
[null,"b",null,null,null,null,null,null,null,{"$f":"G95","v":0},null,null,{"$f":"E95","v":0},null,null,{"$f":"C95","v":0},null,null,null,null,{"$f":"E95","v":0}]
[null,"c",null,null,null,null,null,null,null,{"$f":"G96","v":0},null,null,{"$f":"E96","v":0},null,null,{"$f":"C96","v":0},null,null,null,null,{"$f":"E96","v":0}]
[null,null,null,null,null,null,null,null,null,null,{"$f":"C97","v":0}]
["D6. Does the country have laws, regulations, or policies that make it difficult for the following sub-populations to access effective family planning services?",null,null,"Y/N","If yes, describe laws/regulations/policies affecting access ",null,null,"Are the rules/policies implemented?",null,null,{"$f":"A98","v":"D6. Does the country have laws, regulations, or policies that make it difficult for the following sub-populations to access effective family planning services?"},null,null,null,null,null,null,null,null,null,null,{"$f":"E98","v":"If yes, describe laws/regulations/policies affecting access "}]
[null,"a. Unmarried people",null,"No",null,null,null,null,null,null,{"$f":"B99","v":"a. Unmarried people"},null,{"$f":"E99","v":0},null,null,null,null,null,null,null,null,{"$f":"E99","v":0}]
[null,"b. Young people",null,"No",null,null,null,null,null,null,{"$f":"B100","v":"b. Young people"},null,{"$f":"E100","v":0},null,null,null,null,null,null,null,null,{"$f":"E100","v":0}]
[null,"c. Other",null,"No",null,null,null,null,null,null,{"$f":"B101","v":"c. Other"},null,{"$f":"E101","v":0},null,null,null,null,null,null,null,null,{"$f":"E101","v":0}]
[null,null,null,null,null,null,null,null,null,null,{"$f":"C102","v":0}]
["D7. Are there charges* to the client in the public sector for family planning:\n*(This question refers to charges by policy, not under-the-table charges.)\n",null,null,null,null,null,null,null,null,null,null,null,null,null,null,null,null,null,null,null,null,null,null,{"$f":"A103","v":"D7. Are there charges* to the client in the public sector for family planning:\n*(This question refers to charges by policy, not under-the-table charges.)\n"}]
[null,"a. Services?",null,null,null,null,"No",null,null,{"$f":"G104","v":"No"},null,null,null,null,null,null,null,null,null,null,null,null,null,null,{"$f":"B104","v":"a. Services?"}]
[null,"b. Commodities?",null,null,null,null,"No",null,null,{"$f":"G105","v":"No"},null,null,null,null,null,null,null,null,null,null,null,null,null,null,{"$f":"B105","v":"b. Commodities?"}]
[null,"c. If yes, are there exemptions for people who cannot afford to pay?",null,null,null,null,"N/A",null,null,{"$f":"G106","v":"N/A"},null,null,null,null,null,null,null,null,null,null,null,null,null,null,{"$f":"B106","v":"c. If yes, are there exemptions for people who cannot afford to pay?"}]
[null,null,"i. If yes, describe the exemptions.","N/A",null,null,null,null,null,null,{"$f":"C107","v":"i. If yes, describe the exemptions."},null,null,null,{"$f":"D107","v":"N/A"}]
["D8. Are the following contraceptives included in the country's National Essential Medicine List (NEML) or other equivalent priority list?",null,null,null,null,null,null,null,null,null,null,null,null,null,null,null,null,null,null,null,null,null,null,{"$f":"A108","v":"D8. Are the following contraceptives included in the country's National Essential Medicine List (NEML) or other equivalent priority list?"}]
[null,"a. Combined oral contraceptives",null,null,null,null,"Yes",null,null,{"$f":"G109","v":"Yes"},null,null,null,null,null,null,null,null,null,null,null,null,null,null,{"$f":"B109","v":"a. Combined oral contraceptives"}]
[null,"b. Progestin-only pills",null,null,null,null,"Yes",null,null,"Yes",null,null,null,null,null,null,null,null,null,null,null,null,null,null,"b. Progestin-only pills"]
[null,"c. Hormonal injections",null,null,null,null,"Yes",null,null,"Yes",null,null,null,null,null,null,null,null,null,null,null,null,null,null,"c. Hormonal injections"]
[null,"d. Hormonal implants",null,null,null,null,"Yes",null,null,"Yes",null,null,null,null,null,null,null,null,null,null,null,null,null,null,"d. Hormonal implants"]
[null,"e. Intrauterine devices (IUDs)",null,null,null,null,"Yes",null,null,"Yes",null,null,null,null,null,null,null,null,null,null,null,null,null,null,"e. Intrauterine devices (IUDs)"]
[null,"f. Male condoms",null,null,null,null,"Yes",null,null,"Yes",null,null,null,null,null,null,null,null,null,null,null,null,null,null,"f. Male condoms"]
[null,"g. Female condoms",null,null,null,null,"Yes",null,null,"Yes",null,null,null,null,null,null,null,null,null,null,null,null,null,null,"g. Female condoms"]
[null,"h. Emergency contraceptive pills",null,null,null,null,"Yes",null,null,"Yes",null,null,null,null,null,null,null,null,null,null,null,null,null,null,"h. Emergency contraceptive pills"]
[null,"i. CycleBeads",null,null,null,null,"Yes",null,null,{"$f":"G117","v":"Yes"},null,null,null,null,null,null,null,null,null,null,null,null,null,null,{"$f":"B117","v":"i. CycleBeads"}]
[null,"j. Any other contraceptive(s)?",null,null,null,null,"Don't know",null,null,"Don't know",null,null,null,null,null,null,null,null,null,null,null,null,null,null,"j. Any other contraceptive(s)?"]
[null,null,"i. Name of other contraceptive(s) on the list(s)",null,null,"Don't know",null,null,null,0,null,null,null,null,null,null,null,{"$f":"B119","v":0}]
["D9. What year(s) is the list(s) from?",null,null,null,null,2010,null,null,null,0,null,null,null,null,null,null,null,{"$f":"B120","v":0}]
["D10. Name of the list(s)\n\n\n",null,null,"Mali National Essential Medicine List by Level (Liste Nationale des Médicaments Essentiels par Niveau Mali 2010)",null,null,null,null,null,null,{"$f":"A121","v":"D10. Name of the list(s)\n\n\n"},null,null,null,{"$f":"D121","v":"Mali National Essential Medicine List by Level (Liste Nationale des Médicaments Essentiels par Niveau Mali 2010)"}]
["D11. Notes about the list(s)\n\n\n",null,null,"The list includes 322 DCI molecules which correspond to 562 different forms and dosages of drugs.",null,null,null,null,null,null,{"$f":"A122","v":"D11. Notes about the list(s)\n\n\n"},null,null,null,{"$f":"D122","v":"The list includes 322 DCI molecules which correspond to 562 different forms and dosages of drugs."}]
["D12.  Information on country's Poverty Reduction Strategy Paper (PRSP)\n",null,null,null,null,null,null,null,null,null,null,null,null,null,null,null,null,null,null,null,null,null,null,{"$f":"A123","v":"D12.  Information on country's Poverty Reduction Strategy Paper (PRSP)\n"}]
[null,"a. What year is the Poverty Reduction Strategy Paper from? (most recent actual PRSP on IMF's site [not progress or summary report])",null,null,null,2008,null,null,null,{"$f":"G124","v":0},null,null,null,null,null,null,null,{"$f":"B124","v":"a. What year is the Poverty Reduction Strategy Paper from? (most recent actual PRSP on IMF's site [not progress or summary report])"}]
[null,"b. Is family planning or reproductive health a priority in the PRSP?",null,null,null,null,"No",null,null,{"$f":"G125","v":"No"},null,null,null,null,null,null,null,null,null,null,null,null,null,null,{"$f":"B125","v":"b. Is family planning or reproductive health a priority in the PRSP?"}]
[null,"c. Is contraceptive security included in the PRSP?",null,null,null,null,"No",null,null,{"$f":"G126","v":"No"},null,null,null,null,null,null,null,null,null,null,null,null,null,null,{"$f":"B126","v":"c. Is contraceptive security included in the PRSP?"}]
[null,"d. Is contraceptive prevalence rate (CPR) included as an indicator in the PRSP?",null,null,null,null,"No",null,null,{"$f":"G127","v":"No"},null,null,null,null,null,null,null,null,null,null,null,null,null,null,{"$f":"B127","v":"d. Is contraceptive prevalence rate (CPR) included as an indicator in the PRSP?"}]
[null,"e. Are contraceptive supply indicators included in the PRSP?",null,null,null,null,"No",null,null,{"$f":"G128","v":"No"},null,null,null,null,null,null,null,null,null,null,null,null,null,null,{"$f":"B128","v":"e. Are contraceptive supply indicators included in the PRSP?"}]
["\n\n\n","f. Notes about the Poverty Reduction Strategy Paper",null,null,null,null,null,null,null,null,{"$f":"B129","v":"f. Notes about the Poverty Reduction Strategy Paper"},null,null,null,{"$f":"D129","v":0}]
["E. Supply Chain (Capacity)"]
["E1. Have stockouts occurred for any contraceptive at the central* level in the last 12 months?  \n*(The central level refers to the central level warehouse for the public sector.)",null,null,null,null,null,"Yes",null,null,{"$f":"G131","v":"Yes"},null,null,null,null,null,null,null,null,null,null,null,null,null,null,{"$f":"A131","v":"E1. Have stockouts occurred for any contraceptive at the central* level in the last 12 months?  \n*(The central level refers to the central level warehouse for the public sector.)"}]
["E2. In the last 12 months, has there ever been a stockout at the central level of any of the contraceptives offered in public sector facilities? (If a method is not intended to be offered in public sector facilities, please indicate that stockouts are not applicable (choose \"N/A\" from the dropdown list).)",null,null,null,null,null,null,null,null,null,null,null,null,null,null,null,null,null,null,null,null,null,null,{"$f":"A132","v":"E2. In the last 12 months, has there ever been a stockout at the central level of any of the contraceptives offered in public sector facilities? (If a method is not intended to be offered in public sector facilities, please indicate that stockouts are not applicable (choose \"N/A\" from the dropdown list).)"}]
[null,"a. Combined oral contraceptives",null,null,null,null,"No",null,null,{"$f":"G133","v":"No"},null,null,null,null,null,null,null,null,null,null,null,null,null,null,{"$f":"B133","v":"a. Combined oral contraceptives"}]
[null,"b. Progestin-only pills",null,null,null,null,"No",null,null,"No",null,null,null,null,null,null,null,null,null,null,null,null,null,null,"b. Progestin-only pills"]
[null,"c. Hormonal injections",null,null,null,null,"Yes",null,null,"Yes",null,null,null,null,null,null,null,null,null,null,null,null,null,null,"c. Hormonal injections"]
[null,"d. Hormonal implants",null,null,null,null,"No",null,null,"No",null,null,null,null,null,null,null,null,null,null,null,null,null,null,"d. Hormonal implants"]
[null,"e. Intrauterine devices (IUDs)",null,null,null,null,"No",null,null,"No",null,null,null,null,null,null,null,null,null,null,null,null,null,null,"e. Intrauterine devices (IUDs)"]
[null,"f. Male condoms",null,null,null,null,"Yes",null,null,"Yes",null,null,null,null,null,null,null,null,null,null,null,null,null,null,"f. Male condoms"]
[null,"g. Female condoms",null,null,null,null,"No",null,null,"No",null,null,null,null,null,null,null,null,null,null,null,null,null,null,"g. Female condoms"]
[null,"h. Emergency contraceptive pills",null,null,null,null,"N/A",null,null,"N/A",null,null,null,null,null,null,null,null,null,null,null,null,null,null,"h. Emergency contraceptive pills"]
[null,"i. CycleBeads",null,null,null,null,"No",null,null,"No",null,null,null,null,null,null,null,null,null,null,null,null,null,null,"i. CycleBeads"]
[null,"j. Time period\n(mm/yy - mm/yy) (for example, 1/10-12/10) ",null,null,null,"01/10-12/10",null,null,null,null,null,null,null,null,null,null,{"$f":"F142","v":"01/10-12/10"},{"$f":"B142","v":"j. Time period\n(mm/yy - mm/yy) (for example, 1/10-12/10) "}]
[null,"k. Data source\n(for example: Procurement Planning and Monitoring Report, Logistics Management Information System, periodic physical inventory, warehouse reports)",null,null,null,"Warehouse report",null,null,null,null,null,null,null,null,null,null,{"$f":"F143","v":"Warehouse report"},{"$f":"B143","v":"k. Data source\n(for example: Procurement Planning and Monitoring Report, Logistics Management Information System, periodic physical inventory, warehouse reports)"}]
["E3. Are stockouts a large problem in your country at the following levels? (i.e., Are they common or do they tend to last for a long time?)\n\n"]
[null,"a. service delivery point level (i.e., public sector health facilities)",null,null,null,null,"Yes",null,null,{"$f":"G145","v":"Yes"},null,null,null,null,null,null,null,null,null,null,null,null,null,null,{"$f":"B145","v":"a. service delivery point level (i.e., public sector health facilities)"}]
[null,"b. central level (i.e., central level warehouse for the public sector)",null,null,null,null,"No",null,null,{"$f":"G146","v":"No"},null,null,null,null,null,null,null,null,null,null,null,null,null,null,{"$f":"B146","v":"b. central level (i.e., central level warehouse for the public sector)"}]
["F. Please note any overall comments about challenges and/or successes with contraceptive security in your country.\n\n",null,null,"In Mali, contraceptives are essential drugs. As such, they are managed by the \"schema directeur\" plan which defines how all essential drugs are managed in the national public health supply chain. The existence of the technical committee of monitoring contraceptive security developing the procurement and planning table for contraceptives is a major asset for the family planning program in Mali. However, the major challenge remains the availability of consumption data and of private sector data.",null,null,null,null,null,null,{"$f":"A147","v":"F. Please note any overall comments about challenges and/or successes with contraceptive security in your country.\n\n"},null,null,null,{"$f":"D147","v":"In Mali, contraceptives are essential drugs. As such, they are managed by the \"schema directeur\" plan which defines how all essential drugs are managed in the national public health supply chain. The existence of the technical committee of monitoring contraceptive security developing the procurement and planning table for contraceptives is a major asset for the family planning program in Mali. However, the major challenge remains the availability of consumption data and of private sector data."}]

{"sheet":"Mozambique 2011","index":28,"n_rows":147,"n_cols":25,"rows_kept":147,"cut":false,"hidden":false,"merged":[[141,1,141,4],[141,5,141,7],[142,1,142,4],[142,5,142,7],[143,0,143,7],[144,1,144,5],[144,6,144,7],[147,0,147,7],[148,0,150,7],[145,1,145,5],[145,6,145,7],[146,0,146,2],[146,3,146,7],[136,1,136,5],[136,6,136,7],[137,1,137,5],[137,6,137,7],[138,1,138,5],[138,6,138,7],[139,1,139,5],[139,6,139,7],[140,1,140,5],[140,6,140,7],[131,0,131,7],[132,1,132,5],[132,6,132,7],[133,1,133,5],[133,6,133,7],[134,1,134,5],[134,6,134,7],[135,1,135,5],[135,6,135,7],[120,0,120,2],[120,3,120,7],[121,0,121,2],[121,3,121,7],[129,0,129,6],[130,0,130,5],[130,6,130,7],[122,0,122,7],[123,1,123,4],[123,5,123,7],[115,1,115,5],[115,6,115,7],[116,1,116,5],[116,6,116,7],[117,1,117,5],[117,6,117,7],[118,2,118,4],[118,5,118,7],[119,0,119,4],[119,5,119,7],[110,1,110,5],[110,6,110,7],[111,1,111,5],[111,6,111,7],[112,1,112,5],[112,6,112,7],[113,1,113,5],[113,6,113,7],[114,1,114,5],[114,6,114,7],[104,1,104,5],[104,6,104,7],[105,1,105,5],[105,6,105,7],[106,3,106,7],[107,0,107,7],[108,1,108,5],[108,6,108,7],[109,1,109,5],[109,6,109,7],[98,1,98,2],[98,4,98,6],[99,1,99,2],[99,4,99,6],[100,1,100,2],[100,4,100,6],[101,0,101,7],[102,0,102,7],[103,1,103,5],[103,6,103,7],[94,2,94,3],[94,4,94,5],[94,6,94,7],[95,2,95,3],[95,4,95,5],[95,6,95,7],[96,0,96,7],[97,0,97,2],[97,4,97,6],[88,0,88,6],[89,1,89,2],[89,3,89,7],[90,0,90,6],[91,1,91,2],[92,1,92,3],[92,4,92,5],[92,6,92,7],[93,2,93,3],[93,4,93,5],[93,6,93,7],[83,0,83,4],[83,5,83,7],[84,1,84,3],[84,4,84,7],[85,1,85,3],[85,4,85,7],[86,0,86,6],[87,1,87,2],[87,3,87,7],[77,0,77,2],[77,3,77,7],[78,0,78,6],[79,0,79,6],[80,0,80,2],[81,0,82,0],[81,1,81,2],[81,3,81,4],[81,6,81,7],[82,3,82,4],[82,6,82,7],[72,1,72,2],[72,3,72,4],[73,1,73,2],[73,3,73,4],[74,1,74,2],[74,3,74,4],[75,1,75,2],[75,3,75,4],[76,1,76,2],[76,3,76,4],[67,1,67,2],[67,3,67,4],[68,1,68,2],[68,3,68,4],[69,1,69,2],[69,3,69,4],[70,1,70,2],[70,3,70,4],[71,1,71,2],[71,3,71,4],[61,0,61,2],[61,3,61,7],[62,0,62,6],[63,0,63,7],[64,0,64,2],[64,3,64,4],[65,1,65,2],[65,3,65,4],[66,1,66,2],[66,3,66,4],[55,0,55,4],[55,6,55,7],[56,0,56,4],[56,6,56,7],[58,0,58,4],[58,5,58,7],[59,1,59,4],[59,5,59,7],[60,2,60,4],[60,5,60,7],[51,1,51,2],[53,0,53,7],[42,3,42,7],[43,1,43,2],[45,0,45,7],[46,1,46,2],[47,1,47,2],[48,3,48,7],[54,0,54,4],[54,6,54,7],[35,0,35,7],[36,0,36,6],[37,0,37,7],[38,1,38,2],[39,1,39,2],[40,3,40,7],[41,1,41,2],[49,1,49,2],[50,1,50,2],[28,0,28,5],[28,6,28,7],[29,0,29,3],[29,6,29,7],[30,0,30,6],[31,0,31,6],[32,0,32,7],[33,1,33,3],[34,1,34,3],[21,1,21,2],[21,5,21,7],[22,1,22,2],[22,5,22,7],[23,0,23,6],[24,0,24,6],[25,0,25,2],[26,0,26,6],[27,0,27,2],[27,3,27,4],[16,1,16,2],[16,5,16,7],[17,1,17,2],[17,5,17,7],[18,1,18,2],[18,5,18,7],[19,1,19,2],[19,5,19,7],[20,1,20,2],[20,5,20,7],[0,0,0,7],[1,0,1,2],[1,3,1,4],[2,0,2,7],[3,3,3,4],[3,5,3,7],[7,0,7,2],[7,3,7,5],[7,6,7,7],[4,0,4,2],[5,0,5,2],[127,1,127,5],[127,6,127,7],[128,1,128,2],[128,3,128,7],[124,1,124,5],[124,6,124,7],[125,1,125,5],[125,6,125,7],[126,1,126,5],[126,6,126,7],[9,0,9,7],[10,0,10,6],[11,0,11,6],[12,1,12,2],[12,3,12,7],[8,0,8,7],[13,0,13,2],[13,3,13,7],[14,1,14,2],[14,5,14,7],[15,1,15,2],[15,5,15,7]]}
[null,null,null,null,null,null,null,null,"Columns I-Y are meant to be hidden. They exist because they allow for the dropdown list options. They also allow for merged cells to autofit properly in terms of row height. This should work if all columns remain at their correct widths.","g-h",null,"a-e merged","E-F merged","e-h","0 times",null,null,"The government (e.g., Central Medical Stores, MOH logistics unit, MOH procurement unit)",null,null,null,null,"Yes","a-h","January"]
[null,null,null,null,null,null,null,null,null,null,"A-c",null,null,null,"1-2 times","b-d merged",null,"Third-party agent (e.g., UNFPA, Crown Agents)","d-e merged","d-f merged","e-f merged","e-g merged","No",null,"February"]
[null,null,null,null,null,null,null,null,null,null,null,null,null,null,"3-5 times",null,null,"The government and a third-party agent",null,null,null,null,null,null,"March"]
[null,null,null,null,null,null,null,null,null,null,null,null,null,null,"6 or more times",null,null,"Other",null,null,null,null,"N/A",null,"April"]
["To jump to the Introduction sheet, click here.",null,null,null,null,null,null,null,null,null,null,null,null,null,null,null,null,null,null,null,null,null,"Don't know",null,"May"]
[null,null,null,null,null,null,null,null,null,null,null,null,null,null,"N/A",null,null,"N/A",null,null,null,null,null,null,"June"]
["Contraceptive Security (CS) Indicators 2011 Data ",null,null,null,null,null,null,null,null,null,null,null,null,null,"Don't know",null,null,"Don't know",null,null,null,null,null,null,"July"]
["Country: Mozambique",null,null,null,null,null,null,null,null,{"$f":"G8","v":0},{"$f":"A8","v":"Country: Mozambique"},null,null,null,null,"or c-d",null,null,null,{"$f":"D8","v":0},null,null,null,null,"August"]
["The CS Indicators are presented in the following sections:\n\n               A. leadership & cooordination               B. finance & procurement               C. commodities               D. policies               E. supply chain",null,null,null,null,null,null,null,null,{"$f":"G9","v":0},{"$f":"A9","v":"The CS Indicators are presented in the following sections:\n\n               A. leadership & cooordination               B. finance & procurement               C. commodities               D. policies               E. supply chain"},null,null,null,"d-h",null,"f-h merged",null,{"$f":"D9","v":0},null,null,null,null,null,"September"]
["\nNotes:\n  -  Respondents' answers are indicated in the white spaces. \n  -  N/A = not applicable. Don't know = the respondent either indicated they did not know or left the answer blank.\n  -  Some questions required respondents to choose from a dropdown list of options; in these cases the dropdown arrow will \n     appear when you click on the cell. \n  -  There may be a few inserted comments. (If you cannot already see them, click on Review tab - Comments group - Show All Comments in newer \n       versions of Excel or View - Comments in older versions of Excel.)\n  -  If the answer is cut off, you can either manually adjust the row height or autofit the row height in order to see the whole \n     response. (To autofit the row height, select the answer(s) and go to Home tab - Cells group - Format - Autofit Row Height in newer versions of Excel or \n      Format - Row - Autofit in older versions of Excel.)\n",null,null,null,null,null,null,null,"a-g",null,null,null,null,null,null,null,null,"a-e merged",null,null,null,null,null,{"$f":"A10","v":"\nNotes:\n  -  Respondents' answers are indicated in the white spaces. \n  -  N/A = not applicable. Don't know = the respondent either indicated they did not know or left the answer blank.\n  -  Some questions required respondents to choose from a dropdown list of options; in these cases the dropdown arrow will \n     appear when you click on the cell. \n  -  There may be a few inserted comments. (If you cannot already see them, click on Review tab - Comments group - Show All Comments in newer \n       versions of Excel or View - Comments in older versions of Excel.)\n  -  If the answer is cut off, you can either manually adjust the row height or autofit the row height in order to see the whole \n     response. (To autofit the row height, select the answer(s) and go to Home tab - Cells group - Format - Autofit Row Height in newer versions of Excel or \n      Format - Row - Autofit in older versions of Excel.)\n"},"October"]
["A. Leadership and Coordination",null,null,null,null,null,null,null,null,null,null,null,null,null,null,null,null,null,null,null,null,null,null,null,"November"]
["A1. Is there a national committee that works on contraceptive security? (Please select from the dropdown list.)\n(Committee should have some aspect of contraceptive security as part of its Terms of Reference, even if it is known by a different name, for example: Family Planning, Reproductive Health, Maternal Mortality, Essential Medicine Committee, etc.)  ",null,null,null,null,null,null,"Yes",{"$f":"A12","v":"A1. Is there a national committee that works on contraceptive security? (Please select from the dropdown list.)\n(Committee should have some aspect of contraceptive security as part of its Terms of Reference, even if it is known by a different name, for example: Family Planning, Reproductive Health, Maternal Mortality, Essential Medicine Committee, etc.)  "},null,null,null,null,null,null,null,null,null,null,null,null,null,null,null,"December"]
[null,"a. What is the name of the committee?",null,"Reproductive Health Commodity Security Committee",null,null,null,null,null,null,{"$f":"B13","v":"a. What is the name of the committee?"},{"$f":"D13","v":"Reproductive Health Commodity Security Committee"},null,null,{"$f":"D13","v":"Reproductive Health Commodity Security Committee"}]
["A2. Are the following organizations represented on the committee?",null,null,"(Y/N \ndropdown)",null,null,null,null,null,null,{"$f":"A14","v":"A2. Are the following organizations represented on the committee?"},null,null,null,null,null,null,null,null,null,null,null,null,null,"Don't know"]
[null,"a. Social marketing",null,"No","If yes, specify name(s) of organizations",null,null,null,null,null,{"$f":"B15","v":"a. Social marketing"},null,null,null,null,null,{"$f":"F15","v":0}]
[null,"b. NGO (for example: service delivery, advocacy, Planned Parenthood affiliate, Marie Stopes affiliate, faith-based organizations, etc.)",null,"No","If yes, specify name(s) of organizations",null,null,null,null,null,"b. NGO (for example: service delivery, advocacy, Planned Parenthood affiliate, Marie Stopes affiliate, faith-based organizations, etc.)",null,null,null,null,null,0]
[null,"c. Commercial sector (for example: pharmacy associations, manufacturers, etc.)",null,"No","If yes, specify name(s) of organizations",null,null,null,null,null,"c. Commercial sector (for example: pharmacy associations, manufacturers, etc.)",null,null,null,null,null,0]
[null,"d. Donors",null,"Yes","If yes, specify name(s) of donors","USAID, USAID | DELIVER PROJECT",null,null,null,null,"d. Donors",null,null,null,null,null,"USAID, USAID | DELIVER PROJECT"]
[null,"e. UN agencies",null,"Yes","If yes, specify name(s) of agencies","UNFPA",null,null,null,null,"e. UN agencies",null,null,null,null,null,"UNFPA"]
[null,"f. Ministry of Health (for example: logistics, reproductive health, family planning, maternal and child health, HIV/AIDS, pharmacy units, etc.)",null,"Yes","If yes, specify name(s) of units","Reproductive Health (RH) Unit",null,null,null,null,"f. Ministry of Health (for example: logistics, reproductive health, family planning, maternal and child health, HIV/AIDS, pharmacy units, etc.)",null,null,null,null,null,"Reproductive Health (RH) Unit"]
[null,"g. Central Medical Store or Central Warehouse",null,"Yes","If yes, specify","Central de Medicamentos e Artigos Medicos (CMAM) (central medical store)",null,null,null,null,"g. Central Medical Store or Central Warehouse",null,null,null,null,null,"Central de Medicamentos e Artigos Medicos (CMAM) (central medical store)"]
[null,"h. Ministry of Finance or Ministry of Planning ",null,"No","If yes, specify",null,null,null,null,null,"h. Ministry of Finance or Ministry of Planning ",null,null,null,null,null,0]
[null,"i. Other (for example: partners)",null,"No","If yes, specify",null,null,null,null,null,"i. Other (for example: partners)",null,null,null,null,null,0]
["A3. How many times did the committee meet during the last year? (0, 1-2, 3-5, or 6+)  (Please select from the dropdown.)",null,null,null,null,null,null,"6 or more times",{"$f":"A24","v":"A3. How many times did the committee meet during the last year? (0, 1-2, 3-5, or 6+)  (Please select from the dropdown.)"}]
["A4. Does the committee have legal status?  (Please select from the dropdown.)                                  ",null,null,null,null,null,null,"No",{"$f":"A25","v":"A4. Does the committee have legal status?  (Please select from the dropdown.)                                  "}]
["A5. Is there a Contraceptive Security \"champion\"? (someone who consistently brings up and advocates for contraceptive supplies)",null,null,"Yes","If yes, specify person's organization","Government","Specify person's job title","First Lady",null,null,{"$f":"A26","v":"A5. Is there a Contraceptive Security \"champion\"? (someone who consistently brings up and advocates for contraceptive supplies)"}]
["B. Finance and Procurement (Capital)"]
["B1. What is the timeline of the country's fiscal year?",null,null,"Beginning month",null,"January","Ending month","December",null,null,{"$f":"B28","v":0}]
["B2. What was the estimated dollar value of contraceptives needed to be procured for the public sector for the most recent complete fiscal year? (in USD currency)\n(for example, to cover the needs for the '09-'10 fiscal year)",null,null,null,null,null,7148583,null,null,{"$f":"G29","v":7148583},null,null,{"$f":"E29","v":0},null,null,null,null,null,null,null,null,null,null,null,{"$f":"A29","v":"B2. What was the estimated dollar value of contraceptives needed to be procured for the public sector for the most recent complete fiscal year? (in USD currency)\n(for example, to cover the needs for the '09-'10 fiscal year)"}]
["B3. When was the last forecast/quantification conducted? (mm/yy)",null,null,null,"06/10","Who conducted it? (Specify organization.)","Representatives from the MOH RH Program, CMAM, USAID, UNFPA, with technical assistance from the USAID | DELIVER PROJECT",null,null,{"$f":"G30","v":"Representatives from the MOH RH Program, CMAM, USAID, UNFPA, with technical assistance from the USAID | DELIVER PROJECT"},null,null,{"$f":"E30","v":"06/10"},null,null,null,null,null,null,null,null,null,null,null,{"$f":"A30","v":"B3. When was the last forecast/quantification conducted? (mm/yy)"}]
["B4. Is there a government budget line item for the procurement of contraceptives?  (Please select from the dropdown list.)",null,null,null,null,null,null,"Yes",{"$f":"A31","v":"B4. Is there a government budget line item for the procurement of contraceptives?  (Please select from the dropdown list.)"}]
["B5. Were government funds allocated for contraceptive procurement for the public sector in the most recent complete fiscal year? (This question refers to funds planned to be spent on contraceptives, whether or not they ended up being spent.) \n\n(Government funds include internally generated funds, basket funds, World Bank credits or loans, and other funds donors gave to the government for their use.) \n",null,null,null,null,null,null,"No",{"$f":"A32","v":"B5. Were government funds allocated for contraceptive procurement for the public sector in the most recent complete fiscal year? (This question refers to funds planned to be spent on contraceptives, whether or not they ended up being spent.) \n\n(Government funds include internally generated funds, basket funds, World Bank credits or loans, and other funds donors gave to the government for their use.) \n"}]
["B6. Please complete the table below regarding government allocations for contraceptive procurement.",null,null,null,null,null,null,null,null,null,null,null,null,null,null,null,null,null,null,null,null,null,null,{"$f":"A33","v":"B6. Please complete the table below regarding government allocations for contraceptive procurement."}]
[null,null,null,null,"Amount allocated \n(in USD)","Time period during which allocations were supposed to be spent \n(mm/yy-mm/yy)\n(should ideally be the most recent\ncomplete fiscal year ['09-'10])","Data source \n(for example: Ministry records)","Comments",null,null,{"$f":"A34","v":0}]
[null,"Government funds allocated for contraceptive procurement\n(funds originally designated for contraceptives, whether or not they ended up being spent on them)",null,null,0,"01/10-12/10","Ministry records",null,null,null,{"$f":"#REF!","v":{"$error":"#REF!"}}]
[]
["B7. Were government funds spent on contraceptive procurement for the public sector in the most recent complete fiscal year? \n(Government funds include internally generated funds, basket funds, World Bank credits or loans, and other funds donors gave to the government for their use.)",null,null,null,null,null,null,"No",{"$f":"A37","v":"B7. Were government funds spent on contraceptive procurement for the public sector in the most recent complete fiscal year? \n(Government funds include internally generated funds, basket funds, World Bank credits or loans, and other funds donors gave to the government for their use.)"}]
["B8. Please complete the table below to indicate government expenditures on contraceptive procurement, by source, in the most recent complete fiscal year. \n(This is how much was spent on contraceptive procurement (not what was allocated). How much of this spending was provided from each source?)",null,null,null,null,null,null,null,null,null,null,null,null,null,null,null,null,null,null,null,null,null,null,{"$f":"A38","v":"B8. Please complete the table below to indicate government expenditures on contraceptive procurement, by source, in the most recent complete fiscal year. \n(This is how much was spent on contraceptive procurement (not what was allocated). How much of this spending was provided from each source?)"}]
[null,"Source of government funds spent on contraceptive procurement for the public sector",null,"Was this source used?\n(Y/N)","Amount spent \n(in USD)","Time period (mm/yy-mm/yy)\n(should be the same for all sources of funds & ideally be the most recent\ncomplete fiscal year ['09-'10])","Data source \n(for example: Contraceptive Procurement Table, PipeLine, etc.)","Comments",null,null,{"$f":"A39","v":0}]
[null,"a. Internally generated funds spent on contraceptive procurement",null,"No",0,"01/10-12/10",null,null,null,null,{"$f":"B40","v":"a. Internally generated funds spent on contraceptive procurement"}]
[null,null,"i. Specify source(s) of internally generated funds spent (for example, from taxes or user fees)","N/A",null,null,null,null,null,null,{"$f":"C41","v":"i. Specify source(s) of internally generated funds spent (for example, from taxes or user fees)"},null,null,null,{"$f":"D41","v":"N/A"}]
[null,"b. Total of all other government funds spent on contraceptive procurement (basket funds, World Bank credits or loans, and other funds donors gave to the government [e.g., direct budget support])",null,"No",0,"01/10-12/10",null,null,null,null,{"$f":"B42","v":"b. Total of all other government funds spent on contraceptive procurement (basket funds, World Bank credits or loans, and other funds donors gave to the government [e.g., direct budget support])"}]
[null,null,"i. Specify source(s) of other government funds spent (for example: basket funding or specific donor)","N/A",null,null,null,null,null,null,{"$f":"C43","v":"i. Specify source(s) of other government funds spent (for example: basket funding or specific donor)"},null,null,null,{"$f":"D43","v":"N/A"}]
[null,"c. TOTAL government funds spent on contraceptive procurement\nThis will auto-calculate.  (It will sum a & b above.)",null,null,{"$f":"E40+E42","v":0},null,null,null,null,null,{"$f":"B44","v":"c. TOTAL government funds spent on contraceptive procurement\nThis will auto-calculate.  (It will sum a & b above.)"}]
[null,null,null,null,null,null,null,null,null,null,{"$f":"A45","v":0}]
["B9. Please complete the table below to indicate donor expenditures on contraceptive procurement in the most recent complete fiscal year.\n",null,null,null,null,null,null,null,null,null,null,null,null,null,null,null,null,null,null,null,null,null,null,{"$f":"A46","v":"B9. Please complete the table below to indicate donor expenditures on contraceptive procurement in the most recent complete fiscal year.\n"}]
["\n","Source of donations and donor funds spent on contraceptive procurement for the public sector",null,"Was this a source?\n(Y/N)","Amount of money spent on these procurements \n(in USD)","Time period (mm/yy-mm/yy)\n(should be the same for all sources of funds & ideally be the most recent\ncomplete fiscal year ['09-'10])","Data source \n(for example:  Donor records, Contraceptive Procurement Table, PipeLine, RHInterchange, etc.","Comments",null,null,{"$f":"A47","v":"\n"}]
[null,"a. In-kind donations of contraceptives",null,"Yes",6209890,"01/10-12/10","RHInterchange",null,null,null,{"$f":"B48","v":"a. In-kind donations of contraceptives"}]
[null,null,"i. Specify source(s) of in-kind donations ","UNFPA, USAID, World Bank",null,null,null,null,null,null,{"$f":"C49","v":"i. Specify source(s) of in-kind donations "},null,null,null,{"$f":"D49","v":"UNFPA, USAID, World Bank"}]
[null,"b. Global Fund donations used to procure condoms",null,"No",0,"01/10-12/10",null,null,null,null,{"$f":"B50","v":"b. Global Fund donations used to procure condoms"}]
[null,"c. Global Fund donations used to procure contraceptives besides condoms",null,"No",0,"01/10-12/10",null,null,null,null,{"$f":"B51","v":"c. Global Fund donations used to procure contraceptives besides condoms"}]
[null,"d. TOTAL value of in-kind donations and Global Fund donations spent on contraceptive procurement\nThis will auto-calculate.  (It will sum a-c above.)",null,null,{"$f":"E48+E50+E51","v":6209890},null,null,null,null,null,{"$f":"B52","v":"d. TOTAL value of in-kind donations and Global Fund donations spent on contraceptive procurement\nThis will auto-calculate.  (It will sum a-c above.)"}]
[null,null,null,null,null,null,null,null,null,null,{"$f":"A53","v":0}]
["The answers to B10 and B11 should calculate automatically based on the information you provided. Please review the answers to ensure they make sense to you, and if you have additional information to add, please note it in the comments boxes.\n\nIf the answers do not calculate automatically, please provide any relevant information you may have in the comments boxes.\n",null,null,null,null,null,null,null,null,null,null,null,null,null,null,null,null,null,null,null,null,null,null,{"$f":"A54","v":"The answers to B10 and B11 should calculate automatically based on the information you provided. Please review the answers to ensure they make sense to you, and if you have additional information to add, please note it in the comments boxes.\n\nIf the answers do not calculate automatically, please provide any relevant information you may have in the comments boxes.\n"}]
["B10. Government share of funds spent on contraceptive procurement for the public sector - \nOf the total amount spent on contraceptives for the public sector in the most recent complete fiscal year (including government and donor funds), what percent was covered by government funds (including internally generated funds, basket funds, World Bank credits or loans, and other funds given to the government)? \n\nThis will auto-calculate. (It contains the following formula: Total government spending (Question B8c) / Grand total of all spending for public sector contraceptives from the government and donors (Questions B8c+B9d))",null,null,null,null,{"$f":"E44/(E44+E52)","v":0},"Although the government considers RH a priority, the allocation of funds  has been used for other priority health commodities.",null,null,{"$f":"G55","v":"Although the government considers RH a priority, the allocation of funds  has been used for other priority health commodities."},null,null,null,null,null,null,null,{"$f":"A55","v":"B10. Government share of funds spent on contraceptive procurement for the public sector - \nOf the total amount spent on contraceptives for the public sector in the most recent complete fiscal year (including government and donor funds), what percent was covered by government funds (including internally generated funds, basket funds, World Bank credits or loans, and other funds given to the government)? \n\nThis will auto-calculate. (It contains the following formula: Total government spending (Question B8c) / Grand total of all spending for public sector contraceptives from the government and donors (Questions B8c+B9d))"}]
["B11. Total expenditures on public sector contraceptives as percent of amount that needed to be procured -\nOf the estimated value of the contraceptives needed to be procured for the public sector for the most recent complete fiscal year, what percent was provided by any source (whether government or donor)? \n\nThis will auto-calculate. (It contains the following formula: Grand total of all spending for public sector contraceptives from the government and donors (Questions B8c+B9d) / Value of estimated need for procurement (Question B2))",null,null,null,null,{"$f":"(E44+E52)/G29","v":0.86868824213134266},"Donors have provided 100% of needs. There has not been a shortage of available funding for contraceptives and condoms.",null,null,{"$f":"G56","v":"Donors have provided 100% of needs. There has not been a shortage of available funding for contraceptives and condoms."},null,null,null,null,null,null,null,{"$f":"A56","v":"B11. Total expenditures on public sector contraceptives as percent of amount that needed to be procured -\nOf the estimated value of the contraceptives needed to be procured for the public sector for the most recent complete fiscal year, what percent was provided by any source (whether government or donor)? \n\nThis will auto-calculate. (It contains the following formula: Grand total of all spending for public sector contraceptives from the government and donors (Questions B8c+B9d) / Value of estimated need for procurement (Question B2))"}]
["B12. If B11 did not calculate automatically, please answer the following question:\nWas there a funding gap for the public sector in the last complete fiscal year (e.g., 09-'10 fiscal year)?\n(Please select from the dropdown list.)",null,null,null,null,null,null,null,null,{"$f":"G57","v":0},null,null,null,null,null,null,null,{"$f":"A57","v":"B12. If B11 did not calculate automatically, please answer the following question:\nWas there a funding gap for the public sector in the last complete fiscal year (e.g., 09-'10 fiscal year)?\n(Please select from the dropdown list.)"}]
[null,null,null,null,null,null,null,null,null,null,{"$f":"A58","v":0}]
["B13. If the government financed any contraceptive procurement in the most recent complete fiscal year, which entity conducted the procurement(s)? (Please select from the dropdown.)",null,null,null,null,"N/A",null,null,null,null,null,null,null,null,null,null,{"$f":"F59","v":"N/A"},{"$f":"A59","v":"B13. If the government financed any contraceptive procurement in the most recent complete fiscal year, which entity conducted the procurement(s)? (Please select from the dropdown.)"}]
[null,"a. Specify entity",null,null,null,"N/A",null,null,null,null,null,null,{"$f":"E60","v":0},null,null,null,{"$f":"F60","v":"N/A"},{"$f":"B60","v":"a. Specify entity"}]
[null,null,"i. Is this a parastatal?",null,null,"N/A",null,null,null,null,null,null,null,null,null,null,{"$f":"F61","v":"N/A"},{"$f":"C61","v":"i. Is this a parastatal?"}]
["B14. Please note any additional comments about finance and procurement.\n",null,null,"Donors have provided 100% of needs. There has not been a shortage of available funding for contraceptives and condoms. While CMAM received significant technical assistance to conduct procurement and theoretically could procure contraceptives and condoms, funds the MOH manages have been used for other priority health commodities.",null,null,null,null,null,null,{"$f":"A62","v":"B14. Please note any additional comments about finance and procurement.\n"},null,null,null,{"$f":"D62","v":"Donors have provided 100% of needs. There has not been a shortage of available funding for contraceptives and condoms. While CMAM received significant technical assistance to conduct procurement and theoretically could procure contraceptives and condoms, funds the MOH manages have been used for other priority health commodities."}]
["C. Commodities"]
["C1. Are the following contraceptive methods offered through the commercial sector, public sector, NGOs, or social marketing? (Please indicate which methods are intended to be offered. This question is not asking whether the method is in stock.) \n(Please select from the dropdown list.)",null,null,null,null,null,null,null,null,null,null,null,null,null,null,null,null,null,null,null,null,null,null,{"$f":"A64","v":"C1. Are the following contraceptive methods offered through the commercial sector, public sector, NGOs, or social marketing? (Please indicate which methods are intended to be offered. This question is not asking whether the method is in stock.) \n(Please select from the dropdown list.)"}]
["Contraceptive Method",null,null,"Commercial Sector",null,"Public Sector","NGO","Social Marketing",null,null,{"$f":"A65","v":"Contraceptive Method"}]
[null,"a. Combined oral contraceptives (estrogen + progestin - for  example, LoFemenol, Microgynon)",null,"Yes",null,"Yes","Yes","Yes",null,null,{"$f":"B66","v":"a. Combined oral contraceptives (estrogen + progestin - for  example, LoFemenol, Microgynon)"}]
[null,"b. Progestin-only pills (for example, Ovrette, Microlut)",null,"Yes",null,"Yes","Yes","Yes",null,null,{"$f":"B67","v":"b. Progestin-only pills (for example, Ovrette, Microlut)"}]
[null,"c. Hormonal injections (for example, DepoProvera, Noristerat)",null,"Yes",null,"Yes","No","No",null,null,"c. Hormonal injections (for example, DepoProvera, Noristerat)"]
[null,"d. Hormonal implants (for example, Jadelle, Implanon)",null,"No",null,"No","No","No",null,null,"d. Hormonal implants (for example, Jadelle, Implanon)"]
[null,"e. Intrauterine devices (IUDs) (for example, Optima Copper T)",null,"No",null,"Yes","No","No",null,null,"e. Intrauterine devices (IUDs) (for example, Optima Copper T)"]
[null,"f. Male condoms",null,"Yes",null,"Yes","Yes","Yes",null,null,"f. Male condoms"]
[null,"g. Female condoms",null,"Yes",null,"Yes","Yes","Yes",null,null,"g. Female condoms"]
[null,"h. Emergency contraceptive pills (for example, Postinor)",null,"No",null,"No","No","No",null,null,"h. Emergency contraceptive pills (for example, Postinor)"]
[null,"i. Long-acting permanent method for males (vasectomy)",null,"No",null,"Yes","No","No",null,null,"i. Long-acting permanent method for males (vasectomy)"]
[null,"j. Long-acting permanent method for females (tubal ligation)",null,"No",null,"Yes","No","No",null,null,"j. Long-acting permanent method for females (tubal ligation)"]
[null,"k. CycleBeads",null,"No",null,"No","No","No",null,null,"k. CycleBeads"]
[null,"l. Other contraceptive methods - specify \n(Please provide the name of the other contraceptive(s) offered, by sector.)",null,null,null,null,null,null,null,null,"l. Other contraceptive methods - specify \n(Please provide the name of the other contraceptive(s) offered, by sector.)"]
["C2. Please note any comments about the commodities offered.",null,null,"Currently, the provision of female condoms in public sector facilities is done through PSI through the dispensing facilities installed in the public institutions. Clients in the public sector access them for free. In the future, this will be managed by Conselho Nacional de Combate ao HIV/SIDA (CNCS), who will be responsible for requisition and repositioning.",null,null,null,null,null,null,{"$f":"A78","v":"C2. Please note any comments about the commodities offered."},null,null,null,{"$f":"D78","v":"Currently, the provision of female condoms in public sector facilities is done through PSI through the dispensing facilities installed in the public institutions. Clients in the public sector access them for free. In the future, this will be managed by Conselho Nacional de Combate ao HIV/SIDA (CNCS), who will be responsible for requisition and repositioning."}]
["D. Policies (Commitment)"]
["D1. Is there a contraceptive security or reproductive health commodity security strategy or is contraceptive security explicitly included in a country strategy? (Please select from the dropdown list.)",null,null,null,null,null,null,"Yes",{"$f":"A80","v":"D1. Is there a contraceptive security or reproductive health commodity security strategy or is contraceptive security explicitly included in a country strategy? (Please select from the dropdown list.)"}]
["IF NO, SKIP TO QUESTION D2."]
[null,"Strategy name",null,"Years Covered (including strategy updates)",null,"Is the strategy formally approved by the Ministry?","Is the contraceptive security strategy being implemented?",null,null,{"$f":"G82","v":"Is the contraceptive security strategy being implemented?"},{"$f":"B82","v":"Strategy name"},null,{"$f":"E82","v":0},null,null,null,null,null,{"$f":"D82","v":"Years Covered (including strategy updates)"}]
[null,"a","Family Planning and Contraception Strategy  ","2009-2013",null,"Yes","Yes",null,null,{"$f":"G83","v":"Yes"},{"$f":"B83","v":"a"},null,{"$f":"E83","v":0},null,null,null,null,null,{"$f":"D83","v":"2009-2013"}]
["D2. Are any family planning commodities subject to duties, import taxes, or other fees?",null,null,null,null,"No",null,null,null,null,null,null,null,null,null,null,{"$f":"F84","v":"No"},{"$f":"A84","v":"D2. Are any family planning commodities subject to duties, import taxes, or other fees?"}]
[null,"a. If yes, for which sectors (public, NGO, social marketing, commercial)?",null,null,"N/A",null,null,null,null,null,null,null,{"$f":"E85","v":"N/A"},{"$f":"E85","v":"N/A"},null,null,null,{"$f":"B85","v":"a. If yes, for which sectors (public, NGO, social marketing, commercial)?"}]
[null,"b. If yes, how much are the duties, taxes, or fees?",null,null,"N/A",null,null,null,null,null,null,null,null,{"$f":"E86","v":"N/A"},null,null,null,{"$f":"B86","v":"b. If yes, how much are the duties, taxes, or fees?"}]
["D3. Are there policies that hinder the ability of the private sector (commercial sector, NGOs, or social marketing) to provide contraceptive methods (for example: price controls, distribution limitations, taxes/duties, advertising bans, etc.)?",null,null,null,null,null,null,"Yes",{"$f":"A87","v":"D3. Are there policies that hinder the ability of the private sector (commercial sector, NGOs, or social marketing) to provide contraceptive methods (for example: price controls, distribution limitations, taxes/duties, advertising bans, etc.)?"}]
[null,"a. If yes, describe the policies.",null,"Reportedly lengthy process for registration and MOH approval to launch socially marketed FP products",null,null,null,null,null,null,{"$f":"B88","v":"a. If yes, describe the policies."},null,null,null,{"$f":"D88","v":"Reportedly lengthy process for registration and MOH approval to launch socially marketed FP products"}]
["D4. Are there policies that enable the private sector (commercial sector, NGOs, or social marketing) to provide contraceptive methods?",null,null,null,null,null,null,"Yes",{"$f":"A89","v":"D4. Are there policies that enable the private sector (commercial sector, NGOs, or social marketing) to provide contraceptive methods?"}]
[null,"a. If yes, describe the policies.",null,"The Law for Private Medicine allows the private sector to import and prescribe all contraceptive methods. \n",null,null,null,null,null,null,{"$f":"B90","v":"a. If yes, describe the policies."},null,null,null,{"$f":"D90","v":"The Law for Private Medicine allows the private sector to import and prescribe all contraceptive methods. \n"}]
["D5. Do policies or regulations exist that restrict who can sell or dispense particular contraceptive methods?\n",null,null,null,null,null,null,"Yes",{"$f":"A91","v":"D5. Do policies or regulations exist that restrict who can sell or dispense particular contraceptive methods?\n"}]
[null,"Please note any restrictions in the following table."]
[null,"Contraceptive Method(s)",null,null,"Describe any public sector restriction on who is allowed to sell or dispense the method",null,"Describe any private sector restriction on who is allowed to sell or dispense the method",null,null,{"$f":"G93","v":"Describe any private sector restriction on who is allowed to sell or dispense the method"},null,null,null,null,null,{"$f":"B93","v":"Contraceptive Method(s)"},null,null,null,null,{"$f":"E93","v":"Describe any public sector restriction on who is allowed to sell or dispense the method"}]
[null,"a","IUDs",null,"Only trained maternal/child health (MCH) nurses can insert (basic nurses cannot).",null,null,null,null,{"$f":"G94","v":0},null,null,{"$f":"E94","v":"Only trained maternal/child health (MCH) nurses can insert (basic nurses cannot)."},null,null,{"$f":"C94","v":"IUDs"},null,null,null,null,{"$f":"E94","v":"Only trained maternal/child health (MCH) nurses can insert (basic nurses cannot)."}]
[null,"b","Injectables",null,"Only MCH nurses can provide injections.",null,null,null,null,{"$f":"G95","v":0},null,null,{"$f":"E95","v":"Only MCH nurses can provide injections."},null,null,{"$f":"C95","v":"Injectables"},null,null,null,null,{"$f":"E95","v":"Only MCH nurses can provide injections."}]
[null,"c","Orals",null,"MCH Activists (community-based agents) can provide orals after the first consultation with an MCH nurse. (They also provide condoms.)",null,null,null,null,{"$f":"G96","v":0},null,null,{"$f":"E96","v":"MCH Activists (community-based agents) can provide orals after the first consultation with an MCH nurse. (They also provide condoms.)"},null,null,{"$f":"C96","v":"Orals"},null,null,null,null,{"$f":"E96","v":"MCH Activists (community-based agents) can provide orals after the first consultation with an MCH nurse. (They also provide condoms.)"}]
[null,null,null,null,null,null,null,null,null,null,{"$f":"C97","v":0}]
["D6. Does the country have laws, regulations, or policies that make it difficult for the following sub-populations to access effective family planning services?",null,null,"Y/N","If yes, describe laws/regulations/policies affecting access ",null,null,"Are the rules/policies implemented?",null,null,{"$f":"A98","v":"D6. Does the country have laws, regulations, or policies that make it difficult for the following sub-populations to access effective family planning services?"},null,null,null,null,null,null,null,null,null,null,{"$f":"E98","v":"If yes, describe laws/regulations/policies affecting access "}]
[null,"a. Unmarried people",null,"No",null,null,null,null,null,null,{"$f":"B99","v":"a. Unmarried people"},null,{"$f":"E99","v":0},null,null,null,null,null,null,null,null,{"$f":"E99","v":0}]
[null,"b. Young people",null,"No",null,null,null,null,null,null,{"$f":"B100","v":"b. Young people"},null,{"$f":"E100","v":0},null,null,null,null,null,null,null,null,{"$f":"E100","v":0}]
[null,"c. Other",null,"No",null,null,null,null,null,null,{"$f":"B101","v":"c. Other"},null,{"$f":"E101","v":0},null,null,null,null,null,null,null,null,{"$f":"E101","v":0}]
[null,null,null,null,null,null,null,null,null,null,{"$f":"C102","v":0}]
["D7. Are there charges* to the client in the public sector for family planning:\n*(This question refers to charges by policy, not under-the-table charges.)\n",null,null,null,null,null,null,null,null,null,null,null,null,null,null,null,null,null,null,null,null,null,null,{"$f":"A103","v":"D7. Are there charges* to the client in the public sector for family planning:\n*(This question refers to charges by policy, not under-the-table charges.)\n"}]
[null,"a. Services?",null,null,null,null,"No",null,null,{"$f":"G104","v":"No"},null,null,null,null,null,null,null,null,null,null,null,null,null,null,{"$f":"B104","v":"a. Services?"}]
[null,"b. Commodities?",null,null,null,null,"No",null,null,{"$f":"G105","v":"No"},null,null,null,null,null,null,null,null,null,null,null,null,null,null,{"$f":"B105","v":"b. Commodities?"}]
[null,"c. If yes, are there exemptions for people who cannot afford to pay?",null,null,null,null,"N/A",null,null,{"$f":"G106","v":"N/A"},null,null,null,null,null,null,null,null,null,null,null,null,null,null,{"$f":"B106","v":"c. If yes, are there exemptions for people who cannot afford to pay?"}]
[null,null,"i. If yes, describe the exemptions.","N/A",null,null,null,null,null,null,{"$f":"C107","v":"i. If yes, describe the exemptions."},null,null,null,{"$f":"D107","v":"N/A"}]
["D8. Are the following contraceptives included in the country's National Essential Medicine List (NEML) or other equivalent priority list?",null,null,null,null,null,null,null,null,null,null,null,null,null,null,null,null,null,null,null,null,null,null,{"$f":"A108","v":"D8. Are the following contraceptives included in the country's National Essential Medicine List (NEML) or other equivalent priority list?"}]
[null,"a. Combined oral contraceptives",null,null,null,null,"Yes",null,null,{"$f":"G109","v":"Yes"},null,null,null,null,null,null,null,null,null,null,null,null,null,null,{"$f":"B109","v":"a. Combined oral contraceptives"}]
[null,"b. Progestin-only pills",null,null,null,null,"Yes",null,null,"Yes",null,null,null,null,null,null,null,null,null,null,null,null,null,null,"b. Progestin-only pills"]
[null,"c. Hormonal injections",null,null,null,null,"Yes",null,null,"Yes",null,null,null,null,null,null,null,null,null,null,null,null,null,null,"c. Hormonal injections"]
[null,"d. Hormonal implants",null,null,null,null,"No",null,null,"No",null,null,null,null,null,null,null,null,null,null,null,null,null,null,"d. Hormonal implants"]
[null,"e. Intrauterine devices (IUDs)",null,null,null,null,"Yes",null,null,"Yes",null,null,null,null,null,null,null,null,null,null,null,null,null,null,"e. Intrauterine devices (IUDs)"]
[null,"f. Male condoms",null,null,null,null,"No",null,null,"No",null,null,null,null,null,null,null,null,null,null,null,null,null,null,"f. Male condoms"]
[null,"g. Female condoms",null,null,null,null,"No",null,null,"No",null,null,null,null,null,null,null,null,null,null,null,null,null,null,"g. Female condoms"]
[null,"h. Emergency contraceptive pills",null,null,null,null,"Yes",null,null,"Yes",null,null,null,null,null,null,null,null,null,null,null,null,null,null,"h. Emergency contraceptive pills"]
[null,"i. CycleBeads",null,null,null,null,"No",null,null,{"$f":"G117","v":"No"},null,null,null,null,null,null,null,null,null,null,null,null,null,null,{"$f":"B117","v":"i. CycleBeads"}]
[null,"j. Any other contraceptive(s)?",null,null,null,null,"Yes",null,null,"Yes",null,null,null,null,null,null,null,null,null,null,null,null,null,null,"j. Any other contraceptive(s)?"]
[null,null,"i. Name of other contraceptive(s) on the list(s)",null,null,"Spermicide",null,null,null,0,null,null,null,null,null,null,null,{"$f":"B119","v":0}]
["D9. What year(s) is the list(s) from?",null,null,null,null,2007,null,null,null,0,null,null,null,null,null,null,null,{"$f":"B120","v":0}]
["D10. Name of the list(s)\n\n\n",null,null,"Formulario Nacional de Medicamentos",null,null,null,null,null,null,{"$f":"A121","v":"D10. Name of the list(s)\n\n\n"},null,null,null,{"$f":"D121","v":"Formulario Nacional de Medicamentos"}]
["D11. Notes about the list(s)\n\n\n",null,null,"Condoms are not listed alone on the Formulario Nacional de Medicamentos but are mentioned. ",null,null,null,null,null,null,{"$f":"A122","v":"D11. Notes about the list(s)\n\n\n"},null,null,null,{"$f":"D122","v":"Condoms are not listed alone on the Formulario Nacional de Medicamentos but are mentioned. "}]
["D12.  Information on country's Poverty Reduction Strategy Paper (PRSP)\n",null,null,null,null,null,null,null,null,null,null,null,null,null,null,null,null,null,null,null,null,null,null,{"$f":"A123","v":"D12.  Information on country's Poverty Reduction Strategy Paper (PRSP)\n"}]
[null,"a. What year is the Poverty Reduction Strategy Paper from? (most recent actual PRSP on IMF's site [not progress or summary report])",null,null,null,2007,null,null,null,{"$f":"G124","v":0},null,null,null,null,null,null,null,{"$f":"B124","v":"a. What year is the Poverty Reduction Strategy Paper from? (most recent actual PRSP on IMF's site [not progress or summary report])"}]
[null,"b. Is family planning or reproductive health a priority in the PRSP?",null,null,null,null,"Yes",null,null,{"$f":"G125","v":"Yes"},null,null,null,null,null,null,null,null,null,null,null,null,null,null,{"$f":"B125","v":"b. Is family planning or reproductive health a priority in the PRSP?"}]
[null,"c. Is contraceptive security included in the PRSP?",null,null,null,null,"No",null,null,{"$f":"G126","v":"No"},null,null,null,null,null,null,null,null,null,null,null,null,null,null,{"$f":"B126","v":"c. Is contraceptive security included in the PRSP?"}]
[null,"d. Is contraceptive prevalence rate (CPR) included as an indicator in the PRSP?",null,null,null,null,"No",null,null,{"$f":"G127","v":"No"},null,null,null,null,null,null,null,null,null,null,null,null,null,null,{"$f":"B127","v":"d. Is contraceptive prevalence rate (CPR) included as an indicator in the PRSP?"}]
[null,"e. Are contraceptive supply indicators included in the PRSP?",null,null,null,null,"No",null,null,{"$f":"G128","v":"No"},null,null,null,null,null,null,null,null,null,null,null,null,null,null,{"$f":"B128","v":"e. Are contraceptive supply indicators included in the PRSP?"}]
["\n\n\n","f. Notes about the Poverty Reduction Strategy Paper",null,"FP/RH is considered one of the priority programs within the health sector.",null,null,null,null,null,null,{"$f":"B129","v":"f. Notes about the Poverty Reduction Strategy Paper"},null,null,null,{"$f":"D129","v":"FP/RH is considered one of the priority programs within the health sector."}]
["E. Supply Chain (Capacity)"]
["E1. Have stockouts occurred for any contraceptive at the central* level in the last 12 months?  \n*(The central level refers to the central level warehouse for the public sector.)",null,null,null,null,null,"Yes",null,null,{"$f":"G131","v":"Yes"},null,null,null,null,null,null,null,null,null,null,null,null,null,null,{"$f":"A131","v":"E1. Have stockouts occurred for any contraceptive at the central* level in the last 12 months?  \n*(The central level refers to the central level warehouse for the public sector.)"}]
["E2. In the last 12 months, has there ever been a stockout at the central level of any of the contraceptives offered in public sector facilities? (If a method is not intended to be offered in public sector facilities, please indicate that stockouts are not applicable (choose \"N/A\" from the dropdown list).)",null,null,null,null,null,null,null,null,null,null,null,null,null,null,null,null,null,null,null,null,null,null,{"$f":"A132","v":"E2. In the last 12 months, has there ever been a stockout at the central level of any of the contraceptives offered in public sector facilities? (If a method is not intended to be offered in public sector facilities, please indicate that stockouts are not applicable (choose \"N/A\" from the dropdown list).)"}]
[null,"a. Combined oral contraceptives",null,null,null,null,"Yes",null,null,{"$f":"G133","v":"Yes"},null,null,null,null,null,null,null,null,null,null,null,null,null,null,{"$f":"B133","v":"a. Combined oral contraceptives"}]
[null,"b. Progestin-only pills",null,null,null,null,"Yes",null,null,"Yes",null,null,null,null,null,null,null,null,null,null,null,null,null,null,"b. Progestin-only pills"]
[null,"c. Hormonal injections",null,null,null,null,"No",null,null,"No",null,null,null,null,null,null,null,null,null,null,null,null,null,null,"c. Hormonal injections"]
[null,"d. Hormonal implants",null,null,null,null,"N/A",null,null,"N/A",null,null,null,null,null,null,null,null,null,null,null,null,null,null,"d. Hormonal implants"]
[null,"e. Intrauterine devices (IUDs)",null,null,null,null,"No",null,null,"No",null,null,null,null,null,null,null,null,null,null,null,null,null,null,"e. Intrauterine devices (IUDs)"]
[null,"f. Male condoms",null,null,null,null,"No",null,null,"No",null,null,null,null,null,null,null,null,null,null,null,null,null,null,"f. Male condoms"]
[null,"g. Female condoms",null,null,null,null,"No",null,null,"No",null,null,null,null,null,null,null,null,null,null,null,null,null,null,"g. Female condoms"]
[null,"h. Emergency contraceptive pills",null,null,null,null,"N/A",null,null,"N/A",null,null,null,null,null,null,null,null,null,null,null,null,null,null,"h. Emergency contraceptive pills"]
[null,"i. CycleBeads",null,null,null,null,"N/A",null,null,"N/A",null,null,null,null,null,null,null,null,null,null,null,null,null,null,"i. CycleBeads"]
[null,"j. Time period\n(mm/yy - mm/yy) (for example, 1/10-12/10) ",null,null,null,"03/10-02/11",null,null,null,null,null,null,null,null,null,null,{"$f":"F142","v":"03/10-02/11"},{"$f":"B142","v":"j. Time period\n(mm/yy - mm/yy) (for example, 1/10-12/10) "}]
[null,"k. Data source\n(for example: Procurement Planning and Monitoring Report, Logistics Management Information System, periodic physical inventory, warehouse reports)",null,null,null,"Procurement Planning and Monitoring Report (PPMR) and Logistics Management Information System",null,null,null,null,null,null,null,null,null,null,{"$f":"F143","v":"Procurement Planning and Monitoring Report (PPMR) and Logistics Management Information System"},{"$f":"B143","v":"k. Data source\n(for example: Procurement Planning and Monitoring Report, Logistics Management Information System, periodic physical inventory, warehouse reports)"}]
["E3. Are stockouts a large problem in your country at the following levels? (i.e., Are they common or do they tend to last for a long time?)\n\n"]
[null,"a. service delivery point level (i.e., public sector health facilities)",null,null,null,null,"Yes",null,null,{"$f":"G145","v":"Yes"},null,null,null,null,null,null,null,null,null,null,null,null,null,null,{"$f":"B145","v":"a. service delivery point level (i.e., public sector health facilities)"}]
[null,"b. central level (i.e., central level warehouse for the public sector)",null,null,null,null,"No",null,null,{"$f":"G146","v":"No"},null,null,null,null,null,null,null,null,null,null,null,null,null,null,{"$f":"B146","v":"b. central level (i.e., central level warehouse for the public sector)"}]
["F. Please note any overall comments about challenges and/or successes with contraceptive security in your country.\n\n",null,null,null,null,null,null,null,null,null,{"$f":"A147","v":"F. Please note any overall comments about challenges and/or successes with contraceptive security in your country.\n\n"},null,null,null,{"$f":"D147","v":0}]

{"sheet":"Nepal 2011","index":29,"n_rows":147,"n_cols":25,"rows_kept":147,"cut":false,"hidden":false,"merged":[[0,0,0,7],[1,0,1,2],[1,3,1,4],[2,0,2,7],[3,3,3,4],[3,5,3,7],[7,0,7,2],[7,3,7,5],[7,6,7,7],[9,0,9,7],[10,0,10,6],[11,0,11,6],[12,1,12,2],[12,3,12,7],[4,0,4,2],[5,0,5,2],[8,0,8,7],[16,1,16,2],[16,5,16,7],[17,1,17,2],[17,5,17,7],[18,1,18,2],[18,5,18,7],[13,0,13,2],[13,3,13,7],[14,1,14,2],[14,5,14,7],[15,1,15,2],[15,5,15,7],[22,1,22,2],[22,5,22,7],[23,0,23,6],[24,0,24,6],[25,0,25,2],[26,0,26,6],[19,1,19,2],[19,5,19,7],[20,1,20,2],[20,5,20,7],[21,1,21,2],[21,5,21,7],[30,0,30,6],[31,0,31,6],[32,0,32,7],[33,1,33,3],[34,1,34,3],[35,0,35,7],[27,0,27,2],[27,3,27,4],[28,0,28,5],[28,6,28,7],[29,0,29,3],[29,6,29,7],[42,3,42,7],[43,1,43,2],[45,0,45,7],[46,1,46,2],[47,1,47,2],[48,3,48,7],[36,0,36,6],[37,0,37,7],[38,1,38,2],[39,1,39,2],[40,3,40,7],[41,1,41,2],[55,0,55,4],[55,6,55,7],[56,0,56,4],[56,6,56,7],[58,0,58,4],[58,5,58,7],[49,1,49,2],[50,1,50,2],[51,1,51,2],[53,0,53,7],[54,0,54,4],[54,6,54,7],[62,0,62,6],[63,0,63,7],[64,0,64,2],[64,3,64,4],[65,1,65,2],[65,3,65,4],[59,1,59,4],[59,5,59,7],[60,2,60,4],[60,5,60,7],[61,0,61,2],[61,3,61,7],[69,1,69,2],[69,3,69,4],[70,1,70,2],[70,3,70,4],[71,1,71,2],[71,3,71,4],[66,1,66,2],[66,3,66,4],[67,1,67,2],[67,3,67,4],[68,1,68,2],[68,3,68,4],[75,1,75,2],[75,3,75,4],[76,1,76,2],[76,3,76,4],[77,0,77,2],[77,3,77,7],[72,1,72,2],[72,3,72,4],[73,1,73,2],[73,3,73,4],[74,1,74,2],[74,3,74,4],[83,0,83,4],[83,5,83,7],[84,1,84,3],[84,4,84,7],[85,1,85,3],[85,4,85,7],[78,0,78,6],[79,0,79,6],[80,0,80,2],[81,0,82,0],[81,1,81,2],[81,3,81,4],[81,6,81,7],[82,3,82,4],[82,6,82,7],[90,0,90,6],[91,1,91,2],[92,1,92,3],[92,4,92,5],[92,6,92,7],[93,2,93,3],[93,4,93,5],[93,6,93,7],[86,0,86,6],[87,1,87,2],[87,3,87,7],[88,0,88,6],[89,1,89,2],[89,3,89,7],[96,0,96,7],[97,0,97,2],[97,4,97,6],[98,1,98,2],[98,4,98,6],[99,1,99,2],[99,4,99,6],[94,2,94,3],[94,4,94,5],[94,6,94,7],[95,2,95,3],[95,4,95,5],[95,6,95,7],[104,1,104,5],[104,6,104,7],[105,1,105,5],[105,6,105,7],[106,3,106,7],[107,0,107,7],[100,1,100,2],[100,4,100,6],[101,0,101,7],[102,0,102,7],[103,1,103,5],[103,6,103,7],[111,1,111,5],[111,6,111,7],[112,1,112,5],[112,6,112,7],[113,1,113,5],[113,6,113,7],[108,1,108,5],[108,6,108,7],[109,1,109,5],[109,6,109,7],[110,1,110,5],[110,6,110,7],[117,1,117,5],[117,6,117,7],[118,2,118,4],[118,5,118,7],[119,0,119,4],[119,5,119,7],[114,1,114,5],[114,6,114,7],[115,1,115,5],[115,6,115,7],[116,1,116,5],[116,6,116,7],[131,0,131,7],[132,1,132,5],[132,6,132,7],[133,1,133,5],[133,6,133,7],[134,1,134,5],[134,6,134,7],[120,0,120,2],[120,3,120,7],[121,0,121,2],[121,3,121,7],[129,0,129,6],[130,0,130,5],[130,6,130,7],[122,0,122,7],[123,1,123,4],[123,5,123,7],[138,1,138,5],[138,6,138,7],[139,1,139,5],[139,6,139,7],[140,1,140,5],[140,6,140,7],[135,1,135,5],[135,6,135,7],[136,1,136,5],[136,6,136,7],[137,1,137,5],[137,6,137,7],[147,0,147,7],[148,0,150,7],[145,1,145,5],[145,6,145,7],[146,0,146,2],[146,3,146,7],[141,1,141,4],[141,5,141,7],[142,1,142,4],[142,5,142,7],[143,0,143,7],[144,1,144,5],[144,6,144,7],[127,1,127,5],[127,6,127,7],[128,1,128,2],[128,3,128,7],[124,1,124,5],[124,6,124,7],[125,1,125,5],[125,6,125,7],[126,1,126,5],[126,6,126,7]]}
[null,null,null,null,null,null,null,null,"Columns I-Y are meant to be hidden. They exist because they allow for the dropdown list options. They also allow for merged cells to autofit properly in terms of row height. This should work if all columns remain at their correct widths.","g-h",null,"a-e merged","E-F merged","e-h","0 times",null,null,"The government (e.g., Central Medical Stores, MOH logistics unit, MOH procurement unit)",null,null,null,null,"Yes","a-h","January"]
[null,null,null,null,null,null,null,null,null,null,"A-c",null,null,null,"1-2 times","b-d merged",null,"Third-party agent (e.g., UNFPA, Crown Agents)","d-e merged","d-f merged","e-f merged","e-g merged","No",null,"February"]
[null,null,null,null,null,null,null,null,null,null,null,null,null,null,"3-5 times",null,null,"The government and a third-party agent",null,null,null,null,null,null,"March"]
[null,null,null,null,null,null,null,null,null,null,null,null,null,null,"6 or more times",null,null,"Other",null,null,null,null,"N/A",null,"April"]
["To jump to the Introduction sheet, click here.",null,null,null,null,null,null,null,null,null,null,null,null,null,null,null,null,null,null,null,null,null,"Don't know",null,"May"]
[null,null,null,null,null,null,null,null,null,null,null,null,null,null,"N/A",null,null,"N/A",null,null,null,null,null,null,"June"]
["Contraceptive Security (CS) Indicators 2011 Data ",null,null,null,null,null,null,null,null,null,null,null,null,null,"Don't know",null,null,"Don't know",null,null,null,null,null,null,"July"]
["Country: Nepal",null,null,null,null,null,null,null,null,{"$f":"G8","v":0},{"$f":"A8","v":"Country: Nepal"},null,null,null,null,"or c-d",null,null,null,{"$f":"D8","v":0},null,null,null,null,"August"]
["The CS Indicators are presented in the following sections:\n\n               A. leadership & cooordination               B. finance & procurement               C. commodities               D. policies               E. supply chain",null,null,null,null,null,null,null,null,{"$f":"G9","v":0},{"$f":"A9","v":"The CS Indicators are presented in the following sections:\n\n               A. leadership & cooordination               B. finance & procurement               C. commodities               D. policies               E. supply chain"},null,null,null,"d-h",null,"f-h merged",null,{"$f":"D9","v":0},null,null,null,null,null,"September"]
["\nNotes:\n  -  Respondents' answers are indicated in the white spaces. \n  -  N/A = not applicable. Don't know = the respondent either indicated they did not know or left the answer blank.\n  -  Some questions required respondents to choose from a dropdown list of options; in these cases the dropdown arrow will \n     appear when you click on the cell. \n  -  There may be a few inserted comments. (If you cannot already see them, click on Review tab - Comments group - Show All Comments in newer \n       versions of Excel or View - Comments in older versions of Excel.)\n  -  If the answer is cut off, you can either manually adjust the row height or autofit the row height in order to see the whole \n     response. (To autofit the row height, select the answer(s) and go to Home tab - Cells group - Format - Autofit Row Height in newer versions of Excel or \n      Format - Row - Autofit in older versions of Excel.)\n",null,null,null,null,null,null,null,"a-g",null,null,null,null,null,null,null,null,"a-e merged",null,null,null,null,null,{"$f":"A10","v":"\nNotes:\n  -  Respondents' answers are indicated in the white spaces. \n  -  N/A = not applicable. Don't know = the respondent either indicated they did not know or left the answer blank.\n  -  Some questions required respondents to choose from a dropdown list of options; in these cases the dropdown arrow will \n     appear when you click on the cell. \n  -  There may be a few inserted comments. (If you cannot already see them, click on Review tab - Comments group - Show All Comments in newer \n       versions of Excel or View - Comments in older versions of Excel.)\n  -  If the answer is cut off, you can either manually adjust the row height or autofit the row height in order to see the whole \n     response. (To autofit the row height, select the answer(s) and go to Home tab - Cells group - Format - Autofit Row Height in newer versions of Excel or \n      Format - Row - Autofit in older versions of Excel.)\n"},"October"]
["A. Leadership and Coordination",null,null,null,null,null,null,null,null,null,null,null,null,null,null,null,null,null,null,null,null,null,null,null,"November"]
["A1. Is there a national committee that works on contraceptive security? (Please select from the dropdown list.)\n(Committee should have some aspect of contraceptive security as part of its Terms of Reference, even if it is known by a different name, for example: Family Planning, Reproductive Health, Maternal Mortality, Essential Medicine Committee, etc.)  ",null,null,null,null,null,null,"Yes",{"$f":"A12","v":"A1. Is there a national committee that works on contraceptive security? (Please select from the dropdown list.)\n(Committee should have some aspect of contraceptive security as part of its Terms of Reference, even if it is known by a different name, for example: Family Planning, Reproductive Health, Maternal Mortality, Essential Medicine Committee, etc.)  "},null,null,null,null,null,null,null,null,null,null,null,null,null,null,null,"December"]
[null,"a. What is the name of the committee?",null,"Contraceptive Security Working Group",null,null,null,null,null,null,{"$f":"B13","v":"a. What is the name of the committee?"},{"$f":"D13","v":"Contraceptive Security Working Group"},null,null,{"$f":"D13","v":"Contraceptive Security Working Group"}]
["A2. Are the following organizations represented on the committee?",null,null,"(Y/N \ndropdown)",null,null,null,null,null,null,{"$f":"A14","v":"A2. Are the following organizations represented on the committee?"},null,null,null,null,null,null,null,null,null,null,null,null,null,"Don't know"]
[null,"a. Social marketing",null,"Yes","If yes, specify name(s) of organizations","Contraceptives Retail Sales (CRS)",null,null,null,null,{"$f":"B15","v":"a. Social marketing"},null,null,null,null,null,{"$f":"F15","v":"Contraceptives Retail Sales (CRS)"}]
[null,"b. NGO (for example: service delivery, advocacy, Planned Parenthood affiliate, Marie Stopes affiliate, faith-based organizations, etc.)",null,"Yes","If yes, specify name(s) of organizations","Family Planning Association of Nepal (FPAN)",null,null,null,null,"b. NGO (for example: service delivery, advocacy, Planned Parenthood affiliate, Marie Stopes affiliate, faith-based organizations, etc.)",null,null,null,null,null,"Family Planning Association of Nepal (FPAN)"]
[null,"c. Commercial sector (for example: pharmacy associations, manufacturers, etc.)",null,"No","If yes, specify name(s) of organizations",null,null,null,null,null,"c. Commercial sector (for example: pharmacy associations, manufacturers, etc.)",null,null,null,null,null,0]
[null,"d. Donors",null,"Yes","If yes, specify name(s) of donors","DFID, KfW, USAID, World Bank, AusAID",null,null,null,null,"d. Donors",null,null,null,null,null,"DFID, KfW, USAID, World Bank, AusAID"]
[null,"e. UN agencies",null,"Yes","If yes, specify name(s) of agencies","UNFPA, UNICEF",null,null,null,null,"e. UN agencies",null,null,null,null,null,"UNFPA, UNICEF"]
[null,"f. Ministry of Health (for example: logistics, reproductive health, family planning, maternal and child health, HIV/AIDS, pharmacy units, etc.)",null,"Yes","If yes, specify name(s) of units","Department of Health Services (DoHS) and Family Health Division (FHD), Logistics Management Division (LMD), National Center for AIDS and STD Control (NCASC)",null,null,null,null,"f. Ministry of Health (for example: logistics, reproductive health, family planning, maternal and child health, HIV/AIDS, pharmacy units, etc.)",null,null,null,null,null,"Department of Health Services (DoHS) and Family Health Division (FHD), Logistics Management Division (LMD), National Center for AIDS and STD Control (NCASC)"]
[null,"g. Central Medical Store or Central Warehouse",null,"Yes","If yes, specify","Central Warehouse Teku and Pathalaiya/Logistics Management Division",null,null,null,null,"g. Central Medical Store or Central Warehouse",null,null,null,null,null,"Central Warehouse Teku and Pathalaiya/Logistics Management Division"]
[null,"h. Ministry of Finance or Ministry of Planning ",null,"Yes","If yes, specify","National Planning Commission (NPC), Ministry of Finance (MoF)",null,null,null,null,"h. Ministry of Finance or Ministry of Planning ",null,null,null,null,null,"National Planning Commission (NPC), Ministry of Finance (MoF)"]
[null,"i. Other (for example: partners)",null,null,"If yes, specify",null,null,null,null,null,"i. Other (for example: partners)",null,null,null,null,null,0]
["A3. How many times did the committee meet during the last year? (0, 1-2, 3-5, or 6+)  (Please select from the dropdown.)",null,null,null,null,null,null,"3-5 times",{"$f":"A24","v":"A3. How many times did the committee meet during the last year? (0, 1-2, 3-5, or 6+)  (Please select from the dropdown.)"}]
["A4. Does the committee have legal status?  (Please select from the dropdown.)                                  ",null,null,null,null,null,null,"Yes",{"$f":"A25","v":"A4. Does the committee have legal status?  (Please select from the dropdown.)                                  "}]
["A5. Is there a Contraceptive Security \"champion\"? (someone who consistently brings up and advocates for contraceptive supplies)",null,null,"Yes","If yes, specify person's organization","Logistics Management Division/MOH","Specify person's job title","Director",null,null,{"$f":"A26","v":"A5. Is there a Contraceptive Security \"champion\"? (someone who consistently brings up and advocates for contraceptive supplies)"}]
["B. Finance and Procurement (Capital)"]
["B1. What is the timeline of the country's fiscal year?",null,null,"Beginning month",null,"July","Ending month","June",null,null,{"$f":"B28","v":0}]
["B2. What was the estimated dollar value of contraceptives needed to be procured for the public sector for the most recent complete fiscal year? (in USD currency)\n(for example, to cover the needs for the '09-'10 fiscal year)",null,null,null,null,null,3676347,null,null,{"$f":"G29","v":3676347},null,null,{"$f":"E29","v":0},null,null,null,null,null,null,null,null,null,null,null,{"$f":"A29","v":"B2. What was the estimated dollar value of contraceptives needed to be procured for the public sector for the most recent complete fiscal year? (in USD currency)\n(for example, to cover the needs for the '09-'10 fiscal year)"}]
["B3. When was the last forecast/quantification conducted? (mm/yy)",null,null,null,"08/10","Who conducted it? (Specify organization.)","Logistics Management Division",null,null,{"$f":"G30","v":"Logistics Management Division"},null,null,{"$f":"E30","v":"08/10"},null,null,null,null,null,null,null,null,null,null,null,{"$f":"A30","v":"B3. When was the last forecast/quantification conducted? (mm/yy)"}]
["B4. Is there a government budget line item for the procurement of contraceptives?  (Please select from the dropdown list.)",null,null,null,null,null,null,"Yes",{"$f":"A31","v":"B4. Is there a government budget line item for the procurement of contraceptives?  (Please select from the dropdown list.)"}]
["B5. Were government funds allocated for contraceptive procurement for the public sector in the most recent complete fiscal year? (This question refers to funds planned to be spent on contraceptives, whether or not they ended up being spent.) \n\n(Government funds include internally generated funds, basket funds, World Bank credits or loans, and other funds donors gave to the government for their use.) \n",null,null,null,null,null,null,"Yes",{"$f":"A32","v":"B5. Were government funds allocated for contraceptive procurement for the public sector in the most recent complete fiscal year? (This question refers to funds planned to be spent on contraceptives, whether or not they ended up being spent.) \n\n(Government funds include internally generated funds, basket funds, World Bank credits or loans, and other funds donors gave to the government for their use.) \n"}]
["B6. Please complete the table below regarding government allocations for contraceptive procurement.",null,null,null,null,null,null,null,null,null,null,null,null,null,null,null,null,null,null,null,null,null,null,{"$f":"A33","v":"B6. Please complete the table below regarding government allocations for contraceptive procurement."}]
[null,null,null,null,"Amount allocated \n(in USD)","Time period during which allocations were supposed to be spent \n(mm/yy-mm/yy)\n(should ideally be the most recent\ncomplete fiscal year ['09-'10])","Data source \n(for example: Ministry records)","Comments",null,null,{"$f":"A34","v":0}]
[null,"Government funds allocated for contraceptive procurement\n(funds originally designated for contraceptives, whether or not they ended up being spent on them)",null,null,2840000,"2009-2010","LMD records, PipeLine reports",null,null,null,{"$f":"#REF!","v":{"$error":"#REF!"}}]
[]
["B7. Were government funds spent on contraceptive procurement for the public sector in the most recent complete fiscal year? \n(Government funds include internally generated funds, basket funds, World Bank credits or loans, and other funds donors gave to the government for their use.)",null,null,null,null,null,null,"Yes",{"$f":"A37","v":"B7. Were government funds spent on contraceptive procurement for the public sector in the most recent complete fiscal year? \n(Government funds include internally generated funds, basket funds, World Bank credits or loans, and other funds donors gave to the government for their use.)"}]
["B8. Please complete the table below to indicate government expenditures on contraceptive procurement, by source, in the most recent complete fiscal year. \n(This is how much was spent on contraceptive procurement (not what was allocated). How much of this spending was provided from each source?)",null,null,null,null,null,null,null,null,null,null,null,null,null,null,null,null,null,null,null,null,null,null,{"$f":"A38","v":"B8. Please complete the table below to indicate government expenditures on contraceptive procurement, by source, in the most recent complete fiscal year. \n(This is how much was spent on contraceptive procurement (not what was allocated). How much of this spending was provided from each source?)"}]
[null,"Source of government funds spent on contraceptive procurement for the public sector",null,"Was this source used?\n(Y/N)","Amount spent \n(in USD)","Time period (mm/yy-mm/yy)\n(should be the same for all sources of funds & ideally be the most recent\ncomplete fiscal year ['09-'10])","Data source \n(for example: Contraceptive Procurement Table, PipeLine, etc.)","Comments",null,null,{"$f":"A39","v":0}]
[null,"a. Internally generated funds spent on contraceptive procurement",null,"Yes",2242941,"2009-2010","PipeLine reports",null,null,null,{"$f":"B40","v":"a. Internally generated funds spent on contraceptive procurement"}]
[null,null,"i. Specify source(s) of internally generated funds spent (for example, from taxes or user fees)","MOH funds",null,null,null,null,null,null,{"$f":"C41","v":"i. Specify source(s) of internally generated funds spent (for example, from taxes or user fees)"},null,null,null,{"$f":"D41","v":"MOH funds"}]
[null,"b. Total of all other government funds spent on contraceptive procurement (basket funds, World Bank credits or loans, and other funds donors gave to the government [e.g., direct budget support])",null,"Yes",347701,"2009-2010","PipeLine reports",null,null,null,{"$f":"B42","v":"b. Total of all other government funds spent on contraceptive procurement (basket funds, World Bank credits or loans, and other funds donors gave to the government [e.g., direct budget support])"}]
[null,null,"i. Specify source(s) of other government funds spent (for example: basket funding or specific donor)","Pool funds from World Bank, DFID, and AusAID",null,null,null,null,null,null,{"$f":"C43","v":"i. Specify source(s) of other government funds spent (for example: basket funding or specific donor)"},null,null,null,{"$f":"D43","v":"Pool funds from World Bank, DFID, and AusAID"}]
[null,"c. TOTAL government funds spent on contraceptive procurement\nThis will auto-calculate.  (It will sum a & b above.)",null,null,{"$f":"E40+E42","v":2590642},null,null,null,null,null,{"$f":"B44","v":"c. TOTAL government funds spent on contraceptive procurement\nThis will auto-calculate.  (It will sum a & b above.)"}]
[null,null,null,null,null,null,null,null,null,null,{"$f":"A45","v":0}]
["B9. Please complete the table below to indicate donor expenditures on contraceptive procurement in the most recent complete fiscal year.\n",null,null,null,null,null,null,null,null,null,null,null,null,null,null,null,null,null,null,null,null,null,null,{"$f":"A46","v":"B9. Please complete the table below to indicate donor expenditures on contraceptive procurement in the most recent complete fiscal year.\n"}]
["\n","Source of donations and donor funds spent on contraceptive procurement for the public sector",null,"Was this a source?\n(Y/N)","Amount of money spent on these procurements \n(in USD)","Time period (mm/yy-mm/yy)\n(should be the same for all sources of funds & ideally be the most recent\ncomplete fiscal year ['09-'10])","Data source \n(for example:  Donor records, Contraceptive Procurement Table, PipeLine, RHInterchange, etc.","Comments",null,null,{"$f":"A47","v":"\n"}]
[null,"a. In-kind donations of contraceptives",null,"Yes",1085706,"2009-2010","PipeLine report",null,null,null,{"$f":"B48","v":"a. In-kind donations of contraceptives"}]
[null,null,"i. Specify source(s) of in-kind donations ","KfW (USD $852,138 for condoms and injectables) & USAID (USD $233,568 for condoms)",null,null,null,null,null,null,{"$f":"C49","v":"i. Specify source(s) of in-kind donations "},null,null,null,{"$f":"D49","v":"KfW (USD $852,138 for condoms and injectables) & USAID (USD $233,568 for condoms)"}]
[null,"b. Global Fund donations used to procure condoms",null,"Yes",null,"2009-2010",null,"Insignificant quantity",null,null,{"$f":"B50","v":"b. Global Fund donations used to procure condoms"}]
[null,"c. Global Fund donations used to procure contraceptives besides condoms",null,"No",0,"2009-2010",null,null,null,null,{"$f":"B51","v":"c. Global Fund donations used to procure contraceptives besides condoms"}]
[null,"d. TOTAL value of in-kind donations and Global Fund donations spent on contraceptive procurement\nThis will auto-calculate.  (It will sum a-c above.)",null,null,{"$f":"E48+E50+E51","v":1085706},null,null,null,null,null,{"$f":"B52","v":"d. TOTAL value of in-kind donations and Global Fund donations spent on contraceptive procurement\nThis will auto-calculate.  (It will sum a-c above.)"}]
[null,null,null,null,null,null,null,null,null,null,{"$f":"A53","v":0}]
["The answers to B10 and B11 should calculate automatically based on the information you provided. Please review the answers to ensure they make sense to you, and if you have additional information to add, please note it in the comments boxes.\n\nIf the answers do not calculate automatically, please provide any relevant information you may have in the comments boxes.\n",null,null,null,null,null,null,null,null,null,null,null,null,null,null,null,null,null,null,null,null,null,null,{"$f":"A54","v":"The answers to B10 and B11 should calculate automatically based on the information you provided. Please review the answers to ensure they make sense to you, and if you have additional information to add, please note it in the comments boxes.\n\nIf the answers do not calculate automatically, please provide any relevant information you may have in the comments boxes.\n"}]
["B10. Government share of funds spent on contraceptive procurement for the public sector - \nOf the total amount spent on contraceptives for the public sector in the most recent complete fiscal year (including government and donor funds), what percent was covered by government funds (including internally generated funds, basket funds, World Bank credits or loans, and other funds given to the government)? \n\nThis will auto-calculate. (It contains the following formula: Total government spending (Question B8c) / Grand total of all spending for public sector contraceptives from the government and donors (Questions B8c+B9d))",null,null,null,null,{"$f":"E44/(E44+E52)","v":0.70467812078725955},null,null,null,{"$f":"G55","v":0},null,null,null,null,null,null,null,{"$f":"A55","v":"B10. Government share of funds spent on contraceptive procurement for the public sector - \nOf the total amount spent on contraceptives for the public sector in the most recent complete fiscal year (including government and donor funds), what percent was covered by government funds (including internally generated funds, basket funds, World Bank credits or loans, and other funds given to the government)? \n\nThis will auto-calculate. (It contains the following formula: Total government spending (Question B8c) / Grand total of all spending for public sector contraceptives from the government and donors (Questions B8c+B9d))"}]
["B11. Total expenditures on public sector contraceptives as percent of amount that needed to be procured -\nOf the estimated value of the contraceptives needed to be procured for the public sector for the most recent complete fiscal year, what percent was provided by any source (whether government or donor)? \n\nThis will auto-calculate. (It contains the following formula: Grand total of all spending for public sector contraceptives from the government and donors (Questions B8c+B9d) / Value of estimated need for procurement (Question B2))",null,null,null,null,{"$f":"(E44+E52)/G29","v":1.0000002720091439},null,null,null,{"$f":"G56","v":0},null,null,null,null,null,null,null,{"$f":"A56","v":"B11. Total expenditures on public sector contraceptives as percent of amount that needed to be procured -\nOf the estimated value of the contraceptives needed to be procured for the public sector for the most recent complete fiscal year, what percent was provided by any source (whether government or donor)? \n\nThis will auto-calculate. (It contains the following formula: Grand total of all spending for public sector contraceptives from the government and donors (Questions B8c+B9d) / Value of estimated need for procurement (Question B2))"}]
["B12. If B11 did not calculate automatically, please answer the following question:\nWas there a funding gap for the public sector in the last complete fiscal year (e.g., 09-'10 fiscal year)?\n(Please select from the dropdown list.)",null,null,null,null,null,null,null,null,{"$f":"G57","v":0},null,null,null,null,null,null,null,{"$f":"A57","v":"B12. If B11 did not calculate automatically, please answer the following question:\nWas there a funding gap for the public sector in the last complete fiscal year (e.g., 09-'10 fiscal year)?\n(Please select from the dropdown list.)"}]
[null,null,null,null,null,null,null,null,null,null,{"$f":"A58","v":0}]
["B13. If the government financed any contraceptive procurement in the most recent complete fiscal year, which entity conducted the procurement(s)? (Please select from the dropdown.)",null,null,null,null,"The government (e.g., Central Medical Stores, MOH logistics unit, MOH procurement unit)",null,null,null,null,null,null,null,null,null,null,{"$f":"F59","v":"The government (e.g., Central Medical Stores, MOH logistics unit, MOH procurement unit)"},{"$f":"A59","v":"B13. If the government financed any contraceptive procurement in the most recent complete fiscal year, which entity conducted the procurement(s)? (Please select from the dropdown.)"}]
[null,"a. Specify entity",null,null,null,"Logistics Management Division/MOH",null,null,null,null,null,null,{"$f":"E60","v":0},null,null,null,{"$f":"F60","v":"Logistics Management Division/MOH"},{"$f":"B60","v":"a. Specify entity"}]
[null,null,"i. Is this a parastatal?",null,null,"Yes",null,null,null,null,null,null,null,null,null,null,{"$f":"F61","v":"Yes"},{"$f":"C61","v":"i. Is this a parastatal?"}]
["B14. Please note any additional comments about finance and procurement.\n",null,null,"Due to various reasons, sometimes procurement gets delayed; in such circumstances USAID is providing contraceptives to MOH upon the request from MOH.",null,null,null,null,null,null,{"$f":"A62","v":"B14. Please note any additional comments about finance and procurement.\n"},null,null,null,{"$f":"D62","v":"Due to various reasons, sometimes procurement gets delayed; in such circumstances USAID is providing contraceptives to MOH upon the request from MOH."}]
["C. Commodities"]
["C1. Are the following contraceptive methods offered through the commercial sector, public sector, NGOs, or social marketing? (Please indicate which methods are intended to be offered. This question is not asking whether the method is in stock.) \n(Please select from the dropdown list.)",null,null,null,null,null,null,null,null,null,null,null,null,null,null,null,null,null,null,null,null,null,null,{"$f":"A64","v":"C1. Are the following contraceptive methods offered through the commercial sector, public sector, NGOs, or social marketing? (Please indicate which methods are intended to be offered. This question is not asking whether the method is in stock.) \n(Please select from the dropdown list.)"}]
["Contraceptive Method",null,null,"Commercial Sector",null,"Public Sector","NGO","Social Marketing",null,null,{"$f":"A65","v":"Contraceptive Method"}]
[null,"a. Combined oral contraceptives (estrogen + progestin - for  example, LoFemenol, Microgynon)",null,"Yes",null,"Yes","Yes","Yes",null,null,{"$f":"B66","v":"a. Combined oral contraceptives (estrogen + progestin - for  example, LoFemenol, Microgynon)"}]
[null,"b. Progestin-only pills (for example, Ovrette, Microlut)",null,"Yes",null,"No","No","No",null,null,{"$f":"B67","v":"b. Progestin-only pills (for example, Ovrette, Microlut)"}]
[null,"c. Hormonal injections (for example, DepoProvera, Noristerat)",null,"Yes",null,"Yes","Yes","Yes",null,null,"c. Hormonal injections (for example, DepoProvera, Noristerat)"]
[null,"d. Hormonal implants (for example, Jadelle, Implanon)",null,"Yes",null,"Yes","Yes","Yes",null,null,"d. Hormonal implants (for example, Jadelle, Implanon)"]
[null,"e. Intrauterine devices (IUDs) (for example, Optima Copper T)",null,"Yes",null,"Yes","Yes","Yes",null,null,"e. Intrauterine devices (IUDs) (for example, Optima Copper T)"]
[null,"f. Male condoms",null,"Yes",null,"Yes","Yes","Yes",null,null,"f. Male condoms"]
[null,"g. Female condoms",null,"Yes",null,"No","No","No",null,null,"g. Female condoms"]
[null,"h. Emergency contraceptive pills (for example, Postinor)",null,"Yes",null,"No","Yes","Yes",null,null,"h. Emergency contraceptive pills (for example, Postinor)"]
[null,"i. Long-acting permanent method for males (vasectomy)",null,"Yes",null,"Yes","Yes","Yes",null,null,"i. Long-acting permanent method for males (vasectomy)"]
[null,"j. Long-acting permanent method for females (tubal ligation)",null,"Yes",null,"Yes","Yes","Yes",null,null,"j. Long-acting permanent method for females (tubal ligation)"]
[null,"k. CycleBeads",null,"No",null,"No","No","No",null,null,"k. CycleBeads"]
[null,"l. Other contraceptive methods - specify \n(Please provide the name of the other contraceptive(s) offered, by sector.)",null,null,null,null,null,null,null,null,"l. Other contraceptive methods - specify \n(Please provide the name of the other contraceptive(s) offered, by sector.)"]
["C2. Please note any comments about the commodities offered.",null,null,null,null,null,null,null,null,null,{"$f":"A78","v":"C2. Please note any comments about the commodities offered."},null,null,null,{"$f":"D78","v":0}]
["D. Policies (Commitment)"]
["D1. Is there a contraceptive security or reproductive health commodity security strategy or is contraceptive security explicitly included in a country strategy? (Please select from the dropdown list.)",null,null,null,null,null,null,"Yes",{"$f":"A80","v":"D1. Is there a contraceptive security or reproductive health commodity security strategy or is contraceptive security explicitly included in a country strategy? (Please select from the dropdown list.)"}]
["IF NO, SKIP TO QUESTION D2."]
[null,"Strategy name",null,"Years Covered (including strategy updates)",null,"Is the strategy formally approved by the Ministry?","Is the contraceptive security strategy being implemented?",null,null,{"$f":"G82","v":"Is the contraceptive security strategy being implemented?"},{"$f":"B82","v":"Strategy name"},null,{"$f":"E82","v":0},null,null,null,null,null,{"$f":"D82","v":"Years Covered (including strategy updates)"}]
[null,"a","National Reproductive Health Commodity Security (RHCS) Strategy","2007-2011",null,"Yes","Yes",null,null,{"$f":"G83","v":"Yes"},{"$f":"B83","v":"a"},null,{"$f":"E83","v":0},null,null,null,null,null,{"$f":"D83","v":"2007-2011"}]
["D2. Are any family planning commodities subject to duties, import taxes, or other fees?",null,null,null,null,"Yes",null,null,null,null,null,null,null,null,null,null,{"$f":"F84","v":"Yes"},{"$f":"A84","v":"D2. Are any family planning commodities subject to duties, import taxes, or other fees?"}]
[null,"a. If yes, for which sectors (public, NGO, social marketing, commercial)?",null,null,"Commercial sector (No tax is levied for contraceptives for the public or social marketing sectors.)  ",null,null,null,null,null,null,null,{"$f":"E85","v":"Commercial sector (No tax is levied for contraceptives for the public or social marketing sectors.)  "},{"$f":"E85","v":"Commercial sector (No tax is levied for contraceptives for the public or social marketing sectors.)  "},null,null,null,{"$f":"B85","v":"a. If yes, for which sectors (public, NGO, social marketing, commercial)?"}]
[null,"b. If yes, how much are the duties, taxes, or fees?",null,null,"It varies - it is very minimal for condom (less than 1%) and about 5% for pills. ",null,null,null,null,null,null,null,null,{"$f":"E86","v":"It varies - it is very minimal for condom (less than 1%) and about 5% for pills. "},null,null,null,{"$f":"B86","v":"b. If yes, how much are the duties, taxes, or fees?"}]
["D3. Are there policies that hinder the ability of the private sector (commercial sector, NGOs, or social marketing) to provide contraceptive methods (for example: price controls, distribution limitations, taxes/duties, advertising bans, etc.)?",null,null,null,null,null,null,"No",{"$f":"A87","v":"D3. Are there policies that hinder the ability of the private sector (commercial sector, NGOs, or social marketing) to provide contraceptive methods (for example: price controls, distribution limitations, taxes/duties, advertising bans, etc.)?"}]
[null,"a. If yes, describe the policies.",null,"N/A",null,null,null,null,null,null,{"$f":"B88","v":"a. If yes, describe the policies."},null,null,null,{"$f":"D88","v":"N/A"}]
["D4. Are there policies that enable the private sector (commercial sector, NGOs, or social marketing) to provide contraceptive methods?",null,null,null,null,null,null,"Yes",{"$f":"A89","v":"D4. Are there policies that enable the private sector (commercial sector, NGOs, or social marketing) to provide contraceptive methods?"}]
[null,"a. If yes, describe the policies.",null,"MOH promotes social marketing and NGOs to provide contraceptive services.",null,null,null,null,null,null,{"$f":"B90","v":"a. If yes, describe the policies."},null,null,null,{"$f":"D90","v":"MOH promotes social marketing and NGOs to provide contraceptive services."}]
["D5. Do policies or regulations exist that restrict who can sell or dispense particular contraceptive methods?\n",null,null,null,null,null,null,"No",{"$f":"A91","v":"D5. Do policies or regulations exist that restrict who can sell or dispense particular contraceptive methods?\n"}]
[null,"Please note any restrictions in the following table."]
[null,"Contraceptive Method(s)",null,null,"Describe any public sector restriction on who is allowed to sell or dispense the method",null,"Describe any private sector restriction on who is allowed to sell or dispense the method",null,null,{"$f":"G93","v":"Describe any private sector restriction on who is allowed to sell or dispense the method"},null,null,null,null,null,{"$f":"B93","v":"Contraceptive Method(s)"},null,null,null,null,{"$f":"E93","v":"Describe any public sector restriction on who is allowed to sell or dispense the method"}]
[null,"a",null,null,null,null,null,null,null,{"$f":"G94","v":0},null,null,{"$f":"E94","v":0},null,null,{"$f":"C94","v":0},null,null,null,null,{"$f":"E94","v":0}]
[null,"b",null,null,null,null,null,null,null,{"$f":"G95","v":0},null,null,{"$f":"E95","v":0},null,null,{"$f":"C95","v":0},null,null,null,null,{"$f":"E95","v":0}]
[null,"c",null,null,null,null,null,null,null,{"$f":"G96","v":0},null,null,{"$f":"E96","v":0},null,null,{"$f":"C96","v":0},null,null,null,null,{"$f":"E96","v":0}]
[null,null,null,null,null,null,null,null,null,null,{"$f":"C97","v":0}]
["D6. Does the country have laws, regulations, or policies that make it difficult for the following sub-populations to access effective family planning services?",null,null,"Y/N","If yes, describe laws/regulations/policies affecting access ",null,null,"Are the rules/policies implemented?",null,null,{"$f":"A98","v":"D6. Does the country have laws, regulations, or policies that make it difficult for the following sub-populations to access effective family planning services?"},null,null,null,null,null,null,null,null,null,null,{"$f":"E98","v":"If yes, describe laws/regulations/policies affecting access "}]
[null,"a. Unmarried people",null,"No",null,null,null,null,null,null,{"$f":"B99","v":"a. Unmarried people"},null,{"$f":"E99","v":0},null,null,null,null,null,null,null,null,{"$f":"E99","v":0}]
[null,"b. Young people",null,"No",null,null,null,null,null,null,{"$f":"B100","v":"b. Young people"},null,{"$f":"E100","v":0},null,null,null,null,null,null,null,null,{"$f":"E100","v":0}]
[null,"c. Other",null,"No",null,null,null,null,null,null,{"$f":"B101","v":"c. Other"},null,{"$f":"E101","v":0},null,null,null,null,null,null,null,null,{"$f":"E101","v":0}]
[null,null,null,null,null,null,null,null,null,null,{"$f":"C102","v":0}]
["D7. Are there charges* to the client in the public sector for family planning:\n*(This question refers to charges by policy, not under-the-table charges.)\n",null,null,null,null,null,null,null,null,null,null,null,null,null,null,null,null,null,null,null,null,null,null,{"$f":"A103","v":"D7. Are there charges* to the client in the public sector for family planning:\n*(This question refers to charges by policy, not under-the-table charges.)\n"}]
[null,"a. Services?",null,null,null,null,"No",null,null,{"$f":"G104","v":"No"},null,null,null,null,null,null,null,null,null,null,null,null,null,null,{"$f":"B104","v":"a. Services?"}]
[null,"b. Commodities?",null,null,null,null,"No",null,null,{"$f":"G105","v":"No"},null,null,null,null,null,null,null,null,null,null,null,null,null,null,{"$f":"B105","v":"b. Commodities?"}]
[null,"c. If yes, are there exemptions for people who cannot afford to pay?",null,null,null,null,"N/A",null,null,{"$f":"G106","v":"N/A"},null,null,null,null,null,null,null,null,null,null,null,null,null,null,{"$f":"B106","v":"c. If yes, are there exemptions for people who cannot afford to pay?"}]
[null,null,"i. If yes, describe the exemptions.","N/A",null,null,null,null,null,null,{"$f":"C107","v":"i. If yes, describe the exemptions."},null,null,null,{"$f":"D107","v":"N/A"}]
["D8. Are the following contraceptives included in the country's National Essential Medicine List (NEML) or other equivalent priority list?",null,null,null,null,null,null,null,null,null,null,null,null,null,null,null,null,null,null,null,null,null,null,{"$f":"A108","v":"D8. Are the following contraceptives included in the country's National Essential Medicine List (NEML) or other equivalent priority list?"}]
[null,"a. Combined oral contraceptives",null,null,null,null,"Yes",null,null,{"$f":"G109","v":"Yes"},null,null,null,null,null,null,null,null,null,null,null,null,null,null,{"$f":"B109","v":"a. Combined oral contraceptives"}]
[null,"b. Progestin-only pills",null,null,null,null,"Yes",null,null,"Yes",null,null,null,null,null,null,null,null,null,null,null,null,null,null,"b. Progestin-only pills"]
[null,"c. Hormonal injections",null,null,null,null,"Yes",null,null,"Yes",null,null,null,null,null,null,null,null,null,null,null,null,null,null,"c. Hormonal injections"]
[null,"d. Hormonal implants",null,null,null,null,"Yes",null,null,"Yes",null,null,null,null,null,null,null,null,null,null,null,null,null,null,"d. Hormonal implants"]
[null,"e. Intrauterine devices (IUDs)",null,null,null,null,"Yes",null,null,"Yes",null,null,null,null,null,null,null,null,null,null,null,null,null,null,"e. Intrauterine devices (IUDs)"]
[null,"f. Male condoms",null,null,null,null,"Yes",null,null,"Yes",null,null,null,null,null,null,null,null,null,null,null,null,null,null,"f. Male condoms"]
[null,"g. Female condoms",null,null,null,null,"Yes",null,null,"Yes",null,null,null,null,null,null,null,null,null,null,null,null,null,null,"g. Female condoms"]
[null,"h. Emergency contraceptive pills",null,null,null,null,"Yes",null,null,"Yes",null,null,null,null,null,null,null,null,null,null,null,null,null,null,"h. Emergency contraceptive pills"]
[null,"i. CycleBeads",null,null,null,null,"No",null,null,{"$f":"G117","v":"No"},null,null,null,null,null,null,null,null,null,null,null,null,null,null,{"$f":"B117","v":"i. CycleBeads"}]
[null,"j. Any other contraceptive(s)?",null,null,null,null,"No",null,null,"No",null,null,null,null,null,null,null,null,null,null,null,null,null,null,"j. Any other contraceptive(s)?"]
[null,null,"i. Name of other contraceptive(s) on the list(s)",null,null,"N/A",null,null,null,0,null,null,null,null,null,null,null,{"$f":"B119","v":0}]
["D9. What year(s) is the list(s) from?",null,null,null,null,2009,null,null,null,0,null,null,null,null,null,null,null,{"$f":"B120","v":0}]
["D10. Name of the list(s)\n\n\n",null,null,"National List of Essential Medicines Nepal ",null,null,null,null,null,null,{"$f":"A121","v":"D10. Name of the list(s)\n\n\n"},null,null,null,{"$f":"D121","v":"National List of Essential Medicines Nepal "}]
["D11. Notes about the list(s)\n\n\n",null,null,"Final Draft, 2009",null,null,null,null,null,null,{"$f":"A122","v":"D11. Notes about the list(s)\n\n\n"},null,null,null,{"$f":"D122","v":"Final Draft, 2009"}]
["D12.  Information on country's Poverty Reduction Strategy Paper (PRSP)\n",null,null,null,null,null,null,null,null,null,null,null,null,null,null,null,null,null,null,null,null,null,null,{"$f":"A123","v":"D12.  Information on country's Poverty Reduction Strategy Paper (PRSP)\n"}]
[null,"a. What year is the Poverty Reduction Strategy Paper from? (most recent actual PRSP on IMF's site [not progress or summary report])",null,null,null,2003,null,null,null,{"$f":"G124","v":0},null,null,null,null,null,null,null,{"$f":"B124","v":"a. What year is the Poverty Reduction Strategy Paper from? (most recent actual PRSP on IMF's site [not progress or summary report])"}]
[null,"b. Is family planning or reproductive health a priority in the PRSP?",null,null,null,null,"Yes",null,null,{"$f":"G125","v":"Yes"},null,null,null,null,null,null,null,null,null,null,null,null,null,null,{"$f":"B125","v":"b. Is family planning or reproductive health a priority in the PRSP?"}]
[null,"c. Is contraceptive security included in the PRSP?",null,null,null,null,"No",null,null,{"$f":"G126","v":"No"},null,null,null,null,null,null,null,null,null,null,null,null,null,null,{"$f":"B126","v":"c. Is contraceptive security included in the PRSP?"}]
[null,"d. Is contraceptive prevalence rate (CPR) included as an indicator in the PRSP?",null,null,null,null,"Yes",null,null,{"$f":"G127","v":"Yes"},null,null,null,null,null,null,null,null,null,null,null,null,null,null,{"$f":"B127","v":"d. Is contraceptive prevalence rate (CPR) included as an indicator in the PRSP?"}]
[null,"e. Are contraceptive supply indicators included in the PRSP?",null,null,null,null,"No",null,null,{"$f":"G128","v":"No"},null,null,null,null,null,null,null,null,null,null,null,null,null,null,{"$f":"B128","v":"e. Are contraceptive supply indicators included in the PRSP?"}]
["\n\n\n","f. Notes about the Poverty Reduction Strategy Paper",null,null,null,null,null,null,null,null,{"$f":"B129","v":"f. Notes about the Poverty Reduction Strategy Paper"},null,null,null,{"$f":"D129","v":0}]
["E. Supply Chain (Capacity)"]
["E1. Have stockouts occurred for any contraceptive at the central* level in the last 12 months?  \n*(The central level refers to the central level warehouse for the public sector.)",null,null,null,null,null,"No",null,null,{"$f":"G131","v":"No"},null,null,null,null,null,null,null,null,null,null,null,null,null,null,{"$f":"A131","v":"E1. Have stockouts occurred for any contraceptive at the central* level in the last 12 months?  \n*(The central level refers to the central level warehouse for the public sector.)"}]
["E2. In the last 12 months, has there ever been a stockout at the central level of any of the contraceptives offered in public sector facilities? (If a method is not intended to be offered in public sector facilities, please indicate that stockouts are not applicable (choose \"N/A\" from the dropdown list).)",null,null,null,null,null,null,null,null,null,null,null,null,null,null,null,null,null,null,null,null,null,null,{"$f":"A132","v":"E2. In the last 12 months, has there ever been a stockout at the central level of any of the contraceptives offered in public sector facilities? (If a method is not intended to be offered in public sector facilities, please indicate that stockouts are not applicable (choose \"N/A\" from the dropdown list).)"}]
[null,"a. Combined oral contraceptives",null,null,null,null,"No",null,null,{"$f":"G133","v":"No"},null,null,null,null,null,null,null,null,null,null,null,null,null,null,{"$f":"B133","v":"a. Combined oral contraceptives"}]
[null,"b. Progestin-only pills",null,null,null,null,"N/A",null,null,"N/A",null,null,null,null,null,null,null,null,null,null,null,null,null,null,"b. Progestin-only pills"]
[null,"c. Hormonal injections",null,null,null,null,"No",null,null,"No",null,null,null,null,null,null,null,null,null,null,null,null,null,null,"c. Hormonal injections"]
[null,"d. Hormonal implants",null,null,null,null,"No",null,null,"No",null,null,null,null,null,null,null,null,null,null,null,null,null,null,"d. Hormonal implants"]
[null,"e. Intrauterine devices (IUDs)",null,null,null,null,"No",null,null,"No",null,null,null,null,null,null,null,null,null,null,null,null,null,null,"e. Intrauterine devices (IUDs)"]
[null,"f. Male condoms",null,null,null,null,"No",null,null,"No",null,null,null,null,null,null,null,null,null,null,null,null,null,null,"f. Male condoms"]
[null,"g. Female condoms",null,null,null,null,"N/A",null,null,"N/A",null,null,null,null,null,null,null,null,null,null,null,null,null,null,"g. Female condoms"]
[null,"h. Emergency contraceptive pills",null,null,null,null,"N/A",null,null,"N/A",null,null,null,null,null,null,null,null,null,null,null,null,null,null,"h. Emergency contraceptive pills"]
[null,"i. CycleBeads",null,null,null,null,"N/A",null,null,"N/A",null,null,null,null,null,null,null,null,null,null,null,null,null,null,"i. CycleBeads"]
[null,"j. Time period\n(mm/yy - mm/yy) (for example, 1/10-12/10) ",null,null,null,"01/10-12/10",null,null,null,null,null,null,null,null,null,null,{"$f":"F142","v":"01/10-12/10"},{"$f":"B142","v":"j. Time period\n(mm/yy - mm/yy) (for example, 1/10-12/10) "}]
[null,"k. Data source\n(for example: Procurement Planning and Monitoring Report, Logistics Management Information System, periodic physical inventory, warehouse reports)",null,null,null,"LMIS",null,null,null,null,null,null,null,null,null,null,{"$f":"F143","v":"LMIS"},{"$f":"B143","v":"k. Data source\n(for example: Procurement Planning and Monitoring Report, Logistics Management Information System, periodic physical inventory, warehouse reports)"}]
["E3. Are stockouts a large problem in your country at the following levels? (i.e., Are they common or do they tend to last for a long time?)\n\n"]
[null,"a. service delivery point level (i.e., public sector health facilities)",null,null,null,null,"No",null,null,{"$f":"G145","v":"No"},null,null,null,null,null,null,null,null,null,null,null,null,null,null,{"$f":"B145","v":"a. service delivery point level (i.e., public sector health facilities)"}]
[null,"b. central level (i.e., central level warehouse for the public sector)",null,null,null,null,"No",null,null,{"$f":"G146","v":"No"},null,null,null,null,null,null,null,null,null,null,null,null,null,null,{"$f":"B146","v":"b. central level (i.e., central level warehouse for the public sector)"}]
["F. Please note any overall comments about challenges and/or successes with contraceptive security in your country.\n\n",null,null,"MOH is increasing its fund to procure contraceptives. LMD/MOH has already started multi-year procurement of contraceptives to assure supply for longer periods and to save time in the bidding process.",null,null,null,null,null,null,{"$f":"A147","v":"F. Please note any overall comments about challenges and/or successes with contraceptive security in your country.\n\n"},null,null,null,{"$f":"D147","v":"MOH is increasing its fund to procure contraceptives. LMD/MOH has already started multi-year procurement of contraceptives to assure supply for longer periods and to save time in the bidding process."}]

{"sheet":"Nicaragua 2011","index":30,"n_rows":147,"n_cols":25,"rows_kept":147,"cut":false,"hidden":false,"merged":[[8,0,8,7],[147,0,147,7],[148,0,150,7],[145,1,145,5],[145,6,145,7],[146,0,146,2],[146,3,146,7],[141,1,141,4],[141,5,141,7],[142,1,142,4],[142,5,142,7],[143,0,143,7],[144,1,144,5],[144,6,144,7],[138,1,138,5],[138,6,138,7],[139,1,139,5],[139,6,139,7],[140,1,140,5],[131,0,131,7],[132,1,132,5],[132,6,132,7],[133,1,133,5],[133,6,133,7],[134,1,134,5],[134,6,134,7],[140,6,140,7],[135,1,135,5],[135,6,135,7],[136,1,136,5],[136,6,136,7],[137,1,137,5],[137,6,137,7],[120,0,120,2],[120,3,120,7],[121,0,121,2],[121,3,121,7],[129,0,129,6],[130,0,130,5],[130,6,130,7],[122,0,122,7],[123,1,123,4],[123,5,123,7],[115,1,115,5],[115,6,115,7],[116,1,116,5],[116,6,116,7],[117,1,117,5],[117,6,117,7],[118,2,118,4],[118,5,118,7],[119,0,119,4],[119,5,119,7],[110,1,110,5],[110,6,110,7],[111,1,111,5],[111,6,111,7],[112,1,112,5],[112,6,112,7],[113,1,113,5],[113,6,113,7],[114,1,114,5],[114,6,114,7],[104,1,104,5],[104,6,104,7],[105,1,105,5],[105,6,105,7],[106,3,106,7],[107,0,107,7],[108,1,108,5],[108,6,108,7],[109,1,109,5],[109,6,109,7],[98,1,98,2],[98,4,98,6],[99,1,99,2],[99,4,99,6],[100,1,100,2],[100,4,100,6],[101,0,101,7],[102,0,102,7],[103,1,103,5],[103,6,103,7],[94,2,94,3],[94,4,94,5],[94,6,94,7],[95,2,95,3],[95,4,95,5],[95,6,95,7],[96,0,96,7],[97,0,97,2],[97,4,97,6],[88,0,88,6],[89,1,89,2],[89,3,89,7],[90,0,90,6],[91,1,91,2],[92,1,92,3],[92,4,92,5],[92,6,92,7],[93,2,93,3],[93,4,93,5],[93,6,93,7],[83,0,83,4],[83,5,83,7],[84,1,84,3],[84,4,84,7],[85,1,85,3],[85,4,85,7],[86,0,86,6],[87,1,87,2],[87,3,87,7],[77,0,77,2],[77,3,77,7],[78,0,78,6],[79,0,79,6],[80,0,80,2],[81,0,82,0],[81,1,81,2],[81,3,81,4],[81,6,81,7],[82,3,82,4],[82,6,82,7],[72,1,72,2],[72,3,72,4],[73,1,73,2],[73,3,73,4],[74,1,74,2],[74,3,74,4],[75,1,75,2],[75,3,75,4],[76,1,76,2],[76,3,76,4],[67,1,67,2],[67,3,67,4],[68,1,68,2],[68,3,68,4],[69,1,69,2],[69,3,69,4],[70,1,70,2],[70,3,70,4],[71,1,71,2],[71,3,71,4],[61,0,61,2],[61,3,61,7],[62,0,62,6],[63,0,63,7],[64,0,64,2],[64,3,64,4],[65,1,65,2],[65,3,65,4],[66,1,66,2],[66,3,66,4],[55,0,55,4],[55,6,55,7],[56,0,56,4],[56,6,56,7],[58,0,58,4],[58,5,58,7],[59,1,59,4],[59,5,59,7],[60,2,60,4],[60,5,60,7],[41,1,41,2],[42,3,42,7],[43,1,43,2],[51,1,51,2],[53,0,53,7],[54,0,54,4],[54,6,54,7],[45,0,45,7],[46,1,46,2],[47,1,47,2],[48,3,48,7],[49,1,49,2],[50,1,50,2],[32,0,32,7],[33,1,33,3],[34,1,34,3],[35,0,35,7],[36,0,36,6],[37,0,37,7],[38,1,38,2],[39,1,39,2],[40,3,40,7],[26,0,26,6],[27,0,27,2],[27,3,27,4],[28,0,28,5],[28,6,28,7],[29,0,29,3],[29,6,29,7],[30,0,30,6],[31,0,31,6],[20,1,20,2],[20,5,20,7],[21,1,21,2],[21,5,21,7],[22,1,22,2],[22,5,22,7],[23,0,23,6],[24,0,24,6],[25,0,25,2],[15,1,15,2],[15,5,15,7],[16,1,16,2],[16,5,16,7],[17,1,17,2],[17,5,17,7],[18,1,18,2],[18,5,18,7],[19,1,19,2],[19,5,19,7],[9,0,9,7],[10,0,10,6],[11,0,11,6],[12,1,12,2],[12,3,12,7],[13,0,13,2],[13,3,13,7],[14,1,14,2],[14,5,14,7],[7,0,7,2],[7,3,7,5],[7,6,7,7],[0,0,0,7],[1,0,1,2],[1,3,1,4],[2,0,2,7],[3,3,3,4],[3,5,3,7],[4,0,4,2],[5,0,5,2],[127,1,127,5],[127,6,127,7],[128,1,128,2],[128,3,128,7],[124,1,124,5],[124,6,124,7],[125,1,125,5],[125,6,125,7],[126,1,126,5],[126,6,126,7]]}
[null,null,null,null,null,null,null,null,"Columns I-Y are meant to be hidden. They exist because they allow for the dropdown list options. They also allow for merged cells to autofit properly in terms of row height. This should work if all columns remain at their correct widths.","g-h",null,"a-e merged","E-F merged","e-h","0 times",null,null,"The government (e.g., Central Medical Stores, MOH logistics unit, MOH procurement unit)",null,null,null,null,"Yes","a-h","January"]
[null,null,null,null,null,null,null,null,null,null,"A-c",null,null,null,"1-2 times","b-d merged",null,"Third-party agent (e.g., UNFPA, Crown Agents)","d-e merged","d-f merged","e-f merged","e-g merged","No",null,"February"]
[null,null,null,null,null,null,null,null,null,null,null,null,null,null,"3-5 times",null,null,"The government and a third-party agent",null,null,null,null,null,null,"March"]
[null,null,null,null,null,null,null,null,null,null,null,null,null,null,"6 or more times",null,null,"Other",null,null,null,null,"N/A",null,"April"]
["To jump to the Introduction sheet, click here.",null,null,null,null,null,null,null,null,null,null,null,null,null,null,null,null,null,null,null,null,null,"Don't know",null,"May"]
[null,null,null,null,null,null,null,null,null,null,null,null,null,null,"N/A",null,null,"N/A",null,null,null,null,null,null,"June"]
["Contraceptive Security (CS) Indicators 2011 Data ",null,null,null,null,null,null,null,null,null,null,null,null,null,"Don't know",null,null,"Don't know",null,null,null,null,null,null,"July"]
["Country: Nicaragua",null,null,null,null,null,null,null,null,{"$f":"G8","v":0},{"$f":"A8","v":"Country: Nicaragua"},null,null,null,null,"or c-d",null,null,null,{"$f":"D8","v":0},null,null,null,null,"August"]
["The CS Indicators are presented in the following sections:\n\n               A. leadership & cooordination               B. finance & procurement               C. commodities               D. policies               E. supply chain",null,null,null,null,null,null,null,null,{"$f":"G9","v":0},{"$f":"A9","v":"The CS Indicators are presented in the following sections:\n\n               A. leadership & cooordination               B. finance & procurement               C. commodities               D. policies               E. supply chain"},null,null,null,"d-h",null,"f-h merged",null,{"$f":"D9","v":0},null,null,null,null,null,"September"]
["\nNotes:\n  -  Respondents' answers are indicated in the white spaces. \n  -  N/A = not applicable. Don't know = the respondent either indicated they did not know or left the answer blank.\n  -  Some questions required respondents to choose from a dropdown list of options; in these cases the dropdown arrow will \n     appear when you click on the cell. \n  -  There may be a few inserted comments. (If you cannot already see them, click on Review tab - Comments group - Show All Comments in newer \n       versions of Excel or View - Comments in older versions of Excel.)\n  -  If the answer is cut off, you can either manually adjust the row height or autofit the row height in order to see the whole \n     response. (To autofit the row height, select the answer(s) and go to Home tab - Cells group - Format - Autofit Row Height in newer versions of Excel or \n      Format - Row - Autofit in older versions of Excel.)\n",null,null,null,null,null,null,null,"a-g",null,null,null,null,null,null,null,null,"a-e merged",null,null,null,null,null,{"$f":"A10","v":"\nNotes:\n  -  Respondents' answers are indicated in the white spaces. \n  -  N/A = not applicable. Don't know = the respondent either indicated they did not know or left the answer blank.\n  -  Some questions required respondents to choose from a dropdown list of options; in these cases the dropdown arrow will \n     appear when you click on the cell. \n  -  There may be a few inserted comments. (If you cannot already see them, click on Review tab - Comments group - Show All Comments in newer \n       versions of Excel or View - Comments in older versions of Excel.)\n  -  If the answer is cut off, you can either manually adjust the row height or autofit the row height in order to see the whole \n     response. (To autofit the row height, select the answer(s) and go to Home tab - Cells group - Format - Autofit Row Height in newer versions of Excel or \n      Format - Row - Autofit in older versions of Excel.)\n"},"October"]
["A. Leadership and Coordination",null,null,null,null,null,null,null,null,null,null,null,null,null,null,null,null,null,null,null,null,null,null,null,"November"]
["A1. Is there a national committee that works on contraceptive security? (Please select from the dropdown list.)\n(Committee should have some aspect of contraceptive security as part of its Terms of Reference, even if it is known by a different name, for example: Family Planning, Reproductive Health, Maternal Mortality, Essential Medicine Committee, etc.)  ",null,null,null,null,null,null,"Yes",{"$f":"A12","v":"A1. Is there a national committee that works on contraceptive security? (Please select from the dropdown list.)\n(Committee should have some aspect of contraceptive security as part of its Terms of Reference, even if it is known by a different name, for example: Family Planning, Reproductive Health, Maternal Mortality, Essential Medicine Committee, etc.)  "},null,null,null,null,null,null,null,null,null,null,null,null,null,null,null,"December"]
[null,"a. What is the name of the committee?",null,"Comité Nacional para la Disponibilidad Asegurada de Insumos Anticonceptivos (DAIA) Nicaragua  (National Contraceptive Security Committee)",null,null,null,null,null,null,{"$f":"B13","v":"a. What is the name of the committee?"},{"$f":"D13","v":"Comité Nacional para la Disponibilidad Asegurada de Insumos Anticonceptivos (DAIA) Nicaragua  (National Contraceptive Security Committee)"},null,null,{"$f":"D13","v":"Comité Nacional para la Disponibilidad Asegurada de Insumos Anticonceptivos (DAIA) Nicaragua  (National Contraceptive Security Committee)"}]
["A2. Are the following organizations represented on the committee?",null,null,"(Y/N \ndropdown)",null,null,null,null,null,null,{"$f":"A14","v":"A2. Are the following organizations represented on the committee?"},null,null,null,null,null,null,null,null,null,null,null,null,null,"Don't know"]
[null,"a. Social marketing",null,"Yes","If yes, specify name(s) of organizations","PSI/PASMO (Pan American Social Marketing Organization)",null,null,null,null,{"$f":"B15","v":"a. Social marketing"},null,null,null,null,null,{"$f":"F15","v":"PSI/PASMO (Pan American Social Marketing Organization)"}]
[null,"b. NGO (for example: service delivery, advocacy, Planned Parenthood affiliate, Marie Stopes affiliate, faith-based organizations, etc.)",null,"Yes","If yes, specify name(s) of organizations","PROFAMILIA (Asociación Pro-Bienestar de la Familia Nicaragüense - Nicaraguan Pro Family Wellbeing Association), Women's Center IXCHEN (IXCHEN), Luisa Amanda Espinoza Association of Nicaraguan Women (AMNLAE) ",null,null,null,null,"b. NGO (for example: service delivery, advocacy, Planned Parenthood affiliate, Marie Stopes affiliate, faith-based organizations, etc.)",null,null,null,null,null,"PROFAMILIA (Asociación Pro-Bienestar de la Familia Nicaragüense - Nicaraguan Pro Family Wellbeing Association), Women's Center IXCHEN (IXCHEN), Luisa Amanda Espinoza Association of Nicaraguan Women (AMNLAE) "]
[null,"c. Commercial sector (for example: pharmacy associations, manufacturers, etc.)",null,"No","If yes, specify name(s) of organizations",null,null,null,null,null,"c. Commercial sector (for example: pharmacy associations, manufacturers, etc.)",null,null,null,null,null,0]
[null,"d. Donors",null,"Yes","If yes, specify name(s) of donors","UNFPA, USAID ",null,null,null,null,"d. Donors",null,null,null,null,null,"UNFPA, USAID "]
[null,"e. UN agencies",null,"Yes","If yes, specify name(s) of agencies","UNFPA",null,null,null,null,"e. UN agencies",null,null,null,null,null,"UNFPA"]
[null,"f. Ministry of Health (for example: logistics, reproductive health, family planning, maternal and child health, HIV/AIDS, pharmacy units, etc.)",null,"Yes","If yes, specify name(s) of units","DCAIS (Central Directorate for Contraceptives and Health Supplies), DGECA (Division of Health Services, FP), DGPD (Division of Planning and Development and External Cooperation) ",null,null,null,null,"f. Ministry of Health (for example: logistics, reproductive health, family planning, maternal and child health, HIV/AIDS, pharmacy units, etc.)",null,null,null,null,null,"DCAIS (Central Directorate for Contraceptives and Health Supplies), DGECA (Division of Health Services, FP), DGPD (Division of Planning and Development and External Cooperation) "]
[null,"g. Central Medical Store or Central Warehouse",null,"No","If yes, specify",null,null,null,null,null,"g. Central Medical Store or Central Warehouse",null,null,null,null,null,0]
[null,"h. Ministry of Finance or Ministry of Planning ",null,"No","If yes, specify",null,null,null,null,null,"h. Ministry of Finance or Ministry of Planning ",null,null,null,null,null,0]
[null,"i. Other (for example: partners)",null,"Yes","If yes, specify","PATH, other USAID projects",null,null,null,null,"i. Other (for example: partners)",null,null,null,null,null,"PATH, other USAID projects"]
["A3. How many times did the committee meet during the last year? (0, 1-2, 3-5, or 6+)  (Please select from the dropdown.)",null,null,null,null,null,null,"6 or more times",{"$f":"A24","v":"A3. How many times did the committee meet during the last year? (0, 1-2, 3-5, or 6+)  (Please select from the dropdown.)"}]
["A4. Does the committee have legal status?  (Please select from the dropdown.)                                  ",null,null,null,null,null,null,"Yes",{"$f":"A25","v":"A4. Does the committee have legal status?  (Please select from the dropdown.)                                  "}]
["A5. Is there a Contraceptive Security \"champion\"? (someone who consistently brings up and advocates for contraceptive supplies)",null,null,"Yes","If yes, specify person's organization","Ministry of Health (DGECA and DCAIS) ","Specify person's job title","General Director ",null,null,{"$f":"A26","v":"A5. Is there a Contraceptive Security \"champion\"? (someone who consistently brings up and advocates for contraceptive supplies)"}]
["B. Finance and Procurement (Capital)"]
["B1. What is the timeline of the country's fiscal year?",null,null,"Beginning month",null,"January","Ending month","December",null,null,{"$f":"B28","v":0}]
["B2. What was the estimated dollar value of contraceptives needed to be procured for the public sector for the most recent complete fiscal year? (in USD currency)\n(for example, to cover the needs for the '09-'10 fiscal year)",null,null,null,null,null,1043694,null,null,{"$f":"G29","v":1043694},null,null,{"$f":"E29","v":0},null,null,null,null,null,null,null,null,null,null,null,{"$f":"A29","v":"B2. What was the estimated dollar value of contraceptives needed to be procured for the public sector for the most recent complete fiscal year? (in USD currency)\n(for example, to cover the needs for the '09-'10 fiscal year)"}]
["B3. When was the last forecast/quantification conducted? (mm/yy)",null,null,null,"06/10","Who conducted it? (Specify organization.)","Ministry of Health",null,null,{"$f":"G30","v":"Ministry of Health"},null,null,{"$f":"E30","v":"06/10"},null,null,null,null,null,null,null,null,null,null,null,{"$f":"A30","v":"B3. When was the last forecast/quantification conducted? (mm/yy)"}]
["B4. Is there a government budget line item for the procurement of contraceptives?  (Please select from the dropdown list.)",null,null,null,null,null,null,"Yes",{"$f":"A31","v":"B4. Is there a government budget line item for the procurement of contraceptives?  (Please select from the dropdown list.)"}]
["B5. Were government funds allocated for contraceptive procurement for the public sector in the most recent complete fiscal year? (This question refers to funds planned to be spent on contraceptives, whether or not they ended up being spent.) \n\n(Government funds include internally generated funds, basket funds, World Bank credits or loans, and other funds donors gave to the government for their use.) \n",null,null,null,null,null,null,"Yes",{"$f":"A32","v":"B5. Were government funds allocated for contraceptive procurement for the public sector in the most recent complete fiscal year? (This question refers to funds planned to be spent on contraceptives, whether or not they ended up being spent.) \n\n(Government funds include internally generated funds, basket funds, World Bank credits or loans, and other funds donors gave to the government for their use.) \n"}]
["B6. Please complete the table below regarding government allocations for contraceptive procurement.",null,null,null,null,null,null,null,null,null,null,null,null,null,null,null,null,null,null,null,null,null,null,{"$f":"A33","v":"B6. Please complete the table below regarding government allocations for contraceptive procurement."}]
[null,null,null,null,"Amount allocated \n(in USD)","Time period during which allocations were supposed to be spent \n(mm/yy-mm/yy)\n(should ideally be the most recent\ncomplete fiscal year ['09-'10])","Data source \n(for example: Ministry records)","Comments",null,null,{"$f":"A34","v":0}]
[null,"Government funds allocated for contraceptive procurement\n(funds originally designated for contraceptives, whether or not they ended up being spent on them)",null,null,321935,"01/10-12/10","Ministry of Health",null,null,null,{"$f":"#REF!","v":{"$error":"#REF!"}}]
[]
["B7. Were government funds spent on contraceptive procurement for the public sector in the most recent complete fiscal year? \n(Government funds include internally generated funds, basket funds, World Bank credits or loans, and other funds donors gave to the government for their use.)",null,null,null,null,null,null,"Yes",{"$f":"A37","v":"B7. Were government funds spent on contraceptive procurement for the public sector in the most recent complete fiscal year? \n(Government funds include internally generated funds, basket funds, World Bank credits or loans, and other funds donors gave to the government for their use.)"}]
["B8. Please complete the table below to indicate government expenditures on contraceptive procurement, by source, in the most recent complete fiscal year. \n(This is how much was spent on contraceptive procurement (not what was allocated). How much of this spending was provided from each source?)",null,null,null,null,null,null,null,null,null,null,null,null,null,null,null,null,null,null,null,null,null,null,{"$f":"A38","v":"B8. Please complete the table below to indicate government expenditures on contraceptive procurement, by source, in the most recent complete fiscal year. \n(This is how much was spent on contraceptive procurement (not what was allocated). How much of this spending was provided from each source?)"}]
[null,"Source of government funds spent on contraceptive procurement for the public sector",null,"Was this source used?\n(Y/N)","Amount spent \n(in USD)","Time period (mm/yy-mm/yy)\n(should be the same for all sources of funds & ideally be the most recent\ncomplete fiscal year ['09-'10])","Data source \n(for example: Contraceptive Procurement Table, PipeLine, etc.)","Comments",null,null,{"$f":"A39","v":0}]
[null,"a. Internally generated funds spent on contraceptive procurement",null,"Yes",321935,"01/10-12/10","Ministry of Health",null,null,null,{"$f":"B40","v":"a. Internally generated funds spent on contraceptive procurement"}]
[null,null,"i. Specify source(s) of internally generated funds spent (for example, from taxes or user fees)","Taxes",null,null,null,null,null,null,{"$f":"C41","v":"i. Specify source(s) of internally generated funds spent (for example, from taxes or user fees)"},null,null,null,{"$f":"D41","v":"Taxes"}]
[null,"b. Total of all other government funds spent on contraceptive procurement (basket funds, World Bank credits or loans, and other funds donors gave to the government [e.g., direct budget support])",null,"Yes",721759,"01/10-12/10","Ministry of Health",null,null,null,{"$f":"B42","v":"b. Total of all other government funds spent on contraceptive procurement (basket funds, World Bank credits or loans, and other funds donors gave to the government [e.g., direct budget support])"}]
[null,null,"i. Specify source(s) of other government funds spent (for example: basket funding or specific donor)","Basket fund. (The funders in the basket are UNFPA, the World Bank, Finland, Holland, and Spain.)\n",null,null,null,null,null,null,{"$f":"C43","v":"i. Specify source(s) of other government funds spent (for example: basket funding or specific donor)"},null,null,null,{"$f":"D43","v":"Basket fund. (The funders in the basket are UNFPA, the World Bank, Finland, Holland, and Spain.)\n"}]
[null,"c. TOTAL government funds spent on contraceptive procurement\nThis will auto-calculate.  (It will sum a & b above.)",null,null,{"$f":"E40+E42","v":1043694},null,null,null,null,null,{"$f":"B44","v":"c. TOTAL government funds spent on contraceptive procurement\nThis will auto-calculate.  (It will sum a & b above.)"}]
[null,null,null,null,null,null,null,null,null,null,{"$f":"A45","v":0}]
["B9. Please complete the table below to indicate donor expenditures on contraceptive procurement in the most recent complete fiscal year.\n",null,null,null,null,null,null,null,null,null,null,null,null,null,null,null,null,null,null,null,null,null,null,{"$f":"A46","v":"B9. Please complete the table below to indicate donor expenditures on contraceptive procurement in the most recent complete fiscal year.\n"}]
["\n","Source of donations and donor funds spent on contraceptive procurement for the public sector",null,"Was this a source?\n(Y/N)","Amount of money spent on these procurements \n(in USD)","Time period (mm/yy-mm/yy)\n(should be the same for all sources of funds & ideally be the most recent\ncomplete fiscal year ['09-'10])","Data source \n(for example:  Donor records, Contraceptive Procurement Table, PipeLine, RHInterchange, etc.","Comments",null,null,{"$f":"A47","v":"\n"}]
[null,"a. In-kind donations of contraceptives",null,"No",0,"01/10-12/10","Ministry of Health",null,null,null,{"$f":"B48","v":"a. In-kind donations of contraceptives"}]
[null,null,"i. Specify source(s) of in-kind donations ","N/A",null,null,null,null,null,null,{"$f":"C49","v":"i. Specify source(s) of in-kind donations "},null,null,null,{"$f":"D49","v":"N/A"}]
[null,"b. Global Fund donations used to procure condoms",null,"No",0,"01/10-12/10","RHInterchange",null,null,null,{"$f":"B50","v":"b. Global Fund donations used to procure condoms"}]
[null,"c. Global Fund donations used to procure contraceptives besides condoms",null,"No",0,"01/10-12/10","RHInterchange",null,null,null,{"$f":"B51","v":"c. Global Fund donations used to procure contraceptives besides condoms"}]
[null,"d. TOTAL value of in-kind donations and Global Fund donations spent on contraceptive procurement\nThis will auto-calculate.  (It will sum a-c above.)",null,null,{"$f":"E48+E50+E51","v":0},null,null,null,null,null,{"$f":"B52","v":"d. TOTAL value of in-kind donations and Global Fund donations spent on contraceptive procurement\nThis will auto-calculate.  (It will sum a-c above.)"}]
[null,null,null,null,null,null,null,null,null,null,{"$f":"A53","v":0}]
["The answers to B10 and B11 should calculate automatically based on the information you provided. Please review the answers to ensure they make sense to you, and if you have additional information to add, please note it in the comments boxes.\n\nIf the answers do not calculate automatically, please provide any relevant information you may have in the comments boxes.\n",null,null,null,null,null,null,null,null,null,null,null,null,null,null,null,null,null,null,null,null,null,null,{"$f":"A54","v":"The answers to B10 and B11 should calculate automatically based on the information you provided. Please review the answers to ensure they make sense to you, and if you have additional information to add, please note it in the comments boxes.\n\nIf the answers do not calculate automatically, please provide any relevant information you may have in the comments boxes.\n"}]
["B10. Government share of funds spent on contraceptive procurement for the public sector - \nOf the total amount spent on contraceptives for the public sector in the most recent complete fiscal year (including government and donor funds), what percent was covered by government funds (including internally generated funds, basket funds, World Bank credits or loans, and other funds given to the government)? \n\nThis will auto-calculate. (It contains the following formula: Total government spending (Question B8c) / Grand total of all spending for public sector contraceptives from the government and donors (Questions B8c+B9d))",null,null,null,null,{"$f":"E44/(E44+E52)","v":1},null,null,null,{"$f":"G55","v":0},null,null,null,null,null,null,null,{"$f":"A55","v":"B10. Government share of funds spent on contraceptive procurement for the public sector - \nOf the total amount spent on contraceptives for the public sector in the most recent complete fiscal year (including government and donor funds), what percent was covered by government funds (including internally generated funds, basket funds, World Bank credits or loans, and other funds given to the government)? \n\nThis will auto-calculate. (It contains the following formula: Total government spending (Question B8c) / Grand total of all spending for public sector contraceptives from the government and donors (Questions B8c+B9d))"}]
["B11. Total expenditures on public sector contraceptives as percent of amount that needed to be procured -\nOf the estimated value of the contraceptives needed to be procured for the public sector for the most recent complete fiscal year, what percent was provided by any source (whether government or donor)? \n\nThis will auto-calculate. (It contains the following formula: Grand total of all spending for public sector contraceptives from the government and donors (Questions B8c+B9d) / Value of estimated need for procurement (Question B2))",null,null,null,null,{"$f":"(E44+E52)/G29","v":1},null,null,null,{"$f":"G56","v":0},null,null,null,null,null,null,null,{"$f":"A56","v":"B11. Total expenditures on public sector contraceptives as percent of amount that needed to be procured -\nOf the estimated value of the contraceptives needed to be procured for the public sector for the most recent complete fiscal year, what percent was provided by any source (whether government or donor)? \n\nThis will auto-calculate. (It contains the following formula: Grand total of all spending for public sector contraceptives from the government and donors (Questions B8c+B9d) / Value of estimated need for procurement (Question B2))"}]
["B12. If B11 did not calculate automatically, please answer the following question:\nWas there a funding gap for the public sector in the last complete fiscal year (e.g., 09-'10 fiscal year)?\n(Please select from the dropdown list.)",null,null,null,null,null,null,null,null,{"$f":"G57","v":0},null,null,null,null,null,null,null,{"$f":"A57","v":"B12. If B11 did not calculate automatically, please answer the following question:\nWas there a funding gap for the public sector in the last complete fiscal year (e.g., 09-'10 fiscal year)?\n(Please select from the dropdown list.)"}]
[null,null,null,null,null,null,null,null,null,null,{"$f":"A58","v":0}]
["B13. If the government financed any contraceptive procurement in the most recent complete fiscal year, which entity conducted the procurement(s)? (Please select from the dropdown.)",null,null,null,null,"The government (e.g., Central Medical Stores, MOH logistics unit, MOH procurement unit)",null,null,null,null,null,null,null,null,null,null,{"$f":"F59","v":"The government (e.g., Central Medical Stores, MOH logistics unit, MOH procurement unit)"},{"$f":"A59","v":"B13. If the government financed any contraceptive procurement in the most recent complete fiscal year, which entity conducted the procurement(s)? (Please select from the dropdown.)"}]
[null,"a. Specify entity",null,null,null,"DCAIS (Central Directorate for Contraceptives and Health Supplies)",null,null,null,null,null,null,{"$f":"E60","v":0},null,null,null,{"$f":"F60","v":"DCAIS (Central Directorate for Contraceptives and Health Supplies)"},{"$f":"B60","v":"a. Specify entity"}]
[null,null,"i. Is this a parastatal?",null,null,"No",null,null,null,null,null,null,null,null,null,null,{"$f":"F61","v":"No"},{"$f":"C61","v":"i. Is this a parastatal?"}]
["B14. Please note any additional comments about finance and procurement.\n",null,null,"Contraceptives are procured via a third-party agreement with UNFPA.",null,null,null,null,null,null,{"$f":"A62","v":"B14. Please note any additional comments about finance and procurement.\n"},null,null,null,{"$f":"D62","v":"Contraceptives are procured via a third-party agreement with UNFPA."}]
["C. Commodities"]
["C1. Are the following contraceptive methods offered through the commercial sector, public sector, NGOs, or social marketing? (Please indicate which methods are intended to be offered. This question is not asking whether the method is in stock.) \n(Please select from the dropdown list.)",null,null,null,null,null,null,null,null,null,null,null,null,null,null,null,null,null,null,null,null,null,null,{"$f":"A64","v":"C1. Are the following contraceptive methods offered through the commercial sector, public sector, NGOs, or social marketing? (Please indicate which methods are intended to be offered. This question is not asking whether the method is in stock.) \n(Please select from the dropdown list.)"}]
["Contraceptive Method",null,null,"Commercial Sector",null,"Public Sector","NGO","Social Marketing",null,null,{"$f":"A65","v":"Contraceptive Method"}]
[null,"a. Combined oral contraceptives (estrogen + progestin - for  example, LoFemenol, Microgynon)",null,"Yes",null,"Yes","Yes","Yes",null,null,{"$f":"B66","v":"a. Combined oral contraceptives (estrogen + progestin - for  example, LoFemenol, Microgynon)"}]
[null,"b. Progestin-only pills (for example, Ovrette, Microlut)",null,"Yes",null,"No","No","Yes",null,null,{"$f":"B67","v":"b. Progestin-only pills (for example, Ovrette, Microlut)"}]
[null,"c. Hormonal injections (for example, DepoProvera, Noristerat)",null,"Yes",null,"Yes","Yes","Yes",null,null,"c. Hormonal injections (for example, DepoProvera, Noristerat)"]
[null,"d. Hormonal implants (for example, Jadelle, Implanon)",null,"Yes",null,"No","Yes","Yes",null,null,"d. Hormonal implants (for example, Jadelle, Implanon)"]
[null,"e. Intrauterine devices (IUDs) (for example, Optima Copper T)",null,"Yes",null,"Yes","Yes","Yes",null,null,"e. Intrauterine devices (IUDs) (for example, Optima Copper T)"]
[null,"f. Male condoms",null,"Yes",null,"Yes","Yes","Yes",null,null,"f. Male condoms"]
[null,"g. Female condoms",null,"Don't know",null,"No","No","No",null,null,"g. Female condoms"]
[null,"h. Emergency contraceptive pills (for example, Postinor)",null,"Yes",null,"No","Yes","Yes",null,null,"h. Emergency contraceptive pills (for example, Postinor)"]
[null,"i. Long-acting permanent method for males (vasectomy)",null,"Yes",null,"Yes","Yes","Yes",null,null,"i. Long-acting permanent method for males (vasectomy)"]
[null,"j. Long-acting permanent method for females (tubal ligation)",null,"Yes",null,"Yes","Yes","Yes",null,null,"j. Long-acting permanent method for females (tubal ligation)"]
[null,"k. CycleBeads",null,"No",null,"Yes","No","No",null,null,"k. CycleBeads"]
[null,"l. Other contraceptive methods - specify \n(Please provide the name of the other contraceptive(s) offered, by sector.)",null,null,null,null,null,null,null,null,"l. Other contraceptive methods - specify \n(Please provide the name of the other contraceptive(s) offered, by sector.)"]
["C2. Please note any comments about the commodities offered.",null,null,"The MOH prescribes emergency contraception but does not provide the packaged product itself. ",null,null,null,null,null,null,{"$f":"A78","v":"C2. Please note any comments about the commodities offered."},null,null,null,{"$f":"D78","v":"The MOH prescribes emergency contraception but does not provide the packaged product itself. "}]
["D. Policies (Commitment)"]
["D1. Is there a contraceptive security or reproductive health commodity security strategy or is contraceptive security explicitly included in a country strategy? (Please select from the dropdown list.)",null,null,null,null,null,null,"Yes",{"$f":"A80","v":"D1. Is there a contraceptive security or reproductive health commodity security strategy or is contraceptive security explicitly included in a country strategy? (Please select from the dropdown list.)"}]
["IF NO, SKIP TO QUESTION D2."]
[null,"Strategy name",null,"Years Covered (including strategy updates)",null,"Is the strategy formally approved by the Ministry?","Is the contraceptive security strategy being implemented?",null,null,{"$f":"G82","v":"Is the contraceptive security strategy being implemented?"},{"$f":"B82","v":"Strategy name"},null,{"$f":"E82","v":0},null,null,null,null,null,{"$f":"D82","v":"Years Covered (including strategy updates)"}]
[null,"a","Plan DAIA 2009-2011 (Contraceptive Security Plan)","2009-2011",null,"Yes","Yes",null,null,{"$f":"G83","v":"Yes"},{"$f":"B83","v":"a"},null,{"$f":"E83","v":0},null,null,null,null,null,{"$f":"D83","v":"2009-2011"}]
["D2. Are any family planning commodities subject to duties, import taxes, or other fees?",null,null,null,null,"No",null,null,null,null,null,null,null,null,null,null,{"$f":"F84","v":"No"},{"$f":"A84","v":"D2. Are any family planning commodities subject to duties, import taxes, or other fees?"}]
[null,"a. If yes, for which sectors (public, NGO, social marketing, commercial)?",null,null,"N/A",null,null,null,null,null,null,null,{"$f":"E85","v":"N/A"},{"$f":"E85","v":"N/A"},null,null,null,{"$f":"B85","v":"a. If yes, for which sectors (public, NGO, social marketing, commercial)?"}]
[null,"b. If yes, how much are the duties, taxes, or fees?",null,null,"N/A",null,null,null,null,null,null,null,null,{"$f":"E86","v":"N/A"},null,null,null,{"$f":"B86","v":"b. If yes, how much are the duties, taxes, or fees?"}]
["D3. Are there policies that hinder the ability of the private sector (commercial sector, NGOs, or social marketing) to provide contraceptive methods (for example: price controls, distribution limitations, taxes/duties, advertising bans, etc.)?",null,null,null,null,null,null,"No",{"$f":"A87","v":"D3. Are there policies that hinder the ability of the private sector (commercial sector, NGOs, or social marketing) to provide contraceptive methods (for example: price controls, distribution limitations, taxes/duties, advertising bans, etc.)?"}]
[null,"a. If yes, describe the policies.",null,"N/A",null,null,null,null,null,null,{"$f":"B88","v":"a. If yes, describe the policies."},null,null,null,{"$f":"D88","v":"N/A"}]
["D4. Are there policies that enable the private sector (commercial sector, NGOs, or social marketing) to provide contraceptive methods?",null,null,null,null,null,null,"Yes",{"$f":"A89","v":"D4. Are there policies that enable the private sector (commercial sector, NGOs, or social marketing) to provide contraceptive methods?"}]
[null,"a. If yes, describe the policies.",null,"Health Policy, Family Planning Norms ",null,null,null,null,null,null,{"$f":"B90","v":"a. If yes, describe the policies."},null,null,null,{"$f":"D90","v":"Health Policy, Family Planning Norms "}]
["D5. Do policies or regulations exist that restrict who can sell or dispense particular contraceptive methods?\n",null,null,null,null,null,null,"No",{"$f":"A91","v":"D5. Do policies or regulations exist that restrict who can sell or dispense particular contraceptive methods?\n"}]
[null,"Please note any restrictions in the following table."]
[null,"Contraceptive Method(s)",null,null,"Describe any public sector restriction on who is allowed to sell or dispense the method",null,"Describe any private sector restriction on who is allowed to sell or dispense the method",null,null,{"$f":"G93","v":"Describe any private sector restriction on who is allowed to sell or dispense the method"},null,null,null,null,null,{"$f":"B93","v":"Contraceptive Method(s)"},null,null,null,null,{"$f":"E93","v":"Describe any public sector restriction on who is allowed to sell or dispense the method"}]
[null,"a",null,null,null,null,null,null,null,{"$f":"G94","v":0},null,null,{"$f":"E94","v":0},null,null,{"$f":"C94","v":0},null,null,null,null,{"$f":"E94","v":0}]
[null,"b",null,null,null,null,null,null,null,{"$f":"G95","v":0},null,null,{"$f":"E95","v":0},null,null,{"$f":"C95","v":0},null,null,null,null,{"$f":"E95","v":0}]
[null,"c",null,null,null,null,null,null,null,{"$f":"G96","v":0},null,null,{"$f":"E96","v":0},null,null,{"$f":"C96","v":0},null,null,null,null,{"$f":"E96","v":0}]
[null,null,null,null,null,null,null,null,null,null,{"$f":"C97","v":0}]
["D6. Does the country have laws, regulations, or policies that make it difficult for the following sub-populations to access effective family planning services?",null,null,"Y/N","If yes, describe laws/regulations/policies affecting access ",null,null,"Are the rules/policies implemented?",null,null,{"$f":"A98","v":"D6. Does the country have laws, regulations, or policies that make it difficult for the following sub-populations to access effective family planning services?"},null,null,null,null,null,null,null,null,null,null,{"$f":"E98","v":"If yes, describe laws/regulations/policies affecting access "}]
[null,"a. Unmarried people",null,"No",null,null,null,null,null,null,{"$f":"B99","v":"a. Unmarried people"},null,{"$f":"E99","v":0},null,null,null,null,null,null,null,null,{"$f":"E99","v":0}]
[null,"b. Young people",null,"No",null,null,null,null,null,null,{"$f":"B100","v":"b. Young people"},null,{"$f":"E100","v":0},null,null,null,null,null,null,null,null,{"$f":"E100","v":0}]
[null,"c. Other",null,"No",null,null,null,null,null,null,{"$f":"B101","v":"c. Other"},null,{"$f":"E101","v":0},null,null,null,null,null,null,null,null,{"$f":"E101","v":0}]
[null,null,null,null,null,null,null,null,null,null,{"$f":"C102","v":0}]
["D7. Are there charges* to the client in the public sector for family planning:\n*(This question refers to charges by policy, not under-the-table charges.)\n",null,null,null,null,null,null,null,null,null,null,null,null,null,null,null,null,null,null,null,null,null,null,{"$f":"A103","v":"D7. Are there charges* to the client in the public sector for family planning:\n*(This question refers to charges by policy, not under-the-table charges.)\n"}]
[null,"a. Services?",null,null,null,null,"No",null,null,{"$f":"G104","v":"No"},null,null,null,null,null,null,null,null,null,null,null,null,null,null,{"$f":"B104","v":"a. Services?"}]
[null,"b. Commodities?",null,null,null,null,"No",null,null,{"$f":"G105","v":"No"},null,null,null,null,null,null,null,null,null,null,null,null,null,null,{"$f":"B105","v":"b. Commodities?"}]
[null,"c. If yes, are there exemptions for people who cannot afford to pay?",null,null,null,null,"N/A",null,null,{"$f":"G106","v":"N/A"},null,null,null,null,null,null,null,null,null,null,null,null,null,null,{"$f":"B106","v":"c. If yes, are there exemptions for people who cannot afford to pay?"}]
[null,null,"i. If yes, describe the exemptions.","N/A",null,null,null,null,null,null,{"$f":"C107","v":"i. If yes, describe the exemptions."},null,null,null,{"$f":"D107","v":"N/A"}]
["D8. Are the following contraceptives included in the country's National Essential Medicine List (NEML) or other equivalent priority list?",null,null,null,null,null,null,null,null,null,null,null,null,null,null,null,null,null,null,null,null,null,null,{"$f":"A108","v":"D8. Are the following contraceptives included in the country's National Essential Medicine List (NEML) or other equivalent priority list?"}]
[null,"a. Combined oral contraceptives",null,null,null,null,"Yes",null,null,{"$f":"G109","v":"Yes"},null,null,null,null,null,null,null,null,null,null,null,null,null,null,{"$f":"B109","v":"a. Combined oral contraceptives"}]
[null,"b. Progestin-only pills",null,null,null,null,"No",null,null,"No",null,null,null,null,null,null,null,null,null,null,null,null,null,null,"b. Progestin-only pills"]
[null,"c. Hormonal injections",null,null,null,null,"Yes",null,null,"Yes",null,null,null,null,null,null,null,null,null,null,null,null,null,null,"c. Hormonal injections"]
[null,"d. Hormonal implants",null,null,null,null,"No",null,null,"No",null,null,null,null,null,null,null,null,null,null,null,null,null,null,"d. Hormonal implants"]
[null,"e. Intrauterine devices (IUDs)",null,null,null,null,"Yes",null,null,"Yes",null,null,null,null,null,null,null,null,null,null,null,null,null,null,"e. Intrauterine devices (IUDs)"]
[null,"f. Male condoms",null,null,null,null,"Yes",null,null,"Yes",null,null,null,null,null,null,null,null,null,null,null,null,null,null,"f. Male condoms"]
[null,"g. Female condoms",null,null,null,null,"No",null,null,"No",null,null,null,null,null,null,null,null,null,null,null,null,null,null,"g. Female condoms"]
[null,"h. Emergency contraceptive pills",null,null,null,null,"No",null,null,"No",null,null,null,null,null,null,null,null,null,null,null,null,null,null,"h. Emergency contraceptive pills"]
[null,"i. CycleBeads",null,null,null,null,"No",null,null,{"$f":"G117","v":"No"},null,null,null,null,null,null,null,null,null,null,null,null,null,null,{"$f":"B117","v":"i. CycleBeads"}]
[null,"j. Any other contraceptive(s)?",null,null,null,null,"No",null,null,"No",null,null,null,null,null,null,null,null,null,null,null,null,null,null,"j. Any other contraceptive(s)?"]
[null,null,"i. Name of other contraceptive(s) on the list(s)",null,null,"N/A",null,null,null,0,null,null,null,null,null,null,null,{"$f":"B119","v":0}]
["D9. What year(s) is the list(s) from?",null,null,null,null,2008,null,null,null,0,null,null,null,null,null,null,null,{"$f":"B120","v":0}]
["D10. Name of the list(s)\n\n\n",null,null,"Lista básica de medicamentos esenciales (basic list of essential medicines) and essential supplies list",null,null,null,null,null,null,{"$f":"A121","v":"D10. Name of the list(s)\n\n\n"},null,null,null,{"$f":"D121","v":"Lista básica de medicamentos esenciales (basic list of essential medicines) and essential supplies list"}]
["D11. Notes about the list(s)\n\n\n",null,null,"Condoms and IUDs are included in the essential supplies list, rather than the essential medicines list.  ",null,null,null,null,null,null,{"$f":"A122","v":"D11. Notes about the list(s)\n\n\n"},null,null,null,{"$f":"D122","v":"Condoms and IUDs are included in the essential supplies list, rather than the essential medicines list.  "}]
["D12.  Information on country's Poverty Reduction Strategy Paper (PRSP)\n",null,null,null,null,null,null,null,null,null,null,null,null,null,null,null,null,null,null,null,null,null,null,{"$f":"A123","v":"D12.  Information on country's Poverty Reduction Strategy Paper (PRSP)\n"}]
[null,"a. What year is the Poverty Reduction Strategy Paper from? (most recent actual PRSP on IMF's site [not progress or summary report])",null,null,null,2009,null,null,null,{"$f":"G124","v":0},null,null,null,null,null,null,null,{"$f":"B124","v":"a. What year is the Poverty Reduction Strategy Paper from? (most recent actual PRSP on IMF's site [not progress or summary report])"}]
[null,"b. Is family planning or reproductive health a priority in the PRSP?",null,null,null,null,"No",null,null,{"$f":"G125","v":"No"},null,null,null,null,null,null,null,null,null,null,null,null,null,null,{"$f":"B125","v":"b. Is family planning or reproductive health a priority in the PRSP?"}]
[null,"c. Is contraceptive security included in the PRSP?",null,null,null,null,"No",null,null,{"$f":"G126","v":"No"},null,null,null,null,null,null,null,null,null,null,null,null,null,null,{"$f":"B126","v":"c. Is contraceptive security included in the PRSP?"}]
[null,"d. Is contraceptive prevalence rate (CPR) included as an indicator in the PRSP?",null,null,null,null,"No",null,null,{"$f":"G127","v":"No"},null,null,null,null,null,null,null,null,null,null,null,null,null,null,{"$f":"B127","v":"d. Is contraceptive prevalence rate (CPR) included as an indicator in the PRSP?"}]
[null,"e. Are contraceptive supply indicators included in the PRSP?",null,null,null,null,"No",null,null,{"$f":"G128","v":"No"},null,null,null,null,null,null,null,null,null,null,null,null,null,null,{"$f":"B128","v":"e. Are contraceptive supply indicators included in the PRSP?"}]
["\n\n\n","f. Notes about the Poverty Reduction Strategy Paper",null,null,null,null,null,null,null,null,{"$f":"B129","v":"f. Notes about the Poverty Reduction Strategy Paper"},null,null,null,{"$f":"D129","v":0}]
["E. Supply Chain (Capacity)"]
["E1. Have stockouts occurred for any contraceptive at the central* level in the last 12 months?  \n*(The central level refers to the central level warehouse for the public sector.)",null,null,null,null,null,"Yes",null,null,{"$f":"G131","v":"Yes"},null,null,null,null,null,null,null,null,null,null,null,null,null,null,{"$f":"A131","v":"E1. Have stockouts occurred for any contraceptive at the central* level in the last 12 months?  \n*(The central level refers to the central level warehouse for the public sector.)"}]
["E2. In the last 12 months, has there ever been a stockout at the central level of any of the contraceptives offered in public sector facilities? (If a method is not intended to be offered in public sector facilities, please indicate that stockouts are not applicable (choose \"N/A\" from the dropdown list).)",null,null,null,null,null,null,null,null,null,null,null,null,null,null,null,null,null,null,null,null,null,null,{"$f":"A132","v":"E2. In the last 12 months, has there ever been a stockout at the central level of any of the contraceptives offered in public sector facilities? (If a method is not intended to be offered in public sector facilities, please indicate that stockouts are not applicable (choose \"N/A\" from the dropdown list).)"}]
[null,"a. Combined oral contraceptives",null,null,null,null,"No",null,null,{"$f":"G133","v":"No"},null,null,null,null,null,null,null,null,null,null,null,null,null,null,{"$f":"B133","v":"a. Combined oral contraceptives"}]
[null,"b. Progestin-only pills",null,null,null,null,"N/A",null,null,"N/A",null,null,null,null,null,null,null,null,null,null,null,null,null,null,"b. Progestin-only pills"]
[null,"c. Hormonal injections",null,null,null,null,"Yes",null,null,"Yes",null,null,null,null,null,null,null,null,null,null,null,null,null,null,"c. Hormonal injections"]
[null,"d. Hormonal implants",null,null,null,null,"N/A",null,null,"N/A",null,null,null,null,null,null,null,null,null,null,null,null,null,null,"d. Hormonal implants"]
[null,"e. Intrauterine devices (IUDs)",null,null,null,null,"Yes",null,null,"Yes",null,null,null,null,null,null,null,null,null,null,null,null,null,null,"e. Intrauterine devices (IUDs)"]
[null,"f. Male condoms",null,null,null,null,"No",null,null,"No",null,null,null,null,null,null,null,null,null,null,null,null,null,null,"f. Male condoms"]
[null,"g. Female condoms",null,null,null,null,"N/A",null,null,"N/A",null,null,null,null,null,null,null,null,null,null,null,null,null,null,"g. Female condoms"]
[null,"h. Emergency contraceptive pills",null,null,null,null,"N/A",null,null,"N/A",null,null,null,null,null,null,null,null,null,null,null,null,null,null,"h. Emergency contraceptive pills"]
[null,"i. CycleBeads",null,null,null,null,"No",null,null,"No",null,null,null,null,null,null,null,null,null,null,null,null,null,null,"i. CycleBeads"]
[null,"j. Time period\n(mm/yy - mm/yy) (for example, 1/10-12/10) ",null,null,null,"01/10-12/10",null,null,null,null,null,null,null,null,null,null,{"$f":"F142","v":"01/10-12/10"},{"$f":"B142","v":"j. Time period\n(mm/yy - mm/yy) (for example, 1/10-12/10) "}]
[null,"k. Data source\n(for example: Procurement Planning and Monitoring Report, Logistics Management Information System, periodic physical inventory, warehouse reports)",null,null,null,"Report to central level MOH ",null,null,null,null,null,null,null,null,null,null,{"$f":"F143","v":"Report to central level MOH "},{"$f":"B143","v":"k. Data source\n(for example: Procurement Planning and Monitoring Report, Logistics Management Information System, periodic physical inventory, warehouse reports)"}]
["E3. Are stockouts a large problem in your country at the following levels? (i.e., Are they common or do they tend to last for a long time?)\n\n"]
[null,"a. service delivery point level (i.e., public sector health facilities)",null,null,null,null,"No",null,null,{"$f":"G145","v":"No"},null,null,null,null,null,null,null,null,null,null,null,null,null,null,{"$f":"B145","v":"a. service delivery point level (i.e., public sector health facilities)"}]
[null,"b. central level (i.e., central level warehouse for the public sector)",null,null,null,null,"No",null,null,{"$f":"G146","v":"No"},null,null,null,null,null,null,null,null,null,null,null,null,null,null,{"$f":"B146","v":"b. central level (i.e., central level warehouse for the public sector)"}]
["F. Please note any overall comments about challenges and/or successes with contraceptive security in your country.\n\n",null,null,null,null,null,null,null,null,null,{"$f":"A147","v":"F. Please note any overall comments about challenges and/or successes with contraceptive security in your country.\n\n"},null,null,null,{"$f":"D147","v":0}]

{"sheet":"Nigeria 2011","index":31,"n_rows":147,"n_cols":25,"rows_kept":147,"cut":false,"hidden":false,"merged":[[8,0,8,7],[147,0,147,7],[148,0,150,7],[145,1,145,5],[145,6,145,7],[146,0,146,2],[146,3,146,7],[141,1,141,4],[141,5,141,7],[142,1,142,4],[142,5,142,7],[143,0,143,7],[144,1,144,5],[144,6,144,7],[138,1,138,5],[138,6,138,7],[139,1,139,5],[139,6,139,7],[140,1,140,5],[131,0,131,7],[132,1,132,5],[132,6,132,7],[133,1,133,5],[133,6,133,7],[134,1,134,5],[134,6,134,7],[140,6,140,7],[135,1,135,5],[135,6,135,7],[136,1,136,5],[136,6,136,7],[137,1,137,5],[137,6,137,7],[120,0,120,2],[120,3,120,7],[121,0,121,2],[121,3,121,7],[129,0,129,6],[130,0,130,5],[130,6,130,7],[122,0,122,7],[123,1,123,4],[123,5,123,7],[115,1,115,5],[115,6,115,7],[116,1,116,5],[116,6,116,7],[117,1,117,5],[117,6,117,7],[118,2,118,4],[118,5,118,7],[119,0,119,4],[119,5,119,7],[110,1,110,5],[110,6,110,7],[111,1,111,5],[111,6,111,7],[112,1,112,5],[112,6,112,7],[113,1,113,5],[113,6,113,7],[114,1,114,5],[114,6,114,7],[104,1,104,5],[104,6,104,7],[105,1,105,5],[105,6,105,7],[106,3,106,7],[107,0,107,7],[108,1,108,5],[108,6,108,7],[109,1,109,5],[109,6,109,7],[98,1,98,2],[98,4,98,6],[99,1,99,2],[99,4,99,6],[100,1,100,2],[100,4,100,6],[101,0,101,7],[102,0,102,7],[103,1,103,5],[103,6,103,7],[94,2,94,3],[94,4,94,5],[94,6,94,7],[95,2,95,3],[95,4,95,5],[95,6,95,7],[96,0,96,7],[97,0,97,2],[97,4,97,6],[88,0,88,6],[89,1,89,2],[89,3,89,7],[90,0,90,6],[91,1,91,2],[92,1,92,3],[92,4,92,5],[92,6,92,7],[93,2,93,3],[93,4,93,5],[93,6,93,7],[83,0,83,4],[83,5,83,7],[84,1,84,3],[84,4,84,7],[85,1,85,3],[85,4,85,7],[86,0,86,6],[87,1,87,2],[87,3,87,7],[77,0,77,2],[77,3,77,7],[78,0,78,6],[79,0,79,6],[80,0,80,2],[81,0,82,0],[81,1,81,2],[81,3,81,4],[81,6,81,7],[82,3,82,4],[82,6,82,7],[72,1,72,2],[72,3,72,4],[73,1,73,2],[73,3,73,4],[74,1,74,2],[74,3,74,4],[75,1,75,2],[75,3,75,4],[76,1,76,2],[76,3,76,4],[67,1,67,2],[67,3,67,4],[68,1,68,2],[68,3,68,4],[69,1,69,2],[69,3,69,4],[70,1,70,2],[70,3,70,4],[71,1,71,2],[71,3,71,4],[61,0,61,2],[61,3,61,7],[62,0,62,6],[63,0,63,7],[64,0,64,2],[64,3,64,4],[65,1,65,2],[65,3,65,4],[66,1,66,2],[66,3,66,4],[55,0,55,4],[55,6,55,7],[56,0,56,4],[56,6,56,7],[58,0,58,4],[58,5,58,7],[59,1,59,4],[59,5,59,7],[60,2,60,4],[60,5,60,7],[41,1,41,2],[42,3,42,7],[43,1,43,2],[51,1,51,2],[53,0,53,7],[54,0,54,4],[54,6,54,7],[45,0,45,7],[46,1,46,2],[47,1,47,2],[48,3,48,7],[49,1,49,2],[50,1,50,2],[32,0,32,7],[33,1,33,3],[34,1,34,3],[35,0,35,7],[36,0,36,6],[37,0,37,7],[38,1,38,2],[39,1,39,2],[40,3,40,7],[26,0,26,6],[27,0,27,2],[27,3,27,4],[28,0,28,5],[28,6,28,7],[29,0,29,3],[29,6,29,7],[30,0,30,6],[31,0,31,6],[20,1,20,2],[20,5,20,7],[21,1,21,2],[21,5,21,7],[22,1,22,2],[22,5,22,7],[23,0,23,6],[24,0,24,6],[25,0,25,2],[15,1,15,2],[15,5,15,7],[16,1,16,2],[16,5,16,7],[17,1,17,2],[17,5,17,7],[18,1,18,2],[18,5,18,7],[19,1,19,2],[19,5,19,7],[9,0,9,7],[10,0,10,6],[11,0,11,6],[12,1,12,2],[12,3,12,7],[13,0,13,2],[13,3,13,7],[14,1,14,2],[14,5,14,7],[7,0,7,2],[7,3,7,5],[7,6,7,7],[0,0,0,7],[1,0,1,2],[1,3,1,4],[2,0,2,7],[3,3,3,4],[3,5,3,7],[4,0,4,2],[5,0,5,2],[127,1,127,5],[127,6,127,7],[128,1,128,2],[128,3,128,7],[124,1,124,5],[124,6,124,7],[125,1,125,5],[125,6,125,7],[126,1,126,5],[126,6,126,7]]}
[null,null,null,null,null,null,null,null,"Columns I-Y are meant to be hidden. They exist because they allow for the dropdown list options. They also allow for merged cells to autofit properly in terms of row height. This should work if all columns remain at their correct widths.","g-h",null,"a-e merged","E-F merged","e-h","0 times",null,null,"The government (e.g., Central Medical Stores, MOH logistics unit, MOH procurement unit)",null,null,null,null,"Yes","a-h","January"]
[null,null,null,null,null,null,null,null,null,null,"A-c",null,null,null,"1-2 times","b-d merged",null,"Third-party agent (e.g., UNFPA, Crown Agents)","d-e merged","d-f merged","e-f merged","e-g merged","No",null,"February"]
[null,null,null,null,null,null,null,null,null,null,null,null,null,null,"3-5 times",null,null,"The government and a third-party agent",null,null,null,null,null,null,"March"]
[null,null,null,null,null,null,null,null,null,null,null,null,null,null,"6 or more times",null,null,"Other",null,null,null,null,"N/A",null,"April"]
["To jump to the Introduction sheet, click here.",null,null,null,null,null,null,null,null,null,null,null,null,null,null,null,null,null,null,null,null,null,"Don't know",null,"May"]
[null,null,null,null,null,null,null,null,null,null,null,null,null,null,"N/A",null,null,"N/A",null,null,null,null,null,null,"June"]
["Contraceptive Security (CS) Indicators 2011 Data ",null,null,null,null,null,null,null,null,null,null,null,null,null,"Don't know",null,null,"Don't know",null,null,null,null,null,null,"July"]
["Country: Nigeria",null,null,null,null,null,null,null,null,{"$f":"G8","v":0},{"$f":"A8","v":"Country: Nigeria"},null,null,null,null,"or c-d",null,null,null,{"$f":"D8","v":0},null,null,null,null,"August"]
["The CS Indicators are presented in the following sections:\n\n               A. leadership & cooordination               B. finance & procurement               C. commodities               D. policies               E. supply chain",null,null,null,null,null,null,null,null,{"$f":"G9","v":0},{"$f":"A9","v":"The CS Indicators are presented in the following sections:\n\n               A. leadership & cooordination               B. finance & procurement               C. commodities               D. policies               E. supply chain"},null,null,null,"d-h",null,"f-h merged",null,{"$f":"D9","v":0},null,null,null,null,null,"September"]
["\nNotes:\n  -  Respondents' answers are indicated in the white spaces. \n  -  N/A = not applicable. Don't know = the respondent either indicated they did not know or left the answer blank.\n  -  Some questions required respondents to choose from a dropdown list of options; in these cases the dropdown arrow will \n     appear when you click on the cell. \n  -  There may be a few inserted comments. (If you cannot already see them, click on Review tab - Comments group - Show All Comments in newer \n       versions of Excel or View - Comments in older versions of Excel.)\n  -  If the answer is cut off, you can either manually adjust the row height or autofit the row height in order to see the whole \n     response. (To autofit the row height, select the answer(s) and go to Home tab - Cells group - Format - Autofit Row Height in newer versions of Excel or \n      Format - Row - Autofit in older versions of Excel.)\n",null,null,null,null,null,null,null,"a-g",null,null,null,null,null,null,null,null,"a-e merged",null,null,null,null,null,{"$f":"A10","v":"\nNotes:\n  -  Respondents' answers are indicated in the white spaces. \n  -  N/A = not applicable. Don't know = the respondent either indicated they did not know or left the answer blank.\n  -  Some questions required respondents to choose from a dropdown list of options; in these cases the dropdown arrow will \n     appear when you click on the cell. \n  -  There may be a few inserted comments. (If you cannot already see them, click on Review tab - Comments group - Show All Comments in newer \n       versions of Excel or View - Comments in older versions of Excel.)\n  -  If the answer is cut off, you can either manually adjust the row height or autofit the row height in order to see the whole \n     response. (To autofit the row height, select the answer(s) and go to Home tab - Cells group - Format - Autofit Row Height in newer versions of Excel or \n      Format - Row - Autofit in older versions of Excel.)\n"},"October"]
["A. Leadership and Coordination",null,null,null,null,null,null,null,null,null,null,null,null,null,null,null,null,null,null,null,null,null,null,null,"November"]
["A1. Is there a national committee that works on contraceptive security? (Please select from the dropdown list.)\n(Committee should have some aspect of contraceptive security as part of its Terms of Reference, even if it is known by a different name, for example: Family Planning, Reproductive Health, Maternal Mortality, Essential Medicine Committee, etc.)  ",null,null,null,null,null,null,"Yes",{"$f":"A12","v":"A1. Is there a national committee that works on contraceptive security? (Please select from the dropdown list.)\n(Committee should have some aspect of contraceptive security as part of its Terms of Reference, even if it is known by a different name, for example: Family Planning, Reproductive Health, Maternal Mortality, Essential Medicine Committee, etc.)  "},null,null,null,null,null,null,null,null,null,null,null,null,null,null,null,"December"]
[null,"a. What is the name of the committee?",null,"Reproductive Health Commodity Security Stakeholders' Committee",null,null,null,null,null,null,{"$f":"B13","v":"a. What is the name of the committee?"},{"$f":"D13","v":"Reproductive Health Commodity Security Stakeholders' Committee"},null,null,{"$f":"D13","v":"Reproductive Health Commodity Security Stakeholders' Committee"}]
["A2. Are the following organizations represented on the committee?",null,null,"(Y/N \ndropdown)",null,null,null,null,null,null,{"$f":"A14","v":"A2. Are the following organizations represented on the committee?"},null,null,null,null,null,null,null,null,null,null,null,null,null,"Don't know"]
[null,"a. Social marketing",null,"Yes","If yes, specify name(s) of organizations","Society for Family Health",null,null,null,null,{"$f":"B15","v":"a. Social marketing"},null,null,null,null,null,{"$f":"F15","v":"Society for Family Health"}]
[null,"b. NGO (for example: service delivery, advocacy, Planned Parenthood affiliate, Marie Stopes affiliate, faith-based organizations, etc.)",null,"Yes","If yes, specify name(s) of organizations","Planned Parenthood Federation, Nigeria Urban Reproductive Health Initiative, Association for Reproductive and Family Health",null,null,null,null,"b. NGO (for example: service delivery, advocacy, Planned Parenthood affiliate, Marie Stopes affiliate, faith-based organizations, etc.)",null,null,null,null,null,"Planned Parenthood Federation, Nigeria Urban Reproductive Health Initiative, Association for Reproductive and Family Health"]
[null,"c. Commercial sector (for example: pharmacy associations, manufacturers, etc.)",null,"Yes","If yes, specify name(s) of organizations","Pharmaceutical Society of Nigeria (PSN), Society of Gynaecologists and Obstretricians of Nigeria (SOGON), Nigeria Medical Association",null,null,null,null,"c. Commercial sector (for example: pharmacy associations, manufacturers, etc.)",null,null,null,null,null,"Pharmaceutical Society of Nigeria (PSN), Society of Gynaecologists and Obstretricians of Nigeria (SOGON), Nigeria Medical Association"]
[null,"d. Donors",null,"Yes","If yes, specify name(s) of donors","USAID, DfID, CIDA",null,null,null,null,"d. Donors",null,null,null,null,null,"USAID, DfID, CIDA"]
[null,"e. UN agencies",null,"Yes","If yes, specify name(s) of agencies","UNFPA",null,null,null,null,"e. UN agencies",null,null,null,null,null,"UNFPA"]
[null,"f. Ministry of Health (for example: logistics, reproductive health, family planning, maternal and child health, HIV/AIDS, pharmacy units, etc.)",null,"Yes","If yes, specify name(s) of units","Family Planning Division, National Agency for Food and Drug Administration and Control (NAFDAC), National Health Insurance Services",null,null,null,null,"f. Ministry of Health (for example: logistics, reproductive health, family planning, maternal and child health, HIV/AIDS, pharmacy units, etc.)",null,null,null,null,null,"Family Planning Division, National Agency for Food and Drug Administration and Control (NAFDAC), National Health Insurance Services"]
[null,"g. Central Medical Store or Central Warehouse",null,"Yes","If yes, specify","Central Contraceptives Warehouse (CCW)",null,null,null,null,"g. Central Medical Store or Central Warehouse",null,null,null,null,null,"Central Contraceptives Warehouse (CCW)"]
[null,"h. Ministry of Finance or Ministry of Planning ",null,"Yes","If yes, specify","Federal Ministry of Finance and Department of Planning, Research and Statistics",null,null,null,null,"h. Ministry of Finance or Ministry of Planning ",null,null,null,null,null,"Federal Ministry of Finance and Department of Planning, Research and Statistics"]
[null,"i. Other (for example: partners)",null,"Yes","If yes, specify","USAID I DELIVER PROJECT, USAID Targeted States High  Impact Project (TSHIP), FHI",null,null,null,null,"i. Other (for example: partners)",null,null,null,null,null,"USAID I DELIVER PROJECT, USAID Targeted States High  Impact Project (TSHIP), FHI"]
["A3. How many times did the committee meet during the last year? (0, 1-2, 3-5, or 6+)  (Please select from the dropdown.)",null,null,null,null,null,null,"0 times",{"$f":"A24","v":"A3. How many times did the committee meet during the last year? (0, 1-2, 3-5, or 6+)  (Please select from the dropdown.)"}]
["A4. Does the committee have legal status?  (Please select from the dropdown.)                                  ",null,null,null,null,null,null,"No",{"$f":"A25","v":"A4. Does the committee have legal status?  (Please select from the dropdown.)                                  "}]
["A5. Is there a Contraceptive Security \"champion\"? (someone who consistently brings up and advocates for contraceptive supplies)",null,null,"Yes","If yes, specify person's organization","Association for Reproductive and Family Health","Specify person's job title","CEO",null,null,{"$f":"A26","v":"A5. Is there a Contraceptive Security \"champion\"? (someone who consistently brings up and advocates for contraceptive supplies)"}]
["B. Finance and Procurement (Capital)"]
["B1. What is the timeline of the country's fiscal year?",null,null,"Beginning month",null,"January","Ending month","December",null,null,{"$f":"B28","v":0}]
["B2. What was the estimated dollar value of contraceptives needed to be procured for the public sector for the most recent complete fiscal year? (in USD currency)\n(for example, to cover the needs for the '09-'10 fiscal year)",null,null,null,null,null,9400000,null,null,{"$f":"G29","v":9400000},null,null,{"$f":"E29","v":0},null,null,null,null,null,null,null,null,null,null,null,{"$f":"A29","v":"B2. What was the estimated dollar value of contraceptives needed to be procured for the public sector for the most recent complete fiscal year? (in USD currency)\n(for example, to cover the needs for the '09-'10 fiscal year)"}]
["B3. When was the last forecast/quantification conducted? (mm/yy)",null,null,null,"11/09","Who conducted it? (Specify organization.)","USAID I DELIVER PROJECT",null,null,{"$f":"G30","v":"USAID I DELIVER PROJECT"},null,null,{"$f":"E30","v":"11/09"},null,null,null,null,null,null,null,null,null,null,null,{"$f":"A30","v":"B3. When was the last forecast/quantification conducted? (mm/yy)"}]
["B4. Is there a government budget line item for the procurement of contraceptives?  (Please select from the dropdown list.)",null,null,null,null,null,null,"No",{"$f":"A31","v":"B4. Is there a government budget line item for the procurement of contraceptives?  (Please select from the dropdown list.)"}]
["B5. Were government funds allocated for contraceptive procurement for the public sector in the most recent complete fiscal year? (This question refers to funds planned to be spent on contraceptives, whether or not they ended up being spent.) \n\n(Government funds include internally generated funds, basket funds, World Bank credits or loans, and other funds donors gave to the government for their use.) \n",null,null,null,null,null,null,"No",{"$f":"A32","v":"B5. Were government funds allocated for contraceptive procurement for the public sector in the most recent complete fiscal year? (This question refers to funds planned to be spent on contraceptives, whether or not they ended up being spent.) \n\n(Government funds include internally generated funds, basket funds, World Bank credits or loans, and other funds donors gave to the government for their use.) \n"}]
["B6. Please complete the table below regarding government allocations for contraceptive procurement.",null,null,null,null,null,null,null,null,null,null,null,null,null,null,null,null,null,null,null,null,null,null,{"$f":"A33","v":"B6. Please complete the table below regarding government allocations for contraceptive procurement."}]
[null,null,null,null,"Amount allocated \n(in USD)","Time period during which allocations were supposed to be spent \n(mm/yy-mm/yy)\n(should ideally be the most recent\ncomplete fiscal year ['09-'10])","Data source \n(for example: Ministry records)","Comments",null,null,{"$f":"A34","v":0}]
[null,"Government funds allocated for contraceptive procurement\n(funds originally designated for contraceptives, whether or not they ended up being spent on them)",null,null,0,"01/10-12/10",null,null,null,null,{"$f":"#REF!","v":{"$error":"#REF!"}}]
[]
["B7. Were government funds spent on contraceptive procurement for the public sector in the most recent complete fiscal year? \n(Government funds include internally generated funds, basket funds, World Bank credits or loans, and other funds donors gave to the government for their use.)",null,null,null,null,null,null,"No",{"$f":"A37","v":"B7. Were government funds spent on contraceptive procurement for the public sector in the most recent complete fiscal year? \n(Government funds include internally generated funds, basket funds, World Bank credits or loans, and other funds donors gave to the government for their use.)"}]
["B8. Please complete the table below to indicate government expenditures on contraceptive procurement, by source, in the most recent complete fiscal year. \n(This is how much was spent on contraceptive procurement (not what was allocated). How much of this spending was provided from each source?)",null,null,null,null,null,null,null,null,null,null,null,null,null,null,null,null,null,null,null,null,null,null,{"$f":"A38","v":"B8. Please complete the table below to indicate government expenditures on contraceptive procurement, by source, in the most recent complete fiscal year. \n(This is how much was spent on contraceptive procurement (not what was allocated). How much of this spending was provided from each source?)"}]
[null,"Source of government funds spent on contraceptive procurement for the public sector",null,"Was this source used?\n(Y/N)","Amount spent \n(in USD)","Time period (mm/yy-mm/yy)\n(should be the same for all sources of funds & ideally be the most recent\ncomplete fiscal year ['09-'10])","Data source \n(for example: Contraceptive Procurement Table, PipeLine, etc.)","Comments",null,null,{"$f":"A39","v":0}]
[null,"a. Internally generated funds spent on contraceptive procurement",null,"No",0,"01/10-12/10",null,null,null,null,{"$f":"B40","v":"a. Internally generated funds spent on contraceptive procurement"}]
[null,null,"i. Specify source(s) of internally generated funds spent (for example, from taxes or user fees)","N/A",null,null,null,null,null,null,{"$f":"C41","v":"i. Specify source(s) of internally generated funds spent (for example, from taxes or user fees)"},null,null,null,{"$f":"D41","v":"N/A"}]
[null,"b. Total of all other government funds spent on contraceptive procurement (basket funds, World Bank credits or loans, and other funds donors gave to the government [e.g., direct budget support])",null,"No",0,"01/10-12/10",null,null,null,null,{"$f":"B42","v":"b. Total of all other government funds spent on contraceptive procurement (basket funds, World Bank credits or loans, and other funds donors gave to the government [e.g., direct budget support])"}]
[null,null,"i. Specify source(s) of other government funds spent (for example: basket funding or specific donor)","N/A",null,null,null,null,null,null,{"$f":"C43","v":"i. Specify source(s) of other government funds spent (for example: basket funding or specific donor)"},null,null,null,{"$f":"D43","v":"N/A"}]
[null,"c. TOTAL government funds spent on contraceptive procurement\nThis will auto-calculate.  (It will sum a & b above.)",null,null,{"$f":"E40+E42","v":0},null,null,null,null,null,{"$f":"B44","v":"c. TOTAL government funds spent on contraceptive procurement\nThis will auto-calculate.  (It will sum a & b above.)"}]
[null,null,null,null,null,null,null,null,null,null,{"$f":"A45","v":0}]
["B9. Please complete the table below to indicate donor expenditures on contraceptive procurement in the most recent complete fiscal year.\n",null,null,null,null,null,null,null,null,null,null,null,null,null,null,null,null,null,null,null,null,null,null,{"$f":"A46","v":"B9. Please complete the table below to indicate donor expenditures on contraceptive procurement in the most recent complete fiscal year.\n"}]
["\n","Source of donations and donor funds spent on contraceptive procurement for the public sector",null,"Was this a source?\n(Y/N)","Amount of money spent on these procurements \n(in USD)","Time period (mm/yy-mm/yy)\n(should be the same for all sources of funds & ideally be the most recent\ncomplete fiscal year ['09-'10])","Data source \n(for example:  Donor records, Contraceptive Procurement Table, PipeLine, RHInterchange, etc.","Comments",null,null,{"$f":"A47","v":"\n"}]
[null,"a. In-kind donations of contraceptives",null,"Yes",5000000,"01/10-12/10","PipeLine",null,null,null,{"$f":"B48","v":"a. In-kind donations of contraceptives"}]
[null,null,"i. Specify source(s) of in-kind donations ","UNFPA and DfID",null,null,null,null,null,null,{"$f":"C49","v":"i. Specify source(s) of in-kind donations "},null,null,null,{"$f":"D49","v":"UNFPA and DfID"}]
[null,"b. Global Fund donations used to procure condoms",null,"No",0,"01/10-12/10",null,null,null,null,{"$f":"B50","v":"b. Global Fund donations used to procure condoms"}]
[null,"c. Global Fund donations used to procure contraceptives besides condoms",null,"No",0,"01/10-12/10",null,null,null,null,{"$f":"B51","v":"c. Global Fund donations used to procure contraceptives besides condoms"}]
[null,"d. TOTAL value of in-kind donations and Global Fund donations spent on contraceptive procurement\nThis will auto-calculate.  (It will sum a-c above.)",null,null,{"$f":"E48+E50+E51","v":5000000},null,null,null,null,null,{"$f":"B52","v":"d. TOTAL value of in-kind donations and Global Fund donations spent on contraceptive procurement\nThis will auto-calculate.  (It will sum a-c above.)"}]
[null,null,null,null,null,null,null,null,null,null,{"$f":"A53","v":0}]
["The answers to B10 and B11 should calculate automatically based on the information you provided. Please review the answers to ensure they make sense to you, and if you have additional information to add, please note it in the comments boxes.\n\nIf the answers do not calculate automatically, please provide any relevant information you may have in the comments boxes.\n",null,null,null,null,null,null,null,null,null,null,null,null,null,null,null,null,null,null,null,null,null,null,{"$f":"A54","v":"The answers to B10 and B11 should calculate automatically based on the information you provided. Please review the answers to ensure they make sense to you, and if you have additional information to add, please note it in the comments boxes.\n\nIf the answers do not calculate automatically, please provide any relevant information you may have in the comments boxes.\n"}]
["B10. Government share of funds spent on contraceptive procurement for the public sector - \nOf the total amount spent on contraceptives for the public sector in the most recent complete fiscal year (including government and donor funds), what percent was covered by government funds (including internally generated funds, basket funds, World Bank credits or loans, and other funds given to the government)? \n\nThis will auto-calculate. (It contains the following formula: Total government spending (Question B8c) / Grand total of all spending for public sector contraceptives from the government and donors (Questions B8c+B9d))",null,null,null,null,{"$f":"E44/(E44+E52)","v":0},null,null,null,{"$f":"G55","v":0},null,null,null,null,null,null,null,{"$f":"A55","v":"B10. Government share of funds spent on contraceptive procurement for the public sector - \nOf the total amount spent on contraceptives for the public sector in the most recent complete fiscal year (including government and donor funds), what percent was covered by government funds (including internally generated funds, basket funds, World Bank credits or loans, and other funds given to the government)? \n\nThis will auto-calculate. (It contains the following formula: Total government spending (Question B8c) / Grand total of all spending for public sector contraceptives from the government and donors (Questions B8c+B9d))"}]
["B11. Total expenditures on public sector contraceptives as percent of amount that needed to be procured -\nOf the estimated value of the contraceptives needed to be procured for the public sector for the most recent complete fiscal year, what percent was provided by any source (whether government or donor)? \n\nThis will auto-calculate. (It contains the following formula: Grand total of all spending for public sector contraceptives from the government and donors (Questions B8c+B9d) / Value of estimated need for procurement (Question B2))",null,null,null,null,{"$f":"(E44+E52)/G29","v":0.53191489361702127},null,null,null,{"$f":"G56","v":0},null,null,null,null,null,null,null,{"$f":"A56","v":"B11. Total expenditures on public sector contraceptives as percent of amount that needed to be procured -\nOf the estimated value of the contraceptives needed to be procured for the public sector for the most recent complete fiscal year, what percent was provided by any source (whether government or donor)? \n\nThis will auto-calculate. (It contains the following formula: Grand total of all spending for public sector contraceptives from the government and donors (Questions B8c+B9d) / Value of estimated need for procurement (Question B2))"}]
["B12. If B11 did not calculate automatically, please answer the following question:\nWas there a funding gap for the public sector in the last complete fiscal year (e.g., 09-'10 fiscal year)?\n(Please select from the dropdown list.)",null,null,null,null,"Yes",null,null,null,{"$f":"G57","v":0},null,null,null,null,null,null,null,{"$f":"A57","v":"B12. If B11 did not calculate automatically, please answer the following question:\nWas there a funding gap for the public sector in the last complete fiscal year (e.g., 09-'10 fiscal year)?\n(Please select from the dropdown list.)"}]
[null,null,null,null,null,null,null,null,null,null,{"$f":"A58","v":0}]
["B13. If the government financed any contraceptive procurement in the most recent complete fiscal year, which entity conducted the procurement(s)? (Please select from the dropdown.)",null,null,null,null,"N/A",null,null,null,null,null,null,null,null,null,null,{"$f":"F59","v":"N/A"},{"$f":"A59","v":"B13. If the government financed any contraceptive procurement in the most recent complete fiscal year, which entity conducted the procurement(s)? (Please select from the dropdown.)"}]
[null,"a. Specify entity",null,null,null,"N/A",null,null,null,null,null,null,{"$f":"E60","v":0},null,null,null,{"$f":"F60","v":"N/A"},{"$f":"B60","v":"a. Specify entity"}]
[null,null,"i. Is this a parastatal?",null,null,"N/A",null,null,null,null,null,null,null,null,null,null,{"$f":"F61","v":"N/A"},{"$f":"C61","v":"i. Is this a parastatal?"}]
["B14. Please note any additional comments about finance and procurement.\n",null,null,null,null,null,null,null,null,null,{"$f":"A62","v":"B14. Please note any additional comments about finance and procurement.\n"},null,null,null,{"$f":"D62","v":0}]
["C. Commodities"]
["C1. Are the following contraceptive methods offered through the commercial sector, public sector, NGOs, or social marketing? (Please indicate which methods are intended to be offered. This question is not asking whether the method is in stock.) \n(Please select from the dropdown list.)",null,null,null,null,null,null,null,null,null,null,null,null,null,null,null,null,null,null,null,null,null,null,{"$f":"A64","v":"C1. Are the following contraceptive methods offered through the commercial sector, public sector, NGOs, or social marketing? (Please indicate which methods are intended to be offered. This question is not asking whether the method is in stock.) \n(Please select from the dropdown list.)"}]
["Contraceptive Method",null,null,"Commercial Sector",null,"Public Sector","NGO","Social Marketing",null,null,{"$f":"A65","v":"Contraceptive Method"}]
[null,"a. Combined oral contraceptives (estrogen + progestin - for  example, LoFemenol, Microgynon)",null,"Yes",null,"Yes","Yes","Yes",null,null,{"$f":"B66","v":"a. Combined oral contraceptives (estrogen + progestin - for  example, LoFemenol, Microgynon)"}]
[null,"b. Progestin-only pills (for example, Ovrette, Microlut)",null,"Yes",null,"Yes","Yes","Yes",null,null,{"$f":"B67","v":"b. Progestin-only pills (for example, Ovrette, Microlut)"}]
[null,"c. Hormonal injections (for example, DepoProvera, Noristerat)",null,"Yes",null,"Yes","Yes","Yes",null,null,"c. Hormonal injections (for example, DepoProvera, Noristerat)"]
[null,"d. Hormonal implants (for example, Jadelle, Implanon)",null,"Yes",null,"Yes","Yes","Yes",null,null,"d. Hormonal implants (for example, Jadelle, Implanon)"]
[null,"e. Intrauterine devices (IUDs) (for example, Optima Copper T)",null,"Yes",null,"Yes","Yes","Yes",null,null,"e. Intrauterine devices (IUDs) (for example, Optima Copper T)"]
[null,"f. Male condoms",null,"Yes",null,"Yes","Yes","Yes",null,null,"f. Male condoms"]
[null,"g. Female condoms",null,"Yes",null,"Yes","Yes","Yes",null,null,"g. Female condoms"]
[null,"h. Emergency contraceptive pills (for example, Postinor)",null,"Yes",null,"No","Yes","Yes",null,null,"h. Emergency contraceptive pills (for example, Postinor)"]
[null,"i. Long-acting permanent method for males (vasectomy)",null,"Yes",null,"Yes","Yes","No",null,null,"i. Long-acting permanent method for males (vasectomy)"]
[null,"j. Long-acting permanent method for females (tubal ligation)",null,"Yes",null,"Yes","Yes","No",null,null,"j. Long-acting permanent method for females (tubal ligation)"]
[null,"k. CycleBeads",null,"Yes",null,"No","Yes","Yes",null,null,"k. CycleBeads"]
[null,"l. Other contraceptive methods - specify \n(Please provide the name of the other contraceptive(s) offered, by sector.)",null,"Neo Sampoon vaginal contraceptive tablets",null,"No",null,"Neo Sampoon vaginal contraceptive tablets",null,null,"l. Other contraceptive methods - specify \n(Please provide the name of the other contraceptive(s) offered, by sector.)"]
["C2. Please note any comments about the commodities offered.",null,null,null,null,null,null,null,null,null,{"$f":"A78","v":"C2. Please note any comments about the commodities offered."},null,null,null,{"$f":"D78","v":0}]
["D. Policies (Commitment)"]
["D1. Is there a contraceptive security or reproductive health commodity security strategy or is contraceptive security explicitly included in a country strategy? (Please select from the dropdown list.)",null,null,null,null,null,null,"Yes",{"$f":"A80","v":"D1. Is there a contraceptive security or reproductive health commodity security strategy or is contraceptive security explicitly included in a country strategy? (Please select from the dropdown list.)"}]
["IF NO, SKIP TO QUESTION D2."]
[null,"Strategy name",null,"Years Covered (including strategy updates)",null,"Is the strategy formally approved by the Ministry?","Is the contraceptive security strategy being implemented?",null,null,{"$f":"G82","v":"Is the contraceptive security strategy being implemented?"},{"$f":"B82","v":"Strategy name"},null,{"$f":"E82","v":0},null,null,null,null,null,{"$f":"D82","v":"Years Covered (including strategy updates)"}]
[null,"a","National Strategic Plan for Reproductive Health Commodity Security","2002-2007. 2011-2015 in draft stage",null,"Yes","Yes",null,null,{"$f":"G83","v":"Yes"},{"$f":"B83","v":"a"},null,{"$f":"E83","v":0},null,null,null,null,null,{"$f":"D83","v":"2002-2007. 2011-2015 in draft stage"}]
["D2. Are any family planning commodities subject to duties, import taxes, or other fees?",null,null,null,null,"No",null,null,null,null,null,null,null,null,null,null,{"$f":"F84","v":"No"},{"$f":"A84","v":"D2. Are any family planning commodities subject to duties, import taxes, or other fees?"}]
[null,"a. If yes, for which sectors (public, NGO, social marketing, commercial)?",null,null,"N/A",null,null,null,null,null,null,null,{"$f":"E85","v":"N/A"},{"$f":"E85","v":"N/A"},null,null,null,{"$f":"B85","v":"a. If yes, for which sectors (public, NGO, social marketing, commercial)?"}]
[null,"b. If yes, how much are the duties, taxes, or fees?",null,null,"N/A",null,null,null,null,null,null,null,null,{"$f":"E86","v":"N/A"},null,null,null,{"$f":"B86","v":"b. If yes, how much are the duties, taxes, or fees?"}]
["D3. Are there policies that hinder the ability of the private sector (commercial sector, NGOs, or social marketing) to provide contraceptive methods (for example: price controls, distribution limitations, taxes/duties, advertising bans, etc.)?",null,null,null,null,null,null,"No",{"$f":"A87","v":"D3. Are there policies that hinder the ability of the private sector (commercial sector, NGOs, or social marketing) to provide contraceptive methods (for example: price controls, distribution limitations, taxes/duties, advertising bans, etc.)?"}]
[null,"a. If yes, describe the policies.",null,"N/A",null,null,null,null,null,null,{"$f":"B88","v":"a. If yes, describe the policies."},null,null,null,{"$f":"D88","v":"N/A"}]
["D4. Are there policies that enable the private sector (commercial sector, NGOs, or social marketing) to provide contraceptive methods?",null,null,null,null,null,null,"Don't know",{"$f":"A89","v":"D4. Are there policies that enable the private sector (commercial sector, NGOs, or social marketing) to provide contraceptive methods?"}]
[null,"a. If yes, describe the policies.",null,"Don't know",null,null,null,null,null,null,{"$f":"B90","v":"a. If yes, describe the policies."},null,null,null,{"$f":"D90","v":"Don't know"}]
["D5. Do policies or regulations exist that restrict who can sell or dispense particular contraceptive methods?\n",null,null,null,null,null,null,"Yes",{"$f":"A91","v":"D5. Do policies or regulations exist that restrict who can sell or dispense particular contraceptive methods?\n"}]
[null,"Please note any restrictions in the following table."]
[null,"Contraceptive Method(s)",null,null,"Describe any public sector restriction on who is allowed to sell or dispense the method",null,"Describe any private sector restriction on who is allowed to sell or dispense the method",null,null,{"$f":"G93","v":"Describe any private sector restriction on who is allowed to sell or dispense the method"},null,null,null,null,null,{"$f":"B93","v":"Contraceptive Method(s)"},null,null,null,null,{"$f":"E93","v":"Describe any public sector restriction on who is allowed to sell or dispense the method"}]
[null,"a","Injectables",null,"Only trained personnel such as nurses and community health extension workers are allowed to administer injections.",null,"Only trained personnel are allowed to administer injections.",null,null,{"$f":"G94","v":"Only trained personnel are allowed to administer injections."},null,null,{"$f":"E94","v":"Only trained personnel such as nurses and community health extension workers are allowed to administer injections."},null,null,{"$f":"C94","v":"Injectables"},null,null,null,null,{"$f":"E94","v":"Only trained personnel such as nurses and community health extension workers are allowed to administer injections."}]
[null,"b","Implants",null,"Only trained nurses and doctors are allowed to administer implants.",null,"Only trained personnel are allowed to administer implants.",null,null,{"$f":"G95","v":"Only trained personnel are allowed to administer implants."},null,null,{"$f":"E95","v":"Only trained nurses and doctors are allowed to administer implants."},null,null,{"$f":"C95","v":"Implants"},null,null,null,null,{"$f":"E95","v":"Only trained nurses and doctors are allowed to administer implants."}]
[null,"c","IUDs",null,"Only trained midwives and doctors are permitted to insert IUDs.",null,"Only trained personnel are allowed to administer IUDs.",null,null,{"$f":"G96","v":"Only trained personnel are allowed to administer IUDs."},null,null,{"$f":"E96","v":"Only trained midwives and doctors are permitted to insert IUDs."},null,null,{"$f":"C96","v":"IUDs"},null,null,null,null,{"$f":"E96","v":"Only trained midwives and doctors are permitted to insert IUDs."}]
[null,null,null,null,null,null,null,null,null,null,{"$f":"C97","v":0}]
["D6. Does the country have laws, regulations, or policies that make it difficult for the following sub-populations to access effective family planning services?",null,null,"Y/N","If yes, describe laws/regulations/policies affecting access ",null,null,"Are the rules/policies implemented?",null,null,{"$f":"A98","v":"D6. Does the country have laws, regulations, or policies that make it difficult for the following sub-populations to access effective family planning services?"},null,null,null,null,null,null,null,null,null,null,{"$f":"E98","v":"If yes, describe laws/regulations/policies affecting access "}]
[null,"a. Unmarried people",null,"No",null,null,null,null,null,null,{"$f":"B99","v":"a. Unmarried people"},null,{"$f":"E99","v":0},null,null,null,null,null,null,null,null,{"$f":"E99","v":0}]
[null,"b. Young people",null,"No",null,null,null,null,null,null,{"$f":"B100","v":"b. Young people"},null,{"$f":"E100","v":0},null,null,null,null,null,null,null,null,{"$f":"E100","v":0}]
[null,"c. Other",null,"No",null,null,null,null,null,null,{"$f":"B101","v":"c. Other"},null,{"$f":"E101","v":0},null,null,null,null,null,null,null,null,{"$f":"E101","v":0}]
[null,null,null,null,null,null,null,null,null,null,{"$f":"C102","v":0}]
["D7. Are there charges* to the client in the public sector for family planning:\n*(This question refers to charges by policy, not under-the-table charges.)\n",null,null,null,null,null,null,null,null,null,null,null,null,null,null,null,null,null,null,null,null,null,null,{"$f":"A103","v":"D7. Are there charges* to the client in the public sector for family planning:\n*(This question refers to charges by policy, not under-the-table charges.)\n"}]
[null,"a. Services?",null,null,null,null,"No",null,null,{"$f":"G104","v":"No"},null,null,null,null,null,null,null,null,null,null,null,null,null,null,{"$f":"B104","v":"a. Services?"}]
[null,"b. Commodities?",null,null,null,null,"Yes",null,null,{"$f":"G105","v":"Yes"},null,null,null,null,null,null,null,null,null,null,null,null,null,null,{"$f":"B105","v":"b. Commodities?"}]
[null,"c. If yes, are there exemptions for people who cannot afford to pay?",null,null,null,null,"No",null,null,{"$f":"G106","v":"No"},null,null,null,null,null,null,null,null,null,null,null,null,null,null,{"$f":"B106","v":"c. If yes, are there exemptions for people who cannot afford to pay?"}]
[null,null,"i. If yes, describe the exemptions.","N/A",null,null,null,null,null,null,{"$f":"C107","v":"i. If yes, describe the exemptions."},null,null,null,{"$f":"D107","v":"N/A"}]
["D8. Are the following contraceptives included in the country's National Essential Medicine List (NEML) or other equivalent priority list?",null,null,null,null,null,null,null,null,null,null,null,null,null,null,null,null,null,null,null,null,null,null,{"$f":"A108","v":"D8. Are the following contraceptives included in the country's National Essential Medicine List (NEML) or other equivalent priority list?"}]
[null,"a. Combined oral contraceptives",null,null,null,null,"Yes",null,null,{"$f":"G109","v":"Yes"},null,null,null,null,null,null,null,null,null,null,null,null,null,null,{"$f":"B109","v":"a. Combined oral contraceptives"}]
[null,"b. Progestin-only pills",null,null,null,null,"Yes",null,null,"Yes",null,null,null,null,null,null,null,null,null,null,null,null,null,null,"b. Progestin-only pills"]
[null,"c. Hormonal injections",null,null,null,null,"Yes",null,null,"Yes",null,null,null,null,null,null,null,null,null,null,null,null,null,null,"c. Hormonal injections"]
[null,"d. Hormonal implants",null,null,null,null,"Yes",null,null,"Yes",null,null,null,null,null,null,null,null,null,null,null,null,null,null,"d. Hormonal implants"]
[null,"e. Intrauterine devices (IUDs)",null,null,null,null,"Yes",null,null,"Yes",null,null,null,null,null,null,null,null,null,null,null,null,null,null,"e. Intrauterine devices (IUDs)"]
[null,"f. Male condoms",null,null,null,null,"Yes",null,null,"Yes",null,null,null,null,null,null,null,null,null,null,null,null,null,null,"f. Male condoms"]
[null,"g. Female condoms",null,null,null,null,"Yes",null,null,"Yes",null,null,null,null,null,null,null,null,null,null,null,null,null,null,"g. Female condoms"]
[null,"h. Emergency contraceptive pills",null,null,null,null,"No",null,null,"No",null,null,null,null,null,null,null,null,null,null,null,null,null,null,"h. Emergency contraceptive pills"]
[null,"i. CycleBeads",null,null,null,null,"No",null,null,{"$f":"G117","v":"No"},null,null,null,null,null,null,null,null,null,null,null,null,null,null,{"$f":"B117","v":"i. CycleBeads"}]
[null,"j. Any other contraceptive(s)?",null,null,null,null,"Don't know",null,null,"Don't know",null,null,null,null,null,null,null,null,null,null,null,null,null,null,"j. Any other contraceptive(s)?"]
[null,null,"i. Name of other contraceptive(s) on the list(s)",null,null,"Don't know",null,null,null,0,null,null,null,null,null,null,null,{"$f":"B119","v":0}]
["D9. What year(s) is the list(s) from?",null,null,null,null,2003,null,null,null,0,null,null,null,null,null,null,null,{"$f":"B120","v":0}]
["D10. Name of the list(s)\n\n\n",null,null,"National Essential Medicine List",null,null,null,null,null,null,{"$f":"A121","v":"D10. Name of the list(s)\n\n\n"},null,null,null,{"$f":"D121","v":"National Essential Medicine List"}]
["D11. Notes about the list(s)\n\n\n",null,null,"The list is currently under review.",null,null,null,null,null,null,{"$f":"A122","v":"D11. Notes about the list(s)\n\n\n"},null,null,null,{"$f":"D122","v":"The list is currently under review."}]
["D12.  Information on country's Poverty Reduction Strategy Paper (PRSP)\n",null,null,null,null,null,null,null,null,null,null,null,null,null,null,null,null,null,null,null,null,null,null,{"$f":"A123","v":"D12.  Information on country's Poverty Reduction Strategy Paper (PRSP)\n"}]
[null,"a. What year is the Poverty Reduction Strategy Paper from? (most recent actual PRSP on IMF's site [not progress or summary report])",null,null,null,2004,null,null,null,{"$f":"G124","v":0},null,null,null,null,null,null,null,{"$f":"B124","v":"a. What year is the Poverty Reduction Strategy Paper from? (most recent actual PRSP on IMF's site [not progress or summary report])"}]
[null,"b. Is family planning or reproductive health a priority in the PRSP?",null,null,null,null,"No",null,null,{"$f":"G125","v":"No"},null,null,null,null,null,null,null,null,null,null,null,null,null,null,{"$f":"B125","v":"b. Is family planning or reproductive health a priority in the PRSP?"}]
[null,"c. Is contraceptive security included in the PRSP?",null,null,null,null,"No",null,null,{"$f":"G126","v":"No"},null,null,null,null,null,null,null,null,null,null,null,null,null,null,{"$f":"B126","v":"c. Is contraceptive security included in the PRSP?"}]
[null,"d. Is contraceptive prevalence rate (CPR) included as an indicator in the PRSP?",null,null,null,null,"No",null,null,{"$f":"G127","v":"No"},null,null,null,null,null,null,null,null,null,null,null,null,null,null,{"$f":"B127","v":"d. Is contraceptive prevalence rate (CPR) included as an indicator in the PRSP?"}]
[null,"e. Are contraceptive supply indicators included in the PRSP?",null,null,null,null,"No",null,null,{"$f":"G128","v":"No"},null,null,null,null,null,null,null,null,null,null,null,null,null,null,{"$f":"B128","v":"e. Are contraceptive supply indicators included in the PRSP?"}]
["\n\n\n","f. Notes about the Poverty Reduction Strategy Paper",null,null,null,null,null,null,null,null,{"$f":"B129","v":"f. Notes about the Poverty Reduction Strategy Paper"},null,null,null,{"$f":"D129","v":0}]
["E. Supply Chain (Capacity)"]
["E1. Have stockouts occurred for any contraceptive at the central* level in the last 12 months?  \n*(The central level refers to the central level warehouse for the public sector.)",null,null,null,null,null,"Yes",null,null,{"$f":"G131","v":"Yes"},null,null,null,null,null,null,null,null,null,null,null,null,null,null,{"$f":"A131","v":"E1. Have stockouts occurred for any contraceptive at the central* level in the last 12 months?  \n*(The central level refers to the central level warehouse for the public sector.)"}]
["E2. In the last 12 months, has there ever been a stockout at the central level of any of the contraceptives offered in public sector facilities? (If a method is not intended to be offered in public sector facilities, please indicate that stockouts are not applicable (choose \"N/A\" from the dropdown list).)",null,null,null,null,null,null,null,null,null,null,null,null,null,null,null,null,null,null,null,null,null,null,{"$f":"A132","v":"E2. In the last 12 months, has there ever been a stockout at the central level of any of the contraceptives offered in public sector facilities? (If a method is not intended to be offered in public sector facilities, please indicate that stockouts are not applicable (choose \"N/A\" from the dropdown list).)"}]
[null,"a. Combined oral contraceptives",null,null,null,null,"No",null,null,{"$f":"G133","v":"No"},null,null,null,null,null,null,null,null,null,null,null,null,null,null,{"$f":"B133","v":"a. Combined oral contraceptives"}]
[null,"b. Progestin-only pills",null,null,null,null,"No",null,null,"No",null,null,null,null,null,null,null,null,null,null,null,null,null,null,"b. Progestin-only pills"]
[null,"c. Hormonal injections",null,null,null,null,"Yes",null,null,"Yes",null,null,null,null,null,null,null,null,null,null,null,null,null,null,"c. Hormonal injections"]
[null,"d. Hormonal implants",null,null,null,null,"No",null,null,"No",null,null,null,null,null,null,null,null,null,null,null,null,null,null,"d. Hormonal implants"]
[null,"e. Intrauterine devices (IUDs)",null,null,null,null,"Yes",null,null,"Yes",null,null,null,null,null,null,null,null,null,null,null,null,null,null,"e. Intrauterine devices (IUDs)"]
[null,"f. Male condoms",null,null,null,null,"Yes",null,null,"Yes",null,null,null,null,null,null,null,null,null,null,null,null,null,null,"f. Male condoms"]
[null,"g. Female condoms",null,null,null,null,"Yes",null,null,"Yes",null,null,null,null,null,null,null,null,null,null,null,null,null,null,"g. Female condoms"]
[null,"h. Emergency contraceptive pills",null,null,null,null,"N/A",null,null,"N/A",null,null,null,null,null,null,null,null,null,null,null,null,null,null,"h. Emergency contraceptive pills"]
[null,"i. CycleBeads",null,null,null,null,"N/A",null,null,"N/A",null,null,null,null,null,null,null,null,null,null,null,null,null,null,"i. CycleBeads"]
[null,"j. Time period\n(mm/yy - mm/yy) (for example, 1/10-12/10) ",null,null,null,"01/10-12/10",null,null,null,null,null,null,null,null,null,null,{"$f":"F142","v":"01/10-12/10"},{"$f":"B142","v":"j. Time period\n(mm/yy - mm/yy) (for example, 1/10-12/10) "}]
[null,"k. Data source\n(for example: Procurement Planning and Monitoring Report, Logistics Management Information System, periodic physical inventory, warehouse reports)",null,null,null,"Periodic warehouse physical inventories",null,null,null,null,null,null,null,null,null,null,{"$f":"F143","v":"Periodic warehouse physical inventories"},{"$f":"B143","v":"k. Data source\n(for example: Procurement Planning and Monitoring Report, Logistics Management Information System, periodic physical inventory, warehouse reports)"}]
["E3. Are stockouts a large problem in your country at the following levels? (i.e., Are they common or do they tend to last for a long time?)\n\n"]
[null,"a. service delivery point level (i.e., public sector health facilities)",null,null,null,null,"Don't know",null,null,{"$f":"G145","v":"Don't know"},null,null,null,null,null,null,null,null,null,null,null,null,null,null,{"$f":"B145","v":"a. service delivery point level (i.e., public sector health facilities)"}]
[null,"b. central level (i.e., central level warehouse for the public sector)",null,null,null,null,"Yes",null,null,{"$f":"G146","v":"Yes"},null,null,null,null,null,null,null,null,null,null,null,null,null,null,{"$f":"B146","v":"b. central level (i.e., central level warehouse for the public sector)"}]
["F. Please note any overall comments about challenges and/or successes with contraceptive security in your country.\n\n",null,null,"The USAID | DELIVER PROJECT and UNFPA are in the process of collaborating with FMOH to draft an updated RHCS strategic plan for 2011-2015. UNFPA placed orders for 2 miliion USD worth of contraceptives in the first week of March 2011 (half of this was from its own funds). UNFPA will spend a total of 2 million USD of its own funds to procure public sector contraceptives in 2011. The FMOH has yet to confirm funding for its planned procurement of 3 million USD worth of contraceptives. DfID is considering matching FMOH funding for 2011. ",null,null,null,null,null,null,{"$f":"A147","v":"F. Please note any overall comments about challenges and/or successes with contraceptive security in your country.\n\n"},null,null,null,{"$f":"D147","v":"The USAID | DELIVER PROJECT and UNFPA are in the process of collaborating with FMOH to draft an updated RHCS strategic plan for 2011-2015. UNFPA placed orders for 2 miliion USD worth of contraceptives in the first week of March 2011 (half of this was from its own funds). UNFPA will spend a total of 2 million USD of its own funds to procure public sector contraceptives in 2011. The FMOH has yet to confirm funding for its planned procurement of 3 million USD worth of contraceptives. DfID is considering matching FMOH funding for 2011. "}]

{"sheet":"Pakistan 2011","index":32,"n_rows":147,"n_cols":25,"rows_kept":147,"cut":false,"hidden":false,"merged":[[0,0,0,7],[1,0,1,2],[1,3,1,4],[2,0,2,7],[3,3,3,4],[3,5,3,7],[9,0,9,7],[10,0,10,6],[11,0,11,6],[12,1,12,2],[12,3,12,7],[13,0,13,2],[13,3,13,7],[8,0,8,7],[7,0,7,2],[7,3,7,5],[7,6,7,7],[17,1,17,2],[17,5,17,7],[18,1,18,2],[18,5,18,7],[19,1,19,2],[19,5,19,7],[14,1,14,2],[14,5,14,7],[15,1,15,2],[15,5,15,7],[16,1,16,2],[16,5,16,7],[23,0,23,6],[24,0,24,6],[25,0,25,2],[26,0,26,6],[27,0,27,2],[27,3,27,4],[20,1,20,2],[20,5,20,7],[21,1,21,2],[21,5,21,7],[22,1,22,2],[22,5,22,7],[32,0,32,7],[33,1,33,3],[34,1,34,3],[35,0,35,7],[36,0,36,6],[37,0,37,7],[28,0,28,5],[28,6,28,7],[29,0,29,3],[29,6,29,7],[30,0,30,6],[31,0,31,6],[45,0,45,7],[46,1,46,2],[47,1,47,2],[48,3,48,7],[49,1,49,2],[50,1,50,2],[38,1,38,2],[39,1,39,2],[40,3,40,7],[41,1,41,2],[42,3,42,7],[43,1,43,2],[56,0,56,4],[56,6,56,7],[58,0,58,4],[58,5,58,7],[59,1,59,4],[59,5,59,7],[51,1,51,2],[53,0,53,7],[54,0,54,4],[54,6,54,7],[55,0,55,4],[55,6,55,7],[64,0,64,2],[64,3,64,4],[65,1,65,2],[65,3,65,4],[66,1,66,2],[66,3,66,4],[60,2,60,4],[60,5,60,7],[61,0,61,2],[61,3,61,7],[62,0,62,6],[63,0,63,7],[70,1,70,2],[70,3,70,4],[71,1,71,2],[71,3,71,4],[72,1,72,2],[72,3,72,4],[67,1,67,2],[67,3,67,4],[68,1,68,2],[68,3,68,4],[69,1,69,2],[69,3,69,4],[76,1,76,2],[76,3,76,4],[77,0,77,2],[77,3,77,7],[78,0,78,6],[79,0,79,6],[73,1,73,2],[73,3,73,4],[74,1,74,2],[74,3,74,4],[75,1,75,2],[75,3,75,4],[83,0,83,4],[83,5,83,7],[84,1,84,3],[84,4,84,7],[85,1,85,3],[85,4,85,7],[80,0,80,2],[81,0,82,0],[81,1,81,2],[81,3,81,4],[81,6,81,7],[82,3,82,4],[82,6,82,7],[90,0,90,6],[91,1,91,2],[92,1,92,3],[92,4,92,5],[92,6,92,7],[93,2,93,3],[93,4,93,5],[93,6,93,7],[86,0,86,6],[87,1,87,2],[87,3,87,7],[88,0,88,6],[89,1,89,2],[89,3,89,7],[96,0,96,7],[97,0,97,2],[97,4,97,6],[98,1,98,2],[98,4,98,6],[99,1,99,2],[99,4,99,6],[94,2,94,3],[94,4,94,5],[94,6,94,7],[95,2,95,3],[95,4,95,5],[95,6,95,7],[104,1,104,5],[104,6,104,7],[105,1,105,5],[105,6,105,7],[106,3,106,7],[107,0,107,7],[100,1,100,2],[100,4,100,6],[101,0,101,7],[102,0,102,7],[103,1,103,5],[103,6,103,7],[111,1,111,5],[111,6,111,7],[112,1,112,5],[112,6,112,7],[113,1,113,5],[113,6,113,7],[108,1,108,5],[108,6,108,7],[109,1,109,5],[109,6,109,7],[110,1,110,5],[110,6,110,7],[131,0,131,7],[132,1,132,5],[132,6,132,7],[133,1,133,5],[133,6,133,7],[134,1,134,5],[134,6,134,7],[120,0,120,2],[120,3,120,7],[121,0,121,2],[121,3,121,7],[129,0,129,6],[130,0,130,5],[130,6,130,7],[122,0,122,7],[123,1,123,4],[123,5,123,7],[138,1,138,5],[138,6,138,7],[139,1,139,5],[139,6,139,7],[140,1,140,5],[140,6,140,7],[135,1,135,5],[135,6,135,7],[136,1,136,5],[136,6,136,7],[137,1,137,5],[137,6,137,7],[147,0,147,7],[148,0,150,7],[145,1,145,5],[145,6,145,7],[146,0,146,2],[146,3,146,7],[141,1,141,4],[141,5,141,7],[142,1,142,4],[142,5,142,7],[143,0,143,7],[144,1,144,5],[144,6,144,7],[4,0,4,2],[5,0,5,2],[127,1,127,5],[127,6,127,7],[128,1,128,2],[128,3,128,7],[124,1,124,5],[124,6,124,7],[125,1,125,5],[125,6,125,7],[126,1,126,5],[126,6,126,7],[117,1,117,5],[117,6,117,7],[118,2,118,4],[118,5,118,7],[119,0,119,4],[119,5,119,7],[114,1,114,5],[114,6,114,7],[115,1,115,5],[115,6,115,7],[116,1,116,5],[116,6,116,7]]}
[null,null,null,null,null,null,null,null,"Columns I-Y are meant to be hidden. They exist because they allow for the dropdown list options. They also allow for merged cells to autofit properly in terms of row height. This should work if all columns remain at their correct widths.","g-h",null,"a-e merged","E-F merged","e-h","0 times",null,null,"The government (e.g., Central Medical Stores, MOH logistics unit, MOH procurement unit)",null,null,null,null,"Yes","a-h","January"]
[null,null,null,null,null,null,null,null,null,null,"A-c",null,null,null,"1-2 times","b-d merged",null,"Third-party agent (e.g., UNFPA, Crown Agents)","d-e merged","d-f merged","e-f merged","e-g merged","No",null,"February"]
[null,null,null,null,null,null,null,null,null,null,null,null,null,null,"3-5 times",null,null,"The government and a third-party agent",null,null,null,null,null,null,"March"]
[null,null,null,null,null,null,null,null,null,null,null,null,null,null,"6 or more times",null,null,"Other",null,null,null,null,"N/A",null,"April"]
["To jump to the Introduction sheet, click here.",null,null,null,null,null,null,null,null,null,null,null,null,null,null,null,null,null,null,null,null,null,"Don't know",null,"May"]
[null,null,null,null,null,null,null,null,null,null,null,null,null,null,"N/A",null,null,"N/A",null,null,null,null,null,null,"June"]
["Contraceptive Security (CS) Indicators 2011 Data ",null,null,null,null,null,null,null,null,null,null,null,null,null,"Don't know",null,null,"Don't know",null,null,null,null,null,null,"July"]
["Country: Pakistan",null,null,null,null,null,null,null,null,{"$f":"G8","v":0},{"$f":"A8","v":"Country: Pakistan"},null,null,null,null,"or c-d",null,null,null,{"$f":"D8","v":0},null,null,null,null,"August"]
["The CS Indicators are presented in the following sections:\n\n               A. leadership & cooordination               B. finance & procurement               C. commodities               D. policies               E. supply chain",null,null,null,null,null,null,null,null,{"$f":"G9","v":0},{"$f":"A9","v":"The CS Indicators are presented in the following sections:\n\n               A. leadership & cooordination               B. finance & procurement               C. commodities               D. policies               E. supply chain"},null,null,null,"d-h",null,"f-h merged",null,{"$f":"D9","v":0},null,null,null,null,null,"September"]
["\nNotes:\n  -  Respondents' answers are indicated in the white spaces. \n  -  N/A = not applicable. Don't know = the respondent either indicated they did not know or left the answer blank.\n  -  Some questions required respondents to choose from a dropdown list of options; in these cases the dropdown arrow will \n     appear when you click on the cell. \n  -  There may be a few inserted comments. (If you cannot already see them, click on Review tab - Comments group - Show All Comments in newer \n       versions of Excel or View - Comments in older versions of Excel.)\n  -  If the answer is cut off, you can either manually adjust the row height or autofit the row height in order to see the whole \n     response. (To autofit the row height, select the answer(s) and go to Home tab - Cells group - Format - Autofit Row Height in newer versions of Excel or \n      Format - Row - Autofit in older versions of Excel.)\n",null,null,null,null,null,null,null,"a-g",null,null,null,null,null,null,null,null,"a-e merged",null,null,null,null,null,{"$f":"A10","v":"\nNotes:\n  -  Respondents' answers are indicated in the white spaces. \n  -  N/A = not applicable. Don't know = the respondent either indicated they did not know or left the answer blank.\n  -  Some questions required respondents to choose from a dropdown list of options; in these cases the dropdown arrow will \n     appear when you click on the cell. \n  -  There may be a few inserted comments. (If you cannot already see them, click on Review tab - Comments group - Show All Comments in newer \n       versions of Excel or View - Comments in older versions of Excel.)\n  -  If the answer is cut off, you can either manually adjust the row height or autofit the row height in order to see the whole \n     response. (To autofit the row height, select the answer(s) and go to Home tab - Cells group - Format - Autofit Row Height in newer versions of Excel or \n      Format - Row - Autofit in older versions of Excel.)\n"},"October"]
["A. Leadership and Coordination",null,null,null,null,null,null,null,null,null,null,null,null,null,null,null,null,null,null,null,null,null,null,null,"November"]
["A1. Is there a national committee that works on contraceptive security? (Please select from the dropdown list.)\n(Committee should have some aspect of contraceptive security as part of its Terms of Reference, even if it is known by a different name, for example: Family Planning, Reproductive Health, Maternal Mortality, Essential Medicine Committee, etc.)  ",null,null,null,null,null,null,"Yes",{"$f":"A12","v":"A1. Is there a national committee that works on contraceptive security? (Please select from the dropdown list.)\n(Committee should have some aspect of contraceptive security as part of its Terms of Reference, even if it is known by a different name, for example: Family Planning, Reproductive Health, Maternal Mortality, Essential Medicine Committee, etc.)  "},null,null,null,null,null,null,null,null,null,null,null,null,null,null,null,"December"]
[null,"a. What is the name of the committee?",null,"Reproductive Health Commodity Security Committee (RHCS) - Currently the committee is inactive and the USAID | DELIVER PROJECT plans to revitalize it through CS inputs. There is a new initiatve called National Birth Spacing Initiative in which a sub-committee on \"Logistics and Supply Chain\" has been delegated to USAID | DELIVER Pakistan for convening. However, this arrangement has not yet been finalized with provinces under devolution. ",null,null,null,null,null,null,{"$f":"B13","v":"a. What is the name of the committee?"},{"$f":"D13","v":"Reproductive Health Commodity Security Committee (RHCS) - Currently the committee is inactive and the USAID | DELIVER PROJECT plans to revitalize it through CS inputs. There is a new initiatve called National Birth Spacing Initiative in which a sub-committee on \"Logistics and Supply Chain\" has been delegated to USAID | DELIVER Pakistan for convening. However, this arrangement has not yet been finalized with provinces under devolution. "},null,null,{"$f":"D13","v":"Reproductive Health Commodity Security Committee (RHCS) - Currently the committee is inactive and the USAID | DELIVER PROJECT plans to revitalize it through CS inputs. There is a new initiatve called National Birth Spacing Initiative in which a sub-committee on \"Logistics and Supply Chain\" has been delegated to USAID | DELIVER Pakistan for convening. However, this arrangement has not yet been finalized with provinces under devolution. "}]
["A2. Are the following organizations represented on the committee?",null,null,"(Y/N \ndropdown)",null,null,null,null,null,null,{"$f":"A14","v":"A2. Are the following organizations represented on the committee?"},null,null,null,null,null,null,null,null,null,null,null,null,null,"Don't know"]
[null,"a. Social marketing",null,"Yes","If yes, specify name(s) of organizations","Greenstar Social Marketing, Pakistan",null,null,null,null,{"$f":"B15","v":"a. Social marketing"},null,null,null,null,null,{"$f":"F15","v":"Greenstar Social Marketing, Pakistan"}]
[null,"b. NGO (for example: service delivery, advocacy, Planned Parenthood affiliate, Marie Stopes affiliate, faith-based organizations, etc.)",null,"Yes","If yes, specify name(s) of organizations","Family Planning Association of Pakistan",null,null,null,null,"b. NGO (for example: service delivery, advocacy, Planned Parenthood affiliate, Marie Stopes affiliate, faith-based organizations, etc.)",null,null,null,null,null,"Family Planning Association of Pakistan"]
[null,"c. Commercial sector (for example: pharmacy associations, manufacturers, etc.)",null,"No","If yes, specify name(s) of organizations",null,null,null,null,null,"c. Commercial sector (for example: pharmacy associations, manufacturers, etc.)",null,null,null,null,null,0]
[null,"d. Donors",null,"Yes","If yes, specify name(s) of donors","USAID, DFID",null,null,null,null,"d. Donors",null,null,null,null,null,"USAID, DFID"]
[null,"e. UN agencies",null,"Yes","If yes, specify name(s) of agencies","UNFPA",null,null,null,null,"e. UN agencies",null,null,null,null,null,"UNFPA"]
[null,"f. Ministry of Health (for example: logistics, reproductive health, family planning, maternal and child health, HIV/AIDS, pharmacy units, etc.)",null,"Yes","If yes, specify name(s) of units","Representatives of Ministry of Health and Population Program Wing along with provincial secretaries as members",null,null,null,null,"f. Ministry of Health (for example: logistics, reproductive health, family planning, maternal and child health, HIV/AIDS, pharmacy units, etc.)",null,null,null,null,null,"Representatives of Ministry of Health and Population Program Wing along with provincial secretaries as members"]
[null,"g. Central Medical Store or Central Warehouse",null,"No","If yes, specify",null,null,null,null,null,"g. Central Medical Store or Central Warehouse",null,null,null,null,null,0]
[null,"h. Ministry of Finance or Ministry of Planning ",null,"No","If yes, specify",null,null,null,null,null,"h. Ministry of Finance or Ministry of Planning ",null,null,null,null,null,0]
[null,"i. Other (for example: partners)",null,null,"If yes, specify",null,null,null,null,null,"i. Other (for example: partners)",null,null,null,null,null,0]
["A3. How many times did the committee meet during the last year? (0, 1-2, 3-5, or 6+)  (Please select from the dropdown.)",null,null,null,null,null,null,"0 times",{"$f":"A24","v":"A3. How many times did the committee meet during the last year? (0, 1-2, 3-5, or 6+)  (Please select from the dropdown.)"}]
["A4. Does the committee have legal status?  (Please select from the dropdown.)                                  ",null,null,null,null,null,null,"Yes",{"$f":"A25","v":"A4. Does the committee have legal status?  (Please select from the dropdown.)                                  "}]
["A5. Is there a Contraceptive Security \"champion\"? (someone who consistently brings up and advocates for contraceptive supplies)",null,null,"Yes","If yes, specify person's organization","USAID","Specify person's job title","Activity Manager, USAID Pakistan",null,null,{"$f":"A26","v":"A5. Is there a Contraceptive Security \"champion\"? (someone who consistently brings up and advocates for contraceptive supplies)"}]
["B. Finance and Procurement (Capital)"]
["B1. What is the timeline of the country's fiscal year?",null,null,"Beginning month",null,"July","Ending month","June",null,null,{"$f":"B28","v":0}]
["B2. What was the estimated dollar value of contraceptives needed to be procured for the public sector for the most recent complete fiscal year? (in USD currency)\n(for example, to cover the needs for the '09-'10 fiscal year)",null,null,null,null,null,27500000,null,null,{"$f":"G29","v":27500000},null,null,{"$f":"E29","v":0},null,null,null,null,null,null,null,null,null,null,null,{"$f":"A29","v":"B2. What was the estimated dollar value of contraceptives needed to be procured for the public sector for the most recent complete fiscal year? (in USD currency)\n(for example, to cover the needs for the '09-'10 fiscal year)"}]
["B3. When was the last forecast/quantification conducted? (mm/yy)",null,null,null,"01/11","Who conducted it? (Specify organization.)","USAID | DELIVER PROJECT",null,null,{"$f":"G30","v":"USAID | DELIVER PROJECT"},null,null,{"$f":"E30","v":"01/11"},null,null,null,null,null,null,null,null,null,null,null,{"$f":"A30","v":"B3. When was the last forecast/quantification conducted? (mm/yy)"}]
["B4. Is there a government budget line item for the procurement of contraceptives?  (Please select from the dropdown list.)",null,null,null,null,null,null,"Yes",{"$f":"A31","v":"B4. Is there a government budget line item for the procurement of contraceptives?  (Please select from the dropdown list.)"}]
["B5. Were government funds allocated for contraceptive procurement for the public sector in the most recent complete fiscal year? (This question refers to funds planned to be spent on contraceptives, whether or not they ended up being spent.) \n\n(Government funds include internally generated funds, basket funds, World Bank credits or loans, and other funds donors gave to the government for their use.) \n",null,null,null,null,null,null,"Yes",{"$f":"A32","v":"B5. Were government funds allocated for contraceptive procurement for the public sector in the most recent complete fiscal year? (This question refers to funds planned to be spent on contraceptives, whether or not they ended up being spent.) \n\n(Government funds include internally generated funds, basket funds, World Bank credits or loans, and other funds donors gave to the government for their use.) \n"}]
["B6. Please complete the table below regarding government allocations for contraceptive procurement.",null,null,null,null,null,null,null,null,null,null,null,null,null,null,null,null,null,null,null,null,null,null,{"$f":"A33","v":"B6. Please complete the table below regarding government allocations for contraceptive procurement."}]
[null,null,null,null,"Amount allocated \n(in USD)","Time period during which allocations were supposed to be spent \n(mm/yy-mm/yy)\n(should ideally be the most recent\ncomplete fiscal year ['09-'10])","Data source \n(for example: Ministry records)","Comments",null,null,{"$f":"A34","v":0}]
[null,"Government funds allocated for contraceptive procurement\n(funds originally designated for contraceptives, whether or not they ended up being spent on them)",null,null,5400000,"07/09-06/10","Population Program Wing",null,null,null,{"$f":"#REF!","v":{"$error":"#REF!"}}]
[]
["B7. Were government funds spent on contraceptive procurement for the public sector in the most recent complete fiscal year? \n(Government funds include internally generated funds, basket funds, World Bank credits or loans, and other funds donors gave to the government for their use.)",null,null,null,null,null,null,"Yes",{"$f":"A37","v":"B7. Were government funds spent on contraceptive procurement for the public sector in the most recent complete fiscal year? \n(Government funds include internally generated funds, basket funds, World Bank credits or loans, and other funds donors gave to the government for their use.)"}]
["B8. Please complete the table below to indicate government expenditures on contraceptive procurement, by source, in the most recent complete fiscal year. \n(This is how much was spent on contraceptive procurement (not what was allocated). How much of this spending was provided from each source?)",null,null,null,null,null,null,null,null,null,null,null,null,null,null,null,null,null,null,null,null,null,null,{"$f":"A38","v":"B8. Please complete the table below to indicate government expenditures on contraceptive procurement, by source, in the most recent complete fiscal year. \n(This is how much was spent on contraceptive procurement (not what was allocated). How much of this spending was provided from each source?)"}]
[null,"Source of government funds spent on contraceptive procurement for the public sector",null,"Was this source used?\n(Y/N)","Amount spent \n(in USD)","Time period (mm/yy-mm/yy)\n(should be the same for all sources of funds & ideally be the most recent\ncomplete fiscal year ['09-'10])","Data source \n(for example: Contraceptive Procurement Table, PipeLine, etc.)","Comments",null,null,{"$f":"A39","v":0}]
[null,"a. Internally generated funds spent on contraceptive procurement",null,"Yes",1600000,"07/09-06/10","Population Program Wing",null,null,null,{"$f":"B40","v":"a. Internally generated funds spent on contraceptive procurement"}]
[null,null,"i. Specify source(s) of internally generated funds spent (for example, from taxes or user fees)","Public Sector Development Program",null,null,null,null,null,null,{"$f":"C41","v":"i. Specify source(s) of internally generated funds spent (for example, from taxes or user fees)"},null,null,null,{"$f":"D41","v":"Public Sector Development Program"}]
[null,"b. Total of all other government funds spent on contraceptive procurement (basket funds, World Bank credits or loans, and other funds donors gave to the government [e.g., direct budget support])",null,"Yes",3150000,"01/10-12/10","UNFPA (as procurement agent)",null,null,null,{"$f":"B42","v":"b. Total of all other government funds spent on contraceptive procurement (basket funds, World Bank credits or loans, and other funds donors gave to the government [e.g., direct budget support])"}]
[null,null,"i. Specify source(s) of other government funds spent (for example: basket funding or specific donor)","Public Sector Development Program",null,null,null,null,null,null,{"$f":"C43","v":"i. Specify source(s) of other government funds spent (for example: basket funding or specific donor)"},null,null,null,{"$f":"D43","v":"Public Sector Development Program"}]
[null,"c. TOTAL government funds spent on contraceptive procurement\nThis will auto-calculate.  (It will sum a & b above.)",null,null,{"$f":"E40+E42","v":4750000},null,null,null,null,null,{"$f":"B44","v":"c. TOTAL government funds spent on contraceptive procurement\nThis will auto-calculate.  (It will sum a & b above.)"}]
[null,null,null,null,null,null,null,null,null,null,{"$f":"A45","v":0}]
["B9. Please complete the table below to indicate donor expenditures on contraceptive procurement in the most recent complete fiscal year.\n",null,null,null,null,null,null,null,null,null,null,null,null,null,null,null,null,null,null,null,null,null,null,{"$f":"A46","v":"B9. Please complete the table below to indicate donor expenditures on contraceptive procurement in the most recent complete fiscal year.\n"}]
["\n","Source of donations and donor funds spent on contraceptive procurement for the public sector",null,"Was this a source?\n(Y/N)","Amount of money spent on these procurements \n(in USD)","Time period (mm/yy-mm/yy)\n(should be the same for all sources of funds & ideally be the most recent\ncomplete fiscal year ['09-'10])","Data source \n(for example:  Donor records, Contraceptive Procurement Table, PipeLine, RHInterchange, etc.","Comments",null,null,{"$f":"A47","v":"\n"}]
[null,"a. In-kind donations of contraceptives",null,"Yes",12000000,"01/10-12/10","USAID | DELIVER PROJECT",null,null,null,{"$f":"B48","v":"a. In-kind donations of contraceptives"}]
[null,null,"i. Specify source(s) of in-kind donations ","USAID Pakistan",null,null,null,null,null,null,{"$f":"C49","v":"i. Specify source(s) of in-kind donations "},null,null,null,{"$f":"D49","v":"USAID Pakistan"}]
[null,"b. Global Fund donations used to procure condoms",null,"No",0,"01/10-12/10",null,null,null,null,{"$f":"B50","v":"b. Global Fund donations used to procure condoms"}]
[null,"c. Global Fund donations used to procure contraceptives besides condoms",null,"No",0,"01/10-12/10",null,null,null,null,{"$f":"B51","v":"c. Global Fund donations used to procure contraceptives besides condoms"}]
[null,"d. TOTAL value of in-kind donations and Global Fund donations spent on contraceptive procurement\nThis will auto-calculate.  (It will sum a-c above.)",null,null,{"$f":"E48+E50+E51","v":12000000},null,null,null,null,null,{"$f":"B52","v":"d. TOTAL value of in-kind donations and Global Fund donations spent on contraceptive procurement\nThis will auto-calculate.  (It will sum a-c above.)"}]
[null,null,null,null,null,null,null,null,null,null,{"$f":"A53","v":0}]
["The answers to B10 and B11 should calculate automatically based on the information you provided. Please review the answers to ensure they make sense to you, and if you have additional information to add, please note it in the comments boxes.\n\nIf the answers do not calculate automatically, please provide any relevant information you may have in the comments boxes.\n",null,null,null,null,null,null,null,null,null,null,null,null,null,null,null,null,null,null,null,null,null,null,{"$f":"A54","v":"The answers to B10 and B11 should calculate automatically based on the information you provided. Please review the answers to ensure they make sense to you, and if you have additional information to add, please note it in the comments boxes.\n\nIf the answers do not calculate automatically, please provide any relevant information you may have in the comments boxes.\n"}]
["B10. Government share of funds spent on contraceptive procurement for the public sector - \nOf the total amount spent on contraceptives for the public sector in the most recent complete fiscal year (including government and donor funds), what percent was covered by government funds (including internally generated funds, basket funds, World Bank credits or loans, and other funds given to the government)? \n\nThis will auto-calculate. (It contains the following formula: Total government spending (Question B8c) / Grand total of all spending for public sector contraceptives from the government and donors (Questions B8c+B9d))",null,null,null,null,{"$f":"E44/(E44+E52)","v":0.28358208955223879},"Public sector money was redirected to support internally displaced populations due to floods\n",null,null,{"$f":"G55","v":"Public sector money was redirected to support internally displaced populations due to floods\n"},null,null,null,null,null,null,null,{"$f":"A55","v":"B10. Government share of funds spent on contraceptive procurement for the public sector - \nOf the total amount spent on contraceptives for the public sector in the most recent complete fiscal year (including government and donor funds), what percent was covered by government funds (including internally generated funds, basket funds, World Bank credits or loans, and other funds given to the government)? \n\nThis will auto-calculate. (It contains the following formula: Total government spending (Question B8c) / Grand total of all spending for public sector contraceptives from the government and donors (Questions B8c+B9d))"}]
["B11. Total expenditures on public sector contraceptives as percent of amount that needed to be procured -\nOf the estimated value of the contraceptives needed to be procured for the public sector for the most recent complete fiscal year, what percent was provided by any source (whether government or donor)? \n\nThis will auto-calculate. (It contains the following formula: Grand total of all spending for public sector contraceptives from the government and donors (Questions B8c+B9d) / Value of estimated need for procurement (Question B2))",null,null,null,null,{"$f":"(E44+E52)/G29","v":0.60909090909090913},null,null,null,{"$f":"G56","v":0},null,null,null,null,null,null,null,{"$f":"A56","v":"B11. Total expenditures on public sector contraceptives as percent of amount that needed to be procured -\nOf the estimated value of the contraceptives needed to be procured for the public sector for the most recent complete fiscal year, what percent was provided by any source (whether government or donor)? \n\nThis will auto-calculate. (It contains the following formula: Grand total of all spending for public sector contraceptives from the government and donors (Questions B8c+B9d) / Value of estimated need for procurement (Question B2))"}]
["B12. If B11 did not calculate automatically, please answer the following question:\nWas there a funding gap for the public sector in the last complete fiscal year (e.g., 09-'10 fiscal year)?\n(Please select from the dropdown list.)",null,null,null,null,null,null,null,null,{"$f":"G57","v":0},null,null,null,null,null,null,null,{"$f":"A57","v":"B12. If B11 did not calculate automatically, please answer the following question:\nWas there a funding gap for the public sector in the last complete fiscal year (e.g., 09-'10 fiscal year)?\n(Please select from the dropdown list.)"}]
[null,null,null,null,null,null,null,null,null,null,{"$f":"A58","v":0}]
["B13. If the government financed any contraceptive procurement in the most recent complete fiscal year, which entity conducted the procurement(s)? (Please select from the dropdown.)",null,null,null,null,"The government and a third-party agent",null,null,null,null,null,null,null,null,null,null,{"$f":"F59","v":"The government and a third-party agent"},{"$f":"A59","v":"B13. If the government financed any contraceptive procurement in the most recent complete fiscal year, which entity conducted the procurement(s)? (Please select from the dropdown.)"}]
[null,"a. Specify entity",null,null,null,"UNFPA and direct procurement from local producers (from ZAFA Pharmaceuticals Laboratories)",null,null,null,null,null,null,{"$f":"E60","v":0},null,null,null,{"$f":"F60","v":"UNFPA and direct procurement from local producers (from ZAFA Pharmaceuticals Laboratories)"},{"$f":"B60","v":"a. Specify entity"}]
[null,null,"i. Is this a parastatal?",null,null,"No",null,null,null,null,null,null,null,null,null,null,{"$f":"F61","v":"No"},{"$f":"C61","v":"i. Is this a parastatal?"}]
["B14. Please note any additional comments about finance and procurement.\n",null,null,null,null,null,null,null,null,null,{"$f":"A62","v":"B14. Please note any additional comments about finance and procurement.\n"},null,null,null,{"$f":"D62","v":0}]
["C. Commodities"]
["C1. Are the following contraceptive methods offered through the commercial sector, public sector, NGOs, or social marketing? (Please indicate which methods are intended to be offered. This question is not asking whether the method is in stock.) \n(Please select from the dropdown list.)",null,null,null,null,null,null,null,null,null,null,null,null,null,null,null,null,null,null,null,null,null,null,{"$f":"A64","v":"C1. Are the following contraceptive methods offered through the commercial sector, public sector, NGOs, or social marketing? (Please indicate which methods are intended to be offered. This question is not asking whether the method is in stock.) \n(Please select from the dropdown list.)"}]
["Contraceptive Method",null,null,"Commercial Sector",null,"Public Sector","NGO","Social Marketing",null,null,{"$f":"A65","v":"Contraceptive Method"}]
[null,"a. Combined oral contraceptives (estrogen + progestin - for  example, LoFemenol, Microgynon)",null,"Yes",null,"Yes","Yes","Yes",null,null,{"$f":"B66","v":"a. Combined oral contraceptives (estrogen + progestin - for  example, LoFemenol, Microgynon)"}]
[null,"b. Progestin-only pills (for example, Ovrette, Microlut)",null,"Yes",null,"Yes","No","No",null,null,{"$f":"B67","v":"b. Progestin-only pills (for example, Ovrette, Microlut)"}]
[null,"c. Hormonal injections (for example, DepoProvera, Noristerat)",null,"Yes",null,"Yes","Yes","Yes",null,null,"c. Hormonal injections (for example, DepoProvera, Noristerat)"]
[null,"d. Hormonal implants (for example, Jadelle, Implanon)",null,"Yes",null,"Yes","Yes","No",null,null,"d. Hormonal implants (for example, Jadelle, Implanon)"]
[null,"e. Intrauterine devices (IUDs) (for example, Optima Copper T)",null,"Yes",null,"Yes","Yes","Yes",null,null,"e. Intrauterine devices (IUDs) (for example, Optima Copper T)"]
[null,"f. Male condoms",null,"Yes",null,"Yes","Yes","Yes",null,null,"f. Male condoms"]
[null,"g. Female condoms",null,"No",null,"No","Yes","No",null,null,"g. Female condoms"]
[null,"h. Emergency contraceptive pills (for example, Postinor)",null,"Yes",null,"Yes","Yes","Yes",null,null,"h. Emergency contraceptive pills (for example, Postinor)"]
[null,"i. Long-acting permanent method for males (vasectomy)",null,"Yes",null,"Yes","Yes","No",null,null,"i. Long-acting permanent method for males (vasectomy)"]
[null,"j. Long-acting permanent method for females (tubal ligation)",null,"Yes",null,"Yes","Yes","Yes",null,null,"j. Long-acting permanent method for females (tubal ligation)"]
[null,"k. CycleBeads",null,"No",null,"No","Yes","Yes",null,null,"k. CycleBeads"]
[null,"l. Other contraceptive methods - specify \n(Please provide the name of the other contraceptive(s) offered, by sector.)",null,null,null,null,null,null,null,null,"l. Other contraceptive methods - specify \n(Please provide the name of the other contraceptive(s) offered, by sector.)"]
["C2. Please note any comments about the commodities offered.",null,null,null,null,null,null,null,null,null,{"$f":"A78","v":"C2. Please note any comments about the commodities offered."},null,null,null,{"$f":"D78","v":0}]
["D. Policies (Commitment)"]
["D1. Is there a contraceptive security or reproductive health commodity security strategy or is contraceptive security explicitly included in a country strategy? (Please select from the dropdown list.)",null,null,null,null,null,null,"Yes",{"$f":"A80","v":"D1. Is there a contraceptive security or reproductive health commodity security strategy or is contraceptive security explicitly included in a country strategy? (Please select from the dropdown list.)"}]
["IF NO, SKIP TO QUESTION D2."]
[null,"Strategy name",null,"Years Covered (including strategy updates)",null,"Is the strategy formally approved by the Ministry?","Is the contraceptive security strategy being implemented?",null,null,{"$f":"G82","v":"Is the contraceptive security strategy being implemented?"},{"$f":"B82","v":"Strategy name"},null,{"$f":"E82","v":0},null,null,null,null,null,{"$f":"D82","v":"Years Covered (including strategy updates)"}]
[null,"a","National Population Policy","2010 - 2014",null,"Yes","Don't know",null,null,{"$f":"G83","v":"Don't know"},{"$f":"B83","v":"a"},null,{"$f":"E83","v":0},null,null,null,null,null,{"$f":"D83","v":"2010 - 2014"}]
["D2. Are any family planning commodities subject to duties, import taxes, or other fees?",null,null,null,null,"Yes",null,null,null,null,null,null,null,null,null,null,{"$f":"F84","v":"Yes"},{"$f":"A84","v":"D2. Are any family planning commodities subject to duties, import taxes, or other fees?"}]
[null,"a. If yes, for which sectors (public, NGO, social marketing, commercial)?",null,null,"NGOs, social marketing, and commercial",null,null,null,null,null,null,null,{"$f":"E85","v":"NGOs, social marketing, and commercial"},{"$f":"E85","v":"NGOs, social marketing, and commercial"},null,null,null,{"$f":"B85","v":"a. If yes, for which sectors (public, NGO, social marketing, commercial)?"}]
[null,"b. If yes, how much are the duties, taxes, or fees?",null,null,"Aluminium foil, PVC, syringes and vials (used for packaging contraceptive products) have a regulatory duty and income tax @ 1% and 4% for all of the aforementioned products; and a customs duty of 5%, 10%, 14.79% and 5%; and a sales tax of 16%, 21%, 16% and 16% for the respective products.",null,null,null,null,null,null,null,null,{"$f":"E86","v":"Aluminium foil, PVC, syringes and vials (used for packaging contraceptive products) have a regulatory duty and income tax @ 1% and 4% for all of the aforementioned products; and a customs duty of 5%, 10%, 14.79% and 5%; and a sales tax of 16%, 21%, 16% and 16% for the respective products."},null,null,null,{"$f":"B86","v":"b. If yes, how much are the duties, taxes, or fees?"}]
["D3. Are there policies that hinder the ability of the private sector (commercial sector, NGOs, or social marketing) to provide contraceptive methods (for example: price controls, distribution limitations, taxes/duties, advertising bans, etc.)?",null,null,null,null,null,null,"No",{"$f":"A87","v":"D3. Are there policies that hinder the ability of the private sector (commercial sector, NGOs, or social marketing) to provide contraceptive methods (for example: price controls, distribution limitations, taxes/duties, advertising bans, etc.)?"}]
[null,"a. If yes, describe the policies.",null,"N/A",null,null,null,null,null,null,{"$f":"B88","v":"a. If yes, describe the policies."},null,null,null,{"$f":"D88","v":"N/A"}]
["D4. Are there policies that enable the private sector (commercial sector, NGOs, or social marketing) to provide contraceptive methods?",null,null,null,null,null,null,"Yes",{"$f":"A89","v":"D4. Are there policies that enable the private sector (commercial sector, NGOs, or social marketing) to provide contraceptive methods?"}]
[null,"a. If yes, describe the policies.",null,"1. High political will 2. Exemption from all duties creates a conducive environment for producers like ZAFA and Schering 3. Over-the-counter availability",null,null,null,null,null,null,{"$f":"B90","v":"a. If yes, describe the policies."},null,null,null,{"$f":"D90","v":"1. High political will 2. Exemption from all duties creates a conducive environment for producers like ZAFA and Schering 3. Over-the-counter availability"}]
["D5. Do policies or regulations exist that restrict who can sell or dispense particular contraceptive methods?\n",null,null,null,null,null,null,"Yes",{"$f":"A91","v":"D5. Do policies or regulations exist that restrict who can sell or dispense particular contraceptive methods?\n"}]
[null,"Please note any restrictions in the following table."]
[null,"Contraceptive Method(s)",null,null,"Describe any public sector restriction on who is allowed to sell or dispense the method",null,"Describe any private sector restriction on who is allowed to sell or dispense the method",null,null,{"$f":"G93","v":"Describe any private sector restriction on who is allowed to sell or dispense the method"},null,null,null,null,null,{"$f":"B93","v":"Contraceptive Method(s)"},null,null,null,null,{"$f":"E93","v":"Describe any public sector restriction on who is allowed to sell or dispense the method"}]
[null,"a","IUD, surgical/permanent contraception, Implanon implant",null,"Trained healthcare provider",null,"Trained healthcare provider",null,null,{"$f":"G94","v":"Trained healthcare provider"},null,null,{"$f":"E94","v":"Trained healthcare provider"},null,null,{"$f":"C94","v":"IUD, surgical/permanent contraception, Implanon implant"},null,null,null,null,{"$f":"E94","v":"Trained healthcare provider"}]
[null,"b",null,null,null,null,null,null,null,{"$f":"G95","v":0},null,null,{"$f":"E95","v":0},null,null,{"$f":"C95","v":0},null,null,null,null,{"$f":"E95","v":0}]
[null,"c",null,null,null,null,null,null,null,{"$f":"G96","v":0},null,null,{"$f":"E96","v":0},null,null,{"$f":"C96","v":0},null,null,null,null,{"$f":"E96","v":0}]
[null,null,null,null,null,null,null,null,null,null,{"$f":"C97","v":0}]
["D6. Does the country have laws, regulations, or policies that make it difficult for the following sub-populations to access effective family planning services?",null,null,"Y/N","If yes, describe laws/regulations/policies affecting access ",null,null,"Are the rules/policies implemented?",null,null,{"$f":"A98","v":"D6. Does the country have laws, regulations, or policies that make it difficult for the following sub-populations to access effective family planning services?"},null,null,null,null,null,null,null,null,null,null,{"$f":"E98","v":"If yes, describe laws/regulations/policies affecting access "}]
[null,"a. Unmarried people",null,"Yes","The Pakistani law allows distribution of contraceptives to only married women of reproductive age ",null,null,"Don't know",null,null,{"$f":"B99","v":"a. Unmarried people"},null,{"$f":"E99","v":"The Pakistani law allows distribution of contraceptives to only married women of reproductive age "},null,null,null,null,null,null,null,null,{"$f":"E99","v":"The Pakistani law allows distribution of contraceptives to only married women of reproductive age "}]
[null,"b. Young people",null,"No",null,null,null,null,null,null,{"$f":"B100","v":"b. Young people"},null,{"$f":"E100","v":0},null,null,null,null,null,null,null,null,{"$f":"E100","v":0}]
[null,"c. Other",null,"Don't know",null,null,null,null,null,null,{"$f":"B101","v":"c. Other"},null,{"$f":"E101","v":0},null,null,null,null,null,null,null,null,{"$f":"E101","v":0}]
[null,null,null,null,null,null,null,null,null,null,{"$f":"C102","v":0}]
["D7. Are there charges* to the client in the public sector for family planning:\n*(This question refers to charges by policy, not under-the-table charges.)\n",null,null,null,null,null,null,null,null,null,null,null,null,null,null,null,null,null,null,null,null,null,null,{"$f":"A103","v":"D7. Are there charges* to the client in the public sector for family planning:\n*(This question refers to charges by policy, not under-the-table charges.)\n"}]
[null,"a. Services?",null,null,null,null,"No",null,null,{"$f":"G104","v":"No"},null,null,null,null,null,null,null,null,null,null,null,null,null,null,{"$f":"B104","v":"a. Services?"}]
[null,"b. Commodities?",null,null,null,null,"Yes",null,null,{"$f":"G105","v":"Yes"},null,null,null,null,null,null,null,null,null,null,null,null,null,null,{"$f":"B105","v":"b. Commodities?"}]
[null,"c. If yes, are there exemptions for people who cannot afford to pay?",null,null,null,null,"Yes",null,null,{"$f":"G106","v":"Yes"},null,null,null,null,null,null,null,null,null,null,null,null,null,null,{"$f":"B106","v":"c. If yes, are there exemptions for people who cannot afford to pay?"}]
[null,null,"i. If yes, describe the exemptions.","Ministy of Health provides contraceptives free of charge for both services and commodties. However, a similar approach is under review by GOP for Population Program Wing (PPW) too.",null,null,null,null,null,null,{"$f":"C107","v":"i. If yes, describe the exemptions."},null,null,null,{"$f":"D107","v":"Ministy of Health provides contraceptives free of charge for both services and commodties. However, a similar approach is under review by GOP for Population Program Wing (PPW) too."}]
["D8. Are the following contraceptives included in the country's National Essential Medicine List (NEML) or other equivalent priority list?",null,null,null,null,null,null,null,null,null,null,null,null,null,null,null,null,null,null,null,null,null,null,{"$f":"A108","v":"D8. Are the following contraceptives included in the country's National Essential Medicine List (NEML) or other equivalent priority list?"}]
[null,"a. Combined oral contraceptives",null,null,null,null,"Yes",null,null,{"$f":"G109","v":"Yes"},null,null,null,null,null,null,null,null,null,null,null,null,null,null,{"$f":"B109","v":"a. Combined oral contraceptives"}]
[null,"b. Progestin-only pills",null,null,null,null,"Yes",null,null,"Yes",null,null,null,null,null,null,null,null,null,null,null,null,null,null,"b. Progestin-only pills"]
[null,"c. Hormonal injections",null,null,null,null,"Yes",null,null,"Yes",null,null,null,null,null,null,null,null,null,null,null,null,null,null,"c. Hormonal injections"]
[null,"d. Hormonal implants",null,null,null,null,"Yes",null,null,"Yes",null,null,null,null,null,null,null,null,null,null,null,null,null,null,"d. Hormonal implants"]
[null,"e. Intrauterine devices (IUDs)",null,null,null,null,"Yes",null,null,"Yes",null,null,null,null,null,null,null,null,null,null,null,null,null,null,"e. Intrauterine devices (IUDs)"]
[null,"f. Male condoms",null,null,null,null,"Yes",null,null,"Yes",null,null,null,null,null,null,null,null,null,null,null,null,null,null,"f. Male condoms"]
[null,"g. Female condoms",null,null,null,null,"No",null,null,"No",null,null,null,null,null,null,null,null,null,null,null,null,null,null,"g. Female condoms"]
[null,"h. Emergency contraceptive pills",null,null,null,null,"Yes",null,null,"Yes",null,null,null,null,null,null,null,null,null,null,null,null,null,null,"h. Emergency contraceptive pills"]
[null,"i. CycleBeads",null,null,null,null,"No",null,null,{"$f":"G117","v":"No"},null,null,null,null,null,null,null,null,null,null,null,null,null,null,{"$f":"B117","v":"i. CycleBeads"}]
[null,"j. Any other contraceptive(s)?",null,null,null,null,"Don't know",null,null,"Don't know",null,null,null,null,null,null,null,null,null,null,null,null,null,null,"j. Any other contraceptive(s)?"]
[null,null,"i. Name of other contraceptive(s) on the list(s)",null,null,"Don't know",null,null,null,0,null,null,null,null,null,null,null,{"$f":"B119","v":0}]
["D9. What year(s) is the list(s) from?",null,null,null,null,2007,null,null,null,0,null,null,null,null,null,null,null,{"$f":"B120","v":0}]
["D10. Name of the list(s)\n\n\n",null,null,"National Essential Drug List",null,null,null,null,null,null,{"$f":"A121","v":"D10. Name of the list(s)\n\n\n"},null,null,null,{"$f":"D121","v":"National Essential Drug List"}]
["D11. Notes about the list(s)\n\n\n",null,null,null,null,null,null,null,null,null,{"$f":"A122","v":"D11. Notes about the list(s)\n\n\n"},null,null,null,{"$f":"D122","v":0}]
["D12.  Information on country's Poverty Reduction Strategy Paper (PRSP)\n",null,null,null,null,null,null,null,null,null,null,null,null,null,null,null,null,null,null,null,null,null,null,{"$f":"A123","v":"D12.  Information on country's Poverty Reduction Strategy Paper (PRSP)\n"}]
[null,"a. What year is the Poverty Reduction Strategy Paper from? (most recent actual PRSP on IMF's site [not progress or summary report])",null,null,null,2004,null,null,null,{"$f":"G124","v":0},null,null,null,null,null,null,null,{"$f":"B124","v":"a. What year is the Poverty Reduction Strategy Paper from? (most recent actual PRSP on IMF's site [not progress or summary report])"}]
[null,"b. Is family planning or reproductive health a priority in the PRSP?",null,null,null,null,"Yes",null,null,{"$f":"G125","v":"Yes"},null,null,null,null,null,null,null,null,null,null,null,null,null,null,{"$f":"B125","v":"b. Is family planning or reproductive health a priority in the PRSP?"}]
[null,"c. Is contraceptive security included in the PRSP?",null,null,null,null,"Yes",null,null,{"$f":"G126","v":"Yes"},null,null,null,null,null,null,null,null,null,null,null,null,null,null,{"$f":"B126","v":"c. Is contraceptive security included in the PRSP?"}]
[null,"d. Is contraceptive prevalence rate (CPR) included as an indicator in the PRSP?",null,null,null,null,"Yes",null,null,{"$f":"G127","v":"Yes"},null,null,null,null,null,null,null,null,null,null,null,null,null,null,{"$f":"B127","v":"d. Is contraceptive prevalence rate (CPR) included as an indicator in the PRSP?"}]
[null,"e. Are contraceptive supply indicators included in the PRSP?",null,null,null,null,"No",null,null,{"$f":"G128","v":"No"},null,null,null,null,null,null,null,null,null,null,null,null,null,null,{"$f":"B128","v":"e. Are contraceptive supply indicators included in the PRSP?"}]
["\n\n\n","f. Notes about the Poverty Reduction Strategy Paper",null,null,null,null,null,null,null,null,{"$f":"B129","v":"f. Notes about the Poverty Reduction Strategy Paper"},null,null,null,{"$f":"D129","v":0}]
["E. Supply Chain (Capacity)"]
["E1. Have stockouts occurred for any contraceptive at the central* level in the last 12 months?  \n*(The central level refers to the central level warehouse for the public sector.)",null,null,null,null,null,"No",null,null,{"$f":"G131","v":"No"},null,null,null,null,null,null,null,null,null,null,null,null,null,null,{"$f":"A131","v":"E1. Have stockouts occurred for any contraceptive at the central* level in the last 12 months?  \n*(The central level refers to the central level warehouse for the public sector.)"}]
["E2. In the last 12 months, has there ever been a stockout at the central level of any of the contraceptives offered in public sector facilities? (If a method is not intended to be offered in public sector facilities, please indicate that stockouts are not applicable (choose \"N/A\" from the dropdown list).)",null,null,null,null,null,null,null,null,null,null,null,null,null,null,null,null,null,null,null,null,null,null,{"$f":"A132","v":"E2. In the last 12 months, has there ever been a stockout at the central level of any of the contraceptives offered in public sector facilities? (If a method is not intended to be offered in public sector facilities, please indicate that stockouts are not applicable (choose \"N/A\" from the dropdown list).)"}]
[null,"a. Combined oral contraceptives",null,null,null,null,"No",null,null,{"$f":"G133","v":"No"},null,null,null,null,null,null,null,null,null,null,null,null,null,null,{"$f":"B133","v":"a. Combined oral contraceptives"}]
[null,"b. Progestin-only pills",null,null,null,null,"No",null,null,"No",null,null,null,null,null,null,null,null,null,null,null,null,null,null,"b. Progestin-only pills"]
[null,"c. Hormonal injections",null,null,null,null,"No",null,null,"No",null,null,null,null,null,null,null,null,null,null,null,null,null,null,"c. Hormonal injections"]
[null,"d. Hormonal implants",null,null,null,null,"No",null,null,"No",null,null,null,null,null,null,null,null,null,null,null,null,null,null,"d. Hormonal implants"]
[null,"e. Intrauterine devices (IUDs)",null,null,null,null,"No",null,null,"No",null,null,null,null,null,null,null,null,null,null,null,null,null,null,"e. Intrauterine devices (IUDs)"]
[null,"f. Male condoms",null,null,null,null,"No",null,null,"No",null,null,null,null,null,null,null,null,null,null,null,null,null,null,"f. Male condoms"]
[null,"g. Female condoms",null,null,null,null,"N/A",null,null,"N/A",null,null,null,null,null,null,null,null,null,null,null,null,null,null,"g. Female condoms"]
[null,"h. Emergency contraceptive pills",null,null,null,null,"No",null,null,"No",null,null,null,null,null,null,null,null,null,null,null,null,null,null,"h. Emergency contraceptive pills"]
[null,"i. CycleBeads",null,null,null,null,"N/A",null,null,"N/A",null,null,null,null,null,null,null,null,null,null,null,null,null,null,"i. CycleBeads"]
[null,"j. Time period\n(mm/yy - mm/yy) (for example, 1/10-12/10) ",null,null,null,"01/10-12/10",null,null,null,null,null,null,null,null,null,null,{"$f":"F142","v":"01/10-12/10"},{"$f":"B142","v":"j. Time period\n(mm/yy - mm/yy) (for example, 1/10-12/10) "}]
[null,"k. Data source\n(for example: Procurement Planning and Monitoring Report, Logistics Management Information System, periodic physical inventory, warehouse reports)",null,null,null,"logistics management information system (LMIS)",null,null,null,null,null,null,null,null,null,null,{"$f":"F143","v":"logistics management information system (LMIS)"},{"$f":"B143","v":"k. Data source\n(for example: Procurement Planning and Monitoring Report, Logistics Management Information System, periodic physical inventory, warehouse reports)"}]
["E3. Are stockouts a large problem in your country at the following levels? (i.e., Are they common or do they tend to last for a long time?)\n\n"]
[null,"a. service delivery point level (i.e., public sector health facilities)",null,null,null,null,"Yes",null,null,{"$f":"G145","v":"Yes"},null,null,null,null,null,null,null,null,null,null,null,null,null,null,{"$f":"B145","v":"a. service delivery point level (i.e., public sector health facilities)"}]
[null,"b. central level (i.e., central level warehouse for the public sector)",null,null,null,null,"No",null,null,{"$f":"G146","v":"No"},null,null,null,null,null,null,null,null,null,null,null,null,null,null,{"$f":"B146","v":"b. central level (i.e., central level warehouse for the public sector)"}]
["F. Please note any overall comments about challenges and/or successes with contraceptive security in your country.\n\n",null,null,"As per implementation of the 18th amendment, the Health and Population Policy has constitutionally become a provincial subject. With devolution, contraceptive procurement is also now the function of the provincial governments. The USAID | DELIVER PROJECT has provided inputs on CS via a quantification exercise to provinces and regions. However, a formal document may take 6-8 months. Based on recent technical assistance, USAID | DELIVER developed a CS brief for policymakers. ",null,null,null,null,null,null,{"$f":"A147","v":"F. Please note any overall comments about challenges and/or successes with contraceptive security in your country.\n\n"},null,null,null,{"$f":"D147","v":"As per implementation of the 18th amendment, the Health and Population Policy has constitutionally become a provincial subject. With devolution, contraceptive procurement is also now the function of the provincial governments. The USAID | DELIVER PROJECT has provided inputs on CS via a quantification exercise to provinces and regions. However, a formal document may take 6-8 months. Based on recent technical assistance, USAID | DELIVER developed a CS brief for policymakers. "}]

{"sheet":"Paraguay 2011","index":33,"n_rows":147,"n_cols":25,"rows_kept":147,"cut":false,"hidden":false,"merged":[[8,0,8,7],[5,0,5,2],[147,0,147,7],[148,0,150,7],[145,1,145,5],[145,6,145,7],[146,0,146,2],[146,3,146,7],[141,1,141,4],[141,5,141,7],[142,1,142,4],[142,5,142,7],[143,0,143,7],[144,1,144,5],[144,6,144,7],[138,1,138,5],[138,6,138,7],[139,1,139,5],[139,6,139,7],[140,1,140,5],[131,0,131,7],[132,1,132,5],[132,6,132,7],[133,1,133,5],[133,6,133,7],[134,1,134,5],[134,6,134,7],[140,6,140,7],[135,1,135,5],[135,6,135,7],[136,1,136,5],[136,6,136,7],[137,1,137,5],[137,6,137,7],[120,0,120,2],[120,3,120,7],[121,0,121,2],[121,3,121,7],[129,0,129,6],[130,0,130,5],[130,6,130,7],[122,0,122,7],[123,1,123,4],[123,5,123,7],[115,1,115,5],[115,6,115,7],[116,1,116,5],[116,6,116,7],[117,1,117,5],[117,6,117,7],[118,2,118,4],[118,5,118,7],[119,0,119,4],[119,5,119,7],[110,1,110,5],[110,6,110,7],[111,1,111,5],[111,6,111,7],[112,1,112,5],[112,6,112,7],[113,1,113,5],[113,6,113,7],[114,1,114,5],[114,6,114,7],[104,1,104,5],[104,6,104,7],[105,1,105,5],[105,6,105,7],[106,3,106,7],[107,0,107,7],[108,1,108,5],[108,6,108,7],[109,1,109,5],[109,6,109,7],[98,1,98,2],[98,4,98,6],[99,1,99,2],[99,4,99,6],[100,1,100,2],[100,4,100,6],[101,0,101,7],[102,0,102,7],[103,1,103,5],[103,6,103,7],[94,2,94,3],[94,4,94,5],[94,6,94,7],[95,2,95,3],[95,4,95,5],[95,6,95,7],[96,0,96,7],[97,0,97,2],[97,4,97,6],[88,0,88,6],[89,1,89,2],[89,3,89,7],[90,0,90,6],[91,1,91,2],[92,1,92,3],[92,4,92,5],[92,6,92,7],[93,2,93,3],[93,4,93,5],[93,6,93,7],[83,0,83,4],[83,5,83,7],[84,1,84,3],[84,4,84,7],[85,1,85,3],[85,4,85,7],[86,0,86,6],[87,1,87,2],[87,3,87,7],[78,0,78,6],[79,0,79,6],[80,0,80,2],[81,0,82,0],[81,1,81,2],[81,3,81,4],[81,6,81,7],[82,3,82,4],[82,6,82,7],[73,1,73,2],[73,3,73,4],[74,1,74,2],[74,3,74,4],[75,1,75,2],[75,3,75,4],[76,1,76,2],[76,3,76,4],[77,0,77,2],[77,3,77,7],[68,1,68,2],[68,3,68,4],[69,1,69,2],[69,3,69,4],[70,1,70,2],[70,3,70,4],[71,1,71,2],[71,3,71,4],[72,1,72,2],[72,3,72,4],[62,0,62,6],[63,0,63,7],[64,0,64,2],[64,3,64,4],[65,1,65,2],[65,3,65,4],[66,1,66,2],[66,3,66,4],[67,1,67,2],[67,3,67,4],[56,0,56,4],[56,6,56,7],[58,0,58,4],[58,5,58,7],[59,1,59,4],[59,5,59,7],[60,2,60,4],[60,5,60,7],[61,0,61,2],[61,3,61,7],[51,1,51,2],[53,0,53,7],[54,0,54,4],[54,6,54,7],[46,1,46,2],[47,1,47,2],[48,3,48,7],[55,0,55,4],[55,6,55,7],[32,0,32,7],[33,1,33,3],[34,1,34,3],[35,0,35,7],[36,0,36,6],[37,0,37,7],[42,3,42,7],[49,1,49,2],[50,1,50,2],[38,1,38,2],[39,1,39,2],[41,1,41,2],[40,3,40,7],[43,1,43,2],[45,0,45,7],[26,0,26,6],[27,0,27,2],[27,3,27,4],[28,0,28,5],[28,6,28,7],[29,0,29,3],[29,6,29,7],[30,0,30,6],[31,0,31,6],[20,1,20,2],[20,5,20,7],[21,1,21,2],[21,5,21,7],[22,1,22,2],[22,5,22,7],[23,0,23,6],[24,0,24,6],[25,0,25,2],[15,1,15,2],[15,5,15,7],[16,1,16,2],[16,5,16,7],[17,1,17,2],[17,5,17,7],[18,1,18,2],[18,5,18,7],[19,1,19,2],[19,5,19,7],[9,0,9,7],[10,0,10,6],[11,0,11,6],[12,1,12,2],[12,3,12,7],[13,0,13,2],[13,3,13,7],[14,1,14,2],[14,5,14,7],[7,0,7,2],[7,3,7,5],[7,6,7,7],[0,0,0,7],[1,0,1,2],[1,3,1,4],[2,0,2,7],[3,3,3,4],[3,5,3,7],[4,0,4,2],[127,1,127,5],[127,6,127,7],[128,1,128,2],[128,3,128,7],[124,1,124,5],[124,6,124,7],[125,1,125,5],[125,6,125,7],[126,1,126,5],[126,6,126,7]]}
[null,null,null,null,null,null,null,null,"Columns I-Y are meant to be hidden. They exist because they allow for the dropdown list options. They also allow for merged cells to autofit properly in terms of row height. This should work if all columns remain at their correct widths.","g-h",null,"a-e merged","E-F merged","e-h","0 times",null,null,"The government (e.g., Central Medical Stores, MOH logistics unit, MOH procurement unit)",null,null,null,null,"Yes","a-h","January"]
[null,null,null,null,null,null,null,null,null,null,"A-c",null,null,null,"1-2 times","b-d merged",null,"Third-party agent (e.g., UNFPA, Crown Agents)","d-e merged","d-f merged","e-f merged","e-g merged","No",null,"February"]
[null,null,null,null,null,null,null,null,null,null,null,null,null,null,"3-5 times",null,null,"The government and a third-party agent",null,null,null,null,null,null,"March"]
[null,null,null,null,null,null,null,null,null,null,null,null,null,null,"6 or more times",null,null,"Other",null,null,null,null,"N/A",null,"April"]
["To jump to the Introduction sheet, click here.",null,null,null,null,null,null,null,null,null,null,null,null,null,null,null,null,null,null,null,null,null,"Don't know",null,"May"]
[null,null,null,null,null,null,null,null,null,null,null,null,null,null,"N/A",null,null,"N/A",null,null,null,null,null,null,"June"]
["Contraceptive Security (CS) Indicators 2011 Data ",null,null,null,null,null,null,null,null,null,null,null,null,null,"Don't know",null,null,"Don't know",null,null,null,null,null,null,"July"]
["Country: Paraguay",null,null,null,null,null,null,null,null,{"$f":"G8","v":0},{"$f":"A8","v":"Country: Paraguay"},null,null,null,null,"or c-d",null,null,null,{"$f":"D8","v":0},null,null,null,null,"August"]
["The CS Indicators are presented in the following sections:\n\n               A. leadership & cooordination               B. finance & procurement               C. commodities               D. policies               E. supply chain",null,null,null,null,null,null,null,null,{"$f":"G9","v":0},{"$f":"A9","v":"The CS Indicators are presented in the following sections:\n\n               A. leadership & cooordination               B. finance & procurement               C. commodities               D. policies               E. supply chain"},null,null,null,"d-h",null,"f-h merged",null,{"$f":"D9","v":0},null,null,null,null,{"$f":"A9","v":"The CS Indicators are presented in the following sections:\n\n               A. leadership & cooordination               B. finance & procurement               C. commodities               D. policies               E. supply chain"},"September"]
["\nNotes:\n  -  Respondents' answers are indicated in the white spaces. \n  -  N/A = not applicable. Don't know = the respondent either indicated they did not know or left the answer blank.\n  -  Some questions required respondents to choose from a dropdown list of options; in these cases the dropdown arrow will \n     appear when you click on the cell. \n  -  There may be a few inserted comments. (If you cannot already see them, click on Review tab - Comments group - Show All Comments in newer \n       versions of Excel or View - Comments in older versions of Excel.)\n  -  If the answer is cut off, you can either manually adjust the row height or autofit the row height in order to see the whole \n     response. (To autofit the row height, select the answer(s) and go to Home tab - Cells group - Format - Autofit Row Height in newer versions of Excel or \n      Format - Row - Autofit in older versions of Excel.)\n",null,null,null,null,null,null,null,"a-g",null,null,null,null,null,null,null,null,"a-e merged",null,null,null,null,null,{"$f":"A10","v":"\nNotes:\n  -  Respondents' answers are indicated in the white spaces. \n  -  N/A = not applicable. Don't know = the respondent either indicated they did not know or left the answer blank.\n  -  Some questions required respondents to choose from a dropdown list of options; in these cases the dropdown arrow will \n     appear when you click on the cell. \n  -  There may be a few inserted comments. (If you cannot already see them, click on Review tab - Comments group - Show All Comments in newer \n       versions of Excel or View - Comments in older versions of Excel.)\n  -  If the answer is cut off, you can either manually adjust the row height or autofit the row height in order to see the whole \n     response. (To autofit the row height, select the answer(s) and go to Home tab - Cells group - Format - Autofit Row Height in newer versions of Excel or \n      Format - Row - Autofit in older versions of Excel.)\n"},"October"]
["A. Leadership and Coordination",null,null,null,null,null,null,null,null,null,null,null,null,null,null,null,null,null,null,null,null,null,null,null,"November"]
["A1. Is there a national committee that works on contraceptive security? (Please select from the dropdown list.)\n(Committee should have some aspect of contraceptive security as part of its Terms of Reference, even if it is known by a different name, for example: Family Planning, Reproductive Health, Maternal Mortality, Essential Medicine Committee, etc.)  ",null,null,null,null,null,null,"Yes",{"$f":"A12","v":"A1. Is there a national committee that works on contraceptive security? (Please select from the dropdown list.)\n(Committee should have some aspect of contraceptive security as part of its Terms of Reference, even if it is known by a different name, for example: Family Planning, Reproductive Health, Maternal Mortality, Essential Medicine Committee, etc.)  "},null,null,null,null,null,null,null,null,null,null,null,null,null,null,null,"December"]
[null,"a. What is the name of the committee?",null,"Comité para la Disponibilidad Asegurada de Insumos Anticonceptivos (DAIA) (Contraceptive Security Committee)",null,null,null,null,null,null,{"$f":"B13","v":"a. What is the name of the committee?"},{"$f":"D13","v":"Comité para la Disponibilidad Asegurada de Insumos Anticonceptivos (DAIA) (Contraceptive Security Committee)"},null,null,{"$f":"D13","v":"Comité para la Disponibilidad Asegurada de Insumos Anticonceptivos (DAIA) (Contraceptive Security Committee)"}]
["A2. Are the following organizations represented on the committee?",null,null,"(Y/N \ndropdown)",null,null,null,null,null,null,{"$f":"A14","v":"A2. Are the following organizations represented on the committee?"},null,null,null,null,null,null,null,null,null,null,null,null,null,"Don't know"]
[null,"a. Social marketing",null,"Yes","If yes, specify name(s) of organizations","PSI (Population Services International)",null,null,null,null,{"$f":"B15","v":"a. Social marketing"},null,null,null,null,null,{"$f":"F15","v":"PSI (Population Services International)"}]
[null,"b. NGO (for example: service delivery, advocacy, Planned Parenthood affiliate, Marie Stopes affiliate, faith-based organizations, etc.)",null,"Yes","If yes, specify name(s) of organizations","CEPEP (El Centro Paraguayo de Estudios de Población, IPPF affiliate)",null,null,null,null,"b. NGO (for example: service delivery, advocacy, Planned Parenthood affiliate, Marie Stopes affiliate, faith-based organizations, etc.)",null,null,null,null,null,"CEPEP (El Centro Paraguayo de Estudios de Población, IPPF affiliate)"]
[null,"c. Commercial sector (for example: pharmacy associations, manufacturers, etc.)",null,"No","If yes, specify name(s) of organizations",null,null,null,null,null,"c. Commercial sector (for example: pharmacy associations, manufacturers, etc.)",null,null,null,null,null,0]
[null,"d. Donors",null,"Yes","If yes, specify name(s) of donors","USAID",null,null,null,null,"d. Donors",null,null,null,null,null,"USAID"]
[null,"e. UN agencies",null,"Yes","If yes, specify name(s) of agencies","UNFPA, WHO",null,null,null,null,"e. UN agencies",null,null,null,null,null,"UNFPA, WHO"]
[null,"f. Ministry of Health (for example: logistics, reproductive health, family planning, maternal and child health, HIV/AIDS, pharmacy units, etc.)",null,"Yes","If yes, specify name(s) of units","DGGIES (General Directorate for Management of Strategic Supplies in Health), Reproductive Health Unit",null,null,null,null,"f. Ministry of Health (for example: logistics, reproductive health, family planning, maternal and child health, HIV/AIDS, pharmacy units, etc.)",null,null,null,null,null,"DGGIES (General Directorate for Management of Strategic Supplies in Health), Reproductive Health Unit"]
[null,"g. Central Medical Store or Central Warehouse",null,"Yes","If yes, specify","Central Warehouse",null,null,null,null,"g. Central Medical Store or Central Warehouse",null,null,null,null,null,"Central Warehouse"]
[null,"h. Ministry of Finance or Ministry of Planning ",null,"No","If yes, specify",null,null,null,null,null,"h. Ministry of Finance or Ministry of Planning ",null,null,null,null,null,0]
[null,"i. Other (for example: partners)",null,"Yes","If yes, specify","Instituto de Provision Social (IPS) - Paraguayan Social Security Institute)",null,null,null,null,"i. Other (for example: partners)",null,null,null,null,null,"Instituto de Provision Social (IPS) - Paraguayan Social Security Institute)"]
["A3. How many times did the committee meet during the last year? (0, 1-2, 3-5, or 6+)  (Please select from the dropdown.)",null,null,null,null,null,null,"6 or more times",{"$f":"A24","v":"A3. How many times did the committee meet during the last year? (0, 1-2, 3-5, or 6+)  (Please select from the dropdown.)"}]
["A4. Does the committee have legal status?  (Please select from the dropdown.)                                  ",null,null,null,null,null,null,"No",{"$f":"A25","v":"A4. Does the committee have legal status?  (Please select from the dropdown.)                                  "}]
["A5. Is there a Contraceptive Security \"champion\"? (someone who consistently brings up and advocates for contraceptive supplies)",null,null,"Yes","If yes, specify person's organization","Yes ","Specify person's job title","Director of Logistics DGPS (Logistics Management Unit)",null,null,{"$f":"A26","v":"A5. Is there a Contraceptive Security \"champion\"? (someone who consistently brings up and advocates for contraceptive supplies)"}]
["B. Finance and Procurement (Capital)"]
["B1. What is the timeline of the country's fiscal year?",null,null,"Beginning month",null,"October","Ending month","September",null,null,{"$f":"B28","v":0}]
["B2. What was the estimated dollar value of contraceptives needed to be procured for the public sector for the most recent complete fiscal year? (in USD currency)\n(for example, to cover the needs for the '09-'10 fiscal year)",null,null,null,null,null,566000,null,null,{"$f":"G29","v":566000},null,null,{"$f":"E29","v":0},null,null,null,null,null,null,null,null,null,null,null,{"$f":"A29","v":"B2. What was the estimated dollar value of contraceptives needed to be procured for the public sector for the most recent complete fiscal year? (in USD currency)\n(for example, to cover the needs for the '09-'10 fiscal year)"}]
["B3. When was the last forecast/quantification conducted? (mm/yy)",null,null,null,"01/11","Who conducted it? (Specify organization.)","USAID | DELIVER PROJECT Paraguay resident advisor updated forecast with the DGPS director",null,null,{"$f":"G30","v":"USAID | DELIVER PROJECT Paraguay resident advisor updated forecast with the DGPS director"},null,null,{"$f":"E30","v":"01/11"},null,null,null,null,null,null,null,null,null,null,null,{"$f":"A30","v":"B3. When was the last forecast/quantification conducted? (mm/yy)"}]
["B4. Is there a government budget line item for the procurement of contraceptives?  (Please select from the dropdown list.)",null,null,null,null,null,null,"Yes",{"$f":"A31","v":"B4. Is there a government budget line item for the procurement of contraceptives?  (Please select from the dropdown list.)"}]
["B5. Were government funds allocated for contraceptive procurement for the public sector in the most recent complete fiscal year? (This question refers to funds planned to be spent on contraceptives, whether or not they ended up being spent.) \n\n(Government funds include internally generated funds, basket funds, World Bank credits or loans, and other funds donors gave to the government for their use.) \n",null,null,null,null,null,null,"Yes",{"$f":"A32","v":"B5. Were government funds allocated for contraceptive procurement for the public sector in the most recent complete fiscal year? (This question refers to funds planned to be spent on contraceptives, whether or not they ended up being spent.) \n\n(Government funds include internally generated funds, basket funds, World Bank credits or loans, and other funds donors gave to the government for their use.) \n"}]
["B6. Please complete the table below regarding government allocations for contraceptive procurement.",null,null,null,null,null,null,null,null,null,null,null,null,null,null,null,null,null,null,null,null,null,null,{"$f":"A33","v":"B6. Please complete the table below regarding government allocations for contraceptive procurement."}]
[null,null,null,null,"Amount allocated \n(in USD)","Time period during which allocations were supposed to be spent \n(mm/yy-mm/yy)\n(should ideally be the most recent\ncomplete fiscal year ['09-'10])","Data source \n(for example: Ministry records)","Comments",null,null,{"$f":"A34","v":0}]
[null,"Government funds allocated for contraceptive procurement\n(funds originally designated for contraceptives, whether or not they ended up being spent on them)",null,null,566000,"01/10-12/10","Ministry of Health","Funds were allocated in Dec 2010",null,null,{"$f":"#REF!","v":{"$error":"#REF!"}}]
[]
["B7. Were government funds spent on contraceptive procurement for the public sector in the most recent complete fiscal year? \n(Government funds include internally generated funds, basket funds, World Bank credits or loans, and other funds donors gave to the government for their use.)",null,null,null,null,null,null,"Yes",{"$f":"A37","v":"B7. Were government funds spent on contraceptive procurement for the public sector in the most recent complete fiscal year? \n(Government funds include internally generated funds, basket funds, World Bank credits or loans, and other funds donors gave to the government for their use.)"}]
["B8. Please complete the table below to indicate government expenditures on contraceptive procurement, by source, in the most recent complete fiscal year. \n(This is how much was spent on contraceptive procurement (not what was allocated). How much of this spending was provided from each source?)",null,null,null,null,null,null,null,null,null,null,null,null,null,null,null,null,null,null,null,null,null,null,{"$f":"A38","v":"B8. Please complete the table below to indicate government expenditures on contraceptive procurement, by source, in the most recent complete fiscal year. \n(This is how much was spent on contraceptive procurement (not what was allocated). How much of this spending was provided from each source?)"}]
[null,"Source of government funds spent on contraceptive procurement for the public sector",null,"Was this source used?\n(Y/N)","Amount spent \n(in USD)","Time period (mm/yy-mm/yy)\n(should be the same for all sources of funds & ideally be the most recent\ncomplete fiscal year ['09-'10])","Data source \n(for example: Contraceptive Procurement Table, PipeLine, etc.)","Comments",null,null,{"$f":"A39","v":0}]
[null,"a. Internally generated funds spent on contraceptive procurement",null,"Yes",566000,"01/10-12/10","PipeLine",null,null,null,{"$f":"B40","v":"a. Internally generated funds spent on contraceptive procurement"}]
[null,null,"i. Specify source(s) of internally generated funds spent (for example, from taxes or user fees)","National Treasury",null,null,null,null,null,null,{"$f":"C41","v":"i. Specify source(s) of internally generated funds spent (for example, from taxes or user fees)"},null,null,null,{"$f":"#REF!","v":{"$error":"#REF!"}}]
[null,"b. Total of all other government funds spent on contraceptive procurement (basket funds, World Bank credits or loans, and other funds donors gave to the government [e.g., direct budget support])",null,"No",0,"01/10-12/10",null,null,null,null,{"$f":"B42","v":"b. Total of all other government funds spent on contraceptive procurement (basket funds, World Bank credits or loans, and other funds donors gave to the government [e.g., direct budget support])"}]
[null,null,"i. Specify source(s) of other government funds spent (for example: basket funding or specific donor)","N/A",null,null,null,null,null,null,{"$f":"C43","v":"i. Specify source(s) of other government funds spent (for example: basket funding or specific donor)"},null,null,null,{"$f":"D41","v":"National Treasury"}]
[null,"c. TOTAL government funds spent on contraceptive procurement\nThis will auto-calculate.  (It will sum a & b above.)",null,null,{"$f":"E40+E42","v":566000},null,null,null,null,null,{"$f":"B44","v":"c. TOTAL government funds spent on contraceptive procurement\nThis will auto-calculate.  (It will sum a & b above.)"}]
[null,null,null,null,null,null,null,null,null,null,{"$f":"A45","v":0}]
["B9. Please complete the table below to indicate donor expenditures on contraceptive procurement in the most recent complete fiscal year.\n",null,null,null,null,null,null,null,null,null,null,null,null,null,null,null,null,null,null,null,null,null,null,{"$f":"A46","v":"B9. Please complete the table below to indicate donor expenditures on contraceptive procurement in the most recent complete fiscal year.\n"}]
["\n","Source of donations and donor funds spent on contraceptive procurement for the public sector",null,"Was this a source?\n(Y/N)","Amount of money spent on these procurements \n(in USD)","Time period (mm/yy-mm/yy)\n(should be the same for all sources of funds & ideally be the most recent\ncomplete fiscal year ['09-'10])","Data source \n(for example:  Donor records, Contraceptive Procurement Table, PipeLine, RHInterchange, etc.","Comments",null,null,{"$f":"A47","v":"\n"}]
[null,"a. In-kind donations of contraceptives",null,"No",0,"01/10-12/10",null,null,null,null,{"$f":"B48","v":"a. In-kind donations of contraceptives"}]
[null,null,"i. Specify source(s) of in-kind donations ",null,null,null,null,null,null,null,{"$f":"C49","v":"i. Specify source(s) of in-kind donations "},null,null,null,{"$f":"D49","v":0}]
[null,"b. Global Fund donations used to procure condoms",null,"No",0,"01/10-12/10",null,null,null,null,{"$f":"B50","v":"b. Global Fund donations used to procure condoms"}]
[null,"c. Global Fund donations used to procure contraceptives besides condoms",null,"No",0,"01/10-12/10",null,null,null,null,{"$f":"B51","v":"c. Global Fund donations used to procure contraceptives besides condoms"}]
[null,"d. TOTAL value of in-kind donations and Global Fund donations spent on contraceptive procurement\nThis will auto-calculate.  (It will sum a-c above.)",null,null,{"$f":"E48+E50+E51","v":0},null,null,null,null,null,{"$f":"B52","v":"d. TOTAL value of in-kind donations and Global Fund donations spent on contraceptive procurement\nThis will auto-calculate.  (It will sum a-c above.)"}]
[null,null,null,null,null,null,null,null,null,null,{"$f":"A53","v":0}]
["The answers to B10 and B11 should calculate automatically based on the information you provided. Please review the answers to ensure they make sense to you, and if you have additional information to add, please note it in the comments boxes.\n\nIf the answers do not calculate automatically, please provide any relevant information you may have in the comments boxes.\n",null,null,null,null,null,null,null,null,null,null,null,null,null,null,null,null,null,null,null,null,null,null,{"$f":"A54","v":"The answers to B10 and B11 should calculate automatically based on the information you provided. Please review the answers to ensure they make sense to you, and if you have additional information to add, please note it in the comments boxes.\n\nIf the answers do not calculate automatically, please provide any relevant information you may have in the comments boxes.\n"}]
["B10. Government share of funds spent on contraceptive procurement for the public sector - \nOf the total amount spent on contraceptives for the public sector in the most recent complete fiscal year (including government and donor funds), what percent was covered by government funds (including internally generated funds, basket funds, World Bank credits or loans, and other funds given to the government)? \n\nThis will auto-calculate. (It contains the following formula: Total government spending (Question B8c) / Grand total of all spending for public sector contraceptives from the government and donors (Questions B8c+B9d))",null,null,null,null,{"$f":"E44/(E44+E52)","v":1},null,null,null,{"$f":"G55","v":0},null,null,null,null,null,null,null,{"$f":"A55","v":"B10. Government share of funds spent on contraceptive procurement for the public sector - \nOf the total amount spent on contraceptives for the public sector in the most recent complete fiscal year (including government and donor funds), what percent was covered by government funds (including internally generated funds, basket funds, World Bank credits or loans, and other funds given to the government)? \n\nThis will auto-calculate. (It contains the following formula: Total government spending (Question B8c) / Grand total of all spending for public sector contraceptives from the government and donors (Questions B8c+B9d))"}]
["B11. Total expenditures on public sector contraceptives as percent of amount that needed to be procured -\nOf the estimated value of the contraceptives needed to be procured for the public sector for the most recent complete fiscal year, what percent was provided by any source (whether government or donor)? \n\nThis will auto-calculate. (It contains the following formula: Grand total of all spending for public sector contraceptives from the government and donors (Questions B8c+B9d) / Value of estimated need for procurement (Question B2))",null,null,null,null,{"$f":"(E44+E52)/G29","v":1},null,null,null,{"$f":"G56","v":0},null,null,null,null,null,null,null,{"$f":"A56","v":"B11. Total expenditures on public sector contraceptives as percent of amount that needed to be procured -\nOf the estimated value of the contraceptives needed to be procured for the public sector for the most recent complete fiscal year, what percent was provided by any source (whether government or donor)? \n\nThis will auto-calculate. (It contains the following formula: Grand total of all spending for public sector contraceptives from the government and donors (Questions B8c+B9d) / Value of estimated need for procurement (Question B2))"}]
["B12. If B11 did not calculate automatically, please answer the following question:\nWas there a funding gap for the public sector in the last complete fiscal year (e.g., 09-'10 fiscal year)?\n(Please select from the dropdown list.)",null,null,null,null,"No",null,null,null,{"$f":"G57","v":0},null,null,null,null,null,null,null,{"$f":"A57","v":"B12. If B11 did not calculate automatically, please answer the following question:\nWas there a funding gap for the public sector in the last complete fiscal year (e.g., 09-'10 fiscal year)?\n(Please select from the dropdown list.)"}]
[null,null,null,null,null,null,null,null,null,null,{"$f":"A58","v":0}]
["B13. If the government financed any contraceptive procurement in the most recent complete fiscal year, which entity conducted the procurement(s)? (Please select from the dropdown.)",null,null,null,null,"Third-party agent (e.g., UNFPA, Crown Agents)",null,null,null,null,null,null,null,null,null,null,{"$f":"F59","v":"Third-party agent (e.g., UNFPA, Crown Agents)"},{"$f":"A59","v":"B13. If the government financed any contraceptive procurement in the most recent complete fiscal year, which entity conducted the procurement(s)? (Please select from the dropdown.)"}]
[null,"a. Specify entity",null,null,null,"UNFPA",null,null,null,null,null,null,{"$f":"E60","v":0},null,null,null,{"$f":"F60","v":"UNFPA"},{"$f":"B60","v":"a. Specify entity"}]
[null,null,"i. Is this a parastatal?",null,null,"No",null,null,null,null,null,null,null,null,null,null,{"$f":"F61","v":"No"},{"$f":"C61","v":"i. Is this a parastatal?"}]
["B14. Please note any additional comments about finance and procurement.\n",null,null,null,null,null,null,null,null,null,{"$f":"A62","v":"B14. Please note any additional comments about finance and procurement.\n"},null,null,null,{"$f":"D62","v":0}]
["C. Commodities"]
["C1. Are the following contraceptive methods offered through the commercial sector, public sector, NGOs, or social marketing? (Please indicate which methods are intended to be offered. This question is not asking whether the method is in stock.) \n(Please select from the dropdown list.)",null,null,null,null,null,null,null,null,null,null,null,null,null,null,null,null,null,null,null,null,null,null,{"$f":"A64","v":"C1. Are the following contraceptive methods offered through the commercial sector, public sector, NGOs, or social marketing? (Please indicate which methods are intended to be offered. This question is not asking whether the method is in stock.) \n(Please select from the dropdown list.)"}]
["Contraceptive Method",null,null,"Commercial Sector",null,"Public Sector","NGO","Social Marketing",null,null,{"$f":"A65","v":"Contraceptive Method"}]
[null,"a. Combined oral contraceptives (estrogen + progestin - for  example, LoFemenol, Microgynon)",null,"Yes",null,"Yes","Yes","Yes",null,null,{"$f":"B66","v":"a. Combined oral contraceptives (estrogen + progestin - for  example, LoFemenol, Microgynon)"}]
[null,"b. Progestin-only pills (for example, Ovrette, Microlut)",null,"Yes",null,"No","Yes","No",null,null,{"$f":"B67","v":"b. Progestin-only pills (for example, Ovrette, Microlut)"}]
[null,"c. Hormonal injections (for example, DepoProvera, Noristerat)",null,"Yes",null,"Yes","Yes","No",null,null,"c. Hormonal injections (for example, DepoProvera, Noristerat)"]
[null,"d. Hormonal implants (for example, Jadelle, Implanon)",null,"No",null,"No","No","No",null,null,"d. Hormonal implants (for example, Jadelle, Implanon)"]
[null,"e. Intrauterine devices (IUDs) (for example, Optima Copper T)",null,"Yes",null,"Yes","Yes","No",null,null,"e. Intrauterine devices (IUDs) (for example, Optima Copper T)"]
[null,"f. Male condoms",null,"Yes",null,"Yes","Yes","Yes",null,null,"f. Male condoms"]
[null,"g. Female condoms",null,"No",null,"No","No","No",null,null,"g. Female condoms"]
[null,"h. Emergency contraceptive pills (for example, Postinor)",null,"Yes",null,"Yes","No","Yes",null,null,"h. Emergency contraceptive pills (for example, Postinor)"]
[null,"i. Long-acting permanent method for males (vasectomy)",null,"Yes",null,"No","Yes","No",null,null,"i. Long-acting permanent method for males (vasectomy)"]
[null,"j. Long-acting permanent method for females (tubal ligation)",null,"Yes",null,"Yes","Yes","No",null,null,"j. Long-acting permanent method for females (tubal ligation)"]
[null,"k. CycleBeads",null,"No",null,"No","No","No",null,null,"k. CycleBeads"]
[null,"l. Other contraceptive methods - specify \n(Please provide the name of the other contraceptive(s) offered, by sector.)",null,"IUD with Levonorgestrel (Mirena), hormonal patch, only monthly injectables",null,null,"IUD with Levonorgestrel",null,null,null,"l. Other contraceptive methods - specify \n(Please provide the name of the other contraceptive(s) offered, by sector.)"]
["C2. Please note any comments about the commodities offered.",null,null,null,null,null,null,null,null,null,{"$f":"A78","v":"C2. Please note any comments about the commodities offered."},null,null,null,{"$f":"D78","v":0}]
["D. Policies (Commitment)"]
["D1. Is there a contraceptive security or reproductive health commodity security strategy or is contraceptive security explicitly included in a country strategy? (Please select from the dropdown list.)",null,null,null,null,null,null,"Yes",{"$f":"A80","v":"D1. Is there a contraceptive security or reproductive health commodity security strategy or is contraceptive security explicitly included in a country strategy? (Please select from the dropdown list.)"}]
["IF NO, SKIP TO QUESTION D2."]
[null,"Strategy name",null,"Years Covered (including strategy updates)",null,"Is the strategy formally approved by the Ministry?","Is the contraceptive security strategy being implemented?",null,null,{"$f":"G82","v":"Is the contraceptive security strategy being implemented?"},{"$f":"B82","v":"Strategy name"},null,{"$f":"E82","v":0},null,null,null,null,null,{"$f":"D82","v":"Years Covered (including strategy updates)"}]
[null,"a","Plan Estrategico DAIA (Contraceptive Security Strategic Plan)","2011-2015",null,"No","Yes",null,null,{"$f":"G83","v":"Yes"},{"$f":"B83","v":"a"},null,{"$f":"E83","v":0},null,null,null,null,null,{"$f":"D83","v":"2011-2015"}]
["D2. Are any family planning commodities subject to duties, import taxes, or other fees?",null,null,null,null,"Yes",null,null,null,null,null,null,null,null,null,null,{"$f":"F84","v":"Yes"},{"$f":"A84","v":"D2. Are any family planning commodities subject to duties, import taxes, or other fees?"}]
[null,"a. If yes, for which sectors (public, NGO, social marketing, commercial)?",null,null,"All sectors",null,null,null,null,null,null,null,{"$f":"E85","v":"All sectors"},{"$f":"E85","v":"All sectors"},null,null,null,{"$f":"B85","v":"a. If yes, for which sectors (public, NGO, social marketing, commercial)?"}]
[null,"b. If yes, how much are the duties, taxes, or fees?",null,null,"10% value added tax, plus 0.50 on the value of the merchandise and a percentage for the customs clearance agent, which varies between 2% and 3% depending on the value of the shipment. (The value of a shipment includes freight and insurance in addition to the value of the merchandise.)",null,null,null,null,null,null,null,null,{"$f":"E86","v":"10% value added tax, plus 0.50 on the value of the merchandise and a percentage for the customs clearance agent, which varies between 2% and 3% depending on the value of the shipment. (The value of a shipment includes freight and insurance in addition to the value of the merchandise.)"},null,null,null,{"$f":"B86","v":"b. If yes, how much are the duties, taxes, or fees?"}]
["D3. Are there policies that hinder the ability of the private sector (commercial sector, NGOs, or social marketing) to provide contraceptive methods (for example: price controls, distribution limitations, taxes/duties, advertising bans, etc.)?",null,null,null,null,null,null,"No",{"$f":"A87","v":"D3. Are there policies that hinder the ability of the private sector (commercial sector, NGOs, or social marketing) to provide contraceptive methods (for example: price controls, distribution limitations, taxes/duties, advertising bans, etc.)?"}]
[null,"a. If yes, describe the policies.",null,"N/A",null,null,null,null,null,null,{"$f":"B88","v":"a. If yes, describe the policies."},null,null,null,{"$f":"D88","v":"N/A"}]
["D4. Are there policies that enable the private sector (commercial sector, NGOs, or social marketing) to provide contraceptive methods?",null,null,null,null,null,null,"Don't know",{"$f":"A89","v":"D4. Are there policies that enable the private sector (commercial sector, NGOs, or social marketing) to provide contraceptive methods?"}]
[null,"a. If yes, describe the policies.",null,"Don't know",null,null,null,null,null,null,{"$f":"B90","v":"a. If yes, describe the policies."},null,null,null,{"$f":"D90","v":"Don't know"}]
["D5. Do policies or regulations exist that restrict who can sell or dispense particular contraceptive methods?\n",null,null,null,null,null,null,"No",{"$f":"A91","v":"D5. Do policies or regulations exist that restrict who can sell or dispense particular contraceptive methods?\n"}]
[null,"Please note any restrictions in the following table."]
[null,"Contraceptive Method(s)",null,null,"Describe any public sector restriction on who is allowed to sell or dispense the method",null,"Describe any private sector restriction on who is allowed to sell or dispense the method",null,null,{"$f":"G93","v":"Describe any private sector restriction on who is allowed to sell or dispense the method"},null,null,null,null,null,{"$f":"B93","v":"Contraceptive Method(s)"},null,null,null,null,{"$f":"E93","v":"Describe any public sector restriction on who is allowed to sell or dispense the method"}]
[null,"a",null,null,null,null,null,null,null,{"$f":"G94","v":0},null,null,{"$f":"E94","v":0},null,null,{"$f":"C94","v":0},null,null,null,null,{"$f":"E94","v":0}]
[null,"b",null,null,null,null,null,null,null,{"$f":"G95","v":0},null,null,{"$f":"E95","v":0},null,null,{"$f":"C95","v":0},null,null,null,null,{"$f":"E95","v":0}]
[null,"c",null,null,null,null,null,null,null,{"$f":"G96","v":0},null,null,{"$f":"E96","v":0},null,null,{"$f":"C96","v":0},null,null,null,null,{"$f":"E96","v":0}]
[null,null,null,null,null,null,null,null,null,null,{"$f":"C97","v":0}]
["D6. Does the country have laws, regulations, or policies that make it difficult for the following sub-populations to access effective family planning services?",null,null,"Y/N","If yes, describe laws/regulations/policies affecting access ",null,null,"Are the rules/policies implemented?",null,null,{"$f":"A98","v":"D6. Does the country have laws, regulations, or policies that make it difficult for the following sub-populations to access effective family planning services?"},null,null,null,null,null,null,null,null,null,null,{"$f":"E98","v":"If yes, describe laws/regulations/policies affecting access "}]
[null,"a. Unmarried people",null,"No",null,null,null,null,null,null,{"$f":"B99","v":"a. Unmarried people"},null,{"$f":"E99","v":0},null,null,null,null,null,null,null,null,{"$f":"E99","v":0}]
[null,"b. Young people",null,"No",null,null,null,null,null,null,{"$f":"B100","v":"b. Young people"},null,{"$f":"E100","v":0},null,null,null,null,null,null,null,null,{"$f":"E100","v":0}]
[null,"c. Other",null,"No",null,null,null,null,null,null,{"$f":"B101","v":"c. Other"},null,{"$f":"E101","v":0},null,null,null,null,null,null,null,null,{"$f":"E101","v":0}]
[null,null,null,null,null,null,null,null,null,null,{"$f":"C102","v":0}]
["D7. Are there charges* to the client in the public sector for family planning:\n*(This question refers to charges by policy, not under-the-table charges.)\n",null,null,null,null,null,null,null,null,null,null,null,null,null,null,null,null,null,null,null,null,null,null,{"$f":"A103","v":"D7. Are there charges* to the client in the public sector for family planning:\n*(This question refers to charges by policy, not under-the-table charges.)\n"}]
[null,"a. Services?",null,null,null,null,"No",null,null,{"$f":"G104","v":"No"},null,null,null,null,null,null,null,null,null,null,null,null,null,null,{"$f":"B104","v":"a. Services?"}]
[null,"b. Commodities?",null,null,null,null,"No",null,null,{"$f":"G105","v":"No"},null,null,null,null,null,null,null,null,null,null,null,null,null,null,{"$f":"B105","v":"b. Commodities?"}]
[null,"c. If yes, are there exemptions for people who cannot afford to pay?",null,null,null,null,"N/A",null,null,{"$f":"G106","v":"N/A"},null,null,null,null,null,null,null,null,null,null,null,null,null,null,{"$f":"B106","v":"c. If yes, are there exemptions for people who cannot afford to pay?"}]
[null,null,"i. If yes, describe the exemptions.","N/A",null,null,null,null,null,null,{"$f":"C107","v":"i. If yes, describe the exemptions."},null,null,null,{"$f":"D107","v":"N/A"}]
["D8. Are the following contraceptives included in the country's National Essential Medicine List (NEML) or other equivalent priority list?",null,null,null,null,null,null,null,null,null,null,null,null,null,null,null,null,null,null,null,null,null,null,{"$f":"A108","v":"D8. Are the following contraceptives included in the country's National Essential Medicine List (NEML) or other equivalent priority list?"}]
[null,"a. Combined oral contraceptives",null,null,null,null,"Yes",null,null,{"$f":"G109","v":"Yes"},null,null,null,null,null,null,null,null,null,null,null,null,null,null,{"$f":"B109","v":"a. Combined oral contraceptives"}]
[null,"b. Progestin-only pills",null,null,null,null,"No",null,null,"No",null,null,null,null,null,null,null,null,null,null,null,null,null,null,"b. Progestin-only pills"]
[null,"c. Hormonal injections",null,null,null,null,"Yes",null,null,"Yes",null,null,null,null,null,null,null,null,null,null,null,null,null,null,"c. Hormonal injections"]
[null,"d. Hormonal implants",null,null,null,null,"No",null,null,"No",null,null,null,null,null,null,null,null,null,null,null,null,null,null,"d. Hormonal implants"]
[null,"e. Intrauterine devices (IUDs)",null,null,null,null,"No",null,null,"No",null,null,null,null,null,null,null,null,null,null,null,null,null,null,"e. Intrauterine devices (IUDs)"]
[null,"f. Male condoms",null,null,null,null,"No",null,null,"No",null,null,null,null,null,null,null,null,null,null,null,null,null,null,"f. Male condoms"]
[null,"g. Female condoms",null,null,null,null,"No",null,null,"No",null,null,null,null,null,null,null,null,null,null,null,null,null,null,"g. Female condoms"]
[null,"h. Emergency contraceptive pills",null,null,null,null,"Yes",null,null,"Yes",null,null,null,null,null,null,null,null,null,null,null,null,null,null,"h. Emergency contraceptive pills"]
[null,"i. CycleBeads",null,null,null,null,"No",null,null,{"$f":"G117","v":"No"},null,null,null,null,null,null,null,null,null,null,null,null,null,null,{"$f":"B117","v":"i. CycleBeads"}]
[null,"j. Any other contraceptive(s)?",null,null,null,null,"No",null,null,"No",null,null,null,null,null,null,null,null,null,null,null,null,null,null,"j. Any other contraceptive(s)?"]
[null,null,"i. Name of other contraceptive(s) on the list(s)",null,null,"N/A",null,null,null,0,null,null,null,null,null,null,null,{"$f":"B119","v":0}]
["D9. What year(s) is the list(s) from?",null,null,null,null,2009,null,null,null,0,null,null,null,null,null,null,null,{"$f":"B120","v":0}]
["D10. Name of the list(s)\n\n\n",null,null,"Lista de Medicamentos Esenciales (Essential Medicines List)",null,null,null,null,null,null,{"$f":"A121","v":"D10. Name of the list(s)\n\n\n"},null,null,null,{"$f":"D121","v":"Lista de Medicamentos Esenciales (Essential Medicines List)"}]
["D11. Notes about the list(s)\n\n\n",null,null,null,null,null,null,null,null,null,{"$f":"A122","v":"D11. Notes about the list(s)\n\n\n"},null,null,null,{"$f":"D122","v":0}]
["D12.  Information on country's Poverty Reduction Strategy Paper (PRSP)\n",null,null,null,null,null,null,null,null,null,null,null,null,null,null,null,null,null,null,null,null,null,null,{"$f":"A123","v":"D12.  Information on country's Poverty Reduction Strategy Paper (PRSP)\n"}]
[null,"a. What year is the Poverty Reduction Strategy Paper from? (most recent actual PRSP on IMF's site [not progress or summary report])",null,null,null,"N/A",null,null,null,{"$f":"G124","v":0},null,null,null,null,null,null,null,{"$f":"B124","v":"a. What year is the Poverty Reduction Strategy Paper from? (most recent actual PRSP on IMF's site [not progress or summary report])"}]
[null,"b. Is family planning or reproductive health a priority in the PRSP?",null,null,null,null,"N/A",null,null,{"$f":"G125","v":"N/A"},null,null,null,null,null,null,null,null,null,null,null,null,null,null,{"$f":"B125","v":"b. Is family planning or reproductive health a priority in the PRSP?"}]
[null,"c. Is contraceptive security included in the PRSP?",null,null,null,null,"N/A",null,null,{"$f":"G126","v":"N/A"},null,null,null,null,null,null,null,null,null,null,null,null,null,null,{"$f":"B126","v":"c. Is contraceptive security included in the PRSP?"}]
[null,"d. Is contraceptive prevalence rate (CPR) included as an indicator in the PRSP?",null,null,null,null,"N/A",null,null,{"$f":"G127","v":"N/A"},null,null,null,null,null,null,null,null,null,null,null,null,null,null,{"$f":"B127","v":"d. Is contraceptive prevalence rate (CPR) included as an indicator in the PRSP?"}]
[null,"e. Are contraceptive supply indicators included in the PRSP?",null,null,null,null,"N/A",null,null,{"$f":"G128","v":"N/A"},null,null,null,null,null,null,null,null,null,null,null,null,null,null,{"$f":"B128","v":"e. Are contraceptive supply indicators included in the PRSP?"}]
["\n\n\n","f. Notes about the Poverty Reduction Strategy Paper",null,"Document not available on IMF's website",null,null,null,null,null,null,{"$f":"B129","v":"f. Notes about the Poverty Reduction Strategy Paper"},null,null,null,{"$f":"D129","v":"Document not available on IMF's website"}]
["E. Supply Chain (Capacity)"]
["E1. Have stockouts occurred for any contraceptive at the central* level in the last 12 months?  \n*(The central level refers to the central level warehouse for the public sector.)",null,null,null,null,null,"No",null,null,{"$f":"G131","v":"No"},null,null,null,null,null,null,null,null,null,null,null,null,null,null,{"$f":"A131","v":"E1. Have stockouts occurred for any contraceptive at the central* level in the last 12 months?  \n*(The central level refers to the central level warehouse for the public sector.)"}]
["E2. In the last 12 months, has there ever been a stockout at the central level of any of the contraceptives offered in public sector facilities? (If a method is not intended to be offered in public sector facilities, please indicate that stockouts are not applicable (choose \"N/A\" from the dropdown list).)",null,null,null,null,null,null,null,null,null,null,null,null,null,null,null,null,null,null,null,null,null,null,{"$f":"A132","v":"E2. In the last 12 months, has there ever been a stockout at the central level of any of the contraceptives offered in public sector facilities? (If a method is not intended to be offered in public sector facilities, please indicate that stockouts are not applicable (choose \"N/A\" from the dropdown list).)"}]
[null,"a. Combined oral contraceptives",null,null,null,null,"No",null,null,{"$f":"G133","v":"No"},null,null,null,null,null,null,null,null,null,null,null,null,null,null,{"$f":"B133","v":"a. Combined oral contraceptives"}]
[null,"b. Progestin-only pills",null,null,null,null,"N/A",null,null,"N/A",null,null,null,null,null,null,null,null,null,null,null,null,null,null,"b. Progestin-only pills"]
[null,"c. Hormonal injections",null,null,null,null,"No",null,null,"No",null,null,null,null,null,null,null,null,null,null,null,null,null,null,"c. Hormonal injections"]
[null,"d. Hormonal implants",null,null,null,null,"N/A",null,null,"N/A",null,null,null,null,null,null,null,null,null,null,null,null,null,null,"d. Hormonal implants"]
[null,"e. Intrauterine devices (IUDs)",null,null,null,null,"No",null,null,"No",null,null,null,null,null,null,null,null,null,null,null,null,null,null,"e. Intrauterine devices (IUDs)"]
[null,"f. Male condoms",null,null,null,null,"No",null,null,"No",null,null,null,null,null,null,null,null,null,null,null,null,null,null,"f. Male condoms"]
[null,"g. Female condoms",null,null,null,null,"N/A",null,null,"N/A",null,null,null,null,null,null,null,null,null,null,null,null,null,null,"g. Female condoms"]
[null,"h. Emergency contraceptive pills",null,null,null,null,"No",null,null,"No",null,null,null,null,null,null,null,null,null,null,null,null,null,null,"h. Emergency contraceptive pills"]
[null,"i. CycleBeads",null,null,null,null,"N/A",null,null,"N/A",null,null,null,null,null,null,null,null,null,null,null,null,null,null,"i. CycleBeads"]
[null,"j. Time period\n(mm/yy - mm/yy) (for example, 1/10-12/10) ",null,null,null,"01/10-12/10",null,null,null,null,null,null,null,null,null,null,{"$f":"F142","v":"01/10-12/10"},{"$f":"B142","v":"j. Time period\n(mm/yy - mm/yy) (for example, 1/10-12/10) "}]
[null,"k. Data source\n(for example: Procurement Planning and Monitoring Report, Logistics Management Information System, periodic physical inventory, warehouse reports)",null,null,null,"stockcards at central warehouse",null,null,null,null,null,null,null,null,null,null,{"$f":"F143","v":"stockcards at central warehouse"},{"$f":"B143","v":"k. Data source\n(for example: Procurement Planning and Monitoring Report, Logistics Management Information System, periodic physical inventory, warehouse reports)"}]
["E3. Are stockouts a large problem in your country at the following levels? (i.e., Are they common or do they tend to last for a long time?)\n\n"]
[null,"a. service delivery point level (i.e., public sector health facilities)",null,null,null,null,"No",null,null,{"$f":"G145","v":"No"},null,null,null,null,null,null,null,null,null,null,null,null,null,null,{"$f":"B145","v":"a. service delivery point level (i.e., public sector health facilities)"}]
[null,"b. central level (i.e., central level warehouse for the public sector)",null,null,null,null,"No",null,null,{"$f":"G146","v":"No"},null,null,null,null,null,null,null,null,null,null,null,null,null,null,{"$f":"B146","v":"b. central level (i.e., central level warehouse for the public sector)"}]
["F. Please note any overall comments about challenges and/or successes with contraceptive security in your country.\n\n",null,null,"We have a law that ensures the allocation of funds for contraceptive procurement.",null,null,null,null,null,null,{"$f":"A147","v":"F. Please note any overall comments about challenges and/or successes with contraceptive security in your country.\n\n"},null,null,null,{"$f":"D147","v":"We have a law that ensures the allocation of funds for contraceptive procurement."}]

{"sheet":"Philippines 2011","index":34,"n_rows":147,"n_cols":25,"rows_kept":147,"cut":false,"hidden":false,"merged":[[0,0,0,7],[1,0,1,2],[1,3,1,4],[2,0,2,7],[3,3,3,4],[3,5,3,7],[7,0,7,2],[7,3,7,5],[7,6,7,7],[9,0,9,7],[10,0,10,6],[11,0,11,6],[12,1,12,2],[12,3,12,7],[4,0,4,2],[5,0,5,2],[8,0,8,7],[16,1,16,2],[16,5,16,7],[17,1,17,2],[17,5,17,7],[18,1,18,2],[18,5,18,7],[13,0,13,2],[13,3,13,7],[14,1,14,2],[14,5,14,7],[15,1,15,2],[15,5,15,7],[22,1,22,2],[22,5,22,7],[23,0,23,6],[24,0,24,6],[25,0,25,2],[26,0,26,6],[19,1,19,2],[19,5,19,7],[20,1,20,2],[20,5,20,7],[21,1,21,2],[21,5,21,7],[30,0,30,6],[31,0,31,6],[32,0,32,7],[33,1,33,3],[34,1,34,3],[35,0,35,7],[27,0,27,2],[27,3,27,4],[28,0,28,5],[28,6,28,7],[29,0,29,3],[29,6,29,7],[42,3,42,7],[43,1,43,2],[45,0,45,7],[46,1,46,2],[47,1,47,2],[48,3,48,7],[36,0,36,6],[37,0,37,7],[38,1,38,2],[39,1,39,2],[40,3,40,7],[41,1,41,2],[55,0,55,4],[55,6,55,7],[56,0,56,4],[56,6,56,7],[58,0,58,4],[58,5,58,7],[49,1,49,2],[50,1,50,2],[51,1,51,2],[53,0,53,7],[54,0,54,4],[54,6,54,7],[62,0,62,6],[63,0,63,7],[64,0,64,2],[64,3,64,4],[65,1,65,2],[65,3,65,4],[59,1,59,4],[59,5,59,7],[60,2,60,4],[60,5,60,7],[61,0,61,2],[61,3,61,7],[69,1,69,2],[69,3,69,4],[70,1,70,2],[70,3,70,4],[71,1,71,2],[71,3,71,4],[66,1,66,2],[66,3,66,4],[67,1,67,2],[67,3,67,4],[68,1,68,2],[68,3,68,4],[75,1,75,2],[75,3,75,4],[76,1,76,2],[76,3,76,4],[77,0,77,2],[77,3,77,7],[72,1,72,2],[72,3,72,4],[73,1,73,2],[73,3,73,4],[74,1,74,2],[74,3,74,4],[83,0,83,4],[83,5,83,7],[84,1,84,3],[84,4,84,7],[85,1,85,3],[85,4,85,7],[78,0,78,6],[79,0,79,6],[80,0,80,2],[81,0,82,0],[81,1,81,2],[81,3,81,4],[81,6,81,7],[82,3,82,4],[82,6,82,7],[90,0,90,6],[91,1,91,2],[92,1,92,3],[92,4,92,5],[92,6,92,7],[93,2,93,3],[93,4,93,5],[93,6,93,7],[86,0,86,6],[87,1,87,2],[87,3,87,7],[88,0,88,6],[89,1,89,2],[89,3,89,7],[96,0,96,7],[97,0,97,2],[97,4,97,6],[98,1,98,2],[98,4,98,6],[99,1,99,2],[99,4,99,6],[94,2,94,3],[94,4,94,5],[94,6,94,7],[95,2,95,3],[95,4,95,5],[95,6,95,7],[104,1,104,5],[104,6,104,7],[105,1,105,5],[105,6,105,7],[106,3,106,7],[107,0,107,7],[100,1,100,2],[100,4,100,6],[101,0,101,7],[102,0,102,7],[103,1,103,5],[103,6,103,7],[111,1,111,5],[111,6,111,7],[112,1,112,5],[112,6,112,7],[113,1,113,5],[113,6,113,7],[108,1,108,5],[108,6,108,7],[109,1,109,5],[109,6,109,7],[110,1,110,5],[110,6,110,7],[117,1,117,5],[117,6,117,7],[118,2,118,4],[118,5,118,7],[119,0,119,4],[119,5,119,7],[114,1,114,5],[114,6,114,7],[115,1,115,5],[115,6,115,7],[116,1,116,5],[116,6,116,7],[131,0,131,7],[132,1,132,5],[132,6,132,7],[133,1,133,5],[133,6,133,7],[134,1,134,5],[134,6,134,7],[120,0,120,2],[120,3,120,7],[121,0,121,2],[121,3,121,7],[129,0,129,6],[130,0,130,5],[130,6,130,7],[122,0,122,7],[123,1,123,4],[123,5,123,7],[138,1,138,5],[138,6,138,7],[139,1,139,5],[139,6,139,7],[140,1,140,5],[140,6,140,7],[135,1,135,5],[135,6,135,7],[136,1,136,5],[136,6,136,7],[137,1,137,5],[137,6,137,7],[147,0,147,7],[148,0,150,7],[145,1,145,5],[145,6,145,7],[146,0,146,2],[146,3,146,7],[141,1,141,4],[141,5,141,7],[142,1,142,4],[142,5,142,7],[143,0,143,7],[144,1,144,5],[144,6,144,7],[127,1,127,5],[127,6,127,7],[128,1,128,2],[128,3,128,7],[124,1,124,5],[124,6,124,7],[125,1,125,5],[125,6,125,7],[126,1,126,5],[126,6,126,7]]}
[null,null,null,null,null,null,null,null,"Columns I-Y are meant to be hidden. They exist because they allow for the dropdown list options. They also allow for merged cells to autofit properly in terms of row height. This should work if all columns remain at their correct widths.","g-h",null,"a-e merged","E-F merged","e-h","0 times",null,null,"The government (e.g., Central Medical Stores, MOH logistics unit, MOH procurement unit)",null,null,null,null,"Yes","a-h","January"]
[null,null,null,null,null,null,null,null,null,null,"A-c",null,null,null,"1-2 times","b-d merged",null,"Third-party agent (e.g., UNFPA, Crown Agents)","d-e merged","d-f merged","e-f merged","e-g merged","No",null,"February"]
[null,null,null,null,null,null,null,null,null,null,null,null,null,null,"3-5 times",null,null,"The government and a third-party agent",null,null,null,null,null,null,"March"]
[null,null,null,null,null,null,null,null,null,null,null,null,null,null,"6 or more times",null,null,"Other",null,null,null,null,"N/A",null,"April"]
["To jump to the Introduction sheet, click here.",null,null,null,null,null,null,null,null,null,null,null,null,null,null,null,null,null,null,null,null,null,"Don't know",null,"May"]
[null,null,null,null,null,null,null,null,null,null,null,null,null,null,"N/A",null,null,"N/A",null,null,null,null,null,null,"June"]
["Contraceptive Security (CS) Indicators 2011 Data ",null,null,null,null,null,null,null,null,null,null,null,null,null,"Don't know",null,null,"Don't know",null,null,null,null,null,null,"July"]
["Country: Philippines",null,null,null,null,null,null,null,null,{"$f":"G8","v":0},{"$f":"A8","v":"Country: Philippines"},null,null,null,null,"or c-d",null,null,null,{"$f":"D8","v":0},null,null,null,null,"August"]
["The CS Indicators are presented in the following sections:\n\n               A. leadership & cooordination               B. finance & procurement               C. commodities               D. policies               E. supply chain",null,null,null,null,null,null,null,null,{"$f":"G9","v":0},{"$f":"A9","v":"The CS Indicators are presented in the following sections:\n\n               A. leadership & cooordination               B. finance & procurement               C. commodities               D. policies               E. supply chain"},null,null,null,"d-h",null,"f-h merged",null,{"$f":"D9","v":0},null,null,null,null,{"$f":"A9","v":"The CS Indicators are presented in the following sections:\n\n               A. leadership & cooordination               B. finance & procurement               C. commodities               D. policies               E. supply chain"},"September"]
["\nNotes:\n  -  Respondents' answers are indicated in the white spaces. \n  -  N/A = not applicable. Don't know = the respondent either indicated they did not know or left the answer blank.\n  -  Some questions required respondents to choose from a dropdown list of options; in these cases the dropdown arrow will \n     appear when you click on the cell. \n  -  There may be a few inserted comments. (If you cannot already see them, click on Review tab - Comments group - Show All Comments in newer \n       versions of Excel or View - Comments in older versions of Excel.)\n  -  If the answer is cut off, you can either manually adjust the row height or autofit the row height in order to see the whole \n     response. (To autofit the row height, select the answer(s) and go to Home tab - Cells group - Format - Autofit Row Height in newer versions of Excel or \n      Format - Row - Autofit in older versions of Excel.)\n",null,null,null,null,null,null,null,"a-g",null,null,null,null,null,null,null,null,"a-e merged",null,null,null,null,null,{"$f":"A10","v":"\nNotes:\n  -  Respondents' answers are indicated in the white spaces. \n  -  N/A = not applicable. Don't know = the respondent either indicated they did not know or left the answer blank.\n  -  Some questions required respondents to choose from a dropdown list of options; in these cases the dropdown arrow will \n     appear when you click on the cell. \n  -  There may be a few inserted comments. (If you cannot already see them, click on Review tab - Comments group - Show All Comments in newer \n       versions of Excel or View - Comments in older versions of Excel.)\n  -  If the answer is cut off, you can either manually adjust the row height or autofit the row height in order to see the whole \n     response. (To autofit the row height, select the answer(s) and go to Home tab - Cells group - Format - Autofit Row Height in newer versions of Excel or \n      Format - Row - Autofit in older versions of Excel.)\n"},"October"]
["A. Leadership and Coordination",null,null,null,null,null,null,null,null,null,null,null,null,null,null,null,null,null,null,null,null,null,null,null,"November"]
["A1. Is there a national committee that works on contraceptive security? (Please select from the dropdown list.)\n(Committee should have some aspect of contraceptive security as part of its Terms of Reference, even if it is known by a different name, for example: Family Planning, Reproductive Health, Maternal Mortality, Essential Medicine Committee, etc.)  ",null,null,null,null,null,null,"Yes",{"$f":"A12","v":"A1. Is there a national committee that works on contraceptive security? (Please select from the dropdown list.)\n(Committee should have some aspect of contraceptive security as part of its Terms of Reference, even if it is known by a different name, for example: Family Planning, Reproductive Health, Maternal Mortality, Essential Medicine Committee, etc.)  "},null,null,null,null,null,null,null,null,null,null,null,null,null,null,null,"December"]
[null,"a. What is the name of the committee?",null,"Contraceptive Self-Reliance (CSR) Technical Working Group",null,null,null,null,null,null,{"$f":"B13","v":"a. What is the name of the committee?"},{"$f":"D13","v":"Contraceptive Self-Reliance (CSR) Technical Working Group"},null,null,{"$f":"D13","v":"Contraceptive Self-Reliance (CSR) Technical Working Group"}]
["A2. Are the following organizations represented on the committee?",null,null,"(Y/N \ndropdown)",null,null,null,null,null,null,{"$f":"A14","v":"A2. Are the following organizations represented on the committee?"},null,null,null,null,null,null,null,null,null,null,null,null,null,"Don't know"]
[null,"a. Social marketing",null,"Yes","If yes, specify name(s) of organizations","Family Planning Organization of the Philippines, League of Municipalities, DKT Philippines",null,null,null,null,{"$f":"B15","v":"a. Social marketing"},null,null,null,null,null,{"$f":"F15","v":"Family Planning Organization of the Philippines, League of Municipalities, DKT Philippines"}]
[null,"b. NGO (for example: service delivery, advocacy, Planned Parenthood affiliate, Marie Stopes affiliate, faith-based organizations, etc.)",null,"Yes","If yes, specify name(s) of organizations","Philippine NGO Council, Family Planning Organization of the Philippines, League of Municipalities, Union of Local Authorities of the Philippines, League of Cities, Likhaan, FriendlyCare",null,null,null,null,"b. NGO (for example: service delivery, advocacy, Planned Parenthood affiliate, Marie Stopes affiliate, faith-based organizations, etc.)",null,null,null,null,null,"Philippine NGO Council, Family Planning Organization of the Philippines, League of Municipalities, Union of Local Authorities of the Philippines, League of Cities, Likhaan, FriendlyCare"]
[null,"c. Commercial sector (for example: pharmacy associations, manufacturers, etc.)",null,"Yes","If yes, specify name(s) of organizations","Philippine Chamber of Commerce and Industry, Drugstores Association of the Philippines, DKT Philippines, Alphamed",null,null,null,null,"c. Commercial sector (for example: pharmacy associations, manufacturers, etc.)",null,null,null,null,null,"Philippine Chamber of Commerce and Industry, Drugstores Association of the Philippines, DKT Philippines, Alphamed"]
[null,"d. Donors",null,"Yes","If yes, specify name(s) of donors","USAID, WHO",null,null,null,null,"d. Donors",null,null,null,null,null,"USAID, WHO"]
[null,"e. UN agencies",null,"Yes","If yes, specify name(s) of agencies","UNFPA",null,null,null,null,"e. UN agencies",null,null,null,null,null,"UNFPA"]
[null,"f. Ministry of Health (for example: logistics, reproductive health, family planning, maternal and child health, HIV/AIDS, pharmacy units, etc.)",null,"Yes","If yes, specify name(s) of units","National Center for Disease Prevention and Control, Material Management Division, Bureau of Local Health Development, Bureau of International Health Coordination, Health Policy Development and Planning Bureau, National Drug Program, Department of Health (DOH) attached agencies: Food and Drugs Administration, Population Commission, Philippine Health Insurance Corp (PhilHealth), DOH-ARMM, Center for Health and Development Region IV-A, Local Government Units (LGUs) - Pangasinan Provincial Population Office",null,null,null,null,"f. Ministry of Health (for example: logistics, reproductive health, family planning, maternal and child health, HIV/AIDS, pharmacy units, etc.)",null,null,null,null,null,"National Center for Disease Prevention and Control, Material Management Division, Bureau of Local Health Development, Bureau of International Health Coordination, Health Policy Development and Planning Bureau, National Drug Program, Department of Health (DOH) attached agencies: Food and Drugs Administration, Population Commission, Philippine Health Insurance Corp (PhilHealth), DOH-ARMM, Center for Health and Development Region IV-A, Local Government Units (LGUs) - Pangasinan Provincial Population Office"]
[null,"g. Central Medical Store or Central Warehouse",null,"Yes","If yes, specify","DOH Materials Management Division",null,null,null,null,"g. Central Medical Store or Central Warehouse",null,null,null,null,null,"DOH Materials Management Division"]
[null,"h. Ministry of Finance or Ministry of Planning ",null,"No","If yes, specify",null,null,null,null,null,"h. Ministry of Finance or Ministry of Planning ",null,null,null,null,null,0]
[null,"i. Other (for example: partners)",null,null,"If yes, specify",null,null,null,null,null,"i. Other (for example: partners)",null,null,null,null,null,0]
["A3. How many times did the committee meet during the last year? (0, 1-2, 3-5, or 6+)  (Please select from the dropdown.)",null,null,null,null,null,null,"3-5 times",{"$f":"A24","v":"A3. How many times did the committee meet during the last year? (0, 1-2, 3-5, or 6+)  (Please select from the dropdown.)"}]
["A4. Does the committee have legal status?  (Please select from the dropdown.)                                  ",null,null,null,null,null,null,"Yes",{"$f":"A25","v":"A4. Does the committee have legal status?  (Please select from the dropdown.)                                  "}]
["A5. Is there a Contraceptive Security \"champion\"? (someone who consistently brings up and advocates for contraceptive supplies)",null,null,"Yes","If yes, specify person's organization","Philippine Legislative Committee on Population & Development (PLCPD - an NGO of legislators), Forum, & Reproductive Health Advocacy Network","Specify person's job title","Executive Directors and the Chairman of the organizations",null,null,{"$f":"A26","v":"A5. Is there a Contraceptive Security \"champion\"? (someone who consistently brings up and advocates for contraceptive supplies)"}]
["B. Finance and Procurement (Capital)"]
["B1. What is the timeline of the country's fiscal year?",null,null,"Beginning month",null,"January","Ending month","December",null,null,{"$f":"B28","v":0}]
["B2. What was the estimated dollar value of contraceptives needed to be procured for the public sector for the most recent complete fiscal year? (in USD currency)\n(for example, to cover the needs for the '09-'10 fiscal year)",null,null,null,null,null,"Don't know",null,null,{"$f":"G29","v":"Don't know"},null,null,{"$f":"E29","v":0},null,null,null,null,null,null,null,null,null,null,null,{"$f":"A29","v":"B2. What was the estimated dollar value of contraceptives needed to be procured for the public sector for the most recent complete fiscal year? (in USD currency)\n(for example, to cover the needs for the '09-'10 fiscal year)"}]
["B3. When was the last forecast/quantification conducted? (mm/yy)",null,null,null,"12/10 and 04/11","Who conducted it? (Specify organization.)","Don't know",null,null,{"$f":"G30","v":"Don't know"},null,null,{"$f":"E30","v":"12/10 and 04/11"},null,null,null,null,null,null,null,null,null,null,null,{"$f":"A30","v":"B3. When was the last forecast/quantification conducted? (mm/yy)"}]
["B4. Is there a government budget line item for the procurement of contraceptives?  (Please select from the dropdown list.)",null,null,null,null,null,null,"No",{"$f":"A31","v":"B4. Is there a government budget line item for the procurement of contraceptives?  (Please select from the dropdown list.)"}]
["B5. Were government funds allocated for contraceptive procurement for the public sector in the most recent complete fiscal year? (This question refers to funds planned to be spent on contraceptives, whether or not they ended up being spent.) \n\n(Government funds include internally generated funds, basket funds, World Bank credits or loans, and other funds donors gave to the government for their use.) \n",null,null,null,null,null,null,"Yes",{"$f":"A32","v":"B5. Were government funds allocated for contraceptive procurement for the public sector in the most recent complete fiscal year? (This question refers to funds planned to be spent on contraceptives, whether or not they ended up being spent.) \n\n(Government funds include internally generated funds, basket funds, World Bank credits or loans, and other funds donors gave to the government for their use.) \n"}]
["B6. Please complete the table below regarding government allocations for contraceptive procurement.",null,null,null,null,null,null,null,null,null,null,null,null,null,null,null,null,null,null,null,null,null,null,{"$f":"A33","v":"B6. Please complete the table below regarding government allocations for contraceptive procurement."}]
[null,null,null,null,"Amount allocated \n(in USD)","Time period during which allocations were supposed to be spent \n(mm/yy-mm/yy)\n(should ideally be the most recent\ncomplete fiscal year ['09-'10])","Data source \n(for example: Ministry records)","Comments",null,null,{"$f":"A34","v":0}]
[null,"Government funds allocated for contraceptive procurement\n(funds originally designated for contraceptives, whether or not they ended up being spent on them)",null,null,"Don't know","01/10-12/10",null,"There were funds from the Maternal and Child Health and Nutrition grants from the Department of Health. Data for amounts allocated or used for contraceptive procurement are not available because funds were coursed directly to LGUs.",null,null,{"$f":"#REF!","v":{"$error":"#REF!"}}]
[]
["B7. Were government funds spent on contraceptive procurement for the public sector in the most recent complete fiscal year? \n(Government funds include internally generated funds, basket funds, World Bank credits or loans, and other funds donors gave to the government for their use.)",null,null,null,null,null,null,"Yes",{"$f":"A37","v":"B7. Were government funds spent on contraceptive procurement for the public sector in the most recent complete fiscal year? \n(Government funds include internally generated funds, basket funds, World Bank credits or loans, and other funds donors gave to the government for their use.)"}]
["B8. Please complete the table below to indicate government expenditures on contraceptive procurement, by source, in the most recent complete fiscal year. \n(This is how much was spent on contraceptive procurement (not what was allocated). How much of this spending was provided from each source?)",null,null,null,null,null,null,null,null,null,null,null,null,null,null,null,null,null,null,null,null,null,null,{"$f":"A38","v":"B8. Please complete the table below to indicate government expenditures on contraceptive procurement, by source, in the most recent complete fiscal year. \n(This is how much was spent on contraceptive procurement (not what was allocated). How much of this spending was provided from each source?)"}]
[null,"Source of government funds spent on contraceptive procurement for the public sector",null,"Was this source used?\n(Y/N)","Amount spent \n(in USD)","Time period (mm/yy-mm/yy)\n(should be the same for all sources of funds & ideally be the most recent\ncomplete fiscal year ['09-'10])","Data source \n(for example: Contraceptive Procurement Table, PipeLine, etc.)","Comments",null,null,{"$f":"A39","v":0}]
[null,"a. Internally generated funds spent on contraceptive procurement",null,"Yes","Don't know","01/10-12/10",null,"Internally generated funds came from the Maternal Neonatal Child Health and Nutrition grant from the National Department of Health. This fund was drawn down to or received by specific local government units not at the same time, and not all of the amount is for contraceptives. As a result, specific data as to how much was spent is not available.",null,null,{"$f":"B40","v":"a. Internally generated funds spent on contraceptive procurement"}]
[null,null,"i. Specify source(s) of internally generated funds spent (for example, from taxes or user fees)","Don't know",null,null,null,null,null,null,{"$f":"C41","v":"i. Specify source(s) of internally generated funds spent (for example, from taxes or user fees)"},null,null,null,{"$f":"D41","v":"Don't know"}]
[null,"b. Total of all other government funds spent on contraceptive procurement (basket funds, World Bank credits or loans, and other funds donors gave to the government [e.g., direct budget support])",null,"Don't know","Don't know","01/10-12/10",null,null,null,null,{"$f":"B42","v":"b. Total of all other government funds spent on contraceptive procurement (basket funds, World Bank credits or loans, and other funds donors gave to the government [e.g., direct budget support])"}]
[null,null,"i. Specify source(s) of other government funds spent (for example: basket funding or specific donor)","Don't know",null,null,null,null,null,null,{"$f":"C43","v":"i. Specify source(s) of other government funds spent (for example: basket funding or specific donor)"},null,null,null,{"$f":"D43","v":"Don't know"}]
[null,"c. TOTAL government funds spent on contraceptive procurement\nThis will auto-calculate.  (It will sum a & b above.)",null,null,"Don't know",null,null,null,null,null,{"$f":"B44","v":"c. TOTAL government funds spent on contraceptive procurement\nThis will auto-calculate.  (It will sum a & b above.)"}]
[null,null,null,null,null,null,null,null,null,null,{"$f":"A45","v":0}]
["B9. Please complete the table below to indicate donor expenditures on contraceptive procurement in the most recent complete fiscal year.\n",null,null,null,null,null,null,null,null,null,null,null,null,null,null,null,null,null,null,null,null,null,null,{"$f":"A46","v":"B9. Please complete the table below to indicate donor expenditures on contraceptive procurement in the most recent complete fiscal year.\n"}]
["\n","Source of donations and donor funds spent on contraceptive procurement for the public sector",null,"Was this a source?\n(Y/N)","Amount of money spent on these procurements \n(in USD)","Time period (mm/yy-mm/yy)\n(should be the same for all sources of funds & ideally be the most recent\ncomplete fiscal year ['09-'10])","Data source \n(for example:  Donor records, Contraceptive Procurement Table, PipeLine, RHInterchange, etc.","Comments",null,null,{"$f":"A47","v":"\n"}]
[null,"a. In-kind donations of contraceptives",null,"Yes",920757,"01/10-12/10","RHInterchange","Other donations were coursed directly to LGUs.\n\nThe USAID donation included here was shipped in December 2009 and received by the DOH in January 2010. ",null,null,{"$f":"B48","v":"a. In-kind donations of contraceptives"}]
[null,null,"i. Specify source(s) of in-kind donations ","UNFPA ($728,769) & USAID ($191,988)",null,null,null,null,null,null,{"$f":"C49","v":"i. Specify source(s) of in-kind donations "},null,null,null,{"$f":"D49","v":"UNFPA ($728,769) & USAID ($191,988)"}]
[null,"b. Global Fund donations used to procure condoms",null,"No",0,"01/10-12/10","RHInterchange",null,null,null,{"$f":"B50","v":"b. Global Fund donations used to procure condoms"}]
[null,"c. Global Fund donations used to procure contraceptives besides condoms",null,"No",0,"01/10-12/10","RHInterchange",null,null,null,{"$f":"B51","v":"c. Global Fund donations used to procure contraceptives besides condoms"}]
[null,"d. TOTAL value of in-kind donations and Global Fund donations spent on contraceptive procurement\nThis will auto-calculate.  (It will sum a-c above.)",null,null,{"$f":"E48+E50+E51","v":920757},null,null,null,null,null,{"$f":"B52","v":"d. TOTAL value of in-kind donations and Global Fund donations spent on contraceptive procurement\nThis will auto-calculate.  (It will sum a-c above.)"}]
[null,null,null,null,null,null,null,null,null,null,{"$f":"A53","v":0}]
["The answers to B10 and B11 should calculate automatically based on the information you provided. Please review the answers to ensure they make sense to you, and if you have additional information to add, please note it in the comments boxes.\n\nIf the answers do not calculate automatically, please provide any relevant information you may have in the comments boxes.\n",null,null,null,null,null,null,null,null,null,null,null,null,null,null,null,null,null,null,null,null,null,null,{"$f":"A54","v":"The answers to B10 and B11 should calculate automatically based on the information you provided. Please review the answers to ensure they make sense to you, and if you have additional information to add, please note it in the comments boxes.\n\nIf the answers do not calculate automatically, please provide any relevant information you may have in the comments boxes.\n"}]
["B10. Government share of funds spent on contraceptive procurement for the public sector - \nOf the total amount spent on contraceptives for the public sector in the most recent complete fiscal year (including government and donor funds), what percent was covered by government funds (including internally generated funds, basket funds, World Bank credits or loans, and other funds given to the government)? \n\nThis will auto-calculate. (It contains the following formula: Total government spending (Question B8c) / Grand total of all spending for public sector contraceptives from the government and donors (Questions B8c+B9d))",null,null,null,null,"Don't know",null,null,null,{"$f":"G55","v":0},null,null,null,null,null,null,null,{"$f":"A55","v":"B10. Government share of funds spent on contraceptive procurement for the public sector - \nOf the total amount spent on contraceptives for the public sector in the most recent complete fiscal year (including government and donor funds), what percent was covered by government funds (including internally generated funds, basket funds, World Bank credits or loans, and other funds given to the government)? \n\nThis will auto-calculate. (It contains the following formula: Total government spending (Question B8c) / Grand total of all spending for public sector contraceptives from the government and donors (Questions B8c+B9d))"}]
["B11. Total expenditures on public sector contraceptives as percent of amount that needed to be procured -\nOf the estimated value of the contraceptives needed to be procured for the public sector for the most recent complete fiscal year, what percent was provided by any source (whether government or donor)? \n\nThis will auto-calculate. (It contains the following formula: Grand total of all spending for public sector contraceptives from the government and donors (Questions B8c+B9d) / Value of estimated need for procurement (Question B2))",null,null,null,null,"Don't know",null,null,null,{"$f":"G56","v":0},null,null,null,null,null,null,null,{"$f":"A56","v":"B11. Total expenditures on public sector contraceptives as percent of amount that needed to be procured -\nOf the estimated value of the contraceptives needed to be procured for the public sector for the most recent complete fiscal year, what percent was provided by any source (whether government or donor)? \n\nThis will auto-calculate. (It contains the following formula: Grand total of all spending for public sector contraceptives from the government and donors (Questions B8c+B9d) / Value of estimated need for procurement (Question B2))"}]
["B12. If B11 did not calculate automatically, please answer the following question:\nWas there a funding gap for the public sector in the last complete fiscal year (e.g., 09-'10 fiscal year)?\n(Please select from the dropdown list.)",null,null,null,null,"Don't know",null,null,null,{"$f":"G57","v":0},null,null,null,null,null,null,null,{"$f":"A57","v":"B12. If B11 did not calculate automatically, please answer the following question:\nWas there a funding gap for the public sector in the last complete fiscal year (e.g., 09-'10 fiscal year)?\n(Please select from the dropdown list.)"}]
[null,null,null,null,null,null,null,null,null,null,{"$f":"A58","v":0}]
["B13. If the government financed any contraceptive procurement in the most recent complete fiscal year, which entity conducted the procurement(s)? (Please select from the dropdown.)",null,null,null,null,"The government (e.g., Central Medical Stores, MOH logistics unit, MOH procurement unit)",null,null,null,null,null,null,null,null,null,null,{"$f":"F59","v":"The government (e.g., Central Medical Stores, MOH logistics unit, MOH procurement unit)"},{"$f":"A59","v":"B13. If the government financed any contraceptive procurement in the most recent complete fiscal year, which entity conducted the procurement(s)? (Please select from the dropdown.)"}]
[null,"a. Specify entity",null,null,null,"Local Government Unit’s General Property and Supplies Office",null,null,null,null,null,null,{"$f":"E60","v":0},null,null,null,{"$f":"F60","v":"Local Government Unit’s General Property and Supplies Office"},{"$f":"B60","v":"a. Specify entity"}]
[null,null,"i. Is this a parastatal?",null,null,"No",null,null,null,null,null,null,null,null,null,null,{"$f":"F61","v":"No"},{"$f":"C61","v":"i. Is this a parastatal?"}]
["B14. Please note any additional comments about finance and procurement.\n",null,null,"The line item for the procurement of contraceptives is at the local government unit (LGU) level. LGUs fund and procure their contraceptive requirements. Prices of contraceptives, even for the same contraceptive method and brand, are not uniform across LGUs. Currently, there is no systematic data that provides a report on LGU procurements.  \n\nPhilHealth enrollment is another mechanism for LGU financing of contraceptives. When an LGU enrolls its constituents (indigent constituents) with PhilHealth, it is indirectly financing their contraceptive requirements since a) the enrolled constituent can use the PhilHealth benefit packages that cover the costs of some contraceptive methods; and/or (b) the LGU can use part of the capitation fund received from PhilHealth (for enrollments made) to procure contraceptives.     \n\nUSAID/Philippines, through the Health Policy Development Project, assisted the DOH to conduct a rapid assessment survey in 2007 on LGU procurements covering all provinces and cities (N: 122). The results of the survey showed that 55% of the LGUs (N: 67) procured contraceptives at or above the level of donated contraceptives they used to receive before the phase-out of USAID's donation. The remaining 45% (N: 55) did not procure.  \n\nIn 2004, the DOH issued the guidelines on the management of the donated commodities under the Contraceptive Self-Reliance Strategy which includes the guidelines and schedule for phasing of contraceptive donations at the national and local level. The LGUs were divided into three batches - the first being the richest LGUs and the last being the poorest LGUs. While the last shipment of USAID-donated contraceptives (excluding IUDs) occurred in September 2007, the last DOH shipment to the third batch of LGUs to be phased out was in the October-December 2008 quarter.",null,null,null,null,null,null,{"$f":"A62","v":"B14. Please note any additional comments about finance and procurement.\n"},null,null,null,{"$f":"D62","v":"The line item for the procurement of contraceptives is at the local government unit (LGU) level. LGUs fund and procure their contraceptive requirements. Prices of contraceptives, even for the same contraceptive method and brand, are not uniform across LGUs. Currently, there is no systematic data that provides a report on LGU procurements.  \n\nPhilHealth enrollment is another mechanism for LGU financing of contraceptives. When an LGU enrolls its constituents (indigent constituents) with PhilHealth, it is indirectly financing their contraceptive requirements since a) the enrolled constituent can use the PhilHealth benefit packages that cover the costs of some contraceptive methods; and/or (b) the LGU can use part of the capitation fund received from PhilHealth (for enrollments made) to procure contraceptives.     \n\nUSAID/Philippines, through the Health Policy Development Project, assisted the DOH to conduct a rapid assessment survey in 2007 on LGU procurements covering all provinces and cities (N: 122). The results of the survey showed that 55% of the LGUs (N: 67) procured contraceptives at or above the level of donated contraceptives they used to receive before the phase-out of USAID's donation. The remaining 45% (N: 55) did not procure.  \n\nIn 2004, the DOH issued the guidelines on the management of the donated commodities under the Contraceptive Self-Reliance Strategy which includes the guidelines and schedule for phasing of contraceptive donations at the national and local level. The LGUs were divided into three batches - the first being the richest LGUs and the last being the poorest LGUs. While the last shipment of USAID-donated contraceptives (excluding IUDs) occurred in September 2007, the last DOH shipment to the third batch of LGUs to be phased out was in the October-December 2008 quarter."}]
["C. Commodities"]
["C1. Are the following contraceptive methods offered through the commercial sector, public sector, NGOs, or social marketing? (Please indicate which methods are intended to be offered. This question is not asking whether the method is in stock.) \n(Please select from the dropdown list.)",null,null,null,null,null,null,null,null,null,null,null,null,null,null,null,null,null,null,null,null,null,null,{"$f":"A64","v":"C1. Are the following contraceptive methods offered through the commercial sector, public sector, NGOs, or social marketing? (Please indicate which methods are intended to be offered. This question is not asking whether the method is in stock.) \n(Please select from the dropdown list.)"}]
["Contraceptive Method",null,null,"Commercial Sector",null,"Public Sector","NGO","Social Marketing",null,null,{"$f":"A65","v":"Contraceptive Method"}]
[null,"a. Combined oral contraceptives (estrogen + progestin - for  example, LoFemenol, Microgynon)",null,"Yes",null,"Yes","Yes","Yes",null,null,{"$f":"B66","v":"a. Combined oral contraceptives (estrogen + progestin - for  example, LoFemenol, Microgynon)"}]
[null,"b. Progestin-only pills (for example, Ovrette, Microlut)",null,"Yes",null,"Yes","Yes","Yes",null,null,{"$f":"B67","v":"b. Progestin-only pills (for example, Ovrette, Microlut)"}]
[null,"c. Hormonal injections (for example, DepoProvera, Noristerat)",null,"Yes",null,"Yes","Yes","Yes",null,null,"c. Hormonal injections (for example, DepoProvera, Noristerat)"]
[null,"d. Hormonal implants (for example, Jadelle, Implanon)",null,"No",null,"No","No","No",null,null,"d. Hormonal implants (for example, Jadelle, Implanon)"]
[null,"e. Intrauterine devices (IUDs) (for example, Optima Copper T)",null,"Yes",null,"Yes","Yes","No",null,null,"e. Intrauterine devices (IUDs) (for example, Optima Copper T)"]
[null,"f. Male condoms",null,"Yes",null,"Yes","Yes","Yes",null,null,"f. Male condoms"]
[null,"g. Female condoms",null,"No",null,"No","No","No",null,null,"g. Female condoms"]
[null,"h. Emergency contraceptive pills (for example, Postinor)",null,"No",null,"No","No","No",null,null,"h. Emergency contraceptive pills (for example, Postinor)"]
[null,"i. Long-acting permanent method for males (vasectomy)",null,"Yes",null,"Yes","Yes","No",null,null,"i. Long-acting permanent method for males (vasectomy)"]
[null,"j. Long-acting permanent method for females (tubal ligation)",null,"Yes",null,"Yes","Yes","No",null,null,"j. Long-acting permanent method for females (tubal ligation)"]
[null,"k. CycleBeads",null,"Yes",null,"Yes","Yes","No",null,null,"k. CycleBeads"]
[null,"l. Other contraceptive methods - specify \n(Please provide the name of the other contraceptive(s) offered, by sector.)",null,"Patch, spermicide",null,"Modern natural family planning","Modern natural family planning","No",null,null,"l. Other contraceptive methods - specify \n(Please provide the name of the other contraceptive(s) offered, by sector.)"]
["C2. Please note any comments about the commodities offered.",null,null,null,null,null,null,null,null,null,{"$f":"A78","v":"C2. Please note any comments about the commodities offered."},null,null,null,{"$f":"D78","v":0}]
["D. Policies (Commitment)"]
["D1. Is there a contraceptive security or reproductive health commodity security strategy or is contraceptive security explicitly included in a country strategy? (Please select from the dropdown list.)",null,null,null,null,null,null,"Yes",{"$f":"A80","v":"D1. Is there a contraceptive security or reproductive health commodity security strategy or is contraceptive security explicitly included in a country strategy? (Please select from the dropdown list.)"}]
["IF NO, SKIP TO QUESTION D2."]
[null,"Strategy name",null,"Years Covered (including strategy updates)",null,"Is the strategy formally approved by the Ministry?","Is the contraceptive security strategy being implemented?",null,null,{"$f":"G82","v":"Is the contraceptive security strategy being implemented?"},{"$f":"B82","v":"Strategy name"},null,{"$f":"E82","v":0},null,null,null,null,null,{"$f":"D82","v":"Years Covered (including strategy updates)"}]
[null,"a","National Family Planning Policy and others \n(National Family Planning Policy (DOH Administrative Order No. 50-A s. 2001,  dated September 17, 2001),\nGuidelines on the Management of Donated Commodities under the Contraceptive Self-Reliance Strategy (DOH Administrative Order No. 158 s. 2004, dated July 9, 2004),\nGuidelines on Public-Private Collaboration in Delivery of Health Services Including Family Planning for Women of Reproductive Age (DOH Administrative Order No. 2006-0008, dated May 20, 2006),\nImplementing Health Reforms for Rapid Reduction of Maternal and Neonatal Mortality (Administrative Order No. 2008-0029, dated September 9, 2008)","2004 to present",null,"Yes","Yes",null,null,{"$f":"G83","v":"Yes"},{"$f":"B83","v":"a"},null,{"$f":"E83","v":0},null,null,null,null,null,{"$f":"D83","v":"2004 to present"}]
["D2. Are any family planning commodities subject to duties, import taxes, or other fees?",null,null,null,null,"Yes",null,null,null,null,null,null,null,null,null,null,{"$f":"F84","v":"Yes"},{"$f":"A84","v":"D2. Are any family planning commodities subject to duties, import taxes, or other fees?"}]
[null,"a. If yes, for which sectors (public, NGO, social marketing, commercial)?",null,null,"All sectors - however, if an NGO has obtained a tax exemption, the payment of taxes and duties may be waived. The Department of Health (DOH) pays for taxes & duties for donations and social marketing. (For more information see D3a. response.)",null,null,null,null,null,null,null,{"$f":"E85","v":"All sectors - however, if an NGO has obtained a tax exemption, the payment of taxes and duties may be waived. The Department of Health (DOH) pays for taxes & duties for donations and social marketing. (For more information see D3a. response.)"},{"$f":"E85","v":"All sectors - however, if an NGO has obtained a tax exemption, the payment of taxes and duties may be waived. The Department of Health (DOH) pays for taxes & duties for donations and social marketing. (For more information see D3a. response.)"},null,null,null,{"$f":"B85","v":"a. If yes, for which sectors (public, NGO, social marketing, commercial)?"}]
[null,"b. If yes, how much are the duties, taxes, or fees?",null,null,"The customs duty on condoms and hormonal contraceptives is 3% of the total value. The customs duty on Copper T IUDs is 15% of the total value. All contraceptives are subject to a 12% value added tax (VAT).  ",null,null,null,null,null,null,null,null,{"$f":"E86","v":"The customs duty on condoms and hormonal contraceptives is 3% of the total value. The customs duty on Copper T IUDs is 15% of the total value. All contraceptives are subject to a 12% value added tax (VAT).  "},null,null,null,{"$f":"B86","v":"b. If yes, how much are the duties, taxes, or fees?"}]
["D3. Are there policies that hinder the ability of the private sector (commercial sector, NGOs, or social marketing) to provide contraceptive methods (for example: price controls, distribution limitations, taxes/duties, advertising bans, etc.)?",null,null,null,null,null,null,"Yes",{"$f":"A87","v":"D3. Are there policies that hinder the ability of the private sector (commercial sector, NGOs, or social marketing) to provide contraceptive methods (for example: price controls, distribution limitations, taxes/duties, advertising bans, etc.)?"}]
[null,"a. If yes, describe the policies.",null,"Taxes/duties - donated commodities, socially marketed commodities, and commercially marketed contraceptives are subject to taxes and duties. Taxes/duties on donated contraceptives consigned to the Department of Health (such as those donated by USAID) are shouldered by the Government of the Philippines through automatic appropriations of the Department of Budget Management. Taxes/duties of socially marketed contraceptives consigned to the Department of Health are paid by the Department of Health. Taxes/duties on socially marketed contraceptives that are not consigned to the Department of Health are paid by the NGOs marketing those contraceptives. Taxes/duties on commercially marketed contraceptives are paid by the manufacturer, importer, or trader.\n\nPharmacy law - this law bans brand advertising of ethical/regulated drugs. Hormonal contraceptives (oral pills, injectables and hormonal IUDs) are classified as ethical/regulated drugs, therefore, brand advertising is banned.  Copper T IUDs are classified as medical device and registered as unregulated product and not subject to the same restrictions. There is no prohibition on brand advertising of Copper T IUDs.  The pharmacy law also prohibits dispensing of ethical/regulated drugs without prescription. ",null,null,null,null,null,null,{"$f":"B88","v":"a. If yes, describe the policies."},null,null,null,{"$f":"D88","v":"Taxes/duties - donated commodities, socially marketed commodities, and commercially marketed contraceptives are subject to taxes and duties. Taxes/duties on donated contraceptives consigned to the Department of Health (such as those donated by USAID) are shouldered by the Government of the Philippines through automatic appropriations of the Department of Budget Management. Taxes/duties of socially marketed contraceptives consigned to the Department of Health are paid by the Department of Health. Taxes/duties on socially marketed contraceptives that are not consigned to the Department of Health are paid by the NGOs marketing those contraceptives. Taxes/duties on commercially marketed contraceptives are paid by the manufacturer, importer, or trader.\n\nPharmacy law - this law bans brand advertising of ethical/regulated drugs. Hormonal contraceptives (oral pills, injectables and hormonal IUDs) are classified as ethical/regulated drugs, therefore, brand advertising is banned.  Copper T IUDs are classified as medical device and registered as unregulated product and not subject to the same restrictions. There is no prohibition on brand advertising of Copper T IUDs.  The pharmacy law also prohibits dispensing of ethical/regulated drugs without prescription. "}]
["D4. Are there policies that enable the private sector (commercial sector, NGOs, or social marketing) to provide contraceptive methods?",null,null,null,null,null,null,"Don't know",{"$f":"A89","v":"D4. Are there policies that enable the private sector (commercial sector, NGOs, or social marketing) to provide contraceptive methods?"}]
[null,"a. If yes, describe the policies.",null,"Don't know",null,null,null,null,null,null,{"$f":"B90","v":"a. If yes, describe the policies."},null,null,null,{"$f":"D90","v":"Don't know"}]
["D5. Do policies or regulations exist that restrict who can sell or dispense particular contraceptive methods?\n",null,null,null,null,null,null,"Yes",{"$f":"A91","v":"D5. Do policies or regulations exist that restrict who can sell or dispense particular contraceptive methods?\n"}]
[null,"Please note any restrictions in the following table."]
[null,"Contraceptive Method(s)",null,null,"Describe any public sector restriction on who is allowed to sell or dispense the method",null,"Describe any private sector restriction on who is allowed to sell or dispense the method",null,null,{"$f":"G93","v":"Describe any private sector restriction on who is allowed to sell or dispense the method"},null,null,null,null,null,{"$f":"B93","v":"Contraceptive Method(s)"},null,null,null,null,{"$f":"E93","v":"Describe any public sector restriction on who is allowed to sell or dispense the method"}]
[null,"a","Oral contraceptive pills & injectables",null,"Only trained health workers are allowed to dispense. Dispensing without a prescription is not allowed. However, since public facilities are headed by doctors who supervise all health workers in the facilities, prescriptions are easy to obtain. However, in practice, pills can be obtained without prescription from pharmacies/drugstores.",null,"Only trained health service providers are allowed to dispense. Service providers other than physicians, such as midwives, cannot dispense without a prescription. However, most midwives, and all PhilHealth accredited midwives have back-up physicians who write the prescriptions.   ",null,null,{"$f":"G94","v":"Only trained health service providers are allowed to dispense. Service providers other than physicians, such as midwives, cannot dispense without a prescription. However, most midwives, and all PhilHealth accredited midwives have back-up physicians who write the prescriptions.   "},null,null,{"$f":"E94","v":"Only trained health workers are allowed to dispense. Dispensing without a prescription is not allowed. However, since public facilities are headed by doctors who supervise all health workers in the facilities, prescriptions are easy to obtain. However, in practice, pills can be obtained without prescription from pharmacies/drugstores."},null,null,{"$f":"C94","v":"Oral contraceptive pills & injectables"},null,null,null,null,{"$f":"E94","v":"Only trained health workers are allowed to dispense. Dispensing without a prescription is not allowed. However, since public facilities are headed by doctors who supervise all health workers in the facilities, prescriptions are easy to obtain. However, in practice, pills can be obtained without prescription from pharmacies/drugstores."}]
[null,"b","IUDs",null,"Only trained health workers are allowed to dispense. Dispensing of a hormonal IUD without a prescription is not allowed. However, since public facilities are headed by doctors who supervise all health workers in the facilities, prescriptions are easy to obtain. Barangay Health Station (the lowest level of public health facility) health service providers do not dispense IUDs.  ",null,"Only trained health service providers are allowed to dispense. Service providers other than physicians, such as midwives, cannot dispense without a prescription. However, most midwives, and all PhilHealth accredited midwives have back-up physicians who write the prescriptions.",null,null,{"$f":"G95","v":"Only trained health service providers are allowed to dispense. Service providers other than physicians, such as midwives, cannot dispense without a prescription. However, most midwives, and all PhilHealth accredited midwives have back-up physicians who write the prescriptions."},null,null,{"$f":"E95","v":"Only trained health workers are allowed to dispense. Dispensing of a hormonal IUD without a prescription is not allowed. However, since public facilities are headed by doctors who supervise all health workers in the facilities, prescriptions are easy to obtain. Barangay Health Station (the lowest level of public health facility) health service providers do not dispense IUDs.  "},null,null,{"$f":"C95","v":"IUDs"},null,null,null,null,{"$f":"E95","v":"Only trained health workers are allowed to dispense. Dispensing of a hormonal IUD without a prescription is not allowed. However, since public facilities are headed by doctors who supervise all health workers in the facilities, prescriptions are easy to obtain. Barangay Health Station (the lowest level of public health facility) health service providers do not dispense IUDs.  "}]
[null,"c",null,null,null,null,null,null,null,{"$f":"G96","v":0},null,null,{"$f":"E96","v":0},null,null,{"$f":"C96","v":0},null,null,null,null,{"$f":"E96","v":0}]
[null,null,null,null,null,null,null,null,null,null,{"$f":"C97","v":0}]
["D6. Does the country have laws, regulations, or policies that make it difficult for the following sub-populations to access effective family planning services?",null,null,"Y/N","If yes, describe laws/regulations/policies affecting access ",null,null,"Are the rules/policies implemented?",null,null,{"$f":"A98","v":"D6. Does the country have laws, regulations, or policies that make it difficult for the following sub-populations to access effective family planning services?"},null,null,null,null,null,null,null,null,null,null,{"$f":"E98","v":"If yes, describe laws/regulations/policies affecting access "}]
[null,"a. Unmarried people",null,"No",null,null,null,null,null,null,{"$f":"B99","v":"a. Unmarried people"},null,{"$f":"E99","v":0},null,null,null,null,null,null,null,null,{"$f":"E99","v":0}]
[null,"b. Young people",null,"No",null,null,null,null,null,null,{"$f":"B100","v":"b. Young people"},null,{"$f":"E100","v":0},null,null,null,null,null,null,null,null,{"$f":"E100","v":0}]
[null,"c. Other",null,"No",null,null,null,null,null,null,{"$f":"B101","v":"c. Other"},null,{"$f":"E101","v":0},null,null,null,null,null,null,null,null,{"$f":"E101","v":0}]
[null,null,null,null,null,null,null,null,null,null,{"$f":"C102","v":0}]
["D7. Are there charges* to the client in the public sector for family planning:\n*(This question refers to charges by policy, not under-the-table charges.)\n",null,null,null,null,null,null,null,null,null,null,null,null,null,null,null,null,null,null,null,null,null,null,{"$f":"A103","v":"D7. Are there charges* to the client in the public sector for family planning:\n*(This question refers to charges by policy, not under-the-table charges.)\n"}]
[null,"a. Services?",null,null,null,null,"No",null,null,{"$f":"G104","v":"No"},null,null,null,null,null,null,null,null,null,null,null,null,null,null,{"$f":"B104","v":"a. Services?"}]
[null,"b. Commodities?",null,null,null,null,"No",null,null,{"$f":"G105","v":"No"},null,null,null,null,null,null,null,null,null,null,null,null,null,null,{"$f":"B105","v":"b. Commodities?"}]
[null,"c. If yes, are there exemptions for people who cannot afford to pay?",null,null,null,null,"N/A",null,null,{"$f":"G106","v":"N/A"},null,null,null,null,null,null,null,null,null,null,null,null,null,null,{"$f":"B106","v":"c. If yes, are there exemptions for people who cannot afford to pay?"}]
[null,null,"i. If yes, describe the exemptions.","Because of devolution, LGUs craft their own policies. Policies are not uniform across LGUs. In general, services in public sector facilities are provided for free but there are some LGUs that have fee for service policies in some of their facilities. In general, commodities in public sector facilities are provided for free but there are some who charge at full or subsidized prices. Only a few LGUs have policies on client segmentation.\n\nWhile this is the case, other funding mechanisms for paying for contraceptives are available to public sector clients. If the client is a PhilHealth member, the client can avail of three PhilHealth benefit packages: (1) Maternity Care Package for normal deliveries that includes the first cycle of oral contraceptives and the first dose of injectable postpartum (2) IUD Package and (3) Voluntary Surgical Sterilization Package for bilateral tubal ligation and vasectomy. A significant number of LGUs have enrolled their poor constituents with PhilHealth.   ",null,null,null,null,null,null,{"$f":"C107","v":"i. If yes, describe the exemptions."},null,null,null,{"$f":"D107","v":"Because of devolution, LGUs craft their own policies. Policies are not uniform across LGUs. In general, services in public sector facilities are provided for free but there are some LGUs that have fee for service policies in some of their facilities. In general, commodities in public sector facilities are provided for free but there are some who charge at full or subsidized prices. Only a few LGUs have policies on client segmentation.\n\nWhile this is the case, other funding mechanisms for paying for contraceptives are available to public sector clients. If the client is a PhilHealth member, the client can avail of three PhilHealth benefit packages: (1) Maternity Care Package for normal deliveries that includes the first cycle of oral contraceptives and the first dose of injectable postpartum (2) IUD Package and (3) Voluntary Surgical Sterilization Package for bilateral tubal ligation and vasectomy. A significant number of LGUs have enrolled their poor constituents with PhilHealth.   "}]
["D8. Are the following contraceptives included in the country's National Essential Medicine List (NEML) or other equivalent priority list?",null,null,null,null,null,null,null,null,null,null,null,null,null,null,null,null,null,null,null,null,null,null,{"$f":"A108","v":"D8. Are the following contraceptives included in the country's National Essential Medicine List (NEML) or other equivalent priority list?"}]
[null,"a. Combined oral contraceptives",null,null,null,null,"Yes",null,null,{"$f":"G109","v":"Yes"},null,null,null,null,null,null,null,null,null,null,null,null,null,null,{"$f":"B109","v":"a. Combined oral contraceptives"}]
[null,"b. Progestin-only pills",null,null,null,null,"Yes",null,null,"Yes",null,null,null,null,null,null,null,null,null,null,null,null,null,null,"b. Progestin-only pills"]
[null,"c. Hormonal injections",null,null,null,null,"Yes",null,null,"Yes",null,null,null,null,null,null,null,null,null,null,null,null,null,null,"c. Hormonal injections"]
[null,"d. Hormonal implants",null,null,null,null,"No",null,null,"No",null,null,null,null,null,null,null,null,null,null,null,null,null,null,"d. Hormonal implants"]
[null,"e. Intrauterine devices (IUDs)",null,null,null,null,"Yes",null,null,"Yes",null,null,null,null,null,null,null,null,null,null,null,null,null,null,"e. Intrauterine devices (IUDs)"]
[null,"f. Male condoms",null,null,null,null,"No",null,null,"No",null,null,null,null,null,null,null,null,null,null,null,null,null,null,"f. Male condoms"]
[null,"g. Female condoms",null,null,null,null,"No",null,null,"No",null,null,null,null,null,null,null,null,null,null,null,null,null,null,"g. Female condoms"]
[null,"h. Emergency contraceptive pills",null,null,null,null,"No",null,null,"No",null,null,null,null,null,null,null,null,null,null,null,null,null,null,"h. Emergency contraceptive pills"]
[null,"i. CycleBeads",null,null,null,null,"No",null,null,{"$f":"G117","v":"No"},null,null,null,null,null,null,null,null,null,null,null,null,null,null,{"$f":"B117","v":"i. CycleBeads"}]
[null,"j. Any other contraceptive(s)?",null,null,null,null,"No",null,null,"No",null,null,null,null,null,null,null,null,null,null,null,null,null,null,"j. Any other contraceptive(s)?"]
[null,null,"i. Name of other contraceptive(s) on the list(s)",null,null,"N/A",null,null,null,0,null,null,null,null,null,null,null,{"$f":"B119","v":0}]
["D9. What year(s) is the list(s) from?",null,null,null,null,2008,null,null,null,0,null,null,null,null,null,null,null,{"$f":"B120","v":0}]
["D10. Name of the list(s)\n\n\n",null,null,null,null,null,null,null,null,null,{"$f":"A121","v":"D10. Name of the list(s)\n\n\n"},null,null,null,{"$f":"D121","v":0}]
["D11. Notes about the list(s)\n\n\n",null,null,"IUDs are included on the DOH's medical device list.",null,null,null,null,null,null,{"$f":"A122","v":"D11. Notes about the list(s)\n\n\n"},null,null,null,{"$f":"D122","v":"IUDs are included on the DOH's medical device list."}]
["D12.  Information on country's Poverty Reduction Strategy Paper (PRSP)\n",null,null,null,null,null,null,null,null,null,null,null,null,null,null,null,null,null,null,null,null,null,null,{"$f":"A123","v":"D12.  Information on country's Poverty Reduction Strategy Paper (PRSP)\n"}]
[null,"a. What year is the Poverty Reduction Strategy Paper from? (most recent actual PRSP on IMF's site [not progress or summary report])",null,null,null,"N/A",null,null,null,{"$f":"G124","v":0},null,null,null,null,null,null,null,{"$f":"B124","v":"a. What year is the Poverty Reduction Strategy Paper from? (most recent actual PRSP on IMF's site [not progress or summary report])"}]
[null,"b. Is family planning or reproductive health a priority in the PRSP?",null,null,null,null,"N/A",null,null,{"$f":"G125","v":"N/A"},null,null,null,null,null,null,null,null,null,null,null,null,null,null,{"$f":"B125","v":"b. Is family planning or reproductive health a priority in the PRSP?"}]
[null,"c. Is contraceptive security included in the PRSP?",null,null,null,null,"N/A",null,null,{"$f":"G126","v":"N/A"},null,null,null,null,null,null,null,null,null,null,null,null,null,null,{"$f":"B126","v":"c. Is contraceptive security included in the PRSP?"}]
[null,"d. Is contraceptive prevalence rate (CPR) included as an indicator in the PRSP?",null,null,null,null,"N/A",null,null,{"$f":"G127","v":"N/A"},null,null,null,null,null,null,null,null,null,null,null,null,null,null,{"$f":"B127","v":"d. Is contraceptive prevalence rate (CPR) included as an indicator in the PRSP?"}]
[null,"e. Are contraceptive supply indicators included in the PRSP?",null,null,null,null,"N/A",null,null,{"$f":"G128","v":"N/A"},null,null,null,null,null,null,null,null,null,null,null,null,null,null,{"$f":"B128","v":"e. Are contraceptive supply indicators included in the PRSP?"}]
["\n\n\n","f. Notes about the Poverty Reduction Strategy Paper",null,"Document not available on IMF website",null,null,null,null,null,null,{"$f":"B129","v":"f. Notes about the Poverty Reduction Strategy Paper"},null,null,null,{"$f":"D129","v":"Document not available on IMF website"}]
["E. Supply Chain (Capacity)"]
["E1. Have stockouts occurred for any contraceptive at the central* level in the last 12 months?  \n*(The central level refers to the central level warehouse for the public sector.)",null,null,null,null,null,"N/A",null,null,{"$f":"G131","v":"N/A"},null,null,null,null,null,null,null,null,null,null,null,null,null,null,{"$f":"A131","v":"E1. Have stockouts occurred for any contraceptive at the central* level in the last 12 months?  \n*(The central level refers to the central level warehouse for the public sector.)"}]
["E2. In the last 12 months, has there ever been a stockout at the central level of any of the contraceptives offered in public sector facilities? (If a method is not intended to be offered in public sector facilities, please indicate that stockouts are not applicable (choose \"N/A\" from the dropdown list).)",null,null,null,null,null,null,null,null,null,null,null,null,null,null,null,null,null,null,null,null,null,null,{"$f":"A132","v":"E2. In the last 12 months, has there ever been a stockout at the central level of any of the contraceptives offered in public sector facilities? (If a method is not intended to be offered in public sector facilities, please indicate that stockouts are not applicable (choose \"N/A\" from the dropdown list).)"}]
[null,"a. Combined oral contraceptives",null,null,null,null,"N/A",null,null,{"$f":"G133","v":"N/A"},null,null,null,null,null,null,null,null,null,null,null,null,null,null,{"$f":"B133","v":"a. Combined oral contraceptives"}]
[null,"b. Progestin-only pills",null,null,null,null,"N/A",null,null,"N/A",null,null,null,null,null,null,null,null,null,null,null,null,null,null,"b. Progestin-only pills"]
[null,"c. Hormonal injections",null,null,null,null,"N/A",null,null,"N/A",null,null,null,null,null,null,null,null,null,null,null,null,null,null,"c. Hormonal injections"]
[null,"d. Hormonal implants",null,null,null,null,"N/A",null,null,"N/A",null,null,null,null,null,null,null,null,null,null,null,null,null,null,"d. Hormonal implants"]
[null,"e. Intrauterine devices (IUDs)",null,null,null,null,"N/A",null,null,"N/A",null,null,null,null,null,null,null,null,null,null,null,null,null,null,"e. Intrauterine devices (IUDs)"]
[null,"f. Male condoms",null,null,null,null,"N/A",null,null,"N/A",null,null,null,null,null,null,null,null,null,null,null,null,null,null,"f. Male condoms"]
[null,"g. Female condoms",null,null,null,null,"N/A",null,null,"N/A",null,null,null,null,null,null,null,null,null,null,null,null,null,null,"g. Female condoms"]
[null,"h. Emergency contraceptive pills",null,null,null,null,"N/A",null,null,"N/A",null,null,null,null,null,null,null,null,null,null,null,null,null,null,"h. Emergency contraceptive pills"]
[null,"i. CycleBeads",null,null,null,null,"N/A",null,null,"N/A",null,null,null,null,null,null,null,null,null,null,null,null,null,null,"i. CycleBeads"]
[null,"j. Time period\n(mm/yy - mm/yy) (for example, 1/10-12/10) ",null,null,null,"N/A",null,null,null,null,null,null,null,null,null,null,{"$f":"F142","v":"N/A"},{"$f":"B142","v":"j. Time period\n(mm/yy - mm/yy) (for example, 1/10-12/10) "}]
[null,"k. Data source\n(for example: Procurement Planning and Monitoring Report, Logistics Management Information System, periodic physical inventory, warehouse reports)",null,null,null,"N/A",null,null,null,null,null,null,null,null,null,null,{"$f":"F143","v":"N/A"},{"$f":"B143","v":"k. Data source\n(for example: Procurement Planning and Monitoring Report, Logistics Management Information System, periodic physical inventory, warehouse reports)"}]
["E3. Are stockouts a large problem in your country at the following levels? (i.e., Are they common or do they tend to last for a long time?)\n\n"]
[null,"a. service delivery point level (i.e., public sector health facilities)",null,null,null,null,"No",null,null,{"$f":"G145","v":"No"},null,null,null,null,null,null,null,null,null,null,null,null,null,null,{"$f":"B145","v":"a. service delivery point level (i.e., public sector health facilities)"}]
[null,"b. central level (i.e., central level warehouse for the public sector)",null,null,null,null,"N/A",null,null,{"$f":"G146","v":"N/A"},null,null,null,null,null,null,null,null,null,null,null,null,null,null,{"$f":"B146","v":"b. central level (i.e., central level warehouse for the public sector)"}]
["F. Please note any overall comments about challenges and/or successes with contraceptive security in your country.\n\n",null,null,"1) Contraceptive security vs. contraceptive self-reliance - The Philippines addresses contraceptive security in the context of eliminating unmet need for family planning given the phase out of USAID contraceptive donations. This requires broadening the definition to include the support systems for the implementation of the family planning program and addressing issues of sustainability. Hence, the DOH has embarked on Contraceptive Self-Reliance, rather than Contraceptive Security. This strategy includes, in addition to government financing and procurement of commodity-based contraceptive methods (pills, injectables, IUDs, condoms, and others), promotion and financing of other methods (bilateral tubal ligation, vasectomy, lactational amenorrhea, natural family planning, and others), expanding distribution coverage, and mobilizing private sector resources in the provision of family planning services and commodities. This approach to contraceptive security may have contributed to maintaining a steady CPR despite USAID's phase out of contraceptive donations. And since the government's objective is to ensure the country's self-sufficiency in the provision of family planning services and commodities, the prospect for sustainability is high even without external contraceptive donations. 2) Protecting the poor - The poor should be protected in the process of achieving contraceptive self-reliance. The issue of targeting financing and provision for the poor also involves many operational issues such as determining who are poor and entitled to free services, how the non-poor should be served, and how these issues will be handled by local health systems that are supposed to be for everyone in the community. 3) Even the poor go to the private sector for contraceptives. The private sector is becoming more interested in participating. DKT provides a large quantity of contraceptives. Before there were few choices in the country - there were free contraceptives in the public sector and expensive contraceptives in the private sector but little in between. Now with the USAID phase out and a pharmaceutical project to help the pharmaceutical industry get in the market there are more subsized, affordable choices. 4) The FP issue is more prominent now. There's an RH bill saying that the government is to be responsible for RH (including FP); this bill hasn't been passed yet, but discussion has increased and the issue is prominent. There is more openness politically now to discuss providing FP choices.",null,null,null,null,null,null,{"$f":"A147","v":"F. Please note any overall comments about challenges and/or successes with contraceptive security in your country.\n\n"},null,null,null,{"$f":"D147","v":"1) Contraceptive security vs. contraceptive self-reliance - The Philippines addresses contraceptive security in the context of eliminating unmet need for family planning given the phase out of USAID contraceptive donations. This requires broadening the definition to include the support systems for the implementation of the family planning program and addressing issues of sustainability. Hence, the DOH has embarked on Contraceptive Self-Reliance, rather than Contraceptive Security. This strategy includes, in addition to government financing and procurement of commodity-based contraceptive methods (pills, injectables, IUDs, condoms, and others), promotion and financing of other methods (bilateral tubal ligation, vasectomy, lactational amenorrhea, natural family planning, and others), expanding distribution coverage, and mobilizing private sector resources in the provision of family planning services and commodities. This approach to contraceptive security may have contributed to maintaining a steady CPR despite USAID's phase out of contraceptive donations. And since the government's objective is to ensure the country's self-sufficiency in the provision of family planning services and commodities, the prospect for sustainability is high even without external contraceptive donations. 2) Protecting the poor - The poor should be protected in the process of achieving contraceptive self-reliance. The issue of targeting financing and provision for the poor also involves many operational issues such as determining who are poor and entitled to free services, how the non-poor should be served, and how these issues will be handled by local health systems that are supposed to be for everyone in the community. 3) Even the poor go to the private sector for contraceptives. The private sector is becoming more interested in participating. DKT provides a large quantity of contraceptives. Before there were few choices in the country - there were free contraceptives in the public sector and expensive contraceptives in the private sector but little in between. Now with the USAID phase out and a pharmaceutical project to help the pharmaceutical industry get in the market there are more subsized, affordable choices. 4) The FP issue is more prominent now. There's an RH bill saying that the government is to be responsible for RH (including FP); this bill hasn't been passed yet, but discussion has increased and the issue is prominent. There is more openness politically now to discuss providing FP choices."}]

{"sheet":"Russia 2011","index":35,"n_rows":147,"n_cols":25,"rows_kept":147,"cut":false,"hidden":false,"merged":[[8,0,8,7],[147,0,147,7],[148,0,150,7],[145,1,145,5],[145,6,145,7],[146,0,146,2],[146,3,146,7],[141,1,141,4],[141,5,141,7],[142,1,142,4],[142,5,142,7],[143,0,143,7],[144,1,144,5],[144,6,144,7],[138,1,138,5],[138,6,138,7],[139,1,139,5],[139,6,139,7],[140,1,140,5],[131,0,131,7],[132,1,132,5],[132,6,132,7],[133,1,133,5],[133,6,133,7],[134,1,134,5],[134,6,134,7],[140,6,140,7],[135,1,135,5],[135,6,135,7],[136,1,136,5],[136,6,136,7],[137,1,137,5],[137,6,137,7],[120,0,120,2],[120,3,120,7],[121,0,121,2],[121,3,121,7],[129,0,129,6],[130,0,130,5],[130,6,130,7],[122,0,122,7],[123,1,123,4],[123,5,123,7],[115,1,115,5],[115,6,115,7],[116,1,116,5],[116,6,116,7],[117,1,117,5],[117,6,117,7],[118,2,118,4],[118,5,118,7],[119,0,119,4],[119,5,119,7],[110,1,110,5],[110,6,110,7],[111,1,111,5],[111,6,111,7],[112,1,112,5],[112,6,112,7],[113,1,113,5],[113,6,113,7],[114,1,114,5],[114,6,114,7],[104,1,104,5],[104,6,104,7],[105,1,105,5],[105,6,105,7],[106,3,106,7],[107,0,107,7],[108,1,108,5],[108,6,108,7],[109,1,109,5],[109,6,109,7],[98,1,98,2],[98,4,98,6],[99,1,99,2],[99,4,99,6],[100,1,100,2],[100,4,100,6],[101,0,101,7],[102,0,102,7],[103,1,103,5],[103,6,103,7],[94,2,94,3],[94,4,94,5],[94,6,94,7],[95,2,95,3],[95,4,95,5],[95,6,95,7],[96,0,96,7],[97,0,97,2],[97,4,97,6],[88,0,88,6],[89,1,89,2],[89,3,89,7],[90,0,90,6],[91,1,91,2],[92,1,92,3],[92,4,92,5],[92,6,92,7],[93,2,93,3],[93,4,93,5],[93,6,93,7],[83,0,83,4],[83,5,83,7],[84,1,84,3],[84,4,84,7],[85,1,85,3],[85,4,85,7],[86,0,86,6],[87,1,87,2],[87,3,87,7],[77,0,77,2],[77,3,77,7],[78,0,78,6],[79,0,79,6],[80,0,80,2],[81,0,82,0],[81,1,81,2],[81,3,81,4],[81,6,81,7],[82,3,82,4],[82,6,82,7],[72,1,72,2],[72,3,72,4],[73,1,73,2],[73,3,73,4],[74,1,74,2],[74,3,74,4],[75,1,75,2],[75,3,75,4],[76,1,76,2],[76,3,76,4],[67,1,67,2],[67,3,67,4],[68,1,68,2],[68,3,68,4],[69,1,69,2],[69,3,69,4],[70,1,70,2],[70,3,70,4],[71,1,71,2],[71,3,71,4],[61,0,61,2],[61,3,61,7],[62,0,62,6],[63,0,63,7],[64,0,64,2],[64,3,64,4],[65,1,65,2],[65,3,65,4],[66,1,66,2],[66,3,66,4],[55,0,55,4],[55,6,55,7],[56,0,56,4],[56,6,56,7],[58,0,58,4],[58,5,58,7],[59,1,59,4],[59,5,59,7],[60,2,60,4],[60,5,60,7],[41,1,41,2],[42,3,42,7],[43,1,43,2],[51,1,51,2],[53,0,53,7],[54,0,54,4],[54,6,54,7],[45,0,45,7],[46,1,46,2],[47,1,47,2],[48,3,48,7],[49,1,49,2],[50,1,50,2],[32,0,32,7],[33,1,33,3],[34,1,34,3],[35,0,35,7],[36,0,36,6],[37,0,37,7],[38,1,38,2],[39,1,39,2],[40,3,40,7],[26,0,26,6],[27,0,27,2],[27,3,27,4],[28,0,28,5],[28,6,28,7],[29,0,29,3],[29,6,29,7],[30,0,30,6],[31,0,31,6],[20,1,20,2],[20,5,20,7],[21,1,21,2],[21,5,21,7],[22,1,22,2],[22,5,22,7],[23,0,23,6],[24,0,24,6],[25,0,25,2],[15,1,15,2],[15,5,15,7],[16,1,16,2],[16,5,16,7],[17,1,17,2],[17,5,17,7],[18,1,18,2],[18,5,18,7],[19,1,19,2],[19,5,19,7],[9,0,9,7],[10,0,10,6],[11,0,11,6],[12,1,12,2],[12,3,12,7],[13,0,13,2],[13,3,13,7],[14,1,14,2],[14,5,14,7],[7,0,7,2],[7,3,7,5],[7,6,7,7],[0,0,0,7],[1,0,1,2],[1,3,1,4],[2,0,2,7],[3,3,3,4],[3,5,3,7],[4,0,4,2],[5,0,5,2],[127,1,127,5],[127,6,127,7],[128,1,128,2],[128,3,128,7],[124,1,124,5],[124,6,124,7],[125,1,125,5],[125,6,125,7],[126,1,126,5],[126,6,126,7]]}
[null,null,null,null,null,null,null,null,"Columns I-Y are meant to be hidden. They exist because they allow for the dropdown list options. They also allow for merged cells to autofit properly in terms of row height. This should work if all columns remain at their correct widths.","g-h",null,"a-e merged","E-F merged","e-h","0 times",null,null,"The government (e.g., Central Medical Stores, MOH logistics unit, MOH procurement unit)",null,null,null,null,"Yes","a-h","January"]
[null,null,null,null,null,null,null,null,null,null,"A-c",null,null,null,"1-2 times","b-d merged",null,"Third-party agent (e.g., UNFPA, Crown Agents)","d-e merged","d-f merged","e-f merged","e-g merged","No",null,"February"]
[null,null,null,null,null,null,null,null,null,null,null,null,null,null,"3-5 times",null,null,"The government and a third-party agent",null,null,null,null,null,null,"March"]
[null,null,null,null,null,null,null,null,null,null,null,null,null,null,"6 or more times",null,null,"Other",null,null,null,null,"N/A",null,"April"]
["To jump to the Introduction sheet, click here.",null,null,null,null,null,null,null,null,null,null,null,null,null,null,null,null,null,null,null,null,null,"Don't know",null,"May"]
[null,null,null,null,null,null,null,null,null,null,null,null,null,null,"N/A",null,null,"N/A",null,null,null,null,null,null,"June"]
["Contraceptive Security (CS) Indicators 2011 Data ",null,null,null,null,null,null,null,null,null,null,null,null,null,"Don't know",null,null,"Don't know",null,null,null,null,null,null,"July"]
["Country: Russia",null,null,null,null,null,null,null,null,{"$f":"G8","v":0},{"$f":"A8","v":"Country: Russia"},null,null,null,null,"or c-d",null,null,null,{"$f":"D8","v":0},null,null,null,null,"August"]
["The CS Indicators are presented in the following sections:\n\n               A. leadership & cooordination               B. finance & procurement               C. commodities               D. policies               E. supply chain",null,null,null,null,null,null,null,null,{"$f":"G9","v":0},{"$f":"A9","v":"The CS Indicators are presented in the following sections:\n\n               A. leadership & cooordination               B. finance & procurement               C. commodities               D. policies               E. supply chain"},null,null,null,"d-h",null,"f-h merged",null,{"$f":"D9","v":0},null,null,null,null,{"$f":"A9","v":"The CS Indicators are presented in the following sections:\n\n               A. leadership & cooordination               B. finance & procurement               C. commodities               D. policies               E. supply chain"},"September"]
["\nNotes:\n  -  Respondents' answers are indicated in the white spaces. \n  -  N/A = not applicable. Don't know = the respondent either indicated they did not know or left the answer blank.\n  -  Some questions required respondents to choose from a dropdown list of options; in these cases the dropdown arrow will \n     appear when you click on the cell. \n  -  There may be a few inserted comments. (If you cannot already see them, click on Review tab - Comments group - Show All Comments in newer \n       versions of Excel or View - Comments in older versions of Excel.)\n  -  If the answer is cut off, you can either manually adjust the row height or autofit the row height in order to see the whole \n     response. (To autofit the row height, select the answer(s) and go to Home tab - Cells group - Format - Autofit Row Height in newer versions of Excel or \n      Format - Row - Autofit in older versions of Excel.)\n",null,null,null,null,null,null,null,"a-g",null,null,null,null,null,null,null,null,"a-e merged",null,null,null,null,null,{"$f":"A10","v":"\nNotes:\n  -  Respondents' answers are indicated in the white spaces. \n  -  N/A = not applicable. Don't know = the respondent either indicated they did not know or left the answer blank.\n  -  Some questions required respondents to choose from a dropdown list of options; in these cases the dropdown arrow will \n     appear when you click on the cell. \n  -  There may be a few inserted comments. (If you cannot already see them, click on Review tab - Comments group - Show All Comments in newer \n       versions of Excel or View - Comments in older versions of Excel.)\n  -  If the answer is cut off, you can either manually adjust the row height or autofit the row height in order to see the whole \n     response. (To autofit the row height, select the answer(s) and go to Home tab - Cells group - Format - Autofit Row Height in newer versions of Excel or \n      Format - Row - Autofit in older versions of Excel.)\n"},"October"]
["A. Leadership and Coordination",null,null,null,null,null,null,null,null,null,null,null,null,null,null,null,null,null,null,null,null,null,null,null,"November"]
["A1. Is there a national committee that works on contraceptive security? (Please select from the dropdown list.)\n(Committee should have some aspect of contraceptive security as part of its Terms of Reference, even if it is known by a different name, for example: Family Planning, Reproductive Health, Maternal Mortality, Essential Medicine Committee, etc.)  ",null,null,null,null,null,null,"No",{"$f":"A12","v":"A1. Is there a national committee that works on contraceptive security? (Please select from the dropdown list.)\n(Committee should have some aspect of contraceptive security as part of its Terms of Reference, even if it is known by a different name, for example: Family Planning, Reproductive Health, Maternal Mortality, Essential Medicine Committee, etc.)  "},null,null,null,null,null,null,null,null,null,null,null,null,null,null,null,"December"]
[null,"a. What is the name of the committee?",null,"N/A",null,null,null,null,null,null,{"$f":"B13","v":"a. What is the name of the committee?"},{"$f":"D13","v":"N/A"},null,null,{"$f":"D13","v":"N/A"}]
["A2. Are the following organizations represented on the committee?",null,null,"(Y/N \ndropdown)",null,null,null,null,null,null,{"$f":"A14","v":"A2. Are the following organizations represented on the committee?"},null,null,null,null,null,null,null,null,null,null,null,null,null,"Don't know"]
[null,"a. Social marketing",null,"N/A","If yes, specify name(s) of organizations",null,null,null,null,null,{"$f":"B15","v":"a. Social marketing"},null,null,null,null,null,{"$f":"F15","v":0}]
[null,"b. NGO (for example: service delivery, advocacy, Planned Parenthood affiliate, Marie Stopes affiliate, faith-based organizations, etc.)",null,"N/A","If yes, specify name(s) of organizations",null,null,null,null,null,"b. NGO (for example: service delivery, advocacy, Planned Parenthood affiliate, Marie Stopes affiliate, faith-based organizations, etc.)",null,null,null,null,null,0]
[null,"c. Commercial sector (for example: pharmacy associations, manufacturers, etc.)",null,"N/A","If yes, specify name(s) of organizations",null,null,null,null,null,"c. Commercial sector (for example: pharmacy associations, manufacturers, etc.)",null,null,null,null,null,0]
[null,"d. Donors",null,"N/A","If yes, specify name(s) of donors",null,null,null,null,null,"d. Donors",null,null,null,null,null,0]
[null,"e. UN agencies",null,"N/A","If yes, specify name(s) of agencies",null,null,null,null,null,"e. UN agencies",null,null,null,null,null,0]
[null,"f. Ministry of Health (for example: logistics, reproductive health, family planning, maternal and child health, HIV/AIDS, pharmacy units, etc.)",null,"N/A","If yes, specify name(s) of units",null,null,null,null,null,"f. Ministry of Health (for example: logistics, reproductive health, family planning, maternal and child health, HIV/AIDS, pharmacy units, etc.)",null,null,null,null,null,0]
[null,"g. Central Medical Store or Central Warehouse",null,"N/A","If yes, specify",null,null,null,null,null,"g. Central Medical Store or Central Warehouse",null,null,null,null,null,0]
[null,"h. Ministry of Finance or Ministry of Planning ",null,"N/A","If yes, specify",null,null,null,null,null,"h. Ministry of Finance or Ministry of Planning ",null,null,null,null,null,0]
[null,"i. Other (for example: partners)",null,"N/A","If yes, specify",null,null,null,null,null,"i. Other (for example: partners)",null,null,null,null,null,0]
["A3. How many times did the committee meet during the last year? (0, 1-2, 3-5, or 6+)  (Please select from the dropdown.)",null,null,null,null,null,null,"N/A",{"$f":"A24","v":"A3. How many times did the committee meet during the last year? (0, 1-2, 3-5, or 6+)  (Please select from the dropdown.)"}]
["A4. Does the committee have legal status?  (Please select from the dropdown.)                                  ",null,null,null,null,null,null,"N/A",{"$f":"A25","v":"A4. Does the committee have legal status?  (Please select from the dropdown.)                                  "}]
["A5. Is there a Contraceptive Security \"champion\"? (someone who consistently brings up and advocates for contraceptive supplies)",null,null,"No","If yes, specify person's organization",null,"Specify person's job title",null,null,null,{"$f":"A26","v":"A5. Is there a Contraceptive Security \"champion\"? (someone who consistently brings up and advocates for contraceptive supplies)"}]
["B. Finance and Procurement (Capital)"]
["B1. What is the timeline of the country's fiscal year?",null,null,"Beginning month",null,"Don't know","Ending month","Don't know",null,null,{"$f":"B28","v":0}]
["B2. What was the estimated dollar value of contraceptives needed to be procured for the public sector for the most recent complete fiscal year? (in USD currency)\n(for example, to cover the needs for the '09-'10 fiscal year)",null,null,null,null,null,"N/A",null,null,{"$f":"G29","v":"N/A"},null,null,{"$f":"E29","v":0},null,null,null,null,null,null,null,null,null,null,null,{"$f":"A29","v":"B2. What was the estimated dollar value of contraceptives needed to be procured for the public sector for the most recent complete fiscal year? (in USD currency)\n(for example, to cover the needs for the '09-'10 fiscal year)"}]
["B3. When was the last forecast/quantification conducted? (mm/yy)",null,null,null,"Don't know","Who conducted it? (Specify organization.)","Don't know",null,null,{"$f":"G30","v":"Don't know"},null,null,{"$f":"E30","v":"Don't know"},null,null,null,null,null,null,null,null,null,null,null,{"$f":"A30","v":"B3. When was the last forecast/quantification conducted? (mm/yy)"}]
["B4. Is there a government budget line item for the procurement of contraceptives?  (Please select from the dropdown list.)",null,null,null,null,null,null,"No",{"$f":"A31","v":"B4. Is there a government budget line item for the procurement of contraceptives?  (Please select from the dropdown list.)"}]
["B5. Were government funds allocated for contraceptive procurement for the public sector in the most recent complete fiscal year? (This question refers to funds planned to be spent on contraceptives, whether or not they ended up being spent.) \n\n(Government funds include internally generated funds, basket funds, World Bank credits or loans, and other funds donors gave to the government for their use.) \n",null,null,null,null,null,null,"No",{"$f":"A32","v":"B5. Were government funds allocated for contraceptive procurement for the public sector in the most recent complete fiscal year? (This question refers to funds planned to be spent on contraceptives, whether or not they ended up being spent.) \n\n(Government funds include internally generated funds, basket funds, World Bank credits or loans, and other funds donors gave to the government for their use.) \n"}]
["B6. Please complete the table below regarding government allocations for contraceptive procurement.",null,null,null,null,null,null,null,null,null,null,null,null,null,null,null,null,null,null,null,null,null,null,{"$f":"A33","v":"B6. Please complete the table below regarding government allocations for contraceptive procurement."}]
[null,null,null,null,"Amount allocated \n(in USD)","Time period during which allocations were supposed to be spent \n(mm/yy-mm/yy)\n(should ideally be the most recent\ncomplete fiscal year ['09-'10])","Data source \n(for example: Ministry records)","Comments",null,null,{"$f":"A34","v":0}]
[null,"Government funds allocated for contraceptive procurement\n(funds originally designated for contraceptives, whether or not they ended up being spent on them)",null,null,0,"01/10-12/10",null,null,null,null,{"$f":"#REF!","v":{"$error":"#REF!"}}]
[]
["B7. Were government funds spent on contraceptive procurement for the public sector in the most recent complete fiscal year? \n(Government funds include internally generated funds, basket funds, World Bank credits or loans, and other funds donors gave to the government for their use.)",null,null,null,null,null,null,"Yes",{"$f":"A37","v":"B7. Were government funds spent on contraceptive procurement for the public sector in the most recent complete fiscal year? \n(Government funds include internally generated funds, basket funds, World Bank credits or loans, and other funds donors gave to the government for their use.)"}]
["B8. Please complete the table below to indicate government expenditures on contraceptive procurement, by source, in the most recent complete fiscal year. \n(This is how much was spent on contraceptive procurement (not what was allocated). How much of this spending was provided from each source?)",null,null,null,null,null,null,null,null,null,null,null,null,null,null,null,null,null,null,null,null,null,null,{"$f":"A38","v":"B8. Please complete the table below to indicate government expenditures on contraceptive procurement, by source, in the most recent complete fiscal year. \n(This is how much was spent on contraceptive procurement (not what was allocated). How much of this spending was provided from each source?)"}]
[null,"Source of government funds spent on contraceptive procurement for the public sector",null,"Was this source used?\n(Y/N)","Amount spent \n(in USD)","Time period (mm/yy-mm/yy)\n(should be the same for all sources of funds & ideally be the most recent\ncomplete fiscal year ['09-'10])","Data source \n(for example: Contraceptive Procurement Table, PipeLine, etc.)","Comments",null,null,{"$f":"A39","v":0}]
[null,"a. Internally generated funds spent on contraceptive procurement",null,"Yes","Don't know","01/10-12/10",null,null,null,null,{"$f":"B40","v":"a. Internally generated funds spent on contraceptive procurement"}]
[null,null,"i. Specify source(s) of internally generated funds spent (for example, from taxes or user fees)","Regional and municipal budgets. In some cases (but not as often) contraceptives are covered by mandatory health insurance (which is provided free of charge to all Russian citizens by state). ",null,null,null,null,null,null,{"$f":"C41","v":"i. Specify source(s) of internally generated funds spent (for example, from taxes or user fees)"},null,null,null,{"$f":"D41","v":"Regional and municipal budgets. In some cases (but not as often) contraceptives are covered by mandatory health insurance (which is provided free of charge to all Russian citizens by state). "}]
[null,"b. Total of all other government funds spent on contraceptive procurement (basket funds, World Bank credits or loans, and other funds donors gave to the government [e.g., direct budget support])",null,"No",0,"01/10-12/10",null,null,null,null,{"$f":"B42","v":"b. Total of all other government funds spent on contraceptive procurement (basket funds, World Bank credits or loans, and other funds donors gave to the government [e.g., direct budget support])"}]
[null,null,"i. Specify source(s) of other government funds spent (for example: basket funding or specific donor)","N/A",null,null,null,null,null,null,{"$f":"C43","v":"i. Specify source(s) of other government funds spent (for example: basket funding or specific donor)"},null,null,null,{"$f":"D43","v":"N/A"}]
[null,"c. TOTAL government funds spent on contraceptive procurement\nThis will auto-calculate.  (It will sum a & b above.)",null,null,"Don't know",null,null,null,null,null,{"$f":"B44","v":"c. TOTAL government funds spent on contraceptive procurement\nThis will auto-calculate.  (It will sum a & b above.)"}]
[null,null,null,null,null,null,null,null,null,null,{"$f":"A45","v":0}]
["B9. Please complete the table below to indicate donor expenditures on contraceptive procurement in the most recent complete fiscal year.\n",null,null,null,null,null,null,null,null,null,null,null,null,null,null,null,null,null,null,null,null,null,null,{"$f":"A46","v":"B9. Please complete the table below to indicate donor expenditures on contraceptive procurement in the most recent complete fiscal year.\n"}]
["\n","Source of donations and donor funds spent on contraceptive procurement for the public sector",null,"Was this a source?\n(Y/N)","Amount of money spent on these procurements \n(in USD)","Time period (mm/yy-mm/yy)\n(should be the same for all sources of funds & ideally be the most recent\ncomplete fiscal year ['09-'10])","Data source \n(for example:  Donor records, Contraceptive Procurement Table, PipeLine, RHInterchange, etc.","Comments",null,null,{"$f":"A47","v":"\n"}]
[null,"a. In-kind donations of contraceptives",null,"No",0,"01/10-12/10",null,null,null,null,{"$f":"B48","v":"a. In-kind donations of contraceptives"}]
[null,null,"i. Specify source(s) of in-kind donations ","N/A",null,null,null,null,null,null,{"$f":"C49","v":"i. Specify source(s) of in-kind donations "},null,null,null,{"$f":"D49","v":"N/A"}]
[null,"b. Global Fund donations used to procure condoms",null,"No",0,"01/10-12/10",null,null,null,null,{"$f":"B50","v":"b. Global Fund donations used to procure condoms"}]
[null,"c. Global Fund donations used to procure contraceptives besides condoms",null,"No",0,"01/10-12/10",null,null,null,null,{"$f":"B51","v":"c. Global Fund donations used to procure contraceptives besides condoms"}]
[null,"d. TOTAL value of in-kind donations and Global Fund donations spent on contraceptive procurement\nThis will auto-calculate.  (It will sum a-c above.)",null,null,{"$f":"E48+E50+E51","v":0},null,null,null,null,null,{"$f":"B52","v":"d. TOTAL value of in-kind donations and Global Fund donations spent on contraceptive procurement\nThis will auto-calculate.  (It will sum a-c above.)"}]
[null,null,null,null,null,null,null,null,null,null,{"$f":"A53","v":0}]
["The answers to B10 and B11 should calculate automatically based on the information you provided. Please review the answers to ensure they make sense to you, and if you have additional information to add, please note it in the comments boxes.\n\nIf the answers do not calculate automatically, please provide any relevant information you may have in the comments boxes.\n",null,null,null,null,null,null,null,null,null,null,null,null,null,null,null,null,null,null,null,null,null,null,{"$f":"A54","v":"The answers to B10 and B11 should calculate automatically based on the information you provided. Please review the answers to ensure they make sense to you, and if you have additional information to add, please note it in the comments boxes.\n\nIf the answers do not calculate automatically, please provide any relevant information you may have in the comments boxes.\n"}]
["B10. Government share of funds spent on contraceptive procurement for the public sector - \nOf the total amount spent on contraceptives for the public sector in the most recent complete fiscal year (including government and donor funds), what percent was covered by government funds (including internally generated funds, basket funds, World Bank credits or loans, and other funds given to the government)? \n\nThis will auto-calculate. (It contains the following formula: Total government spending (Question B8c) / Grand total of all spending for public sector contraceptives from the government and donors (Questions B8c+B9d))",null,null,null,null,"Don't know",null,null,null,{"$f":"G55","v":0},null,null,null,null,null,null,null,{"$f":"A55","v":"B10. Government share of funds spent on contraceptive procurement for the public sector - \nOf the total amount spent on contraceptives for the public sector in the most recent complete fiscal year (including government and donor funds), what percent was covered by government funds (including internally generated funds, basket funds, World Bank credits or loans, and other funds given to the government)? \n\nThis will auto-calculate. (It contains the following formula: Total government spending (Question B8c) / Grand total of all spending for public sector contraceptives from the government and donors (Questions B8c+B9d))"}]
["B11. Total expenditures on public sector contraceptives as percent of amount that needed to be procured -\nOf the estimated value of the contraceptives needed to be procured for the public sector for the most recent complete fiscal year, what percent was provided by any source (whether government or donor)? \n\nThis will auto-calculate. (It contains the following formula: Grand total of all spending for public sector contraceptives from the government and donors (Questions B8c+B9d) / Value of estimated need for procurement (Question B2))",null,null,null,null,"Don't know",null,null,null,{"$f":"G56","v":0},null,null,null,null,null,null,null,{"$f":"A56","v":"B11. Total expenditures on public sector contraceptives as percent of amount that needed to be procured -\nOf the estimated value of the contraceptives needed to be procured for the public sector for the most recent complete fiscal year, what percent was provided by any source (whether government or donor)? \n\nThis will auto-calculate. (It contains the following formula: Grand total of all spending for public sector contraceptives from the government and donors (Questions B8c+B9d) / Value of estimated need for procurement (Question B2))"}]
["B12. If B11 did not calculate automatically, please answer the following question:\nWas there a funding gap for the public sector in the last complete fiscal year (e.g., 09-'10 fiscal year)?\n(Please select from the dropdown list.)",null,null,null,null,"N/A",null,null,null,{"$f":"G57","v":0},null,null,null,null,null,null,null,{"$f":"A57","v":"B12. If B11 did not calculate automatically, please answer the following question:\nWas there a funding gap for the public sector in the last complete fiscal year (e.g., 09-'10 fiscal year)?\n(Please select from the dropdown list.)"}]
[null,null,null,null,null,null,null,null,null,null,{"$f":"A58","v":0}]
["B13. If the government financed any contraceptive procurement in the most recent complete fiscal year, which entity conducted the procurement(s)? (Please select from the dropdown.)",null,null,null,null,"N/A",null,null,null,null,null,null,null,null,null,null,{"$f":"F59","v":"N/A"},{"$f":"A59","v":"B13. If the government financed any contraceptive procurement in the most recent complete fiscal year, which entity conducted the procurement(s)? (Please select from the dropdown.)"}]
[null,"a. Specify entity",null,null,null,"N/A",null,null,null,null,null,null,{"$f":"E60","v":0},null,null,null,{"$f":"F60","v":"N/A"},{"$f":"B60","v":"a. Specify entity"}]
[null,null,"i. Is this a parastatal?",null,null,"N/A",null,null,null,null,null,null,null,null,null,null,{"$f":"F61","v":"N/A"},{"$f":"C61","v":"i. Is this a parastatal?"}]
["B14. Please note any additional comments about finance and procurement.",null,null,"In 1998, the Russian federal government stopped its federal family planning program, including the procurement of contraceptives. However, some regions and municipalities provide limited contraceptives (both in range and number) to vulnerable groups of the population. Sources include regional and municipal budgets, mandatory health insurance (less often), and small donations from pharmaceutical firms. \n\nHowever, a range of modern contraceptive methods are widely available through pharmacies, including in the public health care facilities for a fee/purchase. Even though FP is not included in the provision of health services, a few USAID target regions cover/reimburse FP counseling under the regional mandatory health insurance plans. USAID-assisted sites which participate in integrated reproductive and maternal and child health projects provide FP counseling.",null,null,null,null,null,null,{"$f":"A62","v":"B14. Please note any additional comments about finance and procurement."},null,null,null,{"$f":"D62","v":"In 1998, the Russian federal government stopped its federal family planning program, including the procurement of contraceptives. However, some regions and municipalities provide limited contraceptives (both in range and number) to vulnerable groups of the population. Sources include regional and municipal budgets, mandatory health insurance (less often), and small donations from pharmaceutical firms. \n\nHowever, a range of modern contraceptive methods are widely available through pharmacies, including in the public health care facilities for a fee/purchase. Even though FP is not included in the provision of health services, a few USAID target regions cover/reimburse FP counseling under the regional mandatory health insurance plans. USAID-assisted sites which participate in integrated reproductive and maternal and child health projects provide FP counseling."}]
["C. Commodities"]
["C1. Are the following contraceptive methods offered through the commercial sector, public sector, NGOs, or social marketing? (Please indicate which methods are intended to be offered. This question is not asking whether the method is in stock.) \n(Please select from the dropdown list.)",null,null,null,null,null,null,null,null,null,null,null,null,null,null,null,null,null,null,null,null,null,null,{"$f":"A64","v":"C1. Are the following contraceptive methods offered through the commercial sector, public sector, NGOs, or social marketing? (Please indicate which methods are intended to be offered. This question is not asking whether the method is in stock.) \n(Please select from the dropdown list.)"}]
["Contraceptive Method",null,null,"Commercial Sector",null,"Public Sector","NGO","Social Marketing",null,null,{"$f":"A65","v":"Contraceptive Method"}]
[null,"a. Combined oral contraceptives (estrogen + progestin - for  example, LoFemenol, Microgynon)",null,"Yes",null,"Yes","N/A","N/A",null,null,{"$f":"B66","v":"a. Combined oral contraceptives (estrogen + progestin - for  example, LoFemenol, Microgynon)"}]
[null,"b. Progestin-only pills (for example, Ovrette, Microlut)",null,"Yes",null,"Yes","N/A","N/A",null,null,{"$f":"B67","v":"b. Progestin-only pills (for example, Ovrette, Microlut)"}]
[null,"c. Hormonal injections (for example, DepoProvera, Noristerat)",null,"Yes",null,"Yes","N/A","N/A",null,null,"c. Hormonal injections (for example, DepoProvera, Noristerat)"]
[null,"d. Hormonal implants (for example, Jadelle, Implanon)",null,"Yes",null,"Yes","N/A","N/A",null,null,"d. Hormonal implants (for example, Jadelle, Implanon)"]
[null,"e. Intrauterine devices (IUDs) (for example, Optima Copper T)",null,"Yes",null,"Yes","N/A","N/A",null,null,"e. Intrauterine devices (IUDs) (for example, Optima Copper T)"]
[null,"f. Male condoms",null,"Yes",null,"Yes","N/A","N/A",null,null,"f. Male condoms"]
[null,"g. Female condoms",null,"No",null,"No","N/A","N/A",null,null,"g. Female condoms"]
[null,"h. Emergency contraceptive pills (for example, Postinor)",null,"Yes",null,"Yes","N/A","N/A",null,null,"h. Emergency contraceptive pills (for example, Postinor)"]
[null,"i. Long-acting permanent method for males (vasectomy)",null,"No",null,"No","N/A","N/A",null,null,"i. Long-acting permanent method for males (vasectomy)"]
[null,"j. Long-acting permanent method for females (tubal ligation)",null,"Yes",null,"Yes","N/A","N/A",null,null,"j. Long-acting permanent method for females (tubal ligation)"]
[null,"k. CycleBeads",null,"No",null,"No","N/A","N/A",null,null,"k. CycleBeads"]
[null,"l. Other contraceptive methods - specify \n(Please provide the name of the other contraceptive(s) offered, by sector.)",null,"Contraceptive patch Evra and vaginal ring Novaring",null,"Contraceptive patch Evra and vaginal ring Novaring","N/A","N/A",null,null,"l. Other contraceptive methods - specify \n(Please provide the name of the other contraceptive(s) offered, by sector.)"]
["C2. Please note any comments about the commodities offered.",null,null,null,null,null,null,null,null,null,{"$f":"A78","v":"C2. Please note any comments about the commodities offered."},null,null,null,{"$f":"D78","v":0}]
["D. Policies (Commitment)"]
["D1. Is there a contraceptive security or reproductive health commodity security strategy or is contraceptive security explicitly included in a country strategy? (Please select from the dropdown list.)",null,null,null,null,null,null,"No",{"$f":"A80","v":"D1. Is there a contraceptive security or reproductive health commodity security strategy or is contraceptive security explicitly included in a country strategy? (Please select from the dropdown list.)"}]
["IF NO, SKIP TO QUESTION D2."]
[null,"Strategy name",null,"Years Covered (including strategy updates)",null,"Is the strategy formally approved by the Ministry?","Is the contraceptive security strategy being implemented?",null,null,{"$f":"G82","v":"Is the contraceptive security strategy being implemented?"},{"$f":"B82","v":"Strategy name"},null,{"$f":"E82","v":0},null,null,null,null,null,{"$f":"D82","v":"Years Covered (including strategy updates)"}]
[null,"a",null,null,null,null,null,null,null,{"$f":"G83","v":0},{"$f":"B83","v":"a"},null,{"$f":"E83","v":0},null,null,null,null,null,{"$f":"D83","v":0}]
["D2. Are any family planning commodities subject to duties, import taxes, or other fees?",null,null,null,null,"Yes",null,null,null,null,null,null,null,null,null,null,{"$f":"F84","v":"Yes"},{"$f":"A84","v":"D2. Are any family planning commodities subject to duties, import taxes, or other fees?"}]
[null,"a. If yes, for which sectors (public, NGO, social marketing, commercial)?",null,null,"All sectors",null,null,null,null,null,null,null,{"$f":"E85","v":"All sectors"},{"$f":"E85","v":"All sectors"},null,null,null,{"$f":"B85","v":"a. If yes, for which sectors (public, NGO, social marketing, commercial)?"}]
[null,"b. If yes, how much are the duties, taxes, or fees?",null,null,"10% custom/import duties, 10% VAT",null,null,null,null,null,null,null,null,{"$f":"E86","v":"10% custom/import duties, 10% VAT"},null,null,null,{"$f":"B86","v":"b. If yes, how much are the duties, taxes, or fees?"}]
["D3. Are there policies that hinder the ability of the private sector (commercial sector, NGOs, or social marketing) to provide contraceptive methods (for example: price controls, distribution limitations, taxes/duties, advertising bans, etc.)?",null,null,null,null,null,null,"Yes",{"$f":"A87","v":"D3. Are there policies that hinder the ability of the private sector (commercial sector, NGOs, or social marketing) to provide contraceptive methods (for example: price controls, distribution limitations, taxes/duties, advertising bans, etc.)?"}]
[null,"a. If yes, describe the policies.",null,"It's illegal to advertise a specific contraceptive brand as well as any other prescription drug. However, they can be promoted and advertised in professional health care literature and facilities. Public campaigns about contraception in general are allowed.",null,null,null,null,null,null,{"$f":"B88","v":"a. If yes, describe the policies."},null,null,null,{"$f":"D88","v":"It's illegal to advertise a specific contraceptive brand as well as any other prescription drug. However, they can be promoted and advertised in professional health care literature and facilities. Public campaigns about contraception in general are allowed."}]
["D4. Are there policies that enable the private sector (commercial sector, NGOs, or social marketing) to provide contraceptive methods?",null,null,null,null,null,null,"Yes",{"$f":"A89","v":"D4. Are there policies that enable the private sector (commercial sector, NGOs, or social marketing) to provide contraceptive methods?"}]
[null,"a. If yes, describe the policies.",null,"Only those entities that have a license for specific medical services can provide contraception. They are mainly private medical clinics. In general only health care workers can provide methods, mostly OB/GYNS.",null,null,null,null,null,null,{"$f":"B90","v":"a. If yes, describe the policies."},null,null,null,{"$f":"D90","v":"Only those entities that have a license for specific medical services can provide contraception. They are mainly private medical clinics. In general only health care workers can provide methods, mostly OB/GYNS."}]
["D5. Do policies or regulations exist that restrict who can sell or dispense particular contraceptive methods?\n",null,null,null,null,null,null,"Yes",{"$f":"A91","v":"D5. Do policies or regulations exist that restrict who can sell or dispense particular contraceptive methods?\n"}]
[null,"Please note any restrictions in the following table."]
[null,"Contraceptive Method(s)",null,null,"Describe any public sector restriction on who is allowed to sell or dispense the method",null,"Describe any private sector restriction on who is allowed to sell or dispense the method",null,null,{"$f":"G93","v":"Describe any private sector restriction on who is allowed to sell or dispense the method"},null,null,null,null,null,{"$f":"B93","v":"Contraceptive Method(s)"},null,null,null,null,{"$f":"E93","v":"Describe any public sector restriction on who is allowed to sell or dispense the method"}]
[null,"a","All except condoms",null,"Only pharmacies are allowed to sell contraceptives and only OB/GYNs can prescribe them.",null,"Only pharmacies are allowed to sell contraceptives and only OB/GYNs can prescribe them.",null,null,{"$f":"G94","v":"Only pharmacies are allowed to sell contraceptives and only OB/GYNs can prescribe them."},null,null,{"$f":"E94","v":"Only pharmacies are allowed to sell contraceptives and only OB/GYNs can prescribe them."},null,null,{"$f":"C94","v":"All except condoms"},null,null,null,null,{"$f":"E94","v":"Only pharmacies are allowed to sell contraceptives and only OB/GYNs can prescribe them."}]
[null,"b",null,null,null,null,null,null,null,{"$f":"G95","v":0},null,null,{"$f":"E95","v":0},null,null,{"$f":"C95","v":0},null,null,null,null,{"$f":"E95","v":0}]
[null,"c",null,null,null,null,null,null,null,{"$f":"G96","v":0},null,null,{"$f":"E96","v":0},null,null,{"$f":"C96","v":0},null,null,null,null,{"$f":"E96","v":0}]
[null,null,null,null,null,null,null,null,null,null,{"$f":"C97","v":0}]
["D6. Does the country have laws, regulations, or policies that make it difficult for the following sub-populations to access effective family planning services?",null,null,"Y/N","If yes, describe laws/regulations/policies affecting access ",null,null,"Are the rules/policies implemented?",null,null,{"$f":"A98","v":"D6. Does the country have laws, regulations, or policies that make it difficult for the following sub-populations to access effective family planning services?"},null,null,null,null,null,null,null,null,null,null,{"$f":"E98","v":"If yes, describe laws/regulations/policies affecting access "}]
[null,"a. Unmarried people",null,"No",null,null,null,null,null,null,{"$f":"B99","v":"a. Unmarried people"},null,{"$f":"E99","v":0},null,null,null,null,null,null,null,null,{"$f":"E99","v":0}]
[null,"b. Young people",null,"No",null,null,null,null,null,null,{"$f":"B100","v":"b. Young people"},null,{"$f":"E100","v":0},null,null,null,null,null,null,null,null,{"$f":"E100","v":0}]
[null,"c. Other",null,"No",null,null,null,null,null,null,{"$f":"B101","v":"c. Other"},null,{"$f":"E101","v":0},null,null,null,null,null,null,null,null,{"$f":"E101","v":0}]
[null,null,null,null,null,null,null,null,null,null,{"$f":"C102","v":0}]
["D7. Are there charges* to the client in the public sector for family planning:\n*(This question refers to charges by policy, not under-the-table charges.)\n",null,null,null,null,null,null,null,null,null,null,null,null,null,null,null,null,null,null,null,null,null,null,{"$f":"A103","v":"D7. Are there charges* to the client in the public sector for family planning:\n*(This question refers to charges by policy, not under-the-table charges.)\n"}]
[null,"a. Services?",null,null,null,null,"No",null,null,{"$f":"G104","v":"No"},null,null,null,null,null,null,null,null,null,null,null,null,null,null,{"$f":"B104","v":"a. Services?"}]
[null,"b. Commodities?",null,null,null,null,"Yes",null,null,{"$f":"G105","v":"Yes"},null,null,null,null,null,null,null,null,null,null,null,null,null,null,{"$f":"B105","v":"b. Commodities?"}]
[null,"c. If yes, are there exemptions for people who cannot afford to pay?",null,null,null,null,"Yes",null,null,{"$f":"G106","v":"Yes"},null,null,null,null,null,null,null,null,null,null,null,null,null,null,{"$f":"B106","v":"c. If yes, are there exemptions for people who cannot afford to pay?"}]
[null,null,"i. If yes, describe the exemptions.","Some regions provide free contraception for vulnerable groups.",null,null,null,null,null,null,{"$f":"C107","v":"i. If yes, describe the exemptions."},null,null,null,{"$f":"D107","v":"Some regions provide free contraception for vulnerable groups."}]
["D8. Are the following contraceptives included in the country's National Essential Medicine List (NEML) or other equivalent priority list?",null,null,null,null,null,null,null,null,null,null,null,null,null,null,null,null,null,null,null,null,null,null,{"$f":"A108","v":"D8. Are the following contraceptives included in the country's National Essential Medicine List (NEML) or other equivalent priority list?"}]
[null,"a. Combined oral contraceptives",null,null,null,null,"No",null,null,{"$f":"G109","v":"No"},null,null,null,null,null,null,null,null,null,null,null,null,null,null,{"$f":"B109","v":"a. Combined oral contraceptives"}]
[null,"b. Progestin-only pills",null,null,null,null,"Yes",null,null,"Yes",null,null,null,null,null,null,null,null,null,null,null,null,null,null,"b. Progestin-only pills"]
[null,"c. Hormonal injections",null,null,null,null,"No",null,null,"No",null,null,null,null,null,null,null,null,null,null,null,null,null,null,"c. Hormonal injections"]
[null,"d. Hormonal implants",null,null,null,null,"No",null,null,"No",null,null,null,null,null,null,null,null,null,null,null,null,null,null,"d. Hormonal implants"]
[null,"e. Intrauterine devices (IUDs)",null,null,null,null,"No",null,null,"No",null,null,null,null,null,null,null,null,null,null,null,null,null,null,"e. Intrauterine devices (IUDs)"]
[null,"f. Male condoms",null,null,null,null,"No",null,null,"No",null,null,null,null,null,null,null,null,null,null,null,null,null,null,"f. Male condoms"]
[null,"g. Female condoms",null,null,null,null,"No",null,null,"No",null,null,null,null,null,null,null,null,null,null,null,null,null,null,"g. Female condoms"]
[null,"h. Emergency contraceptive pills",null,null,null,null,"No",null,null,"No",null,null,null,null,null,null,null,null,null,null,null,null,null,null,"h. Emergency contraceptive pills"]
[null,"i. CycleBeads",null,null,null,null,"No",null,null,{"$f":"G117","v":"No"},null,null,null,null,null,null,null,null,null,null,null,null,null,null,{"$f":"B117","v":"i. CycleBeads"}]
[null,"j. Any other contraceptive(s)?",null,null,null,null,"No",null,null,"No",null,null,null,null,null,null,null,null,null,null,null,null,null,null,"j. Any other contraceptive(s)?"]
[null,null,"i. Name of other contraceptive(s) on the list(s)",null,null,"N/A",null,null,null,0,null,null,null,null,null,null,null,{"$f":"B119","v":0}]
["D9. What year(s) is the list(s) from?",null,null,null,null,2010,null,null,null,0,null,null,null,null,null,null,null,{"$f":"B120","v":0}]
["D10. Name of the list(s)\n\n\n",null,null,"National Essential Medicine List",null,null,null,null,null,null,{"$f":"A121","v":"D10. Name of the list(s)\n\n\n"},null,null,null,{"$f":"D121","v":"National Essential Medicine List"}]
["D11. Notes about the list(s)\n\n\n",null,null,null,null,null,null,null,null,null,{"$f":"A122","v":"D11. Notes about the list(s)\n\n\n"},null,null,null,{"$f":"D122","v":0}]
["D12.  Information on country's Poverty Reduction Strategy Paper (PRSP)\n",null,null,null,null,null,null,null,null,null,null,null,null,null,null,null,null,null,null,null,null,null,null,{"$f":"A123","v":"D12.  Information on country's Poverty Reduction Strategy Paper (PRSP)\n"}]
[null,"a. What year is the Poverty Reduction Strategy Paper from? (most recent actual PRSP on IMF's site [not progress or summary report])",null,null,null,"N/A",null,null,null,{"$f":"G124","v":0},null,null,null,null,null,null,null,{"$f":"B124","v":"a. What year is the Poverty Reduction Strategy Paper from? (most recent actual PRSP on IMF's site [not progress or summary report])"}]
[null,"b. Is family planning or reproductive health a priority in the PRSP?",null,null,null,null,"N/A",null,null,{"$f":"G125","v":"N/A"},null,null,null,null,null,null,null,null,null,null,null,null,null,null,{"$f":"B125","v":"b. Is family planning or reproductive health a priority in the PRSP?"}]
[null,"c. Is contraceptive security included in the PRSP?",null,null,null,null,"N/A",null,null,{"$f":"G126","v":"N/A"},null,null,null,null,null,null,null,null,null,null,null,null,null,null,{"$f":"B126","v":"c. Is contraceptive security included in the PRSP?"}]
[null,"d. Is contraceptive prevalence rate (CPR) included as an indicator in the PRSP?",null,null,null,null,"N/A",null,null,{"$f":"G127","v":"N/A"},null,null,null,null,null,null,null,null,null,null,null,null,null,null,{"$f":"B127","v":"d. Is contraceptive prevalence rate (CPR) included as an indicator in the PRSP?"}]
[null,"e. Are contraceptive supply indicators included in the PRSP?",null,null,null,null,"N/A",null,null,{"$f":"G128","v":"N/A"},null,null,null,null,null,null,null,null,null,null,null,null,null,null,{"$f":"B128","v":"e. Are contraceptive supply indicators included in the PRSP?"}]
["\n\n\n","f. Notes about the Poverty Reduction Strategy Paper",null,"Document not available on IMF website",null,null,null,null,null,null,{"$f":"B129","v":"f. Notes about the Poverty Reduction Strategy Paper"},null,null,null,{"$f":"D129","v":"Document not available on IMF website"}]
["E. Supply Chain (Capacity)"]
["E1. Have stockouts occurred for any contraceptive at the central* level in the last 12 months?  \n*(The central level refers to the central level warehouse for the public sector.)",null,null,null,null,null,"N/A",null,null,{"$f":"G131","v":"N/A"},null,null,null,null,null,null,null,null,null,null,null,null,null,null,{"$f":"A131","v":"E1. Have stockouts occurred for any contraceptive at the central* level in the last 12 months?  \n*(The central level refers to the central level warehouse for the public sector.)"}]
["E2. In the last 12 months, has there ever been a stockout at the central level of any of the contraceptives offered in public sector facilities? (If a method is not intended to be offered in public sector facilities, please indicate that stockouts are not applicable (choose \"N/A\" from the dropdown list).)",null,null,null,null,null,null,null,null,null,null,null,null,null,null,null,null,null,null,null,null,null,null,{"$f":"A132","v":"E2. In the last 12 months, has there ever been a stockout at the central level of any of the contraceptives offered in public sector facilities? (If a method is not intended to be offered in public sector facilities, please indicate that stockouts are not applicable (choose \"N/A\" from the dropdown list).)"}]
[null,"a. Combined oral contraceptives",null,null,null,null,"N/A",null,null,{"$f":"G133","v":"N/A"},null,null,null,null,null,null,null,null,null,null,null,null,null,null,{"$f":"B133","v":"a. Combined oral contraceptives"}]
[null,"b. Progestin-only pills",null,null,null,null,"N/A",null,null,"N/A",null,null,null,null,null,null,null,null,null,null,null,null,null,null,"b. Progestin-only pills"]
[null,"c. Hormonal injections",null,null,null,null,"N/A",null,null,"N/A",null,null,null,null,null,null,null,null,null,null,null,null,null,null,"c. Hormonal injections"]
[null,"d. Hormonal implants",null,null,null,null,"N/A",null,null,"N/A",null,null,null,null,null,null,null,null,null,null,null,null,null,null,"d. Hormonal implants"]
[null,"e. Intrauterine devices (IUDs)",null,null,null,null,"N/A",null,null,"N/A",null,null,null,null,null,null,null,null,null,null,null,null,null,null,"e. Intrauterine devices (IUDs)"]
[null,"f. Male condoms",null,null,null,null,"N/A",null,null,"N/A",null,null,null,null,null,null,null,null,null,null,null,null,null,null,"f. Male condoms"]
[null,"g. Female condoms",null,null,null,null,"N/A",null,null,"N/A",null,null,null,null,null,null,null,null,null,null,null,null,null,null,"g. Female condoms"]
[null,"h. Emergency contraceptive pills",null,null,null,null,"N/A",null,null,"N/A",null,null,null,null,null,null,null,null,null,null,null,null,null,null,"h. Emergency contraceptive pills"]
[null,"i. CycleBeads",null,null,null,null,"N/A",null,null,"N/A",null,null,null,null,null,null,null,null,null,null,null,null,null,null,"i. CycleBeads"]
[null,"j. Time period\n(mm/yy - mm/yy) (for example, 1/10-12/10) ",null,null,null,"N/A",null,null,null,null,null,null,null,null,null,null,{"$f":"F142","v":"N/A"},{"$f":"B142","v":"j. Time period\n(mm/yy - mm/yy) (for example, 1/10-12/10) "}]
[null,"k. Data source\n(for example: Procurement Planning and Monitoring Report, Logistics Management Information System, periodic physical inventory, warehouse reports)",null,null,null,"N/A",null,null,null,null,null,null,null,null,null,null,{"$f":"F143","v":"N/A"},{"$f":"B143","v":"k. Data source\n(for example: Procurement Planning and Monitoring Report, Logistics Management Information System, periodic physical inventory, warehouse reports)"}]
["E3. Are stockouts a large problem in your country at the following levels? (i.e., Are they common or do they tend to last for a long time?)\n\n"]
[null,"a. service delivery point level (i.e., public sector health facilities)",null,null,null,null,"N/A",null,null,{"$f":"G145","v":"N/A"},null,null,null,null,null,null,null,null,null,null,null,null,null,null,{"$f":"B145","v":"a. service delivery point level (i.e., public sector health facilities)"}]
[null,"b. central level (i.e., central level warehouse for the public sector)",null,null,null,null,"N/A",null,null,{"$f":"G146","v":"N/A"},null,null,null,null,null,null,null,null,null,null,null,null,null,null,{"$f":"B146","v":"b. central level (i.e., central level warehouse for the public sector)"}]
["F. Please note any overall comments about challenges and/or successes with contraceptive security in your country.",null,null,"Contraception in Russia continues to be a sensitive topic due to the demographic crisis and other reasons such as the traditionally negative perception of hormonal contraception among policy makers, professionals, and the general population. The government is focusing more on preserving any pregnancy, even an unintended one, so contraception is not viewed positively by the state.\n\n\n\n",null,null,null,null,null,null,{"$f":"A147","v":"F. Please note any overall comments about challenges and/or successes with contraceptive security in your country."},null,null,null,{"$f":"D147","v":"Contraception in Russia continues to be a sensitive topic due to the demographic crisis and other reasons such as the traditionally negative perception of hormonal contraception among policy makers, professionals, and the general population. The government is focusing more on preserving any pregnancy, even an unintended one, so contraception is not viewed positively by the state.\n\n\n\n"}]

{"sheet":"Rwanda 2011","index":36,"n_rows":147,"n_cols":25,"rows_kept":147,"cut":false,"hidden":false,"merged":[[8,0,8,7],[147,0,147,7],[148,0,150,7],[145,1,145,5],[145,6,145,7],[146,0,146,2],[146,3,146,7],[141,1,141,4],[141,5,141,7],[142,1,142,4],[142,5,142,7],[143,0,143,7],[144,1,144,5],[144,6,144,7],[138,1,138,5],[138,6,138,7],[139,1,139,5],[139,6,139,7],[140,1,140,5],[131,0,131,7],[132,1,132,5],[132,6,132,7],[133,1,133,5],[133,6,133,7],[134,1,134,5],[134,6,134,7],[140,6,140,7],[135,1,135,5],[135,6,135,7],[136,1,136,5],[136,6,136,7],[137,1,137,5],[137,6,137,7],[120,0,120,2],[120,3,120,7],[121,0,121,2],[121,3,121,7],[129,0,129,6],[130,0,130,5],[130,6,130,7],[122,0,122,7],[123,1,123,4],[123,5,123,7],[115,1,115,5],[115,6,115,7],[116,1,116,5],[116,6,116,7],[117,1,117,5],[117,6,117,7],[118,2,118,4],[118,5,118,7],[119,0,119,4],[119,5,119,7],[110,1,110,5],[110,6,110,7],[111,1,111,5],[111,6,111,7],[112,1,112,5],[112,6,112,7],[113,1,113,5],[113,6,113,7],[114,1,114,5],[114,6,114,7],[104,1,104,5],[104,6,104,7],[105,1,105,5],[105,6,105,7],[106,3,106,7],[107,0,107,7],[108,1,108,5],[108,6,108,7],[109,1,109,5],[109,6,109,7],[98,1,98,2],[98,4,98,6],[99,1,99,2],[99,4,99,6],[100,1,100,2],[100,4,100,6],[101,0,101,7],[102,0,102,7],[103,1,103,5],[103,6,103,7],[94,2,94,3],[94,4,94,5],[94,6,94,7],[95,2,95,3],[95,4,95,5],[95,6,95,7],[96,0,96,7],[97,0,97,2],[97,4,97,6],[88,0,88,6],[89,1,89,2],[89,3,89,7],[90,0,90,6],[91,1,91,2],[92,1,92,3],[92,4,92,5],[92,6,92,7],[93,2,93,3],[93,4,93,5],[93,6,93,7],[83,0,83,4],[83,5,83,7],[84,1,84,3],[84,4,84,7],[85,1,85,3],[85,4,85,7],[86,0,86,6],[87,1,87,2],[87,3,87,7],[77,0,77,2],[77,3,77,7],[78,0,78,6],[79,0,79,6],[80,0,80,2],[81,0,82,0],[81,1,81,2],[81,3,81,4],[81,6,81,7],[82,3,82,4],[82,6,82,7],[72,1,72,2],[72,3,72,4],[73,1,73,2],[73,3,73,4],[74,1,74,2],[74,3,74,4],[75,1,75,2],[75,3,75,4],[76,1,76,2],[76,3,76,4],[67,1,67,2],[67,3,67,4],[68,1,68,2],[68,3,68,4],[69,1,69,2],[69,3,69,4],[70,1,70,2],[70,3,70,4],[71,1,71,2],[71,3,71,4],[61,0,61,2],[61,3,61,7],[62,0,62,6],[63,0,63,7],[64,0,64,2],[64,3,64,4],[65,1,65,2],[65,3,65,4],[66,1,66,2],[66,3,66,4],[55,0,55,4],[55,6,55,7],[56,0,56,4],[56,6,56,7],[58,0,58,4],[58,5,58,7],[59,1,59,4],[59,5,59,7],[60,2,60,4],[60,5,60,7],[41,1,41,2],[42,3,42,7],[43,1,43,2],[51,1,51,2],[53,0,53,7],[54,0,54,4],[54,6,54,7],[45,0,45,7],[46,1,46,2],[47,1,47,2],[48,3,48,7],[49,1,49,2],[50,1,50,2],[32,0,32,7],[33,1,33,3],[34,1,34,3],[35,0,35,7],[36,0,36,6],[37,0,37,7],[38,1,38,2],[39,1,39,2],[40,3,40,7],[26,0,26,6],[27,0,27,2],[27,3,27,4],[28,0,28,5],[28,6,28,7],[29,0,29,3],[29,6,29,7],[30,0,30,6],[31,0,31,6],[20,1,20,2],[20,5,20,7],[21,1,21,2],[21,5,21,7],[22,1,22,2],[22,5,22,7],[23,0,23,6],[24,0,24,6],[25,0,25,2],[15,1,15,2],[15,5,15,7],[16,1,16,2],[16,5,16,7],[17,1,17,2],[17,5,17,7],[18,1,18,2],[18,5,18,7],[19,1,19,2],[19,5,19,7],[9,0,9,7],[10,0,10,6],[11,0,11,6],[12,1,12,2],[12,3,12,7],[13,0,13,2],[13,3,13,7],[14,1,14,2],[14,5,14,7],[7,0,7,2],[7,3,7,5],[7,6,7,7],[0,0,0,7],[1,0,1,2],[1,3,1,4],[2,0,2,7],[3,3,3,4],[3,5,3,7],[4,0,4,2],[5,0,5,2],[127,1,127,5],[127,6,127,7],[128,1,128,2],[128,3,128,7],[124,1,124,5],[124,6,124,7],[125,1,125,5],[125,6,125,7],[126,1,126,5],[126,6,126,7]]}
[null,null,null,null,null,null,null,null,"Columns I-Y are meant to be hidden. They exist because they allow for the dropdown list options. They also allow for merged cells to autofit properly in terms of row height. This should work if all columns remain at their correct widths.","g-h",null,"a-e merged","E-F merged","e-h","0 times",null,null,"The government (e.g., Central Medical Stores, MOH logistics unit, MOH procurement unit)",null,null,null,null,"Yes","a-h","January"]
[null,null,null,null,null,null,null,null,null,null,"A-c",null,null,null,"1-2 times","b-d merged",null,"Third-party agent (e.g., UNFPA, Crown Agents)","d-e merged","d-f merged","e-f merged","e-g merged","No",null,"February"]
[null,null,null,null,null,null,null,null,null,null,null,null,null,null,"3-5 times",null,null,"The government and a third-party agent",null,null,null,null,null,null,"March"]
[null,null,null,null,null,null,null,null,null,null,null,null,null,null,"6 or more times",null,null,"Other",null,null,null,null,"N/A",null,"April"]
["To jump to the Introduction sheet, click here.",null,null,null,null,null,null,null,null,null,null,null,null,null,null,null,null,null,null,null,null,null,"Don't know",null,"May"]
[null,null,null,null,null,null,null,null,null,null,null,null,null,null,"N/A",null,null,"N/A",null,null,null,null,null,null,"June"]
["Contraceptive Security (CS) Indicators 2011 Data ",null,null,null,null,null,null,null,null,null,null,null,null,null,"Don't know",null,null,"Don't know",null,null,null,null,null,null,"July"]
["Country: Rwanda",null,null,null,null,null,null,null,null,{"$f":"G8","v":0},{"$f":"A8","v":"Country: Rwanda"},null,null,null,null,"or c-d",null,null,null,{"$f":"D8","v":0},null,null,null,null,"August"]
["The CS Indicators are presented in the following sections:\n\n               A. leadership & cooordination               B. finance & procurement               C. commodities               D. policies               E. supply chain",null,null,null,null,null,null,null,null,{"$f":"G9","v":0},{"$f":"A9","v":"The CS Indicators are presented in the following sections:\n\n               A. leadership & cooordination               B. finance & procurement               C. commodities               D. policies               E. supply chain"},null,null,null,"d-h",null,"f-h merged",null,{"$f":"D9","v":0},null,null,null,null,{"$f":"A9","v":"The CS Indicators are presented in the following sections:\n\n               A. leadership & cooordination               B. finance & procurement               C. commodities               D. policies               E. supply chain"},"September"]
["\nNotes:\n  -  Respondents' answers are indicated in the white spaces. \n  -  N/A = not applicable. Don't know = the respondent either indicated they did not know or left the answer blank.\n  -  Some questions required respondents to choose from a dropdown list of options; in these cases the dropdown arrow will \n     appear when you click on the cell. \n  -  There may be a few inserted comments. (If you cannot already see them, click on Review tab - Comments group - Show All Comments in newer \n       versions of Excel or View - Comments in older versions of Excel.)\n  -  If the answer is cut off, you can either manually adjust the row height or autofit the row height in order to see the whole \n     response. (To autofit the row height, select the answer(s) and go to Home tab - Cells group - Format - Autofit Row Height in newer versions of Excel or \n      Format - Row - Autofit in older versions of Excel.)\n",null,null,null,null,null,null,null,"a-g",null,null,null,null,null,null,null,null,"a-e merged",null,null,null,null,null,{"$f":"A10","v":"\nNotes:\n  -  Respondents' answers are indicated in the white spaces. \n  -  N/A = not applicable. Don't know = the respondent either indicated they did not know or left the answer blank.\n  -  Some questions required respondents to choose from a dropdown list of options; in these cases the dropdown arrow will \n     appear when you click on the cell. \n  -  There may be a few inserted comments. (If you cannot already see them, click on Review tab - Comments group - Show All Comments in newer \n       versions of Excel or View - Comments in older versions of Excel.)\n  -  If the answer is cut off, you can either manually adjust the row height or autofit the row height in order to see the whole \n     response. (To autofit the row height, select the answer(s) and go to Home tab - Cells group - Format - Autofit Row Height in newer versions of Excel or \n      Format - Row - Autofit in older versions of Excel.)\n"},"October"]
["A. Leadership and Coordination",null,null,null,null,null,null,null,null,null,null,null,null,null,null,null,null,null,null,null,null,null,null,null,"November"]
["A1. Is there a national committee that works on contraceptive security? (Please select from the dropdown list.)\n(Committee should have some aspect of contraceptive security as part of its Terms of Reference, even if it is known by a different name, for example: Family Planning, Reproductive Health, Maternal Mortality, Essential Medicine Committee, etc.)  ",null,null,null,null,null,null,"Yes",{"$f":"A12","v":"A1. Is there a national committee that works on contraceptive security? (Please select from the dropdown list.)\n(Committee should have some aspect of contraceptive security as part of its Terms of Reference, even if it is known by a different name, for example: Family Planning, Reproductive Health, Maternal Mortality, Essential Medicine Committee, etc.)  "},null,null,null,null,null,null,null,null,null,null,null,null,null,null,null,"December"]
[null,"a. What is the name of the committee?",null,"Family Planning Logistics Committee",null,null,null,null,null,null,{"$f":"B13","v":"a. What is the name of the committee?"},{"$f":"D13","v":"Family Planning Logistics Committee"},null,null,{"$f":"D13","v":"Family Planning Logistics Committee"}]
["A2. Are the following organizations represented on the committee?",null,null,"(Y/N \ndropdown)",null,null,null,null,null,null,{"$f":"A14","v":"A2. Are the following organizations represented on the committee?"},null,null,null,null,null,null,null,null,null,null,null,null,null,"Don't know"]
[null,"a. Social marketing",null,"Yes","If yes, specify name(s) of organizations","PSI",null,null,null,null,{"$f":"B15","v":"a. Social marketing"},null,null,null,null,null,{"$f":"F15","v":"PSI"}]
[null,"b. NGO (for example: service delivery, advocacy, Planned Parenthood affiliate, Marie Stopes affiliate, faith-based organizations, etc.)",null,"Yes","If yes, specify name(s) of organizations","Association Rwandaise pour le Bien Etre Familiale (ARBEF) (Rwandan association for family well-being)",null,null,null,null,"b. NGO (for example: service delivery, advocacy, Planned Parenthood affiliate, Marie Stopes affiliate, faith-based organizations, etc.)",null,null,null,null,null,"Association Rwandaise pour le Bien Etre Familiale (ARBEF) (Rwandan association for family well-being)"]
[null,"c. Commercial sector (for example: pharmacy associations, manufacturers, etc.)",null,"Yes","If yes, specify name(s) of organizations","Association Rwandaise des Pharmacies (ARPHA) (Rwandan association of pharmacists), Association Rwansaise des Medecins Prives (Rwandan association of private doctors)",null,null,null,null,"c. Commercial sector (for example: pharmacy associations, manufacturers, etc.)",null,null,null,null,null,"Association Rwandaise des Pharmacies (ARPHA) (Rwandan association of pharmacists), Association Rwansaise des Medecins Prives (Rwandan association of private doctors)"]
[null,"d. Donors",null,"Yes","If yes, specify name(s) of donors","UNFPA, USAID, GFATM",null,null,null,null,"d. Donors",null,null,null,null,null,"UNFPA, USAID, GFATM"]
[null,"e. UN agencies",null,"Yes","If yes, specify name(s) of agencies","UNFPA",null,null,null,null,"e. UN agencies",null,null,null,null,null,"UNFPA"]
[null,"f. Ministry of Health (for example: logistics, reproductive health, family planning, maternal and child health, HIV/AIDS, pharmacy units, etc.)",null,"Yes","If yes, specify name(s) of units","Maternal and Child Health (MCH), HIV/AIDS and FP Integration, Pharmacy Task Force, Family Planning Officer, Commission National de Lutte Contre le SIDA (CNLS) (national commission for the fight against AIDS)",null,null,null,null,"f. Ministry of Health (for example: logistics, reproductive health, family planning, maternal and child health, HIV/AIDS, pharmacy units, etc.)",null,null,null,null,null,"Maternal and Child Health (MCH), HIV/AIDS and FP Integration, Pharmacy Task Force, Family Planning Officer, Commission National de Lutte Contre le SIDA (CNLS) (national commission for the fight against AIDS)"]
[null,"g. Central Medical Store or Central Warehouse",null,"Yes","If yes, specify","Central d'Achat des Medicamants Essentiel et Consommables (CAMERWA)",null,null,null,null,"g. Central Medical Store or Central Warehouse",null,null,null,null,null,"Central d'Achat des Medicamants Essentiel et Consommables (CAMERWA)"]
[null,"h. Ministry of Finance or Ministry of Planning ",null,"No","If yes, specify",null,null,null,null,null,"h. Ministry of Finance or Ministry of Planning ",null,null,null,null,null,0]
[null,"i. Other (for example: partners)",null,"No","If yes, specify",null,null,null,null,null,"i. Other (for example: partners)",null,null,null,null,null,0]
["A3. How many times did the committee meet during the last year? (0, 1-2, 3-5, or 6+)  (Please select from the dropdown.)",null,null,null,null,null,null,"3-5 times",{"$f":"A24","v":"A3. How many times did the committee meet during the last year? (0, 1-2, 3-5, or 6+)  (Please select from the dropdown.)"}]
["A4. Does the committee have legal status?  (Please select from the dropdown.)                                  ",null,null,null,null,null,null,"Yes",{"$f":"A25","v":"A4. Does the committee have legal status?  (Please select from the dropdown.)                                  "}]
["A5. Is there a Contraceptive Security \"champion\"? (someone who consistently brings up and advocates for contraceptive supplies)",null,null,"Yes","If yes, specify person's organization","MOH","Specify person's job title","MCH Coordinator",null,null,{"$f":"A26","v":"A5. Is there a Contraceptive Security \"champion\"? (someone who consistently brings up and advocates for contraceptive supplies)"}]
["B. Finance and Procurement (Capital)"]
["B1. What is the timeline of the country's fiscal year?",null,null,"Beginning month",null,"July","Ending month","June",null,null,{"$f":"B28","v":0}]
["B2. What was the estimated dollar value of contraceptives needed to be procured for the public sector for the most recent complete fiscal year? (in USD currency)\n(for example, to cover the needs for the '09-'10 fiscal year)",null,null,null,null,null,6012129,null,null,{"$f":"G29","v":6012129},null,null,{"$f":"E29","v":0},null,null,null,null,null,null,null,null,null,null,null,{"$f":"A29","v":"B2. What was the estimated dollar value of contraceptives needed to be procured for the public sector for the most recent complete fiscal year? (in USD currency)\n(for example, to cover the needs for the '09-'10 fiscal year)"}]
["B3. When was the last forecast/quantification conducted? (mm/yy)",null,null,null,"02/10","Who conducted it? (Specify organization.)","USAID | DELIVER PROJECT & MOH",null,null,{"$f":"G30","v":"USAID | DELIVER PROJECT & MOH"},null,null,{"$f":"E30","v":"02/10"},null,null,null,null,null,null,null,null,null,null,null,{"$f":"A30","v":"B3. When was the last forecast/quantification conducted? (mm/yy)"}]
["B4. Is there a government budget line item for the procurement of contraceptives?  (Please select from the dropdown list.)",null,null,null,null,null,null,"Yes",{"$f":"A31","v":"B4. Is there a government budget line item for the procurement of contraceptives?  (Please select from the dropdown list.)"}]
["B5. Were government funds allocated for contraceptive procurement for the public sector in the most recent complete fiscal year? (This question refers to funds planned to be spent on contraceptives, whether or not they ended up being spent.) \n\n(Government funds include internally generated funds, basket funds, World Bank credits or loans, and other funds donors gave to the government for their use.) \n",null,null,null,null,null,null,"Yes",{"$f":"A32","v":"B5. Were government funds allocated for contraceptive procurement for the public sector in the most recent complete fiscal year? (This question refers to funds planned to be spent on contraceptives, whether or not they ended up being spent.) \n\n(Government funds include internally generated funds, basket funds, World Bank credits or loans, and other funds donors gave to the government for their use.) \n"}]
["B6. Please complete the table below regarding government allocations for contraceptive procurement.",null,null,null,null,null,null,null,null,null,null,null,null,null,null,null,null,null,null,null,null,null,null,{"$f":"A33","v":"B6. Please complete the table below regarding government allocations for contraceptive procurement."}]
[null,null,null,null,"Amount allocated \n(in USD)","Time period during which allocations were supposed to be spent \n(mm/yy-mm/yy)\n(should ideally be the most recent\ncomplete fiscal year ['09-'10])","Data source \n(for example: Ministry records)","Comments",null,null,{"$f":"A34","v":0}]
[null,"Government funds allocated for contraceptive procurement\n(funds originally designated for contraceptives, whether or not they ended up being spent on them)",null,null,600000,"01/10-12/10","PipeLine",null,null,null,{"$f":"#REF!","v":{"$error":"#REF!"}}]
[]
["B7. Were government funds spent on contraceptive procurement for the public sector in the most recent complete fiscal year? \n(Government funds include internally generated funds, basket funds, World Bank credits or loans, and other funds donors gave to the government for their use.)",null,null,null,null,null,null,"Yes",{"$f":"A37","v":"B7. Were government funds spent on contraceptive procurement for the public sector in the most recent complete fiscal year? \n(Government funds include internally generated funds, basket funds, World Bank credits or loans, and other funds donors gave to the government for their use.)"}]
["B8. Please complete the table below to indicate government expenditures on contraceptive procurement, by source, in the most recent complete fiscal year. \n(This is how much was spent on contraceptive procurement (not what was allocated). How much of this spending was provided from each source?)",null,null,null,null,null,null,null,null,null,null,null,null,null,null,null,null,null,null,null,null,null,null,{"$f":"A38","v":"B8. Please complete the table below to indicate government expenditures on contraceptive procurement, by source, in the most recent complete fiscal year. \n(This is how much was spent on contraceptive procurement (not what was allocated). How much of this spending was provided from each source?)"}]
[null,"Source of government funds spent on contraceptive procurement for the public sector",null,"Was this source used?\n(Y/N)","Amount spent \n(in USD)","Time period (mm/yy-mm/yy)\n(should be the same for all sources of funds & ideally be the most recent\ncomplete fiscal year ['09-'10])","Data source \n(for example: Contraceptive Procurement Table, PipeLine, etc.)","Comments",null,null,{"$f":"A39","v":0}]
[null,"a. Internally generated funds spent on contraceptive procurement",null,"Yes",null,"01/10-12/10",null,null,null,null,{"$f":"B40","v":"a. Internally generated funds spent on contraceptive procurement"}]
[null,null,"i. Specify source(s) of internally generated funds spent (for example, from taxes or user fees)","Government internally generated funds plus basket funds (from DFID). There is no way to know how much is from which source since budget support is the mechanism used by DFID.",null,null,null,null,null,null,{"$f":"C41","v":"i. Specify source(s) of internally generated funds spent (for example, from taxes or user fees)"},null,null,null,{"$f":"D41","v":"Government internally generated funds plus basket funds (from DFID). There is no way to know how much is from which source since budget support is the mechanism used by DFID."}]
[null,"b. Total of all other government funds spent on contraceptive procurement (basket funds, World Bank credits or loans, and other funds donors gave to the government [e.g., direct budget support])",null,"Yes",1454420,"01/10-12/10","PipeLine","Only $664,619 worth of these products were shipped and received in country in 2010.",null,null,{"$f":"B42","v":"b. Total of all other government funds spent on contraceptive procurement (basket funds, World Bank credits or loans, and other funds donors gave to the government [e.g., direct budget support])"}]
[null,null,"i. Specify source(s) of other government funds spent (for example: basket funding or specific donor)","Government internally generated funds plus basket funds (from DFID). There is no way to know how much is from which source since budget support is the mechanism used by DFID.",null,null,null,null,null,null,{"$f":"C43","v":"i. Specify source(s) of other government funds spent (for example: basket funding or specific donor)"},null,null,null,{"$f":"D43","v":"Government internally generated funds plus basket funds (from DFID). There is no way to know how much is from which source since budget support is the mechanism used by DFID."}]
[null,"c. TOTAL government funds spent on contraceptive procurement\nThis will auto-calculate.  (It will sum a & b above.)",null,null,{"$f":"E42","v":1454420},null,null,null,null,null,{"$f":"B44","v":"c. TOTAL government funds spent on contraceptive procurement\nThis will auto-calculate.  (It will sum a & b above.)"}]
[null,null,null,null,null,null,null,null,null,null,{"$f":"A45","v":0}]
["B9. Please complete the table below to indicate donor expenditures on contraceptive procurement in the most recent complete fiscal year.\n",null,null,null,null,null,null,null,null,null,null,null,null,null,null,null,null,null,null,null,null,null,null,{"$f":"A46","v":"B9. Please complete the table below to indicate donor expenditures on contraceptive procurement in the most recent complete fiscal year.\n"}]
["\n","Source of donations and donor funds spent on contraceptive procurement for the public sector",null,"Was this a source?\n(Y/N)","Amount of money spent on these procurements \n(in USD)","Time period (mm/yy-mm/yy)\n(should be the same for all sources of funds & ideally be the most recent\ncomplete fiscal year ['09-'10])","Data source \n(for example:  Donor records, Contraceptive Procurement Table, PipeLine, RHInterchange, etc.","Comments",null,null,{"$f":"A47","v":"\n"}]
[null,"a. In-kind donations of contraceptives",null,"Yes",4575402,"01/10-12/10","PipeLine",null,null,null,{"$f":"B48","v":"a. In-kind donations of contraceptives"}]
[null,null,"i. Specify source(s) of in-kind donations ","USAID ($2,851,168) & UNFPA ($1,724,234)",null,null,null,null,null,null,{"$f":"C49","v":"i. Specify source(s) of in-kind donations "},null,null,null,{"$f":"D49","v":"USAID ($2,851,168) & UNFPA ($1,724,234)"}]
[null,"b. Global Fund donations used to procure condoms",null,"No",0,"01/10-12/10",null,null,null,null,{"$f":"B50","v":"b. Global Fund donations used to procure condoms"}]
[null,"c. Global Fund donations used to procure contraceptives besides condoms",null,"Yes",772108,"01/10-12/10","PipeLine",null,null,null,{"$f":"B51","v":"c. Global Fund donations used to procure contraceptives besides condoms"}]
[null,"d. TOTAL value of in-kind donations and Global Fund donations spent on contraceptive procurement\nThis will auto-calculate.  (It will sum a-c above.)",null,null,{"$f":"E48+E50+E51","v":5347510},null,null,null,null,null,{"$f":"B52","v":"d. TOTAL value of in-kind donations and Global Fund donations spent on contraceptive procurement\nThis will auto-calculate.  (It will sum a-c above.)"}]
[null,null,null,null,null,null,null,null,null,null,{"$f":"A53","v":0}]
["The answers to B10 and B11 should calculate automatically based on the information you provided. Please review the answers to ensure they make sense to you, and if you have additional information to add, please note it in the comments boxes.\n\nIf the answers do not calculate automatically, please provide any relevant information you may have in the comments boxes.\n",null,null,null,null,null,null,null,null,null,null,null,null,null,null,null,null,null,null,null,null,null,null,{"$f":"A54","v":"The answers to B10 and B11 should calculate automatically based on the information you provided. Please review the answers to ensure they make sense to you, and if you have additional information to add, please note it in the comments boxes.\n\nIf the answers do not calculate automatically, please provide any relevant information you may have in the comments boxes.\n"}]
["B10. Government share of funds spent on contraceptive procurement for the public sector - \nOf the total amount spent on contraceptives for the public sector in the most recent complete fiscal year (including government and donor funds), what percent was covered by government funds (including internally generated funds, basket funds, World Bank credits or loans, and other funds given to the government)? \n\nThis will auto-calculate. (It contains the following formula: Total government spending (Question B8c) / Grand total of all spending for public sector contraceptives from the government and donors (Questions B8c+B9d))",null,null,null,null,{"$f":"E44/(E44+E52)","v":0.21382460566339259},null,null,null,{"$f":"G55","v":0},null,null,null,null,null,null,null,{"$f":"A55","v":"B10. Government share of funds spent on contraceptive procurement for the public sector - \nOf the total amount spent on contraceptives for the public sector in the most recent complete fiscal year (including government and donor funds), what percent was covered by government funds (including internally generated funds, basket funds, World Bank credits or loans, and other funds given to the government)? \n\nThis will auto-calculate. (It contains the following formula: Total government spending (Question B8c) / Grand total of all spending for public sector contraceptives from the government and donors (Questions B8c+B9d))"}]
["B11. Total expenditures on public sector contraceptives as percent of amount that needed to be procured -\nOf the estimated value of the contraceptives needed to be procured for the public sector for the most recent complete fiscal year, what percent was provided by any source (whether government or donor)? \n\nThis will auto-calculate. (It contains the following formula: Grand total of all spending for public sector contraceptives from the government and donors (Questions B8c+B9d) / Value of estimated need for procurement (Question B2))",null,null,null,null,{"$f":"(E44+E52)/G29","v":1.1313679397098766},null,null,null,{"$f":"G56","v":0},null,null,null,null,null,null,null,{"$f":"A56","v":"B11. Total expenditures on public sector contraceptives as percent of amount that needed to be procured -\nOf the estimated value of the contraceptives needed to be procured for the public sector for the most recent complete fiscal year, what percent was provided by any source (whether government or donor)? \n\nThis will auto-calculate. (It contains the following formula: Grand total of all spending for public sector contraceptives from the government and donors (Questions B8c+B9d) / Value of estimated need for procurement (Question B2))"}]
["B12. If B11 did not calculate automatically, please answer the following question:\nWas there a funding gap for the public sector in the last complete fiscal year (e.g., 09-'10 fiscal year)?\n(Please select from the dropdown list.)",null,null,null,null,"No",null,null,null,{"$f":"G57","v":0},null,null,null,null,null,null,null,{"$f":"A57","v":"B12. If B11 did not calculate automatically, please answer the following question:\nWas there a funding gap for the public sector in the last complete fiscal year (e.g., 09-'10 fiscal year)?\n(Please select from the dropdown list.)"}]
[null,null,null,null,null,null,null,null,null,null,{"$f":"A58","v":0}]
["B13. If the government financed any contraceptive procurement in the most recent complete fiscal year, which entity conducted the procurement(s)? (Please select from the dropdown.)",null,null,null,null,"The government (e.g., Central Medical Stores, MOH logistics unit, MOH procurement unit)",null,null,null,null,null,null,null,null,null,null,{"$f":"F59","v":"The government (e.g., Central Medical Stores, MOH logistics unit, MOH procurement unit)"},{"$f":"A59","v":"B13. If the government financed any contraceptive procurement in the most recent complete fiscal year, which entity conducted the procurement(s)? (Please select from the dropdown.)"}]
[null,"a. Specify entity",null,null,null,"CAMERWA",null,null,null,null,null,null,{"$f":"E60","v":0},null,null,null,{"$f":"F60","v":"CAMERWA"},{"$f":"B60","v":"a. Specify entity"}]
[null,null,"i. Is this a parastatal?",null,null,"Yes",null,null,null,null,null,null,null,null,null,null,{"$f":"F61","v":"Yes"},{"$f":"C61","v":"i. Is this a parastatal?"}]
["B14. Please note any additional comments about finance and procurement.\n",null,null,null,null,null,null,null,null,null,{"$f":"A62","v":"B14. Please note any additional comments about finance and procurement.\n"},null,null,null,{"$f":"D62","v":0}]
["C. Commodities"]
["C1. Are the following contraceptive methods offered through the commercial sector, public sector, NGOs, or social marketing? (Please indicate which methods are intended to be offered. This question is not asking whether the method is in stock.) \n(Please select from the dropdown list.)",null,null,null,null,null,null,null,null,null,null,null,null,null,null,null,null,null,null,null,null,null,null,{"$f":"A64","v":"C1. Are the following contraceptive methods offered through the commercial sector, public sector, NGOs, or social marketing? (Please indicate which methods are intended to be offered. This question is not asking whether the method is in stock.) \n(Please select from the dropdown list.)"}]
["Contraceptive Method",null,null,"Commercial Sector",null,"Public Sector","NGO","Social Marketing",null,null,{"$f":"A65","v":"Contraceptive Method"}]
[null,"a. Combined oral contraceptives (estrogen + progestin - for  example, LoFemenol, Microgynon)",null,"Yes",null,"Yes","Yes","Yes",null,null,{"$f":"B66","v":"a. Combined oral contraceptives (estrogen + progestin - for  example, LoFemenol, Microgynon)"}]
[null,"b. Progestin-only pills (for example, Ovrette, Microlut)",null,"Yes",null,"Yes","Yes","No",null,null,{"$f":"B67","v":"b. Progestin-only pills (for example, Ovrette, Microlut)"}]
[null,"c. Hormonal injections (for example, DepoProvera, Noristerat)",null,"Yes",null,"Yes","Yes","Yes",null,null,"c. Hormonal injections (for example, DepoProvera, Noristerat)"]
[null,"d. Hormonal implants (for example, Jadelle, Implanon)",null,"Yes",null,"Yes","No","No",null,null,"d. Hormonal implants (for example, Jadelle, Implanon)"]
[null,"e. Intrauterine devices (IUDs) (for example, Optima Copper T)",null,"Yes",null,"Yes","Yes","No",null,null,"e. Intrauterine devices (IUDs) (for example, Optima Copper T)"]
[null,"f. Male condoms",null,"Yes",null,"Yes","Yes","Yes",null,null,"f. Male condoms"]
[null,"g. Female condoms",null,"No",null,"Yes","No","No",null,null,"g. Female condoms"]
[null,"h. Emergency contraceptive pills (for example, Postinor)",null,"Yes",null,"Yes","Yes","No",null,null,"h. Emergency contraceptive pills (for example, Postinor)"]
[null,"i. Long-acting permanent method for males (vasectomy)",null,"No",null,"Yes","No","No",null,null,"i. Long-acting permanent method for males (vasectomy)"]
[null,"j. Long-acting permanent method for females (tubal ligation)",null,"Yes",null,"Yes","No","No",null,null,"j. Long-acting permanent method for females (tubal ligation)"]
[null,"k. CycleBeads",null,"No",null,"Yes","No","Yes",null,null,"k. CycleBeads"]
[null,"l. Other contraceptive methods - specify \n(Please provide the name of the other contraceptive(s) offered, by sector.)",null,null,null,null,null,null,null,null,"l. Other contraceptive methods - specify \n(Please provide the name of the other contraceptive(s) offered, by sector.)"]
["C2. Please note any comments about the commodities offered.",null,null,null,null,null,null,null,null,null,{"$f":"A78","v":"C2. Please note any comments about the commodities offered."},null,null,null,{"$f":"D78","v":0}]
["D. Policies (Commitment)"]
["D1. Is there a contraceptive security or reproductive health commodity security strategy or is contraceptive security explicitly included in a country strategy? (Please select from the dropdown list.)",null,null,null,null,null,null,"Yes",{"$f":"A80","v":"D1. Is there a contraceptive security or reproductive health commodity security strategy or is contraceptive security explicitly included in a country strategy? (Please select from the dropdown list.)"}]
["IF NO, SKIP TO QUESTION D2."]
[null,"Strategy name",null,"Years Covered (including strategy updates)",null,"Is the strategy formally approved by the Ministry?","Is the contraceptive security strategy being implemented?",null,null,{"$f":"G82","v":"Is the contraceptive security strategy being implemented?"},{"$f":"B82","v":"Strategy name"},null,{"$f":"E82","v":0},null,null,null,null,null,{"$f":"D82","v":"Years Covered (including strategy updates)"}]
[null,"a","Reproductive Health Commodity Security","November 2008-Decmber 2012",null,"No","Yes",null,null,{"$f":"G83","v":"Yes"},{"$f":"B83","v":"a"},null,{"$f":"E83","v":0},null,null,null,null,null,{"$f":"D83","v":"November 2008-Decmber 2012"}]
["D2. Are any family planning commodities subject to duties, import taxes, or other fees?",null,null,null,null,"Yes",null,null,null,null,null,null,null,null,null,null,{"$f":"F84","v":"Yes"},{"$f":"A84","v":"D2. Are any family planning commodities subject to duties, import taxes, or other fees?"}]
[null,"a. If yes, for which sectors (public, NGO, social marketing, commercial)?",null,null,"For all methods in the public sector, MOH pays storage for the central warehouse",null,null,null,null,null,null,null,{"$f":"E85","v":"For all methods in the public sector, MOH pays storage for the central warehouse"},{"$f":"E85","v":"For all methods in the public sector, MOH pays storage for the central warehouse"},null,null,null,{"$f":"B85","v":"a. If yes, for which sectors (public, NGO, social marketing, commercial)?"}]
[null,"b. If yes, how much are the duties, taxes, or fees?",null,null,"9% of the value of the product",null,null,null,null,null,null,null,null,{"$f":"E86","v":"9% of the value of the product"},null,null,null,{"$f":"B86","v":"b. If yes, how much are the duties, taxes, or fees?"}]
["D3. Are there policies that hinder the ability of the private sector (commercial sector, NGOs, or social marketing) to provide contraceptive methods (for example: price controls, distribution limitations, taxes/duties, advertising bans, etc.)?",null,null,null,null,null,null,"No",{"$f":"A87","v":"D3. Are there policies that hinder the ability of the private sector (commercial sector, NGOs, or social marketing) to provide contraceptive methods (for example: price controls, distribution limitations, taxes/duties, advertising bans, etc.)?"}]
[null,"a. If yes, describe the policies.",null,"N/A",null,null,null,null,null,null,{"$f":"B88","v":"a. If yes, describe the policies."},null,null,null,{"$f":"D88","v":"N/A"}]
["D4. Are there policies that enable the private sector (commercial sector, NGOs, or social marketing) to provide contraceptive methods?",null,null,null,null,null,null,"No",{"$f":"A89","v":"D4. Are there policies that enable the private sector (commercial sector, NGOs, or social marketing) to provide contraceptive methods?"}]
[null,"a. If yes, describe the policies.",null,"N/A",null,null,null,null,null,null,{"$f":"B90","v":"a. If yes, describe the policies."},null,null,null,{"$f":"D90","v":"N/A"}]
["D5. Do policies or regulations exist that restrict who can sell or dispense particular contraceptive methods?\n",null,null,null,null,null,null,"No",{"$f":"A91","v":"D5. Do policies or regulations exist that restrict who can sell or dispense particular contraceptive methods?\n"}]
[null,"Please note any restrictions in the following table."]
[null,"Contraceptive Method(s)",null,null,"Describe any public sector restriction on who is allowed to sell or dispense the method",null,"Describe any private sector restriction on who is allowed to sell or dispense the method",null,null,{"$f":"G93","v":"Describe any private sector restriction on who is allowed to sell or dispense the method"},null,null,null,null,null,{"$f":"B93","v":"Contraceptive Method(s)"},null,null,null,null,{"$f":"E93","v":"Describe any public sector restriction on who is allowed to sell or dispense the method"}]
[null,"a",null,null,null,null,null,null,null,{"$f":"G94","v":0},null,null,{"$f":"E94","v":0},null,null,{"$f":"C94","v":0},null,null,null,null,{"$f":"E94","v":0}]
[null,"b",null,null,null,null,null,null,null,{"$f":"G95","v":0},null,null,{"$f":"E95","v":0},null,null,{"$f":"C95","v":0},null,null,null,null,{"$f":"E95","v":0}]
[null,"c",null,null,null,null,null,null,null,{"$f":"G96","v":0},null,null,{"$f":"E96","v":0},null,null,{"$f":"C96","v":0},null,null,null,null,{"$f":"E96","v":0}]
[null,null,null,null,null,null,null,null,null,null,{"$f":"C97","v":0}]
["D6. Does the country have laws, regulations, or policies that make it difficult for the following sub-populations to access effective family planning services?",null,null,"Y/N","If yes, describe laws/regulations/policies affecting access ",null,null,"Are the rules/policies implemented?",null,null,{"$f":"A98","v":"D6. Does the country have laws, regulations, or policies that make it difficult for the following sub-populations to access effective family planning services?"},null,null,null,null,null,null,null,null,null,null,{"$f":"E98","v":"If yes, describe laws/regulations/policies affecting access "}]
[null,"a. Unmarried people",null,"No",null,null,null,null,null,null,{"$f":"B99","v":"a. Unmarried people"},null,{"$f":"E99","v":0},null,null,null,null,null,null,null,null,{"$f":"E99","v":0}]
[null,"b. Young people",null,"No",null,null,null,null,null,null,{"$f":"B100","v":"b. Young people"},null,{"$f":"E100","v":0},null,null,null,null,null,null,null,null,{"$f":"E100","v":0}]
[null,"c. Other",null,"No",null,null,null,null,null,null,{"$f":"B101","v":"c. Other"},null,{"$f":"E101","v":0},null,null,null,null,null,null,null,null,{"$f":"E101","v":0}]
[null,null,null,null,null,null,null,null,null,null,{"$f":"C102","v":0}]
["D7. Are there charges* to the client in the public sector for family planning:\n*(This question refers to charges by policy, not under-the-table charges.)\n",null,null,null,null,null,null,null,null,null,null,null,null,null,null,null,null,null,null,null,null,null,null,{"$f":"A103","v":"D7. Are there charges* to the client in the public sector for family planning:\n*(This question refers to charges by policy, not under-the-table charges.)\n"}]
[null,"a. Services?",null,null,null,null,"No",null,null,{"$f":"G104","v":"No"},null,null,null,null,null,null,null,null,null,null,null,null,null,null,{"$f":"B104","v":"a. Services?"}]
[null,"b. Commodities?",null,null,null,null,"No",null,null,{"$f":"G105","v":"No"},null,null,null,null,null,null,null,null,null,null,null,null,null,null,{"$f":"B105","v":"b. Commodities?"}]
[null,"c. If yes, are there exemptions for people who cannot afford to pay?",null,null,null,null,"N/A",null,null,{"$f":"G106","v":"N/A"},null,null,null,null,null,null,null,null,null,null,null,null,null,null,{"$f":"B106","v":"c. If yes, are there exemptions for people who cannot afford to pay?"}]
[null,null,"i. If yes, describe the exemptions.","N/A",null,null,null,null,null,null,{"$f":"C107","v":"i. If yes, describe the exemptions."},null,null,null,{"$f":"D107","v":"N/A"}]
["D8. Are the following contraceptives included in the country's National Essential Medicine List (NEML) or other equivalent priority list?",null,null,null,null,null,null,null,null,null,null,null,null,null,null,null,null,null,null,null,null,null,null,{"$f":"A108","v":"D8. Are the following contraceptives included in the country's National Essential Medicine List (NEML) or other equivalent priority list?"}]
[null,"a. Combined oral contraceptives",null,null,null,null,"Yes",null,null,{"$f":"G109","v":"Yes"},null,null,null,null,null,null,null,null,null,null,null,null,null,null,{"$f":"B109","v":"a. Combined oral contraceptives"}]
[null,"b. Progestin-only pills",null,null,null,null,"Yes",null,null,"Yes",null,null,null,null,null,null,null,null,null,null,null,null,null,null,"b. Progestin-only pills"]
[null,"c. Hormonal injections",null,null,null,null,"Yes",null,null,"Yes",null,null,null,null,null,null,null,null,null,null,null,null,null,null,"c. Hormonal injections"]
[null,"d. Hormonal implants",null,null,null,null,"Yes",null,null,"Yes",null,null,null,null,null,null,null,null,null,null,null,null,null,null,"d. Hormonal implants"]
[null,"e. Intrauterine devices (IUDs)",null,null,null,null,"Yes",null,null,"Yes",null,null,null,null,null,null,null,null,null,null,null,null,null,null,"e. Intrauterine devices (IUDs)"]
[null,"f. Male condoms",null,null,null,null,"Yes",null,null,"Yes",null,null,null,null,null,null,null,null,null,null,null,null,null,null,"f. Male condoms"]
[null,"g. Female condoms",null,null,null,null,"Yes",null,null,"Yes",null,null,null,null,null,null,null,null,null,null,null,null,null,null,"g. Female condoms"]
[null,"h. Emergency contraceptive pills",null,null,null,null,"Yes",null,null,"Yes",null,null,null,null,null,null,null,null,null,null,null,null,null,null,"h. Emergency contraceptive pills"]
[null,"i. CycleBeads",null,null,null,null,"Yes",null,null,{"$f":"G117","v":"Yes"},null,null,null,null,null,null,null,null,null,null,null,null,null,null,{"$f":"B117","v":"i. CycleBeads"}]
[null,"j. Any other contraceptive(s)?",null,null,null,null,"No",null,null,"No",null,null,null,null,null,null,null,null,null,null,null,null,null,null,"j. Any other contraceptive(s)?"]
[null,null,"i. Name of other contraceptive(s) on the list(s)",null,null,"N/A",null,null,null,0,null,null,null,null,null,null,null,{"$f":"B119","v":0}]
["D9. What year(s) is the list(s) from?",null,null,null,null,2009,null,null,null,0,null,null,null,null,null,null,null,{"$f":"B120","v":0}]
["D10. Name of the list(s)\n\n\n",null,null,"Liste National des Medicaments Essentiel (National Essential Medicines List)",null,null,null,null,null,null,{"$f":"A121","v":"D10. Name of the list(s)\n\n\n"},null,null,null,{"$f":"D121","v":"Liste National des Medicaments Essentiel (National Essential Medicines List)"}]
["D11. Notes about the list(s)\n\n\n",null,null,"It was published in 2010 and is reviewed every 2 years.",null,null,null,null,null,null,{"$f":"A122","v":"D11. Notes about the list(s)\n\n\n"},null,null,null,{"$f":"D122","v":"It was published in 2010 and is reviewed every 2 years."}]
["D12.  Information on country's Poverty Reduction Strategy Paper (PRSP)\n",null,null,null,null,null,null,null,null,null,null,null,null,null,null,null,null,null,null,null,null,null,null,{"$f":"A123","v":"D12.  Information on country's Poverty Reduction Strategy Paper (PRSP)\n"}]
[null,"a. What year is the Poverty Reduction Strategy Paper from? (most recent actual PRSP on IMF's site [not progress or summary report])",null,null,null,2008,null,null,null,{"$f":"G124","v":0},null,null,null,null,null,null,null,{"$f":"B124","v":"a. What year is the Poverty Reduction Strategy Paper from? (most recent actual PRSP on IMF's site [not progress or summary report])"}]
[null,"b. Is family planning or reproductive health a priority in the PRSP?",null,null,null,null,"Yes",null,null,{"$f":"G125","v":"Yes"},null,null,null,null,null,null,null,null,null,null,null,null,null,null,{"$f":"B125","v":"b. Is family planning or reproductive health a priority in the PRSP?"}]
[null,"c. Is contraceptive security included in the PRSP?",null,null,null,null,"Yes",null,null,{"$f":"G126","v":"Yes"},null,null,null,null,null,null,null,null,null,null,null,null,null,null,{"$f":"B126","v":"c. Is contraceptive security included in the PRSP?"}]
[null,"d. Is contraceptive prevalence rate (CPR) included as an indicator in the PRSP?",null,null,null,null,"Yes",null,null,{"$f":"G127","v":"Yes"},null,null,null,null,null,null,null,null,null,null,null,null,null,null,{"$f":"B127","v":"d. Is contraceptive prevalence rate (CPR) included as an indicator in the PRSP?"}]
[null,"e. Are contraceptive supply indicators included in the PRSP?",null,null,null,null,"No",null,null,{"$f":"G128","v":"No"},null,null,null,null,null,null,null,null,null,null,null,null,null,null,{"$f":"B128","v":"e. Are contraceptive supply indicators included in the PRSP?"}]
["\n\n\n","f. Notes about the Poverty Reduction Strategy Paper",null,"While the term \"contraceptive security\" is not explicitly mentioned, there is language that reflects the concepts. 4.208 The fifth objective is to increase the availablity and affordability of drugs, contraceptive products . . . As the utilisation of health care facitlites increases, evidence shows that the binding contraint becomes drug availability. Providing safe and effective medication, diagnostics and other commodities to patients is vital for improving the quality of health care. Such a policy has cost-saving effects which is the rationale for attempting to reduce the number of out-of-stock days for all essential drugs at public health facilities. (p.100) There is emphasis on the availability of contraceptives, but there are no indicators to reflect this priority.",null,null,null,null,null,null,{"$f":"B129","v":"f. Notes about the Poverty Reduction Strategy Paper"},null,null,null,{"$f":"D129","v":"While the term \"contraceptive security\" is not explicitly mentioned, there is language that reflects the concepts. 4.208 The fifth objective is to increase the availablity and affordability of drugs, contraceptive products . . . As the utilisation of health care facitlites increases, evidence shows that the binding contraint becomes drug availability. Providing safe and effective medication, diagnostics and other commodities to patients is vital for improving the quality of health care. Such a policy has cost-saving effects which is the rationale for attempting to reduce the number of out-of-stock days for all essential drugs at public health facilities. (p.100) There is emphasis on the availability of contraceptives, but there are no indicators to reflect this priority."}]
["E. Supply Chain (Capacity)"]
["E1. Have stockouts occurred for any contraceptive at the central* level in the last 12 months?  \n*(The central level refers to the central level warehouse for the public sector.)",null,null,null,null,null,"Yes",null,null,{"$f":"G131","v":"Yes"},null,null,null,null,null,null,null,null,null,null,null,null,null,null,{"$f":"A131","v":"E1. Have stockouts occurred for any contraceptive at the central* level in the last 12 months?  \n*(The central level refers to the central level warehouse for the public sector.)"}]
["E2. In the last 12 months, has there ever been a stockout at the central level of any of the contraceptives offered in public sector facilities? (If a method is not intended to be offered in public sector facilities, please indicate that stockouts are not applicable (choose \"N/A\" from the dropdown list).)",null,null,null,null,null,null,null,null,null,null,null,null,null,null,null,null,null,null,null,null,null,null,{"$f":"A132","v":"E2. In the last 12 months, has there ever been a stockout at the central level of any of the contraceptives offered in public sector facilities? (If a method is not intended to be offered in public sector facilities, please indicate that stockouts are not applicable (choose \"N/A\" from the dropdown list).)"}]
[null,"a. Combined oral contraceptives",null,null,null,null,"No",null,null,{"$f":"G133","v":"No"},null,null,null,null,null,null,null,null,null,null,null,null,null,null,{"$f":"B133","v":"a. Combined oral contraceptives"}]
[null,"b. Progestin-only pills",null,null,null,null,"No",null,null,"No",null,null,null,null,null,null,null,null,null,null,null,null,null,null,"b. Progestin-only pills"]
[null,"c. Hormonal injections",null,null,null,null,"No",null,null,"No",null,null,null,null,null,null,null,null,null,null,null,null,null,null,"c. Hormonal injections"]
[null,"d. Hormonal implants",null,null,null,null,"No",null,null,"No",null,null,null,null,null,null,null,null,null,null,null,null,null,null,"d. Hormonal implants"]
[null,"e. Intrauterine devices (IUDs)",null,null,null,null,"No",null,null,"No",null,null,null,null,null,null,null,null,null,null,null,null,null,null,"e. Intrauterine devices (IUDs)"]
[null,"f. Male condoms",null,null,null,null,"No",null,null,"No",null,null,null,null,null,null,null,null,null,null,null,null,null,null,"f. Male condoms"]
[null,"g. Female condoms",null,null,null,null,"Yes",null,null,"Yes",null,null,null,null,null,null,null,null,null,null,null,null,null,null,"g. Female condoms"]
[null,"h. Emergency contraceptive pills",null,null,null,null,"No",null,null,"No",null,null,null,null,null,null,null,null,null,null,null,null,null,null,"h. Emergency contraceptive pills"]
[null,"i. CycleBeads",null,null,null,null,"No",null,null,"No",null,null,null,null,null,null,null,null,null,null,null,null,null,null,"i. CycleBeads"]
[null,"j. Time period\n(mm/yy - mm/yy) (for example, 1/10-12/10) ",null,null,null,"01/10-12/10",null,null,null,null,null,null,null,null,null,null,{"$f":"F142","v":"01/10-12/10"},{"$f":"B142","v":"j. Time period\n(mm/yy - mm/yy) (for example, 1/10-12/10) "}]
[null,"k. Data source\n(for example: Procurement Planning and Monitoring Report, Logistics Management Information System, periodic physical inventory, warehouse reports)",null,null,null,"Warehouse report",null,null,null,null,null,null,null,null,null,null,{"$f":"F143","v":"Warehouse report"},{"$f":"B143","v":"k. Data source\n(for example: Procurement Planning and Monitoring Report, Logistics Management Information System, periodic physical inventory, warehouse reports)"}]
["E3. Are stockouts a large problem in your country at the following levels? (i.e., Are they common or do they tend to last for a long time?)\n\n"]
[null,"a. service delivery point level (i.e., public sector health facilities)",null,null,null,null,"No",null,null,{"$f":"G145","v":"No"},null,null,null,null,null,null,null,null,null,null,null,null,null,null,{"$f":"B145","v":"a. service delivery point level (i.e., public sector health facilities)"}]
[null,"b. central level (i.e., central level warehouse for the public sector)",null,null,null,null,"No",null,null,{"$f":"G146","v":"No"},null,null,null,null,null,null,null,null,null,null,null,null,null,null,{"$f":"B146","v":"b. central level (i.e., central level warehouse for the public sector)"}]
["F. Please note any overall comments about challenges and/or successes with contraceptive security in your country.\n\n",null,null,"At the service delivery point (SDP) level, contraceptive stockouts are estimated at less than 4% and also rarely occur at the district and central levels. The reporting rate is more than 90% at the SDP level and 100% at the district level.",null,null,null,null,null,null,{"$f":"A147","v":"F. Please note any overall comments about challenges and/or successes with contraceptive security in your country.\n\n"},null,null,null,{"$f":"D147","v":"At the service delivery point (SDP) level, contraceptive stockouts are estimated at less than 4% and also rarely occur at the district and central levels. The reporting rate is more than 90% at the SDP level and 100% at the district level."}]

{"sheet":"Senegal 2011","index":37,"n_rows":147,"n_cols":25,"rows_kept":147,"cut":false,"hidden":false,"merged":[[8,0,8,7],[147,0,147,7],[148,0,150,7],[145,1,145,5],[145,6,145,7],[146,0,146,2],[146,3,146,7],[141,1,141,4],[141,5,141,7],[142,1,142,4],[142,5,142,7],[143,0,143,7],[144,1,144,5],[144,6,144,7],[138,1,138,5],[138,6,138,7],[139,1,139,5],[139,6,139,7],[140,1,140,5],[131,0,131,7],[132,1,132,5],[132,6,132,7],[133,1,133,5],[133,6,133,7],[134,1,134,5],[134,6,134,7],[140,6,140,7],[135,1,135,5],[135,6,135,7],[136,1,136,5],[136,6,136,7],[137,1,137,5],[137,6,137,7],[120,0,120,2],[120,3,120,7],[121,0,121,2],[121,3,121,7],[129,0,129,6],[130,0,130,5],[130,6,130,7],[122,0,122,7],[123,1,123,4],[123,5,123,7],[115,1,115,5],[115,6,115,7],[116,1,116,5],[116,6,116,7],[117,1,117,5],[117,6,117,7],[118,2,118,4],[118,5,118,7],[119,0,119,4],[119,5,119,7],[110,1,110,5],[110,6,110,7],[111,1,111,5],[111,6,111,7],[112,1,112,5],[112,6,112,7],[113,1,113,5],[113,6,113,7],[114,1,114,5],[114,6,114,7],[104,1,104,5],[104,6,104,7],[105,1,105,5],[105,6,105,7],[106,3,106,7],[107,0,107,7],[108,1,108,5],[108,6,108,7],[109,1,109,5],[109,6,109,7],[98,1,98,2],[98,4,98,6],[99,1,99,2],[99,4,99,6],[100,1,100,2],[100,4,100,6],[101,0,101,7],[102,0,102,7],[103,1,103,5],[103,6,103,7],[94,2,94,3],[94,4,94,5],[94,6,94,7],[95,2,95,3],[95,4,95,5],[95,6,95,7],[96,0,96,7],[97,0,97,2],[97,4,97,6],[88,0,88,6],[89,1,89,2],[89,3,89,7],[90,0,90,6],[91,1,91,2],[92,1,92,3],[92,4,92,5],[92,6,92,7],[93,2,93,3],[93,4,93,5],[93,6,93,7],[83,0,83,4],[83,5,83,7],[84,1,84,3],[84,4,84,7],[85,1,85,3],[85,4,85,7],[86,0,86,6],[87,1,87,2],[87,3,87,7],[77,0,77,2],[77,3,77,7],[78,0,78,6],[79,0,79,6],[80,0,80,2],[81,0,82,0],[81,1,81,2],[81,3,81,4],[81,6,81,7],[82,3,82,4],[82,6,82,7],[72,1,72,2],[72,3,72,4],[73,1,73,2],[73,3,73,4],[74,1,74,2],[74,3,74,4],[75,1,75,2],[75,3,75,4],[76,1,76,2],[76,3,76,4],[67,1,67,2],[67,3,67,4],[68,1,68,2],[68,3,68,4],[69,1,69,2],[69,3,69,4],[70,1,70,2],[70,3,70,4],[71,1,71,2],[71,3,71,4],[61,0,61,2],[61,3,61,7],[62,0,62,6],[63,0,63,7],[64,0,64,2],[64,3,64,4],[65,1,65,2],[65,3,65,4],[66,1,66,2],[66,3,66,4],[55,0,55,4],[55,6,55,7],[56,0,56,4],[56,6,56,7],[58,0,58,4],[58,5,58,7],[59,1,59,4],[59,5,59,7],[60,2,60,4],[60,5,60,7],[41,1,41,2],[42,3,42,7],[43,1,43,2],[51,1,51,2],[53,0,53,7],[54,0,54,4],[54,6,54,7],[45,0,45,7],[46,1,46,2],[47,1,47,2],[48,3,48,7],[49,1,49,2],[50,1,50,2],[32,0,32,7],[33,1,33,3],[34,1,34,3],[35,0,35,7],[36,0,36,6],[37,0,37,7],[38,1,38,2],[39,1,39,2],[40,3,40,7],[26,0,26,6],[27,0,27,2],[27,3,27,4],[28,0,28,5],[28,6,28,7],[29,0,29,3],[29,6,29,7],[30,0,30,6],[31,0,31,6],[20,1,20,2],[20,5,20,7],[21,1,21,2],[21,5,21,7],[22,1,22,2],[22,5,22,7],[23,0,23,6],[24,0,24,6],[25,0,25,2],[15,1,15,2],[15,5,15,7],[16,1,16,2],[16,5,16,7],[17,1,17,2],[17,5,17,7],[18,1,18,2],[18,5,18,7],[19,1,19,2],[19,5,19,7],[9,0,9,7],[10,0,10,6],[11,0,11,6],[12,1,12,2],[12,3,12,7],[13,0,13,2],[13,3,13,7],[14,1,14,2],[14,5,14,7],[7,0,7,2],[7,3,7,5],[7,6,7,7],[0,0,0,7],[1,0,1,2],[1,3,1,4],[2,0,2,7],[3,3,3,4],[3,5,3,7],[4,0,4,2],[5,0,5,2],[127,1,127,5],[127,6,127,7],[128,1,128,2],[128,3,128,7],[124,1,124,5],[124,6,124,7],[125,1,125,5],[125,6,125,7],[126,1,126,5],[126,6,126,7]]}
[null,null,null,null,null,null,null,null,"Columns I-Y are meant to be hidden. They exist because they allow for the dropdown list options. They also allow for merged cells to autofit properly in terms of row height. This should work if all columns remain at their correct widths.","g-h",null,"a-e merged","E-F merged","e-h","0 times",null,null,"The government (e.g., Central Medical Stores, MOH logistics unit, MOH procurement unit)",null,null,null,null,"Yes","a-h","January"]
[null,null,null,null,null,null,null,null,null,null,"A-c",null,null,null,"1-2 times","b-d merged",null,"Third-party agent (e.g., UNFPA, Crown Agents)","d-e merged","d-f merged","e-f merged","e-g merged","No",null,"February"]
[null,null,null,null,null,null,null,null,null,null,null,null,null,null,"3-5 times",null,null,"The government and a third-party agent",null,null,null,null,null,null,"March"]
[null,null,null,null,null,null,null,null,null,null,null,null,null,null,"6 or more times",null,null,"Other",null,null,null,null,"N/A",null,"April"]
["To jump to the Introduction sheet, click here.",null,null,null,null,null,null,null,null,null,null,null,null,null,null,null,null,null,null,null,null,null,"Don't know",null,"May"]
[null,null,null,null,null,null,null,null,null,null,null,null,null,null,"N/A",null,null,"N/A",null,null,null,null,null,null,"June"]
["Contraceptive Security (CS) Indicators 2011 Data ",null,null,null,null,null,null,null,null,null,null,null,null,null,"Don't know",null,null,"Don't know",null,null,null,null,null,null,"July"]
["Country: Senegal",null,null,null,null,null,null,null,null,{"$f":"G8","v":0},{"$f":"A8","v":"Country: Senegal"},null,null,null,null,"or c-d",null,null,null,{"$f":"D8","v":0},null,null,null,null,"August"]
["The CS Indicators are presented in the following sections:\n\n               A. leadership & cooordination               B. finance & procurement               C. commodities               D. policies               E. supply chain",null,null,null,null,null,null,null,null,{"$f":"G9","v":0},{"$f":"A9","v":"The CS Indicators are presented in the following sections:\n\n               A. leadership & cooordination               B. finance & procurement               C. commodities               D. policies               E. supply chain"},null,null,null,"d-h",null,"f-h merged",null,{"$f":"D9","v":0},null,null,null,null,{"$f":"A9","v":"The CS Indicators are presented in the following sections:\n\n               A. leadership & cooordination               B. finance & procurement               C. commodities               D. policies               E. supply chain"},"September"]
["\nNotes:\n  -  Respondents' answers are indicated in the white spaces. \n  -  N/A = not applicable. Don't know = the respondent either indicated they did not know or left the answer blank.\n  -  Some questions required respondents to choose from a dropdown list of options; in these cases the dropdown arrow will \n     appear when you click on the cell. \n  -  There may be a few inserted comments. (If you cannot already see them, click on Review tab - Comments group - Show All Comments in newer \n       versions of Excel or View - Comments in older versions of Excel.)\n  -  If the answer is cut off, you can either manually adjust the row height or autofit the row height in order to see the whole \n     response. (To autofit the row height, select the answer(s) and go to Home tab - Cells group - Format - Autofit Row Height in newer versions of Excel or \n      Format - Row - Autofit in older versions of Excel.)\n",null,null,null,null,null,null,null,"a-g",null,null,null,null,null,null,null,null,"a-e merged",null,null,null,null,null,{"$f":"A10","v":"\nNotes:\n  -  Respondents' answers are indicated in the white spaces. \n  -  N/A = not applicable. Don't know = the respondent either indicated they did not know or left the answer blank.\n  -  Some questions required respondents to choose from a dropdown list of options; in these cases the dropdown arrow will \n     appear when you click on the cell. \n  -  There may be a few inserted comments. (If you cannot already see them, click on Review tab - Comments group - Show All Comments in newer \n       versions of Excel or View - Comments in older versions of Excel.)\n  -  If the answer is cut off, you can either manually adjust the row height or autofit the row height in order to see the whole \n     response. (To autofit the row height, select the answer(s) and go to Home tab - Cells group - Format - Autofit Row Height in newer versions of Excel or \n      Format - Row - Autofit in older versions of Excel.)\n"},"October"]
["A. Leadership and Coordination",null,null,null,null,null,null,null,null,null,null,null,null,null,null,null,null,null,null,null,null,null,null,null,"November"]
["A1. Is there a national committee that works on contraceptive security? (Please select from the dropdown list.)\n(Committee should have some aspect of contraceptive security as part of its Terms of Reference, even if it is known by a different name, for example: Family Planning, Reproductive Health, Maternal Mortality, Essential Medicine Committee, etc.)  ",null,null,null,null,null,null,"Yes",{"$f":"A12","v":"A1. Is there a national committee that works on contraceptive security? (Please select from the dropdown list.)\n(Committee should have some aspect of contraceptive security as part of its Terms of Reference, even if it is known by a different name, for example: Family Planning, Reproductive Health, Maternal Mortality, Essential Medicine Committee, etc.)  "},null,null,null,null,null,null,null,null,null,null,null,null,null,null,null,"December"]
[null,"a. What is the name of the committee?",null,"Comite National de Securisation de Produits Contraceptifs (National Contraceptive Security Committee)",null,null,null,null,null,null,{"$f":"B13","v":"a. What is the name of the committee?"},{"$f":"D13","v":"Comite National de Securisation de Produits Contraceptifs (National Contraceptive Security Committee)"},null,null,{"$f":"D13","v":"Comite National de Securisation de Produits Contraceptifs (National Contraceptive Security Committee)"}]
["A2. Are the following organizations represented on the committee?",null,null,"(Y/N \ndropdown)",null,null,null,null,null,null,{"$f":"A14","v":"A2. Are the following organizations represented on the committee?"},null,null,null,null,null,null,null,null,null,null,null,null,null,"Don't know"]
[null,"a. Social marketing",null,"Yes","If yes, specify name(s) of organizations","Agence pour le Developpement du Marketing Social (ADEMAS) (USAID Implementing Partner (IP))",null,null,null,null,{"$f":"B15","v":"a. Social marketing"},null,null,null,null,null,{"$f":"F15","v":"Agence pour le Developpement du Marketing Social (ADEMAS) (USAID Implementing Partner (IP))"}]
[null,"b. NGO (for example: service delivery, advocacy, Planned Parenthood affiliate, Marie Stopes affiliate, faith-based organizations, etc.)",null,"Yes","If yes, specify name(s) of organizations","Association Senegalaise pour le Bien Etre Familial (ASBEF), IPPF affiliate, Intrahealth (USAID IP), Childfund & Consortium (USAID IP)",null,null,null,null,"b. NGO (for example: service delivery, advocacy, Planned Parenthood affiliate, Marie Stopes affiliate, faith-based organizations, etc.)",null,null,null,null,null,"Association Senegalaise pour le Bien Etre Familial (ASBEF), IPPF affiliate, Intrahealth (USAID IP), Childfund & Consortium (USAID IP)"]
[null,"c. Commercial sector (for example: pharmacy associations, manufacturers, etc.)",null,"No","If yes, specify name(s) of organizations",null,null,null,null,null,"c. Commercial sector (for example: pharmacy associations, manufacturers, etc.)",null,null,null,null,null,0]
[null,"d. Donors",null,"Yes","If yes, specify name(s) of donors","USAID, UNFPA , JICA, KFW",null,null,null,null,"d. Donors",null,null,null,null,null,"USAID, UNFPA , JICA, KFW"]
[null,"e. UN agencies",null,"Yes","If yes, specify name(s) of agencies","WHO, UNFPA",null,null,null,null,"e. UN agencies",null,null,null,null,null,"WHO, UNFPA"]
[null,"f. Ministry of Health (for example: logistics, reproductive health, family planning, maternal and child health, HIV/AIDS, pharmacy units, etc.)",null,"Yes","If yes, specify name(s) of units","Division de la Sante de la Reproduction (FP/RH/MCH Division), Direction de la Pharmacie et du Medicament, Laboratoire Nationale de Controle des Medicaments",null,null,null,null,"f. Ministry of Health (for example: logistics, reproductive health, family planning, maternal and child health, HIV/AIDS, pharmacy units, etc.)",null,null,null,null,null,"Division de la Sante de la Reproduction (FP/RH/MCH Division), Direction de la Pharmacie et du Medicament, Laboratoire Nationale de Controle des Medicaments"]
[null,"g. Central Medical Store or Central Warehouse",null,"Yes","If yes, specify","Pharmacie Nationale d'Aprovisionnement (PNA)",null,null,null,null,"g. Central Medical Store or Central Warehouse",null,null,null,null,null,"Pharmacie Nationale d'Aprovisionnement (PNA)"]
[null,"h. Ministry of Finance or Ministry of Planning ",null,"No","If yes, specify",null,null,null,null,null,"h. Ministry of Finance or Ministry of Planning ",null,null,null,null,null,0]
[null,"i. Other (for example: partners)",null,"No","If yes, specify",null,null,null,null,null,"i. Other (for example: partners)",null,null,null,null,null,0]
["A3. How many times did the committee meet during the last year? (0, 1-2, 3-5, or 6+)  (Please select from the dropdown.)",null,null,null,null,null,null,"1-2 times",{"$f":"A24","v":"A3. How many times did the committee meet during the last year? (0, 1-2, 3-5, or 6+)  (Please select from the dropdown.)"}]
["A4. Does the committee have legal status?  (Please select from the dropdown.)                                  ",null,null,null,null,null,null,"No",{"$f":"A25","v":"A4. Does the committee have legal status?  (Please select from the dropdown.)                                  "}]
["A5. Is there a Contraceptive Security \"champion\"? (someone who consistently brings up and advocates for contraceptive supplies)",null,null,"Yes","If yes, specify person's organization","USAID & Implementing Partners","Specify person's job title","USAID MD & Health Team",null,null,{"$f":"A26","v":"A5. Is there a Contraceptive Security \"champion\"? (someone who consistently brings up and advocates for contraceptive supplies)"}]
["B. Finance and Procurement (Capital)"]
["B1. What is the timeline of the country's fiscal year?",null,null,"Beginning month",null,"January","Ending month","December",null,null,{"$f":"B28","v":0}]
["B2. What was the estimated dollar value of contraceptives needed to be procured for the public sector for the most recent complete fiscal year? (in USD currency)\n(for example, to cover the needs for the '09-'10 fiscal year)",null,null,null,null,null,1800000,null,null,{"$f":"G29","v":1800000},null,null,{"$f":"E29","v":0},null,null,null,null,null,null,null,null,null,null,null,{"$f":"A29","v":"B2. What was the estimated dollar value of contraceptives needed to be procured for the public sector for the most recent complete fiscal year? (in USD currency)\n(for example, to cover the needs for the '09-'10 fiscal year)"}]
["B3. When was the last forecast/quantification conducted? (mm/yy)",null,null,null,"09/10","Who conducted it? (Specify organization.)","MOH/FP-RH-MCH Division, supported By IntraHealth (USAID IP)",null,null,{"$f":"G30","v":"MOH/FP-RH-MCH Division, supported By IntraHealth (USAID IP)"},null,null,{"$f":"E30","v":"09/10"},null,null,null,null,null,null,null,null,null,null,null,{"$f":"A30","v":"B3. When was the last forecast/quantification conducted? (mm/yy)"}]
["B4. Is there a government budget line item for the procurement of contraceptives?  (Please select from the dropdown list.)",null,null,null,null,null,null,"Yes",{"$f":"A31","v":"B4. Is there a government budget line item for the procurement of contraceptives?  (Please select from the dropdown list.)"}]
["B5. Were government funds allocated for contraceptive procurement for the public sector in the most recent complete fiscal year? (This question refers to funds planned to be spent on contraceptives, whether or not they ended up being spent.) \n\n(Government funds include internally generated funds, basket funds, World Bank credits or loans, and other funds donors gave to the government for their use.) \n",null,null,null,null,null,null,"Yes",{"$f":"A32","v":"B5. Were government funds allocated for contraceptive procurement for the public sector in the most recent complete fiscal year? (This question refers to funds planned to be spent on contraceptives, whether or not they ended up being spent.) \n\n(Government funds include internally generated funds, basket funds, World Bank credits or loans, and other funds donors gave to the government for their use.) \n"}]
["B6. Please complete the table below regarding government allocations for contraceptive procurement.",null,null,null,null,null,null,null,null,null,null,null,null,null,null,null,null,null,null,null,null,null,null,{"$f":"A33","v":"B6. Please complete the table below regarding government allocations for contraceptive procurement."}]
[null,null,null,null,"Amount allocated \n(in USD)","Time period during which allocations were supposed to be spent \n(mm/yy-mm/yy)\n(should ideally be the most recent\ncomplete fiscal year ['09-'10])","Data source \n(for example: Ministry records)","Comments",null,null,{"$f":"A34","v":0}]
[null,"Government funds allocated for contraceptive procurement\n(funds originally designated for contraceptives, whether or not they ended up being spent on them)",null,null,150000,"01/10-12/10","MHO/DSR (Division of Reproductive Health) line budget","During the 2009/10 crisis, it was cut (from 250k to 150k) but for 2011, it is  reallocated with an increase.",null,null,{"$f":"#REF!","v":{"$error":"#REF!"}}]
[]
["B7. Were government funds spent on contraceptive procurement for the public sector in the most recent complete fiscal year? \n(Government funds include internally generated funds, basket funds, World Bank credits or loans, and other funds donors gave to the government for their use.)",null,null,null,null,null,null,"No",{"$f":"A37","v":"B7. Were government funds spent on contraceptive procurement for the public sector in the most recent complete fiscal year? \n(Government funds include internally generated funds, basket funds, World Bank credits or loans, and other funds donors gave to the government for their use.)"}]
["B8. Please complete the table below to indicate government expenditures on contraceptive procurement, by source, in the most recent complete fiscal year. \n(This is how much was spent on contraceptive procurement (not what was allocated). How much of this spending was provided from each source?)",null,null,null,null,null,null,null,null,null,null,null,null,null,null,null,null,null,null,null,null,null,null,{"$f":"A38","v":"B8. Please complete the table below to indicate government expenditures on contraceptive procurement, by source, in the most recent complete fiscal year. \n(This is how much was spent on contraceptive procurement (not what was allocated). How much of this spending was provided from each source?)"}]
[null,"Source of government funds spent on contraceptive procurement for the public sector",null,"Was this source used?\n(Y/N)","Amount spent \n(in USD)","Time period (mm/yy-mm/yy)\n(should be the same for all sources of funds & ideally be the most recent\ncomplete fiscal year ['09-'10])","Data source \n(for example: Contraceptive Procurement Table, PipeLine, etc.)","Comments",null,null,{"$f":"A39","v":0}]
[null,"a. Internally generated funds spent on contraceptive procurement",null,"No",0,"10/09-09/10","MHO/FP-RH-MCH report, CPT","Funding was transferred from the MOF to the central medical store (PNA) but was returned to the treasury unspent because of difficulty in the procedure (code des marches).",null,null,{"$f":"B40","v":"a. Internally generated funds spent on contraceptive procurement"}]
[null,null,"i. Specify source(s) of internally generated funds spent (for example, from taxes or user fees)",null,null,null,null,null,null,null,{"$f":"C41","v":"i. Specify source(s) of internally generated funds spent (for example, from taxes or user fees)"},null,null,null,{"$f":"D41","v":0}]
[null,"b. Total of all other government funds spent on contraceptive procurement (basket funds, World Bank credits or loans, and other funds donors gave to the government [e.g., direct budget support])",null,"No",0,"10/09-09/10","Contraceptive Procurement Table (CPT)",null,null,null,{"$f":"B42","v":"b. Total of all other government funds spent on contraceptive procurement (basket funds, World Bank credits or loans, and other funds donors gave to the government [e.g., direct budget support])"}]
[null,null,"i. Specify source(s) of other government funds spent (for example: basket funding or specific donor)","N/A",null,null,null,null,null,null,{"$f":"C43","v":"i. Specify source(s) of other government funds spent (for example: basket funding or specific donor)"},null,null,null,{"$f":"D43","v":"N/A"}]
[null,"c. TOTAL government funds spent on contraceptive procurement\nThis will auto-calculate.  (It will sum a & b above.)",null,null,{"$f":"E40+E42","v":0},null,null,null,null,null,{"$f":"B44","v":"c. TOTAL government funds spent on contraceptive procurement\nThis will auto-calculate.  (It will sum a & b above.)"}]
[null,null,null,null,null,null,null,null,null,null,{"$f":"A45","v":0}]
["B9. Please complete the table below to indicate donor expenditures on contraceptive procurement in the most recent complete fiscal year.\n",null,null,null,null,null,null,null,null,null,null,null,null,null,null,null,null,null,null,null,null,null,null,{"$f":"A46","v":"B9. Please complete the table below to indicate donor expenditures on contraceptive procurement in the most recent complete fiscal year.\n"}]
["\n","Source of donations and donor funds spent on contraceptive procurement for the public sector",null,"Was this a source?\n(Y/N)","Amount of money spent on these procurements \n(in USD)","Time period (mm/yy-mm/yy)\n(should be the same for all sources of funds & ideally be the most recent\ncomplete fiscal year ['09-'10])","Data source \n(for example:  Donor records, Contraceptive Procurement Table, PipeLine, RHInterchange, etc.","Comments",null,null,{"$f":"A47","v":"\n"}]
[null,"a. In-kind donations of contraceptives",null,"Yes",1982561,"10/09-09/10","RHInterchange","Includes contraceptives for the MOH/Division of Reproductive Health, MOH/Social Marketing, & MOH/PNLS/AIDS",null,null,{"$f":"B48","v":"a. In-kind donations of contraceptives"}]
[null,null,"i. Specify source(s) of in-kind donations ","USAID ($1,396,142), UNFPA ($586,419)",null,null,null,null,null,null,{"$f":"C49","v":"i. Specify source(s) of in-kind donations "},null,null,null,{"$f":"D49","v":"USAID ($1,396,142), UNFPA ($586,419)"}]
[null,"b. Global Fund donations used to procure condoms",null,"No",0,"10/09-09/10",null,null,null,null,{"$f":"B50","v":"b. Global Fund donations used to procure condoms"}]
[null,"c. Global Fund donations used to procure contraceptives besides condoms",null,"No",0,"10/09-09/10",null,null,null,null,{"$f":"B51","v":"c. Global Fund donations used to procure contraceptives besides condoms"}]
[null,"d. TOTAL value of in-kind donations and Global Fund donations spent on contraceptive procurement\nThis will auto-calculate.  (It will sum a-c above.)",null,null,{"$f":"E48+E50+E51","v":1982561},null,null,null,null,null,{"$f":"B52","v":"d. TOTAL value of in-kind donations and Global Fund donations spent on contraceptive procurement\nThis will auto-calculate.  (It will sum a-c above.)"}]
[null,null,null,null,null,null,null,null,null,null,{"$f":"A53","v":0}]
["The answers to B10 and B11 should calculate automatically based on the information you provided. Please review the answers to ensure they make sense to you, and if you have additional information to add, please note it in the comments boxes.\n\nIf the answers do not calculate automatically, please provide any relevant information you may have in the comments boxes.\n",null,null,null,null,null,null,null,null,null,null,null,null,null,null,null,null,null,null,null,null,null,null,{"$f":"A54","v":"The answers to B10 and B11 should calculate automatically based on the information you provided. Please review the answers to ensure they make sense to you, and if you have additional information to add, please note it in the comments boxes.\n\nIf the answers do not calculate automatically, please provide any relevant information you may have in the comments boxes.\n"}]
["B10. Government share of funds spent on contraceptive procurement for the public sector - \nOf the total amount spent on contraceptives for the public sector in the most recent complete fiscal year (including government and donor funds), what percent was covered by government funds (including internally generated funds, basket funds, World Bank credits or loans, and other funds given to the government)? \n\nThis will auto-calculate. (It contains the following formula: Total government spending (Question B8c) / Grand total of all spending for public sector contraceptives from the government and donors (Questions B8c+B9d))",null,null,null,null,{"$f":"E44/(E44+E52)","v":0},null,null,null,{"$f":"G55","v":0},null,null,null,null,null,null,null,{"$f":"A55","v":"B10. Government share of funds spent on contraceptive procurement for the public sector - \nOf the total amount spent on contraceptives for the public sector in the most recent complete fiscal year (including government and donor funds), what percent was covered by government funds (including internally generated funds, basket funds, World Bank credits or loans, and other funds given to the government)? \n\nThis will auto-calculate. (It contains the following formula: Total government spending (Question B8c) / Grand total of all spending for public sector contraceptives from the government and donors (Questions B8c+B9d))"}]
["B11. Total expenditures on public sector contraceptives as percent of amount that needed to be procured -\nOf the estimated value of the contraceptives needed to be procured for the public sector for the most recent complete fiscal year, what percent was provided by any source (whether government or donor)? \n\nThis will auto-calculate. (It contains the following formula: Grand total of all spending for public sector contraceptives from the government and donors (Questions B8c+B9d) / Value of estimated need for procurement (Question B2))",null,null,null,null,{"$f":"(E44+E52)/G29","v":1.1014227777777779},"The exceeded performance could be explained by an under-estimation of needs, which during the CPT workshop are based on the history of consumption only. Also, the dollar rate used during the estimation vs the real rate used in the RhInterchange could account for differences as well.\n",null,null,{"$f":"G56","v":"The exceeded performance could be explained by an under-estimation of needs, which during the CPT workshop are based on the history of consumption only. Also, the dollar rate used during the estimation vs the real rate used in the RhInterchange could account for differences as well.\n"},null,null,null,null,null,null,null,{"$f":"A56","v":"B11. Total expenditures on public sector contraceptives as percent of amount that needed to be procured -\nOf the estimated value of the contraceptives needed to be procured for the public sector for the most recent complete fiscal year, what percent was provided by any source (whether government or donor)? \n\nThis will auto-calculate. (It contains the following formula: Grand total of all spending for public sector contraceptives from the government and donors (Questions B8c+B9d) / Value of estimated need for procurement (Question B2))"}]
["B12. If B11 did not calculate automatically, please answer the following question:\nWas there a funding gap for the public sector in the last complete fiscal year (e.g., 09-'10 fiscal year)?\n(Please select from the dropdown list.)",null,null,null,null,null,null,null,null,{"$f":"G57","v":0},null,null,null,null,null,null,null,{"$f":"A57","v":"B12. If B11 did not calculate automatically, please answer the following question:\nWas there a funding gap for the public sector in the last complete fiscal year (e.g., 09-'10 fiscal year)?\n(Please select from the dropdown list.)"}]
[null,null,null,null,null,null,null,null,null,null,{"$f":"A58","v":0}]
["B13. If the government financed any contraceptive procurement in the most recent complete fiscal year, which entity conducted the procurement(s)? (Please select from the dropdown.)",null,null,null,null,"N/A",null,null,null,null,null,null,null,null,null,null,{"$f":"F59","v":"N/A"},{"$f":"A59","v":"B13. If the government financed any contraceptive procurement in the most recent complete fiscal year, which entity conducted the procurement(s)? (Please select from the dropdown.)"}]
[null,"a. Specify entity",null,null,null,"N/A",null,null,null,null,null,null,{"$f":"E60","v":0},null,null,null,{"$f":"F60","v":"N/A"},{"$f":"B60","v":"a. Specify entity"}]
[null,null,"i. Is this a parastatal?",null,null,"N/A",null,null,null,null,null,null,null,null,null,null,{"$f":"F61","v":"N/A"},{"$f":"C61","v":"i. Is this a parastatal?"}]
["B14. Please note any additional comments about finance and procurement.\n",null,null,"During the last four years, funding was allocated for contraceptives but wasn't spent. Many reasons have been given: central store mismanagement, non-response to solicitation, and funding taken back by Treasury due to the financial crisis. Now funding has been reallocated for 2011.  ",null,null,null,null,null,null,{"$f":"A62","v":"B14. Please note any additional comments about finance and procurement.\n"},null,null,null,{"$f":"D62","v":"During the last four years, funding was allocated for contraceptives but wasn't spent. Many reasons have been given: central store mismanagement, non-response to solicitation, and funding taken back by Treasury due to the financial crisis. Now funding has been reallocated for 2011.  "}]
["C. Commodities"]
["C1. Are the following contraceptive methods offered through the commercial sector, public sector, NGOs, or social marketing? (Please indicate which methods are intended to be offered. This question is not asking whether the method is in stock.) \n(Please select from the dropdown list.)",null,null,null,null,null,null,null,null,null,null,null,null,null,null,null,null,null,null,null,null,null,null,{"$f":"A64","v":"C1. Are the following contraceptive methods offered through the commercial sector, public sector, NGOs, or social marketing? (Please indicate which methods are intended to be offered. This question is not asking whether the method is in stock.) \n(Please select from the dropdown list.)"}]
["Contraceptive Method",null,null,"Commercial Sector",null,"Public Sector","NGO","Social Marketing",null,null,{"$f":"A65","v":"Contraceptive Method"}]
[null,"a. Combined oral contraceptives (estrogen + progestin - for  example, LoFemenol, Microgynon)",null,"Yes",null,"Yes","Yes","Yes",null,null,{"$f":"B66","v":"a. Combined oral contraceptives (estrogen + progestin - for  example, LoFemenol, Microgynon)"}]
[null,"b. Progestin-only pills (for example, Ovrette, Microlut)",null,"Yes",null,"Yes","Yes","Yes",null,null,{"$f":"B67","v":"b. Progestin-only pills (for example, Ovrette, Microlut)"}]
[null,"c. Hormonal injections (for example, DepoProvera, Noristerat)",null,"Yes",null,"Yes","Yes","Yes",null,null,"c. Hormonal injections (for example, DepoProvera, Noristerat)"]
[null,"d. Hormonal implants (for example, Jadelle, Implanon)",null,"Yes",null,"Yes","Yes","Yes",null,null,"d. Hormonal implants (for example, Jadelle, Implanon)"]
[null,"e. Intrauterine devices (IUDs) (for example, Optima Copper T)",null,"Yes",null,"Yes","Yes","Yes",null,null,"e. Intrauterine devices (IUDs) (for example, Optima Copper T)"]
[null,"f. Male condoms",null,"Yes",null,"Yes","Yes","Yes",null,null,"f. Male condoms"]
[null,"g. Female condoms",null,"Yes",null,"Yes","Yes","Yes",null,null,"g. Female condoms"]
[null,"h. Emergency contraceptive pills (for example, Postinor)",null,"Yes",null,"Yes","Yes","Yes",null,null,"h. Emergency contraceptive pills (for example, Postinor)"]
[null,"i. Long-acting permanent method for males (vasectomy)",null,"Yes",null,"Yes","No","No",null,null,"i. Long-acting permanent method for males (vasectomy)"]
[null,"j. Long-acting permanent method for females (tubal ligation)",null,"Yes",null,"Yes","No","No",null,null,"j. Long-acting permanent method for females (tubal ligation)"]
[null,"k. CycleBeads",null,"No",null,"Yes","Yes","No",null,null,"k. CycleBeads"]
[null,"l. Other contraceptive methods - specify \n(Please provide the name of the other contraceptive(s) offered, by sector.)",null,null,null,null,null,null,null,null,"l. Other contraceptive methods - specify \n(Please provide the name of the other contraceptive(s) offered, by sector.)"]
["C2. Please note any comments about the commodities offered.",null,null,"CycleBeads are offered in non-profit private sector facilities and at the community level (health hut with CHW) supported by NGOs.",null,null,null,null,null,null,{"$f":"A78","v":"C2. Please note any comments about the commodities offered."},null,null,null,{"$f":"D78","v":"CycleBeads are offered in non-profit private sector facilities and at the community level (health hut with CHW) supported by NGOs."}]
["D. Policies (Commitment)"]
["D1. Is there a contraceptive security or reproductive health commodity security strategy or is contraceptive security explicitly included in a country strategy? (Please select from the dropdown list.)",null,null,null,null,null,null,"Yes",{"$f":"A80","v":"D1. Is there a contraceptive security or reproductive health commodity security strategy or is contraceptive security explicitly included in a country strategy? (Please select from the dropdown list.)"}]
["IF NO, SKIP TO QUESTION D2."]
[null,"Strategy name",null,"Years Covered (including strategy updates)",null,"Is the strategy formally approved by the Ministry?","Is the contraceptive security strategy being implemented?",null,null,{"$f":"G82","v":"Is the contraceptive security strategy being implemented?"},{"$f":"B82","v":"Strategy name"},null,{"$f":"E82","v":0},null,null,null,null,null,{"$f":"D82","v":"Years Covered (including strategy updates)"}]
[null,"a","Programme National de Developpement Sanitaire &                   Strategie Nationale de Securisation des Produits Contraceptifs","2009 - 2014                     2007 -2011",null,"Yes","Yes",null,null,{"$f":"G83","v":"Yes"},{"$f":"B83","v":"a"},null,{"$f":"E83","v":0},null,null,null,null,null,{"$f":"D83","v":"2009 - 2014                     2007 -2011"}]
["D2. Are any family planning commodities subject to duties, import taxes, or other fees?",null,null,null,null,"Yes",null,null,null,null,null,null,null,null,null,null,{"$f":"F84","v":"Yes"},{"$f":"A84","v":"D2. Are any family planning commodities subject to duties, import taxes, or other fees?"}]
[null,"a. If yes, for which sectors (public, NGO, social marketing, commercial)?",null,null,"All sectors",null,null,null,null,null,null,null,{"$f":"E85","v":"All sectors"},{"$f":"E85","v":"All sectors"},null,null,null,{"$f":"B85","v":"a. If yes, for which sectors (public, NGO, social marketing, commercial)?"}]
[null,"b. If yes, how much are the duties, taxes, or fees?",null,null,"For private sector - 20% duties for all methods. 18% VAT for IUD only. 2.7% for all goods entering in UEMOA area (Taxe commun à l'Importation), but the government can do a tax exemption for public sector. $0.16 to $1.10 fees in public sector.",null,null,null,null,null,null,null,null,{"$f":"E86","v":"For private sector - 20% duties for all methods. 18% VAT for IUD only. 2.7% for all goods entering in UEMOA area (Taxe commun à l'Importation), but the government can do a tax exemption for public sector. $0.16 to $1.10 fees in public sector."},null,null,null,{"$f":"B86","v":"b. If yes, how much are the duties, taxes, or fees?"}]
["D3. Are there policies that hinder the ability of the private sector (commercial sector, NGOs, or social marketing) to provide contraceptive methods (for example: price controls, distribution limitations, taxes/duties, advertising bans, etc.)?",null,null,null,null,null,null,"Yes",{"$f":"A87","v":"D3. Are there policies that hinder the ability of the private sector (commercial sector, NGOs, or social marketing) to provide contraceptive methods (for example: price controls, distribution limitations, taxes/duties, advertising bans, etc.)?"}]
[null,"a. If yes, describe the policies.",null,"Advertising for specific brands of products is forbidden. Private doctors cannot prescribe and distribute drugs in the same premises. Pharmacists connot dispense most methods without a doctor's prescription. ",null,null,null,null,null,null,{"$f":"B88","v":"a. If yes, describe the policies."},null,null,null,{"$f":"D88","v":"Advertising for specific brands of products is forbidden. Private doctors cannot prescribe and distribute drugs in the same premises. Pharmacists connot dispense most methods without a doctor's prescription. "}]
["D4. Are there policies that enable the private sector (commercial sector, NGOs, or social marketing) to provide contraceptive methods?",null,null,null,null,null,null,"Yes",{"$f":"A89","v":"D4. Are there policies that enable the private sector (commercial sector, NGOs, or social marketing) to provide contraceptive methods?"}]
[null,"a. If yes, describe the policies.",null,"1) Drug registration authorizing commercial distribution for private sector. 2) MOH/RH norms and protocols for public sector, NGOs, and social marketing. (The norms and protocols of RH services allow public sector, non-profit NGOs, and social marketing to prescribe and distribute at the same premises. [Private doctors and pharmacists aren't allowed to do both at the same premises; private doctors can prescribe and administer but cannot distribute. Pharmacists can distribute based on a prescription written by a doctor, nurse, or midwife but cannot administer.]) ",null,null,null,null,null,null,{"$f":"B90","v":"a. If yes, describe the policies."},null,null,null,{"$f":"D90","v":"1) Drug registration authorizing commercial distribution for private sector. 2) MOH/RH norms and protocols for public sector, NGOs, and social marketing. (The norms and protocols of RH services allow public sector, non-profit NGOs, and social marketing to prescribe and distribute at the same premises. [Private doctors and pharmacists aren't allowed to do both at the same premises; private doctors can prescribe and administer but cannot distribute. Pharmacists can distribute based on a prescription written by a doctor, nurse, or midwife but cannot administer.]) "}]
["D5. Do policies or regulations exist that restrict who can sell or dispense particular contraceptive methods?\n",null,null,null,null,null,null,"Yes",{"$f":"A91","v":"D5. Do policies or regulations exist that restrict who can sell or dispense particular contraceptive methods?\n"}]
[null,"Please note any restrictions in the following table."]
[null,"Contraceptive Method(s)",null,null,"Describe any public sector restriction on who is allowed to sell or dispense the method",null,"Describe any private sector restriction on who is allowed to sell or dispense the method",null,null,{"$f":"G93","v":"Describe any private sector restriction on who is allowed to sell or dispense the method"},null,null,null,null,null,{"$f":"B93","v":"Contraceptive Method(s)"},null,null,null,null,{"$f":"E93","v":"Describe any public sector restriction on who is allowed to sell or dispense the method"}]
[null,"a","Oral contraceptives",null,"Doctors, nurses, and midwives, and now community health workers (CHWs) are allowed (as per the RH Norms and Protocols revised in August 2010).",null,"Pharmacists cannot dispense without prescription. (Emergency contraception is available without a prescription in private pharmacies though.)",null,null,{"$f":"G94","v":"Pharmacists cannot dispense without prescription. (Emergency contraception is available without a prescription in private pharmacies though.)"},null,null,{"$f":"E94","v":"Doctors, nurses, and midwives, and now community health workers (CHWs) are allowed (as per the RH Norms and Protocols revised in August 2010)."},null,null,{"$f":"C94","v":"Oral contraceptives"},null,null,null,null,{"$f":"E94","v":"Doctors, nurses, and midwives, and now community health workers (CHWs) are allowed (as per the RH Norms and Protocols revised in August 2010)."}]
[null,"b","Implants and IUDs",null,"Doctors, midwives and nurses are allowed.",null,"Private doctors can insert, but they cannot keep stock in their offices. Patients must procure from pharmacies. Pharmacists cannot dispense and cannot distribute without prescription. ",null,null,{"$f":"G95","v":"Private doctors can insert, but they cannot keep stock in their offices. Patients must procure from pharmacies. Pharmacists cannot dispense and cannot distribute without prescription. "},null,null,{"$f":"E95","v":"Doctors, midwives and nurses are allowed."},null,null,{"$f":"C95","v":"Implants and IUDs"},null,null,null,null,{"$f":"E95","v":"Doctors, midwives and nurses are allowed."}]
[null,"c","Injectables",null,"Doctors, nurses, and midwives, and now (as per the RH Norms and Protocols revised in August 2010), CHWs can provide FP injectables.",null,"Private doctors can administer injectables, but they cannot keep stock in their offices. Patients must procure from pharmacies. Pharmacists cannot dispense and cannot distribute without a prescription. ",null,null,{"$f":"G96","v":"Private doctors can administer injectables, but they cannot keep stock in their offices. Patients must procure from pharmacies. Pharmacists cannot dispense and cannot distribute without a prescription. "},null,null,{"$f":"E96","v":"Doctors, nurses, and midwives, and now (as per the RH Norms and Protocols revised in August 2010), CHWs can provide FP injectables."},null,null,{"$f":"C96","v":"Injectables"},null,null,null,null,{"$f":"E96","v":"Doctors, nurses, and midwives, and now (as per the RH Norms and Protocols revised in August 2010), CHWs can provide FP injectables."}]
[null,null,null,null,null,null,null,null,null,null,{"$f":"C97","v":0}]
["D6. Does the country have laws, regulations, or policies that make it difficult for the following sub-populations to access effective family planning services?",null,null,"Y/N","If yes, describe laws/regulations/policies affecting access ",null,null,"Are the rules/policies implemented?",null,null,{"$f":"A98","v":"D6. Does the country have laws, regulations, or policies that make it difficult for the following sub-populations to access effective family planning services?"},null,null,null,null,null,null,null,null,null,null,{"$f":"E98","v":"If yes, describe laws/regulations/policies affecting access "}]
[null,"a. Unmarried people",null,"No",null,null,null,null,null,null,{"$f":"B99","v":"a. Unmarried people"},null,{"$f":"E99","v":0},null,null,null,null,null,null,null,null,{"$f":"E99","v":0}]
[null,"b. Young people",null,"No",null,null,null,null,null,null,{"$f":"B100","v":"b. Young people"},null,{"$f":"E100","v":0},null,null,null,null,null,null,null,null,{"$f":"E100","v":0}]
[null,"c. Other",null,"No",null,null,null,null,null,null,{"$f":"B101","v":"c. Other"},null,{"$f":"E101","v":0},null,null,null,null,null,null,null,null,{"$f":"E101","v":0}]
[null,null,null,null,null,null,null,null,null,null,{"$f":"C102","v":0}]
["D7. Are there charges* to the client in the public sector for family planning:\n*(This question refers to charges by policy, not under-the-table charges.)\n",null,null,null,null,null,null,null,null,null,null,null,null,null,null,null,null,null,null,null,null,null,null,{"$f":"A103","v":"D7. Are there charges* to the client in the public sector for family planning:\n*(This question refers to charges by policy, not under-the-table charges.)\n"}]
[null,"a. Services?",null,null,null,null,"Yes",null,null,{"$f":"G104","v":"Yes"},null,null,null,null,null,null,null,null,null,null,null,null,null,null,{"$f":"B104","v":"a. Services?"}]
[null,"b. Commodities?",null,null,null,null,"Yes",null,null,{"$f":"G105","v":"Yes"},null,null,null,null,null,null,null,null,null,null,null,null,null,null,{"$f":"B105","v":"b. Commodities?"}]
[null,"c. If yes, are there exemptions for people who cannot afford to pay?",null,null,null,null,"Yes",null,null,{"$f":"G106","v":"Yes"},null,null,null,null,null,null,null,null,null,null,null,null,null,null,{"$f":"B106","v":"c. If yes, are there exemptions for people who cannot afford to pay?"}]
[null,null,"i. If yes, describe the exemptions.","The local health committee determines who cannot afford to pay. There are no specific group exemptions.",null,null,null,null,null,null,{"$f":"C107","v":"i. If yes, describe the exemptions."},null,null,null,{"$f":"D107","v":"The local health committee determines who cannot afford to pay. There are no specific group exemptions."}]
["D8. Are the following contraceptives included in the country's National Essential Medicine List (NEML) or other equivalent priority list?",null,null,null,null,null,null,null,null,null,null,null,null,null,null,null,null,null,null,null,null,null,null,{"$f":"A108","v":"D8. Are the following contraceptives included in the country's National Essential Medicine List (NEML) or other equivalent priority list?"}]
[null,"a. Combined oral contraceptives",null,null,null,null,"Yes",null,null,{"$f":"G109","v":"Yes"},null,null,null,null,null,null,null,null,null,null,null,null,null,null,{"$f":"B109","v":"a. Combined oral contraceptives"}]
[null,"b. Progestin-only pills",null,null,null,null,"Yes",null,null,"Yes",null,null,null,null,null,null,null,null,null,null,null,null,null,null,"b. Progestin-only pills"]
[null,"c. Hormonal injections",null,null,null,null,"Yes",null,null,"Yes",null,null,null,null,null,null,null,null,null,null,null,null,null,null,"c. Hormonal injections"]
[null,"d. Hormonal implants",null,null,null,null,"Yes",null,null,"Yes",null,null,null,null,null,null,null,null,null,null,null,null,null,null,"d. Hormonal implants"]
[null,"e. Intrauterine devices (IUDs)",null,null,null,null,"Yes",null,null,"Yes",null,null,null,null,null,null,null,null,null,null,null,null,null,null,"e. Intrauterine devices (IUDs)"]
[null,"f. Male condoms",null,null,null,null,"Yes",null,null,"Yes",null,null,null,null,null,null,null,null,null,null,null,null,null,null,"f. Male condoms"]
[null,"g. Female condoms",null,null,null,null,"Yes",null,null,"Yes",null,null,null,null,null,null,null,null,null,null,null,null,null,null,"g. Female condoms"]
[null,"h. Emergency contraceptive pills",null,null,null,null,"Yes",null,null,"Yes",null,null,null,null,null,null,null,null,null,null,null,null,null,null,"h. Emergency contraceptive pills"]
[null,"i. CycleBeads",null,null,null,null,"Yes",null,null,{"$f":"G117","v":"Yes"},null,null,null,null,null,null,null,null,null,null,null,null,null,null,{"$f":"B117","v":"i. CycleBeads"}]
[null,"j. Any other contraceptive(s)?",null,null,null,null,"Yes",null,null,"Yes",null,null,null,null,null,null,null,null,null,null,null,null,null,null,"j. Any other contraceptive(s)?"]
[null,null,"i. Name of other contraceptive(s) on the list(s)",null,null,"Spermicide",null,null,null,{"$f":"G120","v":0},null,null,null,null,null,null,null,{"$f":"B119","v":0}]
["D9. What year(s) is the list(s) from?",null,null,null,null,"Updated in 2008",null,null,null,{"$f":"#REF!","v":{"$error":"#REF!"}},null,null,null,null,null,null,null,{"$f":"B120","v":0}]
["D10. Name of the list(s)\n\n\n",null,null,"Liste Nationale des Medicaments Essentiels",null,null,null,null,null,null,{"$f":"A121","v":"D10. Name of the list(s)\n\n\n"},null,null,null,{"$f":"D121","v":"Liste Nationale des Medicaments Essentiels"}]
["D11. Notes about the list(s)\n\n\n",null,null,null,null,null,null,null,null,null,{"$f":"A122","v":"D11. Notes about the list(s)\n\n\n"},null,null,null,{"$f":"D122","v":0}]
["D12.  Information on country's Poverty Reduction Strategy Paper (PRSP)\n",null,null,null,null,null,null,null,null,null,null,null,null,null,null,null,null,null,null,null,null,null,null,{"$f":"A123","v":"D12.  Information on country's Poverty Reduction Strategy Paper (PRSP)\n"}]
[null,"a. What year is the Poverty Reduction Strategy Paper from? (most recent actual PRSP on IMF's site [not progress or summary report])",null,null,null,2007,null,null,null,{"$f":"G124","v":0},null,null,null,null,null,null,null,{"$f":"B124","v":"a. What year is the Poverty Reduction Strategy Paper from? (most recent actual PRSP on IMF's site [not progress or summary report])"}]
[null,"b. Is family planning or reproductive health a priority in the PRSP?",null,null,null,null,"Yes",null,null,{"$f":"G125","v":"Yes"},null,null,null,null,null,null,null,null,null,null,null,null,null,null,{"$f":"B125","v":"b. Is family planning or reproductive health a priority in the PRSP?"}]
[null,"c. Is contraceptive security included in the PRSP?",null,null,null,null,"No",null,null,{"$f":"G126","v":"No"},null,null,null,null,null,null,null,null,null,null,null,null,null,null,{"$f":"B126","v":"c. Is contraceptive security included in the PRSP?"}]
[null,"d. Is contraceptive prevalence rate (CPR) included as an indicator in the PRSP?",null,null,null,null,"No",null,null,{"$f":"G127","v":"No"},null,null,null,null,null,null,null,null,null,null,null,null,null,null,{"$f":"B127","v":"d. Is contraceptive prevalence rate (CPR) included as an indicator in the PRSP?"}]
[null,"e. Are contraceptive supply indicators included in the PRSP?",null,null,null,null,"No",null,null,{"$f":"G128","v":"No"},null,null,null,null,null,null,null,null,null,null,null,null,null,null,{"$f":"B128","v":"e. Are contraceptive supply indicators included in the PRSP?"}]
["\n\n\n","f. Notes about the Poverty Reduction Strategy Paper",null,"USAID & partners have been trying to incorporate CPR and FP as key areas for inclusion in the PRSP.",null,null,null,null,null,null,{"$f":"B129","v":"f. Notes about the Poverty Reduction Strategy Paper"},null,null,null,{"$f":"D129","v":"USAID & partners have been trying to incorporate CPR and FP as key areas for inclusion in the PRSP."}]
["E. Supply Chain (Capacity)"]
["E1. Have stockouts occurred for any contraceptive at the central* level in the last 12 months?  \n*(The central level refers to the central level warehouse for the public sector.)",null,null,null,null,null,"No",null,null,{"$f":"G131","v":"No"},null,null,null,null,null,null,null,null,null,null,null,null,null,null,{"$f":"A131","v":"E1. Have stockouts occurred for any contraceptive at the central* level in the last 12 months?  \n*(The central level refers to the central level warehouse for the public sector.)"}]
["E2. In the last 12 months, has there ever been a stockout at the central level of any of the contraceptives offered in public sector facilities? (If a method is not intended to be offered in public sector facilities, please indicate that stockouts are not applicable (choose \"N/A\" from the dropdown list).)",null,null,null,null,null,null,null,null,null,null,null,null,null,null,null,null,null,null,null,null,null,null,{"$f":"A132","v":"E2. In the last 12 months, has there ever been a stockout at the central level of any of the contraceptives offered in public sector facilities? (If a method is not intended to be offered in public sector facilities, please indicate that stockouts are not applicable (choose \"N/A\" from the dropdown list).)"}]
[null,"a. Combined oral contraceptives",null,null,null,null,"No",null,null,{"$f":"G133","v":"No"},null,null,null,null,null,null,null,null,null,null,null,null,null,null,{"$f":"B133","v":"a. Combined oral contraceptives"}]
[null,"b. Progestin-only pills",null,null,null,null,"No",null,null,"No",null,null,null,null,null,null,null,null,null,null,null,null,null,null,"b. Progestin-only pills"]
[null,"c. Hormonal injections",null,null,null,null,"No",null,null,"No",null,null,null,null,null,null,null,null,null,null,null,null,null,null,"c. Hormonal injections"]
[null,"d. Hormonal implants",null,null,null,null,"No",null,null,"No",null,null,null,null,null,null,null,null,null,null,null,null,null,null,"d. Hormonal implants"]
[null,"e. Intrauterine devices (IUDs)",null,null,null,null,"No",null,null,"No",null,null,null,null,null,null,null,null,null,null,null,null,null,null,"e. Intrauterine devices (IUDs)"]
[null,"f. Male condoms",null,null,null,null,"No",null,null,"No",null,null,null,null,null,null,null,null,null,null,null,null,null,null,"f. Male condoms"]
[null,"g. Female condoms",null,null,null,null,"No",null,null,"No",null,null,null,null,null,null,null,null,null,null,null,null,null,null,"g. Female condoms"]
[null,"h. Emergency contraceptive pills",null,null,null,null,"No",null,null,"No",null,null,null,null,null,null,null,null,null,null,null,null,null,null,"h. Emergency contraceptive pills"]
[null,"i. CycleBeads",null,null,null,null,"No",null,null,"No",null,null,null,null,null,null,null,null,null,null,null,null,null,null,"i. CycleBeads"]
[null,"j. Time period\n(mm/yy - mm/yy) (for example, 1/10-12/10) ",null,null,null,"01/10-12/10",null,null,null,null,null,null,null,null,null,null,{"$f":"F142","v":"01/10-12/10"},{"$f":"B142","v":"j. Time period\n(mm/yy - mm/yy) (for example, 1/10-12/10) "}]
[null,"k. Data source\n(for example: Procurement Planning and Monitoring Report, Logistics Management Information System, periodic physical inventory, warehouse reports)",null,null,null,"CPTs, Logistics management information system and reports",null,null,null,null,null,null,null,null,null,null,{"$f":"F143","v":"CPTs, Logistics management information system and reports"},{"$f":"B143","v":"k. Data source\n(for example: Procurement Planning and Monitoring Report, Logistics Management Information System, periodic physical inventory, warehouse reports)"}]
["E3. Are stockouts a large problem in your country at the following levels? (i.e., Are they common or do they tend to last for a long time?)\n\n"]
[null,"a. service delivery point level (i.e., public sector health facilities)",null,null,null,null,"Yes",null,null,{"$f":"G145","v":"Yes"},null,null,null,null,null,null,null,null,null,null,null,null,null,null,{"$f":"B145","v":"a. service delivery point level (i.e., public sector health facilities)"}]
[null,"b. central level (i.e., central level warehouse for the public sector)",null,null,null,null,"No",null,null,{"$f":"G146","v":"No"},null,null,null,null,null,null,null,null,null,null,null,null,null,null,{"$f":"B146","v":"b. central level (i.e., central level warehouse for the public sector)"}]
["F. Please note any overall comments about challenges and/or successes with contraceptive security in your country.\n\n",null,null,"Government funding is not yet sufficient and thus contraceptive security is unsustainable. For many years, contraceptive procurement has been supported by USAID and UNFPA. Intense advocacy continues with the MOH for public resources to be mobilized for contraceptive procurement. Unfortunately this has not yet happened despite an effective increase of the RH budget (by more than 50%). While there are no stockouts at the central level, smaller health posts and health centers continue to be plagued with stockouts. Also, the MOH has room to improve in contraceptive supply chain management at the central level. ",null,null,null,null,null,null,{"$f":"A147","v":"F. Please note any overall comments about challenges and/or successes with contraceptive security in your country.\n\n"},null,null,null,{"$f":"D147","v":"Government funding is not yet sufficient and thus contraceptive security is unsustainable. For many years, contraceptive procurement has been supported by USAID and UNFPA. Intense advocacy continues with the MOH for public resources to be mobilized for contraceptive procurement. Unfortunately this has not yet happened despite an effective increase of the RH budget (by more than 50%). While there are no stockouts at the central level, smaller health posts and health centers continue to be plagued with stockouts. Also, the MOH has room to improve in contraceptive supply chain management at the central level. "}]

{"sheet":"S. Sudan 2011","index":38,"n_rows":147,"n_cols":25,"rows_kept":147,"cut":false,"hidden":false,"merged":[[8,0,8,7],[147,0,147,7],[148,0,150,7],[145,1,145,5],[145,6,145,7],[146,0,146,2],[146,3,146,7],[141,1,141,4],[141,5,141,7],[142,1,142,4],[142,5,142,7],[143,0,143,7],[144,1,144,5],[144,6,144,7],[138,1,138,5],[138,6,138,7],[139,1,139,5],[139,6,139,7],[140,1,140,5],[131,0,131,7],[132,1,132,5],[132,6,132,7],[133,1,133,5],[133,6,133,7],[134,1,134,5],[134,6,134,7],[140,6,140,7],[135,1,135,5],[135,6,135,7],[136,1,136,5],[136,6,136,7],[137,1,137,5],[137,6,137,7],[120,0,120,2],[120,3,120,7],[121,0,121,2],[121,3,121,7],[129,0,129,6],[130,0,130,5],[130,6,130,7],[122,0,122,7],[123,1,123,4],[123,5,123,7],[115,1,115,5],[115,6,115,7],[116,1,116,5],[116,6,116,7],[117,1,117,5],[117,6,117,7],[118,2,118,4],[118,5,118,7],[119,0,119,4],[119,5,119,7],[110,1,110,5],[110,6,110,7],[111,1,111,5],[111,6,111,7],[112,1,112,5],[112,6,112,7],[113,1,113,5],[113,6,113,7],[114,1,114,5],[114,6,114,7],[104,1,104,5],[104,6,104,7],[105,1,105,5],[105,6,105,7],[106,3,106,7],[107,0,107,7],[108,1,108,5],[108,6,108,7],[109,1,109,5],[109,6,109,7],[98,1,98,2],[98,4,98,6],[99,1,99,2],[99,4,99,6],[100,1,100,2],[100,4,100,6],[101,0,101,7],[102,0,102,7],[103,1,103,5],[103,6,103,7],[94,2,94,3],[94,4,94,5],[94,6,94,7],[95,2,95,3],[95,4,95,5],[95,6,95,7],[96,0,96,7],[97,0,97,2],[97,4,97,6],[88,0,88,6],[89,1,89,2],[89,3,89,7],[90,0,90,6],[91,1,91,2],[92,1,92,3],[92,4,92,5],[92,6,92,7],[93,2,93,3],[93,4,93,5],[93,6,93,7],[83,0,83,4],[83,5,83,7],[84,1,84,3],[84,4,84,7],[85,1,85,3],[85,4,85,7],[86,0,86,6],[87,1,87,2],[87,3,87,7],[77,0,77,2],[77,3,77,7],[78,0,78,6],[79,0,79,6],[80,0,80,2],[81,0,82,0],[81,1,81,2],[81,3,81,4],[81,6,81,7],[82,3,82,4],[82,6,82,7],[72,1,72,2],[72,3,72,4],[73,1,73,2],[73,3,73,4],[74,1,74,2],[74,3,74,4],[75,1,75,2],[75,3,75,4],[76,1,76,2],[76,3,76,4],[67,1,67,2],[67,3,67,4],[68,1,68,2],[68,3,68,4],[69,1,69,2],[69,3,69,4],[70,1,70,2],[70,3,70,4],[71,1,71,2],[71,3,71,4],[61,0,61,2],[61,3,61,7],[62,0,62,6],[63,0,63,7],[64,0,64,2],[64,3,64,4],[65,1,65,2],[65,3,65,4],[66,1,66,2],[66,3,66,4],[55,0,55,4],[55,6,55,7],[56,0,56,4],[56,6,56,7],[58,0,58,4],[58,5,58,7],[59,1,59,4],[59,5,59,7],[60,2,60,4],[60,5,60,7],[41,1,41,2],[42,3,42,7],[43,1,43,2],[51,1,51,2],[53,0,53,7],[54,0,54,4],[54,6,54,7],[45,0,45,7],[46,1,46,2],[47,1,47,2],[48,3,48,7],[49,1,49,2],[50,1,50,2],[32,0,32,7],[33,1,33,3],[34,1,34,3],[35,0,35,7],[36,0,36,6],[37,0,37,7],[38,1,38,2],[39,1,39,2],[40,3,40,7],[26,0,26,6],[27,0,27,2],[27,3,27,4],[28,0,28,5],[28,6,28,7],[29,0,29,3],[29,6,29,7],[30,0,30,6],[31,0,31,6],[20,1,20,2],[20,5,20,7],[21,1,21,2],[21,5,21,7],[22,1,22,2],[22,5,22,7],[23,0,23,6],[24,0,24,6],[25,0,25,2],[15,1,15,2],[15,5,15,7],[16,1,16,2],[16,5,16,7],[17,1,17,2],[17,5,17,7],[18,1,18,2],[18,5,18,7],[19,1,19,2],[19,5,19,7],[9,0,9,7],[10,0,10,6],[11,0,11,6],[12,1,12,2],[12,3,12,7],[13,0,13,2],[13,3,13,7],[14,1,14,2],[14,5,14,7],[7,0,7,2],[7,3,7,5],[7,6,7,7],[0,0,0,7],[1,0,1,2],[1,3,1,4],[2,0,2,7],[3,3,3,4],[3,5,3,7],[4,0,4,2],[5,0,5,2],[127,1,127,5],[127,6,127,7],[128,1,128,2],[128,3,128,7],[124,1,124,5],[124,6,124,7],[125,1,125,5],[125,6,125,7],[126,1,126,5],[126,6,126,7]]}
[null,null,null,null,null,null,null,null,"Columns I-Y are meant to be hidden. They exist because they allow for the dropdown list options. They also allow for merged cells to autofit properly in terms of row height. This should work if all columns remain at their correct widths.","g-h",null,"a-e merged","E-F merged","e-h","0 times",null,null,"The government (e.g., Central Medical Stores, MOH logistics unit, MOH procurement unit)",null,null,null,null,"Yes","a-h","January"]
[null,null,null,null,null,null,null,null,null,null,"A-c",null,null,null,"1-2 times","b-d merged",null,"Third-party agent (e.g., UNFPA, Crown Agents)","d-e merged","d-f merged","e-f merged","e-g merged","No",null,"February"]
[null,null,null,null,null,null,null,null,null,null,null,null,null,null,"3-5 times",null,null,"The government and a third-party agent",null,null,null,null,null,null,"March"]
[null,null,null,null,null,null,null,null,null,null,null,null,null,null,"6 or more times",null,null,"Other",null,null,null,null,"N/A",null,"April"]
["To jump to the Introduction sheet, click here.",null,null,null,null,null,null,null,null,null,null,null,null,null,null,null,null,null,null,null,null,null,"Don't know",null,"May"]
[null,null,null,null,null,null,null,null,null,null,null,null,null,null,"N/A",null,null,"N/A",null,null,null,null,null,null,"June"]
["Contraceptive Security (CS) Indicators 2011 Data ",null,null,null,null,null,null,null,null,null,null,null,null,null,"Don't know",null,null,"Don't know",null,null,null,null,null,null,"July"]
["Country: South Sudan",null,null,null,null,null,null,null,null,{"$f":"G8","v":0},{"$f":"A8","v":"Country: South Sudan"},null,null,null,null,"or c-d",null,null,null,{"$f":"D8","v":0},null,null,null,null,"August"]
["The CS Indicators are presented in the following sections:\n\n               A. leadership & cooordination               B. finance & procurement               C. commodities               D. policies               E. supply chain",null,null,null,null,null,null,null,null,{"$f":"G9","v":0},{"$f":"A9","v":"The CS Indicators are presented in the following sections:\n\n               A. leadership & cooordination               B. finance & procurement               C. commodities               D. policies               E. supply chain"},null,null,null,"d-h",null,"f-h merged",null,{"$f":"D9","v":0},null,null,null,null,{"$f":"A9","v":"The CS Indicators are presented in the following sections:\n\n               A. leadership & cooordination               B. finance & procurement               C. commodities               D. policies               E. supply chain"},"September"]
["\nNotes:\n  -  Respondents' answers are indicated in the white spaces. \n  -  N/A = not applicable. Don't know = the respondent either indicated they did not know or left the answer blank.\n  -  Some questions required respondents to choose from a dropdown list of options; in these cases the dropdown arrow will \n     appear when you click on the cell. \n  -  There may be a few inserted comments. (If you cannot already see them, click on Review tab - Comments group - Show All Comments in newer \n       versions of Excel or View - Comments in older versions of Excel.)\n  -  If the answer is cut off, you can either manually adjust the row height or autofit the row height in order to see the whole \n     response. (To autofit the row height, select the answer(s) and go to Home tab - Cells group - Format - Autofit Row Height in newer versions of Excel or \n      Format - Row - Autofit in older versions of Excel.)\n",null,null,null,null,null,null,null,"a-g",null,null,null,null,null,null,null,null,"a-e merged",null,null,null,null,null,{"$f":"A10","v":"\nNotes:\n  -  Respondents' answers are indicated in the white spaces. \n  -  N/A = not applicable. Don't know = the respondent either indicated they did not know or left the answer blank.\n  -  Some questions required respondents to choose from a dropdown list of options; in these cases the dropdown arrow will \n     appear when you click on the cell. \n  -  There may be a few inserted comments. (If you cannot already see them, click on Review tab - Comments group - Show All Comments in newer \n       versions of Excel or View - Comments in older versions of Excel.)\n  -  If the answer is cut off, you can either manually adjust the row height or autofit the row height in order to see the whole \n     response. (To autofit the row height, select the answer(s) and go to Home tab - Cells group - Format - Autofit Row Height in newer versions of Excel or \n      Format - Row - Autofit in older versions of Excel.)\n"},"October"]
["A. Leadership and Coordination",null,null,null,null,null,null,null,null,null,null,null,null,null,null,null,null,null,null,null,null,null,null,null,"November"]
["A1. Is there a national committee that works on contraceptive security? (Please select from the dropdown list.)\n(Committee should have some aspect of contraceptive security as part of its Terms of Reference, even if it is known by a different name, for example: Family Planning, Reproductive Health, Maternal Mortality, Essential Medicine Committee, etc.)  ",null,null,null,null,null,null,"No",{"$f":"A12","v":"A1. Is there a national committee that works on contraceptive security? (Please select from the dropdown list.)\n(Committee should have some aspect of contraceptive security as part of its Terms of Reference, even if it is known by a different name, for example: Family Planning, Reproductive Health, Maternal Mortality, Essential Medicine Committee, etc.)  "},null,null,null,null,null,null,null,null,null,null,null,null,null,null,null,"December"]
[null,"a. What is the name of the committee?",null,"N/A",null,null,null,null,null,null,{"$f":"B13","v":"a. What is the name of the committee?"},{"$f":"D13","v":"N/A"},null,null,{"$f":"D13","v":"N/A"}]
["A2. Are the following organizations represented on the committee?",null,null,"(Y/N \ndropdown)",null,null,null,null,null,null,{"$f":"A14","v":"A2. Are the following organizations represented on the committee?"},null,null,null,null,null,null,null,null,null,null,null,null,null,"Don't know"]
[null,"a. Social marketing",null,"N/A","If yes, specify name(s) of organizations",null,null,null,null,null,{"$f":"B15","v":"a. Social marketing"},null,null,null,null,null,{"$f":"F15","v":0}]
[null,"b. NGO (for example: service delivery, advocacy, Planned Parenthood affiliate, Marie Stopes affiliate, faith-based organizations, etc.)",null,"N/A","If yes, specify name(s) of organizations",null,null,null,null,null,"b. NGO (for example: service delivery, advocacy, Planned Parenthood affiliate, Marie Stopes affiliate, faith-based organizations, etc.)",null,null,null,null,null,0]
[null,"c. Commercial sector (for example: pharmacy associations, manufacturers, etc.)",null,"N/A","If yes, specify name(s) of organizations",null,null,null,null,null,"c. Commercial sector (for example: pharmacy associations, manufacturers, etc.)",null,null,null,null,null,0]
[null,"d. Donors",null,"N/A","If yes, specify name(s) of donors",null,null,null,null,null,"d. Donors",null,null,null,null,null,0]
[null,"e. UN agencies",null,"N/A","If yes, specify name(s) of agencies",null,null,null,null,null,"e. UN agencies",null,null,null,null,null,0]
[null,"f. Ministry of Health (for example: logistics, reproductive health, family planning, maternal and child health, HIV/AIDS, pharmacy units, etc.)",null,"N/A","If yes, specify name(s) of units",null,null,null,null,null,"f. Ministry of Health (for example: logistics, reproductive health, family planning, maternal and child health, HIV/AIDS, pharmacy units, etc.)",null,null,null,null,null,0]
[null,"g. Central Medical Store or Central Warehouse",null,"N/A","If yes, specify",null,null,null,null,null,"g. Central Medical Store or Central Warehouse",null,null,null,null,null,0]
[null,"h. Ministry of Finance or Ministry of Planning ",null,"N/A","If yes, specify",null,null,null,null,null,"h. Ministry of Finance or Ministry of Planning ",null,null,null,null,null,0]
[null,"i. Other (for example: partners)",null,"N/A","If yes, specify",null,null,null,null,null,"i. Other (for example: partners)",null,null,null,null,null,0]
["A3. How many times did the committee meet during the last year? (0, 1-2, 3-5, or 6+)  (Please select from the dropdown.)",null,null,null,null,null,null,"N/A",{"$f":"A24","v":"A3. How many times did the committee meet during the last year? (0, 1-2, 3-5, or 6+)  (Please select from the dropdown.)"}]
["A4. Does the committee have legal status?  (Please select from the dropdown.)                                  ",null,null,null,null,null,null,"N/A",{"$f":"A25","v":"A4. Does the committee have legal status?  (Please select from the dropdown.)                                  "}]
["A5. Is there a Contraceptive Security \"champion\"? (someone who consistently brings up and advocates for contraceptive supplies)",null,null,"No","If yes, specify person's organization",null,"Specify person's job title",null,null,null,{"$f":"A26","v":"A5. Is there a Contraceptive Security \"champion\"? (someone who consistently brings up and advocates for contraceptive supplies)"}]
["B. Finance and Procurement (Capital)"]
["B1. What is the timeline of the country's fiscal year?",null,null,"Beginning month",null,"January","Ending month","December",null,null,{"$f":"B28","v":0}]
["B2. What was the estimated dollar value of contraceptives needed to be procured for the public sector for the most recent complete fiscal year? (in USD currency)\n(for example, to cover the needs for the '09-'10 fiscal year)",null,null,null,null,null,"N/A",null,null,{"$f":"G29","v":"N/A"},null,null,{"$f":"E29","v":0},null,null,null,null,null,null,null,null,null,null,null,{"$f":"A29","v":"B2. What was the estimated dollar value of contraceptives needed to be procured for the public sector for the most recent complete fiscal year? (in USD currency)\n(for example, to cover the needs for the '09-'10 fiscal year)"}]
["B3. When was the last forecast/quantification conducted? (mm/yy)",null,null,null,"N/A - none have been conducted ","Who conducted it? (Specify organization.)","N/A",null,null,{"$f":"G30","v":"N/A"},null,null,{"$f":"E30","v":"N/A - none have been conducted "},null,null,null,null,null,null,null,null,null,null,null,{"$f":"A30","v":"B3. When was the last forecast/quantification conducted? (mm/yy)"}]
["B4. Is there a government budget line item for the procurement of contraceptives?  (Please select from the dropdown list.)",null,null,null,null,null,null,"No",{"$f":"A31","v":"B4. Is there a government budget line item for the procurement of contraceptives?  (Please select from the dropdown list.)"}]
["B5. Were government funds allocated for contraceptive procurement for the public sector in the most recent complete fiscal year? (This question refers to funds planned to be spent on contraceptives, whether or not they ended up being spent.) \n\n(Government funds include internally generated funds, basket funds, World Bank credits or loans, and other funds donors gave to the government for their use.) \n",null,null,null,null,null,null,"No",{"$f":"A32","v":"B5. Were government funds allocated for contraceptive procurement for the public sector in the most recent complete fiscal year? (This question refers to funds planned to be spent on contraceptives, whether or not they ended up being spent.) \n\n(Government funds include internally generated funds, basket funds, World Bank credits or loans, and other funds donors gave to the government for their use.) \n"}]
["B6. Please complete the table below regarding government allocations for contraceptive procurement.",null,null,null,null,null,null,null,null,null,null,null,null,null,null,null,null,null,null,null,null,null,null,{"$f":"A33","v":"B6. Please complete the table below regarding government allocations for contraceptive procurement."}]
[null,null,null,null,"Amount allocated \n(in USD)","Time period during which allocations were supposed to be spent \n(mm/yy-mm/yy)\n(should ideally be the most recent\ncomplete fiscal year ['09-'10])","Data source \n(for example: Ministry records)","Comments",null,null,{"$f":"A34","v":0}]
[null,"Government funds allocated for contraceptive procurement\n(funds originally designated for contraceptives, whether or not they ended up being spent on them)",null,null,0,"01/10-12/10",null,null,null,null,{"$f":"#REF!","v":{"$error":"#REF!"}}]
[]
["B7. Were government funds spent on contraceptive procurement for the public sector in the most recent complete fiscal year? \n(Government funds include internally generated funds, basket funds, World Bank credits or loans, and other funds donors gave to the government for their use.)",null,null,null,null,null,null,"No",{"$f":"A37","v":"B7. Were government funds spent on contraceptive procurement for the public sector in the most recent complete fiscal year? \n(Government funds include internally generated funds, basket funds, World Bank credits or loans, and other funds donors gave to the government for their use.)"}]
["B8. Please complete the table below to indicate government expenditures on contraceptive procurement, by source, in the most recent complete fiscal year. \n(This is how much was spent on contraceptive procurement (not what was allocated). How much of this spending was provided from each source?)",null,null,null,null,null,null,null,null,null,null,null,null,null,null,null,null,null,null,null,null,null,null,{"$f":"A38","v":"B8. Please complete the table below to indicate government expenditures on contraceptive procurement, by source, in the most recent complete fiscal year. \n(This is how much was spent on contraceptive procurement (not what was allocated). How much of this spending was provided from each source?)"}]
[null,"Source of government funds spent on contraceptive procurement for the public sector",null,"Was this source used?\n(Y/N)","Amount spent \n(in USD)","Time period (mm/yy-mm/yy)\n(should be the same for all sources of funds & ideally be the most recent\ncomplete fiscal year ['09-'10])","Data source \n(for example: Contraceptive Procurement Table, PipeLine, etc.)","Comments",null,null,{"$f":"A39","v":0}]
[null,"a. Internally generated funds spent on contraceptive procurement",null,"No",0,"01/10-12/10",null,null,null,null,{"$f":"B40","v":"a. Internally generated funds spent on contraceptive procurement"}]
[null,null,"i. Specify source(s) of internally generated funds spent (for example, from taxes or user fees)","N/A",null,null,null,null,null,null,{"$f":"C41","v":"i. Specify source(s) of internally generated funds spent (for example, from taxes or user fees)"},null,null,null,{"$f":"D41","v":"N/A"}]
[null,"b. Total of all other government funds spent on contraceptive procurement (basket funds, World Bank credits or loans, and other funds donors gave to the government [e.g., direct budget support])",null,"No",0,"01/10-12/10",null,null,null,null,{"$f":"B42","v":"b. Total of all other government funds spent on contraceptive procurement (basket funds, World Bank credits or loans, and other funds donors gave to the government [e.g., direct budget support])"}]
[null,null,"i. Specify source(s) of other government funds spent (for example: basket funding or specific donor)","N/A",null,null,null,null,null,null,{"$f":"C43","v":"i. Specify source(s) of other government funds spent (for example: basket funding or specific donor)"},null,null,null,{"$f":"D43","v":"N/A"}]
[null,"c. TOTAL government funds spent on contraceptive procurement\nThis will auto-calculate.  (It will sum a & b above.)",null,null,{"$f":"E40+E42","v":0},null,null,"The government of South Sudan (GOSS) has not procured contraceptives at all in the past.",null,null,{"$f":"B44","v":"c. TOTAL government funds spent on contraceptive procurement\nThis will auto-calculate.  (It will sum a & b above.)"}]
[null,null,null,null,null,null,null,null,null,null,{"$f":"A45","v":0}]
["B9. Please complete the table below to indicate donor expenditures on contraceptive procurement in the most recent complete fiscal year.\n",null,null,null,null,null,null,null,null,null,null,null,null,null,null,null,null,null,null,null,null,null,null,{"$f":"A46","v":"B9. Please complete the table below to indicate donor expenditures on contraceptive procurement in the most recent complete fiscal year.\n"}]
["\n","Source of donations and donor funds spent on contraceptive procurement for the public sector",null,"Was this a source?\n(Y/N)","Amount of money spent on these procurements \n(in USD)","Time period (mm/yy-mm/yy)\n(should be the same for all sources of funds & ideally be the most recent\ncomplete fiscal year ['09-'10])","Data source \n(for example:  Donor records, Contraceptive Procurement Table, PipeLine, RHInterchange, etc.","Comments",null,null,{"$f":"A47","v":"\n"}]
[null,"a. In-kind donations of contraceptives",null,"Don't know","Don't know","01/10-12/10",null,null,null,null,{"$f":"B48","v":"a. In-kind donations of contraceptives"}]
[null,null,"i. Specify source(s) of in-kind donations ","Don't know",null,null,null,null,null,null,{"$f":"C49","v":"i. Specify source(s) of in-kind donations "},null,null,null,{"$f":"D49","v":"Don't know"}]
[null,"b. Global Fund donations used to procure condoms",null,"Don't know","Don't know","01/10-12/10",null,null,null,null,{"$f":"B50","v":"b. Global Fund donations used to procure condoms"}]
[null,"c. Global Fund donations used to procure contraceptives besides condoms",null,"No",0,"01/10-12/10",null,null,null,null,{"$f":"B51","v":"c. Global Fund donations used to procure contraceptives besides condoms"}]
[null,"d. TOTAL value of in-kind donations and Global Fund donations spent on contraceptive procurement\nThis will auto-calculate.  (It will sum a-c above.)",null,null,"Don't know",null,null,null,null,null,{"$f":"B52","v":"d. TOTAL value of in-kind donations and Global Fund donations spent on contraceptive procurement\nThis will auto-calculate.  (It will sum a-c above.)"}]
[null,null,null,null,null,null,null,null,null,null,{"$f":"A53","v":0}]
["The answers to B10 and B11 should calculate automatically based on the information you provided. Please review the answers to ensure they make sense to you, and if you have additional information to add, please note it in the comments boxes.\n\nIf the answers do not calculate automatically, please provide any relevant information you may have in the comments boxes.\n",null,null,null,null,null,null,null,null,null,null,null,null,null,null,null,null,null,null,null,null,null,null,{"$f":"A54","v":"The answers to B10 and B11 should calculate automatically based on the information you provided. Please review the answers to ensure they make sense to you, and if you have additional information to add, please note it in the comments boxes.\n\nIf the answers do not calculate automatically, please provide any relevant information you may have in the comments boxes.\n"}]
["B10. Government share of funds spent on contraceptive procurement for the public sector - \nOf the total amount spent on contraceptives for the public sector in the most recent complete fiscal year (including government and donor funds), what percent was covered by government funds (including internally generated funds, basket funds, World Bank credits or loans, and other funds given to the government)? \n\nThis will auto-calculate. (It contains the following formula: Total government spending (Question B8c) / Grand total of all spending for public sector contraceptives from the government and donors (Questions B8c+B9d))",null,null,null,null,"Don't know",null,null,null,{"$f":"G55","v":0},null,null,null,null,null,null,null,{"$f":"A55","v":"B10. Government share of funds spent on contraceptive procurement for the public sector - \nOf the total amount spent on contraceptives for the public sector in the most recent complete fiscal year (including government and donor funds), what percent was covered by government funds (including internally generated funds, basket funds, World Bank credits or loans, and other funds given to the government)? \n\nThis will auto-calculate. (It contains the following formula: Total government spending (Question B8c) / Grand total of all spending for public sector contraceptives from the government and donors (Questions B8c+B9d))"}]
["B11. Total expenditures on public sector contraceptives as percent of amount that needed to be procured -\nOf the estimated value of the contraceptives needed to be procured for the public sector for the most recent complete fiscal year, what percent was provided by any source (whether government or donor)? \n\nThis will auto-calculate. (It contains the following formula: Grand total of all spending for public sector contraceptives from the government and donors (Questions B8c+B9d) / Value of estimated need for procurement (Question B2))",null,null,null,null,"Don't know",null,null,null,{"$f":"G56","v":0},null,null,null,null,null,null,null,{"$f":"A56","v":"B11. Total expenditures on public sector contraceptives as percent of amount that needed to be procured -\nOf the estimated value of the contraceptives needed to be procured for the public sector for the most recent complete fiscal year, what percent was provided by any source (whether government or donor)? \n\nThis will auto-calculate. (It contains the following formula: Grand total of all spending for public sector contraceptives from the government and donors (Questions B8c+B9d) / Value of estimated need for procurement (Question B2))"}]
["B12. If B11 did not calculate automatically, please answer the following question:\nWas there a funding gap for the public sector in the last complete fiscal year (e.g., 09-'10 fiscal year)?\n(Please select from the dropdown list.)",null,null,null,null,"Don't know",null,null,null,{"$f":"G57","v":0},null,null,null,null,null,null,null,{"$f":"A57","v":"B12. If B11 did not calculate automatically, please answer the following question:\nWas there a funding gap for the public sector in the last complete fiscal year (e.g., 09-'10 fiscal year)?\n(Please select from the dropdown list.)"}]
[null,null,null,null,null,null,null,null,null,null,{"$f":"A58","v":0}]
["B13. If the government financed any contraceptive procurement in the most recent complete fiscal year, which entity conducted the procurement(s)? (Please select from the dropdown.)",null,null,null,null,"N/A",null,null,null,null,null,null,null,null,null,null,{"$f":"F59","v":"N/A"},{"$f":"A59","v":"B13. If the government financed any contraceptive procurement in the most recent complete fiscal year, which entity conducted the procurement(s)? (Please select from the dropdown.)"}]
[null,"a. Specify entity",null,null,null,"N/A",null,null,null,null,null,null,{"$f":"E60","v":0},null,null,null,{"$f":"F60","v":"N/A"},{"$f":"B60","v":"a. Specify entity"}]
[null,null,"i. Is this a parastatal?",null,null,"N/A",null,null,null,null,null,null,null,null,null,null,{"$f":"F61","v":"N/A"},{"$f":"C61","v":"i. Is this a parastatal?"}]
["B14. Please note any additional comments about finance and procurement.\n",null,null,null,null,null,null,null,null,null,{"$f":"A62","v":"B14. Please note any additional comments about finance and procurement.\n"},null,null,null,{"$f":"D62","v":0}]
["C. Commodities"]
["C1. Are the following contraceptive methods offered through the commercial sector, public sector, NGOs, or social marketing? (Please indicate which methods are intended to be offered. This question is not asking whether the method is in stock.) \n(Please select from the dropdown list.)",null,null,null,null,null,null,null,null,null,null,null,null,null,null,null,null,null,null,null,null,null,null,{"$f":"A64","v":"C1. Are the following contraceptive methods offered through the commercial sector, public sector, NGOs, or social marketing? (Please indicate which methods are intended to be offered. This question is not asking whether the method is in stock.) \n(Please select from the dropdown list.)"}]
["Contraceptive Method",null,null,"Commercial Sector",null,"Public Sector","NGO","Social Marketing",null,null,{"$f":"A65","v":"Contraceptive Method"}]
[null,"a. Combined oral contraceptives (estrogen + progestin - for  example, LoFemenol, Microgynon)",null,"Don't know",null,"Don't know","Yes","No",null,null,{"$f":"B66","v":"a. Combined oral contraceptives (estrogen + progestin - for  example, LoFemenol, Microgynon)"}]
[null,"b. Progestin-only pills (for example, Ovrette, Microlut)",null,"Don't know",null,"Don't know","Yes","No",null,null,{"$f":"B67","v":"b. Progestin-only pills (for example, Ovrette, Microlut)"}]
[null,"c. Hormonal injections (for example, DepoProvera, Noristerat)",null,"Don't know",null,"Don't know","Yes","No",null,null,"c. Hormonal injections (for example, DepoProvera, Noristerat)"]
[null,"d. Hormonal implants (for example, Jadelle, Implanon)",null,"Don't know",null,"Don't know","No","No",null,null,"d. Hormonal implants (for example, Jadelle, Implanon)"]
[null,"e. Intrauterine devices (IUDs) (for example, Optima Copper T)",null,"Don't know",null,"Don't know","No","No",null,null,"e. Intrauterine devices (IUDs) (for example, Optima Copper T)"]
[null,"f. Male condoms",null,"Yes",null,"Yes","Yes","Yes",null,null,"f. Male condoms"]
[null,"g. Female condoms",null,"Don't know",null,"Don't know","Yes","No",null,null,"g. Female condoms"]
[null,"h. Emergency contraceptive pills (for example, Postinor)",null,"Don't know",null,"Don't know","No","No",null,null,"h. Emergency contraceptive pills (for example, Postinor)"]
[null,"i. Long-acting permanent method for males (vasectomy)",null,"No",null,"No","No","No",null,null,"i. Long-acting permanent method for males (vasectomy)"]
[null,"j. Long-acting permanent method for females (tubal ligation)",null,"No",null,"No","No","No",null,null,"j. Long-acting permanent method for females (tubal ligation)"]
[null,"k. CycleBeads",null,"Don't know",null,"Don't know","Yes","No",null,null,"k. CycleBeads"]
[null,"l. Other contraceptive methods - specify \n(Please provide the name of the other contraceptive(s) offered, by sector.)",null,null,null,null,null,null,null,null,"l. Other contraceptive methods - specify \n(Please provide the name of the other contraceptive(s) offered, by sector.)"]
["C2. Please note any comments about the commodities offered.",null,null,"There is no clear Government of South Sudan policy on long-lasting permanent methods. ",null,null,null,null,null,null,{"$f":"A78","v":"C2. Please note any comments about the commodities offered."},null,null,null,{"$f":"D78","v":"There is no clear Government of South Sudan policy on long-lasting permanent methods. "}]
["D. Policies (Commitment)"]
["D1. Is there a contraceptive security or reproductive health commodity security strategy or is contraceptive security explicitly included in a country strategy? (Please select from the dropdown list.)",null,null,null,null,null,null,"No",{"$f":"A80","v":"D1. Is there a contraceptive security or reproductive health commodity security strategy or is contraceptive security explicitly included in a country strategy? (Please select from the dropdown list.)"}]
["IF NO, SKIP TO QUESTION D2."]
[null,"Strategy name",null,"Years Covered (including strategy updates)",null,"Is the strategy formally approved by the Ministry?","Is the contraceptive security strategy being implemented?",null,null,{"$f":"G82","v":"Is the contraceptive security strategy being implemented?"},{"$f":"B82","v":"Strategy name"},null,{"$f":"E82","v":0},null,null,null,null,null,{"$f":"D82","v":"Years Covered (including strategy updates)"}]
[null,"a",null,null,null,null,null,null,null,{"$f":"G83","v":0},{"$f":"B83","v":"a"},null,{"$f":"E83","v":0},null,null,null,null,null,{"$f":"D83","v":0}]
["D2. Are any family planning commodities subject to duties, import taxes, or other fees?",null,null,null,null,"No",null,null,null,null,null,null,null,null,null,null,{"$f":"F84","v":"No"},{"$f":"A84","v":"D2. Are any family planning commodities subject to duties, import taxes, or other fees?"}]
[null,"a. If yes, for which sectors (public, NGO, social marketing, commercial)?",null,null,"N/A",null,null,null,null,null,null,null,{"$f":"E85","v":"N/A"},{"$f":"E85","v":"N/A"},null,null,null,{"$f":"B85","v":"a. If yes, for which sectors (public, NGO, social marketing, commercial)?"}]
[null,"b. If yes, how much are the duties, taxes, or fees?",null,null,"N/A",null,null,null,null,null,null,null,null,{"$f":"E86","v":"N/A"},null,null,null,{"$f":"B86","v":"b. If yes, how much are the duties, taxes, or fees?"}]
["D3. Are there policies that hinder the ability of the private sector (commercial sector, NGOs, or social marketing) to provide contraceptive methods (for example: price controls, distribution limitations, taxes/duties, advertising bans, etc.)?",null,null,null,null,null,null,"No",{"$f":"A87","v":"D3. Are there policies that hinder the ability of the private sector (commercial sector, NGOs, or social marketing) to provide contraceptive methods (for example: price controls, distribution limitations, taxes/duties, advertising bans, etc.)?"}]
[null,"a. If yes, describe the policies.",null,"N/A",null,null,null,null,null,null,{"$f":"B88","v":"a. If yes, describe the policies."},null,null,null,{"$f":"D88","v":"N/A"}]
["D4. Are there policies that enable the private sector (commercial sector, NGOs, or social marketing) to provide contraceptive methods?",null,null,null,null,null,null,"Yes",{"$f":"A89","v":"D4. Are there policies that enable the private sector (commercial sector, NGOs, or social marketing) to provide contraceptive methods?"}]
[null,"a. If yes, describe the policies.",null,"The family planning policy and the FP guidelines for service providers present Government of South Sudan support for family planning service delivery.",null,null,null,null,null,null,{"$f":"B90","v":"a. If yes, describe the policies."},null,null,null,{"$f":"D90","v":"The family planning policy and the FP guidelines for service providers present Government of South Sudan support for family planning service delivery."}]
["D5. Do policies or regulations exist that restrict who can sell or dispense particular contraceptive methods?\n",null,null,null,null,null,null,"No",{"$f":"A91","v":"D5. Do policies or regulations exist that restrict who can sell or dispense particular contraceptive methods?\n"}]
[null,"Please note any restrictions in the following table."]
[null,"Contraceptive Method(s)",null,null,"Describe any public sector restriction on who is allowed to sell or dispense the method",null,"Describe any private sector restriction on who is allowed to sell or dispense the method",null,null,{"$f":"G93","v":"Describe any private sector restriction on who is allowed to sell or dispense the method"},null,null,null,null,null,{"$f":"B93","v":"Contraceptive Method(s)"},null,null,null,null,{"$f":"E93","v":"Describe any public sector restriction on who is allowed to sell or dispense the method"}]
[null,"a",null,null,null,null,null,null,null,{"$f":"G94","v":0},null,null,{"$f":"E94","v":0},null,null,{"$f":"C94","v":0},null,null,null,null,{"$f":"E94","v":0}]
[null,"b",null,null,null,null,null,null,null,{"$f":"G95","v":0},null,null,{"$f":"E95","v":0},null,null,{"$f":"C95","v":0},null,null,null,null,{"$f":"E95","v":0}]
[null,"c",null,null,null,null,null,null,null,{"$f":"G96","v":0},null,null,{"$f":"E96","v":0},null,null,{"$f":"C96","v":0},null,null,null,null,{"$f":"E96","v":0}]
[null,null,null,null,null,null,null,null,null,null,{"$f":"C97","v":0}]
["D6. Does the country have laws, regulations, or policies that make it difficult for the following sub-populations to access effective family planning services?",null,null,"Y/N","If yes, describe laws/regulations/policies affecting access ",null,null,"Are the rules/policies implemented?",null,null,{"$f":"A98","v":"D6. Does the country have laws, regulations, or policies that make it difficult for the following sub-populations to access effective family planning services?"},null,null,null,null,null,null,null,null,null,null,{"$f":"E98","v":"If yes, describe laws/regulations/policies affecting access "}]
[null,"a. Unmarried people",null,"No",null,null,null,null,null,null,{"$f":"B99","v":"a. Unmarried people"},null,{"$f":"E99","v":0},null,null,null,null,null,null,null,null,{"$f":"E99","v":0}]
[null,"b. Young people",null,"No",null,null,null,null,null,null,{"$f":"B100","v":"b. Young people"},null,{"$f":"E100","v":0},null,null,null,null,null,null,null,null,{"$f":"E100","v":0}]
[null,"c. Other",null,"No",null,null,null,null,null,null,{"$f":"B101","v":"c. Other"},null,{"$f":"E101","v":0},null,null,null,null,null,null,null,null,{"$f":"E101","v":0}]
[null,null,null,null,null,null,null,null,null,null,{"$f":"C102","v":0}]
["D7. Are there charges* to the client in the public sector for family planning:\n*(This question refers to charges by policy, not under-the-table charges.)\n",null,null,null,null,null,null,null,null,null,null,null,null,null,null,null,null,null,null,null,null,null,null,{"$f":"A103","v":"D7. Are there charges* to the client in the public sector for family planning:\n*(This question refers to charges by policy, not under-the-table charges.)\n"}]
[null,"a. Services?",null,null,null,null,"No",null,null,{"$f":"G104","v":"No"},null,null,null,null,null,null,null,null,null,null,null,null,null,null,{"$f":"B104","v":"a. Services?"}]
[null,"b. Commodities?",null,null,null,null,"No",null,null,{"$f":"G105","v":"No"},null,null,null,null,null,null,null,null,null,null,null,null,null,null,{"$f":"B105","v":"b. Commodities?"}]
[null,"c. If yes, are there exemptions for people who cannot afford to pay?",null,null,null,null,"N/A",null,null,{"$f":"G106","v":"N/A"},null,null,null,null,null,null,null,null,null,null,null,null,null,null,{"$f":"B106","v":"c. If yes, are there exemptions for people who cannot afford to pay?"}]
[null,null,"i. If yes, describe the exemptions.","N/A",null,null,null,null,null,null,{"$f":"C107","v":"i. If yes, describe the exemptions."},null,null,null,{"$f":"D107","v":"N/A"}]
["D8. Are the following contraceptives included in the country's National Essential Medicine List (NEML) or other equivalent priority list?",null,null,null,null,null,null,null,null,null,null,null,null,null,null,null,null,null,null,null,null,null,null,{"$f":"A108","v":"D8. Are the following contraceptives included in the country's National Essential Medicine List (NEML) or other equivalent priority list?"}]
[null,"a. Combined oral contraceptives",null,null,null,null,"Yes",null,null,{"$f":"G109","v":"Yes"},null,null,null,null,null,null,null,null,null,null,null,null,null,null,{"$f":"B109","v":"a. Combined oral contraceptives"}]
[null,"b. Progestin-only pills",null,null,null,null,"Yes",null,null,"Yes",null,null,null,null,null,null,null,null,null,null,null,null,null,null,"b. Progestin-only pills"]
[null,"c. Hormonal injections",null,null,null,null,"Yes",null,null,"Yes",null,null,null,null,null,null,null,null,null,null,null,null,null,null,"c. Hormonal injections"]
[null,"d. Hormonal implants",null,null,null,null,"Yes",null,null,"Yes",null,null,null,null,null,null,null,null,null,null,null,null,null,null,"d. Hormonal implants"]
[null,"e. Intrauterine devices (IUDs)",null,null,null,null,"Yes",null,null,"Yes",null,null,null,null,null,null,null,null,null,null,null,null,null,null,"e. Intrauterine devices (IUDs)"]
[null,"f. Male condoms",null,null,null,null,"Yes",null,null,"Yes",null,null,null,null,null,null,null,null,null,null,null,null,null,null,"f. Male condoms"]
[null,"g. Female condoms",null,null,null,null,"Yes",null,null,"Yes",null,null,null,null,null,null,null,null,null,null,null,null,null,null,"g. Female condoms"]
[null,"h. Emergency contraceptive pills",null,null,null,null,"Yes",null,null,"Yes",null,null,null,null,null,null,null,null,null,null,null,null,null,null,"h. Emergency contraceptive pills"]
[null,"i. CycleBeads",null,null,null,null,"No",null,null,{"$f":"G117","v":"No"},null,null,null,null,null,null,null,null,null,null,null,null,null,null,{"$f":"B117","v":"i. CycleBeads"}]
[null,"j. Any other contraceptive(s)?",null,null,null,null,"No",null,null,"No",null,null,null,null,null,null,null,null,null,null,null,null,null,null,"j. Any other contraceptive(s)?"]
[null,null,"i. Name of other contraceptive(s) on the list(s)",null,null,"N/A",null,null,null,0,null,null,null,null,null,null,null,{"$f":"B119","v":0}]
["D9. What year(s) is the list(s) from?",null,null,null,null,2006,null,null,null,0,null,null,null,null,null,null,null,{"$f":"B120","v":0}]
["D10. Name of the list(s)\n\n\n",null,null,"Essential medicines list for South Sudan",null,null,null,null,null,null,{"$f":"A121","v":"D10. Name of the list(s)\n\n\n"},null,null,null,{"$f":"D121","v":"Essential medicines list for South Sudan"}]
["D11. Notes about the list(s)\n\n\n",null,null,null,null,null,null,null,null,null,{"$f":"A122","v":"D11. Notes about the list(s)\n\n\n"},null,null,null,{"$f":"D122","v":0}]
["D12.  Information on country's Poverty Reduction Strategy Paper (PRSP)\n",null,null,null,null,null,null,null,null,null,null,null,null,null,null,null,null,null,null,null,null,null,null,{"$f":"A123","v":"D12.  Information on country's Poverty Reduction Strategy Paper (PRSP)\n"}]
[null,"a. What year is the Poverty Reduction Strategy Paper from? (most recent actual PRSP on IMF's site [not progress or summary report])",null,null,null,"N/A",null,null,null,{"$f":"G124","v":0},null,null,null,null,null,null,null,{"$f":"B124","v":"a. What year is the Poverty Reduction Strategy Paper from? (most recent actual PRSP on IMF's site [not progress or summary report])"}]
[null,"b. Is family planning or reproductive health a priority in the PRSP?",null,null,null,null,"N/A",null,null,{"$f":"G125","v":"N/A"},null,null,null,null,null,null,null,null,null,null,null,null,null,null,{"$f":"B125","v":"b. Is family planning or reproductive health a priority in the PRSP?"}]
[null,"c. Is contraceptive security included in the PRSP?",null,null,null,null,"N/A",null,null,{"$f":"G126","v":"N/A"},null,null,null,null,null,null,null,null,null,null,null,null,null,null,{"$f":"B126","v":"c. Is contraceptive security included in the PRSP?"}]
[null,"d. Is contraceptive prevalence rate (CPR) included as an indicator in the PRSP?",null,null,null,null,"N/A",null,null,{"$f":"G127","v":"N/A"},null,null,null,null,null,null,null,null,null,null,null,null,null,null,{"$f":"B127","v":"d. Is contraceptive prevalence rate (CPR) included as an indicator in the PRSP?"}]
[null,"e. Are contraceptive supply indicators included in the PRSP?",null,null,null,null,"N/A",null,null,{"$f":"G128","v":"N/A"},null,null,null,null,null,null,null,null,null,null,null,null,null,null,{"$f":"B128","v":"e. Are contraceptive supply indicators included in the PRSP?"}]
["\n\n\n","f. Notes about the Poverty Reduction Strategy Paper",null,"Document not available on IMF's website",null,null,null,null,null,null,{"$f":"B129","v":"f. Notes about the Poverty Reduction Strategy Paper"},null,null,null,{"$f":"D129","v":"Document not available on IMF's website"}]
["E. Supply Chain (Capacity)"]
["E1. Have stockouts occurred for any contraceptive at the central* level in the last 12 months?  \n*(The central level refers to the central level warehouse for the public sector.)",null,null,null,null,null,"N/A",null,null,{"$f":"G131","v":"N/A"},null,null,null,null,null,null,null,null,null,null,null,null,null,null,{"$f":"A131","v":"E1. Have stockouts occurred for any contraceptive at the central* level in the last 12 months?  \n*(The central level refers to the central level warehouse for the public sector.)"}]
["E2. In the last 12 months, has there ever been a stockout at the central level of any of the contraceptives offered in public sector facilities? (If a method is not intended to be offered in public sector facilities, please indicate that stockouts are not applicable (choose \"N/A\" from the dropdown list).)",null,null,null,null,null,null,null,null,null,null,null,null,null,null,null,null,null,null,null,null,null,null,{"$f":"A132","v":"E2. In the last 12 months, has there ever been a stockout at the central level of any of the contraceptives offered in public sector facilities? (If a method is not intended to be offered in public sector facilities, please indicate that stockouts are not applicable (choose \"N/A\" from the dropdown list).)"}]
[null,"a. Combined oral contraceptives",null,null,null,null,"N/A",null,null,{"$f":"G133","v":"N/A"},null,null,null,null,null,null,null,null,null,null,null,null,null,null,{"$f":"B133","v":"a. Combined oral contraceptives"}]
[null,"b. Progestin-only pills",null,null,null,null,"N/A",null,null,"N/A",null,null,null,null,null,null,null,null,null,null,null,null,null,null,"b. Progestin-only pills"]
[null,"c. Hormonal injections",null,null,null,null,"N/A",null,null,"N/A",null,null,null,null,null,null,null,null,null,null,null,null,null,null,"c. Hormonal injections"]
[null,"d. Hormonal implants",null,null,null,null,"N/A",null,null,"N/A",null,null,null,null,null,null,null,null,null,null,null,null,null,null,"d. Hormonal implants"]
[null,"e. Intrauterine devices (IUDs)",null,null,null,null,"N/A",null,null,"N/A",null,null,null,null,null,null,null,null,null,null,null,null,null,null,"e. Intrauterine devices (IUDs)"]
[null,"f. Male condoms",null,null,null,null,"N/A",null,null,"N/A",null,null,null,null,null,null,null,null,null,null,null,null,null,null,"f. Male condoms"]
[null,"g. Female condoms",null,null,null,null,"N/A",null,null,"N/A",null,null,null,null,null,null,null,null,null,null,null,null,null,null,"g. Female condoms"]
[null,"h. Emergency contraceptive pills",null,null,null,null,"N/A",null,null,"N/A",null,null,null,null,null,null,null,null,null,null,null,null,null,null,"h. Emergency contraceptive pills"]
[null,"i. CycleBeads",null,null,null,null,"N/A",null,null,"N/A",null,null,null,null,null,null,null,null,null,null,null,null,null,null,"i. CycleBeads"]
[null,"j. Time period\n(mm/yy - mm/yy) (for example, 1/10-12/10) ",null,null,null,"N/A",null,null,null,null,null,null,null,null,null,null,{"$f":"F142","v":"N/A"},{"$f":"B142","v":"j. Time period\n(mm/yy - mm/yy) (for example, 1/10-12/10) "}]
[null,"k. Data source\n(for example: Procurement Planning and Monitoring Report, Logistics Management Information System, periodic physical inventory, warehouse reports)",null,null,null,"N/A",null,null,null,null,null,null,null,null,null,null,{"$f":"F143","v":"N/A"},{"$f":"B143","v":"k. Data source\n(for example: Procurement Planning and Monitoring Report, Logistics Management Information System, periodic physical inventory, warehouse reports)"}]
["E3. Are stockouts a large problem in your country at the following levels? (i.e., Are they common or do they tend to last for a long time?)\n\n"]
[null,"a. service delivery point level (i.e., public sector health facilities)",null,null,null,null,"Don't know",null,null,{"$f":"G145","v":"Don't know"},null,null,null,null,null,null,null,null,null,null,null,null,null,null,{"$f":"B145","v":"a. service delivery point level (i.e., public sector health facilities)"}]
[null,"b. central level (i.e., central level warehouse for the public sector)",null,null,null,null,"N/A",null,null,{"$f":"G146","v":"N/A"},null,null,null,null,null,null,null,null,null,null,null,null,null,null,{"$f":"B146","v":"b. central level (i.e., central level warehouse for the public sector)"}]
["F. Please note any overall comments about challenges and/or successes with contraceptive security in your country.\n\n",null,null,"There is no line item in the government health budget for contraceptives, thus the government does not procure contraceptives. ",null,null,null,null,null,null,{"$f":"A147","v":"F. Please note any overall comments about challenges and/or successes with contraceptive security in your country.\n\n"},null,null,null,{"$f":"D147","v":"There is no line item in the government health budget for contraceptives, thus the government does not procure contraceptives. "}]

{"sheet":"Tanzania 2011","index":39,"n_rows":147,"n_cols":25,"rows_kept":147,"cut":false,"hidden":false,"merged":[[8,0,8,7],[147,0,147,7],[148,0,150,7],[145,1,145,5],[145,6,145,7],[146,0,146,2],[146,3,146,7],[141,1,141,4],[141,5,141,7],[142,1,142,4],[142,5,142,7],[143,0,143,7],[144,1,144,5],[144,6,144,7],[138,1,138,5],[138,6,138,7],[139,1,139,5],[139,6,139,7],[140,1,140,5],[131,0,131,7],[132,1,132,5],[132,6,132,7],[133,1,133,5],[133,6,133,7],[134,1,134,5],[134,6,134,7],[140,6,140,7],[135,1,135,5],[135,6,135,7],[136,1,136,5],[136,6,136,7],[137,1,137,5],[137,6,137,7],[120,0,120,2],[120,3,120,7],[121,0,121,2],[121,3,121,7],[129,0,129,6],[130,0,130,5],[130,6,130,7],[122,0,122,7],[123,1,123,4],[123,5,123,7],[115,1,115,5],[115,6,115,7],[116,1,116,5],[116,6,116,7],[117,1,117,5],[117,6,117,7],[118,2,118,4],[118,5,118,7],[119,0,119,4],[119,5,119,7],[110,1,110,5],[110,6,110,7],[111,1,111,5],[111,6,111,7],[112,1,112,5],[112,6,112,7],[113,1,113,5],[113,6,113,7],[114,1,114,5],[114,6,114,7],[104,1,104,5],[104,6,104,7],[105,1,105,5],[105,6,105,7],[106,3,106,7],[107,0,107,7],[108,1,108,5],[108,6,108,7],[109,1,109,5],[109,6,109,7],[98,1,98,2],[98,4,98,6],[99,1,99,2],[99,4,99,6],[100,1,100,2],[100,4,100,6],[101,0,101,7],[102,0,102,7],[103,1,103,5],[103,6,103,7],[94,2,94,3],[94,4,94,5],[94,6,94,7],[95,2,95,3],[95,4,95,5],[95,6,95,7],[96,0,96,7],[97,0,97,2],[97,4,97,6],[88,0,88,6],[89,1,89,2],[89,3,89,7],[90,0,90,6],[91,1,91,2],[92,1,92,3],[92,4,92,5],[92,6,92,7],[93,2,93,3],[93,4,93,5],[93,6,93,7],[83,0,83,4],[83,5,83,7],[84,1,84,3],[84,4,84,7],[85,1,85,3],[85,4,85,7],[86,0,86,6],[87,1,87,2],[87,3,87,7],[77,0,77,2],[77,3,77,7],[78,0,78,6],[79,0,79,6],[80,0,80,2],[81,0,82,0],[81,1,81,2],[81,3,81,4],[81,6,81,7],[82,3,82,4],[82,6,82,7],[72,1,72,2],[72,3,72,4],[73,1,73,2],[73,3,73,4],[74,1,74,2],[74,3,74,4],[75,1,75,2],[75,3,75,4],[76,1,76,2],[76,3,76,4],[67,1,67,2],[67,3,67,4],[68,1,68,2],[68,3,68,4],[69,1,69,2],[69,3,69,4],[70,1,70,2],[70,3,70,4],[71,1,71,2],[71,3,71,4],[61,0,61,2],[61,3,61,7],[62,0,62,6],[63,0,63,7],[64,0,64,2],[64,3,64,4],[65,1,65,2],[65,3,65,4],[66,1,66,2],[66,3,66,4],[55,0,55,4],[55,6,55,7],[56,0,56,4],[56,6,56,7],[58,0,58,4],[58,5,58,7],[59,1,59,4],[59,5,59,7],[60,2,60,4],[60,5,60,7],[41,1,41,2],[42,3,42,7],[43,1,43,2],[51,1,51,2],[53,0,53,7],[54,0,54,4],[54,6,54,7],[45,0,45,7],[46,1,46,2],[47,1,47,2],[48,3,48,7],[49,1,49,2],[50,1,50,2],[32,0,32,7],[33,1,33,3],[34,1,34,3],[35,0,35,7],[36,0,36,6],[37,0,37,7],[38,1,38,2],[39,1,39,2],[40,3,40,7],[26,0,26,6],[27,0,27,2],[27,3,27,4],[28,0,28,5],[28,6,28,7],[29,0,29,3],[29,6,29,7],[30,0,30,6],[31,0,31,6],[20,1,20,2],[20,5,20,7],[21,1,21,2],[21,5,21,7],[22,1,22,2],[22,5,22,7],[23,0,23,6],[24,0,24,6],[25,0,25,2],[15,1,15,2],[15,5,15,7],[16,1,16,2],[16,5,16,7],[17,1,17,2],[17,5,17,7],[18,1,18,2],[18,5,18,7],[19,1,19,2],[19,5,19,7],[9,0,9,7],[10,0,10,6],[11,0,11,6],[12,1,12,2],[12,3,12,7],[13,0,13,2],[13,3,13,7],[14,1,14,2],[14,5,14,7],[7,0,7,2],[7,3,7,5],[7,6,7,7],[0,0,0,7],[1,0,1,2],[1,3,1,4],[2,0,2,7],[3,3,3,4],[3,5,3,7],[4,0,4,2],[5,0,5,2],[127,1,127,5],[127,6,127,7],[128,1,128,2],[128,3,128,7],[124,1,124,5],[124,6,124,7],[125,1,125,5],[125,6,125,7],[126,1,126,5],[126,6,126,7]]}
[null,null,null,null,null,null,null,null,"Columns I-Y are meant to be hidden. They exist because they allow for the dropdown list options. They also allow for merged cells to autofit properly in terms of row height. This should work if all columns remain at their correct widths.","g-h",null,"a-e merged","E-F merged","e-h","0 times",null,null,"The government (e.g., Central Medical Stores, MOH logistics unit, MOH procurement unit)",null,null,null,null,"Yes","a-h","January"]
[null,null,null,null,null,null,null,null,null,null,"A-c",null,null,null,"1-2 times","b-d merged",null,"Third-party agent (e.g., UNFPA, Crown Agents)","d-e merged","d-f merged","e-f merged","e-g merged","No",null,"February"]
[null,null,null,null,null,null,null,null,null,null,null,null,null,null,"3-5 times",null,null,"The government and a third-party agent",null,null,null,null,null,null,"March"]
[null,null,null,null,null,null,null,null,null,null,null,null,null,null,"6 or more times",null,null,"Other",null,null,null,null,"N/A",null,"April"]
["To jump to the Introduction sheet, click here.",null,null,null,null,null,null,null,null,null,null,null,null,null,null,null,null,null,null,null,null,null,"Don't know",null,"May"]
[null,null,null,null,null,null,null,null,null,null,null,null,null,null,"N/A",null,null,"N/A",null,null,null,null,null,null,"June"]
["Contraceptive Security (CS) Indicators 2011 Data ",null,null,null,null,null,null,null,null,null,null,null,null,null,"Don't know",null,null,"Don't know",null,null,null,null,null,null,"July"]
["Country: Tanzania",null,null,null,null,null,null,null,null,{"$f":"G8","v":0},{"$f":"A8","v":"Country: Tanzania"},null,null,null,null,"or c-d",null,null,null,{"$f":"D8","v":0},null,null,null,null,"August"]
["The CS Indicators are presented in the following sections:\n\n               A. leadership & cooordination               B. finance & procurement               C. commodities               D. policies               E. supply chain",null,null,null,null,null,null,null,null,{"$f":"G9","v":0},{"$f":"A9","v":"The CS Indicators are presented in the following sections:\n\n               A. leadership & cooordination               B. finance & procurement               C. commodities               D. policies               E. supply chain"},null,null,null,"d-h",null,"f-h merged",null,{"$f":"D9","v":0},null,null,null,null,{"$f":"A9","v":"The CS Indicators are presented in the following sections:\n\n               A. leadership & cooordination               B. finance & procurement               C. commodities               D. policies               E. supply chain"},"September"]
["\nNotes:\n  -  Respondents' answers are indicated in the white spaces. \n  -  N/A = not applicable. Don't know = the respondent either indicated they did not know or left the answer blank.\n  -  Some questions required respondents to choose from a dropdown list of options; in these cases the dropdown arrow will \n     appear when you click on the cell. \n  -  There may be a few inserted comments. (If you cannot already see them, click on Review tab - Comments group - Show All Comments in newer \n       versions of Excel or View - Comments in older versions of Excel.)\n  -  If the answer is cut off, you can either manually adjust the row height or autofit the row height in order to see the whole \n     response. (To autofit the row height, select the answer(s) and go to Home tab - Cells group - Format - Autofit Row Height in newer versions of Excel or \n      Format - Row - Autofit in older versions of Excel.)\n",null,null,null,null,null,null,null,"a-g",null,null,null,null,null,null,null,null,"a-e merged",null,null,null,null,null,{"$f":"A10","v":"\nNotes:\n  -  Respondents' answers are indicated in the white spaces. \n  -  N/A = not applicable. Don't know = the respondent either indicated they did not know or left the answer blank.\n  -  Some questions required respondents to choose from a dropdown list of options; in these cases the dropdown arrow will \n     appear when you click on the cell. \n  -  There may be a few inserted comments. (If you cannot already see them, click on Review tab - Comments group - Show All Comments in newer \n       versions of Excel or View - Comments in older versions of Excel.)\n  -  If the answer is cut off, you can either manually adjust the row height or autofit the row height in order to see the whole \n     response. (To autofit the row height, select the answer(s) and go to Home tab - Cells group - Format - Autofit Row Height in newer versions of Excel or \n      Format - Row - Autofit in older versions of Excel.)\n"},"October"]
["A. Leadership and Coordination",null,null,null,null,null,null,null,null,null,null,null,null,null,null,null,null,null,null,null,null,null,null,null,"November"]
["A1. Is there a national committee that works on contraceptive security? (Please select from the dropdown list.)\n(Committee should have some aspect of contraceptive security as part of its Terms of Reference, even if it is known by a different name, for example: Family Planning, Reproductive Health, Maternal Mortality, Essential Medicine Committee, etc.)  ",null,null,null,null,null,null,"Yes",{"$f":"A12","v":"A1. Is there a national committee that works on contraceptive security? (Please select from the dropdown list.)\n(Committee should have some aspect of contraceptive security as part of its Terms of Reference, even if it is known by a different name, for example: Family Planning, Reproductive Health, Maternal Mortality, Essential Medicine Committee, etc.)  "},null,null,null,null,null,null,null,null,null,null,null,null,null,null,null,"December"]
[null,"a. What is the name of the committee?",null,"National Contraceptive Committee",null,null,null,null,null,null,{"$f":"B13","v":"a. What is the name of the committee?"},{"$f":"D13","v":"National Contraceptive Committee"},null,null,{"$f":"D13","v":"National Contraceptive Committee"}]
["A2. Are the following organizations represented on the committee?",null,null,"(Y/N \ndropdown)",null,null,null,null,null,null,{"$f":"A14","v":"A2. Are the following organizations represented on the committee?"},null,null,null,null,null,null,null,null,null,null,null,null,null,"Don't know"]
[null,"a. Social marketing",null,"Yes","If yes, specify name(s) of organizations","Tanzania Marketing and Communications for AIDS, Reproductive Health and Child Survival (T-MARC) project, Population Services International (PSI)",null,null,null,null,{"$f":"B15","v":"a. Social marketing"},null,null,null,null,null,{"$f":"F15","v":"Tanzania Marketing and Communications for AIDS, Reproductive Health and Child Survival (T-MARC) project, Population Services International (PSI)"}]
[null,"b. NGO (for example: service delivery, advocacy, Planned Parenthood affiliate, Marie Stopes affiliate, faith-based organizations, etc.)",null,"Yes","If yes, specify name(s) of organizations","John Snow, Inc. (JSI), EngenderHealth, ChamaCha Uzazi na Malezi Bora Tanzania (UMATI) - IPPF affiliate, Marie Stopes, Pathfinder",null,null,null,null,"b. NGO (for example: service delivery, advocacy, Planned Parenthood affiliate, Marie Stopes affiliate, faith-based organizations, etc.)",null,null,null,null,null,"John Snow, Inc. (JSI), EngenderHealth, ChamaCha Uzazi na Malezi Bora Tanzania (UMATI) - IPPF affiliate, Marie Stopes, Pathfinder"]
[null,"c. Commercial sector (for example: pharmacy associations, manufacturers, etc.)",null,"Yes","If yes, specify name(s) of organizations","World Wide Movers (Agility's local rep)",null,null,null,null,"c. Commercial sector (for example: pharmacy associations, manufacturers, etc.)",null,null,null,null,null,"World Wide Movers (Agility's local rep)"]
[null,"d. Donors",null,"Yes","If yes, specify name(s) of donors","USAID, DFID",null,null,null,null,"d. Donors",null,null,null,null,null,"USAID, DFID"]
[null,"e. UN agencies",null,"Yes","If yes, specify name(s) of agencies","UNFPA",null,null,null,null,"e. UN agencies",null,null,null,null,null,"UNFPA"]
[null,"f. Ministry of Health (for example: logistics, reproductive health, family planning, maternal and child health, HIV/AIDS, pharmacy units, etc.)",null,"Yes","If yes, specify name(s) of units","Reproductive and Child Health Service (RCHS), National AIDS Control Programme (NACP)",null,null,null,null,"f. Ministry of Health (for example: logistics, reproductive health, family planning, maternal and child health, HIV/AIDS, pharmacy units, etc.)",null,null,null,null,null,"Reproductive and Child Health Service (RCHS), National AIDS Control Programme (NACP)"]
[null,"g. Central Medical Store or Central Warehouse",null,"Yes","If yes, specify","Medical Stores Department (MSD)",null,null,null,null,"g. Central Medical Store or Central Warehouse",null,null,null,null,null,"Medical Stores Department (MSD)"]
[null,"h. Ministry of Finance or Ministry of Planning ",null,"No","If yes, specify",null,null,null,null,null,"h. Ministry of Finance or Ministry of Planning ",null,null,null,null,null,0]
[null,"i. Other (for example: partners)",null,null,"If yes, specify",null,null,null,null,null,"i. Other (for example: partners)",null,null,null,null,null,0]
["A3. How many times did the committee meet during the last year? (0, 1-2, 3-5, or 6+)  (Please select from the dropdown.)",null,null,null,null,null,null,"1-2 times",{"$f":"A24","v":"A3. How many times did the committee meet during the last year? (0, 1-2, 3-5, or 6+)  (Please select from the dropdown.)"}]
["A4. Does the committee have legal status?  (Please select from the dropdown.)                                  ",null,null,null,null,null,null,"No",{"$f":"A25","v":"A4. Does the committee have legal status?  (Please select from the dropdown.)                                  "}]
["A5. Is there a Contraceptive Security \"champion\"? (someone who consistently brings up and advocates for contraceptive supplies)",null,null,"Yes","If yes, specify person's organization","Don't know","Specify person's job title","Don't know",null,null,{"$f":"A26","v":"A5. Is there a Contraceptive Security \"champion\"? (someone who consistently brings up and advocates for contraceptive supplies)"}]
["B. Finance and Procurement (Capital)"]
["B1. What is the timeline of the country's fiscal year?",null,null,"Beginning month",null,"July","Ending month","June",null,null,{"$f":"B28","v":0}]
["B2. What was the estimated dollar value of contraceptives needed to be procured for the public sector for the most recent complete fiscal year? (in USD currency)\n(for example, to cover the needs for the '09-'10 fiscal year)",null,null,null,null,null,18748591,null,null,{"$f":"G29","v":18748591},null,null,{"$f":"E29","v":0},null,null,null,null,null,null,null,null,null,null,null,{"$f":"A29","v":"B2. What was the estimated dollar value of contraceptives needed to be procured for the public sector for the most recent complete fiscal year? (in USD currency)\n(for example, to cover the needs for the '09-'10 fiscal year)"}]
["B3. When was the last forecast/quantification conducted? (mm/yy)",null,null,null,"03/11","Who conducted it? (Specify organization.)","JSI and Reproductive and Child Health Service",null,null,{"$f":"G30","v":"JSI and Reproductive and Child Health Service"},null,null,{"$f":"E30","v":"03/11"},null,null,null,null,null,null,null,null,null,null,null,{"$f":"A30","v":"B3. When was the last forecast/quantification conducted? (mm/yy)"}]
["B4. Is there a government budget line item for the procurement of contraceptives?  (Please select from the dropdown list.)",null,null,null,null,null,null,"Yes",{"$f":"A31","v":"B4. Is there a government budget line item for the procurement of contraceptives?  (Please select from the dropdown list.)"}]
["B5. Were government funds allocated for contraceptive procurement for the public sector in the most recent complete fiscal year? (This question refers to funds planned to be spent on contraceptives, whether or not they ended up being spent.) \n\n(Government funds include internally generated funds, basket funds, World Bank credits or loans, and other funds donors gave to the government for their use.) \n",null,null,null,null,null,null,"Yes",{"$f":"A32","v":"B5. Were government funds allocated for contraceptive procurement for the public sector in the most recent complete fiscal year? (This question refers to funds planned to be spent on contraceptives, whether or not they ended up being spent.) \n\n(Government funds include internally generated funds, basket funds, World Bank credits or loans, and other funds donors gave to the government for their use.) \n"}]
["B6. Please complete the table below regarding government allocations for contraceptive procurement.",null,null,null,null,null,null,null,null,null,null,null,null,null,null,null,null,null,null,null,null,null,null,{"$f":"A33","v":"B6. Please complete the table below regarding government allocations for contraceptive procurement."}]
[null,null,null,null,"Amount allocated \n(in USD)","Time period during which allocations were supposed to be spent \n(mm/yy-mm/yy)\n(should ideally be the most recent\ncomplete fiscal year ['09-'10])","Data source \n(for example: Ministry records)","Comments",null,null,{"$f":"A34","v":0}]
[null,"Government funds allocated for contraceptive procurement\n(funds originally designated for contraceptives, whether or not they ended up being spent on them)",null,null,2333333,"07/09-06/10","Ministry of Health (RCHS)",null,null,null,{"$f":"#REF!","v":{"$error":"#REF!"}}]
[]
["B7. Were government funds spent on contraceptive procurement for the public sector in the most recent complete fiscal year? \n(Government funds include internally generated funds, basket funds, World Bank credits or loans, and other funds donors gave to the government for their use.)",null,null,null,null,null,null,"Yes",{"$f":"A37","v":"B7. Were government funds spent on contraceptive procurement for the public sector in the most recent complete fiscal year? \n(Government funds include internally generated funds, basket funds, World Bank credits or loans, and other funds donors gave to the government for their use.)"}]
["B8. Please complete the table below to indicate government expenditures on contraceptive procurement, by source, in the most recent complete fiscal year. \n(This is how much was spent on contraceptive procurement (not what was allocated). How much of this spending was provided from each source?)",null,null,null,null,null,null,null,null,null,null,null,null,null,null,null,null,null,null,null,null,null,null,{"$f":"A38","v":"B8. Please complete the table below to indicate government expenditures on contraceptive procurement, by source, in the most recent complete fiscal year. \n(This is how much was spent on contraceptive procurement (not what was allocated). How much of this spending was provided from each source?)"}]
[null,"Source of government funds spent on contraceptive procurement for the public sector",null,"Was this source used?\n(Y/N)","Amount spent \n(in USD)","Time period (mm/yy-mm/yy)\n(should be the same for all sources of funds & ideally be the most recent\ncomplete fiscal year ['09-'10])","Data source \n(for example: Contraceptive Procurement Table, PipeLine, etc.)","Comments",null,null,{"$f":"A39","v":0}]
[null,"a. Internally generated funds spent on contraceptive procurement",null,"Yes",1800000,"07/09-06/10","RCHS",null,null,null,{"$f":"B40","v":"a. Internally generated funds spent on contraceptive procurement"}]
[null,null,"i. Specify source(s) of internally generated funds spent (for example, from taxes or user fees)","National treasury",null,null,null,null,null,null,{"$f":"C41","v":"i. Specify source(s) of internally generated funds spent (for example, from taxes or user fees)"},null,null,null,{"$f":"D41","v":"National treasury"}]
[null,"b. Total of all other government funds spent on contraceptive procurement (basket funds, World Bank credits or loans, and other funds donors gave to the government [e.g., direct budget support])",null,"Yes",5000000,"07/09-06/10","RCHS","None of the products bought from this have arrived yet (as of March 2011).",null,null,{"$f":"B42","v":"b. Total of all other government funds spent on contraceptive procurement (basket funds, World Bank credits or loans, and other funds donors gave to the government [e.g., direct budget support])"}]
[null,null,"i. Specify source(s) of other government funds spent (for example: basket funding or specific donor)","Basket",null,null,null,null,null,null,{"$f":"C43","v":"i. Specify source(s) of other government funds spent (for example: basket funding or specific donor)"},null,null,null,{"$f":"D43","v":"Basket"}]
[null,"c. TOTAL government funds spent on contraceptive procurement\nThis will auto-calculate.  (It will sum a & b above.)",null,null,{"$f":"E40+E42","v":6800000},null,null,null,null,null,{"$f":"B44","v":"c. TOTAL government funds spent on contraceptive procurement\nThis will auto-calculate.  (It will sum a & b above.)"}]
[null,null,null,null,null,null,null,null,null,null,{"$f":"A45","v":0}]
["B9. Please complete the table below to indicate donor expenditures on contraceptive procurement in the most recent complete fiscal year.\n",null,null,null,null,null,null,null,null,null,null,null,null,null,null,null,null,null,null,null,null,null,null,{"$f":"A46","v":"B9. Please complete the table below to indicate donor expenditures on contraceptive procurement in the most recent complete fiscal year.\n"}]
["\n","Source of donations and donor funds spent on contraceptive procurement for the public sector",null,"Was this a source?\n(Y/N)","Amount of money spent on these procurements \n(in USD)","Time period (mm/yy-mm/yy)\n(should be the same for all sources of funds & ideally be the most recent\ncomplete fiscal year ['09-'10])","Data source \n(for example:  Donor records, Contraceptive Procurement Table, PipeLine, RHInterchange, etc.","Comments",null,null,{"$f":"A47","v":"\n"}]
[null,"a. In-kind donations of contraceptives",null,"Yes",4355176,"07/09-06/10","PipeLine",null,null,null,{"$f":"B48","v":"a. In-kind donations of contraceptives"}]
[null,null,"i. Specify source(s) of in-kind donations ","USAID, UNFPA",null,null,null,null,null,null,{"$f":"C49","v":"i. Specify source(s) of in-kind donations "},null,null,null,{"$f":"D49","v":"USAID, UNFPA"}]
[null,"b. Global Fund donations used to procure condoms",null,"Yes",1211960,"07/09-06/10","PipeLine",null,null,null,{"$f":"B50","v":"b. Global Fund donations used to procure condoms"}]
[null,"c. Global Fund donations used to procure contraceptives besides condoms",null,"No",0,"07/09-06/10",null,null,null,null,{"$f":"B51","v":"c. Global Fund donations used to procure contraceptives besides condoms"}]
[null,"d. TOTAL value of in-kind donations and Global Fund donations spent on contraceptive procurement\nThis will auto-calculate.  (It will sum a-c above.)",null,null,{"$f":"E48+E50+E51","v":5567136},null,null,null,null,null,{"$f":"B52","v":"d. TOTAL value of in-kind donations and Global Fund donations spent on contraceptive procurement\nThis will auto-calculate.  (It will sum a-c above.)"}]
[null,null,null,null,null,null,null,null,null,null,{"$f":"A53","v":0}]
["The answers to B10 and B11 should calculate automatically based on the information you provided. Please review the answers to ensure they make sense to you, and if you have additional information to add, please note it in the comments boxes.\n\nIf the answers do not calculate automatically, please provide any relevant information you may have in the comments boxes.\n",null,null,null,null,null,null,null,null,null,null,null,null,null,null,null,null,null,null,null,null,null,null,{"$f":"A54","v":"The answers to B10 and B11 should calculate automatically based on the information you provided. Please review the answers to ensure they make sense to you, and if you have additional information to add, please note it in the comments boxes.\n\nIf the answers do not calculate automatically, please provide any relevant information you may have in the comments boxes.\n"}]
["B10. Government share of funds spent on contraceptive procurement for the public sector - \nOf the total amount spent on contraceptives for the public sector in the most recent complete fiscal year (including government and donor funds), what percent was covered by government funds (including internally generated funds, basket funds, World Bank credits or loans, and other funds given to the government)? \n\nThis will auto-calculate. (It contains the following formula: Total government spending (Question B8c) / Grand total of all spending for public sector contraceptives from the government and donors (Questions B8c+B9d))",null,null,null,null,{"$f":"E44/(E44+E52)","v":0.54984436170185236},null,null,null,{"$f":"G55","v":0},null,null,null,null,null,null,null,{"$f":"A55","v":"B10. Government share of funds spent on contraceptive procurement for the public sector - \nOf the total amount spent on contraceptives for the public sector in the most recent complete fiscal year (including government and donor funds), what percent was covered by government funds (including internally generated funds, basket funds, World Bank credits or loans, and other funds given to the government)? \n\nThis will auto-calculate. (It contains the following formula: Total government spending (Question B8c) / Grand total of all spending for public sector contraceptives from the government and donors (Questions B8c+B9d))"}]
["B11. Total expenditures on public sector contraceptives as percent of amount that needed to be procured -\nOf the estimated value of the contraceptives needed to be procured for the public sector for the most recent complete fiscal year, what percent was provided by any source (whether government or donor)? \n\nThis will auto-calculate. (It contains the following formula: Grand total of all spending for public sector contraceptives from the government and donors (Questions B8c+B9d) / Value of estimated need for procurement (Question B2))",null,null,null,null,{"$f":"(E44+E52)/G29","v":0.65963015567409844},null,null,null,{"$f":"G56","v":0},null,null,null,null,null,null,null,{"$f":"A56","v":"B11. Total expenditures on public sector contraceptives as percent of amount that needed to be procured -\nOf the estimated value of the contraceptives needed to be procured for the public sector for the most recent complete fiscal year, what percent was provided by any source (whether government or donor)? \n\nThis will auto-calculate. (It contains the following formula: Grand total of all spending for public sector contraceptives from the government and donors (Questions B8c+B9d) / Value of estimated need for procurement (Question B2))"}]
["B12. If B11 did not calculate automatically, please answer the following question:\nWas there a funding gap for the public sector in the last complete fiscal year (e.g., 09-'10 fiscal year)?\n(Please select from the dropdown list.)",null,null,null,null,null,null,null,null,{"$f":"G57","v":0},null,null,null,null,null,null,null,{"$f":"A57","v":"B12. If B11 did not calculate automatically, please answer the following question:\nWas there a funding gap for the public sector in the last complete fiscal year (e.g., 09-'10 fiscal year)?\n(Please select from the dropdown list.)"}]
[null,null,null,null,null,null,null,null,null,null,{"$f":"A58","v":0}]
["B13. If the government financed any contraceptive procurement in the most recent complete fiscal year, which entity conducted the procurement(s)? (Please select from the dropdown.)",null,null,null,null,"The government (e.g., Central Medical Stores, MOH logistics unit, MOH procurement unit)",null,null,null,null,null,null,null,null,null,null,{"$f":"F59","v":"The government (e.g., Central Medical Stores, MOH logistics unit, MOH procurement unit)"},{"$f":"A59","v":"B13. If the government financed any contraceptive procurement in the most recent complete fiscal year, which entity conducted the procurement(s)? (Please select from the dropdown.)"}]
[null,"a. Specify entity",null,null,null,"MSD",null,null,null,null,null,null,{"$f":"E60","v":0},null,null,null,{"$f":"F60","v":"MSD"},{"$f":"B60","v":"a. Specify entity"}]
[null,null,"i. Is this a parastatal?",null,null,"Yes",null,null,null,null,null,null,null,null,null,null,{"$f":"F61","v":"Yes"},{"$f":"C61","v":"i. Is this a parastatal?"}]
["B14. Please note any additional comments about finance and procurement.\n",null,null,null,null,null,null,null,null,null,{"$f":"A62","v":"B14. Please note any additional comments about finance and procurement.\n"},null,null,null,{"$f":"D62","v":0}]
["C. Commodities"]
["C1. Are the following contraceptive methods offered through the commercial sector, public sector, NGOs, or social marketing? (Please indicate which methods are intended to be offered. This question is not asking whether the method is in stock.) \n(Please select from the dropdown list.)",null,null,null,null,null,null,null,null,null,null,null,null,null,null,null,null,null,null,null,null,null,null,{"$f":"A64","v":"C1. Are the following contraceptive methods offered through the commercial sector, public sector, NGOs, or social marketing? (Please indicate which methods are intended to be offered. This question is not asking whether the method is in stock.) \n(Please select from the dropdown list.)"}]
["Contraceptive Method",null,null,"Commercial Sector",null,"Public Sector","NGO","Social Marketing",null,null,{"$f":"A65","v":"Contraceptive Method"}]
[null,"a. Combined oral contraceptives (estrogen + progestin - for  example, LoFemenol, Microgynon)",null,"Yes",null,"Yes","Yes","Yes",null,null,{"$f":"B66","v":"a. Combined oral contraceptives (estrogen + progestin - for  example, LoFemenol, Microgynon)"}]
[null,"b. Progestin-only pills (for example, Ovrette, Microlut)",null,"Yes",null,"Yes","Yes","Don't know",null,null,{"$f":"B67","v":"b. Progestin-only pills (for example, Ovrette, Microlut)"}]
[null,"c. Hormonal injections (for example, DepoProvera, Noristerat)",null,"Yes",null,"Yes","Yes","Yes",null,null,"c. Hormonal injections (for example, DepoProvera, Noristerat)"]
[null,"d. Hormonal implants (for example, Jadelle, Implanon)",null,"Yes",null,"Yes","Yes","Yes",null,null,"d. Hormonal implants (for example, Jadelle, Implanon)"]
[null,"e. Intrauterine devices (IUDs) (for example, Optima Copper T)",null,"Yes",null,"Yes","Yes","No",null,null,"e. Intrauterine devices (IUDs) (for example, Optima Copper T)"]
[null,"f. Male condoms",null,"Yes",null,"Yes","Yes","Yes",null,null,"f. Male condoms"]
[null,"g. Female condoms",null,"Don't know",null,"Yes","Yes","Yes",null,null,"g. Female condoms"]
[null,"h. Emergency contraceptive pills (for example, Postinor)",null,"Yes",null,"No","No","No",null,null,"h. Emergency contraceptive pills (for example, Postinor)"]
[null,"i. Long-acting permanent method for males (vasectomy)",null,"Yes",null,"Yes","Yes","No",null,null,"i. Long-acting permanent method for males (vasectomy)"]
[null,"j. Long-acting permanent method for females (tubal ligation)",null,"Yes",null,"Yes","Yes","No",null,null,"j. Long-acting permanent method for females (tubal ligation)"]
[null,"k. CycleBeads",null,"No",null,"No","No","No",null,null,"k. CycleBeads"]
[null,"l. Other contraceptive methods - specify \n(Please provide the name of the other contraceptive(s) offered, by sector.)",null,null,null,null,null,null,null,null,"l. Other contraceptive methods - specify \n(Please provide the name of the other contraceptive(s) offered, by sector.)"]
["C2. Please note any comments about the commodities offered.",null,null,null,null,null,null,null,null,null,{"$f":"A78","v":"C2. Please note any comments about the commodities offered."},null,null,null,{"$f":"D78","v":0}]
["D. Policies (Commitment)"]
["D1. Is there a contraceptive security or reproductive health commodity security strategy or is contraceptive security explicitly included in a country strategy? (Please select from the dropdown list.)",null,null,null,null,null,null,"No",{"$f":"A80","v":"D1. Is there a contraceptive security or reproductive health commodity security strategy or is contraceptive security explicitly included in a country strategy? (Please select from the dropdown list.)"}]
["IF NO, SKIP TO QUESTION D2."]
[null,"Strategy name",null,"Years Covered (including strategy updates)",null,"Is the strategy formally approved by the Ministry?","Is the contraceptive security strategy being implemented?",null,null,{"$f":"G82","v":"Is the contraceptive security strategy being implemented?"},{"$f":"B82","v":"Strategy name"},null,{"$f":"E82","v":0},null,null,null,null,null,{"$f":"D82","v":"Years Covered (including strategy updates)"}]
[null,"a",null,null,null,null,null,null,null,{"$f":"G83","v":0},{"$f":"B83","v":"a"},null,{"$f":"E83","v":0},null,null,null,null,null,{"$f":"D83","v":0}]
["D2. Are any family planning commodities subject to duties, import taxes, or other fees?",null,null,null,null,"No",null,null,null,null,null,null,null,null,null,null,{"$f":"F84","v":"No"},{"$f":"A84","v":"D2. Are any family planning commodities subject to duties, import taxes, or other fees?"}]
[null,"a. If yes, for which sectors (public, NGO, social marketing, commercial)?",null,null,"N/A",null,null,null,null,null,null,null,{"$f":"E85","v":"N/A"},{"$f":"E85","v":"N/A"},null,null,null,{"$f":"B85","v":"a. If yes, for which sectors (public, NGO, social marketing, commercial)?"}]
[null,"b. If yes, how much are the duties, taxes, or fees?",null,null,"N/A",null,null,null,null,null,null,null,null,{"$f":"E86","v":"N/A"},null,null,null,{"$f":"B86","v":"b. If yes, how much are the duties, taxes, or fees?"}]
["D3. Are there policies that hinder the ability of the private sector (commercial sector, NGOs, or social marketing) to provide contraceptive methods (for example: price controls, distribution limitations, taxes/duties, advertising bans, etc.)?",null,null,null,null,null,null,"Yes",{"$f":"A87","v":"D3. Are there policies that hinder the ability of the private sector (commercial sector, NGOs, or social marketing) to provide contraceptive methods (for example: price controls, distribution limitations, taxes/duties, advertising bans, etc.)?"}]
[null,"a. If yes, describe the policies.",null,"Brand-specific advertising for oral contraceptives is not allowed since oral contraceptives are considered a prescription-only product.",null,null,null,null,null,null,{"$f":"B88","v":"a. If yes, describe the policies."},null,null,null,{"$f":"D88","v":"Brand-specific advertising for oral contraceptives is not allowed since oral contraceptives are considered a prescription-only product."}]
["D4. Are there policies that enable the private sector (commercial sector, NGOs, or social marketing) to provide contraceptive methods?",null,null,null,null,null,null,"No",{"$f":"A89","v":"D4. Are there policies that enable the private sector (commercial sector, NGOs, or social marketing) to provide contraceptive methods?"}]
[null,"a. If yes, describe the policies.",null,"N/A",null,null,null,null,null,null,{"$f":"B90","v":"a. If yes, describe the policies."},null,null,null,{"$f":"D90","v":"N/A"}]
["D5. Do policies or regulations exist that restrict who can sell or dispense particular contraceptive methods?\n",null,null,null,null,null,null,"Yes",{"$f":"A91","v":"D5. Do policies or regulations exist that restrict who can sell or dispense particular contraceptive methods?\n"}]
[null,"Please note any restrictions in the following table."]
[null,"Contraceptive Method(s)",null,null,"Describe any public sector restriction on who is allowed to sell or dispense the method",null,"Describe any private sector restriction on who is allowed to sell or dispense the method",null,null,{"$f":"G93","v":"Describe any private sector restriction on who is allowed to sell or dispense the method"},null,null,null,null,null,{"$f":"B93","v":"Contraceptive Method(s)"},null,null,null,null,{"$f":"E93","v":"Describe any public sector restriction on who is allowed to sell or dispense the method"}]
[null,"a","Oral contraceptives ",null,null,null,"Pharmacies and accredited drug dispensing outlets (Addos)",null,null,{"$f":"G94","v":"Pharmacies and accredited drug dispensing outlets (Addos)"},null,null,{"$f":"E94","v":0},null,null,{"$f":"C94","v":"Oral contraceptives "},null,null,null,null,{"$f":"E94","v":0}]
[null,"b","Implants and IUDs",null,"Restricted to public health nurse of higher grade MOH staff",null,null,null,null,{"$f":"G95","v":0},null,null,{"$f":"E95","v":"Restricted to public health nurse of higher grade MOH staff"},null,null,{"$f":"C95","v":"Implants and IUDs"},null,null,null,null,{"$f":"E95","v":"Restricted to public health nurse of higher grade MOH staff"}]
[null,"c",null,null,null,null,null,null,null,{"$f":"G96","v":0},null,null,{"$f":"E96","v":0},null,null,{"$f":"C96","v":0},null,null,null,null,{"$f":"E96","v":0}]
[null,null,null,null,null,null,null,null,null,null,{"$f":"C97","v":0}]
["D6. Does the country have laws, regulations, or policies that make it difficult for the following sub-populations to access effective family planning services?",null,null,"Y/N","If yes, describe laws/regulations/policies affecting access ",null,null,"Are the rules/policies implemented?",null,null,{"$f":"A98","v":"D6. Does the country have laws, regulations, or policies that make it difficult for the following sub-populations to access effective family planning services?"},null,null,null,null,null,null,null,null,null,null,{"$f":"E98","v":"If yes, describe laws/regulations/policies affecting access "}]
[null,"a. Unmarried people",null,"No",null,null,null,null,null,null,{"$f":"B99","v":"a. Unmarried people"},null,{"$f":"E99","v":0},null,null,null,null,null,null,null,null,{"$f":"E99","v":0}]
[null,"b. Young people",null,"No",null,null,null,null,null,null,{"$f":"B100","v":"b. Young people"},null,{"$f":"E100","v":0},null,null,null,null,null,null,null,null,{"$f":"E100","v":0}]
[null,"c. Other",null,"No",null,null,null,null,null,null,{"$f":"B101","v":"c. Other"},null,{"$f":"E101","v":0},null,null,null,null,null,null,null,null,{"$f":"E101","v":0}]
[null,null,null,null,null,null,null,null,null,null,{"$f":"C102","v":0}]
["D7. Are there charges* to the client in the public sector for family planning:\n*(This question refers to charges by policy, not under-the-table charges.)\n",null,null,null,null,null,null,null,null,null,null,null,null,null,null,null,null,null,null,null,null,null,null,{"$f":"A103","v":"D7. Are there charges* to the client in the public sector for family planning:\n*(This question refers to charges by policy, not under-the-table charges.)\n"}]
[null,"a. Services?",null,null,null,null,"No",null,null,{"$f":"G104","v":"No"},null,null,null,null,null,null,null,null,null,null,null,null,null,null,{"$f":"B104","v":"a. Services?"}]
[null,"b. Commodities?",null,null,null,null,"No",null,null,{"$f":"G105","v":"No"},null,null,null,null,null,null,null,null,null,null,null,null,null,null,{"$f":"B105","v":"b. Commodities?"}]
[null,"c. If yes, are there exemptions for people who cannot afford to pay?",null,null,null,null,"N/A",null,null,{"$f":"G106","v":"N/A"},null,null,null,null,null,null,null,null,null,null,null,null,null,null,{"$f":"B106","v":"c. If yes, are there exemptions for people who cannot afford to pay?"}]
[null,null,"i. If yes, describe the exemptions.","N/A",null,null,null,null,null,null,{"$f":"C107","v":"i. If yes, describe the exemptions."},null,null,null,{"$f":"D107","v":"N/A"}]
["D8. Are the following contraceptives included in the country's National Essential Medicine List (NEML) or other equivalent priority list?",null,null,null,null,null,null,null,null,null,null,null,null,null,null,null,null,null,null,null,null,null,null,{"$f":"A108","v":"D8. Are the following contraceptives included in the country's National Essential Medicine List (NEML) or other equivalent priority list?"}]
[null,"a. Combined oral contraceptives",null,null,null,null,"Yes",null,null,{"$f":"G109","v":"Yes"},null,null,null,null,null,null,null,null,null,null,null,null,null,null,{"$f":"B109","v":"a. Combined oral contraceptives"}]
[null,"b. Progestin-only pills",null,null,null,null,"Yes",null,null,"Yes",null,null,null,null,null,null,null,null,null,null,null,null,null,null,"b. Progestin-only pills"]
[null,"c. Hormonal injections",null,null,null,null,"Yes",null,null,"Yes",null,null,null,null,null,null,null,null,null,null,null,null,null,null,"c. Hormonal injections"]
[null,"d. Hormonal implants",null,null,null,null,"Yes",null,null,"Yes",null,null,null,null,null,null,null,null,null,null,null,null,null,null,"d. Hormonal implants"]
[null,"e. Intrauterine devices (IUDs)",null,null,null,null,"Yes",null,null,"Yes",null,null,null,null,null,null,null,null,null,null,null,null,null,null,"e. Intrauterine devices (IUDs)"]
[null,"f. Male condoms",null,null,null,null,"Yes",null,null,"Yes",null,null,null,null,null,null,null,null,null,null,null,null,null,null,"f. Male condoms"]
[null,"g. Female condoms",null,null,null,null,"Yes",null,null,"Yes",null,null,null,null,null,null,null,null,null,null,null,null,null,null,"g. Female condoms"]
[null,"h. Emergency contraceptive pills",null,null,null,null,"No",null,null,"No",null,null,null,null,null,null,null,null,null,null,null,null,null,null,"h. Emergency contraceptive pills"]
[null,"i. CycleBeads",null,null,null,null,"No",null,null,{"$f":"G117","v":"No"},null,null,null,null,null,null,null,null,null,null,null,null,null,null,{"$f":"B117","v":"i. CycleBeads"}]
[null,"j. Any other contraceptive(s)?",null,null,null,null,"Don't know",null,null,"Don't know",null,null,null,null,null,null,null,null,null,null,null,null,null,null,"j. Any other contraceptive(s)?"]
[null,null,"i. Name of other contraceptive(s) on the list(s)",null,null,"Don't know",null,null,null,0,null,null,null,null,null,null,null,{"$f":"B119","v":0}]
["D9. What year(s) is the list(s) from?",null,null,null,null,2007,null,null,null,0,null,null,null,null,null,null,null,{"$f":"B120","v":0}]
["D10. Name of the list(s)\n\n\n",null,null,"National Essential Medicine List",null,null,null,null,null,null,{"$f":"A121","v":"D10. Name of the list(s)\n\n\n"},null,null,null,{"$f":"D121","v":"National Essential Medicine List"}]
["D11. Notes about the list(s)\n\n\n",null,null,null,null,null,null,null,null,null,{"$f":"A122","v":"D11. Notes about the list(s)\n\n\n"},null,null,null,{"$f":"D122","v":0}]
["D12.  Information on country's Poverty Reduction Strategy Paper (PRSP)\n",null,null,null,null,null,null,null,null,null,null,null,null,null,null,null,null,null,null,null,null,null,null,{"$f":"A123","v":"D12.  Information on country's Poverty Reduction Strategy Paper (PRSP)\n"}]
[null,"a. What year is the Poverty Reduction Strategy Paper from? (most recent actual PRSP on IMF's site [not progress or summary report])",null,null,null,2010,null,null,null,{"$f":"G124","v":0},null,null,null,null,null,null,null,{"$f":"B124","v":"a. What year is the Poverty Reduction Strategy Paper from? (most recent actual PRSP on IMF's site [not progress or summary report])"}]
[null,"b. Is family planning or reproductive health a priority in the PRSP?",null,null,null,null,"No",null,null,{"$f":"G125","v":"No"},null,null,null,null,null,null,null,null,null,null,null,null,null,null,{"$f":"B125","v":"b. Is family planning or reproductive health a priority in the PRSP?"}]
[null,"c. Is contraceptive security included in the PRSP?",null,null,null,null,"Yes",null,null,{"$f":"G126","v":"Yes"},null,null,null,null,null,null,null,null,null,null,null,null,null,null,{"$f":"B126","v":"c. Is contraceptive security included in the PRSP?"}]
[null,"d. Is contraceptive prevalence rate (CPR) included as an indicator in the PRSP?",null,null,null,null,"No",null,null,{"$f":"G127","v":"No"},null,null,null,null,null,null,null,null,null,null,null,null,null,null,{"$f":"B127","v":"d. Is contraceptive prevalence rate (CPR) included as an indicator in the PRSP?"}]
[null,"e. Are contraceptive supply indicators included in the PRSP?",null,null,null,null,"No",null,null,{"$f":"G128","v":"No"},null,null,null,null,null,null,null,null,null,null,null,null,null,null,{"$f":"B128","v":"e. Are contraceptive supply indicators included in the PRSP?"}]
["\n\n\n","f. Notes about the Poverty Reduction Strategy Paper",null,"The availability and choice of safe, effective, acceptable, and affordable contraceptive methods is an intervention package (p. 154). There are interventions related to increasing the capacity of providers and delivery systems to provide high quality, affordable and sustainable family planning methods and services. There are indicators for TFR and reducing population growth but not for CPR.",null,null,null,null,null,null,{"$f":"B129","v":"f. Notes about the Poverty Reduction Strategy Paper"},null,null,null,{"$f":"D129","v":"The availability and choice of safe, effective, acceptable, and affordable contraceptive methods is an intervention package (p. 154). There are interventions related to increasing the capacity of providers and delivery systems to provide high quality, affordable and sustainable family planning methods and services. There are indicators for TFR and reducing population growth but not for CPR."}]
["E. Supply Chain (Capacity)"]
["E1. Have stockouts occurred for any contraceptive at the central* level in the last 12 months?  \n*(The central level refers to the central level warehouse for the public sector.)",null,null,null,null,null,"Yes",null,null,{"$f":"G131","v":"Yes"},null,null,null,null,null,null,null,null,null,null,null,null,null,null,{"$f":"A131","v":"E1. Have stockouts occurred for any contraceptive at the central* level in the last 12 months?  \n*(The central level refers to the central level warehouse for the public sector.)"}]
["E2. In the last 12 months, has there ever been a stockout at the central level of any of the contraceptives offered in public sector facilities? (If a method is not intended to be offered in public sector facilities, please indicate that stockouts are not applicable (choose \"N/A\" from the dropdown list).)",null,null,null,null,null,null,null,null,null,null,null,null,null,null,null,null,null,null,null,null,null,null,{"$f":"A132","v":"E2. In the last 12 months, has there ever been a stockout at the central level of any of the contraceptives offered in public sector facilities? (If a method is not intended to be offered in public sector facilities, please indicate that stockouts are not applicable (choose \"N/A\" from the dropdown list).)"}]
[null,"a. Combined oral contraceptives",null,null,null,null,"No",null,null,{"$f":"G133","v":"No"},null,null,null,null,null,null,null,null,null,null,null,null,null,null,{"$f":"B133","v":"a. Combined oral contraceptives"}]
[null,"b. Progestin-only pills",null,null,null,null,"No",null,null,"No",null,null,null,null,null,null,null,null,null,null,null,null,null,null,"b. Progestin-only pills"]
[null,"c. Hormonal injections",null,null,null,null,"Yes",null,null,"Yes",null,null,null,null,null,null,null,null,null,null,null,null,null,null,"c. Hormonal injections"]
[null,"d. Hormonal implants",null,null,null,null,"Yes",null,null,"Yes",null,null,null,null,null,null,null,null,null,null,null,null,null,null,"d. Hormonal implants"]
[null,"e. Intrauterine devices (IUDs)",null,null,null,null,"No",null,null,"No",null,null,null,null,null,null,null,null,null,null,null,null,null,null,"e. Intrauterine devices (IUDs)"]
[null,"f. Male condoms",null,null,null,null,"No",null,null,"No",null,null,null,null,null,null,null,null,null,null,null,null,null,null,"f. Male condoms"]
[null,"g. Female condoms",null,null,null,null,"N/A",null,null,"N/A",null,null,null,null,null,null,null,null,null,null,null,null,null,null,"g. Female condoms"]
[null,"h. Emergency contraceptive pills",null,null,null,null,"N/A",null,null,"N/A",null,null,null,null,null,null,null,null,null,null,null,null,null,null,"h. Emergency contraceptive pills"]
[null,"i. CycleBeads",null,null,null,null,"N/A",null,null,"N/A",null,null,null,null,null,null,null,null,null,null,null,null,null,null,"i. CycleBeads"]
[null,"j. Time period\n(mm/yy - mm/yy) (for example, 1/10-12/10) ",null,null,null,"08/09-06/10",null,null,null,null,null,null,null,null,null,null,{"$f":"F142","v":"08/09-06/10"},{"$f":"B142","v":"j. Time period\n(mm/yy - mm/yy) (for example, 1/10-12/10) "}]
[null,"k. Data source\n(for example: Procurement Planning and Monitoring Report, Logistics Management Information System, periodic physical inventory, warehouse reports)",null,null,null,"MSD, quarterly reports",null,null,null,null,null,null,null,null,null,null,{"$f":"F143","v":"MSD, quarterly reports"},{"$f":"B143","v":"k. Data source\n(for example: Procurement Planning and Monitoring Report, Logistics Management Information System, periodic physical inventory, warehouse reports)"}]
["E3. Are stockouts a large problem in your country at the following levels? (i.e., Are they common or do they tend to last for a long time?)\n\n"]
[null,"a. service delivery point level (i.e., public sector health facilities)",null,null,null,null,"Yes",null,null,{"$f":"G145","v":"Yes"},null,null,null,null,null,null,null,null,null,null,null,null,null,null,{"$f":"B145","v":"a. service delivery point level (i.e., public sector health facilities)"}]
[null,"b. central level (i.e., central level warehouse for the public sector)",null,null,null,null,"Yes",null,null,{"$f":"G146","v":"Yes"},null,null,null,null,null,null,null,null,null,null,null,null,null,null,{"$f":"B146","v":"b. central level (i.e., central level warehouse for the public sector)"}]
["F. Please note any overall comments about challenges and/or successes with contraceptive security in your country.\n\n",null,null,"Long lead time for basket procurement processes.",null,null,null,null,null,null,{"$f":"A147","v":"F. Please note any overall comments about challenges and/or successes with contraceptive security in your country.\n\n"},null,null,null,{"$f":"D147","v":"Long lead time for basket procurement processes."}]

{"sheet":"Uganda 2011","index":40,"n_rows":147,"n_cols":25,"rows_kept":147,"cut":false,"hidden":false,"merged":[[8,0,8,7],[147,0,147,7],[148,0,150,7],[145,1,145,5],[145,6,145,7],[146,0,146,2],[146,3,146,7],[141,1,141,4],[141,5,141,7],[142,1,142,4],[142,5,142,7],[143,0,143,7],[144,1,144,5],[144,6,144,7],[138,1,138,5],[138,6,138,7],[139,1,139,5],[139,6,139,7],[140,1,140,5],[132,1,132,5],[132,6,132,7],[133,1,133,5],[133,6,133,7],[134,1,134,5],[134,6,134,7],[140,6,140,7],[135,1,135,5],[135,6,135,7],[136,1,136,5],[136,6,136,7],[137,1,137,5],[137,6,137,7],[120,0,120,2],[120,3,120,7],[121,0,121,2],[121,3,121,7],[129,0,129,6],[130,0,130,5],[130,6,130,7],[131,0,131,7],[122,0,122,7],[123,1,123,4],[123,5,123,7],[124,1,124,5],[115,1,115,5],[115,6,115,7],[116,1,116,5],[116,6,116,7],[117,1,117,5],[117,6,117,7],[118,2,118,4],[118,5,118,7],[119,0,119,4],[119,5,119,7],[110,1,110,5],[110,6,110,7],[111,1,111,5],[111,6,111,7],[112,1,112,5],[112,6,112,7],[113,1,113,5],[113,6,113,7],[114,1,114,5],[114,6,114,7],[104,1,104,5],[104,6,104,7],[105,1,105,5],[105,6,105,7],[106,3,106,7],[107,0,107,7],[108,1,108,5],[108,6,108,7],[109,1,109,5],[109,6,109,7],[98,1,98,2],[98,4,98,6],[99,1,99,2],[99,4,99,6],[100,1,100,2],[100,4,100,6],[101,0,101,7],[102,0,102,7],[103,1,103,5],[103,6,103,7],[94,2,94,3],[94,4,94,5],[94,6,94,7],[95,4,95,5],[96,0,96,7],[97,0,97,2],[97,4,97,6],[95,2,95,3],[95,6,95,7],[88,0,88,6],[89,1,89,2],[89,3,89,7],[90,0,90,6],[91,1,91,2],[92,1,92,3],[92,4,92,5],[92,6,92,7],[93,2,93,3],[93,4,93,5],[93,6,93,7],[83,0,83,4],[83,5,83,7],[84,1,84,3],[84,4,84,7],[85,1,85,3],[85,4,85,7],[86,0,86,6],[87,1,87,2],[87,3,87,7],[77,0,77,2],[77,3,77,7],[78,0,78,6],[79,0,79,6],[80,0,80,2],[81,0,82,0],[81,1,81,2],[81,3,81,4],[81,6,81,7],[82,3,82,4],[82,6,82,7],[72,1,72,2],[72,3,72,4],[73,1,73,2],[73,3,73,4],[74,1,74,2],[74,3,74,4],[75,1,75,2],[75,3,75,4],[76,1,76,2],[76,3,76,4],[67,1,67,2],[67,3,67,4],[68,1,68,2],[68,3,68,4],[69,1,69,2],[69,3,69,4],[70,1,70,2],[70,3,70,4],[71,1,71,2],[71,3,71,4],[61,0,61,2],[61,3,61,7],[62,0,62,6],[63,0,63,7],[64,0,64,2],[64,3,64,4],[65,1,65,2],[65,3,65,4],[66,1,66,2],[66,3,66,4],[55,0,55,4],[55,6,55,7],[56,0,56,4],[56,6,56,7],[58,0,58,4],[58,5,58,7],[59,1,59,4],[59,5,59,7],[60,2,60,4],[60,5,60,7],[41,1,41,2],[42,3,42,7],[43,1,43,2],[51,1,51,2],[53,0,53,7],[54,0,54,4],[54,6,54,7],[45,0,45,7],[46,1,46,2],[47,1,47,2],[48,3,48,7],[49,1,49,2],[50,1,50,2],[32,0,32,7],[33,1,33,3],[34,1,34,3],[35,0,35,7],[36,0,36,6],[37,0,37,7],[38,1,38,2],[39,1,39,2],[40,3,40,7],[26,0,26,6],[27,0,27,2],[27,3,27,4],[28,0,28,5],[28,6,28,7],[29,0,29,3],[29,6,29,7],[30,0,30,6],[31,0,31,6],[20,1,20,2],[20,5,20,7],[21,1,21,2],[21,5,21,7],[22,1,22,2],[22,5,22,7],[23,0,23,6],[24,0,24,6],[25,0,25,2],[15,1,15,2],[15,5,15,7],[16,1,16,2],[16,5,16,7],[17,1,17,2],[17,5,17,7],[18,1,18,2],[18,5,18,7],[19,1,19,2],[19,5,19,7],[9,0,9,7],[10,0,10,6],[11,0,11,6],[12,1,12,2],[12,3,12,7],[13,0,13,2],[13,3,13,7],[14,1,14,2],[14,5,14,7],[7,0,7,2],[7,3,7,5],[7,6,7,7],[0,0,0,7],[1,0,1,2],[1,3,1,4],[2,0,2,7],[3,3,3,4],[3,5,3,7],[4,0,4,2],[5,0,5,2],[128,1,128,2],[128,3,128,7],[124,6,124,7],[125,1,125,5],[125,6,125,7],[126,1,126,5],[126,6,126,7],[127,1,127,5],[127,6,127,7]]}
[null,null,null,null,null,null,null,null,"Columns I-Y are meant to be hidden. They exist because they allow for the dropdown list options. They also allow for merged cells to autofit properly in terms of row height. This should work if all columns remain at their correct widths.","g-h",null,"a-e merged","E-F merged","e-h","0 times",null,null,"The government (e.g., Central Medical Stores, MOH logistics unit, MOH procurement unit)",null,null,null,null,"Yes","a-h","January"]
[null,null,null,null,null,null,null,null,null,null,"A-c",null,null,null,"1-2 times","b-d merged",null,"Third-party agent (e.g., UNFPA, Crown Agents)","d-e merged","d-f merged","e-f merged","e-g merged","No",null,"February"]
[null,null,null,null,null,null,null,null,null,null,null,null,null,null,"3-5 times",null,null,"The government and a third-party agent",null,null,null,null,null,null,"March"]
[null,null,null,null,null,null,null,null,null,null,null,null,null,null,"6 or more times",null,null,"Other",null,null,null,null,"N/A",null,"April"]
["To jump to the Introduction sheet, click here.",null,null,null,null,null,null,null,null,null,null,null,null,null,null,null,null,null,null,null,null,null,"Don't know",null,"May"]
[null,null,null,null,null,null,null,null,null,null,null,null,null,null,"N/A",null,null,"N/A",null,null,null,null,null,null,"June"]
["Contraceptive Security (CS) Indicators 2011 Data ",null,null,null,null,null,null,null,null,null,null,null,null,null,"Don't know",null,null,"Don't know",null,null,null,null,null,null,"July"]
["Country: Uganda",null,null,null,null,null,null,null,null,{"$f":"G8","v":0},{"$f":"A8","v":"Country: Uganda"},null,null,null,null,"or c-d",null,null,null,{"$f":"D8","v":0},null,null,null,null,"August"]
["The CS Indicators are presented in the following sections:\n\n               A. leadership & cooordination               B. finance & procurement               C. commodities               D. policies               E. supply chain",null,null,null,null,null,null,null,null,{"$f":"G9","v":0},{"$f":"A9","v":"The CS Indicators are presented in the following sections:\n\n               A. leadership & cooordination               B. finance & procurement               C. commodities               D. policies               E. supply chain"},null,null,null,"d-h",null,"f-h merged",null,{"$f":"D9","v":0},null,null,null,null,{"$f":"A9","v":"The CS Indicators are presented in the following sections:\n\n               A. leadership & cooordination               B. finance & procurement               C. commodities               D. policies               E. supply chain"},"September"]
["\nNotes:\n  -  Respondents' answers are indicated in the white spaces. \n  -  N/A = not applicable. Don't know = the respondent either indicated they did not know or left the answer blank.\n  -  Some questions required respondents to choose from a dropdown list of options; in these cases the dropdown arrow will \n     appear when you click on the cell. \n  -  There may be a few inserted comments. (If you cannot already see them, click on Review tab - Comments group - Show All Comments in newer \n       versions of Excel or View - Comments in older versions of Excel.)\n  -  If the answer is cut off, you can either manually adjust the row height or autofit the row height in order to see the whole \n     response. (To autofit the row height, select the answer(s) and go to Home tab - Cells group - Format - Autofit Row Height in newer versions of Excel or \n      Format - Row - Autofit in older versions of Excel.)\n",null,null,null,null,null,null,null,"a-g",null,null,null,null,null,null,null,null,"a-e merged",null,null,null,null,null,{"$f":"A10","v":"\nNotes:\n  -  Respondents' answers are indicated in the white spaces. \n  -  N/A = not applicable. Don't know = the respondent either indicated they did not know or left the answer blank.\n  -  Some questions required respondents to choose from a dropdown list of options; in these cases the dropdown arrow will \n     appear when you click on the cell. \n  -  There may be a few inserted comments. (If you cannot already see them, click on Review tab - Comments group - Show All Comments in newer \n       versions of Excel or View - Comments in older versions of Excel.)\n  -  If the answer is cut off, you can either manually adjust the row height or autofit the row height in order to see the whole \n     response. (To autofit the row height, select the answer(s) and go to Home tab - Cells group - Format - Autofit Row Height in newer versions of Excel or \n      Format - Row - Autofit in older versions of Excel.)\n"},"October"]
["A. Leadership and Coordination",null,null,null,null,null,null,null,null,null,null,null,null,null,null,null,null,null,null,null,null,null,null,null,"November"]
["A1. Is there a national committee that works on contraceptive security? (Please select from the dropdown list.)\n(Committee should have some aspect of contraceptive security as part of its Terms of Reference, even if it is known by a different name, for example: Family Planning, Reproductive Health, Maternal Mortality, Essential Medicine Committee, etc.)  ",null,null,null,null,null,null,"Yes",{"$f":"A12","v":"A1. Is there a national committee that works on contraceptive security? (Please select from the dropdown list.)\n(Committee should have some aspect of contraceptive security as part of its Terms of Reference, even if it is known by a different name, for example: Family Planning, Reproductive Health, Maternal Mortality, Essential Medicine Committee, etc.)  "},null,null,null,null,null,null,null,null,null,null,null,null,null,null,null,"December"]
[null,"a. What is the name of the committee?",null,"Reproductive Health Commodity Security (RHCS) Committee ",null,null,null,null,null,null,{"$f":"B13","v":"a. What is the name of the committee?"},{"$f":"D13","v":"Reproductive Health Commodity Security (RHCS) Committee "},null,null,{"$f":"D13","v":"Reproductive Health Commodity Security (RHCS) Committee "}]
["A2. Are the following organizations represented on the committee?",null,null,"(Y/N \ndropdown)",null,null,null,null,null,null,{"$f":"A14","v":"A2. Are the following organizations represented on the committee?"},null,null,null,null,null,null,null,null,null,null,null,null,null,"Don't know"]
[null,"a. Social marketing",null,"Yes","If yes, specify name(s) of organizations","Uganda Health Marketing Group (UHMG), PACE, Marie Stopes Uganda (MSU)",null,null,null,null,{"$f":"B15","v":"a. Social marketing"},null,null,null,null,null,{"$f":"F15","v":"Uganda Health Marketing Group (UHMG), PACE, Marie Stopes Uganda (MSU)"}]
[null,"b. NGO (for example: service delivery, advocacy, Planned Parenthood affiliate, Marie Stopes affiliate, faith-based organizations, etc.)",null,"Yes","If yes, specify name(s) of organizations","Reproductive Health Uganda (RHU)",null,null,null,null,"b. NGO (for example: service delivery, advocacy, Planned Parenthood affiliate, Marie Stopes affiliate, faith-based organizations, etc.)",null,null,null,null,null,{"$f":"F16","v":"Reproductive Health Uganda (RHU)"}]
[null,"c. Commercial sector (for example: pharmacy associations, manufacturers, etc.)",null,"No","If yes, specify name(s) of organizations",null,null,null,null,null,"c. Commercial sector (for example: pharmacy associations, manufacturers, etc.)",null,null,null,null,null,{"$f":"F17","v":0}]
[null,"d. Donors",null,"Yes","If yes, specify name(s) of donors","USAID, DFID",null,null,null,null,"d. Donors",null,null,null,null,null,"USAID, DFID"]
[null,"e. UN agencies",null,"Yes","If yes, specify name(s) of agencies","UNFPA",null,null,null,null,"e. UN agencies",null,null,null,null,null,"UNFPA"]
[null,"f. Ministry of Health (for example: logistics, reproductive health, family planning, maternal and child health, HIV/AIDS, pharmacy units, etc.)",null,"Yes","If yes, specify name(s) of units","MoH Reproductive Health division, MoH AIDS Control Program (ACP), MoH Pharmacy Division",null,null,null,null,"f. Ministry of Health (for example: logistics, reproductive health, family planning, maternal and child health, HIV/AIDS, pharmacy units, etc.)",null,null,null,null,null,"MoH Reproductive Health division, MoH AIDS Control Program (ACP), MoH Pharmacy Division"]
[null,"g. Central Medical Store or Central Warehouse",null,"Yes","If yes, specify","National Medical Stores (NMS)",null,null,null,null,"g. Central Medical Store or Central Warehouse",null,null,null,null,null,"National Medical Stores (NMS)"]
[null,"h. Ministry of Finance or Ministry of Planning ",null,"No","If yes, specify",null,null,null,null,null,"h. Ministry of Finance or Ministry of Planning ",null,null,null,null,null,0]
[null,"i. Other (for example: partners)",null,"No","If yes, specify",null,null,null,null,null,"i. Other (for example: partners)",null,null,null,null,null,0]
["A3. How many times did the committee meet during the last year? (0, 1-2, 3-5, or 6+)  (Please select from the dropdown.)",null,null,null,null,null,null,"3-5 times",{"$f":"A24","v":"A3. How many times did the committee meet during the last year? (0, 1-2, 3-5, or 6+)  (Please select from the dropdown.)"}]
["A4. Does the committee have legal status?  (Please select from the dropdown.)                                  ",null,null,null,null,null,null,"No",{"$f":"A25","v":"A4. Does the committee have legal status?  (Please select from the dropdown.)                                  "}]
["A5. Is there a Contraceptive Security \"champion\"? (someone who consistently brings up and advocates for contraceptive supplies)",null,null,"No","If yes, specify person's organization",null,"Specify person's job title",null,null,null,{"$f":"A26","v":"A5. Is there a Contraceptive Security \"champion\"? (someone who consistently brings up and advocates for contraceptive supplies)"}]
["B. Finance and Procurement (Capital)"]
["B1. What is the timeline of the country's fiscal year?",null,null,"Beginning month",null,"July","Ending month","June",null,null,{"$f":"B28","v":0}]
["B2. What was the estimated dollar value of contraceptives needed to be procured for the public sector for the most recent complete fiscal year? (in USD currency)\n(for example, to cover the needs for the '09-'10 fiscal year)",null,null,null,null,null,10166650,null,null,{"$f":"G29","v":10166650},null,null,{"$f":"E29","v":0},null,null,null,null,null,null,null,null,null,null,null,{"$f":"A29","v":"B2. What was the estimated dollar value of contraceptives needed to be procured for the public sector for the most recent complete fiscal year? (in USD currency)\n(for example, to cover the needs for the '09-'10 fiscal year)"}]
["B3. When was the last forecast/quantification conducted? (mm/yy)",null,null,null,"10/10","Who conducted it? (Specify organization.)","MOH Reproductive Heath division with technical assistance from the SURE/MSH program",null,null,{"$f":"G30","v":"MOH Reproductive Heath division with technical assistance from the SURE/MSH program"},null,null,{"$f":"E30","v":"10/10"},null,null,null,null,null,null,null,null,null,null,null,{"$f":"A30","v":"B3. When was the last forecast/quantification conducted? (mm/yy)"}]
["B4. Is there a government budget line item for the procurement of contraceptives?  (Please select from the dropdown list.)",null,null,null,null,null,null,"Yes",{"$f":"A31","v":"B4. Is there a government budget line item for the procurement of contraceptives?  (Please select from the dropdown list.)"}]
["B5. Were government funds allocated for contraceptive procurement for the public sector in the most recent complete fiscal year? (This question refers to funds planned to be spent on contraceptives, whether or not they ended up being spent.) \n\n(Government funds include internally generated funds, basket funds, World Bank credits or loans, and other funds donors gave to the government for their use.) \n",null,null,null,null,null,null,"Yes",{"$f":"A32","v":"B5. Were government funds allocated for contraceptive procurement for the public sector in the most recent complete fiscal year? (This question refers to funds planned to be spent on contraceptives, whether or not they ended up being spent.) \n\n(Government funds include internally generated funds, basket funds, World Bank credits or loans, and other funds donors gave to the government for their use.) \n"}]
["B6. Please complete the table below regarding government allocations for contraceptive procurement.",null,null,null,null,null,null,null,null,null,null,null,null,null,null,null,null,null,null,null,null,null,null,{"$f":"A33","v":"B6. Please complete the table below regarding government allocations for contraceptive procurement."}]
[null,null,null,null,"Amount allocated \n(in USD)","Time period during which allocations were supposed to be spent \n(mm/yy-mm/yy)\n(should ideally be the most recent\ncomplete fiscal year ['09-'10])","Data source \n(for example: Ministry records)","Comments",null,null,{"$f":"A34","v":0}]
[null,"Government funds allocated for contraceptive procurement\n(funds originally designated for contraceptives, whether or not they ended up being spent on them)",null,null,326000,"07/09-06/10","Budget Document FY 09/10","Approximately 50% of FP commodities of UGX 1.5 billion  (approx USD 652,000) allocated per year. (The funding is allocated for FP commodities in general; we were unable to extract the exact allocation to contraceptives alone.)",null,null,{"$f":"#REF!","v":{"$error":"#REF!"}}]
[]
["B7. Were government funds spent on contraceptive procurement for the public sector in the most recent complete fiscal year? \n(Government funds include internally generated funds, basket funds, World Bank credits or loans, and other funds donors gave to the government for their use.)",null,null,null,null,null,null,"No",{"$f":"A37","v":"B7. Were government funds spent on contraceptive procurement for the public sector in the most recent complete fiscal year? \n(Government funds include internally generated funds, basket funds, World Bank credits or loans, and other funds donors gave to the government for their use.)"}]
["B8. Please complete the table below to indicate government expenditures on contraceptive procurement, by source, in the most recent complete fiscal year. \n(This is how much was spent on contraceptive procurement (not what was allocated). How much of this spending was provided from each source?)",null,null,null,null,null,null,null,null,null,null,null,null,null,null,null,null,null,null,null,null,null,null,{"$f":"A38","v":"B8. Please complete the table below to indicate government expenditures on contraceptive procurement, by source, in the most recent complete fiscal year. \n(This is how much was spent on contraceptive procurement (not what was allocated). How much of this spending was provided from each source?)"}]
[null,"Source of government funds spent on contraceptive procurement for the public sector",null,"Was this source used?\n(Y/N)","Amount spent \n(in USD)","Time period (mm/yy-mm/yy)\n(should be the same for all sources of funds & ideally be the most recent\ncomplete fiscal year ['09-'10])","Data source \n(for example: Contraceptive Procurement Table, PipeLine, etc.)","Comments",null,null,{"$f":"A39","v":0}]
[null,"a. Internally generated funds spent on contraceptive procurement",null,"No",0,"07/09-06/10",null,null,null,null,{"$f":"B40","v":"a. Internally generated funds spent on contraceptive procurement"}]
[null,null,"i. Specify source(s) of internally generated funds spent (for example, from taxes or user fees)","N/A",null,null,null,null,null,null,{"$f":"C41","v":"i. Specify source(s) of internally generated funds spent (for example, from taxes or user fees)"},null,null,null,{"$f":"D41","v":"N/A"}]
[null,"b. Total of all other government funds spent on contraceptive procurement (basket funds, World Bank credits or loans, and other funds donors gave to the government [e.g., direct budget support])",null,"No",0,"07/09-06/10",null,null,null,null,{"$f":"B42","v":"b. Total of all other government funds spent on contraceptive procurement (basket funds, World Bank credits or loans, and other funds donors gave to the government [e.g., direct budget support])"}]
[null,null,"i. Specify source(s) of other government funds spent (for example: basket funding or specific donor)","N/A",null,null,null,null,null,null,{"$f":"C43","v":"i. Specify source(s) of other government funds spent (for example: basket funding or specific donor)"},null,null,null,{"$f":"D43","v":"N/A"}]
[null,"c. TOTAL government funds spent on contraceptive procurement\nThis will auto-calculate.  (It will sum a & b above.)",null,null,{"$f":"E40+E42","v":0},null,null,null,null,null,{"$f":"B44","v":"c. TOTAL government funds spent on contraceptive procurement\nThis will auto-calculate.  (It will sum a & b above.)"}]
[null,null,null,null,null,null,null,null,null,null,{"$f":"A45","v":0}]
["B9. Please complete the table below to indicate donor expenditures on contraceptive procurement in the most recent complete fiscal year.\n",null,null,null,null,null,null,null,null,null,null,null,null,null,null,null,null,null,null,null,null,null,null,{"$f":"A46","v":"B9. Please complete the table below to indicate donor expenditures on contraceptive procurement in the most recent complete fiscal year.\n"}]
["\n","Source of donations and donor funds spent on contraceptive procurement for the public sector",null,"Was this a source?\n(Y/N)","Amount of money spent on these procurements \n(in USD)","Time period (mm/yy-mm/yy)\n(should be the same for all sources of funds & ideally be the most recent\ncomplete fiscal year ['09-'10])","Data source \n(for example:  Donor records, Contraceptive Procurement Table, PipeLine, RHInterchange, etc.","Comments",null,null,{"$f":"A47","v":"\n"}]
[null,"a. In-kind donations of contraceptives",null,"Yes",6588411,"01/10-12/10","RHInterchange","Does not include PSM costs ",null,null,{"$f":"B48","v":"a. In-kind donations of contraceptives"}]
[null,null,"i. Specify source(s) of in-kind donations ","USAID, UNFPA, DFID",null,null,null,null,null,null,{"$f":"C49","v":"i. Specify source(s) of in-kind donations "},null,null,null,{"$f":"D49","v":"USAID, UNFPA, DFID"}]
[null,"b. Global Fund donations used to procure condoms",null,"No",0,"07/09-06/10",null,"Procurement initiated but not awarded",null,null,{"$f":"B50","v":"b. Global Fund donations used to procure condoms"}]
[null,"c. Global Fund donations used to procure contraceptives besides condoms",null,"No",0,"07/09-06/10",null,null,null,null,{"$f":"B51","v":"c. Global Fund donations used to procure contraceptives besides condoms"}]
[null,"d. TOTAL value of in-kind donations and Global Fund donations spent on contraceptive procurement\nThis will auto-calculate.  (It will sum a-c above.)",null,null,{"$f":"E48+E50+E51","v":6588411},null,null,null,null,null,{"$f":"B52","v":"d. TOTAL value of in-kind donations and Global Fund donations spent on contraceptive procurement\nThis will auto-calculate.  (It will sum a-c above.)"}]
[null,null,null,null,null,null,null,null,null,null,{"$f":"A53","v":0}]
["The answers to B10 and B11 should calculate automatically based on the information you provided. Please review the answers to ensure they make sense to you, and if you have additional information to add, please note it in the comments boxes.\n\nIf the answers do not calculate automatically, please provide any relevant information you may have in the comments boxes.\n",null,null,null,null,null,null,null,null,null,null,null,null,null,null,null,null,null,null,null,null,null,null,{"$f":"A54","v":"The answers to B10 and B11 should calculate automatically based on the information you provided. Please review the answers to ensure they make sense to you, and if you have additional information to add, please note it in the comments boxes.\n\nIf the answers do not calculate automatically, please provide any relevant information you may have in the comments boxes.\n"}]
["B10. Government share of funds spent on contraceptive procurement for the public sector - \nOf the total amount spent on contraceptives for the public sector in the most recent complete fiscal year (including government and donor funds), what percent was covered by government funds (including internally generated funds, basket funds, World Bank credits or loans, and other funds given to the government)? \n\nThis will auto-calculate. (It contains the following formula: Total government spending (Question B8c) / Grand total of all spending for public sector contraceptives from the government and donors (Questions B8c+B9d))",null,null,null,null,{"$f":"E44/(E44+E52)","v":0},"UGX 1.5 billion was allocated per year for FP commodities but not spent and this has happened for the last 2 financial years. In FY 2010/2011 expenditures will include funds carried forward from previous financial years.\n",null,null,{"$f":"G55","v":"UGX 1.5 billion was allocated per year for FP commodities but not spent and this has happened for the last 2 financial years. In FY 2010/2011 expenditures will include funds carried forward from previous financial years.\n"},null,null,null,null,null,null,null,{"$f":"A55","v":"B10. Government share of funds spent on contraceptive procurement for the public sector - \nOf the total amount spent on contraceptives for the public sector in the most recent complete fiscal year (including government and donor funds), what percent was covered by government funds (including internally generated funds, basket funds, World Bank credits or loans, and other funds given to the government)? \n\nThis will auto-calculate. (It contains the following formula: Total government spending (Question B8c) / Grand total of all spending for public sector contraceptives from the government and donors (Questions B8c+B9d))"}]
["B11. Total expenditures on public sector contraceptives as percent of amount that needed to be procured -\nOf the estimated value of the contraceptives needed to be procured for the public sector for the most recent complete fiscal year, what percent was provided by any source (whether government or donor)? \n\nThis will auto-calculate. (It contains the following formula: Grand total of all spending for public sector contraceptives from the government and donors (Questions B8c+B9d) / Value of estimated need for procurement (Question B2))",null,null,null,null,{"$f":"(E44+E52)/G29","v":0.64804148859260424},null,null,null,{"$f":"G56","v":0},null,null,null,null,null,null,null,{"$f":"A56","v":"B11. Total expenditures on public sector contraceptives as percent of amount that needed to be procured -\nOf the estimated value of the contraceptives needed to be procured for the public sector for the most recent complete fiscal year, what percent was provided by any source (whether government or donor)? \n\nThis will auto-calculate. (It contains the following formula: Grand total of all spending for public sector contraceptives from the government and donors (Questions B8c+B9d) / Value of estimated need for procurement (Question B2))"}]
["B12. If B11 did not calculate automatically, please answer the following question:\nWas there a funding gap for the public sector in the last complete fiscal year (e.g., 09-'10 fiscal year)?\n(Please select from the dropdown list.)",null,null,null,null,"No",null,null,null,{"$f":"G57","v":0},null,null,null,null,null,null,null,{"$f":"A57","v":"B12. If B11 did not calculate automatically, please answer the following question:\nWas there a funding gap for the public sector in the last complete fiscal year (e.g., 09-'10 fiscal year)?\n(Please select from the dropdown list.)"}]
[null,null,null,null,null,null,null,null,null,null,{"$f":"A58","v":0}]
["B13. If the government financed any contraceptive procurement in the most recent complete fiscal year, which entity conducted the procurement(s)? (Please select from the dropdown.)",null,null,null,null,"N/A",null,null,null,null,null,null,null,null,null,null,{"$f":"F59","v":"N/A"},{"$f":"A59","v":"B13. If the government financed any contraceptive procurement in the most recent complete fiscal year, which entity conducted the procurement(s)? (Please select from the dropdown.)"}]
[null,"a. Specify entity",null,null,null,"N/A",null,null,null,null,null,null,{"$f":"E60","v":0},null,null,null,{"$f":"F60","v":"N/A"},{"$f":"B60","v":"a. Specify entity"}]
[null,null,"i. Is this a parastatal?",null,null,"N/A",null,null,null,null,null,null,null,null,null,null,{"$f":"F61","v":"N/A"},{"$f":"C61","v":"i. Is this a parastatal?"}]
["B14. Please note any additional comments about finance and procurement.\n",null,null,"National Medical Stores did not procure contraceptives in 2009/2010. ",null,null,null,null,null,null,{"$f":"A62","v":"B14. Please note any additional comments about finance and procurement.\n"},null,null,null,{"$f":"D62","v":"National Medical Stores did not procure contraceptives in 2009/2010. "}]
["C. Commodities"]
["C1. Are the following contraceptive methods offered through the commercial sector, public sector, NGOs, or social marketing? (Please indicate which methods are intended to be offered. This question is not asking whether the method is in stock.) \n(Please select from the dropdown list.)",null,null,null,null,null,null,null,null,null,null,null,null,null,null,null,null,null,null,null,null,null,null,{"$f":"A64","v":"C1. Are the following contraceptive methods offered through the commercial sector, public sector, NGOs, or social marketing? (Please indicate which methods are intended to be offered. This question is not asking whether the method is in stock.) \n(Please select from the dropdown list.)"}]
["Contraceptive Method",null,null,"Commercial Sector",null,"Public Sector","NGO","Social Marketing",null,null,{"$f":"A65","v":"Contraceptive Method"}]
[null,"a. Combined oral contraceptives (estrogen + progestin - for  example, LoFemenol, Microgynon)",null,"Don't know",null,"Yes","Yes","Yes",null,null,{"$f":"B66","v":"a. Combined oral contraceptives (estrogen + progestin - for  example, LoFemenol, Microgynon)"}]
[null,"b. Progestin-only pills (for example, Ovrette, Microlut)",null,"Don't know",null,"Yes","Don't know","Yes",null,null,{"$f":"B67","v":"b. Progestin-only pills (for example, Ovrette, Microlut)"}]
[null,"c. Hormonal injections (for example, DepoProvera, Noristerat)",null,"Don't know",null,"Yes","Yes","Yes",null,null,"c. Hormonal injections (for example, DepoProvera, Noristerat)"]
[null,"d. Hormonal implants (for example, Jadelle, Implanon)",null,"Don't know",null,"Yes","Yes","No",null,null,"d. Hormonal implants (for example, Jadelle, Implanon)"]
[null,"e. Intrauterine devices (IUDs) (for example, Optima Copper T)",null,"Don't know",null,"Yes","Yes","No",null,null,"e. Intrauterine devices (IUDs) (for example, Optima Copper T)"]
[null,"f. Male condoms",null,"Don't know",null,"Yes","Yes","Yes",null,null,"f. Male condoms"]
[null,"g. Female condoms",null,"Don't know",null,"No","Yes","No",null,null,"g. Female condoms"]
[null,"h. Emergency contraceptive pills (for example, Postinor)",null,"Don't know",null,"Yes","No","No",null,null,"h. Emergency contraceptive pills (for example, Postinor)"]
[null,"i. Long-acting permanent method for males (vasectomy)",null,"Don't know",null,"Yes","Yes","No",null,null,"i. Long-acting permanent method for males (vasectomy)"]
[null,"j. Long-acting permanent method for females (tubal ligation)",null,"Don't know",null,"Yes","Yes","No",null,null,"j. Long-acting permanent method for females (tubal ligation)"]
[null,"k. CycleBeads",null,"Don't know",null,"No","No","Yes",null,null,"k. CycleBeads"]
[null,"l. Other contraceptive methods - specify \n(Please provide the name of the other contraceptive(s) offered, by sector.)",null,null,null,null,null,null,null,null,"l. Other contraceptive methods - specify \n(Please provide the name of the other contraceptive(s) offered, by sector.)"]
["C2. Please note any comments about the commodities offered.",null,null,"There is no available data for the commercial sector although it is known that they sell contraceptives in their outlets.  ",null,null,null,null,null,null,{"$f":"A78","v":"C2. Please note any comments about the commodities offered."},null,null,null,{"$f":"D78","v":"There is no available data for the commercial sector although it is known that they sell contraceptives in their outlets.  "}]
["D. Policies (Commitment)"]
["D1. Is there a contraceptive security or reproductive health commodity security strategy or is contraceptive security explicitly included in a country strategy? (Please select from the dropdown list.)",null,null,null,null,null,null,"Yes",{"$f":"A80","v":"D1. Is there a contraceptive security or reproductive health commodity security strategy or is contraceptive security explicitly included in a country strategy? (Please select from the dropdown list.)"}]
["IF NO, SKIP TO QUESTION D2."]
[null,"Strategy name",null,"Years Covered (including strategy updates)",null,"Is the strategy formally approved by the Ministry?","Is the contraceptive security strategy being implemented?",null,null,{"$f":"G82","v":"Is the contraceptive security strategy being implemented?"},{"$f":"B82","v":"Strategy name"},null,{"$f":"E82","v":0},null,null,null,null,null,{"$f":"D82","v":"Years Covered (including strategy updates)"}]
[null,"a","Reproductive Health Commodity Security Strategic Plan","2010-2015",null,"Yes","Yes",null,null,{"$f":"G83","v":"Yes"},{"$f":"B83","v":"a"},null,{"$f":"E83","v":0},null,null,null,null,null,{"$f":"D83","v":"2010-2015"}]
["D2. Are any family planning commodities subject to duties, import taxes, or other fees?",null,null,null,null,"Yes",null,null,null,null,null,null,null,null,null,null,{"$f":"F84","v":"Yes"},{"$f":"A84","v":"D2. Are any family planning commodities subject to duties, import taxes, or other fees?"}]
[null,"a. If yes, for which sectors (public, NGO, social marketing, commercial)?",null,null,"All sectors are charged verification fees by NDA",null,null,null,null,null,null,null,{"$f":"E85","v":"All sectors are charged verification fees by NDA"},{"$f":"E85","v":"All sectors are charged verification fees by NDA"},null,null,null,{"$f":"B85","v":"a. If yes, for which sectors (public, NGO, social marketing, commercial)?"}]
[null,"b. If yes, how much are the duties, taxes, or fees?",null,null,"2% of FOB value is charged as verification fees by NDA on all pharmaceuticals including contraceptives.",null,null,null,null,null,null,null,null,{"$f":"E86","v":"2% of FOB value is charged as verification fees by NDA on all pharmaceuticals including contraceptives."},null,null,null,{"$f":"B86","v":"b. If yes, how much are the duties, taxes, or fees?"}]
["D3. Are there policies that hinder the ability of the private sector (commercial sector, NGOs, or social marketing) to provide contraceptive methods (for example: price controls, distribution limitations, taxes/duties, advertising bans, etc.)?",null,null,null,null,null,null,"No",{"$f":"A87","v":"D3. Are there policies that hinder the ability of the private sector (commercial sector, NGOs, or social marketing) to provide contraceptive methods (for example: price controls, distribution limitations, taxes/duties, advertising bans, etc.)?"}]
[null,"a. If yes, describe the policies.",null,"N/A",null,null,null,null,null,null,{"$f":"B88","v":"a. If yes, describe the policies."},null,null,null,{"$f":"D88","v":"N/A"}]
["D4. Are there policies that enable the private sector (commercial sector, NGOs, or social marketing) to provide contraceptive methods?",null,null,null,null,null,null,"No",{"$f":"A89","v":"D4. Are there policies that enable the private sector (commercial sector, NGOs, or social marketing) to provide contraceptive methods?"}]
[null,"a. If yes, describe the policies.",null,"N/A",null,null,null,null,null,null,{"$f":"B90","v":"a. If yes, describe the policies."},null,null,null,{"$f":"D90","v":"N/A"}]
["D5. Do policies or regulations exist that restrict who can sell or dispense particular contraceptive methods?\n",null,null,null,null,null,null,"Yes",{"$f":"A91","v":"D5. Do policies or regulations exist that restrict who can sell or dispense particular contraceptive methods?\n"}]
[null,"Please note any restrictions in the following table."]
[null,"Contraceptive Method(s)",null,null,"Describe any public sector restriction on who is allowed to sell or dispense the method",null,"Describe any private sector restriction on who is allowed to sell or dispense the method",null,null,{"$f":"G93","v":"Describe any private sector restriction on who is allowed to sell or dispense the method"},null,null,null,null,null,{"$f":"B93","v":"Contraceptive Method(s)"},null,null,null,null,{"$f":"E93","v":"Describe any public sector restriction on who is allowed to sell or dispense the method"}]
[null,"a","Depo-Provera",null,null,null,"Not dispensed in drug shops",null,null,{"$f":"#REF!","v":{"$error":"#REF!"}},null,null,{"$f":"E94","v":0},null,null,{"$f":"#REF!","v":{"$error":"#REF!"}},null,null,null,null,{"$f":"E94","v":0}]
[null,"b",null,null,null,null,null,null,null,{"$f":"G95","v":0},null,null,{"$f":"E95","v":0},null,null,{"$f":"C95","v":0},null,null,null,null,{"$f":"E95","v":0}]
[null,"c",null,null,null,null,null,null,null,{"$f":"G94","v":"Not dispensed in drug shops"},null,null,{"$f":"E96","v":0},null,null,{"$f":"C94","v":"Depo-Provera"},null,null,null,null,{"$f":"E96","v":0}]
[null,null,null,null,null,null,null,null,null,null,{"$f":"C97","v":0}]
["D6. Does the country have laws, regulations, or policies that make it difficult for the following sub-populations to access effective family planning services?",null,null,"Y/N","If yes, describe laws/regulations/policies affecting access ",null,null,"Are the rules/policies implemented?",null,null,{"$f":"A98","v":"D6. Does the country have laws, regulations, or policies that make it difficult for the following sub-populations to access effective family planning services?"},null,null,null,null,null,null,null,null,null,null,{"$f":"E98","v":"If yes, describe laws/regulations/policies affecting access "}]
[null,"a. Unmarried people",null,"No",null,null,null,null,null,null,{"$f":"B99","v":"a. Unmarried people"},null,{"$f":"E99","v":0},null,null,null,null,null,null,null,null,{"$f":"E99","v":0}]
[null,"b. Young people",null,"No",null,null,null,null,null,null,{"$f":"B100","v":"b. Young people"},null,{"$f":"E100","v":0},null,null,null,null,null,null,null,null,{"$f":"E100","v":0}]
[null,"c. Other",null,"No",null,null,null,null,null,null,{"$f":"B101","v":"c. Other"},null,{"$f":"E101","v":0},null,null,null,null,null,null,null,null,{"$f":"E101","v":0}]
[null,null,null,null,null,null,null,null,null,null,{"$f":"C102","v":0}]
["D7. Are there charges* to the client in the public sector for family planning:\n*(This question refers to charges by policy, not under-the-table charges.)\n",null,null,null,null,null,null,null,null,null,null,null,null,null,null,null,null,null,null,null,null,null,null,{"$f":"A103","v":"D7. Are there charges* to the client in the public sector for family planning:\n*(This question refers to charges by policy, not under-the-table charges.)\n"}]
[null,"a. Services?",null,null,null,null,"No",null,null,{"$f":"G104","v":"No"},null,null,null,null,null,null,null,null,null,null,null,null,null,null,{"$f":"B104","v":"a. Services?"}]
[null,"b. Commodities?",null,null,null,null,"No",null,null,{"$f":"G105","v":"No"},null,null,null,null,null,null,null,null,null,null,null,null,null,null,{"$f":"B105","v":"b. Commodities?"}]
[null,"c. If yes, are there exemptions for people who cannot afford to pay?",null,null,null,null,"N/A",null,null,{"$f":"G106","v":"N/A"},null,null,null,null,null,null,null,null,null,null,null,null,null,null,{"$f":"B106","v":"c. If yes, are there exemptions for people who cannot afford to pay?"}]
[null,null,"i. If yes, describe the exemptions.","N/A",null,null,null,null,null,null,{"$f":"C107","v":"i. If yes, describe the exemptions."},null,null,null,{"$f":"D107","v":"N/A"}]
["D8. Are the following contraceptives included in the country's National Essential Medicine List (NEML) or other equivalent priority list?",null,null,null,null,null,null,null,null,null,null,null,null,null,null,null,null,null,null,null,null,null,null,{"$f":"A108","v":"D8. Are the following contraceptives included in the country's National Essential Medicine List (NEML) or other equivalent priority list?"}]
[null,"a. Combined oral contraceptives",null,null,null,null,"Yes",null,null,{"$f":"G109","v":"Yes"},null,null,null,null,null,null,null,null,null,null,null,null,null,null,{"$f":"B109","v":"a. Combined oral contraceptives"}]
[null,"b. Progestin-only pills",null,null,null,null,"Yes",null,null,"Yes",null,null,null,null,null,null,null,null,null,null,null,null,null,null,"b. Progestin-only pills"]
[null,"c. Hormonal injections",null,null,null,null,"Yes",null,null,"Yes",null,null,null,null,null,null,null,null,null,null,null,null,null,null,"c. Hormonal injections"]
[null,"d. Hormonal implants",null,null,null,null,"Yes",null,null,"Yes",null,null,null,null,null,null,null,null,null,null,null,null,null,null,"d. Hormonal implants"]
[null,"e. Intrauterine devices (IUDs)",null,null,null,null,"Yes",null,null,"Yes",null,null,null,null,null,null,null,null,null,null,null,null,null,null,"e. Intrauterine devices (IUDs)"]
[null,"f. Male condoms",null,null,null,null,"No",null,null,"No",null,null,null,null,null,null,null,null,null,null,null,null,null,null,"f. Male condoms"]
[null,"g. Female condoms",null,null,null,null,"No",null,null,"No",null,null,null,null,null,null,null,null,null,null,null,null,null,null,"g. Female condoms"]
[null,"h. Emergency contraceptive pills",null,null,null,null,"Yes",null,null,"Yes",null,null,null,null,null,null,null,null,null,null,null,null,null,null,"h. Emergency contraceptive pills"]
[null,"i. CycleBeads",null,null,null,null,"No",null,null,{"$f":"G117","v":"No"},null,null,null,null,null,null,null,null,null,null,null,null,null,null,{"$f":"B117","v":"i. CycleBeads"}]
[null,"j. Any other contraceptive(s)?",null,null,null,null,"Don't know",null,null,"Don't know",null,null,null,null,null,null,null,null,null,null,null,null,null,null,"j. Any other contraceptive(s)?"]
[null,null,"i. Name of other contraceptive(s) on the list(s)",null,null,"Don't know",null,null,null,0,null,null,null,null,null,null,null,{"$f":"B119","v":0}]
["D9. What year(s) is the list(s) from?",null,null,null,null,2010,null,null,null,0,null,null,null,null,null,null,null,{"$f":"B120","v":0}]
["D10. Name of the list(s)\n\n\n",null,null,"Essential medicines list for Uganda (EMLU)",null,null,null,null,null,null,{"$f":"A121","v":"D10. Name of the list(s)\n\n\n"},null,null,null,{"$f":"D121","v":"Essential medicines list for Uganda (EMLU)"}]
["D11. Notes about the list(s)\n\n\n",null,null,"The list is currently being revised and is expected to be released in mid-2012.",null,null,null,null,null,null,{"$f":"A122","v":"D11. Notes about the list(s)\n\n\n"},null,null,null,{"$f":"D122","v":"The list is currently being revised and is expected to be released in mid-2012."}]
["D12.  Information on country's Poverty Reduction Strategy Paper (PRSP)\n",null,null,null,null,null,null,null,null,null,null,null,null,null,null,null,null,null,null,null,null,null,null,{"$f":"A123","v":"D12.  Information on country's Poverty Reduction Strategy Paper (PRSP)\n"}]
[null,"a. What year is the Poverty Reduction Strategy Paper from? (most recent actual PRSP on IMF's site [not progress or summary report])",null,null,null,2010,null,null,null,{"$f":"G124","v":0},null,null,null,null,null,null,null,{"$f":"B124","v":"a. What year is the Poverty Reduction Strategy Paper from? (most recent actual PRSP on IMF's site [not progress or summary report])"}]
[null,"b. Is family planning or reproductive health a priority in the PRSP?",null,null,null,null,"Yes",null,null,{"$f":"G125","v":"Yes"},null,null,null,null,null,null,null,null,null,null,null,null,null,null,{"$f":"B125","v":"b. Is family planning or reproductive health a priority in the PRSP?"}]
[null,"c. Is contraceptive security included in the PRSP?",null,null,null,null,"Yes",null,null,{"$f":"G126","v":"Yes"},null,null,null,null,null,null,null,null,null,null,null,null,null,null,{"$f":"B126","v":"c. Is contraceptive security included in the PRSP?"}]
[null,"d. Is contraceptive prevalence rate (CPR) included as an indicator in the PRSP?",null,null,null,null,"Yes",null,null,{"$f":"G127","v":"Yes"},null,null,null,null,null,null,null,null,null,null,null,null,null,null,{"$f":"B127","v":"d. Is contraceptive prevalence rate (CPR) included as an indicator in the PRSP?"}]
[null,"e. Are contraceptive supply indicators included in the PRSP?",null,null,null,null,"No",null,null,{"$f":"G128","v":"No"},null,null,null,null,null,null,null,null,null,null,null,null,null,null,{"$f":"B128","v":"e. Are contraceptive supply indicators included in the PRSP?"}]
["\n\n\n","f. Notes about the Poverty Reduction Strategy Paper",null,"Family planning and unmet need is mentioned repeatedly throughout the social sector section (from p. 215 onward). Advocating for reproductive health commodity security, including strengthening logistics, HMIS and LMIS is mentioned (p. 215). CPR is mentioned as a goal to reach the MDGs (p. 23).",null,null,null,null,null,null,{"$f":"B129","v":"f. Notes about the Poverty Reduction Strategy Paper"},null,null,null,{"$f":"D129","v":"Family planning and unmet need is mentioned repeatedly throughout the social sector section (from p. 215 onward). Advocating for reproductive health commodity security, including strengthening logistics, HMIS and LMIS is mentioned (p. 215). CPR is mentioned as a goal to reach the MDGs (p. 23)."}]
["E. Supply Chain (Capacity)"]
["E1. Have stockouts occurred for any contraceptive at the central* level in the last 12 months?  \n*(The central level refers to the central level warehouse for the public sector.)",null,null,null,null,null,"Yes",null,null,{"$f":"G131","v":"Yes"},null,null,null,null,null,null,null,null,null,null,null,null,null,null,{"$f":"A131","v":"E1. Have stockouts occurred for any contraceptive at the central* level in the last 12 months?  \n*(The central level refers to the central level warehouse for the public sector.)"}]
["E2. In the last 12 months, has there ever been a stockout at the central level of any of the contraceptives offered in public sector facilities? (If a method is not intended to be offered in public sector facilities, please indicate that stockouts are not applicable (choose \"N/A\" from the dropdown list).)",null,null,null,null,null,null,null,null,null,null,null,null,null,null,null,null,null,null,null,null,null,null,{"$f":"A132","v":"E2. In the last 12 months, has there ever been a stockout at the central level of any of the contraceptives offered in public sector facilities? (If a method is not intended to be offered in public sector facilities, please indicate that stockouts are not applicable (choose \"N/A\" from the dropdown list).)"}]
[null,"a. Combined oral contraceptives",null,null,null,null,"No",null,null,{"$f":"G133","v":"No"},null,null,null,null,null,null,null,null,null,null,null,null,null,null,{"$f":"B133","v":"a. Combined oral contraceptives"}]
[null,"b. Progestin-only pills",null,null,null,null,"No",null,null,"No",null,null,null,null,null,null,null,null,null,null,null,null,null,null,"b. Progestin-only pills"]
[null,"c. Hormonal injections",null,null,null,null,"No",null,null,"No",null,null,null,null,null,null,null,null,null,null,null,null,null,null,"c. Hormonal injections"]
[null,"d. Hormonal implants",null,null,null,null,"Yes",null,null,"Yes",null,null,null,null,null,null,null,null,null,null,null,null,null,null,"d. Hormonal implants"]
[null,"e. Intrauterine devices (IUDs)",null,null,null,null,"No",null,null,"No",null,null,null,null,null,null,null,null,null,null,null,null,null,null,"e. Intrauterine devices (IUDs)"]
[null,"f. Male condoms",null,null,null,null,"No",null,null,"No",null,null,null,null,null,null,null,null,null,null,null,null,null,null,"f. Male condoms"]
[null,"g. Female condoms",null,null,null,null,"N/A",null,null,"N/A",null,null,null,null,null,null,null,null,null,null,null,null,null,null,"g. Female condoms"]
[null,"h. Emergency contraceptive pills",null,null,null,null,"No",null,null,"No",null,null,null,null,null,null,null,null,null,null,null,null,null,null,"h. Emergency contraceptive pills"]
[null,"i. CycleBeads",null,null,null,null,"N/A",null,null,"N/A",null,null,null,null,null,null,null,null,null,null,null,null,null,null,"i. CycleBeads"]
[null,"j. Time period\n(mm/yy - mm/yy) (for example, 1/10-12/10) ",null,null,null,"07/09-06/10",null,null,null,null,null,null,null,null,null,null,{"$f":"F142","v":"07/09-06/10"},{"$f":"B142","v":"j. Time period\n(mm/yy - mm/yy) (for example, 1/10-12/10) "}]
[null,"k. Data source\n(for example: Procurement Planning and Monitoring Report, Logistics Management Information System, periodic physical inventory, warehouse reports)",null,null,null,"NMS stock status reports, RHI website, USAID | DELIVER PROJECT website",null,null,null,null,null,null,null,null,null,null,{"$f":"F143","v":"NMS stock status reports, RHI website, USAID | DELIVER PROJECT website"},{"$f":"B143","v":"k. Data source\n(for example: Procurement Planning and Monitoring Report, Logistics Management Information System, periodic physical inventory, warehouse reports)"}]
["E3. Are stockouts a large problem in your country at the following levels? (i.e., Are they common or do they tend to last for a long time?)\n\n"]
[null,"a. service delivery point level (i.e., public sector health facilities)",null,null,null,null,"No",null,null,{"$f":"G145","v":"No"},null,null,null,null,null,null,null,null,null,null,null,null,null,null,{"$f":"B145","v":"a. service delivery point level (i.e., public sector health facilities)"}]
[null,"b. central level (i.e., central level warehouse for the public sector)",null,null,null,null,"No",null,null,{"$f":"G146","v":"No"},null,null,null,null,null,null,null,null,null,null,null,null,null,null,{"$f":"B146","v":"b. central level (i.e., central level warehouse for the public sector)"}]
["F. Please note any overall comments about challenges and/or successes with contraceptive security in your country.\n\n",null,null,"The government is now actively committed to spending the funding allocated for contraceptives, and last year the president directed that $3 milllion be made available for contraceptive procurement.  ",null,null,null,null,null,null,{"$f":"A147","v":"F. Please note any overall comments about challenges and/or successes with contraceptive security in your country.\n\n"},null,null,null,{"$f":"D147","v":"The government is now actively committed to spending the funding allocated for contraceptives, and last year the president directed that $3 milllion be made available for contraceptive procurement.  "}]

{"sheet":"Ukraine 2011","index":41,"n_rows":147,"n_cols":25,"rows_kept":147,"cut":false,"hidden":false,"merged":[[5,0,5,2],[8,0,8,7],[145,1,145,5],[22,5,22,7],[144,6,144,7],[143,0,143,7],[142,1,142,4],[142,5,142,7],[59,5,59,7],[148,0,150,7],[145,6,145,7],[146,0,146,2],[146,3,146,7],[147,0,147,7],[36,0,36,6],[39,1,39,2],[53,0,53,7],[127,6,127,7],[93,6,93,7],[50,1,50,2],[138,1,138,5],[63,0,63,7],[61,3,61,7],[78,0,78,6],[74,3,74,4],[97,0,97,2],[98,4,98,6],[95,6,95,7],[92,1,92,3],[94,2,94,3],[81,6,81,7],[69,1,69,2],[71,3,71,4],[68,3,68,4],[70,3,70,4],[70,1,70,2],[77,3,77,7],[76,3,76,4],[69,3,69,4],[144,1,144,5],[139,6,139,7],[137,1,137,5],[101,0,101,7],[137,6,137,7],[106,3,106,7],[104,1,104,5],[139,1,139,5],[121,3,121,7],[133,6,133,7],[132,1,132,5],[133,1,133,5],[138,6,138,7],[132,6,132,7],[109,1,109,5],[109,6,109,7],[130,6,130,7],[112,6,112,7],[120,3,120,7],[125,6,125,7],[141,5,141,7],[141,1,141,4],[129,0,129,6],[140,6,140,7],[75,3,75,4],[81,1,81,2],[84,4,84,7],[76,1,76,2],[75,1,75,2],[77,0,77,2],[81,3,81,4],[83,0,83,4],[124,6,124,7],[116,6,116,7],[94,4,94,5],[98,1,98,2],[95,4,95,5],[83,5,83,7],[131,0,131,7],[94,6,94,7],[87,3,87,7],[115,6,115,7],[97,4,97,6],[111,6,111,7],[120,0,120,2],[116,1,116,5],[95,2,95,3],[90,0,90,6],[93,2,93,3],[136,6,136,7],[122,0,122,7],[117,1,117,5],[130,0,130,5],[117,6,117,7],[118,5,118,7],[123,5,123,7],[124,1,124,5],[118,2,118,4],[136,1,136,5],[135,1,135,5],[134,6,134,7],[135,6,135,7],[140,1,140,5],[73,1,73,2],[92,4,92,5],[99,1,99,2],[100,1,100,2],[84,1,84,3],[121,0,121,2],[134,1,134,5],[119,0,119,4],[119,5,119,7],[123,1,123,4],[89,1,89,2],[86,0,86,6],[89,3,89,7],[85,1,85,3],[92,6,92,7],[91,1,91,2],[87,1,87,2],[99,4,99,6],[93,4,93,5],[104,6,104,7],[105,6,105,7],[88,0,88,6],[110,1,110,5],[55,6,55,7],[46,1,46,2],[29,6,29,7],[29,0,29,3],[72,1,72,2],[71,1,71,2],[37,0,37,7],[33,1,33,3],[54,6,54,7],[56,6,56,7],[42,3,42,7],[58,0,58,4],[56,0,56,4],[49,1,49,2],[35,0,35,7],[48,3,48,7],[51,1,51,2],[47,1,47,2],[45,0,45,7],[38,1,38,2],[43,1,43,2],[40,3,40,7],[60,5,60,7],[55,0,55,4],[0,0,0,7],[54,0,54,4],[7,6,7,7],[1,0,1,2],[1,3,1,4],[3,3,3,4],[3,5,3,7],[28,0,28,5],[11,0,11,6],[23,0,23,6],[13,3,13,7],[12,1,12,2],[13,0,13,2],[17,5,17,7],[19,5,19,7],[18,1,18,2],[20,1,20,2],[41,1,41,2],[31,0,31,6],[34,1,34,3],[14,5,14,7],[15,1,15,2],[26,0,26,6],[16,1,16,2],[2,0,2,7],[32,0,32,7],[14,1,14,2],[9,0,9,7],[10,0,10,6],[12,3,12,7],[4,0,4,2],[30,0,30,6],[7,3,7,5],[7,0,7,2],[21,1,21,2],[28,6,28,7],[24,0,24,6],[18,5,18,7],[21,5,21,7],[15,5,15,7],[16,5,16,7],[27,3,27,4],[22,1,22,2],[17,1,17,2],[19,1,19,2],[25,0,25,2],[20,5,20,7],[27,0,27,2],[64,3,64,4],[58,5,58,7],[61,0,61,2],[67,1,67,2],[64,0,64,2],[62,0,62,6],[65,3,65,4],[66,3,66,4],[59,1,59,4],[60,2,60,4],[103,1,103,5],[100,4,100,6],[103,6,103,7],[105,1,105,5],[108,6,108,7],[108,1,108,5],[112,1,112,5],[102,0,102,7],[65,1,65,2],[68,1,68,2],[73,3,73,4],[66,1,66,2],[82,3,82,4],[67,3,67,4],[80,0,80,2],[81,0,82,0],[72,3,72,4],[96,0,96,7],[74,1,74,2],[79,0,79,6],[82,6,82,7],[85,4,85,7],[110,6,110,7],[107,0,107,7],[114,6,114,7],[115,1,115,5],[111,1,111,5],[128,1,128,2],[128,3,128,7],[125,1,125,5],[126,1,126,5],[127,1,127,5],[126,6,126,7],[114,1,114,5],[113,1,113,5],[113,6,113,7]]}
[null,null,null,null,null,null,null,null,"Columns I-Y are meant to be hidden. They exist because they allow for the dropdown list options. They also allow for merged cells to autofit properly in terms of row height. This should work if all columns remain at their correct widths.","g-h",null,"a-e merged","E-F merged","e-h","0 times",null,null,"The government (e.g., Central Medical Stores, MOH logistics unit, MOH procurement unit)",null,null,null,null,"Yes","a-h","January"]
[null,null,null,null,null,null,null,null,null,null,"A-c",null,null,null,"1-2 times","b-d merged",null,"Third-party agent (e.g., UNFPA, Crown Agents)","d-e merged","d-f merged","e-f merged","e-g merged","No",null,"February"]
[null,null,null,null,null,null,null,null,null,null,null,null,null,null,"3-5 times",null,null,"The government and a third-party agent",null,null,null,null,null,null,"March"]
[null,null,null,null,null,null,null,null,null,null,null,null,null,null,"6 or more times",null,null,"Other",null,null,null,null,"N/A",null,"April"]
["To jump to the Introduction sheet, click here.",null,null,null,null,null,null,null,null,null,null,null,null,null,null,null,null,null,null,null,null,null,"Don't know",null,"May"]
[null,null,null,null,null,null,null,null,null,null,null,null,null,null,"N/A",null,null,"N/A",null,null,null,null,null,null,"June"]
["Contraceptive Security (CS) Indicators 2011 Data ",null,null,null,null,null,null,null,null,null,null,null,null,null,"Don't know",null,null,"Don't know",null,null,null,null,null,null,"July"]
["Country: Ukraine",null,null,null,null,null,null,null,null,{"$f":"G8","v":0},{"$f":"A8","v":"Country: Ukraine"},null,null,null,null,"or c-d",null,null,null,{"$f":"D8","v":0},null,null,null,null,"August"]
["The CS Indicators are presented in the following sections:\n\n               A. leadership & cooordination               B. finance & procurement               C. commodities               D. policies               E. supply chain",null,null,null,null,null,null,null,null,{"$f":"G9","v":0},{"$f":"A9","v":"The CS Indicators are presented in the following sections:\n\n               A. leadership & cooordination               B. finance & procurement               C. commodities               D. policies               E. supply chain"},null,null,null,"d-h",null,"f-h merged",null,{"$f":"D9","v":0},null,null,null,null,{"$f":"A9","v":"The CS Indicators are presented in the following sections:\n\n               A. leadership & cooordination               B. finance & procurement               C. commodities               D. policies               E. supply chain"},"September"]
["\nNotes:\n  -  Respondents' answers are indicated in the white spaces. \n  -  N/A = not applicable. Don't know = the respondent either indicated they did not know or left the answer blank.\n  -  Some questions required respondents to choose from a dropdown list of options; in these cases the dropdown arrow will \n     appear when you click on the cell. \n  -  There may be a few inserted comments. (If you cannot already see them, click on Review tab - Comments group - Show All Comments in newer \n       versions of Excel or View - Comments in older versions of Excel.)\n  -  If the answer is cut off, you can either manually adjust the row height or autofit the row height in order to see the whole \n     response. (To autofit the row height, select the answer(s) and go to Home tab - Cells group - Format - Autofit Row Height in newer versions of Excel or \n      Format - Row - Autofit in older versions of Excel.)\n",null,null,null,null,null,null,null,"a-g",null,null,null,null,null,null,null,null,"a-e merged",null,null,null,null,null,{"$f":"A10","v":"\nNotes:\n  -  Respondents' answers are indicated in the white spaces. \n  -  N/A = not applicable. Don't know = the respondent either indicated they did not know or left the answer blank.\n  -  Some questions required respondents to choose from a dropdown list of options; in these cases the dropdown arrow will \n     appear when you click on the cell. \n  -  There may be a few inserted comments. (If you cannot already see them, click on Review tab - Comments group - Show All Comments in newer \n       versions of Excel or View - Comments in older versions of Excel.)\n  -  If the answer is cut off, you can either manually adjust the row height or autofit the row height in order to see the whole \n     response. (To autofit the row height, select the answer(s) and go to Home tab - Cells group - Format - Autofit Row Height in newer versions of Excel or \n      Format - Row - Autofit in older versions of Excel.)\n"},"October"]
["A. Leadership and Coordination",null,null,null,null,null,null,null,null,null,null,null,null,null,null,null,null,null,null,null,null,null,null,null,"November"]
["A1. Is there a national committee that works on contraceptive security? (Please select from the dropdown list.)\n(Committee should have some aspect of contraceptive security as part of its Terms of Reference, even if it is known by a different name, for example: Family Planning, Reproductive Health, Maternal Mortality, Essential Medicine Committee, etc.)  ",null,null,null,null,null,null,"Yes",{"$f":"A12","v":"A1. Is there a national committee that works on contraceptive security? (Please select from the dropdown list.)\n(Committee should have some aspect of contraceptive security as part of its Terms of Reference, even if it is known by a different name, for example: Family Planning, Reproductive Health, Maternal Mortality, Essential Medicine Committee, etc.)  "},null,null,null,null,null,null,null,null,null,null,null,null,null,null,null,"December"]
[null,"a. What is the name of the committee?",null,"National Committee for Implementation of the State Program \"Reproductive Health of the Nation up to 2015\" (SPRHN)",null,null,null,null,null,null,{"$f":"B13","v":"a. What is the name of the committee?"},{"$f":"D13","v":"National Committee for Implementation of the State Program \"Reproductive Health of the Nation up to 2015\" (SPRHN)"},null,null,{"$f":"D13","v":"National Committee for Implementation of the State Program \"Reproductive Health of the Nation up to 2015\" (SPRHN)"}]
["A2. Are the following organizations represented on the committee?",null,null,"(Y/N \ndropdown)",null,null,null,null,null,null,{"$f":"A14","v":"A2. Are the following organizations represented on the committee?"},null,null,null,null,null,null,null,null,null,null,null,null,null,"Don't know"]
[null,"a. Social marketing",null,"No","If yes, specify name(s) of organizations",null,null,null,null,null,{"$f":"B15","v":"a. Social marketing"},null,null,null,null,null,{"$f":"F15","v":0}]
[null,"b. NGO (for example: service delivery, advocacy, Planned Parenthood affiliate, Marie Stopes affiliate, faith-based organizations, etc.)",null,"Yes","If yes, specify name(s) of organizations","All-Ukrainian Federation of Young Doctors, All-Ukrainian Women's Society",null,null,null,null,"b. NGO (for example: service delivery, advocacy, Planned Parenthood affiliate, Marie Stopes affiliate, faith-based organizations, etc.)",null,null,null,null,null,"All-Ukrainian Federation of Young Doctors, All-Ukrainian Women's Society"]
[null,"c. Commercial sector (for example: pharmacy associations, manufacturers, etc.)",null,"No","If yes, specify name(s) of organizations",null,null,null,null,null,"c. Commercial sector (for example: pharmacy associations, manufacturers, etc.)",null,null,null,null,null,0]
[null,"d. Donors",null,"Yes","If yes, specify name(s) of donors","USAID (represented by the staff of the USAID-supported projects, i.e.,Together for Health and Maternal & Infant Health Project).",null,null,null,null,"d. Donors",null,null,null,null,null,"USAID (represented by the staff of the USAID-supported projects, i.e.,Together for Health and Maternal & Infant Health Project)."]
[null,"e. UN agencies",null,"Yes","If yes, specify name(s) of agencies","UNFPA",null,null,null,null,"e. UN agencies",null,null,null,null,null,"UNFPA"]
[null,"f. Ministry of Health (for example: logistics, reproductive health, family planning, maternal and child health, HIV/AIDS, pharmacy units, etc.)",null,"Yes","If yes, specify name(s) of units","MCH Department/RH Division, Finance and Economic Department",null,null,null,null,"f. Ministry of Health (for example: logistics, reproductive health, family planning, maternal and child health, HIV/AIDS, pharmacy units, etc.)",null,null,null,null,null,"MCH Department/RH Division, Finance and Economic Department"]
[null,"g. Central Medical Store or Central Warehouse",null,"No","If yes, specify",null,null,null,null,null,"g. Central Medical Store or Central Warehouse",null,null,null,null,null,0]
[null,"h. Ministry of Finance or Ministry of Planning ",null,"No","If yes, specify",null,null,null,null,null,"h. Ministry of Finance or Ministry of Planning ",null,null,null,null,null,0]
[null,"i. Other (for example: partners)",null,"Yes","If yes, specify","Academy of Science, National Academy of Post-Graduate Education",null,null,null,null,"i. Other (for example: partners)",null,null,null,null,null,"Academy of Science, National Academy of Post-Graduate Education"]
["A3. How many times did the committee meet during the last year? (0, 1-2, 3-5, or 6+)  (Please select from the dropdown.)",null,null,null,null,null,null,"1-2 times",{"$f":"A24","v":"A3. How many times did the committee meet during the last year? (0, 1-2, 3-5, or 6+)  (Please select from the dropdown.)"}]
["A4. Does the committee have legal status?  (Please select from the dropdown.)                                  ",null,null,null,null,null,null,"Yes",{"$f":"A25","v":"A4. Does the committee have legal status?  (Please select from the dropdown.)                                  "}]
["A5. Is there a Contraceptive Security \"champion\"? (someone who consistently brings up and advocates for contraceptive supplies)",null,null,"No","If yes, specify person's organization",null,"Specify person's job title",null,null,null,{"$f":"A26","v":"A5. Is there a Contraceptive Security \"champion\"? (someone who consistently brings up and advocates for contraceptive supplies)"}]
["B. Finance and Procurement (Capital)"]
["B1. What is the timeline of the country's fiscal year?",null,null,"Beginning month",null,"January","Ending month","December",null,null,{"$f":"B28","v":0}]
["B2. What was the estimated dollar value of contraceptives needed to be procured for the public sector for the most recent complete fiscal year? (in USD currency)\n(for example, to cover the needs for the '09-'10 fiscal year)",null,null,null,null,null,3600000,null,null,{"$f":"G29","v":3600000},null,null,{"$f":"E29","v":0},null,null,null,null,null,null,null,null,null,null,null,{"$f":"A29","v":"B2. What was the estimated dollar value of contraceptives needed to be procured for the public sector for the most recent complete fiscal year? (in USD currency)\n(for example, to cover the needs for the '09-'10 fiscal year)"}]
["B3. When was the last forecast/quantification conducted? (mm/yy)",null,null,null,"06/10","Who conducted it? (Specify organization.)","USAID/JSI - Together for Health Project",null,null,{"$f":"G30","v":"USAID/JSI - Together for Health Project"},null,null,{"$f":"E30","v":"06/10"},null,null,null,null,null,null,null,null,null,null,null,{"$f":"A30","v":"B3. When was the last forecast/quantification conducted? (mm/yy)"}]
["B4. Is there a government budget line item for the procurement of contraceptives?  (Please select from the dropdown list.)",null,null,null,null,null,null,"Yes",{"$f":"A31","v":"B4. Is there a government budget line item for the procurement of contraceptives?  (Please select from the dropdown list.)"}]
["B5. Were government funds allocated for contraceptive procurement for the public sector in the most recent complete fiscal year? (This question refers to funds planned to be spent on contraceptives, whether or not they ended up being spent.) \n\n(Government funds include internally generated funds, basket funds, World Bank credits or loans, and other funds donors gave to the government for their use.) \n",null,null,null,null,null,null,"Yes",{"$f":"A32","v":"B5. Were government funds allocated for contraceptive procurement for the public sector in the most recent complete fiscal year? (This question refers to funds planned to be spent on contraceptives, whether or not they ended up being spent.) \n\n(Government funds include internally generated funds, basket funds, World Bank credits or loans, and other funds donors gave to the government for their use.) \n"}]
["B6. Please complete the table below regarding government allocations for contraceptive procurement.",null,null,null,null,null,null,null,null,null,null,null,null,null,null,null,null,null,null,null,null,null,null,{"$f":"A33","v":"B6. Please complete the table below regarding government allocations for contraceptive procurement."}]
[null,null,null,null,"Amount allocated \n(in USD)","Time period during which allocations were supposed to be spent \n(mm/yy-mm/yy)\n(should ideally be the most recent\ncomplete fiscal year ['09-'10])","Data source \n(for example: Ministry records)","Comments",null,null,{"$f":"A34","v":0}]
[null,"Government funds allocated for contraceptive procurement\n(funds originally designated for contraceptives, whether or not they ended up being spent on them)",null,null,165000,"01/10-12/10","Ministry of Finance of Ukraine","This amount does not include regional allocations.",null,null,{"$f":"#REF!","v":{"$error":"#REF!"}}]
[]
["B7. Were government funds spent on contraceptive procurement for the public sector in the most recent complete fiscal year? \n(Government funds include internally generated funds, basket funds, World Bank credits or loans, and other funds donors gave to the government for their use.)",null,null,null,null,null,null,"Yes",{"$f":"A37","v":"B7. Were government funds spent on contraceptive procurement for the public sector in the most recent complete fiscal year? \n(Government funds include internally generated funds, basket funds, World Bank credits or loans, and other funds donors gave to the government for their use.)"}]
["B8. Please complete the table below to indicate government expenditures on contraceptive procurement, by source, in the most recent complete fiscal year. \n(This is how much was spent on contraceptive procurement (not what was allocated). How much of this spending was provided from each source?)",null,null,null,null,null,null,null,null,null,null,null,null,null,null,null,null,null,null,null,null,null,null,{"$f":"A38","v":"B8. Please complete the table below to indicate government expenditures on contraceptive procurement, by source, in the most recent complete fiscal year. \n(This is how much was spent on contraceptive procurement (not what was allocated). How much of this spending was provided from each source?)"}]
[null,"Source of government funds spent on contraceptive procurement for the public sector",null,"Was this source used?\n(Y/N)","Amount spent \n(in USD)","Time period (mm/yy-mm/yy)\n(should be the same for all sources of funds & ideally be the most recent\ncomplete fiscal year ['09-'10])","Data source \n(for example: Contraceptive Procurement Table, PipeLine, etc.)","Comments",null,null,{"$f":"A39","v":0}]
[null,"a. Internally generated funds spent on contraceptive procurement",null,"Yes",275000,"01/10-12/10","MOH report on implementation of the SPRHN","This amount includes the cumulative national and regional budget expenditures.",null,null,{"$f":"B40","v":"a. Internally generated funds spent on contraceptive procurement"}]
[null,null,"i. Specify source(s) of internally generated funds spent (for example, from taxes or user fees)","State Budget of Ukraine for 2010 ($165,000) and regional budgets ($110,000)",null,null,null,null,null,null,{"$f":"C41","v":"i. Specify source(s) of internally generated funds spent (for example, from taxes or user fees)"},null,null,null,{"$f":"D41","v":"State Budget of Ukraine for 2010 ($165,000) and regional budgets ($110,000)"}]
[null,"b. Total of all other government funds spent on contraceptive procurement (basket funds, World Bank credits or loans, and other funds donors gave to the government [e.g., direct budget support])",null,"No",0,"01/10-12/10",null,null,null,null,{"$f":"B42","v":"b. Total of all other government funds spent on contraceptive procurement (basket funds, World Bank credits or loans, and other funds donors gave to the government [e.g., direct budget support])"}]
[null,null,"i. Specify source(s) of other government funds spent (for example: basket funding or specific donor)","N/A",null,null,null,null,null,null,{"$f":"C43","v":"i. Specify source(s) of other government funds spent (for example: basket funding or specific donor)"},null,null,null,{"$f":"D43","v":"N/A"}]
[null,"c. TOTAL government funds spent on contraceptive procurement\nThis will auto-calculate.  (It will sum a & b above.)",null,null,{"$f":"E40+E42","v":275000},null,null,null,null,null,{"$f":"B44","v":"c. TOTAL government funds spent on contraceptive procurement\nThis will auto-calculate.  (It will sum a & b above.)"}]
[null,null,null,null,null,null,null,null,null,null,{"$f":"A45","v":0}]
["B9. Please complete the table below to indicate donor expenditures on contraceptive procurement in the most recent complete fiscal year.\n",null,null,null,null,null,null,null,null,null,null,null,null,null,null,null,null,null,null,null,null,null,null,{"$f":"A46","v":"B9. Please complete the table below to indicate donor expenditures on contraceptive procurement in the most recent complete fiscal year.\n"}]
["\n","Source of donations and donor funds spent on contraceptive procurement for the public sector",null,"Was this a source?\n(Y/N)","Amount of money spent on these procurements \n(in USD)","Time period (mm/yy-mm/yy)\n(should be the same for all sources of funds & ideally be the most recent\ncomplete fiscal year ['09-'10])","Data source \n(for example:  Donor records, Contraceptive Procurement Table, PipeLine, RHInterchange, etc.","Comments",null,null,{"$f":"A47","v":"\n"}]
[null,"a. In-kind donations of contraceptives",null,"Yes",382500,"01/10-12/10","USAID Together for Health Project (consumption estimate)","The total value of the USAID donated contraceptives is $765,000; it's expected to last until 2012. $191,250 was provided as an estimate of six months' consumption; this was doubled to reach an estimate of a year's consumption. \n",null,null,{"$f":"B48","v":"a. In-kind donations of contraceptives"}]
[null,null,"i. Specify source(s) of in-kind donations ","USAID/Washington",null,null,null,null,null,null,{"$f":"C49","v":"i. Specify source(s) of in-kind donations "},null,null,null,{"$f":"D49","v":"USAID/Washington"}]
[null,"b. Global Fund donations used to procure condoms",null,"Yes",764000,"01/10-12/10","International HIV/AIDS Alliance in Ukraine","International HIV/AIDS Alliance reports that $764,000 was provided by Global Fund to procure condoms for HIV/AIDS and STI prevention. This money was not used to procure condoms for FP purposes.",null,null,{"$f":"B50","v":"b. Global Fund donations used to procure condoms"}]
[null,"c. Global Fund donations used to procure contraceptives besides condoms",null,"No",0,"01/10-12/10",null,null,null,null,{"$f":"B51","v":"c. Global Fund donations used to procure contraceptives besides condoms"}]
[null,"d. TOTAL value of in-kind donations and Global Fund donations spent on contraceptive procurement\nThis will auto-calculate.  (It will sum a-c above.)",null,null,{"$f":"E48+E50+E51","v":1146500},null,null,null,null,null,{"$f":"B52","v":"d. TOTAL value of in-kind donations and Global Fund donations spent on contraceptive procurement\nThis will auto-calculate.  (It will sum a-c above.)"}]
[null,null,null,null,null,null,null,null,null,null,{"$f":"A53","v":0}]
["The answers to B10 and B11 should calculate automatically based on the information you provided. Please review the answers to ensure they make sense to you, and if you have additional information to add, please note it in the comments boxes.\n\nIf the answers do not calculate automatically, please provide any relevant information you may have in the comments boxes.\n",null,null,null,null,null,null,null,null,null,null,null,null,null,null,null,null,null,null,null,null,null,null,{"$f":"A54","v":"The answers to B10 and B11 should calculate automatically based on the information you provided. Please review the answers to ensure they make sense to you, and if you have additional information to add, please note it in the comments boxes.\n\nIf the answers do not calculate automatically, please provide any relevant information you may have in the comments boxes.\n"}]
["B10. Government share of funds spent on contraceptive procurement for the public sector - \nOf the total amount spent on contraceptives for the public sector in the most recent complete fiscal year (including government and donor funds), what percent was covered by government funds (including internally generated funds, basket funds, World Bank credits or loans, and other funds given to the government)? \n\nThis will auto-calculate. (It contains the following formula: Total government spending (Question B8c) / Grand total of all spending for public sector contraceptives from the government and donors (Questions B8c+B9d))",null,null,null,null,{"$f":"E44/(E44+E52)","v":0.19345761519521631},"Global Fund money to procure condoms for HIV/AIDS and STI prevention is included in this calculation as non-government funds. ",null,null,{"$f":"G55","v":"Global Fund money to procure condoms for HIV/AIDS and STI prevention is included in this calculation as non-government funds. "},null,null,null,null,null,null,null,{"$f":"A55","v":"B10. Government share of funds spent on contraceptive procurement for the public sector - \nOf the total amount spent on contraceptives for the public sector in the most recent complete fiscal year (including government and donor funds), what percent was covered by government funds (including internally generated funds, basket funds, World Bank credits or loans, and other funds given to the government)? \n\nThis will auto-calculate. (It contains the following formula: Total government spending (Question B8c) / Grand total of all spending for public sector contraceptives from the government and donors (Questions B8c+B9d))"}]
["B11. Total expenditures on public sector contraceptives as percent of amount that needed to be procured -\nOf the estimated value of the contraceptives needed to be procured for the public sector for the most recent complete fiscal year, what percent was provided by any source (whether government or donor)? \n\nThis will auto-calculate. (It contains the following formula: Grand total of all spending for public sector contraceptives from the government and donors (Questions B8c+B9d) / Value of estimated need for procurement (Question B2))",null,null,null,null,{"$f":"(E44+E52)/G29","v":0.39486111111111111},null,null,null,{"$f":"G56","v":0},null,null,null,null,null,null,null,{"$f":"A56","v":"B11. Total expenditures on public sector contraceptives as percent of amount that needed to be procured -\nOf the estimated value of the contraceptives needed to be procured for the public sector for the most recent complete fiscal year, what percent was provided by any source (whether government or donor)? \n\nThis will auto-calculate. (It contains the following formula: Grand total of all spending for public sector contraceptives from the government and donors (Questions B8c+B9d) / Value of estimated need for procurement (Question B2))"}]
["B12. If B11 did not calculate automatically, please answer the following question:\nWas there a funding gap for the public sector in the last complete fiscal year (e.g., 09-'10 fiscal year)?\n(Please select from the dropdown list.)",null,null,null,null,"Yes",null,null,null,{"$f":"G57","v":0},null,null,null,null,null,null,null,{"$f":"A57","v":"B12. If B11 did not calculate automatically, please answer the following question:\nWas there a funding gap for the public sector in the last complete fiscal year (e.g., 09-'10 fiscal year)?\n(Please select from the dropdown list.)"}]
[null,null,null,null,null,null,null,null,null,null,{"$f":"A58","v":0}]
["B13. If the government financed any contraceptive procurement in the most recent complete fiscal year, which entity conducted the procurement(s)? (Please select from the dropdown.)",null,null,null,null,"The government (e.g., Central Medical Stores, MOH logistics unit, MOH procurement unit)",null,null,null,null,null,null,null,null,null,null,{"$f":"F59","v":"The government (e.g., Central Medical Stores, MOH logistics unit, MOH procurement unit)"},{"$f":"A59","v":"B13. If the government financed any contraceptive procurement in the most recent complete fiscal year, which entity conducted the procurement(s)? (Please select from the dropdown.)"}]
[null,"a. Specify entity",null,null,null,"Ministry of Health, MCH Department in particular, and Oblast Health Administrations in collaboration with Oblast FP Centers",null,null,null,null,null,null,{"$f":"E60","v":0},null,null,null,{"$f":"F60","v":"Ministry of Health, MCH Department in particular, and Oblast Health Administrations in collaboration with Oblast FP Centers"},{"$f":"B60","v":"a. Specify entity"}]
[null,null,"i. Is this a parastatal?",null,null,"No",null,null,null,null,null,null,null,null,null,null,{"$f":"F61","v":"No"},{"$f":"C61","v":"i. Is this a parastatal?"}]
["B14. Please note any additional comments about finance and procurement.\n",null,null,"The USAID Together for Health project has been working with the Government of Ukraine (GOU) and oblast governments to mobilize budgeted resources for the procurement of contraceptives during the period January-December 2010.  (Note: The GOU commitment to finance the SPRHN remains at the same level in terms of local currency amount during the last 3 years. However, the amounts spent during the last 3 years are different.) The USAID TfH project has limited ability to influence the GOU contraceptive procurement process. The situation is aggravated by the fact that there has not been a permanent Head of the MCH Department at the MOH of Ukraine for the last 8 months because of the recent government rotations. Regional councils that make decisions on funding of regional RH programs are reporting decreases in social and health budgets as they have other competing health priorities like HIV/AIDS and TB. The economic crisis is still ongoing and led to the February-March increase of prices for utilities, gas, and food products. It continues to have a negative impact on the population's ability to purchase contraceptives, especially in the rural areas. FP providers reported in November 2010 that the maximum amount of money a Ukrainian woman of reproductive age living in a rural area can afford to spend for the purchase of contraceptives is $4-$5 per month.",null,null,null,null,null,null,{"$f":"A62","v":"B14. Please note any additional comments about finance and procurement.\n"},null,null,null,{"$f":"D62","v":"The USAID Together for Health project has been working with the Government of Ukraine (GOU) and oblast governments to mobilize budgeted resources for the procurement of contraceptives during the period January-December 2010.  (Note: The GOU commitment to finance the SPRHN remains at the same level in terms of local currency amount during the last 3 years. However, the amounts spent during the last 3 years are different.) The USAID TfH project has limited ability to influence the GOU contraceptive procurement process. The situation is aggravated by the fact that there has not been a permanent Head of the MCH Department at the MOH of Ukraine for the last 8 months because of the recent government rotations. Regional councils that make decisions on funding of regional RH programs are reporting decreases in social and health budgets as they have other competing health priorities like HIV/AIDS and TB. The economic crisis is still ongoing and led to the February-March increase of prices for utilities, gas, and food products. It continues to have a negative impact on the population's ability to purchase contraceptives, especially in the rural areas. FP providers reported in November 2010 that the maximum amount of money a Ukrainian woman of reproductive age living in a rural area can afford to spend for the purchase of contraceptives is $4-$5 per month."}]
["C. Commodities"]
["C1. Are the following contraceptive methods offered through the commercial sector, public sector, NGOs, or social marketing? (Please indicate which methods are intended to be offered. This question is not asking whether the method is in stock.) \n(Please select from the dropdown list.)",null,null,null,null,null,null,null,null,null,null,null,null,null,null,null,null,null,null,null,null,null,null,{"$f":"A64","v":"C1. Are the following contraceptive methods offered through the commercial sector, public sector, NGOs, or social marketing? (Please indicate which methods are intended to be offered. This question is not asking whether the method is in stock.) \n(Please select from the dropdown list.)"}]
["Contraceptive Method",null,null,"Commercial Sector",null,"Public Sector","NGO","Social Marketing",null,null,{"$f":"A65","v":"Contraceptive Method"}]
[null,"a. Combined oral contraceptives (estrogen + progestin - for  example, LoFemenol, Microgynon)",null,"Yes",null,"Yes","No","No",null,null,{"$f":"B66","v":"a. Combined oral contraceptives (estrogen + progestin - for  example, LoFemenol, Microgynon)"}]
[null,"b. Progestin-only pills (for example, Ovrette, Microlut)",null,"Yes",null,"Yes","No","No",null,null,{"$f":"B67","v":"b. Progestin-only pills (for example, Ovrette, Microlut)"}]
[null,"c. Hormonal injections (for example, DepoProvera, Noristerat)",null,"Yes",null,"Yes","No","No",null,null,"c. Hormonal injections (for example, DepoProvera, Noristerat)"]
[null,"d. Hormonal implants (for example, Jadelle, Implanon)",null,"No",null,"No","No","No",null,null,"d. Hormonal implants (for example, Jadelle, Implanon)"]
[null,"e. Intrauterine devices (IUDs) (for example, Optima Copper T)",null,"Yes",null,"Yes","No","No",null,null,"e. Intrauterine devices (IUDs) (for example, Optima Copper T)"]
[null,"f. Male condoms",null,"Yes",null,"Yes","No","No",null,null,"f. Male condoms"]
[null,"g. Female condoms",null,"No",null,"No","No","No",null,null,"g. Female condoms"]
[null,"h. Emergency contraceptive pills (for example, Postinor)",null,"Yes",null,"Yes","No","No",null,null,"h. Emergency contraceptive pills (for example, Postinor)"]
[null,"i. Long-acting permanent method for males (vasectomy)",null,"Yes",null,"Yes","No","No",null,null,"i. Long-acting permanent method for males (vasectomy)"]
[null,"j. Long-acting permanent method for females (tubal ligation)",null,"Yes",null,"Yes","No","No",null,null,"j. Long-acting permanent method for females (tubal ligation)"]
[null,"k. CycleBeads",null,"No",null,"No","No","No",null,null,"k. CycleBeads"]
[null,"l. Other contraceptive methods - specify \n(Please provide the name of the other contraceptive(s) offered, by sector.)",null,"Vaginal ring, spermicides, patch",null,"Vaginal ring, spermicides, patch","No","No",null,null,"l. Other contraceptive methods - specify \n(Please provide the name of the other contraceptive(s) offered, by sector.)"]
["C2. Please note any comments about the commodities offered.",null,null,"The public sector CAN offer POPs and ECs, but at this point the methods are not available in stock. Implants are not yet registered in Ukraine; the producer plans to begin registration this year. NGOs are not allowed by law to support the provision of FP services and commodities. There are no FP-related social marketing programs in Ukraine. \n",null,null,null,null,null,null,{"$f":"A78","v":"C2. Please note any comments about the commodities offered."},null,null,null,{"$f":"D78","v":"The public sector CAN offer POPs and ECs, but at this point the methods are not available in stock. Implants are not yet registered in Ukraine; the producer plans to begin registration this year. NGOs are not allowed by law to support the provision of FP services and commodities. There are no FP-related social marketing programs in Ukraine. \n"}]
["D. Policies (Commitment)"]
["D1. Is there a contraceptive security or reproductive health commodity security strategy or is contraceptive security explicitly included in a country strategy? (Please select from the dropdown list.)",null,null,null,null,null,null,"No",{"$f":"A80","v":"D1. Is there a contraceptive security or reproductive health commodity security strategy or is contraceptive security explicitly included in a country strategy? (Please select from the dropdown list.)"}]
["IF NO, SKIP TO QUESTION D2."]
[null,"Strategy name",null,"Years Covered (including strategy updates)",null,"Is the strategy formally approved by the Ministry?","Is the contraceptive security strategy being implemented?",null,null,{"$f":"G82","v":"Is the contraceptive security strategy being implemented?"},{"$f":"B82","v":"Strategy name"},null,{"$f":"E82","v":0},null,null,null,null,null,{"$f":"D82","v":"Years Covered (including strategy updates)"}]
[null,"a",null,null,null,null,null,null,null,{"$f":"G83","v":0},{"$f":"B83","v":"a"},null,{"$f":"E83","v":0},null,null,null,null,null,{"$f":"D83","v":0}]
["D2. Are any family planning commodities subject to duties, import taxes, or other fees?",null,null,null,null,"Yes",null,null,null,null,null,null,null,null,null,null,{"$f":"F84","v":"Yes"},{"$f":"A84","v":"D2. Are any family planning commodities subject to duties, import taxes, or other fees?"}]
[null,"a. If yes, for which sectors (public, NGO, social marketing, commercial)?",null,null,"Commercial sector",null,null,null,null,null,null,null,{"$f":"E85","v":"Commercial sector"},{"$f":"E85","v":"Commercial sector"},null,null,null,{"$f":"B85","v":"a. If yes, for which sectors (public, NGO, social marketing, commercial)?"}]
[null,"b. If yes, how much are the duties, taxes, or fees?",null,null,"VAT (20% of the total cost), custom tax",null,null,null,null,null,null,null,null,{"$f":"E86","v":"VAT (20% of the total cost), custom tax"},null,null,null,{"$f":"B86","v":"b. If yes, how much are the duties, taxes, or fees?"}]
["D3. Are there policies that hinder the ability of the private sector (commercial sector, NGOs, or social marketing) to provide contraceptive methods (for example: price controls, distribution limitations, taxes/duties, advertising bans, etc.)?",null,null,null,null,null,null,"Yes",{"$f":"A87","v":"D3. Are there policies that hinder the ability of the private sector (commercial sector, NGOs, or social marketing) to provide contraceptive methods (for example: price controls, distribution limitations, taxes/duties, advertising bans, etc.)?"}]
[null,"a. If yes, describe the policies.",null,"The law of Ukraine \"On Advertising\", article 21 does not allow advertising of prescription-based medicines, which includes contraceptives. ",null,null,null,null,null,null,{"$f":"B88","v":"a. If yes, describe the policies."},null,null,null,{"$f":"D88","v":"The law of Ukraine \"On Advertising\", article 21 does not allow advertising of prescription-based medicines, which includes contraceptives. "}]
["D4. Are there policies that enable the private sector (commercial sector, NGOs, or social marketing) to provide contraceptive methods?",null,null,null,null,null,null,"Yes",{"$f":"A89","v":"D4. Are there policies that enable the private sector (commercial sector, NGOs, or social marketing) to provide contraceptive methods?"}]
[null,"a. If yes, describe the policies.",null,"Drugs (including contraceptives) are exempted from the payment of VAT in Ukraine. Also, private companies have to be registered and licensed. This is protection against counterfeit drugs. ",null,null,null,null,null,null,{"$f":"B90","v":"a. If yes, describe the policies."},null,null,null,{"$f":"D90","v":"Drugs (including contraceptives) are exempted from the payment of VAT in Ukraine. Also, private companies have to be registered and licensed. This is protection against counterfeit drugs. "}]
["D5. Do policies or regulations exist that restrict who can sell or dispense particular contraceptive methods?\n",null,null,null,null,null,null,"Yes",{"$f":"A91","v":"D5. Do policies or regulations exist that restrict who can sell or dispense particular contraceptive methods?\n"}]
[null,"Please note any restrictions in the following table."]
[null,"Contraceptive Method(s)",null,null,"Describe any public sector restriction on who is allowed to sell or dispense the method",null,"Describe any private sector restriction on who is allowed to sell or dispense the method",null,null,{"$f":"G93","v":"Describe any private sector restriction on who is allowed to sell or dispense the method"},null,null,null,null,null,{"$f":"B93","v":"Contraceptive Method(s)"},null,null,null,null,{"$f":"E93","v":"Describe any public sector restriction on who is allowed to sell or dispense the method"}]
[null,"a","All hormonal methods ",null,"Clinics can either dispense or prescribe these methods for purchase in state pharmacies. The prescriptions are written by doctors; midwives and nurses are not allowed to write prescriptions. ",null,"Licensed pharmacies sell hormonals based on a doctor prescription.",null,null,{"$f":"G94","v":"Licensed pharmacies sell hormonals based on a doctor prescription."},null,null,{"$f":"E94","v":"Clinics can either dispense or prescribe these methods for purchase in state pharmacies. The prescriptions are written by doctors; midwives and nurses are not allowed to write prescriptions. "},null,null,{"$f":"C94","v":"All hormonal methods "},null,null,null,null,{"$f":"E94","v":"Clinics can either dispense or prescribe these methods for purchase in state pharmacies. The prescriptions are written by doctors; midwives and nurses are not allowed to write prescriptions. "}]
[null,"b","IUDs",null,"Only specially trained ob-gyns can insert IUDs. Family doctors can only prescribe IUDs. Midwives and nurses cannot prescribe them.",null,"Only specially trained ob-gyns can insert IUDs. Family doctors can only prescribe IUDs.",null,null,{"$f":"G95","v":"Only specially trained ob-gyns can insert IUDs. Family doctors can only prescribe IUDs."},null,null,{"$f":"E95","v":"Only specially trained ob-gyns can insert IUDs. Family doctors can only prescribe IUDs. Midwives and nurses cannot prescribe them."},null,null,{"$f":"C95","v":"IUDs"},null,null,null,null,{"$f":"E95","v":"Only specially trained ob-gyns can insert IUDs. Family doctors can only prescribe IUDs. Midwives and nurses cannot prescribe them."}]
[null,"c","Injectables",null,"Nurses and midwives can provide the Depo injections, in a health facility, upon the recommendation from a doctor.",null,null,null,null,{"$f":"G96","v":0},null,null,{"$f":"E96","v":"Nurses and midwives can provide the Depo injections, in a health facility, upon the recommendation from a doctor."},null,null,{"$f":"C96","v":"Injectables"},null,null,null,null,{"$f":"E96","v":"Nurses and midwives can provide the Depo injections, in a health facility, upon the recommendation from a doctor."}]
[null,null,null,null,null,null,null,null,null,null,{"$f":"C97","v":0}]
["D6. Does the country have laws, regulations, or policies that make it difficult for the following sub-populations to access effective family planning services?",null,null,"Y/N","If yes, describe laws/regulations/policies affecting access ",null,null,"Are the rules/policies implemented?",null,null,{"$f":"A98","v":"D6. Does the country have laws, regulations, or policies that make it difficult for the following sub-populations to access effective family planning services?"},null,null,null,null,null,null,null,null,null,null,{"$f":"E98","v":"If yes, describe laws/regulations/policies affecting access "}]
[null,"a. Unmarried people",null,"No",null,null,null,null,null,null,{"$f":"B99","v":"a. Unmarried people"},null,{"$f":"E99","v":0},null,null,null,null,null,null,null,null,{"$f":"E99","v":0}]
[null,"b. Young people",null,"No",null,null,null,null,null,null,{"$f":"B100","v":"b. Young people"},null,{"$f":"E100","v":0},null,null,null,null,null,null,null,null,{"$f":"E100","v":0}]
[null,"c. Other",null,"No",null,null,null,null,null,null,{"$f":"B101","v":"c. Other"},null,{"$f":"E101","v":0},null,null,null,null,null,null,null,null,{"$f":"E101","v":0}]
[null,null,null,null,null,null,null,null,null,null,{"$f":"C102","v":0}]
["D7. Are there charges* to the client in the public sector for family planning:\n*(This question refers to charges by policy, not under-the-table charges.)\n",null,null,null,null,null,null,null,null,null,null,null,null,null,null,null,null,null,null,null,null,null,null,{"$f":"A103","v":"D7. Are there charges* to the client in the public sector for family planning:\n*(This question refers to charges by policy, not under-the-table charges.)\n"}]
[null,"a. Services?",null,null,null,null,"No",null,null,{"$f":"G104","v":"No"},null,null,null,null,null,null,null,null,null,null,null,null,null,null,{"$f":"B104","v":"a. Services?"}]
[null,"b. Commodities?",null,null,null,null,"No",null,null,{"$f":"G105","v":"No"},null,null,null,null,null,null,null,null,null,null,null,null,null,null,{"$f":"B105","v":"b. Commodities?"}]
[null,"c. If yes, are there exemptions for people who cannot afford to pay?",null,null,null,null,"N/A",null,null,{"$f":"G106","v":"N/A"},null,null,null,null,null,null,null,null,null,null,null,null,null,null,{"$f":"B106","v":"c. If yes, are there exemptions for people who cannot afford to pay?"}]
[null,null,"i. If yes, describe the exemptions.","N/A",null,null,null,null,null,null,{"$f":"C107","v":"i. If yes, describe the exemptions."},null,null,null,{"$f":"D107","v":"N/A"}]
["D8. Are the following contraceptives included in the country's National Essential Medicine List (NEML) or other equivalent priority list?",null,null,null,null,null,null,null,null,null,null,null,null,null,null,null,null,null,null,null,null,null,null,{"$f":"A108","v":"D8. Are the following contraceptives included in the country's National Essential Medicine List (NEML) or other equivalent priority list?"}]
[null,"a. Combined oral contraceptives",null,null,null,null,"Yes",null,null,{"$f":"G109","v":"Yes"},null,null,null,null,null,null,null,null,null,null,null,null,null,null,{"$f":"B109","v":"a. Combined oral contraceptives"}]
[null,"b. Progestin-only pills",null,null,null,null,"Yes",null,null,"Yes",null,null,null,null,null,null,null,null,null,null,null,null,null,null,"b. Progestin-only pills"]
[null,"c. Hormonal injections",null,null,null,null,"Yes",null,null,"Yes",null,null,null,null,null,null,null,null,null,null,null,null,null,null,"c. Hormonal injections"]
[null,"d. Hormonal implants",null,null,null,null,"Yes",null,null,"Yes",null,null,null,null,null,null,null,null,null,null,null,null,null,null,"d. Hormonal implants"]
[null,"e. Intrauterine devices (IUDs)",null,null,null,null,"No",null,null,"No",null,null,null,null,null,null,null,null,null,null,null,null,null,null,"e. Intrauterine devices (IUDs)"]
[null,"f. Male condoms",null,null,null,null,"No",null,null,"No",null,null,null,null,null,null,null,null,null,null,null,null,null,null,"f. Male condoms"]
[null,"g. Female condoms",null,null,null,null,"No",null,null,"No",null,null,null,null,null,null,null,null,null,null,null,null,null,null,"g. Female condoms"]
[null,"h. Emergency contraceptive pills",null,null,null,null,"Yes",null,null,"Yes",null,null,null,null,null,null,null,null,null,null,null,null,null,null,"h. Emergency contraceptive pills"]
[null,"i. CycleBeads",null,null,null,null,"No",null,null,{"$f":"G117","v":"No"},null,null,null,null,null,null,null,null,null,null,null,null,null,null,{"$f":"B117","v":"i. CycleBeads"}]
[null,"j. Any other contraceptive(s)?",null,null,null,null,"No",null,null,"No",null,null,null,null,null,null,null,null,null,null,null,null,null,null,"j. Any other contraceptive(s)?"]
[null,null,"i. Name of other contraceptive(s) on the list(s)",null,null,"N/A",null,null,null,0,null,null,null,null,null,null,null,{"$f":"B119","v":0}]
["D9. What year(s) is the list(s) from?",null,null,null,null,2009,null,null,null,0,null,null,null,null,null,null,null,{"$f":"B120","v":0}]
["D10. Name of the list(s)\n\n\n",null,null,"National Essential Medicine List",null,null,null,null,null,null,{"$f":"A121","v":"D10. Name of the list(s)\n\n\n"},null,null,null,{"$f":"D121","v":"National Essential Medicine List"}]
["D11. Notes about the list(s)\n\n\n",null,null,"Condoms and IUDs are not part of this list as Ukrainian legislation considers them medical devices. A list of medical devices does not exist.",null,null,null,null,null,null,{"$f":"A122","v":"D11. Notes about the list(s)\n\n\n"},null,null,null,{"$f":"D122","v":"Condoms and IUDs are not part of this list as Ukrainian legislation considers them medical devices. A list of medical devices does not exist."}]
["D12.  Information on country's Poverty Reduction Strategy Paper (PRSP)\n",null,null,null,null,null,null,null,null,null,null,null,null,null,null,null,null,null,null,null,null,null,null,{"$f":"A123","v":"D12.  Information on country's Poverty Reduction Strategy Paper (PRSP)\n"}]
[null,"a. What year is the Poverty Reduction Strategy Paper from? (most recent actual PRSP on IMF's site [not progress or summary report])",null,null,null,2005,null,null,null,{"$f":"G124","v":0},null,null,null,null,null,null,null,{"$f":"B124","v":"a. What year is the Poverty Reduction Strategy Paper from? (most recent actual PRSP on IMF's site [not progress or summary report])"}]
[null,"b. Is family planning or reproductive health a priority in the PRSP?",null,null,null,null,"Yes",null,null,{"$f":"G125","v":"Yes"},null,null,null,null,null,null,null,null,null,null,null,null,null,null,{"$f":"B125","v":"b. Is family planning or reproductive health a priority in the PRSP?"}]
[null,"c. Is contraceptive security included in the PRSP?",null,null,null,null,"No",null,null,{"$f":"G126","v":"No"},null,null,null,null,null,null,null,null,null,null,null,null,null,null,{"$f":"B126","v":"c. Is contraceptive security included in the PRSP?"}]
[null,"d. Is contraceptive prevalence rate (CPR) included as an indicator in the PRSP?",null,null,null,null,"No",null,null,{"$f":"G127","v":"No"},null,null,null,null,null,null,null,null,null,null,null,null,null,null,{"$f":"B127","v":"d. Is contraceptive prevalence rate (CPR) included as an indicator in the PRSP?"}]
[null,"e. Are contraceptive supply indicators included in the PRSP?",null,null,null,null,"No",null,null,{"$f":"G128","v":"No"},null,null,null,null,null,null,null,null,null,null,null,null,null,null,{"$f":"B128","v":"e. Are contraceptive supply indicators included in the PRSP?"}]
["\n\n\n","f. Notes about the Poverty Reduction Strategy Paper",null,"Improving peoples' abilities to plan the size of their families is one of the priorities under Pillar 5: Human development (p.34) \nThe following are priorities for the health sector, but not indicators:\n- Procure additional reproductive health commodities\n- Family planning supplies for 3 million couples per year\n(p.195, Table 7.5)",null,null,null,null,null,null,{"$f":"B129","v":"f. Notes about the Poverty Reduction Strategy Paper"},null,null,null,{"$f":"D129","v":"Improving peoples' abilities to plan the size of their families is one of the priorities under Pillar 5: Human development (p.34) \nThe following are priorities for the health sector, but not indicators:\n- Procure additional reproductive health commodities\n- Family planning supplies for 3 million couples per year\n(p.195, Table 7.5)"}]
["E. Supply Chain (Capacity)"]
["E1. Have stockouts occurred for any contraceptive at the central* level in the last 12 months?  \n*(The central level refers to the central level warehouse for the public sector.)",null,null,null,null,null,"Don't know",null,null,{"$f":"G131","v":"Don't know"},null,null,null,null,null,null,null,null,null,null,null,null,null,null,{"$f":"A131","v":"E1. Have stockouts occurred for any contraceptive at the central* level in the last 12 months?  \n*(The central level refers to the central level warehouse for the public sector.)"}]
["E2. In the last 12 months, has there ever been a stockout at the central level of any of the contraceptives offered in public sector facilities? (If a method is not intended to be offered in public sector facilities, please indicate that stockouts are not applicable (choose \"N/A\" from the dropdown list).)",null,null,null,null,null,null,null,null,null,null,null,null,null,null,null,null,null,null,null,null,null,null,{"$f":"A132","v":"E2. In the last 12 months, has there ever been a stockout at the central level of any of the contraceptives offered in public sector facilities? (If a method is not intended to be offered in public sector facilities, please indicate that stockouts are not applicable (choose \"N/A\" from the dropdown list).)"}]
[null,"a. Combined oral contraceptives",null,null,null,null,"Don't know",null,null,{"$f":"G133","v":"Don't know"},null,null,null,null,null,null,null,null,null,null,null,null,null,null,{"$f":"B133","v":"a. Combined oral contraceptives"}]
[null,"b. Progestin-only pills",null,null,null,null,"N/A",null,null,"N/A",null,null,null,null,null,null,null,null,null,null,null,null,null,null,"b. Progestin-only pills"]
[null,"c. Hormonal injections",null,null,null,null,"N/A",null,null,"N/A",null,null,null,null,null,null,null,null,null,null,null,null,null,null,"c. Hormonal injections"]
[null,"d. Hormonal implants",null,null,null,null,"N/A",null,null,"N/A",null,null,null,null,null,null,null,null,null,null,null,null,null,null,"d. Hormonal implants"]
[null,"e. Intrauterine devices (IUDs)",null,null,null,null,"Don't know",null,null,"Don't know",null,null,null,null,null,null,null,null,null,null,null,null,null,null,"e. Intrauterine devices (IUDs)"]
[null,"f. Male condoms",null,null,null,null,"Don't know",null,null,"Don't know",null,null,null,null,null,null,null,null,null,null,null,null,null,null,"f. Male condoms"]
[null,"g. Female condoms",null,null,null,null,"N/A",null,null,"N/A",null,null,null,null,null,null,null,null,null,null,null,null,null,null,"g. Female condoms"]
[null,"h. Emergency contraceptive pills",null,null,null,null,"N/A",null,null,"N/A",null,null,null,null,null,null,null,null,null,null,null,null,null,null,"h. Emergency contraceptive pills"]
[null,"i. CycleBeads",null,null,null,null,"N/A",null,null,"N/A",null,null,null,null,null,null,null,null,null,null,null,null,null,null,"i. CycleBeads"]
[null,"j. Time period\n(mm/yy - mm/yy) (for example, 1/10-12/10) ",null,null,null,"N/A",null,null,null,null,null,null,null,null,null,null,{"$f":"F142","v":"N/A"},{"$f":"B142","v":"j. Time period\n(mm/yy - mm/yy) (for example, 1/10-12/10) "}]
[null,"k. Data source\n(for example: Procurement Planning and Monitoring Report, Logistics Management Information System, periodic physical inventory, warehouse reports)",null,null,null,"The answer \"don’t know\" means there is no data available at the MOH on how they handle the procured contraceptives. The answer \"N/A\" means that some of the contraceptives are not registered (e.g., implants and CycleBeads) or are not procured by the GOU (e.g., progestin-only pills, injections, emergency contraceptives).",null,null,null,null,null,null,null,null,null,null,{"$f":"F143","v":"The answer \"don’t know\" means there is no data available at the MOH on how they handle the procured contraceptives. The answer \"N/A\" means that some of the contraceptives are not registered (e.g., implants and CycleBeads) or are not procured by the GOU (e.g., progestin-only pills, injections, emergency contraceptives)."},{"$f":"B143","v":"k. Data source\n(for example: Procurement Planning and Monitoring Report, Logistics Management Information System, periodic physical inventory, warehouse reports)"}]
["E3. Are stockouts a large problem in your country at the following levels? (i.e., Are they common or do they tend to last for a long time?)\n\n"]
[null,"a. service delivery point level (i.e., public sector health facilities)",null,null,null,null,"Yes",null,null,{"$f":"G145","v":"Yes"},null,null,null,null,null,null,null,null,null,null,null,null,null,null,{"$f":"B145","v":"a. service delivery point level (i.e., public sector health facilities)"}]
[null,"b. central level (i.e., central level warehouse for the public sector)",null,null,null,null,"Don't know",null,null,{"$f":"G146","v":"Don't know"},null,null,null,null,null,null,null,null,null,null,null,null,null,null,{"$f":"B146","v":"b. central level (i.e., central level warehouse for the public sector)"}]
["F. Please note any overall comments about challenges and/or successes with contraceptive security in your country.",null,null,"There are four vulnerable population groups in Ukraine that have access to free contraceptives through the public sector: poor people, HIV+ women, youth aged 18-20, and women with extragenital pathologies. The Ministry of Health (MOH) does not estimate the need for contraceptives for these groups, as they never receive state funding for procurement of contraceptives based on the need. The funding is always limited and represents \"what is given by the Ministry of Finance\". In addition, there are no clear criteria in the country regarding \"who is the poor\", and thus, there are no official records on the number of poor people. State Statistics Committee (SSC) of Ukraine says that 48.6% of the population live on a monthly income of $100-$200.  The MOH reports that they procure contraceptives in sufficient quantities to ensure that 90%-100% of women with extragenital pathologies have access to them (the fourth vulnerable group). However, this satisfies only one of the four vulnerable groups. The USAID Together for Health (TfH) project made the forecast of the contraceptive needs for the eligible population in Ukraine in 2010. They used the World Bank estimate that 8% of the population in Ukraine is poor, UNAIDS data on HIV+ people, SSC data on youth, and 2007 DHS for details on contraceptive use.  Also, since October 2010, the USAID TfH project has been distributing the USAID-donated contraceptives (DepoProvera, Microgynon, and Copper IUD) that reach the primary health care level in 15 regions of Ukraine (out of a total of 27). The regions are collecting data on distribution and reporting to the project. However, since the distribution has been active for only one quarter, it is too early to make conclusions about the contraceptive needs in these 15 regions.",null,null,null,null,null,null,{"$f":"A147","v":"F. Please note any overall comments about challenges and/or successes with contraceptive security in your country."},null,null,null,{"$f":"D147","v":"There are four vulnerable population groups in Ukraine that have access to free contraceptives through the public sector: poor people, HIV+ women, youth aged 18-20, and women with extragenital pathologies. The Ministry of Health (MOH) does not estimate the need for contraceptives for these groups, as they never receive state funding for procurement of contraceptives based on the need. The funding is always limited and represents \"what is given by the Ministry of Finance\". In addition, there are no clear criteria in the country regarding \"who is the poor\", and thus, there are no official records on the number of poor people. State Statistics Committee (SSC) of Ukraine says that 48.6% of the population live on a monthly income of $100-$200.  The MOH reports that they procure contraceptives in sufficient quantities to ensure that 90%-100% of women with extragenital pathologies have access to them (the fourth vulnerable group). However, this satisfies only one of the four vulnerable groups. The USAID Together for Health (TfH) project made the forecast of the contraceptive needs for the eligible population in Ukraine in 2010. They used the World Bank estimate that 8% of the population in Ukraine is poor, UNAIDS data on HIV+ people, SSC data on youth, and 2007 DHS for details on contraceptive use.  Also, since October 2010, the USAID TfH project has been distributing the USAID-donated contraceptives (DepoProvera, Microgynon, and Copper IUD) that reach the primary health care level in 15 regions of Ukraine (out of a total of 27). The regions are collecting data on distribution and reporting to the project. However, since the distribution has been active for only one quarter, it is too early to make conclusions about the contraceptive needs in these 15 regions."}]

{"sheet":"Yemen 2011","index":42,"n_rows":147,"n_cols":25,"rows_kept":147,"cut":false,"hidden":false,"merged":[[0,0,0,7],[1,0,1,2],[1,3,1,4],[2,0,2,7],[3,3,3,4],[3,5,3,7],[7,0,7,2],[7,3,7,5],[7,6,7,7],[9,0,9,7],[10,0,10,6],[11,0,11,6],[12,1,12,2],[12,3,12,7],[4,0,4,2],[5,0,5,2],[8,0,8,7],[16,1,16,2],[16,5,16,7],[17,1,17,2],[17,5,17,7],[18,1,18,2],[18,5,18,7],[13,0,13,2],[13,3,13,7],[14,1,14,2],[14,5,14,7],[15,1,15,2],[15,5,15,7],[22,1,22,2],[22,5,22,7],[23,0,23,6],[24,0,24,6],[25,0,25,2],[26,0,26,6],[19,1,19,2],[19,5,19,7],[20,1,20,2],[20,5,20,7],[21,1,21,2],[21,5,21,7],[30,0,30,6],[31,0,31,6],[32,0,32,7],[33,1,33,3],[34,1,34,3],[35,0,35,7],[27,0,27,2],[27,3,27,4],[28,0,28,5],[28,6,28,7],[29,0,29,3],[29,6,29,7],[42,3,42,7],[43,1,43,2],[45,0,45,7],[46,1,46,2],[47,1,47,2],[48,3,48,7],[36,0,36,6],[37,0,37,7],[38,1,38,2],[39,1,39,2],[40,3,40,7],[41,1,41,2],[55,0,55,4],[55,6,55,7],[56,0,56,4],[56,6,56,7],[58,0,58,4],[58,5,58,7],[49,1,49,2],[50,1,50,2],[51,1,51,2],[53,0,53,7],[54,0,54,4],[54,6,54,7],[62,0,62,6],[63,0,63,7],[64,0,64,2],[64,3,64,4],[65,1,65,2],[65,3,65,4],[59,1,59,4],[59,5,59,7],[60,2,60,4],[60,5,60,7],[61,0,61,2],[61,3,61,7],[69,1,69,2],[69,3,69,4],[70,1,70,2],[70,3,70,4],[71,1,71,2],[71,3,71,4],[66,1,66,2],[66,3,66,4],[67,1,67,2],[67,3,67,4],[68,1,68,2],[68,3,68,4],[75,1,75,2],[75,3,75,4],[76,1,76,2],[76,3,76,4],[77,0,77,2],[77,3,77,7],[72,1,72,2],[72,3,72,4],[73,1,73,2],[73,3,73,4],[74,1,74,2],[74,3,74,4],[83,0,83,4],[83,5,83,7],[84,1,84,3],[84,4,84,7],[85,1,85,3],[85,4,85,7],[78,0,78,6],[79,0,79,6],[80,0,80,2],[81,0,82,0],[81,1,81,2],[81,3,81,4],[81,6,81,7],[82,3,82,4],[82,6,82,7],[90,0,90,6],[91,1,91,2],[92,1,92,3],[92,4,92,5],[92,6,92,7],[93,2,93,3],[93,4,93,5],[93,6,93,7],[86,0,86,6],[87,1,87,2],[87,3,87,7],[88,0,88,6],[89,1,89,2],[89,3,89,7],[96,0,96,7],[97,0,97,2],[97,4,97,6],[98,1,98,2],[98,4,98,6],[99,1,99,2],[99,4,99,6],[94,2,94,3],[94,4,94,5],[94,6,94,7],[95,2,95,3],[95,4,95,5],[95,6,95,7],[104,1,104,5],[104,6,104,7],[105,1,105,5],[105,6,105,7],[106,3,106,7],[107,0,107,7],[100,1,100,2],[100,4,100,6],[101,0,101,7],[102,0,102,7],[103,1,103,5],[103,6,103,7],[111,1,111,5],[111,6,111,7],[112,1,112,5],[112,6,112,7],[113,1,113,5],[113,6,113,7],[108,1,108,5],[108,6,108,7],[109,1,109,5],[109,6,109,7],[110,1,110,5],[110,6,110,7],[117,1,117,5],[117,6,117,7],[118,2,118,4],[118,5,118,7],[119,0,119,4],[119,5,119,7],[114,1,114,5],[114,6,114,7],[115,1,115,5],[115,6,115,7],[116,1,116,5],[116,6,116,7],[131,0,131,7],[132,1,132,5],[132,6,132,7],[133,1,133,5],[133,6,133,7],[134,1,134,5],[134,6,134,7],[120,0,120,2],[120,3,120,7],[121,0,121,2],[121,3,121,7],[129,0,129,6],[130,0,130,5],[130,6,130,7],[122,0,122,7],[123,1,123,4],[123,5,123,7],[138,1,138,5],[138,6,138,7],[139,1,139,5],[139,6,139,7],[140,1,140,5],[140,6,140,7],[135,1,135,5],[135,6,135,7],[136,1,136,5],[136,6,136,7],[137,1,137,5],[137,6,137,7],[147,0,147,7],[148,0,150,7],[145,1,145,5],[145,6,145,7],[146,0,146,2],[146,3,146,7],[141,1,141,4],[141,5,141,7],[142,1,142,4],[142,5,142,7],[143,0,143,7],[144,1,144,5],[144,6,144,7],[127,1,127,5],[127,6,127,7],[128,1,128,2],[128,3,128,7],[124,1,124,5],[124,6,124,7],[125,1,125,5],[125,6,125,7],[126,1,126,5],[126,6,126,7]]}
[null,null,null,null,null,null,null,null,"Columns I-Y are meant to be hidden. They exist because they allow for the dropdown list options. They also allow for merged cells to autofit properly in terms of row height. This should work if all columns remain at their correct widths.","g-h",null,"a-e merged","E-F merged","e-h","0 times",null,null,"The government (e.g., Central Medical Stores, MOH logistics unit, MOH procurement unit)",null,null,null,null,"Yes","a-h","January"]
[null,null,null,null,null,null,null,null,null,null,"A-c",null,null,null,"1-2 times","b-d merged",null,"Third-party agent (e.g., UNFPA, Crown Agents)","d-e merged","d-f merged","e-f merged","e-g merged","No",null,"February"]
[null,null,null,null,null,null,null,null,null,null,null,null,null,null,"3-5 times",null,null,"The government and a third-party agent",null,null,null,null,null,null,"March"]
[null,null,null,null,null,null,null,null,null,null,null,null,null,null,"6 or more times",null,null,"Other",null,null,null,null,"N/A",null,"April"]
["To jump to the Introduction sheet, click here.",null,null,null,null,null,null,null,null,null,null,null,null,null,null,null,null,null,null,null,null,null,"Don't know",null,"May"]
[null,null,null,null,null,null,null,null,null,null,null,null,null,null,"N/A",null,null,"N/A",null,null,null,null,null,null,"June"]
["Contraceptive Security (CS) Indicators 2011 Data ",null,null,null,null,null,null,null,null,null,null,null,null,null,"Don't know",null,null,"Don't know",null,null,null,null,null,null,"July"]
["Country: Yemen",null,null,null,null,null,null,null,null,{"$f":"G8","v":0},{"$f":"A8","v":"Country: Yemen"},null,null,null,null,"or c-d",null,null,null,{"$f":"D8","v":0},null,null,null,null,"August"]
["The CS Indicators are presented in the following sections:\n\n               A. leadership & cooordination               B. finance & procurement               C. commodities               D. policies               E. supply chain",null,null,null,null,null,null,null,null,{"$f":"G9","v":0},{"$f":"A9","v":"The CS Indicators are presented in the following sections:\n\n               A. leadership & cooordination               B. finance & procurement               C. commodities               D. policies               E. supply chain"},null,null,null,"d-h",null,"f-h merged",null,{"$f":"D9","v":0},null,null,null,null,{"$f":"A9","v":"The CS Indicators are presented in the following sections:\n\n               A. leadership & cooordination               B. finance & procurement               C. commodities               D. policies               E. supply chain"},"September"]
["\nNotes:\n  -  Respondents' answers are indicated in the white spaces. \n  -  N/A = not applicable. Don't know = the respondent either indicated they did not know or left the answer blank.\n  -  Some questions required respondents to choose from a dropdown list of options; in these cases the dropdown arrow will \n     appear when you click on the cell. \n  -  There may be a few inserted comments. (If you cannot already see them, click on Review tab - Comments group - Show All Comments in newer \n       versions of Excel or View - Comments in older versions of Excel.)\n  -  If the answer is cut off, you can either manually adjust the row height or autofit the row height in order to see the whole \n     response. (To autofit the row height, select the answer(s) and go to Home tab - Cells group - Format - Autofit Row Height in newer versions of Excel or \n      Format - Row - Autofit in older versions of Excel.)\n",null,null,null,null,null,null,null,"a-g",null,null,null,null,null,null,null,null,"a-e merged",null,null,null,null,null,{"$f":"A10","v":"\nNotes:\n  -  Respondents' answers are indicated in the white spaces. \n  -  N/A = not applicable. Don't know = the respondent either indicated they did not know or left the answer blank.\n  -  Some questions required respondents to choose from a dropdown list of options; in these cases the dropdown arrow will \n     appear when you click on the cell. \n  -  There may be a few inserted comments. (If you cannot already see them, click on Review tab - Comments group - Show All Comments in newer \n       versions of Excel or View - Comments in older versions of Excel.)\n  -  If the answer is cut off, you can either manually adjust the row height or autofit the row height in order to see the whole \n     response. (To autofit the row height, select the answer(s) and go to Home tab - Cells group - Format - Autofit Row Height in newer versions of Excel or \n      Format - Row - Autofit in older versions of Excel.)\n"},"October"]
["A. Leadership and Coordination",null,null,null,null,null,null,null,null,null,null,null,null,null,null,null,null,null,null,null,null,null,null,null,"November"]
["A1. Is there a national committee that works on contraceptive security? (Please select from the dropdown list.)\n(Committee should have some aspect of contraceptive security as part of its Terms of Reference, even if it is known by a different name, for example: Family Planning, Reproductive Health, Maternal Mortality, Essential Medicine Committee, etc.)  ",null,null,null,null,null,null,"Yes",{"$f":"A12","v":"A1. Is there a national committee that works on contraceptive security? (Please select from the dropdown list.)\n(Committee should have some aspect of contraceptive security as part of its Terms of Reference, even if it is known by a different name, for example: Family Planning, Reproductive Health, Maternal Mortality, Essential Medicine Committee, etc.)  "},null,null,null,null,null,null,null,null,null,null,null,null,null,null,null,"December"]
[null,"a. What is the name of the committee?",null,"Reproductive Health Commodity Security",null,null,null,null,null,null,{"$f":"B13","v":"a. What is the name of the committee?"},{"$f":"D13","v":"Reproductive Health Commodity Security"},null,null,{"$f":"D13","v":"Reproductive Health Commodity Security"}]
["A2. Are the following organizations represented on the committee?",null,null,"(Y/N \ndropdown)",null,null,null,null,null,null,{"$f":"A14","v":"A2. Are the following organizations represented on the committee?"},null,null,null,null,null,null,null,null,null,null,null,null,null,"Don't know"]
[null,"a. Social marketing",null,"Yes","If yes, specify name(s) of organizations","Yamman (Marie Stopes International)",null,null,null,null,{"$f":"B15","v":"a. Social marketing"},null,null,null,null,null,{"$f":"F15","v":"Yamman (Marie Stopes International)"}]
[null,"b. NGO (for example: service delivery, advocacy, Planned Parenthood affiliate, Marie Stopes affiliate, faith-based organizations, etc.)",null,"Yes","If yes, specify name(s) of organizations","Yemen Family Care Association, GSSC, Yamaan",null,null,null,null,"b. NGO (for example: service delivery, advocacy, Planned Parenthood affiliate, Marie Stopes affiliate, faith-based organizations, etc.)",null,null,null,null,null,"Yemen Family Care Association, GSSC, Yamaan"]
[null,"c. Commercial sector (for example: pharmacy associations, manufacturers, etc.)",null,"No","If yes, specify name(s) of organizations",null,null,null,null,null,"c. Commercial sector (for example: pharmacy associations, manufacturers, etc.)",null,null,null,null,null,0]
[null,"d. Donors",null,"Yes","If yes, specify name(s) of donors","EKN, GIZ",null,null,null,null,"d. Donors",null,null,null,null,null,"EKN, GIZ"]
[null,"e. UN agencies",null,"Yes","If yes, specify name(s) of agencies","UNFPA",null,null,null,null,"e. UN agencies",null,null,null,null,null,"UNFPA"]
[null,"f. Ministry of Health (for example: logistics, reproductive health, family planning, maternal and child health, HIV/AIDS, pharmacy units, etc.)",null,"Yes","If yes, specify name(s) of units","Supply Directorate, RH General Directorate, National Drug Program, Curative Sector",null,null,null,null,"f. Ministry of Health (for example: logistics, reproductive health, family planning, maternal and child health, HIV/AIDS, pharmacy units, etc.)",null,null,null,null,null,"Supply Directorate, RH General Directorate, National Drug Program, Curative Sector"]
[null,"g. Central Medical Store or Central Warehouse",null,"Yes","If yes, specify","Central Warehouse",null,null,null,null,"g. Central Medical Store or Central Warehouse",null,null,null,null,null,"Central Warehouse"]
[null,"h. Ministry of Finance or Ministry of Planning ",null,"No","If yes, specify",null,null,null,null,null,"h. Ministry of Finance or Ministry of Planning ",null,null,null,null,null,0]
[null,"i. Other (for example: partners)",null,"No","If yes, specify",null,null,null,null,null,"i. Other (for example: partners)",null,null,null,null,null,0]
["A3. How many times did the committee meet during the last year? (0, 1-2, 3-5, or 6+)  (Please select from the dropdown.)",null,null,null,null,null,null,"6 or more times",{"$f":"A24","v":"A3. How many times did the committee meet during the last year? (0, 1-2, 3-5, or 6+)  (Please select from the dropdown.)"}]
["A4. Does the committee have legal status?  (Please select from the dropdown.)                                  ",null,null,null,null,null,null,"N/A",{"$f":"A25","v":"A4. Does the committee have legal status?  (Please select from the dropdown.)                                  "}]
["A5. Is there a Contraceptive Security \"champion\"? (someone who consistently brings up and advocates for contraceptive supplies)",null,null,"No","If yes, specify person's organization",null,"Specify person's job title",null,null,null,{"$f":"A26","v":"A5. Is there a Contraceptive Security \"champion\"? (someone who consistently brings up and advocates for contraceptive supplies)"}]
["B. Finance and Procurement (Capital)"]
["B1. What is the timeline of the country's fiscal year?",null,null,"Beginning month",null,"January","Ending month","December",null,null,{"$f":"B28","v":0}]
["B2. What was the estimated dollar value of contraceptives needed to be procured for the public sector for the most recent complete fiscal year? (in USD currency)\n(for example, to cover the needs for the '09-'10 fiscal year)",null,null,null,null,null,"Don't know",null,null,{"$f":"G29","v":"Don't know"},null,null,{"$f":"E29","v":0},null,null,null,null,null,null,null,null,null,null,null,{"$f":"A29","v":"B2. What was the estimated dollar value of contraceptives needed to be procured for the public sector for the most recent complete fiscal year? (in USD currency)\n(for example, to cover the needs for the '09-'10 fiscal year)"}]
["B3. When was the last forecast/quantification conducted? (mm/yy)",null,null,null,"01/11","Who conducted it? (Specify organization.)","MOPHP and UNFPA",null,null,{"$f":"G30","v":"MOPHP and UNFPA"},null,null,{"$f":"E30","v":"01/11"},null,null,null,null,null,null,null,null,null,null,null,{"$f":"A30","v":"B3. When was the last forecast/quantification conducted? (mm/yy)"}]
["B4. Is there a government budget line item for the procurement of contraceptives?  (Please select from the dropdown list.)",null,null,null,null,null,null,"No",{"$f":"A31","v":"B4. Is there a government budget line item for the procurement of contraceptives?  (Please select from the dropdown list.)"}]
["B5. Were government funds allocated for contraceptive procurement for the public sector in the most recent complete fiscal year? (This question refers to funds planned to be spent on contraceptives, whether or not they ended up being spent.) \n\n(Government funds include internally generated funds, basket funds, World Bank credits or loans, and other funds donors gave to the government for their use.) \n",null,null,null,null,null,null,"Yes",{"$f":"A32","v":"B5. Were government funds allocated for contraceptive procurement for the public sector in the most recent complete fiscal year? (This question refers to funds planned to be spent on contraceptives, whether or not they ended up being spent.) \n\n(Government funds include internally generated funds, basket funds, World Bank credits or loans, and other funds donors gave to the government for their use.) \n"}]
["B6. Please complete the table below regarding government allocations for contraceptive procurement.",null,null,null,null,null,null,null,null,null,null,null,null,null,null,null,null,null,null,null,null,null,null,{"$f":"A33","v":"B6. Please complete the table below regarding government allocations for contraceptive procurement."}]
[null,null,null,null,"Amount allocated \n(in USD)","Time period during which allocations were supposed to be spent \n(mm/yy-mm/yy)\n(should ideally be the most recent\ncomplete fiscal year ['09-'10])","Data source \n(for example: Ministry records)","Comments",null,null,{"$f":"A34","v":0}]
[null,"Government funds allocated for contraceptive procurement\n(funds originally designated for contraceptives, whether or not they ended up being spent on them)",null,null,95000,"01/10-12/10","MoPHP annual plan",null,null,null,{"$f":"#REF!","v":{"$error":"#REF!"}}]
[]
["B7. Were government funds spent on contraceptive procurement for the public sector in the most recent complete fiscal year? \n(Government funds include internally generated funds, basket funds, World Bank credits or loans, and other funds donors gave to the government for their use.)",null,null,null,null,null,null,"No",{"$f":"A37","v":"B7. Were government funds spent on contraceptive procurement for the public sector in the most recent complete fiscal year? \n(Government funds include internally generated funds, basket funds, World Bank credits or loans, and other funds donors gave to the government for their use.)"}]
["B8. Please complete the table below to indicate government expenditures on contraceptive procurement, by source, in the most recent complete fiscal year. \n(This is how much was spent on contraceptive procurement (not what was allocated). How much of this spending was provided from each source?)",null,null,null,null,null,null,null,null,null,null,null,null,null,null,null,null,null,null,null,null,null,null,{"$f":"A38","v":"B8. Please complete the table below to indicate government expenditures on contraceptive procurement, by source, in the most recent complete fiscal year. \n(This is how much was spent on contraceptive procurement (not what was allocated). How much of this spending was provided from each source?)"}]
[null,"Source of government funds spent on contraceptive procurement for the public sector",null,"Was this source used?\n(Y/N)","Amount spent \n(in USD)","Time period (mm/yy-mm/yy)\n(should be the same for all sources of funds & ideally be the most recent\ncomplete fiscal year ['09-'10])","Data source \n(for example: Contraceptive Procurement Table, PipeLine, etc.)","Comments",null,null,{"$f":"A39","v":0}]
[null,"a. Internally generated funds spent on contraceptive procurement",null,"No",0,"01/10-12/10",null,null,null,null,{"$f":"B40","v":"a. Internally generated funds spent on contraceptive procurement"}]
[null,null,"i. Specify source(s) of internally generated funds spent (for example, from taxes or user fees)","N/A",null,null,null,null,null,null,{"$f":"C41","v":"i. Specify source(s) of internally generated funds spent (for example, from taxes or user fees)"},null,null,null,{"$f":"D41","v":"N/A"}]
[null,"b. Total of all other government funds spent on contraceptive procurement (basket funds, World Bank credits or loans, and other funds donors gave to the government [e.g., direct budget support])",null,"No",0,"01/10-12/10",null,null,null,null,{"$f":"B42","v":"b. Total of all other government funds spent on contraceptive procurement (basket funds, World Bank credits or loans, and other funds donors gave to the government [e.g., direct budget support])"}]
[null,null,"i. Specify source(s) of other government funds spent (for example: basket funding or specific donor)","N/A",null,null,null,null,null,null,{"$f":"C43","v":"i. Specify source(s) of other government funds spent (for example: basket funding or specific donor)"},null,null,null,{"$f":"D43","v":"N/A"}]
[null,"c. TOTAL government funds spent on contraceptive procurement\nThis will auto-calculate.  (It will sum a & b above.)",null,null,{"$f":"E40+E42","v":0},null,null,null,null,null,{"$f":"B44","v":"c. TOTAL government funds spent on contraceptive procurement\nThis will auto-calculate.  (It will sum a & b above.)"}]
[null,null,null,null,null,null,null,null,null,null,{"$f":"A45","v":0}]
["B9. Please complete the table below to indicate donor expenditures on contraceptive procurement in the most recent complete fiscal year.\n",null,null,null,null,null,null,null,null,null,null,null,null,null,null,null,null,null,null,null,null,null,null,{"$f":"A46","v":"B9. Please complete the table below to indicate donor expenditures on contraceptive procurement in the most recent complete fiscal year.\n"}]
["\n","Source of donations and donor funds spent on contraceptive procurement for the public sector",null,"Was this a source?\n(Y/N)","Amount of money spent on these procurements \n(in USD)","Time period (mm/yy-mm/yy)\n(should be the same for all sources of funds & ideally be the most recent\ncomplete fiscal year ['09-'10])","Data source \n(for example:  Donor records, Contraceptive Procurement Table, PipeLine, RHInterchange, etc.","Comments",null,null,{"$f":"A47","v":"\n"}]
[null,"a. In-kind donations of contraceptives",null,"No",0,"01/10-12/10",null,"There were no new funds for 2010.  MOPHP spent the residual amount that was provided from UNFPA in 2008-2009",null,null,{"$f":"B48","v":"a. In-kind donations of contraceptives"}]
[null,null,"i. Specify source(s) of in-kind donations ","N/A",null,null,null,null,null,null,{"$f":"C49","v":"i. Specify source(s) of in-kind donations "},null,null,null,{"$f":"D49","v":"N/A"}]
[null,"b. Global Fund donations used to procure condoms",null,"No",0,"01/10-12/10",null,null,null,null,{"$f":"B50","v":"b. Global Fund donations used to procure condoms"}]
[null,"c. Global Fund donations used to procure contraceptives besides condoms",null,"No",0,"01/10-12/10",null,null,null,null,{"$f":"B51","v":"c. Global Fund donations used to procure contraceptives besides condoms"}]
[null,"d. TOTAL value of in-kind donations and Global Fund donations spent on contraceptive procurement\nThis will auto-calculate.  (It will sum a-c above.)",null,null,{"$f":"E48+E50+E51","v":0},null,null,null,null,null,{"$f":"B52","v":"d. TOTAL value of in-kind donations and Global Fund donations spent on contraceptive procurement\nThis will auto-calculate.  (It will sum a-c above.)"}]
[null,null,null,null,null,null,null,null,null,null,{"$f":"A53","v":0}]
["The answers to B10 and B11 should calculate automatically based on the information you provided. Please review the answers to ensure they make sense to you, and if you have additional information to add, please note it in the comments boxes.\n\nIf the answers do not calculate automatically, please provide any relevant information you may have in the comments boxes.\n",null,null,null,null,null,null,null,null,null,null,null,null,null,null,null,null,null,null,null,null,null,null,{"$f":"A54","v":"The answers to B10 and B11 should calculate automatically based on the information you provided. Please review the answers to ensure they make sense to you, and if you have additional information to add, please note it in the comments boxes.\n\nIf the answers do not calculate automatically, please provide any relevant information you may have in the comments boxes.\n"}]
["B10. Government share of funds spent on contraceptive procurement for the public sector - \nOf the total amount spent on contraceptives for the public sector in the most recent complete fiscal year (including government and donor funds), what percent was covered by government funds (including internally generated funds, basket funds, World Bank credits or loans, and other funds given to the government)? \n\nThis will auto-calculate. (It contains the following formula: Total government spending (Question B8c) / Grand total of all spending for public sector contraceptives from the government and donors (Questions B8c+B9d))",null,null,null,null,"N/A",null,null,null,{"$f":"G55","v":0},null,null,null,null,null,null,null,{"$f":"A55","v":"B10. Government share of funds spent on contraceptive procurement for the public sector - \nOf the total amount spent on contraceptives for the public sector in the most recent complete fiscal year (including government and donor funds), what percent was covered by government funds (including internally generated funds, basket funds, World Bank credits or loans, and other funds given to the government)? \n\nThis will auto-calculate. (It contains the following formula: Total government spending (Question B8c) / Grand total of all spending for public sector contraceptives from the government and donors (Questions B8c+B9d))"}]
["B11. Total expenditures on public sector contraceptives as percent of amount that needed to be procured -\nOf the estimated value of the contraceptives needed to be procured for the public sector for the most recent complete fiscal year, what percent was provided by any source (whether government or donor)? \n\nThis will auto-calculate. (It contains the following formula: Grand total of all spending for public sector contraceptives from the government and donors (Questions B8c+B9d) / Value of estimated need for procurement (Question B2))",null,null,null,null,"Don't know",null,null,null,{"$f":"G56","v":0},null,null,null,null,null,null,null,{"$f":"A56","v":"B11. Total expenditures on public sector contraceptives as percent of amount that needed to be procured -\nOf the estimated value of the contraceptives needed to be procured for the public sector for the most recent complete fiscal year, what percent was provided by any source (whether government or donor)? \n\nThis will auto-calculate. (It contains the following formula: Grand total of all spending for public sector contraceptives from the government and donors (Questions B8c+B9d) / Value of estimated need for procurement (Question B2))"}]
["B12. If B11 did not calculate automatically, please answer the following question:\nWas there a funding gap for the public sector in the last complete fiscal year (e.g., 09-'10 fiscal year)?\n(Please select from the dropdown list.)",null,null,null,null,null,null,null,null,{"$f":"G57","v":0},null,null,null,null,null,null,null,{"$f":"A57","v":"B12. If B11 did not calculate automatically, please answer the following question:\nWas there a funding gap for the public sector in the last complete fiscal year (e.g., 09-'10 fiscal year)?\n(Please select from the dropdown list.)"}]
[null,null,null,null,null,null,null,null,null,null,{"$f":"A58","v":0}]
["B13. If the government financed any contraceptive procurement in the most recent complete fiscal year, which entity conducted the procurement(s)? (Please select from the dropdown.)",null,null,null,null,"N/A",null,null,null,null,null,null,null,null,null,null,{"$f":"F59","v":"N/A"},{"$f":"A59","v":"B13. If the government financed any contraceptive procurement in the most recent complete fiscal year, which entity conducted the procurement(s)? (Please select from the dropdown.)"}]
[null,"a. Specify entity",null,null,null,"N/A",null,null,null,null,null,null,{"$f":"E60","v":0},null,null,null,{"$f":"F60","v":"N/A"},{"$f":"B60","v":"a. Specify entity"}]
[null,null,"i. Is this a parastatal?",null,null,"N/A",null,null,null,null,null,null,null,null,null,null,{"$f":"F61","v":"N/A"},{"$f":"C61","v":"i. Is this a parastatal?"}]
["B14. Please note any additional comments about finance and procurement.\n",null,null,null,null,null,null,null,null,null,{"$f":"A62","v":"B14. Please note any additional comments about finance and procurement.\n"},null,null,null,{"$f":"D62","v":0}]
["C. Commodities"]
["C1. Are the following contraceptive methods offered through the commercial sector, public sector, NGOs, or social marketing? (Please indicate which methods are intended to be offered. This question is not asking whether the method is in stock.) \n(Please select from the dropdown list.)",null,null,null,null,null,null,null,null,null,null,null,null,null,null,null,null,null,null,null,null,null,null,{"$f":"A64","v":"C1. Are the following contraceptive methods offered through the commercial sector, public sector, NGOs, or social marketing? (Please indicate which methods are intended to be offered. This question is not asking whether the method is in stock.) \n(Please select from the dropdown list.)"}]
["Contraceptive Method",null,null,"Commercial Sector",null,"Public Sector","NGO","Social Marketing",null,null,{"$f":"A65","v":"Contraceptive Method"}]
[null,"a. Combined oral contraceptives (estrogen + progestin - for  example, LoFemenol, Microgynon)",null,"Yes",null,"Yes","Yes","Yes",null,null,{"$f":"B66","v":"a. Combined oral contraceptives (estrogen + progestin - for  example, LoFemenol, Microgynon)"}]
[null,"b. Progestin-only pills (for example, Ovrette, Microlut)",null,"Yes",null,"Yes","Yes","Yes",null,null,{"$f":"B67","v":"b. Progestin-only pills (for example, Ovrette, Microlut)"}]
[null,"c. Hormonal injections (for example, DepoProvera, Noristerat)",null,"Yes",null,"Yes","Yes","Yes",null,null,"c. Hormonal injections (for example, DepoProvera, Noristerat)"]
[null,"d. Hormonal implants (for example, Jadelle, Implanon)",null,"Yes",null,"Yes","Yes","Yes",null,null,"d. Hormonal implants (for example, Jadelle, Implanon)"]
[null,"e. Intrauterine devices (IUDs) (for example, Optima Copper T)",null,"Yes",null,"Yes","Yes","Yes",null,null,"e. Intrauterine devices (IUDs) (for example, Optima Copper T)"]
[null,"f. Male condoms",null,"Yes",null,"Yes","Yes","Yes",null,null,"f. Male condoms"]
[null,"g. Female condoms",null,"No",null,"No","No","No",null,null,"g. Female condoms"]
[null,"h. Emergency contraceptive pills (for example, Postinor)",null,"No",null,"No","No","No",null,null,"h. Emergency contraceptive pills (for example, Postinor)"]
[null,"i. Long-acting permanent method for males (vasectomy)",null,"Yes",null,"Yes","No","No",null,null,"i. Long-acting permanent method for males (vasectomy)"]
[null,"j. Long-acting permanent method for females (tubal ligation)",null,"Yes",null,"Yes","No","No",null,null,"j. Long-acting permanent method for females (tubal ligation)"]
[null,"k. CycleBeads",null,"No",null,"No","No","No",null,null,"k. CycleBeads"]
[null,"l. Other contraceptive methods - specify \n(Please provide the name of the other contraceptive(s) offered, by sector.)",null,null,null,null,null,null,null,null,"l. Other contraceptive methods - specify \n(Please provide the name of the other contraceptive(s) offered, by sector.)"]
["C2. Please note any comments about the commodities offered.",null,null,"Hormonal injections and implants are requested by people but coverage is low.",null,null,null,null,null,null,{"$f":"A78","v":"C2. Please note any comments about the commodities offered."},null,null,null,{"$f":"D78","v":"Hormonal injections and implants are requested by people but coverage is low."}]
["D. Policies (Commitment)"]
["D1. Is there a contraceptive security or reproductive health commodity security strategy or is contraceptive security explicitly included in a country strategy? (Please select from the dropdown list.)",null,null,null,null,null,null,"Yes",{"$f":"A80","v":"D1. Is there a contraceptive security or reproductive health commodity security strategy or is contraceptive security explicitly included in a country strategy? (Please select from the dropdown list.)"}]
["IF NO, SKIP TO QUESTION D2."]
[null,"Strategy name",null,"Years Covered (including strategy updates)",null,"Is the strategy formally approved by the Ministry?","Is the contraceptive security strategy being implemented?",null,null,{"$f":"G82","v":"Is the contraceptive security strategy being implemented?"},{"$f":"B82","v":"Strategy name"},null,{"$f":"E82","v":0},null,null,null,null,null,{"$f":"D82","v":"Years Covered (including strategy updates)"}]
[null,"a","Reproductive Health Strategy","2011- 2015",null,"Yes","No",null,null,{"$f":"G83","v":"No"},{"$f":"B83","v":"a"},null,{"$f":"E83","v":0},null,null,null,null,null,{"$f":"D83","v":"2011- 2015"}]
["D2. Are any family planning commodities subject to duties, import taxes, or other fees?",null,null,null,null,"No",null,null,null,null,null,null,null,null,null,null,{"$f":"F84","v":"No"},{"$f":"A84","v":"D2. Are any family planning commodities subject to duties, import taxes, or other fees?"}]
[null,"a. If yes, for which sectors (public, NGO, social marketing, commercial)?",null,null,"N/A",null,null,null,null,null,null,null,{"$f":"E85","v":"N/A"},{"$f":"E85","v":"N/A"},null,null,null,{"$f":"B85","v":"a. If yes, for which sectors (public, NGO, social marketing, commercial)?"}]
[null,"b. If yes, how much are the duties, taxes, or fees?",null,null,"N/A",null,null,null,null,null,null,null,null,{"$f":"E86","v":"N/A"},null,null,null,{"$f":"B86","v":"b. If yes, how much are the duties, taxes, or fees?"}]
["D3. Are there policies that hinder the ability of the private sector (commercial sector, NGOs, or social marketing) to provide contraceptive methods (for example: price controls, distribution limitations, taxes/duties, advertising bans, etc.)?",null,null,null,null,null,null,"No",{"$f":"A87","v":"D3. Are there policies that hinder the ability of the private sector (commercial sector, NGOs, or social marketing) to provide contraceptive methods (for example: price controls, distribution limitations, taxes/duties, advertising bans, etc.)?"}]
[null,"a. If yes, describe the policies.",null,"N/A",null,null,null,null,null,null,{"$f":"B88","v":"a. If yes, describe the policies."},null,null,null,{"$f":"D88","v":"N/A"}]
["D4. Are there policies that enable the private sector (commercial sector, NGOs, or social marketing) to provide contraceptive methods?",null,null,null,null,null,null,"No",{"$f":"A89","v":"D4. Are there policies that enable the private sector (commercial sector, NGOs, or social marketing) to provide contraceptive methods?"}]
[null,"a. If yes, describe the policies.",null,"N/A",null,null,null,null,null,null,{"$f":"B90","v":"a. If yes, describe the policies."},null,null,null,{"$f":"D90","v":"N/A"}]
["D5. Do policies or regulations exist that restrict who can sell or dispense particular contraceptive methods?\n",null,null,null,null,null,null,"No",{"$f":"A91","v":"D5. Do policies or regulations exist that restrict who can sell or dispense particular contraceptive methods?\n"}]
[null,"Please note any restrictions in the following table."]
[null,"Contraceptive Method(s)",null,null,"Describe any public sector restriction on who is allowed to sell or dispense the method",null,"Describe any private sector restriction on who is allowed to sell or dispense the method",null,null,{"$f":"G93","v":"Describe any private sector restriction on who is allowed to sell or dispense the method"},null,null,null,null,null,{"$f":"B93","v":"Contraceptive Method(s)"},null,null,null,null,{"$f":"E93","v":"Describe any public sector restriction on who is allowed to sell or dispense the method"}]
[null,"a",null,null,null,null,null,null,null,{"$f":"G94","v":0},null,null,{"$f":"E94","v":0},null,null,{"$f":"C94","v":0},null,null,null,null,{"$f":"E94","v":0}]
[null,"b",null,null,null,null,null,null,null,{"$f":"G95","v":0},null,null,{"$f":"E95","v":0},null,null,{"$f":"C95","v":0},null,null,null,null,{"$f":"E95","v":0}]
[null,"c",null,null,null,null,null,null,null,{"$f":"G96","v":0},null,null,{"$f":"E96","v":0},null,null,{"$f":"C96","v":0},null,null,null,null,{"$f":"E96","v":0}]
[null,null,null,null,null,null,null,null,null,null,{"$f":"C97","v":0}]
["D6. Does the country have laws, regulations, or policies that make it difficult for the following sub-populations to access effective family planning services?",null,null,"Y/N","If yes, describe laws/regulations/policies affecting access ",null,null,"Are the rules/policies implemented?",null,null,{"$f":"A98","v":"D6. Does the country have laws, regulations, or policies that make it difficult for the following sub-populations to access effective family planning services?"},null,null,null,null,null,null,null,null,null,null,{"$f":"E98","v":"If yes, describe laws/regulations/policies affecting access "}]
[null,"a. Unmarried people",null,"No",null,null,null,null,null,null,{"$f":"B99","v":"a. Unmarried people"},null,{"$f":"E99","v":0},null,null,null,null,null,null,null,null,{"$f":"E99","v":0}]
[null,"b. Young people",null,"No",null,null,null,null,null,null,{"$f":"B100","v":"b. Young people"},null,{"$f":"E100","v":0},null,null,null,null,null,null,null,null,{"$f":"E100","v":0}]
[null,"c. Other",null,"No",null,null,null,null,null,null,{"$f":"B101","v":"c. Other"},null,{"$f":"E101","v":0},null,null,null,null,null,null,null,null,{"$f":"E101","v":0}]
[null,null,null,null,null,null,null,null,null,null,{"$f":"C102","v":0}]
["D7. Are there charges* to the client in the public sector for family planning:\n*(This question refers to charges by policy, not under-the-table charges.)\n",null,null,null,null,null,null,null,null,null,null,null,null,null,null,null,null,null,null,null,null,null,null,{"$f":"A103","v":"D7. Are there charges* to the client in the public sector for family planning:\n*(This question refers to charges by policy, not under-the-table charges.)\n"}]
[null,"a. Services?",null,null,null,null,"No",null,null,{"$f":"G104","v":"No"},null,null,null,null,null,null,null,null,null,null,null,null,null,null,{"$f":"B104","v":"a. Services?"}]
[null,"b. Commodities?",null,null,null,null,"No",null,null,{"$f":"G105","v":"No"},null,null,null,null,null,null,null,null,null,null,null,null,null,null,{"$f":"B105","v":"b. Commodities?"}]
[null,"c. If yes, are there exemptions for people who cannot afford to pay?",null,null,null,null,"N/A",null,null,{"$f":"G106","v":"N/A"},null,null,null,null,null,null,null,null,null,null,null,null,null,null,{"$f":"B106","v":"c. If yes, are there exemptions for people who cannot afford to pay?"}]
[null,null,"i. If yes, describe the exemptions.","N/A",null,null,null,null,null,null,{"$f":"C107","v":"i. If yes, describe the exemptions."},null,null,null,{"$f":"D107","v":"N/A"}]
["D8. Are the following contraceptives included in the country's National Essential Medicine List (NEML) or other equivalent priority list?",null,null,null,null,null,null,null,null,null,null,null,null,null,null,null,null,null,null,null,null,null,null,{"$f":"A108","v":"D8. Are the following contraceptives included in the country's National Essential Medicine List (NEML) or other equivalent priority list?"}]
[null,"a. Combined oral contraceptives",null,null,null,null,"Yes",null,null,{"$f":"G109","v":"Yes"},null,null,null,null,null,null,null,null,null,null,null,null,null,null,{"$f":"B109","v":"a. Combined oral contraceptives"}]
[null,"b. Progestin-only pills",null,null,null,null,"Yes",null,null,"Yes",null,null,null,null,null,null,null,null,null,null,null,null,null,null,"b. Progestin-only pills"]
[null,"c. Hormonal injections",null,null,null,null,"No",null,null,"No",null,null,null,null,null,null,null,null,null,null,null,null,null,null,"c. Hormonal injections"]
[null,"d. Hormonal implants",null,null,null,null,"No",null,null,"No",null,null,null,null,null,null,null,null,null,null,null,null,null,null,"d. Hormonal implants"]
[null,"e. Intrauterine devices (IUDs)",null,null,null,null,"No",null,null,"No",null,null,null,null,null,null,null,null,null,null,null,null,null,null,"e. Intrauterine devices (IUDs)"]
[null,"f. Male condoms",null,null,null,null,"No",null,null,"No",null,null,null,null,null,null,null,null,null,null,null,null,null,null,"f. Male condoms"]
[null,"g. Female condoms",null,null,null,null,"No",null,null,"No",null,null,null,null,null,null,null,null,null,null,null,null,null,null,"g. Female condoms"]
[null,"h. Emergency contraceptive pills",null,null,null,null,"No",null,null,"No",null,null,null,null,null,null,null,null,null,null,null,null,null,null,"h. Emergency contraceptive pills"]
[null,"i. CycleBeads",null,null,null,null,"No",null,null,{"$f":"G117","v":"No"},null,null,null,null,null,null,null,null,null,null,null,null,null,null,{"$f":"B117","v":"i. CycleBeads"}]
[null,"j. Any other contraceptive(s)?",null,null,null,null,"No",null,null,"No",null,null,null,null,null,null,null,null,null,null,null,null,null,null,"j. Any other contraceptive(s)?"]
[null,null,"i. Name of other contraceptive(s) on the list(s)",null,null,"N/A",null,null,null,0,null,null,null,null,null,null,null,{"$f":"B119","v":0}]
["D9. What year(s) is the list(s) from?",null,null,null,null,2009,null,null,null,0,null,null,null,null,null,null,null,{"$f":"B120","v":0}]
["D10. Name of the list(s)\n\n\n",null,null,"National Essential Drug List",null,null,null,null,null,null,{"$f":"A121","v":"D10. Name of the list(s)\n\n\n"},null,null,null,{"$f":"D121","v":"National Essential Drug List"}]
["D11. Notes about the list(s)\n\n\n",null,null,null,null,null,null,null,null,null,{"$f":"A122","v":"D11. Notes about the list(s)\n\n\n"},null,null,null,{"$f":"D122","v":0}]
["D12.  Information on country's Poverty Reduction Strategy Paper (PRSP)\n",null,null,null,null,null,null,null,null,null,null,null,null,null,null,null,null,null,null,null,null,null,null,{"$f":"A123","v":"D12.  Information on country's Poverty Reduction Strategy Paper (PRSP)\n"}]
[null,"a. What year is the Poverty Reduction Strategy Paper from? (most recent actual PRSP on IMF's site [not progress or summary report])",null,null,null,2002,null,null,null,{"$f":"G124","v":0},null,null,null,null,null,null,null,{"$f":"B124","v":"a. What year is the Poverty Reduction Strategy Paper from? (most recent actual PRSP on IMF's site [not progress or summary report])"}]
[null,"b. Is family planning or reproductive health a priority in the PRSP?",null,null,null,null,"Yes",null,null,{"$f":"G125","v":"Yes"},null,null,null,null,null,null,null,null,null,null,null,null,null,null,{"$f":"B125","v":"b. Is family planning or reproductive health a priority in the PRSP?"}]
[null,"c. Is contraceptive security included in the PRSP?",null,null,null,null,"No",null,null,{"$f":"G126","v":"No"},null,null,null,null,null,null,null,null,null,null,null,null,null,null,{"$f":"B126","v":"c. Is contraceptive security included in the PRSP?"}]
[null,"d. Is contraceptive prevalence rate (CPR) included as an indicator in the PRSP?",null,null,null,null,"No",null,null,{"$f":"G127","v":"No"},null,null,null,null,null,null,null,null,null,null,null,null,null,null,{"$f":"B127","v":"d. Is contraceptive prevalence rate (CPR) included as an indicator in the PRSP?"}]
[null,"e. Are contraceptive supply indicators included in the PRSP?",null,null,null,null,"No",null,null,{"$f":"G128","v":"No"},null,null,null,null,null,null,null,null,null,null,null,null,null,null,{"$f":"B128","v":"e. Are contraceptive supply indicators included in the PRSP?"}]
["\n\n\n","f. Notes about the Poverty Reduction Strategy Paper",null,"Population status is one of the objectives under human resources development. (p.118).",null,null,null,null,null,null,{"$f":"B129","v":"f. Notes about the Poverty Reduction Strategy Paper"},null,null,null,{"$f":"D129","v":"Population status is one of the objectives under human resources development. (p.118)."}]
["E. Supply Chain (Capacity)"]
["E1. Have stockouts occurred for any contraceptive at the central* level in the last 12 months?  \n*(The central level refers to the central level warehouse for the public sector.)",null,null,null,null,null,"Yes",null,null,{"$f":"G131","v":"Yes"},null,null,null,null,null,null,null,null,null,null,null,null,null,null,{"$f":"A131","v":"E1. Have stockouts occurred for any contraceptive at the central* level in the last 12 months?  \n*(The central level refers to the central level warehouse for the public sector.)"}]
["E2. In the last 12 months, has there ever been a stockout at the central level of any of the contraceptives offered in public sector facilities? (If a method is not intended to be offered in public sector facilities, please indicate that stockouts are not applicable (choose \"N/A\" from the dropdown list).)",null,null,null,null,null,null,null,null,null,null,null,null,null,null,null,null,null,null,null,null,null,null,{"$f":"A132","v":"E2. In the last 12 months, has there ever been a stockout at the central level of any of the contraceptives offered in public sector facilities? (If a method is not intended to be offered in public sector facilities, please indicate that stockouts are not applicable (choose \"N/A\" from the dropdown list).)"}]
[null,"a. Combined oral contraceptives",null,null,null,null,"No",null,null,{"$f":"G133","v":"No"},null,null,null,null,null,null,null,null,null,null,null,null,null,null,{"$f":"B133","v":"a. Combined oral contraceptives"}]
[null,"b. Progestin-only pills",null,null,null,null,"Yes",null,null,"Yes",null,null,null,null,null,null,null,null,null,null,null,null,null,null,"b. Progestin-only pills"]
[null,"c. Hormonal injections",null,null,null,null,"Yes",null,null,"Yes",null,null,null,null,null,null,null,null,null,null,null,null,null,null,"c. Hormonal injections"]
[null,"d. Hormonal implants",null,null,null,null,"Yes",null,null,"Yes",null,null,null,null,null,null,null,null,null,null,null,null,null,null,"d. Hormonal implants"]
[null,"e. Intrauterine devices (IUDs)",null,null,null,null,"No",null,null,"No",null,null,null,null,null,null,null,null,null,null,null,null,null,null,"e. Intrauterine devices (IUDs)"]
[null,"f. Male condoms",null,null,null,null,"No",null,null,"No",null,null,null,null,null,null,null,null,null,null,null,null,null,null,"f. Male condoms"]
[null,"g. Female condoms",null,null,null,null,"Yes",null,null,"Yes",null,null,null,null,null,null,null,null,null,null,null,null,null,null,"g. Female condoms"]
[null,"h. Emergency contraceptive pills",null,null,null,null,"N/A",null,null,"N/A",null,null,null,null,null,null,null,null,null,null,null,null,null,null,"h. Emergency contraceptive pills"]
[null,"i. CycleBeads",null,null,null,null,"N/A",null,null,"N/A",null,null,null,null,null,null,null,null,null,null,null,null,null,null,"i. CycleBeads"]
[null,"j. Time period\n(mm/yy - mm/yy) (for example, 1/10-12/10) ",null,null,null,null,null,null,null,null,null,null,null,null,null,null,{"$f":"F142","v":0},{"$f":"B142","v":"j. Time period\n(mm/yy - mm/yy) (for example, 1/10-12/10) "}]
[null,"k. Data source\n(for example: Procurement Planning and Monitoring Report, Logistics Management Information System, periodic physical inventory, warehouse reports)",null,null,null,"Logistic reports of MOPHP",null,null,null,null,null,null,null,null,null,null,{"$f":"F143","v":"Logistic reports of MOPHP"},{"$f":"B143","v":"k. Data source\n(for example: Procurement Planning and Monitoring Report, Logistics Management Information System, periodic physical inventory, warehouse reports)"}]
["E3. Are stockouts a large problem in your country at the following levels? (i.e., Are they common or do they tend to last for a long time?)\n\n"]
[null,"a. service delivery point level (i.e., public sector health facilities)",null,null,null,null,"Yes",null,null,{"$f":"G145","v":"Yes"},null,null,null,null,null,null,null,null,null,null,null,null,null,null,{"$f":"B145","v":"a. service delivery point level (i.e., public sector health facilities)"}]
[null,"b. central level (i.e., central level warehouse for the public sector)",null,null,null,null,"Yes",null,null,{"$f":"G146","v":"Yes"},null,null,null,null,null,null,null,null,null,null,null,null,null,null,{"$f":"B146","v":"b. central level (i.e., central level warehouse for the public sector)"}]
["F. Please note any overall comments about challenges and/or successes with contraceptive security in your country.\n\n",null,null,null,null,null,null,null,null,null,{"$f":"A147","v":"F. Please note any overall comments about challenges and/or successes with contraceptive security in your country.\n\n"},null,null,null,{"$f":"D147","v":0}]

{"sheet":"Zambia 2011","index":43,"n_rows":147,"n_cols":25,"rows_kept":147,"cut":false,"hidden":false,"merged":[[8,0,8,7],[147,0,147,7],[148,0,150,7],[145,1,145,5],[145,6,145,7],[146,0,146,2],[146,3,146,7],[141,1,141,4],[141,5,141,7],[142,1,142,4],[142,5,142,7],[143,0,143,7],[144,1,144,5],[144,6,144,7],[138,1,138,5],[138,6,138,7],[139,1,139,5],[139,6,139,7],[140,1,140,5],[131,0,131,7],[132,1,132,5],[132,6,132,7],[133,1,133,5],[133,6,133,7],[134,1,134,5],[134,6,134,7],[140,6,140,7],[135,1,135,5],[135,6,135,7],[136,1,136,5],[136,6,136,7],[137,1,137,5],[137,6,137,7],[120,0,120,2],[120,3,120,7],[121,0,121,2],[121,3,121,7],[129,0,129,6],[130,0,130,5],[130,6,130,7],[122,0,122,7],[123,1,123,4],[123,5,123,7],[115,1,115,5],[115,6,115,7],[116,1,116,5],[116,6,116,7],[117,1,117,5],[117,6,117,7],[118,2,118,4],[118,5,118,7],[119,0,119,4],[119,5,119,7],[110,1,110,5],[110,6,110,7],[111,1,111,5],[111,6,111,7],[112,1,112,5],[112,6,112,7],[113,1,113,5],[113,6,113,7],[114,1,114,5],[114,6,114,7],[104,1,104,5],[104,6,104,7],[105,1,105,5],[105,6,105,7],[106,3,106,7],[107,0,107,7],[108,1,108,5],[108,6,108,7],[109,1,109,5],[109,6,109,7],[98,1,98,2],[98,4,98,6],[99,1,99,2],[99,4,99,6],[100,1,100,2],[100,4,100,6],[101,0,101,7],[102,0,102,7],[103,1,103,5],[103,6,103,7],[94,2,94,3],[94,4,94,5],[94,6,94,7],[95,2,95,3],[95,4,95,5],[95,6,95,7],[96,0,96,7],[97,0,97,2],[97,4,97,6],[88,0,88,6],[89,1,89,2],[89,3,89,7],[90,0,90,6],[91,1,91,2],[92,1,92,3],[92,4,92,5],[92,6,92,7],[93,2,93,3],[93,4,93,5],[93,6,93,7],[83,0,83,4],[83,5,83,7],[84,1,84,3],[84,4,84,7],[85,1,85,3],[85,4,85,7],[86,0,86,6],[87,1,87,2],[87,3,87,7],[77,0,77,2],[77,3,77,7],[78,0,78,6],[79,0,79,6],[80,0,80,2],[81,0,82,0],[81,1,81,2],[81,3,81,4],[81,6,81,7],[82,3,82,4],[82,6,82,7],[72,1,72,2],[72,3,72,4],[73,1,73,2],[73,3,73,4],[74,1,74,2],[74,3,74,4],[75,1,75,2],[75,3,75,4],[76,1,76,2],[76,3,76,4],[67,1,67,2],[67,3,67,4],[68,1,68,2],[68,3,68,4],[69,1,69,2],[69,3,69,4],[70,1,70,2],[70,3,70,4],[71,1,71,2],[71,3,71,4],[61,0,61,2],[61,3,61,7],[62,0,62,6],[63,0,63,7],[64,0,64,2],[64,3,64,4],[65,1,65,2],[65,3,65,4],[66,1,66,2],[66,3,66,4],[55,0,55,4],[55,6,55,7],[56,0,56,4],[56,6,56,7],[58,0,58,4],[58,5,58,7],[59,1,59,4],[59,5,59,7],[60,2,60,4],[60,5,60,7],[41,1,41,2],[42,3,42,7],[43,1,43,2],[51,1,51,2],[53,0,53,7],[54,0,54,4],[54,6,54,7],[45,0,45,7],[46,1,46,2],[47,1,47,2],[48,3,48,7],[49,1,49,2],[50,1,50,2],[32,0,32,7],[33,1,33,3],[34,1,34,3],[35,0,35,7],[36,0,36,6],[37,0,37,7],[38,1,38,2],[39,1,39,2],[40,3,40,7],[26,0,26,6],[27,0,27,2],[27,3,27,4],[28,0,28,5],[28,6,28,7],[29,0,29,3],[29,6,29,7],[30,0,30,6],[31,0,31,6],[20,1,20,2],[20,5,20,7],[21,1,21,2],[21,5,21,7],[22,1,22,2],[22,5,22,7],[23,0,23,6],[24,0,24,6],[25,0,25,2],[15,1,15,2],[15,5,15,7],[16,1,16,2],[16,5,16,7],[17,1,17,2],[17,5,17,7],[18,1,18,2],[18,5,18,7],[19,1,19,2],[19,5,19,7],[9,0,9,7],[10,0,10,6],[11,0,11,6],[12,1,12,2],[12,3,12,7],[13,0,13,2],[13,3,13,7],[14,1,14,2],[14,5,14,7],[7,0,7,2],[7,3,7,5],[7,6,7,7],[0,0,0,7],[1,0,1,2],[1,3,1,4],[2,0,2,7],[3,3,3,4],[3,5,3,7],[4,0,4,2],[5,0,5,2],[127,1,127,5],[127,6,127,7],[128,1,128,2],[128,3,128,7],[124,1,124,5],[124,6,124,7],[125,1,125,5],[125,6,125,7],[126,1,126,5],[126,6,126,7]]}
[null,null,null,null,null,null,null,null,"Columns I-Y are meant to be hidden. They exist because they allow for the dropdown list options. They also allow for merged cells to autofit properly in terms of row height. This should work if all columns remain at their correct widths.","g-h",null,"a-e merged","E-F merged","e-h","0 times",null,null,"The government (e.g., Central Medical Stores, MOH logistics unit, MOH procurement unit)",null,null,null,null,"Yes","a-h","January"]
[null,null,null,null,null,null,null,null,null,null,"A-c",null,null,null,"1-2 times","b-d merged",null,"Third-party agent (e.g., UNFPA, Crown Agents)","d-e merged","d-f merged","e-f merged","e-g merged","No",null,"February"]
[null,null,null,null,null,null,null,null,null,null,null,null,null,null,"3-5 times",null,null,"The government and a third-party agent",null,null,null,null,null,null,"March"]
[null,null,null,null,null,null,null,null,null,null,null,null,null,null,"6 or more times",null,null,"Other",null,null,null,null,"N/A",null,"April"]
["To jump to the Introduction sheet, click here.",null,null,null,null,null,null,null,null,null,null,null,null,null,null,null,null,null,null,null,null,null,"Don't know",null,"May"]
[null,null,null,null,null,null,null,null,null,null,null,null,null,null,"N/A",null,null,"N/A",null,null,null,null,null,null,"June"]
["Contraceptive Security (CS) Indicators 2011 Data ",null,null,null,null,null,null,null,null,null,null,null,null,null,"Don't know",null,null,"Don't know",null,null,null,null,null,null,"July"]
["Country: Zambia",null,null,null,null,null,null,null,null,{"$f":"G8","v":0},{"$f":"A8","v":"Country: Zambia"},null,null,null,null,"or c-d",null,null,null,{"$f":"D8","v":0},null,null,null,null,"August"]
["The CS Indicators are presented in the following sections:\n\n               A. leadership & cooordination               B. finance & procurement               C. commodities               D. policies               E. supply chain",null,null,null,null,null,null,null,null,{"$f":"G9","v":0},{"$f":"A9","v":"The CS Indicators are presented in the following sections:\n\n               A. leadership & cooordination               B. finance & procurement               C. commodities               D. policies               E. supply chain"},null,null,null,"d-h",null,"f-h merged",null,{"$f":"D9","v":0},null,null,null,null,{"$f":"A9","v":"The CS Indicators are presented in the following sections:\n\n               A. leadership & cooordination               B. finance & procurement               C. commodities               D. policies               E. supply chain"},"September"]
["\nNotes:\n  -  Respondents' answers are indicated in the white spaces. \n  -  N/A = not applicable. Don't know = the respondent either indicated they did not know or left the answer blank.\n  -  Some questions required respondents to choose from a dropdown list of options; in these cases the dropdown arrow will \n     appear when you click on the cell. \n  -  There may be a few inserted comments. (If you cannot already see them, click on Review tab - Comments group - Show All Comments in newer \n       versions of Excel or View - Comments in older versions of Excel.)\n  -  If the answer is cut off, you can either manually adjust the row height or autofit the row height in order to see the whole \n     response. (To autofit the row height, select the answer(s) and go to Home tab - Cells group - Format - Autofit Row Height in newer versions of Excel or \n      Format - Row - Autofit in older versions of Excel.)\n",null,null,null,null,null,null,null,"a-g",null,null,null,null,null,null,null,null,"a-e merged",null,null,null,null,null,{"$f":"A10","v":"\nNotes:\n  -  Respondents' answers are indicated in the white spaces. \n  -  N/A = not applicable. Don't know = the respondent either indicated they did not know or left the answer blank.\n  -  Some questions required respondents to choose from a dropdown list of options; in these cases the dropdown arrow will \n     appear when you click on the cell. \n  -  There may be a few inserted comments. (If you cannot already see them, click on Review tab - Comments group - Show All Comments in newer \n       versions of Excel or View - Comments in older versions of Excel.)\n  -  If the answer is cut off, you can either manually adjust the row height or autofit the row height in order to see the whole \n     response. (To autofit the row height, select the answer(s) and go to Home tab - Cells group - Format - Autofit Row Height in newer versions of Excel or \n      Format - Row - Autofit in older versions of Excel.)\n"},"October"]
["A. Leadership and Coordination",null,null,null,null,null,null,null,null,null,null,null,null,null,null,null,null,null,null,null,null,null,null,null,"November"]
["A1. Is there a national committee that works on contraceptive security? (Please select from the dropdown list.)\n(Committee should have some aspect of contraceptive security as part of its Terms of Reference, even if it is known by a different name, for example: Family Planning, Reproductive Health, Maternal Mortality, Essential Medicine Committee, etc.)  ",null,null,null,null,null,null,"Yes",{"$f":"A12","v":"A1. Is there a national committee that works on contraceptive security? (Please select from the dropdown list.)\n(Committee should have some aspect of contraceptive security as part of its Terms of Reference, even if it is known by a different name, for example: Family Planning, Reproductive Health, Maternal Mortality, Essential Medicine Committee, etc.)  "},null,null,null,null,null,null,null,null,null,null,null,null,null,null,null,"December"]
[null,"a. What is the name of the committee?",null,"Reproductive Health Commodity Security Committee",null,null,null,null,null,null,{"$f":"B13","v":"a. What is the name of the committee?"},{"$f":"D13","v":"Reproductive Health Commodity Security Committee"},null,null,{"$f":"D13","v":"Reproductive Health Commodity Security Committee"}]
["A2. Are the following organizations represented on the committee?",null,null,"(Y/N \ndropdown)",null,null,null,null,null,null,{"$f":"A14","v":"A2. Are the following organizations represented on the committee?"},null,null,null,null,null,null,null,null,null,null,null,null,null,"Don't know"]
[null,"a. Social marketing",null,"Yes","If yes, specify name(s) of organizations","Society for Family Health",null,null,null,null,{"$f":"B15","v":"a. Social marketing"},null,null,null,null,null,{"$f":"F15","v":"Society for Family Health"}]
[null,"b. NGO (for example: service delivery, advocacy, Planned Parenthood affiliate, Marie Stopes affiliate, faith-based organizations, etc.)",null,"Yes","If yes, specify name(s) of organizations","Planned Parenthood Association (PPAZ), Marie Stopes International, Family Health International",null,null,null,null,"b. NGO (for example: service delivery, advocacy, Planned Parenthood affiliate, Marie Stopes affiliate, faith-based organizations, etc.)",null,null,null,null,null,"Planned Parenthood Association (PPAZ), Marie Stopes International, Family Health International"]
[null,"c. Commercial sector (for example: pharmacy associations, manufacturers, etc.)",null,"No","If yes, specify name(s) of organizations",null,null,null,null,null,"c. Commercial sector (for example: pharmacy associations, manufacturers, etc.)",null,null,null,null,null,0]
[null,"d. Donors",null,"Yes","If yes, specify name(s) of donors","Global Fund, DFID, USAID",null,null,null,null,"d. Donors",null,null,null,null,null,"Global Fund, DFID, USAID"]
[null,"e. UN agencies",null,"Yes","If yes, specify name(s) of agencies","UNFPA, UNICEF, WHO",null,null,null,null,"e. UN agencies",null,null,null,null,null,"UNFPA, UNICEF, WHO"]
[null,"f. Ministry of Health (for example: logistics, reproductive health, family planning, maternal and child health, HIV/AIDS, pharmacy units, etc.)",null,"Yes","If yes, specify name(s) of units","Reproductive and Child Health, Pharmacy",null,null,null,null,"f. Ministry of Health (for example: logistics, reproductive health, family planning, maternal and child health, HIV/AIDS, pharmacy units, etc.)",null,null,null,null,null,"Reproductive and Child Health, Pharmacy"]
[null,"g. Central Medical Store or Central Warehouse",null,"Yes","If yes, specify","Medical Stores Limited (MSL) - Central Warehouse",null,null,null,null,"g. Central Medical Store or Central Warehouse",null,null,null,null,null,"Medical Stores Limited (MSL) - Central Warehouse"]
[null,"h. Ministry of Finance or Ministry of Planning ",null,"Yes","If yes, specify","Ministry of Finance and National Planning",null,null,null,null,"h. Ministry of Finance or Ministry of Planning ",null,null,null,null,null,"Ministry of Finance and National Planning"]
[null,"i. Other (for example: partners)",null,"Yes","If yes, specify","USAID | DELIVER PROJECT, Zambia Integrated Strengthened System Partnership (ZISSP), Zambia Prevention Care and Treatment II (ZPCT II), Center for Infectious Diseases Research in Zambia (CIDRZ)",null,null,null,null,"i. Other (for example: partners)",null,null,null,null,null,"USAID | DELIVER PROJECT, Zambia Integrated Strengthened System Partnership (ZISSP), Zambia Prevention Care and Treatment II (ZPCT II), Center for Infectious Diseases Research in Zambia (CIDRZ)"]
["A3. How many times did the committee meet during the last year? (0, 1-2, 3-5, or 6+)  (Please select from the dropdown.)",null,null,null,null,null,null,"3-5 times",{"$f":"A24","v":"A3. How many times did the committee meet during the last year? (0, 1-2, 3-5, or 6+)  (Please select from the dropdown.)"}]
["A4. Does the committee have legal status?  (Please select from the dropdown.)                                  ",null,null,null,null,null,null,"No",{"$f":"A25","v":"A4. Does the committee have legal status?  (Please select from the dropdown.)                                  "}]
["A5. Is there a Contraceptive Security \"champion\"? (someone who consistently brings up and advocates for contraceptive supplies)",null,null,"Yes","If yes, specify person's organization","MOH","Specify person's job title","Deputy Director, Reproductive and Child Health",null,null,{"$f":"A26","v":"A5. Is there a Contraceptive Security \"champion\"? (someone who consistently brings up and advocates for contraceptive supplies)"}]
["B. Finance and Procurement (Capital)"]
["B1. What is the timeline of the country's fiscal year?",null,null,"Beginning month",null,"January","Ending month","December",null,null,{"$f":"B28","v":0}]
["B2. What was the estimated dollar value of contraceptives needed to be procured for the public sector for the most recent complete fiscal year? (in USD currency)\n(for example, to cover the needs for the '09-'10 fiscal year)",null,null,null,null,null,6407002,null,null,{"$f":"G29","v":6407002},null,null,{"$f":"E29","v":0},null,null,null,null,null,null,null,null,null,null,null,{"$f":"A29","v":"B2. What was the estimated dollar value of contraceptives needed to be procured for the public sector for the most recent complete fiscal year? (in USD currency)\n(for example, to cover the needs for the '09-'10 fiscal year)"}]
["B3. When was the last forecast/quantification conducted? (mm/yy)",null,null,null,"11/10","Who conducted it? (Specify organization.)","Planned Parenthood Association, Marie Stopes International, USAID | DELIVER PROJECT, Zambia Prevention Care and Treatment II, Center for Infectious Diseases Research in Zambia, UNFPA, Society for Family Health, MOH ",null,null,{"$f":"G30","v":"Planned Parenthood Association, Marie Stopes International, USAID | DELIVER PROJECT, Zambia Prevention Care and Treatment II, Center for Infectious Diseases Research in Zambia, UNFPA, Society for Family Health, MOH "},null,null,{"$f":"E30","v":"11/10"},null,null,null,null,null,null,null,null,null,null,null,{"$f":"A30","v":"B3. When was the last forecast/quantification conducted? (mm/yy)"}]
["B4. Is there a government budget line item for the procurement of contraceptives?  (Please select from the dropdown list.)",null,null,null,null,null,null,"Yes",{"$f":"A31","v":"B4. Is there a government budget line item for the procurement of contraceptives?  (Please select from the dropdown list.)"}]
["B5. Were government funds allocated for contraceptive procurement for the public sector in the most recent complete fiscal year? (This question refers to funds planned to be spent on contraceptives, whether or not they ended up being spent.) \n\n(Government funds include internally generated funds, basket funds, World Bank credits or loans, and other funds donors gave to the government for their use.) \n",null,null,null,null,null,null,"Yes",{"$f":"A32","v":"B5. Were government funds allocated for contraceptive procurement for the public sector in the most recent complete fiscal year? (This question refers to funds planned to be spent on contraceptives, whether or not they ended up being spent.) \n\n(Government funds include internally generated funds, basket funds, World Bank credits or loans, and other funds donors gave to the government for their use.) \n"}]
["B6. Please complete the table below regarding government allocations for contraceptive procurement.",null,null,null,null,null,null,null,null,null,null,null,null,null,null,null,null,null,null,null,null,null,null,{"$f":"A33","v":"B6. Please complete the table below regarding government allocations for contraceptive procurement."}]
[null,null,null,null,"Amount allocated \n(in USD)","Time period during which allocations were supposed to be spent \n(mm/yy-mm/yy)\n(should ideally be the most recent\ncomplete fiscal year ['09-'10])","Data source \n(for example: Ministry records)","Comments",null,null,{"$f":"A34","v":0}]
[null,"Government funds allocated for contraceptive procurement\n(funds originally designated for contraceptives, whether or not they ended up being spent on them)",null,null,619099,"01/10-12/10","GRZ Yellow Book (Government Activity Based Budget: Estimate of Revenue and Expenditure), PipeLine","Committed by MOH for the procurement of RH commodities (it's not specified whether funds were meant for contraceptives)",null,null,{"$f":"#REF!","v":{"$error":"#REF!"}}]
[]
["B7. Were government funds spent on contraceptive procurement for the public sector in the most recent complete fiscal year? \n(Government funds include internally generated funds, basket funds, World Bank credits or loans, and other funds donors gave to the government for their use.)",null,null,null,null,null,null,"No",{"$f":"A37","v":"B7. Were government funds spent on contraceptive procurement for the public sector in the most recent complete fiscal year? \n(Government funds include internally generated funds, basket funds, World Bank credits or loans, and other funds donors gave to the government for their use.)"}]
["B8. Please complete the table below to indicate government expenditures on contraceptive procurement, by source, in the most recent complete fiscal year. \n(This is how much was spent on contraceptive procurement (not what was allocated). How much of this spending was provided from each source?)",null,null,null,null,null,null,null,null,null,null,null,null,null,null,null,null,null,null,null,null,null,null,{"$f":"A38","v":"B8. Please complete the table below to indicate government expenditures on contraceptive procurement, by source, in the most recent complete fiscal year. \n(This is how much was spent on contraceptive procurement (not what was allocated). How much of this spending was provided from each source?)"}]
[null,"Source of government funds spent on contraceptive procurement for the public sector",null,"Was this source used?\n(Y/N)","Amount spent \n(in USD)","Time period (mm/yy-mm/yy)\n(should be the same for all sources of funds & ideally be the most recent\ncomplete fiscal year ['09-'10])","Data source \n(for example: Contraceptive Procurement Table, PipeLine, etc.)","Comments",null,null,{"$f":"A39","v":0}]
[null,"a. Internally generated funds spent on contraceptive procurement",null,"No",0,"01/10-12/10",null,null,null,null,{"$f":"B40","v":"a. Internally generated funds spent on contraceptive procurement"}]
[null,null,"i. Specify source(s) of internally generated funds spent (for example, from taxes or user fees)",null,null,null,null,null,null,null,{"$f":"C41","v":"i. Specify source(s) of internally generated funds spent (for example, from taxes or user fees)"},null,null,null,{"$f":"D41","v":0}]
[null,"b. Total of all other government funds spent on contraceptive procurement (basket funds, World Bank credits or loans, and other funds donors gave to the government [e.g., direct budget support])",null,"No",0,"01/10-12/10",null,"($1,602,872 worth of products arrived in 2010 [from funds originally from DFID], but the products were procured in 2009)",null,null,{"$f":"B42","v":"b. Total of all other government funds spent on contraceptive procurement (basket funds, World Bank credits or loans, and other funds donors gave to the government [e.g., direct budget support])"}]
[null,null,"i. Specify source(s) of other government funds spent (for example: basket funding or specific donor)","N/A",null,null,null,null,null,null,{"$f":"C43","v":"i. Specify source(s) of other government funds spent (for example: basket funding or specific donor)"},null,null,null,{"$f":"D43","v":"N/A"}]
[null,"c. TOTAL government funds spent on contraceptive procurement\nThis will auto-calculate.  (It will sum a & b above.)",null,null,{"$f":"E40+E42","v":0},null,null,null,null,null,{"$f":"B44","v":"c. TOTAL government funds spent on contraceptive procurement\nThis will auto-calculate.  (It will sum a & b above.)"}]
[null,null,null,null,null,null,null,null,null,null,{"$f":"A45","v":0}]
["B9. Please complete the table below to indicate donor expenditures on contraceptive procurement in the most recent complete fiscal year.\n",null,null,null,null,null,null,null,null,null,null,null,null,null,null,null,null,null,null,null,null,null,null,{"$f":"A46","v":"B9. Please complete the table below to indicate donor expenditures on contraceptive procurement in the most recent complete fiscal year.\n"}]
["\n","Source of donations and donor funds spent on contraceptive procurement for the public sector",null,"Was this a source?\n(Y/N)","Amount of money spent on these procurements \n(in USD)","Time period (mm/yy-mm/yy)\n(should be the same for all sources of funds & ideally be the most recent\ncomplete fiscal year ['09-'10])","Data source \n(for example:  Donor records, Contraceptive Procurement Table, PipeLine, RHInterchange, etc.","Comments",null,null,{"$f":"A47","v":"\n"}]
[null,"a. In-kind donations of contraceptives",null,"Yes",4500501,"01/10-12/10","PipeLine",null,null,null,{"$f":"B48","v":"a. In-kind donations of contraceptives"}]
[null,null,"i. Specify source(s) of in-kind donations ","USAID $2,467,644; UNFPA $2,032,857",null,null,null,null,null,null,{"$f":"C49","v":"i. Specify source(s) of in-kind donations "},null,null,null,{"$f":"D49","v":"USAID $2,467,644; UNFPA $2,032,857"}]
[null,"b. Global Fund donations used to procure condoms",null,"No",0,"01/10-12/10",null,null,null,null,{"$f":"B50","v":"b. Global Fund donations used to procure condoms"}]
[null,"c. Global Fund donations used to procure contraceptives besides condoms",null,"No",0,"01/10-12/10",null,null,null,null,{"$f":"B51","v":"c. Global Fund donations used to procure contraceptives besides condoms"}]
[null,"d. TOTAL value of in-kind donations and Global Fund donations spent on contraceptive procurement\nThis will auto-calculate.  (It will sum a-c above.)",null,null,{"$f":"E48+E50+E51","v":4500501},null,null,null,null,null,{"$f":"B52","v":"d. TOTAL value of in-kind donations and Global Fund donations spent on contraceptive procurement\nThis will auto-calculate.  (It will sum a-c above.)"}]
[null,null,null,null,null,null,null,null,null,null,{"$f":"A53","v":0}]
["The answers to B10 and B11 should calculate automatically based on the information you provided. Please review the answers to ensure they make sense to you, and if you have additional information to add, please note it in the comments boxes.\n\nIf the answers do not calculate automatically, please provide any relevant information you may have in the comments boxes.\n",null,null,null,null,null,null,null,null,null,null,null,null,null,null,null,null,null,null,null,null,null,null,{"$f":"A54","v":"The answers to B10 and B11 should calculate automatically based on the information you provided. Please review the answers to ensure they make sense to you, and if you have additional information to add, please note it in the comments boxes.\n\nIf the answers do not calculate automatically, please provide any relevant information you may have in the comments boxes.\n"}]
["B10. Government share of funds spent on contraceptive procurement for the public sector - \nOf the total amount spent on contraceptives for the public sector in the most recent complete fiscal year (including government and donor funds), what percent was covered by government funds (including internally generated funds, basket funds, World Bank credits or loans, and other funds given to the government)? \n\nThis will auto-calculate. (It contains the following formula: Total government spending (Question B8c) / Grand total of all spending for public sector contraceptives from the government and donors (Questions B8c+B9d))",null,null,null,null,{"$f":"E44/(E44+E52)","v":0},null,null,null,{"$f":"G55","v":0},null,null,null,null,null,null,null,{"$f":"A55","v":"B10. Government share of funds spent on contraceptive procurement for the public sector - \nOf the total amount spent on contraceptives for the public sector in the most recent complete fiscal year (including government and donor funds), what percent was covered by government funds (including internally generated funds, basket funds, World Bank credits or loans, and other funds given to the government)? \n\nThis will auto-calculate. (It contains the following formula: Total government spending (Question B8c) / Grand total of all spending for public sector contraceptives from the government and donors (Questions B8c+B9d))"}]
["B11. Total expenditures on public sector contraceptives as percent of amount that needed to be procured -\nOf the estimated value of the contraceptives needed to be procured for the public sector for the most recent complete fiscal year, what percent was provided by any source (whether government or donor)? \n\nThis will auto-calculate. (It contains the following formula: Grand total of all spending for public sector contraceptives from the government and donors (Questions B8c+B9d) / Value of estimated need for procurement (Question B2))",null,null,null,null,{"$f":"(E44+E52)/G29","v":0.70243477370539298},"There was no gap in 2010.",null,null,{"$f":"G56","v":"There was no gap in 2010."},null,null,null,null,null,null,null,{"$f":"A56","v":"B11. Total expenditures on public sector contraceptives as percent of amount that needed to be procured -\nOf the estimated value of the contraceptives needed to be procured for the public sector for the most recent complete fiscal year, what percent was provided by any source (whether government or donor)? \n\nThis will auto-calculate. (It contains the following formula: Grand total of all spending for public sector contraceptives from the government and donors (Questions B8c+B9d) / Value of estimated need for procurement (Question B2))"}]
["B12. If B11 did not calculate automatically, please answer the following question:\nWas there a funding gap for the public sector in the last complete fiscal year (e.g., 09-'10 fiscal year)?\n(Please select from the dropdown list.)",null,null,null,null,null,null,null,null,{"$f":"G57","v":0},null,null,null,null,null,null,null,{"$f":"A57","v":"B12. If B11 did not calculate automatically, please answer the following question:\nWas there a funding gap for the public sector in the last complete fiscal year (e.g., 09-'10 fiscal year)?\n(Please select from the dropdown list.)"}]
[null,null,null,null,null,null,null,null,null,null,{"$f":"A58","v":0}]
["B13. If the government financed any contraceptive procurement in the most recent complete fiscal year, which entity conducted the procurement(s)? (Please select from the dropdown.)",null,null,null,null,"The government (e.g., Central Medical Stores, MOH logistics unit, MOH procurement unit)",null,null,null,null,null,null,null,null,null,null,{"$f":"F59","v":"The government (e.g., Central Medical Stores, MOH logistics unit, MOH procurement unit)"},{"$f":"A59","v":"B13. If the government financed any contraceptive procurement in the most recent complete fiscal year, which entity conducted the procurement(s)? (Please select from the dropdown.)"}]
[null,"a. Specify entity",null,null,null,"MOH Procurement Unit",null,null,null,null,null,null,{"$f":"E60","v":0},null,null,null,{"$f":"F60","v":"MOH Procurement Unit"},{"$f":"B60","v":"a. Specify entity"}]
[null,null,"i. Is this a parastatal?",null,null,"No",null,null,null,null,null,null,null,null,null,null,{"$f":"F61","v":"No"},{"$f":"C61","v":"i. Is this a parastatal?"}]
["B14. Please note any additional comments about finance and procurement.\n",null,null,"The budget line is not only for the procurement of contraceptives, but for all RH commodities. ",null,null,null,null,null,null,{"$f":"A62","v":"B14. Please note any additional comments about finance and procurement.\n"},null,null,null,{"$f":"D62","v":"The budget line is not only for the procurement of contraceptives, but for all RH commodities. "}]
["C. Commodities"]
["C1. Are the following contraceptive methods offered through the commercial sector, public sector, NGOs, or social marketing? (Please indicate which methods are intended to be offered. This question is not asking whether the method is in stock.) \n(Please select from the dropdown list.)",null,null,null,null,null,null,null,null,null,null,null,null,null,null,null,null,null,null,null,null,null,null,{"$f":"A64","v":"C1. Are the following contraceptive methods offered through the commercial sector, public sector, NGOs, or social marketing? (Please indicate which methods are intended to be offered. This question is not asking whether the method is in stock.) \n(Please select from the dropdown list.)"}]
["Contraceptive Method",null,null,"Commercial Sector",null,"Public Sector","NGO","Social Marketing",null,null,{"$f":"A65","v":"Contraceptive Method"}]
[null,"a. Combined oral contraceptives (estrogen + progestin - for  example, LoFemenol, Microgynon)",null,"Yes",null,"Yes","Yes","Yes",null,null,{"$f":"B66","v":"a. Combined oral contraceptives (estrogen + progestin - for  example, LoFemenol, Microgynon)"}]
[null,"b. Progestin-only pills (for example, Ovrette, Microlut)",null,"Yes",null,"Yes","Yes","Yes",null,null,{"$f":"B67","v":"b. Progestin-only pills (for example, Ovrette, Microlut)"}]
[null,"c. Hormonal injections (for example, DepoProvera, Noristerat)",null,"Yes",null,"Yes","Yes","Yes",null,null,"c. Hormonal injections (for example, DepoProvera, Noristerat)"]
[null,"d. Hormonal implants (for example, Jadelle, Implanon)",null,"Yes",null,"Yes","Yes","Yes",null,null,"d. Hormonal implants (for example, Jadelle, Implanon)"]
[null,"e. Intrauterine devices (IUDs) (for example, Optima Copper T)",null,"Yes",null,"Yes","Yes","Yes",null,null,"e. Intrauterine devices (IUDs) (for example, Optima Copper T)"]
[null,"f. Male condoms",null,"Yes",null,"Yes","Yes","Yes",null,null,"f. Male condoms"]
[null,"g. Female condoms",null,"Yes",null,"Yes","Yes","Yes",null,null,"g. Female condoms"]
[null,"h. Emergency contraceptive pills (for example, Postinor)",null,"Yes",null,"Yes","Don't know","No",null,null,"h. Emergency contraceptive pills (for example, Postinor)"]
[null,"i. Long-acting permanent method for males (vasectomy)",null,"Don't know",null,"Yes","Don't know","No",null,null,"i. Long-acting permanent method for males (vasectomy)"]
[null,"j. Long-acting permanent method for females (tubal ligation)",null,"Don't know",null,"Yes","Don't know","No",null,null,"j. Long-acting permanent method for females (tubal ligation)"]
[null,"k. CycleBeads",null,"Don't know",null,"No","No","No",null,null,"k. CycleBeads"]
[null,"l. Other contraceptive methods - specify \n(Please provide the name of the other contraceptive(s) offered, by sector.)",null,"No",null,null,null,null,null,null,"l. Other contraceptive methods - specify \n(Please provide the name of the other contraceptive(s) offered, by sector.)"]
["C2. Please note any comments about the commodities offered.",null,null,null,null,null,null,null,null,null,{"$f":"A78","v":"C2. Please note any comments about the commodities offered."},null,null,null,{"$f":"D78","v":0}]
["D. Policies (Commitment)"]
["D1. Is there a contraceptive security or reproductive health commodity security strategy or is contraceptive security explicitly included in a country strategy? (Please select from the dropdown list.)",null,null,null,null,null,null,"Yes",{"$f":"A80","v":"D1. Is there a contraceptive security or reproductive health commodity security strategy or is contraceptive security explicitly included in a country strategy? (Please select from the dropdown list.)"}]
["IF NO, SKIP TO QUESTION D2."]
[null,"Strategy name",null,"Years Covered (including strategy updates)",null,"Is the strategy formally approved by the Ministry?","Is the contraceptive security strategy being implemented?",null,null,{"$f":"G82","v":"Is the contraceptive security strategy being implemented?"},{"$f":"B82","v":"Strategy name"},null,{"$f":"E82","v":0},null,null,null,null,null,{"$f":"D82","v":"Years Covered (including strategy updates)"}]
[null,"a","Reproductive Health Commodity Security Strategy","2011 - 2015",null,"No","No",null,null,{"$f":"G83","v":"No"},{"$f":"B83","v":"a"},null,{"$f":"E83","v":0},null,null,null,null,null,{"$f":"D83","v":"2011 - 2015"}]
["D2. Are any family planning commodities subject to duties, import taxes, or other fees?",null,null,null,null,"No",null,null,null,null,null,null,null,null,null,null,{"$f":"F84","v":"No"},{"$f":"A84","v":"D2. Are any family planning commodities subject to duties, import taxes, or other fees?"}]
[null,"a. If yes, for which sectors (public, NGO, social marketing, commercial)?",null,null,"N/A",null,null,null,null,null,null,null,{"$f":"E85","v":"N/A"},{"$f":"E85","v":"N/A"},null,null,null,{"$f":"B85","v":"a. If yes, for which sectors (public, NGO, social marketing, commercial)?"}]
[null,"b. If yes, how much are the duties, taxes, or fees?",null,null,"N/A",null,null,null,null,null,null,null,null,{"$f":"E86","v":"N/A"},null,null,null,{"$f":"B86","v":"b. If yes, how much are the duties, taxes, or fees?"}]
["D3. Are there policies that hinder the ability of the private sector (commercial sector, NGOs, or social marketing) to provide contraceptive methods (for example: price controls, distribution limitations, taxes/duties, advertising bans, etc.)?",null,null,null,null,null,null,"Yes",{"$f":"A87","v":"D3. Are there policies that hinder the ability of the private sector (commercial sector, NGOs, or social marketing) to provide contraceptive methods (for example: price controls, distribution limitations, taxes/duties, advertising bans, etc.)?"}]
[null,"a. If yes, describe the policies.",null,"1. Sale/distribution of contraceptives restricted to retail pharmacies and private clinics. Only condoms are sold in supermarkets and drugstores. 2. Advertising ban",null,null,null,null,null,null,{"$f":"B88","v":"a. If yes, describe the policies."},null,null,null,{"$f":"D88","v":"1. Sale/distribution of contraceptives restricted to retail pharmacies and private clinics. Only condoms are sold in supermarkets and drugstores. 2. Advertising ban"}]
["D4. Are there policies that enable the private sector (commercial sector, NGOs, or social marketing) to provide contraceptive methods?",null,null,null,null,null,null,"Don't know",{"$f":"A89","v":"D4. Are there policies that enable the private sector (commercial sector, NGOs, or social marketing) to provide contraceptive methods?"}]
[null,"a. If yes, describe the policies.",null,"Don't know",null,null,null,null,null,null,{"$f":"B90","v":"a. If yes, describe the policies."},null,null,null,{"$f":"D90","v":"Don't know"}]
["D5. Do policies or regulations exist that restrict who can sell or dispense particular contraceptive methods?\n",null,null,null,null,null,null,"Don't know",{"$f":"A91","v":"D5. Do policies or regulations exist that restrict who can sell or dispense particular contraceptive methods?\n"}]
[null,"Please note any restrictions in the following table."]
[null,"Contraceptive Method(s)",null,null,"Describe any public sector restriction on who is allowed to sell or dispense the method",null,"Describe any private sector restriction on who is allowed to sell or dispense the method",null,null,{"$f":"G93","v":"Describe any private sector restriction on who is allowed to sell or dispense the method"},null,null,null,null,null,{"$f":"B93","v":"Contraceptive Method(s)"},null,null,null,null,{"$f":"E93","v":"Describe any public sector restriction on who is allowed to sell or dispense the method"}]
[null,"a",null,null,null,null,null,null,null,{"$f":"G94","v":0},null,null,{"$f":"E94","v":0},null,null,{"$f":"C94","v":0},null,null,null,null,{"$f":"E94","v":0}]
[null,"b",null,null,null,null,null,null,null,{"$f":"G95","v":0},null,null,{"$f":"E95","v":0},null,null,{"$f":"C95","v":0},null,null,null,null,{"$f":"E95","v":0}]
[null,"c",null,null,null,null,null,null,null,{"$f":"G96","v":0},null,null,{"$f":"E96","v":0},null,null,{"$f":"C96","v":0},null,null,null,null,{"$f":"E96","v":0}]
[null,null,null,null,null,null,null,null,null,null,{"$f":"C97","v":0}]
["D6. Does the country have laws, regulations, or policies that make it difficult for the following sub-populations to access effective family planning services?",null,null,"Y/N","If yes, describe laws/regulations/policies affecting access ",null,null,"Are the rules/policies implemented?",null,null,{"$f":"A98","v":"D6. Does the country have laws, regulations, or policies that make it difficult for the following sub-populations to access effective family planning services?"},null,null,null,null,null,null,null,null,null,null,{"$f":"E98","v":"If yes, describe laws/regulations/policies affecting access "}]
[null,"a. Unmarried people",null,"No",null,null,null,null,null,null,{"$f":"B99","v":"a. Unmarried people"},null,{"$f":"E99","v":0},null,null,null,null,null,null,null,null,{"$f":"E99","v":0}]
[null,"b. Young people",null,"No",null,null,null,null,null,null,{"$f":"B100","v":"b. Young people"},null,{"$f":"E100","v":0},null,null,null,null,null,null,null,null,{"$f":"E100","v":0}]
[null,"c. Other",null,"No",null,null,null,null,null,null,{"$f":"B101","v":"c. Other"},null,{"$f":"E101","v":0},null,null,null,null,null,null,null,null,{"$f":"E101","v":0}]
[null,null,null,null,null,null,null,null,null,null,{"$f":"C102","v":0}]
["D7. Are there charges* to the client in the public sector for family planning:\n*(This question refers to charges by policy, not under-the-table charges.)\n",null,null,null,null,null,null,null,null,null,null,null,null,null,null,null,null,null,null,null,null,null,null,{"$f":"A103","v":"D7. Are there charges* to the client in the public sector for family planning:\n*(This question refers to charges by policy, not under-the-table charges.)\n"}]
[null,"a. Services?",null,null,null,null,"No",null,null,{"$f":"G104","v":"No"},null,null,null,null,null,null,null,null,null,null,null,null,null,null,{"$f":"B104","v":"a. Services?"}]
[null,"b. Commodities?",null,null,null,null,"No",null,null,{"$f":"G105","v":"No"},null,null,null,null,null,null,null,null,null,null,null,null,null,null,{"$f":"B105","v":"b. Commodities?"}]
[null,"c. If yes, are there exemptions for people who cannot afford to pay?",null,null,null,null,"N/A",null,null,{"$f":"G106","v":"N/A"},null,null,null,null,null,null,null,null,null,null,null,null,null,null,{"$f":"B106","v":"c. If yes, are there exemptions for people who cannot afford to pay?"}]
[null,null,"i. If yes, describe the exemptions.","N/A",null,null,null,null,null,null,{"$f":"C107","v":"i. If yes, describe the exemptions."},null,null,null,{"$f":"D107","v":"N/A"}]
["D8. Are the following contraceptives included in the country's National Essential Medicine List (NEML) or other equivalent priority list?",null,null,null,null,null,null,null,null,null,null,null,null,null,null,null,null,null,null,null,null,null,null,{"$f":"A108","v":"D8. Are the following contraceptives included in the country's National Essential Medicine List (NEML) or other equivalent priority list?"}]
[null,"a. Combined oral contraceptives",null,null,null,null,"Yes",null,null,{"$f":"G109","v":"Yes"},null,null,null,null,null,null,null,null,null,null,null,null,null,null,{"$f":"B109","v":"a. Combined oral contraceptives"}]
[null,"b. Progestin-only pills",null,null,null,null,"Yes",null,null,"Yes",null,null,null,null,null,null,null,null,null,null,null,null,null,null,"b. Progestin-only pills"]
[null,"c. Hormonal injections",null,null,null,null,"Yes",null,null,"Yes",null,null,null,null,null,null,null,null,null,null,null,null,null,null,"c. Hormonal injections"]
[null,"d. Hormonal implants",null,null,null,null,"Yes",null,null,"Yes",null,null,null,null,null,null,null,null,null,null,null,null,null,null,"d. Hormonal implants"]
[null,"e. Intrauterine devices (IUDs)",null,null,null,null,"Yes",null,null,"Yes",null,null,null,null,null,null,null,null,null,null,null,null,null,null,"e. Intrauterine devices (IUDs)"]
[null,"f. Male condoms",null,null,null,null,"Yes",null,null,"Yes",null,null,null,null,null,null,null,null,null,null,null,null,null,null,"f. Male condoms"]
[null,"g. Female condoms",null,null,null,null,"Yes",null,null,"Yes",null,null,null,null,null,null,null,null,null,null,null,null,null,null,"g. Female condoms"]
[null,"h. Emergency contraceptive pills",null,null,null,null,"Yes",null,null,"Yes",null,null,null,null,null,null,null,null,null,null,null,null,null,null,"h. Emergency contraceptive pills"]
[null,"i. CycleBeads",null,null,null,null,"No",null,null,{"$f":"G117","v":"No"},null,null,null,null,null,null,null,null,null,null,null,null,null,null,{"$f":"B117","v":"i. CycleBeads"}]
[null,"j. Any other contraceptive(s)?",null,null,null,null,"No",null,null,"No",null,null,null,null,null,null,null,null,null,null,null,null,null,null,"j. Any other contraceptive(s)?"]
[null,null,"i. Name of other contraceptive(s) on the list(s)",null,null,"N/A",null,null,null,0,null,null,null,null,null,null,null,{"$f":"B119","v":0}]
["D9. What year(s) is the list(s) from?",null,null,null,null,2009,null,null,null,0,null,null,null,null,null,null,null,{"$f":"B120","v":0}]
["D10. Name of the list(s)\n\n\n",null,null,"Essential Medicines List",null,null,null,null,null,null,{"$f":"A121","v":"D10. Name of the list(s)\n\n\n"},null,null,null,{"$f":"D121","v":"Essential Medicines List"}]
["D11. Notes about the list(s)\n\n\n",null,null,null,null,null,null,null,null,null,{"$f":"A122","v":"D11. Notes about the list(s)\n\n\n"},null,null,null,{"$f":"D122","v":0}]
["D12.  Information on country's Poverty Reduction Strategy Paper (PRSP)\n",null,null,null,null,null,null,null,null,null,null,null,null,null,null,null,null,null,null,null,null,null,null,{"$f":"A123","v":"D12.  Information on country's Poverty Reduction Strategy Paper (PRSP)\n"}]
[null,"a. What year is the Poverty Reduction Strategy Paper from? (most recent actual PRSP on IMF's site [not progress or summary report])",null,null,null,2007,null,null,null,{"$f":"G124","v":0},null,null,null,null,null,null,null,{"$f":"B124","v":"a. What year is the Poverty Reduction Strategy Paper from? (most recent actual PRSP on IMF's site [not progress or summary report])"}]
[null,"b. Is family planning or reproductive health a priority in the PRSP?",null,null,null,null,"No",null,null,{"$f":"G125","v":"No"},null,null,null,null,null,null,null,null,null,null,null,null,null,null,{"$f":"B125","v":"b. Is family planning or reproductive health a priority in the PRSP?"}]
[null,"c. Is contraceptive security included in the PRSP?",null,null,null,null,"No",null,null,{"$f":"G126","v":"No"},null,null,null,null,null,null,null,null,null,null,null,null,null,null,{"$f":"B126","v":"c. Is contraceptive security included in the PRSP?"}]
[null,"d. Is contraceptive prevalence rate (CPR) included as an indicator in the PRSP?",null,null,null,null,"No",null,null,{"$f":"G127","v":"No"},null,null,null,null,null,null,null,null,null,null,null,null,null,null,{"$f":"B127","v":"d. Is contraceptive prevalence rate (CPR) included as an indicator in the PRSP?"}]
[null,"e. Are contraceptive supply indicators included in the PRSP?",null,null,null,null,"No",null,null,{"$f":"G128","v":"No"},null,null,null,null,null,null,null,null,null,null,null,null,null,null,{"$f":"B128","v":"e. Are contraceptive supply indicators included in the PRSP?"}]
["\n\n\n","f. Notes about the Poverty Reduction Strategy Paper",null,"Reproductive health is integrated within the health component (p.179).",null,null,null,null,null,null,{"$f":"B129","v":"f. Notes about the Poverty Reduction Strategy Paper"},null,null,null,{"$f":"D129","v":"Reproductive health is integrated within the health component (p.179)."}]
["E. Supply Chain (Capacity)"]
["E1. Have stockouts occurred for any contraceptive at the central* level in the last 12 months?  \n*(The central level refers to the central level warehouse for the public sector.)",null,null,null,null,null,"Yes",null,null,{"$f":"G131","v":"Yes"},null,null,null,null,null,null,null,null,null,null,null,null,null,null,{"$f":"A131","v":"E1. Have stockouts occurred for any contraceptive at the central* level in the last 12 months?  \n*(The central level refers to the central level warehouse for the public sector.)"}]
["E2. In the last 12 months, has there ever been a stockout at the central level of any of the contraceptives offered in public sector facilities? (If a method is not intended to be offered in public sector facilities, please indicate that stockouts are not applicable (choose \"N/A\" from the dropdown list).)",null,null,null,null,null,null,null,null,null,null,null,null,null,null,null,null,null,null,null,null,null,null,{"$f":"A132","v":"E2. In the last 12 months, has there ever been a stockout at the central level of any of the contraceptives offered in public sector facilities? (If a method is not intended to be offered in public sector facilities, please indicate that stockouts are not applicable (choose \"N/A\" from the dropdown list).)"}]
[null,"a. Combined oral contraceptives",null,null,null,null,"No",null,null,{"$f":"G133","v":"No"},null,null,null,null,null,null,null,null,null,null,null,null,null,null,{"$f":"B133","v":"a. Combined oral contraceptives"}]
[null,"b. Progestin-only pills",null,null,null,null,"No",null,null,"No",null,null,null,null,null,null,null,null,null,null,null,null,null,null,"b. Progestin-only pills"]
[null,"c. Hormonal injections",null,null,null,null,"No",null,null,"No",null,null,null,null,null,null,null,null,null,null,null,null,null,null,"c. Hormonal injections"]
[null,"d. Hormonal implants",null,null,null,null,"No",null,null,"No",null,null,null,null,null,null,null,null,null,null,null,null,null,null,"d. Hormonal implants"]
[null,"e. Intrauterine devices (IUDs)",null,null,null,null,"No",null,null,"No",null,null,null,null,null,null,null,null,null,null,null,null,null,null,"e. Intrauterine devices (IUDs)"]
[null,"f. Male condoms",null,null,null,null,"No",null,null,"No",null,null,null,null,null,null,null,null,null,null,null,null,null,null,"f. Male condoms"]
[null,"g. Female condoms",null,null,null,null,"Yes",null,null,"Yes",null,null,null,null,null,null,null,null,null,null,null,null,null,null,"g. Female condoms"]
[null,"h. Emergency contraceptive pills",null,null,null,null,"No",null,null,"No",null,null,null,null,null,null,null,null,null,null,null,null,null,null,"h. Emergency contraceptive pills"]
[null,"i. CycleBeads",null,null,null,null,"N/A",null,null,"N/A",null,null,null,null,null,null,null,null,null,null,null,null,null,null,"i. CycleBeads"]
[null,"j. Time period\n(mm/yy - mm/yy) (for example, 1/10-12/10) ",null,null,null,"01/10-12/10",null,null,null,null,null,null,null,null,null,null,{"$f":"F142","v":"01/10-12/10"},{"$f":"B142","v":"j. Time period\n(mm/yy - mm/yy) (for example, 1/10-12/10) "}]
[null,"k. Data source\n(for example: Procurement Planning and Monitoring Report, Logistics Management Information System, periodic physical inventory, warehouse reports)",null,null,null,"PipeLine (based on central warehouse reports)",null,null,null,null,null,null,null,null,null,null,{"$f":"F143","v":"PipeLine (based on central warehouse reports)"},{"$f":"B143","v":"k. Data source\n(for example: Procurement Planning and Monitoring Report, Logistics Management Information System, periodic physical inventory, warehouse reports)"}]
["E3. Are stockouts a large problem in your country at the following levels? (i.e., Are they common or do they tend to last for a long time?)\n\n"]
[null,"a. service delivery point level (i.e., public sector health facilities)",null,null,null,null,"Yes",null,null,{"$f":"G145","v":"Yes"},null,null,null,null,null,null,null,null,null,null,null,null,null,null,{"$f":"B145","v":"a. service delivery point level (i.e., public sector health facilities)"}]
[null,"b. central level (i.e., central level warehouse for the public sector)",null,null,null,null,"No",null,null,{"$f":"G146","v":"No"},null,null,null,null,null,null,null,null,null,null,null,null,null,null,{"$f":"B146","v":"b. central level (i.e., central level warehouse for the public sector)"}]
["F. Please note any overall comments about challenges and/or successes with contraceptive security in your country.\n",null,null,"Partners have been forthcoming in supporting the government in filling the gap. Government needs to increase its funding for contraceptive procurement to reduce dependency on donor funding.",null,null,null,null,null,null,{"$f":"A147","v":"F. Please note any overall comments about challenges and/or successes with contraceptive security in your country.\n"},null,null,null,{"$f":"D147","v":"Partners have been forthcoming in supporting the government in filling the gap. Government needs to increase its funding for contraceptive procurement to reduce dependency on donor funding."}]

{"sheet":"Zimbabwe 2011","index":44,"n_rows":147,"n_cols":25,"rows_kept":147,"cut":false,"hidden":false,"merged":[[8,0,8,7],[147,0,147,7],[148,0,150,7],[145,1,145,5],[145,6,145,7],[146,0,146,2],[146,3,146,7],[141,1,141,4],[141,5,141,7],[142,1,142,4],[142,5,142,7],[143,0,143,7],[144,1,144,5],[144,6,144,7],[138,1,138,5],[138,6,138,7],[139,1,139,5],[139,6,139,7],[140,1,140,5],[131,0,131,7],[132,1,132,5],[132,6,132,7],[133,1,133,5],[133,6,133,7],[134,1,134,5],[134,6,134,7],[140,6,140,7],[135,1,135,5],[135,6,135,7],[136,1,136,5],[136,6,136,7],[137,1,137,5],[137,6,137,7],[120,0,120,2],[120,3,120,7],[121,0,121,2],[121,3,121,7],[129,0,129,6],[130,0,130,5],[130,6,130,7],[122,0,122,7],[123,1,123,4],[123,5,123,7],[115,1,115,5],[115,6,115,7],[116,1,116,5],[116,6,116,7],[117,1,117,5],[117,6,117,7],[118,2,118,4],[118,5,118,7],[119,0,119,4],[119,5,119,7],[110,1,110,5],[110,6,110,7],[111,1,111,5],[111,6,111,7],[112,1,112,5],[112,6,112,7],[113,1,113,5],[113,6,113,7],[114,1,114,5],[114,6,114,7],[104,1,104,5],[104,6,104,7],[105,1,105,5],[105,6,105,7],[106,3,106,7],[107,0,107,7],[108,1,108,5],[108,6,108,7],[109,1,109,5],[109,6,109,7],[98,1,98,2],[98,4,98,6],[99,1,99,2],[99,4,99,6],[100,1,100,2],[100,4,100,6],[101,0,101,7],[102,0,102,7],[103,1,103,5],[103,6,103,7],[94,2,94,3],[94,4,94,5],[94,6,94,7],[95,2,95,3],[95,4,95,5],[95,6,95,7],[96,0,96,7],[97,0,97,2],[97,4,97,6],[88,0,88,6],[89,1,89,2],[89,3,89,7],[90,0,90,6],[91,1,91,2],[92,1,92,3],[92,4,92,5],[92,6,92,7],[93,2,93,3],[93,4,93,5],[93,6,93,7],[83,0,83,4],[83,5,83,7],[84,1,84,3],[84,4,84,7],[85,1,85,3],[85,4,85,7],[86,0,86,6],[87,1,87,2],[87,3,87,7],[77,0,77,2],[77,3,77,7],[78,0,78,6],[79,0,79,6],[80,0,80,2],[81,0,82,0],[81,1,81,2],[81,3,81,4],[81,6,81,7],[82,3,82,4],[82,6,82,7],[72,1,72,2],[72,3,72,4],[73,1,73,2],[73,3,73,4],[74,1,74,2],[74,3,74,4],[75,1,75,2],[75,3,75,4],[76,1,76,2],[76,3,76,4],[67,1,67,2],[67,3,67,4],[68,1,68,2],[68,3,68,4],[69,1,69,2],[69,3,69,4],[70,1,70,2],[70,3,70,4],[71,1,71,2],[71,3,71,4],[61,0,61,2],[61,3,61,7],[62,0,62,6],[63,0,63,7],[64,0,64,2],[64,3,64,4],[65,1,65,2],[65,3,65,4],[66,1,66,2],[66,3,66,4],[55,0,55,4],[55,6,55,7],[56,0,56,4],[56,6,56,7],[58,0,58,4],[58,5,58,7],[59,1,59,4],[59,5,59,7],[60,2,60,4],[60,5,60,7],[41,1,41,2],[42,3,42,7],[43,1,43,2],[51,1,51,2],[53,0,53,7],[54,0,54,4],[54,6,54,7],[45,0,45,7],[46,1,46,2],[47,1,47,2],[48,3,48,7],[49,1,49,2],[50,1,50,2],[32,0,32,7],[33,1,33,3],[34,1,34,3],[35,0,35,7],[36,0,36,6],[37,0,37,7],[38,1,38,2],[39,1,39,2],[40,3,40,7],[26,0,26,6],[27,0,27,2],[27,3,27,4],[28,0,28,5],[28,6,28,7],[29,0,29,3],[29,6,29,7],[30,0,30,6],[31,0,31,6],[20,1,20,2],[20,5,20,7],[21,1,21,2],[21,5,21,7],[22,1,22,2],[22,5,22,7],[23,0,23,6],[24,0,24,6],[25,0,25,2],[15,1,15,2],[15,5,15,7],[16,1,16,2],[16,5,16,7],[17,1,17,2],[17,5,17,7],[18,1,18,2],[18,5,18,7],[19,1,19,2],[19,5,19,7],[9,0,9,7],[10,0,10,6],[11,0,11,6],[12,1,12,2],[12,3,12,7],[13,0,13,2],[13,3,13,7],[14,1,14,2],[14,5,14,7],[7,0,7,2],[7,3,7,5],[7,6,7,7],[0,0,0,7],[1,0,1,2],[1,3,1,4],[2,0,2,7],[3,3,3,4],[3,5,3,7],[4,0,4,2],[5,0,5,2],[127,1,127,5],[127,6,127,7],[128,1,128,2],[128,3,128,7],[124,1,124,5],[124,6,124,7],[125,1,125,5],[125,6,125,7],[126,1,126,5],[126,6,126,7]]}
[null,null,null,null,null,null,null,null,"Columns I-Y are meant to be hidden. They exist because they allow for the dropdown list options. They also allow for merged cells to autofit properly in terms of row height. This should work if all columns remain at their correct widths.","g-h",null,"a-e merged","E-F merged","e-h","0 times",null,null,"The government (e.g., Central Medical Stores, MOH logistics unit, MOH procurement unit)",null,null,null,null,"Yes","a-h","January"]
[null,null,null,null,null,null,null,null,null,null,"A-c",null,null,null,"1-2 times","b-d merged",null,"Third-party agent (e.g., UNFPA, Crown Agents)","d-e merged","d-f merged","e-f merged","e-g merged","No",null,"February"]
[null,null,null,null,null,null,null,null,null,null,null,null,null,null,"3-5 times",null,null,"The government and a third-party agent",null,null,null,null,null,null,"March"]
[null,null,null,null,null,null,null,null,null,null,null,null,null,null,"6 or more times",null,null,"Other",null,null,null,null,"N/A",null,"April"]
["To jump to the Introduction sheet, click here.",null,null,null,null,null,null,null,null,null,null,null,null,null,null,null,null,null,null,null,null,null,"Don't know",null,"May"]
[null,null,null,null,null,null,null,null,null,null,null,null,null,null,"N/A",null,null,"N/A",null,null,null,null,null,null,"June"]
["Contraceptive Security (CS) Indicators 2011 Data ",null,null,null,null,null,null,null,null,null,null,null,null,null,"Don't know",null,null,"Don't know",null,null,null,null,null,null,"July"]
["Country: Zimbabwe",null,null,null,null,null,null,null,null,{"$f":"G8","v":0},{"$f":"A8","v":"Country: Zimbabwe"},null,null,null,null,"or c-d",null,null,null,{"$f":"D8","v":0},null,null,null,null,"August"]
["The CS Indicators are presented in the following sections:\n\n               A. leadership & cooordination               B. finance & procurement               C. commodities               D. policies               E. supply chain",null,null,null,null,null,null,null,null,{"$f":"G9","v":0},{"$f":"A9","v":"The CS Indicators are presented in the following sections:\n\n               A. leadership & cooordination               B. finance & procurement               C. commodities               D. policies               E. supply chain"},null,null,null,"d-h",null,"f-h merged",null,{"$f":"D9","v":0},null,null,null,null,{"$f":"A9","v":"The CS Indicators are presented in the following sections:\n\n               A. leadership & cooordination               B. finance & procurement               C. commodities               D. policies               E. supply chain"},"September"]
["\nNotes:\n  -  Respondents' answers are indicated in the white spaces. \n  -  N/A = not applicable. Don't know = the respondent either indicated they did not know or left the answer blank.\n  -  Some questions required respondents to choose from a dropdown list of options; in these cases the dropdown arrow will \n     appear when you click on the cell. \n  -  There may be a few inserted comments. (If you cannot already see them, click on Review tab - Comments group - Show All Comments in newer \n       versions of Excel or View - Comments in older versions of Excel.)\n  -  If the answer is cut off, you can either manually adjust the row height or autofit the row height in order to see the whole \n     response. (To autofit the row height, select the answer(s) and go to Home tab - Cells group - Format - Autofit Row Height in newer versions of Excel or \n      Format - Row - Autofit in older versions of Excel.)\n",null,null,null,null,null,null,null,"a-g",null,null,null,null,null,null,null,null,"a-e merged",null,null,null,null,null,{"$f":"A10","v":"\nNotes:\n  -  Respondents' answers are indicated in the white spaces. \n  -  N/A = not applicable. Don't know = the respondent either indicated they did not know or left the answer blank.\n  -  Some questions required respondents to choose from a dropdown list of options; in these cases the dropdown arrow will \n     appear when you click on the cell. \n  -  There may be a few inserted comments. (If you cannot already see them, click on Review tab - Comments group - Show All Comments in newer \n       versions of Excel or View - Comments in older versions of Excel.)\n  -  If the answer is cut off, you can either manually adjust the row height or autofit the row height in order to see the whole \n     response. (To autofit the row height, select the answer(s) and go to Home tab - Cells group - Format - Autofit Row Height in newer versions of Excel or \n      Format - Row - Autofit in older versions of Excel.)\n"},"October"]
["A. Leadership and Coordination",null,null,null,null,null,null,null,null,null,null,null,null,null,null,null,null,null,null,null,null,null,null,null,"November"]
["A1. Is there a national committee that works on contraceptive security? (Please select from the dropdown list.)\n(Committee should have some aspect of contraceptive security as part of its Terms of Reference, even if it is known by a different name, for example: Family Planning, Reproductive Health, Maternal Mortality, Essential Medicine Committee, etc.)  ",null,null,null,null,null,null,"Yes",{"$f":"A12","v":"A1. Is there a national committee that works on contraceptive security? (Please select from the dropdown list.)\n(Committee should have some aspect of contraceptive security as part of its Terms of Reference, even if it is known by a different name, for example: Family Planning, Reproductive Health, Maternal Mortality, Essential Medicine Committee, etc.)  "},null,null,null,null,null,null,null,null,null,null,null,null,null,null,null,"December"]
[null,"a. What is the name of the committee?",null,"Reproductive Health Commodity Security Committee",null,null,null,null,null,null,{"$f":"B13","v":"a. What is the name of the committee?"},{"$f":"D13","v":"Reproductive Health Commodity Security Committee"},null,null,{"$f":"D13","v":"Reproductive Health Commodity Security Committee"}]
["A2. Are the following organizations represented on the committee?",null,null,"(Y/N \ndropdown)",null,null,null,null,null,null,{"$f":"A14","v":"A2. Are the following organizations represented on the committee?"},null,null,null,null,null,null,null,null,null,null,null,null,null,"Don't know"]
[null,"a. Social marketing",null,"Yes","If yes, specify name(s) of organizations","Population Services International",null,null,null,null,{"$f":"B15","v":"a. Social marketing"},null,null,null,null,null,{"$f":"F15","v":"Population Services International"}]
[null,"b. NGO (for example: service delivery, advocacy, Planned Parenthood affiliate, Marie Stopes affiliate, faith-based organizations, etc.)",null,"Yes","If yes, specify name(s) of organizations","Population Services Zimbabwe (PSZ) (Marie Stopes affiliate), Elizabeth Glaser Pediatric AIDS Foundation",null,null,null,null,"b. NGO (for example: service delivery, advocacy, Planned Parenthood affiliate, Marie Stopes affiliate, faith-based organizations, etc.)",null,null,null,null,null,"Population Services Zimbabwe (PSZ) (Marie Stopes affiliate), Elizabeth Glaser Pediatric AIDS Foundation"]
[null,"c. Commercial sector (for example: pharmacy associations, manufacturers, etc.)",null,"Yes","If yes, specify name(s) of organizations","CIMAS Healthcare (medical insurance and health services provider)",null,null,null,null,"c. Commercial sector (for example: pharmacy associations, manufacturers, etc.)",null,null,null,null,null,"CIMAS Healthcare (medical insurance and health services provider)"]
[null,"d. Donors",null,"Yes","If yes, specify name(s) of donors","USAID and DfID",null,null,null,null,"d. Donors",null,null,null,null,null,"USAID and DfID"]
[null,"e. UN agencies",null,"Yes","If yes, specify name(s) of agencies","UNFPA",null,null,null,null,"e. UN agencies",null,null,null,null,null,"UNFPA"]
[null,"f. Ministry of Health (for example: logistics, reproductive health, family planning, maternal and child health, HIV/AIDS, pharmacy units, etc.)",null,"Yes","If yes, specify name(s) of units","Reproductive Health Unit of Ministry of Health and Child Welfare (MOHCW), Zimbabwe National Family Planning Council (ZNFPC), and Medicines Control Authority of Zimbabwe (MCAZ) ",null,null,null,null,"f. Ministry of Health (for example: logistics, reproductive health, family planning, maternal and child health, HIV/AIDS, pharmacy units, etc.)",null,null,null,null,null,"Reproductive Health Unit of Ministry of Health and Child Welfare (MOHCW), Zimbabwe National Family Planning Council (ZNFPC), and Medicines Control Authority of Zimbabwe (MCAZ) "]
[null,"g. Central Medical Store or Central Warehouse",null,"Yes","If yes, specify","NatPharm",null,null,null,null,"g. Central Medical Store or Central Warehouse",null,null,null,null,null,"NatPharm"]
[null,"h. Ministry of Finance or Ministry of Planning ",null,"No","If yes, specify",null,null,null,null,null,"h. Ministry of Finance or Ministry of Planning ",null,null,null,null,null,0]
[null,"i. Other (for example: partners)",null,"Yes","If yes, specify","Crown Agents Zimbabwe, John Snow Inc. (JSI)",null,null,null,null,"i. Other (for example: partners)",null,null,null,null,null,"Crown Agents Zimbabwe, John Snow Inc. (JSI)"]
["A3. How many times did the committee meet during the last year? (0, 1-2, 3-5, or 6+)  (Please select from the dropdown.)",null,null,null,null,null,null,"3-5 times",{"$f":"A24","v":"A3. How many times did the committee meet during the last year? (0, 1-2, 3-5, or 6+)  (Please select from the dropdown.)"}]
["A4. Does the committee have legal status?  (Please select from the dropdown.)                                  ",null,null,null,null,null,null,"Yes",{"$f":"A25","v":"A4. Does the committee have legal status?  (Please select from the dropdown.)                                  "}]
["A5. Is there a Contraceptive Security \"champion\"? (someone who consistently brings up and advocates for contraceptive supplies)",null,null,"Yes","If yes, specify person's organization","ZNFPC","Specify person's job title","Executive Director",null,null,{"$f":"A26","v":"A5. Is there a Contraceptive Security \"champion\"? (someone who consistently brings up and advocates for contraceptive supplies)"}]
["B. Finance and Procurement (Capital)"]
["B1. What is the timeline of the country's fiscal year?",null,null,"Beginning month",null,"January","Ending month","December",null,null,{"$f":"B28","v":0}]
["B2. What was the estimated dollar value of contraceptives needed to be procured for the public sector for the most recent complete fiscal year? (in USD currency)\n(for example, to cover the needs for the '09-'10 fiscal year)",null,null,null,null,null,"Don't know",null,null,{"$f":"G29","v":"Don't know"},null,null,{"$f":"E29","v":0},null,null,null,null,null,null,null,null,null,null,null,{"$f":"A29","v":"B2. What was the estimated dollar value of contraceptives needed to be procured for the public sector for the most recent complete fiscal year? (in USD currency)\n(for example, to cover the needs for the '09-'10 fiscal year)"}]
["B3. When was the last forecast/quantification conducted? (mm/yy)",null,null,null,"10/10","Who conducted it? (Specify organization.)","ZNFPC, JSI, Crown Agents, and PSZ",null,null,{"$f":"G30","v":"ZNFPC, JSI, Crown Agents, and PSZ"},null,null,{"$f":"E30","v":"10/10"},null,null,null,null,null,null,null,null,null,null,null,{"$f":"A30","v":"B3. When was the last forecast/quantification conducted? (mm/yy)"}]
["B4. Is there a government budget line item for the procurement of contraceptives?  (Please select from the dropdown list.)",null,null,null,null,null,null,"Yes",{"$f":"A31","v":"B4. Is there a government budget line item for the procurement of contraceptives?  (Please select from the dropdown list.)"}]
["B5. Were government funds allocated for contraceptive procurement for the public sector in the most recent complete fiscal year? (This question refers to funds planned to be spent on contraceptives, whether or not they ended up being spent.) \n\n(Government funds include internally generated funds, basket funds, World Bank credits or loans, and other funds donors gave to the government for their use.) \n",null,null,null,null,null,null,"Yes",{"$f":"A32","v":"B5. Were government funds allocated for contraceptive procurement for the public sector in the most recent complete fiscal year? (This question refers to funds planned to be spent on contraceptives, whether or not they ended up being spent.) \n\n(Government funds include internally generated funds, basket funds, World Bank credits or loans, and other funds donors gave to the government for their use.) \n"}]
["B6. Please complete the table below regarding government allocations for contraceptive procurement.",null,null,null,null,null,null,null,null,null,null,null,null,null,null,null,null,null,null,null,null,null,null,{"$f":"A33","v":"B6. Please complete the table below regarding government allocations for contraceptive procurement."}]
[null,null,null,null,"Amount allocated \n(in USD)","Time period during which allocations were supposed to be spent \n(mm/yy-mm/yy)\n(should ideally be the most recent\ncomplete fiscal year ['09-'10])","Data source \n(for example: Ministry records)","Comments",null,null,{"$f":"A34","v":0}]
[null,"Government funds allocated for contraceptive procurement\n(funds originally designated for contraceptives, whether or not they ended up being spent on them)",null,null,"Don't know","01/10-12/10",null,"Budget allocation is for the entire MOH and is in principle supposed to cover all recurrent expenditures for the entire MOH including commodities procurement ",null,null,{"$f":"#REF!","v":{"$error":"#REF!"}}]
[]
["B7. Were government funds spent on contraceptive procurement for the public sector in the most recent complete fiscal year? \n(Government funds include internally generated funds, basket funds, World Bank credits or loans, and other funds donors gave to the government for their use.)",null,null,null,null,null,null,"Don't know",{"$f":"A37","v":"B7. Were government funds spent on contraceptive procurement for the public sector in the most recent complete fiscal year? \n(Government funds include internally generated funds, basket funds, World Bank credits or loans, and other funds donors gave to the government for their use.)"}]
["B8. Please complete the table below to indicate government expenditures on contraceptive procurement, by source, in the most recent complete fiscal year. \n(This is how much was spent on contraceptive procurement (not what was allocated). How much of this spending was provided from each source?)",null,null,null,null,null,null,null,null,null,null,null,null,null,null,null,null,null,null,null,null,null,null,{"$f":"A38","v":"B8. Please complete the table below to indicate government expenditures on contraceptive procurement, by source, in the most recent complete fiscal year. \n(This is how much was spent on contraceptive procurement (not what was allocated). How much of this spending was provided from each source?)"}]
[null,"Source of government funds spent on contraceptive procurement for the public sector",null,"Was this source used?\n(Y/N)","Amount spent \n(in USD)","Time period (mm/yy-mm/yy)\n(should be the same for all sources of funds & ideally be the most recent\ncomplete fiscal year ['09-'10])","Data source \n(for example: Contraceptive Procurement Table, PipeLine, etc.)","Comments",null,null,{"$f":"A39","v":0}]
[null,"a. Internally generated funds spent on contraceptive procurement",null,"Don't know","Don't know","01/10-12/10",null,"It is not clear if and how much the government spent on procurement of contraceptives outside of the delivery team topping up [DTTU] distribution system. The government did not spend funds on procurement of contraceptives for the DTTU distribution system. ",null,null,{"$f":"B40","v":"a. Internally generated funds spent on contraceptive procurement"}]
[null,null,"i. Specify source(s) of internally generated funds spent (for example, from taxes or user fees)",null,null,null,null,null,null,null,{"$f":"C41","v":"i. Specify source(s) of internally generated funds spent (for example, from taxes or user fees)"},null,null,null,{"$f":"D41","v":0}]
[null,"b. Total of all other government funds spent on contraceptive procurement (basket funds, World Bank credits or loans, and other funds donors gave to the government [e.g., direct budget support])",null,"Don't know","Don't know","01/10-12/10",null,null,null,null,{"$f":"B42","v":"b. Total of all other government funds spent on contraceptive procurement (basket funds, World Bank credits or loans, and other funds donors gave to the government [e.g., direct budget support])"}]
[null,null,"i. Specify source(s) of other government funds spent (for example: basket funding or specific donor)","Don't know",null,null,null,null,null,null,{"$f":"C43","v":"i. Specify source(s) of other government funds spent (for example: basket funding or specific donor)"},null,null,null,{"$f":"D43","v":"Don't know"}]
[null,"c. TOTAL government funds spent on contraceptive procurement\nThis will auto-calculate.  (It will sum a & b above.)",null,null,"Don't know",null,null,null,null,null,{"$f":"B44","v":"c. TOTAL government funds spent on contraceptive procurement\nThis will auto-calculate.  (It will sum a & b above.)"}]
[null,null,null,null,null,null,null,null,null,null,{"$f":"A45","v":0}]
["B9. Please complete the table below to indicate donor expenditures on contraceptive procurement in the most recent complete fiscal year.\n",null,null,null,null,null,null,null,null,null,null,null,null,null,null,null,null,null,null,null,null,null,null,{"$f":"A46","v":"B9. Please complete the table below to indicate donor expenditures on contraceptive procurement in the most recent complete fiscal year.\n"}]
["\n","Source of donations and donor funds spent on contraceptive procurement for the public sector",null,"Was this a source?\n(Y/N)","Amount of money spent on these procurements \n(in USD)","Time period (mm/yy-mm/yy)\n(should be the same for all sources of funds & ideally be the most recent\ncomplete fiscal year ['09-'10])","Data source \n(for example:  Donor records, Contraceptive Procurement Table, PipeLine, RHInterchange, etc.","Comments",null,null,{"$f":"A47","v":"\n"}]
[null,"a. In-kind donations of contraceptives",null,"Yes",7282419.6600000001,"01/10-12/10","Delivery Team Topping Up (DTTU) TOP UP database","1) Data includes products distributed on DTTU only (male and female condoms, the injectable Petogen, the combined oral Control, and the progestin-only pill Secure). 2) Data includes products distributed to clients only, not products in storage facilities. 2) Value based on actual per unit consumption of each product multiplied by unit cost (freight and insurance included). ",null,null,{"$f":"B48","v":"a. In-kind donations of contraceptives"}]
[null,null,"i. Specify source(s) of in-kind donations ","Male and female condoms (USAID), other contraceptives (DfID)",null,null,null,null,null,null,{"$f":"C49","v":"i. Specify source(s) of in-kind donations "},null,null,null,{"$f":"D49","v":"Male and female condoms (USAID), other contraceptives (DfID)"}]
[null,"b. Global Fund donations used to procure condoms",null,"No",0,"01/10-12/10",null,null,null,null,{"$f":"B50","v":"b. Global Fund donations used to procure condoms"}]
[null,"c. Global Fund donations used to procure contraceptives besides condoms",null,"No",0,"01/10-12/10",null,null,null,null,{"$f":"B51","v":"c. Global Fund donations used to procure contraceptives besides condoms"}]
[null,"d. TOTAL value of in-kind donations and Global Fund donations spent on contraceptive procurement\nThis will auto-calculate.  (It will sum a-c above.)",null,null,{"$f":"E48+E50+E51","v":7282419.6600000001},null,null,null,null,null,{"$f":"B52","v":"d. TOTAL value of in-kind donations and Global Fund donations spent on contraceptive procurement\nThis will auto-calculate.  (It will sum a-c above.)"}]
[null,null,null,null,null,null,null,null,null,null,{"$f":"A53","v":0}]
["The answers to B10 and B11 should calculate automatically based on the information you provided. Please review the answers to ensure they make sense to you, and if you have additional information to add, please note it in the comments boxes.\n\nIf the answers do not calculate automatically, please provide any relevant information you may have in the comments boxes.\n",null,null,null,null,null,null,null,null,null,null,null,null,null,null,null,null,null,null,null,null,null,null,{"$f":"A54","v":"The answers to B10 and B11 should calculate automatically based on the information you provided. Please review the answers to ensure they make sense to you, and if you have additional information to add, please note it in the comments boxes.\n\nIf the answers do not calculate automatically, please provide any relevant information you may have in the comments boxes.\n"}]
["B10. Government share of funds spent on contraceptive procurement for the public sector - \nOf the total amount spent on contraceptives for the public sector in the most recent complete fiscal year (including government and donor funds), what percent was covered by government funds (including internally generated funds, basket funds, World Bank credits or loans, and other funds given to the government)? \n\nThis will auto-calculate. (It contains the following formula: Total government spending (Question B8c) / Grand total of all spending for public sector contraceptives from the government and donors (Questions B8c+B9d))",null,null,null,null,"Don't know",null,null,null,{"$f":"G55","v":0},null,null,null,null,null,null,null,{"$f":"A55","v":"B10. Government share of funds spent on contraceptive procurement for the public sector - \nOf the total amount spent on contraceptives for the public sector in the most recent complete fiscal year (including government and donor funds), what percent was covered by government funds (including internally generated funds, basket funds, World Bank credits or loans, and other funds given to the government)? \n\nThis will auto-calculate. (It contains the following formula: Total government spending (Question B8c) / Grand total of all spending for public sector contraceptives from the government and donors (Questions B8c+B9d))"}]
["B11. Total expenditures on public sector contraceptives as percent of amount that needed to be procured -\nOf the estimated value of the contraceptives needed to be procured for the public sector for the most recent complete fiscal year, what percent was provided by any source (whether government or donor)? \n\nThis will auto-calculate. (It contains the following formula: Grand total of all spending for public sector contraceptives from the government and donors (Questions B8c+B9d) / Value of estimated need for procurement (Question B2))",null,null,null,null,"Don't know",null,null,null,{"$f":"G56","v":0},null,null,null,null,null,null,null,{"$f":"A56","v":"B11. Total expenditures on public sector contraceptives as percent of amount that needed to be procured -\nOf the estimated value of the contraceptives needed to be procured for the public sector for the most recent complete fiscal year, what percent was provided by any source (whether government or donor)? \n\nThis will auto-calculate. (It contains the following formula: Grand total of all spending for public sector contraceptives from the government and donors (Questions B8c+B9d) / Value of estimated need for procurement (Question B2))"}]
["B12. If B11 did not calculate automatically, please answer the following question:\nWas there a funding gap for the public sector in the last complete fiscal year (e.g., 09-'10 fiscal year)?\n(Please select from the dropdown list.)",null,null,null,null,"No","All public sector needs for the methods distributed by the DTTU system (male and female condoms, injectables, combined orals, and progestin-only pills) are adequately met by USAID and DfID year after year. ",null,null,{"$f":"G57","v":"All public sector needs for the methods distributed by the DTTU system (male and female condoms, injectables, combined orals, and progestin-only pills) are adequately met by USAID and DfID year after year. "},null,null,null,null,null,null,null,{"$f":"A57","v":"B12. If B11 did not calculate automatically, please answer the following question:\nWas there a funding gap for the public sector in the last complete fiscal year (e.g., 09-'10 fiscal year)?\n(Please select from the dropdown list.)"}]
[null,null,null,null,null,null,null,null,null,null,{"$f":"A58","v":0}]
["B13. If the government financed any contraceptive procurement in the most recent complete fiscal year, which entity conducted the procurement(s)? (Please select from the dropdown.)",null,null,null,null,"N/A",null,null,null,null,null,null,null,null,null,null,{"$f":"F59","v":"N/A"},{"$f":"A59","v":"B13. If the government financed any contraceptive procurement in the most recent complete fiscal year, which entity conducted the procurement(s)? (Please select from the dropdown.)"}]
[null,"a. Specify entity",null,null,null,"N/A",null,null,null,null,null,null,{"$f":"E60","v":0},null,null,null,{"$f":"F60","v":"N/A"},{"$f":"B60","v":"a. Specify entity"}]
[null,null,"i. Is this a parastatal?",null,null,"N/A",null,null,null,null,null,null,null,null,null,null,{"$f":"F61","v":"N/A"},{"$f":"C61","v":"i. Is this a parastatal?"}]
["B14. Please note any additional comments about finance and procurement.",null,null,"The USAID | DELIVER PROJECT (implemented by JSI) procures on behalf of USAID while Crown Agents procures on behalf of DfID. Finance data provided here represents the monetary value of the products distributed through the DTTU system only. Procurement data is not available for other contraceptives distributed on a target strategy outside of DTTU, which are bought by ZNFPC and sold direct from the ZNFPC warehouse to private, public, and local authority institutions and doctors upon request. They are not routinely distributed to all SDPs through DTTU because they are used by a minority of the population and are expensive.  ",null,null,null,null,null,null,{"$f":"A62","v":"B14. Please note any additional comments about finance and procurement."},null,null,null,{"$f":"D62","v":"The USAID | DELIVER PROJECT (implemented by JSI) procures on behalf of USAID while Crown Agents procures on behalf of DfID. Finance data provided here represents the monetary value of the products distributed through the DTTU system only. Procurement data is not available for other contraceptives distributed on a target strategy outside of DTTU, which are bought by ZNFPC and sold direct from the ZNFPC warehouse to private, public, and local authority institutions and doctors upon request. They are not routinely distributed to all SDPs through DTTU because they are used by a minority of the population and are expensive.  "}]
["C. Commodities"]
["C1. Are the following contraceptive methods offered through the commercial sector, public sector, NGOs, or social marketing? (Please indicate which methods are intended to be offered. This question is not asking whether the method is in stock.) \n(Please select from the dropdown list.)",null,null,null,null,null,null,null,null,null,null,null,null,null,null,null,null,null,null,null,null,null,null,{"$f":"A64","v":"C1. Are the following contraceptive methods offered through the commercial sector, public sector, NGOs, or social marketing? (Please indicate which methods are intended to be offered. This question is not asking whether the method is in stock.) \n(Please select from the dropdown list.)"}]
["Contraceptive Method",null,null,"Commercial Sector",null,"Public Sector","NGO","Social Marketing",null,null,{"$f":"A65","v":"Contraceptive Method"}]
[null,"a. Combined oral contraceptives (estrogen + progestin - for  example, LoFemenol, Microgynon)",null,"Yes",null,"Yes","Yes","No",null,null,{"$f":"B66","v":"a. Combined oral contraceptives (estrogen + progestin - for  example, LoFemenol, Microgynon)"}]
[null,"b. Progestin-only pills (for example, Ovrette, Microlut)",null,"Yes",null,"Yes","Yes","No",null,null,{"$f":"B67","v":"b. Progestin-only pills (for example, Ovrette, Microlut)"}]
[null,"c. Hormonal injections (for example, DepoProvera, Noristerat)",null,"Yes",null,"Yes","Yes","Yes",null,null,"c. Hormonal injections (for example, DepoProvera, Noristerat)"]
[null,"d. Hormonal implants (for example, Jadelle, Implanon)",null,"Yes",null,"Yes","Yes","No",null,null,"d. Hormonal implants (for example, Jadelle, Implanon)"]
[null,"e. Intrauterine devices (IUDs) (for example, Optima Copper T)",null,"Yes",null,"Yes","Yes","No",null,null,"e. Intrauterine devices (IUDs) (for example, Optima Copper T)"]
[null,"f. Male condoms",null,"Yes",null,"Yes","Yes","Yes",null,null,"f. Male condoms"]
[null,"g. Female condoms",null,"Yes",null,"Yes","Yes","Yes",null,null,"g. Female condoms"]
[null,"h. Emergency contraceptive pills (for example, Postinor)",null,"Yes",null,"Yes","Yes","Yes",null,null,"h. Emergency contraceptive pills (for example, Postinor)"]
[null,"i. Long-acting permanent method for males (vasectomy)",null,"Yes",null,"Yes","Yes","Don't know",null,null,"i. Long-acting permanent method for males (vasectomy)"]
[null,"j. Long-acting permanent method for females (tubal ligation)",null,"Yes",null,"Yes","Yes","Don't know",null,null,"j. Long-acting permanent method for females (tubal ligation)"]
[null,"k. CycleBeads",null,"Yes",null,"Yes","No","No",null,null,"k. CycleBeads"]
[null,"l. Other contraceptive methods - specify \n(Please provide the name of the other contraceptive(s) offered, by sector.)",null,"No",null,"No","No","No",null,null,"l. Other contraceptive methods - specify \n(Please provide the name of the other contraceptive(s) offered, by sector.)"]
["C2. Please note any comments about the commodities offered.",null,null,"1) IUDs, emergency contraceptives, and CycleBeads are in principle supposed to be managed in the public sector but their supply is erratic. They are distributed on a target basis. ZNFPC started piloting the distribution of Jadelle implants on DTTU in the last quarter of 2010. 2) The contraceptive methods listed under NGO refer to Population Services Zimbabwe (a local NGO and Marie Stopes affiliate). \n",null,null,null,null,null,null,{"$f":"A78","v":"C2. Please note any comments about the commodities offered."},null,null,null,{"$f":"D78","v":"1) IUDs, emergency contraceptives, and CycleBeads are in principle supposed to be managed in the public sector but their supply is erratic. They are distributed on a target basis. ZNFPC started piloting the distribution of Jadelle implants on DTTU in the last quarter of 2010. 2) The contraceptive methods listed under NGO refer to Population Services Zimbabwe (a local NGO and Marie Stopes affiliate). \n"}]
["D. Policies (Commitment)"]
["D1. Is there a contraceptive security or reproductive health commodity security strategy or is contraceptive security explicitly included in a country strategy? (Please select from the dropdown list.)",null,null,null,null,null,null,"Yes",{"$f":"A80","v":"D1. Is there a contraceptive security or reproductive health commodity security strategy or is contraceptive security explicitly included in a country strategy? (Please select from the dropdown list.)"}]
["IF NO, SKIP TO QUESTION D2."]
[null,"Strategy name",null,"Years Covered (including strategy updates)",null,"Is the strategy formally approved by the Ministry?","Is the contraceptive security strategy being implemented?",null,null,{"$f":"G82","v":"Is the contraceptive security strategy being implemented?"},{"$f":"B82","v":"Strategy name"},null,{"$f":"E82","v":0},null,null,null,null,null,{"$f":"D82","v":"Years Covered (including strategy updates)"}]
[null,"a","ZNFPC Strategic Plan ","2009 - 2013",null,"Yes","Yes",null,null,{"$f":"G83","v":"Yes"},{"$f":"B83","v":"a"},null,{"$f":"E83","v":0},null,null,null,null,null,{"$f":"D83","v":"2009 - 2013"}]
["D2. Are any family planning commodities subject to duties, import taxes, or other fees?",null,null,null,null,"No",null,null,null,null,null,null,null,null,null,null,{"$f":"F84","v":"No"},{"$f":"A84","v":"D2. Are any family planning commodities subject to duties, import taxes, or other fees?"}]
[null,"a. If yes, for which sectors (public, NGO, social marketing, commercial)?",null,null,"N/A",null,null,null,null,null,null,null,{"$f":"E85","v":"N/A"},{"$f":"E85","v":"N/A"},null,null,null,{"$f":"B85","v":"a. If yes, for which sectors (public, NGO, social marketing, commercial)?"}]
[null,"b. If yes, how much are the duties, taxes, or fees?",null,null,"N/A",null,null,null,null,null,null,null,null,{"$f":"E86","v":"N/A"},null,null,null,{"$f":"B86","v":"b. If yes, how much are the duties, taxes, or fees?"}]
["D3. Are there policies that hinder the ability of the private sector (commercial sector, NGOs, or social marketing) to provide contraceptive methods (for example: price controls, distribution limitations, taxes/duties, advertising bans, etc.)?",null,null,null,null,null,null,"No",{"$f":"A87","v":"D3. Are there policies that hinder the ability of the private sector (commercial sector, NGOs, or social marketing) to provide contraceptive methods (for example: price controls, distribution limitations, taxes/duties, advertising bans, etc.)?"}]
[null,"a. If yes, describe the policies.",null,"N/A",null,null,null,null,null,null,{"$f":"B88","v":"a. If yes, describe the policies."},null,null,null,{"$f":"D88","v":"N/A"}]
["D4. Are there policies that enable the private sector (commercial sector, NGOs, or social marketing) to provide contraceptive methods?",null,null,null,null,null,null,"No",{"$f":"A89","v":"D4. Are there policies that enable the private sector (commercial sector, NGOs, or social marketing) to provide contraceptive methods?"}]
[null,"a. If yes, describe the policies.",null,"N/A",null,null,null,null,null,null,{"$f":"B90","v":"a. If yes, describe the policies."},null,null,null,{"$f":"D90","v":"N/A"}]
["D5. Do policies or regulations exist that restrict who can sell or dispense particular contraceptive methods?\n",null,null,null,null,null,null,"Yes",{"$f":"A91","v":"D5. Do policies or regulations exist that restrict who can sell or dispense particular contraceptive methods?\n"}]
[null,"Please note any restrictions in the following table."]
[null,"Contraceptive Method(s)",null,null,"Describe any public sector restriction on who is allowed to sell or dispense the method",null,"Describe any private sector restriction on who is allowed to sell or dispense the method",null,null,{"$f":"G93","v":"Describe any private sector restriction on who is allowed to sell or dispense the method"},null,null,null,null,null,{"$f":"B93","v":"Contraceptive Method(s)"},null,null,null,null,{"$f":"E93","v":"Describe any public sector restriction on who is allowed to sell or dispense the method"}]
[null,"a","Injectables",null,"Community-based distributors cannot dispense/administer long-term methods.",null,"Long-term methods can only be dispensed/administered by qualified medical personnel specifically trained to administer the methods. For injectables, this is trained and registered nurses and doctors.",null,null,{"$f":"G94","v":"Long-term methods can only be dispensed/administered by qualified medical personnel specifically trained to administer the methods. For injectables, this is trained and registered nurses and doctors."},null,null,{"$f":"E94","v":"Community-based distributors cannot dispense/administer long-term methods."},null,null,{"$f":"C94","v":"Injectables"},null,null,null,null,{"$f":"E94","v":"Community-based distributors cannot dispense/administer long-term methods."}]
[null,"b","Implants",null,"Only doctors and clinical officers can administer.",null,"Only trained doctors who are approved by ZNFPC to insert implants can do so.  ",null,null,{"$f":"G95","v":"Only trained doctors who are approved by ZNFPC to insert implants can do so.  "},null,null,{"$f":"E95","v":"Only doctors and clinical officers can administer."},null,null,{"$f":"C95","v":"Implants"},null,null,null,null,{"$f":"E95","v":"Only doctors and clinical officers can administer."}]
[null,"c","IUDs",null,"Only doctors can administer.",null,"Only trained doctors who are approved by ZNFPC to insert IUDs can do so.  ",null,null,{"$f":"G96","v":"Only trained doctors who are approved by ZNFPC to insert IUDs can do so.  "},null,null,{"$f":"E96","v":"Only doctors can administer."},null,null,{"$f":"C96","v":"IUDs"},null,null,null,null,{"$f":"E96","v":"Only doctors can administer."}]
[null,null,null,null,null,null,null,null,null,null,{"$f":"C97","v":0}]
["D6. Does the country have laws, regulations, or policies that make it difficult for the following sub-populations to access effective family planning services?",null,null,"Y/N","If yes, describe laws/regulations/policies affecting access ",null,null,"Are the rules/policies implemented?",null,null,{"$f":"A98","v":"D6. Does the country have laws, regulations, or policies that make it difficult for the following sub-populations to access effective family planning services?"},null,null,null,null,null,null,null,null,null,null,{"$f":"E98","v":"If yes, describe laws/regulations/policies affecting access "}]
[null,"a. Unmarried people",null,"No",null,null,null,null,null,null,{"$f":"B99","v":"a. Unmarried people"},null,{"$f":"E99","v":0},null,null,null,null,null,null,null,null,{"$f":"E99","v":0}]
[null,"b. Young people",null,"No",null,null,null,null,null,null,{"$f":"B100","v":"b. Young people"},null,{"$f":"E100","v":0},null,null,null,null,null,null,null,null,{"$f":"E100","v":0}]
[null,"c. Other",null,"No",null,null,null,null,null,null,{"$f":"B101","v":"c. Other"},null,{"$f":"E101","v":0},null,null,null,null,null,null,null,null,{"$f":"E101","v":0}]
[null,null,null,null,null,null,null,null,null,null,{"$f":"C102","v":0}]
["D7. Are there charges* to the client in the public sector for family planning:\n*(This question refers to charges by policy, not under-the-table charges.)\n",null,null,null,null,null,null,null,null,null,null,null,null,null,null,null,null,null,null,null,null,null,null,{"$f":"A103","v":"D7. Are there charges* to the client in the public sector for family planning:\n*(This question refers to charges by policy, not under-the-table charges.)\n"}]
[null,"a. Services?",null,null,null,null,"Yes",null,null,{"$f":"G104","v":"Yes"},null,null,null,null,null,null,null,null,null,null,null,null,null,null,{"$f":"B104","v":"a. Services?"}]
[null,"b. Commodities?",null,null,null,null,"Yes",null,null,{"$f":"G105","v":"Yes"},null,null,null,null,null,null,null,null,null,null,null,null,null,null,{"$f":"B105","v":"b. Commodities?"}]
[null,"c. If yes, are there exemptions for people who cannot afford to pay?",null,null,null,null,"Yes",null,null,{"$f":"G106","v":"Yes"},null,null,null,null,null,null,null,null,null,null,null,null,null,null,{"$f":"B106","v":"c. If yes, are there exemptions for people who cannot afford to pay?"}]
[null,null,"i. If yes, describe the exemptions.","Some local authority clinics charge for commodities. People over 65 years are exempted from such charges in general at public institutions.",null,null,null,null,null,null,{"$f":"C107","v":"i. If yes, describe the exemptions."},null,null,null,{"$f":"D107","v":"Some local authority clinics charge for commodities. People over 65 years are exempted from such charges in general at public institutions."}]
["D8. Are the following contraceptives included in the country's National Essential Medicine List (NEML) or other equivalent priority list?",null,null,null,null,null,null,null,null,null,null,null,null,null,null,null,null,null,null,null,null,null,null,{"$f":"A108","v":"D8. Are the following contraceptives included in the country's National Essential Medicine List (NEML) or other equivalent priority list?"}]
[null,"a. Combined oral contraceptives",null,null,null,null,"Yes",null,null,{"$f":"G109","v":"Yes"},null,null,null,null,null,null,null,null,null,null,null,null,null,null,{"$f":"B109","v":"a. Combined oral contraceptives"}]
[null,"b. Progestin-only pills",null,null,null,null,"Yes",null,null,"Yes",null,null,null,null,null,null,null,null,null,null,null,null,null,null,"b. Progestin-only pills"]
[null,"c. Hormonal injections",null,null,null,null,"Yes",null,null,"Yes",null,null,null,null,null,null,null,null,null,null,null,null,null,null,"c. Hormonal injections"]
[null,"d. Hormonal implants",null,null,null,null,"Yes",null,null,"Yes",null,null,null,null,null,null,null,null,null,null,null,null,null,null,"d. Hormonal implants"]
[null,"e. Intrauterine devices (IUDs)",null,null,null,null,"Yes",null,null,"Yes",null,null,null,null,null,null,null,null,null,null,null,null,null,null,"e. Intrauterine devices (IUDs)"]
[null,"f. Male condoms",null,null,null,null,"Yes",null,null,"Yes",null,null,null,null,null,null,null,null,null,null,null,null,null,null,"f. Male condoms"]
[null,"g. Female condoms",null,null,null,null,"Yes",null,null,"Yes",null,null,null,null,null,null,null,null,null,null,null,null,null,null,"g. Female condoms"]
[null,"h. Emergency contraceptive pills",null,null,null,null,"Yes",null,null,"Yes",null,null,null,null,null,null,null,null,null,null,null,null,null,null,"h. Emergency contraceptive pills"]
[null,"i. CycleBeads",null,null,null,null,"Yes",null,null,{"$f":"G117","v":"Yes"},null,null,null,null,null,null,null,null,null,null,null,null,null,null,{"$f":"B117","v":"i. CycleBeads"}]
[null,"j. Any other contraceptive(s)?",null,null,null,null,"No",null,null,"No",null,null,null,null,null,null,null,null,null,null,null,null,null,null,"j. Any other contraceptive(s)?"]
[null,null,"i. Name of other contraceptive(s) on the list(s)",null,null,"N/A",null,null,null,0,null,null,null,null,null,null,null,{"$f":"B119","v":0}]
["D9. What year(s) is the list(s) from?",null,null,null,null,2006,null,null,null,{"$f":"E121","v":0},null,null,null,null,null,null,null,{"$f":"B120","v":0}]
["D10. Name of the list(s)\n",null,null,"Essential Drugs List for Zimbabwe (EDLIZ) and the ZNFPC List of Contraceptive Methods and Devices",null,null,null,null,null,null,{"$f":"A121","v":"D10. Name of the list(s)\n"},null,null,null,{"$f":"#REF!","v":{"$error":"#REF!"}}]
["D11. Notes about the list(s)\n\n\n",null,null,"EDLIZ currently under revision",null,null,null,null,null,null,{"$f":"A122","v":"D11. Notes about the list(s)\n\n\n"},null,null,null,{"$f":"D122","v":"EDLIZ currently under revision"}]
["D12.  Information on country's Poverty Reduction Strategy Paper (PRSP)\n",null,null,null,null,null,null,null,null,null,null,null,null,null,null,null,null,null,null,null,null,null,null,{"$f":"A123","v":"D12.  Information on country's Poverty Reduction Strategy Paper (PRSP)\n"}]
[null,"a. What year is the Poverty Reduction Strategy Paper from? (most recent actual PRSP on IMF's site [not progress or summary report])",null,null,null,"N/A",null,null,null,{"$f":"G124","v":0},null,null,null,null,null,null,null,{"$f":"B124","v":"a. What year is the Poverty Reduction Strategy Paper from? (most recent actual PRSP on IMF's site [not progress or summary report])"}]
[null,"b. Is family planning or reproductive health a priority in the PRSP?",null,null,null,null,"N/A",null,null,{"$f":"G125","v":"N/A"},null,null,null,null,null,null,null,null,null,null,null,null,null,null,{"$f":"B125","v":"b. Is family planning or reproductive health a priority in the PRSP?"}]
[null,"c. Is contraceptive security included in the PRSP?",null,null,null,null,"N/A",null,null,{"$f":"G126","v":"N/A"},null,null,null,null,null,null,null,null,null,null,null,null,null,null,{"$f":"B126","v":"c. Is contraceptive security included in the PRSP?"}]
[null,"d. Is contraceptive prevalence rate (CPR) included as an indicator in the PRSP?",null,null,null,null,"N/A",null,null,{"$f":"G127","v":"N/A"},null,null,null,null,null,null,null,null,null,null,null,null,null,null,{"$f":"B127","v":"d. Is contraceptive prevalence rate (CPR) included as an indicator in the PRSP?"}]
[null,"e. Are contraceptive supply indicators included in the PRSP?",null,null,null,null,"N/A",null,null,{"$f":"G128","v":"N/A"},null,null,null,null,null,null,null,null,null,null,null,null,null,null,{"$f":"B128","v":"e. Are contraceptive supply indicators included in the PRSP?"}]
["\n\n\n","f. Notes about the Poverty Reduction Strategy Paper",null,"Document not available on IMF's website",null,null,null,null,null,null,{"$f":"B129","v":"f. Notes about the Poverty Reduction Strategy Paper"},null,null,null,{"$f":"D129","v":"Document not available on IMF's website"}]
["E. Supply Chain (Capacity)"]
["E1. Have stockouts occurred for any contraceptive at the central* level in the last 12 months?  \n*(The central level refers to the central level warehouse for the public sector.)",null,null,null,null,null,"No",null,null,{"$f":"G131","v":"No"},null,null,null,null,null,null,null,null,null,null,null,null,null,null,{"$f":"A131","v":"E1. Have stockouts occurred for any contraceptive at the central* level in the last 12 months?  \n*(The central level refers to the central level warehouse for the public sector.)"}]
["E2. In the last 12 months, has there ever been a stockout at the central level of any of the contraceptives offered in public sector facilities? (If a method is not intended to be offered in public sector facilities, please indicate that stockouts are not applicable (choose \"N/A\" from the dropdown list).)",null,null,null,null,null,null,null,null,null,null,null,null,null,null,null,null,null,null,null,null,null,null,{"$f":"A132","v":"E2. In the last 12 months, has there ever been a stockout at the central level of any of the contraceptives offered in public sector facilities? (If a method is not intended to be offered in public sector facilities, please indicate that stockouts are not applicable (choose \"N/A\" from the dropdown list).)"}]
[null,"a. Combined oral contraceptives",null,null,null,null,"No",null,null,{"$f":"G133","v":"No"},null,null,null,null,null,null,null,null,null,null,null,null,null,null,{"$f":"B133","v":"a. Combined oral contraceptives"}]
[null,"b. Progestin-only pills",null,null,null,null,"No",null,null,"No",null,null,null,null,null,null,null,null,null,null,null,null,null,null,"b. Progestin-only pills"]
[null,"c. Hormonal injections",null,null,null,null,"No",null,null,"No",null,null,null,null,null,null,null,null,null,null,null,null,null,null,"c. Hormonal injections"]
[null,"d. Hormonal implants",null,null,null,null,"Don't know",null,null,"Don't know",null,null,null,null,null,null,null,null,null,null,null,null,null,null,"d. Hormonal implants"]
[null,"e. Intrauterine devices (IUDs)",null,null,null,null,"Don't know",null,null,"Don't know",null,null,null,null,null,null,null,null,null,null,null,null,null,null,"e. Intrauterine devices (IUDs)"]
[null,"f. Male condoms",null,null,null,null,"No",null,null,"No",null,null,null,null,null,null,null,null,null,null,null,null,null,null,"f. Male condoms"]
[null,"g. Female condoms",null,null,null,null,"No",null,null,"No",null,null,null,null,null,null,null,null,null,null,null,null,null,null,"g. Female condoms"]
[null,"h. Emergency contraceptive pills",null,null,null,null,"Don't know",null,null,"Don't know",null,null,null,null,null,null,null,null,null,null,null,null,null,null,"h. Emergency contraceptive pills"]
[null,"i. CycleBeads",null,null,null,null,"Don't know",null,null,"Don't know",null,null,null,null,null,null,null,null,null,null,null,null,null,null,"i. CycleBeads"]
[null,"j. Time period\n(mm/yy - mm/yy) (for example, 1/10-12/10) ",null,null,null,"01/10-12/10",null,null,null,null,null,null,null,null,null,null,{"$f":"F142","v":"01/10-12/10"},{"$f":"B142","v":"j. Time period\n(mm/yy - mm/yy) (for example, 1/10-12/10) "}]
[null,"k. Data source\n(for example: Procurement Planning and Monitoring Report, Logistics Management Information System, periodic physical inventory, warehouse reports)",null,null,null,"Warehouse reports & periodic physical inventory",null,null,null,null,null,null,null,null,null,null,{"$f":"F143","v":"Warehouse reports & periodic physical inventory"},{"$f":"B143","v":"k. Data source\n(for example: Procurement Planning and Monitoring Report, Logistics Management Information System, periodic physical inventory, warehouse reports)"}]
["E3. Are stockouts a large problem in your country at the following levels? (i.e., Are they common or do they tend to last for a long time?)\n\n"]
[null,"a. service delivery point level (i.e., public sector health facilities)",null,null,null,null,"No",null,null,{"$f":"G145","v":"No"},null,null,null,null,null,null,null,null,null,null,null,null,null,null,{"$f":"B145","v":"a. service delivery point level (i.e., public sector health facilities)"}]
[null,"b. central level (i.e., central level warehouse for the public sector)",null,null,null,null,"No",null,null,{"$f":"G146","v":"No"},null,null,null,null,null,null,null,null,null,null,null,null,null,null,{"$f":"B146","v":"b. central level (i.e., central level warehouse for the public sector)"}]
["F. Please note any overall comments about challenges and/or successes with contraceptive security in your country.\n\n",null,null,"Contraceptives are generally in full supply. No significant issues with commodity security.",null,null,null,null,null,null,{"$f":"A147","v":"F. Please note any overall comments about challenges and/or successes with contraceptive security in your country.\n\n"},null,null,null,{"$f":"D147","v":"Contraceptives are generally in full supply. No significant issues with commodity security."}]